{"text_format":"1","workbook":"xlsx","n_sheets":23,"sheets":["Dashboard","Portfolio Analytics","Scenario Comparison","Lists","raw_annual_curtailment","raw_annual_energy","raw_annual_load","raw_fuel_burn","raw_ghg","raw_ghg_imports","raw_inputs_passthrough","raw_local_capacity_resources","raw_operational_costs","raw_planning_reserve_margin","raw_resource_build","raw_rps","raw_storage_build","raw_transmission_costs","raw_transmission_flows","raw_annual_unbundled_rps_purcha","raw_original_inputs_passthrough","raw_annual_main_zone_contract_p","raw_hurdle_rate_costs"],"not_rendered":{"charts":34,"images":1,"macros":1,"external_links":0,"defined_names":187,"comments":0,"pivot_tables":0},"unopened":[],"bounds":{"document_bytes":16777216,"sheet_cells":100000,"rows_first":2000,"rows_last":500,"rows_between":2000,"halvings":0,"cell_chars":16384,"cell_head_chars":4096},"cells_cut":0,"cells_raw":0,"read":"whole","date_system":"1900"}

{"sheet":"Dashboard","index":0,"n_rows":212,"n_cols":45,"rows_kept":212,"cut":false,"hidden":false,"merged":[]}
[]
[null,"Results Summary",null,"1. Refresh the list of scenarios with available results"]
[null,"Note: All costs are expressed in 2016 dollars",null,"2. Select a case from this list and click on the \"retrieve results\" button"]
[null,null,null,"Note: If you run RESOLVE and it crashes mid-run, a results folder for that scenario will exist, i.e. show up on list, but won't have actual results"]
[]
[null,null,null,null,null,"KEY SUMMARY STATS"]
[null,"Scenarios with Results"]
[null,"30MMT_20200207_2045_2GWPRM_NOOTCEXT",null,null,null,null,"Active Scenario Name","46MMT_20200207_2045_2GWPRM_NOOTCEXT_NoNewDER"]
[null,"46MMT_20191104_SolarLimit_PartialOTCExt_Nov_ProposedRSP"]
[null,"46MMT_20200207_2045_0PRM_NOOTCEXT",null,null,null,null,"Present Value Portfolio Metrics","Unit"]
[null,"46MMT_20200207_2045_0PRM_OTCEXT",null,null,null,null,"PV Revenue Requirement","$MM",{"$f":"SUMPRODUCT($J18:$AS18,$J$212:$AS$212)","v":945528.5164814943}]
[null,"46MMT_20200207_2045_2GWPRM_NOOTCEXT_NoNewDER",null,null,null,null,"PV Total Resource Cost","$MM",{"$f":"SUMPRODUCT($J19:$AS19,$J$212:$AS$212)","v":987049.63216972351}]
[null,"46MMT_20200207_2045_2GWPRM_NOOTCEXT_RSP_PD",null,null,null,null,"Levelized Revenue Requirement","$MM",{"$f":"I11/SUM($M$212:$AS$212)","v":50363.534676415627}]
[null,"46MMT_20200207_2045_2GWPRM_OTCEXT",null,null,null,null,"Levelized Total Resource Cost","$MM",{"$f":"I12/SUM($M$212:$AS$212)","v":52575.155070001631}]
[null,null,null,null,null,null,"Levelized Average Rate","cts/kWh",{"$f":"SUMPRODUCT($J$18:$AS$18,$J$212:$AS$212)/SUMPRODUCT($J$113:$AS$113,$J$212:$AS$212)*100","v":17.675708404913888}]
[]
[null,null,null," ",null,null,"Annual Portfolio Metrics","Unit",null,2015,{"$f":"J17+1","v":2016},2017,2018,2019,2020,2021,2022,2023,2024,2025,2026,2027,2028,2029,2030,2031,2032,2033,2034,2035,2036,2037,2038,2039,2040,2041,2042,2043,2044,2045,2046,2047,2048,2049,2050]
[null,null,null,null,null,null,"Revenue Requirement","$MM/yr",null,{"$f":"J110","v":0},{"$f":"K110","v":0},0,0,0,40413.163305449641,43229.613897710078,42842.575025600629,42408.673720875537,42656.704551995586,0,41030.71594761598,0,0,0,42874.455777173491,0,0,0,0,0,0,0,0,0,0,0,0,0,0,64893.517684886036,0,0,0,0,{"$f":"AS110","v":0}]
[null,null,null,null,null,null,"Total Resource Cost","$MM/yr",null,{"$f":"J112","v":0},0,0,0,0,42624.783699035652,45441.234291296088,45054.195419186639,44620.294114461547,44868.324945581597,0,43242.33634120199,0,0,0,45086.076170759501,0,0,0,0,0,0,0,0,0,0,0,0,0,0,67105.138078472039,0,0,0,0,{"$f":"AS112","v":0}]
[null,null,null,null,null,null,"Average Rate","cts/kWh",null,{"$f":"J114","v":0},{"$f":"K114","v":0},0,0,0,18.714336775257454,19.624777243664074,19.036167427399509,18.477220777899912,18.274895048997088,0,17.072165383039298,0,0,0,17.035735651550119,0,0,0,0,0,0,0,0,0,0,0,0,0,0,17.625310236247575,0,0,0,0,{"$f":"AS114","v":0}]
[null,null,null,null,null,null,"Greenhouse Gas Emissions including BTM CHP","MMtCO2/Yr",null,{"$f":"J149","v":0},0,0,0,0,45.949209247037508,44.383732702885034,41.469824618502201,41.420480056623632,43.442161012679968,0,43.744978118075977,0,0,0,37.900003527571918,0,0,0,0,0,0,0,0,0,0,0,0,0,0,12.251464439679786,0,0,0,0,0]
[null,null,null,null,null,null,"Effective RPS (incl. banked RECs)","% of Retail Sales",null,{"$f":"J130","v":0},{"$f":"K130","v":0},0,0,0,0.42749267154074988,0.4482432931100967,0.49891160361664111,0.51458892787964017,0.56448959777091401,0,0.64988711338116589,0,0,0,0.68001887997649835,0,0,0,0,0,0,0,0,0,0,0,0,0,0,1.0061055832426093,0,0,0,0,0]
[null,null,null,null,null,null,{"$f":"G132","v":"Renewable Curtailment incl. Storage Losses"},"% of RPS Gen.",null,{"$f":"J132","v":0},{"$f":"K132","v":0},0,0,0,1.1447932037368214E-2,1.9584966667553459E-2,2.057009447054118E-2,2.3649757486518069E-2,2.600872704825247E-2,0,3.2660322771019885E-2,0,0,0,{"$f":"Y132","v":5.8998432763808541E-2},0,0,0,0,0,0,0,0,0,0,0,0,0,0,0.18621883985328516,0,0,0,0,0]
[]
[null,null,null,null,null,null,"Selected Resource Summary"]
[]
[null,null,null,null,null,null,null,"Unit",null,2015,{"$f":"J27+1","v":2016},2017,2018,2019,2020,2021,2022,2023,2024,2025,2026,2027,2028,2029,2030,2031,2032,2033,2034,2035,2036,2037,2038,2039,2040,2041,2042,2043,2044,2045,2046,2047,2048,2049,2050]
[null,null,null,null,null,null,"Gas","MW",null,{"$f":"SUMIFS('Portfolio Analytics'!E$98:E$125,Lists!$C$5:$C$32,$G28)","v":0},{"$f":"SUMIFS('Portfolio Analytics'!F$98:F$125,Lists!$C$5:$C$32,$G28)","v":0},{"$f":"SUMIFS('Portfolio Analytics'!G$98:G$125,Lists!$C$5:$C$32,$G28)","v":0},{"$f":"SUMIFS('Portfolio Analytics'!H$98:H$125,Lists!$C$5:$C$32,$G28)","v":0},{"$f":"SUMIFS('Portfolio Analytics'!I$98:I$125,Lists!$C$5:$C$32,$G28)","v":0},{"$f":"SUMIFS('Portfolio Analytics'!J$98:J$125,Lists!$C$5:$C$32,$G28)","v":0},{"$f":"SUMIFS('Portfolio Analytics'!K$98:K$125,Lists!$C$5:$C$32,$G28)","v":0},{"$f":"SUMIFS('Portfolio Analytics'!L$98:L$125,Lists!$C$5:$C$32,$G28)","v":0},{"$f":"SUMIFS('Portfolio Analytics'!M$98:M$125,Lists!$C$5:$C$32,$G28)","v":0},{"$f":"SUMIFS('Portfolio Analytics'!N$98:N$125,Lists!$C$5:$C$32,$G28)","v":0},{"$f":"SUMIFS('Portfolio Analytics'!O$98:O$125,Lists!$C$5:$C$32,$G28)","v":0},{"$f":"SUMIFS('Portfolio Analytics'!P$98:P$125,Lists!$C$5:$C$32,$G28)","v":0},{"$f":"SUMIFS('Portfolio Analytics'!Q$98:Q$125,Lists!$C$5:$C$32,$G28)","v":0},{"$f":"SUMIFS('Portfolio Analytics'!R$98:R$125,Lists!$C$5:$C$32,$G28)","v":0},{"$f":"SUMIFS('Portfolio Analytics'!S$98:S$125,Lists!$C$5:$C$32,$G28)","v":0},{"$f":"SUMIFS('Portfolio Analytics'!T$98:T$125,Lists!$C$5:$C$32,$G28)","v":0},{"$f":"SUMIFS('Portfolio Analytics'!U$98:U$125,Lists!$C$5:$C$32,$G28)","v":0},{"$f":"SUMIFS('Portfolio Analytics'!V$98:V$125,Lists!$C$5:$C$32,$G28)","v":0},{"$f":"SUMIFS('Portfolio Analytics'!W$98:W$125,Lists!$C$5:$C$32,$G28)","v":0},{"$f":"SUMIFS('Portfolio Analytics'!X$98:X$125,Lists!$C$5:$C$32,$G28)","v":0},{"$f":"SUMIFS('Portfolio Analytics'!Y$98:Y$125,Lists!$C$5:$C$32,$G28)","v":0},{"$f":"SUMIFS('Portfolio Analytics'!Z$98:Z$125,Lists!$C$5:$C$32,$G28)","v":0},{"$f":"SUMIFS('Portfolio Analytics'!AA$98:AA$125,Lists!$C$5:$C$32,$G28)","v":0},{"$f":"SUMIFS('Portfolio Analytics'!AB$98:AB$125,Lists!$C$5:$C$32,$G28)","v":0},{"$f":"SUMIFS('Portfolio Analytics'!AC$98:AC$125,Lists!$C$5:$C$32,$G28)","v":0},{"$f":"SUMIFS('Portfolio Analytics'!AD$98:AD$125,Lists!$C$5:$C$32,$G28)","v":0},{"$f":"SUMIFS('Portfolio Analytics'!AE$98:AE$125,Lists!$C$5:$C$32,$G28)","v":0},{"$f":"SUMIFS('Portfolio Analytics'!AF$98:AF$125,Lists!$C$5:$C$32,$G28)","v":0},{"$f":"SUMIFS('Portfolio Analytics'!AG$98:AG$125,Lists!$C$5:$C$32,$G28)","v":0},{"$f":"SUMIFS('Portfolio Analytics'!AH$98:AH$125,Lists!$C$5:$C$32,$G28)","v":0},{"$f":"SUMIFS('Portfolio Analytics'!AI$98:AI$125,Lists!$C$5:$C$32,$G28)","v":0},{"$f":"SUMIFS('Portfolio Analytics'!AJ$98:AJ$125,Lists!$C$5:$C$32,$G28)","v":0},{"$f":"SUMIFS('Portfolio Analytics'!AK$98:AK$125,Lists!$C$5:$C$32,$G28)","v":0},{"$f":"SUMIFS('Portfolio Analytics'!AL$98:AL$125,Lists!$C$5:$C$32,$G28)","v":0},{"$f":"SUMIFS('Portfolio Analytics'!AM$98:AM$125,Lists!$C$5:$C$32,$G28)","v":0},{"$f":"SUMIFS('Portfolio Analytics'!AN$98:AN$125,Lists!$C$5:$C$32,$G28)","v":0}]
[null,null,null,null,null,null,"Biomass","MW",null,{"$f":"SUMIFS('Portfolio Analytics'!E$98:E$125,Lists!$C$5:$C$32,$G29)","v":0},{"$f":"SUMIFS('Portfolio Analytics'!F$98:F$125,Lists!$C$5:$C$32,$G29)","v":0},{"$f":"SUMIFS('Portfolio Analytics'!G$98:G$125,Lists!$C$5:$C$32,$G29)","v":0},{"$f":"SUMIFS('Portfolio Analytics'!H$98:H$125,Lists!$C$5:$C$32,$G29)","v":0},{"$f":"SUMIFS('Portfolio Analytics'!I$98:I$125,Lists!$C$5:$C$32,$G29)","v":0},{"$f":"SUMIFS('Portfolio Analytics'!J$98:J$125,Lists!$C$5:$C$32,$G29)","v":0},{"$f":"SUMIFS('Portfolio Analytics'!K$98:K$125,Lists!$C$5:$C$32,$G29)","v":0},{"$f":"SUMIFS('Portfolio Analytics'!L$98:L$125,Lists!$C$5:$C$32,$G29)","v":0},{"$f":"SUMIFS('Portfolio Analytics'!M$98:M$125,Lists!$C$5:$C$32,$G29)","v":0},{"$f":"SUMIFS('Portfolio Analytics'!N$98:N$125,Lists!$C$5:$C$32,$G29)","v":0},{"$f":"SUMIFS('Portfolio Analytics'!O$98:O$125,Lists!$C$5:$C$32,$G29)","v":0},{"$f":"SUMIFS('Portfolio Analytics'!P$98:P$125,Lists!$C$5:$C$32,$G29)","v":0},{"$f":"SUMIFS('Portfolio Analytics'!Q$98:Q$125,Lists!$C$5:$C$32,$G29)","v":0},{"$f":"SUMIFS('Portfolio Analytics'!R$98:R$125,Lists!$C$5:$C$32,$G29)","v":0},{"$f":"SUMIFS('Portfolio Analytics'!S$98:S$125,Lists!$C$5:$C$32,$G29)","v":0},{"$f":"SUMIFS('Portfolio Analytics'!T$98:T$125,Lists!$C$5:$C$32,$G29)","v":0},{"$f":"SUMIFS('Portfolio Analytics'!U$98:U$125,Lists!$C$5:$C$32,$G29)","v":0},{"$f":"SUMIFS('Portfolio Analytics'!V$98:V$125,Lists!$C$5:$C$32,$G29)","v":0},{"$f":"SUMIFS('Portfolio Analytics'!W$98:W$125,Lists!$C$5:$C$32,$G29)","v":0},{"$f":"SUMIFS('Portfolio Analytics'!X$98:X$125,Lists!$C$5:$C$32,$G29)","v":0},{"$f":"SUMIFS('Portfolio Analytics'!Y$98:Y$125,Lists!$C$5:$C$32,$G29)","v":0},{"$f":"SUMIFS('Portfolio Analytics'!Z$98:Z$125,Lists!$C$5:$C$32,$G29)","v":0},{"$f":"SUMIFS('Portfolio Analytics'!AA$98:AA$125,Lists!$C$5:$C$32,$G29)","v":0},{"$f":"SUMIFS('Portfolio Analytics'!AB$98:AB$125,Lists!$C$5:$C$32,$G29)","v":0},{"$f":"SUMIFS('Portfolio Analytics'!AC$98:AC$125,Lists!$C$5:$C$32,$G29)","v":0},{"$f":"SUMIFS('Portfolio Analytics'!AD$98:AD$125,Lists!$C$5:$C$32,$G29)","v":0},{"$f":"SUMIFS('Portfolio Analytics'!AE$98:AE$125,Lists!$C$5:$C$32,$G29)","v":0},{"$f":"SUMIFS('Portfolio Analytics'!AF$98:AF$125,Lists!$C$5:$C$32,$G29)","v":0},{"$f":"SUMIFS('Portfolio Analytics'!AG$98:AG$125,Lists!$C$5:$C$32,$G29)","v":0},{"$f":"SUMIFS('Portfolio Analytics'!AH$98:AH$125,Lists!$C$5:$C$32,$G29)","v":0},{"$f":"SUMIFS('Portfolio Analytics'!AI$98:AI$125,Lists!$C$5:$C$32,$G29)","v":1146.8499999999999},{"$f":"SUMIFS('Portfolio Analytics'!AJ$98:AJ$125,Lists!$C$5:$C$32,$G29)","v":0},{"$f":"SUMIFS('Portfolio Analytics'!AK$98:AK$125,Lists!$C$5:$C$32,$G29)","v":0},{"$f":"SUMIFS('Portfolio Analytics'!AL$98:AL$125,Lists!$C$5:$C$32,$G29)","v":0},{"$f":"SUMIFS('Portfolio Analytics'!AM$98:AM$125,Lists!$C$5:$C$32,$G29)","v":0},{"$f":"SUMIFS('Portfolio Analytics'!AN$98:AN$125,Lists!$C$5:$C$32,$G29)","v":0}]
[null,null,null,null,null,null,"Geothermal","MW",null,{"$f":"SUMIFS('Portfolio Analytics'!E$98:E$125,Lists!$C$5:$C$32,$G30)","v":0},{"$f":"SUMIFS('Portfolio Analytics'!F$98:F$125,Lists!$C$5:$C$32,$G30)","v":0},{"$f":"SUMIFS('Portfolio Analytics'!G$98:G$125,Lists!$C$5:$C$32,$G30)","v":0},{"$f":"SUMIFS('Portfolio Analytics'!H$98:H$125,Lists!$C$5:$C$32,$G30)","v":0},{"$f":"SUMIFS('Portfolio Analytics'!I$98:I$125,Lists!$C$5:$C$32,$G30)","v":0},{"$f":"SUMIFS('Portfolio Analytics'!J$98:J$125,Lists!$C$5:$C$32,$G30)","v":0},{"$f":"SUMIFS('Portfolio Analytics'!K$98:K$125,Lists!$C$5:$C$32,$G30)","v":0},{"$f":"SUMIFS('Portfolio Analytics'!L$98:L$125,Lists!$C$5:$C$32,$G30)","v":0},{"$f":"SUMIFS('Portfolio Analytics'!M$98:M$125,Lists!$C$5:$C$32,$G30)","v":0},{"$f":"SUMIFS('Portfolio Analytics'!N$98:N$125,Lists!$C$5:$C$32,$G30)","v":135},{"$f":"SUMIFS('Portfolio Analytics'!O$98:O$125,Lists!$C$5:$C$32,$G30)","v":0},{"$f":"SUMIFS('Portfolio Analytics'!P$98:P$125,Lists!$C$5:$C$32,$G30)","v":135},{"$f":"SUMIFS('Portfolio Analytics'!Q$98:Q$125,Lists!$C$5:$C$32,$G30)","v":0},{"$f":"SUMIFS('Portfolio Analytics'!R$98:R$125,Lists!$C$5:$C$32,$G30)","v":0},{"$f":"SUMIFS('Portfolio Analytics'!S$98:S$125,Lists!$C$5:$C$32,$G30)","v":0},{"$f":"SUMIFS('Portfolio Analytics'!T$98:T$125,Lists!$C$5:$C$32,$G30)","v":135},{"$f":"SUMIFS('Portfolio Analytics'!U$98:U$125,Lists!$C$5:$C$32,$G30)","v":0},{"$f":"SUMIFS('Portfolio Analytics'!V$98:V$125,Lists!$C$5:$C$32,$G30)","v":0},{"$f":"SUMIFS('Portfolio Analytics'!W$98:W$125,Lists!$C$5:$C$32,$G30)","v":0},{"$f":"SUMIFS('Portfolio Analytics'!X$98:X$125,Lists!$C$5:$C$32,$G30)","v":0},{"$f":"SUMIFS('Portfolio Analytics'!Y$98:Y$125,Lists!$C$5:$C$32,$G30)","v":0},{"$f":"SUMIFS('Portfolio Analytics'!Z$98:Z$125,Lists!$C$5:$C$32,$G30)","v":0},{"$f":"SUMIFS('Portfolio Analytics'!AA$98:AA$125,Lists!$C$5:$C$32,$G30)","v":0},{"$f":"SUMIFS('Portfolio Analytics'!AB$98:AB$125,Lists!$C$5:$C$32,$G30)","v":0},{"$f":"SUMIFS('Portfolio Analytics'!AC$98:AC$125,Lists!$C$5:$C$32,$G30)","v":0},{"$f":"SUMIFS('Portfolio Analytics'!AD$98:AD$125,Lists!$C$5:$C$32,$G30)","v":0},{"$f":"SUMIFS('Portfolio Analytics'!AE$98:AE$125,Lists!$C$5:$C$32,$G30)","v":0},{"$f":"SUMIFS('Portfolio Analytics'!AF$98:AF$125,Lists!$C$5:$C$32,$G30)","v":0},{"$f":"SUMIFS('Portfolio Analytics'!AG$98:AG$125,Lists!$C$5:$C$32,$G30)","v":0},{"$f":"SUMIFS('Portfolio Analytics'!AH$98:AH$125,Lists!$C$5:$C$32,$G30)","v":0},{"$f":"SUMIFS('Portfolio Analytics'!AI$98:AI$125,Lists!$C$5:$C$32,$G30)","v":2332.1},{"$f":"SUMIFS('Portfolio Analytics'!AJ$98:AJ$125,Lists!$C$5:$C$32,$G30)","v":0},{"$f":"SUMIFS('Portfolio Analytics'!AK$98:AK$125,Lists!$C$5:$C$32,$G30)","v":0},{"$f":"SUMIFS('Portfolio Analytics'!AL$98:AL$125,Lists!$C$5:$C$32,$G30)","v":0},{"$f":"SUMIFS('Portfolio Analytics'!AM$98:AM$125,Lists!$C$5:$C$32,$G30)","v":0},{"$f":"SUMIFS('Portfolio Analytics'!AN$98:AN$125,Lists!$C$5:$C$32,$G30)","v":0}]
[null,null,null,null,null,null,"Hydro (Small)","MW",null,{"$f":"SUMIFS('Portfolio Analytics'!E$98:E$125,Lists!$C$5:$C$32,$G31)","v":0},{"$f":"SUMIFS('Portfolio Analytics'!F$98:F$125,Lists!$C$5:$C$32,$G31)","v":0},{"$f":"SUMIFS('Portfolio Analytics'!G$98:G$125,Lists!$C$5:$C$32,$G31)","v":0},{"$f":"SUMIFS('Portfolio Analytics'!H$98:H$125,Lists!$C$5:$C$32,$G31)","v":0},{"$f":"SUMIFS('Portfolio Analytics'!I$98:I$125,Lists!$C$5:$C$32,$G31)","v":0},{"$f":"SUMIFS('Portfolio Analytics'!J$98:J$125,Lists!$C$5:$C$32,$G31)","v":0},{"$f":"SUMIFS('Portfolio Analytics'!K$98:K$125,Lists!$C$5:$C$32,$G31)","v":0},{"$f":"SUMIFS('Portfolio Analytics'!L$98:L$125,Lists!$C$5:$C$32,$G31)","v":0},{"$f":"SUMIFS('Portfolio Analytics'!M$98:M$125,Lists!$C$5:$C$32,$G31)","v":0},{"$f":"SUMIFS('Portfolio Analytics'!N$98:N$125,Lists!$C$5:$C$32,$G31)","v":0},{"$f":"SUMIFS('Portfolio Analytics'!O$98:O$125,Lists!$C$5:$C$32,$G31)","v":0},{"$f":"SUMIFS('Portfolio Analytics'!P$98:P$125,Lists!$C$5:$C$32,$G31)","v":0},{"$f":"SUMIFS('Portfolio Analytics'!Q$98:Q$125,Lists!$C$5:$C$32,$G31)","v":0},{"$f":"SUMIFS('Portfolio Analytics'!R$98:R$125,Lists!$C$5:$C$32,$G31)","v":0},{"$f":"SUMIFS('Portfolio Analytics'!S$98:S$125,Lists!$C$5:$C$32,$G31)","v":0},{"$f":"SUMIFS('Portfolio Analytics'!T$98:T$125,Lists!$C$5:$C$32,$G31)","v":0},{"$f":"SUMIFS('Portfolio Analytics'!U$98:U$125,Lists!$C$5:$C$32,$G31)","v":0},{"$f":"SUMIFS('Portfolio Analytics'!V$98:V$125,Lists!$C$5:$C$32,$G31)","v":0},{"$f":"SUMIFS('Portfolio Analytics'!W$98:W$125,Lists!$C$5:$C$32,$G31)","v":0},{"$f":"SUMIFS('Portfolio Analytics'!X$98:X$125,Lists!$C$5:$C$32,$G31)","v":0},{"$f":"SUMIFS('Portfolio Analytics'!Y$98:Y$125,Lists!$C$5:$C$32,$G31)","v":0},{"$f":"SUMIFS('Portfolio Analytics'!Z$98:Z$125,Lists!$C$5:$C$32,$G31)","v":0},{"$f":"SUMIFS('Portfolio Analytics'!AA$98:AA$125,Lists!$C$5:$C$32,$G31)","v":0},{"$f":"SUMIFS('Portfolio Analytics'!AB$98:AB$125,Lists!$C$5:$C$32,$G31)","v":0},{"$f":"SUMIFS('Portfolio Analytics'!AC$98:AC$125,Lists!$C$5:$C$32,$G31)","v":0},{"$f":"SUMIFS('Portfolio Analytics'!AD$98:AD$125,Lists!$C$5:$C$32,$G31)","v":0},{"$f":"SUMIFS('Portfolio Analytics'!AE$98:AE$125,Lists!$C$5:$C$32,$G31)","v":0},{"$f":"SUMIFS('Portfolio Analytics'!AF$98:AF$125,Lists!$C$5:$C$32,$G31)","v":0},{"$f":"SUMIFS('Portfolio Analytics'!AG$98:AG$125,Lists!$C$5:$C$32,$G31)","v":0},{"$f":"SUMIFS('Portfolio Analytics'!AH$98:AH$125,Lists!$C$5:$C$32,$G31)","v":0},{"$f":"SUMIFS('Portfolio Analytics'!AI$98:AI$125,Lists!$C$5:$C$32,$G31)","v":0},{"$f":"SUMIFS('Portfolio Analytics'!AJ$98:AJ$125,Lists!$C$5:$C$32,$G31)","v":0},{"$f":"SUMIFS('Portfolio Analytics'!AK$98:AK$125,Lists!$C$5:$C$32,$G31)","v":0},{"$f":"SUMIFS('Portfolio Analytics'!AL$98:AL$125,Lists!$C$5:$C$32,$G31)","v":0},{"$f":"SUMIFS('Portfolio Analytics'!AM$98:AM$125,Lists!$C$5:$C$32,$G31)","v":0},{"$f":"SUMIFS('Portfolio Analytics'!AN$98:AN$125,Lists!$C$5:$C$32,$G31)","v":0}]
[null,null,null,null,null,null,"Wind","MW",null,{"$f":"SUMIFS('Portfolio Analytics'!E$98:E$125,Lists!$C$5:$C$32,$G32)","v":0},{"$f":"SUMIFS('Portfolio Analytics'!F$98:F$125,Lists!$C$5:$C$32,$G32)","v":0},{"$f":"SUMIFS('Portfolio Analytics'!G$98:G$125,Lists!$C$5:$C$32,$G32)","v":0},{"$f":"SUMIFS('Portfolio Analytics'!H$98:H$125,Lists!$C$5:$C$32,$G32)","v":0},{"$f":"SUMIFS('Portfolio Analytics'!I$98:I$125,Lists!$C$5:$C$32,$G32)","v":0},{"$f":"SUMIFS('Portfolio Analytics'!J$98:J$125,Lists!$C$5:$C$32,$G32)","v":0},{"$f":"SUMIFS('Portfolio Analytics'!K$98:K$125,Lists!$C$5:$C$32,$G32)","v":34},{"$f":"SUMIFS('Portfolio Analytics'!L$98:L$125,Lists!$C$5:$C$32,$G32)","v":2931.83},{"$f":"SUMIFS('Portfolio Analytics'!M$98:M$125,Lists!$C$5:$C$32,$G32)","v":3218.83},{"$f":"SUMIFS('Portfolio Analytics'!N$98:N$125,Lists!$C$5:$C$32,$G32)","v":3311},{"$f":"SUMIFS('Portfolio Analytics'!O$98:O$125,Lists!$C$5:$C$32,$G32)","v":0},{"$f":"SUMIFS('Portfolio Analytics'!P$98:P$125,Lists!$C$5:$C$32,$G32)","v":3311},{"$f":"SUMIFS('Portfolio Analytics'!Q$98:Q$125,Lists!$C$5:$C$32,$G32)","v":0},{"$f":"SUMIFS('Portfolio Analytics'!R$98:R$125,Lists!$C$5:$C$32,$G32)","v":0},{"$f":"SUMIFS('Portfolio Analytics'!S$98:S$125,Lists!$C$5:$C$32,$G32)","v":0},{"$f":"SUMIFS('Portfolio Analytics'!T$98:T$125,Lists!$C$5:$C$32,$G32)","v":4700.93},{"$f":"SUMIFS('Portfolio Analytics'!U$98:U$125,Lists!$C$5:$C$32,$G32)","v":0},{"$f":"SUMIFS('Portfolio Analytics'!V$98:V$125,Lists!$C$5:$C$32,$G32)","v":0},{"$f":"SUMIFS('Portfolio Analytics'!W$98:W$125,Lists!$C$5:$C$32,$G32)","v":0},{"$f":"SUMIFS('Portfolio Analytics'!X$98:X$125,Lists!$C$5:$C$32,$G32)","v":0},{"$f":"SUMIFS('Portfolio Analytics'!Y$98:Y$125,Lists!$C$5:$C$32,$G32)","v":0},{"$f":"SUMIFS('Portfolio Analytics'!Z$98:Z$125,Lists!$C$5:$C$32,$G32)","v":0},{"$f":"SUMIFS('Portfolio Analytics'!AA$98:AA$125,Lists!$C$5:$C$32,$G32)","v":0},{"$f":"SUMIFS('Portfolio Analytics'!AB$98:AB$125,Lists!$C$5:$C$32,$G32)","v":0},{"$f":"SUMIFS('Portfolio Analytics'!AC$98:AC$125,Lists!$C$5:$C$32,$G32)","v":0},{"$f":"SUMIFS('Portfolio Analytics'!AD$98:AD$125,Lists!$C$5:$C$32,$G32)","v":0},{"$f":"SUMIFS('Portfolio Analytics'!AE$98:AE$125,Lists!$C$5:$C$32,$G32)","v":0},{"$f":"SUMIFS('Portfolio Analytics'!AF$98:AF$125,Lists!$C$5:$C$32,$G32)","v":0},{"$f":"SUMIFS('Portfolio Analytics'!AG$98:AG$125,Lists!$C$5:$C$32,$G32)","v":0},{"$f":"SUMIFS('Portfolio Analytics'!AH$98:AH$125,Lists!$C$5:$C$32,$G32)","v":0},{"$f":"SUMIFS('Portfolio Analytics'!AI$98:AI$125,Lists!$C$5:$C$32,$G32)","v":5200.93},{"$f":"SUMIFS('Portfolio Analytics'!AJ$98:AJ$125,Lists!$C$5:$C$32,$G32)","v":0},{"$f":"SUMIFS('Portfolio Analytics'!AK$98:AK$125,Lists!$C$5:$C$32,$G32)","v":0},{"$f":"SUMIFS('Portfolio Analytics'!AL$98:AL$125,Lists!$C$5:$C$32,$G32)","v":0},{"$f":"SUMIFS('Portfolio Analytics'!AM$98:AM$125,Lists!$C$5:$C$32,$G32)","v":0},{"$f":"SUMIFS('Portfolio Analytics'!AN$98:AN$125,Lists!$C$5:$C$32,$G32)","v":0}]
[null,null,null,null,null,null,"Wind OOS New Tx","MW",null,{"$f":"SUMIFS('Portfolio Analytics'!E$98:E$125,Lists!$C$5:$C$32,$G33)","v":0},{"$f":"SUMIFS('Portfolio Analytics'!F$98:F$125,Lists!$C$5:$C$32,$G33)","v":0},{"$f":"SUMIFS('Portfolio Analytics'!G$98:G$125,Lists!$C$5:$C$32,$G33)","v":0},{"$f":"SUMIFS('Portfolio Analytics'!H$98:H$125,Lists!$C$5:$C$32,$G33)","v":0},{"$f":"SUMIFS('Portfolio Analytics'!I$98:I$125,Lists!$C$5:$C$32,$G33)","v":0},{"$f":"SUMIFS('Portfolio Analytics'!J$98:J$125,Lists!$C$5:$C$32,$G33)","v":0},{"$f":"SUMIFS('Portfolio Analytics'!K$98:K$125,Lists!$C$5:$C$32,$G33)","v":0},{"$f":"SUMIFS('Portfolio Analytics'!L$98:L$125,Lists!$C$5:$C$32,$G33)","v":0},{"$f":"SUMIFS('Portfolio Analytics'!M$98:M$125,Lists!$C$5:$C$32,$G33)","v":0},{"$f":"SUMIFS('Portfolio Analytics'!N$98:N$125,Lists!$C$5:$C$32,$G33)","v":0},{"$f":"SUMIFS('Portfolio Analytics'!O$98:O$125,Lists!$C$5:$C$32,$G33)","v":0},{"$f":"SUMIFS('Portfolio Analytics'!P$98:P$125,Lists!$C$5:$C$32,$G33)","v":0},{"$f":"SUMIFS('Portfolio Analytics'!Q$98:Q$125,Lists!$C$5:$C$32,$G33)","v":0},{"$f":"SUMIFS('Portfolio Analytics'!R$98:R$125,Lists!$C$5:$C$32,$G33)","v":0},{"$f":"SUMIFS('Portfolio Analytics'!S$98:S$125,Lists!$C$5:$C$32,$G33)","v":0},{"$f":"SUMIFS('Portfolio Analytics'!T$98:T$125,Lists!$C$5:$C$32,$G33)","v":1336.87},{"$f":"SUMIFS('Portfolio Analytics'!U$98:U$125,Lists!$C$5:$C$32,$G33)","v":0},{"$f":"SUMIFS('Portfolio Analytics'!V$98:V$125,Lists!$C$5:$C$32,$G33)","v":0},{"$f":"SUMIFS('Portfolio Analytics'!W$98:W$125,Lists!$C$5:$C$32,$G33)","v":0},{"$f":"SUMIFS('Portfolio Analytics'!X$98:X$125,Lists!$C$5:$C$32,$G33)","v":0},{"$f":"SUMIFS('Portfolio Analytics'!Y$98:Y$125,Lists!$C$5:$C$32,$G33)","v":0},{"$f":"SUMIFS('Portfolio Analytics'!Z$98:Z$125,Lists!$C$5:$C$32,$G33)","v":0},{"$f":"SUMIFS('Portfolio Analytics'!AA$98:AA$125,Lists!$C$5:$C$32,$G33)","v":0},{"$f":"SUMIFS('Portfolio Analytics'!AB$98:AB$125,Lists!$C$5:$C$32,$G33)","v":0},{"$f":"SUMIFS('Portfolio Analytics'!AC$98:AC$125,Lists!$C$5:$C$32,$G33)","v":0},{"$f":"SUMIFS('Portfolio Analytics'!AD$98:AD$125,Lists!$C$5:$C$32,$G33)","v":0},{"$f":"SUMIFS('Portfolio Analytics'!AE$98:AE$125,Lists!$C$5:$C$32,$G33)","v":0},{"$f":"SUMIFS('Portfolio Analytics'!AF$98:AF$125,Lists!$C$5:$C$32,$G33)","v":0},{"$f":"SUMIFS('Portfolio Analytics'!AG$98:AG$125,Lists!$C$5:$C$32,$G33)","v":0},{"$f":"SUMIFS('Portfolio Analytics'!AH$98:AH$125,Lists!$C$5:$C$32,$G33)","v":0},{"$f":"SUMIFS('Portfolio Analytics'!AI$98:AI$125,Lists!$C$5:$C$32,$G33)","v":3000},{"$f":"SUMIFS('Portfolio Analytics'!AJ$98:AJ$125,Lists!$C$5:$C$32,$G33)","v":0},{"$f":"SUMIFS('Portfolio Analytics'!AK$98:AK$125,Lists!$C$5:$C$32,$G33)","v":0},{"$f":"SUMIFS('Portfolio Analytics'!AL$98:AL$125,Lists!$C$5:$C$32,$G33)","v":0},{"$f":"SUMIFS('Portfolio Analytics'!AM$98:AM$125,Lists!$C$5:$C$32,$G33)","v":0},{"$f":"SUMIFS('Portfolio Analytics'!AN$98:AN$125,Lists!$C$5:$C$32,$G33)","v":0}]
[null,null,null,null,null,null,"Offshore Wind","MW",null,{"$f":"SUMIFS('Portfolio Analytics'!E$98:E$125,Lists!$C$5:$C$32,$G34)","v":0},{"$f":"SUMIFS('Portfolio Analytics'!F$98:F$125,Lists!$C$5:$C$32,$G34)","v":0},{"$f":"SUMIFS('Portfolio Analytics'!G$98:G$125,Lists!$C$5:$C$32,$G34)","v":0},{"$f":"SUMIFS('Portfolio Analytics'!H$98:H$125,Lists!$C$5:$C$32,$G34)","v":0},{"$f":"SUMIFS('Portfolio Analytics'!I$98:I$125,Lists!$C$5:$C$32,$G34)","v":0},{"$f":"SUMIFS('Portfolio Analytics'!J$98:J$125,Lists!$C$5:$C$32,$G34)","v":0},{"$f":"SUMIFS('Portfolio Analytics'!K$98:K$125,Lists!$C$5:$C$32,$G34)","v":0},{"$f":"SUMIFS('Portfolio Analytics'!L$98:L$125,Lists!$C$5:$C$32,$G34)","v":0},{"$f":"SUMIFS('Portfolio Analytics'!M$98:M$125,Lists!$C$5:$C$32,$G34)","v":0},{"$f":"SUMIFS('Portfolio Analytics'!N$98:N$125,Lists!$C$5:$C$32,$G34)","v":0},{"$f":"SUMIFS('Portfolio Analytics'!O$98:O$125,Lists!$C$5:$C$32,$G34)","v":0},{"$f":"SUMIFS('Portfolio Analytics'!P$98:P$125,Lists!$C$5:$C$32,$G34)","v":0},{"$f":"SUMIFS('Portfolio Analytics'!Q$98:Q$125,Lists!$C$5:$C$32,$G34)","v":0},{"$f":"SUMIFS('Portfolio Analytics'!R$98:R$125,Lists!$C$5:$C$32,$G34)","v":0},{"$f":"SUMIFS('Portfolio Analytics'!S$98:S$125,Lists!$C$5:$C$32,$G34)","v":0},{"$f":"SUMIFS('Portfolio Analytics'!T$98:T$125,Lists!$C$5:$C$32,$G34)","v":0},{"$f":"SUMIFS('Portfolio Analytics'!U$98:U$125,Lists!$C$5:$C$32,$G34)","v":0},{"$f":"SUMIFS('Portfolio Analytics'!V$98:V$125,Lists!$C$5:$C$32,$G34)","v":0},{"$f":"SUMIFS('Portfolio Analytics'!W$98:W$125,Lists!$C$5:$C$32,$G34)","v":0},{"$f":"SUMIFS('Portfolio Analytics'!X$98:X$125,Lists!$C$5:$C$32,$G34)","v":0},{"$f":"SUMIFS('Portfolio Analytics'!Y$98:Y$125,Lists!$C$5:$C$32,$G34)","v":0},{"$f":"SUMIFS('Portfolio Analytics'!Z$98:Z$125,Lists!$C$5:$C$32,$G34)","v":0},{"$f":"SUMIFS('Portfolio Analytics'!AA$98:AA$125,Lists!$C$5:$C$32,$G34)","v":0},{"$f":"SUMIFS('Portfolio Analytics'!AB$98:AB$125,Lists!$C$5:$C$32,$G34)","v":0},{"$f":"SUMIFS('Portfolio Analytics'!AC$98:AC$125,Lists!$C$5:$C$32,$G34)","v":0},{"$f":"SUMIFS('Portfolio Analytics'!AD$98:AD$125,Lists!$C$5:$C$32,$G34)","v":0},{"$f":"SUMIFS('Portfolio Analytics'!AE$98:AE$125,Lists!$C$5:$C$32,$G34)","v":0},{"$f":"SUMIFS('Portfolio Analytics'!AF$98:AF$125,Lists!$C$5:$C$32,$G34)","v":0},{"$f":"SUMIFS('Portfolio Analytics'!AG$98:AG$125,Lists!$C$5:$C$32,$G34)","v":0},{"$f":"SUMIFS('Portfolio Analytics'!AH$98:AH$125,Lists!$C$5:$C$32,$G34)","v":0},{"$f":"SUMIFS('Portfolio Analytics'!AI$98:AI$125,Lists!$C$5:$C$32,$G34)","v":0},{"$f":"SUMIFS('Portfolio Analytics'!AJ$98:AJ$125,Lists!$C$5:$C$32,$G34)","v":0},{"$f":"SUMIFS('Portfolio Analytics'!AK$98:AK$125,Lists!$C$5:$C$32,$G34)","v":0},{"$f":"SUMIFS('Portfolio Analytics'!AL$98:AL$125,Lists!$C$5:$C$32,$G34)","v":0},{"$f":"SUMIFS('Portfolio Analytics'!AM$98:AM$125,Lists!$C$5:$C$32,$G34)","v":0},{"$f":"SUMIFS('Portfolio Analytics'!AN$98:AN$125,Lists!$C$5:$C$32,$G34)","v":0}]
[null,null,null,null,null,null,"Solar","MW",null,{"$f":"SUMIFS('Portfolio Analytics'!E$98:E$125,Lists!$C$5:$C$32,$G35)","v":0},{"$f":"SUMIFS('Portfolio Analytics'!F$98:F$125,Lists!$C$5:$C$32,$G35)","v":0},{"$f":"SUMIFS('Portfolio Analytics'!G$98:G$125,Lists!$C$5:$C$32,$G35)","v":0},{"$f":"SUMIFS('Portfolio Analytics'!H$98:H$125,Lists!$C$5:$C$32,$G35)","v":0},{"$f":"SUMIFS('Portfolio Analytics'!I$98:I$125,Lists!$C$5:$C$32,$G35)","v":0},{"$f":"SUMIFS('Portfolio Analytics'!J$98:J$125,Lists!$C$5:$C$32,$G35)","v":2000},{"$f":"SUMIFS('Portfolio Analytics'!K$98:K$125,Lists!$C$5:$C$32,$G35)","v":4000},{"$f":"SUMIFS('Portfolio Analytics'!L$98:L$125,Lists!$C$5:$C$32,$G35)","v":6000},{"$f":"SUMIFS('Portfolio Analytics'!M$98:M$125,Lists!$C$5:$C$32,$G35)","v":7999.9999999999991},{"$f":"SUMIFS('Portfolio Analytics'!N$98:N$125,Lists!$C$5:$C$32,$G35)","v":10731.52},{"$f":"SUMIFS('Portfolio Analytics'!O$98:O$125,Lists!$C$5:$C$32,$G35)","v":0},{"$f":"SUMIFS('Portfolio Analytics'!P$98:P$125,Lists!$C$5:$C$32,$G35)","v":15947.49},{"$f":"SUMIFS('Portfolio Analytics'!Q$98:Q$125,Lists!$C$5:$C$32,$G35)","v":0},{"$f":"SUMIFS('Portfolio Analytics'!R$98:R$125,Lists!$C$5:$C$32,$G35)","v":0},{"$f":"SUMIFS('Portfolio Analytics'!S$98:S$125,Lists!$C$5:$C$32,$G35)","v":0},{"$f":"SUMIFS('Portfolio Analytics'!T$98:T$125,Lists!$C$5:$C$32,$G35)","v":26259.069999999996},{"$f":"SUMIFS('Portfolio Analytics'!U$98:U$125,Lists!$C$5:$C$32,$G35)","v":0},{"$f":"SUMIFS('Portfolio Analytics'!V$98:V$125,Lists!$C$5:$C$32,$G35)","v":0},{"$f":"SUMIFS('Portfolio Analytics'!W$98:W$125,Lists!$C$5:$C$32,$G35)","v":0},{"$f":"SUMIFS('Portfolio Analytics'!X$98:X$125,Lists!$C$5:$C$32,$G35)","v":0},{"$f":"SUMIFS('Portfolio Analytics'!Y$98:Y$125,Lists!$C$5:$C$32,$G35)","v":0},{"$f":"SUMIFS('Portfolio Analytics'!Z$98:Z$125,Lists!$C$5:$C$32,$G35)","v":0},{"$f":"SUMIFS('Portfolio Analytics'!AA$98:AA$125,Lists!$C$5:$C$32,$G35)","v":0},{"$f":"SUMIFS('Portfolio Analytics'!AB$98:AB$125,Lists!$C$5:$C$32,$G35)","v":0},{"$f":"SUMIFS('Portfolio Analytics'!AC$98:AC$125,Lists!$C$5:$C$32,$G35)","v":0},{"$f":"SUMIFS('Portfolio Analytics'!AD$98:AD$125,Lists!$C$5:$C$32,$G35)","v":0},{"$f":"SUMIFS('Portfolio Analytics'!AE$98:AE$125,Lists!$C$5:$C$32,$G35)","v":0},{"$f":"SUMIFS('Portfolio Analytics'!AF$98:AF$125,Lists!$C$5:$C$32,$G35)","v":0},{"$f":"SUMIFS('Portfolio Analytics'!AG$98:AG$125,Lists!$C$5:$C$32,$G35)","v":0},{"$f":"SUMIFS('Portfolio Analytics'!AH$98:AH$125,Lists!$C$5:$C$32,$G35)","v":0},{"$f":"SUMIFS('Portfolio Analytics'!AI$98:AI$125,Lists!$C$5:$C$32,$G35)","v":116508.78},{"$f":"SUMIFS('Portfolio Analytics'!AJ$98:AJ$125,Lists!$C$5:$C$32,$G35)","v":0},{"$f":"SUMIFS('Portfolio Analytics'!AK$98:AK$125,Lists!$C$5:$C$32,$G35)","v":0},{"$f":"SUMIFS('Portfolio Analytics'!AL$98:AL$125,Lists!$C$5:$C$32,$G35)","v":0},{"$f":"SUMIFS('Portfolio Analytics'!AM$98:AM$125,Lists!$C$5:$C$32,$G35)","v":0},{"$f":"SUMIFS('Portfolio Analytics'!AN$98:AN$125,Lists!$C$5:$C$32,$G35)","v":0}]
[null,null,null,null,null,null,"Customer Solar","MW",null,{"$f":"SUMIFS('Portfolio Analytics'!E$98:E$125,Lists!$C$5:$C$32,$G36)","v":0},{"$f":"SUMIFS('Portfolio Analytics'!F$98:F$125,Lists!$C$5:$C$32,$G36)","v":0},{"$f":"SUMIFS('Portfolio Analytics'!G$98:G$125,Lists!$C$5:$C$32,$G36)","v":0},{"$f":"SUMIFS('Portfolio Analytics'!H$98:H$125,Lists!$C$5:$C$32,$G36)","v":0},{"$f":"SUMIFS('Portfolio Analytics'!I$98:I$125,Lists!$C$5:$C$32,$G36)","v":0},{"$f":"SUMIFS('Portfolio Analytics'!J$98:J$125,Lists!$C$5:$C$32,$G36)","v":0},{"$f":"SUMIFS('Portfolio Analytics'!K$98:K$125,Lists!$C$5:$C$32,$G36)","v":0},{"$f":"SUMIFS('Portfolio Analytics'!L$98:L$125,Lists!$C$5:$C$32,$G36)","v":0},{"$f":"SUMIFS('Portfolio Analytics'!M$98:M$125,Lists!$C$5:$C$32,$G36)","v":0},{"$f":"SUMIFS('Portfolio Analytics'!N$98:N$125,Lists!$C$5:$C$32,$G36)","v":0},{"$f":"SUMIFS('Portfolio Analytics'!O$98:O$125,Lists!$C$5:$C$32,$G36)","v":0},{"$f":"SUMIFS('Portfolio Analytics'!P$98:P$125,Lists!$C$5:$C$32,$G36)","v":0},{"$f":"SUMIFS('Portfolio Analytics'!Q$98:Q$125,Lists!$C$5:$C$32,$G36)","v":0},{"$f":"SUMIFS('Portfolio Analytics'!R$98:R$125,Lists!$C$5:$C$32,$G36)","v":0},{"$f":"SUMIFS('Portfolio Analytics'!S$98:S$125,Lists!$C$5:$C$32,$G36)","v":0},{"$f":"SUMIFS('Portfolio Analytics'!T$98:T$125,Lists!$C$5:$C$32,$G36)","v":0},{"$f":"SUMIFS('Portfolio Analytics'!U$98:U$125,Lists!$C$5:$C$32,$G36)","v":0},{"$f":"SUMIFS('Portfolio Analytics'!V$98:V$125,Lists!$C$5:$C$32,$G36)","v":0},{"$f":"SUMIFS('Portfolio Analytics'!W$98:W$125,Lists!$C$5:$C$32,$G36)","v":0},{"$f":"SUMIFS('Portfolio Analytics'!X$98:X$125,Lists!$C$5:$C$32,$G36)","v":0},{"$f":"SUMIFS('Portfolio Analytics'!Y$98:Y$125,Lists!$C$5:$C$32,$G36)","v":0},{"$f":"SUMIFS('Portfolio Analytics'!Z$98:Z$125,Lists!$C$5:$C$32,$G36)","v":0},{"$f":"SUMIFS('Portfolio Analytics'!AA$98:AA$125,Lists!$C$5:$C$32,$G36)","v":0},{"$f":"SUMIFS('Portfolio Analytics'!AB$98:AB$125,Lists!$C$5:$C$32,$G36)","v":0},{"$f":"SUMIFS('Portfolio Analytics'!AC$98:AC$125,Lists!$C$5:$C$32,$G36)","v":0},{"$f":"SUMIFS('Portfolio Analytics'!AD$98:AD$125,Lists!$C$5:$C$32,$G36)","v":0},{"$f":"SUMIFS('Portfolio Analytics'!AE$98:AE$125,Lists!$C$5:$C$32,$G36)","v":0},{"$f":"SUMIFS('Portfolio Analytics'!AF$98:AF$125,Lists!$C$5:$C$32,$G36)","v":0},{"$f":"SUMIFS('Portfolio Analytics'!AG$98:AG$125,Lists!$C$5:$C$32,$G36)","v":0},{"$f":"SUMIFS('Portfolio Analytics'!AH$98:AH$125,Lists!$C$5:$C$32,$G36)","v":0},{"$f":"SUMIFS('Portfolio Analytics'!AI$98:AI$125,Lists!$C$5:$C$32,$G36)","v":0},{"$f":"SUMIFS('Portfolio Analytics'!AJ$98:AJ$125,Lists!$C$5:$C$32,$G36)","v":0},{"$f":"SUMIFS('Portfolio Analytics'!AK$98:AK$125,Lists!$C$5:$C$32,$G36)","v":0},{"$f":"SUMIFS('Portfolio Analytics'!AL$98:AL$125,Lists!$C$5:$C$32,$G36)","v":0},{"$f":"SUMIFS('Portfolio Analytics'!AM$98:AM$125,Lists!$C$5:$C$32,$G36)","v":0},{"$f":"SUMIFS('Portfolio Analytics'!AN$98:AN$125,Lists!$C$5:$C$32,$G36)","v":0}]
[null,null,null,null,null,null,"Battery Storage","MW",null,{"$f":"SUMIFS('Portfolio Analytics'!E$98:E$125,Lists!$C$5:$C$32,$G37)","v":0},{"$f":"SUMIFS('Portfolio Analytics'!F$98:F$125,Lists!$C$5:$C$32,$G37)","v":0},{"$f":"SUMIFS('Portfolio Analytics'!G$98:G$125,Lists!$C$5:$C$32,$G37)","v":0},{"$f":"SUMIFS('Portfolio Analytics'!H$98:H$125,Lists!$C$5:$C$32,$G37)","v":0},{"$f":"SUMIFS('Portfolio Analytics'!I$98:I$125,Lists!$C$5:$C$32,$G37)","v":0},{"$f":"SUMIFS('Portfolio Analytics'!J$98:J$125,Lists!$C$5:$C$32,$G37)","v":2446.75},{"$f":"SUMIFS('Portfolio Analytics'!K$98:K$125,Lists!$C$5:$C$32,$G37)","v":4726.1100000000006},{"$f":"SUMIFS('Portfolio Analytics'!L$98:L$125,Lists!$C$5:$C$32,$G37)","v":4726.1100000000006},{"$f":"SUMIFS('Portfolio Analytics'!M$98:M$125,Lists!$C$5:$C$32,$G37)","v":4892.49},{"$f":"SUMIFS('Portfolio Analytics'!N$98:N$125,Lists!$C$5:$C$32,$G37)","v":6610.8},{"$f":"SUMIFS('Portfolio Analytics'!O$98:O$125,Lists!$C$5:$C$32,$G37)","v":0},{"$f":"SUMIFS('Portfolio Analytics'!P$98:P$125,Lists!$C$5:$C$32,$G37)","v":9835.3299999999981},{"$f":"SUMIFS('Portfolio Analytics'!Q$98:Q$125,Lists!$C$5:$C$32,$G37)","v":0},{"$f":"SUMIFS('Portfolio Analytics'!R$98:R$125,Lists!$C$5:$C$32,$G37)","v":0},{"$f":"SUMIFS('Portfolio Analytics'!S$98:S$125,Lists!$C$5:$C$32,$G37)","v":0},{"$f":"SUMIFS('Portfolio Analytics'!T$98:T$125,Lists!$C$5:$C$32,$G37)","v":12428.339999999998},{"$f":"SUMIFS('Portfolio Analytics'!U$98:U$125,Lists!$C$5:$C$32,$G37)","v":0},{"$f":"SUMIFS('Portfolio Analytics'!V$98:V$125,Lists!$C$5:$C$32,$G37)","v":0},{"$f":"SUMIFS('Portfolio Analytics'!W$98:W$125,Lists!$C$5:$C$32,$G37)","v":0},{"$f":"SUMIFS('Portfolio Analytics'!X$98:X$125,Lists!$C$5:$C$32,$G37)","v":0},{"$f":"SUMIFS('Portfolio Analytics'!Y$98:Y$125,Lists!$C$5:$C$32,$G37)","v":0},{"$f":"SUMIFS('Portfolio Analytics'!Z$98:Z$125,Lists!$C$5:$C$32,$G37)","v":0},{"$f":"SUMIFS('Portfolio Analytics'!AA$98:AA$125,Lists!$C$5:$C$32,$G37)","v":0},{"$f":"SUMIFS('Portfolio Analytics'!AB$98:AB$125,Lists!$C$5:$C$32,$G37)","v":0},{"$f":"SUMIFS('Portfolio Analytics'!AC$98:AC$125,Lists!$C$5:$C$32,$G37)","v":0},{"$f":"SUMIFS('Portfolio Analytics'!AD$98:AD$125,Lists!$C$5:$C$32,$G37)","v":0},{"$f":"SUMIFS('Portfolio Analytics'!AE$98:AE$125,Lists!$C$5:$C$32,$G37)","v":0},{"$f":"SUMIFS('Portfolio Analytics'!AF$98:AF$125,Lists!$C$5:$C$32,$G37)","v":0},{"$f":"SUMIFS('Portfolio Analytics'!AG$98:AG$125,Lists!$C$5:$C$32,$G37)","v":0},{"$f":"SUMIFS('Portfolio Analytics'!AH$98:AH$125,Lists!$C$5:$C$32,$G37)","v":0},{"$f":"SUMIFS('Portfolio Analytics'!AI$98:AI$125,Lists!$C$5:$C$32,$G37)","v":59216.11},{"$f":"SUMIFS('Portfolio Analytics'!AJ$98:AJ$125,Lists!$C$5:$C$32,$G37)","v":0},{"$f":"SUMIFS('Portfolio Analytics'!AK$98:AK$125,Lists!$C$5:$C$32,$G37)","v":0},{"$f":"SUMIFS('Portfolio Analytics'!AL$98:AL$125,Lists!$C$5:$C$32,$G37)","v":0},{"$f":"SUMIFS('Portfolio Analytics'!AM$98:AM$125,Lists!$C$5:$C$32,$G37)","v":0},{"$f":"SUMIFS('Portfolio Analytics'!AN$98:AN$125,Lists!$C$5:$C$32,$G37)","v":0}]
[null,null,null,null,null,null,"Pumped Storage","MW",null,{"$f":"SUMIFS('Portfolio Analytics'!E$98:E$125,Lists!$C$5:$C$32,$G38)","v":0},{"$f":"SUMIFS('Portfolio Analytics'!F$98:F$125,Lists!$C$5:$C$32,$G38)","v":0},{"$f":"SUMIFS('Portfolio Analytics'!G$98:G$125,Lists!$C$5:$C$32,$G38)","v":0},{"$f":"SUMIFS('Portfolio Analytics'!H$98:H$125,Lists!$C$5:$C$32,$G38)","v":0},{"$f":"SUMIFS('Portfolio Analytics'!I$98:I$125,Lists!$C$5:$C$32,$G38)","v":0},{"$f":"SUMIFS('Portfolio Analytics'!J$98:J$125,Lists!$C$5:$C$32,$G38)","v":0},{"$f":"SUMIFS('Portfolio Analytics'!K$98:K$125,Lists!$C$5:$C$32,$G38)","v":0},{"$f":"SUMIFS('Portfolio Analytics'!L$98:L$125,Lists!$C$5:$C$32,$G38)","v":0},{"$f":"SUMIFS('Portfolio Analytics'!M$98:M$125,Lists!$C$5:$C$32,$G38)","v":0},{"$f":"SUMIFS('Portfolio Analytics'!N$98:N$125,Lists!$C$5:$C$32,$G38)","v":0},{"$f":"SUMIFS('Portfolio Analytics'!O$98:O$125,Lists!$C$5:$C$32,$G38)","v":0},{"$f":"SUMIFS('Portfolio Analytics'!P$98:P$125,Lists!$C$5:$C$32,$G38)","v":1986.47},{"$f":"SUMIFS('Portfolio Analytics'!Q$98:Q$125,Lists!$C$5:$C$32,$G38)","v":0},{"$f":"SUMIFS('Portfolio Analytics'!R$98:R$125,Lists!$C$5:$C$32,$G38)","v":0},{"$f":"SUMIFS('Portfolio Analytics'!S$98:S$125,Lists!$C$5:$C$32,$G38)","v":0},{"$f":"SUMIFS('Portfolio Analytics'!T$98:T$125,Lists!$C$5:$C$32,$G38)","v":1986.47},{"$f":"SUMIFS('Portfolio Analytics'!U$98:U$125,Lists!$C$5:$C$32,$G38)","v":0},{"$f":"SUMIFS('Portfolio Analytics'!V$98:V$125,Lists!$C$5:$C$32,$G38)","v":0},{"$f":"SUMIFS('Portfolio Analytics'!W$98:W$125,Lists!$C$5:$C$32,$G38)","v":0},{"$f":"SUMIFS('Portfolio Analytics'!X$98:X$125,Lists!$C$5:$C$32,$G38)","v":0},{"$f":"SUMIFS('Portfolio Analytics'!Y$98:Y$125,Lists!$C$5:$C$32,$G38)","v":0},{"$f":"SUMIFS('Portfolio Analytics'!Z$98:Z$125,Lists!$C$5:$C$32,$G38)","v":0},{"$f":"SUMIFS('Portfolio Analytics'!AA$98:AA$125,Lists!$C$5:$C$32,$G38)","v":0},{"$f":"SUMIFS('Portfolio Analytics'!AB$98:AB$125,Lists!$C$5:$C$32,$G38)","v":0},{"$f":"SUMIFS('Portfolio Analytics'!AC$98:AC$125,Lists!$C$5:$C$32,$G38)","v":0},{"$f":"SUMIFS('Portfolio Analytics'!AD$98:AD$125,Lists!$C$5:$C$32,$G38)","v":0},{"$f":"SUMIFS('Portfolio Analytics'!AE$98:AE$125,Lists!$C$5:$C$32,$G38)","v":0},{"$f":"SUMIFS('Portfolio Analytics'!AF$98:AF$125,Lists!$C$5:$C$32,$G38)","v":0},{"$f":"SUMIFS('Portfolio Analytics'!AG$98:AG$125,Lists!$C$5:$C$32,$G38)","v":0},{"$f":"SUMIFS('Portfolio Analytics'!AH$98:AH$125,Lists!$C$5:$C$32,$G38)","v":0},{"$f":"SUMIFS('Portfolio Analytics'!AI$98:AI$125,Lists!$C$5:$C$32,$G38)","v":1986.47},{"$f":"SUMIFS('Portfolio Analytics'!AJ$98:AJ$125,Lists!$C$5:$C$32,$G38)","v":0},{"$f":"SUMIFS('Portfolio Analytics'!AK$98:AK$125,Lists!$C$5:$C$32,$G38)","v":0},{"$f":"SUMIFS('Portfolio Analytics'!AL$98:AL$125,Lists!$C$5:$C$32,$G38)","v":0},{"$f":"SUMIFS('Portfolio Analytics'!AM$98:AM$125,Lists!$C$5:$C$32,$G38)","v":0},{"$f":"SUMIFS('Portfolio Analytics'!AN$98:AN$125,Lists!$C$5:$C$32,$G38)","v":0}]
[null,null,null,null,null,null,"Shed DR","MW",null,{"$f":"SUMIFS('Portfolio Analytics'!E$98:E$125,Lists!$C$5:$C$32,$G39)","v":0},{"$f":"SUMIFS('Portfolio Analytics'!F$98:F$125,Lists!$C$5:$C$32,$G39)","v":0},{"$f":"SUMIFS('Portfolio Analytics'!G$98:G$125,Lists!$C$5:$C$32,$G39)","v":0},{"$f":"SUMIFS('Portfolio Analytics'!H$98:H$125,Lists!$C$5:$C$32,$G39)","v":0},{"$f":"SUMIFS('Portfolio Analytics'!I$98:I$125,Lists!$C$5:$C$32,$G39)","v":0},{"$f":"SUMIFS('Portfolio Analytics'!J$98:J$125,Lists!$C$5:$C$32,$G39)","v":0},{"$f":"SUMIFS('Portfolio Analytics'!K$98:K$125,Lists!$C$5:$C$32,$G39)","v":0},{"$f":"SUMIFS('Portfolio Analytics'!L$98:L$125,Lists!$C$5:$C$32,$G39)","v":0},{"$f":"SUMIFS('Portfolio Analytics'!M$98:M$125,Lists!$C$5:$C$32,$G39)","v":0},{"$f":"SUMIFS('Portfolio Analytics'!N$98:N$125,Lists!$C$5:$C$32,$G39)","v":0},{"$f":"SUMIFS('Portfolio Analytics'!O$98:O$125,Lists!$C$5:$C$32,$G39)","v":0},{"$f":"SUMIFS('Portfolio Analytics'!P$98:P$125,Lists!$C$5:$C$32,$G39)","v":0},{"$f":"SUMIFS('Portfolio Analytics'!Q$98:Q$125,Lists!$C$5:$C$32,$G39)","v":0},{"$f":"SUMIFS('Portfolio Analytics'!R$98:R$125,Lists!$C$5:$C$32,$G39)","v":0},{"$f":"SUMIFS('Portfolio Analytics'!S$98:S$125,Lists!$C$5:$C$32,$G39)","v":0},{"$f":"SUMIFS('Portfolio Analytics'!T$98:T$125,Lists!$C$5:$C$32,$G39)","v":0},{"$f":"SUMIFS('Portfolio Analytics'!U$98:U$125,Lists!$C$5:$C$32,$G39)","v":0},{"$f":"SUMIFS('Portfolio Analytics'!V$98:V$125,Lists!$C$5:$C$32,$G39)","v":0},{"$f":"SUMIFS('Portfolio Analytics'!W$98:W$125,Lists!$C$5:$C$32,$G39)","v":0},{"$f":"SUMIFS('Portfolio Analytics'!X$98:X$125,Lists!$C$5:$C$32,$G39)","v":0},{"$f":"SUMIFS('Portfolio Analytics'!Y$98:Y$125,Lists!$C$5:$C$32,$G39)","v":0},{"$f":"SUMIFS('Portfolio Analytics'!Z$98:Z$125,Lists!$C$5:$C$32,$G39)","v":0},{"$f":"SUMIFS('Portfolio Analytics'!AA$98:AA$125,Lists!$C$5:$C$32,$G39)","v":0},{"$f":"SUMIFS('Portfolio Analytics'!AB$98:AB$125,Lists!$C$5:$C$32,$G39)","v":0},{"$f":"SUMIFS('Portfolio Analytics'!AC$98:AC$125,Lists!$C$5:$C$32,$G39)","v":0},{"$f":"SUMIFS('Portfolio Analytics'!AD$98:AD$125,Lists!$C$5:$C$32,$G39)","v":0},{"$f":"SUMIFS('Portfolio Analytics'!AE$98:AE$125,Lists!$C$5:$C$32,$G39)","v":0},{"$f":"SUMIFS('Portfolio Analytics'!AF$98:AF$125,Lists!$C$5:$C$32,$G39)","v":0},{"$f":"SUMIFS('Portfolio Analytics'!AG$98:AG$125,Lists!$C$5:$C$32,$G39)","v":0},{"$f":"SUMIFS('Portfolio Analytics'!AH$98:AH$125,Lists!$C$5:$C$32,$G39)","v":0},{"$f":"SUMIFS('Portfolio Analytics'!AI$98:AI$125,Lists!$C$5:$C$32,$G39)","v":0},{"$f":"SUMIFS('Portfolio Analytics'!AJ$98:AJ$125,Lists!$C$5:$C$32,$G39)","v":0},{"$f":"SUMIFS('Portfolio Analytics'!AK$98:AK$125,Lists!$C$5:$C$32,$G39)","v":0},{"$f":"SUMIFS('Portfolio Analytics'!AL$98:AL$125,Lists!$C$5:$C$32,$G39)","v":0},{"$f":"SUMIFS('Portfolio Analytics'!AM$98:AM$125,Lists!$C$5:$C$32,$G39)","v":0},{"$f":"SUMIFS('Portfolio Analytics'!AN$98:AN$125,Lists!$C$5:$C$32,$G39)","v":0}]
[null,null,null,null,null,null,"Gas Capacity Not Retained","MW",null,{"$f":"-J78","v":0},{"$f":"-K78","v":0},0,0,0,0,0,0,0,0,0,0,0,0,0,0,0,0,0,0,0,0,0,0,0,0,0,0,0,0,-3769.76,{"$f":"-INDEX('Portfolio Analytics'!$E$315:$AN$315,MATCH(Dashboard!AO$53,'Portfolio Analytics'!$E$295:$AN$295,0))","v":0},{"$f":"-INDEX('Portfolio Analytics'!$E$315:$AN$315,MATCH(Dashboard!AP$53,'Portfolio Analytics'!$E$295:$AN$295,0))","v":0},{"$f":"-INDEX('Portfolio Analytics'!$E$315:$AN$315,MATCH(Dashboard!AQ$53,'Portfolio Analytics'!$E$295:$AN$295,0))","v":0},{"$f":"-INDEX('Portfolio Analytics'!$E$315:$AN$315,MATCH(Dashboard!AR$53,'Portfolio Analytics'!$E$295:$AN$295,0))","v":0},{"$f":"-INDEX('Portfolio Analytics'!$E$315:$AN$315,MATCH(Dashboard!AS$53,'Portfolio Analytics'!$E$295:$AN$295,0))","v":0}]
[null,null,null,null,null,null,"In-State Renewables","MW",null,{"$f":"'Portfolio Analytics'!E462","v":0},{"$f":"'Portfolio Analytics'!F462","v":0},{"$f":"'Portfolio Analytics'!G462","v":0},{"$f":"'Portfolio Analytics'!H462","v":0},{"$f":"'Portfolio Analytics'!I462","v":0},{"$f":"'Portfolio Analytics'!J462","v":2000},{"$f":"'Portfolio Analytics'!K462","v":4034},{"$f":"'Portfolio Analytics'!L462","v":8931.83},{"$f":"'Portfolio Analytics'!M462","v":11218.83},{"$f":"'Portfolio Analytics'!N462","v":14177.52},{"$f":"'Portfolio Analytics'!O462","v":0},{"$f":"'Portfolio Analytics'!P462","v":19393.489999999998},{"$f":"'Portfolio Analytics'!Q462","v":0},{"$f":"'Portfolio Analytics'!R462","v":0},{"$f":"'Portfolio Analytics'!S462","v":0},{"$f":"'Portfolio Analytics'!T462","v":31094.999999999996},{"$f":"'Portfolio Analytics'!U462","v":0},{"$f":"'Portfolio Analytics'!V462","v":0},{"$f":"'Portfolio Analytics'!W462","v":0},{"$f":"'Portfolio Analytics'!X462","v":0},{"$f":"'Portfolio Analytics'!Y462","v":0},{"$f":"'Portfolio Analytics'!Z462","v":0},{"$f":"'Portfolio Analytics'!AA462","v":0},{"$f":"'Portfolio Analytics'!AB462","v":0},{"$f":"'Portfolio Analytics'!AC462","v":0},{"$f":"'Portfolio Analytics'!AD462","v":0},{"$f":"'Portfolio Analytics'!AE462","v":0},{"$f":"'Portfolio Analytics'!AF462","v":0},{"$f":"'Portfolio Analytics'!AG462","v":0},{"$f":"'Portfolio Analytics'!AH462","v":0},{"$f":"'Portfolio Analytics'!AI462","v":125188.66},{"$f":"'Portfolio Analytics'!AJ462","v":0},{"$f":"'Portfolio Analytics'!AK462","v":0},{"$f":"'Portfolio Analytics'!AL462","v":0},{"$f":"'Portfolio Analytics'!AM462","v":0},{"$f":"'Portfolio Analytics'!AN462","v":0}]
[null,null,null,null,null,null,"Out-Of-State Renewables","MW",null,{"$f":"'Portfolio Analytics'!E463","v":0},{"$f":"'Portfolio Analytics'!F463","v":0},{"$f":"'Portfolio Analytics'!G463","v":0},{"$f":"'Portfolio Analytics'!H463","v":0},{"$f":"'Portfolio Analytics'!I463","v":0},{"$f":"'Portfolio Analytics'!J463","v":0},{"$f":"'Portfolio Analytics'!K463","v":0},{"$f":"'Portfolio Analytics'!L463","v":0},{"$f":"'Portfolio Analytics'!M463","v":0},{"$f":"'Portfolio Analytics'!N463","v":0},{"$f":"'Portfolio Analytics'!O463","v":0},{"$f":"'Portfolio Analytics'!P463","v":0},{"$f":"'Portfolio Analytics'!Q463","v":0},{"$f":"'Portfolio Analytics'!R463","v":0},{"$f":"'Portfolio Analytics'!S463","v":0},{"$f":"'Portfolio Analytics'!T463","v":1336.87},{"$f":"'Portfolio Analytics'!U463","v":0},{"$f":"'Portfolio Analytics'!V463","v":0},{"$f":"'Portfolio Analytics'!W463","v":0},{"$f":"'Portfolio Analytics'!X463","v":0},{"$f":"'Portfolio Analytics'!Y463","v":0},{"$f":"'Portfolio Analytics'!Z463","v":0},{"$f":"'Portfolio Analytics'!AA463","v":0},{"$f":"'Portfolio Analytics'!AB463","v":0},{"$f":"'Portfolio Analytics'!AC463","v":0},{"$f":"'Portfolio Analytics'!AD463","v":0},{"$f":"'Portfolio Analytics'!AE463","v":0},{"$f":"'Portfolio Analytics'!AF463","v":0},{"$f":"'Portfolio Analytics'!AG463","v":0},{"$f":"'Portfolio Analytics'!AH463","v":0},{"$f":"'Portfolio Analytics'!AI463","v":3000},{"$f":"'Portfolio Analytics'!AJ463","v":0},{"$f":"'Portfolio Analytics'!AK463","v":0},{"$f":"'Portfolio Analytics'!AL463","v":0},{"$f":"'Portfolio Analytics'!AM463","v":0},{"$f":"'Portfolio Analytics'!AN463","v":0}]
[]
[null,null,null,null,null,null,"Selected Battery Duration ",null,null,2015,{"$f":"J44+1","v":2016},2017,2018,2019,2020,2021,2022,2023,2024,2025,2026,2027,2028,2029,2030,2031,2032,2033,2034,2035,2036,2037,2038,2039,2040,2041,2042,2043,2044,2045,2046,2047,2048,2049,2050]
[null,null,null,null,null,null,"Pumped Hydro","hr",null,{"$f":"SUMIFS('Portfolio Analytics'!E$29:E$32,'Portfolio Analytics'!$C$29:$C$32,INDEX(Lists!$V$3:$V$6,MATCH(Dashboard!$G45,Lists!$W$3:$W$6,0)))","v":0},{"$f":"SUMIFS('Portfolio Analytics'!F$29:F$32,'Portfolio Analytics'!$C$29:$C$32,INDEX(Lists!$V$3:$V$6,MATCH(Dashboard!$G45,Lists!$W$3:$W$6,0)))","v":0},{"$f":"SUMIFS('Portfolio Analytics'!G$29:G$32,'Portfolio Analytics'!$C$29:$C$32,INDEX(Lists!$V$3:$V$6,MATCH(Dashboard!$G45,Lists!$W$3:$W$6,0)))","v":0},{"$f":"SUMIFS('Portfolio Analytics'!H$29:H$32,'Portfolio Analytics'!$C$29:$C$32,INDEX(Lists!$V$3:$V$6,MATCH(Dashboard!$G45,Lists!$W$3:$W$6,0)))","v":0},{"$f":"SUMIFS('Portfolio Analytics'!I$29:I$32,'Portfolio Analytics'!$C$29:$C$32,INDEX(Lists!$V$3:$V$6,MATCH(Dashboard!$G45,Lists!$W$3:$W$6,0)))","v":0},{"$f":"SUMIFS('Portfolio Analytics'!J$29:J$32,'Portfolio Analytics'!$C$29:$C$32,INDEX(Lists!$V$3:$V$6,MATCH(Dashboard!$G45,Lists!$W$3:$W$6,0)))","v":0},{"$f":"SUMIFS('Portfolio Analytics'!K$29:K$32,'Portfolio Analytics'!$C$29:$C$32,INDEX(Lists!$V$3:$V$6,MATCH(Dashboard!$G45,Lists!$W$3:$W$6,0)))","v":0},{"$f":"SUMIFS('Portfolio Analytics'!L$29:L$32,'Portfolio Analytics'!$C$29:$C$32,INDEX(Lists!$V$3:$V$6,MATCH(Dashboard!$G45,Lists!$W$3:$W$6,0)))","v":0},{"$f":"SUMIFS('Portfolio Analytics'!M$29:M$32,'Portfolio Analytics'!$C$29:$C$32,INDEX(Lists!$V$3:$V$6,MATCH(Dashboard!$G45,Lists!$W$3:$W$6,0)))","v":0},{"$f":"SUMIFS('Portfolio Analytics'!N$29:N$32,'Portfolio Analytics'!$C$29:$C$32,INDEX(Lists!$V$3:$V$6,MATCH(Dashboard!$G45,Lists!$W$3:$W$6,0)))","v":0},{"$f":"SUMIFS('Portfolio Analytics'!O$29:O$32,'Portfolio Analytics'!$C$29:$C$32,INDEX(Lists!$V$3:$V$6,MATCH(Dashboard!$G45,Lists!$W$3:$W$6,0)))","v":0},{"$f":"SUMIFS('Portfolio Analytics'!P$29:P$32,'Portfolio Analytics'!$C$29:$C$32,INDEX(Lists!$V$3:$V$6,MATCH(Dashboard!$G45,Lists!$W$3:$W$6,0)))","v":12.000025170276922},{"$f":"SUMIFS('Portfolio Analytics'!Q$29:Q$32,'Portfolio Analytics'!$C$29:$C$32,INDEX(Lists!$V$3:$V$6,MATCH(Dashboard!$G45,Lists!$W$3:$W$6,0)))","v":0},{"$f":"SUMIFS('Portfolio Analytics'!R$29:R$32,'Portfolio Analytics'!$C$29:$C$32,INDEX(Lists!$V$3:$V$6,MATCH(Dashboard!$G45,Lists!$W$3:$W$6,0)))","v":0},{"$f":"SUMIFS('Portfolio Analytics'!S$29:S$32,'Portfolio Analytics'!$C$29:$C$32,INDEX(Lists!$V$3:$V$6,MATCH(Dashboard!$G45,Lists!$W$3:$W$6,0)))","v":0},{"$f":"SUMIFS('Portfolio Analytics'!T$29:T$32,'Portfolio Analytics'!$C$29:$C$32,INDEX(Lists!$V$3:$V$6,MATCH(Dashboard!$G45,Lists!$W$3:$W$6,0)))","v":12.000025170276922},{"$f":"SUMIFS('Portfolio Analytics'!U$29:U$32,'Portfolio Analytics'!$C$29:$C$32,INDEX(Lists!$V$3:$V$6,MATCH(Dashboard!$G45,Lists!$W$3:$W$6,0)))","v":0},{"$f":"SUMIFS('Portfolio Analytics'!V$29:V$32,'Portfolio Analytics'!$C$29:$C$32,INDEX(Lists!$V$3:$V$6,MATCH(Dashboard!$G45,Lists!$W$3:$W$6,0)))","v":0},{"$f":"SUMIFS('Portfolio Analytics'!W$29:W$32,'Portfolio Analytics'!$C$29:$C$32,INDEX(Lists!$V$3:$V$6,MATCH(Dashboard!$G45,Lists!$W$3:$W$6,0)))","v":0},{"$f":"SUMIFS('Portfolio Analytics'!X$29:X$32,'Portfolio Analytics'!$C$29:$C$32,INDEX(Lists!$V$3:$V$6,MATCH(Dashboard!$G45,Lists!$W$3:$W$6,0)))","v":0},{"$f":"SUMIFS('Portfolio Analytics'!Y$29:Y$32,'Portfolio Analytics'!$C$29:$C$32,INDEX(Lists!$V$3:$V$6,MATCH(Dashboard!$G45,Lists!$W$3:$W$6,0)))","v":0},{"$f":"SUMIFS('Portfolio Analytics'!Z$29:Z$32,'Portfolio Analytics'!$C$29:$C$32,INDEX(Lists!$V$3:$V$6,MATCH(Dashboard!$G45,Lists!$W$3:$W$6,0)))","v":0},{"$f":"SUMIFS('Portfolio Analytics'!AA$29:AA$32,'Portfolio Analytics'!$C$29:$C$32,INDEX(Lists!$V$3:$V$6,MATCH(Dashboard!$G45,Lists!$W$3:$W$6,0)))","v":0},{"$f":"SUMIFS('Portfolio Analytics'!AB$29:AB$32,'Portfolio Analytics'!$C$29:$C$32,INDEX(Lists!$V$3:$V$6,MATCH(Dashboard!$G45,Lists!$W$3:$W$6,0)))","v":0},{"$f":"SUMIFS('Portfolio Analytics'!AC$29:AC$32,'Portfolio Analytics'!$C$29:$C$32,INDEX(Lists!$V$3:$V$6,MATCH(Dashboard!$G45,Lists!$W$3:$W$6,0)))","v":0},{"$f":"SUMIFS('Portfolio Analytics'!AD$29:AD$32,'Portfolio Analytics'!$C$29:$C$32,INDEX(Lists!$V$3:$V$6,MATCH(Dashboard!$G45,Lists!$W$3:$W$6,0)))","v":0},{"$f":"SUMIFS('Portfolio Analytics'!AE$29:AE$32,'Portfolio Analytics'!$C$29:$C$32,INDEX(Lists!$V$3:$V$6,MATCH(Dashboard!$G45,Lists!$W$3:$W$6,0)))","v":0},{"$f":"SUMIFS('Portfolio Analytics'!AF$29:AF$32,'Portfolio Analytics'!$C$29:$C$32,INDEX(Lists!$V$3:$V$6,MATCH(Dashboard!$G45,Lists!$W$3:$W$6,0)))","v":0},{"$f":"SUMIFS('Portfolio Analytics'!AG$29:AG$32,'Portfolio Analytics'!$C$29:$C$32,INDEX(Lists!$V$3:$V$6,MATCH(Dashboard!$G45,Lists!$W$3:$W$6,0)))","v":0},{"$f":"SUMIFS('Portfolio Analytics'!AH$29:AH$32,'Portfolio Analytics'!$C$29:$C$32,INDEX(Lists!$V$3:$V$6,MATCH(Dashboard!$G45,Lists!$W$3:$W$6,0)))","v":0},{"$f":"SUMIFS('Portfolio Analytics'!AI$29:AI$32,'Portfolio Analytics'!$C$29:$C$32,INDEX(Lists!$V$3:$V$6,MATCH(Dashboard!$G45,Lists!$W$3:$W$6,0)))","v":12.000025170276922},{"$f":"SUMIFS('Portfolio Analytics'!AJ$29:AJ$32,'Portfolio Analytics'!$C$29:$C$32,INDEX(Lists!$V$3:$V$6,MATCH(Dashboard!$G45,Lists!$W$3:$W$6,0)))","v":0},{"$f":"SUMIFS('Portfolio Analytics'!AK$29:AK$32,'Portfolio Analytics'!$C$29:$C$32,INDEX(Lists!$V$3:$V$6,MATCH(Dashboard!$G45,Lists!$W$3:$W$6,0)))","v":0},{"$f":"SUMIFS('Portfolio Analytics'!AL$29:AL$32,'Portfolio Analytics'!$C$29:$C$32,INDEX(Lists!$V$3:$V$6,MATCH(Dashboard!$G45,Lists!$W$3:$W$6,0)))","v":0},{"$f":"SUMIFS('Portfolio Analytics'!AM$29:AM$32,'Portfolio Analytics'!$C$29:$C$32,INDEX(Lists!$V$3:$V$6,MATCH(Dashboard!$G45,Lists!$W$3:$W$6,0)))","v":0},{"$f":"SUMIFS('Portfolio Analytics'!AN$29:AN$32,'Portfolio Analytics'!$C$29:$C$32,INDEX(Lists!$V$3:$V$6,MATCH(Dashboard!$G45,Lists!$W$3:$W$6,0)))","v":0}]
[null,null,null,null,null,null,"Li Battery ","hr",null,{"$f":"SUMIFS('Portfolio Analytics'!E$29:E$32,'Portfolio Analytics'!$C$29:$C$32,INDEX(Lists!$V$3:$V$6,MATCH(Dashboard!$G46,Lists!$W$3:$W$6,0)))","v":0},{"$f":"SUMIFS('Portfolio Analytics'!F$29:F$32,'Portfolio Analytics'!$C$29:$C$32,INDEX(Lists!$V$3:$V$6,MATCH(Dashboard!$G46,Lists!$W$3:$W$6,0)))","v":0},{"$f":"SUMIFS('Portfolio Analytics'!G$29:G$32,'Portfolio Analytics'!$C$29:$C$32,INDEX(Lists!$V$3:$V$6,MATCH(Dashboard!$G46,Lists!$W$3:$W$6,0)))","v":0},{"$f":"SUMIFS('Portfolio Analytics'!H$29:H$32,'Portfolio Analytics'!$C$29:$C$32,INDEX(Lists!$V$3:$V$6,MATCH(Dashboard!$G46,Lists!$W$3:$W$6,0)))","v":0},{"$f":"SUMIFS('Portfolio Analytics'!I$29:I$32,'Portfolio Analytics'!$C$29:$C$32,INDEX(Lists!$V$3:$V$6,MATCH(Dashboard!$G46,Lists!$W$3:$W$6,0)))","v":0},{"$f":"SUMIFS('Portfolio Analytics'!J$29:J$32,'Portfolio Analytics'!$C$29:$C$32,INDEX(Lists!$V$3:$V$6,MATCH(Dashboard!$G46,Lists!$W$3:$W$6,0)))","v":4},{"$f":"SUMIFS('Portfolio Analytics'!K$29:K$32,'Portfolio Analytics'!$C$29:$C$32,INDEX(Lists!$V$3:$V$6,MATCH(Dashboard!$G46,Lists!$W$3:$W$6,0)))","v":4},{"$f":"SUMIFS('Portfolio Analytics'!L$29:L$32,'Portfolio Analytics'!$C$29:$C$32,INDEX(Lists!$V$3:$V$6,MATCH(Dashboard!$G46,Lists!$W$3:$W$6,0)))","v":4},{"$f":"SUMIFS('Portfolio Analytics'!M$29:M$32,'Portfolio Analytics'!$C$29:$C$32,INDEX(Lists!$V$3:$V$6,MATCH(Dashboard!$G46,Lists!$W$3:$W$6,0)))","v":4.0000040878979828},{"$f":"SUMIFS('Portfolio Analytics'!N$29:N$32,'Portfolio Analytics'!$C$29:$C$32,INDEX(Lists!$V$3:$V$6,MATCH(Dashboard!$G46,Lists!$W$3:$W$6,0)))","v":3.9999984873237731},{"$f":"SUMIFS('Portfolio Analytics'!O$29:O$32,'Portfolio Analytics'!$C$29:$C$32,INDEX(Lists!$V$3:$V$6,MATCH(Dashboard!$G46,Lists!$W$3:$W$6,0)))","v":0},{"$f":"SUMIFS('Portfolio Analytics'!P$29:P$32,'Portfolio Analytics'!$C$29:$C$32,INDEX(Lists!$V$3:$V$6,MATCH(Dashboard!$G46,Lists!$W$3:$W$6,0)))","v":3.9999989832572984},{"$f":"SUMIFS('Portfolio Analytics'!Q$29:Q$32,'Portfolio Analytics'!$C$29:$C$32,INDEX(Lists!$V$3:$V$6,MATCH(Dashboard!$G46,Lists!$W$3:$W$6,0)))","v":0},{"$f":"SUMIFS('Portfolio Analytics'!R$29:R$32,'Portfolio Analytics'!$C$29:$C$32,INDEX(Lists!$V$3:$V$6,MATCH(Dashboard!$G46,Lists!$W$3:$W$6,0)))","v":0},{"$f":"SUMIFS('Portfolio Analytics'!S$29:S$32,'Portfolio Analytics'!$C$29:$C$32,INDEX(Lists!$V$3:$V$6,MATCH(Dashboard!$G46,Lists!$W$3:$W$6,0)))","v":0},{"$f":"SUMIFS('Portfolio Analytics'!T$29:T$32,'Portfolio Analytics'!$C$29:$C$32,INDEX(Lists!$V$3:$V$6,MATCH(Dashboard!$G46,Lists!$W$3:$W$6,0)))","v":3.769690883899218},{"$f":"SUMIFS('Portfolio Analytics'!U$29:U$32,'Portfolio Analytics'!$C$29:$C$32,INDEX(Lists!$V$3:$V$6,MATCH(Dashboard!$G46,Lists!$W$3:$W$6,0)))","v":0},{"$f":"SUMIFS('Portfolio Analytics'!V$29:V$32,'Portfolio Analytics'!$C$29:$C$32,INDEX(Lists!$V$3:$V$6,MATCH(Dashboard!$G46,Lists!$W$3:$W$6,0)))","v":0},{"$f":"SUMIFS('Portfolio Analytics'!W$29:W$32,'Portfolio Analytics'!$C$29:$C$32,INDEX(Lists!$V$3:$V$6,MATCH(Dashboard!$G46,Lists!$W$3:$W$6,0)))","v":0},{"$f":"SUMIFS('Portfolio Analytics'!X$29:X$32,'Portfolio Analytics'!$C$29:$C$32,INDEX(Lists!$V$3:$V$6,MATCH(Dashboard!$G46,Lists!$W$3:$W$6,0)))","v":0},{"$f":"SUMIFS('Portfolio Analytics'!Y$29:Y$32,'Portfolio Analytics'!$C$29:$C$32,INDEX(Lists!$V$3:$V$6,MATCH(Dashboard!$G46,Lists!$W$3:$W$6,0)))","v":0},{"$f":"SUMIFS('Portfolio Analytics'!Z$29:Z$32,'Portfolio Analytics'!$C$29:$C$32,INDEX(Lists!$V$3:$V$6,MATCH(Dashboard!$G46,Lists!$W$3:$W$6,0)))","v":0},{"$f":"SUMIFS('Portfolio Analytics'!AA$29:AA$32,'Portfolio Analytics'!$C$29:$C$32,INDEX(Lists!$V$3:$V$6,MATCH(Dashboard!$G46,Lists!$W$3:$W$6,0)))","v":0},{"$f":"SUMIFS('Portfolio Analytics'!AB$29:AB$32,'Portfolio Analytics'!$C$29:$C$32,INDEX(Lists!$V$3:$V$6,MATCH(Dashboard!$G46,Lists!$W$3:$W$6,0)))","v":0},{"$f":"SUMIFS('Portfolio Analytics'!AC$29:AC$32,'Portfolio Analytics'!$C$29:$C$32,INDEX(Lists!$V$3:$V$6,MATCH(Dashboard!$G46,Lists!$W$3:$W$6,0)))","v":0},{"$f":"SUMIFS('Portfolio Analytics'!AD$29:AD$32,'Portfolio Analytics'!$C$29:$C$32,INDEX(Lists!$V$3:$V$6,MATCH(Dashboard!$G46,Lists!$W$3:$W$6,0)))","v":0},{"$f":"SUMIFS('Portfolio Analytics'!AE$29:AE$32,'Portfolio Analytics'!$C$29:$C$32,INDEX(Lists!$V$3:$V$6,MATCH(Dashboard!$G46,Lists!$W$3:$W$6,0)))","v":0},{"$f":"SUMIFS('Portfolio Analytics'!AF$29:AF$32,'Portfolio Analytics'!$C$29:$C$32,INDEX(Lists!$V$3:$V$6,MATCH(Dashboard!$G46,Lists!$W$3:$W$6,0)))","v":0},{"$f":"SUMIFS('Portfolio Analytics'!AG$29:AG$32,'Portfolio Analytics'!$C$29:$C$32,INDEX(Lists!$V$3:$V$6,MATCH(Dashboard!$G46,Lists!$W$3:$W$6,0)))","v":0},{"$f":"SUMIFS('Portfolio Analytics'!AH$29:AH$32,'Portfolio Analytics'!$C$29:$C$32,INDEX(Lists!$V$3:$V$6,MATCH(Dashboard!$G46,Lists!$W$3:$W$6,0)))","v":0},{"$f":"SUMIFS('Portfolio Analytics'!AI$29:AI$32,'Portfolio Analytics'!$C$29:$C$32,INDEX(Lists!$V$3:$V$6,MATCH(Dashboard!$G46,Lists!$W$3:$W$6,0)))","v":7.0469524256152587},{"$f":"SUMIFS('Portfolio Analytics'!AJ$29:AJ$32,'Portfolio Analytics'!$C$29:$C$32,INDEX(Lists!$V$3:$V$6,MATCH(Dashboard!$G46,Lists!$W$3:$W$6,0)))","v":0},{"$f":"SUMIFS('Portfolio Analytics'!AK$29:AK$32,'Portfolio Analytics'!$C$29:$C$32,INDEX(Lists!$V$3:$V$6,MATCH(Dashboard!$G46,Lists!$W$3:$W$6,0)))","v":0},{"$f":"SUMIFS('Portfolio Analytics'!AL$29:AL$32,'Portfolio Analytics'!$C$29:$C$32,INDEX(Lists!$V$3:$V$6,MATCH(Dashboard!$G46,Lists!$W$3:$W$6,0)))","v":0},{"$f":"SUMIFS('Portfolio Analytics'!AM$29:AM$32,'Portfolio Analytics'!$C$29:$C$32,INDEX(Lists!$V$3:$V$6,MATCH(Dashboard!$G46,Lists!$W$3:$W$6,0)))","v":0},{"$f":"SUMIFS('Portfolio Analytics'!AN$29:AN$32,'Portfolio Analytics'!$C$29:$C$32,INDEX(Lists!$V$3:$V$6,MATCH(Dashboard!$G46,Lists!$W$3:$W$6,0)))","v":0}]
[null,null,null,null,null,null,"BTM Li Battery","hr",null,{"$f":"SUMIFS('Portfolio Analytics'!E$29:E$32,'Portfolio Analytics'!$C$29:$C$32,INDEX(Lists!$V$3:$V$6,MATCH(Dashboard!$G47,Lists!$W$3:$W$6,0)))","v":0},{"$f":"SUMIFS('Portfolio Analytics'!F$29:F$32,'Portfolio Analytics'!$C$29:$C$32,INDEX(Lists!$V$3:$V$6,MATCH(Dashboard!$G47,Lists!$W$3:$W$6,0)))","v":0},{"$f":"SUMIFS('Portfolio Analytics'!G$29:G$32,'Portfolio Analytics'!$C$29:$C$32,INDEX(Lists!$V$3:$V$6,MATCH(Dashboard!$G47,Lists!$W$3:$W$6,0)))","v":0},{"$f":"SUMIFS('Portfolio Analytics'!H$29:H$32,'Portfolio Analytics'!$C$29:$C$32,INDEX(Lists!$V$3:$V$6,MATCH(Dashboard!$G47,Lists!$W$3:$W$6,0)))","v":0},{"$f":"SUMIFS('Portfolio Analytics'!I$29:I$32,'Portfolio Analytics'!$C$29:$C$32,INDEX(Lists!$V$3:$V$6,MATCH(Dashboard!$G47,Lists!$W$3:$W$6,0)))","v":0},{"$f":"SUMIFS('Portfolio Analytics'!J$29:J$32,'Portfolio Analytics'!$C$29:$C$32,INDEX(Lists!$V$3:$V$6,MATCH(Dashboard!$G47,Lists!$W$3:$W$6,0)))","v":0},{"$f":"SUMIFS('Portfolio Analytics'!K$29:K$32,'Portfolio Analytics'!$C$29:$C$32,INDEX(Lists!$V$3:$V$6,MATCH(Dashboard!$G47,Lists!$W$3:$W$6,0)))","v":0},{"$f":"SUMIFS('Portfolio Analytics'!L$29:L$32,'Portfolio Analytics'!$C$29:$C$32,INDEX(Lists!$V$3:$V$6,MATCH(Dashboard!$G47,Lists!$W$3:$W$6,0)))","v":0},{"$f":"SUMIFS('Portfolio Analytics'!M$29:M$32,'Portfolio Analytics'!$C$29:$C$32,INDEX(Lists!$V$3:$V$6,MATCH(Dashboard!$G47,Lists!$W$3:$W$6,0)))","v":0},{"$f":"SUMIFS('Portfolio Analytics'!N$29:N$32,'Portfolio Analytics'!$C$29:$C$32,INDEX(Lists!$V$3:$V$6,MATCH(Dashboard!$G47,Lists!$W$3:$W$6,0)))","v":0},{"$f":"SUMIFS('Portfolio Analytics'!O$29:O$32,'Portfolio Analytics'!$C$29:$C$32,INDEX(Lists!$V$3:$V$6,MATCH(Dashboard!$G47,Lists!$W$3:$W$6,0)))","v":0},{"$f":"SUMIFS('Portfolio Analytics'!P$29:P$32,'Portfolio Analytics'!$C$29:$C$32,INDEX(Lists!$V$3:$V$6,MATCH(Dashboard!$G47,Lists!$W$3:$W$6,0)))","v":0},{"$f":"SUMIFS('Portfolio Analytics'!Q$29:Q$32,'Portfolio Analytics'!$C$29:$C$32,INDEX(Lists!$V$3:$V$6,MATCH(Dashboard!$G47,Lists!$W$3:$W$6,0)))","v":0},{"$f":"SUMIFS('Portfolio Analytics'!R$29:R$32,'Portfolio Analytics'!$C$29:$C$32,INDEX(Lists!$V$3:$V$6,MATCH(Dashboard!$G47,Lists!$W$3:$W$6,0)))","v":0},{"$f":"SUMIFS('Portfolio Analytics'!S$29:S$32,'Portfolio Analytics'!$C$29:$C$32,INDEX(Lists!$V$3:$V$6,MATCH(Dashboard!$G47,Lists!$W$3:$W$6,0)))","v":0},{"$f":"SUMIFS('Portfolio Analytics'!T$29:T$32,'Portfolio Analytics'!$C$29:$C$32,INDEX(Lists!$V$3:$V$6,MATCH(Dashboard!$G47,Lists!$W$3:$W$6,0)))","v":0},{"$f":"SUMIFS('Portfolio Analytics'!U$29:U$32,'Portfolio Analytics'!$C$29:$C$32,INDEX(Lists!$V$3:$V$6,MATCH(Dashboard!$G47,Lists!$W$3:$W$6,0)))","v":0},{"$f":"SUMIFS('Portfolio Analytics'!V$29:V$32,'Portfolio Analytics'!$C$29:$C$32,INDEX(Lists!$V$3:$V$6,MATCH(Dashboard!$G47,Lists!$W$3:$W$6,0)))","v":0},{"$f":"SUMIFS('Portfolio Analytics'!W$29:W$32,'Portfolio Analytics'!$C$29:$C$32,INDEX(Lists!$V$3:$V$6,MATCH(Dashboard!$G47,Lists!$W$3:$W$6,0)))","v":0},{"$f":"SUMIFS('Portfolio Analytics'!X$29:X$32,'Portfolio Analytics'!$C$29:$C$32,INDEX(Lists!$V$3:$V$6,MATCH(Dashboard!$G47,Lists!$W$3:$W$6,0)))","v":0},{"$f":"SUMIFS('Portfolio Analytics'!Y$29:Y$32,'Portfolio Analytics'!$C$29:$C$32,INDEX(Lists!$V$3:$V$6,MATCH(Dashboard!$G47,Lists!$W$3:$W$6,0)))","v":0},{"$f":"SUMIFS('Portfolio Analytics'!Z$29:Z$32,'Portfolio Analytics'!$C$29:$C$32,INDEX(Lists!$V$3:$V$6,MATCH(Dashboard!$G47,Lists!$W$3:$W$6,0)))","v":0},{"$f":"SUMIFS('Portfolio Analytics'!AA$29:AA$32,'Portfolio Analytics'!$C$29:$C$32,INDEX(Lists!$V$3:$V$6,MATCH(Dashboard!$G47,Lists!$W$3:$W$6,0)))","v":0},{"$f":"SUMIFS('Portfolio Analytics'!AB$29:AB$32,'Portfolio Analytics'!$C$29:$C$32,INDEX(Lists!$V$3:$V$6,MATCH(Dashboard!$G47,Lists!$W$3:$W$6,0)))","v":0},{"$f":"SUMIFS('Portfolio Analytics'!AC$29:AC$32,'Portfolio Analytics'!$C$29:$C$32,INDEX(Lists!$V$3:$V$6,MATCH(Dashboard!$G47,Lists!$W$3:$W$6,0)))","v":0},{"$f":"SUMIFS('Portfolio Analytics'!AD$29:AD$32,'Portfolio Analytics'!$C$29:$C$32,INDEX(Lists!$V$3:$V$6,MATCH(Dashboard!$G47,Lists!$W$3:$W$6,0)))","v":0},{"$f":"SUMIFS('Portfolio Analytics'!AE$29:AE$32,'Portfolio Analytics'!$C$29:$C$32,INDEX(Lists!$V$3:$V$6,MATCH(Dashboard!$G47,Lists!$W$3:$W$6,0)))","v":0},{"$f":"SUMIFS('Portfolio Analytics'!AF$29:AF$32,'Portfolio Analytics'!$C$29:$C$32,INDEX(Lists!$V$3:$V$6,MATCH(Dashboard!$G47,Lists!$W$3:$W$6,0)))","v":0},{"$f":"SUMIFS('Portfolio Analytics'!AG$29:AG$32,'Portfolio Analytics'!$C$29:$C$32,INDEX(Lists!$V$3:$V$6,MATCH(Dashboard!$G47,Lists!$W$3:$W$6,0)))","v":0},{"$f":"SUMIFS('Portfolio Analytics'!AH$29:AH$32,'Portfolio Analytics'!$C$29:$C$32,INDEX(Lists!$V$3:$V$6,MATCH(Dashboard!$G47,Lists!$W$3:$W$6,0)))","v":0},{"$f":"SUMIFS('Portfolio Analytics'!AI$29:AI$32,'Portfolio Analytics'!$C$29:$C$32,INDEX(Lists!$V$3:$V$6,MATCH(Dashboard!$G47,Lists!$W$3:$W$6,0)))","v":0},{"$f":"SUMIFS('Portfolio Analytics'!AJ$29:AJ$32,'Portfolio Analytics'!$C$29:$C$32,INDEX(Lists!$V$3:$V$6,MATCH(Dashboard!$G47,Lists!$W$3:$W$6,0)))","v":0},{"$f":"SUMIFS('Portfolio Analytics'!AK$29:AK$32,'Portfolio Analytics'!$C$29:$C$32,INDEX(Lists!$V$3:$V$6,MATCH(Dashboard!$G47,Lists!$W$3:$W$6,0)))","v":0},{"$f":"SUMIFS('Portfolio Analytics'!AL$29:AL$32,'Portfolio Analytics'!$C$29:$C$32,INDEX(Lists!$V$3:$V$6,MATCH(Dashboard!$G47,Lists!$W$3:$W$6,0)))","v":0},{"$f":"SUMIFS('Portfolio Analytics'!AM$29:AM$32,'Portfolio Analytics'!$C$29:$C$32,INDEX(Lists!$V$3:$V$6,MATCH(Dashboard!$G47,Lists!$W$3:$W$6,0)))","v":0},{"$f":"SUMIFS('Portfolio Analytics'!AN$29:AN$32,'Portfolio Analytics'!$C$29:$C$32,INDEX(Lists!$V$3:$V$6,MATCH(Dashboard!$G47,Lists!$W$3:$W$6,0)))","v":0}]
[null,null,null,null,null,null,"Flow Battery","hr",null,{"$f":"SUMIFS('Portfolio Analytics'!E$29:E$32,'Portfolio Analytics'!$C$29:$C$32,INDEX(Lists!$V$3:$V$6,MATCH(Dashboard!$G48,Lists!$W$3:$W$6,0)))","v":0},{"$f":"SUMIFS('Portfolio Analytics'!F$29:F$32,'Portfolio Analytics'!$C$29:$C$32,INDEX(Lists!$V$3:$V$6,MATCH(Dashboard!$G48,Lists!$W$3:$W$6,0)))","v":0},{"$f":"SUMIFS('Portfolio Analytics'!G$29:G$32,'Portfolio Analytics'!$C$29:$C$32,INDEX(Lists!$V$3:$V$6,MATCH(Dashboard!$G48,Lists!$W$3:$W$6,0)))","v":0},{"$f":"SUMIFS('Portfolio Analytics'!H$29:H$32,'Portfolio Analytics'!$C$29:$C$32,INDEX(Lists!$V$3:$V$6,MATCH(Dashboard!$G48,Lists!$W$3:$W$6,0)))","v":0},{"$f":"SUMIFS('Portfolio Analytics'!I$29:I$32,'Portfolio Analytics'!$C$29:$C$32,INDEX(Lists!$V$3:$V$6,MATCH(Dashboard!$G48,Lists!$W$3:$W$6,0)))","v":0},{"$f":"SUMIFS('Portfolio Analytics'!J$29:J$32,'Portfolio Analytics'!$C$29:$C$32,INDEX(Lists!$V$3:$V$6,MATCH(Dashboard!$G48,Lists!$W$3:$W$6,0)))","v":0},{"$f":"SUMIFS('Portfolio Analytics'!K$29:K$32,'Portfolio Analytics'!$C$29:$C$32,INDEX(Lists!$V$3:$V$6,MATCH(Dashboard!$G48,Lists!$W$3:$W$6,0)))","v":0},{"$f":"SUMIFS('Portfolio Analytics'!L$29:L$32,'Portfolio Analytics'!$C$29:$C$32,INDEX(Lists!$V$3:$V$6,MATCH(Dashboard!$G48,Lists!$W$3:$W$6,0)))","v":0},{"$f":"SUMIFS('Portfolio Analytics'!M$29:M$32,'Portfolio Analytics'!$C$29:$C$32,INDEX(Lists!$V$3:$V$6,MATCH(Dashboard!$G48,Lists!$W$3:$W$6,0)))","v":0},{"$f":"SUMIFS('Portfolio Analytics'!N$29:N$32,'Portfolio Analytics'!$C$29:$C$32,INDEX(Lists!$V$3:$V$6,MATCH(Dashboard!$G48,Lists!$W$3:$W$6,0)))","v":0},{"$f":"SUMIFS('Portfolio Analytics'!O$29:O$32,'Portfolio Analytics'!$C$29:$C$32,INDEX(Lists!$V$3:$V$6,MATCH(Dashboard!$G48,Lists!$W$3:$W$6,0)))","v":0},{"$f":"SUMIFS('Portfolio Analytics'!P$29:P$32,'Portfolio Analytics'!$C$29:$C$32,INDEX(Lists!$V$3:$V$6,MATCH(Dashboard!$G48,Lists!$W$3:$W$6,0)))","v":0},{"$f":"SUMIFS('Portfolio Analytics'!Q$29:Q$32,'Portfolio Analytics'!$C$29:$C$32,INDEX(Lists!$V$3:$V$6,MATCH(Dashboard!$G48,Lists!$W$3:$W$6,0)))","v":0},{"$f":"SUMIFS('Portfolio Analytics'!R$29:R$32,'Portfolio Analytics'!$C$29:$C$32,INDEX(Lists!$V$3:$V$6,MATCH(Dashboard!$G48,Lists!$W$3:$W$6,0)))","v":0},{"$f":"SUMIFS('Portfolio Analytics'!S$29:S$32,'Portfolio Analytics'!$C$29:$C$32,INDEX(Lists!$V$3:$V$6,MATCH(Dashboard!$G48,Lists!$W$3:$W$6,0)))","v":0},{"$f":"SUMIFS('Portfolio Analytics'!T$29:T$32,'Portfolio Analytics'!$C$29:$C$32,INDEX(Lists!$V$3:$V$6,MATCH(Dashboard!$G48,Lists!$W$3:$W$6,0)))","v":0},{"$f":"SUMIFS('Portfolio Analytics'!U$29:U$32,'Portfolio Analytics'!$C$29:$C$32,INDEX(Lists!$V$3:$V$6,MATCH(Dashboard!$G48,Lists!$W$3:$W$6,0)))","v":0},{"$f":"SUMIFS('Portfolio Analytics'!V$29:V$32,'Portfolio Analytics'!$C$29:$C$32,INDEX(Lists!$V$3:$V$6,MATCH(Dashboard!$G48,Lists!$W$3:$W$6,0)))","v":0},{"$f":"SUMIFS('Portfolio Analytics'!W$29:W$32,'Portfolio Analytics'!$C$29:$C$32,INDEX(Lists!$V$3:$V$6,MATCH(Dashboard!$G48,Lists!$W$3:$W$6,0)))","v":0},{"$f":"SUMIFS('Portfolio Analytics'!X$29:X$32,'Portfolio Analytics'!$C$29:$C$32,INDEX(Lists!$V$3:$V$6,MATCH(Dashboard!$G48,Lists!$W$3:$W$6,0)))","v":0},{"$f":"SUMIFS('Portfolio Analytics'!Y$29:Y$32,'Portfolio Analytics'!$C$29:$C$32,INDEX(Lists!$V$3:$V$6,MATCH(Dashboard!$G48,Lists!$W$3:$W$6,0)))","v":0},{"$f":"SUMIFS('Portfolio Analytics'!Z$29:Z$32,'Portfolio Analytics'!$C$29:$C$32,INDEX(Lists!$V$3:$V$6,MATCH(Dashboard!$G48,Lists!$W$3:$W$6,0)))","v":0},{"$f":"SUMIFS('Portfolio Analytics'!AA$29:AA$32,'Portfolio Analytics'!$C$29:$C$32,INDEX(Lists!$V$3:$V$6,MATCH(Dashboard!$G48,Lists!$W$3:$W$6,0)))","v":0},{"$f":"SUMIFS('Portfolio Analytics'!AB$29:AB$32,'Portfolio Analytics'!$C$29:$C$32,INDEX(Lists!$V$3:$V$6,MATCH(Dashboard!$G48,Lists!$W$3:$W$6,0)))","v":0},{"$f":"SUMIFS('Portfolio Analytics'!AC$29:AC$32,'Portfolio Analytics'!$C$29:$C$32,INDEX(Lists!$V$3:$V$6,MATCH(Dashboard!$G48,Lists!$W$3:$W$6,0)))","v":0},{"$f":"SUMIFS('Portfolio Analytics'!AD$29:AD$32,'Portfolio Analytics'!$C$29:$C$32,INDEX(Lists!$V$3:$V$6,MATCH(Dashboard!$G48,Lists!$W$3:$W$6,0)))","v":0},{"$f":"SUMIFS('Portfolio Analytics'!AE$29:AE$32,'Portfolio Analytics'!$C$29:$C$32,INDEX(Lists!$V$3:$V$6,MATCH(Dashboard!$G48,Lists!$W$3:$W$6,0)))","v":0},{"$f":"SUMIFS('Portfolio Analytics'!AF$29:AF$32,'Portfolio Analytics'!$C$29:$C$32,INDEX(Lists!$V$3:$V$6,MATCH(Dashboard!$G48,Lists!$W$3:$W$6,0)))","v":0},{"$f":"SUMIFS('Portfolio Analytics'!AG$29:AG$32,'Portfolio Analytics'!$C$29:$C$32,INDEX(Lists!$V$3:$V$6,MATCH(Dashboard!$G48,Lists!$W$3:$W$6,0)))","v":0},{"$f":"SUMIFS('Portfolio Analytics'!AH$29:AH$32,'Portfolio Analytics'!$C$29:$C$32,INDEX(Lists!$V$3:$V$6,MATCH(Dashboard!$G48,Lists!$W$3:$W$6,0)))","v":0},{"$f":"SUMIFS('Portfolio Analytics'!AI$29:AI$32,'Portfolio Analytics'!$C$29:$C$32,INDEX(Lists!$V$3:$V$6,MATCH(Dashboard!$G48,Lists!$W$3:$W$6,0)))","v":0},{"$f":"SUMIFS('Portfolio Analytics'!AJ$29:AJ$32,'Portfolio Analytics'!$C$29:$C$32,INDEX(Lists!$V$3:$V$6,MATCH(Dashboard!$G48,Lists!$W$3:$W$6,0)))","v":0},{"$f":"SUMIFS('Portfolio Analytics'!AK$29:AK$32,'Portfolio Analytics'!$C$29:$C$32,INDEX(Lists!$V$3:$V$6,MATCH(Dashboard!$G48,Lists!$W$3:$W$6,0)))","v":0},{"$f":"SUMIFS('Portfolio Analytics'!AL$29:AL$32,'Portfolio Analytics'!$C$29:$C$32,INDEX(Lists!$V$3:$V$6,MATCH(Dashboard!$G48,Lists!$W$3:$W$6,0)))","v":0},{"$f":"SUMIFS('Portfolio Analytics'!AM$29:AM$32,'Portfolio Analytics'!$C$29:$C$32,INDEX(Lists!$V$3:$V$6,MATCH(Dashboard!$G48,Lists!$W$3:$W$6,0)))","v":0},{"$f":"SUMIFS('Portfolio Analytics'!AN$29:AN$32,'Portfolio Analytics'!$C$29:$C$32,INDEX(Lists!$V$3:$V$6,MATCH(Dashboard!$G48,Lists!$W$3:$W$6,0)))","v":0}]
[null,null,null,null,null,null,"Note: Optimized duration is a cumulative value reflecting all power and energy capacity built through the reported year."]
[]
[null,null,null,null,null,null,"Total Resource Summary"]
[]
[null,null,null,null,null,null,null,"Unit",null,2015,{"$f":"J53+1","v":2016},2017,2018,2019,2020,2021,2022,2023,2024,2025,2026,2027,2028,2029,2030,2031,2032,2033,2034,2035,2036,2037,2038,2039,2040,2041,2042,2043,2044,2045,2046,2047,2048,2049,2050]
[null,null,null,null,null,null,"Nuclear","MW",null,{"$f":"SUMIFS('Portfolio Analytics'!E$65:E$92,Lists!$C$5:$C$32,$G54)","v":0},{"$f":"SUMIFS('Portfolio Analytics'!F$65:F$92,Lists!$C$5:$C$32,$G54)","v":0},{"$f":"SUMIFS('Portfolio Analytics'!G$65:G$92,Lists!$C$5:$C$32,$G54)","v":0},{"$f":"SUMIFS('Portfolio Analytics'!H$65:H$92,Lists!$C$5:$C$32,$G54)","v":0},{"$f":"SUMIFS('Portfolio Analytics'!I$65:I$92,Lists!$C$5:$C$32,$G54)","v":0},{"$f":"SUMIFS('Portfolio Analytics'!J$65:J$92,Lists!$C$5:$C$32,$G54)","v":2935},{"$f":"SUMIFS('Portfolio Analytics'!K$65:K$92,Lists!$C$5:$C$32,$G54)","v":2935},{"$f":"SUMIFS('Portfolio Analytics'!L$65:L$92,Lists!$C$5:$C$32,$G54)","v":2935},{"$f":"SUMIFS('Portfolio Analytics'!M$65:M$92,Lists!$C$5:$C$32,$G54)","v":2935},{"$f":"SUMIFS('Portfolio Analytics'!N$65:N$92,Lists!$C$5:$C$32,$G54)","v":1785},{"$f":"SUMIFS('Portfolio Analytics'!O$65:O$92,Lists!$C$5:$C$32,$G54)","v":0},{"$f":"SUMIFS('Portfolio Analytics'!P$65:P$92,Lists!$C$5:$C$32,$G54)","v":635},{"$f":"SUMIFS('Portfolio Analytics'!Q$65:Q$92,Lists!$C$5:$C$32,$G54)","v":0},{"$f":"SUMIFS('Portfolio Analytics'!R$65:R$92,Lists!$C$5:$C$32,$G54)","v":0},{"$f":"SUMIFS('Portfolio Analytics'!S$65:S$92,Lists!$C$5:$C$32,$G54)","v":0},{"$f":"SUMIFS('Portfolio Analytics'!T$65:T$92,Lists!$C$5:$C$32,$G54)","v":635},{"$f":"SUMIFS('Portfolio Analytics'!U$65:U$92,Lists!$C$5:$C$32,$G54)","v":0},{"$f":"SUMIFS('Portfolio Analytics'!V$65:V$92,Lists!$C$5:$C$32,$G54)","v":0},{"$f":"SUMIFS('Portfolio Analytics'!W$65:W$92,Lists!$C$5:$C$32,$G54)","v":0},{"$f":"SUMIFS('Portfolio Analytics'!X$65:X$92,Lists!$C$5:$C$32,$G54)","v":0},{"$f":"SUMIFS('Portfolio Analytics'!Y$65:Y$92,Lists!$C$5:$C$32,$G54)","v":0},{"$f":"SUMIFS('Portfolio Analytics'!Z$65:Z$92,Lists!$C$5:$C$32,$G54)","v":0},{"$f":"SUMIFS('Portfolio Analytics'!AA$65:AA$92,Lists!$C$5:$C$32,$G54)","v":0},{"$f":"SUMIFS('Portfolio Analytics'!AB$65:AB$92,Lists!$C$5:$C$32,$G54)","v":0},{"$f":"SUMIFS('Portfolio Analytics'!AC$65:AC$92,Lists!$C$5:$C$32,$G54)","v":0},{"$f":"SUMIFS('Portfolio Analytics'!AD$65:AD$92,Lists!$C$5:$C$32,$G54)","v":0},{"$f":"SUMIFS('Portfolio Analytics'!AE$65:AE$92,Lists!$C$5:$C$32,$G54)","v":0},{"$f":"SUMIFS('Portfolio Analytics'!AF$65:AF$92,Lists!$C$5:$C$32,$G54)","v":0},{"$f":"SUMIFS('Portfolio Analytics'!AG$65:AG$92,Lists!$C$5:$C$32,$G54)","v":0},{"$f":"SUMIFS('Portfolio Analytics'!AH$65:AH$92,Lists!$C$5:$C$32,$G54)","v":0},{"$f":"SUMIFS('Portfolio Analytics'!AI$65:AI$92,Lists!$C$5:$C$32,$G54)","v":635},{"$f":"SUMIFS('Portfolio Analytics'!AJ$65:AJ$92,Lists!$C$5:$C$32,$G54)","v":0},{"$f":"SUMIFS('Portfolio Analytics'!AK$65:AK$92,Lists!$C$5:$C$32,$G54)","v":0},{"$f":"SUMIFS('Portfolio Analytics'!AL$65:AL$92,Lists!$C$5:$C$32,$G54)","v":0},{"$f":"SUMIFS('Portfolio Analytics'!AM$65:AM$92,Lists!$C$5:$C$32,$G54)","v":0},{"$f":"SUMIFS('Portfolio Analytics'!AN$65:AN$92,Lists!$C$5:$C$32,$G54)","v":0}]
[null,null,null,null,null,null,"CHP","MW",null,{"$f":"SUMIFS('Portfolio Analytics'!E$65:E$92,Lists!$C$5:$C$32,$G55)","v":0},{"$f":"SUMIFS('Portfolio Analytics'!F$65:F$92,Lists!$C$5:$C$32,$G55)","v":0},{"$f":"SUMIFS('Portfolio Analytics'!G$65:G$92,Lists!$C$5:$C$32,$G55)","v":0},{"$f":"SUMIFS('Portfolio Analytics'!H$65:H$92,Lists!$C$5:$C$32,$G55)","v":0},{"$f":"SUMIFS('Portfolio Analytics'!I$65:I$92,Lists!$C$5:$C$32,$G55)","v":0},{"$f":"SUMIFS('Portfolio Analytics'!J$65:J$92,Lists!$C$5:$C$32,$G55)","v":2296.02},{"$f":"SUMIFS('Portfolio Analytics'!K$65:K$92,Lists!$C$5:$C$32,$G55)","v":2296.02},{"$f":"SUMIFS('Portfolio Analytics'!L$65:L$92,Lists!$C$5:$C$32,$G55)","v":2296.02},{"$f":"SUMIFS('Portfolio Analytics'!M$65:M$92,Lists!$C$5:$C$32,$G55)","v":2296.02},{"$f":"SUMIFS('Portfolio Analytics'!N$65:N$92,Lists!$C$5:$C$32,$G55)","v":2296.02},{"$f":"SUMIFS('Portfolio Analytics'!O$65:O$92,Lists!$C$5:$C$32,$G55)","v":0},{"$f":"SUMIFS('Portfolio Analytics'!P$65:P$92,Lists!$C$5:$C$32,$G55)","v":2296.02},{"$f":"SUMIFS('Portfolio Analytics'!Q$65:Q$92,Lists!$C$5:$C$32,$G55)","v":0},{"$f":"SUMIFS('Portfolio Analytics'!R$65:R$92,Lists!$C$5:$C$32,$G55)","v":0},{"$f":"SUMIFS('Portfolio Analytics'!S$65:S$92,Lists!$C$5:$C$32,$G55)","v":0},{"$f":"SUMIFS('Portfolio Analytics'!T$65:T$92,Lists!$C$5:$C$32,$G55)","v":2296.02},{"$f":"SUMIFS('Portfolio Analytics'!U$65:U$92,Lists!$C$5:$C$32,$G55)","v":0},{"$f":"SUMIFS('Portfolio Analytics'!V$65:V$92,Lists!$C$5:$C$32,$G55)","v":0},{"$f":"SUMIFS('Portfolio Analytics'!W$65:W$92,Lists!$C$5:$C$32,$G55)","v":0},{"$f":"SUMIFS('Portfolio Analytics'!X$65:X$92,Lists!$C$5:$C$32,$G55)","v":0},{"$f":"SUMIFS('Portfolio Analytics'!Y$65:Y$92,Lists!$C$5:$C$32,$G55)","v":0},{"$f":"SUMIFS('Portfolio Analytics'!Z$65:Z$92,Lists!$C$5:$C$32,$G55)","v":0},{"$f":"SUMIFS('Portfolio Analytics'!AA$65:AA$92,Lists!$C$5:$C$32,$G55)","v":0},{"$f":"SUMIFS('Portfolio Analytics'!AB$65:AB$92,Lists!$C$5:$C$32,$G55)","v":0},{"$f":"SUMIFS('Portfolio Analytics'!AC$65:AC$92,Lists!$C$5:$C$32,$G55)","v":0},{"$f":"SUMIFS('Portfolio Analytics'!AD$65:AD$92,Lists!$C$5:$C$32,$G55)","v":0},{"$f":"SUMIFS('Portfolio Analytics'!AE$65:AE$92,Lists!$C$5:$C$32,$G55)","v":0},{"$f":"SUMIFS('Portfolio Analytics'!AF$65:AF$92,Lists!$C$5:$C$32,$G55)","v":0},{"$f":"SUMIFS('Portfolio Analytics'!AG$65:AG$92,Lists!$C$5:$C$32,$G55)","v":0},{"$f":"SUMIFS('Portfolio Analytics'!AH$65:AH$92,Lists!$C$5:$C$32,$G55)","v":0},{"$f":"SUMIFS('Portfolio Analytics'!AI$65:AI$92,Lists!$C$5:$C$32,$G55)","v":0},{"$f":"SUMIFS('Portfolio Analytics'!AJ$65:AJ$92,Lists!$C$5:$C$32,$G55)","v":0},{"$f":"SUMIFS('Portfolio Analytics'!AK$65:AK$92,Lists!$C$5:$C$32,$G55)","v":0},{"$f":"SUMIFS('Portfolio Analytics'!AL$65:AL$92,Lists!$C$5:$C$32,$G55)","v":0},{"$f":"SUMIFS('Portfolio Analytics'!AM$65:AM$92,Lists!$C$5:$C$32,$G55)","v":0},{"$f":"SUMIFS('Portfolio Analytics'!AN$65:AN$92,Lists!$C$5:$C$32,$G55)","v":0}]
[null,null,null,null,null,null,"Gas","MW",null,{"$f":"SUMIFS('Portfolio Analytics'!E$65:E$92,Lists!$C$5:$C$32,$G56)","v":0},{"$f":"SUMIFS('Portfolio Analytics'!F$65:F$92,Lists!$C$5:$C$32,$G56)","v":0},{"$f":"SUMIFS('Portfolio Analytics'!G$65:G$92,Lists!$C$5:$C$32,$G56)","v":0},{"$f":"SUMIFS('Portfolio Analytics'!H$65:H$92,Lists!$C$5:$C$32,$G56)","v":0},{"$f":"SUMIFS('Portfolio Analytics'!I$65:I$92,Lists!$C$5:$C$32,$G56)","v":0},{"$f":"SUMIFS('Portfolio Analytics'!J$65:J$92,Lists!$C$5:$C$32,$G56)","v":27562.339999999997},{"$f":"SUMIFS('Portfolio Analytics'!K$65:K$92,Lists!$C$5:$C$32,$G56)","v":25113.34},{"$f":"SUMIFS('Portfolio Analytics'!L$65:L$92,Lists!$C$5:$C$32,$G56)","v":25113.34},{"$f":"SUMIFS('Portfolio Analytics'!M$65:M$92,Lists!$C$5:$C$32,$G56)","v":25113.34},{"$f":"SUMIFS('Portfolio Analytics'!N$65:N$92,Lists!$C$5:$C$32,$G56)","v":25113.34},{"$f":"SUMIFS('Portfolio Analytics'!O$65:O$92,Lists!$C$5:$C$32,$G56)","v":0},{"$f":"SUMIFS('Portfolio Analytics'!P$65:P$92,Lists!$C$5:$C$32,$G56)","v":25113.34},{"$f":"SUMIFS('Portfolio Analytics'!Q$65:Q$92,Lists!$C$5:$C$32,$G56)","v":0},{"$f":"SUMIFS('Portfolio Analytics'!R$65:R$92,Lists!$C$5:$C$32,$G56)","v":0},{"$f":"SUMIFS('Portfolio Analytics'!S$65:S$92,Lists!$C$5:$C$32,$G56)","v":0},{"$f":"SUMIFS('Portfolio Analytics'!T$65:T$92,Lists!$C$5:$C$32,$G56)","v":25113.34},{"$f":"SUMIFS('Portfolio Analytics'!U$65:U$92,Lists!$C$5:$C$32,$G56)","v":0},{"$f":"SUMIFS('Portfolio Analytics'!V$65:V$92,Lists!$C$5:$C$32,$G56)","v":0},{"$f":"SUMIFS('Portfolio Analytics'!W$65:W$92,Lists!$C$5:$C$32,$G56)","v":0},{"$f":"SUMIFS('Portfolio Analytics'!X$65:X$92,Lists!$C$5:$C$32,$G56)","v":0},{"$f":"SUMIFS('Portfolio Analytics'!Y$65:Y$92,Lists!$C$5:$C$32,$G56)","v":0},{"$f":"SUMIFS('Portfolio Analytics'!Z$65:Z$92,Lists!$C$5:$C$32,$G56)","v":0},{"$f":"SUMIFS('Portfolio Analytics'!AA$65:AA$92,Lists!$C$5:$C$32,$G56)","v":0},{"$f":"SUMIFS('Portfolio Analytics'!AB$65:AB$92,Lists!$C$5:$C$32,$G56)","v":0},{"$f":"SUMIFS('Portfolio Analytics'!AC$65:AC$92,Lists!$C$5:$C$32,$G56)","v":0},{"$f":"SUMIFS('Portfolio Analytics'!AD$65:AD$92,Lists!$C$5:$C$32,$G56)","v":0},{"$f":"SUMIFS('Portfolio Analytics'!AE$65:AE$92,Lists!$C$5:$C$32,$G56)","v":0},{"$f":"SUMIFS('Portfolio Analytics'!AF$65:AF$92,Lists!$C$5:$C$32,$G56)","v":0},{"$f":"SUMIFS('Portfolio Analytics'!AG$65:AG$92,Lists!$C$5:$C$32,$G56)","v":0},{"$f":"SUMIFS('Portfolio Analytics'!AH$65:AH$92,Lists!$C$5:$C$32,$G56)","v":0},{"$f":"SUMIFS('Portfolio Analytics'!AI$65:AI$92,Lists!$C$5:$C$32,$G56)","v":21343.58},{"$f":"SUMIFS('Portfolio Analytics'!AJ$65:AJ$92,Lists!$C$5:$C$32,$G56)","v":0},{"$f":"SUMIFS('Portfolio Analytics'!AK$65:AK$92,Lists!$C$5:$C$32,$G56)","v":0},{"$f":"SUMIFS('Portfolio Analytics'!AL$65:AL$92,Lists!$C$5:$C$32,$G56)","v":0},{"$f":"SUMIFS('Portfolio Analytics'!AM$65:AM$92,Lists!$C$5:$C$32,$G56)","v":0},{"$f":"SUMIFS('Portfolio Analytics'!AN$65:AN$92,Lists!$C$5:$C$32,$G56)","v":0}]
[null,null,null,null,null,null,"Coal","MW",null,{"$f":"SUMIFS('Portfolio Analytics'!E$65:E$92,Lists!$C$5:$C$32,$G57)","v":0},{"$f":"SUMIFS('Portfolio Analytics'!F$65:F$92,Lists!$C$5:$C$32,$G57)","v":0},{"$f":"SUMIFS('Portfolio Analytics'!G$65:G$92,Lists!$C$5:$C$32,$G57)","v":0},{"$f":"SUMIFS('Portfolio Analytics'!H$65:H$92,Lists!$C$5:$C$32,$G57)","v":0},{"$f":"SUMIFS('Portfolio Analytics'!I$65:I$92,Lists!$C$5:$C$32,$G57)","v":0},{"$f":"SUMIFS('Portfolio Analytics'!J$65:J$92,Lists!$C$5:$C$32,$G57)","v":480},{"$f":"SUMIFS('Portfolio Analytics'!K$65:K$92,Lists!$C$5:$C$32,$G57)","v":480},{"$f":"SUMIFS('Portfolio Analytics'!L$65:L$92,Lists!$C$5:$C$32,$G57)","v":480},{"$f":"SUMIFS('Portfolio Analytics'!M$65:M$92,Lists!$C$5:$C$32,$G57)","v":480},{"$f":"SUMIFS('Portfolio Analytics'!N$65:N$92,Lists!$C$5:$C$32,$G57)","v":480},{"$f":"SUMIFS('Portfolio Analytics'!O$65:O$92,Lists!$C$5:$C$32,$G57)","v":0},{"$f":"SUMIFS('Portfolio Analytics'!P$65:P$92,Lists!$C$5:$C$32,$G57)","v":0},{"$f":"SUMIFS('Portfolio Analytics'!Q$65:Q$92,Lists!$C$5:$C$32,$G57)","v":0},{"$f":"SUMIFS('Portfolio Analytics'!R$65:R$92,Lists!$C$5:$C$32,$G57)","v":0},{"$f":"SUMIFS('Portfolio Analytics'!S$65:S$92,Lists!$C$5:$C$32,$G57)","v":0},{"$f":"SUMIFS('Portfolio Analytics'!T$65:T$92,Lists!$C$5:$C$32,$G57)","v":0},{"$f":"SUMIFS('Portfolio Analytics'!U$65:U$92,Lists!$C$5:$C$32,$G57)","v":0},{"$f":"SUMIFS('Portfolio Analytics'!V$65:V$92,Lists!$C$5:$C$32,$G57)","v":0},{"$f":"SUMIFS('Portfolio Analytics'!W$65:W$92,Lists!$C$5:$C$32,$G57)","v":0},{"$f":"SUMIFS('Portfolio Analytics'!X$65:X$92,Lists!$C$5:$C$32,$G57)","v":0},{"$f":"SUMIFS('Portfolio Analytics'!Y$65:Y$92,Lists!$C$5:$C$32,$G57)","v":0},{"$f":"SUMIFS('Portfolio Analytics'!Z$65:Z$92,Lists!$C$5:$C$32,$G57)","v":0},{"$f":"SUMIFS('Portfolio Analytics'!AA$65:AA$92,Lists!$C$5:$C$32,$G57)","v":0},{"$f":"SUMIFS('Portfolio Analytics'!AB$65:AB$92,Lists!$C$5:$C$32,$G57)","v":0},{"$f":"SUMIFS('Portfolio Analytics'!AC$65:AC$92,Lists!$C$5:$C$32,$G57)","v":0},{"$f":"SUMIFS('Portfolio Analytics'!AD$65:AD$92,Lists!$C$5:$C$32,$G57)","v":0},{"$f":"SUMIFS('Portfolio Analytics'!AE$65:AE$92,Lists!$C$5:$C$32,$G57)","v":0},{"$f":"SUMIFS('Portfolio Analytics'!AF$65:AF$92,Lists!$C$5:$C$32,$G57)","v":0},{"$f":"SUMIFS('Portfolio Analytics'!AG$65:AG$92,Lists!$C$5:$C$32,$G57)","v":0},{"$f":"SUMIFS('Portfolio Analytics'!AH$65:AH$92,Lists!$C$5:$C$32,$G57)","v":0},{"$f":"SUMIFS('Portfolio Analytics'!AI$65:AI$92,Lists!$C$5:$C$32,$G57)","v":0},{"$f":"SUMIFS('Portfolio Analytics'!AJ$65:AJ$92,Lists!$C$5:$C$32,$G57)","v":0},{"$f":"SUMIFS('Portfolio Analytics'!AK$65:AK$92,Lists!$C$5:$C$32,$G57)","v":0},{"$f":"SUMIFS('Portfolio Analytics'!AL$65:AL$92,Lists!$C$5:$C$32,$G57)","v":0},{"$f":"SUMIFS('Portfolio Analytics'!AM$65:AM$92,Lists!$C$5:$C$32,$G57)","v":0},{"$f":"SUMIFS('Portfolio Analytics'!AN$65:AN$92,Lists!$C$5:$C$32,$G57)","v":0}]
[null,null,null,null,null,null,"Hydro (Large)","MW",null,{"$f":"SUMIFS('Portfolio Analytics'!E$65:E$92,Lists!$C$5:$C$32,$G58)","v":0},{"$f":"SUMIFS('Portfolio Analytics'!F$65:F$92,Lists!$C$5:$C$32,$G58)","v":0},{"$f":"SUMIFS('Portfolio Analytics'!G$65:G$92,Lists!$C$5:$C$32,$G58)","v":0},{"$f":"SUMIFS('Portfolio Analytics'!H$65:H$92,Lists!$C$5:$C$32,$G58)","v":0},{"$f":"SUMIFS('Portfolio Analytics'!I$65:I$92,Lists!$C$5:$C$32,$G58)","v":0},{"$f":"SUMIFS('Portfolio Analytics'!J$65:J$92,Lists!$C$5:$C$32,$G58)","v":7070.1},{"$f":"SUMIFS('Portfolio Analytics'!K$65:K$92,Lists!$C$5:$C$32,$G58)","v":7070.1},{"$f":"SUMIFS('Portfolio Analytics'!L$65:L$92,Lists!$C$5:$C$32,$G58)","v":7070.1},{"$f":"SUMIFS('Portfolio Analytics'!M$65:M$92,Lists!$C$5:$C$32,$G58)","v":7070.1},{"$f":"SUMIFS('Portfolio Analytics'!N$65:N$92,Lists!$C$5:$C$32,$G58)","v":7070.1},{"$f":"SUMIFS('Portfolio Analytics'!O$65:O$92,Lists!$C$5:$C$32,$G58)","v":0},{"$f":"SUMIFS('Portfolio Analytics'!P$65:P$92,Lists!$C$5:$C$32,$G58)","v":7070.1},{"$f":"SUMIFS('Portfolio Analytics'!Q$65:Q$92,Lists!$C$5:$C$32,$G58)","v":0},{"$f":"SUMIFS('Portfolio Analytics'!R$65:R$92,Lists!$C$5:$C$32,$G58)","v":0},{"$f":"SUMIFS('Portfolio Analytics'!S$65:S$92,Lists!$C$5:$C$32,$G58)","v":0},{"$f":"SUMIFS('Portfolio Analytics'!T$65:T$92,Lists!$C$5:$C$32,$G58)","v":7069.51},{"$f":"SUMIFS('Portfolio Analytics'!U$65:U$92,Lists!$C$5:$C$32,$G58)","v":0},{"$f":"SUMIFS('Portfolio Analytics'!V$65:V$92,Lists!$C$5:$C$32,$G58)","v":0},{"$f":"SUMIFS('Portfolio Analytics'!W$65:W$92,Lists!$C$5:$C$32,$G58)","v":0},{"$f":"SUMIFS('Portfolio Analytics'!X$65:X$92,Lists!$C$5:$C$32,$G58)","v":0},{"$f":"SUMIFS('Portfolio Analytics'!Y$65:Y$92,Lists!$C$5:$C$32,$G58)","v":0},{"$f":"SUMIFS('Portfolio Analytics'!Z$65:Z$92,Lists!$C$5:$C$32,$G58)","v":0},{"$f":"SUMIFS('Portfolio Analytics'!AA$65:AA$92,Lists!$C$5:$C$32,$G58)","v":0},{"$f":"SUMIFS('Portfolio Analytics'!AB$65:AB$92,Lists!$C$5:$C$32,$G58)","v":0},{"$f":"SUMIFS('Portfolio Analytics'!AC$65:AC$92,Lists!$C$5:$C$32,$G58)","v":0},{"$f":"SUMIFS('Portfolio Analytics'!AD$65:AD$92,Lists!$C$5:$C$32,$G58)","v":0},{"$f":"SUMIFS('Portfolio Analytics'!AE$65:AE$92,Lists!$C$5:$C$32,$G58)","v":0},{"$f":"SUMIFS('Portfolio Analytics'!AF$65:AF$92,Lists!$C$5:$C$32,$G58)","v":0},{"$f":"SUMIFS('Portfolio Analytics'!AG$65:AG$92,Lists!$C$5:$C$32,$G58)","v":0},{"$f":"SUMIFS('Portfolio Analytics'!AH$65:AH$92,Lists!$C$5:$C$32,$G58)","v":0},{"$f":"SUMIFS('Portfolio Analytics'!AI$65:AI$92,Lists!$C$5:$C$32,$G58)","v":7069.51},{"$f":"SUMIFS('Portfolio Analytics'!AJ$65:AJ$92,Lists!$C$5:$C$32,$G58)","v":0},{"$f":"SUMIFS('Portfolio Analytics'!AK$65:AK$92,Lists!$C$5:$C$32,$G58)","v":0},{"$f":"SUMIFS('Portfolio Analytics'!AL$65:AL$92,Lists!$C$5:$C$32,$G58)","v":0},{"$f":"SUMIFS('Portfolio Analytics'!AM$65:AM$92,Lists!$C$5:$C$32,$G58)","v":0},{"$f":"SUMIFS('Portfolio Analytics'!AN$65:AN$92,Lists!$C$5:$C$32,$G58)","v":0}]
[null,null,null,null,null,null,"Hydro (NW scheduled imports)","MW",null,{"$f":"SUMIFS('Portfolio Analytics'!E$65:E$92,Lists!$C$5:$C$32,$G59)","v":0},{"$f":"SUMIFS('Portfolio Analytics'!F$65:F$92,Lists!$C$5:$C$32,$G59)","v":0},{"$f":"SUMIFS('Portfolio Analytics'!G$65:G$92,Lists!$C$5:$C$32,$G59)","v":0},{"$f":"SUMIFS('Portfolio Analytics'!H$65:H$92,Lists!$C$5:$C$32,$G59)","v":0},{"$f":"SUMIFS('Portfolio Analytics'!I$65:I$92,Lists!$C$5:$C$32,$G59)","v":0},{"$f":"SUMIFS('Portfolio Analytics'!J$65:J$92,Lists!$C$5:$C$32,$G59)","v":2851.77},{"$f":"SUMIFS('Portfolio Analytics'!K$65:K$92,Lists!$C$5:$C$32,$G59)","v":2851.77},{"$f":"SUMIFS('Portfolio Analytics'!L$65:L$92,Lists!$C$5:$C$32,$G59)","v":2851.77},{"$f":"SUMIFS('Portfolio Analytics'!M$65:M$92,Lists!$C$5:$C$32,$G59)","v":2851.77},{"$f":"SUMIFS('Portfolio Analytics'!N$65:N$92,Lists!$C$5:$C$32,$G59)","v":2851.77},{"$f":"SUMIFS('Portfolio Analytics'!O$65:O$92,Lists!$C$5:$C$32,$G59)","v":0},{"$f":"SUMIFS('Portfolio Analytics'!P$65:P$92,Lists!$C$5:$C$32,$G59)","v":2851.77},{"$f":"SUMIFS('Portfolio Analytics'!Q$65:Q$92,Lists!$C$5:$C$32,$G59)","v":0},{"$f":"SUMIFS('Portfolio Analytics'!R$65:R$92,Lists!$C$5:$C$32,$G59)","v":0},{"$f":"SUMIFS('Portfolio Analytics'!S$65:S$92,Lists!$C$5:$C$32,$G59)","v":0},{"$f":"SUMIFS('Portfolio Analytics'!T$65:T$92,Lists!$C$5:$C$32,$G59)","v":2851.77},{"$f":"SUMIFS('Portfolio Analytics'!U$65:U$92,Lists!$C$5:$C$32,$G59)","v":0},{"$f":"SUMIFS('Portfolio Analytics'!V$65:V$92,Lists!$C$5:$C$32,$G59)","v":0},{"$f":"SUMIFS('Portfolio Analytics'!W$65:W$92,Lists!$C$5:$C$32,$G59)","v":0},{"$f":"SUMIFS('Portfolio Analytics'!X$65:X$92,Lists!$C$5:$C$32,$G59)","v":0},{"$f":"SUMIFS('Portfolio Analytics'!Y$65:Y$92,Lists!$C$5:$C$32,$G59)","v":0},{"$f":"SUMIFS('Portfolio Analytics'!Z$65:Z$92,Lists!$C$5:$C$32,$G59)","v":0},{"$f":"SUMIFS('Portfolio Analytics'!AA$65:AA$92,Lists!$C$5:$C$32,$G59)","v":0},{"$f":"SUMIFS('Portfolio Analytics'!AB$65:AB$92,Lists!$C$5:$C$32,$G59)","v":0},{"$f":"SUMIFS('Portfolio Analytics'!AC$65:AC$92,Lists!$C$5:$C$32,$G59)","v":0},{"$f":"SUMIFS('Portfolio Analytics'!AD$65:AD$92,Lists!$C$5:$C$32,$G59)","v":0},{"$f":"SUMIFS('Portfolio Analytics'!AE$65:AE$92,Lists!$C$5:$C$32,$G59)","v":0},{"$f":"SUMIFS('Portfolio Analytics'!AF$65:AF$92,Lists!$C$5:$C$32,$G59)","v":0},{"$f":"SUMIFS('Portfolio Analytics'!AG$65:AG$92,Lists!$C$5:$C$32,$G59)","v":0},{"$f":"SUMIFS('Portfolio Analytics'!AH$65:AH$92,Lists!$C$5:$C$32,$G59)","v":0},{"$f":"SUMIFS('Portfolio Analytics'!AI$65:AI$92,Lists!$C$5:$C$32,$G59)","v":2851.77},{"$f":"SUMIFS('Portfolio Analytics'!AJ$65:AJ$92,Lists!$C$5:$C$32,$G59)","v":0},{"$f":"SUMIFS('Portfolio Analytics'!AK$65:AK$92,Lists!$C$5:$C$32,$G59)","v":0},{"$f":"SUMIFS('Portfolio Analytics'!AL$65:AL$92,Lists!$C$5:$C$32,$G59)","v":0},{"$f":"SUMIFS('Portfolio Analytics'!AM$65:AM$92,Lists!$C$5:$C$32,$G59)","v":0},{"$f":"SUMIFS('Portfolio Analytics'!AN$65:AN$92,Lists!$C$5:$C$32,$G59)","v":0}]
[null,null,null,null,null,null,"Biomass","MW",null,{"$f":"SUMIFS('Portfolio Analytics'!E$65:E$92,Lists!$C$5:$C$32,$G60)","v":0},{"$f":"SUMIFS('Portfolio Analytics'!F$65:F$92,Lists!$C$5:$C$32,$G60)","v":0},{"$f":"SUMIFS('Portfolio Analytics'!G$65:G$92,Lists!$C$5:$C$32,$G60)","v":0},{"$f":"SUMIFS('Portfolio Analytics'!H$65:H$92,Lists!$C$5:$C$32,$G60)","v":0},{"$f":"SUMIFS('Portfolio Analytics'!I$65:I$92,Lists!$C$5:$C$32,$G60)","v":0},{"$f":"SUMIFS('Portfolio Analytics'!J$65:J$92,Lists!$C$5:$C$32,$G60)","v":902.65000000000009},{"$f":"SUMIFS('Portfolio Analytics'!K$65:K$92,Lists!$C$5:$C$32,$G60)","v":902.65000000000009},{"$f":"SUMIFS('Portfolio Analytics'!L$65:L$92,Lists!$C$5:$C$32,$G60)","v":902.65000000000009},{"$f":"SUMIFS('Portfolio Analytics'!M$65:M$92,Lists!$C$5:$C$32,$G60)","v":902.65000000000009},{"$f":"SUMIFS('Portfolio Analytics'!N$65:N$92,Lists!$C$5:$C$32,$G60)","v":902.65000000000009},{"$f":"SUMIFS('Portfolio Analytics'!O$65:O$92,Lists!$C$5:$C$32,$G60)","v":0},{"$f":"SUMIFS('Portfolio Analytics'!P$65:P$92,Lists!$C$5:$C$32,$G60)","v":902.65000000000009},{"$f":"SUMIFS('Portfolio Analytics'!Q$65:Q$92,Lists!$C$5:$C$32,$G60)","v":0},{"$f":"SUMIFS('Portfolio Analytics'!R$65:R$92,Lists!$C$5:$C$32,$G60)","v":0},{"$f":"SUMIFS('Portfolio Analytics'!S$65:S$92,Lists!$C$5:$C$32,$G60)","v":0},{"$f":"SUMIFS('Portfolio Analytics'!T$65:T$92,Lists!$C$5:$C$32,$G60)","v":900.75},{"$f":"SUMIFS('Portfolio Analytics'!U$65:U$92,Lists!$C$5:$C$32,$G60)","v":0},{"$f":"SUMIFS('Portfolio Analytics'!V$65:V$92,Lists!$C$5:$C$32,$G60)","v":0},{"$f":"SUMIFS('Portfolio Analytics'!W$65:W$92,Lists!$C$5:$C$32,$G60)","v":0},{"$f":"SUMIFS('Portfolio Analytics'!X$65:X$92,Lists!$C$5:$C$32,$G60)","v":0},{"$f":"SUMIFS('Portfolio Analytics'!Y$65:Y$92,Lists!$C$5:$C$32,$G60)","v":0},{"$f":"SUMIFS('Portfolio Analytics'!Z$65:Z$92,Lists!$C$5:$C$32,$G60)","v":0},{"$f":"SUMIFS('Portfolio Analytics'!AA$65:AA$92,Lists!$C$5:$C$32,$G60)","v":0},{"$f":"SUMIFS('Portfolio Analytics'!AB$65:AB$92,Lists!$C$5:$C$32,$G60)","v":0},{"$f":"SUMIFS('Portfolio Analytics'!AC$65:AC$92,Lists!$C$5:$C$32,$G60)","v":0},{"$f":"SUMIFS('Portfolio Analytics'!AD$65:AD$92,Lists!$C$5:$C$32,$G60)","v":0},{"$f":"SUMIFS('Portfolio Analytics'!AE$65:AE$92,Lists!$C$5:$C$32,$G60)","v":0},{"$f":"SUMIFS('Portfolio Analytics'!AF$65:AF$92,Lists!$C$5:$C$32,$G60)","v":0},{"$f":"SUMIFS('Portfolio Analytics'!AG$65:AG$92,Lists!$C$5:$C$32,$G60)","v":0},{"$f":"SUMIFS('Portfolio Analytics'!AH$65:AH$92,Lists!$C$5:$C$32,$G60)","v":0},{"$f":"SUMIFS('Portfolio Analytics'!AI$65:AI$92,Lists!$C$5:$C$32,$G60)","v":2047.6},{"$f":"SUMIFS('Portfolio Analytics'!AJ$65:AJ$92,Lists!$C$5:$C$32,$G60)","v":0},{"$f":"SUMIFS('Portfolio Analytics'!AK$65:AK$92,Lists!$C$5:$C$32,$G60)","v":0},{"$f":"SUMIFS('Portfolio Analytics'!AL$65:AL$92,Lists!$C$5:$C$32,$G60)","v":0},{"$f":"SUMIFS('Portfolio Analytics'!AM$65:AM$92,Lists!$C$5:$C$32,$G60)","v":0},{"$f":"SUMIFS('Portfolio Analytics'!AN$65:AN$92,Lists!$C$5:$C$32,$G60)","v":0}]
[null,null,null,null,null,null,"Geothermal","MW",null,{"$f":"SUMIFS('Portfolio Analytics'!E$65:E$92,Lists!$C$5:$C$32,$G61)","v":0},{"$f":"SUMIFS('Portfolio Analytics'!F$65:F$92,Lists!$C$5:$C$32,$G61)","v":0},{"$f":"SUMIFS('Portfolio Analytics'!G$65:G$92,Lists!$C$5:$C$32,$G61)","v":0},{"$f":"SUMIFS('Portfolio Analytics'!H$65:H$92,Lists!$C$5:$C$32,$G61)","v":0},{"$f":"SUMIFS('Portfolio Analytics'!I$65:I$92,Lists!$C$5:$C$32,$G61)","v":0},{"$f":"SUMIFS('Portfolio Analytics'!J$65:J$92,Lists!$C$5:$C$32,$G61)","v":1851.3100000000002},{"$f":"SUMIFS('Portfolio Analytics'!K$65:K$92,Lists!$C$5:$C$32,$G61)","v":1851.3100000000002},{"$f":"SUMIFS('Portfolio Analytics'!L$65:L$92,Lists!$C$5:$C$32,$G61)","v":1851.3100000000002},{"$f":"SUMIFS('Portfolio Analytics'!M$65:M$92,Lists!$C$5:$C$32,$G61)","v":1851.3100000000002},{"$f":"SUMIFS('Portfolio Analytics'!N$65:N$92,Lists!$C$5:$C$32,$G61)","v":1986.3100000000002},{"$f":"SUMIFS('Portfolio Analytics'!O$65:O$92,Lists!$C$5:$C$32,$G61)","v":0},{"$f":"SUMIFS('Portfolio Analytics'!P$65:P$92,Lists!$C$5:$C$32,$G61)","v":1986.3100000000002},{"$f":"SUMIFS('Portfolio Analytics'!Q$65:Q$92,Lists!$C$5:$C$32,$G61)","v":0},{"$f":"SUMIFS('Portfolio Analytics'!R$65:R$92,Lists!$C$5:$C$32,$G61)","v":0},{"$f":"SUMIFS('Portfolio Analytics'!S$65:S$92,Lists!$C$5:$C$32,$G61)","v":0},{"$f":"SUMIFS('Portfolio Analytics'!T$65:T$92,Lists!$C$5:$C$32,$G61)","v":1986.3100000000002},{"$f":"SUMIFS('Portfolio Analytics'!U$65:U$92,Lists!$C$5:$C$32,$G61)","v":0},{"$f":"SUMIFS('Portfolio Analytics'!V$65:V$92,Lists!$C$5:$C$32,$G61)","v":0},{"$f":"SUMIFS('Portfolio Analytics'!W$65:W$92,Lists!$C$5:$C$32,$G61)","v":0},{"$f":"SUMIFS('Portfolio Analytics'!X$65:X$92,Lists!$C$5:$C$32,$G61)","v":0},{"$f":"SUMIFS('Portfolio Analytics'!Y$65:Y$92,Lists!$C$5:$C$32,$G61)","v":0},{"$f":"SUMIFS('Portfolio Analytics'!Z$65:Z$92,Lists!$C$5:$C$32,$G61)","v":0},{"$f":"SUMIFS('Portfolio Analytics'!AA$65:AA$92,Lists!$C$5:$C$32,$G61)","v":0},{"$f":"SUMIFS('Portfolio Analytics'!AB$65:AB$92,Lists!$C$5:$C$32,$G61)","v":0},{"$f":"SUMIFS('Portfolio Analytics'!AC$65:AC$92,Lists!$C$5:$C$32,$G61)","v":0},{"$f":"SUMIFS('Portfolio Analytics'!AD$65:AD$92,Lists!$C$5:$C$32,$G61)","v":0},{"$f":"SUMIFS('Portfolio Analytics'!AE$65:AE$92,Lists!$C$5:$C$32,$G61)","v":0},{"$f":"SUMIFS('Portfolio Analytics'!AF$65:AF$92,Lists!$C$5:$C$32,$G61)","v":0},{"$f":"SUMIFS('Portfolio Analytics'!AG$65:AG$92,Lists!$C$5:$C$32,$G61)","v":0},{"$f":"SUMIFS('Portfolio Analytics'!AH$65:AH$92,Lists!$C$5:$C$32,$G61)","v":0},{"$f":"SUMIFS('Portfolio Analytics'!AI$65:AI$92,Lists!$C$5:$C$32,$G61)","v":4183.41},{"$f":"SUMIFS('Portfolio Analytics'!AJ$65:AJ$92,Lists!$C$5:$C$32,$G61)","v":0},{"$f":"SUMIFS('Portfolio Analytics'!AK$65:AK$92,Lists!$C$5:$C$32,$G61)","v":0},{"$f":"SUMIFS('Portfolio Analytics'!AL$65:AL$92,Lists!$C$5:$C$32,$G61)","v":0},{"$f":"SUMIFS('Portfolio Analytics'!AM$65:AM$92,Lists!$C$5:$C$32,$G61)","v":0},{"$f":"SUMIFS('Portfolio Analytics'!AN$65:AN$92,Lists!$C$5:$C$32,$G61)","v":0}]
[null,null,null,null,null,null,"Hydro (Small)","MW",null,{"$f":"SUMIFS('Portfolio Analytics'!E$65:E$92,Lists!$C$5:$C$32,$G62)","v":0},{"$f":"SUMIFS('Portfolio Analytics'!F$65:F$92,Lists!$C$5:$C$32,$G62)","v":0},{"$f":"SUMIFS('Portfolio Analytics'!G$65:G$92,Lists!$C$5:$C$32,$G62)","v":0},{"$f":"SUMIFS('Portfolio Analytics'!H$65:H$92,Lists!$C$5:$C$32,$G62)","v":0},{"$f":"SUMIFS('Portfolio Analytics'!I$65:I$92,Lists!$C$5:$C$32,$G62)","v":0},{"$f":"SUMIFS('Portfolio Analytics'!J$65:J$92,Lists!$C$5:$C$32,$G62)","v":974.03},{"$f":"SUMIFS('Portfolio Analytics'!K$65:K$92,Lists!$C$5:$C$32,$G62)","v":974.03},{"$f":"SUMIFS('Portfolio Analytics'!L$65:L$92,Lists!$C$5:$C$32,$G62)","v":974.03},{"$f":"SUMIFS('Portfolio Analytics'!M$65:M$92,Lists!$C$5:$C$32,$G62)","v":974.03},{"$f":"SUMIFS('Portfolio Analytics'!N$65:N$92,Lists!$C$5:$C$32,$G62)","v":974.03},{"$f":"SUMIFS('Portfolio Analytics'!O$65:O$92,Lists!$C$5:$C$32,$G62)","v":0},{"$f":"SUMIFS('Portfolio Analytics'!P$65:P$92,Lists!$C$5:$C$32,$G62)","v":974.03},{"$f":"SUMIFS('Portfolio Analytics'!Q$65:Q$92,Lists!$C$5:$C$32,$G62)","v":0},{"$f":"SUMIFS('Portfolio Analytics'!R$65:R$92,Lists!$C$5:$C$32,$G62)","v":0},{"$f":"SUMIFS('Portfolio Analytics'!S$65:S$92,Lists!$C$5:$C$32,$G62)","v":0},{"$f":"SUMIFS('Portfolio Analytics'!T$65:T$92,Lists!$C$5:$C$32,$G62)","v":974.03},{"$f":"SUMIFS('Portfolio Analytics'!U$65:U$92,Lists!$C$5:$C$32,$G62)","v":0},{"$f":"SUMIFS('Portfolio Analytics'!V$65:V$92,Lists!$C$5:$C$32,$G62)","v":0},{"$f":"SUMIFS('Portfolio Analytics'!W$65:W$92,Lists!$C$5:$C$32,$G62)","v":0},{"$f":"SUMIFS('Portfolio Analytics'!X$65:X$92,Lists!$C$5:$C$32,$G62)","v":0},{"$f":"SUMIFS('Portfolio Analytics'!Y$65:Y$92,Lists!$C$5:$C$32,$G62)","v":0},{"$f":"SUMIFS('Portfolio Analytics'!Z$65:Z$92,Lists!$C$5:$C$32,$G62)","v":0},{"$f":"SUMIFS('Portfolio Analytics'!AA$65:AA$92,Lists!$C$5:$C$32,$G62)","v":0},{"$f":"SUMIFS('Portfolio Analytics'!AB$65:AB$92,Lists!$C$5:$C$32,$G62)","v":0},{"$f":"SUMIFS('Portfolio Analytics'!AC$65:AC$92,Lists!$C$5:$C$32,$G62)","v":0},{"$f":"SUMIFS('Portfolio Analytics'!AD$65:AD$92,Lists!$C$5:$C$32,$G62)","v":0},{"$f":"SUMIFS('Portfolio Analytics'!AE$65:AE$92,Lists!$C$5:$C$32,$G62)","v":0},{"$f":"SUMIFS('Portfolio Analytics'!AF$65:AF$92,Lists!$C$5:$C$32,$G62)","v":0},{"$f":"SUMIFS('Portfolio Analytics'!AG$65:AG$92,Lists!$C$5:$C$32,$G62)","v":0},{"$f":"SUMIFS('Portfolio Analytics'!AH$65:AH$92,Lists!$C$5:$C$32,$G62)","v":0},{"$f":"SUMIFS('Portfolio Analytics'!AI$65:AI$92,Lists!$C$5:$C$32,$G62)","v":974.03},{"$f":"SUMIFS('Portfolio Analytics'!AJ$65:AJ$92,Lists!$C$5:$C$32,$G62)","v":0},{"$f":"SUMIFS('Portfolio Analytics'!AK$65:AK$92,Lists!$C$5:$C$32,$G62)","v":0},{"$f":"SUMIFS('Portfolio Analytics'!AL$65:AL$92,Lists!$C$5:$C$32,$G62)","v":0},{"$f":"SUMIFS('Portfolio Analytics'!AM$65:AM$92,Lists!$C$5:$C$32,$G62)","v":0},{"$f":"SUMIFS('Portfolio Analytics'!AN$65:AN$92,Lists!$C$5:$C$32,$G62)","v":0}]
[null,null,null,null,null,null,"Wind","MW",null,{"$f":"SUMIFS('Portfolio Analytics'!E$65:E$92,Lists!$C$5:$C$32,$G63)","v":0},{"$f":"SUMIFS('Portfolio Analytics'!F$65:F$92,Lists!$C$5:$C$32,$G63)","v":0},{"$f":"SUMIFS('Portfolio Analytics'!G$65:G$92,Lists!$C$5:$C$32,$G63)","v":0},{"$f":"SUMIFS('Portfolio Analytics'!H$65:H$92,Lists!$C$5:$C$32,$G63)","v":0},{"$f":"SUMIFS('Portfolio Analytics'!I$65:I$92,Lists!$C$5:$C$32,$G63)","v":0},{"$f":"SUMIFS('Portfolio Analytics'!J$65:J$92,Lists!$C$5:$C$32,$G63)","v":7356.5599999999995},{"$f":"SUMIFS('Portfolio Analytics'!K$65:K$92,Lists!$C$5:$C$32,$G63)","v":7490.3099999999995},{"$f":"SUMIFS('Portfolio Analytics'!L$65:L$92,Lists!$C$5:$C$32,$G63)","v":10388.14},{"$f":"SUMIFS('Portfolio Analytics'!M$65:M$92,Lists!$C$5:$C$32,$G63)","v":10675.14},{"$f":"SUMIFS('Portfolio Analytics'!N$65:N$92,Lists!$C$5:$C$32,$G63)","v":10767.31},{"$f":"SUMIFS('Portfolio Analytics'!O$65:O$92,Lists!$C$5:$C$32,$G63)","v":0},{"$f":"SUMIFS('Portfolio Analytics'!P$65:P$92,Lists!$C$5:$C$32,$G63)","v":10767.31},{"$f":"SUMIFS('Portfolio Analytics'!Q$65:Q$92,Lists!$C$5:$C$32,$G63)","v":0},{"$f":"SUMIFS('Portfolio Analytics'!R$65:R$92,Lists!$C$5:$C$32,$G63)","v":0},{"$f":"SUMIFS('Portfolio Analytics'!S$65:S$92,Lists!$C$5:$C$32,$G63)","v":0},{"$f":"SUMIFS('Portfolio Analytics'!T$65:T$92,Lists!$C$5:$C$32,$G63)","v":12157.240000000002},{"$f":"SUMIFS('Portfolio Analytics'!U$65:U$92,Lists!$C$5:$C$32,$G63)","v":0},{"$f":"SUMIFS('Portfolio Analytics'!V$65:V$92,Lists!$C$5:$C$32,$G63)","v":0},{"$f":"SUMIFS('Portfolio Analytics'!W$65:W$92,Lists!$C$5:$C$32,$G63)","v":0},{"$f":"SUMIFS('Portfolio Analytics'!X$65:X$92,Lists!$C$5:$C$32,$G63)","v":0},{"$f":"SUMIFS('Portfolio Analytics'!Y$65:Y$92,Lists!$C$5:$C$32,$G63)","v":0},{"$f":"SUMIFS('Portfolio Analytics'!Z$65:Z$92,Lists!$C$5:$C$32,$G63)","v":0},{"$f":"SUMIFS('Portfolio Analytics'!AA$65:AA$92,Lists!$C$5:$C$32,$G63)","v":0},{"$f":"SUMIFS('Portfolio Analytics'!AB$65:AB$92,Lists!$C$5:$C$32,$G63)","v":0},{"$f":"SUMIFS('Portfolio Analytics'!AC$65:AC$92,Lists!$C$5:$C$32,$G63)","v":0},{"$f":"SUMIFS('Portfolio Analytics'!AD$65:AD$92,Lists!$C$5:$C$32,$G63)","v":0},{"$f":"SUMIFS('Portfolio Analytics'!AE$65:AE$92,Lists!$C$5:$C$32,$G63)","v":0},{"$f":"SUMIFS('Portfolio Analytics'!AF$65:AF$92,Lists!$C$5:$C$32,$G63)","v":0},{"$f":"SUMIFS('Portfolio Analytics'!AG$65:AG$92,Lists!$C$5:$C$32,$G63)","v":0},{"$f":"SUMIFS('Portfolio Analytics'!AH$65:AH$92,Lists!$C$5:$C$32,$G63)","v":0},{"$f":"SUMIFS('Portfolio Analytics'!AI$65:AI$92,Lists!$C$5:$C$32,$G63)","v":12657.24},{"$f":"SUMIFS('Portfolio Analytics'!AJ$65:AJ$92,Lists!$C$5:$C$32,$G63)","v":0},{"$f":"SUMIFS('Portfolio Analytics'!AK$65:AK$92,Lists!$C$5:$C$32,$G63)","v":0},{"$f":"SUMIFS('Portfolio Analytics'!AL$65:AL$92,Lists!$C$5:$C$32,$G63)","v":0},{"$f":"SUMIFS('Portfolio Analytics'!AM$65:AM$92,Lists!$C$5:$C$32,$G63)","v":0},{"$f":"SUMIFS('Portfolio Analytics'!AN$65:AN$92,Lists!$C$5:$C$32,$G63)","v":0}]
[null,null,null,null,null,null,"Wind OOS New Tx","MW",null,{"$f":"SUMIFS('Portfolio Analytics'!E$65:E$92,Lists!$C$5:$C$32,$G64)","v":0},{"$f":"SUMIFS('Portfolio Analytics'!F$65:F$92,Lists!$C$5:$C$32,$G64)","v":0},{"$f":"SUMIFS('Portfolio Analytics'!G$65:G$92,Lists!$C$5:$C$32,$G64)","v":0},{"$f":"SUMIFS('Portfolio Analytics'!H$65:H$92,Lists!$C$5:$C$32,$G64)","v":0},{"$f":"SUMIFS('Portfolio Analytics'!I$65:I$92,Lists!$C$5:$C$32,$G64)","v":0},{"$f":"SUMIFS('Portfolio Analytics'!J$65:J$92,Lists!$C$5:$C$32,$G64)","v":0},{"$f":"SUMIFS('Portfolio Analytics'!K$65:K$92,Lists!$C$5:$C$32,$G64)","v":0},{"$f":"SUMIFS('Portfolio Analytics'!L$65:L$92,Lists!$C$5:$C$32,$G64)","v":0},{"$f":"SUMIFS('Portfolio Analytics'!M$65:M$92,Lists!$C$5:$C$32,$G64)","v":0},{"$f":"SUMIFS('Portfolio Analytics'!N$65:N$92,Lists!$C$5:$C$32,$G64)","v":0},{"$f":"SUMIFS('Portfolio Analytics'!O$65:O$92,Lists!$C$5:$C$32,$G64)","v":0},{"$f":"SUMIFS('Portfolio Analytics'!P$65:P$92,Lists!$C$5:$C$32,$G64)","v":0},{"$f":"SUMIFS('Portfolio Analytics'!Q$65:Q$92,Lists!$C$5:$C$32,$G64)","v":0},{"$f":"SUMIFS('Portfolio Analytics'!R$65:R$92,Lists!$C$5:$C$32,$G64)","v":0},{"$f":"SUMIFS('Portfolio Analytics'!S$65:S$92,Lists!$C$5:$C$32,$G64)","v":0},{"$f":"SUMIFS('Portfolio Analytics'!T$65:T$92,Lists!$C$5:$C$32,$G64)","v":1336.87},{"$f":"SUMIFS('Portfolio Analytics'!U$65:U$92,Lists!$C$5:$C$32,$G64)","v":0},{"$f":"SUMIFS('Portfolio Analytics'!V$65:V$92,Lists!$C$5:$C$32,$G64)","v":0},{"$f":"SUMIFS('Portfolio Analytics'!W$65:W$92,Lists!$C$5:$C$32,$G64)","v":0},{"$f":"SUMIFS('Portfolio Analytics'!X$65:X$92,Lists!$C$5:$C$32,$G64)","v":0},{"$f":"SUMIFS('Portfolio Analytics'!Y$65:Y$92,Lists!$C$5:$C$32,$G64)","v":0},{"$f":"SUMIFS('Portfolio Analytics'!Z$65:Z$92,Lists!$C$5:$C$32,$G64)","v":0},{"$f":"SUMIFS('Portfolio Analytics'!AA$65:AA$92,Lists!$C$5:$C$32,$G64)","v":0},{"$f":"SUMIFS('Portfolio Analytics'!AB$65:AB$92,Lists!$C$5:$C$32,$G64)","v":0},{"$f":"SUMIFS('Portfolio Analytics'!AC$65:AC$92,Lists!$C$5:$C$32,$G64)","v":0},{"$f":"SUMIFS('Portfolio Analytics'!AD$65:AD$92,Lists!$C$5:$C$32,$G64)","v":0},{"$f":"SUMIFS('Portfolio Analytics'!AE$65:AE$92,Lists!$C$5:$C$32,$G64)","v":0},{"$f":"SUMIFS('Portfolio Analytics'!AF$65:AF$92,Lists!$C$5:$C$32,$G64)","v":0},{"$f":"SUMIFS('Portfolio Analytics'!AG$65:AG$92,Lists!$C$5:$C$32,$G64)","v":0},{"$f":"SUMIFS('Portfolio Analytics'!AH$65:AH$92,Lists!$C$5:$C$32,$G64)","v":0},{"$f":"SUMIFS('Portfolio Analytics'!AI$65:AI$92,Lists!$C$5:$C$32,$G64)","v":3000},{"$f":"SUMIFS('Portfolio Analytics'!AJ$65:AJ$92,Lists!$C$5:$C$32,$G64)","v":0},{"$f":"SUMIFS('Portfolio Analytics'!AK$65:AK$92,Lists!$C$5:$C$32,$G64)","v":0},{"$f":"SUMIFS('Portfolio Analytics'!AL$65:AL$92,Lists!$C$5:$C$32,$G64)","v":0},{"$f":"SUMIFS('Portfolio Analytics'!AM$65:AM$92,Lists!$C$5:$C$32,$G64)","v":0},{"$f":"SUMIFS('Portfolio Analytics'!AN$65:AN$92,Lists!$C$5:$C$32,$G64)","v":0}]
[null,null,null,null,null,null,"Offshore Wind","MW",null,{"$f":"SUMIFS('Portfolio Analytics'!E$65:E$92,Lists!$C$5:$C$32,$G65)","v":0},{"$f":"SUMIFS('Portfolio Analytics'!F$65:F$92,Lists!$C$5:$C$32,$G65)","v":0},{"$f":"SUMIFS('Portfolio Analytics'!G$65:G$92,Lists!$C$5:$C$32,$G65)","v":0},{"$f":"SUMIFS('Portfolio Analytics'!H$65:H$92,Lists!$C$5:$C$32,$G65)","v":0},{"$f":"SUMIFS('Portfolio Analytics'!I$65:I$92,Lists!$C$5:$C$32,$G65)","v":0},{"$f":"SUMIFS('Portfolio Analytics'!J$65:J$92,Lists!$C$5:$C$32,$G65)","v":0},{"$f":"SUMIFS('Portfolio Analytics'!K$65:K$92,Lists!$C$5:$C$32,$G65)","v":0},{"$f":"SUMIFS('Portfolio Analytics'!L$65:L$92,Lists!$C$5:$C$32,$G65)","v":0},{"$f":"SUMIFS('Portfolio Analytics'!M$65:M$92,Lists!$C$5:$C$32,$G65)","v":0},{"$f":"SUMIFS('Portfolio Analytics'!N$65:N$92,Lists!$C$5:$C$32,$G65)","v":0},{"$f":"SUMIFS('Portfolio Analytics'!O$65:O$92,Lists!$C$5:$C$32,$G65)","v":0},{"$f":"SUMIFS('Portfolio Analytics'!P$65:P$92,Lists!$C$5:$C$32,$G65)","v":0},{"$f":"SUMIFS('Portfolio Analytics'!Q$65:Q$92,Lists!$C$5:$C$32,$G65)","v":0},{"$f":"SUMIFS('Portfolio Analytics'!R$65:R$92,Lists!$C$5:$C$32,$G65)","v":0},{"$f":"SUMIFS('Portfolio Analytics'!S$65:S$92,Lists!$C$5:$C$32,$G65)","v":0},{"$f":"SUMIFS('Portfolio Analytics'!T$65:T$92,Lists!$C$5:$C$32,$G65)","v":0},{"$f":"SUMIFS('Portfolio Analytics'!U$65:U$92,Lists!$C$5:$C$32,$G65)","v":0},{"$f":"SUMIFS('Portfolio Analytics'!V$65:V$92,Lists!$C$5:$C$32,$G65)","v":0},{"$f":"SUMIFS('Portfolio Analytics'!W$65:W$92,Lists!$C$5:$C$32,$G65)","v":0},{"$f":"SUMIFS('Portfolio Analytics'!X$65:X$92,Lists!$C$5:$C$32,$G65)","v":0},{"$f":"SUMIFS('Portfolio Analytics'!Y$65:Y$92,Lists!$C$5:$C$32,$G65)","v":0},{"$f":"SUMIFS('Portfolio Analytics'!Z$65:Z$92,Lists!$C$5:$C$32,$G65)","v":0},{"$f":"SUMIFS('Portfolio Analytics'!AA$65:AA$92,Lists!$C$5:$C$32,$G65)","v":0},{"$f":"SUMIFS('Portfolio Analytics'!AB$65:AB$92,Lists!$C$5:$C$32,$G65)","v":0},{"$f":"SUMIFS('Portfolio Analytics'!AC$65:AC$92,Lists!$C$5:$C$32,$G65)","v":0},{"$f":"SUMIFS('Portfolio Analytics'!AD$65:AD$92,Lists!$C$5:$C$32,$G65)","v":0},{"$f":"SUMIFS('Portfolio Analytics'!AE$65:AE$92,Lists!$C$5:$C$32,$G65)","v":0},{"$f":"SUMIFS('Portfolio Analytics'!AF$65:AF$92,Lists!$C$5:$C$32,$G65)","v":0},{"$f":"SUMIFS('Portfolio Analytics'!AG$65:AG$92,Lists!$C$5:$C$32,$G65)","v":0},{"$f":"SUMIFS('Portfolio Analytics'!AH$65:AH$92,Lists!$C$5:$C$32,$G65)","v":0},{"$f":"SUMIFS('Portfolio Analytics'!AI$65:AI$92,Lists!$C$5:$C$32,$G65)","v":0},{"$f":"SUMIFS('Portfolio Analytics'!AJ$65:AJ$92,Lists!$C$5:$C$32,$G65)","v":0},{"$f":"SUMIFS('Portfolio Analytics'!AK$65:AK$92,Lists!$C$5:$C$32,$G65)","v":0},{"$f":"SUMIFS('Portfolio Analytics'!AL$65:AL$92,Lists!$C$5:$C$32,$G65)","v":0},{"$f":"SUMIFS('Portfolio Analytics'!AM$65:AM$92,Lists!$C$5:$C$32,$G65)","v":0},{"$f":"SUMIFS('Portfolio Analytics'!AN$65:AN$92,Lists!$C$5:$C$32,$G65)","v":0}]
[null,null,null,null,null,null,"Solar","MW",null,{"$f":"SUMIFS('Portfolio Analytics'!E$65:E$92,Lists!$C$5:$C$32,$G66)","v":0},{"$f":"SUMIFS('Portfolio Analytics'!F$65:F$92,Lists!$C$5:$C$32,$G66)","v":0},{"$f":"SUMIFS('Portfolio Analytics'!G$65:G$92,Lists!$C$5:$C$32,$G66)","v":0},{"$f":"SUMIFS('Portfolio Analytics'!H$65:H$92,Lists!$C$5:$C$32,$G66)","v":0},{"$f":"SUMIFS('Portfolio Analytics'!I$65:I$92,Lists!$C$5:$C$32,$G66)","v":0},{"$f":"SUMIFS('Portfolio Analytics'!J$65:J$92,Lists!$C$5:$C$32,$G66)","v":16310.33},{"$f":"SUMIFS('Portfolio Analytics'!K$65:K$92,Lists!$C$5:$C$32,$G66)","v":18765.849999999999},{"$f":"SUMIFS('Portfolio Analytics'!L$65:L$92,Lists!$C$5:$C$32,$G66)","v":20887.45},{"$f":"SUMIFS('Portfolio Analytics'!M$65:M$92,Lists!$C$5:$C$32,$G66)","v":22887.45},{"$f":"SUMIFS('Portfolio Analytics'!N$65:N$92,Lists!$C$5:$C$32,$G66)","v":25618.969999999998},{"$f":"SUMIFS('Portfolio Analytics'!O$65:O$92,Lists!$C$5:$C$32,$G66)","v":0},{"$f":"SUMIFS('Portfolio Analytics'!P$65:P$92,Lists!$C$5:$C$32,$G66)","v":30834.94},{"$f":"SUMIFS('Portfolio Analytics'!Q$65:Q$92,Lists!$C$5:$C$32,$G66)","v":0},{"$f":"SUMIFS('Portfolio Analytics'!R$65:R$92,Lists!$C$5:$C$32,$G66)","v":0},{"$f":"SUMIFS('Portfolio Analytics'!S$65:S$92,Lists!$C$5:$C$32,$G66)","v":0},{"$f":"SUMIFS('Portfolio Analytics'!T$65:T$92,Lists!$C$5:$C$32,$G66)","v":41146.520000000004},{"$f":"SUMIFS('Portfolio Analytics'!U$65:U$92,Lists!$C$5:$C$32,$G66)","v":0},{"$f":"SUMIFS('Portfolio Analytics'!V$65:V$92,Lists!$C$5:$C$32,$G66)","v":0},{"$f":"SUMIFS('Portfolio Analytics'!W$65:W$92,Lists!$C$5:$C$32,$G66)","v":0},{"$f":"SUMIFS('Portfolio Analytics'!X$65:X$92,Lists!$C$5:$C$32,$G66)","v":0},{"$f":"SUMIFS('Portfolio Analytics'!Y$65:Y$92,Lists!$C$5:$C$32,$G66)","v":0},{"$f":"SUMIFS('Portfolio Analytics'!Z$65:Z$92,Lists!$C$5:$C$32,$G66)","v":0},{"$f":"SUMIFS('Portfolio Analytics'!AA$65:AA$92,Lists!$C$5:$C$32,$G66)","v":0},{"$f":"SUMIFS('Portfolio Analytics'!AB$65:AB$92,Lists!$C$5:$C$32,$G66)","v":0},{"$f":"SUMIFS('Portfolio Analytics'!AC$65:AC$92,Lists!$C$5:$C$32,$G66)","v":0},{"$f":"SUMIFS('Portfolio Analytics'!AD$65:AD$92,Lists!$C$5:$C$32,$G66)","v":0},{"$f":"SUMIFS('Portfolio Analytics'!AE$65:AE$92,Lists!$C$5:$C$32,$G66)","v":0},{"$f":"SUMIFS('Portfolio Analytics'!AF$65:AF$92,Lists!$C$5:$C$32,$G66)","v":0},{"$f":"SUMIFS('Portfolio Analytics'!AG$65:AG$92,Lists!$C$5:$C$32,$G66)","v":0},{"$f":"SUMIFS('Portfolio Analytics'!AH$65:AH$92,Lists!$C$5:$C$32,$G66)","v":0},{"$f":"SUMIFS('Portfolio Analytics'!AI$65:AI$92,Lists!$C$5:$C$32,$G66)","v":131396.23000000001},{"$f":"SUMIFS('Portfolio Analytics'!AJ$65:AJ$92,Lists!$C$5:$C$32,$G66)","v":0},{"$f":"SUMIFS('Portfolio Analytics'!AK$65:AK$92,Lists!$C$5:$C$32,$G66)","v":0},{"$f":"SUMIFS('Portfolio Analytics'!AL$65:AL$92,Lists!$C$5:$C$32,$G66)","v":0},{"$f":"SUMIFS('Portfolio Analytics'!AM$65:AM$92,Lists!$C$5:$C$32,$G66)","v":0},{"$f":"SUMIFS('Portfolio Analytics'!AN$65:AN$92,Lists!$C$5:$C$32,$G66)","v":0}]
[null,null,null,null,null,null,"Customer Solar","MW",null,{"$f":"SUMIFS('Portfolio Analytics'!E$65:E$92,Lists!$C$5:$C$32,$G67)","v":0},{"$f":"SUMIFS('Portfolio Analytics'!F$65:F$92,Lists!$C$5:$C$32,$G67)","v":0},{"$f":"SUMIFS('Portfolio Analytics'!G$65:G$92,Lists!$C$5:$C$32,$G67)","v":0},{"$f":"SUMIFS('Portfolio Analytics'!H$65:H$92,Lists!$C$5:$C$32,$G67)","v":0},{"$f":"SUMIFS('Portfolio Analytics'!I$65:I$92,Lists!$C$5:$C$32,$G67)","v":0},{"$f":"SUMIFS('Portfolio Analytics'!J$65:J$92,Lists!$C$5:$C$32,$G67)","v":7269.29},{"$f":"SUMIFS('Portfolio Analytics'!K$65:K$92,Lists!$C$5:$C$32,$G67)","v":7269.29},{"$f":"SUMIFS('Portfolio Analytics'!L$65:L$92,Lists!$C$5:$C$32,$G67)","v":7269.29},{"$f":"SUMIFS('Portfolio Analytics'!M$65:M$92,Lists!$C$5:$C$32,$G67)","v":7269.29},{"$f":"SUMIFS('Portfolio Analytics'!N$65:N$92,Lists!$C$5:$C$32,$G67)","v":7269.29},{"$f":"SUMIFS('Portfolio Analytics'!O$65:O$92,Lists!$C$5:$C$32,$G67)","v":0},{"$f":"SUMIFS('Portfolio Analytics'!P$65:P$92,Lists!$C$5:$C$32,$G67)","v":7269.29},{"$f":"SUMIFS('Portfolio Analytics'!Q$65:Q$92,Lists!$C$5:$C$32,$G67)","v":0},{"$f":"SUMIFS('Portfolio Analytics'!R$65:R$92,Lists!$C$5:$C$32,$G67)","v":0},{"$f":"SUMIFS('Portfolio Analytics'!S$65:S$92,Lists!$C$5:$C$32,$G67)","v":0},{"$f":"SUMIFS('Portfolio Analytics'!T$65:T$92,Lists!$C$5:$C$32,$G67)","v":7269.29},{"$f":"SUMIFS('Portfolio Analytics'!U$65:U$92,Lists!$C$5:$C$32,$G67)","v":0},{"$f":"SUMIFS('Portfolio Analytics'!V$65:V$92,Lists!$C$5:$C$32,$G67)","v":0},{"$f":"SUMIFS('Portfolio Analytics'!W$65:W$92,Lists!$C$5:$C$32,$G67)","v":0},{"$f":"SUMIFS('Portfolio Analytics'!X$65:X$92,Lists!$C$5:$C$32,$G67)","v":0},{"$f":"SUMIFS('Portfolio Analytics'!Y$65:Y$92,Lists!$C$5:$C$32,$G67)","v":0},{"$f":"SUMIFS('Portfolio Analytics'!Z$65:Z$92,Lists!$C$5:$C$32,$G67)","v":0},{"$f":"SUMIFS('Portfolio Analytics'!AA$65:AA$92,Lists!$C$5:$C$32,$G67)","v":0},{"$f":"SUMIFS('Portfolio Analytics'!AB$65:AB$92,Lists!$C$5:$C$32,$G67)","v":0},{"$f":"SUMIFS('Portfolio Analytics'!AC$65:AC$92,Lists!$C$5:$C$32,$G67)","v":0},{"$f":"SUMIFS('Portfolio Analytics'!AD$65:AD$92,Lists!$C$5:$C$32,$G67)","v":0},{"$f":"SUMIFS('Portfolio Analytics'!AE$65:AE$92,Lists!$C$5:$C$32,$G67)","v":0},{"$f":"SUMIFS('Portfolio Analytics'!AF$65:AF$92,Lists!$C$5:$C$32,$G67)","v":0},{"$f":"SUMIFS('Portfolio Analytics'!AG$65:AG$92,Lists!$C$5:$C$32,$G67)","v":0},{"$f":"SUMIFS('Portfolio Analytics'!AH$65:AH$92,Lists!$C$5:$C$32,$G67)","v":0},{"$f":"SUMIFS('Portfolio Analytics'!AI$65:AI$92,Lists!$C$5:$C$32,$G67)","v":7269.29},{"$f":"SUMIFS('Portfolio Analytics'!AJ$65:AJ$92,Lists!$C$5:$C$32,$G67)","v":0},{"$f":"SUMIFS('Portfolio Analytics'!AK$65:AK$92,Lists!$C$5:$C$32,$G67)","v":0},{"$f":"SUMIFS('Portfolio Analytics'!AL$65:AL$92,Lists!$C$5:$C$32,$G67)","v":0},{"$f":"SUMIFS('Portfolio Analytics'!AM$65:AM$92,Lists!$C$5:$C$32,$G67)","v":0},{"$f":"SUMIFS('Portfolio Analytics'!AN$65:AN$92,Lists!$C$5:$C$32,$G67)","v":0}]
[null,null,null,null,null,null,"Battery Storage","MW",null,{"$f":"SUMIFS('Portfolio Analytics'!E$65:E$92,Lists!$C$5:$C$32,$G68)","v":0},{"$f":"SUMIFS('Portfolio Analytics'!F$65:F$92,Lists!$C$5:$C$32,$G68)","v":0},{"$f":"SUMIFS('Portfolio Analytics'!G$65:G$92,Lists!$C$5:$C$32,$G68)","v":0},{"$f":"SUMIFS('Portfolio Analytics'!H$65:H$92,Lists!$C$5:$C$32,$G68)","v":0},{"$f":"SUMIFS('Portfolio Analytics'!I$65:I$92,Lists!$C$5:$C$32,$G68)","v":0},{"$f":"SUMIFS('Portfolio Analytics'!J$65:J$92,Lists!$C$5:$C$32,$G68)","v":3510.24},{"$f":"SUMIFS('Portfolio Analytics'!K$65:K$92,Lists!$C$5:$C$32,$G68)","v":6140.1},{"$f":"SUMIFS('Portfolio Analytics'!L$65:L$92,Lists!$C$5:$C$32,$G68)","v":6140.1},{"$f":"SUMIFS('Portfolio Analytics'!M$65:M$92,Lists!$C$5:$C$32,$G68)","v":6528.1500000000005},{"$f":"SUMIFS('Portfolio Analytics'!N$65:N$92,Lists!$C$5:$C$32,$G68)","v":8320.39},{"$f":"SUMIFS('Portfolio Analytics'!O$65:O$92,Lists!$C$5:$C$32,$G68)","v":0},{"$f":"SUMIFS('Portfolio Analytics'!P$65:P$92,Lists!$C$5:$C$32,$G68)","v":11544.919999999998},{"$f":"SUMIFS('Portfolio Analytics'!Q$65:Q$92,Lists!$C$5:$C$32,$G68)","v":0},{"$f":"SUMIFS('Portfolio Analytics'!R$65:R$92,Lists!$C$5:$C$32,$G68)","v":0},{"$f":"SUMIFS('Portfolio Analytics'!S$65:S$92,Lists!$C$5:$C$32,$G68)","v":0},{"$f":"SUMIFS('Portfolio Analytics'!T$65:T$92,Lists!$C$5:$C$32,$G68)","v":14137.929999999998},{"$f":"SUMIFS('Portfolio Analytics'!U$65:U$92,Lists!$C$5:$C$32,$G68)","v":0},{"$f":"SUMIFS('Portfolio Analytics'!V$65:V$92,Lists!$C$5:$C$32,$G68)","v":0},{"$f":"SUMIFS('Portfolio Analytics'!W$65:W$92,Lists!$C$5:$C$32,$G68)","v":0},{"$f":"SUMIFS('Portfolio Analytics'!X$65:X$92,Lists!$C$5:$C$32,$G68)","v":0},{"$f":"SUMIFS('Portfolio Analytics'!Y$65:Y$92,Lists!$C$5:$C$32,$G68)","v":0},{"$f":"SUMIFS('Portfolio Analytics'!Z$65:Z$92,Lists!$C$5:$C$32,$G68)","v":0},{"$f":"SUMIFS('Portfolio Analytics'!AA$65:AA$92,Lists!$C$5:$C$32,$G68)","v":0},{"$f":"SUMIFS('Portfolio Analytics'!AB$65:AB$92,Lists!$C$5:$C$32,$G68)","v":0},{"$f":"SUMIFS('Portfolio Analytics'!AC$65:AC$92,Lists!$C$5:$C$32,$G68)","v":0},{"$f":"SUMIFS('Portfolio Analytics'!AD$65:AD$92,Lists!$C$5:$C$32,$G68)","v":0},{"$f":"SUMIFS('Portfolio Analytics'!AE$65:AE$92,Lists!$C$5:$C$32,$G68)","v":0},{"$f":"SUMIFS('Portfolio Analytics'!AF$65:AF$92,Lists!$C$5:$C$32,$G68)","v":0},{"$f":"SUMIFS('Portfolio Analytics'!AG$65:AG$92,Lists!$C$5:$C$32,$G68)","v":0},{"$f":"SUMIFS('Portfolio Analytics'!AH$65:AH$92,Lists!$C$5:$C$32,$G68)","v":0},{"$f":"SUMIFS('Portfolio Analytics'!AI$65:AI$92,Lists!$C$5:$C$32,$G68)","v":60925.7},{"$f":"SUMIFS('Portfolio Analytics'!AJ$65:AJ$92,Lists!$C$5:$C$32,$G68)","v":0},{"$f":"SUMIFS('Portfolio Analytics'!AK$65:AK$92,Lists!$C$5:$C$32,$G68)","v":0},{"$f":"SUMIFS('Portfolio Analytics'!AL$65:AL$92,Lists!$C$5:$C$32,$G68)","v":0},{"$f":"SUMIFS('Portfolio Analytics'!AM$65:AM$92,Lists!$C$5:$C$32,$G68)","v":0},{"$f":"SUMIFS('Portfolio Analytics'!AN$65:AN$92,Lists!$C$5:$C$32,$G68)","v":0}]
[null,null,null,null,null,null,"Pumped Storage","MW",null,{"$f":"SUMIFS('Portfolio Analytics'!E$65:E$92,Lists!$C$5:$C$32,$G69)","v":0},{"$f":"SUMIFS('Portfolio Analytics'!F$65:F$92,Lists!$C$5:$C$32,$G69)","v":0},{"$f":"SUMIFS('Portfolio Analytics'!G$65:G$92,Lists!$C$5:$C$32,$G69)","v":0},{"$f":"SUMIFS('Portfolio Analytics'!H$65:H$92,Lists!$C$5:$C$32,$G69)","v":0},{"$f":"SUMIFS('Portfolio Analytics'!I$65:I$92,Lists!$C$5:$C$32,$G69)","v":0},{"$f":"SUMIFS('Portfolio Analytics'!J$65:J$92,Lists!$C$5:$C$32,$G69)","v":1599.2},{"$f":"SUMIFS('Portfolio Analytics'!K$65:K$92,Lists!$C$5:$C$32,$G69)","v":1599.2},{"$f":"SUMIFS('Portfolio Analytics'!L$65:L$92,Lists!$C$5:$C$32,$G69)","v":1599.2},{"$f":"SUMIFS('Portfolio Analytics'!M$65:M$92,Lists!$C$5:$C$32,$G69)","v":1599.2},{"$f":"SUMIFS('Portfolio Analytics'!N$65:N$92,Lists!$C$5:$C$32,$G69)","v":1599.2},{"$f":"SUMIFS('Portfolio Analytics'!O$65:O$92,Lists!$C$5:$C$32,$G69)","v":0},{"$f":"SUMIFS('Portfolio Analytics'!P$65:P$92,Lists!$C$5:$C$32,$G69)","v":3585.67},{"$f":"SUMIFS('Portfolio Analytics'!Q$65:Q$92,Lists!$C$5:$C$32,$G69)","v":0},{"$f":"SUMIFS('Portfolio Analytics'!R$65:R$92,Lists!$C$5:$C$32,$G69)","v":0},{"$f":"SUMIFS('Portfolio Analytics'!S$65:S$92,Lists!$C$5:$C$32,$G69)","v":0},{"$f":"SUMIFS('Portfolio Analytics'!T$65:T$92,Lists!$C$5:$C$32,$G69)","v":3585.67},{"$f":"SUMIFS('Portfolio Analytics'!U$65:U$92,Lists!$C$5:$C$32,$G69)","v":0},{"$f":"SUMIFS('Portfolio Analytics'!V$65:V$92,Lists!$C$5:$C$32,$G69)","v":0},{"$f":"SUMIFS('Portfolio Analytics'!W$65:W$92,Lists!$C$5:$C$32,$G69)","v":0},{"$f":"SUMIFS('Portfolio Analytics'!X$65:X$92,Lists!$C$5:$C$32,$G69)","v":0},{"$f":"SUMIFS('Portfolio Analytics'!Y$65:Y$92,Lists!$C$5:$C$32,$G69)","v":0},{"$f":"SUMIFS('Portfolio Analytics'!Z$65:Z$92,Lists!$C$5:$C$32,$G69)","v":0},{"$f":"SUMIFS('Portfolio Analytics'!AA$65:AA$92,Lists!$C$5:$C$32,$G69)","v":0},{"$f":"SUMIFS('Portfolio Analytics'!AB$65:AB$92,Lists!$C$5:$C$32,$G69)","v":0},{"$f":"SUMIFS('Portfolio Analytics'!AC$65:AC$92,Lists!$C$5:$C$32,$G69)","v":0},{"$f":"SUMIFS('Portfolio Analytics'!AD$65:AD$92,Lists!$C$5:$C$32,$G69)","v":0},{"$f":"SUMIFS('Portfolio Analytics'!AE$65:AE$92,Lists!$C$5:$C$32,$G69)","v":0},{"$f":"SUMIFS('Portfolio Analytics'!AF$65:AF$92,Lists!$C$5:$C$32,$G69)","v":0},{"$f":"SUMIFS('Portfolio Analytics'!AG$65:AG$92,Lists!$C$5:$C$32,$G69)","v":0},{"$f":"SUMIFS('Portfolio Analytics'!AH$65:AH$92,Lists!$C$5:$C$32,$G69)","v":0},{"$f":"SUMIFS('Portfolio Analytics'!AI$65:AI$92,Lists!$C$5:$C$32,$G69)","v":3585.67},{"$f":"SUMIFS('Portfolio Analytics'!AJ$65:AJ$92,Lists!$C$5:$C$32,$G69)","v":0},{"$f":"SUMIFS('Portfolio Analytics'!AK$65:AK$92,Lists!$C$5:$C$32,$G69)","v":0},{"$f":"SUMIFS('Portfolio Analytics'!AL$65:AL$92,Lists!$C$5:$C$32,$G69)","v":0},{"$f":"SUMIFS('Portfolio Analytics'!AM$65:AM$92,Lists!$C$5:$C$32,$G69)","v":0},{"$f":"SUMIFS('Portfolio Analytics'!AN$65:AN$92,Lists!$C$5:$C$32,$G69)","v":0}]
[null,null,null,null,null,null,"Shed DR","MW",null,{"$f":"SUMIFS('Portfolio Analytics'!E$65:E$92,Lists!$C$5:$C$32,$G70)","v":0},{"$f":"SUMIFS('Portfolio Analytics'!F$65:F$92,Lists!$C$5:$C$32,$G70)","v":0},{"$f":"SUMIFS('Portfolio Analytics'!G$65:G$92,Lists!$C$5:$C$32,$G70)","v":0},{"$f":"SUMIFS('Portfolio Analytics'!H$65:H$92,Lists!$C$5:$C$32,$G70)","v":0},{"$f":"SUMIFS('Portfolio Analytics'!I$65:I$92,Lists!$C$5:$C$32,$G70)","v":0},{"$f":"SUMIFS('Portfolio Analytics'!J$65:J$92,Lists!$C$5:$C$32,$G70)","v":0},{"$f":"SUMIFS('Portfolio Analytics'!K$65:K$92,Lists!$C$5:$C$32,$G70)","v":0},{"$f":"SUMIFS('Portfolio Analytics'!L$65:L$92,Lists!$C$5:$C$32,$G70)","v":0},{"$f":"SUMIFS('Portfolio Analytics'!M$65:M$92,Lists!$C$5:$C$32,$G70)","v":0},{"$f":"SUMIFS('Portfolio Analytics'!N$65:N$92,Lists!$C$5:$C$32,$G70)","v":0},{"$f":"SUMIFS('Portfolio Analytics'!O$65:O$92,Lists!$C$5:$C$32,$G70)","v":0},{"$f":"SUMIFS('Portfolio Analytics'!P$65:P$92,Lists!$C$5:$C$32,$G70)","v":0},{"$f":"SUMIFS('Portfolio Analytics'!Q$65:Q$92,Lists!$C$5:$C$32,$G70)","v":0},{"$f":"SUMIFS('Portfolio Analytics'!R$65:R$92,Lists!$C$5:$C$32,$G70)","v":0},{"$f":"SUMIFS('Portfolio Analytics'!S$65:S$92,Lists!$C$5:$C$32,$G70)","v":0},{"$f":"SUMIFS('Portfolio Analytics'!T$65:T$92,Lists!$C$5:$C$32,$G70)","v":0},{"$f":"SUMIFS('Portfolio Analytics'!U$65:U$92,Lists!$C$5:$C$32,$G70)","v":0},{"$f":"SUMIFS('Portfolio Analytics'!V$65:V$92,Lists!$C$5:$C$32,$G70)","v":0},{"$f":"SUMIFS('Portfolio Analytics'!W$65:W$92,Lists!$C$5:$C$32,$G70)","v":0},{"$f":"SUMIFS('Portfolio Analytics'!X$65:X$92,Lists!$C$5:$C$32,$G70)","v":0},{"$f":"SUMIFS('Portfolio Analytics'!Y$65:Y$92,Lists!$C$5:$C$32,$G70)","v":0},{"$f":"SUMIFS('Portfolio Analytics'!Z$65:Z$92,Lists!$C$5:$C$32,$G70)","v":0},{"$f":"SUMIFS('Portfolio Analytics'!AA$65:AA$92,Lists!$C$5:$C$32,$G70)","v":0},{"$f":"SUMIFS('Portfolio Analytics'!AB$65:AB$92,Lists!$C$5:$C$32,$G70)","v":0},{"$f":"SUMIFS('Portfolio Analytics'!AC$65:AC$92,Lists!$C$5:$C$32,$G70)","v":0},{"$f":"SUMIFS('Portfolio Analytics'!AD$65:AD$92,Lists!$C$5:$C$32,$G70)","v":0},{"$f":"SUMIFS('Portfolio Analytics'!AE$65:AE$92,Lists!$C$5:$C$32,$G70)","v":0},{"$f":"SUMIFS('Portfolio Analytics'!AF$65:AF$92,Lists!$C$5:$C$32,$G70)","v":0},{"$f":"SUMIFS('Portfolio Analytics'!AG$65:AG$92,Lists!$C$5:$C$32,$G70)","v":0},{"$f":"SUMIFS('Portfolio Analytics'!AH$65:AH$92,Lists!$C$5:$C$32,$G70)","v":0},{"$f":"SUMIFS('Portfolio Analytics'!AI$65:AI$92,Lists!$C$5:$C$32,$G70)","v":0},{"$f":"SUMIFS('Portfolio Analytics'!AJ$65:AJ$92,Lists!$C$5:$C$32,$G70)","v":0},{"$f":"SUMIFS('Portfolio Analytics'!AK$65:AK$92,Lists!$C$5:$C$32,$G70)","v":0},{"$f":"SUMIFS('Portfolio Analytics'!AL$65:AL$92,Lists!$C$5:$C$32,$G70)","v":0},{"$f":"SUMIFS('Portfolio Analytics'!AM$65:AM$92,Lists!$C$5:$C$32,$G70)","v":0},{"$f":"SUMIFS('Portfolio Analytics'!AN$65:AN$92,Lists!$C$5:$C$32,$G70)","v":0}]
[null,null,null,null,null,null,"Shift DR","MW",null,{"$f":"SUMIFS('Portfolio Analytics'!E$65:E$92,Lists!$C$5:$C$32,$G71)","v":0},{"$f":"SUMIFS('Portfolio Analytics'!F$65:F$92,Lists!$C$5:$C$32,$G71)","v":0},{"$f":"SUMIFS('Portfolio Analytics'!G$65:G$92,Lists!$C$5:$C$32,$G71)","v":0},{"$f":"SUMIFS('Portfolio Analytics'!H$65:H$92,Lists!$C$5:$C$32,$G71)","v":0},{"$f":"SUMIFS('Portfolio Analytics'!I$65:I$92,Lists!$C$5:$C$32,$G71)","v":0},{"$f":"SUMIFS('Portfolio Analytics'!J$65:J$92,Lists!$C$5:$C$32,$G71)","v":0},{"$f":"SUMIFS('Portfolio Analytics'!K$65:K$92,Lists!$C$5:$C$32,$G71)","v":0},{"$f":"SUMIFS('Portfolio Analytics'!L$65:L$92,Lists!$C$5:$C$32,$G71)","v":0},{"$f":"SUMIFS('Portfolio Analytics'!M$65:M$92,Lists!$C$5:$C$32,$G71)","v":0},{"$f":"SUMIFS('Portfolio Analytics'!N$65:N$92,Lists!$C$5:$C$32,$G71)","v":0},{"$f":"SUMIFS('Portfolio Analytics'!O$65:O$92,Lists!$C$5:$C$32,$G71)","v":0},{"$f":"SUMIFS('Portfolio Analytics'!P$65:P$92,Lists!$C$5:$C$32,$G71)","v":0},{"$f":"SUMIFS('Portfolio Analytics'!Q$65:Q$92,Lists!$C$5:$C$32,$G71)","v":0},{"$f":"SUMIFS('Portfolio Analytics'!R$65:R$92,Lists!$C$5:$C$32,$G71)","v":0},{"$f":"SUMIFS('Portfolio Analytics'!S$65:S$92,Lists!$C$5:$C$32,$G71)","v":0},{"$f":"SUMIFS('Portfolio Analytics'!T$65:T$92,Lists!$C$5:$C$32,$G71)","v":0},{"$f":"SUMIFS('Portfolio Analytics'!U$65:U$92,Lists!$C$5:$C$32,$G71)","v":0},{"$f":"SUMIFS('Portfolio Analytics'!V$65:V$92,Lists!$C$5:$C$32,$G71)","v":0},{"$f":"SUMIFS('Portfolio Analytics'!W$65:W$92,Lists!$C$5:$C$32,$G71)","v":0},{"$f":"SUMIFS('Portfolio Analytics'!X$65:X$92,Lists!$C$5:$C$32,$G71)","v":0},{"$f":"SUMIFS('Portfolio Analytics'!Y$65:Y$92,Lists!$C$5:$C$32,$G71)","v":0},{"$f":"SUMIFS('Portfolio Analytics'!Z$65:Z$92,Lists!$C$5:$C$32,$G71)","v":0},{"$f":"SUMIFS('Portfolio Analytics'!AA$65:AA$92,Lists!$C$5:$C$32,$G71)","v":0},{"$f":"SUMIFS('Portfolio Analytics'!AB$65:AB$92,Lists!$C$5:$C$32,$G71)","v":0},{"$f":"SUMIFS('Portfolio Analytics'!AC$65:AC$92,Lists!$C$5:$C$32,$G71)","v":0},{"$f":"SUMIFS('Portfolio Analytics'!AD$65:AD$92,Lists!$C$5:$C$32,$G71)","v":0},{"$f":"SUMIFS('Portfolio Analytics'!AE$65:AE$92,Lists!$C$5:$C$32,$G71)","v":0},{"$f":"SUMIFS('Portfolio Analytics'!AF$65:AF$92,Lists!$C$5:$C$32,$G71)","v":0},{"$f":"SUMIFS('Portfolio Analytics'!AG$65:AG$92,Lists!$C$5:$C$32,$G71)","v":0},{"$f":"SUMIFS('Portfolio Analytics'!AH$65:AH$92,Lists!$C$5:$C$32,$G71)","v":0},{"$f":"SUMIFS('Portfolio Analytics'!AI$65:AI$92,Lists!$C$5:$C$32,$G71)","v":0},{"$f":"SUMIFS('Portfolio Analytics'!AJ$65:AJ$92,Lists!$C$5:$C$32,$G71)","v":0},{"$f":"SUMIFS('Portfolio Analytics'!AK$65:AK$92,Lists!$C$5:$C$32,$G71)","v":0},{"$f":"SUMIFS('Portfolio Analytics'!AL$65:AL$92,Lists!$C$5:$C$32,$G71)","v":0},{"$f":"SUMIFS('Portfolio Analytics'!AM$65:AM$92,Lists!$C$5:$C$32,$G71)","v":0},{"$f":"SUMIFS('Portfolio Analytics'!AN$65:AN$92,Lists!$C$5:$C$32,$G71)","v":0}]
[null,null,null,null,null,null,"Hydrogen Load","MW",null,{"$f":"SUMIFS('Portfolio Analytics'!E$65:E$92,Lists!$C$5:$C$32,$G72)","v":0},{"$f":"SUMIFS('Portfolio Analytics'!F$65:F$92,Lists!$C$5:$C$32,$G72)","v":0},{"$f":"SUMIFS('Portfolio Analytics'!G$65:G$92,Lists!$C$5:$C$32,$G72)","v":0},{"$f":"SUMIFS('Portfolio Analytics'!H$65:H$92,Lists!$C$5:$C$32,$G72)","v":0},{"$f":"SUMIFS('Portfolio Analytics'!I$65:I$92,Lists!$C$5:$C$32,$G72)","v":0},{"$f":"SUMIFS('Portfolio Analytics'!J$65:J$92,Lists!$C$5:$C$32,$G72)","v":0},{"$f":"SUMIFS('Portfolio Analytics'!K$65:K$92,Lists!$C$5:$C$32,$G72)","v":0},{"$f":"SUMIFS('Portfolio Analytics'!L$65:L$92,Lists!$C$5:$C$32,$G72)","v":0},{"$f":"SUMIFS('Portfolio Analytics'!M$65:M$92,Lists!$C$5:$C$32,$G72)","v":0},{"$f":"SUMIFS('Portfolio Analytics'!N$65:N$92,Lists!$C$5:$C$32,$G72)","v":0},{"$f":"SUMIFS('Portfolio Analytics'!O$65:O$92,Lists!$C$5:$C$32,$G72)","v":0},{"$f":"SUMIFS('Portfolio Analytics'!P$65:P$92,Lists!$C$5:$C$32,$G72)","v":0},{"$f":"SUMIFS('Portfolio Analytics'!Q$65:Q$92,Lists!$C$5:$C$32,$G72)","v":0},{"$f":"SUMIFS('Portfolio Analytics'!R$65:R$92,Lists!$C$5:$C$32,$G72)","v":0},{"$f":"SUMIFS('Portfolio Analytics'!S$65:S$92,Lists!$C$5:$C$32,$G72)","v":0},{"$f":"SUMIFS('Portfolio Analytics'!T$65:T$92,Lists!$C$5:$C$32,$G72)","v":0},{"$f":"SUMIFS('Portfolio Analytics'!U$65:U$92,Lists!$C$5:$C$32,$G72)","v":0},{"$f":"SUMIFS('Portfolio Analytics'!V$65:V$92,Lists!$C$5:$C$32,$G72)","v":0},{"$f":"SUMIFS('Portfolio Analytics'!W$65:W$92,Lists!$C$5:$C$32,$G72)","v":0},{"$f":"SUMIFS('Portfolio Analytics'!X$65:X$92,Lists!$C$5:$C$32,$G72)","v":0},{"$f":"SUMIFS('Portfolio Analytics'!Y$65:Y$92,Lists!$C$5:$C$32,$G72)","v":0},{"$f":"SUMIFS('Portfolio Analytics'!Z$65:Z$92,Lists!$C$5:$C$32,$G72)","v":0},{"$f":"SUMIFS('Portfolio Analytics'!AA$65:AA$92,Lists!$C$5:$C$32,$G72)","v":0},{"$f":"SUMIFS('Portfolio Analytics'!AB$65:AB$92,Lists!$C$5:$C$32,$G72)","v":0},{"$f":"SUMIFS('Portfolio Analytics'!AC$65:AC$92,Lists!$C$5:$C$32,$G72)","v":0},{"$f":"SUMIFS('Portfolio Analytics'!AD$65:AD$92,Lists!$C$5:$C$32,$G72)","v":0},{"$f":"SUMIFS('Portfolio Analytics'!AE$65:AE$92,Lists!$C$5:$C$32,$G72)","v":0},{"$f":"SUMIFS('Portfolio Analytics'!AF$65:AF$92,Lists!$C$5:$C$32,$G72)","v":0},{"$f":"SUMIFS('Portfolio Analytics'!AG$65:AG$92,Lists!$C$5:$C$32,$G72)","v":0},{"$f":"SUMIFS('Portfolio Analytics'!AH$65:AH$92,Lists!$C$5:$C$32,$G72)","v":0},{"$f":"SUMIFS('Portfolio Analytics'!AI$65:AI$92,Lists!$C$5:$C$32,$G72)","v":450.41},{"$f":"SUMIFS('Portfolio Analytics'!AJ$65:AJ$92,Lists!$C$5:$C$32,$G72)","v":0},{"$f":"SUMIFS('Portfolio Analytics'!AK$65:AK$92,Lists!$C$5:$C$32,$G72)","v":0},{"$f":"SUMIFS('Portfolio Analytics'!AL$65:AL$92,Lists!$C$5:$C$32,$G72)","v":0},{"$f":"SUMIFS('Portfolio Analytics'!AM$65:AM$92,Lists!$C$5:$C$32,$G72)","v":0},{"$f":"SUMIFS('Portfolio Analytics'!AN$65:AN$92,Lists!$C$5:$C$32,$G72)","v":0}]
[null,null,null,null,null,null,"In-State Renewables","MW",null,{"$f":"SUM(J60:J67)-J74","v":0},0,0,0,0,33193.979999999996,35783.249999999993,40802.68,43089.68,46048.369999999995,0,51264.34,0,0,0,62963.95,0,0,0,0,0,0,0,0,0,0,0,0,0,0,157057.61000000002,0,0,0,0,0]
[null,null,null,null,null,null,"Out-Of-State Renewables","MW",null,{"$f":"SUMIFS(raw_resource_build!$F:$F,raw_resource_build!$D:$D,mainzone,raw_resource_build!$C:$C,{\"NW\",\"SW\"},raw_resource_build!$A:$A,J$53)+J42","v":0},{"$f":"SUMIFS(raw_resource_build!$F:$F,raw_resource_build!$D:$D,mainzone,raw_resource_build!$C:$C,{\"NW\",\"SW\"},raw_resource_build!$A:$A,K$53)+K42","v":0},{"$f":"SUMIFS(raw_resource_build!$F:$F,raw_resource_build!$D:$D,mainzone,raw_resource_build!$C:$C,{\"NW\",\"SW\"},raw_resource_build!$A:$A,L$53)+L42","v":0},{"$f":"SUMIFS(raw_resource_build!$F:$F,raw_resource_build!$D:$D,mainzone,raw_resource_build!$C:$C,{\"NW\",\"SW\"},raw_resource_build!$A:$A,M$53)+M42","v":0},{"$f":"SUMIFS(raw_resource_build!$F:$F,raw_resource_build!$D:$D,mainzone,raw_resource_build!$C:$C,{\"NW\",\"SW\"},raw_resource_build!$A:$A,N$53)+N42","v":0},{"$f":"SUMIFS(raw_resource_build!$F:$F,raw_resource_build!$D:$D,mainzone,raw_resource_build!$C:$C,{\"NW\",\"SW\"},raw_resource_build!$A:$A,O$53)+O42","v":1470.19},{"$f":"SUMIFS(raw_resource_build!$F:$F,raw_resource_build!$D:$D,mainzone,raw_resource_build!$C:$C,{\"NW\",\"SW\"},raw_resource_build!$A:$A,P$53)+P42","v":1470.19},{"$f":"SUMIFS(raw_resource_build!$F:$F,raw_resource_build!$D:$D,mainzone,raw_resource_build!$C:$C,{\"NW\",\"SW\"},raw_resource_build!$A:$A,Q$53)+Q42","v":1470.19},{"$f":"SUMIFS(raw_resource_build!$F:$F,raw_resource_build!$D:$D,mainzone,raw_resource_build!$C:$C,{\"NW\",\"SW\"},raw_resource_build!$A:$A,R$53)+R42","v":1470.19},{"$f":"SUMIFS(raw_resource_build!$F:$F,raw_resource_build!$D:$D,mainzone,raw_resource_build!$C:$C,{\"NW\",\"SW\"},raw_resource_build!$A:$A,S$53)+S42","v":1470.19},{"$f":"SUMIFS(raw_resource_build!$F:$F,raw_resource_build!$D:$D,mainzone,raw_resource_build!$C:$C,{\"NW\",\"SW\"},raw_resource_build!$A:$A,T$53)+T42","v":0},{"$f":"SUMIFS(raw_resource_build!$F:$F,raw_resource_build!$D:$D,mainzone,raw_resource_build!$C:$C,{\"NW\",\"SW\"},raw_resource_build!$A:$A,U$53)+U42","v":1470.19},{"$f":"SUMIFS(raw_resource_build!$F:$F,raw_resource_build!$D:$D,mainzone,raw_resource_build!$C:$C,{\"NW\",\"SW\"},raw_resource_build!$A:$A,V$53)+V42","v":0},{"$f":"SUMIFS(raw_resource_build!$F:$F,raw_resource_build!$D:$D,mainzone,raw_resource_build!$C:$C,{\"NW\",\"SW\"},raw_resource_build!$A:$A,W$53)+W42","v":0},{"$f":"SUMIFS(raw_resource_build!$F:$F,raw_resource_build!$D:$D,mainzone,raw_resource_build!$C:$C,{\"NW\",\"SW\"},raw_resource_build!$A:$A,X$53)+X42","v":0},{"$f":"SUMIFS(raw_resource_build!$F:$F,raw_resource_build!$D:$D,mainzone,raw_resource_build!$C:$C,{\"NW\",\"SW\"},raw_resource_build!$A:$A,Y$53)+Y42","v":2807.06},{"$f":"SUMIFS(raw_resource_build!$F:$F,raw_resource_build!$D:$D,mainzone,raw_resource_build!$C:$C,{\"NW\",\"SW\"},raw_resource_build!$A:$A,Z$53)+Z42","v":0},{"$f":"SUMIFS(raw_resource_build!$F:$F,raw_resource_build!$D:$D,mainzone,raw_resource_build!$C:$C,{\"NW\",\"SW\"},raw_resource_build!$A:$A,AA$53)+AA42","v":0},{"$f":"SUMIFS(raw_resource_build!$F:$F,raw_resource_build!$D:$D,mainzone,raw_resource_build!$C:$C,{\"NW\",\"SW\"},raw_resource_build!$A:$A,AB$53)+AB42","v":0},{"$f":"SUMIFS(raw_resource_build!$F:$F,raw_resource_build!$D:$D,mainzone,raw_resource_build!$C:$C,{\"NW\",\"SW\"},raw_resource_build!$A:$A,AC$53)+AC42","v":0},{"$f":"SUMIFS(raw_resource_build!$F:$F,raw_resource_build!$D:$D,mainzone,raw_resource_build!$C:$C,{\"NW\",\"SW\"},raw_resource_build!$A:$A,AD$53)+AD42","v":0},{"$f":"SUMIFS(raw_resource_build!$F:$F,raw_resource_build!$D:$D,mainzone,raw_resource_build!$C:$C,{\"NW\",\"SW\"},raw_resource_build!$A:$A,AE$53)+AE42","v":0},{"$f":"SUMIFS(raw_resource_build!$F:$F,raw_resource_build!$D:$D,mainzone,raw_resource_build!$C:$C,{\"NW\",\"SW\"},raw_resource_build!$A:$A,AF$53)+AF42","v":0},{"$f":"SUMIFS(raw_resource_build!$F:$F,raw_resource_build!$D:$D,mainzone,raw_resource_build!$C:$C,{\"NW\",\"SW\"},raw_resource_build!$A:$A,AG$53)+AG42","v":0},{"$f":"SUMIFS(raw_resource_build!$F:$F,raw_resource_build!$D:$D,mainzone,raw_resource_build!$C:$C,{\"NW\",\"SW\"},raw_resource_build!$A:$A,AH$53)+AH42","v":0},{"$f":"SUMIFS(raw_resource_build!$F:$F,raw_resource_build!$D:$D,mainzone,raw_resource_build!$C:$C,{\"NW\",\"SW\"},raw_resource_build!$A:$A,AI$53)+AI42","v":0},{"$f":"SUMIFS(raw_resource_build!$F:$F,raw_resource_build!$D:$D,mainzone,raw_resource_build!$C:$C,{\"NW\",\"SW\"},raw_resource_build!$A:$A,AJ$53)+AJ42","v":0},{"$f":"SUMIFS(raw_resource_build!$F:$F,raw_resource_build!$D:$D,mainzone,raw_resource_build!$C:$C,{\"NW\",\"SW\"},raw_resource_build!$A:$A,AK$53)+AK42","v":0},{"$f":"SUMIFS(raw_resource_build!$F:$F,raw_resource_build!$D:$D,mainzone,raw_resource_build!$C:$C,{\"NW\",\"SW\"},raw_resource_build!$A:$A,AL$53)+AL42","v":0},{"$f":"SUMIFS(raw_resource_build!$F:$F,raw_resource_build!$D:$D,mainzone,raw_resource_build!$C:$C,{\"NW\",\"SW\"},raw_resource_build!$A:$A,AM$53)+AM42","v":0},{"$f":"SUMIFS(raw_resource_build!$F:$F,raw_resource_build!$D:$D,mainzone,raw_resource_build!$C:$C,{\"NW\",\"SW\"},raw_resource_build!$A:$A,AN$53)+AN42","v":4470.1900000000005},{"$f":"SUMIFS(raw_resource_build!$F:$F,raw_resource_build!$D:$D,mainzone,raw_resource_build!$C:$C,{\"NW\",\"SW\"},raw_resource_build!$A:$A,AO$53)+AO42","v":0},{"$f":"SUMIFS(raw_resource_build!$F:$F,raw_resource_build!$D:$D,mainzone,raw_resource_build!$C:$C,{\"NW\",\"SW\"},raw_resource_build!$A:$A,AP$53)+AP42","v":0},{"$f":"SUMIFS(raw_resource_build!$F:$F,raw_resource_build!$D:$D,mainzone,raw_resource_build!$C:$C,{\"NW\",\"SW\"},raw_resource_build!$A:$A,AQ$53)+AQ42","v":0},{"$f":"SUMIFS(raw_resource_build!$F:$F,raw_resource_build!$D:$D,mainzone,raw_resource_build!$C:$C,{\"NW\",\"SW\"},raw_resource_build!$A:$A,AR$53)+AR42","v":0},{"$f":"SUMIFS(raw_resource_build!$F:$F,raw_resource_build!$D:$D,mainzone,raw_resource_build!$C:$C,{\"NW\",\"SW\"},raw_resource_build!$A:$A,AS$53)+AS42","v":0}]
[null,null,null,null,null,null,"Battery Storage Penetration","% of peak load",null,{"$f":"IFERROR(J68/J163,0)","v":0},0,0,0,0,7.1613655443540772E-2,0.12487898731705729,0.12350188518333395,0.12960372506853277,0.16337801997084858,0,0.21433267074467796,0,0,0,0.25271087287747196,0,0,0,0,0,0,0,0,0,0,0,0,0,0,0.94459518689126254,0,0,0,0,0]
[null,null,null,null,null,null,"Gas capacity not retained (total, cumulative)","MW",null,{"$f":"INDEX('Portfolio Analytics'!$E$303:$AN$303,MATCH(Dashboard!J$53,'Portfolio Analytics'!$E$295:$AN$295,0))","v":0},{"$f":"INDEX('Portfolio Analytics'!$E$303:$AN$303,MATCH(Dashboard!K$53,'Portfolio Analytics'!$E$295:$AN$295,0))+J76","v":0},{"$f":"INDEX('Portfolio Analytics'!$E$303:$AN$303,MATCH(Dashboard!L$53,'Portfolio Analytics'!$E$295:$AN$295,0))+K76","v":0},{"$f":"INDEX('Portfolio Analytics'!$E$303:$AN$303,MATCH(Dashboard!M$53,'Portfolio Analytics'!$E$295:$AN$295,0))+L76","v":0},{"$f":"INDEX('Portfolio Analytics'!$E$303:$AN$303,MATCH(Dashboard!N$53,'Portfolio Analytics'!$E$295:$AN$295,0))+M76","v":0},{"$f":"INDEX('Portfolio Analytics'!$E$303:$AN$303,MATCH(Dashboard!O$53,'Portfolio Analytics'!$E$295:$AN$295,0))+N76","v":0},{"$f":"INDEX('Portfolio Analytics'!$E$303:$AN$303,MATCH(Dashboard!P$53,'Portfolio Analytics'!$E$295:$AN$295,0))+O76","v":0},{"$f":"INDEX('Portfolio Analytics'!$E$303:$AN$303,MATCH(Dashboard!Q$53,'Portfolio Analytics'!$E$295:$AN$295,0))+P76","v":0},{"$f":"INDEX('Portfolio Analytics'!$E$303:$AN$303,MATCH(Dashboard!R$53,'Portfolio Analytics'!$E$295:$AN$295,0))+Q76","v":0},{"$f":"INDEX('Portfolio Analytics'!$E$303:$AN$303,MATCH(Dashboard!S$53,'Portfolio Analytics'!$E$295:$AN$295,0))+R76","v":0},{"$f":"INDEX('Portfolio Analytics'!$E$303:$AN$303,MATCH(Dashboard!T$53,'Portfolio Analytics'!$E$295:$AN$295,0))+S76","v":0},{"$f":"INDEX('Portfolio Analytics'!$E$303:$AN$303,MATCH(Dashboard!U$53,'Portfolio Analytics'!$E$295:$AN$295,0))+T76","v":0},{"$f":"INDEX('Portfolio Analytics'!$E$303:$AN$303,MATCH(Dashboard!V$53,'Portfolio Analytics'!$E$295:$AN$295,0))+U76","v":0},{"$f":"INDEX('Portfolio Analytics'!$E$303:$AN$303,MATCH(Dashboard!W$53,'Portfolio Analytics'!$E$295:$AN$295,0))+V76","v":0},{"$f":"INDEX('Portfolio Analytics'!$E$303:$AN$303,MATCH(Dashboard!X$53,'Portfolio Analytics'!$E$295:$AN$295,0))+W76","v":0},{"$f":"INDEX('Portfolio Analytics'!$E$303:$AN$303,MATCH(Dashboard!Y$53,'Portfolio Analytics'!$E$295:$AN$295,0))+X76","v":0},{"$f":"INDEX('Portfolio Analytics'!$E$303:$AN$303,MATCH(Dashboard!Z$53,'Portfolio Analytics'!$E$295:$AN$295,0))+Y76","v":0},{"$f":"INDEX('Portfolio Analytics'!$E$303:$AN$303,MATCH(Dashboard!AA$53,'Portfolio Analytics'!$E$295:$AN$295,0))+Z76","v":0},{"$f":"INDEX('Portfolio Analytics'!$E$303:$AN$303,MATCH(Dashboard!AB$53,'Portfolio Analytics'!$E$295:$AN$295,0))+AA76","v":0},{"$f":"INDEX('Portfolio Analytics'!$E$303:$AN$303,MATCH(Dashboard!AC$53,'Portfolio Analytics'!$E$295:$AN$295,0))+AB76","v":0},{"$f":"INDEX('Portfolio Analytics'!$E$303:$AN$303,MATCH(Dashboard!AD$53,'Portfolio Analytics'!$E$295:$AN$295,0))+AC76","v":0},{"$f":"INDEX('Portfolio Analytics'!$E$303:$AN$303,MATCH(Dashboard!AE$53,'Portfolio Analytics'!$E$295:$AN$295,0))+AD76","v":0},{"$f":"INDEX('Portfolio Analytics'!$E$303:$AN$303,MATCH(Dashboard!AF$53,'Portfolio Analytics'!$E$295:$AN$295,0))+AE76","v":0},{"$f":"INDEX('Portfolio Analytics'!$E$303:$AN$303,MATCH(Dashboard!AG$53,'Portfolio Analytics'!$E$295:$AN$295,0))+AF76","v":0},{"$f":"INDEX('Portfolio Analytics'!$E$303:$AN$303,MATCH(Dashboard!AH$53,'Portfolio Analytics'!$E$295:$AN$295,0))+AG76","v":0},{"$f":"INDEX('Portfolio Analytics'!$E$303:$AN$303,MATCH(Dashboard!AI$53,'Portfolio Analytics'!$E$295:$AN$295,0))+AH76","v":0},{"$f":"INDEX('Portfolio Analytics'!$E$303:$AN$303,MATCH(Dashboard!AJ$53,'Portfolio Analytics'!$E$295:$AN$295,0))+AI76","v":0},{"$f":"INDEX('Portfolio Analytics'!$E$303:$AN$303,MATCH(Dashboard!AK$53,'Portfolio Analytics'!$E$295:$AN$295,0))+AJ76","v":0},{"$f":"INDEX('Portfolio Analytics'!$E$303:$AN$303,MATCH(Dashboard!AL$53,'Portfolio Analytics'!$E$295:$AN$295,0))+AK76","v":0},{"$f":"INDEX('Portfolio Analytics'!$E$303:$AN$303,MATCH(Dashboard!AM$53,'Portfolio Analytics'!$E$295:$AN$295,0))+AL76","v":0},{"$f":"INDEX('Portfolio Analytics'!$E$303:$AN$303,MATCH(Dashboard!AN$53,'Portfolio Analytics'!$E$295:$AN$295,0))+AM76","v":3769.76},{"$f":"INDEX('Portfolio Analytics'!$E$303:$AN$303,MATCH(Dashboard!AO$53,'Portfolio Analytics'!$E$295:$AN$295,0))+AN76","v":3769.76},{"$f":"INDEX('Portfolio Analytics'!$E$303:$AN$303,MATCH(Dashboard!AP$53,'Portfolio Analytics'!$E$295:$AN$295,0))+AO76","v":3769.76},{"$f":"INDEX('Portfolio Analytics'!$E$303:$AN$303,MATCH(Dashboard!AQ$53,'Portfolio Analytics'!$E$295:$AN$295,0))+AP76","v":3769.76},{"$f":"INDEX('Portfolio Analytics'!$E$303:$AN$303,MATCH(Dashboard!AR$53,'Portfolio Analytics'!$E$295:$AN$295,0))+AQ76","v":3769.76},{"$f":"INDEX('Portfolio Analytics'!$E$303:$AN$303,MATCH(Dashboard!AS$53,'Portfolio Analytics'!$E$295:$AN$295,0))+AR76","v":3769.76}]
[null,null,null,null,null,null,"Gas capacity not retained (economic, incremental)","MW",null,{"$f":"INDEX('Portfolio Analytics'!$E$315:$AN$315,MATCH(Dashboard!J$53,'Portfolio Analytics'!$E$295:$AN$295,0))","v":0},{"$f":"INDEX('Portfolio Analytics'!$E$315:$AN$315,MATCH(Dashboard!K$53,'Portfolio Analytics'!$E$295:$AN$295,0))","v":0},{"$f":"INDEX('Portfolio Analytics'!$E$315:$AN$315,MATCH(Dashboard!L$53,'Portfolio Analytics'!$E$295:$AN$295,0))","v":0},{"$f":"INDEX('Portfolio Analytics'!$E$315:$AN$315,MATCH(Dashboard!M$53,'Portfolio Analytics'!$E$295:$AN$295,0))","v":0},{"$f":"INDEX('Portfolio Analytics'!$E$315:$AN$315,MATCH(Dashboard!N$53,'Portfolio Analytics'!$E$295:$AN$295,0))","v":0},{"$f":"INDEX('Portfolio Analytics'!$E$315:$AN$315,MATCH(Dashboard!O$53,'Portfolio Analytics'!$E$295:$AN$295,0))","v":0},{"$f":"INDEX('Portfolio Analytics'!$E$315:$AN$315,MATCH(Dashboard!P$53,'Portfolio Analytics'!$E$295:$AN$295,0))","v":0},{"$f":"INDEX('Portfolio Analytics'!$E$315:$AN$315,MATCH(Dashboard!Q$53,'Portfolio Analytics'!$E$295:$AN$295,0))","v":0},{"$f":"INDEX('Portfolio Analytics'!$E$315:$AN$315,MATCH(Dashboard!R$53,'Portfolio Analytics'!$E$295:$AN$295,0))","v":0},{"$f":"INDEX('Portfolio Analytics'!$E$315:$AN$315,MATCH(Dashboard!S$53,'Portfolio Analytics'!$E$295:$AN$295,0))","v":0},{"$f":"INDEX('Portfolio Analytics'!$E$315:$AN$315,MATCH(Dashboard!T$53,'Portfolio Analytics'!$E$295:$AN$295,0))","v":0},{"$f":"INDEX('Portfolio Analytics'!$E$315:$AN$315,MATCH(Dashboard!U$53,'Portfolio Analytics'!$E$295:$AN$295,0))","v":0},{"$f":"INDEX('Portfolio Analytics'!$E$315:$AN$315,MATCH(Dashboard!V$53,'Portfolio Analytics'!$E$295:$AN$295,0))","v":0},{"$f":"INDEX('Portfolio Analytics'!$E$315:$AN$315,MATCH(Dashboard!W$53,'Portfolio Analytics'!$E$295:$AN$295,0))","v":0},{"$f":"INDEX('Portfolio Analytics'!$E$315:$AN$315,MATCH(Dashboard!X$53,'Portfolio Analytics'!$E$295:$AN$295,0))","v":0},{"$f":"INDEX('Portfolio Analytics'!$E$315:$AN$315,MATCH(Dashboard!Y$53,'Portfolio Analytics'!$E$295:$AN$295,0))","v":0},{"$f":"INDEX('Portfolio Analytics'!$E$315:$AN$315,MATCH(Dashboard!Z$53,'Portfolio Analytics'!$E$295:$AN$295,0))","v":0},{"$f":"INDEX('Portfolio Analytics'!$E$315:$AN$315,MATCH(Dashboard!AA$53,'Portfolio Analytics'!$E$295:$AN$295,0))","v":0},{"$f":"INDEX('Portfolio Analytics'!$E$315:$AN$315,MATCH(Dashboard!AB$53,'Portfolio Analytics'!$E$295:$AN$295,0))","v":0},{"$f":"INDEX('Portfolio Analytics'!$E$315:$AN$315,MATCH(Dashboard!AC$53,'Portfolio Analytics'!$E$295:$AN$295,0))","v":0},{"$f":"INDEX('Portfolio Analytics'!$E$315:$AN$315,MATCH(Dashboard!AD$53,'Portfolio Analytics'!$E$295:$AN$295,0))","v":0},{"$f":"INDEX('Portfolio Analytics'!$E$315:$AN$315,MATCH(Dashboard!AE$53,'Portfolio Analytics'!$E$295:$AN$295,0))","v":0},{"$f":"INDEX('Portfolio Analytics'!$E$315:$AN$315,MATCH(Dashboard!AF$53,'Portfolio Analytics'!$E$295:$AN$295,0))","v":0},{"$f":"INDEX('Portfolio Analytics'!$E$315:$AN$315,MATCH(Dashboard!AG$53,'Portfolio Analytics'!$E$295:$AN$295,0))","v":0},{"$f":"INDEX('Portfolio Analytics'!$E$315:$AN$315,MATCH(Dashboard!AH$53,'Portfolio Analytics'!$E$295:$AN$295,0))","v":0},{"$f":"INDEX('Portfolio Analytics'!$E$315:$AN$315,MATCH(Dashboard!AI$53,'Portfolio Analytics'!$E$295:$AN$295,0))","v":0},{"$f":"INDEX('Portfolio Analytics'!$E$315:$AN$315,MATCH(Dashboard!AJ$53,'Portfolio Analytics'!$E$295:$AN$295,0))","v":0},{"$f":"INDEX('Portfolio Analytics'!$E$315:$AN$315,MATCH(Dashboard!AK$53,'Portfolio Analytics'!$E$295:$AN$295,0))","v":0},{"$f":"INDEX('Portfolio Analytics'!$E$315:$AN$315,MATCH(Dashboard!AL$53,'Portfolio Analytics'!$E$295:$AN$295,0))","v":0},{"$f":"INDEX('Portfolio Analytics'!$E$315:$AN$315,MATCH(Dashboard!AM$53,'Portfolio Analytics'!$E$295:$AN$295,0))","v":0},{"$f":"INDEX('Portfolio Analytics'!$E$315:$AN$315,MATCH(Dashboard!AN$53,'Portfolio Analytics'!$E$295:$AN$295,0))","v":3769.76},{"$f":"INDEX('Portfolio Analytics'!$E$315:$AN$315,MATCH(Dashboard!AO$53,'Portfolio Analytics'!$E$295:$AN$295,0))","v":0},{"$f":"INDEX('Portfolio Analytics'!$E$315:$AN$315,MATCH(Dashboard!AP$53,'Portfolio Analytics'!$E$295:$AN$295,0))","v":0},{"$f":"INDEX('Portfolio Analytics'!$E$315:$AN$315,MATCH(Dashboard!AQ$53,'Portfolio Analytics'!$E$295:$AN$295,0))","v":0},{"$f":"INDEX('Portfolio Analytics'!$E$315:$AN$315,MATCH(Dashboard!AR$53,'Portfolio Analytics'!$E$295:$AN$295,0))","v":0},{"$f":"INDEX('Portfolio Analytics'!$E$315:$AN$315,MATCH(Dashboard!AS$53,'Portfolio Analytics'!$E$295:$AN$295,0))","v":0}]
[null,null,null,null,null,null,"Gas capacity not retained (economic, cumulative)","MW",null,{"$f":"J76","v":0},{"$f":"'Portfolio Analytics'!F337","v":0},{"$f":"'Portfolio Analytics'!G337","v":0},{"$f":"'Portfolio Analytics'!H337","v":0},{"$f":"'Portfolio Analytics'!I337","v":0},{"$f":"'Portfolio Analytics'!J337","v":0},{"$f":"'Portfolio Analytics'!K337","v":0},{"$f":"'Portfolio Analytics'!L337","v":0},{"$f":"'Portfolio Analytics'!M337","v":0},{"$f":"'Portfolio Analytics'!N337","v":0},{"$f":"'Portfolio Analytics'!O337","v":0},{"$f":"'Portfolio Analytics'!P337","v":0},{"$f":"'Portfolio Analytics'!Q337","v":0},{"$f":"'Portfolio Analytics'!R337","v":0},{"$f":"'Portfolio Analytics'!S337","v":0},{"$f":"'Portfolio Analytics'!T337","v":0},{"$f":"'Portfolio Analytics'!U337","v":0},{"$f":"'Portfolio Analytics'!V337","v":0},{"$f":"'Portfolio Analytics'!W337","v":0},{"$f":"'Portfolio Analytics'!X337","v":0},{"$f":"'Portfolio Analytics'!Y337","v":0},{"$f":"'Portfolio Analytics'!Z337","v":0},{"$f":"'Portfolio Analytics'!AA337","v":0},{"$f":"'Portfolio Analytics'!AB337","v":0},{"$f":"'Portfolio Analytics'!AC337","v":0},{"$f":"'Portfolio Analytics'!AD337","v":0},{"$f":"'Portfolio Analytics'!AE337","v":0},{"$f":"'Portfolio Analytics'!AF337","v":0},{"$f":"'Portfolio Analytics'!AG337","v":0},{"$f":"'Portfolio Analytics'!AH337","v":0},{"$f":"'Portfolio Analytics'!AI337","v":3769.76},{"$f":"AO76-AN76","v":0},{"$f":"AP76-AO76","v":0},{"$f":"AQ76-AP76","v":0},{"$f":"AR76-AQ76","v":0},{"$f":"AS76-AR76","v":0}]
[]
[]
[null,null,null,null,null,null,"Annual Energy Balance"]
[]
[null,null,null,null,null,null,null,"Unit",null,2015,2016,2017,2018,2019,2020,2021,2022,2023,2024,2025,2026,2027,2028,2029,2030,2031,2032,2033,2034,2035,2036,2037,2038,2039,2040,2041,2042,2043,2044,2045,2046,2047,2048,2049,2050]
[null,null,null,null,null,null,"CHP","GWh",null,{"$f":"'Portfolio Analytics'!E206","v":0},{"$f":"'Portfolio Analytics'!F206","v":0},{"$f":"'Portfolio Analytics'!G206","v":0},{"$f":"'Portfolio Analytics'!H206","v":0},{"$f":"'Portfolio Analytics'!I206","v":0},{"$f":"'Portfolio Analytics'!J206","v":10881.055305580099},{"$f":"'Portfolio Analytics'!K206","v":10881.055305580099},{"$f":"'Portfolio Analytics'!L206","v":10881.055305580099},{"$f":"'Portfolio Analytics'!M206","v":10881.055305580099},{"$f":"'Portfolio Analytics'!N206","v":10881.055305580099},{"$f":"'Portfolio Analytics'!O206","v":0},{"$f":"'Portfolio Analytics'!P206","v":10881.055305580099},{"$f":"'Portfolio Analytics'!Q206","v":0},{"$f":"'Portfolio Analytics'!R206","v":0},{"$f":"'Portfolio Analytics'!S206","v":0},{"$f":"'Portfolio Analytics'!T206","v":10881.055305580099},{"$f":"'Portfolio Analytics'!U206","v":0},{"$f":"'Portfolio Analytics'!V206","v":0},{"$f":"'Portfolio Analytics'!W206","v":0},{"$f":"'Portfolio Analytics'!X206","v":0},{"$f":"'Portfolio Analytics'!Y206","v":0},{"$f":"'Portfolio Analytics'!Z206","v":0},{"$f":"'Portfolio Analytics'!AA206","v":0},{"$f":"'Portfolio Analytics'!AB206","v":0},{"$f":"'Portfolio Analytics'!AC206","v":0},{"$f":"'Portfolio Analytics'!AD206","v":0},{"$f":"'Portfolio Analytics'!AE206","v":0},{"$f":"'Portfolio Analytics'!AF206","v":0},{"$f":"'Portfolio Analytics'!AG206","v":0},{"$f":"'Portfolio Analytics'!AH206","v":0},{"$f":"'Portfolio Analytics'!AI206","v":0},{"$f":"'Portfolio Analytics'!AJ206","v":0},{"$f":"'Portfolio Analytics'!AK206","v":0},{"$f":"'Portfolio Analytics'!AL206","v":0},{"$f":"'Portfolio Analytics'!AM206","v":0},{"$f":"'Portfolio Analytics'!AN206","v":0}]
[null,null,null,null,null,null,"Nuclear","GWh",null,{"$f":"'Portfolio Analytics'!E207","v":0},{"$f":"'Portfolio Analytics'!F207","v":0},{"$f":"'Portfolio Analytics'!G207","v":0},{"$f":"'Portfolio Analytics'!H207","v":0},{"$f":"'Portfolio Analytics'!I207","v":0},{"$f":"'Portfolio Analytics'!J207","v":23611.122768469999},{"$f":"'Portfolio Analytics'!K207","v":23611.122768469999},{"$f":"'Portfolio Analytics'!L207","v":23611.122768469999},{"$f":"'Portfolio Analytics'!M207","v":23611.122768469999},{"$f":"'Portfolio Analytics'!N207","v":14359.745874521001},{"$f":"'Portfolio Analytics'!O207","v":0},{"$f":"'Portfolio Analytics'!P207","v":5108.3689805718604},{"$f":"'Portfolio Analytics'!Q207","v":0},{"$f":"'Portfolio Analytics'!R207","v":0},{"$f":"'Portfolio Analytics'!S207","v":0},{"$f":"'Portfolio Analytics'!T207","v":5108.3689805718604},{"$f":"'Portfolio Analytics'!U207","v":0},{"$f":"'Portfolio Analytics'!V207","v":0},{"$f":"'Portfolio Analytics'!W207","v":0},{"$f":"'Portfolio Analytics'!X207","v":0},{"$f":"'Portfolio Analytics'!Y207","v":0},{"$f":"'Portfolio Analytics'!Z207","v":0},{"$f":"'Portfolio Analytics'!AA207","v":0},{"$f":"'Portfolio Analytics'!AB207","v":0},{"$f":"'Portfolio Analytics'!AC207","v":0},{"$f":"'Portfolio Analytics'!AD207","v":0},{"$f":"'Portfolio Analytics'!AE207","v":0},{"$f":"'Portfolio Analytics'!AF207","v":0},{"$f":"'Portfolio Analytics'!AG207","v":0},{"$f":"'Portfolio Analytics'!AH207","v":0},{"$f":"'Portfolio Analytics'!AI207","v":5108.3689805718604},{"$f":"'Portfolio Analytics'!AJ207","v":0},{"$f":"'Portfolio Analytics'!AK207","v":0},{"$f":"'Portfolio Analytics'!AL207","v":0},{"$f":"'Portfolio Analytics'!AM207","v":0},{"$f":"'Portfolio Analytics'!AN207","v":0}]
[null,null,null,null,null,null,"Hydro","GWh",null,{"$f":"'Portfolio Analytics'!E208","v":0},{"$f":"'Portfolio Analytics'!F208","v":0},{"$f":"'Portfolio Analytics'!G208","v":0},{"$f":"'Portfolio Analytics'!H208","v":0},{"$f":"'Portfolio Analytics'!I208","v":0},{"$f":"'Portfolio Analytics'!J208","v":18669.78858171769},{"$f":"'Portfolio Analytics'!K208","v":18669.786284372258},{"$f":"'Portfolio Analytics'!L208","v":18669.78841325792},{"$f":"'Portfolio Analytics'!M208","v":18669.787046595473},{"$f":"'Portfolio Analytics'!N208","v":18669.786172963912},{"$f":"'Portfolio Analytics'!O208","v":0},{"$f":"'Portfolio Analytics'!P208","v":18669.784821807381},{"$f":"'Portfolio Analytics'!Q208","v":0},{"$f":"'Portfolio Analytics'!R208","v":0},{"$f":"'Portfolio Analytics'!S208","v":0},{"$f":"'Portfolio Analytics'!T208","v":18668.233584021127},{"$f":"'Portfolio Analytics'!U208","v":0},{"$f":"'Portfolio Analytics'!V208","v":0},{"$f":"'Portfolio Analytics'!W208","v":0},{"$f":"'Portfolio Analytics'!X208","v":0},{"$f":"'Portfolio Analytics'!Y208","v":0},{"$f":"'Portfolio Analytics'!Z208","v":0},{"$f":"'Portfolio Analytics'!AA208","v":0},{"$f":"'Portfolio Analytics'!AB208","v":0},{"$f":"'Portfolio Analytics'!AC208","v":0},{"$f":"'Portfolio Analytics'!AD208","v":0},{"$f":"'Portfolio Analytics'!AE208","v":0},{"$f":"'Portfolio Analytics'!AF208","v":0},{"$f":"'Portfolio Analytics'!AG208","v":0},{"$f":"'Portfolio Analytics'!AH208","v":0},{"$f":"'Portfolio Analytics'!AI208","v":18668.231534298011},{"$f":"'Portfolio Analytics'!AJ208","v":0},{"$f":"'Portfolio Analytics'!AK208","v":0},{"$f":"'Portfolio Analytics'!AL208","v":0},{"$f":"'Portfolio Analytics'!AM208","v":0},{"$f":"'Portfolio Analytics'!AN208","v":0}]
[null,null,null,null,null,null,"Hydro (NW scheduled imports)","GWh",null,{"$f":"'Portfolio Analytics'!E209","v":0},{"$f":"'Portfolio Analytics'!F209","v":0},{"$f":"'Portfolio Analytics'!G209","v":0},{"$f":"'Portfolio Analytics'!H209","v":0},{"$f":"'Portfolio Analytics'!I209","v":0},{"$f":"'Portfolio Analytics'!J209","v":10645.966030386799},{"$f":"'Portfolio Analytics'!K209","v":10888.407144809707},{"$f":"'Portfolio Analytics'!L209","v":10811.521993592629},{"$f":"'Portfolio Analytics'!M209","v":10829.644438969244},{"$f":"'Portfolio Analytics'!N209","v":10827.107782118452},{"$f":"'Portfolio Analytics'!O209","v":0},{"$f":"'Portfolio Analytics'!P209","v":11628.313387725702},{"$f":"'Portfolio Analytics'!Q209","v":0},{"$f":"'Portfolio Analytics'!R209","v":0},{"$f":"'Portfolio Analytics'!S209","v":0},{"$f":"'Portfolio Analytics'!T209","v":11297.86821502505},{"$f":"'Portfolio Analytics'!U209","v":0},{"$f":"'Portfolio Analytics'!V209","v":0},{"$f":"'Portfolio Analytics'!W209","v":0},{"$f":"'Portfolio Analytics'!X209","v":0},{"$f":"'Portfolio Analytics'!Y209","v":0},{"$f":"'Portfolio Analytics'!Z209","v":0},{"$f":"'Portfolio Analytics'!AA209","v":0},{"$f":"'Portfolio Analytics'!AB209","v":0},{"$f":"'Portfolio Analytics'!AC209","v":0},{"$f":"'Portfolio Analytics'!AD209","v":0},{"$f":"'Portfolio Analytics'!AE209","v":0},{"$f":"'Portfolio Analytics'!AF209","v":0},{"$f":"'Portfolio Analytics'!AG209","v":0},{"$f":"'Portfolio Analytics'!AH209","v":0},{"$f":"'Portfolio Analytics'!AI209","v":7668.7933027460895},{"$f":"'Portfolio Analytics'!AJ209","v":0},{"$f":"'Portfolio Analytics'!AK209","v":0},{"$f":"'Portfolio Analytics'!AL209","v":0},{"$f":"'Portfolio Analytics'!AM209","v":0},{"$f":"'Portfolio Analytics'!AN209","v":0}]
[null,null,null,null,null,null,"Gas","GWh",null,{"$f":"'Portfolio Analytics'!E210","v":0},{"$f":"'Portfolio Analytics'!F210","v":0},{"$f":"'Portfolio Analytics'!G210","v":0},{"$f":"'Portfolio Analytics'!H210","v":0},{"$f":"'Portfolio Analytics'!I210","v":0},{"$f":"'Portfolio Analytics'!J210","v":58226.12987404241},{"$f":"'Portfolio Analytics'!K210","v":58837.597811611398},{"$f":"'Portfolio Analytics'!L210","v":54372.329779182335},{"$f":"'Portfolio Analytics'!M210","v":52703.654793565831},{"$f":"'Portfolio Analytics'!N210","v":54994.318421910721},{"$f":"'Portfolio Analytics'!O210","v":0},{"$f":"'Portfolio Analytics'!P210","v":62876.638782803697},{"$f":"'Portfolio Analytics'!Q210","v":0},{"$f":"'Portfolio Analytics'!R210","v":0},{"$f":"'Portfolio Analytics'!S210","v":0},{"$f":"'Portfolio Analytics'!T210","v":48826.069079610257},{"$f":"'Portfolio Analytics'!U210","v":0},{"$f":"'Portfolio Analytics'!V210","v":0},{"$f":"'Portfolio Analytics'!W210","v":0},{"$f":"'Portfolio Analytics'!X210","v":0},{"$f":"'Portfolio Analytics'!Y210","v":0},{"$f":"'Portfolio Analytics'!Z210","v":0},{"$f":"'Portfolio Analytics'!AA210","v":0},{"$f":"'Portfolio Analytics'!AB210","v":0},{"$f":"'Portfolio Analytics'!AC210","v":0},{"$f":"'Portfolio Analytics'!AD210","v":0},{"$f":"'Portfolio Analytics'!AE210","v":0},{"$f":"'Portfolio Analytics'!AF210","v":0},{"$f":"'Portfolio Analytics'!AG210","v":0},{"$f":"'Portfolio Analytics'!AH210","v":0},{"$f":"'Portfolio Analytics'!AI210","v":29930.363731076519},{"$f":"'Portfolio Analytics'!AJ210","v":0},{"$f":"'Portfolio Analytics'!AK210","v":0},{"$f":"'Portfolio Analytics'!AL210","v":0},{"$f":"'Portfolio Analytics'!AM210","v":0},{"$f":"'Portfolio Analytics'!AN210","v":0}]
[null,null,null,null,null,null,"Coal","GWh",null,{"$f":"'Portfolio Analytics'!E211","v":0},{"$f":"'Portfolio Analytics'!F211","v":0},{"$f":"'Portfolio Analytics'!G211","v":0},{"$f":"'Portfolio Analytics'!H211","v":0},{"$f":"'Portfolio Analytics'!I211","v":0},{"$f":"'Portfolio Analytics'!J211","v":2166.2318845076902},{"$f":"'Portfolio Analytics'!K211","v":1340.4893875243702},{"$f":"'Portfolio Analytics'!L211","v":714.29798582263504},{"$f":"'Portfolio Analytics'!M211","v":695.71801770085006},{"$f":"'Portfolio Analytics'!N211","v":695.71801770085006},{"$f":"'Portfolio Analytics'!O211","v":0},{"$f":"'Portfolio Analytics'!P211","v":0},{"$f":"'Portfolio Analytics'!Q211","v":0},{"$f":"'Portfolio Analytics'!R211","v":0},{"$f":"'Portfolio Analytics'!S211","v":0},{"$f":"'Portfolio Analytics'!T211","v":0},{"$f":"'Portfolio Analytics'!U211","v":0},{"$f":"'Portfolio Analytics'!V211","v":0},{"$f":"'Portfolio Analytics'!W211","v":0},{"$f":"'Portfolio Analytics'!X211","v":0},{"$f":"'Portfolio Analytics'!Y211","v":0},{"$f":"'Portfolio Analytics'!Z211","v":0},{"$f":"'Portfolio Analytics'!AA211","v":0},{"$f":"'Portfolio Analytics'!AB211","v":0},{"$f":"'Portfolio Analytics'!AC211","v":0},{"$f":"'Portfolio Analytics'!AD211","v":0},{"$f":"'Portfolio Analytics'!AE211","v":0},{"$f":"'Portfolio Analytics'!AF211","v":0},{"$f":"'Portfolio Analytics'!AG211","v":0},{"$f":"'Portfolio Analytics'!AH211","v":0},{"$f":"'Portfolio Analytics'!AI211","v":0}]
[null,null,null,null,null,null,"Pipeline Biogas","GWh",null,{"$f":"'Portfolio Analytics'!E212","v":0},{"$f":"'Portfolio Analytics'!F212","v":0},{"$f":"'Portfolio Analytics'!G212","v":0},{"$f":"'Portfolio Analytics'!H212","v":0},{"$f":"'Portfolio Analytics'!I212","v":0},{"$f":"'Portfolio Analytics'!J212","v":0},{"$f":"'Portfolio Analytics'!K212","v":0},{"$f":"'Portfolio Analytics'!L212","v":0},{"$f":"'Portfolio Analytics'!M212","v":0},{"$f":"'Portfolio Analytics'!N212","v":0},{"$f":"'Portfolio Analytics'!O212","v":0},{"$f":"'Portfolio Analytics'!P212","v":0},{"$f":"'Portfolio Analytics'!Q212","v":0},{"$f":"'Portfolio Analytics'!R212","v":0},{"$f":"'Portfolio Analytics'!S212","v":0},{"$f":"'Portfolio Analytics'!T212","v":0},{"$f":"'Portfolio Analytics'!U212","v":0},{"$f":"'Portfolio Analytics'!V212","v":0},{"$f":"'Portfolio Analytics'!W212","v":0},{"$f":"'Portfolio Analytics'!X212","v":0},{"$f":"'Portfolio Analytics'!Y212","v":0},{"$f":"'Portfolio Analytics'!Z212","v":0},{"$f":"'Portfolio Analytics'!AA212","v":0},{"$f":"'Portfolio Analytics'!AB212","v":0},{"$f":"'Portfolio Analytics'!AC212","v":0},{"$f":"'Portfolio Analytics'!AD212","v":0},{"$f":"'Portfolio Analytics'!AE212","v":0},{"$f":"'Portfolio Analytics'!AF212","v":0},{"$f":"'Portfolio Analytics'!AG212","v":0},{"$f":"'Portfolio Analytics'!AH212","v":0},{"$f":"'Portfolio Analytics'!AI212","v":0},{"$f":"'Portfolio Analytics'!AJ212","v":0},{"$f":"'Portfolio Analytics'!AK212","v":0},{"$f":"'Portfolio Analytics'!AL212","v":0},{"$f":"'Portfolio Analytics'!AM212","v":0},{"$f":"'Portfolio Analytics'!AN212","v":0}]
[null,null,null,null,null,null,"Renewables","GWh",null,{"$f":"'Portfolio Analytics'!E213","v":0},{"$f":"'Portfolio Analytics'!F213","v":0},{"$f":"'Portfolio Analytics'!G213","v":0},{"$f":"'Portfolio Analytics'!H213","v":0},{"$f":"'Portfolio Analytics'!I213","v":0},{"$f":"'Portfolio Analytics'!J213","v":97248.40328583587},{"$f":"'Portfolio Analytics'!K213","v":104357.92834963414},{"$f":"'Portfolio Analytics'!L213","v":117726.35635614414},{"$f":"'Portfolio Analytics'!M213","v":123767.5541452967},{"$f":"'Portfolio Analytics'!N213","v":132519.35041842252},{"$f":"'Portfolio Analytics'!O213","v":0},{"$f":"'Portfolio Analytics'!P213","v":146872.64456886664},{"$f":"'Portfolio Analytics'!Q213","v":0},{"$f":"'Portfolio Analytics'!R213","v":0},{"$f":"'Portfolio Analytics'!S213","v":0},{"$f":"'Portfolio Analytics'!T213","v":179982.98157540985},{"$f":"'Portfolio Analytics'!U213","v":0},{"$f":"'Portfolio Analytics'!V213","v":0},{"$f":"'Portfolio Analytics'!W213","v":0},{"$f":"'Portfolio Analytics'!X213","v":0},{"$f":"'Portfolio Analytics'!Y213","v":0},{"$f":"'Portfolio Analytics'!Z213","v":0},{"$f":"'Portfolio Analytics'!AA213","v":0},{"$f":"'Portfolio Analytics'!AB213","v":0},{"$f":"'Portfolio Analytics'!AC213","v":0},{"$f":"'Portfolio Analytics'!AD213","v":0},{"$f":"'Portfolio Analytics'!AE213","v":0},{"$f":"'Portfolio Analytics'!AF213","v":0},{"$f":"'Portfolio Analytics'!AG213","v":0},{"$f":"'Portfolio Analytics'!AH213","v":0},{"$f":"'Portfolio Analytics'!AI213","v":402988.60201182705},{"$f":"'Portfolio Analytics'!AJ213","v":0},{"$f":"'Portfolio Analytics'!AK213","v":0},{"$f":"'Portfolio Analytics'!AL213","v":0},{"$f":"'Portfolio Analytics'!AM213","v":0},{"$f":"'Portfolio Analytics'!AN213","v":0}]
[null,null,null,null,null,null,"Storage Losses","GWh",null,{"$f":"'Portfolio Analytics'!E214","v":0},{"$f":"'Portfolio Analytics'!F214","v":0},{"$f":"'Portfolio Analytics'!G214","v":0},{"$f":"'Portfolio Analytics'!H214","v":0},{"$f":"'Portfolio Analytics'!I214","v":0},{"$f":"'Portfolio Analytics'!J214","v":-770.89703486724386},{"$f":"'Portfolio Analytics'!K214","v":-1367.4077527472482},{"$f":"'Portfolio Analytics'!L214","v":-1482.5978648420435},{"$f":"'Portfolio Analytics'!M214","v":-1702.6038347651504},{"$f":"'Portfolio Analytics'!N214","v":-2179.7796558378432},{"$f":"'Portfolio Analytics'!O214","v":0},{"$f":"'Portfolio Analytics'!P214","v":-3637.0313793869232},{"$f":"'Portfolio Analytics'!Q214","v":0},{"$f":"'Portfolio Analytics'!R214","v":0},{"$f":"'Portfolio Analytics'!S214","v":0},{"$f":"'Portfolio Analytics'!T214","v":-5718.0329910216806},{"$f":"'Portfolio Analytics'!U214","v":0},{"$f":"'Portfolio Analytics'!V214","v":0},{"$f":"'Portfolio Analytics'!W214","v":0},{"$f":"'Portfolio Analytics'!X214","v":0},{"$f":"'Portfolio Analytics'!Y214","v":0},{"$f":"'Portfolio Analytics'!Z214","v":0},{"$f":"'Portfolio Analytics'!AA214","v":0},{"$f":"'Portfolio Analytics'!AB214","v":0},{"$f":"'Portfolio Analytics'!AC214","v":0},{"$f":"'Portfolio Analytics'!AD214","v":0},{"$f":"'Portfolio Analytics'!AE214","v":0},{"$f":"'Portfolio Analytics'!AF214","v":0},{"$f":"'Portfolio Analytics'!AG214","v":0},{"$f":"'Portfolio Analytics'!AH214","v":0},{"$f":"'Portfolio Analytics'!AI214","v":-27634.331578237721},{"$f":"'Portfolio Analytics'!AJ214","v":0},{"$f":"'Portfolio Analytics'!AK214","v":0},{"$f":"'Portfolio Analytics'!AL214","v":0},{"$f":"'Portfolio Analytics'!AM214","v":0},{"$f":"'Portfolio Analytics'!AN214","v":0}]
[null,null,null,null,null,null,"Curtailment","GWh",null,{"$f":"'Portfolio Analytics'!E215","v":0},{"$f":"'Portfolio Analytics'!F215","v":0},{"$f":"'Portfolio Analytics'!G215","v":0},{"$f":"'Portfolio Analytics'!H215","v":0},{"$f":"'Portfolio Analytics'!I215","v":0},{"$f":"'Portfolio Analytics'!J215","v":-235.50167811293724},{"$f":"'Portfolio Analytics'!K215","v":-204.24384617490938},{"$f":"'Portfolio Analytics'!L215","v":-445.24764034442501},{"$f":"'Portfolio Analytics'!M215","v":-711.38350212649675},{"$f":"'Portfolio Analytics'!N215","v":-770.57525593543585},{"$f":"'Portfolio Analytics'!O215","v":0},{"$f":"'Portfolio Analytics'!P215","v":-521.98395426611455},{"$f":"'Portfolio Analytics'!Q215","v":0},{"$f":"'Portfolio Analytics'!R215","v":0},{"$f":"'Portfolio Analytics'!S215","v":0},{"$f":"'Portfolio Analytics'!T215","v":-4198.9387524315525},{"$f":"'Portfolio Analytics'!U215","v":0},{"$f":"'Portfolio Analytics'!V215","v":0},{"$f":"'Portfolio Analytics'!W215","v":0},{"$f":"'Portfolio Analytics'!X215","v":0},{"$f":"'Portfolio Analytics'!Y215","v":0},{"$f":"'Portfolio Analytics'!Z215","v":0},{"$f":"'Portfolio Analytics'!AA215","v":0},{"$f":"'Portfolio Analytics'!AB215","v":0},{"$f":"'Portfolio Analytics'!AC215","v":0},{"$f":"'Portfolio Analytics'!AD215","v":0},{"$f":"'Portfolio Analytics'!AE215","v":0},{"$f":"'Portfolio Analytics'!AF215","v":0},{"$f":"'Portfolio Analytics'!AG215","v":0},{"$f":"'Portfolio Analytics'!AH215","v":0},{"$f":"'Portfolio Analytics'!AI215","v":-54768.166372705331},{"$f":"'Portfolio Analytics'!AJ215","v":0},{"$f":"'Portfolio Analytics'!AK215","v":0},{"$f":"'Portfolio Analytics'!AL215","v":0},{"$f":"'Portfolio Analytics'!AM215","v":0},{"$f":"'Portfolio Analytics'!AN215","v":0}]
[null,null,null,null,null,null,"Imports (unspecified)","GWh",null,{"$f":"'Portfolio Analytics'!E216","v":0},{"$f":"'Portfolio Analytics'!F216","v":0},{"$f":"'Portfolio Analytics'!G216","v":0},{"$f":"'Portfolio Analytics'!H216","v":0},{"$f":"'Portfolio Analytics'!I216","v":0},{"$f":"'Portfolio Analytics'!J216","v":27190.712797978911},{"$f":"'Portfolio Analytics'!K216","v":25142.709687845283},{"$f":"'Portfolio Analytics'!L216","v":23526.519948852176},{"$f":"'Portfolio Analytics'!M216","v":24808.952006599142},{"$f":"'Portfolio Analytics'!N216","v":27587.570091612393},{"$f":"'Portfolio Analytics'!O216","v":0},{"$f":"'Portfolio Analytics'!P216","v":23255.228652513182},{"$f":"'Portfolio Analytics'!Q216","v":0},{"$f":"'Portfolio Analytics'!R216","v":0},{"$f":"'Portfolio Analytics'!S216","v":0},{"$f":"'Portfolio Analytics'!T216","v":21736.095698412642},{"$f":"'Portfolio Analytics'!U216","v":0},{"$f":"'Portfolio Analytics'!V216","v":0},{"$f":"'Portfolio Analytics'!W216","v":0},{"$f":"'Portfolio Analytics'!X216","v":0},{"$f":"'Portfolio Analytics'!Y216","v":0},{"$f":"'Portfolio Analytics'!Z216","v":0},{"$f":"'Portfolio Analytics'!AA216","v":0},{"$f":"'Portfolio Analytics'!AB216","v":0},{"$f":"'Portfolio Analytics'!AC216","v":0},{"$f":"'Portfolio Analytics'!AD216","v":0},{"$f":"'Portfolio Analytics'!AE216","v":0},{"$f":"'Portfolio Analytics'!AF216","v":0},{"$f":"'Portfolio Analytics'!AG216","v":0},{"$f":"'Portfolio Analytics'!AH216","v":0},{"$f":"'Portfolio Analytics'!AI216","v":1980.2043422008901},{"$f":"'Portfolio Analytics'!AJ216","v":0},{"$f":"'Portfolio Analytics'!AK216","v":0},{"$f":"'Portfolio Analytics'!AL216","v":0},{"$f":"'Portfolio Analytics'!AM216","v":0},{"$f":"'Portfolio Analytics'!AN216","v":0}]
[null,null,null,null,null,null,"Exports","GWh",null,{"$f":"'Portfolio Analytics'!E217","v":0},{"$f":"'Portfolio Analytics'!F217","v":0},{"$f":"'Portfolio Analytics'!G217","v":0},{"$f":"'Portfolio Analytics'!H217","v":0},{"$f":"'Portfolio Analytics'!I217","v":0},{"$f":"'Portfolio Analytics'!J217","v":-856.87940436737824},{"$f":"'Portfolio Analytics'!K217","v":-705.78662968087497},{"$f":"'Portfolio Analytics'!L217","v":-1904.666474900306},{"$f":"'Portfolio Analytics'!M217","v":-2381.5635308699211},{"$f":"'Portfolio Analytics'!N217","v":-2284.5543217453173},{"$f":"'Portfolio Analytics'!O217","v":0},{"$f":"'Portfolio Analytics'!P217","v":-2220.1564582964911},{"$f":"'Portfolio Analytics'!Q217","v":0},{"$f":"'Portfolio Analytics'!R217","v":0},{"$f":"'Portfolio Analytics'!S217","v":0},{"$f":"'Portfolio Analytics'!T217","v":-4479.8370666371884},{"$f":"'Portfolio Analytics'!U217","v":0},{"$f":"'Portfolio Analytics'!V217","v":0},{"$f":"'Portfolio Analytics'!W217","v":0},{"$f":"'Portfolio Analytics'!X217","v":0},{"$f":"'Portfolio Analytics'!Y217","v":0},{"$f":"'Portfolio Analytics'!Z217","v":0},{"$f":"'Portfolio Analytics'!AA217","v":0},{"$f":"'Portfolio Analytics'!AB217","v":0},{"$f":"'Portfolio Analytics'!AC217","v":0},{"$f":"'Portfolio Analytics'!AD217","v":0},{"$f":"'Portfolio Analytics'!AE217","v":0},{"$f":"'Portfolio Analytics'!AF217","v":0},{"$f":"'Portfolio Analytics'!AG217","v":0},{"$f":"'Portfolio Analytics'!AH217","v":0},{"$f":"'Portfolio Analytics'!AI217","v":-23688.703170100278},{"$f":"'Portfolio Analytics'!AJ217","v":0},{"$f":"'Portfolio Analytics'!AK217","v":0},{"$f":"'Portfolio Analytics'!AL217","v":0},{"$f":"'Portfolio Analytics'!AM217","v":0},{"$f":"'Portfolio Analytics'!AN217","v":0}]
[null,null,null,null,null,null,"Load","GWh",null,{"$f":"'Portfolio Analytics'!E218","v":0},{"$f":"'Portfolio Analytics'!F218","v":0},{"$f":"'Portfolio Analytics'!G218","v":0},{"$f":"'Portfolio Analytics'!H218","v":0},{"$f":"'Portfolio Analytics'!I218","v":0},{"$f":"'Portfolio Analytics'!J218","v":246572.424698352},{"$f":"'Portfolio Analytics'!K218","v":251245.28725406103},{"$f":"'Portfolio Analytics'!L218","v":256395.63363796301},{"$f":"'Portfolio Analytics'!M218","v":261203.154709036},{"$f":"'Portfolio Analytics'!N218","v":265405.61936275201},{"$f":"'Portfolio Analytics'!O218","v":0},{"$f":"'Portfolio Analytics'!P218","v":272864.25886965101},{"$f":"'Portfolio Analytics'!Q218","v":0},{"$f":"'Portfolio Analytics'!R218","v":0},{"$f":"'Portfolio Analytics'!S218","v":0},{"$f":"'Portfolio Analytics'!T218","v":285082.67191506794},{"$f":"'Portfolio Analytics'!U218","v":0},{"$f":"'Portfolio Analytics'!V218","v":0},{"$f":"'Portfolio Analytics'!W218","v":0},{"$f":"'Portfolio Analytics'!X218","v":0},{"$f":"'Portfolio Analytics'!Y218","v":0},{"$f":"'Portfolio Analytics'!Z218","v":0},{"$f":"'Portfolio Analytics'!AA218","v":0},{"$f":"'Portfolio Analytics'!AB218","v":0},{"$f":"'Portfolio Analytics'!AC218","v":0},{"$f":"'Portfolio Analytics'!AD218","v":0},{"$f":"'Portfolio Analytics'!AE218","v":0},{"$f":"'Portfolio Analytics'!AF218","v":0},{"$f":"'Portfolio Analytics'!AG218","v":0},{"$f":"'Portfolio Analytics'!AH218","v":0},{"$f":"'Portfolio Analytics'!AI218","v":410666.76570113999},{"$f":"'Portfolio Analytics'!AJ218","v":0},{"$f":"'Portfolio Analytics'!AK218","v":0},{"$f":"'Portfolio Analytics'!AL218","v":0},{"$f":"'Portfolio Analytics'!AM218","v":0},{"$f":"'Portfolio Analytics'!AN218","v":0}]
[]
[null,null,null,null,null,null,"Cost Summary"]
[]
[null,null,null,null,null,null,"Revenue Requirement and TRC","Unit",null,2015,{"$f":"J100+1","v":2016},2017,2018,2019,2020,2021,2022,2023,2024,2025,2026,2027,2028,2029,2030,2031,2032,2033,2034,2035,2036,2037,2038,2039,2040,2041,2042,2043,2044,2045,2046,2047,2048,2049,2050]
[null,null,null,null,null,null,"Non-Modeled Costs","$MM",null,{"$f":"'Portfolio Analytics'!E991","v":0},{"$f":"'Portfolio Analytics'!F991","v":0},{"$f":"'Portfolio Analytics'!G991","v":0},{"$f":"'Portfolio Analytics'!H991","v":0},{"$f":"'Portfolio Analytics'!I991","v":0},{"$f":"'Portfolio Analytics'!J991","v":35599.79433031458},{"$f":"'Portfolio Analytics'!K991","v":37545.955306526666},{"$f":"'Portfolio Analytics'!L991","v":37042.68327251351},{"$f":"'Portfolio Analytics'!M991","v":36358.391245955354},{"$f":"'Portfolio Analytics'!N991","v":35918.397403079071},{"$f":"'Portfolio Analytics'!O991","v":0},{"$f":"'Portfolio Analytics'!P991","v":32888.939067843479},{"$f":"'Portfolio Analytics'!Q991","v":0},{"$f":"'Portfolio Analytics'!R991","v":0},{"$f":"'Portfolio Analytics'!S991","v":0},{"$f":"'Portfolio Analytics'!T991","v":33263.040410812013},{"$f":"'Portfolio Analytics'!U991","v":0},{"$f":"'Portfolio Analytics'!V991","v":0},{"$f":"'Portfolio Analytics'!W991","v":0},{"$f":"'Portfolio Analytics'!X991","v":0},{"$f":"'Portfolio Analytics'!Y991","v":0},{"$f":"'Portfolio Analytics'!Z991","v":0},{"$f":"'Portfolio Analytics'!AA991","v":0},{"$f":"'Portfolio Analytics'!AB991","v":0},{"$f":"'Portfolio Analytics'!AC991","v":0},{"$f":"'Portfolio Analytics'!AD991","v":0},{"$f":"'Portfolio Analytics'!AE991","v":0},{"$f":"'Portfolio Analytics'!AF991","v":0},{"$f":"'Portfolio Analytics'!AG991","v":0},{"$f":"'Portfolio Analytics'!AH991","v":0},{"$f":"'Portfolio Analytics'!AI991","v":35762.411162135279},{"$f":"'Portfolio Analytics'!AJ991","v":0},{"$f":"'Portfolio Analytics'!AK991","v":0},{"$f":"'Portfolio Analytics'!AL991","v":0},{"$f":"'Portfolio Analytics'!AM991","v":0},{"$f":"'Portfolio Analytics'!AN991","v":0}]
[null,null,null,null,null,null,"Non-Modeled Costs (Scenario Specific)","$MM",null,{"$f":"'Portfolio Analytics'!E992","v":0},{"$f":"'Portfolio Analytics'!F992","v":0},{"$f":"'Portfolio Analytics'!G992","v":0},{"$f":"'Portfolio Analytics'!H992","v":0},{"$f":"'Portfolio Analytics'!I992","v":0},{"$f":"'Portfolio Analytics'!J992","v":158.64446177176299},{"$f":"'Portfolio Analytics'!K992","v":233.13690056900458},{"$f":"'Portfolio Analytics'!L992","v":273.67933491028407},{"$f":"'Portfolio Analytics'!M992","v":313.77763808901193},{"$f":"'Portfolio Analytics'!N992","v":345.34004484349776},{"$f":"'Portfolio Analytics'!O992","v":0},{"$f":"'Portfolio Analytics'!P992","v":388.56675453313949},{"$f":"'Portfolio Analytics'!Q992","v":0},{"$f":"'Portfolio Analytics'!R992","v":0},{"$f":"'Portfolio Analytics'!S992","v":0},{"$f":"'Portfolio Analytics'!T992","v":457.3657752200906},{"$f":"'Portfolio Analytics'!U992","v":0},{"$f":"'Portfolio Analytics'!V992","v":0},{"$f":"'Portfolio Analytics'!W992","v":0},{"$f":"'Portfolio Analytics'!X992","v":0},{"$f":"'Portfolio Analytics'!Y992","v":0},{"$f":"'Portfolio Analytics'!Z992","v":0},{"$f":"'Portfolio Analytics'!AA992","v":0},{"$f":"'Portfolio Analytics'!AB992","v":0},{"$f":"'Portfolio Analytics'!AC992","v":0},{"$f":"'Portfolio Analytics'!AD992","v":0},{"$f":"'Portfolio Analytics'!AE992","v":0},{"$f":"'Portfolio Analytics'!AF992","v":0},{"$f":"'Portfolio Analytics'!AG992","v":0},{"$f":"'Portfolio Analytics'!AH992","v":0},{"$f":"'Portfolio Analytics'!AI992","v":1163.8981986635049},{"$f":"'Portfolio Analytics'!AJ992","v":0},{"$f":"'Portfolio Analytics'!AK992","v":0},{"$f":"'Portfolio Analytics'!AL992","v":0},{"$f":"'Portfolio Analytics'!AM992","v":0},{"$f":"'Portfolio Analytics'!AN992","v":0}]
[null,null,null,null,null,null,"Baseline Thermal Fleet Fixed Costs","$MM",null,{"$f":"'Portfolio Analytics'!E993","v":0},{"$f":"'Portfolio Analytics'!F993","v":0},{"$f":"'Portfolio Analytics'!G993","v":0},{"$f":"'Portfolio Analytics'!H993","v":0},{"$f":"'Portfolio Analytics'!I993","v":0},{"$f":"'Portfolio Analytics'!J993","v":329.18887233000004},{"$f":"'Portfolio Analytics'!K993","v":301.96844411000001},{"$f":"'Portfolio Analytics'!L993","v":301.96844411000001},{"$f":"'Portfolio Analytics'!M993","v":301.96844411000001},{"$f":"'Portfolio Analytics'!N993","v":301.96844411000001},{"$f":"'Portfolio Analytics'!O993","v":0},{"$f":"'Portfolio Analytics'!P993","v":301.96844411000001},{"$f":"'Portfolio Analytics'!Q993","v":0},{"$f":"'Portfolio Analytics'!R993","v":0},{"$f":"'Portfolio Analytics'!S993","v":0},{"$f":"'Portfolio Analytics'!T993","v":301.96844411000001},{"$f":"'Portfolio Analytics'!U993","v":0},{"$f":"'Portfolio Analytics'!V993","v":0},{"$f":"'Portfolio Analytics'!W993","v":0},{"$f":"'Portfolio Analytics'!X993","v":0},{"$f":"'Portfolio Analytics'!Y993","v":0},{"$f":"'Portfolio Analytics'!Z993","v":0},{"$f":"'Portfolio Analytics'!AA993","v":0},{"$f":"'Portfolio Analytics'!AB993","v":0},{"$f":"'Portfolio Analytics'!AC993","v":0},{"$f":"'Portfolio Analytics'!AD993","v":0},{"$f":"'Portfolio Analytics'!AE993","v":0},{"$f":"'Portfolio Analytics'!AF993","v":0},{"$f":"'Portfolio Analytics'!AG993","v":0},{"$f":"'Portfolio Analytics'!AH993","v":0},{"$f":"'Portfolio Analytics'!AI993","v":250.34287190000003},{"$f":"'Portfolio Analytics'!AJ993","v":0},{"$f":"'Portfolio Analytics'!AK993","v":0},{"$f":"'Portfolio Analytics'!AL993","v":0},{"$f":"'Portfolio Analytics'!AM993","v":0},{"$f":"'Portfolio Analytics'!AN993","v":0}]
[null,null,null,null,null,null,"New Renewables Fixed Costs","$MM",null,{"$f":"'Portfolio Analytics'!E994","v":0},{"$f":"'Portfolio Analytics'!F994","v":0},{"$f":"'Portfolio Analytics'!G994","v":0},{"$f":"'Portfolio Analytics'!H994","v":0},{"$f":"'Portfolio Analytics'!I994","v":0},{"$f":"'Portfolio Analytics'!J994","v":154.23889914999998},{"$f":"'Portfolio Analytics'!K994","v":307.90617705999995},{"$f":"'Portfolio Analytics'!L994","v":887.13210034999997},{"$f":"'Portfolio Analytics'!M994","v":1070.60484505},{"$f":"'Portfolio Analytics'!N994","v":1395.4597520699999},{"$f":"'Portfolio Analytics'!O994","v":0},{"$f":"'Portfolio Analytics'!P994","v":1836.76426694},{"$f":"'Portfolio Analytics'!Q994","v":0},{"$f":"'Portfolio Analytics'!R994","v":0},{"$f":"'Portfolio Analytics'!S994","v":0},{"$f":"'Portfolio Analytics'!T994","v":3298.7012870999997},{"$f":"'Portfolio Analytics'!U994","v":0},{"$f":"'Portfolio Analytics'!V994","v":0},{"$f":"'Portfolio Analytics'!W994","v":0},{"$f":"'Portfolio Analytics'!X994","v":0},{"$f":"'Portfolio Analytics'!Y994","v":0},{"$f":"'Portfolio Analytics'!Z994","v":0},{"$f":"'Portfolio Analytics'!AA994","v":0},{"$f":"'Portfolio Analytics'!AB994","v":0},{"$f":"'Portfolio Analytics'!AC994","v":0},{"$f":"'Portfolio Analytics'!AD994","v":0},{"$f":"'Portfolio Analytics'!AE994","v":0},{"$f":"'Portfolio Analytics'!AF994","v":0},{"$f":"'Portfolio Analytics'!AG994","v":0},{"$f":"'Portfolio Analytics'!AH994","v":0},{"$f":"'Portfolio Analytics'!AI994","v":13205.55879954},{"$f":"'Portfolio Analytics'!AJ994","v":0},{"$f":"'Portfolio Analytics'!AK994","v":0},{"$f":"'Portfolio Analytics'!AL994","v":0},{"$f":"'Portfolio Analytics'!AM994","v":0},{"$f":"'Portfolio Analytics'!AN994","v":0}]
[null,null,null,null,null,null,"New Storage Fixed Costs","$MM",null,{"$f":"'Portfolio Analytics'!E995","v":0},{"$f":"'Portfolio Analytics'!F995","v":0},{"$f":"'Portfolio Analytics'!G995","v":0},{"$f":"'Portfolio Analytics'!H995","v":0},{"$f":"'Portfolio Analytics'!I995","v":0},{"$f":"'Portfolio Analytics'!J995","v":577.08511522999993},{"$f":"'Portfolio Analytics'!K995","v":1023.7401685099999},{"$f":"'Portfolio Analytics'!L995","v":1023.7401685099999},{"$f":"'Portfolio Analytics'!M995","v":1059.0926509199999},{"$f":"'Portfolio Analytics'!N995","v":1292.9234315599999},{"$f":"'Portfolio Analytics'!O995","v":0},{"$f":"'Portfolio Analytics'!P995","v":2090.0535337000001},{"$f":"'Portfolio Analytics'!Q995","v":0},{"$f":"'Portfolio Analytics'!R995","v":0},{"$f":"'Portfolio Analytics'!S995","v":0},{"$f":"'Portfolio Analytics'!T995","v":2284.9719335699997},{"$f":"'Portfolio Analytics'!U995","v":0},{"$f":"'Portfolio Analytics'!V995","v":0},{"$f":"'Portfolio Analytics'!W995","v":0},{"$f":"'Portfolio Analytics'!X995","v":0},{"$f":"'Portfolio Analytics'!Y995","v":0},{"$f":"'Portfolio Analytics'!Z995","v":0},{"$f":"'Portfolio Analytics'!AA995","v":0},{"$f":"'Portfolio Analytics'!AB995","v":0},{"$f":"'Portfolio Analytics'!AC995","v":0},{"$f":"'Portfolio Analytics'!AD995","v":0},{"$f":"'Portfolio Analytics'!AE995","v":0},{"$f":"'Portfolio Analytics'!AF995","v":0},{"$f":"'Portfolio Analytics'!AG995","v":0},{"$f":"'Portfolio Analytics'!AH995","v":0},{"$f":"'Portfolio Analytics'!AI995","v":9730.5421049400029},{"$f":"'Portfolio Analytics'!AJ995","v":0},{"$f":"'Portfolio Analytics'!AK995","v":0},{"$f":"'Portfolio Analytics'!AL995","v":0},{"$f":"'Portfolio Analytics'!AM995","v":0},{"$f":"'Portfolio Analytics'!AN995","v":0}]
[null,null,null,null,null,null,"New Thermal Fleet Fixed Costs","$MM",null,{"$f":"'Portfolio Analytics'!E996","v":0},{"$f":"'Portfolio Analytics'!F996","v":0},{"$f":"'Portfolio Analytics'!G996","v":0},{"$f":"'Portfolio Analytics'!H996","v":0},{"$f":"'Portfolio Analytics'!I996","v":0},{"$f":"'Portfolio Analytics'!J996","v":0},{"$f":"'Portfolio Analytics'!K996","v":0},{"$f":"'Portfolio Analytics'!L996","v":0},{"$f":"'Portfolio Analytics'!M996","v":0},{"$f":"'Portfolio Analytics'!N996","v":0},{"$f":"'Portfolio Analytics'!O996","v":0},{"$f":"'Portfolio Analytics'!P996","v":0},{"$f":"'Portfolio Analytics'!Q996","v":0},{"$f":"'Portfolio Analytics'!R996","v":0},{"$f":"'Portfolio Analytics'!S996","v":0},{"$f":"'Portfolio Analytics'!T996","v":0},{"$f":"'Portfolio Analytics'!U996","v":0},{"$f":"'Portfolio Analytics'!V996","v":0},{"$f":"'Portfolio Analytics'!W996","v":0},{"$f":"'Portfolio Analytics'!X996","v":0},{"$f":"'Portfolio Analytics'!Y996","v":0},{"$f":"'Portfolio Analytics'!Z996","v":0},{"$f":"'Portfolio Analytics'!AA996","v":0},{"$f":"'Portfolio Analytics'!AB996","v":0},{"$f":"'Portfolio Analytics'!AC996","v":0},{"$f":"'Portfolio Analytics'!AD996","v":0},{"$f":"'Portfolio Analytics'!AE996","v":0},{"$f":"'Portfolio Analytics'!AF996","v":0},{"$f":"'Portfolio Analytics'!AG996","v":0},{"$f":"'Portfolio Analytics'!AH996","v":0},{"$f":"'Portfolio Analytics'!AI996","v":0},{"$f":"'Portfolio Analytics'!AJ996","v":0},{"$f":"'Portfolio Analytics'!AK996","v":0},{"$f":"'Portfolio Analytics'!AL996","v":0},{"$f":"'Portfolio Analytics'!AM996","v":0},{"$f":"'Portfolio Analytics'!AN996","v":0}]
[null,null,null,null,null,null,"New DR Fixed Costs","$MM",null,{"$f":"'Portfolio Analytics'!E997","v":0},{"$f":"'Portfolio Analytics'!F997","v":0},{"$f":"'Portfolio Analytics'!G997","v":0},{"$f":"'Portfolio Analytics'!H997","v":0},{"$f":"'Portfolio Analytics'!I997","v":0},{"$f":"'Portfolio Analytics'!J997","v":0},{"$f":"'Portfolio Analytics'!K997","v":0},{"$f":"'Portfolio Analytics'!L997","v":0},{"$f":"'Portfolio Analytics'!M997","v":0},{"$f":"'Portfolio Analytics'!N997","v":0},{"$f":"'Portfolio Analytics'!O997","v":0},{"$f":"'Portfolio Analytics'!P997","v":0},{"$f":"'Portfolio Analytics'!Q997","v":0},{"$f":"'Portfolio Analytics'!R997","v":0},{"$f":"'Portfolio Analytics'!S997","v":0},{"$f":"'Portfolio Analytics'!T997","v":0},{"$f":"'Portfolio Analytics'!U997","v":0},{"$f":"'Portfolio Analytics'!V997","v":0},{"$f":"'Portfolio Analytics'!W997","v":0},{"$f":"'Portfolio Analytics'!X997","v":0},{"$f":"'Portfolio Analytics'!Y997","v":0},{"$f":"'Portfolio Analytics'!Z997","v":0},{"$f":"'Portfolio Analytics'!AA997","v":0},{"$f":"'Portfolio Analytics'!AB997","v":0},{"$f":"'Portfolio Analytics'!AC997","v":0},{"$f":"'Portfolio Analytics'!AD997","v":0},{"$f":"'Portfolio Analytics'!AE997","v":0},{"$f":"'Portfolio Analytics'!AF997","v":0},{"$f":"'Portfolio Analytics'!AG997","v":0},{"$f":"'Portfolio Analytics'!AH997","v":0},{"$f":"'Portfolio Analytics'!AI997","v":0},{"$f":"'Portfolio Analytics'!AJ997","v":0},{"$f":"'Portfolio Analytics'!AK997","v":0},{"$f":"'Portfolio Analytics'!AL997","v":0},{"$f":"'Portfolio Analytics'!AM997","v":0},{"$f":"'Portfolio Analytics'!AN997","v":0}]
[null,null,null,null,null,null,"New CAISO Transmission Fixed Costs","$MM",null,{"$f":"'Portfolio Analytics'!E998","v":0},{"$f":"'Portfolio Analytics'!F998","v":0},{"$f":"'Portfolio Analytics'!G998","v":0},{"$f":"'Portfolio Analytics'!H998","v":0},{"$f":"'Portfolio Analytics'!I998","v":0},{"$f":"'Portfolio Analytics'!J998","v":0},{"$f":"'Portfolio Analytics'!K998","v":0},{"$f":"'Portfolio Analytics'!L998","v":0},{"$f":"'Portfolio Analytics'!M998","v":1.002894},{"$f":"'Portfolio Analytics'!N998","v":2.6597072700000002},{"$f":"'Portfolio Analytics'!O998","v":0},{"$f":"'Portfolio Analytics'!P998","v":17.1505765},{"$f":"'Portfolio Analytics'!Q998","v":0},{"$f":"'Portfolio Analytics'!R998","v":0},{"$f":"'Portfolio Analytics'!S998","v":0},{"$f":"'Portfolio Analytics'!T998","v":242.20949116},{"$f":"'Portfolio Analytics'!U998","v":0},{"$f":"'Portfolio Analytics'!V998","v":0},{"$f":"'Portfolio Analytics'!W998","v":0},{"$f":"'Portfolio Analytics'!X998","v":0},{"$f":"'Portfolio Analytics'!Y998","v":0},{"$f":"'Portfolio Analytics'!Z998","v":0},{"$f":"'Portfolio Analytics'!AA998","v":0},{"$f":"'Portfolio Analytics'!AB998","v":0},{"$f":"'Portfolio Analytics'!AC998","v":0},{"$f":"'Portfolio Analytics'!AD998","v":0},{"$f":"'Portfolio Analytics'!AE998","v":0},{"$f":"'Portfolio Analytics'!AF998","v":0},{"$f":"'Portfolio Analytics'!AG998","v":0},{"$f":"'Portfolio Analytics'!AH998","v":0},{"$f":"'Portfolio Analytics'!AI998","v":3947.7815677599992},{"$f":"'Portfolio Analytics'!AJ998","v":0},{"$f":"'Portfolio Analytics'!AK998","v":0},{"$f":"'Portfolio Analytics'!AL998","v":0},{"$f":"'Portfolio Analytics'!AM998","v":0},{"$f":"'Portfolio Analytics'!AN998","v":0}]
[null,null,null,null,null,null,"Total Operating Costs","$MM",null,{"$f":"'Portfolio Analytics'!E999","v":0},{"$f":"'Portfolio Analytics'!F999","v":0},{"$f":"'Portfolio Analytics'!G999","v":0},{"$f":"'Portfolio Analytics'!H999","v":0},{"$f":"'Portfolio Analytics'!I999","v":0},{"$f":"'Portfolio Analytics'!J999","v":3594.2116266532962},{"$f":"'Portfolio Analytics'!K999","v":3816.9069009344053},{"$f":"'Portfolio Analytics'!L999","v":3313.37170520684},{"$f":"'Portfolio Analytics'!M999","v":3303.8360027511644},{"$f":"'Portfolio Analytics'!N999","v":3399.9557690630136},{"$f":"'Portfolio Analytics'!O999","v":0},{"$f":"'Portfolio Analytics'!P999","v":3507.2733039893678},{"$f":"'Portfolio Analytics'!Q999","v":0},{"$f":"'Portfolio Analytics'!R999","v":0},{"$f":"'Portfolio Analytics'!S999","v":0},{"$f":"'Portfolio Analytics'!T999","v":3026.1984352013865},{"$f":"'Portfolio Analytics'!U999","v":0},{"$f":"'Portfolio Analytics'!V999","v":0},{"$f":"'Portfolio Analytics'!W999","v":0},{"$f":"'Portfolio Analytics'!X999","v":0},{"$f":"'Portfolio Analytics'!Y999","v":0},{"$f":"'Portfolio Analytics'!Z999","v":0},{"$f":"'Portfolio Analytics'!AA999","v":0},{"$f":"'Portfolio Analytics'!AB999","v":0},{"$f":"'Portfolio Analytics'!AC999","v":0},{"$f":"'Portfolio Analytics'!AD999","v":0},{"$f":"'Portfolio Analytics'!AE999","v":0},{"$f":"'Portfolio Analytics'!AF999","v":0},{"$f":"'Portfolio Analytics'!AG999","v":0},{"$f":"'Portfolio Analytics'!AH999","v":0},{"$f":"'Portfolio Analytics'!AI999","v":832.98297994725328},{"$f":"'Portfolio Analytics'!AJ999","v":0},{"$f":"'Portfolio Analytics'!AK999","v":0},{"$f":"'Portfolio Analytics'!AL999","v":0},{"$f":"'Portfolio Analytics'!AM999","v":0},{"$f":"'Portfolio Analytics'!AN999","v":0}]
[null,null,null,null,null,null,"Total Revenue Requirement","$MM",null,{"$f":"'Portfolio Analytics'!E1000","v":0},{"$f":"'Portfolio Analytics'!F1000","v":0},{"$f":"'Portfolio Analytics'!G1000","v":0},{"$f":"'Portfolio Analytics'!H1000","v":0},{"$f":"'Portfolio Analytics'!I1000","v":0},{"$f":"'Portfolio Analytics'!J1000","v":40413.163305449641},{"$f":"'Portfolio Analytics'!K1000","v":43229.613897710078},{"$f":"'Portfolio Analytics'!L1000","v":42842.575025600629},{"$f":"'Portfolio Analytics'!M1000","v":42408.673720875537},{"$f":"'Portfolio Analytics'!N1000","v":42656.704551995586},{"$f":"'Portfolio Analytics'!O1000","v":0},{"$f":"'Portfolio Analytics'!P1000","v":41030.71594761598},{"$f":"'Portfolio Analytics'!Q1000","v":0},{"$f":"'Portfolio Analytics'!R1000","v":0},{"$f":"'Portfolio Analytics'!S1000","v":0},{"$f":"'Portfolio Analytics'!T1000","v":42874.455777173491},{"$f":"'Portfolio Analytics'!U1000","v":0},{"$f":"'Portfolio Analytics'!V1000","v":0},{"$f":"'Portfolio Analytics'!W1000","v":0},{"$f":"'Portfolio Analytics'!X1000","v":0},{"$f":"'Portfolio Analytics'!Y1000","v":0},{"$f":"'Portfolio Analytics'!Z1000","v":0},{"$f":"'Portfolio Analytics'!AA1000","v":0},{"$f":"'Portfolio Analytics'!AB1000","v":0},{"$f":"'Portfolio Analytics'!AC1000","v":0},{"$f":"'Portfolio Analytics'!AD1000","v":0},{"$f":"'Portfolio Analytics'!AE1000","v":0},{"$f":"'Portfolio Analytics'!AF1000","v":0},{"$f":"'Portfolio Analytics'!AG1000","v":0},{"$f":"'Portfolio Analytics'!AH1000","v":0},{"$f":"'Portfolio Analytics'!AI1000","v":64893.517684886036},{"$f":"'Portfolio Analytics'!AJ1000","v":0},{"$f":"'Portfolio Analytics'!AK1000","v":0},{"$f":"'Portfolio Analytics'!AL1000","v":0},{"$f":"'Portfolio Analytics'!AM1000","v":0},{"$f":"'Portfolio Analytics'!AN1000","v":0}]
[null,null,null,null,null,null,"Customer Costs (Scenario Specific)","$MM",null,{"$f":"'Portfolio Analytics'!E1001","v":0},{"$f":"'Portfolio Analytics'!F1001","v":0},{"$f":"'Portfolio Analytics'!G1001","v":0},{"$f":"'Portfolio Analytics'!H1001","v":0},{"$f":"'Portfolio Analytics'!I1001","v":0},{"$f":"'Portfolio Analytics'!J1001","v":2211.6203935860099},{"$f":"'Portfolio Analytics'!K1001","v":2211.6203935860099},{"$f":"'Portfolio Analytics'!L1001","v":2211.6203935860099},{"$f":"'Portfolio Analytics'!M1001","v":2211.6203935860099},{"$f":"'Portfolio Analytics'!N1001","v":2211.6203935860099},{"$f":"'Portfolio Analytics'!O1001","v":0},{"$f":"'Portfolio Analytics'!P1001","v":2211.6203935860099},{"$f":"'Portfolio Analytics'!Q1001","v":0},{"$f":"'Portfolio Analytics'!R1001","v":0},{"$f":"'Portfolio Analytics'!S1001","v":0},{"$f":"'Portfolio Analytics'!T1001","v":2211.6203935860099},{"$f":"'Portfolio Analytics'!U1001","v":0},{"$f":"'Portfolio Analytics'!V1001","v":0},{"$f":"'Portfolio Analytics'!W1001","v":0},{"$f":"'Portfolio Analytics'!X1001","v":0},{"$f":"'Portfolio Analytics'!Y1001","v":0},{"$f":"'Portfolio Analytics'!Z1001","v":0},{"$f":"'Portfolio Analytics'!AA1001","v":0},{"$f":"'Portfolio Analytics'!AB1001","v":0},{"$f":"'Portfolio Analytics'!AC1001","v":0},{"$f":"'Portfolio Analytics'!AD1001","v":0},{"$f":"'Portfolio Analytics'!AE1001","v":0},{"$f":"'Portfolio Analytics'!AF1001","v":0},{"$f":"'Portfolio Analytics'!AG1001","v":0},{"$f":"'Portfolio Analytics'!AH1001","v":0},{"$f":"'Portfolio Analytics'!AI1001","v":2211.6203935860099},{"$f":"'Portfolio Analytics'!AJ1001","v":0},{"$f":"'Portfolio Analytics'!AK1001","v":0},{"$f":"'Portfolio Analytics'!AL1001","v":0},{"$f":"'Portfolio Analytics'!AM1001","v":0},{"$f":"'Portfolio Analytics'!AN1001","v":0}]
[null,null,null,null,null,null,"Total Resource Cost","$MM",null,{"$f":"'Portfolio Analytics'!E1002","v":0},{"$f":"'Portfolio Analytics'!F1002","v":0},{"$f":"'Portfolio Analytics'!G1002","v":0},{"$f":"'Portfolio Analytics'!H1002","v":0},{"$f":"'Portfolio Analytics'!I1002","v":0},{"$f":"'Portfolio Analytics'!J1002","v":42624.783699035652},{"$f":"'Portfolio Analytics'!K1002","v":45441.234291296088},{"$f":"'Portfolio Analytics'!L1002","v":45054.195419186639},{"$f":"'Portfolio Analytics'!M1002","v":44620.294114461547},{"$f":"'Portfolio Analytics'!N1002","v":44868.324945581597},{"$f":"'Portfolio Analytics'!O1002","v":0},{"$f":"'Portfolio Analytics'!P1002","v":43242.33634120199},{"$f":"'Portfolio Analytics'!Q1002","v":0},{"$f":"'Portfolio Analytics'!R1002","v":0},{"$f":"'Portfolio Analytics'!S1002","v":0},{"$f":"'Portfolio Analytics'!T1002","v":45086.076170759501},{"$f":"'Portfolio Analytics'!U1002","v":0},{"$f":"'Portfolio Analytics'!V1002","v":0},{"$f":"'Portfolio Analytics'!W1002","v":0},{"$f":"'Portfolio Analytics'!X1002","v":0},{"$f":"'Portfolio Analytics'!Y1002","v":0},{"$f":"'Portfolio Analytics'!Z1002","v":0},{"$f":"'Portfolio Analytics'!AA1002","v":0},{"$f":"'Portfolio Analytics'!AB1002","v":0},{"$f":"'Portfolio Analytics'!AC1002","v":0},{"$f":"'Portfolio Analytics'!AD1002","v":0},{"$f":"'Portfolio Analytics'!AE1002","v":0},{"$f":"'Portfolio Analytics'!AF1002","v":0},{"$f":"'Portfolio Analytics'!AG1002","v":0},{"$f":"'Portfolio Analytics'!AH1002","v":0},{"$f":"'Portfolio Analytics'!AI1002","v":67105.138078472039},{"$f":"'Portfolio Analytics'!AJ1002","v":0},{"$f":"'Portfolio Analytics'!AK1002","v":0},{"$f":"'Portfolio Analytics'!AL1002","v":0},{"$f":"'Portfolio Analytics'!AM1002","v":0},{"$f":"'Portfolio Analytics'!AN1002","v":0}]
[null,null,null,null,null,null,"Total Retail Sales","GWh",null,{"$f":"'Portfolio Analytics'!E1003","v":0},{"$f":"'Portfolio Analytics'!F1003","v":0},{"$f":"'Portfolio Analytics'!G1003","v":0},{"$f":"'Portfolio Analytics'!H1003","v":0},{"$f":"'Portfolio Analytics'!I1003","v":0},{"$f":"'Portfolio Analytics'!J1003","v":215947.61166679751},{"$f":"'Portfolio Analytics'!K1003","v":220280.78770507782},{"$f":"'Portfolio Analytics'!L1003","v":225058.82651533952},{"$f":"'Portfolio Analytics'!M1003","v":229518.68265599429},{"$f":"'Portfolio Analytics'!N1003","v":233416.96046750512},{"$f":"'Portfolio Analytics'!O1003","v":0},{"$f":"'Portfolio Analytics'!P1003","v":240336.91700514342},{"$f":"'Portfolio Analytics'!Q1003","v":0},{"$f":"'Portfolio Analytics'!R1003","v":0},{"$f":"'Portfolio Analytics'!S1003","v":0},{"$f":"'Portfolio Analytics'!T1003","v":251673.63860375612},{"$f":"'Portfolio Analytics'!U1003","v":0},{"$f":"'Portfolio Analytics'!V1003","v":0},{"$f":"'Portfolio Analytics'!W1003","v":0},{"$f":"'Portfolio Analytics'!X1003","v":0},{"$f":"'Portfolio Analytics'!Y1003","v":0},{"$f":"'Portfolio Analytics'!Z1003","v":0},{"$f":"'Portfolio Analytics'!AA1003","v":0},{"$f":"'Portfolio Analytics'!AB1003","v":0},{"$f":"'Portfolio Analytics'!AC1003","v":0},{"$f":"'Portfolio Analytics'!AD1003","v":0},{"$f":"'Portfolio Analytics'!AE1003","v":0},{"$f":"'Portfolio Analytics'!AF1003","v":0},{"$f":"'Portfolio Analytics'!AG1003","v":0},{"$f":"'Portfolio Analytics'!AH1003","v":0},{"$f":"'Portfolio Analytics'!AI1003","v":368183.69047160581},{"$f":"'Portfolio Analytics'!AJ1003","v":0},{"$f":"'Portfolio Analytics'!AK1003","v":0},{"$f":"'Portfolio Analytics'!AL1003","v":0},{"$f":"'Portfolio Analytics'!AM1003","v":0},{"$f":"'Portfolio Analytics'!AN1003","v":0}]
[null,null,null,null,null,null,"Average Rate (cts/kWh)","cts/kWh",null,{"$f":"'Portfolio Analytics'!E1004","v":0},{"$f":"'Portfolio Analytics'!F1004","v":0},{"$f":"'Portfolio Analytics'!G1004","v":0},{"$f":"'Portfolio Analytics'!H1004","v":0},{"$f":"'Portfolio Analytics'!I1004","v":0},{"$f":"'Portfolio Analytics'!J1004","v":18.714336775257454},{"$f":"'Portfolio Analytics'!K1004","v":19.624777243664074},{"$f":"'Portfolio Analytics'!L1004","v":19.036167427399509},{"$f":"'Portfolio Analytics'!M1004","v":18.477220777899912},{"$f":"'Portfolio Analytics'!N1004","v":18.274895048997088},{"$f":"'Portfolio Analytics'!O1004","v":0},{"$f":"'Portfolio Analytics'!P1004","v":17.072165383039298},{"$f":"'Portfolio Analytics'!Q1004","v":0},{"$f":"'Portfolio Analytics'!R1004","v":0},{"$f":"'Portfolio Analytics'!S1004","v":0},{"$f":"'Portfolio Analytics'!T1004","v":17.035735651550119},{"$f":"'Portfolio Analytics'!U1004","v":0},{"$f":"'Portfolio Analytics'!V1004","v":0},{"$f":"'Portfolio Analytics'!W1004","v":0},{"$f":"'Portfolio Analytics'!X1004","v":0},{"$f":"'Portfolio Analytics'!Y1004","v":0},{"$f":"'Portfolio Analytics'!Z1004","v":0},{"$f":"'Portfolio Analytics'!AA1004","v":0},{"$f":"'Portfolio Analytics'!AB1004","v":0},{"$f":"'Portfolio Analytics'!AC1004","v":0},{"$f":"'Portfolio Analytics'!AD1004","v":0},{"$f":"'Portfolio Analytics'!AE1004","v":0},{"$f":"'Portfolio Analytics'!AF1004","v":0},{"$f":"'Portfolio Analytics'!AG1004","v":0},{"$f":"'Portfolio Analytics'!AH1004","v":0},{"$f":"'Portfolio Analytics'!AI1004","v":17.625310236247575},{"$f":"'Portfolio Analytics'!AJ1004","v":0},{"$f":"'Portfolio Analytics'!AK1004","v":0},{"$f":"'Portfolio Analytics'!AL1004","v":0},{"$f":"'Portfolio Analytics'!AM1004","v":0},{"$f":"'Portfolio Analytics'!AN1004","v":0}]
[]
[null,null,null,null,null,null,"Operating Cost Breakdown","Unit",null,2015,2016,2017,2018,2019,2020,2021,2022,2023,2024,2025,2026,2027,2028,2029,2030,2031,2032,2033,2034,2035,2036,2037,2038,2039,2040,2041,2042,2043,2044,2045,2046,2047,2048,2049,2050]
[null,null,null,null,null,null,"Variable Operating Costs for CAISO Resources","$MM",null,{"$f":"'Portfolio Analytics'!E976","v":0},{"$f":"'Portfolio Analytics'!F976","v":0},{"$f":"'Portfolio Analytics'!G976","v":0},{"$f":"'Portfolio Analytics'!H976","v":0},{"$f":"'Portfolio Analytics'!I976","v":0},{"$f":"'Portfolio Analytics'!J976","v":3034.832171882415},{"$f":"'Portfolio Analytics'!K976","v":3029.9022719950399},{"$f":"'Portfolio Analytics'!L976","v":2867.8837410119036},{"$f":"'Portfolio Analytics'!M976","v":2836.4802605649734},{"$f":"'Portfolio Analytics'!N976","v":2861.1299969707379},{"$f":"'Portfolio Analytics'!O976","v":0},{"$f":"'Portfolio Analytics'!P976","v":3101.4749571517327},{"$f":"'Portfolio Analytics'!Q976","v":0},{"$f":"'Portfolio Analytics'!R976","v":0},{"$f":"'Portfolio Analytics'!S976","v":0},{"$f":"'Portfolio Analytics'!T976","v":2687.5771420295969},{"$f":"'Portfolio Analytics'!U976","v":0},{"$f":"'Portfolio Analytics'!V976","v":0},{"$f":"'Portfolio Analytics'!W976","v":0},{"$f":"'Portfolio Analytics'!X976","v":0},{"$f":"'Portfolio Analytics'!Y976","v":0},{"$f":"'Portfolio Analytics'!Z976","v":0},{"$f":"'Portfolio Analytics'!AA976","v":0},{"$f":"'Portfolio Analytics'!AB976","v":0},{"$f":"'Portfolio Analytics'!AC976","v":0},{"$f":"'Portfolio Analytics'!AD976","v":0},{"$f":"'Portfolio Analytics'!AE976","v":0},{"$f":"'Portfolio Analytics'!AF976","v":0},{"$f":"'Portfolio Analytics'!AG976","v":0},{"$f":"'Portfolio Analytics'!AH976","v":0},{"$f":"'Portfolio Analytics'!AI976","v":1773.8537531391341},{"$f":"'Portfolio Analytics'!AJ976","v":0},{"$f":"'Portfolio Analytics'!AK976","v":0},{"$f":"'Portfolio Analytics'!AL976","v":0},{"$f":"'Portfolio Analytics'!AM976","v":0},{"$f":"'Portfolio Analytics'!AN976","v":0}]
[null,null,null,null,null,null,"Incremental Biogas Costs","$MM",null,{"$f":"'Portfolio Analytics'!E977","v":0},{"$f":"'Portfolio Analytics'!F977","v":0},{"$f":"'Portfolio Analytics'!G977","v":0},{"$f":"'Portfolio Analytics'!H977","v":0},{"$f":"'Portfolio Analytics'!I977","v":0},{"$f":"'Portfolio Analytics'!J977","v":0},{"$f":"'Portfolio Analytics'!K977","v":0},{"$f":"'Portfolio Analytics'!L977","v":0},{"$f":"'Portfolio Analytics'!M977","v":0},{"$f":"'Portfolio Analytics'!N977","v":0},{"$f":"'Portfolio Analytics'!O977","v":0},{"$f":"'Portfolio Analytics'!P977","v":0},{"$f":"'Portfolio Analytics'!Q977","v":0},{"$f":"'Portfolio Analytics'!R977","v":0},{"$f":"'Portfolio Analytics'!S977","v":0},{"$f":"'Portfolio Analytics'!T977","v":0},{"$f":"'Portfolio Analytics'!U977","v":0},{"$f":"'Portfolio Analytics'!V977","v":0},{"$f":"'Portfolio Analytics'!W977","v":0},{"$f":"'Portfolio Analytics'!X977","v":0},{"$f":"'Portfolio Analytics'!Y977","v":0},{"$f":"'Portfolio Analytics'!Z977","v":0},{"$f":"'Portfolio Analytics'!AA977","v":0},{"$f":"'Portfolio Analytics'!AB977","v":0},{"$f":"'Portfolio Analytics'!AC977","v":0},{"$f":"'Portfolio Analytics'!AD977","v":0},{"$f":"'Portfolio Analytics'!AE977","v":0},{"$f":"'Portfolio Analytics'!AF977","v":0},{"$f":"'Portfolio Analytics'!AG977","v":0},{"$f":"'Portfolio Analytics'!AH977","v":0},{"$f":"'Portfolio Analytics'!AI977","v":0},{"$f":"'Portfolio Analytics'!AJ977","v":0},{"$f":"'Portfolio Analytics'!AK977","v":0},{"$f":"'Portfolio Analytics'!AL977","v":0},{"$f":"'Portfolio Analytics'!AM977","v":0},{"$f":"'Portfolio Analytics'!AN977","v":0}]
[null,null,null,null,null,null,"Market Purchases (incl Carbon Allowance)","$MM",null,{"$f":"'Portfolio Analytics'!E978","v":0},{"$f":"'Portfolio Analytics'!F978","v":0},{"$f":"'Portfolio Analytics'!G978","v":0},{"$f":"'Portfolio Analytics'!H978","v":0},{"$f":"'Portfolio Analytics'!I978","v":0},{"$f":"'Portfolio Analytics'!J978","v":735.06036026641095},{"$f":"'Portfolio Analytics'!K978","v":955.06604386616368},{"$f":"'Portfolio Analytics'!L978","v":638.50677985032667},{"$f":"'Portfolio Analytics'!M978","v":667.78676267556853},{"$f":"'Portfolio Analytics'!N978","v":737.18459413173366},{"$f":"'Portfolio Analytics'!O978","v":0},{"$f":"'Portfolio Analytics'!P978","v":583.8115067034679},{"$f":"'Portfolio Analytics'!Q978","v":0},{"$f":"'Portfolio Analytics'!R978","v":0},{"$f":"'Portfolio Analytics'!S978","v":0},{"$f":"'Portfolio Analytics'!T978","v":569.5909553781803},{"$f":"'Portfolio Analytics'!U978","v":0},{"$f":"'Portfolio Analytics'!V978","v":0},{"$f":"'Portfolio Analytics'!W978","v":0},{"$f":"'Portfolio Analytics'!X978","v":0},{"$f":"'Portfolio Analytics'!Y978","v":0},{"$f":"'Portfolio Analytics'!Z978","v":0},{"$f":"'Portfolio Analytics'!AA978","v":0},{"$f":"'Portfolio Analytics'!AB978","v":0},{"$f":"'Portfolio Analytics'!AC978","v":0},{"$f":"'Portfolio Analytics'!AD978","v":0},{"$f":"'Portfolio Analytics'!AE978","v":0},{"$f":"'Portfolio Analytics'!AF978","v":0},{"$f":"'Portfolio Analytics'!AG978","v":0},{"$f":"'Portfolio Analytics'!AH978","v":0},{"$f":"'Portfolio Analytics'!AI978","v":73.902119403834362},{"$f":"'Portfolio Analytics'!AJ978","v":0},{"$f":"'Portfolio Analytics'!AK978","v":0},{"$f":"'Portfolio Analytics'!AL978","v":0},{"$f":"'Portfolio Analytics'!AM978","v":0},{"$f":"'Portfolio Analytics'!AN978","v":0}]
[null,null,null,null,null,null,"Market Revenues","$MM",null,{"$f":"'Portfolio Analytics'!E979","v":0},{"$f":"'Portfolio Analytics'!F979","v":0},{"$f":"'Portfolio Analytics'!G979","v":0},{"$f":"'Portfolio Analytics'!H979","v":0},{"$f":"'Portfolio Analytics'!I979","v":0},{"$f":"'Portfolio Analytics'!J979","v":-58.192432660376966},{"$f":"'Portfolio Analytics'!K979","v":-47.644104025101576},{"$f":"'Portfolio Analytics'!L979","v":-74.050837980506145},{"$f":"'Portfolio Analytics'!M979","v":-81.168010649717331},{"$f":"'Portfolio Analytics'!N979","v":-77.295087260087456},{"$f":"'Portfolio Analytics'!O979","v":0},{"$f":"'Portfolio Analytics'!P979","v":-55.786953841741273},{"$f":"'Portfolio Analytics'!Q979","v":0},{"$f":"'Portfolio Analytics'!R979","v":0},{"$f":"'Portfolio Analytics'!S979","v":0},{"$f":"'Portfolio Analytics'!T979","v":-105.88057941337836},{"$f":"'Portfolio Analytics'!U979","v":0},{"$f":"'Portfolio Analytics'!V979","v":0},{"$f":"'Portfolio Analytics'!W979","v":0},{"$f":"'Portfolio Analytics'!X979","v":0},{"$f":"'Portfolio Analytics'!Y979","v":0},{"$f":"'Portfolio Analytics'!Z979","v":0},{"$f":"'Portfolio Analytics'!AA979","v":0},{"$f":"'Portfolio Analytics'!AB979","v":0},{"$f":"'Portfolio Analytics'!AC979","v":0},{"$f":"'Portfolio Analytics'!AD979","v":0},{"$f":"'Portfolio Analytics'!AE979","v":0},{"$f":"'Portfolio Analytics'!AF979","v":0},{"$f":"'Portfolio Analytics'!AG979","v":0},{"$f":"'Portfolio Analytics'!AH979","v":0},{"$f":"'Portfolio Analytics'!AI979","v":-881.52815643439203},{"$f":"'Portfolio Analytics'!AJ979","v":0},{"$f":"'Portfolio Analytics'!AK979","v":0},{"$f":"'Portfolio Analytics'!AL979","v":0},{"$f":"'Portfolio Analytics'!AM979","v":0},{"$f":"'Portfolio Analytics'!AN979","v":0}]
[null,null,null,null,null,null,"Energy Credit for OOS Renewables Contracted to CAISO","$MM",null,{"$f":"'Portfolio Analytics'!E980","v":0},{"$f":"'Portfolio Analytics'!F980","v":0},{"$f":"'Portfolio Analytics'!G980","v":0},{"$f":"'Portfolio Analytics'!H980","v":0},{"$f":"'Portfolio Analytics'!I980","v":0},{"$f":"'Portfolio Analytics'!J980","v":-117.48847283515251},{"$f":"'Portfolio Analytics'!K980","v":-120.41731090169641},{"$f":"'Portfolio Analytics'!L980","v":-118.96797767488415},{"$f":"'Portfolio Analytics'!M980","v":-119.26300983966003},{"$f":"'Portfolio Analytics'!N980","v":-121.06373477937092},{"$f":"'Portfolio Analytics'!O980","v":0},{"$f":"'Portfolio Analytics'!P980","v":-122.2262060240916},{"$f":"'Portfolio Analytics'!Q980","v":0},{"$f":"'Portfolio Analytics'!R980","v":0},{"$f":"'Portfolio Analytics'!S980","v":0},{"$f":"'Portfolio Analytics'!T980","v":-125.08908279301247},{"$f":"'Portfolio Analytics'!U980","v":0},{"$f":"'Portfolio Analytics'!V980","v":0},{"$f":"'Portfolio Analytics'!W980","v":0},{"$f":"'Portfolio Analytics'!X980","v":0},{"$f":"'Portfolio Analytics'!Y980","v":0},{"$f":"'Portfolio Analytics'!Z980","v":0},{"$f":"'Portfolio Analytics'!AA980","v":0},{"$f":"'Portfolio Analytics'!AB980","v":0},{"$f":"'Portfolio Analytics'!AC980","v":0},{"$f":"'Portfolio Analytics'!AD980","v":0},{"$f":"'Portfolio Analytics'!AE980","v":0},{"$f":"'Portfolio Analytics'!AF980","v":0},{"$f":"'Portfolio Analytics'!AG980","v":0},{"$f":"'Portfolio Analytics'!AH980","v":0},{"$f":"'Portfolio Analytics'!AI980","v":-133.24473616132323},{"$f":"'Portfolio Analytics'!AJ980","v":0},{"$f":"'Portfolio Analytics'!AK980","v":0},{"$f":"'Portfolio Analytics'!AL980","v":0},{"$f":"'Portfolio Analytics'!AM980","v":0},{"$f":"'Portfolio Analytics'!AN980","v":0}]
[null,null,null,null,null,null,"Total CAISO Operating Cost","$MM",null,{"$f":"'Portfolio Analytics'!E981","v":0},{"$f":"'Portfolio Analytics'!F981","v":0},{"$f":"'Portfolio Analytics'!G981","v":0},{"$f":"'Portfolio Analytics'!H981","v":0},{"$f":"'Portfolio Analytics'!I981","v":0},{"$f":"'Portfolio Analytics'!J981","v":3594.2116266532962},{"$f":"'Portfolio Analytics'!K981","v":3816.9069009344053},{"$f":"'Portfolio Analytics'!L981","v":3313.37170520684},{"$f":"'Portfolio Analytics'!M981","v":3303.8360027511644},{"$f":"'Portfolio Analytics'!N981","v":3399.9557690630136},{"$f":"'Portfolio Analytics'!O981","v":0},{"$f":"'Portfolio Analytics'!P981","v":3507.2733039893678},{"$f":"'Portfolio Analytics'!Q981","v":0},{"$f":"'Portfolio Analytics'!R981","v":0},{"$f":"'Portfolio Analytics'!S981","v":0},{"$f":"'Portfolio Analytics'!T981","v":3026.1984352013865},{"$f":"'Portfolio Analytics'!U981","v":0},{"$f":"'Portfolio Analytics'!V981","v":0},{"$f":"'Portfolio Analytics'!W981","v":0},{"$f":"'Portfolio Analytics'!X981","v":0},{"$f":"'Portfolio Analytics'!Y981","v":0},{"$f":"'Portfolio Analytics'!Z981","v":0},{"$f":"'Portfolio Analytics'!AA981","v":0},{"$f":"'Portfolio Analytics'!AB981","v":0},{"$f":"'Portfolio Analytics'!AC981","v":0},{"$f":"'Portfolio Analytics'!AD981","v":0},{"$f":"'Portfolio Analytics'!AE981","v":0},{"$f":"'Portfolio Analytics'!AF981","v":0},{"$f":"'Portfolio Analytics'!AG981","v":0},{"$f":"'Portfolio Analytics'!AH981","v":0},{"$f":"'Portfolio Analytics'!AI981","v":832.98297994725328},{"$f":"'Portfolio Analytics'!AJ981","v":0},{"$f":"'Portfolio Analytics'!AK981","v":0},{"$f":"'Portfolio Analytics'!AL981","v":0},{"$f":"'Portfolio Analytics'!AM981","v":0},{"$f":"'Portfolio Analytics'!AN981","v":0}]
[]
[null,null,null,null,null,null,"RPS Summary"]
[]
[null,null,null,null,null,null,null,"Unit",null,2015,{"$f":"J126+1","v":2016},2017,2018,2019,2020,2021,2022,2023,2024,2025,2026,2027,2028,2029,2030,{"$f":"Y126+1","v":2031},2032,2033,2034,2035,2036,2037,2038,2039,2040,2041,2042,2043,2044,2045,2046,2047,2048,2049,2050]
[null,null,null,null,null,null,"RPS Target","% of Retail Sales",null,{"$f":"'Portfolio Analytics'!E860","v":0},{"$f":"'Portfolio Analytics'!F860","v":0},{"$f":"'Portfolio Analytics'!G860","v":0},{"$f":"'Portfolio Analytics'!H860","v":0},{"$f":"'Portfolio Analytics'!I860","v":0},{"$f":"'Portfolio Analytics'!J860","v":0.33022200448247635},{"$f":"'Portfolio Analytics'!K860","v":0.35717645440358731},{"$f":"'Portfolio Analytics'!L860","v":0.38411230193642781},{"$f":"'Portfolio Analytics'!M860","v":0.41103046125528475},{"$f":"'Portfolio Analytics'!N860","v":0.43793834341509474},{"$f":"'Portfolio Analytics'!O860","v":0},{"$f":"'Portfolio Analytics'!P860","v":0.49171447001939755},{"$f":"'Portfolio Analytics'!Q860","v":0},{"$f":"'Portfolio Analytics'!R860","v":0},{"$f":"'Portfolio Analytics'!S860","v":0},{"$f":"'Portfolio Analytics'!T860","v":0.59929537276392375},{"$f":"'Portfolio Analytics'!U860","v":0},{"$f":"'Portfolio Analytics'!V860","v":0},{"$f":"'Portfolio Analytics'!W860","v":0},{"$f":"'Portfolio Analytics'!X860","v":0},{"$f":"'Portfolio Analytics'!Y860","v":0},{"$f":"'Portfolio Analytics'!Z860","v":0},{"$f":"'Portfolio Analytics'!AA860","v":0},{"$f":"'Portfolio Analytics'!AB860","v":0},{"$f":"'Portfolio Analytics'!AC860","v":0},{"$f":"'Portfolio Analytics'!AD860","v":0},{"$f":"'Portfolio Analytics'!AE860","v":0},{"$f":"'Portfolio Analytics'!AF860","v":0},{"$f":"'Portfolio Analytics'!AG860","v":0},{"$f":"'Portfolio Analytics'!AH860","v":0},{"$f":"'Portfolio Analytics'!AI860","v":0.84252877957978634},{"$f":"'Portfolio Analytics'!AJ860","v":0},{"$f":"'Portfolio Analytics'!AK860","v":0},{"$f":"'Portfolio Analytics'!AL860","v":0},{"$f":"'Portfolio Analytics'!AM860","v":0},{"$f":"'Portfolio Analytics'!AN860","v":0}]
[null,null,null,null,null,null,"RPS-Eligible Generation (w/o banked RECs)","% of Retail Sales",null,{"$f":"'Portfolio Analytics'!E861","v":0},{"$f":"'Portfolio Analytics'!F861","v":0},{"$f":"'Portfolio Analytics'!G861","v":0},{"$f":"'Portfolio Analytics'!H861","v":0},{"$f":"'Portfolio Analytics'!I861","v":0},{"$f":"'Portfolio Analytics'!J861","v":0.42749267154074988},{"$f":"'Portfolio Analytics'!K861","v":0.4482432931100967},{"$f":"'Portfolio Analytics'!L861","v":0.49891160361664111},{"$f":"'Portfolio Analytics'!M861","v":0.51458892787964017},{"$f":"'Portfolio Analytics'!N861","v":0.54271455380099309},{"$f":"'Portfolio Analytics'!O861","v":0},{"$f":"'Portfolio Analytics'!P861","v":0.58227617363224449},{"$f":"'Portfolio Analytics'!Q861","v":0},{"$f":"'Portfolio Analytics'!R861","v":0},{"$f":"'Portfolio Analytics'!S861","v":0},{"$f":"'Portfolio Analytics'!T861","v":0.68001887997649835},{"$f":"'Portfolio Analytics'!U861","v":0},{"$f":"'Portfolio Analytics'!V861","v":0},{"$f":"'Portfolio Analytics'!W861","v":0},{"$f":"'Portfolio Analytics'!X861","v":0},{"$f":"'Portfolio Analytics'!Y861","v":0},{"$f":"'Portfolio Analytics'!Z861","v":0},{"$f":"'Portfolio Analytics'!AA861","v":0},{"$f":"'Portfolio Analytics'!AB861","v":0},{"$f":"'Portfolio Analytics'!AC861","v":0},{"$f":"'Portfolio Analytics'!AD861","v":0},{"$f":"'Portfolio Analytics'!AE861","v":0},{"$f":"'Portfolio Analytics'!AF861","v":0},{"$f":"'Portfolio Analytics'!AG861","v":0},{"$f":"'Portfolio Analytics'!AH861","v":0},{"$f":"'Portfolio Analytics'!AI861","v":1.0061055832426093},{"$f":"'Portfolio Analytics'!AJ861","v":0},{"$f":"'Portfolio Analytics'!AK861","v":0},{"$f":"'Portfolio Analytics'!AL861","v":0},{"$f":"'Portfolio Analytics'!AM861","v":0},{"$f":"'Portfolio Analytics'!AN861","v":0}]
[null,null,null,null,null,null,"Banked RECs","% of Retail Sales",null,{"$f":"'Portfolio Analytics'!E862","v":0},{"$f":"'Portfolio Analytics'!F862","v":0},{"$f":"'Portfolio Analytics'!G862","v":0},{"$f":"'Portfolio Analytics'!H862","v":0},{"$f":"'Portfolio Analytics'!I862","v":0},{"$f":"'Portfolio Analytics'!J862","v":0},{"$f":"'Portfolio Analytics'!K862","v":0},{"$f":"'Portfolio Analytics'!L862","v":0},{"$f":"'Portfolio Analytics'!M862","v":0},{"$f":"'Portfolio Analytics'!N862","v":2.1775043969920912E-2},{"$f":"'Portfolio Analytics'!O862","v":0},{"$f":"'Portfolio Analytics'!P862","v":6.7610939748921461E-2},{"$f":"'Portfolio Analytics'!Q862","v":0},{"$f":"'Portfolio Analytics'!R862","v":0},{"$f":"'Portfolio Analytics'!S862","v":0},{"$f":"'Portfolio Analytics'!T862","v":0},{"$f":"'Portfolio Analytics'!U862","v":0},{"$f":"'Portfolio Analytics'!V862","v":0},{"$f":"'Portfolio Analytics'!W862","v":0},{"$f":"'Portfolio Analytics'!X862","v":0},{"$f":"'Portfolio Analytics'!Y862","v":0},{"$f":"'Portfolio Analytics'!Z862","v":0},{"$f":"'Portfolio Analytics'!AA862","v":0},{"$f":"'Portfolio Analytics'!AB862","v":0},{"$f":"'Portfolio Analytics'!AC862","v":0},{"$f":"'Portfolio Analytics'!AD862","v":0},{"$f":"'Portfolio Analytics'!AE862","v":0},{"$f":"'Portfolio Analytics'!AF862","v":0},{"$f":"'Portfolio Analytics'!AG862","v":0},{"$f":"'Portfolio Analytics'!AH862","v":0},{"$f":"'Portfolio Analytics'!AI862","v":0},{"$f":"'Portfolio Analytics'!AJ862","v":0},{"$f":"'Portfolio Analytics'!AK862","v":0},{"$f":"'Portfolio Analytics'!AL862","v":0},{"$f":"'Portfolio Analytics'!AM862","v":0},{"$f":"'Portfolio Analytics'!AN862","v":0}]
[null,null,null,null,null,null,"Effective RPS (with banked RECs)","% of Retail Sales",null,{"$f":"'Portfolio Analytics'!E863","v":0},{"$f":"'Portfolio Analytics'!F863","v":0},{"$f":"'Portfolio Analytics'!G863","v":0},{"$f":"'Portfolio Analytics'!H863","v":0},{"$f":"'Portfolio Analytics'!I863","v":0},{"$f":"'Portfolio Analytics'!J863","v":0.42749267154074988},{"$f":"'Portfolio Analytics'!K863","v":0.4482432931100967},{"$f":"'Portfolio Analytics'!L863","v":0.49891160361664111},{"$f":"'Portfolio Analytics'!M863","v":0.51458892787964017},{"$f":"'Portfolio Analytics'!N863","v":0.56448959777091401},{"$f":"'Portfolio Analytics'!O863","v":0},{"$f":"'Portfolio Analytics'!P863","v":0.64988711338116589},{"$f":"'Portfolio Analytics'!Q863","v":0},{"$f":"'Portfolio Analytics'!R863","v":0},{"$f":"'Portfolio Analytics'!S863","v":0},{"$f":"'Portfolio Analytics'!T863","v":0.68001887997649835},{"$f":"'Portfolio Analytics'!U863","v":0},{"$f":"'Portfolio Analytics'!V863","v":0},{"$f":"'Portfolio Analytics'!W863","v":0},{"$f":"'Portfolio Analytics'!X863","v":0},{"$f":"'Portfolio Analytics'!Y863","v":0},{"$f":"'Portfolio Analytics'!Z863","v":0},{"$f":"'Portfolio Analytics'!AA863","v":0},{"$f":"'Portfolio Analytics'!AB863","v":0},{"$f":"'Portfolio Analytics'!AC863","v":0},{"$f":"'Portfolio Analytics'!AD863","v":0},{"$f":"'Portfolio Analytics'!AE863","v":0},{"$f":"'Portfolio Analytics'!AF863","v":0},{"$f":"'Portfolio Analytics'!AG863","v":0},{"$f":"'Portfolio Analytics'!AH863","v":0},{"$f":"'Portfolio Analytics'!AI863","v":1.0061055832426093},{"$f":"'Portfolio Analytics'!AJ863","v":0},{"$f":"'Portfolio Analytics'!AK863","v":0},{"$f":"'Portfolio Analytics'!AL863","v":0},{"$f":"'Portfolio Analytics'!AM863","v":0},{"$f":"'Portfolio Analytics'!AN863","v":0}]
[null,null,null,null,null,null,"Renewable Curtailment (scheduled and subhourly)","% of RPS Gen.",null,{"$f":"'Portfolio Analytics'!E858","v":0},{"$f":"'Portfolio Analytics'!F858","v":0},{"$f":"'Portfolio Analytics'!G858","v":0},{"$f":"'Portfolio Analytics'!H858","v":0},{"$f":"'Portfolio Analytics'!I858","v":0},{"$f":"'Portfolio Analytics'!J858","v":2.8781876789230072E-3},{"$f":"'Portfolio Analytics'!K858","v":5.499613313565941E-3},{"$f":"'Portfolio Analytics'!L858","v":7.1635235502506564E-3},{"$f":"'Portfolio Analytics'!M858","v":9.0679357349169737E-3},{"$f":"'Portfolio Analytics'!N858","v":8.6545972844089859E-3},{"$f":"'Portfolio Analytics'!O858","v":0},{"$f":"'Portfolio Analytics'!P858","v":6.6516881498804104E-3},{"$f":"'Portfolio Analytics'!Q858","v":0},{"$f":"'Portfolio Analytics'!R858","v":0},{"$f":"'Portfolio Analytics'!S858","v":0},{"$f":"'Portfolio Analytics'!T858","v":2.6518158985217685E-2},{"$f":"'Portfolio Analytics'!U858","v":0},{"$f":"'Portfolio Analytics'!V858","v":0},{"$f":"'Portfolio Analytics'!W858","v":0},{"$f":"'Portfolio Analytics'!X858","v":0},{"$f":"'Portfolio Analytics'!Y858","v":0},{"$f":"'Portfolio Analytics'!Z858","v":0},{"$f":"'Portfolio Analytics'!AA858","v":0},{"$f":"'Portfolio Analytics'!AB858","v":0},{"$f":"'Portfolio Analytics'!AC858","v":0},{"$f":"'Portfolio Analytics'!AD858","v":0},{"$f":"'Portfolio Analytics'!AE858","v":0},{"$f":"'Portfolio Analytics'!AF858","v":0},{"$f":"'Portfolio Analytics'!AG858","v":0},{"$f":"'Portfolio Analytics'!AH858","v":0},{"$f":"'Portfolio Analytics'!AI858","v":0.12414812232472242},{"$f":"'Portfolio Analytics'!AJ858","v":0},{"$f":"'Portfolio Analytics'!AK858","v":0},{"$f":"'Portfolio Analytics'!AL858","v":0},{"$f":"'Portfolio Analytics'!AM858","v":0},{"$f":"'Portfolio Analytics'!AN858","v":0}]
[null,null,null,null,null,null,"Renewable Curtailment incl. Storage Losses","% of RPS Gen.",null,{"$f":"'Portfolio Analytics'!E859","v":0},{"$f":"'Portfolio Analytics'!F859","v":0},{"$f":"'Portfolio Analytics'!G859","v":0},{"$f":"'Portfolio Analytics'!H859","v":0},{"$f":"'Portfolio Analytics'!I859","v":0},{"$f":"'Portfolio Analytics'!J859","v":1.1447932037368214E-2},{"$f":"'Portfolio Analytics'!K859","v":1.9584966667553459E-2},{"$f":"'Portfolio Analytics'!L859","v":2.057009447054118E-2},{"$f":"'Portfolio Analytics'!M859","v":2.3649757486518069E-2},{"$f":"'Portfolio Analytics'!N859","v":2.600872704825247E-2},{"$f":"'Portfolio Analytics'!O859","v":0},{"$f":"'Portfolio Analytics'!P859","v":3.2660322771019885E-2},{"$f":"'Portfolio Analytics'!Q859","v":0},{"$f":"'Portfolio Analytics'!R859","v":0},{"$f":"'Portfolio Analytics'!S859","v":0},{"$f":"'Portfolio Analytics'!T859","v":5.8998432763808541E-2},{"$f":"'Portfolio Analytics'!U859","v":0},{"$f":"'Portfolio Analytics'!V859","v":0},{"$f":"'Portfolio Analytics'!W859","v":0},{"$f":"'Portfolio Analytics'!X859","v":0},{"$f":"'Portfolio Analytics'!Y859","v":0},{"$f":"'Portfolio Analytics'!Z859","v":0},{"$f":"'Portfolio Analytics'!AA859","v":0},{"$f":"'Portfolio Analytics'!AB859","v":0},{"$f":"'Portfolio Analytics'!AC859","v":0},{"$f":"'Portfolio Analytics'!AD859","v":0},{"$f":"'Portfolio Analytics'!AE859","v":0},{"$f":"'Portfolio Analytics'!AF859","v":0},{"$f":"'Portfolio Analytics'!AG859","v":0},{"$f":"'Portfolio Analytics'!AH859","v":0},{"$f":"'Portfolio Analytics'!AI859","v":0.18621883985328516},{"$f":"'Portfolio Analytics'!AJ859","v":0},{"$f":"'Portfolio Analytics'!AK859","v":0},{"$f":"'Portfolio Analytics'!AL859","v":0},{"$f":"'Portfolio Analytics'!AM859","v":0},{"$f":"'Portfolio Analytics'!AN859","v":0}]
[null,null,null,null,null,null,"Marginal RPS Cost","$/MWh",null,{"$f":"'Portfolio Analytics'!E865","v":0},{"$f":"'Portfolio Analytics'!F865","v":0},{"$f":"'Portfolio Analytics'!G865","v":0},{"$f":"'Portfolio Analytics'!H865","v":0},{"$f":"'Portfolio Analytics'!I865","v":0},{"$f":"'Portfolio Analytics'!J865","v":0},{"$f":"'Portfolio Analytics'!K865","v":0},{"$f":"'Portfolio Analytics'!L865","v":0},{"$f":"'Portfolio Analytics'!M865","v":0},{"$f":"'Portfolio Analytics'!N865","v":0},{"$f":"'Portfolio Analytics'!O865","v":0},{"$f":"'Portfolio Analytics'!P865","v":0},{"$f":"'Portfolio Analytics'!Q865","v":0},{"$f":"'Portfolio Analytics'!R865","v":0},{"$f":"'Portfolio Analytics'!S865","v":0},{"$f":"'Portfolio Analytics'!T865","v":0},{"$f":"'Portfolio Analytics'!U865","v":0},{"$f":"'Portfolio Analytics'!V865","v":0},{"$f":"'Portfolio Analytics'!W865","v":0},{"$f":"'Portfolio Analytics'!X865","v":0},{"$f":"'Portfolio Analytics'!Y865","v":0},{"$f":"'Portfolio Analytics'!Z865","v":0},{"$f":"'Portfolio Analytics'!AA865","v":0},{"$f":"'Portfolio Analytics'!AB865","v":0},{"$f":"'Portfolio Analytics'!AC865","v":0},{"$f":"'Portfolio Analytics'!AD865","v":0},{"$f":"'Portfolio Analytics'!AE865","v":0},{"$f":"'Portfolio Analytics'!AF865","v":0},{"$f":"'Portfolio Analytics'!AG865","v":0},{"$f":"'Portfolio Analytics'!AH865","v":0},{"$f":"'Portfolio Analytics'!AI865","v":0},{"$f":"'Portfolio Analytics'!AJ865","v":0},{"$f":"'Portfolio Analytics'!AK865","v":0},{"$f":"'Portfolio Analytics'!AL865","v":0},{"$f":"'Portfolio Analytics'!AM865","v":0},{"$f":"'Portfolio Analytics'!AN865","v":0}]
[null,null,null,null,null,null,"RPS Renewables excl. Pipeline Biogas","GWh",null,{"$f":"'Portfolio Analytics'!E849","v":0},{"$f":"'Portfolio Analytics'!F849","v":0},{"$f":"'Portfolio Analytics'!G849","v":0},{"$f":"'Portfolio Analytics'!H849","v":0},{"$f":"'Portfolio Analytics'!I849","v":0},{"$f":"'Portfolio Analytics'!J849","v":86991.54204},{"$f":"'Portfolio Analytics'!K849","v":93794.821169999996},{"$f":"'Portfolio Analytics'!L849","v":107145.96198000001},{"$f":"'Portfolio Analytics'!M849","v":113186.70081000001},{"$f":"'Portfolio Analytics'!N849","v":121969.41079000001},{"$f":"'Portfolio Analytics'!O849","v":0},{"$f":"'Portfolio Analytics'!P849","v":136231.01168},{"$f":"'Portfolio Analytics'!Q849","v":0},{"$f":"'Portfolio Analytics'!R849","v":0},{"$f":"'Portfolio Analytics'!S849","v":0},{"$f":"'Portfolio Analytics'!T849","v":169280.08877},{"$f":"'Portfolio Analytics'!U849","v":0},{"$f":"'Portfolio Analytics'!V849","v":0},{"$f":"'Portfolio Analytics'!W849","v":0},{"$f":"'Portfolio Analytics'!X849","v":0},{"$f":"'Portfolio Analytics'!Y849","v":0},{"$f":"'Portfolio Analytics'!Z849","v":0},{"$f":"'Portfolio Analytics'!AA849","v":0},{"$f":"'Portfolio Analytics'!AB849","v":0},{"$f":"'Portfolio Analytics'!AC849","v":0},{"$f":"'Portfolio Analytics'!AD849","v":0},{"$f":"'Portfolio Analytics'!AE849","v":0},{"$f":"'Portfolio Analytics'!AF849","v":0},{"$f":"'Portfolio Analytics'!AG849","v":0},{"$f":"'Portfolio Analytics'!AH849","v":0},{"$f":"'Portfolio Analytics'!AI849","v":392251.64739},{"$f":"'Portfolio Analytics'!AJ849","v":0},{"$f":"'Portfolio Analytics'!AK849","v":0},{"$f":"'Portfolio Analytics'!AL849","v":0},{"$f":"'Portfolio Analytics'!AM849","v":0},{"$f":"'Portfolio Analytics'!AN849","v":0}]
[null,null,null,null,null,null,"Pipeline Biogas Generation","GWh",null,{"$f":"'Portfolio Analytics'!E850","v":0},{"$f":"'Portfolio Analytics'!F850","v":0},{"$f":"'Portfolio Analytics'!G850","v":0},{"$f":"'Portfolio Analytics'!H850","v":0},{"$f":"'Portfolio Analytics'!I850","v":0},{"$f":"'Portfolio Analytics'!J850","v":0},{"$f":"'Portfolio Analytics'!K850","v":0},{"$f":"'Portfolio Analytics'!L850","v":0},{"$f":"'Portfolio Analytics'!M850","v":0},{"$f":"'Portfolio Analytics'!N850","v":0},{"$f":"'Portfolio Analytics'!O850","v":0},{"$f":"'Portfolio Analytics'!P850","v":0},{"$f":"'Portfolio Analytics'!Q850","v":0},{"$f":"'Portfolio Analytics'!R850","v":0},{"$f":"'Portfolio Analytics'!S850","v":0},{"$f":"'Portfolio Analytics'!T850","v":0},{"$f":"'Portfolio Analytics'!U850","v":0},{"$f":"'Portfolio Analytics'!V850","v":0},{"$f":"'Portfolio Analytics'!W850","v":0},{"$f":"'Portfolio Analytics'!X850","v":0},{"$f":"'Portfolio Analytics'!Y850","v":0},{"$f":"'Portfolio Analytics'!Z850","v":0},{"$f":"'Portfolio Analytics'!AA850","v":0},{"$f":"'Portfolio Analytics'!AB850","v":0},{"$f":"'Portfolio Analytics'!AC850","v":0},{"$f":"'Portfolio Analytics'!AD850","v":0},{"$f":"'Portfolio Analytics'!AE850","v":0},{"$f":"'Portfolio Analytics'!AF850","v":0},{"$f":"'Portfolio Analytics'!AG850","v":0},{"$f":"'Portfolio Analytics'!AH850","v":0},{"$f":"'Portfolio Analytics'!AI850","v":0},{"$f":"'Portfolio Analytics'!AJ850","v":0},{"$f":"'Portfolio Analytics'!AK850","v":0},{"$f":"'Portfolio Analytics'!AL850","v":0},{"$f":"'Portfolio Analytics'!AM850","v":0},{"$f":"'Portfolio Analytics'!AN850","v":0}]
[null,null,null,null,null,null,"Nonmodeled RPS Renewables","GWh",null,{"$f":"'Portfolio Analytics'!E851","v":0},{"$f":"'Portfolio Analytics'!F851","v":0},{"$f":"'Portfolio Analytics'!G851","v":0},{"$f":"'Portfolio Analytics'!H851","v":0},{"$f":"'Portfolio Analytics'!I851","v":0},{"$f":"'Portfolio Analytics'!J851","v":2847.6088199999999},{"$f":"'Portfolio Analytics'!K851","v":2847.6088199999999},{"$f":"'Portfolio Analytics'!L851","v":2847.6088199999999},{"$f":"'Portfolio Analytics'!M851","v":2847.6088199999999},{"$f":"'Portfolio Analytics'!N851","v":2847.6088199999999},{"$f":"'Portfolio Analytics'!O851","v":0},{"$f":"'Portfolio Analytics'!P851","v":2847.6088199999999},{"$f":"'Portfolio Analytics'!Q851","v":0},{"$f":"'Portfolio Analytics'!R851","v":0},{"$f":"'Portfolio Analytics'!S851","v":0},{"$f":"'Portfolio Analytics'!T851","v":2847.6088199999999},{"$f":"'Portfolio Analytics'!U851","v":0},{"$f":"'Portfolio Analytics'!V851","v":0},{"$f":"'Portfolio Analytics'!W851","v":0},{"$f":"'Portfolio Analytics'!X851","v":0},{"$f":"'Portfolio Analytics'!Y851","v":0},{"$f":"'Portfolio Analytics'!Z851","v":0},{"$f":"'Portfolio Analytics'!AA851","v":0},{"$f":"'Portfolio Analytics'!AB851","v":0},{"$f":"'Portfolio Analytics'!AC851","v":0},{"$f":"'Portfolio Analytics'!AD851","v":0},{"$f":"'Portfolio Analytics'!AE851","v":0},{"$f":"'Portfolio Analytics'!AF851","v":0},{"$f":"'Portfolio Analytics'!AG851","v":0},{"$f":"'Portfolio Analytics'!AH851","v":0},{"$f":"'Portfolio Analytics'!AI851","v":1307.9556},{"$f":"'Portfolio Analytics'!AJ851","v":0},{"$f":"'Portfolio Analytics'!AK851","v":0},{"$f":"'Portfolio Analytics'!AL851","v":0},{"$f":"'Portfolio Analytics'!AM851","v":0},{"$f":"'Portfolio Analytics'!AN851","v":0}]
[null,null,null,null,null,null,"SB100%","% of Retail Sales",null,{"$f":"'Portfolio Analytics'!E864","v":0},{"$f":"'Portfolio Analytics'!F864","v":0},{"$f":"'Portfolio Analytics'!G864","v":0},{"$f":"'Portfolio Analytics'!H864","v":0},{"$f":"'Portfolio Analytics'!I864","v":0},{"$f":"'Portfolio Analytics'!J864","v":0.6569220114848473},{"$f":"'Portfolio Analytics'!K864","v":0.67348205127490313},{"$f":"'Portfolio Analytics'!L864","v":0.71720345470958591},{"$f":"'Portfolio Analytics'!M864","v":0.7281303026999727},{"$f":"'Portfolio Analytics'!N864","v":0.71204681888152799},{"$f":"'Portfolio Analytics'!O864","v":0},{"$f":"'Portfolio Analytics'!P864","v":0.71020179053449128},{"$f":"'Portfolio Analytics'!Q864","v":0},{"$f":"'Portfolio Analytics'!R864","v":0},{"$f":"'Portfolio Analytics'!S864","v":0},{"$f":"'Portfolio Analytics'!T864","v":0.79764827797941884},{"$f":"'Portfolio Analytics'!U864","v":0},{"$f":"'Portfolio Analytics'!V864","v":0},{"$f":"'Portfolio Analytics'!W864","v":0},{"$f":"'Portfolio Analytics'!X864","v":0},{"$f":"'Portfolio Analytics'!Y864","v":0},{"$f":"'Portfolio Analytics'!Z864","v":0},{"$f":"'Portfolio Analytics'!AA864","v":0},{"$f":"'Portfolio Analytics'!AB864","v":0},{"$f":"'Portfolio Analytics'!AC864","v":0},{"$f":"'Portfolio Analytics'!AD864","v":0},{"$f":"'Portfolio Analytics'!AE864","v":0},{"$f":"'Portfolio Analytics'!AF864","v":0},{"$f":"'Portfolio Analytics'!AG864","v":0},{"$f":"'Portfolio Analytics'!AH864","v":0},{"$f":"'Portfolio Analytics'!AI864","v":1.0695288765138493},{"$f":"'Portfolio Analytics'!AJ864","v":0},{"$f":"'Portfolio Analytics'!AK864","v":0},{"$f":"'Portfolio Analytics'!AL864","v":0},{"$f":"'Portfolio Analytics'!AM864","v":0},{"$f":"'Portfolio Analytics'!AN864","v":0}]
[]
[]
[]
[null,null,null,null,null,null,"Greenhouse Gas Summary"]
[]
[null,null,null,null,null,null,null,"Unit",null,2015,{"$f":"J143+1","v":2016},2017,2018,2019,2020,2021,2022,2023,2024,2025,2026,2027,2028,2029,2030,2031,{"$f":"Z143+1","v":2032},2033,2034,2035,2036,2037,2038,2039,2040,2041,2042,2043,2044,2045,2046,2047,2048,2049,2050]
[null,null,null,null,null,null,"GHG Emissions Target","MMtCO2/Yr",null,{"$f":"'Portfolio Analytics'!E1075","v":0},{"$f":"'Portfolio Analytics'!F1075","v":0},{"$f":"'Portfolio Analytics'!G1075","v":0},{"$f":"'Portfolio Analytics'!H1075","v":0},{"$f":"'Portfolio Analytics'!I1075","v":0},{"$f":"'Portfolio Analytics'!J1075","v":52.512420249999998},{"$f":"'Portfolio Analytics'!K1075","v":51.051178219999997},{"$f":"'Portfolio Analytics'!L1075","v":49.589936200000004},{"$f":"'Portfolio Analytics'!M1075","v":48.128694170000003},{"$f":"'Portfolio Analytics'!N1075","v":46.667452149999995},{"$f":"'Portfolio Analytics'!O1075","v":0},{"$f":"'Portfolio Analytics'!P1075","v":43.744968100000001},{"$f":"'Portfolio Analytics'!Q1075","v":0},{"$f":"'Portfolio Analytics'!R1075","v":0},{"$f":"'Portfolio Analytics'!S1075","v":0},{"$f":"'Portfolio Analytics'!T1075","v":37.9},{"$f":"'Portfolio Analytics'!U1075","v":0},{"$f":"'Portfolio Analytics'!V1075","v":0},{"$f":"'Portfolio Analytics'!W1075","v":0},{"$f":"'Portfolio Analytics'!X1075","v":0},{"$f":"'Portfolio Analytics'!Y1075","v":0},{"$f":"'Portfolio Analytics'!Z1075","v":0},{"$f":"'Portfolio Analytics'!AA1075","v":0},{"$f":"'Portfolio Analytics'!AB1075","v":0},{"$f":"'Portfolio Analytics'!AC1075","v":0},{"$f":"'Portfolio Analytics'!AD1075","v":0},{"$f":"'Portfolio Analytics'!AE1075","v":0},{"$f":"'Portfolio Analytics'!AF1075","v":0},{"$f":"'Portfolio Analytics'!AG1075","v":0},{"$f":"'Portfolio Analytics'!AH1075","v":0},{"$f":"'Portfolio Analytics'!AI1075","v":12.25146299},{"$f":"'Portfolio Analytics'!AJ1075","v":0},{"$f":"'Portfolio Analytics'!AK1075","v":0},{"$f":"'Portfolio Analytics'!AL1075","v":0},{"$f":"'Portfolio Analytics'!AM1075","v":0},{"$f":"'Portfolio Analytics'!AN1075","v":0}]
[null,null,null,null,null,null,"CAISO BTM CHP Emissions","MMtCO2/Yr",null,{"$f":"'Portfolio Analytics'!E1076","v":0},{"$f":"'Portfolio Analytics'!F1076","v":0},{"$f":"'Portfolio Analytics'!G1076","v":0},{"$f":"'Portfolio Analytics'!H1076","v":0},{"$f":"'Portfolio Analytics'!I1076","v":0},{"$f":"'Portfolio Analytics'!J1076","v":5.4801563199999999},{"$f":"'Portfolio Analytics'!K1076","v":5.4801563199999999},{"$f":"'Portfolio Analytics'!L1076","v":5.4801563199999999},{"$f":"'Portfolio Analytics'!M1076","v":5.4801563199999999},{"$f":"'Portfolio Analytics'!N1076","v":5.4801563199999999},{"$f":"'Portfolio Analytics'!O1076","v":0},{"$f":"'Portfolio Analytics'!P1076","v":5.4801563199999999},{"$f":"'Portfolio Analytics'!Q1076","v":0},{"$f":"'Portfolio Analytics'!R1076","v":0},{"$f":"'Portfolio Analytics'!S1076","v":0},{"$f":"'Portfolio Analytics'!T1076","v":5.4801563199999999},{"$f":"'Portfolio Analytics'!U1076","v":0},{"$f":"'Portfolio Analytics'!V1076","v":0},{"$f":"'Portfolio Analytics'!W1076","v":0},{"$f":"'Portfolio Analytics'!X1076","v":0},{"$f":"'Portfolio Analytics'!Y1076","v":0},{"$f":"'Portfolio Analytics'!Z1076","v":0},{"$f":"'Portfolio Analytics'!AA1076","v":0},{"$f":"'Portfolio Analytics'!AB1076","v":0},{"$f":"'Portfolio Analytics'!AC1076","v":0},{"$f":"'Portfolio Analytics'!AD1076","v":0},{"$f":"'Portfolio Analytics'!AE1076","v":0},{"$f":"'Portfolio Analytics'!AF1076","v":0},{"$f":"'Portfolio Analytics'!AG1076","v":0},{"$f":"'Portfolio Analytics'!AH1076","v":0},{"$f":"'Portfolio Analytics'!AI1076","v":0},{"$f":"'Portfolio Analytics'!AJ1076","v":0},{"$f":"'Portfolio Analytics'!AK1076","v":0},{"$f":"'Portfolio Analytics'!AL1076","v":0},{"$f":"'Portfolio Analytics'!AM1076","v":0},{"$f":"'Portfolio Analytics'!AN1076","v":0}]
[null,null,null,null,null,null,"GHG Emissions Target, net of BTM CHP","MMtCO2/Yr",null,{"$f":"J144-J145","v":0},{"$f":"K144-K145","v":0},0,0,0,47.032263929999999,45.571021899999998,44.109779880000005,42.648537850000004,41.187295829999996,0,38.264811780000002,0,0,0,32.41984368,0,0,0,0,0,0,0,0,0,0,0,0,0,0,12.25146299,0,0,0,0,0]
[null,null,null,null,null,null,"CAISO Generator Emissions","MMtCO2/Yr",null,{"$f":"'Portfolio Analytics'!E1078","v":0},{"$f":"'Portfolio Analytics'!F1078","v":0},{"$f":"'Portfolio Analytics'!G1078","v":0},{"$f":"'Portfolio Analytics'!H1078","v":0},{"$f":"'Portfolio Analytics'!I1078","v":0},{"$f":"'Portfolio Analytics'!J1078","v":28.83142924319338},{"$f":"'Portfolio Analytics'!K1078","v":28.142495092711016},{"$f":"'Portfolio Analytics'!L1078","v":25.920319339363814},{"$f":"'Portfolio Analytics'!M1078","v":25.322093912680739},{"$f":"'Portfolio Analytics'!N1078","v":26.154525440500091},{"$f":"'Portfolio Analytics'!O1078","v":0},{"$f":"'Portfolio Analytics'!P1078","v":28.311584559287425},{"$f":"'Portfolio Analytics'!Q1078","v":0},{"$f":"'Portfolio Analytics'!R1078","v":0},{"$f":"'Portfolio Analytics'!S1078","v":0},{"$f":"'Portfolio Analytics'!T1078","v":23.116798661959571},{"$f":"'Portfolio Analytics'!U1078","v":0},{"$f":"'Portfolio Analytics'!V1078","v":0},{"$f":"'Portfolio Analytics'!W1078","v":0},{"$f":"'Portfolio Analytics'!X1078","v":0},{"$f":"'Portfolio Analytics'!Y1078","v":0},{"$f":"'Portfolio Analytics'!Z1078","v":0},{"$f":"'Portfolio Analytics'!AA1078","v":0},{"$f":"'Portfolio Analytics'!AB1078","v":0},{"$f":"'Portfolio Analytics'!AC1078","v":0},{"$f":"'Portfolio Analytics'!AD1078","v":0},{"$f":"'Portfolio Analytics'!AE1078","v":0},{"$f":"'Portfolio Analytics'!AF1078","v":0},{"$f":"'Portfolio Analytics'!AG1078","v":0},{"$f":"'Portfolio Analytics'!AH1078","v":0},{"$f":"'Portfolio Analytics'!AI1078","v":11.403936602214705},{"$f":"'Portfolio Analytics'!AJ1078","v":0},{"$f":"'Portfolio Analytics'!AK1078","v":0},{"$f":"'Portfolio Analytics'!AL1078","v":0},{"$f":"'Portfolio Analytics'!AM1078","v":0},{"$f":"'Portfolio Analytics'!AN1078","v":0}]
[null,null,null,null,null,null,"Import Emissions","MMtCO2/Yr",null,{"$f":"'Portfolio Analytics'!E1079","v":0},{"$f":"'Portfolio Analytics'!F1079","v":0},{"$f":"'Portfolio Analytics'!G1079","v":0},{"$f":"'Portfolio Analytics'!H1079","v":0},{"$f":"'Portfolio Analytics'!I1079","v":0},{"$f":"'Portfolio Analytics'!J1079","v":11.637623683844131},{"$f":"'Portfolio Analytics'!K1079","v":10.761081290174019},{"$f":"'Portfolio Analytics'!L1079","v":10.06934895913839},{"$f":"'Portfolio Analytics'!M1079","v":10.618229823942896},{"$f":"'Portfolio Analytics'!N1079","v":11.807479252179879},{"$f":"'Portfolio Analytics'!O1079","v":0},{"$f":"'Portfolio Analytics'!P1079","v":9.953237238788553},{"$f":"'Portfolio Analytics'!Q1079","v":0},{"$f":"'Portfolio Analytics'!R1079","v":0},{"$f":"'Portfolio Analytics'!S1079","v":0},{"$f":"'Portfolio Analytics'!T1079","v":9.3030485456123504},{"$f":"'Portfolio Analytics'!U1079","v":0},{"$f":"'Portfolio Analytics'!V1079","v":0},{"$f":"'Portfolio Analytics'!W1079","v":0},{"$f":"'Portfolio Analytics'!X1079","v":0},{"$f":"'Portfolio Analytics'!Y1079","v":0},{"$f":"'Portfolio Analytics'!Z1079","v":0},{"$f":"'Portfolio Analytics'!AA1079","v":0},{"$f":"'Portfolio Analytics'!AB1079","v":0},{"$f":"'Portfolio Analytics'!AC1079","v":0},{"$f":"'Portfolio Analytics'!AD1079","v":0},{"$f":"'Portfolio Analytics'!AE1079","v":0},{"$f":"'Portfolio Analytics'!AF1079","v":0},{"$f":"'Portfolio Analytics'!AG1079","v":0},{"$f":"'Portfolio Analytics'!AH1079","v":0},{"$f":"'Portfolio Analytics'!AI1079","v":0.84752783746508109},{"$f":"'Portfolio Analytics'!AJ1079","v":0},{"$f":"'Portfolio Analytics'!AK1079","v":0},{"$f":"'Portfolio Analytics'!AL1079","v":0},{"$f":"'Portfolio Analytics'!AM1079","v":0},{"$f":"'Portfolio Analytics'!AN1079","v":0}]
[null,null,null,null,null,null,"Total CAISO Emissions","MMtCO2/Yr",null,{"$f":"'Portfolio Analytics'!E1080","v":0},{"$f":"'Portfolio Analytics'!F1080","v":0},{"$f":"'Portfolio Analytics'!G1080","v":0},{"$f":"'Portfolio Analytics'!H1080","v":0},{"$f":"'Portfolio Analytics'!I1080","v":0},{"$f":"'Portfolio Analytics'!J1080","v":45.949209247037508},{"$f":"'Portfolio Analytics'!K1080","v":44.383732702885034},{"$f":"'Portfolio Analytics'!L1080","v":41.469824618502201},{"$f":"'Portfolio Analytics'!M1080","v":41.420480056623632},{"$f":"'Portfolio Analytics'!N1080","v":43.442161012679968},{"$f":"'Portfolio Analytics'!O1080","v":0},{"$f":"'Portfolio Analytics'!P1080","v":43.744978118075977},{"$f":"'Portfolio Analytics'!Q1080","v":0},{"$f":"'Portfolio Analytics'!R1080","v":0},{"$f":"'Portfolio Analytics'!S1080","v":0},{"$f":"'Portfolio Analytics'!T1080","v":37.900003527571918},{"$f":"'Portfolio Analytics'!U1080","v":0},{"$f":"'Portfolio Analytics'!V1080","v":0},{"$f":"'Portfolio Analytics'!W1080","v":0},{"$f":"'Portfolio Analytics'!X1080","v":0},{"$f":"'Portfolio Analytics'!Y1080","v":0},{"$f":"'Portfolio Analytics'!Z1080","v":0},{"$f":"'Portfolio Analytics'!AA1080","v":0},{"$f":"'Portfolio Analytics'!AB1080","v":0},{"$f":"'Portfolio Analytics'!AC1080","v":0},{"$f":"'Portfolio Analytics'!AD1080","v":0},{"$f":"'Portfolio Analytics'!AE1080","v":0},{"$f":"'Portfolio Analytics'!AF1080","v":0},{"$f":"'Portfolio Analytics'!AG1080","v":0},{"$f":"'Portfolio Analytics'!AH1080","v":0},{"$f":"'Portfolio Analytics'!AI1080","v":12.251464439679786},{"$f":"'Portfolio Analytics'!AJ1080","v":0},{"$f":"'Portfolio Analytics'!AK1080","v":0},{"$f":"'Portfolio Analytics'!AL1080","v":0},{"$f":"'Portfolio Analytics'!AM1080","v":0},{"$f":"'Portfolio Analytics'!AN1080","v":0}]
[null,null,null,null,null,null,"Marginal GHG Cost","$/tCO2",null,{"$f":"'Portfolio Analytics'!E1081","v":0},{"$f":"'Portfolio Analytics'!F1081","v":0},{"$f":"'Portfolio Analytics'!G1081","v":0},{"$f":"'Portfolio Analytics'!H1081","v":0},{"$f":"'Portfolio Analytics'!I1081","v":0},{"$f":"'Portfolio Analytics'!J1081","v":0},{"$f":"'Portfolio Analytics'!K1081","v":0},{"$f":"'Portfolio Analytics'!L1081","v":0},{"$f":"'Portfolio Analytics'!M1081","v":0},{"$f":"'Portfolio Analytics'!N1081","v":0},{"$f":"'Portfolio Analytics'!O1081","v":0},{"$f":"'Portfolio Analytics'!P1081","v":27.76},{"$f":"'Portfolio Analytics'!Q1081","v":0},{"$f":"'Portfolio Analytics'!R1081","v":0},{"$f":"'Portfolio Analytics'!S1081","v":0},{"$f":"'Portfolio Analytics'!T1081","v":124.12},{"$f":"'Portfolio Analytics'!U1081","v":0},{"$f":"'Portfolio Analytics'!V1081","v":0},{"$f":"'Portfolio Analytics'!W1081","v":0},{"$f":"'Portfolio Analytics'!X1081","v":0},{"$f":"'Portfolio Analytics'!Y1081","v":0},{"$f":"'Portfolio Analytics'!Z1081","v":0},{"$f":"'Portfolio Analytics'!AA1081","v":0},{"$f":"'Portfolio Analytics'!AB1081","v":0},{"$f":"'Portfolio Analytics'!AC1081","v":0},{"$f":"'Portfolio Analytics'!AD1081","v":0},{"$f":"'Portfolio Analytics'!AE1081","v":0},{"$f":"'Portfolio Analytics'!AF1081","v":0},{"$f":"'Portfolio Analytics'!AG1081","v":0},{"$f":"'Portfolio Analytics'!AH1081","v":0},{"$f":"'Portfolio Analytics'!AI1081","v":554.30999999999995},{"$f":"'Portfolio Analytics'!AJ1081","v":0},{"$f":"'Portfolio Analytics'!AK1081","v":0},{"$f":"'Portfolio Analytics'!AL1081","v":0},{"$f":"'Portfolio Analytics'!AM1081","v":0},{"$f":"'Portfolio Analytics'!AN1081","v":0}]
[null,null,null,null,null,null,"CARB Floor Carbon Price","$/tCO2",null,{"$f":"'Portfolio Analytics'!E1082","v":0},{"$f":"'Portfolio Analytics'!F1082","v":0},{"$f":"'Portfolio Analytics'!G1082","v":0},{"$f":"'Portfolio Analytics'!H1082","v":0},{"$f":"'Portfolio Analytics'!I1082","v":0},{"$f":"'Portfolio Analytics'!J1082","v":15.2487795643905},{"$f":"'Portfolio Analytics'!K1082","v":16.000526928051102},{"$f":"'Portfolio Analytics'!L1082","v":16.836956170722701},{"$f":"'Portfolio Analytics'!M1082","v":17.7060323640824},{"$f":"'Portfolio Analytics'!N1082","v":18.624442955812},{"$f":"'Portfolio Analytics'!O1082","v":0},{"$f":"'Portfolio Analytics'!P1082","v":20.592421016414601},{"$f":"'Portfolio Analytics'!Q1082","v":0},{"$f":"'Portfolio Analytics'!R1082","v":0},{"$f":"'Portfolio Analytics'!S1082","v":0},{"$f":"'Portfolio Analytics'!T1082","v":25.247597883069201},{"$f":"'Portfolio Analytics'!U1082","v":0},{"$f":"'Portfolio Analytics'!V1082","v":0},{"$f":"'Portfolio Analytics'!W1082","v":0},{"$f":"'Portfolio Analytics'!X1082","v":0},{"$f":"'Portfolio Analytics'!Y1082","v":0},{"$f":"'Portfolio Analytics'!Z1082","v":0},{"$f":"'Portfolio Analytics'!AA1082","v":0},{"$f":"'Portfolio Analytics'!AB1082","v":0},{"$f":"'Portfolio Analytics'!AC1082","v":0},{"$f":"'Portfolio Analytics'!AD1082","v":0},{"$f":"'Portfolio Analytics'!AE1082","v":0},{"$f":"'Portfolio Analytics'!AF1082","v":0},{"$f":"'Portfolio Analytics'!AG1082","v":0},{"$f":"'Portfolio Analytics'!AH1082","v":0},{"$f":"'Portfolio Analytics'!AI1082","v":54.088573436812702},{"$f":"'Portfolio Analytics'!AJ1082","v":0},{"$f":"'Portfolio Analytics'!AK1082","v":0},{"$f":"'Portfolio Analytics'!AL1082","v":0},{"$f":"'Portfolio Analytics'!AM1082","v":0},{"$f":"'Portfolio Analytics'!AN1082","v":0}]
[null,null,null,null,null,null,"Total GHG Abatement Cost","$/tCO2",null,{"$f":"'Portfolio Analytics'!E1083","v":0},{"$f":"'Portfolio Analytics'!F1083","v":0},{"$f":"'Portfolio Analytics'!G1083","v":0},{"$f":"'Portfolio Analytics'!H1083","v":0},{"$f":"'Portfolio Analytics'!I1083","v":0},{"$f":"'Portfolio Analytics'!J1083","v":15.2487795643905},{"$f":"'Portfolio Analytics'!K1083","v":16.000526928051102},{"$f":"'Portfolio Analytics'!L1083","v":16.836956170722701},{"$f":"'Portfolio Analytics'!M1083","v":17.7060323640824},{"$f":"'Portfolio Analytics'!N1083","v":18.624442955812},{"$f":"'Portfolio Analytics'!O1083","v":0},{"$f":"'Portfolio Analytics'!P1083","v":48.352421016414603},{"$f":"'Portfolio Analytics'!Q1083","v":0},{"$f":"'Portfolio Analytics'!R1083","v":0},{"$f":"'Portfolio Analytics'!S1083","v":0},{"$f":"'Portfolio Analytics'!T1083","v":149.36759788306921},{"$f":"'Portfolio Analytics'!U1083","v":0},{"$f":"'Portfolio Analytics'!V1083","v":0},{"$f":"'Portfolio Analytics'!W1083","v":0},{"$f":"'Portfolio Analytics'!X1083","v":0},{"$f":"'Portfolio Analytics'!Y1083","v":0},{"$f":"'Portfolio Analytics'!Z1083","v":0},{"$f":"'Portfolio Analytics'!AA1083","v":0},{"$f":"'Portfolio Analytics'!AB1083","v":0},{"$f":"'Portfolio Analytics'!AC1083","v":0},{"$f":"'Portfolio Analytics'!AD1083","v":0},{"$f":"'Portfolio Analytics'!AE1083","v":0},{"$f":"'Portfolio Analytics'!AF1083","v":0},{"$f":"'Portfolio Analytics'!AG1083","v":0},{"$f":"'Portfolio Analytics'!AH1083","v":0},{"$f":"'Portfolio Analytics'!AI1083","v":608.39857343681263},{"$f":"'Portfolio Analytics'!AJ1083","v":0},{"$f":"'Portfolio Analytics'!AK1083","v":0},{"$f":"'Portfolio Analytics'!AL1083","v":0},{"$f":"'Portfolio Analytics'!AM1083","v":0},{"$f":"'Portfolio Analytics'!AN1083","v":0}]
[]
[null,null,null,null,null,null,"Total RESOLVE Footprint Emissions (most of WECC)","MMtCO2/Yr",null,{"$f":"'Portfolio Analytics'!E1071","v":0},{"$f":"'Portfolio Analytics'!F1071","v":0},{"$f":"'Portfolio Analytics'!G1071","v":0},{"$f":"'Portfolio Analytics'!H1071","v":0},{"$f":"'Portfolio Analytics'!I1071","v":0},{"$f":"'Portfolio Analytics'!J1071","v":170.44237827753361},{"$f":"'Portfolio Analytics'!K1071","v":167.44771529509819},{"$f":"'Portfolio Analytics'!L1071","v":163.32568899338969},{"$f":"'Portfolio Analytics'!M1071","v":164.61745552821642},{"$f":"'Portfolio Analytics'!N1071","v":168.00062136807441},{"$f":"'Portfolio Analytics'!O1071","v":0},{"$f":"'Portfolio Analytics'!P1071","v":162.56352627399184},{"$f":"'Portfolio Analytics'!Q1071","v":0},{"$f":"'Portfolio Analytics'!R1071","v":0},{"$f":"'Portfolio Analytics'!S1071","v":0},{"$f":"'Portfolio Analytics'!T1071","v":158.76199051173975},{"$f":"'Portfolio Analytics'!U1071","v":0},{"$f":"'Portfolio Analytics'!V1071","v":0},{"$f":"'Portfolio Analytics'!W1071","v":0},{"$f":"'Portfolio Analytics'!X1071","v":0},{"$f":"'Portfolio Analytics'!Y1071","v":0},{"$f":"'Portfolio Analytics'!Z1071","v":0},{"$f":"'Portfolio Analytics'!AA1071","v":0},{"$f":"'Portfolio Analytics'!AB1071","v":0},{"$f":"'Portfolio Analytics'!AC1071","v":0},{"$f":"'Portfolio Analytics'!AD1071","v":0},{"$f":"'Portfolio Analytics'!AE1071","v":0},{"$f":"'Portfolio Analytics'!AF1071","v":0},{"$f":"'Portfolio Analytics'!AG1071","v":0},{"$f":"'Portfolio Analytics'!AH1071","v":0},{"$f":"'Portfolio Analytics'!AI1071","v":148.31709295941312},{"$f":"'Portfolio Analytics'!AJ1071","v":0},{"$f":"'Portfolio Analytics'!AK1071","v":0},{"$f":"'Portfolio Analytics'!AL1071","v":0},{"$f":"'Portfolio Analytics'!AM1071","v":0},{"$f":"'Portfolio Analytics'!AN1071","v":0}]
[]
[]
[]
[]
[]
[null,null,null,null,null,null,"Planning Reserve Margin Summary"]
[]
[null,null,null,null,null,null,null,"Unit",null,2015,{"$f":"J162+1","v":2016},2017,2018,2019,2020,2021,2022,2023,2024,2025,2026,2027,2028,2029,2030,{"$f":"Y192+1","v":2031},{"$f":"Z162+1","v":2032},2033,2034,2035,2036,2037,2038,2039,2040,2041,2042,2043,2044,2045,2046,2047,2048,2049,2050]
[null,null,null,null,null,null,"Peak Load","MW",null,{"$f":"'Portfolio Analytics'!E887","v":0},{"$f":"'Portfolio Analytics'!F887","v":0},{"$f":"'Portfolio Analytics'!G887","v":0},{"$f":"'Portfolio Analytics'!H887","v":0},{"$f":"'Portfolio Analytics'!I887","v":0},{"$f":"'Portfolio Analytics'!J887","v":49016.35},{"$f":"'Portfolio Analytics'!K887","v":49168.4},{"$f":"'Portfolio Analytics'!L887","v":49716.65},{"$f":"'Portfolio Analytics'!M887","v":50370.080000000002},{"$f":"'Portfolio Analytics'!N887","v":50927.23},{"$f":"'Portfolio Analytics'!O887","v":0},{"$f":"'Portfolio Analytics'!P887","v":53864.49},{"$f":"'Portfolio Analytics'!Q887","v":0},{"$f":"'Portfolio Analytics'!R887","v":0},{"$f":"'Portfolio Analytics'!S887","v":0},{"$f":"'Portfolio Analytics'!T887","v":55945.08},{"$f":"'Portfolio Analytics'!U887","v":0},{"$f":"'Portfolio Analytics'!V887","v":0},{"$f":"'Portfolio Analytics'!W887","v":0},{"$f":"'Portfolio Analytics'!X887","v":0},{"$f":"'Portfolio Analytics'!Y887","v":0},{"$f":"'Portfolio Analytics'!Z887","v":0},{"$f":"'Portfolio Analytics'!AA887","v":0},{"$f":"'Portfolio Analytics'!AB887","v":0},{"$f":"'Portfolio Analytics'!AC887","v":0},{"$f":"'Portfolio Analytics'!AD887","v":0},{"$f":"'Portfolio Analytics'!AE887","v":0},{"$f":"'Portfolio Analytics'!AF887","v":0},{"$f":"'Portfolio Analytics'!AG887","v":0},{"$f":"'Portfolio Analytics'!AH887","v":0},{"$f":"'Portfolio Analytics'!AI887","v":64499.27},{"$f":"'Portfolio Analytics'!AJ887","v":0},{"$f":"'Portfolio Analytics'!AK887","v":0},{"$f":"'Portfolio Analytics'!AL887","v":0},{"$f":"'Portfolio Analytics'!AM887","v":0},{"$f":"'Portfolio Analytics'!AN887","v":0}]
[null,null,null,null,null,null,"Reserve Margin Requirement","%",null,{"$f":"'Portfolio Analytics'!E888","v":0},{"$f":"'Portfolio Analytics'!F888","v":0},{"$f":"'Portfolio Analytics'!G888","v":0},{"$f":"'Portfolio Analytics'!H888","v":0},{"$f":"'Portfolio Analytics'!I888","v":0},{"$f":"'Portfolio Analytics'!J888","v":0.15},{"$f":"'Portfolio Analytics'!K888","v":0.15},{"$f":"'Portfolio Analytics'!L888","v":0.15},{"$f":"'Portfolio Analytics'!M888","v":0.15},{"$f":"'Portfolio Analytics'!N888","v":0.15},{"$f":"'Portfolio Analytics'!O888","v":0},{"$f":"'Portfolio Analytics'!P888","v":0.15},{"$f":"'Portfolio Analytics'!Q888","v":0},{"$f":"'Portfolio Analytics'!R888","v":0},{"$f":"'Portfolio Analytics'!S888","v":0},{"$f":"'Portfolio Analytics'!T888","v":0.15},{"$f":"'Portfolio Analytics'!U888","v":0},{"$f":"'Portfolio Analytics'!V888","v":0},{"$f":"'Portfolio Analytics'!W888","v":0},{"$f":"'Portfolio Analytics'!X888","v":0},{"$f":"'Portfolio Analytics'!Y888","v":0},{"$f":"'Portfolio Analytics'!Z888","v":0},{"$f":"'Portfolio Analytics'!AA888","v":0},{"$f":"'Portfolio Analytics'!AB888","v":0},{"$f":"'Portfolio Analytics'!AC888","v":0},{"$f":"'Portfolio Analytics'!AD888","v":0},{"$f":"'Portfolio Analytics'!AE888","v":0},{"$f":"'Portfolio Analytics'!AF888","v":0},{"$f":"'Portfolio Analytics'!AG888","v":0},{"$f":"'Portfolio Analytics'!AH888","v":0},{"$f":"'Portfolio Analytics'!AI888","v":0.15},{"$f":"'Portfolio Analytics'!AJ888","v":0},{"$f":"'Portfolio Analytics'!AK888","v":0},{"$f":"'Portfolio Analytics'!AL888","v":0},{"$f":"'Portfolio Analytics'!AM888","v":0},{"$f":"'Portfolio Analytics'!AN888","v":0}]
[null,null,null,null,null,null,"Total Reserve Margin Requirement","MW",null,{"$f":"'Portfolio Analytics'!E889","v":0},{"$f":"'Portfolio Analytics'!F889","v":0},{"$f":"'Portfolio Analytics'!G889","v":0},{"$f":"'Portfolio Analytics'!H889","v":0},{"$f":"'Portfolio Analytics'!I889","v":0},{"$f":"'Portfolio Analytics'!J889","v":56368.802499999991},{"$f":"'Portfolio Analytics'!K889","v":56543.659999999996},{"$f":"'Portfolio Analytics'!L889","v":57174.147499999999},{"$f":"'Portfolio Analytics'!M889","v":57925.591999999997},{"$f":"'Portfolio Analytics'!N889","v":58566.3145},{"$f":"'Portfolio Analytics'!O889","v":0},{"$f":"'Portfolio Analytics'!P889","v":61944.163499999995},{"$f":"'Portfolio Analytics'!Q889","v":0},{"$f":"'Portfolio Analytics'!R889","v":0},{"$f":"'Portfolio Analytics'!S889","v":0},{"$f":"'Portfolio Analytics'!T889","v":64336.841999999997},{"$f":"'Portfolio Analytics'!U889","v":0},{"$f":"'Portfolio Analytics'!V889","v":0},{"$f":"'Portfolio Analytics'!W889","v":0},{"$f":"'Portfolio Analytics'!X889","v":0},{"$f":"'Portfolio Analytics'!Y889","v":0},{"$f":"'Portfolio Analytics'!Z889","v":0},{"$f":"'Portfolio Analytics'!AA889","v":0},{"$f":"'Portfolio Analytics'!AB889","v":0},{"$f":"'Portfolio Analytics'!AC889","v":0},{"$f":"'Portfolio Analytics'!AD889","v":0},{"$f":"'Portfolio Analytics'!AE889","v":0},{"$f":"'Portfolio Analytics'!AF889","v":0},{"$f":"'Portfolio Analytics'!AG889","v":0},{"$f":"'Portfolio Analytics'!AH889","v":0},{"$f":"'Portfolio Analytics'!AI889","v":74174.160499999984},{"$f":"'Portfolio Analytics'!AJ889","v":0},{"$f":"'Portfolio Analytics'!AK889","v":0},{"$f":"'Portfolio Analytics'!AL889","v":0},{"$f":"'Portfolio Analytics'!AM889","v":0},{"$f":"'Portfolio Analytics'!AN889","v":0}]
[null,null,null,null,null,null,"Firm Capacity","MW",null,{"$f":"'Portfolio Analytics'!E890","v":0},{"$f":"'Portfolio Analytics'!F890","v":0},{"$f":"'Portfolio Analytics'!G890","v":0},{"$f":"'Portfolio Analytics'!H890","v":0},{"$f":"'Portfolio Analytics'!I890","v":0},{"$f":"'Portfolio Analytics'!J890","v":37934.22},{"$f":"'Portfolio Analytics'!K890","v":35409.129999999997},{"$f":"'Portfolio Analytics'!L890","v":35409.129999999997},{"$f":"'Portfolio Analytics'!M890","v":35409.129999999997},{"$f":"'Portfolio Analytics'!N890","v":34388.5},{"$f":"'Portfolio Analytics'!O890","v":0},{"$f":"'Portfolio Analytics'!P890","v":32775.94},{"$f":"'Portfolio Analytics'!Q890","v":0},{"$f":"'Portfolio Analytics'!R890","v":0},{"$f":"'Portfolio Analytics'!S890","v":0},{"$f":"'Portfolio Analytics'!T890","v":32774.120000000003},{"$f":"'Portfolio Analytics'!U890","v":0},{"$f":"'Portfolio Analytics'!V890","v":0},{"$f":"'Portfolio Analytics'!W890","v":0},{"$f":"'Portfolio Analytics'!X890","v":0},{"$f":"'Portfolio Analytics'!Y890","v":0},{"$f":"'Portfolio Analytics'!Z890","v":0},{"$f":"'Portfolio Analytics'!AA890","v":0},{"$f":"'Portfolio Analytics'!AB890","v":0},{"$f":"'Portfolio Analytics'!AC890","v":0},{"$f":"'Portfolio Analytics'!AD890","v":0},{"$f":"'Portfolio Analytics'!AE890","v":0},{"$f":"'Portfolio Analytics'!AF890","v":0},{"$f":"'Portfolio Analytics'!AG890","v":0},{"$f":"'Portfolio Analytics'!AH890","v":0},{"$f":"'Portfolio Analytics'!AI890","v":30158.16},{"$f":"'Portfolio Analytics'!AJ890","v":0},{"$f":"'Portfolio Analytics'!AK890","v":0},{"$f":"'Portfolio Analytics'!AL890","v":0},{"$f":"'Portfolio Analytics'!AM890","v":0},{"$f":"'Portfolio Analytics'!AN890","v":0}]
[null,null,null,null,null,null,"CCGT","MW",null,{"$f":"'Portfolio Analytics'!E891","v":0},{"$f":"'Portfolio Analytics'!F891","v":0},{"$f":"'Portfolio Analytics'!G891","v":0},{"$f":"'Portfolio Analytics'!H891","v":0},{"$f":"'Portfolio Analytics'!I891","v":0},{"$f":"'Portfolio Analytics'!J891","v":14247.68},{"$f":"'Portfolio Analytics'!K891","v":15453.96},{"$f":"'Portfolio Analytics'!L891","v":15453.96},{"$f":"'Portfolio Analytics'!M891","v":15453.96},{"$f":"'Portfolio Analytics'!N891","v":15453.96},{"$f":"'Portfolio Analytics'!O891","v":0},{"$f":"'Portfolio Analytics'!P891","v":15453.96},{"$f":"'Portfolio Analytics'!Q891","v":0},{"$f":"'Portfolio Analytics'!R891","v":0},{"$f":"'Portfolio Analytics'!S891","v":0},{"$f":"'Portfolio Analytics'!T891","v":15453.96},{"$f":"'Portfolio Analytics'!U891","v":0},{"$f":"'Portfolio Analytics'!V891","v":0},{"$f":"'Portfolio Analytics'!W891","v":0},{"$f":"'Portfolio Analytics'!X891","v":0},{"$f":"'Portfolio Analytics'!Y891","v":0},{"$f":"'Portfolio Analytics'!Z891","v":0},{"$f":"'Portfolio Analytics'!AA891","v":0},{"$f":"'Portfolio Analytics'!AB891","v":0},{"$f":"'Portfolio Analytics'!AC891","v":0},{"$f":"'Portfolio Analytics'!AD891","v":0},{"$f":"'Portfolio Analytics'!AE891","v":0},{"$f":"'Portfolio Analytics'!AF891","v":0},{"$f":"'Portfolio Analytics'!AG891","v":0},{"$f":"'Portfolio Analytics'!AH891","v":0},{"$f":"'Portfolio Analytics'!AI891","v":15453.96},{"$f":"'Portfolio Analytics'!AJ891","v":0},{"$f":"'Portfolio Analytics'!AK891","v":0},{"$f":"'Portfolio Analytics'!AL891","v":0},{"$f":"'Portfolio Analytics'!AM891","v":0},{"$f":"'Portfolio Analytics'!AN891","v":0}]
[null,null,null,null,null,null,"Peaker","MW",null,{"$f":"'Portfolio Analytics'!E892","v":0},{"$f":"'Portfolio Analytics'!F892","v":0},{"$f":"'Portfolio Analytics'!G892","v":0},{"$f":"'Portfolio Analytics'!H892","v":0},{"$f":"'Portfolio Analytics'!I892","v":0},{"$f":"'Portfolio Analytics'!J892","v":8334.0400000000009},{"$f":"'Portfolio Analytics'!K892","v":8334.0400000000009},{"$f":"'Portfolio Analytics'!L892","v":8334.0400000000009},{"$f":"'Portfolio Analytics'!M892","v":8334.0400000000009},{"$f":"'Portfolio Analytics'!N892","v":8334.0400000000009},{"$f":"'Portfolio Analytics'!O892","v":0},{"$f":"'Portfolio Analytics'!P892","v":8334.0400000000009},{"$f":"'Portfolio Analytics'!Q892","v":0},{"$f":"'Portfolio Analytics'!R892","v":0},{"$f":"'Portfolio Analytics'!S892","v":0},{"$f":"'Portfolio Analytics'!T892","v":8334.0400000000009},{"$f":"'Portfolio Analytics'!U892","v":0},{"$f":"'Portfolio Analytics'!V892","v":0},{"$f":"'Portfolio Analytics'!W892","v":0},{"$f":"'Portfolio Analytics'!X892","v":0},{"$f":"'Portfolio Analytics'!Y892","v":0},{"$f":"'Portfolio Analytics'!Z892","v":0},{"$f":"'Portfolio Analytics'!AA892","v":0},{"$f":"'Portfolio Analytics'!AB892","v":0},{"$f":"'Portfolio Analytics'!AC892","v":0},{"$f":"'Portfolio Analytics'!AD892","v":0},{"$f":"'Portfolio Analytics'!AE892","v":0},{"$f":"'Portfolio Analytics'!AF892","v":0},{"$f":"'Portfolio Analytics'!AG892","v":0},{"$f":"'Portfolio Analytics'!AH892","v":0},{"$f":"'Portfolio Analytics'!AI892","v":4775.96},{"$f":"'Portfolio Analytics'!AJ892","v":0},{"$f":"'Portfolio Analytics'!AK892","v":0},{"$f":"'Portfolio Analytics'!AL892","v":0},{"$f":"'Portfolio Analytics'!AM892","v":0},{"$f":"'Portfolio Analytics'!AN892","v":0}]
[null,null,null,null,null,null,"Steam Turbine","MW",null,{"$f":"'Portfolio Analytics'!E893","v":0},{"$f":"'Portfolio Analytics'!F893","v":0},{"$f":"'Portfolio Analytics'!G893","v":0},{"$f":"'Portfolio Analytics'!H893","v":0},{"$f":"'Portfolio Analytics'!I893","v":0},{"$f":"'Portfolio Analytics'!J893","v":3731.37},{"$f":"'Portfolio Analytics'!K893","v":0},{"$f":"'Portfolio Analytics'!L893","v":0},{"$f":"'Portfolio Analytics'!M893","v":0},{"$f":"'Portfolio Analytics'!N893","v":0},{"$f":"'Portfolio Analytics'!O893","v":0},{"$f":"'Portfolio Analytics'!P893","v":0},{"$f":"'Portfolio Analytics'!Q893","v":0},{"$f":"'Portfolio Analytics'!R893","v":0},{"$f":"'Portfolio Analytics'!S893","v":0},{"$f":"'Portfolio Analytics'!T893","v":0},{"$f":"'Portfolio Analytics'!U893","v":0},{"$f":"'Portfolio Analytics'!V893","v":0},{"$f":"'Portfolio Analytics'!W893","v":0},{"$f":"'Portfolio Analytics'!X893","v":0},{"$f":"'Portfolio Analytics'!Y893","v":0},{"$f":"'Portfolio Analytics'!Z893","v":0},{"$f":"'Portfolio Analytics'!AA893","v":0},{"$f":"'Portfolio Analytics'!AB893","v":0},{"$f":"'Portfolio Analytics'!AC893","v":0},{"$f":"'Portfolio Analytics'!AD893","v":0},{"$f":"'Portfolio Analytics'!AE893","v":0},{"$f":"'Portfolio Analytics'!AF893","v":0},{"$f":"'Portfolio Analytics'!AG893","v":0},{"$f":"'Portfolio Analytics'!AH893","v":0},{"$f":"'Portfolio Analytics'!AI893","v":0},{"$f":"'Portfolio Analytics'!AJ893","v":0},{"$f":"'Portfolio Analytics'!AK893","v":0},{"$f":"'Portfolio Analytics'!AL893","v":0},{"$f":"'Portfolio Analytics'!AM893","v":0},{"$f":"'Portfolio Analytics'!AN893","v":0}]
[null,null,null,null,null,null,"CHP","MW",null,{"$f":"'Portfolio Analytics'!E894","v":0},{"$f":"'Portfolio Analytics'!F894","v":0},{"$f":"'Portfolio Analytics'!G894","v":0},{"$f":"'Portfolio Analytics'!H894","v":0},{"$f":"'Portfolio Analytics'!I894","v":0},{"$f":"'Portfolio Analytics'!J894","v":1455.68},{"$f":"'Portfolio Analytics'!K894","v":1455.68},{"$f":"'Portfolio Analytics'!L894","v":1455.68},{"$f":"'Portfolio Analytics'!M894","v":1455.68},{"$f":"'Portfolio Analytics'!N894","v":1455.68},{"$f":"'Portfolio Analytics'!O894","v":0},{"$f":"'Portfolio Analytics'!P894","v":1455.68},{"$f":"'Portfolio Analytics'!Q894","v":0},{"$f":"'Portfolio Analytics'!R894","v":0},{"$f":"'Portfolio Analytics'!S894","v":0},{"$f":"'Portfolio Analytics'!T894","v":1455.68},{"$f":"'Portfolio Analytics'!U894","v":0},{"$f":"'Portfolio Analytics'!V894","v":0},{"$f":"'Portfolio Analytics'!W894","v":0},{"$f":"'Portfolio Analytics'!X894","v":0},{"$f":"'Portfolio Analytics'!Y894","v":0},{"$f":"'Portfolio Analytics'!Z894","v":0},{"$f":"'Portfolio Analytics'!AA894","v":0},{"$f":"'Portfolio Analytics'!AB894","v":0},{"$f":"'Portfolio Analytics'!AC894","v":0},{"$f":"'Portfolio Analytics'!AD894","v":0},{"$f":"'Portfolio Analytics'!AE894","v":0},{"$f":"'Portfolio Analytics'!AF894","v":0},{"$f":"'Portfolio Analytics'!AG894","v":0},{"$f":"'Portfolio Analytics'!AH894","v":0},{"$f":"'Portfolio Analytics'!AI894","v":0},{"$f":"'Portfolio Analytics'!AJ894","v":0},{"$f":"'Portfolio Analytics'!AK894","v":0},{"$f":"'Portfolio Analytics'!AL894","v":0},{"$f":"'Portfolio Analytics'!AM894","v":0},{"$f":"'Portfolio Analytics'!AN894","v":0}]
[null,null,null,null,null,null,"Hydro (small + large)","MW",null,{"$f":"'Portfolio Analytics'!E895","v":0},{"$f":"'Portfolio Analytics'!F895","v":0},{"$f":"'Portfolio Analytics'!G895","v":0},{"$f":"'Portfolio Analytics'!H895","v":0},{"$f":"'Portfolio Analytics'!I895","v":0},{"$f":"'Portfolio Analytics'!J895","v":5644.6500000000005},{"$f":"'Portfolio Analytics'!K895","v":5644.6500000000005},{"$f":"'Portfolio Analytics'!L895","v":5644.6500000000005},{"$f":"'Portfolio Analytics'!M895","v":5644.6500000000005},{"$f":"'Portfolio Analytics'!N895","v":5644.6500000000005},{"$f":"'Portfolio Analytics'!O895","v":0},{"$f":"'Portfolio Analytics'!P895","v":5644.6500000000005},{"$f":"'Portfolio Analytics'!Q895","v":0},{"$f":"'Portfolio Analytics'!R895","v":0},{"$f":"'Portfolio Analytics'!S895","v":0},{"$f":"'Portfolio Analytics'!T895","v":5644.1500000000005},{"$f":"'Portfolio Analytics'!U895","v":0},{"$f":"'Portfolio Analytics'!V895","v":0},{"$f":"'Portfolio Analytics'!W895","v":0},{"$f":"'Portfolio Analytics'!X895","v":0},{"$f":"'Portfolio Analytics'!Y895","v":0},{"$f":"'Portfolio Analytics'!Z895","v":0},{"$f":"'Portfolio Analytics'!AA895","v":0},{"$f":"'Portfolio Analytics'!AB895","v":0},{"$f":"'Portfolio Analytics'!AC895","v":0},{"$f":"'Portfolio Analytics'!AD895","v":0},{"$f":"'Portfolio Analytics'!AE895","v":0},{"$f":"'Portfolio Analytics'!AF895","v":0},{"$f":"'Portfolio Analytics'!AG895","v":0},{"$f":"'Portfolio Analytics'!AH895","v":0},{"$f":"'Portfolio Analytics'!AI895","v":5644.1500000000005},{"$f":"'Portfolio Analytics'!AJ895","v":0},{"$f":"'Portfolio Analytics'!AK895","v":0},{"$f":"'Portfolio Analytics'!AL895","v":0},{"$f":"'Portfolio Analytics'!AM895","v":0},{"$f":"'Portfolio Analytics'!AN895","v":0}]
[null,null,null,null,null,null,"Nuclear","MW",null,{"$f":"'Portfolio Analytics'!E896","v":0},{"$f":"'Portfolio Analytics'!F896","v":0},{"$f":"'Portfolio Analytics'!G896","v":0},{"$f":"'Portfolio Analytics'!H896","v":0},{"$f":"'Portfolio Analytics'!I896","v":0},{"$f":"'Portfolio Analytics'!J896","v":2279.91},{"$f":"'Portfolio Analytics'!K896","v":2279.91},{"$f":"'Portfolio Analytics'!L896","v":2279.91},{"$f":"'Portfolio Analytics'!M896","v":2279.91},{"$f":"'Portfolio Analytics'!N896","v":1137.78},{"$f":"'Portfolio Analytics'!O896","v":0},{"$f":"'Portfolio Analytics'!P896","v":0},{"$f":"'Portfolio Analytics'!Q896","v":0},{"$f":"'Portfolio Analytics'!R896","v":0},{"$f":"'Portfolio Analytics'!S896","v":0},{"$f":"'Portfolio Analytics'!T896","v":0},{"$f":"'Portfolio Analytics'!U896","v":0},{"$f":"'Portfolio Analytics'!V896","v":0},{"$f":"'Portfolio Analytics'!W896","v":0},{"$f":"'Portfolio Analytics'!X896","v":0},{"$f":"'Portfolio Analytics'!Y896","v":0},{"$f":"'Portfolio Analytics'!Z896","v":0},{"$f":"'Portfolio Analytics'!AA896","v":0},{"$f":"'Portfolio Analytics'!AB896","v":0},{"$f":"'Portfolio Analytics'!AC896","v":0},{"$f":"'Portfolio Analytics'!AD896","v":0},{"$f":"'Portfolio Analytics'!AE896","v":0},{"$f":"'Portfolio Analytics'!AF896","v":0},{"$f":"'Portfolio Analytics'!AG896","v":0},{"$f":"'Portfolio Analytics'!AH896","v":0},{"$f":"'Portfolio Analytics'!AI896","v":0},{"$f":"'Portfolio Analytics'!AJ896","v":0},{"$f":"'Portfolio Analytics'!AK896","v":0},{"$f":"'Portfolio Analytics'!AL896","v":0},{"$f":"'Portfolio Analytics'!AM896","v":0},{"$f":"'Portfolio Analytics'!AN896","v":0}]
[null,null,null,null,null,null,"Coal","MW",null,{"$f":"'Portfolio Analytics'!E897","v":0},{"$f":"'Portfolio Analytics'!F897","v":0},{"$f":"'Portfolio Analytics'!G897","v":0},{"$f":"'Portfolio Analytics'!H897","v":0},{"$f":"'Portfolio Analytics'!I897","v":0},{"$f":"'Portfolio Analytics'!J897","v":470.43},{"$f":"'Portfolio Analytics'!K897","v":470.43},{"$f":"'Portfolio Analytics'!L897","v":470.43},{"$f":"'Portfolio Analytics'!M897","v":470.43},{"$f":"'Portfolio Analytics'!N897","v":470.43},{"$f":"'Portfolio Analytics'!O897","v":0},{"$f":"'Portfolio Analytics'!P897","v":0},{"$f":"'Portfolio Analytics'!Q897","v":0},{"$f":"'Portfolio Analytics'!R897","v":0},{"$f":"'Portfolio Analytics'!S897","v":0},{"$f":"'Portfolio Analytics'!T897","v":0},{"$f":"'Portfolio Analytics'!U897","v":0},{"$f":"'Portfolio Analytics'!V897","v":0},{"$f":"'Portfolio Analytics'!W897","v":0},{"$f":"'Portfolio Analytics'!X897","v":0},{"$f":"'Portfolio Analytics'!Y897","v":0},{"$f":"'Portfolio Analytics'!Z897","v":0},{"$f":"'Portfolio Analytics'!AA897","v":0},{"$f":"'Portfolio Analytics'!AB897","v":0},{"$f":"'Portfolio Analytics'!AC897","v":0},{"$f":"'Portfolio Analytics'!AD897","v":0},{"$f":"'Portfolio Analytics'!AE897","v":0},{"$f":"'Portfolio Analytics'!AF897","v":0},{"$f":"'Portfolio Analytics'!AG897","v":0},{"$f":"'Portfolio Analytics'!AH897","v":0},{"$f":"'Portfolio Analytics'!AI897","v":0},{"$f":"'Portfolio Analytics'!AJ897","v":0},{"$f":"'Portfolio Analytics'!AK897","v":0},{"$f":"'Portfolio Analytics'!AL897","v":0},{"$f":"'Portfolio Analytics'!AM897","v":0},{"$f":"'Portfolio Analytics'!AN897","v":0}]
[null,null,null,null,null,null,"Geothermal","MW",null,{"$f":"'Portfolio Analytics'!E898","v":0},{"$f":"'Portfolio Analytics'!F898","v":0},{"$f":"'Portfolio Analytics'!G898","v":0},{"$f":"'Portfolio Analytics'!H898","v":0},{"$f":"'Portfolio Analytics'!I898","v":0},{"$f":"'Portfolio Analytics'!J898","v":1140.4099999999999},{"$f":"'Portfolio Analytics'!K898","v":1140.4099999999999},{"$f":"'Portfolio Analytics'!L898","v":1140.4099999999999},{"$f":"'Portfolio Analytics'!M898","v":1140.4099999999999},{"$f":"'Portfolio Analytics'!N898","v":1261.9099999999999},{"$f":"'Portfolio Analytics'!O898","v":0},{"$f":"'Portfolio Analytics'!P898","v":1261.9099999999999},{"$f":"'Portfolio Analytics'!Q898","v":0},{"$f":"'Portfolio Analytics'!R898","v":0},{"$f":"'Portfolio Analytics'!S898","v":0},{"$f":"'Portfolio Analytics'!T898","v":1261.9099999999999},{"$f":"'Portfolio Analytics'!U898","v":0},{"$f":"'Portfolio Analytics'!V898","v":0},{"$f":"'Portfolio Analytics'!W898","v":0},{"$f":"'Portfolio Analytics'!X898","v":0},{"$f":"'Portfolio Analytics'!Y898","v":0},{"$f":"'Portfolio Analytics'!Z898","v":0},{"$f":"'Portfolio Analytics'!AA898","v":0},{"$f":"'Portfolio Analytics'!AB898","v":0},{"$f":"'Portfolio Analytics'!AC898","v":0},{"$f":"'Portfolio Analytics'!AD898","v":0},{"$f":"'Portfolio Analytics'!AE898","v":0},{"$f":"'Portfolio Analytics'!AF898","v":0},{"$f":"'Portfolio Analytics'!AG898","v":0},{"$f":"'Portfolio Analytics'!AH898","v":0},{"$f":"'Portfolio Analytics'!AI898","v":2684.8999999999996},{"$f":"'Portfolio Analytics'!AJ898","v":0},{"$f":"'Portfolio Analytics'!AK898","v":0},{"$f":"'Portfolio Analytics'!AL898","v":0},{"$f":"'Portfolio Analytics'!AM898","v":0},{"$f":"'Portfolio Analytics'!AN898","v":0}]
[null,null,null,null,null,null,"Biomass","MW",null,{"$f":"'Portfolio Analytics'!E899","v":0},{"$f":"'Portfolio Analytics'!F899","v":0},{"$f":"'Portfolio Analytics'!G899","v":0},{"$f":"'Portfolio Analytics'!H899","v":0},{"$f":"'Portfolio Analytics'!I899","v":0},{"$f":"'Portfolio Analytics'!J899","v":630.04999999999995},{"$f":"'Portfolio Analytics'!K899","v":630.04999999999995},{"$f":"'Portfolio Analytics'!L899","v":630.04999999999995},{"$f":"'Portfolio Analytics'!M899","v":630.04999999999995},{"$f":"'Portfolio Analytics'!N899","v":630.04999999999995},{"$f":"'Portfolio Analytics'!O899","v":0},{"$f":"'Portfolio Analytics'!P899","v":630.04999999999995},{"$f":"'Portfolio Analytics'!Q899","v":0},{"$f":"'Portfolio Analytics'!R899","v":0},{"$f":"'Portfolio Analytics'!S899","v":0},{"$f":"'Portfolio Analytics'!T899","v":628.7299999999999},{"$f":"'Portfolio Analytics'!U899","v":0},{"$f":"'Portfolio Analytics'!V899","v":0},{"$f":"'Portfolio Analytics'!W899","v":0},{"$f":"'Portfolio Analytics'!X899","v":0},{"$f":"'Portfolio Analytics'!Y899","v":0},{"$f":"'Portfolio Analytics'!Z899","v":0},{"$f":"'Portfolio Analytics'!AA899","v":0},{"$f":"'Portfolio Analytics'!AB899","v":0},{"$f":"'Portfolio Analytics'!AC899","v":0},{"$f":"'Portfolio Analytics'!AD899","v":0},{"$f":"'Portfolio Analytics'!AE899","v":0},{"$f":"'Portfolio Analytics'!AF899","v":0},{"$f":"'Portfolio Analytics'!AG899","v":0},{"$f":"'Portfolio Analytics'!AH899","v":0},{"$f":"'Portfolio Analytics'!AI899","v":1603.56},{"$f":"'Portfolio Analytics'!AJ899","v":0},{"$f":"'Portfolio Analytics'!AK899","v":0},{"$f":"'Portfolio Analytics'!AL899","v":0},{"$f":"'Portfolio Analytics'!AM899","v":0},{"$f":"'Portfolio Analytics'!AN899","v":0}]
[null,null,null,null,null,null,"Shed DR","MW",null,{"$f":"'Portfolio Analytics'!E900","v":0},{"$f":"'Portfolio Analytics'!F900","v":0},{"$f":"'Portfolio Analytics'!G900","v":0},{"$f":"'Portfolio Analytics'!H900","v":0},{"$f":"'Portfolio Analytics'!I900","v":0},{"$f":"'Portfolio Analytics'!J900","v":0},{"$f":"'Portfolio Analytics'!K900","v":0},{"$f":"'Portfolio Analytics'!L900","v":0},{"$f":"'Portfolio Analytics'!M900","v":0},{"$f":"'Portfolio Analytics'!N900","v":0},{"$f":"'Portfolio Analytics'!O900","v":0},{"$f":"'Portfolio Analytics'!P900","v":0},{"$f":"'Portfolio Analytics'!Q900","v":0},{"$f":"'Portfolio Analytics'!R900","v":0},{"$f":"'Portfolio Analytics'!S900","v":0},{"$f":"'Portfolio Analytics'!T900","v":0},{"$f":"'Portfolio Analytics'!U900","v":0},{"$f":"'Portfolio Analytics'!V900","v":0},{"$f":"'Portfolio Analytics'!W900","v":0},{"$f":"'Portfolio Analytics'!X900","v":0},{"$f":"'Portfolio Analytics'!Y900","v":0},{"$f":"'Portfolio Analytics'!Z900","v":0},{"$f":"'Portfolio Analytics'!AA900","v":0},{"$f":"'Portfolio Analytics'!AB900","v":0},{"$f":"'Portfolio Analytics'!AC900","v":0},{"$f":"'Portfolio Analytics'!AD900","v":0},{"$f":"'Portfolio Analytics'!AE900","v":0},{"$f":"'Portfolio Analytics'!AF900","v":0},{"$f":"'Portfolio Analytics'!AG900","v":0},{"$f":"'Portfolio Analytics'!AH900","v":0},{"$f":"'Portfolio Analytics'!AI900","v":0},{"$f":"'Portfolio Analytics'!AJ900","v":0},{"$f":"'Portfolio Analytics'!AK900","v":0},{"$f":"'Portfolio Analytics'!AL900","v":0},{"$f":"'Portfolio Analytics'!AM900","v":0},{"$f":"'Portfolio Analytics'!AN900","v":0}]
[null,null,null,null,null,null,"Import Capacity","MW",null,{"$f":"'Portfolio Analytics'!E901","v":0},{"$f":"'Portfolio Analytics'!F901","v":0},{"$f":"'Portfolio Analytics'!G901","v":0},{"$f":"'Portfolio Analytics'!H901","v":0},{"$f":"'Portfolio Analytics'!I901","v":0},{"$f":"'Portfolio Analytics'!J901","v":5000},{"$f":"'Portfolio Analytics'!K901","v":5000},{"$f":"'Portfolio Analytics'!L901","v":5000},{"$f":"'Portfolio Analytics'!M901","v":5000},{"$f":"'Portfolio Analytics'!N901","v":5000},{"$f":"'Portfolio Analytics'!O901","v":0},{"$f":"'Portfolio Analytics'!P901","v":5000},{"$f":"'Portfolio Analytics'!Q901","v":0},{"$f":"'Portfolio Analytics'!R901","v":0},{"$f":"'Portfolio Analytics'!S901","v":0},{"$f":"'Portfolio Analytics'!T901","v":5000},{"$f":"'Portfolio Analytics'!U901","v":0},{"$f":"'Portfolio Analytics'!V901","v":0},{"$f":"'Portfolio Analytics'!W901","v":0},{"$f":"'Portfolio Analytics'!X901","v":0},{"$f":"'Portfolio Analytics'!Y901","v":0},{"$f":"'Portfolio Analytics'!Z901","v":0},{"$f":"'Portfolio Analytics'!AA901","v":0},{"$f":"'Portfolio Analytics'!AB901","v":0},{"$f":"'Portfolio Analytics'!AC901","v":0},{"$f":"'Portfolio Analytics'!AD901","v":0},{"$f":"'Portfolio Analytics'!AE901","v":0},{"$f":"'Portfolio Analytics'!AF901","v":0},{"$f":"'Portfolio Analytics'!AG901","v":0},{"$f":"'Portfolio Analytics'!AH901","v":0},{"$f":"'Portfolio Analytics'!AI901","v":5000},{"$f":"'Portfolio Analytics'!AJ901","v":0},{"$f":"'Portfolio Analytics'!AK901","v":0},{"$f":"'Portfolio Analytics'!AL901","v":0},{"$f":"'Portfolio Analytics'!AM901","v":0},{"$f":"'Portfolio Analytics'!AN901","v":0}]
[null,null,null,null,null,null,"Hoover and Palo Verde","MW",null,{"$f":"'Portfolio Analytics'!E902","v":0},{"$f":"'Portfolio Analytics'!F902","v":0},{"$f":"'Portfolio Analytics'!G902","v":0},{"$f":"'Portfolio Analytics'!H902","v":0},{"$f":"'Portfolio Analytics'!I902","v":0},{"$f":"'Portfolio Analytics'!J902","v":1457},{"$f":"'Portfolio Analytics'!K902","v":1457},{"$f":"'Portfolio Analytics'!L902","v":1457},{"$f":"'Portfolio Analytics'!M902","v":1457},{"$f":"'Portfolio Analytics'!N902","v":1457},{"$f":"'Portfolio Analytics'!O902","v":0},{"$f":"'Portfolio Analytics'!P902","v":1457},{"$f":"'Portfolio Analytics'!Q902","v":0},{"$f":"'Portfolio Analytics'!R902","v":0},{"$f":"'Portfolio Analytics'!S902","v":0},{"$f":"'Portfolio Analytics'!T902","v":1457},{"$f":"'Portfolio Analytics'!U902","v":0},{"$f":"'Portfolio Analytics'!V902","v":0},{"$f":"'Portfolio Analytics'!W902","v":0},{"$f":"'Portfolio Analytics'!X902","v":0},{"$f":"'Portfolio Analytics'!Y902","v":0},{"$f":"'Portfolio Analytics'!Z902","v":0},{"$f":"'Portfolio Analytics'!AA902","v":0},{"$f":"'Portfolio Analytics'!AB902","v":0},{"$f":"'Portfolio Analytics'!AC902","v":0},{"$f":"'Portfolio Analytics'!AD902","v":0},{"$f":"'Portfolio Analytics'!AE902","v":0},{"$f":"'Portfolio Analytics'!AF902","v":0},{"$f":"'Portfolio Analytics'!AG902","v":0},{"$f":"'Portfolio Analytics'!AH902","v":0},{"$f":"'Portfolio Analytics'!AI902","v":1457},{"$f":"'Portfolio Analytics'!AJ902","v":0},{"$f":"'Portfolio Analytics'!AK902","v":0},{"$f":"'Portfolio Analytics'!AL902","v":0},{"$f":"'Portfolio Analytics'!AM902","v":0},{"$f":"'Portfolio Analytics'!AN902","v":0}]
[null,null,null,null,null,null,"Other Firm Imports","MW",null,{"$f":"'Portfolio Analytics'!E903","v":0},{"$f":"'Portfolio Analytics'!F903","v":0},{"$f":"'Portfolio Analytics'!G903","v":0},{"$f":"'Portfolio Analytics'!H903","v":0},{"$f":"'Portfolio Analytics'!I903","v":0},{"$f":"'Portfolio Analytics'!J903","v":3543},{"$f":"'Portfolio Analytics'!K903","v":3543},{"$f":"'Portfolio Analytics'!L903","v":3543},{"$f":"'Portfolio Analytics'!M903","v":3543},{"$f":"'Portfolio Analytics'!N903","v":3543},{"$f":"'Portfolio Analytics'!O903","v":0},{"$f":"'Portfolio Analytics'!P903","v":3543},{"$f":"'Portfolio Analytics'!Q903","v":0},{"$f":"'Portfolio Analytics'!R903","v":0},{"$f":"'Portfolio Analytics'!S903","v":0},{"$f":"'Portfolio Analytics'!T903","v":3543},{"$f":"'Portfolio Analytics'!U903","v":0},{"$f":"'Portfolio Analytics'!V903","v":0},{"$f":"'Portfolio Analytics'!W903","v":0},{"$f":"'Portfolio Analytics'!X903","v":0},{"$f":"'Portfolio Analytics'!Y903","v":0},{"$f":"'Portfolio Analytics'!Z903","v":0},{"$f":"'Portfolio Analytics'!AA903","v":0},{"$f":"'Portfolio Analytics'!AB903","v":0},{"$f":"'Portfolio Analytics'!AC903","v":0},{"$f":"'Portfolio Analytics'!AD903","v":0},{"$f":"'Portfolio Analytics'!AE903","v":0},{"$f":"'Portfolio Analytics'!AF903","v":0},{"$f":"'Portfolio Analytics'!AG903","v":0},{"$f":"'Portfolio Analytics'!AH903","v":0},{"$f":"'Portfolio Analytics'!AI903","v":3543},{"$f":"'Portfolio Analytics'!AJ903","v":0},{"$f":"'Portfolio Analytics'!AK903","v":0},{"$f":"'Portfolio Analytics'!AL903","v":0},{"$f":"'Portfolio Analytics'!AM903","v":0},{"$f":"'Portfolio Analytics'!AN903","v":0}]
[null,null,null,null,null,null,"Storage","MW",null,{"$f":"'Portfolio Analytics'!E904","v":0},{"$f":"'Portfolio Analytics'!F904","v":0},{"$f":"'Portfolio Analytics'!G904","v":0},{"$f":"'Portfolio Analytics'!H904","v":0},{"$f":"'Portfolio Analytics'!I904","v":0},{"$f":"'Portfolio Analytics'!J904","v":5074.8900000000003},{"$f":"'Portfolio Analytics'!K904","v":7704.75},{"$f":"'Portfolio Analytics'!L904","v":7704.75},{"$f":"'Portfolio Analytics'!M904","v":8092.8},{"$f":"'Portfolio Analytics'!N904","v":9664.25},{"$f":"'Portfolio Analytics'!O904","v":0},{"$f":"'Portfolio Analytics'!P904","v":14139.86},{"$f":"'Portfolio Analytics'!Q904","v":0},{"$f":"'Portfolio Analytics'!R904","v":0},{"$f":"'Portfolio Analytics'!S904","v":0},{"$f":"'Portfolio Analytics'!T904","v":15585.94},{"$f":"'Portfolio Analytics'!U904","v":0},{"$f":"'Portfolio Analytics'!V904","v":0},{"$f":"'Portfolio Analytics'!W904","v":0},{"$f":"'Portfolio Analytics'!X904","v":0},{"$f":"'Portfolio Analytics'!Y904","v":0},{"$f":"'Portfolio Analytics'!Z904","v":0},{"$f":"'Portfolio Analytics'!AA904","v":0},{"$f":"'Portfolio Analytics'!AB904","v":0},{"$f":"'Portfolio Analytics'!AC904","v":0},{"$f":"'Portfolio Analytics'!AD904","v":0},{"$f":"'Portfolio Analytics'!AE904","v":0},{"$f":"'Portfolio Analytics'!AF904","v":0},{"$f":"'Portfolio Analytics'!AG904","v":0},{"$f":"'Portfolio Analytics'!AH904","v":0},{"$f":"'Portfolio Analytics'!AI904","v":25660.560000000001},{"$f":"'Portfolio Analytics'!AJ904","v":0},{"$f":"'Portfolio Analytics'!AK904","v":0},{"$f":"'Portfolio Analytics'!AL904","v":0},{"$f":"'Portfolio Analytics'!AM904","v":0},{"$f":"'Portfolio Analytics'!AN904","v":0}]
[null,null,null,null,null,null,"Battery (incl. BTM)","MW",null,{"$f":"'Portfolio Analytics'!E905","v":0},{"$f":"'Portfolio Analytics'!F905","v":0},{"$f":"'Portfolio Analytics'!G905","v":0},{"$f":"'Portfolio Analytics'!H905","v":0},{"$f":"'Portfolio Analytics'!I905","v":0},{"$f":"'Portfolio Analytics'!J905","v":3475.69},{"$f":"'Portfolio Analytics'!K905","v":6105.55},{"$f":"'Portfolio Analytics'!L905","v":6105.55},{"$f":"'Portfolio Analytics'!M905","v":6493.6},{"$f":"'Portfolio Analytics'!N905","v":8065.05},{"$f":"'Portfolio Analytics'!O905","v":0},{"$f":"'Portfolio Analytics'!P905","v":10554.189999999999},{"$f":"'Portfolio Analytics'!Q905","v":0},{"$f":"'Portfolio Analytics'!R905","v":0},{"$f":"'Portfolio Analytics'!S905","v":0},{"$f":"'Portfolio Analytics'!T905","v":12000.27},{"$f":"'Portfolio Analytics'!U905","v":0},{"$f":"'Portfolio Analytics'!V905","v":0},{"$f":"'Portfolio Analytics'!W905","v":0},{"$f":"'Portfolio Analytics'!X905","v":0},{"$f":"'Portfolio Analytics'!Y905","v":0},{"$f":"'Portfolio Analytics'!Z905","v":0},{"$f":"'Portfolio Analytics'!AA905","v":0},{"$f":"'Portfolio Analytics'!AB905","v":0},{"$f":"'Portfolio Analytics'!AC905","v":0},{"$f":"'Portfolio Analytics'!AD905","v":0},{"$f":"'Portfolio Analytics'!AE905","v":0},{"$f":"'Portfolio Analytics'!AF905","v":0},{"$f":"'Portfolio Analytics'!AG905","v":0},{"$f":"'Portfolio Analytics'!AH905","v":0},{"$f":"'Portfolio Analytics'!AI905","v":22074.879999999997},{"$f":"'Portfolio Analytics'!AJ905","v":0},{"$f":"'Portfolio Analytics'!AK905","v":0},{"$f":"'Portfolio Analytics'!AL905","v":0},{"$f":"'Portfolio Analytics'!AM905","v":0},{"$f":"'Portfolio Analytics'!AN905","v":0}]
[null,null,null,null,null,null,"Pumped Storage","MW",null,{"$f":"'Portfolio Analytics'!E906","v":0},{"$f":"'Portfolio Analytics'!F906","v":0},{"$f":"'Portfolio Analytics'!G906","v":0},{"$f":"'Portfolio Analytics'!H906","v":0},{"$f":"'Portfolio Analytics'!I906","v":0},{"$f":"'Portfolio Analytics'!J906","v":1599.2},{"$f":"'Portfolio Analytics'!K906","v":1599.2},{"$f":"'Portfolio Analytics'!L906","v":1599.2},{"$f":"'Portfolio Analytics'!M906","v":1599.2},{"$f":"'Portfolio Analytics'!N906","v":1599.2},{"$f":"'Portfolio Analytics'!O906","v":0},{"$f":"'Portfolio Analytics'!P906","v":3585.67},{"$f":"'Portfolio Analytics'!Q906","v":0},{"$f":"'Portfolio Analytics'!R906","v":0},{"$f":"'Portfolio Analytics'!S906","v":0},{"$f":"'Portfolio Analytics'!T906","v":3585.67},{"$f":"'Portfolio Analytics'!U906","v":0},{"$f":"'Portfolio Analytics'!V906","v":0},{"$f":"'Portfolio Analytics'!W906","v":0},{"$f":"'Portfolio Analytics'!X906","v":0},{"$f":"'Portfolio Analytics'!Y906","v":0},{"$f":"'Portfolio Analytics'!Z906","v":0},{"$f":"'Portfolio Analytics'!AA906","v":0},{"$f":"'Portfolio Analytics'!AB906","v":0},{"$f":"'Portfolio Analytics'!AC906","v":0},{"$f":"'Portfolio Analytics'!AD906","v":0},{"$f":"'Portfolio Analytics'!AE906","v":0},{"$f":"'Portfolio Analytics'!AF906","v":0},{"$f":"'Portfolio Analytics'!AG906","v":0},{"$f":"'Portfolio Analytics'!AH906","v":0},{"$f":"'Portfolio Analytics'!AI906","v":3585.67},{"$f":"'Portfolio Analytics'!AJ906","v":0},{"$f":"'Portfolio Analytics'!AK906","v":0},{"$f":"'Portfolio Analytics'!AL906","v":0},{"$f":"'Portfolio Analytics'!AM906","v":0},{"$f":"'Portfolio Analytics'!AN906","v":0}]
[null,null,null,null,null,null,"Variable Renewable ELCC (Incl. BTM)","MW",null,{"$f":"'Portfolio Analytics'!E907","v":0},{"$f":"'Portfolio Analytics'!F907","v":0},{"$f":"'Portfolio Analytics'!G907","v":0},{"$f":"'Portfolio Analytics'!H907","v":0},{"$f":"'Portfolio Analytics'!I907","v":0},{"$f":"'Portfolio Analytics'!J907","v":8359.69},{"$f":"'Portfolio Analytics'!K907","v":8429.7800000000007},{"$f":"'Portfolio Analytics'!L907","v":9249.5300000000007},{"$f":"'Portfolio Analytics'!M907","v":9423.66},{"$f":"'Portfolio Analytics'!N907","v":9513.56},{"$f":"'Portfolio Analytics'!O907","v":0},{"$f":"'Portfolio Analytics'!P907","v":10028.36},{"$f":"'Portfolio Analytics'!Q907","v":0},{"$f":"'Portfolio Analytics'!R907","v":0},{"$f":"'Portfolio Analytics'!S907","v":0},{"$f":"'Portfolio Analytics'!T907","v":10976.78},{"$f":"'Portfolio Analytics'!U907","v":0},{"$f":"'Portfolio Analytics'!V907","v":0},{"$f":"'Portfolio Analytics'!W907","v":0},{"$f":"'Portfolio Analytics'!X907","v":0},{"$f":"'Portfolio Analytics'!Y907","v":0},{"$f":"'Portfolio Analytics'!Z907","v":0},{"$f":"'Portfolio Analytics'!AA907","v":0},{"$f":"'Portfolio Analytics'!AB907","v":0},{"$f":"'Portfolio Analytics'!AC907","v":0},{"$f":"'Portfolio Analytics'!AD907","v":0},{"$f":"'Portfolio Analytics'!AE907","v":0},{"$f":"'Portfolio Analytics'!AF907","v":0},{"$f":"'Portfolio Analytics'!AG907","v":0},{"$f":"'Portfolio Analytics'!AH907","v":0},{"$f":"'Portfolio Analytics'!AI907","v":13355.45},{"$f":"'Portfolio Analytics'!AJ907","v":0},{"$f":"'Portfolio Analytics'!AK907","v":0},{"$f":"'Portfolio Analytics'!AL907","v":0},{"$f":"'Portfolio Analytics'!AM907","v":0},{"$f":"'Portfolio Analytics'!AN907","v":0}]
[null,null,null,null,null,null,"Total Available Capacity","MW",null,{"$f":"'Portfolio Analytics'!E908","v":0},{"$f":"'Portfolio Analytics'!F908","v":0},{"$f":"'Portfolio Analytics'!G908","v":0},{"$f":"'Portfolio Analytics'!H908","v":0},{"$f":"'Portfolio Analytics'!I908","v":0},{"$f":"'Portfolio Analytics'!J908","v":56368.800000000003},{"$f":"'Portfolio Analytics'!K908","v":56543.659999999996},{"$f":"'Portfolio Analytics'!L908","v":57363.409999999996},{"$f":"'Portfolio Analytics'!M908","v":57925.59},{"$f":"'Portfolio Analytics'!N908","v":58566.31},{"$f":"'Portfolio Analytics'!O908","v":0},{"$f":"'Portfolio Analytics'!P908","v":61944.160000000003},{"$f":"'Portfolio Analytics'!Q908","v":0},{"$f":"'Portfolio Analytics'!R908","v":0},{"$f":"'Portfolio Analytics'!S908","v":0},{"$f":"'Portfolio Analytics'!T908","v":64336.840000000004},{"$f":"'Portfolio Analytics'!U908","v":0},{"$f":"'Portfolio Analytics'!V908","v":0},{"$f":"'Portfolio Analytics'!W908","v":0},{"$f":"'Portfolio Analytics'!X908","v":0},{"$f":"'Portfolio Analytics'!Y908","v":0},{"$f":"'Portfolio Analytics'!Z908","v":0},{"$f":"'Portfolio Analytics'!AA908","v":0},{"$f":"'Portfolio Analytics'!AB908","v":0},{"$f":"'Portfolio Analytics'!AC908","v":0},{"$f":"'Portfolio Analytics'!AD908","v":0},{"$f":"'Portfolio Analytics'!AE908","v":0},{"$f":"'Portfolio Analytics'!AF908","v":0},{"$f":"'Portfolio Analytics'!AG908","v":0},{"$f":"'Portfolio Analytics'!AH908","v":0},{"$f":"'Portfolio Analytics'!AI908","v":74174.17},{"$f":"'Portfolio Analytics'!AJ908","v":0},{"$f":"'Portfolio Analytics'!AK908","v":0},{"$f":"'Portfolio Analytics'!AL908","v":0},{"$f":"'Portfolio Analytics'!AM908","v":0},{"$f":"'Portfolio Analytics'!AN908","v":0}]
[null,null,null,null,null,null,"Actual Reserve Margin","%",null,{"$f":"'Portfolio Analytics'!E909","v":0},{"$f":"'Portfolio Analytics'!F909","v":0},{"$f":"'Portfolio Analytics'!G909","v":0},{"$f":"'Portfolio Analytics'!H909","v":0},{"$f":"'Portfolio Analytics'!I909","v":0},{"$f":"'Portfolio Analytics'!J909","v":0.1499999489966104},{"$f":"'Portfolio Analytics'!K909","v":0.14999999999999991},{"$f":"'Portfolio Analytics'!L909","v":0.15380682326745654},{"$f":"'Portfolio Analytics'!M909","v":0.14999996029388862},{"$f":"'Portfolio Analytics'!N909","v":0.14999991163862614},{"$f":"'Portfolio Analytics'!O909","v":0},{"$f":"'Portfolio Analytics'!P909","v":0.14999993502212683},{"$f":"'Portfolio Analytics'!Q909","v":0},{"$f":"'Portfolio Analytics'!R909","v":0},{"$f":"'Portfolio Analytics'!S909","v":0},{"$f":"'Portfolio Analytics'!T909","v":0.14999996425065443},{"$f":"'Portfolio Analytics'!U909","v":0},{"$f":"'Portfolio Analytics'!V909","v":0},{"$f":"'Portfolio Analytics'!W909","v":0},{"$f":"'Portfolio Analytics'!X909","v":0},{"$f":"'Portfolio Analytics'!Y909","v":0},{"$f":"'Portfolio Analytics'!Z909","v":0},{"$f":"'Portfolio Analytics'!AA909","v":0},{"$f":"'Portfolio Analytics'!AB909","v":0},{"$f":"'Portfolio Analytics'!AC909","v":0},{"$f":"'Portfolio Analytics'!AD909","v":0},{"$f":"'Portfolio Analytics'!AE909","v":0},{"$f":"'Portfolio Analytics'!AF909","v":0},{"$f":"'Portfolio Analytics'!AG909","v":0},{"$f":"'Portfolio Analytics'!AH909","v":0},{"$f":"'Portfolio Analytics'!AI909","v":0.15000014728848865},{"$f":"'Portfolio Analytics'!AJ909","v":0},{"$f":"'Portfolio Analytics'!AK909","v":0},{"$f":"'Portfolio Analytics'!AL909","v":0},{"$f":"'Portfolio Analytics'!AM909","v":0},{"$f":"'Portfolio Analytics'!AN909","v":0}]
[null,null,null,null,null,null,"Marginal PRM Cost","$/kW-yr.",null,{"$f":"'Portfolio Analytics'!E910","v":0},{"$f":"'Portfolio Analytics'!F910","v":0},{"$f":"'Portfolio Analytics'!G910","v":0},{"$f":"'Portfolio Analytics'!H910","v":0},{"$f":"'Portfolio Analytics'!I910","v":0},{"$f":"'Portfolio Analytics'!J910","v":564.29996999999992},{"$f":"'Portfolio Analytics'!K910","v":975.95914000000005},{"$f":"'Portfolio Analytics'!L910","v":0},{"$f":"'Portfolio Analytics'!M910","v":348.93518999999998},{"$f":"'Portfolio Analytics'!N910","v":393.03646999999995},{"$f":"'Portfolio Analytics'!O910","v":0},{"$f":"'Portfolio Analytics'!P910","v":259.33744000000002},{"$f":"'Portfolio Analytics'!Q910","v":0},{"$f":"'Portfolio Analytics'!R910","v":0},{"$f":"'Portfolio Analytics'!S910","v":0},{"$f":"'Portfolio Analytics'!T910","v":77.406499999999994},{"$f":"'Portfolio Analytics'!U910","v":0},{"$f":"'Portfolio Analytics'!V910","v":0},{"$f":"'Portfolio Analytics'!W910","v":0},{"$f":"'Portfolio Analytics'!X910","v":0},{"$f":"'Portfolio Analytics'!Y910","v":0},{"$f":"'Portfolio Analytics'!Z910","v":0},{"$f":"'Portfolio Analytics'!AA910","v":0},{"$f":"'Portfolio Analytics'!AB910","v":0},{"$f":"'Portfolio Analytics'!AC910","v":0},{"$f":"'Portfolio Analytics'!AD910","v":0},{"$f":"'Portfolio Analytics'!AE910","v":0},{"$f":"'Portfolio Analytics'!AF910","v":0},{"$f":"'Portfolio Analytics'!AG910","v":0},{"$f":"'Portfolio Analytics'!AH910","v":0},{"$f":"'Portfolio Analytics'!AI910","v":14.246030000000001},{"$f":"'Portfolio Analytics'!AJ910","v":0},{"$f":"'Portfolio Analytics'!AK910","v":0},{"$f":"'Portfolio Analytics'!AL910","v":0},{"$f":"'Portfolio Analytics'!AM910","v":0},{"$f":"'Portfolio Analytics'!AN910","v":0}]
[null,null,null,null,null,null,"Marginal Solar ELCC","%",null,{"$f":"'Portfolio Analytics'!E914","v":0},{"$f":"'Portfolio Analytics'!F914","v":0},{"$f":"'Portfolio Analytics'!G914","v":0},{"$f":"'Portfolio Analytics'!H914","v":0},{"$f":"'Portfolio Analytics'!I914","v":0},{"$f":"'Portfolio Analytics'!J914","v":3.5640887429934653E-2},{"$f":"'Portfolio Analytics'!K914","v":2.277010944374452E-2},{"$f":"'Portfolio Analytics'!L914","v":2.2561443055493208E-2},{"$f":"'Portfolio Analytics'!M914","v":2.2437348854107298E-2},{"$f":"'Portfolio Analytics'!N914","v":2.2326265367807088E-2},{"$f":"'Portfolio Analytics'!O914","v":0},{"$f":"'Portfolio Analytics'!P914","v":2.2968498908440483E-2},{"$f":"'Portfolio Analytics'!Q914","v":0},{"$f":"'Portfolio Analytics'!R914","v":0},{"$f":"'Portfolio Analytics'!S914","v":0},{"$f":"'Portfolio Analytics'!T914","v":2.2833260051453693E-2},{"$f":"'Portfolio Analytics'!U914","v":0},{"$f":"'Portfolio Analytics'!V914","v":0},{"$f":"'Portfolio Analytics'!W914","v":0},{"$f":"'Portfolio Analytics'!X914","v":0},{"$f":"'Portfolio Analytics'!Y914","v":0},{"$f":"'Portfolio Analytics'!Z914","v":0},{"$f":"'Portfolio Analytics'!AA914","v":0},{"$f":"'Portfolio Analytics'!AB914","v":0},{"$f":"'Portfolio Analytics'!AC914","v":0},{"$f":"'Portfolio Analytics'!AD914","v":0},{"$f":"'Portfolio Analytics'!AE914","v":0},{"$f":"'Portfolio Analytics'!AF914","v":0},{"$f":"'Portfolio Analytics'!AG914","v":0},{"$f":"'Portfolio Analytics'!AH914","v":0},{"$f":"'Portfolio Analytics'!AI914","v":1.5308471736851213E-2},{"$f":"'Portfolio Analytics'!AJ914","v":0},{"$f":"'Portfolio Analytics'!AK914","v":0},{"$f":"'Portfolio Analytics'!AL914","v":0},{"$f":"'Portfolio Analytics'!AM914","v":0},{"$f":"'Portfolio Analytics'!AN914","v":0}]
[null,null,null,null,null,null,"Marginal Wind ELCC","%",null,{"$f":"'Portfolio Analytics'!E915","v":0},{"$f":"'Portfolio Analytics'!F915","v":0},{"$f":"'Portfolio Analytics'!G915","v":0},{"$f":"'Portfolio Analytics'!H915","v":0},{"$f":"'Portfolio Analytics'!I915","v":0},{"$f":"'Portfolio Analytics'!J915","v":0.31487051528564097},{"$f":"'Portfolio Analytics'!K915","v":0.30997286186406342},{"$f":"'Portfolio Analytics'!L915","v":0.20211681659592443},{"$f":"'Portfolio Analytics'!M915","v":0.20100427408116495},{"$f":"'Portfolio Analytics'!N915","v":0.20000975242142877},{"$f":"'Portfolio Analytics'!O915","v":0},{"$f":"'Portfolio Analytics'!P915","v":0.20576285099625666},{"$f":"'Portfolio Analytics'!Q915","v":0},{"$f":"'Portfolio Analytics'!R915","v":0},{"$f":"'Portfolio Analytics'!S915","v":0},{"$f":"'Portfolio Analytics'!T915","v":0.20455130397182811},{"$f":"'Portfolio Analytics'!U915","v":0},{"$f":"'Portfolio Analytics'!V915","v":0},{"$f":"'Portfolio Analytics'!W915","v":0},{"$f":"'Portfolio Analytics'!X915","v":0},{"$f":"'Portfolio Analytics'!Y915","v":0},{"$f":"'Portfolio Analytics'!Z915","v":0},{"$f":"'Portfolio Analytics'!AA915","v":0},{"$f":"'Portfolio Analytics'!AB915","v":0},{"$f":"'Portfolio Analytics'!AC915","v":0},{"$f":"'Portfolio Analytics'!AD915","v":0},{"$f":"'Portfolio Analytics'!AE915","v":0},{"$f":"'Portfolio Analytics'!AF915","v":0},{"$f":"'Portfolio Analytics'!AG915","v":0},{"$f":"'Portfolio Analytics'!AH915","v":0},{"$f":"'Portfolio Analytics'!AI915","v":0.25023130567810331},{"$f":"'Portfolio Analytics'!AJ915","v":0},{"$f":"'Portfolio Analytics'!AK915","v":0},{"$f":"'Portfolio Analytics'!AL915","v":0},{"$f":"'Portfolio Analytics'!AM915","v":0},{"$f":"'Portfolio Analytics'!AN915","v":0}]
[]
[null,null,null,null,null,null,"Local Capacity Requirement Summary"]
[]
[null,null,null,null,null,null,null,"Unit",null,2015,{"$f":"J192+1","v":2016},2017,2018,2019,2020,2021,2022,2023,2024,2025,2026,2027,2028,2029,2030,{"$f":"Y192+1","v":2031},2032,2033,2034,2035,2036,2037,2038,2039,2040,2041,2042,2043,2044,2045,2046,2047,2048,2049,2050]
[null,null,null,null,null,null,"Total LCR Deficiency","MW",null,{"$f":"'Portfolio Analytics'!E881","v":0},{"$f":"'Portfolio Analytics'!F881","v":0},{"$f":"'Portfolio Analytics'!G881","v":0},{"$f":"'Portfolio Analytics'!H881","v":0},{"$f":"'Portfolio Analytics'!I881","v":0},{"$f":"'Portfolio Analytics'!J881","v":0},{"$f":"'Portfolio Analytics'!K881","v":0},{"$f":"'Portfolio Analytics'!L881","v":0},{"$f":"'Portfolio Analytics'!M881","v":0},{"$f":"'Portfolio Analytics'!N881","v":0},{"$f":"'Portfolio Analytics'!O881","v":0},{"$f":"'Portfolio Analytics'!P881","v":0},{"$f":"'Portfolio Analytics'!Q881","v":0},{"$f":"'Portfolio Analytics'!R881","v":0},{"$f":"'Portfolio Analytics'!S881","v":0},{"$f":"'Portfolio Analytics'!T881","v":0},{"$f":"'Portfolio Analytics'!U881","v":0},{"$f":"'Portfolio Analytics'!V881","v":0},{"$f":"'Portfolio Analytics'!W881","v":0},{"$f":"'Portfolio Analytics'!X881","v":0},{"$f":"'Portfolio Analytics'!Y881","v":0},{"$f":"'Portfolio Analytics'!Z881","v":0},{"$f":"'Portfolio Analytics'!AA881","v":0},{"$f":"'Portfolio Analytics'!AB881","v":0},{"$f":"'Portfolio Analytics'!AC881","v":0},{"$f":"'Portfolio Analytics'!AD881","v":0},{"$f":"'Portfolio Analytics'!AE881","v":0},{"$f":"'Portfolio Analytics'!AF881","v":0},{"$f":"'Portfolio Analytics'!AG881","v":0},{"$f":"'Portfolio Analytics'!AH881","v":0},{"$f":"'Portfolio Analytics'!AI881","v":0},{"$f":"'Portfolio Analytics'!AJ881","v":0},{"$f":"'Portfolio Analytics'!AK881","v":0},{"$f":"'Portfolio Analytics'!AL881","v":0},{"$f":"'Portfolio Analytics'!AM881","v":0},{"$f":"'Portfolio Analytics'!AN881","v":0}]
[null,null,null,null,null,null,"Gas","MW",null,{"$f":"SUM('Portfolio Analytics'!E872:E874)","v":0},{"$f":"SUM('Portfolio Analytics'!F872:F874)","v":0},{"$f":"SUM('Portfolio Analytics'!G872:G874)","v":0},{"$f":"SUM('Portfolio Analytics'!H872:H874)","v":0},{"$f":"SUM('Portfolio Analytics'!I872:I874)","v":0},{"$f":"SUM('Portfolio Analytics'!J872:J874)","v":0},{"$f":"SUM('Portfolio Analytics'!K872:K874)","v":0},{"$f":"SUM('Portfolio Analytics'!L872:L874)","v":0},{"$f":"SUM('Portfolio Analytics'!M872:M874)","v":0},{"$f":"SUM('Portfolio Analytics'!N872:N874)","v":0},{"$f":"SUM('Portfolio Analytics'!O872:O874)","v":0},{"$f":"SUM('Portfolio Analytics'!P872:P874)","v":0},{"$f":"SUM('Portfolio Analytics'!Q872:Q874)","v":0},{"$f":"SUM('Portfolio Analytics'!R872:R874)","v":0},{"$f":"SUM('Portfolio Analytics'!S872:S874)","v":0},{"$f":"SUM('Portfolio Analytics'!T872:T874)","v":0},{"$f":"SUM('Portfolio Analytics'!U872:U874)","v":0},{"$f":"SUM('Portfolio Analytics'!V872:V874)","v":0},{"$f":"SUM('Portfolio Analytics'!W872:W874)","v":0},{"$f":"SUM('Portfolio Analytics'!X872:X874)","v":0},{"$f":"SUM('Portfolio Analytics'!Y872:Y874)","v":0},{"$f":"SUM('Portfolio Analytics'!Z872:Z874)","v":0},{"$f":"SUM('Portfolio Analytics'!AA872:AA874)","v":0},{"$f":"SUM('Portfolio Analytics'!AB872:AB874)","v":0},{"$f":"SUM('Portfolio Analytics'!AC872:AC874)","v":0},{"$f":"SUM('Portfolio Analytics'!AD872:AD874)","v":0},{"$f":"SUM('Portfolio Analytics'!AE872:AE874)","v":0},{"$f":"SUM('Portfolio Analytics'!AF872:AF874)","v":0},{"$f":"SUM('Portfolio Analytics'!AG872:AG874)","v":0},{"$f":"SUM('Portfolio Analytics'!AH872:AH874)","v":0},{"$f":"SUM('Portfolio Analytics'!AI872:AI874)","v":0},{"$f":"SUM('Portfolio Analytics'!AJ872:AJ874)","v":0},{"$f":"SUM('Portfolio Analytics'!AK872:AK874)","v":0},{"$f":"SUM('Portfolio Analytics'!AL872:AL874)","v":0},{"$f":"SUM('Portfolio Analytics'!AM872:AM874)","v":0},{"$f":"SUM('Portfolio Analytics'!AN872:AN874)","v":0}]
[null,null,null,null,null,null,"Storage","MW",null,{"$f":"SUM('Portfolio Analytics'!E876:E879)","v":0},{"$f":"SUM('Portfolio Analytics'!F876:F879)","v":0},{"$f":"SUM('Portfolio Analytics'!G876:G879)","v":0},{"$f":"SUM('Portfolio Analytics'!H876:H879)","v":0},{"$f":"SUM('Portfolio Analytics'!I876:I879)","v":0},{"$f":"SUM('Portfolio Analytics'!J876:J879)","v":0},{"$f":"SUM('Portfolio Analytics'!K876:K879)","v":0},{"$f":"SUM('Portfolio Analytics'!L876:L879)","v":0},{"$f":"SUM('Portfolio Analytics'!M876:M879)","v":0},{"$f":"SUM('Portfolio Analytics'!N876:N879)","v":0},{"$f":"SUM('Portfolio Analytics'!O876:O879)","v":0},{"$f":"SUM('Portfolio Analytics'!P876:P879)","v":0},{"$f":"SUM('Portfolio Analytics'!Q876:Q879)","v":0},{"$f":"SUM('Portfolio Analytics'!R876:R879)","v":0},{"$f":"SUM('Portfolio Analytics'!S876:S879)","v":0},{"$f":"SUM('Portfolio Analytics'!T876:T879)","v":0},{"$f":"SUM('Portfolio Analytics'!U876:U879)","v":0},{"$f":"SUM('Portfolio Analytics'!V876:V879)","v":0},{"$f":"SUM('Portfolio Analytics'!W876:W879)","v":0},{"$f":"SUM('Portfolio Analytics'!X876:X879)","v":0},{"$f":"SUM('Portfolio Analytics'!Y876:Y879)","v":0},{"$f":"SUM('Portfolio Analytics'!Z876:Z879)","v":0},{"$f":"SUM('Portfolio Analytics'!AA876:AA879)","v":0},{"$f":"SUM('Portfolio Analytics'!AB876:AB879)","v":0},{"$f":"SUM('Portfolio Analytics'!AC876:AC879)","v":0},{"$f":"SUM('Portfolio Analytics'!AD876:AD879)","v":0},{"$f":"SUM('Portfolio Analytics'!AE876:AE879)","v":0},{"$f":"SUM('Portfolio Analytics'!AF876:AF879)","v":0},{"$f":"SUM('Portfolio Analytics'!AG876:AG879)","v":0},{"$f":"SUM('Portfolio Analytics'!AH876:AH879)","v":0},{"$f":"SUM('Portfolio Analytics'!AI876:AI879)","v":0},{"$f":"SUM('Portfolio Analytics'!AJ876:AJ879)","v":0},{"$f":"SUM('Portfolio Analytics'!AK876:AK879)","v":0},{"$f":"SUM('Portfolio Analytics'!AL876:AL879)","v":0},{"$f":"SUM('Portfolio Analytics'!AM876:AM879)","v":0},{"$f":"SUM('Portfolio Analytics'!AN876:AN879)","v":0}]
[null,null,null,null,null,null,"Solar","MW",null,{"$f":"'Portfolio Analytics'!E875","v":0},{"$f":"'Portfolio Analytics'!F875","v":0},{"$f":"'Portfolio Analytics'!G875","v":0},{"$f":"'Portfolio Analytics'!H875","v":0},{"$f":"'Portfolio Analytics'!I875","v":0},{"$f":"'Portfolio Analytics'!J875","v":0},{"$f":"'Portfolio Analytics'!K875","v":0},{"$f":"'Portfolio Analytics'!L875","v":0},{"$f":"'Portfolio Analytics'!M875","v":0},{"$f":"'Portfolio Analytics'!N875","v":0},{"$f":"'Portfolio Analytics'!O875","v":0},{"$f":"'Portfolio Analytics'!P875","v":0},{"$f":"'Portfolio Analytics'!Q875","v":0},{"$f":"'Portfolio Analytics'!R875","v":0},{"$f":"'Portfolio Analytics'!S875","v":0},{"$f":"'Portfolio Analytics'!T875","v":0},{"$f":"'Portfolio Analytics'!U875","v":0},{"$f":"'Portfolio Analytics'!V875","v":0},{"$f":"'Portfolio Analytics'!W875","v":0},{"$f":"'Portfolio Analytics'!X875","v":0},{"$f":"'Portfolio Analytics'!Y875","v":0},{"$f":"'Portfolio Analytics'!Z875","v":0},{"$f":"'Portfolio Analytics'!AA875","v":0},{"$f":"'Portfolio Analytics'!AB875","v":0},{"$f":"'Portfolio Analytics'!AC875","v":0},{"$f":"'Portfolio Analytics'!AD875","v":0},{"$f":"'Portfolio Analytics'!AE875","v":0},{"$f":"'Portfolio Analytics'!AF875","v":0},{"$f":"'Portfolio Analytics'!AG875","v":0},{"$f":"'Portfolio Analytics'!AH875","v":0},{"$f":"'Portfolio Analytics'!AI875","v":0},{"$f":"'Portfolio Analytics'!AJ875","v":0},{"$f":"'Portfolio Analytics'!AK875","v":0},{"$f":"'Portfolio Analytics'!AL875","v":0},{"$f":"'Portfolio Analytics'!AM875","v":0},{"$f":"'Portfolio Analytics'!AN875","v":0}]
[null,null,null,null,null,null,"Total New Local Capacity","MW",null,{"$f":"SUM(J$194:J$196)","v":0},0,0,0,0,0,0,0,0,0,0,0,0,0,0,0,0,0,0,0,0,0,0,0,0,0,0,0,0,0,0,0,0,0,0,0]
[null,null,null,null,null,null,"Marginal LCR Cost","$/kW-yr.",null,{"$f":"SUMIF(raw_planning_reserve_margin!$A:$A,J192,raw_planning_reserve_margin!$N:$N)/1000","v":0},{"$f":"SUMIF(raw_planning_reserve_margin!$A:$A,K192,raw_planning_reserve_margin!$N:$N)/1000","v":0},{"$f":"SUMIF(raw_planning_reserve_margin!$A:$A,L192,raw_planning_reserve_margin!$N:$N)/1000","v":0},{"$f":"SUMIF(raw_planning_reserve_margin!$A:$A,M192,raw_planning_reserve_margin!$N:$N)/1000","v":0},{"$f":"SUMIF(raw_planning_reserve_margin!$A:$A,N192,raw_planning_reserve_margin!$N:$N)/1000","v":0},{"$f":"SUMIF(raw_planning_reserve_margin!$A:$A,O192,raw_planning_reserve_margin!$N:$N)/1000","v":0},{"$f":"SUMIF(raw_planning_reserve_margin!$A:$A,P192,raw_planning_reserve_margin!$N:$N)/1000","v":0},{"$f":"SUMIF(raw_planning_reserve_margin!$A:$A,Q192,raw_planning_reserve_margin!$N:$N)/1000","v":0},{"$f":"SUMIF(raw_planning_reserve_margin!$A:$A,R192,raw_planning_reserve_margin!$N:$N)/1000","v":0},{"$f":"SUMIF(raw_planning_reserve_margin!$A:$A,S192,raw_planning_reserve_margin!$N:$N)/1000","v":0},{"$f":"SUMIF(raw_planning_reserve_margin!$A:$A,T192,raw_planning_reserve_margin!$N:$N)/1000","v":0},{"$f":"SUMIF(raw_planning_reserve_margin!$A:$A,U192,raw_planning_reserve_margin!$N:$N)/1000","v":0},{"$f":"SUMIF(raw_planning_reserve_margin!$A:$A,V192,raw_planning_reserve_margin!$N:$N)/1000","v":0},{"$f":"SUMIF(raw_planning_reserve_margin!$A:$A,W192,raw_planning_reserve_margin!$N:$N)/1000","v":0},{"$f":"SUMIF(raw_planning_reserve_margin!$A:$A,X192,raw_planning_reserve_margin!$N:$N)/1000","v":0},{"$f":"SUMIF(raw_planning_reserve_margin!$A:$A,Y192,raw_planning_reserve_margin!$N:$N)/1000","v":0},{"$f":"SUMIF(raw_planning_reserve_margin!$A:$A,Z192,raw_planning_reserve_margin!$N:$N)/1000","v":0},{"$f":"SUMIF(raw_planning_reserve_margin!$A:$A,AA192,raw_planning_reserve_margin!$N:$N)/1000","v":0},{"$f":"SUMIF(raw_planning_reserve_margin!$A:$A,AB192,raw_planning_reserve_margin!$N:$N)/1000","v":0},{"$f":"SUMIF(raw_planning_reserve_margin!$A:$A,AC192,raw_planning_reserve_margin!$N:$N)/1000","v":0},{"$f":"SUMIF(raw_planning_reserve_margin!$A:$A,AD192,raw_planning_reserve_margin!$N:$N)/1000","v":0},{"$f":"SUMIF(raw_planning_reserve_margin!$A:$A,AE192,raw_planning_reserve_margin!$N:$N)/1000","v":0},{"$f":"SUMIF(raw_planning_reserve_margin!$A:$A,AF192,raw_planning_reserve_margin!$N:$N)/1000","v":0},{"$f":"SUMIF(raw_planning_reserve_margin!$A:$A,AG192,raw_planning_reserve_margin!$N:$N)/1000","v":0},{"$f":"SUMIF(raw_planning_reserve_margin!$A:$A,AH192,raw_planning_reserve_margin!$N:$N)/1000","v":0},{"$f":"SUMIF(raw_planning_reserve_margin!$A:$A,AI192,raw_planning_reserve_margin!$N:$N)/1000","v":0},{"$f":"SUMIF(raw_planning_reserve_margin!$A:$A,AJ192,raw_planning_reserve_margin!$N:$N)/1000","v":0},{"$f":"SUMIF(raw_planning_reserve_margin!$A:$A,AK192,raw_planning_reserve_margin!$N:$N)/1000","v":0},{"$f":"SUMIF(raw_planning_reserve_margin!$A:$A,AL192,raw_planning_reserve_margin!$N:$N)/1000","v":0},{"$f":"SUMIF(raw_planning_reserve_margin!$A:$A,AM192,raw_planning_reserve_margin!$N:$N)/1000","v":0},{"$f":"SUMIF(raw_planning_reserve_margin!$A:$A,AN192,raw_planning_reserve_margin!$N:$N)/1000","v":0},{"$f":"SUMIF(raw_planning_reserve_margin!$A:$A,AO192,raw_planning_reserve_margin!$N:$N)/1000","v":0},{"$f":"SUMIF(raw_planning_reserve_margin!$A:$A,AP192,raw_planning_reserve_margin!$N:$N)/1000","v":0},{"$f":"SUMIF(raw_planning_reserve_margin!$A:$A,AQ192,raw_planning_reserve_margin!$N:$N)/1000","v":0},{"$f":"SUMIF(raw_planning_reserve_margin!$A:$A,AR192,raw_planning_reserve_margin!$N:$N)/1000","v":0},{"$f":"SUMIF(raw_planning_reserve_margin!$A:$A,AS192,raw_planning_reserve_margin!$N:$N)/1000","v":0}]
[]
[null,null,null,null,null,null,"Need for New Transmission"]
[]
[null,null,null,null,null,null,null,"Unit",null,2015,{"$f":"J202+1","v":2016},2017,2018,2019,2020,2021,2022,2023,2024,2025,2026,2027,2028,2029,2030,2031,2032,2033,2034,2035,2036,2037,2038,2039,2040,2041,2042,2043,2044,2045,2046,2047,2048,2049,2050]
[null,null,null,null,null,null,"New Transmission for Selected Resources (within CAISO)","MW",null,{"$f":"'Portfolio Analytics'!E$754","v":0},{"$f":"'Portfolio Analytics'!F$754","v":0},{"$f":"'Portfolio Analytics'!G$754","v":0},{"$f":"'Portfolio Analytics'!H$754","v":0},{"$f":"'Portfolio Analytics'!I$754","v":0},{"$f":"'Portfolio Analytics'!J$754","v":0},{"$f":"'Portfolio Analytics'!K$754","v":0},{"$f":"'Portfolio Analytics'!L$754","v":0},{"$f":"'Portfolio Analytics'!M$754","v":100},{"$f":"'Portfolio Analytics'!N$754","v":187.78},{"$f":"'Portfolio Analytics'!O$754","v":0},{"$f":"'Portfolio Analytics'!P$754","v":1686.78},{"$f":"'Portfolio Analytics'!Q$754","v":0},{"$f":"'Portfolio Analytics'!R$754","v":0},{"$f":"'Portfolio Analytics'!S$754","v":0},{"$f":"'Portfolio Analytics'!T$754","v":17109.559999999998},{"$f":"'Portfolio Analytics'!U$754","v":0},{"$f":"'Portfolio Analytics'!V$754","v":0},{"$f":"'Portfolio Analytics'!W$754","v":0},{"$f":"'Portfolio Analytics'!X$754","v":0},{"$f":"'Portfolio Analytics'!Y$754","v":0},{"$f":"'Portfolio Analytics'!Z$754","v":0},{"$f":"'Portfolio Analytics'!AA$754","v":0},{"$f":"'Portfolio Analytics'!AB$754","v":0},{"$f":"'Portfolio Analytics'!AC$754","v":0},{"$f":"'Portfolio Analytics'!AD$754","v":0},{"$f":"'Portfolio Analytics'!AE$754","v":0},{"$f":"'Portfolio Analytics'!AF$754","v":0},{"$f":"'Portfolio Analytics'!AG$754","v":0},{"$f":"'Portfolio Analytics'!AH$754","v":0},{"$f":"'Portfolio Analytics'!AI$754","v":190966.67},{"$f":"'Portfolio Analytics'!AJ$754","v":0},{"$f":"'Portfolio Analytics'!AK$754","v":0},{"$f":"'Portfolio Analytics'!AL$754","v":0},{"$f":"'Portfolio Analytics'!AM$754","v":0},{"$f":"'Portfolio Analytics'!AN$754","v":0}]
[null,null,null,null,null,null,"New Transmission Cost (within CAISO)","$MM",null,{"$f":"'Portfolio Analytics'!E$755","v":0},{"$f":"'Portfolio Analytics'!F$755","v":0},{"$f":"'Portfolio Analytics'!G$755","v":0},{"$f":"'Portfolio Analytics'!H$755","v":0},{"$f":"'Portfolio Analytics'!I$755","v":0},{"$f":"'Portfolio Analytics'!J$755","v":0},{"$f":"'Portfolio Analytics'!K$755","v":0},{"$f":"'Portfolio Analytics'!L$755","v":0},{"$f":"'Portfolio Analytics'!M$755","v":1.002894},{"$f":"'Portfolio Analytics'!N$755","v":2.6597072700000002},{"$f":"'Portfolio Analytics'!O$755","v":0},{"$f":"'Portfolio Analytics'!P$755","v":17.1505765},{"$f":"'Portfolio Analytics'!Q$755","v":0},{"$f":"'Portfolio Analytics'!R$755","v":0},{"$f":"'Portfolio Analytics'!S$755","v":0},{"$f":"'Portfolio Analytics'!T$755","v":242.20949116},{"$f":"'Portfolio Analytics'!U$755","v":0},{"$f":"'Portfolio Analytics'!V$755","v":0},{"$f":"'Portfolio Analytics'!W$755","v":0},{"$f":"'Portfolio Analytics'!X$755","v":0},{"$f":"'Portfolio Analytics'!Y$755","v":0},{"$f":"'Portfolio Analytics'!Z$755","v":0},{"$f":"'Portfolio Analytics'!AA$755","v":0},{"$f":"'Portfolio Analytics'!AB$755","v":0},{"$f":"'Portfolio Analytics'!AC$755","v":0},{"$f":"'Portfolio Analytics'!AD$755","v":0},{"$f":"'Portfolio Analytics'!AE$755","v":0},{"$f":"'Portfolio Analytics'!AF$755","v":0},{"$f":"'Portfolio Analytics'!AG$755","v":0},{"$f":"'Portfolio Analytics'!AH$755","v":0},{"$f":"'Portfolio Analytics'!AI$755","v":3947.7815677599992},{"$f":"'Portfolio Analytics'!AJ$755","v":0},{"$f":"'Portfolio Analytics'!AK$755","v":0},{"$f":"'Portfolio Analytics'!AL$755","v":0},{"$f":"'Portfolio Analytics'!AM$755","v":0},{"$f":"'Portfolio Analytics'!AN$755","v":0}]
[]
[]
[]
[]
[null,null,null,null,null,null,"Annual Weights  (for levelization)"]
[]
[null,null,null,null,null,null,null,"Unit",null,2015,{"$f":"J211+1","v":2016},2017,2018,2019,2020,2021,2022,2023,2024,2025,2026,2027,2028,2029,2030,2031,2032,2033,2034,2035,2036,2037,2038,2039,2040,2041,2042,2043,2044,2045,2046,2047,2048,2049,2050]
[null,null,null,null,null,null,"Annual Weights",null,null,{"$f":"IFERROR(INDEX(raw_transmission_costs!$D:$D,MATCH(J211,raw_transmission_costs!$A:$A,0)),0)","v":0},{"$f":"IFERROR(INDEX(raw_transmission_costs!$D:$D,MATCH(K211,raw_transmission_costs!$A:$A,0)),0)","v":0},{"$f":"IFERROR(INDEX(raw_transmission_costs!$D:$D,MATCH(L211,raw_transmission_costs!$A:$A,0)),0)","v":0},{"$f":"IFERROR(INDEX(raw_transmission_costs!$D:$D,MATCH(M211,raw_transmission_costs!$A:$A,0)),0)","v":0},{"$f":"IFERROR(INDEX(raw_transmission_costs!$D:$D,MATCH(N211,raw_transmission_costs!$A:$A,0)),0)","v":0},{"$f":"IFERROR(INDEX(raw_transmission_costs!$D:$D,MATCH(O211,raw_transmission_costs!$A:$A,0)),0)","v":1},{"$f":"IFERROR(INDEX(raw_transmission_costs!$D:$D,MATCH(P211,raw_transmission_costs!$A:$A,0)),0)","v":0.952380952380952},{"$f":"IFERROR(INDEX(raw_transmission_costs!$D:$D,MATCH(Q211,raw_transmission_costs!$A:$A,0)),0)","v":0.90702947845805004},{"$f":"IFERROR(INDEX(raw_transmission_costs!$D:$D,MATCH(R211,raw_transmission_costs!$A:$A,0)),0)","v":0.86383759853147601},{"$f":"IFERROR(INDEX(raw_transmission_costs!$D:$D,MATCH(S211,raw_transmission_costs!$A:$A,0)),0)","v":1.2144655580261099},{"$f":"IFERROR(INDEX(raw_transmission_costs!$D:$D,MATCH(T211,raw_transmission_costs!$A:$A,0)),0)","v":0},{"$f":"IFERROR(INDEX(raw_transmission_costs!$D:$D,MATCH(U211,raw_transmission_costs!$A:$A,0)),0)","v":2.1705613875372398},{"$f":"IFERROR(INDEX(raw_transmission_costs!$D:$D,MATCH(V211,raw_transmission_costs!$A:$A,0)),0)","v":0},{"$f":"IFERROR(INDEX(raw_transmission_costs!$D:$D,MATCH(W211,raw_transmission_costs!$A:$A,0)),0)","v":0},{"$f":"IFERROR(INDEX(raw_transmission_costs!$D:$D,MATCH(X211,raw_transmission_costs!$A:$A,0)),0)","v":0},{"$f":"IFERROR(INDEX(raw_transmission_costs!$D:$D,MATCH(Y211,raw_transmission_costs!$A:$A,0)),0)","v":4.9706315334622504},{"$f":"IFERROR(INDEX(raw_transmission_costs!$D:$D,MATCH(Z211,raw_transmission_costs!$A:$A,0)),0)","v":0},{"$f":"IFERROR(INDEX(raw_transmission_costs!$D:$D,MATCH(AA211,raw_transmission_costs!$A:$A,0)),0)","v":0},{"$f":"IFERROR(INDEX(raw_transmission_costs!$D:$D,MATCH(AB211,raw_transmission_costs!$A:$A,0)),0)","v":0},{"$f":"IFERROR(INDEX(raw_transmission_costs!$D:$D,MATCH(AC211,raw_transmission_costs!$A:$A,0)),0)","v":0},{"$f":"IFERROR(INDEX(raw_transmission_costs!$D:$D,MATCH(AD211,raw_transmission_costs!$A:$A,0)),0)","v":0},{"$f":"IFERROR(INDEX(raw_transmission_costs!$D:$D,MATCH(AE211,raw_transmission_costs!$A:$A,0)),0)","v":0},{"$f":"IFERROR(INDEX(raw_transmission_costs!$D:$D,MATCH(AF211,raw_transmission_costs!$A:$A,0)),0)","v":0},{"$f":"IFERROR(INDEX(raw_transmission_costs!$D:$D,MATCH(AG211,raw_transmission_costs!$A:$A,0)),0)","v":0},{"$f":"IFERROR(INDEX(raw_transmission_costs!$D:$D,MATCH(AH211,raw_transmission_costs!$A:$A,0)),0)","v":0},{"$f":"IFERROR(INDEX(raw_transmission_costs!$D:$D,MATCH(AI211,raw_transmission_costs!$A:$A,0)),0)","v":0},{"$f":"IFERROR(INDEX(raw_transmission_costs!$D:$D,MATCH(AJ211,raw_transmission_costs!$A:$A,0)),0)","v":0},{"$f":"IFERROR(INDEX(raw_transmission_costs!$D:$D,MATCH(AK211,raw_transmission_costs!$A:$A,0)),0)","v":0},{"$f":"IFERROR(INDEX(raw_transmission_costs!$D:$D,MATCH(AL211,raw_transmission_costs!$A:$A,0)),0)","v":0},{"$f":"IFERROR(INDEX(raw_transmission_costs!$D:$D,MATCH(AM211,raw_transmission_costs!$A:$A,0)),0)","v":0},{"$f":"IFERROR(INDEX(raw_transmission_costs!$D:$D,MATCH(AN211,raw_transmission_costs!$A:$A,0)),0)","v":6.6951633132812498},{"$f":"IFERROR(INDEX(raw_transmission_costs!$D:$D,MATCH(AO211,raw_transmission_costs!$A:$A,0)),0)","v":0},{"$f":"IFERROR(INDEX(raw_transmission_costs!$D:$D,MATCH(AP211,raw_transmission_costs!$A:$A,0)),0)","v":0},{"$f":"IFERROR(INDEX(raw_transmission_costs!$D:$D,MATCH(AQ211,raw_transmission_costs!$A:$A,0)),0)","v":0},{"$f":"IFERROR(INDEX(raw_transmission_costs!$D:$D,MATCH(AR211,raw_transmission_costs!$A:$A,0)),0)","v":0},{"$f":"IFERROR(INDEX(raw_transmission_costs!$D:$D,MATCH(AS211,raw_transmission_costs!$A:$A,0)),0)","v":0}]

{"sheet":"Portfolio Analytics","index":1,"n_rows":1187,"n_cols":40,"rows_kept":1187,"cut":false,"hidden":false,"merged":[]}
[]
[null,"Portfolio Analytics"]
[null,"Note: All costs are expressed in 2016 dollars"]
[]
[null,"Energy Storage Summary"]
[]
[null,null,"Planned","Unit",2015,{"$f":"E7+1","v":2016},2017,2018,2019,2020,2021,2022,2023,2024,2025,2026,2027,2028,2029,2030,{"$f":"T7+1","v":2031},2032,2033,2034,2035,2036,2037,2038,2039,2040,2041,2042,2043,2044,2045,2046,2047,2048,2049,2050]
[null,null,"Pumped_Hydro","MW",{"$f":"INDEX(E$131:E$158,MATCH($C8,$C$131:$C$158,0))","v":0},0,0,0,0,1599.2,1599.2,1599.2,1599.2,1599.2,{"$f":"INDEX(O$131:O$158,MATCH($C8,$C$131:$C$158,0))","v":0},1599.2,0,0,0,1599.2,0,0,0,0,{"$f":"INDEX(Y$131:Y$158,MATCH($C8,$C$131:$C$158,0))","v":0},0,0,0,0,0,0,0,0,0,{"$f":"INDEX(AI$131:AI$158,MATCH($C8,$C$131:$C$158,0))","v":1599.2},0,0,0,0,0]
[null,null,"Li_Battery","MW",0,0,0,0,0,971.34999999999991,1321.8499999999995,1321.8499999999995,1543.5200000000004,1617.4499999999998,0,1617.4500000000007,0,0,0,1617.4500000000007,0,0,0,0,0,0,0,0,0,0,0,0,0,0,0,0,0,0,0,0]
[null,null,"BTM_Li_Battery","MW",0,0,0,0,0,92.14,92.14,92.14,92.14,92.14,0,92.14,0,0,0,92.14,0,0,0,0,0,0,0,0,0,0,0,0,0,0,92.14,0,0,0,0,0]
[null,null,"Flow_Battery","MW",0,0,0,0,0,0,0,0,0,0,0,0,0,0,0,0,0,0,0,0,0,0,0,0,0,0,0,0,0,0,0,0,0,0,0,0]
[null,null,"Pumped_Hydro","MWh",{"$f":"SUMIFS(raw_storage_build!$F:$F,raw_storage_build!$A:$A,E$7,raw_storage_build!$E:$E,$C12,raw_storage_build!$D:$D,mainzone)","v":0},{"$f":"SUMIFS(raw_storage_build!$F:$F,raw_storage_build!$A:$A,F$7,raw_storage_build!$E:$E,$C12,raw_storage_build!$D:$D,mainzone)","v":0},{"$f":"SUMIFS(raw_storage_build!$F:$F,raw_storage_build!$A:$A,G$7,raw_storage_build!$E:$E,$C12,raw_storage_build!$D:$D,mainzone)","v":0},{"$f":"SUMIFS(raw_storage_build!$F:$F,raw_storage_build!$A:$A,H$7,raw_storage_build!$E:$E,$C12,raw_storage_build!$D:$D,mainzone)","v":0},{"$f":"SUMIFS(raw_storage_build!$F:$F,raw_storage_build!$A:$A,I$7,raw_storage_build!$E:$E,$C12,raw_storage_build!$D:$D,mainzone)","v":0},{"$f":"SUMIFS(raw_storage_build!$F:$F,raw_storage_build!$A:$A,J$7,raw_storage_build!$E:$E,$C12,raw_storage_build!$D:$D,mainzone)","v":252821.12},{"$f":"SUMIFS(raw_storage_build!$F:$F,raw_storage_build!$A:$A,K$7,raw_storage_build!$E:$E,$C12,raw_storage_build!$D:$D,mainzone)","v":252821.12},{"$f":"SUMIFS(raw_storage_build!$F:$F,raw_storage_build!$A:$A,L$7,raw_storage_build!$E:$E,$C12,raw_storage_build!$D:$D,mainzone)","v":252821.12},{"$f":"SUMIFS(raw_storage_build!$F:$F,raw_storage_build!$A:$A,M$7,raw_storage_build!$E:$E,$C12,raw_storage_build!$D:$D,mainzone)","v":252821.12},{"$f":"SUMIFS(raw_storage_build!$F:$F,raw_storage_build!$A:$A,N$7,raw_storage_build!$E:$E,$C12,raw_storage_build!$D:$D,mainzone)","v":252821.12},{"$f":"SUMIFS(raw_storage_build!$F:$F,raw_storage_build!$A:$A,O$7,raw_storage_build!$E:$E,$C12,raw_storage_build!$D:$D,mainzone)","v":0},{"$f":"SUMIFS(raw_storage_build!$F:$F,raw_storage_build!$A:$A,P$7,raw_storage_build!$E:$E,$C12,raw_storage_build!$D:$D,mainzone)","v":252821.12},{"$f":"SUMIFS(raw_storage_build!$F:$F,raw_storage_build!$A:$A,Q$7,raw_storage_build!$E:$E,$C12,raw_storage_build!$D:$D,mainzone)","v":0},{"$f":"SUMIFS(raw_storage_build!$F:$F,raw_storage_build!$A:$A,R$7,raw_storage_build!$E:$E,$C12,raw_storage_build!$D:$D,mainzone)","v":0},{"$f":"SUMIFS(raw_storage_build!$F:$F,raw_storage_build!$A:$A,S$7,raw_storage_build!$E:$E,$C12,raw_storage_build!$D:$D,mainzone)","v":0},{"$f":"SUMIFS(raw_storage_build!$F:$F,raw_storage_build!$A:$A,T$7,raw_storage_build!$E:$E,$C12,raw_storage_build!$D:$D,mainzone)","v":252821.12},{"$f":"SUMIFS(raw_storage_build!$F:$F,raw_storage_build!$A:$A,U$7,raw_storage_build!$E:$E,$C12,raw_storage_build!$D:$D,mainzone)","v":0},{"$f":"SUMIFS(raw_storage_build!$F:$F,raw_storage_build!$A:$A,V$7,raw_storage_build!$E:$E,$C12,raw_storage_build!$D:$D,mainzone)","v":0},{"$f":"SUMIFS(raw_storage_build!$F:$F,raw_storage_build!$A:$A,W$7,raw_storage_build!$E:$E,$C12,raw_storage_build!$D:$D,mainzone)","v":0},{"$f":"SUMIFS(raw_storage_build!$F:$F,raw_storage_build!$A:$A,X$7,raw_storage_build!$E:$E,$C12,raw_storage_build!$D:$D,mainzone)","v":0},{"$f":"SUMIFS(raw_storage_build!$F:$F,raw_storage_build!$A:$A,Y$7,raw_storage_build!$E:$E,$C12,raw_storage_build!$D:$D,mainzone)","v":0},{"$f":"SUMIFS(raw_storage_build!$F:$F,raw_storage_build!$A:$A,Z$7,raw_storage_build!$E:$E,$C12,raw_storage_build!$D:$D,mainzone)","v":0},{"$f":"SUMIFS(raw_storage_build!$F:$F,raw_storage_build!$A:$A,AA$7,raw_storage_build!$E:$E,$C12,raw_storage_build!$D:$D,mainzone)","v":0},{"$f":"SUMIFS(raw_storage_build!$F:$F,raw_storage_build!$A:$A,AB$7,raw_storage_build!$E:$E,$C12,raw_storage_build!$D:$D,mainzone)","v":0},{"$f":"SUMIFS(raw_storage_build!$F:$F,raw_storage_build!$A:$A,AC$7,raw_storage_build!$E:$E,$C12,raw_storage_build!$D:$D,mainzone)","v":0},{"$f":"SUMIFS(raw_storage_build!$F:$F,raw_storage_build!$A:$A,AD$7,raw_storage_build!$E:$E,$C12,raw_storage_build!$D:$D,mainzone)","v":0},{"$f":"SUMIFS(raw_storage_build!$F:$F,raw_storage_build!$A:$A,AE$7,raw_storage_build!$E:$E,$C12,raw_storage_build!$D:$D,mainzone)","v":0},{"$f":"SUMIFS(raw_storage_build!$F:$F,raw_storage_build!$A:$A,AF$7,raw_storage_build!$E:$E,$C12,raw_storage_build!$D:$D,mainzone)","v":0},{"$f":"SUMIFS(raw_storage_build!$F:$F,raw_storage_build!$A:$A,AG$7,raw_storage_build!$E:$E,$C12,raw_storage_build!$D:$D,mainzone)","v":0},{"$f":"SUMIFS(raw_storage_build!$F:$F,raw_storage_build!$A:$A,AH$7,raw_storage_build!$E:$E,$C12,raw_storage_build!$D:$D,mainzone)","v":0},{"$f":"SUMIFS(raw_storage_build!$F:$F,raw_storage_build!$A:$A,AI$7,raw_storage_build!$E:$E,$C12,raw_storage_build!$D:$D,mainzone)","v":252821.12},{"$f":"SUMIFS(raw_storage_build!$F:$F,raw_storage_build!$A:$A,AJ$7,raw_storage_build!$E:$E,$C12,raw_storage_build!$D:$D,mainzone)","v":0},{"$f":"SUMIFS(raw_storage_build!$F:$F,raw_storage_build!$A:$A,AK$7,raw_storage_build!$E:$E,$C12,raw_storage_build!$D:$D,mainzone)","v":0},{"$f":"SUMIFS(raw_storage_build!$F:$F,raw_storage_build!$A:$A,AL$7,raw_storage_build!$E:$E,$C12,raw_storage_build!$D:$D,mainzone)","v":0},{"$f":"SUMIFS(raw_storage_build!$F:$F,raw_storage_build!$A:$A,AM$7,raw_storage_build!$E:$E,$C12,raw_storage_build!$D:$D,mainzone)","v":0},{"$f":"SUMIFS(raw_storage_build!$F:$F,raw_storage_build!$A:$A,AN$7,raw_storage_build!$E:$E,$C12,raw_storage_build!$D:$D,mainzone)","v":0}]
[null,null,"Li_Battery","MWh",{"$f":"SUMIFS(raw_storage_build!$F:$F,raw_storage_build!$A:$A,E$7,raw_storage_build!$E:$E,$C13,raw_storage_build!$D:$D,mainzone)+E9*1","v":0},{"$f":"SUMIFS(raw_storage_build!$F:$F,raw_storage_build!$A:$A,F$7,raw_storage_build!$E:$E,$C13,raw_storage_build!$D:$D,mainzone)+F9*1","v":0},{"$f":"SUMIFS(raw_storage_build!$F:$F,raw_storage_build!$A:$A,G$7,raw_storage_build!$E:$E,$C13,raw_storage_build!$D:$D,mainzone)+G9*1","v":0},{"$f":"SUMIFS(raw_storage_build!$F:$F,raw_storage_build!$A:$A,H$7,raw_storage_build!$E:$E,$C13,raw_storage_build!$D:$D,mainzone)+H9*1","v":0},{"$f":"SUMIFS(raw_storage_build!$F:$F,raw_storage_build!$A:$A,I$7,raw_storage_build!$E:$E,$C13,raw_storage_build!$D:$D,mainzone)+I9*1","v":0},{"$f":"SUMIFS(raw_storage_build!$F:$F,raw_storage_build!$A:$A,J$7,raw_storage_build!$E:$E,$C13,raw_storage_build!$D:$D,mainzone)+J9*1","v":3885.4},{"$f":"SUMIFS(raw_storage_build!$F:$F,raw_storage_build!$A:$A,K$7,raw_storage_build!$E:$E,$C13,raw_storage_build!$D:$D,mainzone)+K9*1","v":5287.4},{"$f":"SUMIFS(raw_storage_build!$F:$F,raw_storage_build!$A:$A,L$7,raw_storage_build!$E:$E,$C13,raw_storage_build!$D:$D,mainzone)+L9*1","v":5582.4},{"$f":"SUMIFS(raw_storage_build!$F:$F,raw_storage_build!$A:$A,M$7,raw_storage_build!$E:$E,$C13,raw_storage_build!$D:$D,mainzone)+M9*1","v":6174.0700000000006},{"$f":"SUMIFS(raw_storage_build!$F:$F,raw_storage_build!$A:$A,N$7,raw_storage_build!$E:$E,$C13,raw_storage_build!$D:$D,mainzone)+N9*1","v":6469.8},{"$f":"SUMIFS(raw_storage_build!$F:$F,raw_storage_build!$A:$A,O$7,raw_storage_build!$E:$E,$C13,raw_storage_build!$D:$D,mainzone)+O9*1","v":0},{"$f":"SUMIFS(raw_storage_build!$F:$F,raw_storage_build!$A:$A,P$7,raw_storage_build!$E:$E,$C13,raw_storage_build!$D:$D,mainzone)+P9*1","v":6469.8000000000011},{"$f":"SUMIFS(raw_storage_build!$F:$F,raw_storage_build!$A:$A,Q$7,raw_storage_build!$E:$E,$C13,raw_storage_build!$D:$D,mainzone)+Q9*1","v":0},{"$f":"SUMIFS(raw_storage_build!$F:$F,raw_storage_build!$A:$A,R$7,raw_storage_build!$E:$E,$C13,raw_storage_build!$D:$D,mainzone)+R9*1","v":0},{"$f":"SUMIFS(raw_storage_build!$F:$F,raw_storage_build!$A:$A,S$7,raw_storage_build!$E:$E,$C13,raw_storage_build!$D:$D,mainzone)+S9*1","v":0},{"$f":"SUMIFS(raw_storage_build!$F:$F,raw_storage_build!$A:$A,T$7,raw_storage_build!$E:$E,$C13,raw_storage_build!$D:$D,mainzone)+T9*1","v":6469.8000000000011},{"$f":"SUMIFS(raw_storage_build!$F:$F,raw_storage_build!$A:$A,U$7,raw_storage_build!$E:$E,$C13,raw_storage_build!$D:$D,mainzone)+U9*1","v":0},{"$f":"SUMIFS(raw_storage_build!$F:$F,raw_storage_build!$A:$A,V$7,raw_storage_build!$E:$E,$C13,raw_storage_build!$D:$D,mainzone)+V9*1","v":0},{"$f":"SUMIFS(raw_storage_build!$F:$F,raw_storage_build!$A:$A,W$7,raw_storage_build!$E:$E,$C13,raw_storage_build!$D:$D,mainzone)+W9*1","v":0},{"$f":"SUMIFS(raw_storage_build!$F:$F,raw_storage_build!$A:$A,X$7,raw_storage_build!$E:$E,$C13,raw_storage_build!$D:$D,mainzone)+X9*1","v":0},{"$f":"SUMIFS(raw_storage_build!$F:$F,raw_storage_build!$A:$A,Y$7,raw_storage_build!$E:$E,$C13,raw_storage_build!$D:$D,mainzone)+Y9*1","v":0},{"$f":"SUMIFS(raw_storage_build!$F:$F,raw_storage_build!$A:$A,Z$7,raw_storage_build!$E:$E,$C13,raw_storage_build!$D:$D,mainzone)+Z9*1","v":0},{"$f":"SUMIFS(raw_storage_build!$F:$F,raw_storage_build!$A:$A,AA$7,raw_storage_build!$E:$E,$C13,raw_storage_build!$D:$D,mainzone)+AA9*1","v":0},{"$f":"SUMIFS(raw_storage_build!$F:$F,raw_storage_build!$A:$A,AB$7,raw_storage_build!$E:$E,$C13,raw_storage_build!$D:$D,mainzone)+AB9*1","v":0},{"$f":"SUMIFS(raw_storage_build!$F:$F,raw_storage_build!$A:$A,AC$7,raw_storage_build!$E:$E,$C13,raw_storage_build!$D:$D,mainzone)+AC9*1","v":0},{"$f":"SUMIFS(raw_storage_build!$F:$F,raw_storage_build!$A:$A,AD$7,raw_storage_build!$E:$E,$C13,raw_storage_build!$D:$D,mainzone)+AD9*1","v":0},{"$f":"SUMIFS(raw_storage_build!$F:$F,raw_storage_build!$A:$A,AE$7,raw_storage_build!$E:$E,$C13,raw_storage_build!$D:$D,mainzone)+AE9*1","v":0},{"$f":"SUMIFS(raw_storage_build!$F:$F,raw_storage_build!$A:$A,AF$7,raw_storage_build!$E:$E,$C13,raw_storage_build!$D:$D,mainzone)+AF9*1","v":0},{"$f":"SUMIFS(raw_storage_build!$F:$F,raw_storage_build!$A:$A,AG$7,raw_storage_build!$E:$E,$C13,raw_storage_build!$D:$D,mainzone)+AG9*1","v":0},{"$f":"SUMIFS(raw_storage_build!$F:$F,raw_storage_build!$A:$A,AH$7,raw_storage_build!$E:$E,$C13,raw_storage_build!$D:$D,mainzone)+AH9*1","v":0},{"$f":"SUMIFS(raw_storage_build!$F:$F,raw_storage_build!$A:$A,AI$7,raw_storage_build!$E:$E,$C13,raw_storage_build!$D:$D,mainzone)+AI9*1","v":4852.3500000000004},{"$f":"SUMIFS(raw_storage_build!$F:$F,raw_storage_build!$A:$A,AJ$7,raw_storage_build!$E:$E,$C13,raw_storage_build!$D:$D,mainzone)+AJ9*1","v":0},{"$f":"SUMIFS(raw_storage_build!$F:$F,raw_storage_build!$A:$A,AK$7,raw_storage_build!$E:$E,$C13,raw_storage_build!$D:$D,mainzone)+AK9*1","v":0},{"$f":"SUMIFS(raw_storage_build!$F:$F,raw_storage_build!$A:$A,AL$7,raw_storage_build!$E:$E,$C13,raw_storage_build!$D:$D,mainzone)+AL9*1","v":0},{"$f":"SUMIFS(raw_storage_build!$F:$F,raw_storage_build!$A:$A,AM$7,raw_storage_build!$E:$E,$C13,raw_storage_build!$D:$D,mainzone)+AM9*1","v":0},{"$f":"SUMIFS(raw_storage_build!$F:$F,raw_storage_build!$A:$A,AN$7,raw_storage_build!$E:$E,$C13,raw_storage_build!$D:$D,mainzone)+AN9*1","v":0}]
[null,null,"BTM_Li_Battery","MWh",{"$f":"SUMIFS(raw_storage_build!$F:$F,raw_storage_build!$A:$A,E$7,raw_storage_build!$E:$E,$C14,raw_storage_build!$D:$D,mainzone)","v":0},{"$f":"SUMIFS(raw_storage_build!$F:$F,raw_storage_build!$A:$A,F$7,raw_storage_build!$E:$E,$C14,raw_storage_build!$D:$D,mainzone)","v":0},{"$f":"SUMIFS(raw_storage_build!$F:$F,raw_storage_build!$A:$A,G$7,raw_storage_build!$E:$E,$C14,raw_storage_build!$D:$D,mainzone)","v":0},{"$f":"SUMIFS(raw_storage_build!$F:$F,raw_storage_build!$A:$A,H$7,raw_storage_build!$E:$E,$C14,raw_storage_build!$D:$D,mainzone)","v":0},{"$f":"SUMIFS(raw_storage_build!$F:$F,raw_storage_build!$A:$A,I$7,raw_storage_build!$E:$E,$C14,raw_storage_build!$D:$D,mainzone)","v":0},{"$f":"SUMIFS(raw_storage_build!$F:$F,raw_storage_build!$A:$A,J$7,raw_storage_build!$E:$E,$C14,raw_storage_build!$D:$D,mainzone)","v":230.35},{"$f":"SUMIFS(raw_storage_build!$F:$F,raw_storage_build!$A:$A,K$7,raw_storage_build!$E:$E,$C14,raw_storage_build!$D:$D,mainzone)","v":230.35},{"$f":"SUMIFS(raw_storage_build!$F:$F,raw_storage_build!$A:$A,L$7,raw_storage_build!$E:$E,$C14,raw_storage_build!$D:$D,mainzone)","v":230.35},{"$f":"SUMIFS(raw_storage_build!$F:$F,raw_storage_build!$A:$A,M$7,raw_storage_build!$E:$E,$C14,raw_storage_build!$D:$D,mainzone)","v":230.35},{"$f":"SUMIFS(raw_storage_build!$F:$F,raw_storage_build!$A:$A,N$7,raw_storage_build!$E:$E,$C14,raw_storage_build!$D:$D,mainzone)","v":230.35},{"$f":"SUMIFS(raw_storage_build!$F:$F,raw_storage_build!$A:$A,O$7,raw_storage_build!$E:$E,$C14,raw_storage_build!$D:$D,mainzone)","v":0},{"$f":"SUMIFS(raw_storage_build!$F:$F,raw_storage_build!$A:$A,P$7,raw_storage_build!$E:$E,$C14,raw_storage_build!$D:$D,mainzone)","v":230.35},{"$f":"SUMIFS(raw_storage_build!$F:$F,raw_storage_build!$A:$A,Q$7,raw_storage_build!$E:$E,$C14,raw_storage_build!$D:$D,mainzone)","v":0},{"$f":"SUMIFS(raw_storage_build!$F:$F,raw_storage_build!$A:$A,R$7,raw_storage_build!$E:$E,$C14,raw_storage_build!$D:$D,mainzone)","v":0},{"$f":"SUMIFS(raw_storage_build!$F:$F,raw_storage_build!$A:$A,S$7,raw_storage_build!$E:$E,$C14,raw_storage_build!$D:$D,mainzone)","v":0},{"$f":"SUMIFS(raw_storage_build!$F:$F,raw_storage_build!$A:$A,T$7,raw_storage_build!$E:$E,$C14,raw_storage_build!$D:$D,mainzone)","v":230.35},{"$f":"SUMIFS(raw_storage_build!$F:$F,raw_storage_build!$A:$A,U$7,raw_storage_build!$E:$E,$C14,raw_storage_build!$D:$D,mainzone)","v":0},{"$f":"SUMIFS(raw_storage_build!$F:$F,raw_storage_build!$A:$A,V$7,raw_storage_build!$E:$E,$C14,raw_storage_build!$D:$D,mainzone)","v":0},{"$f":"SUMIFS(raw_storage_build!$F:$F,raw_storage_build!$A:$A,W$7,raw_storage_build!$E:$E,$C14,raw_storage_build!$D:$D,mainzone)","v":0},{"$f":"SUMIFS(raw_storage_build!$F:$F,raw_storage_build!$A:$A,X$7,raw_storage_build!$E:$E,$C14,raw_storage_build!$D:$D,mainzone)","v":0},{"$f":"SUMIFS(raw_storage_build!$F:$F,raw_storage_build!$A:$A,Y$7,raw_storage_build!$E:$E,$C14,raw_storage_build!$D:$D,mainzone)","v":0},{"$f":"SUMIFS(raw_storage_build!$F:$F,raw_storage_build!$A:$A,Z$7,raw_storage_build!$E:$E,$C14,raw_storage_build!$D:$D,mainzone)","v":0},{"$f":"SUMIFS(raw_storage_build!$F:$F,raw_storage_build!$A:$A,AA$7,raw_storage_build!$E:$E,$C14,raw_storage_build!$D:$D,mainzone)","v":0},{"$f":"SUMIFS(raw_storage_build!$F:$F,raw_storage_build!$A:$A,AB$7,raw_storage_build!$E:$E,$C14,raw_storage_build!$D:$D,mainzone)","v":0},{"$f":"SUMIFS(raw_storage_build!$F:$F,raw_storage_build!$A:$A,AC$7,raw_storage_build!$E:$E,$C14,raw_storage_build!$D:$D,mainzone)","v":0},{"$f":"SUMIFS(raw_storage_build!$F:$F,raw_storage_build!$A:$A,AD$7,raw_storage_build!$E:$E,$C14,raw_storage_build!$D:$D,mainzone)","v":0},{"$f":"SUMIFS(raw_storage_build!$F:$F,raw_storage_build!$A:$A,AE$7,raw_storage_build!$E:$E,$C14,raw_storage_build!$D:$D,mainzone)","v":0},{"$f":"SUMIFS(raw_storage_build!$F:$F,raw_storage_build!$A:$A,AF$7,raw_storage_build!$E:$E,$C14,raw_storage_build!$D:$D,mainzone)","v":0},{"$f":"SUMIFS(raw_storage_build!$F:$F,raw_storage_build!$A:$A,AG$7,raw_storage_build!$E:$E,$C14,raw_storage_build!$D:$D,mainzone)","v":0},{"$f":"SUMIFS(raw_storage_build!$F:$F,raw_storage_build!$A:$A,AH$7,raw_storage_build!$E:$E,$C14,raw_storage_build!$D:$D,mainzone)","v":0},{"$f":"SUMIFS(raw_storage_build!$F:$F,raw_storage_build!$A:$A,AI$7,raw_storage_build!$E:$E,$C14,raw_storage_build!$D:$D,mainzone)","v":230.35},{"$f":"SUMIFS(raw_storage_build!$F:$F,raw_storage_build!$A:$A,AJ$7,raw_storage_build!$E:$E,$C14,raw_storage_build!$D:$D,mainzone)","v":0},{"$f":"SUMIFS(raw_storage_build!$F:$F,raw_storage_build!$A:$A,AK$7,raw_storage_build!$E:$E,$C14,raw_storage_build!$D:$D,mainzone)","v":0},{"$f":"SUMIFS(raw_storage_build!$F:$F,raw_storage_build!$A:$A,AL$7,raw_storage_build!$E:$E,$C14,raw_storage_build!$D:$D,mainzone)","v":0},{"$f":"SUMIFS(raw_storage_build!$F:$F,raw_storage_build!$A:$A,AM$7,raw_storage_build!$E:$E,$C14,raw_storage_build!$D:$D,mainzone)","v":0},{"$f":"SUMIFS(raw_storage_build!$F:$F,raw_storage_build!$A:$A,AN$7,raw_storage_build!$E:$E,$C14,raw_storage_build!$D:$D,mainzone)","v":0}]
[null,null,"Flow_Battery","MWh",{"$f":"SUMIFS(raw_storage_build!$F:$F,raw_storage_build!$A:$A,E$7,raw_storage_build!$E:$E,$C15,raw_storage_build!$D:$D,mainzone)","v":0},{"$f":"SUMIFS(raw_storage_build!$F:$F,raw_storage_build!$A:$A,F$7,raw_storage_build!$E:$E,$C15,raw_storage_build!$D:$D,mainzone)","v":0},{"$f":"SUMIFS(raw_storage_build!$F:$F,raw_storage_build!$A:$A,G$7,raw_storage_build!$E:$E,$C15,raw_storage_build!$D:$D,mainzone)","v":0},{"$f":"SUMIFS(raw_storage_build!$F:$F,raw_storage_build!$A:$A,H$7,raw_storage_build!$E:$E,$C15,raw_storage_build!$D:$D,mainzone)","v":0},{"$f":"SUMIFS(raw_storage_build!$F:$F,raw_storage_build!$A:$A,I$7,raw_storage_build!$E:$E,$C15,raw_storage_build!$D:$D,mainzone)","v":0},{"$f":"SUMIFS(raw_storage_build!$F:$F,raw_storage_build!$A:$A,J$7,raw_storage_build!$E:$E,$C15,raw_storage_build!$D:$D,mainzone)","v":0},{"$f":"SUMIFS(raw_storage_build!$F:$F,raw_storage_build!$A:$A,K$7,raw_storage_build!$E:$E,$C15,raw_storage_build!$D:$D,mainzone)","v":0},{"$f":"SUMIFS(raw_storage_build!$F:$F,raw_storage_build!$A:$A,L$7,raw_storage_build!$E:$E,$C15,raw_storage_build!$D:$D,mainzone)","v":0},{"$f":"SUMIFS(raw_storage_build!$F:$F,raw_storage_build!$A:$A,M$7,raw_storage_build!$E:$E,$C15,raw_storage_build!$D:$D,mainzone)","v":0},{"$f":"SUMIFS(raw_storage_build!$F:$F,raw_storage_build!$A:$A,N$7,raw_storage_build!$E:$E,$C15,raw_storage_build!$D:$D,mainzone)","v":0},{"$f":"SUMIFS(raw_storage_build!$F:$F,raw_storage_build!$A:$A,O$7,raw_storage_build!$E:$E,$C15,raw_storage_build!$D:$D,mainzone)","v":0},{"$f":"SUMIFS(raw_storage_build!$F:$F,raw_storage_build!$A:$A,P$7,raw_storage_build!$E:$E,$C15,raw_storage_build!$D:$D,mainzone)","v":0},{"$f":"SUMIFS(raw_storage_build!$F:$F,raw_storage_build!$A:$A,Q$7,raw_storage_build!$E:$E,$C15,raw_storage_build!$D:$D,mainzone)","v":0},{"$f":"SUMIFS(raw_storage_build!$F:$F,raw_storage_build!$A:$A,R$7,raw_storage_build!$E:$E,$C15,raw_storage_build!$D:$D,mainzone)","v":0},{"$f":"SUMIFS(raw_storage_build!$F:$F,raw_storage_build!$A:$A,S$7,raw_storage_build!$E:$E,$C15,raw_storage_build!$D:$D,mainzone)","v":0},{"$f":"SUMIFS(raw_storage_build!$F:$F,raw_storage_build!$A:$A,T$7,raw_storage_build!$E:$E,$C15,raw_storage_build!$D:$D,mainzone)","v":0},{"$f":"SUMIFS(raw_storage_build!$F:$F,raw_storage_build!$A:$A,U$7,raw_storage_build!$E:$E,$C15,raw_storage_build!$D:$D,mainzone)","v":0},{"$f":"SUMIFS(raw_storage_build!$F:$F,raw_storage_build!$A:$A,V$7,raw_storage_build!$E:$E,$C15,raw_storage_build!$D:$D,mainzone)","v":0},{"$f":"SUMIFS(raw_storage_build!$F:$F,raw_storage_build!$A:$A,W$7,raw_storage_build!$E:$E,$C15,raw_storage_build!$D:$D,mainzone)","v":0},{"$f":"SUMIFS(raw_storage_build!$F:$F,raw_storage_build!$A:$A,X$7,raw_storage_build!$E:$E,$C15,raw_storage_build!$D:$D,mainzone)","v":0},{"$f":"SUMIFS(raw_storage_build!$F:$F,raw_storage_build!$A:$A,Y$7,raw_storage_build!$E:$E,$C15,raw_storage_build!$D:$D,mainzone)","v":0},{"$f":"SUMIFS(raw_storage_build!$F:$F,raw_storage_build!$A:$A,Z$7,raw_storage_build!$E:$E,$C15,raw_storage_build!$D:$D,mainzone)","v":0},{"$f":"SUMIFS(raw_storage_build!$F:$F,raw_storage_build!$A:$A,AA$7,raw_storage_build!$E:$E,$C15,raw_storage_build!$D:$D,mainzone)","v":0},{"$f":"SUMIFS(raw_storage_build!$F:$F,raw_storage_build!$A:$A,AB$7,raw_storage_build!$E:$E,$C15,raw_storage_build!$D:$D,mainzone)","v":0},{"$f":"SUMIFS(raw_storage_build!$F:$F,raw_storage_build!$A:$A,AC$7,raw_storage_build!$E:$E,$C15,raw_storage_build!$D:$D,mainzone)","v":0},{"$f":"SUMIFS(raw_storage_build!$F:$F,raw_storage_build!$A:$A,AD$7,raw_storage_build!$E:$E,$C15,raw_storage_build!$D:$D,mainzone)","v":0},{"$f":"SUMIFS(raw_storage_build!$F:$F,raw_storage_build!$A:$A,AE$7,raw_storage_build!$E:$E,$C15,raw_storage_build!$D:$D,mainzone)","v":0},{"$f":"SUMIFS(raw_storage_build!$F:$F,raw_storage_build!$A:$A,AF$7,raw_storage_build!$E:$E,$C15,raw_storage_build!$D:$D,mainzone)","v":0},{"$f":"SUMIFS(raw_storage_build!$F:$F,raw_storage_build!$A:$A,AG$7,raw_storage_build!$E:$E,$C15,raw_storage_build!$D:$D,mainzone)","v":0},{"$f":"SUMIFS(raw_storage_build!$F:$F,raw_storage_build!$A:$A,AH$7,raw_storage_build!$E:$E,$C15,raw_storage_build!$D:$D,mainzone)","v":0},{"$f":"SUMIFS(raw_storage_build!$F:$F,raw_storage_build!$A:$A,AI$7,raw_storage_build!$E:$E,$C15,raw_storage_build!$D:$D,mainzone)","v":0},{"$f":"SUMIFS(raw_storage_build!$F:$F,raw_storage_build!$A:$A,AJ$7,raw_storage_build!$E:$E,$C15,raw_storage_build!$D:$D,mainzone)","v":0},{"$f":"SUMIFS(raw_storage_build!$F:$F,raw_storage_build!$A:$A,AK$7,raw_storage_build!$E:$E,$C15,raw_storage_build!$D:$D,mainzone)","v":0},{"$f":"SUMIFS(raw_storage_build!$F:$F,raw_storage_build!$A:$A,AL$7,raw_storage_build!$E:$E,$C15,raw_storage_build!$D:$D,mainzone)","v":0},{"$f":"SUMIFS(raw_storage_build!$F:$F,raw_storage_build!$A:$A,AM$7,raw_storage_build!$E:$E,$C15,raw_storage_build!$D:$D,mainzone)","v":0},{"$f":"SUMIFS(raw_storage_build!$F:$F,raw_storage_build!$A:$A,AN$7,raw_storage_build!$E:$E,$C15,raw_storage_build!$D:$D,mainzone)","v":0}]
[null,null,"Pumped_Hydro Duration","hr",{"$f":"IFERROR(E12/E8,0)","v":0},0,0,0,0,158.09224612306153,158.09224612306153,158.09224612306153,158.09224612306153,158.09224612306153,0,158.09224612306153,0,0,0,158.09224612306153,{"$f":"IFERROR(U12/U8,0)","v":0},0,0,0,0,0,0,0,0,0,0,0,0,0,158.09224612306153,0,0,0,0,0]
[null,null,"Li_Battery Duration","hr",{"$f":"IFERROR(E13/E9,0)","v":0},0,0,0,0,4.0000000000000009,4.0000000000000018,4.2231720694481236,3.9999935213019584,4.0000000000000009,0,3.9999999999999987,0,0,0,3.9999999999999987,{"$f":"IFERROR(U13/U9,0)","v":0},0,0,0,0,0,0,0,0,0,0,0,0,0,0,0,0,0,0,0]
[null,null,"BTM_Li_Battery","hr",0,0,0,0,0,2.5,2.5,2.5,2.5,2.5,0,2.5,0,0,0,2.5,{"$f":"IFERROR(U14/U10,0)","v":0},0,0,0,0,0,0,0,0,0,0,0,0,0,2.5,0,0,0,0,0]
[null,null,"Flow_Battery Duration","hr",{"$f":"IFERROR(E15/E11,0)","v":0},0,0,0,0,0,0,0,0,0,0,0,0,0,0,0,{"$f":"IFERROR(U15/U11,0)","v":0},0,0,0,0,0,0,0,0,0,0,0,0,0,0,0,0,0,0,0]
[null,null,"Optimized Build - Incl. Local Storage","Unit"]
[null,null,"Pumped_Hydro","MW",{"$f":"SUMIFS(raw_resource_build!$H:$H,raw_resource_build!$E:$E,$C21,raw_resource_build!$A:$A,E$7,raw_resource_build!$C:$C,mainzone)-SUMIFS(raw_resource_build!$Z:$Z,raw_resource_build!$E:$E,$C21,raw_resource_build!$A:$A,E$7,raw_resource_build!$C:$C,mainzone)","v":0},{"$f":"MAX(E21,SUMIFS(raw_resource_build!$H:$H,raw_resource_build!$E:$E,$C21,raw_resource_build!$A:$A,F$7,raw_resource_build!$C:$C,mainzone)-SUMIFS(raw_resource_build!$Z:$Z,raw_resource_build!$E:$E,$C21,raw_resource_build!$A:$A,F$7,raw_resource_build!$C:$C,mainzone))","v":0},{"$f":"MAX(F21,SUMIFS(raw_resource_build!$H:$H,raw_resource_build!$E:$E,$C21,raw_resource_build!$A:$A,G$7,raw_resource_build!$C:$C,mainzone)-SUMIFS(raw_resource_build!$Z:$Z,raw_resource_build!$E:$E,$C21,raw_resource_build!$A:$A,G$7,raw_resource_build!$C:$C,mainzone))","v":0},{"$f":"MAX(G21,SUMIFS(raw_resource_build!$H:$H,raw_resource_build!$E:$E,$C21,raw_resource_build!$A:$A,H$7,raw_resource_build!$C:$C,mainzone)-SUMIFS(raw_resource_build!$Z:$Z,raw_resource_build!$E:$E,$C21,raw_resource_build!$A:$A,H$7,raw_resource_build!$C:$C,mainzone))","v":0},{"$f":"MAX(H21,SUMIFS(raw_resource_build!$H:$H,raw_resource_build!$E:$E,$C21,raw_resource_build!$A:$A,I$7,raw_resource_build!$C:$C,mainzone)-SUMIFS(raw_resource_build!$Z:$Z,raw_resource_build!$E:$E,$C21,raw_resource_build!$A:$A,I$7,raw_resource_build!$C:$C,mainzone))","v":0},{"$f":"MAX(I21,SUMIFS(raw_resource_build!$H:$H,raw_resource_build!$E:$E,$C21,raw_resource_build!$A:$A,J$7,raw_resource_build!$C:$C,mainzone)-SUMIFS(raw_resource_build!$Z:$Z,raw_resource_build!$E:$E,$C21,raw_resource_build!$A:$A,J$7,raw_resource_build!$C:$C,mainzone))","v":0},{"$f":"MAX(J21,SUMIFS(raw_resource_build!$H:$H,raw_resource_build!$E:$E,$C21,raw_resource_build!$A:$A,K$7,raw_resource_build!$C:$C,mainzone)-SUMIFS(raw_resource_build!$Z:$Z,raw_resource_build!$E:$E,$C21,raw_resource_build!$A:$A,K$7,raw_resource_build!$C:$C,mainzone))","v":0},{"$f":"MAX(K21,SUMIFS(raw_resource_build!$H:$H,raw_resource_build!$E:$E,$C21,raw_resource_build!$A:$A,L$7,raw_resource_build!$C:$C,mainzone)-SUMIFS(raw_resource_build!$Z:$Z,raw_resource_build!$E:$E,$C21,raw_resource_build!$A:$A,L$7,raw_resource_build!$C:$C,mainzone))","v":0},{"$f":"MAX(L21,SUMIFS(raw_resource_build!$H:$H,raw_resource_build!$E:$E,$C21,raw_resource_build!$A:$A,M$7,raw_resource_build!$C:$C,mainzone)-SUMIFS(raw_resource_build!$Z:$Z,raw_resource_build!$E:$E,$C21,raw_resource_build!$A:$A,M$7,raw_resource_build!$C:$C,mainzone))","v":0},{"$f":"MAX(M21,SUMIFS(raw_resource_build!$H:$H,raw_resource_build!$E:$E,$C21,raw_resource_build!$A:$A,N$7,raw_resource_build!$C:$C,mainzone)-SUMIFS(raw_resource_build!$Z:$Z,raw_resource_build!$E:$E,$C21,raw_resource_build!$A:$A,N$7,raw_resource_build!$C:$C,mainzone))","v":0},{"$f":"MAX(N21,SUMIFS(raw_resource_build!$H:$H,raw_resource_build!$E:$E,$C21,raw_resource_build!$A:$A,O$7,raw_resource_build!$C:$C,mainzone)-SUMIFS(raw_resource_build!$Z:$Z,raw_resource_build!$E:$E,$C21,raw_resource_build!$A:$A,O$7,raw_resource_build!$C:$C,mainzone))","v":0},{"$f":"MAX(O21,SUMIFS(raw_resource_build!$H:$H,raw_resource_build!$E:$E,$C21,raw_resource_build!$A:$A,P$7,raw_resource_build!$C:$C,mainzone)-SUMIFS(raw_resource_build!$Z:$Z,raw_resource_build!$E:$E,$C21,raw_resource_build!$A:$A,P$7,raw_resource_build!$C:$C,mainzone))","v":1986.47},{"$f":"MAX(P21,SUMIFS(raw_resource_build!$H:$H,raw_resource_build!$E:$E,$C21,raw_resource_build!$A:$A,Q$7,raw_resource_build!$C:$C,mainzone)-SUMIFS(raw_resource_build!$Z:$Z,raw_resource_build!$E:$E,$C21,raw_resource_build!$A:$A,Q$7,raw_resource_build!$C:$C,mainzone))","v":1986.47},{"$f":"MAX(Q21,SUMIFS(raw_resource_build!$H:$H,raw_resource_build!$E:$E,$C21,raw_resource_build!$A:$A,R$7,raw_resource_build!$C:$C,mainzone)-SUMIFS(raw_resource_build!$Z:$Z,raw_resource_build!$E:$E,$C21,raw_resource_build!$A:$A,R$7,raw_resource_build!$C:$C,mainzone))","v":1986.47},{"$f":"MAX(R21,SUMIFS(raw_resource_build!$H:$H,raw_resource_build!$E:$E,$C21,raw_resource_build!$A:$A,S$7,raw_resource_build!$C:$C,mainzone)-SUMIFS(raw_resource_build!$Z:$Z,raw_resource_build!$E:$E,$C21,raw_resource_build!$A:$A,S$7,raw_resource_build!$C:$C,mainzone))","v":1986.47},{"$f":"MAX(S21,SUMIFS(raw_resource_build!$H:$H,raw_resource_build!$E:$E,$C21,raw_resource_build!$A:$A,T$7,raw_resource_build!$C:$C,mainzone)-SUMIFS(raw_resource_build!$Z:$Z,raw_resource_build!$E:$E,$C21,raw_resource_build!$A:$A,T$7,raw_resource_build!$C:$C,mainzone))","v":1986.47},{"$f":"MAX(T21,SUMIFS(raw_resource_build!$H:$H,raw_resource_build!$E:$E,$C21,raw_resource_build!$A:$A,U$7,raw_resource_build!$C:$C,mainzone)-SUMIFS(raw_resource_build!$Z:$Z,raw_resource_build!$E:$E,$C21,raw_resource_build!$A:$A,U$7,raw_resource_build!$C:$C,mainzone))","v":1986.47},{"$f":"MAX(U21,SUMIFS(raw_resource_build!$H:$H,raw_resource_build!$E:$E,$C21,raw_resource_build!$A:$A,V$7,raw_resource_build!$C:$C,mainzone)-SUMIFS(raw_resource_build!$Z:$Z,raw_resource_build!$E:$E,$C21,raw_resource_build!$A:$A,V$7,raw_resource_build!$C:$C,mainzone))","v":1986.47},{"$f":"MAX(V21,SUMIFS(raw_resource_build!$H:$H,raw_resource_build!$E:$E,$C21,raw_resource_build!$A:$A,W$7,raw_resource_build!$C:$C,mainzone)-SUMIFS(raw_resource_build!$Z:$Z,raw_resource_build!$E:$E,$C21,raw_resource_build!$A:$A,W$7,raw_resource_build!$C:$C,mainzone))","v":1986.47},{"$f":"MAX(W21,SUMIFS(raw_resource_build!$H:$H,raw_resource_build!$E:$E,$C21,raw_resource_build!$A:$A,X$7,raw_resource_build!$C:$C,mainzone)-SUMIFS(raw_resource_build!$Z:$Z,raw_resource_build!$E:$E,$C21,raw_resource_build!$A:$A,X$7,raw_resource_build!$C:$C,mainzone))","v":1986.47},{"$f":"MAX(X21,SUMIFS(raw_resource_build!$H:$H,raw_resource_build!$E:$E,$C21,raw_resource_build!$A:$A,Y$7,raw_resource_build!$C:$C,mainzone)-SUMIFS(raw_resource_build!$Z:$Z,raw_resource_build!$E:$E,$C21,raw_resource_build!$A:$A,Y$7,raw_resource_build!$C:$C,mainzone))","v":1986.47},{"$f":"MAX(Y21,SUMIFS(raw_resource_build!$H:$H,raw_resource_build!$E:$E,$C21,raw_resource_build!$A:$A,Z$7,raw_resource_build!$C:$C,mainzone)-SUMIFS(raw_resource_build!$Z:$Z,raw_resource_build!$E:$E,$C21,raw_resource_build!$A:$A,Z$7,raw_resource_build!$C:$C,mainzone))","v":1986.47},{"$f":"MAX(Z21,SUMIFS(raw_resource_build!$H:$H,raw_resource_build!$E:$E,$C21,raw_resource_build!$A:$A,AA$7,raw_resource_build!$C:$C,mainzone)-SUMIFS(raw_resource_build!$Z:$Z,raw_resource_build!$E:$E,$C21,raw_resource_build!$A:$A,AA$7,raw_resource_build!$C:$C,mainzone))","v":1986.47},{"$f":"MAX(AA21,SUMIFS(raw_resource_build!$H:$H,raw_resource_build!$E:$E,$C21,raw_resource_build!$A:$A,AB$7,raw_resource_build!$C:$C,mainzone)-SUMIFS(raw_resource_build!$Z:$Z,raw_resource_build!$E:$E,$C21,raw_resource_build!$A:$A,AB$7,raw_resource_build!$C:$C,mainzone))","v":1986.47},{"$f":"MAX(AB21,SUMIFS(raw_resource_build!$H:$H,raw_resource_build!$E:$E,$C21,raw_resource_build!$A:$A,AC$7,raw_resource_build!$C:$C,mainzone)-SUMIFS(raw_resource_build!$Z:$Z,raw_resource_build!$E:$E,$C21,raw_resource_build!$A:$A,AC$7,raw_resource_build!$C:$C,mainzone))","v":1986.47},{"$f":"MAX(AC21,SUMIFS(raw_resource_build!$H:$H,raw_resource_build!$E:$E,$C21,raw_resource_build!$A:$A,AD$7,raw_resource_build!$C:$C,mainzone)-SUMIFS(raw_resource_build!$Z:$Z,raw_resource_build!$E:$E,$C21,raw_resource_build!$A:$A,AD$7,raw_resource_build!$C:$C,mainzone))","v":1986.47},{"$f":"MAX(AD21,SUMIFS(raw_resource_build!$H:$H,raw_resource_build!$E:$E,$C21,raw_resource_build!$A:$A,AE$7,raw_resource_build!$C:$C,mainzone)-SUMIFS(raw_resource_build!$Z:$Z,raw_resource_build!$E:$E,$C21,raw_resource_build!$A:$A,AE$7,raw_resource_build!$C:$C,mainzone))","v":1986.47},{"$f":"MAX(AE21,SUMIFS(raw_resource_build!$H:$H,raw_resource_build!$E:$E,$C21,raw_resource_build!$A:$A,AF$7,raw_resource_build!$C:$C,mainzone)-SUMIFS(raw_resource_build!$Z:$Z,raw_resource_build!$E:$E,$C21,raw_resource_build!$A:$A,AF$7,raw_resource_build!$C:$C,mainzone))","v":1986.47},{"$f":"MAX(AF21,SUMIFS(raw_resource_build!$H:$H,raw_resource_build!$E:$E,$C21,raw_resource_build!$A:$A,AG$7,raw_resource_build!$C:$C,mainzone)-SUMIFS(raw_resource_build!$Z:$Z,raw_resource_build!$E:$E,$C21,raw_resource_build!$A:$A,AG$7,raw_resource_build!$C:$C,mainzone))","v":1986.47},{"$f":"MAX(AG21,SUMIFS(raw_resource_build!$H:$H,raw_resource_build!$E:$E,$C21,raw_resource_build!$A:$A,AH$7,raw_resource_build!$C:$C,mainzone)-SUMIFS(raw_resource_build!$Z:$Z,raw_resource_build!$E:$E,$C21,raw_resource_build!$A:$A,AH$7,raw_resource_build!$C:$C,mainzone))","v":1986.47},{"$f":"MAX(AH21,SUMIFS(raw_resource_build!$H:$H,raw_resource_build!$E:$E,$C21,raw_resource_build!$A:$A,AI$7,raw_resource_build!$C:$C,mainzone)-SUMIFS(raw_resource_build!$Z:$Z,raw_resource_build!$E:$E,$C21,raw_resource_build!$A:$A,AI$7,raw_resource_build!$C:$C,mainzone))","v":1986.47},{"$f":"MAX(AI21,SUMIFS(raw_resource_build!$H:$H,raw_resource_build!$E:$E,$C21,raw_resource_build!$A:$A,AJ$7,raw_resource_build!$C:$C,mainzone)-SUMIFS(raw_resource_build!$Z:$Z,raw_resource_build!$E:$E,$C21,raw_resource_build!$A:$A,AJ$7,raw_resource_build!$C:$C,mainzone))","v":1986.47},{"$f":"MAX(AJ21,SUMIFS(raw_resource_build!$H:$H,raw_resource_build!$E:$E,$C21,raw_resource_build!$A:$A,AK$7,raw_resource_build!$C:$C,mainzone)-SUMIFS(raw_resource_build!$Z:$Z,raw_resource_build!$E:$E,$C21,raw_resource_build!$A:$A,AK$7,raw_resource_build!$C:$C,mainzone))","v":1986.47},{"$f":"MAX(AK21,SUMIFS(raw_resource_build!$H:$H,raw_resource_build!$E:$E,$C21,raw_resource_build!$A:$A,AL$7,raw_resource_build!$C:$C,mainzone)-SUMIFS(raw_resource_build!$Z:$Z,raw_resource_build!$E:$E,$C21,raw_resource_build!$A:$A,AL$7,raw_resource_build!$C:$C,mainzone))","v":1986.47},{"$f":"MAX(AL21,SUMIFS(raw_resource_build!$H:$H,raw_resource_build!$E:$E,$C21,raw_resource_build!$A:$A,AM$7,raw_resource_build!$C:$C,mainzone)-SUMIFS(raw_resource_build!$Z:$Z,raw_resource_build!$E:$E,$C21,raw_resource_build!$A:$A,AM$7,raw_resource_build!$C:$C,mainzone))","v":1986.47},{"$f":"MAX(AM21,SUMIFS(raw_resource_build!$H:$H,raw_resource_build!$E:$E,$C21,raw_resource_build!$A:$A,AN$7,raw_resource_build!$C:$C,mainzone)-SUMIFS(raw_resource_build!$Z:$Z,raw_resource_build!$E:$E,$C21,raw_resource_build!$A:$A,AN$7,raw_resource_build!$C:$C,mainzone))","v":1986.47}]
[null,null,"Li_Battery","MW",{"$f":"SUMIFS(raw_resource_build!$H:$H,raw_resource_build!$E:$E,$C22,raw_resource_build!$A:$A,E$7,raw_resource_build!$C:$C,mainzone)-SUMIFS(raw_resource_build!$Z:$Z,raw_resource_build!$E:$E,$C22,raw_resource_build!$A:$A,E$7,raw_resource_build!$C:$C,mainzone)","v":0},{"$f":"MAX(E22,SUMIFS(raw_resource_build!$H:$H,raw_resource_build!$E:$E,$C22,raw_resource_build!$A:$A,F$7,raw_resource_build!$C:$C,mainzone)-SUMIFS(raw_resource_build!$Z:$Z,raw_resource_build!$E:$E,$C22,raw_resource_build!$A:$A,F$7,raw_resource_build!$C:$C,mainzone))","v":0},{"$f":"MAX(F22,SUMIFS(raw_resource_build!$H:$H,raw_resource_build!$E:$E,$C22,raw_resource_build!$A:$A,G$7,raw_resource_build!$C:$C,mainzone)-SUMIFS(raw_resource_build!$Z:$Z,raw_resource_build!$E:$E,$C22,raw_resource_build!$A:$A,G$7,raw_resource_build!$C:$C,mainzone))","v":0},{"$f":"MAX(G22,SUMIFS(raw_resource_build!$H:$H,raw_resource_build!$E:$E,$C22,raw_resource_build!$A:$A,H$7,raw_resource_build!$C:$C,mainzone)-SUMIFS(raw_resource_build!$Z:$Z,raw_resource_build!$E:$E,$C22,raw_resource_build!$A:$A,H$7,raw_resource_build!$C:$C,mainzone))","v":0},{"$f":"MAX(H22,SUMIFS(raw_resource_build!$H:$H,raw_resource_build!$E:$E,$C22,raw_resource_build!$A:$A,I$7,raw_resource_build!$C:$C,mainzone)-SUMIFS(raw_resource_build!$Z:$Z,raw_resource_build!$E:$E,$C22,raw_resource_build!$A:$A,I$7,raw_resource_build!$C:$C,mainzone))","v":0},{"$f":"MAX(I22,SUMIFS(raw_resource_build!$H:$H,raw_resource_build!$E:$E,$C22,raw_resource_build!$A:$A,J$7,raw_resource_build!$C:$C,mainzone)-SUMIFS(raw_resource_build!$Z:$Z,raw_resource_build!$E:$E,$C22,raw_resource_build!$A:$A,J$7,raw_resource_build!$C:$C,mainzone))","v":2446.75},{"$f":"MAX(J22,SUMIFS(raw_resource_build!$H:$H,raw_resource_build!$E:$E,$C22,raw_resource_build!$A:$A,K$7,raw_resource_build!$C:$C,mainzone)-SUMIFS(raw_resource_build!$Z:$Z,raw_resource_build!$E:$E,$C22,raw_resource_build!$A:$A,K$7,raw_resource_build!$C:$C,mainzone))","v":4726.1100000000006},{"$f":"MAX(K22,SUMIFS(raw_resource_build!$H:$H,raw_resource_build!$E:$E,$C22,raw_resource_build!$A:$A,L$7,raw_resource_build!$C:$C,mainzone)-SUMIFS(raw_resource_build!$Z:$Z,raw_resource_build!$E:$E,$C22,raw_resource_build!$A:$A,L$7,raw_resource_build!$C:$C,mainzone))","v":4726.1100000000006},{"$f":"MAX(L22,SUMIFS(raw_resource_build!$H:$H,raw_resource_build!$E:$E,$C22,raw_resource_build!$A:$A,M$7,raw_resource_build!$C:$C,mainzone)-SUMIFS(raw_resource_build!$Z:$Z,raw_resource_build!$E:$E,$C22,raw_resource_build!$A:$A,M$7,raw_resource_build!$C:$C,mainzone))","v":4892.49},{"$f":"MAX(M22,SUMIFS(raw_resource_build!$H:$H,raw_resource_build!$E:$E,$C22,raw_resource_build!$A:$A,N$7,raw_resource_build!$C:$C,mainzone)-SUMIFS(raw_resource_build!$Z:$Z,raw_resource_build!$E:$E,$C22,raw_resource_build!$A:$A,N$7,raw_resource_build!$C:$C,mainzone))","v":6610.8},{"$f":"MAX(N22,SUMIFS(raw_resource_build!$H:$H,raw_resource_build!$E:$E,$C22,raw_resource_build!$A:$A,O$7,raw_resource_build!$C:$C,mainzone)-SUMIFS(raw_resource_build!$Z:$Z,raw_resource_build!$E:$E,$C22,raw_resource_build!$A:$A,O$7,raw_resource_build!$C:$C,mainzone))","v":6610.8},{"$f":"MAX(O22,SUMIFS(raw_resource_build!$H:$H,raw_resource_build!$E:$E,$C22,raw_resource_build!$A:$A,P$7,raw_resource_build!$C:$C,mainzone)-SUMIFS(raw_resource_build!$Z:$Z,raw_resource_build!$E:$E,$C22,raw_resource_build!$A:$A,P$7,raw_resource_build!$C:$C,mainzone))","v":9835.3299999999981},{"$f":"MAX(P22,SUMIFS(raw_resource_build!$H:$H,raw_resource_build!$E:$E,$C22,raw_resource_build!$A:$A,Q$7,raw_resource_build!$C:$C,mainzone)-SUMIFS(raw_resource_build!$Z:$Z,raw_resource_build!$E:$E,$C22,raw_resource_build!$A:$A,Q$7,raw_resource_build!$C:$C,mainzone))","v":9835.3299999999981},{"$f":"MAX(Q22,SUMIFS(raw_resource_build!$H:$H,raw_resource_build!$E:$E,$C22,raw_resource_build!$A:$A,R$7,raw_resource_build!$C:$C,mainzone)-SUMIFS(raw_resource_build!$Z:$Z,raw_resource_build!$E:$E,$C22,raw_resource_build!$A:$A,R$7,raw_resource_build!$C:$C,mainzone))","v":9835.3299999999981},{"$f":"MAX(R22,SUMIFS(raw_resource_build!$H:$H,raw_resource_build!$E:$E,$C22,raw_resource_build!$A:$A,S$7,raw_resource_build!$C:$C,mainzone)-SUMIFS(raw_resource_build!$Z:$Z,raw_resource_build!$E:$E,$C22,raw_resource_build!$A:$A,S$7,raw_resource_build!$C:$C,mainzone))","v":9835.3299999999981},{"$f":"MAX(S22,SUMIFS(raw_resource_build!$H:$H,raw_resource_build!$E:$E,$C22,raw_resource_build!$A:$A,T$7,raw_resource_build!$C:$C,mainzone)-SUMIFS(raw_resource_build!$Z:$Z,raw_resource_build!$E:$E,$C22,raw_resource_build!$A:$A,T$7,raw_resource_build!$C:$C,mainzone))","v":12428.339999999998},{"$f":"MAX(T22,SUMIFS(raw_resource_build!$H:$H,raw_resource_build!$E:$E,$C22,raw_resource_build!$A:$A,U$7,raw_resource_build!$C:$C,mainzone)-SUMIFS(raw_resource_build!$Z:$Z,raw_resource_build!$E:$E,$C22,raw_resource_build!$A:$A,U$7,raw_resource_build!$C:$C,mainzone))","v":12428.339999999998},{"$f":"MAX(U22,SUMIFS(raw_resource_build!$H:$H,raw_resource_build!$E:$E,$C22,raw_resource_build!$A:$A,V$7,raw_resource_build!$C:$C,mainzone)-SUMIFS(raw_resource_build!$Z:$Z,raw_resource_build!$E:$E,$C22,raw_resource_build!$A:$A,V$7,raw_resource_build!$C:$C,mainzone))","v":12428.339999999998},{"$f":"MAX(V22,SUMIFS(raw_resource_build!$H:$H,raw_resource_build!$E:$E,$C22,raw_resource_build!$A:$A,W$7,raw_resource_build!$C:$C,mainzone)-SUMIFS(raw_resource_build!$Z:$Z,raw_resource_build!$E:$E,$C22,raw_resource_build!$A:$A,W$7,raw_resource_build!$C:$C,mainzone))","v":12428.339999999998},{"$f":"MAX(W22,SUMIFS(raw_resource_build!$H:$H,raw_resource_build!$E:$E,$C22,raw_resource_build!$A:$A,X$7,raw_resource_build!$C:$C,mainzone)-SUMIFS(raw_resource_build!$Z:$Z,raw_resource_build!$E:$E,$C22,raw_resource_build!$A:$A,X$7,raw_resource_build!$C:$C,mainzone))","v":12428.339999999998},{"$f":"MAX(X22,SUMIFS(raw_resource_build!$H:$H,raw_resource_build!$E:$E,$C22,raw_resource_build!$A:$A,Y$7,raw_resource_build!$C:$C,mainzone)-SUMIFS(raw_resource_build!$Z:$Z,raw_resource_build!$E:$E,$C22,raw_resource_build!$A:$A,Y$7,raw_resource_build!$C:$C,mainzone))","v":12428.339999999998},{"$f":"MAX(Y22,SUMIFS(raw_resource_build!$H:$H,raw_resource_build!$E:$E,$C22,raw_resource_build!$A:$A,Z$7,raw_resource_build!$C:$C,mainzone)-SUMIFS(raw_resource_build!$Z:$Z,raw_resource_build!$E:$E,$C22,raw_resource_build!$A:$A,Z$7,raw_resource_build!$C:$C,mainzone))","v":12428.339999999998},{"$f":"MAX(Z22,SUMIFS(raw_resource_build!$H:$H,raw_resource_build!$E:$E,$C22,raw_resource_build!$A:$A,AA$7,raw_resource_build!$C:$C,mainzone)-SUMIFS(raw_resource_build!$Z:$Z,raw_resource_build!$E:$E,$C22,raw_resource_build!$A:$A,AA$7,raw_resource_build!$C:$C,mainzone))","v":12428.339999999998},{"$f":"MAX(AA22,SUMIFS(raw_resource_build!$H:$H,raw_resource_build!$E:$E,$C22,raw_resource_build!$A:$A,AB$7,raw_resource_build!$C:$C,mainzone)-SUMIFS(raw_resource_build!$Z:$Z,raw_resource_build!$E:$E,$C22,raw_resource_build!$A:$A,AB$7,raw_resource_build!$C:$C,mainzone))","v":12428.339999999998},{"$f":"MAX(AB22,SUMIFS(raw_resource_build!$H:$H,raw_resource_build!$E:$E,$C22,raw_resource_build!$A:$A,AC$7,raw_resource_build!$C:$C,mainzone)-SUMIFS(raw_resource_build!$Z:$Z,raw_resource_build!$E:$E,$C22,raw_resource_build!$A:$A,AC$7,raw_resource_build!$C:$C,mainzone))","v":12428.339999999998},{"$f":"MAX(AC22,SUMIFS(raw_resource_build!$H:$H,raw_resource_build!$E:$E,$C22,raw_resource_build!$A:$A,AD$7,raw_resource_build!$C:$C,mainzone)-SUMIFS(raw_resource_build!$Z:$Z,raw_resource_build!$E:$E,$C22,raw_resource_build!$A:$A,AD$7,raw_resource_build!$C:$C,mainzone))","v":12428.339999999998},{"$f":"MAX(AD22,SUMIFS(raw_resource_build!$H:$H,raw_resource_build!$E:$E,$C22,raw_resource_build!$A:$A,AE$7,raw_resource_build!$C:$C,mainzone)-SUMIFS(raw_resource_build!$Z:$Z,raw_resource_build!$E:$E,$C22,raw_resource_build!$A:$A,AE$7,raw_resource_build!$C:$C,mainzone))","v":12428.339999999998},{"$f":"MAX(AE22,SUMIFS(raw_resource_build!$H:$H,raw_resource_build!$E:$E,$C22,raw_resource_build!$A:$A,AF$7,raw_resource_build!$C:$C,mainzone)-SUMIFS(raw_resource_build!$Z:$Z,raw_resource_build!$E:$E,$C22,raw_resource_build!$A:$A,AF$7,raw_resource_build!$C:$C,mainzone))","v":12428.339999999998},{"$f":"MAX(AF22,SUMIFS(raw_resource_build!$H:$H,raw_resource_build!$E:$E,$C22,raw_resource_build!$A:$A,AG$7,raw_resource_build!$C:$C,mainzone)-SUMIFS(raw_resource_build!$Z:$Z,raw_resource_build!$E:$E,$C22,raw_resource_build!$A:$A,AG$7,raw_resource_build!$C:$C,mainzone))","v":12428.339999999998},{"$f":"MAX(AG22,SUMIFS(raw_resource_build!$H:$H,raw_resource_build!$E:$E,$C22,raw_resource_build!$A:$A,AH$7,raw_resource_build!$C:$C,mainzone)-SUMIFS(raw_resource_build!$Z:$Z,raw_resource_build!$E:$E,$C22,raw_resource_build!$A:$A,AH$7,raw_resource_build!$C:$C,mainzone))","v":12428.339999999998},{"$f":"MAX(AH22,SUMIFS(raw_resource_build!$H:$H,raw_resource_build!$E:$E,$C22,raw_resource_build!$A:$A,AI$7,raw_resource_build!$C:$C,mainzone)-SUMIFS(raw_resource_build!$Z:$Z,raw_resource_build!$E:$E,$C22,raw_resource_build!$A:$A,AI$7,raw_resource_build!$C:$C,mainzone))","v":59216.11},{"$f":"MAX(AI22,SUMIFS(raw_resource_build!$H:$H,raw_resource_build!$E:$E,$C22,raw_resource_build!$A:$A,AJ$7,raw_resource_build!$C:$C,mainzone)-SUMIFS(raw_resource_build!$Z:$Z,raw_resource_build!$E:$E,$C22,raw_resource_build!$A:$A,AJ$7,raw_resource_build!$C:$C,mainzone))","v":59216.11},{"$f":"MAX(AJ22,SUMIFS(raw_resource_build!$H:$H,raw_resource_build!$E:$E,$C22,raw_resource_build!$A:$A,AK$7,raw_resource_build!$C:$C,mainzone)-SUMIFS(raw_resource_build!$Z:$Z,raw_resource_build!$E:$E,$C22,raw_resource_build!$A:$A,AK$7,raw_resource_build!$C:$C,mainzone))","v":59216.11},{"$f":"MAX(AK22,SUMIFS(raw_resource_build!$H:$H,raw_resource_build!$E:$E,$C22,raw_resource_build!$A:$A,AL$7,raw_resource_build!$C:$C,mainzone)-SUMIFS(raw_resource_build!$Z:$Z,raw_resource_build!$E:$E,$C22,raw_resource_build!$A:$A,AL$7,raw_resource_build!$C:$C,mainzone))","v":59216.11},{"$f":"MAX(AL22,SUMIFS(raw_resource_build!$H:$H,raw_resource_build!$E:$E,$C22,raw_resource_build!$A:$A,AM$7,raw_resource_build!$C:$C,mainzone)-SUMIFS(raw_resource_build!$Z:$Z,raw_resource_build!$E:$E,$C22,raw_resource_build!$A:$A,AM$7,raw_resource_build!$C:$C,mainzone))","v":59216.11},{"$f":"MAX(AM22,SUMIFS(raw_resource_build!$H:$H,raw_resource_build!$E:$E,$C22,raw_resource_build!$A:$A,AN$7,raw_resource_build!$C:$C,mainzone)-SUMIFS(raw_resource_build!$Z:$Z,raw_resource_build!$E:$E,$C22,raw_resource_build!$A:$A,AN$7,raw_resource_build!$C:$C,mainzone))","v":59216.11}]
[null,null,"BTM_Li_Battery","MW",{"$f":"SUMIFS(raw_resource_build!$H:$H,raw_resource_build!$E:$E,$C23,raw_resource_build!$A:$A,E$7,raw_resource_build!$C:$C,mainzone)-SUMIFS(raw_resource_build!$Z:$Z,raw_resource_build!$E:$E,$C23,raw_resource_build!$A:$A,E$7,raw_resource_build!$C:$C,mainzone)","v":0},{"$f":"MAX(E23,SUMIFS(raw_resource_build!$H:$H,raw_resource_build!$E:$E,$C23,raw_resource_build!$A:$A,F$7,raw_resource_build!$C:$C,mainzone)-SUMIFS(raw_resource_build!$Z:$Z,raw_resource_build!$E:$E,$C23,raw_resource_build!$A:$A,F$7,raw_resource_build!$C:$C,mainzone))","v":0},{"$f":"MAX(F23,SUMIFS(raw_resource_build!$H:$H,raw_resource_build!$E:$E,$C23,raw_resource_build!$A:$A,G$7,raw_resource_build!$C:$C,mainzone)-SUMIFS(raw_resource_build!$Z:$Z,raw_resource_build!$E:$E,$C23,raw_resource_build!$A:$A,G$7,raw_resource_build!$C:$C,mainzone))","v":0},{"$f":"MAX(G23,SUMIFS(raw_resource_build!$H:$H,raw_resource_build!$E:$E,$C23,raw_resource_build!$A:$A,H$7,raw_resource_build!$C:$C,mainzone)-SUMIFS(raw_resource_build!$Z:$Z,raw_resource_build!$E:$E,$C23,raw_resource_build!$A:$A,H$7,raw_resource_build!$C:$C,mainzone))","v":0},{"$f":"MAX(H23,SUMIFS(raw_resource_build!$H:$H,raw_resource_build!$E:$E,$C23,raw_resource_build!$A:$A,I$7,raw_resource_build!$C:$C,mainzone)-SUMIFS(raw_resource_build!$Z:$Z,raw_resource_build!$E:$E,$C23,raw_resource_build!$A:$A,I$7,raw_resource_build!$C:$C,mainzone))","v":0},{"$f":"MAX(I23,SUMIFS(raw_resource_build!$H:$H,raw_resource_build!$E:$E,$C23,raw_resource_build!$A:$A,J$7,raw_resource_build!$C:$C,mainzone)-SUMIFS(raw_resource_build!$Z:$Z,raw_resource_build!$E:$E,$C23,raw_resource_build!$A:$A,J$7,raw_resource_build!$C:$C,mainzone))","v":0},{"$f":"MAX(J23,SUMIFS(raw_resource_build!$H:$H,raw_resource_build!$E:$E,$C23,raw_resource_build!$A:$A,K$7,raw_resource_build!$C:$C,mainzone)-SUMIFS(raw_resource_build!$Z:$Z,raw_resource_build!$E:$E,$C23,raw_resource_build!$A:$A,K$7,raw_resource_build!$C:$C,mainzone))","v":0},{"$f":"MAX(K23,SUMIFS(raw_resource_build!$H:$H,raw_resource_build!$E:$E,$C23,raw_resource_build!$A:$A,L$7,raw_resource_build!$C:$C,mainzone)-SUMIFS(raw_resource_build!$Z:$Z,raw_resource_build!$E:$E,$C23,raw_resource_build!$A:$A,L$7,raw_resource_build!$C:$C,mainzone))","v":0},{"$f":"MAX(L23,SUMIFS(raw_resource_build!$H:$H,raw_resource_build!$E:$E,$C23,raw_resource_build!$A:$A,M$7,raw_resource_build!$C:$C,mainzone)-SUMIFS(raw_resource_build!$Z:$Z,raw_resource_build!$E:$E,$C23,raw_resource_build!$A:$A,M$7,raw_resource_build!$C:$C,mainzone))","v":0},{"$f":"MAX(M23,SUMIFS(raw_resource_build!$H:$H,raw_resource_build!$E:$E,$C23,raw_resource_build!$A:$A,N$7,raw_resource_build!$C:$C,mainzone)-SUMIFS(raw_resource_build!$Z:$Z,raw_resource_build!$E:$E,$C23,raw_resource_build!$A:$A,N$7,raw_resource_build!$C:$C,mainzone))","v":0},{"$f":"MAX(N23,SUMIFS(raw_resource_build!$H:$H,raw_resource_build!$E:$E,$C23,raw_resource_build!$A:$A,O$7,raw_resource_build!$C:$C,mainzone)-SUMIFS(raw_resource_build!$Z:$Z,raw_resource_build!$E:$E,$C23,raw_resource_build!$A:$A,O$7,raw_resource_build!$C:$C,mainzone))","v":0},{"$f":"MAX(O23,SUMIFS(raw_resource_build!$H:$H,raw_resource_build!$E:$E,$C23,raw_resource_build!$A:$A,P$7,raw_resource_build!$C:$C,mainzone)-SUMIFS(raw_resource_build!$Z:$Z,raw_resource_build!$E:$E,$C23,raw_resource_build!$A:$A,P$7,raw_resource_build!$C:$C,mainzone))","v":0},{"$f":"MAX(P23,SUMIFS(raw_resource_build!$H:$H,raw_resource_build!$E:$E,$C23,raw_resource_build!$A:$A,Q$7,raw_resource_build!$C:$C,mainzone)-SUMIFS(raw_resource_build!$Z:$Z,raw_resource_build!$E:$E,$C23,raw_resource_build!$A:$A,Q$7,raw_resource_build!$C:$C,mainzone))","v":0},{"$f":"MAX(Q23,SUMIFS(raw_resource_build!$H:$H,raw_resource_build!$E:$E,$C23,raw_resource_build!$A:$A,R$7,raw_resource_build!$C:$C,mainzone)-SUMIFS(raw_resource_build!$Z:$Z,raw_resource_build!$E:$E,$C23,raw_resource_build!$A:$A,R$7,raw_resource_build!$C:$C,mainzone))","v":0},{"$f":"MAX(R23,SUMIFS(raw_resource_build!$H:$H,raw_resource_build!$E:$E,$C23,raw_resource_build!$A:$A,S$7,raw_resource_build!$C:$C,mainzone)-SUMIFS(raw_resource_build!$Z:$Z,raw_resource_build!$E:$E,$C23,raw_resource_build!$A:$A,S$7,raw_resource_build!$C:$C,mainzone))","v":0},{"$f":"MAX(S23,SUMIFS(raw_resource_build!$H:$H,raw_resource_build!$E:$E,$C23,raw_resource_build!$A:$A,T$7,raw_resource_build!$C:$C,mainzone)-SUMIFS(raw_resource_build!$Z:$Z,raw_resource_build!$E:$E,$C23,raw_resource_build!$A:$A,T$7,raw_resource_build!$C:$C,mainzone))","v":0},{"$f":"MAX(T23,SUMIFS(raw_resource_build!$H:$H,raw_resource_build!$E:$E,$C23,raw_resource_build!$A:$A,U$7,raw_resource_build!$C:$C,mainzone)-SUMIFS(raw_resource_build!$Z:$Z,raw_resource_build!$E:$E,$C23,raw_resource_build!$A:$A,U$7,raw_resource_build!$C:$C,mainzone))","v":0},{"$f":"MAX(U23,SUMIFS(raw_resource_build!$H:$H,raw_resource_build!$E:$E,$C23,raw_resource_build!$A:$A,V$7,raw_resource_build!$C:$C,mainzone)-SUMIFS(raw_resource_build!$Z:$Z,raw_resource_build!$E:$E,$C23,raw_resource_build!$A:$A,V$7,raw_resource_build!$C:$C,mainzone))","v":0},{"$f":"MAX(V23,SUMIFS(raw_resource_build!$H:$H,raw_resource_build!$E:$E,$C23,raw_resource_build!$A:$A,W$7,raw_resource_build!$C:$C,mainzone)-SUMIFS(raw_resource_build!$Z:$Z,raw_resource_build!$E:$E,$C23,raw_resource_build!$A:$A,W$7,raw_resource_build!$C:$C,mainzone))","v":0},{"$f":"MAX(W23,SUMIFS(raw_resource_build!$H:$H,raw_resource_build!$E:$E,$C23,raw_resource_build!$A:$A,X$7,raw_resource_build!$C:$C,mainzone)-SUMIFS(raw_resource_build!$Z:$Z,raw_resource_build!$E:$E,$C23,raw_resource_build!$A:$A,X$7,raw_resource_build!$C:$C,mainzone))","v":0},{"$f":"MAX(X23,SUMIFS(raw_resource_build!$H:$H,raw_resource_build!$E:$E,$C23,raw_resource_build!$A:$A,Y$7,raw_resource_build!$C:$C,mainzone)-SUMIFS(raw_resource_build!$Z:$Z,raw_resource_build!$E:$E,$C23,raw_resource_build!$A:$A,Y$7,raw_resource_build!$C:$C,mainzone))","v":0},{"$f":"MAX(Y23,SUMIFS(raw_resource_build!$H:$H,raw_resource_build!$E:$E,$C23,raw_resource_build!$A:$A,Z$7,raw_resource_build!$C:$C,mainzone)-SUMIFS(raw_resource_build!$Z:$Z,raw_resource_build!$E:$E,$C23,raw_resource_build!$A:$A,Z$7,raw_resource_build!$C:$C,mainzone))","v":0},{"$f":"MAX(Z23,SUMIFS(raw_resource_build!$H:$H,raw_resource_build!$E:$E,$C23,raw_resource_build!$A:$A,AA$7,raw_resource_build!$C:$C,mainzone)-SUMIFS(raw_resource_build!$Z:$Z,raw_resource_build!$E:$E,$C23,raw_resource_build!$A:$A,AA$7,raw_resource_build!$C:$C,mainzone))","v":0},{"$f":"MAX(AA23,SUMIFS(raw_resource_build!$H:$H,raw_resource_build!$E:$E,$C23,raw_resource_build!$A:$A,AB$7,raw_resource_build!$C:$C,mainzone)-SUMIFS(raw_resource_build!$Z:$Z,raw_resource_build!$E:$E,$C23,raw_resource_build!$A:$A,AB$7,raw_resource_build!$C:$C,mainzone))","v":0},{"$f":"MAX(AB23,SUMIFS(raw_resource_build!$H:$H,raw_resource_build!$E:$E,$C23,raw_resource_build!$A:$A,AC$7,raw_resource_build!$C:$C,mainzone)-SUMIFS(raw_resource_build!$Z:$Z,raw_resource_build!$E:$E,$C23,raw_resource_build!$A:$A,AC$7,raw_resource_build!$C:$C,mainzone))","v":0},{"$f":"MAX(AC23,SUMIFS(raw_resource_build!$H:$H,raw_resource_build!$E:$E,$C23,raw_resource_build!$A:$A,AD$7,raw_resource_build!$C:$C,mainzone)-SUMIFS(raw_resource_build!$Z:$Z,raw_resource_build!$E:$E,$C23,raw_resource_build!$A:$A,AD$7,raw_resource_build!$C:$C,mainzone))","v":0},{"$f":"MAX(AD23,SUMIFS(raw_resource_build!$H:$H,raw_resource_build!$E:$E,$C23,raw_resource_build!$A:$A,AE$7,raw_resource_build!$C:$C,mainzone)-SUMIFS(raw_resource_build!$Z:$Z,raw_resource_build!$E:$E,$C23,raw_resource_build!$A:$A,AE$7,raw_resource_build!$C:$C,mainzone))","v":0},{"$f":"MAX(AE23,SUMIFS(raw_resource_build!$H:$H,raw_resource_build!$E:$E,$C23,raw_resource_build!$A:$A,AF$7,raw_resource_build!$C:$C,mainzone)-SUMIFS(raw_resource_build!$Z:$Z,raw_resource_build!$E:$E,$C23,raw_resource_build!$A:$A,AF$7,raw_resource_build!$C:$C,mainzone))","v":0},{"$f":"MAX(AF23,SUMIFS(raw_resource_build!$H:$H,raw_resource_build!$E:$E,$C23,raw_resource_build!$A:$A,AG$7,raw_resource_build!$C:$C,mainzone)-SUMIFS(raw_resource_build!$Z:$Z,raw_resource_build!$E:$E,$C23,raw_resource_build!$A:$A,AG$7,raw_resource_build!$C:$C,mainzone))","v":0},{"$f":"MAX(AG23,SUMIFS(raw_resource_build!$H:$H,raw_resource_build!$E:$E,$C23,raw_resource_build!$A:$A,AH$7,raw_resource_build!$C:$C,mainzone)-SUMIFS(raw_resource_build!$Z:$Z,raw_resource_build!$E:$E,$C23,raw_resource_build!$A:$A,AH$7,raw_resource_build!$C:$C,mainzone))","v":0},{"$f":"MAX(AH23,SUMIFS(raw_resource_build!$H:$H,raw_resource_build!$E:$E,$C23,raw_resource_build!$A:$A,AI$7,raw_resource_build!$C:$C,mainzone)-SUMIFS(raw_resource_build!$Z:$Z,raw_resource_build!$E:$E,$C23,raw_resource_build!$A:$A,AI$7,raw_resource_build!$C:$C,mainzone))","v":0},{"$f":"MAX(AI23,SUMIFS(raw_resource_build!$H:$H,raw_resource_build!$E:$E,$C23,raw_resource_build!$A:$A,AJ$7,raw_resource_build!$C:$C,mainzone)-SUMIFS(raw_resource_build!$Z:$Z,raw_resource_build!$E:$E,$C23,raw_resource_build!$A:$A,AJ$7,raw_resource_build!$C:$C,mainzone))","v":0},{"$f":"MAX(AJ23,SUMIFS(raw_resource_build!$H:$H,raw_resource_build!$E:$E,$C23,raw_resource_build!$A:$A,AK$7,raw_resource_build!$C:$C,mainzone)-SUMIFS(raw_resource_build!$Z:$Z,raw_resource_build!$E:$E,$C23,raw_resource_build!$A:$A,AK$7,raw_resource_build!$C:$C,mainzone))","v":0},{"$f":"MAX(AK23,SUMIFS(raw_resource_build!$H:$H,raw_resource_build!$E:$E,$C23,raw_resource_build!$A:$A,AL$7,raw_resource_build!$C:$C,mainzone)-SUMIFS(raw_resource_build!$Z:$Z,raw_resource_build!$E:$E,$C23,raw_resource_build!$A:$A,AL$7,raw_resource_build!$C:$C,mainzone))","v":0},{"$f":"MAX(AL23,SUMIFS(raw_resource_build!$H:$H,raw_resource_build!$E:$E,$C23,raw_resource_build!$A:$A,AM$7,raw_resource_build!$C:$C,mainzone)-SUMIFS(raw_resource_build!$Z:$Z,raw_resource_build!$E:$E,$C23,raw_resource_build!$A:$A,AM$7,raw_resource_build!$C:$C,mainzone))","v":0},{"$f":"MAX(AM23,SUMIFS(raw_resource_build!$H:$H,raw_resource_build!$E:$E,$C23,raw_resource_build!$A:$A,AN$7,raw_resource_build!$C:$C,mainzone)-SUMIFS(raw_resource_build!$Z:$Z,raw_resource_build!$E:$E,$C23,raw_resource_build!$A:$A,AN$7,raw_resource_build!$C:$C,mainzone))","v":0}]
[null,null,"Flow_Battery","MW",{"$f":"SUMIFS(raw_resource_build!$H:$H,raw_resource_build!$E:$E,$C24,raw_resource_build!$A:$A,E$7,raw_resource_build!$C:$C,mainzone)-SUMIFS(raw_resource_build!$Z:$Z,raw_resource_build!$E:$E,$C24,raw_resource_build!$A:$A,E$7,raw_resource_build!$C:$C,mainzone)","v":0},{"$f":"MAX(E24,SUMIFS(raw_resource_build!$H:$H,raw_resource_build!$E:$E,$C24,raw_resource_build!$A:$A,F$7,raw_resource_build!$C:$C,mainzone)-SUMIFS(raw_resource_build!$Z:$Z,raw_resource_build!$E:$E,$C24,raw_resource_build!$A:$A,F$7,raw_resource_build!$C:$C,mainzone))","v":0},{"$f":"MAX(F24,SUMIFS(raw_resource_build!$H:$H,raw_resource_build!$E:$E,$C24,raw_resource_build!$A:$A,G$7,raw_resource_build!$C:$C,mainzone)-SUMIFS(raw_resource_build!$Z:$Z,raw_resource_build!$E:$E,$C24,raw_resource_build!$A:$A,G$7,raw_resource_build!$C:$C,mainzone))","v":0},{"$f":"MAX(G24,SUMIFS(raw_resource_build!$H:$H,raw_resource_build!$E:$E,$C24,raw_resource_build!$A:$A,H$7,raw_resource_build!$C:$C,mainzone)-SUMIFS(raw_resource_build!$Z:$Z,raw_resource_build!$E:$E,$C24,raw_resource_build!$A:$A,H$7,raw_resource_build!$C:$C,mainzone))","v":0},{"$f":"MAX(H24,SUMIFS(raw_resource_build!$H:$H,raw_resource_build!$E:$E,$C24,raw_resource_build!$A:$A,I$7,raw_resource_build!$C:$C,mainzone)-SUMIFS(raw_resource_build!$Z:$Z,raw_resource_build!$E:$E,$C24,raw_resource_build!$A:$A,I$7,raw_resource_build!$C:$C,mainzone))","v":0},{"$f":"MAX(I24,SUMIFS(raw_resource_build!$H:$H,raw_resource_build!$E:$E,$C24,raw_resource_build!$A:$A,J$7,raw_resource_build!$C:$C,mainzone)-SUMIFS(raw_resource_build!$Z:$Z,raw_resource_build!$E:$E,$C24,raw_resource_build!$A:$A,J$7,raw_resource_build!$C:$C,mainzone))","v":0},{"$f":"MAX(J24,SUMIFS(raw_resource_build!$H:$H,raw_resource_build!$E:$E,$C24,raw_resource_build!$A:$A,K$7,raw_resource_build!$C:$C,mainzone)-SUMIFS(raw_resource_build!$Z:$Z,raw_resource_build!$E:$E,$C24,raw_resource_build!$A:$A,K$7,raw_resource_build!$C:$C,mainzone))","v":0},{"$f":"MAX(K24,SUMIFS(raw_resource_build!$H:$H,raw_resource_build!$E:$E,$C24,raw_resource_build!$A:$A,L$7,raw_resource_build!$C:$C,mainzone)-SUMIFS(raw_resource_build!$Z:$Z,raw_resource_build!$E:$E,$C24,raw_resource_build!$A:$A,L$7,raw_resource_build!$C:$C,mainzone))","v":0},{"$f":"MAX(L24,SUMIFS(raw_resource_build!$H:$H,raw_resource_build!$E:$E,$C24,raw_resource_build!$A:$A,M$7,raw_resource_build!$C:$C,mainzone)-SUMIFS(raw_resource_build!$Z:$Z,raw_resource_build!$E:$E,$C24,raw_resource_build!$A:$A,M$7,raw_resource_build!$C:$C,mainzone))","v":0},{"$f":"MAX(M24,SUMIFS(raw_resource_build!$H:$H,raw_resource_build!$E:$E,$C24,raw_resource_build!$A:$A,N$7,raw_resource_build!$C:$C,mainzone)-SUMIFS(raw_resource_build!$Z:$Z,raw_resource_build!$E:$E,$C24,raw_resource_build!$A:$A,N$7,raw_resource_build!$C:$C,mainzone))","v":0},{"$f":"MAX(N24,SUMIFS(raw_resource_build!$H:$H,raw_resource_build!$E:$E,$C24,raw_resource_build!$A:$A,O$7,raw_resource_build!$C:$C,mainzone)-SUMIFS(raw_resource_build!$Z:$Z,raw_resource_build!$E:$E,$C24,raw_resource_build!$A:$A,O$7,raw_resource_build!$C:$C,mainzone))","v":0},{"$f":"MAX(O24,SUMIFS(raw_resource_build!$H:$H,raw_resource_build!$E:$E,$C24,raw_resource_build!$A:$A,P$7,raw_resource_build!$C:$C,mainzone)-SUMIFS(raw_resource_build!$Z:$Z,raw_resource_build!$E:$E,$C24,raw_resource_build!$A:$A,P$7,raw_resource_build!$C:$C,mainzone))","v":0},{"$f":"MAX(P24,SUMIFS(raw_resource_build!$H:$H,raw_resource_build!$E:$E,$C24,raw_resource_build!$A:$A,Q$7,raw_resource_build!$C:$C,mainzone)-SUMIFS(raw_resource_build!$Z:$Z,raw_resource_build!$E:$E,$C24,raw_resource_build!$A:$A,Q$7,raw_resource_build!$C:$C,mainzone))","v":0},{"$f":"MAX(Q24,SUMIFS(raw_resource_build!$H:$H,raw_resource_build!$E:$E,$C24,raw_resource_build!$A:$A,R$7,raw_resource_build!$C:$C,mainzone)-SUMIFS(raw_resource_build!$Z:$Z,raw_resource_build!$E:$E,$C24,raw_resource_build!$A:$A,R$7,raw_resource_build!$C:$C,mainzone))","v":0},{"$f":"MAX(R24,SUMIFS(raw_resource_build!$H:$H,raw_resource_build!$E:$E,$C24,raw_resource_build!$A:$A,S$7,raw_resource_build!$C:$C,mainzone)-SUMIFS(raw_resource_build!$Z:$Z,raw_resource_build!$E:$E,$C24,raw_resource_build!$A:$A,S$7,raw_resource_build!$C:$C,mainzone))","v":0},{"$f":"MAX(S24,SUMIFS(raw_resource_build!$H:$H,raw_resource_build!$E:$E,$C24,raw_resource_build!$A:$A,T$7,raw_resource_build!$C:$C,mainzone)-SUMIFS(raw_resource_build!$Z:$Z,raw_resource_build!$E:$E,$C24,raw_resource_build!$A:$A,T$7,raw_resource_build!$C:$C,mainzone))","v":0},{"$f":"MAX(T24,SUMIFS(raw_resource_build!$H:$H,raw_resource_build!$E:$E,$C24,raw_resource_build!$A:$A,U$7,raw_resource_build!$C:$C,mainzone)-SUMIFS(raw_resource_build!$Z:$Z,raw_resource_build!$E:$E,$C24,raw_resource_build!$A:$A,U$7,raw_resource_build!$C:$C,mainzone))","v":0},{"$f":"MAX(U24,SUMIFS(raw_resource_build!$H:$H,raw_resource_build!$E:$E,$C24,raw_resource_build!$A:$A,V$7,raw_resource_build!$C:$C,mainzone)-SUMIFS(raw_resource_build!$Z:$Z,raw_resource_build!$E:$E,$C24,raw_resource_build!$A:$A,V$7,raw_resource_build!$C:$C,mainzone))","v":0},{"$f":"MAX(V24,SUMIFS(raw_resource_build!$H:$H,raw_resource_build!$E:$E,$C24,raw_resource_build!$A:$A,W$7,raw_resource_build!$C:$C,mainzone)-SUMIFS(raw_resource_build!$Z:$Z,raw_resource_build!$E:$E,$C24,raw_resource_build!$A:$A,W$7,raw_resource_build!$C:$C,mainzone))","v":0},{"$f":"MAX(W24,SUMIFS(raw_resource_build!$H:$H,raw_resource_build!$E:$E,$C24,raw_resource_build!$A:$A,X$7,raw_resource_build!$C:$C,mainzone)-SUMIFS(raw_resource_build!$Z:$Z,raw_resource_build!$E:$E,$C24,raw_resource_build!$A:$A,X$7,raw_resource_build!$C:$C,mainzone))","v":0},{"$f":"MAX(X24,SUMIFS(raw_resource_build!$H:$H,raw_resource_build!$E:$E,$C24,raw_resource_build!$A:$A,Y$7,raw_resource_build!$C:$C,mainzone)-SUMIFS(raw_resource_build!$Z:$Z,raw_resource_build!$E:$E,$C24,raw_resource_build!$A:$A,Y$7,raw_resource_build!$C:$C,mainzone))","v":0},{"$f":"MAX(Y24,SUMIFS(raw_resource_build!$H:$H,raw_resource_build!$E:$E,$C24,raw_resource_build!$A:$A,Z$7,raw_resource_build!$C:$C,mainzone)-SUMIFS(raw_resource_build!$Z:$Z,raw_resource_build!$E:$E,$C24,raw_resource_build!$A:$A,Z$7,raw_resource_build!$C:$C,mainzone))","v":0},{"$f":"MAX(Z24,SUMIFS(raw_resource_build!$H:$H,raw_resource_build!$E:$E,$C24,raw_resource_build!$A:$A,AA$7,raw_resource_build!$C:$C,mainzone)-SUMIFS(raw_resource_build!$Z:$Z,raw_resource_build!$E:$E,$C24,raw_resource_build!$A:$A,AA$7,raw_resource_build!$C:$C,mainzone))","v":0},{"$f":"MAX(AA24,SUMIFS(raw_resource_build!$H:$H,raw_resource_build!$E:$E,$C24,raw_resource_build!$A:$A,AB$7,raw_resource_build!$C:$C,mainzone)-SUMIFS(raw_resource_build!$Z:$Z,raw_resource_build!$E:$E,$C24,raw_resource_build!$A:$A,AB$7,raw_resource_build!$C:$C,mainzone))","v":0},{"$f":"MAX(AB24,SUMIFS(raw_resource_build!$H:$H,raw_resource_build!$E:$E,$C24,raw_resource_build!$A:$A,AC$7,raw_resource_build!$C:$C,mainzone)-SUMIFS(raw_resource_build!$Z:$Z,raw_resource_build!$E:$E,$C24,raw_resource_build!$A:$A,AC$7,raw_resource_build!$C:$C,mainzone))","v":0},{"$f":"MAX(AC24,SUMIFS(raw_resource_build!$H:$H,raw_resource_build!$E:$E,$C24,raw_resource_build!$A:$A,AD$7,raw_resource_build!$C:$C,mainzone)-SUMIFS(raw_resource_build!$Z:$Z,raw_resource_build!$E:$E,$C24,raw_resource_build!$A:$A,AD$7,raw_resource_build!$C:$C,mainzone))","v":0},{"$f":"MAX(AD24,SUMIFS(raw_resource_build!$H:$H,raw_resource_build!$E:$E,$C24,raw_resource_build!$A:$A,AE$7,raw_resource_build!$C:$C,mainzone)-SUMIFS(raw_resource_build!$Z:$Z,raw_resource_build!$E:$E,$C24,raw_resource_build!$A:$A,AE$7,raw_resource_build!$C:$C,mainzone))","v":0},{"$f":"MAX(AE24,SUMIFS(raw_resource_build!$H:$H,raw_resource_build!$E:$E,$C24,raw_resource_build!$A:$A,AF$7,raw_resource_build!$C:$C,mainzone)-SUMIFS(raw_resource_build!$Z:$Z,raw_resource_build!$E:$E,$C24,raw_resource_build!$A:$A,AF$7,raw_resource_build!$C:$C,mainzone))","v":0},{"$f":"MAX(AF24,SUMIFS(raw_resource_build!$H:$H,raw_resource_build!$E:$E,$C24,raw_resource_build!$A:$A,AG$7,raw_resource_build!$C:$C,mainzone)-SUMIFS(raw_resource_build!$Z:$Z,raw_resource_build!$E:$E,$C24,raw_resource_build!$A:$A,AG$7,raw_resource_build!$C:$C,mainzone))","v":0},{"$f":"MAX(AG24,SUMIFS(raw_resource_build!$H:$H,raw_resource_build!$E:$E,$C24,raw_resource_build!$A:$A,AH$7,raw_resource_build!$C:$C,mainzone)-SUMIFS(raw_resource_build!$Z:$Z,raw_resource_build!$E:$E,$C24,raw_resource_build!$A:$A,AH$7,raw_resource_build!$C:$C,mainzone))","v":0},{"$f":"MAX(AH24,SUMIFS(raw_resource_build!$H:$H,raw_resource_build!$E:$E,$C24,raw_resource_build!$A:$A,AI$7,raw_resource_build!$C:$C,mainzone)-SUMIFS(raw_resource_build!$Z:$Z,raw_resource_build!$E:$E,$C24,raw_resource_build!$A:$A,AI$7,raw_resource_build!$C:$C,mainzone))","v":0},{"$f":"MAX(AI24,SUMIFS(raw_resource_build!$H:$H,raw_resource_build!$E:$E,$C24,raw_resource_build!$A:$A,AJ$7,raw_resource_build!$C:$C,mainzone)-SUMIFS(raw_resource_build!$Z:$Z,raw_resource_build!$E:$E,$C24,raw_resource_build!$A:$A,AJ$7,raw_resource_build!$C:$C,mainzone))","v":0},{"$f":"MAX(AJ24,SUMIFS(raw_resource_build!$H:$H,raw_resource_build!$E:$E,$C24,raw_resource_build!$A:$A,AK$7,raw_resource_build!$C:$C,mainzone)-SUMIFS(raw_resource_build!$Z:$Z,raw_resource_build!$E:$E,$C24,raw_resource_build!$A:$A,AK$7,raw_resource_build!$C:$C,mainzone))","v":0},{"$f":"MAX(AK24,SUMIFS(raw_resource_build!$H:$H,raw_resource_build!$E:$E,$C24,raw_resource_build!$A:$A,AL$7,raw_resource_build!$C:$C,mainzone)-SUMIFS(raw_resource_build!$Z:$Z,raw_resource_build!$E:$E,$C24,raw_resource_build!$A:$A,AL$7,raw_resource_build!$C:$C,mainzone))","v":0},{"$f":"MAX(AL24,SUMIFS(raw_resource_build!$H:$H,raw_resource_build!$E:$E,$C24,raw_resource_build!$A:$A,AM$7,raw_resource_build!$C:$C,mainzone)-SUMIFS(raw_resource_build!$Z:$Z,raw_resource_build!$E:$E,$C24,raw_resource_build!$A:$A,AM$7,raw_resource_build!$C:$C,mainzone))","v":0},{"$f":"MAX(AM24,SUMIFS(raw_resource_build!$H:$H,raw_resource_build!$E:$E,$C24,raw_resource_build!$A:$A,AN$7,raw_resource_build!$C:$C,mainzone)-SUMIFS(raw_resource_build!$Z:$Z,raw_resource_build!$E:$E,$C24,raw_resource_build!$A:$A,AN$7,raw_resource_build!$C:$C,mainzone))","v":0}]
[null,null,"Pumped_Hydro","MWh",{"$f":"SUMIFS(raw_storage_build!$H:$H,raw_storage_build!$A:$A,E$7,raw_storage_build!$E:$E,$C25,raw_storage_build!$D:$D,mainzone)","v":0},{"$f":"SUMIFS(raw_storage_build!$H:$H,raw_storage_build!$A:$A,F$7,raw_storage_build!$E:$E,$C25,raw_storage_build!$D:$D,mainzone)","v":0},{"$f":"SUMIFS(raw_storage_build!$H:$H,raw_storage_build!$A:$A,G$7,raw_storage_build!$E:$E,$C25,raw_storage_build!$D:$D,mainzone)","v":0},{"$f":"SUMIFS(raw_storage_build!$H:$H,raw_storage_build!$A:$A,H$7,raw_storage_build!$E:$E,$C25,raw_storage_build!$D:$D,mainzone)","v":0},{"$f":"SUMIFS(raw_storage_build!$H:$H,raw_storage_build!$A:$A,I$7,raw_storage_build!$E:$E,$C25,raw_storage_build!$D:$D,mainzone)","v":0},{"$f":"SUMIFS(raw_storage_build!$H:$H,raw_storage_build!$A:$A,J$7,raw_storage_build!$E:$E,$C25,raw_storage_build!$D:$D,mainzone)","v":0},{"$f":"SUMIFS(raw_storage_build!$H:$H,raw_storage_build!$A:$A,K$7,raw_storage_build!$E:$E,$C25,raw_storage_build!$D:$D,mainzone)","v":0},{"$f":"SUMIFS(raw_storage_build!$H:$H,raw_storage_build!$A:$A,L$7,raw_storage_build!$E:$E,$C25,raw_storage_build!$D:$D,mainzone)","v":0},{"$f":"SUMIFS(raw_storage_build!$H:$H,raw_storage_build!$A:$A,M$7,raw_storage_build!$E:$E,$C25,raw_storage_build!$D:$D,mainzone)","v":0},{"$f":"SUMIFS(raw_storage_build!$H:$H,raw_storage_build!$A:$A,N$7,raw_storage_build!$E:$E,$C25,raw_storage_build!$D:$D,mainzone)","v":0},{"$f":"SUMIFS(raw_storage_build!$H:$H,raw_storage_build!$A:$A,O$7,raw_storage_build!$E:$E,$C25,raw_storage_build!$D:$D,mainzone)","v":0},{"$f":"SUMIFS(raw_storage_build!$H:$H,raw_storage_build!$A:$A,P$7,raw_storage_build!$E:$E,$C25,raw_storage_build!$D:$D,mainzone)","v":23837.69},{"$f":"SUMIFS(raw_storage_build!$H:$H,raw_storage_build!$A:$A,Q$7,raw_storage_build!$E:$E,$C25,raw_storage_build!$D:$D,mainzone)","v":0},{"$f":"SUMIFS(raw_storage_build!$H:$H,raw_storage_build!$A:$A,R$7,raw_storage_build!$E:$E,$C25,raw_storage_build!$D:$D,mainzone)","v":0},{"$f":"SUMIFS(raw_storage_build!$H:$H,raw_storage_build!$A:$A,S$7,raw_storage_build!$E:$E,$C25,raw_storage_build!$D:$D,mainzone)","v":0},{"$f":"SUMIFS(raw_storage_build!$H:$H,raw_storage_build!$A:$A,T$7,raw_storage_build!$E:$E,$C25,raw_storage_build!$D:$D,mainzone)","v":23837.69},{"$f":"SUMIFS(raw_storage_build!$H:$H,raw_storage_build!$A:$A,U$7,raw_storage_build!$E:$E,$C25,raw_storage_build!$D:$D,mainzone)","v":0},{"$f":"SUMIFS(raw_storage_build!$H:$H,raw_storage_build!$A:$A,V$7,raw_storage_build!$E:$E,$C25,raw_storage_build!$D:$D,mainzone)","v":0},{"$f":"SUMIFS(raw_storage_build!$H:$H,raw_storage_build!$A:$A,W$7,raw_storage_build!$E:$E,$C25,raw_storage_build!$D:$D,mainzone)","v":0},{"$f":"SUMIFS(raw_storage_build!$H:$H,raw_storage_build!$A:$A,X$7,raw_storage_build!$E:$E,$C25,raw_storage_build!$D:$D,mainzone)","v":0},{"$f":"SUMIFS(raw_storage_build!$H:$H,raw_storage_build!$A:$A,Y$7,raw_storage_build!$E:$E,$C25,raw_storage_build!$D:$D,mainzone)","v":0},{"$f":"SUMIFS(raw_storage_build!$H:$H,raw_storage_build!$A:$A,Z$7,raw_storage_build!$E:$E,$C25,raw_storage_build!$D:$D,mainzone)","v":0},{"$f":"SUMIFS(raw_storage_build!$H:$H,raw_storage_build!$A:$A,AA$7,raw_storage_build!$E:$E,$C25,raw_storage_build!$D:$D,mainzone)","v":0},{"$f":"SUMIFS(raw_storage_build!$H:$H,raw_storage_build!$A:$A,AB$7,raw_storage_build!$E:$E,$C25,raw_storage_build!$D:$D,mainzone)","v":0},{"$f":"SUMIFS(raw_storage_build!$H:$H,raw_storage_build!$A:$A,AC$7,raw_storage_build!$E:$E,$C25,raw_storage_build!$D:$D,mainzone)","v":0},{"$f":"SUMIFS(raw_storage_build!$H:$H,raw_storage_build!$A:$A,AD$7,raw_storage_build!$E:$E,$C25,raw_storage_build!$D:$D,mainzone)","v":0},{"$f":"SUMIFS(raw_storage_build!$H:$H,raw_storage_build!$A:$A,AE$7,raw_storage_build!$E:$E,$C25,raw_storage_build!$D:$D,mainzone)","v":0},{"$f":"SUMIFS(raw_storage_build!$H:$H,raw_storage_build!$A:$A,AF$7,raw_storage_build!$E:$E,$C25,raw_storage_build!$D:$D,mainzone)","v":0},{"$f":"SUMIFS(raw_storage_build!$H:$H,raw_storage_build!$A:$A,AG$7,raw_storage_build!$E:$E,$C25,raw_storage_build!$D:$D,mainzone)","v":0},{"$f":"SUMIFS(raw_storage_build!$H:$H,raw_storage_build!$A:$A,AH$7,raw_storage_build!$E:$E,$C25,raw_storage_build!$D:$D,mainzone)","v":0},{"$f":"SUMIFS(raw_storage_build!$H:$H,raw_storage_build!$A:$A,AI$7,raw_storage_build!$E:$E,$C25,raw_storage_build!$D:$D,mainzone)","v":23837.69},{"$f":"SUMIFS(raw_storage_build!$H:$H,raw_storage_build!$A:$A,AJ$7,raw_storage_build!$E:$E,$C25,raw_storage_build!$D:$D,mainzone)","v":0},{"$f":"SUMIFS(raw_storage_build!$H:$H,raw_storage_build!$A:$A,AK$7,raw_storage_build!$E:$E,$C25,raw_storage_build!$D:$D,mainzone)","v":0},{"$f":"SUMIFS(raw_storage_build!$H:$H,raw_storage_build!$A:$A,AL$7,raw_storage_build!$E:$E,$C25,raw_storage_build!$D:$D,mainzone)","v":0},{"$f":"SUMIFS(raw_storage_build!$H:$H,raw_storage_build!$A:$A,AM$7,raw_storage_build!$E:$E,$C25,raw_storage_build!$D:$D,mainzone)","v":0},{"$f":"SUMIFS(raw_storage_build!$H:$H,raw_storage_build!$A:$A,AN$7,raw_storage_build!$E:$E,$C25,raw_storage_build!$D:$D,mainzone)","v":0}]
[null,null,"Li_Battery","MWh",{"$f":"SUMIFS(raw_storage_build!$H:$H,raw_storage_build!$A:$A,E$7,raw_storage_build!$E:$E,$C26,raw_storage_build!$D:$D,mainzone)-E9*1","v":0},{"$f":"SUMIFS(raw_storage_build!$H:$H,raw_storage_build!$A:$A,F$7,raw_storage_build!$E:$E,$C26,raw_storage_build!$D:$D,mainzone)-F9*1","v":0},{"$f":"SUMIFS(raw_storage_build!$H:$H,raw_storage_build!$A:$A,G$7,raw_storage_build!$E:$E,$C26,raw_storage_build!$D:$D,mainzone)-G9*1","v":0},{"$f":"SUMIFS(raw_storage_build!$H:$H,raw_storage_build!$A:$A,H$7,raw_storage_build!$E:$E,$C26,raw_storage_build!$D:$D,mainzone)-H9*1","v":0},{"$f":"SUMIFS(raw_storage_build!$H:$H,raw_storage_build!$A:$A,I$7,raw_storage_build!$E:$E,$C26,raw_storage_build!$D:$D,mainzone)-I9*1","v":0},{"$f":"SUMIFS(raw_storage_build!$H:$H,raw_storage_build!$A:$A,J$7,raw_storage_build!$E:$E,$C26,raw_storage_build!$D:$D,mainzone)-J9*1","v":9787},{"$f":"SUMIFS(raw_storage_build!$H:$H,raw_storage_build!$A:$A,K$7,raw_storage_build!$E:$E,$C26,raw_storage_build!$D:$D,mainzone)-K9*1","v":18904.440000000002},{"$f":"SUMIFS(raw_storage_build!$H:$H,raw_storage_build!$A:$A,L$7,raw_storage_build!$E:$E,$C26,raw_storage_build!$D:$D,mainzone)-L9*1","v":18904.440000000002},{"$f":"SUMIFS(raw_storage_build!$H:$H,raw_storage_build!$A:$A,M$7,raw_storage_build!$E:$E,$C26,raw_storage_build!$D:$D,mainzone)-M9*1","v":19569.98},{"$f":"SUMIFS(raw_storage_build!$H:$H,raw_storage_build!$A:$A,N$7,raw_storage_build!$E:$E,$C26,raw_storage_build!$D:$D,mainzone)-N9*1","v":26443.19},{"$f":"SUMIFS(raw_storage_build!$H:$H,raw_storage_build!$A:$A,O$7,raw_storage_build!$E:$E,$C26,raw_storage_build!$D:$D,mainzone)-O9*1","v":0},{"$f":"SUMIFS(raw_storage_build!$H:$H,raw_storage_build!$A:$A,P$7,raw_storage_build!$E:$E,$C26,raw_storage_build!$D:$D,mainzone)-P9*1","v":39341.31},{"$f":"SUMIFS(raw_storage_build!$H:$H,raw_storage_build!$A:$A,Q$7,raw_storage_build!$E:$E,$C26,raw_storage_build!$D:$D,mainzone)-Q9*1","v":0},{"$f":"SUMIFS(raw_storage_build!$H:$H,raw_storage_build!$A:$A,R$7,raw_storage_build!$E:$E,$C26,raw_storage_build!$D:$D,mainzone)-R9*1","v":0},{"$f":"SUMIFS(raw_storage_build!$H:$H,raw_storage_build!$A:$A,S$7,raw_storage_build!$E:$E,$C26,raw_storage_build!$D:$D,mainzone)-S9*1","v":0},{"$f":"SUMIFS(raw_storage_build!$H:$H,raw_storage_build!$A:$A,T$7,raw_storage_build!$E:$E,$C26,raw_storage_build!$D:$D,mainzone)-T9*1","v":46851},{"$f":"SUMIFS(raw_storage_build!$H:$H,raw_storage_build!$A:$A,U$7,raw_storage_build!$E:$E,$C26,raw_storage_build!$D:$D,mainzone)-U9*1","v":0},{"$f":"SUMIFS(raw_storage_build!$H:$H,raw_storage_build!$A:$A,V$7,raw_storage_build!$E:$E,$C26,raw_storage_build!$D:$D,mainzone)-V9*1","v":0},{"$f":"SUMIFS(raw_storage_build!$H:$H,raw_storage_build!$A:$A,W$7,raw_storage_build!$E:$E,$C26,raw_storage_build!$D:$D,mainzone)-W9*1","v":0},{"$f":"SUMIFS(raw_storage_build!$H:$H,raw_storage_build!$A:$A,X$7,raw_storage_build!$E:$E,$C26,raw_storage_build!$D:$D,mainzone)-X9*1","v":0},{"$f":"SUMIFS(raw_storage_build!$H:$H,raw_storage_build!$A:$A,Y$7,raw_storage_build!$E:$E,$C26,raw_storage_build!$D:$D,mainzone)-Y9*1","v":0},{"$f":"SUMIFS(raw_storage_build!$H:$H,raw_storage_build!$A:$A,Z$7,raw_storage_build!$E:$E,$C26,raw_storage_build!$D:$D,mainzone)-Z9*1","v":0},{"$f":"SUMIFS(raw_storage_build!$H:$H,raw_storage_build!$A:$A,AA$7,raw_storage_build!$E:$E,$C26,raw_storage_build!$D:$D,mainzone)-AA9*1","v":0},{"$f":"SUMIFS(raw_storage_build!$H:$H,raw_storage_build!$A:$A,AB$7,raw_storage_build!$E:$E,$C26,raw_storage_build!$D:$D,mainzone)-AB9*1","v":0},{"$f":"SUMIFS(raw_storage_build!$H:$H,raw_storage_build!$A:$A,AC$7,raw_storage_build!$E:$E,$C26,raw_storage_build!$D:$D,mainzone)-AC9*1","v":0},{"$f":"SUMIFS(raw_storage_build!$H:$H,raw_storage_build!$A:$A,AD$7,raw_storage_build!$E:$E,$C26,raw_storage_build!$D:$D,mainzone)-AD9*1","v":0},{"$f":"SUMIFS(raw_storage_build!$H:$H,raw_storage_build!$A:$A,AE$7,raw_storage_build!$E:$E,$C26,raw_storage_build!$D:$D,mainzone)-AE9*1","v":0},{"$f":"SUMIFS(raw_storage_build!$H:$H,raw_storage_build!$A:$A,AF$7,raw_storage_build!$E:$E,$C26,raw_storage_build!$D:$D,mainzone)-AF9*1","v":0},{"$f":"SUMIFS(raw_storage_build!$H:$H,raw_storage_build!$A:$A,AG$7,raw_storage_build!$E:$E,$C26,raw_storage_build!$D:$D,mainzone)-AG9*1","v":0},{"$f":"SUMIFS(raw_storage_build!$H:$H,raw_storage_build!$A:$A,AH$7,raw_storage_build!$E:$E,$C26,raw_storage_build!$D:$D,mainzone)-AH9*1","v":0},{"$f":"SUMIFS(raw_storage_build!$H:$H,raw_storage_build!$A:$A,AI$7,raw_storage_build!$E:$E,$C26,raw_storage_build!$D:$D,mainzone)-AI9*1","v":417293.11},{"$f":"SUMIFS(raw_storage_build!$H:$H,raw_storage_build!$A:$A,AJ$7,raw_storage_build!$E:$E,$C26,raw_storage_build!$D:$D,mainzone)-AJ9*1","v":0},{"$f":"SUMIFS(raw_storage_build!$H:$H,raw_storage_build!$A:$A,AK$7,raw_storage_build!$E:$E,$C26,raw_storage_build!$D:$D,mainzone)-AK9*1","v":0},{"$f":"SUMIFS(raw_storage_build!$H:$H,raw_storage_build!$A:$A,AL$7,raw_storage_build!$E:$E,$C26,raw_storage_build!$D:$D,mainzone)-AL9*1","v":0},{"$f":"SUMIFS(raw_storage_build!$H:$H,raw_storage_build!$A:$A,AM$7,raw_storage_build!$E:$E,$C26,raw_storage_build!$D:$D,mainzone)-AM9*1","v":0},{"$f":"SUMIFS(raw_storage_build!$H:$H,raw_storage_build!$A:$A,AN$7,raw_storage_build!$E:$E,$C26,raw_storage_build!$D:$D,mainzone)-AN9*1","v":0}]
[null,null,"BTM_Li_Battery","MWh",{"$f":"SUMIFS(raw_storage_build!$H:$H,raw_storage_build!$A:$A,E$7,raw_storage_build!$E:$E,$C27,raw_storage_build!$D:$D,mainzone)","v":0},{"$f":"SUMIFS(raw_storage_build!$H:$H,raw_storage_build!$A:$A,F$7,raw_storage_build!$E:$E,$C27,raw_storage_build!$D:$D,mainzone)","v":0},{"$f":"SUMIFS(raw_storage_build!$H:$H,raw_storage_build!$A:$A,G$7,raw_storage_build!$E:$E,$C27,raw_storage_build!$D:$D,mainzone)","v":0},{"$f":"SUMIFS(raw_storage_build!$H:$H,raw_storage_build!$A:$A,H$7,raw_storage_build!$E:$E,$C27,raw_storage_build!$D:$D,mainzone)","v":0},{"$f":"SUMIFS(raw_storage_build!$H:$H,raw_storage_build!$A:$A,I$7,raw_storage_build!$E:$E,$C27,raw_storage_build!$D:$D,mainzone)","v":0},{"$f":"SUMIFS(raw_storage_build!$H:$H,raw_storage_build!$A:$A,J$7,raw_storage_build!$E:$E,$C27,raw_storage_build!$D:$D,mainzone)","v":0},{"$f":"SUMIFS(raw_storage_build!$H:$H,raw_storage_build!$A:$A,K$7,raw_storage_build!$E:$E,$C27,raw_storage_build!$D:$D,mainzone)","v":0},{"$f":"SUMIFS(raw_storage_build!$H:$H,raw_storage_build!$A:$A,L$7,raw_storage_build!$E:$E,$C27,raw_storage_build!$D:$D,mainzone)","v":0},{"$f":"SUMIFS(raw_storage_build!$H:$H,raw_storage_build!$A:$A,M$7,raw_storage_build!$E:$E,$C27,raw_storage_build!$D:$D,mainzone)","v":0},{"$f":"SUMIFS(raw_storage_build!$H:$H,raw_storage_build!$A:$A,N$7,raw_storage_build!$E:$E,$C27,raw_storage_build!$D:$D,mainzone)","v":0},{"$f":"SUMIFS(raw_storage_build!$H:$H,raw_storage_build!$A:$A,O$7,raw_storage_build!$E:$E,$C27,raw_storage_build!$D:$D,mainzone)","v":0},{"$f":"SUMIFS(raw_storage_build!$H:$H,raw_storage_build!$A:$A,P$7,raw_storage_build!$E:$E,$C27,raw_storage_build!$D:$D,mainzone)","v":0},{"$f":"SUMIFS(raw_storage_build!$H:$H,raw_storage_build!$A:$A,Q$7,raw_storage_build!$E:$E,$C27,raw_storage_build!$D:$D,mainzone)","v":0},{"$f":"SUMIFS(raw_storage_build!$H:$H,raw_storage_build!$A:$A,R$7,raw_storage_build!$E:$E,$C27,raw_storage_build!$D:$D,mainzone)","v":0},{"$f":"SUMIFS(raw_storage_build!$H:$H,raw_storage_build!$A:$A,S$7,raw_storage_build!$E:$E,$C27,raw_storage_build!$D:$D,mainzone)","v":0},{"$f":"SUMIFS(raw_storage_build!$H:$H,raw_storage_build!$A:$A,T$7,raw_storage_build!$E:$E,$C27,raw_storage_build!$D:$D,mainzone)","v":0},{"$f":"SUMIFS(raw_storage_build!$H:$H,raw_storage_build!$A:$A,U$7,raw_storage_build!$E:$E,$C27,raw_storage_build!$D:$D,mainzone)","v":0},{"$f":"SUMIFS(raw_storage_build!$H:$H,raw_storage_build!$A:$A,V$7,raw_storage_build!$E:$E,$C27,raw_storage_build!$D:$D,mainzone)","v":0},{"$f":"SUMIFS(raw_storage_build!$H:$H,raw_storage_build!$A:$A,W$7,raw_storage_build!$E:$E,$C27,raw_storage_build!$D:$D,mainzone)","v":0},{"$f":"SUMIFS(raw_storage_build!$H:$H,raw_storage_build!$A:$A,X$7,raw_storage_build!$E:$E,$C27,raw_storage_build!$D:$D,mainzone)","v":0},{"$f":"SUMIFS(raw_storage_build!$H:$H,raw_storage_build!$A:$A,Y$7,raw_storage_build!$E:$E,$C27,raw_storage_build!$D:$D,mainzone)","v":0},{"$f":"SUMIFS(raw_storage_build!$H:$H,raw_storage_build!$A:$A,Z$7,raw_storage_build!$E:$E,$C27,raw_storage_build!$D:$D,mainzone)","v":0},{"$f":"SUMIFS(raw_storage_build!$H:$H,raw_storage_build!$A:$A,AA$7,raw_storage_build!$E:$E,$C27,raw_storage_build!$D:$D,mainzone)","v":0},{"$f":"SUMIFS(raw_storage_build!$H:$H,raw_storage_build!$A:$A,AB$7,raw_storage_build!$E:$E,$C27,raw_storage_build!$D:$D,mainzone)","v":0},{"$f":"SUMIFS(raw_storage_build!$H:$H,raw_storage_build!$A:$A,AC$7,raw_storage_build!$E:$E,$C27,raw_storage_build!$D:$D,mainzone)","v":0},{"$f":"SUMIFS(raw_storage_build!$H:$H,raw_storage_build!$A:$A,AD$7,raw_storage_build!$E:$E,$C27,raw_storage_build!$D:$D,mainzone)","v":0},{"$f":"SUMIFS(raw_storage_build!$H:$H,raw_storage_build!$A:$A,AE$7,raw_storage_build!$E:$E,$C27,raw_storage_build!$D:$D,mainzone)","v":0},{"$f":"SUMIFS(raw_storage_build!$H:$H,raw_storage_build!$A:$A,AF$7,raw_storage_build!$E:$E,$C27,raw_storage_build!$D:$D,mainzone)","v":0},{"$f":"SUMIFS(raw_storage_build!$H:$H,raw_storage_build!$A:$A,AG$7,raw_storage_build!$E:$E,$C27,raw_storage_build!$D:$D,mainzone)","v":0},{"$f":"SUMIFS(raw_storage_build!$H:$H,raw_storage_build!$A:$A,AH$7,raw_storage_build!$E:$E,$C27,raw_storage_build!$D:$D,mainzone)","v":0},{"$f":"SUMIFS(raw_storage_build!$H:$H,raw_storage_build!$A:$A,AI$7,raw_storage_build!$E:$E,$C27,raw_storage_build!$D:$D,mainzone)","v":0},{"$f":"SUMIFS(raw_storage_build!$H:$H,raw_storage_build!$A:$A,AJ$7,raw_storage_build!$E:$E,$C27,raw_storage_build!$D:$D,mainzone)","v":0},{"$f":"SUMIFS(raw_storage_build!$H:$H,raw_storage_build!$A:$A,AK$7,raw_storage_build!$E:$E,$C27,raw_storage_build!$D:$D,mainzone)","v":0},{"$f":"SUMIFS(raw_storage_build!$H:$H,raw_storage_build!$A:$A,AL$7,raw_storage_build!$E:$E,$C27,raw_storage_build!$D:$D,mainzone)","v":0},{"$f":"SUMIFS(raw_storage_build!$H:$H,raw_storage_build!$A:$A,AM$7,raw_storage_build!$E:$E,$C27,raw_storage_build!$D:$D,mainzone)","v":0},{"$f":"SUMIFS(raw_storage_build!$H:$H,raw_storage_build!$A:$A,AN$7,raw_storage_build!$E:$E,$C27,raw_storage_build!$D:$D,mainzone)","v":0}]
[null,null,"Flow_Battery","MWh",{"$f":"SUMIFS(raw_storage_build!$H:$H,raw_storage_build!$A:$A,E$7,raw_storage_build!$E:$E,$C28,raw_storage_build!$D:$D,mainzone)","v":0},{"$f":"SUMIFS(raw_storage_build!$H:$H,raw_storage_build!$A:$A,F$7,raw_storage_build!$E:$E,$C28,raw_storage_build!$D:$D,mainzone)","v":0},{"$f":"SUMIFS(raw_storage_build!$H:$H,raw_storage_build!$A:$A,G$7,raw_storage_build!$E:$E,$C28,raw_storage_build!$D:$D,mainzone)","v":0},{"$f":"SUMIFS(raw_storage_build!$H:$H,raw_storage_build!$A:$A,H$7,raw_storage_build!$E:$E,$C28,raw_storage_build!$D:$D,mainzone)","v":0},{"$f":"SUMIFS(raw_storage_build!$H:$H,raw_storage_build!$A:$A,I$7,raw_storage_build!$E:$E,$C28,raw_storage_build!$D:$D,mainzone)","v":0},{"$f":"SUMIFS(raw_storage_build!$H:$H,raw_storage_build!$A:$A,J$7,raw_storage_build!$E:$E,$C28,raw_storage_build!$D:$D,mainzone)","v":0},{"$f":"SUMIFS(raw_storage_build!$H:$H,raw_storage_build!$A:$A,K$7,raw_storage_build!$E:$E,$C28,raw_storage_build!$D:$D,mainzone)","v":0},{"$f":"SUMIFS(raw_storage_build!$H:$H,raw_storage_build!$A:$A,L$7,raw_storage_build!$E:$E,$C28,raw_storage_build!$D:$D,mainzone)","v":0},{"$f":"SUMIFS(raw_storage_build!$H:$H,raw_storage_build!$A:$A,M$7,raw_storage_build!$E:$E,$C28,raw_storage_build!$D:$D,mainzone)","v":0},{"$f":"SUMIFS(raw_storage_build!$H:$H,raw_storage_build!$A:$A,N$7,raw_storage_build!$E:$E,$C28,raw_storage_build!$D:$D,mainzone)","v":0},{"$f":"SUMIFS(raw_storage_build!$H:$H,raw_storage_build!$A:$A,O$7,raw_storage_build!$E:$E,$C28,raw_storage_build!$D:$D,mainzone)","v":0},{"$f":"SUMIFS(raw_storage_build!$H:$H,raw_storage_build!$A:$A,P$7,raw_storage_build!$E:$E,$C28,raw_storage_build!$D:$D,mainzone)","v":0},{"$f":"SUMIFS(raw_storage_build!$H:$H,raw_storage_build!$A:$A,Q$7,raw_storage_build!$E:$E,$C28,raw_storage_build!$D:$D,mainzone)","v":0},{"$f":"SUMIFS(raw_storage_build!$H:$H,raw_storage_build!$A:$A,R$7,raw_storage_build!$E:$E,$C28,raw_storage_build!$D:$D,mainzone)","v":0},{"$f":"SUMIFS(raw_storage_build!$H:$H,raw_storage_build!$A:$A,S$7,raw_storage_build!$E:$E,$C28,raw_storage_build!$D:$D,mainzone)","v":0},{"$f":"SUMIFS(raw_storage_build!$H:$H,raw_storage_build!$A:$A,T$7,raw_storage_build!$E:$E,$C28,raw_storage_build!$D:$D,mainzone)","v":0},{"$f":"SUMIFS(raw_storage_build!$H:$H,raw_storage_build!$A:$A,U$7,raw_storage_build!$E:$E,$C28,raw_storage_build!$D:$D,mainzone)","v":0},{"$f":"SUMIFS(raw_storage_build!$H:$H,raw_storage_build!$A:$A,V$7,raw_storage_build!$E:$E,$C28,raw_storage_build!$D:$D,mainzone)","v":0},{"$f":"SUMIFS(raw_storage_build!$H:$H,raw_storage_build!$A:$A,W$7,raw_storage_build!$E:$E,$C28,raw_storage_build!$D:$D,mainzone)","v":0},{"$f":"SUMIFS(raw_storage_build!$H:$H,raw_storage_build!$A:$A,X$7,raw_storage_build!$E:$E,$C28,raw_storage_build!$D:$D,mainzone)","v":0},{"$f":"SUMIFS(raw_storage_build!$H:$H,raw_storage_build!$A:$A,Y$7,raw_storage_build!$E:$E,$C28,raw_storage_build!$D:$D,mainzone)","v":0},{"$f":"SUMIFS(raw_storage_build!$H:$H,raw_storage_build!$A:$A,Z$7,raw_storage_build!$E:$E,$C28,raw_storage_build!$D:$D,mainzone)","v":0},{"$f":"SUMIFS(raw_storage_build!$H:$H,raw_storage_build!$A:$A,AA$7,raw_storage_build!$E:$E,$C28,raw_storage_build!$D:$D,mainzone)","v":0},{"$f":"SUMIFS(raw_storage_build!$H:$H,raw_storage_build!$A:$A,AB$7,raw_storage_build!$E:$E,$C28,raw_storage_build!$D:$D,mainzone)","v":0},{"$f":"SUMIFS(raw_storage_build!$H:$H,raw_storage_build!$A:$A,AC$7,raw_storage_build!$E:$E,$C28,raw_storage_build!$D:$D,mainzone)","v":0},{"$f":"SUMIFS(raw_storage_build!$H:$H,raw_storage_build!$A:$A,AD$7,raw_storage_build!$E:$E,$C28,raw_storage_build!$D:$D,mainzone)","v":0},{"$f":"SUMIFS(raw_storage_build!$H:$H,raw_storage_build!$A:$A,AE$7,raw_storage_build!$E:$E,$C28,raw_storage_build!$D:$D,mainzone)","v":0},{"$f":"SUMIFS(raw_storage_build!$H:$H,raw_storage_build!$A:$A,AF$7,raw_storage_build!$E:$E,$C28,raw_storage_build!$D:$D,mainzone)","v":0},{"$f":"SUMIFS(raw_storage_build!$H:$H,raw_storage_build!$A:$A,AG$7,raw_storage_build!$E:$E,$C28,raw_storage_build!$D:$D,mainzone)","v":0},{"$f":"SUMIFS(raw_storage_build!$H:$H,raw_storage_build!$A:$A,AH$7,raw_storage_build!$E:$E,$C28,raw_storage_build!$D:$D,mainzone)","v":0},{"$f":"SUMIFS(raw_storage_build!$H:$H,raw_storage_build!$A:$A,AI$7,raw_storage_build!$E:$E,$C28,raw_storage_build!$D:$D,mainzone)","v":0},{"$f":"SUMIFS(raw_storage_build!$H:$H,raw_storage_build!$A:$A,AJ$7,raw_storage_build!$E:$E,$C28,raw_storage_build!$D:$D,mainzone)","v":0},{"$f":"SUMIFS(raw_storage_build!$H:$H,raw_storage_build!$A:$A,AK$7,raw_storage_build!$E:$E,$C28,raw_storage_build!$D:$D,mainzone)","v":0},{"$f":"SUMIFS(raw_storage_build!$H:$H,raw_storage_build!$A:$A,AL$7,raw_storage_build!$E:$E,$C28,raw_storage_build!$D:$D,mainzone)","v":0},{"$f":"SUMIFS(raw_storage_build!$H:$H,raw_storage_build!$A:$A,AM$7,raw_storage_build!$E:$E,$C28,raw_storage_build!$D:$D,mainzone)","v":0},{"$f":"SUMIFS(raw_storage_build!$H:$H,raw_storage_build!$A:$A,AN$7,raw_storage_build!$E:$E,$C28,raw_storage_build!$D:$D,mainzone)","v":0}]
[null,null,"Pumped_Hydro Duration","hr",{"$f":"IFERROR(E25/E21,0)","v":0},0,0,0,0,0,0,0,0,0,0,12.000025170276922,0,0,0,12.000025170276922,{"$f":"IFERROR(U25/U21,0)","v":0},0,0,0,0,0,0,0,0,0,0,0,0,0,12.000025170276922,0,0,0,0,0]
[null,null,"Li_Battery Duration","hr",{"$f":"IFERROR(E26/E22,0)","v":0},0,0,0,0,4,4,4,4.0000040878979828,3.9999984873237731,0,3.9999989832572984,0,0,0,3.769690883899218,{"$f":"IFERROR(U26/U22,0)","v":0},0,0,0,0,0,0,0,0,0,0,0,0,0,7.0469524256152587,0,0,0,0,0]
[null,null,"BTM_Li_Battery","hr",0,0,0,0,0,0,0,0,0,0,0,0,0,0,0,0,{"$f":"IFERROR(U27/U23,0)","v":0},0,0,0,0,0,0,0,0,0,0,0,0,0,0,0,0,0,0,0]
[null,null,"Flow_Battery Duration","hr",{"$f":"IFERROR(E28/E24,0)","v":0},0,0,0,0,0,0,0,0,0,0,0,0,0,0,0,{"$f":"IFERROR(U28/U24,0)","v":0},0,0,0,0,0,0,0,0,0,0,0,0,0,0,0,0,0,0,0]
[null,null,"Local Storage Build","Unit"]
[null,null,"Pumped_Hydro","MW",{"$f":"'Portfolio Analytics'!E876","v":0},{"$f":"'Portfolio Analytics'!F876","v":0},{"$f":"'Portfolio Analytics'!G876","v":0},{"$f":"'Portfolio Analytics'!H876","v":0},{"$f":"'Portfolio Analytics'!I876","v":0},{"$f":"'Portfolio Analytics'!J876","v":0},{"$f":"'Portfolio Analytics'!K876","v":0},{"$f":"'Portfolio Analytics'!L876","v":0},{"$f":"'Portfolio Analytics'!M876","v":0},{"$f":"'Portfolio Analytics'!N876","v":0},{"$f":"'Portfolio Analytics'!O876","v":0},{"$f":"'Portfolio Analytics'!P876","v":0},{"$f":"'Portfolio Analytics'!Q876","v":0},{"$f":"'Portfolio Analytics'!R876","v":0},{"$f":"'Portfolio Analytics'!S876","v":0},{"$f":"'Portfolio Analytics'!T876","v":0},{"$f":"'Portfolio Analytics'!U876","v":0},{"$f":"'Portfolio Analytics'!V876","v":0},{"$f":"'Portfolio Analytics'!W876","v":0},{"$f":"'Portfolio Analytics'!X876","v":0},{"$f":"'Portfolio Analytics'!Y876","v":0},{"$f":"'Portfolio Analytics'!Z876","v":0},{"$f":"'Portfolio Analytics'!AA876","v":0},{"$f":"'Portfolio Analytics'!AB876","v":0},{"$f":"'Portfolio Analytics'!AC876","v":0},{"$f":"'Portfolio Analytics'!AD876","v":0},{"$f":"'Portfolio Analytics'!AE876","v":0},{"$f":"'Portfolio Analytics'!AF876","v":0},{"$f":"'Portfolio Analytics'!AG876","v":0},{"$f":"'Portfolio Analytics'!AH876","v":0},{"$f":"'Portfolio Analytics'!AI876","v":0},{"$f":"'Portfolio Analytics'!AJ876","v":0},{"$f":"'Portfolio Analytics'!AK876","v":0},{"$f":"'Portfolio Analytics'!AL876","v":0},{"$f":"'Portfolio Analytics'!AM876","v":0},{"$f":"'Portfolio Analytics'!AN876","v":0}]
[null,null,"Li_Battery","MW",{"$f":"'Portfolio Analytics'!E877","v":0},{"$f":"'Portfolio Analytics'!F877","v":0},{"$f":"'Portfolio Analytics'!G877","v":0},{"$f":"'Portfolio Analytics'!H877","v":0},{"$f":"'Portfolio Analytics'!I877","v":0},{"$f":"'Portfolio Analytics'!J877","v":0},{"$f":"'Portfolio Analytics'!K877","v":0},{"$f":"'Portfolio Analytics'!L877","v":0},{"$f":"'Portfolio Analytics'!M877","v":0},{"$f":"'Portfolio Analytics'!N877","v":0},{"$f":"'Portfolio Analytics'!O877","v":0},{"$f":"'Portfolio Analytics'!P877","v":0},{"$f":"'Portfolio Analytics'!Q877","v":0},{"$f":"'Portfolio Analytics'!R877","v":0},{"$f":"'Portfolio Analytics'!S877","v":0},{"$f":"'Portfolio Analytics'!T877","v":0},{"$f":"'Portfolio Analytics'!U877","v":0},{"$f":"'Portfolio Analytics'!V877","v":0},{"$f":"'Portfolio Analytics'!W877","v":0},{"$f":"'Portfolio Analytics'!X877","v":0},{"$f":"'Portfolio Analytics'!Y877","v":0},{"$f":"'Portfolio Analytics'!Z877","v":0},{"$f":"'Portfolio Analytics'!AA877","v":0},{"$f":"'Portfolio Analytics'!AB877","v":0},{"$f":"'Portfolio Analytics'!AC877","v":0},{"$f":"'Portfolio Analytics'!AD877","v":0},{"$f":"'Portfolio Analytics'!AE877","v":0},{"$f":"'Portfolio Analytics'!AF877","v":0},{"$f":"'Portfolio Analytics'!AG877","v":0},{"$f":"'Portfolio Analytics'!AH877","v":0},{"$f":"'Portfolio Analytics'!AI877","v":0},{"$f":"'Portfolio Analytics'!AJ877","v":0},{"$f":"'Portfolio Analytics'!AK877","v":0},{"$f":"'Portfolio Analytics'!AL877","v":0},{"$f":"'Portfolio Analytics'!AM877","v":0},{"$f":"'Portfolio Analytics'!AN877","v":0}]
[null,null,"BTM_Li_Battery","MW",{"$f":"'Portfolio Analytics'!E878","v":0},{"$f":"'Portfolio Analytics'!F878","v":0},{"$f":"'Portfolio Analytics'!G878","v":0},{"$f":"'Portfolio Analytics'!H878","v":0},{"$f":"'Portfolio Analytics'!I878","v":0},{"$f":"'Portfolio Analytics'!J878","v":0},{"$f":"'Portfolio Analytics'!K878","v":0},{"$f":"'Portfolio Analytics'!L878","v":0},{"$f":"'Portfolio Analytics'!M878","v":0},{"$f":"'Portfolio Analytics'!N878","v":0},{"$f":"'Portfolio Analytics'!O878","v":0},{"$f":"'Portfolio Analytics'!P878","v":0},{"$f":"'Portfolio Analytics'!Q878","v":0},{"$f":"'Portfolio Analytics'!R878","v":0},{"$f":"'Portfolio Analytics'!S878","v":0},{"$f":"'Portfolio Analytics'!T878","v":0},null,null,null,null,null,null,null,null,null,null,{"$f":"'Portfolio Analytics'!AE878","v":0},{"$f":"'Portfolio Analytics'!AF878","v":0},{"$f":"'Portfolio Analytics'!AG878","v":0},{"$f":"'Portfolio Analytics'!AH878","v":0},{"$f":"'Portfolio Analytics'!AI878","v":0}]
[null,null,"Flow_Battery","MW",{"$f":"'Portfolio Analytics'!E879","v":0},{"$f":"'Portfolio Analytics'!F879","v":0},{"$f":"'Portfolio Analytics'!G879","v":0},{"$f":"'Portfolio Analytics'!H879","v":0},{"$f":"'Portfolio Analytics'!I879","v":0},{"$f":"'Portfolio Analytics'!J879","v":0},{"$f":"'Portfolio Analytics'!K879","v":0},{"$f":"'Portfolio Analytics'!L879","v":0},{"$f":"'Portfolio Analytics'!M879","v":0},{"$f":"'Portfolio Analytics'!N879","v":0},{"$f":"'Portfolio Analytics'!O879","v":0},{"$f":"'Portfolio Analytics'!P879","v":0},{"$f":"'Portfolio Analytics'!Q879","v":0},{"$f":"'Portfolio Analytics'!R879","v":0},{"$f":"'Portfolio Analytics'!S879","v":0},{"$f":"'Portfolio Analytics'!T879","v":0},{"$f":"'Portfolio Analytics'!U879","v":0},{"$f":"'Portfolio Analytics'!V879","v":0},{"$f":"'Portfolio Analytics'!W879","v":0},{"$f":"'Portfolio Analytics'!X879","v":0},{"$f":"'Portfolio Analytics'!Y879","v":0},{"$f":"'Portfolio Analytics'!Z879","v":0},{"$f":"'Portfolio Analytics'!AA879","v":0},{"$f":"'Portfolio Analytics'!AB879","v":0},{"$f":"'Portfolio Analytics'!AC879","v":0},{"$f":"'Portfolio Analytics'!AD879","v":0},{"$f":"'Portfolio Analytics'!AE879","v":0},{"$f":"'Portfolio Analytics'!AF879","v":0},{"$f":"'Portfolio Analytics'!AG879","v":0},{"$f":"'Portfolio Analytics'!AH879","v":0},{"$f":"'Portfolio Analytics'!AI879","v":0},{"$f":"'Portfolio Analytics'!AJ879","v":0},{"$f":"'Portfolio Analytics'!AK879","v":0},{"$f":"'Portfolio Analytics'!AL879","v":0},{"$f":"'Portfolio Analytics'!AM879","v":0},{"$f":"'Portfolio Analytics'!AN879","v":0}]
[null,null,"CAISO_New_Pumped_Storage","MWh",{"$f":"SUMIFS(raw_local_capacity_resources!$G:$G,raw_local_capacity_resources!$A:$A,$C38,raw_local_capacity_resources!$B:$B,E$7)","v":0},{"$f":"SUMIFS(raw_local_capacity_resources!$G:$G,raw_local_capacity_resources!$A:$A,$C38,raw_local_capacity_resources!$B:$B,F$7)","v":0},{"$f":"SUMIFS(raw_local_capacity_resources!$G:$G,raw_local_capacity_resources!$A:$A,$C38,raw_local_capacity_resources!$B:$B,G$7)","v":0},{"$f":"SUMIFS(raw_local_capacity_resources!$G:$G,raw_local_capacity_resources!$A:$A,$C38,raw_local_capacity_resources!$B:$B,H$7)","v":0},{"$f":"SUMIFS(raw_local_capacity_resources!$G:$G,raw_local_capacity_resources!$A:$A,$C38,raw_local_capacity_resources!$B:$B,I$7)","v":0},{"$f":"SUMIFS(raw_local_capacity_resources!$G:$G,raw_local_capacity_resources!$A:$A,$C38,raw_local_capacity_resources!$B:$B,J$7)","v":0},{"$f":"SUMIFS(raw_local_capacity_resources!$G:$G,raw_local_capacity_resources!$A:$A,$C38,raw_local_capacity_resources!$B:$B,K$7)","v":0},{"$f":"SUMIFS(raw_local_capacity_resources!$G:$G,raw_local_capacity_resources!$A:$A,$C38,raw_local_capacity_resources!$B:$B,L$7)","v":0},{"$f":"SUMIFS(raw_local_capacity_resources!$G:$G,raw_local_capacity_resources!$A:$A,$C38,raw_local_capacity_resources!$B:$B,M$7)","v":0},{"$f":"SUMIFS(raw_local_capacity_resources!$G:$G,raw_local_capacity_resources!$A:$A,$C38,raw_local_capacity_resources!$B:$B,N$7)","v":0},{"$f":"SUMIFS(raw_local_capacity_resources!$G:$G,raw_local_capacity_resources!$A:$A,$C38,raw_local_capacity_resources!$B:$B,O$7)","v":0},{"$f":"SUMIFS(raw_local_capacity_resources!$G:$G,raw_local_capacity_resources!$A:$A,$C38,raw_local_capacity_resources!$B:$B,P$7)","v":0},{"$f":"SUMIFS(raw_local_capacity_resources!$G:$G,raw_local_capacity_resources!$A:$A,$C38,raw_local_capacity_resources!$B:$B,Q$7)","v":0},{"$f":"SUMIFS(raw_local_capacity_resources!$G:$G,raw_local_capacity_resources!$A:$A,$C38,raw_local_capacity_resources!$B:$B,R$7)","v":0},{"$f":"SUMIFS(raw_local_capacity_resources!$G:$G,raw_local_capacity_resources!$A:$A,$C38,raw_local_capacity_resources!$B:$B,S$7)","v":0},{"$f":"SUMIFS(raw_local_capacity_resources!$G:$G,raw_local_capacity_resources!$A:$A,$C38,raw_local_capacity_resources!$B:$B,T$7)","v":0},{"$f":"SUMIFS(raw_local_capacity_resources!$G:$G,raw_local_capacity_resources!$A:$A,$C38,raw_local_capacity_resources!$B:$B,U$7)","v":0},{"$f":"SUMIFS(raw_local_capacity_resources!$G:$G,raw_local_capacity_resources!$A:$A,$C38,raw_local_capacity_resources!$B:$B,V$7)","v":0},{"$f":"SUMIFS(raw_local_capacity_resources!$G:$G,raw_local_capacity_resources!$A:$A,$C38,raw_local_capacity_resources!$B:$B,W$7)","v":0},{"$f":"SUMIFS(raw_local_capacity_resources!$G:$G,raw_local_capacity_resources!$A:$A,$C38,raw_local_capacity_resources!$B:$B,X$7)","v":0},{"$f":"SUMIFS(raw_local_capacity_resources!$G:$G,raw_local_capacity_resources!$A:$A,$C38,raw_local_capacity_resources!$B:$B,Y$7)","v":0},{"$f":"SUMIFS(raw_local_capacity_resources!$G:$G,raw_local_capacity_resources!$A:$A,$C38,raw_local_capacity_resources!$B:$B,Z$7)","v":0},{"$f":"SUMIFS(raw_local_capacity_resources!$G:$G,raw_local_capacity_resources!$A:$A,$C38,raw_local_capacity_resources!$B:$B,AA$7)","v":0},{"$f":"SUMIFS(raw_local_capacity_resources!$G:$G,raw_local_capacity_resources!$A:$A,$C38,raw_local_capacity_resources!$B:$B,AB$7)","v":0},{"$f":"SUMIFS(raw_local_capacity_resources!$G:$G,raw_local_capacity_resources!$A:$A,$C38,raw_local_capacity_resources!$B:$B,AC$7)","v":0},{"$f":"SUMIFS(raw_local_capacity_resources!$G:$G,raw_local_capacity_resources!$A:$A,$C38,raw_local_capacity_resources!$B:$B,AD$7)","v":0},{"$f":"SUMIFS(raw_local_capacity_resources!$G:$G,raw_local_capacity_resources!$A:$A,$C38,raw_local_capacity_resources!$B:$B,AE$7)","v":0},{"$f":"SUMIFS(raw_local_capacity_resources!$G:$G,raw_local_capacity_resources!$A:$A,$C38,raw_local_capacity_resources!$B:$B,AF$7)","v":0},{"$f":"SUMIFS(raw_local_capacity_resources!$G:$G,raw_local_capacity_resources!$A:$A,$C38,raw_local_capacity_resources!$B:$B,AG$7)","v":0},{"$f":"SUMIFS(raw_local_capacity_resources!$G:$G,raw_local_capacity_resources!$A:$A,$C38,raw_local_capacity_resources!$B:$B,AH$7)","v":0},{"$f":"SUMIFS(raw_local_capacity_resources!$G:$G,raw_local_capacity_resources!$A:$A,$C38,raw_local_capacity_resources!$B:$B,AI$7)","v":0},{"$f":"SUMIFS(raw_local_capacity_resources!$G:$G,raw_local_capacity_resources!$A:$A,$C38,raw_local_capacity_resources!$B:$B,AJ$7)","v":0},{"$f":"SUMIFS(raw_local_capacity_resources!$G:$G,raw_local_capacity_resources!$A:$A,$C38,raw_local_capacity_resources!$B:$B,AK$7)","v":0},{"$f":"SUMIFS(raw_local_capacity_resources!$G:$G,raw_local_capacity_resources!$A:$A,$C38,raw_local_capacity_resources!$B:$B,AL$7)","v":0},{"$f":"SUMIFS(raw_local_capacity_resources!$G:$G,raw_local_capacity_resources!$A:$A,$C38,raw_local_capacity_resources!$B:$B,AM$7)","v":0},{"$f":"SUMIFS(raw_local_capacity_resources!$G:$G,raw_local_capacity_resources!$A:$A,$C38,raw_local_capacity_resources!$B:$B,AN$7)","v":0}]
[null,null,"CAISO_New_Li_Battery","MWh",{"$f":"SUMIFS(raw_local_capacity_resources!$G:$G,raw_local_capacity_resources!$A:$A,$C39,raw_local_capacity_resources!$B:$B,E$7)","v":0},{"$f":"SUMIFS(raw_local_capacity_resources!$G:$G,raw_local_capacity_resources!$A:$A,$C39,raw_local_capacity_resources!$B:$B,F$7)","v":0},{"$f":"SUMIFS(raw_local_capacity_resources!$G:$G,raw_local_capacity_resources!$A:$A,$C39,raw_local_capacity_resources!$B:$B,G$7)","v":0},{"$f":"SUMIFS(raw_local_capacity_resources!$G:$G,raw_local_capacity_resources!$A:$A,$C39,raw_local_capacity_resources!$B:$B,H$7)","v":0},{"$f":"SUMIFS(raw_local_capacity_resources!$G:$G,raw_local_capacity_resources!$A:$A,$C39,raw_local_capacity_resources!$B:$B,I$7)","v":0},{"$f":"SUMIFS(raw_local_capacity_resources!$G:$G,raw_local_capacity_resources!$A:$A,$C39,raw_local_capacity_resources!$B:$B,J$7)","v":0},{"$f":"SUMIFS(raw_local_capacity_resources!$G:$G,raw_local_capacity_resources!$A:$A,$C39,raw_local_capacity_resources!$B:$B,K$7)","v":0},{"$f":"SUMIFS(raw_local_capacity_resources!$G:$G,raw_local_capacity_resources!$A:$A,$C39,raw_local_capacity_resources!$B:$B,L$7)","v":0},{"$f":"SUMIFS(raw_local_capacity_resources!$G:$G,raw_local_capacity_resources!$A:$A,$C39,raw_local_capacity_resources!$B:$B,M$7)","v":0},{"$f":"SUMIFS(raw_local_capacity_resources!$G:$G,raw_local_capacity_resources!$A:$A,$C39,raw_local_capacity_resources!$B:$B,N$7)","v":0},{"$f":"SUMIFS(raw_local_capacity_resources!$G:$G,raw_local_capacity_resources!$A:$A,$C39,raw_local_capacity_resources!$B:$B,O$7)","v":0},{"$f":"SUMIFS(raw_local_capacity_resources!$G:$G,raw_local_capacity_resources!$A:$A,$C39,raw_local_capacity_resources!$B:$B,P$7)","v":0},{"$f":"SUMIFS(raw_local_capacity_resources!$G:$G,raw_local_capacity_resources!$A:$A,$C39,raw_local_capacity_resources!$B:$B,Q$7)","v":0},{"$f":"SUMIFS(raw_local_capacity_resources!$G:$G,raw_local_capacity_resources!$A:$A,$C39,raw_local_capacity_resources!$B:$B,R$7)","v":0},{"$f":"SUMIFS(raw_local_capacity_resources!$G:$G,raw_local_capacity_resources!$A:$A,$C39,raw_local_capacity_resources!$B:$B,S$7)","v":0},{"$f":"SUMIFS(raw_local_capacity_resources!$G:$G,raw_local_capacity_resources!$A:$A,$C39,raw_local_capacity_resources!$B:$B,T$7)","v":0},{"$f":"SUMIFS(raw_local_capacity_resources!$G:$G,raw_local_capacity_resources!$A:$A,$C39,raw_local_capacity_resources!$B:$B,U$7)","v":0},{"$f":"SUMIFS(raw_local_capacity_resources!$G:$G,raw_local_capacity_resources!$A:$A,$C39,raw_local_capacity_resources!$B:$B,V$7)","v":0},{"$f":"SUMIFS(raw_local_capacity_resources!$G:$G,raw_local_capacity_resources!$A:$A,$C39,raw_local_capacity_resources!$B:$B,W$7)","v":0},{"$f":"SUMIFS(raw_local_capacity_resources!$G:$G,raw_local_capacity_resources!$A:$A,$C39,raw_local_capacity_resources!$B:$B,X$7)","v":0},{"$f":"SUMIFS(raw_local_capacity_resources!$G:$G,raw_local_capacity_resources!$A:$A,$C39,raw_local_capacity_resources!$B:$B,Y$7)","v":0},{"$f":"SUMIFS(raw_local_capacity_resources!$G:$G,raw_local_capacity_resources!$A:$A,$C39,raw_local_capacity_resources!$B:$B,Z$7)","v":0},{"$f":"SUMIFS(raw_local_capacity_resources!$G:$G,raw_local_capacity_resources!$A:$A,$C39,raw_local_capacity_resources!$B:$B,AA$7)","v":0},{"$f":"SUMIFS(raw_local_capacity_resources!$G:$G,raw_local_capacity_resources!$A:$A,$C39,raw_local_capacity_resources!$B:$B,AB$7)","v":0},{"$f":"SUMIFS(raw_local_capacity_resources!$G:$G,raw_local_capacity_resources!$A:$A,$C39,raw_local_capacity_resources!$B:$B,AC$7)","v":0},{"$f":"SUMIFS(raw_local_capacity_resources!$G:$G,raw_local_capacity_resources!$A:$A,$C39,raw_local_capacity_resources!$B:$B,AD$7)","v":0},{"$f":"SUMIFS(raw_local_capacity_resources!$G:$G,raw_local_capacity_resources!$A:$A,$C39,raw_local_capacity_resources!$B:$B,AE$7)","v":0},{"$f":"SUMIFS(raw_local_capacity_resources!$G:$G,raw_local_capacity_resources!$A:$A,$C39,raw_local_capacity_resources!$B:$B,AF$7)","v":0},{"$f":"SUMIFS(raw_local_capacity_resources!$G:$G,raw_local_capacity_resources!$A:$A,$C39,raw_local_capacity_resources!$B:$B,AG$7)","v":0},{"$f":"SUMIFS(raw_local_capacity_resources!$G:$G,raw_local_capacity_resources!$A:$A,$C39,raw_local_capacity_resources!$B:$B,AH$7)","v":0},{"$f":"SUMIFS(raw_local_capacity_resources!$G:$G,raw_local_capacity_resources!$A:$A,$C39,raw_local_capacity_resources!$B:$B,AI$7)","v":0},{"$f":"SUMIFS(raw_local_capacity_resources!$G:$G,raw_local_capacity_resources!$A:$A,$C39,raw_local_capacity_resources!$B:$B,AJ$7)","v":0},{"$f":"SUMIFS(raw_local_capacity_resources!$G:$G,raw_local_capacity_resources!$A:$A,$C39,raw_local_capacity_resources!$B:$B,AK$7)","v":0},{"$f":"SUMIFS(raw_local_capacity_resources!$G:$G,raw_local_capacity_resources!$A:$A,$C39,raw_local_capacity_resources!$B:$B,AL$7)","v":0},{"$f":"SUMIFS(raw_local_capacity_resources!$G:$G,raw_local_capacity_resources!$A:$A,$C39,raw_local_capacity_resources!$B:$B,AM$7)","v":0},{"$f":"SUMIFS(raw_local_capacity_resources!$G:$G,raw_local_capacity_resources!$A:$A,$C39,raw_local_capacity_resources!$B:$B,AN$7)","v":0}]
[null,null,"BTM_Li_Battery","MWh",{"$f":"SUMIFS(raw_local_capacity_resources!$G:$G,raw_local_capacity_resources!$A:$A,$C40,raw_local_capacity_resources!$B:$B,E$7)","v":0},{"$f":"SUMIFS(raw_local_capacity_resources!$G:$G,raw_local_capacity_resources!$A:$A,$C40,raw_local_capacity_resources!$B:$B,F$7)","v":0},{"$f":"SUMIFS(raw_local_capacity_resources!$G:$G,raw_local_capacity_resources!$A:$A,$C40,raw_local_capacity_resources!$B:$B,G$7)","v":0},{"$f":"SUMIFS(raw_local_capacity_resources!$G:$G,raw_local_capacity_resources!$A:$A,$C40,raw_local_capacity_resources!$B:$B,H$7)","v":0},{"$f":"SUMIFS(raw_local_capacity_resources!$G:$G,raw_local_capacity_resources!$A:$A,$C40,raw_local_capacity_resources!$B:$B,I$7)","v":0},{"$f":"SUMIFS(raw_local_capacity_resources!$G:$G,raw_local_capacity_resources!$A:$A,$C40,raw_local_capacity_resources!$B:$B,J$7)","v":0},{"$f":"SUMIFS(raw_local_capacity_resources!$G:$G,raw_local_capacity_resources!$A:$A,$C40,raw_local_capacity_resources!$B:$B,K$7)","v":0},{"$f":"SUMIFS(raw_local_capacity_resources!$G:$G,raw_local_capacity_resources!$A:$A,$C40,raw_local_capacity_resources!$B:$B,L$7)","v":0},{"$f":"SUMIFS(raw_local_capacity_resources!$G:$G,raw_local_capacity_resources!$A:$A,$C40,raw_local_capacity_resources!$B:$B,M$7)","v":0},{"$f":"SUMIFS(raw_local_capacity_resources!$G:$G,raw_local_capacity_resources!$A:$A,$C40,raw_local_capacity_resources!$B:$B,N$7)","v":0},{"$f":"SUMIFS(raw_local_capacity_resources!$G:$G,raw_local_capacity_resources!$A:$A,$C40,raw_local_capacity_resources!$B:$B,O$7)","v":0},{"$f":"SUMIFS(raw_local_capacity_resources!$G:$G,raw_local_capacity_resources!$A:$A,$C40,raw_local_capacity_resources!$B:$B,P$7)","v":0},{"$f":"SUMIFS(raw_local_capacity_resources!$G:$G,raw_local_capacity_resources!$A:$A,$C40,raw_local_capacity_resources!$B:$B,Q$7)","v":0},{"$f":"SUMIFS(raw_local_capacity_resources!$G:$G,raw_local_capacity_resources!$A:$A,$C40,raw_local_capacity_resources!$B:$B,R$7)","v":0},{"$f":"SUMIFS(raw_local_capacity_resources!$G:$G,raw_local_capacity_resources!$A:$A,$C40,raw_local_capacity_resources!$B:$B,S$7)","v":0},{"$f":"SUMIFS(raw_local_capacity_resources!$G:$G,raw_local_capacity_resources!$A:$A,$C40,raw_local_capacity_resources!$B:$B,T$7)","v":0},null,null,null,null,null,null,null,null,null,null,{"$f":"SUMIFS(raw_local_capacity_resources!$G:$G,raw_local_capacity_resources!$A:$A,$C40,raw_local_capacity_resources!$B:$B,AE$7)","v":0},{"$f":"SUMIFS(raw_local_capacity_resources!$G:$G,raw_local_capacity_resources!$A:$A,$C40,raw_local_capacity_resources!$B:$B,AF$7)","v":0},{"$f":"SUMIFS(raw_local_capacity_resources!$G:$G,raw_local_capacity_resources!$A:$A,$C40,raw_local_capacity_resources!$B:$B,AG$7)","v":0},{"$f":"SUMIFS(raw_local_capacity_resources!$G:$G,raw_local_capacity_resources!$A:$A,$C40,raw_local_capacity_resources!$B:$B,AH$7)","v":0},{"$f":"SUMIFS(raw_local_capacity_resources!$G:$G,raw_local_capacity_resources!$A:$A,$C40,raw_local_capacity_resources!$B:$B,AI$7)","v":0}]
[null,null,"CAISO_New_Flow_Battery","MWh",{"$f":"SUMIFS(raw_local_capacity_resources!$G:$G,raw_local_capacity_resources!$A:$A,$C41,raw_local_capacity_resources!$B:$B,E$7)","v":0},{"$f":"SUMIFS(raw_local_capacity_resources!$G:$G,raw_local_capacity_resources!$A:$A,$C41,raw_local_capacity_resources!$B:$B,F$7)","v":0},{"$f":"SUMIFS(raw_local_capacity_resources!$G:$G,raw_local_capacity_resources!$A:$A,$C41,raw_local_capacity_resources!$B:$B,G$7)","v":0},{"$f":"SUMIFS(raw_local_capacity_resources!$G:$G,raw_local_capacity_resources!$A:$A,$C41,raw_local_capacity_resources!$B:$B,H$7)","v":0},{"$f":"SUMIFS(raw_local_capacity_resources!$G:$G,raw_local_capacity_resources!$A:$A,$C41,raw_local_capacity_resources!$B:$B,I$7)","v":0},{"$f":"SUMIFS(raw_local_capacity_resources!$G:$G,raw_local_capacity_resources!$A:$A,$C41,raw_local_capacity_resources!$B:$B,J$7)","v":0},{"$f":"SUMIFS(raw_local_capacity_resources!$G:$G,raw_local_capacity_resources!$A:$A,$C41,raw_local_capacity_resources!$B:$B,K$7)","v":0},{"$f":"SUMIFS(raw_local_capacity_resources!$G:$G,raw_local_capacity_resources!$A:$A,$C41,raw_local_capacity_resources!$B:$B,L$7)","v":0},{"$f":"SUMIFS(raw_local_capacity_resources!$G:$G,raw_local_capacity_resources!$A:$A,$C41,raw_local_capacity_resources!$B:$B,M$7)","v":0},{"$f":"SUMIFS(raw_local_capacity_resources!$G:$G,raw_local_capacity_resources!$A:$A,$C41,raw_local_capacity_resources!$B:$B,N$7)","v":0},{"$f":"SUMIFS(raw_local_capacity_resources!$G:$G,raw_local_capacity_resources!$A:$A,$C41,raw_local_capacity_resources!$B:$B,O$7)","v":0},{"$f":"SUMIFS(raw_local_capacity_resources!$G:$G,raw_local_capacity_resources!$A:$A,$C41,raw_local_capacity_resources!$B:$B,P$7)","v":0},{"$f":"SUMIFS(raw_local_capacity_resources!$G:$G,raw_local_capacity_resources!$A:$A,$C41,raw_local_capacity_resources!$B:$B,Q$7)","v":0},{"$f":"SUMIFS(raw_local_capacity_resources!$G:$G,raw_local_capacity_resources!$A:$A,$C41,raw_local_capacity_resources!$B:$B,R$7)","v":0},{"$f":"SUMIFS(raw_local_capacity_resources!$G:$G,raw_local_capacity_resources!$A:$A,$C41,raw_local_capacity_resources!$B:$B,S$7)","v":0},{"$f":"SUMIFS(raw_local_capacity_resources!$G:$G,raw_local_capacity_resources!$A:$A,$C41,raw_local_capacity_resources!$B:$B,T$7)","v":0},{"$f":"SUMIFS(raw_local_capacity_resources!$G:$G,raw_local_capacity_resources!$A:$A,$C41,raw_local_capacity_resources!$B:$B,U$7)","v":0},{"$f":"SUMIFS(raw_local_capacity_resources!$G:$G,raw_local_capacity_resources!$A:$A,$C41,raw_local_capacity_resources!$B:$B,V$7)","v":0},{"$f":"SUMIFS(raw_local_capacity_resources!$G:$G,raw_local_capacity_resources!$A:$A,$C41,raw_local_capacity_resources!$B:$B,W$7)","v":0},{"$f":"SUMIFS(raw_local_capacity_resources!$G:$G,raw_local_capacity_resources!$A:$A,$C41,raw_local_capacity_resources!$B:$B,X$7)","v":0},{"$f":"SUMIFS(raw_local_capacity_resources!$G:$G,raw_local_capacity_resources!$A:$A,$C41,raw_local_capacity_resources!$B:$B,Y$7)","v":0},{"$f":"SUMIFS(raw_local_capacity_resources!$G:$G,raw_local_capacity_resources!$A:$A,$C41,raw_local_capacity_resources!$B:$B,Z$7)","v":0},{"$f":"SUMIFS(raw_local_capacity_resources!$G:$G,raw_local_capacity_resources!$A:$A,$C41,raw_local_capacity_resources!$B:$B,AA$7)","v":0},{"$f":"SUMIFS(raw_local_capacity_resources!$G:$G,raw_local_capacity_resources!$A:$A,$C41,raw_local_capacity_resources!$B:$B,AB$7)","v":0},{"$f":"SUMIFS(raw_local_capacity_resources!$G:$G,raw_local_capacity_resources!$A:$A,$C41,raw_local_capacity_resources!$B:$B,AC$7)","v":0},{"$f":"SUMIFS(raw_local_capacity_resources!$G:$G,raw_local_capacity_resources!$A:$A,$C41,raw_local_capacity_resources!$B:$B,AD$7)","v":0},{"$f":"SUMIFS(raw_local_capacity_resources!$G:$G,raw_local_capacity_resources!$A:$A,$C41,raw_local_capacity_resources!$B:$B,AE$7)","v":0},{"$f":"SUMIFS(raw_local_capacity_resources!$G:$G,raw_local_capacity_resources!$A:$A,$C41,raw_local_capacity_resources!$B:$B,AF$7)","v":0},{"$f":"SUMIFS(raw_local_capacity_resources!$G:$G,raw_local_capacity_resources!$A:$A,$C41,raw_local_capacity_resources!$B:$B,AG$7)","v":0},{"$f":"SUMIFS(raw_local_capacity_resources!$G:$G,raw_local_capacity_resources!$A:$A,$C41,raw_local_capacity_resources!$B:$B,AH$7)","v":0},{"$f":"SUMIFS(raw_local_capacity_resources!$G:$G,raw_local_capacity_resources!$A:$A,$C41,raw_local_capacity_resources!$B:$B,AI$7)","v":0},{"$f":"SUMIFS(raw_local_capacity_resources!$G:$G,raw_local_capacity_resources!$A:$A,$C41,raw_local_capacity_resources!$B:$B,AJ$7)","v":0},{"$f":"SUMIFS(raw_local_capacity_resources!$G:$G,raw_local_capacity_resources!$A:$A,$C41,raw_local_capacity_resources!$B:$B,AK$7)","v":0},{"$f":"SUMIFS(raw_local_capacity_resources!$G:$G,raw_local_capacity_resources!$A:$A,$C41,raw_local_capacity_resources!$B:$B,AL$7)","v":0},{"$f":"SUMIFS(raw_local_capacity_resources!$G:$G,raw_local_capacity_resources!$A:$A,$C41,raw_local_capacity_resources!$B:$B,AM$7)","v":0},{"$f":"SUMIFS(raw_local_capacity_resources!$G:$G,raw_local_capacity_resources!$A:$A,$C41,raw_local_capacity_resources!$B:$B,AN$7)","v":0}]
[null,null,"Pumped_Hydro Duration","hr",{"$f":"IFERROR(E38/E34,0)","v":0},0,0,0,0,0,0,0,0,0,0,0,0,0,0,0,{"$f":"IFERROR(U38/U34,0)","v":0},0,0,0,0,0,0,0,0,0,0,0,0,0,0,0,0,0,0,0]
[null,null,"Li_Battery Duration","hr",{"$f":"IFERROR(E39/E35,0)","v":0},0,0,0,0,0,0,0,0,0,0,0,0,0,0,0,{"$f":"IFERROR(U39/U35,0)","v":0},0,0,0,0,0,0,0,0,0,0,0,0,0,0,0,0,0,0,0]
[null,null,"BTM_Li_Battery","hr",0,0,0,0,0,0,0,0,0,0,0,0,0,0,0,0,null,null,null,null,null,null,null,null,null,null,{"$f":"IFERROR(AE40/AE36,0)","v":0},{"$f":"IFERROR(AF40/AF36,0)","v":0},{"$f":"IFERROR(AG40/AG36,0)","v":0},{"$f":"IFERROR(AH40/AH36,0)","v":0},{"$f":"IFERROR(AI40/AI36,0)","v":0}]
[null,null,"Flow_Battery Duration","hr",{"$f":"IFERROR(E41/E37,0)","v":0},0,0,0,0,0,0,0,0,0,0,0,0,0,0,0,{"$f":"IFERROR(U41/U37,0)","v":0},0,0,0,0,0,0,0,0,0,0,0,0,0,0,0,0,0,0,0]
[null,null,"Optimized Build - Excl. Local Storage","Unit"]
[null,null,"Pumped_Hydro","MW",{"$f":"E21-E34","v":0},0,0,0,0,0,0,0,0,0,0,1986.47,1986.47,1986.47,1986.47,1986.47,{"$f":"U21-U34","v":1986.47},1986.47,1986.47,1986.47,1986.47,1986.47,1986.47,1986.47,1986.47,1986.47,1986.47,1986.47,1986.47,1986.47,1986.47,1986.47,1986.47,1986.47,1986.47,1986.47]
[null,null,"Li_Battery","MW",{"$f":"E22-E35","v":0},0,0,0,0,2446.75,4726.1100000000006,4726.1100000000006,4892.49,6610.8,6610.8,9835.3299999999981,9835.3299999999981,9835.3299999999981,9835.3299999999981,12428.339999999998,{"$f":"U22-U35","v":12428.339999999998},12428.339999999998,12428.339999999998,12428.339999999998,12428.339999999998,12428.339999999998,12428.339999999998,12428.339999999998,12428.339999999998,12428.339999999998,12428.339999999998,12428.339999999998,12428.339999999998,12428.339999999998,59216.11,59216.11,59216.11,59216.11,59216.11,59216.11]
[null,null,"BTM_Li_Battery","MW",0,0,0,0,0,0,0,0,0,0,0,0,0,0,0,0,null,null,null,null,null,null,null,null,null,null,{"$f":"AE23-AE36","v":0},{"$f":"AF23-AF36","v":0},{"$f":"AG23-AG36","v":0},{"$f":"AH23-AH36","v":0},{"$f":"AI23-AI36","v":0}]
[null,null,"Flow_Battery","MW",{"$f":"E24-E37","v":0},0,0,0,0,0,0,0,0,0,0,0,0,0,0,0,{"$f":"U24-U37","v":0},0,0,0,0,0,0,0,0,0,0,0,0,0,0,0,0,0,0,0]
[null,null,"Pumped_Hydro","MWh",{"$f":"E25-E38","v":0},0,0,0,0,0,0,0,0,0,0,23837.69,0,0,0,23837.69,{"$f":"U25-U38","v":0},0,0,0,0,0,0,0,0,0,0,0,0,0,23837.69,0,0,0,0,0]
[null,null,"Li_Battery","MWh",{"$f":"E26-E39","v":0},0,0,0,0,9787,18904.440000000002,18904.440000000002,19569.98,26443.19,0,39341.31,0,0,0,46851,{"$f":"U26-U39","v":0},0,0,0,0,0,0,0,0,0,0,0,0,0,417293.11,0,0,0,0,0]
[null,null,"BTM_Li_Battery","MWh",0,0,0,0,0,0,0,0,0,0,0,0,0,0,0,0,null,null,null,null,null,null,null,null,null,null,{"$f":"AE27-AE40","v":0},{"$f":"AF27-AF40","v":0},{"$f":"AG27-AG40","v":0},{"$f":"AH27-AH40","v":0},{"$f":"AI27-AI40","v":0}]
[null,null,"Flow_Battery","MWh",{"$f":"E28-E41","v":0},0,0,0,0,0,0,0,0,0,0,0,0,0,0,0,{"$f":"U28-U41","v":0},0,0,0,0,0,0,0,0,0,0,0,0,0,0,0,0,0,0,0]
[null,null,"Pumped_Hydro Duration","hr",{"$f":"IFERROR(E51/E47,0)","v":0},0,0,0,0,0,0,0,0,0,0,12.000025170276922,0,0,0,12.000025170276922,{"$f":"IFERROR(U51/U47,0)","v":0},0,0,0,0,0,0,0,0,0,0,0,0,0,12.000025170276922,0,0,0,0,0]
[null,null,"Li_Battery Duration","hr",{"$f":"IFERROR(E52/E48,0)","v":0},0,0,0,0,4,4,4,4.0000040878979828,3.9999984873237731,0,3.9999989832572984,0,0,0,3.769690883899218,{"$f":"IFERROR(U52/U48,0)","v":0},0,0,0,0,0,0,0,0,0,0,0,0,0,7.0469524256152587,0,0,0,0,0]
[null,null,"BTM_Li_Battery","hr",0,0,0,0,0,0,0,0,0,0,0,0,0,0,0,0,null,null,null,null,null,null,null,null,null,null,{"$f":"IFERROR(AE53/AE49,0)","v":0},{"$f":"IFERROR(AF53/AF49,0)","v":0},{"$f":"IFERROR(AG53/AG49,0)","v":0},{"$f":"IFERROR(AH53/AH49,0)","v":0},{"$f":"IFERROR(AI53/AI49,0)","v":0}]
[null,null,"Flow_Battery Duration","hr",{"$f":"IFERROR(E54/E50,0)","v":0},0,0,0,0,0,0,0,0,0,0,0,0,0,0,0,{"$f":"IFERROR(U54/U50,0)","v":0},0,0,0,0,0,0,0,0,0,0,0,0,0,0,0,0,0,0,0]
[null,null,"Average Storage Duration - Optimized Build","hr",{"$f":"IFERROR(SUM(E51:E54)/SUM(E47:E50),0)","v":0},{"$f":"IFERROR(SUM(F51:F54)/SUM(F47:F50),0)","v":0},{"$f":"IFERROR(SUM(G51:G54)/SUM(G47:G50),0)","v":0},{"$f":"IFERROR(SUM(H51:H54)/SUM(H47:H50),0)","v":0},{"$f":"IFERROR(SUM(I51:I54)/SUM(I47:I50),0)","v":0},4,4,4,4.0000040878979828,3.9999984873237731,0,5.3442792129794121,0,0,0,4.9038932875285912,0,0,0,0,0,0,0,0,0,0,{"$f":"IFERROR(SUM(AE51:AE54)/SUM(AE47:AE50),0)","v":0},{"$f":"IFERROR(SUM(AF51:AF54)/SUM(AF47:AF50),0)","v":0},{"$f":"IFERROR(SUM(AG51:AG54)/SUM(AG47:AG50),0)","v":0},{"$f":"IFERROR(SUM(AH51:AH54)/SUM(AH47:AH50),0)","v":0},{"$f":"IFERROR(SUM(AI51:AI54)/SUM(AI47:AI50),0)","v":7.2077157531594249},0,0,0,0,0]
[null,null,"Note: Optimized duration is a cumulative value reflecting all power and energy capacity built through the reported year."]
[]
[null,"Total Resources by Technology"]
[]
[null,null,"Technology","Unit",2015,{"$f":"E64+1","v":2016},2017,2018,2019,2020,2021,2022,2023,2024,2025,2026,2027,2028,2029,2030,{"$f":"T64+1","v":2031},2032,2033,2034,2035,2036,2037,2038,2039,2040,2041,2042,2043,2044,2045,2046,2047,2048,2049,2050]
[null,null,{"$f":"Lists!B5","v":"CAISO_ST"},"MW",{"$f":"SUMIFS(raw_resource_build!$I:$I,raw_resource_build!$E:$E,'Portfolio Analytics'!$C65,raw_resource_build!$A:$A,'Portfolio Analytics'!E$64,raw_resource_build!$C:$C,mainzone)","v":0},{"$f":"SUMIFS(raw_resource_build!$I:$I,raw_resource_build!$E:$E,'Portfolio Analytics'!$C65,raw_resource_build!$A:$A,'Portfolio Analytics'!F$64,raw_resource_build!$C:$C,mainzone)","v":0},{"$f":"SUMIFS(raw_resource_build!$I:$I,raw_resource_build!$E:$E,'Portfolio Analytics'!$C65,raw_resource_build!$A:$A,'Portfolio Analytics'!G$64,raw_resource_build!$C:$C,mainzone)","v":0},{"$f":"SUMIFS(raw_resource_build!$I:$I,raw_resource_build!$E:$E,'Portfolio Analytics'!$C65,raw_resource_build!$A:$A,'Portfolio Analytics'!H$64,raw_resource_build!$C:$C,mainzone)","v":0},{"$f":"SUMIFS(raw_resource_build!$I:$I,raw_resource_build!$E:$E,'Portfolio Analytics'!$C65,raw_resource_build!$A:$A,'Portfolio Analytics'!I$64,raw_resource_build!$C:$C,mainzone)","v":0},{"$f":"SUMIFS(raw_resource_build!$I:$I,raw_resource_build!$E:$E,'Portfolio Analytics'!$C65,raw_resource_build!$A:$A,'Portfolio Analytics'!J$64,raw_resource_build!$C:$C,mainzone)","v":3733},{"$f":"SUMIFS(raw_resource_build!$I:$I,raw_resource_build!$E:$E,'Portfolio Analytics'!$C65,raw_resource_build!$A:$A,'Portfolio Analytics'!K$64,raw_resource_build!$C:$C,mainzone)","v":0},{"$f":"SUMIFS(raw_resource_build!$I:$I,raw_resource_build!$E:$E,'Portfolio Analytics'!$C65,raw_resource_build!$A:$A,'Portfolio Analytics'!L$64,raw_resource_build!$C:$C,mainzone)","v":0},{"$f":"SUMIFS(raw_resource_build!$I:$I,raw_resource_build!$E:$E,'Portfolio Analytics'!$C65,raw_resource_build!$A:$A,'Portfolio Analytics'!M$64,raw_resource_build!$C:$C,mainzone)","v":0},{"$f":"SUMIFS(raw_resource_build!$I:$I,raw_resource_build!$E:$E,'Portfolio Analytics'!$C65,raw_resource_build!$A:$A,'Portfolio Analytics'!N$64,raw_resource_build!$C:$C,mainzone)","v":0},{"$f":"SUMIFS(raw_resource_build!$I:$I,raw_resource_build!$E:$E,'Portfolio Analytics'!$C65,raw_resource_build!$A:$A,'Portfolio Analytics'!O$64,raw_resource_build!$C:$C,mainzone)","v":0},{"$f":"SUMIFS(raw_resource_build!$I:$I,raw_resource_build!$E:$E,'Portfolio Analytics'!$C65,raw_resource_build!$A:$A,'Portfolio Analytics'!P$64,raw_resource_build!$C:$C,mainzone)","v":0},{"$f":"SUMIFS(raw_resource_build!$I:$I,raw_resource_build!$E:$E,'Portfolio Analytics'!$C65,raw_resource_build!$A:$A,'Portfolio Analytics'!Q$64,raw_resource_build!$C:$C,mainzone)","v":0},{"$f":"SUMIFS(raw_resource_build!$I:$I,raw_resource_build!$E:$E,'Portfolio Analytics'!$C65,raw_resource_build!$A:$A,'Portfolio Analytics'!R$64,raw_resource_build!$C:$C,mainzone)","v":0},{"$f":"SUMIFS(raw_resource_build!$I:$I,raw_resource_build!$E:$E,'Portfolio Analytics'!$C65,raw_resource_build!$A:$A,'Portfolio Analytics'!S$64,raw_resource_build!$C:$C,mainzone)","v":0},{"$f":"SUMIFS(raw_resource_build!$I:$I,raw_resource_build!$E:$E,'Portfolio Analytics'!$C65,raw_resource_build!$A:$A,'Portfolio Analytics'!T$64,raw_resource_build!$C:$C,mainzone)","v":0},{"$f":"SUMIFS(raw_resource_build!$I:$I,raw_resource_build!$E:$E,'Portfolio Analytics'!$C65,raw_resource_build!$A:$A,'Portfolio Analytics'!U$64,raw_resource_build!$C:$C,mainzone)","v":0},{"$f":"SUMIFS(raw_resource_build!$I:$I,raw_resource_build!$E:$E,'Portfolio Analytics'!$C65,raw_resource_build!$A:$A,'Portfolio Analytics'!V$64,raw_resource_build!$C:$C,mainzone)","v":0},{"$f":"SUMIFS(raw_resource_build!$I:$I,raw_resource_build!$E:$E,'Portfolio Analytics'!$C65,raw_resource_build!$A:$A,'Portfolio Analytics'!W$64,raw_resource_build!$C:$C,mainzone)","v":0},{"$f":"SUMIFS(raw_resource_build!$I:$I,raw_resource_build!$E:$E,'Portfolio Analytics'!$C65,raw_resource_build!$A:$A,'Portfolio Analytics'!X$64,raw_resource_build!$C:$C,mainzone)","v":0},{"$f":"SUMIFS(raw_resource_build!$I:$I,raw_resource_build!$E:$E,'Portfolio Analytics'!$C65,raw_resource_build!$A:$A,'Portfolio Analytics'!Y$64,raw_resource_build!$C:$C,mainzone)","v":0},{"$f":"SUMIFS(raw_resource_build!$I:$I,raw_resource_build!$E:$E,'Portfolio Analytics'!$C65,raw_resource_build!$A:$A,'Portfolio Analytics'!Z$64,raw_resource_build!$C:$C,mainzone)","v":0},{"$f":"SUMIFS(raw_resource_build!$I:$I,raw_resource_build!$E:$E,'Portfolio Analytics'!$C65,raw_resource_build!$A:$A,'Portfolio Analytics'!AA$64,raw_resource_build!$C:$C,mainzone)","v":0},{"$f":"SUMIFS(raw_resource_build!$I:$I,raw_resource_build!$E:$E,'Portfolio Analytics'!$C65,raw_resource_build!$A:$A,'Portfolio Analytics'!AB$64,raw_resource_build!$C:$C,mainzone)","v":0},{"$f":"SUMIFS(raw_resource_build!$I:$I,raw_resource_build!$E:$E,'Portfolio Analytics'!$C65,raw_resource_build!$A:$A,'Portfolio Analytics'!AC$64,raw_resource_build!$C:$C,mainzone)","v":0},{"$f":"SUMIFS(raw_resource_build!$I:$I,raw_resource_build!$E:$E,'Portfolio Analytics'!$C65,raw_resource_build!$A:$A,'Portfolio Analytics'!AD$64,raw_resource_build!$C:$C,mainzone)","v":0},{"$f":"SUMIFS(raw_resource_build!$I:$I,raw_resource_build!$E:$E,'Portfolio Analytics'!$C65,raw_resource_build!$A:$A,'Portfolio Analytics'!AE$64,raw_resource_build!$C:$C,mainzone)","v":0},{"$f":"SUMIFS(raw_resource_build!$I:$I,raw_resource_build!$E:$E,'Portfolio Analytics'!$C65,raw_resource_build!$A:$A,'Portfolio Analytics'!AF$64,raw_resource_build!$C:$C,mainzone)","v":0},{"$f":"SUMIFS(raw_resource_build!$I:$I,raw_resource_build!$E:$E,'Portfolio Analytics'!$C65,raw_resource_build!$A:$A,'Portfolio Analytics'!AG$64,raw_resource_build!$C:$C,mainzone)","v":0},{"$f":"SUMIFS(raw_resource_build!$I:$I,raw_resource_build!$E:$E,'Portfolio Analytics'!$C65,raw_resource_build!$A:$A,'Portfolio Analytics'!AH$64,raw_resource_build!$C:$C,mainzone)","v":0},{"$f":"SUMIFS(raw_resource_build!$I:$I,raw_resource_build!$E:$E,'Portfolio Analytics'!$C65,raw_resource_build!$A:$A,'Portfolio Analytics'!AI$64,raw_resource_build!$C:$C,mainzone)","v":0},{"$f":"SUMIFS(raw_resource_build!$I:$I,raw_resource_build!$E:$E,'Portfolio Analytics'!$C65,raw_resource_build!$A:$A,'Portfolio Analytics'!AJ$64,raw_resource_build!$C:$C,mainzone)","v":0},{"$f":"SUMIFS(raw_resource_build!$I:$I,raw_resource_build!$E:$E,'Portfolio Analytics'!$C65,raw_resource_build!$A:$A,'Portfolio Analytics'!AK$64,raw_resource_build!$C:$C,mainzone)","v":0},{"$f":"SUMIFS(raw_resource_build!$I:$I,raw_resource_build!$E:$E,'Portfolio Analytics'!$C65,raw_resource_build!$A:$A,'Portfolio Analytics'!AL$64,raw_resource_build!$C:$C,mainzone)","v":0},{"$f":"SUMIFS(raw_resource_build!$I:$I,raw_resource_build!$E:$E,'Portfolio Analytics'!$C65,raw_resource_build!$A:$A,'Portfolio Analytics'!AM$64,raw_resource_build!$C:$C,mainzone)","v":0},{"$f":"SUMIFS(raw_resource_build!$I:$I,raw_resource_build!$E:$E,'Portfolio Analytics'!$C65,raw_resource_build!$A:$A,'Portfolio Analytics'!AN$64,raw_resource_build!$C:$C,mainzone)","v":0}]
[null,null,{"$f":"Lists!B6","v":"CAISO_CCGT1"},"MW",{"$f":"SUMIFS(raw_resource_build!$I:$I,raw_resource_build!$E:$E,'Portfolio Analytics'!$C66,raw_resource_build!$A:$A,'Portfolio Analytics'!E$64,raw_resource_build!$C:$C,mainzone)","v":0},{"$f":"SUMIFS(raw_resource_build!$I:$I,raw_resource_build!$E:$E,'Portfolio Analytics'!$C66,raw_resource_build!$A:$A,'Portfolio Analytics'!F$64,raw_resource_build!$C:$C,mainzone)","v":0},{"$f":"SUMIFS(raw_resource_build!$I:$I,raw_resource_build!$E:$E,'Portfolio Analytics'!$C66,raw_resource_build!$A:$A,'Portfolio Analytics'!G$64,raw_resource_build!$C:$C,mainzone)","v":0},{"$f":"SUMIFS(raw_resource_build!$I:$I,raw_resource_build!$E:$E,'Portfolio Analytics'!$C66,raw_resource_build!$A:$A,'Portfolio Analytics'!H$64,raw_resource_build!$C:$C,mainzone)","v":0},{"$f":"SUMIFS(raw_resource_build!$I:$I,raw_resource_build!$E:$E,'Portfolio Analytics'!$C66,raw_resource_build!$A:$A,'Portfolio Analytics'!I$64,raw_resource_build!$C:$C,mainzone)","v":0},{"$f":"SUMIFS(raw_resource_build!$I:$I,raw_resource_build!$E:$E,'Portfolio Analytics'!$C66,raw_resource_build!$A:$A,'Portfolio Analytics'!J$64,raw_resource_build!$C:$C,mainzone)","v":12049.47},{"$f":"SUMIFS(raw_resource_build!$I:$I,raw_resource_build!$E:$E,'Portfolio Analytics'!$C66,raw_resource_build!$A:$A,'Portfolio Analytics'!K$64,raw_resource_build!$C:$C,mainzone)","v":13333.47},{"$f":"SUMIFS(raw_resource_build!$I:$I,raw_resource_build!$E:$E,'Portfolio Analytics'!$C66,raw_resource_build!$A:$A,'Portfolio Analytics'!L$64,raw_resource_build!$C:$C,mainzone)","v":13333.47},{"$f":"SUMIFS(raw_resource_build!$I:$I,raw_resource_build!$E:$E,'Portfolio Analytics'!$C66,raw_resource_build!$A:$A,'Portfolio Analytics'!M$64,raw_resource_build!$C:$C,mainzone)","v":13333.47},{"$f":"SUMIFS(raw_resource_build!$I:$I,raw_resource_build!$E:$E,'Portfolio Analytics'!$C66,raw_resource_build!$A:$A,'Portfolio Analytics'!N$64,raw_resource_build!$C:$C,mainzone)","v":13333.47},{"$f":"SUMIFS(raw_resource_build!$I:$I,raw_resource_build!$E:$E,'Portfolio Analytics'!$C66,raw_resource_build!$A:$A,'Portfolio Analytics'!O$64,raw_resource_build!$C:$C,mainzone)","v":0},{"$f":"SUMIFS(raw_resource_build!$I:$I,raw_resource_build!$E:$E,'Portfolio Analytics'!$C66,raw_resource_build!$A:$A,'Portfolio Analytics'!P$64,raw_resource_build!$C:$C,mainzone)","v":13333.47},{"$f":"SUMIFS(raw_resource_build!$I:$I,raw_resource_build!$E:$E,'Portfolio Analytics'!$C66,raw_resource_build!$A:$A,'Portfolio Analytics'!Q$64,raw_resource_build!$C:$C,mainzone)","v":0},{"$f":"SUMIFS(raw_resource_build!$I:$I,raw_resource_build!$E:$E,'Portfolio Analytics'!$C66,raw_resource_build!$A:$A,'Portfolio Analytics'!R$64,raw_resource_build!$C:$C,mainzone)","v":0},{"$f":"SUMIFS(raw_resource_build!$I:$I,raw_resource_build!$E:$E,'Portfolio Analytics'!$C66,raw_resource_build!$A:$A,'Portfolio Analytics'!S$64,raw_resource_build!$C:$C,mainzone)","v":0},{"$f":"SUMIFS(raw_resource_build!$I:$I,raw_resource_build!$E:$E,'Portfolio Analytics'!$C66,raw_resource_build!$A:$A,'Portfolio Analytics'!T$64,raw_resource_build!$C:$C,mainzone)","v":13333.47},{"$f":"SUMIFS(raw_resource_build!$I:$I,raw_resource_build!$E:$E,'Portfolio Analytics'!$C66,raw_resource_build!$A:$A,'Portfolio Analytics'!U$64,raw_resource_build!$C:$C,mainzone)","v":0},{"$f":"SUMIFS(raw_resource_build!$I:$I,raw_resource_build!$E:$E,'Portfolio Analytics'!$C66,raw_resource_build!$A:$A,'Portfolio Analytics'!V$64,raw_resource_build!$C:$C,mainzone)","v":0},{"$f":"SUMIFS(raw_resource_build!$I:$I,raw_resource_build!$E:$E,'Portfolio Analytics'!$C66,raw_resource_build!$A:$A,'Portfolio Analytics'!W$64,raw_resource_build!$C:$C,mainzone)","v":0},{"$f":"SUMIFS(raw_resource_build!$I:$I,raw_resource_build!$E:$E,'Portfolio Analytics'!$C66,raw_resource_build!$A:$A,'Portfolio Analytics'!X$64,raw_resource_build!$C:$C,mainzone)","v":0},{"$f":"SUMIFS(raw_resource_build!$I:$I,raw_resource_build!$E:$E,'Portfolio Analytics'!$C66,raw_resource_build!$A:$A,'Portfolio Analytics'!Y$64,raw_resource_build!$C:$C,mainzone)","v":0},{"$f":"SUMIFS(raw_resource_build!$I:$I,raw_resource_build!$E:$E,'Portfolio Analytics'!$C66,raw_resource_build!$A:$A,'Portfolio Analytics'!Z$64,raw_resource_build!$C:$C,mainzone)","v":0},{"$f":"SUMIFS(raw_resource_build!$I:$I,raw_resource_build!$E:$E,'Portfolio Analytics'!$C66,raw_resource_build!$A:$A,'Portfolio Analytics'!AA$64,raw_resource_build!$C:$C,mainzone)","v":0},{"$f":"SUMIFS(raw_resource_build!$I:$I,raw_resource_build!$E:$E,'Portfolio Analytics'!$C66,raw_resource_build!$A:$A,'Portfolio Analytics'!AB$64,raw_resource_build!$C:$C,mainzone)","v":0},{"$f":"SUMIFS(raw_resource_build!$I:$I,raw_resource_build!$E:$E,'Portfolio Analytics'!$C66,raw_resource_build!$A:$A,'Portfolio Analytics'!AC$64,raw_resource_build!$C:$C,mainzone)","v":0},{"$f":"SUMIFS(raw_resource_build!$I:$I,raw_resource_build!$E:$E,'Portfolio Analytics'!$C66,raw_resource_build!$A:$A,'Portfolio Analytics'!AD$64,raw_resource_build!$C:$C,mainzone)","v":0},{"$f":"SUMIFS(raw_resource_build!$I:$I,raw_resource_build!$E:$E,'Portfolio Analytics'!$C66,raw_resource_build!$A:$A,'Portfolio Analytics'!AE$64,raw_resource_build!$C:$C,mainzone)","v":0},{"$f":"SUMIFS(raw_resource_build!$I:$I,raw_resource_build!$E:$E,'Portfolio Analytics'!$C66,raw_resource_build!$A:$A,'Portfolio Analytics'!AF$64,raw_resource_build!$C:$C,mainzone)","v":0},{"$f":"SUMIFS(raw_resource_build!$I:$I,raw_resource_build!$E:$E,'Portfolio Analytics'!$C66,raw_resource_build!$A:$A,'Portfolio Analytics'!AG$64,raw_resource_build!$C:$C,mainzone)","v":0},{"$f":"SUMIFS(raw_resource_build!$I:$I,raw_resource_build!$E:$E,'Portfolio Analytics'!$C66,raw_resource_build!$A:$A,'Portfolio Analytics'!AH$64,raw_resource_build!$C:$C,mainzone)","v":0},{"$f":"SUMIFS(raw_resource_build!$I:$I,raw_resource_build!$E:$E,'Portfolio Analytics'!$C66,raw_resource_build!$A:$A,'Portfolio Analytics'!AI$64,raw_resource_build!$C:$C,mainzone)","v":13333.47},{"$f":"SUMIFS(raw_resource_build!$I:$I,raw_resource_build!$E:$E,'Portfolio Analytics'!$C66,raw_resource_build!$A:$A,'Portfolio Analytics'!AJ$64,raw_resource_build!$C:$C,mainzone)","v":0},{"$f":"SUMIFS(raw_resource_build!$I:$I,raw_resource_build!$E:$E,'Portfolio Analytics'!$C66,raw_resource_build!$A:$A,'Portfolio Analytics'!AK$64,raw_resource_build!$C:$C,mainzone)","v":0},{"$f":"SUMIFS(raw_resource_build!$I:$I,raw_resource_build!$E:$E,'Portfolio Analytics'!$C66,raw_resource_build!$A:$A,'Portfolio Analytics'!AL$64,raw_resource_build!$C:$C,mainzone)","v":0},{"$f":"SUMIFS(raw_resource_build!$I:$I,raw_resource_build!$E:$E,'Portfolio Analytics'!$C66,raw_resource_build!$A:$A,'Portfolio Analytics'!AM$64,raw_resource_build!$C:$C,mainzone)","v":0},{"$f":"SUMIFS(raw_resource_build!$I:$I,raw_resource_build!$E:$E,'Portfolio Analytics'!$C66,raw_resource_build!$A:$A,'Portfolio Analytics'!AN$64,raw_resource_build!$C:$C,mainzone)","v":0}]
[null,null,{"$f":"Lists!B7","v":"CAISO_CCGT2"},"MW",{"$f":"SUMIFS(raw_resource_build!$I:$I,raw_resource_build!$E:$E,'Portfolio Analytics'!$C67,raw_resource_build!$A:$A,'Portfolio Analytics'!E$64,raw_resource_build!$C:$C,mainzone)","v":0},{"$f":"SUMIFS(raw_resource_build!$I:$I,raw_resource_build!$E:$E,'Portfolio Analytics'!$C67,raw_resource_build!$A:$A,'Portfolio Analytics'!F$64,raw_resource_build!$C:$C,mainzone)","v":0},{"$f":"SUMIFS(raw_resource_build!$I:$I,raw_resource_build!$E:$E,'Portfolio Analytics'!$C67,raw_resource_build!$A:$A,'Portfolio Analytics'!G$64,raw_resource_build!$C:$C,mainzone)","v":0},{"$f":"SUMIFS(raw_resource_build!$I:$I,raw_resource_build!$E:$E,'Portfolio Analytics'!$C67,raw_resource_build!$A:$A,'Portfolio Analytics'!H$64,raw_resource_build!$C:$C,mainzone)","v":0},{"$f":"SUMIFS(raw_resource_build!$I:$I,raw_resource_build!$E:$E,'Portfolio Analytics'!$C67,raw_resource_build!$A:$A,'Portfolio Analytics'!I$64,raw_resource_build!$C:$C,mainzone)","v":0},{"$f":"SUMIFS(raw_resource_build!$I:$I,raw_resource_build!$E:$E,'Portfolio Analytics'!$C67,raw_resource_build!$A:$A,'Portfolio Analytics'!J$64,raw_resource_build!$C:$C,mainzone)","v":2927.93},{"$f":"SUMIFS(raw_resource_build!$I:$I,raw_resource_build!$E:$E,'Portfolio Analytics'!$C67,raw_resource_build!$A:$A,'Portfolio Analytics'!K$64,raw_resource_build!$C:$C,mainzone)","v":2927.93},{"$f":"SUMIFS(raw_resource_build!$I:$I,raw_resource_build!$E:$E,'Portfolio Analytics'!$C67,raw_resource_build!$A:$A,'Portfolio Analytics'!L$64,raw_resource_build!$C:$C,mainzone)","v":2927.93},{"$f":"SUMIFS(raw_resource_build!$I:$I,raw_resource_build!$E:$E,'Portfolio Analytics'!$C67,raw_resource_build!$A:$A,'Portfolio Analytics'!M$64,raw_resource_build!$C:$C,mainzone)","v":2927.93},{"$f":"SUMIFS(raw_resource_build!$I:$I,raw_resource_build!$E:$E,'Portfolio Analytics'!$C67,raw_resource_build!$A:$A,'Portfolio Analytics'!N$64,raw_resource_build!$C:$C,mainzone)","v":2927.93},{"$f":"SUMIFS(raw_resource_build!$I:$I,raw_resource_build!$E:$E,'Portfolio Analytics'!$C67,raw_resource_build!$A:$A,'Portfolio Analytics'!O$64,raw_resource_build!$C:$C,mainzone)","v":0},{"$f":"SUMIFS(raw_resource_build!$I:$I,raw_resource_build!$E:$E,'Portfolio Analytics'!$C67,raw_resource_build!$A:$A,'Portfolio Analytics'!P$64,raw_resource_build!$C:$C,mainzone)","v":2927.93},{"$f":"SUMIFS(raw_resource_build!$I:$I,raw_resource_build!$E:$E,'Portfolio Analytics'!$C67,raw_resource_build!$A:$A,'Portfolio Analytics'!Q$64,raw_resource_build!$C:$C,mainzone)","v":0},{"$f":"SUMIFS(raw_resource_build!$I:$I,raw_resource_build!$E:$E,'Portfolio Analytics'!$C67,raw_resource_build!$A:$A,'Portfolio Analytics'!R$64,raw_resource_build!$C:$C,mainzone)","v":0},{"$f":"SUMIFS(raw_resource_build!$I:$I,raw_resource_build!$E:$E,'Portfolio Analytics'!$C67,raw_resource_build!$A:$A,'Portfolio Analytics'!S$64,raw_resource_build!$C:$C,mainzone)","v":0},{"$f":"SUMIFS(raw_resource_build!$I:$I,raw_resource_build!$E:$E,'Portfolio Analytics'!$C67,raw_resource_build!$A:$A,'Portfolio Analytics'!T$64,raw_resource_build!$C:$C,mainzone)","v":2927.93},{"$f":"SUMIFS(raw_resource_build!$I:$I,raw_resource_build!$E:$E,'Portfolio Analytics'!$C67,raw_resource_build!$A:$A,'Portfolio Analytics'!U$64,raw_resource_build!$C:$C,mainzone)","v":0},{"$f":"SUMIFS(raw_resource_build!$I:$I,raw_resource_build!$E:$E,'Portfolio Analytics'!$C67,raw_resource_build!$A:$A,'Portfolio Analytics'!V$64,raw_resource_build!$C:$C,mainzone)","v":0},{"$f":"SUMIFS(raw_resource_build!$I:$I,raw_resource_build!$E:$E,'Portfolio Analytics'!$C67,raw_resource_build!$A:$A,'Portfolio Analytics'!W$64,raw_resource_build!$C:$C,mainzone)","v":0},{"$f":"SUMIFS(raw_resource_build!$I:$I,raw_resource_build!$E:$E,'Portfolio Analytics'!$C67,raw_resource_build!$A:$A,'Portfolio Analytics'!X$64,raw_resource_build!$C:$C,mainzone)","v":0},{"$f":"SUMIFS(raw_resource_build!$I:$I,raw_resource_build!$E:$E,'Portfolio Analytics'!$C67,raw_resource_build!$A:$A,'Portfolio Analytics'!Y$64,raw_resource_build!$C:$C,mainzone)","v":0},{"$f":"SUMIFS(raw_resource_build!$I:$I,raw_resource_build!$E:$E,'Portfolio Analytics'!$C67,raw_resource_build!$A:$A,'Portfolio Analytics'!Z$64,raw_resource_build!$C:$C,mainzone)","v":0},{"$f":"SUMIFS(raw_resource_build!$I:$I,raw_resource_build!$E:$E,'Portfolio Analytics'!$C67,raw_resource_build!$A:$A,'Portfolio Analytics'!AA$64,raw_resource_build!$C:$C,mainzone)","v":0},{"$f":"SUMIFS(raw_resource_build!$I:$I,raw_resource_build!$E:$E,'Portfolio Analytics'!$C67,raw_resource_build!$A:$A,'Portfolio Analytics'!AB$64,raw_resource_build!$C:$C,mainzone)","v":0},{"$f":"SUMIFS(raw_resource_build!$I:$I,raw_resource_build!$E:$E,'Portfolio Analytics'!$C67,raw_resource_build!$A:$A,'Portfolio Analytics'!AC$64,raw_resource_build!$C:$C,mainzone)","v":0},{"$f":"SUMIFS(raw_resource_build!$I:$I,raw_resource_build!$E:$E,'Portfolio Analytics'!$C67,raw_resource_build!$A:$A,'Portfolio Analytics'!AD$64,raw_resource_build!$C:$C,mainzone)","v":0},{"$f":"SUMIFS(raw_resource_build!$I:$I,raw_resource_build!$E:$E,'Portfolio Analytics'!$C67,raw_resource_build!$A:$A,'Portfolio Analytics'!AE$64,raw_resource_build!$C:$C,mainzone)","v":0},{"$f":"SUMIFS(raw_resource_build!$I:$I,raw_resource_build!$E:$E,'Portfolio Analytics'!$C67,raw_resource_build!$A:$A,'Portfolio Analytics'!AF$64,raw_resource_build!$C:$C,mainzone)","v":0},{"$f":"SUMIFS(raw_resource_build!$I:$I,raw_resource_build!$E:$E,'Portfolio Analytics'!$C67,raw_resource_build!$A:$A,'Portfolio Analytics'!AG$64,raw_resource_build!$C:$C,mainzone)","v":0},{"$f":"SUMIFS(raw_resource_build!$I:$I,raw_resource_build!$E:$E,'Portfolio Analytics'!$C67,raw_resource_build!$A:$A,'Portfolio Analytics'!AH$64,raw_resource_build!$C:$C,mainzone)","v":0},{"$f":"SUMIFS(raw_resource_build!$I:$I,raw_resource_build!$E:$E,'Portfolio Analytics'!$C67,raw_resource_build!$A:$A,'Portfolio Analytics'!AI$64,raw_resource_build!$C:$C,mainzone)","v":2927.93},{"$f":"SUMIFS(raw_resource_build!$I:$I,raw_resource_build!$E:$E,'Portfolio Analytics'!$C67,raw_resource_build!$A:$A,'Portfolio Analytics'!AJ$64,raw_resource_build!$C:$C,mainzone)","v":0},{"$f":"SUMIFS(raw_resource_build!$I:$I,raw_resource_build!$E:$E,'Portfolio Analytics'!$C67,raw_resource_build!$A:$A,'Portfolio Analytics'!AK$64,raw_resource_build!$C:$C,mainzone)","v":0},{"$f":"SUMIFS(raw_resource_build!$I:$I,raw_resource_build!$E:$E,'Portfolio Analytics'!$C67,raw_resource_build!$A:$A,'Portfolio Analytics'!AL$64,raw_resource_build!$C:$C,mainzone)","v":0},{"$f":"SUMIFS(raw_resource_build!$I:$I,raw_resource_build!$E:$E,'Portfolio Analytics'!$C67,raw_resource_build!$A:$A,'Portfolio Analytics'!AM$64,raw_resource_build!$C:$C,mainzone)","v":0},{"$f":"SUMIFS(raw_resource_build!$I:$I,raw_resource_build!$E:$E,'Portfolio Analytics'!$C67,raw_resource_build!$A:$A,'Portfolio Analytics'!AN$64,raw_resource_build!$C:$C,mainzone)","v":0}]
[null,null,{"$f":"Lists!B8","v":"CAISO_Peaker1"},"MW",{"$f":"SUMIFS(raw_resource_build!$I:$I,raw_resource_build!$E:$E,'Portfolio Analytics'!$C68,raw_resource_build!$A:$A,'Portfolio Analytics'!E$64,raw_resource_build!$C:$C,mainzone)","v":0},{"$f":"SUMIFS(raw_resource_build!$I:$I,raw_resource_build!$E:$E,'Portfolio Analytics'!$C68,raw_resource_build!$A:$A,'Portfolio Analytics'!F$64,raw_resource_build!$C:$C,mainzone)","v":0},{"$f":"SUMIFS(raw_resource_build!$I:$I,raw_resource_build!$E:$E,'Portfolio Analytics'!$C68,raw_resource_build!$A:$A,'Portfolio Analytics'!G$64,raw_resource_build!$C:$C,mainzone)","v":0},{"$f":"SUMIFS(raw_resource_build!$I:$I,raw_resource_build!$E:$E,'Portfolio Analytics'!$C68,raw_resource_build!$A:$A,'Portfolio Analytics'!H$64,raw_resource_build!$C:$C,mainzone)","v":0},{"$f":"SUMIFS(raw_resource_build!$I:$I,raw_resource_build!$E:$E,'Portfolio Analytics'!$C68,raw_resource_build!$A:$A,'Portfolio Analytics'!I$64,raw_resource_build!$C:$C,mainzone)","v":0},{"$f":"SUMIFS(raw_resource_build!$I:$I,raw_resource_build!$E:$E,'Portfolio Analytics'!$C68,raw_resource_build!$A:$A,'Portfolio Analytics'!J$64,raw_resource_build!$C:$C,mainzone)","v":4913.93},{"$f":"SUMIFS(raw_resource_build!$I:$I,raw_resource_build!$E:$E,'Portfolio Analytics'!$C68,raw_resource_build!$A:$A,'Portfolio Analytics'!K$64,raw_resource_build!$C:$C,mainzone)","v":4913.93},{"$f":"SUMIFS(raw_resource_build!$I:$I,raw_resource_build!$E:$E,'Portfolio Analytics'!$C68,raw_resource_build!$A:$A,'Portfolio Analytics'!L$64,raw_resource_build!$C:$C,mainzone)","v":4913.93},{"$f":"SUMIFS(raw_resource_build!$I:$I,raw_resource_build!$E:$E,'Portfolio Analytics'!$C68,raw_resource_build!$A:$A,'Portfolio Analytics'!M$64,raw_resource_build!$C:$C,mainzone)","v":4913.93},{"$f":"SUMIFS(raw_resource_build!$I:$I,raw_resource_build!$E:$E,'Portfolio Analytics'!$C68,raw_resource_build!$A:$A,'Portfolio Analytics'!N$64,raw_resource_build!$C:$C,mainzone)","v":4913.93},{"$f":"SUMIFS(raw_resource_build!$I:$I,raw_resource_build!$E:$E,'Portfolio Analytics'!$C68,raw_resource_build!$A:$A,'Portfolio Analytics'!O$64,raw_resource_build!$C:$C,mainzone)","v":0},{"$f":"SUMIFS(raw_resource_build!$I:$I,raw_resource_build!$E:$E,'Portfolio Analytics'!$C68,raw_resource_build!$A:$A,'Portfolio Analytics'!P$64,raw_resource_build!$C:$C,mainzone)","v":4913.93},{"$f":"SUMIFS(raw_resource_build!$I:$I,raw_resource_build!$E:$E,'Portfolio Analytics'!$C68,raw_resource_build!$A:$A,'Portfolio Analytics'!Q$64,raw_resource_build!$C:$C,mainzone)","v":0},{"$f":"SUMIFS(raw_resource_build!$I:$I,raw_resource_build!$E:$E,'Portfolio Analytics'!$C68,raw_resource_build!$A:$A,'Portfolio Analytics'!R$64,raw_resource_build!$C:$C,mainzone)","v":0},{"$f":"SUMIFS(raw_resource_build!$I:$I,raw_resource_build!$E:$E,'Portfolio Analytics'!$C68,raw_resource_build!$A:$A,'Portfolio Analytics'!S$64,raw_resource_build!$C:$C,mainzone)","v":0},{"$f":"SUMIFS(raw_resource_build!$I:$I,raw_resource_build!$E:$E,'Portfolio Analytics'!$C68,raw_resource_build!$A:$A,'Portfolio Analytics'!T$64,raw_resource_build!$C:$C,mainzone)","v":4913.93},{"$f":"SUMIFS(raw_resource_build!$I:$I,raw_resource_build!$E:$E,'Portfolio Analytics'!$C68,raw_resource_build!$A:$A,'Portfolio Analytics'!U$64,raw_resource_build!$C:$C,mainzone)","v":0},{"$f":"SUMIFS(raw_resource_build!$I:$I,raw_resource_build!$E:$E,'Portfolio Analytics'!$C68,raw_resource_build!$A:$A,'Portfolio Analytics'!V$64,raw_resource_build!$C:$C,mainzone)","v":0},{"$f":"SUMIFS(raw_resource_build!$I:$I,raw_resource_build!$E:$E,'Portfolio Analytics'!$C68,raw_resource_build!$A:$A,'Portfolio Analytics'!W$64,raw_resource_build!$C:$C,mainzone)","v":0},{"$f":"SUMIFS(raw_resource_build!$I:$I,raw_resource_build!$E:$E,'Portfolio Analytics'!$C68,raw_resource_build!$A:$A,'Portfolio Analytics'!X$64,raw_resource_build!$C:$C,mainzone)","v":0},{"$f":"SUMIFS(raw_resource_build!$I:$I,raw_resource_build!$E:$E,'Portfolio Analytics'!$C68,raw_resource_build!$A:$A,'Portfolio Analytics'!Y$64,raw_resource_build!$C:$C,mainzone)","v":0},{"$f":"SUMIFS(raw_resource_build!$I:$I,raw_resource_build!$E:$E,'Portfolio Analytics'!$C68,raw_resource_build!$A:$A,'Portfolio Analytics'!Z$64,raw_resource_build!$C:$C,mainzone)","v":0},{"$f":"SUMIFS(raw_resource_build!$I:$I,raw_resource_build!$E:$E,'Portfolio Analytics'!$C68,raw_resource_build!$A:$A,'Portfolio Analytics'!AA$64,raw_resource_build!$C:$C,mainzone)","v":0},{"$f":"SUMIFS(raw_resource_build!$I:$I,raw_resource_build!$E:$E,'Portfolio Analytics'!$C68,raw_resource_build!$A:$A,'Portfolio Analytics'!AB$64,raw_resource_build!$C:$C,mainzone)","v":0},{"$f":"SUMIFS(raw_resource_build!$I:$I,raw_resource_build!$E:$E,'Portfolio Analytics'!$C68,raw_resource_build!$A:$A,'Portfolio Analytics'!AC$64,raw_resource_build!$C:$C,mainzone)","v":0},{"$f":"SUMIFS(raw_resource_build!$I:$I,raw_resource_build!$E:$E,'Portfolio Analytics'!$C68,raw_resource_build!$A:$A,'Portfolio Analytics'!AD$64,raw_resource_build!$C:$C,mainzone)","v":0},{"$f":"SUMIFS(raw_resource_build!$I:$I,raw_resource_build!$E:$E,'Portfolio Analytics'!$C68,raw_resource_build!$A:$A,'Portfolio Analytics'!AE$64,raw_resource_build!$C:$C,mainzone)","v":0},{"$f":"SUMIFS(raw_resource_build!$I:$I,raw_resource_build!$E:$E,'Portfolio Analytics'!$C68,raw_resource_build!$A:$A,'Portfolio Analytics'!AF$64,raw_resource_build!$C:$C,mainzone)","v":0},{"$f":"SUMIFS(raw_resource_build!$I:$I,raw_resource_build!$E:$E,'Portfolio Analytics'!$C68,raw_resource_build!$A:$A,'Portfolio Analytics'!AG$64,raw_resource_build!$C:$C,mainzone)","v":0},{"$f":"SUMIFS(raw_resource_build!$I:$I,raw_resource_build!$E:$E,'Portfolio Analytics'!$C68,raw_resource_build!$A:$A,'Portfolio Analytics'!AH$64,raw_resource_build!$C:$C,mainzone)","v":0},{"$f":"SUMIFS(raw_resource_build!$I:$I,raw_resource_build!$E:$E,'Portfolio Analytics'!$C68,raw_resource_build!$A:$A,'Portfolio Analytics'!AI$64,raw_resource_build!$C:$C,mainzone)","v":3163},{"$f":"SUMIFS(raw_resource_build!$I:$I,raw_resource_build!$E:$E,'Portfolio Analytics'!$C68,raw_resource_build!$A:$A,'Portfolio Analytics'!AJ$64,raw_resource_build!$C:$C,mainzone)","v":0},{"$f":"SUMIFS(raw_resource_build!$I:$I,raw_resource_build!$E:$E,'Portfolio Analytics'!$C68,raw_resource_build!$A:$A,'Portfolio Analytics'!AK$64,raw_resource_build!$C:$C,mainzone)","v":0},{"$f":"SUMIFS(raw_resource_build!$I:$I,raw_resource_build!$E:$E,'Portfolio Analytics'!$C68,raw_resource_build!$A:$A,'Portfolio Analytics'!AL$64,raw_resource_build!$C:$C,mainzone)","v":0},{"$f":"SUMIFS(raw_resource_build!$I:$I,raw_resource_build!$E:$E,'Portfolio Analytics'!$C68,raw_resource_build!$A:$A,'Portfolio Analytics'!AM$64,raw_resource_build!$C:$C,mainzone)","v":0},{"$f":"SUMIFS(raw_resource_build!$I:$I,raw_resource_build!$E:$E,'Portfolio Analytics'!$C68,raw_resource_build!$A:$A,'Portfolio Analytics'!AN$64,raw_resource_build!$C:$C,mainzone)","v":0}]
[null,null,{"$f":"Lists!B9","v":"CAISO_Peaker2"},"MW",{"$f":"SUMIFS(raw_resource_build!$I:$I,raw_resource_build!$E:$E,'Portfolio Analytics'!$C69,raw_resource_build!$A:$A,'Portfolio Analytics'!E$64,raw_resource_build!$C:$C,mainzone)","v":0},{"$f":"SUMIFS(raw_resource_build!$I:$I,raw_resource_build!$E:$E,'Portfolio Analytics'!$C69,raw_resource_build!$A:$A,'Portfolio Analytics'!F$64,raw_resource_build!$C:$C,mainzone)","v":0},{"$f":"SUMIFS(raw_resource_build!$I:$I,raw_resource_build!$E:$E,'Portfolio Analytics'!$C69,raw_resource_build!$A:$A,'Portfolio Analytics'!G$64,raw_resource_build!$C:$C,mainzone)","v":0},{"$f":"SUMIFS(raw_resource_build!$I:$I,raw_resource_build!$E:$E,'Portfolio Analytics'!$C69,raw_resource_build!$A:$A,'Portfolio Analytics'!H$64,raw_resource_build!$C:$C,mainzone)","v":0},{"$f":"SUMIFS(raw_resource_build!$I:$I,raw_resource_build!$E:$E,'Portfolio Analytics'!$C69,raw_resource_build!$A:$A,'Portfolio Analytics'!I$64,raw_resource_build!$C:$C,mainzone)","v":0},{"$f":"SUMIFS(raw_resource_build!$I:$I,raw_resource_build!$E:$E,'Portfolio Analytics'!$C69,raw_resource_build!$A:$A,'Portfolio Analytics'!J$64,raw_resource_build!$C:$C,mainzone)","v":3682.71},{"$f":"SUMIFS(raw_resource_build!$I:$I,raw_resource_build!$E:$E,'Portfolio Analytics'!$C69,raw_resource_build!$A:$A,'Portfolio Analytics'!K$64,raw_resource_build!$C:$C,mainzone)","v":3682.71},{"$f":"SUMIFS(raw_resource_build!$I:$I,raw_resource_build!$E:$E,'Portfolio Analytics'!$C69,raw_resource_build!$A:$A,'Portfolio Analytics'!L$64,raw_resource_build!$C:$C,mainzone)","v":3682.71},{"$f":"SUMIFS(raw_resource_build!$I:$I,raw_resource_build!$E:$E,'Portfolio Analytics'!$C69,raw_resource_build!$A:$A,'Portfolio Analytics'!M$64,raw_resource_build!$C:$C,mainzone)","v":3682.71},{"$f":"SUMIFS(raw_resource_build!$I:$I,raw_resource_build!$E:$E,'Portfolio Analytics'!$C69,raw_resource_build!$A:$A,'Portfolio Analytics'!N$64,raw_resource_build!$C:$C,mainzone)","v":3682.71},{"$f":"SUMIFS(raw_resource_build!$I:$I,raw_resource_build!$E:$E,'Portfolio Analytics'!$C69,raw_resource_build!$A:$A,'Portfolio Analytics'!O$64,raw_resource_build!$C:$C,mainzone)","v":0},{"$f":"SUMIFS(raw_resource_build!$I:$I,raw_resource_build!$E:$E,'Portfolio Analytics'!$C69,raw_resource_build!$A:$A,'Portfolio Analytics'!P$64,raw_resource_build!$C:$C,mainzone)","v":3682.71},{"$f":"SUMIFS(raw_resource_build!$I:$I,raw_resource_build!$E:$E,'Portfolio Analytics'!$C69,raw_resource_build!$A:$A,'Portfolio Analytics'!Q$64,raw_resource_build!$C:$C,mainzone)","v":0},{"$f":"SUMIFS(raw_resource_build!$I:$I,raw_resource_build!$E:$E,'Portfolio Analytics'!$C69,raw_resource_build!$A:$A,'Portfolio Analytics'!R$64,raw_resource_build!$C:$C,mainzone)","v":0},{"$f":"SUMIFS(raw_resource_build!$I:$I,raw_resource_build!$E:$E,'Portfolio Analytics'!$C69,raw_resource_build!$A:$A,'Portfolio Analytics'!S$64,raw_resource_build!$C:$C,mainzone)","v":0},{"$f":"SUMIFS(raw_resource_build!$I:$I,raw_resource_build!$E:$E,'Portfolio Analytics'!$C69,raw_resource_build!$A:$A,'Portfolio Analytics'!T$64,raw_resource_build!$C:$C,mainzone)","v":3682.71},{"$f":"SUMIFS(raw_resource_build!$I:$I,raw_resource_build!$E:$E,'Portfolio Analytics'!$C69,raw_resource_build!$A:$A,'Portfolio Analytics'!U$64,raw_resource_build!$C:$C,mainzone)","v":0},{"$f":"SUMIFS(raw_resource_build!$I:$I,raw_resource_build!$E:$E,'Portfolio Analytics'!$C69,raw_resource_build!$A:$A,'Portfolio Analytics'!V$64,raw_resource_build!$C:$C,mainzone)","v":0},{"$f":"SUMIFS(raw_resource_build!$I:$I,raw_resource_build!$E:$E,'Portfolio Analytics'!$C69,raw_resource_build!$A:$A,'Portfolio Analytics'!W$64,raw_resource_build!$C:$C,mainzone)","v":0},{"$f":"SUMIFS(raw_resource_build!$I:$I,raw_resource_build!$E:$E,'Portfolio Analytics'!$C69,raw_resource_build!$A:$A,'Portfolio Analytics'!X$64,raw_resource_build!$C:$C,mainzone)","v":0},{"$f":"SUMIFS(raw_resource_build!$I:$I,raw_resource_build!$E:$E,'Portfolio Analytics'!$C69,raw_resource_build!$A:$A,'Portfolio Analytics'!Y$64,raw_resource_build!$C:$C,mainzone)","v":0},{"$f":"SUMIFS(raw_resource_build!$I:$I,raw_resource_build!$E:$E,'Portfolio Analytics'!$C69,raw_resource_build!$A:$A,'Portfolio Analytics'!Z$64,raw_resource_build!$C:$C,mainzone)","v":0},{"$f":"SUMIFS(raw_resource_build!$I:$I,raw_resource_build!$E:$E,'Portfolio Analytics'!$C69,raw_resource_build!$A:$A,'Portfolio Analytics'!AA$64,raw_resource_build!$C:$C,mainzone)","v":0},{"$f":"SUMIFS(raw_resource_build!$I:$I,raw_resource_build!$E:$E,'Portfolio Analytics'!$C69,raw_resource_build!$A:$A,'Portfolio Analytics'!AB$64,raw_resource_build!$C:$C,mainzone)","v":0},{"$f":"SUMIFS(raw_resource_build!$I:$I,raw_resource_build!$E:$E,'Portfolio Analytics'!$C69,raw_resource_build!$A:$A,'Portfolio Analytics'!AC$64,raw_resource_build!$C:$C,mainzone)","v":0},{"$f":"SUMIFS(raw_resource_build!$I:$I,raw_resource_build!$E:$E,'Portfolio Analytics'!$C69,raw_resource_build!$A:$A,'Portfolio Analytics'!AD$64,raw_resource_build!$C:$C,mainzone)","v":0},{"$f":"SUMIFS(raw_resource_build!$I:$I,raw_resource_build!$E:$E,'Portfolio Analytics'!$C69,raw_resource_build!$A:$A,'Portfolio Analytics'!AE$64,raw_resource_build!$C:$C,mainzone)","v":0},{"$f":"SUMIFS(raw_resource_build!$I:$I,raw_resource_build!$E:$E,'Portfolio Analytics'!$C69,raw_resource_build!$A:$A,'Portfolio Analytics'!AF$64,raw_resource_build!$C:$C,mainzone)","v":0},{"$f":"SUMIFS(raw_resource_build!$I:$I,raw_resource_build!$E:$E,'Portfolio Analytics'!$C69,raw_resource_build!$A:$A,'Portfolio Analytics'!AG$64,raw_resource_build!$C:$C,mainzone)","v":0},{"$f":"SUMIFS(raw_resource_build!$I:$I,raw_resource_build!$E:$E,'Portfolio Analytics'!$C69,raw_resource_build!$A:$A,'Portfolio Analytics'!AH$64,raw_resource_build!$C:$C,mainzone)","v":0},{"$f":"SUMIFS(raw_resource_build!$I:$I,raw_resource_build!$E:$E,'Portfolio Analytics'!$C69,raw_resource_build!$A:$A,'Portfolio Analytics'!AI$64,raw_resource_build!$C:$C,mainzone)","v":1663.88},{"$f":"SUMIFS(raw_resource_build!$I:$I,raw_resource_build!$E:$E,'Portfolio Analytics'!$C69,raw_resource_build!$A:$A,'Portfolio Analytics'!AJ$64,raw_resource_build!$C:$C,mainzone)","v":0},{"$f":"SUMIFS(raw_resource_build!$I:$I,raw_resource_build!$E:$E,'Portfolio Analytics'!$C69,raw_resource_build!$A:$A,'Portfolio Analytics'!AK$64,raw_resource_build!$C:$C,mainzone)","v":0},{"$f":"SUMIFS(raw_resource_build!$I:$I,raw_resource_build!$E:$E,'Portfolio Analytics'!$C69,raw_resource_build!$A:$A,'Portfolio Analytics'!AL$64,raw_resource_build!$C:$C,mainzone)","v":0},{"$f":"SUMIFS(raw_resource_build!$I:$I,raw_resource_build!$E:$E,'Portfolio Analytics'!$C69,raw_resource_build!$A:$A,'Portfolio Analytics'!AM$64,raw_resource_build!$C:$C,mainzone)","v":0},{"$f":"SUMIFS(raw_resource_build!$I:$I,raw_resource_build!$E:$E,'Portfolio Analytics'!$C69,raw_resource_build!$A:$A,'Portfolio Analytics'!AN$64,raw_resource_build!$C:$C,mainzone)","v":0}]
[null,null,{"$f":"Lists!B10","v":"CAISO_Advanced_CCGT"},"MW",{"$f":"SUMIFS(raw_resource_build!$I:$I,raw_resource_build!$E:$E,'Portfolio Analytics'!$C70,raw_resource_build!$A:$A,'Portfolio Analytics'!E$64,raw_resource_build!$C:$C,mainzone)","v":0},{"$f":"SUMIFS(raw_resource_build!$I:$I,raw_resource_build!$E:$E,'Portfolio Analytics'!$C70,raw_resource_build!$A:$A,'Portfolio Analytics'!F$64,raw_resource_build!$C:$C,mainzone)","v":0},{"$f":"SUMIFS(raw_resource_build!$I:$I,raw_resource_build!$E:$E,'Portfolio Analytics'!$C70,raw_resource_build!$A:$A,'Portfolio Analytics'!G$64,raw_resource_build!$C:$C,mainzone)","v":0},{"$f":"SUMIFS(raw_resource_build!$I:$I,raw_resource_build!$E:$E,'Portfolio Analytics'!$C70,raw_resource_build!$A:$A,'Portfolio Analytics'!H$64,raw_resource_build!$C:$C,mainzone)","v":0},{"$f":"SUMIFS(raw_resource_build!$I:$I,raw_resource_build!$E:$E,'Portfolio Analytics'!$C70,raw_resource_build!$A:$A,'Portfolio Analytics'!I$64,raw_resource_build!$C:$C,mainzone)","v":0},{"$f":"SUMIFS(raw_resource_build!$I:$I,raw_resource_build!$E:$E,'Portfolio Analytics'!$C70,raw_resource_build!$A:$A,'Portfolio Analytics'!J$64,raw_resource_build!$C:$C,mainzone)","v":0},{"$f":"SUMIFS(raw_resource_build!$I:$I,raw_resource_build!$E:$E,'Portfolio Analytics'!$C70,raw_resource_build!$A:$A,'Portfolio Analytics'!K$64,raw_resource_build!$C:$C,mainzone)","v":0},{"$f":"SUMIFS(raw_resource_build!$I:$I,raw_resource_build!$E:$E,'Portfolio Analytics'!$C70,raw_resource_build!$A:$A,'Portfolio Analytics'!L$64,raw_resource_build!$C:$C,mainzone)","v":0},{"$f":"SUMIFS(raw_resource_build!$I:$I,raw_resource_build!$E:$E,'Portfolio Analytics'!$C70,raw_resource_build!$A:$A,'Portfolio Analytics'!M$64,raw_resource_build!$C:$C,mainzone)","v":0},{"$f":"SUMIFS(raw_resource_build!$I:$I,raw_resource_build!$E:$E,'Portfolio Analytics'!$C70,raw_resource_build!$A:$A,'Portfolio Analytics'!N$64,raw_resource_build!$C:$C,mainzone)","v":0},{"$f":"SUMIFS(raw_resource_build!$I:$I,raw_resource_build!$E:$E,'Portfolio Analytics'!$C70,raw_resource_build!$A:$A,'Portfolio Analytics'!O$64,raw_resource_build!$C:$C,mainzone)","v":0},{"$f":"SUMIFS(raw_resource_build!$I:$I,raw_resource_build!$E:$E,'Portfolio Analytics'!$C70,raw_resource_build!$A:$A,'Portfolio Analytics'!P$64,raw_resource_build!$C:$C,mainzone)","v":0},{"$f":"SUMIFS(raw_resource_build!$I:$I,raw_resource_build!$E:$E,'Portfolio Analytics'!$C70,raw_resource_build!$A:$A,'Portfolio Analytics'!Q$64,raw_resource_build!$C:$C,mainzone)","v":0},{"$f":"SUMIFS(raw_resource_build!$I:$I,raw_resource_build!$E:$E,'Portfolio Analytics'!$C70,raw_resource_build!$A:$A,'Portfolio Analytics'!R$64,raw_resource_build!$C:$C,mainzone)","v":0},{"$f":"SUMIFS(raw_resource_build!$I:$I,raw_resource_build!$E:$E,'Portfolio Analytics'!$C70,raw_resource_build!$A:$A,'Portfolio Analytics'!S$64,raw_resource_build!$C:$C,mainzone)","v":0},{"$f":"SUMIFS(raw_resource_build!$I:$I,raw_resource_build!$E:$E,'Portfolio Analytics'!$C70,raw_resource_build!$A:$A,'Portfolio Analytics'!T$64,raw_resource_build!$C:$C,mainzone)","v":0},{"$f":"SUMIFS(raw_resource_build!$I:$I,raw_resource_build!$E:$E,'Portfolio Analytics'!$C70,raw_resource_build!$A:$A,'Portfolio Analytics'!U$64,raw_resource_build!$C:$C,mainzone)","v":0},{"$f":"SUMIFS(raw_resource_build!$I:$I,raw_resource_build!$E:$E,'Portfolio Analytics'!$C70,raw_resource_build!$A:$A,'Portfolio Analytics'!V$64,raw_resource_build!$C:$C,mainzone)","v":0},{"$f":"SUMIFS(raw_resource_build!$I:$I,raw_resource_build!$E:$E,'Portfolio Analytics'!$C70,raw_resource_build!$A:$A,'Portfolio Analytics'!W$64,raw_resource_build!$C:$C,mainzone)","v":0},{"$f":"SUMIFS(raw_resource_build!$I:$I,raw_resource_build!$E:$E,'Portfolio Analytics'!$C70,raw_resource_build!$A:$A,'Portfolio Analytics'!X$64,raw_resource_build!$C:$C,mainzone)","v":0},{"$f":"SUMIFS(raw_resource_build!$I:$I,raw_resource_build!$E:$E,'Portfolio Analytics'!$C70,raw_resource_build!$A:$A,'Portfolio Analytics'!Y$64,raw_resource_build!$C:$C,mainzone)","v":0},{"$f":"SUMIFS(raw_resource_build!$I:$I,raw_resource_build!$E:$E,'Portfolio Analytics'!$C70,raw_resource_build!$A:$A,'Portfolio Analytics'!Z$64,raw_resource_build!$C:$C,mainzone)","v":0},{"$f":"SUMIFS(raw_resource_build!$I:$I,raw_resource_build!$E:$E,'Portfolio Analytics'!$C70,raw_resource_build!$A:$A,'Portfolio Analytics'!AA$64,raw_resource_build!$C:$C,mainzone)","v":0},{"$f":"SUMIFS(raw_resource_build!$I:$I,raw_resource_build!$E:$E,'Portfolio Analytics'!$C70,raw_resource_build!$A:$A,'Portfolio Analytics'!AB$64,raw_resource_build!$C:$C,mainzone)","v":0},{"$f":"SUMIFS(raw_resource_build!$I:$I,raw_resource_build!$E:$E,'Portfolio Analytics'!$C70,raw_resource_build!$A:$A,'Portfolio Analytics'!AC$64,raw_resource_build!$C:$C,mainzone)","v":0},{"$f":"SUMIFS(raw_resource_build!$I:$I,raw_resource_build!$E:$E,'Portfolio Analytics'!$C70,raw_resource_build!$A:$A,'Portfolio Analytics'!AD$64,raw_resource_build!$C:$C,mainzone)","v":0},{"$f":"SUMIFS(raw_resource_build!$I:$I,raw_resource_build!$E:$E,'Portfolio Analytics'!$C70,raw_resource_build!$A:$A,'Portfolio Analytics'!AE$64,raw_resource_build!$C:$C,mainzone)","v":0},{"$f":"SUMIFS(raw_resource_build!$I:$I,raw_resource_build!$E:$E,'Portfolio Analytics'!$C70,raw_resource_build!$A:$A,'Portfolio Analytics'!AF$64,raw_resource_build!$C:$C,mainzone)","v":0},{"$f":"SUMIFS(raw_resource_build!$I:$I,raw_resource_build!$E:$E,'Portfolio Analytics'!$C70,raw_resource_build!$A:$A,'Portfolio Analytics'!AG$64,raw_resource_build!$C:$C,mainzone)","v":0},{"$f":"SUMIFS(raw_resource_build!$I:$I,raw_resource_build!$E:$E,'Portfolio Analytics'!$C70,raw_resource_build!$A:$A,'Portfolio Analytics'!AH$64,raw_resource_build!$C:$C,mainzone)","v":0},{"$f":"SUMIFS(raw_resource_build!$I:$I,raw_resource_build!$E:$E,'Portfolio Analytics'!$C70,raw_resource_build!$A:$A,'Portfolio Analytics'!AI$64,raw_resource_build!$C:$C,mainzone)","v":0},{"$f":"SUMIFS(raw_resource_build!$I:$I,raw_resource_build!$E:$E,'Portfolio Analytics'!$C70,raw_resource_build!$A:$A,'Portfolio Analytics'!AJ$64,raw_resource_build!$C:$C,mainzone)","v":0},{"$f":"SUMIFS(raw_resource_build!$I:$I,raw_resource_build!$E:$E,'Portfolio Analytics'!$C70,raw_resource_build!$A:$A,'Portfolio Analytics'!AK$64,raw_resource_build!$C:$C,mainzone)","v":0},{"$f":"SUMIFS(raw_resource_build!$I:$I,raw_resource_build!$E:$E,'Portfolio Analytics'!$C70,raw_resource_build!$A:$A,'Portfolio Analytics'!AL$64,raw_resource_build!$C:$C,mainzone)","v":0},{"$f":"SUMIFS(raw_resource_build!$I:$I,raw_resource_build!$E:$E,'Portfolio Analytics'!$C70,raw_resource_build!$A:$A,'Portfolio Analytics'!AM$64,raw_resource_build!$C:$C,mainzone)","v":0},{"$f":"SUMIFS(raw_resource_build!$I:$I,raw_resource_build!$E:$E,'Portfolio Analytics'!$C70,raw_resource_build!$A:$A,'Portfolio Analytics'!AN$64,raw_resource_build!$C:$C,mainzone)","v":0}]
[null,null,{"$f":"Lists!B11","v":"CAISO_Aero_CT"},"MW",{"$f":"SUMIFS(raw_resource_build!$I:$I,raw_resource_build!$E:$E,'Portfolio Analytics'!$C71,raw_resource_build!$A:$A,'Portfolio Analytics'!E$64,raw_resource_build!$C:$C,mainzone)","v":0},{"$f":"SUMIFS(raw_resource_build!$I:$I,raw_resource_build!$E:$E,'Portfolio Analytics'!$C71,raw_resource_build!$A:$A,'Portfolio Analytics'!F$64,raw_resource_build!$C:$C,mainzone)","v":0},{"$f":"SUMIFS(raw_resource_build!$I:$I,raw_resource_build!$E:$E,'Portfolio Analytics'!$C71,raw_resource_build!$A:$A,'Portfolio Analytics'!G$64,raw_resource_build!$C:$C,mainzone)","v":0},{"$f":"SUMIFS(raw_resource_build!$I:$I,raw_resource_build!$E:$E,'Portfolio Analytics'!$C71,raw_resource_build!$A:$A,'Portfolio Analytics'!H$64,raw_resource_build!$C:$C,mainzone)","v":0},{"$f":"SUMIFS(raw_resource_build!$I:$I,raw_resource_build!$E:$E,'Portfolio Analytics'!$C71,raw_resource_build!$A:$A,'Portfolio Analytics'!I$64,raw_resource_build!$C:$C,mainzone)","v":0},{"$f":"SUMIFS(raw_resource_build!$I:$I,raw_resource_build!$E:$E,'Portfolio Analytics'!$C71,raw_resource_build!$A:$A,'Portfolio Analytics'!J$64,raw_resource_build!$C:$C,mainzone)","v":0},{"$f":"SUMIFS(raw_resource_build!$I:$I,raw_resource_build!$E:$E,'Portfolio Analytics'!$C71,raw_resource_build!$A:$A,'Portfolio Analytics'!K$64,raw_resource_build!$C:$C,mainzone)","v":0},{"$f":"SUMIFS(raw_resource_build!$I:$I,raw_resource_build!$E:$E,'Portfolio Analytics'!$C71,raw_resource_build!$A:$A,'Portfolio Analytics'!L$64,raw_resource_build!$C:$C,mainzone)","v":0},{"$f":"SUMIFS(raw_resource_build!$I:$I,raw_resource_build!$E:$E,'Portfolio Analytics'!$C71,raw_resource_build!$A:$A,'Portfolio Analytics'!M$64,raw_resource_build!$C:$C,mainzone)","v":0},{"$f":"SUMIFS(raw_resource_build!$I:$I,raw_resource_build!$E:$E,'Portfolio Analytics'!$C71,raw_resource_build!$A:$A,'Portfolio Analytics'!N$64,raw_resource_build!$C:$C,mainzone)","v":0},{"$f":"SUMIFS(raw_resource_build!$I:$I,raw_resource_build!$E:$E,'Portfolio Analytics'!$C71,raw_resource_build!$A:$A,'Portfolio Analytics'!O$64,raw_resource_build!$C:$C,mainzone)","v":0},{"$f":"SUMIFS(raw_resource_build!$I:$I,raw_resource_build!$E:$E,'Portfolio Analytics'!$C71,raw_resource_build!$A:$A,'Portfolio Analytics'!P$64,raw_resource_build!$C:$C,mainzone)","v":0},{"$f":"SUMIFS(raw_resource_build!$I:$I,raw_resource_build!$E:$E,'Portfolio Analytics'!$C71,raw_resource_build!$A:$A,'Portfolio Analytics'!Q$64,raw_resource_build!$C:$C,mainzone)","v":0},{"$f":"SUMIFS(raw_resource_build!$I:$I,raw_resource_build!$E:$E,'Portfolio Analytics'!$C71,raw_resource_build!$A:$A,'Portfolio Analytics'!R$64,raw_resource_build!$C:$C,mainzone)","v":0},{"$f":"SUMIFS(raw_resource_build!$I:$I,raw_resource_build!$E:$E,'Portfolio Analytics'!$C71,raw_resource_build!$A:$A,'Portfolio Analytics'!S$64,raw_resource_build!$C:$C,mainzone)","v":0},{"$f":"SUMIFS(raw_resource_build!$I:$I,raw_resource_build!$E:$E,'Portfolio Analytics'!$C71,raw_resource_build!$A:$A,'Portfolio Analytics'!T$64,raw_resource_build!$C:$C,mainzone)","v":0},{"$f":"SUMIFS(raw_resource_build!$I:$I,raw_resource_build!$E:$E,'Portfolio Analytics'!$C71,raw_resource_build!$A:$A,'Portfolio Analytics'!U$64,raw_resource_build!$C:$C,mainzone)","v":0},{"$f":"SUMIFS(raw_resource_build!$I:$I,raw_resource_build!$E:$E,'Portfolio Analytics'!$C71,raw_resource_build!$A:$A,'Portfolio Analytics'!V$64,raw_resource_build!$C:$C,mainzone)","v":0},{"$f":"SUMIFS(raw_resource_build!$I:$I,raw_resource_build!$E:$E,'Portfolio Analytics'!$C71,raw_resource_build!$A:$A,'Portfolio Analytics'!W$64,raw_resource_build!$C:$C,mainzone)","v":0},{"$f":"SUMIFS(raw_resource_build!$I:$I,raw_resource_build!$E:$E,'Portfolio Analytics'!$C71,raw_resource_build!$A:$A,'Portfolio Analytics'!X$64,raw_resource_build!$C:$C,mainzone)","v":0},{"$f":"SUMIFS(raw_resource_build!$I:$I,raw_resource_build!$E:$E,'Portfolio Analytics'!$C71,raw_resource_build!$A:$A,'Portfolio Analytics'!Y$64,raw_resource_build!$C:$C,mainzone)","v":0},{"$f":"SUMIFS(raw_resource_build!$I:$I,raw_resource_build!$E:$E,'Portfolio Analytics'!$C71,raw_resource_build!$A:$A,'Portfolio Analytics'!Z$64,raw_resource_build!$C:$C,mainzone)","v":0},{"$f":"SUMIFS(raw_resource_build!$I:$I,raw_resource_build!$E:$E,'Portfolio Analytics'!$C71,raw_resource_build!$A:$A,'Portfolio Analytics'!AA$64,raw_resource_build!$C:$C,mainzone)","v":0},{"$f":"SUMIFS(raw_resource_build!$I:$I,raw_resource_build!$E:$E,'Portfolio Analytics'!$C71,raw_resource_build!$A:$A,'Portfolio Analytics'!AB$64,raw_resource_build!$C:$C,mainzone)","v":0},{"$f":"SUMIFS(raw_resource_build!$I:$I,raw_resource_build!$E:$E,'Portfolio Analytics'!$C71,raw_resource_build!$A:$A,'Portfolio Analytics'!AC$64,raw_resource_build!$C:$C,mainzone)","v":0},{"$f":"SUMIFS(raw_resource_build!$I:$I,raw_resource_build!$E:$E,'Portfolio Analytics'!$C71,raw_resource_build!$A:$A,'Portfolio Analytics'!AD$64,raw_resource_build!$C:$C,mainzone)","v":0},{"$f":"SUMIFS(raw_resource_build!$I:$I,raw_resource_build!$E:$E,'Portfolio Analytics'!$C71,raw_resource_build!$A:$A,'Portfolio Analytics'!AE$64,raw_resource_build!$C:$C,mainzone)","v":0},{"$f":"SUMIFS(raw_resource_build!$I:$I,raw_resource_build!$E:$E,'Portfolio Analytics'!$C71,raw_resource_build!$A:$A,'Portfolio Analytics'!AF$64,raw_resource_build!$C:$C,mainzone)","v":0},{"$f":"SUMIFS(raw_resource_build!$I:$I,raw_resource_build!$E:$E,'Portfolio Analytics'!$C71,raw_resource_build!$A:$A,'Portfolio Analytics'!AG$64,raw_resource_build!$C:$C,mainzone)","v":0},{"$f":"SUMIFS(raw_resource_build!$I:$I,raw_resource_build!$E:$E,'Portfolio Analytics'!$C71,raw_resource_build!$A:$A,'Portfolio Analytics'!AH$64,raw_resource_build!$C:$C,mainzone)","v":0},{"$f":"SUMIFS(raw_resource_build!$I:$I,raw_resource_build!$E:$E,'Portfolio Analytics'!$C71,raw_resource_build!$A:$A,'Portfolio Analytics'!AI$64,raw_resource_build!$C:$C,mainzone)","v":0},{"$f":"SUMIFS(raw_resource_build!$I:$I,raw_resource_build!$E:$E,'Portfolio Analytics'!$C71,raw_resource_build!$A:$A,'Portfolio Analytics'!AJ$64,raw_resource_build!$C:$C,mainzone)","v":0},{"$f":"SUMIFS(raw_resource_build!$I:$I,raw_resource_build!$E:$E,'Portfolio Analytics'!$C71,raw_resource_build!$A:$A,'Portfolio Analytics'!AK$64,raw_resource_build!$C:$C,mainzone)","v":0},{"$f":"SUMIFS(raw_resource_build!$I:$I,raw_resource_build!$E:$E,'Portfolio Analytics'!$C71,raw_resource_build!$A:$A,'Portfolio Analytics'!AL$64,raw_resource_build!$C:$C,mainzone)","v":0},{"$f":"SUMIFS(raw_resource_build!$I:$I,raw_resource_build!$E:$E,'Portfolio Analytics'!$C71,raw_resource_build!$A:$A,'Portfolio Analytics'!AM$64,raw_resource_build!$C:$C,mainzone)","v":0},{"$f":"SUMIFS(raw_resource_build!$I:$I,raw_resource_build!$E:$E,'Portfolio Analytics'!$C71,raw_resource_build!$A:$A,'Portfolio Analytics'!AN$64,raw_resource_build!$C:$C,mainzone)","v":0}]
[null,null,{"$f":"Lists!B12","v":"CAISO_Reciprocating_Engine"},"MW",{"$f":"SUMIFS(raw_resource_build!$I:$I,raw_resource_build!$E:$E,'Portfolio Analytics'!$C72,raw_resource_build!$A:$A,'Portfolio Analytics'!E$64,raw_resource_build!$C:$C,mainzone)","v":0},{"$f":"SUMIFS(raw_resource_build!$I:$I,raw_resource_build!$E:$E,'Portfolio Analytics'!$C72,raw_resource_build!$A:$A,'Portfolio Analytics'!F$64,raw_resource_build!$C:$C,mainzone)","v":0},{"$f":"SUMIFS(raw_resource_build!$I:$I,raw_resource_build!$E:$E,'Portfolio Analytics'!$C72,raw_resource_build!$A:$A,'Portfolio Analytics'!G$64,raw_resource_build!$C:$C,mainzone)","v":0},{"$f":"SUMIFS(raw_resource_build!$I:$I,raw_resource_build!$E:$E,'Portfolio Analytics'!$C72,raw_resource_build!$A:$A,'Portfolio Analytics'!H$64,raw_resource_build!$C:$C,mainzone)","v":0},{"$f":"SUMIFS(raw_resource_build!$I:$I,raw_resource_build!$E:$E,'Portfolio Analytics'!$C72,raw_resource_build!$A:$A,'Portfolio Analytics'!I$64,raw_resource_build!$C:$C,mainzone)","v":0},{"$f":"SUMIFS(raw_resource_build!$I:$I,raw_resource_build!$E:$E,'Portfolio Analytics'!$C72,raw_resource_build!$A:$A,'Portfolio Analytics'!J$64,raw_resource_build!$C:$C,mainzone)","v":255.3},{"$f":"SUMIFS(raw_resource_build!$I:$I,raw_resource_build!$E:$E,'Portfolio Analytics'!$C72,raw_resource_build!$A:$A,'Portfolio Analytics'!K$64,raw_resource_build!$C:$C,mainzone)","v":255.3},{"$f":"SUMIFS(raw_resource_build!$I:$I,raw_resource_build!$E:$E,'Portfolio Analytics'!$C72,raw_resource_build!$A:$A,'Portfolio Analytics'!L$64,raw_resource_build!$C:$C,mainzone)","v":255.3},{"$f":"SUMIFS(raw_resource_build!$I:$I,raw_resource_build!$E:$E,'Portfolio Analytics'!$C72,raw_resource_build!$A:$A,'Portfolio Analytics'!M$64,raw_resource_build!$C:$C,mainzone)","v":255.3},{"$f":"SUMIFS(raw_resource_build!$I:$I,raw_resource_build!$E:$E,'Portfolio Analytics'!$C72,raw_resource_build!$A:$A,'Portfolio Analytics'!N$64,raw_resource_build!$C:$C,mainzone)","v":255.3},{"$f":"SUMIFS(raw_resource_build!$I:$I,raw_resource_build!$E:$E,'Portfolio Analytics'!$C72,raw_resource_build!$A:$A,'Portfolio Analytics'!O$64,raw_resource_build!$C:$C,mainzone)","v":0},{"$f":"SUMIFS(raw_resource_build!$I:$I,raw_resource_build!$E:$E,'Portfolio Analytics'!$C72,raw_resource_build!$A:$A,'Portfolio Analytics'!P$64,raw_resource_build!$C:$C,mainzone)","v":255.3},{"$f":"SUMIFS(raw_resource_build!$I:$I,raw_resource_build!$E:$E,'Portfolio Analytics'!$C72,raw_resource_build!$A:$A,'Portfolio Analytics'!Q$64,raw_resource_build!$C:$C,mainzone)","v":0},{"$f":"SUMIFS(raw_resource_build!$I:$I,raw_resource_build!$E:$E,'Portfolio Analytics'!$C72,raw_resource_build!$A:$A,'Portfolio Analytics'!R$64,raw_resource_build!$C:$C,mainzone)","v":0},{"$f":"SUMIFS(raw_resource_build!$I:$I,raw_resource_build!$E:$E,'Portfolio Analytics'!$C72,raw_resource_build!$A:$A,'Portfolio Analytics'!S$64,raw_resource_build!$C:$C,mainzone)","v":0},{"$f":"SUMIFS(raw_resource_build!$I:$I,raw_resource_build!$E:$E,'Portfolio Analytics'!$C72,raw_resource_build!$A:$A,'Portfolio Analytics'!T$64,raw_resource_build!$C:$C,mainzone)","v":255.3},{"$f":"SUMIFS(raw_resource_build!$I:$I,raw_resource_build!$E:$E,'Portfolio Analytics'!$C72,raw_resource_build!$A:$A,'Portfolio Analytics'!U$64,raw_resource_build!$C:$C,mainzone)","v":0},{"$f":"SUMIFS(raw_resource_build!$I:$I,raw_resource_build!$E:$E,'Portfolio Analytics'!$C72,raw_resource_build!$A:$A,'Portfolio Analytics'!V$64,raw_resource_build!$C:$C,mainzone)","v":0},{"$f":"SUMIFS(raw_resource_build!$I:$I,raw_resource_build!$E:$E,'Portfolio Analytics'!$C72,raw_resource_build!$A:$A,'Portfolio Analytics'!W$64,raw_resource_build!$C:$C,mainzone)","v":0},{"$f":"SUMIFS(raw_resource_build!$I:$I,raw_resource_build!$E:$E,'Portfolio Analytics'!$C72,raw_resource_build!$A:$A,'Portfolio Analytics'!X$64,raw_resource_build!$C:$C,mainzone)","v":0},{"$f":"SUMIFS(raw_resource_build!$I:$I,raw_resource_build!$E:$E,'Portfolio Analytics'!$C72,raw_resource_build!$A:$A,'Portfolio Analytics'!Y$64,raw_resource_build!$C:$C,mainzone)","v":0},{"$f":"SUMIFS(raw_resource_build!$I:$I,raw_resource_build!$E:$E,'Portfolio Analytics'!$C72,raw_resource_build!$A:$A,'Portfolio Analytics'!Z$64,raw_resource_build!$C:$C,mainzone)","v":0},{"$f":"SUMIFS(raw_resource_build!$I:$I,raw_resource_build!$E:$E,'Portfolio Analytics'!$C72,raw_resource_build!$A:$A,'Portfolio Analytics'!AA$64,raw_resource_build!$C:$C,mainzone)","v":0},{"$f":"SUMIFS(raw_resource_build!$I:$I,raw_resource_build!$E:$E,'Portfolio Analytics'!$C72,raw_resource_build!$A:$A,'Portfolio Analytics'!AB$64,raw_resource_build!$C:$C,mainzone)","v":0},{"$f":"SUMIFS(raw_resource_build!$I:$I,raw_resource_build!$E:$E,'Portfolio Analytics'!$C72,raw_resource_build!$A:$A,'Portfolio Analytics'!AC$64,raw_resource_build!$C:$C,mainzone)","v":0},{"$f":"SUMIFS(raw_resource_build!$I:$I,raw_resource_build!$E:$E,'Portfolio Analytics'!$C72,raw_resource_build!$A:$A,'Portfolio Analytics'!AD$64,raw_resource_build!$C:$C,mainzone)","v":0},{"$f":"SUMIFS(raw_resource_build!$I:$I,raw_resource_build!$E:$E,'Portfolio Analytics'!$C72,raw_resource_build!$A:$A,'Portfolio Analytics'!AE$64,raw_resource_build!$C:$C,mainzone)","v":0},{"$f":"SUMIFS(raw_resource_build!$I:$I,raw_resource_build!$E:$E,'Portfolio Analytics'!$C72,raw_resource_build!$A:$A,'Portfolio Analytics'!AF$64,raw_resource_build!$C:$C,mainzone)","v":0},{"$f":"SUMIFS(raw_resource_build!$I:$I,raw_resource_build!$E:$E,'Portfolio Analytics'!$C72,raw_resource_build!$A:$A,'Portfolio Analytics'!AG$64,raw_resource_build!$C:$C,mainzone)","v":0},{"$f":"SUMIFS(raw_resource_build!$I:$I,raw_resource_build!$E:$E,'Portfolio Analytics'!$C72,raw_resource_build!$A:$A,'Portfolio Analytics'!AH$64,raw_resource_build!$C:$C,mainzone)","v":0},{"$f":"SUMIFS(raw_resource_build!$I:$I,raw_resource_build!$E:$E,'Portfolio Analytics'!$C72,raw_resource_build!$A:$A,'Portfolio Analytics'!AI$64,raw_resource_build!$C:$C,mainzone)","v":255.3},{"$f":"SUMIFS(raw_resource_build!$I:$I,raw_resource_build!$E:$E,'Portfolio Analytics'!$C72,raw_resource_build!$A:$A,'Portfolio Analytics'!AJ$64,raw_resource_build!$C:$C,mainzone)","v":0},{"$f":"SUMIFS(raw_resource_build!$I:$I,raw_resource_build!$E:$E,'Portfolio Analytics'!$C72,raw_resource_build!$A:$A,'Portfolio Analytics'!AK$64,raw_resource_build!$C:$C,mainzone)","v":0},{"$f":"SUMIFS(raw_resource_build!$I:$I,raw_resource_build!$E:$E,'Portfolio Analytics'!$C72,raw_resource_build!$A:$A,'Portfolio Analytics'!AL$64,raw_resource_build!$C:$C,mainzone)","v":0},{"$f":"SUMIFS(raw_resource_build!$I:$I,raw_resource_build!$E:$E,'Portfolio Analytics'!$C72,raw_resource_build!$A:$A,'Portfolio Analytics'!AM$64,raw_resource_build!$C:$C,mainzone)","v":0},{"$f":"SUMIFS(raw_resource_build!$I:$I,raw_resource_build!$E:$E,'Portfolio Analytics'!$C72,raw_resource_build!$A:$A,'Portfolio Analytics'!AN$64,raw_resource_build!$C:$C,mainzone)","v":0}]
[null,null,{"$f":"Lists!B13","v":"CAISO_CHP"},"MW",{"$f":"SUMIFS(raw_resource_build!$I:$I,raw_resource_build!$E:$E,'Portfolio Analytics'!$C73,raw_resource_build!$A:$A,'Portfolio Analytics'!E$64,raw_resource_build!$C:$C,mainzone)","v":0},{"$f":"SUMIFS(raw_resource_build!$I:$I,raw_resource_build!$E:$E,'Portfolio Analytics'!$C73,raw_resource_build!$A:$A,'Portfolio Analytics'!F$64,raw_resource_build!$C:$C,mainzone)","v":0},{"$f":"SUMIFS(raw_resource_build!$I:$I,raw_resource_build!$E:$E,'Portfolio Analytics'!$C73,raw_resource_build!$A:$A,'Portfolio Analytics'!G$64,raw_resource_build!$C:$C,mainzone)","v":0},{"$f":"SUMIFS(raw_resource_build!$I:$I,raw_resource_build!$E:$E,'Portfolio Analytics'!$C73,raw_resource_build!$A:$A,'Portfolio Analytics'!H$64,raw_resource_build!$C:$C,mainzone)","v":0},{"$f":"SUMIFS(raw_resource_build!$I:$I,raw_resource_build!$E:$E,'Portfolio Analytics'!$C73,raw_resource_build!$A:$A,'Portfolio Analytics'!I$64,raw_resource_build!$C:$C,mainzone)","v":0},{"$f":"SUMIFS(raw_resource_build!$I:$I,raw_resource_build!$E:$E,'Portfolio Analytics'!$C73,raw_resource_build!$A:$A,'Portfolio Analytics'!J$64,raw_resource_build!$C:$C,mainzone)","v":2296.02},{"$f":"SUMIFS(raw_resource_build!$I:$I,raw_resource_build!$E:$E,'Portfolio Analytics'!$C73,raw_resource_build!$A:$A,'Portfolio Analytics'!K$64,raw_resource_build!$C:$C,mainzone)","v":2296.02},{"$f":"SUMIFS(raw_resource_build!$I:$I,raw_resource_build!$E:$E,'Portfolio Analytics'!$C73,raw_resource_build!$A:$A,'Portfolio Analytics'!L$64,raw_resource_build!$C:$C,mainzone)","v":2296.02},{"$f":"SUMIFS(raw_resource_build!$I:$I,raw_resource_build!$E:$E,'Portfolio Analytics'!$C73,raw_resource_build!$A:$A,'Portfolio Analytics'!M$64,raw_resource_build!$C:$C,mainzone)","v":2296.02},{"$f":"SUMIFS(raw_resource_build!$I:$I,raw_resource_build!$E:$E,'Portfolio Analytics'!$C73,raw_resource_build!$A:$A,'Portfolio Analytics'!N$64,raw_resource_build!$C:$C,mainzone)","v":2296.02},{"$f":"SUMIFS(raw_resource_build!$I:$I,raw_resource_build!$E:$E,'Portfolio Analytics'!$C73,raw_resource_build!$A:$A,'Portfolio Analytics'!O$64,raw_resource_build!$C:$C,mainzone)","v":0},{"$f":"SUMIFS(raw_resource_build!$I:$I,raw_resource_build!$E:$E,'Portfolio Analytics'!$C73,raw_resource_build!$A:$A,'Portfolio Analytics'!P$64,raw_resource_build!$C:$C,mainzone)","v":2296.02},{"$f":"SUMIFS(raw_resource_build!$I:$I,raw_resource_build!$E:$E,'Portfolio Analytics'!$C73,raw_resource_build!$A:$A,'Portfolio Analytics'!Q$64,raw_resource_build!$C:$C,mainzone)","v":0},{"$f":"SUMIFS(raw_resource_build!$I:$I,raw_resource_build!$E:$E,'Portfolio Analytics'!$C73,raw_resource_build!$A:$A,'Portfolio Analytics'!R$64,raw_resource_build!$C:$C,mainzone)","v":0},{"$f":"SUMIFS(raw_resource_build!$I:$I,raw_resource_build!$E:$E,'Portfolio Analytics'!$C73,raw_resource_build!$A:$A,'Portfolio Analytics'!S$64,raw_resource_build!$C:$C,mainzone)","v":0},{"$f":"SUMIFS(raw_resource_build!$I:$I,raw_resource_build!$E:$E,'Portfolio Analytics'!$C73,raw_resource_build!$A:$A,'Portfolio Analytics'!T$64,raw_resource_build!$C:$C,mainzone)","v":2296.02},{"$f":"SUMIFS(raw_resource_build!$I:$I,raw_resource_build!$E:$E,'Portfolio Analytics'!$C73,raw_resource_build!$A:$A,'Portfolio Analytics'!U$64,raw_resource_build!$C:$C,mainzone)","v":0},{"$f":"SUMIFS(raw_resource_build!$I:$I,raw_resource_build!$E:$E,'Portfolio Analytics'!$C73,raw_resource_build!$A:$A,'Portfolio Analytics'!V$64,raw_resource_build!$C:$C,mainzone)","v":0},{"$f":"SUMIFS(raw_resource_build!$I:$I,raw_resource_build!$E:$E,'Portfolio Analytics'!$C73,raw_resource_build!$A:$A,'Portfolio Analytics'!W$64,raw_resource_build!$C:$C,mainzone)","v":0},{"$f":"SUMIFS(raw_resource_build!$I:$I,raw_resource_build!$E:$E,'Portfolio Analytics'!$C73,raw_resource_build!$A:$A,'Portfolio Analytics'!X$64,raw_resource_build!$C:$C,mainzone)","v":0},{"$f":"SUMIFS(raw_resource_build!$I:$I,raw_resource_build!$E:$E,'Portfolio Analytics'!$C73,raw_resource_build!$A:$A,'Portfolio Analytics'!Y$64,raw_resource_build!$C:$C,mainzone)","v":0},{"$f":"SUMIFS(raw_resource_build!$I:$I,raw_resource_build!$E:$E,'Portfolio Analytics'!$C73,raw_resource_build!$A:$A,'Portfolio Analytics'!Z$64,raw_resource_build!$C:$C,mainzone)","v":0},{"$f":"SUMIFS(raw_resource_build!$I:$I,raw_resource_build!$E:$E,'Portfolio Analytics'!$C73,raw_resource_build!$A:$A,'Portfolio Analytics'!AA$64,raw_resource_build!$C:$C,mainzone)","v":0},{"$f":"SUMIFS(raw_resource_build!$I:$I,raw_resource_build!$E:$E,'Portfolio Analytics'!$C73,raw_resource_build!$A:$A,'Portfolio Analytics'!AB$64,raw_resource_build!$C:$C,mainzone)","v":0},{"$f":"SUMIFS(raw_resource_build!$I:$I,raw_resource_build!$E:$E,'Portfolio Analytics'!$C73,raw_resource_build!$A:$A,'Portfolio Analytics'!AC$64,raw_resource_build!$C:$C,mainzone)","v":0},{"$f":"SUMIFS(raw_resource_build!$I:$I,raw_resource_build!$E:$E,'Portfolio Analytics'!$C73,raw_resource_build!$A:$A,'Portfolio Analytics'!AD$64,raw_resource_build!$C:$C,mainzone)","v":0},{"$f":"SUMIFS(raw_resource_build!$I:$I,raw_resource_build!$E:$E,'Portfolio Analytics'!$C73,raw_resource_build!$A:$A,'Portfolio Analytics'!AE$64,raw_resource_build!$C:$C,mainzone)","v":0},{"$f":"SUMIFS(raw_resource_build!$I:$I,raw_resource_build!$E:$E,'Portfolio Analytics'!$C73,raw_resource_build!$A:$A,'Portfolio Analytics'!AF$64,raw_resource_build!$C:$C,mainzone)","v":0},{"$f":"SUMIFS(raw_resource_build!$I:$I,raw_resource_build!$E:$E,'Portfolio Analytics'!$C73,raw_resource_build!$A:$A,'Portfolio Analytics'!AG$64,raw_resource_build!$C:$C,mainzone)","v":0},{"$f":"SUMIFS(raw_resource_build!$I:$I,raw_resource_build!$E:$E,'Portfolio Analytics'!$C73,raw_resource_build!$A:$A,'Portfolio Analytics'!AH$64,raw_resource_build!$C:$C,mainzone)","v":0},{"$f":"SUMIFS(raw_resource_build!$I:$I,raw_resource_build!$E:$E,'Portfolio Analytics'!$C73,raw_resource_build!$A:$A,'Portfolio Analytics'!AI$64,raw_resource_build!$C:$C,mainzone)","v":0},{"$f":"SUMIFS(raw_resource_build!$I:$I,raw_resource_build!$E:$E,'Portfolio Analytics'!$C73,raw_resource_build!$A:$A,'Portfolio Analytics'!AJ$64,raw_resource_build!$C:$C,mainzone)","v":0},{"$f":"SUMIFS(raw_resource_build!$I:$I,raw_resource_build!$E:$E,'Portfolio Analytics'!$C73,raw_resource_build!$A:$A,'Portfolio Analytics'!AK$64,raw_resource_build!$C:$C,mainzone)","v":0},{"$f":"SUMIFS(raw_resource_build!$I:$I,raw_resource_build!$E:$E,'Portfolio Analytics'!$C73,raw_resource_build!$A:$A,'Portfolio Analytics'!AL$64,raw_resource_build!$C:$C,mainzone)","v":0},{"$f":"SUMIFS(raw_resource_build!$I:$I,raw_resource_build!$E:$E,'Portfolio Analytics'!$C73,raw_resource_build!$A:$A,'Portfolio Analytics'!AM$64,raw_resource_build!$C:$C,mainzone)","v":0},{"$f":"SUMIFS(raw_resource_build!$I:$I,raw_resource_build!$E:$E,'Portfolio Analytics'!$C73,raw_resource_build!$A:$A,'Portfolio Analytics'!AN$64,raw_resource_build!$C:$C,mainzone)","v":0}]
[null,null,{"$f":"Lists!B14","v":"CAISO_Coal"},"MW",{"$f":"SUMIFS(raw_resource_build!$I:$I,raw_resource_build!$E:$E,'Portfolio Analytics'!$C74,raw_resource_build!$A:$A,'Portfolio Analytics'!E$64,raw_resource_build!$C:$C,mainzone)","v":0},{"$f":"SUMIFS(raw_resource_build!$I:$I,raw_resource_build!$E:$E,'Portfolio Analytics'!$C74,raw_resource_build!$A:$A,'Portfolio Analytics'!F$64,raw_resource_build!$C:$C,mainzone)","v":0},{"$f":"SUMIFS(raw_resource_build!$I:$I,raw_resource_build!$E:$E,'Portfolio Analytics'!$C74,raw_resource_build!$A:$A,'Portfolio Analytics'!G$64,raw_resource_build!$C:$C,mainzone)","v":0},{"$f":"SUMIFS(raw_resource_build!$I:$I,raw_resource_build!$E:$E,'Portfolio Analytics'!$C74,raw_resource_build!$A:$A,'Portfolio Analytics'!H$64,raw_resource_build!$C:$C,mainzone)","v":0},{"$f":"SUMIFS(raw_resource_build!$I:$I,raw_resource_build!$E:$E,'Portfolio Analytics'!$C74,raw_resource_build!$A:$A,'Portfolio Analytics'!I$64,raw_resource_build!$C:$C,mainzone)","v":0},{"$f":"SUMIFS(raw_resource_build!$I:$I,raw_resource_build!$E:$E,'Portfolio Analytics'!$C74,raw_resource_build!$A:$A,'Portfolio Analytics'!J$64,raw_resource_build!$C:$C,mainzone)","v":480},{"$f":"SUMIFS(raw_resource_build!$I:$I,raw_resource_build!$E:$E,'Portfolio Analytics'!$C74,raw_resource_build!$A:$A,'Portfolio Analytics'!K$64,raw_resource_build!$C:$C,mainzone)","v":480},{"$f":"SUMIFS(raw_resource_build!$I:$I,raw_resource_build!$E:$E,'Portfolio Analytics'!$C74,raw_resource_build!$A:$A,'Portfolio Analytics'!L$64,raw_resource_build!$C:$C,mainzone)","v":480},{"$f":"SUMIFS(raw_resource_build!$I:$I,raw_resource_build!$E:$E,'Portfolio Analytics'!$C74,raw_resource_build!$A:$A,'Portfolio Analytics'!M$64,raw_resource_build!$C:$C,mainzone)","v":480},{"$f":"SUMIFS(raw_resource_build!$I:$I,raw_resource_build!$E:$E,'Portfolio Analytics'!$C74,raw_resource_build!$A:$A,'Portfolio Analytics'!N$64,raw_resource_build!$C:$C,mainzone)","v":480},{"$f":"SUMIFS(raw_resource_build!$I:$I,raw_resource_build!$E:$E,'Portfolio Analytics'!$C74,raw_resource_build!$A:$A,'Portfolio Analytics'!O$64,raw_resource_build!$C:$C,mainzone)","v":0},{"$f":"SUMIFS(raw_resource_build!$I:$I,raw_resource_build!$E:$E,'Portfolio Analytics'!$C74,raw_resource_build!$A:$A,'Portfolio Analytics'!P$64,raw_resource_build!$C:$C,mainzone)","v":0},{"$f":"SUMIFS(raw_resource_build!$I:$I,raw_resource_build!$E:$E,'Portfolio Analytics'!$C74,raw_resource_build!$A:$A,'Portfolio Analytics'!Q$64,raw_resource_build!$C:$C,mainzone)","v":0},{"$f":"SUMIFS(raw_resource_build!$I:$I,raw_resource_build!$E:$E,'Portfolio Analytics'!$C74,raw_resource_build!$A:$A,'Portfolio Analytics'!R$64,raw_resource_build!$C:$C,mainzone)","v":0},{"$f":"SUMIFS(raw_resource_build!$I:$I,raw_resource_build!$E:$E,'Portfolio Analytics'!$C74,raw_resource_build!$A:$A,'Portfolio Analytics'!S$64,raw_resource_build!$C:$C,mainzone)","v":0},{"$f":"SUMIFS(raw_resource_build!$I:$I,raw_resource_build!$E:$E,'Portfolio Analytics'!$C74,raw_resource_build!$A:$A,'Portfolio Analytics'!T$64,raw_resource_build!$C:$C,mainzone)","v":0},{"$f":"SUMIFS(raw_resource_build!$I:$I,raw_resource_build!$E:$E,'Portfolio Analytics'!$C74,raw_resource_build!$A:$A,'Portfolio Analytics'!U$64,raw_resource_build!$C:$C,mainzone)","v":0},{"$f":"SUMIFS(raw_resource_build!$I:$I,raw_resource_build!$E:$E,'Portfolio Analytics'!$C74,raw_resource_build!$A:$A,'Portfolio Analytics'!V$64,raw_resource_build!$C:$C,mainzone)","v":0},{"$f":"SUMIFS(raw_resource_build!$I:$I,raw_resource_build!$E:$E,'Portfolio Analytics'!$C74,raw_resource_build!$A:$A,'Portfolio Analytics'!W$64,raw_resource_build!$C:$C,mainzone)","v":0},{"$f":"SUMIFS(raw_resource_build!$I:$I,raw_resource_build!$E:$E,'Portfolio Analytics'!$C74,raw_resource_build!$A:$A,'Portfolio Analytics'!X$64,raw_resource_build!$C:$C,mainzone)","v":0},{"$f":"SUMIFS(raw_resource_build!$I:$I,raw_resource_build!$E:$E,'Portfolio Analytics'!$C74,raw_resource_build!$A:$A,'Portfolio Analytics'!Y$64,raw_resource_build!$C:$C,mainzone)","v":0},{"$f":"SUMIFS(raw_resource_build!$I:$I,raw_resource_build!$E:$E,'Portfolio Analytics'!$C74,raw_resource_build!$A:$A,'Portfolio Analytics'!Z$64,raw_resource_build!$C:$C,mainzone)","v":0},{"$f":"SUMIFS(raw_resource_build!$I:$I,raw_resource_build!$E:$E,'Portfolio Analytics'!$C74,raw_resource_build!$A:$A,'Portfolio Analytics'!AA$64,raw_resource_build!$C:$C,mainzone)","v":0},{"$f":"SUMIFS(raw_resource_build!$I:$I,raw_resource_build!$E:$E,'Portfolio Analytics'!$C74,raw_resource_build!$A:$A,'Portfolio Analytics'!AB$64,raw_resource_build!$C:$C,mainzone)","v":0},{"$f":"SUMIFS(raw_resource_build!$I:$I,raw_resource_build!$E:$E,'Portfolio Analytics'!$C74,raw_resource_build!$A:$A,'Portfolio Analytics'!AC$64,raw_resource_build!$C:$C,mainzone)","v":0},{"$f":"SUMIFS(raw_resource_build!$I:$I,raw_resource_build!$E:$E,'Portfolio Analytics'!$C74,raw_resource_build!$A:$A,'Portfolio Analytics'!AD$64,raw_resource_build!$C:$C,mainzone)","v":0},{"$f":"SUMIFS(raw_resource_build!$I:$I,raw_resource_build!$E:$E,'Portfolio Analytics'!$C74,raw_resource_build!$A:$A,'Portfolio Analytics'!AE$64,raw_resource_build!$C:$C,mainzone)","v":0},{"$f":"SUMIFS(raw_resource_build!$I:$I,raw_resource_build!$E:$E,'Portfolio Analytics'!$C74,raw_resource_build!$A:$A,'Portfolio Analytics'!AF$64,raw_resource_build!$C:$C,mainzone)","v":0},{"$f":"SUMIFS(raw_resource_build!$I:$I,raw_resource_build!$E:$E,'Portfolio Analytics'!$C74,raw_resource_build!$A:$A,'Portfolio Analytics'!AG$64,raw_resource_build!$C:$C,mainzone)","v":0},{"$f":"SUMIFS(raw_resource_build!$I:$I,raw_resource_build!$E:$E,'Portfolio Analytics'!$C74,raw_resource_build!$A:$A,'Portfolio Analytics'!AH$64,raw_resource_build!$C:$C,mainzone)","v":0},{"$f":"SUMIFS(raw_resource_build!$I:$I,raw_resource_build!$E:$E,'Portfolio Analytics'!$C74,raw_resource_build!$A:$A,'Portfolio Analytics'!AI$64,raw_resource_build!$C:$C,mainzone)","v":0},{"$f":"SUMIFS(raw_resource_build!$I:$I,raw_resource_build!$E:$E,'Portfolio Analytics'!$C74,raw_resource_build!$A:$A,'Portfolio Analytics'!AJ$64,raw_resource_build!$C:$C,mainzone)","v":0},{"$f":"SUMIFS(raw_resource_build!$I:$I,raw_resource_build!$E:$E,'Portfolio Analytics'!$C74,raw_resource_build!$A:$A,'Portfolio Analytics'!AK$64,raw_resource_build!$C:$C,mainzone)","v":0},{"$f":"SUMIFS(raw_resource_build!$I:$I,raw_resource_build!$E:$E,'Portfolio Analytics'!$C74,raw_resource_build!$A:$A,'Portfolio Analytics'!AL$64,raw_resource_build!$C:$C,mainzone)","v":0},{"$f":"SUMIFS(raw_resource_build!$I:$I,raw_resource_build!$E:$E,'Portfolio Analytics'!$C74,raw_resource_build!$A:$A,'Portfolio Analytics'!AM$64,raw_resource_build!$C:$C,mainzone)","v":0},{"$f":"SUMIFS(raw_resource_build!$I:$I,raw_resource_build!$E:$E,'Portfolio Analytics'!$C74,raw_resource_build!$A:$A,'Portfolio Analytics'!AN$64,raw_resource_build!$C:$C,mainzone)","v":0}]
[null,null,{"$f":"Lists!B15","v":"CAISO_Nuclear"},"MW",{"$f":"SUMIFS(raw_resource_build!$I:$I,raw_resource_build!$E:$E,'Portfolio Analytics'!$C75,raw_resource_build!$A:$A,'Portfolio Analytics'!E$64,raw_resource_build!$C:$C,mainzone)","v":0},{"$f":"SUMIFS(raw_resource_build!$I:$I,raw_resource_build!$E:$E,'Portfolio Analytics'!$C75,raw_resource_build!$A:$A,'Portfolio Analytics'!F$64,raw_resource_build!$C:$C,mainzone)","v":0},{"$f":"SUMIFS(raw_resource_build!$I:$I,raw_resource_build!$E:$E,'Portfolio Analytics'!$C75,raw_resource_build!$A:$A,'Portfolio Analytics'!G$64,raw_resource_build!$C:$C,mainzone)","v":0},{"$f":"SUMIFS(raw_resource_build!$I:$I,raw_resource_build!$E:$E,'Portfolio Analytics'!$C75,raw_resource_build!$A:$A,'Portfolio Analytics'!H$64,raw_resource_build!$C:$C,mainzone)","v":0},{"$f":"SUMIFS(raw_resource_build!$I:$I,raw_resource_build!$E:$E,'Portfolio Analytics'!$C75,raw_resource_build!$A:$A,'Portfolio Analytics'!I$64,raw_resource_build!$C:$C,mainzone)","v":0},{"$f":"SUMIFS(raw_resource_build!$I:$I,raw_resource_build!$E:$E,'Portfolio Analytics'!$C75,raw_resource_build!$A:$A,'Portfolio Analytics'!J$64,raw_resource_build!$C:$C,mainzone)","v":2935},{"$f":"SUMIFS(raw_resource_build!$I:$I,raw_resource_build!$E:$E,'Portfolio Analytics'!$C75,raw_resource_build!$A:$A,'Portfolio Analytics'!K$64,raw_resource_build!$C:$C,mainzone)","v":2935},{"$f":"SUMIFS(raw_resource_build!$I:$I,raw_resource_build!$E:$E,'Portfolio Analytics'!$C75,raw_resource_build!$A:$A,'Portfolio Analytics'!L$64,raw_resource_build!$C:$C,mainzone)","v":2935},{"$f":"SUMIFS(raw_resource_build!$I:$I,raw_resource_build!$E:$E,'Portfolio Analytics'!$C75,raw_resource_build!$A:$A,'Portfolio Analytics'!M$64,raw_resource_build!$C:$C,mainzone)","v":2935},{"$f":"SUMIFS(raw_resource_build!$I:$I,raw_resource_build!$E:$E,'Portfolio Analytics'!$C75,raw_resource_build!$A:$A,'Portfolio Analytics'!N$64,raw_resource_build!$C:$C,mainzone)","v":1785},{"$f":"SUMIFS(raw_resource_build!$I:$I,raw_resource_build!$E:$E,'Portfolio Analytics'!$C75,raw_resource_build!$A:$A,'Portfolio Analytics'!O$64,raw_resource_build!$C:$C,mainzone)","v":0},{"$f":"SUMIFS(raw_resource_build!$I:$I,raw_resource_build!$E:$E,'Portfolio Analytics'!$C75,raw_resource_build!$A:$A,'Portfolio Analytics'!P$64,raw_resource_build!$C:$C,mainzone)","v":635},{"$f":"SUMIFS(raw_resource_build!$I:$I,raw_resource_build!$E:$E,'Portfolio Analytics'!$C75,raw_resource_build!$A:$A,'Portfolio Analytics'!Q$64,raw_resource_build!$C:$C,mainzone)","v":0},{"$f":"SUMIFS(raw_resource_build!$I:$I,raw_resource_build!$E:$E,'Portfolio Analytics'!$C75,raw_resource_build!$A:$A,'Portfolio Analytics'!R$64,raw_resource_build!$C:$C,mainzone)","v":0},{"$f":"SUMIFS(raw_resource_build!$I:$I,raw_resource_build!$E:$E,'Portfolio Analytics'!$C75,raw_resource_build!$A:$A,'Portfolio Analytics'!S$64,raw_resource_build!$C:$C,mainzone)","v":0},{"$f":"SUMIFS(raw_resource_build!$I:$I,raw_resource_build!$E:$E,'Portfolio Analytics'!$C75,raw_resource_build!$A:$A,'Portfolio Analytics'!T$64,raw_resource_build!$C:$C,mainzone)","v":635},{"$f":"SUMIFS(raw_resource_build!$I:$I,raw_resource_build!$E:$E,'Portfolio Analytics'!$C75,raw_resource_build!$A:$A,'Portfolio Analytics'!U$64,raw_resource_build!$C:$C,mainzone)","v":0},{"$f":"SUMIFS(raw_resource_build!$I:$I,raw_resource_build!$E:$E,'Portfolio Analytics'!$C75,raw_resource_build!$A:$A,'Portfolio Analytics'!V$64,raw_resource_build!$C:$C,mainzone)","v":0},{"$f":"SUMIFS(raw_resource_build!$I:$I,raw_resource_build!$E:$E,'Portfolio Analytics'!$C75,raw_resource_build!$A:$A,'Portfolio Analytics'!W$64,raw_resource_build!$C:$C,mainzone)","v":0},{"$f":"SUMIFS(raw_resource_build!$I:$I,raw_resource_build!$E:$E,'Portfolio Analytics'!$C75,raw_resource_build!$A:$A,'Portfolio Analytics'!X$64,raw_resource_build!$C:$C,mainzone)","v":0},{"$f":"SUMIFS(raw_resource_build!$I:$I,raw_resource_build!$E:$E,'Portfolio Analytics'!$C75,raw_resource_build!$A:$A,'Portfolio Analytics'!Y$64,raw_resource_build!$C:$C,mainzone)","v":0},{"$f":"SUMIFS(raw_resource_build!$I:$I,raw_resource_build!$E:$E,'Portfolio Analytics'!$C75,raw_resource_build!$A:$A,'Portfolio Analytics'!Z$64,raw_resource_build!$C:$C,mainzone)","v":0},{"$f":"SUMIFS(raw_resource_build!$I:$I,raw_resource_build!$E:$E,'Portfolio Analytics'!$C75,raw_resource_build!$A:$A,'Portfolio Analytics'!AA$64,raw_resource_build!$C:$C,mainzone)","v":0},{"$f":"SUMIFS(raw_resource_build!$I:$I,raw_resource_build!$E:$E,'Portfolio Analytics'!$C75,raw_resource_build!$A:$A,'Portfolio Analytics'!AB$64,raw_resource_build!$C:$C,mainzone)","v":0},{"$f":"SUMIFS(raw_resource_build!$I:$I,raw_resource_build!$E:$E,'Portfolio Analytics'!$C75,raw_resource_build!$A:$A,'Portfolio Analytics'!AC$64,raw_resource_build!$C:$C,mainzone)","v":0},{"$f":"SUMIFS(raw_resource_build!$I:$I,raw_resource_build!$E:$E,'Portfolio Analytics'!$C75,raw_resource_build!$A:$A,'Portfolio Analytics'!AD$64,raw_resource_build!$C:$C,mainzone)","v":0},{"$f":"SUMIFS(raw_resource_build!$I:$I,raw_resource_build!$E:$E,'Portfolio Analytics'!$C75,raw_resource_build!$A:$A,'Portfolio Analytics'!AE$64,raw_resource_build!$C:$C,mainzone)","v":0},{"$f":"SUMIFS(raw_resource_build!$I:$I,raw_resource_build!$E:$E,'Portfolio Analytics'!$C75,raw_resource_build!$A:$A,'Portfolio Analytics'!AF$64,raw_resource_build!$C:$C,mainzone)","v":0},{"$f":"SUMIFS(raw_resource_build!$I:$I,raw_resource_build!$E:$E,'Portfolio Analytics'!$C75,raw_resource_build!$A:$A,'Portfolio Analytics'!AG$64,raw_resource_build!$C:$C,mainzone)","v":0},{"$f":"SUMIFS(raw_resource_build!$I:$I,raw_resource_build!$E:$E,'Portfolio Analytics'!$C75,raw_resource_build!$A:$A,'Portfolio Analytics'!AH$64,raw_resource_build!$C:$C,mainzone)","v":0},{"$f":"SUMIFS(raw_resource_build!$I:$I,raw_resource_build!$E:$E,'Portfolio Analytics'!$C75,raw_resource_build!$A:$A,'Portfolio Analytics'!AI$64,raw_resource_build!$C:$C,mainzone)","v":635},{"$f":"SUMIFS(raw_resource_build!$I:$I,raw_resource_build!$E:$E,'Portfolio Analytics'!$C75,raw_resource_build!$A:$A,'Portfolio Analytics'!AJ$64,raw_resource_build!$C:$C,mainzone)","v":0},{"$f":"SUMIFS(raw_resource_build!$I:$I,raw_resource_build!$E:$E,'Portfolio Analytics'!$C75,raw_resource_build!$A:$A,'Portfolio Analytics'!AK$64,raw_resource_build!$C:$C,mainzone)","v":0},{"$f":"SUMIFS(raw_resource_build!$I:$I,raw_resource_build!$E:$E,'Portfolio Analytics'!$C75,raw_resource_build!$A:$A,'Portfolio Analytics'!AL$64,raw_resource_build!$C:$C,mainzone)","v":0},{"$f":"SUMIFS(raw_resource_build!$I:$I,raw_resource_build!$E:$E,'Portfolio Analytics'!$C75,raw_resource_build!$A:$A,'Portfolio Analytics'!AM$64,raw_resource_build!$C:$C,mainzone)","v":0},{"$f":"SUMIFS(raw_resource_build!$I:$I,raw_resource_build!$E:$E,'Portfolio Analytics'!$C75,raw_resource_build!$A:$A,'Portfolio Analytics'!AN$64,raw_resource_build!$C:$C,mainzone)","v":0}]
[null,null,{"$f":"Lists!B16","v":"Hydro"},"MW",{"$f":"SUMIFS(raw_resource_build!$I:$I,raw_resource_build!$E:$E,'Portfolio Analytics'!$C76,raw_resource_build!$A:$A,'Portfolio Analytics'!E$64,raw_resource_build!$C:$C,mainzone)","v":0},{"$f":"SUMIFS(raw_resource_build!$I:$I,raw_resource_build!$E:$E,'Portfolio Analytics'!$C76,raw_resource_build!$A:$A,'Portfolio Analytics'!F$64,raw_resource_build!$C:$C,mainzone)","v":0},{"$f":"SUMIFS(raw_resource_build!$I:$I,raw_resource_build!$E:$E,'Portfolio Analytics'!$C76,raw_resource_build!$A:$A,'Portfolio Analytics'!G$64,raw_resource_build!$C:$C,mainzone)","v":0},{"$f":"SUMIFS(raw_resource_build!$I:$I,raw_resource_build!$E:$E,'Portfolio Analytics'!$C76,raw_resource_build!$A:$A,'Portfolio Analytics'!H$64,raw_resource_build!$C:$C,mainzone)","v":0},{"$f":"SUMIFS(raw_resource_build!$I:$I,raw_resource_build!$E:$E,'Portfolio Analytics'!$C76,raw_resource_build!$A:$A,'Portfolio Analytics'!I$64,raw_resource_build!$C:$C,mainzone)","v":0},{"$f":"SUMIFS(raw_resource_build!$I:$I,raw_resource_build!$E:$E,'Portfolio Analytics'!$C76,raw_resource_build!$A:$A,'Portfolio Analytics'!J$64,raw_resource_build!$C:$C,mainzone)","v":7070.1},{"$f":"SUMIFS(raw_resource_build!$I:$I,raw_resource_build!$E:$E,'Portfolio Analytics'!$C76,raw_resource_build!$A:$A,'Portfolio Analytics'!K$64,raw_resource_build!$C:$C,mainzone)","v":7070.1},{"$f":"SUMIFS(raw_resource_build!$I:$I,raw_resource_build!$E:$E,'Portfolio Analytics'!$C76,raw_resource_build!$A:$A,'Portfolio Analytics'!L$64,raw_resource_build!$C:$C,mainzone)","v":7070.1},{"$f":"SUMIFS(raw_resource_build!$I:$I,raw_resource_build!$E:$E,'Portfolio Analytics'!$C76,raw_resource_build!$A:$A,'Portfolio Analytics'!M$64,raw_resource_build!$C:$C,mainzone)","v":7070.1},{"$f":"SUMIFS(raw_resource_build!$I:$I,raw_resource_build!$E:$E,'Portfolio Analytics'!$C76,raw_resource_build!$A:$A,'Portfolio Analytics'!N$64,raw_resource_build!$C:$C,mainzone)","v":7070.1},{"$f":"SUMIFS(raw_resource_build!$I:$I,raw_resource_build!$E:$E,'Portfolio Analytics'!$C76,raw_resource_build!$A:$A,'Portfolio Analytics'!O$64,raw_resource_build!$C:$C,mainzone)","v":0},{"$f":"SUMIFS(raw_resource_build!$I:$I,raw_resource_build!$E:$E,'Portfolio Analytics'!$C76,raw_resource_build!$A:$A,'Portfolio Analytics'!P$64,raw_resource_build!$C:$C,mainzone)","v":7070.1},{"$f":"SUMIFS(raw_resource_build!$I:$I,raw_resource_build!$E:$E,'Portfolio Analytics'!$C76,raw_resource_build!$A:$A,'Portfolio Analytics'!Q$64,raw_resource_build!$C:$C,mainzone)","v":0},{"$f":"SUMIFS(raw_resource_build!$I:$I,raw_resource_build!$E:$E,'Portfolio Analytics'!$C76,raw_resource_build!$A:$A,'Portfolio Analytics'!R$64,raw_resource_build!$C:$C,mainzone)","v":0},{"$f":"SUMIFS(raw_resource_build!$I:$I,raw_resource_build!$E:$E,'Portfolio Analytics'!$C76,raw_resource_build!$A:$A,'Portfolio Analytics'!S$64,raw_resource_build!$C:$C,mainzone)","v":0},{"$f":"SUMIFS(raw_resource_build!$I:$I,raw_resource_build!$E:$E,'Portfolio Analytics'!$C76,raw_resource_build!$A:$A,'Portfolio Analytics'!T$64,raw_resource_build!$C:$C,mainzone)","v":7069.51},{"$f":"SUMIFS(raw_resource_build!$I:$I,raw_resource_build!$E:$E,'Portfolio Analytics'!$C76,raw_resource_build!$A:$A,'Portfolio Analytics'!U$64,raw_resource_build!$C:$C,mainzone)","v":0},{"$f":"SUMIFS(raw_resource_build!$I:$I,raw_resource_build!$E:$E,'Portfolio Analytics'!$C76,raw_resource_build!$A:$A,'Portfolio Analytics'!V$64,raw_resource_build!$C:$C,mainzone)","v":0},{"$f":"SUMIFS(raw_resource_build!$I:$I,raw_resource_build!$E:$E,'Portfolio Analytics'!$C76,raw_resource_build!$A:$A,'Portfolio Analytics'!W$64,raw_resource_build!$C:$C,mainzone)","v":0},{"$f":"SUMIFS(raw_resource_build!$I:$I,raw_resource_build!$E:$E,'Portfolio Analytics'!$C76,raw_resource_build!$A:$A,'Portfolio Analytics'!X$64,raw_resource_build!$C:$C,mainzone)","v":0},{"$f":"SUMIFS(raw_resource_build!$I:$I,raw_resource_build!$E:$E,'Portfolio Analytics'!$C76,raw_resource_build!$A:$A,'Portfolio Analytics'!Y$64,raw_resource_build!$C:$C,mainzone)","v":0},{"$f":"SUMIFS(raw_resource_build!$I:$I,raw_resource_build!$E:$E,'Portfolio Analytics'!$C76,raw_resource_build!$A:$A,'Portfolio Analytics'!Z$64,raw_resource_build!$C:$C,mainzone)","v":0},{"$f":"SUMIFS(raw_resource_build!$I:$I,raw_resource_build!$E:$E,'Portfolio Analytics'!$C76,raw_resource_build!$A:$A,'Portfolio Analytics'!AA$64,raw_resource_build!$C:$C,mainzone)","v":0},{"$f":"SUMIFS(raw_resource_build!$I:$I,raw_resource_build!$E:$E,'Portfolio Analytics'!$C76,raw_resource_build!$A:$A,'Portfolio Analytics'!AB$64,raw_resource_build!$C:$C,mainzone)","v":0},{"$f":"SUMIFS(raw_resource_build!$I:$I,raw_resource_build!$E:$E,'Portfolio Analytics'!$C76,raw_resource_build!$A:$A,'Portfolio Analytics'!AC$64,raw_resource_build!$C:$C,mainzone)","v":0},{"$f":"SUMIFS(raw_resource_build!$I:$I,raw_resource_build!$E:$E,'Portfolio Analytics'!$C76,raw_resource_build!$A:$A,'Portfolio Analytics'!AD$64,raw_resource_build!$C:$C,mainzone)","v":0},{"$f":"SUMIFS(raw_resource_build!$I:$I,raw_resource_build!$E:$E,'Portfolio Analytics'!$C76,raw_resource_build!$A:$A,'Portfolio Analytics'!AE$64,raw_resource_build!$C:$C,mainzone)","v":0},{"$f":"SUMIFS(raw_resource_build!$I:$I,raw_resource_build!$E:$E,'Portfolio Analytics'!$C76,raw_resource_build!$A:$A,'Portfolio Analytics'!AF$64,raw_resource_build!$C:$C,mainzone)","v":0},{"$f":"SUMIFS(raw_resource_build!$I:$I,raw_resource_build!$E:$E,'Portfolio Analytics'!$C76,raw_resource_build!$A:$A,'Portfolio Analytics'!AG$64,raw_resource_build!$C:$C,mainzone)","v":0},{"$f":"SUMIFS(raw_resource_build!$I:$I,raw_resource_build!$E:$E,'Portfolio Analytics'!$C76,raw_resource_build!$A:$A,'Portfolio Analytics'!AH$64,raw_resource_build!$C:$C,mainzone)","v":0},{"$f":"SUMIFS(raw_resource_build!$I:$I,raw_resource_build!$E:$E,'Portfolio Analytics'!$C76,raw_resource_build!$A:$A,'Portfolio Analytics'!AI$64,raw_resource_build!$C:$C,mainzone)","v":7069.51},{"$f":"SUMIFS(raw_resource_build!$I:$I,raw_resource_build!$E:$E,'Portfolio Analytics'!$C76,raw_resource_build!$A:$A,'Portfolio Analytics'!AJ$64,raw_resource_build!$C:$C,mainzone)","v":0},{"$f":"SUMIFS(raw_resource_build!$I:$I,raw_resource_build!$E:$E,'Portfolio Analytics'!$C76,raw_resource_build!$A:$A,'Portfolio Analytics'!AK$64,raw_resource_build!$C:$C,mainzone)","v":0},{"$f":"SUMIFS(raw_resource_build!$I:$I,raw_resource_build!$E:$E,'Portfolio Analytics'!$C76,raw_resource_build!$A:$A,'Portfolio Analytics'!AL$64,raw_resource_build!$C:$C,mainzone)","v":0},{"$f":"SUMIFS(raw_resource_build!$I:$I,raw_resource_build!$E:$E,'Portfolio Analytics'!$C76,raw_resource_build!$A:$A,'Portfolio Analytics'!AM$64,raw_resource_build!$C:$C,mainzone)","v":0},{"$f":"SUMIFS(raw_resource_build!$I:$I,raw_resource_build!$E:$E,'Portfolio Analytics'!$C76,raw_resource_build!$A:$A,'Portfolio Analytics'!AN$64,raw_resource_build!$C:$C,mainzone)","v":0}]
[null,null,{"$f":"Lists!B17","v":"Hydro_NW_CAISO"},"MW",{"$f":"SUMIFS(raw_resource_build!$I:$I,raw_resource_build!$E:$E,'Portfolio Analytics'!$C77,raw_resource_build!$A:$A,'Portfolio Analytics'!E$64,raw_resource_build!$C:$C,\"CAISO_NW_Hydro\")","v":0},{"$f":"SUMIFS(raw_resource_build!$I:$I,raw_resource_build!$E:$E,'Portfolio Analytics'!$C77,raw_resource_build!$A:$A,'Portfolio Analytics'!F$64,raw_resource_build!$C:$C,\"CAISO_NW_Hydro\")","v":0},{"$f":"SUMIFS(raw_resource_build!$I:$I,raw_resource_build!$E:$E,'Portfolio Analytics'!$C77,raw_resource_build!$A:$A,'Portfolio Analytics'!G$64,raw_resource_build!$C:$C,\"CAISO_NW_Hydro\")","v":0},{"$f":"SUMIFS(raw_resource_build!$I:$I,raw_resource_build!$E:$E,'Portfolio Analytics'!$C77,raw_resource_build!$A:$A,'Portfolio Analytics'!H$64,raw_resource_build!$C:$C,\"CAISO_NW_Hydro\")","v":0},{"$f":"SUMIFS(raw_resource_build!$I:$I,raw_resource_build!$E:$E,'Portfolio Analytics'!$C77,raw_resource_build!$A:$A,'Portfolio Analytics'!I$64,raw_resource_build!$C:$C,\"CAISO_NW_Hydro\")","v":0},{"$f":"SUMIFS(raw_resource_build!$I:$I,raw_resource_build!$E:$E,'Portfolio Analytics'!$C77,raw_resource_build!$A:$A,'Portfolio Analytics'!J$64,raw_resource_build!$C:$C,\"CAISO_NW_Hydro\")","v":2851.77},{"$f":"SUMIFS(raw_resource_build!$I:$I,raw_resource_build!$E:$E,'Portfolio Analytics'!$C77,raw_resource_build!$A:$A,'Portfolio Analytics'!K$64,raw_resource_build!$C:$C,\"CAISO_NW_Hydro\")","v":2851.77},{"$f":"SUMIFS(raw_resource_build!$I:$I,raw_resource_build!$E:$E,'Portfolio Analytics'!$C77,raw_resource_build!$A:$A,'Portfolio Analytics'!L$64,raw_resource_build!$C:$C,\"CAISO_NW_Hydro\")","v":2851.77},{"$f":"SUMIFS(raw_resource_build!$I:$I,raw_resource_build!$E:$E,'Portfolio Analytics'!$C77,raw_resource_build!$A:$A,'Portfolio Analytics'!M$64,raw_resource_build!$C:$C,\"CAISO_NW_Hydro\")","v":2851.77},{"$f":"SUMIFS(raw_resource_build!$I:$I,raw_resource_build!$E:$E,'Portfolio Analytics'!$C77,raw_resource_build!$A:$A,'Portfolio Analytics'!N$64,raw_resource_build!$C:$C,\"CAISO_NW_Hydro\")","v":2851.77},{"$f":"SUMIFS(raw_resource_build!$I:$I,raw_resource_build!$E:$E,'Portfolio Analytics'!$C77,raw_resource_build!$A:$A,'Portfolio Analytics'!O$64,raw_resource_build!$C:$C,\"CAISO_NW_Hydro\")","v":0},{"$f":"SUMIFS(raw_resource_build!$I:$I,raw_resource_build!$E:$E,'Portfolio Analytics'!$C77,raw_resource_build!$A:$A,'Portfolio Analytics'!P$64,raw_resource_build!$C:$C,\"CAISO_NW_Hydro\")","v":2851.77},{"$f":"SUMIFS(raw_resource_build!$I:$I,raw_resource_build!$E:$E,'Portfolio Analytics'!$C77,raw_resource_build!$A:$A,'Portfolio Analytics'!Q$64,raw_resource_build!$C:$C,\"CAISO_NW_Hydro\")","v":0},{"$f":"SUMIFS(raw_resource_build!$I:$I,raw_resource_build!$E:$E,'Portfolio Analytics'!$C77,raw_resource_build!$A:$A,'Portfolio Analytics'!R$64,raw_resource_build!$C:$C,\"CAISO_NW_Hydro\")","v":0},{"$f":"SUMIFS(raw_resource_build!$I:$I,raw_resource_build!$E:$E,'Portfolio Analytics'!$C77,raw_resource_build!$A:$A,'Portfolio Analytics'!S$64,raw_resource_build!$C:$C,\"CAISO_NW_Hydro\")","v":0},{"$f":"SUMIFS(raw_resource_build!$I:$I,raw_resource_build!$E:$E,'Portfolio Analytics'!$C77,raw_resource_build!$A:$A,'Portfolio Analytics'!T$64,raw_resource_build!$C:$C,\"CAISO_NW_Hydro\")","v":2851.77},{"$f":"SUMIFS(raw_resource_build!$I:$I,raw_resource_build!$E:$E,'Portfolio Analytics'!$C77,raw_resource_build!$A:$A,'Portfolio Analytics'!U$64,raw_resource_build!$C:$C,\"CAISO_NW_Hydro\")","v":0},{"$f":"SUMIFS(raw_resource_build!$I:$I,raw_resource_build!$E:$E,'Portfolio Analytics'!$C77,raw_resource_build!$A:$A,'Portfolio Analytics'!V$64,raw_resource_build!$C:$C,\"CAISO_NW_Hydro\")","v":0},{"$f":"SUMIFS(raw_resource_build!$I:$I,raw_resource_build!$E:$E,'Portfolio Analytics'!$C77,raw_resource_build!$A:$A,'Portfolio Analytics'!W$64,raw_resource_build!$C:$C,\"CAISO_NW_Hydro\")","v":0},{"$f":"SUMIFS(raw_resource_build!$I:$I,raw_resource_build!$E:$E,'Portfolio Analytics'!$C77,raw_resource_build!$A:$A,'Portfolio Analytics'!X$64,raw_resource_build!$C:$C,\"CAISO_NW_Hydro\")","v":0},{"$f":"SUMIFS(raw_resource_build!$I:$I,raw_resource_build!$E:$E,'Portfolio Analytics'!$C77,raw_resource_build!$A:$A,'Portfolio Analytics'!Y$64,raw_resource_build!$C:$C,\"CAISO_NW_Hydro\")","v":0},{"$f":"SUMIFS(raw_resource_build!$I:$I,raw_resource_build!$E:$E,'Portfolio Analytics'!$C77,raw_resource_build!$A:$A,'Portfolio Analytics'!Z$64,raw_resource_build!$C:$C,\"CAISO_NW_Hydro\")","v":0},{"$f":"SUMIFS(raw_resource_build!$I:$I,raw_resource_build!$E:$E,'Portfolio Analytics'!$C77,raw_resource_build!$A:$A,'Portfolio Analytics'!AA$64,raw_resource_build!$C:$C,\"CAISO_NW_Hydro\")","v":0},{"$f":"SUMIFS(raw_resource_build!$I:$I,raw_resource_build!$E:$E,'Portfolio Analytics'!$C77,raw_resource_build!$A:$A,'Portfolio Analytics'!AB$64,raw_resource_build!$C:$C,\"CAISO_NW_Hydro\")","v":0},{"$f":"SUMIFS(raw_resource_build!$I:$I,raw_resource_build!$E:$E,'Portfolio Analytics'!$C77,raw_resource_build!$A:$A,'Portfolio Analytics'!AC$64,raw_resource_build!$C:$C,\"CAISO_NW_Hydro\")","v":0},{"$f":"SUMIFS(raw_resource_build!$I:$I,raw_resource_build!$E:$E,'Portfolio Analytics'!$C77,raw_resource_build!$A:$A,'Portfolio Analytics'!AD$64,raw_resource_build!$C:$C,\"CAISO_NW_Hydro\")","v":0},{"$f":"SUMIFS(raw_resource_build!$I:$I,raw_resource_build!$E:$E,'Portfolio Analytics'!$C77,raw_resource_build!$A:$A,'Portfolio Analytics'!AE$64,raw_resource_build!$C:$C,\"CAISO_NW_Hydro\")","v":0},{"$f":"SUMIFS(raw_resource_build!$I:$I,raw_resource_build!$E:$E,'Portfolio Analytics'!$C77,raw_resource_build!$A:$A,'Portfolio Analytics'!AF$64,raw_resource_build!$C:$C,\"CAISO_NW_Hydro\")","v":0},{"$f":"SUMIFS(raw_resource_build!$I:$I,raw_resource_build!$E:$E,'Portfolio Analytics'!$C77,raw_resource_build!$A:$A,'Portfolio Analytics'!AG$64,raw_resource_build!$C:$C,\"CAISO_NW_Hydro\")","v":0},{"$f":"SUMIFS(raw_resource_build!$I:$I,raw_resource_build!$E:$E,'Portfolio Analytics'!$C77,raw_resource_build!$A:$A,'Portfolio Analytics'!AH$64,raw_resource_build!$C:$C,\"CAISO_NW_Hydro\")","v":0},{"$f":"SUMIFS(raw_resource_build!$I:$I,raw_resource_build!$E:$E,'Portfolio Analytics'!$C77,raw_resource_build!$A:$A,'Portfolio Analytics'!AI$64,raw_resource_build!$C:$C,\"CAISO_NW_Hydro\")","v":2851.77},{"$f":"SUMIFS(raw_resource_build!$I:$I,raw_resource_build!$E:$E,'Portfolio Analytics'!$C77,raw_resource_build!$A:$A,'Portfolio Analytics'!AJ$64,raw_resource_build!$C:$C,\"CAISO_NW_Hydro\")","v":0},{"$f":"SUMIFS(raw_resource_build!$I:$I,raw_resource_build!$E:$E,'Portfolio Analytics'!$C77,raw_resource_build!$A:$A,'Portfolio Analytics'!AK$64,raw_resource_build!$C:$C,\"CAISO_NW_Hydro\")","v":0},{"$f":"SUMIFS(raw_resource_build!$I:$I,raw_resource_build!$E:$E,'Portfolio Analytics'!$C77,raw_resource_build!$A:$A,'Portfolio Analytics'!AL$64,raw_resource_build!$C:$C,\"CAISO_NW_Hydro\")","v":0},{"$f":"SUMIFS(raw_resource_build!$I:$I,raw_resource_build!$E:$E,'Portfolio Analytics'!$C77,raw_resource_build!$A:$A,'Portfolio Analytics'!AM$64,raw_resource_build!$C:$C,\"CAISO_NW_Hydro\")","v":0},{"$f":"SUMIFS(raw_resource_build!$I:$I,raw_resource_build!$E:$E,'Portfolio Analytics'!$C77,raw_resource_build!$A:$A,'Portfolio Analytics'!AN$64,raw_resource_build!$C:$C,\"CAISO_NW_Hydro\")","v":0}]
[null,null,{"$f":"Lists!B18","v":"CAISO_Conventional_DR"},"MW",{"$f":"SUMIFS(raw_resource_build!$I:$I,raw_resource_build!$E:$E,'Portfolio Analytics'!$C78,raw_resource_build!$A:$A,'Portfolio Analytics'!E$64,raw_resource_build!$C:$C,mainzone)","v":0},{"$f":"SUMIFS(raw_resource_build!$I:$I,raw_resource_build!$E:$E,'Portfolio Analytics'!$C78,raw_resource_build!$A:$A,'Portfolio Analytics'!F$64,raw_resource_build!$C:$C,mainzone)","v":0},{"$f":"SUMIFS(raw_resource_build!$I:$I,raw_resource_build!$E:$E,'Portfolio Analytics'!$C78,raw_resource_build!$A:$A,'Portfolio Analytics'!G$64,raw_resource_build!$C:$C,mainzone)","v":0},{"$f":"SUMIFS(raw_resource_build!$I:$I,raw_resource_build!$E:$E,'Portfolio Analytics'!$C78,raw_resource_build!$A:$A,'Portfolio Analytics'!H$64,raw_resource_build!$C:$C,mainzone)","v":0},{"$f":"SUMIFS(raw_resource_build!$I:$I,raw_resource_build!$E:$E,'Portfolio Analytics'!$C78,raw_resource_build!$A:$A,'Portfolio Analytics'!I$64,raw_resource_build!$C:$C,mainzone)","v":0},{"$f":"SUMIFS(raw_resource_build!$I:$I,raw_resource_build!$E:$E,'Portfolio Analytics'!$C78,raw_resource_build!$A:$A,'Portfolio Analytics'!J$64,raw_resource_build!$C:$C,mainzone)","v":0},{"$f":"SUMIFS(raw_resource_build!$I:$I,raw_resource_build!$E:$E,'Portfolio Analytics'!$C78,raw_resource_build!$A:$A,'Portfolio Analytics'!K$64,raw_resource_build!$C:$C,mainzone)","v":0},{"$f":"SUMIFS(raw_resource_build!$I:$I,raw_resource_build!$E:$E,'Portfolio Analytics'!$C78,raw_resource_build!$A:$A,'Portfolio Analytics'!L$64,raw_resource_build!$C:$C,mainzone)","v":0},{"$f":"SUMIFS(raw_resource_build!$I:$I,raw_resource_build!$E:$E,'Portfolio Analytics'!$C78,raw_resource_build!$A:$A,'Portfolio Analytics'!M$64,raw_resource_build!$C:$C,mainzone)","v":0},{"$f":"SUMIFS(raw_resource_build!$I:$I,raw_resource_build!$E:$E,'Portfolio Analytics'!$C78,raw_resource_build!$A:$A,'Portfolio Analytics'!N$64,raw_resource_build!$C:$C,mainzone)","v":0},{"$f":"SUMIFS(raw_resource_build!$I:$I,raw_resource_build!$E:$E,'Portfolio Analytics'!$C78,raw_resource_build!$A:$A,'Portfolio Analytics'!O$64,raw_resource_build!$C:$C,mainzone)","v":0},{"$f":"SUMIFS(raw_resource_build!$I:$I,raw_resource_build!$E:$E,'Portfolio Analytics'!$C78,raw_resource_build!$A:$A,'Portfolio Analytics'!P$64,raw_resource_build!$C:$C,mainzone)","v":0},{"$f":"SUMIFS(raw_resource_build!$I:$I,raw_resource_build!$E:$E,'Portfolio Analytics'!$C78,raw_resource_build!$A:$A,'Portfolio Analytics'!Q$64,raw_resource_build!$C:$C,mainzone)","v":0},{"$f":"SUMIFS(raw_resource_build!$I:$I,raw_resource_build!$E:$E,'Portfolio Analytics'!$C78,raw_resource_build!$A:$A,'Portfolio Analytics'!R$64,raw_resource_build!$C:$C,mainzone)","v":0},{"$f":"SUMIFS(raw_resource_build!$I:$I,raw_resource_build!$E:$E,'Portfolio Analytics'!$C78,raw_resource_build!$A:$A,'Portfolio Analytics'!S$64,raw_resource_build!$C:$C,mainzone)","v":0},{"$f":"SUMIFS(raw_resource_build!$I:$I,raw_resource_build!$E:$E,'Portfolio Analytics'!$C78,raw_resource_build!$A:$A,'Portfolio Analytics'!T$64,raw_resource_build!$C:$C,mainzone)","v":0},{"$f":"SUMIFS(raw_resource_build!$I:$I,raw_resource_build!$E:$E,'Portfolio Analytics'!$C78,raw_resource_build!$A:$A,'Portfolio Analytics'!U$64,raw_resource_build!$C:$C,mainzone)","v":0},{"$f":"SUMIFS(raw_resource_build!$I:$I,raw_resource_build!$E:$E,'Portfolio Analytics'!$C78,raw_resource_build!$A:$A,'Portfolio Analytics'!V$64,raw_resource_build!$C:$C,mainzone)","v":0},{"$f":"SUMIFS(raw_resource_build!$I:$I,raw_resource_build!$E:$E,'Portfolio Analytics'!$C78,raw_resource_build!$A:$A,'Portfolio Analytics'!W$64,raw_resource_build!$C:$C,mainzone)","v":0},{"$f":"SUMIFS(raw_resource_build!$I:$I,raw_resource_build!$E:$E,'Portfolio Analytics'!$C78,raw_resource_build!$A:$A,'Portfolio Analytics'!X$64,raw_resource_build!$C:$C,mainzone)","v":0},{"$f":"SUMIFS(raw_resource_build!$I:$I,raw_resource_build!$E:$E,'Portfolio Analytics'!$C78,raw_resource_build!$A:$A,'Portfolio Analytics'!Y$64,raw_resource_build!$C:$C,mainzone)","v":0},{"$f":"SUMIFS(raw_resource_build!$I:$I,raw_resource_build!$E:$E,'Portfolio Analytics'!$C78,raw_resource_build!$A:$A,'Portfolio Analytics'!Z$64,raw_resource_build!$C:$C,mainzone)","v":0},{"$f":"SUMIFS(raw_resource_build!$I:$I,raw_resource_build!$E:$E,'Portfolio Analytics'!$C78,raw_resource_build!$A:$A,'Portfolio Analytics'!AA$64,raw_resource_build!$C:$C,mainzone)","v":0},{"$f":"SUMIFS(raw_resource_build!$I:$I,raw_resource_build!$E:$E,'Portfolio Analytics'!$C78,raw_resource_build!$A:$A,'Portfolio Analytics'!AB$64,raw_resource_build!$C:$C,mainzone)","v":0},{"$f":"SUMIFS(raw_resource_build!$I:$I,raw_resource_build!$E:$E,'Portfolio Analytics'!$C78,raw_resource_build!$A:$A,'Portfolio Analytics'!AC$64,raw_resource_build!$C:$C,mainzone)","v":0},{"$f":"SUMIFS(raw_resource_build!$I:$I,raw_resource_build!$E:$E,'Portfolio Analytics'!$C78,raw_resource_build!$A:$A,'Portfolio Analytics'!AD$64,raw_resource_build!$C:$C,mainzone)","v":0},{"$f":"SUMIFS(raw_resource_build!$I:$I,raw_resource_build!$E:$E,'Portfolio Analytics'!$C78,raw_resource_build!$A:$A,'Portfolio Analytics'!AE$64,raw_resource_build!$C:$C,mainzone)","v":0},{"$f":"SUMIFS(raw_resource_build!$I:$I,raw_resource_build!$E:$E,'Portfolio Analytics'!$C78,raw_resource_build!$A:$A,'Portfolio Analytics'!AF$64,raw_resource_build!$C:$C,mainzone)","v":0},{"$f":"SUMIFS(raw_resource_build!$I:$I,raw_resource_build!$E:$E,'Portfolio Analytics'!$C78,raw_resource_build!$A:$A,'Portfolio Analytics'!AG$64,raw_resource_build!$C:$C,mainzone)","v":0},{"$f":"SUMIFS(raw_resource_build!$I:$I,raw_resource_build!$E:$E,'Portfolio Analytics'!$C78,raw_resource_build!$A:$A,'Portfolio Analytics'!AH$64,raw_resource_build!$C:$C,mainzone)","v":0},{"$f":"SUMIFS(raw_resource_build!$I:$I,raw_resource_build!$E:$E,'Portfolio Analytics'!$C78,raw_resource_build!$A:$A,'Portfolio Analytics'!AI$64,raw_resource_build!$C:$C,mainzone)","v":0},{"$f":"SUMIFS(raw_resource_build!$I:$I,raw_resource_build!$E:$E,'Portfolio Analytics'!$C78,raw_resource_build!$A:$A,'Portfolio Analytics'!AJ$64,raw_resource_build!$C:$C,mainzone)","v":0},{"$f":"SUMIFS(raw_resource_build!$I:$I,raw_resource_build!$E:$E,'Portfolio Analytics'!$C78,raw_resource_build!$A:$A,'Portfolio Analytics'!AK$64,raw_resource_build!$C:$C,mainzone)","v":0},{"$f":"SUMIFS(raw_resource_build!$I:$I,raw_resource_build!$E:$E,'Portfolio Analytics'!$C78,raw_resource_build!$A:$A,'Portfolio Analytics'!AL$64,raw_resource_build!$C:$C,mainzone)","v":0},{"$f":"SUMIFS(raw_resource_build!$I:$I,raw_resource_build!$E:$E,'Portfolio Analytics'!$C78,raw_resource_build!$A:$A,'Portfolio Analytics'!AM$64,raw_resource_build!$C:$C,mainzone)","v":0},{"$f":"SUMIFS(raw_resource_build!$I:$I,raw_resource_build!$E:$E,'Portfolio Analytics'!$C78,raw_resource_build!$A:$A,'Portfolio Analytics'!AN$64,raw_resource_build!$C:$C,mainzone)","v":0}]
[null,null,{"$f":"Lists!B19","v":"Customer_PV"},"MW",{"$f":"SUMIFS(raw_resource_build!$I:$I,raw_resource_build!$E:$E,'Portfolio Analytics'!$C79,raw_resource_build!$A:$A,'Portfolio Analytics'!E$64,raw_resource_build!$C:$C,mainzone)","v":0},{"$f":"SUMIFS(raw_resource_build!$I:$I,raw_resource_build!$E:$E,'Portfolio Analytics'!$C79,raw_resource_build!$A:$A,'Portfolio Analytics'!F$64,raw_resource_build!$C:$C,mainzone)","v":0},{"$f":"SUMIFS(raw_resource_build!$I:$I,raw_resource_build!$E:$E,'Portfolio Analytics'!$C79,raw_resource_build!$A:$A,'Portfolio Analytics'!G$64,raw_resource_build!$C:$C,mainzone)","v":0},{"$f":"SUMIFS(raw_resource_build!$I:$I,raw_resource_build!$E:$E,'Portfolio Analytics'!$C79,raw_resource_build!$A:$A,'Portfolio Analytics'!H$64,raw_resource_build!$C:$C,mainzone)","v":0},{"$f":"SUMIFS(raw_resource_build!$I:$I,raw_resource_build!$E:$E,'Portfolio Analytics'!$C79,raw_resource_build!$A:$A,'Portfolio Analytics'!I$64,raw_resource_build!$C:$C,mainzone)","v":0},{"$f":"SUMIFS(raw_resource_build!$I:$I,raw_resource_build!$E:$E,'Portfolio Analytics'!$C79,raw_resource_build!$A:$A,'Portfolio Analytics'!J$64,raw_resource_build!$C:$C,mainzone)","v":7269.29},{"$f":"SUMIFS(raw_resource_build!$I:$I,raw_resource_build!$E:$E,'Portfolio Analytics'!$C79,raw_resource_build!$A:$A,'Portfolio Analytics'!K$64,raw_resource_build!$C:$C,mainzone)","v":7269.29},{"$f":"SUMIFS(raw_resource_build!$I:$I,raw_resource_build!$E:$E,'Portfolio Analytics'!$C79,raw_resource_build!$A:$A,'Portfolio Analytics'!L$64,raw_resource_build!$C:$C,mainzone)","v":7269.29},{"$f":"SUMIFS(raw_resource_build!$I:$I,raw_resource_build!$E:$E,'Portfolio Analytics'!$C79,raw_resource_build!$A:$A,'Portfolio Analytics'!M$64,raw_resource_build!$C:$C,mainzone)","v":7269.29},{"$f":"SUMIFS(raw_resource_build!$I:$I,raw_resource_build!$E:$E,'Portfolio Analytics'!$C79,raw_resource_build!$A:$A,'Portfolio Analytics'!N$64,raw_resource_build!$C:$C,mainzone)","v":7269.29},{"$f":"SUMIFS(raw_resource_build!$I:$I,raw_resource_build!$E:$E,'Portfolio Analytics'!$C79,raw_resource_build!$A:$A,'Portfolio Analytics'!O$64,raw_resource_build!$C:$C,mainzone)","v":0},{"$f":"SUMIFS(raw_resource_build!$I:$I,raw_resource_build!$E:$E,'Portfolio Analytics'!$C79,raw_resource_build!$A:$A,'Portfolio Analytics'!P$64,raw_resource_build!$C:$C,mainzone)","v":7269.29},{"$f":"SUMIFS(raw_resource_build!$I:$I,raw_resource_build!$E:$E,'Portfolio Analytics'!$C79,raw_resource_build!$A:$A,'Portfolio Analytics'!Q$64,raw_resource_build!$C:$C,mainzone)","v":0},{"$f":"SUMIFS(raw_resource_build!$I:$I,raw_resource_build!$E:$E,'Portfolio Analytics'!$C79,raw_resource_build!$A:$A,'Portfolio Analytics'!R$64,raw_resource_build!$C:$C,mainzone)","v":0},{"$f":"SUMIFS(raw_resource_build!$I:$I,raw_resource_build!$E:$E,'Portfolio Analytics'!$C79,raw_resource_build!$A:$A,'Portfolio Analytics'!S$64,raw_resource_build!$C:$C,mainzone)","v":0},{"$f":"SUMIFS(raw_resource_build!$I:$I,raw_resource_build!$E:$E,'Portfolio Analytics'!$C79,raw_resource_build!$A:$A,'Portfolio Analytics'!T$64,raw_resource_build!$C:$C,mainzone)","v":7269.29},{"$f":"SUMIFS(raw_resource_build!$I:$I,raw_resource_build!$E:$E,'Portfolio Analytics'!$C79,raw_resource_build!$A:$A,'Portfolio Analytics'!U$64,raw_resource_build!$C:$C,mainzone)","v":0},{"$f":"SUMIFS(raw_resource_build!$I:$I,raw_resource_build!$E:$E,'Portfolio Analytics'!$C79,raw_resource_build!$A:$A,'Portfolio Analytics'!V$64,raw_resource_build!$C:$C,mainzone)","v":0},{"$f":"SUMIFS(raw_resource_build!$I:$I,raw_resource_build!$E:$E,'Portfolio Analytics'!$C79,raw_resource_build!$A:$A,'Portfolio Analytics'!W$64,raw_resource_build!$C:$C,mainzone)","v":0},{"$f":"SUMIFS(raw_resource_build!$I:$I,raw_resource_build!$E:$E,'Portfolio Analytics'!$C79,raw_resource_build!$A:$A,'Portfolio Analytics'!X$64,raw_resource_build!$C:$C,mainzone)","v":0},{"$f":"SUMIFS(raw_resource_build!$I:$I,raw_resource_build!$E:$E,'Portfolio Analytics'!$C79,raw_resource_build!$A:$A,'Portfolio Analytics'!Y$64,raw_resource_build!$C:$C,mainzone)","v":0},{"$f":"SUMIFS(raw_resource_build!$I:$I,raw_resource_build!$E:$E,'Portfolio Analytics'!$C79,raw_resource_build!$A:$A,'Portfolio Analytics'!Z$64,raw_resource_build!$C:$C,mainzone)","v":0},{"$f":"SUMIFS(raw_resource_build!$I:$I,raw_resource_build!$E:$E,'Portfolio Analytics'!$C79,raw_resource_build!$A:$A,'Portfolio Analytics'!AA$64,raw_resource_build!$C:$C,mainzone)","v":0},{"$f":"SUMIFS(raw_resource_build!$I:$I,raw_resource_build!$E:$E,'Portfolio Analytics'!$C79,raw_resource_build!$A:$A,'Portfolio Analytics'!AB$64,raw_resource_build!$C:$C,mainzone)","v":0},{"$f":"SUMIFS(raw_resource_build!$I:$I,raw_resource_build!$E:$E,'Portfolio Analytics'!$C79,raw_resource_build!$A:$A,'Portfolio Analytics'!AC$64,raw_resource_build!$C:$C,mainzone)","v":0},{"$f":"SUMIFS(raw_resource_build!$I:$I,raw_resource_build!$E:$E,'Portfolio Analytics'!$C79,raw_resource_build!$A:$A,'Portfolio Analytics'!AD$64,raw_resource_build!$C:$C,mainzone)","v":0},{"$f":"SUMIFS(raw_resource_build!$I:$I,raw_resource_build!$E:$E,'Portfolio Analytics'!$C79,raw_resource_build!$A:$A,'Portfolio Analytics'!AE$64,raw_resource_build!$C:$C,mainzone)","v":0},{"$f":"SUMIFS(raw_resource_build!$I:$I,raw_resource_build!$E:$E,'Portfolio Analytics'!$C79,raw_resource_build!$A:$A,'Portfolio Analytics'!AF$64,raw_resource_build!$C:$C,mainzone)","v":0},{"$f":"SUMIFS(raw_resource_build!$I:$I,raw_resource_build!$E:$E,'Portfolio Analytics'!$C79,raw_resource_build!$A:$A,'Portfolio Analytics'!AG$64,raw_resource_build!$C:$C,mainzone)","v":0},{"$f":"SUMIFS(raw_resource_build!$I:$I,raw_resource_build!$E:$E,'Portfolio Analytics'!$C79,raw_resource_build!$A:$A,'Portfolio Analytics'!AH$64,raw_resource_build!$C:$C,mainzone)","v":0},{"$f":"SUMIFS(raw_resource_build!$I:$I,raw_resource_build!$E:$E,'Portfolio Analytics'!$C79,raw_resource_build!$A:$A,'Portfolio Analytics'!AI$64,raw_resource_build!$C:$C,mainzone)","v":7269.29},{"$f":"SUMIFS(raw_resource_build!$I:$I,raw_resource_build!$E:$E,'Portfolio Analytics'!$C79,raw_resource_build!$A:$A,'Portfolio Analytics'!AJ$64,raw_resource_build!$C:$C,mainzone)","v":0},{"$f":"SUMIFS(raw_resource_build!$I:$I,raw_resource_build!$E:$E,'Portfolio Analytics'!$C79,raw_resource_build!$A:$A,'Portfolio Analytics'!AK$64,raw_resource_build!$C:$C,mainzone)","v":0},{"$f":"SUMIFS(raw_resource_build!$I:$I,raw_resource_build!$E:$E,'Portfolio Analytics'!$C79,raw_resource_build!$A:$A,'Portfolio Analytics'!AL$64,raw_resource_build!$C:$C,mainzone)","v":0},{"$f":"SUMIFS(raw_resource_build!$I:$I,raw_resource_build!$E:$E,'Portfolio Analytics'!$C79,raw_resource_build!$A:$A,'Portfolio Analytics'!AM$64,raw_resource_build!$C:$C,mainzone)","v":0},{"$f":"SUMIFS(raw_resource_build!$I:$I,raw_resource_build!$E:$E,'Portfolio Analytics'!$C79,raw_resource_build!$A:$A,'Portfolio Analytics'!AN$64,raw_resource_build!$C:$C,mainzone)","v":0}]
[null,null,{"$f":"Lists!B20","v":"Solar"},"MW",{"$f":"SUMIFS(raw_resource_build!$I:$I,raw_resource_build!$E:$E,'Portfolio Analytics'!$C80,raw_resource_build!$A:$A,'Portfolio Analytics'!E$64,raw_resource_build!$C:$C,mainzone)","v":0},{"$f":"SUMIFS(raw_resource_build!$I:$I,raw_resource_build!$E:$E,'Portfolio Analytics'!$C80,raw_resource_build!$A:$A,'Portfolio Analytics'!F$64,raw_resource_build!$C:$C,mainzone)","v":0},{"$f":"SUMIFS(raw_resource_build!$I:$I,raw_resource_build!$E:$E,'Portfolio Analytics'!$C80,raw_resource_build!$A:$A,'Portfolio Analytics'!G$64,raw_resource_build!$C:$C,mainzone)","v":0},{"$f":"SUMIFS(raw_resource_build!$I:$I,raw_resource_build!$E:$E,'Portfolio Analytics'!$C80,raw_resource_build!$A:$A,'Portfolio Analytics'!H$64,raw_resource_build!$C:$C,mainzone)","v":0},{"$f":"SUMIFS(raw_resource_build!$I:$I,raw_resource_build!$E:$E,'Portfolio Analytics'!$C80,raw_resource_build!$A:$A,'Portfolio Analytics'!I$64,raw_resource_build!$C:$C,mainzone)","v":0},{"$f":"SUMIFS(raw_resource_build!$I:$I,raw_resource_build!$E:$E,'Portfolio Analytics'!$C80,raw_resource_build!$A:$A,'Portfolio Analytics'!J$64,raw_resource_build!$C:$C,mainzone)","v":16310.33},{"$f":"SUMIFS(raw_resource_build!$I:$I,raw_resource_build!$E:$E,'Portfolio Analytics'!$C80,raw_resource_build!$A:$A,'Portfolio Analytics'!K$64,raw_resource_build!$C:$C,mainzone)","v":18765.849999999999},{"$f":"SUMIFS(raw_resource_build!$I:$I,raw_resource_build!$E:$E,'Portfolio Analytics'!$C80,raw_resource_build!$A:$A,'Portfolio Analytics'!L$64,raw_resource_build!$C:$C,mainzone)","v":20887.45},{"$f":"SUMIFS(raw_resource_build!$I:$I,raw_resource_build!$E:$E,'Portfolio Analytics'!$C80,raw_resource_build!$A:$A,'Portfolio Analytics'!M$64,raw_resource_build!$C:$C,mainzone)","v":22887.45},{"$f":"SUMIFS(raw_resource_build!$I:$I,raw_resource_build!$E:$E,'Portfolio Analytics'!$C80,raw_resource_build!$A:$A,'Portfolio Analytics'!N$64,raw_resource_build!$C:$C,mainzone)","v":25618.969999999998},{"$f":"SUMIFS(raw_resource_build!$I:$I,raw_resource_build!$E:$E,'Portfolio Analytics'!$C80,raw_resource_build!$A:$A,'Portfolio Analytics'!O$64,raw_resource_build!$C:$C,mainzone)","v":0},{"$f":"SUMIFS(raw_resource_build!$I:$I,raw_resource_build!$E:$E,'Portfolio Analytics'!$C80,raw_resource_build!$A:$A,'Portfolio Analytics'!P$64,raw_resource_build!$C:$C,mainzone)","v":30834.94},{"$f":"SUMIFS(raw_resource_build!$I:$I,raw_resource_build!$E:$E,'Portfolio Analytics'!$C80,raw_resource_build!$A:$A,'Portfolio Analytics'!Q$64,raw_resource_build!$C:$C,mainzone)","v":0},{"$f":"SUMIFS(raw_resource_build!$I:$I,raw_resource_build!$E:$E,'Portfolio Analytics'!$C80,raw_resource_build!$A:$A,'Portfolio Analytics'!R$64,raw_resource_build!$C:$C,mainzone)","v":0},{"$f":"SUMIFS(raw_resource_build!$I:$I,raw_resource_build!$E:$E,'Portfolio Analytics'!$C80,raw_resource_build!$A:$A,'Portfolio Analytics'!S$64,raw_resource_build!$C:$C,mainzone)","v":0},{"$f":"SUMIFS(raw_resource_build!$I:$I,raw_resource_build!$E:$E,'Portfolio Analytics'!$C80,raw_resource_build!$A:$A,'Portfolio Analytics'!T$64,raw_resource_build!$C:$C,mainzone)","v":41146.520000000004},{"$f":"SUMIFS(raw_resource_build!$I:$I,raw_resource_build!$E:$E,'Portfolio Analytics'!$C80,raw_resource_build!$A:$A,'Portfolio Analytics'!U$64,raw_resource_build!$C:$C,mainzone)","v":0},{"$f":"SUMIFS(raw_resource_build!$I:$I,raw_resource_build!$E:$E,'Portfolio Analytics'!$C80,raw_resource_build!$A:$A,'Portfolio Analytics'!V$64,raw_resource_build!$C:$C,mainzone)","v":0},{"$f":"SUMIFS(raw_resource_build!$I:$I,raw_resource_build!$E:$E,'Portfolio Analytics'!$C80,raw_resource_build!$A:$A,'Portfolio Analytics'!W$64,raw_resource_build!$C:$C,mainzone)","v":0},{"$f":"SUMIFS(raw_resource_build!$I:$I,raw_resource_build!$E:$E,'Portfolio Analytics'!$C80,raw_resource_build!$A:$A,'Portfolio Analytics'!X$64,raw_resource_build!$C:$C,mainzone)","v":0},{"$f":"SUMIFS(raw_resource_build!$I:$I,raw_resource_build!$E:$E,'Portfolio Analytics'!$C80,raw_resource_build!$A:$A,'Portfolio Analytics'!Y$64,raw_resource_build!$C:$C,mainzone)","v":0},{"$f":"SUMIFS(raw_resource_build!$I:$I,raw_resource_build!$E:$E,'Portfolio Analytics'!$C80,raw_resource_build!$A:$A,'Portfolio Analytics'!Z$64,raw_resource_build!$C:$C,mainzone)","v":0},{"$f":"SUMIFS(raw_resource_build!$I:$I,raw_resource_build!$E:$E,'Portfolio Analytics'!$C80,raw_resource_build!$A:$A,'Portfolio Analytics'!AA$64,raw_resource_build!$C:$C,mainzone)","v":0},{"$f":"SUMIFS(raw_resource_build!$I:$I,raw_resource_build!$E:$E,'Portfolio Analytics'!$C80,raw_resource_build!$A:$A,'Portfolio Analytics'!AB$64,raw_resource_build!$C:$C,mainzone)","v":0},{"$f":"SUMIFS(raw_resource_build!$I:$I,raw_resource_build!$E:$E,'Portfolio Analytics'!$C80,raw_resource_build!$A:$A,'Portfolio Analytics'!AC$64,raw_resource_build!$C:$C,mainzone)","v":0},{"$f":"SUMIFS(raw_resource_build!$I:$I,raw_resource_build!$E:$E,'Portfolio Analytics'!$C80,raw_resource_build!$A:$A,'Portfolio Analytics'!AD$64,raw_resource_build!$C:$C,mainzone)","v":0},{"$f":"SUMIFS(raw_resource_build!$I:$I,raw_resource_build!$E:$E,'Portfolio Analytics'!$C80,raw_resource_build!$A:$A,'Portfolio Analytics'!AE$64,raw_resource_build!$C:$C,mainzone)","v":0},{"$f":"SUMIFS(raw_resource_build!$I:$I,raw_resource_build!$E:$E,'Portfolio Analytics'!$C80,raw_resource_build!$A:$A,'Portfolio Analytics'!AF$64,raw_resource_build!$C:$C,mainzone)","v":0},{"$f":"SUMIFS(raw_resource_build!$I:$I,raw_resource_build!$E:$E,'Portfolio Analytics'!$C80,raw_resource_build!$A:$A,'Portfolio Analytics'!AG$64,raw_resource_build!$C:$C,mainzone)","v":0},{"$f":"SUMIFS(raw_resource_build!$I:$I,raw_resource_build!$E:$E,'Portfolio Analytics'!$C80,raw_resource_build!$A:$A,'Portfolio Analytics'!AH$64,raw_resource_build!$C:$C,mainzone)","v":0},{"$f":"SUMIFS(raw_resource_build!$I:$I,raw_resource_build!$E:$E,'Portfolio Analytics'!$C80,raw_resource_build!$A:$A,'Portfolio Analytics'!AI$64,raw_resource_build!$C:$C,mainzone)","v":131396.23000000001},{"$f":"SUMIFS(raw_resource_build!$I:$I,raw_resource_build!$E:$E,'Portfolio Analytics'!$C80,raw_resource_build!$A:$A,'Portfolio Analytics'!AJ$64,raw_resource_build!$C:$C,mainzone)","v":0},{"$f":"SUMIFS(raw_resource_build!$I:$I,raw_resource_build!$E:$E,'Portfolio Analytics'!$C80,raw_resource_build!$A:$A,'Portfolio Analytics'!AK$64,raw_resource_build!$C:$C,mainzone)","v":0},{"$f":"SUMIFS(raw_resource_build!$I:$I,raw_resource_build!$E:$E,'Portfolio Analytics'!$C80,raw_resource_build!$A:$A,'Portfolio Analytics'!AL$64,raw_resource_build!$C:$C,mainzone)","v":0},{"$f":"SUMIFS(raw_resource_build!$I:$I,raw_resource_build!$E:$E,'Portfolio Analytics'!$C80,raw_resource_build!$A:$A,'Portfolio Analytics'!AM$64,raw_resource_build!$C:$C,mainzone)","v":0},{"$f":"SUMIFS(raw_resource_build!$I:$I,raw_resource_build!$E:$E,'Portfolio Analytics'!$C80,raw_resource_build!$A:$A,'Portfolio Analytics'!AN$64,raw_resource_build!$C:$C,mainzone)","v":0}]
[null,null,{"$f":"Lists!B21","v":"Geothermal"},"MW",{"$f":"SUMIFS(raw_resource_build!$I:$I,raw_resource_build!$E:$E,'Portfolio Analytics'!$C81,raw_resource_build!$A:$A,'Portfolio Analytics'!E$64,raw_resource_build!$C:$C,mainzone)","v":0},{"$f":"SUMIFS(raw_resource_build!$I:$I,raw_resource_build!$E:$E,'Portfolio Analytics'!$C81,raw_resource_build!$A:$A,'Portfolio Analytics'!F$64,raw_resource_build!$C:$C,mainzone)","v":0},{"$f":"SUMIFS(raw_resource_build!$I:$I,raw_resource_build!$E:$E,'Portfolio Analytics'!$C81,raw_resource_build!$A:$A,'Portfolio Analytics'!G$64,raw_resource_build!$C:$C,mainzone)","v":0},{"$f":"SUMIFS(raw_resource_build!$I:$I,raw_resource_build!$E:$E,'Portfolio Analytics'!$C81,raw_resource_build!$A:$A,'Portfolio Analytics'!H$64,raw_resource_build!$C:$C,mainzone)","v":0},{"$f":"SUMIFS(raw_resource_build!$I:$I,raw_resource_build!$E:$E,'Portfolio Analytics'!$C81,raw_resource_build!$A:$A,'Portfolio Analytics'!I$64,raw_resource_build!$C:$C,mainzone)","v":0},{"$f":"SUMIFS(raw_resource_build!$I:$I,raw_resource_build!$E:$E,'Portfolio Analytics'!$C81,raw_resource_build!$A:$A,'Portfolio Analytics'!J$64,raw_resource_build!$C:$C,mainzone)","v":1851.3100000000002},{"$f":"SUMIFS(raw_resource_build!$I:$I,raw_resource_build!$E:$E,'Portfolio Analytics'!$C81,raw_resource_build!$A:$A,'Portfolio Analytics'!K$64,raw_resource_build!$C:$C,mainzone)","v":1851.3100000000002},{"$f":"SUMIFS(raw_resource_build!$I:$I,raw_resource_build!$E:$E,'Portfolio Analytics'!$C81,raw_resource_build!$A:$A,'Portfolio Analytics'!L$64,raw_resource_build!$C:$C,mainzone)","v":1851.3100000000002},{"$f":"SUMIFS(raw_resource_build!$I:$I,raw_resource_build!$E:$E,'Portfolio Analytics'!$C81,raw_resource_build!$A:$A,'Portfolio Analytics'!M$64,raw_resource_build!$C:$C,mainzone)","v":1851.3100000000002},{"$f":"SUMIFS(raw_resource_build!$I:$I,raw_resource_build!$E:$E,'Portfolio Analytics'!$C81,raw_resource_build!$A:$A,'Portfolio Analytics'!N$64,raw_resource_build!$C:$C,mainzone)","v":1986.3100000000002},{"$f":"SUMIFS(raw_resource_build!$I:$I,raw_resource_build!$E:$E,'Portfolio Analytics'!$C81,raw_resource_build!$A:$A,'Portfolio Analytics'!O$64,raw_resource_build!$C:$C,mainzone)","v":0},{"$f":"SUMIFS(raw_resource_build!$I:$I,raw_resource_build!$E:$E,'Portfolio Analytics'!$C81,raw_resource_build!$A:$A,'Portfolio Analytics'!P$64,raw_resource_build!$C:$C,mainzone)","v":1986.3100000000002},{"$f":"SUMIFS(raw_resource_build!$I:$I,raw_resource_build!$E:$E,'Portfolio Analytics'!$C81,raw_resource_build!$A:$A,'Portfolio Analytics'!Q$64,raw_resource_build!$C:$C,mainzone)","v":0},{"$f":"SUMIFS(raw_resource_build!$I:$I,raw_resource_build!$E:$E,'Portfolio Analytics'!$C81,raw_resource_build!$A:$A,'Portfolio Analytics'!R$64,raw_resource_build!$C:$C,mainzone)","v":0},{"$f":"SUMIFS(raw_resource_build!$I:$I,raw_resource_build!$E:$E,'Portfolio Analytics'!$C81,raw_resource_build!$A:$A,'Portfolio Analytics'!S$64,raw_resource_build!$C:$C,mainzone)","v":0},{"$f":"SUMIFS(raw_resource_build!$I:$I,raw_resource_build!$E:$E,'Portfolio Analytics'!$C81,raw_resource_build!$A:$A,'Portfolio Analytics'!T$64,raw_resource_build!$C:$C,mainzone)","v":1986.3100000000002},{"$f":"SUMIFS(raw_resource_build!$I:$I,raw_resource_build!$E:$E,'Portfolio Analytics'!$C81,raw_resource_build!$A:$A,'Portfolio Analytics'!U$64,raw_resource_build!$C:$C,mainzone)","v":0},{"$f":"SUMIFS(raw_resource_build!$I:$I,raw_resource_build!$E:$E,'Portfolio Analytics'!$C81,raw_resource_build!$A:$A,'Portfolio Analytics'!V$64,raw_resource_build!$C:$C,mainzone)","v":0},{"$f":"SUMIFS(raw_resource_build!$I:$I,raw_resource_build!$E:$E,'Portfolio Analytics'!$C81,raw_resource_build!$A:$A,'Portfolio Analytics'!W$64,raw_resource_build!$C:$C,mainzone)","v":0},{"$f":"SUMIFS(raw_resource_build!$I:$I,raw_resource_build!$E:$E,'Portfolio Analytics'!$C81,raw_resource_build!$A:$A,'Portfolio Analytics'!X$64,raw_resource_build!$C:$C,mainzone)","v":0},{"$f":"SUMIFS(raw_resource_build!$I:$I,raw_resource_build!$E:$E,'Portfolio Analytics'!$C81,raw_resource_build!$A:$A,'Portfolio Analytics'!Y$64,raw_resource_build!$C:$C,mainzone)","v":0},{"$f":"SUMIFS(raw_resource_build!$I:$I,raw_resource_build!$E:$E,'Portfolio Analytics'!$C81,raw_resource_build!$A:$A,'Portfolio Analytics'!Z$64,raw_resource_build!$C:$C,mainzone)","v":0},{"$f":"SUMIFS(raw_resource_build!$I:$I,raw_resource_build!$E:$E,'Portfolio Analytics'!$C81,raw_resource_build!$A:$A,'Portfolio Analytics'!AA$64,raw_resource_build!$C:$C,mainzone)","v":0},{"$f":"SUMIFS(raw_resource_build!$I:$I,raw_resource_build!$E:$E,'Portfolio Analytics'!$C81,raw_resource_build!$A:$A,'Portfolio Analytics'!AB$64,raw_resource_build!$C:$C,mainzone)","v":0},{"$f":"SUMIFS(raw_resource_build!$I:$I,raw_resource_build!$E:$E,'Portfolio Analytics'!$C81,raw_resource_build!$A:$A,'Portfolio Analytics'!AC$64,raw_resource_build!$C:$C,mainzone)","v":0},{"$f":"SUMIFS(raw_resource_build!$I:$I,raw_resource_build!$E:$E,'Portfolio Analytics'!$C81,raw_resource_build!$A:$A,'Portfolio Analytics'!AD$64,raw_resource_build!$C:$C,mainzone)","v":0},{"$f":"SUMIFS(raw_resource_build!$I:$I,raw_resource_build!$E:$E,'Portfolio Analytics'!$C81,raw_resource_build!$A:$A,'Portfolio Analytics'!AE$64,raw_resource_build!$C:$C,mainzone)","v":0},{"$f":"SUMIFS(raw_resource_build!$I:$I,raw_resource_build!$E:$E,'Portfolio Analytics'!$C81,raw_resource_build!$A:$A,'Portfolio Analytics'!AF$64,raw_resource_build!$C:$C,mainzone)","v":0},{"$f":"SUMIFS(raw_resource_build!$I:$I,raw_resource_build!$E:$E,'Portfolio Analytics'!$C81,raw_resource_build!$A:$A,'Portfolio Analytics'!AG$64,raw_resource_build!$C:$C,mainzone)","v":0},{"$f":"SUMIFS(raw_resource_build!$I:$I,raw_resource_build!$E:$E,'Portfolio Analytics'!$C81,raw_resource_build!$A:$A,'Portfolio Analytics'!AH$64,raw_resource_build!$C:$C,mainzone)","v":0},{"$f":"SUMIFS(raw_resource_build!$I:$I,raw_resource_build!$E:$E,'Portfolio Analytics'!$C81,raw_resource_build!$A:$A,'Portfolio Analytics'!AI$64,raw_resource_build!$C:$C,mainzone)","v":4183.41},{"$f":"SUMIFS(raw_resource_build!$I:$I,raw_resource_build!$E:$E,'Portfolio Analytics'!$C81,raw_resource_build!$A:$A,'Portfolio Analytics'!AJ$64,raw_resource_build!$C:$C,mainzone)","v":0},{"$f":"SUMIFS(raw_resource_build!$I:$I,raw_resource_build!$E:$E,'Portfolio Analytics'!$C81,raw_resource_build!$A:$A,'Portfolio Analytics'!AK$64,raw_resource_build!$C:$C,mainzone)","v":0},{"$f":"SUMIFS(raw_resource_build!$I:$I,raw_resource_build!$E:$E,'Portfolio Analytics'!$C81,raw_resource_build!$A:$A,'Portfolio Analytics'!AL$64,raw_resource_build!$C:$C,mainzone)","v":0},{"$f":"SUMIFS(raw_resource_build!$I:$I,raw_resource_build!$E:$E,'Portfolio Analytics'!$C81,raw_resource_build!$A:$A,'Portfolio Analytics'!AM$64,raw_resource_build!$C:$C,mainzone)","v":0},{"$f":"SUMIFS(raw_resource_build!$I:$I,raw_resource_build!$E:$E,'Portfolio Analytics'!$C81,raw_resource_build!$A:$A,'Portfolio Analytics'!AN$64,raw_resource_build!$C:$C,mainzone)","v":0}]
[null,null,{"$f":"Lists!B22","v":"Biomass"},"MW",{"$f":"SUMIFS(raw_resource_build!$I:$I,raw_resource_build!$E:$E,'Portfolio Analytics'!$C82,raw_resource_build!$A:$A,'Portfolio Analytics'!E$64,raw_resource_build!$C:$C,mainzone)","v":0},{"$f":"SUMIFS(raw_resource_build!$I:$I,raw_resource_build!$E:$E,'Portfolio Analytics'!$C82,raw_resource_build!$A:$A,'Portfolio Analytics'!F$64,raw_resource_build!$C:$C,mainzone)","v":0},{"$f":"SUMIFS(raw_resource_build!$I:$I,raw_resource_build!$E:$E,'Portfolio Analytics'!$C82,raw_resource_build!$A:$A,'Portfolio Analytics'!G$64,raw_resource_build!$C:$C,mainzone)","v":0},{"$f":"SUMIFS(raw_resource_build!$I:$I,raw_resource_build!$E:$E,'Portfolio Analytics'!$C82,raw_resource_build!$A:$A,'Portfolio Analytics'!H$64,raw_resource_build!$C:$C,mainzone)","v":0},{"$f":"SUMIFS(raw_resource_build!$I:$I,raw_resource_build!$E:$E,'Portfolio Analytics'!$C82,raw_resource_build!$A:$A,'Portfolio Analytics'!I$64,raw_resource_build!$C:$C,mainzone)","v":0},{"$f":"SUMIFS(raw_resource_build!$I:$I,raw_resource_build!$E:$E,'Portfolio Analytics'!$C82,raw_resource_build!$A:$A,'Portfolio Analytics'!J$64,raw_resource_build!$C:$C,mainzone)","v":902.65000000000009},{"$f":"SUMIFS(raw_resource_build!$I:$I,raw_resource_build!$E:$E,'Portfolio Analytics'!$C82,raw_resource_build!$A:$A,'Portfolio Analytics'!K$64,raw_resource_build!$C:$C,mainzone)","v":902.65000000000009},{"$f":"SUMIFS(raw_resource_build!$I:$I,raw_resource_build!$E:$E,'Portfolio Analytics'!$C82,raw_resource_build!$A:$A,'Portfolio Analytics'!L$64,raw_resource_build!$C:$C,mainzone)","v":902.65000000000009},{"$f":"SUMIFS(raw_resource_build!$I:$I,raw_resource_build!$E:$E,'Portfolio Analytics'!$C82,raw_resource_build!$A:$A,'Portfolio Analytics'!M$64,raw_resource_build!$C:$C,mainzone)","v":902.65000000000009},{"$f":"SUMIFS(raw_resource_build!$I:$I,raw_resource_build!$E:$E,'Portfolio Analytics'!$C82,raw_resource_build!$A:$A,'Portfolio Analytics'!N$64,raw_resource_build!$C:$C,mainzone)","v":902.65000000000009},{"$f":"SUMIFS(raw_resource_build!$I:$I,raw_resource_build!$E:$E,'Portfolio Analytics'!$C82,raw_resource_build!$A:$A,'Portfolio Analytics'!O$64,raw_resource_build!$C:$C,mainzone)","v":0},{"$f":"SUMIFS(raw_resource_build!$I:$I,raw_resource_build!$E:$E,'Portfolio Analytics'!$C82,raw_resource_build!$A:$A,'Portfolio Analytics'!P$64,raw_resource_build!$C:$C,mainzone)","v":902.65000000000009},{"$f":"SUMIFS(raw_resource_build!$I:$I,raw_resource_build!$E:$E,'Portfolio Analytics'!$C82,raw_resource_build!$A:$A,'Portfolio Analytics'!Q$64,raw_resource_build!$C:$C,mainzone)","v":0},{"$f":"SUMIFS(raw_resource_build!$I:$I,raw_resource_build!$E:$E,'Portfolio Analytics'!$C82,raw_resource_build!$A:$A,'Portfolio Analytics'!R$64,raw_resource_build!$C:$C,mainzone)","v":0},{"$f":"SUMIFS(raw_resource_build!$I:$I,raw_resource_build!$E:$E,'Portfolio Analytics'!$C82,raw_resource_build!$A:$A,'Portfolio Analytics'!S$64,raw_resource_build!$C:$C,mainzone)","v":0},{"$f":"SUMIFS(raw_resource_build!$I:$I,raw_resource_build!$E:$E,'Portfolio Analytics'!$C82,raw_resource_build!$A:$A,'Portfolio Analytics'!T$64,raw_resource_build!$C:$C,mainzone)","v":900.75},{"$f":"SUMIFS(raw_resource_build!$I:$I,raw_resource_build!$E:$E,'Portfolio Analytics'!$C82,raw_resource_build!$A:$A,'Portfolio Analytics'!U$64,raw_resource_build!$C:$C,mainzone)","v":0},{"$f":"SUMIFS(raw_resource_build!$I:$I,raw_resource_build!$E:$E,'Portfolio Analytics'!$C82,raw_resource_build!$A:$A,'Portfolio Analytics'!V$64,raw_resource_build!$C:$C,mainzone)","v":0},{"$f":"SUMIFS(raw_resource_build!$I:$I,raw_resource_build!$E:$E,'Portfolio Analytics'!$C82,raw_resource_build!$A:$A,'Portfolio Analytics'!W$64,raw_resource_build!$C:$C,mainzone)","v":0},{"$f":"SUMIFS(raw_resource_build!$I:$I,raw_resource_build!$E:$E,'Portfolio Analytics'!$C82,raw_resource_build!$A:$A,'Portfolio Analytics'!X$64,raw_resource_build!$C:$C,mainzone)","v":0},{"$f":"SUMIFS(raw_resource_build!$I:$I,raw_resource_build!$E:$E,'Portfolio Analytics'!$C82,raw_resource_build!$A:$A,'Portfolio Analytics'!Y$64,raw_resource_build!$C:$C,mainzone)","v":0},{"$f":"SUMIFS(raw_resource_build!$I:$I,raw_resource_build!$E:$E,'Portfolio Analytics'!$C82,raw_resource_build!$A:$A,'Portfolio Analytics'!Z$64,raw_resource_build!$C:$C,mainzone)","v":0},{"$f":"SUMIFS(raw_resource_build!$I:$I,raw_resource_build!$E:$E,'Portfolio Analytics'!$C82,raw_resource_build!$A:$A,'Portfolio Analytics'!AA$64,raw_resource_build!$C:$C,mainzone)","v":0},{"$f":"SUMIFS(raw_resource_build!$I:$I,raw_resource_build!$E:$E,'Portfolio Analytics'!$C82,raw_resource_build!$A:$A,'Portfolio Analytics'!AB$64,raw_resource_build!$C:$C,mainzone)","v":0},{"$f":"SUMIFS(raw_resource_build!$I:$I,raw_resource_build!$E:$E,'Portfolio Analytics'!$C82,raw_resource_build!$A:$A,'Portfolio Analytics'!AC$64,raw_resource_build!$C:$C,mainzone)","v":0},{"$f":"SUMIFS(raw_resource_build!$I:$I,raw_resource_build!$E:$E,'Portfolio Analytics'!$C82,raw_resource_build!$A:$A,'Portfolio Analytics'!AD$64,raw_resource_build!$C:$C,mainzone)","v":0},{"$f":"SUMIFS(raw_resource_build!$I:$I,raw_resource_build!$E:$E,'Portfolio Analytics'!$C82,raw_resource_build!$A:$A,'Portfolio Analytics'!AE$64,raw_resource_build!$C:$C,mainzone)","v":0},{"$f":"SUMIFS(raw_resource_build!$I:$I,raw_resource_build!$E:$E,'Portfolio Analytics'!$C82,raw_resource_build!$A:$A,'Portfolio Analytics'!AF$64,raw_resource_build!$C:$C,mainzone)","v":0},{"$f":"SUMIFS(raw_resource_build!$I:$I,raw_resource_build!$E:$E,'Portfolio Analytics'!$C82,raw_resource_build!$A:$A,'Portfolio Analytics'!AG$64,raw_resource_build!$C:$C,mainzone)","v":0},{"$f":"SUMIFS(raw_resource_build!$I:$I,raw_resource_build!$E:$E,'Portfolio Analytics'!$C82,raw_resource_build!$A:$A,'Portfolio Analytics'!AH$64,raw_resource_build!$C:$C,mainzone)","v":0},{"$f":"SUMIFS(raw_resource_build!$I:$I,raw_resource_build!$E:$E,'Portfolio Analytics'!$C82,raw_resource_build!$A:$A,'Portfolio Analytics'!AI$64,raw_resource_build!$C:$C,mainzone)","v":2047.6},{"$f":"SUMIFS(raw_resource_build!$I:$I,raw_resource_build!$E:$E,'Portfolio Analytics'!$C82,raw_resource_build!$A:$A,'Portfolio Analytics'!AJ$64,raw_resource_build!$C:$C,mainzone)","v":0},{"$f":"SUMIFS(raw_resource_build!$I:$I,raw_resource_build!$E:$E,'Portfolio Analytics'!$C82,raw_resource_build!$A:$A,'Portfolio Analytics'!AK$64,raw_resource_build!$C:$C,mainzone)","v":0},{"$f":"SUMIFS(raw_resource_build!$I:$I,raw_resource_build!$E:$E,'Portfolio Analytics'!$C82,raw_resource_build!$A:$A,'Portfolio Analytics'!AL$64,raw_resource_build!$C:$C,mainzone)","v":0},{"$f":"SUMIFS(raw_resource_build!$I:$I,raw_resource_build!$E:$E,'Portfolio Analytics'!$C82,raw_resource_build!$A:$A,'Portfolio Analytics'!AM$64,raw_resource_build!$C:$C,mainzone)","v":0},{"$f":"SUMIFS(raw_resource_build!$I:$I,raw_resource_build!$E:$E,'Portfolio Analytics'!$C82,raw_resource_build!$A:$A,'Portfolio Analytics'!AN$64,raw_resource_build!$C:$C,mainzone)","v":0}]
[null,null,{"$f":"Lists!B23","v":"Small_Hydro"},"MW",{"$f":"SUMIFS(raw_resource_build!$I:$I,raw_resource_build!$E:$E,'Portfolio Analytics'!$C83,raw_resource_build!$A:$A,'Portfolio Analytics'!E$64,raw_resource_build!$C:$C,mainzone)","v":0},{"$f":"SUMIFS(raw_resource_build!$I:$I,raw_resource_build!$E:$E,'Portfolio Analytics'!$C83,raw_resource_build!$A:$A,'Portfolio Analytics'!F$64,raw_resource_build!$C:$C,mainzone)","v":0},{"$f":"SUMIFS(raw_resource_build!$I:$I,raw_resource_build!$E:$E,'Portfolio Analytics'!$C83,raw_resource_build!$A:$A,'Portfolio Analytics'!G$64,raw_resource_build!$C:$C,mainzone)","v":0},{"$f":"SUMIFS(raw_resource_build!$I:$I,raw_resource_build!$E:$E,'Portfolio Analytics'!$C83,raw_resource_build!$A:$A,'Portfolio Analytics'!H$64,raw_resource_build!$C:$C,mainzone)","v":0},{"$f":"SUMIFS(raw_resource_build!$I:$I,raw_resource_build!$E:$E,'Portfolio Analytics'!$C83,raw_resource_build!$A:$A,'Portfolio Analytics'!I$64,raw_resource_build!$C:$C,mainzone)","v":0},{"$f":"SUMIFS(raw_resource_build!$I:$I,raw_resource_build!$E:$E,'Portfolio Analytics'!$C83,raw_resource_build!$A:$A,'Portfolio Analytics'!J$64,raw_resource_build!$C:$C,mainzone)","v":974.03},{"$f":"SUMIFS(raw_resource_build!$I:$I,raw_resource_build!$E:$E,'Portfolio Analytics'!$C83,raw_resource_build!$A:$A,'Portfolio Analytics'!K$64,raw_resource_build!$C:$C,mainzone)","v":974.03},{"$f":"SUMIFS(raw_resource_build!$I:$I,raw_resource_build!$E:$E,'Portfolio Analytics'!$C83,raw_resource_build!$A:$A,'Portfolio Analytics'!L$64,raw_resource_build!$C:$C,mainzone)","v":974.03},{"$f":"SUMIFS(raw_resource_build!$I:$I,raw_resource_build!$E:$E,'Portfolio Analytics'!$C83,raw_resource_build!$A:$A,'Portfolio Analytics'!M$64,raw_resource_build!$C:$C,mainzone)","v":974.03},{"$f":"SUMIFS(raw_resource_build!$I:$I,raw_resource_build!$E:$E,'Portfolio Analytics'!$C83,raw_resource_build!$A:$A,'Portfolio Analytics'!N$64,raw_resource_build!$C:$C,mainzone)","v":974.03},{"$f":"SUMIFS(raw_resource_build!$I:$I,raw_resource_build!$E:$E,'Portfolio Analytics'!$C83,raw_resource_build!$A:$A,'Portfolio Analytics'!O$64,raw_resource_build!$C:$C,mainzone)","v":0},{"$f":"SUMIFS(raw_resource_build!$I:$I,raw_resource_build!$E:$E,'Portfolio Analytics'!$C83,raw_resource_build!$A:$A,'Portfolio Analytics'!P$64,raw_resource_build!$C:$C,mainzone)","v":974.03},{"$f":"SUMIFS(raw_resource_build!$I:$I,raw_resource_build!$E:$E,'Portfolio Analytics'!$C83,raw_resource_build!$A:$A,'Portfolio Analytics'!Q$64,raw_resource_build!$C:$C,mainzone)","v":0},{"$f":"SUMIFS(raw_resource_build!$I:$I,raw_resource_build!$E:$E,'Portfolio Analytics'!$C83,raw_resource_build!$A:$A,'Portfolio Analytics'!R$64,raw_resource_build!$C:$C,mainzone)","v":0},{"$f":"SUMIFS(raw_resource_build!$I:$I,raw_resource_build!$E:$E,'Portfolio Analytics'!$C83,raw_resource_build!$A:$A,'Portfolio Analytics'!S$64,raw_resource_build!$C:$C,mainzone)","v":0},{"$f":"SUMIFS(raw_resource_build!$I:$I,raw_resource_build!$E:$E,'Portfolio Analytics'!$C83,raw_resource_build!$A:$A,'Portfolio Analytics'!T$64,raw_resource_build!$C:$C,mainzone)","v":974.03},{"$f":"SUMIFS(raw_resource_build!$I:$I,raw_resource_build!$E:$E,'Portfolio Analytics'!$C83,raw_resource_build!$A:$A,'Portfolio Analytics'!U$64,raw_resource_build!$C:$C,mainzone)","v":0},{"$f":"SUMIFS(raw_resource_build!$I:$I,raw_resource_build!$E:$E,'Portfolio Analytics'!$C83,raw_resource_build!$A:$A,'Portfolio Analytics'!V$64,raw_resource_build!$C:$C,mainzone)","v":0},{"$f":"SUMIFS(raw_resource_build!$I:$I,raw_resource_build!$E:$E,'Portfolio Analytics'!$C83,raw_resource_build!$A:$A,'Portfolio Analytics'!W$64,raw_resource_build!$C:$C,mainzone)","v":0},{"$f":"SUMIFS(raw_resource_build!$I:$I,raw_resource_build!$E:$E,'Portfolio Analytics'!$C83,raw_resource_build!$A:$A,'Portfolio Analytics'!X$64,raw_resource_build!$C:$C,mainzone)","v":0},{"$f":"SUMIFS(raw_resource_build!$I:$I,raw_resource_build!$E:$E,'Portfolio Analytics'!$C83,raw_resource_build!$A:$A,'Portfolio Analytics'!Y$64,raw_resource_build!$C:$C,mainzone)","v":0},{"$f":"SUMIFS(raw_resource_build!$I:$I,raw_resource_build!$E:$E,'Portfolio Analytics'!$C83,raw_resource_build!$A:$A,'Portfolio Analytics'!Z$64,raw_resource_build!$C:$C,mainzone)","v":0},{"$f":"SUMIFS(raw_resource_build!$I:$I,raw_resource_build!$E:$E,'Portfolio Analytics'!$C83,raw_resource_build!$A:$A,'Portfolio Analytics'!AA$64,raw_resource_build!$C:$C,mainzone)","v":0},{"$f":"SUMIFS(raw_resource_build!$I:$I,raw_resource_build!$E:$E,'Portfolio Analytics'!$C83,raw_resource_build!$A:$A,'Portfolio Analytics'!AB$64,raw_resource_build!$C:$C,mainzone)","v":0},{"$f":"SUMIFS(raw_resource_build!$I:$I,raw_resource_build!$E:$E,'Portfolio Analytics'!$C83,raw_resource_build!$A:$A,'Portfolio Analytics'!AC$64,raw_resource_build!$C:$C,mainzone)","v":0},{"$f":"SUMIFS(raw_resource_build!$I:$I,raw_resource_build!$E:$E,'Portfolio Analytics'!$C83,raw_resource_build!$A:$A,'Portfolio Analytics'!AD$64,raw_resource_build!$C:$C,mainzone)","v":0},{"$f":"SUMIFS(raw_resource_build!$I:$I,raw_resource_build!$E:$E,'Portfolio Analytics'!$C83,raw_resource_build!$A:$A,'Portfolio Analytics'!AE$64,raw_resource_build!$C:$C,mainzone)","v":0},{"$f":"SUMIFS(raw_resource_build!$I:$I,raw_resource_build!$E:$E,'Portfolio Analytics'!$C83,raw_resource_build!$A:$A,'Portfolio Analytics'!AF$64,raw_resource_build!$C:$C,mainzone)","v":0},{"$f":"SUMIFS(raw_resource_build!$I:$I,raw_resource_build!$E:$E,'Portfolio Analytics'!$C83,raw_resource_build!$A:$A,'Portfolio Analytics'!AG$64,raw_resource_build!$C:$C,mainzone)","v":0},{"$f":"SUMIFS(raw_resource_build!$I:$I,raw_resource_build!$E:$E,'Portfolio Analytics'!$C83,raw_resource_build!$A:$A,'Portfolio Analytics'!AH$64,raw_resource_build!$C:$C,mainzone)","v":0},{"$f":"SUMIFS(raw_resource_build!$I:$I,raw_resource_build!$E:$E,'Portfolio Analytics'!$C83,raw_resource_build!$A:$A,'Portfolio Analytics'!AI$64,raw_resource_build!$C:$C,mainzone)","v":974.03},{"$f":"SUMIFS(raw_resource_build!$I:$I,raw_resource_build!$E:$E,'Portfolio Analytics'!$C83,raw_resource_build!$A:$A,'Portfolio Analytics'!AJ$64,raw_resource_build!$C:$C,mainzone)","v":0},{"$f":"SUMIFS(raw_resource_build!$I:$I,raw_resource_build!$E:$E,'Portfolio Analytics'!$C83,raw_resource_build!$A:$A,'Portfolio Analytics'!AK$64,raw_resource_build!$C:$C,mainzone)","v":0},{"$f":"SUMIFS(raw_resource_build!$I:$I,raw_resource_build!$E:$E,'Portfolio Analytics'!$C83,raw_resource_build!$A:$A,'Portfolio Analytics'!AL$64,raw_resource_build!$C:$C,mainzone)","v":0},{"$f":"SUMIFS(raw_resource_build!$I:$I,raw_resource_build!$E:$E,'Portfolio Analytics'!$C83,raw_resource_build!$A:$A,'Portfolio Analytics'!AM$64,raw_resource_build!$C:$C,mainzone)","v":0},{"$f":"SUMIFS(raw_resource_build!$I:$I,raw_resource_build!$E:$E,'Portfolio Analytics'!$C83,raw_resource_build!$A:$A,'Portfolio Analytics'!AN$64,raw_resource_build!$C:$C,mainzone)","v":0}]
[null,null,{"$f":"Lists!B24","v":"Wind"},"MW",{"$f":"SUMIFS(raw_resource_build!$I:$I,raw_resource_build!$E:$E,'Portfolio Analytics'!$C84,raw_resource_build!$A:$A,'Portfolio Analytics'!E$64,raw_resource_build!$C:$C,mainzone)-E85","v":0},{"$f":"SUMIFS(raw_resource_build!$I:$I,raw_resource_build!$E:$E,'Portfolio Analytics'!$C84,raw_resource_build!$A:$A,'Portfolio Analytics'!F$64,raw_resource_build!$C:$C,mainzone)-F85","v":0},{"$f":"SUMIFS(raw_resource_build!$I:$I,raw_resource_build!$E:$E,'Portfolio Analytics'!$C84,raw_resource_build!$A:$A,'Portfolio Analytics'!G$64,raw_resource_build!$C:$C,mainzone)-G85","v":0},{"$f":"SUMIFS(raw_resource_build!$I:$I,raw_resource_build!$E:$E,'Portfolio Analytics'!$C84,raw_resource_build!$A:$A,'Portfolio Analytics'!H$64,raw_resource_build!$C:$C,mainzone)-H85","v":0},{"$f":"SUMIFS(raw_resource_build!$I:$I,raw_resource_build!$E:$E,'Portfolio Analytics'!$C84,raw_resource_build!$A:$A,'Portfolio Analytics'!I$64,raw_resource_build!$C:$C,mainzone)-I85","v":0},{"$f":"SUMIFS(raw_resource_build!$I:$I,raw_resource_build!$E:$E,'Portfolio Analytics'!$C84,raw_resource_build!$A:$A,'Portfolio Analytics'!J$64,raw_resource_build!$C:$C,mainzone)-J85","v":7356.5599999999995},{"$f":"SUMIFS(raw_resource_build!$I:$I,raw_resource_build!$E:$E,'Portfolio Analytics'!$C84,raw_resource_build!$A:$A,'Portfolio Analytics'!K$64,raw_resource_build!$C:$C,mainzone)-K85","v":7490.3099999999995},{"$f":"SUMIFS(raw_resource_build!$I:$I,raw_resource_build!$E:$E,'Portfolio Analytics'!$C84,raw_resource_build!$A:$A,'Portfolio Analytics'!L$64,raw_resource_build!$C:$C,mainzone)-L85","v":10388.14},{"$f":"SUMIFS(raw_resource_build!$I:$I,raw_resource_build!$E:$E,'Portfolio Analytics'!$C84,raw_resource_build!$A:$A,'Portfolio Analytics'!M$64,raw_resource_build!$C:$C,mainzone)-M85","v":10675.14},{"$f":"SUMIFS(raw_resource_build!$I:$I,raw_resource_build!$E:$E,'Portfolio Analytics'!$C84,raw_resource_build!$A:$A,'Portfolio Analytics'!N$64,raw_resource_build!$C:$C,mainzone)-N85","v":10767.31},{"$f":"SUMIFS(raw_resource_build!$I:$I,raw_resource_build!$E:$E,'Portfolio Analytics'!$C84,raw_resource_build!$A:$A,'Portfolio Analytics'!O$64,raw_resource_build!$C:$C,mainzone)-O85","v":0},{"$f":"SUMIFS(raw_resource_build!$I:$I,raw_resource_build!$E:$E,'Portfolio Analytics'!$C84,raw_resource_build!$A:$A,'Portfolio Analytics'!P$64,raw_resource_build!$C:$C,mainzone)-P85","v":10767.31},{"$f":"SUMIFS(raw_resource_build!$I:$I,raw_resource_build!$E:$E,'Portfolio Analytics'!$C84,raw_resource_build!$A:$A,'Portfolio Analytics'!Q$64,raw_resource_build!$C:$C,mainzone)-Q85","v":0},{"$f":"SUMIFS(raw_resource_build!$I:$I,raw_resource_build!$E:$E,'Portfolio Analytics'!$C84,raw_resource_build!$A:$A,'Portfolio Analytics'!R$64,raw_resource_build!$C:$C,mainzone)-R85","v":0},{"$f":"SUMIFS(raw_resource_build!$I:$I,raw_resource_build!$E:$E,'Portfolio Analytics'!$C84,raw_resource_build!$A:$A,'Portfolio Analytics'!S$64,raw_resource_build!$C:$C,mainzone)-S85","v":0},{"$f":"SUMIFS(raw_resource_build!$I:$I,raw_resource_build!$E:$E,'Portfolio Analytics'!$C84,raw_resource_build!$A:$A,'Portfolio Analytics'!T$64,raw_resource_build!$C:$C,mainzone)-T85","v":12157.240000000002},{"$f":"SUMIFS(raw_resource_build!$I:$I,raw_resource_build!$E:$E,'Portfolio Analytics'!$C84,raw_resource_build!$A:$A,'Portfolio Analytics'!U$64,raw_resource_build!$C:$C,mainzone)-U85","v":0},{"$f":"SUMIFS(raw_resource_build!$I:$I,raw_resource_build!$E:$E,'Portfolio Analytics'!$C84,raw_resource_build!$A:$A,'Portfolio Analytics'!V$64,raw_resource_build!$C:$C,mainzone)-V85","v":0},{"$f":"SUMIFS(raw_resource_build!$I:$I,raw_resource_build!$E:$E,'Portfolio Analytics'!$C84,raw_resource_build!$A:$A,'Portfolio Analytics'!W$64,raw_resource_build!$C:$C,mainzone)-W85","v":0},{"$f":"SUMIFS(raw_resource_build!$I:$I,raw_resource_build!$E:$E,'Portfolio Analytics'!$C84,raw_resource_build!$A:$A,'Portfolio Analytics'!X$64,raw_resource_build!$C:$C,mainzone)-X85","v":0},{"$f":"SUMIFS(raw_resource_build!$I:$I,raw_resource_build!$E:$E,'Portfolio Analytics'!$C84,raw_resource_build!$A:$A,'Portfolio Analytics'!Y$64,raw_resource_build!$C:$C,mainzone)-Y85","v":0},{"$f":"SUMIFS(raw_resource_build!$I:$I,raw_resource_build!$E:$E,'Portfolio Analytics'!$C84,raw_resource_build!$A:$A,'Portfolio Analytics'!Z$64,raw_resource_build!$C:$C,mainzone)-Z85","v":0},{"$f":"SUMIFS(raw_resource_build!$I:$I,raw_resource_build!$E:$E,'Portfolio Analytics'!$C84,raw_resource_build!$A:$A,'Portfolio Analytics'!AA$64,raw_resource_build!$C:$C,mainzone)-AA85","v":0},{"$f":"SUMIFS(raw_resource_build!$I:$I,raw_resource_build!$E:$E,'Portfolio Analytics'!$C84,raw_resource_build!$A:$A,'Portfolio Analytics'!AB$64,raw_resource_build!$C:$C,mainzone)-AB85","v":0},{"$f":"SUMIFS(raw_resource_build!$I:$I,raw_resource_build!$E:$E,'Portfolio Analytics'!$C84,raw_resource_build!$A:$A,'Portfolio Analytics'!AC$64,raw_resource_build!$C:$C,mainzone)-AC85","v":0},{"$f":"SUMIFS(raw_resource_build!$I:$I,raw_resource_build!$E:$E,'Portfolio Analytics'!$C84,raw_resource_build!$A:$A,'Portfolio Analytics'!AD$64,raw_resource_build!$C:$C,mainzone)-AD85","v":0},{"$f":"SUMIFS(raw_resource_build!$I:$I,raw_resource_build!$E:$E,'Portfolio Analytics'!$C84,raw_resource_build!$A:$A,'Portfolio Analytics'!AE$64,raw_resource_build!$C:$C,mainzone)-AE85","v":0},{"$f":"SUMIFS(raw_resource_build!$I:$I,raw_resource_build!$E:$E,'Portfolio Analytics'!$C84,raw_resource_build!$A:$A,'Portfolio Analytics'!AF$64,raw_resource_build!$C:$C,mainzone)-AF85","v":0},{"$f":"SUMIFS(raw_resource_build!$I:$I,raw_resource_build!$E:$E,'Portfolio Analytics'!$C84,raw_resource_build!$A:$A,'Portfolio Analytics'!AG$64,raw_resource_build!$C:$C,mainzone)-AG85","v":0},{"$f":"SUMIFS(raw_resource_build!$I:$I,raw_resource_build!$E:$E,'Portfolio Analytics'!$C84,raw_resource_build!$A:$A,'Portfolio Analytics'!AH$64,raw_resource_build!$C:$C,mainzone)-AH85","v":0},{"$f":"SUMIFS(raw_resource_build!$I:$I,raw_resource_build!$E:$E,'Portfolio Analytics'!$C84,raw_resource_build!$A:$A,'Portfolio Analytics'!AI$64,raw_resource_build!$C:$C,mainzone)-AI85","v":12657.24},{"$f":"SUMIFS(raw_resource_build!$I:$I,raw_resource_build!$E:$E,'Portfolio Analytics'!$C84,raw_resource_build!$A:$A,'Portfolio Analytics'!AJ$64,raw_resource_build!$C:$C,mainzone)-AJ85","v":0},{"$f":"SUMIFS(raw_resource_build!$I:$I,raw_resource_build!$E:$E,'Portfolio Analytics'!$C84,raw_resource_build!$A:$A,'Portfolio Analytics'!AK$64,raw_resource_build!$C:$C,mainzone)-AK85","v":0},{"$f":"SUMIFS(raw_resource_build!$I:$I,raw_resource_build!$E:$E,'Portfolio Analytics'!$C84,raw_resource_build!$A:$A,'Portfolio Analytics'!AL$64,raw_resource_build!$C:$C,mainzone)-AL85","v":0},{"$f":"SUMIFS(raw_resource_build!$I:$I,raw_resource_build!$E:$E,'Portfolio Analytics'!$C84,raw_resource_build!$A:$A,'Portfolio Analytics'!AM$64,raw_resource_build!$C:$C,mainzone)-AM85","v":0},{"$f":"SUMIFS(raw_resource_build!$I:$I,raw_resource_build!$E:$E,'Portfolio Analytics'!$C84,raw_resource_build!$A:$A,'Portfolio Analytics'!AN$64,raw_resource_build!$C:$C,mainzone)-AN85","v":0}]
[null,null,"Wind OOS New Tx","MW",{"$f":"SUMIFS(raw_resource_build!$I:$I,raw_resource_build!$E:$E,$C$84,raw_resource_build!$A:$A,'Portfolio Analytics'!E$64,raw_resource_build!$C:$C,mainzone,Lists!$O:$O,\"Out-Of-State\")","v":0},{"$f":"SUMIFS(raw_resource_build!$I:$I,raw_resource_build!$E:$E,$C$84,raw_resource_build!$A:$A,'Portfolio Analytics'!F$64,raw_resource_build!$C:$C,mainzone,Lists!$O:$O,\"Out-Of-State\")","v":0},{"$f":"SUMIFS(raw_resource_build!$I:$I,raw_resource_build!$E:$E,$C$84,raw_resource_build!$A:$A,'Portfolio Analytics'!G$64,raw_resource_build!$C:$C,mainzone,Lists!$O:$O,\"Out-Of-State\")","v":0},{"$f":"SUMIFS(raw_resource_build!$I:$I,raw_resource_build!$E:$E,$C$84,raw_resource_build!$A:$A,'Portfolio Analytics'!H$64,raw_resource_build!$C:$C,mainzone,Lists!$O:$O,\"Out-Of-State\")","v":0},{"$f":"SUMIFS(raw_resource_build!$I:$I,raw_resource_build!$E:$E,$C$84,raw_resource_build!$A:$A,'Portfolio Analytics'!I$64,raw_resource_build!$C:$C,mainzone,Lists!$O:$O,\"Out-Of-State\")","v":0},{"$f":"SUMIFS(raw_resource_build!$I:$I,raw_resource_build!$E:$E,$C$84,raw_resource_build!$A:$A,'Portfolio Analytics'!J$64,raw_resource_build!$C:$C,mainzone,Lists!$O:$O,\"Out-Of-State\")","v":0},{"$f":"SUMIFS(raw_resource_build!$I:$I,raw_resource_build!$E:$E,$C$84,raw_resource_build!$A:$A,'Portfolio Analytics'!K$64,raw_resource_build!$C:$C,mainzone,Lists!$O:$O,\"Out-Of-State\")","v":0},{"$f":"SUMIFS(raw_resource_build!$I:$I,raw_resource_build!$E:$E,$C$84,raw_resource_build!$A:$A,'Portfolio Analytics'!L$64,raw_resource_build!$C:$C,mainzone,Lists!$O:$O,\"Out-Of-State\")","v":0},{"$f":"SUMIFS(raw_resource_build!$I:$I,raw_resource_build!$E:$E,$C$84,raw_resource_build!$A:$A,'Portfolio Analytics'!M$64,raw_resource_build!$C:$C,mainzone,Lists!$O:$O,\"Out-Of-State\")","v":0},{"$f":"SUMIFS(raw_resource_build!$I:$I,raw_resource_build!$E:$E,$C$84,raw_resource_build!$A:$A,'Portfolio Analytics'!N$64,raw_resource_build!$C:$C,mainzone,Lists!$O:$O,\"Out-Of-State\")","v":0},{"$f":"SUMIFS(raw_resource_build!$I:$I,raw_resource_build!$E:$E,$C$84,raw_resource_build!$A:$A,'Portfolio Analytics'!O$64,raw_resource_build!$C:$C,mainzone,Lists!$O:$O,\"Out-Of-State\")","v":0},{"$f":"SUMIFS(raw_resource_build!$I:$I,raw_resource_build!$E:$E,$C$84,raw_resource_build!$A:$A,'Portfolio Analytics'!P$64,raw_resource_build!$C:$C,mainzone,Lists!$O:$O,\"Out-Of-State\")","v":0},{"$f":"SUMIFS(raw_resource_build!$I:$I,raw_resource_build!$E:$E,$C$84,raw_resource_build!$A:$A,'Portfolio Analytics'!Q$64,raw_resource_build!$C:$C,mainzone,Lists!$O:$O,\"Out-Of-State\")","v":0},{"$f":"SUMIFS(raw_resource_build!$I:$I,raw_resource_build!$E:$E,$C$84,raw_resource_build!$A:$A,'Portfolio Analytics'!R$64,raw_resource_build!$C:$C,mainzone,Lists!$O:$O,\"Out-Of-State\")","v":0},{"$f":"SUMIFS(raw_resource_build!$I:$I,raw_resource_build!$E:$E,$C$84,raw_resource_build!$A:$A,'Portfolio Analytics'!S$64,raw_resource_build!$C:$C,mainzone,Lists!$O:$O,\"Out-Of-State\")","v":0},{"$f":"SUMIFS(raw_resource_build!$I:$I,raw_resource_build!$E:$E,$C$84,raw_resource_build!$A:$A,'Portfolio Analytics'!T$64,raw_resource_build!$C:$C,mainzone,Lists!$O:$O,\"Out-Of-State\")","v":1336.87},{"$f":"SUMIFS(raw_resource_build!$I:$I,raw_resource_build!$E:$E,$C$84,raw_resource_build!$A:$A,'Portfolio Analytics'!U$64,raw_resource_build!$C:$C,mainzone,Lists!$O:$O,\"Out-Of-State\")","v":0},{"$f":"SUMIFS(raw_resource_build!$I:$I,raw_resource_build!$E:$E,$C$84,raw_resource_build!$A:$A,'Portfolio Analytics'!V$64,raw_resource_build!$C:$C,mainzone,Lists!$O:$O,\"Out-Of-State\")","v":0},{"$f":"SUMIFS(raw_resource_build!$I:$I,raw_resource_build!$E:$E,$C$84,raw_resource_build!$A:$A,'Portfolio Analytics'!W$64,raw_resource_build!$C:$C,mainzone,Lists!$O:$O,\"Out-Of-State\")","v":0},{"$f":"SUMIFS(raw_resource_build!$I:$I,raw_resource_build!$E:$E,$C$84,raw_resource_build!$A:$A,'Portfolio Analytics'!X$64,raw_resource_build!$C:$C,mainzone,Lists!$O:$O,\"Out-Of-State\")","v":0},{"$f":"SUMIFS(raw_resource_build!$I:$I,raw_resource_build!$E:$E,$C$84,raw_resource_build!$A:$A,'Portfolio Analytics'!Y$64,raw_resource_build!$C:$C,mainzone,Lists!$O:$O,\"Out-Of-State\")","v":0},{"$f":"SUMIFS(raw_resource_build!$I:$I,raw_resource_build!$E:$E,$C$84,raw_resource_build!$A:$A,'Portfolio Analytics'!Z$64,raw_resource_build!$C:$C,mainzone,Lists!$O:$O,\"Out-Of-State\")","v":0},{"$f":"SUMIFS(raw_resource_build!$I:$I,raw_resource_build!$E:$E,$C$84,raw_resource_build!$A:$A,'Portfolio Analytics'!AA$64,raw_resource_build!$C:$C,mainzone,Lists!$O:$O,\"Out-Of-State\")","v":0},{"$f":"SUMIFS(raw_resource_build!$I:$I,raw_resource_build!$E:$E,$C$84,raw_resource_build!$A:$A,'Portfolio Analytics'!AB$64,raw_resource_build!$C:$C,mainzone,Lists!$O:$O,\"Out-Of-State\")","v":0},{"$f":"SUMIFS(raw_resource_build!$I:$I,raw_resource_build!$E:$E,$C$84,raw_resource_build!$A:$A,'Portfolio Analytics'!AC$64,raw_resource_build!$C:$C,mainzone,Lists!$O:$O,\"Out-Of-State\")","v":0},{"$f":"SUMIFS(raw_resource_build!$I:$I,raw_resource_build!$E:$E,$C$84,raw_resource_build!$A:$A,'Portfolio Analytics'!AD$64,raw_resource_build!$C:$C,mainzone,Lists!$O:$O,\"Out-Of-State\")","v":0},{"$f":"SUMIFS(raw_resource_build!$I:$I,raw_resource_build!$E:$E,$C$84,raw_resource_build!$A:$A,'Portfolio Analytics'!AE$64,raw_resource_build!$C:$C,mainzone,Lists!$O:$O,\"Out-Of-State\")","v":0},{"$f":"SUMIFS(raw_resource_build!$I:$I,raw_resource_build!$E:$E,$C$84,raw_resource_build!$A:$A,'Portfolio Analytics'!AF$64,raw_resource_build!$C:$C,mainzone,Lists!$O:$O,\"Out-Of-State\")","v":0},{"$f":"SUMIFS(raw_resource_build!$I:$I,raw_resource_build!$E:$E,$C$84,raw_resource_build!$A:$A,'Portfolio Analytics'!AG$64,raw_resource_build!$C:$C,mainzone,Lists!$O:$O,\"Out-Of-State\")","v":0},{"$f":"SUMIFS(raw_resource_build!$I:$I,raw_resource_build!$E:$E,$C$84,raw_resource_build!$A:$A,'Portfolio Analytics'!AH$64,raw_resource_build!$C:$C,mainzone,Lists!$O:$O,\"Out-Of-State\")","v":0},{"$f":"SUMIFS(raw_resource_build!$I:$I,raw_resource_build!$E:$E,$C$84,raw_resource_build!$A:$A,'Portfolio Analytics'!AI$64,raw_resource_build!$C:$C,mainzone,Lists!$O:$O,\"Out-Of-State\")","v":3000},{"$f":"SUMIFS(raw_resource_build!$I:$I,raw_resource_build!$E:$E,$C$84,raw_resource_build!$A:$A,'Portfolio Analytics'!AJ$64,raw_resource_build!$C:$C,mainzone,Lists!$O:$O,\"Out-Of-State\")","v":0},{"$f":"SUMIFS(raw_resource_build!$I:$I,raw_resource_build!$E:$E,$C$84,raw_resource_build!$A:$A,'Portfolio Analytics'!AK$64,raw_resource_build!$C:$C,mainzone,Lists!$O:$O,\"Out-Of-State\")","v":0},{"$f":"SUMIFS(raw_resource_build!$I:$I,raw_resource_build!$E:$E,$C$84,raw_resource_build!$A:$A,'Portfolio Analytics'!AL$64,raw_resource_build!$C:$C,mainzone,Lists!$O:$O,\"Out-Of-State\")","v":0},{"$f":"SUMIFS(raw_resource_build!$I:$I,raw_resource_build!$E:$E,$C$84,raw_resource_build!$A:$A,'Portfolio Analytics'!AM$64,raw_resource_build!$C:$C,mainzone,Lists!$O:$O,\"Out-Of-State\")","v":0},{"$f":"SUMIFS(raw_resource_build!$I:$I,raw_resource_build!$E:$E,$C$84,raw_resource_build!$A:$A,'Portfolio Analytics'!AN$64,raw_resource_build!$C:$C,mainzone,Lists!$O:$O,\"Out-Of-State\")","v":0}]
[null,null,{"$f":"Lists!B26","v":"Offshore_Wind"},"MW",{"$f":"SUMIFS(raw_resource_build!$I:$I,raw_resource_build!$E:$E,'Portfolio Analytics'!$C86,raw_resource_build!$A:$A,'Portfolio Analytics'!E$64,raw_resource_build!$C:$C,mainzone)","v":0},{"$f":"SUMIFS(raw_resource_build!$I:$I,raw_resource_build!$E:$E,'Portfolio Analytics'!$C86,raw_resource_build!$A:$A,'Portfolio Analytics'!F$64,raw_resource_build!$C:$C,mainzone)","v":0},{"$f":"SUMIFS(raw_resource_build!$I:$I,raw_resource_build!$E:$E,'Portfolio Analytics'!$C86,raw_resource_build!$A:$A,'Portfolio Analytics'!G$64,raw_resource_build!$C:$C,mainzone)","v":0},{"$f":"SUMIFS(raw_resource_build!$I:$I,raw_resource_build!$E:$E,'Portfolio Analytics'!$C86,raw_resource_build!$A:$A,'Portfolio Analytics'!H$64,raw_resource_build!$C:$C,mainzone)","v":0},{"$f":"SUMIFS(raw_resource_build!$I:$I,raw_resource_build!$E:$E,'Portfolio Analytics'!$C86,raw_resource_build!$A:$A,'Portfolio Analytics'!I$64,raw_resource_build!$C:$C,mainzone)","v":0},{"$f":"SUMIFS(raw_resource_build!$I:$I,raw_resource_build!$E:$E,'Portfolio Analytics'!$C86,raw_resource_build!$A:$A,'Portfolio Analytics'!J$64,raw_resource_build!$C:$C,mainzone)","v":0},{"$f":"SUMIFS(raw_resource_build!$I:$I,raw_resource_build!$E:$E,'Portfolio Analytics'!$C86,raw_resource_build!$A:$A,'Portfolio Analytics'!K$64,raw_resource_build!$C:$C,mainzone)","v":0},{"$f":"SUMIFS(raw_resource_build!$I:$I,raw_resource_build!$E:$E,'Portfolio Analytics'!$C86,raw_resource_build!$A:$A,'Portfolio Analytics'!L$64,raw_resource_build!$C:$C,mainzone)","v":0},{"$f":"SUMIFS(raw_resource_build!$I:$I,raw_resource_build!$E:$E,'Portfolio Analytics'!$C86,raw_resource_build!$A:$A,'Portfolio Analytics'!M$64,raw_resource_build!$C:$C,mainzone)","v":0},{"$f":"SUMIFS(raw_resource_build!$I:$I,raw_resource_build!$E:$E,'Portfolio Analytics'!$C86,raw_resource_build!$A:$A,'Portfolio Analytics'!N$64,raw_resource_build!$C:$C,mainzone)","v":0},{"$f":"SUMIFS(raw_resource_build!$I:$I,raw_resource_build!$E:$E,'Portfolio Analytics'!$C86,raw_resource_build!$A:$A,'Portfolio Analytics'!O$64,raw_resource_build!$C:$C,mainzone)","v":0},{"$f":"SUMIFS(raw_resource_build!$I:$I,raw_resource_build!$E:$E,'Portfolio Analytics'!$C86,raw_resource_build!$A:$A,'Portfolio Analytics'!P$64,raw_resource_build!$C:$C,mainzone)","v":0},{"$f":"SUMIFS(raw_resource_build!$I:$I,raw_resource_build!$E:$E,'Portfolio Analytics'!$C86,raw_resource_build!$A:$A,'Portfolio Analytics'!Q$64,raw_resource_build!$C:$C,mainzone)","v":0},{"$f":"SUMIFS(raw_resource_build!$I:$I,raw_resource_build!$E:$E,'Portfolio Analytics'!$C86,raw_resource_build!$A:$A,'Portfolio Analytics'!R$64,raw_resource_build!$C:$C,mainzone)","v":0},{"$f":"SUMIFS(raw_resource_build!$I:$I,raw_resource_build!$E:$E,'Portfolio Analytics'!$C86,raw_resource_build!$A:$A,'Portfolio Analytics'!S$64,raw_resource_build!$C:$C,mainzone)","v":0},{"$f":"SUMIFS(raw_resource_build!$I:$I,raw_resource_build!$E:$E,'Portfolio Analytics'!$C86,raw_resource_build!$A:$A,'Portfolio Analytics'!T$64,raw_resource_build!$C:$C,mainzone)","v":0},{"$f":"SUMIFS(raw_resource_build!$I:$I,raw_resource_build!$E:$E,'Portfolio Analytics'!$C86,raw_resource_build!$A:$A,'Portfolio Analytics'!U$64,raw_resource_build!$C:$C,mainzone)","v":0},{"$f":"SUMIFS(raw_resource_build!$I:$I,raw_resource_build!$E:$E,'Portfolio Analytics'!$C86,raw_resource_build!$A:$A,'Portfolio Analytics'!V$64,raw_resource_build!$C:$C,mainzone)","v":0},{"$f":"SUMIFS(raw_resource_build!$I:$I,raw_resource_build!$E:$E,'Portfolio Analytics'!$C86,raw_resource_build!$A:$A,'Portfolio Analytics'!W$64,raw_resource_build!$C:$C,mainzone)","v":0},{"$f":"SUMIFS(raw_resource_build!$I:$I,raw_resource_build!$E:$E,'Portfolio Analytics'!$C86,raw_resource_build!$A:$A,'Portfolio Analytics'!X$64,raw_resource_build!$C:$C,mainzone)","v":0},{"$f":"SUMIFS(raw_resource_build!$I:$I,raw_resource_build!$E:$E,'Portfolio Analytics'!$C86,raw_resource_build!$A:$A,'Portfolio Analytics'!Y$64,raw_resource_build!$C:$C,mainzone)","v":0},{"$f":"SUMIFS(raw_resource_build!$I:$I,raw_resource_build!$E:$E,'Portfolio Analytics'!$C86,raw_resource_build!$A:$A,'Portfolio Analytics'!Z$64,raw_resource_build!$C:$C,mainzone)","v":0},{"$f":"SUMIFS(raw_resource_build!$I:$I,raw_resource_build!$E:$E,'Portfolio Analytics'!$C86,raw_resource_build!$A:$A,'Portfolio Analytics'!AA$64,raw_resource_build!$C:$C,mainzone)","v":0},{"$f":"SUMIFS(raw_resource_build!$I:$I,raw_resource_build!$E:$E,'Portfolio Analytics'!$C86,raw_resource_build!$A:$A,'Portfolio Analytics'!AB$64,raw_resource_build!$C:$C,mainzone)","v":0},{"$f":"SUMIFS(raw_resource_build!$I:$I,raw_resource_build!$E:$E,'Portfolio Analytics'!$C86,raw_resource_build!$A:$A,'Portfolio Analytics'!AC$64,raw_resource_build!$C:$C,mainzone)","v":0},{"$f":"SUMIFS(raw_resource_build!$I:$I,raw_resource_build!$E:$E,'Portfolio Analytics'!$C86,raw_resource_build!$A:$A,'Portfolio Analytics'!AD$64,raw_resource_build!$C:$C,mainzone)","v":0},{"$f":"SUMIFS(raw_resource_build!$I:$I,raw_resource_build!$E:$E,'Portfolio Analytics'!$C86,raw_resource_build!$A:$A,'Portfolio Analytics'!AE$64,raw_resource_build!$C:$C,mainzone)","v":0},{"$f":"SUMIFS(raw_resource_build!$I:$I,raw_resource_build!$E:$E,'Portfolio Analytics'!$C86,raw_resource_build!$A:$A,'Portfolio Analytics'!AF$64,raw_resource_build!$C:$C,mainzone)","v":0},{"$f":"SUMIFS(raw_resource_build!$I:$I,raw_resource_build!$E:$E,'Portfolio Analytics'!$C86,raw_resource_build!$A:$A,'Portfolio Analytics'!AG$64,raw_resource_build!$C:$C,mainzone)","v":0},{"$f":"SUMIFS(raw_resource_build!$I:$I,raw_resource_build!$E:$E,'Portfolio Analytics'!$C86,raw_resource_build!$A:$A,'Portfolio Analytics'!AH$64,raw_resource_build!$C:$C,mainzone)","v":0},{"$f":"SUMIFS(raw_resource_build!$I:$I,raw_resource_build!$E:$E,'Portfolio Analytics'!$C86,raw_resource_build!$A:$A,'Portfolio Analytics'!AI$64,raw_resource_build!$C:$C,mainzone)","v":0},{"$f":"SUMIFS(raw_resource_build!$I:$I,raw_resource_build!$E:$E,'Portfolio Analytics'!$C86,raw_resource_build!$A:$A,'Portfolio Analytics'!AJ$64,raw_resource_build!$C:$C,mainzone)","v":0},{"$f":"SUMIFS(raw_resource_build!$I:$I,raw_resource_build!$E:$E,'Portfolio Analytics'!$C86,raw_resource_build!$A:$A,'Portfolio Analytics'!AK$64,raw_resource_build!$C:$C,mainzone)","v":0},{"$f":"SUMIFS(raw_resource_build!$I:$I,raw_resource_build!$E:$E,'Portfolio Analytics'!$C86,raw_resource_build!$A:$A,'Portfolio Analytics'!AL$64,raw_resource_build!$C:$C,mainzone)","v":0},{"$f":"SUMIFS(raw_resource_build!$I:$I,raw_resource_build!$E:$E,'Portfolio Analytics'!$C86,raw_resource_build!$A:$A,'Portfolio Analytics'!AM$64,raw_resource_build!$C:$C,mainzone)","v":0},{"$f":"SUMIFS(raw_resource_build!$I:$I,raw_resource_build!$E:$E,'Portfolio Analytics'!$C86,raw_resource_build!$A:$A,'Portfolio Analytics'!AN$64,raw_resource_build!$C:$C,mainzone)","v":0}]
[null,null,{"$f":"Lists!B27","v":"Pumped_Hydro"},"MW",{"$f":"SUMIFS(raw_resource_build!$I:$I,raw_resource_build!$E:$E,'Portfolio Analytics'!$C87,raw_resource_build!$A:$A,'Portfolio Analytics'!E$64,raw_resource_build!$C:$C,mainzone)","v":0},{"$f":"SUMIFS(raw_resource_build!$I:$I,raw_resource_build!$E:$E,'Portfolio Analytics'!$C87,raw_resource_build!$A:$A,'Portfolio Analytics'!F$64,raw_resource_build!$C:$C,mainzone)","v":0},{"$f":"SUMIFS(raw_resource_build!$I:$I,raw_resource_build!$E:$E,'Portfolio Analytics'!$C87,raw_resource_build!$A:$A,'Portfolio Analytics'!G$64,raw_resource_build!$C:$C,mainzone)","v":0},{"$f":"SUMIFS(raw_resource_build!$I:$I,raw_resource_build!$E:$E,'Portfolio Analytics'!$C87,raw_resource_build!$A:$A,'Portfolio Analytics'!H$64,raw_resource_build!$C:$C,mainzone)","v":0},{"$f":"SUMIFS(raw_resource_build!$I:$I,raw_resource_build!$E:$E,'Portfolio Analytics'!$C87,raw_resource_build!$A:$A,'Portfolio Analytics'!I$64,raw_resource_build!$C:$C,mainzone)","v":0},{"$f":"SUMIFS(raw_resource_build!$I:$I,raw_resource_build!$E:$E,'Portfolio Analytics'!$C87,raw_resource_build!$A:$A,'Portfolio Analytics'!J$64,raw_resource_build!$C:$C,mainzone)","v":1599.2},{"$f":"SUMIFS(raw_resource_build!$I:$I,raw_resource_build!$E:$E,'Portfolio Analytics'!$C87,raw_resource_build!$A:$A,'Portfolio Analytics'!K$64,raw_resource_build!$C:$C,mainzone)","v":1599.2},{"$f":"SUMIFS(raw_resource_build!$I:$I,raw_resource_build!$E:$E,'Portfolio Analytics'!$C87,raw_resource_build!$A:$A,'Portfolio Analytics'!L$64,raw_resource_build!$C:$C,mainzone)","v":1599.2},{"$f":"SUMIFS(raw_resource_build!$I:$I,raw_resource_build!$E:$E,'Portfolio Analytics'!$C87,raw_resource_build!$A:$A,'Portfolio Analytics'!M$64,raw_resource_build!$C:$C,mainzone)","v":1599.2},{"$f":"SUMIFS(raw_resource_build!$I:$I,raw_resource_build!$E:$E,'Portfolio Analytics'!$C87,raw_resource_build!$A:$A,'Portfolio Analytics'!N$64,raw_resource_build!$C:$C,mainzone)","v":1599.2},{"$f":"SUMIFS(raw_resource_build!$I:$I,raw_resource_build!$E:$E,'Portfolio Analytics'!$C87,raw_resource_build!$A:$A,'Portfolio Analytics'!O$64,raw_resource_build!$C:$C,mainzone)","v":0},{"$f":"SUMIFS(raw_resource_build!$I:$I,raw_resource_build!$E:$E,'Portfolio Analytics'!$C87,raw_resource_build!$A:$A,'Portfolio Analytics'!P$64,raw_resource_build!$C:$C,mainzone)","v":3585.67},{"$f":"SUMIFS(raw_resource_build!$I:$I,raw_resource_build!$E:$E,'Portfolio Analytics'!$C87,raw_resource_build!$A:$A,'Portfolio Analytics'!Q$64,raw_resource_build!$C:$C,mainzone)","v":0},{"$f":"SUMIFS(raw_resource_build!$I:$I,raw_resource_build!$E:$E,'Portfolio Analytics'!$C87,raw_resource_build!$A:$A,'Portfolio Analytics'!R$64,raw_resource_build!$C:$C,mainzone)","v":0},{"$f":"SUMIFS(raw_resource_build!$I:$I,raw_resource_build!$E:$E,'Portfolio Analytics'!$C87,raw_resource_build!$A:$A,'Portfolio Analytics'!S$64,raw_resource_build!$C:$C,mainzone)","v":0},{"$f":"SUMIFS(raw_resource_build!$I:$I,raw_resource_build!$E:$E,'Portfolio Analytics'!$C87,raw_resource_build!$A:$A,'Portfolio Analytics'!T$64,raw_resource_build!$C:$C,mainzone)","v":3585.67},{"$f":"SUMIFS(raw_resource_build!$I:$I,raw_resource_build!$E:$E,'Portfolio Analytics'!$C87,raw_resource_build!$A:$A,'Portfolio Analytics'!U$64,raw_resource_build!$C:$C,mainzone)","v":0},{"$f":"SUMIFS(raw_resource_build!$I:$I,raw_resource_build!$E:$E,'Portfolio Analytics'!$C87,raw_resource_build!$A:$A,'Portfolio Analytics'!V$64,raw_resource_build!$C:$C,mainzone)","v":0},{"$f":"SUMIFS(raw_resource_build!$I:$I,raw_resource_build!$E:$E,'Portfolio Analytics'!$C87,raw_resource_build!$A:$A,'Portfolio Analytics'!W$64,raw_resource_build!$C:$C,mainzone)","v":0},{"$f":"SUMIFS(raw_resource_build!$I:$I,raw_resource_build!$E:$E,'Portfolio Analytics'!$C87,raw_resource_build!$A:$A,'Portfolio Analytics'!X$64,raw_resource_build!$C:$C,mainzone)","v":0},{"$f":"SUMIFS(raw_resource_build!$I:$I,raw_resource_build!$E:$E,'Portfolio Analytics'!$C87,raw_resource_build!$A:$A,'Portfolio Analytics'!Y$64,raw_resource_build!$C:$C,mainzone)","v":0},{"$f":"SUMIFS(raw_resource_build!$I:$I,raw_resource_build!$E:$E,'Portfolio Analytics'!$C87,raw_resource_build!$A:$A,'Portfolio Analytics'!Z$64,raw_resource_build!$C:$C,mainzone)","v":0},{"$f":"SUMIFS(raw_resource_build!$I:$I,raw_resource_build!$E:$E,'Portfolio Analytics'!$C87,raw_resource_build!$A:$A,'Portfolio Analytics'!AA$64,raw_resource_build!$C:$C,mainzone)","v":0},{"$f":"SUMIFS(raw_resource_build!$I:$I,raw_resource_build!$E:$E,'Portfolio Analytics'!$C87,raw_resource_build!$A:$A,'Portfolio Analytics'!AB$64,raw_resource_build!$C:$C,mainzone)","v":0},{"$f":"SUMIFS(raw_resource_build!$I:$I,raw_resource_build!$E:$E,'Portfolio Analytics'!$C87,raw_resource_build!$A:$A,'Portfolio Analytics'!AC$64,raw_resource_build!$C:$C,mainzone)","v":0},{"$f":"SUMIFS(raw_resource_build!$I:$I,raw_resource_build!$E:$E,'Portfolio Analytics'!$C87,raw_resource_build!$A:$A,'Portfolio Analytics'!AD$64,raw_resource_build!$C:$C,mainzone)","v":0},{"$f":"SUMIFS(raw_resource_build!$I:$I,raw_resource_build!$E:$E,'Portfolio Analytics'!$C87,raw_resource_build!$A:$A,'Portfolio Analytics'!AE$64,raw_resource_build!$C:$C,mainzone)","v":0},{"$f":"SUMIFS(raw_resource_build!$I:$I,raw_resource_build!$E:$E,'Portfolio Analytics'!$C87,raw_resource_build!$A:$A,'Portfolio Analytics'!AF$64,raw_resource_build!$C:$C,mainzone)","v":0},{"$f":"SUMIFS(raw_resource_build!$I:$I,raw_resource_build!$E:$E,'Portfolio Analytics'!$C87,raw_resource_build!$A:$A,'Portfolio Analytics'!AG$64,raw_resource_build!$C:$C,mainzone)","v":0},{"$f":"SUMIFS(raw_resource_build!$I:$I,raw_resource_build!$E:$E,'Portfolio Analytics'!$C87,raw_resource_build!$A:$A,'Portfolio Analytics'!AH$64,raw_resource_build!$C:$C,mainzone)","v":0},{"$f":"SUMIFS(raw_resource_build!$I:$I,raw_resource_build!$E:$E,'Portfolio Analytics'!$C87,raw_resource_build!$A:$A,'Portfolio Analytics'!AI$64,raw_resource_build!$C:$C,mainzone)","v":3585.67},{"$f":"SUMIFS(raw_resource_build!$I:$I,raw_resource_build!$E:$E,'Portfolio Analytics'!$C87,raw_resource_build!$A:$A,'Portfolio Analytics'!AJ$64,raw_resource_build!$C:$C,mainzone)","v":0},{"$f":"SUMIFS(raw_resource_build!$I:$I,raw_resource_build!$E:$E,'Portfolio Analytics'!$C87,raw_resource_build!$A:$A,'Portfolio Analytics'!AK$64,raw_resource_build!$C:$C,mainzone)","v":0},{"$f":"SUMIFS(raw_resource_build!$I:$I,raw_resource_build!$E:$E,'Portfolio Analytics'!$C87,raw_resource_build!$A:$A,'Portfolio Analytics'!AL$64,raw_resource_build!$C:$C,mainzone)","v":0},{"$f":"SUMIFS(raw_resource_build!$I:$I,raw_resource_build!$E:$E,'Portfolio Analytics'!$C87,raw_resource_build!$A:$A,'Portfolio Analytics'!AM$64,raw_resource_build!$C:$C,mainzone)","v":0},{"$f":"SUMIFS(raw_resource_build!$I:$I,raw_resource_build!$E:$E,'Portfolio Analytics'!$C87,raw_resource_build!$A:$A,'Portfolio Analytics'!AN$64,raw_resource_build!$C:$C,mainzone)","v":0}]
[null,null,{"$f":"Lists!B28","v":"Li_Battery"},"MW",{"$f":"SUMIFS(raw_resource_build!$I:$I,raw_resource_build!$E:$E,'Portfolio Analytics'!$C88,raw_resource_build!$A:$A,'Portfolio Analytics'!E$64,raw_resource_build!$C:$C,mainzone)","v":0},{"$f":"SUMIFS(raw_resource_build!$I:$I,raw_resource_build!$E:$E,'Portfolio Analytics'!$C88,raw_resource_build!$A:$A,'Portfolio Analytics'!F$64,raw_resource_build!$C:$C,mainzone)","v":0},{"$f":"SUMIFS(raw_resource_build!$I:$I,raw_resource_build!$E:$E,'Portfolio Analytics'!$C88,raw_resource_build!$A:$A,'Portfolio Analytics'!G$64,raw_resource_build!$C:$C,mainzone)","v":0},{"$f":"SUMIFS(raw_resource_build!$I:$I,raw_resource_build!$E:$E,'Portfolio Analytics'!$C88,raw_resource_build!$A:$A,'Portfolio Analytics'!H$64,raw_resource_build!$C:$C,mainzone)","v":0},{"$f":"SUMIFS(raw_resource_build!$I:$I,raw_resource_build!$E:$E,'Portfolio Analytics'!$C88,raw_resource_build!$A:$A,'Portfolio Analytics'!I$64,raw_resource_build!$C:$C,mainzone)","v":0},{"$f":"SUMIFS(raw_resource_build!$I:$I,raw_resource_build!$E:$E,'Portfolio Analytics'!$C88,raw_resource_build!$A:$A,'Portfolio Analytics'!J$64,raw_resource_build!$C:$C,mainzone)","v":3418.1},{"$f":"SUMIFS(raw_resource_build!$I:$I,raw_resource_build!$E:$E,'Portfolio Analytics'!$C88,raw_resource_build!$A:$A,'Portfolio Analytics'!K$64,raw_resource_build!$C:$C,mainzone)","v":6047.96},{"$f":"SUMIFS(raw_resource_build!$I:$I,raw_resource_build!$E:$E,'Portfolio Analytics'!$C88,raw_resource_build!$A:$A,'Portfolio Analytics'!L$64,raw_resource_build!$C:$C,mainzone)","v":6047.96},{"$f":"SUMIFS(raw_resource_build!$I:$I,raw_resource_build!$E:$E,'Portfolio Analytics'!$C88,raw_resource_build!$A:$A,'Portfolio Analytics'!M$64,raw_resource_build!$C:$C,mainzone)","v":6436.01},{"$f":"SUMIFS(raw_resource_build!$I:$I,raw_resource_build!$E:$E,'Portfolio Analytics'!$C88,raw_resource_build!$A:$A,'Portfolio Analytics'!N$64,raw_resource_build!$C:$C,mainzone)","v":8228.25},{"$f":"SUMIFS(raw_resource_build!$I:$I,raw_resource_build!$E:$E,'Portfolio Analytics'!$C88,raw_resource_build!$A:$A,'Portfolio Analytics'!O$64,raw_resource_build!$C:$C,mainzone)","v":0},{"$f":"SUMIFS(raw_resource_build!$I:$I,raw_resource_build!$E:$E,'Portfolio Analytics'!$C88,raw_resource_build!$A:$A,'Portfolio Analytics'!P$64,raw_resource_build!$C:$C,mainzone)","v":11452.779999999999},{"$f":"SUMIFS(raw_resource_build!$I:$I,raw_resource_build!$E:$E,'Portfolio Analytics'!$C88,raw_resource_build!$A:$A,'Portfolio Analytics'!Q$64,raw_resource_build!$C:$C,mainzone)","v":0},{"$f":"SUMIFS(raw_resource_build!$I:$I,raw_resource_build!$E:$E,'Portfolio Analytics'!$C88,raw_resource_build!$A:$A,'Portfolio Analytics'!R$64,raw_resource_build!$C:$C,mainzone)","v":0},{"$f":"SUMIFS(raw_resource_build!$I:$I,raw_resource_build!$E:$E,'Portfolio Analytics'!$C88,raw_resource_build!$A:$A,'Portfolio Analytics'!S$64,raw_resource_build!$C:$C,mainzone)","v":0},{"$f":"SUMIFS(raw_resource_build!$I:$I,raw_resource_build!$E:$E,'Portfolio Analytics'!$C88,raw_resource_build!$A:$A,'Portfolio Analytics'!T$64,raw_resource_build!$C:$C,mainzone)","v":14045.789999999999},{"$f":"SUMIFS(raw_resource_build!$I:$I,raw_resource_build!$E:$E,'Portfolio Analytics'!$C88,raw_resource_build!$A:$A,'Portfolio Analytics'!U$64,raw_resource_build!$C:$C,mainzone)","v":0},{"$f":"SUMIFS(raw_resource_build!$I:$I,raw_resource_build!$E:$E,'Portfolio Analytics'!$C88,raw_resource_build!$A:$A,'Portfolio Analytics'!V$64,raw_resource_build!$C:$C,mainzone)","v":0},{"$f":"SUMIFS(raw_resource_build!$I:$I,raw_resource_build!$E:$E,'Portfolio Analytics'!$C88,raw_resource_build!$A:$A,'Portfolio Analytics'!W$64,raw_resource_build!$C:$C,mainzone)","v":0},{"$f":"SUMIFS(raw_resource_build!$I:$I,raw_resource_build!$E:$E,'Portfolio Analytics'!$C88,raw_resource_build!$A:$A,'Portfolio Analytics'!X$64,raw_resource_build!$C:$C,mainzone)","v":0},{"$f":"SUMIFS(raw_resource_build!$I:$I,raw_resource_build!$E:$E,'Portfolio Analytics'!$C88,raw_resource_build!$A:$A,'Portfolio Analytics'!Y$64,raw_resource_build!$C:$C,mainzone)","v":0},{"$f":"SUMIFS(raw_resource_build!$I:$I,raw_resource_build!$E:$E,'Portfolio Analytics'!$C88,raw_resource_build!$A:$A,'Portfolio Analytics'!Z$64,raw_resource_build!$C:$C,mainzone)","v":0},{"$f":"SUMIFS(raw_resource_build!$I:$I,raw_resource_build!$E:$E,'Portfolio Analytics'!$C88,raw_resource_build!$A:$A,'Portfolio Analytics'!AA$64,raw_resource_build!$C:$C,mainzone)","v":0},{"$f":"SUMIFS(raw_resource_build!$I:$I,raw_resource_build!$E:$E,'Portfolio Analytics'!$C88,raw_resource_build!$A:$A,'Portfolio Analytics'!AB$64,raw_resource_build!$C:$C,mainzone)","v":0},{"$f":"SUMIFS(raw_resource_build!$I:$I,raw_resource_build!$E:$E,'Portfolio Analytics'!$C88,raw_resource_build!$A:$A,'Portfolio Analytics'!AC$64,raw_resource_build!$C:$C,mainzone)","v":0},{"$f":"SUMIFS(raw_resource_build!$I:$I,raw_resource_build!$E:$E,'Portfolio Analytics'!$C88,raw_resource_build!$A:$A,'Portfolio Analytics'!AD$64,raw_resource_build!$C:$C,mainzone)","v":0},{"$f":"SUMIFS(raw_resource_build!$I:$I,raw_resource_build!$E:$E,'Portfolio Analytics'!$C88,raw_resource_build!$A:$A,'Portfolio Analytics'!AE$64,raw_resource_build!$C:$C,mainzone)","v":0},{"$f":"SUMIFS(raw_resource_build!$I:$I,raw_resource_build!$E:$E,'Portfolio Analytics'!$C88,raw_resource_build!$A:$A,'Portfolio Analytics'!AF$64,raw_resource_build!$C:$C,mainzone)","v":0},{"$f":"SUMIFS(raw_resource_build!$I:$I,raw_resource_build!$E:$E,'Portfolio Analytics'!$C88,raw_resource_build!$A:$A,'Portfolio Analytics'!AG$64,raw_resource_build!$C:$C,mainzone)","v":0},{"$f":"SUMIFS(raw_resource_build!$I:$I,raw_resource_build!$E:$E,'Portfolio Analytics'!$C88,raw_resource_build!$A:$A,'Portfolio Analytics'!AH$64,raw_resource_build!$C:$C,mainzone)","v":0},{"$f":"SUMIFS(raw_resource_build!$I:$I,raw_resource_build!$E:$E,'Portfolio Analytics'!$C88,raw_resource_build!$A:$A,'Portfolio Analytics'!AI$64,raw_resource_build!$C:$C,mainzone)","v":60833.56},{"$f":"SUMIFS(raw_resource_build!$I:$I,raw_resource_build!$E:$E,'Portfolio Analytics'!$C88,raw_resource_build!$A:$A,'Portfolio Analytics'!AJ$64,raw_resource_build!$C:$C,mainzone)","v":0},{"$f":"SUMIFS(raw_resource_build!$I:$I,raw_resource_build!$E:$E,'Portfolio Analytics'!$C88,raw_resource_build!$A:$A,'Portfolio Analytics'!AK$64,raw_resource_build!$C:$C,mainzone)","v":0},{"$f":"SUMIFS(raw_resource_build!$I:$I,raw_resource_build!$E:$E,'Portfolio Analytics'!$C88,raw_resource_build!$A:$A,'Portfolio Analytics'!AL$64,raw_resource_build!$C:$C,mainzone)","v":0},{"$f":"SUMIFS(raw_resource_build!$I:$I,raw_resource_build!$E:$E,'Portfolio Analytics'!$C88,raw_resource_build!$A:$A,'Portfolio Analytics'!AM$64,raw_resource_build!$C:$C,mainzone)","v":0},{"$f":"SUMIFS(raw_resource_build!$I:$I,raw_resource_build!$E:$E,'Portfolio Analytics'!$C88,raw_resource_build!$A:$A,'Portfolio Analytics'!AN$64,raw_resource_build!$C:$C,mainzone)","v":0}]
[null,null,{"$f":"Lists!B29","v":"BTM_Li_Battery"},"MW",{"$f":"SUMIFS(raw_resource_build!$I:$I,raw_resource_build!$E:$E,'Portfolio Analytics'!$C89,raw_resource_build!$A:$A,'Portfolio Analytics'!E$64,raw_resource_build!$C:$C,mainzone)","v":0},{"$f":"SUMIFS(raw_resource_build!$I:$I,raw_resource_build!$E:$E,'Portfolio Analytics'!$C89,raw_resource_build!$A:$A,'Portfolio Analytics'!F$64,raw_resource_build!$C:$C,mainzone)","v":0},{"$f":"SUMIFS(raw_resource_build!$I:$I,raw_resource_build!$E:$E,'Portfolio Analytics'!$C89,raw_resource_build!$A:$A,'Portfolio Analytics'!G$64,raw_resource_build!$C:$C,mainzone)","v":0},{"$f":"SUMIFS(raw_resource_build!$I:$I,raw_resource_build!$E:$E,'Portfolio Analytics'!$C89,raw_resource_build!$A:$A,'Portfolio Analytics'!H$64,raw_resource_build!$C:$C,mainzone)","v":0},{"$f":"SUMIFS(raw_resource_build!$I:$I,raw_resource_build!$E:$E,'Portfolio Analytics'!$C89,raw_resource_build!$A:$A,'Portfolio Analytics'!I$64,raw_resource_build!$C:$C,mainzone)","v":0},{"$f":"SUMIFS(raw_resource_build!$I:$I,raw_resource_build!$E:$E,'Portfolio Analytics'!$C89,raw_resource_build!$A:$A,'Portfolio Analytics'!J$64,raw_resource_build!$C:$C,mainzone)","v":92.14},{"$f":"SUMIFS(raw_resource_build!$I:$I,raw_resource_build!$E:$E,'Portfolio Analytics'!$C89,raw_resource_build!$A:$A,'Portfolio Analytics'!K$64,raw_resource_build!$C:$C,mainzone)","v":92.14},{"$f":"SUMIFS(raw_resource_build!$I:$I,raw_resource_build!$E:$E,'Portfolio Analytics'!$C89,raw_resource_build!$A:$A,'Portfolio Analytics'!L$64,raw_resource_build!$C:$C,mainzone)","v":92.14},{"$f":"SUMIFS(raw_resource_build!$I:$I,raw_resource_build!$E:$E,'Portfolio Analytics'!$C89,raw_resource_build!$A:$A,'Portfolio Analytics'!M$64,raw_resource_build!$C:$C,mainzone)","v":92.14},{"$f":"SUMIFS(raw_resource_build!$I:$I,raw_resource_build!$E:$E,'Portfolio Analytics'!$C89,raw_resource_build!$A:$A,'Portfolio Analytics'!N$64,raw_resource_build!$C:$C,mainzone)","v":92.14},{"$f":"SUMIFS(raw_resource_build!$I:$I,raw_resource_build!$E:$E,'Portfolio Analytics'!$C89,raw_resource_build!$A:$A,'Portfolio Analytics'!O$64,raw_resource_build!$C:$C,mainzone)","v":0},{"$f":"SUMIFS(raw_resource_build!$I:$I,raw_resource_build!$E:$E,'Portfolio Analytics'!$C89,raw_resource_build!$A:$A,'Portfolio Analytics'!P$64,raw_resource_build!$C:$C,mainzone)","v":92.14},{"$f":"SUMIFS(raw_resource_build!$I:$I,raw_resource_build!$E:$E,'Portfolio Analytics'!$C89,raw_resource_build!$A:$A,'Portfolio Analytics'!Q$64,raw_resource_build!$C:$C,mainzone)","v":0},{"$f":"SUMIFS(raw_resource_build!$I:$I,raw_resource_build!$E:$E,'Portfolio Analytics'!$C89,raw_resource_build!$A:$A,'Portfolio Analytics'!R$64,raw_resource_build!$C:$C,mainzone)","v":0},{"$f":"SUMIFS(raw_resource_build!$I:$I,raw_resource_build!$E:$E,'Portfolio Analytics'!$C89,raw_resource_build!$A:$A,'Portfolio Analytics'!S$64,raw_resource_build!$C:$C,mainzone)","v":0},{"$f":"SUMIFS(raw_resource_build!$I:$I,raw_resource_build!$E:$E,'Portfolio Analytics'!$C89,raw_resource_build!$A:$A,'Portfolio Analytics'!T$64,raw_resource_build!$C:$C,mainzone)","v":92.14},{"$f":"SUMIFS(raw_resource_build!$I:$I,raw_resource_build!$E:$E,'Portfolio Analytics'!$C89,raw_resource_build!$A:$A,'Portfolio Analytics'!U$64,raw_resource_build!$C:$C,mainzone)","v":0},{"$f":"SUMIFS(raw_resource_build!$I:$I,raw_resource_build!$E:$E,'Portfolio Analytics'!$C89,raw_resource_build!$A:$A,'Portfolio Analytics'!V$64,raw_resource_build!$C:$C,mainzone)","v":0},{"$f":"SUMIFS(raw_resource_build!$I:$I,raw_resource_build!$E:$E,'Portfolio Analytics'!$C89,raw_resource_build!$A:$A,'Portfolio Analytics'!W$64,raw_resource_build!$C:$C,mainzone)","v":0},{"$f":"SUMIFS(raw_resource_build!$I:$I,raw_resource_build!$E:$E,'Portfolio Analytics'!$C89,raw_resource_build!$A:$A,'Portfolio Analytics'!X$64,raw_resource_build!$C:$C,mainzone)","v":0},{"$f":"SUMIFS(raw_resource_build!$I:$I,raw_resource_build!$E:$E,'Portfolio Analytics'!$C89,raw_resource_build!$A:$A,'Portfolio Analytics'!Y$64,raw_resource_build!$C:$C,mainzone)","v":0},{"$f":"SUMIFS(raw_resource_build!$I:$I,raw_resource_build!$E:$E,'Portfolio Analytics'!$C89,raw_resource_build!$A:$A,'Portfolio Analytics'!Z$64,raw_resource_build!$C:$C,mainzone)","v":0},{"$f":"SUMIFS(raw_resource_build!$I:$I,raw_resource_build!$E:$E,'Portfolio Analytics'!$C89,raw_resource_build!$A:$A,'Portfolio Analytics'!AA$64,raw_resource_build!$C:$C,mainzone)","v":0},{"$f":"SUMIFS(raw_resource_build!$I:$I,raw_resource_build!$E:$E,'Portfolio Analytics'!$C89,raw_resource_build!$A:$A,'Portfolio Analytics'!AB$64,raw_resource_build!$C:$C,mainzone)","v":0},{"$f":"SUMIFS(raw_resource_build!$I:$I,raw_resource_build!$E:$E,'Portfolio Analytics'!$C89,raw_resource_build!$A:$A,'Portfolio Analytics'!AC$64,raw_resource_build!$C:$C,mainzone)","v":0},{"$f":"SUMIFS(raw_resource_build!$I:$I,raw_resource_build!$E:$E,'Portfolio Analytics'!$C89,raw_resource_build!$A:$A,'Portfolio Analytics'!AD$64,raw_resource_build!$C:$C,mainzone)","v":0},{"$f":"SUMIFS(raw_resource_build!$I:$I,raw_resource_build!$E:$E,'Portfolio Analytics'!$C89,raw_resource_build!$A:$A,'Portfolio Analytics'!AE$64,raw_resource_build!$C:$C,mainzone)","v":0},{"$f":"SUMIFS(raw_resource_build!$I:$I,raw_resource_build!$E:$E,'Portfolio Analytics'!$C89,raw_resource_build!$A:$A,'Portfolio Analytics'!AF$64,raw_resource_build!$C:$C,mainzone)","v":0},{"$f":"SUMIFS(raw_resource_build!$I:$I,raw_resource_build!$E:$E,'Portfolio Analytics'!$C89,raw_resource_build!$A:$A,'Portfolio Analytics'!AG$64,raw_resource_build!$C:$C,mainzone)","v":0},{"$f":"SUMIFS(raw_resource_build!$I:$I,raw_resource_build!$E:$E,'Portfolio Analytics'!$C89,raw_resource_build!$A:$A,'Portfolio Analytics'!AH$64,raw_resource_build!$C:$C,mainzone)","v":0},{"$f":"SUMIFS(raw_resource_build!$I:$I,raw_resource_build!$E:$E,'Portfolio Analytics'!$C89,raw_resource_build!$A:$A,'Portfolio Analytics'!AI$64,raw_resource_build!$C:$C,mainzone)","v":92.14},{"$f":"SUMIFS(raw_resource_build!$I:$I,raw_resource_build!$E:$E,'Portfolio Analytics'!$C89,raw_resource_build!$A:$A,'Portfolio Analytics'!AJ$64,raw_resource_build!$C:$C,mainzone)","v":0},{"$f":"SUMIFS(raw_resource_build!$I:$I,raw_resource_build!$E:$E,'Portfolio Analytics'!$C89,raw_resource_build!$A:$A,'Portfolio Analytics'!AK$64,raw_resource_build!$C:$C,mainzone)","v":0},{"$f":"SUMIFS(raw_resource_build!$I:$I,raw_resource_build!$E:$E,'Portfolio Analytics'!$C89,raw_resource_build!$A:$A,'Portfolio Analytics'!AL$64,raw_resource_build!$C:$C,mainzone)","v":0},{"$f":"SUMIFS(raw_resource_build!$I:$I,raw_resource_build!$E:$E,'Portfolio Analytics'!$C89,raw_resource_build!$A:$A,'Portfolio Analytics'!AM$64,raw_resource_build!$C:$C,mainzone)","v":0},{"$f":"SUMIFS(raw_resource_build!$I:$I,raw_resource_build!$E:$E,'Portfolio Analytics'!$C89,raw_resource_build!$A:$A,'Portfolio Analytics'!AN$64,raw_resource_build!$C:$C,mainzone)","v":0}]
[null,null,{"$f":"Lists!B30","v":"Flow_Battery"},"MW",null,null,null,null,null,{"$f":"SUMIFS(raw_resource_build!$I:$I,raw_resource_build!$E:$E,'Portfolio Analytics'!$C90,raw_resource_build!$A:$A,'Portfolio Analytics'!J$64,raw_resource_build!$C:$C,mainzone)","v":0},{"$f":"SUMIFS(raw_resource_build!$I:$I,raw_resource_build!$E:$E,'Portfolio Analytics'!$C90,raw_resource_build!$A:$A,'Portfolio Analytics'!K$64,raw_resource_build!$C:$C,mainzone)","v":0},{"$f":"SUMIFS(raw_resource_build!$I:$I,raw_resource_build!$E:$E,'Portfolio Analytics'!$C90,raw_resource_build!$A:$A,'Portfolio Analytics'!L$64,raw_resource_build!$C:$C,mainzone)","v":0},{"$f":"SUMIFS(raw_resource_build!$I:$I,raw_resource_build!$E:$E,'Portfolio Analytics'!$C90,raw_resource_build!$A:$A,'Portfolio Analytics'!M$64,raw_resource_build!$C:$C,mainzone)","v":0},{"$f":"SUMIFS(raw_resource_build!$I:$I,raw_resource_build!$E:$E,'Portfolio Analytics'!$C90,raw_resource_build!$A:$A,'Portfolio Analytics'!N$64,raw_resource_build!$C:$C,mainzone)","v":0},{"$f":"SUMIFS(raw_resource_build!$I:$I,raw_resource_build!$E:$E,'Portfolio Analytics'!$C90,raw_resource_build!$A:$A,'Portfolio Analytics'!O$64,raw_resource_build!$C:$C,mainzone)","v":0},{"$f":"SUMIFS(raw_resource_build!$I:$I,raw_resource_build!$E:$E,'Portfolio Analytics'!$C90,raw_resource_build!$A:$A,'Portfolio Analytics'!P$64,raw_resource_build!$C:$C,mainzone)","v":0},{"$f":"SUMIFS(raw_resource_build!$I:$I,raw_resource_build!$E:$E,'Portfolio Analytics'!$C90,raw_resource_build!$A:$A,'Portfolio Analytics'!Q$64,raw_resource_build!$C:$C,mainzone)","v":0},{"$f":"SUMIFS(raw_resource_build!$I:$I,raw_resource_build!$E:$E,'Portfolio Analytics'!$C90,raw_resource_build!$A:$A,'Portfolio Analytics'!R$64,raw_resource_build!$C:$C,mainzone)","v":0},{"$f":"SUMIFS(raw_resource_build!$I:$I,raw_resource_build!$E:$E,'Portfolio Analytics'!$C90,raw_resource_build!$A:$A,'Portfolio Analytics'!S$64,raw_resource_build!$C:$C,mainzone)","v":0},{"$f":"SUMIFS(raw_resource_build!$I:$I,raw_resource_build!$E:$E,'Portfolio Analytics'!$C90,raw_resource_build!$A:$A,'Portfolio Analytics'!T$64,raw_resource_build!$C:$C,mainzone)","v":0},{"$f":"SUMIFS(raw_resource_build!$I:$I,raw_resource_build!$E:$E,'Portfolio Analytics'!$C90,raw_resource_build!$A:$A,'Portfolio Analytics'!U$64,raw_resource_build!$C:$C,mainzone)","v":0},{"$f":"SUMIFS(raw_resource_build!$I:$I,raw_resource_build!$E:$E,'Portfolio Analytics'!$C90,raw_resource_build!$A:$A,'Portfolio Analytics'!V$64,raw_resource_build!$C:$C,mainzone)","v":0},{"$f":"SUMIFS(raw_resource_build!$I:$I,raw_resource_build!$E:$E,'Portfolio Analytics'!$C90,raw_resource_build!$A:$A,'Portfolio Analytics'!W$64,raw_resource_build!$C:$C,mainzone)","v":0},{"$f":"SUMIFS(raw_resource_build!$I:$I,raw_resource_build!$E:$E,'Portfolio Analytics'!$C90,raw_resource_build!$A:$A,'Portfolio Analytics'!X$64,raw_resource_build!$C:$C,mainzone)","v":0},{"$f":"SUMIFS(raw_resource_build!$I:$I,raw_resource_build!$E:$E,'Portfolio Analytics'!$C90,raw_resource_build!$A:$A,'Portfolio Analytics'!Y$64,raw_resource_build!$C:$C,mainzone)","v":0},{"$f":"SUMIFS(raw_resource_build!$I:$I,raw_resource_build!$E:$E,'Portfolio Analytics'!$C90,raw_resource_build!$A:$A,'Portfolio Analytics'!Z$64,raw_resource_build!$C:$C,mainzone)","v":0},{"$f":"SUMIFS(raw_resource_build!$I:$I,raw_resource_build!$E:$E,'Portfolio Analytics'!$C90,raw_resource_build!$A:$A,'Portfolio Analytics'!AA$64,raw_resource_build!$C:$C,mainzone)","v":0},{"$f":"SUMIFS(raw_resource_build!$I:$I,raw_resource_build!$E:$E,'Portfolio Analytics'!$C90,raw_resource_build!$A:$A,'Portfolio Analytics'!AB$64,raw_resource_build!$C:$C,mainzone)","v":0},{"$f":"SUMIFS(raw_resource_build!$I:$I,raw_resource_build!$E:$E,'Portfolio Analytics'!$C90,raw_resource_build!$A:$A,'Portfolio Analytics'!AC$64,raw_resource_build!$C:$C,mainzone)","v":0},{"$f":"SUMIFS(raw_resource_build!$I:$I,raw_resource_build!$E:$E,'Portfolio Analytics'!$C90,raw_resource_build!$A:$A,'Portfolio Analytics'!AD$64,raw_resource_build!$C:$C,mainzone)","v":0},{"$f":"SUMIFS(raw_resource_build!$I:$I,raw_resource_build!$E:$E,'Portfolio Analytics'!$C90,raw_resource_build!$A:$A,'Portfolio Analytics'!AE$64,raw_resource_build!$C:$C,mainzone)","v":0},{"$f":"SUMIFS(raw_resource_build!$I:$I,raw_resource_build!$E:$E,'Portfolio Analytics'!$C90,raw_resource_build!$A:$A,'Portfolio Analytics'!AF$64,raw_resource_build!$C:$C,mainzone)","v":0},{"$f":"SUMIFS(raw_resource_build!$I:$I,raw_resource_build!$E:$E,'Portfolio Analytics'!$C90,raw_resource_build!$A:$A,'Portfolio Analytics'!AG$64,raw_resource_build!$C:$C,mainzone)","v":0},{"$f":"SUMIFS(raw_resource_build!$I:$I,raw_resource_build!$E:$E,'Portfolio Analytics'!$C90,raw_resource_build!$A:$A,'Portfolio Analytics'!AH$64,raw_resource_build!$C:$C,mainzone)","v":0},{"$f":"SUMIFS(raw_resource_build!$I:$I,raw_resource_build!$E:$E,'Portfolio Analytics'!$C90,raw_resource_build!$A:$A,'Portfolio Analytics'!AI$64,raw_resource_build!$C:$C,mainzone)","v":0},{"$f":"SUMIFS(raw_resource_build!$I:$I,raw_resource_build!$E:$E,'Portfolio Analytics'!$C90,raw_resource_build!$A:$A,'Portfolio Analytics'!AJ$64,raw_resource_build!$C:$C,mainzone)","v":0},{"$f":"SUMIFS(raw_resource_build!$I:$I,raw_resource_build!$E:$E,'Portfolio Analytics'!$C90,raw_resource_build!$A:$A,'Portfolio Analytics'!AK$64,raw_resource_build!$C:$C,mainzone)","v":0},{"$f":"SUMIFS(raw_resource_build!$I:$I,raw_resource_build!$E:$E,'Portfolio Analytics'!$C90,raw_resource_build!$A:$A,'Portfolio Analytics'!AL$64,raw_resource_build!$C:$C,mainzone)","v":0},{"$f":"SUMIFS(raw_resource_build!$I:$I,raw_resource_build!$E:$E,'Portfolio Analytics'!$C90,raw_resource_build!$A:$A,'Portfolio Analytics'!AM$64,raw_resource_build!$C:$C,mainzone)","v":0},{"$f":"SUMIFS(raw_resource_build!$I:$I,raw_resource_build!$E:$E,'Portfolio Analytics'!$C90,raw_resource_build!$A:$A,'Portfolio Analytics'!AN$64,raw_resource_build!$C:$C,mainzone)","v":0}]
[null,null,{"$f":"Lists!B31","v":"Hydrogen_Electrolysis"},"MW",{"$f":"SUMIFS(raw_resource_build!$O:$O,raw_resource_build!$E:$E,'Portfolio Analytics'!$C91,raw_resource_build!$A:$A,'Portfolio Analytics'!E$64,raw_resource_build!$C:$C,mainzone)","v":0},{"$f":"SUMIFS(raw_resource_build!$O:$O,raw_resource_build!$E:$E,'Portfolio Analytics'!$C91,raw_resource_build!$A:$A,'Portfolio Analytics'!F$64,raw_resource_build!$C:$C,mainzone)","v":0},{"$f":"SUMIFS(raw_resource_build!$O:$O,raw_resource_build!$E:$E,'Portfolio Analytics'!$C91,raw_resource_build!$A:$A,'Portfolio Analytics'!G$64,raw_resource_build!$C:$C,mainzone)","v":0},{"$f":"SUMIFS(raw_resource_build!$O:$O,raw_resource_build!$E:$E,'Portfolio Analytics'!$C91,raw_resource_build!$A:$A,'Portfolio Analytics'!H$64,raw_resource_build!$C:$C,mainzone)","v":0},{"$f":"SUMIFS(raw_resource_build!$O:$O,raw_resource_build!$E:$E,'Portfolio Analytics'!$C91,raw_resource_build!$A:$A,'Portfolio Analytics'!I$64,raw_resource_build!$C:$C,mainzone)","v":0},{"$f":"SUMIFS(raw_resource_build!$O:$O,raw_resource_build!$E:$E,'Portfolio Analytics'!$C91,raw_resource_build!$A:$A,'Portfolio Analytics'!J$64,raw_resource_build!$C:$C,mainzone)","v":0},{"$f":"SUMIFS(raw_resource_build!$O:$O,raw_resource_build!$E:$E,'Portfolio Analytics'!$C91,raw_resource_build!$A:$A,'Portfolio Analytics'!K$64,raw_resource_build!$C:$C,mainzone)","v":0},{"$f":"SUMIFS(raw_resource_build!$O:$O,raw_resource_build!$E:$E,'Portfolio Analytics'!$C91,raw_resource_build!$A:$A,'Portfolio Analytics'!L$64,raw_resource_build!$C:$C,mainzone)","v":0},{"$f":"SUMIFS(raw_resource_build!$O:$O,raw_resource_build!$E:$E,'Portfolio Analytics'!$C91,raw_resource_build!$A:$A,'Portfolio Analytics'!M$64,raw_resource_build!$C:$C,mainzone)","v":0},{"$f":"SUMIFS(raw_resource_build!$O:$O,raw_resource_build!$E:$E,'Portfolio Analytics'!$C91,raw_resource_build!$A:$A,'Portfolio Analytics'!N$64,raw_resource_build!$C:$C,mainzone)","v":0},{"$f":"SUMIFS(raw_resource_build!$O:$O,raw_resource_build!$E:$E,'Portfolio Analytics'!$C91,raw_resource_build!$A:$A,'Portfolio Analytics'!O$64,raw_resource_build!$C:$C,mainzone)","v":0},{"$f":"SUMIFS(raw_resource_build!$O:$O,raw_resource_build!$E:$E,'Portfolio Analytics'!$C91,raw_resource_build!$A:$A,'Portfolio Analytics'!P$64,raw_resource_build!$C:$C,mainzone)","v":0},{"$f":"SUMIFS(raw_resource_build!$O:$O,raw_resource_build!$E:$E,'Portfolio Analytics'!$C91,raw_resource_build!$A:$A,'Portfolio Analytics'!Q$64,raw_resource_build!$C:$C,mainzone)","v":0},{"$f":"SUMIFS(raw_resource_build!$O:$O,raw_resource_build!$E:$E,'Portfolio Analytics'!$C91,raw_resource_build!$A:$A,'Portfolio Analytics'!R$64,raw_resource_build!$C:$C,mainzone)","v":0},{"$f":"SUMIFS(raw_resource_build!$O:$O,raw_resource_build!$E:$E,'Portfolio Analytics'!$C91,raw_resource_build!$A:$A,'Portfolio Analytics'!S$64,raw_resource_build!$C:$C,mainzone)","v":0},{"$f":"SUMIFS(raw_resource_build!$O:$O,raw_resource_build!$E:$E,'Portfolio Analytics'!$C91,raw_resource_build!$A:$A,'Portfolio Analytics'!T$64,raw_resource_build!$C:$C,mainzone)","v":0},{"$f":"SUMIFS(raw_resource_build!$O:$O,raw_resource_build!$E:$E,'Portfolio Analytics'!$C91,raw_resource_build!$A:$A,'Portfolio Analytics'!U$64,raw_resource_build!$C:$C,mainzone)","v":0},{"$f":"SUMIFS(raw_resource_build!$O:$O,raw_resource_build!$E:$E,'Portfolio Analytics'!$C91,raw_resource_build!$A:$A,'Portfolio Analytics'!V$64,raw_resource_build!$C:$C,mainzone)","v":0},{"$f":"SUMIFS(raw_resource_build!$O:$O,raw_resource_build!$E:$E,'Portfolio Analytics'!$C91,raw_resource_build!$A:$A,'Portfolio Analytics'!W$64,raw_resource_build!$C:$C,mainzone)","v":0},{"$f":"SUMIFS(raw_resource_build!$O:$O,raw_resource_build!$E:$E,'Portfolio Analytics'!$C91,raw_resource_build!$A:$A,'Portfolio Analytics'!X$64,raw_resource_build!$C:$C,mainzone)","v":0},{"$f":"SUMIFS(raw_resource_build!$O:$O,raw_resource_build!$E:$E,'Portfolio Analytics'!$C91,raw_resource_build!$A:$A,'Portfolio Analytics'!Y$64,raw_resource_build!$C:$C,mainzone)","v":0},{"$f":"SUMIFS(raw_resource_build!$O:$O,raw_resource_build!$E:$E,'Portfolio Analytics'!$C91,raw_resource_build!$A:$A,'Portfolio Analytics'!Z$64,raw_resource_build!$C:$C,mainzone)","v":0},{"$f":"SUMIFS(raw_resource_build!$O:$O,raw_resource_build!$E:$E,'Portfolio Analytics'!$C91,raw_resource_build!$A:$A,'Portfolio Analytics'!AA$64,raw_resource_build!$C:$C,mainzone)","v":0},{"$f":"SUMIFS(raw_resource_build!$O:$O,raw_resource_build!$E:$E,'Portfolio Analytics'!$C91,raw_resource_build!$A:$A,'Portfolio Analytics'!AB$64,raw_resource_build!$C:$C,mainzone)","v":0},{"$f":"SUMIFS(raw_resource_build!$O:$O,raw_resource_build!$E:$E,'Portfolio Analytics'!$C91,raw_resource_build!$A:$A,'Portfolio Analytics'!AC$64,raw_resource_build!$C:$C,mainzone)","v":0},{"$f":"SUMIFS(raw_resource_build!$O:$O,raw_resource_build!$E:$E,'Portfolio Analytics'!$C91,raw_resource_build!$A:$A,'Portfolio Analytics'!AD$64,raw_resource_build!$C:$C,mainzone)","v":0},{"$f":"SUMIFS(raw_resource_build!$O:$O,raw_resource_build!$E:$E,'Portfolio Analytics'!$C91,raw_resource_build!$A:$A,'Portfolio Analytics'!AE$64,raw_resource_build!$C:$C,mainzone)","v":0},{"$f":"SUMIFS(raw_resource_build!$O:$O,raw_resource_build!$E:$E,'Portfolio Analytics'!$C91,raw_resource_build!$A:$A,'Portfolio Analytics'!AF$64,raw_resource_build!$C:$C,mainzone)","v":0},{"$f":"SUMIFS(raw_resource_build!$O:$O,raw_resource_build!$E:$E,'Portfolio Analytics'!$C91,raw_resource_build!$A:$A,'Portfolio Analytics'!AG$64,raw_resource_build!$C:$C,mainzone)","v":0},{"$f":"SUMIFS(raw_resource_build!$O:$O,raw_resource_build!$E:$E,'Portfolio Analytics'!$C91,raw_resource_build!$A:$A,'Portfolio Analytics'!AH$64,raw_resource_build!$C:$C,mainzone)","v":0},{"$f":"SUMIFS(raw_resource_build!$O:$O,raw_resource_build!$E:$E,'Portfolio Analytics'!$C91,raw_resource_build!$A:$A,'Portfolio Analytics'!AI$64,raw_resource_build!$C:$C,mainzone)","v":450.41},{"$f":"SUMIFS(raw_resource_build!$O:$O,raw_resource_build!$E:$E,'Portfolio Analytics'!$C91,raw_resource_build!$A:$A,'Portfolio Analytics'!AJ$64,raw_resource_build!$C:$C,mainzone)","v":0},{"$f":"SUMIFS(raw_resource_build!$O:$O,raw_resource_build!$E:$E,'Portfolio Analytics'!$C91,raw_resource_build!$A:$A,'Portfolio Analytics'!AK$64,raw_resource_build!$C:$C,mainzone)","v":0},{"$f":"SUMIFS(raw_resource_build!$O:$O,raw_resource_build!$E:$E,'Portfolio Analytics'!$C91,raw_resource_build!$A:$A,'Portfolio Analytics'!AL$64,raw_resource_build!$C:$C,mainzone)","v":0},{"$f":"SUMIFS(raw_resource_build!$O:$O,raw_resource_build!$E:$E,'Portfolio Analytics'!$C91,raw_resource_build!$A:$A,'Portfolio Analytics'!AM$64,raw_resource_build!$C:$C,mainzone)","v":0},{"$f":"SUMIFS(raw_resource_build!$O:$O,raw_resource_build!$E:$E,'Portfolio Analytics'!$C91,raw_resource_build!$A:$A,'Portfolio Analytics'!AN$64,raw_resource_build!$C:$C,mainzone)","v":0}]
[null,null,{"$f":"Lists!B32","v":"Flexible_Load"},"MW",{"$f":"SUMIFS(raw_resource_build!$N:$N,raw_resource_build!$E:$E,'Portfolio Analytics'!$C92,raw_resource_build!$A:$A,'Portfolio Analytics'!E$64,raw_resource_build!$C:$C,mainzone)","v":0},{"$f":"SUMIFS(raw_resource_build!$N:$N,raw_resource_build!$E:$E,'Portfolio Analytics'!$C92,raw_resource_build!$A:$A,'Portfolio Analytics'!F$64,raw_resource_build!$C:$C,mainzone)","v":0},{"$f":"SUMIFS(raw_resource_build!$N:$N,raw_resource_build!$E:$E,'Portfolio Analytics'!$C92,raw_resource_build!$A:$A,'Portfolio Analytics'!G$64,raw_resource_build!$C:$C,mainzone)","v":0},{"$f":"SUMIFS(raw_resource_build!$N:$N,raw_resource_build!$E:$E,'Portfolio Analytics'!$C92,raw_resource_build!$A:$A,'Portfolio Analytics'!H$64,raw_resource_build!$C:$C,mainzone)","v":0},{"$f":"SUMIFS(raw_resource_build!$N:$N,raw_resource_build!$E:$E,'Portfolio Analytics'!$C92,raw_resource_build!$A:$A,'Portfolio Analytics'!I$64,raw_resource_build!$C:$C,mainzone)","v":0},{"$f":"SUMIFS(raw_resource_build!$N:$N,raw_resource_build!$E:$E,'Portfolio Analytics'!$C92,raw_resource_build!$A:$A,'Portfolio Analytics'!J$64,raw_resource_build!$C:$C,mainzone)","v":0},{"$f":"SUMIFS(raw_resource_build!$N:$N,raw_resource_build!$E:$E,'Portfolio Analytics'!$C92,raw_resource_build!$A:$A,'Portfolio Analytics'!K$64,raw_resource_build!$C:$C,mainzone)","v":0},{"$f":"SUMIFS(raw_resource_build!$N:$N,raw_resource_build!$E:$E,'Portfolio Analytics'!$C92,raw_resource_build!$A:$A,'Portfolio Analytics'!L$64,raw_resource_build!$C:$C,mainzone)","v":0},{"$f":"SUMIFS(raw_resource_build!$N:$N,raw_resource_build!$E:$E,'Portfolio Analytics'!$C92,raw_resource_build!$A:$A,'Portfolio Analytics'!M$64,raw_resource_build!$C:$C,mainzone)","v":0},{"$f":"SUMIFS(raw_resource_build!$N:$N,raw_resource_build!$E:$E,'Portfolio Analytics'!$C92,raw_resource_build!$A:$A,'Portfolio Analytics'!N$64,raw_resource_build!$C:$C,mainzone)","v":0},{"$f":"SUMIFS(raw_resource_build!$N:$N,raw_resource_build!$E:$E,'Portfolio Analytics'!$C92,raw_resource_build!$A:$A,'Portfolio Analytics'!O$64,raw_resource_build!$C:$C,mainzone)","v":0},{"$f":"SUMIFS(raw_resource_build!$N:$N,raw_resource_build!$E:$E,'Portfolio Analytics'!$C92,raw_resource_build!$A:$A,'Portfolio Analytics'!P$64,raw_resource_build!$C:$C,mainzone)","v":0},{"$f":"SUMIFS(raw_resource_build!$N:$N,raw_resource_build!$E:$E,'Portfolio Analytics'!$C92,raw_resource_build!$A:$A,'Portfolio Analytics'!Q$64,raw_resource_build!$C:$C,mainzone)","v":0},{"$f":"SUMIFS(raw_resource_build!$N:$N,raw_resource_build!$E:$E,'Portfolio Analytics'!$C92,raw_resource_build!$A:$A,'Portfolio Analytics'!R$64,raw_resource_build!$C:$C,mainzone)","v":0},{"$f":"SUMIFS(raw_resource_build!$N:$N,raw_resource_build!$E:$E,'Portfolio Analytics'!$C92,raw_resource_build!$A:$A,'Portfolio Analytics'!S$64,raw_resource_build!$C:$C,mainzone)","v":0},{"$f":"SUMIFS(raw_resource_build!$N:$N,raw_resource_build!$E:$E,'Portfolio Analytics'!$C92,raw_resource_build!$A:$A,'Portfolio Analytics'!T$64,raw_resource_build!$C:$C,mainzone)","v":0},{"$f":"SUMIFS(raw_resource_build!$N:$N,raw_resource_build!$E:$E,'Portfolio Analytics'!$C92,raw_resource_build!$A:$A,'Portfolio Analytics'!U$64,raw_resource_build!$C:$C,mainzone)","v":0},{"$f":"SUMIFS(raw_resource_build!$N:$N,raw_resource_build!$E:$E,'Portfolio Analytics'!$C92,raw_resource_build!$A:$A,'Portfolio Analytics'!V$64,raw_resource_build!$C:$C,mainzone)","v":0},{"$f":"SUMIFS(raw_resource_build!$N:$N,raw_resource_build!$E:$E,'Portfolio Analytics'!$C92,raw_resource_build!$A:$A,'Portfolio Analytics'!W$64,raw_resource_build!$C:$C,mainzone)","v":0},{"$f":"SUMIFS(raw_resource_build!$N:$N,raw_resource_build!$E:$E,'Portfolio Analytics'!$C92,raw_resource_build!$A:$A,'Portfolio Analytics'!X$64,raw_resource_build!$C:$C,mainzone)","v":0},{"$f":"SUMIFS(raw_resource_build!$N:$N,raw_resource_build!$E:$E,'Portfolio Analytics'!$C92,raw_resource_build!$A:$A,'Portfolio Analytics'!Y$64,raw_resource_build!$C:$C,mainzone)","v":0},{"$f":"SUMIFS(raw_resource_build!$N:$N,raw_resource_build!$E:$E,'Portfolio Analytics'!$C92,raw_resource_build!$A:$A,'Portfolio Analytics'!Z$64,raw_resource_build!$C:$C,mainzone)","v":0},{"$f":"SUMIFS(raw_resource_build!$N:$N,raw_resource_build!$E:$E,'Portfolio Analytics'!$C92,raw_resource_build!$A:$A,'Portfolio Analytics'!AA$64,raw_resource_build!$C:$C,mainzone)","v":0},{"$f":"SUMIFS(raw_resource_build!$N:$N,raw_resource_build!$E:$E,'Portfolio Analytics'!$C92,raw_resource_build!$A:$A,'Portfolio Analytics'!AB$64,raw_resource_build!$C:$C,mainzone)","v":0},{"$f":"SUMIFS(raw_resource_build!$N:$N,raw_resource_build!$E:$E,'Portfolio Analytics'!$C92,raw_resource_build!$A:$A,'Portfolio Analytics'!AC$64,raw_resource_build!$C:$C,mainzone)","v":0},{"$f":"SUMIFS(raw_resource_build!$N:$N,raw_resource_build!$E:$E,'Portfolio Analytics'!$C92,raw_resource_build!$A:$A,'Portfolio Analytics'!AD$64,raw_resource_build!$C:$C,mainzone)","v":0},{"$f":"SUMIFS(raw_resource_build!$N:$N,raw_resource_build!$E:$E,'Portfolio Analytics'!$C92,raw_resource_build!$A:$A,'Portfolio Analytics'!AE$64,raw_resource_build!$C:$C,mainzone)","v":0},{"$f":"SUMIFS(raw_resource_build!$N:$N,raw_resource_build!$E:$E,'Portfolio Analytics'!$C92,raw_resource_build!$A:$A,'Portfolio Analytics'!AF$64,raw_resource_build!$C:$C,mainzone)","v":0},{"$f":"SUMIFS(raw_resource_build!$N:$N,raw_resource_build!$E:$E,'Portfolio Analytics'!$C92,raw_resource_build!$A:$A,'Portfolio Analytics'!AG$64,raw_resource_build!$C:$C,mainzone)","v":0},{"$f":"SUMIFS(raw_resource_build!$N:$N,raw_resource_build!$E:$E,'Portfolio Analytics'!$C92,raw_resource_build!$A:$A,'Portfolio Analytics'!AH$64,raw_resource_build!$C:$C,mainzone)","v":0},{"$f":"SUMIFS(raw_resource_build!$N:$N,raw_resource_build!$E:$E,'Portfolio Analytics'!$C92,raw_resource_build!$A:$A,'Portfolio Analytics'!AI$64,raw_resource_build!$C:$C,mainzone)","v":0},{"$f":"SUMIFS(raw_resource_build!$N:$N,raw_resource_build!$E:$E,'Portfolio Analytics'!$C92,raw_resource_build!$A:$A,'Portfolio Analytics'!AJ$64,raw_resource_build!$C:$C,mainzone)","v":0},{"$f":"SUMIFS(raw_resource_build!$N:$N,raw_resource_build!$E:$E,'Portfolio Analytics'!$C92,raw_resource_build!$A:$A,'Portfolio Analytics'!AK$64,raw_resource_build!$C:$C,mainzone)","v":0},{"$f":"SUMIFS(raw_resource_build!$N:$N,raw_resource_build!$E:$E,'Portfolio Analytics'!$C92,raw_resource_build!$A:$A,'Portfolio Analytics'!AL$64,raw_resource_build!$C:$C,mainzone)","v":0},{"$f":"SUMIFS(raw_resource_build!$N:$N,raw_resource_build!$E:$E,'Portfolio Analytics'!$C92,raw_resource_build!$A:$A,'Portfolio Analytics'!AM$64,raw_resource_build!$C:$C,mainzone)","v":0},{"$f":"SUMIFS(raw_resource_build!$N:$N,raw_resource_build!$E:$E,'Portfolio Analytics'!$C92,raw_resource_build!$A:$A,'Portfolio Analytics'!AN$64,raw_resource_build!$C:$C,mainzone)","v":0}]
[]
[]
[null,"Selected Resources by Technology"]
[]
[null,null,"Technology","Unit",2015,{"$f":"E97+1","v":2016},2017,2018,2019,2020,2021,2022,2023,2024,2025,2026,2027,2028,2029,2030,{"$f":"T97+1","v":2031},2032,2033,2034,2035,2036,2037,2038,2039,2040,2041,2042,2043,2044,2045,2046,2047,2048,2049,2050]
[null,null,{"$f":"C65","v":"CAISO_ST"},"MW",{"$f":"SUMIFS(raw_resource_build!$H:$H,raw_resource_build!$E:$E,$C98,raw_resource_build!$A:$A,E$97,raw_resource_build!$C:$C,mainzone)","v":0},{"$f":"SUMIFS(raw_resource_build!$H:$H,raw_resource_build!$E:$E,$C98,raw_resource_build!$A:$A,F$97,raw_resource_build!$C:$C,mainzone)","v":0},{"$f":"SUMIFS(raw_resource_build!$H:$H,raw_resource_build!$E:$E,$C98,raw_resource_build!$A:$A,G$97,raw_resource_build!$C:$C,mainzone)","v":0},{"$f":"SUMIFS(raw_resource_build!$H:$H,raw_resource_build!$E:$E,$C98,raw_resource_build!$A:$A,H$97,raw_resource_build!$C:$C,mainzone)","v":0},{"$f":"SUMIFS(raw_resource_build!$H:$H,raw_resource_build!$E:$E,$C98,raw_resource_build!$A:$A,I$97,raw_resource_build!$C:$C,mainzone)","v":0},{"$f":"SUMIFS(raw_resource_build!$H:$H,raw_resource_build!$E:$E,$C98,raw_resource_build!$A:$A,J$97,raw_resource_build!$C:$C,mainzone)","v":0},{"$f":"SUMIFS(raw_resource_build!$H:$H,raw_resource_build!$E:$E,$C98,raw_resource_build!$A:$A,K$97,raw_resource_build!$C:$C,mainzone)","v":0},{"$f":"SUMIFS(raw_resource_build!$H:$H,raw_resource_build!$E:$E,$C98,raw_resource_build!$A:$A,L$97,raw_resource_build!$C:$C,mainzone)","v":0},{"$f":"SUMIFS(raw_resource_build!$H:$H,raw_resource_build!$E:$E,$C98,raw_resource_build!$A:$A,M$97,raw_resource_build!$C:$C,mainzone)","v":0},{"$f":"SUMIFS(raw_resource_build!$H:$H,raw_resource_build!$E:$E,$C98,raw_resource_build!$A:$A,N$97,raw_resource_build!$C:$C,mainzone)","v":0},{"$f":"SUMIFS(raw_resource_build!$H:$H,raw_resource_build!$E:$E,$C98,raw_resource_build!$A:$A,O$97,raw_resource_build!$C:$C,mainzone)","v":0},{"$f":"SUMIFS(raw_resource_build!$H:$H,raw_resource_build!$E:$E,$C98,raw_resource_build!$A:$A,P$97,raw_resource_build!$C:$C,mainzone)","v":0},{"$f":"SUMIFS(raw_resource_build!$H:$H,raw_resource_build!$E:$E,$C98,raw_resource_build!$A:$A,Q$97,raw_resource_build!$C:$C,mainzone)","v":0},{"$f":"SUMIFS(raw_resource_build!$H:$H,raw_resource_build!$E:$E,$C98,raw_resource_build!$A:$A,R$97,raw_resource_build!$C:$C,mainzone)","v":0},{"$f":"SUMIFS(raw_resource_build!$H:$H,raw_resource_build!$E:$E,$C98,raw_resource_build!$A:$A,S$97,raw_resource_build!$C:$C,mainzone)","v":0},{"$f":"SUMIFS(raw_resource_build!$H:$H,raw_resource_build!$E:$E,$C98,raw_resource_build!$A:$A,T$97,raw_resource_build!$C:$C,mainzone)","v":0},{"$f":"SUMIFS(raw_resource_build!$H:$H,raw_resource_build!$E:$E,$C98,raw_resource_build!$A:$A,U$97,raw_resource_build!$C:$C,mainzone)","v":0},{"$f":"SUMIFS(raw_resource_build!$H:$H,raw_resource_build!$E:$E,$C98,raw_resource_build!$A:$A,V$97,raw_resource_build!$C:$C,mainzone)","v":0},{"$f":"SUMIFS(raw_resource_build!$H:$H,raw_resource_build!$E:$E,$C98,raw_resource_build!$A:$A,W$97,raw_resource_build!$C:$C,mainzone)","v":0},{"$f":"SUMIFS(raw_resource_build!$H:$H,raw_resource_build!$E:$E,$C98,raw_resource_build!$A:$A,X$97,raw_resource_build!$C:$C,mainzone)","v":0},{"$f":"SUMIFS(raw_resource_build!$H:$H,raw_resource_build!$E:$E,$C98,raw_resource_build!$A:$A,Y$97,raw_resource_build!$C:$C,mainzone)","v":0},{"$f":"SUMIFS(raw_resource_build!$H:$H,raw_resource_build!$E:$E,$C98,raw_resource_build!$A:$A,Z$97,raw_resource_build!$C:$C,mainzone)","v":0},{"$f":"SUMIFS(raw_resource_build!$H:$H,raw_resource_build!$E:$E,$C98,raw_resource_build!$A:$A,AA$97,raw_resource_build!$C:$C,mainzone)","v":0},{"$f":"SUMIFS(raw_resource_build!$H:$H,raw_resource_build!$E:$E,$C98,raw_resource_build!$A:$A,AB$97,raw_resource_build!$C:$C,mainzone)","v":0},{"$f":"SUMIFS(raw_resource_build!$H:$H,raw_resource_build!$E:$E,$C98,raw_resource_build!$A:$A,AC$97,raw_resource_build!$C:$C,mainzone)","v":0},{"$f":"SUMIFS(raw_resource_build!$H:$H,raw_resource_build!$E:$E,$C98,raw_resource_build!$A:$A,AD$97,raw_resource_build!$C:$C,mainzone)","v":0},{"$f":"SUMIFS(raw_resource_build!$H:$H,raw_resource_build!$E:$E,$C98,raw_resource_build!$A:$A,AE$97,raw_resource_build!$C:$C,mainzone)","v":0},{"$f":"SUMIFS(raw_resource_build!$H:$H,raw_resource_build!$E:$E,$C98,raw_resource_build!$A:$A,AF$97,raw_resource_build!$C:$C,mainzone)","v":0},{"$f":"SUMIFS(raw_resource_build!$H:$H,raw_resource_build!$E:$E,$C98,raw_resource_build!$A:$A,AG$97,raw_resource_build!$C:$C,mainzone)","v":0},{"$f":"SUMIFS(raw_resource_build!$H:$H,raw_resource_build!$E:$E,$C98,raw_resource_build!$A:$A,AH$97,raw_resource_build!$C:$C,mainzone)","v":0},{"$f":"SUMIFS(raw_resource_build!$H:$H,raw_resource_build!$E:$E,$C98,raw_resource_build!$A:$A,AI$97,raw_resource_build!$C:$C,mainzone)","v":0},{"$f":"SUMIFS(raw_resource_build!$H:$H,raw_resource_build!$E:$E,$C98,raw_resource_build!$A:$A,AJ$97,raw_resource_build!$C:$C,mainzone)","v":0},{"$f":"SUMIFS(raw_resource_build!$H:$H,raw_resource_build!$E:$E,$C98,raw_resource_build!$A:$A,AK$97,raw_resource_build!$C:$C,mainzone)","v":0},{"$f":"SUMIFS(raw_resource_build!$H:$H,raw_resource_build!$E:$E,$C98,raw_resource_build!$A:$A,AL$97,raw_resource_build!$C:$C,mainzone)","v":0},{"$f":"SUMIFS(raw_resource_build!$H:$H,raw_resource_build!$E:$E,$C98,raw_resource_build!$A:$A,AM$97,raw_resource_build!$C:$C,mainzone)","v":0},{"$f":"SUMIFS(raw_resource_build!$H:$H,raw_resource_build!$E:$E,$C98,raw_resource_build!$A:$A,AN$97,raw_resource_build!$C:$C,mainzone)","v":0}]
[null,null,"CAISO_CCGT1","MW",{"$f":"SUMIFS(raw_resource_build!$H:$H,raw_resource_build!$E:$E,$C99,raw_resource_build!$A:$A,E$97,raw_resource_build!$C:$C,mainzone)","v":0},{"$f":"SUMIFS(raw_resource_build!$H:$H,raw_resource_build!$E:$E,$C99,raw_resource_build!$A:$A,F$97,raw_resource_build!$C:$C,mainzone)","v":0},{"$f":"SUMIFS(raw_resource_build!$H:$H,raw_resource_build!$E:$E,$C99,raw_resource_build!$A:$A,G$97,raw_resource_build!$C:$C,mainzone)","v":0},{"$f":"SUMIFS(raw_resource_build!$H:$H,raw_resource_build!$E:$E,$C99,raw_resource_build!$A:$A,H$97,raw_resource_build!$C:$C,mainzone)","v":0},{"$f":"SUMIFS(raw_resource_build!$H:$H,raw_resource_build!$E:$E,$C99,raw_resource_build!$A:$A,I$97,raw_resource_build!$C:$C,mainzone)","v":0},{"$f":"SUMIFS(raw_resource_build!$H:$H,raw_resource_build!$E:$E,$C99,raw_resource_build!$A:$A,J$97,raw_resource_build!$C:$C,mainzone)","v":0},{"$f":"SUMIFS(raw_resource_build!$H:$H,raw_resource_build!$E:$E,$C99,raw_resource_build!$A:$A,K$97,raw_resource_build!$C:$C,mainzone)","v":0},{"$f":"SUMIFS(raw_resource_build!$H:$H,raw_resource_build!$E:$E,$C99,raw_resource_build!$A:$A,L$97,raw_resource_build!$C:$C,mainzone)","v":0},{"$f":"SUMIFS(raw_resource_build!$H:$H,raw_resource_build!$E:$E,$C99,raw_resource_build!$A:$A,M$97,raw_resource_build!$C:$C,mainzone)","v":0},{"$f":"SUMIFS(raw_resource_build!$H:$H,raw_resource_build!$E:$E,$C99,raw_resource_build!$A:$A,N$97,raw_resource_build!$C:$C,mainzone)","v":0},{"$f":"SUMIFS(raw_resource_build!$H:$H,raw_resource_build!$E:$E,$C99,raw_resource_build!$A:$A,O$97,raw_resource_build!$C:$C,mainzone)","v":0},{"$f":"SUMIFS(raw_resource_build!$H:$H,raw_resource_build!$E:$E,$C99,raw_resource_build!$A:$A,P$97,raw_resource_build!$C:$C,mainzone)","v":0},{"$f":"SUMIFS(raw_resource_build!$H:$H,raw_resource_build!$E:$E,$C99,raw_resource_build!$A:$A,Q$97,raw_resource_build!$C:$C,mainzone)","v":0},{"$f":"SUMIFS(raw_resource_build!$H:$H,raw_resource_build!$E:$E,$C99,raw_resource_build!$A:$A,R$97,raw_resource_build!$C:$C,mainzone)","v":0},{"$f":"SUMIFS(raw_resource_build!$H:$H,raw_resource_build!$E:$E,$C99,raw_resource_build!$A:$A,S$97,raw_resource_build!$C:$C,mainzone)","v":0},{"$f":"SUMIFS(raw_resource_build!$H:$H,raw_resource_build!$E:$E,$C99,raw_resource_build!$A:$A,T$97,raw_resource_build!$C:$C,mainzone)","v":0},{"$f":"SUMIFS(raw_resource_build!$H:$H,raw_resource_build!$E:$E,$C99,raw_resource_build!$A:$A,U$97,raw_resource_build!$C:$C,mainzone)","v":0},{"$f":"SUMIFS(raw_resource_build!$H:$H,raw_resource_build!$E:$E,$C99,raw_resource_build!$A:$A,V$97,raw_resource_build!$C:$C,mainzone)","v":0},{"$f":"SUMIFS(raw_resource_build!$H:$H,raw_resource_build!$E:$E,$C99,raw_resource_build!$A:$A,W$97,raw_resource_build!$C:$C,mainzone)","v":0},{"$f":"SUMIFS(raw_resource_build!$H:$H,raw_resource_build!$E:$E,$C99,raw_resource_build!$A:$A,X$97,raw_resource_build!$C:$C,mainzone)","v":0},{"$f":"SUMIFS(raw_resource_build!$H:$H,raw_resource_build!$E:$E,$C99,raw_resource_build!$A:$A,Y$97,raw_resource_build!$C:$C,mainzone)","v":0},{"$f":"SUMIFS(raw_resource_build!$H:$H,raw_resource_build!$E:$E,$C99,raw_resource_build!$A:$A,Z$97,raw_resource_build!$C:$C,mainzone)","v":0},{"$f":"SUMIFS(raw_resource_build!$H:$H,raw_resource_build!$E:$E,$C99,raw_resource_build!$A:$A,AA$97,raw_resource_build!$C:$C,mainzone)","v":0},{"$f":"SUMIFS(raw_resource_build!$H:$H,raw_resource_build!$E:$E,$C99,raw_resource_build!$A:$A,AB$97,raw_resource_build!$C:$C,mainzone)","v":0},{"$f":"SUMIFS(raw_resource_build!$H:$H,raw_resource_build!$E:$E,$C99,raw_resource_build!$A:$A,AC$97,raw_resource_build!$C:$C,mainzone)","v":0},{"$f":"SUMIFS(raw_resource_build!$H:$H,raw_resource_build!$E:$E,$C99,raw_resource_build!$A:$A,AD$97,raw_resource_build!$C:$C,mainzone)","v":0},{"$f":"SUMIFS(raw_resource_build!$H:$H,raw_resource_build!$E:$E,$C99,raw_resource_build!$A:$A,AE$97,raw_resource_build!$C:$C,mainzone)","v":0},{"$f":"SUMIFS(raw_resource_build!$H:$H,raw_resource_build!$E:$E,$C99,raw_resource_build!$A:$A,AF$97,raw_resource_build!$C:$C,mainzone)","v":0},{"$f":"SUMIFS(raw_resource_build!$H:$H,raw_resource_build!$E:$E,$C99,raw_resource_build!$A:$A,AG$97,raw_resource_build!$C:$C,mainzone)","v":0},{"$f":"SUMIFS(raw_resource_build!$H:$H,raw_resource_build!$E:$E,$C99,raw_resource_build!$A:$A,AH$97,raw_resource_build!$C:$C,mainzone)","v":0},{"$f":"SUMIFS(raw_resource_build!$H:$H,raw_resource_build!$E:$E,$C99,raw_resource_build!$A:$A,AI$97,raw_resource_build!$C:$C,mainzone)","v":0},{"$f":"SUMIFS(raw_resource_build!$H:$H,raw_resource_build!$E:$E,$C99,raw_resource_build!$A:$A,AJ$97,raw_resource_build!$C:$C,mainzone)","v":0},{"$f":"SUMIFS(raw_resource_build!$H:$H,raw_resource_build!$E:$E,$C99,raw_resource_build!$A:$A,AK$97,raw_resource_build!$C:$C,mainzone)","v":0},{"$f":"SUMIFS(raw_resource_build!$H:$H,raw_resource_build!$E:$E,$C99,raw_resource_build!$A:$A,AL$97,raw_resource_build!$C:$C,mainzone)","v":0},{"$f":"SUMIFS(raw_resource_build!$H:$H,raw_resource_build!$E:$E,$C99,raw_resource_build!$A:$A,AM$97,raw_resource_build!$C:$C,mainzone)","v":0},{"$f":"SUMIFS(raw_resource_build!$H:$H,raw_resource_build!$E:$E,$C99,raw_resource_build!$A:$A,AN$97,raw_resource_build!$C:$C,mainzone)","v":0}]
[null,null,"CAISO_CCGT2","MW",{"$f":"SUMIFS(raw_resource_build!$H:$H,raw_resource_build!$E:$E,$C100,raw_resource_build!$A:$A,E$97,raw_resource_build!$C:$C,mainzone)","v":0},{"$f":"SUMIFS(raw_resource_build!$H:$H,raw_resource_build!$E:$E,$C100,raw_resource_build!$A:$A,F$97,raw_resource_build!$C:$C,mainzone)","v":0},{"$f":"SUMIFS(raw_resource_build!$H:$H,raw_resource_build!$E:$E,$C100,raw_resource_build!$A:$A,G$97,raw_resource_build!$C:$C,mainzone)","v":0},{"$f":"SUMIFS(raw_resource_build!$H:$H,raw_resource_build!$E:$E,$C100,raw_resource_build!$A:$A,H$97,raw_resource_build!$C:$C,mainzone)","v":0},{"$f":"SUMIFS(raw_resource_build!$H:$H,raw_resource_build!$E:$E,$C100,raw_resource_build!$A:$A,I$97,raw_resource_build!$C:$C,mainzone)","v":0},{"$f":"SUMIFS(raw_resource_build!$H:$H,raw_resource_build!$E:$E,$C100,raw_resource_build!$A:$A,J$97,raw_resource_build!$C:$C,mainzone)","v":0},{"$f":"SUMIFS(raw_resource_build!$H:$H,raw_resource_build!$E:$E,$C100,raw_resource_build!$A:$A,K$97,raw_resource_build!$C:$C,mainzone)","v":0},{"$f":"SUMIFS(raw_resource_build!$H:$H,raw_resource_build!$E:$E,$C100,raw_resource_build!$A:$A,L$97,raw_resource_build!$C:$C,mainzone)","v":0},{"$f":"SUMIFS(raw_resource_build!$H:$H,raw_resource_build!$E:$E,$C100,raw_resource_build!$A:$A,M$97,raw_resource_build!$C:$C,mainzone)","v":0},{"$f":"SUMIFS(raw_resource_build!$H:$H,raw_resource_build!$E:$E,$C100,raw_resource_build!$A:$A,N$97,raw_resource_build!$C:$C,mainzone)","v":0},{"$f":"SUMIFS(raw_resource_build!$H:$H,raw_resource_build!$E:$E,$C100,raw_resource_build!$A:$A,O$97,raw_resource_build!$C:$C,mainzone)","v":0},{"$f":"SUMIFS(raw_resource_build!$H:$H,raw_resource_build!$E:$E,$C100,raw_resource_build!$A:$A,P$97,raw_resource_build!$C:$C,mainzone)","v":0},{"$f":"SUMIFS(raw_resource_build!$H:$H,raw_resource_build!$E:$E,$C100,raw_resource_build!$A:$A,Q$97,raw_resource_build!$C:$C,mainzone)","v":0},{"$f":"SUMIFS(raw_resource_build!$H:$H,raw_resource_build!$E:$E,$C100,raw_resource_build!$A:$A,R$97,raw_resource_build!$C:$C,mainzone)","v":0},{"$f":"SUMIFS(raw_resource_build!$H:$H,raw_resource_build!$E:$E,$C100,raw_resource_build!$A:$A,S$97,raw_resource_build!$C:$C,mainzone)","v":0},{"$f":"SUMIFS(raw_resource_build!$H:$H,raw_resource_build!$E:$E,$C100,raw_resource_build!$A:$A,T$97,raw_resource_build!$C:$C,mainzone)","v":0},{"$f":"SUMIFS(raw_resource_build!$H:$H,raw_resource_build!$E:$E,$C100,raw_resource_build!$A:$A,U$97,raw_resource_build!$C:$C,mainzone)","v":0},{"$f":"SUMIFS(raw_resource_build!$H:$H,raw_resource_build!$E:$E,$C100,raw_resource_build!$A:$A,V$97,raw_resource_build!$C:$C,mainzone)","v":0},{"$f":"SUMIFS(raw_resource_build!$H:$H,raw_resource_build!$E:$E,$C100,raw_resource_build!$A:$A,W$97,raw_resource_build!$C:$C,mainzone)","v":0},{"$f":"SUMIFS(raw_resource_build!$H:$H,raw_resource_build!$E:$E,$C100,raw_resource_build!$A:$A,X$97,raw_resource_build!$C:$C,mainzone)","v":0},{"$f":"SUMIFS(raw_resource_build!$H:$H,raw_resource_build!$E:$E,$C100,raw_resource_build!$A:$A,Y$97,raw_resource_build!$C:$C,mainzone)","v":0},{"$f":"SUMIFS(raw_resource_build!$H:$H,raw_resource_build!$E:$E,$C100,raw_resource_build!$A:$A,Z$97,raw_resource_build!$C:$C,mainzone)","v":0},{"$f":"SUMIFS(raw_resource_build!$H:$H,raw_resource_build!$E:$E,$C100,raw_resource_build!$A:$A,AA$97,raw_resource_build!$C:$C,mainzone)","v":0},{"$f":"SUMIFS(raw_resource_build!$H:$H,raw_resource_build!$E:$E,$C100,raw_resource_build!$A:$A,AB$97,raw_resource_build!$C:$C,mainzone)","v":0},{"$f":"SUMIFS(raw_resource_build!$H:$H,raw_resource_build!$E:$E,$C100,raw_resource_build!$A:$A,AC$97,raw_resource_build!$C:$C,mainzone)","v":0},{"$f":"SUMIFS(raw_resource_build!$H:$H,raw_resource_build!$E:$E,$C100,raw_resource_build!$A:$A,AD$97,raw_resource_build!$C:$C,mainzone)","v":0},{"$f":"SUMIFS(raw_resource_build!$H:$H,raw_resource_build!$E:$E,$C100,raw_resource_build!$A:$A,AE$97,raw_resource_build!$C:$C,mainzone)","v":0},{"$f":"SUMIFS(raw_resource_build!$H:$H,raw_resource_build!$E:$E,$C100,raw_resource_build!$A:$A,AF$97,raw_resource_build!$C:$C,mainzone)","v":0},{"$f":"SUMIFS(raw_resource_build!$H:$H,raw_resource_build!$E:$E,$C100,raw_resource_build!$A:$A,AG$97,raw_resource_build!$C:$C,mainzone)","v":0},{"$f":"SUMIFS(raw_resource_build!$H:$H,raw_resource_build!$E:$E,$C100,raw_resource_build!$A:$A,AH$97,raw_resource_build!$C:$C,mainzone)","v":0},{"$f":"SUMIFS(raw_resource_build!$H:$H,raw_resource_build!$E:$E,$C100,raw_resource_build!$A:$A,AI$97,raw_resource_build!$C:$C,mainzone)","v":0},{"$f":"SUMIFS(raw_resource_build!$H:$H,raw_resource_build!$E:$E,$C100,raw_resource_build!$A:$A,AJ$97,raw_resource_build!$C:$C,mainzone)","v":0},{"$f":"SUMIFS(raw_resource_build!$H:$H,raw_resource_build!$E:$E,$C100,raw_resource_build!$A:$A,AK$97,raw_resource_build!$C:$C,mainzone)","v":0},{"$f":"SUMIFS(raw_resource_build!$H:$H,raw_resource_build!$E:$E,$C100,raw_resource_build!$A:$A,AL$97,raw_resource_build!$C:$C,mainzone)","v":0},{"$f":"SUMIFS(raw_resource_build!$H:$H,raw_resource_build!$E:$E,$C100,raw_resource_build!$A:$A,AM$97,raw_resource_build!$C:$C,mainzone)","v":0},{"$f":"SUMIFS(raw_resource_build!$H:$H,raw_resource_build!$E:$E,$C100,raw_resource_build!$A:$A,AN$97,raw_resource_build!$C:$C,mainzone)","v":0}]
[null,null,"CAISO_Peaker1","MW",{"$f":"SUMIFS(raw_resource_build!$H:$H,raw_resource_build!$E:$E,$C101,raw_resource_build!$A:$A,E$97,raw_resource_build!$C:$C,mainzone)","v":0},{"$f":"SUMIFS(raw_resource_build!$H:$H,raw_resource_build!$E:$E,$C101,raw_resource_build!$A:$A,F$97,raw_resource_build!$C:$C,mainzone)","v":0},{"$f":"SUMIFS(raw_resource_build!$H:$H,raw_resource_build!$E:$E,$C101,raw_resource_build!$A:$A,G$97,raw_resource_build!$C:$C,mainzone)","v":0},{"$f":"SUMIFS(raw_resource_build!$H:$H,raw_resource_build!$E:$E,$C101,raw_resource_build!$A:$A,H$97,raw_resource_build!$C:$C,mainzone)","v":0},{"$f":"SUMIFS(raw_resource_build!$H:$H,raw_resource_build!$E:$E,$C101,raw_resource_build!$A:$A,I$97,raw_resource_build!$C:$C,mainzone)","v":0},{"$f":"SUMIFS(raw_resource_build!$H:$H,raw_resource_build!$E:$E,$C101,raw_resource_build!$A:$A,J$97,raw_resource_build!$C:$C,mainzone)","v":0},{"$f":"SUMIFS(raw_resource_build!$H:$H,raw_resource_build!$E:$E,$C101,raw_resource_build!$A:$A,K$97,raw_resource_build!$C:$C,mainzone)","v":0},{"$f":"SUMIFS(raw_resource_build!$H:$H,raw_resource_build!$E:$E,$C101,raw_resource_build!$A:$A,L$97,raw_resource_build!$C:$C,mainzone)","v":0},{"$f":"SUMIFS(raw_resource_build!$H:$H,raw_resource_build!$E:$E,$C101,raw_resource_build!$A:$A,M$97,raw_resource_build!$C:$C,mainzone)","v":0},{"$f":"SUMIFS(raw_resource_build!$H:$H,raw_resource_build!$E:$E,$C101,raw_resource_build!$A:$A,N$97,raw_resource_build!$C:$C,mainzone)","v":0},{"$f":"SUMIFS(raw_resource_build!$H:$H,raw_resource_build!$E:$E,$C101,raw_resource_build!$A:$A,O$97,raw_resource_build!$C:$C,mainzone)","v":0},{"$f":"SUMIFS(raw_resource_build!$H:$H,raw_resource_build!$E:$E,$C101,raw_resource_build!$A:$A,P$97,raw_resource_build!$C:$C,mainzone)","v":0},{"$f":"SUMIFS(raw_resource_build!$H:$H,raw_resource_build!$E:$E,$C101,raw_resource_build!$A:$A,Q$97,raw_resource_build!$C:$C,mainzone)","v":0},{"$f":"SUMIFS(raw_resource_build!$H:$H,raw_resource_build!$E:$E,$C101,raw_resource_build!$A:$A,R$97,raw_resource_build!$C:$C,mainzone)","v":0},{"$f":"SUMIFS(raw_resource_build!$H:$H,raw_resource_build!$E:$E,$C101,raw_resource_build!$A:$A,S$97,raw_resource_build!$C:$C,mainzone)","v":0},{"$f":"SUMIFS(raw_resource_build!$H:$H,raw_resource_build!$E:$E,$C101,raw_resource_build!$A:$A,T$97,raw_resource_build!$C:$C,mainzone)","v":0},{"$f":"SUMIFS(raw_resource_build!$H:$H,raw_resource_build!$E:$E,$C101,raw_resource_build!$A:$A,U$97,raw_resource_build!$C:$C,mainzone)","v":0},{"$f":"SUMIFS(raw_resource_build!$H:$H,raw_resource_build!$E:$E,$C101,raw_resource_build!$A:$A,V$97,raw_resource_build!$C:$C,mainzone)","v":0},{"$f":"SUMIFS(raw_resource_build!$H:$H,raw_resource_build!$E:$E,$C101,raw_resource_build!$A:$A,W$97,raw_resource_build!$C:$C,mainzone)","v":0},{"$f":"SUMIFS(raw_resource_build!$H:$H,raw_resource_build!$E:$E,$C101,raw_resource_build!$A:$A,X$97,raw_resource_build!$C:$C,mainzone)","v":0},{"$f":"SUMIFS(raw_resource_build!$H:$H,raw_resource_build!$E:$E,$C101,raw_resource_build!$A:$A,Y$97,raw_resource_build!$C:$C,mainzone)","v":0},{"$f":"SUMIFS(raw_resource_build!$H:$H,raw_resource_build!$E:$E,$C101,raw_resource_build!$A:$A,Z$97,raw_resource_build!$C:$C,mainzone)","v":0},{"$f":"SUMIFS(raw_resource_build!$H:$H,raw_resource_build!$E:$E,$C101,raw_resource_build!$A:$A,AA$97,raw_resource_build!$C:$C,mainzone)","v":0},{"$f":"SUMIFS(raw_resource_build!$H:$H,raw_resource_build!$E:$E,$C101,raw_resource_build!$A:$A,AB$97,raw_resource_build!$C:$C,mainzone)","v":0},{"$f":"SUMIFS(raw_resource_build!$H:$H,raw_resource_build!$E:$E,$C101,raw_resource_build!$A:$A,AC$97,raw_resource_build!$C:$C,mainzone)","v":0},{"$f":"SUMIFS(raw_resource_build!$H:$H,raw_resource_build!$E:$E,$C101,raw_resource_build!$A:$A,AD$97,raw_resource_build!$C:$C,mainzone)","v":0},{"$f":"SUMIFS(raw_resource_build!$H:$H,raw_resource_build!$E:$E,$C101,raw_resource_build!$A:$A,AE$97,raw_resource_build!$C:$C,mainzone)","v":0},{"$f":"SUMIFS(raw_resource_build!$H:$H,raw_resource_build!$E:$E,$C101,raw_resource_build!$A:$A,AF$97,raw_resource_build!$C:$C,mainzone)","v":0},{"$f":"SUMIFS(raw_resource_build!$H:$H,raw_resource_build!$E:$E,$C101,raw_resource_build!$A:$A,AG$97,raw_resource_build!$C:$C,mainzone)","v":0},{"$f":"SUMIFS(raw_resource_build!$H:$H,raw_resource_build!$E:$E,$C101,raw_resource_build!$A:$A,AH$97,raw_resource_build!$C:$C,mainzone)","v":0},{"$f":"SUMIFS(raw_resource_build!$H:$H,raw_resource_build!$E:$E,$C101,raw_resource_build!$A:$A,AI$97,raw_resource_build!$C:$C,mainzone)","v":0},{"$f":"SUMIFS(raw_resource_build!$H:$H,raw_resource_build!$E:$E,$C101,raw_resource_build!$A:$A,AJ$97,raw_resource_build!$C:$C,mainzone)","v":0},{"$f":"SUMIFS(raw_resource_build!$H:$H,raw_resource_build!$E:$E,$C101,raw_resource_build!$A:$A,AK$97,raw_resource_build!$C:$C,mainzone)","v":0},{"$f":"SUMIFS(raw_resource_build!$H:$H,raw_resource_build!$E:$E,$C101,raw_resource_build!$A:$A,AL$97,raw_resource_build!$C:$C,mainzone)","v":0},{"$f":"SUMIFS(raw_resource_build!$H:$H,raw_resource_build!$E:$E,$C101,raw_resource_build!$A:$A,AM$97,raw_resource_build!$C:$C,mainzone)","v":0},{"$f":"SUMIFS(raw_resource_build!$H:$H,raw_resource_build!$E:$E,$C101,raw_resource_build!$A:$A,AN$97,raw_resource_build!$C:$C,mainzone)","v":0}]
[null,null,"CAISO_Peaker2","MW",{"$f":"SUMIFS(raw_resource_build!$H:$H,raw_resource_build!$E:$E,$C102,raw_resource_build!$A:$A,E$97,raw_resource_build!$C:$C,mainzone)","v":0},{"$f":"SUMIFS(raw_resource_build!$H:$H,raw_resource_build!$E:$E,$C102,raw_resource_build!$A:$A,F$97,raw_resource_build!$C:$C,mainzone)","v":0},{"$f":"SUMIFS(raw_resource_build!$H:$H,raw_resource_build!$E:$E,$C102,raw_resource_build!$A:$A,G$97,raw_resource_build!$C:$C,mainzone)","v":0},{"$f":"SUMIFS(raw_resource_build!$H:$H,raw_resource_build!$E:$E,$C102,raw_resource_build!$A:$A,H$97,raw_resource_build!$C:$C,mainzone)","v":0},{"$f":"SUMIFS(raw_resource_build!$H:$H,raw_resource_build!$E:$E,$C102,raw_resource_build!$A:$A,I$97,raw_resource_build!$C:$C,mainzone)","v":0},{"$f":"SUMIFS(raw_resource_build!$H:$H,raw_resource_build!$E:$E,$C102,raw_resource_build!$A:$A,J$97,raw_resource_build!$C:$C,mainzone)","v":0},{"$f":"SUMIFS(raw_resource_build!$H:$H,raw_resource_build!$E:$E,$C102,raw_resource_build!$A:$A,K$97,raw_resource_build!$C:$C,mainzone)","v":0},{"$f":"SUMIFS(raw_resource_build!$H:$H,raw_resource_build!$E:$E,$C102,raw_resource_build!$A:$A,L$97,raw_resource_build!$C:$C,mainzone)","v":0},{"$f":"SUMIFS(raw_resource_build!$H:$H,raw_resource_build!$E:$E,$C102,raw_resource_build!$A:$A,M$97,raw_resource_build!$C:$C,mainzone)","v":0},{"$f":"SUMIFS(raw_resource_build!$H:$H,raw_resource_build!$E:$E,$C102,raw_resource_build!$A:$A,N$97,raw_resource_build!$C:$C,mainzone)","v":0},{"$f":"SUMIFS(raw_resource_build!$H:$H,raw_resource_build!$E:$E,$C102,raw_resource_build!$A:$A,O$97,raw_resource_build!$C:$C,mainzone)","v":0},{"$f":"SUMIFS(raw_resource_build!$H:$H,raw_resource_build!$E:$E,$C102,raw_resource_build!$A:$A,P$97,raw_resource_build!$C:$C,mainzone)","v":0},{"$f":"SUMIFS(raw_resource_build!$H:$H,raw_resource_build!$E:$E,$C102,raw_resource_build!$A:$A,Q$97,raw_resource_build!$C:$C,mainzone)","v":0},{"$f":"SUMIFS(raw_resource_build!$H:$H,raw_resource_build!$E:$E,$C102,raw_resource_build!$A:$A,R$97,raw_resource_build!$C:$C,mainzone)","v":0},{"$f":"SUMIFS(raw_resource_build!$H:$H,raw_resource_build!$E:$E,$C102,raw_resource_build!$A:$A,S$97,raw_resource_build!$C:$C,mainzone)","v":0},{"$f":"SUMIFS(raw_resource_build!$H:$H,raw_resource_build!$E:$E,$C102,raw_resource_build!$A:$A,T$97,raw_resource_build!$C:$C,mainzone)","v":0},{"$f":"SUMIFS(raw_resource_build!$H:$H,raw_resource_build!$E:$E,$C102,raw_resource_build!$A:$A,U$97,raw_resource_build!$C:$C,mainzone)","v":0},{"$f":"SUMIFS(raw_resource_build!$H:$H,raw_resource_build!$E:$E,$C102,raw_resource_build!$A:$A,V$97,raw_resource_build!$C:$C,mainzone)","v":0},{"$f":"SUMIFS(raw_resource_build!$H:$H,raw_resource_build!$E:$E,$C102,raw_resource_build!$A:$A,W$97,raw_resource_build!$C:$C,mainzone)","v":0},{"$f":"SUMIFS(raw_resource_build!$H:$H,raw_resource_build!$E:$E,$C102,raw_resource_build!$A:$A,X$97,raw_resource_build!$C:$C,mainzone)","v":0},{"$f":"SUMIFS(raw_resource_build!$H:$H,raw_resource_build!$E:$E,$C102,raw_resource_build!$A:$A,Y$97,raw_resource_build!$C:$C,mainzone)","v":0},{"$f":"SUMIFS(raw_resource_build!$H:$H,raw_resource_build!$E:$E,$C102,raw_resource_build!$A:$A,Z$97,raw_resource_build!$C:$C,mainzone)","v":0},{"$f":"SUMIFS(raw_resource_build!$H:$H,raw_resource_build!$E:$E,$C102,raw_resource_build!$A:$A,AA$97,raw_resource_build!$C:$C,mainzone)","v":0},{"$f":"SUMIFS(raw_resource_build!$H:$H,raw_resource_build!$E:$E,$C102,raw_resource_build!$A:$A,AB$97,raw_resource_build!$C:$C,mainzone)","v":0},{"$f":"SUMIFS(raw_resource_build!$H:$H,raw_resource_build!$E:$E,$C102,raw_resource_build!$A:$A,AC$97,raw_resource_build!$C:$C,mainzone)","v":0},{"$f":"SUMIFS(raw_resource_build!$H:$H,raw_resource_build!$E:$E,$C102,raw_resource_build!$A:$A,AD$97,raw_resource_build!$C:$C,mainzone)","v":0},{"$f":"SUMIFS(raw_resource_build!$H:$H,raw_resource_build!$E:$E,$C102,raw_resource_build!$A:$A,AE$97,raw_resource_build!$C:$C,mainzone)","v":0},{"$f":"SUMIFS(raw_resource_build!$H:$H,raw_resource_build!$E:$E,$C102,raw_resource_build!$A:$A,AF$97,raw_resource_build!$C:$C,mainzone)","v":0},{"$f":"SUMIFS(raw_resource_build!$H:$H,raw_resource_build!$E:$E,$C102,raw_resource_build!$A:$A,AG$97,raw_resource_build!$C:$C,mainzone)","v":0},{"$f":"SUMIFS(raw_resource_build!$H:$H,raw_resource_build!$E:$E,$C102,raw_resource_build!$A:$A,AH$97,raw_resource_build!$C:$C,mainzone)","v":0},{"$f":"SUMIFS(raw_resource_build!$H:$H,raw_resource_build!$E:$E,$C102,raw_resource_build!$A:$A,AI$97,raw_resource_build!$C:$C,mainzone)","v":0},{"$f":"SUMIFS(raw_resource_build!$H:$H,raw_resource_build!$E:$E,$C102,raw_resource_build!$A:$A,AJ$97,raw_resource_build!$C:$C,mainzone)","v":0},{"$f":"SUMIFS(raw_resource_build!$H:$H,raw_resource_build!$E:$E,$C102,raw_resource_build!$A:$A,AK$97,raw_resource_build!$C:$C,mainzone)","v":0},{"$f":"SUMIFS(raw_resource_build!$H:$H,raw_resource_build!$E:$E,$C102,raw_resource_build!$A:$A,AL$97,raw_resource_build!$C:$C,mainzone)","v":0},{"$f":"SUMIFS(raw_resource_build!$H:$H,raw_resource_build!$E:$E,$C102,raw_resource_build!$A:$A,AM$97,raw_resource_build!$C:$C,mainzone)","v":0},{"$f":"SUMIFS(raw_resource_build!$H:$H,raw_resource_build!$E:$E,$C102,raw_resource_build!$A:$A,AN$97,raw_resource_build!$C:$C,mainzone)","v":0}]
[null,null,"CAISO_Advanced_CCGT","MW",{"$f":"SUMIFS(raw_resource_build!$H:$H,raw_resource_build!$E:$E,$C103,raw_resource_build!$A:$A,E$97,raw_resource_build!$C:$C,mainzone)","v":0},{"$f":"SUMIFS(raw_resource_build!$H:$H,raw_resource_build!$E:$E,$C103,raw_resource_build!$A:$A,F$97,raw_resource_build!$C:$C,mainzone)","v":0},{"$f":"SUMIFS(raw_resource_build!$H:$H,raw_resource_build!$E:$E,$C103,raw_resource_build!$A:$A,G$97,raw_resource_build!$C:$C,mainzone)","v":0},{"$f":"SUMIFS(raw_resource_build!$H:$H,raw_resource_build!$E:$E,$C103,raw_resource_build!$A:$A,H$97,raw_resource_build!$C:$C,mainzone)","v":0},{"$f":"SUMIFS(raw_resource_build!$H:$H,raw_resource_build!$E:$E,$C103,raw_resource_build!$A:$A,I$97,raw_resource_build!$C:$C,mainzone)","v":0},{"$f":"SUMIFS(raw_resource_build!$H:$H,raw_resource_build!$E:$E,$C103,raw_resource_build!$A:$A,J$97,raw_resource_build!$C:$C,mainzone)","v":0},{"$f":"SUMIFS(raw_resource_build!$H:$H,raw_resource_build!$E:$E,$C103,raw_resource_build!$A:$A,K$97,raw_resource_build!$C:$C,mainzone)","v":0},{"$f":"SUMIFS(raw_resource_build!$H:$H,raw_resource_build!$E:$E,$C103,raw_resource_build!$A:$A,L$97,raw_resource_build!$C:$C,mainzone)","v":0},{"$f":"SUMIFS(raw_resource_build!$H:$H,raw_resource_build!$E:$E,$C103,raw_resource_build!$A:$A,M$97,raw_resource_build!$C:$C,mainzone)","v":0},{"$f":"SUMIFS(raw_resource_build!$H:$H,raw_resource_build!$E:$E,$C103,raw_resource_build!$A:$A,N$97,raw_resource_build!$C:$C,mainzone)","v":0},{"$f":"SUMIFS(raw_resource_build!$H:$H,raw_resource_build!$E:$E,$C103,raw_resource_build!$A:$A,O$97,raw_resource_build!$C:$C,mainzone)","v":0},{"$f":"SUMIFS(raw_resource_build!$H:$H,raw_resource_build!$E:$E,$C103,raw_resource_build!$A:$A,P$97,raw_resource_build!$C:$C,mainzone)","v":0},{"$f":"SUMIFS(raw_resource_build!$H:$H,raw_resource_build!$E:$E,$C103,raw_resource_build!$A:$A,Q$97,raw_resource_build!$C:$C,mainzone)","v":0},{"$f":"SUMIFS(raw_resource_build!$H:$H,raw_resource_build!$E:$E,$C103,raw_resource_build!$A:$A,R$97,raw_resource_build!$C:$C,mainzone)","v":0},{"$f":"SUMIFS(raw_resource_build!$H:$H,raw_resource_build!$E:$E,$C103,raw_resource_build!$A:$A,S$97,raw_resource_build!$C:$C,mainzone)","v":0},{"$f":"SUMIFS(raw_resource_build!$H:$H,raw_resource_build!$E:$E,$C103,raw_resource_build!$A:$A,T$97,raw_resource_build!$C:$C,mainzone)","v":0},{"$f":"SUMIFS(raw_resource_build!$H:$H,raw_resource_build!$E:$E,$C103,raw_resource_build!$A:$A,U$97,raw_resource_build!$C:$C,mainzone)","v":0},{"$f":"SUMIFS(raw_resource_build!$H:$H,raw_resource_build!$E:$E,$C103,raw_resource_build!$A:$A,V$97,raw_resource_build!$C:$C,mainzone)","v":0},{"$f":"SUMIFS(raw_resource_build!$H:$H,raw_resource_build!$E:$E,$C103,raw_resource_build!$A:$A,W$97,raw_resource_build!$C:$C,mainzone)","v":0},{"$f":"SUMIFS(raw_resource_build!$H:$H,raw_resource_build!$E:$E,$C103,raw_resource_build!$A:$A,X$97,raw_resource_build!$C:$C,mainzone)","v":0},{"$f":"SUMIFS(raw_resource_build!$H:$H,raw_resource_build!$E:$E,$C103,raw_resource_build!$A:$A,Y$97,raw_resource_build!$C:$C,mainzone)","v":0},{"$f":"SUMIFS(raw_resource_build!$H:$H,raw_resource_build!$E:$E,$C103,raw_resource_build!$A:$A,Z$97,raw_resource_build!$C:$C,mainzone)","v":0},{"$f":"SUMIFS(raw_resource_build!$H:$H,raw_resource_build!$E:$E,$C103,raw_resource_build!$A:$A,AA$97,raw_resource_build!$C:$C,mainzone)","v":0},{"$f":"SUMIFS(raw_resource_build!$H:$H,raw_resource_build!$E:$E,$C103,raw_resource_build!$A:$A,AB$97,raw_resource_build!$C:$C,mainzone)","v":0},{"$f":"SUMIFS(raw_resource_build!$H:$H,raw_resource_build!$E:$E,$C103,raw_resource_build!$A:$A,AC$97,raw_resource_build!$C:$C,mainzone)","v":0},{"$f":"SUMIFS(raw_resource_build!$H:$H,raw_resource_build!$E:$E,$C103,raw_resource_build!$A:$A,AD$97,raw_resource_build!$C:$C,mainzone)","v":0},{"$f":"SUMIFS(raw_resource_build!$H:$H,raw_resource_build!$E:$E,$C103,raw_resource_build!$A:$A,AE$97,raw_resource_build!$C:$C,mainzone)","v":0},{"$f":"SUMIFS(raw_resource_build!$H:$H,raw_resource_build!$E:$E,$C103,raw_resource_build!$A:$A,AF$97,raw_resource_build!$C:$C,mainzone)","v":0},{"$f":"SUMIFS(raw_resource_build!$H:$H,raw_resource_build!$E:$E,$C103,raw_resource_build!$A:$A,AG$97,raw_resource_build!$C:$C,mainzone)","v":0},{"$f":"SUMIFS(raw_resource_build!$H:$H,raw_resource_build!$E:$E,$C103,raw_resource_build!$A:$A,AH$97,raw_resource_build!$C:$C,mainzone)","v":0},{"$f":"SUMIFS(raw_resource_build!$H:$H,raw_resource_build!$E:$E,$C103,raw_resource_build!$A:$A,AI$97,raw_resource_build!$C:$C,mainzone)","v":0},{"$f":"SUMIFS(raw_resource_build!$H:$H,raw_resource_build!$E:$E,$C103,raw_resource_build!$A:$A,AJ$97,raw_resource_build!$C:$C,mainzone)","v":0},{"$f":"SUMIFS(raw_resource_build!$H:$H,raw_resource_build!$E:$E,$C103,raw_resource_build!$A:$A,AK$97,raw_resource_build!$C:$C,mainzone)","v":0},{"$f":"SUMIFS(raw_resource_build!$H:$H,raw_resource_build!$E:$E,$C103,raw_resource_build!$A:$A,AL$97,raw_resource_build!$C:$C,mainzone)","v":0},{"$f":"SUMIFS(raw_resource_build!$H:$H,raw_resource_build!$E:$E,$C103,raw_resource_build!$A:$A,AM$97,raw_resource_build!$C:$C,mainzone)","v":0},{"$f":"SUMIFS(raw_resource_build!$H:$H,raw_resource_build!$E:$E,$C103,raw_resource_build!$A:$A,AN$97,raw_resource_build!$C:$C,mainzone)","v":0}]
[null,null,"CAISO_Aero_CT","MW",{"$f":"SUMIFS(raw_resource_build!$H:$H,raw_resource_build!$E:$E,$C104,raw_resource_build!$A:$A,E$97,raw_resource_build!$C:$C,mainzone)","v":0},{"$f":"SUMIFS(raw_resource_build!$H:$H,raw_resource_build!$E:$E,$C104,raw_resource_build!$A:$A,F$97,raw_resource_build!$C:$C,mainzone)","v":0},{"$f":"SUMIFS(raw_resource_build!$H:$H,raw_resource_build!$E:$E,$C104,raw_resource_build!$A:$A,G$97,raw_resource_build!$C:$C,mainzone)","v":0},{"$f":"SUMIFS(raw_resource_build!$H:$H,raw_resource_build!$E:$E,$C104,raw_resource_build!$A:$A,H$97,raw_resource_build!$C:$C,mainzone)","v":0},{"$f":"SUMIFS(raw_resource_build!$H:$H,raw_resource_build!$E:$E,$C104,raw_resource_build!$A:$A,I$97,raw_resource_build!$C:$C,mainzone)","v":0},{"$f":"SUMIFS(raw_resource_build!$H:$H,raw_resource_build!$E:$E,$C104,raw_resource_build!$A:$A,J$97,raw_resource_build!$C:$C,mainzone)","v":0},{"$f":"SUMIFS(raw_resource_build!$H:$H,raw_resource_build!$E:$E,$C104,raw_resource_build!$A:$A,K$97,raw_resource_build!$C:$C,mainzone)","v":0},{"$f":"SUMIFS(raw_resource_build!$H:$H,raw_resource_build!$E:$E,$C104,raw_resource_build!$A:$A,L$97,raw_resource_build!$C:$C,mainzone)","v":0},{"$f":"SUMIFS(raw_resource_build!$H:$H,raw_resource_build!$E:$E,$C104,raw_resource_build!$A:$A,M$97,raw_resource_build!$C:$C,mainzone)","v":0},{"$f":"SUMIFS(raw_resource_build!$H:$H,raw_resource_build!$E:$E,$C104,raw_resource_build!$A:$A,N$97,raw_resource_build!$C:$C,mainzone)","v":0},{"$f":"SUMIFS(raw_resource_build!$H:$H,raw_resource_build!$E:$E,$C104,raw_resource_build!$A:$A,O$97,raw_resource_build!$C:$C,mainzone)","v":0},{"$f":"SUMIFS(raw_resource_build!$H:$H,raw_resource_build!$E:$E,$C104,raw_resource_build!$A:$A,P$97,raw_resource_build!$C:$C,mainzone)","v":0},{"$f":"SUMIFS(raw_resource_build!$H:$H,raw_resource_build!$E:$E,$C104,raw_resource_build!$A:$A,Q$97,raw_resource_build!$C:$C,mainzone)","v":0},{"$f":"SUMIFS(raw_resource_build!$H:$H,raw_resource_build!$E:$E,$C104,raw_resource_build!$A:$A,R$97,raw_resource_build!$C:$C,mainzone)","v":0},{"$f":"SUMIFS(raw_resource_build!$H:$H,raw_resource_build!$E:$E,$C104,raw_resource_build!$A:$A,S$97,raw_resource_build!$C:$C,mainzone)","v":0},{"$f":"SUMIFS(raw_resource_build!$H:$H,raw_resource_build!$E:$E,$C104,raw_resource_build!$A:$A,T$97,raw_resource_build!$C:$C,mainzone)","v":0},{"$f":"SUMIFS(raw_resource_build!$H:$H,raw_resource_build!$E:$E,$C104,raw_resource_build!$A:$A,U$97,raw_resource_build!$C:$C,mainzone)","v":0},{"$f":"SUMIFS(raw_resource_build!$H:$H,raw_resource_build!$E:$E,$C104,raw_resource_build!$A:$A,V$97,raw_resource_build!$C:$C,mainzone)","v":0},{"$f":"SUMIFS(raw_resource_build!$H:$H,raw_resource_build!$E:$E,$C104,raw_resource_build!$A:$A,W$97,raw_resource_build!$C:$C,mainzone)","v":0},{"$f":"SUMIFS(raw_resource_build!$H:$H,raw_resource_build!$E:$E,$C104,raw_resource_build!$A:$A,X$97,raw_resource_build!$C:$C,mainzone)","v":0},{"$f":"SUMIFS(raw_resource_build!$H:$H,raw_resource_build!$E:$E,$C104,raw_resource_build!$A:$A,Y$97,raw_resource_build!$C:$C,mainzone)","v":0},{"$f":"SUMIFS(raw_resource_build!$H:$H,raw_resource_build!$E:$E,$C104,raw_resource_build!$A:$A,Z$97,raw_resource_build!$C:$C,mainzone)","v":0},{"$f":"SUMIFS(raw_resource_build!$H:$H,raw_resource_build!$E:$E,$C104,raw_resource_build!$A:$A,AA$97,raw_resource_build!$C:$C,mainzone)","v":0},{"$f":"SUMIFS(raw_resource_build!$H:$H,raw_resource_build!$E:$E,$C104,raw_resource_build!$A:$A,AB$97,raw_resource_build!$C:$C,mainzone)","v":0},{"$f":"SUMIFS(raw_resource_build!$H:$H,raw_resource_build!$E:$E,$C104,raw_resource_build!$A:$A,AC$97,raw_resource_build!$C:$C,mainzone)","v":0},{"$f":"SUMIFS(raw_resource_build!$H:$H,raw_resource_build!$E:$E,$C104,raw_resource_build!$A:$A,AD$97,raw_resource_build!$C:$C,mainzone)","v":0},{"$f":"SUMIFS(raw_resource_build!$H:$H,raw_resource_build!$E:$E,$C104,raw_resource_build!$A:$A,AE$97,raw_resource_build!$C:$C,mainzone)","v":0},{"$f":"SUMIFS(raw_resource_build!$H:$H,raw_resource_build!$E:$E,$C104,raw_resource_build!$A:$A,AF$97,raw_resource_build!$C:$C,mainzone)","v":0},{"$f":"SUMIFS(raw_resource_build!$H:$H,raw_resource_build!$E:$E,$C104,raw_resource_build!$A:$A,AG$97,raw_resource_build!$C:$C,mainzone)","v":0},{"$f":"SUMIFS(raw_resource_build!$H:$H,raw_resource_build!$E:$E,$C104,raw_resource_build!$A:$A,AH$97,raw_resource_build!$C:$C,mainzone)","v":0},{"$f":"SUMIFS(raw_resource_build!$H:$H,raw_resource_build!$E:$E,$C104,raw_resource_build!$A:$A,AI$97,raw_resource_build!$C:$C,mainzone)","v":0},{"$f":"SUMIFS(raw_resource_build!$H:$H,raw_resource_build!$E:$E,$C104,raw_resource_build!$A:$A,AJ$97,raw_resource_build!$C:$C,mainzone)","v":0},{"$f":"SUMIFS(raw_resource_build!$H:$H,raw_resource_build!$E:$E,$C104,raw_resource_build!$A:$A,AK$97,raw_resource_build!$C:$C,mainzone)","v":0},{"$f":"SUMIFS(raw_resource_build!$H:$H,raw_resource_build!$E:$E,$C104,raw_resource_build!$A:$A,AL$97,raw_resource_build!$C:$C,mainzone)","v":0},{"$f":"SUMIFS(raw_resource_build!$H:$H,raw_resource_build!$E:$E,$C104,raw_resource_build!$A:$A,AM$97,raw_resource_build!$C:$C,mainzone)","v":0},{"$f":"SUMIFS(raw_resource_build!$H:$H,raw_resource_build!$E:$E,$C104,raw_resource_build!$A:$A,AN$97,raw_resource_build!$C:$C,mainzone)","v":0}]
[null,null,"CAISO_Reciprocating_Engine","MW",{"$f":"SUMIFS(raw_resource_build!$H:$H,raw_resource_build!$E:$E,$C105,raw_resource_build!$A:$A,E$97,raw_resource_build!$C:$C,mainzone)","v":0},{"$f":"SUMIFS(raw_resource_build!$H:$H,raw_resource_build!$E:$E,$C105,raw_resource_build!$A:$A,F$97,raw_resource_build!$C:$C,mainzone)","v":0},{"$f":"SUMIFS(raw_resource_build!$H:$H,raw_resource_build!$E:$E,$C105,raw_resource_build!$A:$A,G$97,raw_resource_build!$C:$C,mainzone)","v":0},{"$f":"SUMIFS(raw_resource_build!$H:$H,raw_resource_build!$E:$E,$C105,raw_resource_build!$A:$A,H$97,raw_resource_build!$C:$C,mainzone)","v":0},{"$f":"SUMIFS(raw_resource_build!$H:$H,raw_resource_build!$E:$E,$C105,raw_resource_build!$A:$A,I$97,raw_resource_build!$C:$C,mainzone)","v":0},{"$f":"SUMIFS(raw_resource_build!$H:$H,raw_resource_build!$E:$E,$C105,raw_resource_build!$A:$A,J$97,raw_resource_build!$C:$C,mainzone)","v":0},{"$f":"SUMIFS(raw_resource_build!$H:$H,raw_resource_build!$E:$E,$C105,raw_resource_build!$A:$A,K$97,raw_resource_build!$C:$C,mainzone)","v":0},{"$f":"SUMIFS(raw_resource_build!$H:$H,raw_resource_build!$E:$E,$C105,raw_resource_build!$A:$A,L$97,raw_resource_build!$C:$C,mainzone)","v":0},{"$f":"SUMIFS(raw_resource_build!$H:$H,raw_resource_build!$E:$E,$C105,raw_resource_build!$A:$A,M$97,raw_resource_build!$C:$C,mainzone)","v":0},{"$f":"SUMIFS(raw_resource_build!$H:$H,raw_resource_build!$E:$E,$C105,raw_resource_build!$A:$A,N$97,raw_resource_build!$C:$C,mainzone)","v":0},{"$f":"SUMIFS(raw_resource_build!$H:$H,raw_resource_build!$E:$E,$C105,raw_resource_build!$A:$A,O$97,raw_resource_build!$C:$C,mainzone)","v":0},{"$f":"SUMIFS(raw_resource_build!$H:$H,raw_resource_build!$E:$E,$C105,raw_resource_build!$A:$A,P$97,raw_resource_build!$C:$C,mainzone)","v":0},{"$f":"SUMIFS(raw_resource_build!$H:$H,raw_resource_build!$E:$E,$C105,raw_resource_build!$A:$A,Q$97,raw_resource_build!$C:$C,mainzone)","v":0},{"$f":"SUMIFS(raw_resource_build!$H:$H,raw_resource_build!$E:$E,$C105,raw_resource_build!$A:$A,R$97,raw_resource_build!$C:$C,mainzone)","v":0},{"$f":"SUMIFS(raw_resource_build!$H:$H,raw_resource_build!$E:$E,$C105,raw_resource_build!$A:$A,S$97,raw_resource_build!$C:$C,mainzone)","v":0},{"$f":"SUMIFS(raw_resource_build!$H:$H,raw_resource_build!$E:$E,$C105,raw_resource_build!$A:$A,T$97,raw_resource_build!$C:$C,mainzone)","v":0},{"$f":"SUMIFS(raw_resource_build!$H:$H,raw_resource_build!$E:$E,$C105,raw_resource_build!$A:$A,U$97,raw_resource_build!$C:$C,mainzone)","v":0},{"$f":"SUMIFS(raw_resource_build!$H:$H,raw_resource_build!$E:$E,$C105,raw_resource_build!$A:$A,V$97,raw_resource_build!$C:$C,mainzone)","v":0},{"$f":"SUMIFS(raw_resource_build!$H:$H,raw_resource_build!$E:$E,$C105,raw_resource_build!$A:$A,W$97,raw_resource_build!$C:$C,mainzone)","v":0},{"$f":"SUMIFS(raw_resource_build!$H:$H,raw_resource_build!$E:$E,$C105,raw_resource_build!$A:$A,X$97,raw_resource_build!$C:$C,mainzone)","v":0},{"$f":"SUMIFS(raw_resource_build!$H:$H,raw_resource_build!$E:$E,$C105,raw_resource_build!$A:$A,Y$97,raw_resource_build!$C:$C,mainzone)","v":0},{"$f":"SUMIFS(raw_resource_build!$H:$H,raw_resource_build!$E:$E,$C105,raw_resource_build!$A:$A,Z$97,raw_resource_build!$C:$C,mainzone)","v":0},{"$f":"SUMIFS(raw_resource_build!$H:$H,raw_resource_build!$E:$E,$C105,raw_resource_build!$A:$A,AA$97,raw_resource_build!$C:$C,mainzone)","v":0},{"$f":"SUMIFS(raw_resource_build!$H:$H,raw_resource_build!$E:$E,$C105,raw_resource_build!$A:$A,AB$97,raw_resource_build!$C:$C,mainzone)","v":0},{"$f":"SUMIFS(raw_resource_build!$H:$H,raw_resource_build!$E:$E,$C105,raw_resource_build!$A:$A,AC$97,raw_resource_build!$C:$C,mainzone)","v":0},{"$f":"SUMIFS(raw_resource_build!$H:$H,raw_resource_build!$E:$E,$C105,raw_resource_build!$A:$A,AD$97,raw_resource_build!$C:$C,mainzone)","v":0},{"$f":"SUMIFS(raw_resource_build!$H:$H,raw_resource_build!$E:$E,$C105,raw_resource_build!$A:$A,AE$97,raw_resource_build!$C:$C,mainzone)","v":0},{"$f":"SUMIFS(raw_resource_build!$H:$H,raw_resource_build!$E:$E,$C105,raw_resource_build!$A:$A,AF$97,raw_resource_build!$C:$C,mainzone)","v":0},{"$f":"SUMIFS(raw_resource_build!$H:$H,raw_resource_build!$E:$E,$C105,raw_resource_build!$A:$A,AG$97,raw_resource_build!$C:$C,mainzone)","v":0},{"$f":"SUMIFS(raw_resource_build!$H:$H,raw_resource_build!$E:$E,$C105,raw_resource_build!$A:$A,AH$97,raw_resource_build!$C:$C,mainzone)","v":0},{"$f":"SUMIFS(raw_resource_build!$H:$H,raw_resource_build!$E:$E,$C105,raw_resource_build!$A:$A,AI$97,raw_resource_build!$C:$C,mainzone)","v":0},{"$f":"SUMIFS(raw_resource_build!$H:$H,raw_resource_build!$E:$E,$C105,raw_resource_build!$A:$A,AJ$97,raw_resource_build!$C:$C,mainzone)","v":0},{"$f":"SUMIFS(raw_resource_build!$H:$H,raw_resource_build!$E:$E,$C105,raw_resource_build!$A:$A,AK$97,raw_resource_build!$C:$C,mainzone)","v":0},{"$f":"SUMIFS(raw_resource_build!$H:$H,raw_resource_build!$E:$E,$C105,raw_resource_build!$A:$A,AL$97,raw_resource_build!$C:$C,mainzone)","v":0},{"$f":"SUMIFS(raw_resource_build!$H:$H,raw_resource_build!$E:$E,$C105,raw_resource_build!$A:$A,AM$97,raw_resource_build!$C:$C,mainzone)","v":0},{"$f":"SUMIFS(raw_resource_build!$H:$H,raw_resource_build!$E:$E,$C105,raw_resource_build!$A:$A,AN$97,raw_resource_build!$C:$C,mainzone)","v":0}]
[null,null,"CAISO_CHP","MW",{"$f":"SUMIFS(raw_resource_build!$H:$H,raw_resource_build!$E:$E,$C106,raw_resource_build!$A:$A,E$97,raw_resource_build!$C:$C,mainzone)","v":0},{"$f":"SUMIFS(raw_resource_build!$H:$H,raw_resource_build!$E:$E,$C106,raw_resource_build!$A:$A,F$97,raw_resource_build!$C:$C,mainzone)","v":0},{"$f":"SUMIFS(raw_resource_build!$H:$H,raw_resource_build!$E:$E,$C106,raw_resource_build!$A:$A,G$97,raw_resource_build!$C:$C,mainzone)","v":0},{"$f":"SUMIFS(raw_resource_build!$H:$H,raw_resource_build!$E:$E,$C106,raw_resource_build!$A:$A,H$97,raw_resource_build!$C:$C,mainzone)","v":0},{"$f":"SUMIFS(raw_resource_build!$H:$H,raw_resource_build!$E:$E,$C106,raw_resource_build!$A:$A,I$97,raw_resource_build!$C:$C,mainzone)","v":0},{"$f":"SUMIFS(raw_resource_build!$H:$H,raw_resource_build!$E:$E,$C106,raw_resource_build!$A:$A,J$97,raw_resource_build!$C:$C,mainzone)","v":0},{"$f":"SUMIFS(raw_resource_build!$H:$H,raw_resource_build!$E:$E,$C106,raw_resource_build!$A:$A,K$97,raw_resource_build!$C:$C,mainzone)","v":0},{"$f":"SUMIFS(raw_resource_build!$H:$H,raw_resource_build!$E:$E,$C106,raw_resource_build!$A:$A,L$97,raw_resource_build!$C:$C,mainzone)","v":0},{"$f":"SUMIFS(raw_resource_build!$H:$H,raw_resource_build!$E:$E,$C106,raw_resource_build!$A:$A,M$97,raw_resource_build!$C:$C,mainzone)","v":0},{"$f":"SUMIFS(raw_resource_build!$H:$H,raw_resource_build!$E:$E,$C106,raw_resource_build!$A:$A,N$97,raw_resource_build!$C:$C,mainzone)","v":0},{"$f":"SUMIFS(raw_resource_build!$H:$H,raw_resource_build!$E:$E,$C106,raw_resource_build!$A:$A,O$97,raw_resource_build!$C:$C,mainzone)","v":0},{"$f":"SUMIFS(raw_resource_build!$H:$H,raw_resource_build!$E:$E,$C106,raw_resource_build!$A:$A,P$97,raw_resource_build!$C:$C,mainzone)","v":0},{"$f":"SUMIFS(raw_resource_build!$H:$H,raw_resource_build!$E:$E,$C106,raw_resource_build!$A:$A,Q$97,raw_resource_build!$C:$C,mainzone)","v":0},{"$f":"SUMIFS(raw_resource_build!$H:$H,raw_resource_build!$E:$E,$C106,raw_resource_build!$A:$A,R$97,raw_resource_build!$C:$C,mainzone)","v":0},{"$f":"SUMIFS(raw_resource_build!$H:$H,raw_resource_build!$E:$E,$C106,raw_resource_build!$A:$A,S$97,raw_resource_build!$C:$C,mainzone)","v":0},{"$f":"SUMIFS(raw_resource_build!$H:$H,raw_resource_build!$E:$E,$C106,raw_resource_build!$A:$A,T$97,raw_resource_build!$C:$C,mainzone)","v":0},{"$f":"SUMIFS(raw_resource_build!$H:$H,raw_resource_build!$E:$E,$C106,raw_resource_build!$A:$A,U$97,raw_resource_build!$C:$C,mainzone)","v":0},{"$f":"SUMIFS(raw_resource_build!$H:$H,raw_resource_build!$E:$E,$C106,raw_resource_build!$A:$A,V$97,raw_resource_build!$C:$C,mainzone)","v":0},{"$f":"SUMIFS(raw_resource_build!$H:$H,raw_resource_build!$E:$E,$C106,raw_resource_build!$A:$A,W$97,raw_resource_build!$C:$C,mainzone)","v":0},{"$f":"SUMIFS(raw_resource_build!$H:$H,raw_resource_build!$E:$E,$C106,raw_resource_build!$A:$A,X$97,raw_resource_build!$C:$C,mainzone)","v":0},{"$f":"SUMIFS(raw_resource_build!$H:$H,raw_resource_build!$E:$E,$C106,raw_resource_build!$A:$A,Y$97,raw_resource_build!$C:$C,mainzone)","v":0},{"$f":"SUMIFS(raw_resource_build!$H:$H,raw_resource_build!$E:$E,$C106,raw_resource_build!$A:$A,Z$97,raw_resource_build!$C:$C,mainzone)","v":0},{"$f":"SUMIFS(raw_resource_build!$H:$H,raw_resource_build!$E:$E,$C106,raw_resource_build!$A:$A,AA$97,raw_resource_build!$C:$C,mainzone)","v":0},{"$f":"SUMIFS(raw_resource_build!$H:$H,raw_resource_build!$E:$E,$C106,raw_resource_build!$A:$A,AB$97,raw_resource_build!$C:$C,mainzone)","v":0},{"$f":"SUMIFS(raw_resource_build!$H:$H,raw_resource_build!$E:$E,$C106,raw_resource_build!$A:$A,AC$97,raw_resource_build!$C:$C,mainzone)","v":0},{"$f":"SUMIFS(raw_resource_build!$H:$H,raw_resource_build!$E:$E,$C106,raw_resource_build!$A:$A,AD$97,raw_resource_build!$C:$C,mainzone)","v":0},{"$f":"SUMIFS(raw_resource_build!$H:$H,raw_resource_build!$E:$E,$C106,raw_resource_build!$A:$A,AE$97,raw_resource_build!$C:$C,mainzone)","v":0},{"$f":"SUMIFS(raw_resource_build!$H:$H,raw_resource_build!$E:$E,$C106,raw_resource_build!$A:$A,AF$97,raw_resource_build!$C:$C,mainzone)","v":0},{"$f":"SUMIFS(raw_resource_build!$H:$H,raw_resource_build!$E:$E,$C106,raw_resource_build!$A:$A,AG$97,raw_resource_build!$C:$C,mainzone)","v":0},{"$f":"SUMIFS(raw_resource_build!$H:$H,raw_resource_build!$E:$E,$C106,raw_resource_build!$A:$A,AH$97,raw_resource_build!$C:$C,mainzone)","v":0},{"$f":"SUMIFS(raw_resource_build!$H:$H,raw_resource_build!$E:$E,$C106,raw_resource_build!$A:$A,AI$97,raw_resource_build!$C:$C,mainzone)","v":0},{"$f":"SUMIFS(raw_resource_build!$H:$H,raw_resource_build!$E:$E,$C106,raw_resource_build!$A:$A,AJ$97,raw_resource_build!$C:$C,mainzone)","v":0},{"$f":"SUMIFS(raw_resource_build!$H:$H,raw_resource_build!$E:$E,$C106,raw_resource_build!$A:$A,AK$97,raw_resource_build!$C:$C,mainzone)","v":0},{"$f":"SUMIFS(raw_resource_build!$H:$H,raw_resource_build!$E:$E,$C106,raw_resource_build!$A:$A,AL$97,raw_resource_build!$C:$C,mainzone)","v":0},{"$f":"SUMIFS(raw_resource_build!$H:$H,raw_resource_build!$E:$E,$C106,raw_resource_build!$A:$A,AM$97,raw_resource_build!$C:$C,mainzone)","v":0},{"$f":"SUMIFS(raw_resource_build!$H:$H,raw_resource_build!$E:$E,$C106,raw_resource_build!$A:$A,AN$97,raw_resource_build!$C:$C,mainzone)","v":0}]
[null,null,"CAISO_Coal","MW",{"$f":"SUMIFS(raw_resource_build!$H:$H,raw_resource_build!$E:$E,$C107,raw_resource_build!$A:$A,E$97,raw_resource_build!$C:$C,mainzone)","v":0},{"$f":"SUMIFS(raw_resource_build!$H:$H,raw_resource_build!$E:$E,$C107,raw_resource_build!$A:$A,F$97,raw_resource_build!$C:$C,mainzone)","v":0},{"$f":"SUMIFS(raw_resource_build!$H:$H,raw_resource_build!$E:$E,$C107,raw_resource_build!$A:$A,G$97,raw_resource_build!$C:$C,mainzone)","v":0},{"$f":"SUMIFS(raw_resource_build!$H:$H,raw_resource_build!$E:$E,$C107,raw_resource_build!$A:$A,H$97,raw_resource_build!$C:$C,mainzone)","v":0},{"$f":"SUMIFS(raw_resource_build!$H:$H,raw_resource_build!$E:$E,$C107,raw_resource_build!$A:$A,I$97,raw_resource_build!$C:$C,mainzone)","v":0},{"$f":"SUMIFS(raw_resource_build!$H:$H,raw_resource_build!$E:$E,$C107,raw_resource_build!$A:$A,J$97,raw_resource_build!$C:$C,mainzone)","v":0},{"$f":"SUMIFS(raw_resource_build!$H:$H,raw_resource_build!$E:$E,$C107,raw_resource_build!$A:$A,K$97,raw_resource_build!$C:$C,mainzone)","v":0},{"$f":"SUMIFS(raw_resource_build!$H:$H,raw_resource_build!$E:$E,$C107,raw_resource_build!$A:$A,L$97,raw_resource_build!$C:$C,mainzone)","v":0},{"$f":"SUMIFS(raw_resource_build!$H:$H,raw_resource_build!$E:$E,$C107,raw_resource_build!$A:$A,M$97,raw_resource_build!$C:$C,mainzone)","v":0},{"$f":"SUMIFS(raw_resource_build!$H:$H,raw_resource_build!$E:$E,$C107,raw_resource_build!$A:$A,N$97,raw_resource_build!$C:$C,mainzone)","v":0},{"$f":"SUMIFS(raw_resource_build!$H:$H,raw_resource_build!$E:$E,$C107,raw_resource_build!$A:$A,O$97,raw_resource_build!$C:$C,mainzone)","v":0},{"$f":"SUMIFS(raw_resource_build!$H:$H,raw_resource_build!$E:$E,$C107,raw_resource_build!$A:$A,P$97,raw_resource_build!$C:$C,mainzone)","v":0},{"$f":"SUMIFS(raw_resource_build!$H:$H,raw_resource_build!$E:$E,$C107,raw_resource_build!$A:$A,Q$97,raw_resource_build!$C:$C,mainzone)","v":0},{"$f":"SUMIFS(raw_resource_build!$H:$H,raw_resource_build!$E:$E,$C107,raw_resource_build!$A:$A,R$97,raw_resource_build!$C:$C,mainzone)","v":0},{"$f":"SUMIFS(raw_resource_build!$H:$H,raw_resource_build!$E:$E,$C107,raw_resource_build!$A:$A,S$97,raw_resource_build!$C:$C,mainzone)","v":0},{"$f":"SUMIFS(raw_resource_build!$H:$H,raw_resource_build!$E:$E,$C107,raw_resource_build!$A:$A,T$97,raw_resource_build!$C:$C,mainzone)","v":0},{"$f":"SUMIFS(raw_resource_build!$H:$H,raw_resource_build!$E:$E,$C107,raw_resource_build!$A:$A,U$97,raw_resource_build!$C:$C,mainzone)","v":0},{"$f":"SUMIFS(raw_resource_build!$H:$H,raw_resource_build!$E:$E,$C107,raw_resource_build!$A:$A,V$97,raw_resource_build!$C:$C,mainzone)","v":0},{"$f":"SUMIFS(raw_resource_build!$H:$H,raw_resource_build!$E:$E,$C107,raw_resource_build!$A:$A,W$97,raw_resource_build!$C:$C,mainzone)","v":0},{"$f":"SUMIFS(raw_resource_build!$H:$H,raw_resource_build!$E:$E,$C107,raw_resource_build!$A:$A,X$97,raw_resource_build!$C:$C,mainzone)","v":0},{"$f":"SUMIFS(raw_resource_build!$H:$H,raw_resource_build!$E:$E,$C107,raw_resource_build!$A:$A,Y$97,raw_resource_build!$C:$C,mainzone)","v":0},{"$f":"SUMIFS(raw_resource_build!$H:$H,raw_resource_build!$E:$E,$C107,raw_resource_build!$A:$A,Z$97,raw_resource_build!$C:$C,mainzone)","v":0},{"$f":"SUMIFS(raw_resource_build!$H:$H,raw_resource_build!$E:$E,$C107,raw_resource_build!$A:$A,AA$97,raw_resource_build!$C:$C,mainzone)","v":0},{"$f":"SUMIFS(raw_resource_build!$H:$H,raw_resource_build!$E:$E,$C107,raw_resource_build!$A:$A,AB$97,raw_resource_build!$C:$C,mainzone)","v":0},{"$f":"SUMIFS(raw_resource_build!$H:$H,raw_resource_build!$E:$E,$C107,raw_resource_build!$A:$A,AC$97,raw_resource_build!$C:$C,mainzone)","v":0},{"$f":"SUMIFS(raw_resource_build!$H:$H,raw_resource_build!$E:$E,$C107,raw_resource_build!$A:$A,AD$97,raw_resource_build!$C:$C,mainzone)","v":0},{"$f":"SUMIFS(raw_resource_build!$H:$H,raw_resource_build!$E:$E,$C107,raw_resource_build!$A:$A,AE$97,raw_resource_build!$C:$C,mainzone)","v":0},{"$f":"SUMIFS(raw_resource_build!$H:$H,raw_resource_build!$E:$E,$C107,raw_resource_build!$A:$A,AF$97,raw_resource_build!$C:$C,mainzone)","v":0},{"$f":"SUMIFS(raw_resource_build!$H:$H,raw_resource_build!$E:$E,$C107,raw_resource_build!$A:$A,AG$97,raw_resource_build!$C:$C,mainzone)","v":0},{"$f":"SUMIFS(raw_resource_build!$H:$H,raw_resource_build!$E:$E,$C107,raw_resource_build!$A:$A,AH$97,raw_resource_build!$C:$C,mainzone)","v":0},{"$f":"SUMIFS(raw_resource_build!$H:$H,raw_resource_build!$E:$E,$C107,raw_resource_build!$A:$A,AI$97,raw_resource_build!$C:$C,mainzone)","v":0},{"$f":"SUMIFS(raw_resource_build!$H:$H,raw_resource_build!$E:$E,$C107,raw_resource_build!$A:$A,AJ$97,raw_resource_build!$C:$C,mainzone)","v":0},{"$f":"SUMIFS(raw_resource_build!$H:$H,raw_resource_build!$E:$E,$C107,raw_resource_build!$A:$A,AK$97,raw_resource_build!$C:$C,mainzone)","v":0},{"$f":"SUMIFS(raw_resource_build!$H:$H,raw_resource_build!$E:$E,$C107,raw_resource_build!$A:$A,AL$97,raw_resource_build!$C:$C,mainzone)","v":0},{"$f":"SUMIFS(raw_resource_build!$H:$H,raw_resource_build!$E:$E,$C107,raw_resource_build!$A:$A,AM$97,raw_resource_build!$C:$C,mainzone)","v":0},{"$f":"SUMIFS(raw_resource_build!$H:$H,raw_resource_build!$E:$E,$C107,raw_resource_build!$A:$A,AN$97,raw_resource_build!$C:$C,mainzone)","v":0}]
[null,null,"CAISO_Nuclear","MW",{"$f":"SUMIFS(raw_resource_build!$H:$H,raw_resource_build!$E:$E,$C108,raw_resource_build!$A:$A,E$97,raw_resource_build!$C:$C,mainzone)","v":0},{"$f":"SUMIFS(raw_resource_build!$H:$H,raw_resource_build!$E:$E,$C108,raw_resource_build!$A:$A,F$97,raw_resource_build!$C:$C,mainzone)","v":0},{"$f":"SUMIFS(raw_resource_build!$H:$H,raw_resource_build!$E:$E,$C108,raw_resource_build!$A:$A,G$97,raw_resource_build!$C:$C,mainzone)","v":0},{"$f":"SUMIFS(raw_resource_build!$H:$H,raw_resource_build!$E:$E,$C108,raw_resource_build!$A:$A,H$97,raw_resource_build!$C:$C,mainzone)","v":0},{"$f":"SUMIFS(raw_resource_build!$H:$H,raw_resource_build!$E:$E,$C108,raw_resource_build!$A:$A,I$97,raw_resource_build!$C:$C,mainzone)","v":0},{"$f":"SUMIFS(raw_resource_build!$H:$H,raw_resource_build!$E:$E,$C108,raw_resource_build!$A:$A,J$97,raw_resource_build!$C:$C,mainzone)","v":0},{"$f":"SUMIFS(raw_resource_build!$H:$H,raw_resource_build!$E:$E,$C108,raw_resource_build!$A:$A,K$97,raw_resource_build!$C:$C,mainzone)","v":0},{"$f":"SUMIFS(raw_resource_build!$H:$H,raw_resource_build!$E:$E,$C108,raw_resource_build!$A:$A,L$97,raw_resource_build!$C:$C,mainzone)","v":0},{"$f":"SUMIFS(raw_resource_build!$H:$H,raw_resource_build!$E:$E,$C108,raw_resource_build!$A:$A,M$97,raw_resource_build!$C:$C,mainzone)","v":0},{"$f":"SUMIFS(raw_resource_build!$H:$H,raw_resource_build!$E:$E,$C108,raw_resource_build!$A:$A,N$97,raw_resource_build!$C:$C,mainzone)","v":0},{"$f":"SUMIFS(raw_resource_build!$H:$H,raw_resource_build!$E:$E,$C108,raw_resource_build!$A:$A,O$97,raw_resource_build!$C:$C,mainzone)","v":0},{"$f":"SUMIFS(raw_resource_build!$H:$H,raw_resource_build!$E:$E,$C108,raw_resource_build!$A:$A,P$97,raw_resource_build!$C:$C,mainzone)","v":0},{"$f":"SUMIFS(raw_resource_build!$H:$H,raw_resource_build!$E:$E,$C108,raw_resource_build!$A:$A,Q$97,raw_resource_build!$C:$C,mainzone)","v":0},{"$f":"SUMIFS(raw_resource_build!$H:$H,raw_resource_build!$E:$E,$C108,raw_resource_build!$A:$A,R$97,raw_resource_build!$C:$C,mainzone)","v":0},{"$f":"SUMIFS(raw_resource_build!$H:$H,raw_resource_build!$E:$E,$C108,raw_resource_build!$A:$A,S$97,raw_resource_build!$C:$C,mainzone)","v":0},{"$f":"SUMIFS(raw_resource_build!$H:$H,raw_resource_build!$E:$E,$C108,raw_resource_build!$A:$A,T$97,raw_resource_build!$C:$C,mainzone)","v":0},{"$f":"SUMIFS(raw_resource_build!$H:$H,raw_resource_build!$E:$E,$C108,raw_resource_build!$A:$A,U$97,raw_resource_build!$C:$C,mainzone)","v":0},{"$f":"SUMIFS(raw_resource_build!$H:$H,raw_resource_build!$E:$E,$C108,raw_resource_build!$A:$A,V$97,raw_resource_build!$C:$C,mainzone)","v":0},{"$f":"SUMIFS(raw_resource_build!$H:$H,raw_resource_build!$E:$E,$C108,raw_resource_build!$A:$A,W$97,raw_resource_build!$C:$C,mainzone)","v":0},{"$f":"SUMIFS(raw_resource_build!$H:$H,raw_resource_build!$E:$E,$C108,raw_resource_build!$A:$A,X$97,raw_resource_build!$C:$C,mainzone)","v":0},{"$f":"SUMIFS(raw_resource_build!$H:$H,raw_resource_build!$E:$E,$C108,raw_resource_build!$A:$A,Y$97,raw_resource_build!$C:$C,mainzone)","v":0},{"$f":"SUMIFS(raw_resource_build!$H:$H,raw_resource_build!$E:$E,$C108,raw_resource_build!$A:$A,Z$97,raw_resource_build!$C:$C,mainzone)","v":0},{"$f":"SUMIFS(raw_resource_build!$H:$H,raw_resource_build!$E:$E,$C108,raw_resource_build!$A:$A,AA$97,raw_resource_build!$C:$C,mainzone)","v":0},{"$f":"SUMIFS(raw_resource_build!$H:$H,raw_resource_build!$E:$E,$C108,raw_resource_build!$A:$A,AB$97,raw_resource_build!$C:$C,mainzone)","v":0},{"$f":"SUMIFS(raw_resource_build!$H:$H,raw_resource_build!$E:$E,$C108,raw_resource_build!$A:$A,AC$97,raw_resource_build!$C:$C,mainzone)","v":0},{"$f":"SUMIFS(raw_resource_build!$H:$H,raw_resource_build!$E:$E,$C108,raw_resource_build!$A:$A,AD$97,raw_resource_build!$C:$C,mainzone)","v":0},{"$f":"SUMIFS(raw_resource_build!$H:$H,raw_resource_build!$E:$E,$C108,raw_resource_build!$A:$A,AE$97,raw_resource_build!$C:$C,mainzone)","v":0},{"$f":"SUMIFS(raw_resource_build!$H:$H,raw_resource_build!$E:$E,$C108,raw_resource_build!$A:$A,AF$97,raw_resource_build!$C:$C,mainzone)","v":0},{"$f":"SUMIFS(raw_resource_build!$H:$H,raw_resource_build!$E:$E,$C108,raw_resource_build!$A:$A,AG$97,raw_resource_build!$C:$C,mainzone)","v":0},{"$f":"SUMIFS(raw_resource_build!$H:$H,raw_resource_build!$E:$E,$C108,raw_resource_build!$A:$A,AH$97,raw_resource_build!$C:$C,mainzone)","v":0},{"$f":"SUMIFS(raw_resource_build!$H:$H,raw_resource_build!$E:$E,$C108,raw_resource_build!$A:$A,AI$97,raw_resource_build!$C:$C,mainzone)","v":0},{"$f":"SUMIFS(raw_resource_build!$H:$H,raw_resource_build!$E:$E,$C108,raw_resource_build!$A:$A,AJ$97,raw_resource_build!$C:$C,mainzone)","v":0},{"$f":"SUMIFS(raw_resource_build!$H:$H,raw_resource_build!$E:$E,$C108,raw_resource_build!$A:$A,AK$97,raw_resource_build!$C:$C,mainzone)","v":0},{"$f":"SUMIFS(raw_resource_build!$H:$H,raw_resource_build!$E:$E,$C108,raw_resource_build!$A:$A,AL$97,raw_resource_build!$C:$C,mainzone)","v":0},{"$f":"SUMIFS(raw_resource_build!$H:$H,raw_resource_build!$E:$E,$C108,raw_resource_build!$A:$A,AM$97,raw_resource_build!$C:$C,mainzone)","v":0},{"$f":"SUMIFS(raw_resource_build!$H:$H,raw_resource_build!$E:$E,$C108,raw_resource_build!$A:$A,AN$97,raw_resource_build!$C:$C,mainzone)","v":0}]
[null,null,"Hydro","MW",{"$f":"SUMIFS(raw_resource_build!$H:$H,raw_resource_build!$E:$E,$C109,raw_resource_build!$A:$A,E$97,raw_resource_build!$C:$C,mainzone)","v":0},{"$f":"SUMIFS(raw_resource_build!$H:$H,raw_resource_build!$E:$E,$C109,raw_resource_build!$A:$A,F$97,raw_resource_build!$C:$C,mainzone)","v":0},{"$f":"SUMIFS(raw_resource_build!$H:$H,raw_resource_build!$E:$E,$C109,raw_resource_build!$A:$A,G$97,raw_resource_build!$C:$C,mainzone)","v":0},{"$f":"SUMIFS(raw_resource_build!$H:$H,raw_resource_build!$E:$E,$C109,raw_resource_build!$A:$A,H$97,raw_resource_build!$C:$C,mainzone)","v":0},{"$f":"SUMIFS(raw_resource_build!$H:$H,raw_resource_build!$E:$E,$C109,raw_resource_build!$A:$A,I$97,raw_resource_build!$C:$C,mainzone)","v":0},{"$f":"SUMIFS(raw_resource_build!$H:$H,raw_resource_build!$E:$E,$C109,raw_resource_build!$A:$A,J$97,raw_resource_build!$C:$C,mainzone)","v":0},{"$f":"SUMIFS(raw_resource_build!$H:$H,raw_resource_build!$E:$E,$C109,raw_resource_build!$A:$A,K$97,raw_resource_build!$C:$C,mainzone)","v":0},{"$f":"SUMIFS(raw_resource_build!$H:$H,raw_resource_build!$E:$E,$C109,raw_resource_build!$A:$A,L$97,raw_resource_build!$C:$C,mainzone)","v":0},{"$f":"SUMIFS(raw_resource_build!$H:$H,raw_resource_build!$E:$E,$C109,raw_resource_build!$A:$A,M$97,raw_resource_build!$C:$C,mainzone)","v":0},{"$f":"SUMIFS(raw_resource_build!$H:$H,raw_resource_build!$E:$E,$C109,raw_resource_build!$A:$A,N$97,raw_resource_build!$C:$C,mainzone)","v":0},{"$f":"SUMIFS(raw_resource_build!$H:$H,raw_resource_build!$E:$E,$C109,raw_resource_build!$A:$A,O$97,raw_resource_build!$C:$C,mainzone)","v":0},{"$f":"SUMIFS(raw_resource_build!$H:$H,raw_resource_build!$E:$E,$C109,raw_resource_build!$A:$A,P$97,raw_resource_build!$C:$C,mainzone)","v":0},{"$f":"SUMIFS(raw_resource_build!$H:$H,raw_resource_build!$E:$E,$C109,raw_resource_build!$A:$A,Q$97,raw_resource_build!$C:$C,mainzone)","v":0},{"$f":"SUMIFS(raw_resource_build!$H:$H,raw_resource_build!$E:$E,$C109,raw_resource_build!$A:$A,R$97,raw_resource_build!$C:$C,mainzone)","v":0},{"$f":"SUMIFS(raw_resource_build!$H:$H,raw_resource_build!$E:$E,$C109,raw_resource_build!$A:$A,S$97,raw_resource_build!$C:$C,mainzone)","v":0},{"$f":"SUMIFS(raw_resource_build!$H:$H,raw_resource_build!$E:$E,$C109,raw_resource_build!$A:$A,T$97,raw_resource_build!$C:$C,mainzone)","v":0},{"$f":"SUMIFS(raw_resource_build!$H:$H,raw_resource_build!$E:$E,$C109,raw_resource_build!$A:$A,U$97,raw_resource_build!$C:$C,mainzone)","v":0},{"$f":"SUMIFS(raw_resource_build!$H:$H,raw_resource_build!$E:$E,$C109,raw_resource_build!$A:$A,V$97,raw_resource_build!$C:$C,mainzone)","v":0},{"$f":"SUMIFS(raw_resource_build!$H:$H,raw_resource_build!$E:$E,$C109,raw_resource_build!$A:$A,W$97,raw_resource_build!$C:$C,mainzone)","v":0},{"$f":"SUMIFS(raw_resource_build!$H:$H,raw_resource_build!$E:$E,$C109,raw_resource_build!$A:$A,X$97,raw_resource_build!$C:$C,mainzone)","v":0},{"$f":"SUMIFS(raw_resource_build!$H:$H,raw_resource_build!$E:$E,$C109,raw_resource_build!$A:$A,Y$97,raw_resource_build!$C:$C,mainzone)","v":0},{"$f":"SUMIFS(raw_resource_build!$H:$H,raw_resource_build!$E:$E,$C109,raw_resource_build!$A:$A,Z$97,raw_resource_build!$C:$C,mainzone)","v":0},{"$f":"SUMIFS(raw_resource_build!$H:$H,raw_resource_build!$E:$E,$C109,raw_resource_build!$A:$A,AA$97,raw_resource_build!$C:$C,mainzone)","v":0},{"$f":"SUMIFS(raw_resource_build!$H:$H,raw_resource_build!$E:$E,$C109,raw_resource_build!$A:$A,AB$97,raw_resource_build!$C:$C,mainzone)","v":0},{"$f":"SUMIFS(raw_resource_build!$H:$H,raw_resource_build!$E:$E,$C109,raw_resource_build!$A:$A,AC$97,raw_resource_build!$C:$C,mainzone)","v":0},{"$f":"SUMIFS(raw_resource_build!$H:$H,raw_resource_build!$E:$E,$C109,raw_resource_build!$A:$A,AD$97,raw_resource_build!$C:$C,mainzone)","v":0},{"$f":"SUMIFS(raw_resource_build!$H:$H,raw_resource_build!$E:$E,$C109,raw_resource_build!$A:$A,AE$97,raw_resource_build!$C:$C,mainzone)","v":0},{"$f":"SUMIFS(raw_resource_build!$H:$H,raw_resource_build!$E:$E,$C109,raw_resource_build!$A:$A,AF$97,raw_resource_build!$C:$C,mainzone)","v":0},{"$f":"SUMIFS(raw_resource_build!$H:$H,raw_resource_build!$E:$E,$C109,raw_resource_build!$A:$A,AG$97,raw_resource_build!$C:$C,mainzone)","v":0},{"$f":"SUMIFS(raw_resource_build!$H:$H,raw_resource_build!$E:$E,$C109,raw_resource_build!$A:$A,AH$97,raw_resource_build!$C:$C,mainzone)","v":0},{"$f":"SUMIFS(raw_resource_build!$H:$H,raw_resource_build!$E:$E,$C109,raw_resource_build!$A:$A,AI$97,raw_resource_build!$C:$C,mainzone)","v":0},{"$f":"SUMIFS(raw_resource_build!$H:$H,raw_resource_build!$E:$E,$C109,raw_resource_build!$A:$A,AJ$97,raw_resource_build!$C:$C,mainzone)","v":0},{"$f":"SUMIFS(raw_resource_build!$H:$H,raw_resource_build!$E:$E,$C109,raw_resource_build!$A:$A,AK$97,raw_resource_build!$C:$C,mainzone)","v":0},{"$f":"SUMIFS(raw_resource_build!$H:$H,raw_resource_build!$E:$E,$C109,raw_resource_build!$A:$A,AL$97,raw_resource_build!$C:$C,mainzone)","v":0},{"$f":"SUMIFS(raw_resource_build!$H:$H,raw_resource_build!$E:$E,$C109,raw_resource_build!$A:$A,AM$97,raw_resource_build!$C:$C,mainzone)","v":0},{"$f":"SUMIFS(raw_resource_build!$H:$H,raw_resource_build!$E:$E,$C109,raw_resource_build!$A:$A,AN$97,raw_resource_build!$C:$C,mainzone)","v":0}]
[null,null,"Hydro_NW_CAISO","MW",{"$f":"SUMIFS(raw_resource_build!$H:$H,raw_resource_build!$E:$E,$C110,raw_resource_build!$A:$A,E$97,raw_resource_build!$C:$C,\"CAISO_NW_Hydro\")","v":0},{"$f":"SUMIFS(raw_resource_build!$H:$H,raw_resource_build!$E:$E,$C110,raw_resource_build!$A:$A,F$97,raw_resource_build!$C:$C,\"CAISO_NW_Hydro\")","v":0},{"$f":"SUMIFS(raw_resource_build!$H:$H,raw_resource_build!$E:$E,$C110,raw_resource_build!$A:$A,G$97,raw_resource_build!$C:$C,\"CAISO_NW_Hydro\")","v":0},{"$f":"SUMIFS(raw_resource_build!$H:$H,raw_resource_build!$E:$E,$C110,raw_resource_build!$A:$A,H$97,raw_resource_build!$C:$C,\"CAISO_NW_Hydro\")","v":0},{"$f":"SUMIFS(raw_resource_build!$H:$H,raw_resource_build!$E:$E,$C110,raw_resource_build!$A:$A,I$97,raw_resource_build!$C:$C,\"CAISO_NW_Hydro\")","v":0},{"$f":"SUMIFS(raw_resource_build!$H:$H,raw_resource_build!$E:$E,$C110,raw_resource_build!$A:$A,J$97,raw_resource_build!$C:$C,\"CAISO_NW_Hydro\")","v":0},{"$f":"SUMIFS(raw_resource_build!$H:$H,raw_resource_build!$E:$E,$C110,raw_resource_build!$A:$A,K$97,raw_resource_build!$C:$C,\"CAISO_NW_Hydro\")","v":0},{"$f":"SUMIFS(raw_resource_build!$H:$H,raw_resource_build!$E:$E,$C110,raw_resource_build!$A:$A,L$97,raw_resource_build!$C:$C,\"CAISO_NW_Hydro\")","v":0},{"$f":"SUMIFS(raw_resource_build!$H:$H,raw_resource_build!$E:$E,$C110,raw_resource_build!$A:$A,M$97,raw_resource_build!$C:$C,\"CAISO_NW_Hydro\")","v":0},{"$f":"SUMIFS(raw_resource_build!$H:$H,raw_resource_build!$E:$E,$C110,raw_resource_build!$A:$A,N$97,raw_resource_build!$C:$C,\"CAISO_NW_Hydro\")","v":0},{"$f":"SUMIFS(raw_resource_build!$H:$H,raw_resource_build!$E:$E,$C110,raw_resource_build!$A:$A,O$97,raw_resource_build!$C:$C,\"CAISO_NW_Hydro\")","v":0},{"$f":"SUMIFS(raw_resource_build!$H:$H,raw_resource_build!$E:$E,$C110,raw_resource_build!$A:$A,P$97,raw_resource_build!$C:$C,\"CAISO_NW_Hydro\")","v":0},{"$f":"SUMIFS(raw_resource_build!$H:$H,raw_resource_build!$E:$E,$C110,raw_resource_build!$A:$A,Q$97,raw_resource_build!$C:$C,\"CAISO_NW_Hydro\")","v":0},{"$f":"SUMIFS(raw_resource_build!$H:$H,raw_resource_build!$E:$E,$C110,raw_resource_build!$A:$A,R$97,raw_resource_build!$C:$C,\"CAISO_NW_Hydro\")","v":0},{"$f":"SUMIFS(raw_resource_build!$H:$H,raw_resource_build!$E:$E,$C110,raw_resource_build!$A:$A,S$97,raw_resource_build!$C:$C,\"CAISO_NW_Hydro\")","v":0},{"$f":"SUMIFS(raw_resource_build!$H:$H,raw_resource_build!$E:$E,$C110,raw_resource_build!$A:$A,T$97,raw_resource_build!$C:$C,\"CAISO_NW_Hydro\")","v":0},{"$f":"SUMIFS(raw_resource_build!$H:$H,raw_resource_build!$E:$E,$C110,raw_resource_build!$A:$A,U$97,raw_resource_build!$C:$C,\"CAISO_NW_Hydro\")","v":0},{"$f":"SUMIFS(raw_resource_build!$H:$H,raw_resource_build!$E:$E,$C110,raw_resource_build!$A:$A,V$97,raw_resource_build!$C:$C,\"CAISO_NW_Hydro\")","v":0},{"$f":"SUMIFS(raw_resource_build!$H:$H,raw_resource_build!$E:$E,$C110,raw_resource_build!$A:$A,W$97,raw_resource_build!$C:$C,\"CAISO_NW_Hydro\")","v":0},{"$f":"SUMIFS(raw_resource_build!$H:$H,raw_resource_build!$E:$E,$C110,raw_resource_build!$A:$A,X$97,raw_resource_build!$C:$C,\"CAISO_NW_Hydro\")","v":0},{"$f":"SUMIFS(raw_resource_build!$H:$H,raw_resource_build!$E:$E,$C110,raw_resource_build!$A:$A,Y$97,raw_resource_build!$C:$C,\"CAISO_NW_Hydro\")","v":0},{"$f":"SUMIFS(raw_resource_build!$H:$H,raw_resource_build!$E:$E,$C110,raw_resource_build!$A:$A,Z$97,raw_resource_build!$C:$C,\"CAISO_NW_Hydro\")","v":0},{"$f":"SUMIFS(raw_resource_build!$H:$H,raw_resource_build!$E:$E,$C110,raw_resource_build!$A:$A,AA$97,raw_resource_build!$C:$C,\"CAISO_NW_Hydro\")","v":0},{"$f":"SUMIFS(raw_resource_build!$H:$H,raw_resource_build!$E:$E,$C110,raw_resource_build!$A:$A,AB$97,raw_resource_build!$C:$C,\"CAISO_NW_Hydro\")","v":0},{"$f":"SUMIFS(raw_resource_build!$H:$H,raw_resource_build!$E:$E,$C110,raw_resource_build!$A:$A,AC$97,raw_resource_build!$C:$C,\"CAISO_NW_Hydro\")","v":0},{"$f":"SUMIFS(raw_resource_build!$H:$H,raw_resource_build!$E:$E,$C110,raw_resource_build!$A:$A,AD$97,raw_resource_build!$C:$C,\"CAISO_NW_Hydro\")","v":0},{"$f":"SUMIFS(raw_resource_build!$H:$H,raw_resource_build!$E:$E,$C110,raw_resource_build!$A:$A,AE$97,raw_resource_build!$C:$C,\"CAISO_NW_Hydro\")","v":0},{"$f":"SUMIFS(raw_resource_build!$H:$H,raw_resource_build!$E:$E,$C110,raw_resource_build!$A:$A,AF$97,raw_resource_build!$C:$C,\"CAISO_NW_Hydro\")","v":0},{"$f":"SUMIFS(raw_resource_build!$H:$H,raw_resource_build!$E:$E,$C110,raw_resource_build!$A:$A,AG$97,raw_resource_build!$C:$C,\"CAISO_NW_Hydro\")","v":0},{"$f":"SUMIFS(raw_resource_build!$H:$H,raw_resource_build!$E:$E,$C110,raw_resource_build!$A:$A,AH$97,raw_resource_build!$C:$C,\"CAISO_NW_Hydro\")","v":0},{"$f":"SUMIFS(raw_resource_build!$H:$H,raw_resource_build!$E:$E,$C110,raw_resource_build!$A:$A,AI$97,raw_resource_build!$C:$C,\"CAISO_NW_Hydro\")","v":0},{"$f":"SUMIFS(raw_resource_build!$H:$H,raw_resource_build!$E:$E,$C110,raw_resource_build!$A:$A,AJ$97,raw_resource_build!$C:$C,\"CAISO_NW_Hydro\")","v":0},{"$f":"SUMIFS(raw_resource_build!$H:$H,raw_resource_build!$E:$E,$C110,raw_resource_build!$A:$A,AK$97,raw_resource_build!$C:$C,\"CAISO_NW_Hydro\")","v":0},{"$f":"SUMIFS(raw_resource_build!$H:$H,raw_resource_build!$E:$E,$C110,raw_resource_build!$A:$A,AL$97,raw_resource_build!$C:$C,\"CAISO_NW_Hydro\")","v":0},{"$f":"SUMIFS(raw_resource_build!$H:$H,raw_resource_build!$E:$E,$C110,raw_resource_build!$A:$A,AM$97,raw_resource_build!$C:$C,\"CAISO_NW_Hydro\")","v":0},{"$f":"SUMIFS(raw_resource_build!$H:$H,raw_resource_build!$E:$E,$C110,raw_resource_build!$A:$A,AN$97,raw_resource_build!$C:$C,\"CAISO_NW_Hydro\")","v":0}]
[null,null,"CAISO_Conventional_DR","MW",{"$f":"SUMIFS(raw_resource_build!$H:$H,raw_resource_build!$E:$E,$C111,raw_resource_build!$A:$A,E$97,raw_resource_build!$C:$C,mainzone)","v":0},{"$f":"SUMIFS(raw_resource_build!$H:$H,raw_resource_build!$E:$E,$C111,raw_resource_build!$A:$A,F$97,raw_resource_build!$C:$C,mainzone)","v":0},{"$f":"SUMIFS(raw_resource_build!$H:$H,raw_resource_build!$E:$E,$C111,raw_resource_build!$A:$A,G$97,raw_resource_build!$C:$C,mainzone)","v":0},{"$f":"SUMIFS(raw_resource_build!$H:$H,raw_resource_build!$E:$E,$C111,raw_resource_build!$A:$A,H$97,raw_resource_build!$C:$C,mainzone)","v":0},{"$f":"SUMIFS(raw_resource_build!$H:$H,raw_resource_build!$E:$E,$C111,raw_resource_build!$A:$A,I$97,raw_resource_build!$C:$C,mainzone)","v":0},{"$f":"SUMIFS(raw_resource_build!$H:$H,raw_resource_build!$E:$E,$C111,raw_resource_build!$A:$A,J$97,raw_resource_build!$C:$C,mainzone)","v":0},{"$f":"SUMIFS(raw_resource_build!$H:$H,raw_resource_build!$E:$E,$C111,raw_resource_build!$A:$A,K$97,raw_resource_build!$C:$C,mainzone)","v":0},{"$f":"SUMIFS(raw_resource_build!$H:$H,raw_resource_build!$E:$E,$C111,raw_resource_build!$A:$A,L$97,raw_resource_build!$C:$C,mainzone)","v":0},{"$f":"SUMIFS(raw_resource_build!$H:$H,raw_resource_build!$E:$E,$C111,raw_resource_build!$A:$A,M$97,raw_resource_build!$C:$C,mainzone)","v":0},{"$f":"SUMIFS(raw_resource_build!$H:$H,raw_resource_build!$E:$E,$C111,raw_resource_build!$A:$A,N$97,raw_resource_build!$C:$C,mainzone)","v":0},{"$f":"SUMIFS(raw_resource_build!$H:$H,raw_resource_build!$E:$E,$C111,raw_resource_build!$A:$A,O$97,raw_resource_build!$C:$C,mainzone)","v":0},{"$f":"SUMIFS(raw_resource_build!$H:$H,raw_resource_build!$E:$E,$C111,raw_resource_build!$A:$A,P$97,raw_resource_build!$C:$C,mainzone)","v":0},{"$f":"SUMIFS(raw_resource_build!$H:$H,raw_resource_build!$E:$E,$C111,raw_resource_build!$A:$A,Q$97,raw_resource_build!$C:$C,mainzone)","v":0},{"$f":"SUMIFS(raw_resource_build!$H:$H,raw_resource_build!$E:$E,$C111,raw_resource_build!$A:$A,R$97,raw_resource_build!$C:$C,mainzone)","v":0},{"$f":"SUMIFS(raw_resource_build!$H:$H,raw_resource_build!$E:$E,$C111,raw_resource_build!$A:$A,S$97,raw_resource_build!$C:$C,mainzone)","v":0},{"$f":"SUMIFS(raw_resource_build!$H:$H,raw_resource_build!$E:$E,$C111,raw_resource_build!$A:$A,T$97,raw_resource_build!$C:$C,mainzone)","v":0},{"$f":"SUMIFS(raw_resource_build!$H:$H,raw_resource_build!$E:$E,$C111,raw_resource_build!$A:$A,U$97,raw_resource_build!$C:$C,mainzone)","v":0},{"$f":"SUMIFS(raw_resource_build!$H:$H,raw_resource_build!$E:$E,$C111,raw_resource_build!$A:$A,V$97,raw_resource_build!$C:$C,mainzone)","v":0},{"$f":"SUMIFS(raw_resource_build!$H:$H,raw_resource_build!$E:$E,$C111,raw_resource_build!$A:$A,W$97,raw_resource_build!$C:$C,mainzone)","v":0},{"$f":"SUMIFS(raw_resource_build!$H:$H,raw_resource_build!$E:$E,$C111,raw_resource_build!$A:$A,X$97,raw_resource_build!$C:$C,mainzone)","v":0},{"$f":"SUMIFS(raw_resource_build!$H:$H,raw_resource_build!$E:$E,$C111,raw_resource_build!$A:$A,Y$97,raw_resource_build!$C:$C,mainzone)","v":0},{"$f":"SUMIFS(raw_resource_build!$H:$H,raw_resource_build!$E:$E,$C111,raw_resource_build!$A:$A,Z$97,raw_resource_build!$C:$C,mainzone)","v":0},{"$f":"SUMIFS(raw_resource_build!$H:$H,raw_resource_build!$E:$E,$C111,raw_resource_build!$A:$A,AA$97,raw_resource_build!$C:$C,mainzone)","v":0},{"$f":"SUMIFS(raw_resource_build!$H:$H,raw_resource_build!$E:$E,$C111,raw_resource_build!$A:$A,AB$97,raw_resource_build!$C:$C,mainzone)","v":0},{"$f":"SUMIFS(raw_resource_build!$H:$H,raw_resource_build!$E:$E,$C111,raw_resource_build!$A:$A,AC$97,raw_resource_build!$C:$C,mainzone)","v":0},{"$f":"SUMIFS(raw_resource_build!$H:$H,raw_resource_build!$E:$E,$C111,raw_resource_build!$A:$A,AD$97,raw_resource_build!$C:$C,mainzone)","v":0},{"$f":"SUMIFS(raw_resource_build!$H:$H,raw_resource_build!$E:$E,$C111,raw_resource_build!$A:$A,AE$97,raw_resource_build!$C:$C,mainzone)","v":0},{"$f":"SUMIFS(raw_resource_build!$H:$H,raw_resource_build!$E:$E,$C111,raw_resource_build!$A:$A,AF$97,raw_resource_build!$C:$C,mainzone)","v":0},{"$f":"SUMIFS(raw_resource_build!$H:$H,raw_resource_build!$E:$E,$C111,raw_resource_build!$A:$A,AG$97,raw_resource_build!$C:$C,mainzone)","v":0},{"$f":"SUMIFS(raw_resource_build!$H:$H,raw_resource_build!$E:$E,$C111,raw_resource_build!$A:$A,AH$97,raw_resource_build!$C:$C,mainzone)","v":0},{"$f":"SUMIFS(raw_resource_build!$H:$H,raw_resource_build!$E:$E,$C111,raw_resource_build!$A:$A,AI$97,raw_resource_build!$C:$C,mainzone)","v":0},{"$f":"SUMIFS(raw_resource_build!$H:$H,raw_resource_build!$E:$E,$C111,raw_resource_build!$A:$A,AJ$97,raw_resource_build!$C:$C,mainzone)","v":0},{"$f":"SUMIFS(raw_resource_build!$H:$H,raw_resource_build!$E:$E,$C111,raw_resource_build!$A:$A,AK$97,raw_resource_build!$C:$C,mainzone)","v":0},{"$f":"SUMIFS(raw_resource_build!$H:$H,raw_resource_build!$E:$E,$C111,raw_resource_build!$A:$A,AL$97,raw_resource_build!$C:$C,mainzone)","v":0},{"$f":"SUMIFS(raw_resource_build!$H:$H,raw_resource_build!$E:$E,$C111,raw_resource_build!$A:$A,AM$97,raw_resource_build!$C:$C,mainzone)","v":0},{"$f":"SUMIFS(raw_resource_build!$H:$H,raw_resource_build!$E:$E,$C111,raw_resource_build!$A:$A,AN$97,raw_resource_build!$C:$C,mainzone)","v":0}]
[null,null,"Customer_PV","MW",{"$f":"SUMIFS(raw_resource_build!$H:$H,raw_resource_build!$E:$E,$C112,raw_resource_build!$A:$A,E$97,raw_resource_build!$C:$C,mainzone)","v":0},{"$f":"SUMIFS(raw_resource_build!$H:$H,raw_resource_build!$E:$E,$C112,raw_resource_build!$A:$A,F$97,raw_resource_build!$C:$C,mainzone)","v":0},{"$f":"SUMIFS(raw_resource_build!$H:$H,raw_resource_build!$E:$E,$C112,raw_resource_build!$A:$A,G$97,raw_resource_build!$C:$C,mainzone)","v":0},{"$f":"SUMIFS(raw_resource_build!$H:$H,raw_resource_build!$E:$E,$C112,raw_resource_build!$A:$A,H$97,raw_resource_build!$C:$C,mainzone)","v":0},{"$f":"SUMIFS(raw_resource_build!$H:$H,raw_resource_build!$E:$E,$C112,raw_resource_build!$A:$A,I$97,raw_resource_build!$C:$C,mainzone)","v":0},{"$f":"SUMIFS(raw_resource_build!$H:$H,raw_resource_build!$E:$E,$C112,raw_resource_build!$A:$A,J$97,raw_resource_build!$C:$C,mainzone)","v":0},{"$f":"SUMIFS(raw_resource_build!$H:$H,raw_resource_build!$E:$E,$C112,raw_resource_build!$A:$A,K$97,raw_resource_build!$C:$C,mainzone)","v":0},{"$f":"SUMIFS(raw_resource_build!$H:$H,raw_resource_build!$E:$E,$C112,raw_resource_build!$A:$A,L$97,raw_resource_build!$C:$C,mainzone)","v":0},{"$f":"SUMIFS(raw_resource_build!$H:$H,raw_resource_build!$E:$E,$C112,raw_resource_build!$A:$A,M$97,raw_resource_build!$C:$C,mainzone)","v":0},{"$f":"SUMIFS(raw_resource_build!$H:$H,raw_resource_build!$E:$E,$C112,raw_resource_build!$A:$A,N$97,raw_resource_build!$C:$C,mainzone)","v":0},{"$f":"SUMIFS(raw_resource_build!$H:$H,raw_resource_build!$E:$E,$C112,raw_resource_build!$A:$A,O$97,raw_resource_build!$C:$C,mainzone)","v":0},{"$f":"SUMIFS(raw_resource_build!$H:$H,raw_resource_build!$E:$E,$C112,raw_resource_build!$A:$A,P$97,raw_resource_build!$C:$C,mainzone)","v":0},{"$f":"SUMIFS(raw_resource_build!$H:$H,raw_resource_build!$E:$E,$C112,raw_resource_build!$A:$A,Q$97,raw_resource_build!$C:$C,mainzone)","v":0},{"$f":"SUMIFS(raw_resource_build!$H:$H,raw_resource_build!$E:$E,$C112,raw_resource_build!$A:$A,R$97,raw_resource_build!$C:$C,mainzone)","v":0},{"$f":"SUMIFS(raw_resource_build!$H:$H,raw_resource_build!$E:$E,$C112,raw_resource_build!$A:$A,S$97,raw_resource_build!$C:$C,mainzone)","v":0},{"$f":"SUMIFS(raw_resource_build!$H:$H,raw_resource_build!$E:$E,$C112,raw_resource_build!$A:$A,T$97,raw_resource_build!$C:$C,mainzone)","v":0},{"$f":"SUMIFS(raw_resource_build!$H:$H,raw_resource_build!$E:$E,$C112,raw_resource_build!$A:$A,U$97,raw_resource_build!$C:$C,mainzone)","v":0},{"$f":"SUMIFS(raw_resource_build!$H:$H,raw_resource_build!$E:$E,$C112,raw_resource_build!$A:$A,V$97,raw_resource_build!$C:$C,mainzone)","v":0},{"$f":"SUMIFS(raw_resource_build!$H:$H,raw_resource_build!$E:$E,$C112,raw_resource_build!$A:$A,W$97,raw_resource_build!$C:$C,mainzone)","v":0},{"$f":"SUMIFS(raw_resource_build!$H:$H,raw_resource_build!$E:$E,$C112,raw_resource_build!$A:$A,X$97,raw_resource_build!$C:$C,mainzone)","v":0},{"$f":"SUMIFS(raw_resource_build!$H:$H,raw_resource_build!$E:$E,$C112,raw_resource_build!$A:$A,Y$97,raw_resource_build!$C:$C,mainzone)","v":0},{"$f":"SUMIFS(raw_resource_build!$H:$H,raw_resource_build!$E:$E,$C112,raw_resource_build!$A:$A,Z$97,raw_resource_build!$C:$C,mainzone)","v":0},{"$f":"SUMIFS(raw_resource_build!$H:$H,raw_resource_build!$E:$E,$C112,raw_resource_build!$A:$A,AA$97,raw_resource_build!$C:$C,mainzone)","v":0},{"$f":"SUMIFS(raw_resource_build!$H:$H,raw_resource_build!$E:$E,$C112,raw_resource_build!$A:$A,AB$97,raw_resource_build!$C:$C,mainzone)","v":0},{"$f":"SUMIFS(raw_resource_build!$H:$H,raw_resource_build!$E:$E,$C112,raw_resource_build!$A:$A,AC$97,raw_resource_build!$C:$C,mainzone)","v":0},{"$f":"SUMIFS(raw_resource_build!$H:$H,raw_resource_build!$E:$E,$C112,raw_resource_build!$A:$A,AD$97,raw_resource_build!$C:$C,mainzone)","v":0},{"$f":"SUMIFS(raw_resource_build!$H:$H,raw_resource_build!$E:$E,$C112,raw_resource_build!$A:$A,AE$97,raw_resource_build!$C:$C,mainzone)","v":0},{"$f":"SUMIFS(raw_resource_build!$H:$H,raw_resource_build!$E:$E,$C112,raw_resource_build!$A:$A,AF$97,raw_resource_build!$C:$C,mainzone)","v":0},{"$f":"SUMIFS(raw_resource_build!$H:$H,raw_resource_build!$E:$E,$C112,raw_resource_build!$A:$A,AG$97,raw_resource_build!$C:$C,mainzone)","v":0},{"$f":"SUMIFS(raw_resource_build!$H:$H,raw_resource_build!$E:$E,$C112,raw_resource_build!$A:$A,AH$97,raw_resource_build!$C:$C,mainzone)","v":0},{"$f":"SUMIFS(raw_resource_build!$H:$H,raw_resource_build!$E:$E,$C112,raw_resource_build!$A:$A,AI$97,raw_resource_build!$C:$C,mainzone)","v":0},{"$f":"SUMIFS(raw_resource_build!$H:$H,raw_resource_build!$E:$E,$C112,raw_resource_build!$A:$A,AJ$97,raw_resource_build!$C:$C,mainzone)","v":0},{"$f":"SUMIFS(raw_resource_build!$H:$H,raw_resource_build!$E:$E,$C112,raw_resource_build!$A:$A,AK$97,raw_resource_build!$C:$C,mainzone)","v":0},{"$f":"SUMIFS(raw_resource_build!$H:$H,raw_resource_build!$E:$E,$C112,raw_resource_build!$A:$A,AL$97,raw_resource_build!$C:$C,mainzone)","v":0},{"$f":"SUMIFS(raw_resource_build!$H:$H,raw_resource_build!$E:$E,$C112,raw_resource_build!$A:$A,AM$97,raw_resource_build!$C:$C,mainzone)","v":0},{"$f":"SUMIFS(raw_resource_build!$H:$H,raw_resource_build!$E:$E,$C112,raw_resource_build!$A:$A,AN$97,raw_resource_build!$C:$C,mainzone)","v":0}]
[null,null,"Solar","MW",{"$f":"SUMIFS(raw_resource_build!$H:$H,raw_resource_build!$E:$E,$C113,raw_resource_build!$A:$A,E$97,raw_resource_build!$C:$C,mainzone)","v":0},{"$f":"SUMIFS(raw_resource_build!$H:$H,raw_resource_build!$E:$E,$C113,raw_resource_build!$A:$A,F$97,raw_resource_build!$C:$C,mainzone)","v":0},{"$f":"SUMIFS(raw_resource_build!$H:$H,raw_resource_build!$E:$E,$C113,raw_resource_build!$A:$A,G$97,raw_resource_build!$C:$C,mainzone)","v":0},{"$f":"SUMIFS(raw_resource_build!$H:$H,raw_resource_build!$E:$E,$C113,raw_resource_build!$A:$A,H$97,raw_resource_build!$C:$C,mainzone)","v":0},{"$f":"SUMIFS(raw_resource_build!$H:$H,raw_resource_build!$E:$E,$C113,raw_resource_build!$A:$A,I$97,raw_resource_build!$C:$C,mainzone)","v":0},{"$f":"SUMIFS(raw_resource_build!$H:$H,raw_resource_build!$E:$E,$C113,raw_resource_build!$A:$A,J$97,raw_resource_build!$C:$C,mainzone)","v":2000},{"$f":"SUMIFS(raw_resource_build!$H:$H,raw_resource_build!$E:$E,$C113,raw_resource_build!$A:$A,K$97,raw_resource_build!$C:$C,mainzone)","v":4000},{"$f":"SUMIFS(raw_resource_build!$H:$H,raw_resource_build!$E:$E,$C113,raw_resource_build!$A:$A,L$97,raw_resource_build!$C:$C,mainzone)","v":6000},{"$f":"SUMIFS(raw_resource_build!$H:$H,raw_resource_build!$E:$E,$C113,raw_resource_build!$A:$A,M$97,raw_resource_build!$C:$C,mainzone)","v":7999.9999999999991},{"$f":"SUMIFS(raw_resource_build!$H:$H,raw_resource_build!$E:$E,$C113,raw_resource_build!$A:$A,N$97,raw_resource_build!$C:$C,mainzone)","v":10731.52},{"$f":"SUMIFS(raw_resource_build!$H:$H,raw_resource_build!$E:$E,$C113,raw_resource_build!$A:$A,O$97,raw_resource_build!$C:$C,mainzone)","v":0},{"$f":"SUMIFS(raw_resource_build!$H:$H,raw_resource_build!$E:$E,$C113,raw_resource_build!$A:$A,P$97,raw_resource_build!$C:$C,mainzone)","v":15947.49},{"$f":"SUMIFS(raw_resource_build!$H:$H,raw_resource_build!$E:$E,$C113,raw_resource_build!$A:$A,Q$97,raw_resource_build!$C:$C,mainzone)","v":0},{"$f":"SUMIFS(raw_resource_build!$H:$H,raw_resource_build!$E:$E,$C113,raw_resource_build!$A:$A,R$97,raw_resource_build!$C:$C,mainzone)","v":0},{"$f":"SUMIFS(raw_resource_build!$H:$H,raw_resource_build!$E:$E,$C113,raw_resource_build!$A:$A,S$97,raw_resource_build!$C:$C,mainzone)","v":0},{"$f":"SUMIFS(raw_resource_build!$H:$H,raw_resource_build!$E:$E,$C113,raw_resource_build!$A:$A,T$97,raw_resource_build!$C:$C,mainzone)","v":26259.069999999996},{"$f":"SUMIFS(raw_resource_build!$H:$H,raw_resource_build!$E:$E,$C113,raw_resource_build!$A:$A,U$97,raw_resource_build!$C:$C,mainzone)","v":0},{"$f":"SUMIFS(raw_resource_build!$H:$H,raw_resource_build!$E:$E,$C113,raw_resource_build!$A:$A,V$97,raw_resource_build!$C:$C,mainzone)","v":0},{"$f":"SUMIFS(raw_resource_build!$H:$H,raw_resource_build!$E:$E,$C113,raw_resource_build!$A:$A,W$97,raw_resource_build!$C:$C,mainzone)","v":0},{"$f":"SUMIFS(raw_resource_build!$H:$H,raw_resource_build!$E:$E,$C113,raw_resource_build!$A:$A,X$97,raw_resource_build!$C:$C,mainzone)","v":0},{"$f":"SUMIFS(raw_resource_build!$H:$H,raw_resource_build!$E:$E,$C113,raw_resource_build!$A:$A,Y$97,raw_resource_build!$C:$C,mainzone)","v":0},{"$f":"SUMIFS(raw_resource_build!$H:$H,raw_resource_build!$E:$E,$C113,raw_resource_build!$A:$A,Z$97,raw_resource_build!$C:$C,mainzone)","v":0},{"$f":"SUMIFS(raw_resource_build!$H:$H,raw_resource_build!$E:$E,$C113,raw_resource_build!$A:$A,AA$97,raw_resource_build!$C:$C,mainzone)","v":0},{"$f":"SUMIFS(raw_resource_build!$H:$H,raw_resource_build!$E:$E,$C113,raw_resource_build!$A:$A,AB$97,raw_resource_build!$C:$C,mainzone)","v":0},{"$f":"SUMIFS(raw_resource_build!$H:$H,raw_resource_build!$E:$E,$C113,raw_resource_build!$A:$A,AC$97,raw_resource_build!$C:$C,mainzone)","v":0},{"$f":"SUMIFS(raw_resource_build!$H:$H,raw_resource_build!$E:$E,$C113,raw_resource_build!$A:$A,AD$97,raw_resource_build!$C:$C,mainzone)","v":0},{"$f":"SUMIFS(raw_resource_build!$H:$H,raw_resource_build!$E:$E,$C113,raw_resource_build!$A:$A,AE$97,raw_resource_build!$C:$C,mainzone)","v":0},{"$f":"SUMIFS(raw_resource_build!$H:$H,raw_resource_build!$E:$E,$C113,raw_resource_build!$A:$A,AF$97,raw_resource_build!$C:$C,mainzone)","v":0},{"$f":"SUMIFS(raw_resource_build!$H:$H,raw_resource_build!$E:$E,$C113,raw_resource_build!$A:$A,AG$97,raw_resource_build!$C:$C,mainzone)","v":0},{"$f":"SUMIFS(raw_resource_build!$H:$H,raw_resource_build!$E:$E,$C113,raw_resource_build!$A:$A,AH$97,raw_resource_build!$C:$C,mainzone)","v":0},{"$f":"SUMIFS(raw_resource_build!$H:$H,raw_resource_build!$E:$E,$C113,raw_resource_build!$A:$A,AI$97,raw_resource_build!$C:$C,mainzone)","v":116508.78},{"$f":"SUMIFS(raw_resource_build!$H:$H,raw_resource_build!$E:$E,$C113,raw_resource_build!$A:$A,AJ$97,raw_resource_build!$C:$C,mainzone)","v":0},{"$f":"SUMIFS(raw_resource_build!$H:$H,raw_resource_build!$E:$E,$C113,raw_resource_build!$A:$A,AK$97,raw_resource_build!$C:$C,mainzone)","v":0},{"$f":"SUMIFS(raw_resource_build!$H:$H,raw_resource_build!$E:$E,$C113,raw_resource_build!$A:$A,AL$97,raw_resource_build!$C:$C,mainzone)","v":0},{"$f":"SUMIFS(raw_resource_build!$H:$H,raw_resource_build!$E:$E,$C113,raw_resource_build!$A:$A,AM$97,raw_resource_build!$C:$C,mainzone)","v":0},{"$f":"SUMIFS(raw_resource_build!$H:$H,raw_resource_build!$E:$E,$C113,raw_resource_build!$A:$A,AN$97,raw_resource_build!$C:$C,mainzone)","v":0}]
[null,null,"Geothermal","MW",{"$f":"SUMIFS(raw_resource_build!$H:$H,raw_resource_build!$E:$E,$C114,raw_resource_build!$A:$A,E$97,raw_resource_build!$C:$C,mainzone)","v":0},{"$f":"SUMIFS(raw_resource_build!$H:$H,raw_resource_build!$E:$E,$C114,raw_resource_build!$A:$A,F$97,raw_resource_build!$C:$C,mainzone)","v":0},{"$f":"SUMIFS(raw_resource_build!$H:$H,raw_resource_build!$E:$E,$C114,raw_resource_build!$A:$A,G$97,raw_resource_build!$C:$C,mainzone)","v":0},{"$f":"SUMIFS(raw_resource_build!$H:$H,raw_resource_build!$E:$E,$C114,raw_resource_build!$A:$A,H$97,raw_resource_build!$C:$C,mainzone)","v":0},{"$f":"SUMIFS(raw_resource_build!$H:$H,raw_resource_build!$E:$E,$C114,raw_resource_build!$A:$A,I$97,raw_resource_build!$C:$C,mainzone)","v":0},{"$f":"SUMIFS(raw_resource_build!$H:$H,raw_resource_build!$E:$E,$C114,raw_resource_build!$A:$A,J$97,raw_resource_build!$C:$C,mainzone)","v":0},{"$f":"SUMIFS(raw_resource_build!$H:$H,raw_resource_build!$E:$E,$C114,raw_resource_build!$A:$A,K$97,raw_resource_build!$C:$C,mainzone)","v":0},{"$f":"SUMIFS(raw_resource_build!$H:$H,raw_resource_build!$E:$E,$C114,raw_resource_build!$A:$A,L$97,raw_resource_build!$C:$C,mainzone)","v":0},{"$f":"SUMIFS(raw_resource_build!$H:$H,raw_resource_build!$E:$E,$C114,raw_resource_build!$A:$A,M$97,raw_resource_build!$C:$C,mainzone)","v":0},{"$f":"SUMIFS(raw_resource_build!$H:$H,raw_resource_build!$E:$E,$C114,raw_resource_build!$A:$A,N$97,raw_resource_build!$C:$C,mainzone)","v":135},{"$f":"SUMIFS(raw_resource_build!$H:$H,raw_resource_build!$E:$E,$C114,raw_resource_build!$A:$A,O$97,raw_resource_build!$C:$C,mainzone)","v":0},{"$f":"SUMIFS(raw_resource_build!$H:$H,raw_resource_build!$E:$E,$C114,raw_resource_build!$A:$A,P$97,raw_resource_build!$C:$C,mainzone)","v":135},{"$f":"SUMIFS(raw_resource_build!$H:$H,raw_resource_build!$E:$E,$C114,raw_resource_build!$A:$A,Q$97,raw_resource_build!$C:$C,mainzone)","v":0},{"$f":"SUMIFS(raw_resource_build!$H:$H,raw_resource_build!$E:$E,$C114,raw_resource_build!$A:$A,R$97,raw_resource_build!$C:$C,mainzone)","v":0},{"$f":"SUMIFS(raw_resource_build!$H:$H,raw_resource_build!$E:$E,$C114,raw_resource_build!$A:$A,S$97,raw_resource_build!$C:$C,mainzone)","v":0},{"$f":"SUMIFS(raw_resource_build!$H:$H,raw_resource_build!$E:$E,$C114,raw_resource_build!$A:$A,T$97,raw_resource_build!$C:$C,mainzone)","v":135},{"$f":"SUMIFS(raw_resource_build!$H:$H,raw_resource_build!$E:$E,$C114,raw_resource_build!$A:$A,U$97,raw_resource_build!$C:$C,mainzone)","v":0},{"$f":"SUMIFS(raw_resource_build!$H:$H,raw_resource_build!$E:$E,$C114,raw_resource_build!$A:$A,V$97,raw_resource_build!$C:$C,mainzone)","v":0},{"$f":"SUMIFS(raw_resource_build!$H:$H,raw_resource_build!$E:$E,$C114,raw_resource_build!$A:$A,W$97,raw_resource_build!$C:$C,mainzone)","v":0},{"$f":"SUMIFS(raw_resource_build!$H:$H,raw_resource_build!$E:$E,$C114,raw_resource_build!$A:$A,X$97,raw_resource_build!$C:$C,mainzone)","v":0},{"$f":"SUMIFS(raw_resource_build!$H:$H,raw_resource_build!$E:$E,$C114,raw_resource_build!$A:$A,Y$97,raw_resource_build!$C:$C,mainzone)","v":0},{"$f":"SUMIFS(raw_resource_build!$H:$H,raw_resource_build!$E:$E,$C114,raw_resource_build!$A:$A,Z$97,raw_resource_build!$C:$C,mainzone)","v":0},{"$f":"SUMIFS(raw_resource_build!$H:$H,raw_resource_build!$E:$E,$C114,raw_resource_build!$A:$A,AA$97,raw_resource_build!$C:$C,mainzone)","v":0},{"$f":"SUMIFS(raw_resource_build!$H:$H,raw_resource_build!$E:$E,$C114,raw_resource_build!$A:$A,AB$97,raw_resource_build!$C:$C,mainzone)","v":0},{"$f":"SUMIFS(raw_resource_build!$H:$H,raw_resource_build!$E:$E,$C114,raw_resource_build!$A:$A,AC$97,raw_resource_build!$C:$C,mainzone)","v":0},{"$f":"SUMIFS(raw_resource_build!$H:$H,raw_resource_build!$E:$E,$C114,raw_resource_build!$A:$A,AD$97,raw_resource_build!$C:$C,mainzone)","v":0},{"$f":"SUMIFS(raw_resource_build!$H:$H,raw_resource_build!$E:$E,$C114,raw_resource_build!$A:$A,AE$97,raw_resource_build!$C:$C,mainzone)","v":0},{"$f":"SUMIFS(raw_resource_build!$H:$H,raw_resource_build!$E:$E,$C114,raw_resource_build!$A:$A,AF$97,raw_resource_build!$C:$C,mainzone)","v":0},{"$f":"SUMIFS(raw_resource_build!$H:$H,raw_resource_build!$E:$E,$C114,raw_resource_build!$A:$A,AG$97,raw_resource_build!$C:$C,mainzone)","v":0},{"$f":"SUMIFS(raw_resource_build!$H:$H,raw_resource_build!$E:$E,$C114,raw_resource_build!$A:$A,AH$97,raw_resource_build!$C:$C,mainzone)","v":0},{"$f":"SUMIFS(raw_resource_build!$H:$H,raw_resource_build!$E:$E,$C114,raw_resource_build!$A:$A,AI$97,raw_resource_build!$C:$C,mainzone)","v":2332.1},{"$f":"SUMIFS(raw_resource_build!$H:$H,raw_resource_build!$E:$E,$C114,raw_resource_build!$A:$A,AJ$97,raw_resource_build!$C:$C,mainzone)","v":0},{"$f":"SUMIFS(raw_resource_build!$H:$H,raw_resource_build!$E:$E,$C114,raw_resource_build!$A:$A,AK$97,raw_resource_build!$C:$C,mainzone)","v":0},{"$f":"SUMIFS(raw_resource_build!$H:$H,raw_resource_build!$E:$E,$C114,raw_resource_build!$A:$A,AL$97,raw_resource_build!$C:$C,mainzone)","v":0},{"$f":"SUMIFS(raw_resource_build!$H:$H,raw_resource_build!$E:$E,$C114,raw_resource_build!$A:$A,AM$97,raw_resource_build!$C:$C,mainzone)","v":0},{"$f":"SUMIFS(raw_resource_build!$H:$H,raw_resource_build!$E:$E,$C114,raw_resource_build!$A:$A,AN$97,raw_resource_build!$C:$C,mainzone)","v":0}]
[null,null,"Biomass","MW",{"$f":"SUMIFS(raw_resource_build!$H:$H,raw_resource_build!$E:$E,$C115,raw_resource_build!$A:$A,E$97,raw_resource_build!$C:$C,mainzone)","v":0},{"$f":"SUMIFS(raw_resource_build!$H:$H,raw_resource_build!$E:$E,$C115,raw_resource_build!$A:$A,F$97,raw_resource_build!$C:$C,mainzone)","v":0},{"$f":"SUMIFS(raw_resource_build!$H:$H,raw_resource_build!$E:$E,$C115,raw_resource_build!$A:$A,G$97,raw_resource_build!$C:$C,mainzone)","v":0},{"$f":"SUMIFS(raw_resource_build!$H:$H,raw_resource_build!$E:$E,$C115,raw_resource_build!$A:$A,H$97,raw_resource_build!$C:$C,mainzone)","v":0},{"$f":"SUMIFS(raw_resource_build!$H:$H,raw_resource_build!$E:$E,$C115,raw_resource_build!$A:$A,I$97,raw_resource_build!$C:$C,mainzone)","v":0},{"$f":"SUMIFS(raw_resource_build!$H:$H,raw_resource_build!$E:$E,$C115,raw_resource_build!$A:$A,J$97,raw_resource_build!$C:$C,mainzone)","v":0},{"$f":"SUMIFS(raw_resource_build!$H:$H,raw_resource_build!$E:$E,$C115,raw_resource_build!$A:$A,K$97,raw_resource_build!$C:$C,mainzone)","v":0},{"$f":"SUMIFS(raw_resource_build!$H:$H,raw_resource_build!$E:$E,$C115,raw_resource_build!$A:$A,L$97,raw_resource_build!$C:$C,mainzone)","v":0},{"$f":"SUMIFS(raw_resource_build!$H:$H,raw_resource_build!$E:$E,$C115,raw_resource_build!$A:$A,M$97,raw_resource_build!$C:$C,mainzone)","v":0},{"$f":"SUMIFS(raw_resource_build!$H:$H,raw_resource_build!$E:$E,$C115,raw_resource_build!$A:$A,N$97,raw_resource_build!$C:$C,mainzone)","v":0},{"$f":"SUMIFS(raw_resource_build!$H:$H,raw_resource_build!$E:$E,$C115,raw_resource_build!$A:$A,O$97,raw_resource_build!$C:$C,mainzone)","v":0},{"$f":"SUMIFS(raw_resource_build!$H:$H,raw_resource_build!$E:$E,$C115,raw_resource_build!$A:$A,P$97,raw_resource_build!$C:$C,mainzone)","v":0},{"$f":"SUMIFS(raw_resource_build!$H:$H,raw_resource_build!$E:$E,$C115,raw_resource_build!$A:$A,Q$97,raw_resource_build!$C:$C,mainzone)","v":0},{"$f":"SUMIFS(raw_resource_build!$H:$H,raw_resource_build!$E:$E,$C115,raw_resource_build!$A:$A,R$97,raw_resource_build!$C:$C,mainzone)","v":0},{"$f":"SUMIFS(raw_resource_build!$H:$H,raw_resource_build!$E:$E,$C115,raw_resource_build!$A:$A,S$97,raw_resource_build!$C:$C,mainzone)","v":0},{"$f":"SUMIFS(raw_resource_build!$H:$H,raw_resource_build!$E:$E,$C115,raw_resource_build!$A:$A,T$97,raw_resource_build!$C:$C,mainzone)","v":0},{"$f":"SUMIFS(raw_resource_build!$H:$H,raw_resource_build!$E:$E,$C115,raw_resource_build!$A:$A,U$97,raw_resource_build!$C:$C,mainzone)","v":0},{"$f":"SUMIFS(raw_resource_build!$H:$H,raw_resource_build!$E:$E,$C115,raw_resource_build!$A:$A,V$97,raw_resource_build!$C:$C,mainzone)","v":0},{"$f":"SUMIFS(raw_resource_build!$H:$H,raw_resource_build!$E:$E,$C115,raw_resource_build!$A:$A,W$97,raw_resource_build!$C:$C,mainzone)","v":0},{"$f":"SUMIFS(raw_resource_build!$H:$H,raw_resource_build!$E:$E,$C115,raw_resource_build!$A:$A,X$97,raw_resource_build!$C:$C,mainzone)","v":0},{"$f":"SUMIFS(raw_resource_build!$H:$H,raw_resource_build!$E:$E,$C115,raw_resource_build!$A:$A,Y$97,raw_resource_build!$C:$C,mainzone)","v":0},{"$f":"SUMIFS(raw_resource_build!$H:$H,raw_resource_build!$E:$E,$C115,raw_resource_build!$A:$A,Z$97,raw_resource_build!$C:$C,mainzone)","v":0},{"$f":"SUMIFS(raw_resource_build!$H:$H,raw_resource_build!$E:$E,$C115,raw_resource_build!$A:$A,AA$97,raw_resource_build!$C:$C,mainzone)","v":0},{"$f":"SUMIFS(raw_resource_build!$H:$H,raw_resource_build!$E:$E,$C115,raw_resource_build!$A:$A,AB$97,raw_resource_build!$C:$C,mainzone)","v":0},{"$f":"SUMIFS(raw_resource_build!$H:$H,raw_resource_build!$E:$E,$C115,raw_resource_build!$A:$A,AC$97,raw_resource_build!$C:$C,mainzone)","v":0},{"$f":"SUMIFS(raw_resource_build!$H:$H,raw_resource_build!$E:$E,$C115,raw_resource_build!$A:$A,AD$97,raw_resource_build!$C:$C,mainzone)","v":0},{"$f":"SUMIFS(raw_resource_build!$H:$H,raw_resource_build!$E:$E,$C115,raw_resource_build!$A:$A,AE$97,raw_resource_build!$C:$C,mainzone)","v":0},{"$f":"SUMIFS(raw_resource_build!$H:$H,raw_resource_build!$E:$E,$C115,raw_resource_build!$A:$A,AF$97,raw_resource_build!$C:$C,mainzone)","v":0},{"$f":"SUMIFS(raw_resource_build!$H:$H,raw_resource_build!$E:$E,$C115,raw_resource_build!$A:$A,AG$97,raw_resource_build!$C:$C,mainzone)","v":0},{"$f":"SUMIFS(raw_resource_build!$H:$H,raw_resource_build!$E:$E,$C115,raw_resource_build!$A:$A,AH$97,raw_resource_build!$C:$C,mainzone)","v":0},{"$f":"SUMIFS(raw_resource_build!$H:$H,raw_resource_build!$E:$E,$C115,raw_resource_build!$A:$A,AI$97,raw_resource_build!$C:$C,mainzone)","v":1146.8499999999999},{"$f":"SUMIFS(raw_resource_build!$H:$H,raw_resource_build!$E:$E,$C115,raw_resource_build!$A:$A,AJ$97,raw_resource_build!$C:$C,mainzone)","v":0},{"$f":"SUMIFS(raw_resource_build!$H:$H,raw_resource_build!$E:$E,$C115,raw_resource_build!$A:$A,AK$97,raw_resource_build!$C:$C,mainzone)","v":0},{"$f":"SUMIFS(raw_resource_build!$H:$H,raw_resource_build!$E:$E,$C115,raw_resource_build!$A:$A,AL$97,raw_resource_build!$C:$C,mainzone)","v":0},{"$f":"SUMIFS(raw_resource_build!$H:$H,raw_resource_build!$E:$E,$C115,raw_resource_build!$A:$A,AM$97,raw_resource_build!$C:$C,mainzone)","v":0},{"$f":"SUMIFS(raw_resource_build!$H:$H,raw_resource_build!$E:$E,$C115,raw_resource_build!$A:$A,AN$97,raw_resource_build!$C:$C,mainzone)","v":0}]
[null,null,"Small_Hydro","MW",{"$f":"SUMIFS(raw_resource_build!$H:$H,raw_resource_build!$E:$E,$C116,raw_resource_build!$A:$A,E$97,raw_resource_build!$C:$C,mainzone)","v":0},{"$f":"SUMIFS(raw_resource_build!$H:$H,raw_resource_build!$E:$E,$C116,raw_resource_build!$A:$A,F$97,raw_resource_build!$C:$C,mainzone)","v":0},{"$f":"SUMIFS(raw_resource_build!$H:$H,raw_resource_build!$E:$E,$C116,raw_resource_build!$A:$A,G$97,raw_resource_build!$C:$C,mainzone)","v":0},{"$f":"SUMIFS(raw_resource_build!$H:$H,raw_resource_build!$E:$E,$C116,raw_resource_build!$A:$A,H$97,raw_resource_build!$C:$C,mainzone)","v":0},{"$f":"SUMIFS(raw_resource_build!$H:$H,raw_resource_build!$E:$E,$C116,raw_resource_build!$A:$A,I$97,raw_resource_build!$C:$C,mainzone)","v":0},{"$f":"SUMIFS(raw_resource_build!$H:$H,raw_resource_build!$E:$E,$C116,raw_resource_build!$A:$A,J$97,raw_resource_build!$C:$C,mainzone)","v":0},{"$f":"SUMIFS(raw_resource_build!$H:$H,raw_resource_build!$E:$E,$C116,raw_resource_build!$A:$A,K$97,raw_resource_build!$C:$C,mainzone)","v":0},{"$f":"SUMIFS(raw_resource_build!$H:$H,raw_resource_build!$E:$E,$C116,raw_resource_build!$A:$A,L$97,raw_resource_build!$C:$C,mainzone)","v":0},{"$f":"SUMIFS(raw_resource_build!$H:$H,raw_resource_build!$E:$E,$C116,raw_resource_build!$A:$A,M$97,raw_resource_build!$C:$C,mainzone)","v":0},{"$f":"SUMIFS(raw_resource_build!$H:$H,raw_resource_build!$E:$E,$C116,raw_resource_build!$A:$A,N$97,raw_resource_build!$C:$C,mainzone)","v":0},{"$f":"SUMIFS(raw_resource_build!$H:$H,raw_resource_build!$E:$E,$C116,raw_resource_build!$A:$A,O$97,raw_resource_build!$C:$C,mainzone)","v":0},{"$f":"SUMIFS(raw_resource_build!$H:$H,raw_resource_build!$E:$E,$C116,raw_resource_build!$A:$A,P$97,raw_resource_build!$C:$C,mainzone)","v":0},{"$f":"SUMIFS(raw_resource_build!$H:$H,raw_resource_build!$E:$E,$C116,raw_resource_build!$A:$A,Q$97,raw_resource_build!$C:$C,mainzone)","v":0},{"$f":"SUMIFS(raw_resource_build!$H:$H,raw_resource_build!$E:$E,$C116,raw_resource_build!$A:$A,R$97,raw_resource_build!$C:$C,mainzone)","v":0},{"$f":"SUMIFS(raw_resource_build!$H:$H,raw_resource_build!$E:$E,$C116,raw_resource_build!$A:$A,S$97,raw_resource_build!$C:$C,mainzone)","v":0},{"$f":"SUMIFS(raw_resource_build!$H:$H,raw_resource_build!$E:$E,$C116,raw_resource_build!$A:$A,T$97,raw_resource_build!$C:$C,mainzone)","v":0},{"$f":"SUMIFS(raw_resource_build!$H:$H,raw_resource_build!$E:$E,$C116,raw_resource_build!$A:$A,U$97,raw_resource_build!$C:$C,mainzone)","v":0},{"$f":"SUMIFS(raw_resource_build!$H:$H,raw_resource_build!$E:$E,$C116,raw_resource_build!$A:$A,V$97,raw_resource_build!$C:$C,mainzone)","v":0},{"$f":"SUMIFS(raw_resource_build!$H:$H,raw_resource_build!$E:$E,$C116,raw_resource_build!$A:$A,W$97,raw_resource_build!$C:$C,mainzone)","v":0},{"$f":"SUMIFS(raw_resource_build!$H:$H,raw_resource_build!$E:$E,$C116,raw_resource_build!$A:$A,X$97,raw_resource_build!$C:$C,mainzone)","v":0},{"$f":"SUMIFS(raw_resource_build!$H:$H,raw_resource_build!$E:$E,$C116,raw_resource_build!$A:$A,Y$97,raw_resource_build!$C:$C,mainzone)","v":0},{"$f":"SUMIFS(raw_resource_build!$H:$H,raw_resource_build!$E:$E,$C116,raw_resource_build!$A:$A,Z$97,raw_resource_build!$C:$C,mainzone)","v":0},{"$f":"SUMIFS(raw_resource_build!$H:$H,raw_resource_build!$E:$E,$C116,raw_resource_build!$A:$A,AA$97,raw_resource_build!$C:$C,mainzone)","v":0},{"$f":"SUMIFS(raw_resource_build!$H:$H,raw_resource_build!$E:$E,$C116,raw_resource_build!$A:$A,AB$97,raw_resource_build!$C:$C,mainzone)","v":0},{"$f":"SUMIFS(raw_resource_build!$H:$H,raw_resource_build!$E:$E,$C116,raw_resource_build!$A:$A,AC$97,raw_resource_build!$C:$C,mainzone)","v":0},{"$f":"SUMIFS(raw_resource_build!$H:$H,raw_resource_build!$E:$E,$C116,raw_resource_build!$A:$A,AD$97,raw_resource_build!$C:$C,mainzone)","v":0},{"$f":"SUMIFS(raw_resource_build!$H:$H,raw_resource_build!$E:$E,$C116,raw_resource_build!$A:$A,AE$97,raw_resource_build!$C:$C,mainzone)","v":0},{"$f":"SUMIFS(raw_resource_build!$H:$H,raw_resource_build!$E:$E,$C116,raw_resource_build!$A:$A,AF$97,raw_resource_build!$C:$C,mainzone)","v":0},{"$f":"SUMIFS(raw_resource_build!$H:$H,raw_resource_build!$E:$E,$C116,raw_resource_build!$A:$A,AG$97,raw_resource_build!$C:$C,mainzone)","v":0},{"$f":"SUMIFS(raw_resource_build!$H:$H,raw_resource_build!$E:$E,$C116,raw_resource_build!$A:$A,AH$97,raw_resource_build!$C:$C,mainzone)","v":0},{"$f":"SUMIFS(raw_resource_build!$H:$H,raw_resource_build!$E:$E,$C116,raw_resource_build!$A:$A,AI$97,raw_resource_build!$C:$C,mainzone)","v":0},{"$f":"SUMIFS(raw_resource_build!$H:$H,raw_resource_build!$E:$E,$C116,raw_resource_build!$A:$A,AJ$97,raw_resource_build!$C:$C,mainzone)","v":0},{"$f":"SUMIFS(raw_resource_build!$H:$H,raw_resource_build!$E:$E,$C116,raw_resource_build!$A:$A,AK$97,raw_resource_build!$C:$C,mainzone)","v":0},{"$f":"SUMIFS(raw_resource_build!$H:$H,raw_resource_build!$E:$E,$C116,raw_resource_build!$A:$A,AL$97,raw_resource_build!$C:$C,mainzone)","v":0},{"$f":"SUMIFS(raw_resource_build!$H:$H,raw_resource_build!$E:$E,$C116,raw_resource_build!$A:$A,AM$97,raw_resource_build!$C:$C,mainzone)","v":0},{"$f":"SUMIFS(raw_resource_build!$H:$H,raw_resource_build!$E:$E,$C116,raw_resource_build!$A:$A,AN$97,raw_resource_build!$C:$C,mainzone)","v":0}]
[null,null,"Wind","MW",{"$f":"SUMIFS(raw_resource_build!$H:$H,raw_resource_build!$E:$E,$C$117,raw_resource_build!$A:$A,E$97,raw_resource_build!$C:$C,mainzone,Lists!$O:$O,\"In-State\")","v":0},{"$f":"SUMIFS(raw_resource_build!$H:$H,raw_resource_build!$E:$E,$C$117,raw_resource_build!$A:$A,F$97,raw_resource_build!$C:$C,mainzone,Lists!$O:$O,\"In-State\")","v":0},{"$f":"SUMIFS(raw_resource_build!$H:$H,raw_resource_build!$E:$E,$C$117,raw_resource_build!$A:$A,G$97,raw_resource_build!$C:$C,mainzone,Lists!$O:$O,\"In-State\")","v":0},{"$f":"SUMIFS(raw_resource_build!$H:$H,raw_resource_build!$E:$E,$C$117,raw_resource_build!$A:$A,H$97,raw_resource_build!$C:$C,mainzone,Lists!$O:$O,\"In-State\")","v":0},{"$f":"SUMIFS(raw_resource_build!$H:$H,raw_resource_build!$E:$E,$C$117,raw_resource_build!$A:$A,I$97,raw_resource_build!$C:$C,mainzone,Lists!$O:$O,\"In-State\")","v":0},{"$f":"SUMIFS(raw_resource_build!$H:$H,raw_resource_build!$E:$E,$C$117,raw_resource_build!$A:$A,J$97,raw_resource_build!$C:$C,mainzone,Lists!$O:$O,\"In-State\")","v":0},{"$f":"SUMIFS(raw_resource_build!$H:$H,raw_resource_build!$E:$E,$C$117,raw_resource_build!$A:$A,K$97,raw_resource_build!$C:$C,mainzone,Lists!$O:$O,\"In-State\")","v":34},{"$f":"SUMIFS(raw_resource_build!$H:$H,raw_resource_build!$E:$E,$C$117,raw_resource_build!$A:$A,L$97,raw_resource_build!$C:$C,mainzone,Lists!$O:$O,\"In-State\")","v":2931.83},{"$f":"SUMIFS(raw_resource_build!$H:$H,raw_resource_build!$E:$E,$C$117,raw_resource_build!$A:$A,M$97,raw_resource_build!$C:$C,mainzone,Lists!$O:$O,\"In-State\")","v":3218.83},{"$f":"SUMIFS(raw_resource_build!$H:$H,raw_resource_build!$E:$E,$C$117,raw_resource_build!$A:$A,N$97,raw_resource_build!$C:$C,mainzone,Lists!$O:$O,\"In-State\")","v":3311},{"$f":"SUMIFS(raw_resource_build!$H:$H,raw_resource_build!$E:$E,$C$117,raw_resource_build!$A:$A,O$97,raw_resource_build!$C:$C,mainzone,Lists!$O:$O,\"In-State\")","v":0},{"$f":"SUMIFS(raw_resource_build!$H:$H,raw_resource_build!$E:$E,$C$117,raw_resource_build!$A:$A,P$97,raw_resource_build!$C:$C,mainzone,Lists!$O:$O,\"In-State\")","v":3311},{"$f":"SUMIFS(raw_resource_build!$H:$H,raw_resource_build!$E:$E,$C$117,raw_resource_build!$A:$A,Q$97,raw_resource_build!$C:$C,mainzone,Lists!$O:$O,\"In-State\")","v":0},{"$f":"SUMIFS(raw_resource_build!$H:$H,raw_resource_build!$E:$E,$C$117,raw_resource_build!$A:$A,R$97,raw_resource_build!$C:$C,mainzone,Lists!$O:$O,\"In-State\")","v":0},{"$f":"SUMIFS(raw_resource_build!$H:$H,raw_resource_build!$E:$E,$C$117,raw_resource_build!$A:$A,S$97,raw_resource_build!$C:$C,mainzone,Lists!$O:$O,\"In-State\")","v":0},{"$f":"SUMIFS(raw_resource_build!$H:$H,raw_resource_build!$E:$E,$C$117,raw_resource_build!$A:$A,T$97,raw_resource_build!$C:$C,mainzone,Lists!$O:$O,\"In-State\")","v":4700.93},{"$f":"SUMIFS(raw_resource_build!$H:$H,raw_resource_build!$E:$E,$C$117,raw_resource_build!$A:$A,U$97,raw_resource_build!$C:$C,mainzone,Lists!$O:$O,\"In-State\")","v":0},{"$f":"SUMIFS(raw_resource_build!$H:$H,raw_resource_build!$E:$E,$C$117,raw_resource_build!$A:$A,V$97,raw_resource_build!$C:$C,mainzone,Lists!$O:$O,\"In-State\")","v":0},{"$f":"SUMIFS(raw_resource_build!$H:$H,raw_resource_build!$E:$E,$C$117,raw_resource_build!$A:$A,W$97,raw_resource_build!$C:$C,mainzone,Lists!$O:$O,\"In-State\")","v":0},{"$f":"SUMIFS(raw_resource_build!$H:$H,raw_resource_build!$E:$E,$C$117,raw_resource_build!$A:$A,X$97,raw_resource_build!$C:$C,mainzone,Lists!$O:$O,\"In-State\")","v":0},{"$f":"SUMIFS(raw_resource_build!$H:$H,raw_resource_build!$E:$E,$C$117,raw_resource_build!$A:$A,Y$97,raw_resource_build!$C:$C,mainzone,Lists!$O:$O,\"In-State\")","v":0},{"$f":"SUMIFS(raw_resource_build!$H:$H,raw_resource_build!$E:$E,$C$117,raw_resource_build!$A:$A,Z$97,raw_resource_build!$C:$C,mainzone,Lists!$O:$O,\"In-State\")","v":0},{"$f":"SUMIFS(raw_resource_build!$H:$H,raw_resource_build!$E:$E,$C$117,raw_resource_build!$A:$A,AA$97,raw_resource_build!$C:$C,mainzone,Lists!$O:$O,\"In-State\")","v":0},{"$f":"SUMIFS(raw_resource_build!$H:$H,raw_resource_build!$E:$E,$C$117,raw_resource_build!$A:$A,AB$97,raw_resource_build!$C:$C,mainzone,Lists!$O:$O,\"In-State\")","v":0},{"$f":"SUMIFS(raw_resource_build!$H:$H,raw_resource_build!$E:$E,$C$117,raw_resource_build!$A:$A,AC$97,raw_resource_build!$C:$C,mainzone,Lists!$O:$O,\"In-State\")","v":0},{"$f":"SUMIFS(raw_resource_build!$H:$H,raw_resource_build!$E:$E,$C$117,raw_resource_build!$A:$A,AD$97,raw_resource_build!$C:$C,mainzone,Lists!$O:$O,\"In-State\")","v":0},{"$f":"SUMIFS(raw_resource_build!$H:$H,raw_resource_build!$E:$E,$C$117,raw_resource_build!$A:$A,AE$97,raw_resource_build!$C:$C,mainzone,Lists!$O:$O,\"In-State\")","v":0},{"$f":"SUMIFS(raw_resource_build!$H:$H,raw_resource_build!$E:$E,$C$117,raw_resource_build!$A:$A,AF$97,raw_resource_build!$C:$C,mainzone,Lists!$O:$O,\"In-State\")","v":0},{"$f":"SUMIFS(raw_resource_build!$H:$H,raw_resource_build!$E:$E,$C$117,raw_resource_build!$A:$A,AG$97,raw_resource_build!$C:$C,mainzone,Lists!$O:$O,\"In-State\")","v":0},{"$f":"SUMIFS(raw_resource_build!$H:$H,raw_resource_build!$E:$E,$C$117,raw_resource_build!$A:$A,AH$97,raw_resource_build!$C:$C,mainzone,Lists!$O:$O,\"In-State\")","v":0},{"$f":"SUMIFS(raw_resource_build!$H:$H,raw_resource_build!$E:$E,$C$117,raw_resource_build!$A:$A,AI$97,raw_resource_build!$C:$C,mainzone,Lists!$O:$O,\"In-State\")","v":5200.93},{"$f":"SUMIFS(raw_resource_build!$H:$H,raw_resource_build!$E:$E,$C$117,raw_resource_build!$A:$A,AJ$97,raw_resource_build!$C:$C,mainzone,Lists!$O:$O,\"In-State\")","v":0},{"$f":"SUMIFS(raw_resource_build!$H:$H,raw_resource_build!$E:$E,$C$117,raw_resource_build!$A:$A,AK$97,raw_resource_build!$C:$C,mainzone,Lists!$O:$O,\"In-State\")","v":0},{"$f":"SUMIFS(raw_resource_build!$H:$H,raw_resource_build!$E:$E,$C$117,raw_resource_build!$A:$A,AL$97,raw_resource_build!$C:$C,mainzone,Lists!$O:$O,\"In-State\")","v":0},{"$f":"SUMIFS(raw_resource_build!$H:$H,raw_resource_build!$E:$E,$C$117,raw_resource_build!$A:$A,AM$97,raw_resource_build!$C:$C,mainzone,Lists!$O:$O,\"In-State\")","v":0},{"$f":"SUMIFS(raw_resource_build!$H:$H,raw_resource_build!$E:$E,$C$117,raw_resource_build!$A:$A,AN$97,raw_resource_build!$C:$C,mainzone,Lists!$O:$O,\"In-State\")","v":0}]
[null,null,"Wind OOS New Tx","MW",{"$f":"SUMIFS(raw_resource_build!$H:$H,raw_resource_build!$E:$E,$C$117,raw_resource_build!$A:$A,E$97,raw_resource_build!$C:$C,mainzone,Lists!$O:$O,\"Out-Of-State\")","v":0},{"$f":"SUMIFS(raw_resource_build!$H:$H,raw_resource_build!$E:$E,$C$117,raw_resource_build!$A:$A,F$97,raw_resource_build!$C:$C,mainzone,Lists!$O:$O,\"Out-Of-State\")","v":0},{"$f":"SUMIFS(raw_resource_build!$H:$H,raw_resource_build!$E:$E,$C$117,raw_resource_build!$A:$A,G$97,raw_resource_build!$C:$C,mainzone,Lists!$O:$O,\"Out-Of-State\")","v":0},{"$f":"SUMIFS(raw_resource_build!$H:$H,raw_resource_build!$E:$E,$C$117,raw_resource_build!$A:$A,H$97,raw_resource_build!$C:$C,mainzone,Lists!$O:$O,\"Out-Of-State\")","v":0},{"$f":"SUMIFS(raw_resource_build!$H:$H,raw_resource_build!$E:$E,$C$117,raw_resource_build!$A:$A,I$97,raw_resource_build!$C:$C,mainzone,Lists!$O:$O,\"Out-Of-State\")","v":0},{"$f":"SUMIFS(raw_resource_build!$H:$H,raw_resource_build!$E:$E,$C$117,raw_resource_build!$A:$A,J$97,raw_resource_build!$C:$C,mainzone,Lists!$O:$O,\"Out-Of-State\")","v":0},{"$f":"SUMIFS(raw_resource_build!$H:$H,raw_resource_build!$E:$E,$C$117,raw_resource_build!$A:$A,K$97,raw_resource_build!$C:$C,mainzone,Lists!$O:$O,\"Out-Of-State\")","v":0},{"$f":"SUMIFS(raw_resource_build!$H:$H,raw_resource_build!$E:$E,$C$117,raw_resource_build!$A:$A,L$97,raw_resource_build!$C:$C,mainzone,Lists!$O:$O,\"Out-Of-State\")","v":0},{"$f":"SUMIFS(raw_resource_build!$H:$H,raw_resource_build!$E:$E,$C$117,raw_resource_build!$A:$A,M$97,raw_resource_build!$C:$C,mainzone,Lists!$O:$O,\"Out-Of-State\")","v":0},{"$f":"SUMIFS(raw_resource_build!$H:$H,raw_resource_build!$E:$E,$C$117,raw_resource_build!$A:$A,N$97,raw_resource_build!$C:$C,mainzone,Lists!$O:$O,\"Out-Of-State\")","v":0},{"$f":"SUMIFS(raw_resource_build!$H:$H,raw_resource_build!$E:$E,$C$117,raw_resource_build!$A:$A,O$97,raw_resource_build!$C:$C,mainzone,Lists!$O:$O,\"Out-Of-State\")","v":0},{"$f":"SUMIFS(raw_resource_build!$H:$H,raw_resource_build!$E:$E,$C$117,raw_resource_build!$A:$A,P$97,raw_resource_build!$C:$C,mainzone,Lists!$O:$O,\"Out-Of-State\")","v":0},{"$f":"SUMIFS(raw_resource_build!$H:$H,raw_resource_build!$E:$E,$C$117,raw_resource_build!$A:$A,Q$97,raw_resource_build!$C:$C,mainzone,Lists!$O:$O,\"Out-Of-State\")","v":0},{"$f":"SUMIFS(raw_resource_build!$H:$H,raw_resource_build!$E:$E,$C$117,raw_resource_build!$A:$A,R$97,raw_resource_build!$C:$C,mainzone,Lists!$O:$O,\"Out-Of-State\")","v":0},{"$f":"SUMIFS(raw_resource_build!$H:$H,raw_resource_build!$E:$E,$C$117,raw_resource_build!$A:$A,S$97,raw_resource_build!$C:$C,mainzone,Lists!$O:$O,\"Out-Of-State\")","v":0},{"$f":"SUMIFS(raw_resource_build!$H:$H,raw_resource_build!$E:$E,$C$117,raw_resource_build!$A:$A,T$97,raw_resource_build!$C:$C,mainzone,Lists!$O:$O,\"Out-Of-State\")","v":1336.87},{"$f":"SUMIFS(raw_resource_build!$H:$H,raw_resource_build!$E:$E,$C$117,raw_resource_build!$A:$A,U$97,raw_resource_build!$C:$C,mainzone,Lists!$O:$O,\"Out-Of-State\")","v":0},{"$f":"SUMIFS(raw_resource_build!$H:$H,raw_resource_build!$E:$E,$C$117,raw_resource_build!$A:$A,V$97,raw_resource_build!$C:$C,mainzone,Lists!$O:$O,\"Out-Of-State\")","v":0},{"$f":"SUMIFS(raw_resource_build!$H:$H,raw_resource_build!$E:$E,$C$117,raw_resource_build!$A:$A,W$97,raw_resource_build!$C:$C,mainzone,Lists!$O:$O,\"Out-Of-State\")","v":0},{"$f":"SUMIFS(raw_resource_build!$H:$H,raw_resource_build!$E:$E,$C$117,raw_resource_build!$A:$A,X$97,raw_resource_build!$C:$C,mainzone,Lists!$O:$O,\"Out-Of-State\")","v":0},{"$f":"SUMIFS(raw_resource_build!$H:$H,raw_resource_build!$E:$E,$C$117,raw_resource_build!$A:$A,Y$97,raw_resource_build!$C:$C,mainzone,Lists!$O:$O,\"Out-Of-State\")","v":0},{"$f":"SUMIFS(raw_resource_build!$H:$H,raw_resource_build!$E:$E,$C$117,raw_resource_build!$A:$A,Z$97,raw_resource_build!$C:$C,mainzone,Lists!$O:$O,\"Out-Of-State\")","v":0},{"$f":"SUMIFS(raw_resource_build!$H:$H,raw_resource_build!$E:$E,$C$117,raw_resource_build!$A:$A,AA$97,raw_resource_build!$C:$C,mainzone,Lists!$O:$O,\"Out-Of-State\")","v":0},{"$f":"SUMIFS(raw_resource_build!$H:$H,raw_resource_build!$E:$E,$C$117,raw_resource_build!$A:$A,AB$97,raw_resource_build!$C:$C,mainzone,Lists!$O:$O,\"Out-Of-State\")","v":0},{"$f":"SUMIFS(raw_resource_build!$H:$H,raw_resource_build!$E:$E,$C$117,raw_resource_build!$A:$A,AC$97,raw_resource_build!$C:$C,mainzone,Lists!$O:$O,\"Out-Of-State\")","v":0},{"$f":"SUMIFS(raw_resource_build!$H:$H,raw_resource_build!$E:$E,$C$117,raw_resource_build!$A:$A,AD$97,raw_resource_build!$C:$C,mainzone,Lists!$O:$O,\"Out-Of-State\")","v":0},{"$f":"SUMIFS(raw_resource_build!$H:$H,raw_resource_build!$E:$E,$C$117,raw_resource_build!$A:$A,AE$97,raw_resource_build!$C:$C,mainzone,Lists!$O:$O,\"Out-Of-State\")","v":0},{"$f":"SUMIFS(raw_resource_build!$H:$H,raw_resource_build!$E:$E,$C$117,raw_resource_build!$A:$A,AF$97,raw_resource_build!$C:$C,mainzone,Lists!$O:$O,\"Out-Of-State\")","v":0},{"$f":"SUMIFS(raw_resource_build!$H:$H,raw_resource_build!$E:$E,$C$117,raw_resource_build!$A:$A,AG$97,raw_resource_build!$C:$C,mainzone,Lists!$O:$O,\"Out-Of-State\")","v":0},{"$f":"SUMIFS(raw_resource_build!$H:$H,raw_resource_build!$E:$E,$C$117,raw_resource_build!$A:$A,AH$97,raw_resource_build!$C:$C,mainzone,Lists!$O:$O,\"Out-Of-State\")","v":0},{"$f":"SUMIFS(raw_resource_build!$H:$H,raw_resource_build!$E:$E,$C$117,raw_resource_build!$A:$A,AI$97,raw_resource_build!$C:$C,mainzone,Lists!$O:$O,\"Out-Of-State\")","v":3000},{"$f":"SUMIFS(raw_resource_build!$H:$H,raw_resource_build!$E:$E,$C$117,raw_resource_build!$A:$A,AJ$97,raw_resource_build!$C:$C,mainzone,Lists!$O:$O,\"Out-Of-State\")","v":0},{"$f":"SUMIFS(raw_resource_build!$H:$H,raw_resource_build!$E:$E,$C$117,raw_resource_build!$A:$A,AK$97,raw_resource_build!$C:$C,mainzone,Lists!$O:$O,\"Out-Of-State\")","v":0},{"$f":"SUMIFS(raw_resource_build!$H:$H,raw_resource_build!$E:$E,$C$117,raw_resource_build!$A:$A,AL$97,raw_resource_build!$C:$C,mainzone,Lists!$O:$O,\"Out-Of-State\")","v":0},{"$f":"SUMIFS(raw_resource_build!$H:$H,raw_resource_build!$E:$E,$C$117,raw_resource_build!$A:$A,AM$97,raw_resource_build!$C:$C,mainzone,Lists!$O:$O,\"Out-Of-State\")","v":0},{"$f":"SUMIFS(raw_resource_build!$H:$H,raw_resource_build!$E:$E,$C$117,raw_resource_build!$A:$A,AN$97,raw_resource_build!$C:$C,mainzone,Lists!$O:$O,\"Out-Of-State\")","v":0}]
[null,null,{"$f":"C86","v":"Offshore_Wind"},"MW",{"$f":"SUMIFS(raw_resource_build!$H:$H,raw_resource_build!$E:$E,$C119,raw_resource_build!$A:$A,E$97,raw_resource_build!$C:$C,mainzone)","v":0},{"$f":"SUMIFS(raw_resource_build!$H:$H,raw_resource_build!$E:$E,$C119,raw_resource_build!$A:$A,F$97,raw_resource_build!$C:$C,mainzone)","v":0},{"$f":"SUMIFS(raw_resource_build!$H:$H,raw_resource_build!$E:$E,$C119,raw_resource_build!$A:$A,G$97,raw_resource_build!$C:$C,mainzone)","v":0},{"$f":"SUMIFS(raw_resource_build!$H:$H,raw_resource_build!$E:$E,$C119,raw_resource_build!$A:$A,H$97,raw_resource_build!$C:$C,mainzone)","v":0},{"$f":"SUMIFS(raw_resource_build!$H:$H,raw_resource_build!$E:$E,$C119,raw_resource_build!$A:$A,I$97,raw_resource_build!$C:$C,mainzone)","v":0},{"$f":"SUMIFS(raw_resource_build!$H:$H,raw_resource_build!$E:$E,$C119,raw_resource_build!$A:$A,J$97,raw_resource_build!$C:$C,mainzone)","v":0},{"$f":"SUMIFS(raw_resource_build!$H:$H,raw_resource_build!$E:$E,$C119,raw_resource_build!$A:$A,K$97,raw_resource_build!$C:$C,mainzone)","v":0},{"$f":"SUMIFS(raw_resource_build!$H:$H,raw_resource_build!$E:$E,$C119,raw_resource_build!$A:$A,L$97,raw_resource_build!$C:$C,mainzone)","v":0},{"$f":"SUMIFS(raw_resource_build!$H:$H,raw_resource_build!$E:$E,$C119,raw_resource_build!$A:$A,M$97,raw_resource_build!$C:$C,mainzone)","v":0},{"$f":"SUMIFS(raw_resource_build!$H:$H,raw_resource_build!$E:$E,$C119,raw_resource_build!$A:$A,N$97,raw_resource_build!$C:$C,mainzone)","v":0},{"$f":"SUMIFS(raw_resource_build!$H:$H,raw_resource_build!$E:$E,$C119,raw_resource_build!$A:$A,O$97,raw_resource_build!$C:$C,mainzone)","v":0},{"$f":"SUMIFS(raw_resource_build!$H:$H,raw_resource_build!$E:$E,$C119,raw_resource_build!$A:$A,P$97,raw_resource_build!$C:$C,mainzone)","v":0},{"$f":"SUMIFS(raw_resource_build!$H:$H,raw_resource_build!$E:$E,$C119,raw_resource_build!$A:$A,Q$97,raw_resource_build!$C:$C,mainzone)","v":0},{"$f":"SUMIFS(raw_resource_build!$H:$H,raw_resource_build!$E:$E,$C119,raw_resource_build!$A:$A,R$97,raw_resource_build!$C:$C,mainzone)","v":0},{"$f":"SUMIFS(raw_resource_build!$H:$H,raw_resource_build!$E:$E,$C119,raw_resource_build!$A:$A,S$97,raw_resource_build!$C:$C,mainzone)","v":0},{"$f":"SUMIFS(raw_resource_build!$H:$H,raw_resource_build!$E:$E,$C119,raw_resource_build!$A:$A,T$97,raw_resource_build!$C:$C,mainzone)","v":0},{"$f":"SUMIFS(raw_resource_build!$H:$H,raw_resource_build!$E:$E,$C119,raw_resource_build!$A:$A,U$97,raw_resource_build!$C:$C,mainzone)","v":0},{"$f":"SUMIFS(raw_resource_build!$H:$H,raw_resource_build!$E:$E,$C119,raw_resource_build!$A:$A,V$97,raw_resource_build!$C:$C,mainzone)","v":0},{"$f":"SUMIFS(raw_resource_build!$H:$H,raw_resource_build!$E:$E,$C119,raw_resource_build!$A:$A,W$97,raw_resource_build!$C:$C,mainzone)","v":0},{"$f":"SUMIFS(raw_resource_build!$H:$H,raw_resource_build!$E:$E,$C119,raw_resource_build!$A:$A,X$97,raw_resource_build!$C:$C,mainzone)","v":0},{"$f":"SUMIFS(raw_resource_build!$H:$H,raw_resource_build!$E:$E,$C119,raw_resource_build!$A:$A,Y$97,raw_resource_build!$C:$C,mainzone)","v":0},{"$f":"SUMIFS(raw_resource_build!$H:$H,raw_resource_build!$E:$E,$C119,raw_resource_build!$A:$A,Z$97,raw_resource_build!$C:$C,mainzone)","v":0},{"$f":"SUMIFS(raw_resource_build!$H:$H,raw_resource_build!$E:$E,$C119,raw_resource_build!$A:$A,AA$97,raw_resource_build!$C:$C,mainzone)","v":0},{"$f":"SUMIFS(raw_resource_build!$H:$H,raw_resource_build!$E:$E,$C119,raw_resource_build!$A:$A,AB$97,raw_resource_build!$C:$C,mainzone)","v":0},{"$f":"SUMIFS(raw_resource_build!$H:$H,raw_resource_build!$E:$E,$C119,raw_resource_build!$A:$A,AC$97,raw_resource_build!$C:$C,mainzone)","v":0},{"$f":"SUMIFS(raw_resource_build!$H:$H,raw_resource_build!$E:$E,$C119,raw_resource_build!$A:$A,AD$97,raw_resource_build!$C:$C,mainzone)","v":0},{"$f":"SUMIFS(raw_resource_build!$H:$H,raw_resource_build!$E:$E,$C119,raw_resource_build!$A:$A,AE$97,raw_resource_build!$C:$C,mainzone)","v":0},{"$f":"SUMIFS(raw_resource_build!$H:$H,raw_resource_build!$E:$E,$C119,raw_resource_build!$A:$A,AF$97,raw_resource_build!$C:$C,mainzone)","v":0},{"$f":"SUMIFS(raw_resource_build!$H:$H,raw_resource_build!$E:$E,$C119,raw_resource_build!$A:$A,AG$97,raw_resource_build!$C:$C,mainzone)","v":0},{"$f":"SUMIFS(raw_resource_build!$H:$H,raw_resource_build!$E:$E,$C119,raw_resource_build!$A:$A,AH$97,raw_resource_build!$C:$C,mainzone)","v":0},{"$f":"SUMIFS(raw_resource_build!$H:$H,raw_resource_build!$E:$E,$C119,raw_resource_build!$A:$A,AI$97,raw_resource_build!$C:$C,mainzone)","v":0},{"$f":"SUMIFS(raw_resource_build!$H:$H,raw_resource_build!$E:$E,$C119,raw_resource_build!$A:$A,AJ$97,raw_resource_build!$C:$C,mainzone)","v":0},{"$f":"SUMIFS(raw_resource_build!$H:$H,raw_resource_build!$E:$E,$C119,raw_resource_build!$A:$A,AK$97,raw_resource_build!$C:$C,mainzone)","v":0},{"$f":"SUMIFS(raw_resource_build!$H:$H,raw_resource_build!$E:$E,$C119,raw_resource_build!$A:$A,AL$97,raw_resource_build!$C:$C,mainzone)","v":0},{"$f":"SUMIFS(raw_resource_build!$H:$H,raw_resource_build!$E:$E,$C119,raw_resource_build!$A:$A,AM$97,raw_resource_build!$C:$C,mainzone)","v":0},{"$f":"SUMIFS(raw_resource_build!$H:$H,raw_resource_build!$E:$E,$C119,raw_resource_build!$A:$A,AN$97,raw_resource_build!$C:$C,mainzone)","v":0}]
[null,null,"Pumped_Hydro","MW",{"$f":"SUMIFS(raw_resource_build!$H:$H,raw_resource_build!$E:$E,$C120,raw_resource_build!$A:$A,E$97,raw_resource_build!$C:$C,mainzone)","v":0},{"$f":"SUMIFS(raw_resource_build!$H:$H,raw_resource_build!$E:$E,$C120,raw_resource_build!$A:$A,F$97,raw_resource_build!$C:$C,mainzone)","v":0},{"$f":"SUMIFS(raw_resource_build!$H:$H,raw_resource_build!$E:$E,$C120,raw_resource_build!$A:$A,G$97,raw_resource_build!$C:$C,mainzone)","v":0},{"$f":"SUMIFS(raw_resource_build!$H:$H,raw_resource_build!$E:$E,$C120,raw_resource_build!$A:$A,H$97,raw_resource_build!$C:$C,mainzone)","v":0},{"$f":"SUMIFS(raw_resource_build!$H:$H,raw_resource_build!$E:$E,$C120,raw_resource_build!$A:$A,I$97,raw_resource_build!$C:$C,mainzone)","v":0},{"$f":"SUMIFS(raw_resource_build!$H:$H,raw_resource_build!$E:$E,$C120,raw_resource_build!$A:$A,J$97,raw_resource_build!$C:$C,mainzone)","v":0},{"$f":"SUMIFS(raw_resource_build!$H:$H,raw_resource_build!$E:$E,$C120,raw_resource_build!$A:$A,K$97,raw_resource_build!$C:$C,mainzone)","v":0},{"$f":"SUMIFS(raw_resource_build!$H:$H,raw_resource_build!$E:$E,$C120,raw_resource_build!$A:$A,L$97,raw_resource_build!$C:$C,mainzone)","v":0},{"$f":"SUMIFS(raw_resource_build!$H:$H,raw_resource_build!$E:$E,$C120,raw_resource_build!$A:$A,M$97,raw_resource_build!$C:$C,mainzone)","v":0},{"$f":"SUMIFS(raw_resource_build!$H:$H,raw_resource_build!$E:$E,$C120,raw_resource_build!$A:$A,N$97,raw_resource_build!$C:$C,mainzone)","v":0},{"$f":"SUMIFS(raw_resource_build!$H:$H,raw_resource_build!$E:$E,$C120,raw_resource_build!$A:$A,O$97,raw_resource_build!$C:$C,mainzone)","v":0},{"$f":"SUMIFS(raw_resource_build!$H:$H,raw_resource_build!$E:$E,$C120,raw_resource_build!$A:$A,P$97,raw_resource_build!$C:$C,mainzone)","v":1986.47},{"$f":"SUMIFS(raw_resource_build!$H:$H,raw_resource_build!$E:$E,$C120,raw_resource_build!$A:$A,Q$97,raw_resource_build!$C:$C,mainzone)","v":0},{"$f":"SUMIFS(raw_resource_build!$H:$H,raw_resource_build!$E:$E,$C120,raw_resource_build!$A:$A,R$97,raw_resource_build!$C:$C,mainzone)","v":0},{"$f":"SUMIFS(raw_resource_build!$H:$H,raw_resource_build!$E:$E,$C120,raw_resource_build!$A:$A,S$97,raw_resource_build!$C:$C,mainzone)","v":0},{"$f":"SUMIFS(raw_resource_build!$H:$H,raw_resource_build!$E:$E,$C120,raw_resource_build!$A:$A,T$97,raw_resource_build!$C:$C,mainzone)","v":1986.47},{"$f":"SUMIFS(raw_resource_build!$H:$H,raw_resource_build!$E:$E,$C120,raw_resource_build!$A:$A,U$97,raw_resource_build!$C:$C,mainzone)","v":0},{"$f":"SUMIFS(raw_resource_build!$H:$H,raw_resource_build!$E:$E,$C120,raw_resource_build!$A:$A,V$97,raw_resource_build!$C:$C,mainzone)","v":0},{"$f":"SUMIFS(raw_resource_build!$H:$H,raw_resource_build!$E:$E,$C120,raw_resource_build!$A:$A,W$97,raw_resource_build!$C:$C,mainzone)","v":0},{"$f":"SUMIFS(raw_resource_build!$H:$H,raw_resource_build!$E:$E,$C120,raw_resource_build!$A:$A,X$97,raw_resource_build!$C:$C,mainzone)","v":0},{"$f":"SUMIFS(raw_resource_build!$H:$H,raw_resource_build!$E:$E,$C120,raw_resource_build!$A:$A,Y$97,raw_resource_build!$C:$C,mainzone)","v":0},{"$f":"SUMIFS(raw_resource_build!$H:$H,raw_resource_build!$E:$E,$C120,raw_resource_build!$A:$A,Z$97,raw_resource_build!$C:$C,mainzone)","v":0},{"$f":"SUMIFS(raw_resource_build!$H:$H,raw_resource_build!$E:$E,$C120,raw_resource_build!$A:$A,AA$97,raw_resource_build!$C:$C,mainzone)","v":0},{"$f":"SUMIFS(raw_resource_build!$H:$H,raw_resource_build!$E:$E,$C120,raw_resource_build!$A:$A,AB$97,raw_resource_build!$C:$C,mainzone)","v":0},{"$f":"SUMIFS(raw_resource_build!$H:$H,raw_resource_build!$E:$E,$C120,raw_resource_build!$A:$A,AC$97,raw_resource_build!$C:$C,mainzone)","v":0},{"$f":"SUMIFS(raw_resource_build!$H:$H,raw_resource_build!$E:$E,$C120,raw_resource_build!$A:$A,AD$97,raw_resource_build!$C:$C,mainzone)","v":0},{"$f":"SUMIFS(raw_resource_build!$H:$H,raw_resource_build!$E:$E,$C120,raw_resource_build!$A:$A,AE$97,raw_resource_build!$C:$C,mainzone)","v":0},{"$f":"SUMIFS(raw_resource_build!$H:$H,raw_resource_build!$E:$E,$C120,raw_resource_build!$A:$A,AF$97,raw_resource_build!$C:$C,mainzone)","v":0},{"$f":"SUMIFS(raw_resource_build!$H:$H,raw_resource_build!$E:$E,$C120,raw_resource_build!$A:$A,AG$97,raw_resource_build!$C:$C,mainzone)","v":0},{"$f":"SUMIFS(raw_resource_build!$H:$H,raw_resource_build!$E:$E,$C120,raw_resource_build!$A:$A,AH$97,raw_resource_build!$C:$C,mainzone)","v":0},{"$f":"SUMIFS(raw_resource_build!$H:$H,raw_resource_build!$E:$E,$C120,raw_resource_build!$A:$A,AI$97,raw_resource_build!$C:$C,mainzone)","v":1986.47},{"$f":"SUMIFS(raw_resource_build!$H:$H,raw_resource_build!$E:$E,$C120,raw_resource_build!$A:$A,AJ$97,raw_resource_build!$C:$C,mainzone)","v":0},{"$f":"SUMIFS(raw_resource_build!$H:$H,raw_resource_build!$E:$E,$C120,raw_resource_build!$A:$A,AK$97,raw_resource_build!$C:$C,mainzone)","v":0},{"$f":"SUMIFS(raw_resource_build!$H:$H,raw_resource_build!$E:$E,$C120,raw_resource_build!$A:$A,AL$97,raw_resource_build!$C:$C,mainzone)","v":0},{"$f":"SUMIFS(raw_resource_build!$H:$H,raw_resource_build!$E:$E,$C120,raw_resource_build!$A:$A,AM$97,raw_resource_build!$C:$C,mainzone)","v":0},{"$f":"SUMIFS(raw_resource_build!$H:$H,raw_resource_build!$E:$E,$C120,raw_resource_build!$A:$A,AN$97,raw_resource_build!$C:$C,mainzone)","v":0}]
[null,null,"Li_Battery","MW",{"$f":"SUMIFS(raw_resource_build!$H:$H,raw_resource_build!$E:$E,$C121,raw_resource_build!$A:$A,E$97,raw_resource_build!$C:$C,mainzone)-SUMIFS(raw_resource_build!$Z:$Z,raw_resource_build!$E:$E,$C121,raw_resource_build!$A:$A,E$97,raw_resource_build!$C:$C,mainzone)","v":0},{"$f":"IF(ISNUMBER(MATCH(F$97,model_years,0)),MAX(E121,SUMIFS(raw_resource_build!$H:$H,raw_resource_build!$E:$E,$C121,raw_resource_build!$A:$A,F$97,raw_resource_build!$C:$C,mainzone)-SUMIFS(raw_resource_build!$Z:$Z,raw_resource_build!$E:$E,$C121,raw_resource_build!$A:$A,F$97,raw_resource_build!$C:$C,mainzone)),0)","v":0},{"$f":"IF(ISNUMBER(MATCH(G$97,model_years,0)),MAX(F121,SUMIFS(raw_resource_build!$H:$H,raw_resource_build!$E:$E,$C121,raw_resource_build!$A:$A,G$97,raw_resource_build!$C:$C,mainzone)-SUMIFS(raw_resource_build!$Z:$Z,raw_resource_build!$E:$E,$C121,raw_resource_build!$A:$A,G$97,raw_resource_build!$C:$C,mainzone)),0)","v":0},{"$f":"IF(ISNUMBER(MATCH(H$97,model_years,0)),MAX(G121,SUMIFS(raw_resource_build!$H:$H,raw_resource_build!$E:$E,$C121,raw_resource_build!$A:$A,H$97,raw_resource_build!$C:$C,mainzone)-SUMIFS(raw_resource_build!$Z:$Z,raw_resource_build!$E:$E,$C121,raw_resource_build!$A:$A,H$97,raw_resource_build!$C:$C,mainzone)),0)","v":0},{"$f":"IF(ISNUMBER(MATCH(I$97,model_years,0)),MAX(H121,SUMIFS(raw_resource_build!$H:$H,raw_resource_build!$E:$E,$C121,raw_resource_build!$A:$A,I$97,raw_resource_build!$C:$C,mainzone)-SUMIFS(raw_resource_build!$Z:$Z,raw_resource_build!$E:$E,$C121,raw_resource_build!$A:$A,I$97,raw_resource_build!$C:$C,mainzone)),0)","v":0},{"$f":"IF(ISNUMBER(MATCH(J$97,model_years,0)),MAX(I121,SUMIFS(raw_resource_build!$H:$H,raw_resource_build!$E:$E,$C121,raw_resource_build!$A:$A,J$97,raw_resource_build!$C:$C,mainzone)-SUMIFS(raw_resource_build!$Z:$Z,raw_resource_build!$E:$E,$C121,raw_resource_build!$A:$A,J$97,raw_resource_build!$C:$C,mainzone)),0)","v":2446.75},{"$f":"IF(ISNUMBER(MATCH(K$97,model_years,0)),MAX(J121,SUMIFS(raw_resource_build!$H:$H,raw_resource_build!$E:$E,$C121,raw_resource_build!$A:$A,K$97,raw_resource_build!$C:$C,mainzone)-SUMIFS(raw_resource_build!$Z:$Z,raw_resource_build!$E:$E,$C121,raw_resource_build!$A:$A,K$97,raw_resource_build!$C:$C,mainzone)),0)","v":4726.1100000000006},{"$f":"IF(ISNUMBER(MATCH(L$97,model_years,0)),MAX(K121,SUMIFS(raw_resource_build!$H:$H,raw_resource_build!$E:$E,$C121,raw_resource_build!$A:$A,L$97,raw_resource_build!$C:$C,mainzone)-SUMIFS(raw_resource_build!$Z:$Z,raw_resource_build!$E:$E,$C121,raw_resource_build!$A:$A,L$97,raw_resource_build!$C:$C,mainzone)),0)","v":4726.1100000000006},{"$f":"IF(ISNUMBER(MATCH(M$97,model_years,0)),MAX(L121,SUMIFS(raw_resource_build!$H:$H,raw_resource_build!$E:$E,$C121,raw_resource_build!$A:$A,M$97,raw_resource_build!$C:$C,mainzone)-SUMIFS(raw_resource_build!$Z:$Z,raw_resource_build!$E:$E,$C121,raw_resource_build!$A:$A,M$97,raw_resource_build!$C:$C,mainzone)),0)","v":4892.49},{"$f":"IF(ISNUMBER(MATCH(N$97,model_years,0)),MAX(M121,SUMIFS(raw_resource_build!$H:$H,raw_resource_build!$E:$E,$C121,raw_resource_build!$A:$A,N$97,raw_resource_build!$C:$C,mainzone)-SUMIFS(raw_resource_build!$Z:$Z,raw_resource_build!$E:$E,$C121,raw_resource_build!$A:$A,N$97,raw_resource_build!$C:$C,mainzone)),0)","v":6610.8},{"$f":"IF(ISNUMBER(MATCH(O$97,model_years,0)),MAX(N121,SUMIFS(raw_resource_build!$H:$H,raw_resource_build!$E:$E,$C121,raw_resource_build!$A:$A,O$97,raw_resource_build!$C:$C,mainzone)-SUMIFS(raw_resource_build!$Z:$Z,raw_resource_build!$E:$E,$C121,raw_resource_build!$A:$A,O$97,raw_resource_build!$C:$C,mainzone)),0)","v":0},{"$f":"IF(ISNUMBER(MATCH(P$97,model_years,0)),MAX(O121,SUMIFS(raw_resource_build!$H:$H,raw_resource_build!$E:$E,$C121,raw_resource_build!$A:$A,P$97,raw_resource_build!$C:$C,mainzone)-SUMIFS(raw_resource_build!$Z:$Z,raw_resource_build!$E:$E,$C121,raw_resource_build!$A:$A,P$97,raw_resource_build!$C:$C,mainzone)),0)","v":9835.3299999999981},{"$f":"IF(ISNUMBER(MATCH(Q$97,model_years,0)),MAX(P121,SUMIFS(raw_resource_build!$H:$H,raw_resource_build!$E:$E,$C121,raw_resource_build!$A:$A,Q$97,raw_resource_build!$C:$C,mainzone)-SUMIFS(raw_resource_build!$Z:$Z,raw_resource_build!$E:$E,$C121,raw_resource_build!$A:$A,Q$97,raw_resource_build!$C:$C,mainzone)),0)","v":0},{"$f":"IF(ISNUMBER(MATCH(R$97,model_years,0)),MAX(Q121,SUMIFS(raw_resource_build!$H:$H,raw_resource_build!$E:$E,$C121,raw_resource_build!$A:$A,R$97,raw_resource_build!$C:$C,mainzone)-SUMIFS(raw_resource_build!$Z:$Z,raw_resource_build!$E:$E,$C121,raw_resource_build!$A:$A,R$97,raw_resource_build!$C:$C,mainzone)),0)","v":0},{"$f":"IF(ISNUMBER(MATCH(S$97,model_years,0)),MAX(R121,SUMIFS(raw_resource_build!$H:$H,raw_resource_build!$E:$E,$C121,raw_resource_build!$A:$A,S$97,raw_resource_build!$C:$C,mainzone)-SUMIFS(raw_resource_build!$Z:$Z,raw_resource_build!$E:$E,$C121,raw_resource_build!$A:$A,S$97,raw_resource_build!$C:$C,mainzone)),0)","v":0},{"$f":"IF(ISNUMBER(MATCH(T$97,model_years,0)),MAX(S121,SUMIFS(raw_resource_build!$H:$H,raw_resource_build!$E:$E,$C121,raw_resource_build!$A:$A,T$97,raw_resource_build!$C:$C,mainzone)-SUMIFS(raw_resource_build!$Z:$Z,raw_resource_build!$E:$E,$C121,raw_resource_build!$A:$A,T$97,raw_resource_build!$C:$C,mainzone)),0)","v":12428.339999999998},{"$f":"IF(ISNUMBER(MATCH(U$97,model_years,0)),MAX(T121,SUMIFS(raw_resource_build!$H:$H,raw_resource_build!$E:$E,$C121,raw_resource_build!$A:$A,U$97,raw_resource_build!$C:$C,mainzone)-SUMIFS(raw_resource_build!$Z:$Z,raw_resource_build!$E:$E,$C121,raw_resource_build!$A:$A,U$97,raw_resource_build!$C:$C,mainzone)),0)","v":0},{"$f":"IF(ISNUMBER(MATCH(V$97,model_years,0)),MAX(U121,SUMIFS(raw_resource_build!$H:$H,raw_resource_build!$E:$E,$C121,raw_resource_build!$A:$A,V$97,raw_resource_build!$C:$C,mainzone)-SUMIFS(raw_resource_build!$Z:$Z,raw_resource_build!$E:$E,$C121,raw_resource_build!$A:$A,V$97,raw_resource_build!$C:$C,mainzone)),0)","v":0},{"$f":"IF(ISNUMBER(MATCH(W$97,model_years,0)),MAX(V121,SUMIFS(raw_resource_build!$H:$H,raw_resource_build!$E:$E,$C121,raw_resource_build!$A:$A,W$97,raw_resource_build!$C:$C,mainzone)-SUMIFS(raw_resource_build!$Z:$Z,raw_resource_build!$E:$E,$C121,raw_resource_build!$A:$A,W$97,raw_resource_build!$C:$C,mainzone)),0)","v":0},{"$f":"IF(ISNUMBER(MATCH(X$97,model_years,0)),MAX(W121,SUMIFS(raw_resource_build!$H:$H,raw_resource_build!$E:$E,$C121,raw_resource_build!$A:$A,X$97,raw_resource_build!$C:$C,mainzone)-SUMIFS(raw_resource_build!$Z:$Z,raw_resource_build!$E:$E,$C121,raw_resource_build!$A:$A,X$97,raw_resource_build!$C:$C,mainzone)),0)","v":0},{"$f":"IF(ISNUMBER(MATCH(Y$97,model_years,0)),MAX(X121,SUMIFS(raw_resource_build!$H:$H,raw_resource_build!$E:$E,$C121,raw_resource_build!$A:$A,Y$97,raw_resource_build!$C:$C,mainzone)-SUMIFS(raw_resource_build!$Z:$Z,raw_resource_build!$E:$E,$C121,raw_resource_build!$A:$A,Y$97,raw_resource_build!$C:$C,mainzone)),0)","v":0},{"$f":"IF(ISNUMBER(MATCH(Z$97,model_years,0)),MAX(Y121,SUMIFS(raw_resource_build!$H:$H,raw_resource_build!$E:$E,$C121,raw_resource_build!$A:$A,Z$97,raw_resource_build!$C:$C,mainzone)-SUMIFS(raw_resource_build!$Z:$Z,raw_resource_build!$E:$E,$C121,raw_resource_build!$A:$A,Z$97,raw_resource_build!$C:$C,mainzone)),0)","v":0},{"$f":"IF(ISNUMBER(MATCH(AA$97,model_years,0)),MAX(Z121,SUMIFS(raw_resource_build!$H:$H,raw_resource_build!$E:$E,$C121,raw_resource_build!$A:$A,AA$97,raw_resource_build!$C:$C,mainzone)-SUMIFS(raw_resource_build!$Z:$Z,raw_resource_build!$E:$E,$C121,raw_resource_build!$A:$A,AA$97,raw_resource_build!$C:$C,mainzone)),0)","v":0},{"$f":"IF(ISNUMBER(MATCH(AB$97,model_years,0)),MAX(AA121,SUMIFS(raw_resource_build!$H:$H,raw_resource_build!$E:$E,$C121,raw_resource_build!$A:$A,AB$97,raw_resource_build!$C:$C,mainzone)-SUMIFS(raw_resource_build!$Z:$Z,raw_resource_build!$E:$E,$C121,raw_resource_build!$A:$A,AB$97,raw_resource_build!$C:$C,mainzone)),0)","v":0},{"$f":"IF(ISNUMBER(MATCH(AC$97,model_years,0)),MAX(AB121,SUMIFS(raw_resource_build!$H:$H,raw_resource_build!$E:$E,$C121,raw_resource_build!$A:$A,AC$97,raw_resource_build!$C:$C,mainzone)-SUMIFS(raw_resource_build!$Z:$Z,raw_resource_build!$E:$E,$C121,raw_resource_build!$A:$A,AC$97,raw_resource_build!$C:$C,mainzone)),0)","v":0},{"$f":"IF(ISNUMBER(MATCH(AD$97,model_years,0)),MAX(AC121,SUMIFS(raw_resource_build!$H:$H,raw_resource_build!$E:$E,$C121,raw_resource_build!$A:$A,AD$97,raw_resource_build!$C:$C,mainzone)-SUMIFS(raw_resource_build!$Z:$Z,raw_resource_build!$E:$E,$C121,raw_resource_build!$A:$A,AD$97,raw_resource_build!$C:$C,mainzone)),0)","v":0},{"$f":"IF(ISNUMBER(MATCH(AE$97,model_years,0)),MAX(AD121,SUMIFS(raw_resource_build!$H:$H,raw_resource_build!$E:$E,$C121,raw_resource_build!$A:$A,AE$97,raw_resource_build!$C:$C,mainzone)-SUMIFS(raw_resource_build!$Z:$Z,raw_resource_build!$E:$E,$C121,raw_resource_build!$A:$A,AE$97,raw_resource_build!$C:$C,mainzone)),0)","v":0},{"$f":"IF(ISNUMBER(MATCH(AF$97,model_years,0)),MAX(AE121,SUMIFS(raw_resource_build!$H:$H,raw_resource_build!$E:$E,$C121,raw_resource_build!$A:$A,AF$97,raw_resource_build!$C:$C,mainzone)-SUMIFS(raw_resource_build!$Z:$Z,raw_resource_build!$E:$E,$C121,raw_resource_build!$A:$A,AF$97,raw_resource_build!$C:$C,mainzone)),0)","v":0},{"$f":"IF(ISNUMBER(MATCH(AG$97,model_years,0)),MAX(AF121,SUMIFS(raw_resource_build!$H:$H,raw_resource_build!$E:$E,$C121,raw_resource_build!$A:$A,AG$97,raw_resource_build!$C:$C,mainzone)-SUMIFS(raw_resource_build!$Z:$Z,raw_resource_build!$E:$E,$C121,raw_resource_build!$A:$A,AG$97,raw_resource_build!$C:$C,mainzone)),0)","v":0},{"$f":"IF(ISNUMBER(MATCH(AH$97,model_years,0)),MAX(AG121,SUMIFS(raw_resource_build!$H:$H,raw_resource_build!$E:$E,$C121,raw_resource_build!$A:$A,AH$97,raw_resource_build!$C:$C,mainzone)-SUMIFS(raw_resource_build!$Z:$Z,raw_resource_build!$E:$E,$C121,raw_resource_build!$A:$A,AH$97,raw_resource_build!$C:$C,mainzone)),0)","v":0},{"$f":"IF(ISNUMBER(MATCH(AI$97,model_years,0)),MAX(AH121,SUMIFS(raw_resource_build!$H:$H,raw_resource_build!$E:$E,$C121,raw_resource_build!$A:$A,AI$97,raw_resource_build!$C:$C,mainzone)-SUMIFS(raw_resource_build!$Z:$Z,raw_resource_build!$E:$E,$C121,raw_resource_build!$A:$A,AI$97,raw_resource_build!$C:$C,mainzone)),0)","v":59216.11},{"$f":"IF(ISNUMBER(MATCH(AJ$97,model_years,0)),MAX(AI121,SUMIFS(raw_resource_build!$H:$H,raw_resource_build!$E:$E,$C121,raw_resource_build!$A:$A,AJ$97,raw_resource_build!$C:$C,mainzone)-SUMIFS(raw_resource_build!$Z:$Z,raw_resource_build!$E:$E,$C121,raw_resource_build!$A:$A,AJ$97,raw_resource_build!$C:$C,mainzone)),0)","v":0},{"$f":"IF(ISNUMBER(MATCH(AK$97,model_years,0)),MAX(AJ121,SUMIFS(raw_resource_build!$H:$H,raw_resource_build!$E:$E,$C121,raw_resource_build!$A:$A,AK$97,raw_resource_build!$C:$C,mainzone)-SUMIFS(raw_resource_build!$Z:$Z,raw_resource_build!$E:$E,$C121,raw_resource_build!$A:$A,AK$97,raw_resource_build!$C:$C,mainzone)),0)","v":0},{"$f":"IF(ISNUMBER(MATCH(AL$97,model_years,0)),MAX(AK121,SUMIFS(raw_resource_build!$H:$H,raw_resource_build!$E:$E,$C121,raw_resource_build!$A:$A,AL$97,raw_resource_build!$C:$C,mainzone)-SUMIFS(raw_resource_build!$Z:$Z,raw_resource_build!$E:$E,$C121,raw_resource_build!$A:$A,AL$97,raw_resource_build!$C:$C,mainzone)),0)","v":0},{"$f":"IF(ISNUMBER(MATCH(AM$97,model_years,0)),MAX(AL121,SUMIFS(raw_resource_build!$H:$H,raw_resource_build!$E:$E,$C121,raw_resource_build!$A:$A,AM$97,raw_resource_build!$C:$C,mainzone)-SUMIFS(raw_resource_build!$Z:$Z,raw_resource_build!$E:$E,$C121,raw_resource_build!$A:$A,AM$97,raw_resource_build!$C:$C,mainzone)),0)","v":0},{"$f":"IF(ISNUMBER(MATCH(AN$97,model_years,0)),MAX(AM121,SUMIFS(raw_resource_build!$H:$H,raw_resource_build!$E:$E,$C121,raw_resource_build!$A:$A,AN$97,raw_resource_build!$C:$C,mainzone)-SUMIFS(raw_resource_build!$Z:$Z,raw_resource_build!$E:$E,$C121,raw_resource_build!$A:$A,AN$97,raw_resource_build!$C:$C,mainzone)),0)","v":0}]
[null,null,"BTM_Li_Battery","MW",{"$f":"SUMIFS(raw_resource_build!$H:$H,raw_resource_build!$E:$E,$C122,raw_resource_build!$A:$A,E$97,raw_resource_build!$C:$C,mainzone)-SUMIFS(raw_resource_build!$Z:$Z,raw_resource_build!$E:$E,$C122,raw_resource_build!$A:$A,E$97,raw_resource_build!$C:$C,mainzone)","v":0},{"$f":"IF(ISNUMBER(MATCH(F$97,model_years,0)),MAX(E122,SUMIFS(raw_resource_build!$H:$H,raw_resource_build!$E:$E,$C122,raw_resource_build!$A:$A,F$97,raw_resource_build!$C:$C,mainzone)-SUMIFS(raw_resource_build!$Z:$Z,raw_resource_build!$E:$E,$C122,raw_resource_build!$A:$A,F$97,raw_resource_build!$C:$C,mainzone)),0)","v":0},{"$f":"IF(ISNUMBER(MATCH(G$97,model_years,0)),MAX(F122,SUMIFS(raw_resource_build!$H:$H,raw_resource_build!$E:$E,$C122,raw_resource_build!$A:$A,G$97,raw_resource_build!$C:$C,mainzone)-SUMIFS(raw_resource_build!$Z:$Z,raw_resource_build!$E:$E,$C122,raw_resource_build!$A:$A,G$97,raw_resource_build!$C:$C,mainzone)),0)","v":0},{"$f":"IF(ISNUMBER(MATCH(H$97,model_years,0)),MAX(G122,SUMIFS(raw_resource_build!$H:$H,raw_resource_build!$E:$E,$C122,raw_resource_build!$A:$A,H$97,raw_resource_build!$C:$C,mainzone)-SUMIFS(raw_resource_build!$Z:$Z,raw_resource_build!$E:$E,$C122,raw_resource_build!$A:$A,H$97,raw_resource_build!$C:$C,mainzone)),0)","v":0},{"$f":"IF(ISNUMBER(MATCH(I$97,model_years,0)),MAX(H122,SUMIFS(raw_resource_build!$H:$H,raw_resource_build!$E:$E,$C122,raw_resource_build!$A:$A,I$97,raw_resource_build!$C:$C,mainzone)-SUMIFS(raw_resource_build!$Z:$Z,raw_resource_build!$E:$E,$C122,raw_resource_build!$A:$A,I$97,raw_resource_build!$C:$C,mainzone)),0)","v":0},{"$f":"IF(ISNUMBER(MATCH(J$97,model_years,0)),MAX(I122,SUMIFS(raw_resource_build!$H:$H,raw_resource_build!$E:$E,$C122,raw_resource_build!$A:$A,J$97,raw_resource_build!$C:$C,mainzone)-SUMIFS(raw_resource_build!$Z:$Z,raw_resource_build!$E:$E,$C122,raw_resource_build!$A:$A,J$97,raw_resource_build!$C:$C,mainzone)),0)","v":0},{"$f":"IF(ISNUMBER(MATCH(K$97,model_years,0)),MAX(J122,SUMIFS(raw_resource_build!$H:$H,raw_resource_build!$E:$E,$C122,raw_resource_build!$A:$A,K$97,raw_resource_build!$C:$C,mainzone)-SUMIFS(raw_resource_build!$Z:$Z,raw_resource_build!$E:$E,$C122,raw_resource_build!$A:$A,K$97,raw_resource_build!$C:$C,mainzone)),0)","v":0},{"$f":"IF(ISNUMBER(MATCH(L$97,model_years,0)),MAX(K122,SUMIFS(raw_resource_build!$H:$H,raw_resource_build!$E:$E,$C122,raw_resource_build!$A:$A,L$97,raw_resource_build!$C:$C,mainzone)-SUMIFS(raw_resource_build!$Z:$Z,raw_resource_build!$E:$E,$C122,raw_resource_build!$A:$A,L$97,raw_resource_build!$C:$C,mainzone)),0)","v":0},{"$f":"IF(ISNUMBER(MATCH(M$97,model_years,0)),MAX(L122,SUMIFS(raw_resource_build!$H:$H,raw_resource_build!$E:$E,$C122,raw_resource_build!$A:$A,M$97,raw_resource_build!$C:$C,mainzone)-SUMIFS(raw_resource_build!$Z:$Z,raw_resource_build!$E:$E,$C122,raw_resource_build!$A:$A,M$97,raw_resource_build!$C:$C,mainzone)),0)","v":0},{"$f":"IF(ISNUMBER(MATCH(N$97,model_years,0)),MAX(M122,SUMIFS(raw_resource_build!$H:$H,raw_resource_build!$E:$E,$C122,raw_resource_build!$A:$A,N$97,raw_resource_build!$C:$C,mainzone)-SUMIFS(raw_resource_build!$Z:$Z,raw_resource_build!$E:$E,$C122,raw_resource_build!$A:$A,N$97,raw_resource_build!$C:$C,mainzone)),0)","v":0},{"$f":"IF(ISNUMBER(MATCH(O$97,model_years,0)),MAX(N122,SUMIFS(raw_resource_build!$H:$H,raw_resource_build!$E:$E,$C122,raw_resource_build!$A:$A,O$97,raw_resource_build!$C:$C,mainzone)-SUMIFS(raw_resource_build!$Z:$Z,raw_resource_build!$E:$E,$C122,raw_resource_build!$A:$A,O$97,raw_resource_build!$C:$C,mainzone)),0)","v":0},{"$f":"IF(ISNUMBER(MATCH(P$97,model_years,0)),MAX(O122,SUMIFS(raw_resource_build!$H:$H,raw_resource_build!$E:$E,$C122,raw_resource_build!$A:$A,P$97,raw_resource_build!$C:$C,mainzone)-SUMIFS(raw_resource_build!$Z:$Z,raw_resource_build!$E:$E,$C122,raw_resource_build!$A:$A,P$97,raw_resource_build!$C:$C,mainzone)),0)","v":0},{"$f":"IF(ISNUMBER(MATCH(Q$97,model_years,0)),MAX(P122,SUMIFS(raw_resource_build!$H:$H,raw_resource_build!$E:$E,$C122,raw_resource_build!$A:$A,Q$97,raw_resource_build!$C:$C,mainzone)-SUMIFS(raw_resource_build!$Z:$Z,raw_resource_build!$E:$E,$C122,raw_resource_build!$A:$A,Q$97,raw_resource_build!$C:$C,mainzone)),0)","v":0},{"$f":"IF(ISNUMBER(MATCH(R$97,model_years,0)),MAX(Q122,SUMIFS(raw_resource_build!$H:$H,raw_resource_build!$E:$E,$C122,raw_resource_build!$A:$A,R$97,raw_resource_build!$C:$C,mainzone)-SUMIFS(raw_resource_build!$Z:$Z,raw_resource_build!$E:$E,$C122,raw_resource_build!$A:$A,R$97,raw_resource_build!$C:$C,mainzone)),0)","v":0},{"$f":"IF(ISNUMBER(MATCH(S$97,model_years,0)),MAX(R122,SUMIFS(raw_resource_build!$H:$H,raw_resource_build!$E:$E,$C122,raw_resource_build!$A:$A,S$97,raw_resource_build!$C:$C,mainzone)-SUMIFS(raw_resource_build!$Z:$Z,raw_resource_build!$E:$E,$C122,raw_resource_build!$A:$A,S$97,raw_resource_build!$C:$C,mainzone)),0)","v":0},{"$f":"IF(ISNUMBER(MATCH(T$97,model_years,0)),MAX(S122,SUMIFS(raw_resource_build!$H:$H,raw_resource_build!$E:$E,$C122,raw_resource_build!$A:$A,T$97,raw_resource_build!$C:$C,mainzone)-SUMIFS(raw_resource_build!$Z:$Z,raw_resource_build!$E:$E,$C122,raw_resource_build!$A:$A,T$97,raw_resource_build!$C:$C,mainzone)),0)","v":0},{"$f":"IF(ISNUMBER(MATCH(U$97,model_years,0)),MAX(T122,SUMIFS(raw_resource_build!$H:$H,raw_resource_build!$E:$E,$C122,raw_resource_build!$A:$A,U$97,raw_resource_build!$C:$C,mainzone)-SUMIFS(raw_resource_build!$Z:$Z,raw_resource_build!$E:$E,$C122,raw_resource_build!$A:$A,U$97,raw_resource_build!$C:$C,mainzone)),0)","v":0},{"$f":"IF(ISNUMBER(MATCH(V$97,model_years,0)),MAX(U122,SUMIFS(raw_resource_build!$H:$H,raw_resource_build!$E:$E,$C122,raw_resource_build!$A:$A,V$97,raw_resource_build!$C:$C,mainzone)-SUMIFS(raw_resource_build!$Z:$Z,raw_resource_build!$E:$E,$C122,raw_resource_build!$A:$A,V$97,raw_resource_build!$C:$C,mainzone)),0)","v":0},{"$f":"IF(ISNUMBER(MATCH(W$97,model_years,0)),MAX(V122,SUMIFS(raw_resource_build!$H:$H,raw_resource_build!$E:$E,$C122,raw_resource_build!$A:$A,W$97,raw_resource_build!$C:$C,mainzone)-SUMIFS(raw_resource_build!$Z:$Z,raw_resource_build!$E:$E,$C122,raw_resource_build!$A:$A,W$97,raw_resource_build!$C:$C,mainzone)),0)","v":0},{"$f":"IF(ISNUMBER(MATCH(X$97,model_years,0)),MAX(W122,SUMIFS(raw_resource_build!$H:$H,raw_resource_build!$E:$E,$C122,raw_resource_build!$A:$A,X$97,raw_resource_build!$C:$C,mainzone)-SUMIFS(raw_resource_build!$Z:$Z,raw_resource_build!$E:$E,$C122,raw_resource_build!$A:$A,X$97,raw_resource_build!$C:$C,mainzone)),0)","v":0},{"$f":"IF(ISNUMBER(MATCH(Y$97,model_years,0)),MAX(X122,SUMIFS(raw_resource_build!$H:$H,raw_resource_build!$E:$E,$C122,raw_resource_build!$A:$A,Y$97,raw_resource_build!$C:$C,mainzone)-SUMIFS(raw_resource_build!$Z:$Z,raw_resource_build!$E:$E,$C122,raw_resource_build!$A:$A,Y$97,raw_resource_build!$C:$C,mainzone)),0)","v":0},{"$f":"IF(ISNUMBER(MATCH(Z$97,model_years,0)),MAX(Y122,SUMIFS(raw_resource_build!$H:$H,raw_resource_build!$E:$E,$C122,raw_resource_build!$A:$A,Z$97,raw_resource_build!$C:$C,mainzone)-SUMIFS(raw_resource_build!$Z:$Z,raw_resource_build!$E:$E,$C122,raw_resource_build!$A:$A,Z$97,raw_resource_build!$C:$C,mainzone)),0)","v":0},{"$f":"IF(ISNUMBER(MATCH(AA$97,model_years,0)),MAX(Z122,SUMIFS(raw_resource_build!$H:$H,raw_resource_build!$E:$E,$C122,raw_resource_build!$A:$A,AA$97,raw_resource_build!$C:$C,mainzone)-SUMIFS(raw_resource_build!$Z:$Z,raw_resource_build!$E:$E,$C122,raw_resource_build!$A:$A,AA$97,raw_resource_build!$C:$C,mainzone)),0)","v":0},{"$f":"IF(ISNUMBER(MATCH(AB$97,model_years,0)),MAX(AA122,SUMIFS(raw_resource_build!$H:$H,raw_resource_build!$E:$E,$C122,raw_resource_build!$A:$A,AB$97,raw_resource_build!$C:$C,mainzone)-SUMIFS(raw_resource_build!$Z:$Z,raw_resource_build!$E:$E,$C122,raw_resource_build!$A:$A,AB$97,raw_resource_build!$C:$C,mainzone)),0)","v":0},{"$f":"IF(ISNUMBER(MATCH(AC$97,model_years,0)),MAX(AB122,SUMIFS(raw_resource_build!$H:$H,raw_resource_build!$E:$E,$C122,raw_resource_build!$A:$A,AC$97,raw_resource_build!$C:$C,mainzone)-SUMIFS(raw_resource_build!$Z:$Z,raw_resource_build!$E:$E,$C122,raw_resource_build!$A:$A,AC$97,raw_resource_build!$C:$C,mainzone)),0)","v":0},{"$f":"IF(ISNUMBER(MATCH(AD$97,model_years,0)),MAX(AC122,SUMIFS(raw_resource_build!$H:$H,raw_resource_build!$E:$E,$C122,raw_resource_build!$A:$A,AD$97,raw_resource_build!$C:$C,mainzone)-SUMIFS(raw_resource_build!$Z:$Z,raw_resource_build!$E:$E,$C122,raw_resource_build!$A:$A,AD$97,raw_resource_build!$C:$C,mainzone)),0)","v":0},{"$f":"IF(ISNUMBER(MATCH(AE$97,model_years,0)),MAX(AD122,SUMIFS(raw_resource_build!$H:$H,raw_resource_build!$E:$E,$C122,raw_resource_build!$A:$A,AE$97,raw_resource_build!$C:$C,mainzone)-SUMIFS(raw_resource_build!$Z:$Z,raw_resource_build!$E:$E,$C122,raw_resource_build!$A:$A,AE$97,raw_resource_build!$C:$C,mainzone)),0)","v":0},{"$f":"IF(ISNUMBER(MATCH(AF$97,model_years,0)),MAX(AE122,SUMIFS(raw_resource_build!$H:$H,raw_resource_build!$E:$E,$C122,raw_resource_build!$A:$A,AF$97,raw_resource_build!$C:$C,mainzone)-SUMIFS(raw_resource_build!$Z:$Z,raw_resource_build!$E:$E,$C122,raw_resource_build!$A:$A,AF$97,raw_resource_build!$C:$C,mainzone)),0)","v":0},{"$f":"IF(ISNUMBER(MATCH(AG$97,model_years,0)),MAX(AF122,SUMIFS(raw_resource_build!$H:$H,raw_resource_build!$E:$E,$C122,raw_resource_build!$A:$A,AG$97,raw_resource_build!$C:$C,mainzone)-SUMIFS(raw_resource_build!$Z:$Z,raw_resource_build!$E:$E,$C122,raw_resource_build!$A:$A,AG$97,raw_resource_build!$C:$C,mainzone)),0)","v":0},{"$f":"IF(ISNUMBER(MATCH(AH$97,model_years,0)),MAX(AG122,SUMIFS(raw_resource_build!$H:$H,raw_resource_build!$E:$E,$C122,raw_resource_build!$A:$A,AH$97,raw_resource_build!$C:$C,mainzone)-SUMIFS(raw_resource_build!$Z:$Z,raw_resource_build!$E:$E,$C122,raw_resource_build!$A:$A,AH$97,raw_resource_build!$C:$C,mainzone)),0)","v":0},{"$f":"IF(ISNUMBER(MATCH(AI$97,model_years,0)),MAX(AH122,SUMIFS(raw_resource_build!$H:$H,raw_resource_build!$E:$E,$C122,raw_resource_build!$A:$A,AI$97,raw_resource_build!$C:$C,mainzone)-SUMIFS(raw_resource_build!$Z:$Z,raw_resource_build!$E:$E,$C122,raw_resource_build!$A:$A,AI$97,raw_resource_build!$C:$C,mainzone)),0)","v":0},{"$f":"IF(ISNUMBER(MATCH(AJ$97,model_years,0)),MAX(AI122,SUMIFS(raw_resource_build!$H:$H,raw_resource_build!$E:$E,$C122,raw_resource_build!$A:$A,AJ$97,raw_resource_build!$C:$C,mainzone)-SUMIFS(raw_resource_build!$Z:$Z,raw_resource_build!$E:$E,$C122,raw_resource_build!$A:$A,AJ$97,raw_resource_build!$C:$C,mainzone)),0)","v":0},{"$f":"IF(ISNUMBER(MATCH(AK$97,model_years,0)),MAX(AJ122,SUMIFS(raw_resource_build!$H:$H,raw_resource_build!$E:$E,$C122,raw_resource_build!$A:$A,AK$97,raw_resource_build!$C:$C,mainzone)-SUMIFS(raw_resource_build!$Z:$Z,raw_resource_build!$E:$E,$C122,raw_resource_build!$A:$A,AK$97,raw_resource_build!$C:$C,mainzone)),0)","v":0},{"$f":"IF(ISNUMBER(MATCH(AL$97,model_years,0)),MAX(AK122,SUMIFS(raw_resource_build!$H:$H,raw_resource_build!$E:$E,$C122,raw_resource_build!$A:$A,AL$97,raw_resource_build!$C:$C,mainzone)-SUMIFS(raw_resource_build!$Z:$Z,raw_resource_build!$E:$E,$C122,raw_resource_build!$A:$A,AL$97,raw_resource_build!$C:$C,mainzone)),0)","v":0},{"$f":"IF(ISNUMBER(MATCH(AM$97,model_years,0)),MAX(AL122,SUMIFS(raw_resource_build!$H:$H,raw_resource_build!$E:$E,$C122,raw_resource_build!$A:$A,AM$97,raw_resource_build!$C:$C,mainzone)-SUMIFS(raw_resource_build!$Z:$Z,raw_resource_build!$E:$E,$C122,raw_resource_build!$A:$A,AM$97,raw_resource_build!$C:$C,mainzone)),0)","v":0},{"$f":"IF(ISNUMBER(MATCH(AN$97,model_years,0)),MAX(AM122,SUMIFS(raw_resource_build!$H:$H,raw_resource_build!$E:$E,$C122,raw_resource_build!$A:$A,AN$97,raw_resource_build!$C:$C,mainzone)-SUMIFS(raw_resource_build!$Z:$Z,raw_resource_build!$E:$E,$C122,raw_resource_build!$A:$A,AN$97,raw_resource_build!$C:$C,mainzone)),0)","v":0}]
[null,null,"Flow_Battery","MW",{"$f":"SUMIFS(raw_resource_build!$H:$H,raw_resource_build!$E:$E,$C123,raw_resource_build!$A:$A,E$97,raw_resource_build!$C:$C,mainzone)-SUMIFS(raw_resource_build!$Z:$Z,raw_resource_build!$E:$E,$C123,raw_resource_build!$A:$A,E$97,raw_resource_build!$C:$C,mainzone)","v":0},{"$f":"IF(ISNUMBER(MATCH(F$97,model_years,0)),MAX(E123,SUMIFS(raw_resource_build!$H:$H,raw_resource_build!$E:$E,$C123,raw_resource_build!$A:$A,F$97,raw_resource_build!$C:$C,mainzone)-SUMIFS(raw_resource_build!$Z:$Z,raw_resource_build!$E:$E,$C123,raw_resource_build!$A:$A,F$97,raw_resource_build!$C:$C,mainzone)),0)","v":0},{"$f":"IF(ISNUMBER(MATCH(G$97,model_years,0)),MAX(F123,SUMIFS(raw_resource_build!$H:$H,raw_resource_build!$E:$E,$C123,raw_resource_build!$A:$A,G$97,raw_resource_build!$C:$C,mainzone)-SUMIFS(raw_resource_build!$Z:$Z,raw_resource_build!$E:$E,$C123,raw_resource_build!$A:$A,G$97,raw_resource_build!$C:$C,mainzone)),0)","v":0},{"$f":"IF(ISNUMBER(MATCH(H$97,model_years,0)),MAX(G123,SUMIFS(raw_resource_build!$H:$H,raw_resource_build!$E:$E,$C123,raw_resource_build!$A:$A,H$97,raw_resource_build!$C:$C,mainzone)-SUMIFS(raw_resource_build!$Z:$Z,raw_resource_build!$E:$E,$C123,raw_resource_build!$A:$A,H$97,raw_resource_build!$C:$C,mainzone)),0)","v":0},{"$f":"IF(ISNUMBER(MATCH(I$97,model_years,0)),MAX(H123,SUMIFS(raw_resource_build!$H:$H,raw_resource_build!$E:$E,$C123,raw_resource_build!$A:$A,I$97,raw_resource_build!$C:$C,mainzone)-SUMIFS(raw_resource_build!$Z:$Z,raw_resource_build!$E:$E,$C123,raw_resource_build!$A:$A,I$97,raw_resource_build!$C:$C,mainzone)),0)","v":0},{"$f":"IF(ISNUMBER(MATCH(J$97,model_years,0)),MAX(I123,SUMIFS(raw_resource_build!$H:$H,raw_resource_build!$E:$E,$C123,raw_resource_build!$A:$A,J$97,raw_resource_build!$C:$C,mainzone)-SUMIFS(raw_resource_build!$Z:$Z,raw_resource_build!$E:$E,$C123,raw_resource_build!$A:$A,J$97,raw_resource_build!$C:$C,mainzone)),0)","v":0},{"$f":"IF(ISNUMBER(MATCH(K$97,model_years,0)),MAX(J123,SUMIFS(raw_resource_build!$H:$H,raw_resource_build!$E:$E,$C123,raw_resource_build!$A:$A,K$97,raw_resource_build!$C:$C,mainzone)-SUMIFS(raw_resource_build!$Z:$Z,raw_resource_build!$E:$E,$C123,raw_resource_build!$A:$A,K$97,raw_resource_build!$C:$C,mainzone)),0)","v":0},{"$f":"IF(ISNUMBER(MATCH(L$97,model_years,0)),MAX(K123,SUMIFS(raw_resource_build!$H:$H,raw_resource_build!$E:$E,$C123,raw_resource_build!$A:$A,L$97,raw_resource_build!$C:$C,mainzone)-SUMIFS(raw_resource_build!$Z:$Z,raw_resource_build!$E:$E,$C123,raw_resource_build!$A:$A,L$97,raw_resource_build!$C:$C,mainzone)),0)","v":0},{"$f":"IF(ISNUMBER(MATCH(M$97,model_years,0)),MAX(L123,SUMIFS(raw_resource_build!$H:$H,raw_resource_build!$E:$E,$C123,raw_resource_build!$A:$A,M$97,raw_resource_build!$C:$C,mainzone)-SUMIFS(raw_resource_build!$Z:$Z,raw_resource_build!$E:$E,$C123,raw_resource_build!$A:$A,M$97,raw_resource_build!$C:$C,mainzone)),0)","v":0},{"$f":"IF(ISNUMBER(MATCH(N$97,model_years,0)),MAX(M123,SUMIFS(raw_resource_build!$H:$H,raw_resource_build!$E:$E,$C123,raw_resource_build!$A:$A,N$97,raw_resource_build!$C:$C,mainzone)-SUMIFS(raw_resource_build!$Z:$Z,raw_resource_build!$E:$E,$C123,raw_resource_build!$A:$A,N$97,raw_resource_build!$C:$C,mainzone)),0)","v":0},{"$f":"IF(ISNUMBER(MATCH(O$97,model_years,0)),MAX(N123,SUMIFS(raw_resource_build!$H:$H,raw_resource_build!$E:$E,$C123,raw_resource_build!$A:$A,O$97,raw_resource_build!$C:$C,mainzone)-SUMIFS(raw_resource_build!$Z:$Z,raw_resource_build!$E:$E,$C123,raw_resource_build!$A:$A,O$97,raw_resource_build!$C:$C,mainzone)),0)","v":0},{"$f":"IF(ISNUMBER(MATCH(P$97,model_years,0)),MAX(O123,SUMIFS(raw_resource_build!$H:$H,raw_resource_build!$E:$E,$C123,raw_resource_build!$A:$A,P$97,raw_resource_build!$C:$C,mainzone)-SUMIFS(raw_resource_build!$Z:$Z,raw_resource_build!$E:$E,$C123,raw_resource_build!$A:$A,P$97,raw_resource_build!$C:$C,mainzone)),0)","v":0},{"$f":"IF(ISNUMBER(MATCH(Q$97,model_years,0)),MAX(P123,SUMIFS(raw_resource_build!$H:$H,raw_resource_build!$E:$E,$C123,raw_resource_build!$A:$A,Q$97,raw_resource_build!$C:$C,mainzone)-SUMIFS(raw_resource_build!$Z:$Z,raw_resource_build!$E:$E,$C123,raw_resource_build!$A:$A,Q$97,raw_resource_build!$C:$C,mainzone)),0)","v":0},{"$f":"IF(ISNUMBER(MATCH(R$97,model_years,0)),MAX(Q123,SUMIFS(raw_resource_build!$H:$H,raw_resource_build!$E:$E,$C123,raw_resource_build!$A:$A,R$97,raw_resource_build!$C:$C,mainzone)-SUMIFS(raw_resource_build!$Z:$Z,raw_resource_build!$E:$E,$C123,raw_resource_build!$A:$A,R$97,raw_resource_build!$C:$C,mainzone)),0)","v":0},{"$f":"IF(ISNUMBER(MATCH(S$97,model_years,0)),MAX(R123,SUMIFS(raw_resource_build!$H:$H,raw_resource_build!$E:$E,$C123,raw_resource_build!$A:$A,S$97,raw_resource_build!$C:$C,mainzone)-SUMIFS(raw_resource_build!$Z:$Z,raw_resource_build!$E:$E,$C123,raw_resource_build!$A:$A,S$97,raw_resource_build!$C:$C,mainzone)),0)","v":0},{"$f":"IF(ISNUMBER(MATCH(T$97,model_years,0)),MAX(S123,SUMIFS(raw_resource_build!$H:$H,raw_resource_build!$E:$E,$C123,raw_resource_build!$A:$A,T$97,raw_resource_build!$C:$C,mainzone)-SUMIFS(raw_resource_build!$Z:$Z,raw_resource_build!$E:$E,$C123,raw_resource_build!$A:$A,T$97,raw_resource_build!$C:$C,mainzone)),0)","v":0},{"$f":"IF(ISNUMBER(MATCH(U$97,model_years,0)),MAX(T123,SUMIFS(raw_resource_build!$H:$H,raw_resource_build!$E:$E,$C123,raw_resource_build!$A:$A,U$97,raw_resource_build!$C:$C,mainzone)-SUMIFS(raw_resource_build!$Z:$Z,raw_resource_build!$E:$E,$C123,raw_resource_build!$A:$A,U$97,raw_resource_build!$C:$C,mainzone)),0)","v":0},{"$f":"IF(ISNUMBER(MATCH(V$97,model_years,0)),MAX(U123,SUMIFS(raw_resource_build!$H:$H,raw_resource_build!$E:$E,$C123,raw_resource_build!$A:$A,V$97,raw_resource_build!$C:$C,mainzone)-SUMIFS(raw_resource_build!$Z:$Z,raw_resource_build!$E:$E,$C123,raw_resource_build!$A:$A,V$97,raw_resource_build!$C:$C,mainzone)),0)","v":0},{"$f":"IF(ISNUMBER(MATCH(W$97,model_years,0)),MAX(V123,SUMIFS(raw_resource_build!$H:$H,raw_resource_build!$E:$E,$C123,raw_resource_build!$A:$A,W$97,raw_resource_build!$C:$C,mainzone)-SUMIFS(raw_resource_build!$Z:$Z,raw_resource_build!$E:$E,$C123,raw_resource_build!$A:$A,W$97,raw_resource_build!$C:$C,mainzone)),0)","v":0},{"$f":"IF(ISNUMBER(MATCH(X$97,model_years,0)),MAX(W123,SUMIFS(raw_resource_build!$H:$H,raw_resource_build!$E:$E,$C123,raw_resource_build!$A:$A,X$97,raw_resource_build!$C:$C,mainzone)-SUMIFS(raw_resource_build!$Z:$Z,raw_resource_build!$E:$E,$C123,raw_resource_build!$A:$A,X$97,raw_resource_build!$C:$C,mainzone)),0)","v":0},{"$f":"IF(ISNUMBER(MATCH(Y$97,model_years,0)),MAX(X123,SUMIFS(raw_resource_build!$H:$H,raw_resource_build!$E:$E,$C123,raw_resource_build!$A:$A,Y$97,raw_resource_build!$C:$C,mainzone)-SUMIFS(raw_resource_build!$Z:$Z,raw_resource_build!$E:$E,$C123,raw_resource_build!$A:$A,Y$97,raw_resource_build!$C:$C,mainzone)),0)","v":0},{"$f":"IF(ISNUMBER(MATCH(Z$97,model_years,0)),MAX(Y123,SUMIFS(raw_resource_build!$H:$H,raw_resource_build!$E:$E,$C123,raw_resource_build!$A:$A,Z$97,raw_resource_build!$C:$C,mainzone)-SUMIFS(raw_resource_build!$Z:$Z,raw_resource_build!$E:$E,$C123,raw_resource_build!$A:$A,Z$97,raw_resource_build!$C:$C,mainzone)),0)","v":0},{"$f":"IF(ISNUMBER(MATCH(AA$97,model_years,0)),MAX(Z123,SUMIFS(raw_resource_build!$H:$H,raw_resource_build!$E:$E,$C123,raw_resource_build!$A:$A,AA$97,raw_resource_build!$C:$C,mainzone)-SUMIFS(raw_resource_build!$Z:$Z,raw_resource_build!$E:$E,$C123,raw_resource_build!$A:$A,AA$97,raw_resource_build!$C:$C,mainzone)),0)","v":0},{"$f":"IF(ISNUMBER(MATCH(AB$97,model_years,0)),MAX(AA123,SUMIFS(raw_resource_build!$H:$H,raw_resource_build!$E:$E,$C123,raw_resource_build!$A:$A,AB$97,raw_resource_build!$C:$C,mainzone)-SUMIFS(raw_resource_build!$Z:$Z,raw_resource_build!$E:$E,$C123,raw_resource_build!$A:$A,AB$97,raw_resource_build!$C:$C,mainzone)),0)","v":0},{"$f":"IF(ISNUMBER(MATCH(AC$97,model_years,0)),MAX(AB123,SUMIFS(raw_resource_build!$H:$H,raw_resource_build!$E:$E,$C123,raw_resource_build!$A:$A,AC$97,raw_resource_build!$C:$C,mainzone)-SUMIFS(raw_resource_build!$Z:$Z,raw_resource_build!$E:$E,$C123,raw_resource_build!$A:$A,AC$97,raw_resource_build!$C:$C,mainzone)),0)","v":0},{"$f":"IF(ISNUMBER(MATCH(AD$97,model_years,0)),MAX(AC123,SUMIFS(raw_resource_build!$H:$H,raw_resource_build!$E:$E,$C123,raw_resource_build!$A:$A,AD$97,raw_resource_build!$C:$C,mainzone)-SUMIFS(raw_resource_build!$Z:$Z,raw_resource_build!$E:$E,$C123,raw_resource_build!$A:$A,AD$97,raw_resource_build!$C:$C,mainzone)),0)","v":0},{"$f":"IF(ISNUMBER(MATCH(AE$97,model_years,0)),MAX(AD123,SUMIFS(raw_resource_build!$H:$H,raw_resource_build!$E:$E,$C123,raw_resource_build!$A:$A,AE$97,raw_resource_build!$C:$C,mainzone)-SUMIFS(raw_resource_build!$Z:$Z,raw_resource_build!$E:$E,$C123,raw_resource_build!$A:$A,AE$97,raw_resource_build!$C:$C,mainzone)),0)","v":0},{"$f":"IF(ISNUMBER(MATCH(AF$97,model_years,0)),MAX(AE123,SUMIFS(raw_resource_build!$H:$H,raw_resource_build!$E:$E,$C123,raw_resource_build!$A:$A,AF$97,raw_resource_build!$C:$C,mainzone)-SUMIFS(raw_resource_build!$Z:$Z,raw_resource_build!$E:$E,$C123,raw_resource_build!$A:$A,AF$97,raw_resource_build!$C:$C,mainzone)),0)","v":0},{"$f":"IF(ISNUMBER(MATCH(AG$97,model_years,0)),MAX(AF123,SUMIFS(raw_resource_build!$H:$H,raw_resource_build!$E:$E,$C123,raw_resource_build!$A:$A,AG$97,raw_resource_build!$C:$C,mainzone)-SUMIFS(raw_resource_build!$Z:$Z,raw_resource_build!$E:$E,$C123,raw_resource_build!$A:$A,AG$97,raw_resource_build!$C:$C,mainzone)),0)","v":0},{"$f":"IF(ISNUMBER(MATCH(AH$97,model_years,0)),MAX(AG123,SUMIFS(raw_resource_build!$H:$H,raw_resource_build!$E:$E,$C123,raw_resource_build!$A:$A,AH$97,raw_resource_build!$C:$C,mainzone)-SUMIFS(raw_resource_build!$Z:$Z,raw_resource_build!$E:$E,$C123,raw_resource_build!$A:$A,AH$97,raw_resource_build!$C:$C,mainzone)),0)","v":0},{"$f":"IF(ISNUMBER(MATCH(AI$97,model_years,0)),MAX(AH123,SUMIFS(raw_resource_build!$H:$H,raw_resource_build!$E:$E,$C123,raw_resource_build!$A:$A,AI$97,raw_resource_build!$C:$C,mainzone)-SUMIFS(raw_resource_build!$Z:$Z,raw_resource_build!$E:$E,$C123,raw_resource_build!$A:$A,AI$97,raw_resource_build!$C:$C,mainzone)),0)","v":0},{"$f":"IF(ISNUMBER(MATCH(AJ$97,model_years,0)),MAX(AI123,SUMIFS(raw_resource_build!$H:$H,raw_resource_build!$E:$E,$C123,raw_resource_build!$A:$A,AJ$97,raw_resource_build!$C:$C,mainzone)-SUMIFS(raw_resource_build!$Z:$Z,raw_resource_build!$E:$E,$C123,raw_resource_build!$A:$A,AJ$97,raw_resource_build!$C:$C,mainzone)),0)","v":0},{"$f":"IF(ISNUMBER(MATCH(AK$97,model_years,0)),MAX(AJ123,SUMIFS(raw_resource_build!$H:$H,raw_resource_build!$E:$E,$C123,raw_resource_build!$A:$A,AK$97,raw_resource_build!$C:$C,mainzone)-SUMIFS(raw_resource_build!$Z:$Z,raw_resource_build!$E:$E,$C123,raw_resource_build!$A:$A,AK$97,raw_resource_build!$C:$C,mainzone)),0)","v":0},{"$f":"IF(ISNUMBER(MATCH(AL$97,model_years,0)),MAX(AK123,SUMIFS(raw_resource_build!$H:$H,raw_resource_build!$E:$E,$C123,raw_resource_build!$A:$A,AL$97,raw_resource_build!$C:$C,mainzone)-SUMIFS(raw_resource_build!$Z:$Z,raw_resource_build!$E:$E,$C123,raw_resource_build!$A:$A,AL$97,raw_resource_build!$C:$C,mainzone)),0)","v":0},{"$f":"IF(ISNUMBER(MATCH(AM$97,model_years,0)),MAX(AL123,SUMIFS(raw_resource_build!$H:$H,raw_resource_build!$E:$E,$C123,raw_resource_build!$A:$A,AM$97,raw_resource_build!$C:$C,mainzone)-SUMIFS(raw_resource_build!$Z:$Z,raw_resource_build!$E:$E,$C123,raw_resource_build!$A:$A,AM$97,raw_resource_build!$C:$C,mainzone)),0)","v":0},{"$f":"IF(ISNUMBER(MATCH(AN$97,model_years,0)),MAX(AM123,SUMIFS(raw_resource_build!$H:$H,raw_resource_build!$E:$E,$C123,raw_resource_build!$A:$A,AN$97,raw_resource_build!$C:$C,mainzone)-SUMIFS(raw_resource_build!$Z:$Z,raw_resource_build!$E:$E,$C123,raw_resource_build!$A:$A,AN$97,raw_resource_build!$C:$C,mainzone)),0)","v":0}]
[null,null,"Hydrogen_Electrolysis","MW",{"$f":"SUMIFS(raw_resource_build!$O:$O,raw_resource_build!$E:$E,$C124,raw_resource_build!$A:$A,E$96,raw_resource_build!$C:$C,mainzone)*SUMIFS(raw_inputs_passthrough!$M:$M,raw_inputs_passthrough!$A:$A,E$96)","v":0},{"$f":"SUMIFS(raw_resource_build!$O:$O,raw_resource_build!$E:$E,$C124,raw_resource_build!$A:$A,F$96,raw_resource_build!$C:$C,mainzone)*SUMIFS(raw_inputs_passthrough!$M:$M,raw_inputs_passthrough!$A:$A,F$96)","v":0},{"$f":"SUMIFS(raw_resource_build!$O:$O,raw_resource_build!$E:$E,$C124,raw_resource_build!$A:$A,G$96,raw_resource_build!$C:$C,mainzone)*SUMIFS(raw_inputs_passthrough!$M:$M,raw_inputs_passthrough!$A:$A,G$96)","v":0},{"$f":"SUMIFS(raw_resource_build!$O:$O,raw_resource_build!$E:$E,$C124,raw_resource_build!$A:$A,H$96,raw_resource_build!$C:$C,mainzone)*SUMIFS(raw_inputs_passthrough!$M:$M,raw_inputs_passthrough!$A:$A,H$96)","v":0},{"$f":"SUMIFS(raw_resource_build!$O:$O,raw_resource_build!$E:$E,$C124,raw_resource_build!$A:$A,I$96,raw_resource_build!$C:$C,mainzone)*SUMIFS(raw_inputs_passthrough!$M:$M,raw_inputs_passthrough!$A:$A,I$96)","v":0},{"$f":"SUMIFS(raw_resource_build!$O:$O,raw_resource_build!$E:$E,$C124,raw_resource_build!$A:$A,J$96,raw_resource_build!$C:$C,mainzone)*SUMIFS(raw_inputs_passthrough!$M:$M,raw_inputs_passthrough!$A:$A,J$96)","v":0},{"$f":"SUMIFS(raw_resource_build!$O:$O,raw_resource_build!$E:$E,$C124,raw_resource_build!$A:$A,K$96,raw_resource_build!$C:$C,mainzone)*SUMIFS(raw_inputs_passthrough!$M:$M,raw_inputs_passthrough!$A:$A,K$96)","v":0},{"$f":"SUMIFS(raw_resource_build!$O:$O,raw_resource_build!$E:$E,$C124,raw_resource_build!$A:$A,L$96,raw_resource_build!$C:$C,mainzone)*SUMIFS(raw_inputs_passthrough!$M:$M,raw_inputs_passthrough!$A:$A,L$96)","v":0},{"$f":"SUMIFS(raw_resource_build!$O:$O,raw_resource_build!$E:$E,$C124,raw_resource_build!$A:$A,M$96,raw_resource_build!$C:$C,mainzone)*SUMIFS(raw_inputs_passthrough!$M:$M,raw_inputs_passthrough!$A:$A,M$96)","v":0},{"$f":"SUMIFS(raw_resource_build!$O:$O,raw_resource_build!$E:$E,$C124,raw_resource_build!$A:$A,N$96,raw_resource_build!$C:$C,mainzone)*SUMIFS(raw_inputs_passthrough!$M:$M,raw_inputs_passthrough!$A:$A,N$96)","v":0},{"$f":"SUMIFS(raw_resource_build!$O:$O,raw_resource_build!$E:$E,$C124,raw_resource_build!$A:$A,O$96,raw_resource_build!$C:$C,mainzone)*SUMIFS(raw_inputs_passthrough!$M:$M,raw_inputs_passthrough!$A:$A,O$96)","v":0},{"$f":"SUMIFS(raw_resource_build!$O:$O,raw_resource_build!$E:$E,$C124,raw_resource_build!$A:$A,P$96,raw_resource_build!$C:$C,mainzone)*SUMIFS(raw_inputs_passthrough!$M:$M,raw_inputs_passthrough!$A:$A,P$96)","v":0},{"$f":"SUMIFS(raw_resource_build!$O:$O,raw_resource_build!$E:$E,$C124,raw_resource_build!$A:$A,Q$96,raw_resource_build!$C:$C,mainzone)*SUMIFS(raw_inputs_passthrough!$M:$M,raw_inputs_passthrough!$A:$A,Q$96)","v":0},{"$f":"SUMIFS(raw_resource_build!$O:$O,raw_resource_build!$E:$E,$C124,raw_resource_build!$A:$A,R$96,raw_resource_build!$C:$C,mainzone)*SUMIFS(raw_inputs_passthrough!$M:$M,raw_inputs_passthrough!$A:$A,R$96)","v":0},{"$f":"SUMIFS(raw_resource_build!$O:$O,raw_resource_build!$E:$E,$C124,raw_resource_build!$A:$A,S$96,raw_resource_build!$C:$C,mainzone)*SUMIFS(raw_inputs_passthrough!$M:$M,raw_inputs_passthrough!$A:$A,S$96)","v":0},{"$f":"SUMIFS(raw_resource_build!$O:$O,raw_resource_build!$E:$E,$C124,raw_resource_build!$A:$A,T$96,raw_resource_build!$C:$C,mainzone)*SUMIFS(raw_inputs_passthrough!$M:$M,raw_inputs_passthrough!$A:$A,T$96)","v":0},{"$f":"SUMIFS(raw_resource_build!$O:$O,raw_resource_build!$E:$E,$C124,raw_resource_build!$A:$A,U$96,raw_resource_build!$C:$C,mainzone)*SUMIFS(raw_inputs_passthrough!$M:$M,raw_inputs_passthrough!$A:$A,U$96)","v":0},{"$f":"SUMIFS(raw_resource_build!$O:$O,raw_resource_build!$E:$E,$C124,raw_resource_build!$A:$A,V$96,raw_resource_build!$C:$C,mainzone)*SUMIFS(raw_inputs_passthrough!$M:$M,raw_inputs_passthrough!$A:$A,V$96)","v":0},{"$f":"SUMIFS(raw_resource_build!$O:$O,raw_resource_build!$E:$E,$C124,raw_resource_build!$A:$A,W$96,raw_resource_build!$C:$C,mainzone)*SUMIFS(raw_inputs_passthrough!$M:$M,raw_inputs_passthrough!$A:$A,W$96)","v":0},{"$f":"SUMIFS(raw_resource_build!$O:$O,raw_resource_build!$E:$E,$C124,raw_resource_build!$A:$A,X$96,raw_resource_build!$C:$C,mainzone)*SUMIFS(raw_inputs_passthrough!$M:$M,raw_inputs_passthrough!$A:$A,X$96)","v":0},{"$f":"SUMIFS(raw_resource_build!$O:$O,raw_resource_build!$E:$E,$C124,raw_resource_build!$A:$A,Y$96,raw_resource_build!$C:$C,mainzone)*SUMIFS(raw_inputs_passthrough!$M:$M,raw_inputs_passthrough!$A:$A,Y$96)","v":0},{"$f":"SUMIFS(raw_resource_build!$O:$O,raw_resource_build!$E:$E,$C124,raw_resource_build!$A:$A,Z$96,raw_resource_build!$C:$C,mainzone)*SUMIFS(raw_inputs_passthrough!$M:$M,raw_inputs_passthrough!$A:$A,Z$96)","v":0},{"$f":"SUMIFS(raw_resource_build!$O:$O,raw_resource_build!$E:$E,$C124,raw_resource_build!$A:$A,AA$96,raw_resource_build!$C:$C,mainzone)*SUMIFS(raw_inputs_passthrough!$M:$M,raw_inputs_passthrough!$A:$A,AA$96)","v":0},{"$f":"SUMIFS(raw_resource_build!$O:$O,raw_resource_build!$E:$E,$C124,raw_resource_build!$A:$A,AB$96,raw_resource_build!$C:$C,mainzone)*SUMIFS(raw_inputs_passthrough!$M:$M,raw_inputs_passthrough!$A:$A,AB$96)","v":0},{"$f":"SUMIFS(raw_resource_build!$O:$O,raw_resource_build!$E:$E,$C124,raw_resource_build!$A:$A,AC$96,raw_resource_build!$C:$C,mainzone)*SUMIFS(raw_inputs_passthrough!$M:$M,raw_inputs_passthrough!$A:$A,AC$96)","v":0},{"$f":"SUMIFS(raw_resource_build!$O:$O,raw_resource_build!$E:$E,$C124,raw_resource_build!$A:$A,AD$96,raw_resource_build!$C:$C,mainzone)*SUMIFS(raw_inputs_passthrough!$M:$M,raw_inputs_passthrough!$A:$A,AD$96)","v":0},{"$f":"SUMIFS(raw_resource_build!$O:$O,raw_resource_build!$E:$E,$C124,raw_resource_build!$A:$A,AE$96,raw_resource_build!$C:$C,mainzone)*SUMIFS(raw_inputs_passthrough!$M:$M,raw_inputs_passthrough!$A:$A,AE$96)","v":0},{"$f":"SUMIFS(raw_resource_build!$O:$O,raw_resource_build!$E:$E,$C124,raw_resource_build!$A:$A,AF$96,raw_resource_build!$C:$C,mainzone)*SUMIFS(raw_inputs_passthrough!$M:$M,raw_inputs_passthrough!$A:$A,AF$96)","v":0},{"$f":"SUMIFS(raw_resource_build!$O:$O,raw_resource_build!$E:$E,$C124,raw_resource_build!$A:$A,AG$96,raw_resource_build!$C:$C,mainzone)*SUMIFS(raw_inputs_passthrough!$M:$M,raw_inputs_passthrough!$A:$A,AG$96)","v":0},{"$f":"SUMIFS(raw_resource_build!$O:$O,raw_resource_build!$E:$E,$C124,raw_resource_build!$A:$A,AH$96,raw_resource_build!$C:$C,mainzone)*SUMIFS(raw_inputs_passthrough!$M:$M,raw_inputs_passthrough!$A:$A,AH$96)","v":0},{"$f":"SUMIFS(raw_resource_build!$O:$O,raw_resource_build!$E:$E,$C124,raw_resource_build!$A:$A,AI$96,raw_resource_build!$C:$C,mainzone)*SUMIFS(raw_inputs_passthrough!$M:$M,raw_inputs_passthrough!$A:$A,AI$96)","v":0},{"$f":"SUMIFS(raw_resource_build!$O:$O,raw_resource_build!$E:$E,$C124,raw_resource_build!$A:$A,AJ$96,raw_resource_build!$C:$C,mainzone)*SUMIFS(raw_inputs_passthrough!$M:$M,raw_inputs_passthrough!$A:$A,AJ$96)","v":0},{"$f":"SUMIFS(raw_resource_build!$O:$O,raw_resource_build!$E:$E,$C124,raw_resource_build!$A:$A,AK$96,raw_resource_build!$C:$C,mainzone)*SUMIFS(raw_inputs_passthrough!$M:$M,raw_inputs_passthrough!$A:$A,AK$96)","v":0},{"$f":"SUMIFS(raw_resource_build!$O:$O,raw_resource_build!$E:$E,$C124,raw_resource_build!$A:$A,AL$96,raw_resource_build!$C:$C,mainzone)*SUMIFS(raw_inputs_passthrough!$M:$M,raw_inputs_passthrough!$A:$A,AL$96)","v":0},{"$f":"SUMIFS(raw_resource_build!$O:$O,raw_resource_build!$E:$E,$C124,raw_resource_build!$A:$A,AM$96,raw_resource_build!$C:$C,mainzone)*SUMIFS(raw_inputs_passthrough!$M:$M,raw_inputs_passthrough!$A:$A,AM$96)","v":0},{"$f":"SUMIFS(raw_resource_build!$O:$O,raw_resource_build!$E:$E,$C124,raw_resource_build!$A:$A,AN$96,raw_resource_build!$C:$C,mainzone)*SUMIFS(raw_inputs_passthrough!$M:$M,raw_inputs_passthrough!$A:$A,AN$96)","v":0}]
[null,null,"Flexible_Load","MW",{"$f":"SUMIFS(raw_resource_build!$N:$N,raw_resource_build!$E:$E,$C125,raw_resource_build!$A:$A,E$96,raw_resource_build!$C:$C,mainzone)*SUMIFS(raw_inputs_passthrough!$M:$M,raw_inputs_passthrough!$A:$A,E$96)","v":0},{"$f":"SUMIFS(raw_resource_build!$N:$N,raw_resource_build!$E:$E,$C125,raw_resource_build!$A:$A,F$96,raw_resource_build!$C:$C,mainzone)*SUMIFS(raw_inputs_passthrough!$M:$M,raw_inputs_passthrough!$A:$A,F$96)","v":0},{"$f":"SUMIFS(raw_resource_build!$N:$N,raw_resource_build!$E:$E,$C125,raw_resource_build!$A:$A,G$96,raw_resource_build!$C:$C,mainzone)*SUMIFS(raw_inputs_passthrough!$M:$M,raw_inputs_passthrough!$A:$A,G$96)","v":0},{"$f":"SUMIFS(raw_resource_build!$N:$N,raw_resource_build!$E:$E,$C125,raw_resource_build!$A:$A,H$96,raw_resource_build!$C:$C,mainzone)*SUMIFS(raw_inputs_passthrough!$M:$M,raw_inputs_passthrough!$A:$A,H$96)","v":0},{"$f":"SUMIFS(raw_resource_build!$N:$N,raw_resource_build!$E:$E,$C125,raw_resource_build!$A:$A,I$96,raw_resource_build!$C:$C,mainzone)*SUMIFS(raw_inputs_passthrough!$M:$M,raw_inputs_passthrough!$A:$A,I$96)","v":0},{"$f":"SUMIFS(raw_resource_build!$N:$N,raw_resource_build!$E:$E,$C125,raw_resource_build!$A:$A,J$96,raw_resource_build!$C:$C,mainzone)*SUMIFS(raw_inputs_passthrough!$M:$M,raw_inputs_passthrough!$A:$A,J$96)","v":0},{"$f":"SUMIFS(raw_resource_build!$N:$N,raw_resource_build!$E:$E,$C125,raw_resource_build!$A:$A,K$96,raw_resource_build!$C:$C,mainzone)*SUMIFS(raw_inputs_passthrough!$M:$M,raw_inputs_passthrough!$A:$A,K$96)","v":0},{"$f":"SUMIFS(raw_resource_build!$N:$N,raw_resource_build!$E:$E,$C125,raw_resource_build!$A:$A,L$96,raw_resource_build!$C:$C,mainzone)*SUMIFS(raw_inputs_passthrough!$M:$M,raw_inputs_passthrough!$A:$A,L$96)","v":0},{"$f":"SUMIFS(raw_resource_build!$N:$N,raw_resource_build!$E:$E,$C125,raw_resource_build!$A:$A,M$96,raw_resource_build!$C:$C,mainzone)*SUMIFS(raw_inputs_passthrough!$M:$M,raw_inputs_passthrough!$A:$A,M$96)","v":0},{"$f":"SUMIFS(raw_resource_build!$N:$N,raw_resource_build!$E:$E,$C125,raw_resource_build!$A:$A,N$96,raw_resource_build!$C:$C,mainzone)*SUMIFS(raw_inputs_passthrough!$M:$M,raw_inputs_passthrough!$A:$A,N$96)","v":0},{"$f":"SUMIFS(raw_resource_build!$N:$N,raw_resource_build!$E:$E,$C125,raw_resource_build!$A:$A,O$96,raw_resource_build!$C:$C,mainzone)*SUMIFS(raw_inputs_passthrough!$M:$M,raw_inputs_passthrough!$A:$A,O$96)","v":0},{"$f":"SUMIFS(raw_resource_build!$N:$N,raw_resource_build!$E:$E,$C125,raw_resource_build!$A:$A,P$96,raw_resource_build!$C:$C,mainzone)*SUMIFS(raw_inputs_passthrough!$M:$M,raw_inputs_passthrough!$A:$A,P$96)","v":0},{"$f":"SUMIFS(raw_resource_build!$N:$N,raw_resource_build!$E:$E,$C125,raw_resource_build!$A:$A,Q$96,raw_resource_build!$C:$C,mainzone)*SUMIFS(raw_inputs_passthrough!$M:$M,raw_inputs_passthrough!$A:$A,Q$96)","v":0},{"$f":"SUMIFS(raw_resource_build!$N:$N,raw_resource_build!$E:$E,$C125,raw_resource_build!$A:$A,R$96,raw_resource_build!$C:$C,mainzone)*SUMIFS(raw_inputs_passthrough!$M:$M,raw_inputs_passthrough!$A:$A,R$96)","v":0},{"$f":"SUMIFS(raw_resource_build!$N:$N,raw_resource_build!$E:$E,$C125,raw_resource_build!$A:$A,S$96,raw_resource_build!$C:$C,mainzone)*SUMIFS(raw_inputs_passthrough!$M:$M,raw_inputs_passthrough!$A:$A,S$96)","v":0},{"$f":"SUMIFS(raw_resource_build!$N:$N,raw_resource_build!$E:$E,$C125,raw_resource_build!$A:$A,T$96,raw_resource_build!$C:$C,mainzone)*SUMIFS(raw_inputs_passthrough!$M:$M,raw_inputs_passthrough!$A:$A,T$96)","v":0},{"$f":"SUMIFS(raw_resource_build!$N:$N,raw_resource_build!$E:$E,$C125,raw_resource_build!$A:$A,U$96,raw_resource_build!$C:$C,mainzone)*SUMIFS(raw_inputs_passthrough!$M:$M,raw_inputs_passthrough!$A:$A,U$96)","v":0},{"$f":"SUMIFS(raw_resource_build!$N:$N,raw_resource_build!$E:$E,$C125,raw_resource_build!$A:$A,V$96,raw_resource_build!$C:$C,mainzone)*SUMIFS(raw_inputs_passthrough!$M:$M,raw_inputs_passthrough!$A:$A,V$96)","v":0},{"$f":"SUMIFS(raw_resource_build!$N:$N,raw_resource_build!$E:$E,$C125,raw_resource_build!$A:$A,W$96,raw_resource_build!$C:$C,mainzone)*SUMIFS(raw_inputs_passthrough!$M:$M,raw_inputs_passthrough!$A:$A,W$96)","v":0},{"$f":"SUMIFS(raw_resource_build!$N:$N,raw_resource_build!$E:$E,$C125,raw_resource_build!$A:$A,X$96,raw_resource_build!$C:$C,mainzone)*SUMIFS(raw_inputs_passthrough!$M:$M,raw_inputs_passthrough!$A:$A,X$96)","v":0},{"$f":"SUMIFS(raw_resource_build!$N:$N,raw_resource_build!$E:$E,$C125,raw_resource_build!$A:$A,Y$96,raw_resource_build!$C:$C,mainzone)*SUMIFS(raw_inputs_passthrough!$M:$M,raw_inputs_passthrough!$A:$A,Y$96)","v":0},{"$f":"SUMIFS(raw_resource_build!$N:$N,raw_resource_build!$E:$E,$C125,raw_resource_build!$A:$A,Z$96,raw_resource_build!$C:$C,mainzone)*SUMIFS(raw_inputs_passthrough!$M:$M,raw_inputs_passthrough!$A:$A,Z$96)","v":0},{"$f":"SUMIFS(raw_resource_build!$N:$N,raw_resource_build!$E:$E,$C125,raw_resource_build!$A:$A,AA$96,raw_resource_build!$C:$C,mainzone)*SUMIFS(raw_inputs_passthrough!$M:$M,raw_inputs_passthrough!$A:$A,AA$96)","v":0},{"$f":"SUMIFS(raw_resource_build!$N:$N,raw_resource_build!$E:$E,$C125,raw_resource_build!$A:$A,AB$96,raw_resource_build!$C:$C,mainzone)*SUMIFS(raw_inputs_passthrough!$M:$M,raw_inputs_passthrough!$A:$A,AB$96)","v":0},{"$f":"SUMIFS(raw_resource_build!$N:$N,raw_resource_build!$E:$E,$C125,raw_resource_build!$A:$A,AC$96,raw_resource_build!$C:$C,mainzone)*SUMIFS(raw_inputs_passthrough!$M:$M,raw_inputs_passthrough!$A:$A,AC$96)","v":0},{"$f":"SUMIFS(raw_resource_build!$N:$N,raw_resource_build!$E:$E,$C125,raw_resource_build!$A:$A,AD$96,raw_resource_build!$C:$C,mainzone)*SUMIFS(raw_inputs_passthrough!$M:$M,raw_inputs_passthrough!$A:$A,AD$96)","v":0},{"$f":"SUMIFS(raw_resource_build!$N:$N,raw_resource_build!$E:$E,$C125,raw_resource_build!$A:$A,AE$96,raw_resource_build!$C:$C,mainzone)*SUMIFS(raw_inputs_passthrough!$M:$M,raw_inputs_passthrough!$A:$A,AE$96)","v":0},{"$f":"SUMIFS(raw_resource_build!$N:$N,raw_resource_build!$E:$E,$C125,raw_resource_build!$A:$A,AF$96,raw_resource_build!$C:$C,mainzone)*SUMIFS(raw_inputs_passthrough!$M:$M,raw_inputs_passthrough!$A:$A,AF$96)","v":0},{"$f":"SUMIFS(raw_resource_build!$N:$N,raw_resource_build!$E:$E,$C125,raw_resource_build!$A:$A,AG$96,raw_resource_build!$C:$C,mainzone)*SUMIFS(raw_inputs_passthrough!$M:$M,raw_inputs_passthrough!$A:$A,AG$96)","v":0},{"$f":"SUMIFS(raw_resource_build!$N:$N,raw_resource_build!$E:$E,$C125,raw_resource_build!$A:$A,AH$96,raw_resource_build!$C:$C,mainzone)*SUMIFS(raw_inputs_passthrough!$M:$M,raw_inputs_passthrough!$A:$A,AH$96)","v":0},{"$f":"SUMIFS(raw_resource_build!$N:$N,raw_resource_build!$E:$E,$C125,raw_resource_build!$A:$A,AI$96,raw_resource_build!$C:$C,mainzone)*SUMIFS(raw_inputs_passthrough!$M:$M,raw_inputs_passthrough!$A:$A,AI$96)","v":0},{"$f":"SUMIFS(raw_resource_build!$N:$N,raw_resource_build!$E:$E,$C125,raw_resource_build!$A:$A,AJ$96,raw_resource_build!$C:$C,mainzone)*SUMIFS(raw_inputs_passthrough!$M:$M,raw_inputs_passthrough!$A:$A,AJ$96)","v":0},{"$f":"SUMIFS(raw_resource_build!$N:$N,raw_resource_build!$E:$E,$C125,raw_resource_build!$A:$A,AK$96,raw_resource_build!$C:$C,mainzone)*SUMIFS(raw_inputs_passthrough!$M:$M,raw_inputs_passthrough!$A:$A,AK$96)","v":0},{"$f":"SUMIFS(raw_resource_build!$N:$N,raw_resource_build!$E:$E,$C125,raw_resource_build!$A:$A,AL$96,raw_resource_build!$C:$C,mainzone)*SUMIFS(raw_inputs_passthrough!$M:$M,raw_inputs_passthrough!$A:$A,AL$96)","v":0},{"$f":"SUMIFS(raw_resource_build!$N:$N,raw_resource_build!$E:$E,$C125,raw_resource_build!$A:$A,AM$96,raw_resource_build!$C:$C,mainzone)*SUMIFS(raw_inputs_passthrough!$M:$M,raw_inputs_passthrough!$A:$A,AM$96)","v":0},{"$f":"SUMIFS(raw_resource_build!$N:$N,raw_resource_build!$E:$E,$C125,raw_resource_build!$A:$A,AN$96,raw_resource_build!$C:$C,mainzone)*SUMIFS(raw_inputs_passthrough!$M:$M,raw_inputs_passthrough!$A:$A,AN$96)","v":0}]
[]
[]
[null,"Baseline Resources by Technology"]
[]
[null,null,"Technology","Unit",2015,{"$f":"E130+1","v":2016},2017,2018,2019,2020,2021,2022,2023,2024,2025,2026,2027,2028,2029,2030,{"$f":"T130+1","v":2031},2032,2033,2034,2035,2036,2037,2038,2039,2040,2041,2042,2043,2044,2045,2046,2047,2048,2049,2050]
[null,null,{"$f":"C65","v":"CAISO_ST"},"MW",{"$f":"E65-E98","v":0},0,0,0,0,3733,0,0,0,0,0,0,0,0,0,0,0,0,0,0,0,0,0,0,0,0,0,0,0,0,0,0,0,0,0,0]
[null,null,"CAISO_CCGT1","MW",{"$f":"E66-E99","v":0},0,0,0,0,12049.47,13333.47,13333.47,13333.47,13333.47,0,13333.47,0,0,0,13333.47,0,0,0,0,0,0,0,0,0,0,0,0,0,0,13333.47,0,0,0,0,0]
[null,null,"CAISO_CCGT2","MW",{"$f":"E67-E100","v":0},0,0,{"$f":"H67-H100","v":0},0,2927.93,2927.93,2927.93,2927.93,2927.93,0,2927.93,0,0,0,{"$f":"T67-T100","v":2927.93},0,0,0,0,0,0,0,0,0,0,0,0,0,0,2927.93,0,0,0,0,0]
[null,null,"CAISO_Peaker1","MW",{"$f":"E68-E101","v":0},0,0,0,0,4913.93,4913.93,4913.93,4913.93,4913.93,0,4913.93,0,0,0,4913.93,0,0,0,0,0,0,0,0,0,0,0,0,0,0,3163,0,0,0,0,0]
[null,null,"CAISO_Peaker2","MW",{"$f":"E69-E102","v":0},0,0,0,0,3682.71,3682.71,3682.71,3682.71,3682.71,0,3682.71,0,0,0,3682.71,0,0,0,0,0,0,0,0,0,0,0,0,0,0,1663.88,0,0,0,0,0]
[null,null,"CAISO_Advanced_CCGT","MW",{"$f":"E70-E103","v":0},{"$f":"F70-F103","v":0},0,0,0,0,0,0,0,0,0,0,0,0,0,0,0,0,0,0,0,0,0,0,0,0,0,0,0,0,0,0,0,0,0,0]
[null,null,"CAISO_Aero_CT","MW",{"$f":"E71-E104","v":0},0,0,0,0,0,0,0,0,0,0,0,0,0,0,0,0,0,0,0,0,0,0,0,0,0,0,0,0,0,0,0,0,0,0,0]
[null,null,"CAISO_Reciprocating_Engine","MW",{"$f":"E72-E105","v":0},0,0,0,0,255.3,255.3,255.3,255.3,255.3,0,255.3,0,0,0,255.3,0,0,0,0,0,0,0,0,0,0,0,0,0,0,255.3,0,0,0,0,0]
[null,null,"CAISO_CHP","MW",{"$f":"E73-E106","v":0},0,0,0,0,2296.02,2296.02,2296.02,2296.02,2296.02,0,2296.02,0,0,0,2296.02,0,0,0,0,0,0,0,0,0,0,0,0,0,0,0,0,0,0,0,0]
[null,null,"CAISO_Coal","MW",{"$f":"E74-E107","v":0},0,0,0,0,480,480,480,480,480,0,0,0,0,0,0,0,0,0,0,0,0,0,0,0,0,0,0,0,0,0,0,0,0,0,0]
[null,null,"CAISO_Nuclear","MW",{"$f":"E75-E108","v":0},0,0,0,0,2935,2935,2935,2935,1785,0,635,0,0,0,635,0,0,0,0,0,0,0,0,0,0,0,0,0,0,635,0,0,0,0,0]
[null,null,"Hydro","MW",{"$f":"E76-E109","v":0},0,0,0,0,7070.1,7070.1,7070.1,7070.1,7070.1,0,7070.1,0,0,0,7069.51,0,0,0,0,0,0,0,0,0,0,0,0,0,0,7069.51,0,0,0,0,0]
[null,null,"Hydro_NW_CAISO","MW",{"$f":"E77-E110","v":0},0,0,0,0,2851.77,2851.77,2851.77,2851.77,2851.77,0,2851.77,0,0,0,2851.77,0,0,0,0,0,0,0,0,0,0,0,0,0,0,2851.77,0,0,0,0,0]
[null,null,"CAISO_Conventional_DR","MW",{"$f":"E78-E111","v":0},0,0,0,0,0,0,0,0,0,0,0,0,0,0,0,0,0,0,0,0,0,0,0,0,0,0,0,0,0,0,0,0,0,0,0]
[null,null,"Customer_PV","MW",{"$f":"E79-E112","v":0},0,0,0,0,7269.29,7269.29,7269.29,7269.29,7269.29,0,7269.29,0,0,0,7269.29,0,0,0,0,0,0,0,0,0,0,0,0,0,0,7269.29,0,0,0,0,0]
[null,null,"Solar","MW",{"$f":"E80-E113","v":0},0,0,0,0,14310.33,14765.849999999999,14887.45,14887.45,14887.449999999997,0,14887.449999999999,0,0,0,14887.450000000008,0,0,0,0,0,0,0,0,0,0,0,0,0,0,14887.450000000012,0,0,0,0,0]
[null,null,"Geothermal","MW",{"$f":"E81-E114","v":0},0,0,0,0,1851.3100000000002,1851.3100000000002,1851.3100000000002,1851.3100000000002,1851.3100000000002,0,1851.3100000000002,0,0,0,1851.3100000000002,0,0,0,0,0,0,0,0,0,0,0,0,0,0,1851.31,0,0,0,0,0]
[null,null,"Biomass","MW",{"$f":"E82-E115","v":0},0,0,{"$f":"H82-H115","v":0},0,902.65000000000009,902.65000000000009,902.65000000000009,902.65000000000009,902.65000000000009,0,902.65000000000009,0,0,0,{"$f":"T82-T115","v":900.75},0,0,0,0,0,0,0,0,0,0,0,0,0,0,900.75,0,0,0,0,0]
[null,null,"Small_Hydro","MW",{"$f":"E83-E116","v":0},0,0,0,0,974.03,974.03,974.03,974.03,974.03,0,974.03,0,0,0,974.03,0,0,0,0,0,0,0,0,0,0,0,0,0,0,974.03,0,0,0,0,0]
[null,null,"Wind","MW",{"$f":"E84-E117","v":0},0,0,0,0,7356.5599999999995,7456.3099999999995,7456.3099999999995,7456.3099999999995,7456.3099999999995,0,7456.3099999999995,0,0,0,7456.3100000000013,0,0,0,0,0,0,0,0,0,0,0,0,0,0,7456.3099999999995,0,0,0,0,0]
[null,null,"Wind OOS New Tx","MW",0,0,0,0,0,0,0,0,0,0,0,0,0,0,0,0,0,0,0,0,0,0,0,0,0,0,0,0,0,0,0,0,0,0,0,0]
[null,null,{"$f":"C86","v":"Offshore_Wind"},"MW",{"$f":"E86-E119","v":0},0,0,0,0,0,0,0,0,0,0,0,0,0,0,0,0,0,0,0,0,0,0,0,0,0,0,0,0,0,0,0,0,0,0,0]
[null,null,"Pumped_Hydro","MW",{"$f":"E87-E120","v":0},0,0,0,0,1599.2,1599.2,1599.2,1599.2,1599.2,0,1599.2,0,0,0,1599.2,0,0,0,0,0,0,0,0,0,0,0,0,0,0,1599.2,0,0,0,0,0]
[null,null,"Li_Battery","MW",{"$f":"E88-E121","v":0},0,0,0,0,971.34999999999991,1321.8499999999995,1321.8499999999995,1543.5200000000004,1617.4499999999998,0,1617.4500000000007,0,0,0,1617.4500000000007]
[null,null,"BTM_Li_Battery","MW",{"$f":"E89-E122","v":0},0,0,0,0,92.14,92.14,92.14,92.14,92.14,0,92.14,0,0,0,92.14,0,0,0,0,0,0,0,0,0,0,0,0,0,0,92.14,0,0,0,0,0]
[null,null,"Flow_Battery","MW",null,null,null,null,null,{"$f":"J90-J123","v":0},0,0,0,0,0,0,0,0,0,0,0,0,0,0,0,0,0,0,0,0,0,0,0,0,0,0,0,0,0,0]
[null,null,"Hydrogen_Electrolysis","MW",{"$f":"E91-E124","v":0},0,0,0,0,{"$f":"J91-J124","v":0},0,0,0,0,0,0,0,0,0,0,0,0,0,0,0,0,0,0,0,0,0,0,0,0,450.41,0,0,0,0,0]
[null,null,"Flexible_Load","MW",0,0,0,0,0,{"$f":"J92-J125","v":0},0,0,0,0,0,0,0,0,0,0,0,0,0,0,0,0,0,0,0,0,0,0,0,0,0,0,0,0,0,0]
[]
[]
[null,"CAISO Energy Balance"]
[]
[null,null,"Note: this rolls up all resources balanced in the CAISO zone, including resources that are contracted to other zones, e.g. BANC. "]
[null,null,"It does not include resources that are contracted to CAISO but balanced in another zone, except Hydro NW CAISO"]
[]
[null,null,"Technology","Unit",2015,{"$f":"E166+1","v":2016},2017,2018,2019,2020,2021,2022,2023,2024,2025,2026,2027,2028,2029,2030,2031,2032,2033,2034,2035,2036,2037,2038,2039,2040,2041,2042,2043,2044,2045,2046,2047,2048,2049,2050]
[null,null,{"$f":"Lists!$B5","v":"CAISO_ST"},"GWh",{"$f":"E229+E242","v":0},0,0,0,0,0,0,0,0,0,0,0,0,0,0,0,0,0,0,0,0,0,0,0,0,0,0,0,0,0,0,0,0,0,0,0]
[null,null,{"$f":"Lists!$B6","v":"CAISO_CCGT1"},"GWh",{"$f":"E222+E235","v":0},0,0,0,0,57175.835108088526,58337.652787977808,53809.415229252903,52034.779891609011,54446.314697830174,0,62789.481056935598,0,0,0,48738.863960898714,0,0,0,0,0,0,0,0,0,0,0,0,0,0,29345.078962425912,0,0,0,0,0]
[null,null,{"$f":"Lists!$B7","v":"CAISO_CCGT2"},"GWh",{"$f":"E223+E236","v":0},0,0,0,0,88.524223837859651,0,0,0,0,0,0,0,0,0,0,0,0,0,0,0,0,0,0,0,0,0,0,0,0,536.24287555278204,0,0,0,0,0]
[null,null,{"$f":"Lists!$B8","v":"CAISO_Peaker1"},"GWh",{"$f":"E224+E237","v":0},0,0,0,0,899.9483612748578,457.7838816676699,523.47694191365042,627.97606296148899,512.00448960426729,0,76.120787795534795,0,0,0,65.79566520575159,0,0,0,0,0,0,0,0,0,0,0,0,0,0,0,0,0,0,0,0]
[null,null,{"$f":"Lists!$B9","v":"CAISO_Peaker2"},"GWh",{"$f":"E225+E238","v":0},0,0,0,0,0,0,0,0,0,0,0,0,0,0,0,0,0,0,0,0,0,0,0,0,0,0,0,0,0,0,0,0,0,0,0]
[null,null,{"$f":"Lists!$B10","v":"CAISO_Advanced_CCGT"},"GWh",{"$f":"E226+E239","v":0},0,0,0,0,0,0,0,0,0,0,0,0,0,0,0,0,0,0,0,0,0,0,0,0,0,0,0,0,0,0,0,0,0,0,0]
[null,null,{"$f":"Lists!$B11","v":"CAISO_Aero_CT"},"GWh",{"$f":"E227+E240","v":0},0,0,0,0,0,0,0,0,0,0,0,0,0,0,0,0,0,0,0,0,0,0,0,0,0,0,0,0,0,0,0,0,0,0,0]
[null,null,{"$f":"Lists!$B12","v":"CAISO_Reciprocating_Engine"},"GWh",{"$f":"E228+E241","v":0},0,0,0,0,61.822180841158698,42.1611419659218,39.437608015784797,40.898838995329996,35.999234476280797,0,11.036938072567379,0,0,0,21.409453505791568,0,0,0,0,0,0,0,0,0,0,0,0,0,0,49.041893097822715,0,0,0,0,0]
[null,null,{"$f":"Lists!$B13","v":"CAISO_CHP"},"GWh",{"$f":"SUMIFS(raw_annual_energy!$E:$E,Lists!$S:$S,'Portfolio Analytics'!$C175,raw_annual_energy!$D:$D,E$166,raw_annual_energy!$A:$A,mainzone)/1000+SUMIFS(raw_annual_energy!$E:$E,Lists!$S:$S,'Portfolio Analytics'!$C175,raw_annual_energy!$D:$D,E$166,raw_annual_energy!$A:$A,\"CAISO_NW_Hydro\")/1000","v":0},{"$f":"SUMIFS(raw_annual_energy!$E:$E,Lists!$S:$S,'Portfolio Analytics'!$C175,raw_annual_energy!$D:$D,F$166,raw_annual_energy!$A:$A,mainzone)/1000+SUMIFS(raw_annual_energy!$E:$E,Lists!$S:$S,'Portfolio Analytics'!$C175,raw_annual_energy!$D:$D,F$166,raw_annual_energy!$A:$A,\"CAISO_NW_Hydro\")/1000","v":0},{"$f":"SUMIFS(raw_annual_energy!$E:$E,Lists!$S:$S,'Portfolio Analytics'!$C175,raw_annual_energy!$D:$D,G$166,raw_annual_energy!$A:$A,mainzone)/1000+SUMIFS(raw_annual_energy!$E:$E,Lists!$S:$S,'Portfolio Analytics'!$C175,raw_annual_energy!$D:$D,G$166,raw_annual_energy!$A:$A,\"CAISO_NW_Hydro\")/1000","v":0},{"$f":"SUMIFS(raw_annual_energy!$E:$E,Lists!$S:$S,'Portfolio Analytics'!$C175,raw_annual_energy!$D:$D,H$166,raw_annual_energy!$A:$A,mainzone)/1000+SUMIFS(raw_annual_energy!$E:$E,Lists!$S:$S,'Portfolio Analytics'!$C175,raw_annual_energy!$D:$D,H$166,raw_annual_energy!$A:$A,\"CAISO_NW_Hydro\")/1000","v":0},{"$f":"SUMIFS(raw_annual_energy!$E:$E,Lists!$S:$S,'Portfolio Analytics'!$C175,raw_annual_energy!$D:$D,I$166,raw_annual_energy!$A:$A,mainzone)/1000+SUMIFS(raw_annual_energy!$E:$E,Lists!$S:$S,'Portfolio Analytics'!$C175,raw_annual_energy!$D:$D,I$166,raw_annual_energy!$A:$A,\"CAISO_NW_Hydro\")/1000","v":0},{"$f":"SUMIFS(raw_annual_energy!$E:$E,Lists!$S:$S,'Portfolio Analytics'!$C175,raw_annual_energy!$D:$D,J$166,raw_annual_energy!$A:$A,mainzone)/1000+SUMIFS(raw_annual_energy!$E:$E,Lists!$S:$S,'Portfolio Analytics'!$C175,raw_annual_energy!$D:$D,J$166,raw_annual_energy!$A:$A,\"CAISO_NW_Hydro\")/1000","v":10881.055305580099},{"$f":"SUMIFS(raw_annual_energy!$E:$E,Lists!$S:$S,'Portfolio Analytics'!$C175,raw_annual_energy!$D:$D,K$166,raw_annual_energy!$A:$A,mainzone)/1000+SUMIFS(raw_annual_energy!$E:$E,Lists!$S:$S,'Portfolio Analytics'!$C175,raw_annual_energy!$D:$D,K$166,raw_annual_energy!$A:$A,\"CAISO_NW_Hydro\")/1000","v":10881.055305580099},{"$f":"SUMIFS(raw_annual_energy!$E:$E,Lists!$S:$S,'Portfolio Analytics'!$C175,raw_annual_energy!$D:$D,L$166,raw_annual_energy!$A:$A,mainzone)/1000+SUMIFS(raw_annual_energy!$E:$E,Lists!$S:$S,'Portfolio Analytics'!$C175,raw_annual_energy!$D:$D,L$166,raw_annual_energy!$A:$A,\"CAISO_NW_Hydro\")/1000","v":10881.055305580099},{"$f":"SUMIFS(raw_annual_energy!$E:$E,Lists!$S:$S,'Portfolio Analytics'!$C175,raw_annual_energy!$D:$D,M$166,raw_annual_energy!$A:$A,mainzone)/1000+SUMIFS(raw_annual_energy!$E:$E,Lists!$S:$S,'Portfolio Analytics'!$C175,raw_annual_energy!$D:$D,M$166,raw_annual_energy!$A:$A,\"CAISO_NW_Hydro\")/1000","v":10881.055305580099},{"$f":"SUMIFS(raw_annual_energy!$E:$E,Lists!$S:$S,'Portfolio Analytics'!$C175,raw_annual_energy!$D:$D,N$166,raw_annual_energy!$A:$A,mainzone)/1000+SUMIFS(raw_annual_energy!$E:$E,Lists!$S:$S,'Portfolio Analytics'!$C175,raw_annual_energy!$D:$D,N$166,raw_annual_energy!$A:$A,\"CAISO_NW_Hydro\")/1000","v":10881.055305580099},{"$f":"SUMIFS(raw_annual_energy!$E:$E,Lists!$S:$S,'Portfolio Analytics'!$C175,raw_annual_energy!$D:$D,O$166,raw_annual_energy!$A:$A,mainzone)/1000+SUMIFS(raw_annual_energy!$E:$E,Lists!$S:$S,'Portfolio Analytics'!$C175,raw_annual_energy!$D:$D,O$166,raw_annual_energy!$A:$A,\"CAISO_NW_Hydro\")/1000","v":0},{"$f":"SUMIFS(raw_annual_energy!$E:$E,Lists!$S:$S,'Portfolio Analytics'!$C175,raw_annual_energy!$D:$D,P$166,raw_annual_energy!$A:$A,mainzone)/1000+SUMIFS(raw_annual_energy!$E:$E,Lists!$S:$S,'Portfolio Analytics'!$C175,raw_annual_energy!$D:$D,P$166,raw_annual_energy!$A:$A,\"CAISO_NW_Hydro\")/1000","v":10881.055305580099},{"$f":"SUMIFS(raw_annual_energy!$E:$E,Lists!$S:$S,'Portfolio Analytics'!$C175,raw_annual_energy!$D:$D,Q$166,raw_annual_energy!$A:$A,mainzone)/1000+SUMIFS(raw_annual_energy!$E:$E,Lists!$S:$S,'Portfolio Analytics'!$C175,raw_annual_energy!$D:$D,Q$166,raw_annual_energy!$A:$A,\"CAISO_NW_Hydro\")/1000","v":0},{"$f":"SUMIFS(raw_annual_energy!$E:$E,Lists!$S:$S,'Portfolio Analytics'!$C175,raw_annual_energy!$D:$D,R$166,raw_annual_energy!$A:$A,mainzone)/1000+SUMIFS(raw_annual_energy!$E:$E,Lists!$S:$S,'Portfolio Analytics'!$C175,raw_annual_energy!$D:$D,R$166,raw_annual_energy!$A:$A,\"CAISO_NW_Hydro\")/1000","v":0},{"$f":"SUMIFS(raw_annual_energy!$E:$E,Lists!$S:$S,'Portfolio Analytics'!$C175,raw_annual_energy!$D:$D,S$166,raw_annual_energy!$A:$A,mainzone)/1000+SUMIFS(raw_annual_energy!$E:$E,Lists!$S:$S,'Portfolio Analytics'!$C175,raw_annual_energy!$D:$D,S$166,raw_annual_energy!$A:$A,\"CAISO_NW_Hydro\")/1000","v":0},{"$f":"SUMIFS(raw_annual_energy!$E:$E,Lists!$S:$S,'Portfolio Analytics'!$C175,raw_annual_energy!$D:$D,T$166,raw_annual_energy!$A:$A,mainzone)/1000+SUMIFS(raw_annual_energy!$E:$E,Lists!$S:$S,'Portfolio Analytics'!$C175,raw_annual_energy!$D:$D,T$166,raw_annual_energy!$A:$A,\"CAISO_NW_Hydro\")/1000","v":10881.055305580099},{"$f":"SUMIFS(raw_annual_energy!$E:$E,Lists!$S:$S,'Portfolio Analytics'!$C175,raw_annual_energy!$D:$D,U$166,raw_annual_energy!$A:$A,mainzone)/1000+SUMIFS(raw_annual_energy!$E:$E,Lists!$S:$S,'Portfolio Analytics'!$C175,raw_annual_energy!$D:$D,U$166,raw_annual_energy!$A:$A,\"CAISO_NW_Hydro\")/1000","v":0},{"$f":"SUMIFS(raw_annual_energy!$E:$E,Lists!$S:$S,'Portfolio Analytics'!$C175,raw_annual_energy!$D:$D,V$166,raw_annual_energy!$A:$A,mainzone)/1000+SUMIFS(raw_annual_energy!$E:$E,Lists!$S:$S,'Portfolio Analytics'!$C175,raw_annual_energy!$D:$D,V$166,raw_annual_energy!$A:$A,\"CAISO_NW_Hydro\")/1000","v":0},{"$f":"SUMIFS(raw_annual_energy!$E:$E,Lists!$S:$S,'Portfolio Analytics'!$C175,raw_annual_energy!$D:$D,W$166,raw_annual_energy!$A:$A,mainzone)/1000+SUMIFS(raw_annual_energy!$E:$E,Lists!$S:$S,'Portfolio Analytics'!$C175,raw_annual_energy!$D:$D,W$166,raw_annual_energy!$A:$A,\"CAISO_NW_Hydro\")/1000","v":0},{"$f":"SUMIFS(raw_annual_energy!$E:$E,Lists!$S:$S,'Portfolio Analytics'!$C175,raw_annual_energy!$D:$D,X$166,raw_annual_energy!$A:$A,mainzone)/1000+SUMIFS(raw_annual_energy!$E:$E,Lists!$S:$S,'Portfolio Analytics'!$C175,raw_annual_energy!$D:$D,X$166,raw_annual_energy!$A:$A,\"CAISO_NW_Hydro\")/1000","v":0},{"$f":"SUMIFS(raw_annual_energy!$E:$E,Lists!$S:$S,'Portfolio Analytics'!$C175,raw_annual_energy!$D:$D,Y$166,raw_annual_energy!$A:$A,mainzone)/1000+SUMIFS(raw_annual_energy!$E:$E,Lists!$S:$S,'Portfolio Analytics'!$C175,raw_annual_energy!$D:$D,Y$166,raw_annual_energy!$A:$A,\"CAISO_NW_Hydro\")/1000","v":0},{"$f":"SUMIFS(raw_annual_energy!$E:$E,Lists!$S:$S,'Portfolio Analytics'!$C175,raw_annual_energy!$D:$D,Z$166,raw_annual_energy!$A:$A,mainzone)/1000+SUMIFS(raw_annual_energy!$E:$E,Lists!$S:$S,'Portfolio Analytics'!$C175,raw_annual_energy!$D:$D,Z$166,raw_annual_energy!$A:$A,\"CAISO_NW_Hydro\")/1000","v":0},{"$f":"SUMIFS(raw_annual_energy!$E:$E,Lists!$S:$S,'Portfolio Analytics'!$C175,raw_annual_energy!$D:$D,AA$166,raw_annual_energy!$A:$A,mainzone)/1000+SUMIFS(raw_annual_energy!$E:$E,Lists!$S:$S,'Portfolio Analytics'!$C175,raw_annual_energy!$D:$D,AA$166,raw_annual_energy!$A:$A,\"CAISO_NW_Hydro\")/1000","v":0},{"$f":"SUMIFS(raw_annual_energy!$E:$E,Lists!$S:$S,'Portfolio Analytics'!$C175,raw_annual_energy!$D:$D,AB$166,raw_annual_energy!$A:$A,mainzone)/1000+SUMIFS(raw_annual_energy!$E:$E,Lists!$S:$S,'Portfolio Analytics'!$C175,raw_annual_energy!$D:$D,AB$166,raw_annual_energy!$A:$A,\"CAISO_NW_Hydro\")/1000","v":0},{"$f":"SUMIFS(raw_annual_energy!$E:$E,Lists!$S:$S,'Portfolio Analytics'!$C175,raw_annual_energy!$D:$D,AC$166,raw_annual_energy!$A:$A,mainzone)/1000+SUMIFS(raw_annual_energy!$E:$E,Lists!$S:$S,'Portfolio Analytics'!$C175,raw_annual_energy!$D:$D,AC$166,raw_annual_energy!$A:$A,\"CAISO_NW_Hydro\")/1000","v":0},{"$f":"SUMIFS(raw_annual_energy!$E:$E,Lists!$S:$S,'Portfolio Analytics'!$C175,raw_annual_energy!$D:$D,AD$166,raw_annual_energy!$A:$A,mainzone)/1000+SUMIFS(raw_annual_energy!$E:$E,Lists!$S:$S,'Portfolio Analytics'!$C175,raw_annual_energy!$D:$D,AD$166,raw_annual_energy!$A:$A,\"CAISO_NW_Hydro\")/1000","v":0},{"$f":"SUMIFS(raw_annual_energy!$E:$E,Lists!$S:$S,'Portfolio Analytics'!$C175,raw_annual_energy!$D:$D,AE$166,raw_annual_energy!$A:$A,mainzone)/1000+SUMIFS(raw_annual_energy!$E:$E,Lists!$S:$S,'Portfolio Analytics'!$C175,raw_annual_energy!$D:$D,AE$166,raw_annual_energy!$A:$A,\"CAISO_NW_Hydro\")/1000","v":0},{"$f":"SUMIFS(raw_annual_energy!$E:$E,Lists!$S:$S,'Portfolio Analytics'!$C175,raw_annual_energy!$D:$D,AF$166,raw_annual_energy!$A:$A,mainzone)/1000+SUMIFS(raw_annual_energy!$E:$E,Lists!$S:$S,'Portfolio Analytics'!$C175,raw_annual_energy!$D:$D,AF$166,raw_annual_energy!$A:$A,\"CAISO_NW_Hydro\")/1000","v":0},{"$f":"SUMIFS(raw_annual_energy!$E:$E,Lists!$S:$S,'Portfolio Analytics'!$C175,raw_annual_energy!$D:$D,AG$166,raw_annual_energy!$A:$A,mainzone)/1000+SUMIFS(raw_annual_energy!$E:$E,Lists!$S:$S,'Portfolio Analytics'!$C175,raw_annual_energy!$D:$D,AG$166,raw_annual_energy!$A:$A,\"CAISO_NW_Hydro\")/1000","v":0},{"$f":"SUMIFS(raw_annual_energy!$E:$E,Lists!$S:$S,'Portfolio Analytics'!$C175,raw_annual_energy!$D:$D,AH$166,raw_annual_energy!$A:$A,mainzone)/1000+SUMIFS(raw_annual_energy!$E:$E,Lists!$S:$S,'Portfolio Analytics'!$C175,raw_annual_energy!$D:$D,AH$166,raw_annual_energy!$A:$A,\"CAISO_NW_Hydro\")/1000","v":0},{"$f":"SUMIFS(raw_annual_energy!$E:$E,Lists!$S:$S,'Portfolio Analytics'!$C175,raw_annual_energy!$D:$D,AI$166,raw_annual_energy!$A:$A,mainzone)/1000+SUMIFS(raw_annual_energy!$E:$E,Lists!$S:$S,'Portfolio Analytics'!$C175,raw_annual_energy!$D:$D,AI$166,raw_annual_energy!$A:$A,\"CAISO_NW_Hydro\")/1000","v":0},{"$f":"SUMIFS(raw_annual_energy!$E:$E,Lists!$S:$S,'Portfolio Analytics'!$C175,raw_annual_energy!$D:$D,AJ$166,raw_annual_energy!$A:$A,mainzone)/1000+SUMIFS(raw_annual_energy!$E:$E,Lists!$S:$S,'Portfolio Analytics'!$C175,raw_annual_energy!$D:$D,AJ$166,raw_annual_energy!$A:$A,\"CAISO_NW_Hydro\")/1000","v":0},{"$f":"SUMIFS(raw_annual_energy!$E:$E,Lists!$S:$S,'Portfolio Analytics'!$C175,raw_annual_energy!$D:$D,AK$166,raw_annual_energy!$A:$A,mainzone)/1000+SUMIFS(raw_annual_energy!$E:$E,Lists!$S:$S,'Portfolio Analytics'!$C175,raw_annual_energy!$D:$D,AK$166,raw_annual_energy!$A:$A,\"CAISO_NW_Hydro\")/1000","v":0},{"$f":"SUMIFS(raw_annual_energy!$E:$E,Lists!$S:$S,'Portfolio Analytics'!$C175,raw_annual_energy!$D:$D,AL$166,raw_annual_energy!$A:$A,mainzone)/1000+SUMIFS(raw_annual_energy!$E:$E,Lists!$S:$S,'Portfolio Analytics'!$C175,raw_annual_energy!$D:$D,AL$166,raw_annual_energy!$A:$A,\"CAISO_NW_Hydro\")/1000","v":0},{"$f":"SUMIFS(raw_annual_energy!$E:$E,Lists!$S:$S,'Portfolio Analytics'!$C175,raw_annual_energy!$D:$D,AM$166,raw_annual_energy!$A:$A,mainzone)/1000+SUMIFS(raw_annual_energy!$E:$E,Lists!$S:$S,'Portfolio Analytics'!$C175,raw_annual_energy!$D:$D,AM$166,raw_annual_energy!$A:$A,\"CAISO_NW_Hydro\")/1000","v":0},{"$f":"SUMIFS(raw_annual_energy!$E:$E,Lists!$S:$S,'Portfolio Analytics'!$C175,raw_annual_energy!$D:$D,AN$166,raw_annual_energy!$A:$A,mainzone)/1000+SUMIFS(raw_annual_energy!$E:$E,Lists!$S:$S,'Portfolio Analytics'!$C175,raw_annual_energy!$D:$D,AN$166,raw_annual_energy!$A:$A,\"CAISO_NW_Hydro\")/1000","v":0}]
[null,null,{"$f":"Lists!$B14","v":"CAISO_Coal"},"GWh",{"$f":"SUMIFS(raw_annual_energy!$E:$E,Lists!$S:$S,'Portfolio Analytics'!$C176,raw_annual_energy!$D:$D,E$166,raw_annual_energy!$A:$A,mainzone)/1000+SUMIFS(raw_annual_energy!$E:$E,Lists!$S:$S,'Portfolio Analytics'!$C176,raw_annual_energy!$D:$D,E$166,raw_annual_energy!$A:$A,\"CAISO_NW_Hydro\")/1000","v":0},{"$f":"SUMIFS(raw_annual_energy!$E:$E,Lists!$S:$S,'Portfolio Analytics'!$C176,raw_annual_energy!$D:$D,F$166,raw_annual_energy!$A:$A,mainzone)/1000+SUMIFS(raw_annual_energy!$E:$E,Lists!$S:$S,'Portfolio Analytics'!$C176,raw_annual_energy!$D:$D,F$166,raw_annual_energy!$A:$A,\"CAISO_NW_Hydro\")/1000","v":0},{"$f":"SUMIFS(raw_annual_energy!$E:$E,Lists!$S:$S,'Portfolio Analytics'!$C176,raw_annual_energy!$D:$D,G$166,raw_annual_energy!$A:$A,mainzone)/1000+SUMIFS(raw_annual_energy!$E:$E,Lists!$S:$S,'Portfolio Analytics'!$C176,raw_annual_energy!$D:$D,G$166,raw_annual_energy!$A:$A,\"CAISO_NW_Hydro\")/1000","v":0},{"$f":"SUMIFS(raw_annual_energy!$E:$E,Lists!$S:$S,'Portfolio Analytics'!$C176,raw_annual_energy!$D:$D,H$166,raw_annual_energy!$A:$A,mainzone)/1000+SUMIFS(raw_annual_energy!$E:$E,Lists!$S:$S,'Portfolio Analytics'!$C176,raw_annual_energy!$D:$D,H$166,raw_annual_energy!$A:$A,\"CAISO_NW_Hydro\")/1000","v":0},{"$f":"SUMIFS(raw_annual_energy!$E:$E,Lists!$S:$S,'Portfolio Analytics'!$C176,raw_annual_energy!$D:$D,I$166,raw_annual_energy!$A:$A,mainzone)/1000+SUMIFS(raw_annual_energy!$E:$E,Lists!$S:$S,'Portfolio Analytics'!$C176,raw_annual_energy!$D:$D,I$166,raw_annual_energy!$A:$A,\"CAISO_NW_Hydro\")/1000","v":0},{"$f":"SUMIFS(raw_annual_energy!$E:$E,Lists!$S:$S,'Portfolio Analytics'!$C176,raw_annual_energy!$D:$D,J$166,raw_annual_energy!$A:$A,mainzone)/1000+SUMIFS(raw_annual_energy!$E:$E,Lists!$S:$S,'Portfolio Analytics'!$C176,raw_annual_energy!$D:$D,J$166,raw_annual_energy!$A:$A,\"CAISO_NW_Hydro\")/1000","v":2166.2318845076902},{"$f":"SUMIFS(raw_annual_energy!$E:$E,Lists!$S:$S,'Portfolio Analytics'!$C176,raw_annual_energy!$D:$D,K$166,raw_annual_energy!$A:$A,mainzone)/1000+SUMIFS(raw_annual_energy!$E:$E,Lists!$S:$S,'Portfolio Analytics'!$C176,raw_annual_energy!$D:$D,K$166,raw_annual_energy!$A:$A,\"CAISO_NW_Hydro\")/1000","v":1340.4893875243702},{"$f":"SUMIFS(raw_annual_energy!$E:$E,Lists!$S:$S,'Portfolio Analytics'!$C176,raw_annual_energy!$D:$D,L$166,raw_annual_energy!$A:$A,mainzone)/1000+SUMIFS(raw_annual_energy!$E:$E,Lists!$S:$S,'Portfolio Analytics'!$C176,raw_annual_energy!$D:$D,L$166,raw_annual_energy!$A:$A,\"CAISO_NW_Hydro\")/1000","v":714.29798582263504},{"$f":"SUMIFS(raw_annual_energy!$E:$E,Lists!$S:$S,'Portfolio Analytics'!$C176,raw_annual_energy!$D:$D,M$166,raw_annual_energy!$A:$A,mainzone)/1000+SUMIFS(raw_annual_energy!$E:$E,Lists!$S:$S,'Portfolio Analytics'!$C176,raw_annual_energy!$D:$D,M$166,raw_annual_energy!$A:$A,\"CAISO_NW_Hydro\")/1000","v":695.71801770085006},{"$f":"SUMIFS(raw_annual_energy!$E:$E,Lists!$S:$S,'Portfolio Analytics'!$C176,raw_annual_energy!$D:$D,N$166,raw_annual_energy!$A:$A,mainzone)/1000+SUMIFS(raw_annual_energy!$E:$E,Lists!$S:$S,'Portfolio Analytics'!$C176,raw_annual_energy!$D:$D,N$166,raw_annual_energy!$A:$A,\"CAISO_NW_Hydro\")/1000","v":695.71801770085006},{"$f":"SUMIFS(raw_annual_energy!$E:$E,Lists!$S:$S,'Portfolio Analytics'!$C176,raw_annual_energy!$D:$D,O$166,raw_annual_energy!$A:$A,mainzone)/1000+SUMIFS(raw_annual_energy!$E:$E,Lists!$S:$S,'Portfolio Analytics'!$C176,raw_annual_energy!$D:$D,O$166,raw_annual_energy!$A:$A,\"CAISO_NW_Hydro\")/1000","v":0},{"$f":"SUMIFS(raw_annual_energy!$E:$E,Lists!$S:$S,'Portfolio Analytics'!$C176,raw_annual_energy!$D:$D,P$166,raw_annual_energy!$A:$A,mainzone)/1000+SUMIFS(raw_annual_energy!$E:$E,Lists!$S:$S,'Portfolio Analytics'!$C176,raw_annual_energy!$D:$D,P$166,raw_annual_energy!$A:$A,\"CAISO_NW_Hydro\")/1000","v":0},{"$f":"SUMIFS(raw_annual_energy!$E:$E,Lists!$S:$S,'Portfolio Analytics'!$C176,raw_annual_energy!$D:$D,Q$166,raw_annual_energy!$A:$A,mainzone)/1000+SUMIFS(raw_annual_energy!$E:$E,Lists!$S:$S,'Portfolio Analytics'!$C176,raw_annual_energy!$D:$D,Q$166,raw_annual_energy!$A:$A,\"CAISO_NW_Hydro\")/1000","v":0},{"$f":"SUMIFS(raw_annual_energy!$E:$E,Lists!$S:$S,'Portfolio Analytics'!$C176,raw_annual_energy!$D:$D,R$166,raw_annual_energy!$A:$A,mainzone)/1000+SUMIFS(raw_annual_energy!$E:$E,Lists!$S:$S,'Portfolio Analytics'!$C176,raw_annual_energy!$D:$D,R$166,raw_annual_energy!$A:$A,\"CAISO_NW_Hydro\")/1000","v":0},{"$f":"SUMIFS(raw_annual_energy!$E:$E,Lists!$S:$S,'Portfolio Analytics'!$C176,raw_annual_energy!$D:$D,S$166,raw_annual_energy!$A:$A,mainzone)/1000+SUMIFS(raw_annual_energy!$E:$E,Lists!$S:$S,'Portfolio Analytics'!$C176,raw_annual_energy!$D:$D,S$166,raw_annual_energy!$A:$A,\"CAISO_NW_Hydro\")/1000","v":0},{"$f":"SUMIFS(raw_annual_energy!$E:$E,Lists!$S:$S,'Portfolio Analytics'!$C176,raw_annual_energy!$D:$D,T$166,raw_annual_energy!$A:$A,mainzone)/1000+SUMIFS(raw_annual_energy!$E:$E,Lists!$S:$S,'Portfolio Analytics'!$C176,raw_annual_energy!$D:$D,T$166,raw_annual_energy!$A:$A,\"CAISO_NW_Hydro\")/1000","v":0},{"$f":"SUMIFS(raw_annual_energy!$E:$E,Lists!$S:$S,'Portfolio Analytics'!$C176,raw_annual_energy!$D:$D,U$166,raw_annual_energy!$A:$A,mainzone)/1000+SUMIFS(raw_annual_energy!$E:$E,Lists!$S:$S,'Portfolio Analytics'!$C176,raw_annual_energy!$D:$D,U$166,raw_annual_energy!$A:$A,\"CAISO_NW_Hydro\")/1000","v":0},{"$f":"SUMIFS(raw_annual_energy!$E:$E,Lists!$S:$S,'Portfolio Analytics'!$C176,raw_annual_energy!$D:$D,V$166,raw_annual_energy!$A:$A,mainzone)/1000+SUMIFS(raw_annual_energy!$E:$E,Lists!$S:$S,'Portfolio Analytics'!$C176,raw_annual_energy!$D:$D,V$166,raw_annual_energy!$A:$A,\"CAISO_NW_Hydro\")/1000","v":0},{"$f":"SUMIFS(raw_annual_energy!$E:$E,Lists!$S:$S,'Portfolio Analytics'!$C176,raw_annual_energy!$D:$D,W$166,raw_annual_energy!$A:$A,mainzone)/1000+SUMIFS(raw_annual_energy!$E:$E,Lists!$S:$S,'Portfolio Analytics'!$C176,raw_annual_energy!$D:$D,W$166,raw_annual_energy!$A:$A,\"CAISO_NW_Hydro\")/1000","v":0},{"$f":"SUMIFS(raw_annual_energy!$E:$E,Lists!$S:$S,'Portfolio Analytics'!$C176,raw_annual_energy!$D:$D,X$166,raw_annual_energy!$A:$A,mainzone)/1000+SUMIFS(raw_annual_energy!$E:$E,Lists!$S:$S,'Portfolio Analytics'!$C176,raw_annual_energy!$D:$D,X$166,raw_annual_energy!$A:$A,\"CAISO_NW_Hydro\")/1000","v":0},{"$f":"SUMIFS(raw_annual_energy!$E:$E,Lists!$S:$S,'Portfolio Analytics'!$C176,raw_annual_energy!$D:$D,Y$166,raw_annual_energy!$A:$A,mainzone)/1000+SUMIFS(raw_annual_energy!$E:$E,Lists!$S:$S,'Portfolio Analytics'!$C176,raw_annual_energy!$D:$D,Y$166,raw_annual_energy!$A:$A,\"CAISO_NW_Hydro\")/1000","v":0},{"$f":"SUMIFS(raw_annual_energy!$E:$E,Lists!$S:$S,'Portfolio Analytics'!$C176,raw_annual_energy!$D:$D,Z$166,raw_annual_energy!$A:$A,mainzone)/1000+SUMIFS(raw_annual_energy!$E:$E,Lists!$S:$S,'Portfolio Analytics'!$C176,raw_annual_energy!$D:$D,Z$166,raw_annual_energy!$A:$A,\"CAISO_NW_Hydro\")/1000","v":0},{"$f":"SUMIFS(raw_annual_energy!$E:$E,Lists!$S:$S,'Portfolio Analytics'!$C176,raw_annual_energy!$D:$D,AA$166,raw_annual_energy!$A:$A,mainzone)/1000+SUMIFS(raw_annual_energy!$E:$E,Lists!$S:$S,'Portfolio Analytics'!$C176,raw_annual_energy!$D:$D,AA$166,raw_annual_energy!$A:$A,\"CAISO_NW_Hydro\")/1000","v":0},{"$f":"SUMIFS(raw_annual_energy!$E:$E,Lists!$S:$S,'Portfolio Analytics'!$C176,raw_annual_energy!$D:$D,AB$166,raw_annual_energy!$A:$A,mainzone)/1000+SUMIFS(raw_annual_energy!$E:$E,Lists!$S:$S,'Portfolio Analytics'!$C176,raw_annual_energy!$D:$D,AB$166,raw_annual_energy!$A:$A,\"CAISO_NW_Hydro\")/1000","v":0},{"$f":"SUMIFS(raw_annual_energy!$E:$E,Lists!$S:$S,'Portfolio Analytics'!$C176,raw_annual_energy!$D:$D,AC$166,raw_annual_energy!$A:$A,mainzone)/1000+SUMIFS(raw_annual_energy!$E:$E,Lists!$S:$S,'Portfolio Analytics'!$C176,raw_annual_energy!$D:$D,AC$166,raw_annual_energy!$A:$A,\"CAISO_NW_Hydro\")/1000","v":0},{"$f":"SUMIFS(raw_annual_energy!$E:$E,Lists!$S:$S,'Portfolio Analytics'!$C176,raw_annual_energy!$D:$D,AD$166,raw_annual_energy!$A:$A,mainzone)/1000+SUMIFS(raw_annual_energy!$E:$E,Lists!$S:$S,'Portfolio Analytics'!$C176,raw_annual_energy!$D:$D,AD$166,raw_annual_energy!$A:$A,\"CAISO_NW_Hydro\")/1000","v":0},{"$f":"SUMIFS(raw_annual_energy!$E:$E,Lists!$S:$S,'Portfolio Analytics'!$C176,raw_annual_energy!$D:$D,AE$166,raw_annual_energy!$A:$A,mainzone)/1000+SUMIFS(raw_annual_energy!$E:$E,Lists!$S:$S,'Portfolio Analytics'!$C176,raw_annual_energy!$D:$D,AE$166,raw_annual_energy!$A:$A,\"CAISO_NW_Hydro\")/1000","v":0},{"$f":"SUMIFS(raw_annual_energy!$E:$E,Lists!$S:$S,'Portfolio Analytics'!$C176,raw_annual_energy!$D:$D,AF$166,raw_annual_energy!$A:$A,mainzone)/1000+SUMIFS(raw_annual_energy!$E:$E,Lists!$S:$S,'Portfolio Analytics'!$C176,raw_annual_energy!$D:$D,AF$166,raw_annual_energy!$A:$A,\"CAISO_NW_Hydro\")/1000","v":0},{"$f":"SUMIFS(raw_annual_energy!$E:$E,Lists!$S:$S,'Portfolio Analytics'!$C176,raw_annual_energy!$D:$D,AG$166,raw_annual_energy!$A:$A,mainzone)/1000+SUMIFS(raw_annual_energy!$E:$E,Lists!$S:$S,'Portfolio Analytics'!$C176,raw_annual_energy!$D:$D,AG$166,raw_annual_energy!$A:$A,\"CAISO_NW_Hydro\")/1000","v":0},{"$f":"SUMIFS(raw_annual_energy!$E:$E,Lists!$S:$S,'Portfolio Analytics'!$C176,raw_annual_energy!$D:$D,AH$166,raw_annual_energy!$A:$A,mainzone)/1000+SUMIFS(raw_annual_energy!$E:$E,Lists!$S:$S,'Portfolio Analytics'!$C176,raw_annual_energy!$D:$D,AH$166,raw_annual_energy!$A:$A,\"CAISO_NW_Hydro\")/1000","v":0},{"$f":"SUMIFS(raw_annual_energy!$E:$E,Lists!$S:$S,'Portfolio Analytics'!$C176,raw_annual_energy!$D:$D,AI$166,raw_annual_energy!$A:$A,mainzone)/1000+SUMIFS(raw_annual_energy!$E:$E,Lists!$S:$S,'Portfolio Analytics'!$C176,raw_annual_energy!$D:$D,AI$166,raw_annual_energy!$A:$A,\"CAISO_NW_Hydro\")/1000","v":0},{"$f":"SUMIFS(raw_annual_energy!$E:$E,Lists!$S:$S,'Portfolio Analytics'!$C176,raw_annual_energy!$D:$D,AJ$166,raw_annual_energy!$A:$A,mainzone)/1000+SUMIFS(raw_annual_energy!$E:$E,Lists!$S:$S,'Portfolio Analytics'!$C176,raw_annual_energy!$D:$D,AJ$166,raw_annual_energy!$A:$A,\"CAISO_NW_Hydro\")/1000","v":0},{"$f":"SUMIFS(raw_annual_energy!$E:$E,Lists!$S:$S,'Portfolio Analytics'!$C176,raw_annual_energy!$D:$D,AK$166,raw_annual_energy!$A:$A,mainzone)/1000+SUMIFS(raw_annual_energy!$E:$E,Lists!$S:$S,'Portfolio Analytics'!$C176,raw_annual_energy!$D:$D,AK$166,raw_annual_energy!$A:$A,\"CAISO_NW_Hydro\")/1000","v":0},{"$f":"SUMIFS(raw_annual_energy!$E:$E,Lists!$S:$S,'Portfolio Analytics'!$C176,raw_annual_energy!$D:$D,AL$166,raw_annual_energy!$A:$A,mainzone)/1000+SUMIFS(raw_annual_energy!$E:$E,Lists!$S:$S,'Portfolio Analytics'!$C176,raw_annual_energy!$D:$D,AL$166,raw_annual_energy!$A:$A,\"CAISO_NW_Hydro\")/1000","v":0},{"$f":"SUMIFS(raw_annual_energy!$E:$E,Lists!$S:$S,'Portfolio Analytics'!$C176,raw_annual_energy!$D:$D,AM$166,raw_annual_energy!$A:$A,mainzone)/1000+SUMIFS(raw_annual_energy!$E:$E,Lists!$S:$S,'Portfolio Analytics'!$C176,raw_annual_energy!$D:$D,AM$166,raw_annual_energy!$A:$A,\"CAISO_NW_Hydro\")/1000","v":0},{"$f":"SUMIFS(raw_annual_energy!$E:$E,Lists!$S:$S,'Portfolio Analytics'!$C176,raw_annual_energy!$D:$D,AN$166,raw_annual_energy!$A:$A,mainzone)/1000+SUMIFS(raw_annual_energy!$E:$E,Lists!$S:$S,'Portfolio Analytics'!$C176,raw_annual_energy!$D:$D,AN$166,raw_annual_energy!$A:$A,\"CAISO_NW_Hydro\")/1000","v":0}]
[null,null,{"$f":"Lists!$B15","v":"CAISO_Nuclear"},"GWh",{"$f":"SUMIFS(raw_annual_energy!$E:$E,Lists!$S:$S,'Portfolio Analytics'!$C177,raw_annual_energy!$D:$D,E$166,raw_annual_energy!$A:$A,mainzone)/1000+SUMIFS(raw_annual_energy!$E:$E,Lists!$S:$S,'Portfolio Analytics'!$C177,raw_annual_energy!$D:$D,E$166,raw_annual_energy!$A:$A,\"CAISO_NW_Hydro\")/1000","v":0},{"$f":"SUMIFS(raw_annual_energy!$E:$E,Lists!$S:$S,'Portfolio Analytics'!$C177,raw_annual_energy!$D:$D,F$166,raw_annual_energy!$A:$A,mainzone)/1000+SUMIFS(raw_annual_energy!$E:$E,Lists!$S:$S,'Portfolio Analytics'!$C177,raw_annual_energy!$D:$D,F$166,raw_annual_energy!$A:$A,\"CAISO_NW_Hydro\")/1000","v":0},{"$f":"SUMIFS(raw_annual_energy!$E:$E,Lists!$S:$S,'Portfolio Analytics'!$C177,raw_annual_energy!$D:$D,G$166,raw_annual_energy!$A:$A,mainzone)/1000+SUMIFS(raw_annual_energy!$E:$E,Lists!$S:$S,'Portfolio Analytics'!$C177,raw_annual_energy!$D:$D,G$166,raw_annual_energy!$A:$A,\"CAISO_NW_Hydro\")/1000","v":0},{"$f":"SUMIFS(raw_annual_energy!$E:$E,Lists!$S:$S,'Portfolio Analytics'!$C177,raw_annual_energy!$D:$D,H$166,raw_annual_energy!$A:$A,mainzone)/1000+SUMIFS(raw_annual_energy!$E:$E,Lists!$S:$S,'Portfolio Analytics'!$C177,raw_annual_energy!$D:$D,H$166,raw_annual_energy!$A:$A,\"CAISO_NW_Hydro\")/1000","v":0},{"$f":"SUMIFS(raw_annual_energy!$E:$E,Lists!$S:$S,'Portfolio Analytics'!$C177,raw_annual_energy!$D:$D,I$166,raw_annual_energy!$A:$A,mainzone)/1000+SUMIFS(raw_annual_energy!$E:$E,Lists!$S:$S,'Portfolio Analytics'!$C177,raw_annual_energy!$D:$D,I$166,raw_annual_energy!$A:$A,\"CAISO_NW_Hydro\")/1000","v":0},{"$f":"SUMIFS(raw_annual_energy!$E:$E,Lists!$S:$S,'Portfolio Analytics'!$C177,raw_annual_energy!$D:$D,J$166,raw_annual_energy!$A:$A,mainzone)/1000+SUMIFS(raw_annual_energy!$E:$E,Lists!$S:$S,'Portfolio Analytics'!$C177,raw_annual_energy!$D:$D,J$166,raw_annual_energy!$A:$A,\"CAISO_NW_Hydro\")/1000","v":23611.122768469999},{"$f":"SUMIFS(raw_annual_energy!$E:$E,Lists!$S:$S,'Portfolio Analytics'!$C177,raw_annual_energy!$D:$D,K$166,raw_annual_energy!$A:$A,mainzone)/1000+SUMIFS(raw_annual_energy!$E:$E,Lists!$S:$S,'Portfolio Analytics'!$C177,raw_annual_energy!$D:$D,K$166,raw_annual_energy!$A:$A,\"CAISO_NW_Hydro\")/1000","v":23611.122768469999},{"$f":"SUMIFS(raw_annual_energy!$E:$E,Lists!$S:$S,'Portfolio Analytics'!$C177,raw_annual_energy!$D:$D,L$166,raw_annual_energy!$A:$A,mainzone)/1000+SUMIFS(raw_annual_energy!$E:$E,Lists!$S:$S,'Portfolio Analytics'!$C177,raw_annual_energy!$D:$D,L$166,raw_annual_energy!$A:$A,\"CAISO_NW_Hydro\")/1000","v":23611.122768469999},{"$f":"SUMIFS(raw_annual_energy!$E:$E,Lists!$S:$S,'Portfolio Analytics'!$C177,raw_annual_energy!$D:$D,M$166,raw_annual_energy!$A:$A,mainzone)/1000+SUMIFS(raw_annual_energy!$E:$E,Lists!$S:$S,'Portfolio Analytics'!$C177,raw_annual_energy!$D:$D,M$166,raw_annual_energy!$A:$A,\"CAISO_NW_Hydro\")/1000","v":23611.122768469999},{"$f":"SUMIFS(raw_annual_energy!$E:$E,Lists!$S:$S,'Portfolio Analytics'!$C177,raw_annual_energy!$D:$D,N$166,raw_annual_energy!$A:$A,mainzone)/1000+SUMIFS(raw_annual_energy!$E:$E,Lists!$S:$S,'Portfolio Analytics'!$C177,raw_annual_energy!$D:$D,N$166,raw_annual_energy!$A:$A,\"CAISO_NW_Hydro\")/1000","v":14359.745874521001},{"$f":"SUMIFS(raw_annual_energy!$E:$E,Lists!$S:$S,'Portfolio Analytics'!$C177,raw_annual_energy!$D:$D,O$166,raw_annual_energy!$A:$A,mainzone)/1000+SUMIFS(raw_annual_energy!$E:$E,Lists!$S:$S,'Portfolio Analytics'!$C177,raw_annual_energy!$D:$D,O$166,raw_annual_energy!$A:$A,\"CAISO_NW_Hydro\")/1000","v":0},{"$f":"SUMIFS(raw_annual_energy!$E:$E,Lists!$S:$S,'Portfolio Analytics'!$C177,raw_annual_energy!$D:$D,P$166,raw_annual_energy!$A:$A,mainzone)/1000+SUMIFS(raw_annual_energy!$E:$E,Lists!$S:$S,'Portfolio Analytics'!$C177,raw_annual_energy!$D:$D,P$166,raw_annual_energy!$A:$A,\"CAISO_NW_Hydro\")/1000","v":5108.3689805718604},{"$f":"SUMIFS(raw_annual_energy!$E:$E,Lists!$S:$S,'Portfolio Analytics'!$C177,raw_annual_energy!$D:$D,Q$166,raw_annual_energy!$A:$A,mainzone)/1000+SUMIFS(raw_annual_energy!$E:$E,Lists!$S:$S,'Portfolio Analytics'!$C177,raw_annual_energy!$D:$D,Q$166,raw_annual_energy!$A:$A,\"CAISO_NW_Hydro\")/1000","v":0},{"$f":"SUMIFS(raw_annual_energy!$E:$E,Lists!$S:$S,'Portfolio Analytics'!$C177,raw_annual_energy!$D:$D,R$166,raw_annual_energy!$A:$A,mainzone)/1000+SUMIFS(raw_annual_energy!$E:$E,Lists!$S:$S,'Portfolio Analytics'!$C177,raw_annual_energy!$D:$D,R$166,raw_annual_energy!$A:$A,\"CAISO_NW_Hydro\")/1000","v":0},{"$f":"SUMIFS(raw_annual_energy!$E:$E,Lists!$S:$S,'Portfolio Analytics'!$C177,raw_annual_energy!$D:$D,S$166,raw_annual_energy!$A:$A,mainzone)/1000+SUMIFS(raw_annual_energy!$E:$E,Lists!$S:$S,'Portfolio Analytics'!$C177,raw_annual_energy!$D:$D,S$166,raw_annual_energy!$A:$A,\"CAISO_NW_Hydro\")/1000","v":0},{"$f":"SUMIFS(raw_annual_energy!$E:$E,Lists!$S:$S,'Portfolio Analytics'!$C177,raw_annual_energy!$D:$D,T$166,raw_annual_energy!$A:$A,mainzone)/1000+SUMIFS(raw_annual_energy!$E:$E,Lists!$S:$S,'Portfolio Analytics'!$C177,raw_annual_energy!$D:$D,T$166,raw_annual_energy!$A:$A,\"CAISO_NW_Hydro\")/1000","v":5108.3689805718604},{"$f":"SUMIFS(raw_annual_energy!$E:$E,Lists!$S:$S,'Portfolio Analytics'!$C177,raw_annual_energy!$D:$D,U$166,raw_annual_energy!$A:$A,mainzone)/1000+SUMIFS(raw_annual_energy!$E:$E,Lists!$S:$S,'Portfolio Analytics'!$C177,raw_annual_energy!$D:$D,U$166,raw_annual_energy!$A:$A,\"CAISO_NW_Hydro\")/1000","v":0},{"$f":"SUMIFS(raw_annual_energy!$E:$E,Lists!$S:$S,'Portfolio Analytics'!$C177,raw_annual_energy!$D:$D,V$166,raw_annual_energy!$A:$A,mainzone)/1000+SUMIFS(raw_annual_energy!$E:$E,Lists!$S:$S,'Portfolio Analytics'!$C177,raw_annual_energy!$D:$D,V$166,raw_annual_energy!$A:$A,\"CAISO_NW_Hydro\")/1000","v":0},{"$f":"SUMIFS(raw_annual_energy!$E:$E,Lists!$S:$S,'Portfolio Analytics'!$C177,raw_annual_energy!$D:$D,W$166,raw_annual_energy!$A:$A,mainzone)/1000+SUMIFS(raw_annual_energy!$E:$E,Lists!$S:$S,'Portfolio Analytics'!$C177,raw_annual_energy!$D:$D,W$166,raw_annual_energy!$A:$A,\"CAISO_NW_Hydro\")/1000","v":0},{"$f":"SUMIFS(raw_annual_energy!$E:$E,Lists!$S:$S,'Portfolio Analytics'!$C177,raw_annual_energy!$D:$D,X$166,raw_annual_energy!$A:$A,mainzone)/1000+SUMIFS(raw_annual_energy!$E:$E,Lists!$S:$S,'Portfolio Analytics'!$C177,raw_annual_energy!$D:$D,X$166,raw_annual_energy!$A:$A,\"CAISO_NW_Hydro\")/1000","v":0},{"$f":"SUMIFS(raw_annual_energy!$E:$E,Lists!$S:$S,'Portfolio Analytics'!$C177,raw_annual_energy!$D:$D,Y$166,raw_annual_energy!$A:$A,mainzone)/1000+SUMIFS(raw_annual_energy!$E:$E,Lists!$S:$S,'Portfolio Analytics'!$C177,raw_annual_energy!$D:$D,Y$166,raw_annual_energy!$A:$A,\"CAISO_NW_Hydro\")/1000","v":0},{"$f":"SUMIFS(raw_annual_energy!$E:$E,Lists!$S:$S,'Portfolio Analytics'!$C177,raw_annual_energy!$D:$D,Z$166,raw_annual_energy!$A:$A,mainzone)/1000+SUMIFS(raw_annual_energy!$E:$E,Lists!$S:$S,'Portfolio Analytics'!$C177,raw_annual_energy!$D:$D,Z$166,raw_annual_energy!$A:$A,\"CAISO_NW_Hydro\")/1000","v":0},{"$f":"SUMIFS(raw_annual_energy!$E:$E,Lists!$S:$S,'Portfolio Analytics'!$C177,raw_annual_energy!$D:$D,AA$166,raw_annual_energy!$A:$A,mainzone)/1000+SUMIFS(raw_annual_energy!$E:$E,Lists!$S:$S,'Portfolio Analytics'!$C177,raw_annual_energy!$D:$D,AA$166,raw_annual_energy!$A:$A,\"CAISO_NW_Hydro\")/1000","v":0},{"$f":"SUMIFS(raw_annual_energy!$E:$E,Lists!$S:$S,'Portfolio Analytics'!$C177,raw_annual_energy!$D:$D,AB$166,raw_annual_energy!$A:$A,mainzone)/1000+SUMIFS(raw_annual_energy!$E:$E,Lists!$S:$S,'Portfolio Analytics'!$C177,raw_annual_energy!$D:$D,AB$166,raw_annual_energy!$A:$A,\"CAISO_NW_Hydro\")/1000","v":0},{"$f":"SUMIFS(raw_annual_energy!$E:$E,Lists!$S:$S,'Portfolio Analytics'!$C177,raw_annual_energy!$D:$D,AC$166,raw_annual_energy!$A:$A,mainzone)/1000+SUMIFS(raw_annual_energy!$E:$E,Lists!$S:$S,'Portfolio Analytics'!$C177,raw_annual_energy!$D:$D,AC$166,raw_annual_energy!$A:$A,\"CAISO_NW_Hydro\")/1000","v":0},{"$f":"SUMIFS(raw_annual_energy!$E:$E,Lists!$S:$S,'Portfolio Analytics'!$C177,raw_annual_energy!$D:$D,AD$166,raw_annual_energy!$A:$A,mainzone)/1000+SUMIFS(raw_annual_energy!$E:$E,Lists!$S:$S,'Portfolio Analytics'!$C177,raw_annual_energy!$D:$D,AD$166,raw_annual_energy!$A:$A,\"CAISO_NW_Hydro\")/1000","v":0},{"$f":"SUMIFS(raw_annual_energy!$E:$E,Lists!$S:$S,'Portfolio Analytics'!$C177,raw_annual_energy!$D:$D,AE$166,raw_annual_energy!$A:$A,mainzone)/1000+SUMIFS(raw_annual_energy!$E:$E,Lists!$S:$S,'Portfolio Analytics'!$C177,raw_annual_energy!$D:$D,AE$166,raw_annual_energy!$A:$A,\"CAISO_NW_Hydro\")/1000","v":0},{"$f":"SUMIFS(raw_annual_energy!$E:$E,Lists!$S:$S,'Portfolio Analytics'!$C177,raw_annual_energy!$D:$D,AF$166,raw_annual_energy!$A:$A,mainzone)/1000+SUMIFS(raw_annual_energy!$E:$E,Lists!$S:$S,'Portfolio Analytics'!$C177,raw_annual_energy!$D:$D,AF$166,raw_annual_energy!$A:$A,\"CAISO_NW_Hydro\")/1000","v":0},{"$f":"SUMIFS(raw_annual_energy!$E:$E,Lists!$S:$S,'Portfolio Analytics'!$C177,raw_annual_energy!$D:$D,AG$166,raw_annual_energy!$A:$A,mainzone)/1000+SUMIFS(raw_annual_energy!$E:$E,Lists!$S:$S,'Portfolio Analytics'!$C177,raw_annual_energy!$D:$D,AG$166,raw_annual_energy!$A:$A,\"CAISO_NW_Hydro\")/1000","v":0},{"$f":"SUMIFS(raw_annual_energy!$E:$E,Lists!$S:$S,'Portfolio Analytics'!$C177,raw_annual_energy!$D:$D,AH$166,raw_annual_energy!$A:$A,mainzone)/1000+SUMIFS(raw_annual_energy!$E:$E,Lists!$S:$S,'Portfolio Analytics'!$C177,raw_annual_energy!$D:$D,AH$166,raw_annual_energy!$A:$A,\"CAISO_NW_Hydro\")/1000","v":0},{"$f":"SUMIFS(raw_annual_energy!$E:$E,Lists!$S:$S,'Portfolio Analytics'!$C177,raw_annual_energy!$D:$D,AI$166,raw_annual_energy!$A:$A,mainzone)/1000+SUMIFS(raw_annual_energy!$E:$E,Lists!$S:$S,'Portfolio Analytics'!$C177,raw_annual_energy!$D:$D,AI$166,raw_annual_energy!$A:$A,\"CAISO_NW_Hydro\")/1000","v":5108.3689805718604},{"$f":"SUMIFS(raw_annual_energy!$E:$E,Lists!$S:$S,'Portfolio Analytics'!$C177,raw_annual_energy!$D:$D,AJ$166,raw_annual_energy!$A:$A,mainzone)/1000+SUMIFS(raw_annual_energy!$E:$E,Lists!$S:$S,'Portfolio Analytics'!$C177,raw_annual_energy!$D:$D,AJ$166,raw_annual_energy!$A:$A,\"CAISO_NW_Hydro\")/1000","v":0},{"$f":"SUMIFS(raw_annual_energy!$E:$E,Lists!$S:$S,'Portfolio Analytics'!$C177,raw_annual_energy!$D:$D,AK$166,raw_annual_energy!$A:$A,mainzone)/1000+SUMIFS(raw_annual_energy!$E:$E,Lists!$S:$S,'Portfolio Analytics'!$C177,raw_annual_energy!$D:$D,AK$166,raw_annual_energy!$A:$A,\"CAISO_NW_Hydro\")/1000","v":0},{"$f":"SUMIFS(raw_annual_energy!$E:$E,Lists!$S:$S,'Portfolio Analytics'!$C177,raw_annual_energy!$D:$D,AL$166,raw_annual_energy!$A:$A,mainzone)/1000+SUMIFS(raw_annual_energy!$E:$E,Lists!$S:$S,'Portfolio Analytics'!$C177,raw_annual_energy!$D:$D,AL$166,raw_annual_energy!$A:$A,\"CAISO_NW_Hydro\")/1000","v":0},{"$f":"SUMIFS(raw_annual_energy!$E:$E,Lists!$S:$S,'Portfolio Analytics'!$C177,raw_annual_energy!$D:$D,AM$166,raw_annual_energy!$A:$A,mainzone)/1000+SUMIFS(raw_annual_energy!$E:$E,Lists!$S:$S,'Portfolio Analytics'!$C177,raw_annual_energy!$D:$D,AM$166,raw_annual_energy!$A:$A,\"CAISO_NW_Hydro\")/1000","v":0},{"$f":"SUMIFS(raw_annual_energy!$E:$E,Lists!$S:$S,'Portfolio Analytics'!$C177,raw_annual_energy!$D:$D,AN$166,raw_annual_energy!$A:$A,mainzone)/1000+SUMIFS(raw_annual_energy!$E:$E,Lists!$S:$S,'Portfolio Analytics'!$C177,raw_annual_energy!$D:$D,AN$166,raw_annual_energy!$A:$A,\"CAISO_NW_Hydro\")/1000","v":0}]
[null,null,{"$f":"Lists!$B16","v":"Hydro"},"GWh",{"$f":"E234+E247","v":0},0,0,0,0,18669.78858171769,18669.786284372258,18669.78841325792,18669.787046595473,18669.786172963912,0,18669.784821807381,0,0,0,18668.233584021127,0,0,0,0,0,0,0,0,0,0,0,0,0,0,18668.231534298011,0,0,0,0,0]
[null,null,{"$f":"Lists!$B17","v":"Hydro_NW_CAISO"},"GWh",{"$f":"SUMIFS(raw_annual_energy!$E:$E,Lists!$S:$S,'Portfolio Analytics'!$C179,raw_annual_energy!$D:$D,E$166,raw_annual_energy!$A:$A,mainzone)/1000+SUMIFS(raw_annual_energy!$E:$E,Lists!$S:$S,'Portfolio Analytics'!$C179,raw_annual_energy!$D:$D,E$166,raw_annual_energy!$A:$A,\"CAISO_NW_Hydro\")/1000-(SUMIFS(raw_transmission_flows!$G:$G,raw_transmission_flows!$C:$C,\"CAISO_NW_Hydro\",raw_transmission_flows!$B:$B,\"NW\",raw_transmission_flows!$D:$D,E$166)-SUMIFS(raw_transmission_flows!$G:$G,raw_transmission_flows!$B:$B,\"CAISO_NW_Hydro\",raw_transmission_flows!$C:$C,\"CAISO\",raw_transmission_flows!$D:$D,E$166))/1000","v":0},{"$f":"SUMIFS(raw_annual_energy!$E:$E,Lists!$S:$S,'Portfolio Analytics'!$C179,raw_annual_energy!$D:$D,F$166,raw_annual_energy!$A:$A,mainzone)/1000+SUMIFS(raw_annual_energy!$E:$E,Lists!$S:$S,'Portfolio Analytics'!$C179,raw_annual_energy!$D:$D,F$166,raw_annual_energy!$A:$A,\"CAISO_NW_Hydro\")/1000-(SUMIFS(raw_transmission_flows!$G:$G,raw_transmission_flows!$C:$C,\"CAISO_NW_Hydro\",raw_transmission_flows!$B:$B,\"NW\",raw_transmission_flows!$D:$D,F$166)-SUMIFS(raw_transmission_flows!$G:$G,raw_transmission_flows!$B:$B,\"CAISO_NW_Hydro\",raw_transmission_flows!$C:$C,\"CAISO\",raw_transmission_flows!$D:$D,F$166))/1000","v":0},{"$f":"SUMIFS(raw_annual_energy!$E:$E,Lists!$S:$S,'Portfolio Analytics'!$C179,raw_annual_energy!$D:$D,G$166,raw_annual_energy!$A:$A,mainzone)/1000+SUMIFS(raw_annual_energy!$E:$E,Lists!$S:$S,'Portfolio Analytics'!$C179,raw_annual_energy!$D:$D,G$166,raw_annual_energy!$A:$A,\"CAISO_NW_Hydro\")/1000-(SUMIFS(raw_transmission_flows!$G:$G,raw_transmission_flows!$C:$C,\"CAISO_NW_Hydro\",raw_transmission_flows!$B:$B,\"NW\",raw_transmission_flows!$D:$D,G$166)-SUMIFS(raw_transmission_flows!$G:$G,raw_transmission_flows!$B:$B,\"CAISO_NW_Hydro\",raw_transmission_flows!$C:$C,\"CAISO\",raw_transmission_flows!$D:$D,G$166))/1000","v":0},{"$f":"SUMIFS(raw_annual_energy!$E:$E,Lists!$S:$S,'Portfolio Analytics'!$C179,raw_annual_energy!$D:$D,H$166,raw_annual_energy!$A:$A,mainzone)/1000+SUMIFS(raw_annual_energy!$E:$E,Lists!$S:$S,'Portfolio Analytics'!$C179,raw_annual_energy!$D:$D,H$166,raw_annual_energy!$A:$A,\"CAISO_NW_Hydro\")/1000-(SUMIFS(raw_transmission_flows!$G:$G,raw_transmission_flows!$C:$C,\"CAISO_NW_Hydro\",raw_transmission_flows!$B:$B,\"NW\",raw_transmission_flows!$D:$D,H$166)-SUMIFS(raw_transmission_flows!$G:$G,raw_transmission_flows!$B:$B,\"CAISO_NW_Hydro\",raw_transmission_flows!$C:$C,\"CAISO\",raw_transmission_flows!$D:$D,H$166))/1000","v":0},{"$f":"SUMIFS(raw_annual_energy!$E:$E,Lists!$S:$S,'Portfolio Analytics'!$C179,raw_annual_energy!$D:$D,I$166,raw_annual_energy!$A:$A,mainzone)/1000+SUMIFS(raw_annual_energy!$E:$E,Lists!$S:$S,'Portfolio Analytics'!$C179,raw_annual_energy!$D:$D,I$166,raw_annual_energy!$A:$A,\"CAISO_NW_Hydro\")/1000-(SUMIFS(raw_transmission_flows!$G:$G,raw_transmission_flows!$C:$C,\"CAISO_NW_Hydro\",raw_transmission_flows!$B:$B,\"NW\",raw_transmission_flows!$D:$D,I$166)-SUMIFS(raw_transmission_flows!$G:$G,raw_transmission_flows!$B:$B,\"CAISO_NW_Hydro\",raw_transmission_flows!$C:$C,\"CAISO\",raw_transmission_flows!$D:$D,I$166))/1000","v":0},{"$f":"SUMIFS(raw_annual_energy!$E:$E,Lists!$S:$S,'Portfolio Analytics'!$C179,raw_annual_energy!$D:$D,J$166,raw_annual_energy!$A:$A,mainzone)/1000+SUMIFS(raw_annual_energy!$E:$E,Lists!$S:$S,'Portfolio Analytics'!$C179,raw_annual_energy!$D:$D,J$166,raw_annual_energy!$A:$A,\"CAISO_NW_Hydro\")/1000-(SUMIFS(raw_transmission_flows!$G:$G,raw_transmission_flows!$C:$C,\"CAISO_NW_Hydro\",raw_transmission_flows!$B:$B,\"NW\",raw_transmission_flows!$D:$D,J$166)-SUMIFS(raw_transmission_flows!$G:$G,raw_transmission_flows!$B:$B,\"CAISO_NW_Hydro\",raw_transmission_flows!$C:$C,\"CAISO\",raw_transmission_flows!$D:$D,J$166))/1000","v":10645.966030386799},{"$f":"SUMIFS(raw_annual_energy!$E:$E,Lists!$S:$S,'Portfolio Analytics'!$C179,raw_annual_energy!$D:$D,K$166,raw_annual_energy!$A:$A,mainzone)/1000+SUMIFS(raw_annual_energy!$E:$E,Lists!$S:$S,'Portfolio Analytics'!$C179,raw_annual_energy!$D:$D,K$166,raw_annual_energy!$A:$A,\"CAISO_NW_Hydro\")/1000-(SUMIFS(raw_transmission_flows!$G:$G,raw_transmission_flows!$C:$C,\"CAISO_NW_Hydro\",raw_transmission_flows!$B:$B,\"NW\",raw_transmission_flows!$D:$D,K$166)-SUMIFS(raw_transmission_flows!$G:$G,raw_transmission_flows!$B:$B,\"CAISO_NW_Hydro\",raw_transmission_flows!$C:$C,\"CAISO\",raw_transmission_flows!$D:$D,K$166))/1000","v":10888.407144809707},{"$f":"SUMIFS(raw_annual_energy!$E:$E,Lists!$S:$S,'Portfolio Analytics'!$C179,raw_annual_energy!$D:$D,L$166,raw_annual_energy!$A:$A,mainzone)/1000+SUMIFS(raw_annual_energy!$E:$E,Lists!$S:$S,'Portfolio Analytics'!$C179,raw_annual_energy!$D:$D,L$166,raw_annual_energy!$A:$A,\"CAISO_NW_Hydro\")/1000-(SUMIFS(raw_transmission_flows!$G:$G,raw_transmission_flows!$C:$C,\"CAISO_NW_Hydro\",raw_transmission_flows!$B:$B,\"NW\",raw_transmission_flows!$D:$D,L$166)-SUMIFS(raw_transmission_flows!$G:$G,raw_transmission_flows!$B:$B,\"CAISO_NW_Hydro\",raw_transmission_flows!$C:$C,\"CAISO\",raw_transmission_flows!$D:$D,L$166))/1000","v":10811.521993592629},{"$f":"SUMIFS(raw_annual_energy!$E:$E,Lists!$S:$S,'Portfolio Analytics'!$C179,raw_annual_energy!$D:$D,M$166,raw_annual_energy!$A:$A,mainzone)/1000+SUMIFS(raw_annual_energy!$E:$E,Lists!$S:$S,'Portfolio Analytics'!$C179,raw_annual_energy!$D:$D,M$166,raw_annual_energy!$A:$A,\"CAISO_NW_Hydro\")/1000-(SUMIFS(raw_transmission_flows!$G:$G,raw_transmission_flows!$C:$C,\"CAISO_NW_Hydro\",raw_transmission_flows!$B:$B,\"NW\",raw_transmission_flows!$D:$D,M$166)-SUMIFS(raw_transmission_flows!$G:$G,raw_transmission_flows!$B:$B,\"CAISO_NW_Hydro\",raw_transmission_flows!$C:$C,\"CAISO\",raw_transmission_flows!$D:$D,M$166))/1000","v":10829.644438969244},{"$f":"SUMIFS(raw_annual_energy!$E:$E,Lists!$S:$S,'Portfolio Analytics'!$C179,raw_annual_energy!$D:$D,N$166,raw_annual_energy!$A:$A,mainzone)/1000+SUMIFS(raw_annual_energy!$E:$E,Lists!$S:$S,'Portfolio Analytics'!$C179,raw_annual_energy!$D:$D,N$166,raw_annual_energy!$A:$A,\"CAISO_NW_Hydro\")/1000-(SUMIFS(raw_transmission_flows!$G:$G,raw_transmission_flows!$C:$C,\"CAISO_NW_Hydro\",raw_transmission_flows!$B:$B,\"NW\",raw_transmission_flows!$D:$D,N$166)-SUMIFS(raw_transmission_flows!$G:$G,raw_transmission_flows!$B:$B,\"CAISO_NW_Hydro\",raw_transmission_flows!$C:$C,\"CAISO\",raw_transmission_flows!$D:$D,N$166))/1000","v":10827.107782118452},{"$f":"SUMIFS(raw_annual_energy!$E:$E,Lists!$S:$S,'Portfolio Analytics'!$C179,raw_annual_energy!$D:$D,O$166,raw_annual_energy!$A:$A,mainzone)/1000+SUMIFS(raw_annual_energy!$E:$E,Lists!$S:$S,'Portfolio Analytics'!$C179,raw_annual_energy!$D:$D,O$166,raw_annual_energy!$A:$A,\"CAISO_NW_Hydro\")/1000-(SUMIFS(raw_transmission_flows!$G:$G,raw_transmission_flows!$C:$C,\"CAISO_NW_Hydro\",raw_transmission_flows!$B:$B,\"NW\",raw_transmission_flows!$D:$D,O$166)-SUMIFS(raw_transmission_flows!$G:$G,raw_transmission_flows!$B:$B,\"CAISO_NW_Hydro\",raw_transmission_flows!$C:$C,\"CAISO\",raw_transmission_flows!$D:$D,O$166))/1000","v":0},{"$f":"SUMIFS(raw_annual_energy!$E:$E,Lists!$S:$S,'Portfolio Analytics'!$C179,raw_annual_energy!$D:$D,P$166,raw_annual_energy!$A:$A,mainzone)/1000+SUMIFS(raw_annual_energy!$E:$E,Lists!$S:$S,'Portfolio Analytics'!$C179,raw_annual_energy!$D:$D,P$166,raw_annual_energy!$A:$A,\"CAISO_NW_Hydro\")/1000-(SUMIFS(raw_transmission_flows!$G:$G,raw_transmission_flows!$C:$C,\"CAISO_NW_Hydro\",raw_transmission_flows!$B:$B,\"NW\",raw_transmission_flows!$D:$D,P$166)-SUMIFS(raw_transmission_flows!$G:$G,raw_transmission_flows!$B:$B,\"CAISO_NW_Hydro\",raw_transmission_flows!$C:$C,\"CAISO\",raw_transmission_flows!$D:$D,P$166))/1000","v":11628.313387725702},{"$f":"SUMIFS(raw_annual_energy!$E:$E,Lists!$S:$S,'Portfolio Analytics'!$C179,raw_annual_energy!$D:$D,Q$166,raw_annual_energy!$A:$A,mainzone)/1000+SUMIFS(raw_annual_energy!$E:$E,Lists!$S:$S,'Portfolio Analytics'!$C179,raw_annual_energy!$D:$D,Q$166,raw_annual_energy!$A:$A,\"CAISO_NW_Hydro\")/1000-(SUMIFS(raw_transmission_flows!$G:$G,raw_transmission_flows!$C:$C,\"CAISO_NW_Hydro\",raw_transmission_flows!$B:$B,\"NW\",raw_transmission_flows!$D:$D,Q$166)-SUMIFS(raw_transmission_flows!$G:$G,raw_transmission_flows!$B:$B,\"CAISO_NW_Hydro\",raw_transmission_flows!$C:$C,\"CAISO\",raw_transmission_flows!$D:$D,Q$166))/1000","v":0},{"$f":"SUMIFS(raw_annual_energy!$E:$E,Lists!$S:$S,'Portfolio Analytics'!$C179,raw_annual_energy!$D:$D,R$166,raw_annual_energy!$A:$A,mainzone)/1000+SUMIFS(raw_annual_energy!$E:$E,Lists!$S:$S,'Portfolio Analytics'!$C179,raw_annual_energy!$D:$D,R$166,raw_annual_energy!$A:$A,\"CAISO_NW_Hydro\")/1000-(SUMIFS(raw_transmission_flows!$G:$G,raw_transmission_flows!$C:$C,\"CAISO_NW_Hydro\",raw_transmission_flows!$B:$B,\"NW\",raw_transmission_flows!$D:$D,R$166)-SUMIFS(raw_transmission_flows!$G:$G,raw_transmission_flows!$B:$B,\"CAISO_NW_Hydro\",raw_transmission_flows!$C:$C,\"CAISO\",raw_transmission_flows!$D:$D,R$166))/1000","v":0},{"$f":"SUMIFS(raw_annual_energy!$E:$E,Lists!$S:$S,'Portfolio Analytics'!$C179,raw_annual_energy!$D:$D,S$166,raw_annual_energy!$A:$A,mainzone)/1000+SUMIFS(raw_annual_energy!$E:$E,Lists!$S:$S,'Portfolio Analytics'!$C179,raw_annual_energy!$D:$D,S$166,raw_annual_energy!$A:$A,\"CAISO_NW_Hydro\")/1000-(SUMIFS(raw_transmission_flows!$G:$G,raw_transmission_flows!$C:$C,\"CAISO_NW_Hydro\",raw_transmission_flows!$B:$B,\"NW\",raw_transmission_flows!$D:$D,S$166)-SUMIFS(raw_transmission_flows!$G:$G,raw_transmission_flows!$B:$B,\"CAISO_NW_Hydro\",raw_transmission_flows!$C:$C,\"CAISO\",raw_transmission_flows!$D:$D,S$166))/1000","v":0},{"$f":"SUMIFS(raw_annual_energy!$E:$E,Lists!$S:$S,'Portfolio Analytics'!$C179,raw_annual_energy!$D:$D,T$166,raw_annual_energy!$A:$A,mainzone)/1000+SUMIFS(raw_annual_energy!$E:$E,Lists!$S:$S,'Portfolio Analytics'!$C179,raw_annual_energy!$D:$D,T$166,raw_annual_energy!$A:$A,\"CAISO_NW_Hydro\")/1000-(SUMIFS(raw_transmission_flows!$G:$G,raw_transmission_flows!$C:$C,\"CAISO_NW_Hydro\",raw_transmission_flows!$B:$B,\"NW\",raw_transmission_flows!$D:$D,T$166)-SUMIFS(raw_transmission_flows!$G:$G,raw_transmission_flows!$B:$B,\"CAISO_NW_Hydro\",raw_transmission_flows!$C:$C,\"CAISO\",raw_transmission_flows!$D:$D,T$166))/1000","v":11297.86821502505},{"$f":"SUMIFS(raw_annual_energy!$E:$E,Lists!$S:$S,'Portfolio Analytics'!$C179,raw_annual_energy!$D:$D,U$166,raw_annual_energy!$A:$A,mainzone)/1000+SUMIFS(raw_annual_energy!$E:$E,Lists!$S:$S,'Portfolio Analytics'!$C179,raw_annual_energy!$D:$D,U$166,raw_annual_energy!$A:$A,\"CAISO_NW_Hydro\")/1000-(SUMIFS(raw_transmission_flows!$G:$G,raw_transmission_flows!$C:$C,\"CAISO_NW_Hydro\",raw_transmission_flows!$B:$B,\"NW\",raw_transmission_flows!$D:$D,U$166)-SUMIFS(raw_transmission_flows!$G:$G,raw_transmission_flows!$B:$B,\"CAISO_NW_Hydro\",raw_transmission_flows!$C:$C,\"CAISO\",raw_transmission_flows!$D:$D,U$166))/1000","v":0},{"$f":"SUMIFS(raw_annual_energy!$E:$E,Lists!$S:$S,'Portfolio Analytics'!$C179,raw_annual_energy!$D:$D,V$166,raw_annual_energy!$A:$A,mainzone)/1000+SUMIFS(raw_annual_energy!$E:$E,Lists!$S:$S,'Portfolio Analytics'!$C179,raw_annual_energy!$D:$D,V$166,raw_annual_energy!$A:$A,\"CAISO_NW_Hydro\")/1000-(SUMIFS(raw_transmission_flows!$G:$G,raw_transmission_flows!$C:$C,\"CAISO_NW_Hydro\",raw_transmission_flows!$B:$B,\"NW\",raw_transmission_flows!$D:$D,V$166)-SUMIFS(raw_transmission_flows!$G:$G,raw_transmission_flows!$B:$B,\"CAISO_NW_Hydro\",raw_transmission_flows!$C:$C,\"CAISO\",raw_transmission_flows!$D:$D,V$166))/1000","v":0},{"$f":"SUMIFS(raw_annual_energy!$E:$E,Lists!$S:$S,'Portfolio Analytics'!$C179,raw_annual_energy!$D:$D,W$166,raw_annual_energy!$A:$A,mainzone)/1000+SUMIFS(raw_annual_energy!$E:$E,Lists!$S:$S,'Portfolio Analytics'!$C179,raw_annual_energy!$D:$D,W$166,raw_annual_energy!$A:$A,\"CAISO_NW_Hydro\")/1000-(SUMIFS(raw_transmission_flows!$G:$G,raw_transmission_flows!$C:$C,\"CAISO_NW_Hydro\",raw_transmission_flows!$B:$B,\"NW\",raw_transmission_flows!$D:$D,W$166)-SUMIFS(raw_transmission_flows!$G:$G,raw_transmission_flows!$B:$B,\"CAISO_NW_Hydro\",raw_transmission_flows!$C:$C,\"CAISO\",raw_transmission_flows!$D:$D,W$166))/1000","v":0},{"$f":"SUMIFS(raw_annual_energy!$E:$E,Lists!$S:$S,'Portfolio Analytics'!$C179,raw_annual_energy!$D:$D,X$166,raw_annual_energy!$A:$A,mainzone)/1000+SUMIFS(raw_annual_energy!$E:$E,Lists!$S:$S,'Portfolio Analytics'!$C179,raw_annual_energy!$D:$D,X$166,raw_annual_energy!$A:$A,\"CAISO_NW_Hydro\")/1000-(SUMIFS(raw_transmission_flows!$G:$G,raw_transmission_flows!$C:$C,\"CAISO_NW_Hydro\",raw_transmission_flows!$B:$B,\"NW\",raw_transmission_flows!$D:$D,X$166)-SUMIFS(raw_transmission_flows!$G:$G,raw_transmission_flows!$B:$B,\"CAISO_NW_Hydro\",raw_transmission_flows!$C:$C,\"CAISO\",raw_transmission_flows!$D:$D,X$166))/1000","v":0},{"$f":"SUMIFS(raw_annual_energy!$E:$E,Lists!$S:$S,'Portfolio Analytics'!$C179,raw_annual_energy!$D:$D,Y$166,raw_annual_energy!$A:$A,mainzone)/1000+SUMIFS(raw_annual_energy!$E:$E,Lists!$S:$S,'Portfolio Analytics'!$C179,raw_annual_energy!$D:$D,Y$166,raw_annual_energy!$A:$A,\"CAISO_NW_Hydro\")/1000-(SUMIFS(raw_transmission_flows!$G:$G,raw_transmission_flows!$C:$C,\"CAISO_NW_Hydro\",raw_transmission_flows!$B:$B,\"NW\",raw_transmission_flows!$D:$D,Y$166)-SUMIFS(raw_transmission_flows!$G:$G,raw_transmission_flows!$B:$B,\"CAISO_NW_Hydro\",raw_transmission_flows!$C:$C,\"CAISO\",raw_transmission_flows!$D:$D,Y$166))/1000","v":0},{"$f":"SUMIFS(raw_annual_energy!$E:$E,Lists!$S:$S,'Portfolio Analytics'!$C179,raw_annual_energy!$D:$D,Z$166,raw_annual_energy!$A:$A,mainzone)/1000+SUMIFS(raw_annual_energy!$E:$E,Lists!$S:$S,'Portfolio Analytics'!$C179,raw_annual_energy!$D:$D,Z$166,raw_annual_energy!$A:$A,\"CAISO_NW_Hydro\")/1000-(SUMIFS(raw_transmission_flows!$G:$G,raw_transmission_flows!$C:$C,\"CAISO_NW_Hydro\",raw_transmission_flows!$B:$B,\"NW\",raw_transmission_flows!$D:$D,Z$166)-SUMIFS(raw_transmission_flows!$G:$G,raw_transmission_flows!$B:$B,\"CAISO_NW_Hydro\",raw_transmission_flows!$C:$C,\"CAISO\",raw_transmission_flows!$D:$D,Z$166))/1000","v":0},{"$f":"SUMIFS(raw_annual_energy!$E:$E,Lists!$S:$S,'Portfolio Analytics'!$C179,raw_annual_energy!$D:$D,AA$166,raw_annual_energy!$A:$A,mainzone)/1000+SUMIFS(raw_annual_energy!$E:$E,Lists!$S:$S,'Portfolio Analytics'!$C179,raw_annual_energy!$D:$D,AA$166,raw_annual_energy!$A:$A,\"CAISO_NW_Hydro\")/1000-(SUMIFS(raw_transmission_flows!$G:$G,raw_transmission_flows!$C:$C,\"CAISO_NW_Hydro\",raw_transmission_flows!$B:$B,\"NW\",raw_transmission_flows!$D:$D,AA$166)-SUMIFS(raw_transmission_flows!$G:$G,raw_transmission_flows!$B:$B,\"CAISO_NW_Hydro\",raw_transmission_flows!$C:$C,\"CAISO\",raw_transmission_flows!$D:$D,AA$166))/1000","v":0},{"$f":"SUMIFS(raw_annual_energy!$E:$E,Lists!$S:$S,'Portfolio Analytics'!$C179,raw_annual_energy!$D:$D,AB$166,raw_annual_energy!$A:$A,mainzone)/1000+SUMIFS(raw_annual_energy!$E:$E,Lists!$S:$S,'Portfolio Analytics'!$C179,raw_annual_energy!$D:$D,AB$166,raw_annual_energy!$A:$A,\"CAISO_NW_Hydro\")/1000-(SUMIFS(raw_transmission_flows!$G:$G,raw_transmission_flows!$C:$C,\"CAISO_NW_Hydro\",raw_transmission_flows!$B:$B,\"NW\",raw_transmission_flows!$D:$D,AB$166)-SUMIFS(raw_transmission_flows!$G:$G,raw_transmission_flows!$B:$B,\"CAISO_NW_Hydro\",raw_transmission_flows!$C:$C,\"CAISO\",raw_transmission_flows!$D:$D,AB$166))/1000","v":0},{"$f":"SUMIFS(raw_annual_energy!$E:$E,Lists!$S:$S,'Portfolio Analytics'!$C179,raw_annual_energy!$D:$D,AC$166,raw_annual_energy!$A:$A,mainzone)/1000+SUMIFS(raw_annual_energy!$E:$E,Lists!$S:$S,'Portfolio Analytics'!$C179,raw_annual_energy!$D:$D,AC$166,raw_annual_energy!$A:$A,\"CAISO_NW_Hydro\")/1000-(SUMIFS(raw_transmission_flows!$G:$G,raw_transmission_flows!$C:$C,\"CAISO_NW_Hydro\",raw_transmission_flows!$B:$B,\"NW\",raw_transmission_flows!$D:$D,AC$166)-SUMIFS(raw_transmission_flows!$G:$G,raw_transmission_flows!$B:$B,\"CAISO_NW_Hydro\",raw_transmission_flows!$C:$C,\"CAISO\",raw_transmission_flows!$D:$D,AC$166))/1000","v":0},{"$f":"SUMIFS(raw_annual_energy!$E:$E,Lists!$S:$S,'Portfolio Analytics'!$C179,raw_annual_energy!$D:$D,AD$166,raw_annual_energy!$A:$A,mainzone)/1000+SUMIFS(raw_annual_energy!$E:$E,Lists!$S:$S,'Portfolio Analytics'!$C179,raw_annual_energy!$D:$D,AD$166,raw_annual_energy!$A:$A,\"CAISO_NW_Hydro\")/1000-(SUMIFS(raw_transmission_flows!$G:$G,raw_transmission_flows!$C:$C,\"CAISO_NW_Hydro\",raw_transmission_flows!$B:$B,\"NW\",raw_transmission_flows!$D:$D,AD$166)-SUMIFS(raw_transmission_flows!$G:$G,raw_transmission_flows!$B:$B,\"CAISO_NW_Hydro\",raw_transmission_flows!$C:$C,\"CAISO\",raw_transmission_flows!$D:$D,AD$166))/1000","v":0},{"$f":"SUMIFS(raw_annual_energy!$E:$E,Lists!$S:$S,'Portfolio Analytics'!$C179,raw_annual_energy!$D:$D,AE$166,raw_annual_energy!$A:$A,mainzone)/1000+SUMIFS(raw_annual_energy!$E:$E,Lists!$S:$S,'Portfolio Analytics'!$C179,raw_annual_energy!$D:$D,AE$166,raw_annual_energy!$A:$A,\"CAISO_NW_Hydro\")/1000-(SUMIFS(raw_transmission_flows!$G:$G,raw_transmission_flows!$C:$C,\"CAISO_NW_Hydro\",raw_transmission_flows!$B:$B,\"NW\",raw_transmission_flows!$D:$D,AE$166)-SUMIFS(raw_transmission_flows!$G:$G,raw_transmission_flows!$B:$B,\"CAISO_NW_Hydro\",raw_transmission_flows!$C:$C,\"CAISO\",raw_transmission_flows!$D:$D,AE$166))/1000","v":0},{"$f":"SUMIFS(raw_annual_energy!$E:$E,Lists!$S:$S,'Portfolio Analytics'!$C179,raw_annual_energy!$D:$D,AF$166,raw_annual_energy!$A:$A,mainzone)/1000+SUMIFS(raw_annual_energy!$E:$E,Lists!$S:$S,'Portfolio Analytics'!$C179,raw_annual_energy!$D:$D,AF$166,raw_annual_energy!$A:$A,\"CAISO_NW_Hydro\")/1000-(SUMIFS(raw_transmission_flows!$G:$G,raw_transmission_flows!$C:$C,\"CAISO_NW_Hydro\",raw_transmission_flows!$B:$B,\"NW\",raw_transmission_flows!$D:$D,AF$166)-SUMIFS(raw_transmission_flows!$G:$G,raw_transmission_flows!$B:$B,\"CAISO_NW_Hydro\",raw_transmission_flows!$C:$C,\"CAISO\",raw_transmission_flows!$D:$D,AF$166))/1000","v":0},{"$f":"SUMIFS(raw_annual_energy!$E:$E,Lists!$S:$S,'Portfolio Analytics'!$C179,raw_annual_energy!$D:$D,AG$166,raw_annual_energy!$A:$A,mainzone)/1000+SUMIFS(raw_annual_energy!$E:$E,Lists!$S:$S,'Portfolio Analytics'!$C179,raw_annual_energy!$D:$D,AG$166,raw_annual_energy!$A:$A,\"CAISO_NW_Hydro\")/1000-(SUMIFS(raw_transmission_flows!$G:$G,raw_transmission_flows!$C:$C,\"CAISO_NW_Hydro\",raw_transmission_flows!$B:$B,\"NW\",raw_transmission_flows!$D:$D,AG$166)-SUMIFS(raw_transmission_flows!$G:$G,raw_transmission_flows!$B:$B,\"CAISO_NW_Hydro\",raw_transmission_flows!$C:$C,\"CAISO\",raw_transmission_flows!$D:$D,AG$166))/1000","v":0},{"$f":"SUMIFS(raw_annual_energy!$E:$E,Lists!$S:$S,'Portfolio Analytics'!$C179,raw_annual_energy!$D:$D,AH$166,raw_annual_energy!$A:$A,mainzone)/1000+SUMIFS(raw_annual_energy!$E:$E,Lists!$S:$S,'Portfolio Analytics'!$C179,raw_annual_energy!$D:$D,AH$166,raw_annual_energy!$A:$A,\"CAISO_NW_Hydro\")/1000-(SUMIFS(raw_transmission_flows!$G:$G,raw_transmission_flows!$C:$C,\"CAISO_NW_Hydro\",raw_transmission_flows!$B:$B,\"NW\",raw_transmission_flows!$D:$D,AH$166)-SUMIFS(raw_transmission_flows!$G:$G,raw_transmission_flows!$B:$B,\"CAISO_NW_Hydro\",raw_transmission_flows!$C:$C,\"CAISO\",raw_transmission_flows!$D:$D,AH$166))/1000","v":0},{"$f":"SUMIFS(raw_annual_energy!$E:$E,Lists!$S:$S,'Portfolio Analytics'!$C179,raw_annual_energy!$D:$D,AI$166,raw_annual_energy!$A:$A,mainzone)/1000+SUMIFS(raw_annual_energy!$E:$E,Lists!$S:$S,'Portfolio Analytics'!$C179,raw_annual_energy!$D:$D,AI$166,raw_annual_energy!$A:$A,\"CAISO_NW_Hydro\")/1000-(SUMIFS(raw_transmission_flows!$G:$G,raw_transmission_flows!$C:$C,\"CAISO_NW_Hydro\",raw_transmission_flows!$B:$B,\"NW\",raw_transmission_flows!$D:$D,AI$166)-SUMIFS(raw_transmission_flows!$G:$G,raw_transmission_flows!$B:$B,\"CAISO_NW_Hydro\",raw_transmission_flows!$C:$C,\"CAISO\",raw_transmission_flows!$D:$D,AI$166))/1000","v":7668.7933027460895},{"$f":"SUMIFS(raw_annual_energy!$E:$E,Lists!$S:$S,'Portfolio Analytics'!$C179,raw_annual_energy!$D:$D,AJ$166,raw_annual_energy!$A:$A,mainzone)/1000+SUMIFS(raw_annual_energy!$E:$E,Lists!$S:$S,'Portfolio Analytics'!$C179,raw_annual_energy!$D:$D,AJ$166,raw_annual_energy!$A:$A,\"CAISO_NW_Hydro\")/1000-(SUMIFS(raw_transmission_flows!$G:$G,raw_transmission_flows!$C:$C,\"CAISO_NW_Hydro\",raw_transmission_flows!$B:$B,\"NW\",raw_transmission_flows!$D:$D,AJ$166)-SUMIFS(raw_transmission_flows!$G:$G,raw_transmission_flows!$B:$B,\"CAISO_NW_Hydro\",raw_transmission_flows!$C:$C,\"CAISO\",raw_transmission_flows!$D:$D,AJ$166))/1000","v":0},{"$f":"SUMIFS(raw_annual_energy!$E:$E,Lists!$S:$S,'Portfolio Analytics'!$C179,raw_annual_energy!$D:$D,AK$166,raw_annual_energy!$A:$A,mainzone)/1000+SUMIFS(raw_annual_energy!$E:$E,Lists!$S:$S,'Portfolio Analytics'!$C179,raw_annual_energy!$D:$D,AK$166,raw_annual_energy!$A:$A,\"CAISO_NW_Hydro\")/1000-(SUMIFS(raw_transmission_flows!$G:$G,raw_transmission_flows!$C:$C,\"CAISO_NW_Hydro\",raw_transmission_flows!$B:$B,\"NW\",raw_transmission_flows!$D:$D,AK$166)-SUMIFS(raw_transmission_flows!$G:$G,raw_transmission_flows!$B:$B,\"CAISO_NW_Hydro\",raw_transmission_flows!$C:$C,\"CAISO\",raw_transmission_flows!$D:$D,AK$166))/1000","v":0},{"$f":"SUMIFS(raw_annual_energy!$E:$E,Lists!$S:$S,'Portfolio Analytics'!$C179,raw_annual_energy!$D:$D,AL$166,raw_annual_energy!$A:$A,mainzone)/1000+SUMIFS(raw_annual_energy!$E:$E,Lists!$S:$S,'Portfolio Analytics'!$C179,raw_annual_energy!$D:$D,AL$166,raw_annual_energy!$A:$A,\"CAISO_NW_Hydro\")/1000-(SUMIFS(raw_transmission_flows!$G:$G,raw_transmission_flows!$C:$C,\"CAISO_NW_Hydro\",raw_transmission_flows!$B:$B,\"NW\",raw_transmission_flows!$D:$D,AL$166)-SUMIFS(raw_transmission_flows!$G:$G,raw_transmission_flows!$B:$B,\"CAISO_NW_Hydro\",raw_transmission_flows!$C:$C,\"CAISO\",raw_transmission_flows!$D:$D,AL$166))/1000","v":0},{"$f":"SUMIFS(raw_annual_energy!$E:$E,Lists!$S:$S,'Portfolio Analytics'!$C179,raw_annual_energy!$D:$D,AM$166,raw_annual_energy!$A:$A,mainzone)/1000+SUMIFS(raw_annual_energy!$E:$E,Lists!$S:$S,'Portfolio Analytics'!$C179,raw_annual_energy!$D:$D,AM$166,raw_annual_energy!$A:$A,\"CAISO_NW_Hydro\")/1000-(SUMIFS(raw_transmission_flows!$G:$G,raw_transmission_flows!$C:$C,\"CAISO_NW_Hydro\",raw_transmission_flows!$B:$B,\"NW\",raw_transmission_flows!$D:$D,AM$166)-SUMIFS(raw_transmission_flows!$G:$G,raw_transmission_flows!$B:$B,\"CAISO_NW_Hydro\",raw_transmission_flows!$C:$C,\"CAISO\",raw_transmission_flows!$D:$D,AM$166))/1000","v":0},{"$f":"SUMIFS(raw_annual_energy!$E:$E,Lists!$S:$S,'Portfolio Analytics'!$C179,raw_annual_energy!$D:$D,AN$166,raw_annual_energy!$A:$A,mainzone)/1000+SUMIFS(raw_annual_energy!$E:$E,Lists!$S:$S,'Portfolio Analytics'!$C179,raw_annual_energy!$D:$D,AN$166,raw_annual_energy!$A:$A,\"CAISO_NW_Hydro\")/1000-(SUMIFS(raw_transmission_flows!$G:$G,raw_transmission_flows!$C:$C,\"CAISO_NW_Hydro\",raw_transmission_flows!$B:$B,\"NW\",raw_transmission_flows!$D:$D,AN$166)-SUMIFS(raw_transmission_flows!$G:$G,raw_transmission_flows!$B:$B,\"CAISO_NW_Hydro\",raw_transmission_flows!$C:$C,\"CAISO\",raw_transmission_flows!$D:$D,AN$166))/1000","v":0}]
[null,null,{"$f":"Lists!$B18","v":"CAISO_Conventional_DR"},"GWh",{"$f":"SUMIFS(raw_annual_energy!$E:$E,Lists!$S:$S,'Portfolio Analytics'!$C180,raw_annual_energy!$D:$D,E$166,raw_annual_energy!$A:$A,mainzone)/1000+SUMIFS(raw_annual_energy!$E:$E,Lists!$S:$S,'Portfolio Analytics'!$C180,raw_annual_energy!$D:$D,E$166,raw_annual_energy!$A:$A,\"CAISO_NW_Hydro\")/1000","v":0},{"$f":"SUMIFS(raw_annual_energy!$E:$E,Lists!$S:$S,'Portfolio Analytics'!$C180,raw_annual_energy!$D:$D,F$166,raw_annual_energy!$A:$A,mainzone)/1000+SUMIFS(raw_annual_energy!$E:$E,Lists!$S:$S,'Portfolio Analytics'!$C180,raw_annual_energy!$D:$D,F$166,raw_annual_energy!$A:$A,\"CAISO_NW_Hydro\")/1000","v":0},{"$f":"SUMIFS(raw_annual_energy!$E:$E,Lists!$S:$S,'Portfolio Analytics'!$C180,raw_annual_energy!$D:$D,G$166,raw_annual_energy!$A:$A,mainzone)/1000+SUMIFS(raw_annual_energy!$E:$E,Lists!$S:$S,'Portfolio Analytics'!$C180,raw_annual_energy!$D:$D,G$166,raw_annual_energy!$A:$A,\"CAISO_NW_Hydro\")/1000","v":0},{"$f":"SUMIFS(raw_annual_energy!$E:$E,Lists!$S:$S,'Portfolio Analytics'!$C180,raw_annual_energy!$D:$D,H$166,raw_annual_energy!$A:$A,mainzone)/1000+SUMIFS(raw_annual_energy!$E:$E,Lists!$S:$S,'Portfolio Analytics'!$C180,raw_annual_energy!$D:$D,H$166,raw_annual_energy!$A:$A,\"CAISO_NW_Hydro\")/1000","v":0},{"$f":"SUMIFS(raw_annual_energy!$E:$E,Lists!$S:$S,'Portfolio Analytics'!$C180,raw_annual_energy!$D:$D,I$166,raw_annual_energy!$A:$A,mainzone)/1000+SUMIFS(raw_annual_energy!$E:$E,Lists!$S:$S,'Portfolio Analytics'!$C180,raw_annual_energy!$D:$D,I$166,raw_annual_energy!$A:$A,\"CAISO_NW_Hydro\")/1000","v":0},{"$f":"SUMIFS(raw_annual_energy!$E:$E,Lists!$S:$S,'Portfolio Analytics'!$C180,raw_annual_energy!$D:$D,J$166,raw_annual_energy!$A:$A,mainzone)/1000+SUMIFS(raw_annual_energy!$E:$E,Lists!$S:$S,'Portfolio Analytics'!$C180,raw_annual_energy!$D:$D,J$166,raw_annual_energy!$A:$A,\"CAISO_NW_Hydro\")/1000","v":0},{"$f":"SUMIFS(raw_annual_energy!$E:$E,Lists!$S:$S,'Portfolio Analytics'!$C180,raw_annual_energy!$D:$D,K$166,raw_annual_energy!$A:$A,mainzone)/1000+SUMIFS(raw_annual_energy!$E:$E,Lists!$S:$S,'Portfolio Analytics'!$C180,raw_annual_energy!$D:$D,K$166,raw_annual_energy!$A:$A,\"CAISO_NW_Hydro\")/1000","v":0},{"$f":"SUMIFS(raw_annual_energy!$E:$E,Lists!$S:$S,'Portfolio Analytics'!$C180,raw_annual_energy!$D:$D,L$166,raw_annual_energy!$A:$A,mainzone)/1000+SUMIFS(raw_annual_energy!$E:$E,Lists!$S:$S,'Portfolio Analytics'!$C180,raw_annual_energy!$D:$D,L$166,raw_annual_energy!$A:$A,\"CAISO_NW_Hydro\")/1000","v":0},{"$f":"SUMIFS(raw_annual_energy!$E:$E,Lists!$S:$S,'Portfolio Analytics'!$C180,raw_annual_energy!$D:$D,M$166,raw_annual_energy!$A:$A,mainzone)/1000+SUMIFS(raw_annual_energy!$E:$E,Lists!$S:$S,'Portfolio Analytics'!$C180,raw_annual_energy!$D:$D,M$166,raw_annual_energy!$A:$A,\"CAISO_NW_Hydro\")/1000","v":0},{"$f":"SUMIFS(raw_annual_energy!$E:$E,Lists!$S:$S,'Portfolio Analytics'!$C180,raw_annual_energy!$D:$D,N$166,raw_annual_energy!$A:$A,mainzone)/1000+SUMIFS(raw_annual_energy!$E:$E,Lists!$S:$S,'Portfolio Analytics'!$C180,raw_annual_energy!$D:$D,N$166,raw_annual_energy!$A:$A,\"CAISO_NW_Hydro\")/1000","v":0},{"$f":"SUMIFS(raw_annual_energy!$E:$E,Lists!$S:$S,'Portfolio Analytics'!$C180,raw_annual_energy!$D:$D,O$166,raw_annual_energy!$A:$A,mainzone)/1000+SUMIFS(raw_annual_energy!$E:$E,Lists!$S:$S,'Portfolio Analytics'!$C180,raw_annual_energy!$D:$D,O$166,raw_annual_energy!$A:$A,\"CAISO_NW_Hydro\")/1000","v":0},{"$f":"SUMIFS(raw_annual_energy!$E:$E,Lists!$S:$S,'Portfolio Analytics'!$C180,raw_annual_energy!$D:$D,P$166,raw_annual_energy!$A:$A,mainzone)/1000+SUMIFS(raw_annual_energy!$E:$E,Lists!$S:$S,'Portfolio Analytics'!$C180,raw_annual_energy!$D:$D,P$166,raw_annual_energy!$A:$A,\"CAISO_NW_Hydro\")/1000","v":0},{"$f":"SUMIFS(raw_annual_energy!$E:$E,Lists!$S:$S,'Portfolio Analytics'!$C180,raw_annual_energy!$D:$D,Q$166,raw_annual_energy!$A:$A,mainzone)/1000+SUMIFS(raw_annual_energy!$E:$E,Lists!$S:$S,'Portfolio Analytics'!$C180,raw_annual_energy!$D:$D,Q$166,raw_annual_energy!$A:$A,\"CAISO_NW_Hydro\")/1000","v":0},{"$f":"SUMIFS(raw_annual_energy!$E:$E,Lists!$S:$S,'Portfolio Analytics'!$C180,raw_annual_energy!$D:$D,R$166,raw_annual_energy!$A:$A,mainzone)/1000+SUMIFS(raw_annual_energy!$E:$E,Lists!$S:$S,'Portfolio Analytics'!$C180,raw_annual_energy!$D:$D,R$166,raw_annual_energy!$A:$A,\"CAISO_NW_Hydro\")/1000","v":0},{"$f":"SUMIFS(raw_annual_energy!$E:$E,Lists!$S:$S,'Portfolio Analytics'!$C180,raw_annual_energy!$D:$D,S$166,raw_annual_energy!$A:$A,mainzone)/1000+SUMIFS(raw_annual_energy!$E:$E,Lists!$S:$S,'Portfolio Analytics'!$C180,raw_annual_energy!$D:$D,S$166,raw_annual_energy!$A:$A,\"CAISO_NW_Hydro\")/1000","v":0},{"$f":"SUMIFS(raw_annual_energy!$E:$E,Lists!$S:$S,'Portfolio Analytics'!$C180,raw_annual_energy!$D:$D,T$166,raw_annual_energy!$A:$A,mainzone)/1000+SUMIFS(raw_annual_energy!$E:$E,Lists!$S:$S,'Portfolio Analytics'!$C180,raw_annual_energy!$D:$D,T$166,raw_annual_energy!$A:$A,\"CAISO_NW_Hydro\")/1000","v":0},{"$f":"SUMIFS(raw_annual_energy!$E:$E,Lists!$S:$S,'Portfolio Analytics'!$C180,raw_annual_energy!$D:$D,U$166,raw_annual_energy!$A:$A,mainzone)/1000+SUMIFS(raw_annual_energy!$E:$E,Lists!$S:$S,'Portfolio Analytics'!$C180,raw_annual_energy!$D:$D,U$166,raw_annual_energy!$A:$A,\"CAISO_NW_Hydro\")/1000","v":0},{"$f":"SUMIFS(raw_annual_energy!$E:$E,Lists!$S:$S,'Portfolio Analytics'!$C180,raw_annual_energy!$D:$D,V$166,raw_annual_energy!$A:$A,mainzone)/1000+SUMIFS(raw_annual_energy!$E:$E,Lists!$S:$S,'Portfolio Analytics'!$C180,raw_annual_energy!$D:$D,V$166,raw_annual_energy!$A:$A,\"CAISO_NW_Hydro\")/1000","v":0},{"$f":"SUMIFS(raw_annual_energy!$E:$E,Lists!$S:$S,'Portfolio Analytics'!$C180,raw_annual_energy!$D:$D,W$166,raw_annual_energy!$A:$A,mainzone)/1000+SUMIFS(raw_annual_energy!$E:$E,Lists!$S:$S,'Portfolio Analytics'!$C180,raw_annual_energy!$D:$D,W$166,raw_annual_energy!$A:$A,\"CAISO_NW_Hydro\")/1000","v":0},{"$f":"SUMIFS(raw_annual_energy!$E:$E,Lists!$S:$S,'Portfolio Analytics'!$C180,raw_annual_energy!$D:$D,X$166,raw_annual_energy!$A:$A,mainzone)/1000+SUMIFS(raw_annual_energy!$E:$E,Lists!$S:$S,'Portfolio Analytics'!$C180,raw_annual_energy!$D:$D,X$166,raw_annual_energy!$A:$A,\"CAISO_NW_Hydro\")/1000","v":0},{"$f":"SUMIFS(raw_annual_energy!$E:$E,Lists!$S:$S,'Portfolio Analytics'!$C180,raw_annual_energy!$D:$D,Y$166,raw_annual_energy!$A:$A,mainzone)/1000+SUMIFS(raw_annual_energy!$E:$E,Lists!$S:$S,'Portfolio Analytics'!$C180,raw_annual_energy!$D:$D,Y$166,raw_annual_energy!$A:$A,\"CAISO_NW_Hydro\")/1000","v":0},{"$f":"SUMIFS(raw_annual_energy!$E:$E,Lists!$S:$S,'Portfolio Analytics'!$C180,raw_annual_energy!$D:$D,Z$166,raw_annual_energy!$A:$A,mainzone)/1000+SUMIFS(raw_annual_energy!$E:$E,Lists!$S:$S,'Portfolio Analytics'!$C180,raw_annual_energy!$D:$D,Z$166,raw_annual_energy!$A:$A,\"CAISO_NW_Hydro\")/1000","v":0},{"$f":"SUMIFS(raw_annual_energy!$E:$E,Lists!$S:$S,'Portfolio Analytics'!$C180,raw_annual_energy!$D:$D,AA$166,raw_annual_energy!$A:$A,mainzone)/1000+SUMIFS(raw_annual_energy!$E:$E,Lists!$S:$S,'Portfolio Analytics'!$C180,raw_annual_energy!$D:$D,AA$166,raw_annual_energy!$A:$A,\"CAISO_NW_Hydro\")/1000","v":0},{"$f":"SUMIFS(raw_annual_energy!$E:$E,Lists!$S:$S,'Portfolio Analytics'!$C180,raw_annual_energy!$D:$D,AB$166,raw_annual_energy!$A:$A,mainzone)/1000+SUMIFS(raw_annual_energy!$E:$E,Lists!$S:$S,'Portfolio Analytics'!$C180,raw_annual_energy!$D:$D,AB$166,raw_annual_energy!$A:$A,\"CAISO_NW_Hydro\")/1000","v":0},{"$f":"SUMIFS(raw_annual_energy!$E:$E,Lists!$S:$S,'Portfolio Analytics'!$C180,raw_annual_energy!$D:$D,AC$166,raw_annual_energy!$A:$A,mainzone)/1000+SUMIFS(raw_annual_energy!$E:$E,Lists!$S:$S,'Portfolio Analytics'!$C180,raw_annual_energy!$D:$D,AC$166,raw_annual_energy!$A:$A,\"CAISO_NW_Hydro\")/1000","v":0},{"$f":"SUMIFS(raw_annual_energy!$E:$E,Lists!$S:$S,'Portfolio Analytics'!$C180,raw_annual_energy!$D:$D,AD$166,raw_annual_energy!$A:$A,mainzone)/1000+SUMIFS(raw_annual_energy!$E:$E,Lists!$S:$S,'Portfolio Analytics'!$C180,raw_annual_energy!$D:$D,AD$166,raw_annual_energy!$A:$A,\"CAISO_NW_Hydro\")/1000","v":0},{"$f":"SUMIFS(raw_annual_energy!$E:$E,Lists!$S:$S,'Portfolio Analytics'!$C180,raw_annual_energy!$D:$D,AE$166,raw_annual_energy!$A:$A,mainzone)/1000+SUMIFS(raw_annual_energy!$E:$E,Lists!$S:$S,'Portfolio Analytics'!$C180,raw_annual_energy!$D:$D,AE$166,raw_annual_energy!$A:$A,\"CAISO_NW_Hydro\")/1000","v":0},{"$f":"SUMIFS(raw_annual_energy!$E:$E,Lists!$S:$S,'Portfolio Analytics'!$C180,raw_annual_energy!$D:$D,AF$166,raw_annual_energy!$A:$A,mainzone)/1000+SUMIFS(raw_annual_energy!$E:$E,Lists!$S:$S,'Portfolio Analytics'!$C180,raw_annual_energy!$D:$D,AF$166,raw_annual_energy!$A:$A,\"CAISO_NW_Hydro\")/1000","v":0},{"$f":"SUMIFS(raw_annual_energy!$E:$E,Lists!$S:$S,'Portfolio Analytics'!$C180,raw_annual_energy!$D:$D,AG$166,raw_annual_energy!$A:$A,mainzone)/1000+SUMIFS(raw_annual_energy!$E:$E,Lists!$S:$S,'Portfolio Analytics'!$C180,raw_annual_energy!$D:$D,AG$166,raw_annual_energy!$A:$A,\"CAISO_NW_Hydro\")/1000","v":0},{"$f":"SUMIFS(raw_annual_energy!$E:$E,Lists!$S:$S,'Portfolio Analytics'!$C180,raw_annual_energy!$D:$D,AH$166,raw_annual_energy!$A:$A,mainzone)/1000+SUMIFS(raw_annual_energy!$E:$E,Lists!$S:$S,'Portfolio Analytics'!$C180,raw_annual_energy!$D:$D,AH$166,raw_annual_energy!$A:$A,\"CAISO_NW_Hydro\")/1000","v":0},{"$f":"SUMIFS(raw_annual_energy!$E:$E,Lists!$S:$S,'Portfolio Analytics'!$C180,raw_annual_energy!$D:$D,AI$166,raw_annual_energy!$A:$A,mainzone)/1000+SUMIFS(raw_annual_energy!$E:$E,Lists!$S:$S,'Portfolio Analytics'!$C180,raw_annual_energy!$D:$D,AI$166,raw_annual_energy!$A:$A,\"CAISO_NW_Hydro\")/1000","v":0},{"$f":"SUMIFS(raw_annual_energy!$E:$E,Lists!$S:$S,'Portfolio Analytics'!$C180,raw_annual_energy!$D:$D,AJ$166,raw_annual_energy!$A:$A,mainzone)/1000+SUMIFS(raw_annual_energy!$E:$E,Lists!$S:$S,'Portfolio Analytics'!$C180,raw_annual_energy!$D:$D,AJ$166,raw_annual_energy!$A:$A,\"CAISO_NW_Hydro\")/1000","v":0},{"$f":"SUMIFS(raw_annual_energy!$E:$E,Lists!$S:$S,'Portfolio Analytics'!$C180,raw_annual_energy!$D:$D,AK$166,raw_annual_energy!$A:$A,mainzone)/1000+SUMIFS(raw_annual_energy!$E:$E,Lists!$S:$S,'Portfolio Analytics'!$C180,raw_annual_energy!$D:$D,AK$166,raw_annual_energy!$A:$A,\"CAISO_NW_Hydro\")/1000","v":0},{"$f":"SUMIFS(raw_annual_energy!$E:$E,Lists!$S:$S,'Portfolio Analytics'!$C180,raw_annual_energy!$D:$D,AL$166,raw_annual_energy!$A:$A,mainzone)/1000+SUMIFS(raw_annual_energy!$E:$E,Lists!$S:$S,'Portfolio Analytics'!$C180,raw_annual_energy!$D:$D,AL$166,raw_annual_energy!$A:$A,\"CAISO_NW_Hydro\")/1000","v":0},{"$f":"SUMIFS(raw_annual_energy!$E:$E,Lists!$S:$S,'Portfolio Analytics'!$C180,raw_annual_energy!$D:$D,AM$166,raw_annual_energy!$A:$A,mainzone)/1000+SUMIFS(raw_annual_energy!$E:$E,Lists!$S:$S,'Portfolio Analytics'!$C180,raw_annual_energy!$D:$D,AM$166,raw_annual_energy!$A:$A,\"CAISO_NW_Hydro\")/1000","v":0},{"$f":"SUMIFS(raw_annual_energy!$E:$E,Lists!$S:$S,'Portfolio Analytics'!$C180,raw_annual_energy!$D:$D,AN$166,raw_annual_energy!$A:$A,mainzone)/1000+SUMIFS(raw_annual_energy!$E:$E,Lists!$S:$S,'Portfolio Analytics'!$C180,raw_annual_energy!$D:$D,AN$166,raw_annual_energy!$A:$A,\"CAISO_NW_Hydro\")/1000","v":0}]
[null,null,{"$f":"Lists!$B19","v":"Customer_PV"},"GWh",{"$f":"SUMIFS(raw_annual_energy!$E:$E,Lists!$S:$S,'Portfolio Analytics'!$C181,raw_annual_energy!$D:$D,E$166,raw_annual_energy!$A:$A,mainzone)/1000+SUMIFS(raw_annual_energy!$E:$E,Lists!$S:$S,'Portfolio Analytics'!$C181,raw_annual_energy!$D:$D,E$166,raw_annual_energy!$A:$A,\"CAISO_NW_Hydro\")/1000","v":0},{"$f":"SUMIFS(raw_annual_energy!$E:$E,Lists!$S:$S,'Portfolio Analytics'!$C181,raw_annual_energy!$D:$D,F$166,raw_annual_energy!$A:$A,mainzone)/1000+SUMIFS(raw_annual_energy!$E:$E,Lists!$S:$S,'Portfolio Analytics'!$C181,raw_annual_energy!$D:$D,F$166,raw_annual_energy!$A:$A,\"CAISO_NW_Hydro\")/1000","v":0},{"$f":"SUMIFS(raw_annual_energy!$E:$E,Lists!$S:$S,'Portfolio Analytics'!$C181,raw_annual_energy!$D:$D,G$166,raw_annual_energy!$A:$A,mainzone)/1000+SUMIFS(raw_annual_energy!$E:$E,Lists!$S:$S,'Portfolio Analytics'!$C181,raw_annual_energy!$D:$D,G$166,raw_annual_energy!$A:$A,\"CAISO_NW_Hydro\")/1000","v":0},{"$f":"SUMIFS(raw_annual_energy!$E:$E,Lists!$S:$S,'Portfolio Analytics'!$C181,raw_annual_energy!$D:$D,H$166,raw_annual_energy!$A:$A,mainzone)/1000+SUMIFS(raw_annual_energy!$E:$E,Lists!$S:$S,'Portfolio Analytics'!$C181,raw_annual_energy!$D:$D,H$166,raw_annual_energy!$A:$A,\"CAISO_NW_Hydro\")/1000","v":0},{"$f":"SUMIFS(raw_annual_energy!$E:$E,Lists!$S:$S,'Portfolio Analytics'!$C181,raw_annual_energy!$D:$D,I$166,raw_annual_energy!$A:$A,mainzone)/1000+SUMIFS(raw_annual_energy!$E:$E,Lists!$S:$S,'Portfolio Analytics'!$C181,raw_annual_energy!$D:$D,I$166,raw_annual_energy!$A:$A,\"CAISO_NW_Hydro\")/1000","v":0},{"$f":"SUMIFS(raw_annual_energy!$E:$E,Lists!$S:$S,'Portfolio Analytics'!$C181,raw_annual_energy!$D:$D,J$166,raw_annual_energy!$A:$A,mainzone)/1000+SUMIFS(raw_annual_energy!$E:$E,Lists!$S:$S,'Portfolio Analytics'!$C181,raw_annual_energy!$D:$D,J$166,raw_annual_energy!$A:$A,\"CAISO_NW_Hydro\")/1000","v":13782.7275880161},{"$f":"SUMIFS(raw_annual_energy!$E:$E,Lists!$S:$S,'Portfolio Analytics'!$C181,raw_annual_energy!$D:$D,K$166,raw_annual_energy!$A:$A,mainzone)/1000+SUMIFS(raw_annual_energy!$E:$E,Lists!$S:$S,'Portfolio Analytics'!$C181,raw_annual_energy!$D:$D,K$166,raw_annual_energy!$A:$A,\"CAISO_NW_Hydro\")/1000","v":13782.7275880161},{"$f":"SUMIFS(raw_annual_energy!$E:$E,Lists!$S:$S,'Portfolio Analytics'!$C181,raw_annual_energy!$D:$D,L$166,raw_annual_energy!$A:$A,mainzone)/1000+SUMIFS(raw_annual_energy!$E:$E,Lists!$S:$S,'Portfolio Analytics'!$C181,raw_annual_energy!$D:$D,L$166,raw_annual_energy!$A:$A,\"CAISO_NW_Hydro\")/1000","v":13782.7275880161},{"$f":"SUMIFS(raw_annual_energy!$E:$E,Lists!$S:$S,'Portfolio Analytics'!$C181,raw_annual_energy!$D:$D,M$166,raw_annual_energy!$A:$A,mainzone)/1000+SUMIFS(raw_annual_energy!$E:$E,Lists!$S:$S,'Portfolio Analytics'!$C181,raw_annual_energy!$D:$D,M$166,raw_annual_energy!$A:$A,\"CAISO_NW_Hydro\")/1000","v":13782.7275880161},{"$f":"SUMIFS(raw_annual_energy!$E:$E,Lists!$S:$S,'Portfolio Analytics'!$C181,raw_annual_energy!$D:$D,N$166,raw_annual_energy!$A:$A,mainzone)/1000+SUMIFS(raw_annual_energy!$E:$E,Lists!$S:$S,'Portfolio Analytics'!$C181,raw_annual_energy!$D:$D,N$166,raw_annual_energy!$A:$A,\"CAISO_NW_Hydro\")/1000","v":13782.7275880161},{"$f":"SUMIFS(raw_annual_energy!$E:$E,Lists!$S:$S,'Portfolio Analytics'!$C181,raw_annual_energy!$D:$D,O$166,raw_annual_energy!$A:$A,mainzone)/1000+SUMIFS(raw_annual_energy!$E:$E,Lists!$S:$S,'Portfolio Analytics'!$C181,raw_annual_energy!$D:$D,O$166,raw_annual_energy!$A:$A,\"CAISO_NW_Hydro\")/1000","v":0},{"$f":"SUMIFS(raw_annual_energy!$E:$E,Lists!$S:$S,'Portfolio Analytics'!$C181,raw_annual_energy!$D:$D,P$166,raw_annual_energy!$A:$A,mainzone)/1000+SUMIFS(raw_annual_energy!$E:$E,Lists!$S:$S,'Portfolio Analytics'!$C181,raw_annual_energy!$D:$D,P$166,raw_annual_energy!$A:$A,\"CAISO_NW_Hydro\")/1000","v":13782.7275880161},{"$f":"SUMIFS(raw_annual_energy!$E:$E,Lists!$S:$S,'Portfolio Analytics'!$C181,raw_annual_energy!$D:$D,Q$166,raw_annual_energy!$A:$A,mainzone)/1000+SUMIFS(raw_annual_energy!$E:$E,Lists!$S:$S,'Portfolio Analytics'!$C181,raw_annual_energy!$D:$D,Q$166,raw_annual_energy!$A:$A,\"CAISO_NW_Hydro\")/1000","v":0},{"$f":"SUMIFS(raw_annual_energy!$E:$E,Lists!$S:$S,'Portfolio Analytics'!$C181,raw_annual_energy!$D:$D,R$166,raw_annual_energy!$A:$A,mainzone)/1000+SUMIFS(raw_annual_energy!$E:$E,Lists!$S:$S,'Portfolio Analytics'!$C181,raw_annual_energy!$D:$D,R$166,raw_annual_energy!$A:$A,\"CAISO_NW_Hydro\")/1000","v":0},{"$f":"SUMIFS(raw_annual_energy!$E:$E,Lists!$S:$S,'Portfolio Analytics'!$C181,raw_annual_energy!$D:$D,S$166,raw_annual_energy!$A:$A,mainzone)/1000+SUMIFS(raw_annual_energy!$E:$E,Lists!$S:$S,'Portfolio Analytics'!$C181,raw_annual_energy!$D:$D,S$166,raw_annual_energy!$A:$A,\"CAISO_NW_Hydro\")/1000","v":0},{"$f":"SUMIFS(raw_annual_energy!$E:$E,Lists!$S:$S,'Portfolio Analytics'!$C181,raw_annual_energy!$D:$D,T$166,raw_annual_energy!$A:$A,mainzone)/1000+SUMIFS(raw_annual_energy!$E:$E,Lists!$S:$S,'Portfolio Analytics'!$C181,raw_annual_energy!$D:$D,T$166,raw_annual_energy!$A:$A,\"CAISO_NW_Hydro\")/1000","v":13782.7275880161},{"$f":"SUMIFS(raw_annual_energy!$E:$E,Lists!$S:$S,'Portfolio Analytics'!$C181,raw_annual_energy!$D:$D,U$166,raw_annual_energy!$A:$A,mainzone)/1000+SUMIFS(raw_annual_energy!$E:$E,Lists!$S:$S,'Portfolio Analytics'!$C181,raw_annual_energy!$D:$D,U$166,raw_annual_energy!$A:$A,\"CAISO_NW_Hydro\")/1000","v":0},{"$f":"SUMIFS(raw_annual_energy!$E:$E,Lists!$S:$S,'Portfolio Analytics'!$C181,raw_annual_energy!$D:$D,V$166,raw_annual_energy!$A:$A,mainzone)/1000+SUMIFS(raw_annual_energy!$E:$E,Lists!$S:$S,'Portfolio Analytics'!$C181,raw_annual_energy!$D:$D,V$166,raw_annual_energy!$A:$A,\"CAISO_NW_Hydro\")/1000","v":0},{"$f":"SUMIFS(raw_annual_energy!$E:$E,Lists!$S:$S,'Portfolio Analytics'!$C181,raw_annual_energy!$D:$D,W$166,raw_annual_energy!$A:$A,mainzone)/1000+SUMIFS(raw_annual_energy!$E:$E,Lists!$S:$S,'Portfolio Analytics'!$C181,raw_annual_energy!$D:$D,W$166,raw_annual_energy!$A:$A,\"CAISO_NW_Hydro\")/1000","v":0},{"$f":"SUMIFS(raw_annual_energy!$E:$E,Lists!$S:$S,'Portfolio Analytics'!$C181,raw_annual_energy!$D:$D,X$166,raw_annual_energy!$A:$A,mainzone)/1000+SUMIFS(raw_annual_energy!$E:$E,Lists!$S:$S,'Portfolio Analytics'!$C181,raw_annual_energy!$D:$D,X$166,raw_annual_energy!$A:$A,\"CAISO_NW_Hydro\")/1000","v":0},{"$f":"SUMIFS(raw_annual_energy!$E:$E,Lists!$S:$S,'Portfolio Analytics'!$C181,raw_annual_energy!$D:$D,Y$166,raw_annual_energy!$A:$A,mainzone)/1000+SUMIFS(raw_annual_energy!$E:$E,Lists!$S:$S,'Portfolio Analytics'!$C181,raw_annual_energy!$D:$D,Y$166,raw_annual_energy!$A:$A,\"CAISO_NW_Hydro\")/1000","v":0},{"$f":"SUMIFS(raw_annual_energy!$E:$E,Lists!$S:$S,'Portfolio Analytics'!$C181,raw_annual_energy!$D:$D,Z$166,raw_annual_energy!$A:$A,mainzone)/1000+SUMIFS(raw_annual_energy!$E:$E,Lists!$S:$S,'Portfolio Analytics'!$C181,raw_annual_energy!$D:$D,Z$166,raw_annual_energy!$A:$A,\"CAISO_NW_Hydro\")/1000","v":0},{"$f":"SUMIFS(raw_annual_energy!$E:$E,Lists!$S:$S,'Portfolio Analytics'!$C181,raw_annual_energy!$D:$D,AA$166,raw_annual_energy!$A:$A,mainzone)/1000+SUMIFS(raw_annual_energy!$E:$E,Lists!$S:$S,'Portfolio Analytics'!$C181,raw_annual_energy!$D:$D,AA$166,raw_annual_energy!$A:$A,\"CAISO_NW_Hydro\")/1000","v":0},{"$f":"SUMIFS(raw_annual_energy!$E:$E,Lists!$S:$S,'Portfolio Analytics'!$C181,raw_annual_energy!$D:$D,AB$166,raw_annual_energy!$A:$A,mainzone)/1000+SUMIFS(raw_annual_energy!$E:$E,Lists!$S:$S,'Portfolio Analytics'!$C181,raw_annual_energy!$D:$D,AB$166,raw_annual_energy!$A:$A,\"CAISO_NW_Hydro\")/1000","v":0},{"$f":"SUMIFS(raw_annual_energy!$E:$E,Lists!$S:$S,'Portfolio Analytics'!$C181,raw_annual_energy!$D:$D,AC$166,raw_annual_energy!$A:$A,mainzone)/1000+SUMIFS(raw_annual_energy!$E:$E,Lists!$S:$S,'Portfolio Analytics'!$C181,raw_annual_energy!$D:$D,AC$166,raw_annual_energy!$A:$A,\"CAISO_NW_Hydro\")/1000","v":0},{"$f":"SUMIFS(raw_annual_energy!$E:$E,Lists!$S:$S,'Portfolio Analytics'!$C181,raw_annual_energy!$D:$D,AD$166,raw_annual_energy!$A:$A,mainzone)/1000+SUMIFS(raw_annual_energy!$E:$E,Lists!$S:$S,'Portfolio Analytics'!$C181,raw_annual_energy!$D:$D,AD$166,raw_annual_energy!$A:$A,\"CAISO_NW_Hydro\")/1000","v":0},{"$f":"SUMIFS(raw_annual_energy!$E:$E,Lists!$S:$S,'Portfolio Analytics'!$C181,raw_annual_energy!$D:$D,AE$166,raw_annual_energy!$A:$A,mainzone)/1000+SUMIFS(raw_annual_energy!$E:$E,Lists!$S:$S,'Portfolio Analytics'!$C181,raw_annual_energy!$D:$D,AE$166,raw_annual_energy!$A:$A,\"CAISO_NW_Hydro\")/1000","v":0},{"$f":"SUMIFS(raw_annual_energy!$E:$E,Lists!$S:$S,'Portfolio Analytics'!$C181,raw_annual_energy!$D:$D,AF$166,raw_annual_energy!$A:$A,mainzone)/1000+SUMIFS(raw_annual_energy!$E:$E,Lists!$S:$S,'Portfolio Analytics'!$C181,raw_annual_energy!$D:$D,AF$166,raw_annual_energy!$A:$A,\"CAISO_NW_Hydro\")/1000","v":0},{"$f":"SUMIFS(raw_annual_energy!$E:$E,Lists!$S:$S,'Portfolio Analytics'!$C181,raw_annual_energy!$D:$D,AG$166,raw_annual_energy!$A:$A,mainzone)/1000+SUMIFS(raw_annual_energy!$E:$E,Lists!$S:$S,'Portfolio Analytics'!$C181,raw_annual_energy!$D:$D,AG$166,raw_annual_energy!$A:$A,\"CAISO_NW_Hydro\")/1000","v":0},{"$f":"SUMIFS(raw_annual_energy!$E:$E,Lists!$S:$S,'Portfolio Analytics'!$C181,raw_annual_energy!$D:$D,AH$166,raw_annual_energy!$A:$A,mainzone)/1000+SUMIFS(raw_annual_energy!$E:$E,Lists!$S:$S,'Portfolio Analytics'!$C181,raw_annual_energy!$D:$D,AH$166,raw_annual_energy!$A:$A,\"CAISO_NW_Hydro\")/1000","v":0},{"$f":"SUMIFS(raw_annual_energy!$E:$E,Lists!$S:$S,'Portfolio Analytics'!$C181,raw_annual_energy!$D:$D,AI$166,raw_annual_energy!$A:$A,mainzone)/1000+SUMIFS(raw_annual_energy!$E:$E,Lists!$S:$S,'Portfolio Analytics'!$C181,raw_annual_energy!$D:$D,AI$166,raw_annual_energy!$A:$A,\"CAISO_NW_Hydro\")/1000","v":13782.7275880161},{"$f":"SUMIFS(raw_annual_energy!$E:$E,Lists!$S:$S,'Portfolio Analytics'!$C181,raw_annual_energy!$D:$D,AJ$166,raw_annual_energy!$A:$A,mainzone)/1000+SUMIFS(raw_annual_energy!$E:$E,Lists!$S:$S,'Portfolio Analytics'!$C181,raw_annual_energy!$D:$D,AJ$166,raw_annual_energy!$A:$A,\"CAISO_NW_Hydro\")/1000","v":0},{"$f":"SUMIFS(raw_annual_energy!$E:$E,Lists!$S:$S,'Portfolio Analytics'!$C181,raw_annual_energy!$D:$D,AK$166,raw_annual_energy!$A:$A,mainzone)/1000+SUMIFS(raw_annual_energy!$E:$E,Lists!$S:$S,'Portfolio Analytics'!$C181,raw_annual_energy!$D:$D,AK$166,raw_annual_energy!$A:$A,\"CAISO_NW_Hydro\")/1000","v":0},{"$f":"SUMIFS(raw_annual_energy!$E:$E,Lists!$S:$S,'Portfolio Analytics'!$C181,raw_annual_energy!$D:$D,AL$166,raw_annual_energy!$A:$A,mainzone)/1000+SUMIFS(raw_annual_energy!$E:$E,Lists!$S:$S,'Portfolio Analytics'!$C181,raw_annual_energy!$D:$D,AL$166,raw_annual_energy!$A:$A,\"CAISO_NW_Hydro\")/1000","v":0},{"$f":"SUMIFS(raw_annual_energy!$E:$E,Lists!$S:$S,'Portfolio Analytics'!$C181,raw_annual_energy!$D:$D,AM$166,raw_annual_energy!$A:$A,mainzone)/1000+SUMIFS(raw_annual_energy!$E:$E,Lists!$S:$S,'Portfolio Analytics'!$C181,raw_annual_energy!$D:$D,AM$166,raw_annual_energy!$A:$A,\"CAISO_NW_Hydro\")/1000","v":0},{"$f":"SUMIFS(raw_annual_energy!$E:$E,Lists!$S:$S,'Portfolio Analytics'!$C181,raw_annual_energy!$D:$D,AN$166,raw_annual_energy!$A:$A,mainzone)/1000+SUMIFS(raw_annual_energy!$E:$E,Lists!$S:$S,'Portfolio Analytics'!$C181,raw_annual_energy!$D:$D,AN$166,raw_annual_energy!$A:$A,\"CAISO_NW_Hydro\")/1000","v":0}]
[null,null,{"$f":"Lists!$B20","v":"Solar"},"GWh",{"$f":"SUMIFS(raw_annual_energy!$E:$E,Lists!$S:$S,'Portfolio Analytics'!$C182,raw_annual_energy!$D:$D,E$166,raw_annual_energy!$A:$A,mainzone)/1000+SUMIFS(raw_annual_energy!$E:$E,Lists!$S:$S,'Portfolio Analytics'!$C182,raw_annual_energy!$D:$D,E$166,raw_annual_energy!$A:$A,\"CAISO_NW_Hydro\")/1000","v":0},{"$f":"SUMIFS(raw_annual_energy!$E:$E,Lists!$S:$S,'Portfolio Analytics'!$C182,raw_annual_energy!$D:$D,F$166,raw_annual_energy!$A:$A,mainzone)/1000+SUMIFS(raw_annual_energy!$E:$E,Lists!$S:$S,'Portfolio Analytics'!$C182,raw_annual_energy!$D:$D,F$166,raw_annual_energy!$A:$A,\"CAISO_NW_Hydro\")/1000","v":0},{"$f":"SUMIFS(raw_annual_energy!$E:$E,Lists!$S:$S,'Portfolio Analytics'!$C182,raw_annual_energy!$D:$D,G$166,raw_annual_energy!$A:$A,mainzone)/1000+SUMIFS(raw_annual_energy!$E:$E,Lists!$S:$S,'Portfolio Analytics'!$C182,raw_annual_energy!$D:$D,G$166,raw_annual_energy!$A:$A,\"CAISO_NW_Hydro\")/1000","v":0},{"$f":"SUMIFS(raw_annual_energy!$E:$E,Lists!$S:$S,'Portfolio Analytics'!$C182,raw_annual_energy!$D:$D,H$166,raw_annual_energy!$A:$A,mainzone)/1000+SUMIFS(raw_annual_energy!$E:$E,Lists!$S:$S,'Portfolio Analytics'!$C182,raw_annual_energy!$D:$D,H$166,raw_annual_energy!$A:$A,\"CAISO_NW_Hydro\")/1000","v":0},{"$f":"SUMIFS(raw_annual_energy!$E:$E,Lists!$S:$S,'Portfolio Analytics'!$C182,raw_annual_energy!$D:$D,I$166,raw_annual_energy!$A:$A,mainzone)/1000+SUMIFS(raw_annual_energy!$E:$E,Lists!$S:$S,'Portfolio Analytics'!$C182,raw_annual_energy!$D:$D,I$166,raw_annual_energy!$A:$A,\"CAISO_NW_Hydro\")/1000","v":0},{"$f":"SUMIFS(raw_annual_energy!$E:$E,Lists!$S:$S,'Portfolio Analytics'!$C182,raw_annual_energy!$D:$D,J$166,raw_annual_energy!$A:$A,mainzone)/1000+SUMIFS(raw_annual_energy!$E:$E,Lists!$S:$S,'Portfolio Analytics'!$C182,raw_annual_energy!$D:$D,J$166,raw_annual_energy!$A:$A,\"CAISO_NW_Hydro\")/1000","v":41023.821707926218},{"$f":"SUMIFS(raw_annual_energy!$E:$E,Lists!$S:$S,'Portfolio Analytics'!$C182,raw_annual_energy!$D:$D,K$166,raw_annual_energy!$A:$A,mainzone)/1000+SUMIFS(raw_annual_energy!$E:$E,Lists!$S:$S,'Portfolio Analytics'!$C182,raw_annual_energy!$D:$D,K$166,raw_annual_energy!$A:$A,\"CAISO_NW_Hydro\")/1000","v":47804.721099684095},{"$f":"SUMIFS(raw_annual_energy!$E:$E,Lists!$S:$S,'Portfolio Analytics'!$C182,raw_annual_energy!$D:$D,L$166,raw_annual_energy!$A:$A,mainzone)/1000+SUMIFS(raw_annual_energy!$E:$E,Lists!$S:$S,'Portfolio Analytics'!$C182,raw_annual_energy!$D:$D,L$166,raw_annual_energy!$A:$A,\"CAISO_NW_Hydro\")/1000","v":53563.118834163251},{"$f":"SUMIFS(raw_annual_energy!$E:$E,Lists!$S:$S,'Portfolio Analytics'!$C182,raw_annual_energy!$D:$D,M$166,raw_annual_energy!$A:$A,mainzone)/1000+SUMIFS(raw_annual_energy!$E:$E,Lists!$S:$S,'Portfolio Analytics'!$C182,raw_annual_energy!$D:$D,M$166,raw_annual_energy!$A:$A,\"CAISO_NW_Hydro\")/1000","v":58851.275835798042},{"$f":"SUMIFS(raw_annual_energy!$E:$E,Lists!$S:$S,'Portfolio Analytics'!$C182,raw_annual_energy!$D:$D,N$166,raw_annual_energy!$A:$A,mainzone)/1000+SUMIFS(raw_annual_energy!$E:$E,Lists!$S:$S,'Portfolio Analytics'!$C182,raw_annual_energy!$D:$D,N$166,raw_annual_energy!$A:$A,\"CAISO_NW_Hydro\")/1000","v":66260.203126156091},{"$f":"SUMIFS(raw_annual_energy!$E:$E,Lists!$S:$S,'Portfolio Analytics'!$C182,raw_annual_energy!$D:$D,O$166,raw_annual_energy!$A:$A,mainzone)/1000+SUMIFS(raw_annual_energy!$E:$E,Lists!$S:$S,'Portfolio Analytics'!$C182,raw_annual_energy!$D:$D,O$166,raw_annual_energy!$A:$A,\"CAISO_NW_Hydro\")/1000","v":0},{"$f":"SUMIFS(raw_annual_energy!$E:$E,Lists!$S:$S,'Portfolio Analytics'!$C182,raw_annual_energy!$D:$D,P$166,raw_annual_energy!$A:$A,mainzone)/1000+SUMIFS(raw_annual_energy!$E:$E,Lists!$S:$S,'Portfolio Analytics'!$C182,raw_annual_energy!$D:$D,P$166,raw_annual_energy!$A:$A,\"CAISO_NW_Hydro\")/1000","v":80544.7976358999},{"$f":"SUMIFS(raw_annual_energy!$E:$E,Lists!$S:$S,'Portfolio Analytics'!$C182,raw_annual_energy!$D:$D,Q$166,raw_annual_energy!$A:$A,mainzone)/1000+SUMIFS(raw_annual_energy!$E:$E,Lists!$S:$S,'Portfolio Analytics'!$C182,raw_annual_energy!$D:$D,Q$166,raw_annual_energy!$A:$A,\"CAISO_NW_Hydro\")/1000","v":0},{"$f":"SUMIFS(raw_annual_energy!$E:$E,Lists!$S:$S,'Portfolio Analytics'!$C182,raw_annual_energy!$D:$D,R$166,raw_annual_energy!$A:$A,mainzone)/1000+SUMIFS(raw_annual_energy!$E:$E,Lists!$S:$S,'Portfolio Analytics'!$C182,raw_annual_energy!$D:$D,R$166,raw_annual_energy!$A:$A,\"CAISO_NW_Hydro\")/1000","v":0},{"$f":"SUMIFS(raw_annual_energy!$E:$E,Lists!$S:$S,'Portfolio Analytics'!$C182,raw_annual_energy!$D:$D,S$166,raw_annual_energy!$A:$A,mainzone)/1000+SUMIFS(raw_annual_energy!$E:$E,Lists!$S:$S,'Portfolio Analytics'!$C182,raw_annual_energy!$D:$D,S$166,raw_annual_energy!$A:$A,\"CAISO_NW_Hydro\")/1000","v":0},{"$f":"SUMIFS(raw_annual_energy!$E:$E,Lists!$S:$S,'Portfolio Analytics'!$C182,raw_annual_energy!$D:$D,T$166,raw_annual_energy!$A:$A,mainzone)/1000+SUMIFS(raw_annual_energy!$E:$E,Lists!$S:$S,'Portfolio Analytics'!$C182,raw_annual_energy!$D:$D,T$166,raw_annual_energy!$A:$A,\"CAISO_NW_Hydro\")/1000","v":105070.02607503929},{"$f":"SUMIFS(raw_annual_energy!$E:$E,Lists!$S:$S,'Portfolio Analytics'!$C182,raw_annual_energy!$D:$D,U$166,raw_annual_energy!$A:$A,mainzone)/1000+SUMIFS(raw_annual_energy!$E:$E,Lists!$S:$S,'Portfolio Analytics'!$C182,raw_annual_energy!$D:$D,U$166,raw_annual_energy!$A:$A,\"CAISO_NW_Hydro\")/1000","v":0},{"$f":"SUMIFS(raw_annual_energy!$E:$E,Lists!$S:$S,'Portfolio Analytics'!$C182,raw_annual_energy!$D:$D,V$166,raw_annual_energy!$A:$A,mainzone)/1000+SUMIFS(raw_annual_energy!$E:$E,Lists!$S:$S,'Portfolio Analytics'!$C182,raw_annual_energy!$D:$D,V$166,raw_annual_energy!$A:$A,\"CAISO_NW_Hydro\")/1000","v":0},{"$f":"SUMIFS(raw_annual_energy!$E:$E,Lists!$S:$S,'Portfolio Analytics'!$C182,raw_annual_energy!$D:$D,W$166,raw_annual_energy!$A:$A,mainzone)/1000+SUMIFS(raw_annual_energy!$E:$E,Lists!$S:$S,'Portfolio Analytics'!$C182,raw_annual_energy!$D:$D,W$166,raw_annual_energy!$A:$A,\"CAISO_NW_Hydro\")/1000","v":0},{"$f":"SUMIFS(raw_annual_energy!$E:$E,Lists!$S:$S,'Portfolio Analytics'!$C182,raw_annual_energy!$D:$D,X$166,raw_annual_energy!$A:$A,mainzone)/1000+SUMIFS(raw_annual_energy!$E:$E,Lists!$S:$S,'Portfolio Analytics'!$C182,raw_annual_energy!$D:$D,X$166,raw_annual_energy!$A:$A,\"CAISO_NW_Hydro\")/1000","v":0},{"$f":"SUMIFS(raw_annual_energy!$E:$E,Lists!$S:$S,'Portfolio Analytics'!$C182,raw_annual_energy!$D:$D,Y$166,raw_annual_energy!$A:$A,mainzone)/1000+SUMIFS(raw_annual_energy!$E:$E,Lists!$S:$S,'Portfolio Analytics'!$C182,raw_annual_energy!$D:$D,Y$166,raw_annual_energy!$A:$A,\"CAISO_NW_Hydro\")/1000","v":0},{"$f":"SUMIFS(raw_annual_energy!$E:$E,Lists!$S:$S,'Portfolio Analytics'!$C182,raw_annual_energy!$D:$D,Z$166,raw_annual_energy!$A:$A,mainzone)/1000+SUMIFS(raw_annual_energy!$E:$E,Lists!$S:$S,'Portfolio Analytics'!$C182,raw_annual_energy!$D:$D,Z$166,raw_annual_energy!$A:$A,\"CAISO_NW_Hydro\")/1000","v":0},{"$f":"SUMIFS(raw_annual_energy!$E:$E,Lists!$S:$S,'Portfolio Analytics'!$C182,raw_annual_energy!$D:$D,AA$166,raw_annual_energy!$A:$A,mainzone)/1000+SUMIFS(raw_annual_energy!$E:$E,Lists!$S:$S,'Portfolio Analytics'!$C182,raw_annual_energy!$D:$D,AA$166,raw_annual_energy!$A:$A,\"CAISO_NW_Hydro\")/1000","v":0},{"$f":"SUMIFS(raw_annual_energy!$E:$E,Lists!$S:$S,'Portfolio Analytics'!$C182,raw_annual_energy!$D:$D,AB$166,raw_annual_energy!$A:$A,mainzone)/1000+SUMIFS(raw_annual_energy!$E:$E,Lists!$S:$S,'Portfolio Analytics'!$C182,raw_annual_energy!$D:$D,AB$166,raw_annual_energy!$A:$A,\"CAISO_NW_Hydro\")/1000","v":0},{"$f":"SUMIFS(raw_annual_energy!$E:$E,Lists!$S:$S,'Portfolio Analytics'!$C182,raw_annual_energy!$D:$D,AC$166,raw_annual_energy!$A:$A,mainzone)/1000+SUMIFS(raw_annual_energy!$E:$E,Lists!$S:$S,'Portfolio Analytics'!$C182,raw_annual_energy!$D:$D,AC$166,raw_annual_energy!$A:$A,\"CAISO_NW_Hydro\")/1000","v":0},{"$f":"SUMIFS(raw_annual_energy!$E:$E,Lists!$S:$S,'Portfolio Analytics'!$C182,raw_annual_energy!$D:$D,AD$166,raw_annual_energy!$A:$A,mainzone)/1000+SUMIFS(raw_annual_energy!$E:$E,Lists!$S:$S,'Portfolio Analytics'!$C182,raw_annual_energy!$D:$D,AD$166,raw_annual_energy!$A:$A,\"CAISO_NW_Hydro\")/1000","v":0},{"$f":"SUMIFS(raw_annual_energy!$E:$E,Lists!$S:$S,'Portfolio Analytics'!$C182,raw_annual_energy!$D:$D,AE$166,raw_annual_energy!$A:$A,mainzone)/1000+SUMIFS(raw_annual_energy!$E:$E,Lists!$S:$S,'Portfolio Analytics'!$C182,raw_annual_energy!$D:$D,AE$166,raw_annual_energy!$A:$A,\"CAISO_NW_Hydro\")/1000","v":0},{"$f":"SUMIFS(raw_annual_energy!$E:$E,Lists!$S:$S,'Portfolio Analytics'!$C182,raw_annual_energy!$D:$D,AF$166,raw_annual_energy!$A:$A,mainzone)/1000+SUMIFS(raw_annual_energy!$E:$E,Lists!$S:$S,'Portfolio Analytics'!$C182,raw_annual_energy!$D:$D,AF$166,raw_annual_energy!$A:$A,\"CAISO_NW_Hydro\")/1000","v":0},{"$f":"SUMIFS(raw_annual_energy!$E:$E,Lists!$S:$S,'Portfolio Analytics'!$C182,raw_annual_energy!$D:$D,AG$166,raw_annual_energy!$A:$A,mainzone)/1000+SUMIFS(raw_annual_energy!$E:$E,Lists!$S:$S,'Portfolio Analytics'!$C182,raw_annual_energy!$D:$D,AG$166,raw_annual_energy!$A:$A,\"CAISO_NW_Hydro\")/1000","v":0},{"$f":"SUMIFS(raw_annual_energy!$E:$E,Lists!$S:$S,'Portfolio Analytics'!$C182,raw_annual_energy!$D:$D,AH$166,raw_annual_energy!$A:$A,mainzone)/1000+SUMIFS(raw_annual_energy!$E:$E,Lists!$S:$S,'Portfolio Analytics'!$C182,raw_annual_energy!$D:$D,AH$166,raw_annual_energy!$A:$A,\"CAISO_NW_Hydro\")/1000","v":0},{"$f":"SUMIFS(raw_annual_energy!$E:$E,Lists!$S:$S,'Portfolio Analytics'!$C182,raw_annual_energy!$D:$D,AI$166,raw_annual_energy!$A:$A,mainzone)/1000+SUMIFS(raw_annual_energy!$E:$E,Lists!$S:$S,'Portfolio Analytics'!$C182,raw_annual_energy!$D:$D,AI$166,raw_annual_energy!$A:$A,\"CAISO_NW_Hydro\")/1000","v":295649.34629572334},{"$f":"SUMIFS(raw_annual_energy!$E:$E,Lists!$S:$S,'Portfolio Analytics'!$C182,raw_annual_energy!$D:$D,AJ$166,raw_annual_energy!$A:$A,mainzone)/1000+SUMIFS(raw_annual_energy!$E:$E,Lists!$S:$S,'Portfolio Analytics'!$C182,raw_annual_energy!$D:$D,AJ$166,raw_annual_energy!$A:$A,\"CAISO_NW_Hydro\")/1000","v":0},{"$f":"SUMIFS(raw_annual_energy!$E:$E,Lists!$S:$S,'Portfolio Analytics'!$C182,raw_annual_energy!$D:$D,AK$166,raw_annual_energy!$A:$A,mainzone)/1000+SUMIFS(raw_annual_energy!$E:$E,Lists!$S:$S,'Portfolio Analytics'!$C182,raw_annual_energy!$D:$D,AK$166,raw_annual_energy!$A:$A,\"CAISO_NW_Hydro\")/1000","v":0},{"$f":"SUMIFS(raw_annual_energy!$E:$E,Lists!$S:$S,'Portfolio Analytics'!$C182,raw_annual_energy!$D:$D,AL$166,raw_annual_energy!$A:$A,mainzone)/1000+SUMIFS(raw_annual_energy!$E:$E,Lists!$S:$S,'Portfolio Analytics'!$C182,raw_annual_energy!$D:$D,AL$166,raw_annual_energy!$A:$A,\"CAISO_NW_Hydro\")/1000","v":0},{"$f":"SUMIFS(raw_annual_energy!$E:$E,Lists!$S:$S,'Portfolio Analytics'!$C182,raw_annual_energy!$D:$D,AM$166,raw_annual_energy!$A:$A,mainzone)/1000+SUMIFS(raw_annual_energy!$E:$E,Lists!$S:$S,'Portfolio Analytics'!$C182,raw_annual_energy!$D:$D,AM$166,raw_annual_energy!$A:$A,\"CAISO_NW_Hydro\")/1000","v":0},{"$f":"SUMIFS(raw_annual_energy!$E:$E,Lists!$S:$S,'Portfolio Analytics'!$C182,raw_annual_energy!$D:$D,AN$166,raw_annual_energy!$A:$A,mainzone)/1000+SUMIFS(raw_annual_energy!$E:$E,Lists!$S:$S,'Portfolio Analytics'!$C182,raw_annual_energy!$D:$D,AN$166,raw_annual_energy!$A:$A,\"CAISO_NW_Hydro\")/1000","v":0}]
[null,null,{"$f":"Lists!$B21","v":"Geothermal"},"GWh",{"$f":"SUMIFS(raw_annual_energy!$E:$E,Lists!$S:$S,'Portfolio Analytics'!$C183,raw_annual_energy!$D:$D,E$166,raw_annual_energy!$A:$A,mainzone)/1000+SUMIFS(raw_annual_energy!$E:$E,Lists!$S:$S,'Portfolio Analytics'!$C183,raw_annual_energy!$D:$D,E$166,raw_annual_energy!$A:$A,\"CAISO_NW_Hydro\")/1000","v":0},{"$f":"SUMIFS(raw_annual_energy!$E:$E,Lists!$S:$S,'Portfolio Analytics'!$C183,raw_annual_energy!$D:$D,F$166,raw_annual_energy!$A:$A,mainzone)/1000+SUMIFS(raw_annual_energy!$E:$E,Lists!$S:$S,'Portfolio Analytics'!$C183,raw_annual_energy!$D:$D,F$166,raw_annual_energy!$A:$A,\"CAISO_NW_Hydro\")/1000","v":0},{"$f":"SUMIFS(raw_annual_energy!$E:$E,Lists!$S:$S,'Portfolio Analytics'!$C183,raw_annual_energy!$D:$D,G$166,raw_annual_energy!$A:$A,mainzone)/1000+SUMIFS(raw_annual_energy!$E:$E,Lists!$S:$S,'Portfolio Analytics'!$C183,raw_annual_energy!$D:$D,G$166,raw_annual_energy!$A:$A,\"CAISO_NW_Hydro\")/1000","v":0},{"$f":"SUMIFS(raw_annual_energy!$E:$E,Lists!$S:$S,'Portfolio Analytics'!$C183,raw_annual_energy!$D:$D,H$166,raw_annual_energy!$A:$A,mainzone)/1000+SUMIFS(raw_annual_energy!$E:$E,Lists!$S:$S,'Portfolio Analytics'!$C183,raw_annual_energy!$D:$D,H$166,raw_annual_energy!$A:$A,\"CAISO_NW_Hydro\")/1000","v":0},{"$f":"SUMIFS(raw_annual_energy!$E:$E,Lists!$S:$S,'Portfolio Analytics'!$C183,raw_annual_energy!$D:$D,I$166,raw_annual_energy!$A:$A,mainzone)/1000+SUMIFS(raw_annual_energy!$E:$E,Lists!$S:$S,'Portfolio Analytics'!$C183,raw_annual_energy!$D:$D,I$166,raw_annual_energy!$A:$A,\"CAISO_NW_Hydro\")/1000","v":0},{"$f":"SUMIFS(raw_annual_energy!$E:$E,Lists!$S:$S,'Portfolio Analytics'!$C183,raw_annual_energy!$D:$D,J$166,raw_annual_energy!$A:$A,mainzone)/1000+SUMIFS(raw_annual_energy!$E:$E,Lists!$S:$S,'Portfolio Analytics'!$C183,raw_annual_energy!$D:$D,J$166,raw_annual_energy!$A:$A,\"CAISO_NW_Hydro\")/1000","v":13041.712799999996},{"$f":"SUMIFS(raw_annual_energy!$E:$E,Lists!$S:$S,'Portfolio Analytics'!$C183,raw_annual_energy!$D:$D,K$166,raw_annual_energy!$A:$A,mainzone)/1000+SUMIFS(raw_annual_energy!$E:$E,Lists!$S:$S,'Portfolio Analytics'!$C183,raw_annual_energy!$D:$D,K$166,raw_annual_energy!$A:$A,\"CAISO_NW_Hydro\")/1000","v":13041.712799999996},{"$f":"SUMIFS(raw_annual_energy!$E:$E,Lists!$S:$S,'Portfolio Analytics'!$C183,raw_annual_energy!$D:$D,L$166,raw_annual_energy!$A:$A,mainzone)/1000+SUMIFS(raw_annual_energy!$E:$E,Lists!$S:$S,'Portfolio Analytics'!$C183,raw_annual_energy!$D:$D,L$166,raw_annual_energy!$A:$A,\"CAISO_NW_Hydro\")/1000","v":13041.712799999996},{"$f":"SUMIFS(raw_annual_energy!$E:$E,Lists!$S:$S,'Portfolio Analytics'!$C183,raw_annual_energy!$D:$D,M$166,raw_annual_energy!$A:$A,mainzone)/1000+SUMIFS(raw_annual_energy!$E:$E,Lists!$S:$S,'Portfolio Analytics'!$C183,raw_annual_energy!$D:$D,M$166,raw_annual_energy!$A:$A,\"CAISO_NW_Hydro\")/1000","v":13041.712799999996},{"$f":"SUMIFS(raw_annual_energy!$E:$E,Lists!$S:$S,'Portfolio Analytics'!$C183,raw_annual_energy!$D:$D,N$166,raw_annual_energy!$A:$A,mainzone)/1000+SUMIFS(raw_annual_energy!$E:$E,Lists!$S:$S,'Portfolio Analytics'!$C183,raw_annual_energy!$D:$D,N$166,raw_annual_energy!$A:$A,\"CAISO_NW_Hydro\")/1000","v":14106.052799999987},{"$f":"SUMIFS(raw_annual_energy!$E:$E,Lists!$S:$S,'Portfolio Analytics'!$C183,raw_annual_energy!$D:$D,O$166,raw_annual_energy!$A:$A,mainzone)/1000+SUMIFS(raw_annual_energy!$E:$E,Lists!$S:$S,'Portfolio Analytics'!$C183,raw_annual_energy!$D:$D,O$166,raw_annual_energy!$A:$A,\"CAISO_NW_Hydro\")/1000","v":0},{"$f":"SUMIFS(raw_annual_energy!$E:$E,Lists!$S:$S,'Portfolio Analytics'!$C183,raw_annual_energy!$D:$D,P$166,raw_annual_energy!$A:$A,mainzone)/1000+SUMIFS(raw_annual_energy!$E:$E,Lists!$S:$S,'Portfolio Analytics'!$C183,raw_annual_energy!$D:$D,P$166,raw_annual_energy!$A:$A,\"CAISO_NW_Hydro\")/1000","v":14106.052799999987},{"$f":"SUMIFS(raw_annual_energy!$E:$E,Lists!$S:$S,'Portfolio Analytics'!$C183,raw_annual_energy!$D:$D,Q$166,raw_annual_energy!$A:$A,mainzone)/1000+SUMIFS(raw_annual_energy!$E:$E,Lists!$S:$S,'Portfolio Analytics'!$C183,raw_annual_energy!$D:$D,Q$166,raw_annual_energy!$A:$A,\"CAISO_NW_Hydro\")/1000","v":0},{"$f":"SUMIFS(raw_annual_energy!$E:$E,Lists!$S:$S,'Portfolio Analytics'!$C183,raw_annual_energy!$D:$D,R$166,raw_annual_energy!$A:$A,mainzone)/1000+SUMIFS(raw_annual_energy!$E:$E,Lists!$S:$S,'Portfolio Analytics'!$C183,raw_annual_energy!$D:$D,R$166,raw_annual_energy!$A:$A,\"CAISO_NW_Hydro\")/1000","v":0},{"$f":"SUMIFS(raw_annual_energy!$E:$E,Lists!$S:$S,'Portfolio Analytics'!$C183,raw_annual_energy!$D:$D,S$166,raw_annual_energy!$A:$A,mainzone)/1000+SUMIFS(raw_annual_energy!$E:$E,Lists!$S:$S,'Portfolio Analytics'!$C183,raw_annual_energy!$D:$D,S$166,raw_annual_energy!$A:$A,\"CAISO_NW_Hydro\")/1000","v":0},{"$f":"SUMIFS(raw_annual_energy!$E:$E,Lists!$S:$S,'Portfolio Analytics'!$C183,raw_annual_energy!$D:$D,T$166,raw_annual_energy!$A:$A,mainzone)/1000+SUMIFS(raw_annual_energy!$E:$E,Lists!$S:$S,'Portfolio Analytics'!$C183,raw_annual_energy!$D:$D,T$166,raw_annual_energy!$A:$A,\"CAISO_NW_Hydro\")/1000","v":14106.052799999987},{"$f":"SUMIFS(raw_annual_energy!$E:$E,Lists!$S:$S,'Portfolio Analytics'!$C183,raw_annual_energy!$D:$D,U$166,raw_annual_energy!$A:$A,mainzone)/1000+SUMIFS(raw_annual_energy!$E:$E,Lists!$S:$S,'Portfolio Analytics'!$C183,raw_annual_energy!$D:$D,U$166,raw_annual_energy!$A:$A,\"CAISO_NW_Hydro\")/1000","v":0},{"$f":"SUMIFS(raw_annual_energy!$E:$E,Lists!$S:$S,'Portfolio Analytics'!$C183,raw_annual_energy!$D:$D,V$166,raw_annual_energy!$A:$A,mainzone)/1000+SUMIFS(raw_annual_energy!$E:$E,Lists!$S:$S,'Portfolio Analytics'!$C183,raw_annual_energy!$D:$D,V$166,raw_annual_energy!$A:$A,\"CAISO_NW_Hydro\")/1000","v":0},{"$f":"SUMIFS(raw_annual_energy!$E:$E,Lists!$S:$S,'Portfolio Analytics'!$C183,raw_annual_energy!$D:$D,W$166,raw_annual_energy!$A:$A,mainzone)/1000+SUMIFS(raw_annual_energy!$E:$E,Lists!$S:$S,'Portfolio Analytics'!$C183,raw_annual_energy!$D:$D,W$166,raw_annual_energy!$A:$A,\"CAISO_NW_Hydro\")/1000","v":0},{"$f":"SUMIFS(raw_annual_energy!$E:$E,Lists!$S:$S,'Portfolio Analytics'!$C183,raw_annual_energy!$D:$D,X$166,raw_annual_energy!$A:$A,mainzone)/1000+SUMIFS(raw_annual_energy!$E:$E,Lists!$S:$S,'Portfolio Analytics'!$C183,raw_annual_energy!$D:$D,X$166,raw_annual_energy!$A:$A,\"CAISO_NW_Hydro\")/1000","v":0},{"$f":"SUMIFS(raw_annual_energy!$E:$E,Lists!$S:$S,'Portfolio Analytics'!$C183,raw_annual_energy!$D:$D,Y$166,raw_annual_energy!$A:$A,mainzone)/1000+SUMIFS(raw_annual_energy!$E:$E,Lists!$S:$S,'Portfolio Analytics'!$C183,raw_annual_energy!$D:$D,Y$166,raw_annual_energy!$A:$A,\"CAISO_NW_Hydro\")/1000","v":0},{"$f":"SUMIFS(raw_annual_energy!$E:$E,Lists!$S:$S,'Portfolio Analytics'!$C183,raw_annual_energy!$D:$D,Z$166,raw_annual_energy!$A:$A,mainzone)/1000+SUMIFS(raw_annual_energy!$E:$E,Lists!$S:$S,'Portfolio Analytics'!$C183,raw_annual_energy!$D:$D,Z$166,raw_annual_energy!$A:$A,\"CAISO_NW_Hydro\")/1000","v":0},{"$f":"SUMIFS(raw_annual_energy!$E:$E,Lists!$S:$S,'Portfolio Analytics'!$C183,raw_annual_energy!$D:$D,AA$166,raw_annual_energy!$A:$A,mainzone)/1000+SUMIFS(raw_annual_energy!$E:$E,Lists!$S:$S,'Portfolio Analytics'!$C183,raw_annual_energy!$D:$D,AA$166,raw_annual_energy!$A:$A,\"CAISO_NW_Hydro\")/1000","v":0},{"$f":"SUMIFS(raw_annual_energy!$E:$E,Lists!$S:$S,'Portfolio Analytics'!$C183,raw_annual_energy!$D:$D,AB$166,raw_annual_energy!$A:$A,mainzone)/1000+SUMIFS(raw_annual_energy!$E:$E,Lists!$S:$S,'Portfolio Analytics'!$C183,raw_annual_energy!$D:$D,AB$166,raw_annual_energy!$A:$A,\"CAISO_NW_Hydro\")/1000","v":0},{"$f":"SUMIFS(raw_annual_energy!$E:$E,Lists!$S:$S,'Portfolio Analytics'!$C183,raw_annual_energy!$D:$D,AC$166,raw_annual_energy!$A:$A,mainzone)/1000+SUMIFS(raw_annual_energy!$E:$E,Lists!$S:$S,'Portfolio Analytics'!$C183,raw_annual_energy!$D:$D,AC$166,raw_annual_energy!$A:$A,\"CAISO_NW_Hydro\")/1000","v":0},{"$f":"SUMIFS(raw_annual_energy!$E:$E,Lists!$S:$S,'Portfolio Analytics'!$C183,raw_annual_energy!$D:$D,AD$166,raw_annual_energy!$A:$A,mainzone)/1000+SUMIFS(raw_annual_energy!$E:$E,Lists!$S:$S,'Portfolio Analytics'!$C183,raw_annual_energy!$D:$D,AD$166,raw_annual_energy!$A:$A,\"CAISO_NW_Hydro\")/1000","v":0},{"$f":"SUMIFS(raw_annual_energy!$E:$E,Lists!$S:$S,'Portfolio Analytics'!$C183,raw_annual_energy!$D:$D,AE$166,raw_annual_energy!$A:$A,mainzone)/1000+SUMIFS(raw_annual_energy!$E:$E,Lists!$S:$S,'Portfolio Analytics'!$C183,raw_annual_energy!$D:$D,AE$166,raw_annual_energy!$A:$A,\"CAISO_NW_Hydro\")/1000","v":0},{"$f":"SUMIFS(raw_annual_energy!$E:$E,Lists!$S:$S,'Portfolio Analytics'!$C183,raw_annual_energy!$D:$D,AF$166,raw_annual_energy!$A:$A,mainzone)/1000+SUMIFS(raw_annual_energy!$E:$E,Lists!$S:$S,'Portfolio Analytics'!$C183,raw_annual_energy!$D:$D,AF$166,raw_annual_energy!$A:$A,\"CAISO_NW_Hydro\")/1000","v":0},{"$f":"SUMIFS(raw_annual_energy!$E:$E,Lists!$S:$S,'Portfolio Analytics'!$C183,raw_annual_energy!$D:$D,AG$166,raw_annual_energy!$A:$A,mainzone)/1000+SUMIFS(raw_annual_energy!$E:$E,Lists!$S:$S,'Portfolio Analytics'!$C183,raw_annual_energy!$D:$D,AG$166,raw_annual_energy!$A:$A,\"CAISO_NW_Hydro\")/1000","v":0},{"$f":"SUMIFS(raw_annual_energy!$E:$E,Lists!$S:$S,'Portfolio Analytics'!$C183,raw_annual_energy!$D:$D,AH$166,raw_annual_energy!$A:$A,mainzone)/1000+SUMIFS(raw_annual_energy!$E:$E,Lists!$S:$S,'Portfolio Analytics'!$C183,raw_annual_energy!$D:$D,AH$166,raw_annual_energy!$A:$A,\"CAISO_NW_Hydro\")/1000","v":0},{"$f":"SUMIFS(raw_annual_energy!$E:$E,Lists!$S:$S,'Portfolio Analytics'!$C183,raw_annual_energy!$D:$D,AI$166,raw_annual_energy!$A:$A,mainzone)/1000+SUMIFS(raw_annual_energy!$E:$E,Lists!$S:$S,'Portfolio Analytics'!$C183,raw_annual_energy!$D:$D,AI$166,raw_annual_energy!$A:$A,\"CAISO_NW_Hydro\")/1000","v":30624.259199999964},{"$f":"SUMIFS(raw_annual_energy!$E:$E,Lists!$S:$S,'Portfolio Analytics'!$C183,raw_annual_energy!$D:$D,AJ$166,raw_annual_energy!$A:$A,mainzone)/1000+SUMIFS(raw_annual_energy!$E:$E,Lists!$S:$S,'Portfolio Analytics'!$C183,raw_annual_energy!$D:$D,AJ$166,raw_annual_energy!$A:$A,\"CAISO_NW_Hydro\")/1000","v":0},{"$f":"SUMIFS(raw_annual_energy!$E:$E,Lists!$S:$S,'Portfolio Analytics'!$C183,raw_annual_energy!$D:$D,AK$166,raw_annual_energy!$A:$A,mainzone)/1000+SUMIFS(raw_annual_energy!$E:$E,Lists!$S:$S,'Portfolio Analytics'!$C183,raw_annual_energy!$D:$D,AK$166,raw_annual_energy!$A:$A,\"CAISO_NW_Hydro\")/1000","v":0},{"$f":"SUMIFS(raw_annual_energy!$E:$E,Lists!$S:$S,'Portfolio Analytics'!$C183,raw_annual_energy!$D:$D,AL$166,raw_annual_energy!$A:$A,mainzone)/1000+SUMIFS(raw_annual_energy!$E:$E,Lists!$S:$S,'Portfolio Analytics'!$C183,raw_annual_energy!$D:$D,AL$166,raw_annual_energy!$A:$A,\"CAISO_NW_Hydro\")/1000","v":0},{"$f":"SUMIFS(raw_annual_energy!$E:$E,Lists!$S:$S,'Portfolio Analytics'!$C183,raw_annual_energy!$D:$D,AM$166,raw_annual_energy!$A:$A,mainzone)/1000+SUMIFS(raw_annual_energy!$E:$E,Lists!$S:$S,'Portfolio Analytics'!$C183,raw_annual_energy!$D:$D,AM$166,raw_annual_energy!$A:$A,\"CAISO_NW_Hydro\")/1000","v":0},{"$f":"SUMIFS(raw_annual_energy!$E:$E,Lists!$S:$S,'Portfolio Analytics'!$C183,raw_annual_energy!$D:$D,AN$166,raw_annual_energy!$A:$A,mainzone)/1000+SUMIFS(raw_annual_energy!$E:$E,Lists!$S:$S,'Portfolio Analytics'!$C183,raw_annual_energy!$D:$D,AN$166,raw_annual_energy!$A:$A,\"CAISO_NW_Hydro\")/1000","v":0}]
[null,null,{"$f":"Lists!$B22","v":"Biomass"},"GWh",{"$f":"SUMIFS(raw_annual_energy!$E:$E,Lists!$S:$S,'Portfolio Analytics'!$C184,raw_annual_energy!$D:$D,E$166,raw_annual_energy!$A:$A,mainzone)/1000+SUMIFS(raw_annual_energy!$E:$E,Lists!$S:$S,'Portfolio Analytics'!$C184,raw_annual_energy!$D:$D,E$166,raw_annual_energy!$A:$A,\"CAISO_NW_Hydro\")/1000","v":0},{"$f":"SUMIFS(raw_annual_energy!$E:$E,Lists!$S:$S,'Portfolio Analytics'!$C184,raw_annual_energy!$D:$D,F$166,raw_annual_energy!$A:$A,mainzone)/1000+SUMIFS(raw_annual_energy!$E:$E,Lists!$S:$S,'Portfolio Analytics'!$C184,raw_annual_energy!$D:$D,F$166,raw_annual_energy!$A:$A,\"CAISO_NW_Hydro\")/1000","v":0},{"$f":"SUMIFS(raw_annual_energy!$E:$E,Lists!$S:$S,'Portfolio Analytics'!$C184,raw_annual_energy!$D:$D,G$166,raw_annual_energy!$A:$A,mainzone)/1000+SUMIFS(raw_annual_energy!$E:$E,Lists!$S:$S,'Portfolio Analytics'!$C184,raw_annual_energy!$D:$D,G$166,raw_annual_energy!$A:$A,\"CAISO_NW_Hydro\")/1000","v":0},{"$f":"SUMIFS(raw_annual_energy!$E:$E,Lists!$S:$S,'Portfolio Analytics'!$C184,raw_annual_energy!$D:$D,H$166,raw_annual_energy!$A:$A,mainzone)/1000+SUMIFS(raw_annual_energy!$E:$E,Lists!$S:$S,'Portfolio Analytics'!$C184,raw_annual_energy!$D:$D,H$166,raw_annual_energy!$A:$A,\"CAISO_NW_Hydro\")/1000","v":0},{"$f":"SUMIFS(raw_annual_energy!$E:$E,Lists!$S:$S,'Portfolio Analytics'!$C184,raw_annual_energy!$D:$D,I$166,raw_annual_energy!$A:$A,mainzone)/1000+SUMIFS(raw_annual_energy!$E:$E,Lists!$S:$S,'Portfolio Analytics'!$C184,raw_annual_energy!$D:$D,I$166,raw_annual_energy!$A:$A,\"CAISO_NW_Hydro\")/1000","v":0},{"$f":"SUMIFS(raw_annual_energy!$E:$E,Lists!$S:$S,'Portfolio Analytics'!$C184,raw_annual_energy!$D:$D,J$166,raw_annual_energy!$A:$A,mainzone)/1000+SUMIFS(raw_annual_energy!$E:$E,Lists!$S:$S,'Portfolio Analytics'!$C184,raw_annual_energy!$D:$D,J$166,raw_annual_energy!$A:$A,\"CAISO_NW_Hydro\")/1000","v":6778.0500000000293},{"$f":"SUMIFS(raw_annual_energy!$E:$E,Lists!$S:$S,'Portfolio Analytics'!$C184,raw_annual_energy!$D:$D,K$166,raw_annual_energy!$A:$A,mainzone)/1000+SUMIFS(raw_annual_energy!$E:$E,Lists!$S:$S,'Portfolio Analytics'!$C184,raw_annual_energy!$D:$D,K$166,raw_annual_energy!$A:$A,\"CAISO_NW_Hydro\")/1000","v":6778.0500000000293},{"$f":"SUMIFS(raw_annual_energy!$E:$E,Lists!$S:$S,'Portfolio Analytics'!$C184,raw_annual_energy!$D:$D,L$166,raw_annual_energy!$A:$A,mainzone)/1000+SUMIFS(raw_annual_energy!$E:$E,Lists!$S:$S,'Portfolio Analytics'!$C184,raw_annual_energy!$D:$D,L$166,raw_annual_energy!$A:$A,\"CAISO_NW_Hydro\")/1000","v":6778.0500000000293},{"$f":"SUMIFS(raw_annual_energy!$E:$E,Lists!$S:$S,'Portfolio Analytics'!$C184,raw_annual_energy!$D:$D,M$166,raw_annual_energy!$A:$A,mainzone)/1000+SUMIFS(raw_annual_energy!$E:$E,Lists!$S:$S,'Portfolio Analytics'!$C184,raw_annual_energy!$D:$D,M$166,raw_annual_energy!$A:$A,\"CAISO_NW_Hydro\")/1000","v":6778.0500000000293},{"$f":"SUMIFS(raw_annual_energy!$E:$E,Lists!$S:$S,'Portfolio Analytics'!$C184,raw_annual_energy!$D:$D,N$166,raw_annual_energy!$A:$A,mainzone)/1000+SUMIFS(raw_annual_energy!$E:$E,Lists!$S:$S,'Portfolio Analytics'!$C184,raw_annual_energy!$D:$D,N$166,raw_annual_energy!$A:$A,\"CAISO_NW_Hydro\")/1000","v":6778.0500000000293},{"$f":"SUMIFS(raw_annual_energy!$E:$E,Lists!$S:$S,'Portfolio Analytics'!$C184,raw_annual_energy!$D:$D,O$166,raw_annual_energy!$A:$A,mainzone)/1000+SUMIFS(raw_annual_energy!$E:$E,Lists!$S:$S,'Portfolio Analytics'!$C184,raw_annual_energy!$D:$D,O$166,raw_annual_energy!$A:$A,\"CAISO_NW_Hydro\")/1000","v":0},{"$f":"SUMIFS(raw_annual_energy!$E:$E,Lists!$S:$S,'Portfolio Analytics'!$C184,raw_annual_energy!$D:$D,P$166,raw_annual_energy!$A:$A,mainzone)/1000+SUMIFS(raw_annual_energy!$E:$E,Lists!$S:$S,'Portfolio Analytics'!$C184,raw_annual_energy!$D:$D,P$166,raw_annual_energy!$A:$A,\"CAISO_NW_Hydro\")/1000","v":6778.0500000000293},{"$f":"SUMIFS(raw_annual_energy!$E:$E,Lists!$S:$S,'Portfolio Analytics'!$C184,raw_annual_energy!$D:$D,Q$166,raw_annual_energy!$A:$A,mainzone)/1000+SUMIFS(raw_annual_energy!$E:$E,Lists!$S:$S,'Portfolio Analytics'!$C184,raw_annual_energy!$D:$D,Q$166,raw_annual_energy!$A:$A,\"CAISO_NW_Hydro\")/1000","v":0},{"$f":"SUMIFS(raw_annual_energy!$E:$E,Lists!$S:$S,'Portfolio Analytics'!$C184,raw_annual_energy!$D:$D,R$166,raw_annual_energy!$A:$A,mainzone)/1000+SUMIFS(raw_annual_energy!$E:$E,Lists!$S:$S,'Portfolio Analytics'!$C184,raw_annual_energy!$D:$D,R$166,raw_annual_energy!$A:$A,\"CAISO_NW_Hydro\")/1000","v":0},{"$f":"SUMIFS(raw_annual_energy!$E:$E,Lists!$S:$S,'Portfolio Analytics'!$C184,raw_annual_energy!$D:$D,S$166,raw_annual_energy!$A:$A,mainzone)/1000+SUMIFS(raw_annual_energy!$E:$E,Lists!$S:$S,'Portfolio Analytics'!$C184,raw_annual_energy!$D:$D,S$166,raw_annual_energy!$A:$A,\"CAISO_NW_Hydro\")/1000","v":0},{"$f":"SUMIFS(raw_annual_energy!$E:$E,Lists!$S:$S,'Portfolio Analytics'!$C184,raw_annual_energy!$D:$D,T$166,raw_annual_energy!$A:$A,mainzone)/1000+SUMIFS(raw_annual_energy!$E:$E,Lists!$S:$S,'Portfolio Analytics'!$C184,raw_annual_energy!$D:$D,T$166,raw_annual_energy!$A:$A,\"CAISO_NW_Hydro\")/1000","v":6763.7712000000292},{"$f":"SUMIFS(raw_annual_energy!$E:$E,Lists!$S:$S,'Portfolio Analytics'!$C184,raw_annual_energy!$D:$D,U$166,raw_annual_energy!$A:$A,mainzone)/1000+SUMIFS(raw_annual_energy!$E:$E,Lists!$S:$S,'Portfolio Analytics'!$C184,raw_annual_energy!$D:$D,U$166,raw_annual_energy!$A:$A,\"CAISO_NW_Hydro\")/1000","v":0},{"$f":"SUMIFS(raw_annual_energy!$E:$E,Lists!$S:$S,'Portfolio Analytics'!$C184,raw_annual_energy!$D:$D,V$166,raw_annual_energy!$A:$A,mainzone)/1000+SUMIFS(raw_annual_energy!$E:$E,Lists!$S:$S,'Portfolio Analytics'!$C184,raw_annual_energy!$D:$D,V$166,raw_annual_energy!$A:$A,\"CAISO_NW_Hydro\")/1000","v":0},{"$f":"SUMIFS(raw_annual_energy!$E:$E,Lists!$S:$S,'Portfolio Analytics'!$C184,raw_annual_energy!$D:$D,W$166,raw_annual_energy!$A:$A,mainzone)/1000+SUMIFS(raw_annual_energy!$E:$E,Lists!$S:$S,'Portfolio Analytics'!$C184,raw_annual_energy!$D:$D,W$166,raw_annual_energy!$A:$A,\"CAISO_NW_Hydro\")/1000","v":0},{"$f":"SUMIFS(raw_annual_energy!$E:$E,Lists!$S:$S,'Portfolio Analytics'!$C184,raw_annual_energy!$D:$D,X$166,raw_annual_energy!$A:$A,mainzone)/1000+SUMIFS(raw_annual_energy!$E:$E,Lists!$S:$S,'Portfolio Analytics'!$C184,raw_annual_energy!$D:$D,X$166,raw_annual_energy!$A:$A,\"CAISO_NW_Hydro\")/1000","v":0},{"$f":"SUMIFS(raw_annual_energy!$E:$E,Lists!$S:$S,'Portfolio Analytics'!$C184,raw_annual_energy!$D:$D,Y$166,raw_annual_energy!$A:$A,mainzone)/1000+SUMIFS(raw_annual_energy!$E:$E,Lists!$S:$S,'Portfolio Analytics'!$C184,raw_annual_energy!$D:$D,Y$166,raw_annual_energy!$A:$A,\"CAISO_NW_Hydro\")/1000","v":0},{"$f":"SUMIFS(raw_annual_energy!$E:$E,Lists!$S:$S,'Portfolio Analytics'!$C184,raw_annual_energy!$D:$D,Z$166,raw_annual_energy!$A:$A,mainzone)/1000+SUMIFS(raw_annual_energy!$E:$E,Lists!$S:$S,'Portfolio Analytics'!$C184,raw_annual_energy!$D:$D,Z$166,raw_annual_energy!$A:$A,\"CAISO_NW_Hydro\")/1000","v":0},{"$f":"SUMIFS(raw_annual_energy!$E:$E,Lists!$S:$S,'Portfolio Analytics'!$C184,raw_annual_energy!$D:$D,AA$166,raw_annual_energy!$A:$A,mainzone)/1000+SUMIFS(raw_annual_energy!$E:$E,Lists!$S:$S,'Portfolio Analytics'!$C184,raw_annual_energy!$D:$D,AA$166,raw_annual_energy!$A:$A,\"CAISO_NW_Hydro\")/1000","v":0},{"$f":"SUMIFS(raw_annual_energy!$E:$E,Lists!$S:$S,'Portfolio Analytics'!$C184,raw_annual_energy!$D:$D,AB$166,raw_annual_energy!$A:$A,mainzone)/1000+SUMIFS(raw_annual_energy!$E:$E,Lists!$S:$S,'Portfolio Analytics'!$C184,raw_annual_energy!$D:$D,AB$166,raw_annual_energy!$A:$A,\"CAISO_NW_Hydro\")/1000","v":0},{"$f":"SUMIFS(raw_annual_energy!$E:$E,Lists!$S:$S,'Portfolio Analytics'!$C184,raw_annual_energy!$D:$D,AC$166,raw_annual_energy!$A:$A,mainzone)/1000+SUMIFS(raw_annual_energy!$E:$E,Lists!$S:$S,'Portfolio Analytics'!$C184,raw_annual_energy!$D:$D,AC$166,raw_annual_energy!$A:$A,\"CAISO_NW_Hydro\")/1000","v":0},{"$f":"SUMIFS(raw_annual_energy!$E:$E,Lists!$S:$S,'Portfolio Analytics'!$C184,raw_annual_energy!$D:$D,AD$166,raw_annual_energy!$A:$A,mainzone)/1000+SUMIFS(raw_annual_energy!$E:$E,Lists!$S:$S,'Portfolio Analytics'!$C184,raw_annual_energy!$D:$D,AD$166,raw_annual_energy!$A:$A,\"CAISO_NW_Hydro\")/1000","v":0},{"$f":"SUMIFS(raw_annual_energy!$E:$E,Lists!$S:$S,'Portfolio Analytics'!$C184,raw_annual_energy!$D:$D,AE$166,raw_annual_energy!$A:$A,mainzone)/1000+SUMIFS(raw_annual_energy!$E:$E,Lists!$S:$S,'Portfolio Analytics'!$C184,raw_annual_energy!$D:$D,AE$166,raw_annual_energy!$A:$A,\"CAISO_NW_Hydro\")/1000","v":0},{"$f":"SUMIFS(raw_annual_energy!$E:$E,Lists!$S:$S,'Portfolio Analytics'!$C184,raw_annual_energy!$D:$D,AF$166,raw_annual_energy!$A:$A,mainzone)/1000+SUMIFS(raw_annual_energy!$E:$E,Lists!$S:$S,'Portfolio Analytics'!$C184,raw_annual_energy!$D:$D,AF$166,raw_annual_energy!$A:$A,\"CAISO_NW_Hydro\")/1000","v":0},{"$f":"SUMIFS(raw_annual_energy!$E:$E,Lists!$S:$S,'Portfolio Analytics'!$C184,raw_annual_energy!$D:$D,AG$166,raw_annual_energy!$A:$A,mainzone)/1000+SUMIFS(raw_annual_energy!$E:$E,Lists!$S:$S,'Portfolio Analytics'!$C184,raw_annual_energy!$D:$D,AG$166,raw_annual_energy!$A:$A,\"CAISO_NW_Hydro\")/1000","v":0},{"$f":"SUMIFS(raw_annual_energy!$E:$E,Lists!$S:$S,'Portfolio Analytics'!$C184,raw_annual_energy!$D:$D,AH$166,raw_annual_energy!$A:$A,mainzone)/1000+SUMIFS(raw_annual_energy!$E:$E,Lists!$S:$S,'Portfolio Analytics'!$C184,raw_annual_energy!$D:$D,AH$166,raw_annual_energy!$A:$A,\"CAISO_NW_Hydro\")/1000","v":0},{"$f":"SUMIFS(raw_annual_energy!$E:$E,Lists!$S:$S,'Portfolio Analytics'!$C184,raw_annual_energy!$D:$D,AI$166,raw_annual_energy!$A:$A,mainzone)/1000+SUMIFS(raw_annual_energy!$E:$E,Lists!$S:$S,'Portfolio Analytics'!$C184,raw_annual_energy!$D:$D,AI$166,raw_annual_energy!$A:$A,\"CAISO_NW_Hydro\")/1000","v":15303.281999999997},{"$f":"SUMIFS(raw_annual_energy!$E:$E,Lists!$S:$S,'Portfolio Analytics'!$C184,raw_annual_energy!$D:$D,AJ$166,raw_annual_energy!$A:$A,mainzone)/1000+SUMIFS(raw_annual_energy!$E:$E,Lists!$S:$S,'Portfolio Analytics'!$C184,raw_annual_energy!$D:$D,AJ$166,raw_annual_energy!$A:$A,\"CAISO_NW_Hydro\")/1000","v":0},{"$f":"SUMIFS(raw_annual_energy!$E:$E,Lists!$S:$S,'Portfolio Analytics'!$C184,raw_annual_energy!$D:$D,AK$166,raw_annual_energy!$A:$A,mainzone)/1000+SUMIFS(raw_annual_energy!$E:$E,Lists!$S:$S,'Portfolio Analytics'!$C184,raw_annual_energy!$D:$D,AK$166,raw_annual_energy!$A:$A,\"CAISO_NW_Hydro\")/1000","v":0},{"$f":"SUMIFS(raw_annual_energy!$E:$E,Lists!$S:$S,'Portfolio Analytics'!$C184,raw_annual_energy!$D:$D,AL$166,raw_annual_energy!$A:$A,mainzone)/1000+SUMIFS(raw_annual_energy!$E:$E,Lists!$S:$S,'Portfolio Analytics'!$C184,raw_annual_energy!$D:$D,AL$166,raw_annual_energy!$A:$A,\"CAISO_NW_Hydro\")/1000","v":0},{"$f":"SUMIFS(raw_annual_energy!$E:$E,Lists!$S:$S,'Portfolio Analytics'!$C184,raw_annual_energy!$D:$D,AM$166,raw_annual_energy!$A:$A,mainzone)/1000+SUMIFS(raw_annual_energy!$E:$E,Lists!$S:$S,'Portfolio Analytics'!$C184,raw_annual_energy!$D:$D,AM$166,raw_annual_energy!$A:$A,\"CAISO_NW_Hydro\")/1000","v":0},{"$f":"SUMIFS(raw_annual_energy!$E:$E,Lists!$S:$S,'Portfolio Analytics'!$C184,raw_annual_energy!$D:$D,AN$166,raw_annual_energy!$A:$A,mainzone)/1000+SUMIFS(raw_annual_energy!$E:$E,Lists!$S:$S,'Portfolio Analytics'!$C184,raw_annual_energy!$D:$D,AN$166,raw_annual_energy!$A:$A,\"CAISO_NW_Hydro\")/1000","v":0}]
[null,null,{"$f":"Lists!$B23","v":"Small_Hydro"},"GWh",{"$f":"SUMIFS(raw_annual_energy!$E:$E,Lists!$S:$S,'Portfolio Analytics'!$C185,raw_annual_energy!$D:$D,E$166,raw_annual_energy!$A:$A,mainzone)/1000+SUMIFS(raw_annual_energy!$E:$E,Lists!$S:$S,'Portfolio Analytics'!$C185,raw_annual_energy!$D:$D,E$166,raw_annual_energy!$A:$A,\"CAISO_NW_Hydro\")/1000","v":0},{"$f":"SUMIFS(raw_annual_energy!$E:$E,Lists!$S:$S,'Portfolio Analytics'!$C185,raw_annual_energy!$D:$D,F$166,raw_annual_energy!$A:$A,mainzone)/1000+SUMIFS(raw_annual_energy!$E:$E,Lists!$S:$S,'Portfolio Analytics'!$C185,raw_annual_energy!$D:$D,F$166,raw_annual_energy!$A:$A,\"CAISO_NW_Hydro\")/1000","v":0},{"$f":"SUMIFS(raw_annual_energy!$E:$E,Lists!$S:$S,'Portfolio Analytics'!$C185,raw_annual_energy!$D:$D,G$166,raw_annual_energy!$A:$A,mainzone)/1000+SUMIFS(raw_annual_energy!$E:$E,Lists!$S:$S,'Portfolio Analytics'!$C185,raw_annual_energy!$D:$D,G$166,raw_annual_energy!$A:$A,\"CAISO_NW_Hydro\")/1000","v":0},{"$f":"SUMIFS(raw_annual_energy!$E:$E,Lists!$S:$S,'Portfolio Analytics'!$C185,raw_annual_energy!$D:$D,H$166,raw_annual_energy!$A:$A,mainzone)/1000+SUMIFS(raw_annual_energy!$E:$E,Lists!$S:$S,'Portfolio Analytics'!$C185,raw_annual_energy!$D:$D,H$166,raw_annual_energy!$A:$A,\"CAISO_NW_Hydro\")/1000","v":0},{"$f":"SUMIFS(raw_annual_energy!$E:$E,Lists!$S:$S,'Portfolio Analytics'!$C185,raw_annual_energy!$D:$D,I$166,raw_annual_energy!$A:$A,mainzone)/1000+SUMIFS(raw_annual_energy!$E:$E,Lists!$S:$S,'Portfolio Analytics'!$C185,raw_annual_energy!$D:$D,I$166,raw_annual_energy!$A:$A,\"CAISO_NW_Hydro\")/1000","v":0},{"$f":"SUMIFS(raw_annual_energy!$E:$E,Lists!$S:$S,'Portfolio Analytics'!$C185,raw_annual_energy!$D:$D,J$166,raw_annual_energy!$A:$A,mainzone)/1000+SUMIFS(raw_annual_energy!$E:$E,Lists!$S:$S,'Portfolio Analytics'!$C185,raw_annual_energy!$D:$D,J$166,raw_annual_energy!$A:$A,\"CAISO_NW_Hydro\")/1000","v":4326.6515999999792},{"$f":"SUMIFS(raw_annual_energy!$E:$E,Lists!$S:$S,'Portfolio Analytics'!$C185,raw_annual_energy!$D:$D,K$166,raw_annual_energy!$A:$A,mainzone)/1000+SUMIFS(raw_annual_energy!$E:$E,Lists!$S:$S,'Portfolio Analytics'!$C185,raw_annual_energy!$D:$D,K$166,raw_annual_energy!$A:$A,\"CAISO_NW_Hydro\")/1000","v":4326.6515999999792},{"$f":"SUMIFS(raw_annual_energy!$E:$E,Lists!$S:$S,'Portfolio Analytics'!$C185,raw_annual_energy!$D:$D,L$166,raw_annual_energy!$A:$A,mainzone)/1000+SUMIFS(raw_annual_energy!$E:$E,Lists!$S:$S,'Portfolio Analytics'!$C185,raw_annual_energy!$D:$D,L$166,raw_annual_energy!$A:$A,\"CAISO_NW_Hydro\")/1000","v":4326.6515999999792},{"$f":"SUMIFS(raw_annual_energy!$E:$E,Lists!$S:$S,'Portfolio Analytics'!$C185,raw_annual_energy!$D:$D,M$166,raw_annual_energy!$A:$A,mainzone)/1000+SUMIFS(raw_annual_energy!$E:$E,Lists!$S:$S,'Portfolio Analytics'!$C185,raw_annual_energy!$D:$D,M$166,raw_annual_energy!$A:$A,\"CAISO_NW_Hydro\")/1000","v":4326.6515999999792},{"$f":"SUMIFS(raw_annual_energy!$E:$E,Lists!$S:$S,'Portfolio Analytics'!$C185,raw_annual_energy!$D:$D,N$166,raw_annual_energy!$A:$A,mainzone)/1000+SUMIFS(raw_annual_energy!$E:$E,Lists!$S:$S,'Portfolio Analytics'!$C185,raw_annual_energy!$D:$D,N$166,raw_annual_energy!$A:$A,\"CAISO_NW_Hydro\")/1000","v":4326.6515999999792},{"$f":"SUMIFS(raw_annual_energy!$E:$E,Lists!$S:$S,'Portfolio Analytics'!$C185,raw_annual_energy!$D:$D,O$166,raw_annual_energy!$A:$A,mainzone)/1000+SUMIFS(raw_annual_energy!$E:$E,Lists!$S:$S,'Portfolio Analytics'!$C185,raw_annual_energy!$D:$D,O$166,raw_annual_energy!$A:$A,\"CAISO_NW_Hydro\")/1000","v":0},{"$f":"SUMIFS(raw_annual_energy!$E:$E,Lists!$S:$S,'Portfolio Analytics'!$C185,raw_annual_energy!$D:$D,P$166,raw_annual_energy!$A:$A,mainzone)/1000+SUMIFS(raw_annual_energy!$E:$E,Lists!$S:$S,'Portfolio Analytics'!$C185,raw_annual_energy!$D:$D,P$166,raw_annual_energy!$A:$A,\"CAISO_NW_Hydro\")/1000","v":4326.6515999999792},{"$f":"SUMIFS(raw_annual_energy!$E:$E,Lists!$S:$S,'Portfolio Analytics'!$C185,raw_annual_energy!$D:$D,Q$166,raw_annual_energy!$A:$A,mainzone)/1000+SUMIFS(raw_annual_energy!$E:$E,Lists!$S:$S,'Portfolio Analytics'!$C185,raw_annual_energy!$D:$D,Q$166,raw_annual_energy!$A:$A,\"CAISO_NW_Hydro\")/1000","v":0},{"$f":"SUMIFS(raw_annual_energy!$E:$E,Lists!$S:$S,'Portfolio Analytics'!$C185,raw_annual_energy!$D:$D,R$166,raw_annual_energy!$A:$A,mainzone)/1000+SUMIFS(raw_annual_energy!$E:$E,Lists!$S:$S,'Portfolio Analytics'!$C185,raw_annual_energy!$D:$D,R$166,raw_annual_energy!$A:$A,\"CAISO_NW_Hydro\")/1000","v":0},{"$f":"SUMIFS(raw_annual_energy!$E:$E,Lists!$S:$S,'Portfolio Analytics'!$C185,raw_annual_energy!$D:$D,S$166,raw_annual_energy!$A:$A,mainzone)/1000+SUMIFS(raw_annual_energy!$E:$E,Lists!$S:$S,'Portfolio Analytics'!$C185,raw_annual_energy!$D:$D,S$166,raw_annual_energy!$A:$A,\"CAISO_NW_Hydro\")/1000","v":0},{"$f":"SUMIFS(raw_annual_energy!$E:$E,Lists!$S:$S,'Portfolio Analytics'!$C185,raw_annual_energy!$D:$D,T$166,raw_annual_energy!$A:$A,mainzone)/1000+SUMIFS(raw_annual_energy!$E:$E,Lists!$S:$S,'Portfolio Analytics'!$C185,raw_annual_energy!$D:$D,T$166,raw_annual_energy!$A:$A,\"CAISO_NW_Hydro\")/1000","v":4326.6515999999792},{"$f":"SUMIFS(raw_annual_energy!$E:$E,Lists!$S:$S,'Portfolio Analytics'!$C185,raw_annual_energy!$D:$D,U$166,raw_annual_energy!$A:$A,mainzone)/1000+SUMIFS(raw_annual_energy!$E:$E,Lists!$S:$S,'Portfolio Analytics'!$C185,raw_annual_energy!$D:$D,U$166,raw_annual_energy!$A:$A,\"CAISO_NW_Hydro\")/1000","v":0},{"$f":"SUMIFS(raw_annual_energy!$E:$E,Lists!$S:$S,'Portfolio Analytics'!$C185,raw_annual_energy!$D:$D,V$166,raw_annual_energy!$A:$A,mainzone)/1000+SUMIFS(raw_annual_energy!$E:$E,Lists!$S:$S,'Portfolio Analytics'!$C185,raw_annual_energy!$D:$D,V$166,raw_annual_energy!$A:$A,\"CAISO_NW_Hydro\")/1000","v":0},{"$f":"SUMIFS(raw_annual_energy!$E:$E,Lists!$S:$S,'Portfolio Analytics'!$C185,raw_annual_energy!$D:$D,W$166,raw_annual_energy!$A:$A,mainzone)/1000+SUMIFS(raw_annual_energy!$E:$E,Lists!$S:$S,'Portfolio Analytics'!$C185,raw_annual_energy!$D:$D,W$166,raw_annual_energy!$A:$A,\"CAISO_NW_Hydro\")/1000","v":0},{"$f":"SUMIFS(raw_annual_energy!$E:$E,Lists!$S:$S,'Portfolio Analytics'!$C185,raw_annual_energy!$D:$D,X$166,raw_annual_energy!$A:$A,mainzone)/1000+SUMIFS(raw_annual_energy!$E:$E,Lists!$S:$S,'Portfolio Analytics'!$C185,raw_annual_energy!$D:$D,X$166,raw_annual_energy!$A:$A,\"CAISO_NW_Hydro\")/1000","v":0},{"$f":"SUMIFS(raw_annual_energy!$E:$E,Lists!$S:$S,'Portfolio Analytics'!$C185,raw_annual_energy!$D:$D,Y$166,raw_annual_energy!$A:$A,mainzone)/1000+SUMIFS(raw_annual_energy!$E:$E,Lists!$S:$S,'Portfolio Analytics'!$C185,raw_annual_energy!$D:$D,Y$166,raw_annual_energy!$A:$A,\"CAISO_NW_Hydro\")/1000","v":0},{"$f":"SUMIFS(raw_annual_energy!$E:$E,Lists!$S:$S,'Portfolio Analytics'!$C185,raw_annual_energy!$D:$D,Z$166,raw_annual_energy!$A:$A,mainzone)/1000+SUMIFS(raw_annual_energy!$E:$E,Lists!$S:$S,'Portfolio Analytics'!$C185,raw_annual_energy!$D:$D,Z$166,raw_annual_energy!$A:$A,\"CAISO_NW_Hydro\")/1000","v":0},{"$f":"SUMIFS(raw_annual_energy!$E:$E,Lists!$S:$S,'Portfolio Analytics'!$C185,raw_annual_energy!$D:$D,AA$166,raw_annual_energy!$A:$A,mainzone)/1000+SUMIFS(raw_annual_energy!$E:$E,Lists!$S:$S,'Portfolio Analytics'!$C185,raw_annual_energy!$D:$D,AA$166,raw_annual_energy!$A:$A,\"CAISO_NW_Hydro\")/1000","v":0},{"$f":"SUMIFS(raw_annual_energy!$E:$E,Lists!$S:$S,'Portfolio Analytics'!$C185,raw_annual_energy!$D:$D,AB$166,raw_annual_energy!$A:$A,mainzone)/1000+SUMIFS(raw_annual_energy!$E:$E,Lists!$S:$S,'Portfolio Analytics'!$C185,raw_annual_energy!$D:$D,AB$166,raw_annual_energy!$A:$A,\"CAISO_NW_Hydro\")/1000","v":0},{"$f":"SUMIFS(raw_annual_energy!$E:$E,Lists!$S:$S,'Portfolio Analytics'!$C185,raw_annual_energy!$D:$D,AC$166,raw_annual_energy!$A:$A,mainzone)/1000+SUMIFS(raw_annual_energy!$E:$E,Lists!$S:$S,'Portfolio Analytics'!$C185,raw_annual_energy!$D:$D,AC$166,raw_annual_energy!$A:$A,\"CAISO_NW_Hydro\")/1000","v":0},{"$f":"SUMIFS(raw_annual_energy!$E:$E,Lists!$S:$S,'Portfolio Analytics'!$C185,raw_annual_energy!$D:$D,AD$166,raw_annual_energy!$A:$A,mainzone)/1000+SUMIFS(raw_annual_energy!$E:$E,Lists!$S:$S,'Portfolio Analytics'!$C185,raw_annual_energy!$D:$D,AD$166,raw_annual_energy!$A:$A,\"CAISO_NW_Hydro\")/1000","v":0},{"$f":"SUMIFS(raw_annual_energy!$E:$E,Lists!$S:$S,'Portfolio Analytics'!$C185,raw_annual_energy!$D:$D,AE$166,raw_annual_energy!$A:$A,mainzone)/1000+SUMIFS(raw_annual_energy!$E:$E,Lists!$S:$S,'Portfolio Analytics'!$C185,raw_annual_energy!$D:$D,AE$166,raw_annual_energy!$A:$A,\"CAISO_NW_Hydro\")/1000","v":0},{"$f":"SUMIFS(raw_annual_energy!$E:$E,Lists!$S:$S,'Portfolio Analytics'!$C185,raw_annual_energy!$D:$D,AF$166,raw_annual_energy!$A:$A,mainzone)/1000+SUMIFS(raw_annual_energy!$E:$E,Lists!$S:$S,'Portfolio Analytics'!$C185,raw_annual_energy!$D:$D,AF$166,raw_annual_energy!$A:$A,\"CAISO_NW_Hydro\")/1000","v":0},{"$f":"SUMIFS(raw_annual_energy!$E:$E,Lists!$S:$S,'Portfolio Analytics'!$C185,raw_annual_energy!$D:$D,AG$166,raw_annual_energy!$A:$A,mainzone)/1000+SUMIFS(raw_annual_energy!$E:$E,Lists!$S:$S,'Portfolio Analytics'!$C185,raw_annual_energy!$D:$D,AG$166,raw_annual_energy!$A:$A,\"CAISO_NW_Hydro\")/1000","v":0},{"$f":"SUMIFS(raw_annual_energy!$E:$E,Lists!$S:$S,'Portfolio Analytics'!$C185,raw_annual_energy!$D:$D,AH$166,raw_annual_energy!$A:$A,mainzone)/1000+SUMIFS(raw_annual_energy!$E:$E,Lists!$S:$S,'Portfolio Analytics'!$C185,raw_annual_energy!$D:$D,AH$166,raw_annual_energy!$A:$A,\"CAISO_NW_Hydro\")/1000","v":0},{"$f":"SUMIFS(raw_annual_energy!$E:$E,Lists!$S:$S,'Portfolio Analytics'!$C185,raw_annual_energy!$D:$D,AI$166,raw_annual_energy!$A:$A,mainzone)/1000+SUMIFS(raw_annual_energy!$E:$E,Lists!$S:$S,'Portfolio Analytics'!$C185,raw_annual_energy!$D:$D,AI$166,raw_annual_energy!$A:$A,\"CAISO_NW_Hydro\")/1000","v":4326.6515999999792},{"$f":"SUMIFS(raw_annual_energy!$E:$E,Lists!$S:$S,'Portfolio Analytics'!$C185,raw_annual_energy!$D:$D,AJ$166,raw_annual_energy!$A:$A,mainzone)/1000+SUMIFS(raw_annual_energy!$E:$E,Lists!$S:$S,'Portfolio Analytics'!$C185,raw_annual_energy!$D:$D,AJ$166,raw_annual_energy!$A:$A,\"CAISO_NW_Hydro\")/1000","v":0},{"$f":"SUMIFS(raw_annual_energy!$E:$E,Lists!$S:$S,'Portfolio Analytics'!$C185,raw_annual_energy!$D:$D,AK$166,raw_annual_energy!$A:$A,mainzone)/1000+SUMIFS(raw_annual_energy!$E:$E,Lists!$S:$S,'Portfolio Analytics'!$C185,raw_annual_energy!$D:$D,AK$166,raw_annual_energy!$A:$A,\"CAISO_NW_Hydro\")/1000","v":0},{"$f":"SUMIFS(raw_annual_energy!$E:$E,Lists!$S:$S,'Portfolio Analytics'!$C185,raw_annual_energy!$D:$D,AL$166,raw_annual_energy!$A:$A,mainzone)/1000+SUMIFS(raw_annual_energy!$E:$E,Lists!$S:$S,'Portfolio Analytics'!$C185,raw_annual_energy!$D:$D,AL$166,raw_annual_energy!$A:$A,\"CAISO_NW_Hydro\")/1000","v":0},{"$f":"SUMIFS(raw_annual_energy!$E:$E,Lists!$S:$S,'Portfolio Analytics'!$C185,raw_annual_energy!$D:$D,AM$166,raw_annual_energy!$A:$A,mainzone)/1000+SUMIFS(raw_annual_energy!$E:$E,Lists!$S:$S,'Portfolio Analytics'!$C185,raw_annual_energy!$D:$D,AM$166,raw_annual_energy!$A:$A,\"CAISO_NW_Hydro\")/1000","v":0},{"$f":"SUMIFS(raw_annual_energy!$E:$E,Lists!$S:$S,'Portfolio Analytics'!$C185,raw_annual_energy!$D:$D,AN$166,raw_annual_energy!$A:$A,mainzone)/1000+SUMIFS(raw_annual_energy!$E:$E,Lists!$S:$S,'Portfolio Analytics'!$C185,raw_annual_energy!$D:$D,AN$166,raw_annual_energy!$A:$A,\"CAISO_NW_Hydro\")/1000","v":0}]
[null,null,{"$f":"Lists!$B24","v":"Wind"},"GWh",{"$f":"SUMIFS(raw_annual_energy!$E:$E,Lists!$S:$S,'Portfolio Analytics'!$C186,raw_annual_energy!$D:$D,E$166,raw_annual_energy!$A:$A,mainzone)/1000-E187","v":0},{"$f":"SUMIFS(raw_annual_energy!$E:$E,Lists!$S:$S,'Portfolio Analytics'!$C186,raw_annual_energy!$D:$D,F$166,raw_annual_energy!$A:$A,mainzone)/1000-F187","v":0},{"$f":"SUMIFS(raw_annual_energy!$E:$E,Lists!$S:$S,'Portfolio Analytics'!$C186,raw_annual_energy!$D:$D,G$166,raw_annual_energy!$A:$A,mainzone)/1000-G187","v":0},{"$f":"SUMIFS(raw_annual_energy!$E:$E,Lists!$S:$S,'Portfolio Analytics'!$C186,raw_annual_energy!$D:$D,H$166,raw_annual_energy!$A:$A,mainzone)/1000-H187","v":0},{"$f":"SUMIFS(raw_annual_energy!$E:$E,Lists!$S:$S,'Portfolio Analytics'!$C186,raw_annual_energy!$D:$D,I$166,raw_annual_energy!$A:$A,mainzone)/1000-I187","v":0},{"$f":"SUMIFS(raw_annual_energy!$E:$E,Lists!$S:$S,'Portfolio Analytics'!$C186,raw_annual_energy!$D:$D,J$166,raw_annual_energy!$A:$A,mainzone)/1000-J187","v":18295.439589893547},{"$f":"SUMIFS(raw_annual_energy!$E:$E,Lists!$S:$S,'Portfolio Analytics'!$C186,raw_annual_energy!$D:$D,K$166,raw_annual_energy!$A:$A,mainzone)/1000-K187","v":18624.065261933938},{"$f":"SUMIFS(raw_annual_energy!$E:$E,Lists!$S:$S,'Portfolio Analytics'!$C186,raw_annual_energy!$D:$D,L$166,raw_annual_energy!$A:$A,mainzone)/1000-L187","v":26234.095533964773},{"$f":"SUMIFS(raw_annual_energy!$E:$E,Lists!$S:$S,'Portfolio Analytics'!$C186,raw_annual_energy!$D:$D,M$166,raw_annual_energy!$A:$A,mainzone)/1000-M187","v":26987.136321482551},{"$f":"SUMIFS(raw_annual_energy!$E:$E,Lists!$S:$S,'Portfolio Analytics'!$C186,raw_annual_energy!$D:$D,N$166,raw_annual_energy!$A:$A,mainzone)/1000-N187","v":27265.665304250309},{"$f":"SUMIFS(raw_annual_energy!$E:$E,Lists!$S:$S,'Portfolio Analytics'!$C186,raw_annual_energy!$D:$D,O$166,raw_annual_energy!$A:$A,mainzone)/1000-O187","v":0},{"$f":"SUMIFS(raw_annual_energy!$E:$E,Lists!$S:$S,'Portfolio Analytics'!$C186,raw_annual_energy!$D:$D,P$166,raw_annual_energy!$A:$A,mainzone)/1000-P187","v":27334.364944950619},{"$f":"SUMIFS(raw_annual_energy!$E:$E,Lists!$S:$S,'Portfolio Analytics'!$C186,raw_annual_energy!$D:$D,Q$166,raw_annual_energy!$A:$A,mainzone)/1000-Q187","v":0},{"$f":"SUMIFS(raw_annual_energy!$E:$E,Lists!$S:$S,'Portfolio Analytics'!$C186,raw_annual_energy!$D:$D,R$166,raw_annual_energy!$A:$A,mainzone)/1000-R187","v":0},{"$f":"SUMIFS(raw_annual_energy!$E:$E,Lists!$S:$S,'Portfolio Analytics'!$C186,raw_annual_energy!$D:$D,S$166,raw_annual_energy!$A:$A,mainzone)/1000-S187","v":0},{"$f":"SUMIFS(raw_annual_energy!$E:$E,Lists!$S:$S,'Portfolio Analytics'!$C186,raw_annual_energy!$D:$D,T$166,raw_annual_energy!$A:$A,mainzone)/1000-T187","v":30873.373858419727},{"$f":"SUMIFS(raw_annual_energy!$E:$E,Lists!$S:$S,'Portfolio Analytics'!$C186,raw_annual_energy!$D:$D,U$166,raw_annual_energy!$A:$A,mainzone)/1000-U187","v":0},{"$f":"SUMIFS(raw_annual_energy!$E:$E,Lists!$S:$S,'Portfolio Analytics'!$C186,raw_annual_energy!$D:$D,V$166,raw_annual_energy!$A:$A,mainzone)/1000-V187","v":0},{"$f":"SUMIFS(raw_annual_energy!$E:$E,Lists!$S:$S,'Portfolio Analytics'!$C186,raw_annual_energy!$D:$D,W$166,raw_annual_energy!$A:$A,mainzone)/1000-W187","v":0},{"$f":"SUMIFS(raw_annual_energy!$E:$E,Lists!$S:$S,'Portfolio Analytics'!$C186,raw_annual_energy!$D:$D,X$166,raw_annual_energy!$A:$A,mainzone)/1000-X187","v":0},{"$f":"SUMIFS(raw_annual_energy!$E:$E,Lists!$S:$S,'Portfolio Analytics'!$C186,raw_annual_energy!$D:$D,Y$166,raw_annual_energy!$A:$A,mainzone)/1000-Y187","v":0},{"$f":"SUMIFS(raw_annual_energy!$E:$E,Lists!$S:$S,'Portfolio Analytics'!$C186,raw_annual_energy!$D:$D,Z$166,raw_annual_energy!$A:$A,mainzone)/1000-Z187","v":0},{"$f":"SUMIFS(raw_annual_energy!$E:$E,Lists!$S:$S,'Portfolio Analytics'!$C186,raw_annual_energy!$D:$D,AA$166,raw_annual_energy!$A:$A,mainzone)/1000-AA187","v":0},{"$f":"SUMIFS(raw_annual_energy!$E:$E,Lists!$S:$S,'Portfolio Analytics'!$C186,raw_annual_energy!$D:$D,AB$166,raw_annual_energy!$A:$A,mainzone)/1000-AB187","v":0},{"$f":"SUMIFS(raw_annual_energy!$E:$E,Lists!$S:$S,'Portfolio Analytics'!$C186,raw_annual_energy!$D:$D,AC$166,raw_annual_energy!$A:$A,mainzone)/1000-AC187","v":0},{"$f":"SUMIFS(raw_annual_energy!$E:$E,Lists!$S:$S,'Portfolio Analytics'!$C186,raw_annual_energy!$D:$D,AD$166,raw_annual_energy!$A:$A,mainzone)/1000-AD187","v":0},{"$f":"SUMIFS(raw_annual_energy!$E:$E,Lists!$S:$S,'Portfolio Analytics'!$C186,raw_annual_energy!$D:$D,AE$166,raw_annual_energy!$A:$A,mainzone)/1000-AE187","v":0},{"$f":"SUMIFS(raw_annual_energy!$E:$E,Lists!$S:$S,'Portfolio Analytics'!$C186,raw_annual_energy!$D:$D,AF$166,raw_annual_energy!$A:$A,mainzone)/1000-AF187","v":0},{"$f":"SUMIFS(raw_annual_energy!$E:$E,Lists!$S:$S,'Portfolio Analytics'!$C186,raw_annual_energy!$D:$D,AG$166,raw_annual_energy!$A:$A,mainzone)/1000-AG187","v":0},{"$f":"SUMIFS(raw_annual_energy!$E:$E,Lists!$S:$S,'Portfolio Analytics'!$C186,raw_annual_energy!$D:$D,AH$166,raw_annual_energy!$A:$A,mainzone)/1000-AH187","v":0},{"$f":"SUMIFS(raw_annual_energy!$E:$E,Lists!$S:$S,'Portfolio Analytics'!$C186,raw_annual_energy!$D:$D,AI$166,raw_annual_energy!$A:$A,mainzone)/1000-AI187","v":31934.342500700652},{"$f":"SUMIFS(raw_annual_energy!$E:$E,Lists!$S:$S,'Portfolio Analytics'!$C186,raw_annual_energy!$D:$D,AJ$166,raw_annual_energy!$A:$A,mainzone)/1000-AJ187","v":0},{"$f":"SUMIFS(raw_annual_energy!$E:$E,Lists!$S:$S,'Portfolio Analytics'!$C186,raw_annual_energy!$D:$D,AK$166,raw_annual_energy!$A:$A,mainzone)/1000-AK187","v":0},{"$f":"SUMIFS(raw_annual_energy!$E:$E,Lists!$S:$S,'Portfolio Analytics'!$C186,raw_annual_energy!$D:$D,AL$166,raw_annual_energy!$A:$A,mainzone)/1000-AL187","v":0},{"$f":"SUMIFS(raw_annual_energy!$E:$E,Lists!$S:$S,'Portfolio Analytics'!$C186,raw_annual_energy!$D:$D,AM$166,raw_annual_energy!$A:$A,mainzone)/1000-AM187","v":0},{"$f":"SUMIFS(raw_annual_energy!$E:$E,Lists!$S:$S,'Portfolio Analytics'!$C186,raw_annual_energy!$D:$D,AN$166,raw_annual_energy!$A:$A,mainzone)/1000-AN187","v":0}]
[null,null,{"$f":"Lists!$B25","v":"Wind OOS New Tx"},"GWh",{"$f":"SUMIFS(raw_annual_energy!$E:$E,Lists!$S:$S,'Portfolio Analytics'!$C186,raw_annual_energy!$D:$D,E$166,raw_annual_energy!$A:$A,mainzone,Lists!$T:$T,\"Out-Of-State\")/1000","v":0},{"$f":"SUMIFS(raw_annual_energy!$E:$E,Lists!$S:$S,'Portfolio Analytics'!$C186,raw_annual_energy!$D:$D,F$166,raw_annual_energy!$A:$A,mainzone,Lists!$T:$T,\"Out-Of-State\")/1000","v":0},{"$f":"SUMIFS(raw_annual_energy!$E:$E,Lists!$S:$S,'Portfolio Analytics'!$C186,raw_annual_energy!$D:$D,G$166,raw_annual_energy!$A:$A,mainzone,Lists!$T:$T,\"Out-Of-State\")/1000","v":0},{"$f":"SUMIFS(raw_annual_energy!$E:$E,Lists!$S:$S,'Portfolio Analytics'!$C186,raw_annual_energy!$D:$D,H$166,raw_annual_energy!$A:$A,mainzone,Lists!$T:$T,\"Out-Of-State\")/1000","v":0},{"$f":"SUMIFS(raw_annual_energy!$E:$E,Lists!$S:$S,'Portfolio Analytics'!$C186,raw_annual_energy!$D:$D,I$166,raw_annual_energy!$A:$A,mainzone,Lists!$T:$T,\"Out-Of-State\")/1000","v":0},{"$f":"SUMIFS(raw_annual_energy!$E:$E,Lists!$S:$S,'Portfolio Analytics'!$C186,raw_annual_energy!$D:$D,J$166,raw_annual_energy!$A:$A,mainzone,Lists!$T:$T,\"Out-Of-State\")/1000","v":0},{"$f":"SUMIFS(raw_annual_energy!$E:$E,Lists!$S:$S,'Portfolio Analytics'!$C186,raw_annual_energy!$D:$D,K$166,raw_annual_energy!$A:$A,mainzone,Lists!$T:$T,\"Out-Of-State\")/1000","v":0},{"$f":"SUMIFS(raw_annual_energy!$E:$E,Lists!$S:$S,'Portfolio Analytics'!$C186,raw_annual_energy!$D:$D,L$166,raw_annual_energy!$A:$A,mainzone,Lists!$T:$T,\"Out-Of-State\")/1000","v":0},{"$f":"SUMIFS(raw_annual_energy!$E:$E,Lists!$S:$S,'Portfolio Analytics'!$C186,raw_annual_energy!$D:$D,M$166,raw_annual_energy!$A:$A,mainzone,Lists!$T:$T,\"Out-Of-State\")/1000","v":0},{"$f":"SUMIFS(raw_annual_energy!$E:$E,Lists!$S:$S,'Portfolio Analytics'!$C186,raw_annual_energy!$D:$D,N$166,raw_annual_energy!$A:$A,mainzone,Lists!$T:$T,\"Out-Of-State\")/1000","v":0},{"$f":"SUMIFS(raw_annual_energy!$E:$E,Lists!$S:$S,'Portfolio Analytics'!$C186,raw_annual_energy!$D:$D,O$166,raw_annual_energy!$A:$A,mainzone,Lists!$T:$T,\"Out-Of-State\")/1000","v":0},{"$f":"SUMIFS(raw_annual_energy!$E:$E,Lists!$S:$S,'Portfolio Analytics'!$C186,raw_annual_energy!$D:$D,P$166,raw_annual_energy!$A:$A,mainzone,Lists!$T:$T,\"Out-Of-State\")/1000","v":0},{"$f":"SUMIFS(raw_annual_energy!$E:$E,Lists!$S:$S,'Portfolio Analytics'!$C186,raw_annual_energy!$D:$D,Q$166,raw_annual_energy!$A:$A,mainzone,Lists!$T:$T,\"Out-Of-State\")/1000","v":0},{"$f":"SUMIFS(raw_annual_energy!$E:$E,Lists!$S:$S,'Portfolio Analytics'!$C186,raw_annual_energy!$D:$D,R$166,raw_annual_energy!$A:$A,mainzone,Lists!$T:$T,\"Out-Of-State\")/1000","v":0},{"$f":"SUMIFS(raw_annual_energy!$E:$E,Lists!$S:$S,'Portfolio Analytics'!$C186,raw_annual_energy!$D:$D,S$166,raw_annual_energy!$A:$A,mainzone,Lists!$T:$T,\"Out-Of-State\")/1000","v":0},{"$f":"SUMIFS(raw_annual_energy!$E:$E,Lists!$S:$S,'Portfolio Analytics'!$C186,raw_annual_energy!$D:$D,T$166,raw_annual_energy!$A:$A,mainzone,Lists!$T:$T,\"Out-Of-State\")/1000","v":5060.3784539347598},{"$f":"SUMIFS(raw_annual_energy!$E:$E,Lists!$S:$S,'Portfolio Analytics'!$C186,raw_annual_energy!$D:$D,U$166,raw_annual_energy!$A:$A,mainzone,Lists!$T:$T,\"Out-Of-State\")/1000","v":0},{"$f":"SUMIFS(raw_annual_energy!$E:$E,Lists!$S:$S,'Portfolio Analytics'!$C186,raw_annual_energy!$D:$D,V$166,raw_annual_energy!$A:$A,mainzone,Lists!$T:$T,\"Out-Of-State\")/1000","v":0},{"$f":"SUMIFS(raw_annual_energy!$E:$E,Lists!$S:$S,'Portfolio Analytics'!$C186,raw_annual_energy!$D:$D,W$166,raw_annual_energy!$A:$A,mainzone,Lists!$T:$T,\"Out-Of-State\")/1000","v":0},{"$f":"SUMIFS(raw_annual_energy!$E:$E,Lists!$S:$S,'Portfolio Analytics'!$C186,raw_annual_energy!$D:$D,X$166,raw_annual_energy!$A:$A,mainzone,Lists!$T:$T,\"Out-Of-State\")/1000","v":0},{"$f":"SUMIFS(raw_annual_energy!$E:$E,Lists!$S:$S,'Portfolio Analytics'!$C186,raw_annual_energy!$D:$D,Y$166,raw_annual_energy!$A:$A,mainzone,Lists!$T:$T,\"Out-Of-State\")/1000","v":0},{"$f":"SUMIFS(raw_annual_energy!$E:$E,Lists!$S:$S,'Portfolio Analytics'!$C186,raw_annual_energy!$D:$D,Z$166,raw_annual_energy!$A:$A,mainzone,Lists!$T:$T,\"Out-Of-State\")/1000","v":0},{"$f":"SUMIFS(raw_annual_energy!$E:$E,Lists!$S:$S,'Portfolio Analytics'!$C186,raw_annual_energy!$D:$D,AA$166,raw_annual_energy!$A:$A,mainzone,Lists!$T:$T,\"Out-Of-State\")/1000","v":0},{"$f":"SUMIFS(raw_annual_energy!$E:$E,Lists!$S:$S,'Portfolio Analytics'!$C186,raw_annual_energy!$D:$D,AB$166,raw_annual_energy!$A:$A,mainzone,Lists!$T:$T,\"Out-Of-State\")/1000","v":0},{"$f":"SUMIFS(raw_annual_energy!$E:$E,Lists!$S:$S,'Portfolio Analytics'!$C186,raw_annual_energy!$D:$D,AC$166,raw_annual_energy!$A:$A,mainzone,Lists!$T:$T,\"Out-Of-State\")/1000","v":0},{"$f":"SUMIFS(raw_annual_energy!$E:$E,Lists!$S:$S,'Portfolio Analytics'!$C186,raw_annual_energy!$D:$D,AD$166,raw_annual_energy!$A:$A,mainzone,Lists!$T:$T,\"Out-Of-State\")/1000","v":0},{"$f":"SUMIFS(raw_annual_energy!$E:$E,Lists!$S:$S,'Portfolio Analytics'!$C186,raw_annual_energy!$D:$D,AE$166,raw_annual_energy!$A:$A,mainzone,Lists!$T:$T,\"Out-Of-State\")/1000","v":0},{"$f":"SUMIFS(raw_annual_energy!$E:$E,Lists!$S:$S,'Portfolio Analytics'!$C186,raw_annual_energy!$D:$D,AF$166,raw_annual_energy!$A:$A,mainzone,Lists!$T:$T,\"Out-Of-State\")/1000","v":0},{"$f":"SUMIFS(raw_annual_energy!$E:$E,Lists!$S:$S,'Portfolio Analytics'!$C186,raw_annual_energy!$D:$D,AG$166,raw_annual_energy!$A:$A,mainzone,Lists!$T:$T,\"Out-Of-State\")/1000","v":0},{"$f":"SUMIFS(raw_annual_energy!$E:$E,Lists!$S:$S,'Portfolio Analytics'!$C186,raw_annual_energy!$D:$D,AH$166,raw_annual_energy!$A:$A,mainzone,Lists!$T:$T,\"Out-Of-State\")/1000","v":0},{"$f":"SUMIFS(raw_annual_energy!$E:$E,Lists!$S:$S,'Portfolio Analytics'!$C186,raw_annual_energy!$D:$D,AI$166,raw_annual_energy!$A:$A,mainzone,Lists!$T:$T,\"Out-Of-State\")/1000","v":11367.992827387001},{"$f":"SUMIFS(raw_annual_energy!$E:$E,Lists!$S:$S,'Portfolio Analytics'!$C186,raw_annual_energy!$D:$D,AJ$166,raw_annual_energy!$A:$A,mainzone,Lists!$T:$T,\"Out-Of-State\")/1000","v":0},{"$f":"SUMIFS(raw_annual_energy!$E:$E,Lists!$S:$S,'Portfolio Analytics'!$C186,raw_annual_energy!$D:$D,AK$166,raw_annual_energy!$A:$A,mainzone,Lists!$T:$T,\"Out-Of-State\")/1000","v":0},{"$f":"SUMIFS(raw_annual_energy!$E:$E,Lists!$S:$S,'Portfolio Analytics'!$C186,raw_annual_energy!$D:$D,AL$166,raw_annual_energy!$A:$A,mainzone,Lists!$T:$T,\"Out-Of-State\")/1000","v":0},{"$f":"SUMIFS(raw_annual_energy!$E:$E,Lists!$S:$S,'Portfolio Analytics'!$C186,raw_annual_energy!$D:$D,AM$166,raw_annual_energy!$A:$A,mainzone,Lists!$T:$T,\"Out-Of-State\")/1000","v":0},{"$f":"SUMIFS(raw_annual_energy!$E:$E,Lists!$S:$S,'Portfolio Analytics'!$C186,raw_annual_energy!$D:$D,AN$166,raw_annual_energy!$A:$A,mainzone,Lists!$T:$T,\"Out-Of-State\")/1000","v":0}]
[null,null,{"$f":"Lists!$B26","v":"Offshore_Wind"},"GWh",{"$f":"SUMIFS(raw_annual_energy!$E:$E,Lists!$S:$S,'Portfolio Analytics'!$C188,raw_annual_energy!$D:$D,E$166,raw_annual_energy!$A:$A,mainzone)/1000+SUMIFS(raw_annual_energy!$E:$E,Lists!$S:$S,'Portfolio Analytics'!$C188,raw_annual_energy!$D:$D,E$166,raw_annual_energy!$A:$A,\"CAISO_NW_Hydro\")/1000","v":0},{"$f":"SUMIFS(raw_annual_energy!$E:$E,Lists!$S:$S,'Portfolio Analytics'!$C188,raw_annual_energy!$D:$D,F$166,raw_annual_energy!$A:$A,mainzone)/1000+SUMIFS(raw_annual_energy!$E:$E,Lists!$S:$S,'Portfolio Analytics'!$C188,raw_annual_energy!$D:$D,F$166,raw_annual_energy!$A:$A,\"CAISO_NW_Hydro\")/1000","v":0},{"$f":"SUMIFS(raw_annual_energy!$E:$E,Lists!$S:$S,'Portfolio Analytics'!$C188,raw_annual_energy!$D:$D,G$166,raw_annual_energy!$A:$A,mainzone)/1000+SUMIFS(raw_annual_energy!$E:$E,Lists!$S:$S,'Portfolio Analytics'!$C188,raw_annual_energy!$D:$D,G$166,raw_annual_energy!$A:$A,\"CAISO_NW_Hydro\")/1000","v":0},{"$f":"SUMIFS(raw_annual_energy!$E:$E,Lists!$S:$S,'Portfolio Analytics'!$C188,raw_annual_energy!$D:$D,H$166,raw_annual_energy!$A:$A,mainzone)/1000+SUMIFS(raw_annual_energy!$E:$E,Lists!$S:$S,'Portfolio Analytics'!$C188,raw_annual_energy!$D:$D,H$166,raw_annual_energy!$A:$A,\"CAISO_NW_Hydro\")/1000","v":0},{"$f":"SUMIFS(raw_annual_energy!$E:$E,Lists!$S:$S,'Portfolio Analytics'!$C188,raw_annual_energy!$D:$D,I$166,raw_annual_energy!$A:$A,mainzone)/1000+SUMIFS(raw_annual_energy!$E:$E,Lists!$S:$S,'Portfolio Analytics'!$C188,raw_annual_energy!$D:$D,I$166,raw_annual_energy!$A:$A,\"CAISO_NW_Hydro\")/1000","v":0},{"$f":"SUMIFS(raw_annual_energy!$E:$E,Lists!$S:$S,'Portfolio Analytics'!$C188,raw_annual_energy!$D:$D,J$166,raw_annual_energy!$A:$A,mainzone)/1000+SUMIFS(raw_annual_energy!$E:$E,Lists!$S:$S,'Portfolio Analytics'!$C188,raw_annual_energy!$D:$D,J$166,raw_annual_energy!$A:$A,\"CAISO_NW_Hydro\")/1000","v":0},{"$f":"SUMIFS(raw_annual_energy!$E:$E,Lists!$S:$S,'Portfolio Analytics'!$C188,raw_annual_energy!$D:$D,K$166,raw_annual_energy!$A:$A,mainzone)/1000+SUMIFS(raw_annual_energy!$E:$E,Lists!$S:$S,'Portfolio Analytics'!$C188,raw_annual_energy!$D:$D,K$166,raw_annual_energy!$A:$A,\"CAISO_NW_Hydro\")/1000","v":0},{"$f":"SUMIFS(raw_annual_energy!$E:$E,Lists!$S:$S,'Portfolio Analytics'!$C188,raw_annual_energy!$D:$D,L$166,raw_annual_energy!$A:$A,mainzone)/1000+SUMIFS(raw_annual_energy!$E:$E,Lists!$S:$S,'Portfolio Analytics'!$C188,raw_annual_energy!$D:$D,L$166,raw_annual_energy!$A:$A,\"CAISO_NW_Hydro\")/1000","v":0},{"$f":"SUMIFS(raw_annual_energy!$E:$E,Lists!$S:$S,'Portfolio Analytics'!$C188,raw_annual_energy!$D:$D,M$166,raw_annual_energy!$A:$A,mainzone)/1000+SUMIFS(raw_annual_energy!$E:$E,Lists!$S:$S,'Portfolio Analytics'!$C188,raw_annual_energy!$D:$D,M$166,raw_annual_energy!$A:$A,\"CAISO_NW_Hydro\")/1000","v":0},{"$f":"SUMIFS(raw_annual_energy!$E:$E,Lists!$S:$S,'Portfolio Analytics'!$C188,raw_annual_energy!$D:$D,N$166,raw_annual_energy!$A:$A,mainzone)/1000+SUMIFS(raw_annual_energy!$E:$E,Lists!$S:$S,'Portfolio Analytics'!$C188,raw_annual_energy!$D:$D,N$166,raw_annual_energy!$A:$A,\"CAISO_NW_Hydro\")/1000","v":0},{"$f":"SUMIFS(raw_annual_energy!$E:$E,Lists!$S:$S,'Portfolio Analytics'!$C188,raw_annual_energy!$D:$D,O$166,raw_annual_energy!$A:$A,mainzone)/1000+SUMIFS(raw_annual_energy!$E:$E,Lists!$S:$S,'Portfolio Analytics'!$C188,raw_annual_energy!$D:$D,O$166,raw_annual_energy!$A:$A,\"CAISO_NW_Hydro\")/1000","v":0},{"$f":"SUMIFS(raw_annual_energy!$E:$E,Lists!$S:$S,'Portfolio Analytics'!$C188,raw_annual_energy!$D:$D,P$166,raw_annual_energy!$A:$A,mainzone)/1000+SUMIFS(raw_annual_energy!$E:$E,Lists!$S:$S,'Portfolio Analytics'!$C188,raw_annual_energy!$D:$D,P$166,raw_annual_energy!$A:$A,\"CAISO_NW_Hydro\")/1000","v":0},{"$f":"SUMIFS(raw_annual_energy!$E:$E,Lists!$S:$S,'Portfolio Analytics'!$C188,raw_annual_energy!$D:$D,Q$166,raw_annual_energy!$A:$A,mainzone)/1000+SUMIFS(raw_annual_energy!$E:$E,Lists!$S:$S,'Portfolio Analytics'!$C188,raw_annual_energy!$D:$D,Q$166,raw_annual_energy!$A:$A,\"CAISO_NW_Hydro\")/1000","v":0},{"$f":"SUMIFS(raw_annual_energy!$E:$E,Lists!$S:$S,'Portfolio Analytics'!$C188,raw_annual_energy!$D:$D,R$166,raw_annual_energy!$A:$A,mainzone)/1000+SUMIFS(raw_annual_energy!$E:$E,Lists!$S:$S,'Portfolio Analytics'!$C188,raw_annual_energy!$D:$D,R$166,raw_annual_energy!$A:$A,\"CAISO_NW_Hydro\")/1000","v":0},{"$f":"SUMIFS(raw_annual_energy!$E:$E,Lists!$S:$S,'Portfolio Analytics'!$C188,raw_annual_energy!$D:$D,S$166,raw_annual_energy!$A:$A,mainzone)/1000+SUMIFS(raw_annual_energy!$E:$E,Lists!$S:$S,'Portfolio Analytics'!$C188,raw_annual_energy!$D:$D,S$166,raw_annual_energy!$A:$A,\"CAISO_NW_Hydro\")/1000","v":0},{"$f":"SUMIFS(raw_annual_energy!$E:$E,Lists!$S:$S,'Portfolio Analytics'!$C188,raw_annual_energy!$D:$D,T$166,raw_annual_energy!$A:$A,mainzone)/1000+SUMIFS(raw_annual_energy!$E:$E,Lists!$S:$S,'Portfolio Analytics'!$C188,raw_annual_energy!$D:$D,T$166,raw_annual_energy!$A:$A,\"CAISO_NW_Hydro\")/1000","v":0},{"$f":"SUMIFS(raw_annual_energy!$E:$E,Lists!$S:$S,'Portfolio Analytics'!$C188,raw_annual_energy!$D:$D,U$166,raw_annual_energy!$A:$A,mainzone)/1000+SUMIFS(raw_annual_energy!$E:$E,Lists!$S:$S,'Portfolio Analytics'!$C188,raw_annual_energy!$D:$D,U$166,raw_annual_energy!$A:$A,\"CAISO_NW_Hydro\")/1000","v":0},{"$f":"SUMIFS(raw_annual_energy!$E:$E,Lists!$S:$S,'Portfolio Analytics'!$C188,raw_annual_energy!$D:$D,V$166,raw_annual_energy!$A:$A,mainzone)/1000+SUMIFS(raw_annual_energy!$E:$E,Lists!$S:$S,'Portfolio Analytics'!$C188,raw_annual_energy!$D:$D,V$166,raw_annual_energy!$A:$A,\"CAISO_NW_Hydro\")/1000","v":0},{"$f":"SUMIFS(raw_annual_energy!$E:$E,Lists!$S:$S,'Portfolio Analytics'!$C188,raw_annual_energy!$D:$D,W$166,raw_annual_energy!$A:$A,mainzone)/1000+SUMIFS(raw_annual_energy!$E:$E,Lists!$S:$S,'Portfolio Analytics'!$C188,raw_annual_energy!$D:$D,W$166,raw_annual_energy!$A:$A,\"CAISO_NW_Hydro\")/1000","v":0},{"$f":"SUMIFS(raw_annual_energy!$E:$E,Lists!$S:$S,'Portfolio Analytics'!$C188,raw_annual_energy!$D:$D,X$166,raw_annual_energy!$A:$A,mainzone)/1000+SUMIFS(raw_annual_energy!$E:$E,Lists!$S:$S,'Portfolio Analytics'!$C188,raw_annual_energy!$D:$D,X$166,raw_annual_energy!$A:$A,\"CAISO_NW_Hydro\")/1000","v":0},{"$f":"SUMIFS(raw_annual_energy!$E:$E,Lists!$S:$S,'Portfolio Analytics'!$C188,raw_annual_energy!$D:$D,Y$166,raw_annual_energy!$A:$A,mainzone)/1000+SUMIFS(raw_annual_energy!$E:$E,Lists!$S:$S,'Portfolio Analytics'!$C188,raw_annual_energy!$D:$D,Y$166,raw_annual_energy!$A:$A,\"CAISO_NW_Hydro\")/1000","v":0},{"$f":"SUMIFS(raw_annual_energy!$E:$E,Lists!$S:$S,'Portfolio Analytics'!$C188,raw_annual_energy!$D:$D,Z$166,raw_annual_energy!$A:$A,mainzone)/1000+SUMIFS(raw_annual_energy!$E:$E,Lists!$S:$S,'Portfolio Analytics'!$C188,raw_annual_energy!$D:$D,Z$166,raw_annual_energy!$A:$A,\"CAISO_NW_Hydro\")/1000","v":0},{"$f":"SUMIFS(raw_annual_energy!$E:$E,Lists!$S:$S,'Portfolio Analytics'!$C188,raw_annual_energy!$D:$D,AA$166,raw_annual_energy!$A:$A,mainzone)/1000+SUMIFS(raw_annual_energy!$E:$E,Lists!$S:$S,'Portfolio Analytics'!$C188,raw_annual_energy!$D:$D,AA$166,raw_annual_energy!$A:$A,\"CAISO_NW_Hydro\")/1000","v":0},{"$f":"SUMIFS(raw_annual_energy!$E:$E,Lists!$S:$S,'Portfolio Analytics'!$C188,raw_annual_energy!$D:$D,AB$166,raw_annual_energy!$A:$A,mainzone)/1000+SUMIFS(raw_annual_energy!$E:$E,Lists!$S:$S,'Portfolio Analytics'!$C188,raw_annual_energy!$D:$D,AB$166,raw_annual_energy!$A:$A,\"CAISO_NW_Hydro\")/1000","v":0},{"$f":"SUMIFS(raw_annual_energy!$E:$E,Lists!$S:$S,'Portfolio Analytics'!$C188,raw_annual_energy!$D:$D,AC$166,raw_annual_energy!$A:$A,mainzone)/1000+SUMIFS(raw_annual_energy!$E:$E,Lists!$S:$S,'Portfolio Analytics'!$C188,raw_annual_energy!$D:$D,AC$166,raw_annual_energy!$A:$A,\"CAISO_NW_Hydro\")/1000","v":0},{"$f":"SUMIFS(raw_annual_energy!$E:$E,Lists!$S:$S,'Portfolio Analytics'!$C188,raw_annual_energy!$D:$D,AD$166,raw_annual_energy!$A:$A,mainzone)/1000+SUMIFS(raw_annual_energy!$E:$E,Lists!$S:$S,'Portfolio Analytics'!$C188,raw_annual_energy!$D:$D,AD$166,raw_annual_energy!$A:$A,\"CAISO_NW_Hydro\")/1000","v":0},{"$f":"SUMIFS(raw_annual_energy!$E:$E,Lists!$S:$S,'Portfolio Analytics'!$C188,raw_annual_energy!$D:$D,AE$166,raw_annual_energy!$A:$A,mainzone)/1000+SUMIFS(raw_annual_energy!$E:$E,Lists!$S:$S,'Portfolio Analytics'!$C188,raw_annual_energy!$D:$D,AE$166,raw_annual_energy!$A:$A,\"CAISO_NW_Hydro\")/1000","v":0},{"$f":"SUMIFS(raw_annual_energy!$E:$E,Lists!$S:$S,'Portfolio Analytics'!$C188,raw_annual_energy!$D:$D,AF$166,raw_annual_energy!$A:$A,mainzone)/1000+SUMIFS(raw_annual_energy!$E:$E,Lists!$S:$S,'Portfolio Analytics'!$C188,raw_annual_energy!$D:$D,AF$166,raw_annual_energy!$A:$A,\"CAISO_NW_Hydro\")/1000","v":0},{"$f":"SUMIFS(raw_annual_energy!$E:$E,Lists!$S:$S,'Portfolio Analytics'!$C188,raw_annual_energy!$D:$D,AG$166,raw_annual_energy!$A:$A,mainzone)/1000+SUMIFS(raw_annual_energy!$E:$E,Lists!$S:$S,'Portfolio Analytics'!$C188,raw_annual_energy!$D:$D,AG$166,raw_annual_energy!$A:$A,\"CAISO_NW_Hydro\")/1000","v":0},{"$f":"SUMIFS(raw_annual_energy!$E:$E,Lists!$S:$S,'Portfolio Analytics'!$C188,raw_annual_energy!$D:$D,AH$166,raw_annual_energy!$A:$A,mainzone)/1000+SUMIFS(raw_annual_energy!$E:$E,Lists!$S:$S,'Portfolio Analytics'!$C188,raw_annual_energy!$D:$D,AH$166,raw_annual_energy!$A:$A,\"CAISO_NW_Hydro\")/1000","v":0},{"$f":"SUMIFS(raw_annual_energy!$E:$E,Lists!$S:$S,'Portfolio Analytics'!$C188,raw_annual_energy!$D:$D,AI$166,raw_annual_energy!$A:$A,mainzone)/1000+SUMIFS(raw_annual_energy!$E:$E,Lists!$S:$S,'Portfolio Analytics'!$C188,raw_annual_energy!$D:$D,AI$166,raw_annual_energy!$A:$A,\"CAISO_NW_Hydro\")/1000","v":0},{"$f":"SUMIFS(raw_annual_energy!$E:$E,Lists!$S:$S,'Portfolio Analytics'!$C188,raw_annual_energy!$D:$D,AJ$166,raw_annual_energy!$A:$A,mainzone)/1000+SUMIFS(raw_annual_energy!$E:$E,Lists!$S:$S,'Portfolio Analytics'!$C188,raw_annual_energy!$D:$D,AJ$166,raw_annual_energy!$A:$A,\"CAISO_NW_Hydro\")/1000","v":0},{"$f":"SUMIFS(raw_annual_energy!$E:$E,Lists!$S:$S,'Portfolio Analytics'!$C188,raw_annual_energy!$D:$D,AK$166,raw_annual_energy!$A:$A,mainzone)/1000+SUMIFS(raw_annual_energy!$E:$E,Lists!$S:$S,'Portfolio Analytics'!$C188,raw_annual_energy!$D:$D,AK$166,raw_annual_energy!$A:$A,\"CAISO_NW_Hydro\")/1000","v":0},{"$f":"SUMIFS(raw_annual_energy!$E:$E,Lists!$S:$S,'Portfolio Analytics'!$C188,raw_annual_energy!$D:$D,AL$166,raw_annual_energy!$A:$A,mainzone)/1000+SUMIFS(raw_annual_energy!$E:$E,Lists!$S:$S,'Portfolio Analytics'!$C188,raw_annual_energy!$D:$D,AL$166,raw_annual_energy!$A:$A,\"CAISO_NW_Hydro\")/1000","v":0},{"$f":"SUMIFS(raw_annual_energy!$E:$E,Lists!$S:$S,'Portfolio Analytics'!$C188,raw_annual_energy!$D:$D,AM$166,raw_annual_energy!$A:$A,mainzone)/1000+SUMIFS(raw_annual_energy!$E:$E,Lists!$S:$S,'Portfolio Analytics'!$C188,raw_annual_energy!$D:$D,AM$166,raw_annual_energy!$A:$A,\"CAISO_NW_Hydro\")/1000","v":0},{"$f":"SUMIFS(raw_annual_energy!$E:$E,Lists!$S:$S,'Portfolio Analytics'!$C188,raw_annual_energy!$D:$D,AN$166,raw_annual_energy!$A:$A,mainzone)/1000+SUMIFS(raw_annual_energy!$E:$E,Lists!$S:$S,'Portfolio Analytics'!$C188,raw_annual_energy!$D:$D,AN$166,raw_annual_energy!$A:$A,\"CAISO_NW_Hydro\")/1000","v":0}]
[null,null,{"$f":"Lists!$B27","v":"Pumped_Hydro"},"GWh",{"$f":"E233+E246","v":0},{"$f":"F233+F246","v":0},0,0,0,-187.97050116102119,-215.52674911760289,-272.2996392556621,-339.34889079957469,-364.10133750604587,0,-829.06254390441904,0,0,0,-1864.4310329310667,0,0,0,0,0,0,0,0,0,0,0,0,0,0,-1932.699661809153,0,0,0,0,0]
[null,null,{"$f":"Lists!$B28","v":"Li_Battery"},"GWh",{"$f":"E230+E243","v":0},{"$f":"F230+F243","v":0},0,0,0,-570.1099885898559,-1140.5427556191219,-1198.3373982806752,-1350.8633327794698,-1803.2095200781473,0,-2794.0742814733353,0,0,0,-3836.5577084325664,0,0,0,0,0,0,0,0,0,0,0,0,0,0,-25664.917041620381,0,0,0,0,0]
[null,null,{"$f":"Lists!$B29","v":"BTM_Li_Battery"},"GWh",{"$f":"E231+E244","v":0},{"$f":"F231+F244","v":0},0,0,0,-12.8165451163668,-11.338248010523301,-11.960827305706299,-12.3916111861058,-12.4687982536496,0,-13.8945540091688,0,0,0,-17.044249658047399,0,0,0,0,0,0,0,0,0,0,0,0,0,0,-36.714874808186401,0,0,0,0,0]
[null,null,{"$f":"Lists!$B30","v":"Flow_Battery"},"GWh",{"$f":"E245+E232","v":0},{"$f":"F245+F232","v":0},0,0,0,0,0,0,0,0,0,0,0,0,0,0,0,0,0,0,0,0,0,0,0,0,0,0,0,0,0,0,0,0,0,0]
[null,null,"Imports (unspecified)","GWh",{"$f":"(SUMIFS(raw_transmission_flows!$F:$F,raw_transmission_flows!$D:$D,E$166,raw_transmission_flows!$C:$C,mainzone)+ SUMIFS(raw_transmission_flows!$F:$F,raw_transmission_flows!$D:$D,E$166,raw_transmission_flows!$C:$C,\"CAISO_NW_Hydro\")-SUMIFS(raw_transmission_flows!$F:$F,raw_transmission_flows!$D:$D,E$166,raw_transmission_flows!$B:$B,\"CAISO_NW_Hydro\")-SUMIFS(raw_transmission_flows!$F:$F,raw_transmission_flows!$D:$D,E$166,raw_transmission_flows!$B:$B,mainzone))/1000","v":0},{"$f":"(SUMIFS(raw_transmission_flows!$F:$F,raw_transmission_flows!$D:$D,F$166,raw_transmission_flows!$C:$C,mainzone)+ SUMIFS(raw_transmission_flows!$F:$F,raw_transmission_flows!$D:$D,F$166,raw_transmission_flows!$C:$C,\"CAISO_NW_Hydro\")-SUMIFS(raw_transmission_flows!$F:$F,raw_transmission_flows!$D:$D,F$166,raw_transmission_flows!$B:$B,\"CAISO_NW_Hydro\")-SUMIFS(raw_transmission_flows!$F:$F,raw_transmission_flows!$D:$D,F$166,raw_transmission_flows!$B:$B,mainzone))/1000","v":0},{"$f":"(SUMIFS(raw_transmission_flows!$F:$F,raw_transmission_flows!$D:$D,G$166,raw_transmission_flows!$C:$C,mainzone)+ SUMIFS(raw_transmission_flows!$F:$F,raw_transmission_flows!$D:$D,G$166,raw_transmission_flows!$C:$C,\"CAISO_NW_Hydro\")-SUMIFS(raw_transmission_flows!$F:$F,raw_transmission_flows!$D:$D,G$166,raw_transmission_flows!$B:$B,\"CAISO_NW_Hydro\")-SUMIFS(raw_transmission_flows!$F:$F,raw_transmission_flows!$D:$D,G$166,raw_transmission_flows!$B:$B,mainzone))/1000","v":0},{"$f":"(SUMIFS(raw_transmission_flows!$F:$F,raw_transmission_flows!$D:$D,H$166,raw_transmission_flows!$C:$C,mainzone)+ SUMIFS(raw_transmission_flows!$F:$F,raw_transmission_flows!$D:$D,H$166,raw_transmission_flows!$C:$C,\"CAISO_NW_Hydro\")-SUMIFS(raw_transmission_flows!$F:$F,raw_transmission_flows!$D:$D,H$166,raw_transmission_flows!$B:$B,\"CAISO_NW_Hydro\")-SUMIFS(raw_transmission_flows!$F:$F,raw_transmission_flows!$D:$D,H$166,raw_transmission_flows!$B:$B,mainzone))/1000","v":0},{"$f":"(SUMIFS(raw_transmission_flows!$F:$F,raw_transmission_flows!$D:$D,I$166,raw_transmission_flows!$C:$C,mainzone)+ SUMIFS(raw_transmission_flows!$F:$F,raw_transmission_flows!$D:$D,I$166,raw_transmission_flows!$C:$C,\"CAISO_NW_Hydro\")-SUMIFS(raw_transmission_flows!$F:$F,raw_transmission_flows!$D:$D,I$166,raw_transmission_flows!$B:$B,\"CAISO_NW_Hydro\")-SUMIFS(raw_transmission_flows!$F:$F,raw_transmission_flows!$D:$D,I$166,raw_transmission_flows!$B:$B,mainzone))/1000","v":0},{"$f":"(SUMIFS(raw_transmission_flows!$F:$F,raw_transmission_flows!$D:$D,J$166,raw_transmission_flows!$C:$C,mainzone)+ SUMIFS(raw_transmission_flows!$F:$F,raw_transmission_flows!$D:$D,J$166,raw_transmission_flows!$C:$C,\"CAISO_NW_Hydro\")-SUMIFS(raw_transmission_flows!$F:$F,raw_transmission_flows!$D:$D,J$166,raw_transmission_flows!$B:$B,\"CAISO_NW_Hydro\")-SUMIFS(raw_transmission_flows!$F:$F,raw_transmission_flows!$D:$D,J$166,raw_transmission_flows!$B:$B,mainzone))/1000","v":27190.712797978911},{"$f":"(SUMIFS(raw_transmission_flows!$F:$F,raw_transmission_flows!$D:$D,K$166,raw_transmission_flows!$C:$C,mainzone)+ SUMIFS(raw_transmission_flows!$F:$F,raw_transmission_flows!$D:$D,K$166,raw_transmission_flows!$C:$C,\"CAISO_NW_Hydro\")-SUMIFS(raw_transmission_flows!$F:$F,raw_transmission_flows!$D:$D,K$166,raw_transmission_flows!$B:$B,\"CAISO_NW_Hydro\")-SUMIFS(raw_transmission_flows!$F:$F,raw_transmission_flows!$D:$D,K$166,raw_transmission_flows!$B:$B,mainzone))/1000","v":25142.709687845283},{"$f":"(SUMIFS(raw_transmission_flows!$F:$F,raw_transmission_flows!$D:$D,L$166,raw_transmission_flows!$C:$C,mainzone)+ SUMIFS(raw_transmission_flows!$F:$F,raw_transmission_flows!$D:$D,L$166,raw_transmission_flows!$C:$C,\"CAISO_NW_Hydro\")-SUMIFS(raw_transmission_flows!$F:$F,raw_transmission_flows!$D:$D,L$166,raw_transmission_flows!$B:$B,\"CAISO_NW_Hydro\")-SUMIFS(raw_transmission_flows!$F:$F,raw_transmission_flows!$D:$D,L$166,raw_transmission_flows!$B:$B,mainzone))/1000","v":23526.519948852176},{"$f":"(SUMIFS(raw_transmission_flows!$F:$F,raw_transmission_flows!$D:$D,M$166,raw_transmission_flows!$C:$C,mainzone)+ SUMIFS(raw_transmission_flows!$F:$F,raw_transmission_flows!$D:$D,M$166,raw_transmission_flows!$C:$C,\"CAISO_NW_Hydro\")-SUMIFS(raw_transmission_flows!$F:$F,raw_transmission_flows!$D:$D,M$166,raw_transmission_flows!$B:$B,\"CAISO_NW_Hydro\")-SUMIFS(raw_transmission_flows!$F:$F,raw_transmission_flows!$D:$D,M$166,raw_transmission_flows!$B:$B,mainzone))/1000","v":24808.952006599142},{"$f":"(SUMIFS(raw_transmission_flows!$F:$F,raw_transmission_flows!$D:$D,N$166,raw_transmission_flows!$C:$C,mainzone)+ SUMIFS(raw_transmission_flows!$F:$F,raw_transmission_flows!$D:$D,N$166,raw_transmission_flows!$C:$C,\"CAISO_NW_Hydro\")-SUMIFS(raw_transmission_flows!$F:$F,raw_transmission_flows!$D:$D,N$166,raw_transmission_flows!$B:$B,\"CAISO_NW_Hydro\")-SUMIFS(raw_transmission_flows!$F:$F,raw_transmission_flows!$D:$D,N$166,raw_transmission_flows!$B:$B,mainzone))/1000","v":27587.570091612393},{"$f":"(SUMIFS(raw_transmission_flows!$F:$F,raw_transmission_flows!$D:$D,O$166,raw_transmission_flows!$C:$C,mainzone)+ SUMIFS(raw_transmission_flows!$F:$F,raw_transmission_flows!$D:$D,O$166,raw_transmission_flows!$C:$C,\"CAISO_NW_Hydro\")-SUMIFS(raw_transmission_flows!$F:$F,raw_transmission_flows!$D:$D,O$166,raw_transmission_flows!$B:$B,\"CAISO_NW_Hydro\")-SUMIFS(raw_transmission_flows!$F:$F,raw_transmission_flows!$D:$D,O$166,raw_transmission_flows!$B:$B,mainzone))/1000","v":0},{"$f":"(SUMIFS(raw_transmission_flows!$F:$F,raw_transmission_flows!$D:$D,P$166,raw_transmission_flows!$C:$C,mainzone)+ SUMIFS(raw_transmission_flows!$F:$F,raw_transmission_flows!$D:$D,P$166,raw_transmission_flows!$C:$C,\"CAISO_NW_Hydro\")-SUMIFS(raw_transmission_flows!$F:$F,raw_transmission_flows!$D:$D,P$166,raw_transmission_flows!$B:$B,\"CAISO_NW_Hydro\")-SUMIFS(raw_transmission_flows!$F:$F,raw_transmission_flows!$D:$D,P$166,raw_transmission_flows!$B:$B,mainzone))/1000","v":23255.228652513182},{"$f":"(SUMIFS(raw_transmission_flows!$F:$F,raw_transmission_flows!$D:$D,Q$166,raw_transmission_flows!$C:$C,mainzone)+ SUMIFS(raw_transmission_flows!$F:$F,raw_transmission_flows!$D:$D,Q$166,raw_transmission_flows!$C:$C,\"CAISO_NW_Hydro\")-SUMIFS(raw_transmission_flows!$F:$F,raw_transmission_flows!$D:$D,Q$166,raw_transmission_flows!$B:$B,\"CAISO_NW_Hydro\")-SUMIFS(raw_transmission_flows!$F:$F,raw_transmission_flows!$D:$D,Q$166,raw_transmission_flows!$B:$B,mainzone))/1000","v":0},{"$f":"(SUMIFS(raw_transmission_flows!$F:$F,raw_transmission_flows!$D:$D,R$166,raw_transmission_flows!$C:$C,mainzone)+ SUMIFS(raw_transmission_flows!$F:$F,raw_transmission_flows!$D:$D,R$166,raw_transmission_flows!$C:$C,\"CAISO_NW_Hydro\")-SUMIFS(raw_transmission_flows!$F:$F,raw_transmission_flows!$D:$D,R$166,raw_transmission_flows!$B:$B,\"CAISO_NW_Hydro\")-SUMIFS(raw_transmission_flows!$F:$F,raw_transmission_flows!$D:$D,R$166,raw_transmission_flows!$B:$B,mainzone))/1000","v":0},{"$f":"(SUMIFS(raw_transmission_flows!$F:$F,raw_transmission_flows!$D:$D,S$166,raw_transmission_flows!$C:$C,mainzone)+ SUMIFS(raw_transmission_flows!$F:$F,raw_transmission_flows!$D:$D,S$166,raw_transmission_flows!$C:$C,\"CAISO_NW_Hydro\")-SUMIFS(raw_transmission_flows!$F:$F,raw_transmission_flows!$D:$D,S$166,raw_transmission_flows!$B:$B,\"CAISO_NW_Hydro\")-SUMIFS(raw_transmission_flows!$F:$F,raw_transmission_flows!$D:$D,S$166,raw_transmission_flows!$B:$B,mainzone))/1000","v":0},{"$f":"(SUMIFS(raw_transmission_flows!$F:$F,raw_transmission_flows!$D:$D,T$166,raw_transmission_flows!$C:$C,mainzone)+ SUMIFS(raw_transmission_flows!$F:$F,raw_transmission_flows!$D:$D,T$166,raw_transmission_flows!$C:$C,\"CAISO_NW_Hydro\")-SUMIFS(raw_transmission_flows!$F:$F,raw_transmission_flows!$D:$D,T$166,raw_transmission_flows!$B:$B,\"CAISO_NW_Hydro\")-SUMIFS(raw_transmission_flows!$F:$F,raw_transmission_flows!$D:$D,T$166,raw_transmission_flows!$B:$B,mainzone))/1000","v":21736.095698412642},{"$f":"(SUMIFS(raw_transmission_flows!$F:$F,raw_transmission_flows!$D:$D,U$166,raw_transmission_flows!$C:$C,mainzone)+ SUMIFS(raw_transmission_flows!$F:$F,raw_transmission_flows!$D:$D,U$166,raw_transmission_flows!$C:$C,\"CAISO_NW_Hydro\")-SUMIFS(raw_transmission_flows!$F:$F,raw_transmission_flows!$D:$D,U$166,raw_transmission_flows!$B:$B,\"CAISO_NW_Hydro\")-SUMIFS(raw_transmission_flows!$F:$F,raw_transmission_flows!$D:$D,U$166,raw_transmission_flows!$B:$B,mainzone))/1000","v":0},{"$f":"(SUMIFS(raw_transmission_flows!$F:$F,raw_transmission_flows!$D:$D,V$166,raw_transmission_flows!$C:$C,mainzone)+ SUMIFS(raw_transmission_flows!$F:$F,raw_transmission_flows!$D:$D,V$166,raw_transmission_flows!$C:$C,\"CAISO_NW_Hydro\")-SUMIFS(raw_transmission_flows!$F:$F,raw_transmission_flows!$D:$D,V$166,raw_transmission_flows!$B:$B,\"CAISO_NW_Hydro\")-SUMIFS(raw_transmission_flows!$F:$F,raw_transmission_flows!$D:$D,V$166,raw_transmission_flows!$B:$B,mainzone))/1000","v":0},{"$f":"(SUMIFS(raw_transmission_flows!$F:$F,raw_transmission_flows!$D:$D,W$166,raw_transmission_flows!$C:$C,mainzone)+ SUMIFS(raw_transmission_flows!$F:$F,raw_transmission_flows!$D:$D,W$166,raw_transmission_flows!$C:$C,\"CAISO_NW_Hydro\")-SUMIFS(raw_transmission_flows!$F:$F,raw_transmission_flows!$D:$D,W$166,raw_transmission_flows!$B:$B,\"CAISO_NW_Hydro\")-SUMIFS(raw_transmission_flows!$F:$F,raw_transmission_flows!$D:$D,W$166,raw_transmission_flows!$B:$B,mainzone))/1000","v":0},{"$f":"(SUMIFS(raw_transmission_flows!$F:$F,raw_transmission_flows!$D:$D,X$166,raw_transmission_flows!$C:$C,mainzone)+ SUMIFS(raw_transmission_flows!$F:$F,raw_transmission_flows!$D:$D,X$166,raw_transmission_flows!$C:$C,\"CAISO_NW_Hydro\")-SUMIFS(raw_transmission_flows!$F:$F,raw_transmission_flows!$D:$D,X$166,raw_transmission_flows!$B:$B,\"CAISO_NW_Hydro\")-SUMIFS(raw_transmission_flows!$F:$F,raw_transmission_flows!$D:$D,X$166,raw_transmission_flows!$B:$B,mainzone))/1000","v":0},{"$f":"(SUMIFS(raw_transmission_flows!$F:$F,raw_transmission_flows!$D:$D,Y$166,raw_transmission_flows!$C:$C,mainzone)+ SUMIFS(raw_transmission_flows!$F:$F,raw_transmission_flows!$D:$D,Y$166,raw_transmission_flows!$C:$C,\"CAISO_NW_Hydro\")-SUMIFS(raw_transmission_flows!$F:$F,raw_transmission_flows!$D:$D,Y$166,raw_transmission_flows!$B:$B,\"CAISO_NW_Hydro\")-SUMIFS(raw_transmission_flows!$F:$F,raw_transmission_flows!$D:$D,Y$166,raw_transmission_flows!$B:$B,mainzone))/1000","v":0},{"$f":"(SUMIFS(raw_transmission_flows!$F:$F,raw_transmission_flows!$D:$D,Z$166,raw_transmission_flows!$C:$C,mainzone)+ SUMIFS(raw_transmission_flows!$F:$F,raw_transmission_flows!$D:$D,Z$166,raw_transmission_flows!$C:$C,\"CAISO_NW_Hydro\")-SUMIFS(raw_transmission_flows!$F:$F,raw_transmission_flows!$D:$D,Z$166,raw_transmission_flows!$B:$B,\"CAISO_NW_Hydro\")-SUMIFS(raw_transmission_flows!$F:$F,raw_transmission_flows!$D:$D,Z$166,raw_transmission_flows!$B:$B,mainzone))/1000","v":0},{"$f":"(SUMIFS(raw_transmission_flows!$F:$F,raw_transmission_flows!$D:$D,AA$166,raw_transmission_flows!$C:$C,mainzone)+ SUMIFS(raw_transmission_flows!$F:$F,raw_transmission_flows!$D:$D,AA$166,raw_transmission_flows!$C:$C,\"CAISO_NW_Hydro\")-SUMIFS(raw_transmission_flows!$F:$F,raw_transmission_flows!$D:$D,AA$166,raw_transmission_flows!$B:$B,\"CAISO_NW_Hydro\")-SUMIFS(raw_transmission_flows!$F:$F,raw_transmission_flows!$D:$D,AA$166,raw_transmission_flows!$B:$B,mainzone))/1000","v":0},{"$f":"(SUMIFS(raw_transmission_flows!$F:$F,raw_transmission_flows!$D:$D,AB$166,raw_transmission_flows!$C:$C,mainzone)+ SUMIFS(raw_transmission_flows!$F:$F,raw_transmission_flows!$D:$D,AB$166,raw_transmission_flows!$C:$C,\"CAISO_NW_Hydro\")-SUMIFS(raw_transmission_flows!$F:$F,raw_transmission_flows!$D:$D,AB$166,raw_transmission_flows!$B:$B,\"CAISO_NW_Hydro\")-SUMIFS(raw_transmission_flows!$F:$F,raw_transmission_flows!$D:$D,AB$166,raw_transmission_flows!$B:$B,mainzone))/1000","v":0},{"$f":"(SUMIFS(raw_transmission_flows!$F:$F,raw_transmission_flows!$D:$D,AC$166,raw_transmission_flows!$C:$C,mainzone)+ SUMIFS(raw_transmission_flows!$F:$F,raw_transmission_flows!$D:$D,AC$166,raw_transmission_flows!$C:$C,\"CAISO_NW_Hydro\")-SUMIFS(raw_transmission_flows!$F:$F,raw_transmission_flows!$D:$D,AC$166,raw_transmission_flows!$B:$B,\"CAISO_NW_Hydro\")-SUMIFS(raw_transmission_flows!$F:$F,raw_transmission_flows!$D:$D,AC$166,raw_transmission_flows!$B:$B,mainzone))/1000","v":0},{"$f":"(SUMIFS(raw_transmission_flows!$F:$F,raw_transmission_flows!$D:$D,AD$166,raw_transmission_flows!$C:$C,mainzone)+ SUMIFS(raw_transmission_flows!$F:$F,raw_transmission_flows!$D:$D,AD$166,raw_transmission_flows!$C:$C,\"CAISO_NW_Hydro\")-SUMIFS(raw_transmission_flows!$F:$F,raw_transmission_flows!$D:$D,AD$166,raw_transmission_flows!$B:$B,\"CAISO_NW_Hydro\")-SUMIFS(raw_transmission_flows!$F:$F,raw_transmission_flows!$D:$D,AD$166,raw_transmission_flows!$B:$B,mainzone))/1000","v":0},{"$f":"(SUMIFS(raw_transmission_flows!$F:$F,raw_transmission_flows!$D:$D,AE$166,raw_transmission_flows!$C:$C,mainzone)+ SUMIFS(raw_transmission_flows!$F:$F,raw_transmission_flows!$D:$D,AE$166,raw_transmission_flows!$C:$C,\"CAISO_NW_Hydro\")-SUMIFS(raw_transmission_flows!$F:$F,raw_transmission_flows!$D:$D,AE$166,raw_transmission_flows!$B:$B,\"CAISO_NW_Hydro\")-SUMIFS(raw_transmission_flows!$F:$F,raw_transmission_flows!$D:$D,AE$166,raw_transmission_flows!$B:$B,mainzone))/1000","v":0},{"$f":"(SUMIFS(raw_transmission_flows!$F:$F,raw_transmission_flows!$D:$D,AF$166,raw_transmission_flows!$C:$C,mainzone)+ SUMIFS(raw_transmission_flows!$F:$F,raw_transmission_flows!$D:$D,AF$166,raw_transmission_flows!$C:$C,\"CAISO_NW_Hydro\")-SUMIFS(raw_transmission_flows!$F:$F,raw_transmission_flows!$D:$D,AF$166,raw_transmission_flows!$B:$B,\"CAISO_NW_Hydro\")-SUMIFS(raw_transmission_flows!$F:$F,raw_transmission_flows!$D:$D,AF$166,raw_transmission_flows!$B:$B,mainzone))/1000","v":0},{"$f":"(SUMIFS(raw_transmission_flows!$F:$F,raw_transmission_flows!$D:$D,AG$166,raw_transmission_flows!$C:$C,mainzone)+ SUMIFS(raw_transmission_flows!$F:$F,raw_transmission_flows!$D:$D,AG$166,raw_transmission_flows!$C:$C,\"CAISO_NW_Hydro\")-SUMIFS(raw_transmission_flows!$F:$F,raw_transmission_flows!$D:$D,AG$166,raw_transmission_flows!$B:$B,\"CAISO_NW_Hydro\")-SUMIFS(raw_transmission_flows!$F:$F,raw_transmission_flows!$D:$D,AG$166,raw_transmission_flows!$B:$B,mainzone))/1000","v":0},{"$f":"(SUMIFS(raw_transmission_flows!$F:$F,raw_transmission_flows!$D:$D,AH$166,raw_transmission_flows!$C:$C,mainzone)+ SUMIFS(raw_transmission_flows!$F:$F,raw_transmission_flows!$D:$D,AH$166,raw_transmission_flows!$C:$C,\"CAISO_NW_Hydro\")-SUMIFS(raw_transmission_flows!$F:$F,raw_transmission_flows!$D:$D,AH$166,raw_transmission_flows!$B:$B,\"CAISO_NW_Hydro\")-SUMIFS(raw_transmission_flows!$F:$F,raw_transmission_flows!$D:$D,AH$166,raw_transmission_flows!$B:$B,mainzone))/1000","v":0},{"$f":"(SUMIFS(raw_transmission_flows!$F:$F,raw_transmission_flows!$D:$D,AI$166,raw_transmission_flows!$C:$C,mainzone)+ SUMIFS(raw_transmission_flows!$F:$F,raw_transmission_flows!$D:$D,AI$166,raw_transmission_flows!$C:$C,\"CAISO_NW_Hydro\")-SUMIFS(raw_transmission_flows!$F:$F,raw_transmission_flows!$D:$D,AI$166,raw_transmission_flows!$B:$B,\"CAISO_NW_Hydro\")-SUMIFS(raw_transmission_flows!$F:$F,raw_transmission_flows!$D:$D,AI$166,raw_transmission_flows!$B:$B,mainzone))/1000","v":1980.2043422008901},{"$f":"(SUMIFS(raw_transmission_flows!$F:$F,raw_transmission_flows!$D:$D,AJ$166,raw_transmission_flows!$C:$C,mainzone)+ SUMIFS(raw_transmission_flows!$F:$F,raw_transmission_flows!$D:$D,AJ$166,raw_transmission_flows!$C:$C,\"CAISO_NW_Hydro\")-SUMIFS(raw_transmission_flows!$F:$F,raw_transmission_flows!$D:$D,AJ$166,raw_transmission_flows!$B:$B,\"CAISO_NW_Hydro\")-SUMIFS(raw_transmission_flows!$F:$F,raw_transmission_flows!$D:$D,AJ$166,raw_transmission_flows!$B:$B,mainzone))/1000","v":0},{"$f":"(SUMIFS(raw_transmission_flows!$F:$F,raw_transmission_flows!$D:$D,AK$166,raw_transmission_flows!$C:$C,mainzone)+ SUMIFS(raw_transmission_flows!$F:$F,raw_transmission_flows!$D:$D,AK$166,raw_transmission_flows!$C:$C,\"CAISO_NW_Hydro\")-SUMIFS(raw_transmission_flows!$F:$F,raw_transmission_flows!$D:$D,AK$166,raw_transmission_flows!$B:$B,\"CAISO_NW_Hydro\")-SUMIFS(raw_transmission_flows!$F:$F,raw_transmission_flows!$D:$D,AK$166,raw_transmission_flows!$B:$B,mainzone))/1000","v":0},{"$f":"(SUMIFS(raw_transmission_flows!$F:$F,raw_transmission_flows!$D:$D,AL$166,raw_transmission_flows!$C:$C,mainzone)+ SUMIFS(raw_transmission_flows!$F:$F,raw_transmission_flows!$D:$D,AL$166,raw_transmission_flows!$C:$C,\"CAISO_NW_Hydro\")-SUMIFS(raw_transmission_flows!$F:$F,raw_transmission_flows!$D:$D,AL$166,raw_transmission_flows!$B:$B,\"CAISO_NW_Hydro\")-SUMIFS(raw_transmission_flows!$F:$F,raw_transmission_flows!$D:$D,AL$166,raw_transmission_flows!$B:$B,mainzone))/1000","v":0},{"$f":"(SUMIFS(raw_transmission_flows!$F:$F,raw_transmission_flows!$D:$D,AM$166,raw_transmission_flows!$C:$C,mainzone)+ SUMIFS(raw_transmission_flows!$F:$F,raw_transmission_flows!$D:$D,AM$166,raw_transmission_flows!$C:$C,\"CAISO_NW_Hydro\")-SUMIFS(raw_transmission_flows!$F:$F,raw_transmission_flows!$D:$D,AM$166,raw_transmission_flows!$B:$B,\"CAISO_NW_Hydro\")-SUMIFS(raw_transmission_flows!$F:$F,raw_transmission_flows!$D:$D,AM$166,raw_transmission_flows!$B:$B,mainzone))/1000","v":0},{"$f":"(SUMIFS(raw_transmission_flows!$F:$F,raw_transmission_flows!$D:$D,AN$166,raw_transmission_flows!$C:$C,mainzone)+ SUMIFS(raw_transmission_flows!$F:$F,raw_transmission_flows!$D:$D,AN$166,raw_transmission_flows!$C:$C,\"CAISO_NW_Hydro\")-SUMIFS(raw_transmission_flows!$F:$F,raw_transmission_flows!$D:$D,AN$166,raw_transmission_flows!$B:$B,\"CAISO_NW_Hydro\")-SUMIFS(raw_transmission_flows!$F:$F,raw_transmission_flows!$D:$D,AN$166,raw_transmission_flows!$B:$B,mainzone))/1000","v":0}]
[null,null,"Exports","GWh",{"$f":"-(SUMIFS(raw_transmission_flows!$G:$G,raw_transmission_flows!$D:$D,E$166,raw_transmission_flows!$C:$C,mainzone)-SUMIFS(raw_transmission_flows!$G:$G,raw_transmission_flows!$D:$D,E$166,raw_transmission_flows!$B:$B,mainzone))/1000","v":0},{"$f":"-(SUMIFS(raw_transmission_flows!$G:$G,raw_transmission_flows!$D:$D,F$166,raw_transmission_flows!$C:$C,mainzone)-SUMIFS(raw_transmission_flows!$G:$G,raw_transmission_flows!$D:$D,F$166,raw_transmission_flows!$B:$B,mainzone))/1000","v":0},{"$f":"-(SUMIFS(raw_transmission_flows!$G:$G,raw_transmission_flows!$D:$D,G$166,raw_transmission_flows!$C:$C,mainzone)-SUMIFS(raw_transmission_flows!$G:$G,raw_transmission_flows!$D:$D,G$166,raw_transmission_flows!$B:$B,mainzone))/1000","v":0},{"$f":"-(SUMIFS(raw_transmission_flows!$G:$G,raw_transmission_flows!$D:$D,H$166,raw_transmission_flows!$C:$C,mainzone)-SUMIFS(raw_transmission_flows!$G:$G,raw_transmission_flows!$D:$D,H$166,raw_transmission_flows!$B:$B,mainzone))/1000","v":0},{"$f":"-(SUMIFS(raw_transmission_flows!$G:$G,raw_transmission_flows!$D:$D,I$166,raw_transmission_flows!$C:$C,mainzone)-SUMIFS(raw_transmission_flows!$G:$G,raw_transmission_flows!$D:$D,I$166,raw_transmission_flows!$B:$B,mainzone))/1000","v":0},{"$f":"-(SUMIFS(raw_transmission_flows!$G:$G,raw_transmission_flows!$D:$D,J$166,raw_transmission_flows!$C:$C,mainzone)-SUMIFS(raw_transmission_flows!$G:$G,raw_transmission_flows!$D:$D,J$166,raw_transmission_flows!$B:$B,mainzone))/1000","v":-856.87940436737824},{"$f":"-(SUMIFS(raw_transmission_flows!$G:$G,raw_transmission_flows!$D:$D,K$166,raw_transmission_flows!$C:$C,mainzone)-SUMIFS(raw_transmission_flows!$G:$G,raw_transmission_flows!$D:$D,K$166,raw_transmission_flows!$B:$B,mainzone))/1000","v":-705.78662968087497},{"$f":"-(SUMIFS(raw_transmission_flows!$G:$G,raw_transmission_flows!$D:$D,L$166,raw_transmission_flows!$C:$C,mainzone)-SUMIFS(raw_transmission_flows!$G:$G,raw_transmission_flows!$D:$D,L$166,raw_transmission_flows!$B:$B,mainzone))/1000","v":-1904.666474900306},{"$f":"-(SUMIFS(raw_transmission_flows!$G:$G,raw_transmission_flows!$D:$D,M$166,raw_transmission_flows!$C:$C,mainzone)-SUMIFS(raw_transmission_flows!$G:$G,raw_transmission_flows!$D:$D,M$166,raw_transmission_flows!$B:$B,mainzone))/1000","v":-2381.5635308699211},{"$f":"-(SUMIFS(raw_transmission_flows!$G:$G,raw_transmission_flows!$D:$D,N$166,raw_transmission_flows!$C:$C,mainzone)-SUMIFS(raw_transmission_flows!$G:$G,raw_transmission_flows!$D:$D,N$166,raw_transmission_flows!$B:$B,mainzone))/1000","v":-2284.5543217453173},{"$f":"-(SUMIFS(raw_transmission_flows!$G:$G,raw_transmission_flows!$D:$D,O$166,raw_transmission_flows!$C:$C,mainzone)-SUMIFS(raw_transmission_flows!$G:$G,raw_transmission_flows!$D:$D,O$166,raw_transmission_flows!$B:$B,mainzone))/1000","v":0},{"$f":"-(SUMIFS(raw_transmission_flows!$G:$G,raw_transmission_flows!$D:$D,P$166,raw_transmission_flows!$C:$C,mainzone)-SUMIFS(raw_transmission_flows!$G:$G,raw_transmission_flows!$D:$D,P$166,raw_transmission_flows!$B:$B,mainzone))/1000","v":-2220.1564582964911},{"$f":"-(SUMIFS(raw_transmission_flows!$G:$G,raw_transmission_flows!$D:$D,Q$166,raw_transmission_flows!$C:$C,mainzone)-SUMIFS(raw_transmission_flows!$G:$G,raw_transmission_flows!$D:$D,Q$166,raw_transmission_flows!$B:$B,mainzone))/1000","v":0},{"$f":"-(SUMIFS(raw_transmission_flows!$G:$G,raw_transmission_flows!$D:$D,R$166,raw_transmission_flows!$C:$C,mainzone)-SUMIFS(raw_transmission_flows!$G:$G,raw_transmission_flows!$D:$D,R$166,raw_transmission_flows!$B:$B,mainzone))/1000","v":0},{"$f":"-(SUMIFS(raw_transmission_flows!$G:$G,raw_transmission_flows!$D:$D,S$166,raw_transmission_flows!$C:$C,mainzone)-SUMIFS(raw_transmission_flows!$G:$G,raw_transmission_flows!$D:$D,S$166,raw_transmission_flows!$B:$B,mainzone))/1000","v":0},{"$f":"-(SUMIFS(raw_transmission_flows!$G:$G,raw_transmission_flows!$D:$D,T$166,raw_transmission_flows!$C:$C,mainzone)-SUMIFS(raw_transmission_flows!$G:$G,raw_transmission_flows!$D:$D,T$166,raw_transmission_flows!$B:$B,mainzone))/1000","v":-4479.8370666371884},{"$f":"-(SUMIFS(raw_transmission_flows!$G:$G,raw_transmission_flows!$D:$D,U$166,raw_transmission_flows!$C:$C,mainzone)-SUMIFS(raw_transmission_flows!$G:$G,raw_transmission_flows!$D:$D,U$166,raw_transmission_flows!$B:$B,mainzone))/1000","v":0},{"$f":"-(SUMIFS(raw_transmission_flows!$G:$G,raw_transmission_flows!$D:$D,V$166,raw_transmission_flows!$C:$C,mainzone)-SUMIFS(raw_transmission_flows!$G:$G,raw_transmission_flows!$D:$D,V$166,raw_transmission_flows!$B:$B,mainzone))/1000","v":0},{"$f":"-(SUMIFS(raw_transmission_flows!$G:$G,raw_transmission_flows!$D:$D,W$166,raw_transmission_flows!$C:$C,mainzone)-SUMIFS(raw_transmission_flows!$G:$G,raw_transmission_flows!$D:$D,W$166,raw_transmission_flows!$B:$B,mainzone))/1000","v":0},{"$f":"-(SUMIFS(raw_transmission_flows!$G:$G,raw_transmission_flows!$D:$D,X$166,raw_transmission_flows!$C:$C,mainzone)-SUMIFS(raw_transmission_flows!$G:$G,raw_transmission_flows!$D:$D,X$166,raw_transmission_flows!$B:$B,mainzone))/1000","v":0},{"$f":"-(SUMIFS(raw_transmission_flows!$G:$G,raw_transmission_flows!$D:$D,Y$166,raw_transmission_flows!$C:$C,mainzone)-SUMIFS(raw_transmission_flows!$G:$G,raw_transmission_flows!$D:$D,Y$166,raw_transmission_flows!$B:$B,mainzone))/1000","v":0},{"$f":"-(SUMIFS(raw_transmission_flows!$G:$G,raw_transmission_flows!$D:$D,Z$166,raw_transmission_flows!$C:$C,mainzone)-SUMIFS(raw_transmission_flows!$G:$G,raw_transmission_flows!$D:$D,Z$166,raw_transmission_flows!$B:$B,mainzone))/1000","v":0},{"$f":"-(SUMIFS(raw_transmission_flows!$G:$G,raw_transmission_flows!$D:$D,AA$166,raw_transmission_flows!$C:$C,mainzone)-SUMIFS(raw_transmission_flows!$G:$G,raw_transmission_flows!$D:$D,AA$166,raw_transmission_flows!$B:$B,mainzone))/1000","v":0},{"$f":"-(SUMIFS(raw_transmission_flows!$G:$G,raw_transmission_flows!$D:$D,AB$166,raw_transmission_flows!$C:$C,mainzone)-SUMIFS(raw_transmission_flows!$G:$G,raw_transmission_flows!$D:$D,AB$166,raw_transmission_flows!$B:$B,mainzone))/1000","v":0},{"$f":"-(SUMIFS(raw_transmission_flows!$G:$G,raw_transmission_flows!$D:$D,AC$166,raw_transmission_flows!$C:$C,mainzone)-SUMIFS(raw_transmission_flows!$G:$G,raw_transmission_flows!$D:$D,AC$166,raw_transmission_flows!$B:$B,mainzone))/1000","v":0},{"$f":"-(SUMIFS(raw_transmission_flows!$G:$G,raw_transmission_flows!$D:$D,AD$166,raw_transmission_flows!$C:$C,mainzone)-SUMIFS(raw_transmission_flows!$G:$G,raw_transmission_flows!$D:$D,AD$166,raw_transmission_flows!$B:$B,mainzone))/1000","v":0},{"$f":"-(SUMIFS(raw_transmission_flows!$G:$G,raw_transmission_flows!$D:$D,AE$166,raw_transmission_flows!$C:$C,mainzone)-SUMIFS(raw_transmission_flows!$G:$G,raw_transmission_flows!$D:$D,AE$166,raw_transmission_flows!$B:$B,mainzone))/1000","v":0},{"$f":"-(SUMIFS(raw_transmission_flows!$G:$G,raw_transmission_flows!$D:$D,AF$166,raw_transmission_flows!$C:$C,mainzone)-SUMIFS(raw_transmission_flows!$G:$G,raw_transmission_flows!$D:$D,AF$166,raw_transmission_flows!$B:$B,mainzone))/1000","v":0},{"$f":"-(SUMIFS(raw_transmission_flows!$G:$G,raw_transmission_flows!$D:$D,AG$166,raw_transmission_flows!$C:$C,mainzone)-SUMIFS(raw_transmission_flows!$G:$G,raw_transmission_flows!$D:$D,AG$166,raw_transmission_flows!$B:$B,mainzone))/1000","v":0},{"$f":"-(SUMIFS(raw_transmission_flows!$G:$G,raw_transmission_flows!$D:$D,AH$166,raw_transmission_flows!$C:$C,mainzone)-SUMIFS(raw_transmission_flows!$G:$G,raw_transmission_flows!$D:$D,AH$166,raw_transmission_flows!$B:$B,mainzone))/1000","v":0},{"$f":"-(SUMIFS(raw_transmission_flows!$G:$G,raw_transmission_flows!$D:$D,AI$166,raw_transmission_flows!$C:$C,mainzone)-SUMIFS(raw_transmission_flows!$G:$G,raw_transmission_flows!$D:$D,AI$166,raw_transmission_flows!$B:$B,mainzone))/1000","v":-23688.703170100278},{"$f":"-(SUMIFS(raw_transmission_flows!$G:$G,raw_transmission_flows!$D:$D,AJ$166,raw_transmission_flows!$C:$C,mainzone)-SUMIFS(raw_transmission_flows!$G:$G,raw_transmission_flows!$D:$D,AJ$166,raw_transmission_flows!$B:$B,mainzone))/1000","v":0},{"$f":"-(SUMIFS(raw_transmission_flows!$G:$G,raw_transmission_flows!$D:$D,AK$166,raw_transmission_flows!$C:$C,mainzone)-SUMIFS(raw_transmission_flows!$G:$G,raw_transmission_flows!$D:$D,AK$166,raw_transmission_flows!$B:$B,mainzone))/1000","v":0},{"$f":"-(SUMIFS(raw_transmission_flows!$G:$G,raw_transmission_flows!$D:$D,AL$166,raw_transmission_flows!$C:$C,mainzone)-SUMIFS(raw_transmission_flows!$G:$G,raw_transmission_flows!$D:$D,AL$166,raw_transmission_flows!$B:$B,mainzone))/1000","v":0},{"$f":"-(SUMIFS(raw_transmission_flows!$G:$G,raw_transmission_flows!$D:$D,AM$166,raw_transmission_flows!$C:$C,mainzone)-SUMIFS(raw_transmission_flows!$G:$G,raw_transmission_flows!$D:$D,AM$166,raw_transmission_flows!$B:$B,mainzone))/1000","v":0},{"$f":"-(SUMIFS(raw_transmission_flows!$G:$G,raw_transmission_flows!$D:$D,AN$166,raw_transmission_flows!$C:$C,mainzone)-SUMIFS(raw_transmission_flows!$G:$G,raw_transmission_flows!$D:$D,AN$166,raw_transmission_flows!$B:$B,mainzone))/1000","v":0}]
[null,null,"Total Curtailment","GWh",{"$f":"E265","v":0},{"$f":"F265","v":0},0,0,0,{"$f":"J265","v":-235.50167811293724},-204.24384617490938,-445.24764034442501,-711.38350212649675,-770.57525593543585,0,-521.98395426611455,0,0,0,-4198.9387524315525,0,0,0,0,0,0,0,0,0,0,0,0,0,0,-54768.166372705331,0,0,0,0,0]
[null,null,"Load (incl. flex EVs and hydrogen load)","GWh",{"$f":"SUMIFS(raw_annual_load!$C:$C,raw_annual_load!$B:$B,E$166,raw_annual_load!$A:$A,mainzone)/1000 + SUMIFS(raw_annual_load!$D:$D,raw_annual_load!$B:$B,E$166,raw_annual_load!$A:$A,mainzone)/1000+SUMIFS(raw_annual_load!$G:$G,raw_annual_load!$B:$B,E$166,raw_annual_load!$A:$A,mainzone)/1000","v":0},{"$f":"SUMIFS(raw_annual_load!$C:$C,raw_annual_load!$B:$B,F$166,raw_annual_load!$A:$A,mainzone)/1000 + SUMIFS(raw_annual_load!$D:$D,raw_annual_load!$B:$B,F$166,raw_annual_load!$A:$A,mainzone)/1000+SUMIFS(raw_annual_load!$G:$G,raw_annual_load!$B:$B,F$166,raw_annual_load!$A:$A,mainzone)/1000","v":0},{"$f":"SUMIFS(raw_annual_load!$C:$C,raw_annual_load!$B:$B,G$166,raw_annual_load!$A:$A,mainzone)/1000 + SUMIFS(raw_annual_load!$D:$D,raw_annual_load!$B:$B,G$166,raw_annual_load!$A:$A,mainzone)/1000+SUMIFS(raw_annual_load!$G:$G,raw_annual_load!$B:$B,G$166,raw_annual_load!$A:$A,mainzone)/1000","v":0},{"$f":"SUMIFS(raw_annual_load!$C:$C,raw_annual_load!$B:$B,H$166,raw_annual_load!$A:$A,mainzone)/1000 + SUMIFS(raw_annual_load!$D:$D,raw_annual_load!$B:$B,H$166,raw_annual_load!$A:$A,mainzone)/1000+SUMIFS(raw_annual_load!$G:$G,raw_annual_load!$B:$B,H$166,raw_annual_load!$A:$A,mainzone)/1000","v":0},{"$f":"SUMIFS(raw_annual_load!$C:$C,raw_annual_load!$B:$B,I$166,raw_annual_load!$A:$A,mainzone)/1000 + SUMIFS(raw_annual_load!$D:$D,raw_annual_load!$B:$B,I$166,raw_annual_load!$A:$A,mainzone)/1000+SUMIFS(raw_annual_load!$G:$G,raw_annual_load!$B:$B,I$166,raw_annual_load!$A:$A,mainzone)/1000","v":0},{"$f":"SUMIFS(raw_annual_load!$C:$C,raw_annual_load!$B:$B,J$166,raw_annual_load!$A:$A,mainzone)/1000 + SUMIFS(raw_annual_load!$D:$D,raw_annual_load!$B:$B,J$166,raw_annual_load!$A:$A,mainzone)/1000+SUMIFS(raw_annual_load!$G:$G,raw_annual_load!$B:$B,J$166,raw_annual_load!$A:$A,mainzone)/1000","v":246572.424698352},{"$f":"SUMIFS(raw_annual_load!$C:$C,raw_annual_load!$B:$B,K$166,raw_annual_load!$A:$A,mainzone)/1000 + SUMIFS(raw_annual_load!$D:$D,raw_annual_load!$B:$B,K$166,raw_annual_load!$A:$A,mainzone)/1000+SUMIFS(raw_annual_load!$G:$G,raw_annual_load!$B:$B,K$166,raw_annual_load!$A:$A,mainzone)/1000","v":251245.28725406103},{"$f":"SUMIFS(raw_annual_load!$C:$C,raw_annual_load!$B:$B,L$166,raw_annual_load!$A:$A,mainzone)/1000 + SUMIFS(raw_annual_load!$D:$D,raw_annual_load!$B:$B,L$166,raw_annual_load!$A:$A,mainzone)/1000+SUMIFS(raw_annual_load!$G:$G,raw_annual_load!$B:$B,L$166,raw_annual_load!$A:$A,mainzone)/1000","v":256395.63363796301},{"$f":"SUMIFS(raw_annual_load!$C:$C,raw_annual_load!$B:$B,M$166,raw_annual_load!$A:$A,mainzone)/1000 + SUMIFS(raw_annual_load!$D:$D,raw_annual_load!$B:$B,M$166,raw_annual_load!$A:$A,mainzone)/1000+SUMIFS(raw_annual_load!$G:$G,raw_annual_load!$B:$B,M$166,raw_annual_load!$A:$A,mainzone)/1000","v":261203.154709036},{"$f":"SUMIFS(raw_annual_load!$C:$C,raw_annual_load!$B:$B,N$166,raw_annual_load!$A:$A,mainzone)/1000 + SUMIFS(raw_annual_load!$D:$D,raw_annual_load!$B:$B,N$166,raw_annual_load!$A:$A,mainzone)/1000+SUMIFS(raw_annual_load!$G:$G,raw_annual_load!$B:$B,N$166,raw_annual_load!$A:$A,mainzone)/1000","v":265405.61936275201},{"$f":"SUMIFS(raw_annual_load!$C:$C,raw_annual_load!$B:$B,O$166,raw_annual_load!$A:$A,mainzone)/1000 + SUMIFS(raw_annual_load!$D:$D,raw_annual_load!$B:$B,O$166,raw_annual_load!$A:$A,mainzone)/1000+SUMIFS(raw_annual_load!$G:$G,raw_annual_load!$B:$B,O$166,raw_annual_load!$A:$A,mainzone)/1000","v":0},{"$f":"SUMIFS(raw_annual_load!$C:$C,raw_annual_load!$B:$B,P$166,raw_annual_load!$A:$A,mainzone)/1000 + SUMIFS(raw_annual_load!$D:$D,raw_annual_load!$B:$B,P$166,raw_annual_load!$A:$A,mainzone)/1000+SUMIFS(raw_annual_load!$G:$G,raw_annual_load!$B:$B,P$166,raw_annual_load!$A:$A,mainzone)/1000","v":272864.25886965101},{"$f":"SUMIFS(raw_annual_load!$C:$C,raw_annual_load!$B:$B,Q$166,raw_annual_load!$A:$A,mainzone)/1000 + SUMIFS(raw_annual_load!$D:$D,raw_annual_load!$B:$B,Q$166,raw_annual_load!$A:$A,mainzone)/1000+SUMIFS(raw_annual_load!$G:$G,raw_annual_load!$B:$B,Q$166,raw_annual_load!$A:$A,mainzone)/1000","v":0},{"$f":"SUMIFS(raw_annual_load!$C:$C,raw_annual_load!$B:$B,R$166,raw_annual_load!$A:$A,mainzone)/1000 + SUMIFS(raw_annual_load!$D:$D,raw_annual_load!$B:$B,R$166,raw_annual_load!$A:$A,mainzone)/1000+SUMIFS(raw_annual_load!$G:$G,raw_annual_load!$B:$B,R$166,raw_annual_load!$A:$A,mainzone)/1000","v":0},{"$f":"SUMIFS(raw_annual_load!$C:$C,raw_annual_load!$B:$B,S$166,raw_annual_load!$A:$A,mainzone)/1000 + SUMIFS(raw_annual_load!$D:$D,raw_annual_load!$B:$B,S$166,raw_annual_load!$A:$A,mainzone)/1000+SUMIFS(raw_annual_load!$G:$G,raw_annual_load!$B:$B,S$166,raw_annual_load!$A:$A,mainzone)/1000","v":0},{"$f":"SUMIFS(raw_annual_load!$C:$C,raw_annual_load!$B:$B,T$166,raw_annual_load!$A:$A,mainzone)/1000 + SUMIFS(raw_annual_load!$D:$D,raw_annual_load!$B:$B,T$166,raw_annual_load!$A:$A,mainzone)/1000+SUMIFS(raw_annual_load!$G:$G,raw_annual_load!$B:$B,T$166,raw_annual_load!$A:$A,mainzone)/1000","v":285082.67191506794},{"$f":"SUMIFS(raw_annual_load!$C:$C,raw_annual_load!$B:$B,U$166,raw_annual_load!$A:$A,mainzone)/1000 + SUMIFS(raw_annual_load!$D:$D,raw_annual_load!$B:$B,U$166,raw_annual_load!$A:$A,mainzone)/1000+SUMIFS(raw_annual_load!$G:$G,raw_annual_load!$B:$B,U$166,raw_annual_load!$A:$A,mainzone)/1000","v":0},{"$f":"SUMIFS(raw_annual_load!$C:$C,raw_annual_load!$B:$B,V$166,raw_annual_load!$A:$A,mainzone)/1000 + SUMIFS(raw_annual_load!$D:$D,raw_annual_load!$B:$B,V$166,raw_annual_load!$A:$A,mainzone)/1000+SUMIFS(raw_annual_load!$G:$G,raw_annual_load!$B:$B,V$166,raw_annual_load!$A:$A,mainzone)/1000","v":0},{"$f":"SUMIFS(raw_annual_load!$C:$C,raw_annual_load!$B:$B,W$166,raw_annual_load!$A:$A,mainzone)/1000 + SUMIFS(raw_annual_load!$D:$D,raw_annual_load!$B:$B,W$166,raw_annual_load!$A:$A,mainzone)/1000+SUMIFS(raw_annual_load!$G:$G,raw_annual_load!$B:$B,W$166,raw_annual_load!$A:$A,mainzone)/1000","v":0},{"$f":"SUMIFS(raw_annual_load!$C:$C,raw_annual_load!$B:$B,X$166,raw_annual_load!$A:$A,mainzone)/1000 + SUMIFS(raw_annual_load!$D:$D,raw_annual_load!$B:$B,X$166,raw_annual_load!$A:$A,mainzone)/1000+SUMIFS(raw_annual_load!$G:$G,raw_annual_load!$B:$B,X$166,raw_annual_load!$A:$A,mainzone)/1000","v":0},{"$f":"SUMIFS(raw_annual_load!$C:$C,raw_annual_load!$B:$B,Y$166,raw_annual_load!$A:$A,mainzone)/1000 + SUMIFS(raw_annual_load!$D:$D,raw_annual_load!$B:$B,Y$166,raw_annual_load!$A:$A,mainzone)/1000+SUMIFS(raw_annual_load!$G:$G,raw_annual_load!$B:$B,Y$166,raw_annual_load!$A:$A,mainzone)/1000","v":0},{"$f":"SUMIFS(raw_annual_load!$C:$C,raw_annual_load!$B:$B,Z$166,raw_annual_load!$A:$A,mainzone)/1000 + SUMIFS(raw_annual_load!$D:$D,raw_annual_load!$B:$B,Z$166,raw_annual_load!$A:$A,mainzone)/1000+SUMIFS(raw_annual_load!$G:$G,raw_annual_load!$B:$B,Z$166,raw_annual_load!$A:$A,mainzone)/1000","v":0},{"$f":"SUMIFS(raw_annual_load!$C:$C,raw_annual_load!$B:$B,AA$166,raw_annual_load!$A:$A,mainzone)/1000 + SUMIFS(raw_annual_load!$D:$D,raw_annual_load!$B:$B,AA$166,raw_annual_load!$A:$A,mainzone)/1000+SUMIFS(raw_annual_load!$G:$G,raw_annual_load!$B:$B,AA$166,raw_annual_load!$A:$A,mainzone)/1000","v":0},{"$f":"SUMIFS(raw_annual_load!$C:$C,raw_annual_load!$B:$B,AB$166,raw_annual_load!$A:$A,mainzone)/1000 + SUMIFS(raw_annual_load!$D:$D,raw_annual_load!$B:$B,AB$166,raw_annual_load!$A:$A,mainzone)/1000+SUMIFS(raw_annual_load!$G:$G,raw_annual_load!$B:$B,AB$166,raw_annual_load!$A:$A,mainzone)/1000","v":0},{"$f":"SUMIFS(raw_annual_load!$C:$C,raw_annual_load!$B:$B,AC$166,raw_annual_load!$A:$A,mainzone)/1000 + SUMIFS(raw_annual_load!$D:$D,raw_annual_load!$B:$B,AC$166,raw_annual_load!$A:$A,mainzone)/1000+SUMIFS(raw_annual_load!$G:$G,raw_annual_load!$B:$B,AC$166,raw_annual_load!$A:$A,mainzone)/1000","v":0},{"$f":"SUMIFS(raw_annual_load!$C:$C,raw_annual_load!$B:$B,AD$166,raw_annual_load!$A:$A,mainzone)/1000 + SUMIFS(raw_annual_load!$D:$D,raw_annual_load!$B:$B,AD$166,raw_annual_load!$A:$A,mainzone)/1000+SUMIFS(raw_annual_load!$G:$G,raw_annual_load!$B:$B,AD$166,raw_annual_load!$A:$A,mainzone)/1000","v":0},{"$f":"SUMIFS(raw_annual_load!$C:$C,raw_annual_load!$B:$B,AE$166,raw_annual_load!$A:$A,mainzone)/1000 + SUMIFS(raw_annual_load!$D:$D,raw_annual_load!$B:$B,AE$166,raw_annual_load!$A:$A,mainzone)/1000+SUMIFS(raw_annual_load!$G:$G,raw_annual_load!$B:$B,AE$166,raw_annual_load!$A:$A,mainzone)/1000","v":0},{"$f":"SUMIFS(raw_annual_load!$C:$C,raw_annual_load!$B:$B,AF$166,raw_annual_load!$A:$A,mainzone)/1000 + SUMIFS(raw_annual_load!$D:$D,raw_annual_load!$B:$B,AF$166,raw_annual_load!$A:$A,mainzone)/1000+SUMIFS(raw_annual_load!$G:$G,raw_annual_load!$B:$B,AF$166,raw_annual_load!$A:$A,mainzone)/1000","v":0},{"$f":"SUMIFS(raw_annual_load!$C:$C,raw_annual_load!$B:$B,AG$166,raw_annual_load!$A:$A,mainzone)/1000 + SUMIFS(raw_annual_load!$D:$D,raw_annual_load!$B:$B,AG$166,raw_annual_load!$A:$A,mainzone)/1000+SUMIFS(raw_annual_load!$G:$G,raw_annual_load!$B:$B,AG$166,raw_annual_load!$A:$A,mainzone)/1000","v":0},{"$f":"SUMIFS(raw_annual_load!$C:$C,raw_annual_load!$B:$B,AH$166,raw_annual_load!$A:$A,mainzone)/1000 + SUMIFS(raw_annual_load!$D:$D,raw_annual_load!$B:$B,AH$166,raw_annual_load!$A:$A,mainzone)/1000+SUMIFS(raw_annual_load!$G:$G,raw_annual_load!$B:$B,AH$166,raw_annual_load!$A:$A,mainzone)/1000","v":0},{"$f":"SUMIFS(raw_annual_load!$C:$C,raw_annual_load!$B:$B,AI$166,raw_annual_load!$A:$A,mainzone)/1000 + SUMIFS(raw_annual_load!$D:$D,raw_annual_load!$B:$B,AI$166,raw_annual_load!$A:$A,mainzone)/1000+SUMIFS(raw_annual_load!$G:$G,raw_annual_load!$B:$B,AI$166,raw_annual_load!$A:$A,mainzone)/1000","v":410666.76570113999},{"$f":"SUMIFS(raw_annual_load!$C:$C,raw_annual_load!$B:$B,AJ$166,raw_annual_load!$A:$A,mainzone)/1000 + SUMIFS(raw_annual_load!$D:$D,raw_annual_load!$B:$B,AJ$166,raw_annual_load!$A:$A,mainzone)/1000+SUMIFS(raw_annual_load!$G:$G,raw_annual_load!$B:$B,AJ$166,raw_annual_load!$A:$A,mainzone)/1000","v":0},{"$f":"SUMIFS(raw_annual_load!$C:$C,raw_annual_load!$B:$B,AK$166,raw_annual_load!$A:$A,mainzone)/1000 + SUMIFS(raw_annual_load!$D:$D,raw_annual_load!$B:$B,AK$166,raw_annual_load!$A:$A,mainzone)/1000+SUMIFS(raw_annual_load!$G:$G,raw_annual_load!$B:$B,AK$166,raw_annual_load!$A:$A,mainzone)/1000","v":0},{"$f":"SUMIFS(raw_annual_load!$C:$C,raw_annual_load!$B:$B,AL$166,raw_annual_load!$A:$A,mainzone)/1000 + SUMIFS(raw_annual_load!$D:$D,raw_annual_load!$B:$B,AL$166,raw_annual_load!$A:$A,mainzone)/1000+SUMIFS(raw_annual_load!$G:$G,raw_annual_load!$B:$B,AL$166,raw_annual_load!$A:$A,mainzone)/1000","v":0},{"$f":"SUMIFS(raw_annual_load!$C:$C,raw_annual_load!$B:$B,AM$166,raw_annual_load!$A:$A,mainzone)/1000 + SUMIFS(raw_annual_load!$D:$D,raw_annual_load!$B:$B,AM$166,raw_annual_load!$A:$A,mainzone)/1000+SUMIFS(raw_annual_load!$G:$G,raw_annual_load!$B:$B,AM$166,raw_annual_load!$A:$A,mainzone)/1000","v":0},{"$f":"SUMIFS(raw_annual_load!$C:$C,raw_annual_load!$B:$B,AN$166,raw_annual_load!$A:$A,mainzone)/1000 + SUMIFS(raw_annual_load!$D:$D,raw_annual_load!$B:$B,AN$166,raw_annual_load!$A:$A,mainzone)/1000+SUMIFS(raw_annual_load!$G:$G,raw_annual_load!$B:$B,AN$166,raw_annual_load!$A:$A,mainzone)/1000","v":0}]
[null,null,"Supply-Side Load","GWh",{"$f":"E196-E180+E191-E181","v":0},0,0,0,0,232776.88056521953,{"$f":"K196-K180+K191-K181","v":237451.2214180344},242600.9452226412,247408.03550983377,251610.42297648228,0,259067.63672762571,0,0,0,271282.9000773938,0,0,0,0,0,0,0,0,0,0,0,0,0,0,396847.3232383157,0,0,0,0,0]
[null,null,"Hydrogen_Electrolysis (part of load)","GWh",{"$f":"SUMIFS(raw_annual_load!$G:$G,raw_annual_load!$B:$B,E$166,raw_annual_load!$A:$A,mainzone)/1000","v":0},{"$f":"SUMIFS(raw_annual_load!$G:$G,raw_annual_load!$B:$B,F$166,raw_annual_load!$A:$A,mainzone)/1000","v":0},{"$f":"SUMIFS(raw_annual_load!$G:$G,raw_annual_load!$B:$B,G$166,raw_annual_load!$A:$A,mainzone)/1000","v":0},{"$f":"SUMIFS(raw_annual_load!$G:$G,raw_annual_load!$B:$B,H$166,raw_annual_load!$A:$A,mainzone)/1000","v":0},{"$f":"SUMIFS(raw_annual_load!$G:$G,raw_annual_load!$B:$B,I$166,raw_annual_load!$A:$A,mainzone)/1000","v":0},{"$f":"SUMIFS(raw_annual_load!$G:$G,raw_annual_load!$B:$B,J$166,raw_annual_load!$A:$A,mainzone)/1000","v":0},{"$f":"SUMIFS(raw_annual_load!$G:$G,raw_annual_load!$B:$B,K$166,raw_annual_load!$A:$A,mainzone)/1000","v":0},{"$f":"SUMIFS(raw_annual_load!$G:$G,raw_annual_load!$B:$B,L$166,raw_annual_load!$A:$A,mainzone)/1000","v":0},{"$f":"SUMIFS(raw_annual_load!$G:$G,raw_annual_load!$B:$B,M$166,raw_annual_load!$A:$A,mainzone)/1000","v":0},{"$f":"SUMIFS(raw_annual_load!$G:$G,raw_annual_load!$B:$B,N$166,raw_annual_load!$A:$A,mainzone)/1000","v":0},{"$f":"SUMIFS(raw_annual_load!$G:$G,raw_annual_load!$B:$B,O$166,raw_annual_load!$A:$A,mainzone)/1000","v":0},{"$f":"SUMIFS(raw_annual_load!$G:$G,raw_annual_load!$B:$B,P$166,raw_annual_load!$A:$A,mainzone)/1000","v":0},{"$f":"SUMIFS(raw_annual_load!$G:$G,raw_annual_load!$B:$B,Q$166,raw_annual_load!$A:$A,mainzone)/1000","v":0},{"$f":"SUMIFS(raw_annual_load!$G:$G,raw_annual_load!$B:$B,R$166,raw_annual_load!$A:$A,mainzone)/1000","v":0},{"$f":"SUMIFS(raw_annual_load!$G:$G,raw_annual_load!$B:$B,S$166,raw_annual_load!$A:$A,mainzone)/1000","v":0},{"$f":"SUMIFS(raw_annual_load!$G:$G,raw_annual_load!$B:$B,T$166,raw_annual_load!$A:$A,mainzone)/1000","v":0},{"$f":"SUMIFS(raw_annual_load!$G:$G,raw_annual_load!$B:$B,U$166,raw_annual_load!$A:$A,mainzone)/1000","v":0},{"$f":"SUMIFS(raw_annual_load!$G:$G,raw_annual_load!$B:$B,V$166,raw_annual_load!$A:$A,mainzone)/1000","v":0},{"$f":"SUMIFS(raw_annual_load!$G:$G,raw_annual_load!$B:$B,W$166,raw_annual_load!$A:$A,mainzone)/1000","v":0},{"$f":"SUMIFS(raw_annual_load!$G:$G,raw_annual_load!$B:$B,X$166,raw_annual_load!$A:$A,mainzone)/1000","v":0},{"$f":"SUMIFS(raw_annual_load!$G:$G,raw_annual_load!$B:$B,Y$166,raw_annual_load!$A:$A,mainzone)/1000","v":0},{"$f":"SUMIFS(raw_annual_load!$G:$G,raw_annual_load!$B:$B,Z$166,raw_annual_load!$A:$A,mainzone)/1000","v":0},{"$f":"SUMIFS(raw_annual_load!$G:$G,raw_annual_load!$B:$B,AA$166,raw_annual_load!$A:$A,mainzone)/1000","v":0},{"$f":"SUMIFS(raw_annual_load!$G:$G,raw_annual_load!$B:$B,AB$166,raw_annual_load!$A:$A,mainzone)/1000","v":0},{"$f":"SUMIFS(raw_annual_load!$G:$G,raw_annual_load!$B:$B,AC$166,raw_annual_load!$A:$A,mainzone)/1000","v":0},{"$f":"SUMIFS(raw_annual_load!$G:$G,raw_annual_load!$B:$B,AD$166,raw_annual_load!$A:$A,mainzone)/1000","v":0},{"$f":"SUMIFS(raw_annual_load!$G:$G,raw_annual_load!$B:$B,AE$166,raw_annual_load!$A:$A,mainzone)/1000","v":0},{"$f":"SUMIFS(raw_annual_load!$G:$G,raw_annual_load!$B:$B,AF$166,raw_annual_load!$A:$A,mainzone)/1000","v":0},{"$f":"SUMIFS(raw_annual_load!$G:$G,raw_annual_load!$B:$B,AG$166,raw_annual_load!$A:$A,mainzone)/1000","v":0},{"$f":"SUMIFS(raw_annual_load!$G:$G,raw_annual_load!$B:$B,AH$166,raw_annual_load!$A:$A,mainzone)/1000","v":0},{"$f":"SUMIFS(raw_annual_load!$G:$G,raw_annual_load!$B:$B,AI$166,raw_annual_load!$A:$A,mainzone)/1000","v":986.39425000000392},{"$f":"SUMIFS(raw_annual_load!$G:$G,raw_annual_load!$B:$B,AJ$166,raw_annual_load!$A:$A,mainzone)/1000","v":0},{"$f":"SUMIFS(raw_annual_load!$G:$G,raw_annual_load!$B:$B,AK$166,raw_annual_load!$A:$A,mainzone)/1000","v":0},{"$f":"SUMIFS(raw_annual_load!$G:$G,raw_annual_load!$B:$B,AL$166,raw_annual_load!$A:$A,mainzone)/1000","v":0},{"$f":"SUMIFS(raw_annual_load!$G:$G,raw_annual_load!$B:$B,AM$166,raw_annual_load!$A:$A,mainzone)/1000","v":0},{"$f":"SUMIFS(raw_annual_load!$G:$G,raw_annual_load!$B:$B,AN$166,raw_annual_load!$A:$A,mainzone)/1000","v":0}]
[null,null,"Net Imports","GWh",{"$f":"SUM(E193:E194)","v":0},{"$f":"SUM(F193:F194)","v":0},0,0,0,26333.833393611534,24436.923058164408,21621.853473951869,22427.388475729222,25303.015769867077,0,21035.072194216693,0,0,0,17256.258631775454,0,0,0,0,0,0,0,0,0,0,0,0,0,0,-21708.498827899388,0,0,0,0,0]
[null,null,"Load Plus Exports","GWh",{"$f":"E196-E194","v":0},{"$f":"F196-F194","v":0},0,0,0,247429.30410271938,251951.07388374189,258300.3001128633,263584.71823990589,267690.17368449731,0,275084.41532794747,0,0,0,289562.50898170512,0,0,0,0,0,0,0,0,0,0,0,0,0,0,434355.46887124027,0,0,0,0,0]
[null,null,"Sum of Supply","GWh",{"$f":"SUM(E167:E192,E199)","v":0},{"$f":"SUM(F167:F192,F199)","v":0},0,0,0,247011.63408928487,251655.90235741914,256925.72821115956,261883.32115714223,266070.31810724671,0,273434.84666218515,0,0,0,286302.80238097202,0,0,0,0,0,0,0,0,0,0,0,0,0,0,415021.52915438247,0,0,0,0,0]
[null,null,"Sub-Hourly Imbalance","GWh",{"$f":"SUM(E235:E248)","v":0},0,0,0,0,297.01617438593087,314.36219234680726,331.71292607947714,349.05589654139908,366.39800001860704,0,401.09031773804975,0,0,0,470.47465258037448,0,0,0,0,0,0,0,0,0,0,0,0,0,0,730.72959255157684,0,0,0,0,0]
[null,null,"Pipeline Biogas Generation (included in gas generation above)","GWh",{"$f":"IFERROR(SUMIFS('Portfolio Analytics'!E$167:E$192,Lists!$D$5:$D$30,$C210)*SUMIFS(raw_fuel_burn!$H:$H,raw_fuel_burn!$B:$B,\"CA_Natural_Gas\",raw_fuel_burn!$D:$D,mainzone,raw_fuel_burn!$E:$E,'Portfolio Analytics'!E$166)/SUMIFS(raw_fuel_burn!$F:$F,raw_fuel_burn!$B:$B,\"CA_Natural_Gas\",raw_fuel_burn!$D:$D,mainzone,raw_fuel_burn!$E:$E,'Portfolio Analytics'!E$166),0)","v":0},{"$f":"IFERROR(SUMIFS('Portfolio Analytics'!F$167:F$192,Lists!$D$5:$D$30,$C210)*SUMIFS(raw_fuel_burn!$H:$H,raw_fuel_burn!$B:$B,\"CA_Natural_Gas\",raw_fuel_burn!$D:$D,mainzone,raw_fuel_burn!$E:$E,'Portfolio Analytics'!F$166)/SUMIFS(raw_fuel_burn!$F:$F,raw_fuel_burn!$B:$B,\"CA_Natural_Gas\",raw_fuel_burn!$D:$D,mainzone,raw_fuel_burn!$E:$E,'Portfolio Analytics'!F$166),0)","v":0},{"$f":"IFERROR(SUMIFS('Portfolio Analytics'!G$167:G$192,Lists!$D$5:$D$30,$C210)*SUMIFS(raw_fuel_burn!$H:$H,raw_fuel_burn!$B:$B,\"CA_Natural_Gas\",raw_fuel_burn!$D:$D,mainzone,raw_fuel_burn!$E:$E,'Portfolio Analytics'!G$166)/SUMIFS(raw_fuel_burn!$F:$F,raw_fuel_burn!$B:$B,\"CA_Natural_Gas\",raw_fuel_burn!$D:$D,mainzone,raw_fuel_burn!$E:$E,'Portfolio Analytics'!G$166),0)","v":0},{"$f":"IFERROR(SUMIFS('Portfolio Analytics'!H$167:H$192,Lists!$D$5:$D$30,$C210)*SUMIFS(raw_fuel_burn!$H:$H,raw_fuel_burn!$B:$B,\"CA_Natural_Gas\",raw_fuel_burn!$D:$D,mainzone,raw_fuel_burn!$E:$E,'Portfolio Analytics'!H$166)/SUMIFS(raw_fuel_burn!$F:$F,raw_fuel_burn!$B:$B,\"CA_Natural_Gas\",raw_fuel_burn!$D:$D,mainzone,raw_fuel_burn!$E:$E,'Portfolio Analytics'!H$166),0)","v":0},{"$f":"IFERROR(SUMIFS('Portfolio Analytics'!I$167:I$192,Lists!$D$5:$D$30,$C210)*SUMIFS(raw_fuel_burn!$H:$H,raw_fuel_burn!$B:$B,\"CA_Natural_Gas\",raw_fuel_burn!$D:$D,mainzone,raw_fuel_burn!$E:$E,'Portfolio Analytics'!I$166)/SUMIFS(raw_fuel_burn!$F:$F,raw_fuel_burn!$B:$B,\"CA_Natural_Gas\",raw_fuel_burn!$D:$D,mainzone,raw_fuel_burn!$E:$E,'Portfolio Analytics'!I$166),0)","v":0},{"$f":"IFERROR(SUMIFS('Portfolio Analytics'!J$167:J$192,Lists!$D$5:$D$30,$C210)*SUMIFS(raw_fuel_burn!$H:$H,raw_fuel_burn!$B:$B,\"CA_Natural_Gas\",raw_fuel_burn!$D:$D,mainzone,raw_fuel_burn!$E:$E,'Portfolio Analytics'!J$166)/SUMIFS(raw_fuel_burn!$F:$F,raw_fuel_burn!$B:$B,\"CA_Natural_Gas\",raw_fuel_burn!$D:$D,mainzone,raw_fuel_burn!$E:$E,'Portfolio Analytics'!J$166),0)","v":0},{"$f":"IFERROR(SUMIFS('Portfolio Analytics'!K$167:K$192,Lists!$D$5:$D$30,$C210)*SUMIFS(raw_fuel_burn!$H:$H,raw_fuel_burn!$B:$B,\"CA_Natural_Gas\",raw_fuel_burn!$D:$D,mainzone,raw_fuel_burn!$E:$E,'Portfolio Analytics'!K$166)/SUMIFS(raw_fuel_burn!$F:$F,raw_fuel_burn!$B:$B,\"CA_Natural_Gas\",raw_fuel_burn!$D:$D,mainzone,raw_fuel_burn!$E:$E,'Portfolio Analytics'!K$166),0)","v":0},{"$f":"IFERROR(SUMIFS('Portfolio Analytics'!L$167:L$192,Lists!$D$5:$D$30,$C210)*SUMIFS(raw_fuel_burn!$H:$H,raw_fuel_burn!$B:$B,\"CA_Natural_Gas\",raw_fuel_burn!$D:$D,mainzone,raw_fuel_burn!$E:$E,'Portfolio Analytics'!L$166)/SUMIFS(raw_fuel_burn!$F:$F,raw_fuel_burn!$B:$B,\"CA_Natural_Gas\",raw_fuel_burn!$D:$D,mainzone,raw_fuel_burn!$E:$E,'Portfolio Analytics'!L$166),0)","v":0},{"$f":"IFERROR(SUMIFS('Portfolio Analytics'!M$167:M$192,Lists!$D$5:$D$30,$C210)*SUMIFS(raw_fuel_burn!$H:$H,raw_fuel_burn!$B:$B,\"CA_Natural_Gas\",raw_fuel_burn!$D:$D,mainzone,raw_fuel_burn!$E:$E,'Portfolio Analytics'!M$166)/SUMIFS(raw_fuel_burn!$F:$F,raw_fuel_burn!$B:$B,\"CA_Natural_Gas\",raw_fuel_burn!$D:$D,mainzone,raw_fuel_burn!$E:$E,'Portfolio Analytics'!M$166),0)","v":0},{"$f":"IFERROR(SUMIFS('Portfolio Analytics'!N$167:N$192,Lists!$D$5:$D$30,$C210)*SUMIFS(raw_fuel_burn!$H:$H,raw_fuel_burn!$B:$B,\"CA_Natural_Gas\",raw_fuel_burn!$D:$D,mainzone,raw_fuel_burn!$E:$E,'Portfolio Analytics'!N$166)/SUMIFS(raw_fuel_burn!$F:$F,raw_fuel_burn!$B:$B,\"CA_Natural_Gas\",raw_fuel_burn!$D:$D,mainzone,raw_fuel_burn!$E:$E,'Portfolio Analytics'!N$166),0)","v":0},{"$f":"IFERROR(SUMIFS('Portfolio Analytics'!O$167:O$192,Lists!$D$5:$D$30,$C210)*SUMIFS(raw_fuel_burn!$H:$H,raw_fuel_burn!$B:$B,\"CA_Natural_Gas\",raw_fuel_burn!$D:$D,mainzone,raw_fuel_burn!$E:$E,'Portfolio Analytics'!O$166)/SUMIFS(raw_fuel_burn!$F:$F,raw_fuel_burn!$B:$B,\"CA_Natural_Gas\",raw_fuel_burn!$D:$D,mainzone,raw_fuel_burn!$E:$E,'Portfolio Analytics'!O$166),0)","v":0},{"$f":"IFERROR(SUMIFS('Portfolio Analytics'!P$167:P$192,Lists!$D$5:$D$30,$C210)*SUMIFS(raw_fuel_burn!$H:$H,raw_fuel_burn!$B:$B,\"CA_Natural_Gas\",raw_fuel_burn!$D:$D,mainzone,raw_fuel_burn!$E:$E,'Portfolio Analytics'!P$166)/SUMIFS(raw_fuel_burn!$F:$F,raw_fuel_burn!$B:$B,\"CA_Natural_Gas\",raw_fuel_burn!$D:$D,mainzone,raw_fuel_burn!$E:$E,'Portfolio Analytics'!P$166),0)","v":0},{"$f":"IFERROR(SUMIFS('Portfolio Analytics'!Q$167:Q$192,Lists!$D$5:$D$30,$C210)*SUMIFS(raw_fuel_burn!$H:$H,raw_fuel_burn!$B:$B,\"CA_Natural_Gas\",raw_fuel_burn!$D:$D,mainzone,raw_fuel_burn!$E:$E,'Portfolio Analytics'!Q$166)/SUMIFS(raw_fuel_burn!$F:$F,raw_fuel_burn!$B:$B,\"CA_Natural_Gas\",raw_fuel_burn!$D:$D,mainzone,raw_fuel_burn!$E:$E,'Portfolio Analytics'!Q$166),0)","v":0},{"$f":"IFERROR(SUMIFS('Portfolio Analytics'!R$167:R$192,Lists!$D$5:$D$30,$C210)*SUMIFS(raw_fuel_burn!$H:$H,raw_fuel_burn!$B:$B,\"CA_Natural_Gas\",raw_fuel_burn!$D:$D,mainzone,raw_fuel_burn!$E:$E,'Portfolio Analytics'!R$166)/SUMIFS(raw_fuel_burn!$F:$F,raw_fuel_burn!$B:$B,\"CA_Natural_Gas\",raw_fuel_burn!$D:$D,mainzone,raw_fuel_burn!$E:$E,'Portfolio Analytics'!R$166),0)","v":0},{"$f":"IFERROR(SUMIFS('Portfolio Analytics'!S$167:S$192,Lists!$D$5:$D$30,$C210)*SUMIFS(raw_fuel_burn!$H:$H,raw_fuel_burn!$B:$B,\"CA_Natural_Gas\",raw_fuel_burn!$D:$D,mainzone,raw_fuel_burn!$E:$E,'Portfolio Analytics'!S$166)/SUMIFS(raw_fuel_burn!$F:$F,raw_fuel_burn!$B:$B,\"CA_Natural_Gas\",raw_fuel_burn!$D:$D,mainzone,raw_fuel_burn!$E:$E,'Portfolio Analytics'!S$166),0)","v":0},{"$f":"IFERROR(SUMIFS('Portfolio Analytics'!T$167:T$192,Lists!$D$5:$D$30,$C210)*SUMIFS(raw_fuel_burn!$H:$H,raw_fuel_burn!$B:$B,\"CA_Natural_Gas\",raw_fuel_burn!$D:$D,mainzone,raw_fuel_burn!$E:$E,'Portfolio Analytics'!T$166)/SUMIFS(raw_fuel_burn!$F:$F,raw_fuel_burn!$B:$B,\"CA_Natural_Gas\",raw_fuel_burn!$D:$D,mainzone,raw_fuel_burn!$E:$E,'Portfolio Analytics'!T$166),0)","v":0},{"$f":"IFERROR(SUMIFS('Portfolio Analytics'!U$167:U$192,Lists!$D$5:$D$30,$C210)*SUMIFS(raw_fuel_burn!$H:$H,raw_fuel_burn!$B:$B,\"CA_Natural_Gas\",raw_fuel_burn!$D:$D,mainzone,raw_fuel_burn!$E:$E,'Portfolio Analytics'!U$166)/SUMIFS(raw_fuel_burn!$F:$F,raw_fuel_burn!$B:$B,\"CA_Natural_Gas\",raw_fuel_burn!$D:$D,mainzone,raw_fuel_burn!$E:$E,'Portfolio Analytics'!U$166),0)","v":0},{"$f":"IFERROR(SUMIFS('Portfolio Analytics'!V$167:V$192,Lists!$D$5:$D$30,$C210)*SUMIFS(raw_fuel_burn!$H:$H,raw_fuel_burn!$B:$B,\"CA_Natural_Gas\",raw_fuel_burn!$D:$D,mainzone,raw_fuel_burn!$E:$E,'Portfolio Analytics'!V$166)/SUMIFS(raw_fuel_burn!$F:$F,raw_fuel_burn!$B:$B,\"CA_Natural_Gas\",raw_fuel_burn!$D:$D,mainzone,raw_fuel_burn!$E:$E,'Portfolio Analytics'!V$166),0)","v":0},{"$f":"IFERROR(SUMIFS('Portfolio Analytics'!W$167:W$192,Lists!$D$5:$D$30,$C210)*SUMIFS(raw_fuel_burn!$H:$H,raw_fuel_burn!$B:$B,\"CA_Natural_Gas\",raw_fuel_burn!$D:$D,mainzone,raw_fuel_burn!$E:$E,'Portfolio Analytics'!W$166)/SUMIFS(raw_fuel_burn!$F:$F,raw_fuel_burn!$B:$B,\"CA_Natural_Gas\",raw_fuel_burn!$D:$D,mainzone,raw_fuel_burn!$E:$E,'Portfolio Analytics'!W$166),0)","v":0},{"$f":"IFERROR(SUMIFS('Portfolio Analytics'!X$167:X$192,Lists!$D$5:$D$30,$C210)*SUMIFS(raw_fuel_burn!$H:$H,raw_fuel_burn!$B:$B,\"CA_Natural_Gas\",raw_fuel_burn!$D:$D,mainzone,raw_fuel_burn!$E:$E,'Portfolio Analytics'!X$166)/SUMIFS(raw_fuel_burn!$F:$F,raw_fuel_burn!$B:$B,\"CA_Natural_Gas\",raw_fuel_burn!$D:$D,mainzone,raw_fuel_burn!$E:$E,'Portfolio Analytics'!X$166),0)","v":0},{"$f":"IFERROR(SUMIFS('Portfolio Analytics'!Y$167:Y$192,Lists!$D$5:$D$30,$C210)*SUMIFS(raw_fuel_burn!$H:$H,raw_fuel_burn!$B:$B,\"CA_Natural_Gas\",raw_fuel_burn!$D:$D,mainzone,raw_fuel_burn!$E:$E,'Portfolio Analytics'!Y$166)/SUMIFS(raw_fuel_burn!$F:$F,raw_fuel_burn!$B:$B,\"CA_Natural_Gas\",raw_fuel_burn!$D:$D,mainzone,raw_fuel_burn!$E:$E,'Portfolio Analytics'!Y$166),0)","v":0},{"$f":"IFERROR(SUMIFS('Portfolio Analytics'!Z$167:Z$192,Lists!$D$5:$D$30,$C210)*SUMIFS(raw_fuel_burn!$H:$H,raw_fuel_burn!$B:$B,\"CA_Natural_Gas\",raw_fuel_burn!$D:$D,mainzone,raw_fuel_burn!$E:$E,'Portfolio Analytics'!Z$166)/SUMIFS(raw_fuel_burn!$F:$F,raw_fuel_burn!$B:$B,\"CA_Natural_Gas\",raw_fuel_burn!$D:$D,mainzone,raw_fuel_burn!$E:$E,'Portfolio Analytics'!Z$166),0)","v":0},{"$f":"IFERROR(SUMIFS('Portfolio Analytics'!AA$167:AA$192,Lists!$D$5:$D$30,$C210)*SUMIFS(raw_fuel_burn!$H:$H,raw_fuel_burn!$B:$B,\"CA_Natural_Gas\",raw_fuel_burn!$D:$D,mainzone,raw_fuel_burn!$E:$E,'Portfolio Analytics'!AA$166)/SUMIFS(raw_fuel_burn!$F:$F,raw_fuel_burn!$B:$B,\"CA_Natural_Gas\",raw_fuel_burn!$D:$D,mainzone,raw_fuel_burn!$E:$E,'Portfolio Analytics'!AA$166),0)","v":0},{"$f":"IFERROR(SUMIFS('Portfolio Analytics'!AB$167:AB$192,Lists!$D$5:$D$30,$C210)*SUMIFS(raw_fuel_burn!$H:$H,raw_fuel_burn!$B:$B,\"CA_Natural_Gas\",raw_fuel_burn!$D:$D,mainzone,raw_fuel_burn!$E:$E,'Portfolio Analytics'!AB$166)/SUMIFS(raw_fuel_burn!$F:$F,raw_fuel_burn!$B:$B,\"CA_Natural_Gas\",raw_fuel_burn!$D:$D,mainzone,raw_fuel_burn!$E:$E,'Portfolio Analytics'!AB$166),0)","v":0},{"$f":"IFERROR(SUMIFS('Portfolio Analytics'!AC$167:AC$192,Lists!$D$5:$D$30,$C210)*SUMIFS(raw_fuel_burn!$H:$H,raw_fuel_burn!$B:$B,\"CA_Natural_Gas\",raw_fuel_burn!$D:$D,mainzone,raw_fuel_burn!$E:$E,'Portfolio Analytics'!AC$166)/SUMIFS(raw_fuel_burn!$F:$F,raw_fuel_burn!$B:$B,\"CA_Natural_Gas\",raw_fuel_burn!$D:$D,mainzone,raw_fuel_burn!$E:$E,'Portfolio Analytics'!AC$166),0)","v":0},{"$f":"IFERROR(SUMIFS('Portfolio Analytics'!AD$167:AD$192,Lists!$D$5:$D$30,$C210)*SUMIFS(raw_fuel_burn!$H:$H,raw_fuel_burn!$B:$B,\"CA_Natural_Gas\",raw_fuel_burn!$D:$D,mainzone,raw_fuel_burn!$E:$E,'Portfolio Analytics'!AD$166)/SUMIFS(raw_fuel_burn!$F:$F,raw_fuel_burn!$B:$B,\"CA_Natural_Gas\",raw_fuel_burn!$D:$D,mainzone,raw_fuel_burn!$E:$E,'Portfolio Analytics'!AD$166),0)","v":0},{"$f":"IFERROR(SUMIFS('Portfolio Analytics'!AE$167:AE$192,Lists!$D$5:$D$30,$C210)*SUMIFS(raw_fuel_burn!$H:$H,raw_fuel_burn!$B:$B,\"CA_Natural_Gas\",raw_fuel_burn!$D:$D,mainzone,raw_fuel_burn!$E:$E,'Portfolio Analytics'!AE$166)/SUMIFS(raw_fuel_burn!$F:$F,raw_fuel_burn!$B:$B,\"CA_Natural_Gas\",raw_fuel_burn!$D:$D,mainzone,raw_fuel_burn!$E:$E,'Portfolio Analytics'!AE$166),0)","v":0},{"$f":"IFERROR(SUMIFS('Portfolio Analytics'!AF$167:AF$192,Lists!$D$5:$D$30,$C210)*SUMIFS(raw_fuel_burn!$H:$H,raw_fuel_burn!$B:$B,\"CA_Natural_Gas\",raw_fuel_burn!$D:$D,mainzone,raw_fuel_burn!$E:$E,'Portfolio Analytics'!AF$166)/SUMIFS(raw_fuel_burn!$F:$F,raw_fuel_burn!$B:$B,\"CA_Natural_Gas\",raw_fuel_burn!$D:$D,mainzone,raw_fuel_burn!$E:$E,'Portfolio Analytics'!AF$166),0)","v":0},{"$f":"IFERROR(SUMIFS('Portfolio Analytics'!AG$167:AG$192,Lists!$D$5:$D$30,$C210)*SUMIFS(raw_fuel_burn!$H:$H,raw_fuel_burn!$B:$B,\"CA_Natural_Gas\",raw_fuel_burn!$D:$D,mainzone,raw_fuel_burn!$E:$E,'Portfolio Analytics'!AG$166)/SUMIFS(raw_fuel_burn!$F:$F,raw_fuel_burn!$B:$B,\"CA_Natural_Gas\",raw_fuel_burn!$D:$D,mainzone,raw_fuel_burn!$E:$E,'Portfolio Analytics'!AG$166),0)","v":0},{"$f":"IFERROR(SUMIFS('Portfolio Analytics'!AH$167:AH$192,Lists!$D$5:$D$30,$C210)*SUMIFS(raw_fuel_burn!$H:$H,raw_fuel_burn!$B:$B,\"CA_Natural_Gas\",raw_fuel_burn!$D:$D,mainzone,raw_fuel_burn!$E:$E,'Portfolio Analytics'!AH$166)/SUMIFS(raw_fuel_burn!$F:$F,raw_fuel_burn!$B:$B,\"CA_Natural_Gas\",raw_fuel_burn!$D:$D,mainzone,raw_fuel_burn!$E:$E,'Portfolio Analytics'!AH$166),0)","v":0},{"$f":"IFERROR(SUMIFS('Portfolio Analytics'!AI$167:AI$192,Lists!$D$5:$D$30,$C210)*SUMIFS(raw_fuel_burn!$H:$H,raw_fuel_burn!$B:$B,\"CA_Natural_Gas\",raw_fuel_burn!$D:$D,mainzone,raw_fuel_burn!$E:$E,'Portfolio Analytics'!AI$166)/SUMIFS(raw_fuel_burn!$F:$F,raw_fuel_burn!$B:$B,\"CA_Natural_Gas\",raw_fuel_burn!$D:$D,mainzone,raw_fuel_burn!$E:$E,'Portfolio Analytics'!AI$166),0)","v":0},{"$f":"SUMIFS(raw_rps!$M:$M,raw_rps!$B:$B,AJ$166)/1000","v":0},{"$f":"SUMIFS(raw_rps!$M:$M,raw_rps!$B:$B,AK$166)/1000","v":0},{"$f":"SUMIFS(raw_rps!$M:$M,raw_rps!$B:$B,AL$166)/1000","v":0},{"$f":"SUMIFS(raw_rps!$M:$M,raw_rps!$B:$B,AM$166)/1000","v":0},{"$f":"SUMIFS(raw_rps!$M:$M,raw_rps!$B:$B,AN$166)/1000","v":0}]
[]
[null,null,"Aggregated Energy Balance"]
[null,null,"CHP","GWh",{"$f":"SUMIFS('Portfolio Analytics'!E$167:E$192,Lists!$D$5:$D$30,$C206)","v":0},{"$f":"SUMIFS('Portfolio Analytics'!F$167:F$192,Lists!$D$5:$D$30,$C206)","v":0},{"$f":"SUMIFS('Portfolio Analytics'!G$167:G$192,Lists!$D$5:$D$30,$C206)","v":0},{"$f":"SUMIFS('Portfolio Analytics'!H$167:H$192,Lists!$D$5:$D$30,$C206)","v":0},{"$f":"SUMIFS('Portfolio Analytics'!I$167:I$192,Lists!$D$5:$D$30,$C206)","v":0},{"$f":"SUMIFS('Portfolio Analytics'!J$167:J$192,Lists!$D$5:$D$30,$C206)","v":10881.055305580099},{"$f":"SUMIFS('Portfolio Analytics'!K$167:K$192,Lists!$D$5:$D$30,$C206)","v":10881.055305580099},{"$f":"SUMIFS('Portfolio Analytics'!L$167:L$192,Lists!$D$5:$D$30,$C206)","v":10881.055305580099},{"$f":"SUMIFS('Portfolio Analytics'!M$167:M$192,Lists!$D$5:$D$30,$C206)","v":10881.055305580099},{"$f":"SUMIFS('Portfolio Analytics'!N$167:N$192,Lists!$D$5:$D$30,$C206)","v":10881.055305580099},{"$f":"SUMIFS('Portfolio Analytics'!O$167:O$192,Lists!$D$5:$D$30,$C206)","v":0},{"$f":"SUMIFS('Portfolio Analytics'!P$167:P$192,Lists!$D$5:$D$30,$C206)","v":10881.055305580099},{"$f":"SUMIFS('Portfolio Analytics'!Q$167:Q$192,Lists!$D$5:$D$30,$C206)","v":0},{"$f":"SUMIFS('Portfolio Analytics'!R$167:R$192,Lists!$D$5:$D$30,$C206)","v":0},{"$f":"SUMIFS('Portfolio Analytics'!S$167:S$192,Lists!$D$5:$D$30,$C206)","v":0},{"$f":"SUMIFS('Portfolio Analytics'!T$167:T$192,Lists!$D$5:$D$30,$C206)","v":10881.055305580099},{"$f":"SUMIFS('Portfolio Analytics'!U$167:U$192,Lists!$D$5:$D$30,$C206)","v":0},{"$f":"SUMIFS('Portfolio Analytics'!V$167:V$192,Lists!$D$5:$D$30,$C206)","v":0},{"$f":"SUMIFS('Portfolio Analytics'!W$167:W$192,Lists!$D$5:$D$30,$C206)","v":0},{"$f":"SUMIFS('Portfolio Analytics'!X$167:X$192,Lists!$D$5:$D$30,$C206)","v":0},{"$f":"SUMIFS('Portfolio Analytics'!Y$167:Y$192,Lists!$D$5:$D$30,$C206)","v":0},{"$f":"SUMIFS('Portfolio Analytics'!Z$167:Z$192,Lists!$D$5:$D$30,$C206)","v":0},{"$f":"SUMIFS('Portfolio Analytics'!AA$167:AA$192,Lists!$D$5:$D$30,$C206)","v":0},{"$f":"SUMIFS('Portfolio Analytics'!AB$167:AB$192,Lists!$D$5:$D$30,$C206)","v":0},{"$f":"SUMIFS('Portfolio Analytics'!AC$167:AC$192,Lists!$D$5:$D$30,$C206)","v":0},{"$f":"SUMIFS('Portfolio Analytics'!AD$167:AD$192,Lists!$D$5:$D$30,$C206)","v":0},{"$f":"SUMIFS('Portfolio Analytics'!AE$167:AE$192,Lists!$D$5:$D$30,$C206)","v":0},{"$f":"SUMIFS('Portfolio Analytics'!AF$167:AF$192,Lists!$D$5:$D$30,$C206)","v":0},{"$f":"SUMIFS('Portfolio Analytics'!AG$167:AG$192,Lists!$D$5:$D$30,$C206)","v":0},{"$f":"SUMIFS('Portfolio Analytics'!AH$167:AH$192,Lists!$D$5:$D$30,$C206)","v":0},{"$f":"SUMIFS('Portfolio Analytics'!AI$167:AI$192,Lists!$D$5:$D$30,$C206)","v":0},{"$f":"SUMIFS('Portfolio Analytics'!AJ$167:AJ$192,Lists!$D$5:$D$30,$C206)","v":0},{"$f":"SUMIFS('Portfolio Analytics'!AK$167:AK$192,Lists!$D$5:$D$30,$C206)","v":0},{"$f":"SUMIFS('Portfolio Analytics'!AL$167:AL$192,Lists!$D$5:$D$30,$C206)","v":0},{"$f":"SUMIFS('Portfolio Analytics'!AM$167:AM$192,Lists!$D$5:$D$30,$C206)","v":0},{"$f":"SUMIFS('Portfolio Analytics'!AN$167:AN$192,Lists!$D$5:$D$30,$C206)","v":0}]
[null,null,"Nuclear","GWh",{"$f":"SUMIFS('Portfolio Analytics'!E$167:E$192,Lists!$D$5:$D$30,$C207)","v":0},{"$f":"SUMIFS('Portfolio Analytics'!F$167:F$192,Lists!$D$5:$D$30,$C207)","v":0},{"$f":"SUMIFS('Portfolio Analytics'!G$167:G$192,Lists!$D$5:$D$30,$C207)","v":0},{"$f":"SUMIFS('Portfolio Analytics'!H$167:H$192,Lists!$D$5:$D$30,$C207)","v":0},{"$f":"SUMIFS('Portfolio Analytics'!I$167:I$192,Lists!$D$5:$D$30,$C207)","v":0},{"$f":"SUMIFS('Portfolio Analytics'!J$167:J$192,Lists!$D$5:$D$30,$C207)","v":23611.122768469999},{"$f":"SUMIFS('Portfolio Analytics'!K$167:K$192,Lists!$D$5:$D$30,$C207)","v":23611.122768469999},{"$f":"SUMIFS('Portfolio Analytics'!L$167:L$192,Lists!$D$5:$D$30,$C207)","v":23611.122768469999},{"$f":"SUMIFS('Portfolio Analytics'!M$167:M$192,Lists!$D$5:$D$30,$C207)","v":23611.122768469999},{"$f":"SUMIFS('Portfolio Analytics'!N$167:N$192,Lists!$D$5:$D$30,$C207)","v":14359.745874521001},{"$f":"SUMIFS('Portfolio Analytics'!O$167:O$192,Lists!$D$5:$D$30,$C207)","v":0},{"$f":"SUMIFS('Portfolio Analytics'!P$167:P$192,Lists!$D$5:$D$30,$C207)","v":5108.3689805718604},{"$f":"SUMIFS('Portfolio Analytics'!Q$167:Q$192,Lists!$D$5:$D$30,$C207)","v":0},{"$f":"SUMIFS('Portfolio Analytics'!R$167:R$192,Lists!$D$5:$D$30,$C207)","v":0},{"$f":"SUMIFS('Portfolio Analytics'!S$167:S$192,Lists!$D$5:$D$30,$C207)","v":0},{"$f":"SUMIFS('Portfolio Analytics'!T$167:T$192,Lists!$D$5:$D$30,$C207)","v":5108.3689805718604},{"$f":"SUMIFS('Portfolio Analytics'!U$167:U$192,Lists!$D$5:$D$30,$C207)","v":0},{"$f":"SUMIFS('Portfolio Analytics'!V$167:V$192,Lists!$D$5:$D$30,$C207)","v":0},{"$f":"SUMIFS('Portfolio Analytics'!W$167:W$192,Lists!$D$5:$D$30,$C207)","v":0},{"$f":"SUMIFS('Portfolio Analytics'!X$167:X$192,Lists!$D$5:$D$30,$C207)","v":0},{"$f":"SUMIFS('Portfolio Analytics'!Y$167:Y$192,Lists!$D$5:$D$30,$C207)","v":0},{"$f":"SUMIFS('Portfolio Analytics'!Z$167:Z$192,Lists!$D$5:$D$30,$C207)","v":0},{"$f":"SUMIFS('Portfolio Analytics'!AA$167:AA$192,Lists!$D$5:$D$30,$C207)","v":0},{"$f":"SUMIFS('Portfolio Analytics'!AB$167:AB$192,Lists!$D$5:$D$30,$C207)","v":0},{"$f":"SUMIFS('Portfolio Analytics'!AC$167:AC$192,Lists!$D$5:$D$30,$C207)","v":0},{"$f":"SUMIFS('Portfolio Analytics'!AD$167:AD$192,Lists!$D$5:$D$30,$C207)","v":0},{"$f":"SUMIFS('Portfolio Analytics'!AE$167:AE$192,Lists!$D$5:$D$30,$C207)","v":0},{"$f":"SUMIFS('Portfolio Analytics'!AF$167:AF$192,Lists!$D$5:$D$30,$C207)","v":0},{"$f":"SUMIFS('Portfolio Analytics'!AG$167:AG$192,Lists!$D$5:$D$30,$C207)","v":0},{"$f":"SUMIFS('Portfolio Analytics'!AH$167:AH$192,Lists!$D$5:$D$30,$C207)","v":0},{"$f":"SUMIFS('Portfolio Analytics'!AI$167:AI$192,Lists!$D$5:$D$30,$C207)","v":5108.3689805718604},{"$f":"SUMIFS('Portfolio Analytics'!AJ$167:AJ$192,Lists!$D$5:$D$30,$C207)","v":0},{"$f":"SUMIFS('Portfolio Analytics'!AK$167:AK$192,Lists!$D$5:$D$30,$C207)","v":0},{"$f":"SUMIFS('Portfolio Analytics'!AL$167:AL$192,Lists!$D$5:$D$30,$C207)","v":0},{"$f":"SUMIFS('Portfolio Analytics'!AM$167:AM$192,Lists!$D$5:$D$30,$C207)","v":0},{"$f":"SUMIFS('Portfolio Analytics'!AN$167:AN$192,Lists!$D$5:$D$30,$C207)","v":0}]
[null,null,"Hydro","GWh",{"$f":"SUMIFS('Portfolio Analytics'!E$167:E$192,Lists!$D$5:$D$30,$C208)","v":0},{"$f":"SUMIFS('Portfolio Analytics'!F$167:F$192,Lists!$D$5:$D$30,$C208)","v":0},{"$f":"SUMIFS('Portfolio Analytics'!G$167:G$192,Lists!$D$5:$D$30,$C208)","v":0},{"$f":"SUMIFS('Portfolio Analytics'!H$167:H$192,Lists!$D$5:$D$30,$C208)","v":0},{"$f":"SUMIFS('Portfolio Analytics'!I$167:I$192,Lists!$D$5:$D$30,$C208)","v":0},{"$f":"SUMIFS('Portfolio Analytics'!J$167:J$192,Lists!$D$5:$D$30,$C208)","v":18669.78858171769},{"$f":"SUMIFS('Portfolio Analytics'!K$167:K$192,Lists!$D$5:$D$30,$C208)","v":18669.786284372258},{"$f":"SUMIFS('Portfolio Analytics'!L$167:L$192,Lists!$D$5:$D$30,$C208)","v":18669.78841325792},{"$f":"SUMIFS('Portfolio Analytics'!M$167:M$192,Lists!$D$5:$D$30,$C208)","v":18669.787046595473},{"$f":"SUMIFS('Portfolio Analytics'!N$167:N$192,Lists!$D$5:$D$30,$C208)","v":18669.786172963912},{"$f":"SUMIFS('Portfolio Analytics'!O$167:O$192,Lists!$D$5:$D$30,$C208)","v":0},{"$f":"SUMIFS('Portfolio Analytics'!P$167:P$192,Lists!$D$5:$D$30,$C208)","v":18669.784821807381},{"$f":"SUMIFS('Portfolio Analytics'!Q$167:Q$192,Lists!$D$5:$D$30,$C208)","v":0},{"$f":"SUMIFS('Portfolio Analytics'!R$167:R$192,Lists!$D$5:$D$30,$C208)","v":0},{"$f":"SUMIFS('Portfolio Analytics'!S$167:S$192,Lists!$D$5:$D$30,$C208)","v":0},{"$f":"SUMIFS('Portfolio Analytics'!T$167:T$192,Lists!$D$5:$D$30,$C208)","v":18668.233584021127},{"$f":"SUMIFS('Portfolio Analytics'!U$167:U$192,Lists!$D$5:$D$30,$C208)","v":0},{"$f":"SUMIFS('Portfolio Analytics'!V$167:V$192,Lists!$D$5:$D$30,$C208)","v":0},{"$f":"SUMIFS('Portfolio Analytics'!W$167:W$192,Lists!$D$5:$D$30,$C208)","v":0},{"$f":"SUMIFS('Portfolio Analytics'!X$167:X$192,Lists!$D$5:$D$30,$C208)","v":0},{"$f":"SUMIFS('Portfolio Analytics'!Y$167:Y$192,Lists!$D$5:$D$30,$C208)","v":0},{"$f":"SUMIFS('Portfolio Analytics'!Z$167:Z$192,Lists!$D$5:$D$30,$C208)","v":0},{"$f":"SUMIFS('Portfolio Analytics'!AA$167:AA$192,Lists!$D$5:$D$30,$C208)","v":0},{"$f":"SUMIFS('Portfolio Analytics'!AB$167:AB$192,Lists!$D$5:$D$30,$C208)","v":0},{"$f":"SUMIFS('Portfolio Analytics'!AC$167:AC$192,Lists!$D$5:$D$30,$C208)","v":0},{"$f":"SUMIFS('Portfolio Analytics'!AD$167:AD$192,Lists!$D$5:$D$30,$C208)","v":0},{"$f":"SUMIFS('Portfolio Analytics'!AE$167:AE$192,Lists!$D$5:$D$30,$C208)","v":0},{"$f":"SUMIFS('Portfolio Analytics'!AF$167:AF$192,Lists!$D$5:$D$30,$C208)","v":0},{"$f":"SUMIFS('Portfolio Analytics'!AG$167:AG$192,Lists!$D$5:$D$30,$C208)","v":0},{"$f":"SUMIFS('Portfolio Analytics'!AH$167:AH$192,Lists!$D$5:$D$30,$C208)","v":0},{"$f":"SUMIFS('Portfolio Analytics'!AI$167:AI$192,Lists!$D$5:$D$30,$C208)","v":18668.231534298011},{"$f":"SUMIFS('Portfolio Analytics'!AJ$167:AJ$192,Lists!$D$5:$D$30,$C208)","v":0},{"$f":"SUMIFS('Portfolio Analytics'!AK$167:AK$192,Lists!$D$5:$D$30,$C208)","v":0},{"$f":"SUMIFS('Portfolio Analytics'!AL$167:AL$192,Lists!$D$5:$D$30,$C208)","v":0},{"$f":"SUMIFS('Portfolio Analytics'!AM$167:AM$192,Lists!$D$5:$D$30,$C208)","v":0},{"$f":"SUMIFS('Portfolio Analytics'!AN$167:AN$192,Lists!$D$5:$D$30,$C208)","v":0}]
[null,null,"Hydro_NW_CAISO","GWh",{"$f":"SUMIFS('Portfolio Analytics'!E$167:E$192,Lists!$D$5:$D$30,$C209)","v":0},{"$f":"SUMIFS('Portfolio Analytics'!F$167:F$192,Lists!$D$5:$D$30,$C209)","v":0},{"$f":"SUMIFS('Portfolio Analytics'!G$167:G$192,Lists!$D$5:$D$30,$C209)","v":0},{"$f":"SUMIFS('Portfolio Analytics'!H$167:H$192,Lists!$D$5:$D$30,$C209)","v":0},{"$f":"SUMIFS('Portfolio Analytics'!I$167:I$192,Lists!$D$5:$D$30,$C209)","v":0},{"$f":"SUMIFS('Portfolio Analytics'!J$167:J$192,Lists!$D$5:$D$30,$C209)","v":10645.966030386799},{"$f":"SUMIFS('Portfolio Analytics'!K$167:K$192,Lists!$D$5:$D$30,$C209)","v":10888.407144809707},{"$f":"SUMIFS('Portfolio Analytics'!L$167:L$192,Lists!$D$5:$D$30,$C209)","v":10811.521993592629},{"$f":"SUMIFS('Portfolio Analytics'!M$167:M$192,Lists!$D$5:$D$30,$C209)","v":10829.644438969244},{"$f":"SUMIFS('Portfolio Analytics'!N$167:N$192,Lists!$D$5:$D$30,$C209)","v":10827.107782118452},{"$f":"SUMIFS('Portfolio Analytics'!O$167:O$192,Lists!$D$5:$D$30,$C209)","v":0},{"$f":"SUMIFS('Portfolio Analytics'!P$167:P$192,Lists!$D$5:$D$30,$C209)","v":11628.313387725702},{"$f":"SUMIFS('Portfolio Analytics'!Q$167:Q$192,Lists!$D$5:$D$30,$C209)","v":0},{"$f":"SUMIFS('Portfolio Analytics'!R$167:R$192,Lists!$D$5:$D$30,$C209)","v":0},{"$f":"SUMIFS('Portfolio Analytics'!S$167:S$192,Lists!$D$5:$D$30,$C209)","v":0},{"$f":"SUMIFS('Portfolio Analytics'!T$167:T$192,Lists!$D$5:$D$30,$C209)","v":11297.86821502505},{"$f":"SUMIFS('Portfolio Analytics'!U$167:U$192,Lists!$D$5:$D$30,$C209)","v":0},{"$f":"SUMIFS('Portfolio Analytics'!V$167:V$192,Lists!$D$5:$D$30,$C209)","v":0},{"$f":"SUMIFS('Portfolio Analytics'!W$167:W$192,Lists!$D$5:$D$30,$C209)","v":0},{"$f":"SUMIFS('Portfolio Analytics'!X$167:X$192,Lists!$D$5:$D$30,$C209)","v":0},{"$f":"SUMIFS('Portfolio Analytics'!Y$167:Y$192,Lists!$D$5:$D$30,$C209)","v":0},{"$f":"SUMIFS('Portfolio Analytics'!Z$167:Z$192,Lists!$D$5:$D$30,$C209)","v":0},{"$f":"SUMIFS('Portfolio Analytics'!AA$167:AA$192,Lists!$D$5:$D$30,$C209)","v":0},{"$f":"SUMIFS('Portfolio Analytics'!AB$167:AB$192,Lists!$D$5:$D$30,$C209)","v":0},{"$f":"SUMIFS('Portfolio Analytics'!AC$167:AC$192,Lists!$D$5:$D$30,$C209)","v":0},{"$f":"SUMIFS('Portfolio Analytics'!AD$167:AD$192,Lists!$D$5:$D$30,$C209)","v":0},{"$f":"SUMIFS('Portfolio Analytics'!AE$167:AE$192,Lists!$D$5:$D$30,$C209)","v":0},{"$f":"SUMIFS('Portfolio Analytics'!AF$167:AF$192,Lists!$D$5:$D$30,$C209)","v":0},{"$f":"SUMIFS('Portfolio Analytics'!AG$167:AG$192,Lists!$D$5:$D$30,$C209)","v":0},{"$f":"SUMIFS('Portfolio Analytics'!AH$167:AH$192,Lists!$D$5:$D$30,$C209)","v":0},{"$f":"SUMIFS('Portfolio Analytics'!AI$167:AI$192,Lists!$D$5:$D$30,$C209)","v":7668.7933027460895},{"$f":"SUMIFS('Portfolio Analytics'!AJ$167:AJ$192,Lists!$D$5:$D$30,$C209)","v":0},{"$f":"SUMIFS('Portfolio Analytics'!AK$167:AK$192,Lists!$D$5:$D$30,$C209)","v":0},{"$f":"SUMIFS('Portfolio Analytics'!AL$167:AL$192,Lists!$D$5:$D$30,$C209)","v":0},{"$f":"SUMIFS('Portfolio Analytics'!AM$167:AM$192,Lists!$D$5:$D$30,$C209)","v":0},{"$f":"SUMIFS('Portfolio Analytics'!AN$167:AN$192,Lists!$D$5:$D$30,$C209)","v":0}]
[null,null,"Gas","GWh",{"$f":"SUMIFS('Portfolio Analytics'!E$167:E$192,Lists!$D$5:$D$30,$C210)-E$203","v":0},{"$f":"SUMIFS('Portfolio Analytics'!F$167:F$192,Lists!$D$5:$D$30,$C210)-F$203","v":0},{"$f":"SUMIFS('Portfolio Analytics'!G$167:G$192,Lists!$D$5:$D$30,$C210)-G$203","v":0},{"$f":"SUMIFS('Portfolio Analytics'!H$167:H$192,Lists!$D$5:$D$30,$C210)-H$203","v":0},{"$f":"SUMIFS('Portfolio Analytics'!I$167:I$192,Lists!$D$5:$D$30,$C210)-I$203","v":0},{"$f":"SUMIFS('Portfolio Analytics'!J$167:J$192,Lists!$D$5:$D$30,$C210)-J$203","v":58226.12987404241},{"$f":"SUMIFS('Portfolio Analytics'!K$167:K$192,Lists!$D$5:$D$30,$C210)-K$203","v":58837.597811611398},{"$f":"SUMIFS('Portfolio Analytics'!L$167:L$192,Lists!$D$5:$D$30,$C210)-L$203","v":54372.329779182335},{"$f":"SUMIFS('Portfolio Analytics'!M$167:M$192,Lists!$D$5:$D$30,$C210)-M$203","v":52703.654793565831},{"$f":"SUMIFS('Portfolio Analytics'!N$167:N$192,Lists!$D$5:$D$30,$C210)-N$203","v":54994.318421910721},{"$f":"SUMIFS('Portfolio Analytics'!O$167:O$192,Lists!$D$5:$D$30,$C210)-O$203","v":0},{"$f":"SUMIFS('Portfolio Analytics'!P$167:P$192,Lists!$D$5:$D$30,$C210)-P$203","v":62876.638782803697},{"$f":"SUMIFS('Portfolio Analytics'!Q$167:Q$192,Lists!$D$5:$D$30,$C210)-Q$203","v":0},{"$f":"SUMIFS('Portfolio Analytics'!R$167:R$192,Lists!$D$5:$D$30,$C210)-R$203","v":0},{"$f":"SUMIFS('Portfolio Analytics'!S$167:S$192,Lists!$D$5:$D$30,$C210)-S$203","v":0},{"$f":"SUMIFS('Portfolio Analytics'!T$167:T$192,Lists!$D$5:$D$30,$C210)-T$203","v":48826.069079610257},{"$f":"SUMIFS('Portfolio Analytics'!U$167:U$192,Lists!$D$5:$D$30,$C210)-U$203","v":0},{"$f":"SUMIFS('Portfolio Analytics'!V$167:V$192,Lists!$D$5:$D$30,$C210)-V$203","v":0},{"$f":"SUMIFS('Portfolio Analytics'!W$167:W$192,Lists!$D$5:$D$30,$C210)-W$203","v":0},{"$f":"SUMIFS('Portfolio Analytics'!X$167:X$192,Lists!$D$5:$D$30,$C210)-X$203","v":0},{"$f":"SUMIFS('Portfolio Analytics'!Y$167:Y$192,Lists!$D$5:$D$30,$C210)-Y$203","v":0},{"$f":"SUMIFS('Portfolio Analytics'!Z$167:Z$192,Lists!$D$5:$D$30,$C210)-Z$203","v":0},{"$f":"SUMIFS('Portfolio Analytics'!AA$167:AA$192,Lists!$D$5:$D$30,$C210)-AA$203","v":0},{"$f":"SUMIFS('Portfolio Analytics'!AB$167:AB$192,Lists!$D$5:$D$30,$C210)-AB$203","v":0},{"$f":"SUMIFS('Portfolio Analytics'!AC$167:AC$192,Lists!$D$5:$D$30,$C210)-AC$203","v":0},{"$f":"SUMIFS('Portfolio Analytics'!AD$167:AD$192,Lists!$D$5:$D$30,$C210)-AD$203","v":0},{"$f":"SUMIFS('Portfolio Analytics'!AE$167:AE$192,Lists!$D$5:$D$30,$C210)-AE$203","v":0},{"$f":"SUMIFS('Portfolio Analytics'!AF$167:AF$192,Lists!$D$5:$D$30,$C210)-AF$203","v":0},{"$f":"SUMIFS('Portfolio Analytics'!AG$167:AG$192,Lists!$D$5:$D$30,$C210)-AG$203","v":0},{"$f":"SUMIFS('Portfolio Analytics'!AH$167:AH$192,Lists!$D$5:$D$30,$C210)-AH$203","v":0},{"$f":"SUMIFS('Portfolio Analytics'!AI$167:AI$192,Lists!$D$5:$D$30,$C210)-AI$203","v":29930.363731076519},{"$f":"SUMIFS('Portfolio Analytics'!AJ$167:AJ$192,Lists!$D$5:$D$30,$C210)","v":0},{"$f":"SUMIFS('Portfolio Analytics'!AK$167:AK$192,Lists!$D$5:$D$30,$C210)","v":0},{"$f":"SUMIFS('Portfolio Analytics'!AL$167:AL$192,Lists!$D$5:$D$30,$C210)","v":0},{"$f":"SUMIFS('Portfolio Analytics'!AM$167:AM$192,Lists!$D$5:$D$30,$C210)","v":0},{"$f":"SUMIFS('Portfolio Analytics'!AN$167:AN$192,Lists!$D$5:$D$30,$C210)","v":0}]
[null,null,"Coal","GWh",{"$f":"SUMIFS('Portfolio Analytics'!E$167:E$192,Lists!$D$5:$D$30,$C211)","v":0},{"$f":"SUMIFS('Portfolio Analytics'!F$167:F$192,Lists!$D$5:$D$30,$C211)","v":0},{"$f":"SUMIFS('Portfolio Analytics'!G$167:G$192,Lists!$D$5:$D$30,$C211)","v":0},{"$f":"SUMIFS('Portfolio Analytics'!H$167:H$192,Lists!$D$5:$D$30,$C211)","v":0},{"$f":"SUMIFS('Portfolio Analytics'!I$167:I$192,Lists!$D$5:$D$30,$C211)","v":0},{"$f":"SUMIFS('Portfolio Analytics'!J$167:J$192,Lists!$D$5:$D$30,$C211)","v":2166.2318845076902},{"$f":"SUMIFS('Portfolio Analytics'!K$167:K$192,Lists!$D$5:$D$30,$C211)","v":1340.4893875243702},{"$f":"SUMIFS('Portfolio Analytics'!L$167:L$192,Lists!$D$5:$D$30,$C211)","v":714.29798582263504},{"$f":"SUMIFS('Portfolio Analytics'!M$167:M$192,Lists!$D$5:$D$30,$C211)","v":695.71801770085006},{"$f":"SUMIFS('Portfolio Analytics'!N$167:N$192,Lists!$D$5:$D$30,$C211)","v":695.71801770085006},{"$f":"SUMIFS('Portfolio Analytics'!O$167:O$192,Lists!$D$5:$D$30,$C211)","v":0},{"$f":"SUMIFS('Portfolio Analytics'!P$167:P$192,Lists!$D$5:$D$30,$C211)","v":0},{"$f":"SUMIFS('Portfolio Analytics'!Q$167:Q$192,Lists!$D$5:$D$30,$C211)","v":0},{"$f":"SUMIFS('Portfolio Analytics'!R$167:R$192,Lists!$D$5:$D$30,$C211)","v":0},{"$f":"SUMIFS('Portfolio Analytics'!S$167:S$192,Lists!$D$5:$D$30,$C211)","v":0},{"$f":"SUMIFS('Portfolio Analytics'!T$167:T$192,Lists!$D$5:$D$30,$C211)","v":0},{"$f":"SUMIFS('Portfolio Analytics'!U$167:U$192,Lists!$D$5:$D$30,$C211)","v":0},{"$f":"SUMIFS('Portfolio Analytics'!V$167:V$192,Lists!$D$5:$D$30,$C211)","v":0},{"$f":"SUMIFS('Portfolio Analytics'!W$167:W$192,Lists!$D$5:$D$30,$C211)","v":0},{"$f":"SUMIFS('Portfolio Analytics'!X$167:X$192,Lists!$D$5:$D$30,$C211)","v":0},{"$f":"SUMIFS('Portfolio Analytics'!Y$167:Y$192,Lists!$D$5:$D$30,$C211)","v":0},{"$f":"SUMIFS('Portfolio Analytics'!Z$167:Z$192,Lists!$D$5:$D$30,$C211)","v":0},{"$f":"SUMIFS('Portfolio Analytics'!AA$167:AA$192,Lists!$D$5:$D$30,$C211)","v":0},{"$f":"SUMIFS('Portfolio Analytics'!AB$167:AB$192,Lists!$D$5:$D$30,$C211)","v":0},{"$f":"SUMIFS('Portfolio Analytics'!AC$167:AC$192,Lists!$D$5:$D$30,$C211)","v":0},{"$f":"SUMIFS('Portfolio Analytics'!AD$167:AD$192,Lists!$D$5:$D$30,$C211)","v":0},{"$f":"SUMIFS('Portfolio Analytics'!AE$167:AE$192,Lists!$D$5:$D$30,$C211)","v":0},{"$f":"SUMIFS('Portfolio Analytics'!AF$167:AF$192,Lists!$D$5:$D$30,$C211)","v":0},{"$f":"SUMIFS('Portfolio Analytics'!AG$167:AG$192,Lists!$D$5:$D$30,$C211)","v":0},{"$f":"SUMIFS('Portfolio Analytics'!AH$167:AH$192,Lists!$D$5:$D$30,$C211)","v":0},{"$f":"SUMIFS('Portfolio Analytics'!AI$167:AI$192,Lists!$D$5:$D$30,$C211)","v":0},{"$f":"SUMIFS('Portfolio Analytics'!AJ$167:AJ$192,Lists!$D$5:$D$30,$C211)","v":0},{"$f":"SUMIFS('Portfolio Analytics'!AK$167:AK$192,Lists!$D$5:$D$30,$C211)","v":0},{"$f":"SUMIFS('Portfolio Analytics'!AL$167:AL$192,Lists!$D$5:$D$30,$C211)","v":0},{"$f":"SUMIFS('Portfolio Analytics'!AM$167:AM$192,Lists!$D$5:$D$30,$C211)","v":0},{"$f":"SUMIFS('Portfolio Analytics'!AN$167:AN$192,Lists!$D$5:$D$30,$C211)","v":0}]
[null,null,"Pipeline Biogas","GWh",{"$f":"E203","v":0},{"$f":"F203","v":0},0,0,0,0,0,0,0,0,0,0,0,0,0,0,0,0,0,0,0,0,0,0,0,0,0,0,0,0,0,{"$f":"SUMIFS('Portfolio Analytics'!AJ$167:AJ$192,Lists!$D$5:$D$30,$C212)","v":0},{"$f":"SUMIFS('Portfolio Analytics'!AK$167:AK$192,Lists!$D$5:$D$30,$C212)","v":0},{"$f":"SUMIFS('Portfolio Analytics'!AL$167:AL$192,Lists!$D$5:$D$30,$C212)","v":0},{"$f":"SUMIFS('Portfolio Analytics'!AM$167:AM$192,Lists!$D$5:$D$30,$C212)","v":0},{"$f":"SUMIFS('Portfolio Analytics'!AN$167:AN$192,Lists!$D$5:$D$30,$C212)","v":0}]
[null,null,"Renewables","GWh",{"$f":"SUMIFS('Portfolio Analytics'!E$167:E$192,Lists!$D$5:$D$30,$C213)","v":0},{"$f":"SUMIFS('Portfolio Analytics'!F$167:F$192,Lists!$D$5:$D$30,$C213)","v":0},{"$f":"SUMIFS('Portfolio Analytics'!G$167:G$192,Lists!$D$5:$D$30,$C213)","v":0},{"$f":"SUMIFS('Portfolio Analytics'!H$167:H$192,Lists!$D$5:$D$30,$C213)","v":0},{"$f":"SUMIFS('Portfolio Analytics'!I$167:I$192,Lists!$D$5:$D$30,$C213)","v":0},{"$f":"SUMIFS('Portfolio Analytics'!J$167:J$192,Lists!$D$5:$D$30,$C213)","v":97248.40328583587},{"$f":"SUMIFS('Portfolio Analytics'!K$167:K$192,Lists!$D$5:$D$30,$C213)","v":104357.92834963414},{"$f":"SUMIFS('Portfolio Analytics'!L$167:L$192,Lists!$D$5:$D$30,$C213)","v":117726.35635614414},{"$f":"SUMIFS('Portfolio Analytics'!M$167:M$192,Lists!$D$5:$D$30,$C213)","v":123767.5541452967},{"$f":"SUMIFS('Portfolio Analytics'!N$167:N$192,Lists!$D$5:$D$30,$C213)","v":132519.35041842252},{"$f":"SUMIFS('Portfolio Analytics'!O$167:O$192,Lists!$D$5:$D$30,$C213)","v":0},{"$f":"SUMIFS('Portfolio Analytics'!P$167:P$192,Lists!$D$5:$D$30,$C213)","v":146872.64456886664},{"$f":"SUMIFS('Portfolio Analytics'!Q$167:Q$192,Lists!$D$5:$D$30,$C213)","v":0},{"$f":"SUMIFS('Portfolio Analytics'!R$167:R$192,Lists!$D$5:$D$30,$C213)","v":0},{"$f":"SUMIFS('Portfolio Analytics'!S$167:S$192,Lists!$D$5:$D$30,$C213)","v":0},{"$f":"SUMIFS('Portfolio Analytics'!T$167:T$192,Lists!$D$5:$D$30,$C213)","v":179982.98157540985},{"$f":"SUMIFS('Portfolio Analytics'!U$167:U$192,Lists!$D$5:$D$30,$C213)","v":0},{"$f":"SUMIFS('Portfolio Analytics'!V$167:V$192,Lists!$D$5:$D$30,$C213)","v":0},{"$f":"SUMIFS('Portfolio Analytics'!W$167:W$192,Lists!$D$5:$D$30,$C213)","v":0},{"$f":"SUMIFS('Portfolio Analytics'!X$167:X$192,Lists!$D$5:$D$30,$C213)","v":0},{"$f":"SUMIFS('Portfolio Analytics'!Y$167:Y$192,Lists!$D$5:$D$30,$C213)","v":0},{"$f":"SUMIFS('Portfolio Analytics'!Z$167:Z$192,Lists!$D$5:$D$30,$C213)","v":0},{"$f":"SUMIFS('Portfolio Analytics'!AA$167:AA$192,Lists!$D$5:$D$30,$C213)","v":0},{"$f":"SUMIFS('Portfolio Analytics'!AB$167:AB$192,Lists!$D$5:$D$30,$C213)","v":0},{"$f":"SUMIFS('Portfolio Analytics'!AC$167:AC$192,Lists!$D$5:$D$30,$C213)","v":0},{"$f":"SUMIFS('Portfolio Analytics'!AD$167:AD$192,Lists!$D$5:$D$30,$C213)","v":0},{"$f":"SUMIFS('Portfolio Analytics'!AE$167:AE$192,Lists!$D$5:$D$30,$C213)","v":0},{"$f":"SUMIFS('Portfolio Analytics'!AF$167:AF$192,Lists!$D$5:$D$30,$C213)","v":0},{"$f":"SUMIFS('Portfolio Analytics'!AG$167:AG$192,Lists!$D$5:$D$30,$C213)","v":0},{"$f":"SUMIFS('Portfolio Analytics'!AH$167:AH$192,Lists!$D$5:$D$30,$C213)","v":0},{"$f":"SUMIFS('Portfolio Analytics'!AI$167:AI$192,Lists!$D$5:$D$30,$C213)","v":402988.60201182705},{"$f":"SUMIFS('Portfolio Analytics'!AJ$167:AJ$192,Lists!$D$5:$D$30,$C213)","v":0},{"$f":"SUMIFS('Portfolio Analytics'!AK$167:AK$192,Lists!$D$5:$D$30,$C213)","v":0},{"$f":"SUMIFS('Portfolio Analytics'!AL$167:AL$192,Lists!$D$5:$D$30,$C213)","v":0},{"$f":"SUMIFS('Portfolio Analytics'!AM$167:AM$192,Lists!$D$5:$D$30,$C213)","v":0},{"$f":"SUMIFS('Portfolio Analytics'!AN$167:AN$192,Lists!$D$5:$D$30,$C213)","v":0}]
[null,null,"Storage Losses","GWh",{"$f":"E290","v":0},{"$f":"F290","v":0},0,0,0,-770.89703486724386,-1367.4077527472482,-1482.5978648420435,-1702.6038347651504,-2179.7796558378432,0,-3637.0313793869232,0,0,0,{"$f":"T290","v":-5718.0329910216806},0,0,0,0,0,0,0,0,0,0,0,0,0,0,-27634.331578237721,0,0,0,0,0]
[null,null,"Curtailment","GWh",{"$f":"E195","v":0},0,0,0,0,-235.50167811293724,-204.24384617490938,-445.24764034442501,-711.38350212649675,-770.57525593543585,0,-521.98395426611455,0,0,0,-4198.9387524315525,0,0,0,0,0,0,0,0,0,0,0,0,0,0,-54768.166372705331,0,0,0,0,0]
[null,null,"Imports (unspecified)","GWh",{"$f":"E193","v":0},0,0,0,0,27190.712797978911,25142.709687845283,23526.519948852176,24808.952006599142,27587.570091612393,0,23255.228652513182,0,0,0,21736.095698412642,0,0,0,0,0,0,0,0,0,0,0,0,0,0,1980.2043422008901,0,0,0,0,0]
[null,null,"Exports","GWh",{"$f":"E194","v":0},0,0,0,0,-856.87940436737824,-705.78662968087497,-1904.666474900306,-2381.5635308699211,-2284.5543217453173,0,-2220.1564582964911,0,0,0,-4479.8370666371884,0,0,0,0,0,0,0,0,0,0,0,0,0,0,-23688.703170100278,0,0,0,0,0]
[null,null,"Load","GWh",{"$f":"E196","v":0},0,0,0,0,246572.424698352,251245.28725406103,256395.63363796301,261203.154709036,265405.61936275201,0,272864.25886965101,0,0,0,285082.67191506794,0,0,0,0,0,0,0,0,0,0,0,0,0,0,410666.76570113999,0,0,0,0,0]
[]
[null,null,"Hourly and Sub-Hourly Generation Breakdown"]
[null,null,"Technology","Unit",2015,{"$f":"E221+1","v":2016},2017,2018,2019,2020,2021,2022,2023,2024,2025,2026,2027,2028,2029,2030,2031,2032,2033,2034,2035,2036,2037,2038,2039,2040,2041,2042,2043,2044,2045,2046,2047,2048,2049,2050]
[null,null,"CAISO_CCGT1","GWh",{"$f":"SUMIFS(raw_annual_energy!$E:$E,Lists!$S:$S,$C222,raw_annual_energy!$D:$D,E$221,raw_annual_energy!$A:$A,mainzone)/1000+SUMIFS(raw_annual_energy!$E:$E,Lists!$S:$S,$C222,raw_annual_energy!$D:$D,E$221,raw_annual_energy!$A:$A,\"CAISO_NW_Hydro\")/1000","v":0},{"$f":"SUMIFS(raw_annual_energy!$E:$E,Lists!$S:$S,$C222,raw_annual_energy!$D:$D,F$221,raw_annual_energy!$A:$A,mainzone)/1000+SUMIFS(raw_annual_energy!$E:$E,Lists!$S:$S,$C222,raw_annual_energy!$D:$D,F$221,raw_annual_energy!$A:$A,\"CAISO_NW_Hydro\")/1000","v":0},{"$f":"SUMIFS(raw_annual_energy!$E:$E,Lists!$S:$S,$C222,raw_annual_energy!$D:$D,G$221,raw_annual_energy!$A:$A,mainzone)/1000+SUMIFS(raw_annual_energy!$E:$E,Lists!$S:$S,$C222,raw_annual_energy!$D:$D,G$221,raw_annual_energy!$A:$A,\"CAISO_NW_Hydro\")/1000","v":0},{"$f":"SUMIFS(raw_annual_energy!$E:$E,Lists!$S:$S,$C222,raw_annual_energy!$D:$D,H$221,raw_annual_energy!$A:$A,mainzone)/1000+SUMIFS(raw_annual_energy!$E:$E,Lists!$S:$S,$C222,raw_annual_energy!$D:$D,H$221,raw_annual_energy!$A:$A,\"CAISO_NW_Hydro\")/1000","v":0},{"$f":"SUMIFS(raw_annual_energy!$E:$E,Lists!$S:$S,$C222,raw_annual_energy!$D:$D,I$221,raw_annual_energy!$A:$A,mainzone)/1000+SUMIFS(raw_annual_energy!$E:$E,Lists!$S:$S,$C222,raw_annual_energy!$D:$D,I$221,raw_annual_energy!$A:$A,\"CAISO_NW_Hydro\")/1000","v":0},{"$f":"SUMIFS(raw_annual_energy!$E:$E,Lists!$S:$S,$C222,raw_annual_energy!$D:$D,J$221,raw_annual_energy!$A:$A,mainzone)/1000+SUMIFS(raw_annual_energy!$E:$E,Lists!$S:$S,$C222,raw_annual_energy!$D:$D,J$221,raw_annual_energy!$A:$A,\"CAISO_NW_Hydro\")/1000","v":56639.178033024102},{"$f":"SUMIFS(raw_annual_energy!$E:$E,Lists!$S:$S,$C222,raw_annual_energy!$D:$D,K$221,raw_annual_energy!$A:$A,mainzone)/1000+SUMIFS(raw_annual_energy!$E:$E,Lists!$S:$S,$C222,raw_annual_energy!$D:$D,K$221,raw_annual_energy!$A:$A,\"CAISO_NW_Hydro\")/1000","v":57774.400907577998},{"$f":"SUMIFS(raw_annual_energy!$E:$E,Lists!$S:$S,$C222,raw_annual_energy!$D:$D,L$221,raw_annual_energy!$A:$A,mainzone)/1000+SUMIFS(raw_annual_energy!$E:$E,Lists!$S:$S,$C222,raw_annual_energy!$D:$D,L$221,raw_annual_energy!$A:$A,\"CAISO_NW_Hydro\")/1000","v":53301.827266046799},{"$f":"SUMIFS(raw_annual_energy!$E:$E,Lists!$S:$S,$C222,raw_annual_energy!$D:$D,M$221,raw_annual_energy!$A:$A,mainzone)/1000+SUMIFS(raw_annual_energy!$E:$E,Lists!$S:$S,$C222,raw_annual_energy!$D:$D,M$221,raw_annual_energy!$A:$A,\"CAISO_NW_Hydro\")/1000","v":51556.792011302903},{"$f":"SUMIFS(raw_annual_energy!$E:$E,Lists!$S:$S,$C222,raw_annual_energy!$D:$D,N$221,raw_annual_energy!$A:$A,mainzone)/1000+SUMIFS(raw_annual_energy!$E:$E,Lists!$S:$S,$C222,raw_annual_energy!$D:$D,N$221,raw_annual_energy!$A:$A,\"CAISO_NW_Hydro\")/1000","v":53981.544185634702},{"$f":"SUMIFS(raw_annual_energy!$E:$E,Lists!$S:$S,$C222,raw_annual_energy!$D:$D,O$221,raw_annual_energy!$A:$A,mainzone)/1000+SUMIFS(raw_annual_energy!$E:$E,Lists!$S:$S,$C222,raw_annual_energy!$D:$D,O$221,raw_annual_energy!$A:$A,\"CAISO_NW_Hydro\")/1000","v":0},{"$f":"SUMIFS(raw_annual_energy!$E:$E,Lists!$S:$S,$C222,raw_annual_energy!$D:$D,P$221,raw_annual_energy!$A:$A,mainzone)/1000+SUMIFS(raw_annual_energy!$E:$E,Lists!$S:$S,$C222,raw_annual_energy!$D:$D,P$221,raw_annual_energy!$A:$A,\"CAISO_NW_Hydro\")/1000","v":62378.3440385797},{"$f":"SUMIFS(raw_annual_energy!$E:$E,Lists!$S:$S,$C222,raw_annual_energy!$D:$D,Q$221,raw_annual_energy!$A:$A,mainzone)/1000+SUMIFS(raw_annual_energy!$E:$E,Lists!$S:$S,$C222,raw_annual_energy!$D:$D,Q$221,raw_annual_energy!$A:$A,\"CAISO_NW_Hydro\")/1000","v":0},{"$f":"SUMIFS(raw_annual_energy!$E:$E,Lists!$S:$S,$C222,raw_annual_energy!$D:$D,R$221,raw_annual_energy!$A:$A,mainzone)/1000+SUMIFS(raw_annual_energy!$E:$E,Lists!$S:$S,$C222,raw_annual_energy!$D:$D,R$221,raw_annual_energy!$A:$A,\"CAISO_NW_Hydro\")/1000","v":0},{"$f":"SUMIFS(raw_annual_energy!$E:$E,Lists!$S:$S,$C222,raw_annual_energy!$D:$D,S$221,raw_annual_energy!$A:$A,mainzone)/1000+SUMIFS(raw_annual_energy!$E:$E,Lists!$S:$S,$C222,raw_annual_energy!$D:$D,S$221,raw_annual_energy!$A:$A,\"CAISO_NW_Hydro\")/1000","v":0},{"$f":"SUMIFS(raw_annual_energy!$E:$E,Lists!$S:$S,$C222,raw_annual_energy!$D:$D,T$221,raw_annual_energy!$A:$A,mainzone)/1000+SUMIFS(raw_annual_energy!$E:$E,Lists!$S:$S,$C222,raw_annual_energy!$D:$D,T$221,raw_annual_energy!$A:$A,\"CAISO_NW_Hydro\")/1000","v":48520.741385774301},{"$f":"SUMIFS(raw_annual_energy!$E:$E,Lists!$S:$S,$C222,raw_annual_energy!$D:$D,U$221,raw_annual_energy!$A:$A,mainzone)/1000+SUMIFS(raw_annual_energy!$E:$E,Lists!$S:$S,$C222,raw_annual_energy!$D:$D,U$221,raw_annual_energy!$A:$A,\"CAISO_NW_Hydro\")/1000","v":0},{"$f":"SUMIFS(raw_annual_energy!$E:$E,Lists!$S:$S,$C222,raw_annual_energy!$D:$D,V$221,raw_annual_energy!$A:$A,mainzone)/1000+SUMIFS(raw_annual_energy!$E:$E,Lists!$S:$S,$C222,raw_annual_energy!$D:$D,V$221,raw_annual_energy!$A:$A,\"CAISO_NW_Hydro\")/1000","v":0},{"$f":"SUMIFS(raw_annual_energy!$E:$E,Lists!$S:$S,$C222,raw_annual_energy!$D:$D,W$221,raw_annual_energy!$A:$A,mainzone)/1000+SUMIFS(raw_annual_energy!$E:$E,Lists!$S:$S,$C222,raw_annual_energy!$D:$D,W$221,raw_annual_energy!$A:$A,\"CAISO_NW_Hydro\")/1000","v":0},{"$f":"SUMIFS(raw_annual_energy!$E:$E,Lists!$S:$S,$C222,raw_annual_energy!$D:$D,X$221,raw_annual_energy!$A:$A,mainzone)/1000+SUMIFS(raw_annual_energy!$E:$E,Lists!$S:$S,$C222,raw_annual_energy!$D:$D,X$221,raw_annual_energy!$A:$A,\"CAISO_NW_Hydro\")/1000","v":0},{"$f":"SUMIFS(raw_annual_energy!$E:$E,Lists!$S:$S,$C222,raw_annual_energy!$D:$D,Y$221,raw_annual_energy!$A:$A,mainzone)/1000+SUMIFS(raw_annual_energy!$E:$E,Lists!$S:$S,$C222,raw_annual_energy!$D:$D,Y$221,raw_annual_energy!$A:$A,\"CAISO_NW_Hydro\")/1000","v":0},{"$f":"SUMIFS(raw_annual_energy!$E:$E,Lists!$S:$S,$C222,raw_annual_energy!$D:$D,Z$221,raw_annual_energy!$A:$A,mainzone)/1000+SUMIFS(raw_annual_energy!$E:$E,Lists!$S:$S,$C222,raw_annual_energy!$D:$D,Z$221,raw_annual_energy!$A:$A,\"CAISO_NW_Hydro\")/1000","v":0},{"$f":"SUMIFS(raw_annual_energy!$E:$E,Lists!$S:$S,$C222,raw_annual_energy!$D:$D,AA$221,raw_annual_energy!$A:$A,mainzone)/1000+SUMIFS(raw_annual_energy!$E:$E,Lists!$S:$S,$C222,raw_annual_energy!$D:$D,AA$221,raw_annual_energy!$A:$A,\"CAISO_NW_Hydro\")/1000","v":0},{"$f":"SUMIFS(raw_annual_energy!$E:$E,Lists!$S:$S,$C222,raw_annual_energy!$D:$D,AB$221,raw_annual_energy!$A:$A,mainzone)/1000+SUMIFS(raw_annual_energy!$E:$E,Lists!$S:$S,$C222,raw_annual_energy!$D:$D,AB$221,raw_annual_energy!$A:$A,\"CAISO_NW_Hydro\")/1000","v":0},{"$f":"SUMIFS(raw_annual_energy!$E:$E,Lists!$S:$S,$C222,raw_annual_energy!$D:$D,AC$221,raw_annual_energy!$A:$A,mainzone)/1000+SUMIFS(raw_annual_energy!$E:$E,Lists!$S:$S,$C222,raw_annual_energy!$D:$D,AC$221,raw_annual_energy!$A:$A,\"CAISO_NW_Hydro\")/1000","v":0},{"$f":"SUMIFS(raw_annual_energy!$E:$E,Lists!$S:$S,$C222,raw_annual_energy!$D:$D,AD$221,raw_annual_energy!$A:$A,mainzone)/1000+SUMIFS(raw_annual_energy!$E:$E,Lists!$S:$S,$C222,raw_annual_energy!$D:$D,AD$221,raw_annual_energy!$A:$A,\"CAISO_NW_Hydro\")/1000","v":0},{"$f":"SUMIFS(raw_annual_energy!$E:$E,Lists!$S:$S,$C222,raw_annual_energy!$D:$D,AE$221,raw_annual_energy!$A:$A,mainzone)/1000+SUMIFS(raw_annual_energy!$E:$E,Lists!$S:$S,$C222,raw_annual_energy!$D:$D,AE$221,raw_annual_energy!$A:$A,\"CAISO_NW_Hydro\")/1000","v":0},{"$f":"SUMIFS(raw_annual_energy!$E:$E,Lists!$S:$S,$C222,raw_annual_energy!$D:$D,AF$221,raw_annual_energy!$A:$A,mainzone)/1000+SUMIFS(raw_annual_energy!$E:$E,Lists!$S:$S,$C222,raw_annual_energy!$D:$D,AF$221,raw_annual_energy!$A:$A,\"CAISO_NW_Hydro\")/1000","v":0},{"$f":"SUMIFS(raw_annual_energy!$E:$E,Lists!$S:$S,$C222,raw_annual_energy!$D:$D,AG$221,raw_annual_energy!$A:$A,mainzone)/1000+SUMIFS(raw_annual_energy!$E:$E,Lists!$S:$S,$C222,raw_annual_energy!$D:$D,AG$221,raw_annual_energy!$A:$A,\"CAISO_NW_Hydro\")/1000","v":0},{"$f":"SUMIFS(raw_annual_energy!$E:$E,Lists!$S:$S,$C222,raw_annual_energy!$D:$D,AH$221,raw_annual_energy!$A:$A,mainzone)/1000+SUMIFS(raw_annual_energy!$E:$E,Lists!$S:$S,$C222,raw_annual_energy!$D:$D,AH$221,raw_annual_energy!$A:$A,\"CAISO_NW_Hydro\")/1000","v":0},{"$f":"SUMIFS(raw_annual_energy!$E:$E,Lists!$S:$S,$C222,raw_annual_energy!$D:$D,AI$221,raw_annual_energy!$A:$A,mainzone)/1000+SUMIFS(raw_annual_energy!$E:$E,Lists!$S:$S,$C222,raw_annual_energy!$D:$D,AI$221,raw_annual_energy!$A:$A,\"CAISO_NW_Hydro\")/1000","v":29171.344853163399},{"$f":"SUMIFS(raw_annual_energy!$E:$E,Lists!$S:$S,$C222,raw_annual_energy!$D:$D,AJ$221,raw_annual_energy!$A:$A,mainzone)/1000+SUMIFS(raw_annual_energy!$E:$E,Lists!$S:$S,$C222,raw_annual_energy!$D:$D,AJ$221,raw_annual_energy!$A:$A,\"CAISO_NW_Hydro\")/1000","v":0},{"$f":"SUMIFS(raw_annual_energy!$E:$E,Lists!$S:$S,$C222,raw_annual_energy!$D:$D,AK$221,raw_annual_energy!$A:$A,mainzone)/1000+SUMIFS(raw_annual_energy!$E:$E,Lists!$S:$S,$C222,raw_annual_energy!$D:$D,AK$221,raw_annual_energy!$A:$A,\"CAISO_NW_Hydro\")/1000","v":0},{"$f":"SUMIFS(raw_annual_energy!$E:$E,Lists!$S:$S,$C222,raw_annual_energy!$D:$D,AL$221,raw_annual_energy!$A:$A,mainzone)/1000+SUMIFS(raw_annual_energy!$E:$E,Lists!$S:$S,$C222,raw_annual_energy!$D:$D,AL$221,raw_annual_energy!$A:$A,\"CAISO_NW_Hydro\")/1000","v":0},{"$f":"SUMIFS(raw_annual_energy!$E:$E,Lists!$S:$S,$C222,raw_annual_energy!$D:$D,AM$221,raw_annual_energy!$A:$A,mainzone)/1000+SUMIFS(raw_annual_energy!$E:$E,Lists!$S:$S,$C222,raw_annual_energy!$D:$D,AM$221,raw_annual_energy!$A:$A,\"CAISO_NW_Hydro\")/1000","v":0},{"$f":"SUMIFS(raw_annual_energy!$E:$E,Lists!$S:$S,$C222,raw_annual_energy!$D:$D,AN$221,raw_annual_energy!$A:$A,mainzone)/1000+SUMIFS(raw_annual_energy!$E:$E,Lists!$S:$S,$C222,raw_annual_energy!$D:$D,AN$221,raw_annual_energy!$A:$A,\"CAISO_NW_Hydro\")/1000","v":0}]
[null,null,"CAISO_CCGT2","GWh",{"$f":"SUMIFS(raw_annual_energy!$E:$E,Lists!$S:$S,$C223,raw_annual_energy!$D:$D,E$221,raw_annual_energy!$A:$A,mainzone)/1000+SUMIFS(raw_annual_energy!$E:$E,Lists!$S:$S,$C223,raw_annual_energy!$D:$D,E$221,raw_annual_energy!$A:$A,\"CAISO_NW_Hydro\")/1000","v":0},{"$f":"SUMIFS(raw_annual_energy!$E:$E,Lists!$S:$S,$C223,raw_annual_energy!$D:$D,F$221,raw_annual_energy!$A:$A,mainzone)/1000+SUMIFS(raw_annual_energy!$E:$E,Lists!$S:$S,$C223,raw_annual_energy!$D:$D,F$221,raw_annual_energy!$A:$A,\"CAISO_NW_Hydro\")/1000","v":0},{"$f":"SUMIFS(raw_annual_energy!$E:$E,Lists!$S:$S,$C223,raw_annual_energy!$D:$D,G$221,raw_annual_energy!$A:$A,mainzone)/1000+SUMIFS(raw_annual_energy!$E:$E,Lists!$S:$S,$C223,raw_annual_energy!$D:$D,G$221,raw_annual_energy!$A:$A,\"CAISO_NW_Hydro\")/1000","v":0},{"$f":"SUMIFS(raw_annual_energy!$E:$E,Lists!$S:$S,$C223,raw_annual_energy!$D:$D,H$221,raw_annual_energy!$A:$A,mainzone)/1000+SUMIFS(raw_annual_energy!$E:$E,Lists!$S:$S,$C223,raw_annual_energy!$D:$D,H$221,raw_annual_energy!$A:$A,\"CAISO_NW_Hydro\")/1000","v":0},{"$f":"SUMIFS(raw_annual_energy!$E:$E,Lists!$S:$S,$C223,raw_annual_energy!$D:$D,I$221,raw_annual_energy!$A:$A,mainzone)/1000+SUMIFS(raw_annual_energy!$E:$E,Lists!$S:$S,$C223,raw_annual_energy!$D:$D,I$221,raw_annual_energy!$A:$A,\"CAISO_NW_Hydro\")/1000","v":0},{"$f":"SUMIFS(raw_annual_energy!$E:$E,Lists!$S:$S,$C223,raw_annual_energy!$D:$D,J$221,raw_annual_energy!$A:$A,mainzone)/1000+SUMIFS(raw_annual_energy!$E:$E,Lists!$S:$S,$C223,raw_annual_energy!$D:$D,J$221,raw_annual_energy!$A:$A,\"CAISO_NW_Hydro\")/1000","v":90.170627374891694},{"$f":"SUMIFS(raw_annual_energy!$E:$E,Lists!$S:$S,$C223,raw_annual_energy!$D:$D,K$221,raw_annual_energy!$A:$A,mainzone)/1000+SUMIFS(raw_annual_energy!$E:$E,Lists!$S:$S,$C223,raw_annual_energy!$D:$D,K$221,raw_annual_energy!$A:$A,\"CAISO_NW_Hydro\")/1000","v":0},{"$f":"SUMIFS(raw_annual_energy!$E:$E,Lists!$S:$S,$C223,raw_annual_energy!$D:$D,L$221,raw_annual_energy!$A:$A,mainzone)/1000+SUMIFS(raw_annual_energy!$E:$E,Lists!$S:$S,$C223,raw_annual_energy!$D:$D,L$221,raw_annual_energy!$A:$A,\"CAISO_NW_Hydro\")/1000","v":0},{"$f":"SUMIFS(raw_annual_energy!$E:$E,Lists!$S:$S,$C223,raw_annual_energy!$D:$D,M$221,raw_annual_energy!$A:$A,mainzone)/1000+SUMIFS(raw_annual_energy!$E:$E,Lists!$S:$S,$C223,raw_annual_energy!$D:$D,M$221,raw_annual_energy!$A:$A,\"CAISO_NW_Hydro\")/1000","v":0},{"$f":"SUMIFS(raw_annual_energy!$E:$E,Lists!$S:$S,$C223,raw_annual_energy!$D:$D,N$221,raw_annual_energy!$A:$A,mainzone)/1000+SUMIFS(raw_annual_energy!$E:$E,Lists!$S:$S,$C223,raw_annual_energy!$D:$D,N$221,raw_annual_energy!$A:$A,\"CAISO_NW_Hydro\")/1000","v":0},{"$f":"SUMIFS(raw_annual_energy!$E:$E,Lists!$S:$S,$C223,raw_annual_energy!$D:$D,O$221,raw_annual_energy!$A:$A,mainzone)/1000+SUMIFS(raw_annual_energy!$E:$E,Lists!$S:$S,$C223,raw_annual_energy!$D:$D,O$221,raw_annual_energy!$A:$A,\"CAISO_NW_Hydro\")/1000","v":0},{"$f":"SUMIFS(raw_annual_energy!$E:$E,Lists!$S:$S,$C223,raw_annual_energy!$D:$D,P$221,raw_annual_energy!$A:$A,mainzone)/1000+SUMIFS(raw_annual_energy!$E:$E,Lists!$S:$S,$C223,raw_annual_energy!$D:$D,P$221,raw_annual_energy!$A:$A,\"CAISO_NW_Hydro\")/1000","v":0},{"$f":"SUMIFS(raw_annual_energy!$E:$E,Lists!$S:$S,$C223,raw_annual_energy!$D:$D,Q$221,raw_annual_energy!$A:$A,mainzone)/1000+SUMIFS(raw_annual_energy!$E:$E,Lists!$S:$S,$C223,raw_annual_energy!$D:$D,Q$221,raw_annual_energy!$A:$A,\"CAISO_NW_Hydro\")/1000","v":0},{"$f":"SUMIFS(raw_annual_energy!$E:$E,Lists!$S:$S,$C223,raw_annual_energy!$D:$D,R$221,raw_annual_energy!$A:$A,mainzone)/1000+SUMIFS(raw_annual_energy!$E:$E,Lists!$S:$S,$C223,raw_annual_energy!$D:$D,R$221,raw_annual_energy!$A:$A,\"CAISO_NW_Hydro\")/1000","v":0},{"$f":"SUMIFS(raw_annual_energy!$E:$E,Lists!$S:$S,$C223,raw_annual_energy!$D:$D,S$221,raw_annual_energy!$A:$A,mainzone)/1000+SUMIFS(raw_annual_energy!$E:$E,Lists!$S:$S,$C223,raw_annual_energy!$D:$D,S$221,raw_annual_energy!$A:$A,\"CAISO_NW_Hydro\")/1000","v":0},{"$f":"SUMIFS(raw_annual_energy!$E:$E,Lists!$S:$S,$C223,raw_annual_energy!$D:$D,T$221,raw_annual_energy!$A:$A,mainzone)/1000+SUMIFS(raw_annual_energy!$E:$E,Lists!$S:$S,$C223,raw_annual_energy!$D:$D,T$221,raw_annual_energy!$A:$A,\"CAISO_NW_Hydro\")/1000","v":0},{"$f":"SUMIFS(raw_annual_energy!$E:$E,Lists!$S:$S,$C223,raw_annual_energy!$D:$D,U$221,raw_annual_energy!$A:$A,mainzone)/1000+SUMIFS(raw_annual_energy!$E:$E,Lists!$S:$S,$C223,raw_annual_energy!$D:$D,U$221,raw_annual_energy!$A:$A,\"CAISO_NW_Hydro\")/1000","v":0},{"$f":"SUMIFS(raw_annual_energy!$E:$E,Lists!$S:$S,$C223,raw_annual_energy!$D:$D,V$221,raw_annual_energy!$A:$A,mainzone)/1000+SUMIFS(raw_annual_energy!$E:$E,Lists!$S:$S,$C223,raw_annual_energy!$D:$D,V$221,raw_annual_energy!$A:$A,\"CAISO_NW_Hydro\")/1000","v":0},{"$f":"SUMIFS(raw_annual_energy!$E:$E,Lists!$S:$S,$C223,raw_annual_energy!$D:$D,W$221,raw_annual_energy!$A:$A,mainzone)/1000+SUMIFS(raw_annual_energy!$E:$E,Lists!$S:$S,$C223,raw_annual_energy!$D:$D,W$221,raw_annual_energy!$A:$A,\"CAISO_NW_Hydro\")/1000","v":0},{"$f":"SUMIFS(raw_annual_energy!$E:$E,Lists!$S:$S,$C223,raw_annual_energy!$D:$D,X$221,raw_annual_energy!$A:$A,mainzone)/1000+SUMIFS(raw_annual_energy!$E:$E,Lists!$S:$S,$C223,raw_annual_energy!$D:$D,X$221,raw_annual_energy!$A:$A,\"CAISO_NW_Hydro\")/1000","v":0},{"$f":"SUMIFS(raw_annual_energy!$E:$E,Lists!$S:$S,$C223,raw_annual_energy!$D:$D,Y$221,raw_annual_energy!$A:$A,mainzone)/1000+SUMIFS(raw_annual_energy!$E:$E,Lists!$S:$S,$C223,raw_annual_energy!$D:$D,Y$221,raw_annual_energy!$A:$A,\"CAISO_NW_Hydro\")/1000","v":0},{"$f":"SUMIFS(raw_annual_energy!$E:$E,Lists!$S:$S,$C223,raw_annual_energy!$D:$D,Z$221,raw_annual_energy!$A:$A,mainzone)/1000+SUMIFS(raw_annual_energy!$E:$E,Lists!$S:$S,$C223,raw_annual_energy!$D:$D,Z$221,raw_annual_energy!$A:$A,\"CAISO_NW_Hydro\")/1000","v":0},{"$f":"SUMIFS(raw_annual_energy!$E:$E,Lists!$S:$S,$C223,raw_annual_energy!$D:$D,AA$221,raw_annual_energy!$A:$A,mainzone)/1000+SUMIFS(raw_annual_energy!$E:$E,Lists!$S:$S,$C223,raw_annual_energy!$D:$D,AA$221,raw_annual_energy!$A:$A,\"CAISO_NW_Hydro\")/1000","v":0},{"$f":"SUMIFS(raw_annual_energy!$E:$E,Lists!$S:$S,$C223,raw_annual_energy!$D:$D,AB$221,raw_annual_energy!$A:$A,mainzone)/1000+SUMIFS(raw_annual_energy!$E:$E,Lists!$S:$S,$C223,raw_annual_energy!$D:$D,AB$221,raw_annual_energy!$A:$A,\"CAISO_NW_Hydro\")/1000","v":0},{"$f":"SUMIFS(raw_annual_energy!$E:$E,Lists!$S:$S,$C223,raw_annual_energy!$D:$D,AC$221,raw_annual_energy!$A:$A,mainzone)/1000+SUMIFS(raw_annual_energy!$E:$E,Lists!$S:$S,$C223,raw_annual_energy!$D:$D,AC$221,raw_annual_energy!$A:$A,\"CAISO_NW_Hydro\")/1000","v":0},{"$f":"SUMIFS(raw_annual_energy!$E:$E,Lists!$S:$S,$C223,raw_annual_energy!$D:$D,AD$221,raw_annual_energy!$A:$A,mainzone)/1000+SUMIFS(raw_annual_energy!$E:$E,Lists!$S:$S,$C223,raw_annual_energy!$D:$D,AD$221,raw_annual_energy!$A:$A,\"CAISO_NW_Hydro\")/1000","v":0},{"$f":"SUMIFS(raw_annual_energy!$E:$E,Lists!$S:$S,$C223,raw_annual_energy!$D:$D,AE$221,raw_annual_energy!$A:$A,mainzone)/1000+SUMIFS(raw_annual_energy!$E:$E,Lists!$S:$S,$C223,raw_annual_energy!$D:$D,AE$221,raw_annual_energy!$A:$A,\"CAISO_NW_Hydro\")/1000","v":0},{"$f":"SUMIFS(raw_annual_energy!$E:$E,Lists!$S:$S,$C223,raw_annual_energy!$D:$D,AF$221,raw_annual_energy!$A:$A,mainzone)/1000+SUMIFS(raw_annual_energy!$E:$E,Lists!$S:$S,$C223,raw_annual_energy!$D:$D,AF$221,raw_annual_energy!$A:$A,\"CAISO_NW_Hydro\")/1000","v":0},{"$f":"SUMIFS(raw_annual_energy!$E:$E,Lists!$S:$S,$C223,raw_annual_energy!$D:$D,AG$221,raw_annual_energy!$A:$A,mainzone)/1000+SUMIFS(raw_annual_energy!$E:$E,Lists!$S:$S,$C223,raw_annual_energy!$D:$D,AG$221,raw_annual_energy!$A:$A,\"CAISO_NW_Hydro\")/1000","v":0},{"$f":"SUMIFS(raw_annual_energy!$E:$E,Lists!$S:$S,$C223,raw_annual_energy!$D:$D,AH$221,raw_annual_energy!$A:$A,mainzone)/1000+SUMIFS(raw_annual_energy!$E:$E,Lists!$S:$S,$C223,raw_annual_energy!$D:$D,AH$221,raw_annual_energy!$A:$A,\"CAISO_NW_Hydro\")/1000","v":0},{"$f":"SUMIFS(raw_annual_energy!$E:$E,Lists!$S:$S,$C223,raw_annual_energy!$D:$D,AI$221,raw_annual_energy!$A:$A,mainzone)/1000+SUMIFS(raw_annual_energy!$E:$E,Lists!$S:$S,$C223,raw_annual_energy!$D:$D,AI$221,raw_annual_energy!$A:$A,\"CAISO_NW_Hydro\")/1000","v":530.078346238937},{"$f":"SUMIFS(raw_annual_energy!$E:$E,Lists!$S:$S,$C223,raw_annual_energy!$D:$D,AJ$221,raw_annual_energy!$A:$A,mainzone)/1000+SUMIFS(raw_annual_energy!$E:$E,Lists!$S:$S,$C223,raw_annual_energy!$D:$D,AJ$221,raw_annual_energy!$A:$A,\"CAISO_NW_Hydro\")/1000","v":0},{"$f":"SUMIFS(raw_annual_energy!$E:$E,Lists!$S:$S,$C223,raw_annual_energy!$D:$D,AK$221,raw_annual_energy!$A:$A,mainzone)/1000+SUMIFS(raw_annual_energy!$E:$E,Lists!$S:$S,$C223,raw_annual_energy!$D:$D,AK$221,raw_annual_energy!$A:$A,\"CAISO_NW_Hydro\")/1000","v":0},{"$f":"SUMIFS(raw_annual_energy!$E:$E,Lists!$S:$S,$C223,raw_annual_energy!$D:$D,AL$221,raw_annual_energy!$A:$A,mainzone)/1000+SUMIFS(raw_annual_energy!$E:$E,Lists!$S:$S,$C223,raw_annual_energy!$D:$D,AL$221,raw_annual_energy!$A:$A,\"CAISO_NW_Hydro\")/1000","v":0},{"$f":"SUMIFS(raw_annual_energy!$E:$E,Lists!$S:$S,$C223,raw_annual_energy!$D:$D,AM$221,raw_annual_energy!$A:$A,mainzone)/1000+SUMIFS(raw_annual_energy!$E:$E,Lists!$S:$S,$C223,raw_annual_energy!$D:$D,AM$221,raw_annual_energy!$A:$A,\"CAISO_NW_Hydro\")/1000","v":0},{"$f":"SUMIFS(raw_annual_energy!$E:$E,Lists!$S:$S,$C223,raw_annual_energy!$D:$D,AN$221,raw_annual_energy!$A:$A,mainzone)/1000+SUMIFS(raw_annual_energy!$E:$E,Lists!$S:$S,$C223,raw_annual_energy!$D:$D,AN$221,raw_annual_energy!$A:$A,\"CAISO_NW_Hydro\")/1000","v":0}]
[null,null,"CAISO_Peaker1","GWh",{"$f":"SUMIFS(raw_annual_energy!$E:$E,Lists!$S:$S,$C224,raw_annual_energy!$D:$D,E$221,raw_annual_energy!$A:$A,mainzone)/1000+SUMIFS(raw_annual_energy!$E:$E,Lists!$S:$S,$C224,raw_annual_energy!$D:$D,E$221,raw_annual_energy!$A:$A,\"CAISO_NW_Hydro\")/1000","v":0},{"$f":"SUMIFS(raw_annual_energy!$E:$E,Lists!$S:$S,$C224,raw_annual_energy!$D:$D,F$221,raw_annual_energy!$A:$A,mainzone)/1000+SUMIFS(raw_annual_energy!$E:$E,Lists!$S:$S,$C224,raw_annual_energy!$D:$D,F$221,raw_annual_energy!$A:$A,\"CAISO_NW_Hydro\")/1000","v":0},{"$f":"SUMIFS(raw_annual_energy!$E:$E,Lists!$S:$S,$C224,raw_annual_energy!$D:$D,G$221,raw_annual_energy!$A:$A,mainzone)/1000+SUMIFS(raw_annual_energy!$E:$E,Lists!$S:$S,$C224,raw_annual_energy!$D:$D,G$221,raw_annual_energy!$A:$A,\"CAISO_NW_Hydro\")/1000","v":0},{"$f":"SUMIFS(raw_annual_energy!$E:$E,Lists!$S:$S,$C224,raw_annual_energy!$D:$D,H$221,raw_annual_energy!$A:$A,mainzone)/1000+SUMIFS(raw_annual_energy!$E:$E,Lists!$S:$S,$C224,raw_annual_energy!$D:$D,H$221,raw_annual_energy!$A:$A,\"CAISO_NW_Hydro\")/1000","v":0},{"$f":"SUMIFS(raw_annual_energy!$E:$E,Lists!$S:$S,$C224,raw_annual_energy!$D:$D,I$221,raw_annual_energy!$A:$A,mainzone)/1000+SUMIFS(raw_annual_energy!$E:$E,Lists!$S:$S,$C224,raw_annual_energy!$D:$D,I$221,raw_annual_energy!$A:$A,\"CAISO_NW_Hydro\")/1000","v":0},{"$f":"SUMIFS(raw_annual_energy!$E:$E,Lists!$S:$S,$C224,raw_annual_energy!$D:$D,J$221,raw_annual_energy!$A:$A,mainzone)/1000+SUMIFS(raw_annual_energy!$E:$E,Lists!$S:$S,$C224,raw_annual_energy!$D:$D,J$221,raw_annual_energy!$A:$A,\"CAISO_NW_Hydro\")/1000","v":806.79975374865103},{"$f":"SUMIFS(raw_annual_energy!$E:$E,Lists!$S:$S,$C224,raw_annual_energy!$D:$D,K$221,raw_annual_energy!$A:$A,mainzone)/1000+SUMIFS(raw_annual_energy!$E:$E,Lists!$S:$S,$C224,raw_annual_energy!$D:$D,K$221,raw_annual_energy!$A:$A,\"CAISO_NW_Hydro\")/1000","v":406.21195410829699},{"$f":"SUMIFS(raw_annual_energy!$E:$E,Lists!$S:$S,$C224,raw_annual_energy!$D:$D,L$221,raw_annual_energy!$A:$A,mainzone)/1000+SUMIFS(raw_annual_energy!$E:$E,Lists!$S:$S,$C224,raw_annual_energy!$D:$D,L$221,raw_annual_energy!$A:$A,\"CAISO_NW_Hydro\")/1000","v":467.08057001723404},{"$f":"SUMIFS(raw_annual_energy!$E:$E,Lists!$S:$S,$C224,raw_annual_energy!$D:$D,M$221,raw_annual_energy!$A:$A,mainzone)/1000+SUMIFS(raw_annual_energy!$E:$E,Lists!$S:$S,$C224,raw_annual_energy!$D:$D,M$221,raw_annual_energy!$A:$A,\"CAISO_NW_Hydro\")/1000","v":558.299030612671},{"$f":"SUMIFS(raw_annual_energy!$E:$E,Lists!$S:$S,$C224,raw_annual_energy!$D:$D,N$221,raw_annual_energy!$A:$A,mainzone)/1000+SUMIFS(raw_annual_energy!$E:$E,Lists!$S:$S,$C224,raw_annual_energy!$D:$D,N$221,raw_annual_energy!$A:$A,\"CAISO_NW_Hydro\")/1000","v":453.470617433656},{"$f":"SUMIFS(raw_annual_energy!$E:$E,Lists!$S:$S,$C224,raw_annual_energy!$D:$D,O$221,raw_annual_energy!$A:$A,mainzone)/1000+SUMIFS(raw_annual_energy!$E:$E,Lists!$S:$S,$C224,raw_annual_energy!$D:$D,O$221,raw_annual_energy!$A:$A,\"CAISO_NW_Hydro\")/1000","v":0},{"$f":"SUMIFS(raw_annual_energy!$E:$E,Lists!$S:$S,$C224,raw_annual_energy!$D:$D,P$221,raw_annual_energy!$A:$A,mainzone)/1000+SUMIFS(raw_annual_energy!$E:$E,Lists!$S:$S,$C224,raw_annual_energy!$D:$D,P$221,raw_annual_energy!$A:$A,\"CAISO_NW_Hydro\")/1000","v":65.115319884817097},{"$f":"SUMIFS(raw_annual_energy!$E:$E,Lists!$S:$S,$C224,raw_annual_energy!$D:$D,Q$221,raw_annual_energy!$A:$A,mainzone)/1000+SUMIFS(raw_annual_energy!$E:$E,Lists!$S:$S,$C224,raw_annual_energy!$D:$D,Q$221,raw_annual_energy!$A:$A,\"CAISO_NW_Hydro\")/1000","v":0},{"$f":"SUMIFS(raw_annual_energy!$E:$E,Lists!$S:$S,$C224,raw_annual_energy!$D:$D,R$221,raw_annual_energy!$A:$A,mainzone)/1000+SUMIFS(raw_annual_energy!$E:$E,Lists!$S:$S,$C224,raw_annual_energy!$D:$D,R$221,raw_annual_energy!$A:$A,\"CAISO_NW_Hydro\")/1000","v":0},{"$f":"SUMIFS(raw_annual_energy!$E:$E,Lists!$S:$S,$C224,raw_annual_energy!$D:$D,S$221,raw_annual_energy!$A:$A,mainzone)/1000+SUMIFS(raw_annual_energy!$E:$E,Lists!$S:$S,$C224,raw_annual_energy!$D:$D,S$221,raw_annual_energy!$A:$A,\"CAISO_NW_Hydro\")/1000","v":0},{"$f":"SUMIFS(raw_annual_energy!$E:$E,Lists!$S:$S,$C224,raw_annual_energy!$D:$D,T$221,raw_annual_energy!$A:$A,mainzone)/1000+SUMIFS(raw_annual_energy!$E:$E,Lists!$S:$S,$C224,raw_annual_energy!$D:$D,T$221,raw_annual_energy!$A:$A,\"CAISO_NW_Hydro\")/1000","v":60.1001890085873},{"$f":"SUMIFS(raw_annual_energy!$E:$E,Lists!$S:$S,$C224,raw_annual_energy!$D:$D,U$221,raw_annual_energy!$A:$A,mainzone)/1000+SUMIFS(raw_annual_energy!$E:$E,Lists!$S:$S,$C224,raw_annual_energy!$D:$D,U$221,raw_annual_energy!$A:$A,\"CAISO_NW_Hydro\")/1000","v":0},{"$f":"SUMIFS(raw_annual_energy!$E:$E,Lists!$S:$S,$C224,raw_annual_energy!$D:$D,V$221,raw_annual_energy!$A:$A,mainzone)/1000+SUMIFS(raw_annual_energy!$E:$E,Lists!$S:$S,$C224,raw_annual_energy!$D:$D,V$221,raw_annual_energy!$A:$A,\"CAISO_NW_Hydro\")/1000","v":0},{"$f":"SUMIFS(raw_annual_energy!$E:$E,Lists!$S:$S,$C224,raw_annual_energy!$D:$D,W$221,raw_annual_energy!$A:$A,mainzone)/1000+SUMIFS(raw_annual_energy!$E:$E,Lists!$S:$S,$C224,raw_annual_energy!$D:$D,W$221,raw_annual_energy!$A:$A,\"CAISO_NW_Hydro\")/1000","v":0},{"$f":"SUMIFS(raw_annual_energy!$E:$E,Lists!$S:$S,$C224,raw_annual_energy!$D:$D,X$221,raw_annual_energy!$A:$A,mainzone)/1000+SUMIFS(raw_annual_energy!$E:$E,Lists!$S:$S,$C224,raw_annual_energy!$D:$D,X$221,raw_annual_energy!$A:$A,\"CAISO_NW_Hydro\")/1000","v":0},{"$f":"SUMIFS(raw_annual_energy!$E:$E,Lists!$S:$S,$C224,raw_annual_energy!$D:$D,Y$221,raw_annual_energy!$A:$A,mainzone)/1000+SUMIFS(raw_annual_energy!$E:$E,Lists!$S:$S,$C224,raw_annual_energy!$D:$D,Y$221,raw_annual_energy!$A:$A,\"CAISO_NW_Hydro\")/1000","v":0},{"$f":"SUMIFS(raw_annual_energy!$E:$E,Lists!$S:$S,$C224,raw_annual_energy!$D:$D,Z$221,raw_annual_energy!$A:$A,mainzone)/1000+SUMIFS(raw_annual_energy!$E:$E,Lists!$S:$S,$C224,raw_annual_energy!$D:$D,Z$221,raw_annual_energy!$A:$A,\"CAISO_NW_Hydro\")/1000","v":0},{"$f":"SUMIFS(raw_annual_energy!$E:$E,Lists!$S:$S,$C224,raw_annual_energy!$D:$D,AA$221,raw_annual_energy!$A:$A,mainzone)/1000+SUMIFS(raw_annual_energy!$E:$E,Lists!$S:$S,$C224,raw_annual_energy!$D:$D,AA$221,raw_annual_energy!$A:$A,\"CAISO_NW_Hydro\")/1000","v":0},{"$f":"SUMIFS(raw_annual_energy!$E:$E,Lists!$S:$S,$C224,raw_annual_energy!$D:$D,AB$221,raw_annual_energy!$A:$A,mainzone)/1000+SUMIFS(raw_annual_energy!$E:$E,Lists!$S:$S,$C224,raw_annual_energy!$D:$D,AB$221,raw_annual_energy!$A:$A,\"CAISO_NW_Hydro\")/1000","v":0},{"$f":"SUMIFS(raw_annual_energy!$E:$E,Lists!$S:$S,$C224,raw_annual_energy!$D:$D,AC$221,raw_annual_energy!$A:$A,mainzone)/1000+SUMIFS(raw_annual_energy!$E:$E,Lists!$S:$S,$C224,raw_annual_energy!$D:$D,AC$221,raw_annual_energy!$A:$A,\"CAISO_NW_Hydro\")/1000","v":0},{"$f":"SUMIFS(raw_annual_energy!$E:$E,Lists!$S:$S,$C224,raw_annual_energy!$D:$D,AD$221,raw_annual_energy!$A:$A,mainzone)/1000+SUMIFS(raw_annual_energy!$E:$E,Lists!$S:$S,$C224,raw_annual_energy!$D:$D,AD$221,raw_annual_energy!$A:$A,\"CAISO_NW_Hydro\")/1000","v":0},{"$f":"SUMIFS(raw_annual_energy!$E:$E,Lists!$S:$S,$C224,raw_annual_energy!$D:$D,AE$221,raw_annual_energy!$A:$A,mainzone)/1000+SUMIFS(raw_annual_energy!$E:$E,Lists!$S:$S,$C224,raw_annual_energy!$D:$D,AE$221,raw_annual_energy!$A:$A,\"CAISO_NW_Hydro\")/1000","v":0},{"$f":"SUMIFS(raw_annual_energy!$E:$E,Lists!$S:$S,$C224,raw_annual_energy!$D:$D,AF$221,raw_annual_energy!$A:$A,mainzone)/1000+SUMIFS(raw_annual_energy!$E:$E,Lists!$S:$S,$C224,raw_annual_energy!$D:$D,AF$221,raw_annual_energy!$A:$A,\"CAISO_NW_Hydro\")/1000","v":0},{"$f":"SUMIFS(raw_annual_energy!$E:$E,Lists!$S:$S,$C224,raw_annual_energy!$D:$D,AG$221,raw_annual_energy!$A:$A,mainzone)/1000+SUMIFS(raw_annual_energy!$E:$E,Lists!$S:$S,$C224,raw_annual_energy!$D:$D,AG$221,raw_annual_energy!$A:$A,\"CAISO_NW_Hydro\")/1000","v":0},{"$f":"SUMIFS(raw_annual_energy!$E:$E,Lists!$S:$S,$C224,raw_annual_energy!$D:$D,AH$221,raw_annual_energy!$A:$A,mainzone)/1000+SUMIFS(raw_annual_energy!$E:$E,Lists!$S:$S,$C224,raw_annual_energy!$D:$D,AH$221,raw_annual_energy!$A:$A,\"CAISO_NW_Hydro\")/1000","v":0},{"$f":"SUMIFS(raw_annual_energy!$E:$E,Lists!$S:$S,$C224,raw_annual_energy!$D:$D,AI$221,raw_annual_energy!$A:$A,mainzone)/1000+SUMIFS(raw_annual_energy!$E:$E,Lists!$S:$S,$C224,raw_annual_energy!$D:$D,AI$221,raw_annual_energy!$A:$A,\"CAISO_NW_Hydro\")/1000","v":0},{"$f":"SUMIFS(raw_annual_energy!$E:$E,Lists!$S:$S,$C224,raw_annual_energy!$D:$D,AJ$221,raw_annual_energy!$A:$A,mainzone)/1000+SUMIFS(raw_annual_energy!$E:$E,Lists!$S:$S,$C224,raw_annual_energy!$D:$D,AJ$221,raw_annual_energy!$A:$A,\"CAISO_NW_Hydro\")/1000","v":0},{"$f":"SUMIFS(raw_annual_energy!$E:$E,Lists!$S:$S,$C224,raw_annual_energy!$D:$D,AK$221,raw_annual_energy!$A:$A,mainzone)/1000+SUMIFS(raw_annual_energy!$E:$E,Lists!$S:$S,$C224,raw_annual_energy!$D:$D,AK$221,raw_annual_energy!$A:$A,\"CAISO_NW_Hydro\")/1000","v":0},{"$f":"SUMIFS(raw_annual_energy!$E:$E,Lists!$S:$S,$C224,raw_annual_energy!$D:$D,AL$221,raw_annual_energy!$A:$A,mainzone)/1000+SUMIFS(raw_annual_energy!$E:$E,Lists!$S:$S,$C224,raw_annual_energy!$D:$D,AL$221,raw_annual_energy!$A:$A,\"CAISO_NW_Hydro\")/1000","v":0},{"$f":"SUMIFS(raw_annual_energy!$E:$E,Lists!$S:$S,$C224,raw_annual_energy!$D:$D,AM$221,raw_annual_energy!$A:$A,mainzone)/1000+SUMIFS(raw_annual_energy!$E:$E,Lists!$S:$S,$C224,raw_annual_energy!$D:$D,AM$221,raw_annual_energy!$A:$A,\"CAISO_NW_Hydro\")/1000","v":0},{"$f":"SUMIFS(raw_annual_energy!$E:$E,Lists!$S:$S,$C224,raw_annual_energy!$D:$D,AN$221,raw_annual_energy!$A:$A,mainzone)/1000+SUMIFS(raw_annual_energy!$E:$E,Lists!$S:$S,$C224,raw_annual_energy!$D:$D,AN$221,raw_annual_energy!$A:$A,\"CAISO_NW_Hydro\")/1000","v":0}]
[null,null,"CAISO_Peaker2","GWh",{"$f":"SUMIFS(raw_annual_energy!$E:$E,Lists!$S:$S,$C225,raw_annual_energy!$D:$D,E$221,raw_annual_energy!$A:$A,mainzone)/1000+SUMIFS(raw_annual_energy!$E:$E,Lists!$S:$S,$C225,raw_annual_energy!$D:$D,E$221,raw_annual_energy!$A:$A,\"CAISO_NW_Hydro\")/1000","v":0},{"$f":"SUMIFS(raw_annual_energy!$E:$E,Lists!$S:$S,$C225,raw_annual_energy!$D:$D,F$221,raw_annual_energy!$A:$A,mainzone)/1000+SUMIFS(raw_annual_energy!$E:$E,Lists!$S:$S,$C225,raw_annual_energy!$D:$D,F$221,raw_annual_energy!$A:$A,\"CAISO_NW_Hydro\")/1000","v":0},{"$f":"SUMIFS(raw_annual_energy!$E:$E,Lists!$S:$S,$C225,raw_annual_energy!$D:$D,G$221,raw_annual_energy!$A:$A,mainzone)/1000+SUMIFS(raw_annual_energy!$E:$E,Lists!$S:$S,$C225,raw_annual_energy!$D:$D,G$221,raw_annual_energy!$A:$A,\"CAISO_NW_Hydro\")/1000","v":0},{"$f":"SUMIFS(raw_annual_energy!$E:$E,Lists!$S:$S,$C225,raw_annual_energy!$D:$D,H$221,raw_annual_energy!$A:$A,mainzone)/1000+SUMIFS(raw_annual_energy!$E:$E,Lists!$S:$S,$C225,raw_annual_energy!$D:$D,H$221,raw_annual_energy!$A:$A,\"CAISO_NW_Hydro\")/1000","v":0},{"$f":"SUMIFS(raw_annual_energy!$E:$E,Lists!$S:$S,$C225,raw_annual_energy!$D:$D,I$221,raw_annual_energy!$A:$A,mainzone)/1000+SUMIFS(raw_annual_energy!$E:$E,Lists!$S:$S,$C225,raw_annual_energy!$D:$D,I$221,raw_annual_energy!$A:$A,\"CAISO_NW_Hydro\")/1000","v":0},{"$f":"SUMIFS(raw_annual_energy!$E:$E,Lists!$S:$S,$C225,raw_annual_energy!$D:$D,J$221,raw_annual_energy!$A:$A,mainzone)/1000+SUMIFS(raw_annual_energy!$E:$E,Lists!$S:$S,$C225,raw_annual_energy!$D:$D,J$221,raw_annual_energy!$A:$A,\"CAISO_NW_Hydro\")/1000","v":0},{"$f":"SUMIFS(raw_annual_energy!$E:$E,Lists!$S:$S,$C225,raw_annual_energy!$D:$D,K$221,raw_annual_energy!$A:$A,mainzone)/1000+SUMIFS(raw_annual_energy!$E:$E,Lists!$S:$S,$C225,raw_annual_energy!$D:$D,K$221,raw_annual_energy!$A:$A,\"CAISO_NW_Hydro\")/1000","v":0},{"$f":"SUMIFS(raw_annual_energy!$E:$E,Lists!$S:$S,$C225,raw_annual_energy!$D:$D,L$221,raw_annual_energy!$A:$A,mainzone)/1000+SUMIFS(raw_annual_energy!$E:$E,Lists!$S:$S,$C225,raw_annual_energy!$D:$D,L$221,raw_annual_energy!$A:$A,\"CAISO_NW_Hydro\")/1000","v":0},{"$f":"SUMIFS(raw_annual_energy!$E:$E,Lists!$S:$S,$C225,raw_annual_energy!$D:$D,M$221,raw_annual_energy!$A:$A,mainzone)/1000+SUMIFS(raw_annual_energy!$E:$E,Lists!$S:$S,$C225,raw_annual_energy!$D:$D,M$221,raw_annual_energy!$A:$A,\"CAISO_NW_Hydro\")/1000","v":0},{"$f":"SUMIFS(raw_annual_energy!$E:$E,Lists!$S:$S,$C225,raw_annual_energy!$D:$D,N$221,raw_annual_energy!$A:$A,mainzone)/1000+SUMIFS(raw_annual_energy!$E:$E,Lists!$S:$S,$C225,raw_annual_energy!$D:$D,N$221,raw_annual_energy!$A:$A,\"CAISO_NW_Hydro\")/1000","v":0},{"$f":"SUMIFS(raw_annual_energy!$E:$E,Lists!$S:$S,$C225,raw_annual_energy!$D:$D,O$221,raw_annual_energy!$A:$A,mainzone)/1000+SUMIFS(raw_annual_energy!$E:$E,Lists!$S:$S,$C225,raw_annual_energy!$D:$D,O$221,raw_annual_energy!$A:$A,\"CAISO_NW_Hydro\")/1000","v":0},{"$f":"SUMIFS(raw_annual_energy!$E:$E,Lists!$S:$S,$C225,raw_annual_energy!$D:$D,P$221,raw_annual_energy!$A:$A,mainzone)/1000+SUMIFS(raw_annual_energy!$E:$E,Lists!$S:$S,$C225,raw_annual_energy!$D:$D,P$221,raw_annual_energy!$A:$A,\"CAISO_NW_Hydro\")/1000","v":0},{"$f":"SUMIFS(raw_annual_energy!$E:$E,Lists!$S:$S,$C225,raw_annual_energy!$D:$D,Q$221,raw_annual_energy!$A:$A,mainzone)/1000+SUMIFS(raw_annual_energy!$E:$E,Lists!$S:$S,$C225,raw_annual_energy!$D:$D,Q$221,raw_annual_energy!$A:$A,\"CAISO_NW_Hydro\")/1000","v":0},{"$f":"SUMIFS(raw_annual_energy!$E:$E,Lists!$S:$S,$C225,raw_annual_energy!$D:$D,R$221,raw_annual_energy!$A:$A,mainzone)/1000+SUMIFS(raw_annual_energy!$E:$E,Lists!$S:$S,$C225,raw_annual_energy!$D:$D,R$221,raw_annual_energy!$A:$A,\"CAISO_NW_Hydro\")/1000","v":0},{"$f":"SUMIFS(raw_annual_energy!$E:$E,Lists!$S:$S,$C225,raw_annual_energy!$D:$D,S$221,raw_annual_energy!$A:$A,mainzone)/1000+SUMIFS(raw_annual_energy!$E:$E,Lists!$S:$S,$C225,raw_annual_energy!$D:$D,S$221,raw_annual_energy!$A:$A,\"CAISO_NW_Hydro\")/1000","v":0},{"$f":"SUMIFS(raw_annual_energy!$E:$E,Lists!$S:$S,$C225,raw_annual_energy!$D:$D,T$221,raw_annual_energy!$A:$A,mainzone)/1000+SUMIFS(raw_annual_energy!$E:$E,Lists!$S:$S,$C225,raw_annual_energy!$D:$D,T$221,raw_annual_energy!$A:$A,\"CAISO_NW_Hydro\")/1000","v":0},{"$f":"SUMIFS(raw_annual_energy!$E:$E,Lists!$S:$S,$C225,raw_annual_energy!$D:$D,U$221,raw_annual_energy!$A:$A,mainzone)/1000+SUMIFS(raw_annual_energy!$E:$E,Lists!$S:$S,$C225,raw_annual_energy!$D:$D,U$221,raw_annual_energy!$A:$A,\"CAISO_NW_Hydro\")/1000","v":0},{"$f":"SUMIFS(raw_annual_energy!$E:$E,Lists!$S:$S,$C225,raw_annual_energy!$D:$D,V$221,raw_annual_energy!$A:$A,mainzone)/1000+SUMIFS(raw_annual_energy!$E:$E,Lists!$S:$S,$C225,raw_annual_energy!$D:$D,V$221,raw_annual_energy!$A:$A,\"CAISO_NW_Hydro\")/1000","v":0},{"$f":"SUMIFS(raw_annual_energy!$E:$E,Lists!$S:$S,$C225,raw_annual_energy!$D:$D,W$221,raw_annual_energy!$A:$A,mainzone)/1000+SUMIFS(raw_annual_energy!$E:$E,Lists!$S:$S,$C225,raw_annual_energy!$D:$D,W$221,raw_annual_energy!$A:$A,\"CAISO_NW_Hydro\")/1000","v":0},{"$f":"SUMIFS(raw_annual_energy!$E:$E,Lists!$S:$S,$C225,raw_annual_energy!$D:$D,X$221,raw_annual_energy!$A:$A,mainzone)/1000+SUMIFS(raw_annual_energy!$E:$E,Lists!$S:$S,$C225,raw_annual_energy!$D:$D,X$221,raw_annual_energy!$A:$A,\"CAISO_NW_Hydro\")/1000","v":0},{"$f":"SUMIFS(raw_annual_energy!$E:$E,Lists!$S:$S,$C225,raw_annual_energy!$D:$D,Y$221,raw_annual_energy!$A:$A,mainzone)/1000+SUMIFS(raw_annual_energy!$E:$E,Lists!$S:$S,$C225,raw_annual_energy!$D:$D,Y$221,raw_annual_energy!$A:$A,\"CAISO_NW_Hydro\")/1000","v":0},{"$f":"SUMIFS(raw_annual_energy!$E:$E,Lists!$S:$S,$C225,raw_annual_energy!$D:$D,Z$221,raw_annual_energy!$A:$A,mainzone)/1000+SUMIFS(raw_annual_energy!$E:$E,Lists!$S:$S,$C225,raw_annual_energy!$D:$D,Z$221,raw_annual_energy!$A:$A,\"CAISO_NW_Hydro\")/1000","v":0},{"$f":"SUMIFS(raw_annual_energy!$E:$E,Lists!$S:$S,$C225,raw_annual_energy!$D:$D,AA$221,raw_annual_energy!$A:$A,mainzone)/1000+SUMIFS(raw_annual_energy!$E:$E,Lists!$S:$S,$C225,raw_annual_energy!$D:$D,AA$221,raw_annual_energy!$A:$A,\"CAISO_NW_Hydro\")/1000","v":0},{"$f":"SUMIFS(raw_annual_energy!$E:$E,Lists!$S:$S,$C225,raw_annual_energy!$D:$D,AB$221,raw_annual_energy!$A:$A,mainzone)/1000+SUMIFS(raw_annual_energy!$E:$E,Lists!$S:$S,$C225,raw_annual_energy!$D:$D,AB$221,raw_annual_energy!$A:$A,\"CAISO_NW_Hydro\")/1000","v":0},{"$f":"SUMIFS(raw_annual_energy!$E:$E,Lists!$S:$S,$C225,raw_annual_energy!$D:$D,AC$221,raw_annual_energy!$A:$A,mainzone)/1000+SUMIFS(raw_annual_energy!$E:$E,Lists!$S:$S,$C225,raw_annual_energy!$D:$D,AC$221,raw_annual_energy!$A:$A,\"CAISO_NW_Hydro\")/1000","v":0},{"$f":"SUMIFS(raw_annual_energy!$E:$E,Lists!$S:$S,$C225,raw_annual_energy!$D:$D,AD$221,raw_annual_energy!$A:$A,mainzone)/1000+SUMIFS(raw_annual_energy!$E:$E,Lists!$S:$S,$C225,raw_annual_energy!$D:$D,AD$221,raw_annual_energy!$A:$A,\"CAISO_NW_Hydro\")/1000","v":0},{"$f":"SUMIFS(raw_annual_energy!$E:$E,Lists!$S:$S,$C225,raw_annual_energy!$D:$D,AE$221,raw_annual_energy!$A:$A,mainzone)/1000+SUMIFS(raw_annual_energy!$E:$E,Lists!$S:$S,$C225,raw_annual_energy!$D:$D,AE$221,raw_annual_energy!$A:$A,\"CAISO_NW_Hydro\")/1000","v":0},{"$f":"SUMIFS(raw_annual_energy!$E:$E,Lists!$S:$S,$C225,raw_annual_energy!$D:$D,AF$221,raw_annual_energy!$A:$A,mainzone)/1000+SUMIFS(raw_annual_energy!$E:$E,Lists!$S:$S,$C225,raw_annual_energy!$D:$D,AF$221,raw_annual_energy!$A:$A,\"CAISO_NW_Hydro\")/1000","v":0},{"$f":"SUMIFS(raw_annual_energy!$E:$E,Lists!$S:$S,$C225,raw_annual_energy!$D:$D,AG$221,raw_annual_energy!$A:$A,mainzone)/1000+SUMIFS(raw_annual_energy!$E:$E,Lists!$S:$S,$C225,raw_annual_energy!$D:$D,AG$221,raw_annual_energy!$A:$A,\"CAISO_NW_Hydro\")/1000","v":0},{"$f":"SUMIFS(raw_annual_energy!$E:$E,Lists!$S:$S,$C225,raw_annual_energy!$D:$D,AH$221,raw_annual_energy!$A:$A,mainzone)/1000+SUMIFS(raw_annual_energy!$E:$E,Lists!$S:$S,$C225,raw_annual_energy!$D:$D,AH$221,raw_annual_energy!$A:$A,\"CAISO_NW_Hydro\")/1000","v":0},{"$f":"SUMIFS(raw_annual_energy!$E:$E,Lists!$S:$S,$C225,raw_annual_energy!$D:$D,AI$221,raw_annual_energy!$A:$A,mainzone)/1000+SUMIFS(raw_annual_energy!$E:$E,Lists!$S:$S,$C225,raw_annual_energy!$D:$D,AI$221,raw_annual_energy!$A:$A,\"CAISO_NW_Hydro\")/1000","v":0},{"$f":"SUMIFS(raw_annual_energy!$E:$E,Lists!$S:$S,$C225,raw_annual_energy!$D:$D,AJ$221,raw_annual_energy!$A:$A,mainzone)/1000+SUMIFS(raw_annual_energy!$E:$E,Lists!$S:$S,$C225,raw_annual_energy!$D:$D,AJ$221,raw_annual_energy!$A:$A,\"CAISO_NW_Hydro\")/1000","v":0},{"$f":"SUMIFS(raw_annual_energy!$E:$E,Lists!$S:$S,$C225,raw_annual_energy!$D:$D,AK$221,raw_annual_energy!$A:$A,mainzone)/1000+SUMIFS(raw_annual_energy!$E:$E,Lists!$S:$S,$C225,raw_annual_energy!$D:$D,AK$221,raw_annual_energy!$A:$A,\"CAISO_NW_Hydro\")/1000","v":0},{"$f":"SUMIFS(raw_annual_energy!$E:$E,Lists!$S:$S,$C225,raw_annual_energy!$D:$D,AL$221,raw_annual_energy!$A:$A,mainzone)/1000+SUMIFS(raw_annual_energy!$E:$E,Lists!$S:$S,$C225,raw_annual_energy!$D:$D,AL$221,raw_annual_energy!$A:$A,\"CAISO_NW_Hydro\")/1000","v":0},{"$f":"SUMIFS(raw_annual_energy!$E:$E,Lists!$S:$S,$C225,raw_annual_energy!$D:$D,AM$221,raw_annual_energy!$A:$A,mainzone)/1000+SUMIFS(raw_annual_energy!$E:$E,Lists!$S:$S,$C225,raw_annual_energy!$D:$D,AM$221,raw_annual_energy!$A:$A,\"CAISO_NW_Hydro\")/1000","v":0},{"$f":"SUMIFS(raw_annual_energy!$E:$E,Lists!$S:$S,$C225,raw_annual_energy!$D:$D,AN$221,raw_annual_energy!$A:$A,mainzone)/1000+SUMIFS(raw_annual_energy!$E:$E,Lists!$S:$S,$C225,raw_annual_energy!$D:$D,AN$221,raw_annual_energy!$A:$A,\"CAISO_NW_Hydro\")/1000","v":0}]
[null,null,"CAISO_Advanced_CCGT","GWh",{"$f":"SUMIFS(raw_annual_energy!$E:$E,Lists!$S:$S,$C226,raw_annual_energy!$D:$D,E$221,raw_annual_energy!$A:$A,mainzone)/1000+SUMIFS(raw_annual_energy!$E:$E,Lists!$S:$S,$C226,raw_annual_energy!$D:$D,E$221,raw_annual_energy!$A:$A,\"CAISO_NW_Hydro\")/1000","v":0},{"$f":"SUMIFS(raw_annual_energy!$E:$E,Lists!$S:$S,$C226,raw_annual_energy!$D:$D,F$221,raw_annual_energy!$A:$A,mainzone)/1000+SUMIFS(raw_annual_energy!$E:$E,Lists!$S:$S,$C226,raw_annual_energy!$D:$D,F$221,raw_annual_energy!$A:$A,\"CAISO_NW_Hydro\")/1000","v":0},{"$f":"SUMIFS(raw_annual_energy!$E:$E,Lists!$S:$S,$C226,raw_annual_energy!$D:$D,G$221,raw_annual_energy!$A:$A,mainzone)/1000+SUMIFS(raw_annual_energy!$E:$E,Lists!$S:$S,$C226,raw_annual_energy!$D:$D,G$221,raw_annual_energy!$A:$A,\"CAISO_NW_Hydro\")/1000","v":0},{"$f":"SUMIFS(raw_annual_energy!$E:$E,Lists!$S:$S,$C226,raw_annual_energy!$D:$D,H$221,raw_annual_energy!$A:$A,mainzone)/1000+SUMIFS(raw_annual_energy!$E:$E,Lists!$S:$S,$C226,raw_annual_energy!$D:$D,H$221,raw_annual_energy!$A:$A,\"CAISO_NW_Hydro\")/1000","v":0},{"$f":"SUMIFS(raw_annual_energy!$E:$E,Lists!$S:$S,$C226,raw_annual_energy!$D:$D,I$221,raw_annual_energy!$A:$A,mainzone)/1000+SUMIFS(raw_annual_energy!$E:$E,Lists!$S:$S,$C226,raw_annual_energy!$D:$D,I$221,raw_annual_energy!$A:$A,\"CAISO_NW_Hydro\")/1000","v":0},{"$f":"SUMIFS(raw_annual_energy!$E:$E,Lists!$S:$S,$C226,raw_annual_energy!$D:$D,J$221,raw_annual_energy!$A:$A,mainzone)/1000+SUMIFS(raw_annual_energy!$E:$E,Lists!$S:$S,$C226,raw_annual_energy!$D:$D,J$221,raw_annual_energy!$A:$A,\"CAISO_NW_Hydro\")/1000","v":0},{"$f":"SUMIFS(raw_annual_energy!$E:$E,Lists!$S:$S,$C226,raw_annual_energy!$D:$D,K$221,raw_annual_energy!$A:$A,mainzone)/1000+SUMIFS(raw_annual_energy!$E:$E,Lists!$S:$S,$C226,raw_annual_energy!$D:$D,K$221,raw_annual_energy!$A:$A,\"CAISO_NW_Hydro\")/1000","v":0},{"$f":"SUMIFS(raw_annual_energy!$E:$E,Lists!$S:$S,$C226,raw_annual_energy!$D:$D,L$221,raw_annual_energy!$A:$A,mainzone)/1000+SUMIFS(raw_annual_energy!$E:$E,Lists!$S:$S,$C226,raw_annual_energy!$D:$D,L$221,raw_annual_energy!$A:$A,\"CAISO_NW_Hydro\")/1000","v":0},{"$f":"SUMIFS(raw_annual_energy!$E:$E,Lists!$S:$S,$C226,raw_annual_energy!$D:$D,M$221,raw_annual_energy!$A:$A,mainzone)/1000+SUMIFS(raw_annual_energy!$E:$E,Lists!$S:$S,$C226,raw_annual_energy!$D:$D,M$221,raw_annual_energy!$A:$A,\"CAISO_NW_Hydro\")/1000","v":0},{"$f":"SUMIFS(raw_annual_energy!$E:$E,Lists!$S:$S,$C226,raw_annual_energy!$D:$D,N$221,raw_annual_energy!$A:$A,mainzone)/1000+SUMIFS(raw_annual_energy!$E:$E,Lists!$S:$S,$C226,raw_annual_energy!$D:$D,N$221,raw_annual_energy!$A:$A,\"CAISO_NW_Hydro\")/1000","v":0},{"$f":"SUMIFS(raw_annual_energy!$E:$E,Lists!$S:$S,$C226,raw_annual_energy!$D:$D,O$221,raw_annual_energy!$A:$A,mainzone)/1000+SUMIFS(raw_annual_energy!$E:$E,Lists!$S:$S,$C226,raw_annual_energy!$D:$D,O$221,raw_annual_energy!$A:$A,\"CAISO_NW_Hydro\")/1000","v":0},{"$f":"SUMIFS(raw_annual_energy!$E:$E,Lists!$S:$S,$C226,raw_annual_energy!$D:$D,P$221,raw_annual_energy!$A:$A,mainzone)/1000+SUMIFS(raw_annual_energy!$E:$E,Lists!$S:$S,$C226,raw_annual_energy!$D:$D,P$221,raw_annual_energy!$A:$A,\"CAISO_NW_Hydro\")/1000","v":0},{"$f":"SUMIFS(raw_annual_energy!$E:$E,Lists!$S:$S,$C226,raw_annual_energy!$D:$D,Q$221,raw_annual_energy!$A:$A,mainzone)/1000+SUMIFS(raw_annual_energy!$E:$E,Lists!$S:$S,$C226,raw_annual_energy!$D:$D,Q$221,raw_annual_energy!$A:$A,\"CAISO_NW_Hydro\")/1000","v":0},{"$f":"SUMIFS(raw_annual_energy!$E:$E,Lists!$S:$S,$C226,raw_annual_energy!$D:$D,R$221,raw_annual_energy!$A:$A,mainzone)/1000+SUMIFS(raw_annual_energy!$E:$E,Lists!$S:$S,$C226,raw_annual_energy!$D:$D,R$221,raw_annual_energy!$A:$A,\"CAISO_NW_Hydro\")/1000","v":0},{"$f":"SUMIFS(raw_annual_energy!$E:$E,Lists!$S:$S,$C226,raw_annual_energy!$D:$D,S$221,raw_annual_energy!$A:$A,mainzone)/1000+SUMIFS(raw_annual_energy!$E:$E,Lists!$S:$S,$C226,raw_annual_energy!$D:$D,S$221,raw_annual_energy!$A:$A,\"CAISO_NW_Hydro\")/1000","v":0},{"$f":"SUMIFS(raw_annual_energy!$E:$E,Lists!$S:$S,$C226,raw_annual_energy!$D:$D,T$221,raw_annual_energy!$A:$A,mainzone)/1000+SUMIFS(raw_annual_energy!$E:$E,Lists!$S:$S,$C226,raw_annual_energy!$D:$D,T$221,raw_annual_energy!$A:$A,\"CAISO_NW_Hydro\")/1000","v":0},{"$f":"SUMIFS(raw_annual_energy!$E:$E,Lists!$S:$S,$C226,raw_annual_energy!$D:$D,U$221,raw_annual_energy!$A:$A,mainzone)/1000+SUMIFS(raw_annual_energy!$E:$E,Lists!$S:$S,$C226,raw_annual_energy!$D:$D,U$221,raw_annual_energy!$A:$A,\"CAISO_NW_Hydro\")/1000","v":0},{"$f":"SUMIFS(raw_annual_energy!$E:$E,Lists!$S:$S,$C226,raw_annual_energy!$D:$D,V$221,raw_annual_energy!$A:$A,mainzone)/1000+SUMIFS(raw_annual_energy!$E:$E,Lists!$S:$S,$C226,raw_annual_energy!$D:$D,V$221,raw_annual_energy!$A:$A,\"CAISO_NW_Hydro\")/1000","v":0},{"$f":"SUMIFS(raw_annual_energy!$E:$E,Lists!$S:$S,$C226,raw_annual_energy!$D:$D,W$221,raw_annual_energy!$A:$A,mainzone)/1000+SUMIFS(raw_annual_energy!$E:$E,Lists!$S:$S,$C226,raw_annual_energy!$D:$D,W$221,raw_annual_energy!$A:$A,\"CAISO_NW_Hydro\")/1000","v":0},{"$f":"SUMIFS(raw_annual_energy!$E:$E,Lists!$S:$S,$C226,raw_annual_energy!$D:$D,X$221,raw_annual_energy!$A:$A,mainzone)/1000+SUMIFS(raw_annual_energy!$E:$E,Lists!$S:$S,$C226,raw_annual_energy!$D:$D,X$221,raw_annual_energy!$A:$A,\"CAISO_NW_Hydro\")/1000","v":0},{"$f":"SUMIFS(raw_annual_energy!$E:$E,Lists!$S:$S,$C226,raw_annual_energy!$D:$D,Y$221,raw_annual_energy!$A:$A,mainzone)/1000+SUMIFS(raw_annual_energy!$E:$E,Lists!$S:$S,$C226,raw_annual_energy!$D:$D,Y$221,raw_annual_energy!$A:$A,\"CAISO_NW_Hydro\")/1000","v":0},{"$f":"SUMIFS(raw_annual_energy!$E:$E,Lists!$S:$S,$C226,raw_annual_energy!$D:$D,Z$221,raw_annual_energy!$A:$A,mainzone)/1000+SUMIFS(raw_annual_energy!$E:$E,Lists!$S:$S,$C226,raw_annual_energy!$D:$D,Z$221,raw_annual_energy!$A:$A,\"CAISO_NW_Hydro\")/1000","v":0},{"$f":"SUMIFS(raw_annual_energy!$E:$E,Lists!$S:$S,$C226,raw_annual_energy!$D:$D,AA$221,raw_annual_energy!$A:$A,mainzone)/1000+SUMIFS(raw_annual_energy!$E:$E,Lists!$S:$S,$C226,raw_annual_energy!$D:$D,AA$221,raw_annual_energy!$A:$A,\"CAISO_NW_Hydro\")/1000","v":0},{"$f":"SUMIFS(raw_annual_energy!$E:$E,Lists!$S:$S,$C226,raw_annual_energy!$D:$D,AB$221,raw_annual_energy!$A:$A,mainzone)/1000+SUMIFS(raw_annual_energy!$E:$E,Lists!$S:$S,$C226,raw_annual_energy!$D:$D,AB$221,raw_annual_energy!$A:$A,\"CAISO_NW_Hydro\")/1000","v":0},{"$f":"SUMIFS(raw_annual_energy!$E:$E,Lists!$S:$S,$C226,raw_annual_energy!$D:$D,AC$221,raw_annual_energy!$A:$A,mainzone)/1000+SUMIFS(raw_annual_energy!$E:$E,Lists!$S:$S,$C226,raw_annual_energy!$D:$D,AC$221,raw_annual_energy!$A:$A,\"CAISO_NW_Hydro\")/1000","v":0},{"$f":"SUMIFS(raw_annual_energy!$E:$E,Lists!$S:$S,$C226,raw_annual_energy!$D:$D,AD$221,raw_annual_energy!$A:$A,mainzone)/1000+SUMIFS(raw_annual_energy!$E:$E,Lists!$S:$S,$C226,raw_annual_energy!$D:$D,AD$221,raw_annual_energy!$A:$A,\"CAISO_NW_Hydro\")/1000","v":0},{"$f":"SUMIFS(raw_annual_energy!$E:$E,Lists!$S:$S,$C226,raw_annual_energy!$D:$D,AE$221,raw_annual_energy!$A:$A,mainzone)/1000+SUMIFS(raw_annual_energy!$E:$E,Lists!$S:$S,$C226,raw_annual_energy!$D:$D,AE$221,raw_annual_energy!$A:$A,\"CAISO_NW_Hydro\")/1000","v":0},{"$f":"SUMIFS(raw_annual_energy!$E:$E,Lists!$S:$S,$C226,raw_annual_energy!$D:$D,AF$221,raw_annual_energy!$A:$A,mainzone)/1000+SUMIFS(raw_annual_energy!$E:$E,Lists!$S:$S,$C226,raw_annual_energy!$D:$D,AF$221,raw_annual_energy!$A:$A,\"CAISO_NW_Hydro\")/1000","v":0},{"$f":"SUMIFS(raw_annual_energy!$E:$E,Lists!$S:$S,$C226,raw_annual_energy!$D:$D,AG$221,raw_annual_energy!$A:$A,mainzone)/1000+SUMIFS(raw_annual_energy!$E:$E,Lists!$S:$S,$C226,raw_annual_energy!$D:$D,AG$221,raw_annual_energy!$A:$A,\"CAISO_NW_Hydro\")/1000","v":0},{"$f":"SUMIFS(raw_annual_energy!$E:$E,Lists!$S:$S,$C226,raw_annual_energy!$D:$D,AH$221,raw_annual_energy!$A:$A,mainzone)/1000+SUMIFS(raw_annual_energy!$E:$E,Lists!$S:$S,$C226,raw_annual_energy!$D:$D,AH$221,raw_annual_energy!$A:$A,\"CAISO_NW_Hydro\")/1000","v":0},{"$f":"SUMIFS(raw_annual_energy!$E:$E,Lists!$S:$S,$C226,raw_annual_energy!$D:$D,AI$221,raw_annual_energy!$A:$A,mainzone)/1000+SUMIFS(raw_annual_energy!$E:$E,Lists!$S:$S,$C226,raw_annual_energy!$D:$D,AI$221,raw_annual_energy!$A:$A,\"CAISO_NW_Hydro\")/1000","v":0},{"$f":"SUMIFS(raw_annual_energy!$E:$E,Lists!$S:$S,$C226,raw_annual_energy!$D:$D,AJ$221,raw_annual_energy!$A:$A,mainzone)/1000+SUMIFS(raw_annual_energy!$E:$E,Lists!$S:$S,$C226,raw_annual_energy!$D:$D,AJ$221,raw_annual_energy!$A:$A,\"CAISO_NW_Hydro\")/1000","v":0},{"$f":"SUMIFS(raw_annual_energy!$E:$E,Lists!$S:$S,$C226,raw_annual_energy!$D:$D,AK$221,raw_annual_energy!$A:$A,mainzone)/1000+SUMIFS(raw_annual_energy!$E:$E,Lists!$S:$S,$C226,raw_annual_energy!$D:$D,AK$221,raw_annual_energy!$A:$A,\"CAISO_NW_Hydro\")/1000","v":0},{"$f":"SUMIFS(raw_annual_energy!$E:$E,Lists!$S:$S,$C226,raw_annual_energy!$D:$D,AL$221,raw_annual_energy!$A:$A,mainzone)/1000+SUMIFS(raw_annual_energy!$E:$E,Lists!$S:$S,$C226,raw_annual_energy!$D:$D,AL$221,raw_annual_energy!$A:$A,\"CAISO_NW_Hydro\")/1000","v":0},{"$f":"SUMIFS(raw_annual_energy!$E:$E,Lists!$S:$S,$C226,raw_annual_energy!$D:$D,AM$221,raw_annual_energy!$A:$A,mainzone)/1000+SUMIFS(raw_annual_energy!$E:$E,Lists!$S:$S,$C226,raw_annual_energy!$D:$D,AM$221,raw_annual_energy!$A:$A,\"CAISO_NW_Hydro\")/1000","v":0},{"$f":"SUMIFS(raw_annual_energy!$E:$E,Lists!$S:$S,$C226,raw_annual_energy!$D:$D,AN$221,raw_annual_energy!$A:$A,mainzone)/1000+SUMIFS(raw_annual_energy!$E:$E,Lists!$S:$S,$C226,raw_annual_energy!$D:$D,AN$221,raw_annual_energy!$A:$A,\"CAISO_NW_Hydro\")/1000","v":0}]
[null,null,"CAISO_Aero_CT","GWh",{"$f":"SUMIFS(raw_annual_energy!$E:$E,Lists!$S:$S,$C227,raw_annual_energy!$D:$D,E$221,raw_annual_energy!$A:$A,mainzone)/1000+SUMIFS(raw_annual_energy!$E:$E,Lists!$S:$S,$C227,raw_annual_energy!$D:$D,E$221,raw_annual_energy!$A:$A,\"CAISO_NW_Hydro\")/1000","v":0},{"$f":"SUMIFS(raw_annual_energy!$E:$E,Lists!$S:$S,$C227,raw_annual_energy!$D:$D,F$221,raw_annual_energy!$A:$A,mainzone)/1000+SUMIFS(raw_annual_energy!$E:$E,Lists!$S:$S,$C227,raw_annual_energy!$D:$D,F$221,raw_annual_energy!$A:$A,\"CAISO_NW_Hydro\")/1000","v":0},{"$f":"SUMIFS(raw_annual_energy!$E:$E,Lists!$S:$S,$C227,raw_annual_energy!$D:$D,G$221,raw_annual_energy!$A:$A,mainzone)/1000+SUMIFS(raw_annual_energy!$E:$E,Lists!$S:$S,$C227,raw_annual_energy!$D:$D,G$221,raw_annual_energy!$A:$A,\"CAISO_NW_Hydro\")/1000","v":0},{"$f":"SUMIFS(raw_annual_energy!$E:$E,Lists!$S:$S,$C227,raw_annual_energy!$D:$D,H$221,raw_annual_energy!$A:$A,mainzone)/1000+SUMIFS(raw_annual_energy!$E:$E,Lists!$S:$S,$C227,raw_annual_energy!$D:$D,H$221,raw_annual_energy!$A:$A,\"CAISO_NW_Hydro\")/1000","v":0},{"$f":"SUMIFS(raw_annual_energy!$E:$E,Lists!$S:$S,$C227,raw_annual_energy!$D:$D,I$221,raw_annual_energy!$A:$A,mainzone)/1000+SUMIFS(raw_annual_energy!$E:$E,Lists!$S:$S,$C227,raw_annual_energy!$D:$D,I$221,raw_annual_energy!$A:$A,\"CAISO_NW_Hydro\")/1000","v":0},{"$f":"SUMIFS(raw_annual_energy!$E:$E,Lists!$S:$S,$C227,raw_annual_energy!$D:$D,J$221,raw_annual_energy!$A:$A,mainzone)/1000+SUMIFS(raw_annual_energy!$E:$E,Lists!$S:$S,$C227,raw_annual_energy!$D:$D,J$221,raw_annual_energy!$A:$A,\"CAISO_NW_Hydro\")/1000","v":0},{"$f":"SUMIFS(raw_annual_energy!$E:$E,Lists!$S:$S,$C227,raw_annual_energy!$D:$D,K$221,raw_annual_energy!$A:$A,mainzone)/1000+SUMIFS(raw_annual_energy!$E:$E,Lists!$S:$S,$C227,raw_annual_energy!$D:$D,K$221,raw_annual_energy!$A:$A,\"CAISO_NW_Hydro\")/1000","v":0},{"$f":"SUMIFS(raw_annual_energy!$E:$E,Lists!$S:$S,$C227,raw_annual_energy!$D:$D,L$221,raw_annual_energy!$A:$A,mainzone)/1000+SUMIFS(raw_annual_energy!$E:$E,Lists!$S:$S,$C227,raw_annual_energy!$D:$D,L$221,raw_annual_energy!$A:$A,\"CAISO_NW_Hydro\")/1000","v":0},{"$f":"SUMIFS(raw_annual_energy!$E:$E,Lists!$S:$S,$C227,raw_annual_energy!$D:$D,M$221,raw_annual_energy!$A:$A,mainzone)/1000+SUMIFS(raw_annual_energy!$E:$E,Lists!$S:$S,$C227,raw_annual_energy!$D:$D,M$221,raw_annual_energy!$A:$A,\"CAISO_NW_Hydro\")/1000","v":0},{"$f":"SUMIFS(raw_annual_energy!$E:$E,Lists!$S:$S,$C227,raw_annual_energy!$D:$D,N$221,raw_annual_energy!$A:$A,mainzone)/1000+SUMIFS(raw_annual_energy!$E:$E,Lists!$S:$S,$C227,raw_annual_energy!$D:$D,N$221,raw_annual_energy!$A:$A,\"CAISO_NW_Hydro\")/1000","v":0},{"$f":"SUMIFS(raw_annual_energy!$E:$E,Lists!$S:$S,$C227,raw_annual_energy!$D:$D,O$221,raw_annual_energy!$A:$A,mainzone)/1000+SUMIFS(raw_annual_energy!$E:$E,Lists!$S:$S,$C227,raw_annual_energy!$D:$D,O$221,raw_annual_energy!$A:$A,\"CAISO_NW_Hydro\")/1000","v":0},{"$f":"SUMIFS(raw_annual_energy!$E:$E,Lists!$S:$S,$C227,raw_annual_energy!$D:$D,P$221,raw_annual_energy!$A:$A,mainzone)/1000+SUMIFS(raw_annual_energy!$E:$E,Lists!$S:$S,$C227,raw_annual_energy!$D:$D,P$221,raw_annual_energy!$A:$A,\"CAISO_NW_Hydro\")/1000","v":0},{"$f":"SUMIFS(raw_annual_energy!$E:$E,Lists!$S:$S,$C227,raw_annual_energy!$D:$D,Q$221,raw_annual_energy!$A:$A,mainzone)/1000+SUMIFS(raw_annual_energy!$E:$E,Lists!$S:$S,$C227,raw_annual_energy!$D:$D,Q$221,raw_annual_energy!$A:$A,\"CAISO_NW_Hydro\")/1000","v":0},{"$f":"SUMIFS(raw_annual_energy!$E:$E,Lists!$S:$S,$C227,raw_annual_energy!$D:$D,R$221,raw_annual_energy!$A:$A,mainzone)/1000+SUMIFS(raw_annual_energy!$E:$E,Lists!$S:$S,$C227,raw_annual_energy!$D:$D,R$221,raw_annual_energy!$A:$A,\"CAISO_NW_Hydro\")/1000","v":0},{"$f":"SUMIFS(raw_annual_energy!$E:$E,Lists!$S:$S,$C227,raw_annual_energy!$D:$D,S$221,raw_annual_energy!$A:$A,mainzone)/1000+SUMIFS(raw_annual_energy!$E:$E,Lists!$S:$S,$C227,raw_annual_energy!$D:$D,S$221,raw_annual_energy!$A:$A,\"CAISO_NW_Hydro\")/1000","v":0},{"$f":"SUMIFS(raw_annual_energy!$E:$E,Lists!$S:$S,$C227,raw_annual_energy!$D:$D,T$221,raw_annual_energy!$A:$A,mainzone)/1000+SUMIFS(raw_annual_energy!$E:$E,Lists!$S:$S,$C227,raw_annual_energy!$D:$D,T$221,raw_annual_energy!$A:$A,\"CAISO_NW_Hydro\")/1000","v":0},{"$f":"SUMIFS(raw_annual_energy!$E:$E,Lists!$S:$S,$C227,raw_annual_energy!$D:$D,U$221,raw_annual_energy!$A:$A,mainzone)/1000+SUMIFS(raw_annual_energy!$E:$E,Lists!$S:$S,$C227,raw_annual_energy!$D:$D,U$221,raw_annual_energy!$A:$A,\"CAISO_NW_Hydro\")/1000","v":0},{"$f":"SUMIFS(raw_annual_energy!$E:$E,Lists!$S:$S,$C227,raw_annual_energy!$D:$D,V$221,raw_annual_energy!$A:$A,mainzone)/1000+SUMIFS(raw_annual_energy!$E:$E,Lists!$S:$S,$C227,raw_annual_energy!$D:$D,V$221,raw_annual_energy!$A:$A,\"CAISO_NW_Hydro\")/1000","v":0},{"$f":"SUMIFS(raw_annual_energy!$E:$E,Lists!$S:$S,$C227,raw_annual_energy!$D:$D,W$221,raw_annual_energy!$A:$A,mainzone)/1000+SUMIFS(raw_annual_energy!$E:$E,Lists!$S:$S,$C227,raw_annual_energy!$D:$D,W$221,raw_annual_energy!$A:$A,\"CAISO_NW_Hydro\")/1000","v":0},{"$f":"SUMIFS(raw_annual_energy!$E:$E,Lists!$S:$S,$C227,raw_annual_energy!$D:$D,X$221,raw_annual_energy!$A:$A,mainzone)/1000+SUMIFS(raw_annual_energy!$E:$E,Lists!$S:$S,$C227,raw_annual_energy!$D:$D,X$221,raw_annual_energy!$A:$A,\"CAISO_NW_Hydro\")/1000","v":0},{"$f":"SUMIFS(raw_annual_energy!$E:$E,Lists!$S:$S,$C227,raw_annual_energy!$D:$D,Y$221,raw_annual_energy!$A:$A,mainzone)/1000+SUMIFS(raw_annual_energy!$E:$E,Lists!$S:$S,$C227,raw_annual_energy!$D:$D,Y$221,raw_annual_energy!$A:$A,\"CAISO_NW_Hydro\")/1000","v":0},{"$f":"SUMIFS(raw_annual_energy!$E:$E,Lists!$S:$S,$C227,raw_annual_energy!$D:$D,Z$221,raw_annual_energy!$A:$A,mainzone)/1000+SUMIFS(raw_annual_energy!$E:$E,Lists!$S:$S,$C227,raw_annual_energy!$D:$D,Z$221,raw_annual_energy!$A:$A,\"CAISO_NW_Hydro\")/1000","v":0},{"$f":"SUMIFS(raw_annual_energy!$E:$E,Lists!$S:$S,$C227,raw_annual_energy!$D:$D,AA$221,raw_annual_energy!$A:$A,mainzone)/1000+SUMIFS(raw_annual_energy!$E:$E,Lists!$S:$S,$C227,raw_annual_energy!$D:$D,AA$221,raw_annual_energy!$A:$A,\"CAISO_NW_Hydro\")/1000","v":0},{"$f":"SUMIFS(raw_annual_energy!$E:$E,Lists!$S:$S,$C227,raw_annual_energy!$D:$D,AB$221,raw_annual_energy!$A:$A,mainzone)/1000+SUMIFS(raw_annual_energy!$E:$E,Lists!$S:$S,$C227,raw_annual_energy!$D:$D,AB$221,raw_annual_energy!$A:$A,\"CAISO_NW_Hydro\")/1000","v":0},{"$f":"SUMIFS(raw_annual_energy!$E:$E,Lists!$S:$S,$C227,raw_annual_energy!$D:$D,AC$221,raw_annual_energy!$A:$A,mainzone)/1000+SUMIFS(raw_annual_energy!$E:$E,Lists!$S:$S,$C227,raw_annual_energy!$D:$D,AC$221,raw_annual_energy!$A:$A,\"CAISO_NW_Hydro\")/1000","v":0},{"$f":"SUMIFS(raw_annual_energy!$E:$E,Lists!$S:$S,$C227,raw_annual_energy!$D:$D,AD$221,raw_annual_energy!$A:$A,mainzone)/1000+SUMIFS(raw_annual_energy!$E:$E,Lists!$S:$S,$C227,raw_annual_energy!$D:$D,AD$221,raw_annual_energy!$A:$A,\"CAISO_NW_Hydro\")/1000","v":0},{"$f":"SUMIFS(raw_annual_energy!$E:$E,Lists!$S:$S,$C227,raw_annual_energy!$D:$D,AE$221,raw_annual_energy!$A:$A,mainzone)/1000+SUMIFS(raw_annual_energy!$E:$E,Lists!$S:$S,$C227,raw_annual_energy!$D:$D,AE$221,raw_annual_energy!$A:$A,\"CAISO_NW_Hydro\")/1000","v":0},{"$f":"SUMIFS(raw_annual_energy!$E:$E,Lists!$S:$S,$C227,raw_annual_energy!$D:$D,AF$221,raw_annual_energy!$A:$A,mainzone)/1000+SUMIFS(raw_annual_energy!$E:$E,Lists!$S:$S,$C227,raw_annual_energy!$D:$D,AF$221,raw_annual_energy!$A:$A,\"CAISO_NW_Hydro\")/1000","v":0},{"$f":"SUMIFS(raw_annual_energy!$E:$E,Lists!$S:$S,$C227,raw_annual_energy!$D:$D,AG$221,raw_annual_energy!$A:$A,mainzone)/1000+SUMIFS(raw_annual_energy!$E:$E,Lists!$S:$S,$C227,raw_annual_energy!$D:$D,AG$221,raw_annual_energy!$A:$A,\"CAISO_NW_Hydro\")/1000","v":0},{"$f":"SUMIFS(raw_annual_energy!$E:$E,Lists!$S:$S,$C227,raw_annual_energy!$D:$D,AH$221,raw_annual_energy!$A:$A,mainzone)/1000+SUMIFS(raw_annual_energy!$E:$E,Lists!$S:$S,$C227,raw_annual_energy!$D:$D,AH$221,raw_annual_energy!$A:$A,\"CAISO_NW_Hydro\")/1000","v":0},{"$f":"SUMIFS(raw_annual_energy!$E:$E,Lists!$S:$S,$C227,raw_annual_energy!$D:$D,AI$221,raw_annual_energy!$A:$A,mainzone)/1000+SUMIFS(raw_annual_energy!$E:$E,Lists!$S:$S,$C227,raw_annual_energy!$D:$D,AI$221,raw_annual_energy!$A:$A,\"CAISO_NW_Hydro\")/1000","v":0},{"$f":"SUMIFS(raw_annual_energy!$E:$E,Lists!$S:$S,$C227,raw_annual_energy!$D:$D,AJ$221,raw_annual_energy!$A:$A,mainzone)/1000+SUMIFS(raw_annual_energy!$E:$E,Lists!$S:$S,$C227,raw_annual_energy!$D:$D,AJ$221,raw_annual_energy!$A:$A,\"CAISO_NW_Hydro\")/1000","v":0},{"$f":"SUMIFS(raw_annual_energy!$E:$E,Lists!$S:$S,$C227,raw_annual_energy!$D:$D,AK$221,raw_annual_energy!$A:$A,mainzone)/1000+SUMIFS(raw_annual_energy!$E:$E,Lists!$S:$S,$C227,raw_annual_energy!$D:$D,AK$221,raw_annual_energy!$A:$A,\"CAISO_NW_Hydro\")/1000","v":0},{"$f":"SUMIFS(raw_annual_energy!$E:$E,Lists!$S:$S,$C227,raw_annual_energy!$D:$D,AL$221,raw_annual_energy!$A:$A,mainzone)/1000+SUMIFS(raw_annual_energy!$E:$E,Lists!$S:$S,$C227,raw_annual_energy!$D:$D,AL$221,raw_annual_energy!$A:$A,\"CAISO_NW_Hydro\")/1000","v":0},{"$f":"SUMIFS(raw_annual_energy!$E:$E,Lists!$S:$S,$C227,raw_annual_energy!$D:$D,AM$221,raw_annual_energy!$A:$A,mainzone)/1000+SUMIFS(raw_annual_energy!$E:$E,Lists!$S:$S,$C227,raw_annual_energy!$D:$D,AM$221,raw_annual_energy!$A:$A,\"CAISO_NW_Hydro\")/1000","v":0},{"$f":"SUMIFS(raw_annual_energy!$E:$E,Lists!$S:$S,$C227,raw_annual_energy!$D:$D,AN$221,raw_annual_energy!$A:$A,mainzone)/1000+SUMIFS(raw_annual_energy!$E:$E,Lists!$S:$S,$C227,raw_annual_energy!$D:$D,AN$221,raw_annual_energy!$A:$A,\"CAISO_NW_Hydro\")/1000","v":0}]
[null,null,"CAISO_Reciprocating_Engine","GWh",{"$f":"SUMIFS(raw_annual_energy!$E:$E,Lists!$S:$S,$C228,raw_annual_energy!$D:$D,E$221,raw_annual_energy!$A:$A,mainzone)/1000+SUMIFS(raw_annual_energy!$E:$E,Lists!$S:$S,$C228,raw_annual_energy!$D:$D,E$221,raw_annual_energy!$A:$A,\"CAISO_NW_Hydro\")/1000","v":0},{"$f":"SUMIFS(raw_annual_energy!$E:$E,Lists!$S:$S,$C228,raw_annual_energy!$D:$D,F$221,raw_annual_energy!$A:$A,mainzone)/1000+SUMIFS(raw_annual_energy!$E:$E,Lists!$S:$S,$C228,raw_annual_energy!$D:$D,F$221,raw_annual_energy!$A:$A,\"CAISO_NW_Hydro\")/1000","v":0},{"$f":"SUMIFS(raw_annual_energy!$E:$E,Lists!$S:$S,$C228,raw_annual_energy!$D:$D,G$221,raw_annual_energy!$A:$A,mainzone)/1000+SUMIFS(raw_annual_energy!$E:$E,Lists!$S:$S,$C228,raw_annual_energy!$D:$D,G$221,raw_annual_energy!$A:$A,\"CAISO_NW_Hydro\")/1000","v":0},{"$f":"SUMIFS(raw_annual_energy!$E:$E,Lists!$S:$S,$C228,raw_annual_energy!$D:$D,H$221,raw_annual_energy!$A:$A,mainzone)/1000+SUMIFS(raw_annual_energy!$E:$E,Lists!$S:$S,$C228,raw_annual_energy!$D:$D,H$221,raw_annual_energy!$A:$A,\"CAISO_NW_Hydro\")/1000","v":0},{"$f":"SUMIFS(raw_annual_energy!$E:$E,Lists!$S:$S,$C228,raw_annual_energy!$D:$D,I$221,raw_annual_energy!$A:$A,mainzone)/1000+SUMIFS(raw_annual_energy!$E:$E,Lists!$S:$S,$C228,raw_annual_energy!$D:$D,I$221,raw_annual_energy!$A:$A,\"CAISO_NW_Hydro\")/1000","v":0},{"$f":"SUMIFS(raw_annual_energy!$E:$E,Lists!$S:$S,$C228,raw_annual_energy!$D:$D,J$221,raw_annual_energy!$A:$A,mainzone)/1000+SUMIFS(raw_annual_energy!$E:$E,Lists!$S:$S,$C228,raw_annual_energy!$D:$D,J$221,raw_annual_energy!$A:$A,\"CAISO_NW_Hydro\")/1000","v":35.299615739840597},{"$f":"SUMIFS(raw_annual_energy!$E:$E,Lists!$S:$S,$C228,raw_annual_energy!$D:$D,K$221,raw_annual_energy!$A:$A,mainzone)/1000+SUMIFS(raw_annual_energy!$E:$E,Lists!$S:$S,$C228,raw_annual_energy!$D:$D,K$221,raw_annual_energy!$A:$A,\"CAISO_NW_Hydro\")/1000","v":25.969964403224903},{"$f":"SUMIFS(raw_annual_energy!$E:$E,Lists!$S:$S,$C228,raw_annual_energy!$D:$D,L$221,raw_annual_energy!$A:$A,mainzone)/1000+SUMIFS(raw_annual_energy!$E:$E,Lists!$S:$S,$C228,raw_annual_energy!$D:$D,L$221,raw_annual_energy!$A:$A,\"CAISO_NW_Hydro\")/1000","v":25.361937146172899},{"$f":"SUMIFS(raw_annual_energy!$E:$E,Lists!$S:$S,$C228,raw_annual_energy!$D:$D,M$221,raw_annual_energy!$A:$A,mainzone)/1000+SUMIFS(raw_annual_energy!$E:$E,Lists!$S:$S,$C228,raw_annual_energy!$D:$D,M$221,raw_annual_energy!$A:$A,\"CAISO_NW_Hydro\")/1000","v":26.047754019919498},{"$f":"SUMIFS(raw_annual_energy!$E:$E,Lists!$S:$S,$C228,raw_annual_energy!$D:$D,N$221,raw_annual_energy!$A:$A,mainzone)/1000+SUMIFS(raw_annual_energy!$E:$E,Lists!$S:$S,$C228,raw_annual_energy!$D:$D,N$221,raw_annual_energy!$A:$A,\"CAISO_NW_Hydro\")/1000","v":23.276886962702999},{"$f":"SUMIFS(raw_annual_energy!$E:$E,Lists!$S:$S,$C228,raw_annual_energy!$D:$D,O$221,raw_annual_energy!$A:$A,mainzone)/1000+SUMIFS(raw_annual_energy!$E:$E,Lists!$S:$S,$C228,raw_annual_energy!$D:$D,O$221,raw_annual_energy!$A:$A,\"CAISO_NW_Hydro\")/1000","v":0},{"$f":"SUMIFS(raw_annual_energy!$E:$E,Lists!$S:$S,$C228,raw_annual_energy!$D:$D,P$221,raw_annual_energy!$A:$A,mainzone)/1000+SUMIFS(raw_annual_energy!$E:$E,Lists!$S:$S,$C228,raw_annual_energy!$D:$D,P$221,raw_annual_energy!$A:$A,\"CAISO_NW_Hydro\")/1000","v":7.1066636577568794},{"$f":"SUMIFS(raw_annual_energy!$E:$E,Lists!$S:$S,$C228,raw_annual_energy!$D:$D,Q$221,raw_annual_energy!$A:$A,mainzone)/1000+SUMIFS(raw_annual_energy!$E:$E,Lists!$S:$S,$C228,raw_annual_energy!$D:$D,Q$221,raw_annual_energy!$A:$A,\"CAISO_NW_Hydro\")/1000","v":0},{"$f":"SUMIFS(raw_annual_energy!$E:$E,Lists!$S:$S,$C228,raw_annual_energy!$D:$D,R$221,raw_annual_energy!$A:$A,mainzone)/1000+SUMIFS(raw_annual_energy!$E:$E,Lists!$S:$S,$C228,raw_annual_energy!$D:$D,R$221,raw_annual_energy!$A:$A,\"CAISO_NW_Hydro\")/1000","v":0},{"$f":"SUMIFS(raw_annual_energy!$E:$E,Lists!$S:$S,$C228,raw_annual_energy!$D:$D,S$221,raw_annual_energy!$A:$A,mainzone)/1000+SUMIFS(raw_annual_energy!$E:$E,Lists!$S:$S,$C228,raw_annual_energy!$D:$D,S$221,raw_annual_energy!$A:$A,\"CAISO_NW_Hydro\")/1000","v":0},{"$f":"SUMIFS(raw_annual_energy!$E:$E,Lists!$S:$S,$C228,raw_annual_energy!$D:$D,T$221,raw_annual_energy!$A:$A,mainzone)/1000+SUMIFS(raw_annual_energy!$E:$E,Lists!$S:$S,$C228,raw_annual_energy!$D:$D,T$221,raw_annual_energy!$A:$A,\"CAISO_NW_Hydro\")/1000","v":12.8521722857682},{"$f":"SUMIFS(raw_annual_energy!$E:$E,Lists!$S:$S,$C228,raw_annual_energy!$D:$D,U$221,raw_annual_energy!$A:$A,mainzone)/1000+SUMIFS(raw_annual_energy!$E:$E,Lists!$S:$S,$C228,raw_annual_energy!$D:$D,U$221,raw_annual_energy!$A:$A,\"CAISO_NW_Hydro\")/1000","v":0},{"$f":"SUMIFS(raw_annual_energy!$E:$E,Lists!$S:$S,$C228,raw_annual_energy!$D:$D,V$221,raw_annual_energy!$A:$A,mainzone)/1000+SUMIFS(raw_annual_energy!$E:$E,Lists!$S:$S,$C228,raw_annual_energy!$D:$D,V$221,raw_annual_energy!$A:$A,\"CAISO_NW_Hydro\")/1000","v":0},{"$f":"SUMIFS(raw_annual_energy!$E:$E,Lists!$S:$S,$C228,raw_annual_energy!$D:$D,W$221,raw_annual_energy!$A:$A,mainzone)/1000+SUMIFS(raw_annual_energy!$E:$E,Lists!$S:$S,$C228,raw_annual_energy!$D:$D,W$221,raw_annual_energy!$A:$A,\"CAISO_NW_Hydro\")/1000","v":0},{"$f":"SUMIFS(raw_annual_energy!$E:$E,Lists!$S:$S,$C228,raw_annual_energy!$D:$D,X$221,raw_annual_energy!$A:$A,mainzone)/1000+SUMIFS(raw_annual_energy!$E:$E,Lists!$S:$S,$C228,raw_annual_energy!$D:$D,X$221,raw_annual_energy!$A:$A,\"CAISO_NW_Hydro\")/1000","v":0},{"$f":"SUMIFS(raw_annual_energy!$E:$E,Lists!$S:$S,$C228,raw_annual_energy!$D:$D,Y$221,raw_annual_energy!$A:$A,mainzone)/1000+SUMIFS(raw_annual_energy!$E:$E,Lists!$S:$S,$C228,raw_annual_energy!$D:$D,Y$221,raw_annual_energy!$A:$A,\"CAISO_NW_Hydro\")/1000","v":0},{"$f":"SUMIFS(raw_annual_energy!$E:$E,Lists!$S:$S,$C228,raw_annual_energy!$D:$D,Z$221,raw_annual_energy!$A:$A,mainzone)/1000+SUMIFS(raw_annual_energy!$E:$E,Lists!$S:$S,$C228,raw_annual_energy!$D:$D,Z$221,raw_annual_energy!$A:$A,\"CAISO_NW_Hydro\")/1000","v":0},{"$f":"SUMIFS(raw_annual_energy!$E:$E,Lists!$S:$S,$C228,raw_annual_energy!$D:$D,AA$221,raw_annual_energy!$A:$A,mainzone)/1000+SUMIFS(raw_annual_energy!$E:$E,Lists!$S:$S,$C228,raw_annual_energy!$D:$D,AA$221,raw_annual_energy!$A:$A,\"CAISO_NW_Hydro\")/1000","v":0},{"$f":"SUMIFS(raw_annual_energy!$E:$E,Lists!$S:$S,$C228,raw_annual_energy!$D:$D,AB$221,raw_annual_energy!$A:$A,mainzone)/1000+SUMIFS(raw_annual_energy!$E:$E,Lists!$S:$S,$C228,raw_annual_energy!$D:$D,AB$221,raw_annual_energy!$A:$A,\"CAISO_NW_Hydro\")/1000","v":0},{"$f":"SUMIFS(raw_annual_energy!$E:$E,Lists!$S:$S,$C228,raw_annual_energy!$D:$D,AC$221,raw_annual_energy!$A:$A,mainzone)/1000+SUMIFS(raw_annual_energy!$E:$E,Lists!$S:$S,$C228,raw_annual_energy!$D:$D,AC$221,raw_annual_energy!$A:$A,\"CAISO_NW_Hydro\")/1000","v":0},{"$f":"SUMIFS(raw_annual_energy!$E:$E,Lists!$S:$S,$C228,raw_annual_energy!$D:$D,AD$221,raw_annual_energy!$A:$A,mainzone)/1000+SUMIFS(raw_annual_energy!$E:$E,Lists!$S:$S,$C228,raw_annual_energy!$D:$D,AD$221,raw_annual_energy!$A:$A,\"CAISO_NW_Hydro\")/1000","v":0},{"$f":"SUMIFS(raw_annual_energy!$E:$E,Lists!$S:$S,$C228,raw_annual_energy!$D:$D,AE$221,raw_annual_energy!$A:$A,mainzone)/1000+SUMIFS(raw_annual_energy!$E:$E,Lists!$S:$S,$C228,raw_annual_energy!$D:$D,AE$221,raw_annual_energy!$A:$A,\"CAISO_NW_Hydro\")/1000","v":0},{"$f":"SUMIFS(raw_annual_energy!$E:$E,Lists!$S:$S,$C228,raw_annual_energy!$D:$D,AF$221,raw_annual_energy!$A:$A,mainzone)/1000+SUMIFS(raw_annual_energy!$E:$E,Lists!$S:$S,$C228,raw_annual_energy!$D:$D,AF$221,raw_annual_energy!$A:$A,\"CAISO_NW_Hydro\")/1000","v":0},{"$f":"SUMIFS(raw_annual_energy!$E:$E,Lists!$S:$S,$C228,raw_annual_energy!$D:$D,AG$221,raw_annual_energy!$A:$A,mainzone)/1000+SUMIFS(raw_annual_energy!$E:$E,Lists!$S:$S,$C228,raw_annual_energy!$D:$D,AG$221,raw_annual_energy!$A:$A,\"CAISO_NW_Hydro\")/1000","v":0},{"$f":"SUMIFS(raw_annual_energy!$E:$E,Lists!$S:$S,$C228,raw_annual_energy!$D:$D,AH$221,raw_annual_energy!$A:$A,mainzone)/1000+SUMIFS(raw_annual_energy!$E:$E,Lists!$S:$S,$C228,raw_annual_energy!$D:$D,AH$221,raw_annual_energy!$A:$A,\"CAISO_NW_Hydro\")/1000","v":0},{"$f":"SUMIFS(raw_annual_energy!$E:$E,Lists!$S:$S,$C228,raw_annual_energy!$D:$D,AI$221,raw_annual_energy!$A:$A,mainzone)/1000+SUMIFS(raw_annual_energy!$E:$E,Lists!$S:$S,$C228,raw_annual_energy!$D:$D,AI$221,raw_annual_energy!$A:$A,\"CAISO_NW_Hydro\")/1000","v":43.799476981426999},{"$f":"SUMIFS(raw_annual_energy!$E:$E,Lists!$S:$S,$C228,raw_annual_energy!$D:$D,AJ$221,raw_annual_energy!$A:$A,mainzone)/1000+SUMIFS(raw_annual_energy!$E:$E,Lists!$S:$S,$C228,raw_annual_energy!$D:$D,AJ$221,raw_annual_energy!$A:$A,\"CAISO_NW_Hydro\")/1000","v":0},{"$f":"SUMIFS(raw_annual_energy!$E:$E,Lists!$S:$S,$C228,raw_annual_energy!$D:$D,AK$221,raw_annual_energy!$A:$A,mainzone)/1000+SUMIFS(raw_annual_energy!$E:$E,Lists!$S:$S,$C228,raw_annual_energy!$D:$D,AK$221,raw_annual_energy!$A:$A,\"CAISO_NW_Hydro\")/1000","v":0},{"$f":"SUMIFS(raw_annual_energy!$E:$E,Lists!$S:$S,$C228,raw_annual_energy!$D:$D,AL$221,raw_annual_energy!$A:$A,mainzone)/1000+SUMIFS(raw_annual_energy!$E:$E,Lists!$S:$S,$C228,raw_annual_energy!$D:$D,AL$221,raw_annual_energy!$A:$A,\"CAISO_NW_Hydro\")/1000","v":0},{"$f":"SUMIFS(raw_annual_energy!$E:$E,Lists!$S:$S,$C228,raw_annual_energy!$D:$D,AM$221,raw_annual_energy!$A:$A,mainzone)/1000+SUMIFS(raw_annual_energy!$E:$E,Lists!$S:$S,$C228,raw_annual_energy!$D:$D,AM$221,raw_annual_energy!$A:$A,\"CAISO_NW_Hydro\")/1000","v":0},{"$f":"SUMIFS(raw_annual_energy!$E:$E,Lists!$S:$S,$C228,raw_annual_energy!$D:$D,AN$221,raw_annual_energy!$A:$A,mainzone)/1000+SUMIFS(raw_annual_energy!$E:$E,Lists!$S:$S,$C228,raw_annual_energy!$D:$D,AN$221,raw_annual_energy!$A:$A,\"CAISO_NW_Hydro\")/1000","v":0}]
[null,null,"CAISO_ST","GWh",{"$f":"SUMIFS(raw_annual_energy!$E:$E,Lists!$S:$S,$C229,raw_annual_energy!$D:$D,E$221,raw_annual_energy!$A:$A,mainzone)/1000+SUMIFS(raw_annual_energy!$E:$E,Lists!$S:$S,$C229,raw_annual_energy!$D:$D,E$221,raw_annual_energy!$A:$A,\"CAISO_NW_Hydro\")/1000","v":0},{"$f":"SUMIFS(raw_annual_energy!$E:$E,Lists!$S:$S,$C229,raw_annual_energy!$D:$D,F$221,raw_annual_energy!$A:$A,mainzone)/1000+SUMIFS(raw_annual_energy!$E:$E,Lists!$S:$S,$C229,raw_annual_energy!$D:$D,F$221,raw_annual_energy!$A:$A,\"CAISO_NW_Hydro\")/1000","v":0},{"$f":"SUMIFS(raw_annual_energy!$E:$E,Lists!$S:$S,$C229,raw_annual_energy!$D:$D,G$221,raw_annual_energy!$A:$A,mainzone)/1000+SUMIFS(raw_annual_energy!$E:$E,Lists!$S:$S,$C229,raw_annual_energy!$D:$D,G$221,raw_annual_energy!$A:$A,\"CAISO_NW_Hydro\")/1000","v":0},{"$f":"SUMIFS(raw_annual_energy!$E:$E,Lists!$S:$S,$C229,raw_annual_energy!$D:$D,H$221,raw_annual_energy!$A:$A,mainzone)/1000+SUMIFS(raw_annual_energy!$E:$E,Lists!$S:$S,$C229,raw_annual_energy!$D:$D,H$221,raw_annual_energy!$A:$A,\"CAISO_NW_Hydro\")/1000","v":0},{"$f":"SUMIFS(raw_annual_energy!$E:$E,Lists!$S:$S,$C229,raw_annual_energy!$D:$D,I$221,raw_annual_energy!$A:$A,mainzone)/1000+SUMIFS(raw_annual_energy!$E:$E,Lists!$S:$S,$C229,raw_annual_energy!$D:$D,I$221,raw_annual_energy!$A:$A,\"CAISO_NW_Hydro\")/1000","v":0},{"$f":"SUMIFS(raw_annual_energy!$E:$E,Lists!$S:$S,$C229,raw_annual_energy!$D:$D,J$221,raw_annual_energy!$A:$A,mainzone)/1000+SUMIFS(raw_annual_energy!$E:$E,Lists!$S:$S,$C229,raw_annual_energy!$D:$D,J$221,raw_annual_energy!$A:$A,\"CAISO_NW_Hydro\")/1000","v":0},{"$f":"SUMIFS(raw_annual_energy!$E:$E,Lists!$S:$S,$C229,raw_annual_energy!$D:$D,K$221,raw_annual_energy!$A:$A,mainzone)/1000+SUMIFS(raw_annual_energy!$E:$E,Lists!$S:$S,$C229,raw_annual_energy!$D:$D,K$221,raw_annual_energy!$A:$A,\"CAISO_NW_Hydro\")/1000","v":0},{"$f":"SUMIFS(raw_annual_energy!$E:$E,Lists!$S:$S,$C229,raw_annual_energy!$D:$D,L$221,raw_annual_energy!$A:$A,mainzone)/1000+SUMIFS(raw_annual_energy!$E:$E,Lists!$S:$S,$C229,raw_annual_energy!$D:$D,L$221,raw_annual_energy!$A:$A,\"CAISO_NW_Hydro\")/1000","v":0},{"$f":"SUMIFS(raw_annual_energy!$E:$E,Lists!$S:$S,$C229,raw_annual_energy!$D:$D,M$221,raw_annual_energy!$A:$A,mainzone)/1000+SUMIFS(raw_annual_energy!$E:$E,Lists!$S:$S,$C229,raw_annual_energy!$D:$D,M$221,raw_annual_energy!$A:$A,\"CAISO_NW_Hydro\")/1000","v":0},{"$f":"SUMIFS(raw_annual_energy!$E:$E,Lists!$S:$S,$C229,raw_annual_energy!$D:$D,N$221,raw_annual_energy!$A:$A,mainzone)/1000+SUMIFS(raw_annual_energy!$E:$E,Lists!$S:$S,$C229,raw_annual_energy!$D:$D,N$221,raw_annual_energy!$A:$A,\"CAISO_NW_Hydro\")/1000","v":0},{"$f":"SUMIFS(raw_annual_energy!$E:$E,Lists!$S:$S,$C229,raw_annual_energy!$D:$D,O$221,raw_annual_energy!$A:$A,mainzone)/1000+SUMIFS(raw_annual_energy!$E:$E,Lists!$S:$S,$C229,raw_annual_energy!$D:$D,O$221,raw_annual_energy!$A:$A,\"CAISO_NW_Hydro\")/1000","v":0},{"$f":"SUMIFS(raw_annual_energy!$E:$E,Lists!$S:$S,$C229,raw_annual_energy!$D:$D,P$221,raw_annual_energy!$A:$A,mainzone)/1000+SUMIFS(raw_annual_energy!$E:$E,Lists!$S:$S,$C229,raw_annual_energy!$D:$D,P$221,raw_annual_energy!$A:$A,\"CAISO_NW_Hydro\")/1000","v":0},{"$f":"SUMIFS(raw_annual_energy!$E:$E,Lists!$S:$S,$C229,raw_annual_energy!$D:$D,Q$221,raw_annual_energy!$A:$A,mainzone)/1000+SUMIFS(raw_annual_energy!$E:$E,Lists!$S:$S,$C229,raw_annual_energy!$D:$D,Q$221,raw_annual_energy!$A:$A,\"CAISO_NW_Hydro\")/1000","v":0},{"$f":"SUMIFS(raw_annual_energy!$E:$E,Lists!$S:$S,$C229,raw_annual_energy!$D:$D,R$221,raw_annual_energy!$A:$A,mainzone)/1000+SUMIFS(raw_annual_energy!$E:$E,Lists!$S:$S,$C229,raw_annual_energy!$D:$D,R$221,raw_annual_energy!$A:$A,\"CAISO_NW_Hydro\")/1000","v":0},{"$f":"SUMIFS(raw_annual_energy!$E:$E,Lists!$S:$S,$C229,raw_annual_energy!$D:$D,S$221,raw_annual_energy!$A:$A,mainzone)/1000+SUMIFS(raw_annual_energy!$E:$E,Lists!$S:$S,$C229,raw_annual_energy!$D:$D,S$221,raw_annual_energy!$A:$A,\"CAISO_NW_Hydro\")/1000","v":0},{"$f":"SUMIFS(raw_annual_energy!$E:$E,Lists!$S:$S,$C229,raw_annual_energy!$D:$D,T$221,raw_annual_energy!$A:$A,mainzone)/1000+SUMIFS(raw_annual_energy!$E:$E,Lists!$S:$S,$C229,raw_annual_energy!$D:$D,T$221,raw_annual_energy!$A:$A,\"CAISO_NW_Hydro\")/1000","v":0},{"$f":"SUMIFS(raw_annual_energy!$E:$E,Lists!$S:$S,$C229,raw_annual_energy!$D:$D,U$221,raw_annual_energy!$A:$A,mainzone)/1000+SUMIFS(raw_annual_energy!$E:$E,Lists!$S:$S,$C229,raw_annual_energy!$D:$D,U$221,raw_annual_energy!$A:$A,\"CAISO_NW_Hydro\")/1000","v":0},{"$f":"SUMIFS(raw_annual_energy!$E:$E,Lists!$S:$S,$C229,raw_annual_energy!$D:$D,V$221,raw_annual_energy!$A:$A,mainzone)/1000+SUMIFS(raw_annual_energy!$E:$E,Lists!$S:$S,$C229,raw_annual_energy!$D:$D,V$221,raw_annual_energy!$A:$A,\"CAISO_NW_Hydro\")/1000","v":0},{"$f":"SUMIFS(raw_annual_energy!$E:$E,Lists!$S:$S,$C229,raw_annual_energy!$D:$D,W$221,raw_annual_energy!$A:$A,mainzone)/1000+SUMIFS(raw_annual_energy!$E:$E,Lists!$S:$S,$C229,raw_annual_energy!$D:$D,W$221,raw_annual_energy!$A:$A,\"CAISO_NW_Hydro\")/1000","v":0},{"$f":"SUMIFS(raw_annual_energy!$E:$E,Lists!$S:$S,$C229,raw_annual_energy!$D:$D,X$221,raw_annual_energy!$A:$A,mainzone)/1000+SUMIFS(raw_annual_energy!$E:$E,Lists!$S:$S,$C229,raw_annual_energy!$D:$D,X$221,raw_annual_energy!$A:$A,\"CAISO_NW_Hydro\")/1000","v":0},{"$f":"SUMIFS(raw_annual_energy!$E:$E,Lists!$S:$S,$C229,raw_annual_energy!$D:$D,Y$221,raw_annual_energy!$A:$A,mainzone)/1000+SUMIFS(raw_annual_energy!$E:$E,Lists!$S:$S,$C229,raw_annual_energy!$D:$D,Y$221,raw_annual_energy!$A:$A,\"CAISO_NW_Hydro\")/1000","v":0},{"$f":"SUMIFS(raw_annual_energy!$E:$E,Lists!$S:$S,$C229,raw_annual_energy!$D:$D,Z$221,raw_annual_energy!$A:$A,mainzone)/1000+SUMIFS(raw_annual_energy!$E:$E,Lists!$S:$S,$C229,raw_annual_energy!$D:$D,Z$221,raw_annual_energy!$A:$A,\"CAISO_NW_Hydro\")/1000","v":0},{"$f":"SUMIFS(raw_annual_energy!$E:$E,Lists!$S:$S,$C229,raw_annual_energy!$D:$D,AA$221,raw_annual_energy!$A:$A,mainzone)/1000+SUMIFS(raw_annual_energy!$E:$E,Lists!$S:$S,$C229,raw_annual_energy!$D:$D,AA$221,raw_annual_energy!$A:$A,\"CAISO_NW_Hydro\")/1000","v":0},{"$f":"SUMIFS(raw_annual_energy!$E:$E,Lists!$S:$S,$C229,raw_annual_energy!$D:$D,AB$221,raw_annual_energy!$A:$A,mainzone)/1000+SUMIFS(raw_annual_energy!$E:$E,Lists!$S:$S,$C229,raw_annual_energy!$D:$D,AB$221,raw_annual_energy!$A:$A,\"CAISO_NW_Hydro\")/1000","v":0},{"$f":"SUMIFS(raw_annual_energy!$E:$E,Lists!$S:$S,$C229,raw_annual_energy!$D:$D,AC$221,raw_annual_energy!$A:$A,mainzone)/1000+SUMIFS(raw_annual_energy!$E:$E,Lists!$S:$S,$C229,raw_annual_energy!$D:$D,AC$221,raw_annual_energy!$A:$A,\"CAISO_NW_Hydro\")/1000","v":0},{"$f":"SUMIFS(raw_annual_energy!$E:$E,Lists!$S:$S,$C229,raw_annual_energy!$D:$D,AD$221,raw_annual_energy!$A:$A,mainzone)/1000+SUMIFS(raw_annual_energy!$E:$E,Lists!$S:$S,$C229,raw_annual_energy!$D:$D,AD$221,raw_annual_energy!$A:$A,\"CAISO_NW_Hydro\")/1000","v":0},{"$f":"SUMIFS(raw_annual_energy!$E:$E,Lists!$S:$S,$C229,raw_annual_energy!$D:$D,AE$221,raw_annual_energy!$A:$A,mainzone)/1000+SUMIFS(raw_annual_energy!$E:$E,Lists!$S:$S,$C229,raw_annual_energy!$D:$D,AE$221,raw_annual_energy!$A:$A,\"CAISO_NW_Hydro\")/1000","v":0},{"$f":"SUMIFS(raw_annual_energy!$E:$E,Lists!$S:$S,$C229,raw_annual_energy!$D:$D,AF$221,raw_annual_energy!$A:$A,mainzone)/1000+SUMIFS(raw_annual_energy!$E:$E,Lists!$S:$S,$C229,raw_annual_energy!$D:$D,AF$221,raw_annual_energy!$A:$A,\"CAISO_NW_Hydro\")/1000","v":0},{"$f":"SUMIFS(raw_annual_energy!$E:$E,Lists!$S:$S,$C229,raw_annual_energy!$D:$D,AG$221,raw_annual_energy!$A:$A,mainzone)/1000+SUMIFS(raw_annual_energy!$E:$E,Lists!$S:$S,$C229,raw_annual_energy!$D:$D,AG$221,raw_annual_energy!$A:$A,\"CAISO_NW_Hydro\")/1000","v":0},{"$f":"SUMIFS(raw_annual_energy!$E:$E,Lists!$S:$S,$C229,raw_annual_energy!$D:$D,AH$221,raw_annual_energy!$A:$A,mainzone)/1000+SUMIFS(raw_annual_energy!$E:$E,Lists!$S:$S,$C229,raw_annual_energy!$D:$D,AH$221,raw_annual_energy!$A:$A,\"CAISO_NW_Hydro\")/1000","v":0},{"$f":"SUMIFS(raw_annual_energy!$E:$E,Lists!$S:$S,$C229,raw_annual_energy!$D:$D,AI$221,raw_annual_energy!$A:$A,mainzone)/1000+SUMIFS(raw_annual_energy!$E:$E,Lists!$S:$S,$C229,raw_annual_energy!$D:$D,AI$221,raw_annual_energy!$A:$A,\"CAISO_NW_Hydro\")/1000","v":0},{"$f":"SUMIFS(raw_annual_energy!$E:$E,Lists!$S:$S,$C229,raw_annual_energy!$D:$D,AJ$221,raw_annual_energy!$A:$A,mainzone)/1000+SUMIFS(raw_annual_energy!$E:$E,Lists!$S:$S,$C229,raw_annual_energy!$D:$D,AJ$221,raw_annual_energy!$A:$A,\"CAISO_NW_Hydro\")/1000","v":0},{"$f":"SUMIFS(raw_annual_energy!$E:$E,Lists!$S:$S,$C229,raw_annual_energy!$D:$D,AK$221,raw_annual_energy!$A:$A,mainzone)/1000+SUMIFS(raw_annual_energy!$E:$E,Lists!$S:$S,$C229,raw_annual_energy!$D:$D,AK$221,raw_annual_energy!$A:$A,\"CAISO_NW_Hydro\")/1000","v":0},{"$f":"SUMIFS(raw_annual_energy!$E:$E,Lists!$S:$S,$C229,raw_annual_energy!$D:$D,AL$221,raw_annual_energy!$A:$A,mainzone)/1000+SUMIFS(raw_annual_energy!$E:$E,Lists!$S:$S,$C229,raw_annual_energy!$D:$D,AL$221,raw_annual_energy!$A:$A,\"CAISO_NW_Hydro\")/1000","v":0},{"$f":"SUMIFS(raw_annual_energy!$E:$E,Lists!$S:$S,$C229,raw_annual_energy!$D:$D,AM$221,raw_annual_energy!$A:$A,mainzone)/1000+SUMIFS(raw_annual_energy!$E:$E,Lists!$S:$S,$C229,raw_annual_energy!$D:$D,AM$221,raw_annual_energy!$A:$A,\"CAISO_NW_Hydro\")/1000","v":0},{"$f":"SUMIFS(raw_annual_energy!$E:$E,Lists!$S:$S,$C229,raw_annual_energy!$D:$D,AN$221,raw_annual_energy!$A:$A,mainzone)/1000+SUMIFS(raw_annual_energy!$E:$E,Lists!$S:$S,$C229,raw_annual_energy!$D:$D,AN$221,raw_annual_energy!$A:$A,\"CAISO_NW_Hydro\")/1000","v":0}]
[null,null,"Li_Battery","GWh",{"$f":"SUMIFS(raw_annual_energy!$E:$E,Lists!$S:$S,$C230,raw_annual_energy!$D:$D,E$221,raw_annual_energy!$A:$A,mainzone)/1000+SUMIFS(raw_annual_energy!$E:$E,Lists!$S:$S,$C230,raw_annual_energy!$D:$D,E$221,raw_annual_energy!$A:$A,\"CAISO_NW_Hydro\")/1000","v":0},{"$f":"SUMIFS(raw_annual_energy!$E:$E,Lists!$S:$S,$C230,raw_annual_energy!$D:$D,F$221,raw_annual_energy!$A:$A,mainzone)/1000+SUMIFS(raw_annual_energy!$E:$E,Lists!$S:$S,$C230,raw_annual_energy!$D:$D,F$221,raw_annual_energy!$A:$A,\"CAISO_NW_Hydro\")/1000","v":0},{"$f":"SUMIFS(raw_annual_energy!$E:$E,Lists!$S:$S,$C230,raw_annual_energy!$D:$D,G$221,raw_annual_energy!$A:$A,mainzone)/1000+SUMIFS(raw_annual_energy!$E:$E,Lists!$S:$S,$C230,raw_annual_energy!$D:$D,G$221,raw_annual_energy!$A:$A,\"CAISO_NW_Hydro\")/1000","v":0},{"$f":"SUMIFS(raw_annual_energy!$E:$E,Lists!$S:$S,$C230,raw_annual_energy!$D:$D,H$221,raw_annual_energy!$A:$A,mainzone)/1000+SUMIFS(raw_annual_energy!$E:$E,Lists!$S:$S,$C230,raw_annual_energy!$D:$D,H$221,raw_annual_energy!$A:$A,\"CAISO_NW_Hydro\")/1000","v":0},{"$f":"SUMIFS(raw_annual_energy!$E:$E,Lists!$S:$S,$C230,raw_annual_energy!$D:$D,I$221,raw_annual_energy!$A:$A,mainzone)/1000+SUMIFS(raw_annual_energy!$E:$E,Lists!$S:$S,$C230,raw_annual_energy!$D:$D,I$221,raw_annual_energy!$A:$A,\"CAISO_NW_Hydro\")/1000","v":0},{"$f":"SUMIFS(raw_annual_energy!$E:$E,Lists!$S:$S,$C230,raw_annual_energy!$D:$D,J$221,raw_annual_energy!$A:$A,mainzone)/1000+SUMIFS(raw_annual_energy!$E:$E,Lists!$S:$S,$C230,raw_annual_energy!$D:$D,J$221,raw_annual_energy!$A:$A,\"CAISO_NW_Hydro\")/1000","v":273.02243028629101},{"$f":"SUMIFS(raw_annual_energy!$E:$E,Lists!$S:$S,$C230,raw_annual_energy!$D:$D,K$221,raw_annual_energy!$A:$A,mainzone)/1000+SUMIFS(raw_annual_energy!$E:$E,Lists!$S:$S,$C230,raw_annual_energy!$D:$D,K$221,raw_annual_energy!$A:$A,\"CAISO_NW_Hydro\")/1000","v":53.711361160608107},{"$f":"SUMIFS(raw_annual_energy!$E:$E,Lists!$S:$S,$C230,raw_annual_energy!$D:$D,L$221,raw_annual_energy!$A:$A,mainzone)/1000+SUMIFS(raw_annual_energy!$E:$E,Lists!$S:$S,$C230,raw_annual_energy!$D:$D,L$221,raw_annual_energy!$A:$A,\"CAISO_NW_Hydro\")/1000","v":-145.458208220155},{"$f":"SUMIFS(raw_annual_energy!$E:$E,Lists!$S:$S,$C230,raw_annual_energy!$D:$D,M$221,raw_annual_energy!$A:$A,mainzone)/1000+SUMIFS(raw_annual_energy!$E:$E,Lists!$S:$S,$C230,raw_annual_energy!$D:$D,M$221,raw_annual_energy!$A:$A,\"CAISO_NW_Hydro\")/1000","v":-359.21620986369197},{"$f":"SUMIFS(raw_annual_energy!$E:$E,Lists!$S:$S,$C230,raw_annual_energy!$D:$D,N$221,raw_annual_energy!$A:$A,mainzone)/1000+SUMIFS(raw_annual_energy!$E:$E,Lists!$S:$S,$C230,raw_annual_energy!$D:$D,N$221,raw_annual_energy!$A:$A,\"CAISO_NW_Hydro\")/1000","v":-709.28630500295901},{"$f":"SUMIFS(raw_annual_energy!$E:$E,Lists!$S:$S,$C230,raw_annual_energy!$D:$D,O$221,raw_annual_energy!$A:$A,mainzone)/1000+SUMIFS(raw_annual_energy!$E:$E,Lists!$S:$S,$C230,raw_annual_energy!$D:$D,O$221,raw_annual_energy!$A:$A,\"CAISO_NW_Hydro\")/1000","v":0},{"$f":"SUMIFS(raw_annual_energy!$E:$E,Lists!$S:$S,$C230,raw_annual_energy!$D:$D,P$221,raw_annual_energy!$A:$A,mainzone)/1000+SUMIFS(raw_annual_energy!$E:$E,Lists!$S:$S,$C230,raw_annual_energy!$D:$D,P$221,raw_annual_energy!$A:$A,\"CAISO_NW_Hydro\")/1000","v":-1783.5617084715129},{"$f":"SUMIFS(raw_annual_energy!$E:$E,Lists!$S:$S,$C230,raw_annual_energy!$D:$D,Q$221,raw_annual_energy!$A:$A,mainzone)/1000+SUMIFS(raw_annual_energy!$E:$E,Lists!$S:$S,$C230,raw_annual_energy!$D:$D,Q$221,raw_annual_energy!$A:$A,\"CAISO_NW_Hydro\")/1000","v":0},{"$f":"SUMIFS(raw_annual_energy!$E:$E,Lists!$S:$S,$C230,raw_annual_energy!$D:$D,R$221,raw_annual_energy!$A:$A,mainzone)/1000+SUMIFS(raw_annual_energy!$E:$E,Lists!$S:$S,$C230,raw_annual_energy!$D:$D,R$221,raw_annual_energy!$A:$A,\"CAISO_NW_Hydro\")/1000","v":0},{"$f":"SUMIFS(raw_annual_energy!$E:$E,Lists!$S:$S,$C230,raw_annual_energy!$D:$D,S$221,raw_annual_energy!$A:$A,mainzone)/1000+SUMIFS(raw_annual_energy!$E:$E,Lists!$S:$S,$C230,raw_annual_energy!$D:$D,S$221,raw_annual_energy!$A:$A,\"CAISO_NW_Hydro\")/1000","v":0},{"$f":"SUMIFS(raw_annual_energy!$E:$E,Lists!$S:$S,$C230,raw_annual_energy!$D:$D,T$221,raw_annual_energy!$A:$A,mainzone)/1000+SUMIFS(raw_annual_energy!$E:$E,Lists!$S:$S,$C230,raw_annual_energy!$D:$D,T$221,raw_annual_energy!$A:$A,\"CAISO_NW_Hydro\")/1000","v":-4082.3526784437304},{"$f":"SUMIFS(raw_annual_energy!$E:$E,Lists!$S:$S,$C230,raw_annual_energy!$D:$D,U$221,raw_annual_energy!$A:$A,mainzone)/1000+SUMIFS(raw_annual_energy!$E:$E,Lists!$S:$S,$C230,raw_annual_energy!$D:$D,U$221,raw_annual_energy!$A:$A,\"CAISO_NW_Hydro\")/1000","v":0},{"$f":"SUMIFS(raw_annual_energy!$E:$E,Lists!$S:$S,$C230,raw_annual_energy!$D:$D,V$221,raw_annual_energy!$A:$A,mainzone)/1000+SUMIFS(raw_annual_energy!$E:$E,Lists!$S:$S,$C230,raw_annual_energy!$D:$D,V$221,raw_annual_energy!$A:$A,\"CAISO_NW_Hydro\")/1000","v":0},{"$f":"SUMIFS(raw_annual_energy!$E:$E,Lists!$S:$S,$C230,raw_annual_energy!$D:$D,W$221,raw_annual_energy!$A:$A,mainzone)/1000+SUMIFS(raw_annual_energy!$E:$E,Lists!$S:$S,$C230,raw_annual_energy!$D:$D,W$221,raw_annual_energy!$A:$A,\"CAISO_NW_Hydro\")/1000","v":0},{"$f":"SUMIFS(raw_annual_energy!$E:$E,Lists!$S:$S,$C230,raw_annual_energy!$D:$D,X$221,raw_annual_energy!$A:$A,mainzone)/1000+SUMIFS(raw_annual_energy!$E:$E,Lists!$S:$S,$C230,raw_annual_energy!$D:$D,X$221,raw_annual_energy!$A:$A,\"CAISO_NW_Hydro\")/1000","v":0},{"$f":"SUMIFS(raw_annual_energy!$E:$E,Lists!$S:$S,$C230,raw_annual_energy!$D:$D,Y$221,raw_annual_energy!$A:$A,mainzone)/1000+SUMIFS(raw_annual_energy!$E:$E,Lists!$S:$S,$C230,raw_annual_energy!$D:$D,Y$221,raw_annual_energy!$A:$A,\"CAISO_NW_Hydro\")/1000","v":0},{"$f":"SUMIFS(raw_annual_energy!$E:$E,Lists!$S:$S,$C230,raw_annual_energy!$D:$D,Z$221,raw_annual_energy!$A:$A,mainzone)/1000+SUMIFS(raw_annual_energy!$E:$E,Lists!$S:$S,$C230,raw_annual_energy!$D:$D,Z$221,raw_annual_energy!$A:$A,\"CAISO_NW_Hydro\")/1000","v":0},{"$f":"SUMIFS(raw_annual_energy!$E:$E,Lists!$S:$S,$C230,raw_annual_energy!$D:$D,AA$221,raw_annual_energy!$A:$A,mainzone)/1000+SUMIFS(raw_annual_energy!$E:$E,Lists!$S:$S,$C230,raw_annual_energy!$D:$D,AA$221,raw_annual_energy!$A:$A,\"CAISO_NW_Hydro\")/1000","v":0},{"$f":"SUMIFS(raw_annual_energy!$E:$E,Lists!$S:$S,$C230,raw_annual_energy!$D:$D,AB$221,raw_annual_energy!$A:$A,mainzone)/1000+SUMIFS(raw_annual_energy!$E:$E,Lists!$S:$S,$C230,raw_annual_energy!$D:$D,AB$221,raw_annual_energy!$A:$A,\"CAISO_NW_Hydro\")/1000","v":0},{"$f":"SUMIFS(raw_annual_energy!$E:$E,Lists!$S:$S,$C230,raw_annual_energy!$D:$D,AC$221,raw_annual_energy!$A:$A,mainzone)/1000+SUMIFS(raw_annual_energy!$E:$E,Lists!$S:$S,$C230,raw_annual_energy!$D:$D,AC$221,raw_annual_energy!$A:$A,\"CAISO_NW_Hydro\")/1000","v":0},{"$f":"SUMIFS(raw_annual_energy!$E:$E,Lists!$S:$S,$C230,raw_annual_energy!$D:$D,AD$221,raw_annual_energy!$A:$A,mainzone)/1000+SUMIFS(raw_annual_energy!$E:$E,Lists!$S:$S,$C230,raw_annual_energy!$D:$D,AD$221,raw_annual_energy!$A:$A,\"CAISO_NW_Hydro\")/1000","v":0},{"$f":"SUMIFS(raw_annual_energy!$E:$E,Lists!$S:$S,$C230,raw_annual_energy!$D:$D,AE$221,raw_annual_energy!$A:$A,mainzone)/1000+SUMIFS(raw_annual_energy!$E:$E,Lists!$S:$S,$C230,raw_annual_energy!$D:$D,AE$221,raw_annual_energy!$A:$A,\"CAISO_NW_Hydro\")/1000","v":0},{"$f":"SUMIFS(raw_annual_energy!$E:$E,Lists!$S:$S,$C230,raw_annual_energy!$D:$D,AF$221,raw_annual_energy!$A:$A,mainzone)/1000+SUMIFS(raw_annual_energy!$E:$E,Lists!$S:$S,$C230,raw_annual_energy!$D:$D,AF$221,raw_annual_energy!$A:$A,\"CAISO_NW_Hydro\")/1000","v":0},{"$f":"SUMIFS(raw_annual_energy!$E:$E,Lists!$S:$S,$C230,raw_annual_energy!$D:$D,AG$221,raw_annual_energy!$A:$A,mainzone)/1000+SUMIFS(raw_annual_energy!$E:$E,Lists!$S:$S,$C230,raw_annual_energy!$D:$D,AG$221,raw_annual_energy!$A:$A,\"CAISO_NW_Hydro\")/1000","v":0},{"$f":"SUMIFS(raw_annual_energy!$E:$E,Lists!$S:$S,$C230,raw_annual_energy!$D:$D,AH$221,raw_annual_energy!$A:$A,mainzone)/1000+SUMIFS(raw_annual_energy!$E:$E,Lists!$S:$S,$C230,raw_annual_energy!$D:$D,AH$221,raw_annual_energy!$A:$A,\"CAISO_NW_Hydro\")/1000","v":0},{"$f":"SUMIFS(raw_annual_energy!$E:$E,Lists!$S:$S,$C230,raw_annual_energy!$D:$D,AI$221,raw_annual_energy!$A:$A,mainzone)/1000+SUMIFS(raw_annual_energy!$E:$E,Lists!$S:$S,$C230,raw_annual_energy!$D:$D,AI$221,raw_annual_energy!$A:$A,\"CAISO_NW_Hydro\")/1000","v":-29561.855271350018},{"$f":"SUMIFS(raw_annual_energy!$E:$E,Lists!$S:$S,$C230,raw_annual_energy!$D:$D,AJ$221,raw_annual_energy!$A:$A,mainzone)/1000+SUMIFS(raw_annual_energy!$E:$E,Lists!$S:$S,$C230,raw_annual_energy!$D:$D,AJ$221,raw_annual_energy!$A:$A,\"CAISO_NW_Hydro\")/1000","v":0},{"$f":"SUMIFS(raw_annual_energy!$E:$E,Lists!$S:$S,$C230,raw_annual_energy!$D:$D,AK$221,raw_annual_energy!$A:$A,mainzone)/1000+SUMIFS(raw_annual_energy!$E:$E,Lists!$S:$S,$C230,raw_annual_energy!$D:$D,AK$221,raw_annual_energy!$A:$A,\"CAISO_NW_Hydro\")/1000","v":0},{"$f":"SUMIFS(raw_annual_energy!$E:$E,Lists!$S:$S,$C230,raw_annual_energy!$D:$D,AL$221,raw_annual_energy!$A:$A,mainzone)/1000+SUMIFS(raw_annual_energy!$E:$E,Lists!$S:$S,$C230,raw_annual_energy!$D:$D,AL$221,raw_annual_energy!$A:$A,\"CAISO_NW_Hydro\")/1000","v":0},{"$f":"SUMIFS(raw_annual_energy!$E:$E,Lists!$S:$S,$C230,raw_annual_energy!$D:$D,AM$221,raw_annual_energy!$A:$A,mainzone)/1000+SUMIFS(raw_annual_energy!$E:$E,Lists!$S:$S,$C230,raw_annual_energy!$D:$D,AM$221,raw_annual_energy!$A:$A,\"CAISO_NW_Hydro\")/1000","v":0},{"$f":"SUMIFS(raw_annual_energy!$E:$E,Lists!$S:$S,$C230,raw_annual_energy!$D:$D,AN$221,raw_annual_energy!$A:$A,mainzone)/1000+SUMIFS(raw_annual_energy!$E:$E,Lists!$S:$S,$C230,raw_annual_energy!$D:$D,AN$221,raw_annual_energy!$A:$A,\"CAISO_NW_Hydro\")/1000","v":0}]
[null,null,"BTM_Li_Battery","GWh",{"$f":"SUMIFS(raw_annual_energy!$E:$E,Lists!$S:$S,$C231,raw_annual_energy!$D:$D,E$221,raw_annual_energy!$A:$A,mainzone)/1000+SUMIFS(raw_annual_energy!$E:$E,Lists!$S:$S,$C231,raw_annual_energy!$D:$D,E$221,raw_annual_energy!$A:$A,\"CAISO_NW_Hydro\")/1000","v":0},{"$f":"SUMIFS(raw_annual_energy!$E:$E,Lists!$S:$S,$C231,raw_annual_energy!$D:$D,F$221,raw_annual_energy!$A:$A,mainzone)/1000+SUMIFS(raw_annual_energy!$E:$E,Lists!$S:$S,$C231,raw_annual_energy!$D:$D,F$221,raw_annual_energy!$A:$A,\"CAISO_NW_Hydro\")/1000","v":0},{"$f":"SUMIFS(raw_annual_energy!$E:$E,Lists!$S:$S,$C231,raw_annual_energy!$D:$D,G$221,raw_annual_energy!$A:$A,mainzone)/1000+SUMIFS(raw_annual_energy!$E:$E,Lists!$S:$S,$C231,raw_annual_energy!$D:$D,G$221,raw_annual_energy!$A:$A,\"CAISO_NW_Hydro\")/1000","v":0},{"$f":"SUMIFS(raw_annual_energy!$E:$E,Lists!$S:$S,$C231,raw_annual_energy!$D:$D,H$221,raw_annual_energy!$A:$A,mainzone)/1000+SUMIFS(raw_annual_energy!$E:$E,Lists!$S:$S,$C231,raw_annual_energy!$D:$D,H$221,raw_annual_energy!$A:$A,\"CAISO_NW_Hydro\")/1000","v":0},{"$f":"SUMIFS(raw_annual_energy!$E:$E,Lists!$S:$S,$C231,raw_annual_energy!$D:$D,I$221,raw_annual_energy!$A:$A,mainzone)/1000+SUMIFS(raw_annual_energy!$E:$E,Lists!$S:$S,$C231,raw_annual_energy!$D:$D,I$221,raw_annual_energy!$A:$A,\"CAISO_NW_Hydro\")/1000","v":0},{"$f":"SUMIFS(raw_annual_energy!$E:$E,Lists!$S:$S,$C231,raw_annual_energy!$D:$D,J$221,raw_annual_energy!$A:$A,mainzone)/1000+SUMIFS(raw_annual_energy!$E:$E,Lists!$S:$S,$C231,raw_annual_energy!$D:$D,J$221,raw_annual_energy!$A:$A,\"CAISO_NW_Hydro\")/1000","v":-12.8165451163668},{"$f":"SUMIFS(raw_annual_energy!$E:$E,Lists!$S:$S,$C231,raw_annual_energy!$D:$D,K$221,raw_annual_energy!$A:$A,mainzone)/1000+SUMIFS(raw_annual_energy!$E:$E,Lists!$S:$S,$C231,raw_annual_energy!$D:$D,K$221,raw_annual_energy!$A:$A,\"CAISO_NW_Hydro\")/1000","v":-11.338248010523301},{"$f":"SUMIFS(raw_annual_energy!$E:$E,Lists!$S:$S,$C231,raw_annual_energy!$D:$D,L$221,raw_annual_energy!$A:$A,mainzone)/1000+SUMIFS(raw_annual_energy!$E:$E,Lists!$S:$S,$C231,raw_annual_energy!$D:$D,L$221,raw_annual_energy!$A:$A,\"CAISO_NW_Hydro\")/1000","v":-11.960827305706299},{"$f":"SUMIFS(raw_annual_energy!$E:$E,Lists!$S:$S,$C231,raw_annual_energy!$D:$D,M$221,raw_annual_energy!$A:$A,mainzone)/1000+SUMIFS(raw_annual_energy!$E:$E,Lists!$S:$S,$C231,raw_annual_energy!$D:$D,M$221,raw_annual_energy!$A:$A,\"CAISO_NW_Hydro\")/1000","v":-12.3916111861058},{"$f":"SUMIFS(raw_annual_energy!$E:$E,Lists!$S:$S,$C231,raw_annual_energy!$D:$D,N$221,raw_annual_energy!$A:$A,mainzone)/1000+SUMIFS(raw_annual_energy!$E:$E,Lists!$S:$S,$C231,raw_annual_energy!$D:$D,N$221,raw_annual_energy!$A:$A,\"CAISO_NW_Hydro\")/1000","v":-12.4687982536496},{"$f":"SUMIFS(raw_annual_energy!$E:$E,Lists!$S:$S,$C231,raw_annual_energy!$D:$D,O$221,raw_annual_energy!$A:$A,mainzone)/1000+SUMIFS(raw_annual_energy!$E:$E,Lists!$S:$S,$C231,raw_annual_energy!$D:$D,O$221,raw_annual_energy!$A:$A,\"CAISO_NW_Hydro\")/1000","v":0},{"$f":"SUMIFS(raw_annual_energy!$E:$E,Lists!$S:$S,$C231,raw_annual_energy!$D:$D,P$221,raw_annual_energy!$A:$A,mainzone)/1000+SUMIFS(raw_annual_energy!$E:$E,Lists!$S:$S,$C231,raw_annual_energy!$D:$D,P$221,raw_annual_energy!$A:$A,\"CAISO_NW_Hydro\")/1000","v":-13.8945540091688},{"$f":"SUMIFS(raw_annual_energy!$E:$E,Lists!$S:$S,$C231,raw_annual_energy!$D:$D,Q$221,raw_annual_energy!$A:$A,mainzone)/1000+SUMIFS(raw_annual_energy!$E:$E,Lists!$S:$S,$C231,raw_annual_energy!$D:$D,Q$221,raw_annual_energy!$A:$A,\"CAISO_NW_Hydro\")/1000","v":0},{"$f":"SUMIFS(raw_annual_energy!$E:$E,Lists!$S:$S,$C231,raw_annual_energy!$D:$D,R$221,raw_annual_energy!$A:$A,mainzone)/1000+SUMIFS(raw_annual_energy!$E:$E,Lists!$S:$S,$C231,raw_annual_energy!$D:$D,R$221,raw_annual_energy!$A:$A,\"CAISO_NW_Hydro\")/1000","v":0},{"$f":"SUMIFS(raw_annual_energy!$E:$E,Lists!$S:$S,$C231,raw_annual_energy!$D:$D,S$221,raw_annual_energy!$A:$A,mainzone)/1000+SUMIFS(raw_annual_energy!$E:$E,Lists!$S:$S,$C231,raw_annual_energy!$D:$D,S$221,raw_annual_energy!$A:$A,\"CAISO_NW_Hydro\")/1000","v":0},{"$f":"SUMIFS(raw_annual_energy!$E:$E,Lists!$S:$S,$C231,raw_annual_energy!$D:$D,T$221,raw_annual_energy!$A:$A,mainzone)/1000+SUMIFS(raw_annual_energy!$E:$E,Lists!$S:$S,$C231,raw_annual_energy!$D:$D,T$221,raw_annual_energy!$A:$A,\"CAISO_NW_Hydro\")/1000","v":-17.044249658047399},{"$f":"SUMIFS(raw_annual_energy!$E:$E,Lists!$S:$S,$C231,raw_annual_energy!$D:$D,U$221,raw_annual_energy!$A:$A,mainzone)/1000+SUMIFS(raw_annual_energy!$E:$E,Lists!$S:$S,$C231,raw_annual_energy!$D:$D,U$221,raw_annual_energy!$A:$A,\"CAISO_NW_Hydro\")/1000","v":0},{"$f":"SUMIFS(raw_annual_energy!$E:$E,Lists!$S:$S,$C231,raw_annual_energy!$D:$D,V$221,raw_annual_energy!$A:$A,mainzone)/1000+SUMIFS(raw_annual_energy!$E:$E,Lists!$S:$S,$C231,raw_annual_energy!$D:$D,V$221,raw_annual_energy!$A:$A,\"CAISO_NW_Hydro\")/1000","v":0},{"$f":"SUMIFS(raw_annual_energy!$E:$E,Lists!$S:$S,$C231,raw_annual_energy!$D:$D,W$221,raw_annual_energy!$A:$A,mainzone)/1000+SUMIFS(raw_annual_energy!$E:$E,Lists!$S:$S,$C231,raw_annual_energy!$D:$D,W$221,raw_annual_energy!$A:$A,\"CAISO_NW_Hydro\")/1000","v":0},{"$f":"SUMIFS(raw_annual_energy!$E:$E,Lists!$S:$S,$C231,raw_annual_energy!$D:$D,X$221,raw_annual_energy!$A:$A,mainzone)/1000+SUMIFS(raw_annual_energy!$E:$E,Lists!$S:$S,$C231,raw_annual_energy!$D:$D,X$221,raw_annual_energy!$A:$A,\"CAISO_NW_Hydro\")/1000","v":0},{"$f":"SUMIFS(raw_annual_energy!$E:$E,Lists!$S:$S,$C231,raw_annual_energy!$D:$D,Y$221,raw_annual_energy!$A:$A,mainzone)/1000+SUMIFS(raw_annual_energy!$E:$E,Lists!$S:$S,$C231,raw_annual_energy!$D:$D,Y$221,raw_annual_energy!$A:$A,\"CAISO_NW_Hydro\")/1000","v":0},{"$f":"SUMIFS(raw_annual_energy!$E:$E,Lists!$S:$S,$C231,raw_annual_energy!$D:$D,Z$221,raw_annual_energy!$A:$A,mainzone)/1000+SUMIFS(raw_annual_energy!$E:$E,Lists!$S:$S,$C231,raw_annual_energy!$D:$D,Z$221,raw_annual_energy!$A:$A,\"CAISO_NW_Hydro\")/1000","v":0},{"$f":"SUMIFS(raw_annual_energy!$E:$E,Lists!$S:$S,$C231,raw_annual_energy!$D:$D,AA$221,raw_annual_energy!$A:$A,mainzone)/1000+SUMIFS(raw_annual_energy!$E:$E,Lists!$S:$S,$C231,raw_annual_energy!$D:$D,AA$221,raw_annual_energy!$A:$A,\"CAISO_NW_Hydro\")/1000","v":0},{"$f":"SUMIFS(raw_annual_energy!$E:$E,Lists!$S:$S,$C231,raw_annual_energy!$D:$D,AB$221,raw_annual_energy!$A:$A,mainzone)/1000+SUMIFS(raw_annual_energy!$E:$E,Lists!$S:$S,$C231,raw_annual_energy!$D:$D,AB$221,raw_annual_energy!$A:$A,\"CAISO_NW_Hydro\")/1000","v":0},{"$f":"SUMIFS(raw_annual_energy!$E:$E,Lists!$S:$S,$C231,raw_annual_energy!$D:$D,AC$221,raw_annual_energy!$A:$A,mainzone)/1000+SUMIFS(raw_annual_energy!$E:$E,Lists!$S:$S,$C231,raw_annual_energy!$D:$D,AC$221,raw_annual_energy!$A:$A,\"CAISO_NW_Hydro\")/1000","v":0},{"$f":"SUMIFS(raw_annual_energy!$E:$E,Lists!$S:$S,$C231,raw_annual_energy!$D:$D,AD$221,raw_annual_energy!$A:$A,mainzone)/1000+SUMIFS(raw_annual_energy!$E:$E,Lists!$S:$S,$C231,raw_annual_energy!$D:$D,AD$221,raw_annual_energy!$A:$A,\"CAISO_NW_Hydro\")/1000","v":0},{"$f":"SUMIFS(raw_annual_energy!$E:$E,Lists!$S:$S,$C231,raw_annual_energy!$D:$D,AE$221,raw_annual_energy!$A:$A,mainzone)/1000+SUMIFS(raw_annual_energy!$E:$E,Lists!$S:$S,$C231,raw_annual_energy!$D:$D,AE$221,raw_annual_energy!$A:$A,\"CAISO_NW_Hydro\")/1000","v":0},{"$f":"SUMIFS(raw_annual_energy!$E:$E,Lists!$S:$S,$C231,raw_annual_energy!$D:$D,AF$221,raw_annual_energy!$A:$A,mainzone)/1000+SUMIFS(raw_annual_energy!$E:$E,Lists!$S:$S,$C231,raw_annual_energy!$D:$D,AF$221,raw_annual_energy!$A:$A,\"CAISO_NW_Hydro\")/1000","v":0},{"$f":"SUMIFS(raw_annual_energy!$E:$E,Lists!$S:$S,$C231,raw_annual_energy!$D:$D,AG$221,raw_annual_energy!$A:$A,mainzone)/1000+SUMIFS(raw_annual_energy!$E:$E,Lists!$S:$S,$C231,raw_annual_energy!$D:$D,AG$221,raw_annual_energy!$A:$A,\"CAISO_NW_Hydro\")/1000","v":0},{"$f":"SUMIFS(raw_annual_energy!$E:$E,Lists!$S:$S,$C231,raw_annual_energy!$D:$D,AH$221,raw_annual_energy!$A:$A,mainzone)/1000+SUMIFS(raw_annual_energy!$E:$E,Lists!$S:$S,$C231,raw_annual_energy!$D:$D,AH$221,raw_annual_energy!$A:$A,\"CAISO_NW_Hydro\")/1000","v":0},{"$f":"SUMIFS(raw_annual_energy!$E:$E,Lists!$S:$S,$C231,raw_annual_energy!$D:$D,AI$221,raw_annual_energy!$A:$A,mainzone)/1000+SUMIFS(raw_annual_energy!$E:$E,Lists!$S:$S,$C231,raw_annual_energy!$D:$D,AI$221,raw_annual_energy!$A:$A,\"CAISO_NW_Hydro\")/1000","v":-36.714874808186401},{"$f":"SUMIFS(raw_annual_energy!$E:$E,Lists!$S:$S,$C231,raw_annual_energy!$D:$D,AJ$221,raw_annual_energy!$A:$A,mainzone)/1000+SUMIFS(raw_annual_energy!$E:$E,Lists!$S:$S,$C231,raw_annual_energy!$D:$D,AJ$221,raw_annual_energy!$A:$A,\"CAISO_NW_Hydro\")/1000","v":0},{"$f":"SUMIFS(raw_annual_energy!$E:$E,Lists!$S:$S,$C231,raw_annual_energy!$D:$D,AK$221,raw_annual_energy!$A:$A,mainzone)/1000+SUMIFS(raw_annual_energy!$E:$E,Lists!$S:$S,$C231,raw_annual_energy!$D:$D,AK$221,raw_annual_energy!$A:$A,\"CAISO_NW_Hydro\")/1000","v":0},{"$f":"SUMIFS(raw_annual_energy!$E:$E,Lists!$S:$S,$C231,raw_annual_energy!$D:$D,AL$221,raw_annual_energy!$A:$A,mainzone)/1000+SUMIFS(raw_annual_energy!$E:$E,Lists!$S:$S,$C231,raw_annual_energy!$D:$D,AL$221,raw_annual_energy!$A:$A,\"CAISO_NW_Hydro\")/1000","v":0},{"$f":"SUMIFS(raw_annual_energy!$E:$E,Lists!$S:$S,$C231,raw_annual_energy!$D:$D,AM$221,raw_annual_energy!$A:$A,mainzone)/1000+SUMIFS(raw_annual_energy!$E:$E,Lists!$S:$S,$C231,raw_annual_energy!$D:$D,AM$221,raw_annual_energy!$A:$A,\"CAISO_NW_Hydro\")/1000","v":0},{"$f":"SUMIFS(raw_annual_energy!$E:$E,Lists!$S:$S,$C231,raw_annual_energy!$D:$D,AN$221,raw_annual_energy!$A:$A,mainzone)/1000+SUMIFS(raw_annual_energy!$E:$E,Lists!$S:$S,$C231,raw_annual_energy!$D:$D,AN$221,raw_annual_energy!$A:$A,\"CAISO_NW_Hydro\")/1000","v":0}]
[null,null,"Flow_Battery","GWh",{"$f":"SUMIFS(raw_annual_energy!$E:$E,Lists!$S:$S,$C232,raw_annual_energy!$D:$D,E$221,raw_annual_energy!$A:$A,mainzone)/1000+SUMIFS(raw_annual_energy!$E:$E,Lists!$S:$S,$C232,raw_annual_energy!$D:$D,E$221,raw_annual_energy!$A:$A,\"CAISO_NW_Hydro\")/1000","v":0},{"$f":"SUMIFS(raw_annual_energy!$E:$E,Lists!$S:$S,$C232,raw_annual_energy!$D:$D,F$221,raw_annual_energy!$A:$A,mainzone)/1000+SUMIFS(raw_annual_energy!$E:$E,Lists!$S:$S,$C232,raw_annual_energy!$D:$D,F$221,raw_annual_energy!$A:$A,\"CAISO_NW_Hydro\")/1000","v":0},{"$f":"SUMIFS(raw_annual_energy!$E:$E,Lists!$S:$S,$C232,raw_annual_energy!$D:$D,G$221,raw_annual_energy!$A:$A,mainzone)/1000+SUMIFS(raw_annual_energy!$E:$E,Lists!$S:$S,$C232,raw_annual_energy!$D:$D,G$221,raw_annual_energy!$A:$A,\"CAISO_NW_Hydro\")/1000","v":0},{"$f":"SUMIFS(raw_annual_energy!$E:$E,Lists!$S:$S,$C232,raw_annual_energy!$D:$D,H$221,raw_annual_energy!$A:$A,mainzone)/1000+SUMIFS(raw_annual_energy!$E:$E,Lists!$S:$S,$C232,raw_annual_energy!$D:$D,H$221,raw_annual_energy!$A:$A,\"CAISO_NW_Hydro\")/1000","v":0},{"$f":"SUMIFS(raw_annual_energy!$E:$E,Lists!$S:$S,$C232,raw_annual_energy!$D:$D,I$221,raw_annual_energy!$A:$A,mainzone)/1000+SUMIFS(raw_annual_energy!$E:$E,Lists!$S:$S,$C232,raw_annual_energy!$D:$D,I$221,raw_annual_energy!$A:$A,\"CAISO_NW_Hydro\")/1000","v":0},{"$f":"SUMIFS(raw_annual_energy!$E:$E,Lists!$S:$S,$C232,raw_annual_energy!$D:$D,J$221,raw_annual_energy!$A:$A,mainzone)/1000+SUMIFS(raw_annual_energy!$E:$E,Lists!$S:$S,$C232,raw_annual_energy!$D:$D,J$221,raw_annual_energy!$A:$A,\"CAISO_NW_Hydro\")/1000","v":0},{"$f":"SUMIFS(raw_annual_energy!$E:$E,Lists!$S:$S,$C232,raw_annual_energy!$D:$D,K$221,raw_annual_energy!$A:$A,mainzone)/1000+SUMIFS(raw_annual_energy!$E:$E,Lists!$S:$S,$C232,raw_annual_energy!$D:$D,K$221,raw_annual_energy!$A:$A,\"CAISO_NW_Hydro\")/1000","v":0},{"$f":"SUMIFS(raw_annual_energy!$E:$E,Lists!$S:$S,$C232,raw_annual_energy!$D:$D,L$221,raw_annual_energy!$A:$A,mainzone)/1000+SUMIFS(raw_annual_energy!$E:$E,Lists!$S:$S,$C232,raw_annual_energy!$D:$D,L$221,raw_annual_energy!$A:$A,\"CAISO_NW_Hydro\")/1000","v":0},{"$f":"SUMIFS(raw_annual_energy!$E:$E,Lists!$S:$S,$C232,raw_annual_energy!$D:$D,M$221,raw_annual_energy!$A:$A,mainzone)/1000+SUMIFS(raw_annual_energy!$E:$E,Lists!$S:$S,$C232,raw_annual_energy!$D:$D,M$221,raw_annual_energy!$A:$A,\"CAISO_NW_Hydro\")/1000","v":0},{"$f":"SUMIFS(raw_annual_energy!$E:$E,Lists!$S:$S,$C232,raw_annual_energy!$D:$D,N$221,raw_annual_energy!$A:$A,mainzone)/1000+SUMIFS(raw_annual_energy!$E:$E,Lists!$S:$S,$C232,raw_annual_energy!$D:$D,N$221,raw_annual_energy!$A:$A,\"CAISO_NW_Hydro\")/1000","v":0},{"$f":"SUMIFS(raw_annual_energy!$E:$E,Lists!$S:$S,$C232,raw_annual_energy!$D:$D,O$221,raw_annual_energy!$A:$A,mainzone)/1000+SUMIFS(raw_annual_energy!$E:$E,Lists!$S:$S,$C232,raw_annual_energy!$D:$D,O$221,raw_annual_energy!$A:$A,\"CAISO_NW_Hydro\")/1000","v":0},{"$f":"SUMIFS(raw_annual_energy!$E:$E,Lists!$S:$S,$C232,raw_annual_energy!$D:$D,P$221,raw_annual_energy!$A:$A,mainzone)/1000+SUMIFS(raw_annual_energy!$E:$E,Lists!$S:$S,$C232,raw_annual_energy!$D:$D,P$221,raw_annual_energy!$A:$A,\"CAISO_NW_Hydro\")/1000","v":0},{"$f":"SUMIFS(raw_annual_energy!$E:$E,Lists!$S:$S,$C232,raw_annual_energy!$D:$D,Q$221,raw_annual_energy!$A:$A,mainzone)/1000+SUMIFS(raw_annual_energy!$E:$E,Lists!$S:$S,$C232,raw_annual_energy!$D:$D,Q$221,raw_annual_energy!$A:$A,\"CAISO_NW_Hydro\")/1000","v":0},{"$f":"SUMIFS(raw_annual_energy!$E:$E,Lists!$S:$S,$C232,raw_annual_energy!$D:$D,R$221,raw_annual_energy!$A:$A,mainzone)/1000+SUMIFS(raw_annual_energy!$E:$E,Lists!$S:$S,$C232,raw_annual_energy!$D:$D,R$221,raw_annual_energy!$A:$A,\"CAISO_NW_Hydro\")/1000","v":0},{"$f":"SUMIFS(raw_annual_energy!$E:$E,Lists!$S:$S,$C232,raw_annual_energy!$D:$D,S$221,raw_annual_energy!$A:$A,mainzone)/1000+SUMIFS(raw_annual_energy!$E:$E,Lists!$S:$S,$C232,raw_annual_energy!$D:$D,S$221,raw_annual_energy!$A:$A,\"CAISO_NW_Hydro\")/1000","v":0},{"$f":"SUMIFS(raw_annual_energy!$E:$E,Lists!$S:$S,$C232,raw_annual_energy!$D:$D,T$221,raw_annual_energy!$A:$A,mainzone)/1000+SUMIFS(raw_annual_energy!$E:$E,Lists!$S:$S,$C232,raw_annual_energy!$D:$D,T$221,raw_annual_energy!$A:$A,\"CAISO_NW_Hydro\")/1000","v":0},{"$f":"SUMIFS(raw_annual_energy!$E:$E,Lists!$S:$S,$C232,raw_annual_energy!$D:$D,U$221,raw_annual_energy!$A:$A,mainzone)/1000+SUMIFS(raw_annual_energy!$E:$E,Lists!$S:$S,$C232,raw_annual_energy!$D:$D,U$221,raw_annual_energy!$A:$A,\"CAISO_NW_Hydro\")/1000","v":0},{"$f":"SUMIFS(raw_annual_energy!$E:$E,Lists!$S:$S,$C232,raw_annual_energy!$D:$D,V$221,raw_annual_energy!$A:$A,mainzone)/1000+SUMIFS(raw_annual_energy!$E:$E,Lists!$S:$S,$C232,raw_annual_energy!$D:$D,V$221,raw_annual_energy!$A:$A,\"CAISO_NW_Hydro\")/1000","v":0},{"$f":"SUMIFS(raw_annual_energy!$E:$E,Lists!$S:$S,$C232,raw_annual_energy!$D:$D,W$221,raw_annual_energy!$A:$A,mainzone)/1000+SUMIFS(raw_annual_energy!$E:$E,Lists!$S:$S,$C232,raw_annual_energy!$D:$D,W$221,raw_annual_energy!$A:$A,\"CAISO_NW_Hydro\")/1000","v":0},{"$f":"SUMIFS(raw_annual_energy!$E:$E,Lists!$S:$S,$C232,raw_annual_energy!$D:$D,X$221,raw_annual_energy!$A:$A,mainzone)/1000+SUMIFS(raw_annual_energy!$E:$E,Lists!$S:$S,$C232,raw_annual_energy!$D:$D,X$221,raw_annual_energy!$A:$A,\"CAISO_NW_Hydro\")/1000","v":0},{"$f":"SUMIFS(raw_annual_energy!$E:$E,Lists!$S:$S,$C232,raw_annual_energy!$D:$D,Y$221,raw_annual_energy!$A:$A,mainzone)/1000+SUMIFS(raw_annual_energy!$E:$E,Lists!$S:$S,$C232,raw_annual_energy!$D:$D,Y$221,raw_annual_energy!$A:$A,\"CAISO_NW_Hydro\")/1000","v":0},{"$f":"SUMIFS(raw_annual_energy!$E:$E,Lists!$S:$S,$C232,raw_annual_energy!$D:$D,Z$221,raw_annual_energy!$A:$A,mainzone)/1000+SUMIFS(raw_annual_energy!$E:$E,Lists!$S:$S,$C232,raw_annual_energy!$D:$D,Z$221,raw_annual_energy!$A:$A,\"CAISO_NW_Hydro\")/1000","v":0},{"$f":"SUMIFS(raw_annual_energy!$E:$E,Lists!$S:$S,$C232,raw_annual_energy!$D:$D,AA$221,raw_annual_energy!$A:$A,mainzone)/1000+SUMIFS(raw_annual_energy!$E:$E,Lists!$S:$S,$C232,raw_annual_energy!$D:$D,AA$221,raw_annual_energy!$A:$A,\"CAISO_NW_Hydro\")/1000","v":0},{"$f":"SUMIFS(raw_annual_energy!$E:$E,Lists!$S:$S,$C232,raw_annual_energy!$D:$D,AB$221,raw_annual_energy!$A:$A,mainzone)/1000+SUMIFS(raw_annual_energy!$E:$E,Lists!$S:$S,$C232,raw_annual_energy!$D:$D,AB$221,raw_annual_energy!$A:$A,\"CAISO_NW_Hydro\")/1000","v":0},{"$f":"SUMIFS(raw_annual_energy!$E:$E,Lists!$S:$S,$C232,raw_annual_energy!$D:$D,AC$221,raw_annual_energy!$A:$A,mainzone)/1000+SUMIFS(raw_annual_energy!$E:$E,Lists!$S:$S,$C232,raw_annual_energy!$D:$D,AC$221,raw_annual_energy!$A:$A,\"CAISO_NW_Hydro\")/1000","v":0},{"$f":"SUMIFS(raw_annual_energy!$E:$E,Lists!$S:$S,$C232,raw_annual_energy!$D:$D,AD$221,raw_annual_energy!$A:$A,mainzone)/1000+SUMIFS(raw_annual_energy!$E:$E,Lists!$S:$S,$C232,raw_annual_energy!$D:$D,AD$221,raw_annual_energy!$A:$A,\"CAISO_NW_Hydro\")/1000","v":0},{"$f":"SUMIFS(raw_annual_energy!$E:$E,Lists!$S:$S,$C232,raw_annual_energy!$D:$D,AE$221,raw_annual_energy!$A:$A,mainzone)/1000+SUMIFS(raw_annual_energy!$E:$E,Lists!$S:$S,$C232,raw_annual_energy!$D:$D,AE$221,raw_annual_energy!$A:$A,\"CAISO_NW_Hydro\")/1000","v":0},{"$f":"SUMIFS(raw_annual_energy!$E:$E,Lists!$S:$S,$C232,raw_annual_energy!$D:$D,AF$221,raw_annual_energy!$A:$A,mainzone)/1000+SUMIFS(raw_annual_energy!$E:$E,Lists!$S:$S,$C232,raw_annual_energy!$D:$D,AF$221,raw_annual_energy!$A:$A,\"CAISO_NW_Hydro\")/1000","v":0},{"$f":"SUMIFS(raw_annual_energy!$E:$E,Lists!$S:$S,$C232,raw_annual_energy!$D:$D,AG$221,raw_annual_energy!$A:$A,mainzone)/1000+SUMIFS(raw_annual_energy!$E:$E,Lists!$S:$S,$C232,raw_annual_energy!$D:$D,AG$221,raw_annual_energy!$A:$A,\"CAISO_NW_Hydro\")/1000","v":0},{"$f":"SUMIFS(raw_annual_energy!$E:$E,Lists!$S:$S,$C232,raw_annual_energy!$D:$D,AH$221,raw_annual_energy!$A:$A,mainzone)/1000+SUMIFS(raw_annual_energy!$E:$E,Lists!$S:$S,$C232,raw_annual_energy!$D:$D,AH$221,raw_annual_energy!$A:$A,\"CAISO_NW_Hydro\")/1000","v":0},{"$f":"SUMIFS(raw_annual_energy!$E:$E,Lists!$S:$S,$C232,raw_annual_energy!$D:$D,AI$221,raw_annual_energy!$A:$A,mainzone)/1000+SUMIFS(raw_annual_energy!$E:$E,Lists!$S:$S,$C232,raw_annual_energy!$D:$D,AI$221,raw_annual_energy!$A:$A,\"CAISO_NW_Hydro\")/1000","v":0},{"$f":"SUMIFS(raw_annual_energy!$E:$E,Lists!$S:$S,$C232,raw_annual_energy!$D:$D,AJ$221,raw_annual_energy!$A:$A,mainzone)/1000+SUMIFS(raw_annual_energy!$E:$E,Lists!$S:$S,$C232,raw_annual_energy!$D:$D,AJ$221,raw_annual_energy!$A:$A,\"CAISO_NW_Hydro\")/1000","v":0},{"$f":"SUMIFS(raw_annual_energy!$E:$E,Lists!$S:$S,$C232,raw_annual_energy!$D:$D,AK$221,raw_annual_energy!$A:$A,mainzone)/1000+SUMIFS(raw_annual_energy!$E:$E,Lists!$S:$S,$C232,raw_annual_energy!$D:$D,AK$221,raw_annual_energy!$A:$A,\"CAISO_NW_Hydro\")/1000","v":0},{"$f":"SUMIFS(raw_annual_energy!$E:$E,Lists!$S:$S,$C232,raw_annual_energy!$D:$D,AL$221,raw_annual_energy!$A:$A,mainzone)/1000+SUMIFS(raw_annual_energy!$E:$E,Lists!$S:$S,$C232,raw_annual_energy!$D:$D,AL$221,raw_annual_energy!$A:$A,\"CAISO_NW_Hydro\")/1000","v":0},{"$f":"SUMIFS(raw_annual_energy!$E:$E,Lists!$S:$S,$C232,raw_annual_energy!$D:$D,AM$221,raw_annual_energy!$A:$A,mainzone)/1000+SUMIFS(raw_annual_energy!$E:$E,Lists!$S:$S,$C232,raw_annual_energy!$D:$D,AM$221,raw_annual_energy!$A:$A,\"CAISO_NW_Hydro\")/1000","v":0},{"$f":"SUMIFS(raw_annual_energy!$E:$E,Lists!$S:$S,$C232,raw_annual_energy!$D:$D,AN$221,raw_annual_energy!$A:$A,mainzone)/1000+SUMIFS(raw_annual_energy!$E:$E,Lists!$S:$S,$C232,raw_annual_energy!$D:$D,AN$221,raw_annual_energy!$A:$A,\"CAISO_NW_Hydro\")/1000","v":0}]
[null,null,"Pumped_Hydro","GWh",{"$f":"SUMIFS(raw_annual_energy!$E:$E,Lists!$S:$S,$C233,raw_annual_energy!$D:$D,E$221,raw_annual_energy!$A:$A,mainzone)/1000+SUMIFS(raw_annual_energy!$E:$E,Lists!$S:$S,$C233,raw_annual_energy!$D:$D,E$221,raw_annual_energy!$A:$A,\"CAISO_NW_Hydro\")/1000","v":0},{"$f":"SUMIFS(raw_annual_energy!$E:$E,Lists!$S:$S,$C233,raw_annual_energy!$D:$D,F$221,raw_annual_energy!$A:$A,mainzone)/1000+SUMIFS(raw_annual_energy!$E:$E,Lists!$S:$S,$C233,raw_annual_energy!$D:$D,F$221,raw_annual_energy!$A:$A,\"CAISO_NW_Hydro\")/1000","v":0},{"$f":"SUMIFS(raw_annual_energy!$E:$E,Lists!$S:$S,$C233,raw_annual_energy!$D:$D,G$221,raw_annual_energy!$A:$A,mainzone)/1000+SUMIFS(raw_annual_energy!$E:$E,Lists!$S:$S,$C233,raw_annual_energy!$D:$D,G$221,raw_annual_energy!$A:$A,\"CAISO_NW_Hydro\")/1000","v":0},{"$f":"SUMIFS(raw_annual_energy!$E:$E,Lists!$S:$S,$C233,raw_annual_energy!$D:$D,H$221,raw_annual_energy!$A:$A,mainzone)/1000+SUMIFS(raw_annual_energy!$E:$E,Lists!$S:$S,$C233,raw_annual_energy!$D:$D,H$221,raw_annual_energy!$A:$A,\"CAISO_NW_Hydro\")/1000","v":0},{"$f":"SUMIFS(raw_annual_energy!$E:$E,Lists!$S:$S,$C233,raw_annual_energy!$D:$D,I$221,raw_annual_energy!$A:$A,mainzone)/1000+SUMIFS(raw_annual_energy!$E:$E,Lists!$S:$S,$C233,raw_annual_energy!$D:$D,I$221,raw_annual_energy!$A:$A,\"CAISO_NW_Hydro\")/1000","v":0},{"$f":"SUMIFS(raw_annual_energy!$E:$E,Lists!$S:$S,$C233,raw_annual_energy!$D:$D,J$221,raw_annual_energy!$A:$A,mainzone)/1000+SUMIFS(raw_annual_energy!$E:$E,Lists!$S:$S,$C233,raw_annual_energy!$D:$D,J$221,raw_annual_energy!$A:$A,\"CAISO_NW_Hydro\")/1000","v":-51.395795756773204},{"$f":"SUMIFS(raw_annual_energy!$E:$E,Lists!$S:$S,$C233,raw_annual_energy!$D:$D,K$221,raw_annual_energy!$A:$A,mainzone)/1000+SUMIFS(raw_annual_energy!$E:$E,Lists!$S:$S,$C233,raw_annual_energy!$D:$D,K$221,raw_annual_energy!$A:$A,\"CAISO_NW_Hydro\")/1000","v":-223.65038699437801},{"$f":"SUMIFS(raw_annual_energy!$E:$E,Lists!$S:$S,$C233,raw_annual_energy!$D:$D,L$221,raw_annual_energy!$A:$A,mainzone)/1000+SUMIFS(raw_annual_energy!$E:$E,Lists!$S:$S,$C233,raw_annual_energy!$D:$D,L$221,raw_annual_energy!$A:$A,\"CAISO_NW_Hydro\")/1000","v":-247.493102788252},{"$f":"SUMIFS(raw_annual_energy!$E:$E,Lists!$S:$S,$C233,raw_annual_energy!$D:$D,M$221,raw_annual_energy!$A:$A,mainzone)/1000+SUMIFS(raw_annual_energy!$E:$E,Lists!$S:$S,$C233,raw_annual_energy!$D:$D,M$221,raw_annual_energy!$A:$A,\"CAISO_NW_Hydro\")/1000","v":-342.93357745460901},{"$f":"SUMIFS(raw_annual_energy!$E:$E,Lists!$S:$S,$C233,raw_annual_energy!$D:$D,N$221,raw_annual_energy!$A:$A,mainzone)/1000+SUMIFS(raw_annual_energy!$E:$E,Lists!$S:$S,$C233,raw_annual_energy!$D:$D,N$221,raw_annual_energy!$A:$A,\"CAISO_NW_Hydro\")/1000","v":-431.66968196755698},{"$f":"SUMIFS(raw_annual_energy!$E:$E,Lists!$S:$S,$C233,raw_annual_energy!$D:$D,O$221,raw_annual_energy!$A:$A,mainzone)/1000+SUMIFS(raw_annual_energy!$E:$E,Lists!$S:$S,$C233,raw_annual_energy!$D:$D,O$221,raw_annual_energy!$A:$A,\"CAISO_NW_Hydro\")/1000","v":0},{"$f":"SUMIFS(raw_annual_energy!$E:$E,Lists!$S:$S,$C233,raw_annual_energy!$D:$D,P$221,raw_annual_energy!$A:$A,mainzone)/1000+SUMIFS(raw_annual_energy!$E:$E,Lists!$S:$S,$C233,raw_annual_energy!$D:$D,P$221,raw_annual_energy!$A:$A,\"CAISO_NW_Hydro\")/1000","v":-913.96695221878792},{"$f":"SUMIFS(raw_annual_energy!$E:$E,Lists!$S:$S,$C233,raw_annual_energy!$D:$D,Q$221,raw_annual_energy!$A:$A,mainzone)/1000+SUMIFS(raw_annual_energy!$E:$E,Lists!$S:$S,$C233,raw_annual_energy!$D:$D,Q$221,raw_annual_energy!$A:$A,\"CAISO_NW_Hydro\")/1000","v":0},{"$f":"SUMIFS(raw_annual_energy!$E:$E,Lists!$S:$S,$C233,raw_annual_energy!$D:$D,R$221,raw_annual_energy!$A:$A,mainzone)/1000+SUMIFS(raw_annual_energy!$E:$E,Lists!$S:$S,$C233,raw_annual_energy!$D:$D,R$221,raw_annual_energy!$A:$A,\"CAISO_NW_Hydro\")/1000","v":0},{"$f":"SUMIFS(raw_annual_energy!$E:$E,Lists!$S:$S,$C233,raw_annual_energy!$D:$D,S$221,raw_annual_energy!$A:$A,mainzone)/1000+SUMIFS(raw_annual_energy!$E:$E,Lists!$S:$S,$C233,raw_annual_energy!$D:$D,S$221,raw_annual_energy!$A:$A,\"CAISO_NW_Hydro\")/1000","v":0},{"$f":"SUMIFS(raw_annual_energy!$E:$E,Lists!$S:$S,$C233,raw_annual_energy!$D:$D,T$221,raw_annual_energy!$A:$A,mainzone)/1000+SUMIFS(raw_annual_energy!$E:$E,Lists!$S:$S,$C233,raw_annual_energy!$D:$D,T$221,raw_annual_energy!$A:$A,\"CAISO_NW_Hydro\")/1000","v":-2281.0918948137578},{"$f":"SUMIFS(raw_annual_energy!$E:$E,Lists!$S:$S,$C233,raw_annual_energy!$D:$D,U$221,raw_annual_energy!$A:$A,mainzone)/1000+SUMIFS(raw_annual_energy!$E:$E,Lists!$S:$S,$C233,raw_annual_energy!$D:$D,U$221,raw_annual_energy!$A:$A,\"CAISO_NW_Hydro\")/1000","v":0},{"$f":"SUMIFS(raw_annual_energy!$E:$E,Lists!$S:$S,$C233,raw_annual_energy!$D:$D,V$221,raw_annual_energy!$A:$A,mainzone)/1000+SUMIFS(raw_annual_energy!$E:$E,Lists!$S:$S,$C233,raw_annual_energy!$D:$D,V$221,raw_annual_energy!$A:$A,\"CAISO_NW_Hydro\")/1000","v":0},{"$f":"SUMIFS(raw_annual_energy!$E:$E,Lists!$S:$S,$C233,raw_annual_energy!$D:$D,W$221,raw_annual_energy!$A:$A,mainzone)/1000+SUMIFS(raw_annual_energy!$E:$E,Lists!$S:$S,$C233,raw_annual_energy!$D:$D,W$221,raw_annual_energy!$A:$A,\"CAISO_NW_Hydro\")/1000","v":0},{"$f":"SUMIFS(raw_annual_energy!$E:$E,Lists!$S:$S,$C233,raw_annual_energy!$D:$D,X$221,raw_annual_energy!$A:$A,mainzone)/1000+SUMIFS(raw_annual_energy!$E:$E,Lists!$S:$S,$C233,raw_annual_energy!$D:$D,X$221,raw_annual_energy!$A:$A,\"CAISO_NW_Hydro\")/1000","v":0},{"$f":"SUMIFS(raw_annual_energy!$E:$E,Lists!$S:$S,$C233,raw_annual_energy!$D:$D,Y$221,raw_annual_energy!$A:$A,mainzone)/1000+SUMIFS(raw_annual_energy!$E:$E,Lists!$S:$S,$C233,raw_annual_energy!$D:$D,Y$221,raw_annual_energy!$A:$A,\"CAISO_NW_Hydro\")/1000","v":0},{"$f":"SUMIFS(raw_annual_energy!$E:$E,Lists!$S:$S,$C233,raw_annual_energy!$D:$D,Z$221,raw_annual_energy!$A:$A,mainzone)/1000+SUMIFS(raw_annual_energy!$E:$E,Lists!$S:$S,$C233,raw_annual_energy!$D:$D,Z$221,raw_annual_energy!$A:$A,\"CAISO_NW_Hydro\")/1000","v":0},{"$f":"SUMIFS(raw_annual_energy!$E:$E,Lists!$S:$S,$C233,raw_annual_energy!$D:$D,AA$221,raw_annual_energy!$A:$A,mainzone)/1000+SUMIFS(raw_annual_energy!$E:$E,Lists!$S:$S,$C233,raw_annual_energy!$D:$D,AA$221,raw_annual_energy!$A:$A,\"CAISO_NW_Hydro\")/1000","v":0},{"$f":"SUMIFS(raw_annual_energy!$E:$E,Lists!$S:$S,$C233,raw_annual_energy!$D:$D,AB$221,raw_annual_energy!$A:$A,mainzone)/1000+SUMIFS(raw_annual_energy!$E:$E,Lists!$S:$S,$C233,raw_annual_energy!$D:$D,AB$221,raw_annual_energy!$A:$A,\"CAISO_NW_Hydro\")/1000","v":0},{"$f":"SUMIFS(raw_annual_energy!$E:$E,Lists!$S:$S,$C233,raw_annual_energy!$D:$D,AC$221,raw_annual_energy!$A:$A,mainzone)/1000+SUMIFS(raw_annual_energy!$E:$E,Lists!$S:$S,$C233,raw_annual_energy!$D:$D,AC$221,raw_annual_energy!$A:$A,\"CAISO_NW_Hydro\")/1000","v":0},{"$f":"SUMIFS(raw_annual_energy!$E:$E,Lists!$S:$S,$C233,raw_annual_energy!$D:$D,AD$221,raw_annual_energy!$A:$A,mainzone)/1000+SUMIFS(raw_annual_energy!$E:$E,Lists!$S:$S,$C233,raw_annual_energy!$D:$D,AD$221,raw_annual_energy!$A:$A,\"CAISO_NW_Hydro\")/1000","v":0},{"$f":"SUMIFS(raw_annual_energy!$E:$E,Lists!$S:$S,$C233,raw_annual_energy!$D:$D,AE$221,raw_annual_energy!$A:$A,mainzone)/1000+SUMIFS(raw_annual_energy!$E:$E,Lists!$S:$S,$C233,raw_annual_energy!$D:$D,AE$221,raw_annual_energy!$A:$A,\"CAISO_NW_Hydro\")/1000","v":0},{"$f":"SUMIFS(raw_annual_energy!$E:$E,Lists!$S:$S,$C233,raw_annual_energy!$D:$D,AF$221,raw_annual_energy!$A:$A,mainzone)/1000+SUMIFS(raw_annual_energy!$E:$E,Lists!$S:$S,$C233,raw_annual_energy!$D:$D,AF$221,raw_annual_energy!$A:$A,\"CAISO_NW_Hydro\")/1000","v":0},{"$f":"SUMIFS(raw_annual_energy!$E:$E,Lists!$S:$S,$C233,raw_annual_energy!$D:$D,AG$221,raw_annual_energy!$A:$A,mainzone)/1000+SUMIFS(raw_annual_energy!$E:$E,Lists!$S:$S,$C233,raw_annual_energy!$D:$D,AG$221,raw_annual_energy!$A:$A,\"CAISO_NW_Hydro\")/1000","v":0},{"$f":"SUMIFS(raw_annual_energy!$E:$E,Lists!$S:$S,$C233,raw_annual_energy!$D:$D,AH$221,raw_annual_energy!$A:$A,mainzone)/1000+SUMIFS(raw_annual_energy!$E:$E,Lists!$S:$S,$C233,raw_annual_energy!$D:$D,AH$221,raw_annual_energy!$A:$A,\"CAISO_NW_Hydro\")/1000","v":0},{"$f":"SUMIFS(raw_annual_energy!$E:$E,Lists!$S:$S,$C233,raw_annual_energy!$D:$D,AI$221,raw_annual_energy!$A:$A,mainzone)/1000+SUMIFS(raw_annual_energy!$E:$E,Lists!$S:$S,$C233,raw_annual_energy!$D:$D,AI$221,raw_annual_energy!$A:$A,\"CAISO_NW_Hydro\")/1000","v":-2250.9377877271199},{"$f":"SUMIFS(raw_annual_energy!$E:$E,Lists!$S:$S,$C233,raw_annual_energy!$D:$D,AJ$221,raw_annual_energy!$A:$A,mainzone)/1000+SUMIFS(raw_annual_energy!$E:$E,Lists!$S:$S,$C233,raw_annual_energy!$D:$D,AJ$221,raw_annual_energy!$A:$A,\"CAISO_NW_Hydro\")/1000","v":0},{"$f":"SUMIFS(raw_annual_energy!$E:$E,Lists!$S:$S,$C233,raw_annual_energy!$D:$D,AK$221,raw_annual_energy!$A:$A,mainzone)/1000+SUMIFS(raw_annual_energy!$E:$E,Lists!$S:$S,$C233,raw_annual_energy!$D:$D,AK$221,raw_annual_energy!$A:$A,\"CAISO_NW_Hydro\")/1000","v":0},{"$f":"SUMIFS(raw_annual_energy!$E:$E,Lists!$S:$S,$C233,raw_annual_energy!$D:$D,AL$221,raw_annual_energy!$A:$A,mainzone)/1000+SUMIFS(raw_annual_energy!$E:$E,Lists!$S:$S,$C233,raw_annual_energy!$D:$D,AL$221,raw_annual_energy!$A:$A,\"CAISO_NW_Hydro\")/1000","v":0},{"$f":"SUMIFS(raw_annual_energy!$E:$E,Lists!$S:$S,$C233,raw_annual_energy!$D:$D,AM$221,raw_annual_energy!$A:$A,mainzone)/1000+SUMIFS(raw_annual_energy!$E:$E,Lists!$S:$S,$C233,raw_annual_energy!$D:$D,AM$221,raw_annual_energy!$A:$A,\"CAISO_NW_Hydro\")/1000","v":0},{"$f":"SUMIFS(raw_annual_energy!$E:$E,Lists!$S:$S,$C233,raw_annual_energy!$D:$D,AN$221,raw_annual_energy!$A:$A,mainzone)/1000+SUMIFS(raw_annual_energy!$E:$E,Lists!$S:$S,$C233,raw_annual_energy!$D:$D,AN$221,raw_annual_energy!$A:$A,\"CAISO_NW_Hydro\")/1000","v":0}]
[null,null,"Hydro","GWh",{"$f":"SUMIFS(raw_annual_energy!$E:$E,Lists!$S:$S,$C234,raw_annual_energy!$D:$D,E$221,raw_annual_energy!$A:$A,mainzone)/1000+SUMIFS(raw_annual_energy!$E:$E,Lists!$S:$S,$C234,raw_annual_energy!$D:$D,E$221,raw_annual_energy!$A:$A,\"CAISO_NW_Hydro\")/1000","v":0},{"$f":"SUMIFS(raw_annual_energy!$E:$E,Lists!$S:$S,$C234,raw_annual_energy!$D:$D,F$221,raw_annual_energy!$A:$A,mainzone)/1000+SUMIFS(raw_annual_energy!$E:$E,Lists!$S:$S,$C234,raw_annual_energy!$D:$D,F$221,raw_annual_energy!$A:$A,\"CAISO_NW_Hydro\")/1000","v":0},{"$f":"SUMIFS(raw_annual_energy!$E:$E,Lists!$S:$S,$C234,raw_annual_energy!$D:$D,G$221,raw_annual_energy!$A:$A,mainzone)/1000+SUMIFS(raw_annual_energy!$E:$E,Lists!$S:$S,$C234,raw_annual_energy!$D:$D,G$221,raw_annual_energy!$A:$A,\"CAISO_NW_Hydro\")/1000","v":0},{"$f":"SUMIFS(raw_annual_energy!$E:$E,Lists!$S:$S,$C234,raw_annual_energy!$D:$D,H$221,raw_annual_energy!$A:$A,mainzone)/1000+SUMIFS(raw_annual_energy!$E:$E,Lists!$S:$S,$C234,raw_annual_energy!$D:$D,H$221,raw_annual_energy!$A:$A,\"CAISO_NW_Hydro\")/1000","v":0},{"$f":"SUMIFS(raw_annual_energy!$E:$E,Lists!$S:$S,$C234,raw_annual_energy!$D:$D,I$221,raw_annual_energy!$A:$A,mainzone)/1000+SUMIFS(raw_annual_energy!$E:$E,Lists!$S:$S,$C234,raw_annual_energy!$D:$D,I$221,raw_annual_energy!$A:$A,\"CAISO_NW_Hydro\")/1000","v":0},{"$f":"SUMIFS(raw_annual_energy!$E:$E,Lists!$S:$S,$C234,raw_annual_energy!$D:$D,J$221,raw_annual_energy!$A:$A,mainzone)/1000+SUMIFS(raw_annual_energy!$E:$E,Lists!$S:$S,$C234,raw_annual_energy!$D:$D,J$221,raw_annual_energy!$A:$A,\"CAISO_NW_Hydro\")/1000","v":17905.547080526499},{"$f":"SUMIFS(raw_annual_energy!$E:$E,Lists!$S:$S,$C234,raw_annual_energy!$D:$D,K$221,raw_annual_energy!$A:$A,mainzone)/1000+SUMIFS(raw_annual_energy!$E:$E,Lists!$S:$S,$C234,raw_annual_energy!$D:$D,K$221,raw_annual_energy!$A:$A,\"CAISO_NW_Hydro\")/1000","v":17704.043076751899},{"$f":"SUMIFS(raw_annual_energy!$E:$E,Lists!$S:$S,$C234,raw_annual_energy!$D:$D,L$221,raw_annual_energy!$A:$A,mainzone)/1000+SUMIFS(raw_annual_energy!$E:$E,Lists!$S:$S,$C234,raw_annual_energy!$D:$D,L$221,raw_annual_energy!$A:$A,\"CAISO_NW_Hydro\")/1000","v":17640.053945241201},{"$f":"SUMIFS(raw_annual_energy!$E:$E,Lists!$S:$S,$C234,raw_annual_energy!$D:$D,M$221,raw_annual_energy!$A:$A,mainzone)/1000+SUMIFS(raw_annual_energy!$E:$E,Lists!$S:$S,$C234,raw_annual_energy!$D:$D,M$221,raw_annual_energy!$A:$A,\"CAISO_NW_Hydro\")/1000","v":17564.061663358101},{"$f":"SUMIFS(raw_annual_energy!$E:$E,Lists!$S:$S,$C234,raw_annual_energy!$D:$D,N$221,raw_annual_energy!$A:$A,mainzone)/1000+SUMIFS(raw_annual_energy!$E:$E,Lists!$S:$S,$C234,raw_annual_energy!$D:$D,N$221,raw_annual_energy!$A:$A,\"CAISO_NW_Hydro\")/1000","v":17514.747719701001},{"$f":"SUMIFS(raw_annual_energy!$E:$E,Lists!$S:$S,$C234,raw_annual_energy!$D:$D,O$221,raw_annual_energy!$A:$A,mainzone)/1000+SUMIFS(raw_annual_energy!$E:$E,Lists!$S:$S,$C234,raw_annual_energy!$D:$D,O$221,raw_annual_energy!$A:$A,\"CAISO_NW_Hydro\")/1000","v":0},{"$f":"SUMIFS(raw_annual_energy!$E:$E,Lists!$S:$S,$C234,raw_annual_energy!$D:$D,P$221,raw_annual_energy!$A:$A,mainzone)/1000+SUMIFS(raw_annual_energy!$E:$E,Lists!$S:$S,$C234,raw_annual_energy!$D:$D,P$221,raw_annual_energy!$A:$A,\"CAISO_NW_Hydro\")/1000","v":17599.655419418701},{"$f":"SUMIFS(raw_annual_energy!$E:$E,Lists!$S:$S,$C234,raw_annual_energy!$D:$D,Q$221,raw_annual_energy!$A:$A,mainzone)/1000+SUMIFS(raw_annual_energy!$E:$E,Lists!$S:$S,$C234,raw_annual_energy!$D:$D,Q$221,raw_annual_energy!$A:$A,\"CAISO_NW_Hydro\")/1000","v":0},{"$f":"SUMIFS(raw_annual_energy!$E:$E,Lists!$S:$S,$C234,raw_annual_energy!$D:$D,R$221,raw_annual_energy!$A:$A,mainzone)/1000+SUMIFS(raw_annual_energy!$E:$E,Lists!$S:$S,$C234,raw_annual_energy!$D:$D,R$221,raw_annual_energy!$A:$A,\"CAISO_NW_Hydro\")/1000","v":0},{"$f":"SUMIFS(raw_annual_energy!$E:$E,Lists!$S:$S,$C234,raw_annual_energy!$D:$D,S$221,raw_annual_energy!$A:$A,mainzone)/1000+SUMIFS(raw_annual_energy!$E:$E,Lists!$S:$S,$C234,raw_annual_energy!$D:$D,S$221,raw_annual_energy!$A:$A,\"CAISO_NW_Hydro\")/1000","v":0},{"$f":"SUMIFS(raw_annual_energy!$E:$E,Lists!$S:$S,$C234,raw_annual_energy!$D:$D,T$221,raw_annual_energy!$A:$A,mainzone)/1000+SUMIFS(raw_annual_energy!$E:$E,Lists!$S:$S,$C234,raw_annual_energy!$D:$D,T$221,raw_annual_energy!$A:$A,\"CAISO_NW_Hydro\")/1000","v":18342.8914366709},{"$f":"SUMIFS(raw_annual_energy!$E:$E,Lists!$S:$S,$C234,raw_annual_energy!$D:$D,U$221,raw_annual_energy!$A:$A,mainzone)/1000+SUMIFS(raw_annual_energy!$E:$E,Lists!$S:$S,$C234,raw_annual_energy!$D:$D,U$221,raw_annual_energy!$A:$A,\"CAISO_NW_Hydro\")/1000","v":0},{"$f":"SUMIFS(raw_annual_energy!$E:$E,Lists!$S:$S,$C234,raw_annual_energy!$D:$D,V$221,raw_annual_energy!$A:$A,mainzone)/1000+SUMIFS(raw_annual_energy!$E:$E,Lists!$S:$S,$C234,raw_annual_energy!$D:$D,V$221,raw_annual_energy!$A:$A,\"CAISO_NW_Hydro\")/1000","v":0},{"$f":"SUMIFS(raw_annual_energy!$E:$E,Lists!$S:$S,$C234,raw_annual_energy!$D:$D,W$221,raw_annual_energy!$A:$A,mainzone)/1000+SUMIFS(raw_annual_energy!$E:$E,Lists!$S:$S,$C234,raw_annual_energy!$D:$D,W$221,raw_annual_energy!$A:$A,\"CAISO_NW_Hydro\")/1000","v":0},{"$f":"SUMIFS(raw_annual_energy!$E:$E,Lists!$S:$S,$C234,raw_annual_energy!$D:$D,X$221,raw_annual_energy!$A:$A,mainzone)/1000+SUMIFS(raw_annual_energy!$E:$E,Lists!$S:$S,$C234,raw_annual_energy!$D:$D,X$221,raw_annual_energy!$A:$A,\"CAISO_NW_Hydro\")/1000","v":0},{"$f":"SUMIFS(raw_annual_energy!$E:$E,Lists!$S:$S,$C234,raw_annual_energy!$D:$D,Y$221,raw_annual_energy!$A:$A,mainzone)/1000+SUMIFS(raw_annual_energy!$E:$E,Lists!$S:$S,$C234,raw_annual_energy!$D:$D,Y$221,raw_annual_energy!$A:$A,\"CAISO_NW_Hydro\")/1000","v":0},{"$f":"SUMIFS(raw_annual_energy!$E:$E,Lists!$S:$S,$C234,raw_annual_energy!$D:$D,Z$221,raw_annual_energy!$A:$A,mainzone)/1000+SUMIFS(raw_annual_energy!$E:$E,Lists!$S:$S,$C234,raw_annual_energy!$D:$D,Z$221,raw_annual_energy!$A:$A,\"CAISO_NW_Hydro\")/1000","v":0},{"$f":"SUMIFS(raw_annual_energy!$E:$E,Lists!$S:$S,$C234,raw_annual_energy!$D:$D,AA$221,raw_annual_energy!$A:$A,mainzone)/1000+SUMIFS(raw_annual_energy!$E:$E,Lists!$S:$S,$C234,raw_annual_energy!$D:$D,AA$221,raw_annual_energy!$A:$A,\"CAISO_NW_Hydro\")/1000","v":0},{"$f":"SUMIFS(raw_annual_energy!$E:$E,Lists!$S:$S,$C234,raw_annual_energy!$D:$D,AB$221,raw_annual_energy!$A:$A,mainzone)/1000+SUMIFS(raw_annual_energy!$E:$E,Lists!$S:$S,$C234,raw_annual_energy!$D:$D,AB$221,raw_annual_energy!$A:$A,\"CAISO_NW_Hydro\")/1000","v":0},{"$f":"SUMIFS(raw_annual_energy!$E:$E,Lists!$S:$S,$C234,raw_annual_energy!$D:$D,AC$221,raw_annual_energy!$A:$A,mainzone)/1000+SUMIFS(raw_annual_energy!$E:$E,Lists!$S:$S,$C234,raw_annual_energy!$D:$D,AC$221,raw_annual_energy!$A:$A,\"CAISO_NW_Hydro\")/1000","v":0},{"$f":"SUMIFS(raw_annual_energy!$E:$E,Lists!$S:$S,$C234,raw_annual_energy!$D:$D,AD$221,raw_annual_energy!$A:$A,mainzone)/1000+SUMIFS(raw_annual_energy!$E:$E,Lists!$S:$S,$C234,raw_annual_energy!$D:$D,AD$221,raw_annual_energy!$A:$A,\"CAISO_NW_Hydro\")/1000","v":0},{"$f":"SUMIFS(raw_annual_energy!$E:$E,Lists!$S:$S,$C234,raw_annual_energy!$D:$D,AE$221,raw_annual_energy!$A:$A,mainzone)/1000+SUMIFS(raw_annual_energy!$E:$E,Lists!$S:$S,$C234,raw_annual_energy!$D:$D,AE$221,raw_annual_energy!$A:$A,\"CAISO_NW_Hydro\")/1000","v":0},{"$f":"SUMIFS(raw_annual_energy!$E:$E,Lists!$S:$S,$C234,raw_annual_energy!$D:$D,AF$221,raw_annual_energy!$A:$A,mainzone)/1000+SUMIFS(raw_annual_energy!$E:$E,Lists!$S:$S,$C234,raw_annual_energy!$D:$D,AF$221,raw_annual_energy!$A:$A,\"CAISO_NW_Hydro\")/1000","v":0},{"$f":"SUMIFS(raw_annual_energy!$E:$E,Lists!$S:$S,$C234,raw_annual_energy!$D:$D,AG$221,raw_annual_energy!$A:$A,mainzone)/1000+SUMIFS(raw_annual_energy!$E:$E,Lists!$S:$S,$C234,raw_annual_energy!$D:$D,AG$221,raw_annual_energy!$A:$A,\"CAISO_NW_Hydro\")/1000","v":0},{"$f":"SUMIFS(raw_annual_energy!$E:$E,Lists!$S:$S,$C234,raw_annual_energy!$D:$D,AH$221,raw_annual_energy!$A:$A,mainzone)/1000+SUMIFS(raw_annual_energy!$E:$E,Lists!$S:$S,$C234,raw_annual_energy!$D:$D,AH$221,raw_annual_energy!$A:$A,\"CAISO_NW_Hydro\")/1000","v":0},{"$f":"SUMIFS(raw_annual_energy!$E:$E,Lists!$S:$S,$C234,raw_annual_energy!$D:$D,AI$221,raw_annual_energy!$A:$A,mainzone)/1000+SUMIFS(raw_annual_energy!$E:$E,Lists!$S:$S,$C234,raw_annual_energy!$D:$D,AI$221,raw_annual_energy!$A:$A,\"CAISO_NW_Hydro\")/1000","v":18713.820497820001},{"$f":"SUMIFS(raw_annual_energy!$E:$E,Lists!$S:$S,$C234,raw_annual_energy!$D:$D,AJ$221,raw_annual_energy!$A:$A,mainzone)/1000+SUMIFS(raw_annual_energy!$E:$E,Lists!$S:$S,$C234,raw_annual_energy!$D:$D,AJ$221,raw_annual_energy!$A:$A,\"CAISO_NW_Hydro\")/1000","v":0},{"$f":"SUMIFS(raw_annual_energy!$E:$E,Lists!$S:$S,$C234,raw_annual_energy!$D:$D,AK$221,raw_annual_energy!$A:$A,mainzone)/1000+SUMIFS(raw_annual_energy!$E:$E,Lists!$S:$S,$C234,raw_annual_energy!$D:$D,AK$221,raw_annual_energy!$A:$A,\"CAISO_NW_Hydro\")/1000","v":0},{"$f":"SUMIFS(raw_annual_energy!$E:$E,Lists!$S:$S,$C234,raw_annual_energy!$D:$D,AL$221,raw_annual_energy!$A:$A,mainzone)/1000+SUMIFS(raw_annual_energy!$E:$E,Lists!$S:$S,$C234,raw_annual_energy!$D:$D,AL$221,raw_annual_energy!$A:$A,\"CAISO_NW_Hydro\")/1000","v":0},{"$f":"SUMIFS(raw_annual_energy!$E:$E,Lists!$S:$S,$C234,raw_annual_energy!$D:$D,AM$221,raw_annual_energy!$A:$A,mainzone)/1000+SUMIFS(raw_annual_energy!$E:$E,Lists!$S:$S,$C234,raw_annual_energy!$D:$D,AM$221,raw_annual_energy!$A:$A,\"CAISO_NW_Hydro\")/1000","v":0},{"$f":"SUMIFS(raw_annual_energy!$E:$E,Lists!$S:$S,$C234,raw_annual_energy!$D:$D,AN$221,raw_annual_energy!$A:$A,mainzone)/1000+SUMIFS(raw_annual_energy!$E:$E,Lists!$S:$S,$C234,raw_annual_energy!$D:$D,AN$221,raw_annual_energy!$A:$A,\"CAISO_NW_Hydro\")/1000","v":0}]
[null,null,"CAISO_CCGT1","GWh",{"$f":"SUMIFS(raw_annual_energy!$F:$F,Lists!$S:$S,$C235,raw_annual_energy!$D:$D,E$221,raw_annual_energy!$A:$A,mainzone)/1000+SUMIFS(raw_annual_energy!$F:$F,Lists!$S:$S,'Portfolio Analytics'!$C235,raw_annual_energy!$D:$D,E$221,raw_annual_energy!$A:$A,\"CAISO_NW_Hydro\")/1000","v":0},{"$f":"SUMIFS(raw_annual_energy!$F:$F,Lists!$S:$S,$C235,raw_annual_energy!$D:$D,F$221,raw_annual_energy!$A:$A,mainzone)/1000+SUMIFS(raw_annual_energy!$F:$F,Lists!$S:$S,'Portfolio Analytics'!$C235,raw_annual_energy!$D:$D,F$221,raw_annual_energy!$A:$A,\"CAISO_NW_Hydro\")/1000","v":0},{"$f":"SUMIFS(raw_annual_energy!$F:$F,Lists!$S:$S,$C235,raw_annual_energy!$D:$D,G$221,raw_annual_energy!$A:$A,mainzone)/1000+SUMIFS(raw_annual_energy!$F:$F,Lists!$S:$S,'Portfolio Analytics'!$C235,raw_annual_energy!$D:$D,G$221,raw_annual_energy!$A:$A,\"CAISO_NW_Hydro\")/1000","v":0},{"$f":"SUMIFS(raw_annual_energy!$F:$F,Lists!$S:$S,$C235,raw_annual_energy!$D:$D,H$221,raw_annual_energy!$A:$A,mainzone)/1000+SUMIFS(raw_annual_energy!$F:$F,Lists!$S:$S,'Portfolio Analytics'!$C235,raw_annual_energy!$D:$D,H$221,raw_annual_energy!$A:$A,\"CAISO_NW_Hydro\")/1000","v":0},{"$f":"SUMIFS(raw_annual_energy!$F:$F,Lists!$S:$S,$C235,raw_annual_energy!$D:$D,I$221,raw_annual_energy!$A:$A,mainzone)/1000+SUMIFS(raw_annual_energy!$F:$F,Lists!$S:$S,'Portfolio Analytics'!$C235,raw_annual_energy!$D:$D,I$221,raw_annual_energy!$A:$A,\"CAISO_NW_Hydro\")/1000","v":0},{"$f":"SUMIFS(raw_annual_energy!$F:$F,Lists!$S:$S,$C235,raw_annual_energy!$D:$D,J$221,raw_annual_energy!$A:$A,mainzone)/1000+SUMIFS(raw_annual_energy!$F:$F,Lists!$S:$S,'Portfolio Analytics'!$C235,raw_annual_energy!$D:$D,J$221,raw_annual_energy!$A:$A,\"CAISO_NW_Hydro\")/1000","v":536.65707506442106},{"$f":"SUMIFS(raw_annual_energy!$F:$F,Lists!$S:$S,$C235,raw_annual_energy!$D:$D,K$221,raw_annual_energy!$A:$A,mainzone)/1000+SUMIFS(raw_annual_energy!$F:$F,Lists!$S:$S,'Portfolio Analytics'!$C235,raw_annual_energy!$D:$D,K$221,raw_annual_energy!$A:$A,\"CAISO_NW_Hydro\")/1000","v":563.25188039981094},{"$f":"SUMIFS(raw_annual_energy!$F:$F,Lists!$S:$S,$C235,raw_annual_energy!$D:$D,L$221,raw_annual_energy!$A:$A,mainzone)/1000+SUMIFS(raw_annual_energy!$F:$F,Lists!$S:$S,'Portfolio Analytics'!$C235,raw_annual_energy!$D:$D,L$221,raw_annual_energy!$A:$A,\"CAISO_NW_Hydro\")/1000","v":507.58796320610401},{"$f":"SUMIFS(raw_annual_energy!$F:$F,Lists!$S:$S,$C235,raw_annual_energy!$D:$D,M$221,raw_annual_energy!$A:$A,mainzone)/1000+SUMIFS(raw_annual_energy!$F:$F,Lists!$S:$S,'Portfolio Analytics'!$C235,raw_annual_energy!$D:$D,M$221,raw_annual_energy!$A:$A,\"CAISO_NW_Hydro\")/1000","v":477.98788030610598},{"$f":"SUMIFS(raw_annual_energy!$F:$F,Lists!$S:$S,$C235,raw_annual_energy!$D:$D,N$221,raw_annual_energy!$A:$A,mainzone)/1000+SUMIFS(raw_annual_energy!$F:$F,Lists!$S:$S,'Portfolio Analytics'!$C235,raw_annual_energy!$D:$D,N$221,raw_annual_energy!$A:$A,\"CAISO_NW_Hydro\")/1000","v":464.77051219546996},{"$f":"SUMIFS(raw_annual_energy!$F:$F,Lists!$S:$S,$C235,raw_annual_energy!$D:$D,O$221,raw_annual_energy!$A:$A,mainzone)/1000+SUMIFS(raw_annual_energy!$F:$F,Lists!$S:$S,'Portfolio Analytics'!$C235,raw_annual_energy!$D:$D,O$221,raw_annual_energy!$A:$A,\"CAISO_NW_Hydro\")/1000","v":0},{"$f":"SUMIFS(raw_annual_energy!$F:$F,Lists!$S:$S,$C235,raw_annual_energy!$D:$D,P$221,raw_annual_energy!$A:$A,mainzone)/1000+SUMIFS(raw_annual_energy!$F:$F,Lists!$S:$S,'Portfolio Analytics'!$C235,raw_annual_energy!$D:$D,P$221,raw_annual_energy!$A:$A,\"CAISO_NW_Hydro\")/1000","v":411.13701835589598},{"$f":"SUMIFS(raw_annual_energy!$F:$F,Lists!$S:$S,$C235,raw_annual_energy!$D:$D,Q$221,raw_annual_energy!$A:$A,mainzone)/1000+SUMIFS(raw_annual_energy!$F:$F,Lists!$S:$S,'Portfolio Analytics'!$C235,raw_annual_energy!$D:$D,Q$221,raw_annual_energy!$A:$A,\"CAISO_NW_Hydro\")/1000","v":0},{"$f":"SUMIFS(raw_annual_energy!$F:$F,Lists!$S:$S,$C235,raw_annual_energy!$D:$D,R$221,raw_annual_energy!$A:$A,mainzone)/1000+SUMIFS(raw_annual_energy!$F:$F,Lists!$S:$S,'Portfolio Analytics'!$C235,raw_annual_energy!$D:$D,R$221,raw_annual_energy!$A:$A,\"CAISO_NW_Hydro\")/1000","v":0},{"$f":"SUMIFS(raw_annual_energy!$F:$F,Lists!$S:$S,$C235,raw_annual_energy!$D:$D,S$221,raw_annual_energy!$A:$A,mainzone)/1000+SUMIFS(raw_annual_energy!$F:$F,Lists!$S:$S,'Portfolio Analytics'!$C235,raw_annual_energy!$D:$D,S$221,raw_annual_energy!$A:$A,\"CAISO_NW_Hydro\")/1000","v":0},{"$f":"SUMIFS(raw_annual_energy!$F:$F,Lists!$S:$S,$C235,raw_annual_energy!$D:$D,T$221,raw_annual_energy!$A:$A,mainzone)/1000+SUMIFS(raw_annual_energy!$F:$F,Lists!$S:$S,'Portfolio Analytics'!$C235,raw_annual_energy!$D:$D,T$221,raw_annual_energy!$A:$A,\"CAISO_NW_Hydro\")/1000","v":218.12257512441198},{"$f":"SUMIFS(raw_annual_energy!$F:$F,Lists!$S:$S,$C235,raw_annual_energy!$D:$D,U$221,raw_annual_energy!$A:$A,mainzone)/1000+SUMIFS(raw_annual_energy!$F:$F,Lists!$S:$S,'Portfolio Analytics'!$C235,raw_annual_energy!$D:$D,U$221,raw_annual_energy!$A:$A,\"CAISO_NW_Hydro\")/1000","v":0},{"$f":"SUMIFS(raw_annual_energy!$F:$F,Lists!$S:$S,$C235,raw_annual_energy!$D:$D,V$221,raw_annual_energy!$A:$A,mainzone)/1000+SUMIFS(raw_annual_energy!$F:$F,Lists!$S:$S,'Portfolio Analytics'!$C235,raw_annual_energy!$D:$D,V$221,raw_annual_energy!$A:$A,\"CAISO_NW_Hydro\")/1000","v":0},{"$f":"SUMIFS(raw_annual_energy!$F:$F,Lists!$S:$S,$C235,raw_annual_energy!$D:$D,W$221,raw_annual_energy!$A:$A,mainzone)/1000+SUMIFS(raw_annual_energy!$F:$F,Lists!$S:$S,'Portfolio Analytics'!$C235,raw_annual_energy!$D:$D,W$221,raw_annual_energy!$A:$A,\"CAISO_NW_Hydro\")/1000","v":0},{"$f":"SUMIFS(raw_annual_energy!$F:$F,Lists!$S:$S,$C235,raw_annual_energy!$D:$D,X$221,raw_annual_energy!$A:$A,mainzone)/1000+SUMIFS(raw_annual_energy!$F:$F,Lists!$S:$S,'Portfolio Analytics'!$C235,raw_annual_energy!$D:$D,X$221,raw_annual_energy!$A:$A,\"CAISO_NW_Hydro\")/1000","v":0},{"$f":"SUMIFS(raw_annual_energy!$F:$F,Lists!$S:$S,$C235,raw_annual_energy!$D:$D,Y$221,raw_annual_energy!$A:$A,mainzone)/1000+SUMIFS(raw_annual_energy!$F:$F,Lists!$S:$S,'Portfolio Analytics'!$C235,raw_annual_energy!$D:$D,Y$221,raw_annual_energy!$A:$A,\"CAISO_NW_Hydro\")/1000","v":0},{"$f":"SUMIFS(raw_annual_energy!$F:$F,Lists!$S:$S,$C235,raw_annual_energy!$D:$D,Z$221,raw_annual_energy!$A:$A,mainzone)/1000+SUMIFS(raw_annual_energy!$F:$F,Lists!$S:$S,'Portfolio Analytics'!$C235,raw_annual_energy!$D:$D,Z$221,raw_annual_energy!$A:$A,\"CAISO_NW_Hydro\")/1000","v":0},{"$f":"SUMIFS(raw_annual_energy!$F:$F,Lists!$S:$S,$C235,raw_annual_energy!$D:$D,AA$221,raw_annual_energy!$A:$A,mainzone)/1000+SUMIFS(raw_annual_energy!$F:$F,Lists!$S:$S,'Portfolio Analytics'!$C235,raw_annual_energy!$D:$D,AA$221,raw_annual_energy!$A:$A,\"CAISO_NW_Hydro\")/1000","v":0},{"$f":"SUMIFS(raw_annual_energy!$F:$F,Lists!$S:$S,$C235,raw_annual_energy!$D:$D,AB$221,raw_annual_energy!$A:$A,mainzone)/1000+SUMIFS(raw_annual_energy!$F:$F,Lists!$S:$S,'Portfolio Analytics'!$C235,raw_annual_energy!$D:$D,AB$221,raw_annual_energy!$A:$A,\"CAISO_NW_Hydro\")/1000","v":0},{"$f":"SUMIFS(raw_annual_energy!$F:$F,Lists!$S:$S,$C235,raw_annual_energy!$D:$D,AC$221,raw_annual_energy!$A:$A,mainzone)/1000+SUMIFS(raw_annual_energy!$F:$F,Lists!$S:$S,'Portfolio Analytics'!$C235,raw_annual_energy!$D:$D,AC$221,raw_annual_energy!$A:$A,\"CAISO_NW_Hydro\")/1000","v":0},{"$f":"SUMIFS(raw_annual_energy!$F:$F,Lists!$S:$S,$C235,raw_annual_energy!$D:$D,AD$221,raw_annual_energy!$A:$A,mainzone)/1000+SUMIFS(raw_annual_energy!$F:$F,Lists!$S:$S,'Portfolio Analytics'!$C235,raw_annual_energy!$D:$D,AD$221,raw_annual_energy!$A:$A,\"CAISO_NW_Hydro\")/1000","v":0},{"$f":"SUMIFS(raw_annual_energy!$F:$F,Lists!$S:$S,$C235,raw_annual_energy!$D:$D,AE$221,raw_annual_energy!$A:$A,mainzone)/1000+SUMIFS(raw_annual_energy!$F:$F,Lists!$S:$S,'Portfolio Analytics'!$C235,raw_annual_energy!$D:$D,AE$221,raw_annual_energy!$A:$A,\"CAISO_NW_Hydro\")/1000","v":0},{"$f":"SUMIFS(raw_annual_energy!$F:$F,Lists!$S:$S,$C235,raw_annual_energy!$D:$D,AF$221,raw_annual_energy!$A:$A,mainzone)/1000+SUMIFS(raw_annual_energy!$F:$F,Lists!$S:$S,'Portfolio Analytics'!$C235,raw_annual_energy!$D:$D,AF$221,raw_annual_energy!$A:$A,\"CAISO_NW_Hydro\")/1000","v":0},{"$f":"SUMIFS(raw_annual_energy!$F:$F,Lists!$S:$S,$C235,raw_annual_energy!$D:$D,AG$221,raw_annual_energy!$A:$A,mainzone)/1000+SUMIFS(raw_annual_energy!$F:$F,Lists!$S:$S,'Portfolio Analytics'!$C235,raw_annual_energy!$D:$D,AG$221,raw_annual_energy!$A:$A,\"CAISO_NW_Hydro\")/1000","v":0},{"$f":"SUMIFS(raw_annual_energy!$F:$F,Lists!$S:$S,$C235,raw_annual_energy!$D:$D,AH$221,raw_annual_energy!$A:$A,mainzone)/1000+SUMIFS(raw_annual_energy!$F:$F,Lists!$S:$S,'Portfolio Analytics'!$C235,raw_annual_energy!$D:$D,AH$221,raw_annual_energy!$A:$A,\"CAISO_NW_Hydro\")/1000","v":0},{"$f":"SUMIFS(raw_annual_energy!$F:$F,Lists!$S:$S,$C235,raw_annual_energy!$D:$D,AI$221,raw_annual_energy!$A:$A,mainzone)/1000+SUMIFS(raw_annual_energy!$F:$F,Lists!$S:$S,'Portfolio Analytics'!$C235,raw_annual_energy!$D:$D,AI$221,raw_annual_energy!$A:$A,\"CAISO_NW_Hydro\")/1000","v":173.73410926251501},{"$f":"SUMIFS(raw_annual_energy!$F:$F,Lists!$S:$S,$C235,raw_annual_energy!$D:$D,AJ$221,raw_annual_energy!$A:$A,mainzone)/1000+SUMIFS(raw_annual_energy!$F:$F,Lists!$S:$S,'Portfolio Analytics'!$C235,raw_annual_energy!$D:$D,AJ$221,raw_annual_energy!$A:$A,\"CAISO_NW_Hydro\")/1000","v":0},{"$f":"SUMIFS(raw_annual_energy!$F:$F,Lists!$S:$S,$C235,raw_annual_energy!$D:$D,AK$221,raw_annual_energy!$A:$A,mainzone)/1000+SUMIFS(raw_annual_energy!$F:$F,Lists!$S:$S,'Portfolio Analytics'!$C235,raw_annual_energy!$D:$D,AK$221,raw_annual_energy!$A:$A,\"CAISO_NW_Hydro\")/1000","v":0},{"$f":"SUMIFS(raw_annual_energy!$F:$F,Lists!$S:$S,$C235,raw_annual_energy!$D:$D,AL$221,raw_annual_energy!$A:$A,mainzone)/1000+SUMIFS(raw_annual_energy!$F:$F,Lists!$S:$S,'Portfolio Analytics'!$C235,raw_annual_energy!$D:$D,AL$221,raw_annual_energy!$A:$A,\"CAISO_NW_Hydro\")/1000","v":0},{"$f":"SUMIFS(raw_annual_energy!$F:$F,Lists!$S:$S,$C235,raw_annual_energy!$D:$D,AM$221,raw_annual_energy!$A:$A,mainzone)/1000+SUMIFS(raw_annual_energy!$F:$F,Lists!$S:$S,'Portfolio Analytics'!$C235,raw_annual_energy!$D:$D,AM$221,raw_annual_energy!$A:$A,\"CAISO_NW_Hydro\")/1000","v":0},{"$f":"SUMIFS(raw_annual_energy!$F:$F,Lists!$S:$S,$C235,raw_annual_energy!$D:$D,AN$221,raw_annual_energy!$A:$A,mainzone)/1000+SUMIFS(raw_annual_energy!$F:$F,Lists!$S:$S,'Portfolio Analytics'!$C235,raw_annual_energy!$D:$D,AN$221,raw_annual_energy!$A:$A,\"CAISO_NW_Hydro\")/1000","v":0}]
[null,null,"CAISO_CCGT2","GWh",{"$f":"SUMIFS(raw_annual_energy!$F:$F,Lists!$S:$S,$C236,raw_annual_energy!$D:$D,E$221,raw_annual_energy!$A:$A,mainzone)/1000+SUMIFS(raw_annual_energy!$F:$F,Lists!$S:$S,'Portfolio Analytics'!$C236,raw_annual_energy!$D:$D,E$221,raw_annual_energy!$A:$A,\"CAISO_NW_Hydro\")/1000","v":0},{"$f":"SUMIFS(raw_annual_energy!$F:$F,Lists!$S:$S,$C236,raw_annual_energy!$D:$D,F$221,raw_annual_energy!$A:$A,mainzone)/1000+SUMIFS(raw_annual_energy!$F:$F,Lists!$S:$S,'Portfolio Analytics'!$C236,raw_annual_energy!$D:$D,F$221,raw_annual_energy!$A:$A,\"CAISO_NW_Hydro\")/1000","v":0},{"$f":"SUMIFS(raw_annual_energy!$F:$F,Lists!$S:$S,$C236,raw_annual_energy!$D:$D,G$221,raw_annual_energy!$A:$A,mainzone)/1000+SUMIFS(raw_annual_energy!$F:$F,Lists!$S:$S,'Portfolio Analytics'!$C236,raw_annual_energy!$D:$D,G$221,raw_annual_energy!$A:$A,\"CAISO_NW_Hydro\")/1000","v":0},{"$f":"SUMIFS(raw_annual_energy!$F:$F,Lists!$S:$S,$C236,raw_annual_energy!$D:$D,H$221,raw_annual_energy!$A:$A,mainzone)/1000+SUMIFS(raw_annual_energy!$F:$F,Lists!$S:$S,'Portfolio Analytics'!$C236,raw_annual_energy!$D:$D,H$221,raw_annual_energy!$A:$A,\"CAISO_NW_Hydro\")/1000","v":0},{"$f":"SUMIFS(raw_annual_energy!$F:$F,Lists!$S:$S,$C236,raw_annual_energy!$D:$D,I$221,raw_annual_energy!$A:$A,mainzone)/1000+SUMIFS(raw_annual_energy!$F:$F,Lists!$S:$S,'Portfolio Analytics'!$C236,raw_annual_energy!$D:$D,I$221,raw_annual_energy!$A:$A,\"CAISO_NW_Hydro\")/1000","v":0},{"$f":"SUMIFS(raw_annual_energy!$F:$F,Lists!$S:$S,$C236,raw_annual_energy!$D:$D,J$221,raw_annual_energy!$A:$A,mainzone)/1000+SUMIFS(raw_annual_energy!$F:$F,Lists!$S:$S,'Portfolio Analytics'!$C236,raw_annual_energy!$D:$D,J$221,raw_annual_energy!$A:$A,\"CAISO_NW_Hydro\")/1000","v":-1.64640353703204},{"$f":"SUMIFS(raw_annual_energy!$F:$F,Lists!$S:$S,$C236,raw_annual_energy!$D:$D,K$221,raw_annual_energy!$A:$A,mainzone)/1000+SUMIFS(raw_annual_energy!$F:$F,Lists!$S:$S,'Portfolio Analytics'!$C236,raw_annual_energy!$D:$D,K$221,raw_annual_energy!$A:$A,\"CAISO_NW_Hydro\")/1000","v":0},{"$f":"SUMIFS(raw_annual_energy!$F:$F,Lists!$S:$S,$C236,raw_annual_energy!$D:$D,L$221,raw_annual_energy!$A:$A,mainzone)/1000+SUMIFS(raw_annual_energy!$F:$F,Lists!$S:$S,'Portfolio Analytics'!$C236,raw_annual_energy!$D:$D,L$221,raw_annual_energy!$A:$A,\"CAISO_NW_Hydro\")/1000","v":0},{"$f":"SUMIFS(raw_annual_energy!$F:$F,Lists!$S:$S,$C236,raw_annual_energy!$D:$D,M$221,raw_annual_energy!$A:$A,mainzone)/1000+SUMIFS(raw_annual_energy!$F:$F,Lists!$S:$S,'Portfolio Analytics'!$C236,raw_annual_energy!$D:$D,M$221,raw_annual_energy!$A:$A,\"CAISO_NW_Hydro\")/1000","v":0},{"$f":"SUMIFS(raw_annual_energy!$F:$F,Lists!$S:$S,$C236,raw_annual_energy!$D:$D,N$221,raw_annual_energy!$A:$A,mainzone)/1000+SUMIFS(raw_annual_energy!$F:$F,Lists!$S:$S,'Portfolio Analytics'!$C236,raw_annual_energy!$D:$D,N$221,raw_annual_energy!$A:$A,\"CAISO_NW_Hydro\")/1000","v":0},{"$f":"SUMIFS(raw_annual_energy!$F:$F,Lists!$S:$S,$C236,raw_annual_energy!$D:$D,O$221,raw_annual_energy!$A:$A,mainzone)/1000+SUMIFS(raw_annual_energy!$F:$F,Lists!$S:$S,'Portfolio Analytics'!$C236,raw_annual_energy!$D:$D,O$221,raw_annual_energy!$A:$A,\"CAISO_NW_Hydro\")/1000","v":0},{"$f":"SUMIFS(raw_annual_energy!$F:$F,Lists!$S:$S,$C236,raw_annual_energy!$D:$D,P$221,raw_annual_energy!$A:$A,mainzone)/1000+SUMIFS(raw_annual_energy!$F:$F,Lists!$S:$S,'Portfolio Analytics'!$C236,raw_annual_energy!$D:$D,P$221,raw_annual_energy!$A:$A,\"CAISO_NW_Hydro\")/1000","v":0},{"$f":"SUMIFS(raw_annual_energy!$F:$F,Lists!$S:$S,$C236,raw_annual_energy!$D:$D,Q$221,raw_annual_energy!$A:$A,mainzone)/1000+SUMIFS(raw_annual_energy!$F:$F,Lists!$S:$S,'Portfolio Analytics'!$C236,raw_annual_energy!$D:$D,Q$221,raw_annual_energy!$A:$A,\"CAISO_NW_Hydro\")/1000","v":0},{"$f":"SUMIFS(raw_annual_energy!$F:$F,Lists!$S:$S,$C236,raw_annual_energy!$D:$D,R$221,raw_annual_energy!$A:$A,mainzone)/1000+SUMIFS(raw_annual_energy!$F:$F,Lists!$S:$S,'Portfolio Analytics'!$C236,raw_annual_energy!$D:$D,R$221,raw_annual_energy!$A:$A,\"CAISO_NW_Hydro\")/1000","v":0},{"$f":"SUMIFS(raw_annual_energy!$F:$F,Lists!$S:$S,$C236,raw_annual_energy!$D:$D,S$221,raw_annual_energy!$A:$A,mainzone)/1000+SUMIFS(raw_annual_energy!$F:$F,Lists!$S:$S,'Portfolio Analytics'!$C236,raw_annual_energy!$D:$D,S$221,raw_annual_energy!$A:$A,\"CAISO_NW_Hydro\")/1000","v":0},{"$f":"SUMIFS(raw_annual_energy!$F:$F,Lists!$S:$S,$C236,raw_annual_energy!$D:$D,T$221,raw_annual_energy!$A:$A,mainzone)/1000+SUMIFS(raw_annual_energy!$F:$F,Lists!$S:$S,'Portfolio Analytics'!$C236,raw_annual_energy!$D:$D,T$221,raw_annual_energy!$A:$A,\"CAISO_NW_Hydro\")/1000","v":0},{"$f":"SUMIFS(raw_annual_energy!$F:$F,Lists!$S:$S,$C236,raw_annual_energy!$D:$D,U$221,raw_annual_energy!$A:$A,mainzone)/1000+SUMIFS(raw_annual_energy!$F:$F,Lists!$S:$S,'Portfolio Analytics'!$C236,raw_annual_energy!$D:$D,U$221,raw_annual_energy!$A:$A,\"CAISO_NW_Hydro\")/1000","v":0},{"$f":"SUMIFS(raw_annual_energy!$F:$F,Lists!$S:$S,$C236,raw_annual_energy!$D:$D,V$221,raw_annual_energy!$A:$A,mainzone)/1000+SUMIFS(raw_annual_energy!$F:$F,Lists!$S:$S,'Portfolio Analytics'!$C236,raw_annual_energy!$D:$D,V$221,raw_annual_energy!$A:$A,\"CAISO_NW_Hydro\")/1000","v":0},{"$f":"SUMIFS(raw_annual_energy!$F:$F,Lists!$S:$S,$C236,raw_annual_energy!$D:$D,W$221,raw_annual_energy!$A:$A,mainzone)/1000+SUMIFS(raw_annual_energy!$F:$F,Lists!$S:$S,'Portfolio Analytics'!$C236,raw_annual_energy!$D:$D,W$221,raw_annual_energy!$A:$A,\"CAISO_NW_Hydro\")/1000","v":0},{"$f":"SUMIFS(raw_annual_energy!$F:$F,Lists!$S:$S,$C236,raw_annual_energy!$D:$D,X$221,raw_annual_energy!$A:$A,mainzone)/1000+SUMIFS(raw_annual_energy!$F:$F,Lists!$S:$S,'Portfolio Analytics'!$C236,raw_annual_energy!$D:$D,X$221,raw_annual_energy!$A:$A,\"CAISO_NW_Hydro\")/1000","v":0},{"$f":"SUMIFS(raw_annual_energy!$F:$F,Lists!$S:$S,$C236,raw_annual_energy!$D:$D,Y$221,raw_annual_energy!$A:$A,mainzone)/1000+SUMIFS(raw_annual_energy!$F:$F,Lists!$S:$S,'Portfolio Analytics'!$C236,raw_annual_energy!$D:$D,Y$221,raw_annual_energy!$A:$A,\"CAISO_NW_Hydro\")/1000","v":0},{"$f":"SUMIFS(raw_annual_energy!$F:$F,Lists!$S:$S,$C236,raw_annual_energy!$D:$D,Z$221,raw_annual_energy!$A:$A,mainzone)/1000+SUMIFS(raw_annual_energy!$F:$F,Lists!$S:$S,'Portfolio Analytics'!$C236,raw_annual_energy!$D:$D,Z$221,raw_annual_energy!$A:$A,\"CAISO_NW_Hydro\")/1000","v":0},{"$f":"SUMIFS(raw_annual_energy!$F:$F,Lists!$S:$S,$C236,raw_annual_energy!$D:$D,AA$221,raw_annual_energy!$A:$A,mainzone)/1000+SUMIFS(raw_annual_energy!$F:$F,Lists!$S:$S,'Portfolio Analytics'!$C236,raw_annual_energy!$D:$D,AA$221,raw_annual_energy!$A:$A,\"CAISO_NW_Hydro\")/1000","v":0},{"$f":"SUMIFS(raw_annual_energy!$F:$F,Lists!$S:$S,$C236,raw_annual_energy!$D:$D,AB$221,raw_annual_energy!$A:$A,mainzone)/1000+SUMIFS(raw_annual_energy!$F:$F,Lists!$S:$S,'Portfolio Analytics'!$C236,raw_annual_energy!$D:$D,AB$221,raw_annual_energy!$A:$A,\"CAISO_NW_Hydro\")/1000","v":0},{"$f":"SUMIFS(raw_annual_energy!$F:$F,Lists!$S:$S,$C236,raw_annual_energy!$D:$D,AC$221,raw_annual_energy!$A:$A,mainzone)/1000+SUMIFS(raw_annual_energy!$F:$F,Lists!$S:$S,'Portfolio Analytics'!$C236,raw_annual_energy!$D:$D,AC$221,raw_annual_energy!$A:$A,\"CAISO_NW_Hydro\")/1000","v":0},{"$f":"SUMIFS(raw_annual_energy!$F:$F,Lists!$S:$S,$C236,raw_annual_energy!$D:$D,AD$221,raw_annual_energy!$A:$A,mainzone)/1000+SUMIFS(raw_annual_energy!$F:$F,Lists!$S:$S,'Portfolio Analytics'!$C236,raw_annual_energy!$D:$D,AD$221,raw_annual_energy!$A:$A,\"CAISO_NW_Hydro\")/1000","v":0},{"$f":"SUMIFS(raw_annual_energy!$F:$F,Lists!$S:$S,$C236,raw_annual_energy!$D:$D,AE$221,raw_annual_energy!$A:$A,mainzone)/1000+SUMIFS(raw_annual_energy!$F:$F,Lists!$S:$S,'Portfolio Analytics'!$C236,raw_annual_energy!$D:$D,AE$221,raw_annual_energy!$A:$A,\"CAISO_NW_Hydro\")/1000","v":0},{"$f":"SUMIFS(raw_annual_energy!$F:$F,Lists!$S:$S,$C236,raw_annual_energy!$D:$D,AF$221,raw_annual_energy!$A:$A,mainzone)/1000+SUMIFS(raw_annual_energy!$F:$F,Lists!$S:$S,'Portfolio Analytics'!$C236,raw_annual_energy!$D:$D,AF$221,raw_annual_energy!$A:$A,\"CAISO_NW_Hydro\")/1000","v":0},{"$f":"SUMIFS(raw_annual_energy!$F:$F,Lists!$S:$S,$C236,raw_annual_energy!$D:$D,AG$221,raw_annual_energy!$A:$A,mainzone)/1000+SUMIFS(raw_annual_energy!$F:$F,Lists!$S:$S,'Portfolio Analytics'!$C236,raw_annual_energy!$D:$D,AG$221,raw_annual_energy!$A:$A,\"CAISO_NW_Hydro\")/1000","v":0},{"$f":"SUMIFS(raw_annual_energy!$F:$F,Lists!$S:$S,$C236,raw_annual_energy!$D:$D,AH$221,raw_annual_energy!$A:$A,mainzone)/1000+SUMIFS(raw_annual_energy!$F:$F,Lists!$S:$S,'Portfolio Analytics'!$C236,raw_annual_energy!$D:$D,AH$221,raw_annual_energy!$A:$A,\"CAISO_NW_Hydro\")/1000","v":0},{"$f":"SUMIFS(raw_annual_energy!$F:$F,Lists!$S:$S,$C236,raw_annual_energy!$D:$D,AI$221,raw_annual_energy!$A:$A,mainzone)/1000+SUMIFS(raw_annual_energy!$F:$F,Lists!$S:$S,'Portfolio Analytics'!$C236,raw_annual_energy!$D:$D,AI$221,raw_annual_energy!$A:$A,\"CAISO_NW_Hydro\")/1000","v":6.1645293138450494},{"$f":"SUMIFS(raw_annual_energy!$F:$F,Lists!$S:$S,$C236,raw_annual_energy!$D:$D,AJ$221,raw_annual_energy!$A:$A,mainzone)/1000+SUMIFS(raw_annual_energy!$F:$F,Lists!$S:$S,'Portfolio Analytics'!$C236,raw_annual_energy!$D:$D,AJ$221,raw_annual_energy!$A:$A,\"CAISO_NW_Hydro\")/1000","v":0},{"$f":"SUMIFS(raw_annual_energy!$F:$F,Lists!$S:$S,$C236,raw_annual_energy!$D:$D,AK$221,raw_annual_energy!$A:$A,mainzone)/1000+SUMIFS(raw_annual_energy!$F:$F,Lists!$S:$S,'Portfolio Analytics'!$C236,raw_annual_energy!$D:$D,AK$221,raw_annual_energy!$A:$A,\"CAISO_NW_Hydro\")/1000","v":0},{"$f":"SUMIFS(raw_annual_energy!$F:$F,Lists!$S:$S,$C236,raw_annual_energy!$D:$D,AL$221,raw_annual_energy!$A:$A,mainzone)/1000+SUMIFS(raw_annual_energy!$F:$F,Lists!$S:$S,'Portfolio Analytics'!$C236,raw_annual_energy!$D:$D,AL$221,raw_annual_energy!$A:$A,\"CAISO_NW_Hydro\")/1000","v":0},{"$f":"SUMIFS(raw_annual_energy!$F:$F,Lists!$S:$S,$C236,raw_annual_energy!$D:$D,AM$221,raw_annual_energy!$A:$A,mainzone)/1000+SUMIFS(raw_annual_energy!$F:$F,Lists!$S:$S,'Portfolio Analytics'!$C236,raw_annual_energy!$D:$D,AM$221,raw_annual_energy!$A:$A,\"CAISO_NW_Hydro\")/1000","v":0},{"$f":"SUMIFS(raw_annual_energy!$F:$F,Lists!$S:$S,$C236,raw_annual_energy!$D:$D,AN$221,raw_annual_energy!$A:$A,mainzone)/1000+SUMIFS(raw_annual_energy!$F:$F,Lists!$S:$S,'Portfolio Analytics'!$C236,raw_annual_energy!$D:$D,AN$221,raw_annual_energy!$A:$A,\"CAISO_NW_Hydro\")/1000","v":0}]
[null,null,"CAISO_Peaker1","GWh",{"$f":"SUMIFS(raw_annual_energy!$F:$F,Lists!$S:$S,$C237,raw_annual_energy!$D:$D,E$221,raw_annual_energy!$A:$A,mainzone)/1000+SUMIFS(raw_annual_energy!$F:$F,Lists!$S:$S,'Portfolio Analytics'!$C237,raw_annual_energy!$D:$D,E$221,raw_annual_energy!$A:$A,\"CAISO_NW_Hydro\")/1000","v":0},{"$f":"SUMIFS(raw_annual_energy!$F:$F,Lists!$S:$S,$C237,raw_annual_energy!$D:$D,F$221,raw_annual_energy!$A:$A,mainzone)/1000+SUMIFS(raw_annual_energy!$F:$F,Lists!$S:$S,'Portfolio Analytics'!$C237,raw_annual_energy!$D:$D,F$221,raw_annual_energy!$A:$A,\"CAISO_NW_Hydro\")/1000","v":0},{"$f":"SUMIFS(raw_annual_energy!$F:$F,Lists!$S:$S,$C237,raw_annual_energy!$D:$D,G$221,raw_annual_energy!$A:$A,mainzone)/1000+SUMIFS(raw_annual_energy!$F:$F,Lists!$S:$S,'Portfolio Analytics'!$C237,raw_annual_energy!$D:$D,G$221,raw_annual_energy!$A:$A,\"CAISO_NW_Hydro\")/1000","v":0},{"$f":"SUMIFS(raw_annual_energy!$F:$F,Lists!$S:$S,$C237,raw_annual_energy!$D:$D,H$221,raw_annual_energy!$A:$A,mainzone)/1000+SUMIFS(raw_annual_energy!$F:$F,Lists!$S:$S,'Portfolio Analytics'!$C237,raw_annual_energy!$D:$D,H$221,raw_annual_energy!$A:$A,\"CAISO_NW_Hydro\")/1000","v":0},{"$f":"SUMIFS(raw_annual_energy!$F:$F,Lists!$S:$S,$C237,raw_annual_energy!$D:$D,I$221,raw_annual_energy!$A:$A,mainzone)/1000+SUMIFS(raw_annual_energy!$F:$F,Lists!$S:$S,'Portfolio Analytics'!$C237,raw_annual_energy!$D:$D,I$221,raw_annual_energy!$A:$A,\"CAISO_NW_Hydro\")/1000","v":0},{"$f":"SUMIFS(raw_annual_energy!$F:$F,Lists!$S:$S,$C237,raw_annual_energy!$D:$D,J$221,raw_annual_energy!$A:$A,mainzone)/1000+SUMIFS(raw_annual_energy!$F:$F,Lists!$S:$S,'Portfolio Analytics'!$C237,raw_annual_energy!$D:$D,J$221,raw_annual_energy!$A:$A,\"CAISO_NW_Hydro\")/1000","v":93.148607526206803},{"$f":"SUMIFS(raw_annual_energy!$F:$F,Lists!$S:$S,$C237,raw_annual_energy!$D:$D,K$221,raw_annual_energy!$A:$A,mainzone)/1000+SUMIFS(raw_annual_energy!$F:$F,Lists!$S:$S,'Portfolio Analytics'!$C237,raw_annual_energy!$D:$D,K$221,raw_annual_energy!$A:$A,\"CAISO_NW_Hydro\")/1000","v":51.571927559372902},{"$f":"SUMIFS(raw_annual_energy!$F:$F,Lists!$S:$S,$C237,raw_annual_energy!$D:$D,L$221,raw_annual_energy!$A:$A,mainzone)/1000+SUMIFS(raw_annual_energy!$F:$F,Lists!$S:$S,'Portfolio Analytics'!$C237,raw_annual_energy!$D:$D,L$221,raw_annual_energy!$A:$A,\"CAISO_NW_Hydro\")/1000","v":56.396371896416397},{"$f":"SUMIFS(raw_annual_energy!$F:$F,Lists!$S:$S,$C237,raw_annual_energy!$D:$D,M$221,raw_annual_energy!$A:$A,mainzone)/1000+SUMIFS(raw_annual_energy!$F:$F,Lists!$S:$S,'Portfolio Analytics'!$C237,raw_annual_energy!$D:$D,M$221,raw_annual_energy!$A:$A,\"CAISO_NW_Hydro\")/1000","v":69.677032348818003},{"$f":"SUMIFS(raw_annual_energy!$F:$F,Lists!$S:$S,$C237,raw_annual_energy!$D:$D,N$221,raw_annual_energy!$A:$A,mainzone)/1000+SUMIFS(raw_annual_energy!$F:$F,Lists!$S:$S,'Portfolio Analytics'!$C237,raw_annual_energy!$D:$D,N$221,raw_annual_energy!$A:$A,\"CAISO_NW_Hydro\")/1000","v":58.533872170611296},{"$f":"SUMIFS(raw_annual_energy!$F:$F,Lists!$S:$S,$C237,raw_annual_energy!$D:$D,O$221,raw_annual_energy!$A:$A,mainzone)/1000+SUMIFS(raw_annual_energy!$F:$F,Lists!$S:$S,'Portfolio Analytics'!$C237,raw_annual_energy!$D:$D,O$221,raw_annual_energy!$A:$A,\"CAISO_NW_Hydro\")/1000","v":0},{"$f":"SUMIFS(raw_annual_energy!$F:$F,Lists!$S:$S,$C237,raw_annual_energy!$D:$D,P$221,raw_annual_energy!$A:$A,mainzone)/1000+SUMIFS(raw_annual_energy!$F:$F,Lists!$S:$S,'Portfolio Analytics'!$C237,raw_annual_energy!$D:$D,P$221,raw_annual_energy!$A:$A,\"CAISO_NW_Hydro\")/1000","v":11.0054679107177},{"$f":"SUMIFS(raw_annual_energy!$F:$F,Lists!$S:$S,$C237,raw_annual_energy!$D:$D,Q$221,raw_annual_energy!$A:$A,mainzone)/1000+SUMIFS(raw_annual_energy!$F:$F,Lists!$S:$S,'Portfolio Analytics'!$C237,raw_annual_energy!$D:$D,Q$221,raw_annual_energy!$A:$A,\"CAISO_NW_Hydro\")/1000","v":0},{"$f":"SUMIFS(raw_annual_energy!$F:$F,Lists!$S:$S,$C237,raw_annual_energy!$D:$D,R$221,raw_annual_energy!$A:$A,mainzone)/1000+SUMIFS(raw_annual_energy!$F:$F,Lists!$S:$S,'Portfolio Analytics'!$C237,raw_annual_energy!$D:$D,R$221,raw_annual_energy!$A:$A,\"CAISO_NW_Hydro\")/1000","v":0},{"$f":"SUMIFS(raw_annual_energy!$F:$F,Lists!$S:$S,$C237,raw_annual_energy!$D:$D,S$221,raw_annual_energy!$A:$A,mainzone)/1000+SUMIFS(raw_annual_energy!$F:$F,Lists!$S:$S,'Portfolio Analytics'!$C237,raw_annual_energy!$D:$D,S$221,raw_annual_energy!$A:$A,\"CAISO_NW_Hydro\")/1000","v":0},{"$f":"SUMIFS(raw_annual_energy!$F:$F,Lists!$S:$S,$C237,raw_annual_energy!$D:$D,T$221,raw_annual_energy!$A:$A,mainzone)/1000+SUMIFS(raw_annual_energy!$F:$F,Lists!$S:$S,'Portfolio Analytics'!$C237,raw_annual_energy!$D:$D,T$221,raw_annual_energy!$A:$A,\"CAISO_NW_Hydro\")/1000","v":5.6954761971642904},{"$f":"SUMIFS(raw_annual_energy!$F:$F,Lists!$S:$S,$C237,raw_annual_energy!$D:$D,U$221,raw_annual_energy!$A:$A,mainzone)/1000+SUMIFS(raw_annual_energy!$F:$F,Lists!$S:$S,'Portfolio Analytics'!$C237,raw_annual_energy!$D:$D,U$221,raw_annual_energy!$A:$A,\"CAISO_NW_Hydro\")/1000","v":0},{"$f":"SUMIFS(raw_annual_energy!$F:$F,Lists!$S:$S,$C237,raw_annual_energy!$D:$D,V$221,raw_annual_energy!$A:$A,mainzone)/1000+SUMIFS(raw_annual_energy!$F:$F,Lists!$S:$S,'Portfolio Analytics'!$C237,raw_annual_energy!$D:$D,V$221,raw_annual_energy!$A:$A,\"CAISO_NW_Hydro\")/1000","v":0},{"$f":"SUMIFS(raw_annual_energy!$F:$F,Lists!$S:$S,$C237,raw_annual_energy!$D:$D,W$221,raw_annual_energy!$A:$A,mainzone)/1000+SUMIFS(raw_annual_energy!$F:$F,Lists!$S:$S,'Portfolio Analytics'!$C237,raw_annual_energy!$D:$D,W$221,raw_annual_energy!$A:$A,\"CAISO_NW_Hydro\")/1000","v":0},{"$f":"SUMIFS(raw_annual_energy!$F:$F,Lists!$S:$S,$C237,raw_annual_energy!$D:$D,X$221,raw_annual_energy!$A:$A,mainzone)/1000+SUMIFS(raw_annual_energy!$F:$F,Lists!$S:$S,'Portfolio Analytics'!$C237,raw_annual_energy!$D:$D,X$221,raw_annual_energy!$A:$A,\"CAISO_NW_Hydro\")/1000","v":0},{"$f":"SUMIFS(raw_annual_energy!$F:$F,Lists!$S:$S,$C237,raw_annual_energy!$D:$D,Y$221,raw_annual_energy!$A:$A,mainzone)/1000+SUMIFS(raw_annual_energy!$F:$F,Lists!$S:$S,'Portfolio Analytics'!$C237,raw_annual_energy!$D:$D,Y$221,raw_annual_energy!$A:$A,\"CAISO_NW_Hydro\")/1000","v":0},{"$f":"SUMIFS(raw_annual_energy!$F:$F,Lists!$S:$S,$C237,raw_annual_energy!$D:$D,Z$221,raw_annual_energy!$A:$A,mainzone)/1000+SUMIFS(raw_annual_energy!$F:$F,Lists!$S:$S,'Portfolio Analytics'!$C237,raw_annual_energy!$D:$D,Z$221,raw_annual_energy!$A:$A,\"CAISO_NW_Hydro\")/1000","v":0},{"$f":"SUMIFS(raw_annual_energy!$F:$F,Lists!$S:$S,$C237,raw_annual_energy!$D:$D,AA$221,raw_annual_energy!$A:$A,mainzone)/1000+SUMIFS(raw_annual_energy!$F:$F,Lists!$S:$S,'Portfolio Analytics'!$C237,raw_annual_energy!$D:$D,AA$221,raw_annual_energy!$A:$A,\"CAISO_NW_Hydro\")/1000","v":0},{"$f":"SUMIFS(raw_annual_energy!$F:$F,Lists!$S:$S,$C237,raw_annual_energy!$D:$D,AB$221,raw_annual_energy!$A:$A,mainzone)/1000+SUMIFS(raw_annual_energy!$F:$F,Lists!$S:$S,'Portfolio Analytics'!$C237,raw_annual_energy!$D:$D,AB$221,raw_annual_energy!$A:$A,\"CAISO_NW_Hydro\")/1000","v":0},{"$f":"SUMIFS(raw_annual_energy!$F:$F,Lists!$S:$S,$C237,raw_annual_energy!$D:$D,AC$221,raw_annual_energy!$A:$A,mainzone)/1000+SUMIFS(raw_annual_energy!$F:$F,Lists!$S:$S,'Portfolio Analytics'!$C237,raw_annual_energy!$D:$D,AC$221,raw_annual_energy!$A:$A,\"CAISO_NW_Hydro\")/1000","v":0},{"$f":"SUMIFS(raw_annual_energy!$F:$F,Lists!$S:$S,$C237,raw_annual_energy!$D:$D,AD$221,raw_annual_energy!$A:$A,mainzone)/1000+SUMIFS(raw_annual_energy!$F:$F,Lists!$S:$S,'Portfolio Analytics'!$C237,raw_annual_energy!$D:$D,AD$221,raw_annual_energy!$A:$A,\"CAISO_NW_Hydro\")/1000","v":0},{"$f":"SUMIFS(raw_annual_energy!$F:$F,Lists!$S:$S,$C237,raw_annual_energy!$D:$D,AE$221,raw_annual_energy!$A:$A,mainzone)/1000+SUMIFS(raw_annual_energy!$F:$F,Lists!$S:$S,'Portfolio Analytics'!$C237,raw_annual_energy!$D:$D,AE$221,raw_annual_energy!$A:$A,\"CAISO_NW_Hydro\")/1000","v":0},{"$f":"SUMIFS(raw_annual_energy!$F:$F,Lists!$S:$S,$C237,raw_annual_energy!$D:$D,AF$221,raw_annual_energy!$A:$A,mainzone)/1000+SUMIFS(raw_annual_energy!$F:$F,Lists!$S:$S,'Portfolio Analytics'!$C237,raw_annual_energy!$D:$D,AF$221,raw_annual_energy!$A:$A,\"CAISO_NW_Hydro\")/1000","v":0},{"$f":"SUMIFS(raw_annual_energy!$F:$F,Lists!$S:$S,$C237,raw_annual_energy!$D:$D,AG$221,raw_annual_energy!$A:$A,mainzone)/1000+SUMIFS(raw_annual_energy!$F:$F,Lists!$S:$S,'Portfolio Analytics'!$C237,raw_annual_energy!$D:$D,AG$221,raw_annual_energy!$A:$A,\"CAISO_NW_Hydro\")/1000","v":0},{"$f":"SUMIFS(raw_annual_energy!$F:$F,Lists!$S:$S,$C237,raw_annual_energy!$D:$D,AH$221,raw_annual_energy!$A:$A,mainzone)/1000+SUMIFS(raw_annual_energy!$F:$F,Lists!$S:$S,'Portfolio Analytics'!$C237,raw_annual_energy!$D:$D,AH$221,raw_annual_energy!$A:$A,\"CAISO_NW_Hydro\")/1000","v":0},{"$f":"SUMIFS(raw_annual_energy!$F:$F,Lists!$S:$S,$C237,raw_annual_energy!$D:$D,AI$221,raw_annual_energy!$A:$A,mainzone)/1000+SUMIFS(raw_annual_energy!$F:$F,Lists!$S:$S,'Portfolio Analytics'!$C237,raw_annual_energy!$D:$D,AI$221,raw_annual_energy!$A:$A,\"CAISO_NW_Hydro\")/1000","v":0},{"$f":"SUMIFS(raw_annual_energy!$F:$F,Lists!$S:$S,$C237,raw_annual_energy!$D:$D,AJ$221,raw_annual_energy!$A:$A,mainzone)/1000+SUMIFS(raw_annual_energy!$F:$F,Lists!$S:$S,'Portfolio Analytics'!$C237,raw_annual_energy!$D:$D,AJ$221,raw_annual_energy!$A:$A,\"CAISO_NW_Hydro\")/1000","v":0},{"$f":"SUMIFS(raw_annual_energy!$F:$F,Lists!$S:$S,$C237,raw_annual_energy!$D:$D,AK$221,raw_annual_energy!$A:$A,mainzone)/1000+SUMIFS(raw_annual_energy!$F:$F,Lists!$S:$S,'Portfolio Analytics'!$C237,raw_annual_energy!$D:$D,AK$221,raw_annual_energy!$A:$A,\"CAISO_NW_Hydro\")/1000","v":0},{"$f":"SUMIFS(raw_annual_energy!$F:$F,Lists!$S:$S,$C237,raw_annual_energy!$D:$D,AL$221,raw_annual_energy!$A:$A,mainzone)/1000+SUMIFS(raw_annual_energy!$F:$F,Lists!$S:$S,'Portfolio Analytics'!$C237,raw_annual_energy!$D:$D,AL$221,raw_annual_energy!$A:$A,\"CAISO_NW_Hydro\")/1000","v":0},{"$f":"SUMIFS(raw_annual_energy!$F:$F,Lists!$S:$S,$C237,raw_annual_energy!$D:$D,AM$221,raw_annual_energy!$A:$A,mainzone)/1000+SUMIFS(raw_annual_energy!$F:$F,Lists!$S:$S,'Portfolio Analytics'!$C237,raw_annual_energy!$D:$D,AM$221,raw_annual_energy!$A:$A,\"CAISO_NW_Hydro\")/1000","v":0},{"$f":"SUMIFS(raw_annual_energy!$F:$F,Lists!$S:$S,$C237,raw_annual_energy!$D:$D,AN$221,raw_annual_energy!$A:$A,mainzone)/1000+SUMIFS(raw_annual_energy!$F:$F,Lists!$S:$S,'Portfolio Analytics'!$C237,raw_annual_energy!$D:$D,AN$221,raw_annual_energy!$A:$A,\"CAISO_NW_Hydro\")/1000","v":0}]
[null,null,"CAISO_Peaker2","GWh",{"$f":"SUMIFS(raw_annual_energy!$F:$F,Lists!$S:$S,$C238,raw_annual_energy!$D:$D,E$221,raw_annual_energy!$A:$A,mainzone)/1000+SUMIFS(raw_annual_energy!$F:$F,Lists!$S:$S,'Portfolio Analytics'!$C238,raw_annual_energy!$D:$D,E$221,raw_annual_energy!$A:$A,\"CAISO_NW_Hydro\")/1000","v":0},{"$f":"SUMIFS(raw_annual_energy!$F:$F,Lists!$S:$S,$C238,raw_annual_energy!$D:$D,F$221,raw_annual_energy!$A:$A,mainzone)/1000+SUMIFS(raw_annual_energy!$F:$F,Lists!$S:$S,'Portfolio Analytics'!$C238,raw_annual_energy!$D:$D,F$221,raw_annual_energy!$A:$A,\"CAISO_NW_Hydro\")/1000","v":0},{"$f":"SUMIFS(raw_annual_energy!$F:$F,Lists!$S:$S,$C238,raw_annual_energy!$D:$D,G$221,raw_annual_energy!$A:$A,mainzone)/1000+SUMIFS(raw_annual_energy!$F:$F,Lists!$S:$S,'Portfolio Analytics'!$C238,raw_annual_energy!$D:$D,G$221,raw_annual_energy!$A:$A,\"CAISO_NW_Hydro\")/1000","v":0},{"$f":"SUMIFS(raw_annual_energy!$F:$F,Lists!$S:$S,$C238,raw_annual_energy!$D:$D,H$221,raw_annual_energy!$A:$A,mainzone)/1000+SUMIFS(raw_annual_energy!$F:$F,Lists!$S:$S,'Portfolio Analytics'!$C238,raw_annual_energy!$D:$D,H$221,raw_annual_energy!$A:$A,\"CAISO_NW_Hydro\")/1000","v":0},{"$f":"SUMIFS(raw_annual_energy!$F:$F,Lists!$S:$S,$C238,raw_annual_energy!$D:$D,I$221,raw_annual_energy!$A:$A,mainzone)/1000+SUMIFS(raw_annual_energy!$F:$F,Lists!$S:$S,'Portfolio Analytics'!$C238,raw_annual_energy!$D:$D,I$221,raw_annual_energy!$A:$A,\"CAISO_NW_Hydro\")/1000","v":0},{"$f":"SUMIFS(raw_annual_energy!$F:$F,Lists!$S:$S,$C238,raw_annual_energy!$D:$D,J$221,raw_annual_energy!$A:$A,mainzone)/1000+SUMIFS(raw_annual_energy!$F:$F,Lists!$S:$S,'Portfolio Analytics'!$C238,raw_annual_energy!$D:$D,J$221,raw_annual_energy!$A:$A,\"CAISO_NW_Hydro\")/1000","v":0},{"$f":"SUMIFS(raw_annual_energy!$F:$F,Lists!$S:$S,$C238,raw_annual_energy!$D:$D,K$221,raw_annual_energy!$A:$A,mainzone)/1000+SUMIFS(raw_annual_energy!$F:$F,Lists!$S:$S,'Portfolio Analytics'!$C238,raw_annual_energy!$D:$D,K$221,raw_annual_energy!$A:$A,\"CAISO_NW_Hydro\")/1000","v":0},{"$f":"SUMIFS(raw_annual_energy!$F:$F,Lists!$S:$S,$C238,raw_annual_energy!$D:$D,L$221,raw_annual_energy!$A:$A,mainzone)/1000+SUMIFS(raw_annual_energy!$F:$F,Lists!$S:$S,'Portfolio Analytics'!$C238,raw_annual_energy!$D:$D,L$221,raw_annual_energy!$A:$A,\"CAISO_NW_Hydro\")/1000","v":0},{"$f":"SUMIFS(raw_annual_energy!$F:$F,Lists!$S:$S,$C238,raw_annual_energy!$D:$D,M$221,raw_annual_energy!$A:$A,mainzone)/1000+SUMIFS(raw_annual_energy!$F:$F,Lists!$S:$S,'Portfolio Analytics'!$C238,raw_annual_energy!$D:$D,M$221,raw_annual_energy!$A:$A,\"CAISO_NW_Hydro\")/1000","v":0},{"$f":"SUMIFS(raw_annual_energy!$F:$F,Lists!$S:$S,$C238,raw_annual_energy!$D:$D,N$221,raw_annual_energy!$A:$A,mainzone)/1000+SUMIFS(raw_annual_energy!$F:$F,Lists!$S:$S,'Portfolio Analytics'!$C238,raw_annual_energy!$D:$D,N$221,raw_annual_energy!$A:$A,\"CAISO_NW_Hydro\")/1000","v":0},{"$f":"SUMIFS(raw_annual_energy!$F:$F,Lists!$S:$S,$C238,raw_annual_energy!$D:$D,O$221,raw_annual_energy!$A:$A,mainzone)/1000+SUMIFS(raw_annual_energy!$F:$F,Lists!$S:$S,'Portfolio Analytics'!$C238,raw_annual_energy!$D:$D,O$221,raw_annual_energy!$A:$A,\"CAISO_NW_Hydro\")/1000","v":0},{"$f":"SUMIFS(raw_annual_energy!$F:$F,Lists!$S:$S,$C238,raw_annual_energy!$D:$D,P$221,raw_annual_energy!$A:$A,mainzone)/1000+SUMIFS(raw_annual_energy!$F:$F,Lists!$S:$S,'Portfolio Analytics'!$C238,raw_annual_energy!$D:$D,P$221,raw_annual_energy!$A:$A,\"CAISO_NW_Hydro\")/1000","v":0},{"$f":"SUMIFS(raw_annual_energy!$F:$F,Lists!$S:$S,$C238,raw_annual_energy!$D:$D,Q$221,raw_annual_energy!$A:$A,mainzone)/1000+SUMIFS(raw_annual_energy!$F:$F,Lists!$S:$S,'Portfolio Analytics'!$C238,raw_annual_energy!$D:$D,Q$221,raw_annual_energy!$A:$A,\"CAISO_NW_Hydro\")/1000","v":0},{"$f":"SUMIFS(raw_annual_energy!$F:$F,Lists!$S:$S,$C238,raw_annual_energy!$D:$D,R$221,raw_annual_energy!$A:$A,mainzone)/1000+SUMIFS(raw_annual_energy!$F:$F,Lists!$S:$S,'Portfolio Analytics'!$C238,raw_annual_energy!$D:$D,R$221,raw_annual_energy!$A:$A,\"CAISO_NW_Hydro\")/1000","v":0},{"$f":"SUMIFS(raw_annual_energy!$F:$F,Lists!$S:$S,$C238,raw_annual_energy!$D:$D,S$221,raw_annual_energy!$A:$A,mainzone)/1000+SUMIFS(raw_annual_energy!$F:$F,Lists!$S:$S,'Portfolio Analytics'!$C238,raw_annual_energy!$D:$D,S$221,raw_annual_energy!$A:$A,\"CAISO_NW_Hydro\")/1000","v":0},{"$f":"SUMIFS(raw_annual_energy!$F:$F,Lists!$S:$S,$C238,raw_annual_energy!$D:$D,T$221,raw_annual_energy!$A:$A,mainzone)/1000+SUMIFS(raw_annual_energy!$F:$F,Lists!$S:$S,'Portfolio Analytics'!$C238,raw_annual_energy!$D:$D,T$221,raw_annual_energy!$A:$A,\"CAISO_NW_Hydro\")/1000","v":0},{"$f":"SUMIFS(raw_annual_energy!$F:$F,Lists!$S:$S,$C238,raw_annual_energy!$D:$D,U$221,raw_annual_energy!$A:$A,mainzone)/1000+SUMIFS(raw_annual_energy!$F:$F,Lists!$S:$S,'Portfolio Analytics'!$C238,raw_annual_energy!$D:$D,U$221,raw_annual_energy!$A:$A,\"CAISO_NW_Hydro\")/1000","v":0},{"$f":"SUMIFS(raw_annual_energy!$F:$F,Lists!$S:$S,$C238,raw_annual_energy!$D:$D,V$221,raw_annual_energy!$A:$A,mainzone)/1000+SUMIFS(raw_annual_energy!$F:$F,Lists!$S:$S,'Portfolio Analytics'!$C238,raw_annual_energy!$D:$D,V$221,raw_annual_energy!$A:$A,\"CAISO_NW_Hydro\")/1000","v":0},{"$f":"SUMIFS(raw_annual_energy!$F:$F,Lists!$S:$S,$C238,raw_annual_energy!$D:$D,W$221,raw_annual_energy!$A:$A,mainzone)/1000+SUMIFS(raw_annual_energy!$F:$F,Lists!$S:$S,'Portfolio Analytics'!$C238,raw_annual_energy!$D:$D,W$221,raw_annual_energy!$A:$A,\"CAISO_NW_Hydro\")/1000","v":0},{"$f":"SUMIFS(raw_annual_energy!$F:$F,Lists!$S:$S,$C238,raw_annual_energy!$D:$D,X$221,raw_annual_energy!$A:$A,mainzone)/1000+SUMIFS(raw_annual_energy!$F:$F,Lists!$S:$S,'Portfolio Analytics'!$C238,raw_annual_energy!$D:$D,X$221,raw_annual_energy!$A:$A,\"CAISO_NW_Hydro\")/1000","v":0},{"$f":"SUMIFS(raw_annual_energy!$F:$F,Lists!$S:$S,$C238,raw_annual_energy!$D:$D,Y$221,raw_annual_energy!$A:$A,mainzone)/1000+SUMIFS(raw_annual_energy!$F:$F,Lists!$S:$S,'Portfolio Analytics'!$C238,raw_annual_energy!$D:$D,Y$221,raw_annual_energy!$A:$A,\"CAISO_NW_Hydro\")/1000","v":0},{"$f":"SUMIFS(raw_annual_energy!$F:$F,Lists!$S:$S,$C238,raw_annual_energy!$D:$D,Z$221,raw_annual_energy!$A:$A,mainzone)/1000+SUMIFS(raw_annual_energy!$F:$F,Lists!$S:$S,'Portfolio Analytics'!$C238,raw_annual_energy!$D:$D,Z$221,raw_annual_energy!$A:$A,\"CAISO_NW_Hydro\")/1000","v":0},{"$f":"SUMIFS(raw_annual_energy!$F:$F,Lists!$S:$S,$C238,raw_annual_energy!$D:$D,AA$221,raw_annual_energy!$A:$A,mainzone)/1000+SUMIFS(raw_annual_energy!$F:$F,Lists!$S:$S,'Portfolio Analytics'!$C238,raw_annual_energy!$D:$D,AA$221,raw_annual_energy!$A:$A,\"CAISO_NW_Hydro\")/1000","v":0},{"$f":"SUMIFS(raw_annual_energy!$F:$F,Lists!$S:$S,$C238,raw_annual_energy!$D:$D,AB$221,raw_annual_energy!$A:$A,mainzone)/1000+SUMIFS(raw_annual_energy!$F:$F,Lists!$S:$S,'Portfolio Analytics'!$C238,raw_annual_energy!$D:$D,AB$221,raw_annual_energy!$A:$A,\"CAISO_NW_Hydro\")/1000","v":0},{"$f":"SUMIFS(raw_annual_energy!$F:$F,Lists!$S:$S,$C238,raw_annual_energy!$D:$D,AC$221,raw_annual_energy!$A:$A,mainzone)/1000+SUMIFS(raw_annual_energy!$F:$F,Lists!$S:$S,'Portfolio Analytics'!$C238,raw_annual_energy!$D:$D,AC$221,raw_annual_energy!$A:$A,\"CAISO_NW_Hydro\")/1000","v":0},{"$f":"SUMIFS(raw_annual_energy!$F:$F,Lists!$S:$S,$C238,raw_annual_energy!$D:$D,AD$221,raw_annual_energy!$A:$A,mainzone)/1000+SUMIFS(raw_annual_energy!$F:$F,Lists!$S:$S,'Portfolio Analytics'!$C238,raw_annual_energy!$D:$D,AD$221,raw_annual_energy!$A:$A,\"CAISO_NW_Hydro\")/1000","v":0},{"$f":"SUMIFS(raw_annual_energy!$F:$F,Lists!$S:$S,$C238,raw_annual_energy!$D:$D,AE$221,raw_annual_energy!$A:$A,mainzone)/1000+SUMIFS(raw_annual_energy!$F:$F,Lists!$S:$S,'Portfolio Analytics'!$C238,raw_annual_energy!$D:$D,AE$221,raw_annual_energy!$A:$A,\"CAISO_NW_Hydro\")/1000","v":0},{"$f":"SUMIFS(raw_annual_energy!$F:$F,Lists!$S:$S,$C238,raw_annual_energy!$D:$D,AF$221,raw_annual_energy!$A:$A,mainzone)/1000+SUMIFS(raw_annual_energy!$F:$F,Lists!$S:$S,'Portfolio Analytics'!$C238,raw_annual_energy!$D:$D,AF$221,raw_annual_energy!$A:$A,\"CAISO_NW_Hydro\")/1000","v":0},{"$f":"SUMIFS(raw_annual_energy!$F:$F,Lists!$S:$S,$C238,raw_annual_energy!$D:$D,AG$221,raw_annual_energy!$A:$A,mainzone)/1000+SUMIFS(raw_annual_energy!$F:$F,Lists!$S:$S,'Portfolio Analytics'!$C238,raw_annual_energy!$D:$D,AG$221,raw_annual_energy!$A:$A,\"CAISO_NW_Hydro\")/1000","v":0},{"$f":"SUMIFS(raw_annual_energy!$F:$F,Lists!$S:$S,$C238,raw_annual_energy!$D:$D,AH$221,raw_annual_energy!$A:$A,mainzone)/1000+SUMIFS(raw_annual_energy!$F:$F,Lists!$S:$S,'Portfolio Analytics'!$C238,raw_annual_energy!$D:$D,AH$221,raw_annual_energy!$A:$A,\"CAISO_NW_Hydro\")/1000","v":0},{"$f":"SUMIFS(raw_annual_energy!$F:$F,Lists!$S:$S,$C238,raw_annual_energy!$D:$D,AI$221,raw_annual_energy!$A:$A,mainzone)/1000+SUMIFS(raw_annual_energy!$F:$F,Lists!$S:$S,'Portfolio Analytics'!$C238,raw_annual_energy!$D:$D,AI$221,raw_annual_energy!$A:$A,\"CAISO_NW_Hydro\")/1000","v":0},{"$f":"SUMIFS(raw_annual_energy!$F:$F,Lists!$S:$S,$C238,raw_annual_energy!$D:$D,AJ$221,raw_annual_energy!$A:$A,mainzone)/1000+SUMIFS(raw_annual_energy!$F:$F,Lists!$S:$S,'Portfolio Analytics'!$C238,raw_annual_energy!$D:$D,AJ$221,raw_annual_energy!$A:$A,\"CAISO_NW_Hydro\")/1000","v":0},{"$f":"SUMIFS(raw_annual_energy!$F:$F,Lists!$S:$S,$C238,raw_annual_energy!$D:$D,AK$221,raw_annual_energy!$A:$A,mainzone)/1000+SUMIFS(raw_annual_energy!$F:$F,Lists!$S:$S,'Portfolio Analytics'!$C238,raw_annual_energy!$D:$D,AK$221,raw_annual_energy!$A:$A,\"CAISO_NW_Hydro\")/1000","v":0},{"$f":"SUMIFS(raw_annual_energy!$F:$F,Lists!$S:$S,$C238,raw_annual_energy!$D:$D,AL$221,raw_annual_energy!$A:$A,mainzone)/1000+SUMIFS(raw_annual_energy!$F:$F,Lists!$S:$S,'Portfolio Analytics'!$C238,raw_annual_energy!$D:$D,AL$221,raw_annual_energy!$A:$A,\"CAISO_NW_Hydro\")/1000","v":0},{"$f":"SUMIFS(raw_annual_energy!$F:$F,Lists!$S:$S,$C238,raw_annual_energy!$D:$D,AM$221,raw_annual_energy!$A:$A,mainzone)/1000+SUMIFS(raw_annual_energy!$F:$F,Lists!$S:$S,'Portfolio Analytics'!$C238,raw_annual_energy!$D:$D,AM$221,raw_annual_energy!$A:$A,\"CAISO_NW_Hydro\")/1000","v":0},{"$f":"SUMIFS(raw_annual_energy!$F:$F,Lists!$S:$S,$C238,raw_annual_energy!$D:$D,AN$221,raw_annual_energy!$A:$A,mainzone)/1000+SUMIFS(raw_annual_energy!$F:$F,Lists!$S:$S,'Portfolio Analytics'!$C238,raw_annual_energy!$D:$D,AN$221,raw_annual_energy!$A:$A,\"CAISO_NW_Hydro\")/1000","v":0}]
[null,null,"CAISO_Advanced_CCGT","GWh",{"$f":"SUMIFS(raw_annual_energy!$F:$F,Lists!$S:$S,$C239,raw_annual_energy!$D:$D,E$221,raw_annual_energy!$A:$A,mainzone)/1000+SUMIFS(raw_annual_energy!$F:$F,Lists!$S:$S,'Portfolio Analytics'!$C239,raw_annual_energy!$D:$D,E$221,raw_annual_energy!$A:$A,\"CAISO_NW_Hydro\")/1000","v":0},{"$f":"SUMIFS(raw_annual_energy!$F:$F,Lists!$S:$S,$C239,raw_annual_energy!$D:$D,F$221,raw_annual_energy!$A:$A,mainzone)/1000+SUMIFS(raw_annual_energy!$F:$F,Lists!$S:$S,'Portfolio Analytics'!$C239,raw_annual_energy!$D:$D,F$221,raw_annual_energy!$A:$A,\"CAISO_NW_Hydro\")/1000","v":0},{"$f":"SUMIFS(raw_annual_energy!$F:$F,Lists!$S:$S,$C239,raw_annual_energy!$D:$D,G$221,raw_annual_energy!$A:$A,mainzone)/1000+SUMIFS(raw_annual_energy!$F:$F,Lists!$S:$S,'Portfolio Analytics'!$C239,raw_annual_energy!$D:$D,G$221,raw_annual_energy!$A:$A,\"CAISO_NW_Hydro\")/1000","v":0},{"$f":"SUMIFS(raw_annual_energy!$F:$F,Lists!$S:$S,$C239,raw_annual_energy!$D:$D,H$221,raw_annual_energy!$A:$A,mainzone)/1000+SUMIFS(raw_annual_energy!$F:$F,Lists!$S:$S,'Portfolio Analytics'!$C239,raw_annual_energy!$D:$D,H$221,raw_annual_energy!$A:$A,\"CAISO_NW_Hydro\")/1000","v":0},{"$f":"SUMIFS(raw_annual_energy!$F:$F,Lists!$S:$S,$C239,raw_annual_energy!$D:$D,I$221,raw_annual_energy!$A:$A,mainzone)/1000+SUMIFS(raw_annual_energy!$F:$F,Lists!$S:$S,'Portfolio Analytics'!$C239,raw_annual_energy!$D:$D,I$221,raw_annual_energy!$A:$A,\"CAISO_NW_Hydro\")/1000","v":0},{"$f":"SUMIFS(raw_annual_energy!$F:$F,Lists!$S:$S,$C239,raw_annual_energy!$D:$D,J$221,raw_annual_energy!$A:$A,mainzone)/1000+SUMIFS(raw_annual_energy!$F:$F,Lists!$S:$S,'Portfolio Analytics'!$C239,raw_annual_energy!$D:$D,J$221,raw_annual_energy!$A:$A,\"CAISO_NW_Hydro\")/1000","v":0},{"$f":"SUMIFS(raw_annual_energy!$F:$F,Lists!$S:$S,$C239,raw_annual_energy!$D:$D,K$221,raw_annual_energy!$A:$A,mainzone)/1000+SUMIFS(raw_annual_energy!$F:$F,Lists!$S:$S,'Portfolio Analytics'!$C239,raw_annual_energy!$D:$D,K$221,raw_annual_energy!$A:$A,\"CAISO_NW_Hydro\")/1000","v":0},{"$f":"SUMIFS(raw_annual_energy!$F:$F,Lists!$S:$S,$C239,raw_annual_energy!$D:$D,L$221,raw_annual_energy!$A:$A,mainzone)/1000+SUMIFS(raw_annual_energy!$F:$F,Lists!$S:$S,'Portfolio Analytics'!$C239,raw_annual_energy!$D:$D,L$221,raw_annual_energy!$A:$A,\"CAISO_NW_Hydro\")/1000","v":0},{"$f":"SUMIFS(raw_annual_energy!$F:$F,Lists!$S:$S,$C239,raw_annual_energy!$D:$D,M$221,raw_annual_energy!$A:$A,mainzone)/1000+SUMIFS(raw_annual_energy!$F:$F,Lists!$S:$S,'Portfolio Analytics'!$C239,raw_annual_energy!$D:$D,M$221,raw_annual_energy!$A:$A,\"CAISO_NW_Hydro\")/1000","v":0},{"$f":"SUMIFS(raw_annual_energy!$F:$F,Lists!$S:$S,$C239,raw_annual_energy!$D:$D,N$221,raw_annual_energy!$A:$A,mainzone)/1000+SUMIFS(raw_annual_energy!$F:$F,Lists!$S:$S,'Portfolio Analytics'!$C239,raw_annual_energy!$D:$D,N$221,raw_annual_energy!$A:$A,\"CAISO_NW_Hydro\")/1000","v":0},{"$f":"SUMIFS(raw_annual_energy!$F:$F,Lists!$S:$S,$C239,raw_annual_energy!$D:$D,O$221,raw_annual_energy!$A:$A,mainzone)/1000+SUMIFS(raw_annual_energy!$F:$F,Lists!$S:$S,'Portfolio Analytics'!$C239,raw_annual_energy!$D:$D,O$221,raw_annual_energy!$A:$A,\"CAISO_NW_Hydro\")/1000","v":0},{"$f":"SUMIFS(raw_annual_energy!$F:$F,Lists!$S:$S,$C239,raw_annual_energy!$D:$D,P$221,raw_annual_energy!$A:$A,mainzone)/1000+SUMIFS(raw_annual_energy!$F:$F,Lists!$S:$S,'Portfolio Analytics'!$C239,raw_annual_energy!$D:$D,P$221,raw_annual_energy!$A:$A,\"CAISO_NW_Hydro\")/1000","v":0},{"$f":"SUMIFS(raw_annual_energy!$F:$F,Lists!$S:$S,$C239,raw_annual_energy!$D:$D,Q$221,raw_annual_energy!$A:$A,mainzone)/1000+SUMIFS(raw_annual_energy!$F:$F,Lists!$S:$S,'Portfolio Analytics'!$C239,raw_annual_energy!$D:$D,Q$221,raw_annual_energy!$A:$A,\"CAISO_NW_Hydro\")/1000","v":0},{"$f":"SUMIFS(raw_annual_energy!$F:$F,Lists!$S:$S,$C239,raw_annual_energy!$D:$D,R$221,raw_annual_energy!$A:$A,mainzone)/1000+SUMIFS(raw_annual_energy!$F:$F,Lists!$S:$S,'Portfolio Analytics'!$C239,raw_annual_energy!$D:$D,R$221,raw_annual_energy!$A:$A,\"CAISO_NW_Hydro\")/1000","v":0},{"$f":"SUMIFS(raw_annual_energy!$F:$F,Lists!$S:$S,$C239,raw_annual_energy!$D:$D,S$221,raw_annual_energy!$A:$A,mainzone)/1000+SUMIFS(raw_annual_energy!$F:$F,Lists!$S:$S,'Portfolio Analytics'!$C239,raw_annual_energy!$D:$D,S$221,raw_annual_energy!$A:$A,\"CAISO_NW_Hydro\")/1000","v":0},{"$f":"SUMIFS(raw_annual_energy!$F:$F,Lists!$S:$S,$C239,raw_annual_energy!$D:$D,T$221,raw_annual_energy!$A:$A,mainzone)/1000+SUMIFS(raw_annual_energy!$F:$F,Lists!$S:$S,'Portfolio Analytics'!$C239,raw_annual_energy!$D:$D,T$221,raw_annual_energy!$A:$A,\"CAISO_NW_Hydro\")/1000","v":0},{"$f":"SUMIFS(raw_annual_energy!$F:$F,Lists!$S:$S,$C239,raw_annual_energy!$D:$D,U$221,raw_annual_energy!$A:$A,mainzone)/1000+SUMIFS(raw_annual_energy!$F:$F,Lists!$S:$S,'Portfolio Analytics'!$C239,raw_annual_energy!$D:$D,U$221,raw_annual_energy!$A:$A,\"CAISO_NW_Hydro\")/1000","v":0},{"$f":"SUMIFS(raw_annual_energy!$F:$F,Lists!$S:$S,$C239,raw_annual_energy!$D:$D,V$221,raw_annual_energy!$A:$A,mainzone)/1000+SUMIFS(raw_annual_energy!$F:$F,Lists!$S:$S,'Portfolio Analytics'!$C239,raw_annual_energy!$D:$D,V$221,raw_annual_energy!$A:$A,\"CAISO_NW_Hydro\")/1000","v":0},{"$f":"SUMIFS(raw_annual_energy!$F:$F,Lists!$S:$S,$C239,raw_annual_energy!$D:$D,W$221,raw_annual_energy!$A:$A,mainzone)/1000+SUMIFS(raw_annual_energy!$F:$F,Lists!$S:$S,'Portfolio Analytics'!$C239,raw_annual_energy!$D:$D,W$221,raw_annual_energy!$A:$A,\"CAISO_NW_Hydro\")/1000","v":0},{"$f":"SUMIFS(raw_annual_energy!$F:$F,Lists!$S:$S,$C239,raw_annual_energy!$D:$D,X$221,raw_annual_energy!$A:$A,mainzone)/1000+SUMIFS(raw_annual_energy!$F:$F,Lists!$S:$S,'Portfolio Analytics'!$C239,raw_annual_energy!$D:$D,X$221,raw_annual_energy!$A:$A,\"CAISO_NW_Hydro\")/1000","v":0},{"$f":"SUMIFS(raw_annual_energy!$F:$F,Lists!$S:$S,$C239,raw_annual_energy!$D:$D,Y$221,raw_annual_energy!$A:$A,mainzone)/1000+SUMIFS(raw_annual_energy!$F:$F,Lists!$S:$S,'Portfolio Analytics'!$C239,raw_annual_energy!$D:$D,Y$221,raw_annual_energy!$A:$A,\"CAISO_NW_Hydro\")/1000","v":0},{"$f":"SUMIFS(raw_annual_energy!$F:$F,Lists!$S:$S,$C239,raw_annual_energy!$D:$D,Z$221,raw_annual_energy!$A:$A,mainzone)/1000+SUMIFS(raw_annual_energy!$F:$F,Lists!$S:$S,'Portfolio Analytics'!$C239,raw_annual_energy!$D:$D,Z$221,raw_annual_energy!$A:$A,\"CAISO_NW_Hydro\")/1000","v":0},{"$f":"SUMIFS(raw_annual_energy!$F:$F,Lists!$S:$S,$C239,raw_annual_energy!$D:$D,AA$221,raw_annual_energy!$A:$A,mainzone)/1000+SUMIFS(raw_annual_energy!$F:$F,Lists!$S:$S,'Portfolio Analytics'!$C239,raw_annual_energy!$D:$D,AA$221,raw_annual_energy!$A:$A,\"CAISO_NW_Hydro\")/1000","v":0},{"$f":"SUMIFS(raw_annual_energy!$F:$F,Lists!$S:$S,$C239,raw_annual_energy!$D:$D,AB$221,raw_annual_energy!$A:$A,mainzone)/1000+SUMIFS(raw_annual_energy!$F:$F,Lists!$S:$S,'Portfolio Analytics'!$C239,raw_annual_energy!$D:$D,AB$221,raw_annual_energy!$A:$A,\"CAISO_NW_Hydro\")/1000","v":0},{"$f":"SUMIFS(raw_annual_energy!$F:$F,Lists!$S:$S,$C239,raw_annual_energy!$D:$D,AC$221,raw_annual_energy!$A:$A,mainzone)/1000+SUMIFS(raw_annual_energy!$F:$F,Lists!$S:$S,'Portfolio Analytics'!$C239,raw_annual_energy!$D:$D,AC$221,raw_annual_energy!$A:$A,\"CAISO_NW_Hydro\")/1000","v":0},{"$f":"SUMIFS(raw_annual_energy!$F:$F,Lists!$S:$S,$C239,raw_annual_energy!$D:$D,AD$221,raw_annual_energy!$A:$A,mainzone)/1000+SUMIFS(raw_annual_energy!$F:$F,Lists!$S:$S,'Portfolio Analytics'!$C239,raw_annual_energy!$D:$D,AD$221,raw_annual_energy!$A:$A,\"CAISO_NW_Hydro\")/1000","v":0},{"$f":"SUMIFS(raw_annual_energy!$F:$F,Lists!$S:$S,$C239,raw_annual_energy!$D:$D,AE$221,raw_annual_energy!$A:$A,mainzone)/1000+SUMIFS(raw_annual_energy!$F:$F,Lists!$S:$S,'Portfolio Analytics'!$C239,raw_annual_energy!$D:$D,AE$221,raw_annual_energy!$A:$A,\"CAISO_NW_Hydro\")/1000","v":0},{"$f":"SUMIFS(raw_annual_energy!$F:$F,Lists!$S:$S,$C239,raw_annual_energy!$D:$D,AF$221,raw_annual_energy!$A:$A,mainzone)/1000+SUMIFS(raw_annual_energy!$F:$F,Lists!$S:$S,'Portfolio Analytics'!$C239,raw_annual_energy!$D:$D,AF$221,raw_annual_energy!$A:$A,\"CAISO_NW_Hydro\")/1000","v":0},{"$f":"SUMIFS(raw_annual_energy!$F:$F,Lists!$S:$S,$C239,raw_annual_energy!$D:$D,AG$221,raw_annual_energy!$A:$A,mainzone)/1000+SUMIFS(raw_annual_energy!$F:$F,Lists!$S:$S,'Portfolio Analytics'!$C239,raw_annual_energy!$D:$D,AG$221,raw_annual_energy!$A:$A,\"CAISO_NW_Hydro\")/1000","v":0},{"$f":"SUMIFS(raw_annual_energy!$F:$F,Lists!$S:$S,$C239,raw_annual_energy!$D:$D,AH$221,raw_annual_energy!$A:$A,mainzone)/1000+SUMIFS(raw_annual_energy!$F:$F,Lists!$S:$S,'Portfolio Analytics'!$C239,raw_annual_energy!$D:$D,AH$221,raw_annual_energy!$A:$A,\"CAISO_NW_Hydro\")/1000","v":0},{"$f":"SUMIFS(raw_annual_energy!$F:$F,Lists!$S:$S,$C239,raw_annual_energy!$D:$D,AI$221,raw_annual_energy!$A:$A,mainzone)/1000+SUMIFS(raw_annual_energy!$F:$F,Lists!$S:$S,'Portfolio Analytics'!$C239,raw_annual_energy!$D:$D,AI$221,raw_annual_energy!$A:$A,\"CAISO_NW_Hydro\")/1000","v":0},{"$f":"SUMIFS(raw_annual_energy!$F:$F,Lists!$S:$S,$C239,raw_annual_energy!$D:$D,AJ$221,raw_annual_energy!$A:$A,mainzone)/1000+SUMIFS(raw_annual_energy!$F:$F,Lists!$S:$S,'Portfolio Analytics'!$C239,raw_annual_energy!$D:$D,AJ$221,raw_annual_energy!$A:$A,\"CAISO_NW_Hydro\")/1000","v":0},{"$f":"SUMIFS(raw_annual_energy!$F:$F,Lists!$S:$S,$C239,raw_annual_energy!$D:$D,AK$221,raw_annual_energy!$A:$A,mainzone)/1000+SUMIFS(raw_annual_energy!$F:$F,Lists!$S:$S,'Portfolio Analytics'!$C239,raw_annual_energy!$D:$D,AK$221,raw_annual_energy!$A:$A,\"CAISO_NW_Hydro\")/1000","v":0},{"$f":"SUMIFS(raw_annual_energy!$F:$F,Lists!$S:$S,$C239,raw_annual_energy!$D:$D,AL$221,raw_annual_energy!$A:$A,mainzone)/1000+SUMIFS(raw_annual_energy!$F:$F,Lists!$S:$S,'Portfolio Analytics'!$C239,raw_annual_energy!$D:$D,AL$221,raw_annual_energy!$A:$A,\"CAISO_NW_Hydro\")/1000","v":0},{"$f":"SUMIFS(raw_annual_energy!$F:$F,Lists!$S:$S,$C239,raw_annual_energy!$D:$D,AM$221,raw_annual_energy!$A:$A,mainzone)/1000+SUMIFS(raw_annual_energy!$F:$F,Lists!$S:$S,'Portfolio Analytics'!$C239,raw_annual_energy!$D:$D,AM$221,raw_annual_energy!$A:$A,\"CAISO_NW_Hydro\")/1000","v":0},{"$f":"SUMIFS(raw_annual_energy!$F:$F,Lists!$S:$S,$C239,raw_annual_energy!$D:$D,AN$221,raw_annual_energy!$A:$A,mainzone)/1000+SUMIFS(raw_annual_energy!$F:$F,Lists!$S:$S,'Portfolio Analytics'!$C239,raw_annual_energy!$D:$D,AN$221,raw_annual_energy!$A:$A,\"CAISO_NW_Hydro\")/1000","v":0}]
[null,null,"CAISO_Aero_CT","GWh",{"$f":"SUMIFS(raw_annual_energy!$F:$F,Lists!$S:$S,$C240,raw_annual_energy!$D:$D,E$221,raw_annual_energy!$A:$A,mainzone)/1000+SUMIFS(raw_annual_energy!$F:$F,Lists!$S:$S,'Portfolio Analytics'!$C240,raw_annual_energy!$D:$D,E$221,raw_annual_energy!$A:$A,\"CAISO_NW_Hydro\")/1000","v":0},{"$f":"SUMIFS(raw_annual_energy!$F:$F,Lists!$S:$S,$C240,raw_annual_energy!$D:$D,F$221,raw_annual_energy!$A:$A,mainzone)/1000+SUMIFS(raw_annual_energy!$F:$F,Lists!$S:$S,'Portfolio Analytics'!$C240,raw_annual_energy!$D:$D,F$221,raw_annual_energy!$A:$A,\"CAISO_NW_Hydro\")/1000","v":0},{"$f":"SUMIFS(raw_annual_energy!$F:$F,Lists!$S:$S,$C240,raw_annual_energy!$D:$D,G$221,raw_annual_energy!$A:$A,mainzone)/1000+SUMIFS(raw_annual_energy!$F:$F,Lists!$S:$S,'Portfolio Analytics'!$C240,raw_annual_energy!$D:$D,G$221,raw_annual_energy!$A:$A,\"CAISO_NW_Hydro\")/1000","v":0},{"$f":"SUMIFS(raw_annual_energy!$F:$F,Lists!$S:$S,$C240,raw_annual_energy!$D:$D,H$221,raw_annual_energy!$A:$A,mainzone)/1000+SUMIFS(raw_annual_energy!$F:$F,Lists!$S:$S,'Portfolio Analytics'!$C240,raw_annual_energy!$D:$D,H$221,raw_annual_energy!$A:$A,\"CAISO_NW_Hydro\")/1000","v":0},{"$f":"SUMIFS(raw_annual_energy!$F:$F,Lists!$S:$S,$C240,raw_annual_energy!$D:$D,I$221,raw_annual_energy!$A:$A,mainzone)/1000+SUMIFS(raw_annual_energy!$F:$F,Lists!$S:$S,'Portfolio Analytics'!$C240,raw_annual_energy!$D:$D,I$221,raw_annual_energy!$A:$A,\"CAISO_NW_Hydro\")/1000","v":0},{"$f":"SUMIFS(raw_annual_energy!$F:$F,Lists!$S:$S,$C240,raw_annual_energy!$D:$D,J$221,raw_annual_energy!$A:$A,mainzone)/1000+SUMIFS(raw_annual_energy!$F:$F,Lists!$S:$S,'Portfolio Analytics'!$C240,raw_annual_energy!$D:$D,J$221,raw_annual_energy!$A:$A,\"CAISO_NW_Hydro\")/1000","v":0},{"$f":"SUMIFS(raw_annual_energy!$F:$F,Lists!$S:$S,$C240,raw_annual_energy!$D:$D,K$221,raw_annual_energy!$A:$A,mainzone)/1000+SUMIFS(raw_annual_energy!$F:$F,Lists!$S:$S,'Portfolio Analytics'!$C240,raw_annual_energy!$D:$D,K$221,raw_annual_energy!$A:$A,\"CAISO_NW_Hydro\")/1000","v":0},{"$f":"SUMIFS(raw_annual_energy!$F:$F,Lists!$S:$S,$C240,raw_annual_energy!$D:$D,L$221,raw_annual_energy!$A:$A,mainzone)/1000+SUMIFS(raw_annual_energy!$F:$F,Lists!$S:$S,'Portfolio Analytics'!$C240,raw_annual_energy!$D:$D,L$221,raw_annual_energy!$A:$A,\"CAISO_NW_Hydro\")/1000","v":0},{"$f":"SUMIFS(raw_annual_energy!$F:$F,Lists!$S:$S,$C240,raw_annual_energy!$D:$D,M$221,raw_annual_energy!$A:$A,mainzone)/1000+SUMIFS(raw_annual_energy!$F:$F,Lists!$S:$S,'Portfolio Analytics'!$C240,raw_annual_energy!$D:$D,M$221,raw_annual_energy!$A:$A,\"CAISO_NW_Hydro\")/1000","v":0},{"$f":"SUMIFS(raw_annual_energy!$F:$F,Lists!$S:$S,$C240,raw_annual_energy!$D:$D,N$221,raw_annual_energy!$A:$A,mainzone)/1000+SUMIFS(raw_annual_energy!$F:$F,Lists!$S:$S,'Portfolio Analytics'!$C240,raw_annual_energy!$D:$D,N$221,raw_annual_energy!$A:$A,\"CAISO_NW_Hydro\")/1000","v":0},{"$f":"SUMIFS(raw_annual_energy!$F:$F,Lists!$S:$S,$C240,raw_annual_energy!$D:$D,O$221,raw_annual_energy!$A:$A,mainzone)/1000+SUMIFS(raw_annual_energy!$F:$F,Lists!$S:$S,'Portfolio Analytics'!$C240,raw_annual_energy!$D:$D,O$221,raw_annual_energy!$A:$A,\"CAISO_NW_Hydro\")/1000","v":0},{"$f":"SUMIFS(raw_annual_energy!$F:$F,Lists!$S:$S,$C240,raw_annual_energy!$D:$D,P$221,raw_annual_energy!$A:$A,mainzone)/1000+SUMIFS(raw_annual_energy!$F:$F,Lists!$S:$S,'Portfolio Analytics'!$C240,raw_annual_energy!$D:$D,P$221,raw_annual_energy!$A:$A,\"CAISO_NW_Hydro\")/1000","v":0},{"$f":"SUMIFS(raw_annual_energy!$F:$F,Lists!$S:$S,$C240,raw_annual_energy!$D:$D,Q$221,raw_annual_energy!$A:$A,mainzone)/1000+SUMIFS(raw_annual_energy!$F:$F,Lists!$S:$S,'Portfolio Analytics'!$C240,raw_annual_energy!$D:$D,Q$221,raw_annual_energy!$A:$A,\"CAISO_NW_Hydro\")/1000","v":0},{"$f":"SUMIFS(raw_annual_energy!$F:$F,Lists!$S:$S,$C240,raw_annual_energy!$D:$D,R$221,raw_annual_energy!$A:$A,mainzone)/1000+SUMIFS(raw_annual_energy!$F:$F,Lists!$S:$S,'Portfolio Analytics'!$C240,raw_annual_energy!$D:$D,R$221,raw_annual_energy!$A:$A,\"CAISO_NW_Hydro\")/1000","v":0},{"$f":"SUMIFS(raw_annual_energy!$F:$F,Lists!$S:$S,$C240,raw_annual_energy!$D:$D,S$221,raw_annual_energy!$A:$A,mainzone)/1000+SUMIFS(raw_annual_energy!$F:$F,Lists!$S:$S,'Portfolio Analytics'!$C240,raw_annual_energy!$D:$D,S$221,raw_annual_energy!$A:$A,\"CAISO_NW_Hydro\")/1000","v":0},{"$f":"SUMIFS(raw_annual_energy!$F:$F,Lists!$S:$S,$C240,raw_annual_energy!$D:$D,T$221,raw_annual_energy!$A:$A,mainzone)/1000+SUMIFS(raw_annual_energy!$F:$F,Lists!$S:$S,'Portfolio Analytics'!$C240,raw_annual_energy!$D:$D,T$221,raw_annual_energy!$A:$A,\"CAISO_NW_Hydro\")/1000","v":0},{"$f":"SUMIFS(raw_annual_energy!$F:$F,Lists!$S:$S,$C240,raw_annual_energy!$D:$D,U$221,raw_annual_energy!$A:$A,mainzone)/1000+SUMIFS(raw_annual_energy!$F:$F,Lists!$S:$S,'Portfolio Analytics'!$C240,raw_annual_energy!$D:$D,U$221,raw_annual_energy!$A:$A,\"CAISO_NW_Hydro\")/1000","v":0},{"$f":"SUMIFS(raw_annual_energy!$F:$F,Lists!$S:$S,$C240,raw_annual_energy!$D:$D,V$221,raw_annual_energy!$A:$A,mainzone)/1000+SUMIFS(raw_annual_energy!$F:$F,Lists!$S:$S,'Portfolio Analytics'!$C240,raw_annual_energy!$D:$D,V$221,raw_annual_energy!$A:$A,\"CAISO_NW_Hydro\")/1000","v":0},{"$f":"SUMIFS(raw_annual_energy!$F:$F,Lists!$S:$S,$C240,raw_annual_energy!$D:$D,W$221,raw_annual_energy!$A:$A,mainzone)/1000+SUMIFS(raw_annual_energy!$F:$F,Lists!$S:$S,'Portfolio Analytics'!$C240,raw_annual_energy!$D:$D,W$221,raw_annual_energy!$A:$A,\"CAISO_NW_Hydro\")/1000","v":0},{"$f":"SUMIFS(raw_annual_energy!$F:$F,Lists!$S:$S,$C240,raw_annual_energy!$D:$D,X$221,raw_annual_energy!$A:$A,mainzone)/1000+SUMIFS(raw_annual_energy!$F:$F,Lists!$S:$S,'Portfolio Analytics'!$C240,raw_annual_energy!$D:$D,X$221,raw_annual_energy!$A:$A,\"CAISO_NW_Hydro\")/1000","v":0},{"$f":"SUMIFS(raw_annual_energy!$F:$F,Lists!$S:$S,$C240,raw_annual_energy!$D:$D,Y$221,raw_annual_energy!$A:$A,mainzone)/1000+SUMIFS(raw_annual_energy!$F:$F,Lists!$S:$S,'Portfolio Analytics'!$C240,raw_annual_energy!$D:$D,Y$221,raw_annual_energy!$A:$A,\"CAISO_NW_Hydro\")/1000","v":0},{"$f":"SUMIFS(raw_annual_energy!$F:$F,Lists!$S:$S,$C240,raw_annual_energy!$D:$D,Z$221,raw_annual_energy!$A:$A,mainzone)/1000+SUMIFS(raw_annual_energy!$F:$F,Lists!$S:$S,'Portfolio Analytics'!$C240,raw_annual_energy!$D:$D,Z$221,raw_annual_energy!$A:$A,\"CAISO_NW_Hydro\")/1000","v":0},{"$f":"SUMIFS(raw_annual_energy!$F:$F,Lists!$S:$S,$C240,raw_annual_energy!$D:$D,AA$221,raw_annual_energy!$A:$A,mainzone)/1000+SUMIFS(raw_annual_energy!$F:$F,Lists!$S:$S,'Portfolio Analytics'!$C240,raw_annual_energy!$D:$D,AA$221,raw_annual_energy!$A:$A,\"CAISO_NW_Hydro\")/1000","v":0},{"$f":"SUMIFS(raw_annual_energy!$F:$F,Lists!$S:$S,$C240,raw_annual_energy!$D:$D,AB$221,raw_annual_energy!$A:$A,mainzone)/1000+SUMIFS(raw_annual_energy!$F:$F,Lists!$S:$S,'Portfolio Analytics'!$C240,raw_annual_energy!$D:$D,AB$221,raw_annual_energy!$A:$A,\"CAISO_NW_Hydro\")/1000","v":0},{"$f":"SUMIFS(raw_annual_energy!$F:$F,Lists!$S:$S,$C240,raw_annual_energy!$D:$D,AC$221,raw_annual_energy!$A:$A,mainzone)/1000+SUMIFS(raw_annual_energy!$F:$F,Lists!$S:$S,'Portfolio Analytics'!$C240,raw_annual_energy!$D:$D,AC$221,raw_annual_energy!$A:$A,\"CAISO_NW_Hydro\")/1000","v":0},{"$f":"SUMIFS(raw_annual_energy!$F:$F,Lists!$S:$S,$C240,raw_annual_energy!$D:$D,AD$221,raw_annual_energy!$A:$A,mainzone)/1000+SUMIFS(raw_annual_energy!$F:$F,Lists!$S:$S,'Portfolio Analytics'!$C240,raw_annual_energy!$D:$D,AD$221,raw_annual_energy!$A:$A,\"CAISO_NW_Hydro\")/1000","v":0},{"$f":"SUMIFS(raw_annual_energy!$F:$F,Lists!$S:$S,$C240,raw_annual_energy!$D:$D,AE$221,raw_annual_energy!$A:$A,mainzone)/1000+SUMIFS(raw_annual_energy!$F:$F,Lists!$S:$S,'Portfolio Analytics'!$C240,raw_annual_energy!$D:$D,AE$221,raw_annual_energy!$A:$A,\"CAISO_NW_Hydro\")/1000","v":0},{"$f":"SUMIFS(raw_annual_energy!$F:$F,Lists!$S:$S,$C240,raw_annual_energy!$D:$D,AF$221,raw_annual_energy!$A:$A,mainzone)/1000+SUMIFS(raw_annual_energy!$F:$F,Lists!$S:$S,'Portfolio Analytics'!$C240,raw_annual_energy!$D:$D,AF$221,raw_annual_energy!$A:$A,\"CAISO_NW_Hydro\")/1000","v":0},{"$f":"SUMIFS(raw_annual_energy!$F:$F,Lists!$S:$S,$C240,raw_annual_energy!$D:$D,AG$221,raw_annual_energy!$A:$A,mainzone)/1000+SUMIFS(raw_annual_energy!$F:$F,Lists!$S:$S,'Portfolio Analytics'!$C240,raw_annual_energy!$D:$D,AG$221,raw_annual_energy!$A:$A,\"CAISO_NW_Hydro\")/1000","v":0},{"$f":"SUMIFS(raw_annual_energy!$F:$F,Lists!$S:$S,$C240,raw_annual_energy!$D:$D,AH$221,raw_annual_energy!$A:$A,mainzone)/1000+SUMIFS(raw_annual_energy!$F:$F,Lists!$S:$S,'Portfolio Analytics'!$C240,raw_annual_energy!$D:$D,AH$221,raw_annual_energy!$A:$A,\"CAISO_NW_Hydro\")/1000","v":0},{"$f":"SUMIFS(raw_annual_energy!$F:$F,Lists!$S:$S,$C240,raw_annual_energy!$D:$D,AI$221,raw_annual_energy!$A:$A,mainzone)/1000+SUMIFS(raw_annual_energy!$F:$F,Lists!$S:$S,'Portfolio Analytics'!$C240,raw_annual_energy!$D:$D,AI$221,raw_annual_energy!$A:$A,\"CAISO_NW_Hydro\")/1000","v":0},{"$f":"SUMIFS(raw_annual_energy!$F:$F,Lists!$S:$S,$C240,raw_annual_energy!$D:$D,AJ$221,raw_annual_energy!$A:$A,mainzone)/1000+SUMIFS(raw_annual_energy!$F:$F,Lists!$S:$S,'Portfolio Analytics'!$C240,raw_annual_energy!$D:$D,AJ$221,raw_annual_energy!$A:$A,\"CAISO_NW_Hydro\")/1000","v":0},{"$f":"SUMIFS(raw_annual_energy!$F:$F,Lists!$S:$S,$C240,raw_annual_energy!$D:$D,AK$221,raw_annual_energy!$A:$A,mainzone)/1000+SUMIFS(raw_annual_energy!$F:$F,Lists!$S:$S,'Portfolio Analytics'!$C240,raw_annual_energy!$D:$D,AK$221,raw_annual_energy!$A:$A,\"CAISO_NW_Hydro\")/1000","v":0},{"$f":"SUMIFS(raw_annual_energy!$F:$F,Lists!$S:$S,$C240,raw_annual_energy!$D:$D,AL$221,raw_annual_energy!$A:$A,mainzone)/1000+SUMIFS(raw_annual_energy!$F:$F,Lists!$S:$S,'Portfolio Analytics'!$C240,raw_annual_energy!$D:$D,AL$221,raw_annual_energy!$A:$A,\"CAISO_NW_Hydro\")/1000","v":0},{"$f":"SUMIFS(raw_annual_energy!$F:$F,Lists!$S:$S,$C240,raw_annual_energy!$D:$D,AM$221,raw_annual_energy!$A:$A,mainzone)/1000+SUMIFS(raw_annual_energy!$F:$F,Lists!$S:$S,'Portfolio Analytics'!$C240,raw_annual_energy!$D:$D,AM$221,raw_annual_energy!$A:$A,\"CAISO_NW_Hydro\")/1000","v":0},{"$f":"SUMIFS(raw_annual_energy!$F:$F,Lists!$S:$S,$C240,raw_annual_energy!$D:$D,AN$221,raw_annual_energy!$A:$A,mainzone)/1000+SUMIFS(raw_annual_energy!$F:$F,Lists!$S:$S,'Portfolio Analytics'!$C240,raw_annual_energy!$D:$D,AN$221,raw_annual_energy!$A:$A,\"CAISO_NW_Hydro\")/1000","v":0}]
[null,null,"CAISO_Reciprocating_Engine","GWh",{"$f":"SUMIFS(raw_annual_energy!$F:$F,Lists!$S:$S,$C241,raw_annual_energy!$D:$D,E$221,raw_annual_energy!$A:$A,mainzone)/1000+SUMIFS(raw_annual_energy!$F:$F,Lists!$S:$S,'Portfolio Analytics'!$C241,raw_annual_energy!$D:$D,E$221,raw_annual_energy!$A:$A,\"CAISO_NW_Hydro\")/1000","v":0},{"$f":"SUMIFS(raw_annual_energy!$F:$F,Lists!$S:$S,$C241,raw_annual_energy!$D:$D,F$221,raw_annual_energy!$A:$A,mainzone)/1000+SUMIFS(raw_annual_energy!$F:$F,Lists!$S:$S,'Portfolio Analytics'!$C241,raw_annual_energy!$D:$D,F$221,raw_annual_energy!$A:$A,\"CAISO_NW_Hydro\")/1000","v":0},{"$f":"SUMIFS(raw_annual_energy!$F:$F,Lists!$S:$S,$C241,raw_annual_energy!$D:$D,G$221,raw_annual_energy!$A:$A,mainzone)/1000+SUMIFS(raw_annual_energy!$F:$F,Lists!$S:$S,'Portfolio Analytics'!$C241,raw_annual_energy!$D:$D,G$221,raw_annual_energy!$A:$A,\"CAISO_NW_Hydro\")/1000","v":0},{"$f":"SUMIFS(raw_annual_energy!$F:$F,Lists!$S:$S,$C241,raw_annual_energy!$D:$D,H$221,raw_annual_energy!$A:$A,mainzone)/1000+SUMIFS(raw_annual_energy!$F:$F,Lists!$S:$S,'Portfolio Analytics'!$C241,raw_annual_energy!$D:$D,H$221,raw_annual_energy!$A:$A,\"CAISO_NW_Hydro\")/1000","v":0},{"$f":"SUMIFS(raw_annual_energy!$F:$F,Lists!$S:$S,$C241,raw_annual_energy!$D:$D,I$221,raw_annual_energy!$A:$A,mainzone)/1000+SUMIFS(raw_annual_energy!$F:$F,Lists!$S:$S,'Portfolio Analytics'!$C241,raw_annual_energy!$D:$D,I$221,raw_annual_energy!$A:$A,\"CAISO_NW_Hydro\")/1000","v":0},{"$f":"SUMIFS(raw_annual_energy!$F:$F,Lists!$S:$S,$C241,raw_annual_energy!$D:$D,J$221,raw_annual_energy!$A:$A,mainzone)/1000+SUMIFS(raw_annual_energy!$F:$F,Lists!$S:$S,'Portfolio Analytics'!$C241,raw_annual_energy!$D:$D,J$221,raw_annual_energy!$A:$A,\"CAISO_NW_Hydro\")/1000","v":26.522565101318101},{"$f":"SUMIFS(raw_annual_energy!$F:$F,Lists!$S:$S,$C241,raw_annual_energy!$D:$D,K$221,raw_annual_energy!$A:$A,mainzone)/1000+SUMIFS(raw_annual_energy!$F:$F,Lists!$S:$S,'Portfolio Analytics'!$C241,raw_annual_energy!$D:$D,K$221,raw_annual_energy!$A:$A,\"CAISO_NW_Hydro\")/1000","v":16.1911775626969},{"$f":"SUMIFS(raw_annual_energy!$F:$F,Lists!$S:$S,$C241,raw_annual_energy!$D:$D,L$221,raw_annual_energy!$A:$A,mainzone)/1000+SUMIFS(raw_annual_energy!$F:$F,Lists!$S:$S,'Portfolio Analytics'!$C241,raw_annual_energy!$D:$D,L$221,raw_annual_energy!$A:$A,\"CAISO_NW_Hydro\")/1000","v":14.0756708696119},{"$f":"SUMIFS(raw_annual_energy!$F:$F,Lists!$S:$S,$C241,raw_annual_energy!$D:$D,M$221,raw_annual_energy!$A:$A,mainzone)/1000+SUMIFS(raw_annual_energy!$F:$F,Lists!$S:$S,'Portfolio Analytics'!$C241,raw_annual_energy!$D:$D,M$221,raw_annual_energy!$A:$A,\"CAISO_NW_Hydro\")/1000","v":14.851084975410501},{"$f":"SUMIFS(raw_annual_energy!$F:$F,Lists!$S:$S,$C241,raw_annual_energy!$D:$D,N$221,raw_annual_energy!$A:$A,mainzone)/1000+SUMIFS(raw_annual_energy!$F:$F,Lists!$S:$S,'Portfolio Analytics'!$C241,raw_annual_energy!$D:$D,N$221,raw_annual_energy!$A:$A,\"CAISO_NW_Hydro\")/1000","v":12.7223475135778},{"$f":"SUMIFS(raw_annual_energy!$F:$F,Lists!$S:$S,$C241,raw_annual_energy!$D:$D,O$221,raw_annual_energy!$A:$A,mainzone)/1000+SUMIFS(raw_annual_energy!$F:$F,Lists!$S:$S,'Portfolio Analytics'!$C241,raw_annual_energy!$D:$D,O$221,raw_annual_energy!$A:$A,\"CAISO_NW_Hydro\")/1000","v":0},{"$f":"SUMIFS(raw_annual_energy!$F:$F,Lists!$S:$S,$C241,raw_annual_energy!$D:$D,P$221,raw_annual_energy!$A:$A,mainzone)/1000+SUMIFS(raw_annual_energy!$F:$F,Lists!$S:$S,'Portfolio Analytics'!$C241,raw_annual_energy!$D:$D,P$221,raw_annual_energy!$A:$A,\"CAISO_NW_Hydro\")/1000","v":3.9302744148105},{"$f":"SUMIFS(raw_annual_energy!$F:$F,Lists!$S:$S,$C241,raw_annual_energy!$D:$D,Q$221,raw_annual_energy!$A:$A,mainzone)/1000+SUMIFS(raw_annual_energy!$F:$F,Lists!$S:$S,'Portfolio Analytics'!$C241,raw_annual_energy!$D:$D,Q$221,raw_annual_energy!$A:$A,\"CAISO_NW_Hydro\")/1000","v":0},{"$f":"SUMIFS(raw_annual_energy!$F:$F,Lists!$S:$S,$C241,raw_annual_energy!$D:$D,R$221,raw_annual_energy!$A:$A,mainzone)/1000+SUMIFS(raw_annual_energy!$F:$F,Lists!$S:$S,'Portfolio Analytics'!$C241,raw_annual_energy!$D:$D,R$221,raw_annual_energy!$A:$A,\"CAISO_NW_Hydro\")/1000","v":0},{"$f":"SUMIFS(raw_annual_energy!$F:$F,Lists!$S:$S,$C241,raw_annual_energy!$D:$D,S$221,raw_annual_energy!$A:$A,mainzone)/1000+SUMIFS(raw_annual_energy!$F:$F,Lists!$S:$S,'Portfolio Analytics'!$C241,raw_annual_energy!$D:$D,S$221,raw_annual_energy!$A:$A,\"CAISO_NW_Hydro\")/1000","v":0},{"$f":"SUMIFS(raw_annual_energy!$F:$F,Lists!$S:$S,$C241,raw_annual_energy!$D:$D,T$221,raw_annual_energy!$A:$A,mainzone)/1000+SUMIFS(raw_annual_energy!$F:$F,Lists!$S:$S,'Portfolio Analytics'!$C241,raw_annual_energy!$D:$D,T$221,raw_annual_energy!$A:$A,\"CAISO_NW_Hydro\")/1000","v":8.5572812200233699},{"$f":"SUMIFS(raw_annual_energy!$F:$F,Lists!$S:$S,$C241,raw_annual_energy!$D:$D,U$221,raw_annual_energy!$A:$A,mainzone)/1000+SUMIFS(raw_annual_energy!$F:$F,Lists!$S:$S,'Portfolio Analytics'!$C241,raw_annual_energy!$D:$D,U$221,raw_annual_energy!$A:$A,\"CAISO_NW_Hydro\")/1000","v":0},{"$f":"SUMIFS(raw_annual_energy!$F:$F,Lists!$S:$S,$C241,raw_annual_energy!$D:$D,V$221,raw_annual_energy!$A:$A,mainzone)/1000+SUMIFS(raw_annual_energy!$F:$F,Lists!$S:$S,'Portfolio Analytics'!$C241,raw_annual_energy!$D:$D,V$221,raw_annual_energy!$A:$A,\"CAISO_NW_Hydro\")/1000","v":0},{"$f":"SUMIFS(raw_annual_energy!$F:$F,Lists!$S:$S,$C241,raw_annual_energy!$D:$D,W$221,raw_annual_energy!$A:$A,mainzone)/1000+SUMIFS(raw_annual_energy!$F:$F,Lists!$S:$S,'Portfolio Analytics'!$C241,raw_annual_energy!$D:$D,W$221,raw_annual_energy!$A:$A,\"CAISO_NW_Hydro\")/1000","v":0},{"$f":"SUMIFS(raw_annual_energy!$F:$F,Lists!$S:$S,$C241,raw_annual_energy!$D:$D,X$221,raw_annual_energy!$A:$A,mainzone)/1000+SUMIFS(raw_annual_energy!$F:$F,Lists!$S:$S,'Portfolio Analytics'!$C241,raw_annual_energy!$D:$D,X$221,raw_annual_energy!$A:$A,\"CAISO_NW_Hydro\")/1000","v":0},{"$f":"SUMIFS(raw_annual_energy!$F:$F,Lists!$S:$S,$C241,raw_annual_energy!$D:$D,Y$221,raw_annual_energy!$A:$A,mainzone)/1000+SUMIFS(raw_annual_energy!$F:$F,Lists!$S:$S,'Portfolio Analytics'!$C241,raw_annual_energy!$D:$D,Y$221,raw_annual_energy!$A:$A,\"CAISO_NW_Hydro\")/1000","v":0},{"$f":"SUMIFS(raw_annual_energy!$F:$F,Lists!$S:$S,$C241,raw_annual_energy!$D:$D,Z$221,raw_annual_energy!$A:$A,mainzone)/1000+SUMIFS(raw_annual_energy!$F:$F,Lists!$S:$S,'Portfolio Analytics'!$C241,raw_annual_energy!$D:$D,Z$221,raw_annual_energy!$A:$A,\"CAISO_NW_Hydro\")/1000","v":0},{"$f":"SUMIFS(raw_annual_energy!$F:$F,Lists!$S:$S,$C241,raw_annual_energy!$D:$D,AA$221,raw_annual_energy!$A:$A,mainzone)/1000+SUMIFS(raw_annual_energy!$F:$F,Lists!$S:$S,'Portfolio Analytics'!$C241,raw_annual_energy!$D:$D,AA$221,raw_annual_energy!$A:$A,\"CAISO_NW_Hydro\")/1000","v":0},{"$f":"SUMIFS(raw_annual_energy!$F:$F,Lists!$S:$S,$C241,raw_annual_energy!$D:$D,AB$221,raw_annual_energy!$A:$A,mainzone)/1000+SUMIFS(raw_annual_energy!$F:$F,Lists!$S:$S,'Portfolio Analytics'!$C241,raw_annual_energy!$D:$D,AB$221,raw_annual_energy!$A:$A,\"CAISO_NW_Hydro\")/1000","v":0},{"$f":"SUMIFS(raw_annual_energy!$F:$F,Lists!$S:$S,$C241,raw_annual_energy!$D:$D,AC$221,raw_annual_energy!$A:$A,mainzone)/1000+SUMIFS(raw_annual_energy!$F:$F,Lists!$S:$S,'Portfolio Analytics'!$C241,raw_annual_energy!$D:$D,AC$221,raw_annual_energy!$A:$A,\"CAISO_NW_Hydro\")/1000","v":0},{"$f":"SUMIFS(raw_annual_energy!$F:$F,Lists!$S:$S,$C241,raw_annual_energy!$D:$D,AD$221,raw_annual_energy!$A:$A,mainzone)/1000+SUMIFS(raw_annual_energy!$F:$F,Lists!$S:$S,'Portfolio Analytics'!$C241,raw_annual_energy!$D:$D,AD$221,raw_annual_energy!$A:$A,\"CAISO_NW_Hydro\")/1000","v":0},{"$f":"SUMIFS(raw_annual_energy!$F:$F,Lists!$S:$S,$C241,raw_annual_energy!$D:$D,AE$221,raw_annual_energy!$A:$A,mainzone)/1000+SUMIFS(raw_annual_energy!$F:$F,Lists!$S:$S,'Portfolio Analytics'!$C241,raw_annual_energy!$D:$D,AE$221,raw_annual_energy!$A:$A,\"CAISO_NW_Hydro\")/1000","v":0},{"$f":"SUMIFS(raw_annual_energy!$F:$F,Lists!$S:$S,$C241,raw_annual_energy!$D:$D,AF$221,raw_annual_energy!$A:$A,mainzone)/1000+SUMIFS(raw_annual_energy!$F:$F,Lists!$S:$S,'Portfolio Analytics'!$C241,raw_annual_energy!$D:$D,AF$221,raw_annual_energy!$A:$A,\"CAISO_NW_Hydro\")/1000","v":0},{"$f":"SUMIFS(raw_annual_energy!$F:$F,Lists!$S:$S,$C241,raw_annual_energy!$D:$D,AG$221,raw_annual_energy!$A:$A,mainzone)/1000+SUMIFS(raw_annual_energy!$F:$F,Lists!$S:$S,'Portfolio Analytics'!$C241,raw_annual_energy!$D:$D,AG$221,raw_annual_energy!$A:$A,\"CAISO_NW_Hydro\")/1000","v":0},{"$f":"SUMIFS(raw_annual_energy!$F:$F,Lists!$S:$S,$C241,raw_annual_energy!$D:$D,AH$221,raw_annual_energy!$A:$A,mainzone)/1000+SUMIFS(raw_annual_energy!$F:$F,Lists!$S:$S,'Portfolio Analytics'!$C241,raw_annual_energy!$D:$D,AH$221,raw_annual_energy!$A:$A,\"CAISO_NW_Hydro\")/1000","v":0},{"$f":"SUMIFS(raw_annual_energy!$F:$F,Lists!$S:$S,$C241,raw_annual_energy!$D:$D,AI$221,raw_annual_energy!$A:$A,mainzone)/1000+SUMIFS(raw_annual_energy!$F:$F,Lists!$S:$S,'Portfolio Analytics'!$C241,raw_annual_energy!$D:$D,AI$221,raw_annual_energy!$A:$A,\"CAISO_NW_Hydro\")/1000","v":5.2424161163957192},{"$f":"SUMIFS(raw_annual_energy!$F:$F,Lists!$S:$S,$C241,raw_annual_energy!$D:$D,AJ$221,raw_annual_energy!$A:$A,mainzone)/1000+SUMIFS(raw_annual_energy!$F:$F,Lists!$S:$S,'Portfolio Analytics'!$C241,raw_annual_energy!$D:$D,AJ$221,raw_annual_energy!$A:$A,\"CAISO_NW_Hydro\")/1000","v":0},{"$f":"SUMIFS(raw_annual_energy!$F:$F,Lists!$S:$S,$C241,raw_annual_energy!$D:$D,AK$221,raw_annual_energy!$A:$A,mainzone)/1000+SUMIFS(raw_annual_energy!$F:$F,Lists!$S:$S,'Portfolio Analytics'!$C241,raw_annual_energy!$D:$D,AK$221,raw_annual_energy!$A:$A,\"CAISO_NW_Hydro\")/1000","v":0},{"$f":"SUMIFS(raw_annual_energy!$F:$F,Lists!$S:$S,$C241,raw_annual_energy!$D:$D,AL$221,raw_annual_energy!$A:$A,mainzone)/1000+SUMIFS(raw_annual_energy!$F:$F,Lists!$S:$S,'Portfolio Analytics'!$C241,raw_annual_energy!$D:$D,AL$221,raw_annual_energy!$A:$A,\"CAISO_NW_Hydro\")/1000","v":0},{"$f":"SUMIFS(raw_annual_energy!$F:$F,Lists!$S:$S,$C241,raw_annual_energy!$D:$D,AM$221,raw_annual_energy!$A:$A,mainzone)/1000+SUMIFS(raw_annual_energy!$F:$F,Lists!$S:$S,'Portfolio Analytics'!$C241,raw_annual_energy!$D:$D,AM$221,raw_annual_energy!$A:$A,\"CAISO_NW_Hydro\")/1000","v":0},{"$f":"SUMIFS(raw_annual_energy!$F:$F,Lists!$S:$S,$C241,raw_annual_energy!$D:$D,AN$221,raw_annual_energy!$A:$A,mainzone)/1000+SUMIFS(raw_annual_energy!$F:$F,Lists!$S:$S,'Portfolio Analytics'!$C241,raw_annual_energy!$D:$D,AN$221,raw_annual_energy!$A:$A,\"CAISO_NW_Hydro\")/1000","v":0}]
[null,null,"CAISO_ST","GWh",{"$f":"SUMIFS(raw_annual_energy!$F:$F,Lists!$S:$S,$C242,raw_annual_energy!$D:$D,E$221,raw_annual_energy!$A:$A,mainzone)/1000+SUMIFS(raw_annual_energy!$F:$F,Lists!$S:$S,'Portfolio Analytics'!$C242,raw_annual_energy!$D:$D,E$221,raw_annual_energy!$A:$A,\"CAISO_NW_Hydro\")/1000","v":0},{"$f":"SUMIFS(raw_annual_energy!$F:$F,Lists!$S:$S,$C242,raw_annual_energy!$D:$D,F$221,raw_annual_energy!$A:$A,mainzone)/1000+SUMIFS(raw_annual_energy!$F:$F,Lists!$S:$S,'Portfolio Analytics'!$C242,raw_annual_energy!$D:$D,F$221,raw_annual_energy!$A:$A,\"CAISO_NW_Hydro\")/1000","v":0},{"$f":"SUMIFS(raw_annual_energy!$F:$F,Lists!$S:$S,$C242,raw_annual_energy!$D:$D,G$221,raw_annual_energy!$A:$A,mainzone)/1000+SUMIFS(raw_annual_energy!$F:$F,Lists!$S:$S,'Portfolio Analytics'!$C242,raw_annual_energy!$D:$D,G$221,raw_annual_energy!$A:$A,\"CAISO_NW_Hydro\")/1000","v":0},{"$f":"SUMIFS(raw_annual_energy!$F:$F,Lists!$S:$S,$C242,raw_annual_energy!$D:$D,H$221,raw_annual_energy!$A:$A,mainzone)/1000+SUMIFS(raw_annual_energy!$F:$F,Lists!$S:$S,'Portfolio Analytics'!$C242,raw_annual_energy!$D:$D,H$221,raw_annual_energy!$A:$A,\"CAISO_NW_Hydro\")/1000","v":0},{"$f":"SUMIFS(raw_annual_energy!$F:$F,Lists!$S:$S,$C242,raw_annual_energy!$D:$D,I$221,raw_annual_energy!$A:$A,mainzone)/1000+SUMIFS(raw_annual_energy!$F:$F,Lists!$S:$S,'Portfolio Analytics'!$C242,raw_annual_energy!$D:$D,I$221,raw_annual_energy!$A:$A,\"CAISO_NW_Hydro\")/1000","v":0},{"$f":"SUMIFS(raw_annual_energy!$F:$F,Lists!$S:$S,$C242,raw_annual_energy!$D:$D,J$221,raw_annual_energy!$A:$A,mainzone)/1000+SUMIFS(raw_annual_energy!$F:$F,Lists!$S:$S,'Portfolio Analytics'!$C242,raw_annual_energy!$D:$D,J$221,raw_annual_energy!$A:$A,\"CAISO_NW_Hydro\")/1000","v":0},{"$f":"SUMIFS(raw_annual_energy!$F:$F,Lists!$S:$S,$C242,raw_annual_energy!$D:$D,K$221,raw_annual_energy!$A:$A,mainzone)/1000+SUMIFS(raw_annual_energy!$F:$F,Lists!$S:$S,'Portfolio Analytics'!$C242,raw_annual_energy!$D:$D,K$221,raw_annual_energy!$A:$A,\"CAISO_NW_Hydro\")/1000","v":0},{"$f":"SUMIFS(raw_annual_energy!$F:$F,Lists!$S:$S,$C242,raw_annual_energy!$D:$D,L$221,raw_annual_energy!$A:$A,mainzone)/1000+SUMIFS(raw_annual_energy!$F:$F,Lists!$S:$S,'Portfolio Analytics'!$C242,raw_annual_energy!$D:$D,L$221,raw_annual_energy!$A:$A,\"CAISO_NW_Hydro\")/1000","v":0},{"$f":"SUMIFS(raw_annual_energy!$F:$F,Lists!$S:$S,$C242,raw_annual_energy!$D:$D,M$221,raw_annual_energy!$A:$A,mainzone)/1000+SUMIFS(raw_annual_energy!$F:$F,Lists!$S:$S,'Portfolio Analytics'!$C242,raw_annual_energy!$D:$D,M$221,raw_annual_energy!$A:$A,\"CAISO_NW_Hydro\")/1000","v":0},{"$f":"SUMIFS(raw_annual_energy!$F:$F,Lists!$S:$S,$C242,raw_annual_energy!$D:$D,N$221,raw_annual_energy!$A:$A,mainzone)/1000+SUMIFS(raw_annual_energy!$F:$F,Lists!$S:$S,'Portfolio Analytics'!$C242,raw_annual_energy!$D:$D,N$221,raw_annual_energy!$A:$A,\"CAISO_NW_Hydro\")/1000","v":0},{"$f":"SUMIFS(raw_annual_energy!$F:$F,Lists!$S:$S,$C242,raw_annual_energy!$D:$D,O$221,raw_annual_energy!$A:$A,mainzone)/1000+SUMIFS(raw_annual_energy!$F:$F,Lists!$S:$S,'Portfolio Analytics'!$C242,raw_annual_energy!$D:$D,O$221,raw_annual_energy!$A:$A,\"CAISO_NW_Hydro\")/1000","v":0},{"$f":"SUMIFS(raw_annual_energy!$F:$F,Lists!$S:$S,$C242,raw_annual_energy!$D:$D,P$221,raw_annual_energy!$A:$A,mainzone)/1000+SUMIFS(raw_annual_energy!$F:$F,Lists!$S:$S,'Portfolio Analytics'!$C242,raw_annual_energy!$D:$D,P$221,raw_annual_energy!$A:$A,\"CAISO_NW_Hydro\")/1000","v":0},{"$f":"SUMIFS(raw_annual_energy!$F:$F,Lists!$S:$S,$C242,raw_annual_energy!$D:$D,Q$221,raw_annual_energy!$A:$A,mainzone)/1000+SUMIFS(raw_annual_energy!$F:$F,Lists!$S:$S,'Portfolio Analytics'!$C242,raw_annual_energy!$D:$D,Q$221,raw_annual_energy!$A:$A,\"CAISO_NW_Hydro\")/1000","v":0},{"$f":"SUMIFS(raw_annual_energy!$F:$F,Lists!$S:$S,$C242,raw_annual_energy!$D:$D,R$221,raw_annual_energy!$A:$A,mainzone)/1000+SUMIFS(raw_annual_energy!$F:$F,Lists!$S:$S,'Portfolio Analytics'!$C242,raw_annual_energy!$D:$D,R$221,raw_annual_energy!$A:$A,\"CAISO_NW_Hydro\")/1000","v":0},{"$f":"SUMIFS(raw_annual_energy!$F:$F,Lists!$S:$S,$C242,raw_annual_energy!$D:$D,S$221,raw_annual_energy!$A:$A,mainzone)/1000+SUMIFS(raw_annual_energy!$F:$F,Lists!$S:$S,'Portfolio Analytics'!$C242,raw_annual_energy!$D:$D,S$221,raw_annual_energy!$A:$A,\"CAISO_NW_Hydro\")/1000","v":0},{"$f":"SUMIFS(raw_annual_energy!$F:$F,Lists!$S:$S,$C242,raw_annual_energy!$D:$D,T$221,raw_annual_energy!$A:$A,mainzone)/1000+SUMIFS(raw_annual_energy!$F:$F,Lists!$S:$S,'Portfolio Analytics'!$C242,raw_annual_energy!$D:$D,T$221,raw_annual_energy!$A:$A,\"CAISO_NW_Hydro\")/1000","v":0},{"$f":"SUMIFS(raw_annual_energy!$F:$F,Lists!$S:$S,$C242,raw_annual_energy!$D:$D,U$221,raw_annual_energy!$A:$A,mainzone)/1000+SUMIFS(raw_annual_energy!$F:$F,Lists!$S:$S,'Portfolio Analytics'!$C242,raw_annual_energy!$D:$D,U$221,raw_annual_energy!$A:$A,\"CAISO_NW_Hydro\")/1000","v":0},{"$f":"SUMIFS(raw_annual_energy!$F:$F,Lists!$S:$S,$C242,raw_annual_energy!$D:$D,V$221,raw_annual_energy!$A:$A,mainzone)/1000+SUMIFS(raw_annual_energy!$F:$F,Lists!$S:$S,'Portfolio Analytics'!$C242,raw_annual_energy!$D:$D,V$221,raw_annual_energy!$A:$A,\"CAISO_NW_Hydro\")/1000","v":0},{"$f":"SUMIFS(raw_annual_energy!$F:$F,Lists!$S:$S,$C242,raw_annual_energy!$D:$D,W$221,raw_annual_energy!$A:$A,mainzone)/1000+SUMIFS(raw_annual_energy!$F:$F,Lists!$S:$S,'Portfolio Analytics'!$C242,raw_annual_energy!$D:$D,W$221,raw_annual_energy!$A:$A,\"CAISO_NW_Hydro\")/1000","v":0},{"$f":"SUMIFS(raw_annual_energy!$F:$F,Lists!$S:$S,$C242,raw_annual_energy!$D:$D,X$221,raw_annual_energy!$A:$A,mainzone)/1000+SUMIFS(raw_annual_energy!$F:$F,Lists!$S:$S,'Portfolio Analytics'!$C242,raw_annual_energy!$D:$D,X$221,raw_annual_energy!$A:$A,\"CAISO_NW_Hydro\")/1000","v":0},{"$f":"SUMIFS(raw_annual_energy!$F:$F,Lists!$S:$S,$C242,raw_annual_energy!$D:$D,Y$221,raw_annual_energy!$A:$A,mainzone)/1000+SUMIFS(raw_annual_energy!$F:$F,Lists!$S:$S,'Portfolio Analytics'!$C242,raw_annual_energy!$D:$D,Y$221,raw_annual_energy!$A:$A,\"CAISO_NW_Hydro\")/1000","v":0},{"$f":"SUMIFS(raw_annual_energy!$F:$F,Lists!$S:$S,$C242,raw_annual_energy!$D:$D,Z$221,raw_annual_energy!$A:$A,mainzone)/1000+SUMIFS(raw_annual_energy!$F:$F,Lists!$S:$S,'Portfolio Analytics'!$C242,raw_annual_energy!$D:$D,Z$221,raw_annual_energy!$A:$A,\"CAISO_NW_Hydro\")/1000","v":0},{"$f":"SUMIFS(raw_annual_energy!$F:$F,Lists!$S:$S,$C242,raw_annual_energy!$D:$D,AA$221,raw_annual_energy!$A:$A,mainzone)/1000+SUMIFS(raw_annual_energy!$F:$F,Lists!$S:$S,'Portfolio Analytics'!$C242,raw_annual_energy!$D:$D,AA$221,raw_annual_energy!$A:$A,\"CAISO_NW_Hydro\")/1000","v":0},{"$f":"SUMIFS(raw_annual_energy!$F:$F,Lists!$S:$S,$C242,raw_annual_energy!$D:$D,AB$221,raw_annual_energy!$A:$A,mainzone)/1000+SUMIFS(raw_annual_energy!$F:$F,Lists!$S:$S,'Portfolio Analytics'!$C242,raw_annual_energy!$D:$D,AB$221,raw_annual_energy!$A:$A,\"CAISO_NW_Hydro\")/1000","v":0},{"$f":"SUMIFS(raw_annual_energy!$F:$F,Lists!$S:$S,$C242,raw_annual_energy!$D:$D,AC$221,raw_annual_energy!$A:$A,mainzone)/1000+SUMIFS(raw_annual_energy!$F:$F,Lists!$S:$S,'Portfolio Analytics'!$C242,raw_annual_energy!$D:$D,AC$221,raw_annual_energy!$A:$A,\"CAISO_NW_Hydro\")/1000","v":0},{"$f":"SUMIFS(raw_annual_energy!$F:$F,Lists!$S:$S,$C242,raw_annual_energy!$D:$D,AD$221,raw_annual_energy!$A:$A,mainzone)/1000+SUMIFS(raw_annual_energy!$F:$F,Lists!$S:$S,'Portfolio Analytics'!$C242,raw_annual_energy!$D:$D,AD$221,raw_annual_energy!$A:$A,\"CAISO_NW_Hydro\")/1000","v":0},{"$f":"SUMIFS(raw_annual_energy!$F:$F,Lists!$S:$S,$C242,raw_annual_energy!$D:$D,AE$221,raw_annual_energy!$A:$A,mainzone)/1000+SUMIFS(raw_annual_energy!$F:$F,Lists!$S:$S,'Portfolio Analytics'!$C242,raw_annual_energy!$D:$D,AE$221,raw_annual_energy!$A:$A,\"CAISO_NW_Hydro\")/1000","v":0},{"$f":"SUMIFS(raw_annual_energy!$F:$F,Lists!$S:$S,$C242,raw_annual_energy!$D:$D,AF$221,raw_annual_energy!$A:$A,mainzone)/1000+SUMIFS(raw_annual_energy!$F:$F,Lists!$S:$S,'Portfolio Analytics'!$C242,raw_annual_energy!$D:$D,AF$221,raw_annual_energy!$A:$A,\"CAISO_NW_Hydro\")/1000","v":0},{"$f":"SUMIFS(raw_annual_energy!$F:$F,Lists!$S:$S,$C242,raw_annual_energy!$D:$D,AG$221,raw_annual_energy!$A:$A,mainzone)/1000+SUMIFS(raw_annual_energy!$F:$F,Lists!$S:$S,'Portfolio Analytics'!$C242,raw_annual_energy!$D:$D,AG$221,raw_annual_energy!$A:$A,\"CAISO_NW_Hydro\")/1000","v":0},{"$f":"SUMIFS(raw_annual_energy!$F:$F,Lists!$S:$S,$C242,raw_annual_energy!$D:$D,AH$221,raw_annual_energy!$A:$A,mainzone)/1000+SUMIFS(raw_annual_energy!$F:$F,Lists!$S:$S,'Portfolio Analytics'!$C242,raw_annual_energy!$D:$D,AH$221,raw_annual_energy!$A:$A,\"CAISO_NW_Hydro\")/1000","v":0},{"$f":"SUMIFS(raw_annual_energy!$F:$F,Lists!$S:$S,$C242,raw_annual_energy!$D:$D,AI$221,raw_annual_energy!$A:$A,mainzone)/1000+SUMIFS(raw_annual_energy!$F:$F,Lists!$S:$S,'Portfolio Analytics'!$C242,raw_annual_energy!$D:$D,AI$221,raw_annual_energy!$A:$A,\"CAISO_NW_Hydro\")/1000","v":0},{"$f":"SUMIFS(raw_annual_energy!$F:$F,Lists!$S:$S,$C242,raw_annual_energy!$D:$D,AJ$221,raw_annual_energy!$A:$A,mainzone)/1000+SUMIFS(raw_annual_energy!$F:$F,Lists!$S:$S,'Portfolio Analytics'!$C242,raw_annual_energy!$D:$D,AJ$221,raw_annual_energy!$A:$A,\"CAISO_NW_Hydro\")/1000","v":0},{"$f":"SUMIFS(raw_annual_energy!$F:$F,Lists!$S:$S,$C242,raw_annual_energy!$D:$D,AK$221,raw_annual_energy!$A:$A,mainzone)/1000+SUMIFS(raw_annual_energy!$F:$F,Lists!$S:$S,'Portfolio Analytics'!$C242,raw_annual_energy!$D:$D,AK$221,raw_annual_energy!$A:$A,\"CAISO_NW_Hydro\")/1000","v":0},{"$f":"SUMIFS(raw_annual_energy!$F:$F,Lists!$S:$S,$C242,raw_annual_energy!$D:$D,AL$221,raw_annual_energy!$A:$A,mainzone)/1000+SUMIFS(raw_annual_energy!$F:$F,Lists!$S:$S,'Portfolio Analytics'!$C242,raw_annual_energy!$D:$D,AL$221,raw_annual_energy!$A:$A,\"CAISO_NW_Hydro\")/1000","v":0},{"$f":"SUMIFS(raw_annual_energy!$F:$F,Lists!$S:$S,$C242,raw_annual_energy!$D:$D,AM$221,raw_annual_energy!$A:$A,mainzone)/1000+SUMIFS(raw_annual_energy!$F:$F,Lists!$S:$S,'Portfolio Analytics'!$C242,raw_annual_energy!$D:$D,AM$221,raw_annual_energy!$A:$A,\"CAISO_NW_Hydro\")/1000","v":0},{"$f":"SUMIFS(raw_annual_energy!$F:$F,Lists!$S:$S,$C242,raw_annual_energy!$D:$D,AN$221,raw_annual_energy!$A:$A,mainzone)/1000+SUMIFS(raw_annual_energy!$F:$F,Lists!$S:$S,'Portfolio Analytics'!$C242,raw_annual_energy!$D:$D,AN$221,raw_annual_energy!$A:$A,\"CAISO_NW_Hydro\")/1000","v":0}]
[null,null,"Li_Battery","GWh",{"$f":"SUMIFS(raw_annual_energy!$F:$F,Lists!$S:$S,$C243,raw_annual_energy!$D:$D,E$221,raw_annual_energy!$A:$A,mainzone)/1000+SUMIFS(raw_annual_energy!$F:$F,Lists!$S:$S,'Portfolio Analytics'!$C243,raw_annual_energy!$D:$D,E$221,raw_annual_energy!$A:$A,\"CAISO_NW_Hydro\")/1000","v":0},{"$f":"SUMIFS(raw_annual_energy!$F:$F,Lists!$S:$S,$C243,raw_annual_energy!$D:$D,F$221,raw_annual_energy!$A:$A,mainzone)/1000+SUMIFS(raw_annual_energy!$F:$F,Lists!$S:$S,'Portfolio Analytics'!$C243,raw_annual_energy!$D:$D,F$221,raw_annual_energy!$A:$A,\"CAISO_NW_Hydro\")/1000","v":0},{"$f":"SUMIFS(raw_annual_energy!$F:$F,Lists!$S:$S,$C243,raw_annual_energy!$D:$D,G$221,raw_annual_energy!$A:$A,mainzone)/1000+SUMIFS(raw_annual_energy!$F:$F,Lists!$S:$S,'Portfolio Analytics'!$C243,raw_annual_energy!$D:$D,G$221,raw_annual_energy!$A:$A,\"CAISO_NW_Hydro\")/1000","v":0},{"$f":"SUMIFS(raw_annual_energy!$F:$F,Lists!$S:$S,$C243,raw_annual_energy!$D:$D,H$221,raw_annual_energy!$A:$A,mainzone)/1000+SUMIFS(raw_annual_energy!$F:$F,Lists!$S:$S,'Portfolio Analytics'!$C243,raw_annual_energy!$D:$D,H$221,raw_annual_energy!$A:$A,\"CAISO_NW_Hydro\")/1000","v":0},{"$f":"SUMIFS(raw_annual_energy!$F:$F,Lists!$S:$S,$C243,raw_annual_energy!$D:$D,I$221,raw_annual_energy!$A:$A,mainzone)/1000+SUMIFS(raw_annual_energy!$F:$F,Lists!$S:$S,'Portfolio Analytics'!$C243,raw_annual_energy!$D:$D,I$221,raw_annual_energy!$A:$A,\"CAISO_NW_Hydro\")/1000","v":0},{"$f":"SUMIFS(raw_annual_energy!$F:$F,Lists!$S:$S,$C243,raw_annual_energy!$D:$D,J$221,raw_annual_energy!$A:$A,mainzone)/1000+SUMIFS(raw_annual_energy!$F:$F,Lists!$S:$S,'Portfolio Analytics'!$C243,raw_annual_energy!$D:$D,J$221,raw_annual_energy!$A:$A,\"CAISO_NW_Hydro\")/1000","v":-843.13241887614697},{"$f":"SUMIFS(raw_annual_energy!$F:$F,Lists!$S:$S,$C243,raw_annual_energy!$D:$D,K$221,raw_annual_energy!$A:$A,mainzone)/1000+SUMIFS(raw_annual_energy!$F:$F,Lists!$S:$S,'Portfolio Analytics'!$C243,raw_annual_energy!$D:$D,K$221,raw_annual_energy!$A:$A,\"CAISO_NW_Hydro\")/1000","v":-1194.2541167797299},{"$f":"SUMIFS(raw_annual_energy!$F:$F,Lists!$S:$S,$C243,raw_annual_energy!$D:$D,L$221,raw_annual_energy!$A:$A,mainzone)/1000+SUMIFS(raw_annual_energy!$F:$F,Lists!$S:$S,'Portfolio Analytics'!$C243,raw_annual_energy!$D:$D,L$221,raw_annual_energy!$A:$A,\"CAISO_NW_Hydro\")/1000","v":-1052.8791900605202},{"$f":"SUMIFS(raw_annual_energy!$F:$F,Lists!$S:$S,$C243,raw_annual_energy!$D:$D,M$221,raw_annual_energy!$A:$A,mainzone)/1000+SUMIFS(raw_annual_energy!$F:$F,Lists!$S:$S,'Portfolio Analytics'!$C243,raw_annual_energy!$D:$D,M$221,raw_annual_energy!$A:$A,\"CAISO_NW_Hydro\")/1000","v":-991.64712291577791},{"$f":"SUMIFS(raw_annual_energy!$F:$F,Lists!$S:$S,$C243,raw_annual_energy!$D:$D,N$221,raw_annual_energy!$A:$A,mainzone)/1000+SUMIFS(raw_annual_energy!$F:$F,Lists!$S:$S,'Portfolio Analytics'!$C243,raw_annual_energy!$D:$D,N$221,raw_annual_energy!$A:$A,\"CAISO_NW_Hydro\")/1000","v":-1093.9232150751882},{"$f":"SUMIFS(raw_annual_energy!$F:$F,Lists!$S:$S,$C243,raw_annual_energy!$D:$D,O$221,raw_annual_energy!$A:$A,mainzone)/1000+SUMIFS(raw_annual_energy!$F:$F,Lists!$S:$S,'Portfolio Analytics'!$C243,raw_annual_energy!$D:$D,O$221,raw_annual_energy!$A:$A,\"CAISO_NW_Hydro\")/1000","v":0},{"$f":"SUMIFS(raw_annual_energy!$F:$F,Lists!$S:$S,$C243,raw_annual_energy!$D:$D,P$221,raw_annual_energy!$A:$A,mainzone)/1000+SUMIFS(raw_annual_energy!$F:$F,Lists!$S:$S,'Portfolio Analytics'!$C243,raw_annual_energy!$D:$D,P$221,raw_annual_energy!$A:$A,\"CAISO_NW_Hydro\")/1000","v":-1010.5125730018224},{"$f":"SUMIFS(raw_annual_energy!$F:$F,Lists!$S:$S,$C243,raw_annual_energy!$D:$D,Q$221,raw_annual_energy!$A:$A,mainzone)/1000+SUMIFS(raw_annual_energy!$F:$F,Lists!$S:$S,'Portfolio Analytics'!$C243,raw_annual_energy!$D:$D,Q$221,raw_annual_energy!$A:$A,\"CAISO_NW_Hydro\")/1000","v":0},{"$f":"SUMIFS(raw_annual_energy!$F:$F,Lists!$S:$S,$C243,raw_annual_energy!$D:$D,R$221,raw_annual_energy!$A:$A,mainzone)/1000+SUMIFS(raw_annual_energy!$F:$F,Lists!$S:$S,'Portfolio Analytics'!$C243,raw_annual_energy!$D:$D,R$221,raw_annual_energy!$A:$A,\"CAISO_NW_Hydro\")/1000","v":0},{"$f":"SUMIFS(raw_annual_energy!$F:$F,Lists!$S:$S,$C243,raw_annual_energy!$D:$D,S$221,raw_annual_energy!$A:$A,mainzone)/1000+SUMIFS(raw_annual_energy!$F:$F,Lists!$S:$S,'Portfolio Analytics'!$C243,raw_annual_energy!$D:$D,S$221,raw_annual_energy!$A:$A,\"CAISO_NW_Hydro\")/1000","v":0},{"$f":"SUMIFS(raw_annual_energy!$F:$F,Lists!$S:$S,$C243,raw_annual_energy!$D:$D,T$221,raw_annual_energy!$A:$A,mainzone)/1000+SUMIFS(raw_annual_energy!$F:$F,Lists!$S:$S,'Portfolio Analytics'!$C243,raw_annual_energy!$D:$D,T$221,raw_annual_energy!$A:$A,\"CAISO_NW_Hydro\")/1000","v":245.7949700111638},{"$f":"SUMIFS(raw_annual_energy!$F:$F,Lists!$S:$S,$C243,raw_annual_energy!$D:$D,U$221,raw_annual_energy!$A:$A,mainzone)/1000+SUMIFS(raw_annual_energy!$F:$F,Lists!$S:$S,'Portfolio Analytics'!$C243,raw_annual_energy!$D:$D,U$221,raw_annual_energy!$A:$A,\"CAISO_NW_Hydro\")/1000","v":0},{"$f":"SUMIFS(raw_annual_energy!$F:$F,Lists!$S:$S,$C243,raw_annual_energy!$D:$D,V$221,raw_annual_energy!$A:$A,mainzone)/1000+SUMIFS(raw_annual_energy!$F:$F,Lists!$S:$S,'Portfolio Analytics'!$C243,raw_annual_energy!$D:$D,V$221,raw_annual_energy!$A:$A,\"CAISO_NW_Hydro\")/1000","v":0},{"$f":"SUMIFS(raw_annual_energy!$F:$F,Lists!$S:$S,$C243,raw_annual_energy!$D:$D,W$221,raw_annual_energy!$A:$A,mainzone)/1000+SUMIFS(raw_annual_energy!$F:$F,Lists!$S:$S,'Portfolio Analytics'!$C243,raw_annual_energy!$D:$D,W$221,raw_annual_energy!$A:$A,\"CAISO_NW_Hydro\")/1000","v":0},{"$f":"SUMIFS(raw_annual_energy!$F:$F,Lists!$S:$S,$C243,raw_annual_energy!$D:$D,X$221,raw_annual_energy!$A:$A,mainzone)/1000+SUMIFS(raw_annual_energy!$F:$F,Lists!$S:$S,'Portfolio Analytics'!$C243,raw_annual_energy!$D:$D,X$221,raw_annual_energy!$A:$A,\"CAISO_NW_Hydro\")/1000","v":0},{"$f":"SUMIFS(raw_annual_energy!$F:$F,Lists!$S:$S,$C243,raw_annual_energy!$D:$D,Y$221,raw_annual_energy!$A:$A,mainzone)/1000+SUMIFS(raw_annual_energy!$F:$F,Lists!$S:$S,'Portfolio Analytics'!$C243,raw_annual_energy!$D:$D,Y$221,raw_annual_energy!$A:$A,\"CAISO_NW_Hydro\")/1000","v":0},{"$f":"SUMIFS(raw_annual_energy!$F:$F,Lists!$S:$S,$C243,raw_annual_energy!$D:$D,Z$221,raw_annual_energy!$A:$A,mainzone)/1000+SUMIFS(raw_annual_energy!$F:$F,Lists!$S:$S,'Portfolio Analytics'!$C243,raw_annual_energy!$D:$D,Z$221,raw_annual_energy!$A:$A,\"CAISO_NW_Hydro\")/1000","v":0},{"$f":"SUMIFS(raw_annual_energy!$F:$F,Lists!$S:$S,$C243,raw_annual_energy!$D:$D,AA$221,raw_annual_energy!$A:$A,mainzone)/1000+SUMIFS(raw_annual_energy!$F:$F,Lists!$S:$S,'Portfolio Analytics'!$C243,raw_annual_energy!$D:$D,AA$221,raw_annual_energy!$A:$A,\"CAISO_NW_Hydro\")/1000","v":0},{"$f":"SUMIFS(raw_annual_energy!$F:$F,Lists!$S:$S,$C243,raw_annual_energy!$D:$D,AB$221,raw_annual_energy!$A:$A,mainzone)/1000+SUMIFS(raw_annual_energy!$F:$F,Lists!$S:$S,'Portfolio Analytics'!$C243,raw_annual_energy!$D:$D,AB$221,raw_annual_energy!$A:$A,\"CAISO_NW_Hydro\")/1000","v":0},{"$f":"SUMIFS(raw_annual_energy!$F:$F,Lists!$S:$S,$C243,raw_annual_energy!$D:$D,AC$221,raw_annual_energy!$A:$A,mainzone)/1000+SUMIFS(raw_annual_energy!$F:$F,Lists!$S:$S,'Portfolio Analytics'!$C243,raw_annual_energy!$D:$D,AC$221,raw_annual_energy!$A:$A,\"CAISO_NW_Hydro\")/1000","v":0},{"$f":"SUMIFS(raw_annual_energy!$F:$F,Lists!$S:$S,$C243,raw_annual_energy!$D:$D,AD$221,raw_annual_energy!$A:$A,mainzone)/1000+SUMIFS(raw_annual_energy!$F:$F,Lists!$S:$S,'Portfolio Analytics'!$C243,raw_annual_energy!$D:$D,AD$221,raw_annual_energy!$A:$A,\"CAISO_NW_Hydro\")/1000","v":0},{"$f":"SUMIFS(raw_annual_energy!$F:$F,Lists!$S:$S,$C243,raw_annual_energy!$D:$D,AE$221,raw_annual_energy!$A:$A,mainzone)/1000+SUMIFS(raw_annual_energy!$F:$F,Lists!$S:$S,'Portfolio Analytics'!$C243,raw_annual_energy!$D:$D,AE$221,raw_annual_energy!$A:$A,\"CAISO_NW_Hydro\")/1000","v":0},{"$f":"SUMIFS(raw_annual_energy!$F:$F,Lists!$S:$S,$C243,raw_annual_energy!$D:$D,AF$221,raw_annual_energy!$A:$A,mainzone)/1000+SUMIFS(raw_annual_energy!$F:$F,Lists!$S:$S,'Portfolio Analytics'!$C243,raw_annual_energy!$D:$D,AF$221,raw_annual_energy!$A:$A,\"CAISO_NW_Hydro\")/1000","v":0},{"$f":"SUMIFS(raw_annual_energy!$F:$F,Lists!$S:$S,$C243,raw_annual_energy!$D:$D,AG$221,raw_annual_energy!$A:$A,mainzone)/1000+SUMIFS(raw_annual_energy!$F:$F,Lists!$S:$S,'Portfolio Analytics'!$C243,raw_annual_energy!$D:$D,AG$221,raw_annual_energy!$A:$A,\"CAISO_NW_Hydro\")/1000","v":0},{"$f":"SUMIFS(raw_annual_energy!$F:$F,Lists!$S:$S,$C243,raw_annual_energy!$D:$D,AH$221,raw_annual_energy!$A:$A,mainzone)/1000+SUMIFS(raw_annual_energy!$F:$F,Lists!$S:$S,'Portfolio Analytics'!$C243,raw_annual_energy!$D:$D,AH$221,raw_annual_energy!$A:$A,\"CAISO_NW_Hydro\")/1000","v":0},{"$f":"SUMIFS(raw_annual_energy!$F:$F,Lists!$S:$S,$C243,raw_annual_energy!$D:$D,AI$221,raw_annual_energy!$A:$A,mainzone)/1000+SUMIFS(raw_annual_energy!$F:$F,Lists!$S:$S,'Portfolio Analytics'!$C243,raw_annual_energy!$D:$D,AI$221,raw_annual_energy!$A:$A,\"CAISO_NW_Hydro\")/1000","v":3896.9382297296356},{"$f":"SUMIFS(raw_annual_energy!$F:$F,Lists!$S:$S,$C243,raw_annual_energy!$D:$D,AJ$221,raw_annual_energy!$A:$A,mainzone)/1000+SUMIFS(raw_annual_energy!$F:$F,Lists!$S:$S,'Portfolio Analytics'!$C243,raw_annual_energy!$D:$D,AJ$221,raw_annual_energy!$A:$A,\"CAISO_NW_Hydro\")/1000","v":0},{"$f":"SUMIFS(raw_annual_energy!$F:$F,Lists!$S:$S,$C243,raw_annual_energy!$D:$D,AK$221,raw_annual_energy!$A:$A,mainzone)/1000+SUMIFS(raw_annual_energy!$F:$F,Lists!$S:$S,'Portfolio Analytics'!$C243,raw_annual_energy!$D:$D,AK$221,raw_annual_energy!$A:$A,\"CAISO_NW_Hydro\")/1000","v":0},{"$f":"SUMIFS(raw_annual_energy!$F:$F,Lists!$S:$S,$C243,raw_annual_energy!$D:$D,AL$221,raw_annual_energy!$A:$A,mainzone)/1000+SUMIFS(raw_annual_energy!$F:$F,Lists!$S:$S,'Portfolio Analytics'!$C243,raw_annual_energy!$D:$D,AL$221,raw_annual_energy!$A:$A,\"CAISO_NW_Hydro\")/1000","v":0},{"$f":"SUMIFS(raw_annual_energy!$F:$F,Lists!$S:$S,$C243,raw_annual_energy!$D:$D,AM$221,raw_annual_energy!$A:$A,mainzone)/1000+SUMIFS(raw_annual_energy!$F:$F,Lists!$S:$S,'Portfolio Analytics'!$C243,raw_annual_energy!$D:$D,AM$221,raw_annual_energy!$A:$A,\"CAISO_NW_Hydro\")/1000","v":0},{"$f":"SUMIFS(raw_annual_energy!$F:$F,Lists!$S:$S,$C243,raw_annual_energy!$D:$D,AN$221,raw_annual_energy!$A:$A,mainzone)/1000+SUMIFS(raw_annual_energy!$F:$F,Lists!$S:$S,'Portfolio Analytics'!$C243,raw_annual_energy!$D:$D,AN$221,raw_annual_energy!$A:$A,\"CAISO_NW_Hydro\")/1000","v":0}]
[null,null,"BTM_Li_Battery","GWh",{"$f":"SUMIFS(raw_annual_energy!$F:$F,Lists!$S:$S,$C244,raw_annual_energy!$D:$D,E$221,raw_annual_energy!$A:$A,mainzone)/1000+SUMIFS(raw_annual_energy!$F:$F,Lists!$S:$S,'Portfolio Analytics'!$C244,raw_annual_energy!$D:$D,E$221,raw_annual_energy!$A:$A,\"CAISO_NW_Hydro\")/1000","v":0},{"$f":"SUMIFS(raw_annual_energy!$F:$F,Lists!$S:$S,$C244,raw_annual_energy!$D:$D,F$221,raw_annual_energy!$A:$A,mainzone)/1000+SUMIFS(raw_annual_energy!$F:$F,Lists!$S:$S,'Portfolio Analytics'!$C244,raw_annual_energy!$D:$D,F$221,raw_annual_energy!$A:$A,\"CAISO_NW_Hydro\")/1000","v":0},{"$f":"SUMIFS(raw_annual_energy!$F:$F,Lists!$S:$S,$C244,raw_annual_energy!$D:$D,G$221,raw_annual_energy!$A:$A,mainzone)/1000+SUMIFS(raw_annual_energy!$F:$F,Lists!$S:$S,'Portfolio Analytics'!$C244,raw_annual_energy!$D:$D,G$221,raw_annual_energy!$A:$A,\"CAISO_NW_Hydro\")/1000","v":0},{"$f":"SUMIFS(raw_annual_energy!$F:$F,Lists!$S:$S,$C244,raw_annual_energy!$D:$D,H$221,raw_annual_energy!$A:$A,mainzone)/1000+SUMIFS(raw_annual_energy!$F:$F,Lists!$S:$S,'Portfolio Analytics'!$C244,raw_annual_energy!$D:$D,H$221,raw_annual_energy!$A:$A,\"CAISO_NW_Hydro\")/1000","v":0},{"$f":"SUMIFS(raw_annual_energy!$F:$F,Lists!$S:$S,$C244,raw_annual_energy!$D:$D,I$221,raw_annual_energy!$A:$A,mainzone)/1000+SUMIFS(raw_annual_energy!$F:$F,Lists!$S:$S,'Portfolio Analytics'!$C244,raw_annual_energy!$D:$D,I$221,raw_annual_energy!$A:$A,\"CAISO_NW_Hydro\")/1000","v":0},{"$f":"SUMIFS(raw_annual_energy!$F:$F,Lists!$S:$S,$C244,raw_annual_energy!$D:$D,J$221,raw_annual_energy!$A:$A,mainzone)/1000+SUMIFS(raw_annual_energy!$F:$F,Lists!$S:$S,'Portfolio Analytics'!$C244,raw_annual_energy!$D:$D,J$221,raw_annual_energy!$A:$A,\"CAISO_NW_Hydro\")/1000","v":0},{"$f":"SUMIFS(raw_annual_energy!$F:$F,Lists!$S:$S,$C244,raw_annual_energy!$D:$D,K$221,raw_annual_energy!$A:$A,mainzone)/1000+SUMIFS(raw_annual_energy!$F:$F,Lists!$S:$S,'Portfolio Analytics'!$C244,raw_annual_energy!$D:$D,K$221,raw_annual_energy!$A:$A,\"CAISO_NW_Hydro\")/1000","v":0},{"$f":"SUMIFS(raw_annual_energy!$F:$F,Lists!$S:$S,$C244,raw_annual_energy!$D:$D,L$221,raw_annual_energy!$A:$A,mainzone)/1000+SUMIFS(raw_annual_energy!$F:$F,Lists!$S:$S,'Portfolio Analytics'!$C244,raw_annual_energy!$D:$D,L$221,raw_annual_energy!$A:$A,\"CAISO_NW_Hydro\")/1000","v":0},{"$f":"SUMIFS(raw_annual_energy!$F:$F,Lists!$S:$S,$C244,raw_annual_energy!$D:$D,M$221,raw_annual_energy!$A:$A,mainzone)/1000+SUMIFS(raw_annual_energy!$F:$F,Lists!$S:$S,'Portfolio Analytics'!$C244,raw_annual_energy!$D:$D,M$221,raw_annual_energy!$A:$A,\"CAISO_NW_Hydro\")/1000","v":0},{"$f":"SUMIFS(raw_annual_energy!$F:$F,Lists!$S:$S,$C244,raw_annual_energy!$D:$D,N$221,raw_annual_energy!$A:$A,mainzone)/1000+SUMIFS(raw_annual_energy!$F:$F,Lists!$S:$S,'Portfolio Analytics'!$C244,raw_annual_energy!$D:$D,N$221,raw_annual_energy!$A:$A,\"CAISO_NW_Hydro\")/1000","v":0},{"$f":"SUMIFS(raw_annual_energy!$F:$F,Lists!$S:$S,$C244,raw_annual_energy!$D:$D,O$221,raw_annual_energy!$A:$A,mainzone)/1000+SUMIFS(raw_annual_energy!$F:$F,Lists!$S:$S,'Portfolio Analytics'!$C244,raw_annual_energy!$D:$D,O$221,raw_annual_energy!$A:$A,\"CAISO_NW_Hydro\")/1000","v":0},{"$f":"SUMIFS(raw_annual_energy!$F:$F,Lists!$S:$S,$C244,raw_annual_energy!$D:$D,P$221,raw_annual_energy!$A:$A,mainzone)/1000+SUMIFS(raw_annual_energy!$F:$F,Lists!$S:$S,'Portfolio Analytics'!$C244,raw_annual_energy!$D:$D,P$221,raw_annual_energy!$A:$A,\"CAISO_NW_Hydro\")/1000","v":0},{"$f":"SUMIFS(raw_annual_energy!$F:$F,Lists!$S:$S,$C244,raw_annual_energy!$D:$D,Q$221,raw_annual_energy!$A:$A,mainzone)/1000+SUMIFS(raw_annual_energy!$F:$F,Lists!$S:$S,'Portfolio Analytics'!$C244,raw_annual_energy!$D:$D,Q$221,raw_annual_energy!$A:$A,\"CAISO_NW_Hydro\")/1000","v":0},{"$f":"SUMIFS(raw_annual_energy!$F:$F,Lists!$S:$S,$C244,raw_annual_energy!$D:$D,R$221,raw_annual_energy!$A:$A,mainzone)/1000+SUMIFS(raw_annual_energy!$F:$F,Lists!$S:$S,'Portfolio Analytics'!$C244,raw_annual_energy!$D:$D,R$221,raw_annual_energy!$A:$A,\"CAISO_NW_Hydro\")/1000","v":0},{"$f":"SUMIFS(raw_annual_energy!$F:$F,Lists!$S:$S,$C244,raw_annual_energy!$D:$D,S$221,raw_annual_energy!$A:$A,mainzone)/1000+SUMIFS(raw_annual_energy!$F:$F,Lists!$S:$S,'Portfolio Analytics'!$C244,raw_annual_energy!$D:$D,S$221,raw_annual_energy!$A:$A,\"CAISO_NW_Hydro\")/1000","v":0},{"$f":"SUMIFS(raw_annual_energy!$F:$F,Lists!$S:$S,$C244,raw_annual_energy!$D:$D,T$221,raw_annual_energy!$A:$A,mainzone)/1000+SUMIFS(raw_annual_energy!$F:$F,Lists!$S:$S,'Portfolio Analytics'!$C244,raw_annual_energy!$D:$D,T$221,raw_annual_energy!$A:$A,\"CAISO_NW_Hydro\")/1000","v":0},{"$f":"SUMIFS(raw_annual_energy!$F:$F,Lists!$S:$S,$C244,raw_annual_energy!$D:$D,U$221,raw_annual_energy!$A:$A,mainzone)/1000+SUMIFS(raw_annual_energy!$F:$F,Lists!$S:$S,'Portfolio Analytics'!$C244,raw_annual_energy!$D:$D,U$221,raw_annual_energy!$A:$A,\"CAISO_NW_Hydro\")/1000","v":0},{"$f":"SUMIFS(raw_annual_energy!$F:$F,Lists!$S:$S,$C244,raw_annual_energy!$D:$D,V$221,raw_annual_energy!$A:$A,mainzone)/1000+SUMIFS(raw_annual_energy!$F:$F,Lists!$S:$S,'Portfolio Analytics'!$C244,raw_annual_energy!$D:$D,V$221,raw_annual_energy!$A:$A,\"CAISO_NW_Hydro\")/1000","v":0},{"$f":"SUMIFS(raw_annual_energy!$F:$F,Lists!$S:$S,$C244,raw_annual_energy!$D:$D,W$221,raw_annual_energy!$A:$A,mainzone)/1000+SUMIFS(raw_annual_energy!$F:$F,Lists!$S:$S,'Portfolio Analytics'!$C244,raw_annual_energy!$D:$D,W$221,raw_annual_energy!$A:$A,\"CAISO_NW_Hydro\")/1000","v":0},{"$f":"SUMIFS(raw_annual_energy!$F:$F,Lists!$S:$S,$C244,raw_annual_energy!$D:$D,X$221,raw_annual_energy!$A:$A,mainzone)/1000+SUMIFS(raw_annual_energy!$F:$F,Lists!$S:$S,'Portfolio Analytics'!$C244,raw_annual_energy!$D:$D,X$221,raw_annual_energy!$A:$A,\"CAISO_NW_Hydro\")/1000","v":0},{"$f":"SUMIFS(raw_annual_energy!$F:$F,Lists!$S:$S,$C244,raw_annual_energy!$D:$D,Y$221,raw_annual_energy!$A:$A,mainzone)/1000+SUMIFS(raw_annual_energy!$F:$F,Lists!$S:$S,'Portfolio Analytics'!$C244,raw_annual_energy!$D:$D,Y$221,raw_annual_energy!$A:$A,\"CAISO_NW_Hydro\")/1000","v":0},{"$f":"SUMIFS(raw_annual_energy!$F:$F,Lists!$S:$S,$C244,raw_annual_energy!$D:$D,Z$221,raw_annual_energy!$A:$A,mainzone)/1000+SUMIFS(raw_annual_energy!$F:$F,Lists!$S:$S,'Portfolio Analytics'!$C244,raw_annual_energy!$D:$D,Z$221,raw_annual_energy!$A:$A,\"CAISO_NW_Hydro\")/1000","v":0},{"$f":"SUMIFS(raw_annual_energy!$F:$F,Lists!$S:$S,$C244,raw_annual_energy!$D:$D,AA$221,raw_annual_energy!$A:$A,mainzone)/1000+SUMIFS(raw_annual_energy!$F:$F,Lists!$S:$S,'Portfolio Analytics'!$C244,raw_annual_energy!$D:$D,AA$221,raw_annual_energy!$A:$A,\"CAISO_NW_Hydro\")/1000","v":0},{"$f":"SUMIFS(raw_annual_energy!$F:$F,Lists!$S:$S,$C244,raw_annual_energy!$D:$D,AB$221,raw_annual_energy!$A:$A,mainzone)/1000+SUMIFS(raw_annual_energy!$F:$F,Lists!$S:$S,'Portfolio Analytics'!$C244,raw_annual_energy!$D:$D,AB$221,raw_annual_energy!$A:$A,\"CAISO_NW_Hydro\")/1000","v":0},{"$f":"SUMIFS(raw_annual_energy!$F:$F,Lists!$S:$S,$C244,raw_annual_energy!$D:$D,AC$221,raw_annual_energy!$A:$A,mainzone)/1000+SUMIFS(raw_annual_energy!$F:$F,Lists!$S:$S,'Portfolio Analytics'!$C244,raw_annual_energy!$D:$D,AC$221,raw_annual_energy!$A:$A,\"CAISO_NW_Hydro\")/1000","v":0},{"$f":"SUMIFS(raw_annual_energy!$F:$F,Lists!$S:$S,$C244,raw_annual_energy!$D:$D,AD$221,raw_annual_energy!$A:$A,mainzone)/1000+SUMIFS(raw_annual_energy!$F:$F,Lists!$S:$S,'Portfolio Analytics'!$C244,raw_annual_energy!$D:$D,AD$221,raw_annual_energy!$A:$A,\"CAISO_NW_Hydro\")/1000","v":0},{"$f":"SUMIFS(raw_annual_energy!$F:$F,Lists!$S:$S,$C244,raw_annual_energy!$D:$D,AE$221,raw_annual_energy!$A:$A,mainzone)/1000+SUMIFS(raw_annual_energy!$F:$F,Lists!$S:$S,'Portfolio Analytics'!$C244,raw_annual_energy!$D:$D,AE$221,raw_annual_energy!$A:$A,\"CAISO_NW_Hydro\")/1000","v":0},{"$f":"SUMIFS(raw_annual_energy!$F:$F,Lists!$S:$S,$C244,raw_annual_energy!$D:$D,AF$221,raw_annual_energy!$A:$A,mainzone)/1000+SUMIFS(raw_annual_energy!$F:$F,Lists!$S:$S,'Portfolio Analytics'!$C244,raw_annual_energy!$D:$D,AF$221,raw_annual_energy!$A:$A,\"CAISO_NW_Hydro\")/1000","v":0},{"$f":"SUMIFS(raw_annual_energy!$F:$F,Lists!$S:$S,$C244,raw_annual_energy!$D:$D,AG$221,raw_annual_energy!$A:$A,mainzone)/1000+SUMIFS(raw_annual_energy!$F:$F,Lists!$S:$S,'Portfolio Analytics'!$C244,raw_annual_energy!$D:$D,AG$221,raw_annual_energy!$A:$A,\"CAISO_NW_Hydro\")/1000","v":0},{"$f":"SUMIFS(raw_annual_energy!$F:$F,Lists!$S:$S,$C244,raw_annual_energy!$D:$D,AH$221,raw_annual_energy!$A:$A,mainzone)/1000+SUMIFS(raw_annual_energy!$F:$F,Lists!$S:$S,'Portfolio Analytics'!$C244,raw_annual_energy!$D:$D,AH$221,raw_annual_energy!$A:$A,\"CAISO_NW_Hydro\")/1000","v":0},{"$f":"SUMIFS(raw_annual_energy!$F:$F,Lists!$S:$S,$C244,raw_annual_energy!$D:$D,AI$221,raw_annual_energy!$A:$A,mainzone)/1000+SUMIFS(raw_annual_energy!$F:$F,Lists!$S:$S,'Portfolio Analytics'!$C244,raw_annual_energy!$D:$D,AI$221,raw_annual_energy!$A:$A,\"CAISO_NW_Hydro\")/1000","v":0},{"$f":"SUMIFS(raw_annual_energy!$F:$F,Lists!$S:$S,$C244,raw_annual_energy!$D:$D,AJ$221,raw_annual_energy!$A:$A,mainzone)/1000+SUMIFS(raw_annual_energy!$F:$F,Lists!$S:$S,'Portfolio Analytics'!$C244,raw_annual_energy!$D:$D,AJ$221,raw_annual_energy!$A:$A,\"CAISO_NW_Hydro\")/1000","v":0},{"$f":"SUMIFS(raw_annual_energy!$F:$F,Lists!$S:$S,$C244,raw_annual_energy!$D:$D,AK$221,raw_annual_energy!$A:$A,mainzone)/1000+SUMIFS(raw_annual_energy!$F:$F,Lists!$S:$S,'Portfolio Analytics'!$C244,raw_annual_energy!$D:$D,AK$221,raw_annual_energy!$A:$A,\"CAISO_NW_Hydro\")/1000","v":0},{"$f":"SUMIFS(raw_annual_energy!$F:$F,Lists!$S:$S,$C244,raw_annual_energy!$D:$D,AL$221,raw_annual_energy!$A:$A,mainzone)/1000+SUMIFS(raw_annual_energy!$F:$F,Lists!$S:$S,'Portfolio Analytics'!$C244,raw_annual_energy!$D:$D,AL$221,raw_annual_energy!$A:$A,\"CAISO_NW_Hydro\")/1000","v":0},{"$f":"SUMIFS(raw_annual_energy!$F:$F,Lists!$S:$S,$C244,raw_annual_energy!$D:$D,AM$221,raw_annual_energy!$A:$A,mainzone)/1000+SUMIFS(raw_annual_energy!$F:$F,Lists!$S:$S,'Portfolio Analytics'!$C244,raw_annual_energy!$D:$D,AM$221,raw_annual_energy!$A:$A,\"CAISO_NW_Hydro\")/1000","v":0},{"$f":"SUMIFS(raw_annual_energy!$F:$F,Lists!$S:$S,$C244,raw_annual_energy!$D:$D,AN$221,raw_annual_energy!$A:$A,mainzone)/1000+SUMIFS(raw_annual_energy!$F:$F,Lists!$S:$S,'Portfolio Analytics'!$C244,raw_annual_energy!$D:$D,AN$221,raw_annual_energy!$A:$A,\"CAISO_NW_Hydro\")/1000","v":0}]
[null,null,"Flow_Battery","GWh",{"$f":"SUMIFS(raw_annual_energy!$F:$F,Lists!$S:$S,$C245,raw_annual_energy!$D:$D,E$221,raw_annual_energy!$A:$A,mainzone)/1000+SUMIFS(raw_annual_energy!$F:$F,Lists!$S:$S,'Portfolio Analytics'!$C245,raw_annual_energy!$D:$D,E$221,raw_annual_energy!$A:$A,\"CAISO_NW_Hydro\")/1000","v":0},{"$f":"SUMIFS(raw_annual_energy!$F:$F,Lists!$S:$S,$C245,raw_annual_energy!$D:$D,F$221,raw_annual_energy!$A:$A,mainzone)/1000+SUMIFS(raw_annual_energy!$F:$F,Lists!$S:$S,'Portfolio Analytics'!$C245,raw_annual_energy!$D:$D,F$221,raw_annual_energy!$A:$A,\"CAISO_NW_Hydro\")/1000","v":0},{"$f":"SUMIFS(raw_annual_energy!$F:$F,Lists!$S:$S,$C245,raw_annual_energy!$D:$D,G$221,raw_annual_energy!$A:$A,mainzone)/1000+SUMIFS(raw_annual_energy!$F:$F,Lists!$S:$S,'Portfolio Analytics'!$C245,raw_annual_energy!$D:$D,G$221,raw_annual_energy!$A:$A,\"CAISO_NW_Hydro\")/1000","v":0},{"$f":"SUMIFS(raw_annual_energy!$F:$F,Lists!$S:$S,$C245,raw_annual_energy!$D:$D,H$221,raw_annual_energy!$A:$A,mainzone)/1000+SUMIFS(raw_annual_energy!$F:$F,Lists!$S:$S,'Portfolio Analytics'!$C245,raw_annual_energy!$D:$D,H$221,raw_annual_energy!$A:$A,\"CAISO_NW_Hydro\")/1000","v":0},{"$f":"SUMIFS(raw_annual_energy!$F:$F,Lists!$S:$S,$C245,raw_annual_energy!$D:$D,I$221,raw_annual_energy!$A:$A,mainzone)/1000+SUMIFS(raw_annual_energy!$F:$F,Lists!$S:$S,'Portfolio Analytics'!$C245,raw_annual_energy!$D:$D,I$221,raw_annual_energy!$A:$A,\"CAISO_NW_Hydro\")/1000","v":0},{"$f":"SUMIFS(raw_annual_energy!$F:$F,Lists!$S:$S,$C245,raw_annual_energy!$D:$D,J$221,raw_annual_energy!$A:$A,mainzone)/1000+SUMIFS(raw_annual_energy!$F:$F,Lists!$S:$S,'Portfolio Analytics'!$C245,raw_annual_energy!$D:$D,J$221,raw_annual_energy!$A:$A,\"CAISO_NW_Hydro\")/1000","v":0},{"$f":"SUMIFS(raw_annual_energy!$F:$F,Lists!$S:$S,$C245,raw_annual_energy!$D:$D,K$221,raw_annual_energy!$A:$A,mainzone)/1000+SUMIFS(raw_annual_energy!$F:$F,Lists!$S:$S,'Portfolio Analytics'!$C245,raw_annual_energy!$D:$D,K$221,raw_annual_energy!$A:$A,\"CAISO_NW_Hydro\")/1000","v":0},{"$f":"SUMIFS(raw_annual_energy!$F:$F,Lists!$S:$S,$C245,raw_annual_energy!$D:$D,L$221,raw_annual_energy!$A:$A,mainzone)/1000+SUMIFS(raw_annual_energy!$F:$F,Lists!$S:$S,'Portfolio Analytics'!$C245,raw_annual_energy!$D:$D,L$221,raw_annual_energy!$A:$A,\"CAISO_NW_Hydro\")/1000","v":0},{"$f":"SUMIFS(raw_annual_energy!$F:$F,Lists!$S:$S,$C245,raw_annual_energy!$D:$D,M$221,raw_annual_energy!$A:$A,mainzone)/1000+SUMIFS(raw_annual_energy!$F:$F,Lists!$S:$S,'Portfolio Analytics'!$C245,raw_annual_energy!$D:$D,M$221,raw_annual_energy!$A:$A,\"CAISO_NW_Hydro\")/1000","v":0},{"$f":"SUMIFS(raw_annual_energy!$F:$F,Lists!$S:$S,$C245,raw_annual_energy!$D:$D,N$221,raw_annual_energy!$A:$A,mainzone)/1000+SUMIFS(raw_annual_energy!$F:$F,Lists!$S:$S,'Portfolio Analytics'!$C245,raw_annual_energy!$D:$D,N$221,raw_annual_energy!$A:$A,\"CAISO_NW_Hydro\")/1000","v":0},{"$f":"SUMIFS(raw_annual_energy!$F:$F,Lists!$S:$S,$C245,raw_annual_energy!$D:$D,O$221,raw_annual_energy!$A:$A,mainzone)/1000+SUMIFS(raw_annual_energy!$F:$F,Lists!$S:$S,'Portfolio Analytics'!$C245,raw_annual_energy!$D:$D,O$221,raw_annual_energy!$A:$A,\"CAISO_NW_Hydro\")/1000","v":0},{"$f":"SUMIFS(raw_annual_energy!$F:$F,Lists!$S:$S,$C245,raw_annual_energy!$D:$D,P$221,raw_annual_energy!$A:$A,mainzone)/1000+SUMIFS(raw_annual_energy!$F:$F,Lists!$S:$S,'Portfolio Analytics'!$C245,raw_annual_energy!$D:$D,P$221,raw_annual_energy!$A:$A,\"CAISO_NW_Hydro\")/1000","v":0},{"$f":"SUMIFS(raw_annual_energy!$F:$F,Lists!$S:$S,$C245,raw_annual_energy!$D:$D,Q$221,raw_annual_energy!$A:$A,mainzone)/1000+SUMIFS(raw_annual_energy!$F:$F,Lists!$S:$S,'Portfolio Analytics'!$C245,raw_annual_energy!$D:$D,Q$221,raw_annual_energy!$A:$A,\"CAISO_NW_Hydro\")/1000","v":0},{"$f":"SUMIFS(raw_annual_energy!$F:$F,Lists!$S:$S,$C245,raw_annual_energy!$D:$D,R$221,raw_annual_energy!$A:$A,mainzone)/1000+SUMIFS(raw_annual_energy!$F:$F,Lists!$S:$S,'Portfolio Analytics'!$C245,raw_annual_energy!$D:$D,R$221,raw_annual_energy!$A:$A,\"CAISO_NW_Hydro\")/1000","v":0},{"$f":"SUMIFS(raw_annual_energy!$F:$F,Lists!$S:$S,$C245,raw_annual_energy!$D:$D,S$221,raw_annual_energy!$A:$A,mainzone)/1000+SUMIFS(raw_annual_energy!$F:$F,Lists!$S:$S,'Portfolio Analytics'!$C245,raw_annual_energy!$D:$D,S$221,raw_annual_energy!$A:$A,\"CAISO_NW_Hydro\")/1000","v":0},{"$f":"SUMIFS(raw_annual_energy!$F:$F,Lists!$S:$S,$C245,raw_annual_energy!$D:$D,T$221,raw_annual_energy!$A:$A,mainzone)/1000+SUMIFS(raw_annual_energy!$F:$F,Lists!$S:$S,'Portfolio Analytics'!$C245,raw_annual_energy!$D:$D,T$221,raw_annual_energy!$A:$A,\"CAISO_NW_Hydro\")/1000","v":0},{"$f":"SUMIFS(raw_annual_energy!$F:$F,Lists!$S:$S,$C245,raw_annual_energy!$D:$D,U$221,raw_annual_energy!$A:$A,mainzone)/1000+SUMIFS(raw_annual_energy!$F:$F,Lists!$S:$S,'Portfolio Analytics'!$C245,raw_annual_energy!$D:$D,U$221,raw_annual_energy!$A:$A,\"CAISO_NW_Hydro\")/1000","v":0},{"$f":"SUMIFS(raw_annual_energy!$F:$F,Lists!$S:$S,$C245,raw_annual_energy!$D:$D,V$221,raw_annual_energy!$A:$A,mainzone)/1000+SUMIFS(raw_annual_energy!$F:$F,Lists!$S:$S,'Portfolio Analytics'!$C245,raw_annual_energy!$D:$D,V$221,raw_annual_energy!$A:$A,\"CAISO_NW_Hydro\")/1000","v":0},{"$f":"SUMIFS(raw_annual_energy!$F:$F,Lists!$S:$S,$C245,raw_annual_energy!$D:$D,W$221,raw_annual_energy!$A:$A,mainzone)/1000+SUMIFS(raw_annual_energy!$F:$F,Lists!$S:$S,'Portfolio Analytics'!$C245,raw_annual_energy!$D:$D,W$221,raw_annual_energy!$A:$A,\"CAISO_NW_Hydro\")/1000","v":0},{"$f":"SUMIFS(raw_annual_energy!$F:$F,Lists!$S:$S,$C245,raw_annual_energy!$D:$D,X$221,raw_annual_energy!$A:$A,mainzone)/1000+SUMIFS(raw_annual_energy!$F:$F,Lists!$S:$S,'Portfolio Analytics'!$C245,raw_annual_energy!$D:$D,X$221,raw_annual_energy!$A:$A,\"CAISO_NW_Hydro\")/1000","v":0},{"$f":"SUMIFS(raw_annual_energy!$F:$F,Lists!$S:$S,$C245,raw_annual_energy!$D:$D,Y$221,raw_annual_energy!$A:$A,mainzone)/1000+SUMIFS(raw_annual_energy!$F:$F,Lists!$S:$S,'Portfolio Analytics'!$C245,raw_annual_energy!$D:$D,Y$221,raw_annual_energy!$A:$A,\"CAISO_NW_Hydro\")/1000","v":0},{"$f":"SUMIFS(raw_annual_energy!$F:$F,Lists!$S:$S,$C245,raw_annual_energy!$D:$D,Z$221,raw_annual_energy!$A:$A,mainzone)/1000+SUMIFS(raw_annual_energy!$F:$F,Lists!$S:$S,'Portfolio Analytics'!$C245,raw_annual_energy!$D:$D,Z$221,raw_annual_energy!$A:$A,\"CAISO_NW_Hydro\")/1000","v":0},{"$f":"SUMIFS(raw_annual_energy!$F:$F,Lists!$S:$S,$C245,raw_annual_energy!$D:$D,AA$221,raw_annual_energy!$A:$A,mainzone)/1000+SUMIFS(raw_annual_energy!$F:$F,Lists!$S:$S,'Portfolio Analytics'!$C245,raw_annual_energy!$D:$D,AA$221,raw_annual_energy!$A:$A,\"CAISO_NW_Hydro\")/1000","v":0},{"$f":"SUMIFS(raw_annual_energy!$F:$F,Lists!$S:$S,$C245,raw_annual_energy!$D:$D,AB$221,raw_annual_energy!$A:$A,mainzone)/1000+SUMIFS(raw_annual_energy!$F:$F,Lists!$S:$S,'Portfolio Analytics'!$C245,raw_annual_energy!$D:$D,AB$221,raw_annual_energy!$A:$A,\"CAISO_NW_Hydro\")/1000","v":0},{"$f":"SUMIFS(raw_annual_energy!$F:$F,Lists!$S:$S,$C245,raw_annual_energy!$D:$D,AC$221,raw_annual_energy!$A:$A,mainzone)/1000+SUMIFS(raw_annual_energy!$F:$F,Lists!$S:$S,'Portfolio Analytics'!$C245,raw_annual_energy!$D:$D,AC$221,raw_annual_energy!$A:$A,\"CAISO_NW_Hydro\")/1000","v":0},{"$f":"SUMIFS(raw_annual_energy!$F:$F,Lists!$S:$S,$C245,raw_annual_energy!$D:$D,AD$221,raw_annual_energy!$A:$A,mainzone)/1000+SUMIFS(raw_annual_energy!$F:$F,Lists!$S:$S,'Portfolio Analytics'!$C245,raw_annual_energy!$D:$D,AD$221,raw_annual_energy!$A:$A,\"CAISO_NW_Hydro\")/1000","v":0},{"$f":"SUMIFS(raw_annual_energy!$F:$F,Lists!$S:$S,$C245,raw_annual_energy!$D:$D,AE$221,raw_annual_energy!$A:$A,mainzone)/1000+SUMIFS(raw_annual_energy!$F:$F,Lists!$S:$S,'Portfolio Analytics'!$C245,raw_annual_energy!$D:$D,AE$221,raw_annual_energy!$A:$A,\"CAISO_NW_Hydro\")/1000","v":0},{"$f":"SUMIFS(raw_annual_energy!$F:$F,Lists!$S:$S,$C245,raw_annual_energy!$D:$D,AF$221,raw_annual_energy!$A:$A,mainzone)/1000+SUMIFS(raw_annual_energy!$F:$F,Lists!$S:$S,'Portfolio Analytics'!$C245,raw_annual_energy!$D:$D,AF$221,raw_annual_energy!$A:$A,\"CAISO_NW_Hydro\")/1000","v":0},{"$f":"SUMIFS(raw_annual_energy!$F:$F,Lists!$S:$S,$C245,raw_annual_energy!$D:$D,AG$221,raw_annual_energy!$A:$A,mainzone)/1000+SUMIFS(raw_annual_energy!$F:$F,Lists!$S:$S,'Portfolio Analytics'!$C245,raw_annual_energy!$D:$D,AG$221,raw_annual_energy!$A:$A,\"CAISO_NW_Hydro\")/1000","v":0},{"$f":"SUMIFS(raw_annual_energy!$F:$F,Lists!$S:$S,$C245,raw_annual_energy!$D:$D,AH$221,raw_annual_energy!$A:$A,mainzone)/1000+SUMIFS(raw_annual_energy!$F:$F,Lists!$S:$S,'Portfolio Analytics'!$C245,raw_annual_energy!$D:$D,AH$221,raw_annual_energy!$A:$A,\"CAISO_NW_Hydro\")/1000","v":0},{"$f":"SUMIFS(raw_annual_energy!$F:$F,Lists!$S:$S,$C245,raw_annual_energy!$D:$D,AI$221,raw_annual_energy!$A:$A,mainzone)/1000+SUMIFS(raw_annual_energy!$F:$F,Lists!$S:$S,'Portfolio Analytics'!$C245,raw_annual_energy!$D:$D,AI$221,raw_annual_energy!$A:$A,\"CAISO_NW_Hydro\")/1000","v":0},{"$f":"SUMIFS(raw_annual_energy!$F:$F,Lists!$S:$S,$C245,raw_annual_energy!$D:$D,AJ$221,raw_annual_energy!$A:$A,mainzone)/1000+SUMIFS(raw_annual_energy!$F:$F,Lists!$S:$S,'Portfolio Analytics'!$C245,raw_annual_energy!$D:$D,AJ$221,raw_annual_energy!$A:$A,\"CAISO_NW_Hydro\")/1000","v":0},{"$f":"SUMIFS(raw_annual_energy!$F:$F,Lists!$S:$S,$C245,raw_annual_energy!$D:$D,AK$221,raw_annual_energy!$A:$A,mainzone)/1000+SUMIFS(raw_annual_energy!$F:$F,Lists!$S:$S,'Portfolio Analytics'!$C245,raw_annual_energy!$D:$D,AK$221,raw_annual_energy!$A:$A,\"CAISO_NW_Hydro\")/1000","v":0},{"$f":"SUMIFS(raw_annual_energy!$F:$F,Lists!$S:$S,$C245,raw_annual_energy!$D:$D,AL$221,raw_annual_energy!$A:$A,mainzone)/1000+SUMIFS(raw_annual_energy!$F:$F,Lists!$S:$S,'Portfolio Analytics'!$C245,raw_annual_energy!$D:$D,AL$221,raw_annual_energy!$A:$A,\"CAISO_NW_Hydro\")/1000","v":0},{"$f":"SUMIFS(raw_annual_energy!$F:$F,Lists!$S:$S,$C245,raw_annual_energy!$D:$D,AM$221,raw_annual_energy!$A:$A,mainzone)/1000+SUMIFS(raw_annual_energy!$F:$F,Lists!$S:$S,'Portfolio Analytics'!$C245,raw_annual_energy!$D:$D,AM$221,raw_annual_energy!$A:$A,\"CAISO_NW_Hydro\")/1000","v":0},{"$f":"SUMIFS(raw_annual_energy!$F:$F,Lists!$S:$S,$C245,raw_annual_energy!$D:$D,AN$221,raw_annual_energy!$A:$A,mainzone)/1000+SUMIFS(raw_annual_energy!$F:$F,Lists!$S:$S,'Portfolio Analytics'!$C245,raw_annual_energy!$D:$D,AN$221,raw_annual_energy!$A:$A,\"CAISO_NW_Hydro\")/1000","v":0}]
[null,null,"Pumped_Hydro","GWh",{"$f":"SUMIFS(raw_annual_energy!$F:$F,Lists!$S:$S,$C246,raw_annual_energy!$D:$D,E$221,raw_annual_energy!$A:$A,mainzone)/1000+SUMIFS(raw_annual_energy!$F:$F,Lists!$S:$S,'Portfolio Analytics'!$C246,raw_annual_energy!$D:$D,E$221,raw_annual_energy!$A:$A,\"CAISO_NW_Hydro\")/1000","v":0},{"$f":"SUMIFS(raw_annual_energy!$F:$F,Lists!$S:$S,$C246,raw_annual_energy!$D:$D,F$221,raw_annual_energy!$A:$A,mainzone)/1000+SUMIFS(raw_annual_energy!$F:$F,Lists!$S:$S,'Portfolio Analytics'!$C246,raw_annual_energy!$D:$D,F$221,raw_annual_energy!$A:$A,\"CAISO_NW_Hydro\")/1000","v":0},{"$f":"SUMIFS(raw_annual_energy!$F:$F,Lists!$S:$S,$C246,raw_annual_energy!$D:$D,G$221,raw_annual_energy!$A:$A,mainzone)/1000+SUMIFS(raw_annual_energy!$F:$F,Lists!$S:$S,'Portfolio Analytics'!$C246,raw_annual_energy!$D:$D,G$221,raw_annual_energy!$A:$A,\"CAISO_NW_Hydro\")/1000","v":0},{"$f":"SUMIFS(raw_annual_energy!$F:$F,Lists!$S:$S,$C246,raw_annual_energy!$D:$D,H$221,raw_annual_energy!$A:$A,mainzone)/1000+SUMIFS(raw_annual_energy!$F:$F,Lists!$S:$S,'Portfolio Analytics'!$C246,raw_annual_energy!$D:$D,H$221,raw_annual_energy!$A:$A,\"CAISO_NW_Hydro\")/1000","v":0},{"$f":"SUMIFS(raw_annual_energy!$F:$F,Lists!$S:$S,$C246,raw_annual_energy!$D:$D,I$221,raw_annual_energy!$A:$A,mainzone)/1000+SUMIFS(raw_annual_energy!$F:$F,Lists!$S:$S,'Portfolio Analytics'!$C246,raw_annual_energy!$D:$D,I$221,raw_annual_energy!$A:$A,\"CAISO_NW_Hydro\")/1000","v":0},{"$f":"SUMIFS(raw_annual_energy!$F:$F,Lists!$S:$S,$C246,raw_annual_energy!$D:$D,J$221,raw_annual_energy!$A:$A,mainzone)/1000+SUMIFS(raw_annual_energy!$F:$F,Lists!$S:$S,'Portfolio Analytics'!$C246,raw_annual_energy!$D:$D,J$221,raw_annual_energy!$A:$A,\"CAISO_NW_Hydro\")/1000","v":-136.57470540424799},{"$f":"SUMIFS(raw_annual_energy!$F:$F,Lists!$S:$S,$C246,raw_annual_energy!$D:$D,K$221,raw_annual_energy!$A:$A,mainzone)/1000+SUMIFS(raw_annual_energy!$F:$F,Lists!$S:$S,'Portfolio Analytics'!$C246,raw_annual_energy!$D:$D,K$221,raw_annual_energy!$A:$A,\"CAISO_NW_Hydro\")/1000","v":8.1236378767751098},{"$f":"SUMIFS(raw_annual_energy!$F:$F,Lists!$S:$S,$C246,raw_annual_energy!$D:$D,L$221,raw_annual_energy!$A:$A,mainzone)/1000+SUMIFS(raw_annual_energy!$F:$F,Lists!$S:$S,'Portfolio Analytics'!$C246,raw_annual_energy!$D:$D,L$221,raw_annual_energy!$A:$A,\"CAISO_NW_Hydro\")/1000","v":-24.806536467410101},{"$f":"SUMIFS(raw_annual_energy!$F:$F,Lists!$S:$S,$C246,raw_annual_energy!$D:$D,M$221,raw_annual_energy!$A:$A,mainzone)/1000+SUMIFS(raw_annual_energy!$F:$F,Lists!$S:$S,'Portfolio Analytics'!$C246,raw_annual_energy!$D:$D,M$221,raw_annual_energy!$A:$A,\"CAISO_NW_Hydro\")/1000","v":3.5846866550343104},{"$f":"SUMIFS(raw_annual_energy!$F:$F,Lists!$S:$S,$C246,raw_annual_energy!$D:$D,N$221,raw_annual_energy!$A:$A,mainzone)/1000+SUMIFS(raw_annual_energy!$F:$F,Lists!$S:$S,'Portfolio Analytics'!$C246,raw_annual_energy!$D:$D,N$221,raw_annual_energy!$A:$A,\"CAISO_NW_Hydro\")/1000","v":67.568344461511089},{"$f":"SUMIFS(raw_annual_energy!$F:$F,Lists!$S:$S,$C246,raw_annual_energy!$D:$D,O$221,raw_annual_energy!$A:$A,mainzone)/1000+SUMIFS(raw_annual_energy!$F:$F,Lists!$S:$S,'Portfolio Analytics'!$C246,raw_annual_energy!$D:$D,O$221,raw_annual_energy!$A:$A,\"CAISO_NW_Hydro\")/1000","v":0},{"$f":"SUMIFS(raw_annual_energy!$F:$F,Lists!$S:$S,$C246,raw_annual_energy!$D:$D,P$221,raw_annual_energy!$A:$A,mainzone)/1000+SUMIFS(raw_annual_energy!$F:$F,Lists!$S:$S,'Portfolio Analytics'!$C246,raw_annual_energy!$D:$D,P$221,raw_annual_energy!$A:$A,\"CAISO_NW_Hydro\")/1000","v":84.904408314368894},{"$f":"SUMIFS(raw_annual_energy!$F:$F,Lists!$S:$S,$C246,raw_annual_energy!$D:$D,Q$221,raw_annual_energy!$A:$A,mainzone)/1000+SUMIFS(raw_annual_energy!$F:$F,Lists!$S:$S,'Portfolio Analytics'!$C246,raw_annual_energy!$D:$D,Q$221,raw_annual_energy!$A:$A,\"CAISO_NW_Hydro\")/1000","v":0},{"$f":"SUMIFS(raw_annual_energy!$F:$F,Lists!$S:$S,$C246,raw_annual_energy!$D:$D,R$221,raw_annual_energy!$A:$A,mainzone)/1000+SUMIFS(raw_annual_energy!$F:$F,Lists!$S:$S,'Portfolio Analytics'!$C246,raw_annual_energy!$D:$D,R$221,raw_annual_energy!$A:$A,\"CAISO_NW_Hydro\")/1000","v":0},{"$f":"SUMIFS(raw_annual_energy!$F:$F,Lists!$S:$S,$C246,raw_annual_energy!$D:$D,S$221,raw_annual_energy!$A:$A,mainzone)/1000+SUMIFS(raw_annual_energy!$F:$F,Lists!$S:$S,'Portfolio Analytics'!$C246,raw_annual_energy!$D:$D,S$221,raw_annual_energy!$A:$A,\"CAISO_NW_Hydro\")/1000","v":0},{"$f":"SUMIFS(raw_annual_energy!$F:$F,Lists!$S:$S,$C246,raw_annual_energy!$D:$D,T$221,raw_annual_energy!$A:$A,mainzone)/1000+SUMIFS(raw_annual_energy!$F:$F,Lists!$S:$S,'Portfolio Analytics'!$C246,raw_annual_energy!$D:$D,T$221,raw_annual_energy!$A:$A,\"CAISO_NW_Hydro\")/1000","v":416.66086188269105},{"$f":"SUMIFS(raw_annual_energy!$F:$F,Lists!$S:$S,$C246,raw_annual_energy!$D:$D,U$221,raw_annual_energy!$A:$A,mainzone)/1000+SUMIFS(raw_annual_energy!$F:$F,Lists!$S:$S,'Portfolio Analytics'!$C246,raw_annual_energy!$D:$D,U$221,raw_annual_energy!$A:$A,\"CAISO_NW_Hydro\")/1000","v":0},{"$f":"SUMIFS(raw_annual_energy!$F:$F,Lists!$S:$S,$C246,raw_annual_energy!$D:$D,V$221,raw_annual_energy!$A:$A,mainzone)/1000+SUMIFS(raw_annual_energy!$F:$F,Lists!$S:$S,'Portfolio Analytics'!$C246,raw_annual_energy!$D:$D,V$221,raw_annual_energy!$A:$A,\"CAISO_NW_Hydro\")/1000","v":0},{"$f":"SUMIFS(raw_annual_energy!$F:$F,Lists!$S:$S,$C246,raw_annual_energy!$D:$D,W$221,raw_annual_energy!$A:$A,mainzone)/1000+SUMIFS(raw_annual_energy!$F:$F,Lists!$S:$S,'Portfolio Analytics'!$C246,raw_annual_energy!$D:$D,W$221,raw_annual_energy!$A:$A,\"CAISO_NW_Hydro\")/1000","v":0},{"$f":"SUMIFS(raw_annual_energy!$F:$F,Lists!$S:$S,$C246,raw_annual_energy!$D:$D,X$221,raw_annual_energy!$A:$A,mainzone)/1000+SUMIFS(raw_annual_energy!$F:$F,Lists!$S:$S,'Portfolio Analytics'!$C246,raw_annual_energy!$D:$D,X$221,raw_annual_energy!$A:$A,\"CAISO_NW_Hydro\")/1000","v":0},{"$f":"SUMIFS(raw_annual_energy!$F:$F,Lists!$S:$S,$C246,raw_annual_energy!$D:$D,Y$221,raw_annual_energy!$A:$A,mainzone)/1000+SUMIFS(raw_annual_energy!$F:$F,Lists!$S:$S,'Portfolio Analytics'!$C246,raw_annual_energy!$D:$D,Y$221,raw_annual_energy!$A:$A,\"CAISO_NW_Hydro\")/1000","v":0},{"$f":"SUMIFS(raw_annual_energy!$F:$F,Lists!$S:$S,$C246,raw_annual_energy!$D:$D,Z$221,raw_annual_energy!$A:$A,mainzone)/1000+SUMIFS(raw_annual_energy!$F:$F,Lists!$S:$S,'Portfolio Analytics'!$C246,raw_annual_energy!$D:$D,Z$221,raw_annual_energy!$A:$A,\"CAISO_NW_Hydro\")/1000","v":0},{"$f":"SUMIFS(raw_annual_energy!$F:$F,Lists!$S:$S,$C246,raw_annual_energy!$D:$D,AA$221,raw_annual_energy!$A:$A,mainzone)/1000+SUMIFS(raw_annual_energy!$F:$F,Lists!$S:$S,'Portfolio Analytics'!$C246,raw_annual_energy!$D:$D,AA$221,raw_annual_energy!$A:$A,\"CAISO_NW_Hydro\")/1000","v":0},{"$f":"SUMIFS(raw_annual_energy!$F:$F,Lists!$S:$S,$C246,raw_annual_energy!$D:$D,AB$221,raw_annual_energy!$A:$A,mainzone)/1000+SUMIFS(raw_annual_energy!$F:$F,Lists!$S:$S,'Portfolio Analytics'!$C246,raw_annual_energy!$D:$D,AB$221,raw_annual_energy!$A:$A,\"CAISO_NW_Hydro\")/1000","v":0},{"$f":"SUMIFS(raw_annual_energy!$F:$F,Lists!$S:$S,$C246,raw_annual_energy!$D:$D,AC$221,raw_annual_energy!$A:$A,mainzone)/1000+SUMIFS(raw_annual_energy!$F:$F,Lists!$S:$S,'Portfolio Analytics'!$C246,raw_annual_energy!$D:$D,AC$221,raw_annual_energy!$A:$A,\"CAISO_NW_Hydro\")/1000","v":0},{"$f":"SUMIFS(raw_annual_energy!$F:$F,Lists!$S:$S,$C246,raw_annual_energy!$D:$D,AD$221,raw_annual_energy!$A:$A,mainzone)/1000+SUMIFS(raw_annual_energy!$F:$F,Lists!$S:$S,'Portfolio Analytics'!$C246,raw_annual_energy!$D:$D,AD$221,raw_annual_energy!$A:$A,\"CAISO_NW_Hydro\")/1000","v":0},{"$f":"SUMIFS(raw_annual_energy!$F:$F,Lists!$S:$S,$C246,raw_annual_energy!$D:$D,AE$221,raw_annual_energy!$A:$A,mainzone)/1000+SUMIFS(raw_annual_energy!$F:$F,Lists!$S:$S,'Portfolio Analytics'!$C246,raw_annual_energy!$D:$D,AE$221,raw_annual_energy!$A:$A,\"CAISO_NW_Hydro\")/1000","v":0},{"$f":"SUMIFS(raw_annual_energy!$F:$F,Lists!$S:$S,$C246,raw_annual_energy!$D:$D,AF$221,raw_annual_energy!$A:$A,mainzone)/1000+SUMIFS(raw_annual_energy!$F:$F,Lists!$S:$S,'Portfolio Analytics'!$C246,raw_annual_energy!$D:$D,AF$221,raw_annual_energy!$A:$A,\"CAISO_NW_Hydro\")/1000","v":0},{"$f":"SUMIFS(raw_annual_energy!$F:$F,Lists!$S:$S,$C246,raw_annual_energy!$D:$D,AG$221,raw_annual_energy!$A:$A,mainzone)/1000+SUMIFS(raw_annual_energy!$F:$F,Lists!$S:$S,'Portfolio Analytics'!$C246,raw_annual_energy!$D:$D,AG$221,raw_annual_energy!$A:$A,\"CAISO_NW_Hydro\")/1000","v":0},{"$f":"SUMIFS(raw_annual_energy!$F:$F,Lists!$S:$S,$C246,raw_annual_energy!$D:$D,AH$221,raw_annual_energy!$A:$A,mainzone)/1000+SUMIFS(raw_annual_energy!$F:$F,Lists!$S:$S,'Portfolio Analytics'!$C246,raw_annual_energy!$D:$D,AH$221,raw_annual_energy!$A:$A,\"CAISO_NW_Hydro\")/1000","v":0},{"$f":"SUMIFS(raw_annual_energy!$F:$F,Lists!$S:$S,$C246,raw_annual_energy!$D:$D,AI$221,raw_annual_energy!$A:$A,mainzone)/1000+SUMIFS(raw_annual_energy!$F:$F,Lists!$S:$S,'Portfolio Analytics'!$C246,raw_annual_energy!$D:$D,AI$221,raw_annual_energy!$A:$A,\"CAISO_NW_Hydro\")/1000","v":318.23812591796701},{"$f":"SUMIFS(raw_annual_energy!$F:$F,Lists!$S:$S,$C246,raw_annual_energy!$D:$D,AJ$221,raw_annual_energy!$A:$A,mainzone)/1000+SUMIFS(raw_annual_energy!$F:$F,Lists!$S:$S,'Portfolio Analytics'!$C246,raw_annual_energy!$D:$D,AJ$221,raw_annual_energy!$A:$A,\"CAISO_NW_Hydro\")/1000","v":0},{"$f":"SUMIFS(raw_annual_energy!$F:$F,Lists!$S:$S,$C246,raw_annual_energy!$D:$D,AK$221,raw_annual_energy!$A:$A,mainzone)/1000+SUMIFS(raw_annual_energy!$F:$F,Lists!$S:$S,'Portfolio Analytics'!$C246,raw_annual_energy!$D:$D,AK$221,raw_annual_energy!$A:$A,\"CAISO_NW_Hydro\")/1000","v":0},{"$f":"SUMIFS(raw_annual_energy!$F:$F,Lists!$S:$S,$C246,raw_annual_energy!$D:$D,AL$221,raw_annual_energy!$A:$A,mainzone)/1000+SUMIFS(raw_annual_energy!$F:$F,Lists!$S:$S,'Portfolio Analytics'!$C246,raw_annual_energy!$D:$D,AL$221,raw_annual_energy!$A:$A,\"CAISO_NW_Hydro\")/1000","v":0},{"$f":"SUMIFS(raw_annual_energy!$F:$F,Lists!$S:$S,$C246,raw_annual_energy!$D:$D,AM$221,raw_annual_energy!$A:$A,mainzone)/1000+SUMIFS(raw_annual_energy!$F:$F,Lists!$S:$S,'Portfolio Analytics'!$C246,raw_annual_energy!$D:$D,AM$221,raw_annual_energy!$A:$A,\"CAISO_NW_Hydro\")/1000","v":0},{"$f":"SUMIFS(raw_annual_energy!$F:$F,Lists!$S:$S,$C246,raw_annual_energy!$D:$D,AN$221,raw_annual_energy!$A:$A,mainzone)/1000+SUMIFS(raw_annual_energy!$F:$F,Lists!$S:$S,'Portfolio Analytics'!$C246,raw_annual_energy!$D:$D,AN$221,raw_annual_energy!$A:$A,\"CAISO_NW_Hydro\")/1000","v":0}]
[null,null,"Hydro","GWh",{"$f":"SUMIFS(raw_annual_energy!$F:$F,Lists!$S:$S,$C247,raw_annual_energy!$D:$D,E$221,raw_annual_energy!$A:$A,mainzone)/1000+SUMIFS(raw_annual_energy!$F:$F,Lists!$S:$S,'Portfolio Analytics'!$C247,raw_annual_energy!$D:$D,E$221,raw_annual_energy!$A:$A,\"CAISO_NW_Hydro\")/1000","v":0},{"$f":"SUMIFS(raw_annual_energy!$F:$F,Lists!$S:$S,$C247,raw_annual_energy!$D:$D,F$221,raw_annual_energy!$A:$A,mainzone)/1000+SUMIFS(raw_annual_energy!$F:$F,Lists!$S:$S,'Portfolio Analytics'!$C247,raw_annual_energy!$D:$D,F$221,raw_annual_energy!$A:$A,\"CAISO_NW_Hydro\")/1000","v":0},{"$f":"SUMIFS(raw_annual_energy!$F:$F,Lists!$S:$S,$C247,raw_annual_energy!$D:$D,G$221,raw_annual_energy!$A:$A,mainzone)/1000+SUMIFS(raw_annual_energy!$F:$F,Lists!$S:$S,'Portfolio Analytics'!$C247,raw_annual_energy!$D:$D,G$221,raw_annual_energy!$A:$A,\"CAISO_NW_Hydro\")/1000","v":0},{"$f":"SUMIFS(raw_annual_energy!$F:$F,Lists!$S:$S,$C247,raw_annual_energy!$D:$D,H$221,raw_annual_energy!$A:$A,mainzone)/1000+SUMIFS(raw_annual_energy!$F:$F,Lists!$S:$S,'Portfolio Analytics'!$C247,raw_annual_energy!$D:$D,H$221,raw_annual_energy!$A:$A,\"CAISO_NW_Hydro\")/1000","v":0},{"$f":"SUMIFS(raw_annual_energy!$F:$F,Lists!$S:$S,$C247,raw_annual_energy!$D:$D,I$221,raw_annual_energy!$A:$A,mainzone)/1000+SUMIFS(raw_annual_energy!$F:$F,Lists!$S:$S,'Portfolio Analytics'!$C247,raw_annual_energy!$D:$D,I$221,raw_annual_energy!$A:$A,\"CAISO_NW_Hydro\")/1000","v":0},{"$f":"SUMIFS(raw_annual_energy!$F:$F,Lists!$S:$S,$C247,raw_annual_energy!$D:$D,J$221,raw_annual_energy!$A:$A,mainzone)/1000+SUMIFS(raw_annual_energy!$F:$F,Lists!$S:$S,'Portfolio Analytics'!$C247,raw_annual_energy!$D:$D,J$221,raw_annual_energy!$A:$A,\"CAISO_NW_Hydro\")/1000","v":764.2415011911919},{"$f":"SUMIFS(raw_annual_energy!$F:$F,Lists!$S:$S,$C247,raw_annual_energy!$D:$D,K$221,raw_annual_energy!$A:$A,mainzone)/1000+SUMIFS(raw_annual_energy!$F:$F,Lists!$S:$S,'Portfolio Analytics'!$C247,raw_annual_energy!$D:$D,K$221,raw_annual_energy!$A:$A,\"CAISO_NW_Hydro\")/1000","v":965.74320762035995},{"$f":"SUMIFS(raw_annual_energy!$F:$F,Lists!$S:$S,$C247,raw_annual_energy!$D:$D,L$221,raw_annual_energy!$A:$A,mainzone)/1000+SUMIFS(raw_annual_energy!$F:$F,Lists!$S:$S,'Portfolio Analytics'!$C247,raw_annual_energy!$D:$D,L$221,raw_annual_energy!$A:$A,\"CAISO_NW_Hydro\")/1000","v":1029.73446801672},{"$f":"SUMIFS(raw_annual_energy!$F:$F,Lists!$S:$S,$C247,raw_annual_energy!$D:$D,M$221,raw_annual_energy!$A:$A,mainzone)/1000+SUMIFS(raw_annual_energy!$F:$F,Lists!$S:$S,'Portfolio Analytics'!$C247,raw_annual_energy!$D:$D,M$221,raw_annual_energy!$A:$A,\"CAISO_NW_Hydro\")/1000","v":1105.7253832373701},{"$f":"SUMIFS(raw_annual_energy!$F:$F,Lists!$S:$S,$C247,raw_annual_energy!$D:$D,N$221,raw_annual_energy!$A:$A,mainzone)/1000+SUMIFS(raw_annual_energy!$F:$F,Lists!$S:$S,'Portfolio Analytics'!$C247,raw_annual_energy!$D:$D,N$221,raw_annual_energy!$A:$A,\"CAISO_NW_Hydro\")/1000","v":1155.03845326291},{"$f":"SUMIFS(raw_annual_energy!$F:$F,Lists!$S:$S,$C247,raw_annual_energy!$D:$D,O$221,raw_annual_energy!$A:$A,mainzone)/1000+SUMIFS(raw_annual_energy!$F:$F,Lists!$S:$S,'Portfolio Analytics'!$C247,raw_annual_energy!$D:$D,O$221,raw_annual_energy!$A:$A,\"CAISO_NW_Hydro\")/1000","v":0},{"$f":"SUMIFS(raw_annual_energy!$F:$F,Lists!$S:$S,$C247,raw_annual_energy!$D:$D,P$221,raw_annual_energy!$A:$A,mainzone)/1000+SUMIFS(raw_annual_energy!$F:$F,Lists!$S:$S,'Portfolio Analytics'!$C247,raw_annual_energy!$D:$D,P$221,raw_annual_energy!$A:$A,\"CAISO_NW_Hydro\")/1000","v":1070.1294023886801},{"$f":"SUMIFS(raw_annual_energy!$F:$F,Lists!$S:$S,$C247,raw_annual_energy!$D:$D,Q$221,raw_annual_energy!$A:$A,mainzone)/1000+SUMIFS(raw_annual_energy!$F:$F,Lists!$S:$S,'Portfolio Analytics'!$C247,raw_annual_energy!$D:$D,Q$221,raw_annual_energy!$A:$A,\"CAISO_NW_Hydro\")/1000","v":0},{"$f":"SUMIFS(raw_annual_energy!$F:$F,Lists!$S:$S,$C247,raw_annual_energy!$D:$D,R$221,raw_annual_energy!$A:$A,mainzone)/1000+SUMIFS(raw_annual_energy!$F:$F,Lists!$S:$S,'Portfolio Analytics'!$C247,raw_annual_energy!$D:$D,R$221,raw_annual_energy!$A:$A,\"CAISO_NW_Hydro\")/1000","v":0},{"$f":"SUMIFS(raw_annual_energy!$F:$F,Lists!$S:$S,$C247,raw_annual_energy!$D:$D,S$221,raw_annual_energy!$A:$A,mainzone)/1000+SUMIFS(raw_annual_energy!$F:$F,Lists!$S:$S,'Portfolio Analytics'!$C247,raw_annual_energy!$D:$D,S$221,raw_annual_energy!$A:$A,\"CAISO_NW_Hydro\")/1000","v":0},{"$f":"SUMIFS(raw_annual_energy!$F:$F,Lists!$S:$S,$C247,raw_annual_energy!$D:$D,T$221,raw_annual_energy!$A:$A,mainzone)/1000+SUMIFS(raw_annual_energy!$F:$F,Lists!$S:$S,'Portfolio Analytics'!$C247,raw_annual_energy!$D:$D,T$221,raw_annual_energy!$A:$A,\"CAISO_NW_Hydro\")/1000","v":325.342147350228},{"$f":"SUMIFS(raw_annual_energy!$F:$F,Lists!$S:$S,$C247,raw_annual_energy!$D:$D,U$221,raw_annual_energy!$A:$A,mainzone)/1000+SUMIFS(raw_annual_energy!$F:$F,Lists!$S:$S,'Portfolio Analytics'!$C247,raw_annual_energy!$D:$D,U$221,raw_annual_energy!$A:$A,\"CAISO_NW_Hydro\")/1000","v":0},{"$f":"SUMIFS(raw_annual_energy!$F:$F,Lists!$S:$S,$C247,raw_annual_energy!$D:$D,V$221,raw_annual_energy!$A:$A,mainzone)/1000+SUMIFS(raw_annual_energy!$F:$F,Lists!$S:$S,'Portfolio Analytics'!$C247,raw_annual_energy!$D:$D,V$221,raw_annual_energy!$A:$A,\"CAISO_NW_Hydro\")/1000","v":0},{"$f":"SUMIFS(raw_annual_energy!$F:$F,Lists!$S:$S,$C247,raw_annual_energy!$D:$D,W$221,raw_annual_energy!$A:$A,mainzone)/1000+SUMIFS(raw_annual_energy!$F:$F,Lists!$S:$S,'Portfolio Analytics'!$C247,raw_annual_energy!$D:$D,W$221,raw_annual_energy!$A:$A,\"CAISO_NW_Hydro\")/1000","v":0},{"$f":"SUMIFS(raw_annual_energy!$F:$F,Lists!$S:$S,$C247,raw_annual_energy!$D:$D,X$221,raw_annual_energy!$A:$A,mainzone)/1000+SUMIFS(raw_annual_energy!$F:$F,Lists!$S:$S,'Portfolio Analytics'!$C247,raw_annual_energy!$D:$D,X$221,raw_annual_energy!$A:$A,\"CAISO_NW_Hydro\")/1000","v":0},{"$f":"SUMIFS(raw_annual_energy!$F:$F,Lists!$S:$S,$C247,raw_annual_energy!$D:$D,Y$221,raw_annual_energy!$A:$A,mainzone)/1000+SUMIFS(raw_annual_energy!$F:$F,Lists!$S:$S,'Portfolio Analytics'!$C247,raw_annual_energy!$D:$D,Y$221,raw_annual_energy!$A:$A,\"CAISO_NW_Hydro\")/1000","v":0},{"$f":"SUMIFS(raw_annual_energy!$F:$F,Lists!$S:$S,$C247,raw_annual_energy!$D:$D,Z$221,raw_annual_energy!$A:$A,mainzone)/1000+SUMIFS(raw_annual_energy!$F:$F,Lists!$S:$S,'Portfolio Analytics'!$C247,raw_annual_energy!$D:$D,Z$221,raw_annual_energy!$A:$A,\"CAISO_NW_Hydro\")/1000","v":0},{"$f":"SUMIFS(raw_annual_energy!$F:$F,Lists!$S:$S,$C247,raw_annual_energy!$D:$D,AA$221,raw_annual_energy!$A:$A,mainzone)/1000+SUMIFS(raw_annual_energy!$F:$F,Lists!$S:$S,'Portfolio Analytics'!$C247,raw_annual_energy!$D:$D,AA$221,raw_annual_energy!$A:$A,\"CAISO_NW_Hydro\")/1000","v":0},{"$f":"SUMIFS(raw_annual_energy!$F:$F,Lists!$S:$S,$C247,raw_annual_energy!$D:$D,AB$221,raw_annual_energy!$A:$A,mainzone)/1000+SUMIFS(raw_annual_energy!$F:$F,Lists!$S:$S,'Portfolio Analytics'!$C247,raw_annual_energy!$D:$D,AB$221,raw_annual_energy!$A:$A,\"CAISO_NW_Hydro\")/1000","v":0},{"$f":"SUMIFS(raw_annual_energy!$F:$F,Lists!$S:$S,$C247,raw_annual_energy!$D:$D,AC$221,raw_annual_energy!$A:$A,mainzone)/1000+SUMIFS(raw_annual_energy!$F:$F,Lists!$S:$S,'Portfolio Analytics'!$C247,raw_annual_energy!$D:$D,AC$221,raw_annual_energy!$A:$A,\"CAISO_NW_Hydro\")/1000","v":0},{"$f":"SUMIFS(raw_annual_energy!$F:$F,Lists!$S:$S,$C247,raw_annual_energy!$D:$D,AD$221,raw_annual_energy!$A:$A,mainzone)/1000+SUMIFS(raw_annual_energy!$F:$F,Lists!$S:$S,'Portfolio Analytics'!$C247,raw_annual_energy!$D:$D,AD$221,raw_annual_energy!$A:$A,\"CAISO_NW_Hydro\")/1000","v":0},{"$f":"SUMIFS(raw_annual_energy!$F:$F,Lists!$S:$S,$C247,raw_annual_energy!$D:$D,AE$221,raw_annual_energy!$A:$A,mainzone)/1000+SUMIFS(raw_annual_energy!$F:$F,Lists!$S:$S,'Portfolio Analytics'!$C247,raw_annual_energy!$D:$D,AE$221,raw_annual_energy!$A:$A,\"CAISO_NW_Hydro\")/1000","v":0},{"$f":"SUMIFS(raw_annual_energy!$F:$F,Lists!$S:$S,$C247,raw_annual_energy!$D:$D,AF$221,raw_annual_energy!$A:$A,mainzone)/1000+SUMIFS(raw_annual_energy!$F:$F,Lists!$S:$S,'Portfolio Analytics'!$C247,raw_annual_energy!$D:$D,AF$221,raw_annual_energy!$A:$A,\"CAISO_NW_Hydro\")/1000","v":0},{"$f":"SUMIFS(raw_annual_energy!$F:$F,Lists!$S:$S,$C247,raw_annual_energy!$D:$D,AG$221,raw_annual_energy!$A:$A,mainzone)/1000+SUMIFS(raw_annual_energy!$F:$F,Lists!$S:$S,'Portfolio Analytics'!$C247,raw_annual_energy!$D:$D,AG$221,raw_annual_energy!$A:$A,\"CAISO_NW_Hydro\")/1000","v":0},{"$f":"SUMIFS(raw_annual_energy!$F:$F,Lists!$S:$S,$C247,raw_annual_energy!$D:$D,AH$221,raw_annual_energy!$A:$A,mainzone)/1000+SUMIFS(raw_annual_energy!$F:$F,Lists!$S:$S,'Portfolio Analytics'!$C247,raw_annual_energy!$D:$D,AH$221,raw_annual_energy!$A:$A,\"CAISO_NW_Hydro\")/1000","v":0},{"$f":"SUMIFS(raw_annual_energy!$F:$F,Lists!$S:$S,$C247,raw_annual_energy!$D:$D,AI$221,raw_annual_energy!$A:$A,mainzone)/1000+SUMIFS(raw_annual_energy!$F:$F,Lists!$S:$S,'Portfolio Analytics'!$C247,raw_annual_energy!$D:$D,AI$221,raw_annual_energy!$A:$A,\"CAISO_NW_Hydro\")/1000","v":-45.588963521991801},{"$f":"SUMIFS(raw_annual_energy!$F:$F,Lists!$S:$S,$C247,raw_annual_energy!$D:$D,AJ$221,raw_annual_energy!$A:$A,mainzone)/1000+SUMIFS(raw_annual_energy!$F:$F,Lists!$S:$S,'Portfolio Analytics'!$C247,raw_annual_energy!$D:$D,AJ$221,raw_annual_energy!$A:$A,\"CAISO_NW_Hydro\")/1000","v":0},{"$f":"SUMIFS(raw_annual_energy!$F:$F,Lists!$S:$S,$C247,raw_annual_energy!$D:$D,AK$221,raw_annual_energy!$A:$A,mainzone)/1000+SUMIFS(raw_annual_energy!$F:$F,Lists!$S:$S,'Portfolio Analytics'!$C247,raw_annual_energy!$D:$D,AK$221,raw_annual_energy!$A:$A,\"CAISO_NW_Hydro\")/1000","v":0},{"$f":"SUMIFS(raw_annual_energy!$F:$F,Lists!$S:$S,$C247,raw_annual_energy!$D:$D,AL$221,raw_annual_energy!$A:$A,mainzone)/1000+SUMIFS(raw_annual_energy!$F:$F,Lists!$S:$S,'Portfolio Analytics'!$C247,raw_annual_energy!$D:$D,AL$221,raw_annual_energy!$A:$A,\"CAISO_NW_Hydro\")/1000","v":0},{"$f":"SUMIFS(raw_annual_energy!$F:$F,Lists!$S:$S,$C247,raw_annual_energy!$D:$D,AM$221,raw_annual_energy!$A:$A,mainzone)/1000+SUMIFS(raw_annual_energy!$F:$F,Lists!$S:$S,'Portfolio Analytics'!$C247,raw_annual_energy!$D:$D,AM$221,raw_annual_energy!$A:$A,\"CAISO_NW_Hydro\")/1000","v":0},{"$f":"SUMIFS(raw_annual_energy!$F:$F,Lists!$S:$S,$C247,raw_annual_energy!$D:$D,AN$221,raw_annual_energy!$A:$A,mainzone)/1000+SUMIFS(raw_annual_energy!$F:$F,Lists!$S:$S,'Portfolio Analytics'!$C247,raw_annual_energy!$D:$D,AN$221,raw_annual_energy!$A:$A,\"CAISO_NW_Hydro\")/1000","v":0}]
[null,null,"Subhourly Renewable Curtailment","GWh",{"$f":"-SUMIFS(raw_annual_curtailment!$E:$E,raw_annual_curtailment!$A:$A,mainzone,raw_annual_curtailment!$C:$C,'Portfolio Analytics'!E$221)/1000","v":0},{"$f":"-SUMIFS(raw_annual_curtailment!$E:$E,raw_annual_curtailment!$A:$A,mainzone,raw_annual_curtailment!$C:$C,'Portfolio Analytics'!F$221)/1000","v":0},{"$f":"-SUMIFS(raw_annual_curtailment!$E:$E,raw_annual_curtailment!$A:$A,mainzone,raw_annual_curtailment!$C:$C,'Portfolio Analytics'!G$221)/1000","v":0},{"$f":"-SUMIFS(raw_annual_curtailment!$E:$E,raw_annual_curtailment!$A:$A,mainzone,raw_annual_curtailment!$C:$C,'Portfolio Analytics'!H$221)/1000","v":0},{"$f":"-SUMIFS(raw_annual_curtailment!$E:$E,raw_annual_curtailment!$A:$A,mainzone,raw_annual_curtailment!$C:$C,'Portfolio Analytics'!I$221)/1000","v":0},{"$f":"-SUMIFS(raw_annual_curtailment!$E:$E,raw_annual_curtailment!$A:$A,mainzone,raw_annual_curtailment!$C:$C,'Portfolio Analytics'!J$221)/1000","v":-142.20004667978},{"$f":"-SUMIFS(raw_annual_curtailment!$E:$E,raw_annual_curtailment!$A:$A,mainzone,raw_annual_curtailment!$C:$C,'Portfolio Analytics'!K$221)/1000","v":-96.265521892478603},{"$f":"-SUMIFS(raw_annual_curtailment!$E:$E,raw_annual_curtailment!$A:$A,mainzone,raw_annual_curtailment!$C:$C,'Portfolio Analytics'!L$221)/1000","v":-198.39582138144502},{"$f":"-SUMIFS(raw_annual_curtailment!$E:$E,raw_annual_curtailment!$A:$A,mainzone,raw_annual_curtailment!$C:$C,'Portfolio Analytics'!M$221)/1000","v":-331.12304806556199},{"$f":"-SUMIFS(raw_annual_curtailment!$E:$E,raw_annual_curtailment!$A:$A,mainzone,raw_annual_curtailment!$C:$C,'Portfolio Analytics'!N$221)/1000","v":-298.31231451028498},{"$f":"-SUMIFS(raw_annual_curtailment!$E:$E,raw_annual_curtailment!$A:$A,mainzone,raw_annual_curtailment!$C:$C,'Portfolio Analytics'!O$221)/1000","v":0},{"$f":"-SUMIFS(raw_annual_curtailment!$E:$E,raw_annual_curtailment!$A:$A,mainzone,raw_annual_curtailment!$C:$C,'Portfolio Analytics'!P$221)/1000","v":-169.50368064460099},{"$f":"-SUMIFS(raw_annual_curtailment!$E:$E,raw_annual_curtailment!$A:$A,mainzone,raw_annual_curtailment!$C:$C,'Portfolio Analytics'!Q$221)/1000","v":0},{"$f":"-SUMIFS(raw_annual_curtailment!$E:$E,raw_annual_curtailment!$A:$A,mainzone,raw_annual_curtailment!$C:$C,'Portfolio Analytics'!R$221)/1000","v":0},{"$f":"-SUMIFS(raw_annual_curtailment!$E:$E,raw_annual_curtailment!$A:$A,mainzone,raw_annual_curtailment!$C:$C,'Portfolio Analytics'!S$221)/1000","v":0},{"$f":"-SUMIFS(raw_annual_curtailment!$E:$E,raw_annual_curtailment!$A:$A,mainzone,raw_annual_curtailment!$C:$C,'Portfolio Analytics'!T$221)/1000","v":-749.69865920530799},{"$f":"-SUMIFS(raw_annual_curtailment!$E:$E,raw_annual_curtailment!$A:$A,mainzone,raw_annual_curtailment!$C:$C,'Portfolio Analytics'!U$221)/1000","v":0},{"$f":"-SUMIFS(raw_annual_curtailment!$E:$E,raw_annual_curtailment!$A:$A,mainzone,raw_annual_curtailment!$C:$C,'Portfolio Analytics'!V$221)/1000","v":0},{"$f":"-SUMIFS(raw_annual_curtailment!$E:$E,raw_annual_curtailment!$A:$A,mainzone,raw_annual_curtailment!$C:$C,'Portfolio Analytics'!W$221)/1000","v":0},{"$f":"-SUMIFS(raw_annual_curtailment!$E:$E,raw_annual_curtailment!$A:$A,mainzone,raw_annual_curtailment!$C:$C,'Portfolio Analytics'!X$221)/1000","v":0},{"$f":"-SUMIFS(raw_annual_curtailment!$E:$E,raw_annual_curtailment!$A:$A,mainzone,raw_annual_curtailment!$C:$C,'Portfolio Analytics'!Y$221)/1000","v":0},{"$f":"-SUMIFS(raw_annual_curtailment!$E:$E,raw_annual_curtailment!$A:$A,mainzone,raw_annual_curtailment!$C:$C,'Portfolio Analytics'!Z$221)/1000","v":0},{"$f":"-SUMIFS(raw_annual_curtailment!$E:$E,raw_annual_curtailment!$A:$A,mainzone,raw_annual_curtailment!$C:$C,'Portfolio Analytics'!AA$221)/1000","v":0},{"$f":"-SUMIFS(raw_annual_curtailment!$E:$E,raw_annual_curtailment!$A:$A,mainzone,raw_annual_curtailment!$C:$C,'Portfolio Analytics'!AB$221)/1000","v":0},{"$f":"-SUMIFS(raw_annual_curtailment!$E:$E,raw_annual_curtailment!$A:$A,mainzone,raw_annual_curtailment!$C:$C,'Portfolio Analytics'!AC$221)/1000","v":0},{"$f":"-SUMIFS(raw_annual_curtailment!$E:$E,raw_annual_curtailment!$A:$A,mainzone,raw_annual_curtailment!$C:$C,'Portfolio Analytics'!AD$221)/1000","v":0},{"$f":"-SUMIFS(raw_annual_curtailment!$E:$E,raw_annual_curtailment!$A:$A,mainzone,raw_annual_curtailment!$C:$C,'Portfolio Analytics'!AE$221)/1000","v":0},{"$f":"-SUMIFS(raw_annual_curtailment!$E:$E,raw_annual_curtailment!$A:$A,mainzone,raw_annual_curtailment!$C:$C,'Portfolio Analytics'!AF$221)/1000","v":0},{"$f":"-SUMIFS(raw_annual_curtailment!$E:$E,raw_annual_curtailment!$A:$A,mainzone,raw_annual_curtailment!$C:$C,'Portfolio Analytics'!AG$221)/1000","v":0},{"$f":"-SUMIFS(raw_annual_curtailment!$E:$E,raw_annual_curtailment!$A:$A,mainzone,raw_annual_curtailment!$C:$C,'Portfolio Analytics'!AH$221)/1000","v":0},{"$f":"-SUMIFS(raw_annual_curtailment!$E:$E,raw_annual_curtailment!$A:$A,mainzone,raw_annual_curtailment!$C:$C,'Portfolio Analytics'!AI$221)/1000","v":-3623.9988542667902},{"$f":"-SUMIFS(raw_annual_curtailment!$E:$E,raw_annual_curtailment!$A:$A,mainzone,raw_annual_curtailment!$C:$C,'Portfolio Analytics'!AJ$221)/1000","v":0},{"$f":"-SUMIFS(raw_annual_curtailment!$E:$E,raw_annual_curtailment!$A:$A,mainzone,raw_annual_curtailment!$C:$C,'Portfolio Analytics'!AK$221)/1000","v":0},{"$f":"-SUMIFS(raw_annual_curtailment!$E:$E,raw_annual_curtailment!$A:$A,mainzone,raw_annual_curtailment!$C:$C,'Portfolio Analytics'!AL$221)/1000","v":0},{"$f":"-SUMIFS(raw_annual_curtailment!$E:$E,raw_annual_curtailment!$A:$A,mainzone,raw_annual_curtailment!$C:$C,'Portfolio Analytics'!AM$221)/1000","v":0},{"$f":"-SUMIFS(raw_annual_curtailment!$E:$E,raw_annual_curtailment!$A:$A,mainzone,raw_annual_curtailment!$C:$C,'Portfolio Analytics'!AN$221)/1000","v":0}]
[]
[null,null,"Wind and Solar Generation and Curtailment"]
[null,null,"Technology","Unit",2015,{"$f":"E251+1","v":2016},2017,2018,2019,2020,2021,2022,2023,2024,2025,2026,2027,2028,2029,2030,2031,2032,2033,2034,2035,2036,2037,2038,2039,2040,2041,2042,2043,2044,2045,2046,2047,2048,2049,2050]
[null,null,"Solar - Utility Scale Generation Potential (pre-curtailment)","GWh",{"$f":"E255-E253-E254","v":0},{"$f":"F255-F253-F254","v":0},0,0,0,{"$f":"J255-J253-J254","v":41157.13038731322},47916.36434579653,53842.723541964246,59328.606470466177,66800.044349200121,0,80948.807259923255,0,0,0,108486.91733769805,0,0,0,0,0,0,0,0,0,0,0,0,0,0,348751.92809287825,0,0,0,0,0]
[null,null,"Solar - Utility Scale Hourly Curtailment","GWh",{"$f":"-SUMIFS(raw_annual_energy!$G:$G,Lists!$S:$S,\"Solar\",raw_annual_energy!$D:$D,E$251,raw_annual_energy!$A:$A,mainzone)/1000","v":0},{"$f":"-SUMIFS(raw_annual_energy!$G:$G,Lists!$S:$S,\"Solar\",raw_annual_energy!$D:$D,F$251,raw_annual_energy!$A:$A,mainzone)/1000","v":0},{"$f":"-SUMIFS(raw_annual_energy!$G:$G,Lists!$S:$S,\"Solar\",raw_annual_energy!$D:$D,G$251,raw_annual_energy!$A:$A,mainzone)/1000","v":0},{"$f":"-SUMIFS(raw_annual_energy!$G:$G,Lists!$S:$S,\"Solar\",raw_annual_energy!$D:$D,H$251,raw_annual_energy!$A:$A,mainzone)/1000","v":0},{"$f":"-SUMIFS(raw_annual_energy!$G:$G,Lists!$S:$S,\"Solar\",raw_annual_energy!$D:$D,I$251,raw_annual_energy!$A:$A,mainzone)/1000","v":0},{"$f":"-SUMIFS(raw_annual_energy!$G:$G,Lists!$S:$S,\"Solar\",raw_annual_energy!$D:$D,J$251,raw_annual_energy!$A:$A,mainzone)/1000","v":-35.037011936207847},{"$f":"-SUMIFS(raw_annual_energy!$G:$G,Lists!$S:$S,\"Solar\",raw_annual_energy!$D:$D,K$251,raw_annual_energy!$A:$A,mainzone)/1000","v":-42.417911371482013},{"$f":"-SUMIFS(raw_annual_energy!$G:$G,Lists!$S:$S,\"Solar\",raw_annual_energy!$D:$D,L$251,raw_annual_energy!$A:$A,mainzone)/1000","v":-146.48103368698131},{"$f":"-SUMIFS(raw_annual_energy!$G:$G,Lists!$S:$S,\"Solar\",raw_annual_energy!$D:$D,M$251,raw_annual_energy!$A:$A,mainzone)/1000","v":-250.35067634112849},{"$f":"-SUMIFS(raw_annual_energy!$G:$G,Lists!$S:$S,\"Solar\",raw_annual_energy!$D:$D,N$251,raw_annual_energy!$A:$A,mainzone)/1000","v":-328.51537595817371},{"$f":"-SUMIFS(raw_annual_energy!$G:$G,Lists!$S:$S,\"Solar\",raw_annual_energy!$D:$D,O$251,raw_annual_energy!$A:$A,mainzone)/1000","v":0},{"$f":"-SUMIFS(raw_annual_energy!$G:$G,Lists!$S:$S,\"Solar\",raw_annual_energy!$D:$D,P$251,raw_annual_energy!$A:$A,mainzone)/1000","v":-277.43235788805777},{"$f":"-SUMIFS(raw_annual_energy!$G:$G,Lists!$S:$S,\"Solar\",raw_annual_energy!$D:$D,Q$251,raw_annual_energy!$A:$A,mainzone)/1000","v":0},{"$f":"-SUMIFS(raw_annual_energy!$G:$G,Lists!$S:$S,\"Solar\",raw_annual_energy!$D:$D,R$251,raw_annual_energy!$A:$A,mainzone)/1000","v":0},{"$f":"-SUMIFS(raw_annual_energy!$G:$G,Lists!$S:$S,\"Solar\",raw_annual_energy!$D:$D,S$251,raw_annual_energy!$A:$A,mainzone)/1000","v":0},{"$f":"-SUMIFS(raw_annual_energy!$G:$G,Lists!$S:$S,\"Solar\",raw_annual_energy!$D:$D,T$251,raw_annual_energy!$A:$A,mainzone)/1000","v":-2856.7605841737932},{"$f":"-SUMIFS(raw_annual_energy!$G:$G,Lists!$S:$S,\"Solar\",raw_annual_energy!$D:$D,U$251,raw_annual_energy!$A:$A,mainzone)/1000","v":0},{"$f":"-SUMIFS(raw_annual_energy!$G:$G,Lists!$S:$S,\"Solar\",raw_annual_energy!$D:$D,V$251,raw_annual_energy!$A:$A,mainzone)/1000","v":0},{"$f":"-SUMIFS(raw_annual_energy!$G:$G,Lists!$S:$S,\"Solar\",raw_annual_energy!$D:$D,W$251,raw_annual_energy!$A:$A,mainzone)/1000","v":0},{"$f":"-SUMIFS(raw_annual_energy!$G:$G,Lists!$S:$S,\"Solar\",raw_annual_energy!$D:$D,X$251,raw_annual_energy!$A:$A,mainzone)/1000","v":0},{"$f":"-SUMIFS(raw_annual_energy!$G:$G,Lists!$S:$S,\"Solar\",raw_annual_energy!$D:$D,Y$251,raw_annual_energy!$A:$A,mainzone)/1000","v":0},{"$f":"-SUMIFS(raw_annual_energy!$G:$G,Lists!$S:$S,\"Solar\",raw_annual_energy!$D:$D,Z$251,raw_annual_energy!$A:$A,mainzone)/1000","v":0},{"$f":"-SUMIFS(raw_annual_energy!$G:$G,Lists!$S:$S,\"Solar\",raw_annual_energy!$D:$D,AA$251,raw_annual_energy!$A:$A,mainzone)/1000","v":0},{"$f":"-SUMIFS(raw_annual_energy!$G:$G,Lists!$S:$S,\"Solar\",raw_annual_energy!$D:$D,AB$251,raw_annual_energy!$A:$A,mainzone)/1000","v":0},{"$f":"-SUMIFS(raw_annual_energy!$G:$G,Lists!$S:$S,\"Solar\",raw_annual_energy!$D:$D,AC$251,raw_annual_energy!$A:$A,mainzone)/1000","v":0},{"$f":"-SUMIFS(raw_annual_energy!$G:$G,Lists!$S:$S,\"Solar\",raw_annual_energy!$D:$D,AD$251,raw_annual_energy!$A:$A,mainzone)/1000","v":0},{"$f":"-SUMIFS(raw_annual_energy!$G:$G,Lists!$S:$S,\"Solar\",raw_annual_energy!$D:$D,AE$251,raw_annual_energy!$A:$A,mainzone)/1000","v":0},{"$f":"-SUMIFS(raw_annual_energy!$G:$G,Lists!$S:$S,\"Solar\",raw_annual_energy!$D:$D,AF$251,raw_annual_energy!$A:$A,mainzone)/1000","v":0},{"$f":"-SUMIFS(raw_annual_energy!$G:$G,Lists!$S:$S,\"Solar\",raw_annual_energy!$D:$D,AG$251,raw_annual_energy!$A:$A,mainzone)/1000","v":0},{"$f":"-SUMIFS(raw_annual_energy!$G:$G,Lists!$S:$S,\"Solar\",raw_annual_energy!$D:$D,AH$251,raw_annual_energy!$A:$A,mainzone)/1000","v":0},{"$f":"-SUMIFS(raw_annual_energy!$G:$G,Lists!$S:$S,\"Solar\",raw_annual_energy!$D:$D,AI$251,raw_annual_energy!$A:$A,mainzone)/1000","v":-49892.490677128073},{"$f":"-SUMIFS(raw_annual_energy!$G:$G,Lists!$S:$S,\"Solar\",raw_annual_energy!$D:$D,AJ$251,raw_annual_energy!$A:$A,mainzone)/1000","v":0},{"$f":"-SUMIFS(raw_annual_energy!$G:$G,Lists!$S:$S,\"Solar\",raw_annual_energy!$D:$D,AK$251,raw_annual_energy!$A:$A,mainzone)/1000","v":0},{"$f":"-SUMIFS(raw_annual_energy!$G:$G,Lists!$S:$S,\"Solar\",raw_annual_energy!$D:$D,AL$251,raw_annual_energy!$A:$A,mainzone)/1000","v":0},{"$f":"-SUMIFS(raw_annual_energy!$G:$G,Lists!$S:$S,\"Solar\",raw_annual_energy!$D:$D,AM$251,raw_annual_energy!$A:$A,mainzone)/1000","v":0},{"$f":"-SUMIFS(raw_annual_energy!$G:$G,Lists!$S:$S,\"Solar\",raw_annual_energy!$D:$D,AN$251,raw_annual_energy!$A:$A,mainzone)/1000","v":0}]
[null,null,"Solar - Utility Scale Sub-Hourly Curtailment","GWh",{"$f":"IFERROR(E$248*SUM(-E253,E255)/SUM(-E$253,E$255,-E$257,E$259,-E$261,E$263),0)","v":0},{"$f":"IFERROR(F$248*SUM(-F253,F255)/SUM(-F$253,F$255,-F$257,F$259,-F$261,F$263),0)","v":0},0,0,0,{"$f":"IFERROR(J$248*SUM(-J253,J255)/SUM(-J$253,J$255,-J$257,J$259,-J$261,J$263),0)","v":-98.27166745079424},-69.22533474094935,-133.12367411401436,-226.9799583270046,-211.32584708585244,0,-126.57726613530257,0,0,0,-560.13067848495461,0,0,0,0,0,0,0,0,0,0,0,0,0,0,-3210.0911200268156,0,0,0,0,0]
[null,null,"Solar - Utility Scale Generation (post-curtailment)","GWh",{"$f":"E182","v":0},0,0,0,0,41023.821707926218,47804.721099684095,53563.118834163251,58851.275835798042,66260.203126156091,0,80544.7976358999,0,0,0,105070.02607503929,0,0,0,0,0,0,0,0,0,0,0,0,0,0,295649.34629572334,0,0,0,0,0]
[null,null,"Wind Generation Potential (pre-curtailment)","GWh",{"$f":"E259-E257-E258","v":0},0,0,0,0,18397.632588619483,18716.665861996415,26399.738466508203,27221.189188940916,27496.399337141716,0,27452.339275193372,0,0,0,36715.799802127294,0,0,0,0,0,0,0,0,0,0,0,0,0,0,44967.919903638096,0,0,0,0,0]
[null,null,"Wind Hourly Curtailment","GWh",{"$f":"-SUMIFS(raw_annual_energy!$G:$G,Lists!$S:$S,\"Wind\",raw_annual_energy!$D:$D,E$251,raw_annual_energy!$A:$A,mainzone)/1000","v":0},{"$f":"-SUMIFS(raw_annual_energy!$G:$G,Lists!$S:$S,\"Wind\",raw_annual_energy!$D:$D,F$251,raw_annual_energy!$A:$A,mainzone)/1000","v":0},{"$f":"-SUMIFS(raw_annual_energy!$G:$G,Lists!$S:$S,\"Wind\",raw_annual_energy!$D:$D,G$251,raw_annual_energy!$A:$A,mainzone)/1000","v":0},{"$f":"-SUMIFS(raw_annual_energy!$G:$G,Lists!$S:$S,\"Wind\",raw_annual_energy!$D:$D,H$251,raw_annual_energy!$A:$A,mainzone)/1000","v":0},{"$f":"-SUMIFS(raw_annual_energy!$G:$G,Lists!$S:$S,\"Wind\",raw_annual_energy!$D:$D,I$251,raw_annual_energy!$A:$A,mainzone)/1000","v":0},{"$f":"-SUMIFS(raw_annual_energy!$G:$G,Lists!$S:$S,\"Wind\",raw_annual_energy!$D:$D,J$251,raw_annual_energy!$A:$A,mainzone)/1000","v":-58.2646194969494},{"$f":"-SUMIFS(raw_annual_energy!$G:$G,Lists!$S:$S,\"Wind\",raw_annual_energy!$D:$D,K$251,raw_annual_energy!$A:$A,mainzone)/1000","v":-65.56041291094877},{"$f":"-SUMIFS(raw_annual_energy!$G:$G,Lists!$S:$S,\"Wind\",raw_annual_energy!$D:$D,L$251,raw_annual_energy!$A:$A,mainzone)/1000","v":-100.37078527599866},{"$f":"-SUMIFS(raw_annual_energy!$G:$G,Lists!$S:$S,\"Wind\",raw_annual_energy!$D:$D,M$251,raw_annual_energy!$A:$A,mainzone)/1000","v":-129.90977771980627},{"$f":"-SUMIFS(raw_annual_energy!$G:$G,Lists!$S:$S,\"Wind\",raw_annual_energy!$D:$D,N$251,raw_annual_energy!$A:$A,mainzone)/1000","v":-143.74756546697714},{"$f":"-SUMIFS(raw_annual_energy!$G:$G,Lists!$S:$S,\"Wind\",raw_annual_energy!$D:$D,O$251,raw_annual_energy!$A:$A,mainzone)/1000","v":0},{"$f":"-SUMIFS(raw_annual_energy!$G:$G,Lists!$S:$S,\"Wind\",raw_annual_energy!$D:$D,P$251,raw_annual_energy!$A:$A,mainzone)/1000","v":-75.047915733455824},{"$f":"-SUMIFS(raw_annual_energy!$G:$G,Lists!$S:$S,\"Wind\",raw_annual_energy!$D:$D,Q$251,raw_annual_energy!$A:$A,mainzone)/1000","v":0},{"$f":"-SUMIFS(raw_annual_energy!$G:$G,Lists!$S:$S,\"Wind\",raw_annual_energy!$D:$D,R$251,raw_annual_energy!$A:$A,mainzone)/1000","v":0},{"$f":"-SUMIFS(raw_annual_energy!$G:$G,Lists!$S:$S,\"Wind\",raw_annual_energy!$D:$D,S$251,raw_annual_energy!$A:$A,mainzone)/1000","v":0},{"$f":"-SUMIFS(raw_annual_energy!$G:$G,Lists!$S:$S,\"Wind\",raw_annual_energy!$D:$D,T$251,raw_annual_energy!$A:$A,mainzone)/1000","v":-592.47950905245159},{"$f":"-SUMIFS(raw_annual_energy!$G:$G,Lists!$S:$S,\"Wind\",raw_annual_energy!$D:$D,U$251,raw_annual_energy!$A:$A,mainzone)/1000","v":0},{"$f":"-SUMIFS(raw_annual_energy!$G:$G,Lists!$S:$S,\"Wind\",raw_annual_energy!$D:$D,V$251,raw_annual_energy!$A:$A,mainzone)/1000","v":0},{"$f":"-SUMIFS(raw_annual_energy!$G:$G,Lists!$S:$S,\"Wind\",raw_annual_energy!$D:$D,W$251,raw_annual_energy!$A:$A,mainzone)/1000","v":0},{"$f":"-SUMIFS(raw_annual_energy!$G:$G,Lists!$S:$S,\"Wind\",raw_annual_energy!$D:$D,X$251,raw_annual_energy!$A:$A,mainzone)/1000","v":0},{"$f":"-SUMIFS(raw_annual_energy!$G:$G,Lists!$S:$S,\"Wind\",raw_annual_energy!$D:$D,Y$251,raw_annual_energy!$A:$A,mainzone)/1000","v":0},{"$f":"-SUMIFS(raw_annual_energy!$G:$G,Lists!$S:$S,\"Wind\",raw_annual_energy!$D:$D,Z$251,raw_annual_energy!$A:$A,mainzone)/1000","v":0},{"$f":"-SUMIFS(raw_annual_energy!$G:$G,Lists!$S:$S,\"Wind\",raw_annual_energy!$D:$D,AA$251,raw_annual_energy!$A:$A,mainzone)/1000","v":0},{"$f":"-SUMIFS(raw_annual_energy!$G:$G,Lists!$S:$S,\"Wind\",raw_annual_energy!$D:$D,AB$251,raw_annual_energy!$A:$A,mainzone)/1000","v":0},{"$f":"-SUMIFS(raw_annual_energy!$G:$G,Lists!$S:$S,\"Wind\",raw_annual_energy!$D:$D,AC$251,raw_annual_energy!$A:$A,mainzone)/1000","v":0},{"$f":"-SUMIFS(raw_annual_energy!$G:$G,Lists!$S:$S,\"Wind\",raw_annual_energy!$D:$D,AD$251,raw_annual_energy!$A:$A,mainzone)/1000","v":0},{"$f":"-SUMIFS(raw_annual_energy!$G:$G,Lists!$S:$S,\"Wind\",raw_annual_energy!$D:$D,AE$251,raw_annual_energy!$A:$A,mainzone)/1000","v":0},{"$f":"-SUMIFS(raw_annual_energy!$G:$G,Lists!$S:$S,\"Wind\",raw_annual_energy!$D:$D,AF$251,raw_annual_energy!$A:$A,mainzone)/1000","v":0},{"$f":"-SUMIFS(raw_annual_energy!$G:$G,Lists!$S:$S,\"Wind\",raw_annual_energy!$D:$D,AG$251,raw_annual_energy!$A:$A,mainzone)/1000","v":0},{"$f":"-SUMIFS(raw_annual_energy!$G:$G,Lists!$S:$S,\"Wind\",raw_annual_energy!$D:$D,AH$251,raw_annual_energy!$A:$A,mainzone)/1000","v":0},{"$f":"-SUMIFS(raw_annual_energy!$G:$G,Lists!$S:$S,\"Wind\",raw_annual_energy!$D:$D,AI$251,raw_annual_energy!$A:$A,mainzone)/1000","v":-1251.6768413104692},{"$f":"-SUMIFS(raw_annual_energy!$G:$G,Lists!$S:$S,\"Wind\",raw_annual_energy!$D:$D,AJ$251,raw_annual_energy!$A:$A,mainzone)/1000","v":0},{"$f":"-SUMIFS(raw_annual_energy!$G:$G,Lists!$S:$S,\"Wind\",raw_annual_energy!$D:$D,AK$251,raw_annual_energy!$A:$A,mainzone)/1000","v":0},{"$f":"-SUMIFS(raw_annual_energy!$G:$G,Lists!$S:$S,\"Wind\",raw_annual_energy!$D:$D,AL$251,raw_annual_energy!$A:$A,mainzone)/1000","v":0},{"$f":"-SUMIFS(raw_annual_energy!$G:$G,Lists!$S:$S,\"Wind\",raw_annual_energy!$D:$D,AM$251,raw_annual_energy!$A:$A,mainzone)/1000","v":0},{"$f":"-SUMIFS(raw_annual_energy!$G:$G,Lists!$S:$S,\"Wind\",raw_annual_energy!$D:$D,AN$251,raw_annual_energy!$A:$A,mainzone)/1000","v":0}]
[null,null,"Wind Sub-Hourly Curtailment","GWh",{"$f":"IFERROR(E$248*SUM(-E257,E259)/SUM(-E$253,E$255,-E$257,E$259,-E$261,E$263),0)","v":0},0,0,0,0,-43.928379228985762,-27.040187151529242,-65.272147267430668,-104.14308973855744,-86.986467424432533,0,-42.926414509298411,0,0,0,-189.56798072035343,0,0,0,0,0,0,0,0,0,0,0,0,0,0,-413.9077342399745,0,0,0,0,0]
[null,null,"Wind Generation (post-curtailment)","GWh",{"$f":"E186+E187","v":0},{"$f":"F186+F187","v":0},0,0,0,18295.439589893547,18624.065261933938,26234.095533964773,26987.136321482551,27265.665304250309,0,27334.364944950619,0,0,0,35933.752312354489,0,0,0,0,0,0,0,0,0,0,0,0,0,0,43302.335328087654,0,0,0,0,0]
[null,null,"Offshore Wind Generation Potential (pre-curtailment)","GWh",{"$f":"E263-E261-E262","v":0},0,0,0,0,0,0,0,0,0,0,0,0,0,0,0,0,0,0,0,0,0,0,0,0,0,0,0,0,0,0,0,0,0,0,0]
[null,null,"Offshore Wind Hourly Curtailment","GWh",{"$f":"-SUMIFS(raw_annual_energy!$G:$G,Lists!$S:$S,\"Offshore_Wind\",raw_annual_energy!$D:$D,E$251,raw_annual_energy!$A:$A,mainzone)/1000","v":0},{"$f":"-SUMIFS(raw_annual_energy!$G:$G,Lists!$S:$S,\"Offshore_Wind\",raw_annual_energy!$D:$D,F$251,raw_annual_energy!$A:$A,mainzone)/1000","v":0},{"$f":"-SUMIFS(raw_annual_energy!$G:$G,Lists!$S:$S,\"Offshore_Wind\",raw_annual_energy!$D:$D,G$251,raw_annual_energy!$A:$A,mainzone)/1000","v":0},{"$f":"-SUMIFS(raw_annual_energy!$G:$G,Lists!$S:$S,\"Offshore_Wind\",raw_annual_energy!$D:$D,H$251,raw_annual_energy!$A:$A,mainzone)/1000","v":0},{"$f":"-SUMIFS(raw_annual_energy!$G:$G,Lists!$S:$S,\"Offshore_Wind\",raw_annual_energy!$D:$D,I$251,raw_annual_energy!$A:$A,mainzone)/1000","v":0},{"$f":"-SUMIFS(raw_annual_energy!$G:$G,Lists!$S:$S,\"Offshore_Wind\",raw_annual_energy!$D:$D,J$251,raw_annual_energy!$A:$A,mainzone)/1000","v":0},{"$f":"-SUMIFS(raw_annual_energy!$G:$G,Lists!$S:$S,\"Offshore_Wind\",raw_annual_energy!$D:$D,K$251,raw_annual_energy!$A:$A,mainzone)/1000","v":0},{"$f":"-SUMIFS(raw_annual_energy!$G:$G,Lists!$S:$S,\"Offshore_Wind\",raw_annual_energy!$D:$D,L$251,raw_annual_energy!$A:$A,mainzone)/1000","v":0},{"$f":"-SUMIFS(raw_annual_energy!$G:$G,Lists!$S:$S,\"Offshore_Wind\",raw_annual_energy!$D:$D,M$251,raw_annual_energy!$A:$A,mainzone)/1000","v":0},{"$f":"-SUMIFS(raw_annual_energy!$G:$G,Lists!$S:$S,\"Offshore_Wind\",raw_annual_energy!$D:$D,N$251,raw_annual_energy!$A:$A,mainzone)/1000","v":0},{"$f":"-SUMIFS(raw_annual_energy!$G:$G,Lists!$S:$S,\"Offshore_Wind\",raw_annual_energy!$D:$D,O$251,raw_annual_energy!$A:$A,mainzone)/1000","v":0},{"$f":"-SUMIFS(raw_annual_energy!$G:$G,Lists!$S:$S,\"Offshore_Wind\",raw_annual_energy!$D:$D,P$251,raw_annual_energy!$A:$A,mainzone)/1000","v":0},{"$f":"-SUMIFS(raw_annual_energy!$G:$G,Lists!$S:$S,\"Offshore_Wind\",raw_annual_energy!$D:$D,Q$251,raw_annual_energy!$A:$A,mainzone)/1000","v":0},{"$f":"-SUMIFS(raw_annual_energy!$G:$G,Lists!$S:$S,\"Offshore_Wind\",raw_annual_energy!$D:$D,R$251,raw_annual_energy!$A:$A,mainzone)/1000","v":0},{"$f":"-SUMIFS(raw_annual_energy!$G:$G,Lists!$S:$S,\"Offshore_Wind\",raw_annual_energy!$D:$D,S$251,raw_annual_energy!$A:$A,mainzone)/1000","v":0},{"$f":"-SUMIFS(raw_annual_energy!$G:$G,Lists!$S:$S,\"Offshore_Wind\",raw_annual_energy!$D:$D,T$251,raw_annual_energy!$A:$A,mainzone)/1000","v":0},{"$f":"-SUMIFS(raw_annual_energy!$G:$G,Lists!$S:$S,\"Offshore_Wind\",raw_annual_energy!$D:$D,U$251,raw_annual_energy!$A:$A,mainzone)/1000","v":0},{"$f":"-SUMIFS(raw_annual_energy!$G:$G,Lists!$S:$S,\"Offshore_Wind\",raw_annual_energy!$D:$D,V$251,raw_annual_energy!$A:$A,mainzone)/1000","v":0},{"$f":"-SUMIFS(raw_annual_energy!$G:$G,Lists!$S:$S,\"Offshore_Wind\",raw_annual_energy!$D:$D,W$251,raw_annual_energy!$A:$A,mainzone)/1000","v":0},{"$f":"-SUMIFS(raw_annual_energy!$G:$G,Lists!$S:$S,\"Offshore_Wind\",raw_annual_energy!$D:$D,X$251,raw_annual_energy!$A:$A,mainzone)/1000","v":0},{"$f":"-SUMIFS(raw_annual_energy!$G:$G,Lists!$S:$S,\"Offshore_Wind\",raw_annual_energy!$D:$D,Y$251,raw_annual_energy!$A:$A,mainzone)/1000","v":0},{"$f":"-SUMIFS(raw_annual_energy!$G:$G,Lists!$S:$S,\"Offshore_Wind\",raw_annual_energy!$D:$D,Z$251,raw_annual_energy!$A:$A,mainzone)/1000","v":0},{"$f":"-SUMIFS(raw_annual_energy!$G:$G,Lists!$S:$S,\"Offshore_Wind\",raw_annual_energy!$D:$D,AA$251,raw_annual_energy!$A:$A,mainzone)/1000","v":0},{"$f":"-SUMIFS(raw_annual_energy!$G:$G,Lists!$S:$S,\"Offshore_Wind\",raw_annual_energy!$D:$D,AB$251,raw_annual_energy!$A:$A,mainzone)/1000","v":0},{"$f":"-SUMIFS(raw_annual_energy!$G:$G,Lists!$S:$S,\"Offshore_Wind\",raw_annual_energy!$D:$D,AC$251,raw_annual_energy!$A:$A,mainzone)/1000","v":0},{"$f":"-SUMIFS(raw_annual_energy!$G:$G,Lists!$S:$S,\"Offshore_Wind\",raw_annual_energy!$D:$D,AD$251,raw_annual_energy!$A:$A,mainzone)/1000","v":0},{"$f":"-SUMIFS(raw_annual_energy!$G:$G,Lists!$S:$S,\"Offshore_Wind\",raw_annual_energy!$D:$D,AE$251,raw_annual_energy!$A:$A,mainzone)/1000","v":0},{"$f":"-SUMIFS(raw_annual_energy!$G:$G,Lists!$S:$S,\"Offshore_Wind\",raw_annual_energy!$D:$D,AF$251,raw_annual_energy!$A:$A,mainzone)/1000","v":0},{"$f":"-SUMIFS(raw_annual_energy!$G:$G,Lists!$S:$S,\"Offshore_Wind\",raw_annual_energy!$D:$D,AG$251,raw_annual_energy!$A:$A,mainzone)/1000","v":0},{"$f":"-SUMIFS(raw_annual_energy!$G:$G,Lists!$S:$S,\"Offshore_Wind\",raw_annual_energy!$D:$D,AH$251,raw_annual_energy!$A:$A,mainzone)/1000","v":0},{"$f":"-SUMIFS(raw_annual_energy!$G:$G,Lists!$S:$S,\"Offshore_Wind\",raw_annual_energy!$D:$D,AI$251,raw_annual_energy!$A:$A,mainzone)/1000","v":0},{"$f":"-SUMIFS(raw_annual_energy!$G:$G,Lists!$S:$S,\"Offshore_Wind\",raw_annual_energy!$D:$D,AJ$251,raw_annual_energy!$A:$A,mainzone)/1000","v":0},{"$f":"-SUMIFS(raw_annual_energy!$G:$G,Lists!$S:$S,\"Offshore_Wind\",raw_annual_energy!$D:$D,AK$251,raw_annual_energy!$A:$A,mainzone)/1000","v":0},{"$f":"-SUMIFS(raw_annual_energy!$G:$G,Lists!$S:$S,\"Offshore_Wind\",raw_annual_energy!$D:$D,AL$251,raw_annual_energy!$A:$A,mainzone)/1000","v":0},{"$f":"-SUMIFS(raw_annual_energy!$G:$G,Lists!$S:$S,\"Offshore_Wind\",raw_annual_energy!$D:$D,AM$251,raw_annual_energy!$A:$A,mainzone)/1000","v":0},{"$f":"-SUMIFS(raw_annual_energy!$G:$G,Lists!$S:$S,\"Offshore_Wind\",raw_annual_energy!$D:$D,AN$251,raw_annual_energy!$A:$A,mainzone)/1000","v":0}]
[null,null,"Offshore Wind Sub-Hourly Curtailment","GWh",{"$f":"IFERROR(E$248*SUM(-E261,E263)/SUM(-E$253,E$255,-E$257,E$259,-E$261,E$263),0)","v":0},0,0,0,0,0,0,0,0,0,0,0,0,0,0,0,0,0,0,0,0,0,0,0,0,0,0,0,0,0,0,0,0,0,0,0]
[null,null,"Offshore Wind Generation (post-curtailment)","GWh",{"$f":"E188","v":0},0,0,0,0,0,0,0,0,0,0,0,0,0,0,0,0,0,0,0,0,0,0,0,0,0,0,0,0,0,0,0,0,0,0,0]
[null,null,"Hourly Curtailment Total","GWh",{"$f":"SUM(E253,E257,E261)","v":0},{"$f":"SUM(F253,F257,F261)","v":0},0,0,0,{"$f":"SUM(J253,J257,J261)","v":-93.30163143315724},-107.97832428243078,-246.85181896297996,-380.26045406093476,-472.26294142515087,0,-352.48027362151356,0,0,0,-3449.2400932262449,0,0,0,0,0,0,0,0,0,0,0,0,0,0,-51144.167518438539,0,0,0,0,0]
[null,null,"Total Curtailment (Hourly + Subhourly)","GWh",{"$f":"E264+E248","v":0},{"$f":"F264+F248","v":0},0,0,0,{"$f":"J264+J248","v":-235.50167811293724},-204.24384617490938,-445.24764034442501,-711.38350212649675,-770.57525593543585,0,-521.98395426611455,0,0,0,-4198.9387524315525,0,0,0,0,0,0,0,0,0,0,0,0,0,0,-54768.166372705331,0,0,0,0,0]
[null,null,"Total Post-Curtailment Generation","GWh",{"$f":"SUM(E255,E259,E263)","v":0},{"$f":"SUM(F255,F259,F263)","v":0},0,0,0,{"$f":"SUM(J255,J259,J263)","v":59319.261297819765},66428.786361618026,79797.214368128029,85838.412157280589,93525.868430406408,0,107879.16258085052,0,0,0,141003.77838739377,0,0,0,0,0,0,0,0,0,0,0,0,0,0,338951.68162381102,0,0,0,0,0]
[]
[null,null,"Storage Hourly and Subhourly Energy Balance"]
[null,null,"Technology","Unit",2015,{"$f":"E269+1","v":2016},2017,2018,2019,2020,2021,2022,2023,2024,2025,2026,2027,2028,2029,2030,2031,2032,2033,2034,2035,2036,2037,2038,2039,2040,2041,2042,2043,2044,2045,2046,2047,2048,2049,2050]
[null,null,"Pumped_Hydro","net hourly GWh",{"$f":"SUMPRODUCT(($C$222:$C$234=$C270)*E$222:E$234)","v":0},0,0,0,0,-51.395795756773204,-223.65038699437801,-247.493102788252,-342.93357745460901,-431.66968196755698,{"$f":"SUMPRODUCT(($C$222:$C$234=$C270)*O$222:O$234)","v":0},-913.96695221878792,0,0,0,-2281.0918948137578,0,0,0,0,{"$f":"SUMPRODUCT(($C$222:$C$234=$C270)*Y$222:Y$234)","v":0},0,0,0,0,0,0,0,0,0,{"$f":"SUMPRODUCT(($C$222:$C$234=$C270)*AI$222:AI$234)","v":-2250.9377877271199},0,0,0,0,0]
[null,null,"Li_Battery","net hourly GWh",0,0,0,0,0,273.02243028629101,53.711361160608107,-145.458208220155,-359.21620986369197,-709.28630500295901,0,-1783.5617084715129,0,0,0,-4082.3526784437304,0,0,0,0,0,0,0,0,0,0,0,0,0,0,-29561.855271350018,0,0,0,0,0]
[null,null,"BTM_Li_Battery","net hourly GWh",0,0,0,0,0,-12.8165451163668,-11.338248010523301,-11.960827305706299,-12.3916111861058,-12.4687982536496,0,-13.8945540091688,0,0,0,-17.044249658047399,0,0,0,0,0,0,0,0,0,0,0,0,0,0,-36.714874808186401,0,0,0,0,0]
[null,null,"Flow_Battery","net hourly GWh",0,0,0,0,0,0,0,0,0,0,0,0,0,0,0,0,0,0,0,0,0,0,0,0,0,0,0,0,0,0,0,0,0,0,0,0]
[null,null,"Pumped_Hydro","discharging hourly GWh",{"$f":"SUMIFS(raw_operational_costs!$J:$J,Lists!$S:$S,$C274,raw_operational_costs!$D:$D,E$269,raw_operational_costs!$B:$B,mainzone)/1000","v":0},{"$f":"SUMIFS(raw_operational_costs!$J:$J,Lists!$S:$S,$C274,raw_operational_costs!$D:$D,F$269,raw_operational_costs!$B:$B,mainzone)/1000","v":0},{"$f":"SUMIFS(raw_operational_costs!$J:$J,Lists!$S:$S,$C274,raw_operational_costs!$D:$D,G$269,raw_operational_costs!$B:$B,mainzone)/1000","v":0},{"$f":"SUMIFS(raw_operational_costs!$J:$J,Lists!$S:$S,$C274,raw_operational_costs!$D:$D,H$269,raw_operational_costs!$B:$B,mainzone)/1000","v":0},{"$f":"SUMIFS(raw_operational_costs!$J:$J,Lists!$S:$S,$C274,raw_operational_costs!$D:$D,I$269,raw_operational_costs!$B:$B,mainzone)/1000","v":0},{"$f":"SUMIFS(raw_operational_costs!$J:$J,Lists!$S:$S,$C274,raw_operational_costs!$D:$D,J$269,raw_operational_costs!$B:$B,mainzone)/1000","v":654.085942030105},{"$f":"SUMIFS(raw_operational_costs!$J:$J,Lists!$S:$S,$C274,raw_operational_costs!$D:$D,K$269,raw_operational_costs!$B:$B,mainzone)/1000","v":762.46047288656302},{"$f":"SUMIFS(raw_operational_costs!$J:$J,Lists!$S:$S,$C274,raw_operational_costs!$D:$D,L$269,raw_operational_costs!$B:$B,mainzone)/1000","v":965.50841334459608},{"$f":"SUMIFS(raw_operational_costs!$J:$J,Lists!$S:$S,$C274,raw_operational_costs!$D:$D,M$269,raw_operational_costs!$B:$B,mainzone)/1000","v":1168.08518512972},{"$f":"SUMIFS(raw_operational_costs!$J:$J,Lists!$S:$S,$C274,raw_operational_costs!$D:$D,N$269,raw_operational_costs!$B:$B,mainzone)/1000","v":1253.1946220540599},{"$f":"SUMIFS(raw_operational_costs!$J:$J,Lists!$S:$S,$C274,raw_operational_costs!$D:$D,O$269,raw_operational_costs!$B:$B,mainzone)/1000","v":0},{"$f":"SUMIFS(raw_operational_costs!$J:$J,Lists!$S:$S,$C274,raw_operational_costs!$D:$D,P$269,raw_operational_costs!$B:$B,mainzone)/1000","v":2986.7942789343401},{"$f":"SUMIFS(raw_operational_costs!$J:$J,Lists!$S:$S,$C274,raw_operational_costs!$D:$D,Q$269,raw_operational_costs!$B:$B,mainzone)/1000","v":0},{"$f":"SUMIFS(raw_operational_costs!$J:$J,Lists!$S:$S,$C274,raw_operational_costs!$D:$D,R$269,raw_operational_costs!$B:$B,mainzone)/1000","v":0},{"$f":"SUMIFS(raw_operational_costs!$J:$J,Lists!$S:$S,$C274,raw_operational_costs!$D:$D,S$269,raw_operational_costs!$B:$B,mainzone)/1000","v":0},{"$f":"SUMIFS(raw_operational_costs!$J:$J,Lists!$S:$S,$C274,raw_operational_costs!$D:$D,T$269,raw_operational_costs!$B:$B,mainzone)/1000","v":6942.6998679058006},{"$f":"SUMIFS(raw_operational_costs!$J:$J,Lists!$S:$S,$C274,raw_operational_costs!$D:$D,U$269,raw_operational_costs!$B:$B,mainzone)/1000","v":0},{"$f":"SUMIFS(raw_operational_costs!$J:$J,Lists!$S:$S,$C274,raw_operational_costs!$D:$D,V$269,raw_operational_costs!$B:$B,mainzone)/1000","v":0},{"$f":"SUMIFS(raw_operational_costs!$J:$J,Lists!$S:$S,$C274,raw_operational_costs!$D:$D,W$269,raw_operational_costs!$B:$B,mainzone)/1000","v":0},{"$f":"SUMIFS(raw_operational_costs!$J:$J,Lists!$S:$S,$C274,raw_operational_costs!$D:$D,X$269,raw_operational_costs!$B:$B,mainzone)/1000","v":0},{"$f":"SUMIFS(raw_operational_costs!$J:$J,Lists!$S:$S,$C274,raw_operational_costs!$D:$D,Y$269,raw_operational_costs!$B:$B,mainzone)/1000","v":0},{"$f":"SUMIFS(raw_operational_costs!$J:$J,Lists!$S:$S,$C274,raw_operational_costs!$D:$D,Z$269,raw_operational_costs!$B:$B,mainzone)/1000","v":0},{"$f":"SUMIFS(raw_operational_costs!$J:$J,Lists!$S:$S,$C274,raw_operational_costs!$D:$D,AA$269,raw_operational_costs!$B:$B,mainzone)/1000","v":0},{"$f":"SUMIFS(raw_operational_costs!$J:$J,Lists!$S:$S,$C274,raw_operational_costs!$D:$D,AB$269,raw_operational_costs!$B:$B,mainzone)/1000","v":0},{"$f":"SUMIFS(raw_operational_costs!$J:$J,Lists!$S:$S,$C274,raw_operational_costs!$D:$D,AC$269,raw_operational_costs!$B:$B,mainzone)/1000","v":0},{"$f":"SUMIFS(raw_operational_costs!$J:$J,Lists!$S:$S,$C274,raw_operational_costs!$D:$D,AD$269,raw_operational_costs!$B:$B,mainzone)/1000","v":0},{"$f":"SUMIFS(raw_operational_costs!$J:$J,Lists!$S:$S,$C274,raw_operational_costs!$D:$D,AE$269,raw_operational_costs!$B:$B,mainzone)/1000","v":0},{"$f":"SUMIFS(raw_operational_costs!$J:$J,Lists!$S:$S,$C274,raw_operational_costs!$D:$D,AF$269,raw_operational_costs!$B:$B,mainzone)/1000","v":0},{"$f":"SUMIFS(raw_operational_costs!$J:$J,Lists!$S:$S,$C274,raw_operational_costs!$D:$D,AG$269,raw_operational_costs!$B:$B,mainzone)/1000","v":0},{"$f":"SUMIFS(raw_operational_costs!$J:$J,Lists!$S:$S,$C274,raw_operational_costs!$D:$D,AH$269,raw_operational_costs!$B:$B,mainzone)/1000","v":0},{"$f":"SUMIFS(raw_operational_costs!$J:$J,Lists!$S:$S,$C274,raw_operational_costs!$D:$D,AI$269,raw_operational_costs!$B:$B,mainzone)/1000","v":7451.2295772838397},{"$f":"SUMIFS(raw_operational_costs!$J:$J,Lists!$S:$S,$C274,raw_operational_costs!$D:$D,AJ$269,raw_operational_costs!$B:$B,mainzone)/1000","v":0},{"$f":"SUMIFS(raw_operational_costs!$J:$J,Lists!$S:$S,$C274,raw_operational_costs!$D:$D,AK$269,raw_operational_costs!$B:$B,mainzone)/1000","v":0},{"$f":"SUMIFS(raw_operational_costs!$J:$J,Lists!$S:$S,$C274,raw_operational_costs!$D:$D,AL$269,raw_operational_costs!$B:$B,mainzone)/1000","v":0},{"$f":"SUMIFS(raw_operational_costs!$J:$J,Lists!$S:$S,$C274,raw_operational_costs!$D:$D,AM$269,raw_operational_costs!$B:$B,mainzone)/1000","v":0},{"$f":"SUMIFS(raw_operational_costs!$J:$J,Lists!$S:$S,$C274,raw_operational_costs!$D:$D,AN$269,raw_operational_costs!$B:$B,mainzone)/1000","v":0}]
[null,null,"Li_Battery","discharging hourly GWh",{"$f":"SUMIFS(raw_operational_costs!$J:$J,Lists!$S:$S,$C275,raw_operational_costs!$D:$D,E$269,raw_operational_costs!$B:$B,mainzone)/1000","v":0},{"$f":"SUMIFS(raw_operational_costs!$J:$J,Lists!$S:$S,$C275,raw_operational_costs!$D:$D,F$269,raw_operational_costs!$B:$B,mainzone)/1000","v":0},{"$f":"SUMIFS(raw_operational_costs!$J:$J,Lists!$S:$S,$C275,raw_operational_costs!$D:$D,G$269,raw_operational_costs!$B:$B,mainzone)/1000","v":0},{"$f":"SUMIFS(raw_operational_costs!$J:$J,Lists!$S:$S,$C275,raw_operational_costs!$D:$D,H$269,raw_operational_costs!$B:$B,mainzone)/1000","v":0},{"$f":"SUMIFS(raw_operational_costs!$J:$J,Lists!$S:$S,$C275,raw_operational_costs!$D:$D,I$269,raw_operational_costs!$B:$B,mainzone)/1000","v":0},{"$f":"SUMIFS(raw_operational_costs!$J:$J,Lists!$S:$S,$C275,raw_operational_costs!$D:$D,J$269,raw_operational_costs!$B:$B,mainzone)/1000","v":2293.36452648566},{"$f":"SUMIFS(raw_operational_costs!$J:$J,Lists!$S:$S,$C275,raw_operational_costs!$D:$D,K$269,raw_operational_costs!$B:$B,mainzone)/1000","v":5265.7442835517404},{"$f":"SUMIFS(raw_operational_costs!$J:$J,Lists!$S:$S,$C275,raw_operational_costs!$D:$D,L$269,raw_operational_costs!$B:$B,mainzone)/1000","v":5396.8437107824402},{"$f":"SUMIFS(raw_operational_costs!$J:$J,Lists!$S:$S,$C275,raw_operational_costs!$D:$D,M$269,raw_operational_costs!$B:$B,mainzone)/1000","v":6131.5340644232292},{"$f":"SUMIFS(raw_operational_costs!$J:$J,Lists!$S:$S,$C275,raw_operational_costs!$D:$D,N$269,raw_operational_costs!$B:$B,mainzone)/1000","v":8433.2531238147985},{"$f":"SUMIFS(raw_operational_costs!$J:$J,Lists!$S:$S,$C275,raw_operational_costs!$D:$D,O$269,raw_operational_costs!$B:$B,mainzone)/1000","v":0},{"$f":"SUMIFS(raw_operational_costs!$J:$J,Lists!$S:$S,$C275,raw_operational_costs!$D:$D,P$269,raw_operational_costs!$B:$B,mainzone)/1000","v":13555.275692260921},{"$f":"SUMIFS(raw_operational_costs!$J:$J,Lists!$S:$S,$C275,raw_operational_costs!$D:$D,Q$269,raw_operational_costs!$B:$B,mainzone)/1000","v":0},{"$f":"SUMIFS(raw_operational_costs!$J:$J,Lists!$S:$S,$C275,raw_operational_costs!$D:$D,R$269,raw_operational_costs!$B:$B,mainzone)/1000","v":0},{"$f":"SUMIFS(raw_operational_costs!$J:$J,Lists!$S:$S,$C275,raw_operational_costs!$D:$D,S$269,raw_operational_costs!$B:$B,mainzone)/1000","v":0},{"$f":"SUMIFS(raw_operational_costs!$J:$J,Lists!$S:$S,$C275,raw_operational_costs!$D:$D,T$269,raw_operational_costs!$B:$B,mainzone)/1000","v":17854.0676219911},{"$f":"SUMIFS(raw_operational_costs!$J:$J,Lists!$S:$S,$C275,raw_operational_costs!$D:$D,U$269,raw_operational_costs!$B:$B,mainzone)/1000","v":0},{"$f":"SUMIFS(raw_operational_costs!$J:$J,Lists!$S:$S,$C275,raw_operational_costs!$D:$D,V$269,raw_operational_costs!$B:$B,mainzone)/1000","v":0},{"$f":"SUMIFS(raw_operational_costs!$J:$J,Lists!$S:$S,$C275,raw_operational_costs!$D:$D,W$269,raw_operational_costs!$B:$B,mainzone)/1000","v":0},{"$f":"SUMIFS(raw_operational_costs!$J:$J,Lists!$S:$S,$C275,raw_operational_costs!$D:$D,X$269,raw_operational_costs!$B:$B,mainzone)/1000","v":0},{"$f":"SUMIFS(raw_operational_costs!$J:$J,Lists!$S:$S,$C275,raw_operational_costs!$D:$D,Y$269,raw_operational_costs!$B:$B,mainzone)/1000","v":0},{"$f":"SUMIFS(raw_operational_costs!$J:$J,Lists!$S:$S,$C275,raw_operational_costs!$D:$D,Z$269,raw_operational_costs!$B:$B,mainzone)/1000","v":0},{"$f":"SUMIFS(raw_operational_costs!$J:$J,Lists!$S:$S,$C275,raw_operational_costs!$D:$D,AA$269,raw_operational_costs!$B:$B,mainzone)/1000","v":0},{"$f":"SUMIFS(raw_operational_costs!$J:$J,Lists!$S:$S,$C275,raw_operational_costs!$D:$D,AB$269,raw_operational_costs!$B:$B,mainzone)/1000","v":0},{"$f":"SUMIFS(raw_operational_costs!$J:$J,Lists!$S:$S,$C275,raw_operational_costs!$D:$D,AC$269,raw_operational_costs!$B:$B,mainzone)/1000","v":0},{"$f":"SUMIFS(raw_operational_costs!$J:$J,Lists!$S:$S,$C275,raw_operational_costs!$D:$D,AD$269,raw_operational_costs!$B:$B,mainzone)/1000","v":0},{"$f":"SUMIFS(raw_operational_costs!$J:$J,Lists!$S:$S,$C275,raw_operational_costs!$D:$D,AE$269,raw_operational_costs!$B:$B,mainzone)/1000","v":0},{"$f":"SUMIFS(raw_operational_costs!$J:$J,Lists!$S:$S,$C275,raw_operational_costs!$D:$D,AF$269,raw_operational_costs!$B:$B,mainzone)/1000","v":0},{"$f":"SUMIFS(raw_operational_costs!$J:$J,Lists!$S:$S,$C275,raw_operational_costs!$D:$D,AG$269,raw_operational_costs!$B:$B,mainzone)/1000","v":0},{"$f":"SUMIFS(raw_operational_costs!$J:$J,Lists!$S:$S,$C275,raw_operational_costs!$D:$D,AH$269,raw_operational_costs!$B:$B,mainzone)/1000","v":0},{"$f":"SUMIFS(raw_operational_costs!$J:$J,Lists!$S:$S,$C275,raw_operational_costs!$D:$D,AI$269,raw_operational_costs!$B:$B,mainzone)/1000","v":136530.32589118328},{"$f":"SUMIFS(raw_operational_costs!$J:$J,Lists!$S:$S,$C275,raw_operational_costs!$D:$D,AJ$269,raw_operational_costs!$B:$B,mainzone)/1000","v":0},{"$f":"SUMIFS(raw_operational_costs!$J:$J,Lists!$S:$S,$C275,raw_operational_costs!$D:$D,AK$269,raw_operational_costs!$B:$B,mainzone)/1000","v":0},{"$f":"SUMIFS(raw_operational_costs!$J:$J,Lists!$S:$S,$C275,raw_operational_costs!$D:$D,AL$269,raw_operational_costs!$B:$B,mainzone)/1000","v":0},{"$f":"SUMIFS(raw_operational_costs!$J:$J,Lists!$S:$S,$C275,raw_operational_costs!$D:$D,AM$269,raw_operational_costs!$B:$B,mainzone)/1000","v":0},{"$f":"SUMIFS(raw_operational_costs!$J:$J,Lists!$S:$S,$C275,raw_operational_costs!$D:$D,AN$269,raw_operational_costs!$B:$B,mainzone)/1000","v":0}]
[null,null,"BTM_Li_Battery","discharging hourly GWh",{"$f":"SUMIFS(raw_operational_costs!$J:$J,Lists!$S:$S,$C276,raw_operational_costs!$D:$D,E$269,raw_operational_costs!$B:$B,mainzone)/1000","v":0},{"$f":"SUMIFS(raw_operational_costs!$J:$J,Lists!$S:$S,$C276,raw_operational_costs!$D:$D,F$269,raw_operational_costs!$B:$B,mainzone)/1000","v":0},{"$f":"SUMIFS(raw_operational_costs!$J:$J,Lists!$S:$S,$C276,raw_operational_costs!$D:$D,G$269,raw_operational_costs!$B:$B,mainzone)/1000","v":0},{"$f":"SUMIFS(raw_operational_costs!$J:$J,Lists!$S:$S,$C276,raw_operational_costs!$D:$D,H$269,raw_operational_costs!$B:$B,mainzone)/1000","v":0},{"$f":"SUMIFS(raw_operational_costs!$J:$J,Lists!$S:$S,$C276,raw_operational_costs!$D:$D,I$269,raw_operational_costs!$B:$B,mainzone)/1000","v":0},{"$f":"SUMIFS(raw_operational_costs!$J:$J,Lists!$S:$S,$C276,raw_operational_costs!$D:$D,J$269,raw_operational_costs!$B:$B,mainzone)/1000","v":72.6245413325816},{"$f":"SUMIFS(raw_operational_costs!$J:$J,Lists!$S:$S,$C276,raw_operational_costs!$D:$D,K$269,raw_operational_costs!$B:$B,mainzone)/1000","v":64.247696469337299},{"$f":"SUMIFS(raw_operational_costs!$J:$J,Lists!$S:$S,$C276,raw_operational_costs!$D:$D,L$269,raw_operational_costs!$B:$B,mainzone)/1000","v":67.775910761842198},{"$f":"SUMIFS(raw_operational_costs!$J:$J,Lists!$S:$S,$C276,raw_operational_costs!$D:$D,M$269,raw_operational_costs!$B:$B,mainzone)/1000","v":70.215053910324698},{"$f":"SUMIFS(raw_operational_costs!$J:$J,Lists!$S:$S,$C276,raw_operational_costs!$D:$D,N$269,raw_operational_costs!$B:$B,mainzone)/1000","v":70.653061514427591},{"$f":"SUMIFS(raw_operational_costs!$J:$J,Lists!$S:$S,$C276,raw_operational_costs!$D:$D,O$269,raw_operational_costs!$B:$B,mainzone)/1000","v":0},{"$f":"SUMIFS(raw_operational_costs!$J:$J,Lists!$S:$S,$C276,raw_operational_costs!$D:$D,P$269,raw_operational_costs!$B:$B,mainzone)/1000","v":78.729291390984997},{"$f":"SUMIFS(raw_operational_costs!$J:$J,Lists!$S:$S,$C276,raw_operational_costs!$D:$D,Q$269,raw_operational_costs!$B:$B,mainzone)/1000","v":0},{"$f":"SUMIFS(raw_operational_costs!$J:$J,Lists!$S:$S,$C276,raw_operational_costs!$D:$D,R$269,raw_operational_costs!$B:$B,mainzone)/1000","v":0},{"$f":"SUMIFS(raw_operational_costs!$J:$J,Lists!$S:$S,$C276,raw_operational_costs!$D:$D,S$269,raw_operational_costs!$B:$B,mainzone)/1000","v":0},{"$f":"SUMIFS(raw_operational_costs!$J:$J,Lists!$S:$S,$C276,raw_operational_costs!$D:$D,T$269,raw_operational_costs!$B:$B,mainzone)/1000","v":96.578269575175497},{"$f":"SUMIFS(raw_operational_costs!$J:$J,Lists!$S:$S,$C276,raw_operational_costs!$D:$D,U$269,raw_operational_costs!$B:$B,mainzone)/1000","v":0},{"$f":"SUMIFS(raw_operational_costs!$J:$J,Lists!$S:$S,$C276,raw_operational_costs!$D:$D,V$269,raw_operational_costs!$B:$B,mainzone)/1000","v":0},{"$f":"SUMIFS(raw_operational_costs!$J:$J,Lists!$S:$S,$C276,raw_operational_costs!$D:$D,W$269,raw_operational_costs!$B:$B,mainzone)/1000","v":0},{"$f":"SUMIFS(raw_operational_costs!$J:$J,Lists!$S:$S,$C276,raw_operational_costs!$D:$D,X$269,raw_operational_costs!$B:$B,mainzone)/1000","v":0},{"$f":"SUMIFS(raw_operational_costs!$J:$J,Lists!$S:$S,$C276,raw_operational_costs!$D:$D,Y$269,raw_operational_costs!$B:$B,mainzone)/1000","v":0},{"$f":"SUMIFS(raw_operational_costs!$J:$J,Lists!$S:$S,$C276,raw_operational_costs!$D:$D,Z$269,raw_operational_costs!$B:$B,mainzone)/1000","v":0},{"$f":"SUMIFS(raw_operational_costs!$J:$J,Lists!$S:$S,$C276,raw_operational_costs!$D:$D,AA$269,raw_operational_costs!$B:$B,mainzone)/1000","v":0},{"$f":"SUMIFS(raw_operational_costs!$J:$J,Lists!$S:$S,$C276,raw_operational_costs!$D:$D,AB$269,raw_operational_costs!$B:$B,mainzone)/1000","v":0},{"$f":"SUMIFS(raw_operational_costs!$J:$J,Lists!$S:$S,$C276,raw_operational_costs!$D:$D,AC$269,raw_operational_costs!$B:$B,mainzone)/1000","v":0},{"$f":"SUMIFS(raw_operational_costs!$J:$J,Lists!$S:$S,$C276,raw_operational_costs!$D:$D,AD$269,raw_operational_costs!$B:$B,mainzone)/1000","v":0},{"$f":"SUMIFS(raw_operational_costs!$J:$J,Lists!$S:$S,$C276,raw_operational_costs!$D:$D,AE$269,raw_operational_costs!$B:$B,mainzone)/1000","v":0},{"$f":"SUMIFS(raw_operational_costs!$J:$J,Lists!$S:$S,$C276,raw_operational_costs!$D:$D,AF$269,raw_operational_costs!$B:$B,mainzone)/1000","v":0},{"$f":"SUMIFS(raw_operational_costs!$J:$J,Lists!$S:$S,$C276,raw_operational_costs!$D:$D,AG$269,raw_operational_costs!$B:$B,mainzone)/1000","v":0},{"$f":"SUMIFS(raw_operational_costs!$J:$J,Lists!$S:$S,$C276,raw_operational_costs!$D:$D,AH$269,raw_operational_costs!$B:$B,mainzone)/1000","v":0},{"$f":"SUMIFS(raw_operational_costs!$J:$J,Lists!$S:$S,$C276,raw_operational_costs!$D:$D,AI$269,raw_operational_costs!$B:$B,mainzone)/1000","v":208.048752372162},{"$f":"SUMIFS(raw_operational_costs!$J:$J,Lists!$S:$S,$C276,raw_operational_costs!$D:$D,AJ$269,raw_operational_costs!$B:$B,mainzone)/1000","v":0},{"$f":"SUMIFS(raw_operational_costs!$J:$J,Lists!$S:$S,$C276,raw_operational_costs!$D:$D,AK$269,raw_operational_costs!$B:$B,mainzone)/1000","v":0},{"$f":"SUMIFS(raw_operational_costs!$J:$J,Lists!$S:$S,$C276,raw_operational_costs!$D:$D,AL$269,raw_operational_costs!$B:$B,mainzone)/1000","v":0},{"$f":"SUMIFS(raw_operational_costs!$J:$J,Lists!$S:$S,$C276,raw_operational_costs!$D:$D,AM$269,raw_operational_costs!$B:$B,mainzone)/1000","v":0},{"$f":"SUMIFS(raw_operational_costs!$J:$J,Lists!$S:$S,$C276,raw_operational_costs!$D:$D,AN$269,raw_operational_costs!$B:$B,mainzone)/1000","v":0}]
[null,null,"Flow_Battery","discharging hourly GWh",{"$f":"SUMIFS(raw_operational_costs!$J:$J,Lists!$S:$S,$C277,raw_operational_costs!$D:$D,E$269,raw_operational_costs!$B:$B,mainzone)/1000","v":0},{"$f":"SUMIFS(raw_operational_costs!$J:$J,Lists!$S:$S,$C277,raw_operational_costs!$D:$D,F$269,raw_operational_costs!$B:$B,mainzone)/1000","v":0},{"$f":"SUMIFS(raw_operational_costs!$J:$J,Lists!$S:$S,$C277,raw_operational_costs!$D:$D,G$269,raw_operational_costs!$B:$B,mainzone)/1000","v":0},{"$f":"SUMIFS(raw_operational_costs!$J:$J,Lists!$S:$S,$C277,raw_operational_costs!$D:$D,H$269,raw_operational_costs!$B:$B,mainzone)/1000","v":0},{"$f":"SUMIFS(raw_operational_costs!$J:$J,Lists!$S:$S,$C277,raw_operational_costs!$D:$D,I$269,raw_operational_costs!$B:$B,mainzone)/1000","v":0},{"$f":"SUMIFS(raw_operational_costs!$J:$J,Lists!$S:$S,$C277,raw_operational_costs!$D:$D,J$269,raw_operational_costs!$B:$B,mainzone)/1000","v":0},{"$f":"SUMIFS(raw_operational_costs!$J:$J,Lists!$S:$S,$C277,raw_operational_costs!$D:$D,K$269,raw_operational_costs!$B:$B,mainzone)/1000","v":0},{"$f":"SUMIFS(raw_operational_costs!$J:$J,Lists!$S:$S,$C277,raw_operational_costs!$D:$D,L$269,raw_operational_costs!$B:$B,mainzone)/1000","v":0},{"$f":"SUMIFS(raw_operational_costs!$J:$J,Lists!$S:$S,$C277,raw_operational_costs!$D:$D,M$269,raw_operational_costs!$B:$B,mainzone)/1000","v":0},{"$f":"SUMIFS(raw_operational_costs!$J:$J,Lists!$S:$S,$C277,raw_operational_costs!$D:$D,N$269,raw_operational_costs!$B:$B,mainzone)/1000","v":0},{"$f":"SUMIFS(raw_operational_costs!$J:$J,Lists!$S:$S,$C277,raw_operational_costs!$D:$D,O$269,raw_operational_costs!$B:$B,mainzone)/1000","v":0},{"$f":"SUMIFS(raw_operational_costs!$J:$J,Lists!$S:$S,$C277,raw_operational_costs!$D:$D,P$269,raw_operational_costs!$B:$B,mainzone)/1000","v":0},{"$f":"SUMIFS(raw_operational_costs!$J:$J,Lists!$S:$S,$C277,raw_operational_costs!$D:$D,Q$269,raw_operational_costs!$B:$B,mainzone)/1000","v":0},{"$f":"SUMIFS(raw_operational_costs!$J:$J,Lists!$S:$S,$C277,raw_operational_costs!$D:$D,R$269,raw_operational_costs!$B:$B,mainzone)/1000","v":0},{"$f":"SUMIFS(raw_operational_costs!$J:$J,Lists!$S:$S,$C277,raw_operational_costs!$D:$D,S$269,raw_operational_costs!$B:$B,mainzone)/1000","v":0},{"$f":"SUMIFS(raw_operational_costs!$J:$J,Lists!$S:$S,$C277,raw_operational_costs!$D:$D,T$269,raw_operational_costs!$B:$B,mainzone)/1000","v":0},{"$f":"SUMIFS(raw_operational_costs!$J:$J,Lists!$S:$S,$C277,raw_operational_costs!$D:$D,U$269,raw_operational_costs!$B:$B,mainzone)/1000","v":0},{"$f":"SUMIFS(raw_operational_costs!$J:$J,Lists!$S:$S,$C277,raw_operational_costs!$D:$D,V$269,raw_operational_costs!$B:$B,mainzone)/1000","v":0},{"$f":"SUMIFS(raw_operational_costs!$J:$J,Lists!$S:$S,$C277,raw_operational_costs!$D:$D,W$269,raw_operational_costs!$B:$B,mainzone)/1000","v":0},{"$f":"SUMIFS(raw_operational_costs!$J:$J,Lists!$S:$S,$C277,raw_operational_costs!$D:$D,X$269,raw_operational_costs!$B:$B,mainzone)/1000","v":0},{"$f":"SUMIFS(raw_operational_costs!$J:$J,Lists!$S:$S,$C277,raw_operational_costs!$D:$D,Y$269,raw_operational_costs!$B:$B,mainzone)/1000","v":0},{"$f":"SUMIFS(raw_operational_costs!$J:$J,Lists!$S:$S,$C277,raw_operational_costs!$D:$D,Z$269,raw_operational_costs!$B:$B,mainzone)/1000","v":0},{"$f":"SUMIFS(raw_operational_costs!$J:$J,Lists!$S:$S,$C277,raw_operational_costs!$D:$D,AA$269,raw_operational_costs!$B:$B,mainzone)/1000","v":0},{"$f":"SUMIFS(raw_operational_costs!$J:$J,Lists!$S:$S,$C277,raw_operational_costs!$D:$D,AB$269,raw_operational_costs!$B:$B,mainzone)/1000","v":0},{"$f":"SUMIFS(raw_operational_costs!$J:$J,Lists!$S:$S,$C277,raw_operational_costs!$D:$D,AC$269,raw_operational_costs!$B:$B,mainzone)/1000","v":0},{"$f":"SUMIFS(raw_operational_costs!$J:$J,Lists!$S:$S,$C277,raw_operational_costs!$D:$D,AD$269,raw_operational_costs!$B:$B,mainzone)/1000","v":0},{"$f":"SUMIFS(raw_operational_costs!$J:$J,Lists!$S:$S,$C277,raw_operational_costs!$D:$D,AE$269,raw_operational_costs!$B:$B,mainzone)/1000","v":0},{"$f":"SUMIFS(raw_operational_costs!$J:$J,Lists!$S:$S,$C277,raw_operational_costs!$D:$D,AF$269,raw_operational_costs!$B:$B,mainzone)/1000","v":0},{"$f":"SUMIFS(raw_operational_costs!$J:$J,Lists!$S:$S,$C277,raw_operational_costs!$D:$D,AG$269,raw_operational_costs!$B:$B,mainzone)/1000","v":0},{"$f":"SUMIFS(raw_operational_costs!$J:$J,Lists!$S:$S,$C277,raw_operational_costs!$D:$D,AH$269,raw_operational_costs!$B:$B,mainzone)/1000","v":0},{"$f":"SUMIFS(raw_operational_costs!$J:$J,Lists!$S:$S,$C277,raw_operational_costs!$D:$D,AI$269,raw_operational_costs!$B:$B,mainzone)/1000","v":0},{"$f":"SUMIFS(raw_operational_costs!$J:$J,Lists!$S:$S,$C277,raw_operational_costs!$D:$D,AJ$269,raw_operational_costs!$B:$B,mainzone)/1000","v":0},{"$f":"SUMIFS(raw_operational_costs!$J:$J,Lists!$S:$S,$C277,raw_operational_costs!$D:$D,AK$269,raw_operational_costs!$B:$B,mainzone)/1000","v":0},{"$f":"SUMIFS(raw_operational_costs!$J:$J,Lists!$S:$S,$C277,raw_operational_costs!$D:$D,AL$269,raw_operational_costs!$B:$B,mainzone)/1000","v":0},{"$f":"SUMIFS(raw_operational_costs!$J:$J,Lists!$S:$S,$C277,raw_operational_costs!$D:$D,AM$269,raw_operational_costs!$B:$B,mainzone)/1000","v":0},{"$f":"SUMIFS(raw_operational_costs!$J:$J,Lists!$S:$S,$C277,raw_operational_costs!$D:$D,AN$269,raw_operational_costs!$B:$B,mainzone)/1000","v":0}]
[null,null,"Pumped_Hydro","charging hourly GWh",{"$f":"E274-E270","v":0},{"$f":"F274-F270","v":0},0,0,0,705.48173778687817,986.11085988094101,1213.0015161328481,1511.0187625843291,1684.8643040216168,0,3900.7612311531279,0,0,0,9223.7917627195584,0,0,0,0,0,0,0,0,0,0,0,0,0,0,9702.1673650109587,0,0,0,0,0]
[null,null,"Li_Battery","charging hourly GWh",{"$f":"E275-E271","v":0},{"$f":"F275-F271","v":0},0,0,0,2020.3420961993691,5212.0329223911322,5542.3019190025952,6490.750274286921,9142.5394288177577,0,15338.837400732433,0,0,0,21936.420300434831,0,0,0,0,0,0,0,0,0,0,0,0,0,0,166092.18116253329,0,0,0,0,0]
[null,null,"BTM_Li_Battery","charging hourly GWh",{"$f":"E276-E272","v":0},0,0,0,0,85.441086448948397,75.585944479860601,79.736738067548501,82.606665096430504,83.121859768077186,0,92.623845400153797,0,0,0,113.6225192332229,0,0,0,0,0,0,0,0,0,0,0,0,0,0,244.76362718034841,0,0,0,0,0]
[null,null,"Flow_Battery","charging hourly GWh",{"$f":"E277-E273","v":0},0,0,0,0,0,0,0,0,0,0,0,0,0,0,0,0,0,0,0,0,0,0,0,0,0,0,0,0,0,0,0,0,0,0,0]
[null,null,"Pumped_Hydro","net subhourly GWh",{"$f":"SUMIFS(raw_annual_energy!$F:$F,Lists!$S:$S,$C282,raw_annual_energy!$D:$D,E$269,raw_annual_energy!$A:$A,mainzone)/1000","v":0},{"$f":"SUMIFS(raw_annual_energy!$F:$F,Lists!$S:$S,$C282,raw_annual_energy!$D:$D,F$269,raw_annual_energy!$A:$A,mainzone)/1000","v":0},{"$f":"SUMIFS(raw_annual_energy!$F:$F,Lists!$S:$S,$C282,raw_annual_energy!$D:$D,G$269,raw_annual_energy!$A:$A,mainzone)/1000","v":0},{"$f":"SUMIFS(raw_annual_energy!$F:$F,Lists!$S:$S,$C282,raw_annual_energy!$D:$D,H$269,raw_annual_energy!$A:$A,mainzone)/1000","v":0},{"$f":"SUMIFS(raw_annual_energy!$F:$F,Lists!$S:$S,$C282,raw_annual_energy!$D:$D,I$269,raw_annual_energy!$A:$A,mainzone)/1000","v":0},{"$f":"SUMIFS(raw_annual_energy!$F:$F,Lists!$S:$S,$C282,raw_annual_energy!$D:$D,J$269,raw_annual_energy!$A:$A,mainzone)/1000","v":-136.57470540424799},{"$f":"SUMIFS(raw_annual_energy!$F:$F,Lists!$S:$S,$C282,raw_annual_energy!$D:$D,K$269,raw_annual_energy!$A:$A,mainzone)/1000","v":8.1236378767751098},{"$f":"SUMIFS(raw_annual_energy!$F:$F,Lists!$S:$S,$C282,raw_annual_energy!$D:$D,L$269,raw_annual_energy!$A:$A,mainzone)/1000","v":-24.806536467410101},{"$f":"SUMIFS(raw_annual_energy!$F:$F,Lists!$S:$S,$C282,raw_annual_energy!$D:$D,M$269,raw_annual_energy!$A:$A,mainzone)/1000","v":3.5846866550343104},{"$f":"SUMIFS(raw_annual_energy!$F:$F,Lists!$S:$S,$C282,raw_annual_energy!$D:$D,N$269,raw_annual_energy!$A:$A,mainzone)/1000","v":67.568344461511089},{"$f":"SUMIFS(raw_annual_energy!$F:$F,Lists!$S:$S,$C282,raw_annual_energy!$D:$D,O$269,raw_annual_energy!$A:$A,mainzone)/1000","v":0},{"$f":"SUMIFS(raw_annual_energy!$F:$F,Lists!$S:$S,$C282,raw_annual_energy!$D:$D,P$269,raw_annual_energy!$A:$A,mainzone)/1000","v":84.904408314368894},{"$f":"SUMIFS(raw_annual_energy!$F:$F,Lists!$S:$S,$C282,raw_annual_energy!$D:$D,Q$269,raw_annual_energy!$A:$A,mainzone)/1000","v":0},{"$f":"SUMIFS(raw_annual_energy!$F:$F,Lists!$S:$S,$C282,raw_annual_energy!$D:$D,R$269,raw_annual_energy!$A:$A,mainzone)/1000","v":0},{"$f":"SUMIFS(raw_annual_energy!$F:$F,Lists!$S:$S,$C282,raw_annual_energy!$D:$D,S$269,raw_annual_energy!$A:$A,mainzone)/1000","v":0},{"$f":"SUMIFS(raw_annual_energy!$F:$F,Lists!$S:$S,$C282,raw_annual_energy!$D:$D,T$269,raw_annual_energy!$A:$A,mainzone)/1000","v":416.66086188269105},{"$f":"SUMIFS(raw_annual_energy!$F:$F,Lists!$S:$S,$C282,raw_annual_energy!$D:$D,U$269,raw_annual_energy!$A:$A,mainzone)/1000","v":0},{"$f":"SUMIFS(raw_annual_energy!$F:$F,Lists!$S:$S,$C282,raw_annual_energy!$D:$D,V$269,raw_annual_energy!$A:$A,mainzone)/1000","v":0},{"$f":"SUMIFS(raw_annual_energy!$F:$F,Lists!$S:$S,$C282,raw_annual_energy!$D:$D,W$269,raw_annual_energy!$A:$A,mainzone)/1000","v":0},{"$f":"SUMIFS(raw_annual_energy!$F:$F,Lists!$S:$S,$C282,raw_annual_energy!$D:$D,X$269,raw_annual_energy!$A:$A,mainzone)/1000","v":0},{"$f":"SUMIFS(raw_annual_energy!$F:$F,Lists!$S:$S,$C282,raw_annual_energy!$D:$D,Y$269,raw_annual_energy!$A:$A,mainzone)/1000","v":0},{"$f":"SUMIFS(raw_annual_energy!$F:$F,Lists!$S:$S,$C282,raw_annual_energy!$D:$D,Z$269,raw_annual_energy!$A:$A,mainzone)/1000","v":0},{"$f":"SUMIFS(raw_annual_energy!$F:$F,Lists!$S:$S,$C282,raw_annual_energy!$D:$D,AA$269,raw_annual_energy!$A:$A,mainzone)/1000","v":0},{"$f":"SUMIFS(raw_annual_energy!$F:$F,Lists!$S:$S,$C282,raw_annual_energy!$D:$D,AB$269,raw_annual_energy!$A:$A,mainzone)/1000","v":0},{"$f":"SUMIFS(raw_annual_energy!$F:$F,Lists!$S:$S,$C282,raw_annual_energy!$D:$D,AC$269,raw_annual_energy!$A:$A,mainzone)/1000","v":0},{"$f":"SUMIFS(raw_annual_energy!$F:$F,Lists!$S:$S,$C282,raw_annual_energy!$D:$D,AD$269,raw_annual_energy!$A:$A,mainzone)/1000","v":0},{"$f":"SUMIFS(raw_annual_energy!$F:$F,Lists!$S:$S,$C282,raw_annual_energy!$D:$D,AE$269,raw_annual_energy!$A:$A,mainzone)/1000","v":0},{"$f":"SUMIFS(raw_annual_energy!$F:$F,Lists!$S:$S,$C282,raw_annual_energy!$D:$D,AF$269,raw_annual_energy!$A:$A,mainzone)/1000","v":0},{"$f":"SUMIFS(raw_annual_energy!$F:$F,Lists!$S:$S,$C282,raw_annual_energy!$D:$D,AG$269,raw_annual_energy!$A:$A,mainzone)/1000","v":0},{"$f":"SUMIFS(raw_annual_energy!$F:$F,Lists!$S:$S,$C282,raw_annual_energy!$D:$D,AH$269,raw_annual_energy!$A:$A,mainzone)/1000","v":0},{"$f":"SUMIFS(raw_annual_energy!$F:$F,Lists!$S:$S,$C282,raw_annual_energy!$D:$D,AI$269,raw_annual_energy!$A:$A,mainzone)/1000","v":318.23812591796701},{"$f":"SUMIFS(raw_annual_energy!$F:$F,Lists!$S:$S,$C282,raw_annual_energy!$D:$D,AJ$269,raw_annual_energy!$A:$A,mainzone)/1000","v":0},{"$f":"SUMIFS(raw_annual_energy!$F:$F,Lists!$S:$S,$C282,raw_annual_energy!$D:$D,AK$269,raw_annual_energy!$A:$A,mainzone)/1000","v":0},{"$f":"SUMIFS(raw_annual_energy!$F:$F,Lists!$S:$S,$C282,raw_annual_energy!$D:$D,AL$269,raw_annual_energy!$A:$A,mainzone)/1000","v":0},{"$f":"SUMIFS(raw_annual_energy!$F:$F,Lists!$S:$S,$C282,raw_annual_energy!$D:$D,AM$269,raw_annual_energy!$A:$A,mainzone)/1000","v":0},{"$f":"SUMIFS(raw_annual_energy!$F:$F,Lists!$S:$S,$C282,raw_annual_energy!$D:$D,AN$269,raw_annual_energy!$A:$A,mainzone)/1000","v":0}]
[null,null,"Li_Battery","net subhourly GWh",{"$f":"SUMIFS(raw_annual_energy!$F:$F,Lists!$S:$S,$C283,raw_annual_energy!$D:$D,E$269,raw_annual_energy!$A:$A,mainzone)/1000","v":0},{"$f":"SUMIFS(raw_annual_energy!$F:$F,Lists!$S:$S,$C283,raw_annual_energy!$D:$D,F$269,raw_annual_energy!$A:$A,mainzone)/1000","v":0},{"$f":"SUMIFS(raw_annual_energy!$F:$F,Lists!$S:$S,$C283,raw_annual_energy!$D:$D,G$269,raw_annual_energy!$A:$A,mainzone)/1000","v":0},{"$f":"SUMIFS(raw_annual_energy!$F:$F,Lists!$S:$S,$C283,raw_annual_energy!$D:$D,H$269,raw_annual_energy!$A:$A,mainzone)/1000","v":0},{"$f":"SUMIFS(raw_annual_energy!$F:$F,Lists!$S:$S,$C283,raw_annual_energy!$D:$D,I$269,raw_annual_energy!$A:$A,mainzone)/1000","v":0},{"$f":"SUMIFS(raw_annual_energy!$F:$F,Lists!$S:$S,$C283,raw_annual_energy!$D:$D,J$269,raw_annual_energy!$A:$A,mainzone)/1000","v":-843.13241887614697},{"$f":"SUMIFS(raw_annual_energy!$F:$F,Lists!$S:$S,$C283,raw_annual_energy!$D:$D,K$269,raw_annual_energy!$A:$A,mainzone)/1000","v":-1194.2541167797299},{"$f":"SUMIFS(raw_annual_energy!$F:$F,Lists!$S:$S,$C283,raw_annual_energy!$D:$D,L$269,raw_annual_energy!$A:$A,mainzone)/1000","v":-1052.8791900605202},{"$f":"SUMIFS(raw_annual_energy!$F:$F,Lists!$S:$S,$C283,raw_annual_energy!$D:$D,M$269,raw_annual_energy!$A:$A,mainzone)/1000","v":-991.64712291577791},{"$f":"SUMIFS(raw_annual_energy!$F:$F,Lists!$S:$S,$C283,raw_annual_energy!$D:$D,N$269,raw_annual_energy!$A:$A,mainzone)/1000","v":-1093.9232150751882},{"$f":"SUMIFS(raw_annual_energy!$F:$F,Lists!$S:$S,$C283,raw_annual_energy!$D:$D,O$269,raw_annual_energy!$A:$A,mainzone)/1000","v":0},{"$f":"SUMIFS(raw_annual_energy!$F:$F,Lists!$S:$S,$C283,raw_annual_energy!$D:$D,P$269,raw_annual_energy!$A:$A,mainzone)/1000","v":-1010.5125730018224},{"$f":"SUMIFS(raw_annual_energy!$F:$F,Lists!$S:$S,$C283,raw_annual_energy!$D:$D,Q$269,raw_annual_energy!$A:$A,mainzone)/1000","v":0},{"$f":"SUMIFS(raw_annual_energy!$F:$F,Lists!$S:$S,$C283,raw_annual_energy!$D:$D,R$269,raw_annual_energy!$A:$A,mainzone)/1000","v":0},{"$f":"SUMIFS(raw_annual_energy!$F:$F,Lists!$S:$S,$C283,raw_annual_energy!$D:$D,S$269,raw_annual_energy!$A:$A,mainzone)/1000","v":0},{"$f":"SUMIFS(raw_annual_energy!$F:$F,Lists!$S:$S,$C283,raw_annual_energy!$D:$D,T$269,raw_annual_energy!$A:$A,mainzone)/1000","v":245.7949700111638},{"$f":"SUMIFS(raw_annual_energy!$F:$F,Lists!$S:$S,$C283,raw_annual_energy!$D:$D,U$269,raw_annual_energy!$A:$A,mainzone)/1000","v":0},{"$f":"SUMIFS(raw_annual_energy!$F:$F,Lists!$S:$S,$C283,raw_annual_energy!$D:$D,V$269,raw_annual_energy!$A:$A,mainzone)/1000","v":0},{"$f":"SUMIFS(raw_annual_energy!$F:$F,Lists!$S:$S,$C283,raw_annual_energy!$D:$D,W$269,raw_annual_energy!$A:$A,mainzone)/1000","v":0},{"$f":"SUMIFS(raw_annual_energy!$F:$F,Lists!$S:$S,$C283,raw_annual_energy!$D:$D,X$269,raw_annual_energy!$A:$A,mainzone)/1000","v":0},{"$f":"SUMIFS(raw_annual_energy!$F:$F,Lists!$S:$S,$C283,raw_annual_energy!$D:$D,Y$269,raw_annual_energy!$A:$A,mainzone)/1000","v":0},{"$f":"SUMIFS(raw_annual_energy!$F:$F,Lists!$S:$S,$C283,raw_annual_energy!$D:$D,Z$269,raw_annual_energy!$A:$A,mainzone)/1000","v":0},{"$f":"SUMIFS(raw_annual_energy!$F:$F,Lists!$S:$S,$C283,raw_annual_energy!$D:$D,AA$269,raw_annual_energy!$A:$A,mainzone)/1000","v":0},{"$f":"SUMIFS(raw_annual_energy!$F:$F,Lists!$S:$S,$C283,raw_annual_energy!$D:$D,AB$269,raw_annual_energy!$A:$A,mainzone)/1000","v":0},{"$f":"SUMIFS(raw_annual_energy!$F:$F,Lists!$S:$S,$C283,raw_annual_energy!$D:$D,AC$269,raw_annual_energy!$A:$A,mainzone)/1000","v":0},{"$f":"SUMIFS(raw_annual_energy!$F:$F,Lists!$S:$S,$C283,raw_annual_energy!$D:$D,AD$269,raw_annual_energy!$A:$A,mainzone)/1000","v":0},{"$f":"SUMIFS(raw_annual_energy!$F:$F,Lists!$S:$S,$C283,raw_annual_energy!$D:$D,AE$269,raw_annual_energy!$A:$A,mainzone)/1000","v":0},{"$f":"SUMIFS(raw_annual_energy!$F:$F,Lists!$S:$S,$C283,raw_annual_energy!$D:$D,AF$269,raw_annual_energy!$A:$A,mainzone)/1000","v":0},{"$f":"SUMIFS(raw_annual_energy!$F:$F,Lists!$S:$S,$C283,raw_annual_energy!$D:$D,AG$269,raw_annual_energy!$A:$A,mainzone)/1000","v":0},{"$f":"SUMIFS(raw_annual_energy!$F:$F,Lists!$S:$S,$C283,raw_annual_energy!$D:$D,AH$269,raw_annual_energy!$A:$A,mainzone)/1000","v":0},{"$f":"SUMIFS(raw_annual_energy!$F:$F,Lists!$S:$S,$C283,raw_annual_energy!$D:$D,AI$269,raw_annual_energy!$A:$A,mainzone)/1000","v":3896.9382297296356},{"$f":"SUMIFS(raw_annual_energy!$F:$F,Lists!$S:$S,$C283,raw_annual_energy!$D:$D,AJ$269,raw_annual_energy!$A:$A,mainzone)/1000","v":0},{"$f":"SUMIFS(raw_annual_energy!$F:$F,Lists!$S:$S,$C283,raw_annual_energy!$D:$D,AK$269,raw_annual_energy!$A:$A,mainzone)/1000","v":0},{"$f":"SUMIFS(raw_annual_energy!$F:$F,Lists!$S:$S,$C283,raw_annual_energy!$D:$D,AL$269,raw_annual_energy!$A:$A,mainzone)/1000","v":0},{"$f":"SUMIFS(raw_annual_energy!$F:$F,Lists!$S:$S,$C283,raw_annual_energy!$D:$D,AM$269,raw_annual_energy!$A:$A,mainzone)/1000","v":0},{"$f":"SUMIFS(raw_annual_energy!$F:$F,Lists!$S:$S,$C283,raw_annual_energy!$D:$D,AN$269,raw_annual_energy!$A:$A,mainzone)/1000","v":0}]
[null,null,"BTM_Li_Battery","net subhourly GWh",{"$f":"SUMIFS(raw_annual_energy!$F:$F,Lists!$S:$S,$C284,raw_annual_energy!$D:$D,E$269,raw_annual_energy!$A:$A,mainzone)/1000","v":0},{"$f":"SUMIFS(raw_annual_energy!$F:$F,Lists!$S:$S,$C284,raw_annual_energy!$D:$D,F$269,raw_annual_energy!$A:$A,mainzone)/1000","v":0},{"$f":"SUMIFS(raw_annual_energy!$F:$F,Lists!$S:$S,$C284,raw_annual_energy!$D:$D,G$269,raw_annual_energy!$A:$A,mainzone)/1000","v":0},{"$f":"SUMIFS(raw_annual_energy!$F:$F,Lists!$S:$S,$C284,raw_annual_energy!$D:$D,H$269,raw_annual_energy!$A:$A,mainzone)/1000","v":0},{"$f":"SUMIFS(raw_annual_energy!$F:$F,Lists!$S:$S,$C284,raw_annual_energy!$D:$D,I$269,raw_annual_energy!$A:$A,mainzone)/1000","v":0},{"$f":"SUMIFS(raw_annual_energy!$F:$F,Lists!$S:$S,$C284,raw_annual_energy!$D:$D,J$269,raw_annual_energy!$A:$A,mainzone)/1000","v":0},{"$f":"SUMIFS(raw_annual_energy!$F:$F,Lists!$S:$S,$C284,raw_annual_energy!$D:$D,K$269,raw_annual_energy!$A:$A,mainzone)/1000","v":0},{"$f":"SUMIFS(raw_annual_energy!$F:$F,Lists!$S:$S,$C284,raw_annual_energy!$D:$D,L$269,raw_annual_energy!$A:$A,mainzone)/1000","v":0},{"$f":"SUMIFS(raw_annual_energy!$F:$F,Lists!$S:$S,$C284,raw_annual_energy!$D:$D,M$269,raw_annual_energy!$A:$A,mainzone)/1000","v":0},{"$f":"SUMIFS(raw_annual_energy!$F:$F,Lists!$S:$S,$C284,raw_annual_energy!$D:$D,N$269,raw_annual_energy!$A:$A,mainzone)/1000","v":0},{"$f":"SUMIFS(raw_annual_energy!$F:$F,Lists!$S:$S,$C284,raw_annual_energy!$D:$D,O$269,raw_annual_energy!$A:$A,mainzone)/1000","v":0},{"$f":"SUMIFS(raw_annual_energy!$F:$F,Lists!$S:$S,$C284,raw_annual_energy!$D:$D,P$269,raw_annual_energy!$A:$A,mainzone)/1000","v":0},{"$f":"SUMIFS(raw_annual_energy!$F:$F,Lists!$S:$S,$C284,raw_annual_energy!$D:$D,Q$269,raw_annual_energy!$A:$A,mainzone)/1000","v":0},{"$f":"SUMIFS(raw_annual_energy!$F:$F,Lists!$S:$S,$C284,raw_annual_energy!$D:$D,R$269,raw_annual_energy!$A:$A,mainzone)/1000","v":0},{"$f":"SUMIFS(raw_annual_energy!$F:$F,Lists!$S:$S,$C284,raw_annual_energy!$D:$D,S$269,raw_annual_energy!$A:$A,mainzone)/1000","v":0},{"$f":"SUMIFS(raw_annual_energy!$F:$F,Lists!$S:$S,$C284,raw_annual_energy!$D:$D,T$269,raw_annual_energy!$A:$A,mainzone)/1000","v":0},{"$f":"SUMIFS(raw_annual_energy!$F:$F,Lists!$S:$S,$C284,raw_annual_energy!$D:$D,U$269,raw_annual_energy!$A:$A,mainzone)/1000","v":0},{"$f":"SUMIFS(raw_annual_energy!$F:$F,Lists!$S:$S,$C284,raw_annual_energy!$D:$D,V$269,raw_annual_energy!$A:$A,mainzone)/1000","v":0},{"$f":"SUMIFS(raw_annual_energy!$F:$F,Lists!$S:$S,$C284,raw_annual_energy!$D:$D,W$269,raw_annual_energy!$A:$A,mainzone)/1000","v":0},{"$f":"SUMIFS(raw_annual_energy!$F:$F,Lists!$S:$S,$C284,raw_annual_energy!$D:$D,X$269,raw_annual_energy!$A:$A,mainzone)/1000","v":0},{"$f":"SUMIFS(raw_annual_energy!$F:$F,Lists!$S:$S,$C284,raw_annual_energy!$D:$D,Y$269,raw_annual_energy!$A:$A,mainzone)/1000","v":0},{"$f":"SUMIFS(raw_annual_energy!$F:$F,Lists!$S:$S,$C284,raw_annual_energy!$D:$D,Z$269,raw_annual_energy!$A:$A,mainzone)/1000","v":0},{"$f":"SUMIFS(raw_annual_energy!$F:$F,Lists!$S:$S,$C284,raw_annual_energy!$D:$D,AA$269,raw_annual_energy!$A:$A,mainzone)/1000","v":0},{"$f":"SUMIFS(raw_annual_energy!$F:$F,Lists!$S:$S,$C284,raw_annual_energy!$D:$D,AB$269,raw_annual_energy!$A:$A,mainzone)/1000","v":0},{"$f":"SUMIFS(raw_annual_energy!$F:$F,Lists!$S:$S,$C284,raw_annual_energy!$D:$D,AC$269,raw_annual_energy!$A:$A,mainzone)/1000","v":0},{"$f":"SUMIFS(raw_annual_energy!$F:$F,Lists!$S:$S,$C284,raw_annual_energy!$D:$D,AD$269,raw_annual_energy!$A:$A,mainzone)/1000","v":0},{"$f":"SUMIFS(raw_annual_energy!$F:$F,Lists!$S:$S,$C284,raw_annual_energy!$D:$D,AE$269,raw_annual_energy!$A:$A,mainzone)/1000","v":0},{"$f":"SUMIFS(raw_annual_energy!$F:$F,Lists!$S:$S,$C284,raw_annual_energy!$D:$D,AF$269,raw_annual_energy!$A:$A,mainzone)/1000","v":0},{"$f":"SUMIFS(raw_annual_energy!$F:$F,Lists!$S:$S,$C284,raw_annual_energy!$D:$D,AG$269,raw_annual_energy!$A:$A,mainzone)/1000","v":0},{"$f":"SUMIFS(raw_annual_energy!$F:$F,Lists!$S:$S,$C284,raw_annual_energy!$D:$D,AH$269,raw_annual_energy!$A:$A,mainzone)/1000","v":0},{"$f":"SUMIFS(raw_annual_energy!$F:$F,Lists!$S:$S,$C284,raw_annual_energy!$D:$D,AI$269,raw_annual_energy!$A:$A,mainzone)/1000","v":0},{"$f":"SUMIFS(raw_annual_energy!$F:$F,Lists!$S:$S,$C284,raw_annual_energy!$D:$D,AJ$269,raw_annual_energy!$A:$A,mainzone)/1000","v":0},{"$f":"SUMIFS(raw_annual_energy!$F:$F,Lists!$S:$S,$C284,raw_annual_energy!$D:$D,AK$269,raw_annual_energy!$A:$A,mainzone)/1000","v":0},{"$f":"SUMIFS(raw_annual_energy!$F:$F,Lists!$S:$S,$C284,raw_annual_energy!$D:$D,AL$269,raw_annual_energy!$A:$A,mainzone)/1000","v":0},{"$f":"SUMIFS(raw_annual_energy!$F:$F,Lists!$S:$S,$C284,raw_annual_energy!$D:$D,AM$269,raw_annual_energy!$A:$A,mainzone)/1000","v":0},{"$f":"SUMIFS(raw_annual_energy!$F:$F,Lists!$S:$S,$C284,raw_annual_energy!$D:$D,AN$269,raw_annual_energy!$A:$A,mainzone)/1000","v":0}]
[null,null,"Flow_Battery","net subhourly GWh",{"$f":"SUMIFS(raw_annual_energy!$F:$F,Lists!$S:$S,$C285,raw_annual_energy!$D:$D,E$269,raw_annual_energy!$A:$A,mainzone)/1000","v":0},{"$f":"SUMIFS(raw_annual_energy!$F:$F,Lists!$S:$S,$C285,raw_annual_energy!$D:$D,F$269,raw_annual_energy!$A:$A,mainzone)/1000","v":0},{"$f":"SUMIFS(raw_annual_energy!$F:$F,Lists!$S:$S,$C285,raw_annual_energy!$D:$D,G$269,raw_annual_energy!$A:$A,mainzone)/1000","v":0},{"$f":"SUMIFS(raw_annual_energy!$F:$F,Lists!$S:$S,$C285,raw_annual_energy!$D:$D,H$269,raw_annual_energy!$A:$A,mainzone)/1000","v":0},{"$f":"SUMIFS(raw_annual_energy!$F:$F,Lists!$S:$S,$C285,raw_annual_energy!$D:$D,I$269,raw_annual_energy!$A:$A,mainzone)/1000","v":0},{"$f":"SUMIFS(raw_annual_energy!$F:$F,Lists!$S:$S,$C285,raw_annual_energy!$D:$D,J$269,raw_annual_energy!$A:$A,mainzone)/1000","v":0},{"$f":"SUMIFS(raw_annual_energy!$F:$F,Lists!$S:$S,$C285,raw_annual_energy!$D:$D,K$269,raw_annual_energy!$A:$A,mainzone)/1000","v":0},{"$f":"SUMIFS(raw_annual_energy!$F:$F,Lists!$S:$S,$C285,raw_annual_energy!$D:$D,L$269,raw_annual_energy!$A:$A,mainzone)/1000","v":0},{"$f":"SUMIFS(raw_annual_energy!$F:$F,Lists!$S:$S,$C285,raw_annual_energy!$D:$D,M$269,raw_annual_energy!$A:$A,mainzone)/1000","v":0},{"$f":"SUMIFS(raw_annual_energy!$F:$F,Lists!$S:$S,$C285,raw_annual_energy!$D:$D,N$269,raw_annual_energy!$A:$A,mainzone)/1000","v":0},{"$f":"SUMIFS(raw_annual_energy!$F:$F,Lists!$S:$S,$C285,raw_annual_energy!$D:$D,O$269,raw_annual_energy!$A:$A,mainzone)/1000","v":0},{"$f":"SUMIFS(raw_annual_energy!$F:$F,Lists!$S:$S,$C285,raw_annual_energy!$D:$D,P$269,raw_annual_energy!$A:$A,mainzone)/1000","v":0},{"$f":"SUMIFS(raw_annual_energy!$F:$F,Lists!$S:$S,$C285,raw_annual_energy!$D:$D,Q$269,raw_annual_energy!$A:$A,mainzone)/1000","v":0},{"$f":"SUMIFS(raw_annual_energy!$F:$F,Lists!$S:$S,$C285,raw_annual_energy!$D:$D,R$269,raw_annual_energy!$A:$A,mainzone)/1000","v":0},{"$f":"SUMIFS(raw_annual_energy!$F:$F,Lists!$S:$S,$C285,raw_annual_energy!$D:$D,S$269,raw_annual_energy!$A:$A,mainzone)/1000","v":0},{"$f":"SUMIFS(raw_annual_energy!$F:$F,Lists!$S:$S,$C285,raw_annual_energy!$D:$D,T$269,raw_annual_energy!$A:$A,mainzone)/1000","v":0},{"$f":"SUMIFS(raw_annual_energy!$F:$F,Lists!$S:$S,$C285,raw_annual_energy!$D:$D,U$269,raw_annual_energy!$A:$A,mainzone)/1000","v":0},{"$f":"SUMIFS(raw_annual_energy!$F:$F,Lists!$S:$S,$C285,raw_annual_energy!$D:$D,V$269,raw_annual_energy!$A:$A,mainzone)/1000","v":0},{"$f":"SUMIFS(raw_annual_energy!$F:$F,Lists!$S:$S,$C285,raw_annual_energy!$D:$D,W$269,raw_annual_energy!$A:$A,mainzone)/1000","v":0},{"$f":"SUMIFS(raw_annual_energy!$F:$F,Lists!$S:$S,$C285,raw_annual_energy!$D:$D,X$269,raw_annual_energy!$A:$A,mainzone)/1000","v":0},{"$f":"SUMIFS(raw_annual_energy!$F:$F,Lists!$S:$S,$C285,raw_annual_energy!$D:$D,Y$269,raw_annual_energy!$A:$A,mainzone)/1000","v":0},{"$f":"SUMIFS(raw_annual_energy!$F:$F,Lists!$S:$S,$C285,raw_annual_energy!$D:$D,Z$269,raw_annual_energy!$A:$A,mainzone)/1000","v":0},{"$f":"SUMIFS(raw_annual_energy!$F:$F,Lists!$S:$S,$C285,raw_annual_energy!$D:$D,AA$269,raw_annual_energy!$A:$A,mainzone)/1000","v":0},{"$f":"SUMIFS(raw_annual_energy!$F:$F,Lists!$S:$S,$C285,raw_annual_energy!$D:$D,AB$269,raw_annual_energy!$A:$A,mainzone)/1000","v":0},{"$f":"SUMIFS(raw_annual_energy!$F:$F,Lists!$S:$S,$C285,raw_annual_energy!$D:$D,AC$269,raw_annual_energy!$A:$A,mainzone)/1000","v":0},{"$f":"SUMIFS(raw_annual_energy!$F:$F,Lists!$S:$S,$C285,raw_annual_energy!$D:$D,AD$269,raw_annual_energy!$A:$A,mainzone)/1000","v":0},{"$f":"SUMIFS(raw_annual_energy!$F:$F,Lists!$S:$S,$C285,raw_annual_energy!$D:$D,AE$269,raw_annual_energy!$A:$A,mainzone)/1000","v":0},{"$f":"SUMIFS(raw_annual_energy!$F:$F,Lists!$S:$S,$C285,raw_annual_energy!$D:$D,AF$269,raw_annual_energy!$A:$A,mainzone)/1000","v":0},{"$f":"SUMIFS(raw_annual_energy!$F:$F,Lists!$S:$S,$C285,raw_annual_energy!$D:$D,AG$269,raw_annual_energy!$A:$A,mainzone)/1000","v":0},{"$f":"SUMIFS(raw_annual_energy!$F:$F,Lists!$S:$S,$C285,raw_annual_energy!$D:$D,AH$269,raw_annual_energy!$A:$A,mainzone)/1000","v":0},{"$f":"SUMIFS(raw_annual_energy!$F:$F,Lists!$S:$S,$C285,raw_annual_energy!$D:$D,AI$269,raw_annual_energy!$A:$A,mainzone)/1000","v":0},{"$f":"SUMIFS(raw_annual_energy!$F:$F,Lists!$S:$S,$C285,raw_annual_energy!$D:$D,AJ$269,raw_annual_energy!$A:$A,mainzone)/1000","v":0},{"$f":"SUMIFS(raw_annual_energy!$F:$F,Lists!$S:$S,$C285,raw_annual_energy!$D:$D,AK$269,raw_annual_energy!$A:$A,mainzone)/1000","v":0},{"$f":"SUMIFS(raw_annual_energy!$F:$F,Lists!$S:$S,$C285,raw_annual_energy!$D:$D,AL$269,raw_annual_energy!$A:$A,mainzone)/1000","v":0},{"$f":"SUMIFS(raw_annual_energy!$F:$F,Lists!$S:$S,$C285,raw_annual_energy!$D:$D,AM$269,raw_annual_energy!$A:$A,mainzone)/1000","v":0},{"$f":"SUMIFS(raw_annual_energy!$F:$F,Lists!$S:$S,$C285,raw_annual_energy!$D:$D,AN$269,raw_annual_energy!$A:$A,mainzone)/1000","v":0}]
[null,null,"Pumped_Hydro","total GWh",{"$f":"E270+E282","v":0},0,0,0,0,-187.97050116102119,-215.52674911760289,-272.2996392556621,-339.34889079957469,-364.10133750604587,0,-829.06254390441904,0,0,0,{"$f":"T270+T282","v":-1864.4310329310667},0,0,0,0,0,0,0,0,0,0,0,0,0,0,-1932.699661809153,0,0,0,0,0]
[null,null,"Li_Battery","total GWh",{"$f":"E271+E283","v":0},0,0,0,0,-570.1099885898559,-1140.5427556191219,-1198.3373982806752,-1350.8633327794698,-1803.2095200781473,0,-2794.0742814733353,0,0,0,{"$f":"T271+T283","v":-3836.5577084325664},{"$f":"U271+U283","v":0},0,0,0,0,0,0,0,0,0,0,0,0,0,-25664.917041620381,0,0,0,0,0]
[null,null,"BTM_Li_Battery","total GWh",{"$f":"E272+E284","v":0},0,0,0,0,-12.8165451163668,-11.338248010523301,-11.960827305706299,-12.3916111861058,-12.4687982536496,0,-13.8945540091688,0,0,0,{"$f":"T272+T284","v":-17.044249658047399},null,null,null,null,{"$f":"Y272+Y284","v":0},0,0,0,0,0,0,0,0,0,-36.714874808186401,0,0,0,0,0]
[null,null,"Flow_Battery","total GWh",{"$f":"E273+E285","v":0},0,0,0,0,0,0,0,0,0,0,0,0,0,0,0,0,0,0,0,0,0,0,0,0,0,0,0,0,0,0,0,0,0,0,0]
[null,null,"Storage Losses Total","total GWh",{"$f":"SUM(E286:E289)","v":0},{"$f":"SUM(F286:F289)","v":0},0,0,0,-770.89703486724386,-1367.4077527472482,-1482.5978648420435,-1702.6038347651504,-2179.7796558378432,0,-3637.0313793869232,0,0,0,{"$f":"SUM(T286:T289)","v":-5718.0329910216806},0,0,0,0,0,0,0,0,0,0,0,0,0,0,-27634.331578237721,0,0,0,0,0]
[]
[]
[null,"Capacity Not Retained"]
[]
[null,null,"Technology","Unit",2015,{"$f":"E295+1","v":2016},2017,2018,2019,2020,2021,2022,2023,2024,2025,2026,2027,2028,2029,2030,2031,2032,2033,2034,2035,2036,2037,2038,2039,2040,2041,2042,2043,2044,2045,2046,2047,2048,2049,2050]
[null,null,"CAISO_Coal","MW",null,{"$f":"IF(IFERROR(MATCH(F$295,model_years,0),0)>1,SUMIFS(raw_resource_build!$F:$F,raw_resource_build!$E:$E,'Portfolio Analytics'!$C296,raw_resource_build!$C:$C,mainzone,raw_resource_build!$A:$A,INDEX(model_years,MATCH(F$295,model_years,0)-1))-SUMIFS(raw_resource_build!$F:$F,raw_resource_build!$E:$E,'Portfolio Analytics'!$C296,raw_resource_build!$C:$C,mainzone,raw_resource_build!$A:$A,'Portfolio Analytics'!F$295),0)","v":0},{"$f":"IF(IFERROR(MATCH(G$295,model_years,0),0)>1,SUMIFS(raw_resource_build!$F:$F,raw_resource_build!$E:$E,'Portfolio Analytics'!$C296,raw_resource_build!$C:$C,mainzone,raw_resource_build!$A:$A,INDEX(model_years,MATCH(G$295,model_years,0)-1))-SUMIFS(raw_resource_build!$F:$F,raw_resource_build!$E:$E,'Portfolio Analytics'!$C296,raw_resource_build!$C:$C,mainzone,raw_resource_build!$A:$A,'Portfolio Analytics'!G$295),0)","v":0},{"$f":"IF(IFERROR(MATCH(H$295,model_years,0),0)>1,SUMIFS(raw_resource_build!$F:$F,raw_resource_build!$E:$E,'Portfolio Analytics'!$C296,raw_resource_build!$C:$C,mainzone,raw_resource_build!$A:$A,INDEX(model_years,MATCH(H$295,model_years,0)-1))-SUMIFS(raw_resource_build!$F:$F,raw_resource_build!$E:$E,'Portfolio Analytics'!$C296,raw_resource_build!$C:$C,mainzone,raw_resource_build!$A:$A,'Portfolio Analytics'!H$295),0)","v":0},{"$f":"IF(IFERROR(MATCH(I$295,model_years,0),0)>1,SUMIFS(raw_resource_build!$F:$F,raw_resource_build!$E:$E,'Portfolio Analytics'!$C296,raw_resource_build!$C:$C,mainzone,raw_resource_build!$A:$A,INDEX(model_years,MATCH(I$295,model_years,0)-1))-SUMIFS(raw_resource_build!$F:$F,raw_resource_build!$E:$E,'Portfolio Analytics'!$C296,raw_resource_build!$C:$C,mainzone,raw_resource_build!$A:$A,'Portfolio Analytics'!I$295),0)","v":0},{"$f":"IF(IFERROR(MATCH(J$295,model_years,0),0)>1,SUMIFS(raw_resource_build!$F:$F,raw_resource_build!$E:$E,'Portfolio Analytics'!$C296,raw_resource_build!$C:$C,mainzone,raw_resource_build!$A:$A,INDEX(model_years,MATCH(J$295,model_years,0)-1))-SUMIFS(raw_resource_build!$F:$F,raw_resource_build!$E:$E,'Portfolio Analytics'!$C296,raw_resource_build!$C:$C,mainzone,raw_resource_build!$A:$A,'Portfolio Analytics'!J$295),0)","v":0},{"$f":"IF(IFERROR(MATCH(K$295,model_years,0),0)>1,SUMIFS(raw_resource_build!$F:$F,raw_resource_build!$E:$E,'Portfolio Analytics'!$C296,raw_resource_build!$C:$C,mainzone,raw_resource_build!$A:$A,INDEX(model_years,MATCH(K$295,model_years,0)-1))-SUMIFS(raw_resource_build!$F:$F,raw_resource_build!$E:$E,'Portfolio Analytics'!$C296,raw_resource_build!$C:$C,mainzone,raw_resource_build!$A:$A,'Portfolio Analytics'!K$295),0)","v":0},{"$f":"IF(IFERROR(MATCH(L$295,model_years,0),0)>1,SUMIFS(raw_resource_build!$F:$F,raw_resource_build!$E:$E,'Portfolio Analytics'!$C296,raw_resource_build!$C:$C,mainzone,raw_resource_build!$A:$A,INDEX(model_years,MATCH(L$295,model_years,0)-1))-SUMIFS(raw_resource_build!$F:$F,raw_resource_build!$E:$E,'Portfolio Analytics'!$C296,raw_resource_build!$C:$C,mainzone,raw_resource_build!$A:$A,'Portfolio Analytics'!L$295),0)","v":0},{"$f":"IF(IFERROR(MATCH(M$295,model_years,0),0)>1,SUMIFS(raw_resource_build!$F:$F,raw_resource_build!$E:$E,'Portfolio Analytics'!$C296,raw_resource_build!$C:$C,mainzone,raw_resource_build!$A:$A,INDEX(model_years,MATCH(M$295,model_years,0)-1))-SUMIFS(raw_resource_build!$F:$F,raw_resource_build!$E:$E,'Portfolio Analytics'!$C296,raw_resource_build!$C:$C,mainzone,raw_resource_build!$A:$A,'Portfolio Analytics'!M$295),0)","v":0},{"$f":"IF(IFERROR(MATCH(N$295,model_years,0),0)>1,SUMIFS(raw_resource_build!$F:$F,raw_resource_build!$E:$E,'Portfolio Analytics'!$C296,raw_resource_build!$C:$C,mainzone,raw_resource_build!$A:$A,INDEX(model_years,MATCH(N$295,model_years,0)-1))-SUMIFS(raw_resource_build!$F:$F,raw_resource_build!$E:$E,'Portfolio Analytics'!$C296,raw_resource_build!$C:$C,mainzone,raw_resource_build!$A:$A,'Portfolio Analytics'!N$295),0)","v":0},{"$f":"IF(IFERROR(MATCH(O$295,model_years,0),0)>1,SUMIFS(raw_resource_build!$F:$F,raw_resource_build!$E:$E,'Portfolio Analytics'!$C296,raw_resource_build!$C:$C,mainzone,raw_resource_build!$A:$A,INDEX(model_years,MATCH(O$295,model_years,0)-1))-SUMIFS(raw_resource_build!$F:$F,raw_resource_build!$E:$E,'Portfolio Analytics'!$C296,raw_resource_build!$C:$C,mainzone,raw_resource_build!$A:$A,'Portfolio Analytics'!O$295),0)","v":0},{"$f":"IF(IFERROR(MATCH(P$295,model_years,0),0)>1,SUMIFS(raw_resource_build!$F:$F,raw_resource_build!$E:$E,'Portfolio Analytics'!$C296,raw_resource_build!$C:$C,mainzone,raw_resource_build!$A:$A,INDEX(model_years,MATCH(P$295,model_years,0)-1))-SUMIFS(raw_resource_build!$F:$F,raw_resource_build!$E:$E,'Portfolio Analytics'!$C296,raw_resource_build!$C:$C,mainzone,raw_resource_build!$A:$A,'Portfolio Analytics'!P$295),0)","v":480},{"$f":"IF(IFERROR(MATCH(Q$295,model_years,0),0)>1,SUMIFS(raw_resource_build!$F:$F,raw_resource_build!$E:$E,'Portfolio Analytics'!$C296,raw_resource_build!$C:$C,mainzone,raw_resource_build!$A:$A,INDEX(model_years,MATCH(Q$295,model_years,0)-1))-SUMIFS(raw_resource_build!$F:$F,raw_resource_build!$E:$E,'Portfolio Analytics'!$C296,raw_resource_build!$C:$C,mainzone,raw_resource_build!$A:$A,'Portfolio Analytics'!Q$295),0)","v":0},{"$f":"IF(IFERROR(MATCH(R$295,model_years,0),0)>1,SUMIFS(raw_resource_build!$F:$F,raw_resource_build!$E:$E,'Portfolio Analytics'!$C296,raw_resource_build!$C:$C,mainzone,raw_resource_build!$A:$A,INDEX(model_years,MATCH(R$295,model_years,0)-1))-SUMIFS(raw_resource_build!$F:$F,raw_resource_build!$E:$E,'Portfolio Analytics'!$C296,raw_resource_build!$C:$C,mainzone,raw_resource_build!$A:$A,'Portfolio Analytics'!R$295),0)","v":0},{"$f":"IF(IFERROR(MATCH(S$295,model_years,0),0)>1,SUMIFS(raw_resource_build!$F:$F,raw_resource_build!$E:$E,'Portfolio Analytics'!$C296,raw_resource_build!$C:$C,mainzone,raw_resource_build!$A:$A,INDEX(model_years,MATCH(S$295,model_years,0)-1))-SUMIFS(raw_resource_build!$F:$F,raw_resource_build!$E:$E,'Portfolio Analytics'!$C296,raw_resource_build!$C:$C,mainzone,raw_resource_build!$A:$A,'Portfolio Analytics'!S$295),0)","v":0},{"$f":"IF(IFERROR(MATCH(T$295,model_years,0),0)>1,SUMIFS(raw_resource_build!$F:$F,raw_resource_build!$E:$E,'Portfolio Analytics'!$C296,raw_resource_build!$C:$C,mainzone,raw_resource_build!$A:$A,INDEX(model_years,MATCH(T$295,model_years,0)-1))-SUMIFS(raw_resource_build!$F:$F,raw_resource_build!$E:$E,'Portfolio Analytics'!$C296,raw_resource_build!$C:$C,mainzone,raw_resource_build!$A:$A,'Portfolio Analytics'!T$295),0)","v":0},{"$f":"IF(IFERROR(MATCH(U$295,model_years,0),0)>1,SUMIFS(raw_resource_build!$F:$F,raw_resource_build!$E:$E,'Portfolio Analytics'!$C296,raw_resource_build!$C:$C,mainzone,raw_resource_build!$A:$A,INDEX(model_years,MATCH(U$295,model_years,0)-1))-SUMIFS(raw_resource_build!$F:$F,raw_resource_build!$E:$E,'Portfolio Analytics'!$C296,raw_resource_build!$C:$C,mainzone,raw_resource_build!$A:$A,'Portfolio Analytics'!U$295),0)","v":0},{"$f":"IF(IFERROR(MATCH(V$295,model_years,0),0)>1,SUMIFS(raw_resource_build!$F:$F,raw_resource_build!$E:$E,'Portfolio Analytics'!$C296,raw_resource_build!$C:$C,mainzone,raw_resource_build!$A:$A,INDEX(model_years,MATCH(V$295,model_years,0)-1))-SUMIFS(raw_resource_build!$F:$F,raw_resource_build!$E:$E,'Portfolio Analytics'!$C296,raw_resource_build!$C:$C,mainzone,raw_resource_build!$A:$A,'Portfolio Analytics'!V$295),0)","v":0},{"$f":"IF(IFERROR(MATCH(W$295,model_years,0),0)>1,SUMIFS(raw_resource_build!$F:$F,raw_resource_build!$E:$E,'Portfolio Analytics'!$C296,raw_resource_build!$C:$C,mainzone,raw_resource_build!$A:$A,INDEX(model_years,MATCH(W$295,model_years,0)-1))-SUMIFS(raw_resource_build!$F:$F,raw_resource_build!$E:$E,'Portfolio Analytics'!$C296,raw_resource_build!$C:$C,mainzone,raw_resource_build!$A:$A,'Portfolio Analytics'!W$295),0)","v":0},{"$f":"IF(IFERROR(MATCH(X$295,model_years,0),0)>1,SUMIFS(raw_resource_build!$F:$F,raw_resource_build!$E:$E,'Portfolio Analytics'!$C296,raw_resource_build!$C:$C,mainzone,raw_resource_build!$A:$A,INDEX(model_years,MATCH(X$295,model_years,0)-1))-SUMIFS(raw_resource_build!$F:$F,raw_resource_build!$E:$E,'Portfolio Analytics'!$C296,raw_resource_build!$C:$C,mainzone,raw_resource_build!$A:$A,'Portfolio Analytics'!X$295),0)","v":0},{"$f":"IF(IFERROR(MATCH(Y$295,model_years,0),0)>1,SUMIFS(raw_resource_build!$F:$F,raw_resource_build!$E:$E,'Portfolio Analytics'!$C296,raw_resource_build!$C:$C,mainzone,raw_resource_build!$A:$A,INDEX(model_years,MATCH(Y$295,model_years,0)-1))-SUMIFS(raw_resource_build!$F:$F,raw_resource_build!$E:$E,'Portfolio Analytics'!$C296,raw_resource_build!$C:$C,mainzone,raw_resource_build!$A:$A,'Portfolio Analytics'!Y$295),0)","v":0},{"$f":"IF(IFERROR(MATCH(Z$295,model_years,0),0)>1,SUMIFS(raw_resource_build!$F:$F,raw_resource_build!$E:$E,'Portfolio Analytics'!$C296,raw_resource_build!$C:$C,mainzone,raw_resource_build!$A:$A,INDEX(model_years,MATCH(Z$295,model_years,0)-1))-SUMIFS(raw_resource_build!$F:$F,raw_resource_build!$E:$E,'Portfolio Analytics'!$C296,raw_resource_build!$C:$C,mainzone,raw_resource_build!$A:$A,'Portfolio Analytics'!Z$295),0)","v":0},{"$f":"IF(IFERROR(MATCH(AA$295,model_years,0),0)>1,SUMIFS(raw_resource_build!$F:$F,raw_resource_build!$E:$E,'Portfolio Analytics'!$C296,raw_resource_build!$C:$C,mainzone,raw_resource_build!$A:$A,INDEX(model_years,MATCH(AA$295,model_years,0)-1))-SUMIFS(raw_resource_build!$F:$F,raw_resource_build!$E:$E,'Portfolio Analytics'!$C296,raw_resource_build!$C:$C,mainzone,raw_resource_build!$A:$A,'Portfolio Analytics'!AA$295),0)","v":0},{"$f":"IF(IFERROR(MATCH(AB$295,model_years,0),0)>1,SUMIFS(raw_resource_build!$F:$F,raw_resource_build!$E:$E,'Portfolio Analytics'!$C296,raw_resource_build!$C:$C,mainzone,raw_resource_build!$A:$A,INDEX(model_years,MATCH(AB$295,model_years,0)-1))-SUMIFS(raw_resource_build!$F:$F,raw_resource_build!$E:$E,'Portfolio Analytics'!$C296,raw_resource_build!$C:$C,mainzone,raw_resource_build!$A:$A,'Portfolio Analytics'!AB$295),0)","v":0},{"$f":"IF(IFERROR(MATCH(AC$295,model_years,0),0)>1,SUMIFS(raw_resource_build!$F:$F,raw_resource_build!$E:$E,'Portfolio Analytics'!$C296,raw_resource_build!$C:$C,mainzone,raw_resource_build!$A:$A,INDEX(model_years,MATCH(AC$295,model_years,0)-1))-SUMIFS(raw_resource_build!$F:$F,raw_resource_build!$E:$E,'Portfolio Analytics'!$C296,raw_resource_build!$C:$C,mainzone,raw_resource_build!$A:$A,'Portfolio Analytics'!AC$295),0)","v":0},{"$f":"IF(IFERROR(MATCH(AD$295,model_years,0),0)>1,SUMIFS(raw_resource_build!$F:$F,raw_resource_build!$E:$E,'Portfolio Analytics'!$C296,raw_resource_build!$C:$C,mainzone,raw_resource_build!$A:$A,INDEX(model_years,MATCH(AD$295,model_years,0)-1))-SUMIFS(raw_resource_build!$F:$F,raw_resource_build!$E:$E,'Portfolio Analytics'!$C296,raw_resource_build!$C:$C,mainzone,raw_resource_build!$A:$A,'Portfolio Analytics'!AD$295),0)","v":0},{"$f":"IF(IFERROR(MATCH(AE$295,model_years,0),0)>1,SUMIFS(raw_resource_build!$F:$F,raw_resource_build!$E:$E,'Portfolio Analytics'!$C296,raw_resource_build!$C:$C,mainzone,raw_resource_build!$A:$A,INDEX(model_years,MATCH(AE$295,model_years,0)-1))-SUMIFS(raw_resource_build!$F:$F,raw_resource_build!$E:$E,'Portfolio Analytics'!$C296,raw_resource_build!$C:$C,mainzone,raw_resource_build!$A:$A,'Portfolio Analytics'!AE$295),0)","v":0},{"$f":"IF(IFERROR(MATCH(AF$295,model_years,0),0)>1,SUMIFS(raw_resource_build!$F:$F,raw_resource_build!$E:$E,'Portfolio Analytics'!$C296,raw_resource_build!$C:$C,mainzone,raw_resource_build!$A:$A,INDEX(model_years,MATCH(AF$295,model_years,0)-1))-SUMIFS(raw_resource_build!$F:$F,raw_resource_build!$E:$E,'Portfolio Analytics'!$C296,raw_resource_build!$C:$C,mainzone,raw_resource_build!$A:$A,'Portfolio Analytics'!AF$295),0)","v":0},{"$f":"IF(IFERROR(MATCH(AG$295,model_years,0),0)>1,SUMIFS(raw_resource_build!$F:$F,raw_resource_build!$E:$E,'Portfolio Analytics'!$C296,raw_resource_build!$C:$C,mainzone,raw_resource_build!$A:$A,INDEX(model_years,MATCH(AG$295,model_years,0)-1))-SUMIFS(raw_resource_build!$F:$F,raw_resource_build!$E:$E,'Portfolio Analytics'!$C296,raw_resource_build!$C:$C,mainzone,raw_resource_build!$A:$A,'Portfolio Analytics'!AG$295),0)","v":0},{"$f":"IF(IFERROR(MATCH(AH$295,model_years,0),0)>1,SUMIFS(raw_resource_build!$F:$F,raw_resource_build!$E:$E,'Portfolio Analytics'!$C296,raw_resource_build!$C:$C,mainzone,raw_resource_build!$A:$A,INDEX(model_years,MATCH(AH$295,model_years,0)-1))-SUMIFS(raw_resource_build!$F:$F,raw_resource_build!$E:$E,'Portfolio Analytics'!$C296,raw_resource_build!$C:$C,mainzone,raw_resource_build!$A:$A,'Portfolio Analytics'!AH$295),0)","v":0},{"$f":"IF(IFERROR(MATCH(AI$295,model_years,0),0)>1,SUMIFS(raw_resource_build!$F:$F,raw_resource_build!$E:$E,'Portfolio Analytics'!$C296,raw_resource_build!$C:$C,mainzone,raw_resource_build!$A:$A,INDEX(model_years,MATCH(AI$295,model_years,0)-1))-SUMIFS(raw_resource_build!$F:$F,raw_resource_build!$E:$E,'Portfolio Analytics'!$C296,raw_resource_build!$C:$C,mainzone,raw_resource_build!$A:$A,'Portfolio Analytics'!AI$295),0)","v":0},{"$f":"IF(IFERROR(MATCH(AJ$295,model_years,0),0)>1,SUMIFS(raw_resource_build!$F:$F,raw_resource_build!$E:$E,'Portfolio Analytics'!$C296,raw_resource_build!$C:$C,mainzone,raw_resource_build!$A:$A,INDEX(model_years,MATCH(AJ$295,model_years,0)-1))-SUMIFS(raw_resource_build!$F:$F,raw_resource_build!$E:$E,'Portfolio Analytics'!$C296,raw_resource_build!$C:$C,mainzone,raw_resource_build!$A:$A,'Portfolio Analytics'!AJ$295),0)","v":0},{"$f":"IF(IFERROR(MATCH(AK$295,model_years,0),0)>1,SUMIFS(raw_resource_build!$F:$F,raw_resource_build!$E:$E,'Portfolio Analytics'!$C296,raw_resource_build!$C:$C,mainzone,raw_resource_build!$A:$A,INDEX(model_years,MATCH(AK$295,model_years,0)-1))-SUMIFS(raw_resource_build!$F:$F,raw_resource_build!$E:$E,'Portfolio Analytics'!$C296,raw_resource_build!$C:$C,mainzone,raw_resource_build!$A:$A,'Portfolio Analytics'!AK$295),0)","v":0},{"$f":"IF(IFERROR(MATCH(AL$295,model_years,0),0)>1,SUMIFS(raw_resource_build!$F:$F,raw_resource_build!$E:$E,'Portfolio Analytics'!$C296,raw_resource_build!$C:$C,mainzone,raw_resource_build!$A:$A,INDEX(model_years,MATCH(AL$295,model_years,0)-1))-SUMIFS(raw_resource_build!$F:$F,raw_resource_build!$E:$E,'Portfolio Analytics'!$C296,raw_resource_build!$C:$C,mainzone,raw_resource_build!$A:$A,'Portfolio Analytics'!AL$295),0)","v":0},{"$f":"IF(IFERROR(MATCH(AM$295,model_years,0),0)>1,SUMIFS(raw_resource_build!$F:$F,raw_resource_build!$E:$E,'Portfolio Analytics'!$C296,raw_resource_build!$C:$C,mainzone,raw_resource_build!$A:$A,INDEX(model_years,MATCH(AM$295,model_years,0)-1))-SUMIFS(raw_resource_build!$F:$F,raw_resource_build!$E:$E,'Portfolio Analytics'!$C296,raw_resource_build!$C:$C,mainzone,raw_resource_build!$A:$A,'Portfolio Analytics'!AM$295),0)","v":0},{"$f":"IF(IFERROR(MATCH(AN$295,model_years,0),0)>1,SUMIFS(raw_resource_build!$F:$F,raw_resource_build!$E:$E,'Portfolio Analytics'!$C296,raw_resource_build!$C:$C,mainzone,raw_resource_build!$A:$A,INDEX(model_years,MATCH(AN$295,model_years,0)-1))-SUMIFS(raw_resource_build!$F:$F,raw_resource_build!$E:$E,'Portfolio Analytics'!$C296,raw_resource_build!$C:$C,mainzone,raw_resource_build!$A:$A,'Portfolio Analytics'!AN$295),0)","v":0}]
[null,null,"CAISO_ST","MW",null,{"$f":"IF(ISNUMBER(MATCH(F$295,model_years,0)),SUMIFS(raw_resource_build!$W:$W,raw_resource_build!$E:$E,'Portfolio Analytics'!$C297,raw_resource_build!$C:$C,mainzone,raw_resource_build!$A:$A,'Portfolio Analytics'!F$295)+SUMIFS(raw_resource_build!$Y:$Y,raw_resource_build!$E:$E,'Portfolio Analytics'!$C297,raw_resource_build!$C:$C,mainzone,raw_resource_build!$A:$A,'Portfolio Analytics'!F$295)-SUM($E297:E297),0)","v":0},{"$f":"IF(ISNUMBER(MATCH(G$295,model_years,0)),SUMIFS(raw_resource_build!$W:$W,raw_resource_build!$E:$E,'Portfolio Analytics'!$C297,raw_resource_build!$C:$C,mainzone,raw_resource_build!$A:$A,'Portfolio Analytics'!G$295)+SUMIFS(raw_resource_build!$Y:$Y,raw_resource_build!$E:$E,'Portfolio Analytics'!$C297,raw_resource_build!$C:$C,mainzone,raw_resource_build!$A:$A,'Portfolio Analytics'!G$295)-SUM($E297:F297),0)","v":0},{"$f":"IF(ISNUMBER(MATCH(H$295,model_years,0)),SUMIFS(raw_resource_build!$W:$W,raw_resource_build!$E:$E,'Portfolio Analytics'!$C297,raw_resource_build!$C:$C,mainzone,raw_resource_build!$A:$A,'Portfolio Analytics'!H$295)+SUMIFS(raw_resource_build!$Y:$Y,raw_resource_build!$E:$E,'Portfolio Analytics'!$C297,raw_resource_build!$C:$C,mainzone,raw_resource_build!$A:$A,'Portfolio Analytics'!H$295)-SUM($E297:G297),0)","v":0},{"$f":"IF(ISNUMBER(MATCH(I$295,model_years,0)),SUMIFS(raw_resource_build!$W:$W,raw_resource_build!$E:$E,'Portfolio Analytics'!$C297,raw_resource_build!$C:$C,mainzone,raw_resource_build!$A:$A,'Portfolio Analytics'!I$295)+SUMIFS(raw_resource_build!$Y:$Y,raw_resource_build!$E:$E,'Portfolio Analytics'!$C297,raw_resource_build!$C:$C,mainzone,raw_resource_build!$A:$A,'Portfolio Analytics'!I$295)-SUM($E297:H297),0)","v":0},{"$f":"IF(ISNUMBER(MATCH(J$295,model_years,0)),SUMIFS(raw_resource_build!$W:$W,raw_resource_build!$E:$E,'Portfolio Analytics'!$C297,raw_resource_build!$C:$C,mainzone,raw_resource_build!$A:$A,'Portfolio Analytics'!J$295)+SUMIFS(raw_resource_build!$Y:$Y,raw_resource_build!$E:$E,'Portfolio Analytics'!$C297,raw_resource_build!$C:$C,mainzone,raw_resource_build!$A:$A,'Portfolio Analytics'!J$295)-SUM($E297:I297),0)","v":0},{"$f":"IF(ISNUMBER(MATCH(K$295,model_years,0)),SUMIFS(raw_resource_build!$W:$W,raw_resource_build!$E:$E,'Portfolio Analytics'!$C297,raw_resource_build!$C:$C,mainzone,raw_resource_build!$A:$A,'Portfolio Analytics'!K$295)+SUMIFS(raw_resource_build!$Y:$Y,raw_resource_build!$E:$E,'Portfolio Analytics'!$C297,raw_resource_build!$C:$C,mainzone,raw_resource_build!$A:$A,'Portfolio Analytics'!K$295)-SUM($E297:J297),0)","v":0},{"$f":"IF(ISNUMBER(MATCH(L$295,model_years,0)),SUMIFS(raw_resource_build!$W:$W,raw_resource_build!$E:$E,'Portfolio Analytics'!$C297,raw_resource_build!$C:$C,mainzone,raw_resource_build!$A:$A,'Portfolio Analytics'!L$295)+SUMIFS(raw_resource_build!$Y:$Y,raw_resource_build!$E:$E,'Portfolio Analytics'!$C297,raw_resource_build!$C:$C,mainzone,raw_resource_build!$A:$A,'Portfolio Analytics'!L$295)-SUM($E297:K297),0)","v":0},{"$f":"IF(ISNUMBER(MATCH(M$295,model_years,0)),SUMIFS(raw_resource_build!$W:$W,raw_resource_build!$E:$E,'Portfolio Analytics'!$C297,raw_resource_build!$C:$C,mainzone,raw_resource_build!$A:$A,'Portfolio Analytics'!M$295)+SUMIFS(raw_resource_build!$Y:$Y,raw_resource_build!$E:$E,'Portfolio Analytics'!$C297,raw_resource_build!$C:$C,mainzone,raw_resource_build!$A:$A,'Portfolio Analytics'!M$295)-SUM($E297:L297),0)","v":0},{"$f":"IF(ISNUMBER(MATCH(N$295,model_years,0)),SUMIFS(raw_resource_build!$W:$W,raw_resource_build!$E:$E,'Portfolio Analytics'!$C297,raw_resource_build!$C:$C,mainzone,raw_resource_build!$A:$A,'Portfolio Analytics'!N$295)+SUMIFS(raw_resource_build!$Y:$Y,raw_resource_build!$E:$E,'Portfolio Analytics'!$C297,raw_resource_build!$C:$C,mainzone,raw_resource_build!$A:$A,'Portfolio Analytics'!N$295)-SUM($E297:M297),0)","v":0},{"$f":"IF(ISNUMBER(MATCH(O$295,model_years,0)),SUMIFS(raw_resource_build!$W:$W,raw_resource_build!$E:$E,'Portfolio Analytics'!$C297,raw_resource_build!$C:$C,mainzone,raw_resource_build!$A:$A,'Portfolio Analytics'!O$295)+SUMIFS(raw_resource_build!$Y:$Y,raw_resource_build!$E:$E,'Portfolio Analytics'!$C297,raw_resource_build!$C:$C,mainzone,raw_resource_build!$A:$A,'Portfolio Analytics'!O$295)-SUM($E297:N297),0)","v":0},{"$f":"IF(ISNUMBER(MATCH(P$295,model_years,0)),SUMIFS(raw_resource_build!$W:$W,raw_resource_build!$E:$E,'Portfolio Analytics'!$C297,raw_resource_build!$C:$C,mainzone,raw_resource_build!$A:$A,'Portfolio Analytics'!P$295)+SUMIFS(raw_resource_build!$Y:$Y,raw_resource_build!$E:$E,'Portfolio Analytics'!$C297,raw_resource_build!$C:$C,mainzone,raw_resource_build!$A:$A,'Portfolio Analytics'!P$295)-SUM($E297:O297),0)","v":0},{"$f":"IF(ISNUMBER(MATCH(Q$295,model_years,0)),SUMIFS(raw_resource_build!$W:$W,raw_resource_build!$E:$E,'Portfolio Analytics'!$C297,raw_resource_build!$C:$C,mainzone,raw_resource_build!$A:$A,'Portfolio Analytics'!Q$295)+SUMIFS(raw_resource_build!$Y:$Y,raw_resource_build!$E:$E,'Portfolio Analytics'!$C297,raw_resource_build!$C:$C,mainzone,raw_resource_build!$A:$A,'Portfolio Analytics'!Q$295)-SUM($E297:P297),0)","v":0},{"$f":"IF(ISNUMBER(MATCH(R$295,model_years,0)),SUMIFS(raw_resource_build!$W:$W,raw_resource_build!$E:$E,'Portfolio Analytics'!$C297,raw_resource_build!$C:$C,mainzone,raw_resource_build!$A:$A,'Portfolio Analytics'!R$295)+SUMIFS(raw_resource_build!$Y:$Y,raw_resource_build!$E:$E,'Portfolio Analytics'!$C297,raw_resource_build!$C:$C,mainzone,raw_resource_build!$A:$A,'Portfolio Analytics'!R$295)-SUM($E297:Q297),0)","v":0},{"$f":"IF(ISNUMBER(MATCH(S$295,model_years,0)),SUMIFS(raw_resource_build!$W:$W,raw_resource_build!$E:$E,'Portfolio Analytics'!$C297,raw_resource_build!$C:$C,mainzone,raw_resource_build!$A:$A,'Portfolio Analytics'!S$295)+SUMIFS(raw_resource_build!$Y:$Y,raw_resource_build!$E:$E,'Portfolio Analytics'!$C297,raw_resource_build!$C:$C,mainzone,raw_resource_build!$A:$A,'Portfolio Analytics'!S$295)-SUM($E297:R297),0)","v":0},{"$f":"IF(ISNUMBER(MATCH(T$295,model_years,0)),SUMIFS(raw_resource_build!$W:$W,raw_resource_build!$E:$E,'Portfolio Analytics'!$C297,raw_resource_build!$C:$C,mainzone,raw_resource_build!$A:$A,'Portfolio Analytics'!T$295)+SUMIFS(raw_resource_build!$Y:$Y,raw_resource_build!$E:$E,'Portfolio Analytics'!$C297,raw_resource_build!$C:$C,mainzone,raw_resource_build!$A:$A,'Portfolio Analytics'!T$295)-SUM($E297:S297),0)","v":0},{"$f":"IF(ISNUMBER(MATCH(U$295,model_years,0)),SUMIFS(raw_resource_build!$W:$W,raw_resource_build!$E:$E,'Portfolio Analytics'!$C297,raw_resource_build!$C:$C,mainzone,raw_resource_build!$A:$A,'Portfolio Analytics'!U$295)+SUMIFS(raw_resource_build!$Y:$Y,raw_resource_build!$E:$E,'Portfolio Analytics'!$C297,raw_resource_build!$C:$C,mainzone,raw_resource_build!$A:$A,'Portfolio Analytics'!U$295)-SUM($E297:T297),0)","v":0},{"$f":"IF(ISNUMBER(MATCH(V$295,model_years,0)),SUMIFS(raw_resource_build!$W:$W,raw_resource_build!$E:$E,'Portfolio Analytics'!$C297,raw_resource_build!$C:$C,mainzone,raw_resource_build!$A:$A,'Portfolio Analytics'!V$295)+SUMIFS(raw_resource_build!$Y:$Y,raw_resource_build!$E:$E,'Portfolio Analytics'!$C297,raw_resource_build!$C:$C,mainzone,raw_resource_build!$A:$A,'Portfolio Analytics'!V$295)-SUM($E297:U297),0)","v":0},{"$f":"IF(ISNUMBER(MATCH(W$295,model_years,0)),SUMIFS(raw_resource_build!$W:$W,raw_resource_build!$E:$E,'Portfolio Analytics'!$C297,raw_resource_build!$C:$C,mainzone,raw_resource_build!$A:$A,'Portfolio Analytics'!W$295)+SUMIFS(raw_resource_build!$Y:$Y,raw_resource_build!$E:$E,'Portfolio Analytics'!$C297,raw_resource_build!$C:$C,mainzone,raw_resource_build!$A:$A,'Portfolio Analytics'!W$295)-SUM($E297:V297),0)","v":0},{"$f":"IF(ISNUMBER(MATCH(X$295,model_years,0)),SUMIFS(raw_resource_build!$W:$W,raw_resource_build!$E:$E,'Portfolio Analytics'!$C297,raw_resource_build!$C:$C,mainzone,raw_resource_build!$A:$A,'Portfolio Analytics'!X$295)+SUMIFS(raw_resource_build!$Y:$Y,raw_resource_build!$E:$E,'Portfolio Analytics'!$C297,raw_resource_build!$C:$C,mainzone,raw_resource_build!$A:$A,'Portfolio Analytics'!X$295)-SUM($E297:W297),0)","v":0},{"$f":"IF(ISNUMBER(MATCH(Y$295,model_years,0)),SUMIFS(raw_resource_build!$W:$W,raw_resource_build!$E:$E,'Portfolio Analytics'!$C297,raw_resource_build!$C:$C,mainzone,raw_resource_build!$A:$A,'Portfolio Analytics'!Y$295)+SUMIFS(raw_resource_build!$Y:$Y,raw_resource_build!$E:$E,'Portfolio Analytics'!$C297,raw_resource_build!$C:$C,mainzone,raw_resource_build!$A:$A,'Portfolio Analytics'!Y$295)-SUM($E297:X297),0)","v":0},{"$f":"IF(ISNUMBER(MATCH(Z$295,model_years,0)),SUMIFS(raw_resource_build!$W:$W,raw_resource_build!$E:$E,'Portfolio Analytics'!$C297,raw_resource_build!$C:$C,mainzone,raw_resource_build!$A:$A,'Portfolio Analytics'!Z$295)+SUMIFS(raw_resource_build!$Y:$Y,raw_resource_build!$E:$E,'Portfolio Analytics'!$C297,raw_resource_build!$C:$C,mainzone,raw_resource_build!$A:$A,'Portfolio Analytics'!Z$295)-SUM($E297:Y297),0)","v":0},{"$f":"IF(ISNUMBER(MATCH(AA$295,model_years,0)),SUMIFS(raw_resource_build!$W:$W,raw_resource_build!$E:$E,'Portfolio Analytics'!$C297,raw_resource_build!$C:$C,mainzone,raw_resource_build!$A:$A,'Portfolio Analytics'!AA$295)+SUMIFS(raw_resource_build!$Y:$Y,raw_resource_build!$E:$E,'Portfolio Analytics'!$C297,raw_resource_build!$C:$C,mainzone,raw_resource_build!$A:$A,'Portfolio Analytics'!AA$295)-SUM($E297:Z297),0)","v":0},{"$f":"IF(ISNUMBER(MATCH(AB$295,model_years,0)),SUMIFS(raw_resource_build!$W:$W,raw_resource_build!$E:$E,'Portfolio Analytics'!$C297,raw_resource_build!$C:$C,mainzone,raw_resource_build!$A:$A,'Portfolio Analytics'!AB$295)+SUMIFS(raw_resource_build!$Y:$Y,raw_resource_build!$E:$E,'Portfolio Analytics'!$C297,raw_resource_build!$C:$C,mainzone,raw_resource_build!$A:$A,'Portfolio Analytics'!AB$295)-SUM($E297:AA297),0)","v":0},{"$f":"IF(ISNUMBER(MATCH(AC$295,model_years,0)),SUMIFS(raw_resource_build!$W:$W,raw_resource_build!$E:$E,'Portfolio Analytics'!$C297,raw_resource_build!$C:$C,mainzone,raw_resource_build!$A:$A,'Portfolio Analytics'!AC$295)+SUMIFS(raw_resource_build!$Y:$Y,raw_resource_build!$E:$E,'Portfolio Analytics'!$C297,raw_resource_build!$C:$C,mainzone,raw_resource_build!$A:$A,'Portfolio Analytics'!AC$295)-SUM($E297:AB297),0)","v":0},{"$f":"IF(ISNUMBER(MATCH(AD$295,model_years,0)),SUMIFS(raw_resource_build!$W:$W,raw_resource_build!$E:$E,'Portfolio Analytics'!$C297,raw_resource_build!$C:$C,mainzone,raw_resource_build!$A:$A,'Portfolio Analytics'!AD$295)+SUMIFS(raw_resource_build!$Y:$Y,raw_resource_build!$E:$E,'Portfolio Analytics'!$C297,raw_resource_build!$C:$C,mainzone,raw_resource_build!$A:$A,'Portfolio Analytics'!AD$295)-SUM($E297:AC297),0)","v":0},{"$f":"IF(ISNUMBER(MATCH(AE$295,model_years,0)),SUMIFS(raw_resource_build!$W:$W,raw_resource_build!$E:$E,'Portfolio Analytics'!$C297,raw_resource_build!$C:$C,mainzone,raw_resource_build!$A:$A,'Portfolio Analytics'!AE$295)+SUMIFS(raw_resource_build!$Y:$Y,raw_resource_build!$E:$E,'Portfolio Analytics'!$C297,raw_resource_build!$C:$C,mainzone,raw_resource_build!$A:$A,'Portfolio Analytics'!AE$295)-SUM($E297:AD297),0)","v":0},{"$f":"IF(ISNUMBER(MATCH(AF$295,model_years,0)),SUMIFS(raw_resource_build!$W:$W,raw_resource_build!$E:$E,'Portfolio Analytics'!$C297,raw_resource_build!$C:$C,mainzone,raw_resource_build!$A:$A,'Portfolio Analytics'!AF$295)+SUMIFS(raw_resource_build!$Y:$Y,raw_resource_build!$E:$E,'Portfolio Analytics'!$C297,raw_resource_build!$C:$C,mainzone,raw_resource_build!$A:$A,'Portfolio Analytics'!AF$295)-SUM($E297:AE297),0)","v":0},{"$f":"IF(ISNUMBER(MATCH(AG$295,model_years,0)),SUMIFS(raw_resource_build!$W:$W,raw_resource_build!$E:$E,'Portfolio Analytics'!$C297,raw_resource_build!$C:$C,mainzone,raw_resource_build!$A:$A,'Portfolio Analytics'!AG$295)+SUMIFS(raw_resource_build!$Y:$Y,raw_resource_build!$E:$E,'Portfolio Analytics'!$C297,raw_resource_build!$C:$C,mainzone,raw_resource_build!$A:$A,'Portfolio Analytics'!AG$295)-SUM($E297:AF297),0)","v":0},{"$f":"IF(ISNUMBER(MATCH(AH$295,model_years,0)),SUMIFS(raw_resource_build!$W:$W,raw_resource_build!$E:$E,'Portfolio Analytics'!$C297,raw_resource_build!$C:$C,mainzone,raw_resource_build!$A:$A,'Portfolio Analytics'!AH$295)+SUMIFS(raw_resource_build!$Y:$Y,raw_resource_build!$E:$E,'Portfolio Analytics'!$C297,raw_resource_build!$C:$C,mainzone,raw_resource_build!$A:$A,'Portfolio Analytics'!AH$295)-SUM($E297:AG297),0)","v":0},{"$f":"IF(ISNUMBER(MATCH(AI$295,model_years,0)),SUMIFS(raw_resource_build!$W:$W,raw_resource_build!$E:$E,'Portfolio Analytics'!$C297,raw_resource_build!$C:$C,mainzone,raw_resource_build!$A:$A,'Portfolio Analytics'!AI$295)+SUMIFS(raw_resource_build!$Y:$Y,raw_resource_build!$E:$E,'Portfolio Analytics'!$C297,raw_resource_build!$C:$C,mainzone,raw_resource_build!$A:$A,'Portfolio Analytics'!AI$295)-SUM($E297:AH297),0)","v":0},{"$f":"IF(ISNUMBER(MATCH(AJ$295,model_years,0)),SUMIFS(raw_resource_build!$W:$W,raw_resource_build!$E:$E,'Portfolio Analytics'!$C297,raw_resource_build!$C:$C,mainzone,raw_resource_build!$A:$A,'Portfolio Analytics'!AJ$295)+SUMIFS(raw_resource_build!$Y:$Y,raw_resource_build!$E:$E,'Portfolio Analytics'!$C297,raw_resource_build!$C:$C,mainzone,raw_resource_build!$A:$A,'Portfolio Analytics'!AJ$295)-SUM($E297:AI297),0)","v":0},{"$f":"IF(ISNUMBER(MATCH(AK$295,model_years,0)),SUMIFS(raw_resource_build!$W:$W,raw_resource_build!$E:$E,'Portfolio Analytics'!$C297,raw_resource_build!$C:$C,mainzone,raw_resource_build!$A:$A,'Portfolio Analytics'!AK$295)+SUMIFS(raw_resource_build!$Y:$Y,raw_resource_build!$E:$E,'Portfolio Analytics'!$C297,raw_resource_build!$C:$C,mainzone,raw_resource_build!$A:$A,'Portfolio Analytics'!AK$295)-SUM($E297:AJ297),0)","v":0},{"$f":"IF(ISNUMBER(MATCH(AL$295,model_years,0)),SUMIFS(raw_resource_build!$W:$W,raw_resource_build!$E:$E,'Portfolio Analytics'!$C297,raw_resource_build!$C:$C,mainzone,raw_resource_build!$A:$A,'Portfolio Analytics'!AL$295)+SUMIFS(raw_resource_build!$Y:$Y,raw_resource_build!$E:$E,'Portfolio Analytics'!$C297,raw_resource_build!$C:$C,mainzone,raw_resource_build!$A:$A,'Portfolio Analytics'!AL$295)-SUM($E297:AK297),0)","v":0},{"$f":"IF(ISNUMBER(MATCH(AM$295,model_years,0)),SUMIFS(raw_resource_build!$W:$W,raw_resource_build!$E:$E,'Portfolio Analytics'!$C297,raw_resource_build!$C:$C,mainzone,raw_resource_build!$A:$A,'Portfolio Analytics'!AM$295)+SUMIFS(raw_resource_build!$Y:$Y,raw_resource_build!$E:$E,'Portfolio Analytics'!$C297,raw_resource_build!$C:$C,mainzone,raw_resource_build!$A:$A,'Portfolio Analytics'!AM$295)-SUM($E297:AL297),0)","v":0},{"$f":"IF(ISNUMBER(MATCH(AN$295,model_years,0)),SUMIFS(raw_resource_build!$W:$W,raw_resource_build!$E:$E,'Portfolio Analytics'!$C297,raw_resource_build!$C:$C,mainzone,raw_resource_build!$A:$A,'Portfolio Analytics'!AN$295)+SUMIFS(raw_resource_build!$Y:$Y,raw_resource_build!$E:$E,'Portfolio Analytics'!$C297,raw_resource_build!$C:$C,mainzone,raw_resource_build!$A:$A,'Portfolio Analytics'!AN$295)-SUM($E297:AM297),0)","v":0}]
[null,null,"CAISO_CCGT1","MW",null,{"$f":"IF(ISNUMBER(MATCH(F$295,model_years,0)),SUMIFS(raw_resource_build!$W:$W,raw_resource_build!$E:$E,'Portfolio Analytics'!$C298,raw_resource_build!$C:$C,mainzone,raw_resource_build!$A:$A,'Portfolio Analytics'!F$295)+SUMIFS(raw_resource_build!$Y:$Y,raw_resource_build!$E:$E,'Portfolio Analytics'!$C298,raw_resource_build!$C:$C,mainzone,raw_resource_build!$A:$A,'Portfolio Analytics'!F$295)-SUM($E298:E298),0)","v":0},{"$f":"IF(ISNUMBER(MATCH(G$295,model_years,0)),SUMIFS(raw_resource_build!$W:$W,raw_resource_build!$E:$E,'Portfolio Analytics'!$C298,raw_resource_build!$C:$C,mainzone,raw_resource_build!$A:$A,'Portfolio Analytics'!G$295)+SUMIFS(raw_resource_build!$Y:$Y,raw_resource_build!$E:$E,'Portfolio Analytics'!$C298,raw_resource_build!$C:$C,mainzone,raw_resource_build!$A:$A,'Portfolio Analytics'!G$295)-SUM($E298:F298),0)","v":0},{"$f":"IF(ISNUMBER(MATCH(H$295,model_years,0)),SUMIFS(raw_resource_build!$W:$W,raw_resource_build!$E:$E,'Portfolio Analytics'!$C298,raw_resource_build!$C:$C,mainzone,raw_resource_build!$A:$A,'Portfolio Analytics'!H$295)+SUMIFS(raw_resource_build!$Y:$Y,raw_resource_build!$E:$E,'Portfolio Analytics'!$C298,raw_resource_build!$C:$C,mainzone,raw_resource_build!$A:$A,'Portfolio Analytics'!H$295)-SUM($E298:G298),0)","v":0},{"$f":"IF(ISNUMBER(MATCH(I$295,model_years,0)),SUMIFS(raw_resource_build!$W:$W,raw_resource_build!$E:$E,'Portfolio Analytics'!$C298,raw_resource_build!$C:$C,mainzone,raw_resource_build!$A:$A,'Portfolio Analytics'!I$295)+SUMIFS(raw_resource_build!$Y:$Y,raw_resource_build!$E:$E,'Portfolio Analytics'!$C298,raw_resource_build!$C:$C,mainzone,raw_resource_build!$A:$A,'Portfolio Analytics'!I$295)-SUM($E298:H298),0)","v":0},{"$f":"IF(ISNUMBER(MATCH(J$295,model_years,0)),SUMIFS(raw_resource_build!$W:$W,raw_resource_build!$E:$E,'Portfolio Analytics'!$C298,raw_resource_build!$C:$C,mainzone,raw_resource_build!$A:$A,'Portfolio Analytics'!J$295)+SUMIFS(raw_resource_build!$Y:$Y,raw_resource_build!$E:$E,'Portfolio Analytics'!$C298,raw_resource_build!$C:$C,mainzone,raw_resource_build!$A:$A,'Portfolio Analytics'!J$295)-SUM($E298:I298),0)","v":0},{"$f":"IF(ISNUMBER(MATCH(K$295,model_years,0)),SUMIFS(raw_resource_build!$W:$W,raw_resource_build!$E:$E,'Portfolio Analytics'!$C298,raw_resource_build!$C:$C,mainzone,raw_resource_build!$A:$A,'Portfolio Analytics'!K$295)+SUMIFS(raw_resource_build!$Y:$Y,raw_resource_build!$E:$E,'Portfolio Analytics'!$C298,raw_resource_build!$C:$C,mainzone,raw_resource_build!$A:$A,'Portfolio Analytics'!K$295)-SUM($E298:J298),0)","v":0},{"$f":"IF(ISNUMBER(MATCH(L$295,model_years,0)),SUMIFS(raw_resource_build!$W:$W,raw_resource_build!$E:$E,'Portfolio Analytics'!$C298,raw_resource_build!$C:$C,mainzone,raw_resource_build!$A:$A,'Portfolio Analytics'!L$295)+SUMIFS(raw_resource_build!$Y:$Y,raw_resource_build!$E:$E,'Portfolio Analytics'!$C298,raw_resource_build!$C:$C,mainzone,raw_resource_build!$A:$A,'Portfolio Analytics'!L$295)-SUM($E298:K298),0)","v":0},{"$f":"IF(ISNUMBER(MATCH(M$295,model_years,0)),SUMIFS(raw_resource_build!$W:$W,raw_resource_build!$E:$E,'Portfolio Analytics'!$C298,raw_resource_build!$C:$C,mainzone,raw_resource_build!$A:$A,'Portfolio Analytics'!M$295)+SUMIFS(raw_resource_build!$Y:$Y,raw_resource_build!$E:$E,'Portfolio Analytics'!$C298,raw_resource_build!$C:$C,mainzone,raw_resource_build!$A:$A,'Portfolio Analytics'!M$295)-SUM($E298:L298),0)","v":0},{"$f":"IF(ISNUMBER(MATCH(N$295,model_years,0)),SUMIFS(raw_resource_build!$W:$W,raw_resource_build!$E:$E,'Portfolio Analytics'!$C298,raw_resource_build!$C:$C,mainzone,raw_resource_build!$A:$A,'Portfolio Analytics'!N$295)+SUMIFS(raw_resource_build!$Y:$Y,raw_resource_build!$E:$E,'Portfolio Analytics'!$C298,raw_resource_build!$C:$C,mainzone,raw_resource_build!$A:$A,'Portfolio Analytics'!N$295)-SUM($E298:M298),0)","v":0},{"$f":"IF(ISNUMBER(MATCH(O$295,model_years,0)),SUMIFS(raw_resource_build!$W:$W,raw_resource_build!$E:$E,'Portfolio Analytics'!$C298,raw_resource_build!$C:$C,mainzone,raw_resource_build!$A:$A,'Portfolio Analytics'!O$295)+SUMIFS(raw_resource_build!$Y:$Y,raw_resource_build!$E:$E,'Portfolio Analytics'!$C298,raw_resource_build!$C:$C,mainzone,raw_resource_build!$A:$A,'Portfolio Analytics'!O$295)-SUM($E298:N298),0)","v":0},{"$f":"IF(ISNUMBER(MATCH(P$295,model_years,0)),SUMIFS(raw_resource_build!$W:$W,raw_resource_build!$E:$E,'Portfolio Analytics'!$C298,raw_resource_build!$C:$C,mainzone,raw_resource_build!$A:$A,'Portfolio Analytics'!P$295)+SUMIFS(raw_resource_build!$Y:$Y,raw_resource_build!$E:$E,'Portfolio Analytics'!$C298,raw_resource_build!$C:$C,mainzone,raw_resource_build!$A:$A,'Portfolio Analytics'!P$295)-SUM($E298:O298),0)","v":0},{"$f":"IF(ISNUMBER(MATCH(Q$295,model_years,0)),SUMIFS(raw_resource_build!$W:$W,raw_resource_build!$E:$E,'Portfolio Analytics'!$C298,raw_resource_build!$C:$C,mainzone,raw_resource_build!$A:$A,'Portfolio Analytics'!Q$295)+SUMIFS(raw_resource_build!$Y:$Y,raw_resource_build!$E:$E,'Portfolio Analytics'!$C298,raw_resource_build!$C:$C,mainzone,raw_resource_build!$A:$A,'Portfolio Analytics'!Q$295)-SUM($E298:P298),0)","v":0},{"$f":"IF(ISNUMBER(MATCH(R$295,model_years,0)),SUMIFS(raw_resource_build!$W:$W,raw_resource_build!$E:$E,'Portfolio Analytics'!$C298,raw_resource_build!$C:$C,mainzone,raw_resource_build!$A:$A,'Portfolio Analytics'!R$295)+SUMIFS(raw_resource_build!$Y:$Y,raw_resource_build!$E:$E,'Portfolio Analytics'!$C298,raw_resource_build!$C:$C,mainzone,raw_resource_build!$A:$A,'Portfolio Analytics'!R$295)-SUM($E298:Q298),0)","v":0},{"$f":"IF(ISNUMBER(MATCH(S$295,model_years,0)),SUMIFS(raw_resource_build!$W:$W,raw_resource_build!$E:$E,'Portfolio Analytics'!$C298,raw_resource_build!$C:$C,mainzone,raw_resource_build!$A:$A,'Portfolio Analytics'!S$295)+SUMIFS(raw_resource_build!$Y:$Y,raw_resource_build!$E:$E,'Portfolio Analytics'!$C298,raw_resource_build!$C:$C,mainzone,raw_resource_build!$A:$A,'Portfolio Analytics'!S$295)-SUM($E298:R298),0)","v":0},{"$f":"IF(ISNUMBER(MATCH(T$295,model_years,0)),SUMIFS(raw_resource_build!$W:$W,raw_resource_build!$E:$E,'Portfolio Analytics'!$C298,raw_resource_build!$C:$C,mainzone,raw_resource_build!$A:$A,'Portfolio Analytics'!T$295)+SUMIFS(raw_resource_build!$Y:$Y,raw_resource_build!$E:$E,'Portfolio Analytics'!$C298,raw_resource_build!$C:$C,mainzone,raw_resource_build!$A:$A,'Portfolio Analytics'!T$295)-SUM($E298:S298),0)","v":0},{"$f":"IF(ISNUMBER(MATCH(U$295,model_years,0)),SUMIFS(raw_resource_build!$W:$W,raw_resource_build!$E:$E,'Portfolio Analytics'!$C298,raw_resource_build!$C:$C,mainzone,raw_resource_build!$A:$A,'Portfolio Analytics'!U$295)+SUMIFS(raw_resource_build!$Y:$Y,raw_resource_build!$E:$E,'Portfolio Analytics'!$C298,raw_resource_build!$C:$C,mainzone,raw_resource_build!$A:$A,'Portfolio Analytics'!U$295)-SUM($E298:T298),0)","v":0},{"$f":"IF(ISNUMBER(MATCH(V$295,model_years,0)),SUMIFS(raw_resource_build!$W:$W,raw_resource_build!$E:$E,'Portfolio Analytics'!$C298,raw_resource_build!$C:$C,mainzone,raw_resource_build!$A:$A,'Portfolio Analytics'!V$295)+SUMIFS(raw_resource_build!$Y:$Y,raw_resource_build!$E:$E,'Portfolio Analytics'!$C298,raw_resource_build!$C:$C,mainzone,raw_resource_build!$A:$A,'Portfolio Analytics'!V$295)-SUM($E298:U298),0)","v":0},{"$f":"IF(ISNUMBER(MATCH(W$295,model_years,0)),SUMIFS(raw_resource_build!$W:$W,raw_resource_build!$E:$E,'Portfolio Analytics'!$C298,raw_resource_build!$C:$C,mainzone,raw_resource_build!$A:$A,'Portfolio Analytics'!W$295)+SUMIFS(raw_resource_build!$Y:$Y,raw_resource_build!$E:$E,'Portfolio Analytics'!$C298,raw_resource_build!$C:$C,mainzone,raw_resource_build!$A:$A,'Portfolio Analytics'!W$295)-SUM($E298:V298),0)","v":0},{"$f":"IF(ISNUMBER(MATCH(X$295,model_years,0)),SUMIFS(raw_resource_build!$W:$W,raw_resource_build!$E:$E,'Portfolio Analytics'!$C298,raw_resource_build!$C:$C,mainzone,raw_resource_build!$A:$A,'Portfolio Analytics'!X$295)+SUMIFS(raw_resource_build!$Y:$Y,raw_resource_build!$E:$E,'Portfolio Analytics'!$C298,raw_resource_build!$C:$C,mainzone,raw_resource_build!$A:$A,'Portfolio Analytics'!X$295)-SUM($E298:W298),0)","v":0},{"$f":"IF(ISNUMBER(MATCH(Y$295,model_years,0)),SUMIFS(raw_resource_build!$W:$W,raw_resource_build!$E:$E,'Portfolio Analytics'!$C298,raw_resource_build!$C:$C,mainzone,raw_resource_build!$A:$A,'Portfolio Analytics'!Y$295)+SUMIFS(raw_resource_build!$Y:$Y,raw_resource_build!$E:$E,'Portfolio Analytics'!$C298,raw_resource_build!$C:$C,mainzone,raw_resource_build!$A:$A,'Portfolio Analytics'!Y$295)-SUM($E298:X298),0)","v":0},{"$f":"IF(ISNUMBER(MATCH(Z$295,model_years,0)),SUMIFS(raw_resource_build!$W:$W,raw_resource_build!$E:$E,'Portfolio Analytics'!$C298,raw_resource_build!$C:$C,mainzone,raw_resource_build!$A:$A,'Portfolio Analytics'!Z$295)+SUMIFS(raw_resource_build!$Y:$Y,raw_resource_build!$E:$E,'Portfolio Analytics'!$C298,raw_resource_build!$C:$C,mainzone,raw_resource_build!$A:$A,'Portfolio Analytics'!Z$295)-SUM($E298:Y298),0)","v":0},{"$f":"IF(ISNUMBER(MATCH(AA$295,model_years,0)),SUMIFS(raw_resource_build!$W:$W,raw_resource_build!$E:$E,'Portfolio Analytics'!$C298,raw_resource_build!$C:$C,mainzone,raw_resource_build!$A:$A,'Portfolio Analytics'!AA$295)+SUMIFS(raw_resource_build!$Y:$Y,raw_resource_build!$E:$E,'Portfolio Analytics'!$C298,raw_resource_build!$C:$C,mainzone,raw_resource_build!$A:$A,'Portfolio Analytics'!AA$295)-SUM($E298:Z298),0)","v":0},{"$f":"IF(ISNUMBER(MATCH(AB$295,model_years,0)),SUMIFS(raw_resource_build!$W:$W,raw_resource_build!$E:$E,'Portfolio Analytics'!$C298,raw_resource_build!$C:$C,mainzone,raw_resource_build!$A:$A,'Portfolio Analytics'!AB$295)+SUMIFS(raw_resource_build!$Y:$Y,raw_resource_build!$E:$E,'Portfolio Analytics'!$C298,raw_resource_build!$C:$C,mainzone,raw_resource_build!$A:$A,'Portfolio Analytics'!AB$295)-SUM($E298:AA298),0)","v":0},{"$f":"IF(ISNUMBER(MATCH(AC$295,model_years,0)),SUMIFS(raw_resource_build!$W:$W,raw_resource_build!$E:$E,'Portfolio Analytics'!$C298,raw_resource_build!$C:$C,mainzone,raw_resource_build!$A:$A,'Portfolio Analytics'!AC$295)+SUMIFS(raw_resource_build!$Y:$Y,raw_resource_build!$E:$E,'Portfolio Analytics'!$C298,raw_resource_build!$C:$C,mainzone,raw_resource_build!$A:$A,'Portfolio Analytics'!AC$295)-SUM($E298:AB298),0)","v":0},{"$f":"IF(ISNUMBER(MATCH(AD$295,model_years,0)),SUMIFS(raw_resource_build!$W:$W,raw_resource_build!$E:$E,'Portfolio Analytics'!$C298,raw_resource_build!$C:$C,mainzone,raw_resource_build!$A:$A,'Portfolio Analytics'!AD$295)+SUMIFS(raw_resource_build!$Y:$Y,raw_resource_build!$E:$E,'Portfolio Analytics'!$C298,raw_resource_build!$C:$C,mainzone,raw_resource_build!$A:$A,'Portfolio Analytics'!AD$295)-SUM($E298:AC298),0)","v":0},{"$f":"IF(ISNUMBER(MATCH(AE$295,model_years,0)),SUMIFS(raw_resource_build!$W:$W,raw_resource_build!$E:$E,'Portfolio Analytics'!$C298,raw_resource_build!$C:$C,mainzone,raw_resource_build!$A:$A,'Portfolio Analytics'!AE$295)+SUMIFS(raw_resource_build!$Y:$Y,raw_resource_build!$E:$E,'Portfolio Analytics'!$C298,raw_resource_build!$C:$C,mainzone,raw_resource_build!$A:$A,'Portfolio Analytics'!AE$295)-SUM($E298:AD298),0)","v":0},{"$f":"IF(ISNUMBER(MATCH(AF$295,model_years,0)),SUMIFS(raw_resource_build!$W:$W,raw_resource_build!$E:$E,'Portfolio Analytics'!$C298,raw_resource_build!$C:$C,mainzone,raw_resource_build!$A:$A,'Portfolio Analytics'!AF$295)+SUMIFS(raw_resource_build!$Y:$Y,raw_resource_build!$E:$E,'Portfolio Analytics'!$C298,raw_resource_build!$C:$C,mainzone,raw_resource_build!$A:$A,'Portfolio Analytics'!AF$295)-SUM($E298:AE298),0)","v":0},{"$f":"IF(ISNUMBER(MATCH(AG$295,model_years,0)),SUMIFS(raw_resource_build!$W:$W,raw_resource_build!$E:$E,'Portfolio Analytics'!$C298,raw_resource_build!$C:$C,mainzone,raw_resource_build!$A:$A,'Portfolio Analytics'!AG$295)+SUMIFS(raw_resource_build!$Y:$Y,raw_resource_build!$E:$E,'Portfolio Analytics'!$C298,raw_resource_build!$C:$C,mainzone,raw_resource_build!$A:$A,'Portfolio Analytics'!AG$295)-SUM($E298:AF298),0)","v":0},{"$f":"IF(ISNUMBER(MATCH(AH$295,model_years,0)),SUMIFS(raw_resource_build!$W:$W,raw_resource_build!$E:$E,'Portfolio Analytics'!$C298,raw_resource_build!$C:$C,mainzone,raw_resource_build!$A:$A,'Portfolio Analytics'!AH$295)+SUMIFS(raw_resource_build!$Y:$Y,raw_resource_build!$E:$E,'Portfolio Analytics'!$C298,raw_resource_build!$C:$C,mainzone,raw_resource_build!$A:$A,'Portfolio Analytics'!AH$295)-SUM($E298:AG298),0)","v":0},{"$f":"IF(ISNUMBER(MATCH(AI$295,model_years,0)),SUMIFS(raw_resource_build!$W:$W,raw_resource_build!$E:$E,'Portfolio Analytics'!$C298,raw_resource_build!$C:$C,mainzone,raw_resource_build!$A:$A,'Portfolio Analytics'!AI$295)+SUMIFS(raw_resource_build!$Y:$Y,raw_resource_build!$E:$E,'Portfolio Analytics'!$C298,raw_resource_build!$C:$C,mainzone,raw_resource_build!$A:$A,'Portfolio Analytics'!AI$295)-SUM($E298:AH298),0)","v":0},{"$f":"IF(ISNUMBER(MATCH(AJ$295,model_years,0)),SUMIFS(raw_resource_build!$W:$W,raw_resource_build!$E:$E,'Portfolio Analytics'!$C298,raw_resource_build!$C:$C,mainzone,raw_resource_build!$A:$A,'Portfolio Analytics'!AJ$295)+SUMIFS(raw_resource_build!$Y:$Y,raw_resource_build!$E:$E,'Portfolio Analytics'!$C298,raw_resource_build!$C:$C,mainzone,raw_resource_build!$A:$A,'Portfolio Analytics'!AJ$295)-SUM($E298:AI298),0)","v":0},{"$f":"IF(ISNUMBER(MATCH(AK$295,model_years,0)),SUMIFS(raw_resource_build!$W:$W,raw_resource_build!$E:$E,'Portfolio Analytics'!$C298,raw_resource_build!$C:$C,mainzone,raw_resource_build!$A:$A,'Portfolio Analytics'!AK$295)+SUMIFS(raw_resource_build!$Y:$Y,raw_resource_build!$E:$E,'Portfolio Analytics'!$C298,raw_resource_build!$C:$C,mainzone,raw_resource_build!$A:$A,'Portfolio Analytics'!AK$295)-SUM($E298:AJ298),0)","v":0},{"$f":"IF(ISNUMBER(MATCH(AL$295,model_years,0)),SUMIFS(raw_resource_build!$W:$W,raw_resource_build!$E:$E,'Portfolio Analytics'!$C298,raw_resource_build!$C:$C,mainzone,raw_resource_build!$A:$A,'Portfolio Analytics'!AL$295)+SUMIFS(raw_resource_build!$Y:$Y,raw_resource_build!$E:$E,'Portfolio Analytics'!$C298,raw_resource_build!$C:$C,mainzone,raw_resource_build!$A:$A,'Portfolio Analytics'!AL$295)-SUM($E298:AK298),0)","v":0},{"$f":"IF(ISNUMBER(MATCH(AM$295,model_years,0)),SUMIFS(raw_resource_build!$W:$W,raw_resource_build!$E:$E,'Portfolio Analytics'!$C298,raw_resource_build!$C:$C,mainzone,raw_resource_build!$A:$A,'Portfolio Analytics'!AM$295)+SUMIFS(raw_resource_build!$Y:$Y,raw_resource_build!$E:$E,'Portfolio Analytics'!$C298,raw_resource_build!$C:$C,mainzone,raw_resource_build!$A:$A,'Portfolio Analytics'!AM$295)-SUM($E298:AL298),0)","v":0},{"$f":"IF(ISNUMBER(MATCH(AN$295,model_years,0)),SUMIFS(raw_resource_build!$W:$W,raw_resource_build!$E:$E,'Portfolio Analytics'!$C298,raw_resource_build!$C:$C,mainzone,raw_resource_build!$A:$A,'Portfolio Analytics'!AN$295)+SUMIFS(raw_resource_build!$Y:$Y,raw_resource_build!$E:$E,'Portfolio Analytics'!$C298,raw_resource_build!$C:$C,mainzone,raw_resource_build!$A:$A,'Portfolio Analytics'!AN$295)-SUM($E298:AM298),0)","v":0}]
[null,null,"CAISO_CCGT2","MW",null,{"$f":"IF(ISNUMBER(MATCH(F$295,model_years,0)),SUMIFS(raw_resource_build!$W:$W,raw_resource_build!$E:$E,'Portfolio Analytics'!$C299,raw_resource_build!$C:$C,mainzone,raw_resource_build!$A:$A,'Portfolio Analytics'!F$295)+SUMIFS(raw_resource_build!$Y:$Y,raw_resource_build!$E:$E,'Portfolio Analytics'!$C299,raw_resource_build!$C:$C,mainzone,raw_resource_build!$A:$A,'Portfolio Analytics'!F$295)-SUM($E299:E299),0)","v":0},{"$f":"IF(ISNUMBER(MATCH(G$295,model_years,0)),SUMIFS(raw_resource_build!$W:$W,raw_resource_build!$E:$E,'Portfolio Analytics'!$C299,raw_resource_build!$C:$C,mainzone,raw_resource_build!$A:$A,'Portfolio Analytics'!G$295)+SUMIFS(raw_resource_build!$Y:$Y,raw_resource_build!$E:$E,'Portfolio Analytics'!$C299,raw_resource_build!$C:$C,mainzone,raw_resource_build!$A:$A,'Portfolio Analytics'!G$295)-SUM($E299:F299),0)","v":0},{"$f":"IF(ISNUMBER(MATCH(H$295,model_years,0)),SUMIFS(raw_resource_build!$W:$W,raw_resource_build!$E:$E,'Portfolio Analytics'!$C299,raw_resource_build!$C:$C,mainzone,raw_resource_build!$A:$A,'Portfolio Analytics'!H$295)+SUMIFS(raw_resource_build!$Y:$Y,raw_resource_build!$E:$E,'Portfolio Analytics'!$C299,raw_resource_build!$C:$C,mainzone,raw_resource_build!$A:$A,'Portfolio Analytics'!H$295)-SUM($E299:G299),0)","v":0},{"$f":"IF(ISNUMBER(MATCH(I$295,model_years,0)),SUMIFS(raw_resource_build!$W:$W,raw_resource_build!$E:$E,'Portfolio Analytics'!$C299,raw_resource_build!$C:$C,mainzone,raw_resource_build!$A:$A,'Portfolio Analytics'!I$295)+SUMIFS(raw_resource_build!$Y:$Y,raw_resource_build!$E:$E,'Portfolio Analytics'!$C299,raw_resource_build!$C:$C,mainzone,raw_resource_build!$A:$A,'Portfolio Analytics'!I$295)-SUM($E299:H299),0)","v":0},{"$f":"IF(ISNUMBER(MATCH(J$295,model_years,0)),SUMIFS(raw_resource_build!$W:$W,raw_resource_build!$E:$E,'Portfolio Analytics'!$C299,raw_resource_build!$C:$C,mainzone,raw_resource_build!$A:$A,'Portfolio Analytics'!J$295)+SUMIFS(raw_resource_build!$Y:$Y,raw_resource_build!$E:$E,'Portfolio Analytics'!$C299,raw_resource_build!$C:$C,mainzone,raw_resource_build!$A:$A,'Portfolio Analytics'!J$295)-SUM($E299:I299),0)","v":0},{"$f":"IF(ISNUMBER(MATCH(K$295,model_years,0)),SUMIFS(raw_resource_build!$W:$W,raw_resource_build!$E:$E,'Portfolio Analytics'!$C299,raw_resource_build!$C:$C,mainzone,raw_resource_build!$A:$A,'Portfolio Analytics'!K$295)+SUMIFS(raw_resource_build!$Y:$Y,raw_resource_build!$E:$E,'Portfolio Analytics'!$C299,raw_resource_build!$C:$C,mainzone,raw_resource_build!$A:$A,'Portfolio Analytics'!K$295)-SUM($E299:J299),0)","v":0},{"$f":"IF(ISNUMBER(MATCH(L$295,model_years,0)),SUMIFS(raw_resource_build!$W:$W,raw_resource_build!$E:$E,'Portfolio Analytics'!$C299,raw_resource_build!$C:$C,mainzone,raw_resource_build!$A:$A,'Portfolio Analytics'!L$295)+SUMIFS(raw_resource_build!$Y:$Y,raw_resource_build!$E:$E,'Portfolio Analytics'!$C299,raw_resource_build!$C:$C,mainzone,raw_resource_build!$A:$A,'Portfolio Analytics'!L$295)-SUM($E299:K299),0)","v":0},{"$f":"IF(ISNUMBER(MATCH(M$295,model_years,0)),SUMIFS(raw_resource_build!$W:$W,raw_resource_build!$E:$E,'Portfolio Analytics'!$C299,raw_resource_build!$C:$C,mainzone,raw_resource_build!$A:$A,'Portfolio Analytics'!M$295)+SUMIFS(raw_resource_build!$Y:$Y,raw_resource_build!$E:$E,'Portfolio Analytics'!$C299,raw_resource_build!$C:$C,mainzone,raw_resource_build!$A:$A,'Portfolio Analytics'!M$295)-SUM($E299:L299),0)","v":0},{"$f":"IF(ISNUMBER(MATCH(N$295,model_years,0)),SUMIFS(raw_resource_build!$W:$W,raw_resource_build!$E:$E,'Portfolio Analytics'!$C299,raw_resource_build!$C:$C,mainzone,raw_resource_build!$A:$A,'Portfolio Analytics'!N$295)+SUMIFS(raw_resource_build!$Y:$Y,raw_resource_build!$E:$E,'Portfolio Analytics'!$C299,raw_resource_build!$C:$C,mainzone,raw_resource_build!$A:$A,'Portfolio Analytics'!N$295)-SUM($E299:M299),0)","v":0},{"$f":"IF(ISNUMBER(MATCH(O$295,model_years,0)),SUMIFS(raw_resource_build!$W:$W,raw_resource_build!$E:$E,'Portfolio Analytics'!$C299,raw_resource_build!$C:$C,mainzone,raw_resource_build!$A:$A,'Portfolio Analytics'!O$295)+SUMIFS(raw_resource_build!$Y:$Y,raw_resource_build!$E:$E,'Portfolio Analytics'!$C299,raw_resource_build!$C:$C,mainzone,raw_resource_build!$A:$A,'Portfolio Analytics'!O$295)-SUM($E299:N299),0)","v":0},{"$f":"IF(ISNUMBER(MATCH(P$295,model_years,0)),SUMIFS(raw_resource_build!$W:$W,raw_resource_build!$E:$E,'Portfolio Analytics'!$C299,raw_resource_build!$C:$C,mainzone,raw_resource_build!$A:$A,'Portfolio Analytics'!P$295)+SUMIFS(raw_resource_build!$Y:$Y,raw_resource_build!$E:$E,'Portfolio Analytics'!$C299,raw_resource_build!$C:$C,mainzone,raw_resource_build!$A:$A,'Portfolio Analytics'!P$295)-SUM($E299:O299),0)","v":0},{"$f":"IF(ISNUMBER(MATCH(Q$295,model_years,0)),SUMIFS(raw_resource_build!$W:$W,raw_resource_build!$E:$E,'Portfolio Analytics'!$C299,raw_resource_build!$C:$C,mainzone,raw_resource_build!$A:$A,'Portfolio Analytics'!Q$295)+SUMIFS(raw_resource_build!$Y:$Y,raw_resource_build!$E:$E,'Portfolio Analytics'!$C299,raw_resource_build!$C:$C,mainzone,raw_resource_build!$A:$A,'Portfolio Analytics'!Q$295)-SUM($E299:P299),0)","v":0},{"$f":"IF(ISNUMBER(MATCH(R$295,model_years,0)),SUMIFS(raw_resource_build!$W:$W,raw_resource_build!$E:$E,'Portfolio Analytics'!$C299,raw_resource_build!$C:$C,mainzone,raw_resource_build!$A:$A,'Portfolio Analytics'!R$295)+SUMIFS(raw_resource_build!$Y:$Y,raw_resource_build!$E:$E,'Portfolio Analytics'!$C299,raw_resource_build!$C:$C,mainzone,raw_resource_build!$A:$A,'Portfolio Analytics'!R$295)-SUM($E299:Q299),0)","v":0},{"$f":"IF(ISNUMBER(MATCH(S$295,model_years,0)),SUMIFS(raw_resource_build!$W:$W,raw_resource_build!$E:$E,'Portfolio Analytics'!$C299,raw_resource_build!$C:$C,mainzone,raw_resource_build!$A:$A,'Portfolio Analytics'!S$295)+SUMIFS(raw_resource_build!$Y:$Y,raw_resource_build!$E:$E,'Portfolio Analytics'!$C299,raw_resource_build!$C:$C,mainzone,raw_resource_build!$A:$A,'Portfolio Analytics'!S$295)-SUM($E299:R299),0)","v":0},{"$f":"IF(ISNUMBER(MATCH(T$295,model_years,0)),SUMIFS(raw_resource_build!$W:$W,raw_resource_build!$E:$E,'Portfolio Analytics'!$C299,raw_resource_build!$C:$C,mainzone,raw_resource_build!$A:$A,'Portfolio Analytics'!T$295)+SUMIFS(raw_resource_build!$Y:$Y,raw_resource_build!$E:$E,'Portfolio Analytics'!$C299,raw_resource_build!$C:$C,mainzone,raw_resource_build!$A:$A,'Portfolio Analytics'!T$295)-SUM($E299:S299),0)","v":0},{"$f":"IF(ISNUMBER(MATCH(U$295,model_years,0)),SUMIFS(raw_resource_build!$W:$W,raw_resource_build!$E:$E,'Portfolio Analytics'!$C299,raw_resource_build!$C:$C,mainzone,raw_resource_build!$A:$A,'Portfolio Analytics'!U$295)+SUMIFS(raw_resource_build!$Y:$Y,raw_resource_build!$E:$E,'Portfolio Analytics'!$C299,raw_resource_build!$C:$C,mainzone,raw_resource_build!$A:$A,'Portfolio Analytics'!U$295)-SUM($E299:T299),0)","v":0},{"$f":"IF(ISNUMBER(MATCH(V$295,model_years,0)),SUMIFS(raw_resource_build!$W:$W,raw_resource_build!$E:$E,'Portfolio Analytics'!$C299,raw_resource_build!$C:$C,mainzone,raw_resource_build!$A:$A,'Portfolio Analytics'!V$295)+SUMIFS(raw_resource_build!$Y:$Y,raw_resource_build!$E:$E,'Portfolio Analytics'!$C299,raw_resource_build!$C:$C,mainzone,raw_resource_build!$A:$A,'Portfolio Analytics'!V$295)-SUM($E299:U299),0)","v":0},{"$f":"IF(ISNUMBER(MATCH(W$295,model_years,0)),SUMIFS(raw_resource_build!$W:$W,raw_resource_build!$E:$E,'Portfolio Analytics'!$C299,raw_resource_build!$C:$C,mainzone,raw_resource_build!$A:$A,'Portfolio Analytics'!W$295)+SUMIFS(raw_resource_build!$Y:$Y,raw_resource_build!$E:$E,'Portfolio Analytics'!$C299,raw_resource_build!$C:$C,mainzone,raw_resource_build!$A:$A,'Portfolio Analytics'!W$295)-SUM($E299:V299),0)","v":0},{"$f":"IF(ISNUMBER(MATCH(X$295,model_years,0)),SUMIFS(raw_resource_build!$W:$W,raw_resource_build!$E:$E,'Portfolio Analytics'!$C299,raw_resource_build!$C:$C,mainzone,raw_resource_build!$A:$A,'Portfolio Analytics'!X$295)+SUMIFS(raw_resource_build!$Y:$Y,raw_resource_build!$E:$E,'Portfolio Analytics'!$C299,raw_resource_build!$C:$C,mainzone,raw_resource_build!$A:$A,'Portfolio Analytics'!X$295)-SUM($E299:W299),0)","v":0},{"$f":"IF(ISNUMBER(MATCH(Y$295,model_years,0)),SUMIFS(raw_resource_build!$W:$W,raw_resource_build!$E:$E,'Portfolio Analytics'!$C299,raw_resource_build!$C:$C,mainzone,raw_resource_build!$A:$A,'Portfolio Analytics'!Y$295)+SUMIFS(raw_resource_build!$Y:$Y,raw_resource_build!$E:$E,'Portfolio Analytics'!$C299,raw_resource_build!$C:$C,mainzone,raw_resource_build!$A:$A,'Portfolio Analytics'!Y$295)-SUM($E299:X299),0)","v":0},{"$f":"IF(ISNUMBER(MATCH(Z$295,model_years,0)),SUMIFS(raw_resource_build!$W:$W,raw_resource_build!$E:$E,'Portfolio Analytics'!$C299,raw_resource_build!$C:$C,mainzone,raw_resource_build!$A:$A,'Portfolio Analytics'!Z$295)+SUMIFS(raw_resource_build!$Y:$Y,raw_resource_build!$E:$E,'Portfolio Analytics'!$C299,raw_resource_build!$C:$C,mainzone,raw_resource_build!$A:$A,'Portfolio Analytics'!Z$295)-SUM($E299:Y299),0)","v":0},{"$f":"IF(ISNUMBER(MATCH(AA$295,model_years,0)),SUMIFS(raw_resource_build!$W:$W,raw_resource_build!$E:$E,'Portfolio Analytics'!$C299,raw_resource_build!$C:$C,mainzone,raw_resource_build!$A:$A,'Portfolio Analytics'!AA$295)+SUMIFS(raw_resource_build!$Y:$Y,raw_resource_build!$E:$E,'Portfolio Analytics'!$C299,raw_resource_build!$C:$C,mainzone,raw_resource_build!$A:$A,'Portfolio Analytics'!AA$295)-SUM($E299:Z299),0)","v":0},{"$f":"IF(ISNUMBER(MATCH(AB$295,model_years,0)),SUMIFS(raw_resource_build!$W:$W,raw_resource_build!$E:$E,'Portfolio Analytics'!$C299,raw_resource_build!$C:$C,mainzone,raw_resource_build!$A:$A,'Portfolio Analytics'!AB$295)+SUMIFS(raw_resource_build!$Y:$Y,raw_resource_build!$E:$E,'Portfolio Analytics'!$C299,raw_resource_build!$C:$C,mainzone,raw_resource_build!$A:$A,'Portfolio Analytics'!AB$295)-SUM($E299:AA299),0)","v":0},{"$f":"IF(ISNUMBER(MATCH(AC$295,model_years,0)),SUMIFS(raw_resource_build!$W:$W,raw_resource_build!$E:$E,'Portfolio Analytics'!$C299,raw_resource_build!$C:$C,mainzone,raw_resource_build!$A:$A,'Portfolio Analytics'!AC$295)+SUMIFS(raw_resource_build!$Y:$Y,raw_resource_build!$E:$E,'Portfolio Analytics'!$C299,raw_resource_build!$C:$C,mainzone,raw_resource_build!$A:$A,'Portfolio Analytics'!AC$295)-SUM($E299:AB299),0)","v":0},{"$f":"IF(ISNUMBER(MATCH(AD$295,model_years,0)),SUMIFS(raw_resource_build!$W:$W,raw_resource_build!$E:$E,'Portfolio Analytics'!$C299,raw_resource_build!$C:$C,mainzone,raw_resource_build!$A:$A,'Portfolio Analytics'!AD$295)+SUMIFS(raw_resource_build!$Y:$Y,raw_resource_build!$E:$E,'Portfolio Analytics'!$C299,raw_resource_build!$C:$C,mainzone,raw_resource_build!$A:$A,'Portfolio Analytics'!AD$295)-SUM($E299:AC299),0)","v":0},{"$f":"IF(ISNUMBER(MATCH(AE$295,model_years,0)),SUMIFS(raw_resource_build!$W:$W,raw_resource_build!$E:$E,'Portfolio Analytics'!$C299,raw_resource_build!$C:$C,mainzone,raw_resource_build!$A:$A,'Portfolio Analytics'!AE$295)+SUMIFS(raw_resource_build!$Y:$Y,raw_resource_build!$E:$E,'Portfolio Analytics'!$C299,raw_resource_build!$C:$C,mainzone,raw_resource_build!$A:$A,'Portfolio Analytics'!AE$295)-SUM($E299:AD299),0)","v":0},{"$f":"IF(ISNUMBER(MATCH(AF$295,model_years,0)),SUMIFS(raw_resource_build!$W:$W,raw_resource_build!$E:$E,'Portfolio Analytics'!$C299,raw_resource_build!$C:$C,mainzone,raw_resource_build!$A:$A,'Portfolio Analytics'!AF$295)+SUMIFS(raw_resource_build!$Y:$Y,raw_resource_build!$E:$E,'Portfolio Analytics'!$C299,raw_resource_build!$C:$C,mainzone,raw_resource_build!$A:$A,'Portfolio Analytics'!AF$295)-SUM($E299:AE299),0)","v":0},{"$f":"IF(ISNUMBER(MATCH(AG$295,model_years,0)),SUMIFS(raw_resource_build!$W:$W,raw_resource_build!$E:$E,'Portfolio Analytics'!$C299,raw_resource_build!$C:$C,mainzone,raw_resource_build!$A:$A,'Portfolio Analytics'!AG$295)+SUMIFS(raw_resource_build!$Y:$Y,raw_resource_build!$E:$E,'Portfolio Analytics'!$C299,raw_resource_build!$C:$C,mainzone,raw_resource_build!$A:$A,'Portfolio Analytics'!AG$295)-SUM($E299:AF299),0)","v":0},{"$f":"IF(ISNUMBER(MATCH(AH$295,model_years,0)),SUMIFS(raw_resource_build!$W:$W,raw_resource_build!$E:$E,'Portfolio Analytics'!$C299,raw_resource_build!$C:$C,mainzone,raw_resource_build!$A:$A,'Portfolio Analytics'!AH$295)+SUMIFS(raw_resource_build!$Y:$Y,raw_resource_build!$E:$E,'Portfolio Analytics'!$C299,raw_resource_build!$C:$C,mainzone,raw_resource_build!$A:$A,'Portfolio Analytics'!AH$295)-SUM($E299:AG299),0)","v":0},{"$f":"IF(ISNUMBER(MATCH(AI$295,model_years,0)),SUMIFS(raw_resource_build!$W:$W,raw_resource_build!$E:$E,'Portfolio Analytics'!$C299,raw_resource_build!$C:$C,mainzone,raw_resource_build!$A:$A,'Portfolio Analytics'!AI$295)+SUMIFS(raw_resource_build!$Y:$Y,raw_resource_build!$E:$E,'Portfolio Analytics'!$C299,raw_resource_build!$C:$C,mainzone,raw_resource_build!$A:$A,'Portfolio Analytics'!AI$295)-SUM($E299:AH299),0)","v":0},{"$f":"IF(ISNUMBER(MATCH(AJ$295,model_years,0)),SUMIFS(raw_resource_build!$W:$W,raw_resource_build!$E:$E,'Portfolio Analytics'!$C299,raw_resource_build!$C:$C,mainzone,raw_resource_build!$A:$A,'Portfolio Analytics'!AJ$295)+SUMIFS(raw_resource_build!$Y:$Y,raw_resource_build!$E:$E,'Portfolio Analytics'!$C299,raw_resource_build!$C:$C,mainzone,raw_resource_build!$A:$A,'Portfolio Analytics'!AJ$295)-SUM($E299:AI299),0)","v":0},{"$f":"IF(ISNUMBER(MATCH(AK$295,model_years,0)),SUMIFS(raw_resource_build!$W:$W,raw_resource_build!$E:$E,'Portfolio Analytics'!$C299,raw_resource_build!$C:$C,mainzone,raw_resource_build!$A:$A,'Portfolio Analytics'!AK$295)+SUMIFS(raw_resource_build!$Y:$Y,raw_resource_build!$E:$E,'Portfolio Analytics'!$C299,raw_resource_build!$C:$C,mainzone,raw_resource_build!$A:$A,'Portfolio Analytics'!AK$295)-SUM($E299:AJ299),0)","v":0},{"$f":"IF(ISNUMBER(MATCH(AL$295,model_years,0)),SUMIFS(raw_resource_build!$W:$W,raw_resource_build!$E:$E,'Portfolio Analytics'!$C299,raw_resource_build!$C:$C,mainzone,raw_resource_build!$A:$A,'Portfolio Analytics'!AL$295)+SUMIFS(raw_resource_build!$Y:$Y,raw_resource_build!$E:$E,'Portfolio Analytics'!$C299,raw_resource_build!$C:$C,mainzone,raw_resource_build!$A:$A,'Portfolio Analytics'!AL$295)-SUM($E299:AK299),0)","v":0},{"$f":"IF(ISNUMBER(MATCH(AM$295,model_years,0)),SUMIFS(raw_resource_build!$W:$W,raw_resource_build!$E:$E,'Portfolio Analytics'!$C299,raw_resource_build!$C:$C,mainzone,raw_resource_build!$A:$A,'Portfolio Analytics'!AM$295)+SUMIFS(raw_resource_build!$Y:$Y,raw_resource_build!$E:$E,'Portfolio Analytics'!$C299,raw_resource_build!$C:$C,mainzone,raw_resource_build!$A:$A,'Portfolio Analytics'!AM$295)-SUM($E299:AL299),0)","v":0},{"$f":"IF(ISNUMBER(MATCH(AN$295,model_years,0)),SUMIFS(raw_resource_build!$W:$W,raw_resource_build!$E:$E,'Portfolio Analytics'!$C299,raw_resource_build!$C:$C,mainzone,raw_resource_build!$A:$A,'Portfolio Analytics'!AN$295)+SUMIFS(raw_resource_build!$Y:$Y,raw_resource_build!$E:$E,'Portfolio Analytics'!$C299,raw_resource_build!$C:$C,mainzone,raw_resource_build!$A:$A,'Portfolio Analytics'!AN$295)-SUM($E299:AM299),0)","v":0}]
[null,null,"CAISO_Peaker1","MW",null,{"$f":"IF(ISNUMBER(MATCH(F$295,model_years,0)),SUMIFS(raw_resource_build!$W:$W,raw_resource_build!$E:$E,'Portfolio Analytics'!$C300,raw_resource_build!$C:$C,mainzone,raw_resource_build!$A:$A,'Portfolio Analytics'!F$295)+SUMIFS(raw_resource_build!$Y:$Y,raw_resource_build!$E:$E,'Portfolio Analytics'!$C300,raw_resource_build!$C:$C,mainzone,raw_resource_build!$A:$A,'Portfolio Analytics'!F$295)-SUM($E300:E300),0)","v":0},{"$f":"IF(ISNUMBER(MATCH(G$295,model_years,0)),SUMIFS(raw_resource_build!$W:$W,raw_resource_build!$E:$E,'Portfolio Analytics'!$C300,raw_resource_build!$C:$C,mainzone,raw_resource_build!$A:$A,'Portfolio Analytics'!G$295)+SUMIFS(raw_resource_build!$Y:$Y,raw_resource_build!$E:$E,'Portfolio Analytics'!$C300,raw_resource_build!$C:$C,mainzone,raw_resource_build!$A:$A,'Portfolio Analytics'!G$295)-SUM($E300:F300),0)","v":0},{"$f":"IF(ISNUMBER(MATCH(H$295,model_years,0)),SUMIFS(raw_resource_build!$W:$W,raw_resource_build!$E:$E,'Portfolio Analytics'!$C300,raw_resource_build!$C:$C,mainzone,raw_resource_build!$A:$A,'Portfolio Analytics'!H$295)+SUMIFS(raw_resource_build!$Y:$Y,raw_resource_build!$E:$E,'Portfolio Analytics'!$C300,raw_resource_build!$C:$C,mainzone,raw_resource_build!$A:$A,'Portfolio Analytics'!H$295)-SUM($E300:G300),0)","v":0},{"$f":"IF(ISNUMBER(MATCH(I$295,model_years,0)),SUMIFS(raw_resource_build!$W:$W,raw_resource_build!$E:$E,'Portfolio Analytics'!$C300,raw_resource_build!$C:$C,mainzone,raw_resource_build!$A:$A,'Portfolio Analytics'!I$295)+SUMIFS(raw_resource_build!$Y:$Y,raw_resource_build!$E:$E,'Portfolio Analytics'!$C300,raw_resource_build!$C:$C,mainzone,raw_resource_build!$A:$A,'Portfolio Analytics'!I$295)-SUM($E300:H300),0)","v":0},{"$f":"IF(ISNUMBER(MATCH(J$295,model_years,0)),SUMIFS(raw_resource_build!$W:$W,raw_resource_build!$E:$E,'Portfolio Analytics'!$C300,raw_resource_build!$C:$C,mainzone,raw_resource_build!$A:$A,'Portfolio Analytics'!J$295)+SUMIFS(raw_resource_build!$Y:$Y,raw_resource_build!$E:$E,'Portfolio Analytics'!$C300,raw_resource_build!$C:$C,mainzone,raw_resource_build!$A:$A,'Portfolio Analytics'!J$295)-SUM($E300:I300),0)","v":0},{"$f":"IF(ISNUMBER(MATCH(K$295,model_years,0)),SUMIFS(raw_resource_build!$W:$W,raw_resource_build!$E:$E,'Portfolio Analytics'!$C300,raw_resource_build!$C:$C,mainzone,raw_resource_build!$A:$A,'Portfolio Analytics'!K$295)+SUMIFS(raw_resource_build!$Y:$Y,raw_resource_build!$E:$E,'Portfolio Analytics'!$C300,raw_resource_build!$C:$C,mainzone,raw_resource_build!$A:$A,'Portfolio Analytics'!K$295)-SUM($E300:J300),0)","v":0},{"$f":"IF(ISNUMBER(MATCH(L$295,model_years,0)),SUMIFS(raw_resource_build!$W:$W,raw_resource_build!$E:$E,'Portfolio Analytics'!$C300,raw_resource_build!$C:$C,mainzone,raw_resource_build!$A:$A,'Portfolio Analytics'!L$295)+SUMIFS(raw_resource_build!$Y:$Y,raw_resource_build!$E:$E,'Portfolio Analytics'!$C300,raw_resource_build!$C:$C,mainzone,raw_resource_build!$A:$A,'Portfolio Analytics'!L$295)-SUM($E300:K300),0)","v":0},{"$f":"IF(ISNUMBER(MATCH(M$295,model_years,0)),SUMIFS(raw_resource_build!$W:$W,raw_resource_build!$E:$E,'Portfolio Analytics'!$C300,raw_resource_build!$C:$C,mainzone,raw_resource_build!$A:$A,'Portfolio Analytics'!M$295)+SUMIFS(raw_resource_build!$Y:$Y,raw_resource_build!$E:$E,'Portfolio Analytics'!$C300,raw_resource_build!$C:$C,mainzone,raw_resource_build!$A:$A,'Portfolio Analytics'!M$295)-SUM($E300:L300),0)","v":0},{"$f":"IF(ISNUMBER(MATCH(N$295,model_years,0)),SUMIFS(raw_resource_build!$W:$W,raw_resource_build!$E:$E,'Portfolio Analytics'!$C300,raw_resource_build!$C:$C,mainzone,raw_resource_build!$A:$A,'Portfolio Analytics'!N$295)+SUMIFS(raw_resource_build!$Y:$Y,raw_resource_build!$E:$E,'Portfolio Analytics'!$C300,raw_resource_build!$C:$C,mainzone,raw_resource_build!$A:$A,'Portfolio Analytics'!N$295)-SUM($E300:M300),0)","v":0},{"$f":"IF(ISNUMBER(MATCH(O$295,model_years,0)),SUMIFS(raw_resource_build!$W:$W,raw_resource_build!$E:$E,'Portfolio Analytics'!$C300,raw_resource_build!$C:$C,mainzone,raw_resource_build!$A:$A,'Portfolio Analytics'!O$295)+SUMIFS(raw_resource_build!$Y:$Y,raw_resource_build!$E:$E,'Portfolio Analytics'!$C300,raw_resource_build!$C:$C,mainzone,raw_resource_build!$A:$A,'Portfolio Analytics'!O$295)-SUM($E300:N300),0)","v":0},{"$f":"IF(ISNUMBER(MATCH(P$295,model_years,0)),SUMIFS(raw_resource_build!$W:$W,raw_resource_build!$E:$E,'Portfolio Analytics'!$C300,raw_resource_build!$C:$C,mainzone,raw_resource_build!$A:$A,'Portfolio Analytics'!P$295)+SUMIFS(raw_resource_build!$Y:$Y,raw_resource_build!$E:$E,'Portfolio Analytics'!$C300,raw_resource_build!$C:$C,mainzone,raw_resource_build!$A:$A,'Portfolio Analytics'!P$295)-SUM($E300:O300),0)","v":0},{"$f":"IF(ISNUMBER(MATCH(Q$295,model_years,0)),SUMIFS(raw_resource_build!$W:$W,raw_resource_build!$E:$E,'Portfolio Analytics'!$C300,raw_resource_build!$C:$C,mainzone,raw_resource_build!$A:$A,'Portfolio Analytics'!Q$295)+SUMIFS(raw_resource_build!$Y:$Y,raw_resource_build!$E:$E,'Portfolio Analytics'!$C300,raw_resource_build!$C:$C,mainzone,raw_resource_build!$A:$A,'Portfolio Analytics'!Q$295)-SUM($E300:P300),0)","v":0},{"$f":"IF(ISNUMBER(MATCH(R$295,model_years,0)),SUMIFS(raw_resource_build!$W:$W,raw_resource_build!$E:$E,'Portfolio Analytics'!$C300,raw_resource_build!$C:$C,mainzone,raw_resource_build!$A:$A,'Portfolio Analytics'!R$295)+SUMIFS(raw_resource_build!$Y:$Y,raw_resource_build!$E:$E,'Portfolio Analytics'!$C300,raw_resource_build!$C:$C,mainzone,raw_resource_build!$A:$A,'Portfolio Analytics'!R$295)-SUM($E300:Q300),0)","v":0},{"$f":"IF(ISNUMBER(MATCH(S$295,model_years,0)),SUMIFS(raw_resource_build!$W:$W,raw_resource_build!$E:$E,'Portfolio Analytics'!$C300,raw_resource_build!$C:$C,mainzone,raw_resource_build!$A:$A,'Portfolio Analytics'!S$295)+SUMIFS(raw_resource_build!$Y:$Y,raw_resource_build!$E:$E,'Portfolio Analytics'!$C300,raw_resource_build!$C:$C,mainzone,raw_resource_build!$A:$A,'Portfolio Analytics'!S$295)-SUM($E300:R300),0)","v":0},{"$f":"IF(ISNUMBER(MATCH(T$295,model_years,0)),SUMIFS(raw_resource_build!$W:$W,raw_resource_build!$E:$E,'Portfolio Analytics'!$C300,raw_resource_build!$C:$C,mainzone,raw_resource_build!$A:$A,'Portfolio Analytics'!T$295)+SUMIFS(raw_resource_build!$Y:$Y,raw_resource_build!$E:$E,'Portfolio Analytics'!$C300,raw_resource_build!$C:$C,mainzone,raw_resource_build!$A:$A,'Portfolio Analytics'!T$295)-SUM($E300:S300),0)","v":0},{"$f":"IF(ISNUMBER(MATCH(U$295,model_years,0)),SUMIFS(raw_resource_build!$W:$W,raw_resource_build!$E:$E,'Portfolio Analytics'!$C300,raw_resource_build!$C:$C,mainzone,raw_resource_build!$A:$A,'Portfolio Analytics'!U$295)+SUMIFS(raw_resource_build!$Y:$Y,raw_resource_build!$E:$E,'Portfolio Analytics'!$C300,raw_resource_build!$C:$C,mainzone,raw_resource_build!$A:$A,'Portfolio Analytics'!U$295)-SUM($E300:T300),0)","v":0},{"$f":"IF(ISNUMBER(MATCH(V$295,model_years,0)),SUMIFS(raw_resource_build!$W:$W,raw_resource_build!$E:$E,'Portfolio Analytics'!$C300,raw_resource_build!$C:$C,mainzone,raw_resource_build!$A:$A,'Portfolio Analytics'!V$295)+SUMIFS(raw_resource_build!$Y:$Y,raw_resource_build!$E:$E,'Portfolio Analytics'!$C300,raw_resource_build!$C:$C,mainzone,raw_resource_build!$A:$A,'Portfolio Analytics'!V$295)-SUM($E300:U300),0)","v":0},{"$f":"IF(ISNUMBER(MATCH(W$295,model_years,0)),SUMIFS(raw_resource_build!$W:$W,raw_resource_build!$E:$E,'Portfolio Analytics'!$C300,raw_resource_build!$C:$C,mainzone,raw_resource_build!$A:$A,'Portfolio Analytics'!W$295)+SUMIFS(raw_resource_build!$Y:$Y,raw_resource_build!$E:$E,'Portfolio Analytics'!$C300,raw_resource_build!$C:$C,mainzone,raw_resource_build!$A:$A,'Portfolio Analytics'!W$295)-SUM($E300:V300),0)","v":0},{"$f":"IF(ISNUMBER(MATCH(X$295,model_years,0)),SUMIFS(raw_resource_build!$W:$W,raw_resource_build!$E:$E,'Portfolio Analytics'!$C300,raw_resource_build!$C:$C,mainzone,raw_resource_build!$A:$A,'Portfolio Analytics'!X$295)+SUMIFS(raw_resource_build!$Y:$Y,raw_resource_build!$E:$E,'Portfolio Analytics'!$C300,raw_resource_build!$C:$C,mainzone,raw_resource_build!$A:$A,'Portfolio Analytics'!X$295)-SUM($E300:W300),0)","v":0},{"$f":"IF(ISNUMBER(MATCH(Y$295,model_years,0)),SUMIFS(raw_resource_build!$W:$W,raw_resource_build!$E:$E,'Portfolio Analytics'!$C300,raw_resource_build!$C:$C,mainzone,raw_resource_build!$A:$A,'Portfolio Analytics'!Y$295)+SUMIFS(raw_resource_build!$Y:$Y,raw_resource_build!$E:$E,'Portfolio Analytics'!$C300,raw_resource_build!$C:$C,mainzone,raw_resource_build!$A:$A,'Portfolio Analytics'!Y$295)-SUM($E300:X300),0)","v":0},{"$f":"IF(ISNUMBER(MATCH(Z$295,model_years,0)),SUMIFS(raw_resource_build!$W:$W,raw_resource_build!$E:$E,'Portfolio Analytics'!$C300,raw_resource_build!$C:$C,mainzone,raw_resource_build!$A:$A,'Portfolio Analytics'!Z$295)+SUMIFS(raw_resource_build!$Y:$Y,raw_resource_build!$E:$E,'Portfolio Analytics'!$C300,raw_resource_build!$C:$C,mainzone,raw_resource_build!$A:$A,'Portfolio Analytics'!Z$295)-SUM($E300:Y300),0)","v":0},{"$f":"IF(ISNUMBER(MATCH(AA$295,model_years,0)),SUMIFS(raw_resource_build!$W:$W,raw_resource_build!$E:$E,'Portfolio Analytics'!$C300,raw_resource_build!$C:$C,mainzone,raw_resource_build!$A:$A,'Portfolio Analytics'!AA$295)+SUMIFS(raw_resource_build!$Y:$Y,raw_resource_build!$E:$E,'Portfolio Analytics'!$C300,raw_resource_build!$C:$C,mainzone,raw_resource_build!$A:$A,'Portfolio Analytics'!AA$295)-SUM($E300:Z300),0)","v":0},{"$f":"IF(ISNUMBER(MATCH(AB$295,model_years,0)),SUMIFS(raw_resource_build!$W:$W,raw_resource_build!$E:$E,'Portfolio Analytics'!$C300,raw_resource_build!$C:$C,mainzone,raw_resource_build!$A:$A,'Portfolio Analytics'!AB$295)+SUMIFS(raw_resource_build!$Y:$Y,raw_resource_build!$E:$E,'Portfolio Analytics'!$C300,raw_resource_build!$C:$C,mainzone,raw_resource_build!$A:$A,'Portfolio Analytics'!AB$295)-SUM($E300:AA300),0)","v":0},{"$f":"IF(ISNUMBER(MATCH(AC$295,model_years,0)),SUMIFS(raw_resource_build!$W:$W,raw_resource_build!$E:$E,'Portfolio Analytics'!$C300,raw_resource_build!$C:$C,mainzone,raw_resource_build!$A:$A,'Portfolio Analytics'!AC$295)+SUMIFS(raw_resource_build!$Y:$Y,raw_resource_build!$E:$E,'Portfolio Analytics'!$C300,raw_resource_build!$C:$C,mainzone,raw_resource_build!$A:$A,'Portfolio Analytics'!AC$295)-SUM($E300:AB300),0)","v":0},{"$f":"IF(ISNUMBER(MATCH(AD$295,model_years,0)),SUMIFS(raw_resource_build!$W:$W,raw_resource_build!$E:$E,'Portfolio Analytics'!$C300,raw_resource_build!$C:$C,mainzone,raw_resource_build!$A:$A,'Portfolio Analytics'!AD$295)+SUMIFS(raw_resource_build!$Y:$Y,raw_resource_build!$E:$E,'Portfolio Analytics'!$C300,raw_resource_build!$C:$C,mainzone,raw_resource_build!$A:$A,'Portfolio Analytics'!AD$295)-SUM($E300:AC300),0)","v":0},{"$f":"IF(ISNUMBER(MATCH(AE$295,model_years,0)),SUMIFS(raw_resource_build!$W:$W,raw_resource_build!$E:$E,'Portfolio Analytics'!$C300,raw_resource_build!$C:$C,mainzone,raw_resource_build!$A:$A,'Portfolio Analytics'!AE$295)+SUMIFS(raw_resource_build!$Y:$Y,raw_resource_build!$E:$E,'Portfolio Analytics'!$C300,raw_resource_build!$C:$C,mainzone,raw_resource_build!$A:$A,'Portfolio Analytics'!AE$295)-SUM($E300:AD300),0)","v":0},{"$f":"IF(ISNUMBER(MATCH(AF$295,model_years,0)),SUMIFS(raw_resource_build!$W:$W,raw_resource_build!$E:$E,'Portfolio Analytics'!$C300,raw_resource_build!$C:$C,mainzone,raw_resource_build!$A:$A,'Portfolio Analytics'!AF$295)+SUMIFS(raw_resource_build!$Y:$Y,raw_resource_build!$E:$E,'Portfolio Analytics'!$C300,raw_resource_build!$C:$C,mainzone,raw_resource_build!$A:$A,'Portfolio Analytics'!AF$295)-SUM($E300:AE300),0)","v":0},{"$f":"IF(ISNUMBER(MATCH(AG$295,model_years,0)),SUMIFS(raw_resource_build!$W:$W,raw_resource_build!$E:$E,'Portfolio Analytics'!$C300,raw_resource_build!$C:$C,mainzone,raw_resource_build!$A:$A,'Portfolio Analytics'!AG$295)+SUMIFS(raw_resource_build!$Y:$Y,raw_resource_build!$E:$E,'Portfolio Analytics'!$C300,raw_resource_build!$C:$C,mainzone,raw_resource_build!$A:$A,'Portfolio Analytics'!AG$295)-SUM($E300:AF300),0)","v":0},{"$f":"IF(ISNUMBER(MATCH(AH$295,model_years,0)),SUMIFS(raw_resource_build!$W:$W,raw_resource_build!$E:$E,'Portfolio Analytics'!$C300,raw_resource_build!$C:$C,mainzone,raw_resource_build!$A:$A,'Portfolio Analytics'!AH$295)+SUMIFS(raw_resource_build!$Y:$Y,raw_resource_build!$E:$E,'Portfolio Analytics'!$C300,raw_resource_build!$C:$C,mainzone,raw_resource_build!$A:$A,'Portfolio Analytics'!AH$295)-SUM($E300:AG300),0)","v":0},{"$f":"IF(ISNUMBER(MATCH(AI$295,model_years,0)),SUMIFS(raw_resource_build!$W:$W,raw_resource_build!$E:$E,'Portfolio Analytics'!$C300,raw_resource_build!$C:$C,mainzone,raw_resource_build!$A:$A,'Portfolio Analytics'!AI$295)+SUMIFS(raw_resource_build!$Y:$Y,raw_resource_build!$E:$E,'Portfolio Analytics'!$C300,raw_resource_build!$C:$C,mainzone,raw_resource_build!$A:$A,'Portfolio Analytics'!AI$295)-SUM($E300:AH300),0)","v":1750.93},{"$f":"IF(ISNUMBER(MATCH(AJ$295,model_years,0)),SUMIFS(raw_resource_build!$W:$W,raw_resource_build!$E:$E,'Portfolio Analytics'!$C300,raw_resource_build!$C:$C,mainzone,raw_resource_build!$A:$A,'Portfolio Analytics'!AJ$295)+SUMIFS(raw_resource_build!$Y:$Y,raw_resource_build!$E:$E,'Portfolio Analytics'!$C300,raw_resource_build!$C:$C,mainzone,raw_resource_build!$A:$A,'Portfolio Analytics'!AJ$295)-SUM($E300:AI300),0)","v":0},{"$f":"IF(ISNUMBER(MATCH(AK$295,model_years,0)),SUMIFS(raw_resource_build!$W:$W,raw_resource_build!$E:$E,'Portfolio Analytics'!$C300,raw_resource_build!$C:$C,mainzone,raw_resource_build!$A:$A,'Portfolio Analytics'!AK$295)+SUMIFS(raw_resource_build!$Y:$Y,raw_resource_build!$E:$E,'Portfolio Analytics'!$C300,raw_resource_build!$C:$C,mainzone,raw_resource_build!$A:$A,'Portfolio Analytics'!AK$295)-SUM($E300:AJ300),0)","v":0},{"$f":"IF(ISNUMBER(MATCH(AL$295,model_years,0)),SUMIFS(raw_resource_build!$W:$W,raw_resource_build!$E:$E,'Portfolio Analytics'!$C300,raw_resource_build!$C:$C,mainzone,raw_resource_build!$A:$A,'Portfolio Analytics'!AL$295)+SUMIFS(raw_resource_build!$Y:$Y,raw_resource_build!$E:$E,'Portfolio Analytics'!$C300,raw_resource_build!$C:$C,mainzone,raw_resource_build!$A:$A,'Portfolio Analytics'!AL$295)-SUM($E300:AK300),0)","v":0},{"$f":"IF(ISNUMBER(MATCH(AM$295,model_years,0)),SUMIFS(raw_resource_build!$W:$W,raw_resource_build!$E:$E,'Portfolio Analytics'!$C300,raw_resource_build!$C:$C,mainzone,raw_resource_build!$A:$A,'Portfolio Analytics'!AM$295)+SUMIFS(raw_resource_build!$Y:$Y,raw_resource_build!$E:$E,'Portfolio Analytics'!$C300,raw_resource_build!$C:$C,mainzone,raw_resource_build!$A:$A,'Portfolio Analytics'!AM$295)-SUM($E300:AL300),0)","v":0},{"$f":"IF(ISNUMBER(MATCH(AN$295,model_years,0)),SUMIFS(raw_resource_build!$W:$W,raw_resource_build!$E:$E,'Portfolio Analytics'!$C300,raw_resource_build!$C:$C,mainzone,raw_resource_build!$A:$A,'Portfolio Analytics'!AN$295)+SUMIFS(raw_resource_build!$Y:$Y,raw_resource_build!$E:$E,'Portfolio Analytics'!$C300,raw_resource_build!$C:$C,mainzone,raw_resource_build!$A:$A,'Portfolio Analytics'!AN$295)-SUM($E300:AM300),0)","v":0}]
[null,null,"CAISO_Peaker2","MW",null,{"$f":"IF(ISNUMBER(MATCH(F$295,model_years,0)),SUMIFS(raw_resource_build!$W:$W,raw_resource_build!$E:$E,'Portfolio Analytics'!$C301,raw_resource_build!$C:$C,mainzone,raw_resource_build!$A:$A,'Portfolio Analytics'!F$295)+SUMIFS(raw_resource_build!$Y:$Y,raw_resource_build!$E:$E,'Portfolio Analytics'!$C301,raw_resource_build!$C:$C,mainzone,raw_resource_build!$A:$A,'Portfolio Analytics'!F$295)-SUM($E301:E301),0)","v":0},{"$f":"IF(ISNUMBER(MATCH(G$295,model_years,0)),SUMIFS(raw_resource_build!$W:$W,raw_resource_build!$E:$E,'Portfolio Analytics'!$C301,raw_resource_build!$C:$C,mainzone,raw_resource_build!$A:$A,'Portfolio Analytics'!G$295)+SUMIFS(raw_resource_build!$Y:$Y,raw_resource_build!$E:$E,'Portfolio Analytics'!$C301,raw_resource_build!$C:$C,mainzone,raw_resource_build!$A:$A,'Portfolio Analytics'!G$295)-SUM($E301:F301),0)","v":0},{"$f":"IF(ISNUMBER(MATCH(H$295,model_years,0)),SUMIFS(raw_resource_build!$W:$W,raw_resource_build!$E:$E,'Portfolio Analytics'!$C301,raw_resource_build!$C:$C,mainzone,raw_resource_build!$A:$A,'Portfolio Analytics'!H$295)+SUMIFS(raw_resource_build!$Y:$Y,raw_resource_build!$E:$E,'Portfolio Analytics'!$C301,raw_resource_build!$C:$C,mainzone,raw_resource_build!$A:$A,'Portfolio Analytics'!H$295)-SUM($E301:G301),0)","v":0},{"$f":"IF(ISNUMBER(MATCH(I$295,model_years,0)),SUMIFS(raw_resource_build!$W:$W,raw_resource_build!$E:$E,'Portfolio Analytics'!$C301,raw_resource_build!$C:$C,mainzone,raw_resource_build!$A:$A,'Portfolio Analytics'!I$295)+SUMIFS(raw_resource_build!$Y:$Y,raw_resource_build!$E:$E,'Portfolio Analytics'!$C301,raw_resource_build!$C:$C,mainzone,raw_resource_build!$A:$A,'Portfolio Analytics'!I$295)-SUM($E301:H301),0)","v":0},{"$f":"IF(ISNUMBER(MATCH(J$295,model_years,0)),SUMIFS(raw_resource_build!$W:$W,raw_resource_build!$E:$E,'Portfolio Analytics'!$C301,raw_resource_build!$C:$C,mainzone,raw_resource_build!$A:$A,'Portfolio Analytics'!J$295)+SUMIFS(raw_resource_build!$Y:$Y,raw_resource_build!$E:$E,'Portfolio Analytics'!$C301,raw_resource_build!$C:$C,mainzone,raw_resource_build!$A:$A,'Portfolio Analytics'!J$295)-SUM($E301:I301),0)","v":0},{"$f":"IF(ISNUMBER(MATCH(K$295,model_years,0)),SUMIFS(raw_resource_build!$W:$W,raw_resource_build!$E:$E,'Portfolio Analytics'!$C301,raw_resource_build!$C:$C,mainzone,raw_resource_build!$A:$A,'Portfolio Analytics'!K$295)+SUMIFS(raw_resource_build!$Y:$Y,raw_resource_build!$E:$E,'Portfolio Analytics'!$C301,raw_resource_build!$C:$C,mainzone,raw_resource_build!$A:$A,'Portfolio Analytics'!K$295)-SUM($E301:J301),0)","v":0},{"$f":"IF(ISNUMBER(MATCH(L$295,model_years,0)),SUMIFS(raw_resource_build!$W:$W,raw_resource_build!$E:$E,'Portfolio Analytics'!$C301,raw_resource_build!$C:$C,mainzone,raw_resource_build!$A:$A,'Portfolio Analytics'!L$295)+SUMIFS(raw_resource_build!$Y:$Y,raw_resource_build!$E:$E,'Portfolio Analytics'!$C301,raw_resource_build!$C:$C,mainzone,raw_resource_build!$A:$A,'Portfolio Analytics'!L$295)-SUM($E301:K301),0)","v":0},{"$f":"IF(ISNUMBER(MATCH(M$295,model_years,0)),SUMIFS(raw_resource_build!$W:$W,raw_resource_build!$E:$E,'Portfolio Analytics'!$C301,raw_resource_build!$C:$C,mainzone,raw_resource_build!$A:$A,'Portfolio Analytics'!M$295)+SUMIFS(raw_resource_build!$Y:$Y,raw_resource_build!$E:$E,'Portfolio Analytics'!$C301,raw_resource_build!$C:$C,mainzone,raw_resource_build!$A:$A,'Portfolio Analytics'!M$295)-SUM($E301:L301),0)","v":0},{"$f":"IF(ISNUMBER(MATCH(N$295,model_years,0)),SUMIFS(raw_resource_build!$W:$W,raw_resource_build!$E:$E,'Portfolio Analytics'!$C301,raw_resource_build!$C:$C,mainzone,raw_resource_build!$A:$A,'Portfolio Analytics'!N$295)+SUMIFS(raw_resource_build!$Y:$Y,raw_resource_build!$E:$E,'Portfolio Analytics'!$C301,raw_resource_build!$C:$C,mainzone,raw_resource_build!$A:$A,'Portfolio Analytics'!N$295)-SUM($E301:M301),0)","v":0},{"$f":"IF(ISNUMBER(MATCH(O$295,model_years,0)),SUMIFS(raw_resource_build!$W:$W,raw_resource_build!$E:$E,'Portfolio Analytics'!$C301,raw_resource_build!$C:$C,mainzone,raw_resource_build!$A:$A,'Portfolio Analytics'!O$295)+SUMIFS(raw_resource_build!$Y:$Y,raw_resource_build!$E:$E,'Portfolio Analytics'!$C301,raw_resource_build!$C:$C,mainzone,raw_resource_build!$A:$A,'Portfolio Analytics'!O$295)-SUM($E301:N301),0)","v":0},{"$f":"IF(ISNUMBER(MATCH(P$295,model_years,0)),SUMIFS(raw_resource_build!$W:$W,raw_resource_build!$E:$E,'Portfolio Analytics'!$C301,raw_resource_build!$C:$C,mainzone,raw_resource_build!$A:$A,'Portfolio Analytics'!P$295)+SUMIFS(raw_resource_build!$Y:$Y,raw_resource_build!$E:$E,'Portfolio Analytics'!$C301,raw_resource_build!$C:$C,mainzone,raw_resource_build!$A:$A,'Portfolio Analytics'!P$295)-SUM($E301:O301),0)","v":0},{"$f":"IF(ISNUMBER(MATCH(Q$295,model_years,0)),SUMIFS(raw_resource_build!$W:$W,raw_resource_build!$E:$E,'Portfolio Analytics'!$C301,raw_resource_build!$C:$C,mainzone,raw_resource_build!$A:$A,'Portfolio Analytics'!Q$295)+SUMIFS(raw_resource_build!$Y:$Y,raw_resource_build!$E:$E,'Portfolio Analytics'!$C301,raw_resource_build!$C:$C,mainzone,raw_resource_build!$A:$A,'Portfolio Analytics'!Q$295)-SUM($E301:P301),0)","v":0},{"$f":"IF(ISNUMBER(MATCH(R$295,model_years,0)),SUMIFS(raw_resource_build!$W:$W,raw_resource_build!$E:$E,'Portfolio Analytics'!$C301,raw_resource_build!$C:$C,mainzone,raw_resource_build!$A:$A,'Portfolio Analytics'!R$295)+SUMIFS(raw_resource_build!$Y:$Y,raw_resource_build!$E:$E,'Portfolio Analytics'!$C301,raw_resource_build!$C:$C,mainzone,raw_resource_build!$A:$A,'Portfolio Analytics'!R$295)-SUM($E301:Q301),0)","v":0},{"$f":"IF(ISNUMBER(MATCH(S$295,model_years,0)),SUMIFS(raw_resource_build!$W:$W,raw_resource_build!$E:$E,'Portfolio Analytics'!$C301,raw_resource_build!$C:$C,mainzone,raw_resource_build!$A:$A,'Portfolio Analytics'!S$295)+SUMIFS(raw_resource_build!$Y:$Y,raw_resource_build!$E:$E,'Portfolio Analytics'!$C301,raw_resource_build!$C:$C,mainzone,raw_resource_build!$A:$A,'Portfolio Analytics'!S$295)-SUM($E301:R301),0)","v":0},{"$f":"IF(ISNUMBER(MATCH(T$295,model_years,0)),SUMIFS(raw_resource_build!$W:$W,raw_resource_build!$E:$E,'Portfolio Analytics'!$C301,raw_resource_build!$C:$C,mainzone,raw_resource_build!$A:$A,'Portfolio Analytics'!T$295)+SUMIFS(raw_resource_build!$Y:$Y,raw_resource_build!$E:$E,'Portfolio Analytics'!$C301,raw_resource_build!$C:$C,mainzone,raw_resource_build!$A:$A,'Portfolio Analytics'!T$295)-SUM($E301:S301),0)","v":0},{"$f":"IF(ISNUMBER(MATCH(U$295,model_years,0)),SUMIFS(raw_resource_build!$W:$W,raw_resource_build!$E:$E,'Portfolio Analytics'!$C301,raw_resource_build!$C:$C,mainzone,raw_resource_build!$A:$A,'Portfolio Analytics'!U$295)+SUMIFS(raw_resource_build!$Y:$Y,raw_resource_build!$E:$E,'Portfolio Analytics'!$C301,raw_resource_build!$C:$C,mainzone,raw_resource_build!$A:$A,'Portfolio Analytics'!U$295)-SUM($E301:T301),0)","v":0},{"$f":"IF(ISNUMBER(MATCH(V$295,model_years,0)),SUMIFS(raw_resource_build!$W:$W,raw_resource_build!$E:$E,'Portfolio Analytics'!$C301,raw_resource_build!$C:$C,mainzone,raw_resource_build!$A:$A,'Portfolio Analytics'!V$295)+SUMIFS(raw_resource_build!$Y:$Y,raw_resource_build!$E:$E,'Portfolio Analytics'!$C301,raw_resource_build!$C:$C,mainzone,raw_resource_build!$A:$A,'Portfolio Analytics'!V$295)-SUM($E301:U301),0)","v":0},{"$f":"IF(ISNUMBER(MATCH(W$295,model_years,0)),SUMIFS(raw_resource_build!$W:$W,raw_resource_build!$E:$E,'Portfolio Analytics'!$C301,raw_resource_build!$C:$C,mainzone,raw_resource_build!$A:$A,'Portfolio Analytics'!W$295)+SUMIFS(raw_resource_build!$Y:$Y,raw_resource_build!$E:$E,'Portfolio Analytics'!$C301,raw_resource_build!$C:$C,mainzone,raw_resource_build!$A:$A,'Portfolio Analytics'!W$295)-SUM($E301:V301),0)","v":0},{"$f":"IF(ISNUMBER(MATCH(X$295,model_years,0)),SUMIFS(raw_resource_build!$W:$W,raw_resource_build!$E:$E,'Portfolio Analytics'!$C301,raw_resource_build!$C:$C,mainzone,raw_resource_build!$A:$A,'Portfolio Analytics'!X$295)+SUMIFS(raw_resource_build!$Y:$Y,raw_resource_build!$E:$E,'Portfolio Analytics'!$C301,raw_resource_build!$C:$C,mainzone,raw_resource_build!$A:$A,'Portfolio Analytics'!X$295)-SUM($E301:W301),0)","v":0},{"$f":"IF(ISNUMBER(MATCH(Y$295,model_years,0)),SUMIFS(raw_resource_build!$W:$W,raw_resource_build!$E:$E,'Portfolio Analytics'!$C301,raw_resource_build!$C:$C,mainzone,raw_resource_build!$A:$A,'Portfolio Analytics'!Y$295)+SUMIFS(raw_resource_build!$Y:$Y,raw_resource_build!$E:$E,'Portfolio Analytics'!$C301,raw_resource_build!$C:$C,mainzone,raw_resource_build!$A:$A,'Portfolio Analytics'!Y$295)-SUM($E301:X301),0)","v":0},{"$f":"IF(ISNUMBER(MATCH(Z$295,model_years,0)),SUMIFS(raw_resource_build!$W:$W,raw_resource_build!$E:$E,'Portfolio Analytics'!$C301,raw_resource_build!$C:$C,mainzone,raw_resource_build!$A:$A,'Portfolio Analytics'!Z$295)+SUMIFS(raw_resource_build!$Y:$Y,raw_resource_build!$E:$E,'Portfolio Analytics'!$C301,raw_resource_build!$C:$C,mainzone,raw_resource_build!$A:$A,'Portfolio Analytics'!Z$295)-SUM($E301:Y301),0)","v":0},{"$f":"IF(ISNUMBER(MATCH(AA$295,model_years,0)),SUMIFS(raw_resource_build!$W:$W,raw_resource_build!$E:$E,'Portfolio Analytics'!$C301,raw_resource_build!$C:$C,mainzone,raw_resource_build!$A:$A,'Portfolio Analytics'!AA$295)+SUMIFS(raw_resource_build!$Y:$Y,raw_resource_build!$E:$E,'Portfolio Analytics'!$C301,raw_resource_build!$C:$C,mainzone,raw_resource_build!$A:$A,'Portfolio Analytics'!AA$295)-SUM($E301:Z301),0)","v":0},{"$f":"IF(ISNUMBER(MATCH(AB$295,model_years,0)),SUMIFS(raw_resource_build!$W:$W,raw_resource_build!$E:$E,'Portfolio Analytics'!$C301,raw_resource_build!$C:$C,mainzone,raw_resource_build!$A:$A,'Portfolio Analytics'!AB$295)+SUMIFS(raw_resource_build!$Y:$Y,raw_resource_build!$E:$E,'Portfolio Analytics'!$C301,raw_resource_build!$C:$C,mainzone,raw_resource_build!$A:$A,'Portfolio Analytics'!AB$295)-SUM($E301:AA301),0)","v":0},{"$f":"IF(ISNUMBER(MATCH(AC$295,model_years,0)),SUMIFS(raw_resource_build!$W:$W,raw_resource_build!$E:$E,'Portfolio Analytics'!$C301,raw_resource_build!$C:$C,mainzone,raw_resource_build!$A:$A,'Portfolio Analytics'!AC$295)+SUMIFS(raw_resource_build!$Y:$Y,raw_resource_build!$E:$E,'Portfolio Analytics'!$C301,raw_resource_build!$C:$C,mainzone,raw_resource_build!$A:$A,'Portfolio Analytics'!AC$295)-SUM($E301:AB301),0)","v":0},{"$f":"IF(ISNUMBER(MATCH(AD$295,model_years,0)),SUMIFS(raw_resource_build!$W:$W,raw_resource_build!$E:$E,'Portfolio Analytics'!$C301,raw_resource_build!$C:$C,mainzone,raw_resource_build!$A:$A,'Portfolio Analytics'!AD$295)+SUMIFS(raw_resource_build!$Y:$Y,raw_resource_build!$E:$E,'Portfolio Analytics'!$C301,raw_resource_build!$C:$C,mainzone,raw_resource_build!$A:$A,'Portfolio Analytics'!AD$295)-SUM($E301:AC301),0)","v":0},{"$f":"IF(ISNUMBER(MATCH(AE$295,model_years,0)),SUMIFS(raw_resource_build!$W:$W,raw_resource_build!$E:$E,'Portfolio Analytics'!$C301,raw_resource_build!$C:$C,mainzone,raw_resource_build!$A:$A,'Portfolio Analytics'!AE$295)+SUMIFS(raw_resource_build!$Y:$Y,raw_resource_build!$E:$E,'Portfolio Analytics'!$C301,raw_resource_build!$C:$C,mainzone,raw_resource_build!$A:$A,'Portfolio Analytics'!AE$295)-SUM($E301:AD301),0)","v":0},{"$f":"IF(ISNUMBER(MATCH(AF$295,model_years,0)),SUMIFS(raw_resource_build!$W:$W,raw_resource_build!$E:$E,'Portfolio Analytics'!$C301,raw_resource_build!$C:$C,mainzone,raw_resource_build!$A:$A,'Portfolio Analytics'!AF$295)+SUMIFS(raw_resource_build!$Y:$Y,raw_resource_build!$E:$E,'Portfolio Analytics'!$C301,raw_resource_build!$C:$C,mainzone,raw_resource_build!$A:$A,'Portfolio Analytics'!AF$295)-SUM($E301:AE301),0)","v":0},{"$f":"IF(ISNUMBER(MATCH(AG$295,model_years,0)),SUMIFS(raw_resource_build!$W:$W,raw_resource_build!$E:$E,'Portfolio Analytics'!$C301,raw_resource_build!$C:$C,mainzone,raw_resource_build!$A:$A,'Portfolio Analytics'!AG$295)+SUMIFS(raw_resource_build!$Y:$Y,raw_resource_build!$E:$E,'Portfolio Analytics'!$C301,raw_resource_build!$C:$C,mainzone,raw_resource_build!$A:$A,'Portfolio Analytics'!AG$295)-SUM($E301:AF301),0)","v":0},{"$f":"IF(ISNUMBER(MATCH(AH$295,model_years,0)),SUMIFS(raw_resource_build!$W:$W,raw_resource_build!$E:$E,'Portfolio Analytics'!$C301,raw_resource_build!$C:$C,mainzone,raw_resource_build!$A:$A,'Portfolio Analytics'!AH$295)+SUMIFS(raw_resource_build!$Y:$Y,raw_resource_build!$E:$E,'Portfolio Analytics'!$C301,raw_resource_build!$C:$C,mainzone,raw_resource_build!$A:$A,'Portfolio Analytics'!AH$295)-SUM($E301:AG301),0)","v":0},{"$f":"IF(ISNUMBER(MATCH(AI$295,model_years,0)),SUMIFS(raw_resource_build!$W:$W,raw_resource_build!$E:$E,'Portfolio Analytics'!$C301,raw_resource_build!$C:$C,mainzone,raw_resource_build!$A:$A,'Portfolio Analytics'!AI$295)+SUMIFS(raw_resource_build!$Y:$Y,raw_resource_build!$E:$E,'Portfolio Analytics'!$C301,raw_resource_build!$C:$C,mainzone,raw_resource_build!$A:$A,'Portfolio Analytics'!AI$295)-SUM($E301:AH301),0)","v":2018.83},{"$f":"IF(ISNUMBER(MATCH(AJ$295,model_years,0)),SUMIFS(raw_resource_build!$W:$W,raw_resource_build!$E:$E,'Portfolio Analytics'!$C301,raw_resource_build!$C:$C,mainzone,raw_resource_build!$A:$A,'Portfolio Analytics'!AJ$295)+SUMIFS(raw_resource_build!$Y:$Y,raw_resource_build!$E:$E,'Portfolio Analytics'!$C301,raw_resource_build!$C:$C,mainzone,raw_resource_build!$A:$A,'Portfolio Analytics'!AJ$295)-SUM($E301:AI301),0)","v":0},{"$f":"IF(ISNUMBER(MATCH(AK$295,model_years,0)),SUMIFS(raw_resource_build!$W:$W,raw_resource_build!$E:$E,'Portfolio Analytics'!$C301,raw_resource_build!$C:$C,mainzone,raw_resource_build!$A:$A,'Portfolio Analytics'!AK$295)+SUMIFS(raw_resource_build!$Y:$Y,raw_resource_build!$E:$E,'Portfolio Analytics'!$C301,raw_resource_build!$C:$C,mainzone,raw_resource_build!$A:$A,'Portfolio Analytics'!AK$295)-SUM($E301:AJ301),0)","v":0},{"$f":"IF(ISNUMBER(MATCH(AL$295,model_years,0)),SUMIFS(raw_resource_build!$W:$W,raw_resource_build!$E:$E,'Portfolio Analytics'!$C301,raw_resource_build!$C:$C,mainzone,raw_resource_build!$A:$A,'Portfolio Analytics'!AL$295)+SUMIFS(raw_resource_build!$Y:$Y,raw_resource_build!$E:$E,'Portfolio Analytics'!$C301,raw_resource_build!$C:$C,mainzone,raw_resource_build!$A:$A,'Portfolio Analytics'!AL$295)-SUM($E301:AK301),0)","v":0},{"$f":"IF(ISNUMBER(MATCH(AM$295,model_years,0)),SUMIFS(raw_resource_build!$W:$W,raw_resource_build!$E:$E,'Portfolio Analytics'!$C301,raw_resource_build!$C:$C,mainzone,raw_resource_build!$A:$A,'Portfolio Analytics'!AM$295)+SUMIFS(raw_resource_build!$Y:$Y,raw_resource_build!$E:$E,'Portfolio Analytics'!$C301,raw_resource_build!$C:$C,mainzone,raw_resource_build!$A:$A,'Portfolio Analytics'!AM$295)-SUM($E301:AL301),0)","v":0},{"$f":"IF(ISNUMBER(MATCH(AN$295,model_years,0)),SUMIFS(raw_resource_build!$W:$W,raw_resource_build!$E:$E,'Portfolio Analytics'!$C301,raw_resource_build!$C:$C,mainzone,raw_resource_build!$A:$A,'Portfolio Analytics'!AN$295)+SUMIFS(raw_resource_build!$Y:$Y,raw_resource_build!$E:$E,'Portfolio Analytics'!$C301,raw_resource_build!$C:$C,mainzone,raw_resource_build!$A:$A,'Portfolio Analytics'!AN$295)-SUM($E301:AM301),0)","v":0}]
[null,null,"CAISO_Reciprocating_Engine","MW",null,{"$f":"IF(ISNUMBER(MATCH(F$295,model_years,0)),SUMIFS(raw_resource_build!$W:$W,raw_resource_build!$E:$E,'Portfolio Analytics'!$C302,raw_resource_build!$C:$C,mainzone,raw_resource_build!$A:$A,'Portfolio Analytics'!F$295)+SUMIFS(raw_resource_build!$Y:$Y,raw_resource_build!$E:$E,'Portfolio Analytics'!$C302,raw_resource_build!$C:$C,mainzone,raw_resource_build!$A:$A,'Portfolio Analytics'!F$295)-SUM($E302:E302),0)","v":0},{"$f":"IF(ISNUMBER(MATCH(G$295,model_years,0)),SUMIFS(raw_resource_build!$W:$W,raw_resource_build!$E:$E,'Portfolio Analytics'!$C302,raw_resource_build!$C:$C,mainzone,raw_resource_build!$A:$A,'Portfolio Analytics'!G$295)+SUMIFS(raw_resource_build!$Y:$Y,raw_resource_build!$E:$E,'Portfolio Analytics'!$C302,raw_resource_build!$C:$C,mainzone,raw_resource_build!$A:$A,'Portfolio Analytics'!G$295)-SUM($E302:F302),0)","v":0},{"$f":"IF(ISNUMBER(MATCH(H$295,model_years,0)),SUMIFS(raw_resource_build!$W:$W,raw_resource_build!$E:$E,'Portfolio Analytics'!$C302,raw_resource_build!$C:$C,mainzone,raw_resource_build!$A:$A,'Portfolio Analytics'!H$295)+SUMIFS(raw_resource_build!$Y:$Y,raw_resource_build!$E:$E,'Portfolio Analytics'!$C302,raw_resource_build!$C:$C,mainzone,raw_resource_build!$A:$A,'Portfolio Analytics'!H$295)-SUM($E302:G302),0)","v":0},{"$f":"IF(ISNUMBER(MATCH(I$295,model_years,0)),SUMIFS(raw_resource_build!$W:$W,raw_resource_build!$E:$E,'Portfolio Analytics'!$C302,raw_resource_build!$C:$C,mainzone,raw_resource_build!$A:$A,'Portfolio Analytics'!I$295)+SUMIFS(raw_resource_build!$Y:$Y,raw_resource_build!$E:$E,'Portfolio Analytics'!$C302,raw_resource_build!$C:$C,mainzone,raw_resource_build!$A:$A,'Portfolio Analytics'!I$295)-SUM($E302:H302),0)","v":0},{"$f":"IF(ISNUMBER(MATCH(J$295,model_years,0)),SUMIFS(raw_resource_build!$W:$W,raw_resource_build!$E:$E,'Portfolio Analytics'!$C302,raw_resource_build!$C:$C,mainzone,raw_resource_build!$A:$A,'Portfolio Analytics'!J$295)+SUMIFS(raw_resource_build!$Y:$Y,raw_resource_build!$E:$E,'Portfolio Analytics'!$C302,raw_resource_build!$C:$C,mainzone,raw_resource_build!$A:$A,'Portfolio Analytics'!J$295)-SUM($E302:I302),0)","v":0},{"$f":"IF(ISNUMBER(MATCH(K$295,model_years,0)),SUMIFS(raw_resource_build!$W:$W,raw_resource_build!$E:$E,'Portfolio Analytics'!$C302,raw_resource_build!$C:$C,mainzone,raw_resource_build!$A:$A,'Portfolio Analytics'!K$295)+SUMIFS(raw_resource_build!$Y:$Y,raw_resource_build!$E:$E,'Portfolio Analytics'!$C302,raw_resource_build!$C:$C,mainzone,raw_resource_build!$A:$A,'Portfolio Analytics'!K$295)-SUM($E302:J302),0)","v":0},{"$f":"IF(ISNUMBER(MATCH(L$295,model_years,0)),SUMIFS(raw_resource_build!$W:$W,raw_resource_build!$E:$E,'Portfolio Analytics'!$C302,raw_resource_build!$C:$C,mainzone,raw_resource_build!$A:$A,'Portfolio Analytics'!L$295)+SUMIFS(raw_resource_build!$Y:$Y,raw_resource_build!$E:$E,'Portfolio Analytics'!$C302,raw_resource_build!$C:$C,mainzone,raw_resource_build!$A:$A,'Portfolio Analytics'!L$295)-SUM($E302:K302),0)","v":0},{"$f":"IF(ISNUMBER(MATCH(M$295,model_years,0)),SUMIFS(raw_resource_build!$W:$W,raw_resource_build!$E:$E,'Portfolio Analytics'!$C302,raw_resource_build!$C:$C,mainzone,raw_resource_build!$A:$A,'Portfolio Analytics'!M$295)+SUMIFS(raw_resource_build!$Y:$Y,raw_resource_build!$E:$E,'Portfolio Analytics'!$C302,raw_resource_build!$C:$C,mainzone,raw_resource_build!$A:$A,'Portfolio Analytics'!M$295)-SUM($E302:L302),0)","v":0},{"$f":"IF(ISNUMBER(MATCH(N$295,model_years,0)),SUMIFS(raw_resource_build!$W:$W,raw_resource_build!$E:$E,'Portfolio Analytics'!$C302,raw_resource_build!$C:$C,mainzone,raw_resource_build!$A:$A,'Portfolio Analytics'!N$295)+SUMIFS(raw_resource_build!$Y:$Y,raw_resource_build!$E:$E,'Portfolio Analytics'!$C302,raw_resource_build!$C:$C,mainzone,raw_resource_build!$A:$A,'Portfolio Analytics'!N$295)-SUM($E302:M302),0)","v":0},{"$f":"IF(ISNUMBER(MATCH(O$295,model_years,0)),SUMIFS(raw_resource_build!$W:$W,raw_resource_build!$E:$E,'Portfolio Analytics'!$C302,raw_resource_build!$C:$C,mainzone,raw_resource_build!$A:$A,'Portfolio Analytics'!O$295)+SUMIFS(raw_resource_build!$Y:$Y,raw_resource_build!$E:$E,'Portfolio Analytics'!$C302,raw_resource_build!$C:$C,mainzone,raw_resource_build!$A:$A,'Portfolio Analytics'!O$295)-SUM($E302:N302),0)","v":0},{"$f":"IF(ISNUMBER(MATCH(P$295,model_years,0)),SUMIFS(raw_resource_build!$W:$W,raw_resource_build!$E:$E,'Portfolio Analytics'!$C302,raw_resource_build!$C:$C,mainzone,raw_resource_build!$A:$A,'Portfolio Analytics'!P$295)+SUMIFS(raw_resource_build!$Y:$Y,raw_resource_build!$E:$E,'Portfolio Analytics'!$C302,raw_resource_build!$C:$C,mainzone,raw_resource_build!$A:$A,'Portfolio Analytics'!P$295)-SUM($E302:O302),0)","v":0},{"$f":"IF(ISNUMBER(MATCH(Q$295,model_years,0)),SUMIFS(raw_resource_build!$W:$W,raw_resource_build!$E:$E,'Portfolio Analytics'!$C302,raw_resource_build!$C:$C,mainzone,raw_resource_build!$A:$A,'Portfolio Analytics'!Q$295)+SUMIFS(raw_resource_build!$Y:$Y,raw_resource_build!$E:$E,'Portfolio Analytics'!$C302,raw_resource_build!$C:$C,mainzone,raw_resource_build!$A:$A,'Portfolio Analytics'!Q$295)-SUM($E302:P302),0)","v":0},{"$f":"IF(ISNUMBER(MATCH(R$295,model_years,0)),SUMIFS(raw_resource_build!$W:$W,raw_resource_build!$E:$E,'Portfolio Analytics'!$C302,raw_resource_build!$C:$C,mainzone,raw_resource_build!$A:$A,'Portfolio Analytics'!R$295)+SUMIFS(raw_resource_build!$Y:$Y,raw_resource_build!$E:$E,'Portfolio Analytics'!$C302,raw_resource_build!$C:$C,mainzone,raw_resource_build!$A:$A,'Portfolio Analytics'!R$295)-SUM($E302:Q302),0)","v":0},{"$f":"IF(ISNUMBER(MATCH(S$295,model_years,0)),SUMIFS(raw_resource_build!$W:$W,raw_resource_build!$E:$E,'Portfolio Analytics'!$C302,raw_resource_build!$C:$C,mainzone,raw_resource_build!$A:$A,'Portfolio Analytics'!S$295)+SUMIFS(raw_resource_build!$Y:$Y,raw_resource_build!$E:$E,'Portfolio Analytics'!$C302,raw_resource_build!$C:$C,mainzone,raw_resource_build!$A:$A,'Portfolio Analytics'!S$295)-SUM($E302:R302),0)","v":0},{"$f":"IF(ISNUMBER(MATCH(T$295,model_years,0)),SUMIFS(raw_resource_build!$W:$W,raw_resource_build!$E:$E,'Portfolio Analytics'!$C302,raw_resource_build!$C:$C,mainzone,raw_resource_build!$A:$A,'Portfolio Analytics'!T$295)+SUMIFS(raw_resource_build!$Y:$Y,raw_resource_build!$E:$E,'Portfolio Analytics'!$C302,raw_resource_build!$C:$C,mainzone,raw_resource_build!$A:$A,'Portfolio Analytics'!T$295)-SUM($E302:S302),0)","v":0},{"$f":"IF(ISNUMBER(MATCH(U$295,model_years,0)),SUMIFS(raw_resource_build!$W:$W,raw_resource_build!$E:$E,'Portfolio Analytics'!$C302,raw_resource_build!$C:$C,mainzone,raw_resource_build!$A:$A,'Portfolio Analytics'!U$295)+SUMIFS(raw_resource_build!$Y:$Y,raw_resource_build!$E:$E,'Portfolio Analytics'!$C302,raw_resource_build!$C:$C,mainzone,raw_resource_build!$A:$A,'Portfolio Analytics'!U$295)-SUM($E302:T302),0)","v":0},{"$f":"IF(ISNUMBER(MATCH(V$295,model_years,0)),SUMIFS(raw_resource_build!$W:$W,raw_resource_build!$E:$E,'Portfolio Analytics'!$C302,raw_resource_build!$C:$C,mainzone,raw_resource_build!$A:$A,'Portfolio Analytics'!V$295)+SUMIFS(raw_resource_build!$Y:$Y,raw_resource_build!$E:$E,'Portfolio Analytics'!$C302,raw_resource_build!$C:$C,mainzone,raw_resource_build!$A:$A,'Portfolio Analytics'!V$295)-SUM($E302:U302),0)","v":0},{"$f":"IF(ISNUMBER(MATCH(W$295,model_years,0)),SUMIFS(raw_resource_build!$W:$W,raw_resource_build!$E:$E,'Portfolio Analytics'!$C302,raw_resource_build!$C:$C,mainzone,raw_resource_build!$A:$A,'Portfolio Analytics'!W$295)+SUMIFS(raw_resource_build!$Y:$Y,raw_resource_build!$E:$E,'Portfolio Analytics'!$C302,raw_resource_build!$C:$C,mainzone,raw_resource_build!$A:$A,'Portfolio Analytics'!W$295)-SUM($E302:V302),0)","v":0},{"$f":"IF(ISNUMBER(MATCH(X$295,model_years,0)),SUMIFS(raw_resource_build!$W:$W,raw_resource_build!$E:$E,'Portfolio Analytics'!$C302,raw_resource_build!$C:$C,mainzone,raw_resource_build!$A:$A,'Portfolio Analytics'!X$295)+SUMIFS(raw_resource_build!$Y:$Y,raw_resource_build!$E:$E,'Portfolio Analytics'!$C302,raw_resource_build!$C:$C,mainzone,raw_resource_build!$A:$A,'Portfolio Analytics'!X$295)-SUM($E302:W302),0)","v":0},{"$f":"IF(ISNUMBER(MATCH(Y$295,model_years,0)),SUMIFS(raw_resource_build!$W:$W,raw_resource_build!$E:$E,'Portfolio Analytics'!$C302,raw_resource_build!$C:$C,mainzone,raw_resource_build!$A:$A,'Portfolio Analytics'!Y$295)+SUMIFS(raw_resource_build!$Y:$Y,raw_resource_build!$E:$E,'Portfolio Analytics'!$C302,raw_resource_build!$C:$C,mainzone,raw_resource_build!$A:$A,'Portfolio Analytics'!Y$295)-SUM($E302:X302),0)","v":0},{"$f":"IF(ISNUMBER(MATCH(Z$295,model_years,0)),SUMIFS(raw_resource_build!$W:$W,raw_resource_build!$E:$E,'Portfolio Analytics'!$C302,raw_resource_build!$C:$C,mainzone,raw_resource_build!$A:$A,'Portfolio Analytics'!Z$295)+SUMIFS(raw_resource_build!$Y:$Y,raw_resource_build!$E:$E,'Portfolio Analytics'!$C302,raw_resource_build!$C:$C,mainzone,raw_resource_build!$A:$A,'Portfolio Analytics'!Z$295)-SUM($E302:Y302),0)","v":0},{"$f":"IF(ISNUMBER(MATCH(AA$295,model_years,0)),SUMIFS(raw_resource_build!$W:$W,raw_resource_build!$E:$E,'Portfolio Analytics'!$C302,raw_resource_build!$C:$C,mainzone,raw_resource_build!$A:$A,'Portfolio Analytics'!AA$295)+SUMIFS(raw_resource_build!$Y:$Y,raw_resource_build!$E:$E,'Portfolio Analytics'!$C302,raw_resource_build!$C:$C,mainzone,raw_resource_build!$A:$A,'Portfolio Analytics'!AA$295)-SUM($E302:Z302),0)","v":0},{"$f":"IF(ISNUMBER(MATCH(AB$295,model_years,0)),SUMIFS(raw_resource_build!$W:$W,raw_resource_build!$E:$E,'Portfolio Analytics'!$C302,raw_resource_build!$C:$C,mainzone,raw_resource_build!$A:$A,'Portfolio Analytics'!AB$295)+SUMIFS(raw_resource_build!$Y:$Y,raw_resource_build!$E:$E,'Portfolio Analytics'!$C302,raw_resource_build!$C:$C,mainzone,raw_resource_build!$A:$A,'Portfolio Analytics'!AB$295)-SUM($E302:AA302),0)","v":0},{"$f":"IF(ISNUMBER(MATCH(AC$295,model_years,0)),SUMIFS(raw_resource_build!$W:$W,raw_resource_build!$E:$E,'Portfolio Analytics'!$C302,raw_resource_build!$C:$C,mainzone,raw_resource_build!$A:$A,'Portfolio Analytics'!AC$295)+SUMIFS(raw_resource_build!$Y:$Y,raw_resource_build!$E:$E,'Portfolio Analytics'!$C302,raw_resource_build!$C:$C,mainzone,raw_resource_build!$A:$A,'Portfolio Analytics'!AC$295)-SUM($E302:AB302),0)","v":0},{"$f":"IF(ISNUMBER(MATCH(AD$295,model_years,0)),SUMIFS(raw_resource_build!$W:$W,raw_resource_build!$E:$E,'Portfolio Analytics'!$C302,raw_resource_build!$C:$C,mainzone,raw_resource_build!$A:$A,'Portfolio Analytics'!AD$295)+SUMIFS(raw_resource_build!$Y:$Y,raw_resource_build!$E:$E,'Portfolio Analytics'!$C302,raw_resource_build!$C:$C,mainzone,raw_resource_build!$A:$A,'Portfolio Analytics'!AD$295)-SUM($E302:AC302),0)","v":0},{"$f":"IF(ISNUMBER(MATCH(AE$295,model_years,0)),SUMIFS(raw_resource_build!$W:$W,raw_resource_build!$E:$E,'Portfolio Analytics'!$C302,raw_resource_build!$C:$C,mainzone,raw_resource_build!$A:$A,'Portfolio Analytics'!AE$295)+SUMIFS(raw_resource_build!$Y:$Y,raw_resource_build!$E:$E,'Portfolio Analytics'!$C302,raw_resource_build!$C:$C,mainzone,raw_resource_build!$A:$A,'Portfolio Analytics'!AE$295)-SUM($E302:AD302),0)","v":0},{"$f":"IF(ISNUMBER(MATCH(AF$295,model_years,0)),SUMIFS(raw_resource_build!$W:$W,raw_resource_build!$E:$E,'Portfolio Analytics'!$C302,raw_resource_build!$C:$C,mainzone,raw_resource_build!$A:$A,'Portfolio Analytics'!AF$295)+SUMIFS(raw_resource_build!$Y:$Y,raw_resource_build!$E:$E,'Portfolio Analytics'!$C302,raw_resource_build!$C:$C,mainzone,raw_resource_build!$A:$A,'Portfolio Analytics'!AF$295)-SUM($E302:AE302),0)","v":0},{"$f":"IF(ISNUMBER(MATCH(AG$295,model_years,0)),SUMIFS(raw_resource_build!$W:$W,raw_resource_build!$E:$E,'Portfolio Analytics'!$C302,raw_resource_build!$C:$C,mainzone,raw_resource_build!$A:$A,'Portfolio Analytics'!AG$295)+SUMIFS(raw_resource_build!$Y:$Y,raw_resource_build!$E:$E,'Portfolio Analytics'!$C302,raw_resource_build!$C:$C,mainzone,raw_resource_build!$A:$A,'Portfolio Analytics'!AG$295)-SUM($E302:AF302),0)","v":0},{"$f":"IF(ISNUMBER(MATCH(AH$295,model_years,0)),SUMIFS(raw_resource_build!$W:$W,raw_resource_build!$E:$E,'Portfolio Analytics'!$C302,raw_resource_build!$C:$C,mainzone,raw_resource_build!$A:$A,'Portfolio Analytics'!AH$295)+SUMIFS(raw_resource_build!$Y:$Y,raw_resource_build!$E:$E,'Portfolio Analytics'!$C302,raw_resource_build!$C:$C,mainzone,raw_resource_build!$A:$A,'Portfolio Analytics'!AH$295)-SUM($E302:AG302),0)","v":0},{"$f":"IF(ISNUMBER(MATCH(AI$295,model_years,0)),SUMIFS(raw_resource_build!$W:$W,raw_resource_build!$E:$E,'Portfolio Analytics'!$C302,raw_resource_build!$C:$C,mainzone,raw_resource_build!$A:$A,'Portfolio Analytics'!AI$295)+SUMIFS(raw_resource_build!$Y:$Y,raw_resource_build!$E:$E,'Portfolio Analytics'!$C302,raw_resource_build!$C:$C,mainzone,raw_resource_build!$A:$A,'Portfolio Analytics'!AI$295)-SUM($E302:AH302),0)","v":0},{"$f":"IF(ISNUMBER(MATCH(AJ$295,model_years,0)),SUMIFS(raw_resource_build!$W:$W,raw_resource_build!$E:$E,'Portfolio Analytics'!$C302,raw_resource_build!$C:$C,mainzone,raw_resource_build!$A:$A,'Portfolio Analytics'!AJ$295)+SUMIFS(raw_resource_build!$Y:$Y,raw_resource_build!$E:$E,'Portfolio Analytics'!$C302,raw_resource_build!$C:$C,mainzone,raw_resource_build!$A:$A,'Portfolio Analytics'!AJ$295)-SUM($E302:AI302),0)","v":0},{"$f":"IF(ISNUMBER(MATCH(AK$295,model_years,0)),SUMIFS(raw_resource_build!$W:$W,raw_resource_build!$E:$E,'Portfolio Analytics'!$C302,raw_resource_build!$C:$C,mainzone,raw_resource_build!$A:$A,'Portfolio Analytics'!AK$295)+SUMIFS(raw_resource_build!$Y:$Y,raw_resource_build!$E:$E,'Portfolio Analytics'!$C302,raw_resource_build!$C:$C,mainzone,raw_resource_build!$A:$A,'Portfolio Analytics'!AK$295)-SUM($E302:AJ302),0)","v":0},{"$f":"IF(ISNUMBER(MATCH(AL$295,model_years,0)),SUMIFS(raw_resource_build!$W:$W,raw_resource_build!$E:$E,'Portfolio Analytics'!$C302,raw_resource_build!$C:$C,mainzone,raw_resource_build!$A:$A,'Portfolio Analytics'!AL$295)+SUMIFS(raw_resource_build!$Y:$Y,raw_resource_build!$E:$E,'Portfolio Analytics'!$C302,raw_resource_build!$C:$C,mainzone,raw_resource_build!$A:$A,'Portfolio Analytics'!AL$295)-SUM($E302:AK302),0)","v":0},{"$f":"IF(ISNUMBER(MATCH(AM$295,model_years,0)),SUMIFS(raw_resource_build!$W:$W,raw_resource_build!$E:$E,'Portfolio Analytics'!$C302,raw_resource_build!$C:$C,mainzone,raw_resource_build!$A:$A,'Portfolio Analytics'!AM$295)+SUMIFS(raw_resource_build!$Y:$Y,raw_resource_build!$E:$E,'Portfolio Analytics'!$C302,raw_resource_build!$C:$C,mainzone,raw_resource_build!$A:$A,'Portfolio Analytics'!AM$295)-SUM($E302:AL302),0)","v":0},{"$f":"IF(ISNUMBER(MATCH(AN$295,model_years,0)),SUMIFS(raw_resource_build!$W:$W,raw_resource_build!$E:$E,'Portfolio Analytics'!$C302,raw_resource_build!$C:$C,mainzone,raw_resource_build!$A:$A,'Portfolio Analytics'!AN$295)+SUMIFS(raw_resource_build!$Y:$Y,raw_resource_build!$E:$E,'Portfolio Analytics'!$C302,raw_resource_build!$C:$C,mainzone,raw_resource_build!$A:$A,'Portfolio Analytics'!AN$295)-SUM($E302:AM302),0)","v":0}]
[null,null,"Unretained Gas Capacity","MW",null,{"$f":"SUM(F297:F302)","v":0},{"$f":"SUM(G297:G302)","v":0},0,0,0,0,0,0,0,0,0,0,0,0,0,0,0,0,0,0,0,0,0,0,0,0,0,0,0,3769.76,0,0,0,0,0]
[null,null,"Total Unretained Capacity","MW",null,{"$f":"SUM(F296:F302)","v":0},{"$f":"SUM(G296:G302)","v":0},0,0,0,0,0,0,0,0,480,0,0,0,0,0,0,0,0,0,0,0,0,0,0,0,0,0,0,3769.76,0,0,0,0,0]
[]
[null,null,"Capacity Not Retained - Economic"]
[null,null,"CAISO_Coal","MW",null,{"$f":"IFERROR(MAX(0,INDEX(raw_resource_build!$F:$F,MATCH(1,(F$295=raw_resource_build!$A:$A)*($C307=raw_resource_build!$E:$E),0))-INDEX(raw_resource_build!$I:$I,MATCH(1,(F$295=raw_resource_build!$A:$A)*($C307=raw_resource_build!$E:$E),0))-SUM($E307:E307)),0)","v":0},{"$f":"IFERROR(MAX(0,INDEX(raw_resource_build!$F:$F,MATCH(1,(G$295=raw_resource_build!$A:$A)*($C307=raw_resource_build!$E:$E),0))-INDEX(raw_resource_build!$I:$I,MATCH(1,(G$295=raw_resource_build!$A:$A)*($C307=raw_resource_build!$E:$E),0))-SUM($E307:F307)),0)","v":0},{"$f":"IFERROR(MAX(0,INDEX(raw_resource_build!$F:$F,MATCH(1,(H$295=raw_resource_build!$A:$A)*($C307=raw_resource_build!$E:$E),0))-INDEX(raw_resource_build!$I:$I,MATCH(1,(H$295=raw_resource_build!$A:$A)*($C307=raw_resource_build!$E:$E),0))-SUM($E307:G307)),0)","v":0},{"$f":"IFERROR(MAX(0,INDEX(raw_resource_build!$F:$F,MATCH(1,(I$295=raw_resource_build!$A:$A)*($C307=raw_resource_build!$E:$E),0))-INDEX(raw_resource_build!$I:$I,MATCH(1,(I$295=raw_resource_build!$A:$A)*($C307=raw_resource_build!$E:$E),0))-SUM($E307:H307)),0)","v":0},{"$f":"IFERROR(MAX(0,INDEX(raw_resource_build!$F:$F,MATCH(1,(J$295=raw_resource_build!$A:$A)*($C307=raw_resource_build!$E:$E),0))-INDEX(raw_resource_build!$I:$I,MATCH(1,(J$295=raw_resource_build!$A:$A)*($C307=raw_resource_build!$E:$E),0))-SUM($E307:I307)),0)","v":0},{"$f":"IFERROR(MAX(0,INDEX(raw_resource_build!$F:$F,MATCH(1,(K$295=raw_resource_build!$A:$A)*($C307=raw_resource_build!$E:$E),0))-INDEX(raw_resource_build!$I:$I,MATCH(1,(K$295=raw_resource_build!$A:$A)*($C307=raw_resource_build!$E:$E),0))-SUM($E307:J307)),0)","v":0},{"$f":"IFERROR(MAX(0,INDEX(raw_resource_build!$F:$F,MATCH(1,(L$295=raw_resource_build!$A:$A)*($C307=raw_resource_build!$E:$E),0))-INDEX(raw_resource_build!$I:$I,MATCH(1,(L$295=raw_resource_build!$A:$A)*($C307=raw_resource_build!$E:$E),0))-SUM($E307:K307)),0)","v":0},{"$f":"IFERROR(MAX(0,INDEX(raw_resource_build!$F:$F,MATCH(1,(M$295=raw_resource_build!$A:$A)*($C307=raw_resource_build!$E:$E),0))-INDEX(raw_resource_build!$I:$I,MATCH(1,(M$295=raw_resource_build!$A:$A)*($C307=raw_resource_build!$E:$E),0))-SUM($E307:L307)),0)","v":0},{"$f":"IFERROR(MAX(0,INDEX(raw_resource_build!$F:$F,MATCH(1,(N$295=raw_resource_build!$A:$A)*($C307=raw_resource_build!$E:$E),0))-INDEX(raw_resource_build!$I:$I,MATCH(1,(N$295=raw_resource_build!$A:$A)*($C307=raw_resource_build!$E:$E),0))-SUM($E307:M307)),0)","v":0},{"$f":"IFERROR(MAX(0,INDEX(raw_resource_build!$F:$F,MATCH(1,(O$295=raw_resource_build!$A:$A)*($C307=raw_resource_build!$E:$E),0))-INDEX(raw_resource_build!$I:$I,MATCH(1,(O$295=raw_resource_build!$A:$A)*($C307=raw_resource_build!$E:$E),0))-SUM($E307:N307)),0)","v":0},{"$f":"IFERROR(MAX(0,INDEX(raw_resource_build!$F:$F,MATCH(1,(P$295=raw_resource_build!$A:$A)*($C307=raw_resource_build!$E:$E),0))-INDEX(raw_resource_build!$I:$I,MATCH(1,(P$295=raw_resource_build!$A:$A)*($C307=raw_resource_build!$E:$E),0))-SUM($E307:O307)),0)","v":0},{"$f":"IFERROR(MAX(0,INDEX(raw_resource_build!$F:$F,MATCH(1,(Q$295=raw_resource_build!$A:$A)*($C307=raw_resource_build!$E:$E),0))-INDEX(raw_resource_build!$I:$I,MATCH(1,(Q$295=raw_resource_build!$A:$A)*($C307=raw_resource_build!$E:$E),0))-SUM($E307:P307)),0)","v":0},{"$f":"IFERROR(MAX(0,INDEX(raw_resource_build!$F:$F,MATCH(1,(R$295=raw_resource_build!$A:$A)*($C307=raw_resource_build!$E:$E),0))-INDEX(raw_resource_build!$I:$I,MATCH(1,(R$295=raw_resource_build!$A:$A)*($C307=raw_resource_build!$E:$E),0))-SUM($E307:Q307)),0)","v":0},{"$f":"IFERROR(MAX(0,INDEX(raw_resource_build!$F:$F,MATCH(1,(S$295=raw_resource_build!$A:$A)*($C307=raw_resource_build!$E:$E),0))-INDEX(raw_resource_build!$I:$I,MATCH(1,(S$295=raw_resource_build!$A:$A)*($C307=raw_resource_build!$E:$E),0))-SUM($E307:R307)),0)","v":0},{"$f":"IFERROR(MAX(0,INDEX(raw_resource_build!$F:$F,MATCH(1,(T$295=raw_resource_build!$A:$A)*($C307=raw_resource_build!$E:$E),0))-INDEX(raw_resource_build!$I:$I,MATCH(1,(T$295=raw_resource_build!$A:$A)*($C307=raw_resource_build!$E:$E),0))-SUM($E307:S307)),0)","v":0},{"$f":"IFERROR(MAX(0,INDEX(raw_resource_build!$F:$F,MATCH(1,(U$295=raw_resource_build!$A:$A)*($C307=raw_resource_build!$E:$E),0))-INDEX(raw_resource_build!$I:$I,MATCH(1,(U$295=raw_resource_build!$A:$A)*($C307=raw_resource_build!$E:$E),0))-SUM($E307:T307)),0)","v":0},{"$f":"IFERROR(MAX(0,INDEX(raw_resource_build!$F:$F,MATCH(1,(V$295=raw_resource_build!$A:$A)*($C307=raw_resource_build!$E:$E),0))-INDEX(raw_resource_build!$I:$I,MATCH(1,(V$295=raw_resource_build!$A:$A)*($C307=raw_resource_build!$E:$E),0))-SUM($E307:U307)),0)","v":0},{"$f":"IFERROR(MAX(0,INDEX(raw_resource_build!$F:$F,MATCH(1,(W$295=raw_resource_build!$A:$A)*($C307=raw_resource_build!$E:$E),0))-INDEX(raw_resource_build!$I:$I,MATCH(1,(W$295=raw_resource_build!$A:$A)*($C307=raw_resource_build!$E:$E),0))-SUM($E307:V307)),0)","v":0},{"$f":"IFERROR(MAX(0,INDEX(raw_resource_build!$F:$F,MATCH(1,(X$295=raw_resource_build!$A:$A)*($C307=raw_resource_build!$E:$E),0))-INDEX(raw_resource_build!$I:$I,MATCH(1,(X$295=raw_resource_build!$A:$A)*($C307=raw_resource_build!$E:$E),0))-SUM($E307:W307)),0)","v":0},{"$f":"IFERROR(MAX(0,INDEX(raw_resource_build!$F:$F,MATCH(1,(Y$295=raw_resource_build!$A:$A)*($C307=raw_resource_build!$E:$E),0))-INDEX(raw_resource_build!$I:$I,MATCH(1,(Y$295=raw_resource_build!$A:$A)*($C307=raw_resource_build!$E:$E),0))-SUM($E307:X307)),0)","v":0},{"$f":"IFERROR(MAX(0,INDEX(raw_resource_build!$F:$F,MATCH(1,(Z$295=raw_resource_build!$A:$A)*($C307=raw_resource_build!$E:$E),0))-INDEX(raw_resource_build!$I:$I,MATCH(1,(Z$295=raw_resource_build!$A:$A)*($C307=raw_resource_build!$E:$E),0))-SUM($E307:Y307)),0)","v":0},{"$f":"IFERROR(MAX(0,INDEX(raw_resource_build!$F:$F,MATCH(1,(AA$295=raw_resource_build!$A:$A)*($C307=raw_resource_build!$E:$E),0))-INDEX(raw_resource_build!$I:$I,MATCH(1,(AA$295=raw_resource_build!$A:$A)*($C307=raw_resource_build!$E:$E),0))-SUM($E307:Z307)),0)","v":0},{"$f":"IFERROR(MAX(0,INDEX(raw_resource_build!$F:$F,MATCH(1,(AB$295=raw_resource_build!$A:$A)*($C307=raw_resource_build!$E:$E),0))-INDEX(raw_resource_build!$I:$I,MATCH(1,(AB$295=raw_resource_build!$A:$A)*($C307=raw_resource_build!$E:$E),0))-SUM($E307:AA307)),0)","v":0},{"$f":"IFERROR(MAX(0,INDEX(raw_resource_build!$F:$F,MATCH(1,(AC$295=raw_resource_build!$A:$A)*($C307=raw_resource_build!$E:$E),0))-INDEX(raw_resource_build!$I:$I,MATCH(1,(AC$295=raw_resource_build!$A:$A)*($C307=raw_resource_build!$E:$E),0))-SUM($E307:AB307)),0)","v":0},{"$f":"IFERROR(MAX(0,INDEX(raw_resource_build!$F:$F,MATCH(1,(AD$295=raw_resource_build!$A:$A)*($C307=raw_resource_build!$E:$E),0))-INDEX(raw_resource_build!$I:$I,MATCH(1,(AD$295=raw_resource_build!$A:$A)*($C307=raw_resource_build!$E:$E),0))-SUM($E307:AC307)),0)","v":0},{"$f":"IFERROR(MAX(0,INDEX(raw_resource_build!$F:$F,MATCH(1,(AE$295=raw_resource_build!$A:$A)*($C307=raw_resource_build!$E:$E),0))-INDEX(raw_resource_build!$I:$I,MATCH(1,(AE$295=raw_resource_build!$A:$A)*($C307=raw_resource_build!$E:$E),0))-SUM($E307:AD307)),0)","v":0},{"$f":"IFERROR(MAX(0,INDEX(raw_resource_build!$F:$F,MATCH(1,(AF$295=raw_resource_build!$A:$A)*($C307=raw_resource_build!$E:$E),0))-INDEX(raw_resource_build!$I:$I,MATCH(1,(AF$295=raw_resource_build!$A:$A)*($C307=raw_resource_build!$E:$E),0))-SUM($E307:AE307)),0)","v":0},{"$f":"IFERROR(MAX(0,INDEX(raw_resource_build!$F:$F,MATCH(1,(AG$295=raw_resource_build!$A:$A)*($C307=raw_resource_build!$E:$E),0))-INDEX(raw_resource_build!$I:$I,MATCH(1,(AG$295=raw_resource_build!$A:$A)*($C307=raw_resource_build!$E:$E),0))-SUM($E307:AF307)),0)","v":0},{"$f":"IFERROR(MAX(0,INDEX(raw_resource_build!$F:$F,MATCH(1,(AH$295=raw_resource_build!$A:$A)*($C307=raw_resource_build!$E:$E),0))-INDEX(raw_resource_build!$I:$I,MATCH(1,(AH$295=raw_resource_build!$A:$A)*($C307=raw_resource_build!$E:$E),0))-SUM($E307:AG307)),0)","v":0},{"$f":"IFERROR(MAX(0,INDEX(raw_resource_build!$F:$F,MATCH(1,(AI$295=raw_resource_build!$A:$A)*($C307=raw_resource_build!$E:$E),0))-INDEX(raw_resource_build!$I:$I,MATCH(1,(AI$295=raw_resource_build!$A:$A)*($C307=raw_resource_build!$E:$E),0))-SUM($E307:AH307)),0)","v":0},{"$f":"IFERROR(MAX(0,INDEX(raw_resource_build!$F:$F,MATCH(1,(AJ$295=raw_resource_build!$A:$A)*($C307=raw_resource_build!$E:$E),0))-INDEX(raw_resource_build!$I:$I,MATCH(1,(AJ$295=raw_resource_build!$A:$A)*($C307=raw_resource_build!$E:$E),0))-SUM($E307:AI307)),0)","v":0},{"$f":"IFERROR(MAX(0,INDEX(raw_resource_build!$F:$F,MATCH(1,(AK$295=raw_resource_build!$A:$A)*($C307=raw_resource_build!$E:$E),0))-INDEX(raw_resource_build!$I:$I,MATCH(1,(AK$295=raw_resource_build!$A:$A)*($C307=raw_resource_build!$E:$E),0))-SUM($E307:AJ307)),0)","v":0},{"$f":"IFERROR(MAX(0,INDEX(raw_resource_build!$F:$F,MATCH(1,(AL$295=raw_resource_build!$A:$A)*($C307=raw_resource_build!$E:$E),0))-INDEX(raw_resource_build!$I:$I,MATCH(1,(AL$295=raw_resource_build!$A:$A)*($C307=raw_resource_build!$E:$E),0))-SUM($E307:AK307)),0)","v":0},{"$f":"IFERROR(MAX(0,INDEX(raw_resource_build!$F:$F,MATCH(1,(AM$295=raw_resource_build!$A:$A)*($C307=raw_resource_build!$E:$E),0))-INDEX(raw_resource_build!$I:$I,MATCH(1,(AM$295=raw_resource_build!$A:$A)*($C307=raw_resource_build!$E:$E),0))-SUM($E307:AL307)),0)","v":0},{"$f":"IFERROR(MAX(0,INDEX(raw_resource_build!$F:$F,MATCH(1,(AN$295=raw_resource_build!$A:$A)*($C307=raw_resource_build!$E:$E),0))-INDEX(raw_resource_build!$I:$I,MATCH(1,(AN$295=raw_resource_build!$A:$A)*($C307=raw_resource_build!$E:$E),0))-SUM($E307:AM307)),0)","v":0}]
[null,null,"CAISO_ST","MW",null,{"$f":"IFERROR(MAX(0,INDEX(raw_resource_build!$F:$F,MATCH(1,(F$295=raw_resource_build!$A:$A)*($C308=raw_resource_build!$E:$E),0))-INDEX(raw_resource_build!$I:$I,MATCH(1,(F$295=raw_resource_build!$A:$A)*($C308=raw_resource_build!$E:$E),0))-SUM($E308:E308)),0)","v":0},{"$f":"IFERROR(MAX(0,INDEX(raw_resource_build!$F:$F,MATCH(1,(G$295=raw_resource_build!$A:$A)*($C308=raw_resource_build!$E:$E),0))-INDEX(raw_resource_build!$I:$I,MATCH(1,(G$295=raw_resource_build!$A:$A)*($C308=raw_resource_build!$E:$E),0))-SUM($E308:F308)),0)","v":0},{"$f":"IFERROR(MAX(0,INDEX(raw_resource_build!$F:$F,MATCH(1,(H$295=raw_resource_build!$A:$A)*($C308=raw_resource_build!$E:$E),0))-INDEX(raw_resource_build!$I:$I,MATCH(1,(H$295=raw_resource_build!$A:$A)*($C308=raw_resource_build!$E:$E),0))-SUM($E308:G308)),0)","v":0},{"$f":"IFERROR(MAX(0,INDEX(raw_resource_build!$F:$F,MATCH(1,(I$295=raw_resource_build!$A:$A)*($C308=raw_resource_build!$E:$E),0))-INDEX(raw_resource_build!$I:$I,MATCH(1,(I$295=raw_resource_build!$A:$A)*($C308=raw_resource_build!$E:$E),0))-SUM($E308:H308)),0)","v":0},{"$f":"IFERROR(MAX(0,INDEX(raw_resource_build!$F:$F,MATCH(1,(J$295=raw_resource_build!$A:$A)*($C308=raw_resource_build!$E:$E),0))-INDEX(raw_resource_build!$I:$I,MATCH(1,(J$295=raw_resource_build!$A:$A)*($C308=raw_resource_build!$E:$E),0))-SUM($E308:I308)),0)","v":0},{"$f":"IFERROR(MAX(0,INDEX(raw_resource_build!$F:$F,MATCH(1,(K$295=raw_resource_build!$A:$A)*($C308=raw_resource_build!$E:$E),0))-INDEX(raw_resource_build!$I:$I,MATCH(1,(K$295=raw_resource_build!$A:$A)*($C308=raw_resource_build!$E:$E),0))-SUM($E308:J308)),0)","v":0},{"$f":"IFERROR(MAX(0,INDEX(raw_resource_build!$F:$F,MATCH(1,(L$295=raw_resource_build!$A:$A)*($C308=raw_resource_build!$E:$E),0))-INDEX(raw_resource_build!$I:$I,MATCH(1,(L$295=raw_resource_build!$A:$A)*($C308=raw_resource_build!$E:$E),0))-SUM($E308:K308)),0)","v":0},{"$f":"IFERROR(MAX(0,INDEX(raw_resource_build!$F:$F,MATCH(1,(M$295=raw_resource_build!$A:$A)*($C308=raw_resource_build!$E:$E),0))-INDEX(raw_resource_build!$I:$I,MATCH(1,(M$295=raw_resource_build!$A:$A)*($C308=raw_resource_build!$E:$E),0))-SUM($E308:L308)),0)","v":0},{"$f":"IFERROR(MAX(0,INDEX(raw_resource_build!$F:$F,MATCH(1,(N$295=raw_resource_build!$A:$A)*($C308=raw_resource_build!$E:$E),0))-INDEX(raw_resource_build!$I:$I,MATCH(1,(N$295=raw_resource_build!$A:$A)*($C308=raw_resource_build!$E:$E),0))-SUM($E308:M308)),0)","v":0},{"$f":"IFERROR(MAX(0,INDEX(raw_resource_build!$F:$F,MATCH(1,(O$295=raw_resource_build!$A:$A)*($C308=raw_resource_build!$E:$E),0))-INDEX(raw_resource_build!$I:$I,MATCH(1,(O$295=raw_resource_build!$A:$A)*($C308=raw_resource_build!$E:$E),0))-SUM($E308:N308)),0)","v":0},{"$f":"IFERROR(MAX(0,INDEX(raw_resource_build!$F:$F,MATCH(1,(P$295=raw_resource_build!$A:$A)*($C308=raw_resource_build!$E:$E),0))-INDEX(raw_resource_build!$I:$I,MATCH(1,(P$295=raw_resource_build!$A:$A)*($C308=raw_resource_build!$E:$E),0))-SUM($E308:O308)),0)","v":0},{"$f":"IFERROR(MAX(0,INDEX(raw_resource_build!$F:$F,MATCH(1,(Q$295=raw_resource_build!$A:$A)*($C308=raw_resource_build!$E:$E),0))-INDEX(raw_resource_build!$I:$I,MATCH(1,(Q$295=raw_resource_build!$A:$A)*($C308=raw_resource_build!$E:$E),0))-SUM($E308:P308)),0)","v":0},{"$f":"IFERROR(MAX(0,INDEX(raw_resource_build!$F:$F,MATCH(1,(R$295=raw_resource_build!$A:$A)*($C308=raw_resource_build!$E:$E),0))-INDEX(raw_resource_build!$I:$I,MATCH(1,(R$295=raw_resource_build!$A:$A)*($C308=raw_resource_build!$E:$E),0))-SUM($E308:Q308)),0)","v":0},{"$f":"IFERROR(MAX(0,INDEX(raw_resource_build!$F:$F,MATCH(1,(S$295=raw_resource_build!$A:$A)*($C308=raw_resource_build!$E:$E),0))-INDEX(raw_resource_build!$I:$I,MATCH(1,(S$295=raw_resource_build!$A:$A)*($C308=raw_resource_build!$E:$E),0))-SUM($E308:R308)),0)","v":0},{"$f":"IFERROR(MAX(0,INDEX(raw_resource_build!$F:$F,MATCH(1,(T$295=raw_resource_build!$A:$A)*($C308=raw_resource_build!$E:$E),0))-INDEX(raw_resource_build!$I:$I,MATCH(1,(T$295=raw_resource_build!$A:$A)*($C308=raw_resource_build!$E:$E),0))-SUM($E308:S308)),0)","v":0},{"$f":"IFERROR(MAX(0,INDEX(raw_resource_build!$F:$F,MATCH(1,(U$295=raw_resource_build!$A:$A)*($C308=raw_resource_build!$E:$E),0))-INDEX(raw_resource_build!$I:$I,MATCH(1,(U$295=raw_resource_build!$A:$A)*($C308=raw_resource_build!$E:$E),0))-SUM($E308:T308)),0)","v":0},{"$f":"IFERROR(MAX(0,INDEX(raw_resource_build!$F:$F,MATCH(1,(V$295=raw_resource_build!$A:$A)*($C308=raw_resource_build!$E:$E),0))-INDEX(raw_resource_build!$I:$I,MATCH(1,(V$295=raw_resource_build!$A:$A)*($C308=raw_resource_build!$E:$E),0))-SUM($E308:U308)),0)","v":0},{"$f":"IFERROR(MAX(0,INDEX(raw_resource_build!$F:$F,MATCH(1,(W$295=raw_resource_build!$A:$A)*($C308=raw_resource_build!$E:$E),0))-INDEX(raw_resource_build!$I:$I,MATCH(1,(W$295=raw_resource_build!$A:$A)*($C308=raw_resource_build!$E:$E),0))-SUM($E308:V308)),0)","v":0},{"$f":"IFERROR(MAX(0,INDEX(raw_resource_build!$F:$F,MATCH(1,(X$295=raw_resource_build!$A:$A)*($C308=raw_resource_build!$E:$E),0))-INDEX(raw_resource_build!$I:$I,MATCH(1,(X$295=raw_resource_build!$A:$A)*($C308=raw_resource_build!$E:$E),0))-SUM($E308:W308)),0)","v":0},{"$f":"IFERROR(MAX(0,INDEX(raw_resource_build!$F:$F,MATCH(1,(Y$295=raw_resource_build!$A:$A)*($C308=raw_resource_build!$E:$E),0))-INDEX(raw_resource_build!$I:$I,MATCH(1,(Y$295=raw_resource_build!$A:$A)*($C308=raw_resource_build!$E:$E),0))-SUM($E308:X308)),0)","v":0},{"$f":"IFERROR(MAX(0,INDEX(raw_resource_build!$F:$F,MATCH(1,(Z$295=raw_resource_build!$A:$A)*($C308=raw_resource_build!$E:$E),0))-INDEX(raw_resource_build!$I:$I,MATCH(1,(Z$295=raw_resource_build!$A:$A)*($C308=raw_resource_build!$E:$E),0))-SUM($E308:Y308)),0)","v":0},{"$f":"IFERROR(MAX(0,INDEX(raw_resource_build!$F:$F,MATCH(1,(AA$295=raw_resource_build!$A:$A)*($C308=raw_resource_build!$E:$E),0))-INDEX(raw_resource_build!$I:$I,MATCH(1,(AA$295=raw_resource_build!$A:$A)*($C308=raw_resource_build!$E:$E),0))-SUM($E308:Z308)),0)","v":0},{"$f":"IFERROR(MAX(0,INDEX(raw_resource_build!$F:$F,MATCH(1,(AB$295=raw_resource_build!$A:$A)*($C308=raw_resource_build!$E:$E),0))-INDEX(raw_resource_build!$I:$I,MATCH(1,(AB$295=raw_resource_build!$A:$A)*($C308=raw_resource_build!$E:$E),0))-SUM($E308:AA308)),0)","v":0},{"$f":"IFERROR(MAX(0,INDEX(raw_resource_build!$F:$F,MATCH(1,(AC$295=raw_resource_build!$A:$A)*($C308=raw_resource_build!$E:$E),0))-INDEX(raw_resource_build!$I:$I,MATCH(1,(AC$295=raw_resource_build!$A:$A)*($C308=raw_resource_build!$E:$E),0))-SUM($E308:AB308)),0)","v":0},{"$f":"IFERROR(MAX(0,INDEX(raw_resource_build!$F:$F,MATCH(1,(AD$295=raw_resource_build!$A:$A)*($C308=raw_resource_build!$E:$E),0))-INDEX(raw_resource_build!$I:$I,MATCH(1,(AD$295=raw_resource_build!$A:$A)*($C308=raw_resource_build!$E:$E),0))-SUM($E308:AC308)),0)","v":0},{"$f":"IFERROR(MAX(0,INDEX(raw_resource_build!$F:$F,MATCH(1,(AE$295=raw_resource_build!$A:$A)*($C308=raw_resource_build!$E:$E),0))-INDEX(raw_resource_build!$I:$I,MATCH(1,(AE$295=raw_resource_build!$A:$A)*($C308=raw_resource_build!$E:$E),0))-SUM($E308:AD308)),0)","v":0},{"$f":"IFERROR(MAX(0,INDEX(raw_resource_build!$F:$F,MATCH(1,(AF$295=raw_resource_build!$A:$A)*($C308=raw_resource_build!$E:$E),0))-INDEX(raw_resource_build!$I:$I,MATCH(1,(AF$295=raw_resource_build!$A:$A)*($C308=raw_resource_build!$E:$E),0))-SUM($E308:AE308)),0)","v":0},{"$f":"IFERROR(MAX(0,INDEX(raw_resource_build!$F:$F,MATCH(1,(AG$295=raw_resource_build!$A:$A)*($C308=raw_resource_build!$E:$E),0))-INDEX(raw_resource_build!$I:$I,MATCH(1,(AG$295=raw_resource_build!$A:$A)*($C308=raw_resource_build!$E:$E),0))-SUM($E308:AF308)),0)","v":0},{"$f":"IFERROR(MAX(0,INDEX(raw_resource_build!$F:$F,MATCH(1,(AH$295=raw_resource_build!$A:$A)*($C308=raw_resource_build!$E:$E),0))-INDEX(raw_resource_build!$I:$I,MATCH(1,(AH$295=raw_resource_build!$A:$A)*($C308=raw_resource_build!$E:$E),0))-SUM($E308:AG308)),0)","v":0},{"$f":"IFERROR(MAX(0,INDEX(raw_resource_build!$F:$F,MATCH(1,(AI$295=raw_resource_build!$A:$A)*($C308=raw_resource_build!$E:$E),0))-INDEX(raw_resource_build!$I:$I,MATCH(1,(AI$295=raw_resource_build!$A:$A)*($C308=raw_resource_build!$E:$E),0))-SUM($E308:AH308)),0)","v":0},{"$f":"IFERROR(MAX(0,INDEX(raw_resource_build!$F:$F,MATCH(1,(AJ$295=raw_resource_build!$A:$A)*($C308=raw_resource_build!$E:$E),0))-INDEX(raw_resource_build!$I:$I,MATCH(1,(AJ$295=raw_resource_build!$A:$A)*($C308=raw_resource_build!$E:$E),0))-SUM($E308:AI308)),0)","v":0},{"$f":"IFERROR(MAX(0,INDEX(raw_resource_build!$F:$F,MATCH(1,(AK$295=raw_resource_build!$A:$A)*($C308=raw_resource_build!$E:$E),0))-INDEX(raw_resource_build!$I:$I,MATCH(1,(AK$295=raw_resource_build!$A:$A)*($C308=raw_resource_build!$E:$E),0))-SUM($E308:AJ308)),0)","v":0},{"$f":"IFERROR(MAX(0,INDEX(raw_resource_build!$F:$F,MATCH(1,(AL$295=raw_resource_build!$A:$A)*($C308=raw_resource_build!$E:$E),0))-INDEX(raw_resource_build!$I:$I,MATCH(1,(AL$295=raw_resource_build!$A:$A)*($C308=raw_resource_build!$E:$E),0))-SUM($E308:AK308)),0)","v":0},{"$f":"IFERROR(MAX(0,INDEX(raw_resource_build!$F:$F,MATCH(1,(AM$295=raw_resource_build!$A:$A)*($C308=raw_resource_build!$E:$E),0))-INDEX(raw_resource_build!$I:$I,MATCH(1,(AM$295=raw_resource_build!$A:$A)*($C308=raw_resource_build!$E:$E),0))-SUM($E308:AL308)),0)","v":0},{"$f":"IFERROR(MAX(0,INDEX(raw_resource_build!$F:$F,MATCH(1,(AN$295=raw_resource_build!$A:$A)*($C308=raw_resource_build!$E:$E),0))-INDEX(raw_resource_build!$I:$I,MATCH(1,(AN$295=raw_resource_build!$A:$A)*($C308=raw_resource_build!$E:$E),0))-SUM($E308:AM308)),0)","v":0}]
[null,null,"CAISO_CCGT1","MW",null,{"$f":"IFERROR(MAX(0,INDEX(raw_resource_build!$F:$F,MATCH(1,(F$295=raw_resource_build!$A:$A)*($C309=raw_resource_build!$E:$E),0))-INDEX(raw_resource_build!$I:$I,MATCH(1,(F$295=raw_resource_build!$A:$A)*($C309=raw_resource_build!$E:$E),0))-SUM($E309:E309)),0)","v":0},{"$f":"IFERROR(MAX(0,INDEX(raw_resource_build!$F:$F,MATCH(1,(G$295=raw_resource_build!$A:$A)*($C309=raw_resource_build!$E:$E),0))-INDEX(raw_resource_build!$I:$I,MATCH(1,(G$295=raw_resource_build!$A:$A)*($C309=raw_resource_build!$E:$E),0))-SUM($E309:F309)),0)","v":0},{"$f":"IFERROR(MAX(0,INDEX(raw_resource_build!$F:$F,MATCH(1,(H$295=raw_resource_build!$A:$A)*($C309=raw_resource_build!$E:$E),0))-INDEX(raw_resource_build!$I:$I,MATCH(1,(H$295=raw_resource_build!$A:$A)*($C309=raw_resource_build!$E:$E),0))-SUM($E309:G309)),0)","v":0},{"$f":"IFERROR(MAX(0,INDEX(raw_resource_build!$F:$F,MATCH(1,(I$295=raw_resource_build!$A:$A)*($C309=raw_resource_build!$E:$E),0))-INDEX(raw_resource_build!$I:$I,MATCH(1,(I$295=raw_resource_build!$A:$A)*($C309=raw_resource_build!$E:$E),0))-SUM($E309:H309)),0)","v":0},{"$f":"IFERROR(MAX(0,INDEX(raw_resource_build!$F:$F,MATCH(1,(J$295=raw_resource_build!$A:$A)*($C309=raw_resource_build!$E:$E),0))-INDEX(raw_resource_build!$I:$I,MATCH(1,(J$295=raw_resource_build!$A:$A)*($C309=raw_resource_build!$E:$E),0))-SUM($E309:I309)),0)","v":0},{"$f":"IFERROR(MAX(0,INDEX(raw_resource_build!$F:$F,MATCH(1,(K$295=raw_resource_build!$A:$A)*($C309=raw_resource_build!$E:$E),0))-INDEX(raw_resource_build!$I:$I,MATCH(1,(K$295=raw_resource_build!$A:$A)*($C309=raw_resource_build!$E:$E),0))-SUM($E309:J309)),0)","v":0},{"$f":"IFERROR(MAX(0,INDEX(raw_resource_build!$F:$F,MATCH(1,(L$295=raw_resource_build!$A:$A)*($C309=raw_resource_build!$E:$E),0))-INDEX(raw_resource_build!$I:$I,MATCH(1,(L$295=raw_resource_build!$A:$A)*($C309=raw_resource_build!$E:$E),0))-SUM($E309:K309)),0)","v":0},{"$f":"IFERROR(MAX(0,INDEX(raw_resource_build!$F:$F,MATCH(1,(M$295=raw_resource_build!$A:$A)*($C309=raw_resource_build!$E:$E),0))-INDEX(raw_resource_build!$I:$I,MATCH(1,(M$295=raw_resource_build!$A:$A)*($C309=raw_resource_build!$E:$E),0))-SUM($E309:L309)),0)","v":0},{"$f":"IFERROR(MAX(0,INDEX(raw_resource_build!$F:$F,MATCH(1,(N$295=raw_resource_build!$A:$A)*($C309=raw_resource_build!$E:$E),0))-INDEX(raw_resource_build!$I:$I,MATCH(1,(N$295=raw_resource_build!$A:$A)*($C309=raw_resource_build!$E:$E),0))-SUM($E309:M309)),0)","v":0},{"$f":"IFERROR(MAX(0,INDEX(raw_resource_build!$F:$F,MATCH(1,(O$295=raw_resource_build!$A:$A)*($C309=raw_resource_build!$E:$E),0))-INDEX(raw_resource_build!$I:$I,MATCH(1,(O$295=raw_resource_build!$A:$A)*($C309=raw_resource_build!$E:$E),0))-SUM($E309:N309)),0)","v":0},{"$f":"IFERROR(MAX(0,INDEX(raw_resource_build!$F:$F,MATCH(1,(P$295=raw_resource_build!$A:$A)*($C309=raw_resource_build!$E:$E),0))-INDEX(raw_resource_build!$I:$I,MATCH(1,(P$295=raw_resource_build!$A:$A)*($C309=raw_resource_build!$E:$E),0))-SUM($E309:O309)),0)","v":0},{"$f":"IFERROR(MAX(0,INDEX(raw_resource_build!$F:$F,MATCH(1,(Q$295=raw_resource_build!$A:$A)*($C309=raw_resource_build!$E:$E),0))-INDEX(raw_resource_build!$I:$I,MATCH(1,(Q$295=raw_resource_build!$A:$A)*($C309=raw_resource_build!$E:$E),0))-SUM($E309:P309)),0)","v":0},{"$f":"IFERROR(MAX(0,INDEX(raw_resource_build!$F:$F,MATCH(1,(R$295=raw_resource_build!$A:$A)*($C309=raw_resource_build!$E:$E),0))-INDEX(raw_resource_build!$I:$I,MATCH(1,(R$295=raw_resource_build!$A:$A)*($C309=raw_resource_build!$E:$E),0))-SUM($E309:Q309)),0)","v":0},{"$f":"IFERROR(MAX(0,INDEX(raw_resource_build!$F:$F,MATCH(1,(S$295=raw_resource_build!$A:$A)*($C309=raw_resource_build!$E:$E),0))-INDEX(raw_resource_build!$I:$I,MATCH(1,(S$295=raw_resource_build!$A:$A)*($C309=raw_resource_build!$E:$E),0))-SUM($E309:R309)),0)","v":0},{"$f":"IFERROR(MAX(0,INDEX(raw_resource_build!$F:$F,MATCH(1,(T$295=raw_resource_build!$A:$A)*($C309=raw_resource_build!$E:$E),0))-INDEX(raw_resource_build!$I:$I,MATCH(1,(T$295=raw_resource_build!$A:$A)*($C309=raw_resource_build!$E:$E),0))-SUM($E309:S309)),0)","v":0},{"$f":"IFERROR(MAX(0,INDEX(raw_resource_build!$F:$F,MATCH(1,(U$295=raw_resource_build!$A:$A)*($C309=raw_resource_build!$E:$E),0))-INDEX(raw_resource_build!$I:$I,MATCH(1,(U$295=raw_resource_build!$A:$A)*($C309=raw_resource_build!$E:$E),0))-SUM($E309:T309)),0)","v":0},{"$f":"IFERROR(MAX(0,INDEX(raw_resource_build!$F:$F,MATCH(1,(V$295=raw_resource_build!$A:$A)*($C309=raw_resource_build!$E:$E),0))-INDEX(raw_resource_build!$I:$I,MATCH(1,(V$295=raw_resource_build!$A:$A)*($C309=raw_resource_build!$E:$E),0))-SUM($E309:U309)),0)","v":0},{"$f":"IFERROR(MAX(0,INDEX(raw_resource_build!$F:$F,MATCH(1,(W$295=raw_resource_build!$A:$A)*($C309=raw_resource_build!$E:$E),0))-INDEX(raw_resource_build!$I:$I,MATCH(1,(W$295=raw_resource_build!$A:$A)*($C309=raw_resource_build!$E:$E),0))-SUM($E309:V309)),0)","v":0},{"$f":"IFERROR(MAX(0,INDEX(raw_resource_build!$F:$F,MATCH(1,(X$295=raw_resource_build!$A:$A)*($C309=raw_resource_build!$E:$E),0))-INDEX(raw_resource_build!$I:$I,MATCH(1,(X$295=raw_resource_build!$A:$A)*($C309=raw_resource_build!$E:$E),0))-SUM($E309:W309)),0)","v":0},{"$f":"IFERROR(MAX(0,INDEX(raw_resource_build!$F:$F,MATCH(1,(Y$295=raw_resource_build!$A:$A)*($C309=raw_resource_build!$E:$E),0))-INDEX(raw_resource_build!$I:$I,MATCH(1,(Y$295=raw_resource_build!$A:$A)*($C309=raw_resource_build!$E:$E),0))-SUM($E309:X309)),0)","v":0},{"$f":"IFERROR(MAX(0,INDEX(raw_resource_build!$F:$F,MATCH(1,(Z$295=raw_resource_build!$A:$A)*($C309=raw_resource_build!$E:$E),0))-INDEX(raw_resource_build!$I:$I,MATCH(1,(Z$295=raw_resource_build!$A:$A)*($C309=raw_resource_build!$E:$E),0))-SUM($E309:Y309)),0)","v":0},{"$f":"IFERROR(MAX(0,INDEX(raw_resource_build!$F:$F,MATCH(1,(AA$295=raw_resource_build!$A:$A)*($C309=raw_resource_build!$E:$E),0))-INDEX(raw_resource_build!$I:$I,MATCH(1,(AA$295=raw_resource_build!$A:$A)*($C309=raw_resource_build!$E:$E),0))-SUM($E309:Z309)),0)","v":0},{"$f":"IFERROR(MAX(0,INDEX(raw_resource_build!$F:$F,MATCH(1,(AB$295=raw_resource_build!$A:$A)*($C309=raw_resource_build!$E:$E),0))-INDEX(raw_resource_build!$I:$I,MATCH(1,(AB$295=raw_resource_build!$A:$A)*($C309=raw_resource_build!$E:$E),0))-SUM($E309:AA309)),0)","v":0},{"$f":"IFERROR(MAX(0,INDEX(raw_resource_build!$F:$F,MATCH(1,(AC$295=raw_resource_build!$A:$A)*($C309=raw_resource_build!$E:$E),0))-INDEX(raw_resource_build!$I:$I,MATCH(1,(AC$295=raw_resource_build!$A:$A)*($C309=raw_resource_build!$E:$E),0))-SUM($E309:AB309)),0)","v":0},{"$f":"IFERROR(MAX(0,INDEX(raw_resource_build!$F:$F,MATCH(1,(AD$295=raw_resource_build!$A:$A)*($C309=raw_resource_build!$E:$E),0))-INDEX(raw_resource_build!$I:$I,MATCH(1,(AD$295=raw_resource_build!$A:$A)*($C309=raw_resource_build!$E:$E),0))-SUM($E309:AC309)),0)","v":0},{"$f":"IFERROR(MAX(0,INDEX(raw_resource_build!$F:$F,MATCH(1,(AE$295=raw_resource_build!$A:$A)*($C309=raw_resource_build!$E:$E),0))-INDEX(raw_resource_build!$I:$I,MATCH(1,(AE$295=raw_resource_build!$A:$A)*($C309=raw_resource_build!$E:$E),0))-SUM($E309:AD309)),0)","v":0},{"$f":"IFERROR(MAX(0,INDEX(raw_resource_build!$F:$F,MATCH(1,(AF$295=raw_resource_build!$A:$A)*($C309=raw_resource_build!$E:$E),0))-INDEX(raw_resource_build!$I:$I,MATCH(1,(AF$295=raw_resource_build!$A:$A)*($C309=raw_resource_build!$E:$E),0))-SUM($E309:AE309)),0)","v":0},{"$f":"IFERROR(MAX(0,INDEX(raw_resource_build!$F:$F,MATCH(1,(AG$295=raw_resource_build!$A:$A)*($C309=raw_resource_build!$E:$E),0))-INDEX(raw_resource_build!$I:$I,MATCH(1,(AG$295=raw_resource_build!$A:$A)*($C309=raw_resource_build!$E:$E),0))-SUM($E309:AF309)),0)","v":0},{"$f":"IFERROR(MAX(0,INDEX(raw_resource_build!$F:$F,MATCH(1,(AH$295=raw_resource_build!$A:$A)*($C309=raw_resource_build!$E:$E),0))-INDEX(raw_resource_build!$I:$I,MATCH(1,(AH$295=raw_resource_build!$A:$A)*($C309=raw_resource_build!$E:$E),0))-SUM($E309:AG309)),0)","v":0},{"$f":"IFERROR(MAX(0,INDEX(raw_resource_build!$F:$F,MATCH(1,(AI$295=raw_resource_build!$A:$A)*($C309=raw_resource_build!$E:$E),0))-INDEX(raw_resource_build!$I:$I,MATCH(1,(AI$295=raw_resource_build!$A:$A)*($C309=raw_resource_build!$E:$E),0))-SUM($E309:AH309)),0)","v":0},{"$f":"IFERROR(MAX(0,INDEX(raw_resource_build!$F:$F,MATCH(1,(AJ$295=raw_resource_build!$A:$A)*($C309=raw_resource_build!$E:$E),0))-INDEX(raw_resource_build!$I:$I,MATCH(1,(AJ$295=raw_resource_build!$A:$A)*($C309=raw_resource_build!$E:$E),0))-SUM($E309:AI309)),0)","v":0},{"$f":"IFERROR(MAX(0,INDEX(raw_resource_build!$F:$F,MATCH(1,(AK$295=raw_resource_build!$A:$A)*($C309=raw_resource_build!$E:$E),0))-INDEX(raw_resource_build!$I:$I,MATCH(1,(AK$295=raw_resource_build!$A:$A)*($C309=raw_resource_build!$E:$E),0))-SUM($E309:AJ309)),0)","v":0},{"$f":"IFERROR(MAX(0,INDEX(raw_resource_build!$F:$F,MATCH(1,(AL$295=raw_resource_build!$A:$A)*($C309=raw_resource_build!$E:$E),0))-INDEX(raw_resource_build!$I:$I,MATCH(1,(AL$295=raw_resource_build!$A:$A)*($C309=raw_resource_build!$E:$E),0))-SUM($E309:AK309)),0)","v":0},{"$f":"IFERROR(MAX(0,INDEX(raw_resource_build!$F:$F,MATCH(1,(AM$295=raw_resource_build!$A:$A)*($C309=raw_resource_build!$E:$E),0))-INDEX(raw_resource_build!$I:$I,MATCH(1,(AM$295=raw_resource_build!$A:$A)*($C309=raw_resource_build!$E:$E),0))-SUM($E309:AL309)),0)","v":0},{"$f":"IFERROR(MAX(0,INDEX(raw_resource_build!$F:$F,MATCH(1,(AN$295=raw_resource_build!$A:$A)*($C309=raw_resource_build!$E:$E),0))-INDEX(raw_resource_build!$I:$I,MATCH(1,(AN$295=raw_resource_build!$A:$A)*($C309=raw_resource_build!$E:$E),0))-SUM($E309:AM309)),0)","v":0}]
[null,null,"CAISO_CCGT2","MW",null,{"$f":"IFERROR(MAX(0,INDEX(raw_resource_build!$F:$F,MATCH(1,(F$295=raw_resource_build!$A:$A)*($C310=raw_resource_build!$E:$E),0))-INDEX(raw_resource_build!$I:$I,MATCH(1,(F$295=raw_resource_build!$A:$A)*($C310=raw_resource_build!$E:$E),0))-SUM($E310:E310)),0)","v":0},{"$f":"IFERROR(MAX(0,INDEX(raw_resource_build!$F:$F,MATCH(1,(G$295=raw_resource_build!$A:$A)*($C310=raw_resource_build!$E:$E),0))-INDEX(raw_resource_build!$I:$I,MATCH(1,(G$295=raw_resource_build!$A:$A)*($C310=raw_resource_build!$E:$E),0))-SUM($E310:F310)),0)","v":0},{"$f":"IFERROR(MAX(0,INDEX(raw_resource_build!$F:$F,MATCH(1,(H$295=raw_resource_build!$A:$A)*($C310=raw_resource_build!$E:$E),0))-INDEX(raw_resource_build!$I:$I,MATCH(1,(H$295=raw_resource_build!$A:$A)*($C310=raw_resource_build!$E:$E),0))-SUM($E310:G310)),0)","v":0},{"$f":"IFERROR(MAX(0,INDEX(raw_resource_build!$F:$F,MATCH(1,(I$295=raw_resource_build!$A:$A)*($C310=raw_resource_build!$E:$E),0))-INDEX(raw_resource_build!$I:$I,MATCH(1,(I$295=raw_resource_build!$A:$A)*($C310=raw_resource_build!$E:$E),0))-SUM($E310:H310)),0)","v":0},{"$f":"IFERROR(MAX(0,INDEX(raw_resource_build!$F:$F,MATCH(1,(J$295=raw_resource_build!$A:$A)*($C310=raw_resource_build!$E:$E),0))-INDEX(raw_resource_build!$I:$I,MATCH(1,(J$295=raw_resource_build!$A:$A)*($C310=raw_resource_build!$E:$E),0))-SUM($E310:I310)),0)","v":0},{"$f":"IFERROR(MAX(0,INDEX(raw_resource_build!$F:$F,MATCH(1,(K$295=raw_resource_build!$A:$A)*($C310=raw_resource_build!$E:$E),0))-INDEX(raw_resource_build!$I:$I,MATCH(1,(K$295=raw_resource_build!$A:$A)*($C310=raw_resource_build!$E:$E),0))-SUM($E310:J310)),0)","v":0},{"$f":"IFERROR(MAX(0,INDEX(raw_resource_build!$F:$F,MATCH(1,(L$295=raw_resource_build!$A:$A)*($C310=raw_resource_build!$E:$E),0))-INDEX(raw_resource_build!$I:$I,MATCH(1,(L$295=raw_resource_build!$A:$A)*($C310=raw_resource_build!$E:$E),0))-SUM($E310:K310)),0)","v":0},{"$f":"IFERROR(MAX(0,INDEX(raw_resource_build!$F:$F,MATCH(1,(M$295=raw_resource_build!$A:$A)*($C310=raw_resource_build!$E:$E),0))-INDEX(raw_resource_build!$I:$I,MATCH(1,(M$295=raw_resource_build!$A:$A)*($C310=raw_resource_build!$E:$E),0))-SUM($E310:L310)),0)","v":0},{"$f":"IFERROR(MAX(0,INDEX(raw_resource_build!$F:$F,MATCH(1,(N$295=raw_resource_build!$A:$A)*($C310=raw_resource_build!$E:$E),0))-INDEX(raw_resource_build!$I:$I,MATCH(1,(N$295=raw_resource_build!$A:$A)*($C310=raw_resource_build!$E:$E),0))-SUM($E310:M310)),0)","v":0},{"$f":"IFERROR(MAX(0,INDEX(raw_resource_build!$F:$F,MATCH(1,(O$295=raw_resource_build!$A:$A)*($C310=raw_resource_build!$E:$E),0))-INDEX(raw_resource_build!$I:$I,MATCH(1,(O$295=raw_resource_build!$A:$A)*($C310=raw_resource_build!$E:$E),0))-SUM($E310:N310)),0)","v":0},{"$f":"IFERROR(MAX(0,INDEX(raw_resource_build!$F:$F,MATCH(1,(P$295=raw_resource_build!$A:$A)*($C310=raw_resource_build!$E:$E),0))-INDEX(raw_resource_build!$I:$I,MATCH(1,(P$295=raw_resource_build!$A:$A)*($C310=raw_resource_build!$E:$E),0))-SUM($E310:O310)),0)","v":0},{"$f":"IFERROR(MAX(0,INDEX(raw_resource_build!$F:$F,MATCH(1,(Q$295=raw_resource_build!$A:$A)*($C310=raw_resource_build!$E:$E),0))-INDEX(raw_resource_build!$I:$I,MATCH(1,(Q$295=raw_resource_build!$A:$A)*($C310=raw_resource_build!$E:$E),0))-SUM($E310:P310)),0)","v":0},{"$f":"IFERROR(MAX(0,INDEX(raw_resource_build!$F:$F,MATCH(1,(R$295=raw_resource_build!$A:$A)*($C310=raw_resource_build!$E:$E),0))-INDEX(raw_resource_build!$I:$I,MATCH(1,(R$295=raw_resource_build!$A:$A)*($C310=raw_resource_build!$E:$E),0))-SUM($E310:Q310)),0)","v":0},{"$f":"IFERROR(MAX(0,INDEX(raw_resource_build!$F:$F,MATCH(1,(S$295=raw_resource_build!$A:$A)*($C310=raw_resource_build!$E:$E),0))-INDEX(raw_resource_build!$I:$I,MATCH(1,(S$295=raw_resource_build!$A:$A)*($C310=raw_resource_build!$E:$E),0))-SUM($E310:R310)),0)","v":0},{"$f":"IFERROR(MAX(0,INDEX(raw_resource_build!$F:$F,MATCH(1,(T$295=raw_resource_build!$A:$A)*($C310=raw_resource_build!$E:$E),0))-INDEX(raw_resource_build!$I:$I,MATCH(1,(T$295=raw_resource_build!$A:$A)*($C310=raw_resource_build!$E:$E),0))-SUM($E310:S310)),0)","v":0},{"$f":"IFERROR(MAX(0,INDEX(raw_resource_build!$F:$F,MATCH(1,(U$295=raw_resource_build!$A:$A)*($C310=raw_resource_build!$E:$E),0))-INDEX(raw_resource_build!$I:$I,MATCH(1,(U$295=raw_resource_build!$A:$A)*($C310=raw_resource_build!$E:$E),0))-SUM($E310:T310)),0)","v":0},{"$f":"IFERROR(MAX(0,INDEX(raw_resource_build!$F:$F,MATCH(1,(V$295=raw_resource_build!$A:$A)*($C310=raw_resource_build!$E:$E),0))-INDEX(raw_resource_build!$I:$I,MATCH(1,(V$295=raw_resource_build!$A:$A)*($C310=raw_resource_build!$E:$E),0))-SUM($E310:U310)),0)","v":0},{"$f":"IFERROR(MAX(0,INDEX(raw_resource_build!$F:$F,MATCH(1,(W$295=raw_resource_build!$A:$A)*($C310=raw_resource_build!$E:$E),0))-INDEX(raw_resource_build!$I:$I,MATCH(1,(W$295=raw_resource_build!$A:$A)*($C310=raw_resource_build!$E:$E),0))-SUM($E310:V310)),0)","v":0},{"$f":"IFERROR(MAX(0,INDEX(raw_resource_build!$F:$F,MATCH(1,(X$295=raw_resource_build!$A:$A)*($C310=raw_resource_build!$E:$E),0))-INDEX(raw_resource_build!$I:$I,MATCH(1,(X$295=raw_resource_build!$A:$A)*($C310=raw_resource_build!$E:$E),0))-SUM($E310:W310)),0)","v":0},{"$f":"IFERROR(MAX(0,INDEX(raw_resource_build!$F:$F,MATCH(1,(Y$295=raw_resource_build!$A:$A)*($C310=raw_resource_build!$E:$E),0))-INDEX(raw_resource_build!$I:$I,MATCH(1,(Y$295=raw_resource_build!$A:$A)*($C310=raw_resource_build!$E:$E),0))-SUM($E310:X310)),0)","v":0},{"$f":"IFERROR(MAX(0,INDEX(raw_resource_build!$F:$F,MATCH(1,(Z$295=raw_resource_build!$A:$A)*($C310=raw_resource_build!$E:$E),0))-INDEX(raw_resource_build!$I:$I,MATCH(1,(Z$295=raw_resource_build!$A:$A)*($C310=raw_resource_build!$E:$E),0))-SUM($E310:Y310)),0)","v":0},{"$f":"IFERROR(MAX(0,INDEX(raw_resource_build!$F:$F,MATCH(1,(AA$295=raw_resource_build!$A:$A)*($C310=raw_resource_build!$E:$E),0))-INDEX(raw_resource_build!$I:$I,MATCH(1,(AA$295=raw_resource_build!$A:$A)*($C310=raw_resource_build!$E:$E),0))-SUM($E310:Z310)),0)","v":0},{"$f":"IFERROR(MAX(0,INDEX(raw_resource_build!$F:$F,MATCH(1,(AB$295=raw_resource_build!$A:$A)*($C310=raw_resource_build!$E:$E),0))-INDEX(raw_resource_build!$I:$I,MATCH(1,(AB$295=raw_resource_build!$A:$A)*($C310=raw_resource_build!$E:$E),0))-SUM($E310:AA310)),0)","v":0},{"$f":"IFERROR(MAX(0,INDEX(raw_resource_build!$F:$F,MATCH(1,(AC$295=raw_resource_build!$A:$A)*($C310=raw_resource_build!$E:$E),0))-INDEX(raw_resource_build!$I:$I,MATCH(1,(AC$295=raw_resource_build!$A:$A)*($C310=raw_resource_build!$E:$E),0))-SUM($E310:AB310)),0)","v":0},{"$f":"IFERROR(MAX(0,INDEX(raw_resource_build!$F:$F,MATCH(1,(AD$295=raw_resource_build!$A:$A)*($C310=raw_resource_build!$E:$E),0))-INDEX(raw_resource_build!$I:$I,MATCH(1,(AD$295=raw_resource_build!$A:$A)*($C310=raw_resource_build!$E:$E),0))-SUM($E310:AC310)),0)","v":0},{"$f":"IFERROR(MAX(0,INDEX(raw_resource_build!$F:$F,MATCH(1,(AE$295=raw_resource_build!$A:$A)*($C310=raw_resource_build!$E:$E),0))-INDEX(raw_resource_build!$I:$I,MATCH(1,(AE$295=raw_resource_build!$A:$A)*($C310=raw_resource_build!$E:$E),0))-SUM($E310:AD310)),0)","v":0},{"$f":"IFERROR(MAX(0,INDEX(raw_resource_build!$F:$F,MATCH(1,(AF$295=raw_resource_build!$A:$A)*($C310=raw_resource_build!$E:$E),0))-INDEX(raw_resource_build!$I:$I,MATCH(1,(AF$295=raw_resource_build!$A:$A)*($C310=raw_resource_build!$E:$E),0))-SUM($E310:AE310)),0)","v":0},{"$f":"IFERROR(MAX(0,INDEX(raw_resource_build!$F:$F,MATCH(1,(AG$295=raw_resource_build!$A:$A)*($C310=raw_resource_build!$E:$E),0))-INDEX(raw_resource_build!$I:$I,MATCH(1,(AG$295=raw_resource_build!$A:$A)*($C310=raw_resource_build!$E:$E),0))-SUM($E310:AF310)),0)","v":0},{"$f":"IFERROR(MAX(0,INDEX(raw_resource_build!$F:$F,MATCH(1,(AH$295=raw_resource_build!$A:$A)*($C310=raw_resource_build!$E:$E),0))-INDEX(raw_resource_build!$I:$I,MATCH(1,(AH$295=raw_resource_build!$A:$A)*($C310=raw_resource_build!$E:$E),0))-SUM($E310:AG310)),0)","v":0},{"$f":"IFERROR(MAX(0,INDEX(raw_resource_build!$F:$F,MATCH(1,(AI$295=raw_resource_build!$A:$A)*($C310=raw_resource_build!$E:$E),0))-INDEX(raw_resource_build!$I:$I,MATCH(1,(AI$295=raw_resource_build!$A:$A)*($C310=raw_resource_build!$E:$E),0))-SUM($E310:AH310)),0)","v":0},{"$f":"IFERROR(MAX(0,INDEX(raw_resource_build!$F:$F,MATCH(1,(AJ$295=raw_resource_build!$A:$A)*($C310=raw_resource_build!$E:$E),0))-INDEX(raw_resource_build!$I:$I,MATCH(1,(AJ$295=raw_resource_build!$A:$A)*($C310=raw_resource_build!$E:$E),0))-SUM($E310:AI310)),0)","v":0},{"$f":"IFERROR(MAX(0,INDEX(raw_resource_build!$F:$F,MATCH(1,(AK$295=raw_resource_build!$A:$A)*($C310=raw_resource_build!$E:$E),0))-INDEX(raw_resource_build!$I:$I,MATCH(1,(AK$295=raw_resource_build!$A:$A)*($C310=raw_resource_build!$E:$E),0))-SUM($E310:AJ310)),0)","v":0},{"$f":"IFERROR(MAX(0,INDEX(raw_resource_build!$F:$F,MATCH(1,(AL$295=raw_resource_build!$A:$A)*($C310=raw_resource_build!$E:$E),0))-INDEX(raw_resource_build!$I:$I,MATCH(1,(AL$295=raw_resource_build!$A:$A)*($C310=raw_resource_build!$E:$E),0))-SUM($E310:AK310)),0)","v":0},{"$f":"IFERROR(MAX(0,INDEX(raw_resource_build!$F:$F,MATCH(1,(AM$295=raw_resource_build!$A:$A)*($C310=raw_resource_build!$E:$E),0))-INDEX(raw_resource_build!$I:$I,MATCH(1,(AM$295=raw_resource_build!$A:$A)*($C310=raw_resource_build!$E:$E),0))-SUM($E310:AL310)),0)","v":0},{"$f":"IFERROR(MAX(0,INDEX(raw_resource_build!$F:$F,MATCH(1,(AN$295=raw_resource_build!$A:$A)*($C310=raw_resource_build!$E:$E),0))-INDEX(raw_resource_build!$I:$I,MATCH(1,(AN$295=raw_resource_build!$A:$A)*($C310=raw_resource_build!$E:$E),0))-SUM($E310:AM310)),0)","v":0}]
[null,null,"CAISO_Peaker1","MW",null,{"$f":"IFERROR(MAX(0,INDEX(raw_resource_build!$F:$F,MATCH(1,(F$295=raw_resource_build!$A:$A)*($C311=raw_resource_build!$E:$E),0))-INDEX(raw_resource_build!$I:$I,MATCH(1,(F$295=raw_resource_build!$A:$A)*($C311=raw_resource_build!$E:$E),0))-SUM($E311:E311)),0)","v":0},{"$f":"IFERROR(MAX(0,INDEX(raw_resource_build!$F:$F,MATCH(1,(G$295=raw_resource_build!$A:$A)*($C311=raw_resource_build!$E:$E),0))-INDEX(raw_resource_build!$I:$I,MATCH(1,(G$295=raw_resource_build!$A:$A)*($C311=raw_resource_build!$E:$E),0))-SUM($E311:F311)),0)","v":0},{"$f":"IFERROR(MAX(0,INDEX(raw_resource_build!$F:$F,MATCH(1,(H$295=raw_resource_build!$A:$A)*($C311=raw_resource_build!$E:$E),0))-INDEX(raw_resource_build!$I:$I,MATCH(1,(H$295=raw_resource_build!$A:$A)*($C311=raw_resource_build!$E:$E),0))-SUM($E311:G311)),0)","v":0},{"$f":"IFERROR(MAX(0,INDEX(raw_resource_build!$F:$F,MATCH(1,(I$295=raw_resource_build!$A:$A)*($C311=raw_resource_build!$E:$E),0))-INDEX(raw_resource_build!$I:$I,MATCH(1,(I$295=raw_resource_build!$A:$A)*($C311=raw_resource_build!$E:$E),0))-SUM($E311:H311)),0)","v":0},{"$f":"IFERROR(MAX(0,INDEX(raw_resource_build!$F:$F,MATCH(1,(J$295=raw_resource_build!$A:$A)*($C311=raw_resource_build!$E:$E),0))-INDEX(raw_resource_build!$I:$I,MATCH(1,(J$295=raw_resource_build!$A:$A)*($C311=raw_resource_build!$E:$E),0))-SUM($E311:I311)),0)","v":0},{"$f":"IFERROR(MAX(0,INDEX(raw_resource_build!$F:$F,MATCH(1,(K$295=raw_resource_build!$A:$A)*($C311=raw_resource_build!$E:$E),0))-INDEX(raw_resource_build!$I:$I,MATCH(1,(K$295=raw_resource_build!$A:$A)*($C311=raw_resource_build!$E:$E),0))-SUM($E311:J311)),0)","v":0},{"$f":"IFERROR(MAX(0,INDEX(raw_resource_build!$F:$F,MATCH(1,(L$295=raw_resource_build!$A:$A)*($C311=raw_resource_build!$E:$E),0))-INDEX(raw_resource_build!$I:$I,MATCH(1,(L$295=raw_resource_build!$A:$A)*($C311=raw_resource_build!$E:$E),0))-SUM($E311:K311)),0)","v":0},{"$f":"IFERROR(MAX(0,INDEX(raw_resource_build!$F:$F,MATCH(1,(M$295=raw_resource_build!$A:$A)*($C311=raw_resource_build!$E:$E),0))-INDEX(raw_resource_build!$I:$I,MATCH(1,(M$295=raw_resource_build!$A:$A)*($C311=raw_resource_build!$E:$E),0))-SUM($E311:L311)),0)","v":0},{"$f":"IFERROR(MAX(0,INDEX(raw_resource_build!$F:$F,MATCH(1,(N$295=raw_resource_build!$A:$A)*($C311=raw_resource_build!$E:$E),0))-INDEX(raw_resource_build!$I:$I,MATCH(1,(N$295=raw_resource_build!$A:$A)*($C311=raw_resource_build!$E:$E),0))-SUM($E311:M311)),0)","v":0},{"$f":"IFERROR(MAX(0,INDEX(raw_resource_build!$F:$F,MATCH(1,(O$295=raw_resource_build!$A:$A)*($C311=raw_resource_build!$E:$E),0))-INDEX(raw_resource_build!$I:$I,MATCH(1,(O$295=raw_resource_build!$A:$A)*($C311=raw_resource_build!$E:$E),0))-SUM($E311:N311)),0)","v":0},{"$f":"IFERROR(MAX(0,INDEX(raw_resource_build!$F:$F,MATCH(1,(P$295=raw_resource_build!$A:$A)*($C311=raw_resource_build!$E:$E),0))-INDEX(raw_resource_build!$I:$I,MATCH(1,(P$295=raw_resource_build!$A:$A)*($C311=raw_resource_build!$E:$E),0))-SUM($E311:O311)),0)","v":0},{"$f":"IFERROR(MAX(0,INDEX(raw_resource_build!$F:$F,MATCH(1,(Q$295=raw_resource_build!$A:$A)*($C311=raw_resource_build!$E:$E),0))-INDEX(raw_resource_build!$I:$I,MATCH(1,(Q$295=raw_resource_build!$A:$A)*($C311=raw_resource_build!$E:$E),0))-SUM($E311:P311)),0)","v":0},{"$f":"IFERROR(MAX(0,INDEX(raw_resource_build!$F:$F,MATCH(1,(R$295=raw_resource_build!$A:$A)*($C311=raw_resource_build!$E:$E),0))-INDEX(raw_resource_build!$I:$I,MATCH(1,(R$295=raw_resource_build!$A:$A)*($C311=raw_resource_build!$E:$E),0))-SUM($E311:Q311)),0)","v":0},{"$f":"IFERROR(MAX(0,INDEX(raw_resource_build!$F:$F,MATCH(1,(S$295=raw_resource_build!$A:$A)*($C311=raw_resource_build!$E:$E),0))-INDEX(raw_resource_build!$I:$I,MATCH(1,(S$295=raw_resource_build!$A:$A)*($C311=raw_resource_build!$E:$E),0))-SUM($E311:R311)),0)","v":0},{"$f":"IFERROR(MAX(0,INDEX(raw_resource_build!$F:$F,MATCH(1,(T$295=raw_resource_build!$A:$A)*($C311=raw_resource_build!$E:$E),0))-INDEX(raw_resource_build!$I:$I,MATCH(1,(T$295=raw_resource_build!$A:$A)*($C311=raw_resource_build!$E:$E),0))-SUM($E311:S311)),0)","v":0},{"$f":"IFERROR(MAX(0,INDEX(raw_resource_build!$F:$F,MATCH(1,(U$295=raw_resource_build!$A:$A)*($C311=raw_resource_build!$E:$E),0))-INDEX(raw_resource_build!$I:$I,MATCH(1,(U$295=raw_resource_build!$A:$A)*($C311=raw_resource_build!$E:$E),0))-SUM($E311:T311)),0)","v":0},{"$f":"IFERROR(MAX(0,INDEX(raw_resource_build!$F:$F,MATCH(1,(V$295=raw_resource_build!$A:$A)*($C311=raw_resource_build!$E:$E),0))-INDEX(raw_resource_build!$I:$I,MATCH(1,(V$295=raw_resource_build!$A:$A)*($C311=raw_resource_build!$E:$E),0))-SUM($E311:U311)),0)","v":0},{"$f":"IFERROR(MAX(0,INDEX(raw_resource_build!$F:$F,MATCH(1,(W$295=raw_resource_build!$A:$A)*($C311=raw_resource_build!$E:$E),0))-INDEX(raw_resource_build!$I:$I,MATCH(1,(W$295=raw_resource_build!$A:$A)*($C311=raw_resource_build!$E:$E),0))-SUM($E311:V311)),0)","v":0},{"$f":"IFERROR(MAX(0,INDEX(raw_resource_build!$F:$F,MATCH(1,(X$295=raw_resource_build!$A:$A)*($C311=raw_resource_build!$E:$E),0))-INDEX(raw_resource_build!$I:$I,MATCH(1,(X$295=raw_resource_build!$A:$A)*($C311=raw_resource_build!$E:$E),0))-SUM($E311:W311)),0)","v":0},{"$f":"IFERROR(MAX(0,INDEX(raw_resource_build!$F:$F,MATCH(1,(Y$295=raw_resource_build!$A:$A)*($C311=raw_resource_build!$E:$E),0))-INDEX(raw_resource_build!$I:$I,MATCH(1,(Y$295=raw_resource_build!$A:$A)*($C311=raw_resource_build!$E:$E),0))-SUM($E311:X311)),0)","v":0},{"$f":"IFERROR(MAX(0,INDEX(raw_resource_build!$F:$F,MATCH(1,(Z$295=raw_resource_build!$A:$A)*($C311=raw_resource_build!$E:$E),0))-INDEX(raw_resource_build!$I:$I,MATCH(1,(Z$295=raw_resource_build!$A:$A)*($C311=raw_resource_build!$E:$E),0))-SUM($E311:Y311)),0)","v":0},{"$f":"IFERROR(MAX(0,INDEX(raw_resource_build!$F:$F,MATCH(1,(AA$295=raw_resource_build!$A:$A)*($C311=raw_resource_build!$E:$E),0))-INDEX(raw_resource_build!$I:$I,MATCH(1,(AA$295=raw_resource_build!$A:$A)*($C311=raw_resource_build!$E:$E),0))-SUM($E311:Z311)),0)","v":0},{"$f":"IFERROR(MAX(0,INDEX(raw_resource_build!$F:$F,MATCH(1,(AB$295=raw_resource_build!$A:$A)*($C311=raw_resource_build!$E:$E),0))-INDEX(raw_resource_build!$I:$I,MATCH(1,(AB$295=raw_resource_build!$A:$A)*($C311=raw_resource_build!$E:$E),0))-SUM($E311:AA311)),0)","v":0},{"$f":"IFERROR(MAX(0,INDEX(raw_resource_build!$F:$F,MATCH(1,(AC$295=raw_resource_build!$A:$A)*($C311=raw_resource_build!$E:$E),0))-INDEX(raw_resource_build!$I:$I,MATCH(1,(AC$295=raw_resource_build!$A:$A)*($C311=raw_resource_build!$E:$E),0))-SUM($E311:AB311)),0)","v":0},{"$f":"IFERROR(MAX(0,INDEX(raw_resource_build!$F:$F,MATCH(1,(AD$295=raw_resource_build!$A:$A)*($C311=raw_resource_build!$E:$E),0))-INDEX(raw_resource_build!$I:$I,MATCH(1,(AD$295=raw_resource_build!$A:$A)*($C311=raw_resource_build!$E:$E),0))-SUM($E311:AC311)),0)","v":0},{"$f":"IFERROR(MAX(0,INDEX(raw_resource_build!$F:$F,MATCH(1,(AE$295=raw_resource_build!$A:$A)*($C311=raw_resource_build!$E:$E),0))-INDEX(raw_resource_build!$I:$I,MATCH(1,(AE$295=raw_resource_build!$A:$A)*($C311=raw_resource_build!$E:$E),0))-SUM($E311:AD311)),0)","v":0},{"$f":"IFERROR(MAX(0,INDEX(raw_resource_build!$F:$F,MATCH(1,(AF$295=raw_resource_build!$A:$A)*($C311=raw_resource_build!$E:$E),0))-INDEX(raw_resource_build!$I:$I,MATCH(1,(AF$295=raw_resource_build!$A:$A)*($C311=raw_resource_build!$E:$E),0))-SUM($E311:AE311)),0)","v":0},{"$f":"IFERROR(MAX(0,INDEX(raw_resource_build!$F:$F,MATCH(1,(AG$295=raw_resource_build!$A:$A)*($C311=raw_resource_build!$E:$E),0))-INDEX(raw_resource_build!$I:$I,MATCH(1,(AG$295=raw_resource_build!$A:$A)*($C311=raw_resource_build!$E:$E),0))-SUM($E311:AF311)),0)","v":0},{"$f":"IFERROR(MAX(0,INDEX(raw_resource_build!$F:$F,MATCH(1,(AH$295=raw_resource_build!$A:$A)*($C311=raw_resource_build!$E:$E),0))-INDEX(raw_resource_build!$I:$I,MATCH(1,(AH$295=raw_resource_build!$A:$A)*($C311=raw_resource_build!$E:$E),0))-SUM($E311:AG311)),0)","v":0},{"$f":"IFERROR(MAX(0,INDEX(raw_resource_build!$F:$F,MATCH(1,(AI$295=raw_resource_build!$A:$A)*($C311=raw_resource_build!$E:$E),0))-INDEX(raw_resource_build!$I:$I,MATCH(1,(AI$295=raw_resource_build!$A:$A)*($C311=raw_resource_build!$E:$E),0))-SUM($E311:AH311)),0)","v":1750.9300000000003},{"$f":"IFERROR(MAX(0,INDEX(raw_resource_build!$F:$F,MATCH(1,(AJ$295=raw_resource_build!$A:$A)*($C311=raw_resource_build!$E:$E),0))-INDEX(raw_resource_build!$I:$I,MATCH(1,(AJ$295=raw_resource_build!$A:$A)*($C311=raw_resource_build!$E:$E),0))-SUM($E311:AI311)),0)","v":0},{"$f":"IFERROR(MAX(0,INDEX(raw_resource_build!$F:$F,MATCH(1,(AK$295=raw_resource_build!$A:$A)*($C311=raw_resource_build!$E:$E),0))-INDEX(raw_resource_build!$I:$I,MATCH(1,(AK$295=raw_resource_build!$A:$A)*($C311=raw_resource_build!$E:$E),0))-SUM($E311:AJ311)),0)","v":0},{"$f":"IFERROR(MAX(0,INDEX(raw_resource_build!$F:$F,MATCH(1,(AL$295=raw_resource_build!$A:$A)*($C311=raw_resource_build!$E:$E),0))-INDEX(raw_resource_build!$I:$I,MATCH(1,(AL$295=raw_resource_build!$A:$A)*($C311=raw_resource_build!$E:$E),0))-SUM($E311:AK311)),0)","v":0},{"$f":"IFERROR(MAX(0,INDEX(raw_resource_build!$F:$F,MATCH(1,(AM$295=raw_resource_build!$A:$A)*($C311=raw_resource_build!$E:$E),0))-INDEX(raw_resource_build!$I:$I,MATCH(1,(AM$295=raw_resource_build!$A:$A)*($C311=raw_resource_build!$E:$E),0))-SUM($E311:AL311)),0)","v":0},{"$f":"IFERROR(MAX(0,INDEX(raw_resource_build!$F:$F,MATCH(1,(AN$295=raw_resource_build!$A:$A)*($C311=raw_resource_build!$E:$E),0))-INDEX(raw_resource_build!$I:$I,MATCH(1,(AN$295=raw_resource_build!$A:$A)*($C311=raw_resource_build!$E:$E),0))-SUM($E311:AM311)),0)","v":0}]
[null,null,"CAISO_Peaker2","MW",null,{"$f":"IFERROR(MAX(0,INDEX(raw_resource_build!$F:$F,MATCH(1,(F$295=raw_resource_build!$A:$A)*($C312=raw_resource_build!$E:$E),0))-INDEX(raw_resource_build!$I:$I,MATCH(1,(F$295=raw_resource_build!$A:$A)*($C312=raw_resource_build!$E:$E),0))-SUM($E312:E312)),0)","v":0},{"$f":"IFERROR(MAX(0,INDEX(raw_resource_build!$F:$F,MATCH(1,(G$295=raw_resource_build!$A:$A)*($C312=raw_resource_build!$E:$E),0))-INDEX(raw_resource_build!$I:$I,MATCH(1,(G$295=raw_resource_build!$A:$A)*($C312=raw_resource_build!$E:$E),0))-SUM($E312:F312)),0)","v":0},{"$f":"IFERROR(MAX(0,INDEX(raw_resource_build!$F:$F,MATCH(1,(H$295=raw_resource_build!$A:$A)*($C312=raw_resource_build!$E:$E),0))-INDEX(raw_resource_build!$I:$I,MATCH(1,(H$295=raw_resource_build!$A:$A)*($C312=raw_resource_build!$E:$E),0))-SUM($E312:G312)),0)","v":0},{"$f":"IFERROR(MAX(0,INDEX(raw_resource_build!$F:$F,MATCH(1,(I$295=raw_resource_build!$A:$A)*($C312=raw_resource_build!$E:$E),0))-INDEX(raw_resource_build!$I:$I,MATCH(1,(I$295=raw_resource_build!$A:$A)*($C312=raw_resource_build!$E:$E),0))-SUM($E312:H312)),0)","v":0},{"$f":"IFERROR(MAX(0,INDEX(raw_resource_build!$F:$F,MATCH(1,(J$295=raw_resource_build!$A:$A)*($C312=raw_resource_build!$E:$E),0))-INDEX(raw_resource_build!$I:$I,MATCH(1,(J$295=raw_resource_build!$A:$A)*($C312=raw_resource_build!$E:$E),0))-SUM($E312:I312)),0)","v":0},{"$f":"IFERROR(MAX(0,INDEX(raw_resource_build!$F:$F,MATCH(1,(K$295=raw_resource_build!$A:$A)*($C312=raw_resource_build!$E:$E),0))-INDEX(raw_resource_build!$I:$I,MATCH(1,(K$295=raw_resource_build!$A:$A)*($C312=raw_resource_build!$E:$E),0))-SUM($E312:J312)),0)","v":0},{"$f":"IFERROR(MAX(0,INDEX(raw_resource_build!$F:$F,MATCH(1,(L$295=raw_resource_build!$A:$A)*($C312=raw_resource_build!$E:$E),0))-INDEX(raw_resource_build!$I:$I,MATCH(1,(L$295=raw_resource_build!$A:$A)*($C312=raw_resource_build!$E:$E),0))-SUM($E312:K312)),0)","v":0},{"$f":"IFERROR(MAX(0,INDEX(raw_resource_build!$F:$F,MATCH(1,(M$295=raw_resource_build!$A:$A)*($C312=raw_resource_build!$E:$E),0))-INDEX(raw_resource_build!$I:$I,MATCH(1,(M$295=raw_resource_build!$A:$A)*($C312=raw_resource_build!$E:$E),0))-SUM($E312:L312)),0)","v":0},{"$f":"IFERROR(MAX(0,INDEX(raw_resource_build!$F:$F,MATCH(1,(N$295=raw_resource_build!$A:$A)*($C312=raw_resource_build!$E:$E),0))-INDEX(raw_resource_build!$I:$I,MATCH(1,(N$295=raw_resource_build!$A:$A)*($C312=raw_resource_build!$E:$E),0))-SUM($E312:M312)),0)","v":0},{"$f":"IFERROR(MAX(0,INDEX(raw_resource_build!$F:$F,MATCH(1,(O$295=raw_resource_build!$A:$A)*($C312=raw_resource_build!$E:$E),0))-INDEX(raw_resource_build!$I:$I,MATCH(1,(O$295=raw_resource_build!$A:$A)*($C312=raw_resource_build!$E:$E),0))-SUM($E312:N312)),0)","v":0},{"$f":"IFERROR(MAX(0,INDEX(raw_resource_build!$F:$F,MATCH(1,(P$295=raw_resource_build!$A:$A)*($C312=raw_resource_build!$E:$E),0))-INDEX(raw_resource_build!$I:$I,MATCH(1,(P$295=raw_resource_build!$A:$A)*($C312=raw_resource_build!$E:$E),0))-SUM($E312:O312)),0)","v":0},{"$f":"IFERROR(MAX(0,INDEX(raw_resource_build!$F:$F,MATCH(1,(Q$295=raw_resource_build!$A:$A)*($C312=raw_resource_build!$E:$E),0))-INDEX(raw_resource_build!$I:$I,MATCH(1,(Q$295=raw_resource_build!$A:$A)*($C312=raw_resource_build!$E:$E),0))-SUM($E312:P312)),0)","v":0},{"$f":"IFERROR(MAX(0,INDEX(raw_resource_build!$F:$F,MATCH(1,(R$295=raw_resource_build!$A:$A)*($C312=raw_resource_build!$E:$E),0))-INDEX(raw_resource_build!$I:$I,MATCH(1,(R$295=raw_resource_build!$A:$A)*($C312=raw_resource_build!$E:$E),0))-SUM($E312:Q312)),0)","v":0},{"$f":"IFERROR(MAX(0,INDEX(raw_resource_build!$F:$F,MATCH(1,(S$295=raw_resource_build!$A:$A)*($C312=raw_resource_build!$E:$E),0))-INDEX(raw_resource_build!$I:$I,MATCH(1,(S$295=raw_resource_build!$A:$A)*($C312=raw_resource_build!$E:$E),0))-SUM($E312:R312)),0)","v":0},{"$f":"IFERROR(MAX(0,INDEX(raw_resource_build!$F:$F,MATCH(1,(T$295=raw_resource_build!$A:$A)*($C312=raw_resource_build!$E:$E),0))-INDEX(raw_resource_build!$I:$I,MATCH(1,(T$295=raw_resource_build!$A:$A)*($C312=raw_resource_build!$E:$E),0))-SUM($E312:S312)),0)","v":0},{"$f":"IFERROR(MAX(0,INDEX(raw_resource_build!$F:$F,MATCH(1,(U$295=raw_resource_build!$A:$A)*($C312=raw_resource_build!$E:$E),0))-INDEX(raw_resource_build!$I:$I,MATCH(1,(U$295=raw_resource_build!$A:$A)*($C312=raw_resource_build!$E:$E),0))-SUM($E312:T312)),0)","v":0},{"$f":"IFERROR(MAX(0,INDEX(raw_resource_build!$F:$F,MATCH(1,(V$295=raw_resource_build!$A:$A)*($C312=raw_resource_build!$E:$E),0))-INDEX(raw_resource_build!$I:$I,MATCH(1,(V$295=raw_resource_build!$A:$A)*($C312=raw_resource_build!$E:$E),0))-SUM($E312:U312)),0)","v":0},{"$f":"IFERROR(MAX(0,INDEX(raw_resource_build!$F:$F,MATCH(1,(W$295=raw_resource_build!$A:$A)*($C312=raw_resource_build!$E:$E),0))-INDEX(raw_resource_build!$I:$I,MATCH(1,(W$295=raw_resource_build!$A:$A)*($C312=raw_resource_build!$E:$E),0))-SUM($E312:V312)),0)","v":0},{"$f":"IFERROR(MAX(0,INDEX(raw_resource_build!$F:$F,MATCH(1,(X$295=raw_resource_build!$A:$A)*($C312=raw_resource_build!$E:$E),0))-INDEX(raw_resource_build!$I:$I,MATCH(1,(X$295=raw_resource_build!$A:$A)*($C312=raw_resource_build!$E:$E),0))-SUM($E312:W312)),0)","v":0},{"$f":"IFERROR(MAX(0,INDEX(raw_resource_build!$F:$F,MATCH(1,(Y$295=raw_resource_build!$A:$A)*($C312=raw_resource_build!$E:$E),0))-INDEX(raw_resource_build!$I:$I,MATCH(1,(Y$295=raw_resource_build!$A:$A)*($C312=raw_resource_build!$E:$E),0))-SUM($E312:X312)),0)","v":0},{"$f":"IFERROR(MAX(0,INDEX(raw_resource_build!$F:$F,MATCH(1,(Z$295=raw_resource_build!$A:$A)*($C312=raw_resource_build!$E:$E),0))-INDEX(raw_resource_build!$I:$I,MATCH(1,(Z$295=raw_resource_build!$A:$A)*($C312=raw_resource_build!$E:$E),0))-SUM($E312:Y312)),0)","v":0},{"$f":"IFERROR(MAX(0,INDEX(raw_resource_build!$F:$F,MATCH(1,(AA$295=raw_resource_build!$A:$A)*($C312=raw_resource_build!$E:$E),0))-INDEX(raw_resource_build!$I:$I,MATCH(1,(AA$295=raw_resource_build!$A:$A)*($C312=raw_resource_build!$E:$E),0))-SUM($E312:Z312)),0)","v":0},{"$f":"IFERROR(MAX(0,INDEX(raw_resource_build!$F:$F,MATCH(1,(AB$295=raw_resource_build!$A:$A)*($C312=raw_resource_build!$E:$E),0))-INDEX(raw_resource_build!$I:$I,MATCH(1,(AB$295=raw_resource_build!$A:$A)*($C312=raw_resource_build!$E:$E),0))-SUM($E312:AA312)),0)","v":0},{"$f":"IFERROR(MAX(0,INDEX(raw_resource_build!$F:$F,MATCH(1,(AC$295=raw_resource_build!$A:$A)*($C312=raw_resource_build!$E:$E),0))-INDEX(raw_resource_build!$I:$I,MATCH(1,(AC$295=raw_resource_build!$A:$A)*($C312=raw_resource_build!$E:$E),0))-SUM($E312:AB312)),0)","v":0},{"$f":"IFERROR(MAX(0,INDEX(raw_resource_build!$F:$F,MATCH(1,(AD$295=raw_resource_build!$A:$A)*($C312=raw_resource_build!$E:$E),0))-INDEX(raw_resource_build!$I:$I,MATCH(1,(AD$295=raw_resource_build!$A:$A)*($C312=raw_resource_build!$E:$E),0))-SUM($E312:AC312)),0)","v":0},{"$f":"IFERROR(MAX(0,INDEX(raw_resource_build!$F:$F,MATCH(1,(AE$295=raw_resource_build!$A:$A)*($C312=raw_resource_build!$E:$E),0))-INDEX(raw_resource_build!$I:$I,MATCH(1,(AE$295=raw_resource_build!$A:$A)*($C312=raw_resource_build!$E:$E),0))-SUM($E312:AD312)),0)","v":0},{"$f":"IFERROR(MAX(0,INDEX(raw_resource_build!$F:$F,MATCH(1,(AF$295=raw_resource_build!$A:$A)*($C312=raw_resource_build!$E:$E),0))-INDEX(raw_resource_build!$I:$I,MATCH(1,(AF$295=raw_resource_build!$A:$A)*($C312=raw_resource_build!$E:$E),0))-SUM($E312:AE312)),0)","v":0},{"$f":"IFERROR(MAX(0,INDEX(raw_resource_build!$F:$F,MATCH(1,(AG$295=raw_resource_build!$A:$A)*($C312=raw_resource_build!$E:$E),0))-INDEX(raw_resource_build!$I:$I,MATCH(1,(AG$295=raw_resource_build!$A:$A)*($C312=raw_resource_build!$E:$E),0))-SUM($E312:AF312)),0)","v":0},{"$f":"IFERROR(MAX(0,INDEX(raw_resource_build!$F:$F,MATCH(1,(AH$295=raw_resource_build!$A:$A)*($C312=raw_resource_build!$E:$E),0))-INDEX(raw_resource_build!$I:$I,MATCH(1,(AH$295=raw_resource_build!$A:$A)*($C312=raw_resource_build!$E:$E),0))-SUM($E312:AG312)),0)","v":0},{"$f":"IFERROR(MAX(0,INDEX(raw_resource_build!$F:$F,MATCH(1,(AI$295=raw_resource_build!$A:$A)*($C312=raw_resource_build!$E:$E),0))-INDEX(raw_resource_build!$I:$I,MATCH(1,(AI$295=raw_resource_build!$A:$A)*($C312=raw_resource_build!$E:$E),0))-SUM($E312:AH312)),0)","v":2018.83},{"$f":"IFERROR(MAX(0,INDEX(raw_resource_build!$F:$F,MATCH(1,(AJ$295=raw_resource_build!$A:$A)*($C312=raw_resource_build!$E:$E),0))-INDEX(raw_resource_build!$I:$I,MATCH(1,(AJ$295=raw_resource_build!$A:$A)*($C312=raw_resource_build!$E:$E),0))-SUM($E312:AI312)),0)","v":0},{"$f":"IFERROR(MAX(0,INDEX(raw_resource_build!$F:$F,MATCH(1,(AK$295=raw_resource_build!$A:$A)*($C312=raw_resource_build!$E:$E),0))-INDEX(raw_resource_build!$I:$I,MATCH(1,(AK$295=raw_resource_build!$A:$A)*($C312=raw_resource_build!$E:$E),0))-SUM($E312:AJ312)),0)","v":0},{"$f":"IFERROR(MAX(0,INDEX(raw_resource_build!$F:$F,MATCH(1,(AL$295=raw_resource_build!$A:$A)*($C312=raw_resource_build!$E:$E),0))-INDEX(raw_resource_build!$I:$I,MATCH(1,(AL$295=raw_resource_build!$A:$A)*($C312=raw_resource_build!$E:$E),0))-SUM($E312:AK312)),0)","v":0},{"$f":"IFERROR(MAX(0,INDEX(raw_resource_build!$F:$F,MATCH(1,(AM$295=raw_resource_build!$A:$A)*($C312=raw_resource_build!$E:$E),0))-INDEX(raw_resource_build!$I:$I,MATCH(1,(AM$295=raw_resource_build!$A:$A)*($C312=raw_resource_build!$E:$E),0))-SUM($E312:AL312)),0)","v":0},{"$f":"IFERROR(MAX(0,INDEX(raw_resource_build!$F:$F,MATCH(1,(AN$295=raw_resource_build!$A:$A)*($C312=raw_resource_build!$E:$E),0))-INDEX(raw_resource_build!$I:$I,MATCH(1,(AN$295=raw_resource_build!$A:$A)*($C312=raw_resource_build!$E:$E),0))-SUM($E312:AM312)),0)","v":0}]
[null,null,"CAISO_Reciprocating_Engine","MW",null,{"$f":"IFERROR(MAX(0,INDEX(raw_resource_build!$F:$F,MATCH(1,(F$295=raw_resource_build!$A:$A)*($C313=raw_resource_build!$E:$E),0))-INDEX(raw_resource_build!$I:$I,MATCH(1,(F$295=raw_resource_build!$A:$A)*($C313=raw_resource_build!$E:$E),0))-SUM($E313:E313)),0)","v":0},{"$f":"IFERROR(MAX(0,INDEX(raw_resource_build!$F:$F,MATCH(1,(G$295=raw_resource_build!$A:$A)*($C313=raw_resource_build!$E:$E),0))-INDEX(raw_resource_build!$I:$I,MATCH(1,(G$295=raw_resource_build!$A:$A)*($C313=raw_resource_build!$E:$E),0))-SUM($E313:F313)),0)","v":0},{"$f":"IFERROR(MAX(0,INDEX(raw_resource_build!$F:$F,MATCH(1,(H$295=raw_resource_build!$A:$A)*($C313=raw_resource_build!$E:$E),0))-INDEX(raw_resource_build!$I:$I,MATCH(1,(H$295=raw_resource_build!$A:$A)*($C313=raw_resource_build!$E:$E),0))-SUM($E313:G313)),0)","v":0},{"$f":"IFERROR(MAX(0,INDEX(raw_resource_build!$F:$F,MATCH(1,(I$295=raw_resource_build!$A:$A)*($C313=raw_resource_build!$E:$E),0))-INDEX(raw_resource_build!$I:$I,MATCH(1,(I$295=raw_resource_build!$A:$A)*($C313=raw_resource_build!$E:$E),0))-SUM($E313:H313)),0)","v":0},{"$f":"IFERROR(MAX(0,INDEX(raw_resource_build!$F:$F,MATCH(1,(J$295=raw_resource_build!$A:$A)*($C313=raw_resource_build!$E:$E),0))-INDEX(raw_resource_build!$I:$I,MATCH(1,(J$295=raw_resource_build!$A:$A)*($C313=raw_resource_build!$E:$E),0))-SUM($E313:I313)),0)","v":0},{"$f":"IFERROR(MAX(0,INDEX(raw_resource_build!$F:$F,MATCH(1,(K$295=raw_resource_build!$A:$A)*($C313=raw_resource_build!$E:$E),0))-INDEX(raw_resource_build!$I:$I,MATCH(1,(K$295=raw_resource_build!$A:$A)*($C313=raw_resource_build!$E:$E),0))-SUM($E313:J313)),0)","v":0},{"$f":"IFERROR(MAX(0,INDEX(raw_resource_build!$F:$F,MATCH(1,(L$295=raw_resource_build!$A:$A)*($C313=raw_resource_build!$E:$E),0))-INDEX(raw_resource_build!$I:$I,MATCH(1,(L$295=raw_resource_build!$A:$A)*($C313=raw_resource_build!$E:$E),0))-SUM($E313:K313)),0)","v":0},{"$f":"IFERROR(MAX(0,INDEX(raw_resource_build!$F:$F,MATCH(1,(M$295=raw_resource_build!$A:$A)*($C313=raw_resource_build!$E:$E),0))-INDEX(raw_resource_build!$I:$I,MATCH(1,(M$295=raw_resource_build!$A:$A)*($C313=raw_resource_build!$E:$E),0))-SUM($E313:L313)),0)","v":0},{"$f":"IFERROR(MAX(0,INDEX(raw_resource_build!$F:$F,MATCH(1,(N$295=raw_resource_build!$A:$A)*($C313=raw_resource_build!$E:$E),0))-INDEX(raw_resource_build!$I:$I,MATCH(1,(N$295=raw_resource_build!$A:$A)*($C313=raw_resource_build!$E:$E),0))-SUM($E313:M313)),0)","v":0},{"$f":"IFERROR(MAX(0,INDEX(raw_resource_build!$F:$F,MATCH(1,(O$295=raw_resource_build!$A:$A)*($C313=raw_resource_build!$E:$E),0))-INDEX(raw_resource_build!$I:$I,MATCH(1,(O$295=raw_resource_build!$A:$A)*($C313=raw_resource_build!$E:$E),0))-SUM($E313:N313)),0)","v":0},{"$f":"IFERROR(MAX(0,INDEX(raw_resource_build!$F:$F,MATCH(1,(P$295=raw_resource_build!$A:$A)*($C313=raw_resource_build!$E:$E),0))-INDEX(raw_resource_build!$I:$I,MATCH(1,(P$295=raw_resource_build!$A:$A)*($C313=raw_resource_build!$E:$E),0))-SUM($E313:O313)),0)","v":0},{"$f":"IFERROR(MAX(0,INDEX(raw_resource_build!$F:$F,MATCH(1,(Q$295=raw_resource_build!$A:$A)*($C313=raw_resource_build!$E:$E),0))-INDEX(raw_resource_build!$I:$I,MATCH(1,(Q$295=raw_resource_build!$A:$A)*($C313=raw_resource_build!$E:$E),0))-SUM($E313:P313)),0)","v":0},{"$f":"IFERROR(MAX(0,INDEX(raw_resource_build!$F:$F,MATCH(1,(R$295=raw_resource_build!$A:$A)*($C313=raw_resource_build!$E:$E),0))-INDEX(raw_resource_build!$I:$I,MATCH(1,(R$295=raw_resource_build!$A:$A)*($C313=raw_resource_build!$E:$E),0))-SUM($E313:Q313)),0)","v":0},{"$f":"IFERROR(MAX(0,INDEX(raw_resource_build!$F:$F,MATCH(1,(S$295=raw_resource_build!$A:$A)*($C313=raw_resource_build!$E:$E),0))-INDEX(raw_resource_build!$I:$I,MATCH(1,(S$295=raw_resource_build!$A:$A)*($C313=raw_resource_build!$E:$E),0))-SUM($E313:R313)),0)","v":0},{"$f":"IFERROR(MAX(0,INDEX(raw_resource_build!$F:$F,MATCH(1,(T$295=raw_resource_build!$A:$A)*($C313=raw_resource_build!$E:$E),0))-INDEX(raw_resource_build!$I:$I,MATCH(1,(T$295=raw_resource_build!$A:$A)*($C313=raw_resource_build!$E:$E),0))-SUM($E313:S313)),0)","v":0},{"$f":"IFERROR(MAX(0,INDEX(raw_resource_build!$F:$F,MATCH(1,(U$295=raw_resource_build!$A:$A)*($C313=raw_resource_build!$E:$E),0))-INDEX(raw_resource_build!$I:$I,MATCH(1,(U$295=raw_resource_build!$A:$A)*($C313=raw_resource_build!$E:$E),0))-SUM($E313:T313)),0)","v":0},{"$f":"IFERROR(MAX(0,INDEX(raw_resource_build!$F:$F,MATCH(1,(V$295=raw_resource_build!$A:$A)*($C313=raw_resource_build!$E:$E),0))-INDEX(raw_resource_build!$I:$I,MATCH(1,(V$295=raw_resource_build!$A:$A)*($C313=raw_resource_build!$E:$E),0))-SUM($E313:U313)),0)","v":0},{"$f":"IFERROR(MAX(0,INDEX(raw_resource_build!$F:$F,MATCH(1,(W$295=raw_resource_build!$A:$A)*($C313=raw_resource_build!$E:$E),0))-INDEX(raw_resource_build!$I:$I,MATCH(1,(W$295=raw_resource_build!$A:$A)*($C313=raw_resource_build!$E:$E),0))-SUM($E313:V313)),0)","v":0},{"$f":"IFERROR(MAX(0,INDEX(raw_resource_build!$F:$F,MATCH(1,(X$295=raw_resource_build!$A:$A)*($C313=raw_resource_build!$E:$E),0))-INDEX(raw_resource_build!$I:$I,MATCH(1,(X$295=raw_resource_build!$A:$A)*($C313=raw_resource_build!$E:$E),0))-SUM($E313:W313)),0)","v":0},{"$f":"IFERROR(MAX(0,INDEX(raw_resource_build!$F:$F,MATCH(1,(Y$295=raw_resource_build!$A:$A)*($C313=raw_resource_build!$E:$E),0))-INDEX(raw_resource_build!$I:$I,MATCH(1,(Y$295=raw_resource_build!$A:$A)*($C313=raw_resource_build!$E:$E),0))-SUM($E313:X313)),0)","v":0},{"$f":"IFERROR(MAX(0,INDEX(raw_resource_build!$F:$F,MATCH(1,(Z$295=raw_resource_build!$A:$A)*($C313=raw_resource_build!$E:$E),0))-INDEX(raw_resource_build!$I:$I,MATCH(1,(Z$295=raw_resource_build!$A:$A)*($C313=raw_resource_build!$E:$E),0))-SUM($E313:Y313)),0)","v":0},{"$f":"IFERROR(MAX(0,INDEX(raw_resource_build!$F:$F,MATCH(1,(AA$295=raw_resource_build!$A:$A)*($C313=raw_resource_build!$E:$E),0))-INDEX(raw_resource_build!$I:$I,MATCH(1,(AA$295=raw_resource_build!$A:$A)*($C313=raw_resource_build!$E:$E),0))-SUM($E313:Z313)),0)","v":0},{"$f":"IFERROR(MAX(0,INDEX(raw_resource_build!$F:$F,MATCH(1,(AB$295=raw_resource_build!$A:$A)*($C313=raw_resource_build!$E:$E),0))-INDEX(raw_resource_build!$I:$I,MATCH(1,(AB$295=raw_resource_build!$A:$A)*($C313=raw_resource_build!$E:$E),0))-SUM($E313:AA313)),0)","v":0},{"$f":"IFERROR(MAX(0,INDEX(raw_resource_build!$F:$F,MATCH(1,(AC$295=raw_resource_build!$A:$A)*($C313=raw_resource_build!$E:$E),0))-INDEX(raw_resource_build!$I:$I,MATCH(1,(AC$295=raw_resource_build!$A:$A)*($C313=raw_resource_build!$E:$E),0))-SUM($E313:AB313)),0)","v":0},{"$f":"IFERROR(MAX(0,INDEX(raw_resource_build!$F:$F,MATCH(1,(AD$295=raw_resource_build!$A:$A)*($C313=raw_resource_build!$E:$E),0))-INDEX(raw_resource_build!$I:$I,MATCH(1,(AD$295=raw_resource_build!$A:$A)*($C313=raw_resource_build!$E:$E),0))-SUM($E313:AC313)),0)","v":0},{"$f":"IFERROR(MAX(0,INDEX(raw_resource_build!$F:$F,MATCH(1,(AE$295=raw_resource_build!$A:$A)*($C313=raw_resource_build!$E:$E),0))-INDEX(raw_resource_build!$I:$I,MATCH(1,(AE$295=raw_resource_build!$A:$A)*($C313=raw_resource_build!$E:$E),0))-SUM($E313:AD313)),0)","v":0},{"$f":"IFERROR(MAX(0,INDEX(raw_resource_build!$F:$F,MATCH(1,(AF$295=raw_resource_build!$A:$A)*($C313=raw_resource_build!$E:$E),0))-INDEX(raw_resource_build!$I:$I,MATCH(1,(AF$295=raw_resource_build!$A:$A)*($C313=raw_resource_build!$E:$E),0))-SUM($E313:AE313)),0)","v":0},{"$f":"IFERROR(MAX(0,INDEX(raw_resource_build!$F:$F,MATCH(1,(AG$295=raw_resource_build!$A:$A)*($C313=raw_resource_build!$E:$E),0))-INDEX(raw_resource_build!$I:$I,MATCH(1,(AG$295=raw_resource_build!$A:$A)*($C313=raw_resource_build!$E:$E),0))-SUM($E313:AF313)),0)","v":0},{"$f":"IFERROR(MAX(0,INDEX(raw_resource_build!$F:$F,MATCH(1,(AH$295=raw_resource_build!$A:$A)*($C313=raw_resource_build!$E:$E),0))-INDEX(raw_resource_build!$I:$I,MATCH(1,(AH$295=raw_resource_build!$A:$A)*($C313=raw_resource_build!$E:$E),0))-SUM($E313:AG313)),0)","v":0},{"$f":"IFERROR(MAX(0,INDEX(raw_resource_build!$F:$F,MATCH(1,(AI$295=raw_resource_build!$A:$A)*($C313=raw_resource_build!$E:$E),0))-INDEX(raw_resource_build!$I:$I,MATCH(1,(AI$295=raw_resource_build!$A:$A)*($C313=raw_resource_build!$E:$E),0))-SUM($E313:AH313)),0)","v":0},{"$f":"IFERROR(MAX(0,INDEX(raw_resource_build!$F:$F,MATCH(1,(AJ$295=raw_resource_build!$A:$A)*($C313=raw_resource_build!$E:$E),0))-INDEX(raw_resource_build!$I:$I,MATCH(1,(AJ$295=raw_resource_build!$A:$A)*($C313=raw_resource_build!$E:$E),0))-SUM($E313:AI313)),0)","v":0},{"$f":"IFERROR(MAX(0,INDEX(raw_resource_build!$F:$F,MATCH(1,(AK$295=raw_resource_build!$A:$A)*($C313=raw_resource_build!$E:$E),0))-INDEX(raw_resource_build!$I:$I,MATCH(1,(AK$295=raw_resource_build!$A:$A)*($C313=raw_resource_build!$E:$E),0))-SUM($E313:AJ313)),0)","v":0},{"$f":"IFERROR(MAX(0,INDEX(raw_resource_build!$F:$F,MATCH(1,(AL$295=raw_resource_build!$A:$A)*($C313=raw_resource_build!$E:$E),0))-INDEX(raw_resource_build!$I:$I,MATCH(1,(AL$295=raw_resource_build!$A:$A)*($C313=raw_resource_build!$E:$E),0))-SUM($E313:AK313)),0)","v":0},{"$f":"IFERROR(MAX(0,INDEX(raw_resource_build!$F:$F,MATCH(1,(AM$295=raw_resource_build!$A:$A)*($C313=raw_resource_build!$E:$E),0))-INDEX(raw_resource_build!$I:$I,MATCH(1,(AM$295=raw_resource_build!$A:$A)*($C313=raw_resource_build!$E:$E),0))-SUM($E313:AL313)),0)","v":0},{"$f":"IFERROR(MAX(0,INDEX(raw_resource_build!$F:$F,MATCH(1,(AN$295=raw_resource_build!$A:$A)*($C313=raw_resource_build!$E:$E),0))-INDEX(raw_resource_build!$I:$I,MATCH(1,(AN$295=raw_resource_build!$A:$A)*($C313=raw_resource_build!$E:$E),0))-SUM($E313:AM313)),0)","v":0}]
[null,null,"Unretained Gas Capacity - Economic","MW",null,{"$f":"SUM(F308:F313)","v":0},{"$f":"SUM(G308:G313)","v":0},0,0,0,0,0,0,0,0,0,0,0,0,0,0,0,0,0,0,0,0,0,0,0,0,0,0,0,3769.76,0,0,0,0,0]
[null,null,"Total Unretained Capacity - Economic","MW",null,{"$f":"SUM(F307:F313)","v":0},{"$f":"SUM(G307:G313)","v":0},0,0,0,0,0,0,0,0,0,0,0,0,0,0,0,0,0,0,0,0,0,0,0,0,0,0,0,3769.76,0,0,0,0,0]
[]
[null,null,"Capacity Not Retained - Planned"]
[null,null,"CAISO_Coal","MW",null,{"$f":"F296-F307","v":0},{"$f":"G296-G307","v":0},0,0,0,0,0,0,0,0,480,0,0,0,0,0,0,0,0,0,0,0,0,0,0,0,0,0,0,0,0,0,0,0,0]
[null,null,"CAISO_ST","MW",null,{"$f":"F297-F308","v":0},0,0,0,0,0,0,0,0,0,0,0,0,0,0,0,0,0,0,0,0,0,0,0,0,0,0,0,0,0,0,0,0,0,0]
[null,null,"CAISO_CCGT1","MW",null,{"$f":"F298-F309","v":0},0,0,0,0,0,0,0,0,0,0,0,0,0,0,0,0,0,0,0,0,0,0,0,0,0,0,0,0,0,0,0,0,0,0]
[null,null,"CAISO_CCGT2","MW",null,{"$f":"F299-F310","v":0},0,0,0,0,0,0,0,0,0,0,0,0,0,0,0,0,0,0,0,0,0,0,0,0,0,0,0,0,0,0,0,0,0,0]
[null,null,"CAISO_Peaker1","MW",null,{"$f":"F300-F311","v":0},0,0,0,0,0,0,0,0,0,0,0,0,0,0,0,0,0,0,0,0,0,0,0,0,0,0,0,0,0,0,0,0,0,0]
[null,null,"CAISO_Peaker2","MW",null,{"$f":"F301-F312","v":0},0,0,0,0,0,0,0,0,0,0,0,0,0,0,0,0,0,0,0,0,0,0,0,0,0,0,0,0,0,0,0,0,0,0]
[null,null,"CAISO_Reciprocating_Engine","MW",null,{"$f":"F302-F313","v":0},0,0,0,0,0,0,0,0,0,0,0,0,0,0,0,0,0,0,0,0,0,0,0,0,0,0,0,0,0,0,0,0,0,0]
[null,null,"Unretained Gas Capacity - Planned","MW",null,{"$f":"SUM(F319:F324)","v":0},{"$f":"SUM(G319:G324)","v":0},0,0,0,0,0,0,0,0,0,0,0,0,0,0,0,0,0,0,0,0,0,0,0,0,0,0,0,0,0,0,0,0,0]
[null,null,"Planned Unretained Capacity - Planned","MW",null,{"$f":"SUM(F318:F324)","v":0},0,0,0,0,0,0,0,0,0,480,0,0,0,0,0,0,0,0,0,0,0,0,0,0,0,0,0,0,0,0,0,0,0,0]
[]
[null,null,"Capacity Not Retained - Plants without planned retirement only, cumulative"]
[null,null,"CAISO_Coal","MW",null,{"$f":"IFERROR(INDEX(raw_resource_build!$F:$F,MATCH(1,(F$295=raw_resource_build!$A:$A)*($C329=raw_resource_build!$E:$E),0))-INDEX(raw_resource_build!$I:$I,MATCH(1,(F$295=raw_resource_build!$A:$A)*($C329=raw_resource_build!$E:$E),0)),0)","v":0},{"$f":"IFERROR(INDEX(raw_resource_build!$F:$F,MATCH(1,(G$295=raw_resource_build!$A:$A)*($C329=raw_resource_build!$E:$E),0))-INDEX(raw_resource_build!$I:$I,MATCH(1,(G$295=raw_resource_build!$A:$A)*($C329=raw_resource_build!$E:$E),0)),0)","v":0},{"$f":"IFERROR(INDEX(raw_resource_build!$F:$F,MATCH(1,(H$295=raw_resource_build!$A:$A)*($C329=raw_resource_build!$E:$E),0))-INDEX(raw_resource_build!$I:$I,MATCH(1,(H$295=raw_resource_build!$A:$A)*($C329=raw_resource_build!$E:$E),0)),0)","v":0},{"$f":"IFERROR(INDEX(raw_resource_build!$F:$F,MATCH(1,(I$295=raw_resource_build!$A:$A)*($C329=raw_resource_build!$E:$E),0))-INDEX(raw_resource_build!$I:$I,MATCH(1,(I$295=raw_resource_build!$A:$A)*($C329=raw_resource_build!$E:$E),0)),0)","v":0},{"$f":"IFERROR(INDEX(raw_resource_build!$F:$F,MATCH(1,(J$295=raw_resource_build!$A:$A)*($C329=raw_resource_build!$E:$E),0))-INDEX(raw_resource_build!$I:$I,MATCH(1,(J$295=raw_resource_build!$A:$A)*($C329=raw_resource_build!$E:$E),0)),0)","v":0},{"$f":"IFERROR(INDEX(raw_resource_build!$F:$F,MATCH(1,(K$295=raw_resource_build!$A:$A)*($C329=raw_resource_build!$E:$E),0))-INDEX(raw_resource_build!$I:$I,MATCH(1,(K$295=raw_resource_build!$A:$A)*($C329=raw_resource_build!$E:$E),0)),0)","v":0},{"$f":"IFERROR(INDEX(raw_resource_build!$F:$F,MATCH(1,(L$295=raw_resource_build!$A:$A)*($C329=raw_resource_build!$E:$E),0))-INDEX(raw_resource_build!$I:$I,MATCH(1,(L$295=raw_resource_build!$A:$A)*($C329=raw_resource_build!$E:$E),0)),0)","v":0},{"$f":"IFERROR(INDEX(raw_resource_build!$F:$F,MATCH(1,(M$295=raw_resource_build!$A:$A)*($C329=raw_resource_build!$E:$E),0))-INDEX(raw_resource_build!$I:$I,MATCH(1,(M$295=raw_resource_build!$A:$A)*($C329=raw_resource_build!$E:$E),0)),0)","v":0},{"$f":"IFERROR(INDEX(raw_resource_build!$F:$F,MATCH(1,(N$295=raw_resource_build!$A:$A)*($C329=raw_resource_build!$E:$E),0))-INDEX(raw_resource_build!$I:$I,MATCH(1,(N$295=raw_resource_build!$A:$A)*($C329=raw_resource_build!$E:$E),0)),0)","v":0},{"$f":"IFERROR(INDEX(raw_resource_build!$F:$F,MATCH(1,(O$295=raw_resource_build!$A:$A)*($C329=raw_resource_build!$E:$E),0))-INDEX(raw_resource_build!$I:$I,MATCH(1,(O$295=raw_resource_build!$A:$A)*($C329=raw_resource_build!$E:$E),0)),0)","v":0},{"$f":"IFERROR(INDEX(raw_resource_build!$F:$F,MATCH(1,(P$295=raw_resource_build!$A:$A)*($C329=raw_resource_build!$E:$E),0))-INDEX(raw_resource_build!$I:$I,MATCH(1,(P$295=raw_resource_build!$A:$A)*($C329=raw_resource_build!$E:$E),0)),0)","v":0},{"$f":"IFERROR(INDEX(raw_resource_build!$F:$F,MATCH(1,(Q$295=raw_resource_build!$A:$A)*($C329=raw_resource_build!$E:$E),0))-INDEX(raw_resource_build!$I:$I,MATCH(1,(Q$295=raw_resource_build!$A:$A)*($C329=raw_resource_build!$E:$E),0)),0)","v":0},{"$f":"IFERROR(INDEX(raw_resource_build!$F:$F,MATCH(1,(R$295=raw_resource_build!$A:$A)*($C329=raw_resource_build!$E:$E),0))-INDEX(raw_resource_build!$I:$I,MATCH(1,(R$295=raw_resource_build!$A:$A)*($C329=raw_resource_build!$E:$E),0)),0)","v":0},{"$f":"IFERROR(INDEX(raw_resource_build!$F:$F,MATCH(1,(S$295=raw_resource_build!$A:$A)*($C329=raw_resource_build!$E:$E),0))-INDEX(raw_resource_build!$I:$I,MATCH(1,(S$295=raw_resource_build!$A:$A)*($C329=raw_resource_build!$E:$E),0)),0)","v":0},{"$f":"IFERROR(INDEX(raw_resource_build!$F:$F,MATCH(1,(T$295=raw_resource_build!$A:$A)*($C329=raw_resource_build!$E:$E),0))-INDEX(raw_resource_build!$I:$I,MATCH(1,(T$295=raw_resource_build!$A:$A)*($C329=raw_resource_build!$E:$E),0)),0)","v":0},{"$f":"IFERROR(INDEX(raw_resource_build!$F:$F,MATCH(1,(U$295=raw_resource_build!$A:$A)*($C329=raw_resource_build!$E:$E),0))-INDEX(raw_resource_build!$I:$I,MATCH(1,(U$295=raw_resource_build!$A:$A)*($C329=raw_resource_build!$E:$E),0)),0)","v":0},{"$f":"IFERROR(INDEX(raw_resource_build!$F:$F,MATCH(1,(V$295=raw_resource_build!$A:$A)*($C329=raw_resource_build!$E:$E),0))-INDEX(raw_resource_build!$I:$I,MATCH(1,(V$295=raw_resource_build!$A:$A)*($C329=raw_resource_build!$E:$E),0)),0)","v":0},{"$f":"IFERROR(INDEX(raw_resource_build!$F:$F,MATCH(1,(W$295=raw_resource_build!$A:$A)*($C329=raw_resource_build!$E:$E),0))-INDEX(raw_resource_build!$I:$I,MATCH(1,(W$295=raw_resource_build!$A:$A)*($C329=raw_resource_build!$E:$E),0)),0)","v":0},{"$f":"IFERROR(INDEX(raw_resource_build!$F:$F,MATCH(1,(X$295=raw_resource_build!$A:$A)*($C329=raw_resource_build!$E:$E),0))-INDEX(raw_resource_build!$I:$I,MATCH(1,(X$295=raw_resource_build!$A:$A)*($C329=raw_resource_build!$E:$E),0)),0)","v":0},{"$f":"IFERROR(INDEX(raw_resource_build!$F:$F,MATCH(1,(Y$295=raw_resource_build!$A:$A)*($C329=raw_resource_build!$E:$E),0))-INDEX(raw_resource_build!$I:$I,MATCH(1,(Y$295=raw_resource_build!$A:$A)*($C329=raw_resource_build!$E:$E),0)),0)","v":0},{"$f":"IFERROR(INDEX(raw_resource_build!$F:$F,MATCH(1,(Z$295=raw_resource_build!$A:$A)*($C329=raw_resource_build!$E:$E),0))-INDEX(raw_resource_build!$I:$I,MATCH(1,(Z$295=raw_resource_build!$A:$A)*($C329=raw_resource_build!$E:$E),0)),0)","v":0},{"$f":"IFERROR(INDEX(raw_resource_build!$F:$F,MATCH(1,(AA$295=raw_resource_build!$A:$A)*($C329=raw_resource_build!$E:$E),0))-INDEX(raw_resource_build!$I:$I,MATCH(1,(AA$295=raw_resource_build!$A:$A)*($C329=raw_resource_build!$E:$E),0)),0)","v":0},{"$f":"IFERROR(INDEX(raw_resource_build!$F:$F,MATCH(1,(AB$295=raw_resource_build!$A:$A)*($C329=raw_resource_build!$E:$E),0))-INDEX(raw_resource_build!$I:$I,MATCH(1,(AB$295=raw_resource_build!$A:$A)*($C329=raw_resource_build!$E:$E),0)),0)","v":0},{"$f":"IFERROR(INDEX(raw_resource_build!$F:$F,MATCH(1,(AC$295=raw_resource_build!$A:$A)*($C329=raw_resource_build!$E:$E),0))-INDEX(raw_resource_build!$I:$I,MATCH(1,(AC$295=raw_resource_build!$A:$A)*($C329=raw_resource_build!$E:$E),0)),0)","v":0},{"$f":"IFERROR(INDEX(raw_resource_build!$F:$F,MATCH(1,(AD$295=raw_resource_build!$A:$A)*($C329=raw_resource_build!$E:$E),0))-INDEX(raw_resource_build!$I:$I,MATCH(1,(AD$295=raw_resource_build!$A:$A)*($C329=raw_resource_build!$E:$E),0)),0)","v":0},{"$f":"IFERROR(INDEX(raw_resource_build!$F:$F,MATCH(1,(AE$295=raw_resource_build!$A:$A)*($C329=raw_resource_build!$E:$E),0))-INDEX(raw_resource_build!$I:$I,MATCH(1,(AE$295=raw_resource_build!$A:$A)*($C329=raw_resource_build!$E:$E),0)),0)","v":0},{"$f":"IFERROR(INDEX(raw_resource_build!$F:$F,MATCH(1,(AF$295=raw_resource_build!$A:$A)*($C329=raw_resource_build!$E:$E),0))-INDEX(raw_resource_build!$I:$I,MATCH(1,(AF$295=raw_resource_build!$A:$A)*($C329=raw_resource_build!$E:$E),0)),0)","v":0},{"$f":"IFERROR(INDEX(raw_resource_build!$F:$F,MATCH(1,(AG$295=raw_resource_build!$A:$A)*($C329=raw_resource_build!$E:$E),0))-INDEX(raw_resource_build!$I:$I,MATCH(1,(AG$295=raw_resource_build!$A:$A)*($C329=raw_resource_build!$E:$E),0)),0)","v":0},{"$f":"IFERROR(INDEX(raw_resource_build!$F:$F,MATCH(1,(AH$295=raw_resource_build!$A:$A)*($C329=raw_resource_build!$E:$E),0))-INDEX(raw_resource_build!$I:$I,MATCH(1,(AH$295=raw_resource_build!$A:$A)*($C329=raw_resource_build!$E:$E),0)),0)","v":0},{"$f":"IFERROR(INDEX(raw_resource_build!$F:$F,MATCH(1,(AI$295=raw_resource_build!$A:$A)*($C329=raw_resource_build!$E:$E),0))-INDEX(raw_resource_build!$I:$I,MATCH(1,(AI$295=raw_resource_build!$A:$A)*($C329=raw_resource_build!$E:$E),0)),0)","v":0},{"$f":"IFERROR(INDEX(raw_resource_build!$F:$F,MATCH(1,(AJ$295=raw_resource_build!$A:$A)*($C329=raw_resource_build!$E:$E),0))-INDEX(raw_resource_build!$I:$I,MATCH(1,(AJ$295=raw_resource_build!$A:$A)*($C329=raw_resource_build!$E:$E),0)),0)","v":0},{"$f":"IFERROR(INDEX(raw_resource_build!$F:$F,MATCH(1,(AK$295=raw_resource_build!$A:$A)*($C329=raw_resource_build!$E:$E),0))-INDEX(raw_resource_build!$I:$I,MATCH(1,(AK$295=raw_resource_build!$A:$A)*($C329=raw_resource_build!$E:$E),0)),0)","v":0},{"$f":"IFERROR(INDEX(raw_resource_build!$F:$F,MATCH(1,(AL$295=raw_resource_build!$A:$A)*($C329=raw_resource_build!$E:$E),0))-INDEX(raw_resource_build!$I:$I,MATCH(1,(AL$295=raw_resource_build!$A:$A)*($C329=raw_resource_build!$E:$E),0)),0)","v":0},{"$f":"IFERROR(INDEX(raw_resource_build!$F:$F,MATCH(1,(AM$295=raw_resource_build!$A:$A)*($C329=raw_resource_build!$E:$E),0))-INDEX(raw_resource_build!$I:$I,MATCH(1,(AM$295=raw_resource_build!$A:$A)*($C329=raw_resource_build!$E:$E),0)),0)","v":0},{"$f":"IFERROR(INDEX(raw_resource_build!$F:$F,MATCH(1,(AN$295=raw_resource_build!$A:$A)*($C329=raw_resource_build!$E:$E),0))-INDEX(raw_resource_build!$I:$I,MATCH(1,(AN$295=raw_resource_build!$A:$A)*($C329=raw_resource_build!$E:$E),0)),0)","v":0}]
[null,null,"CAISO_ST","MW",null,{"$f":"IFERROR(INDEX(raw_resource_build!$F:$F,MATCH(1,(F$295=raw_resource_build!$A:$A)*($C330=raw_resource_build!$E:$E),0))-INDEX(raw_resource_build!$I:$I,MATCH(1,(F$295=raw_resource_build!$A:$A)*($C330=raw_resource_build!$E:$E),0)),0)","v":0},{"$f":"IFERROR(INDEX(raw_resource_build!$F:$F,MATCH(1,(G$295=raw_resource_build!$A:$A)*($C330=raw_resource_build!$E:$E),0))-INDEX(raw_resource_build!$I:$I,MATCH(1,(G$295=raw_resource_build!$A:$A)*($C330=raw_resource_build!$E:$E),0)),0)","v":0},{"$f":"IFERROR(INDEX(raw_resource_build!$F:$F,MATCH(1,(H$295=raw_resource_build!$A:$A)*($C330=raw_resource_build!$E:$E),0))-INDEX(raw_resource_build!$I:$I,MATCH(1,(H$295=raw_resource_build!$A:$A)*($C330=raw_resource_build!$E:$E),0)),0)","v":0},{"$f":"IFERROR(INDEX(raw_resource_build!$F:$F,MATCH(1,(I$295=raw_resource_build!$A:$A)*($C330=raw_resource_build!$E:$E),0))-INDEX(raw_resource_build!$I:$I,MATCH(1,(I$295=raw_resource_build!$A:$A)*($C330=raw_resource_build!$E:$E),0)),0)","v":0},{"$f":"IFERROR(INDEX(raw_resource_build!$F:$F,MATCH(1,(J$295=raw_resource_build!$A:$A)*($C330=raw_resource_build!$E:$E),0))-INDEX(raw_resource_build!$I:$I,MATCH(1,(J$295=raw_resource_build!$A:$A)*($C330=raw_resource_build!$E:$E),0)),0)","v":0},{"$f":"IFERROR(INDEX(raw_resource_build!$F:$F,MATCH(1,(K$295=raw_resource_build!$A:$A)*($C330=raw_resource_build!$E:$E),0))-INDEX(raw_resource_build!$I:$I,MATCH(1,(K$295=raw_resource_build!$A:$A)*($C330=raw_resource_build!$E:$E),0)),0)","v":0},{"$f":"IFERROR(INDEX(raw_resource_build!$F:$F,MATCH(1,(L$295=raw_resource_build!$A:$A)*($C330=raw_resource_build!$E:$E),0))-INDEX(raw_resource_build!$I:$I,MATCH(1,(L$295=raw_resource_build!$A:$A)*($C330=raw_resource_build!$E:$E),0)),0)","v":0},{"$f":"IFERROR(INDEX(raw_resource_build!$F:$F,MATCH(1,(M$295=raw_resource_build!$A:$A)*($C330=raw_resource_build!$E:$E),0))-INDEX(raw_resource_build!$I:$I,MATCH(1,(M$295=raw_resource_build!$A:$A)*($C330=raw_resource_build!$E:$E),0)),0)","v":0},{"$f":"IFERROR(INDEX(raw_resource_build!$F:$F,MATCH(1,(N$295=raw_resource_build!$A:$A)*($C330=raw_resource_build!$E:$E),0))-INDEX(raw_resource_build!$I:$I,MATCH(1,(N$295=raw_resource_build!$A:$A)*($C330=raw_resource_build!$E:$E),0)),0)","v":0},{"$f":"IFERROR(INDEX(raw_resource_build!$F:$F,MATCH(1,(O$295=raw_resource_build!$A:$A)*($C330=raw_resource_build!$E:$E),0))-INDEX(raw_resource_build!$I:$I,MATCH(1,(O$295=raw_resource_build!$A:$A)*($C330=raw_resource_build!$E:$E),0)),0)","v":0},{"$f":"IFERROR(INDEX(raw_resource_build!$F:$F,MATCH(1,(P$295=raw_resource_build!$A:$A)*($C330=raw_resource_build!$E:$E),0))-INDEX(raw_resource_build!$I:$I,MATCH(1,(P$295=raw_resource_build!$A:$A)*($C330=raw_resource_build!$E:$E),0)),0)","v":0},{"$f":"IFERROR(INDEX(raw_resource_build!$F:$F,MATCH(1,(Q$295=raw_resource_build!$A:$A)*($C330=raw_resource_build!$E:$E),0))-INDEX(raw_resource_build!$I:$I,MATCH(1,(Q$295=raw_resource_build!$A:$A)*($C330=raw_resource_build!$E:$E),0)),0)","v":0},{"$f":"IFERROR(INDEX(raw_resource_build!$F:$F,MATCH(1,(R$295=raw_resource_build!$A:$A)*($C330=raw_resource_build!$E:$E),0))-INDEX(raw_resource_build!$I:$I,MATCH(1,(R$295=raw_resource_build!$A:$A)*($C330=raw_resource_build!$E:$E),0)),0)","v":0},{"$f":"IFERROR(INDEX(raw_resource_build!$F:$F,MATCH(1,(S$295=raw_resource_build!$A:$A)*($C330=raw_resource_build!$E:$E),0))-INDEX(raw_resource_build!$I:$I,MATCH(1,(S$295=raw_resource_build!$A:$A)*($C330=raw_resource_build!$E:$E),0)),0)","v":0},{"$f":"IFERROR(INDEX(raw_resource_build!$F:$F,MATCH(1,(T$295=raw_resource_build!$A:$A)*($C330=raw_resource_build!$E:$E),0))-INDEX(raw_resource_build!$I:$I,MATCH(1,(T$295=raw_resource_build!$A:$A)*($C330=raw_resource_build!$E:$E),0)),0)","v":0},{"$f":"IFERROR(INDEX(raw_resource_build!$F:$F,MATCH(1,(U$295=raw_resource_build!$A:$A)*($C330=raw_resource_build!$E:$E),0))-INDEX(raw_resource_build!$I:$I,MATCH(1,(U$295=raw_resource_build!$A:$A)*($C330=raw_resource_build!$E:$E),0)),0)","v":0},{"$f":"IFERROR(INDEX(raw_resource_build!$F:$F,MATCH(1,(V$295=raw_resource_build!$A:$A)*($C330=raw_resource_build!$E:$E),0))-INDEX(raw_resource_build!$I:$I,MATCH(1,(V$295=raw_resource_build!$A:$A)*($C330=raw_resource_build!$E:$E),0)),0)","v":0},{"$f":"IFERROR(INDEX(raw_resource_build!$F:$F,MATCH(1,(W$295=raw_resource_build!$A:$A)*($C330=raw_resource_build!$E:$E),0))-INDEX(raw_resource_build!$I:$I,MATCH(1,(W$295=raw_resource_build!$A:$A)*($C330=raw_resource_build!$E:$E),0)),0)","v":0},{"$f":"IFERROR(INDEX(raw_resource_build!$F:$F,MATCH(1,(X$295=raw_resource_build!$A:$A)*($C330=raw_resource_build!$E:$E),0))-INDEX(raw_resource_build!$I:$I,MATCH(1,(X$295=raw_resource_build!$A:$A)*($C330=raw_resource_build!$E:$E),0)),0)","v":0},{"$f":"IFERROR(INDEX(raw_resource_build!$F:$F,MATCH(1,(Y$295=raw_resource_build!$A:$A)*($C330=raw_resource_build!$E:$E),0))-INDEX(raw_resource_build!$I:$I,MATCH(1,(Y$295=raw_resource_build!$A:$A)*($C330=raw_resource_build!$E:$E),0)),0)","v":0},{"$f":"IFERROR(INDEX(raw_resource_build!$F:$F,MATCH(1,(Z$295=raw_resource_build!$A:$A)*($C330=raw_resource_build!$E:$E),0))-INDEX(raw_resource_build!$I:$I,MATCH(1,(Z$295=raw_resource_build!$A:$A)*($C330=raw_resource_build!$E:$E),0)),0)","v":0},{"$f":"IFERROR(INDEX(raw_resource_build!$F:$F,MATCH(1,(AA$295=raw_resource_build!$A:$A)*($C330=raw_resource_build!$E:$E),0))-INDEX(raw_resource_build!$I:$I,MATCH(1,(AA$295=raw_resource_build!$A:$A)*($C330=raw_resource_build!$E:$E),0)),0)","v":0},{"$f":"IFERROR(INDEX(raw_resource_build!$F:$F,MATCH(1,(AB$295=raw_resource_build!$A:$A)*($C330=raw_resource_build!$E:$E),0))-INDEX(raw_resource_build!$I:$I,MATCH(1,(AB$295=raw_resource_build!$A:$A)*($C330=raw_resource_build!$E:$E),0)),0)","v":0},{"$f":"IFERROR(INDEX(raw_resource_build!$F:$F,MATCH(1,(AC$295=raw_resource_build!$A:$A)*($C330=raw_resource_build!$E:$E),0))-INDEX(raw_resource_build!$I:$I,MATCH(1,(AC$295=raw_resource_build!$A:$A)*($C330=raw_resource_build!$E:$E),0)),0)","v":0},{"$f":"IFERROR(INDEX(raw_resource_build!$F:$F,MATCH(1,(AD$295=raw_resource_build!$A:$A)*($C330=raw_resource_build!$E:$E),0))-INDEX(raw_resource_build!$I:$I,MATCH(1,(AD$295=raw_resource_build!$A:$A)*($C330=raw_resource_build!$E:$E),0)),0)","v":0},{"$f":"IFERROR(INDEX(raw_resource_build!$F:$F,MATCH(1,(AE$295=raw_resource_build!$A:$A)*($C330=raw_resource_build!$E:$E),0))-INDEX(raw_resource_build!$I:$I,MATCH(1,(AE$295=raw_resource_build!$A:$A)*($C330=raw_resource_build!$E:$E),0)),0)","v":0},{"$f":"IFERROR(INDEX(raw_resource_build!$F:$F,MATCH(1,(AF$295=raw_resource_build!$A:$A)*($C330=raw_resource_build!$E:$E),0))-INDEX(raw_resource_build!$I:$I,MATCH(1,(AF$295=raw_resource_build!$A:$A)*($C330=raw_resource_build!$E:$E),0)),0)","v":0},{"$f":"IFERROR(INDEX(raw_resource_build!$F:$F,MATCH(1,(AG$295=raw_resource_build!$A:$A)*($C330=raw_resource_build!$E:$E),0))-INDEX(raw_resource_build!$I:$I,MATCH(1,(AG$295=raw_resource_build!$A:$A)*($C330=raw_resource_build!$E:$E),0)),0)","v":0},{"$f":"IFERROR(INDEX(raw_resource_build!$F:$F,MATCH(1,(AH$295=raw_resource_build!$A:$A)*($C330=raw_resource_build!$E:$E),0))-INDEX(raw_resource_build!$I:$I,MATCH(1,(AH$295=raw_resource_build!$A:$A)*($C330=raw_resource_build!$E:$E),0)),0)","v":0},{"$f":"IFERROR(INDEX(raw_resource_build!$F:$F,MATCH(1,(AI$295=raw_resource_build!$A:$A)*($C330=raw_resource_build!$E:$E),0))-INDEX(raw_resource_build!$I:$I,MATCH(1,(AI$295=raw_resource_build!$A:$A)*($C330=raw_resource_build!$E:$E),0)),0)","v":0},{"$f":"IFERROR(INDEX(raw_resource_build!$F:$F,MATCH(1,(AJ$295=raw_resource_build!$A:$A)*($C330=raw_resource_build!$E:$E),0))-INDEX(raw_resource_build!$I:$I,MATCH(1,(AJ$295=raw_resource_build!$A:$A)*($C330=raw_resource_build!$E:$E),0)),0)","v":0},{"$f":"IFERROR(INDEX(raw_resource_build!$F:$F,MATCH(1,(AK$295=raw_resource_build!$A:$A)*($C330=raw_resource_build!$E:$E),0))-INDEX(raw_resource_build!$I:$I,MATCH(1,(AK$295=raw_resource_build!$A:$A)*($C330=raw_resource_build!$E:$E),0)),0)","v":0},{"$f":"IFERROR(INDEX(raw_resource_build!$F:$F,MATCH(1,(AL$295=raw_resource_build!$A:$A)*($C330=raw_resource_build!$E:$E),0))-INDEX(raw_resource_build!$I:$I,MATCH(1,(AL$295=raw_resource_build!$A:$A)*($C330=raw_resource_build!$E:$E),0)),0)","v":0},{"$f":"IFERROR(INDEX(raw_resource_build!$F:$F,MATCH(1,(AM$295=raw_resource_build!$A:$A)*($C330=raw_resource_build!$E:$E),0))-INDEX(raw_resource_build!$I:$I,MATCH(1,(AM$295=raw_resource_build!$A:$A)*($C330=raw_resource_build!$E:$E),0)),0)","v":0},{"$f":"IFERROR(INDEX(raw_resource_build!$F:$F,MATCH(1,(AN$295=raw_resource_build!$A:$A)*($C330=raw_resource_build!$E:$E),0))-INDEX(raw_resource_build!$I:$I,MATCH(1,(AN$295=raw_resource_build!$A:$A)*($C330=raw_resource_build!$E:$E),0)),0)","v":0}]
[null,null,"CAISO_CCGT1","MW",null,{"$f":"IFERROR(INDEX(raw_resource_build!$F:$F,MATCH(1,(F$295=raw_resource_build!$A:$A)*($C331=raw_resource_build!$E:$E),0))-INDEX(raw_resource_build!$I:$I,MATCH(1,(F$295=raw_resource_build!$A:$A)*($C331=raw_resource_build!$E:$E),0)),0)","v":0},{"$f":"IFERROR(INDEX(raw_resource_build!$F:$F,MATCH(1,(G$295=raw_resource_build!$A:$A)*($C331=raw_resource_build!$E:$E),0))-INDEX(raw_resource_build!$I:$I,MATCH(1,(G$295=raw_resource_build!$A:$A)*($C331=raw_resource_build!$E:$E),0)),0)","v":0},{"$f":"IFERROR(INDEX(raw_resource_build!$F:$F,MATCH(1,(H$295=raw_resource_build!$A:$A)*($C331=raw_resource_build!$E:$E),0))-INDEX(raw_resource_build!$I:$I,MATCH(1,(H$295=raw_resource_build!$A:$A)*($C331=raw_resource_build!$E:$E),0)),0)","v":0},{"$f":"IFERROR(INDEX(raw_resource_build!$F:$F,MATCH(1,(I$295=raw_resource_build!$A:$A)*($C331=raw_resource_build!$E:$E),0))-INDEX(raw_resource_build!$I:$I,MATCH(1,(I$295=raw_resource_build!$A:$A)*($C331=raw_resource_build!$E:$E),0)),0)","v":0},{"$f":"IFERROR(INDEX(raw_resource_build!$F:$F,MATCH(1,(J$295=raw_resource_build!$A:$A)*($C331=raw_resource_build!$E:$E),0))-INDEX(raw_resource_build!$I:$I,MATCH(1,(J$295=raw_resource_build!$A:$A)*($C331=raw_resource_build!$E:$E),0)),0)","v":0},{"$f":"IFERROR(INDEX(raw_resource_build!$F:$F,MATCH(1,(K$295=raw_resource_build!$A:$A)*($C331=raw_resource_build!$E:$E),0))-INDEX(raw_resource_build!$I:$I,MATCH(1,(K$295=raw_resource_build!$A:$A)*($C331=raw_resource_build!$E:$E),0)),0)","v":0},{"$f":"IFERROR(INDEX(raw_resource_build!$F:$F,MATCH(1,(L$295=raw_resource_build!$A:$A)*($C331=raw_resource_build!$E:$E),0))-INDEX(raw_resource_build!$I:$I,MATCH(1,(L$295=raw_resource_build!$A:$A)*($C331=raw_resource_build!$E:$E),0)),0)","v":0},{"$f":"IFERROR(INDEX(raw_resource_build!$F:$F,MATCH(1,(M$295=raw_resource_build!$A:$A)*($C331=raw_resource_build!$E:$E),0))-INDEX(raw_resource_build!$I:$I,MATCH(1,(M$295=raw_resource_build!$A:$A)*($C331=raw_resource_build!$E:$E),0)),0)","v":0},{"$f":"IFERROR(INDEX(raw_resource_build!$F:$F,MATCH(1,(N$295=raw_resource_build!$A:$A)*($C331=raw_resource_build!$E:$E),0))-INDEX(raw_resource_build!$I:$I,MATCH(1,(N$295=raw_resource_build!$A:$A)*($C331=raw_resource_build!$E:$E),0)),0)","v":0},{"$f":"IFERROR(INDEX(raw_resource_build!$F:$F,MATCH(1,(O$295=raw_resource_build!$A:$A)*($C331=raw_resource_build!$E:$E),0))-INDEX(raw_resource_build!$I:$I,MATCH(1,(O$295=raw_resource_build!$A:$A)*($C331=raw_resource_build!$E:$E),0)),0)","v":0},{"$f":"IFERROR(INDEX(raw_resource_build!$F:$F,MATCH(1,(P$295=raw_resource_build!$A:$A)*($C331=raw_resource_build!$E:$E),0))-INDEX(raw_resource_build!$I:$I,MATCH(1,(P$295=raw_resource_build!$A:$A)*($C331=raw_resource_build!$E:$E),0)),0)","v":0},{"$f":"IFERROR(INDEX(raw_resource_build!$F:$F,MATCH(1,(Q$295=raw_resource_build!$A:$A)*($C331=raw_resource_build!$E:$E),0))-INDEX(raw_resource_build!$I:$I,MATCH(1,(Q$295=raw_resource_build!$A:$A)*($C331=raw_resource_build!$E:$E),0)),0)","v":0},{"$f":"IFERROR(INDEX(raw_resource_build!$F:$F,MATCH(1,(R$295=raw_resource_build!$A:$A)*($C331=raw_resource_build!$E:$E),0))-INDEX(raw_resource_build!$I:$I,MATCH(1,(R$295=raw_resource_build!$A:$A)*($C331=raw_resource_build!$E:$E),0)),0)","v":0},{"$f":"IFERROR(INDEX(raw_resource_build!$F:$F,MATCH(1,(S$295=raw_resource_build!$A:$A)*($C331=raw_resource_build!$E:$E),0))-INDEX(raw_resource_build!$I:$I,MATCH(1,(S$295=raw_resource_build!$A:$A)*($C331=raw_resource_build!$E:$E),0)),0)","v":0},{"$f":"IFERROR(INDEX(raw_resource_build!$F:$F,MATCH(1,(T$295=raw_resource_build!$A:$A)*($C331=raw_resource_build!$E:$E),0))-INDEX(raw_resource_build!$I:$I,MATCH(1,(T$295=raw_resource_build!$A:$A)*($C331=raw_resource_build!$E:$E),0)),0)","v":0},{"$f":"IFERROR(INDEX(raw_resource_build!$F:$F,MATCH(1,(U$295=raw_resource_build!$A:$A)*($C331=raw_resource_build!$E:$E),0))-INDEX(raw_resource_build!$I:$I,MATCH(1,(U$295=raw_resource_build!$A:$A)*($C331=raw_resource_build!$E:$E),0)),0)","v":0},{"$f":"IFERROR(INDEX(raw_resource_build!$F:$F,MATCH(1,(V$295=raw_resource_build!$A:$A)*($C331=raw_resource_build!$E:$E),0))-INDEX(raw_resource_build!$I:$I,MATCH(1,(V$295=raw_resource_build!$A:$A)*($C331=raw_resource_build!$E:$E),0)),0)","v":0},{"$f":"IFERROR(INDEX(raw_resource_build!$F:$F,MATCH(1,(W$295=raw_resource_build!$A:$A)*($C331=raw_resource_build!$E:$E),0))-INDEX(raw_resource_build!$I:$I,MATCH(1,(W$295=raw_resource_build!$A:$A)*($C331=raw_resource_build!$E:$E),0)),0)","v":0},{"$f":"IFERROR(INDEX(raw_resource_build!$F:$F,MATCH(1,(X$295=raw_resource_build!$A:$A)*($C331=raw_resource_build!$E:$E),0))-INDEX(raw_resource_build!$I:$I,MATCH(1,(X$295=raw_resource_build!$A:$A)*($C331=raw_resource_build!$E:$E),0)),0)","v":0},{"$f":"IFERROR(INDEX(raw_resource_build!$F:$F,MATCH(1,(Y$295=raw_resource_build!$A:$A)*($C331=raw_resource_build!$E:$E),0))-INDEX(raw_resource_build!$I:$I,MATCH(1,(Y$295=raw_resource_build!$A:$A)*($C331=raw_resource_build!$E:$E),0)),0)","v":0},{"$f":"IFERROR(INDEX(raw_resource_build!$F:$F,MATCH(1,(Z$295=raw_resource_build!$A:$A)*($C331=raw_resource_build!$E:$E),0))-INDEX(raw_resource_build!$I:$I,MATCH(1,(Z$295=raw_resource_build!$A:$A)*($C331=raw_resource_build!$E:$E),0)),0)","v":0},{"$f":"IFERROR(INDEX(raw_resource_build!$F:$F,MATCH(1,(AA$295=raw_resource_build!$A:$A)*($C331=raw_resource_build!$E:$E),0))-INDEX(raw_resource_build!$I:$I,MATCH(1,(AA$295=raw_resource_build!$A:$A)*($C331=raw_resource_build!$E:$E),0)),0)","v":0},{"$f":"IFERROR(INDEX(raw_resource_build!$F:$F,MATCH(1,(AB$295=raw_resource_build!$A:$A)*($C331=raw_resource_build!$E:$E),0))-INDEX(raw_resource_build!$I:$I,MATCH(1,(AB$295=raw_resource_build!$A:$A)*($C331=raw_resource_build!$E:$E),0)),0)","v":0},{"$f":"IFERROR(INDEX(raw_resource_build!$F:$F,MATCH(1,(AC$295=raw_resource_build!$A:$A)*($C331=raw_resource_build!$E:$E),0))-INDEX(raw_resource_build!$I:$I,MATCH(1,(AC$295=raw_resource_build!$A:$A)*($C331=raw_resource_build!$E:$E),0)),0)","v":0},{"$f":"IFERROR(INDEX(raw_resource_build!$F:$F,MATCH(1,(AD$295=raw_resource_build!$A:$A)*($C331=raw_resource_build!$E:$E),0))-INDEX(raw_resource_build!$I:$I,MATCH(1,(AD$295=raw_resource_build!$A:$A)*($C331=raw_resource_build!$E:$E),0)),0)","v":0},{"$f":"IFERROR(INDEX(raw_resource_build!$F:$F,MATCH(1,(AE$295=raw_resource_build!$A:$A)*($C331=raw_resource_build!$E:$E),0))-INDEX(raw_resource_build!$I:$I,MATCH(1,(AE$295=raw_resource_build!$A:$A)*($C331=raw_resource_build!$E:$E),0)),0)","v":0},{"$f":"IFERROR(INDEX(raw_resource_build!$F:$F,MATCH(1,(AF$295=raw_resource_build!$A:$A)*($C331=raw_resource_build!$E:$E),0))-INDEX(raw_resource_build!$I:$I,MATCH(1,(AF$295=raw_resource_build!$A:$A)*($C331=raw_resource_build!$E:$E),0)),0)","v":0},{"$f":"IFERROR(INDEX(raw_resource_build!$F:$F,MATCH(1,(AG$295=raw_resource_build!$A:$A)*($C331=raw_resource_build!$E:$E),0))-INDEX(raw_resource_build!$I:$I,MATCH(1,(AG$295=raw_resource_build!$A:$A)*($C331=raw_resource_build!$E:$E),0)),0)","v":0},{"$f":"IFERROR(INDEX(raw_resource_build!$F:$F,MATCH(1,(AH$295=raw_resource_build!$A:$A)*($C331=raw_resource_build!$E:$E),0))-INDEX(raw_resource_build!$I:$I,MATCH(1,(AH$295=raw_resource_build!$A:$A)*($C331=raw_resource_build!$E:$E),0)),0)","v":0},{"$f":"IFERROR(INDEX(raw_resource_build!$F:$F,MATCH(1,(AI$295=raw_resource_build!$A:$A)*($C331=raw_resource_build!$E:$E),0))-INDEX(raw_resource_build!$I:$I,MATCH(1,(AI$295=raw_resource_build!$A:$A)*($C331=raw_resource_build!$E:$E),0)),0)","v":0},{"$f":"IFERROR(INDEX(raw_resource_build!$F:$F,MATCH(1,(AJ$295=raw_resource_build!$A:$A)*($C331=raw_resource_build!$E:$E),0))-INDEX(raw_resource_build!$I:$I,MATCH(1,(AJ$295=raw_resource_build!$A:$A)*($C331=raw_resource_build!$E:$E),0)),0)","v":0},{"$f":"IFERROR(INDEX(raw_resource_build!$F:$F,MATCH(1,(AK$295=raw_resource_build!$A:$A)*($C331=raw_resource_build!$E:$E),0))-INDEX(raw_resource_build!$I:$I,MATCH(1,(AK$295=raw_resource_build!$A:$A)*($C331=raw_resource_build!$E:$E),0)),0)","v":0},{"$f":"IFERROR(INDEX(raw_resource_build!$F:$F,MATCH(1,(AL$295=raw_resource_build!$A:$A)*($C331=raw_resource_build!$E:$E),0))-INDEX(raw_resource_build!$I:$I,MATCH(1,(AL$295=raw_resource_build!$A:$A)*($C331=raw_resource_build!$E:$E),0)),0)","v":0},{"$f":"IFERROR(INDEX(raw_resource_build!$F:$F,MATCH(1,(AM$295=raw_resource_build!$A:$A)*($C331=raw_resource_build!$E:$E),0))-INDEX(raw_resource_build!$I:$I,MATCH(1,(AM$295=raw_resource_build!$A:$A)*($C331=raw_resource_build!$E:$E),0)),0)","v":0},{"$f":"IFERROR(INDEX(raw_resource_build!$F:$F,MATCH(1,(AN$295=raw_resource_build!$A:$A)*($C331=raw_resource_build!$E:$E),0))-INDEX(raw_resource_build!$I:$I,MATCH(1,(AN$295=raw_resource_build!$A:$A)*($C331=raw_resource_build!$E:$E),0)),0)","v":0}]
[null,null,"CAISO_CCGT2","MW",null,{"$f":"IFERROR(INDEX(raw_resource_build!$F:$F,MATCH(1,(F$295=raw_resource_build!$A:$A)*($C332=raw_resource_build!$E:$E),0))-INDEX(raw_resource_build!$I:$I,MATCH(1,(F$295=raw_resource_build!$A:$A)*($C332=raw_resource_build!$E:$E),0)),0)","v":0},{"$f":"IFERROR(INDEX(raw_resource_build!$F:$F,MATCH(1,(G$295=raw_resource_build!$A:$A)*($C332=raw_resource_build!$E:$E),0))-INDEX(raw_resource_build!$I:$I,MATCH(1,(G$295=raw_resource_build!$A:$A)*($C332=raw_resource_build!$E:$E),0)),0)","v":0},{"$f":"IFERROR(INDEX(raw_resource_build!$F:$F,MATCH(1,(H$295=raw_resource_build!$A:$A)*($C332=raw_resource_build!$E:$E),0))-INDEX(raw_resource_build!$I:$I,MATCH(1,(H$295=raw_resource_build!$A:$A)*($C332=raw_resource_build!$E:$E),0)),0)","v":0},{"$f":"IFERROR(INDEX(raw_resource_build!$F:$F,MATCH(1,(I$295=raw_resource_build!$A:$A)*($C332=raw_resource_build!$E:$E),0))-INDEX(raw_resource_build!$I:$I,MATCH(1,(I$295=raw_resource_build!$A:$A)*($C332=raw_resource_build!$E:$E),0)),0)","v":0},{"$f":"IFERROR(INDEX(raw_resource_build!$F:$F,MATCH(1,(J$295=raw_resource_build!$A:$A)*($C332=raw_resource_build!$E:$E),0))-INDEX(raw_resource_build!$I:$I,MATCH(1,(J$295=raw_resource_build!$A:$A)*($C332=raw_resource_build!$E:$E),0)),0)","v":0},{"$f":"IFERROR(INDEX(raw_resource_build!$F:$F,MATCH(1,(K$295=raw_resource_build!$A:$A)*($C332=raw_resource_build!$E:$E),0))-INDEX(raw_resource_build!$I:$I,MATCH(1,(K$295=raw_resource_build!$A:$A)*($C332=raw_resource_build!$E:$E),0)),0)","v":0},{"$f":"IFERROR(INDEX(raw_resource_build!$F:$F,MATCH(1,(L$295=raw_resource_build!$A:$A)*($C332=raw_resource_build!$E:$E),0))-INDEX(raw_resource_build!$I:$I,MATCH(1,(L$295=raw_resource_build!$A:$A)*($C332=raw_resource_build!$E:$E),0)),0)","v":0},{"$f":"IFERROR(INDEX(raw_resource_build!$F:$F,MATCH(1,(M$295=raw_resource_build!$A:$A)*($C332=raw_resource_build!$E:$E),0))-INDEX(raw_resource_build!$I:$I,MATCH(1,(M$295=raw_resource_build!$A:$A)*($C332=raw_resource_build!$E:$E),0)),0)","v":0},{"$f":"IFERROR(INDEX(raw_resource_build!$F:$F,MATCH(1,(N$295=raw_resource_build!$A:$A)*($C332=raw_resource_build!$E:$E),0))-INDEX(raw_resource_build!$I:$I,MATCH(1,(N$295=raw_resource_build!$A:$A)*($C332=raw_resource_build!$E:$E),0)),0)","v":0},{"$f":"IFERROR(INDEX(raw_resource_build!$F:$F,MATCH(1,(O$295=raw_resource_build!$A:$A)*($C332=raw_resource_build!$E:$E),0))-INDEX(raw_resource_build!$I:$I,MATCH(1,(O$295=raw_resource_build!$A:$A)*($C332=raw_resource_build!$E:$E),0)),0)","v":0},{"$f":"IFERROR(INDEX(raw_resource_build!$F:$F,MATCH(1,(P$295=raw_resource_build!$A:$A)*($C332=raw_resource_build!$E:$E),0))-INDEX(raw_resource_build!$I:$I,MATCH(1,(P$295=raw_resource_build!$A:$A)*($C332=raw_resource_build!$E:$E),0)),0)","v":0},{"$f":"IFERROR(INDEX(raw_resource_build!$F:$F,MATCH(1,(Q$295=raw_resource_build!$A:$A)*($C332=raw_resource_build!$E:$E),0))-INDEX(raw_resource_build!$I:$I,MATCH(1,(Q$295=raw_resource_build!$A:$A)*($C332=raw_resource_build!$E:$E),0)),0)","v":0},{"$f":"IFERROR(INDEX(raw_resource_build!$F:$F,MATCH(1,(R$295=raw_resource_build!$A:$A)*($C332=raw_resource_build!$E:$E),0))-INDEX(raw_resource_build!$I:$I,MATCH(1,(R$295=raw_resource_build!$A:$A)*($C332=raw_resource_build!$E:$E),0)),0)","v":0},{"$f":"IFERROR(INDEX(raw_resource_build!$F:$F,MATCH(1,(S$295=raw_resource_build!$A:$A)*($C332=raw_resource_build!$E:$E),0))-INDEX(raw_resource_build!$I:$I,MATCH(1,(S$295=raw_resource_build!$A:$A)*($C332=raw_resource_build!$E:$E),0)),0)","v":0},{"$f":"IFERROR(INDEX(raw_resource_build!$F:$F,MATCH(1,(T$295=raw_resource_build!$A:$A)*($C332=raw_resource_build!$E:$E),0))-INDEX(raw_resource_build!$I:$I,MATCH(1,(T$295=raw_resource_build!$A:$A)*($C332=raw_resource_build!$E:$E),0)),0)","v":0},{"$f":"IFERROR(INDEX(raw_resource_build!$F:$F,MATCH(1,(U$295=raw_resource_build!$A:$A)*($C332=raw_resource_build!$E:$E),0))-INDEX(raw_resource_build!$I:$I,MATCH(1,(U$295=raw_resource_build!$A:$A)*($C332=raw_resource_build!$E:$E),0)),0)","v":0},{"$f":"IFERROR(INDEX(raw_resource_build!$F:$F,MATCH(1,(V$295=raw_resource_build!$A:$A)*($C332=raw_resource_build!$E:$E),0))-INDEX(raw_resource_build!$I:$I,MATCH(1,(V$295=raw_resource_build!$A:$A)*($C332=raw_resource_build!$E:$E),0)),0)","v":0},{"$f":"IFERROR(INDEX(raw_resource_build!$F:$F,MATCH(1,(W$295=raw_resource_build!$A:$A)*($C332=raw_resource_build!$E:$E),0))-INDEX(raw_resource_build!$I:$I,MATCH(1,(W$295=raw_resource_build!$A:$A)*($C332=raw_resource_build!$E:$E),0)),0)","v":0},{"$f":"IFERROR(INDEX(raw_resource_build!$F:$F,MATCH(1,(X$295=raw_resource_build!$A:$A)*($C332=raw_resource_build!$E:$E),0))-INDEX(raw_resource_build!$I:$I,MATCH(1,(X$295=raw_resource_build!$A:$A)*($C332=raw_resource_build!$E:$E),0)),0)","v":0},{"$f":"IFERROR(INDEX(raw_resource_build!$F:$F,MATCH(1,(Y$295=raw_resource_build!$A:$A)*($C332=raw_resource_build!$E:$E),0))-INDEX(raw_resource_build!$I:$I,MATCH(1,(Y$295=raw_resource_build!$A:$A)*($C332=raw_resource_build!$E:$E),0)),0)","v":0},{"$f":"IFERROR(INDEX(raw_resource_build!$F:$F,MATCH(1,(Z$295=raw_resource_build!$A:$A)*($C332=raw_resource_build!$E:$E),0))-INDEX(raw_resource_build!$I:$I,MATCH(1,(Z$295=raw_resource_build!$A:$A)*($C332=raw_resource_build!$E:$E),0)),0)","v":0},{"$f":"IFERROR(INDEX(raw_resource_build!$F:$F,MATCH(1,(AA$295=raw_resource_build!$A:$A)*($C332=raw_resource_build!$E:$E),0))-INDEX(raw_resource_build!$I:$I,MATCH(1,(AA$295=raw_resource_build!$A:$A)*($C332=raw_resource_build!$E:$E),0)),0)","v":0},{"$f":"IFERROR(INDEX(raw_resource_build!$F:$F,MATCH(1,(AB$295=raw_resource_build!$A:$A)*($C332=raw_resource_build!$E:$E),0))-INDEX(raw_resource_build!$I:$I,MATCH(1,(AB$295=raw_resource_build!$A:$A)*($C332=raw_resource_build!$E:$E),0)),0)","v":0},{"$f":"IFERROR(INDEX(raw_resource_build!$F:$F,MATCH(1,(AC$295=raw_resource_build!$A:$A)*($C332=raw_resource_build!$E:$E),0))-INDEX(raw_resource_build!$I:$I,MATCH(1,(AC$295=raw_resource_build!$A:$A)*($C332=raw_resource_build!$E:$E),0)),0)","v":0},{"$f":"IFERROR(INDEX(raw_resource_build!$F:$F,MATCH(1,(AD$295=raw_resource_build!$A:$A)*($C332=raw_resource_build!$E:$E),0))-INDEX(raw_resource_build!$I:$I,MATCH(1,(AD$295=raw_resource_build!$A:$A)*($C332=raw_resource_build!$E:$E),0)),0)","v":0},{"$f":"IFERROR(INDEX(raw_resource_build!$F:$F,MATCH(1,(AE$295=raw_resource_build!$A:$A)*($C332=raw_resource_build!$E:$E),0))-INDEX(raw_resource_build!$I:$I,MATCH(1,(AE$295=raw_resource_build!$A:$A)*($C332=raw_resource_build!$E:$E),0)),0)","v":0},{"$f":"IFERROR(INDEX(raw_resource_build!$F:$F,MATCH(1,(AF$295=raw_resource_build!$A:$A)*($C332=raw_resource_build!$E:$E),0))-INDEX(raw_resource_build!$I:$I,MATCH(1,(AF$295=raw_resource_build!$A:$A)*($C332=raw_resource_build!$E:$E),0)),0)","v":0},{"$f":"IFERROR(INDEX(raw_resource_build!$F:$F,MATCH(1,(AG$295=raw_resource_build!$A:$A)*($C332=raw_resource_build!$E:$E),0))-INDEX(raw_resource_build!$I:$I,MATCH(1,(AG$295=raw_resource_build!$A:$A)*($C332=raw_resource_build!$E:$E),0)),0)","v":0},{"$f":"IFERROR(INDEX(raw_resource_build!$F:$F,MATCH(1,(AH$295=raw_resource_build!$A:$A)*($C332=raw_resource_build!$E:$E),0))-INDEX(raw_resource_build!$I:$I,MATCH(1,(AH$295=raw_resource_build!$A:$A)*($C332=raw_resource_build!$E:$E),0)),0)","v":0},{"$f":"IFERROR(INDEX(raw_resource_build!$F:$F,MATCH(1,(AI$295=raw_resource_build!$A:$A)*($C332=raw_resource_build!$E:$E),0))-INDEX(raw_resource_build!$I:$I,MATCH(1,(AI$295=raw_resource_build!$A:$A)*($C332=raw_resource_build!$E:$E),0)),0)","v":0},{"$f":"IFERROR(INDEX(raw_resource_build!$F:$F,MATCH(1,(AJ$295=raw_resource_build!$A:$A)*($C332=raw_resource_build!$E:$E),0))-INDEX(raw_resource_build!$I:$I,MATCH(1,(AJ$295=raw_resource_build!$A:$A)*($C332=raw_resource_build!$E:$E),0)),0)","v":0},{"$f":"IFERROR(INDEX(raw_resource_build!$F:$F,MATCH(1,(AK$295=raw_resource_build!$A:$A)*($C332=raw_resource_build!$E:$E),0))-INDEX(raw_resource_build!$I:$I,MATCH(1,(AK$295=raw_resource_build!$A:$A)*($C332=raw_resource_build!$E:$E),0)),0)","v":0},{"$f":"IFERROR(INDEX(raw_resource_build!$F:$F,MATCH(1,(AL$295=raw_resource_build!$A:$A)*($C332=raw_resource_build!$E:$E),0))-INDEX(raw_resource_build!$I:$I,MATCH(1,(AL$295=raw_resource_build!$A:$A)*($C332=raw_resource_build!$E:$E),0)),0)","v":0},{"$f":"IFERROR(INDEX(raw_resource_build!$F:$F,MATCH(1,(AM$295=raw_resource_build!$A:$A)*($C332=raw_resource_build!$E:$E),0))-INDEX(raw_resource_build!$I:$I,MATCH(1,(AM$295=raw_resource_build!$A:$A)*($C332=raw_resource_build!$E:$E),0)),0)","v":0},{"$f":"IFERROR(INDEX(raw_resource_build!$F:$F,MATCH(1,(AN$295=raw_resource_build!$A:$A)*($C332=raw_resource_build!$E:$E),0))-INDEX(raw_resource_build!$I:$I,MATCH(1,(AN$295=raw_resource_build!$A:$A)*($C332=raw_resource_build!$E:$E),0)),0)","v":0}]
[null,null,"CAISO_Peaker1","MW",null,{"$f":"IFERROR(INDEX(raw_resource_build!$F:$F,MATCH(1,(F$295=raw_resource_build!$A:$A)*($C333=raw_resource_build!$E:$E),0))-INDEX(raw_resource_build!$I:$I,MATCH(1,(F$295=raw_resource_build!$A:$A)*($C333=raw_resource_build!$E:$E),0)),0)","v":0},{"$f":"IFERROR(INDEX(raw_resource_build!$F:$F,MATCH(1,(G$295=raw_resource_build!$A:$A)*($C333=raw_resource_build!$E:$E),0))-INDEX(raw_resource_build!$I:$I,MATCH(1,(G$295=raw_resource_build!$A:$A)*($C333=raw_resource_build!$E:$E),0)),0)","v":0},{"$f":"IFERROR(INDEX(raw_resource_build!$F:$F,MATCH(1,(H$295=raw_resource_build!$A:$A)*($C333=raw_resource_build!$E:$E),0))-INDEX(raw_resource_build!$I:$I,MATCH(1,(H$295=raw_resource_build!$A:$A)*($C333=raw_resource_build!$E:$E),0)),0)","v":0},{"$f":"IFERROR(INDEX(raw_resource_build!$F:$F,MATCH(1,(I$295=raw_resource_build!$A:$A)*($C333=raw_resource_build!$E:$E),0))-INDEX(raw_resource_build!$I:$I,MATCH(1,(I$295=raw_resource_build!$A:$A)*($C333=raw_resource_build!$E:$E),0)),0)","v":0},{"$f":"IFERROR(INDEX(raw_resource_build!$F:$F,MATCH(1,(J$295=raw_resource_build!$A:$A)*($C333=raw_resource_build!$E:$E),0))-INDEX(raw_resource_build!$I:$I,MATCH(1,(J$295=raw_resource_build!$A:$A)*($C333=raw_resource_build!$E:$E),0)),0)","v":0},{"$f":"IFERROR(INDEX(raw_resource_build!$F:$F,MATCH(1,(K$295=raw_resource_build!$A:$A)*($C333=raw_resource_build!$E:$E),0))-INDEX(raw_resource_build!$I:$I,MATCH(1,(K$295=raw_resource_build!$A:$A)*($C333=raw_resource_build!$E:$E),0)),0)","v":0},{"$f":"IFERROR(INDEX(raw_resource_build!$F:$F,MATCH(1,(L$295=raw_resource_build!$A:$A)*($C333=raw_resource_build!$E:$E),0))-INDEX(raw_resource_build!$I:$I,MATCH(1,(L$295=raw_resource_build!$A:$A)*($C333=raw_resource_build!$E:$E),0)),0)","v":0},{"$f":"IFERROR(INDEX(raw_resource_build!$F:$F,MATCH(1,(M$295=raw_resource_build!$A:$A)*($C333=raw_resource_build!$E:$E),0))-INDEX(raw_resource_build!$I:$I,MATCH(1,(M$295=raw_resource_build!$A:$A)*($C333=raw_resource_build!$E:$E),0)),0)","v":0},{"$f":"IFERROR(INDEX(raw_resource_build!$F:$F,MATCH(1,(N$295=raw_resource_build!$A:$A)*($C333=raw_resource_build!$E:$E),0))-INDEX(raw_resource_build!$I:$I,MATCH(1,(N$295=raw_resource_build!$A:$A)*($C333=raw_resource_build!$E:$E),0)),0)","v":0},{"$f":"IFERROR(INDEX(raw_resource_build!$F:$F,MATCH(1,(O$295=raw_resource_build!$A:$A)*($C333=raw_resource_build!$E:$E),0))-INDEX(raw_resource_build!$I:$I,MATCH(1,(O$295=raw_resource_build!$A:$A)*($C333=raw_resource_build!$E:$E),0)),0)","v":0},{"$f":"IFERROR(INDEX(raw_resource_build!$F:$F,MATCH(1,(P$295=raw_resource_build!$A:$A)*($C333=raw_resource_build!$E:$E),0))-INDEX(raw_resource_build!$I:$I,MATCH(1,(P$295=raw_resource_build!$A:$A)*($C333=raw_resource_build!$E:$E),0)),0)","v":0},{"$f":"IFERROR(INDEX(raw_resource_build!$F:$F,MATCH(1,(Q$295=raw_resource_build!$A:$A)*($C333=raw_resource_build!$E:$E),0))-INDEX(raw_resource_build!$I:$I,MATCH(1,(Q$295=raw_resource_build!$A:$A)*($C333=raw_resource_build!$E:$E),0)),0)","v":0},{"$f":"IFERROR(INDEX(raw_resource_build!$F:$F,MATCH(1,(R$295=raw_resource_build!$A:$A)*($C333=raw_resource_build!$E:$E),0))-INDEX(raw_resource_build!$I:$I,MATCH(1,(R$295=raw_resource_build!$A:$A)*($C333=raw_resource_build!$E:$E),0)),0)","v":0},{"$f":"IFERROR(INDEX(raw_resource_build!$F:$F,MATCH(1,(S$295=raw_resource_build!$A:$A)*($C333=raw_resource_build!$E:$E),0))-INDEX(raw_resource_build!$I:$I,MATCH(1,(S$295=raw_resource_build!$A:$A)*($C333=raw_resource_build!$E:$E),0)),0)","v":0},{"$f":"IFERROR(INDEX(raw_resource_build!$F:$F,MATCH(1,(T$295=raw_resource_build!$A:$A)*($C333=raw_resource_build!$E:$E),0))-INDEX(raw_resource_build!$I:$I,MATCH(1,(T$295=raw_resource_build!$A:$A)*($C333=raw_resource_build!$E:$E),0)),0)","v":0},{"$f":"IFERROR(INDEX(raw_resource_build!$F:$F,MATCH(1,(U$295=raw_resource_build!$A:$A)*($C333=raw_resource_build!$E:$E),0))-INDEX(raw_resource_build!$I:$I,MATCH(1,(U$295=raw_resource_build!$A:$A)*($C333=raw_resource_build!$E:$E),0)),0)","v":0},{"$f":"IFERROR(INDEX(raw_resource_build!$F:$F,MATCH(1,(V$295=raw_resource_build!$A:$A)*($C333=raw_resource_build!$E:$E),0))-INDEX(raw_resource_build!$I:$I,MATCH(1,(V$295=raw_resource_build!$A:$A)*($C333=raw_resource_build!$E:$E),0)),0)","v":0},{"$f":"IFERROR(INDEX(raw_resource_build!$F:$F,MATCH(1,(W$295=raw_resource_build!$A:$A)*($C333=raw_resource_build!$E:$E),0))-INDEX(raw_resource_build!$I:$I,MATCH(1,(W$295=raw_resource_build!$A:$A)*($C333=raw_resource_build!$E:$E),0)),0)","v":0},{"$f":"IFERROR(INDEX(raw_resource_build!$F:$F,MATCH(1,(X$295=raw_resource_build!$A:$A)*($C333=raw_resource_build!$E:$E),0))-INDEX(raw_resource_build!$I:$I,MATCH(1,(X$295=raw_resource_build!$A:$A)*($C333=raw_resource_build!$E:$E),0)),0)","v":0},{"$f":"IFERROR(INDEX(raw_resource_build!$F:$F,MATCH(1,(Y$295=raw_resource_build!$A:$A)*($C333=raw_resource_build!$E:$E),0))-INDEX(raw_resource_build!$I:$I,MATCH(1,(Y$295=raw_resource_build!$A:$A)*($C333=raw_resource_build!$E:$E),0)),0)","v":0},{"$f":"IFERROR(INDEX(raw_resource_build!$F:$F,MATCH(1,(Z$295=raw_resource_build!$A:$A)*($C333=raw_resource_build!$E:$E),0))-INDEX(raw_resource_build!$I:$I,MATCH(1,(Z$295=raw_resource_build!$A:$A)*($C333=raw_resource_build!$E:$E),0)),0)","v":0},{"$f":"IFERROR(INDEX(raw_resource_build!$F:$F,MATCH(1,(AA$295=raw_resource_build!$A:$A)*($C333=raw_resource_build!$E:$E),0))-INDEX(raw_resource_build!$I:$I,MATCH(1,(AA$295=raw_resource_build!$A:$A)*($C333=raw_resource_build!$E:$E),0)),0)","v":0},{"$f":"IFERROR(INDEX(raw_resource_build!$F:$F,MATCH(1,(AB$295=raw_resource_build!$A:$A)*($C333=raw_resource_build!$E:$E),0))-INDEX(raw_resource_build!$I:$I,MATCH(1,(AB$295=raw_resource_build!$A:$A)*($C333=raw_resource_build!$E:$E),0)),0)","v":0},{"$f":"IFERROR(INDEX(raw_resource_build!$F:$F,MATCH(1,(AC$295=raw_resource_build!$A:$A)*($C333=raw_resource_build!$E:$E),0))-INDEX(raw_resource_build!$I:$I,MATCH(1,(AC$295=raw_resource_build!$A:$A)*($C333=raw_resource_build!$E:$E),0)),0)","v":0},{"$f":"IFERROR(INDEX(raw_resource_build!$F:$F,MATCH(1,(AD$295=raw_resource_build!$A:$A)*($C333=raw_resource_build!$E:$E),0))-INDEX(raw_resource_build!$I:$I,MATCH(1,(AD$295=raw_resource_build!$A:$A)*($C333=raw_resource_build!$E:$E),0)),0)","v":0},{"$f":"IFERROR(INDEX(raw_resource_build!$F:$F,MATCH(1,(AE$295=raw_resource_build!$A:$A)*($C333=raw_resource_build!$E:$E),0))-INDEX(raw_resource_build!$I:$I,MATCH(1,(AE$295=raw_resource_build!$A:$A)*($C333=raw_resource_build!$E:$E),0)),0)","v":0},{"$f":"IFERROR(INDEX(raw_resource_build!$F:$F,MATCH(1,(AF$295=raw_resource_build!$A:$A)*($C333=raw_resource_build!$E:$E),0))-INDEX(raw_resource_build!$I:$I,MATCH(1,(AF$295=raw_resource_build!$A:$A)*($C333=raw_resource_build!$E:$E),0)),0)","v":0},{"$f":"IFERROR(INDEX(raw_resource_build!$F:$F,MATCH(1,(AG$295=raw_resource_build!$A:$A)*($C333=raw_resource_build!$E:$E),0))-INDEX(raw_resource_build!$I:$I,MATCH(1,(AG$295=raw_resource_build!$A:$A)*($C333=raw_resource_build!$E:$E),0)),0)","v":0},{"$f":"IFERROR(INDEX(raw_resource_build!$F:$F,MATCH(1,(AH$295=raw_resource_build!$A:$A)*($C333=raw_resource_build!$E:$E),0))-INDEX(raw_resource_build!$I:$I,MATCH(1,(AH$295=raw_resource_build!$A:$A)*($C333=raw_resource_build!$E:$E),0)),0)","v":0},{"$f":"IFERROR(INDEX(raw_resource_build!$F:$F,MATCH(1,(AI$295=raw_resource_build!$A:$A)*($C333=raw_resource_build!$E:$E),0))-INDEX(raw_resource_build!$I:$I,MATCH(1,(AI$295=raw_resource_build!$A:$A)*($C333=raw_resource_build!$E:$E),0)),0)","v":1750.9300000000003},{"$f":"IFERROR(INDEX(raw_resource_build!$F:$F,MATCH(1,(AJ$295=raw_resource_build!$A:$A)*($C333=raw_resource_build!$E:$E),0))-INDEX(raw_resource_build!$I:$I,MATCH(1,(AJ$295=raw_resource_build!$A:$A)*($C333=raw_resource_build!$E:$E),0)),0)","v":0},{"$f":"IFERROR(INDEX(raw_resource_build!$F:$F,MATCH(1,(AK$295=raw_resource_build!$A:$A)*($C333=raw_resource_build!$E:$E),0))-INDEX(raw_resource_build!$I:$I,MATCH(1,(AK$295=raw_resource_build!$A:$A)*($C333=raw_resource_build!$E:$E),0)),0)","v":0},{"$f":"IFERROR(INDEX(raw_resource_build!$F:$F,MATCH(1,(AL$295=raw_resource_build!$A:$A)*($C333=raw_resource_build!$E:$E),0))-INDEX(raw_resource_build!$I:$I,MATCH(1,(AL$295=raw_resource_build!$A:$A)*($C333=raw_resource_build!$E:$E),0)),0)","v":0},{"$f":"IFERROR(INDEX(raw_resource_build!$F:$F,MATCH(1,(AM$295=raw_resource_build!$A:$A)*($C333=raw_resource_build!$E:$E),0))-INDEX(raw_resource_build!$I:$I,MATCH(1,(AM$295=raw_resource_build!$A:$A)*($C333=raw_resource_build!$E:$E),0)),0)","v":0},{"$f":"IFERROR(INDEX(raw_resource_build!$F:$F,MATCH(1,(AN$295=raw_resource_build!$A:$A)*($C333=raw_resource_build!$E:$E),0))-INDEX(raw_resource_build!$I:$I,MATCH(1,(AN$295=raw_resource_build!$A:$A)*($C333=raw_resource_build!$E:$E),0)),0)","v":0}]
[null,null,"CAISO_Peaker2","MW",null,{"$f":"IFERROR(INDEX(raw_resource_build!$F:$F,MATCH(1,(F$295=raw_resource_build!$A:$A)*($C334=raw_resource_build!$E:$E),0))-INDEX(raw_resource_build!$I:$I,MATCH(1,(F$295=raw_resource_build!$A:$A)*($C334=raw_resource_build!$E:$E),0)),0)","v":0},{"$f":"IFERROR(INDEX(raw_resource_build!$F:$F,MATCH(1,(G$295=raw_resource_build!$A:$A)*($C334=raw_resource_build!$E:$E),0))-INDEX(raw_resource_build!$I:$I,MATCH(1,(G$295=raw_resource_build!$A:$A)*($C334=raw_resource_build!$E:$E),0)),0)","v":0},{"$f":"IFERROR(INDEX(raw_resource_build!$F:$F,MATCH(1,(H$295=raw_resource_build!$A:$A)*($C334=raw_resource_build!$E:$E),0))-INDEX(raw_resource_build!$I:$I,MATCH(1,(H$295=raw_resource_build!$A:$A)*($C334=raw_resource_build!$E:$E),0)),0)","v":0},{"$f":"IFERROR(INDEX(raw_resource_build!$F:$F,MATCH(1,(I$295=raw_resource_build!$A:$A)*($C334=raw_resource_build!$E:$E),0))-INDEX(raw_resource_build!$I:$I,MATCH(1,(I$295=raw_resource_build!$A:$A)*($C334=raw_resource_build!$E:$E),0)),0)","v":0},{"$f":"IFERROR(INDEX(raw_resource_build!$F:$F,MATCH(1,(J$295=raw_resource_build!$A:$A)*($C334=raw_resource_build!$E:$E),0))-INDEX(raw_resource_build!$I:$I,MATCH(1,(J$295=raw_resource_build!$A:$A)*($C334=raw_resource_build!$E:$E),0)),0)","v":0},{"$f":"IFERROR(INDEX(raw_resource_build!$F:$F,MATCH(1,(K$295=raw_resource_build!$A:$A)*($C334=raw_resource_build!$E:$E),0))-INDEX(raw_resource_build!$I:$I,MATCH(1,(K$295=raw_resource_build!$A:$A)*($C334=raw_resource_build!$E:$E),0)),0)","v":0},{"$f":"IFERROR(INDEX(raw_resource_build!$F:$F,MATCH(1,(L$295=raw_resource_build!$A:$A)*($C334=raw_resource_build!$E:$E),0))-INDEX(raw_resource_build!$I:$I,MATCH(1,(L$295=raw_resource_build!$A:$A)*($C334=raw_resource_build!$E:$E),0)),0)","v":0},{"$f":"IFERROR(INDEX(raw_resource_build!$F:$F,MATCH(1,(M$295=raw_resource_build!$A:$A)*($C334=raw_resource_build!$E:$E),0))-INDEX(raw_resource_build!$I:$I,MATCH(1,(M$295=raw_resource_build!$A:$A)*($C334=raw_resource_build!$E:$E),0)),0)","v":0},{"$f":"IFERROR(INDEX(raw_resource_build!$F:$F,MATCH(1,(N$295=raw_resource_build!$A:$A)*($C334=raw_resource_build!$E:$E),0))-INDEX(raw_resource_build!$I:$I,MATCH(1,(N$295=raw_resource_build!$A:$A)*($C334=raw_resource_build!$E:$E),0)),0)","v":0},{"$f":"IFERROR(INDEX(raw_resource_build!$F:$F,MATCH(1,(O$295=raw_resource_build!$A:$A)*($C334=raw_resource_build!$E:$E),0))-INDEX(raw_resource_build!$I:$I,MATCH(1,(O$295=raw_resource_build!$A:$A)*($C334=raw_resource_build!$E:$E),0)),0)","v":0},{"$f":"IFERROR(INDEX(raw_resource_build!$F:$F,MATCH(1,(P$295=raw_resource_build!$A:$A)*($C334=raw_resource_build!$E:$E),0))-INDEX(raw_resource_build!$I:$I,MATCH(1,(P$295=raw_resource_build!$A:$A)*($C334=raw_resource_build!$E:$E),0)),0)","v":0},{"$f":"IFERROR(INDEX(raw_resource_build!$F:$F,MATCH(1,(Q$295=raw_resource_build!$A:$A)*($C334=raw_resource_build!$E:$E),0))-INDEX(raw_resource_build!$I:$I,MATCH(1,(Q$295=raw_resource_build!$A:$A)*($C334=raw_resource_build!$E:$E),0)),0)","v":0},{"$f":"IFERROR(INDEX(raw_resource_build!$F:$F,MATCH(1,(R$295=raw_resource_build!$A:$A)*($C334=raw_resource_build!$E:$E),0))-INDEX(raw_resource_build!$I:$I,MATCH(1,(R$295=raw_resource_build!$A:$A)*($C334=raw_resource_build!$E:$E),0)),0)","v":0},{"$f":"IFERROR(INDEX(raw_resource_build!$F:$F,MATCH(1,(S$295=raw_resource_build!$A:$A)*($C334=raw_resource_build!$E:$E),0))-INDEX(raw_resource_build!$I:$I,MATCH(1,(S$295=raw_resource_build!$A:$A)*($C334=raw_resource_build!$E:$E),0)),0)","v":0},{"$f":"IFERROR(INDEX(raw_resource_build!$F:$F,MATCH(1,(T$295=raw_resource_build!$A:$A)*($C334=raw_resource_build!$E:$E),0))-INDEX(raw_resource_build!$I:$I,MATCH(1,(T$295=raw_resource_build!$A:$A)*($C334=raw_resource_build!$E:$E),0)),0)","v":0},{"$f":"IFERROR(INDEX(raw_resource_build!$F:$F,MATCH(1,(U$295=raw_resource_build!$A:$A)*($C334=raw_resource_build!$E:$E),0))-INDEX(raw_resource_build!$I:$I,MATCH(1,(U$295=raw_resource_build!$A:$A)*($C334=raw_resource_build!$E:$E),0)),0)","v":0},{"$f":"IFERROR(INDEX(raw_resource_build!$F:$F,MATCH(1,(V$295=raw_resource_build!$A:$A)*($C334=raw_resource_build!$E:$E),0))-INDEX(raw_resource_build!$I:$I,MATCH(1,(V$295=raw_resource_build!$A:$A)*($C334=raw_resource_build!$E:$E),0)),0)","v":0},{"$f":"IFERROR(INDEX(raw_resource_build!$F:$F,MATCH(1,(W$295=raw_resource_build!$A:$A)*($C334=raw_resource_build!$E:$E),0))-INDEX(raw_resource_build!$I:$I,MATCH(1,(W$295=raw_resource_build!$A:$A)*($C334=raw_resource_build!$E:$E),0)),0)","v":0},{"$f":"IFERROR(INDEX(raw_resource_build!$F:$F,MATCH(1,(X$295=raw_resource_build!$A:$A)*($C334=raw_resource_build!$E:$E),0))-INDEX(raw_resource_build!$I:$I,MATCH(1,(X$295=raw_resource_build!$A:$A)*($C334=raw_resource_build!$E:$E),0)),0)","v":0},{"$f":"IFERROR(INDEX(raw_resource_build!$F:$F,MATCH(1,(Y$295=raw_resource_build!$A:$A)*($C334=raw_resource_build!$E:$E),0))-INDEX(raw_resource_build!$I:$I,MATCH(1,(Y$295=raw_resource_build!$A:$A)*($C334=raw_resource_build!$E:$E),0)),0)","v":0},{"$f":"IFERROR(INDEX(raw_resource_build!$F:$F,MATCH(1,(Z$295=raw_resource_build!$A:$A)*($C334=raw_resource_build!$E:$E),0))-INDEX(raw_resource_build!$I:$I,MATCH(1,(Z$295=raw_resource_build!$A:$A)*($C334=raw_resource_build!$E:$E),0)),0)","v":0},{"$f":"IFERROR(INDEX(raw_resource_build!$F:$F,MATCH(1,(AA$295=raw_resource_build!$A:$A)*($C334=raw_resource_build!$E:$E),0))-INDEX(raw_resource_build!$I:$I,MATCH(1,(AA$295=raw_resource_build!$A:$A)*($C334=raw_resource_build!$E:$E),0)),0)","v":0},{"$f":"IFERROR(INDEX(raw_resource_build!$F:$F,MATCH(1,(AB$295=raw_resource_build!$A:$A)*($C334=raw_resource_build!$E:$E),0))-INDEX(raw_resource_build!$I:$I,MATCH(1,(AB$295=raw_resource_build!$A:$A)*($C334=raw_resource_build!$E:$E),0)),0)","v":0},{"$f":"IFERROR(INDEX(raw_resource_build!$F:$F,MATCH(1,(AC$295=raw_resource_build!$A:$A)*($C334=raw_resource_build!$E:$E),0))-INDEX(raw_resource_build!$I:$I,MATCH(1,(AC$295=raw_resource_build!$A:$A)*($C334=raw_resource_build!$E:$E),0)),0)","v":0},{"$f":"IFERROR(INDEX(raw_resource_build!$F:$F,MATCH(1,(AD$295=raw_resource_build!$A:$A)*($C334=raw_resource_build!$E:$E),0))-INDEX(raw_resource_build!$I:$I,MATCH(1,(AD$295=raw_resource_build!$A:$A)*($C334=raw_resource_build!$E:$E),0)),0)","v":0},{"$f":"IFERROR(INDEX(raw_resource_build!$F:$F,MATCH(1,(AE$295=raw_resource_build!$A:$A)*($C334=raw_resource_build!$E:$E),0))-INDEX(raw_resource_build!$I:$I,MATCH(1,(AE$295=raw_resource_build!$A:$A)*($C334=raw_resource_build!$E:$E),0)),0)","v":0},{"$f":"IFERROR(INDEX(raw_resource_build!$F:$F,MATCH(1,(AF$295=raw_resource_build!$A:$A)*($C334=raw_resource_build!$E:$E),0))-INDEX(raw_resource_build!$I:$I,MATCH(1,(AF$295=raw_resource_build!$A:$A)*($C334=raw_resource_build!$E:$E),0)),0)","v":0},{"$f":"IFERROR(INDEX(raw_resource_build!$F:$F,MATCH(1,(AG$295=raw_resource_build!$A:$A)*($C334=raw_resource_build!$E:$E),0))-INDEX(raw_resource_build!$I:$I,MATCH(1,(AG$295=raw_resource_build!$A:$A)*($C334=raw_resource_build!$E:$E),0)),0)","v":0},{"$f":"IFERROR(INDEX(raw_resource_build!$F:$F,MATCH(1,(AH$295=raw_resource_build!$A:$A)*($C334=raw_resource_build!$E:$E),0))-INDEX(raw_resource_build!$I:$I,MATCH(1,(AH$295=raw_resource_build!$A:$A)*($C334=raw_resource_build!$E:$E),0)),0)","v":0},{"$f":"IFERROR(INDEX(raw_resource_build!$F:$F,MATCH(1,(AI$295=raw_resource_build!$A:$A)*($C334=raw_resource_build!$E:$E),0))-INDEX(raw_resource_build!$I:$I,MATCH(1,(AI$295=raw_resource_build!$A:$A)*($C334=raw_resource_build!$E:$E),0)),0)","v":2018.83},{"$f":"IFERROR(INDEX(raw_resource_build!$F:$F,MATCH(1,(AJ$295=raw_resource_build!$A:$A)*($C334=raw_resource_build!$E:$E),0))-INDEX(raw_resource_build!$I:$I,MATCH(1,(AJ$295=raw_resource_build!$A:$A)*($C334=raw_resource_build!$E:$E),0)),0)","v":0},{"$f":"IFERROR(INDEX(raw_resource_build!$F:$F,MATCH(1,(AK$295=raw_resource_build!$A:$A)*($C334=raw_resource_build!$E:$E),0))-INDEX(raw_resource_build!$I:$I,MATCH(1,(AK$295=raw_resource_build!$A:$A)*($C334=raw_resource_build!$E:$E),0)),0)","v":0},{"$f":"IFERROR(INDEX(raw_resource_build!$F:$F,MATCH(1,(AL$295=raw_resource_build!$A:$A)*($C334=raw_resource_build!$E:$E),0))-INDEX(raw_resource_build!$I:$I,MATCH(1,(AL$295=raw_resource_build!$A:$A)*($C334=raw_resource_build!$E:$E),0)),0)","v":0},{"$f":"IFERROR(INDEX(raw_resource_build!$F:$F,MATCH(1,(AM$295=raw_resource_build!$A:$A)*($C334=raw_resource_build!$E:$E),0))-INDEX(raw_resource_build!$I:$I,MATCH(1,(AM$295=raw_resource_build!$A:$A)*($C334=raw_resource_build!$E:$E),0)),0)","v":0},{"$f":"IFERROR(INDEX(raw_resource_build!$F:$F,MATCH(1,(AN$295=raw_resource_build!$A:$A)*($C334=raw_resource_build!$E:$E),0))-INDEX(raw_resource_build!$I:$I,MATCH(1,(AN$295=raw_resource_build!$A:$A)*($C334=raw_resource_build!$E:$E),0)),0)","v":0}]
[null,null,"CAISO_Reciprocating_Engine","MW",null,{"$f":"IFERROR(INDEX(raw_resource_build!$F:$F,MATCH(1,(F$295=raw_resource_build!$A:$A)*($C335=raw_resource_build!$E:$E),0))-INDEX(raw_resource_build!$I:$I,MATCH(1,(F$295=raw_resource_build!$A:$A)*($C335=raw_resource_build!$E:$E),0)),0)","v":0},{"$f":"IFERROR(INDEX(raw_resource_build!$F:$F,MATCH(1,(G$295=raw_resource_build!$A:$A)*($C335=raw_resource_build!$E:$E),0))-INDEX(raw_resource_build!$I:$I,MATCH(1,(G$295=raw_resource_build!$A:$A)*($C335=raw_resource_build!$E:$E),0)),0)","v":0},{"$f":"IFERROR(INDEX(raw_resource_build!$F:$F,MATCH(1,(H$295=raw_resource_build!$A:$A)*($C335=raw_resource_build!$E:$E),0))-INDEX(raw_resource_build!$I:$I,MATCH(1,(H$295=raw_resource_build!$A:$A)*($C335=raw_resource_build!$E:$E),0)),0)","v":0},{"$f":"IFERROR(INDEX(raw_resource_build!$F:$F,MATCH(1,(I$295=raw_resource_build!$A:$A)*($C335=raw_resource_build!$E:$E),0))-INDEX(raw_resource_build!$I:$I,MATCH(1,(I$295=raw_resource_build!$A:$A)*($C335=raw_resource_build!$E:$E),0)),0)","v":0},{"$f":"IFERROR(INDEX(raw_resource_build!$F:$F,MATCH(1,(J$295=raw_resource_build!$A:$A)*($C335=raw_resource_build!$E:$E),0))-INDEX(raw_resource_build!$I:$I,MATCH(1,(J$295=raw_resource_build!$A:$A)*($C335=raw_resource_build!$E:$E),0)),0)","v":0},{"$f":"IFERROR(INDEX(raw_resource_build!$F:$F,MATCH(1,(K$295=raw_resource_build!$A:$A)*($C335=raw_resource_build!$E:$E),0))-INDEX(raw_resource_build!$I:$I,MATCH(1,(K$295=raw_resource_build!$A:$A)*($C335=raw_resource_build!$E:$E),0)),0)","v":0},{"$f":"IFERROR(INDEX(raw_resource_build!$F:$F,MATCH(1,(L$295=raw_resource_build!$A:$A)*($C335=raw_resource_build!$E:$E),0))-INDEX(raw_resource_build!$I:$I,MATCH(1,(L$295=raw_resource_build!$A:$A)*($C335=raw_resource_build!$E:$E),0)),0)","v":0},{"$f":"IFERROR(INDEX(raw_resource_build!$F:$F,MATCH(1,(M$295=raw_resource_build!$A:$A)*($C335=raw_resource_build!$E:$E),0))-INDEX(raw_resource_build!$I:$I,MATCH(1,(M$295=raw_resource_build!$A:$A)*($C335=raw_resource_build!$E:$E),0)),0)","v":0},{"$f":"IFERROR(INDEX(raw_resource_build!$F:$F,MATCH(1,(N$295=raw_resource_build!$A:$A)*($C335=raw_resource_build!$E:$E),0))-INDEX(raw_resource_build!$I:$I,MATCH(1,(N$295=raw_resource_build!$A:$A)*($C335=raw_resource_build!$E:$E),0)),0)","v":0},{"$f":"IFERROR(INDEX(raw_resource_build!$F:$F,MATCH(1,(O$295=raw_resource_build!$A:$A)*($C335=raw_resource_build!$E:$E),0))-INDEX(raw_resource_build!$I:$I,MATCH(1,(O$295=raw_resource_build!$A:$A)*($C335=raw_resource_build!$E:$E),0)),0)","v":0},{"$f":"IFERROR(INDEX(raw_resource_build!$F:$F,MATCH(1,(P$295=raw_resource_build!$A:$A)*($C335=raw_resource_build!$E:$E),0))-INDEX(raw_resource_build!$I:$I,MATCH(1,(P$295=raw_resource_build!$A:$A)*($C335=raw_resource_build!$E:$E),0)),0)","v":0},{"$f":"IFERROR(INDEX(raw_resource_build!$F:$F,MATCH(1,(Q$295=raw_resource_build!$A:$A)*($C335=raw_resource_build!$E:$E),0))-INDEX(raw_resource_build!$I:$I,MATCH(1,(Q$295=raw_resource_build!$A:$A)*($C335=raw_resource_build!$E:$E),0)),0)","v":0},{"$f":"IFERROR(INDEX(raw_resource_build!$F:$F,MATCH(1,(R$295=raw_resource_build!$A:$A)*($C335=raw_resource_build!$E:$E),0))-INDEX(raw_resource_build!$I:$I,MATCH(1,(R$295=raw_resource_build!$A:$A)*($C335=raw_resource_build!$E:$E),0)),0)","v":0},{"$f":"IFERROR(INDEX(raw_resource_build!$F:$F,MATCH(1,(S$295=raw_resource_build!$A:$A)*($C335=raw_resource_build!$E:$E),0))-INDEX(raw_resource_build!$I:$I,MATCH(1,(S$295=raw_resource_build!$A:$A)*($C335=raw_resource_build!$E:$E),0)),0)","v":0},{"$f":"IFERROR(INDEX(raw_resource_build!$F:$F,MATCH(1,(T$295=raw_resource_build!$A:$A)*($C335=raw_resource_build!$E:$E),0))-INDEX(raw_resource_build!$I:$I,MATCH(1,(T$295=raw_resource_build!$A:$A)*($C335=raw_resource_build!$E:$E),0)),0)","v":0},{"$f":"IFERROR(INDEX(raw_resource_build!$F:$F,MATCH(1,(U$295=raw_resource_build!$A:$A)*($C335=raw_resource_build!$E:$E),0))-INDEX(raw_resource_build!$I:$I,MATCH(1,(U$295=raw_resource_build!$A:$A)*($C335=raw_resource_build!$E:$E),0)),0)","v":0},{"$f":"IFERROR(INDEX(raw_resource_build!$F:$F,MATCH(1,(V$295=raw_resource_build!$A:$A)*($C335=raw_resource_build!$E:$E),0))-INDEX(raw_resource_build!$I:$I,MATCH(1,(V$295=raw_resource_build!$A:$A)*($C335=raw_resource_build!$E:$E),0)),0)","v":0},{"$f":"IFERROR(INDEX(raw_resource_build!$F:$F,MATCH(1,(W$295=raw_resource_build!$A:$A)*($C335=raw_resource_build!$E:$E),0))-INDEX(raw_resource_build!$I:$I,MATCH(1,(W$295=raw_resource_build!$A:$A)*($C335=raw_resource_build!$E:$E),0)),0)","v":0},{"$f":"IFERROR(INDEX(raw_resource_build!$F:$F,MATCH(1,(X$295=raw_resource_build!$A:$A)*($C335=raw_resource_build!$E:$E),0))-INDEX(raw_resource_build!$I:$I,MATCH(1,(X$295=raw_resource_build!$A:$A)*($C335=raw_resource_build!$E:$E),0)),0)","v":0},{"$f":"IFERROR(INDEX(raw_resource_build!$F:$F,MATCH(1,(Y$295=raw_resource_build!$A:$A)*($C335=raw_resource_build!$E:$E),0))-INDEX(raw_resource_build!$I:$I,MATCH(1,(Y$295=raw_resource_build!$A:$A)*($C335=raw_resource_build!$E:$E),0)),0)","v":0},{"$f":"IFERROR(INDEX(raw_resource_build!$F:$F,MATCH(1,(Z$295=raw_resource_build!$A:$A)*($C335=raw_resource_build!$E:$E),0))-INDEX(raw_resource_build!$I:$I,MATCH(1,(Z$295=raw_resource_build!$A:$A)*($C335=raw_resource_build!$E:$E),0)),0)","v":0},{"$f":"IFERROR(INDEX(raw_resource_build!$F:$F,MATCH(1,(AA$295=raw_resource_build!$A:$A)*($C335=raw_resource_build!$E:$E),0))-INDEX(raw_resource_build!$I:$I,MATCH(1,(AA$295=raw_resource_build!$A:$A)*($C335=raw_resource_build!$E:$E),0)),0)","v":0},{"$f":"IFERROR(INDEX(raw_resource_build!$F:$F,MATCH(1,(AB$295=raw_resource_build!$A:$A)*($C335=raw_resource_build!$E:$E),0))-INDEX(raw_resource_build!$I:$I,MATCH(1,(AB$295=raw_resource_build!$A:$A)*($C335=raw_resource_build!$E:$E),0)),0)","v":0},{"$f":"IFERROR(INDEX(raw_resource_build!$F:$F,MATCH(1,(AC$295=raw_resource_build!$A:$A)*($C335=raw_resource_build!$E:$E),0))-INDEX(raw_resource_build!$I:$I,MATCH(1,(AC$295=raw_resource_build!$A:$A)*($C335=raw_resource_build!$E:$E),0)),0)","v":0},{"$f":"IFERROR(INDEX(raw_resource_build!$F:$F,MATCH(1,(AD$295=raw_resource_build!$A:$A)*($C335=raw_resource_build!$E:$E),0))-INDEX(raw_resource_build!$I:$I,MATCH(1,(AD$295=raw_resource_build!$A:$A)*($C335=raw_resource_build!$E:$E),0)),0)","v":0},{"$f":"IFERROR(INDEX(raw_resource_build!$F:$F,MATCH(1,(AE$295=raw_resource_build!$A:$A)*($C335=raw_resource_build!$E:$E),0))-INDEX(raw_resource_build!$I:$I,MATCH(1,(AE$295=raw_resource_build!$A:$A)*($C335=raw_resource_build!$E:$E),0)),0)","v":0},{"$f":"IFERROR(INDEX(raw_resource_build!$F:$F,MATCH(1,(AF$295=raw_resource_build!$A:$A)*($C335=raw_resource_build!$E:$E),0))-INDEX(raw_resource_build!$I:$I,MATCH(1,(AF$295=raw_resource_build!$A:$A)*($C335=raw_resource_build!$E:$E),0)),0)","v":0},{"$f":"IFERROR(INDEX(raw_resource_build!$F:$F,MATCH(1,(AG$295=raw_resource_build!$A:$A)*($C335=raw_resource_build!$E:$E),0))-INDEX(raw_resource_build!$I:$I,MATCH(1,(AG$295=raw_resource_build!$A:$A)*($C335=raw_resource_build!$E:$E),0)),0)","v":0},{"$f":"IFERROR(INDEX(raw_resource_build!$F:$F,MATCH(1,(AH$295=raw_resource_build!$A:$A)*($C335=raw_resource_build!$E:$E),0))-INDEX(raw_resource_build!$I:$I,MATCH(1,(AH$295=raw_resource_build!$A:$A)*($C335=raw_resource_build!$E:$E),0)),0)","v":0},{"$f":"IFERROR(INDEX(raw_resource_build!$F:$F,MATCH(1,(AI$295=raw_resource_build!$A:$A)*($C335=raw_resource_build!$E:$E),0))-INDEX(raw_resource_build!$I:$I,MATCH(1,(AI$295=raw_resource_build!$A:$A)*($C335=raw_resource_build!$E:$E),0)),0)","v":0},{"$f":"IFERROR(INDEX(raw_resource_build!$F:$F,MATCH(1,(AJ$295=raw_resource_build!$A:$A)*($C335=raw_resource_build!$E:$E),0))-INDEX(raw_resource_build!$I:$I,MATCH(1,(AJ$295=raw_resource_build!$A:$A)*($C335=raw_resource_build!$E:$E),0)),0)","v":0},{"$f":"IFERROR(INDEX(raw_resource_build!$F:$F,MATCH(1,(AK$295=raw_resource_build!$A:$A)*($C335=raw_resource_build!$E:$E),0))-INDEX(raw_resource_build!$I:$I,MATCH(1,(AK$295=raw_resource_build!$A:$A)*($C335=raw_resource_build!$E:$E),0)),0)","v":0},{"$f":"IFERROR(INDEX(raw_resource_build!$F:$F,MATCH(1,(AL$295=raw_resource_build!$A:$A)*($C335=raw_resource_build!$E:$E),0))-INDEX(raw_resource_build!$I:$I,MATCH(1,(AL$295=raw_resource_build!$A:$A)*($C335=raw_resource_build!$E:$E),0)),0)","v":0},{"$f":"IFERROR(INDEX(raw_resource_build!$F:$F,MATCH(1,(AM$295=raw_resource_build!$A:$A)*($C335=raw_resource_build!$E:$E),0))-INDEX(raw_resource_build!$I:$I,MATCH(1,(AM$295=raw_resource_build!$A:$A)*($C335=raw_resource_build!$E:$E),0)),0)","v":0},{"$f":"IFERROR(INDEX(raw_resource_build!$F:$F,MATCH(1,(AN$295=raw_resource_build!$A:$A)*($C335=raw_resource_build!$E:$E),0))-INDEX(raw_resource_build!$I:$I,MATCH(1,(AN$295=raw_resource_build!$A:$A)*($C335=raw_resource_build!$E:$E),0)),0)","v":0}]
[null,null,"Unretained Gas Capacity - Planned","MW",null,{"$f":"SUM(F330:F335)","v":0},{"$f":"SUM(G330:G335)","v":0},0,0,0,0,0,0,0,0,0,0,0,0,0,0,0,0,0,0,0,0,0,0,0,0,0,0,0,3769.76,{"$f":"IFERROR(INDEX(raw_resource_build!$F:$F,MATCH(1,(AJ$295=raw_resource_build!$A:$A)*($C336=raw_resource_build!$E:$E),0))-INDEX(raw_resource_build!$I:$I,MATCH(1,(AJ$295=raw_resource_build!$A:$A)*($C336=raw_resource_build!$E:$E),0)),0)","v":0},{"$f":"IFERROR(INDEX(raw_resource_build!$F:$F,MATCH(1,(AK$295=raw_resource_build!$A:$A)*($C336=raw_resource_build!$E:$E),0))-INDEX(raw_resource_build!$I:$I,MATCH(1,(AK$295=raw_resource_build!$A:$A)*($C336=raw_resource_build!$E:$E),0)),0)","v":0},{"$f":"IFERROR(INDEX(raw_resource_build!$F:$F,MATCH(1,(AL$295=raw_resource_build!$A:$A)*($C336=raw_resource_build!$E:$E),0))-INDEX(raw_resource_build!$I:$I,MATCH(1,(AL$295=raw_resource_build!$A:$A)*($C336=raw_resource_build!$E:$E),0)),0)","v":0},{"$f":"IFERROR(INDEX(raw_resource_build!$F:$F,MATCH(1,(AM$295=raw_resource_build!$A:$A)*($C336=raw_resource_build!$E:$E),0))-INDEX(raw_resource_build!$I:$I,MATCH(1,(AM$295=raw_resource_build!$A:$A)*($C336=raw_resource_build!$E:$E),0)),0)","v":0},{"$f":"IFERROR(INDEX(raw_resource_build!$F:$F,MATCH(1,(AN$295=raw_resource_build!$A:$A)*($C336=raw_resource_build!$E:$E),0))-INDEX(raw_resource_build!$I:$I,MATCH(1,(AN$295=raw_resource_build!$A:$A)*($C336=raw_resource_build!$E:$E),0)),0)","v":0}]
[null,null,"Planned Unretained Capacity - Planned","MW",null,{"$f":"SUM(F329:F335)","v":0},0,0,0,0,0,0,0,0,0,0,0,0,0,0,0,0,0,0,0,0,0,0,0,0,0,0,0,0,3769.76,{"$f":"IFERROR(INDEX(raw_resource_build!$F:$F,MATCH(1,(AJ$295=raw_resource_build!$A:$A)*($C337=raw_resource_build!$E:$E),0))-INDEX(raw_resource_build!$I:$I,MATCH(1,(AJ$295=raw_resource_build!$A:$A)*($C337=raw_resource_build!$E:$E),0)),0)","v":0},{"$f":"IFERROR(INDEX(raw_resource_build!$F:$F,MATCH(1,(AK$295=raw_resource_build!$A:$A)*($C337=raw_resource_build!$E:$E),0))-INDEX(raw_resource_build!$I:$I,MATCH(1,(AK$295=raw_resource_build!$A:$A)*($C337=raw_resource_build!$E:$E),0)),0)","v":0},{"$f":"IFERROR(INDEX(raw_resource_build!$F:$F,MATCH(1,(AL$295=raw_resource_build!$A:$A)*($C337=raw_resource_build!$E:$E),0))-INDEX(raw_resource_build!$I:$I,MATCH(1,(AL$295=raw_resource_build!$A:$A)*($C337=raw_resource_build!$E:$E),0)),0)","v":0},{"$f":"IFERROR(INDEX(raw_resource_build!$F:$F,MATCH(1,(AM$295=raw_resource_build!$A:$A)*($C337=raw_resource_build!$E:$E),0))-INDEX(raw_resource_build!$I:$I,MATCH(1,(AM$295=raw_resource_build!$A:$A)*($C337=raw_resource_build!$E:$E),0)),0)","v":0},{"$f":"IFERROR(INDEX(raw_resource_build!$F:$F,MATCH(1,(AN$295=raw_resource_build!$A:$A)*($C337=raw_resource_build!$E:$E),0))-INDEX(raw_resource_build!$I:$I,MATCH(1,(AN$295=raw_resource_build!$A:$A)*($C337=raw_resource_build!$E:$E),0)),0)","v":0}]
[]
[null,"Thermal Fleet Capacity Factors"]
[]
[null,null,"Technology","Unit",2015,{"$f":"E341+1","v":2016},2017,2018,2019,2020,2021,2022,2023,2024,2025,2026,2027,2028,2029,2030,2031,2032,2033,2034,2035,2036,2037,2038,2039,2040,2041,2042,2043,2044,2045,2046,2047,2048,2049,2050]
[null,null,{"$f":"Lists!B5","v":"CAISO_ST"},"%",{"$f":"IF(INDEX(E$65:E$83,MATCH($C342,$C$65:$C$83,0))>0,INDEX(E$167:E$192,MATCH($C342,$C$167:$C$192,0))/(8.76*INDEX(E$65:E$83,MATCH($C342,$C$65:$C$83,0))),0)","v":0},0,0,0,0,0,0,0,0,0,{"$f":"IF(INDEX(O$65:O$83,MATCH($C342,$C$65:$C$83,0))>0,INDEX(O$167:O$192,MATCH($C342,$C$167:$C$192,0))/(8.76*INDEX(O$65:O$83,MATCH($C342,$C$65:$C$83,0))),0)","v":0},0,0,0,0,0,0,0,0,0,{"$f":"IF(INDEX(Y$65:Y$83,MATCH($C342,$C$65:$C$83,0))>0,INDEX(Y$167:Y$192,MATCH($C342,$C$167:$C$192,0))/(8.76*INDEX(Y$65:Y$83,MATCH($C342,$C$65:$C$83,0))),0)","v":0},0,0,0,0,0,0,0,0,0,{"$f":"IF(INDEX(AI$65:AI$83,MATCH($C342,$C$65:$C$83,0))>0,INDEX(AI$167:AI$192,MATCH($C342,$C$167:$C$192,0))/(8.76*INDEX(AI$65:AI$83,MATCH($C342,$C$65:$C$83,0))),0)","v":0},0,0,0,0,0]
[null,null,{"$f":"Lists!B6","v":"CAISO_CCGT1"},"%",0,0,0,0,0,0.54167708753927279,0.49946108590039184,0.46069232609931593,0.44549868613511961,0.46614517661665011,0,0.53757566328211914,0,0,0,0.41728051706047681,0,0,0,0,0,0,0,0,0,0,0,0,0,0,0.25123953919905467,0,0,0,0,0]
[null,null,{"$f":"Lists!B7","v":"CAISO_CCGT2"},"%",0,0,0,0,0,3.4514161897046302E-3,0,0,0,0,0,0,0,0,0,0,0,0,0,0,0,0,0,0,0,0,0,0,0,0,2.0907241679820256E-2,0,0,0,0,0]
[null,null,{"$f":"Lists!B8","v":"CAISO_Peaker1"},"%",0,0,0,0,0,2.0906653370267796E-2,1.063475344181289E-2,1.2160865492785746E-2,1.4588479115138426E-2,1.1894349552471758E-2,0,1.7683580449644378E-3,0,0,0,1.5284956614335331E-3,0,0,0,0,0,0,0,0,0,0,0,0,0,0,0,0,0,0,0,0]
[null,null,{"$f":"Lists!B9","v":"CAISO_Peaker2"},"%",0,0,0,0,0,0,0,0,0,0,0,0,0,0,0,0,0,0,0,0,0,0,0,0,0,0,0,0,0,0,0,0,0,0,0,0]
[null,null,{"$f":"Lists!B10","v":"CAISO_Advanced_CCGT"},"%",0,0,0,0,0,0,0,0,0,0,0,0,0,0,0,0,0,0,0,0,0,0,0,0,0,0,0,0,0,0,0,0,0,0,0,0]
[null,null,{"$f":"Lists!B11","v":"CAISO_Aero_CT"},"%",0,0,0,0,0,0,0,0,0,0,0,0,0,0,0,0,0,0,0,0,0,0,0,0,0,0,0,0,0,0,0,0,0,0,0,0]
[null,null,{"$f":"Lists!B12","v":"CAISO_Reciprocating_Engine"},"%",0,0,0,0,0,2.764326901700332E-2,1.8852000585720535E-2,1.7634195250544528E-2,1.8287572412494388E-2,1.6096755395783275E-2,0,4.935074177468436E-3,0,0,0,9.5730573511830334E-3,0,0,0,0,0,0,0,0,0,0,0,0,0,0,2.1928670673870439E-2,0,0,0,0,0]
[null,null,{"$f":"Lists!B13","v":"CAISO_CHP"},"%",0,0,0,0,0,0.54099250054164105,0.54099250054164105,0.54099250054164105,0.54099250054164105,0.54099250054164105,0,0.54099250054164105,0,0,0,0.54099250054164105,0,0,0,0,0,0,0,0,0,0,0,0,0,0,0,0,0,0,0,0]
[null,null,{"$f":"Lists!B14","v":"CAISO_Coal"},"%",0,0,0,0,0,0.51518071834752899,0.3187997972613133,0.16987680408643335,0.16545805215488252,0.16545805215488252,0,0,0,0,0,0,0,0,0,0,0,0,0,0,0,0,0,0,0,0,0,0,0,0,0,0]
[]
[]
[null,"Thermal Fleet Number of Starts"]
[]
[null,null,"Technology","Unit",2015,{"$f":"E356+1","v":2016},2017,2018,2019,2020,2021,2022,2023,2024,2025,2026,2027,2028,2029,2030,2031,2032,2033,2034,2035,2036,2037,2038,2039,2040,2041,2042,2043,2044,2045,2046,2047,2048,2049,2050]
[null,null,{"$f":"Lists!B5","v":"CAISO_ST"},"# starts per unit per day",{"$f":"IFERROR(SUMIFS(raw_annual_energy!$I:$I,raw_annual_energy!$D:$D,E$356,Lists!$S:$S,$C357)/SUMIFS(raw_resource_build!$R:$R,raw_resource_build!$A:$A,E$356,raw_resource_build!$E:$E,$C357),0)","v":0},{"$f":"IFERROR(SUMIFS(raw_annual_energy!$I:$I,raw_annual_energy!$D:$D,F$356,Lists!$S:$S,$C357)/SUMIFS(raw_resource_build!$R:$R,raw_resource_build!$A:$A,F$356,raw_resource_build!$E:$E,$C357),0)","v":0},{"$f":"IFERROR(SUMIFS(raw_annual_energy!$I:$I,raw_annual_energy!$D:$D,G$356,Lists!$S:$S,$C357)/SUMIFS(raw_resource_build!$R:$R,raw_resource_build!$A:$A,G$356,raw_resource_build!$E:$E,$C357),0)","v":0},{"$f":"IFERROR(SUMIFS(raw_annual_energy!$I:$I,raw_annual_energy!$D:$D,H$356,Lists!$S:$S,$C357)/SUMIFS(raw_resource_build!$R:$R,raw_resource_build!$A:$A,H$356,raw_resource_build!$E:$E,$C357),0)","v":0},{"$f":"IFERROR(SUMIFS(raw_annual_energy!$I:$I,raw_annual_energy!$D:$D,I$356,Lists!$S:$S,$C357)/SUMIFS(raw_resource_build!$R:$R,raw_resource_build!$A:$A,I$356,raw_resource_build!$E:$E,$C357),0)","v":0},{"$f":"IFERROR(SUMIFS(raw_annual_energy!$I:$I,raw_annual_energy!$D:$D,J$356,Lists!$S:$S,$C357)/SUMIFS(raw_resource_build!$R:$R,raw_resource_build!$A:$A,J$356,raw_resource_build!$E:$E,$C357),0)","v":0},{"$f":"IFERROR(SUMIFS(raw_annual_energy!$I:$I,raw_annual_energy!$D:$D,K$356,Lists!$S:$S,$C357)/SUMIFS(raw_resource_build!$R:$R,raw_resource_build!$A:$A,K$356,raw_resource_build!$E:$E,$C357),0)","v":0},{"$f":"IFERROR(SUMIFS(raw_annual_energy!$I:$I,raw_annual_energy!$D:$D,L$356,Lists!$S:$S,$C357)/SUMIFS(raw_resource_build!$R:$R,raw_resource_build!$A:$A,L$356,raw_resource_build!$E:$E,$C357),0)","v":0},{"$f":"IFERROR(SUMIFS(raw_annual_energy!$I:$I,raw_annual_energy!$D:$D,M$356,Lists!$S:$S,$C357)/SUMIFS(raw_resource_build!$R:$R,raw_resource_build!$A:$A,M$356,raw_resource_build!$E:$E,$C357),0)","v":0},{"$f":"IFERROR(SUMIFS(raw_annual_energy!$I:$I,raw_annual_energy!$D:$D,N$356,Lists!$S:$S,$C357)/SUMIFS(raw_resource_build!$R:$R,raw_resource_build!$A:$A,N$356,raw_resource_build!$E:$E,$C357),0)","v":0},{"$f":"IFERROR(SUMIFS(raw_annual_energy!$I:$I,raw_annual_energy!$D:$D,O$356,Lists!$S:$S,$C357)/SUMIFS(raw_resource_build!$R:$R,raw_resource_build!$A:$A,O$356,raw_resource_build!$E:$E,$C357),0)","v":0},{"$f":"IFERROR(SUMIFS(raw_annual_energy!$I:$I,raw_annual_energy!$D:$D,P$356,Lists!$S:$S,$C357)/SUMIFS(raw_resource_build!$R:$R,raw_resource_build!$A:$A,P$356,raw_resource_build!$E:$E,$C357),0)","v":0},{"$f":"IFERROR(SUMIFS(raw_annual_energy!$I:$I,raw_annual_energy!$D:$D,Q$356,Lists!$S:$S,$C357)/SUMIFS(raw_resource_build!$R:$R,raw_resource_build!$A:$A,Q$356,raw_resource_build!$E:$E,$C357),0)","v":0},{"$f":"IFERROR(SUMIFS(raw_annual_energy!$I:$I,raw_annual_energy!$D:$D,R$356,Lists!$S:$S,$C357)/SUMIFS(raw_resource_build!$R:$R,raw_resource_build!$A:$A,R$356,raw_resource_build!$E:$E,$C357),0)","v":0},{"$f":"IFERROR(SUMIFS(raw_annual_energy!$I:$I,raw_annual_energy!$D:$D,S$356,Lists!$S:$S,$C357)/SUMIFS(raw_resource_build!$R:$R,raw_resource_build!$A:$A,S$356,raw_resource_build!$E:$E,$C357),0)","v":0},{"$f":"IFERROR(SUMIFS(raw_annual_energy!$I:$I,raw_annual_energy!$D:$D,T$356,Lists!$S:$S,$C357)/SUMIFS(raw_resource_build!$R:$R,raw_resource_build!$A:$A,T$356,raw_resource_build!$E:$E,$C357),0)","v":0},{"$f":"IFERROR(SUMIFS(raw_annual_energy!$I:$I,raw_annual_energy!$D:$D,U$356,Lists!$S:$S,$C357)/SUMIFS(raw_resource_build!$R:$R,raw_resource_build!$A:$A,U$356,raw_resource_build!$E:$E,$C357),0)","v":0},{"$f":"IFERROR(SUMIFS(raw_annual_energy!$I:$I,raw_annual_energy!$D:$D,V$356,Lists!$S:$S,$C357)/SUMIFS(raw_resource_build!$R:$R,raw_resource_build!$A:$A,V$356,raw_resource_build!$E:$E,$C357),0)","v":0},{"$f":"IFERROR(SUMIFS(raw_annual_energy!$I:$I,raw_annual_energy!$D:$D,W$356,Lists!$S:$S,$C357)/SUMIFS(raw_resource_build!$R:$R,raw_resource_build!$A:$A,W$356,raw_resource_build!$E:$E,$C357),0)","v":0},{"$f":"IFERROR(SUMIFS(raw_annual_energy!$I:$I,raw_annual_energy!$D:$D,X$356,Lists!$S:$S,$C357)/SUMIFS(raw_resource_build!$R:$R,raw_resource_build!$A:$A,X$356,raw_resource_build!$E:$E,$C357),0)","v":0},{"$f":"IFERROR(SUMIFS(raw_annual_energy!$I:$I,raw_annual_energy!$D:$D,Y$356,Lists!$S:$S,$C357)/SUMIFS(raw_resource_build!$R:$R,raw_resource_build!$A:$A,Y$356,raw_resource_build!$E:$E,$C357),0)","v":0},{"$f":"IFERROR(SUMIFS(raw_annual_energy!$I:$I,raw_annual_energy!$D:$D,Z$356,Lists!$S:$S,$C357)/SUMIFS(raw_resource_build!$R:$R,raw_resource_build!$A:$A,Z$356,raw_resource_build!$E:$E,$C357),0)","v":0},{"$f":"IFERROR(SUMIFS(raw_annual_energy!$I:$I,raw_annual_energy!$D:$D,AA$356,Lists!$S:$S,$C357)/SUMIFS(raw_resource_build!$R:$R,raw_resource_build!$A:$A,AA$356,raw_resource_build!$E:$E,$C357),0)","v":0},{"$f":"IFERROR(SUMIFS(raw_annual_energy!$I:$I,raw_annual_energy!$D:$D,AB$356,Lists!$S:$S,$C357)/SUMIFS(raw_resource_build!$R:$R,raw_resource_build!$A:$A,AB$356,raw_resource_build!$E:$E,$C357),0)","v":0},{"$f":"IFERROR(SUMIFS(raw_annual_energy!$I:$I,raw_annual_energy!$D:$D,AC$356,Lists!$S:$S,$C357)/SUMIFS(raw_resource_build!$R:$R,raw_resource_build!$A:$A,AC$356,raw_resource_build!$E:$E,$C357),0)","v":0},{"$f":"IFERROR(SUMIFS(raw_annual_energy!$I:$I,raw_annual_energy!$D:$D,AD$356,Lists!$S:$S,$C357)/SUMIFS(raw_resource_build!$R:$R,raw_resource_build!$A:$A,AD$356,raw_resource_build!$E:$E,$C357),0)","v":0},{"$f":"IFERROR(SUMIFS(raw_annual_energy!$I:$I,raw_annual_energy!$D:$D,AE$356,Lists!$S:$S,$C357)/SUMIFS(raw_resource_build!$R:$R,raw_resource_build!$A:$A,AE$356,raw_resource_build!$E:$E,$C357),0)","v":0},{"$f":"IFERROR(SUMIFS(raw_annual_energy!$I:$I,raw_annual_energy!$D:$D,AF$356,Lists!$S:$S,$C357)/SUMIFS(raw_resource_build!$R:$R,raw_resource_build!$A:$A,AF$356,raw_resource_build!$E:$E,$C357),0)","v":0},{"$f":"IFERROR(SUMIFS(raw_annual_energy!$I:$I,raw_annual_energy!$D:$D,AG$356,Lists!$S:$S,$C357)/SUMIFS(raw_resource_build!$R:$R,raw_resource_build!$A:$A,AG$356,raw_resource_build!$E:$E,$C357),0)","v":0},{"$f":"IFERROR(SUMIFS(raw_annual_energy!$I:$I,raw_annual_energy!$D:$D,AH$356,Lists!$S:$S,$C357)/SUMIFS(raw_resource_build!$R:$R,raw_resource_build!$A:$A,AH$356,raw_resource_build!$E:$E,$C357),0)","v":0},{"$f":"IFERROR(SUMIFS(raw_annual_energy!$I:$I,raw_annual_energy!$D:$D,AI$356,Lists!$S:$S,$C357)/SUMIFS(raw_resource_build!$R:$R,raw_resource_build!$A:$A,AI$356,raw_resource_build!$E:$E,$C357),0)","v":0},{"$f":"IFERROR(SUMIFS(raw_annual_energy!$I:$I,raw_annual_energy!$D:$D,AJ$356,Lists!$S:$S,$C357)/SUMIFS(raw_resource_build!$R:$R,raw_resource_build!$A:$A,AJ$356,raw_resource_build!$E:$E,$C357),0)","v":0},{"$f":"IFERROR(SUMIFS(raw_annual_energy!$I:$I,raw_annual_energy!$D:$D,AK$356,Lists!$S:$S,$C357)/SUMIFS(raw_resource_build!$R:$R,raw_resource_build!$A:$A,AK$356,raw_resource_build!$E:$E,$C357),0)","v":0},{"$f":"IFERROR(SUMIFS(raw_annual_energy!$I:$I,raw_annual_energy!$D:$D,AL$356,Lists!$S:$S,$C357)/SUMIFS(raw_resource_build!$R:$R,raw_resource_build!$A:$A,AL$356,raw_resource_build!$E:$E,$C357),0)","v":0},{"$f":"IFERROR(SUMIFS(raw_annual_energy!$I:$I,raw_annual_energy!$D:$D,AM$356,Lists!$S:$S,$C357)/SUMIFS(raw_resource_build!$R:$R,raw_resource_build!$A:$A,AM$356,raw_resource_build!$E:$E,$C357),0)","v":0},{"$f":"IFERROR(SUMIFS(raw_annual_energy!$I:$I,raw_annual_energy!$D:$D,AN$356,Lists!$S:$S,$C357)/SUMIFS(raw_resource_build!$R:$R,raw_resource_build!$A:$A,AN$356,raw_resource_build!$E:$E,$C357),0)","v":0}]
[null,null,{"$f":"Lists!B6","v":"CAISO_CCGT1"},"# starts per unit per day",{"$f":"IFERROR(SUMIFS(raw_annual_energy!$I:$I,raw_annual_energy!$D:$D,E$356,Lists!$S:$S,$C358)/SUMIFS(raw_resource_build!$R:$R,raw_resource_build!$A:$A,E$356,raw_resource_build!$E:$E,$C358),0)","v":0},{"$f":"IFERROR(SUMIFS(raw_annual_energy!$I:$I,raw_annual_energy!$D:$D,F$356,Lists!$S:$S,$C358)/SUMIFS(raw_resource_build!$R:$R,raw_resource_build!$A:$A,F$356,raw_resource_build!$E:$E,$C358),0)","v":0},{"$f":"IFERROR(SUMIFS(raw_annual_energy!$I:$I,raw_annual_energy!$D:$D,G$356,Lists!$S:$S,$C358)/SUMIFS(raw_resource_build!$R:$R,raw_resource_build!$A:$A,G$356,raw_resource_build!$E:$E,$C358),0)","v":0},{"$f":"IFERROR(SUMIFS(raw_annual_energy!$I:$I,raw_annual_energy!$D:$D,H$356,Lists!$S:$S,$C358)/SUMIFS(raw_resource_build!$R:$R,raw_resource_build!$A:$A,H$356,raw_resource_build!$E:$E,$C358),0)","v":0},{"$f":"IFERROR(SUMIFS(raw_annual_energy!$I:$I,raw_annual_energy!$D:$D,I$356,Lists!$S:$S,$C358)/SUMIFS(raw_resource_build!$R:$R,raw_resource_build!$A:$A,I$356,raw_resource_build!$E:$E,$C358),0)","v":0},{"$f":"IFERROR(SUMIFS(raw_annual_energy!$I:$I,raw_annual_energy!$D:$D,J$356,Lists!$S:$S,$C358)/SUMIFS(raw_resource_build!$R:$R,raw_resource_build!$A:$A,J$356,raw_resource_build!$E:$E,$C358),0)","v":0},{"$f":"IFERROR(SUMIFS(raw_annual_energy!$I:$I,raw_annual_energy!$D:$D,K$356,Lists!$S:$S,$C358)/SUMIFS(raw_resource_build!$R:$R,raw_resource_build!$A:$A,K$356,raw_resource_build!$E:$E,$C358),0)","v":0},{"$f":"IFERROR(SUMIFS(raw_annual_energy!$I:$I,raw_annual_energy!$D:$D,L$356,Lists!$S:$S,$C358)/SUMIFS(raw_resource_build!$R:$R,raw_resource_build!$A:$A,L$356,raw_resource_build!$E:$E,$C358),0)","v":0},{"$f":"IFERROR(SUMIFS(raw_annual_energy!$I:$I,raw_annual_energy!$D:$D,M$356,Lists!$S:$S,$C358)/SUMIFS(raw_resource_build!$R:$R,raw_resource_build!$A:$A,M$356,raw_resource_build!$E:$E,$C358),0)","v":0.25194223410558186},{"$f":"IFERROR(SUMIFS(raw_annual_energy!$I:$I,raw_annual_energy!$D:$D,N$356,Lists!$S:$S,$C358)/SUMIFS(raw_resource_build!$R:$R,raw_resource_build!$A:$A,N$356,raw_resource_build!$E:$E,$C358),0)","v":0.75195390221210467},{"$f":"IFERROR(SUMIFS(raw_annual_energy!$I:$I,raw_annual_energy!$D:$D,O$356,Lists!$S:$S,$C358)/SUMIFS(raw_resource_build!$R:$R,raw_resource_build!$A:$A,O$356,raw_resource_build!$E:$E,$C358),0)","v":0},{"$f":"IFERROR(SUMIFS(raw_annual_energy!$I:$I,raw_annual_energy!$D:$D,P$356,Lists!$S:$S,$C358)/SUMIFS(raw_resource_build!$R:$R,raw_resource_build!$A:$A,P$356,raw_resource_build!$E:$E,$C358),0)","v":1.2392118201523523},{"$f":"IFERROR(SUMIFS(raw_annual_energy!$I:$I,raw_annual_energy!$D:$D,Q$356,Lists!$S:$S,$C358)/SUMIFS(raw_resource_build!$R:$R,raw_resource_build!$A:$A,Q$356,raw_resource_build!$E:$E,$C358),0)","v":0},{"$f":"IFERROR(SUMIFS(raw_annual_energy!$I:$I,raw_annual_energy!$D:$D,R$356,Lists!$S:$S,$C358)/SUMIFS(raw_resource_build!$R:$R,raw_resource_build!$A:$A,R$356,raw_resource_build!$E:$E,$C358),0)","v":0},{"$f":"IFERROR(SUMIFS(raw_annual_energy!$I:$I,raw_annual_energy!$D:$D,S$356,Lists!$S:$S,$C358)/SUMIFS(raw_resource_build!$R:$R,raw_resource_build!$A:$A,S$356,raw_resource_build!$E:$E,$C358),0)","v":0},{"$f":"IFERROR(SUMIFS(raw_annual_energy!$I:$I,raw_annual_energy!$D:$D,T$356,Lists!$S:$S,$C358)/SUMIFS(raw_resource_build!$R:$R,raw_resource_build!$A:$A,T$356,raw_resource_build!$E:$E,$C358),0)","v":28.591694615569089},{"$f":"IFERROR(SUMIFS(raw_annual_energy!$I:$I,raw_annual_energy!$D:$D,U$356,Lists!$S:$S,$C358)/SUMIFS(raw_resource_build!$R:$R,raw_resource_build!$A:$A,U$356,raw_resource_build!$E:$E,$C358),0)","v":0},{"$f":"IFERROR(SUMIFS(raw_annual_energy!$I:$I,raw_annual_energy!$D:$D,V$356,Lists!$S:$S,$C358)/SUMIFS(raw_resource_build!$R:$R,raw_resource_build!$A:$A,V$356,raw_resource_build!$E:$E,$C358),0)","v":0},{"$f":"IFERROR(SUMIFS(raw_annual_energy!$I:$I,raw_annual_energy!$D:$D,W$356,Lists!$S:$S,$C358)/SUMIFS(raw_resource_build!$R:$R,raw_resource_build!$A:$A,W$356,raw_resource_build!$E:$E,$C358),0)","v":0},{"$f":"IFERROR(SUMIFS(raw_annual_energy!$I:$I,raw_annual_energy!$D:$D,X$356,Lists!$S:$S,$C358)/SUMIFS(raw_resource_build!$R:$R,raw_resource_build!$A:$A,X$356,raw_resource_build!$E:$E,$C358),0)","v":0},{"$f":"IFERROR(SUMIFS(raw_annual_energy!$I:$I,raw_annual_energy!$D:$D,Y$356,Lists!$S:$S,$C358)/SUMIFS(raw_resource_build!$R:$R,raw_resource_build!$A:$A,Y$356,raw_resource_build!$E:$E,$C358),0)","v":0},{"$f":"IFERROR(SUMIFS(raw_annual_energy!$I:$I,raw_annual_energy!$D:$D,Z$356,Lists!$S:$S,$C358)/SUMIFS(raw_resource_build!$R:$R,raw_resource_build!$A:$A,Z$356,raw_resource_build!$E:$E,$C358),0)","v":0},{"$f":"IFERROR(SUMIFS(raw_annual_energy!$I:$I,raw_annual_energy!$D:$D,AA$356,Lists!$S:$S,$C358)/SUMIFS(raw_resource_build!$R:$R,raw_resource_build!$A:$A,AA$356,raw_resource_build!$E:$E,$C358),0)","v":0},{"$f":"IFERROR(SUMIFS(raw_annual_energy!$I:$I,raw_annual_energy!$D:$D,AB$356,Lists!$S:$S,$C358)/SUMIFS(raw_resource_build!$R:$R,raw_resource_build!$A:$A,AB$356,raw_resource_build!$E:$E,$C358),0)","v":0},{"$f":"IFERROR(SUMIFS(raw_annual_energy!$I:$I,raw_annual_energy!$D:$D,AC$356,Lists!$S:$S,$C358)/SUMIFS(raw_resource_build!$R:$R,raw_resource_build!$A:$A,AC$356,raw_resource_build!$E:$E,$C358),0)","v":0},{"$f":"IFERROR(SUMIFS(raw_annual_energy!$I:$I,raw_annual_energy!$D:$D,AD$356,Lists!$S:$S,$C358)/SUMIFS(raw_resource_build!$R:$R,raw_resource_build!$A:$A,AD$356,raw_resource_build!$E:$E,$C358),0)","v":0},{"$f":"IFERROR(SUMIFS(raw_annual_energy!$I:$I,raw_annual_energy!$D:$D,AE$356,Lists!$S:$S,$C358)/SUMIFS(raw_resource_build!$R:$R,raw_resource_build!$A:$A,AE$356,raw_resource_build!$E:$E,$C358),0)","v":0},{"$f":"IFERROR(SUMIFS(raw_annual_energy!$I:$I,raw_annual_energy!$D:$D,AF$356,Lists!$S:$S,$C358)/SUMIFS(raw_resource_build!$R:$R,raw_resource_build!$A:$A,AF$356,raw_resource_build!$E:$E,$C358),0)","v":0},{"$f":"IFERROR(SUMIFS(raw_annual_energy!$I:$I,raw_annual_energy!$D:$D,AG$356,Lists!$S:$S,$C358)/SUMIFS(raw_resource_build!$R:$R,raw_resource_build!$A:$A,AG$356,raw_resource_build!$E:$E,$C358),0)","v":0},{"$f":"IFERROR(SUMIFS(raw_annual_energy!$I:$I,raw_annual_energy!$D:$D,AH$356,Lists!$S:$S,$C358)/SUMIFS(raw_resource_build!$R:$R,raw_resource_build!$A:$A,AH$356,raw_resource_build!$E:$E,$C358),0)","v":0},{"$f":"IFERROR(SUMIFS(raw_annual_energy!$I:$I,raw_annual_energy!$D:$D,AI$356,Lists!$S:$S,$C358)/SUMIFS(raw_resource_build!$R:$R,raw_resource_build!$A:$A,AI$356,raw_resource_build!$E:$E,$C358),0)","v":7.484469520207508},{"$f":"IFERROR(SUMIFS(raw_annual_energy!$I:$I,raw_annual_energy!$D:$D,AJ$356,Lists!$S:$S,$C358)/SUMIFS(raw_resource_build!$R:$R,raw_resource_build!$A:$A,AJ$356,raw_resource_build!$E:$E,$C358),0)","v":0},{"$f":"IFERROR(SUMIFS(raw_annual_energy!$I:$I,raw_annual_energy!$D:$D,AK$356,Lists!$S:$S,$C358)/SUMIFS(raw_resource_build!$R:$R,raw_resource_build!$A:$A,AK$356,raw_resource_build!$E:$E,$C358),0)","v":0},{"$f":"IFERROR(SUMIFS(raw_annual_energy!$I:$I,raw_annual_energy!$D:$D,AL$356,Lists!$S:$S,$C358)/SUMIFS(raw_resource_build!$R:$R,raw_resource_build!$A:$A,AL$356,raw_resource_build!$E:$E,$C358),0)","v":0},{"$f":"IFERROR(SUMIFS(raw_annual_energy!$I:$I,raw_annual_energy!$D:$D,AM$356,Lists!$S:$S,$C358)/SUMIFS(raw_resource_build!$R:$R,raw_resource_build!$A:$A,AM$356,raw_resource_build!$E:$E,$C358),0)","v":0},{"$f":"IFERROR(SUMIFS(raw_annual_energy!$I:$I,raw_annual_energy!$D:$D,AN$356,Lists!$S:$S,$C358)/SUMIFS(raw_resource_build!$R:$R,raw_resource_build!$A:$A,AN$356,raw_resource_build!$E:$E,$C358),0)","v":0}]
[null,null,{"$f":"Lists!B7","v":"CAISO_CCGT2"},"# starts per unit per day",{"$f":"IFERROR(SUMIFS(raw_annual_energy!$I:$I,raw_annual_energy!$D:$D,E$356,Lists!$S:$S,$C359)/SUMIFS(raw_resource_build!$R:$R,raw_resource_build!$A:$A,E$356,raw_resource_build!$E:$E,$C359),0)","v":0},{"$f":"IFERROR(SUMIFS(raw_annual_energy!$I:$I,raw_annual_energy!$D:$D,F$356,Lists!$S:$S,$C359)/SUMIFS(raw_resource_build!$R:$R,raw_resource_build!$A:$A,F$356,raw_resource_build!$E:$E,$C359),0)","v":0},{"$f":"IFERROR(SUMIFS(raw_annual_energy!$I:$I,raw_annual_energy!$D:$D,G$356,Lists!$S:$S,$C359)/SUMIFS(raw_resource_build!$R:$R,raw_resource_build!$A:$A,G$356,raw_resource_build!$E:$E,$C359),0)","v":0},{"$f":"IFERROR(SUMIFS(raw_annual_energy!$I:$I,raw_annual_energy!$D:$D,H$356,Lists!$S:$S,$C359)/SUMIFS(raw_resource_build!$R:$R,raw_resource_build!$A:$A,H$356,raw_resource_build!$E:$E,$C359),0)","v":0},{"$f":"IFERROR(SUMIFS(raw_annual_energy!$I:$I,raw_annual_energy!$D:$D,I$356,Lists!$S:$S,$C359)/SUMIFS(raw_resource_build!$R:$R,raw_resource_build!$A:$A,I$356,raw_resource_build!$E:$E,$C359),0)","v":0},{"$f":"IFERROR(SUMIFS(raw_annual_energy!$I:$I,raw_annual_energy!$D:$D,J$356,Lists!$S:$S,$C359)/SUMIFS(raw_resource_build!$R:$R,raw_resource_build!$A:$A,J$356,raw_resource_build!$E:$E,$C359),0)","v":12.916157116348494},{"$f":"IFERROR(SUMIFS(raw_annual_energy!$I:$I,raw_annual_energy!$D:$D,K$356,Lists!$S:$S,$C359)/SUMIFS(raw_resource_build!$R:$R,raw_resource_build!$A:$A,K$356,raw_resource_build!$E:$E,$C359),0)","v":0},{"$f":"IFERROR(SUMIFS(raw_annual_energy!$I:$I,raw_annual_energy!$D:$D,L$356,Lists!$S:$S,$C359)/SUMIFS(raw_resource_build!$R:$R,raw_resource_build!$A:$A,L$356,raw_resource_build!$E:$E,$C359),0)","v":0},{"$f":"IFERROR(SUMIFS(raw_annual_energy!$I:$I,raw_annual_energy!$D:$D,M$356,Lists!$S:$S,$C359)/SUMIFS(raw_resource_build!$R:$R,raw_resource_build!$A:$A,M$356,raw_resource_build!$E:$E,$C359),0)","v":0},{"$f":"IFERROR(SUMIFS(raw_annual_energy!$I:$I,raw_annual_energy!$D:$D,N$356,Lists!$S:$S,$C359)/SUMIFS(raw_resource_build!$R:$R,raw_resource_build!$A:$A,N$356,raw_resource_build!$E:$E,$C359),0)","v":0},{"$f":"IFERROR(SUMIFS(raw_annual_energy!$I:$I,raw_annual_energy!$D:$D,O$356,Lists!$S:$S,$C359)/SUMIFS(raw_resource_build!$R:$R,raw_resource_build!$A:$A,O$356,raw_resource_build!$E:$E,$C359),0)","v":0},{"$f":"IFERROR(SUMIFS(raw_annual_energy!$I:$I,raw_annual_energy!$D:$D,P$356,Lists!$S:$S,$C359)/SUMIFS(raw_resource_build!$R:$R,raw_resource_build!$A:$A,P$356,raw_resource_build!$E:$E,$C359),0)","v":0},{"$f":"IFERROR(SUMIFS(raw_annual_energy!$I:$I,raw_annual_energy!$D:$D,Q$356,Lists!$S:$S,$C359)/SUMIFS(raw_resource_build!$R:$R,raw_resource_build!$A:$A,Q$356,raw_resource_build!$E:$E,$C359),0)","v":0},{"$f":"IFERROR(SUMIFS(raw_annual_energy!$I:$I,raw_annual_energy!$D:$D,R$356,Lists!$S:$S,$C359)/SUMIFS(raw_resource_build!$R:$R,raw_resource_build!$A:$A,R$356,raw_resource_build!$E:$E,$C359),0)","v":0},{"$f":"IFERROR(SUMIFS(raw_annual_energy!$I:$I,raw_annual_energy!$D:$D,S$356,Lists!$S:$S,$C359)/SUMIFS(raw_resource_build!$R:$R,raw_resource_build!$A:$A,S$356,raw_resource_build!$E:$E,$C359),0)","v":0},{"$f":"IFERROR(SUMIFS(raw_annual_energy!$I:$I,raw_annual_energy!$D:$D,T$356,Lists!$S:$S,$C359)/SUMIFS(raw_resource_build!$R:$R,raw_resource_build!$A:$A,T$356,raw_resource_build!$E:$E,$C359),0)","v":0},{"$f":"IFERROR(SUMIFS(raw_annual_energy!$I:$I,raw_annual_energy!$D:$D,U$356,Lists!$S:$S,$C359)/SUMIFS(raw_resource_build!$R:$R,raw_resource_build!$A:$A,U$356,raw_resource_build!$E:$E,$C359),0)","v":0},{"$f":"IFERROR(SUMIFS(raw_annual_energy!$I:$I,raw_annual_energy!$D:$D,V$356,Lists!$S:$S,$C359)/SUMIFS(raw_resource_build!$R:$R,raw_resource_build!$A:$A,V$356,raw_resource_build!$E:$E,$C359),0)","v":0},{"$f":"IFERROR(SUMIFS(raw_annual_energy!$I:$I,raw_annual_energy!$D:$D,W$356,Lists!$S:$S,$C359)/SUMIFS(raw_resource_build!$R:$R,raw_resource_build!$A:$A,W$356,raw_resource_build!$E:$E,$C359),0)","v":0},{"$f":"IFERROR(SUMIFS(raw_annual_energy!$I:$I,raw_annual_energy!$D:$D,X$356,Lists!$S:$S,$C359)/SUMIFS(raw_resource_build!$R:$R,raw_resource_build!$A:$A,X$356,raw_resource_build!$E:$E,$C359),0)","v":0},{"$f":"IFERROR(SUMIFS(raw_annual_energy!$I:$I,raw_annual_energy!$D:$D,Y$356,Lists!$S:$S,$C359)/SUMIFS(raw_resource_build!$R:$R,raw_resource_build!$A:$A,Y$356,raw_resource_build!$E:$E,$C359),0)","v":0},{"$f":"IFERROR(SUMIFS(raw_annual_energy!$I:$I,raw_annual_energy!$D:$D,Z$356,Lists!$S:$S,$C359)/SUMIFS(raw_resource_build!$R:$R,raw_resource_build!$A:$A,Z$356,raw_resource_build!$E:$E,$C359),0)","v":0},{"$f":"IFERROR(SUMIFS(raw_annual_energy!$I:$I,raw_annual_energy!$D:$D,AA$356,Lists!$S:$S,$C359)/SUMIFS(raw_resource_build!$R:$R,raw_resource_build!$A:$A,AA$356,raw_resource_build!$E:$E,$C359),0)","v":0},{"$f":"IFERROR(SUMIFS(raw_annual_energy!$I:$I,raw_annual_energy!$D:$D,AB$356,Lists!$S:$S,$C359)/SUMIFS(raw_resource_build!$R:$R,raw_resource_build!$A:$A,AB$356,raw_resource_build!$E:$E,$C359),0)","v":0},{"$f":"IFERROR(SUMIFS(raw_annual_energy!$I:$I,raw_annual_energy!$D:$D,AC$356,Lists!$S:$S,$C359)/SUMIFS(raw_resource_build!$R:$R,raw_resource_build!$A:$A,AC$356,raw_resource_build!$E:$E,$C359),0)","v":0},{"$f":"IFERROR(SUMIFS(raw_annual_energy!$I:$I,raw_annual_energy!$D:$D,AD$356,Lists!$S:$S,$C359)/SUMIFS(raw_resource_build!$R:$R,raw_resource_build!$A:$A,AD$356,raw_resource_build!$E:$E,$C359),0)","v":0},{"$f":"IFERROR(SUMIFS(raw_annual_energy!$I:$I,raw_annual_energy!$D:$D,AE$356,Lists!$S:$S,$C359)/SUMIFS(raw_resource_build!$R:$R,raw_resource_build!$A:$A,AE$356,raw_resource_build!$E:$E,$C359),0)","v":0},{"$f":"IFERROR(SUMIFS(raw_annual_energy!$I:$I,raw_annual_energy!$D:$D,AF$356,Lists!$S:$S,$C359)/SUMIFS(raw_resource_build!$R:$R,raw_resource_build!$A:$A,AF$356,raw_resource_build!$E:$E,$C359),0)","v":0},{"$f":"IFERROR(SUMIFS(raw_annual_energy!$I:$I,raw_annual_energy!$D:$D,AG$356,Lists!$S:$S,$C359)/SUMIFS(raw_resource_build!$R:$R,raw_resource_build!$A:$A,AG$356,raw_resource_build!$E:$E,$C359),0)","v":0},{"$f":"IFERROR(SUMIFS(raw_annual_energy!$I:$I,raw_annual_energy!$D:$D,AH$356,Lists!$S:$S,$C359)/SUMIFS(raw_resource_build!$R:$R,raw_resource_build!$A:$A,AH$356,raw_resource_build!$E:$E,$C359),0)","v":0},{"$f":"IFERROR(SUMIFS(raw_annual_energy!$I:$I,raw_annual_energy!$D:$D,AI$356,Lists!$S:$S,$C359)/SUMIFS(raw_resource_build!$R:$R,raw_resource_build!$A:$A,AI$356,raw_resource_build!$E:$E,$C359),0)","v":0},{"$f":"IFERROR(SUMIFS(raw_annual_energy!$I:$I,raw_annual_energy!$D:$D,AJ$356,Lists!$S:$S,$C359)/SUMIFS(raw_resource_build!$R:$R,raw_resource_build!$A:$A,AJ$356,raw_resource_build!$E:$E,$C359),0)","v":0},{"$f":"IFERROR(SUMIFS(raw_annual_energy!$I:$I,raw_annual_energy!$D:$D,AK$356,Lists!$S:$S,$C359)/SUMIFS(raw_resource_build!$R:$R,raw_resource_build!$A:$A,AK$356,raw_resource_build!$E:$E,$C359),0)","v":0},{"$f":"IFERROR(SUMIFS(raw_annual_energy!$I:$I,raw_annual_energy!$D:$D,AL$356,Lists!$S:$S,$C359)/SUMIFS(raw_resource_build!$R:$R,raw_resource_build!$A:$A,AL$356,raw_resource_build!$E:$E,$C359),0)","v":0},{"$f":"IFERROR(SUMIFS(raw_annual_energy!$I:$I,raw_annual_energy!$D:$D,AM$356,Lists!$S:$S,$C359)/SUMIFS(raw_resource_build!$R:$R,raw_resource_build!$A:$A,AM$356,raw_resource_build!$E:$E,$C359),0)","v":0},{"$f":"IFERROR(SUMIFS(raw_annual_energy!$I:$I,raw_annual_energy!$D:$D,AN$356,Lists!$S:$S,$C359)/SUMIFS(raw_resource_build!$R:$R,raw_resource_build!$A:$A,AN$356,raw_resource_build!$E:$E,$C359),0)","v":0}]
[null,null,{"$f":"Lists!B8","v":"CAISO_Peaker1"},"# starts per unit per day",{"$f":"IFERROR(SUMIFS(raw_annual_energy!$I:$I,raw_annual_energy!$D:$D,E$356,Lists!$S:$S,$C360)/SUMIFS(raw_resource_build!$R:$R,raw_resource_build!$A:$A,E$356,raw_resource_build!$E:$E,$C360),0)","v":0},{"$f":"IFERROR(SUMIFS(raw_annual_energy!$I:$I,raw_annual_energy!$D:$D,F$356,Lists!$S:$S,$C360)/SUMIFS(raw_resource_build!$R:$R,raw_resource_build!$A:$A,F$356,raw_resource_build!$E:$E,$C360),0)","v":0},{"$f":"IFERROR(SUMIFS(raw_annual_energy!$I:$I,raw_annual_energy!$D:$D,G$356,Lists!$S:$S,$C360)/SUMIFS(raw_resource_build!$R:$R,raw_resource_build!$A:$A,G$356,raw_resource_build!$E:$E,$C360),0)","v":0},{"$f":"IFERROR(SUMIFS(raw_annual_energy!$I:$I,raw_annual_energy!$D:$D,H$356,Lists!$S:$S,$C360)/SUMIFS(raw_resource_build!$R:$R,raw_resource_build!$A:$A,H$356,raw_resource_build!$E:$E,$C360),0)","v":0},{"$f":"IFERROR(SUMIFS(raw_annual_energy!$I:$I,raw_annual_energy!$D:$D,I$356,Lists!$S:$S,$C360)/SUMIFS(raw_resource_build!$R:$R,raw_resource_build!$A:$A,I$356,raw_resource_build!$E:$E,$C360),0)","v":0},{"$f":"IFERROR(SUMIFS(raw_annual_energy!$I:$I,raw_annual_energy!$D:$D,J$356,Lists!$S:$S,$C360)/SUMIFS(raw_resource_build!$R:$R,raw_resource_build!$A:$A,J$356,raw_resource_build!$E:$E,$C360),0)","v":142.02832052406603},{"$f":"IFERROR(SUMIFS(raw_annual_energy!$I:$I,raw_annual_energy!$D:$D,K$356,Lists!$S:$S,$C360)/SUMIFS(raw_resource_build!$R:$R,raw_resource_build!$A:$A,K$356,raw_resource_build!$E:$E,$C360),0)","v":81.433069596051979},{"$f":"IFERROR(SUMIFS(raw_annual_energy!$I:$I,raw_annual_energy!$D:$D,L$356,Lists!$S:$S,$C360)/SUMIFS(raw_resource_build!$R:$R,raw_resource_build!$A:$A,L$356,raw_resource_build!$E:$E,$C360),0)","v":95.155449855977992},{"$f":"IFERROR(SUMIFS(raw_annual_energy!$I:$I,raw_annual_energy!$D:$D,M$356,Lists!$S:$S,$C360)/SUMIFS(raw_resource_build!$R:$R,raw_resource_build!$A:$A,M$356,raw_resource_build!$E:$E,$C360),0)","v":112.94639318646561},{"$f":"IFERROR(SUMIFS(raw_annual_energy!$I:$I,raw_annual_energy!$D:$D,N$356,Lists!$S:$S,$C360)/SUMIFS(raw_resource_build!$R:$R,raw_resource_build!$A:$A,N$356,raw_resource_build!$E:$E,$C360),0)","v":92.133479354897659},{"$f":"IFERROR(SUMIFS(raw_annual_energy!$I:$I,raw_annual_energy!$D:$D,O$356,Lists!$S:$S,$C360)/SUMIFS(raw_resource_build!$R:$R,raw_resource_build!$A:$A,O$356,raw_resource_build!$E:$E,$C360),0)","v":0},{"$f":"IFERROR(SUMIFS(raw_annual_energy!$I:$I,raw_annual_energy!$D:$D,P$356,Lists!$S:$S,$C360)/SUMIFS(raw_resource_build!$R:$R,raw_resource_build!$A:$A,P$356,raw_resource_build!$E:$E,$C360),0)","v":13.523154680639903},{"$f":"IFERROR(SUMIFS(raw_annual_energy!$I:$I,raw_annual_energy!$D:$D,Q$356,Lists!$S:$S,$C360)/SUMIFS(raw_resource_build!$R:$R,raw_resource_build!$A:$A,Q$356,raw_resource_build!$E:$E,$C360),0)","v":0},{"$f":"IFERROR(SUMIFS(raw_annual_energy!$I:$I,raw_annual_energy!$D:$D,R$356,Lists!$S:$S,$C360)/SUMIFS(raw_resource_build!$R:$R,raw_resource_build!$A:$A,R$356,raw_resource_build!$E:$E,$C360),0)","v":0},{"$f":"IFERROR(SUMIFS(raw_annual_energy!$I:$I,raw_annual_energy!$D:$D,S$356,Lists!$S:$S,$C360)/SUMIFS(raw_resource_build!$R:$R,raw_resource_build!$A:$A,S$356,raw_resource_build!$E:$E,$C360),0)","v":0},{"$f":"IFERROR(SUMIFS(raw_annual_energy!$I:$I,raw_annual_energy!$D:$D,T$356,Lists!$S:$S,$C360)/SUMIFS(raw_resource_build!$R:$R,raw_resource_build!$A:$A,T$356,raw_resource_build!$E:$E,$C360),0)","v":12.481539283339051},{"$f":"IFERROR(SUMIFS(raw_annual_energy!$I:$I,raw_annual_energy!$D:$D,U$356,Lists!$S:$S,$C360)/SUMIFS(raw_resource_build!$R:$R,raw_resource_build!$A:$A,U$356,raw_resource_build!$E:$E,$C360),0)","v":0},{"$f":"IFERROR(SUMIFS(raw_annual_energy!$I:$I,raw_annual_energy!$D:$D,V$356,Lists!$S:$S,$C360)/SUMIFS(raw_resource_build!$R:$R,raw_resource_build!$A:$A,V$356,raw_resource_build!$E:$E,$C360),0)","v":0},{"$f":"IFERROR(SUMIFS(raw_annual_energy!$I:$I,raw_annual_energy!$D:$D,W$356,Lists!$S:$S,$C360)/SUMIFS(raw_resource_build!$R:$R,raw_resource_build!$A:$A,W$356,raw_resource_build!$E:$E,$C360),0)","v":0},{"$f":"IFERROR(SUMIFS(raw_annual_energy!$I:$I,raw_annual_energy!$D:$D,X$356,Lists!$S:$S,$C360)/SUMIFS(raw_resource_build!$R:$R,raw_resource_build!$A:$A,X$356,raw_resource_build!$E:$E,$C360),0)","v":0},{"$f":"IFERROR(SUMIFS(raw_annual_energy!$I:$I,raw_annual_energy!$D:$D,Y$356,Lists!$S:$S,$C360)/SUMIFS(raw_resource_build!$R:$R,raw_resource_build!$A:$A,Y$356,raw_resource_build!$E:$E,$C360),0)","v":0},{"$f":"IFERROR(SUMIFS(raw_annual_energy!$I:$I,raw_annual_energy!$D:$D,Z$356,Lists!$S:$S,$C360)/SUMIFS(raw_resource_build!$R:$R,raw_resource_build!$A:$A,Z$356,raw_resource_build!$E:$E,$C360),0)","v":0},{"$f":"IFERROR(SUMIFS(raw_annual_energy!$I:$I,raw_annual_energy!$D:$D,AA$356,Lists!$S:$S,$C360)/SUMIFS(raw_resource_build!$R:$R,raw_resource_build!$A:$A,AA$356,raw_resource_build!$E:$E,$C360),0)","v":0},{"$f":"IFERROR(SUMIFS(raw_annual_energy!$I:$I,raw_annual_energy!$D:$D,AB$356,Lists!$S:$S,$C360)/SUMIFS(raw_resource_build!$R:$R,raw_resource_build!$A:$A,AB$356,raw_resource_build!$E:$E,$C360),0)","v":0},{"$f":"IFERROR(SUMIFS(raw_annual_energy!$I:$I,raw_annual_energy!$D:$D,AC$356,Lists!$S:$S,$C360)/SUMIFS(raw_resource_build!$R:$R,raw_resource_build!$A:$A,AC$356,raw_resource_build!$E:$E,$C360),0)","v":0},{"$f":"IFERROR(SUMIFS(raw_annual_energy!$I:$I,raw_annual_energy!$D:$D,AD$356,Lists!$S:$S,$C360)/SUMIFS(raw_resource_build!$R:$R,raw_resource_build!$A:$A,AD$356,raw_resource_build!$E:$E,$C360),0)","v":0},{"$f":"IFERROR(SUMIFS(raw_annual_energy!$I:$I,raw_annual_energy!$D:$D,AE$356,Lists!$S:$S,$C360)/SUMIFS(raw_resource_build!$R:$R,raw_resource_build!$A:$A,AE$356,raw_resource_build!$E:$E,$C360),0)","v":0},{"$f":"IFERROR(SUMIFS(raw_annual_energy!$I:$I,raw_annual_energy!$D:$D,AF$356,Lists!$S:$S,$C360)/SUMIFS(raw_resource_build!$R:$R,raw_resource_build!$A:$A,AF$356,raw_resource_build!$E:$E,$C360),0)","v":0},{"$f":"IFERROR(SUMIFS(raw_annual_energy!$I:$I,raw_annual_energy!$D:$D,AG$356,Lists!$S:$S,$C360)/SUMIFS(raw_resource_build!$R:$R,raw_resource_build!$A:$A,AG$356,raw_resource_build!$E:$E,$C360),0)","v":0},{"$f":"IFERROR(SUMIFS(raw_annual_energy!$I:$I,raw_annual_energy!$D:$D,AH$356,Lists!$S:$S,$C360)/SUMIFS(raw_resource_build!$R:$R,raw_resource_build!$A:$A,AH$356,raw_resource_build!$E:$E,$C360),0)","v":0},{"$f":"IFERROR(SUMIFS(raw_annual_energy!$I:$I,raw_annual_energy!$D:$D,AI$356,Lists!$S:$S,$C360)/SUMIFS(raw_resource_build!$R:$R,raw_resource_build!$A:$A,AI$356,raw_resource_build!$E:$E,$C360),0)","v":0},{"$f":"IFERROR(SUMIFS(raw_annual_energy!$I:$I,raw_annual_energy!$D:$D,AJ$356,Lists!$S:$S,$C360)/SUMIFS(raw_resource_build!$R:$R,raw_resource_build!$A:$A,AJ$356,raw_resource_build!$E:$E,$C360),0)","v":0},{"$f":"IFERROR(SUMIFS(raw_annual_energy!$I:$I,raw_annual_energy!$D:$D,AK$356,Lists!$S:$S,$C360)/SUMIFS(raw_resource_build!$R:$R,raw_resource_build!$A:$A,AK$356,raw_resource_build!$E:$E,$C360),0)","v":0},{"$f":"IFERROR(SUMIFS(raw_annual_energy!$I:$I,raw_annual_energy!$D:$D,AL$356,Lists!$S:$S,$C360)/SUMIFS(raw_resource_build!$R:$R,raw_resource_build!$A:$A,AL$356,raw_resource_build!$E:$E,$C360),0)","v":0},{"$f":"IFERROR(SUMIFS(raw_annual_energy!$I:$I,raw_annual_energy!$D:$D,AM$356,Lists!$S:$S,$C360)/SUMIFS(raw_resource_build!$R:$R,raw_resource_build!$A:$A,AM$356,raw_resource_build!$E:$E,$C360),0)","v":0},{"$f":"IFERROR(SUMIFS(raw_annual_energy!$I:$I,raw_annual_energy!$D:$D,AN$356,Lists!$S:$S,$C360)/SUMIFS(raw_resource_build!$R:$R,raw_resource_build!$A:$A,AN$356,raw_resource_build!$E:$E,$C360),0)","v":0}]
[null,null,{"$f":"Lists!B9","v":"CAISO_Peaker2"},"# starts per unit per day",{"$f":"IFERROR(SUMIFS(raw_annual_energy!$I:$I,raw_annual_energy!$D:$D,E$356,Lists!$S:$S,$C361)/SUMIFS(raw_resource_build!$R:$R,raw_resource_build!$A:$A,E$356,raw_resource_build!$E:$E,$C361),0)","v":0},{"$f":"IFERROR(SUMIFS(raw_annual_energy!$I:$I,raw_annual_energy!$D:$D,F$356,Lists!$S:$S,$C361)/SUMIFS(raw_resource_build!$R:$R,raw_resource_build!$A:$A,F$356,raw_resource_build!$E:$E,$C361),0)","v":0},{"$f":"IFERROR(SUMIFS(raw_annual_energy!$I:$I,raw_annual_energy!$D:$D,G$356,Lists!$S:$S,$C361)/SUMIFS(raw_resource_build!$R:$R,raw_resource_build!$A:$A,G$356,raw_resource_build!$E:$E,$C361),0)","v":0},{"$f":"IFERROR(SUMIFS(raw_annual_energy!$I:$I,raw_annual_energy!$D:$D,H$356,Lists!$S:$S,$C361)/SUMIFS(raw_resource_build!$R:$R,raw_resource_build!$A:$A,H$356,raw_resource_build!$E:$E,$C361),0)","v":0},{"$f":"IFERROR(SUMIFS(raw_annual_energy!$I:$I,raw_annual_energy!$D:$D,I$356,Lists!$S:$S,$C361)/SUMIFS(raw_resource_build!$R:$R,raw_resource_build!$A:$A,I$356,raw_resource_build!$E:$E,$C361),0)","v":0},{"$f":"IFERROR(SUMIFS(raw_annual_energy!$I:$I,raw_annual_energy!$D:$D,J$356,Lists!$S:$S,$C361)/SUMIFS(raw_resource_build!$R:$R,raw_resource_build!$A:$A,J$356,raw_resource_build!$E:$E,$C361),0)","v":0},{"$f":"IFERROR(SUMIFS(raw_annual_energy!$I:$I,raw_annual_energy!$D:$D,K$356,Lists!$S:$S,$C361)/SUMIFS(raw_resource_build!$R:$R,raw_resource_build!$A:$A,K$356,raw_resource_build!$E:$E,$C361),0)","v":0},{"$f":"IFERROR(SUMIFS(raw_annual_energy!$I:$I,raw_annual_energy!$D:$D,L$356,Lists!$S:$S,$C361)/SUMIFS(raw_resource_build!$R:$R,raw_resource_build!$A:$A,L$356,raw_resource_build!$E:$E,$C361),0)","v":0},{"$f":"IFERROR(SUMIFS(raw_annual_energy!$I:$I,raw_annual_energy!$D:$D,M$356,Lists!$S:$S,$C361)/SUMIFS(raw_resource_build!$R:$R,raw_resource_build!$A:$A,M$356,raw_resource_build!$E:$E,$C361),0)","v":0},{"$f":"IFERROR(SUMIFS(raw_annual_energy!$I:$I,raw_annual_energy!$D:$D,N$356,Lists!$S:$S,$C361)/SUMIFS(raw_resource_build!$R:$R,raw_resource_build!$A:$A,N$356,raw_resource_build!$E:$E,$C361),0)","v":0},{"$f":"IFERROR(SUMIFS(raw_annual_energy!$I:$I,raw_annual_energy!$D:$D,O$356,Lists!$S:$S,$C361)/SUMIFS(raw_resource_build!$R:$R,raw_resource_build!$A:$A,O$356,raw_resource_build!$E:$E,$C361),0)","v":0},{"$f":"IFERROR(SUMIFS(raw_annual_energy!$I:$I,raw_annual_energy!$D:$D,P$356,Lists!$S:$S,$C361)/SUMIFS(raw_resource_build!$R:$R,raw_resource_build!$A:$A,P$356,raw_resource_build!$E:$E,$C361),0)","v":0},{"$f":"IFERROR(SUMIFS(raw_annual_energy!$I:$I,raw_annual_energy!$D:$D,Q$356,Lists!$S:$S,$C361)/SUMIFS(raw_resource_build!$R:$R,raw_resource_build!$A:$A,Q$356,raw_resource_build!$E:$E,$C361),0)","v":0},{"$f":"IFERROR(SUMIFS(raw_annual_energy!$I:$I,raw_annual_energy!$D:$D,R$356,Lists!$S:$S,$C361)/SUMIFS(raw_resource_build!$R:$R,raw_resource_build!$A:$A,R$356,raw_resource_build!$E:$E,$C361),0)","v":0},{"$f":"IFERROR(SUMIFS(raw_annual_energy!$I:$I,raw_annual_energy!$D:$D,S$356,Lists!$S:$S,$C361)/SUMIFS(raw_resource_build!$R:$R,raw_resource_build!$A:$A,S$356,raw_resource_build!$E:$E,$C361),0)","v":0},{"$f":"IFERROR(SUMIFS(raw_annual_energy!$I:$I,raw_annual_energy!$D:$D,T$356,Lists!$S:$S,$C361)/SUMIFS(raw_resource_build!$R:$R,raw_resource_build!$A:$A,T$356,raw_resource_build!$E:$E,$C361),0)","v":0},{"$f":"IFERROR(SUMIFS(raw_annual_energy!$I:$I,raw_annual_energy!$D:$D,U$356,Lists!$S:$S,$C361)/SUMIFS(raw_resource_build!$R:$R,raw_resource_build!$A:$A,U$356,raw_resource_build!$E:$E,$C361),0)","v":0},{"$f":"IFERROR(SUMIFS(raw_annual_energy!$I:$I,raw_annual_energy!$D:$D,V$356,Lists!$S:$S,$C361)/SUMIFS(raw_resource_build!$R:$R,raw_resource_build!$A:$A,V$356,raw_resource_build!$E:$E,$C361),0)","v":0},{"$f":"IFERROR(SUMIFS(raw_annual_energy!$I:$I,raw_annual_energy!$D:$D,W$356,Lists!$S:$S,$C361)/SUMIFS(raw_resource_build!$R:$R,raw_resource_build!$A:$A,W$356,raw_resource_build!$E:$E,$C361),0)","v":0},{"$f":"IFERROR(SUMIFS(raw_annual_energy!$I:$I,raw_annual_energy!$D:$D,X$356,Lists!$S:$S,$C361)/SUMIFS(raw_resource_build!$R:$R,raw_resource_build!$A:$A,X$356,raw_resource_build!$E:$E,$C361),0)","v":0},{"$f":"IFERROR(SUMIFS(raw_annual_energy!$I:$I,raw_annual_energy!$D:$D,Y$356,Lists!$S:$S,$C361)/SUMIFS(raw_resource_build!$R:$R,raw_resource_build!$A:$A,Y$356,raw_resource_build!$E:$E,$C361),0)","v":0},{"$f":"IFERROR(SUMIFS(raw_annual_energy!$I:$I,raw_annual_energy!$D:$D,Z$356,Lists!$S:$S,$C361)/SUMIFS(raw_resource_build!$R:$R,raw_resource_build!$A:$A,Z$356,raw_resource_build!$E:$E,$C361),0)","v":0},{"$f":"IFERROR(SUMIFS(raw_annual_energy!$I:$I,raw_annual_energy!$D:$D,AA$356,Lists!$S:$S,$C361)/SUMIFS(raw_resource_build!$R:$R,raw_resource_build!$A:$A,AA$356,raw_resource_build!$E:$E,$C361),0)","v":0},{"$f":"IFERROR(SUMIFS(raw_annual_energy!$I:$I,raw_annual_energy!$D:$D,AB$356,Lists!$S:$S,$C361)/SUMIFS(raw_resource_build!$R:$R,raw_resource_build!$A:$A,AB$356,raw_resource_build!$E:$E,$C361),0)","v":0},{"$f":"IFERROR(SUMIFS(raw_annual_energy!$I:$I,raw_annual_energy!$D:$D,AC$356,Lists!$S:$S,$C361)/SUMIFS(raw_resource_build!$R:$R,raw_resource_build!$A:$A,AC$356,raw_resource_build!$E:$E,$C361),0)","v":0},{"$f":"IFERROR(SUMIFS(raw_annual_energy!$I:$I,raw_annual_energy!$D:$D,AD$356,Lists!$S:$S,$C361)/SUMIFS(raw_resource_build!$R:$R,raw_resource_build!$A:$A,AD$356,raw_resource_build!$E:$E,$C361),0)","v":0},{"$f":"IFERROR(SUMIFS(raw_annual_energy!$I:$I,raw_annual_energy!$D:$D,AE$356,Lists!$S:$S,$C361)/SUMIFS(raw_resource_build!$R:$R,raw_resource_build!$A:$A,AE$356,raw_resource_build!$E:$E,$C361),0)","v":0},{"$f":"IFERROR(SUMIFS(raw_annual_energy!$I:$I,raw_annual_energy!$D:$D,AF$356,Lists!$S:$S,$C361)/SUMIFS(raw_resource_build!$R:$R,raw_resource_build!$A:$A,AF$356,raw_resource_build!$E:$E,$C361),0)","v":0},{"$f":"IFERROR(SUMIFS(raw_annual_energy!$I:$I,raw_annual_energy!$D:$D,AG$356,Lists!$S:$S,$C361)/SUMIFS(raw_resource_build!$R:$R,raw_resource_build!$A:$A,AG$356,raw_resource_build!$E:$E,$C361),0)","v":0},{"$f":"IFERROR(SUMIFS(raw_annual_energy!$I:$I,raw_annual_energy!$D:$D,AH$356,Lists!$S:$S,$C361)/SUMIFS(raw_resource_build!$R:$R,raw_resource_build!$A:$A,AH$356,raw_resource_build!$E:$E,$C361),0)","v":0},{"$f":"IFERROR(SUMIFS(raw_annual_energy!$I:$I,raw_annual_energy!$D:$D,AI$356,Lists!$S:$S,$C361)/SUMIFS(raw_resource_build!$R:$R,raw_resource_build!$A:$A,AI$356,raw_resource_build!$E:$E,$C361),0)","v":0},{"$f":"IFERROR(SUMIFS(raw_annual_energy!$I:$I,raw_annual_energy!$D:$D,AJ$356,Lists!$S:$S,$C361)/SUMIFS(raw_resource_build!$R:$R,raw_resource_build!$A:$A,AJ$356,raw_resource_build!$E:$E,$C361),0)","v":0},{"$f":"IFERROR(SUMIFS(raw_annual_energy!$I:$I,raw_annual_energy!$D:$D,AK$356,Lists!$S:$S,$C361)/SUMIFS(raw_resource_build!$R:$R,raw_resource_build!$A:$A,AK$356,raw_resource_build!$E:$E,$C361),0)","v":0},{"$f":"IFERROR(SUMIFS(raw_annual_energy!$I:$I,raw_annual_energy!$D:$D,AL$356,Lists!$S:$S,$C361)/SUMIFS(raw_resource_build!$R:$R,raw_resource_build!$A:$A,AL$356,raw_resource_build!$E:$E,$C361),0)","v":0},{"$f":"IFERROR(SUMIFS(raw_annual_energy!$I:$I,raw_annual_energy!$D:$D,AM$356,Lists!$S:$S,$C361)/SUMIFS(raw_resource_build!$R:$R,raw_resource_build!$A:$A,AM$356,raw_resource_build!$E:$E,$C361),0)","v":0},{"$f":"IFERROR(SUMIFS(raw_annual_energy!$I:$I,raw_annual_energy!$D:$D,AN$356,Lists!$S:$S,$C361)/SUMIFS(raw_resource_build!$R:$R,raw_resource_build!$A:$A,AN$356,raw_resource_build!$E:$E,$C361),0)","v":0}]
[null,null,{"$f":"Lists!B10","v":"CAISO_Advanced_CCGT"},"# starts per unit per day",{"$f":"IFERROR(SUMIFS(raw_annual_energy!$I:$I,raw_annual_energy!$D:$D,E$356,Lists!$S:$S,$C362)/SUMIFS(raw_resource_build!$R:$R,raw_resource_build!$A:$A,E$356,raw_resource_build!$E:$E,$C362),0)","v":0},{"$f":"IFERROR(SUMIFS(raw_annual_energy!$I:$I,raw_annual_energy!$D:$D,F$356,Lists!$S:$S,$C362)/SUMIFS(raw_resource_build!$R:$R,raw_resource_build!$A:$A,F$356,raw_resource_build!$E:$E,$C362),0)","v":0},{"$f":"IFERROR(SUMIFS(raw_annual_energy!$I:$I,raw_annual_energy!$D:$D,G$356,Lists!$S:$S,$C362)/SUMIFS(raw_resource_build!$R:$R,raw_resource_build!$A:$A,G$356,raw_resource_build!$E:$E,$C362),0)","v":0},{"$f":"IFERROR(SUMIFS(raw_annual_energy!$I:$I,raw_annual_energy!$D:$D,H$356,Lists!$S:$S,$C362)/SUMIFS(raw_resource_build!$R:$R,raw_resource_build!$A:$A,H$356,raw_resource_build!$E:$E,$C362),0)","v":0},{"$f":"IFERROR(SUMIFS(raw_annual_energy!$I:$I,raw_annual_energy!$D:$D,I$356,Lists!$S:$S,$C362)/SUMIFS(raw_resource_build!$R:$R,raw_resource_build!$A:$A,I$356,raw_resource_build!$E:$E,$C362),0)","v":0},{"$f":"IFERROR(SUMIFS(raw_annual_energy!$I:$I,raw_annual_energy!$D:$D,J$356,Lists!$S:$S,$C362)/SUMIFS(raw_resource_build!$R:$R,raw_resource_build!$A:$A,J$356,raw_resource_build!$E:$E,$C362),0)","v":0},{"$f":"IFERROR(SUMIFS(raw_annual_energy!$I:$I,raw_annual_energy!$D:$D,K$356,Lists!$S:$S,$C362)/SUMIFS(raw_resource_build!$R:$R,raw_resource_build!$A:$A,K$356,raw_resource_build!$E:$E,$C362),0)","v":0},{"$f":"IFERROR(SUMIFS(raw_annual_energy!$I:$I,raw_annual_energy!$D:$D,L$356,Lists!$S:$S,$C362)/SUMIFS(raw_resource_build!$R:$R,raw_resource_build!$A:$A,L$356,raw_resource_build!$E:$E,$C362),0)","v":0},{"$f":"IFERROR(SUMIFS(raw_annual_energy!$I:$I,raw_annual_energy!$D:$D,M$356,Lists!$S:$S,$C362)/SUMIFS(raw_resource_build!$R:$R,raw_resource_build!$A:$A,M$356,raw_resource_build!$E:$E,$C362),0)","v":0},{"$f":"IFERROR(SUMIFS(raw_annual_energy!$I:$I,raw_annual_energy!$D:$D,N$356,Lists!$S:$S,$C362)/SUMIFS(raw_resource_build!$R:$R,raw_resource_build!$A:$A,N$356,raw_resource_build!$E:$E,$C362),0)","v":0},{"$f":"IFERROR(SUMIFS(raw_annual_energy!$I:$I,raw_annual_energy!$D:$D,O$356,Lists!$S:$S,$C362)/SUMIFS(raw_resource_build!$R:$R,raw_resource_build!$A:$A,O$356,raw_resource_build!$E:$E,$C362),0)","v":0},{"$f":"IFERROR(SUMIFS(raw_annual_energy!$I:$I,raw_annual_energy!$D:$D,P$356,Lists!$S:$S,$C362)/SUMIFS(raw_resource_build!$R:$R,raw_resource_build!$A:$A,P$356,raw_resource_build!$E:$E,$C362),0)","v":0},{"$f":"IFERROR(SUMIFS(raw_annual_energy!$I:$I,raw_annual_energy!$D:$D,Q$356,Lists!$S:$S,$C362)/SUMIFS(raw_resource_build!$R:$R,raw_resource_build!$A:$A,Q$356,raw_resource_build!$E:$E,$C362),0)","v":0},{"$f":"IFERROR(SUMIFS(raw_annual_energy!$I:$I,raw_annual_energy!$D:$D,R$356,Lists!$S:$S,$C362)/SUMIFS(raw_resource_build!$R:$R,raw_resource_build!$A:$A,R$356,raw_resource_build!$E:$E,$C362),0)","v":0},{"$f":"IFERROR(SUMIFS(raw_annual_energy!$I:$I,raw_annual_energy!$D:$D,S$356,Lists!$S:$S,$C362)/SUMIFS(raw_resource_build!$R:$R,raw_resource_build!$A:$A,S$356,raw_resource_build!$E:$E,$C362),0)","v":0},{"$f":"IFERROR(SUMIFS(raw_annual_energy!$I:$I,raw_annual_energy!$D:$D,T$356,Lists!$S:$S,$C362)/SUMIFS(raw_resource_build!$R:$R,raw_resource_build!$A:$A,T$356,raw_resource_build!$E:$E,$C362),0)","v":0},{"$f":"IFERROR(SUMIFS(raw_annual_energy!$I:$I,raw_annual_energy!$D:$D,U$356,Lists!$S:$S,$C362)/SUMIFS(raw_resource_build!$R:$R,raw_resource_build!$A:$A,U$356,raw_resource_build!$E:$E,$C362),0)","v":0},{"$f":"IFERROR(SUMIFS(raw_annual_energy!$I:$I,raw_annual_energy!$D:$D,V$356,Lists!$S:$S,$C362)/SUMIFS(raw_resource_build!$R:$R,raw_resource_build!$A:$A,V$356,raw_resource_build!$E:$E,$C362),0)","v":0},{"$f":"IFERROR(SUMIFS(raw_annual_energy!$I:$I,raw_annual_energy!$D:$D,W$356,Lists!$S:$S,$C362)/SUMIFS(raw_resource_build!$R:$R,raw_resource_build!$A:$A,W$356,raw_resource_build!$E:$E,$C362),0)","v":0},{"$f":"IFERROR(SUMIFS(raw_annual_energy!$I:$I,raw_annual_energy!$D:$D,X$356,Lists!$S:$S,$C362)/SUMIFS(raw_resource_build!$R:$R,raw_resource_build!$A:$A,X$356,raw_resource_build!$E:$E,$C362),0)","v":0},{"$f":"IFERROR(SUMIFS(raw_annual_energy!$I:$I,raw_annual_energy!$D:$D,Y$356,Lists!$S:$S,$C362)/SUMIFS(raw_resource_build!$R:$R,raw_resource_build!$A:$A,Y$356,raw_resource_build!$E:$E,$C362),0)","v":0},{"$f":"IFERROR(SUMIFS(raw_annual_energy!$I:$I,raw_annual_energy!$D:$D,Z$356,Lists!$S:$S,$C362)/SUMIFS(raw_resource_build!$R:$R,raw_resource_build!$A:$A,Z$356,raw_resource_build!$E:$E,$C362),0)","v":0},{"$f":"IFERROR(SUMIFS(raw_annual_energy!$I:$I,raw_annual_energy!$D:$D,AA$356,Lists!$S:$S,$C362)/SUMIFS(raw_resource_build!$R:$R,raw_resource_build!$A:$A,AA$356,raw_resource_build!$E:$E,$C362),0)","v":0},{"$f":"IFERROR(SUMIFS(raw_annual_energy!$I:$I,raw_annual_energy!$D:$D,AB$356,Lists!$S:$S,$C362)/SUMIFS(raw_resource_build!$R:$R,raw_resource_build!$A:$A,AB$356,raw_resource_build!$E:$E,$C362),0)","v":0},{"$f":"IFERROR(SUMIFS(raw_annual_energy!$I:$I,raw_annual_energy!$D:$D,AC$356,Lists!$S:$S,$C362)/SUMIFS(raw_resource_build!$R:$R,raw_resource_build!$A:$A,AC$356,raw_resource_build!$E:$E,$C362),0)","v":0},{"$f":"IFERROR(SUMIFS(raw_annual_energy!$I:$I,raw_annual_energy!$D:$D,AD$356,Lists!$S:$S,$C362)/SUMIFS(raw_resource_build!$R:$R,raw_resource_build!$A:$A,AD$356,raw_resource_build!$E:$E,$C362),0)","v":0},{"$f":"IFERROR(SUMIFS(raw_annual_energy!$I:$I,raw_annual_energy!$D:$D,AE$356,Lists!$S:$S,$C362)/SUMIFS(raw_resource_build!$R:$R,raw_resource_build!$A:$A,AE$356,raw_resource_build!$E:$E,$C362),0)","v":0},{"$f":"IFERROR(SUMIFS(raw_annual_energy!$I:$I,raw_annual_energy!$D:$D,AF$356,Lists!$S:$S,$C362)/SUMIFS(raw_resource_build!$R:$R,raw_resource_build!$A:$A,AF$356,raw_resource_build!$E:$E,$C362),0)","v":0},{"$f":"IFERROR(SUMIFS(raw_annual_energy!$I:$I,raw_annual_energy!$D:$D,AG$356,Lists!$S:$S,$C362)/SUMIFS(raw_resource_build!$R:$R,raw_resource_build!$A:$A,AG$356,raw_resource_build!$E:$E,$C362),0)","v":0},{"$f":"IFERROR(SUMIFS(raw_annual_energy!$I:$I,raw_annual_energy!$D:$D,AH$356,Lists!$S:$S,$C362)/SUMIFS(raw_resource_build!$R:$R,raw_resource_build!$A:$A,AH$356,raw_resource_build!$E:$E,$C362),0)","v":0},{"$f":"IFERROR(SUMIFS(raw_annual_energy!$I:$I,raw_annual_energy!$D:$D,AI$356,Lists!$S:$S,$C362)/SUMIFS(raw_resource_build!$R:$R,raw_resource_build!$A:$A,AI$356,raw_resource_build!$E:$E,$C362),0)","v":0},{"$f":"IFERROR(SUMIFS(raw_annual_energy!$I:$I,raw_annual_energy!$D:$D,AJ$356,Lists!$S:$S,$C362)/SUMIFS(raw_resource_build!$R:$R,raw_resource_build!$A:$A,AJ$356,raw_resource_build!$E:$E,$C362),0)","v":0},{"$f":"IFERROR(SUMIFS(raw_annual_energy!$I:$I,raw_annual_energy!$D:$D,AK$356,Lists!$S:$S,$C362)/SUMIFS(raw_resource_build!$R:$R,raw_resource_build!$A:$A,AK$356,raw_resource_build!$E:$E,$C362),0)","v":0},{"$f":"IFERROR(SUMIFS(raw_annual_energy!$I:$I,raw_annual_energy!$D:$D,AL$356,Lists!$S:$S,$C362)/SUMIFS(raw_resource_build!$R:$R,raw_resource_build!$A:$A,AL$356,raw_resource_build!$E:$E,$C362),0)","v":0},{"$f":"IFERROR(SUMIFS(raw_annual_energy!$I:$I,raw_annual_energy!$D:$D,AM$356,Lists!$S:$S,$C362)/SUMIFS(raw_resource_build!$R:$R,raw_resource_build!$A:$A,AM$356,raw_resource_build!$E:$E,$C362),0)","v":0},{"$f":"IFERROR(SUMIFS(raw_annual_energy!$I:$I,raw_annual_energy!$D:$D,AN$356,Lists!$S:$S,$C362)/SUMIFS(raw_resource_build!$R:$R,raw_resource_build!$A:$A,AN$356,raw_resource_build!$E:$E,$C362),0)","v":0}]
[null,null,{"$f":"Lists!B11","v":"CAISO_Aero_CT"},"# starts per unit per day",{"$f":"IFERROR(SUMIFS(raw_annual_energy!$I:$I,raw_annual_energy!$D:$D,E$356,Lists!$S:$S,$C363)/SUMIFS(raw_resource_build!$R:$R,raw_resource_build!$A:$A,E$356,raw_resource_build!$E:$E,$C363),0)","v":0},{"$f":"IFERROR(SUMIFS(raw_annual_energy!$I:$I,raw_annual_energy!$D:$D,F$356,Lists!$S:$S,$C363)/SUMIFS(raw_resource_build!$R:$R,raw_resource_build!$A:$A,F$356,raw_resource_build!$E:$E,$C363),0)","v":0},{"$f":"IFERROR(SUMIFS(raw_annual_energy!$I:$I,raw_annual_energy!$D:$D,G$356,Lists!$S:$S,$C363)/SUMIFS(raw_resource_build!$R:$R,raw_resource_build!$A:$A,G$356,raw_resource_build!$E:$E,$C363),0)","v":0},{"$f":"IFERROR(SUMIFS(raw_annual_energy!$I:$I,raw_annual_energy!$D:$D,H$356,Lists!$S:$S,$C363)/SUMIFS(raw_resource_build!$R:$R,raw_resource_build!$A:$A,H$356,raw_resource_build!$E:$E,$C363),0)","v":0},{"$f":"IFERROR(SUMIFS(raw_annual_energy!$I:$I,raw_annual_energy!$D:$D,I$356,Lists!$S:$S,$C363)/SUMIFS(raw_resource_build!$R:$R,raw_resource_build!$A:$A,I$356,raw_resource_build!$E:$E,$C363),0)","v":0},{"$f":"IFERROR(SUMIFS(raw_annual_energy!$I:$I,raw_annual_energy!$D:$D,J$356,Lists!$S:$S,$C363)/SUMIFS(raw_resource_build!$R:$R,raw_resource_build!$A:$A,J$356,raw_resource_build!$E:$E,$C363),0)","v":0},{"$f":"IFERROR(SUMIFS(raw_annual_energy!$I:$I,raw_annual_energy!$D:$D,K$356,Lists!$S:$S,$C363)/SUMIFS(raw_resource_build!$R:$R,raw_resource_build!$A:$A,K$356,raw_resource_build!$E:$E,$C363),0)","v":0},{"$f":"IFERROR(SUMIFS(raw_annual_energy!$I:$I,raw_annual_energy!$D:$D,L$356,Lists!$S:$S,$C363)/SUMIFS(raw_resource_build!$R:$R,raw_resource_build!$A:$A,L$356,raw_resource_build!$E:$E,$C363),0)","v":0},{"$f":"IFERROR(SUMIFS(raw_annual_energy!$I:$I,raw_annual_energy!$D:$D,M$356,Lists!$S:$S,$C363)/SUMIFS(raw_resource_build!$R:$R,raw_resource_build!$A:$A,M$356,raw_resource_build!$E:$E,$C363),0)","v":0},{"$f":"IFERROR(SUMIFS(raw_annual_energy!$I:$I,raw_annual_energy!$D:$D,N$356,Lists!$S:$S,$C363)/SUMIFS(raw_resource_build!$R:$R,raw_resource_build!$A:$A,N$356,raw_resource_build!$E:$E,$C363),0)","v":0},{"$f":"IFERROR(SUMIFS(raw_annual_energy!$I:$I,raw_annual_energy!$D:$D,O$356,Lists!$S:$S,$C363)/SUMIFS(raw_resource_build!$R:$R,raw_resource_build!$A:$A,O$356,raw_resource_build!$E:$E,$C363),0)","v":0},{"$f":"IFERROR(SUMIFS(raw_annual_energy!$I:$I,raw_annual_energy!$D:$D,P$356,Lists!$S:$S,$C363)/SUMIFS(raw_resource_build!$R:$R,raw_resource_build!$A:$A,P$356,raw_resource_build!$E:$E,$C363),0)","v":0},{"$f":"IFERROR(SUMIFS(raw_annual_energy!$I:$I,raw_annual_energy!$D:$D,Q$356,Lists!$S:$S,$C363)/SUMIFS(raw_resource_build!$R:$R,raw_resource_build!$A:$A,Q$356,raw_resource_build!$E:$E,$C363),0)","v":0},{"$f":"IFERROR(SUMIFS(raw_annual_energy!$I:$I,raw_annual_energy!$D:$D,R$356,Lists!$S:$S,$C363)/SUMIFS(raw_resource_build!$R:$R,raw_resource_build!$A:$A,R$356,raw_resource_build!$E:$E,$C363),0)","v":0},{"$f":"IFERROR(SUMIFS(raw_annual_energy!$I:$I,raw_annual_energy!$D:$D,S$356,Lists!$S:$S,$C363)/SUMIFS(raw_resource_build!$R:$R,raw_resource_build!$A:$A,S$356,raw_resource_build!$E:$E,$C363),0)","v":0},{"$f":"IFERROR(SUMIFS(raw_annual_energy!$I:$I,raw_annual_energy!$D:$D,T$356,Lists!$S:$S,$C363)/SUMIFS(raw_resource_build!$R:$R,raw_resource_build!$A:$A,T$356,raw_resource_build!$E:$E,$C363),0)","v":0},{"$f":"IFERROR(SUMIFS(raw_annual_energy!$I:$I,raw_annual_energy!$D:$D,U$356,Lists!$S:$S,$C363)/SUMIFS(raw_resource_build!$R:$R,raw_resource_build!$A:$A,U$356,raw_resource_build!$E:$E,$C363),0)","v":0},{"$f":"IFERROR(SUMIFS(raw_annual_energy!$I:$I,raw_annual_energy!$D:$D,V$356,Lists!$S:$S,$C363)/SUMIFS(raw_resource_build!$R:$R,raw_resource_build!$A:$A,V$356,raw_resource_build!$E:$E,$C363),0)","v":0},{"$f":"IFERROR(SUMIFS(raw_annual_energy!$I:$I,raw_annual_energy!$D:$D,W$356,Lists!$S:$S,$C363)/SUMIFS(raw_resource_build!$R:$R,raw_resource_build!$A:$A,W$356,raw_resource_build!$E:$E,$C363),0)","v":0},{"$f":"IFERROR(SUMIFS(raw_annual_energy!$I:$I,raw_annual_energy!$D:$D,X$356,Lists!$S:$S,$C363)/SUMIFS(raw_resource_build!$R:$R,raw_resource_build!$A:$A,X$356,raw_resource_build!$E:$E,$C363),0)","v":0},{"$f":"IFERROR(SUMIFS(raw_annual_energy!$I:$I,raw_annual_energy!$D:$D,Y$356,Lists!$S:$S,$C363)/SUMIFS(raw_resource_build!$R:$R,raw_resource_build!$A:$A,Y$356,raw_resource_build!$E:$E,$C363),0)","v":0},{"$f":"IFERROR(SUMIFS(raw_annual_energy!$I:$I,raw_annual_energy!$D:$D,Z$356,Lists!$S:$S,$C363)/SUMIFS(raw_resource_build!$R:$R,raw_resource_build!$A:$A,Z$356,raw_resource_build!$E:$E,$C363),0)","v":0},{"$f":"IFERROR(SUMIFS(raw_annual_energy!$I:$I,raw_annual_energy!$D:$D,AA$356,Lists!$S:$S,$C363)/SUMIFS(raw_resource_build!$R:$R,raw_resource_build!$A:$A,AA$356,raw_resource_build!$E:$E,$C363),0)","v":0},{"$f":"IFERROR(SUMIFS(raw_annual_energy!$I:$I,raw_annual_energy!$D:$D,AB$356,Lists!$S:$S,$C363)/SUMIFS(raw_resource_build!$R:$R,raw_resource_build!$A:$A,AB$356,raw_resource_build!$E:$E,$C363),0)","v":0},{"$f":"IFERROR(SUMIFS(raw_annual_energy!$I:$I,raw_annual_energy!$D:$D,AC$356,Lists!$S:$S,$C363)/SUMIFS(raw_resource_build!$R:$R,raw_resource_build!$A:$A,AC$356,raw_resource_build!$E:$E,$C363),0)","v":0},{"$f":"IFERROR(SUMIFS(raw_annual_energy!$I:$I,raw_annual_energy!$D:$D,AD$356,Lists!$S:$S,$C363)/SUMIFS(raw_resource_build!$R:$R,raw_resource_build!$A:$A,AD$356,raw_resource_build!$E:$E,$C363),0)","v":0},{"$f":"IFERROR(SUMIFS(raw_annual_energy!$I:$I,raw_annual_energy!$D:$D,AE$356,Lists!$S:$S,$C363)/SUMIFS(raw_resource_build!$R:$R,raw_resource_build!$A:$A,AE$356,raw_resource_build!$E:$E,$C363),0)","v":0},{"$f":"IFERROR(SUMIFS(raw_annual_energy!$I:$I,raw_annual_energy!$D:$D,AF$356,Lists!$S:$S,$C363)/SUMIFS(raw_resource_build!$R:$R,raw_resource_build!$A:$A,AF$356,raw_resource_build!$E:$E,$C363),0)","v":0},{"$f":"IFERROR(SUMIFS(raw_annual_energy!$I:$I,raw_annual_energy!$D:$D,AG$356,Lists!$S:$S,$C363)/SUMIFS(raw_resource_build!$R:$R,raw_resource_build!$A:$A,AG$356,raw_resource_build!$E:$E,$C363),0)","v":0},{"$f":"IFERROR(SUMIFS(raw_annual_energy!$I:$I,raw_annual_energy!$D:$D,AH$356,Lists!$S:$S,$C363)/SUMIFS(raw_resource_build!$R:$R,raw_resource_build!$A:$A,AH$356,raw_resource_build!$E:$E,$C363),0)","v":0},{"$f":"IFERROR(SUMIFS(raw_annual_energy!$I:$I,raw_annual_energy!$D:$D,AI$356,Lists!$S:$S,$C363)/SUMIFS(raw_resource_build!$R:$R,raw_resource_build!$A:$A,AI$356,raw_resource_build!$E:$E,$C363),0)","v":0},{"$f":"IFERROR(SUMIFS(raw_annual_energy!$I:$I,raw_annual_energy!$D:$D,AJ$356,Lists!$S:$S,$C363)/SUMIFS(raw_resource_build!$R:$R,raw_resource_build!$A:$A,AJ$356,raw_resource_build!$E:$E,$C363),0)","v":0},{"$f":"IFERROR(SUMIFS(raw_annual_energy!$I:$I,raw_annual_energy!$D:$D,AK$356,Lists!$S:$S,$C363)/SUMIFS(raw_resource_build!$R:$R,raw_resource_build!$A:$A,AK$356,raw_resource_build!$E:$E,$C363),0)","v":0},{"$f":"IFERROR(SUMIFS(raw_annual_energy!$I:$I,raw_annual_energy!$D:$D,AL$356,Lists!$S:$S,$C363)/SUMIFS(raw_resource_build!$R:$R,raw_resource_build!$A:$A,AL$356,raw_resource_build!$E:$E,$C363),0)","v":0},{"$f":"IFERROR(SUMIFS(raw_annual_energy!$I:$I,raw_annual_energy!$D:$D,AM$356,Lists!$S:$S,$C363)/SUMIFS(raw_resource_build!$R:$R,raw_resource_build!$A:$A,AM$356,raw_resource_build!$E:$E,$C363),0)","v":0},{"$f":"IFERROR(SUMIFS(raw_annual_energy!$I:$I,raw_annual_energy!$D:$D,AN$356,Lists!$S:$S,$C363)/SUMIFS(raw_resource_build!$R:$R,raw_resource_build!$A:$A,AN$356,raw_resource_build!$E:$E,$C363),0)","v":0}]
[null,null,{"$f":"Lists!B12","v":"CAISO_Reciprocating_Engine"},"# starts per unit per day",{"$f":"IFERROR(SUMIFS(raw_annual_energy!$I:$I,raw_annual_energy!$D:$D,E$356,Lists!$S:$S,$C364)/SUMIFS(raw_resource_build!$R:$R,raw_resource_build!$A:$A,E$356,raw_resource_build!$E:$E,$C364),0)","v":0},{"$f":"IFERROR(SUMIFS(raw_annual_energy!$I:$I,raw_annual_energy!$D:$D,F$356,Lists!$S:$S,$C364)/SUMIFS(raw_resource_build!$R:$R,raw_resource_build!$A:$A,F$356,raw_resource_build!$E:$E,$C364),0)","v":0},{"$f":"IFERROR(SUMIFS(raw_annual_energy!$I:$I,raw_annual_energy!$D:$D,G$356,Lists!$S:$S,$C364)/SUMIFS(raw_resource_build!$R:$R,raw_resource_build!$A:$A,G$356,raw_resource_build!$E:$E,$C364),0)","v":0},{"$f":"IFERROR(SUMIFS(raw_annual_energy!$I:$I,raw_annual_energy!$D:$D,H$356,Lists!$S:$S,$C364)/SUMIFS(raw_resource_build!$R:$R,raw_resource_build!$A:$A,H$356,raw_resource_build!$E:$E,$C364),0)","v":0},{"$f":"IFERROR(SUMIFS(raw_annual_energy!$I:$I,raw_annual_energy!$D:$D,I$356,Lists!$S:$S,$C364)/SUMIFS(raw_resource_build!$R:$R,raw_resource_build!$A:$A,I$356,raw_resource_build!$E:$E,$C364),0)","v":0},{"$f":"IFERROR(SUMIFS(raw_annual_energy!$I:$I,raw_annual_energy!$D:$D,J$356,Lists!$S:$S,$C364)/SUMIFS(raw_resource_build!$R:$R,raw_resource_build!$A:$A,J$356,raw_resource_build!$E:$E,$C364),0)","v":302.00025611109942},{"$f":"IFERROR(SUMIFS(raw_annual_energy!$I:$I,raw_annual_energy!$D:$D,K$356,Lists!$S:$S,$C364)/SUMIFS(raw_resource_build!$R:$R,raw_resource_build!$A:$A,K$356,raw_resource_build!$E:$E,$C364),0)","v":262.83911655015498},{"$f":"IFERROR(SUMIFS(raw_annual_energy!$I:$I,raw_annual_energy!$D:$D,L$356,Lists!$S:$S,$C364)/SUMIFS(raw_resource_build!$R:$R,raw_resource_build!$A:$A,L$356,raw_resource_build!$E:$E,$C364),0)","v":268.92757215979032},{"$f":"IFERROR(SUMIFS(raw_annual_energy!$I:$I,raw_annual_energy!$D:$D,M$356,Lists!$S:$S,$C364)/SUMIFS(raw_resource_build!$R:$R,raw_resource_build!$A:$A,M$356,raw_resource_build!$E:$E,$C364),0)","v":269.94119075331969},{"$f":"IFERROR(SUMIFS(raw_annual_energy!$I:$I,raw_annual_energy!$D:$D,N$356,Lists!$S:$S,$C364)/SUMIFS(raw_resource_build!$R:$R,raw_resource_build!$A:$A,N$356,raw_resource_build!$E:$E,$C364),0)","v":247.97744958922598},{"$f":"IFERROR(SUMIFS(raw_annual_energy!$I:$I,raw_annual_energy!$D:$D,O$356,Lists!$S:$S,$C364)/SUMIFS(raw_resource_build!$R:$R,raw_resource_build!$A:$A,O$356,raw_resource_build!$E:$E,$C364),0)","v":0},{"$f":"IFERROR(SUMIFS(raw_annual_energy!$I:$I,raw_annual_energy!$D:$D,P$356,Lists!$S:$S,$C364)/SUMIFS(raw_resource_build!$R:$R,raw_resource_build!$A:$A,P$356,raw_resource_build!$E:$E,$C364),0)","v":92.634804728470186},{"$f":"IFERROR(SUMIFS(raw_annual_energy!$I:$I,raw_annual_energy!$D:$D,Q$356,Lists!$S:$S,$C364)/SUMIFS(raw_resource_build!$R:$R,raw_resource_build!$A:$A,Q$356,raw_resource_build!$E:$E,$C364),0)","v":0},{"$f":"IFERROR(SUMIFS(raw_annual_energy!$I:$I,raw_annual_energy!$D:$D,R$356,Lists!$S:$S,$C364)/SUMIFS(raw_resource_build!$R:$R,raw_resource_build!$A:$A,R$356,raw_resource_build!$E:$E,$C364),0)","v":0},{"$f":"IFERROR(SUMIFS(raw_annual_energy!$I:$I,raw_annual_energy!$D:$D,S$356,Lists!$S:$S,$C364)/SUMIFS(raw_resource_build!$R:$R,raw_resource_build!$A:$A,S$356,raw_resource_build!$E:$E,$C364),0)","v":0},{"$f":"IFERROR(SUMIFS(raw_annual_energy!$I:$I,raw_annual_energy!$D:$D,T$356,Lists!$S:$S,$C364)/SUMIFS(raw_resource_build!$R:$R,raw_resource_build!$A:$A,T$356,raw_resource_build!$E:$E,$C364),0)","v":167.52643121618132},{"$f":"IFERROR(SUMIFS(raw_annual_energy!$I:$I,raw_annual_energy!$D:$D,U$356,Lists!$S:$S,$C364)/SUMIFS(raw_resource_build!$R:$R,raw_resource_build!$A:$A,U$356,raw_resource_build!$E:$E,$C364),0)","v":0},{"$f":"IFERROR(SUMIFS(raw_annual_energy!$I:$I,raw_annual_energy!$D:$D,V$356,Lists!$S:$S,$C364)/SUMIFS(raw_resource_build!$R:$R,raw_resource_build!$A:$A,V$356,raw_resource_build!$E:$E,$C364),0)","v":0},{"$f":"IFERROR(SUMIFS(raw_annual_energy!$I:$I,raw_annual_energy!$D:$D,W$356,Lists!$S:$S,$C364)/SUMIFS(raw_resource_build!$R:$R,raw_resource_build!$A:$A,W$356,raw_resource_build!$E:$E,$C364),0)","v":0},{"$f":"IFERROR(SUMIFS(raw_annual_energy!$I:$I,raw_annual_energy!$D:$D,X$356,Lists!$S:$S,$C364)/SUMIFS(raw_resource_build!$R:$R,raw_resource_build!$A:$A,X$356,raw_resource_build!$E:$E,$C364),0)","v":0},{"$f":"IFERROR(SUMIFS(raw_annual_energy!$I:$I,raw_annual_energy!$D:$D,Y$356,Lists!$S:$S,$C364)/SUMIFS(raw_resource_build!$R:$R,raw_resource_build!$A:$A,Y$356,raw_resource_build!$E:$E,$C364),0)","v":0},{"$f":"IFERROR(SUMIFS(raw_annual_energy!$I:$I,raw_annual_energy!$D:$D,Z$356,Lists!$S:$S,$C364)/SUMIFS(raw_resource_build!$R:$R,raw_resource_build!$A:$A,Z$356,raw_resource_build!$E:$E,$C364),0)","v":0},{"$f":"IFERROR(SUMIFS(raw_annual_energy!$I:$I,raw_annual_energy!$D:$D,AA$356,Lists!$S:$S,$C364)/SUMIFS(raw_resource_build!$R:$R,raw_resource_build!$A:$A,AA$356,raw_resource_build!$E:$E,$C364),0)","v":0},{"$f":"IFERROR(SUMIFS(raw_annual_energy!$I:$I,raw_annual_energy!$D:$D,AB$356,Lists!$S:$S,$C364)/SUMIFS(raw_resource_build!$R:$R,raw_resource_build!$A:$A,AB$356,raw_resource_build!$E:$E,$C364),0)","v":0},{"$f":"IFERROR(SUMIFS(raw_annual_energy!$I:$I,raw_annual_energy!$D:$D,AC$356,Lists!$S:$S,$C364)/SUMIFS(raw_resource_build!$R:$R,raw_resource_build!$A:$A,AC$356,raw_resource_build!$E:$E,$C364),0)","v":0},{"$f":"IFERROR(SUMIFS(raw_annual_energy!$I:$I,raw_annual_energy!$D:$D,AD$356,Lists!$S:$S,$C364)/SUMIFS(raw_resource_build!$R:$R,raw_resource_build!$A:$A,AD$356,raw_resource_build!$E:$E,$C364),0)","v":0},{"$f":"IFERROR(SUMIFS(raw_annual_energy!$I:$I,raw_annual_energy!$D:$D,AE$356,Lists!$S:$S,$C364)/SUMIFS(raw_resource_build!$R:$R,raw_resource_build!$A:$A,AE$356,raw_resource_build!$E:$E,$C364),0)","v":0},{"$f":"IFERROR(SUMIFS(raw_annual_energy!$I:$I,raw_annual_energy!$D:$D,AF$356,Lists!$S:$S,$C364)/SUMIFS(raw_resource_build!$R:$R,raw_resource_build!$A:$A,AF$356,raw_resource_build!$E:$E,$C364),0)","v":0},{"$f":"IFERROR(SUMIFS(raw_annual_energy!$I:$I,raw_annual_energy!$D:$D,AG$356,Lists!$S:$S,$C364)/SUMIFS(raw_resource_build!$R:$R,raw_resource_build!$A:$A,AG$356,raw_resource_build!$E:$E,$C364),0)","v":0},{"$f":"IFERROR(SUMIFS(raw_annual_energy!$I:$I,raw_annual_energy!$D:$D,AH$356,Lists!$S:$S,$C364)/SUMIFS(raw_resource_build!$R:$R,raw_resource_build!$A:$A,AH$356,raw_resource_build!$E:$E,$C364),0)","v":0},{"$f":"IFERROR(SUMIFS(raw_annual_energy!$I:$I,raw_annual_energy!$D:$D,AI$356,Lists!$S:$S,$C364)/SUMIFS(raw_resource_build!$R:$R,raw_resource_build!$A:$A,AI$356,raw_resource_build!$E:$E,$C364),0)","v":74.31814653047141},{"$f":"IFERROR(SUMIFS(raw_annual_energy!$I:$I,raw_annual_energy!$D:$D,AJ$356,Lists!$S:$S,$C364)/SUMIFS(raw_resource_build!$R:$R,raw_resource_build!$A:$A,AJ$356,raw_resource_build!$E:$E,$C364),0)","v":0},{"$f":"IFERROR(SUMIFS(raw_annual_energy!$I:$I,raw_annual_energy!$D:$D,AK$356,Lists!$S:$S,$C364)/SUMIFS(raw_resource_build!$R:$R,raw_resource_build!$A:$A,AK$356,raw_resource_build!$E:$E,$C364),0)","v":0},{"$f":"IFERROR(SUMIFS(raw_annual_energy!$I:$I,raw_annual_energy!$D:$D,AL$356,Lists!$S:$S,$C364)/SUMIFS(raw_resource_build!$R:$R,raw_resource_build!$A:$A,AL$356,raw_resource_build!$E:$E,$C364),0)","v":0},{"$f":"IFERROR(SUMIFS(raw_annual_energy!$I:$I,raw_annual_energy!$D:$D,AM$356,Lists!$S:$S,$C364)/SUMIFS(raw_resource_build!$R:$R,raw_resource_build!$A:$A,AM$356,raw_resource_build!$E:$E,$C364),0)","v":0},{"$f":"IFERROR(SUMIFS(raw_annual_energy!$I:$I,raw_annual_energy!$D:$D,AN$356,Lists!$S:$S,$C364)/SUMIFS(raw_resource_build!$R:$R,raw_resource_build!$A:$A,AN$356,raw_resource_build!$E:$E,$C364),0)","v":0}]
[null,null,{"$f":"Lists!B13","v":"CAISO_CHP"},"# starts per unit per day",{"$f":"IFERROR(SUMIFS(raw_annual_energy!$I:$I,raw_annual_energy!$D:$D,E$356,Lists!$S:$S,$C365)/SUMIFS(raw_resource_build!$R:$R,raw_resource_build!$A:$A,E$356,raw_resource_build!$E:$E,$C365),0)","v":0},{"$f":"IFERROR(SUMIFS(raw_annual_energy!$I:$I,raw_annual_energy!$D:$D,F$356,Lists!$S:$S,$C365)/SUMIFS(raw_resource_build!$R:$R,raw_resource_build!$A:$A,F$356,raw_resource_build!$E:$E,$C365),0)","v":0},{"$f":"IFERROR(SUMIFS(raw_annual_energy!$I:$I,raw_annual_energy!$D:$D,G$356,Lists!$S:$S,$C365)/SUMIFS(raw_resource_build!$R:$R,raw_resource_build!$A:$A,G$356,raw_resource_build!$E:$E,$C365),0)","v":0},{"$f":"IFERROR(SUMIFS(raw_annual_energy!$I:$I,raw_annual_energy!$D:$D,H$356,Lists!$S:$S,$C365)/SUMIFS(raw_resource_build!$R:$R,raw_resource_build!$A:$A,H$356,raw_resource_build!$E:$E,$C365),0)","v":0},{"$f":"IFERROR(SUMIFS(raw_annual_energy!$I:$I,raw_annual_energy!$D:$D,I$356,Lists!$S:$S,$C365)/SUMIFS(raw_resource_build!$R:$R,raw_resource_build!$A:$A,I$356,raw_resource_build!$E:$E,$C365),0)","v":0},{"$f":"IFERROR(SUMIFS(raw_annual_energy!$I:$I,raw_annual_energy!$D:$D,J$356,Lists!$S:$S,$C365)/SUMIFS(raw_resource_build!$R:$R,raw_resource_build!$A:$A,J$356,raw_resource_build!$E:$E,$C365),0)","v":0},{"$f":"IFERROR(SUMIFS(raw_annual_energy!$I:$I,raw_annual_energy!$D:$D,K$356,Lists!$S:$S,$C365)/SUMIFS(raw_resource_build!$R:$R,raw_resource_build!$A:$A,K$356,raw_resource_build!$E:$E,$C365),0)","v":0},{"$f":"IFERROR(SUMIFS(raw_annual_energy!$I:$I,raw_annual_energy!$D:$D,L$356,Lists!$S:$S,$C365)/SUMIFS(raw_resource_build!$R:$R,raw_resource_build!$A:$A,L$356,raw_resource_build!$E:$E,$C365),0)","v":0},{"$f":"IFERROR(SUMIFS(raw_annual_energy!$I:$I,raw_annual_energy!$D:$D,M$356,Lists!$S:$S,$C365)/SUMIFS(raw_resource_build!$R:$R,raw_resource_build!$A:$A,M$356,raw_resource_build!$E:$E,$C365),0)","v":0},{"$f":"IFERROR(SUMIFS(raw_annual_energy!$I:$I,raw_annual_energy!$D:$D,N$356,Lists!$S:$S,$C365)/SUMIFS(raw_resource_build!$R:$R,raw_resource_build!$A:$A,N$356,raw_resource_build!$E:$E,$C365),0)","v":0},{"$f":"IFERROR(SUMIFS(raw_annual_energy!$I:$I,raw_annual_energy!$D:$D,O$356,Lists!$S:$S,$C365)/SUMIFS(raw_resource_build!$R:$R,raw_resource_build!$A:$A,O$356,raw_resource_build!$E:$E,$C365),0)","v":0},{"$f":"IFERROR(SUMIFS(raw_annual_energy!$I:$I,raw_annual_energy!$D:$D,P$356,Lists!$S:$S,$C365)/SUMIFS(raw_resource_build!$R:$R,raw_resource_build!$A:$A,P$356,raw_resource_build!$E:$E,$C365),0)","v":0},{"$f":"IFERROR(SUMIFS(raw_annual_energy!$I:$I,raw_annual_energy!$D:$D,Q$356,Lists!$S:$S,$C365)/SUMIFS(raw_resource_build!$R:$R,raw_resource_build!$A:$A,Q$356,raw_resource_build!$E:$E,$C365),0)","v":0},{"$f":"IFERROR(SUMIFS(raw_annual_energy!$I:$I,raw_annual_energy!$D:$D,R$356,Lists!$S:$S,$C365)/SUMIFS(raw_resource_build!$R:$R,raw_resource_build!$A:$A,R$356,raw_resource_build!$E:$E,$C365),0)","v":0},{"$f":"IFERROR(SUMIFS(raw_annual_energy!$I:$I,raw_annual_energy!$D:$D,S$356,Lists!$S:$S,$C365)/SUMIFS(raw_resource_build!$R:$R,raw_resource_build!$A:$A,S$356,raw_resource_build!$E:$E,$C365),0)","v":0},{"$f":"IFERROR(SUMIFS(raw_annual_energy!$I:$I,raw_annual_energy!$D:$D,T$356,Lists!$S:$S,$C365)/SUMIFS(raw_resource_build!$R:$R,raw_resource_build!$A:$A,T$356,raw_resource_build!$E:$E,$C365),0)","v":0},{"$f":"IFERROR(SUMIFS(raw_annual_energy!$I:$I,raw_annual_energy!$D:$D,U$356,Lists!$S:$S,$C365)/SUMIFS(raw_resource_build!$R:$R,raw_resource_build!$A:$A,U$356,raw_resource_build!$E:$E,$C365),0)","v":0},{"$f":"IFERROR(SUMIFS(raw_annual_energy!$I:$I,raw_annual_energy!$D:$D,V$356,Lists!$S:$S,$C365)/SUMIFS(raw_resource_build!$R:$R,raw_resource_build!$A:$A,V$356,raw_resource_build!$E:$E,$C365),0)","v":0},{"$f":"IFERROR(SUMIFS(raw_annual_energy!$I:$I,raw_annual_energy!$D:$D,W$356,Lists!$S:$S,$C365)/SUMIFS(raw_resource_build!$R:$R,raw_resource_build!$A:$A,W$356,raw_resource_build!$E:$E,$C365),0)","v":0},{"$f":"IFERROR(SUMIFS(raw_annual_energy!$I:$I,raw_annual_energy!$D:$D,X$356,Lists!$S:$S,$C365)/SUMIFS(raw_resource_build!$R:$R,raw_resource_build!$A:$A,X$356,raw_resource_build!$E:$E,$C365),0)","v":0},{"$f":"IFERROR(SUMIFS(raw_annual_energy!$I:$I,raw_annual_energy!$D:$D,Y$356,Lists!$S:$S,$C365)/SUMIFS(raw_resource_build!$R:$R,raw_resource_build!$A:$A,Y$356,raw_resource_build!$E:$E,$C365),0)","v":0},{"$f":"IFERROR(SUMIFS(raw_annual_energy!$I:$I,raw_annual_energy!$D:$D,Z$356,Lists!$S:$S,$C365)/SUMIFS(raw_resource_build!$R:$R,raw_resource_build!$A:$A,Z$356,raw_resource_build!$E:$E,$C365),0)","v":0},{"$f":"IFERROR(SUMIFS(raw_annual_energy!$I:$I,raw_annual_energy!$D:$D,AA$356,Lists!$S:$S,$C365)/SUMIFS(raw_resource_build!$R:$R,raw_resource_build!$A:$A,AA$356,raw_resource_build!$E:$E,$C365),0)","v":0},{"$f":"IFERROR(SUMIFS(raw_annual_energy!$I:$I,raw_annual_energy!$D:$D,AB$356,Lists!$S:$S,$C365)/SUMIFS(raw_resource_build!$R:$R,raw_resource_build!$A:$A,AB$356,raw_resource_build!$E:$E,$C365),0)","v":0},{"$f":"IFERROR(SUMIFS(raw_annual_energy!$I:$I,raw_annual_energy!$D:$D,AC$356,Lists!$S:$S,$C365)/SUMIFS(raw_resource_build!$R:$R,raw_resource_build!$A:$A,AC$356,raw_resource_build!$E:$E,$C365),0)","v":0},{"$f":"IFERROR(SUMIFS(raw_annual_energy!$I:$I,raw_annual_energy!$D:$D,AD$356,Lists!$S:$S,$C365)/SUMIFS(raw_resource_build!$R:$R,raw_resource_build!$A:$A,AD$356,raw_resource_build!$E:$E,$C365),0)","v":0},{"$f":"IFERROR(SUMIFS(raw_annual_energy!$I:$I,raw_annual_energy!$D:$D,AE$356,Lists!$S:$S,$C365)/SUMIFS(raw_resource_build!$R:$R,raw_resource_build!$A:$A,AE$356,raw_resource_build!$E:$E,$C365),0)","v":0},{"$f":"IFERROR(SUMIFS(raw_annual_energy!$I:$I,raw_annual_energy!$D:$D,AF$356,Lists!$S:$S,$C365)/SUMIFS(raw_resource_build!$R:$R,raw_resource_build!$A:$A,AF$356,raw_resource_build!$E:$E,$C365),0)","v":0},{"$f":"IFERROR(SUMIFS(raw_annual_energy!$I:$I,raw_annual_energy!$D:$D,AG$356,Lists!$S:$S,$C365)/SUMIFS(raw_resource_build!$R:$R,raw_resource_build!$A:$A,AG$356,raw_resource_build!$E:$E,$C365),0)","v":0},{"$f":"IFERROR(SUMIFS(raw_annual_energy!$I:$I,raw_annual_energy!$D:$D,AH$356,Lists!$S:$S,$C365)/SUMIFS(raw_resource_build!$R:$R,raw_resource_build!$A:$A,AH$356,raw_resource_build!$E:$E,$C365),0)","v":0},{"$f":"IFERROR(SUMIFS(raw_annual_energy!$I:$I,raw_annual_energy!$D:$D,AI$356,Lists!$S:$S,$C365)/SUMIFS(raw_resource_build!$R:$R,raw_resource_build!$A:$A,AI$356,raw_resource_build!$E:$E,$C365),0)","v":0},{"$f":"IFERROR(SUMIFS(raw_annual_energy!$I:$I,raw_annual_energy!$D:$D,AJ$356,Lists!$S:$S,$C365)/SUMIFS(raw_resource_build!$R:$R,raw_resource_build!$A:$A,AJ$356,raw_resource_build!$E:$E,$C365),0)","v":0},{"$f":"IFERROR(SUMIFS(raw_annual_energy!$I:$I,raw_annual_energy!$D:$D,AK$356,Lists!$S:$S,$C365)/SUMIFS(raw_resource_build!$R:$R,raw_resource_build!$A:$A,AK$356,raw_resource_build!$E:$E,$C365),0)","v":0},{"$f":"IFERROR(SUMIFS(raw_annual_energy!$I:$I,raw_annual_energy!$D:$D,AL$356,Lists!$S:$S,$C365)/SUMIFS(raw_resource_build!$R:$R,raw_resource_build!$A:$A,AL$356,raw_resource_build!$E:$E,$C365),0)","v":0},{"$f":"IFERROR(SUMIFS(raw_annual_energy!$I:$I,raw_annual_energy!$D:$D,AM$356,Lists!$S:$S,$C365)/SUMIFS(raw_resource_build!$R:$R,raw_resource_build!$A:$A,AM$356,raw_resource_build!$E:$E,$C365),0)","v":0},{"$f":"IFERROR(SUMIFS(raw_annual_energy!$I:$I,raw_annual_energy!$D:$D,AN$356,Lists!$S:$S,$C365)/SUMIFS(raw_resource_build!$R:$R,raw_resource_build!$A:$A,AN$356,raw_resource_build!$E:$E,$C365),0)","v":0}]
[null,null,{"$f":"Lists!B14","v":"CAISO_Coal"},"# starts per unit per day",{"$f":"IFERROR(SUMIFS(raw_annual_energy!$I:$I,raw_annual_energy!$D:$D,E$356,Lists!$S:$S,$C366)/SUMIFS(raw_resource_build!$R:$R,raw_resource_build!$A:$A,E$356,raw_resource_build!$E:$E,$C366),0)","v":0},{"$f":"IFERROR(SUMIFS(raw_annual_energy!$I:$I,raw_annual_energy!$D:$D,F$356,Lists!$S:$S,$C366)/SUMIFS(raw_resource_build!$R:$R,raw_resource_build!$A:$A,F$356,raw_resource_build!$E:$E,$C366),0)","v":0},{"$f":"IFERROR(SUMIFS(raw_annual_energy!$I:$I,raw_annual_energy!$D:$D,G$356,Lists!$S:$S,$C366)/SUMIFS(raw_resource_build!$R:$R,raw_resource_build!$A:$A,G$356,raw_resource_build!$E:$E,$C366),0)","v":0},{"$f":"IFERROR(SUMIFS(raw_annual_energy!$I:$I,raw_annual_energy!$D:$D,H$356,Lists!$S:$S,$C366)/SUMIFS(raw_resource_build!$R:$R,raw_resource_build!$A:$A,H$356,raw_resource_build!$E:$E,$C366),0)","v":0},{"$f":"IFERROR(SUMIFS(raw_annual_energy!$I:$I,raw_annual_energy!$D:$D,I$356,Lists!$S:$S,$C366)/SUMIFS(raw_resource_build!$R:$R,raw_resource_build!$A:$A,I$356,raw_resource_build!$E:$E,$C366),0)","v":0},{"$f":"IFERROR(SUMIFS(raw_annual_energy!$I:$I,raw_annual_energy!$D:$D,J$356,Lists!$S:$S,$C366)/SUMIFS(raw_resource_build!$R:$R,raw_resource_build!$A:$A,J$356,raw_resource_build!$E:$E,$C366),0)","v":0},{"$f":"IFERROR(SUMIFS(raw_annual_energy!$I:$I,raw_annual_energy!$D:$D,K$356,Lists!$S:$S,$C366)/SUMIFS(raw_resource_build!$R:$R,raw_resource_build!$A:$A,K$356,raw_resource_build!$E:$E,$C366),0)","v":0},{"$f":"IFERROR(SUMIFS(raw_annual_energy!$I:$I,raw_annual_energy!$D:$D,L$356,Lists!$S:$S,$C366)/SUMIFS(raw_resource_build!$R:$R,raw_resource_build!$A:$A,L$356,raw_resource_build!$E:$E,$C366),0)","v":0},{"$f":"IFERROR(SUMIFS(raw_annual_energy!$I:$I,raw_annual_energy!$D:$D,M$356,Lists!$S:$S,$C366)/SUMIFS(raw_resource_build!$R:$R,raw_resource_build!$A:$A,M$356,raw_resource_build!$E:$E,$C366),0)","v":0},{"$f":"IFERROR(SUMIFS(raw_annual_energy!$I:$I,raw_annual_energy!$D:$D,N$356,Lists!$S:$S,$C366)/SUMIFS(raw_resource_build!$R:$R,raw_resource_build!$A:$A,N$356,raw_resource_build!$E:$E,$C366),0)","v":0},{"$f":"IFERROR(SUMIFS(raw_annual_energy!$I:$I,raw_annual_energy!$D:$D,O$356,Lists!$S:$S,$C366)/SUMIFS(raw_resource_build!$R:$R,raw_resource_build!$A:$A,O$356,raw_resource_build!$E:$E,$C366),0)","v":0},{"$f":"IFERROR(SUMIFS(raw_annual_energy!$I:$I,raw_annual_energy!$D:$D,P$356,Lists!$S:$S,$C366)/SUMIFS(raw_resource_build!$R:$R,raw_resource_build!$A:$A,P$356,raw_resource_build!$E:$E,$C366),0)","v":0},{"$f":"IFERROR(SUMIFS(raw_annual_energy!$I:$I,raw_annual_energy!$D:$D,Q$356,Lists!$S:$S,$C366)/SUMIFS(raw_resource_build!$R:$R,raw_resource_build!$A:$A,Q$356,raw_resource_build!$E:$E,$C366),0)","v":0},{"$f":"IFERROR(SUMIFS(raw_annual_energy!$I:$I,raw_annual_energy!$D:$D,R$356,Lists!$S:$S,$C366)/SUMIFS(raw_resource_build!$R:$R,raw_resource_build!$A:$A,R$356,raw_resource_build!$E:$E,$C366),0)","v":0},{"$f":"IFERROR(SUMIFS(raw_annual_energy!$I:$I,raw_annual_energy!$D:$D,S$356,Lists!$S:$S,$C366)/SUMIFS(raw_resource_build!$R:$R,raw_resource_build!$A:$A,S$356,raw_resource_build!$E:$E,$C366),0)","v":0},{"$f":"IFERROR(SUMIFS(raw_annual_energy!$I:$I,raw_annual_energy!$D:$D,T$356,Lists!$S:$S,$C366)/SUMIFS(raw_resource_build!$R:$R,raw_resource_build!$A:$A,T$356,raw_resource_build!$E:$E,$C366),0)","v":0},{"$f":"IFERROR(SUMIFS(raw_annual_energy!$I:$I,raw_annual_energy!$D:$D,U$356,Lists!$S:$S,$C366)/SUMIFS(raw_resource_build!$R:$R,raw_resource_build!$A:$A,U$356,raw_resource_build!$E:$E,$C366),0)","v":0},{"$f":"IFERROR(SUMIFS(raw_annual_energy!$I:$I,raw_annual_energy!$D:$D,V$356,Lists!$S:$S,$C366)/SUMIFS(raw_resource_build!$R:$R,raw_resource_build!$A:$A,V$356,raw_resource_build!$E:$E,$C366),0)","v":0},{"$f":"IFERROR(SUMIFS(raw_annual_energy!$I:$I,raw_annual_energy!$D:$D,W$356,Lists!$S:$S,$C366)/SUMIFS(raw_resource_build!$R:$R,raw_resource_build!$A:$A,W$356,raw_resource_build!$E:$E,$C366),0)","v":0},{"$f":"IFERROR(SUMIFS(raw_annual_energy!$I:$I,raw_annual_energy!$D:$D,X$356,Lists!$S:$S,$C366)/SUMIFS(raw_resource_build!$R:$R,raw_resource_build!$A:$A,X$356,raw_resource_build!$E:$E,$C366),0)","v":0},{"$f":"IFERROR(SUMIFS(raw_annual_energy!$I:$I,raw_annual_energy!$D:$D,Y$356,Lists!$S:$S,$C366)/SUMIFS(raw_resource_build!$R:$R,raw_resource_build!$A:$A,Y$356,raw_resource_build!$E:$E,$C366),0)","v":0},{"$f":"IFERROR(SUMIFS(raw_annual_energy!$I:$I,raw_annual_energy!$D:$D,Z$356,Lists!$S:$S,$C366)/SUMIFS(raw_resource_build!$R:$R,raw_resource_build!$A:$A,Z$356,raw_resource_build!$E:$E,$C366),0)","v":0},{"$f":"IFERROR(SUMIFS(raw_annual_energy!$I:$I,raw_annual_energy!$D:$D,AA$356,Lists!$S:$S,$C366)/SUMIFS(raw_resource_build!$R:$R,raw_resource_build!$A:$A,AA$356,raw_resource_build!$E:$E,$C366),0)","v":0},{"$f":"IFERROR(SUMIFS(raw_annual_energy!$I:$I,raw_annual_energy!$D:$D,AB$356,Lists!$S:$S,$C366)/SUMIFS(raw_resource_build!$R:$R,raw_resource_build!$A:$A,AB$356,raw_resource_build!$E:$E,$C366),0)","v":0},{"$f":"IFERROR(SUMIFS(raw_annual_energy!$I:$I,raw_annual_energy!$D:$D,AC$356,Lists!$S:$S,$C366)/SUMIFS(raw_resource_build!$R:$R,raw_resource_build!$A:$A,AC$356,raw_resource_build!$E:$E,$C366),0)","v":0},{"$f":"IFERROR(SUMIFS(raw_annual_energy!$I:$I,raw_annual_energy!$D:$D,AD$356,Lists!$S:$S,$C366)/SUMIFS(raw_resource_build!$R:$R,raw_resource_build!$A:$A,AD$356,raw_resource_build!$E:$E,$C366),0)","v":0},{"$f":"IFERROR(SUMIFS(raw_annual_energy!$I:$I,raw_annual_energy!$D:$D,AE$356,Lists!$S:$S,$C366)/SUMIFS(raw_resource_build!$R:$R,raw_resource_build!$A:$A,AE$356,raw_resource_build!$E:$E,$C366),0)","v":0},{"$f":"IFERROR(SUMIFS(raw_annual_energy!$I:$I,raw_annual_energy!$D:$D,AF$356,Lists!$S:$S,$C366)/SUMIFS(raw_resource_build!$R:$R,raw_resource_build!$A:$A,AF$356,raw_resource_build!$E:$E,$C366),0)","v":0},{"$f":"IFERROR(SUMIFS(raw_annual_energy!$I:$I,raw_annual_energy!$D:$D,AG$356,Lists!$S:$S,$C366)/SUMIFS(raw_resource_build!$R:$R,raw_resource_build!$A:$A,AG$356,raw_resource_build!$E:$E,$C366),0)","v":0},{"$f":"IFERROR(SUMIFS(raw_annual_energy!$I:$I,raw_annual_energy!$D:$D,AH$356,Lists!$S:$S,$C366)/SUMIFS(raw_resource_build!$R:$R,raw_resource_build!$A:$A,AH$356,raw_resource_build!$E:$E,$C366),0)","v":0},{"$f":"IFERROR(SUMIFS(raw_annual_energy!$I:$I,raw_annual_energy!$D:$D,AI$356,Lists!$S:$S,$C366)/SUMIFS(raw_resource_build!$R:$R,raw_resource_build!$A:$A,AI$356,raw_resource_build!$E:$E,$C366),0)","v":0},{"$f":"IFERROR(SUMIFS(raw_annual_energy!$I:$I,raw_annual_energy!$D:$D,AJ$356,Lists!$S:$S,$C366)/SUMIFS(raw_resource_build!$R:$R,raw_resource_build!$A:$A,AJ$356,raw_resource_build!$E:$E,$C366),0)","v":0},{"$f":"IFERROR(SUMIFS(raw_annual_energy!$I:$I,raw_annual_energy!$D:$D,AK$356,Lists!$S:$S,$C366)/SUMIFS(raw_resource_build!$R:$R,raw_resource_build!$A:$A,AK$356,raw_resource_build!$E:$E,$C366),0)","v":0},{"$f":"IFERROR(SUMIFS(raw_annual_energy!$I:$I,raw_annual_energy!$D:$D,AL$356,Lists!$S:$S,$C366)/SUMIFS(raw_resource_build!$R:$R,raw_resource_build!$A:$A,AL$356,raw_resource_build!$E:$E,$C366),0)","v":0},{"$f":"IFERROR(SUMIFS(raw_annual_energy!$I:$I,raw_annual_energy!$D:$D,AM$356,Lists!$S:$S,$C366)/SUMIFS(raw_resource_build!$R:$R,raw_resource_build!$A:$A,AM$356,raw_resource_build!$E:$E,$C366),0)","v":0},{"$f":"IFERROR(SUMIFS(raw_annual_energy!$I:$I,raw_annual_energy!$D:$D,AN$356,Lists!$S:$S,$C366)/SUMIFS(raw_resource_build!$R:$R,raw_resource_build!$A:$A,AN$356,raw_resource_build!$E:$E,$C366),0)","v":0}]
[null,null,"Note: These are only the starts within the day. Since RESOLVE models each day independently, it does not capture any starts/stops in between days."]
[]
[]
[null,"Selected Renewables Summary"]
[]
[null,null,"Total Renewable Resource Summary"]
[null,null,"Resource Type","Unit",2015,2016,2017,2018,2019,2020,2021,2022,2023,2024,2025,2026,2027,2028,2029,2030,2031,2032,2033,2034,2035,2036,2037,2038,2039,2040,2041,2042,2043,2044,2045,2046,2047,2048,2049,2050]
[null,null,"Biomass","MW",{"$f":"SUMPRODUCT((ISNUMBER(SEARCH($C374,$C$397:$C$461)))*E$397:E$461)","v":0},{"$f":"SUMPRODUCT((ISNUMBER(SEARCH($C374,$C$397:$C$461)))*F$397:F$461)","v":0},{"$f":"SUMPRODUCT((ISNUMBER(SEARCH($C374,$C$397:$C$461)))*G$397:G$461)","v":0},{"$f":"SUMPRODUCT((ISNUMBER(SEARCH($C374,$C$397:$C$461)))*H$397:H$461)","v":0},{"$f":"SUMPRODUCT((ISNUMBER(SEARCH($C374,$C$397:$C$461)))*I$397:I$461)","v":0},{"$f":"SUMPRODUCT((ISNUMBER(SEARCH($C374,$C$397:$C$461)))*J$397:J$461)","v":0},{"$f":"SUMPRODUCT((ISNUMBER(SEARCH($C374,$C$397:$C$461)))*K$397:K$461)","v":0},{"$f":"SUMPRODUCT((ISNUMBER(SEARCH($C374,$C$397:$C$461)))*L$397:L$461)","v":0},{"$f":"SUMPRODUCT((ISNUMBER(SEARCH($C374,$C$397:$C$461)))*M$397:M$461)","v":0},{"$f":"SUMPRODUCT((ISNUMBER(SEARCH($C374,$C$397:$C$461)))*N$397:N$461)","v":0},{"$f":"SUMPRODUCT((ISNUMBER(SEARCH($C374,$C$397:$C$461)))*O$397:O$461)","v":0},{"$f":"SUMPRODUCT((ISNUMBER(SEARCH($C374,$C$397:$C$461)))*P$397:P$461)","v":0},{"$f":"SUMPRODUCT((ISNUMBER(SEARCH($C374,$C$397:$C$461)))*Q$397:Q$461)","v":0},{"$f":"SUMPRODUCT((ISNUMBER(SEARCH($C374,$C$397:$C$461)))*R$397:R$461)","v":0},{"$f":"SUMPRODUCT((ISNUMBER(SEARCH($C374,$C$397:$C$461)))*S$397:S$461)","v":0},{"$f":"SUMPRODUCT((ISNUMBER(SEARCH($C374,$C$397:$C$461)))*T$397:T$461)","v":0},{"$f":"SUMPRODUCT((ISNUMBER(SEARCH($C374,$C$397:$C$461)))*U$397:U$461)","v":0},{"$f":"SUMPRODUCT((ISNUMBER(SEARCH($C374,$C$397:$C$461)))*V$397:V$461)","v":0},{"$f":"SUMPRODUCT((ISNUMBER(SEARCH($C374,$C$397:$C$461)))*W$397:W$461)","v":0},{"$f":"SUMPRODUCT((ISNUMBER(SEARCH($C374,$C$397:$C$461)))*X$397:X$461)","v":0},{"$f":"SUMPRODUCT((ISNUMBER(SEARCH($C374,$C$397:$C$461)))*Y$397:Y$461)","v":0},{"$f":"SUMPRODUCT((ISNUMBER(SEARCH($C374,$C$397:$C$461)))*Z$397:Z$461)","v":0},{"$f":"SUMPRODUCT((ISNUMBER(SEARCH($C374,$C$397:$C$461)))*AA$397:AA$461)","v":0},{"$f":"SUMPRODUCT((ISNUMBER(SEARCH($C374,$C$397:$C$461)))*AB$397:AB$461)","v":0},{"$f":"SUMPRODUCT((ISNUMBER(SEARCH($C374,$C$397:$C$461)))*AC$397:AC$461)","v":0},{"$f":"SUMPRODUCT((ISNUMBER(SEARCH($C374,$C$397:$C$461)))*AD$397:AD$461)","v":0},{"$f":"SUMPRODUCT((ISNUMBER(SEARCH($C374,$C$397:$C$461)))*AE$397:AE$461)","v":0},{"$f":"SUMPRODUCT((ISNUMBER(SEARCH($C374,$C$397:$C$461)))*AF$397:AF$461)","v":0},{"$f":"SUMPRODUCT((ISNUMBER(SEARCH($C374,$C$397:$C$461)))*AG$397:AG$461)","v":0},{"$f":"SUMPRODUCT((ISNUMBER(SEARCH($C374,$C$397:$C$461)))*AH$397:AH$461)","v":0},{"$f":"SUMPRODUCT((ISNUMBER(SEARCH($C374,$C$397:$C$461)))*AI$397:AI$461)","v":1146.8499999999999},{"$f":"SUMPRODUCT((ISNUMBER(SEARCH($C374,$C$397:$C$461)))*AJ$397:AJ$461)","v":0},{"$f":"SUMPRODUCT((ISNUMBER(SEARCH($C374,$C$397:$C$461)))*AK$397:AK$461)","v":0},{"$f":"SUMPRODUCT((ISNUMBER(SEARCH($C374,$C$397:$C$461)))*AL$397:AL$461)","v":0},{"$f":"SUMPRODUCT((ISNUMBER(SEARCH($C374,$C$397:$C$461)))*AM$397:AM$461)","v":0},{"$f":"SUMPRODUCT((ISNUMBER(SEARCH($C374,$C$397:$C$461)))*AN$397:AN$461)","v":0}]
[null,null,"Geothermal","MW",{"$f":"SUMPRODUCT((ISNUMBER(SEARCH($C375,$C$397:$C$461)))*E$397:E$461)","v":0},{"$f":"SUMPRODUCT((ISNUMBER(SEARCH($C375,$C$397:$C$461)))*F$397:F$461)","v":0},{"$f":"SUMPRODUCT((ISNUMBER(SEARCH($C375,$C$397:$C$461)))*G$397:G$461)","v":0},{"$f":"SUMPRODUCT((ISNUMBER(SEARCH($C375,$C$397:$C$461)))*H$397:H$461)","v":0},{"$f":"SUMPRODUCT((ISNUMBER(SEARCH($C375,$C$397:$C$461)))*I$397:I$461)","v":0},{"$f":"SUMPRODUCT((ISNUMBER(SEARCH($C375,$C$397:$C$461)))*J$397:J$461)","v":0},{"$f":"SUMPRODUCT((ISNUMBER(SEARCH($C375,$C$397:$C$461)))*K$397:K$461)","v":0},{"$f":"SUMPRODUCT((ISNUMBER(SEARCH($C375,$C$397:$C$461)))*L$397:L$461)","v":0},{"$f":"SUMPRODUCT((ISNUMBER(SEARCH($C375,$C$397:$C$461)))*M$397:M$461)","v":0},{"$f":"SUMPRODUCT((ISNUMBER(SEARCH($C375,$C$397:$C$461)))*N$397:N$461)","v":135},{"$f":"SUMPRODUCT((ISNUMBER(SEARCH($C375,$C$397:$C$461)))*O$397:O$461)","v":0},{"$f":"SUMPRODUCT((ISNUMBER(SEARCH($C375,$C$397:$C$461)))*P$397:P$461)","v":135},{"$f":"SUMPRODUCT((ISNUMBER(SEARCH($C375,$C$397:$C$461)))*Q$397:Q$461)","v":0},{"$f":"SUMPRODUCT((ISNUMBER(SEARCH($C375,$C$397:$C$461)))*R$397:R$461)","v":0},{"$f":"SUMPRODUCT((ISNUMBER(SEARCH($C375,$C$397:$C$461)))*S$397:S$461)","v":0},{"$f":"SUMPRODUCT((ISNUMBER(SEARCH($C375,$C$397:$C$461)))*T$397:T$461)","v":135},{"$f":"SUMPRODUCT((ISNUMBER(SEARCH($C375,$C$397:$C$461)))*U$397:U$461)","v":0},{"$f":"SUMPRODUCT((ISNUMBER(SEARCH($C375,$C$397:$C$461)))*V$397:V$461)","v":0},{"$f":"SUMPRODUCT((ISNUMBER(SEARCH($C375,$C$397:$C$461)))*W$397:W$461)","v":0},{"$f":"SUMPRODUCT((ISNUMBER(SEARCH($C375,$C$397:$C$461)))*X$397:X$461)","v":0},{"$f":"SUMPRODUCT((ISNUMBER(SEARCH($C375,$C$397:$C$461)))*Y$397:Y$461)","v":0},{"$f":"SUMPRODUCT((ISNUMBER(SEARCH($C375,$C$397:$C$461)))*Z$397:Z$461)","v":0},{"$f":"SUMPRODUCT((ISNUMBER(SEARCH($C375,$C$397:$C$461)))*AA$397:AA$461)","v":0},{"$f":"SUMPRODUCT((ISNUMBER(SEARCH($C375,$C$397:$C$461)))*AB$397:AB$461)","v":0},{"$f":"SUMPRODUCT((ISNUMBER(SEARCH($C375,$C$397:$C$461)))*AC$397:AC$461)","v":0},{"$f":"SUMPRODUCT((ISNUMBER(SEARCH($C375,$C$397:$C$461)))*AD$397:AD$461)","v":0},{"$f":"SUMPRODUCT((ISNUMBER(SEARCH($C375,$C$397:$C$461)))*AE$397:AE$461)","v":0},{"$f":"SUMPRODUCT((ISNUMBER(SEARCH($C375,$C$397:$C$461)))*AF$397:AF$461)","v":0},{"$f":"SUMPRODUCT((ISNUMBER(SEARCH($C375,$C$397:$C$461)))*AG$397:AG$461)","v":0},{"$f":"SUMPRODUCT((ISNUMBER(SEARCH($C375,$C$397:$C$461)))*AH$397:AH$461)","v":0},{"$f":"SUMPRODUCT((ISNUMBER(SEARCH($C375,$C$397:$C$461)))*AI$397:AI$461)","v":2332.1},{"$f":"SUMPRODUCT((ISNUMBER(SEARCH($C375,$C$397:$C$461)))*AJ$397:AJ$461)","v":0},{"$f":"SUMPRODUCT((ISNUMBER(SEARCH($C375,$C$397:$C$461)))*AK$397:AK$461)","v":0},{"$f":"SUMPRODUCT((ISNUMBER(SEARCH($C375,$C$397:$C$461)))*AL$397:AL$461)","v":0},{"$f":"SUMPRODUCT((ISNUMBER(SEARCH($C375,$C$397:$C$461)))*AM$397:AM$461)","v":0},{"$f":"SUMPRODUCT((ISNUMBER(SEARCH($C375,$C$397:$C$461)))*AN$397:AN$461)","v":0}]
[null,null,"Solar","MW",{"$f":"SUMPRODUCT((ISNUMBER(SEARCH($C376,$C$397:$C$461)))*E$397:E$461)","v":0},{"$f":"SUMPRODUCT((ISNUMBER(SEARCH($C376,$C$397:$C$461)))*F$397:F$461)","v":0},{"$f":"SUMPRODUCT((ISNUMBER(SEARCH($C376,$C$397:$C$461)))*G$397:G$461)","v":0},{"$f":"SUMPRODUCT((ISNUMBER(SEARCH($C376,$C$397:$C$461)))*H$397:H$461)","v":0},{"$f":"SUMPRODUCT((ISNUMBER(SEARCH($C376,$C$397:$C$461)))*I$397:I$461)","v":0},{"$f":"SUMPRODUCT((ISNUMBER(SEARCH($C376,$C$397:$C$461)))*J$397:J$461)","v":2000},{"$f":"SUMPRODUCT((ISNUMBER(SEARCH($C376,$C$397:$C$461)))*K$397:K$461)","v":4000},{"$f":"SUMPRODUCT((ISNUMBER(SEARCH($C376,$C$397:$C$461)))*L$397:L$461)","v":6000},{"$f":"SUMPRODUCT((ISNUMBER(SEARCH($C376,$C$397:$C$461)))*M$397:M$461)","v":7999.9999999999991},{"$f":"SUMPRODUCT((ISNUMBER(SEARCH($C376,$C$397:$C$461)))*N$397:N$461)","v":10731.52},{"$f":"SUMPRODUCT((ISNUMBER(SEARCH($C376,$C$397:$C$461)))*O$397:O$461)","v":0},{"$f":"SUMPRODUCT((ISNUMBER(SEARCH($C376,$C$397:$C$461)))*P$397:P$461)","v":15947.49},{"$f":"SUMPRODUCT((ISNUMBER(SEARCH($C376,$C$397:$C$461)))*Q$397:Q$461)","v":0},{"$f":"SUMPRODUCT((ISNUMBER(SEARCH($C376,$C$397:$C$461)))*R$397:R$461)","v":0},{"$f":"SUMPRODUCT((ISNUMBER(SEARCH($C376,$C$397:$C$461)))*S$397:S$461)","v":0},{"$f":"SUMPRODUCT((ISNUMBER(SEARCH($C376,$C$397:$C$461)))*T$397:T$461)","v":26259.069999999996},{"$f":"SUMPRODUCT((ISNUMBER(SEARCH($C376,$C$397:$C$461)))*U$397:U$461)","v":0},{"$f":"SUMPRODUCT((ISNUMBER(SEARCH($C376,$C$397:$C$461)))*V$397:V$461)","v":0},{"$f":"SUMPRODUCT((ISNUMBER(SEARCH($C376,$C$397:$C$461)))*W$397:W$461)","v":0},{"$f":"SUMPRODUCT((ISNUMBER(SEARCH($C376,$C$397:$C$461)))*X$397:X$461)","v":0},{"$f":"SUMPRODUCT((ISNUMBER(SEARCH($C376,$C$397:$C$461)))*Y$397:Y$461)","v":0},{"$f":"SUMPRODUCT((ISNUMBER(SEARCH($C376,$C$397:$C$461)))*Z$397:Z$461)","v":0},{"$f":"SUMPRODUCT((ISNUMBER(SEARCH($C376,$C$397:$C$461)))*AA$397:AA$461)","v":0},{"$f":"SUMPRODUCT((ISNUMBER(SEARCH($C376,$C$397:$C$461)))*AB$397:AB$461)","v":0},{"$f":"SUMPRODUCT((ISNUMBER(SEARCH($C376,$C$397:$C$461)))*AC$397:AC$461)","v":0},{"$f":"SUMPRODUCT((ISNUMBER(SEARCH($C376,$C$397:$C$461)))*AD$397:AD$461)","v":0},{"$f":"SUMPRODUCT((ISNUMBER(SEARCH($C376,$C$397:$C$461)))*AE$397:AE$461)","v":0},{"$f":"SUMPRODUCT((ISNUMBER(SEARCH($C376,$C$397:$C$461)))*AF$397:AF$461)","v":0},{"$f":"SUMPRODUCT((ISNUMBER(SEARCH($C376,$C$397:$C$461)))*AG$397:AG$461)","v":0},{"$f":"SUMPRODUCT((ISNUMBER(SEARCH($C376,$C$397:$C$461)))*AH$397:AH$461)","v":0},{"$f":"SUMPRODUCT((ISNUMBER(SEARCH($C376,$C$397:$C$461)))*AI$397:AI$461)","v":116508.78},{"$f":"SUMPRODUCT((ISNUMBER(SEARCH($C376,$C$397:$C$461)))*AJ$397:AJ$461)","v":0},{"$f":"SUMPRODUCT((ISNUMBER(SEARCH($C376,$C$397:$C$461)))*AK$397:AK$461)","v":0},{"$f":"SUMPRODUCT((ISNUMBER(SEARCH($C376,$C$397:$C$461)))*AL$397:AL$461)","v":0},{"$f":"SUMPRODUCT((ISNUMBER(SEARCH($C376,$C$397:$C$461)))*AM$397:AM$461)","v":0},{"$f":"SUMPRODUCT((ISNUMBER(SEARCH($C376,$C$397:$C$461)))*AN$397:AN$461)","v":0}]
[null,null,"Wind","MW",{"$f":"SUMPRODUCT((ISNUMBER(SEARCH($C377,$C$397:$C$461)))*E$397:E$461)","v":0},{"$f":"SUMPRODUCT((ISNUMBER(SEARCH($C377,$C$397:$C$461)))*F$397:F$461)","v":0},{"$f":"SUMPRODUCT((ISNUMBER(SEARCH($C377,$C$397:$C$461)))*G$397:G$461)","v":0},{"$f":"SUMPRODUCT((ISNUMBER(SEARCH($C377,$C$397:$C$461)))*H$397:H$461)","v":0},{"$f":"SUMPRODUCT((ISNUMBER(SEARCH($C377,$C$397:$C$461)))*I$397:I$461)","v":0},{"$f":"SUMPRODUCT((ISNUMBER(SEARCH($C377,$C$397:$C$461)))*J$397:J$461)","v":0},{"$f":"SUMPRODUCT((ISNUMBER(SEARCH($C377,$C$397:$C$461)))*K$397:K$461)","v":34},{"$f":"SUMPRODUCT((ISNUMBER(SEARCH($C377,$C$397:$C$461)))*L$397:L$461)","v":2931.83},{"$f":"SUMPRODUCT((ISNUMBER(SEARCH($C377,$C$397:$C$461)))*M$397:M$461)","v":3218.83},{"$f":"SUMPRODUCT((ISNUMBER(SEARCH($C377,$C$397:$C$461)))*N$397:N$461)","v":3311},{"$f":"SUMPRODUCT((ISNUMBER(SEARCH($C377,$C$397:$C$461)))*O$397:O$461)","v":0},{"$f":"SUMPRODUCT((ISNUMBER(SEARCH($C377,$C$397:$C$461)))*P$397:P$461)","v":3311},{"$f":"SUMPRODUCT((ISNUMBER(SEARCH($C377,$C$397:$C$461)))*Q$397:Q$461)","v":0},{"$f":"SUMPRODUCT((ISNUMBER(SEARCH($C377,$C$397:$C$461)))*R$397:R$461)","v":0},{"$f":"SUMPRODUCT((ISNUMBER(SEARCH($C377,$C$397:$C$461)))*S$397:S$461)","v":0},{"$f":"SUMPRODUCT((ISNUMBER(SEARCH($C377,$C$397:$C$461)))*T$397:T$461)","v":6037.8},{"$f":"SUMPRODUCT((ISNUMBER(SEARCH($C377,$C$397:$C$461)))*U$397:U$461)","v":0},{"$f":"SUMPRODUCT((ISNUMBER(SEARCH($C377,$C$397:$C$461)))*V$397:V$461)","v":0},{"$f":"SUMPRODUCT((ISNUMBER(SEARCH($C377,$C$397:$C$461)))*W$397:W$461)","v":0},{"$f":"SUMPRODUCT((ISNUMBER(SEARCH($C377,$C$397:$C$461)))*X$397:X$461)","v":0},{"$f":"SUMPRODUCT((ISNUMBER(SEARCH($C377,$C$397:$C$461)))*Y$397:Y$461)","v":0},{"$f":"SUMPRODUCT((ISNUMBER(SEARCH($C377,$C$397:$C$461)))*Z$397:Z$461)","v":0},{"$f":"SUMPRODUCT((ISNUMBER(SEARCH($C377,$C$397:$C$461)))*AA$397:AA$461)","v":0},{"$f":"SUMPRODUCT((ISNUMBER(SEARCH($C377,$C$397:$C$461)))*AB$397:AB$461)","v":0},{"$f":"SUMPRODUCT((ISNUMBER(SEARCH($C377,$C$397:$C$461)))*AC$397:AC$461)","v":0},{"$f":"SUMPRODUCT((ISNUMBER(SEARCH($C377,$C$397:$C$461)))*AD$397:AD$461)","v":0},{"$f":"SUMPRODUCT((ISNUMBER(SEARCH($C377,$C$397:$C$461)))*AE$397:AE$461)","v":0},{"$f":"SUMPRODUCT((ISNUMBER(SEARCH($C377,$C$397:$C$461)))*AF$397:AF$461)","v":0},{"$f":"SUMPRODUCT((ISNUMBER(SEARCH($C377,$C$397:$C$461)))*AG$397:AG$461)","v":0},{"$f":"SUMPRODUCT((ISNUMBER(SEARCH($C377,$C$397:$C$461)))*AH$397:AH$461)","v":0},{"$f":"SUMPRODUCT((ISNUMBER(SEARCH($C377,$C$397:$C$461)))*AI$397:AI$461)","v":8200.93},{"$f":"SUMPRODUCT((ISNUMBER(SEARCH($C377,$C$397:$C$461)))*AJ$397:AJ$461)","v":0},{"$f":"SUMPRODUCT((ISNUMBER(SEARCH($C377,$C$397:$C$461)))*AK$397:AK$461)","v":0},{"$f":"SUMPRODUCT((ISNUMBER(SEARCH($C377,$C$397:$C$461)))*AL$397:AL$461)","v":0},{"$f":"SUMPRODUCT((ISNUMBER(SEARCH($C377,$C$397:$C$461)))*AM$397:AM$461)","v":0},{"$f":"SUMPRODUCT((ISNUMBER(SEARCH($C377,$C$397:$C$461)))*AN$397:AN$461)","v":0}]
[]
[null,null,"FCDS Renewable Resource Summary"]
[null,null,"Resource Type","Unit",2015,2016,2017,2018,2019,2020,2021,2022,2023,2024,2025,2026,2027,2028,2029,2030,2031,2032,2033,2034,2035,2036,2037,2038,2039,2040,2041,2042,2043,2044,2045,2046,2047,2048,2049,2050]
[null,null,"Biomass","MW",{"$f":"SUMPRODUCT((ISNUMBER(SEARCH($C381,$C$470:$C$534)))*E$470:E$534)","v":0},{"$f":"SUMPRODUCT((ISNUMBER(SEARCH($C381,$C$470:$C$534)))*F$470:F$534)","v":0},{"$f":"SUMPRODUCT((ISNUMBER(SEARCH($C381,$C$470:$C$534)))*G$470:G$534)","v":0},{"$f":"SUMPRODUCT((ISNUMBER(SEARCH($C381,$C$470:$C$534)))*H$470:H$534)","v":0},{"$f":"SUMPRODUCT((ISNUMBER(SEARCH($C381,$C$470:$C$534)))*I$470:I$534)","v":0},{"$f":"SUMPRODUCT((ISNUMBER(SEARCH($C381,$C$470:$C$534)))*J$470:J$534)","v":0},{"$f":"SUMPRODUCT((ISNUMBER(SEARCH($C381,$C$470:$C$534)))*K$470:K$534)","v":0},{"$f":"SUMPRODUCT((ISNUMBER(SEARCH($C381,$C$470:$C$534)))*L$470:L$534)","v":0},{"$f":"SUMPRODUCT((ISNUMBER(SEARCH($C381,$C$470:$C$534)))*M$470:M$534)","v":0},{"$f":"SUMPRODUCT((ISNUMBER(SEARCH($C381,$C$470:$C$534)))*N$470:N$534)","v":0},{"$f":"SUMPRODUCT((ISNUMBER(SEARCH($C381,$C$470:$C$534)))*O$470:O$534)","v":0},{"$f":"SUMPRODUCT((ISNUMBER(SEARCH($C381,$C$470:$C$534)))*P$470:P$534)","v":0},{"$f":"SUMPRODUCT((ISNUMBER(SEARCH($C381,$C$470:$C$534)))*Q$470:Q$534)","v":0},{"$f":"SUMPRODUCT((ISNUMBER(SEARCH($C381,$C$470:$C$534)))*R$470:R$534)","v":0},{"$f":"SUMPRODUCT((ISNUMBER(SEARCH($C381,$C$470:$C$534)))*S$470:S$534)","v":0},{"$f":"SUMPRODUCT((ISNUMBER(SEARCH($C381,$C$470:$C$534)))*T$470:T$534)","v":0},{"$f":"SUMPRODUCT((ISNUMBER(SEARCH($C381,$C$470:$C$534)))*U$470:U$534)","v":0},{"$f":"SUMPRODUCT((ISNUMBER(SEARCH($C381,$C$470:$C$534)))*V$470:V$534)","v":0},{"$f":"SUMPRODUCT((ISNUMBER(SEARCH($C381,$C$470:$C$534)))*W$470:W$534)","v":0},{"$f":"SUMPRODUCT((ISNUMBER(SEARCH($C381,$C$470:$C$534)))*X$470:X$534)","v":0},{"$f":"SUMPRODUCT((ISNUMBER(SEARCH($C381,$C$470:$C$534)))*Y$470:Y$534)","v":0},{"$f":"SUMPRODUCT((ISNUMBER(SEARCH($C381,$C$470:$C$534)))*Z$470:Z$534)","v":0},{"$f":"SUMPRODUCT((ISNUMBER(SEARCH($C381,$C$470:$C$534)))*AA$470:AA$534)","v":0},{"$f":"SUMPRODUCT((ISNUMBER(SEARCH($C381,$C$470:$C$534)))*AB$470:AB$534)","v":0},{"$f":"SUMPRODUCT((ISNUMBER(SEARCH($C381,$C$470:$C$534)))*AC$470:AC$534)","v":0},{"$f":"SUMPRODUCT((ISNUMBER(SEARCH($C381,$C$470:$C$534)))*AD$470:AD$534)","v":0},{"$f":"SUMPRODUCT((ISNUMBER(SEARCH($C381,$C$470:$C$534)))*AE$470:AE$534)","v":0},{"$f":"SUMPRODUCT((ISNUMBER(SEARCH($C381,$C$470:$C$534)))*AF$470:AF$534)","v":0},{"$f":"SUMPRODUCT((ISNUMBER(SEARCH($C381,$C$470:$C$534)))*AG$470:AG$534)","v":0},{"$f":"SUMPRODUCT((ISNUMBER(SEARCH($C381,$C$470:$C$534)))*AH$470:AH$534)","v":0},{"$f":"SUMPRODUCT((ISNUMBER(SEARCH($C381,$C$470:$C$534)))*AI$470:AI$534)","v":1146.8499999999999},{"$f":"SUMPRODUCT((ISNUMBER(SEARCH($C381,$C$470:$C$534)))*AJ$470:AJ$534)","v":0},{"$f":"SUMPRODUCT((ISNUMBER(SEARCH($C381,$C$470:$C$534)))*AK$470:AK$534)","v":0},{"$f":"SUMPRODUCT((ISNUMBER(SEARCH($C381,$C$470:$C$534)))*AL$470:AL$534)","v":0},{"$f":"SUMPRODUCT((ISNUMBER(SEARCH($C381,$C$470:$C$534)))*AM$470:AM$534)","v":0},{"$f":"SUMPRODUCT((ISNUMBER(SEARCH($C381,$C$470:$C$534)))*AN$470:AN$534)","v":0}]
[null,null,"Geothermal","MW",{"$f":"SUMPRODUCT((ISNUMBER(SEARCH($C382,$C$470:$C$534)))*E$470:E$534)","v":0},{"$f":"SUMPRODUCT((ISNUMBER(SEARCH($C382,$C$470:$C$534)))*F$470:F$534)","v":0},{"$f":"SUMPRODUCT((ISNUMBER(SEARCH($C382,$C$470:$C$534)))*G$470:G$534)","v":0},{"$f":"SUMPRODUCT((ISNUMBER(SEARCH($C382,$C$470:$C$534)))*H$470:H$534)","v":0},{"$f":"SUMPRODUCT((ISNUMBER(SEARCH($C382,$C$470:$C$534)))*I$470:I$534)","v":0},{"$f":"SUMPRODUCT((ISNUMBER(SEARCH($C382,$C$470:$C$534)))*J$470:J$534)","v":0},{"$f":"SUMPRODUCT((ISNUMBER(SEARCH($C382,$C$470:$C$534)))*K$470:K$534)","v":0},{"$f":"SUMPRODUCT((ISNUMBER(SEARCH($C382,$C$470:$C$534)))*L$470:L$534)","v":0},{"$f":"SUMPRODUCT((ISNUMBER(SEARCH($C382,$C$470:$C$534)))*M$470:M$534)","v":0},{"$f":"SUMPRODUCT((ISNUMBER(SEARCH($C382,$C$470:$C$534)))*N$470:N$534)","v":135},{"$f":"SUMPRODUCT((ISNUMBER(SEARCH($C382,$C$470:$C$534)))*O$470:O$534)","v":0},{"$f":"SUMPRODUCT((ISNUMBER(SEARCH($C382,$C$470:$C$534)))*P$470:P$534)","v":135},{"$f":"SUMPRODUCT((ISNUMBER(SEARCH($C382,$C$470:$C$534)))*Q$470:Q$534)","v":0},{"$f":"SUMPRODUCT((ISNUMBER(SEARCH($C382,$C$470:$C$534)))*R$470:R$534)","v":0},{"$f":"SUMPRODUCT((ISNUMBER(SEARCH($C382,$C$470:$C$534)))*S$470:S$534)","v":0},{"$f":"SUMPRODUCT((ISNUMBER(SEARCH($C382,$C$470:$C$534)))*T$470:T$534)","v":135},{"$f":"SUMPRODUCT((ISNUMBER(SEARCH($C382,$C$470:$C$534)))*U$470:U$534)","v":0},{"$f":"SUMPRODUCT((ISNUMBER(SEARCH($C382,$C$470:$C$534)))*V$470:V$534)","v":0},{"$f":"SUMPRODUCT((ISNUMBER(SEARCH($C382,$C$470:$C$534)))*W$470:W$534)","v":0},{"$f":"SUMPRODUCT((ISNUMBER(SEARCH($C382,$C$470:$C$534)))*X$470:X$534)","v":0},{"$f":"SUMPRODUCT((ISNUMBER(SEARCH($C382,$C$470:$C$534)))*Y$470:Y$534)","v":0},{"$f":"SUMPRODUCT((ISNUMBER(SEARCH($C382,$C$470:$C$534)))*Z$470:Z$534)","v":0},{"$f":"SUMPRODUCT((ISNUMBER(SEARCH($C382,$C$470:$C$534)))*AA$470:AA$534)","v":0},{"$f":"SUMPRODUCT((ISNUMBER(SEARCH($C382,$C$470:$C$534)))*AB$470:AB$534)","v":0},{"$f":"SUMPRODUCT((ISNUMBER(SEARCH($C382,$C$470:$C$534)))*AC$470:AC$534)","v":0},{"$f":"SUMPRODUCT((ISNUMBER(SEARCH($C382,$C$470:$C$534)))*AD$470:AD$534)","v":0},{"$f":"SUMPRODUCT((ISNUMBER(SEARCH($C382,$C$470:$C$534)))*AE$470:AE$534)","v":0},{"$f":"SUMPRODUCT((ISNUMBER(SEARCH($C382,$C$470:$C$534)))*AF$470:AF$534)","v":0},{"$f":"SUMPRODUCT((ISNUMBER(SEARCH($C382,$C$470:$C$534)))*AG$470:AG$534)","v":0},{"$f":"SUMPRODUCT((ISNUMBER(SEARCH($C382,$C$470:$C$534)))*AH$470:AH$534)","v":0},{"$f":"SUMPRODUCT((ISNUMBER(SEARCH($C382,$C$470:$C$534)))*AI$470:AI$534)","v":1806.9099999999999},{"$f":"SUMPRODUCT((ISNUMBER(SEARCH($C382,$C$470:$C$534)))*AJ$470:AJ$534)","v":0},{"$f":"SUMPRODUCT((ISNUMBER(SEARCH($C382,$C$470:$C$534)))*AK$470:AK$534)","v":0},{"$f":"SUMPRODUCT((ISNUMBER(SEARCH($C382,$C$470:$C$534)))*AL$470:AL$534)","v":0},{"$f":"SUMPRODUCT((ISNUMBER(SEARCH($C382,$C$470:$C$534)))*AM$470:AM$534)","v":0},{"$f":"SUMPRODUCT((ISNUMBER(SEARCH($C382,$C$470:$C$534)))*AN$470:AN$534)","v":0}]
[null,null,"Solar","MW",{"$f":"SUMPRODUCT((ISNUMBER(SEARCH($C383,$C$470:$C$534)))*E$470:E$534)","v":0},{"$f":"SUMPRODUCT((ISNUMBER(SEARCH($C383,$C$470:$C$534)))*F$470:F$534)","v":0},{"$f":"SUMPRODUCT((ISNUMBER(SEARCH($C383,$C$470:$C$534)))*G$470:G$534)","v":0},{"$f":"SUMPRODUCT((ISNUMBER(SEARCH($C383,$C$470:$C$534)))*H$470:H$534)","v":0},{"$f":"SUMPRODUCT((ISNUMBER(SEARCH($C383,$C$470:$C$534)))*I$470:I$534)","v":0},{"$f":"SUMPRODUCT((ISNUMBER(SEARCH($C383,$C$470:$C$534)))*J$470:J$534)","v":2000},{"$f":"SUMPRODUCT((ISNUMBER(SEARCH($C383,$C$470:$C$534)))*K$470:K$534)","v":4000},{"$f":"SUMPRODUCT((ISNUMBER(SEARCH($C383,$C$470:$C$534)))*L$470:L$534)","v":5200},{"$f":"SUMPRODUCT((ISNUMBER(SEARCH($C383,$C$470:$C$534)))*M$470:M$534)","v":7199.9999999999991},{"$f":"SUMPRODUCT((ISNUMBER(SEARCH($C383,$C$470:$C$534)))*N$470:N$534)","v":7381.5199999999995},{"$f":"SUMPRODUCT((ISNUMBER(SEARCH($C383,$C$470:$C$534)))*O$470:O$534)","v":0},{"$f":"SUMPRODUCT((ISNUMBER(SEARCH($C383,$C$470:$C$534)))*P$470:P$534)","v":8880.51},{"$f":"SUMPRODUCT((ISNUMBER(SEARCH($C383,$C$470:$C$534)))*Q$470:Q$534)","v":0},{"$f":"SUMPRODUCT((ISNUMBER(SEARCH($C383,$C$470:$C$534)))*R$470:R$534)","v":0},{"$f":"SUMPRODUCT((ISNUMBER(SEARCH($C383,$C$470:$C$534)))*S$470:S$534)","v":0},{"$f":"SUMPRODUCT((ISNUMBER(SEARCH($C383,$C$470:$C$534)))*T$470:T$534)","v":16626.09},{"$f":"SUMPRODUCT((ISNUMBER(SEARCH($C383,$C$470:$C$534)))*U$470:U$534)","v":0},{"$f":"SUMPRODUCT((ISNUMBER(SEARCH($C383,$C$470:$C$534)))*V$470:V$534)","v":0},{"$f":"SUMPRODUCT((ISNUMBER(SEARCH($C383,$C$470:$C$534)))*W$470:W$534)","v":0},{"$f":"SUMPRODUCT((ISNUMBER(SEARCH($C383,$C$470:$C$534)))*X$470:X$534)","v":0},{"$f":"SUMPRODUCT((ISNUMBER(SEARCH($C383,$C$470:$C$534)))*Y$470:Y$534)","v":0},{"$f":"SUMPRODUCT((ISNUMBER(SEARCH($C383,$C$470:$C$534)))*Z$470:Z$534)","v":0},{"$f":"SUMPRODUCT((ISNUMBER(SEARCH($C383,$C$470:$C$534)))*AA$470:AA$534)","v":0},{"$f":"SUMPRODUCT((ISNUMBER(SEARCH($C383,$C$470:$C$534)))*AB$470:AB$534)","v":0},{"$f":"SUMPRODUCT((ISNUMBER(SEARCH($C383,$C$470:$C$534)))*AC$470:AC$534)","v":0},{"$f":"SUMPRODUCT((ISNUMBER(SEARCH($C383,$C$470:$C$534)))*AD$470:AD$534)","v":0},{"$f":"SUMPRODUCT((ISNUMBER(SEARCH($C383,$C$470:$C$534)))*AE$470:AE$534)","v":0},{"$f":"SUMPRODUCT((ISNUMBER(SEARCH($C383,$C$470:$C$534)))*AF$470:AF$534)","v":0},{"$f":"SUMPRODUCT((ISNUMBER(SEARCH($C383,$C$470:$C$534)))*AG$470:AG$534)","v":0},{"$f":"SUMPRODUCT((ISNUMBER(SEARCH($C383,$C$470:$C$534)))*AH$470:AH$534)","v":0},{"$f":"SUMPRODUCT((ISNUMBER(SEARCH($C383,$C$470:$C$534)))*AI$470:AI$534)","v":106875.8},{"$f":"SUMPRODUCT((ISNUMBER(SEARCH($C383,$C$470:$C$534)))*AJ$470:AJ$534)","v":0},{"$f":"SUMPRODUCT((ISNUMBER(SEARCH($C383,$C$470:$C$534)))*AK$470:AK$534)","v":0},{"$f":"SUMPRODUCT((ISNUMBER(SEARCH($C383,$C$470:$C$534)))*AL$470:AL$534)","v":0},{"$f":"SUMPRODUCT((ISNUMBER(SEARCH($C383,$C$470:$C$534)))*AM$470:AM$534)","v":0},{"$f":"SUMPRODUCT((ISNUMBER(SEARCH($C383,$C$470:$C$534)))*AN$470:AN$534)","v":0}]
[null,null,"Wind","MW",{"$f":"SUMPRODUCT((ISNUMBER(SEARCH($C384,$C$470:$C$534)))*E$470:E$534)","v":0},{"$f":"SUMPRODUCT((ISNUMBER(SEARCH($C384,$C$470:$C$534)))*F$470:F$534)","v":0},{"$f":"SUMPRODUCT((ISNUMBER(SEARCH($C384,$C$470:$C$534)))*G$470:G$534)","v":0},{"$f":"SUMPRODUCT((ISNUMBER(SEARCH($C384,$C$470:$C$534)))*H$470:H$534)","v":0},{"$f":"SUMPRODUCT((ISNUMBER(SEARCH($C384,$C$470:$C$534)))*I$470:I$534)","v":0},{"$f":"SUMPRODUCT((ISNUMBER(SEARCH($C384,$C$470:$C$534)))*J$470:J$534)","v":0},{"$f":"SUMPRODUCT((ISNUMBER(SEARCH($C384,$C$470:$C$534)))*K$470:K$534)","v":0},{"$f":"SUMPRODUCT((ISNUMBER(SEARCH($C384,$C$470:$C$534)))*L$470:L$534)","v":2897.83},{"$f":"SUMPRODUCT((ISNUMBER(SEARCH($C384,$C$470:$C$534)))*M$470:M$534)","v":3184.83},{"$f":"SUMPRODUCT((ISNUMBER(SEARCH($C384,$C$470:$C$534)))*N$470:N$534)","v":3277},{"$f":"SUMPRODUCT((ISNUMBER(SEARCH($C384,$C$470:$C$534)))*O$470:O$534)","v":0},{"$f":"SUMPRODUCT((ISNUMBER(SEARCH($C384,$C$470:$C$534)))*P$470:P$534)","v":3277},{"$f":"SUMPRODUCT((ISNUMBER(SEARCH($C384,$C$470:$C$534)))*Q$470:Q$534)","v":0},{"$f":"SUMPRODUCT((ISNUMBER(SEARCH($C384,$C$470:$C$534)))*R$470:R$534)","v":0},{"$f":"SUMPRODUCT((ISNUMBER(SEARCH($C384,$C$470:$C$534)))*S$470:S$534)","v":0},{"$f":"SUMPRODUCT((ISNUMBER(SEARCH($C384,$C$470:$C$534)))*T$470:T$534)","v":5495.97},{"$f":"SUMPRODUCT((ISNUMBER(SEARCH($C384,$C$470:$C$534)))*U$470:U$534)","v":0},{"$f":"SUMPRODUCT((ISNUMBER(SEARCH($C384,$C$470:$C$534)))*V$470:V$534)","v":0},{"$f":"SUMPRODUCT((ISNUMBER(SEARCH($C384,$C$470:$C$534)))*W$470:W$534)","v":0},{"$f":"SUMPRODUCT((ISNUMBER(SEARCH($C384,$C$470:$C$534)))*X$470:X$534)","v":0},{"$f":"SUMPRODUCT((ISNUMBER(SEARCH($C384,$C$470:$C$534)))*Y$470:Y$534)","v":0},{"$f":"SUMPRODUCT((ISNUMBER(SEARCH($C384,$C$470:$C$534)))*Z$470:Z$534)","v":0},{"$f":"SUMPRODUCT((ISNUMBER(SEARCH($C384,$C$470:$C$534)))*AA$470:AA$534)","v":0},{"$f":"SUMPRODUCT((ISNUMBER(SEARCH($C384,$C$470:$C$534)))*AB$470:AB$534)","v":0},{"$f":"SUMPRODUCT((ISNUMBER(SEARCH($C384,$C$470:$C$534)))*AC$470:AC$534)","v":0},{"$f":"SUMPRODUCT((ISNUMBER(SEARCH($C384,$C$470:$C$534)))*AD$470:AD$534)","v":0},{"$f":"SUMPRODUCT((ISNUMBER(SEARCH($C384,$C$470:$C$534)))*AE$470:AE$534)","v":0},{"$f":"SUMPRODUCT((ISNUMBER(SEARCH($C384,$C$470:$C$534)))*AF$470:AF$534)","v":0},{"$f":"SUMPRODUCT((ISNUMBER(SEARCH($C384,$C$470:$C$534)))*AG$470:AG$534)","v":0},{"$f":"SUMPRODUCT((ISNUMBER(SEARCH($C384,$C$470:$C$534)))*AH$470:AH$534)","v":0},{"$f":"SUMPRODUCT((ISNUMBER(SEARCH($C384,$C$470:$C$534)))*AI$470:AI$534)","v":7659.1},{"$f":"SUMPRODUCT((ISNUMBER(SEARCH($C384,$C$470:$C$534)))*AJ$470:AJ$534)","v":0},{"$f":"SUMPRODUCT((ISNUMBER(SEARCH($C384,$C$470:$C$534)))*AK$470:AK$534)","v":0},{"$f":"SUMPRODUCT((ISNUMBER(SEARCH($C384,$C$470:$C$534)))*AL$470:AL$534)","v":0},{"$f":"SUMPRODUCT((ISNUMBER(SEARCH($C384,$C$470:$C$534)))*AM$470:AM$534)","v":0},{"$f":"SUMPRODUCT((ISNUMBER(SEARCH($C384,$C$470:$C$534)))*AN$470:AN$534)","v":0}]
[]
[null,null,"EO Renewable Resource Summary"]
[null,null,"Resource Type","Unit",2015,2016,2017,2018,2019,2020,2021,2022,2023,2024,2025,2026,2027,2028,2029,2030,2031,2032,2033,2034,2035,2036,2037,2038,2039,2040,2041,2042,2043,2044,2045,2046,2047,2048,2049,2050]
[null,null,"Biomass","MW",{"$f":"SUMPRODUCT((ISNUMBER(SEARCH($C388,$C$543:$C$607)))*E$543:E$607)","v":0},{"$f":"SUMPRODUCT((ISNUMBER(SEARCH($C388,$C$543:$C$607)))*F$543:F$607)","v":0},{"$f":"SUMPRODUCT((ISNUMBER(SEARCH($C388,$C$543:$C$607)))*G$543:G$607)","v":0},{"$f":"SUMPRODUCT((ISNUMBER(SEARCH($C388,$C$543:$C$607)))*H$543:H$607)","v":0},{"$f":"SUMPRODUCT((ISNUMBER(SEARCH($C388,$C$543:$C$607)))*I$543:I$607)","v":0},{"$f":"SUMPRODUCT((ISNUMBER(SEARCH($C388,$C$543:$C$607)))*J$543:J$607)","v":0},{"$f":"SUMPRODUCT((ISNUMBER(SEARCH($C388,$C$543:$C$607)))*K$543:K$607)","v":0},{"$f":"SUMPRODUCT((ISNUMBER(SEARCH($C388,$C$543:$C$607)))*L$543:L$607)","v":0},{"$f":"SUMPRODUCT((ISNUMBER(SEARCH($C388,$C$543:$C$607)))*M$543:M$607)","v":0},{"$f":"SUMPRODUCT((ISNUMBER(SEARCH($C388,$C$543:$C$607)))*N$543:N$607)","v":0},{"$f":"SUMPRODUCT((ISNUMBER(SEARCH($C388,$C$543:$C$607)))*O$543:O$607)","v":0},{"$f":"SUMPRODUCT((ISNUMBER(SEARCH($C388,$C$543:$C$607)))*P$543:P$607)","v":0},{"$f":"SUMPRODUCT((ISNUMBER(SEARCH($C388,$C$543:$C$607)))*Q$543:Q$607)","v":0},{"$f":"SUMPRODUCT((ISNUMBER(SEARCH($C388,$C$543:$C$607)))*R$543:R$607)","v":0},{"$f":"SUMPRODUCT((ISNUMBER(SEARCH($C388,$C$543:$C$607)))*S$543:S$607)","v":0},{"$f":"SUMPRODUCT((ISNUMBER(SEARCH($C388,$C$543:$C$607)))*T$543:T$607)","v":0},{"$f":"SUMPRODUCT((ISNUMBER(SEARCH($C388,$C$543:$C$607)))*U$543:U$607)","v":0},{"$f":"SUMPRODUCT((ISNUMBER(SEARCH($C388,$C$543:$C$607)))*V$543:V$607)","v":0},{"$f":"SUMPRODUCT((ISNUMBER(SEARCH($C388,$C$543:$C$607)))*W$543:W$607)","v":0},{"$f":"SUMPRODUCT((ISNUMBER(SEARCH($C388,$C$543:$C$607)))*X$543:X$607)","v":0},{"$f":"SUMPRODUCT((ISNUMBER(SEARCH($C388,$C$543:$C$607)))*Y$543:Y$607)","v":0},{"$f":"SUMPRODUCT((ISNUMBER(SEARCH($C388,$C$543:$C$607)))*Z$543:Z$607)","v":0},{"$f":"SUMPRODUCT((ISNUMBER(SEARCH($C388,$C$543:$C$607)))*AA$543:AA$607)","v":0},{"$f":"SUMPRODUCT((ISNUMBER(SEARCH($C388,$C$543:$C$607)))*AB$543:AB$607)","v":0},{"$f":"SUMPRODUCT((ISNUMBER(SEARCH($C388,$C$543:$C$607)))*AC$543:AC$607)","v":0},{"$f":"SUMPRODUCT((ISNUMBER(SEARCH($C388,$C$543:$C$607)))*AD$543:AD$607)","v":0},{"$f":"SUMPRODUCT((ISNUMBER(SEARCH($C388,$C$543:$C$607)))*AE$543:AE$607)","v":0},{"$f":"SUMPRODUCT((ISNUMBER(SEARCH($C388,$C$543:$C$607)))*AF$543:AF$607)","v":0},{"$f":"SUMPRODUCT((ISNUMBER(SEARCH($C388,$C$543:$C$607)))*AG$543:AG$607)","v":0},{"$f":"SUMPRODUCT((ISNUMBER(SEARCH($C388,$C$543:$C$607)))*AH$543:AH$607)","v":0},{"$f":"SUMPRODUCT((ISNUMBER(SEARCH($C388,$C$543:$C$607)))*AI$543:AI$607)","v":0},{"$f":"SUMPRODUCT((ISNUMBER(SEARCH($C388,$C$543:$C$607)))*AJ$543:AJ$607)","v":0},{"$f":"SUMPRODUCT((ISNUMBER(SEARCH($C388,$C$543:$C$607)))*AK$543:AK$607)","v":0},{"$f":"SUMPRODUCT((ISNUMBER(SEARCH($C388,$C$543:$C$607)))*AL$543:AL$607)","v":0},{"$f":"SUMPRODUCT((ISNUMBER(SEARCH($C388,$C$543:$C$607)))*AM$543:AM$607)","v":0},{"$f":"SUMPRODUCT((ISNUMBER(SEARCH($C388,$C$543:$C$607)))*AN$543:AN$607)","v":0}]
[null,null,"Geothermal","MW",{"$f":"SUMPRODUCT((ISNUMBER(SEARCH($C389,$C$543:$C$607)))*E$543:E$607)","v":0},{"$f":"SUMPRODUCT((ISNUMBER(SEARCH($C389,$C$543:$C$607)))*F$543:F$607)","v":0},{"$f":"SUMPRODUCT((ISNUMBER(SEARCH($C389,$C$543:$C$607)))*G$543:G$607)","v":0},{"$f":"SUMPRODUCT((ISNUMBER(SEARCH($C389,$C$543:$C$607)))*H$543:H$607)","v":0},{"$f":"SUMPRODUCT((ISNUMBER(SEARCH($C389,$C$543:$C$607)))*I$543:I$607)","v":0},{"$f":"SUMPRODUCT((ISNUMBER(SEARCH($C389,$C$543:$C$607)))*J$543:J$607)","v":0},{"$f":"SUMPRODUCT((ISNUMBER(SEARCH($C389,$C$543:$C$607)))*K$543:K$607)","v":0},{"$f":"SUMPRODUCT((ISNUMBER(SEARCH($C389,$C$543:$C$607)))*L$543:L$607)","v":0},{"$f":"SUMPRODUCT((ISNUMBER(SEARCH($C389,$C$543:$C$607)))*M$543:M$607)","v":0},{"$f":"SUMPRODUCT((ISNUMBER(SEARCH($C389,$C$543:$C$607)))*N$543:N$607)","v":0},{"$f":"SUMPRODUCT((ISNUMBER(SEARCH($C389,$C$543:$C$607)))*O$543:O$607)","v":0},{"$f":"SUMPRODUCT((ISNUMBER(SEARCH($C389,$C$543:$C$607)))*P$543:P$607)","v":0},{"$f":"SUMPRODUCT((ISNUMBER(SEARCH($C389,$C$543:$C$607)))*Q$543:Q$607)","v":0},{"$f":"SUMPRODUCT((ISNUMBER(SEARCH($C389,$C$543:$C$607)))*R$543:R$607)","v":0},{"$f":"SUMPRODUCT((ISNUMBER(SEARCH($C389,$C$543:$C$607)))*S$543:S$607)","v":0},{"$f":"SUMPRODUCT((ISNUMBER(SEARCH($C389,$C$543:$C$607)))*T$543:T$607)","v":0},{"$f":"SUMPRODUCT((ISNUMBER(SEARCH($C389,$C$543:$C$607)))*U$543:U$607)","v":0},{"$f":"SUMPRODUCT((ISNUMBER(SEARCH($C389,$C$543:$C$607)))*V$543:V$607)","v":0},{"$f":"SUMPRODUCT((ISNUMBER(SEARCH($C389,$C$543:$C$607)))*W$543:W$607)","v":0},{"$f":"SUMPRODUCT((ISNUMBER(SEARCH($C389,$C$543:$C$607)))*X$543:X$607)","v":0},{"$f":"SUMPRODUCT((ISNUMBER(SEARCH($C389,$C$543:$C$607)))*Y$543:Y$607)","v":0},{"$f":"SUMPRODUCT((ISNUMBER(SEARCH($C389,$C$543:$C$607)))*Z$543:Z$607)","v":0},{"$f":"SUMPRODUCT((ISNUMBER(SEARCH($C389,$C$543:$C$607)))*AA$543:AA$607)","v":0},{"$f":"SUMPRODUCT((ISNUMBER(SEARCH($C389,$C$543:$C$607)))*AB$543:AB$607)","v":0},{"$f":"SUMPRODUCT((ISNUMBER(SEARCH($C389,$C$543:$C$607)))*AC$543:AC$607)","v":0},{"$f":"SUMPRODUCT((ISNUMBER(SEARCH($C389,$C$543:$C$607)))*AD$543:AD$607)","v":0},{"$f":"SUMPRODUCT((ISNUMBER(SEARCH($C389,$C$543:$C$607)))*AE$543:AE$607)","v":0},{"$f":"SUMPRODUCT((ISNUMBER(SEARCH($C389,$C$543:$C$607)))*AF$543:AF$607)","v":0},{"$f":"SUMPRODUCT((ISNUMBER(SEARCH($C389,$C$543:$C$607)))*AG$543:AG$607)","v":0},{"$f":"SUMPRODUCT((ISNUMBER(SEARCH($C389,$C$543:$C$607)))*AH$543:AH$607)","v":0},{"$f":"SUMPRODUCT((ISNUMBER(SEARCH($C389,$C$543:$C$607)))*AI$543:AI$607)","v":525.19000000000005},{"$f":"SUMPRODUCT((ISNUMBER(SEARCH($C389,$C$543:$C$607)))*AJ$543:AJ$607)","v":0},{"$f":"SUMPRODUCT((ISNUMBER(SEARCH($C389,$C$543:$C$607)))*AK$543:AK$607)","v":0},{"$f":"SUMPRODUCT((ISNUMBER(SEARCH($C389,$C$543:$C$607)))*AL$543:AL$607)","v":0},{"$f":"SUMPRODUCT((ISNUMBER(SEARCH($C389,$C$543:$C$607)))*AM$543:AM$607)","v":0},{"$f":"SUMPRODUCT((ISNUMBER(SEARCH($C389,$C$543:$C$607)))*AN$543:AN$607)","v":0}]
[null,null,"Solar","MW",{"$f":"SUMPRODUCT((ISNUMBER(SEARCH($C390,$C$543:$C$607)))*E$543:E$607)","v":0},{"$f":"SUMPRODUCT((ISNUMBER(SEARCH($C390,$C$543:$C$607)))*F$543:F$607)","v":0},{"$f":"SUMPRODUCT((ISNUMBER(SEARCH($C390,$C$543:$C$607)))*G$543:G$607)","v":0},{"$f":"SUMPRODUCT((ISNUMBER(SEARCH($C390,$C$543:$C$607)))*H$543:H$607)","v":0},{"$f":"SUMPRODUCT((ISNUMBER(SEARCH($C390,$C$543:$C$607)))*I$543:I$607)","v":0},{"$f":"SUMPRODUCT((ISNUMBER(SEARCH($C390,$C$543:$C$607)))*J$543:J$607)","v":0},{"$f":"SUMPRODUCT((ISNUMBER(SEARCH($C390,$C$543:$C$607)))*K$543:K$607)","v":0},{"$f":"SUMPRODUCT((ISNUMBER(SEARCH($C390,$C$543:$C$607)))*L$543:L$607)","v":800},{"$f":"SUMPRODUCT((ISNUMBER(SEARCH($C390,$C$543:$C$607)))*M$543:M$607)","v":800},{"$f":"SUMPRODUCT((ISNUMBER(SEARCH($C390,$C$543:$C$607)))*N$543:N$607)","v":3350},{"$f":"SUMPRODUCT((ISNUMBER(SEARCH($C390,$C$543:$C$607)))*O$543:O$607)","v":0},{"$f":"SUMPRODUCT((ISNUMBER(SEARCH($C390,$C$543:$C$607)))*P$543:P$607)","v":7066.98},{"$f":"SUMPRODUCT((ISNUMBER(SEARCH($C390,$C$543:$C$607)))*Q$543:Q$607)","v":0},{"$f":"SUMPRODUCT((ISNUMBER(SEARCH($C390,$C$543:$C$607)))*R$543:R$607)","v":0},{"$f":"SUMPRODUCT((ISNUMBER(SEARCH($C390,$C$543:$C$607)))*S$543:S$607)","v":0},{"$f":"SUMPRODUCT((ISNUMBER(SEARCH($C390,$C$543:$C$607)))*T$543:T$607)","v":9632.98},{"$f":"SUMPRODUCT((ISNUMBER(SEARCH($C390,$C$543:$C$607)))*U$543:U$607)","v":0},{"$f":"SUMPRODUCT((ISNUMBER(SEARCH($C390,$C$543:$C$607)))*V$543:V$607)","v":0},{"$f":"SUMPRODUCT((ISNUMBER(SEARCH($C390,$C$543:$C$607)))*W$543:W$607)","v":0},{"$f":"SUMPRODUCT((ISNUMBER(SEARCH($C390,$C$543:$C$607)))*X$543:X$607)","v":0},{"$f":"SUMPRODUCT((ISNUMBER(SEARCH($C390,$C$543:$C$607)))*Y$543:Y$607)","v":0},{"$f":"SUMPRODUCT((ISNUMBER(SEARCH($C390,$C$543:$C$607)))*Z$543:Z$607)","v":0},{"$f":"SUMPRODUCT((ISNUMBER(SEARCH($C390,$C$543:$C$607)))*AA$543:AA$607)","v":0},{"$f":"SUMPRODUCT((ISNUMBER(SEARCH($C390,$C$543:$C$607)))*AB$543:AB$607)","v":0},{"$f":"SUMPRODUCT((ISNUMBER(SEARCH($C390,$C$543:$C$607)))*AC$543:AC$607)","v":0},{"$f":"SUMPRODUCT((ISNUMBER(SEARCH($C390,$C$543:$C$607)))*AD$543:AD$607)","v":0},{"$f":"SUMPRODUCT((ISNUMBER(SEARCH($C390,$C$543:$C$607)))*AE$543:AE$607)","v":0},{"$f":"SUMPRODUCT((ISNUMBER(SEARCH($C390,$C$543:$C$607)))*AF$543:AF$607)","v":0},{"$f":"SUMPRODUCT((ISNUMBER(SEARCH($C390,$C$543:$C$607)))*AG$543:AG$607)","v":0},{"$f":"SUMPRODUCT((ISNUMBER(SEARCH($C390,$C$543:$C$607)))*AH$543:AH$607)","v":0},{"$f":"SUMPRODUCT((ISNUMBER(SEARCH($C390,$C$543:$C$607)))*AI$543:AI$607)","v":9632.98},{"$f":"SUMPRODUCT((ISNUMBER(SEARCH($C390,$C$543:$C$607)))*AJ$543:AJ$607)","v":0},{"$f":"SUMPRODUCT((ISNUMBER(SEARCH($C390,$C$543:$C$607)))*AK$543:AK$607)","v":0},{"$f":"SUMPRODUCT((ISNUMBER(SEARCH($C390,$C$543:$C$607)))*AL$543:AL$607)","v":0},{"$f":"SUMPRODUCT((ISNUMBER(SEARCH($C390,$C$543:$C$607)))*AM$543:AM$607)","v":0},{"$f":"SUMPRODUCT((ISNUMBER(SEARCH($C390,$C$543:$C$607)))*AN$543:AN$607)","v":0}]
[null,null,"Wind","MW",{"$f":"SUMPRODUCT((ISNUMBER(SEARCH($C391,$C$543:$C$607)))*E$543:E$607)","v":0},{"$f":"SUMPRODUCT((ISNUMBER(SEARCH($C391,$C$543:$C$607)))*F$543:F$607)","v":0},{"$f":"SUMPRODUCT((ISNUMBER(SEARCH($C391,$C$543:$C$607)))*G$543:G$607)","v":0},{"$f":"SUMPRODUCT((ISNUMBER(SEARCH($C391,$C$543:$C$607)))*H$543:H$607)","v":0},{"$f":"SUMPRODUCT((ISNUMBER(SEARCH($C391,$C$543:$C$607)))*I$543:I$607)","v":0},{"$f":"SUMPRODUCT((ISNUMBER(SEARCH($C391,$C$543:$C$607)))*J$543:J$607)","v":0},{"$f":"SUMPRODUCT((ISNUMBER(SEARCH($C391,$C$543:$C$607)))*K$543:K$607)","v":34},{"$f":"SUMPRODUCT((ISNUMBER(SEARCH($C391,$C$543:$C$607)))*L$543:L$607)","v":34},{"$f":"SUMPRODUCT((ISNUMBER(SEARCH($C391,$C$543:$C$607)))*M$543:M$607)","v":34},{"$f":"SUMPRODUCT((ISNUMBER(SEARCH($C391,$C$543:$C$607)))*N$543:N$607)","v":34},{"$f":"SUMPRODUCT((ISNUMBER(SEARCH($C391,$C$543:$C$607)))*O$543:O$607)","v":0},{"$f":"SUMPRODUCT((ISNUMBER(SEARCH($C391,$C$543:$C$607)))*P$543:P$607)","v":34},{"$f":"SUMPRODUCT((ISNUMBER(SEARCH($C391,$C$543:$C$607)))*Q$543:Q$607)","v":0},{"$f":"SUMPRODUCT((ISNUMBER(SEARCH($C391,$C$543:$C$607)))*R$543:R$607)","v":0},{"$f":"SUMPRODUCT((ISNUMBER(SEARCH($C391,$C$543:$C$607)))*S$543:S$607)","v":0},{"$f":"SUMPRODUCT((ISNUMBER(SEARCH($C391,$C$543:$C$607)))*T$543:T$607)","v":541.82999999999993},{"$f":"SUMPRODUCT((ISNUMBER(SEARCH($C391,$C$543:$C$607)))*U$543:U$607)","v":0},{"$f":"SUMPRODUCT((ISNUMBER(SEARCH($C391,$C$543:$C$607)))*V$543:V$607)","v":0},{"$f":"SUMPRODUCT((ISNUMBER(SEARCH($C391,$C$543:$C$607)))*W$543:W$607)","v":0},{"$f":"SUMPRODUCT((ISNUMBER(SEARCH($C391,$C$543:$C$607)))*X$543:X$607)","v":0},{"$f":"SUMPRODUCT((ISNUMBER(SEARCH($C391,$C$543:$C$607)))*Y$543:Y$607)","v":0},{"$f":"SUMPRODUCT((ISNUMBER(SEARCH($C391,$C$543:$C$607)))*Z$543:Z$607)","v":0},{"$f":"SUMPRODUCT((ISNUMBER(SEARCH($C391,$C$543:$C$607)))*AA$543:AA$607)","v":0},{"$f":"SUMPRODUCT((ISNUMBER(SEARCH($C391,$C$543:$C$607)))*AB$543:AB$607)","v":0},{"$f":"SUMPRODUCT((ISNUMBER(SEARCH($C391,$C$543:$C$607)))*AC$543:AC$607)","v":0},{"$f":"SUMPRODUCT((ISNUMBER(SEARCH($C391,$C$543:$C$607)))*AD$543:AD$607)","v":0},{"$f":"SUMPRODUCT((ISNUMBER(SEARCH($C391,$C$543:$C$607)))*AE$543:AE$607)","v":0},{"$f":"SUMPRODUCT((ISNUMBER(SEARCH($C391,$C$543:$C$607)))*AF$543:AF$607)","v":0},{"$f":"SUMPRODUCT((ISNUMBER(SEARCH($C391,$C$543:$C$607)))*AG$543:AG$607)","v":0},{"$f":"SUMPRODUCT((ISNUMBER(SEARCH($C391,$C$543:$C$607)))*AH$543:AH$607)","v":0},{"$f":"SUMPRODUCT((ISNUMBER(SEARCH($C391,$C$543:$C$607)))*AI$543:AI$607)","v":541.82999999999993},{"$f":"SUMPRODUCT((ISNUMBER(SEARCH($C391,$C$543:$C$607)))*AJ$543:AJ$607)","v":0},{"$f":"SUMPRODUCT((ISNUMBER(SEARCH($C391,$C$543:$C$607)))*AK$543:AK$607)","v":0},{"$f":"SUMPRODUCT((ISNUMBER(SEARCH($C391,$C$543:$C$607)))*AL$543:AL$607)","v":0},{"$f":"SUMPRODUCT((ISNUMBER(SEARCH($C391,$C$543:$C$607)))*AM$543:AM$607)","v":0},{"$f":"SUMPRODUCT((ISNUMBER(SEARCH($C391,$C$543:$C$607)))*AN$543:AN$607)","v":0}]
[]
[null,"Selected Renewables by Location"]
[]
[null,null,"Renewable Resource Build by Location (MW)"]
[null,null,"RESOLVE Resource","Tx Zone",2015,2016,2017,2018,2019,2020,2021,2022,2023,2024,2025,2026,2027,2028,2029,2030,2031,2032,2033,2034,2035,2036,2037,2038,2039,2040,2041,2042,2043,2044,2045,2046,2047,2048,2049,2050]
[null,null,{"$f":"Lists!B35","v":"InState_Biomass"},{"$f":"IF(INDEX(raw_resource_build!J:J,MATCH(C397,raw_resource_build!$B:$B,0))=0,\"N/A\",INDEX(raw_resource_build!J:J,MATCH(C397,raw_resource_build!$B:$B,0)))","v":"None"},{"$f":"SUMIFS(raw_resource_build!$K:$K,raw_resource_build!$B:$B,$C397,raw_resource_build!$A:$A,E$396)+SUMIFS(raw_resource_build!$L:$L,raw_resource_build!$B:$B,$C397,raw_resource_build!$A:$A,E$396)","v":0},{"$f":"SUMIFS(raw_resource_build!$K:$K,raw_resource_build!$B:$B,$C397,raw_resource_build!$A:$A,F$396)+SUMIFS(raw_resource_build!$L:$L,raw_resource_build!$B:$B,$C397,raw_resource_build!$A:$A,F$396)","v":0},{"$f":"SUMIFS(raw_resource_build!$K:$K,raw_resource_build!$B:$B,$C397,raw_resource_build!$A:$A,G$396)+SUMIFS(raw_resource_build!$L:$L,raw_resource_build!$B:$B,$C397,raw_resource_build!$A:$A,G$396)","v":0},{"$f":"SUMIFS(raw_resource_build!$K:$K,raw_resource_build!$B:$B,$C397,raw_resource_build!$A:$A,H$396)+SUMIFS(raw_resource_build!$L:$L,raw_resource_build!$B:$B,$C397,raw_resource_build!$A:$A,H$396)","v":0},{"$f":"SUMIFS(raw_resource_build!$K:$K,raw_resource_build!$B:$B,$C397,raw_resource_build!$A:$A,I$396)+SUMIFS(raw_resource_build!$L:$L,raw_resource_build!$B:$B,$C397,raw_resource_build!$A:$A,I$396)","v":0},{"$f":"SUMIFS(raw_resource_build!$K:$K,raw_resource_build!$B:$B,$C397,raw_resource_build!$A:$A,J$396)+SUMIFS(raw_resource_build!$L:$L,raw_resource_build!$B:$B,$C397,raw_resource_build!$A:$A,J$396)","v":0},{"$f":"SUMIFS(raw_resource_build!$K:$K,raw_resource_build!$B:$B,$C397,raw_resource_build!$A:$A,K$396)+SUMIFS(raw_resource_build!$L:$L,raw_resource_build!$B:$B,$C397,raw_resource_build!$A:$A,K$396)","v":0},{"$f":"SUMIFS(raw_resource_build!$K:$K,raw_resource_build!$B:$B,$C397,raw_resource_build!$A:$A,L$396)+SUMIFS(raw_resource_build!$L:$L,raw_resource_build!$B:$B,$C397,raw_resource_build!$A:$A,L$396)","v":0},{"$f":"SUMIFS(raw_resource_build!$K:$K,raw_resource_build!$B:$B,$C397,raw_resource_build!$A:$A,M$396)+SUMIFS(raw_resource_build!$L:$L,raw_resource_build!$B:$B,$C397,raw_resource_build!$A:$A,M$396)","v":0},{"$f":"SUMIFS(raw_resource_build!$K:$K,raw_resource_build!$B:$B,$C397,raw_resource_build!$A:$A,N$396)+SUMIFS(raw_resource_build!$L:$L,raw_resource_build!$B:$B,$C397,raw_resource_build!$A:$A,N$396)","v":0},{"$f":"SUMIFS(raw_resource_build!$K:$K,raw_resource_build!$B:$B,$C397,raw_resource_build!$A:$A,O$396)+SUMIFS(raw_resource_build!$L:$L,raw_resource_build!$B:$B,$C397,raw_resource_build!$A:$A,O$396)","v":0},{"$f":"SUMIFS(raw_resource_build!$K:$K,raw_resource_build!$B:$B,$C397,raw_resource_build!$A:$A,P$396)+SUMIFS(raw_resource_build!$L:$L,raw_resource_build!$B:$B,$C397,raw_resource_build!$A:$A,P$396)","v":0},{"$f":"SUMIFS(raw_resource_build!$K:$K,raw_resource_build!$B:$B,$C397,raw_resource_build!$A:$A,Q$396)+SUMIFS(raw_resource_build!$L:$L,raw_resource_build!$B:$B,$C397,raw_resource_build!$A:$A,Q$396)","v":0},{"$f":"SUMIFS(raw_resource_build!$K:$K,raw_resource_build!$B:$B,$C397,raw_resource_build!$A:$A,R$396)+SUMIFS(raw_resource_build!$L:$L,raw_resource_build!$B:$B,$C397,raw_resource_build!$A:$A,R$396)","v":0},{"$f":"SUMIFS(raw_resource_build!$K:$K,raw_resource_build!$B:$B,$C397,raw_resource_build!$A:$A,S$396)+SUMIFS(raw_resource_build!$L:$L,raw_resource_build!$B:$B,$C397,raw_resource_build!$A:$A,S$396)","v":0},{"$f":"SUMIFS(raw_resource_build!$K:$K,raw_resource_build!$B:$B,$C397,raw_resource_build!$A:$A,T$396)+SUMIFS(raw_resource_build!$L:$L,raw_resource_build!$B:$B,$C397,raw_resource_build!$A:$A,T$396)","v":0},{"$f":"SUMIFS(raw_resource_build!$K:$K,raw_resource_build!$B:$B,$C397,raw_resource_build!$A:$A,U$396)+SUMIFS(raw_resource_build!$L:$L,raw_resource_build!$B:$B,$C397,raw_resource_build!$A:$A,U$396)","v":0},{"$f":"SUMIFS(raw_resource_build!$K:$K,raw_resource_build!$B:$B,$C397,raw_resource_build!$A:$A,V$396)+SUMIFS(raw_resource_build!$L:$L,raw_resource_build!$B:$B,$C397,raw_resource_build!$A:$A,V$396)","v":0},{"$f":"SUMIFS(raw_resource_build!$K:$K,raw_resource_build!$B:$B,$C397,raw_resource_build!$A:$A,W$396)+SUMIFS(raw_resource_build!$L:$L,raw_resource_build!$B:$B,$C397,raw_resource_build!$A:$A,W$396)","v":0},{"$f":"SUMIFS(raw_resource_build!$K:$K,raw_resource_build!$B:$B,$C397,raw_resource_build!$A:$A,X$396)+SUMIFS(raw_resource_build!$L:$L,raw_resource_build!$B:$B,$C397,raw_resource_build!$A:$A,X$396)","v":0},{"$f":"SUMIFS(raw_resource_build!$K:$K,raw_resource_build!$B:$B,$C397,raw_resource_build!$A:$A,Y$396)+SUMIFS(raw_resource_build!$L:$L,raw_resource_build!$B:$B,$C397,raw_resource_build!$A:$A,Y$396)","v":0},{"$f":"SUMIFS(raw_resource_build!$K:$K,raw_resource_build!$B:$B,$C397,raw_resource_build!$A:$A,Z$396)+SUMIFS(raw_resource_build!$L:$L,raw_resource_build!$B:$B,$C397,raw_resource_build!$A:$A,Z$396)","v":0},{"$f":"SUMIFS(raw_resource_build!$K:$K,raw_resource_build!$B:$B,$C397,raw_resource_build!$A:$A,AA$396)+SUMIFS(raw_resource_build!$L:$L,raw_resource_build!$B:$B,$C397,raw_resource_build!$A:$A,AA$396)","v":0},{"$f":"SUMIFS(raw_resource_build!$K:$K,raw_resource_build!$B:$B,$C397,raw_resource_build!$A:$A,AB$396)+SUMIFS(raw_resource_build!$L:$L,raw_resource_build!$B:$B,$C397,raw_resource_build!$A:$A,AB$396)","v":0},{"$f":"SUMIFS(raw_resource_build!$K:$K,raw_resource_build!$B:$B,$C397,raw_resource_build!$A:$A,AC$396)+SUMIFS(raw_resource_build!$L:$L,raw_resource_build!$B:$B,$C397,raw_resource_build!$A:$A,AC$396)","v":0},{"$f":"SUMIFS(raw_resource_build!$K:$K,raw_resource_build!$B:$B,$C397,raw_resource_build!$A:$A,AD$396)+SUMIFS(raw_resource_build!$L:$L,raw_resource_build!$B:$B,$C397,raw_resource_build!$A:$A,AD$396)","v":0},{"$f":"SUMIFS(raw_resource_build!$K:$K,raw_resource_build!$B:$B,$C397,raw_resource_build!$A:$A,AE$396)+SUMIFS(raw_resource_build!$L:$L,raw_resource_build!$B:$B,$C397,raw_resource_build!$A:$A,AE$396)","v":0},{"$f":"SUMIFS(raw_resource_build!$K:$K,raw_resource_build!$B:$B,$C397,raw_resource_build!$A:$A,AF$396)+SUMIFS(raw_resource_build!$L:$L,raw_resource_build!$B:$B,$C397,raw_resource_build!$A:$A,AF$396)","v":0},{"$f":"SUMIFS(raw_resource_build!$K:$K,raw_resource_build!$B:$B,$C397,raw_resource_build!$A:$A,AG$396)+SUMIFS(raw_resource_build!$L:$L,raw_resource_build!$B:$B,$C397,raw_resource_build!$A:$A,AG$396)","v":0},{"$f":"SUMIFS(raw_resource_build!$K:$K,raw_resource_build!$B:$B,$C397,raw_resource_build!$A:$A,AH$396)+SUMIFS(raw_resource_build!$L:$L,raw_resource_build!$B:$B,$C397,raw_resource_build!$A:$A,AH$396)","v":0},{"$f":"SUMIFS(raw_resource_build!$K:$K,raw_resource_build!$B:$B,$C397,raw_resource_build!$A:$A,AI$396)+SUMIFS(raw_resource_build!$L:$L,raw_resource_build!$B:$B,$C397,raw_resource_build!$A:$A,AI$396)","v":1146.8499999999999},{"$f":"SUMIFS(raw_resource_build!$K:$K,raw_resource_build!$B:$B,$C397,raw_resource_build!$A:$A,AJ$396)+SUMIFS(raw_resource_build!$L:$L,raw_resource_build!$B:$B,$C397,raw_resource_build!$A:$A,AJ$396)","v":0},{"$f":"SUMIFS(raw_resource_build!$K:$K,raw_resource_build!$B:$B,$C397,raw_resource_build!$A:$A,AK$396)+SUMIFS(raw_resource_build!$L:$L,raw_resource_build!$B:$B,$C397,raw_resource_build!$A:$A,AK$396)","v":0},{"$f":"SUMIFS(raw_resource_build!$K:$K,raw_resource_build!$B:$B,$C397,raw_resource_build!$A:$A,AL$396)+SUMIFS(raw_resource_build!$L:$L,raw_resource_build!$B:$B,$C397,raw_resource_build!$A:$A,AL$396)","v":0},{"$f":"SUMIFS(raw_resource_build!$K:$K,raw_resource_build!$B:$B,$C397,raw_resource_build!$A:$A,AM$396)+SUMIFS(raw_resource_build!$L:$L,raw_resource_build!$B:$B,$C397,raw_resource_build!$A:$A,AM$396)","v":0},{"$f":"SUMIFS(raw_resource_build!$K:$K,raw_resource_build!$B:$B,$C397,raw_resource_build!$A:$A,AN$396)+SUMIFS(raw_resource_build!$L:$L,raw_resource_build!$B:$B,$C397,raw_resource_build!$A:$A,AN$396)","v":0}]
[null,null,{"$f":"Lists!B36","v":"Greater_Imperial_Geothermal"},{"$f":"IF(INDEX(raw_resource_build!J:J,MATCH(C398,raw_resource_build!$B:$B,0))=0,\"N/A\",INDEX(raw_resource_build!J:J,MATCH(C398,raw_resource_build!$B:$B,0)))","v":"SCADSNV-Greater_Imperial"},{"$f":"SUMIFS(raw_resource_build!$K:$K,raw_resource_build!$B:$B,$C398,raw_resource_build!$A:$A,E$396)+SUMIFS(raw_resource_build!$L:$L,raw_resource_build!$B:$B,$C398,raw_resource_build!$A:$A,E$396)","v":0},{"$f":"SUMIFS(raw_resource_build!$K:$K,raw_resource_build!$B:$B,$C398,raw_resource_build!$A:$A,F$396)+SUMIFS(raw_resource_build!$L:$L,raw_resource_build!$B:$B,$C398,raw_resource_build!$A:$A,F$396)","v":0},{"$f":"SUMIFS(raw_resource_build!$K:$K,raw_resource_build!$B:$B,$C398,raw_resource_build!$A:$A,G$396)+SUMIFS(raw_resource_build!$L:$L,raw_resource_build!$B:$B,$C398,raw_resource_build!$A:$A,G$396)","v":0},{"$f":"SUMIFS(raw_resource_build!$K:$K,raw_resource_build!$B:$B,$C398,raw_resource_build!$A:$A,H$396)+SUMIFS(raw_resource_build!$L:$L,raw_resource_build!$B:$B,$C398,raw_resource_build!$A:$A,H$396)","v":0},{"$f":"SUMIFS(raw_resource_build!$K:$K,raw_resource_build!$B:$B,$C398,raw_resource_build!$A:$A,I$396)+SUMIFS(raw_resource_build!$L:$L,raw_resource_build!$B:$B,$C398,raw_resource_build!$A:$A,I$396)","v":0},{"$f":"SUMIFS(raw_resource_build!$K:$K,raw_resource_build!$B:$B,$C398,raw_resource_build!$A:$A,J$396)+SUMIFS(raw_resource_build!$L:$L,raw_resource_build!$B:$B,$C398,raw_resource_build!$A:$A,J$396)","v":0},{"$f":"SUMIFS(raw_resource_build!$K:$K,raw_resource_build!$B:$B,$C398,raw_resource_build!$A:$A,K$396)+SUMIFS(raw_resource_build!$L:$L,raw_resource_build!$B:$B,$C398,raw_resource_build!$A:$A,K$396)","v":0},{"$f":"SUMIFS(raw_resource_build!$K:$K,raw_resource_build!$B:$B,$C398,raw_resource_build!$A:$A,L$396)+SUMIFS(raw_resource_build!$L:$L,raw_resource_build!$B:$B,$C398,raw_resource_build!$A:$A,L$396)","v":0},{"$f":"SUMIFS(raw_resource_build!$K:$K,raw_resource_build!$B:$B,$C398,raw_resource_build!$A:$A,M$396)+SUMIFS(raw_resource_build!$L:$L,raw_resource_build!$B:$B,$C398,raw_resource_build!$A:$A,M$396)","v":0},{"$f":"SUMIFS(raw_resource_build!$K:$K,raw_resource_build!$B:$B,$C398,raw_resource_build!$A:$A,N$396)+SUMIFS(raw_resource_build!$L:$L,raw_resource_build!$B:$B,$C398,raw_resource_build!$A:$A,N$396)","v":0},{"$f":"SUMIFS(raw_resource_build!$K:$K,raw_resource_build!$B:$B,$C398,raw_resource_build!$A:$A,O$396)+SUMIFS(raw_resource_build!$L:$L,raw_resource_build!$B:$B,$C398,raw_resource_build!$A:$A,O$396)","v":0},{"$f":"SUMIFS(raw_resource_build!$K:$K,raw_resource_build!$B:$B,$C398,raw_resource_build!$A:$A,P$396)+SUMIFS(raw_resource_build!$L:$L,raw_resource_build!$B:$B,$C398,raw_resource_build!$A:$A,P$396)","v":0},{"$f":"SUMIFS(raw_resource_build!$K:$K,raw_resource_build!$B:$B,$C398,raw_resource_build!$A:$A,Q$396)+SUMIFS(raw_resource_build!$L:$L,raw_resource_build!$B:$B,$C398,raw_resource_build!$A:$A,Q$396)","v":0},{"$f":"SUMIFS(raw_resource_build!$K:$K,raw_resource_build!$B:$B,$C398,raw_resource_build!$A:$A,R$396)+SUMIFS(raw_resource_build!$L:$L,raw_resource_build!$B:$B,$C398,raw_resource_build!$A:$A,R$396)","v":0},{"$f":"SUMIFS(raw_resource_build!$K:$K,raw_resource_build!$B:$B,$C398,raw_resource_build!$A:$A,S$396)+SUMIFS(raw_resource_build!$L:$L,raw_resource_build!$B:$B,$C398,raw_resource_build!$A:$A,S$396)","v":0},{"$f":"SUMIFS(raw_resource_build!$K:$K,raw_resource_build!$B:$B,$C398,raw_resource_build!$A:$A,T$396)+SUMIFS(raw_resource_build!$L:$L,raw_resource_build!$B:$B,$C398,raw_resource_build!$A:$A,T$396)","v":0},{"$f":"SUMIFS(raw_resource_build!$K:$K,raw_resource_build!$B:$B,$C398,raw_resource_build!$A:$A,U$396)+SUMIFS(raw_resource_build!$L:$L,raw_resource_build!$B:$B,$C398,raw_resource_build!$A:$A,U$396)","v":0},{"$f":"SUMIFS(raw_resource_build!$K:$K,raw_resource_build!$B:$B,$C398,raw_resource_build!$A:$A,V$396)+SUMIFS(raw_resource_build!$L:$L,raw_resource_build!$B:$B,$C398,raw_resource_build!$A:$A,V$396)","v":0},{"$f":"SUMIFS(raw_resource_build!$K:$K,raw_resource_build!$B:$B,$C398,raw_resource_build!$A:$A,W$396)+SUMIFS(raw_resource_build!$L:$L,raw_resource_build!$B:$B,$C398,raw_resource_build!$A:$A,W$396)","v":0},{"$f":"SUMIFS(raw_resource_build!$K:$K,raw_resource_build!$B:$B,$C398,raw_resource_build!$A:$A,X$396)+SUMIFS(raw_resource_build!$L:$L,raw_resource_build!$B:$B,$C398,raw_resource_build!$A:$A,X$396)","v":0},{"$f":"SUMIFS(raw_resource_build!$K:$K,raw_resource_build!$B:$B,$C398,raw_resource_build!$A:$A,Y$396)+SUMIFS(raw_resource_build!$L:$L,raw_resource_build!$B:$B,$C398,raw_resource_build!$A:$A,Y$396)","v":0},{"$f":"SUMIFS(raw_resource_build!$K:$K,raw_resource_build!$B:$B,$C398,raw_resource_build!$A:$A,Z$396)+SUMIFS(raw_resource_build!$L:$L,raw_resource_build!$B:$B,$C398,raw_resource_build!$A:$A,Z$396)","v":0},{"$f":"SUMIFS(raw_resource_build!$K:$K,raw_resource_build!$B:$B,$C398,raw_resource_build!$A:$A,AA$396)+SUMIFS(raw_resource_build!$L:$L,raw_resource_build!$B:$B,$C398,raw_resource_build!$A:$A,AA$396)","v":0},{"$f":"SUMIFS(raw_resource_build!$K:$K,raw_resource_build!$B:$B,$C398,raw_resource_build!$A:$A,AB$396)+SUMIFS(raw_resource_build!$L:$L,raw_resource_build!$B:$B,$C398,raw_resource_build!$A:$A,AB$396)","v":0},{"$f":"SUMIFS(raw_resource_build!$K:$K,raw_resource_build!$B:$B,$C398,raw_resource_build!$A:$A,AC$396)+SUMIFS(raw_resource_build!$L:$L,raw_resource_build!$B:$B,$C398,raw_resource_build!$A:$A,AC$396)","v":0},{"$f":"SUMIFS(raw_resource_build!$K:$K,raw_resource_build!$B:$B,$C398,raw_resource_build!$A:$A,AD$396)+SUMIFS(raw_resource_build!$L:$L,raw_resource_build!$B:$B,$C398,raw_resource_build!$A:$A,AD$396)","v":0},{"$f":"SUMIFS(raw_resource_build!$K:$K,raw_resource_build!$B:$B,$C398,raw_resource_build!$A:$A,AE$396)+SUMIFS(raw_resource_build!$L:$L,raw_resource_build!$B:$B,$C398,raw_resource_build!$A:$A,AE$396)","v":0},{"$f":"SUMIFS(raw_resource_build!$K:$K,raw_resource_build!$B:$B,$C398,raw_resource_build!$A:$A,AF$396)+SUMIFS(raw_resource_build!$L:$L,raw_resource_build!$B:$B,$C398,raw_resource_build!$A:$A,AF$396)","v":0},{"$f":"SUMIFS(raw_resource_build!$K:$K,raw_resource_build!$B:$B,$C398,raw_resource_build!$A:$A,AG$396)+SUMIFS(raw_resource_build!$L:$L,raw_resource_build!$B:$B,$C398,raw_resource_build!$A:$A,AG$396)","v":0},{"$f":"SUMIFS(raw_resource_build!$K:$K,raw_resource_build!$B:$B,$C398,raw_resource_build!$A:$A,AH$396)+SUMIFS(raw_resource_build!$L:$L,raw_resource_build!$B:$B,$C398,raw_resource_build!$A:$A,AH$396)","v":0},{"$f":"SUMIFS(raw_resource_build!$K:$K,raw_resource_build!$B:$B,$C398,raw_resource_build!$A:$A,AI$396)+SUMIFS(raw_resource_build!$L:$L,raw_resource_build!$B:$B,$C398,raw_resource_build!$A:$A,AI$396)","v":1352.1},{"$f":"SUMIFS(raw_resource_build!$K:$K,raw_resource_build!$B:$B,$C398,raw_resource_build!$A:$A,AJ$396)+SUMIFS(raw_resource_build!$L:$L,raw_resource_build!$B:$B,$C398,raw_resource_build!$A:$A,AJ$396)","v":0},{"$f":"SUMIFS(raw_resource_build!$K:$K,raw_resource_build!$B:$B,$C398,raw_resource_build!$A:$A,AK$396)+SUMIFS(raw_resource_build!$L:$L,raw_resource_build!$B:$B,$C398,raw_resource_build!$A:$A,AK$396)","v":0},{"$f":"SUMIFS(raw_resource_build!$K:$K,raw_resource_build!$B:$B,$C398,raw_resource_build!$A:$A,AL$396)+SUMIFS(raw_resource_build!$L:$L,raw_resource_build!$B:$B,$C398,raw_resource_build!$A:$A,AL$396)","v":0},{"$f":"SUMIFS(raw_resource_build!$K:$K,raw_resource_build!$B:$B,$C398,raw_resource_build!$A:$A,AM$396)+SUMIFS(raw_resource_build!$L:$L,raw_resource_build!$B:$B,$C398,raw_resource_build!$A:$A,AM$396)","v":0},{"$f":"SUMIFS(raw_resource_build!$K:$K,raw_resource_build!$B:$B,$C398,raw_resource_build!$A:$A,AN$396)+SUMIFS(raw_resource_build!$L:$L,raw_resource_build!$B:$B,$C398,raw_resource_build!$A:$A,AN$396)","v":0}]
[null,null,{"$f":"Lists!B37","v":"Inyokern_North_Kramer_Geothermal"},{"$f":"IF(INDEX(raw_resource_build!J:J,MATCH(C399,raw_resource_build!$B:$B,0))=0,\"N/A\",INDEX(raw_resource_build!J:J,MATCH(C399,raw_resource_build!$B:$B,0)))","v":"Inyokern_North_Kramer-Greater_Kramer"},{"$f":"SUMIFS(raw_resource_build!$K:$K,raw_resource_build!$B:$B,$C399,raw_resource_build!$A:$A,E$396)+SUMIFS(raw_resource_build!$L:$L,raw_resource_build!$B:$B,$C399,raw_resource_build!$A:$A,E$396)","v":0},{"$f":"SUMIFS(raw_resource_build!$K:$K,raw_resource_build!$B:$B,$C399,raw_resource_build!$A:$A,F$396)+SUMIFS(raw_resource_build!$L:$L,raw_resource_build!$B:$B,$C399,raw_resource_build!$A:$A,F$396)","v":0},{"$f":"SUMIFS(raw_resource_build!$K:$K,raw_resource_build!$B:$B,$C399,raw_resource_build!$A:$A,G$396)+SUMIFS(raw_resource_build!$L:$L,raw_resource_build!$B:$B,$C399,raw_resource_build!$A:$A,G$396)","v":0},{"$f":"SUMIFS(raw_resource_build!$K:$K,raw_resource_build!$B:$B,$C399,raw_resource_build!$A:$A,H$396)+SUMIFS(raw_resource_build!$L:$L,raw_resource_build!$B:$B,$C399,raw_resource_build!$A:$A,H$396)","v":0},{"$f":"SUMIFS(raw_resource_build!$K:$K,raw_resource_build!$B:$B,$C399,raw_resource_build!$A:$A,I$396)+SUMIFS(raw_resource_build!$L:$L,raw_resource_build!$B:$B,$C399,raw_resource_build!$A:$A,I$396)","v":0},{"$f":"SUMIFS(raw_resource_build!$K:$K,raw_resource_build!$B:$B,$C399,raw_resource_build!$A:$A,J$396)+SUMIFS(raw_resource_build!$L:$L,raw_resource_build!$B:$B,$C399,raw_resource_build!$A:$A,J$396)","v":0},{"$f":"SUMIFS(raw_resource_build!$K:$K,raw_resource_build!$B:$B,$C399,raw_resource_build!$A:$A,K$396)+SUMIFS(raw_resource_build!$L:$L,raw_resource_build!$B:$B,$C399,raw_resource_build!$A:$A,K$396)","v":0},{"$f":"SUMIFS(raw_resource_build!$K:$K,raw_resource_build!$B:$B,$C399,raw_resource_build!$A:$A,L$396)+SUMIFS(raw_resource_build!$L:$L,raw_resource_build!$B:$B,$C399,raw_resource_build!$A:$A,L$396)","v":0},{"$f":"SUMIFS(raw_resource_build!$K:$K,raw_resource_build!$B:$B,$C399,raw_resource_build!$A:$A,M$396)+SUMIFS(raw_resource_build!$L:$L,raw_resource_build!$B:$B,$C399,raw_resource_build!$A:$A,M$396)","v":0},{"$f":"SUMIFS(raw_resource_build!$K:$K,raw_resource_build!$B:$B,$C399,raw_resource_build!$A:$A,N$396)+SUMIFS(raw_resource_build!$L:$L,raw_resource_build!$B:$B,$C399,raw_resource_build!$A:$A,N$396)","v":0},{"$f":"SUMIFS(raw_resource_build!$K:$K,raw_resource_build!$B:$B,$C399,raw_resource_build!$A:$A,O$396)+SUMIFS(raw_resource_build!$L:$L,raw_resource_build!$B:$B,$C399,raw_resource_build!$A:$A,O$396)","v":0},{"$f":"SUMIFS(raw_resource_build!$K:$K,raw_resource_build!$B:$B,$C399,raw_resource_build!$A:$A,P$396)+SUMIFS(raw_resource_build!$L:$L,raw_resource_build!$B:$B,$C399,raw_resource_build!$A:$A,P$396)","v":0},{"$f":"SUMIFS(raw_resource_build!$K:$K,raw_resource_build!$B:$B,$C399,raw_resource_build!$A:$A,Q$396)+SUMIFS(raw_resource_build!$L:$L,raw_resource_build!$B:$B,$C399,raw_resource_build!$A:$A,Q$396)","v":0},{"$f":"SUMIFS(raw_resource_build!$K:$K,raw_resource_build!$B:$B,$C399,raw_resource_build!$A:$A,R$396)+SUMIFS(raw_resource_build!$L:$L,raw_resource_build!$B:$B,$C399,raw_resource_build!$A:$A,R$396)","v":0},{"$f":"SUMIFS(raw_resource_build!$K:$K,raw_resource_build!$B:$B,$C399,raw_resource_build!$A:$A,S$396)+SUMIFS(raw_resource_build!$L:$L,raw_resource_build!$B:$B,$C399,raw_resource_build!$A:$A,S$396)","v":0},{"$f":"SUMIFS(raw_resource_build!$K:$K,raw_resource_build!$B:$B,$C399,raw_resource_build!$A:$A,T$396)+SUMIFS(raw_resource_build!$L:$L,raw_resource_build!$B:$B,$C399,raw_resource_build!$A:$A,T$396)","v":0},{"$f":"SUMIFS(raw_resource_build!$K:$K,raw_resource_build!$B:$B,$C399,raw_resource_build!$A:$A,U$396)+SUMIFS(raw_resource_build!$L:$L,raw_resource_build!$B:$B,$C399,raw_resource_build!$A:$A,U$396)","v":0},{"$f":"SUMIFS(raw_resource_build!$K:$K,raw_resource_build!$B:$B,$C399,raw_resource_build!$A:$A,V$396)+SUMIFS(raw_resource_build!$L:$L,raw_resource_build!$B:$B,$C399,raw_resource_build!$A:$A,V$396)","v":0},{"$f":"SUMIFS(raw_resource_build!$K:$K,raw_resource_build!$B:$B,$C399,raw_resource_build!$A:$A,W$396)+SUMIFS(raw_resource_build!$L:$L,raw_resource_build!$B:$B,$C399,raw_resource_build!$A:$A,W$396)","v":0},{"$f":"SUMIFS(raw_resource_build!$K:$K,raw_resource_build!$B:$B,$C399,raw_resource_build!$A:$A,X$396)+SUMIFS(raw_resource_build!$L:$L,raw_resource_build!$B:$B,$C399,raw_resource_build!$A:$A,X$396)","v":0},{"$f":"SUMIFS(raw_resource_build!$K:$K,raw_resource_build!$B:$B,$C399,raw_resource_build!$A:$A,Y$396)+SUMIFS(raw_resource_build!$L:$L,raw_resource_build!$B:$B,$C399,raw_resource_build!$A:$A,Y$396)","v":0},{"$f":"SUMIFS(raw_resource_build!$K:$K,raw_resource_build!$B:$B,$C399,raw_resource_build!$A:$A,Z$396)+SUMIFS(raw_resource_build!$L:$L,raw_resource_build!$B:$B,$C399,raw_resource_build!$A:$A,Z$396)","v":0},{"$f":"SUMIFS(raw_resource_build!$K:$K,raw_resource_build!$B:$B,$C399,raw_resource_build!$A:$A,AA$396)+SUMIFS(raw_resource_build!$L:$L,raw_resource_build!$B:$B,$C399,raw_resource_build!$A:$A,AA$396)","v":0},{"$f":"SUMIFS(raw_resource_build!$K:$K,raw_resource_build!$B:$B,$C399,raw_resource_build!$A:$A,AB$396)+SUMIFS(raw_resource_build!$L:$L,raw_resource_build!$B:$B,$C399,raw_resource_build!$A:$A,AB$396)","v":0},{"$f":"SUMIFS(raw_resource_build!$K:$K,raw_resource_build!$B:$B,$C399,raw_resource_build!$A:$A,AC$396)+SUMIFS(raw_resource_build!$L:$L,raw_resource_build!$B:$B,$C399,raw_resource_build!$A:$A,AC$396)","v":0},{"$f":"SUMIFS(raw_resource_build!$K:$K,raw_resource_build!$B:$B,$C399,raw_resource_build!$A:$A,AD$396)+SUMIFS(raw_resource_build!$L:$L,raw_resource_build!$B:$B,$C399,raw_resource_build!$A:$A,AD$396)","v":0},{"$f":"SUMIFS(raw_resource_build!$K:$K,raw_resource_build!$B:$B,$C399,raw_resource_build!$A:$A,AE$396)+SUMIFS(raw_resource_build!$L:$L,raw_resource_build!$B:$B,$C399,raw_resource_build!$A:$A,AE$396)","v":0},{"$f":"SUMIFS(raw_resource_build!$K:$K,raw_resource_build!$B:$B,$C399,raw_resource_build!$A:$A,AF$396)+SUMIFS(raw_resource_build!$L:$L,raw_resource_build!$B:$B,$C399,raw_resource_build!$A:$A,AF$396)","v":0},{"$f":"SUMIFS(raw_resource_build!$K:$K,raw_resource_build!$B:$B,$C399,raw_resource_build!$A:$A,AG$396)+SUMIFS(raw_resource_build!$L:$L,raw_resource_build!$B:$B,$C399,raw_resource_build!$A:$A,AG$396)","v":0},{"$f":"SUMIFS(raw_resource_build!$K:$K,raw_resource_build!$B:$B,$C399,raw_resource_build!$A:$A,AH$396)+SUMIFS(raw_resource_build!$L:$L,raw_resource_build!$B:$B,$C399,raw_resource_build!$A:$A,AH$396)","v":0},{"$f":"SUMIFS(raw_resource_build!$K:$K,raw_resource_build!$B:$B,$C399,raw_resource_build!$A:$A,AI$396)+SUMIFS(raw_resource_build!$L:$L,raw_resource_build!$B:$B,$C399,raw_resource_build!$A:$A,AI$396)","v":24},{"$f":"SUMIFS(raw_resource_build!$K:$K,raw_resource_build!$B:$B,$C399,raw_resource_build!$A:$A,AJ$396)+SUMIFS(raw_resource_build!$L:$L,raw_resource_build!$B:$B,$C399,raw_resource_build!$A:$A,AJ$396)","v":0},{"$f":"SUMIFS(raw_resource_build!$K:$K,raw_resource_build!$B:$B,$C399,raw_resource_build!$A:$A,AK$396)+SUMIFS(raw_resource_build!$L:$L,raw_resource_build!$B:$B,$C399,raw_resource_build!$A:$A,AK$396)","v":0},{"$f":"SUMIFS(raw_resource_build!$K:$K,raw_resource_build!$B:$B,$C399,raw_resource_build!$A:$A,AL$396)+SUMIFS(raw_resource_build!$L:$L,raw_resource_build!$B:$B,$C399,raw_resource_build!$A:$A,AL$396)","v":0},{"$f":"SUMIFS(raw_resource_build!$K:$K,raw_resource_build!$B:$B,$C399,raw_resource_build!$A:$A,AM$396)+SUMIFS(raw_resource_build!$L:$L,raw_resource_build!$B:$B,$C399,raw_resource_build!$A:$A,AM$396)","v":0},{"$f":"SUMIFS(raw_resource_build!$K:$K,raw_resource_build!$B:$B,$C399,raw_resource_build!$A:$A,AN$396)+SUMIFS(raw_resource_build!$L:$L,raw_resource_build!$B:$B,$C399,raw_resource_build!$A:$A,AN$396)","v":0}]
[null,null,{"$f":"Lists!B38","v":"Northern_California_Ex_Geothermal"},{"$f":"IF(INDEX(raw_resource_build!J:J,MATCH(C400,raw_resource_build!$B:$B,0))=0,\"N/A\",INDEX(raw_resource_build!J:J,MATCH(C400,raw_resource_build!$B:$B,0)))","v":"Northern_California_Ex"},{"$f":"SUMIFS(raw_resource_build!$K:$K,raw_resource_build!$B:$B,$C400,raw_resource_build!$A:$A,E$396)+SUMIFS(raw_resource_build!$L:$L,raw_resource_build!$B:$B,$C400,raw_resource_build!$A:$A,E$396)","v":0},{"$f":"SUMIFS(raw_resource_build!$K:$K,raw_resource_build!$B:$B,$C400,raw_resource_build!$A:$A,F$396)+SUMIFS(raw_resource_build!$L:$L,raw_resource_build!$B:$B,$C400,raw_resource_build!$A:$A,F$396)","v":0},{"$f":"SUMIFS(raw_resource_build!$K:$K,raw_resource_build!$B:$B,$C400,raw_resource_build!$A:$A,G$396)+SUMIFS(raw_resource_build!$L:$L,raw_resource_build!$B:$B,$C400,raw_resource_build!$A:$A,G$396)","v":0},{"$f":"SUMIFS(raw_resource_build!$K:$K,raw_resource_build!$B:$B,$C400,raw_resource_build!$A:$A,H$396)+SUMIFS(raw_resource_build!$L:$L,raw_resource_build!$B:$B,$C400,raw_resource_build!$A:$A,H$396)","v":0},{"$f":"SUMIFS(raw_resource_build!$K:$K,raw_resource_build!$B:$B,$C400,raw_resource_build!$A:$A,I$396)+SUMIFS(raw_resource_build!$L:$L,raw_resource_build!$B:$B,$C400,raw_resource_build!$A:$A,I$396)","v":0},{"$f":"SUMIFS(raw_resource_build!$K:$K,raw_resource_build!$B:$B,$C400,raw_resource_build!$A:$A,J$396)+SUMIFS(raw_resource_build!$L:$L,raw_resource_build!$B:$B,$C400,raw_resource_build!$A:$A,J$396)","v":0},{"$f":"SUMIFS(raw_resource_build!$K:$K,raw_resource_build!$B:$B,$C400,raw_resource_build!$A:$A,K$396)+SUMIFS(raw_resource_build!$L:$L,raw_resource_build!$B:$B,$C400,raw_resource_build!$A:$A,K$396)","v":0},{"$f":"SUMIFS(raw_resource_build!$K:$K,raw_resource_build!$B:$B,$C400,raw_resource_build!$A:$A,L$396)+SUMIFS(raw_resource_build!$L:$L,raw_resource_build!$B:$B,$C400,raw_resource_build!$A:$A,L$396)","v":0},{"$f":"SUMIFS(raw_resource_build!$K:$K,raw_resource_build!$B:$B,$C400,raw_resource_build!$A:$A,M$396)+SUMIFS(raw_resource_build!$L:$L,raw_resource_build!$B:$B,$C400,raw_resource_build!$A:$A,M$396)","v":0},{"$f":"SUMIFS(raw_resource_build!$K:$K,raw_resource_build!$B:$B,$C400,raw_resource_build!$A:$A,N$396)+SUMIFS(raw_resource_build!$L:$L,raw_resource_build!$B:$B,$C400,raw_resource_build!$A:$A,N$396)","v":0},{"$f":"SUMIFS(raw_resource_build!$K:$K,raw_resource_build!$B:$B,$C400,raw_resource_build!$A:$A,O$396)+SUMIFS(raw_resource_build!$L:$L,raw_resource_build!$B:$B,$C400,raw_resource_build!$A:$A,O$396)","v":0},{"$f":"SUMIFS(raw_resource_build!$K:$K,raw_resource_build!$B:$B,$C400,raw_resource_build!$A:$A,P$396)+SUMIFS(raw_resource_build!$L:$L,raw_resource_build!$B:$B,$C400,raw_resource_build!$A:$A,P$396)","v":0},{"$f":"SUMIFS(raw_resource_build!$K:$K,raw_resource_build!$B:$B,$C400,raw_resource_build!$A:$A,Q$396)+SUMIFS(raw_resource_build!$L:$L,raw_resource_build!$B:$B,$C400,raw_resource_build!$A:$A,Q$396)","v":0},{"$f":"SUMIFS(raw_resource_build!$K:$K,raw_resource_build!$B:$B,$C400,raw_resource_build!$A:$A,R$396)+SUMIFS(raw_resource_build!$L:$L,raw_resource_build!$B:$B,$C400,raw_resource_build!$A:$A,R$396)","v":0},{"$f":"SUMIFS(raw_resource_build!$K:$K,raw_resource_build!$B:$B,$C400,raw_resource_build!$A:$A,S$396)+SUMIFS(raw_resource_build!$L:$L,raw_resource_build!$B:$B,$C400,raw_resource_build!$A:$A,S$396)","v":0},{"$f":"SUMIFS(raw_resource_build!$K:$K,raw_resource_build!$B:$B,$C400,raw_resource_build!$A:$A,T$396)+SUMIFS(raw_resource_build!$L:$L,raw_resource_build!$B:$B,$C400,raw_resource_build!$A:$A,T$396)","v":0},{"$f":"SUMIFS(raw_resource_build!$K:$K,raw_resource_build!$B:$B,$C400,raw_resource_build!$A:$A,U$396)+SUMIFS(raw_resource_build!$L:$L,raw_resource_build!$B:$B,$C400,raw_resource_build!$A:$A,U$396)","v":0},{"$f":"SUMIFS(raw_resource_build!$K:$K,raw_resource_build!$B:$B,$C400,raw_resource_build!$A:$A,V$396)+SUMIFS(raw_resource_build!$L:$L,raw_resource_build!$B:$B,$C400,raw_resource_build!$A:$A,V$396)","v":0},{"$f":"SUMIFS(raw_resource_build!$K:$K,raw_resource_build!$B:$B,$C400,raw_resource_build!$A:$A,W$396)+SUMIFS(raw_resource_build!$L:$L,raw_resource_build!$B:$B,$C400,raw_resource_build!$A:$A,W$396)","v":0},{"$f":"SUMIFS(raw_resource_build!$K:$K,raw_resource_build!$B:$B,$C400,raw_resource_build!$A:$A,X$396)+SUMIFS(raw_resource_build!$L:$L,raw_resource_build!$B:$B,$C400,raw_resource_build!$A:$A,X$396)","v":0},{"$f":"SUMIFS(raw_resource_build!$K:$K,raw_resource_build!$B:$B,$C400,raw_resource_build!$A:$A,Y$396)+SUMIFS(raw_resource_build!$L:$L,raw_resource_build!$B:$B,$C400,raw_resource_build!$A:$A,Y$396)","v":0},{"$f":"SUMIFS(raw_resource_build!$K:$K,raw_resource_build!$B:$B,$C400,raw_resource_build!$A:$A,Z$396)+SUMIFS(raw_resource_build!$L:$L,raw_resource_build!$B:$B,$C400,raw_resource_build!$A:$A,Z$396)","v":0},{"$f":"SUMIFS(raw_resource_build!$K:$K,raw_resource_build!$B:$B,$C400,raw_resource_build!$A:$A,AA$396)+SUMIFS(raw_resource_build!$L:$L,raw_resource_build!$B:$B,$C400,raw_resource_build!$A:$A,AA$396)","v":0},{"$f":"SUMIFS(raw_resource_build!$K:$K,raw_resource_build!$B:$B,$C400,raw_resource_build!$A:$A,AB$396)+SUMIFS(raw_resource_build!$L:$L,raw_resource_build!$B:$B,$C400,raw_resource_build!$A:$A,AB$396)","v":0},{"$f":"SUMIFS(raw_resource_build!$K:$K,raw_resource_build!$B:$B,$C400,raw_resource_build!$A:$A,AC$396)+SUMIFS(raw_resource_build!$L:$L,raw_resource_build!$B:$B,$C400,raw_resource_build!$A:$A,AC$396)","v":0},{"$f":"SUMIFS(raw_resource_build!$K:$K,raw_resource_build!$B:$B,$C400,raw_resource_build!$A:$A,AD$396)+SUMIFS(raw_resource_build!$L:$L,raw_resource_build!$B:$B,$C400,raw_resource_build!$A:$A,AD$396)","v":0},{"$f":"SUMIFS(raw_resource_build!$K:$K,raw_resource_build!$B:$B,$C400,raw_resource_build!$A:$A,AE$396)+SUMIFS(raw_resource_build!$L:$L,raw_resource_build!$B:$B,$C400,raw_resource_build!$A:$A,AE$396)","v":0},{"$f":"SUMIFS(raw_resource_build!$K:$K,raw_resource_build!$B:$B,$C400,raw_resource_build!$A:$A,AF$396)+SUMIFS(raw_resource_build!$L:$L,raw_resource_build!$B:$B,$C400,raw_resource_build!$A:$A,AF$396)","v":0},{"$f":"SUMIFS(raw_resource_build!$K:$K,raw_resource_build!$B:$B,$C400,raw_resource_build!$A:$A,AG$396)+SUMIFS(raw_resource_build!$L:$L,raw_resource_build!$B:$B,$C400,raw_resource_build!$A:$A,AG$396)","v":0},{"$f":"SUMIFS(raw_resource_build!$K:$K,raw_resource_build!$B:$B,$C400,raw_resource_build!$A:$A,AH$396)+SUMIFS(raw_resource_build!$L:$L,raw_resource_build!$B:$B,$C400,raw_resource_build!$A:$A,AH$396)","v":0},{"$f":"SUMIFS(raw_resource_build!$K:$K,raw_resource_build!$B:$B,$C400,raw_resource_build!$A:$A,AI$396)+SUMIFS(raw_resource_build!$L:$L,raw_resource_build!$B:$B,$C400,raw_resource_build!$A:$A,AI$396)","v":469},{"$f":"SUMIFS(raw_resource_build!$K:$K,raw_resource_build!$B:$B,$C400,raw_resource_build!$A:$A,AJ$396)+SUMIFS(raw_resource_build!$L:$L,raw_resource_build!$B:$B,$C400,raw_resource_build!$A:$A,AJ$396)","v":0},{"$f":"SUMIFS(raw_resource_build!$K:$K,raw_resource_build!$B:$B,$C400,raw_resource_build!$A:$A,AK$396)+SUMIFS(raw_resource_build!$L:$L,raw_resource_build!$B:$B,$C400,raw_resource_build!$A:$A,AK$396)","v":0},{"$f":"SUMIFS(raw_resource_build!$K:$K,raw_resource_build!$B:$B,$C400,raw_resource_build!$A:$A,AL$396)+SUMIFS(raw_resource_build!$L:$L,raw_resource_build!$B:$B,$C400,raw_resource_build!$A:$A,AL$396)","v":0},{"$f":"SUMIFS(raw_resource_build!$K:$K,raw_resource_build!$B:$B,$C400,raw_resource_build!$A:$A,AM$396)+SUMIFS(raw_resource_build!$L:$L,raw_resource_build!$B:$B,$C400,raw_resource_build!$A:$A,AM$396)","v":0},{"$f":"SUMIFS(raw_resource_build!$K:$K,raw_resource_build!$B:$B,$C400,raw_resource_build!$A:$A,AN$396)+SUMIFS(raw_resource_build!$L:$L,raw_resource_build!$B:$B,$C400,raw_resource_build!$A:$A,AN$396)","v":0}]
[null,null,{"$f":"Lists!B39","v":"Pacific_Northwest_Geothermal"},{"$f":"IF(INDEX(raw_resource_build!J:J,MATCH(C401,raw_resource_build!$B:$B,0))=0,\"N/A\",INDEX(raw_resource_build!J:J,MATCH(C401,raw_resource_build!$B:$B,0)))","v":"N/A"},{"$f":"SUMIFS(raw_resource_build!$K:$K,raw_resource_build!$B:$B,$C401,raw_resource_build!$A:$A,E$396)+SUMIFS(raw_resource_build!$L:$L,raw_resource_build!$B:$B,$C401,raw_resource_build!$A:$A,E$396)","v":0},{"$f":"SUMIFS(raw_resource_build!$K:$K,raw_resource_build!$B:$B,$C401,raw_resource_build!$A:$A,F$396)+SUMIFS(raw_resource_build!$L:$L,raw_resource_build!$B:$B,$C401,raw_resource_build!$A:$A,F$396)","v":0},{"$f":"SUMIFS(raw_resource_build!$K:$K,raw_resource_build!$B:$B,$C401,raw_resource_build!$A:$A,G$396)+SUMIFS(raw_resource_build!$L:$L,raw_resource_build!$B:$B,$C401,raw_resource_build!$A:$A,G$396)","v":0},{"$f":"SUMIFS(raw_resource_build!$K:$K,raw_resource_build!$B:$B,$C401,raw_resource_build!$A:$A,H$396)+SUMIFS(raw_resource_build!$L:$L,raw_resource_build!$B:$B,$C401,raw_resource_build!$A:$A,H$396)","v":0},{"$f":"SUMIFS(raw_resource_build!$K:$K,raw_resource_build!$B:$B,$C401,raw_resource_build!$A:$A,I$396)+SUMIFS(raw_resource_build!$L:$L,raw_resource_build!$B:$B,$C401,raw_resource_build!$A:$A,I$396)","v":0},{"$f":"SUMIFS(raw_resource_build!$K:$K,raw_resource_build!$B:$B,$C401,raw_resource_build!$A:$A,J$396)+SUMIFS(raw_resource_build!$L:$L,raw_resource_build!$B:$B,$C401,raw_resource_build!$A:$A,J$396)","v":0},{"$f":"SUMIFS(raw_resource_build!$K:$K,raw_resource_build!$B:$B,$C401,raw_resource_build!$A:$A,K$396)+SUMIFS(raw_resource_build!$L:$L,raw_resource_build!$B:$B,$C401,raw_resource_build!$A:$A,K$396)","v":0},{"$f":"SUMIFS(raw_resource_build!$K:$K,raw_resource_build!$B:$B,$C401,raw_resource_build!$A:$A,L$396)+SUMIFS(raw_resource_build!$L:$L,raw_resource_build!$B:$B,$C401,raw_resource_build!$A:$A,L$396)","v":0},{"$f":"SUMIFS(raw_resource_build!$K:$K,raw_resource_build!$B:$B,$C401,raw_resource_build!$A:$A,M$396)+SUMIFS(raw_resource_build!$L:$L,raw_resource_build!$B:$B,$C401,raw_resource_build!$A:$A,M$396)","v":0},{"$f":"SUMIFS(raw_resource_build!$K:$K,raw_resource_build!$B:$B,$C401,raw_resource_build!$A:$A,N$396)+SUMIFS(raw_resource_build!$L:$L,raw_resource_build!$B:$B,$C401,raw_resource_build!$A:$A,N$396)","v":0},{"$f":"SUMIFS(raw_resource_build!$K:$K,raw_resource_build!$B:$B,$C401,raw_resource_build!$A:$A,O$396)+SUMIFS(raw_resource_build!$L:$L,raw_resource_build!$B:$B,$C401,raw_resource_build!$A:$A,O$396)","v":0},{"$f":"SUMIFS(raw_resource_build!$K:$K,raw_resource_build!$B:$B,$C401,raw_resource_build!$A:$A,P$396)+SUMIFS(raw_resource_build!$L:$L,raw_resource_build!$B:$B,$C401,raw_resource_build!$A:$A,P$396)","v":0},{"$f":"SUMIFS(raw_resource_build!$K:$K,raw_resource_build!$B:$B,$C401,raw_resource_build!$A:$A,Q$396)+SUMIFS(raw_resource_build!$L:$L,raw_resource_build!$B:$B,$C401,raw_resource_build!$A:$A,Q$396)","v":0},{"$f":"SUMIFS(raw_resource_build!$K:$K,raw_resource_build!$B:$B,$C401,raw_resource_build!$A:$A,R$396)+SUMIFS(raw_resource_build!$L:$L,raw_resource_build!$B:$B,$C401,raw_resource_build!$A:$A,R$396)","v":0},{"$f":"SUMIFS(raw_resource_build!$K:$K,raw_resource_build!$B:$B,$C401,raw_resource_build!$A:$A,S$396)+SUMIFS(raw_resource_build!$L:$L,raw_resource_build!$B:$B,$C401,raw_resource_build!$A:$A,S$396)","v":0},{"$f":"SUMIFS(raw_resource_build!$K:$K,raw_resource_build!$B:$B,$C401,raw_resource_build!$A:$A,T$396)+SUMIFS(raw_resource_build!$L:$L,raw_resource_build!$B:$B,$C401,raw_resource_build!$A:$A,T$396)","v":0},{"$f":"SUMIFS(raw_resource_build!$K:$K,raw_resource_build!$B:$B,$C401,raw_resource_build!$A:$A,U$396)+SUMIFS(raw_resource_build!$L:$L,raw_resource_build!$B:$B,$C401,raw_resource_build!$A:$A,U$396)","v":0},{"$f":"SUMIFS(raw_resource_build!$K:$K,raw_resource_build!$B:$B,$C401,raw_resource_build!$A:$A,V$396)+SUMIFS(raw_resource_build!$L:$L,raw_resource_build!$B:$B,$C401,raw_resource_build!$A:$A,V$396)","v":0},{"$f":"SUMIFS(raw_resource_build!$K:$K,raw_resource_build!$B:$B,$C401,raw_resource_build!$A:$A,W$396)+SUMIFS(raw_resource_build!$L:$L,raw_resource_build!$B:$B,$C401,raw_resource_build!$A:$A,W$396)","v":0},{"$f":"SUMIFS(raw_resource_build!$K:$K,raw_resource_build!$B:$B,$C401,raw_resource_build!$A:$A,X$396)+SUMIFS(raw_resource_build!$L:$L,raw_resource_build!$B:$B,$C401,raw_resource_build!$A:$A,X$396)","v":0},{"$f":"SUMIFS(raw_resource_build!$K:$K,raw_resource_build!$B:$B,$C401,raw_resource_build!$A:$A,Y$396)+SUMIFS(raw_resource_build!$L:$L,raw_resource_build!$B:$B,$C401,raw_resource_build!$A:$A,Y$396)","v":0},{"$f":"SUMIFS(raw_resource_build!$K:$K,raw_resource_build!$B:$B,$C401,raw_resource_build!$A:$A,Z$396)+SUMIFS(raw_resource_build!$L:$L,raw_resource_build!$B:$B,$C401,raw_resource_build!$A:$A,Z$396)","v":0},{"$f":"SUMIFS(raw_resource_build!$K:$K,raw_resource_build!$B:$B,$C401,raw_resource_build!$A:$A,AA$396)+SUMIFS(raw_resource_build!$L:$L,raw_resource_build!$B:$B,$C401,raw_resource_build!$A:$A,AA$396)","v":0},{"$f":"SUMIFS(raw_resource_build!$K:$K,raw_resource_build!$B:$B,$C401,raw_resource_build!$A:$A,AB$396)+SUMIFS(raw_resource_build!$L:$L,raw_resource_build!$B:$B,$C401,raw_resource_build!$A:$A,AB$396)","v":0},{"$f":"SUMIFS(raw_resource_build!$K:$K,raw_resource_build!$B:$B,$C401,raw_resource_build!$A:$A,AC$396)+SUMIFS(raw_resource_build!$L:$L,raw_resource_build!$B:$B,$C401,raw_resource_build!$A:$A,AC$396)","v":0},{"$f":"SUMIFS(raw_resource_build!$K:$K,raw_resource_build!$B:$B,$C401,raw_resource_build!$A:$A,AD$396)+SUMIFS(raw_resource_build!$L:$L,raw_resource_build!$B:$B,$C401,raw_resource_build!$A:$A,AD$396)","v":0},{"$f":"SUMIFS(raw_resource_build!$K:$K,raw_resource_build!$B:$B,$C401,raw_resource_build!$A:$A,AE$396)+SUMIFS(raw_resource_build!$L:$L,raw_resource_build!$B:$B,$C401,raw_resource_build!$A:$A,AE$396)","v":0},{"$f":"SUMIFS(raw_resource_build!$K:$K,raw_resource_build!$B:$B,$C401,raw_resource_build!$A:$A,AF$396)+SUMIFS(raw_resource_build!$L:$L,raw_resource_build!$B:$B,$C401,raw_resource_build!$A:$A,AF$396)","v":0},{"$f":"SUMIFS(raw_resource_build!$K:$K,raw_resource_build!$B:$B,$C401,raw_resource_build!$A:$A,AG$396)+SUMIFS(raw_resource_build!$L:$L,raw_resource_build!$B:$B,$C401,raw_resource_build!$A:$A,AG$396)","v":0},{"$f":"SUMIFS(raw_resource_build!$K:$K,raw_resource_build!$B:$B,$C401,raw_resource_build!$A:$A,AH$396)+SUMIFS(raw_resource_build!$L:$L,raw_resource_build!$B:$B,$C401,raw_resource_build!$A:$A,AH$396)","v":0},{"$f":"SUMIFS(raw_resource_build!$K:$K,raw_resource_build!$B:$B,$C401,raw_resource_build!$A:$A,AI$396)+SUMIFS(raw_resource_build!$L:$L,raw_resource_build!$B:$B,$C401,raw_resource_build!$A:$A,AI$396)","v":0},{"$f":"SUMIFS(raw_resource_build!$K:$K,raw_resource_build!$B:$B,$C401,raw_resource_build!$A:$A,AJ$396)+SUMIFS(raw_resource_build!$L:$L,raw_resource_build!$B:$B,$C401,raw_resource_build!$A:$A,AJ$396)","v":0},{"$f":"SUMIFS(raw_resource_build!$K:$K,raw_resource_build!$B:$B,$C401,raw_resource_build!$A:$A,AK$396)+SUMIFS(raw_resource_build!$L:$L,raw_resource_build!$B:$B,$C401,raw_resource_build!$A:$A,AK$396)","v":0},{"$f":"SUMIFS(raw_resource_build!$K:$K,raw_resource_build!$B:$B,$C401,raw_resource_build!$A:$A,AL$396)+SUMIFS(raw_resource_build!$L:$L,raw_resource_build!$B:$B,$C401,raw_resource_build!$A:$A,AL$396)","v":0},{"$f":"SUMIFS(raw_resource_build!$K:$K,raw_resource_build!$B:$B,$C401,raw_resource_build!$A:$A,AM$396)+SUMIFS(raw_resource_build!$L:$L,raw_resource_build!$B:$B,$C401,raw_resource_build!$A:$A,AM$396)","v":0},{"$f":"SUMIFS(raw_resource_build!$K:$K,raw_resource_build!$B:$B,$C401,raw_resource_build!$A:$A,AN$396)+SUMIFS(raw_resource_build!$L:$L,raw_resource_build!$B:$B,$C401,raw_resource_build!$A:$A,AN$396)","v":0}]
[null,null,{"$f":"Lists!B40","v":"Riverside_Palm_Springs_Geothermal"},{"$f":"IF(INDEX(raw_resource_build!J:J,MATCH(C402,raw_resource_build!$B:$B,0))=0,\"N/A\",INDEX(raw_resource_build!J:J,MATCH(C402,raw_resource_build!$B:$B,0)))","v":"SCADSNV-Riverside_Palm_Springs"},{"$f":"SUMIFS(raw_resource_build!$K:$K,raw_resource_build!$B:$B,$C402,raw_resource_build!$A:$A,E$396)+SUMIFS(raw_resource_build!$L:$L,raw_resource_build!$B:$B,$C402,raw_resource_build!$A:$A,E$396)","v":0},{"$f":"SUMIFS(raw_resource_build!$K:$K,raw_resource_build!$B:$B,$C402,raw_resource_build!$A:$A,F$396)+SUMIFS(raw_resource_build!$L:$L,raw_resource_build!$B:$B,$C402,raw_resource_build!$A:$A,F$396)","v":0},{"$f":"SUMIFS(raw_resource_build!$K:$K,raw_resource_build!$B:$B,$C402,raw_resource_build!$A:$A,G$396)+SUMIFS(raw_resource_build!$L:$L,raw_resource_build!$B:$B,$C402,raw_resource_build!$A:$A,G$396)","v":0},{"$f":"SUMIFS(raw_resource_build!$K:$K,raw_resource_build!$B:$B,$C402,raw_resource_build!$A:$A,H$396)+SUMIFS(raw_resource_build!$L:$L,raw_resource_build!$B:$B,$C402,raw_resource_build!$A:$A,H$396)","v":0},{"$f":"SUMIFS(raw_resource_build!$K:$K,raw_resource_build!$B:$B,$C402,raw_resource_build!$A:$A,I$396)+SUMIFS(raw_resource_build!$L:$L,raw_resource_build!$B:$B,$C402,raw_resource_build!$A:$A,I$396)","v":0},{"$f":"SUMIFS(raw_resource_build!$K:$K,raw_resource_build!$B:$B,$C402,raw_resource_build!$A:$A,J$396)+SUMIFS(raw_resource_build!$L:$L,raw_resource_build!$B:$B,$C402,raw_resource_build!$A:$A,J$396)","v":0},{"$f":"SUMIFS(raw_resource_build!$K:$K,raw_resource_build!$B:$B,$C402,raw_resource_build!$A:$A,K$396)+SUMIFS(raw_resource_build!$L:$L,raw_resource_build!$B:$B,$C402,raw_resource_build!$A:$A,K$396)","v":0},{"$f":"SUMIFS(raw_resource_build!$K:$K,raw_resource_build!$B:$B,$C402,raw_resource_build!$A:$A,L$396)+SUMIFS(raw_resource_build!$L:$L,raw_resource_build!$B:$B,$C402,raw_resource_build!$A:$A,L$396)","v":0},{"$f":"SUMIFS(raw_resource_build!$K:$K,raw_resource_build!$B:$B,$C402,raw_resource_build!$A:$A,M$396)+SUMIFS(raw_resource_build!$L:$L,raw_resource_build!$B:$B,$C402,raw_resource_build!$A:$A,M$396)","v":0},{"$f":"SUMIFS(raw_resource_build!$K:$K,raw_resource_build!$B:$B,$C402,raw_resource_build!$A:$A,N$396)+SUMIFS(raw_resource_build!$L:$L,raw_resource_build!$B:$B,$C402,raw_resource_build!$A:$A,N$396)","v":0},{"$f":"SUMIFS(raw_resource_build!$K:$K,raw_resource_build!$B:$B,$C402,raw_resource_build!$A:$A,O$396)+SUMIFS(raw_resource_build!$L:$L,raw_resource_build!$B:$B,$C402,raw_resource_build!$A:$A,O$396)","v":0},{"$f":"SUMIFS(raw_resource_build!$K:$K,raw_resource_build!$B:$B,$C402,raw_resource_build!$A:$A,P$396)+SUMIFS(raw_resource_build!$L:$L,raw_resource_build!$B:$B,$C402,raw_resource_build!$A:$A,P$396)","v":0},{"$f":"SUMIFS(raw_resource_build!$K:$K,raw_resource_build!$B:$B,$C402,raw_resource_build!$A:$A,Q$396)+SUMIFS(raw_resource_build!$L:$L,raw_resource_build!$B:$B,$C402,raw_resource_build!$A:$A,Q$396)","v":0},{"$f":"SUMIFS(raw_resource_build!$K:$K,raw_resource_build!$B:$B,$C402,raw_resource_build!$A:$A,R$396)+SUMIFS(raw_resource_build!$L:$L,raw_resource_build!$B:$B,$C402,raw_resource_build!$A:$A,R$396)","v":0},{"$f":"SUMIFS(raw_resource_build!$K:$K,raw_resource_build!$B:$B,$C402,raw_resource_build!$A:$A,S$396)+SUMIFS(raw_resource_build!$L:$L,raw_resource_build!$B:$B,$C402,raw_resource_build!$A:$A,S$396)","v":0},{"$f":"SUMIFS(raw_resource_build!$K:$K,raw_resource_build!$B:$B,$C402,raw_resource_build!$A:$A,T$396)+SUMIFS(raw_resource_build!$L:$L,raw_resource_build!$B:$B,$C402,raw_resource_build!$A:$A,T$396)","v":0},{"$f":"SUMIFS(raw_resource_build!$K:$K,raw_resource_build!$B:$B,$C402,raw_resource_build!$A:$A,U$396)+SUMIFS(raw_resource_build!$L:$L,raw_resource_build!$B:$B,$C402,raw_resource_build!$A:$A,U$396)","v":0},{"$f":"SUMIFS(raw_resource_build!$K:$K,raw_resource_build!$B:$B,$C402,raw_resource_build!$A:$A,V$396)+SUMIFS(raw_resource_build!$L:$L,raw_resource_build!$B:$B,$C402,raw_resource_build!$A:$A,V$396)","v":0},{"$f":"SUMIFS(raw_resource_build!$K:$K,raw_resource_build!$B:$B,$C402,raw_resource_build!$A:$A,W$396)+SUMIFS(raw_resource_build!$L:$L,raw_resource_build!$B:$B,$C402,raw_resource_build!$A:$A,W$396)","v":0},{"$f":"SUMIFS(raw_resource_build!$K:$K,raw_resource_build!$B:$B,$C402,raw_resource_build!$A:$A,X$396)+SUMIFS(raw_resource_build!$L:$L,raw_resource_build!$B:$B,$C402,raw_resource_build!$A:$A,X$396)","v":0},{"$f":"SUMIFS(raw_resource_build!$K:$K,raw_resource_build!$B:$B,$C402,raw_resource_build!$A:$A,Y$396)+SUMIFS(raw_resource_build!$L:$L,raw_resource_build!$B:$B,$C402,raw_resource_build!$A:$A,Y$396)","v":0},{"$f":"SUMIFS(raw_resource_build!$K:$K,raw_resource_build!$B:$B,$C402,raw_resource_build!$A:$A,Z$396)+SUMIFS(raw_resource_build!$L:$L,raw_resource_build!$B:$B,$C402,raw_resource_build!$A:$A,Z$396)","v":0},{"$f":"SUMIFS(raw_resource_build!$K:$K,raw_resource_build!$B:$B,$C402,raw_resource_build!$A:$A,AA$396)+SUMIFS(raw_resource_build!$L:$L,raw_resource_build!$B:$B,$C402,raw_resource_build!$A:$A,AA$396)","v":0},{"$f":"SUMIFS(raw_resource_build!$K:$K,raw_resource_build!$B:$B,$C402,raw_resource_build!$A:$A,AB$396)+SUMIFS(raw_resource_build!$L:$L,raw_resource_build!$B:$B,$C402,raw_resource_build!$A:$A,AB$396)","v":0},{"$f":"SUMIFS(raw_resource_build!$K:$K,raw_resource_build!$B:$B,$C402,raw_resource_build!$A:$A,AC$396)+SUMIFS(raw_resource_build!$L:$L,raw_resource_build!$B:$B,$C402,raw_resource_build!$A:$A,AC$396)","v":0},{"$f":"SUMIFS(raw_resource_build!$K:$K,raw_resource_build!$B:$B,$C402,raw_resource_build!$A:$A,AD$396)+SUMIFS(raw_resource_build!$L:$L,raw_resource_build!$B:$B,$C402,raw_resource_build!$A:$A,AD$396)","v":0},{"$f":"SUMIFS(raw_resource_build!$K:$K,raw_resource_build!$B:$B,$C402,raw_resource_build!$A:$A,AE$396)+SUMIFS(raw_resource_build!$L:$L,raw_resource_build!$B:$B,$C402,raw_resource_build!$A:$A,AE$396)","v":0},{"$f":"SUMIFS(raw_resource_build!$K:$K,raw_resource_build!$B:$B,$C402,raw_resource_build!$A:$A,AF$396)+SUMIFS(raw_resource_build!$L:$L,raw_resource_build!$B:$B,$C402,raw_resource_build!$A:$A,AF$396)","v":0},{"$f":"SUMIFS(raw_resource_build!$K:$K,raw_resource_build!$B:$B,$C402,raw_resource_build!$A:$A,AG$396)+SUMIFS(raw_resource_build!$L:$L,raw_resource_build!$B:$B,$C402,raw_resource_build!$A:$A,AG$396)","v":0},{"$f":"SUMIFS(raw_resource_build!$K:$K,raw_resource_build!$B:$B,$C402,raw_resource_build!$A:$A,AH$396)+SUMIFS(raw_resource_build!$L:$L,raw_resource_build!$B:$B,$C402,raw_resource_build!$A:$A,AH$396)","v":0},{"$f":"SUMIFS(raw_resource_build!$K:$K,raw_resource_build!$B:$B,$C402,raw_resource_build!$A:$A,AI$396)+SUMIFS(raw_resource_build!$L:$L,raw_resource_build!$B:$B,$C402,raw_resource_build!$A:$A,AI$396)","v":32},{"$f":"SUMIFS(raw_resource_build!$K:$K,raw_resource_build!$B:$B,$C402,raw_resource_build!$A:$A,AJ$396)+SUMIFS(raw_resource_build!$L:$L,raw_resource_build!$B:$B,$C402,raw_resource_build!$A:$A,AJ$396)","v":0},{"$f":"SUMIFS(raw_resource_build!$K:$K,raw_resource_build!$B:$B,$C402,raw_resource_build!$A:$A,AK$396)+SUMIFS(raw_resource_build!$L:$L,raw_resource_build!$B:$B,$C402,raw_resource_build!$A:$A,AK$396)","v":0},{"$f":"SUMIFS(raw_resource_build!$K:$K,raw_resource_build!$B:$B,$C402,raw_resource_build!$A:$A,AL$396)+SUMIFS(raw_resource_build!$L:$L,raw_resource_build!$B:$B,$C402,raw_resource_build!$A:$A,AL$396)","v":0},{"$f":"SUMIFS(raw_resource_build!$K:$K,raw_resource_build!$B:$B,$C402,raw_resource_build!$A:$A,AM$396)+SUMIFS(raw_resource_build!$L:$L,raw_resource_build!$B:$B,$C402,raw_resource_build!$A:$A,AM$396)","v":0},{"$f":"SUMIFS(raw_resource_build!$K:$K,raw_resource_build!$B:$B,$C402,raw_resource_build!$A:$A,AN$396)+SUMIFS(raw_resource_build!$L:$L,raw_resource_build!$B:$B,$C402,raw_resource_build!$A:$A,AN$396)","v":0}]
[null,null,{"$f":"Lists!B41","v":"Solano_Geothermal"},{"$f":"IF(INDEX(raw_resource_build!J:J,MATCH(C403,raw_resource_build!$B:$B,0))=0,\"N/A\",INDEX(raw_resource_build!J:J,MATCH(C403,raw_resource_build!$B:$B,0)))","v":"Solano-Sacramento_River"},{"$f":"SUMIFS(raw_resource_build!$K:$K,raw_resource_build!$B:$B,$C403,raw_resource_build!$A:$A,E$396)+SUMIFS(raw_resource_build!$L:$L,raw_resource_build!$B:$B,$C403,raw_resource_build!$A:$A,E$396)","v":0},{"$f":"SUMIFS(raw_resource_build!$K:$K,raw_resource_build!$B:$B,$C403,raw_resource_build!$A:$A,F$396)+SUMIFS(raw_resource_build!$L:$L,raw_resource_build!$B:$B,$C403,raw_resource_build!$A:$A,F$396)","v":0},{"$f":"SUMIFS(raw_resource_build!$K:$K,raw_resource_build!$B:$B,$C403,raw_resource_build!$A:$A,G$396)+SUMIFS(raw_resource_build!$L:$L,raw_resource_build!$B:$B,$C403,raw_resource_build!$A:$A,G$396)","v":0},{"$f":"SUMIFS(raw_resource_build!$K:$K,raw_resource_build!$B:$B,$C403,raw_resource_build!$A:$A,H$396)+SUMIFS(raw_resource_build!$L:$L,raw_resource_build!$B:$B,$C403,raw_resource_build!$A:$A,H$396)","v":0},{"$f":"SUMIFS(raw_resource_build!$K:$K,raw_resource_build!$B:$B,$C403,raw_resource_build!$A:$A,I$396)+SUMIFS(raw_resource_build!$L:$L,raw_resource_build!$B:$B,$C403,raw_resource_build!$A:$A,I$396)","v":0},{"$f":"SUMIFS(raw_resource_build!$K:$K,raw_resource_build!$B:$B,$C403,raw_resource_build!$A:$A,J$396)+SUMIFS(raw_resource_build!$L:$L,raw_resource_build!$B:$B,$C403,raw_resource_build!$A:$A,J$396)","v":0},{"$f":"SUMIFS(raw_resource_build!$K:$K,raw_resource_build!$B:$B,$C403,raw_resource_build!$A:$A,K$396)+SUMIFS(raw_resource_build!$L:$L,raw_resource_build!$B:$B,$C403,raw_resource_build!$A:$A,K$396)","v":0},{"$f":"SUMIFS(raw_resource_build!$K:$K,raw_resource_build!$B:$B,$C403,raw_resource_build!$A:$A,L$396)+SUMIFS(raw_resource_build!$L:$L,raw_resource_build!$B:$B,$C403,raw_resource_build!$A:$A,L$396)","v":0},{"$f":"SUMIFS(raw_resource_build!$K:$K,raw_resource_build!$B:$B,$C403,raw_resource_build!$A:$A,M$396)+SUMIFS(raw_resource_build!$L:$L,raw_resource_build!$B:$B,$C403,raw_resource_build!$A:$A,M$396)","v":0},{"$f":"SUMIFS(raw_resource_build!$K:$K,raw_resource_build!$B:$B,$C403,raw_resource_build!$A:$A,N$396)+SUMIFS(raw_resource_build!$L:$L,raw_resource_build!$B:$B,$C403,raw_resource_build!$A:$A,N$396)","v":135},{"$f":"SUMIFS(raw_resource_build!$K:$K,raw_resource_build!$B:$B,$C403,raw_resource_build!$A:$A,O$396)+SUMIFS(raw_resource_build!$L:$L,raw_resource_build!$B:$B,$C403,raw_resource_build!$A:$A,O$396)","v":0},{"$f":"SUMIFS(raw_resource_build!$K:$K,raw_resource_build!$B:$B,$C403,raw_resource_build!$A:$A,P$396)+SUMIFS(raw_resource_build!$L:$L,raw_resource_build!$B:$B,$C403,raw_resource_build!$A:$A,P$396)","v":135},{"$f":"SUMIFS(raw_resource_build!$K:$K,raw_resource_build!$B:$B,$C403,raw_resource_build!$A:$A,Q$396)+SUMIFS(raw_resource_build!$L:$L,raw_resource_build!$B:$B,$C403,raw_resource_build!$A:$A,Q$396)","v":0},{"$f":"SUMIFS(raw_resource_build!$K:$K,raw_resource_build!$B:$B,$C403,raw_resource_build!$A:$A,R$396)+SUMIFS(raw_resource_build!$L:$L,raw_resource_build!$B:$B,$C403,raw_resource_build!$A:$A,R$396)","v":0},{"$f":"SUMIFS(raw_resource_build!$K:$K,raw_resource_build!$B:$B,$C403,raw_resource_build!$A:$A,S$396)+SUMIFS(raw_resource_build!$L:$L,raw_resource_build!$B:$B,$C403,raw_resource_build!$A:$A,S$396)","v":0},{"$f":"SUMIFS(raw_resource_build!$K:$K,raw_resource_build!$B:$B,$C403,raw_resource_build!$A:$A,T$396)+SUMIFS(raw_resource_build!$L:$L,raw_resource_build!$B:$B,$C403,raw_resource_build!$A:$A,T$396)","v":135},{"$f":"SUMIFS(raw_resource_build!$K:$K,raw_resource_build!$B:$B,$C403,raw_resource_build!$A:$A,U$396)+SUMIFS(raw_resource_build!$L:$L,raw_resource_build!$B:$B,$C403,raw_resource_build!$A:$A,U$396)","v":0},{"$f":"SUMIFS(raw_resource_build!$K:$K,raw_resource_build!$B:$B,$C403,raw_resource_build!$A:$A,V$396)+SUMIFS(raw_resource_build!$L:$L,raw_resource_build!$B:$B,$C403,raw_resource_build!$A:$A,V$396)","v":0},{"$f":"SUMIFS(raw_resource_build!$K:$K,raw_resource_build!$B:$B,$C403,raw_resource_build!$A:$A,W$396)+SUMIFS(raw_resource_build!$L:$L,raw_resource_build!$B:$B,$C403,raw_resource_build!$A:$A,W$396)","v":0},{"$f":"SUMIFS(raw_resource_build!$K:$K,raw_resource_build!$B:$B,$C403,raw_resource_build!$A:$A,X$396)+SUMIFS(raw_resource_build!$L:$L,raw_resource_build!$B:$B,$C403,raw_resource_build!$A:$A,X$396)","v":0},{"$f":"SUMIFS(raw_resource_build!$K:$K,raw_resource_build!$B:$B,$C403,raw_resource_build!$A:$A,Y$396)+SUMIFS(raw_resource_build!$L:$L,raw_resource_build!$B:$B,$C403,raw_resource_build!$A:$A,Y$396)","v":0},{"$f":"SUMIFS(raw_resource_build!$K:$K,raw_resource_build!$B:$B,$C403,raw_resource_build!$A:$A,Z$396)+SUMIFS(raw_resource_build!$L:$L,raw_resource_build!$B:$B,$C403,raw_resource_build!$A:$A,Z$396)","v":0},{"$f":"SUMIFS(raw_resource_build!$K:$K,raw_resource_build!$B:$B,$C403,raw_resource_build!$A:$A,AA$396)+SUMIFS(raw_resource_build!$L:$L,raw_resource_build!$B:$B,$C403,raw_resource_build!$A:$A,AA$396)","v":0},{"$f":"SUMIFS(raw_resource_build!$K:$K,raw_resource_build!$B:$B,$C403,raw_resource_build!$A:$A,AB$396)+SUMIFS(raw_resource_build!$L:$L,raw_resource_build!$B:$B,$C403,raw_resource_build!$A:$A,AB$396)","v":0},{"$f":"SUMIFS(raw_resource_build!$K:$K,raw_resource_build!$B:$B,$C403,raw_resource_build!$A:$A,AC$396)+SUMIFS(raw_resource_build!$L:$L,raw_resource_build!$B:$B,$C403,raw_resource_build!$A:$A,AC$396)","v":0},{"$f":"SUMIFS(raw_resource_build!$K:$K,raw_resource_build!$B:$B,$C403,raw_resource_build!$A:$A,AD$396)+SUMIFS(raw_resource_build!$L:$L,raw_resource_build!$B:$B,$C403,raw_resource_build!$A:$A,AD$396)","v":0},{"$f":"SUMIFS(raw_resource_build!$K:$K,raw_resource_build!$B:$B,$C403,raw_resource_build!$A:$A,AE$396)+SUMIFS(raw_resource_build!$L:$L,raw_resource_build!$B:$B,$C403,raw_resource_build!$A:$A,AE$396)","v":0},{"$f":"SUMIFS(raw_resource_build!$K:$K,raw_resource_build!$B:$B,$C403,raw_resource_build!$A:$A,AF$396)+SUMIFS(raw_resource_build!$L:$L,raw_resource_build!$B:$B,$C403,raw_resource_build!$A:$A,AF$396)","v":0},{"$f":"SUMIFS(raw_resource_build!$K:$K,raw_resource_build!$B:$B,$C403,raw_resource_build!$A:$A,AG$396)+SUMIFS(raw_resource_build!$L:$L,raw_resource_build!$B:$B,$C403,raw_resource_build!$A:$A,AG$396)","v":0},{"$f":"SUMIFS(raw_resource_build!$K:$K,raw_resource_build!$B:$B,$C403,raw_resource_build!$A:$A,AH$396)+SUMIFS(raw_resource_build!$L:$L,raw_resource_build!$B:$B,$C403,raw_resource_build!$A:$A,AH$396)","v":0},{"$f":"SUMIFS(raw_resource_build!$K:$K,raw_resource_build!$B:$B,$C403,raw_resource_build!$A:$A,AI$396)+SUMIFS(raw_resource_build!$L:$L,raw_resource_build!$B:$B,$C403,raw_resource_build!$A:$A,AI$396)","v":135},{"$f":"SUMIFS(raw_resource_build!$K:$K,raw_resource_build!$B:$B,$C403,raw_resource_build!$A:$A,AJ$396)+SUMIFS(raw_resource_build!$L:$L,raw_resource_build!$B:$B,$C403,raw_resource_build!$A:$A,AJ$396)","v":0},{"$f":"SUMIFS(raw_resource_build!$K:$K,raw_resource_build!$B:$B,$C403,raw_resource_build!$A:$A,AK$396)+SUMIFS(raw_resource_build!$L:$L,raw_resource_build!$B:$B,$C403,raw_resource_build!$A:$A,AK$396)","v":0},{"$f":"SUMIFS(raw_resource_build!$K:$K,raw_resource_build!$B:$B,$C403,raw_resource_build!$A:$A,AL$396)+SUMIFS(raw_resource_build!$L:$L,raw_resource_build!$B:$B,$C403,raw_resource_build!$A:$A,AL$396)","v":0},{"$f":"SUMIFS(raw_resource_build!$K:$K,raw_resource_build!$B:$B,$C403,raw_resource_build!$A:$A,AM$396)+SUMIFS(raw_resource_build!$L:$L,raw_resource_build!$B:$B,$C403,raw_resource_build!$A:$A,AM$396)","v":0},{"$f":"SUMIFS(raw_resource_build!$K:$K,raw_resource_build!$B:$B,$C403,raw_resource_build!$A:$A,AN$396)+SUMIFS(raw_resource_build!$L:$L,raw_resource_build!$B:$B,$C403,raw_resource_build!$A:$A,AN$396)","v":0}]
[null,null,{"$f":"Lists!B42","v":"Southern_Nevada_Geothermal"},{"$f":"IF(INDEX(raw_resource_build!J:J,MATCH(C404,raw_resource_build!$B:$B,0))=0,\"N/A\",INDEX(raw_resource_build!J:J,MATCH(C404,raw_resource_build!$B:$B,0)))","v":"SCADSNV-Mountain_Pass_El_Dorado"},{"$f":"SUMIFS(raw_resource_build!$K:$K,raw_resource_build!$B:$B,$C404,raw_resource_build!$A:$A,E$396)+SUMIFS(raw_resource_build!$L:$L,raw_resource_build!$B:$B,$C404,raw_resource_build!$A:$A,E$396)","v":0},{"$f":"SUMIFS(raw_resource_build!$K:$K,raw_resource_build!$B:$B,$C404,raw_resource_build!$A:$A,F$396)+SUMIFS(raw_resource_build!$L:$L,raw_resource_build!$B:$B,$C404,raw_resource_build!$A:$A,F$396)","v":0},{"$f":"SUMIFS(raw_resource_build!$K:$K,raw_resource_build!$B:$B,$C404,raw_resource_build!$A:$A,G$396)+SUMIFS(raw_resource_build!$L:$L,raw_resource_build!$B:$B,$C404,raw_resource_build!$A:$A,G$396)","v":0},{"$f":"SUMIFS(raw_resource_build!$K:$K,raw_resource_build!$B:$B,$C404,raw_resource_build!$A:$A,H$396)+SUMIFS(raw_resource_build!$L:$L,raw_resource_build!$B:$B,$C404,raw_resource_build!$A:$A,H$396)","v":0},{"$f":"SUMIFS(raw_resource_build!$K:$K,raw_resource_build!$B:$B,$C404,raw_resource_build!$A:$A,I$396)+SUMIFS(raw_resource_build!$L:$L,raw_resource_build!$B:$B,$C404,raw_resource_build!$A:$A,I$396)","v":0},{"$f":"SUMIFS(raw_resource_build!$K:$K,raw_resource_build!$B:$B,$C404,raw_resource_build!$A:$A,J$396)+SUMIFS(raw_resource_build!$L:$L,raw_resource_build!$B:$B,$C404,raw_resource_build!$A:$A,J$396)","v":0},{"$f":"SUMIFS(raw_resource_build!$K:$K,raw_resource_build!$B:$B,$C404,raw_resource_build!$A:$A,K$396)+SUMIFS(raw_resource_build!$L:$L,raw_resource_build!$B:$B,$C404,raw_resource_build!$A:$A,K$396)","v":0},{"$f":"SUMIFS(raw_resource_build!$K:$K,raw_resource_build!$B:$B,$C404,raw_resource_build!$A:$A,L$396)+SUMIFS(raw_resource_build!$L:$L,raw_resource_build!$B:$B,$C404,raw_resource_build!$A:$A,L$396)","v":0},{"$f":"SUMIFS(raw_resource_build!$K:$K,raw_resource_build!$B:$B,$C404,raw_resource_build!$A:$A,M$396)+SUMIFS(raw_resource_build!$L:$L,raw_resource_build!$B:$B,$C404,raw_resource_build!$A:$A,M$396)","v":0},{"$f":"SUMIFS(raw_resource_build!$K:$K,raw_resource_build!$B:$B,$C404,raw_resource_build!$A:$A,N$396)+SUMIFS(raw_resource_build!$L:$L,raw_resource_build!$B:$B,$C404,raw_resource_build!$A:$A,N$396)","v":0},{"$f":"SUMIFS(raw_resource_build!$K:$K,raw_resource_build!$B:$B,$C404,raw_resource_build!$A:$A,O$396)+SUMIFS(raw_resource_build!$L:$L,raw_resource_build!$B:$B,$C404,raw_resource_build!$A:$A,O$396)","v":0},{"$f":"SUMIFS(raw_resource_build!$K:$K,raw_resource_build!$B:$B,$C404,raw_resource_build!$A:$A,P$396)+SUMIFS(raw_resource_build!$L:$L,raw_resource_build!$B:$B,$C404,raw_resource_build!$A:$A,P$396)","v":0},{"$f":"SUMIFS(raw_resource_build!$K:$K,raw_resource_build!$B:$B,$C404,raw_resource_build!$A:$A,Q$396)+SUMIFS(raw_resource_build!$L:$L,raw_resource_build!$B:$B,$C404,raw_resource_build!$A:$A,Q$396)","v":0},{"$f":"SUMIFS(raw_resource_build!$K:$K,raw_resource_build!$B:$B,$C404,raw_resource_build!$A:$A,R$396)+SUMIFS(raw_resource_build!$L:$L,raw_resource_build!$B:$B,$C404,raw_resource_build!$A:$A,R$396)","v":0},{"$f":"SUMIFS(raw_resource_build!$K:$K,raw_resource_build!$B:$B,$C404,raw_resource_build!$A:$A,S$396)+SUMIFS(raw_resource_build!$L:$L,raw_resource_build!$B:$B,$C404,raw_resource_build!$A:$A,S$396)","v":0},{"$f":"SUMIFS(raw_resource_build!$K:$K,raw_resource_build!$B:$B,$C404,raw_resource_build!$A:$A,T$396)+SUMIFS(raw_resource_build!$L:$L,raw_resource_build!$B:$B,$C404,raw_resource_build!$A:$A,T$396)","v":0},{"$f":"SUMIFS(raw_resource_build!$K:$K,raw_resource_build!$B:$B,$C404,raw_resource_build!$A:$A,U$396)+SUMIFS(raw_resource_build!$L:$L,raw_resource_build!$B:$B,$C404,raw_resource_build!$A:$A,U$396)","v":0},{"$f":"SUMIFS(raw_resource_build!$K:$K,raw_resource_build!$B:$B,$C404,raw_resource_build!$A:$A,V$396)+SUMIFS(raw_resource_build!$L:$L,raw_resource_build!$B:$B,$C404,raw_resource_build!$A:$A,V$396)","v":0},{"$f":"SUMIFS(raw_resource_build!$K:$K,raw_resource_build!$B:$B,$C404,raw_resource_build!$A:$A,W$396)+SUMIFS(raw_resource_build!$L:$L,raw_resource_build!$B:$B,$C404,raw_resource_build!$A:$A,W$396)","v":0},{"$f":"SUMIFS(raw_resource_build!$K:$K,raw_resource_build!$B:$B,$C404,raw_resource_build!$A:$A,X$396)+SUMIFS(raw_resource_build!$L:$L,raw_resource_build!$B:$B,$C404,raw_resource_build!$A:$A,X$396)","v":0},{"$f":"SUMIFS(raw_resource_build!$K:$K,raw_resource_build!$B:$B,$C404,raw_resource_build!$A:$A,Y$396)+SUMIFS(raw_resource_build!$L:$L,raw_resource_build!$B:$B,$C404,raw_resource_build!$A:$A,Y$396)","v":0},{"$f":"SUMIFS(raw_resource_build!$K:$K,raw_resource_build!$B:$B,$C404,raw_resource_build!$A:$A,Z$396)+SUMIFS(raw_resource_build!$L:$L,raw_resource_build!$B:$B,$C404,raw_resource_build!$A:$A,Z$396)","v":0},{"$f":"SUMIFS(raw_resource_build!$K:$K,raw_resource_build!$B:$B,$C404,raw_resource_build!$A:$A,AA$396)+SUMIFS(raw_resource_build!$L:$L,raw_resource_build!$B:$B,$C404,raw_resource_build!$A:$A,AA$396)","v":0},{"$f":"SUMIFS(raw_resource_build!$K:$K,raw_resource_build!$B:$B,$C404,raw_resource_build!$A:$A,AB$396)+SUMIFS(raw_resource_build!$L:$L,raw_resource_build!$B:$B,$C404,raw_resource_build!$A:$A,AB$396)","v":0},{"$f":"SUMIFS(raw_resource_build!$K:$K,raw_resource_build!$B:$B,$C404,raw_resource_build!$A:$A,AC$396)+SUMIFS(raw_resource_build!$L:$L,raw_resource_build!$B:$B,$C404,raw_resource_build!$A:$A,AC$396)","v":0},{"$f":"SUMIFS(raw_resource_build!$K:$K,raw_resource_build!$B:$B,$C404,raw_resource_build!$A:$A,AD$396)+SUMIFS(raw_resource_build!$L:$L,raw_resource_build!$B:$B,$C404,raw_resource_build!$A:$A,AD$396)","v":0},{"$f":"SUMIFS(raw_resource_build!$K:$K,raw_resource_build!$B:$B,$C404,raw_resource_build!$A:$A,AE$396)+SUMIFS(raw_resource_build!$L:$L,raw_resource_build!$B:$B,$C404,raw_resource_build!$A:$A,AE$396)","v":0},{"$f":"SUMIFS(raw_resource_build!$K:$K,raw_resource_build!$B:$B,$C404,raw_resource_build!$A:$A,AF$396)+SUMIFS(raw_resource_build!$L:$L,raw_resource_build!$B:$B,$C404,raw_resource_build!$A:$A,AF$396)","v":0},{"$f":"SUMIFS(raw_resource_build!$K:$K,raw_resource_build!$B:$B,$C404,raw_resource_build!$A:$A,AG$396)+SUMIFS(raw_resource_build!$L:$L,raw_resource_build!$B:$B,$C404,raw_resource_build!$A:$A,AG$396)","v":0},{"$f":"SUMIFS(raw_resource_build!$K:$K,raw_resource_build!$B:$B,$C404,raw_resource_build!$A:$A,AH$396)+SUMIFS(raw_resource_build!$L:$L,raw_resource_build!$B:$B,$C404,raw_resource_build!$A:$A,AH$396)","v":0},{"$f":"SUMIFS(raw_resource_build!$K:$K,raw_resource_build!$B:$B,$C404,raw_resource_build!$A:$A,AI$396)+SUMIFS(raw_resource_build!$L:$L,raw_resource_build!$B:$B,$C404,raw_resource_build!$A:$A,AI$396)","v":320},{"$f":"SUMIFS(raw_resource_build!$K:$K,raw_resource_build!$B:$B,$C404,raw_resource_build!$A:$A,AJ$396)+SUMIFS(raw_resource_build!$L:$L,raw_resource_build!$B:$B,$C404,raw_resource_build!$A:$A,AJ$396)","v":0},{"$f":"SUMIFS(raw_resource_build!$K:$K,raw_resource_build!$B:$B,$C404,raw_resource_build!$A:$A,AK$396)+SUMIFS(raw_resource_build!$L:$L,raw_resource_build!$B:$B,$C404,raw_resource_build!$A:$A,AK$396)","v":0},{"$f":"SUMIFS(raw_resource_build!$K:$K,raw_resource_build!$B:$B,$C404,raw_resource_build!$A:$A,AL$396)+SUMIFS(raw_resource_build!$L:$L,raw_resource_build!$B:$B,$C404,raw_resource_build!$A:$A,AL$396)","v":0},{"$f":"SUMIFS(raw_resource_build!$K:$K,raw_resource_build!$B:$B,$C404,raw_resource_build!$A:$A,AM$396)+SUMIFS(raw_resource_build!$L:$L,raw_resource_build!$B:$B,$C404,raw_resource_build!$A:$A,AM$396)","v":0},{"$f":"SUMIFS(raw_resource_build!$K:$K,raw_resource_build!$B:$B,$C404,raw_resource_build!$A:$A,AN$396)+SUMIFS(raw_resource_build!$L:$L,raw_resource_build!$B:$B,$C404,raw_resource_build!$A:$A,AN$396)","v":0}]
[null,null,{"$f":"Lists!B43","v":"Carrizo_Solar"},{"$f":"IF(INDEX(raw_resource_build!J:J,MATCH(C405,raw_resource_build!$B:$B,0))=0,\"N/A\",INDEX(raw_resource_build!J:J,MATCH(C405,raw_resource_build!$B:$B,0)))","v":"Kern_Greater_Carrizo-SPGE-Carrizo"},{"$f":"SUMIFS(raw_resource_build!$K:$K,raw_resource_build!$B:$B,$C405,raw_resource_build!$A:$A,E$396)+SUMIFS(raw_resource_build!$L:$L,raw_resource_build!$B:$B,$C405,raw_resource_build!$A:$A,E$396)","v":0},{"$f":"SUMIFS(raw_resource_build!$K:$K,raw_resource_build!$B:$B,$C405,raw_resource_build!$A:$A,F$396)+SUMIFS(raw_resource_build!$L:$L,raw_resource_build!$B:$B,$C405,raw_resource_build!$A:$A,F$396)","v":0},{"$f":"SUMIFS(raw_resource_build!$K:$K,raw_resource_build!$B:$B,$C405,raw_resource_build!$A:$A,G$396)+SUMIFS(raw_resource_build!$L:$L,raw_resource_build!$B:$B,$C405,raw_resource_build!$A:$A,G$396)","v":0},{"$f":"SUMIFS(raw_resource_build!$K:$K,raw_resource_build!$B:$B,$C405,raw_resource_build!$A:$A,H$396)+SUMIFS(raw_resource_build!$L:$L,raw_resource_build!$B:$B,$C405,raw_resource_build!$A:$A,H$396)","v":0},{"$f":"SUMIFS(raw_resource_build!$K:$K,raw_resource_build!$B:$B,$C405,raw_resource_build!$A:$A,I$396)+SUMIFS(raw_resource_build!$L:$L,raw_resource_build!$B:$B,$C405,raw_resource_build!$A:$A,I$396)","v":0},{"$f":"SUMIFS(raw_resource_build!$K:$K,raw_resource_build!$B:$B,$C405,raw_resource_build!$A:$A,J$396)+SUMIFS(raw_resource_build!$L:$L,raw_resource_build!$B:$B,$C405,raw_resource_build!$A:$A,J$396)","v":0},{"$f":"SUMIFS(raw_resource_build!$K:$K,raw_resource_build!$B:$B,$C405,raw_resource_build!$A:$A,K$396)+SUMIFS(raw_resource_build!$L:$L,raw_resource_build!$B:$B,$C405,raw_resource_build!$A:$A,K$396)","v":0},{"$f":"SUMIFS(raw_resource_build!$K:$K,raw_resource_build!$B:$B,$C405,raw_resource_build!$A:$A,L$396)+SUMIFS(raw_resource_build!$L:$L,raw_resource_build!$B:$B,$C405,raw_resource_build!$A:$A,L$396)","v":0},{"$f":"SUMIFS(raw_resource_build!$K:$K,raw_resource_build!$B:$B,$C405,raw_resource_build!$A:$A,M$396)+SUMIFS(raw_resource_build!$L:$L,raw_resource_build!$B:$B,$C405,raw_resource_build!$A:$A,M$396)","v":0},{"$f":"SUMIFS(raw_resource_build!$K:$K,raw_resource_build!$B:$B,$C405,raw_resource_build!$A:$A,N$396)+SUMIFS(raw_resource_build!$L:$L,raw_resource_build!$B:$B,$C405,raw_resource_build!$A:$A,N$396)","v":0},{"$f":"SUMIFS(raw_resource_build!$K:$K,raw_resource_build!$B:$B,$C405,raw_resource_build!$A:$A,O$396)+SUMIFS(raw_resource_build!$L:$L,raw_resource_build!$B:$B,$C405,raw_resource_build!$A:$A,O$396)","v":0},{"$f":"SUMIFS(raw_resource_build!$K:$K,raw_resource_build!$B:$B,$C405,raw_resource_build!$A:$A,P$396)+SUMIFS(raw_resource_build!$L:$L,raw_resource_build!$B:$B,$C405,raw_resource_build!$A:$A,P$396)","v":0},{"$f":"SUMIFS(raw_resource_build!$K:$K,raw_resource_build!$B:$B,$C405,raw_resource_build!$A:$A,Q$396)+SUMIFS(raw_resource_build!$L:$L,raw_resource_build!$B:$B,$C405,raw_resource_build!$A:$A,Q$396)","v":0},{"$f":"SUMIFS(raw_resource_build!$K:$K,raw_resource_build!$B:$B,$C405,raw_resource_build!$A:$A,R$396)+SUMIFS(raw_resource_build!$L:$L,raw_resource_build!$B:$B,$C405,raw_resource_build!$A:$A,R$396)","v":0},{"$f":"SUMIFS(raw_resource_build!$K:$K,raw_resource_build!$B:$B,$C405,raw_resource_build!$A:$A,S$396)+SUMIFS(raw_resource_build!$L:$L,raw_resource_build!$B:$B,$C405,raw_resource_build!$A:$A,S$396)","v":0},{"$f":"SUMIFS(raw_resource_build!$K:$K,raw_resource_build!$B:$B,$C405,raw_resource_build!$A:$A,T$396)+SUMIFS(raw_resource_build!$L:$L,raw_resource_build!$B:$B,$C405,raw_resource_build!$A:$A,T$396)","v":0},{"$f":"SUMIFS(raw_resource_build!$K:$K,raw_resource_build!$B:$B,$C405,raw_resource_build!$A:$A,U$396)+SUMIFS(raw_resource_build!$L:$L,raw_resource_build!$B:$B,$C405,raw_resource_build!$A:$A,U$396)","v":0},{"$f":"SUMIFS(raw_resource_build!$K:$K,raw_resource_build!$B:$B,$C405,raw_resource_build!$A:$A,V$396)+SUMIFS(raw_resource_build!$L:$L,raw_resource_build!$B:$B,$C405,raw_resource_build!$A:$A,V$396)","v":0},{"$f":"SUMIFS(raw_resource_build!$K:$K,raw_resource_build!$B:$B,$C405,raw_resource_build!$A:$A,W$396)+SUMIFS(raw_resource_build!$L:$L,raw_resource_build!$B:$B,$C405,raw_resource_build!$A:$A,W$396)","v":0},{"$f":"SUMIFS(raw_resource_build!$K:$K,raw_resource_build!$B:$B,$C405,raw_resource_build!$A:$A,X$396)+SUMIFS(raw_resource_build!$L:$L,raw_resource_build!$B:$B,$C405,raw_resource_build!$A:$A,X$396)","v":0},{"$f":"SUMIFS(raw_resource_build!$K:$K,raw_resource_build!$B:$B,$C405,raw_resource_build!$A:$A,Y$396)+SUMIFS(raw_resource_build!$L:$L,raw_resource_build!$B:$B,$C405,raw_resource_build!$A:$A,Y$396)","v":0},{"$f":"SUMIFS(raw_resource_build!$K:$K,raw_resource_build!$B:$B,$C405,raw_resource_build!$A:$A,Z$396)+SUMIFS(raw_resource_build!$L:$L,raw_resource_build!$B:$B,$C405,raw_resource_build!$A:$A,Z$396)","v":0},{"$f":"SUMIFS(raw_resource_build!$K:$K,raw_resource_build!$B:$B,$C405,raw_resource_build!$A:$A,AA$396)+SUMIFS(raw_resource_build!$L:$L,raw_resource_build!$B:$B,$C405,raw_resource_build!$A:$A,AA$396)","v":0},{"$f":"SUMIFS(raw_resource_build!$K:$K,raw_resource_build!$B:$B,$C405,raw_resource_build!$A:$A,AB$396)+SUMIFS(raw_resource_build!$L:$L,raw_resource_build!$B:$B,$C405,raw_resource_build!$A:$A,AB$396)","v":0},{"$f":"SUMIFS(raw_resource_build!$K:$K,raw_resource_build!$B:$B,$C405,raw_resource_build!$A:$A,AC$396)+SUMIFS(raw_resource_build!$L:$L,raw_resource_build!$B:$B,$C405,raw_resource_build!$A:$A,AC$396)","v":0},{"$f":"SUMIFS(raw_resource_build!$K:$K,raw_resource_build!$B:$B,$C405,raw_resource_build!$A:$A,AD$396)+SUMIFS(raw_resource_build!$L:$L,raw_resource_build!$B:$B,$C405,raw_resource_build!$A:$A,AD$396)","v":0},{"$f":"SUMIFS(raw_resource_build!$K:$K,raw_resource_build!$B:$B,$C405,raw_resource_build!$A:$A,AE$396)+SUMIFS(raw_resource_build!$L:$L,raw_resource_build!$B:$B,$C405,raw_resource_build!$A:$A,AE$396)","v":0},{"$f":"SUMIFS(raw_resource_build!$K:$K,raw_resource_build!$B:$B,$C405,raw_resource_build!$A:$A,AF$396)+SUMIFS(raw_resource_build!$L:$L,raw_resource_build!$B:$B,$C405,raw_resource_build!$A:$A,AF$396)","v":0},{"$f":"SUMIFS(raw_resource_build!$K:$K,raw_resource_build!$B:$B,$C405,raw_resource_build!$A:$A,AG$396)+SUMIFS(raw_resource_build!$L:$L,raw_resource_build!$B:$B,$C405,raw_resource_build!$A:$A,AG$396)","v":0},{"$f":"SUMIFS(raw_resource_build!$K:$K,raw_resource_build!$B:$B,$C405,raw_resource_build!$A:$A,AH$396)+SUMIFS(raw_resource_build!$L:$L,raw_resource_build!$B:$B,$C405,raw_resource_build!$A:$A,AH$396)","v":0},{"$f":"SUMIFS(raw_resource_build!$K:$K,raw_resource_build!$B:$B,$C405,raw_resource_build!$A:$A,AI$396)+SUMIFS(raw_resource_build!$L:$L,raw_resource_build!$B:$B,$C405,raw_resource_build!$A:$A,AI$396)","v":9907},{"$f":"SUMIFS(raw_resource_build!$K:$K,raw_resource_build!$B:$B,$C405,raw_resource_build!$A:$A,AJ$396)+SUMIFS(raw_resource_build!$L:$L,raw_resource_build!$B:$B,$C405,raw_resource_build!$A:$A,AJ$396)","v":0},{"$f":"SUMIFS(raw_resource_build!$K:$K,raw_resource_build!$B:$B,$C405,raw_resource_build!$A:$A,AK$396)+SUMIFS(raw_resource_build!$L:$L,raw_resource_build!$B:$B,$C405,raw_resource_build!$A:$A,AK$396)","v":0},{"$f":"SUMIFS(raw_resource_build!$K:$K,raw_resource_build!$B:$B,$C405,raw_resource_build!$A:$A,AL$396)+SUMIFS(raw_resource_build!$L:$L,raw_resource_build!$B:$B,$C405,raw_resource_build!$A:$A,AL$396)","v":0},{"$f":"SUMIFS(raw_resource_build!$K:$K,raw_resource_build!$B:$B,$C405,raw_resource_build!$A:$A,AM$396)+SUMIFS(raw_resource_build!$L:$L,raw_resource_build!$B:$B,$C405,raw_resource_build!$A:$A,AM$396)","v":0},{"$f":"SUMIFS(raw_resource_build!$K:$K,raw_resource_build!$B:$B,$C405,raw_resource_build!$A:$A,AN$396)+SUMIFS(raw_resource_build!$L:$L,raw_resource_build!$B:$B,$C405,raw_resource_build!$A:$A,AN$396)","v":0}]
[null,null,{"$f":"Lists!B44","v":"Carrizo_Wind"},{"$f":"IF(INDEX(raw_resource_build!J:J,MATCH(C406,raw_resource_build!$B:$B,0))=0,\"N/A\",INDEX(raw_resource_build!J:J,MATCH(C406,raw_resource_build!$B:$B,0)))","v":"Kern_Greater_Carrizo-SPGE-Carrizo"},{"$f":"SUMIFS(raw_resource_build!$K:$K,raw_resource_build!$B:$B,$C406,raw_resource_build!$A:$A,E$396)+SUMIFS(raw_resource_build!$L:$L,raw_resource_build!$B:$B,$C406,raw_resource_build!$A:$A,E$396)","v":0},{"$f":"SUMIFS(raw_resource_build!$K:$K,raw_resource_build!$B:$B,$C406,raw_resource_build!$A:$A,F$396)+SUMIFS(raw_resource_build!$L:$L,raw_resource_build!$B:$B,$C406,raw_resource_build!$A:$A,F$396)","v":0},{"$f":"SUMIFS(raw_resource_build!$K:$K,raw_resource_build!$B:$B,$C406,raw_resource_build!$A:$A,G$396)+SUMIFS(raw_resource_build!$L:$L,raw_resource_build!$B:$B,$C406,raw_resource_build!$A:$A,G$396)","v":0},{"$f":"SUMIFS(raw_resource_build!$K:$K,raw_resource_build!$B:$B,$C406,raw_resource_build!$A:$A,H$396)+SUMIFS(raw_resource_build!$L:$L,raw_resource_build!$B:$B,$C406,raw_resource_build!$A:$A,H$396)","v":0},{"$f":"SUMIFS(raw_resource_build!$K:$K,raw_resource_build!$B:$B,$C406,raw_resource_build!$A:$A,I$396)+SUMIFS(raw_resource_build!$L:$L,raw_resource_build!$B:$B,$C406,raw_resource_build!$A:$A,I$396)","v":0},{"$f":"SUMIFS(raw_resource_build!$K:$K,raw_resource_build!$B:$B,$C406,raw_resource_build!$A:$A,J$396)+SUMIFS(raw_resource_build!$L:$L,raw_resource_build!$B:$B,$C406,raw_resource_build!$A:$A,J$396)","v":0},{"$f":"SUMIFS(raw_resource_build!$K:$K,raw_resource_build!$B:$B,$C406,raw_resource_build!$A:$A,K$396)+SUMIFS(raw_resource_build!$L:$L,raw_resource_build!$B:$B,$C406,raw_resource_build!$A:$A,K$396)","v":0},{"$f":"SUMIFS(raw_resource_build!$K:$K,raw_resource_build!$B:$B,$C406,raw_resource_build!$A:$A,L$396)+SUMIFS(raw_resource_build!$L:$L,raw_resource_build!$B:$B,$C406,raw_resource_build!$A:$A,L$396)","v":0},{"$f":"SUMIFS(raw_resource_build!$K:$K,raw_resource_build!$B:$B,$C406,raw_resource_build!$A:$A,M$396)+SUMIFS(raw_resource_build!$L:$L,raw_resource_build!$B:$B,$C406,raw_resource_build!$A:$A,M$396)","v":287},{"$f":"SUMIFS(raw_resource_build!$K:$K,raw_resource_build!$B:$B,$C406,raw_resource_build!$A:$A,N$396)+SUMIFS(raw_resource_build!$L:$L,raw_resource_build!$B:$B,$C406,raw_resource_build!$A:$A,N$396)","v":287},{"$f":"SUMIFS(raw_resource_build!$K:$K,raw_resource_build!$B:$B,$C406,raw_resource_build!$A:$A,O$396)+SUMIFS(raw_resource_build!$L:$L,raw_resource_build!$B:$B,$C406,raw_resource_build!$A:$A,O$396)","v":0},{"$f":"SUMIFS(raw_resource_build!$K:$K,raw_resource_build!$B:$B,$C406,raw_resource_build!$A:$A,P$396)+SUMIFS(raw_resource_build!$L:$L,raw_resource_build!$B:$B,$C406,raw_resource_build!$A:$A,P$396)","v":287},{"$f":"SUMIFS(raw_resource_build!$K:$K,raw_resource_build!$B:$B,$C406,raw_resource_build!$A:$A,Q$396)+SUMIFS(raw_resource_build!$L:$L,raw_resource_build!$B:$B,$C406,raw_resource_build!$A:$A,Q$396)","v":0},{"$f":"SUMIFS(raw_resource_build!$K:$K,raw_resource_build!$B:$B,$C406,raw_resource_build!$A:$A,R$396)+SUMIFS(raw_resource_build!$L:$L,raw_resource_build!$B:$B,$C406,raw_resource_build!$A:$A,R$396)","v":0},{"$f":"SUMIFS(raw_resource_build!$K:$K,raw_resource_build!$B:$B,$C406,raw_resource_build!$A:$A,S$396)+SUMIFS(raw_resource_build!$L:$L,raw_resource_build!$B:$B,$C406,raw_resource_build!$A:$A,S$396)","v":0},{"$f":"SUMIFS(raw_resource_build!$K:$K,raw_resource_build!$B:$B,$C406,raw_resource_build!$A:$A,T$396)+SUMIFS(raw_resource_build!$L:$L,raw_resource_build!$B:$B,$C406,raw_resource_build!$A:$A,T$396)","v":287},{"$f":"SUMIFS(raw_resource_build!$K:$K,raw_resource_build!$B:$B,$C406,raw_resource_build!$A:$A,U$396)+SUMIFS(raw_resource_build!$L:$L,raw_resource_build!$B:$B,$C406,raw_resource_build!$A:$A,U$396)","v":0},{"$f":"SUMIFS(raw_resource_build!$K:$K,raw_resource_build!$B:$B,$C406,raw_resource_build!$A:$A,V$396)+SUMIFS(raw_resource_build!$L:$L,raw_resource_build!$B:$B,$C406,raw_resource_build!$A:$A,V$396)","v":0},{"$f":"SUMIFS(raw_resource_build!$K:$K,raw_resource_build!$B:$B,$C406,raw_resource_build!$A:$A,W$396)+SUMIFS(raw_resource_build!$L:$L,raw_resource_build!$B:$B,$C406,raw_resource_build!$A:$A,W$396)","v":0},{"$f":"SUMIFS(raw_resource_build!$K:$K,raw_resource_build!$B:$B,$C406,raw_resource_build!$A:$A,X$396)+SUMIFS(raw_resource_build!$L:$L,raw_resource_build!$B:$B,$C406,raw_resource_build!$A:$A,X$396)","v":0},{"$f":"SUMIFS(raw_resource_build!$K:$K,raw_resource_build!$B:$B,$C406,raw_resource_build!$A:$A,Y$396)+SUMIFS(raw_resource_build!$L:$L,raw_resource_build!$B:$B,$C406,raw_resource_build!$A:$A,Y$396)","v":0},{"$f":"SUMIFS(raw_resource_build!$K:$K,raw_resource_build!$B:$B,$C406,raw_resource_build!$A:$A,Z$396)+SUMIFS(raw_resource_build!$L:$L,raw_resource_build!$B:$B,$C406,raw_resource_build!$A:$A,Z$396)","v":0},{"$f":"SUMIFS(raw_resource_build!$K:$K,raw_resource_build!$B:$B,$C406,raw_resource_build!$A:$A,AA$396)+SUMIFS(raw_resource_build!$L:$L,raw_resource_build!$B:$B,$C406,raw_resource_build!$A:$A,AA$396)","v":0},{"$f":"SUMIFS(raw_resource_build!$K:$K,raw_resource_build!$B:$B,$C406,raw_resource_build!$A:$A,AB$396)+SUMIFS(raw_resource_build!$L:$L,raw_resource_build!$B:$B,$C406,raw_resource_build!$A:$A,AB$396)","v":0},{"$f":"SUMIFS(raw_resource_build!$K:$K,raw_resource_build!$B:$B,$C406,raw_resource_build!$A:$A,AC$396)+SUMIFS(raw_resource_build!$L:$L,raw_resource_build!$B:$B,$C406,raw_resource_build!$A:$A,AC$396)","v":0},{"$f":"SUMIFS(raw_resource_build!$K:$K,raw_resource_build!$B:$B,$C406,raw_resource_build!$A:$A,AD$396)+SUMIFS(raw_resource_build!$L:$L,raw_resource_build!$B:$B,$C406,raw_resource_build!$A:$A,AD$396)","v":0},{"$f":"SUMIFS(raw_resource_build!$K:$K,raw_resource_build!$B:$B,$C406,raw_resource_build!$A:$A,AE$396)+SUMIFS(raw_resource_build!$L:$L,raw_resource_build!$B:$B,$C406,raw_resource_build!$A:$A,AE$396)","v":0},{"$f":"SUMIFS(raw_resource_build!$K:$K,raw_resource_build!$B:$B,$C406,raw_resource_build!$A:$A,AF$396)+SUMIFS(raw_resource_build!$L:$L,raw_resource_build!$B:$B,$C406,raw_resource_build!$A:$A,AF$396)","v":0},{"$f":"SUMIFS(raw_resource_build!$K:$K,raw_resource_build!$B:$B,$C406,raw_resource_build!$A:$A,AG$396)+SUMIFS(raw_resource_build!$L:$L,raw_resource_build!$B:$B,$C406,raw_resource_build!$A:$A,AG$396)","v":0},{"$f":"SUMIFS(raw_resource_build!$K:$K,raw_resource_build!$B:$B,$C406,raw_resource_build!$A:$A,AH$396)+SUMIFS(raw_resource_build!$L:$L,raw_resource_build!$B:$B,$C406,raw_resource_build!$A:$A,AH$396)","v":0},{"$f":"SUMIFS(raw_resource_build!$K:$K,raw_resource_build!$B:$B,$C406,raw_resource_build!$A:$A,AI$396)+SUMIFS(raw_resource_build!$L:$L,raw_resource_build!$B:$B,$C406,raw_resource_build!$A:$A,AI$396)","v":287},{"$f":"SUMIFS(raw_resource_build!$K:$K,raw_resource_build!$B:$B,$C406,raw_resource_build!$A:$A,AJ$396)+SUMIFS(raw_resource_build!$L:$L,raw_resource_build!$B:$B,$C406,raw_resource_build!$A:$A,AJ$396)","v":0},{"$f":"SUMIFS(raw_resource_build!$K:$K,raw_resource_build!$B:$B,$C406,raw_resource_build!$A:$A,AK$396)+SUMIFS(raw_resource_build!$L:$L,raw_resource_build!$B:$B,$C406,raw_resource_build!$A:$A,AK$396)","v":0},{"$f":"SUMIFS(raw_resource_build!$K:$K,raw_resource_build!$B:$B,$C406,raw_resource_build!$A:$A,AL$396)+SUMIFS(raw_resource_build!$L:$L,raw_resource_build!$B:$B,$C406,raw_resource_build!$A:$A,AL$396)","v":0},{"$f":"SUMIFS(raw_resource_build!$K:$K,raw_resource_build!$B:$B,$C406,raw_resource_build!$A:$A,AM$396)+SUMIFS(raw_resource_build!$L:$L,raw_resource_build!$B:$B,$C406,raw_resource_build!$A:$A,AM$396)","v":0},{"$f":"SUMIFS(raw_resource_build!$K:$K,raw_resource_build!$B:$B,$C406,raw_resource_build!$A:$A,AN$396)+SUMIFS(raw_resource_build!$L:$L,raw_resource_build!$B:$B,$C406,raw_resource_build!$A:$A,AN$396)","v":0}]
[null,null,{"$f":"Lists!B45","v":"Central_Valley_North_Los_Banos_Solar"},{"$f":"IF(INDEX(raw_resource_build!J:J,MATCH(C407,raw_resource_build!$B:$B,0))=0,\"N/A\",INDEX(raw_resource_build!J:J,MATCH(C407,raw_resource_build!$B:$B,0)))","v":"Central_Valley_North_Los_Banos-SPGE"},{"$f":"SUMIFS(raw_resource_build!$K:$K,raw_resource_build!$B:$B,$C407,raw_resource_build!$A:$A,E$396)+SUMIFS(raw_resource_build!$L:$L,raw_resource_build!$B:$B,$C407,raw_resource_build!$A:$A,E$396)","v":0},{"$f":"SUMIFS(raw_resource_build!$K:$K,raw_resource_build!$B:$B,$C407,raw_resource_build!$A:$A,F$396)+SUMIFS(raw_resource_build!$L:$L,raw_resource_build!$B:$B,$C407,raw_resource_build!$A:$A,F$396)","v":0},{"$f":"SUMIFS(raw_resource_build!$K:$K,raw_resource_build!$B:$B,$C407,raw_resource_build!$A:$A,G$396)+SUMIFS(raw_resource_build!$L:$L,raw_resource_build!$B:$B,$C407,raw_resource_build!$A:$A,G$396)","v":0},{"$f":"SUMIFS(raw_resource_build!$K:$K,raw_resource_build!$B:$B,$C407,raw_resource_build!$A:$A,H$396)+SUMIFS(raw_resource_build!$L:$L,raw_resource_build!$B:$B,$C407,raw_resource_build!$A:$A,H$396)","v":0},{"$f":"SUMIFS(raw_resource_build!$K:$K,raw_resource_build!$B:$B,$C407,raw_resource_build!$A:$A,I$396)+SUMIFS(raw_resource_build!$L:$L,raw_resource_build!$B:$B,$C407,raw_resource_build!$A:$A,I$396)","v":0},{"$f":"SUMIFS(raw_resource_build!$K:$K,raw_resource_build!$B:$B,$C407,raw_resource_build!$A:$A,J$396)+SUMIFS(raw_resource_build!$L:$L,raw_resource_build!$B:$B,$C407,raw_resource_build!$A:$A,J$396)","v":0},{"$f":"SUMIFS(raw_resource_build!$K:$K,raw_resource_build!$B:$B,$C407,raw_resource_build!$A:$A,K$396)+SUMIFS(raw_resource_build!$L:$L,raw_resource_build!$B:$B,$C407,raw_resource_build!$A:$A,K$396)","v":0},{"$f":"SUMIFS(raw_resource_build!$K:$K,raw_resource_build!$B:$B,$C407,raw_resource_build!$A:$A,L$396)+SUMIFS(raw_resource_build!$L:$L,raw_resource_build!$B:$B,$C407,raw_resource_build!$A:$A,L$396)","v":0},{"$f":"SUMIFS(raw_resource_build!$K:$K,raw_resource_build!$B:$B,$C407,raw_resource_build!$A:$A,M$396)+SUMIFS(raw_resource_build!$L:$L,raw_resource_build!$B:$B,$C407,raw_resource_build!$A:$A,M$396)","v":0},{"$f":"SUMIFS(raw_resource_build!$K:$K,raw_resource_build!$B:$B,$C407,raw_resource_build!$A:$A,N$396)+SUMIFS(raw_resource_build!$L:$L,raw_resource_build!$B:$B,$C407,raw_resource_build!$A:$A,N$396)","v":0},{"$f":"SUMIFS(raw_resource_build!$K:$K,raw_resource_build!$B:$B,$C407,raw_resource_build!$A:$A,O$396)+SUMIFS(raw_resource_build!$L:$L,raw_resource_build!$B:$B,$C407,raw_resource_build!$A:$A,O$396)","v":0},{"$f":"SUMIFS(raw_resource_build!$K:$K,raw_resource_build!$B:$B,$C407,raw_resource_build!$A:$A,P$396)+SUMIFS(raw_resource_build!$L:$L,raw_resource_build!$B:$B,$C407,raw_resource_build!$A:$A,P$396)","v":0},{"$f":"SUMIFS(raw_resource_build!$K:$K,raw_resource_build!$B:$B,$C407,raw_resource_build!$A:$A,Q$396)+SUMIFS(raw_resource_build!$L:$L,raw_resource_build!$B:$B,$C407,raw_resource_build!$A:$A,Q$396)","v":0},{"$f":"SUMIFS(raw_resource_build!$K:$K,raw_resource_build!$B:$B,$C407,raw_resource_build!$A:$A,R$396)+SUMIFS(raw_resource_build!$L:$L,raw_resource_build!$B:$B,$C407,raw_resource_build!$A:$A,R$396)","v":0},{"$f":"SUMIFS(raw_resource_build!$K:$K,raw_resource_build!$B:$B,$C407,raw_resource_build!$A:$A,S$396)+SUMIFS(raw_resource_build!$L:$L,raw_resource_build!$B:$B,$C407,raw_resource_build!$A:$A,S$396)","v":0},{"$f":"SUMIFS(raw_resource_build!$K:$K,raw_resource_build!$B:$B,$C407,raw_resource_build!$A:$A,T$396)+SUMIFS(raw_resource_build!$L:$L,raw_resource_build!$B:$B,$C407,raw_resource_build!$A:$A,T$396)","v":0},{"$f":"SUMIFS(raw_resource_build!$K:$K,raw_resource_build!$B:$B,$C407,raw_resource_build!$A:$A,U$396)+SUMIFS(raw_resource_build!$L:$L,raw_resource_build!$B:$B,$C407,raw_resource_build!$A:$A,U$396)","v":0},{"$f":"SUMIFS(raw_resource_build!$K:$K,raw_resource_build!$B:$B,$C407,raw_resource_build!$A:$A,V$396)+SUMIFS(raw_resource_build!$L:$L,raw_resource_build!$B:$B,$C407,raw_resource_build!$A:$A,V$396)","v":0},{"$f":"SUMIFS(raw_resource_build!$K:$K,raw_resource_build!$B:$B,$C407,raw_resource_build!$A:$A,W$396)+SUMIFS(raw_resource_build!$L:$L,raw_resource_build!$B:$B,$C407,raw_resource_build!$A:$A,W$396)","v":0},{"$f":"SUMIFS(raw_resource_build!$K:$K,raw_resource_build!$B:$B,$C407,raw_resource_build!$A:$A,X$396)+SUMIFS(raw_resource_build!$L:$L,raw_resource_build!$B:$B,$C407,raw_resource_build!$A:$A,X$396)","v":0},{"$f":"SUMIFS(raw_resource_build!$K:$K,raw_resource_build!$B:$B,$C407,raw_resource_build!$A:$A,Y$396)+SUMIFS(raw_resource_build!$L:$L,raw_resource_build!$B:$B,$C407,raw_resource_build!$A:$A,Y$396)","v":0},{"$f":"SUMIFS(raw_resource_build!$K:$K,raw_resource_build!$B:$B,$C407,raw_resource_build!$A:$A,Z$396)+SUMIFS(raw_resource_build!$L:$L,raw_resource_build!$B:$B,$C407,raw_resource_build!$A:$A,Z$396)","v":0},{"$f":"SUMIFS(raw_resource_build!$K:$K,raw_resource_build!$B:$B,$C407,raw_resource_build!$A:$A,AA$396)+SUMIFS(raw_resource_build!$L:$L,raw_resource_build!$B:$B,$C407,raw_resource_build!$A:$A,AA$396)","v":0},{"$f":"SUMIFS(raw_resource_build!$K:$K,raw_resource_build!$B:$B,$C407,raw_resource_build!$A:$A,AB$396)+SUMIFS(raw_resource_build!$L:$L,raw_resource_build!$B:$B,$C407,raw_resource_build!$A:$A,AB$396)","v":0},{"$f":"SUMIFS(raw_resource_build!$K:$K,raw_resource_build!$B:$B,$C407,raw_resource_build!$A:$A,AC$396)+SUMIFS(raw_resource_build!$L:$L,raw_resource_build!$B:$B,$C407,raw_resource_build!$A:$A,AC$396)","v":0},{"$f":"SUMIFS(raw_resource_build!$K:$K,raw_resource_build!$B:$B,$C407,raw_resource_build!$A:$A,AD$396)+SUMIFS(raw_resource_build!$L:$L,raw_resource_build!$B:$B,$C407,raw_resource_build!$A:$A,AD$396)","v":0},{"$f":"SUMIFS(raw_resource_build!$K:$K,raw_resource_build!$B:$B,$C407,raw_resource_build!$A:$A,AE$396)+SUMIFS(raw_resource_build!$L:$L,raw_resource_build!$B:$B,$C407,raw_resource_build!$A:$A,AE$396)","v":0},{"$f":"SUMIFS(raw_resource_build!$K:$K,raw_resource_build!$B:$B,$C407,raw_resource_build!$A:$A,AF$396)+SUMIFS(raw_resource_build!$L:$L,raw_resource_build!$B:$B,$C407,raw_resource_build!$A:$A,AF$396)","v":0},{"$f":"SUMIFS(raw_resource_build!$K:$K,raw_resource_build!$B:$B,$C407,raw_resource_build!$A:$A,AG$396)+SUMIFS(raw_resource_build!$L:$L,raw_resource_build!$B:$B,$C407,raw_resource_build!$A:$A,AG$396)","v":0},{"$f":"SUMIFS(raw_resource_build!$K:$K,raw_resource_build!$B:$B,$C407,raw_resource_build!$A:$A,AH$396)+SUMIFS(raw_resource_build!$L:$L,raw_resource_build!$B:$B,$C407,raw_resource_build!$A:$A,AH$396)","v":0},{"$f":"SUMIFS(raw_resource_build!$K:$K,raw_resource_build!$B:$B,$C407,raw_resource_build!$A:$A,AI$396)+SUMIFS(raw_resource_build!$L:$L,raw_resource_build!$B:$B,$C407,raw_resource_build!$A:$A,AI$396)","v":3348.83},{"$f":"SUMIFS(raw_resource_build!$K:$K,raw_resource_build!$B:$B,$C407,raw_resource_build!$A:$A,AJ$396)+SUMIFS(raw_resource_build!$L:$L,raw_resource_build!$B:$B,$C407,raw_resource_build!$A:$A,AJ$396)","v":0},{"$f":"SUMIFS(raw_resource_build!$K:$K,raw_resource_build!$B:$B,$C407,raw_resource_build!$A:$A,AK$396)+SUMIFS(raw_resource_build!$L:$L,raw_resource_build!$B:$B,$C407,raw_resource_build!$A:$A,AK$396)","v":0},{"$f":"SUMIFS(raw_resource_build!$K:$K,raw_resource_build!$B:$B,$C407,raw_resource_build!$A:$A,AL$396)+SUMIFS(raw_resource_build!$L:$L,raw_resource_build!$B:$B,$C407,raw_resource_build!$A:$A,AL$396)","v":0},{"$f":"SUMIFS(raw_resource_build!$K:$K,raw_resource_build!$B:$B,$C407,raw_resource_build!$A:$A,AM$396)+SUMIFS(raw_resource_build!$L:$L,raw_resource_build!$B:$B,$C407,raw_resource_build!$A:$A,AM$396)","v":0},{"$f":"SUMIFS(raw_resource_build!$K:$K,raw_resource_build!$B:$B,$C407,raw_resource_build!$A:$A,AN$396)+SUMIFS(raw_resource_build!$L:$L,raw_resource_build!$B:$B,$C407,raw_resource_build!$A:$A,AN$396)","v":0}]
[null,null,{"$f":"Lists!B46","v":"Central_Valley_North_Los_Banos_Wind"},{"$f":"IF(INDEX(raw_resource_build!J:J,MATCH(C408,raw_resource_build!$B:$B,0))=0,\"N/A\",INDEX(raw_resource_build!J:J,MATCH(C408,raw_resource_build!$B:$B,0)))","v":"Central_Valley_North_Los_Banos-SPGE"},{"$f":"SUMIFS(raw_resource_build!$K:$K,raw_resource_build!$B:$B,$C408,raw_resource_build!$A:$A,E$396)+SUMIFS(raw_resource_build!$L:$L,raw_resource_build!$B:$B,$C408,raw_resource_build!$A:$A,E$396)","v":0},{"$f":"SUMIFS(raw_resource_build!$K:$K,raw_resource_build!$B:$B,$C408,raw_resource_build!$A:$A,F$396)+SUMIFS(raw_resource_build!$L:$L,raw_resource_build!$B:$B,$C408,raw_resource_build!$A:$A,F$396)","v":0},{"$f":"SUMIFS(raw_resource_build!$K:$K,raw_resource_build!$B:$B,$C408,raw_resource_build!$A:$A,G$396)+SUMIFS(raw_resource_build!$L:$L,raw_resource_build!$B:$B,$C408,raw_resource_build!$A:$A,G$396)","v":0},{"$f":"SUMIFS(raw_resource_build!$K:$K,raw_resource_build!$B:$B,$C408,raw_resource_build!$A:$A,H$396)+SUMIFS(raw_resource_build!$L:$L,raw_resource_build!$B:$B,$C408,raw_resource_build!$A:$A,H$396)","v":0},{"$f":"SUMIFS(raw_resource_build!$K:$K,raw_resource_build!$B:$B,$C408,raw_resource_build!$A:$A,I$396)+SUMIFS(raw_resource_build!$L:$L,raw_resource_build!$B:$B,$C408,raw_resource_build!$A:$A,I$396)","v":0},{"$f":"SUMIFS(raw_resource_build!$K:$K,raw_resource_build!$B:$B,$C408,raw_resource_build!$A:$A,J$396)+SUMIFS(raw_resource_build!$L:$L,raw_resource_build!$B:$B,$C408,raw_resource_build!$A:$A,J$396)","v":0},{"$f":"SUMIFS(raw_resource_build!$K:$K,raw_resource_build!$B:$B,$C408,raw_resource_build!$A:$A,K$396)+SUMIFS(raw_resource_build!$L:$L,raw_resource_build!$B:$B,$C408,raw_resource_build!$A:$A,K$396)","v":0},{"$f":"SUMIFS(raw_resource_build!$K:$K,raw_resource_build!$B:$B,$C408,raw_resource_build!$A:$A,L$396)+SUMIFS(raw_resource_build!$L:$L,raw_resource_build!$B:$B,$C408,raw_resource_build!$A:$A,L$396)","v":173},{"$f":"SUMIFS(raw_resource_build!$K:$K,raw_resource_build!$B:$B,$C408,raw_resource_build!$A:$A,M$396)+SUMIFS(raw_resource_build!$L:$L,raw_resource_build!$B:$B,$C408,raw_resource_build!$A:$A,M$396)","v":173},{"$f":"SUMIFS(raw_resource_build!$K:$K,raw_resource_build!$B:$B,$C408,raw_resource_build!$A:$A,N$396)+SUMIFS(raw_resource_build!$L:$L,raw_resource_build!$B:$B,$C408,raw_resource_build!$A:$A,N$396)","v":173},{"$f":"SUMIFS(raw_resource_build!$K:$K,raw_resource_build!$B:$B,$C408,raw_resource_build!$A:$A,O$396)+SUMIFS(raw_resource_build!$L:$L,raw_resource_build!$B:$B,$C408,raw_resource_build!$A:$A,O$396)","v":0},{"$f":"SUMIFS(raw_resource_build!$K:$K,raw_resource_build!$B:$B,$C408,raw_resource_build!$A:$A,P$396)+SUMIFS(raw_resource_build!$L:$L,raw_resource_build!$B:$B,$C408,raw_resource_build!$A:$A,P$396)","v":173},{"$f":"SUMIFS(raw_resource_build!$K:$K,raw_resource_build!$B:$B,$C408,raw_resource_build!$A:$A,Q$396)+SUMIFS(raw_resource_build!$L:$L,raw_resource_build!$B:$B,$C408,raw_resource_build!$A:$A,Q$396)","v":0},{"$f":"SUMIFS(raw_resource_build!$K:$K,raw_resource_build!$B:$B,$C408,raw_resource_build!$A:$A,R$396)+SUMIFS(raw_resource_build!$L:$L,raw_resource_build!$B:$B,$C408,raw_resource_build!$A:$A,R$396)","v":0},{"$f":"SUMIFS(raw_resource_build!$K:$K,raw_resource_build!$B:$B,$C408,raw_resource_build!$A:$A,S$396)+SUMIFS(raw_resource_build!$L:$L,raw_resource_build!$B:$B,$C408,raw_resource_build!$A:$A,S$396)","v":0},{"$f":"SUMIFS(raw_resource_build!$K:$K,raw_resource_build!$B:$B,$C408,raw_resource_build!$A:$A,T$396)+SUMIFS(raw_resource_build!$L:$L,raw_resource_build!$B:$B,$C408,raw_resource_build!$A:$A,T$396)","v":173},{"$f":"SUMIFS(raw_resource_build!$K:$K,raw_resource_build!$B:$B,$C408,raw_resource_build!$A:$A,U$396)+SUMIFS(raw_resource_build!$L:$L,raw_resource_build!$B:$B,$C408,raw_resource_build!$A:$A,U$396)","v":0},{"$f":"SUMIFS(raw_resource_build!$K:$K,raw_resource_build!$B:$B,$C408,raw_resource_build!$A:$A,V$396)+SUMIFS(raw_resource_build!$L:$L,raw_resource_build!$B:$B,$C408,raw_resource_build!$A:$A,V$396)","v":0},{"$f":"SUMIFS(raw_resource_build!$K:$K,raw_resource_build!$B:$B,$C408,raw_resource_build!$A:$A,W$396)+SUMIFS(raw_resource_build!$L:$L,raw_resource_build!$B:$B,$C408,raw_resource_build!$A:$A,W$396)","v":0},{"$f":"SUMIFS(raw_resource_build!$K:$K,raw_resource_build!$B:$B,$C408,raw_resource_build!$A:$A,X$396)+SUMIFS(raw_resource_build!$L:$L,raw_resource_build!$B:$B,$C408,raw_resource_build!$A:$A,X$396)","v":0},{"$f":"SUMIFS(raw_resource_build!$K:$K,raw_resource_build!$B:$B,$C408,raw_resource_build!$A:$A,Y$396)+SUMIFS(raw_resource_build!$L:$L,raw_resource_build!$B:$B,$C408,raw_resource_build!$A:$A,Y$396)","v":0},{"$f":"SUMIFS(raw_resource_build!$K:$K,raw_resource_build!$B:$B,$C408,raw_resource_build!$A:$A,Z$396)+SUMIFS(raw_resource_build!$L:$L,raw_resource_build!$B:$B,$C408,raw_resource_build!$A:$A,Z$396)","v":0},{"$f":"SUMIFS(raw_resource_build!$K:$K,raw_resource_build!$B:$B,$C408,raw_resource_build!$A:$A,AA$396)+SUMIFS(raw_resource_build!$L:$L,raw_resource_build!$B:$B,$C408,raw_resource_build!$A:$A,AA$396)","v":0},{"$f":"SUMIFS(raw_resource_build!$K:$K,raw_resource_build!$B:$B,$C408,raw_resource_build!$A:$A,AB$396)+SUMIFS(raw_resource_build!$L:$L,raw_resource_build!$B:$B,$C408,raw_resource_build!$A:$A,AB$396)","v":0},{"$f":"SUMIFS(raw_resource_build!$K:$K,raw_resource_build!$B:$B,$C408,raw_resource_build!$A:$A,AC$396)+SUMIFS(raw_resource_build!$L:$L,raw_resource_build!$B:$B,$C408,raw_resource_build!$A:$A,AC$396)","v":0},{"$f":"SUMIFS(raw_resource_build!$K:$K,raw_resource_build!$B:$B,$C408,raw_resource_build!$A:$A,AD$396)+SUMIFS(raw_resource_build!$L:$L,raw_resource_build!$B:$B,$C408,raw_resource_build!$A:$A,AD$396)","v":0},{"$f":"SUMIFS(raw_resource_build!$K:$K,raw_resource_build!$B:$B,$C408,raw_resource_build!$A:$A,AE$396)+SUMIFS(raw_resource_build!$L:$L,raw_resource_build!$B:$B,$C408,raw_resource_build!$A:$A,AE$396)","v":0},{"$f":"SUMIFS(raw_resource_build!$K:$K,raw_resource_build!$B:$B,$C408,raw_resource_build!$A:$A,AF$396)+SUMIFS(raw_resource_build!$L:$L,raw_resource_build!$B:$B,$C408,raw_resource_build!$A:$A,AF$396)","v":0},{"$f":"SUMIFS(raw_resource_build!$K:$K,raw_resource_build!$B:$B,$C408,raw_resource_build!$A:$A,AG$396)+SUMIFS(raw_resource_build!$L:$L,raw_resource_build!$B:$B,$C408,raw_resource_build!$A:$A,AG$396)","v":0},{"$f":"SUMIFS(raw_resource_build!$K:$K,raw_resource_build!$B:$B,$C408,raw_resource_build!$A:$A,AH$396)+SUMIFS(raw_resource_build!$L:$L,raw_resource_build!$B:$B,$C408,raw_resource_build!$A:$A,AH$396)","v":0},{"$f":"SUMIFS(raw_resource_build!$K:$K,raw_resource_build!$B:$B,$C408,raw_resource_build!$A:$A,AI$396)+SUMIFS(raw_resource_build!$L:$L,raw_resource_build!$B:$B,$C408,raw_resource_build!$A:$A,AI$396)","v":173},{"$f":"SUMIFS(raw_resource_build!$K:$K,raw_resource_build!$B:$B,$C408,raw_resource_build!$A:$A,AJ$396)+SUMIFS(raw_resource_build!$L:$L,raw_resource_build!$B:$B,$C408,raw_resource_build!$A:$A,AJ$396)","v":0},{"$f":"SUMIFS(raw_resource_build!$K:$K,raw_resource_build!$B:$B,$C408,raw_resource_build!$A:$A,AK$396)+SUMIFS(raw_resource_build!$L:$L,raw_resource_build!$B:$B,$C408,raw_resource_build!$A:$A,AK$396)","v":0},{"$f":"SUMIFS(raw_resource_build!$K:$K,raw_resource_build!$B:$B,$C408,raw_resource_build!$A:$A,AL$396)+SUMIFS(raw_resource_build!$L:$L,raw_resource_build!$B:$B,$C408,raw_resource_build!$A:$A,AL$396)","v":0},{"$f":"SUMIFS(raw_resource_build!$K:$K,raw_resource_build!$B:$B,$C408,raw_resource_build!$A:$A,AM$396)+SUMIFS(raw_resource_build!$L:$L,raw_resource_build!$B:$B,$C408,raw_resource_build!$A:$A,AM$396)","v":0},{"$f":"SUMIFS(raw_resource_build!$K:$K,raw_resource_build!$B:$B,$C408,raw_resource_build!$A:$A,AN$396)+SUMIFS(raw_resource_build!$L:$L,raw_resource_build!$B:$B,$C408,raw_resource_build!$A:$A,AN$396)","v":0}]
[null,null,{"$f":"Lists!B47","v":"Distributed_Solar"},{"$f":"IF(INDEX(raw_resource_build!J:J,MATCH(C409,raw_resource_build!$B:$B,0))=0,\"N/A\",INDEX(raw_resource_build!J:J,MATCH(C409,raw_resource_build!$B:$B,0)))","v":"None"},{"$f":"SUMIFS(raw_resource_build!$K:$K,raw_resource_build!$B:$B,$C409,raw_resource_build!$A:$A,E$396)+SUMIFS(raw_resource_build!$L:$L,raw_resource_build!$B:$B,$C409,raw_resource_build!$A:$A,E$396)","v":0},{"$f":"SUMIFS(raw_resource_build!$K:$K,raw_resource_build!$B:$B,$C409,raw_resource_build!$A:$A,F$396)+SUMIFS(raw_resource_build!$L:$L,raw_resource_build!$B:$B,$C409,raw_resource_build!$A:$A,F$396)","v":0},{"$f":"SUMIFS(raw_resource_build!$K:$K,raw_resource_build!$B:$B,$C409,raw_resource_build!$A:$A,G$396)+SUMIFS(raw_resource_build!$L:$L,raw_resource_build!$B:$B,$C409,raw_resource_build!$A:$A,G$396)","v":0},{"$f":"SUMIFS(raw_resource_build!$K:$K,raw_resource_build!$B:$B,$C409,raw_resource_build!$A:$A,H$396)+SUMIFS(raw_resource_build!$L:$L,raw_resource_build!$B:$B,$C409,raw_resource_build!$A:$A,H$396)","v":0},{"$f":"SUMIFS(raw_resource_build!$K:$K,raw_resource_build!$B:$B,$C409,raw_resource_build!$A:$A,I$396)+SUMIFS(raw_resource_build!$L:$L,raw_resource_build!$B:$B,$C409,raw_resource_build!$A:$A,I$396)","v":0},{"$f":"SUMIFS(raw_resource_build!$K:$K,raw_resource_build!$B:$B,$C409,raw_resource_build!$A:$A,J$396)+SUMIFS(raw_resource_build!$L:$L,raw_resource_build!$B:$B,$C409,raw_resource_build!$A:$A,J$396)","v":0},{"$f":"SUMIFS(raw_resource_build!$K:$K,raw_resource_build!$B:$B,$C409,raw_resource_build!$A:$A,K$396)+SUMIFS(raw_resource_build!$L:$L,raw_resource_build!$B:$B,$C409,raw_resource_build!$A:$A,K$396)","v":0},{"$f":"SUMIFS(raw_resource_build!$K:$K,raw_resource_build!$B:$B,$C409,raw_resource_build!$A:$A,L$396)+SUMIFS(raw_resource_build!$L:$L,raw_resource_build!$B:$B,$C409,raw_resource_build!$A:$A,L$396)","v":0},{"$f":"SUMIFS(raw_resource_build!$K:$K,raw_resource_build!$B:$B,$C409,raw_resource_build!$A:$A,M$396)+SUMIFS(raw_resource_build!$L:$L,raw_resource_build!$B:$B,$C409,raw_resource_build!$A:$A,M$396)","v":0},{"$f":"SUMIFS(raw_resource_build!$K:$K,raw_resource_build!$B:$B,$C409,raw_resource_build!$A:$A,N$396)+SUMIFS(raw_resource_build!$L:$L,raw_resource_build!$B:$B,$C409,raw_resource_build!$A:$A,N$396)","v":0},{"$f":"SUMIFS(raw_resource_build!$K:$K,raw_resource_build!$B:$B,$C409,raw_resource_build!$A:$A,O$396)+SUMIFS(raw_resource_build!$L:$L,raw_resource_build!$B:$B,$C409,raw_resource_build!$A:$A,O$396)","v":0},{"$f":"SUMIFS(raw_resource_build!$K:$K,raw_resource_build!$B:$B,$C409,raw_resource_build!$A:$A,P$396)+SUMIFS(raw_resource_build!$L:$L,raw_resource_build!$B:$B,$C409,raw_resource_build!$A:$A,P$396)","v":0},{"$f":"SUMIFS(raw_resource_build!$K:$K,raw_resource_build!$B:$B,$C409,raw_resource_build!$A:$A,Q$396)+SUMIFS(raw_resource_build!$L:$L,raw_resource_build!$B:$B,$C409,raw_resource_build!$A:$A,Q$396)","v":0},{"$f":"SUMIFS(raw_resource_build!$K:$K,raw_resource_build!$B:$B,$C409,raw_resource_build!$A:$A,R$396)+SUMIFS(raw_resource_build!$L:$L,raw_resource_build!$B:$B,$C409,raw_resource_build!$A:$A,R$396)","v":0},{"$f":"SUMIFS(raw_resource_build!$K:$K,raw_resource_build!$B:$B,$C409,raw_resource_build!$A:$A,S$396)+SUMIFS(raw_resource_build!$L:$L,raw_resource_build!$B:$B,$C409,raw_resource_build!$A:$A,S$396)","v":0},{"$f":"SUMIFS(raw_resource_build!$K:$K,raw_resource_build!$B:$B,$C409,raw_resource_build!$A:$A,T$396)+SUMIFS(raw_resource_build!$L:$L,raw_resource_build!$B:$B,$C409,raw_resource_build!$A:$A,T$396)","v":0},{"$f":"SUMIFS(raw_resource_build!$K:$K,raw_resource_build!$B:$B,$C409,raw_resource_build!$A:$A,U$396)+SUMIFS(raw_resource_build!$L:$L,raw_resource_build!$B:$B,$C409,raw_resource_build!$A:$A,U$396)","v":0},{"$f":"SUMIFS(raw_resource_build!$K:$K,raw_resource_build!$B:$B,$C409,raw_resource_build!$A:$A,V$396)+SUMIFS(raw_resource_build!$L:$L,raw_resource_build!$B:$B,$C409,raw_resource_build!$A:$A,V$396)","v":0},{"$f":"SUMIFS(raw_resource_build!$K:$K,raw_resource_build!$B:$B,$C409,raw_resource_build!$A:$A,W$396)+SUMIFS(raw_resource_build!$L:$L,raw_resource_build!$B:$B,$C409,raw_resource_build!$A:$A,W$396)","v":0},{"$f":"SUMIFS(raw_resource_build!$K:$K,raw_resource_build!$B:$B,$C409,raw_resource_build!$A:$A,X$396)+SUMIFS(raw_resource_build!$L:$L,raw_resource_build!$B:$B,$C409,raw_resource_build!$A:$A,X$396)","v":0},{"$f":"SUMIFS(raw_resource_build!$K:$K,raw_resource_build!$B:$B,$C409,raw_resource_build!$A:$A,Y$396)+SUMIFS(raw_resource_build!$L:$L,raw_resource_build!$B:$B,$C409,raw_resource_build!$A:$A,Y$396)","v":0},{"$f":"SUMIFS(raw_resource_build!$K:$K,raw_resource_build!$B:$B,$C409,raw_resource_build!$A:$A,Z$396)+SUMIFS(raw_resource_build!$L:$L,raw_resource_build!$B:$B,$C409,raw_resource_build!$A:$A,Z$396)","v":0},{"$f":"SUMIFS(raw_resource_build!$K:$K,raw_resource_build!$B:$B,$C409,raw_resource_build!$A:$A,AA$396)+SUMIFS(raw_resource_build!$L:$L,raw_resource_build!$B:$B,$C409,raw_resource_build!$A:$A,AA$396)","v":0},{"$f":"SUMIFS(raw_resource_build!$K:$K,raw_resource_build!$B:$B,$C409,raw_resource_build!$A:$A,AB$396)+SUMIFS(raw_resource_build!$L:$L,raw_resource_build!$B:$B,$C409,raw_resource_build!$A:$A,AB$396)","v":0},{"$f":"SUMIFS(raw_resource_build!$K:$K,raw_resource_build!$B:$B,$C409,raw_resource_build!$A:$A,AC$396)+SUMIFS(raw_resource_build!$L:$L,raw_resource_build!$B:$B,$C409,raw_resource_build!$A:$A,AC$396)","v":0},{"$f":"SUMIFS(raw_resource_build!$K:$K,raw_resource_build!$B:$B,$C409,raw_resource_build!$A:$A,AD$396)+SUMIFS(raw_resource_build!$L:$L,raw_resource_build!$B:$B,$C409,raw_resource_build!$A:$A,AD$396)","v":0},{"$f":"SUMIFS(raw_resource_build!$K:$K,raw_resource_build!$B:$B,$C409,raw_resource_build!$A:$A,AE$396)+SUMIFS(raw_resource_build!$L:$L,raw_resource_build!$B:$B,$C409,raw_resource_build!$A:$A,AE$396)","v":0},{"$f":"SUMIFS(raw_resource_build!$K:$K,raw_resource_build!$B:$B,$C409,raw_resource_build!$A:$A,AF$396)+SUMIFS(raw_resource_build!$L:$L,raw_resource_build!$B:$B,$C409,raw_resource_build!$A:$A,AF$396)","v":0},{"$f":"SUMIFS(raw_resource_build!$K:$K,raw_resource_build!$B:$B,$C409,raw_resource_build!$A:$A,AG$396)+SUMIFS(raw_resource_build!$L:$L,raw_resource_build!$B:$B,$C409,raw_resource_build!$A:$A,AG$396)","v":0},{"$f":"SUMIFS(raw_resource_build!$K:$K,raw_resource_build!$B:$B,$C409,raw_resource_build!$A:$A,AH$396)+SUMIFS(raw_resource_build!$L:$L,raw_resource_build!$B:$B,$C409,raw_resource_build!$A:$A,AH$396)","v":0},{"$f":"SUMIFS(raw_resource_build!$K:$K,raw_resource_build!$B:$B,$C409,raw_resource_build!$A:$A,AI$396)+SUMIFS(raw_resource_build!$L:$L,raw_resource_build!$B:$B,$C409,raw_resource_build!$A:$A,AI$396)","v":0},{"$f":"SUMIFS(raw_resource_build!$K:$K,raw_resource_build!$B:$B,$C409,raw_resource_build!$A:$A,AJ$396)+SUMIFS(raw_resource_build!$L:$L,raw_resource_build!$B:$B,$C409,raw_resource_build!$A:$A,AJ$396)","v":0},{"$f":"SUMIFS(raw_resource_build!$K:$K,raw_resource_build!$B:$B,$C409,raw_resource_build!$A:$A,AK$396)+SUMIFS(raw_resource_build!$L:$L,raw_resource_build!$B:$B,$C409,raw_resource_build!$A:$A,AK$396)","v":0},{"$f":"SUMIFS(raw_resource_build!$K:$K,raw_resource_build!$B:$B,$C409,raw_resource_build!$A:$A,AL$396)+SUMIFS(raw_resource_build!$L:$L,raw_resource_build!$B:$B,$C409,raw_resource_build!$A:$A,AL$396)","v":0},{"$f":"SUMIFS(raw_resource_build!$K:$K,raw_resource_build!$B:$B,$C409,raw_resource_build!$A:$A,AM$396)+SUMIFS(raw_resource_build!$L:$L,raw_resource_build!$B:$B,$C409,raw_resource_build!$A:$A,AM$396)","v":0},{"$f":"SUMIFS(raw_resource_build!$K:$K,raw_resource_build!$B:$B,$C409,raw_resource_build!$A:$A,AN$396)+SUMIFS(raw_resource_build!$L:$L,raw_resource_build!$B:$B,$C409,raw_resource_build!$A:$A,AN$396)","v":0}]
[null,null,{"$f":"Lists!B48","v":"Distributed_Wind"},{"$f":"IF(INDEX(raw_resource_build!J:J,MATCH(C410,raw_resource_build!$B:$B,0))=0,\"N/A\",INDEX(raw_resource_build!J:J,MATCH(C410,raw_resource_build!$B:$B,0)))","v":{"$error":"#N/A"}},{"$f":"SUMIFS(raw_resource_build!$K:$K,raw_resource_build!$B:$B,$C410,raw_resource_build!$A:$A,E$396)+SUMIFS(raw_resource_build!$L:$L,raw_resource_build!$B:$B,$C410,raw_resource_build!$A:$A,E$396)","v":0},{"$f":"SUMIFS(raw_resource_build!$K:$K,raw_resource_build!$B:$B,$C410,raw_resource_build!$A:$A,F$396)+SUMIFS(raw_resource_build!$L:$L,raw_resource_build!$B:$B,$C410,raw_resource_build!$A:$A,F$396)","v":0},{"$f":"SUMIFS(raw_resource_build!$K:$K,raw_resource_build!$B:$B,$C410,raw_resource_build!$A:$A,G$396)+SUMIFS(raw_resource_build!$L:$L,raw_resource_build!$B:$B,$C410,raw_resource_build!$A:$A,G$396)","v":0},{"$f":"SUMIFS(raw_resource_build!$K:$K,raw_resource_build!$B:$B,$C410,raw_resource_build!$A:$A,H$396)+SUMIFS(raw_resource_build!$L:$L,raw_resource_build!$B:$B,$C410,raw_resource_build!$A:$A,H$396)","v":0},{"$f":"SUMIFS(raw_resource_build!$K:$K,raw_resource_build!$B:$B,$C410,raw_resource_build!$A:$A,I$396)+SUMIFS(raw_resource_build!$L:$L,raw_resource_build!$B:$B,$C410,raw_resource_build!$A:$A,I$396)","v":0},{"$f":"SUMIFS(raw_resource_build!$K:$K,raw_resource_build!$B:$B,$C410,raw_resource_build!$A:$A,J$396)+SUMIFS(raw_resource_build!$L:$L,raw_resource_build!$B:$B,$C410,raw_resource_build!$A:$A,J$396)","v":0},{"$f":"SUMIFS(raw_resource_build!$K:$K,raw_resource_build!$B:$B,$C410,raw_resource_build!$A:$A,K$396)+SUMIFS(raw_resource_build!$L:$L,raw_resource_build!$B:$B,$C410,raw_resource_build!$A:$A,K$396)","v":0},{"$f":"SUMIFS(raw_resource_build!$K:$K,raw_resource_build!$B:$B,$C410,raw_resource_build!$A:$A,L$396)+SUMIFS(raw_resource_build!$L:$L,raw_resource_build!$B:$B,$C410,raw_resource_build!$A:$A,L$396)","v":0},{"$f":"SUMIFS(raw_resource_build!$K:$K,raw_resource_build!$B:$B,$C410,raw_resource_build!$A:$A,M$396)+SUMIFS(raw_resource_build!$L:$L,raw_resource_build!$B:$B,$C410,raw_resource_build!$A:$A,M$396)","v":0},{"$f":"SUMIFS(raw_resource_build!$K:$K,raw_resource_build!$B:$B,$C410,raw_resource_build!$A:$A,N$396)+SUMIFS(raw_resource_build!$L:$L,raw_resource_build!$B:$B,$C410,raw_resource_build!$A:$A,N$396)","v":0},{"$f":"SUMIFS(raw_resource_build!$K:$K,raw_resource_build!$B:$B,$C410,raw_resource_build!$A:$A,O$396)+SUMIFS(raw_resource_build!$L:$L,raw_resource_build!$B:$B,$C410,raw_resource_build!$A:$A,O$396)","v":0},{"$f":"SUMIFS(raw_resource_build!$K:$K,raw_resource_build!$B:$B,$C410,raw_resource_build!$A:$A,P$396)+SUMIFS(raw_resource_build!$L:$L,raw_resource_build!$B:$B,$C410,raw_resource_build!$A:$A,P$396)","v":0},{"$f":"SUMIFS(raw_resource_build!$K:$K,raw_resource_build!$B:$B,$C410,raw_resource_build!$A:$A,Q$396)+SUMIFS(raw_resource_build!$L:$L,raw_resource_build!$B:$B,$C410,raw_resource_build!$A:$A,Q$396)","v":0},{"$f":"SUMIFS(raw_resource_build!$K:$K,raw_resource_build!$B:$B,$C410,raw_resource_build!$A:$A,R$396)+SUMIFS(raw_resource_build!$L:$L,raw_resource_build!$B:$B,$C410,raw_resource_build!$A:$A,R$396)","v":0},{"$f":"SUMIFS(raw_resource_build!$K:$K,raw_resource_build!$B:$B,$C410,raw_resource_build!$A:$A,S$396)+SUMIFS(raw_resource_build!$L:$L,raw_resource_build!$B:$B,$C410,raw_resource_build!$A:$A,S$396)","v":0},{"$f":"SUMIFS(raw_resource_build!$K:$K,raw_resource_build!$B:$B,$C410,raw_resource_build!$A:$A,T$396)+SUMIFS(raw_resource_build!$L:$L,raw_resource_build!$B:$B,$C410,raw_resource_build!$A:$A,T$396)","v":0},{"$f":"SUMIFS(raw_resource_build!$K:$K,raw_resource_build!$B:$B,$C410,raw_resource_build!$A:$A,U$396)+SUMIFS(raw_resource_build!$L:$L,raw_resource_build!$B:$B,$C410,raw_resource_build!$A:$A,U$396)","v":0},{"$f":"SUMIFS(raw_resource_build!$K:$K,raw_resource_build!$B:$B,$C410,raw_resource_build!$A:$A,V$396)+SUMIFS(raw_resource_build!$L:$L,raw_resource_build!$B:$B,$C410,raw_resource_build!$A:$A,V$396)","v":0},{"$f":"SUMIFS(raw_resource_build!$K:$K,raw_resource_build!$B:$B,$C410,raw_resource_build!$A:$A,W$396)+SUMIFS(raw_resource_build!$L:$L,raw_resource_build!$B:$B,$C410,raw_resource_build!$A:$A,W$396)","v":0},{"$f":"SUMIFS(raw_resource_build!$K:$K,raw_resource_build!$B:$B,$C410,raw_resource_build!$A:$A,X$396)+SUMIFS(raw_resource_build!$L:$L,raw_resource_build!$B:$B,$C410,raw_resource_build!$A:$A,X$396)","v":0},{"$f":"SUMIFS(raw_resource_build!$K:$K,raw_resource_build!$B:$B,$C410,raw_resource_build!$A:$A,Y$396)+SUMIFS(raw_resource_build!$L:$L,raw_resource_build!$B:$B,$C410,raw_resource_build!$A:$A,Y$396)","v":0},{"$f":"SUMIFS(raw_resource_build!$K:$K,raw_resource_build!$B:$B,$C410,raw_resource_build!$A:$A,Z$396)+SUMIFS(raw_resource_build!$L:$L,raw_resource_build!$B:$B,$C410,raw_resource_build!$A:$A,Z$396)","v":0},{"$f":"SUMIFS(raw_resource_build!$K:$K,raw_resource_build!$B:$B,$C410,raw_resource_build!$A:$A,AA$396)+SUMIFS(raw_resource_build!$L:$L,raw_resource_build!$B:$B,$C410,raw_resource_build!$A:$A,AA$396)","v":0},{"$f":"SUMIFS(raw_resource_build!$K:$K,raw_resource_build!$B:$B,$C410,raw_resource_build!$A:$A,AB$396)+SUMIFS(raw_resource_build!$L:$L,raw_resource_build!$B:$B,$C410,raw_resource_build!$A:$A,AB$396)","v":0},{"$f":"SUMIFS(raw_resource_build!$K:$K,raw_resource_build!$B:$B,$C410,raw_resource_build!$A:$A,AC$396)+SUMIFS(raw_resource_build!$L:$L,raw_resource_build!$B:$B,$C410,raw_resource_build!$A:$A,AC$396)","v":0},{"$f":"SUMIFS(raw_resource_build!$K:$K,raw_resource_build!$B:$B,$C410,raw_resource_build!$A:$A,AD$396)+SUMIFS(raw_resource_build!$L:$L,raw_resource_build!$B:$B,$C410,raw_resource_build!$A:$A,AD$396)","v":0},{"$f":"SUMIFS(raw_resource_build!$K:$K,raw_resource_build!$B:$B,$C410,raw_resource_build!$A:$A,AE$396)+SUMIFS(raw_resource_build!$L:$L,raw_resource_build!$B:$B,$C410,raw_resource_build!$A:$A,AE$396)","v":0},{"$f":"SUMIFS(raw_resource_build!$K:$K,raw_resource_build!$B:$B,$C410,raw_resource_build!$A:$A,AF$396)+SUMIFS(raw_resource_build!$L:$L,raw_resource_build!$B:$B,$C410,raw_resource_build!$A:$A,AF$396)","v":0},{"$f":"SUMIFS(raw_resource_build!$K:$K,raw_resource_build!$B:$B,$C410,raw_resource_build!$A:$A,AG$396)+SUMIFS(raw_resource_build!$L:$L,raw_resource_build!$B:$B,$C410,raw_resource_build!$A:$A,AG$396)","v":0},{"$f":"SUMIFS(raw_resource_build!$K:$K,raw_resource_build!$B:$B,$C410,raw_resource_build!$A:$A,AH$396)+SUMIFS(raw_resource_build!$L:$L,raw_resource_build!$B:$B,$C410,raw_resource_build!$A:$A,AH$396)","v":0},{"$f":"SUMIFS(raw_resource_build!$K:$K,raw_resource_build!$B:$B,$C410,raw_resource_build!$A:$A,AI$396)+SUMIFS(raw_resource_build!$L:$L,raw_resource_build!$B:$B,$C410,raw_resource_build!$A:$A,AI$396)","v":0},{"$f":"SUMIFS(raw_resource_build!$K:$K,raw_resource_build!$B:$B,$C410,raw_resource_build!$A:$A,AJ$396)+SUMIFS(raw_resource_build!$L:$L,raw_resource_build!$B:$B,$C410,raw_resource_build!$A:$A,AJ$396)","v":0},{"$f":"SUMIFS(raw_resource_build!$K:$K,raw_resource_build!$B:$B,$C410,raw_resource_build!$A:$A,AK$396)+SUMIFS(raw_resource_build!$L:$L,raw_resource_build!$B:$B,$C410,raw_resource_build!$A:$A,AK$396)","v":0},{"$f":"SUMIFS(raw_resource_build!$K:$K,raw_resource_build!$B:$B,$C410,raw_resource_build!$A:$A,AL$396)+SUMIFS(raw_resource_build!$L:$L,raw_resource_build!$B:$B,$C410,raw_resource_build!$A:$A,AL$396)","v":0},{"$f":"SUMIFS(raw_resource_build!$K:$K,raw_resource_build!$B:$B,$C410,raw_resource_build!$A:$A,AM$396)+SUMIFS(raw_resource_build!$L:$L,raw_resource_build!$B:$B,$C410,raw_resource_build!$A:$A,AM$396)","v":0},{"$f":"SUMIFS(raw_resource_build!$K:$K,raw_resource_build!$B:$B,$C410,raw_resource_build!$A:$A,AN$396)+SUMIFS(raw_resource_build!$L:$L,raw_resource_build!$B:$B,$C410,raw_resource_build!$A:$A,AN$396)","v":0}]
[null,null,{"$f":"Lists!B49","v":"Greater_Imperial_Solar"},{"$f":"IF(INDEX(raw_resource_build!J:J,MATCH(C411,raw_resource_build!$B:$B,0))=0,\"N/A\",INDEX(raw_resource_build!J:J,MATCH(C411,raw_resource_build!$B:$B,0)))","v":"SCADSNV-Greater_Imperial"},{"$f":"SUMIFS(raw_resource_build!$K:$K,raw_resource_build!$B:$B,$C411,raw_resource_build!$A:$A,E$396)+SUMIFS(raw_resource_build!$L:$L,raw_resource_build!$B:$B,$C411,raw_resource_build!$A:$A,E$396)","v":0},{"$f":"SUMIFS(raw_resource_build!$K:$K,raw_resource_build!$B:$B,$C411,raw_resource_build!$A:$A,F$396)+SUMIFS(raw_resource_build!$L:$L,raw_resource_build!$B:$B,$C411,raw_resource_build!$A:$A,F$396)","v":0},{"$f":"SUMIFS(raw_resource_build!$K:$K,raw_resource_build!$B:$B,$C411,raw_resource_build!$A:$A,G$396)+SUMIFS(raw_resource_build!$L:$L,raw_resource_build!$B:$B,$C411,raw_resource_build!$A:$A,G$396)","v":0},{"$f":"SUMIFS(raw_resource_build!$K:$K,raw_resource_build!$B:$B,$C411,raw_resource_build!$A:$A,H$396)+SUMIFS(raw_resource_build!$L:$L,raw_resource_build!$B:$B,$C411,raw_resource_build!$A:$A,H$396)","v":0},{"$f":"SUMIFS(raw_resource_build!$K:$K,raw_resource_build!$B:$B,$C411,raw_resource_build!$A:$A,I$396)+SUMIFS(raw_resource_build!$L:$L,raw_resource_build!$B:$B,$C411,raw_resource_build!$A:$A,I$396)","v":0},{"$f":"SUMIFS(raw_resource_build!$K:$K,raw_resource_build!$B:$B,$C411,raw_resource_build!$A:$A,J$396)+SUMIFS(raw_resource_build!$L:$L,raw_resource_build!$B:$B,$C411,raw_resource_build!$A:$A,J$396)","v":0},{"$f":"SUMIFS(raw_resource_build!$K:$K,raw_resource_build!$B:$B,$C411,raw_resource_build!$A:$A,K$396)+SUMIFS(raw_resource_build!$L:$L,raw_resource_build!$B:$B,$C411,raw_resource_build!$A:$A,K$396)","v":0},{"$f":"SUMIFS(raw_resource_build!$K:$K,raw_resource_build!$B:$B,$C411,raw_resource_build!$A:$A,L$396)+SUMIFS(raw_resource_build!$L:$L,raw_resource_build!$B:$B,$C411,raw_resource_build!$A:$A,L$396)","v":0},{"$f":"SUMIFS(raw_resource_build!$K:$K,raw_resource_build!$B:$B,$C411,raw_resource_build!$A:$A,M$396)+SUMIFS(raw_resource_build!$L:$L,raw_resource_build!$B:$B,$C411,raw_resource_build!$A:$A,M$396)","v":0},{"$f":"SUMIFS(raw_resource_build!$K:$K,raw_resource_build!$B:$B,$C411,raw_resource_build!$A:$A,N$396)+SUMIFS(raw_resource_build!$L:$L,raw_resource_build!$B:$B,$C411,raw_resource_build!$A:$A,N$396)","v":0},{"$f":"SUMIFS(raw_resource_build!$K:$K,raw_resource_build!$B:$B,$C411,raw_resource_build!$A:$A,O$396)+SUMIFS(raw_resource_build!$L:$L,raw_resource_build!$B:$B,$C411,raw_resource_build!$A:$A,O$396)","v":0},{"$f":"SUMIFS(raw_resource_build!$K:$K,raw_resource_build!$B:$B,$C411,raw_resource_build!$A:$A,P$396)+SUMIFS(raw_resource_build!$L:$L,raw_resource_build!$B:$B,$C411,raw_resource_build!$A:$A,P$396)","v":866.98},{"$f":"SUMIFS(raw_resource_build!$K:$K,raw_resource_build!$B:$B,$C411,raw_resource_build!$A:$A,Q$396)+SUMIFS(raw_resource_build!$L:$L,raw_resource_build!$B:$B,$C411,raw_resource_build!$A:$A,Q$396)","v":0},{"$f":"SUMIFS(raw_resource_build!$K:$K,raw_resource_build!$B:$B,$C411,raw_resource_build!$A:$A,R$396)+SUMIFS(raw_resource_build!$L:$L,raw_resource_build!$B:$B,$C411,raw_resource_build!$A:$A,R$396)","v":0},{"$f":"SUMIFS(raw_resource_build!$K:$K,raw_resource_build!$B:$B,$C411,raw_resource_build!$A:$A,S$396)+SUMIFS(raw_resource_build!$L:$L,raw_resource_build!$B:$B,$C411,raw_resource_build!$A:$A,S$396)","v":0},{"$f":"SUMIFS(raw_resource_build!$K:$K,raw_resource_build!$B:$B,$C411,raw_resource_build!$A:$A,T$396)+SUMIFS(raw_resource_build!$L:$L,raw_resource_build!$B:$B,$C411,raw_resource_build!$A:$A,T$396)","v":866.98},{"$f":"SUMIFS(raw_resource_build!$K:$K,raw_resource_build!$B:$B,$C411,raw_resource_build!$A:$A,U$396)+SUMIFS(raw_resource_build!$L:$L,raw_resource_build!$B:$B,$C411,raw_resource_build!$A:$A,U$396)","v":0},{"$f":"SUMIFS(raw_resource_build!$K:$K,raw_resource_build!$B:$B,$C411,raw_resource_build!$A:$A,V$396)+SUMIFS(raw_resource_build!$L:$L,raw_resource_build!$B:$B,$C411,raw_resource_build!$A:$A,V$396)","v":0},{"$f":"SUMIFS(raw_resource_build!$K:$K,raw_resource_build!$B:$B,$C411,raw_resource_build!$A:$A,W$396)+SUMIFS(raw_resource_build!$L:$L,raw_resource_build!$B:$B,$C411,raw_resource_build!$A:$A,W$396)","v":0},{"$f":"SUMIFS(raw_resource_build!$K:$K,raw_resource_build!$B:$B,$C411,raw_resource_build!$A:$A,X$396)+SUMIFS(raw_resource_build!$L:$L,raw_resource_build!$B:$B,$C411,raw_resource_build!$A:$A,X$396)","v":0},{"$f":"SUMIFS(raw_resource_build!$K:$K,raw_resource_build!$B:$B,$C411,raw_resource_build!$A:$A,Y$396)+SUMIFS(raw_resource_build!$L:$L,raw_resource_build!$B:$B,$C411,raw_resource_build!$A:$A,Y$396)","v":0},{"$f":"SUMIFS(raw_resource_build!$K:$K,raw_resource_build!$B:$B,$C411,raw_resource_build!$A:$A,Z$396)+SUMIFS(raw_resource_build!$L:$L,raw_resource_build!$B:$B,$C411,raw_resource_build!$A:$A,Z$396)","v":0},{"$f":"SUMIFS(raw_resource_build!$K:$K,raw_resource_build!$B:$B,$C411,raw_resource_build!$A:$A,AA$396)+SUMIFS(raw_resource_build!$L:$L,raw_resource_build!$B:$B,$C411,raw_resource_build!$A:$A,AA$396)","v":0},{"$f":"SUMIFS(raw_resource_build!$K:$K,raw_resource_build!$B:$B,$C411,raw_resource_build!$A:$A,AB$396)+SUMIFS(raw_resource_build!$L:$L,raw_resource_build!$B:$B,$C411,raw_resource_build!$A:$A,AB$396)","v":0},{"$f":"SUMIFS(raw_resource_build!$K:$K,raw_resource_build!$B:$B,$C411,raw_resource_build!$A:$A,AC$396)+SUMIFS(raw_resource_build!$L:$L,raw_resource_build!$B:$B,$C411,raw_resource_build!$A:$A,AC$396)","v":0},{"$f":"SUMIFS(raw_resource_build!$K:$K,raw_resource_build!$B:$B,$C411,raw_resource_build!$A:$A,AD$396)+SUMIFS(raw_resource_build!$L:$L,raw_resource_build!$B:$B,$C411,raw_resource_build!$A:$A,AD$396)","v":0},{"$f":"SUMIFS(raw_resource_build!$K:$K,raw_resource_build!$B:$B,$C411,raw_resource_build!$A:$A,AE$396)+SUMIFS(raw_resource_build!$L:$L,raw_resource_build!$B:$B,$C411,raw_resource_build!$A:$A,AE$396)","v":0},{"$f":"SUMIFS(raw_resource_build!$K:$K,raw_resource_build!$B:$B,$C411,raw_resource_build!$A:$A,AF$396)+SUMIFS(raw_resource_build!$L:$L,raw_resource_build!$B:$B,$C411,raw_resource_build!$A:$A,AF$396)","v":0},{"$f":"SUMIFS(raw_resource_build!$K:$K,raw_resource_build!$B:$B,$C411,raw_resource_build!$A:$A,AG$396)+SUMIFS(raw_resource_build!$L:$L,raw_resource_build!$B:$B,$C411,raw_resource_build!$A:$A,AG$396)","v":0},{"$f":"SUMIFS(raw_resource_build!$K:$K,raw_resource_build!$B:$B,$C411,raw_resource_build!$A:$A,AH$396)+SUMIFS(raw_resource_build!$L:$L,raw_resource_build!$B:$B,$C411,raw_resource_build!$A:$A,AH$396)","v":0},{"$f":"SUMIFS(raw_resource_build!$K:$K,raw_resource_build!$B:$B,$C411,raw_resource_build!$A:$A,AI$396)+SUMIFS(raw_resource_build!$L:$L,raw_resource_build!$B:$B,$C411,raw_resource_build!$A:$A,AI$396)","v":866.98},{"$f":"SUMIFS(raw_resource_build!$K:$K,raw_resource_build!$B:$B,$C411,raw_resource_build!$A:$A,AJ$396)+SUMIFS(raw_resource_build!$L:$L,raw_resource_build!$B:$B,$C411,raw_resource_build!$A:$A,AJ$396)","v":0},{"$f":"SUMIFS(raw_resource_build!$K:$K,raw_resource_build!$B:$B,$C411,raw_resource_build!$A:$A,AK$396)+SUMIFS(raw_resource_build!$L:$L,raw_resource_build!$B:$B,$C411,raw_resource_build!$A:$A,AK$396)","v":0},{"$f":"SUMIFS(raw_resource_build!$K:$K,raw_resource_build!$B:$B,$C411,raw_resource_build!$A:$A,AL$396)+SUMIFS(raw_resource_build!$L:$L,raw_resource_build!$B:$B,$C411,raw_resource_build!$A:$A,AL$396)","v":0},{"$f":"SUMIFS(raw_resource_build!$K:$K,raw_resource_build!$B:$B,$C411,raw_resource_build!$A:$A,AM$396)+SUMIFS(raw_resource_build!$L:$L,raw_resource_build!$B:$B,$C411,raw_resource_build!$A:$A,AM$396)","v":0},{"$f":"SUMIFS(raw_resource_build!$K:$K,raw_resource_build!$B:$B,$C411,raw_resource_build!$A:$A,AN$396)+SUMIFS(raw_resource_build!$L:$L,raw_resource_build!$B:$B,$C411,raw_resource_build!$A:$A,AN$396)","v":0}]
[null,null,{"$f":"Lists!B50","v":"Greater_Imperial_Wind"},{"$f":"IF(INDEX(raw_resource_build!J:J,MATCH(C412,raw_resource_build!$B:$B,0))=0,\"N/A\",INDEX(raw_resource_build!J:J,MATCH(C412,raw_resource_build!$B:$B,0)))","v":"SCADSNV-Greater_Imperial"},{"$f":"SUMIFS(raw_resource_build!$K:$K,raw_resource_build!$B:$B,$C412,raw_resource_build!$A:$A,E$396)+SUMIFS(raw_resource_build!$L:$L,raw_resource_build!$B:$B,$C412,raw_resource_build!$A:$A,E$396)","v":0},{"$f":"SUMIFS(raw_resource_build!$K:$K,raw_resource_build!$B:$B,$C412,raw_resource_build!$A:$A,F$396)+SUMIFS(raw_resource_build!$L:$L,raw_resource_build!$B:$B,$C412,raw_resource_build!$A:$A,F$396)","v":0},{"$f":"SUMIFS(raw_resource_build!$K:$K,raw_resource_build!$B:$B,$C412,raw_resource_build!$A:$A,G$396)+SUMIFS(raw_resource_build!$L:$L,raw_resource_build!$B:$B,$C412,raw_resource_build!$A:$A,G$396)","v":0},{"$f":"SUMIFS(raw_resource_build!$K:$K,raw_resource_build!$B:$B,$C412,raw_resource_build!$A:$A,H$396)+SUMIFS(raw_resource_build!$L:$L,raw_resource_build!$B:$B,$C412,raw_resource_build!$A:$A,H$396)","v":0},{"$f":"SUMIFS(raw_resource_build!$K:$K,raw_resource_build!$B:$B,$C412,raw_resource_build!$A:$A,I$396)+SUMIFS(raw_resource_build!$L:$L,raw_resource_build!$B:$B,$C412,raw_resource_build!$A:$A,I$396)","v":0},{"$f":"SUMIFS(raw_resource_build!$K:$K,raw_resource_build!$B:$B,$C412,raw_resource_build!$A:$A,J$396)+SUMIFS(raw_resource_build!$L:$L,raw_resource_build!$B:$B,$C412,raw_resource_build!$A:$A,J$396)","v":0},{"$f":"SUMIFS(raw_resource_build!$K:$K,raw_resource_build!$B:$B,$C412,raw_resource_build!$A:$A,K$396)+SUMIFS(raw_resource_build!$L:$L,raw_resource_build!$B:$B,$C412,raw_resource_build!$A:$A,K$396)","v":0},{"$f":"SUMIFS(raw_resource_build!$K:$K,raw_resource_build!$B:$B,$C412,raw_resource_build!$A:$A,L$396)+SUMIFS(raw_resource_build!$L:$L,raw_resource_build!$B:$B,$C412,raw_resource_build!$A:$A,L$396)","v":0},{"$f":"SUMIFS(raw_resource_build!$K:$K,raw_resource_build!$B:$B,$C412,raw_resource_build!$A:$A,M$396)+SUMIFS(raw_resource_build!$L:$L,raw_resource_build!$B:$B,$C412,raw_resource_build!$A:$A,M$396)","v":0},{"$f":"SUMIFS(raw_resource_build!$K:$K,raw_resource_build!$B:$B,$C412,raw_resource_build!$A:$A,N$396)+SUMIFS(raw_resource_build!$L:$L,raw_resource_build!$B:$B,$C412,raw_resource_build!$A:$A,N$396)","v":0},{"$f":"SUMIFS(raw_resource_build!$K:$K,raw_resource_build!$B:$B,$C412,raw_resource_build!$A:$A,O$396)+SUMIFS(raw_resource_build!$L:$L,raw_resource_build!$B:$B,$C412,raw_resource_build!$A:$A,O$396)","v":0},{"$f":"SUMIFS(raw_resource_build!$K:$K,raw_resource_build!$B:$B,$C412,raw_resource_build!$A:$A,P$396)+SUMIFS(raw_resource_build!$L:$L,raw_resource_build!$B:$B,$C412,raw_resource_build!$A:$A,P$396)","v":0},{"$f":"SUMIFS(raw_resource_build!$K:$K,raw_resource_build!$B:$B,$C412,raw_resource_build!$A:$A,Q$396)+SUMIFS(raw_resource_build!$L:$L,raw_resource_build!$B:$B,$C412,raw_resource_build!$A:$A,Q$396)","v":0},{"$f":"SUMIFS(raw_resource_build!$K:$K,raw_resource_build!$B:$B,$C412,raw_resource_build!$A:$A,R$396)+SUMIFS(raw_resource_build!$L:$L,raw_resource_build!$B:$B,$C412,raw_resource_build!$A:$A,R$396)","v":0},{"$f":"SUMIFS(raw_resource_build!$K:$K,raw_resource_build!$B:$B,$C412,raw_resource_build!$A:$A,S$396)+SUMIFS(raw_resource_build!$L:$L,raw_resource_build!$B:$B,$C412,raw_resource_build!$A:$A,S$396)","v":0},{"$f":"SUMIFS(raw_resource_build!$K:$K,raw_resource_build!$B:$B,$C412,raw_resource_build!$A:$A,T$396)+SUMIFS(raw_resource_build!$L:$L,raw_resource_build!$B:$B,$C412,raw_resource_build!$A:$A,T$396)","v":0},{"$f":"SUMIFS(raw_resource_build!$K:$K,raw_resource_build!$B:$B,$C412,raw_resource_build!$A:$A,U$396)+SUMIFS(raw_resource_build!$L:$L,raw_resource_build!$B:$B,$C412,raw_resource_build!$A:$A,U$396)","v":0},{"$f":"SUMIFS(raw_resource_build!$K:$K,raw_resource_build!$B:$B,$C412,raw_resource_build!$A:$A,V$396)+SUMIFS(raw_resource_build!$L:$L,raw_resource_build!$B:$B,$C412,raw_resource_build!$A:$A,V$396)","v":0},{"$f":"SUMIFS(raw_resource_build!$K:$K,raw_resource_build!$B:$B,$C412,raw_resource_build!$A:$A,W$396)+SUMIFS(raw_resource_build!$L:$L,raw_resource_build!$B:$B,$C412,raw_resource_build!$A:$A,W$396)","v":0},{"$f":"SUMIFS(raw_resource_build!$K:$K,raw_resource_build!$B:$B,$C412,raw_resource_build!$A:$A,X$396)+SUMIFS(raw_resource_build!$L:$L,raw_resource_build!$B:$B,$C412,raw_resource_build!$A:$A,X$396)","v":0},{"$f":"SUMIFS(raw_resource_build!$K:$K,raw_resource_build!$B:$B,$C412,raw_resource_build!$A:$A,Y$396)+SUMIFS(raw_resource_build!$L:$L,raw_resource_build!$B:$B,$C412,raw_resource_build!$A:$A,Y$396)","v":0},{"$f":"SUMIFS(raw_resource_build!$K:$K,raw_resource_build!$B:$B,$C412,raw_resource_build!$A:$A,Z$396)+SUMIFS(raw_resource_build!$L:$L,raw_resource_build!$B:$B,$C412,raw_resource_build!$A:$A,Z$396)","v":0},{"$f":"SUMIFS(raw_resource_build!$K:$K,raw_resource_build!$B:$B,$C412,raw_resource_build!$A:$A,AA$396)+SUMIFS(raw_resource_build!$L:$L,raw_resource_build!$B:$B,$C412,raw_resource_build!$A:$A,AA$396)","v":0},{"$f":"SUMIFS(raw_resource_build!$K:$K,raw_resource_build!$B:$B,$C412,raw_resource_build!$A:$A,AB$396)+SUMIFS(raw_resource_build!$L:$L,raw_resource_build!$B:$B,$C412,raw_resource_build!$A:$A,AB$396)","v":0},{"$f":"SUMIFS(raw_resource_build!$K:$K,raw_resource_build!$B:$B,$C412,raw_resource_build!$A:$A,AC$396)+SUMIFS(raw_resource_build!$L:$L,raw_resource_build!$B:$B,$C412,raw_resource_build!$A:$A,AC$396)","v":0},{"$f":"SUMIFS(raw_resource_build!$K:$K,raw_resource_build!$B:$B,$C412,raw_resource_build!$A:$A,AD$396)+SUMIFS(raw_resource_build!$L:$L,raw_resource_build!$B:$B,$C412,raw_resource_build!$A:$A,AD$396)","v":0},{"$f":"SUMIFS(raw_resource_build!$K:$K,raw_resource_build!$B:$B,$C412,raw_resource_build!$A:$A,AE$396)+SUMIFS(raw_resource_build!$L:$L,raw_resource_build!$B:$B,$C412,raw_resource_build!$A:$A,AE$396)","v":0},{"$f":"SUMIFS(raw_resource_build!$K:$K,raw_resource_build!$B:$B,$C412,raw_resource_build!$A:$A,AF$396)+SUMIFS(raw_resource_build!$L:$L,raw_resource_build!$B:$B,$C412,raw_resource_build!$A:$A,AF$396)","v":0},{"$f":"SUMIFS(raw_resource_build!$K:$K,raw_resource_build!$B:$B,$C412,raw_resource_build!$A:$A,AG$396)+SUMIFS(raw_resource_build!$L:$L,raw_resource_build!$B:$B,$C412,raw_resource_build!$A:$A,AG$396)","v":0},{"$f":"SUMIFS(raw_resource_build!$K:$K,raw_resource_build!$B:$B,$C412,raw_resource_build!$A:$A,AH$396)+SUMIFS(raw_resource_build!$L:$L,raw_resource_build!$B:$B,$C412,raw_resource_build!$A:$A,AH$396)","v":0},{"$f":"SUMIFS(raw_resource_build!$K:$K,raw_resource_build!$B:$B,$C412,raw_resource_build!$A:$A,AI$396)+SUMIFS(raw_resource_build!$L:$L,raw_resource_build!$B:$B,$C412,raw_resource_build!$A:$A,AI$396)","v":0},{"$f":"SUMIFS(raw_resource_build!$K:$K,raw_resource_build!$B:$B,$C412,raw_resource_build!$A:$A,AJ$396)+SUMIFS(raw_resource_build!$L:$L,raw_resource_build!$B:$B,$C412,raw_resource_build!$A:$A,AJ$396)","v":0},{"$f":"SUMIFS(raw_resource_build!$K:$K,raw_resource_build!$B:$B,$C412,raw_resource_build!$A:$A,AK$396)+SUMIFS(raw_resource_build!$L:$L,raw_resource_build!$B:$B,$C412,raw_resource_build!$A:$A,AK$396)","v":0},{"$f":"SUMIFS(raw_resource_build!$K:$K,raw_resource_build!$B:$B,$C412,raw_resource_build!$A:$A,AL$396)+SUMIFS(raw_resource_build!$L:$L,raw_resource_build!$B:$B,$C412,raw_resource_build!$A:$A,AL$396)","v":0},{"$f":"SUMIFS(raw_resource_build!$K:$K,raw_resource_build!$B:$B,$C412,raw_resource_build!$A:$A,AM$396)+SUMIFS(raw_resource_build!$L:$L,raw_resource_build!$B:$B,$C412,raw_resource_build!$A:$A,AM$396)","v":0},{"$f":"SUMIFS(raw_resource_build!$K:$K,raw_resource_build!$B:$B,$C412,raw_resource_build!$A:$A,AN$396)+SUMIFS(raw_resource_build!$L:$L,raw_resource_build!$B:$B,$C412,raw_resource_build!$A:$A,AN$396)","v":0}]
[null,null,{"$f":"Lists!B51","v":"Greater_Kramer_Wind"},{"$f":"IF(INDEX(raw_resource_build!J:J,MATCH(C413,raw_resource_build!$B:$B,0))=0,\"N/A\",INDEX(raw_resource_build!J:J,MATCH(C413,raw_resource_build!$B:$B,0)))","v":"Greater_Kramer"},{"$f":"SUMIFS(raw_resource_build!$K:$K,raw_resource_build!$B:$B,$C413,raw_resource_build!$A:$A,E$396)+SUMIFS(raw_resource_build!$L:$L,raw_resource_build!$B:$B,$C413,raw_resource_build!$A:$A,E$396)","v":0},{"$f":"SUMIFS(raw_resource_build!$K:$K,raw_resource_build!$B:$B,$C413,raw_resource_build!$A:$A,F$396)+SUMIFS(raw_resource_build!$L:$L,raw_resource_build!$B:$B,$C413,raw_resource_build!$A:$A,F$396)","v":0},{"$f":"SUMIFS(raw_resource_build!$K:$K,raw_resource_build!$B:$B,$C413,raw_resource_build!$A:$A,G$396)+SUMIFS(raw_resource_build!$L:$L,raw_resource_build!$B:$B,$C413,raw_resource_build!$A:$A,G$396)","v":0},{"$f":"SUMIFS(raw_resource_build!$K:$K,raw_resource_build!$B:$B,$C413,raw_resource_build!$A:$A,H$396)+SUMIFS(raw_resource_build!$L:$L,raw_resource_build!$B:$B,$C413,raw_resource_build!$A:$A,H$396)","v":0},{"$f":"SUMIFS(raw_resource_build!$K:$K,raw_resource_build!$B:$B,$C413,raw_resource_build!$A:$A,I$396)+SUMIFS(raw_resource_build!$L:$L,raw_resource_build!$B:$B,$C413,raw_resource_build!$A:$A,I$396)","v":0},{"$f":"SUMIFS(raw_resource_build!$K:$K,raw_resource_build!$B:$B,$C413,raw_resource_build!$A:$A,J$396)+SUMIFS(raw_resource_build!$L:$L,raw_resource_build!$B:$B,$C413,raw_resource_build!$A:$A,J$396)","v":0},{"$f":"SUMIFS(raw_resource_build!$K:$K,raw_resource_build!$B:$B,$C413,raw_resource_build!$A:$A,K$396)+SUMIFS(raw_resource_build!$L:$L,raw_resource_build!$B:$B,$C413,raw_resource_build!$A:$A,K$396)","v":0},{"$f":"SUMIFS(raw_resource_build!$K:$K,raw_resource_build!$B:$B,$C413,raw_resource_build!$A:$A,L$396)+SUMIFS(raw_resource_build!$L:$L,raw_resource_build!$B:$B,$C413,raw_resource_build!$A:$A,L$396)","v":0},{"$f":"SUMIFS(raw_resource_build!$K:$K,raw_resource_build!$B:$B,$C413,raw_resource_build!$A:$A,M$396)+SUMIFS(raw_resource_build!$L:$L,raw_resource_build!$B:$B,$C413,raw_resource_build!$A:$A,M$396)","v":0},{"$f":"SUMIFS(raw_resource_build!$K:$K,raw_resource_build!$B:$B,$C413,raw_resource_build!$A:$A,N$396)+SUMIFS(raw_resource_build!$L:$L,raw_resource_build!$B:$B,$C413,raw_resource_build!$A:$A,N$396)","v":0},{"$f":"SUMIFS(raw_resource_build!$K:$K,raw_resource_build!$B:$B,$C413,raw_resource_build!$A:$A,O$396)+SUMIFS(raw_resource_build!$L:$L,raw_resource_build!$B:$B,$C413,raw_resource_build!$A:$A,O$396)","v":0},{"$f":"SUMIFS(raw_resource_build!$K:$K,raw_resource_build!$B:$B,$C413,raw_resource_build!$A:$A,P$396)+SUMIFS(raw_resource_build!$L:$L,raw_resource_build!$B:$B,$C413,raw_resource_build!$A:$A,P$396)","v":0},{"$f":"SUMIFS(raw_resource_build!$K:$K,raw_resource_build!$B:$B,$C413,raw_resource_build!$A:$A,Q$396)+SUMIFS(raw_resource_build!$L:$L,raw_resource_build!$B:$B,$C413,raw_resource_build!$A:$A,Q$396)","v":0},{"$f":"SUMIFS(raw_resource_build!$K:$K,raw_resource_build!$B:$B,$C413,raw_resource_build!$A:$A,R$396)+SUMIFS(raw_resource_build!$L:$L,raw_resource_build!$B:$B,$C413,raw_resource_build!$A:$A,R$396)","v":0},{"$f":"SUMIFS(raw_resource_build!$K:$K,raw_resource_build!$B:$B,$C413,raw_resource_build!$A:$A,S$396)+SUMIFS(raw_resource_build!$L:$L,raw_resource_build!$B:$B,$C413,raw_resource_build!$A:$A,S$396)","v":0},{"$f":"SUMIFS(raw_resource_build!$K:$K,raw_resource_build!$B:$B,$C413,raw_resource_build!$A:$A,T$396)+SUMIFS(raw_resource_build!$L:$L,raw_resource_build!$B:$B,$C413,raw_resource_build!$A:$A,T$396)","v":0},{"$f":"SUMIFS(raw_resource_build!$K:$K,raw_resource_build!$B:$B,$C413,raw_resource_build!$A:$A,U$396)+SUMIFS(raw_resource_build!$L:$L,raw_resource_build!$B:$B,$C413,raw_resource_build!$A:$A,U$396)","v":0},{"$f":"SUMIFS(raw_resource_build!$K:$K,raw_resource_build!$B:$B,$C413,raw_resource_build!$A:$A,V$396)+SUMIFS(raw_resource_build!$L:$L,raw_resource_build!$B:$B,$C413,raw_resource_build!$A:$A,V$396)","v":0},{"$f":"SUMIFS(raw_resource_build!$K:$K,raw_resource_build!$B:$B,$C413,raw_resource_build!$A:$A,W$396)+SUMIFS(raw_resource_build!$L:$L,raw_resource_build!$B:$B,$C413,raw_resource_build!$A:$A,W$396)","v":0},{"$f":"SUMIFS(raw_resource_build!$K:$K,raw_resource_build!$B:$B,$C413,raw_resource_build!$A:$A,X$396)+SUMIFS(raw_resource_build!$L:$L,raw_resource_build!$B:$B,$C413,raw_resource_build!$A:$A,X$396)","v":0},{"$f":"SUMIFS(raw_resource_build!$K:$K,raw_resource_build!$B:$B,$C413,raw_resource_build!$A:$A,Y$396)+SUMIFS(raw_resource_build!$L:$L,raw_resource_build!$B:$B,$C413,raw_resource_build!$A:$A,Y$396)","v":0},{"$f":"SUMIFS(raw_resource_build!$K:$K,raw_resource_build!$B:$B,$C413,raw_resource_build!$A:$A,Z$396)+SUMIFS(raw_resource_build!$L:$L,raw_resource_build!$B:$B,$C413,raw_resource_build!$A:$A,Z$396)","v":0},{"$f":"SUMIFS(raw_resource_build!$K:$K,raw_resource_build!$B:$B,$C413,raw_resource_build!$A:$A,AA$396)+SUMIFS(raw_resource_build!$L:$L,raw_resource_build!$B:$B,$C413,raw_resource_build!$A:$A,AA$396)","v":0},{"$f":"SUMIFS(raw_resource_build!$K:$K,raw_resource_build!$B:$B,$C413,raw_resource_build!$A:$A,AB$396)+SUMIFS(raw_resource_build!$L:$L,raw_resource_build!$B:$B,$C413,raw_resource_build!$A:$A,AB$396)","v":0},{"$f":"SUMIFS(raw_resource_build!$K:$K,raw_resource_build!$B:$B,$C413,raw_resource_build!$A:$A,AC$396)+SUMIFS(raw_resource_build!$L:$L,raw_resource_build!$B:$B,$C413,raw_resource_build!$A:$A,AC$396)","v":0},{"$f":"SUMIFS(raw_resource_build!$K:$K,raw_resource_build!$B:$B,$C413,raw_resource_build!$A:$A,AD$396)+SUMIFS(raw_resource_build!$L:$L,raw_resource_build!$B:$B,$C413,raw_resource_build!$A:$A,AD$396)","v":0},{"$f":"SUMIFS(raw_resource_build!$K:$K,raw_resource_build!$B:$B,$C413,raw_resource_build!$A:$A,AE$396)+SUMIFS(raw_resource_build!$L:$L,raw_resource_build!$B:$B,$C413,raw_resource_build!$A:$A,AE$396)","v":0},{"$f":"SUMIFS(raw_resource_build!$K:$K,raw_resource_build!$B:$B,$C413,raw_resource_build!$A:$A,AF$396)+SUMIFS(raw_resource_build!$L:$L,raw_resource_build!$B:$B,$C413,raw_resource_build!$A:$A,AF$396)","v":0},{"$f":"SUMIFS(raw_resource_build!$K:$K,raw_resource_build!$B:$B,$C413,raw_resource_build!$A:$A,AG$396)+SUMIFS(raw_resource_build!$L:$L,raw_resource_build!$B:$B,$C413,raw_resource_build!$A:$A,AG$396)","v":0},{"$f":"SUMIFS(raw_resource_build!$K:$K,raw_resource_build!$B:$B,$C413,raw_resource_build!$A:$A,AH$396)+SUMIFS(raw_resource_build!$L:$L,raw_resource_build!$B:$B,$C413,raw_resource_build!$A:$A,AH$396)","v":0},{"$f":"SUMIFS(raw_resource_build!$K:$K,raw_resource_build!$B:$B,$C413,raw_resource_build!$A:$A,AI$396)+SUMIFS(raw_resource_build!$L:$L,raw_resource_build!$B:$B,$C413,raw_resource_build!$A:$A,AI$396)","v":0},{"$f":"SUMIFS(raw_resource_build!$K:$K,raw_resource_build!$B:$B,$C413,raw_resource_build!$A:$A,AJ$396)+SUMIFS(raw_resource_build!$L:$L,raw_resource_build!$B:$B,$C413,raw_resource_build!$A:$A,AJ$396)","v":0},{"$f":"SUMIFS(raw_resource_build!$K:$K,raw_resource_build!$B:$B,$C413,raw_resource_build!$A:$A,AK$396)+SUMIFS(raw_resource_build!$L:$L,raw_resource_build!$B:$B,$C413,raw_resource_build!$A:$A,AK$396)","v":0},{"$f":"SUMIFS(raw_resource_build!$K:$K,raw_resource_build!$B:$B,$C413,raw_resource_build!$A:$A,AL$396)+SUMIFS(raw_resource_build!$L:$L,raw_resource_build!$B:$B,$C413,raw_resource_build!$A:$A,AL$396)","v":0},{"$f":"SUMIFS(raw_resource_build!$K:$K,raw_resource_build!$B:$B,$C413,raw_resource_build!$A:$A,AM$396)+SUMIFS(raw_resource_build!$L:$L,raw_resource_build!$B:$B,$C413,raw_resource_build!$A:$A,AM$396)","v":0},{"$f":"SUMIFS(raw_resource_build!$K:$K,raw_resource_build!$B:$B,$C413,raw_resource_build!$A:$A,AN$396)+SUMIFS(raw_resource_build!$L:$L,raw_resource_build!$B:$B,$C413,raw_resource_build!$A:$A,AN$396)","v":0}]
[null,null,{"$f":"Lists!B52","v":"Humboldt_Wind"},{"$f":"IF(INDEX(raw_resource_build!J:J,MATCH(C414,raw_resource_build!$B:$B,0))=0,\"N/A\",INDEX(raw_resource_build!J:J,MATCH(C414,raw_resource_build!$B:$B,0)))","v":"Sacramento_River-Humboldt"},{"$f":"SUMIFS(raw_resource_build!$K:$K,raw_resource_build!$B:$B,$C414,raw_resource_build!$A:$A,E$396)+SUMIFS(raw_resource_build!$L:$L,raw_resource_build!$B:$B,$C414,raw_resource_build!$A:$A,E$396)","v":0},{"$f":"SUMIFS(raw_resource_build!$K:$K,raw_resource_build!$B:$B,$C414,raw_resource_build!$A:$A,F$396)+SUMIFS(raw_resource_build!$L:$L,raw_resource_build!$B:$B,$C414,raw_resource_build!$A:$A,F$396)","v":0},{"$f":"SUMIFS(raw_resource_build!$K:$K,raw_resource_build!$B:$B,$C414,raw_resource_build!$A:$A,G$396)+SUMIFS(raw_resource_build!$L:$L,raw_resource_build!$B:$B,$C414,raw_resource_build!$A:$A,G$396)","v":0},{"$f":"SUMIFS(raw_resource_build!$K:$K,raw_resource_build!$B:$B,$C414,raw_resource_build!$A:$A,H$396)+SUMIFS(raw_resource_build!$L:$L,raw_resource_build!$B:$B,$C414,raw_resource_build!$A:$A,H$396)","v":0},{"$f":"SUMIFS(raw_resource_build!$K:$K,raw_resource_build!$B:$B,$C414,raw_resource_build!$A:$A,I$396)+SUMIFS(raw_resource_build!$L:$L,raw_resource_build!$B:$B,$C414,raw_resource_build!$A:$A,I$396)","v":0},{"$f":"SUMIFS(raw_resource_build!$K:$K,raw_resource_build!$B:$B,$C414,raw_resource_build!$A:$A,J$396)+SUMIFS(raw_resource_build!$L:$L,raw_resource_build!$B:$B,$C414,raw_resource_build!$A:$A,J$396)","v":0},{"$f":"SUMIFS(raw_resource_build!$K:$K,raw_resource_build!$B:$B,$C414,raw_resource_build!$A:$A,K$396)+SUMIFS(raw_resource_build!$L:$L,raw_resource_build!$B:$B,$C414,raw_resource_build!$A:$A,K$396)","v":34},{"$f":"SUMIFS(raw_resource_build!$K:$K,raw_resource_build!$B:$B,$C414,raw_resource_build!$A:$A,L$396)+SUMIFS(raw_resource_build!$L:$L,raw_resource_build!$B:$B,$C414,raw_resource_build!$A:$A,L$396)","v":34},{"$f":"SUMIFS(raw_resource_build!$K:$K,raw_resource_build!$B:$B,$C414,raw_resource_build!$A:$A,M$396)+SUMIFS(raw_resource_build!$L:$L,raw_resource_build!$B:$B,$C414,raw_resource_build!$A:$A,M$396)","v":34},{"$f":"SUMIFS(raw_resource_build!$K:$K,raw_resource_build!$B:$B,$C414,raw_resource_build!$A:$A,N$396)+SUMIFS(raw_resource_build!$L:$L,raw_resource_build!$B:$B,$C414,raw_resource_build!$A:$A,N$396)","v":34},{"$f":"SUMIFS(raw_resource_build!$K:$K,raw_resource_build!$B:$B,$C414,raw_resource_build!$A:$A,O$396)+SUMIFS(raw_resource_build!$L:$L,raw_resource_build!$B:$B,$C414,raw_resource_build!$A:$A,O$396)","v":0},{"$f":"SUMIFS(raw_resource_build!$K:$K,raw_resource_build!$B:$B,$C414,raw_resource_build!$A:$A,P$396)+SUMIFS(raw_resource_build!$L:$L,raw_resource_build!$B:$B,$C414,raw_resource_build!$A:$A,P$396)","v":34},{"$f":"SUMIFS(raw_resource_build!$K:$K,raw_resource_build!$B:$B,$C414,raw_resource_build!$A:$A,Q$396)+SUMIFS(raw_resource_build!$L:$L,raw_resource_build!$B:$B,$C414,raw_resource_build!$A:$A,Q$396)","v":0},{"$f":"SUMIFS(raw_resource_build!$K:$K,raw_resource_build!$B:$B,$C414,raw_resource_build!$A:$A,R$396)+SUMIFS(raw_resource_build!$L:$L,raw_resource_build!$B:$B,$C414,raw_resource_build!$A:$A,R$396)","v":0},{"$f":"SUMIFS(raw_resource_build!$K:$K,raw_resource_build!$B:$B,$C414,raw_resource_build!$A:$A,S$396)+SUMIFS(raw_resource_build!$L:$L,raw_resource_build!$B:$B,$C414,raw_resource_build!$A:$A,S$396)","v":0},{"$f":"SUMIFS(raw_resource_build!$K:$K,raw_resource_build!$B:$B,$C414,raw_resource_build!$A:$A,T$396)+SUMIFS(raw_resource_build!$L:$L,raw_resource_build!$B:$B,$C414,raw_resource_build!$A:$A,T$396)","v":34},{"$f":"SUMIFS(raw_resource_build!$K:$K,raw_resource_build!$B:$B,$C414,raw_resource_build!$A:$A,U$396)+SUMIFS(raw_resource_build!$L:$L,raw_resource_build!$B:$B,$C414,raw_resource_build!$A:$A,U$396)","v":0},{"$f":"SUMIFS(raw_resource_build!$K:$K,raw_resource_build!$B:$B,$C414,raw_resource_build!$A:$A,V$396)+SUMIFS(raw_resource_build!$L:$L,raw_resource_build!$B:$B,$C414,raw_resource_build!$A:$A,V$396)","v":0},{"$f":"SUMIFS(raw_resource_build!$K:$K,raw_resource_build!$B:$B,$C414,raw_resource_build!$A:$A,W$396)+SUMIFS(raw_resource_build!$L:$L,raw_resource_build!$B:$B,$C414,raw_resource_build!$A:$A,W$396)","v":0},{"$f":"SUMIFS(raw_resource_build!$K:$K,raw_resource_build!$B:$B,$C414,raw_resource_build!$A:$A,X$396)+SUMIFS(raw_resource_build!$L:$L,raw_resource_build!$B:$B,$C414,raw_resource_build!$A:$A,X$396)","v":0},{"$f":"SUMIFS(raw_resource_build!$K:$K,raw_resource_build!$B:$B,$C414,raw_resource_build!$A:$A,Y$396)+SUMIFS(raw_resource_build!$L:$L,raw_resource_build!$B:$B,$C414,raw_resource_build!$A:$A,Y$396)","v":0},{"$f":"SUMIFS(raw_resource_build!$K:$K,raw_resource_build!$B:$B,$C414,raw_resource_build!$A:$A,Z$396)+SUMIFS(raw_resource_build!$L:$L,raw_resource_build!$B:$B,$C414,raw_resource_build!$A:$A,Z$396)","v":0},{"$f":"SUMIFS(raw_resource_build!$K:$K,raw_resource_build!$B:$B,$C414,raw_resource_build!$A:$A,AA$396)+SUMIFS(raw_resource_build!$L:$L,raw_resource_build!$B:$B,$C414,raw_resource_build!$A:$A,AA$396)","v":0},{"$f":"SUMIFS(raw_resource_build!$K:$K,raw_resource_build!$B:$B,$C414,raw_resource_build!$A:$A,AB$396)+SUMIFS(raw_resource_build!$L:$L,raw_resource_build!$B:$B,$C414,raw_resource_build!$A:$A,AB$396)","v":0},{"$f":"SUMIFS(raw_resource_build!$K:$K,raw_resource_build!$B:$B,$C414,raw_resource_build!$A:$A,AC$396)+SUMIFS(raw_resource_build!$L:$L,raw_resource_build!$B:$B,$C414,raw_resource_build!$A:$A,AC$396)","v":0},{"$f":"SUMIFS(raw_resource_build!$K:$K,raw_resource_build!$B:$B,$C414,raw_resource_build!$A:$A,AD$396)+SUMIFS(raw_resource_build!$L:$L,raw_resource_build!$B:$B,$C414,raw_resource_build!$A:$A,AD$396)","v":0},{"$f":"SUMIFS(raw_resource_build!$K:$K,raw_resource_build!$B:$B,$C414,raw_resource_build!$A:$A,AE$396)+SUMIFS(raw_resource_build!$L:$L,raw_resource_build!$B:$B,$C414,raw_resource_build!$A:$A,AE$396)","v":0},{"$f":"SUMIFS(raw_resource_build!$K:$K,raw_resource_build!$B:$B,$C414,raw_resource_build!$A:$A,AF$396)+SUMIFS(raw_resource_build!$L:$L,raw_resource_build!$B:$B,$C414,raw_resource_build!$A:$A,AF$396)","v":0},{"$f":"SUMIFS(raw_resource_build!$K:$K,raw_resource_build!$B:$B,$C414,raw_resource_build!$A:$A,AG$396)+SUMIFS(raw_resource_build!$L:$L,raw_resource_build!$B:$B,$C414,raw_resource_build!$A:$A,AG$396)","v":0},{"$f":"SUMIFS(raw_resource_build!$K:$K,raw_resource_build!$B:$B,$C414,raw_resource_build!$A:$A,AH$396)+SUMIFS(raw_resource_build!$L:$L,raw_resource_build!$B:$B,$C414,raw_resource_build!$A:$A,AH$396)","v":0},{"$f":"SUMIFS(raw_resource_build!$K:$K,raw_resource_build!$B:$B,$C414,raw_resource_build!$A:$A,AI$396)+SUMIFS(raw_resource_build!$L:$L,raw_resource_build!$B:$B,$C414,raw_resource_build!$A:$A,AI$396)","v":34},{"$f":"SUMIFS(raw_resource_build!$K:$K,raw_resource_build!$B:$B,$C414,raw_resource_build!$A:$A,AJ$396)+SUMIFS(raw_resource_build!$L:$L,raw_resource_build!$B:$B,$C414,raw_resource_build!$A:$A,AJ$396)","v":0},{"$f":"SUMIFS(raw_resource_build!$K:$K,raw_resource_build!$B:$B,$C414,raw_resource_build!$A:$A,AK$396)+SUMIFS(raw_resource_build!$L:$L,raw_resource_build!$B:$B,$C414,raw_resource_build!$A:$A,AK$396)","v":0},{"$f":"SUMIFS(raw_resource_build!$K:$K,raw_resource_build!$B:$B,$C414,raw_resource_build!$A:$A,AL$396)+SUMIFS(raw_resource_build!$L:$L,raw_resource_build!$B:$B,$C414,raw_resource_build!$A:$A,AL$396)","v":0},{"$f":"SUMIFS(raw_resource_build!$K:$K,raw_resource_build!$B:$B,$C414,raw_resource_build!$A:$A,AM$396)+SUMIFS(raw_resource_build!$L:$L,raw_resource_build!$B:$B,$C414,raw_resource_build!$A:$A,AM$396)","v":0},{"$f":"SUMIFS(raw_resource_build!$K:$K,raw_resource_build!$B:$B,$C414,raw_resource_build!$A:$A,AN$396)+SUMIFS(raw_resource_build!$L:$L,raw_resource_build!$B:$B,$C414,raw_resource_build!$A:$A,AN$396)","v":0}]
[null,null,{"$f":"Lists!B53","v":"Inyokern_North_Kramer_Solar"},{"$f":"IF(INDEX(raw_resource_build!J:J,MATCH(C415,raw_resource_build!$B:$B,0))=0,\"N/A\",INDEX(raw_resource_build!J:J,MATCH(C415,raw_resource_build!$B:$B,0)))","v":"Inyokern_North_Kramer-Greater_Kramer"},{"$f":"SUMIFS(raw_resource_build!$K:$K,raw_resource_build!$B:$B,$C415,raw_resource_build!$A:$A,E$396)+SUMIFS(raw_resource_build!$L:$L,raw_resource_build!$B:$B,$C415,raw_resource_build!$A:$A,E$396)","v":0},{"$f":"SUMIFS(raw_resource_build!$K:$K,raw_resource_build!$B:$B,$C415,raw_resource_build!$A:$A,F$396)+SUMIFS(raw_resource_build!$L:$L,raw_resource_build!$B:$B,$C415,raw_resource_build!$A:$A,F$396)","v":0},{"$f":"SUMIFS(raw_resource_build!$K:$K,raw_resource_build!$B:$B,$C415,raw_resource_build!$A:$A,G$396)+SUMIFS(raw_resource_build!$L:$L,raw_resource_build!$B:$B,$C415,raw_resource_build!$A:$A,G$396)","v":0},{"$f":"SUMIFS(raw_resource_build!$K:$K,raw_resource_build!$B:$B,$C415,raw_resource_build!$A:$A,H$396)+SUMIFS(raw_resource_build!$L:$L,raw_resource_build!$B:$B,$C415,raw_resource_build!$A:$A,H$396)","v":0},{"$f":"SUMIFS(raw_resource_build!$K:$K,raw_resource_build!$B:$B,$C415,raw_resource_build!$A:$A,I$396)+SUMIFS(raw_resource_build!$L:$L,raw_resource_build!$B:$B,$C415,raw_resource_build!$A:$A,I$396)","v":0},{"$f":"SUMIFS(raw_resource_build!$K:$K,raw_resource_build!$B:$B,$C415,raw_resource_build!$A:$A,J$396)+SUMIFS(raw_resource_build!$L:$L,raw_resource_build!$B:$B,$C415,raw_resource_build!$A:$A,J$396)","v":0},{"$f":"SUMIFS(raw_resource_build!$K:$K,raw_resource_build!$B:$B,$C415,raw_resource_build!$A:$A,K$396)+SUMIFS(raw_resource_build!$L:$L,raw_resource_build!$B:$B,$C415,raw_resource_build!$A:$A,K$396)","v":35},{"$f":"SUMIFS(raw_resource_build!$K:$K,raw_resource_build!$B:$B,$C415,raw_resource_build!$A:$A,L$396)+SUMIFS(raw_resource_build!$L:$L,raw_resource_build!$B:$B,$C415,raw_resource_build!$A:$A,L$396)","v":73},{"$f":"SUMIFS(raw_resource_build!$K:$K,raw_resource_build!$B:$B,$C415,raw_resource_build!$A:$A,M$396)+SUMIFS(raw_resource_build!$L:$L,raw_resource_build!$B:$B,$C415,raw_resource_build!$A:$A,M$396)","v":73},{"$f":"SUMIFS(raw_resource_build!$K:$K,raw_resource_build!$B:$B,$C415,raw_resource_build!$A:$A,N$396)+SUMIFS(raw_resource_build!$L:$L,raw_resource_build!$B:$B,$C415,raw_resource_build!$A:$A,N$396)","v":73},{"$f":"SUMIFS(raw_resource_build!$K:$K,raw_resource_build!$B:$B,$C415,raw_resource_build!$A:$A,O$396)+SUMIFS(raw_resource_build!$L:$L,raw_resource_build!$B:$B,$C415,raw_resource_build!$A:$A,O$396)","v":0},{"$f":"SUMIFS(raw_resource_build!$K:$K,raw_resource_build!$B:$B,$C415,raw_resource_build!$A:$A,P$396)+SUMIFS(raw_resource_build!$L:$L,raw_resource_build!$B:$B,$C415,raw_resource_build!$A:$A,P$396)","v":73},{"$f":"SUMIFS(raw_resource_build!$K:$K,raw_resource_build!$B:$B,$C415,raw_resource_build!$A:$A,Q$396)+SUMIFS(raw_resource_build!$L:$L,raw_resource_build!$B:$B,$C415,raw_resource_build!$A:$A,Q$396)","v":0},{"$f":"SUMIFS(raw_resource_build!$K:$K,raw_resource_build!$B:$B,$C415,raw_resource_build!$A:$A,R$396)+SUMIFS(raw_resource_build!$L:$L,raw_resource_build!$B:$B,$C415,raw_resource_build!$A:$A,R$396)","v":0},{"$f":"SUMIFS(raw_resource_build!$K:$K,raw_resource_build!$B:$B,$C415,raw_resource_build!$A:$A,S$396)+SUMIFS(raw_resource_build!$L:$L,raw_resource_build!$B:$B,$C415,raw_resource_build!$A:$A,S$396)","v":0},{"$f":"SUMIFS(raw_resource_build!$K:$K,raw_resource_build!$B:$B,$C415,raw_resource_build!$A:$A,T$396)+SUMIFS(raw_resource_build!$L:$L,raw_resource_build!$B:$B,$C415,raw_resource_build!$A:$A,T$396)","v":73},{"$f":"SUMIFS(raw_resource_build!$K:$K,raw_resource_build!$B:$B,$C415,raw_resource_build!$A:$A,U$396)+SUMIFS(raw_resource_build!$L:$L,raw_resource_build!$B:$B,$C415,raw_resource_build!$A:$A,U$396)","v":0},{"$f":"SUMIFS(raw_resource_build!$K:$K,raw_resource_build!$B:$B,$C415,raw_resource_build!$A:$A,V$396)+SUMIFS(raw_resource_build!$L:$L,raw_resource_build!$B:$B,$C415,raw_resource_build!$A:$A,V$396)","v":0},{"$f":"SUMIFS(raw_resource_build!$K:$K,raw_resource_build!$B:$B,$C415,raw_resource_build!$A:$A,W$396)+SUMIFS(raw_resource_build!$L:$L,raw_resource_build!$B:$B,$C415,raw_resource_build!$A:$A,W$396)","v":0},{"$f":"SUMIFS(raw_resource_build!$K:$K,raw_resource_build!$B:$B,$C415,raw_resource_build!$A:$A,X$396)+SUMIFS(raw_resource_build!$L:$L,raw_resource_build!$B:$B,$C415,raw_resource_build!$A:$A,X$396)","v":0},{"$f":"SUMIFS(raw_resource_build!$K:$K,raw_resource_build!$B:$B,$C415,raw_resource_build!$A:$A,Y$396)+SUMIFS(raw_resource_build!$L:$L,raw_resource_build!$B:$B,$C415,raw_resource_build!$A:$A,Y$396)","v":0},{"$f":"SUMIFS(raw_resource_build!$K:$K,raw_resource_build!$B:$B,$C415,raw_resource_build!$A:$A,Z$396)+SUMIFS(raw_resource_build!$L:$L,raw_resource_build!$B:$B,$C415,raw_resource_build!$A:$A,Z$396)","v":0},{"$f":"SUMIFS(raw_resource_build!$K:$K,raw_resource_build!$B:$B,$C415,raw_resource_build!$A:$A,AA$396)+SUMIFS(raw_resource_build!$L:$L,raw_resource_build!$B:$B,$C415,raw_resource_build!$A:$A,AA$396)","v":0},{"$f":"SUMIFS(raw_resource_build!$K:$K,raw_resource_build!$B:$B,$C415,raw_resource_build!$A:$A,AB$396)+SUMIFS(raw_resource_build!$L:$L,raw_resource_build!$B:$B,$C415,raw_resource_build!$A:$A,AB$396)","v":0},{"$f":"SUMIFS(raw_resource_build!$K:$K,raw_resource_build!$B:$B,$C415,raw_resource_build!$A:$A,AC$396)+SUMIFS(raw_resource_build!$L:$L,raw_resource_build!$B:$B,$C415,raw_resource_build!$A:$A,AC$396)","v":0},{"$f":"SUMIFS(raw_resource_build!$K:$K,raw_resource_build!$B:$B,$C415,raw_resource_build!$A:$A,AD$396)+SUMIFS(raw_resource_build!$L:$L,raw_resource_build!$B:$B,$C415,raw_resource_build!$A:$A,AD$396)","v":0},{"$f":"SUMIFS(raw_resource_build!$K:$K,raw_resource_build!$B:$B,$C415,raw_resource_build!$A:$A,AE$396)+SUMIFS(raw_resource_build!$L:$L,raw_resource_build!$B:$B,$C415,raw_resource_build!$A:$A,AE$396)","v":0},{"$f":"SUMIFS(raw_resource_build!$K:$K,raw_resource_build!$B:$B,$C415,raw_resource_build!$A:$A,AF$396)+SUMIFS(raw_resource_build!$L:$L,raw_resource_build!$B:$B,$C415,raw_resource_build!$A:$A,AF$396)","v":0},{"$f":"SUMIFS(raw_resource_build!$K:$K,raw_resource_build!$B:$B,$C415,raw_resource_build!$A:$A,AG$396)+SUMIFS(raw_resource_build!$L:$L,raw_resource_build!$B:$B,$C415,raw_resource_build!$A:$A,AG$396)","v":0},{"$f":"SUMIFS(raw_resource_build!$K:$K,raw_resource_build!$B:$B,$C415,raw_resource_build!$A:$A,AH$396)+SUMIFS(raw_resource_build!$L:$L,raw_resource_build!$B:$B,$C415,raw_resource_build!$A:$A,AH$396)","v":0},{"$f":"SUMIFS(raw_resource_build!$K:$K,raw_resource_build!$B:$B,$C415,raw_resource_build!$A:$A,AI$396)+SUMIFS(raw_resource_build!$L:$L,raw_resource_build!$B:$B,$C415,raw_resource_build!$A:$A,AI$396)","v":73},{"$f":"SUMIFS(raw_resource_build!$K:$K,raw_resource_build!$B:$B,$C415,raw_resource_build!$A:$A,AJ$396)+SUMIFS(raw_resource_build!$L:$L,raw_resource_build!$B:$B,$C415,raw_resource_build!$A:$A,AJ$396)","v":0},{"$f":"SUMIFS(raw_resource_build!$K:$K,raw_resource_build!$B:$B,$C415,raw_resource_build!$A:$A,AK$396)+SUMIFS(raw_resource_build!$L:$L,raw_resource_build!$B:$B,$C415,raw_resource_build!$A:$A,AK$396)","v":0},{"$f":"SUMIFS(raw_resource_build!$K:$K,raw_resource_build!$B:$B,$C415,raw_resource_build!$A:$A,AL$396)+SUMIFS(raw_resource_build!$L:$L,raw_resource_build!$B:$B,$C415,raw_resource_build!$A:$A,AL$396)","v":0},{"$f":"SUMIFS(raw_resource_build!$K:$K,raw_resource_build!$B:$B,$C415,raw_resource_build!$A:$A,AM$396)+SUMIFS(raw_resource_build!$L:$L,raw_resource_build!$B:$B,$C415,raw_resource_build!$A:$A,AM$396)","v":0},{"$f":"SUMIFS(raw_resource_build!$K:$K,raw_resource_build!$B:$B,$C415,raw_resource_build!$A:$A,AN$396)+SUMIFS(raw_resource_build!$L:$L,raw_resource_build!$B:$B,$C415,raw_resource_build!$A:$A,AN$396)","v":0}]
[null,null,{"$f":"Lists!B54","v":"Kern_Greater_Carrizo_Solar"},{"$f":"IF(INDEX(raw_resource_build!J:J,MATCH(C416,raw_resource_build!$B:$B,0))=0,\"N/A\",INDEX(raw_resource_build!J:J,MATCH(C416,raw_resource_build!$B:$B,0)))","v":"Kern_Greater_Carrizo-SPGE"},{"$f":"SUMIFS(raw_resource_build!$K:$K,raw_resource_build!$B:$B,$C416,raw_resource_build!$A:$A,E$396)+SUMIFS(raw_resource_build!$L:$L,raw_resource_build!$B:$B,$C416,raw_resource_build!$A:$A,E$396)","v":0},{"$f":"SUMIFS(raw_resource_build!$K:$K,raw_resource_build!$B:$B,$C416,raw_resource_build!$A:$A,F$396)+SUMIFS(raw_resource_build!$L:$L,raw_resource_build!$B:$B,$C416,raw_resource_build!$A:$A,F$396)","v":0},{"$f":"SUMIFS(raw_resource_build!$K:$K,raw_resource_build!$B:$B,$C416,raw_resource_build!$A:$A,G$396)+SUMIFS(raw_resource_build!$L:$L,raw_resource_build!$B:$B,$C416,raw_resource_build!$A:$A,G$396)","v":0},{"$f":"SUMIFS(raw_resource_build!$K:$K,raw_resource_build!$B:$B,$C416,raw_resource_build!$A:$A,H$396)+SUMIFS(raw_resource_build!$L:$L,raw_resource_build!$B:$B,$C416,raw_resource_build!$A:$A,H$396)","v":0},{"$f":"SUMIFS(raw_resource_build!$K:$K,raw_resource_build!$B:$B,$C416,raw_resource_build!$A:$A,I$396)+SUMIFS(raw_resource_build!$L:$L,raw_resource_build!$B:$B,$C416,raw_resource_build!$A:$A,I$396)","v":0},{"$f":"SUMIFS(raw_resource_build!$K:$K,raw_resource_build!$B:$B,$C416,raw_resource_build!$A:$A,J$396)+SUMIFS(raw_resource_build!$L:$L,raw_resource_build!$B:$B,$C416,raw_resource_build!$A:$A,J$396)","v":0},{"$f":"SUMIFS(raw_resource_build!$K:$K,raw_resource_build!$B:$B,$C416,raw_resource_build!$A:$A,K$396)+SUMIFS(raw_resource_build!$L:$L,raw_resource_build!$B:$B,$C416,raw_resource_build!$A:$A,K$396)","v":0},{"$f":"SUMIFS(raw_resource_build!$K:$K,raw_resource_build!$B:$B,$C416,raw_resource_build!$A:$A,L$396)+SUMIFS(raw_resource_build!$L:$L,raw_resource_build!$B:$B,$C416,raw_resource_build!$A:$A,L$396)","v":0},{"$f":"SUMIFS(raw_resource_build!$K:$K,raw_resource_build!$B:$B,$C416,raw_resource_build!$A:$A,M$396)+SUMIFS(raw_resource_build!$L:$L,raw_resource_build!$B:$B,$C416,raw_resource_build!$A:$A,M$396)","v":114.26},{"$f":"SUMIFS(raw_resource_build!$K:$K,raw_resource_build!$B:$B,$C416,raw_resource_build!$A:$A,N$396)+SUMIFS(raw_resource_build!$L:$L,raw_resource_build!$B:$B,$C416,raw_resource_build!$A:$A,N$396)","v":114.26},{"$f":"SUMIFS(raw_resource_build!$K:$K,raw_resource_build!$B:$B,$C416,raw_resource_build!$A:$A,O$396)+SUMIFS(raw_resource_build!$L:$L,raw_resource_build!$B:$B,$C416,raw_resource_build!$A:$A,O$396)","v":0},{"$f":"SUMIFS(raw_resource_build!$K:$K,raw_resource_build!$B:$B,$C416,raw_resource_build!$A:$A,P$396)+SUMIFS(raw_resource_build!$L:$L,raw_resource_build!$B:$B,$C416,raw_resource_build!$A:$A,P$396)","v":1137},{"$f":"SUMIFS(raw_resource_build!$K:$K,raw_resource_build!$B:$B,$C416,raw_resource_build!$A:$A,Q$396)+SUMIFS(raw_resource_build!$L:$L,raw_resource_build!$B:$B,$C416,raw_resource_build!$A:$A,Q$396)","v":0},{"$f":"SUMIFS(raw_resource_build!$K:$K,raw_resource_build!$B:$B,$C416,raw_resource_build!$A:$A,R$396)+SUMIFS(raw_resource_build!$L:$L,raw_resource_build!$B:$B,$C416,raw_resource_build!$A:$A,R$396)","v":0},{"$f":"SUMIFS(raw_resource_build!$K:$K,raw_resource_build!$B:$B,$C416,raw_resource_build!$A:$A,S$396)+SUMIFS(raw_resource_build!$L:$L,raw_resource_build!$B:$B,$C416,raw_resource_build!$A:$A,S$396)","v":0},{"$f":"SUMIFS(raw_resource_build!$K:$K,raw_resource_build!$B:$B,$C416,raw_resource_build!$A:$A,T$396)+SUMIFS(raw_resource_build!$L:$L,raw_resource_build!$B:$B,$C416,raw_resource_build!$A:$A,T$396)","v":8329},{"$f":"SUMIFS(raw_resource_build!$K:$K,raw_resource_build!$B:$B,$C416,raw_resource_build!$A:$A,U$396)+SUMIFS(raw_resource_build!$L:$L,raw_resource_build!$B:$B,$C416,raw_resource_build!$A:$A,U$396)","v":0},{"$f":"SUMIFS(raw_resource_build!$K:$K,raw_resource_build!$B:$B,$C416,raw_resource_build!$A:$A,V$396)+SUMIFS(raw_resource_build!$L:$L,raw_resource_build!$B:$B,$C416,raw_resource_build!$A:$A,V$396)","v":0},{"$f":"SUMIFS(raw_resource_build!$K:$K,raw_resource_build!$B:$B,$C416,raw_resource_build!$A:$A,W$396)+SUMIFS(raw_resource_build!$L:$L,raw_resource_build!$B:$B,$C416,raw_resource_build!$A:$A,W$396)","v":0},{"$f":"SUMIFS(raw_resource_build!$K:$K,raw_resource_build!$B:$B,$C416,raw_resource_build!$A:$A,X$396)+SUMIFS(raw_resource_build!$L:$L,raw_resource_build!$B:$B,$C416,raw_resource_build!$A:$A,X$396)","v":0},{"$f":"SUMIFS(raw_resource_build!$K:$K,raw_resource_build!$B:$B,$C416,raw_resource_build!$A:$A,Y$396)+SUMIFS(raw_resource_build!$L:$L,raw_resource_build!$B:$B,$C416,raw_resource_build!$A:$A,Y$396)","v":0},{"$f":"SUMIFS(raw_resource_build!$K:$K,raw_resource_build!$B:$B,$C416,raw_resource_build!$A:$A,Z$396)+SUMIFS(raw_resource_build!$L:$L,raw_resource_build!$B:$B,$C416,raw_resource_build!$A:$A,Z$396)","v":0},{"$f":"SUMIFS(raw_resource_build!$K:$K,raw_resource_build!$B:$B,$C416,raw_resource_build!$A:$A,AA$396)+SUMIFS(raw_resource_build!$L:$L,raw_resource_build!$B:$B,$C416,raw_resource_build!$A:$A,AA$396)","v":0},{"$f":"SUMIFS(raw_resource_build!$K:$K,raw_resource_build!$B:$B,$C416,raw_resource_build!$A:$A,AB$396)+SUMIFS(raw_resource_build!$L:$L,raw_resource_build!$B:$B,$C416,raw_resource_build!$A:$A,AB$396)","v":0},{"$f":"SUMIFS(raw_resource_build!$K:$K,raw_resource_build!$B:$B,$C416,raw_resource_build!$A:$A,AC$396)+SUMIFS(raw_resource_build!$L:$L,raw_resource_build!$B:$B,$C416,raw_resource_build!$A:$A,AC$396)","v":0},{"$f":"SUMIFS(raw_resource_build!$K:$K,raw_resource_build!$B:$B,$C416,raw_resource_build!$A:$A,AD$396)+SUMIFS(raw_resource_build!$L:$L,raw_resource_build!$B:$B,$C416,raw_resource_build!$A:$A,AD$396)","v":0},{"$f":"SUMIFS(raw_resource_build!$K:$K,raw_resource_build!$B:$B,$C416,raw_resource_build!$A:$A,AE$396)+SUMIFS(raw_resource_build!$L:$L,raw_resource_build!$B:$B,$C416,raw_resource_build!$A:$A,AE$396)","v":0},{"$f":"SUMIFS(raw_resource_build!$K:$K,raw_resource_build!$B:$B,$C416,raw_resource_build!$A:$A,AF$396)+SUMIFS(raw_resource_build!$L:$L,raw_resource_build!$B:$B,$C416,raw_resource_build!$A:$A,AF$396)","v":0},{"$f":"SUMIFS(raw_resource_build!$K:$K,raw_resource_build!$B:$B,$C416,raw_resource_build!$A:$A,AG$396)+SUMIFS(raw_resource_build!$L:$L,raw_resource_build!$B:$B,$C416,raw_resource_build!$A:$A,AG$396)","v":0},{"$f":"SUMIFS(raw_resource_build!$K:$K,raw_resource_build!$B:$B,$C416,raw_resource_build!$A:$A,AH$396)+SUMIFS(raw_resource_build!$L:$L,raw_resource_build!$B:$B,$C416,raw_resource_build!$A:$A,AH$396)","v":0},{"$f":"SUMIFS(raw_resource_build!$K:$K,raw_resource_build!$B:$B,$C416,raw_resource_build!$A:$A,AI$396)+SUMIFS(raw_resource_build!$L:$L,raw_resource_build!$B:$B,$C416,raw_resource_build!$A:$A,AI$396)","v":8329},{"$f":"SUMIFS(raw_resource_build!$K:$K,raw_resource_build!$B:$B,$C416,raw_resource_build!$A:$A,AJ$396)+SUMIFS(raw_resource_build!$L:$L,raw_resource_build!$B:$B,$C416,raw_resource_build!$A:$A,AJ$396)","v":0},{"$f":"SUMIFS(raw_resource_build!$K:$K,raw_resource_build!$B:$B,$C416,raw_resource_build!$A:$A,AK$396)+SUMIFS(raw_resource_build!$L:$L,raw_resource_build!$B:$B,$C416,raw_resource_build!$A:$A,AK$396)","v":0},{"$f":"SUMIFS(raw_resource_build!$K:$K,raw_resource_build!$B:$B,$C416,raw_resource_build!$A:$A,AL$396)+SUMIFS(raw_resource_build!$L:$L,raw_resource_build!$B:$B,$C416,raw_resource_build!$A:$A,AL$396)","v":0},{"$f":"SUMIFS(raw_resource_build!$K:$K,raw_resource_build!$B:$B,$C416,raw_resource_build!$A:$A,AM$396)+SUMIFS(raw_resource_build!$L:$L,raw_resource_build!$B:$B,$C416,raw_resource_build!$A:$A,AM$396)","v":0},{"$f":"SUMIFS(raw_resource_build!$K:$K,raw_resource_build!$B:$B,$C416,raw_resource_build!$A:$A,AN$396)+SUMIFS(raw_resource_build!$L:$L,raw_resource_build!$B:$B,$C416,raw_resource_build!$A:$A,AN$396)","v":0}]
[null,null,{"$f":"Lists!B55","v":"Kern_Greater_Carrizo_Wind"},{"$f":"IF(INDEX(raw_resource_build!J:J,MATCH(C417,raw_resource_build!$B:$B,0))=0,\"N/A\",INDEX(raw_resource_build!J:J,MATCH(C417,raw_resource_build!$B:$B,0)))","v":"Kern_Greater_Carrizo-SPGE"},{"$f":"SUMIFS(raw_resource_build!$K:$K,raw_resource_build!$B:$B,$C417,raw_resource_build!$A:$A,E$396)+SUMIFS(raw_resource_build!$L:$L,raw_resource_build!$B:$B,$C417,raw_resource_build!$A:$A,E$396)","v":0},{"$f":"SUMIFS(raw_resource_build!$K:$K,raw_resource_build!$B:$B,$C417,raw_resource_build!$A:$A,F$396)+SUMIFS(raw_resource_build!$L:$L,raw_resource_build!$B:$B,$C417,raw_resource_build!$A:$A,F$396)","v":0},{"$f":"SUMIFS(raw_resource_build!$K:$K,raw_resource_build!$B:$B,$C417,raw_resource_build!$A:$A,G$396)+SUMIFS(raw_resource_build!$L:$L,raw_resource_build!$B:$B,$C417,raw_resource_build!$A:$A,G$396)","v":0},{"$f":"SUMIFS(raw_resource_build!$K:$K,raw_resource_build!$B:$B,$C417,raw_resource_build!$A:$A,H$396)+SUMIFS(raw_resource_build!$L:$L,raw_resource_build!$B:$B,$C417,raw_resource_build!$A:$A,H$396)","v":0},{"$f":"SUMIFS(raw_resource_build!$K:$K,raw_resource_build!$B:$B,$C417,raw_resource_build!$A:$A,I$396)+SUMIFS(raw_resource_build!$L:$L,raw_resource_build!$B:$B,$C417,raw_resource_build!$A:$A,I$396)","v":0},{"$f":"SUMIFS(raw_resource_build!$K:$K,raw_resource_build!$B:$B,$C417,raw_resource_build!$A:$A,J$396)+SUMIFS(raw_resource_build!$L:$L,raw_resource_build!$B:$B,$C417,raw_resource_build!$A:$A,J$396)","v":0},{"$f":"SUMIFS(raw_resource_build!$K:$K,raw_resource_build!$B:$B,$C417,raw_resource_build!$A:$A,K$396)+SUMIFS(raw_resource_build!$L:$L,raw_resource_build!$B:$B,$C417,raw_resource_build!$A:$A,K$396)","v":0},{"$f":"SUMIFS(raw_resource_build!$K:$K,raw_resource_build!$B:$B,$C417,raw_resource_build!$A:$A,L$396)+SUMIFS(raw_resource_build!$L:$L,raw_resource_build!$B:$B,$C417,raw_resource_build!$A:$A,L$396)","v":60},{"$f":"SUMIFS(raw_resource_build!$K:$K,raw_resource_build!$B:$B,$C417,raw_resource_build!$A:$A,M$396)+SUMIFS(raw_resource_build!$L:$L,raw_resource_build!$B:$B,$C417,raw_resource_build!$A:$A,M$396)","v":60},{"$f":"SUMIFS(raw_resource_build!$K:$K,raw_resource_build!$B:$B,$C417,raw_resource_build!$A:$A,N$396)+SUMIFS(raw_resource_build!$L:$L,raw_resource_build!$B:$B,$C417,raw_resource_build!$A:$A,N$396)","v":60},{"$f":"SUMIFS(raw_resource_build!$K:$K,raw_resource_build!$B:$B,$C417,raw_resource_build!$A:$A,O$396)+SUMIFS(raw_resource_build!$L:$L,raw_resource_build!$B:$B,$C417,raw_resource_build!$A:$A,O$396)","v":0},{"$f":"SUMIFS(raw_resource_build!$K:$K,raw_resource_build!$B:$B,$C417,raw_resource_build!$A:$A,P$396)+SUMIFS(raw_resource_build!$L:$L,raw_resource_build!$B:$B,$C417,raw_resource_build!$A:$A,P$396)","v":60},{"$f":"SUMIFS(raw_resource_build!$K:$K,raw_resource_build!$B:$B,$C417,raw_resource_build!$A:$A,Q$396)+SUMIFS(raw_resource_build!$L:$L,raw_resource_build!$B:$B,$C417,raw_resource_build!$A:$A,Q$396)","v":0},{"$f":"SUMIFS(raw_resource_build!$K:$K,raw_resource_build!$B:$B,$C417,raw_resource_build!$A:$A,R$396)+SUMIFS(raw_resource_build!$L:$L,raw_resource_build!$B:$B,$C417,raw_resource_build!$A:$A,R$396)","v":0},{"$f":"SUMIFS(raw_resource_build!$K:$K,raw_resource_build!$B:$B,$C417,raw_resource_build!$A:$A,S$396)+SUMIFS(raw_resource_build!$L:$L,raw_resource_build!$B:$B,$C417,raw_resource_build!$A:$A,S$396)","v":0},{"$f":"SUMIFS(raw_resource_build!$K:$K,raw_resource_build!$B:$B,$C417,raw_resource_build!$A:$A,T$396)+SUMIFS(raw_resource_build!$L:$L,raw_resource_build!$B:$B,$C417,raw_resource_build!$A:$A,T$396)","v":60},{"$f":"SUMIFS(raw_resource_build!$K:$K,raw_resource_build!$B:$B,$C417,raw_resource_build!$A:$A,U$396)+SUMIFS(raw_resource_build!$L:$L,raw_resource_build!$B:$B,$C417,raw_resource_build!$A:$A,U$396)","v":0},{"$f":"SUMIFS(raw_resource_build!$K:$K,raw_resource_build!$B:$B,$C417,raw_resource_build!$A:$A,V$396)+SUMIFS(raw_resource_build!$L:$L,raw_resource_build!$B:$B,$C417,raw_resource_build!$A:$A,V$396)","v":0},{"$f":"SUMIFS(raw_resource_build!$K:$K,raw_resource_build!$B:$B,$C417,raw_resource_build!$A:$A,W$396)+SUMIFS(raw_resource_build!$L:$L,raw_resource_build!$B:$B,$C417,raw_resource_build!$A:$A,W$396)","v":0},{"$f":"SUMIFS(raw_resource_build!$K:$K,raw_resource_build!$B:$B,$C417,raw_resource_build!$A:$A,X$396)+SUMIFS(raw_resource_build!$L:$L,raw_resource_build!$B:$B,$C417,raw_resource_build!$A:$A,X$396)","v":0},{"$f":"SUMIFS(raw_resource_build!$K:$K,raw_resource_build!$B:$B,$C417,raw_resource_build!$A:$A,Y$396)+SUMIFS(raw_resource_build!$L:$L,raw_resource_build!$B:$B,$C417,raw_resource_build!$A:$A,Y$396)","v":0},{"$f":"SUMIFS(raw_resource_build!$K:$K,raw_resource_build!$B:$B,$C417,raw_resource_build!$A:$A,Z$396)+SUMIFS(raw_resource_build!$L:$L,raw_resource_build!$B:$B,$C417,raw_resource_build!$A:$A,Z$396)","v":0},{"$f":"SUMIFS(raw_resource_build!$K:$K,raw_resource_build!$B:$B,$C417,raw_resource_build!$A:$A,AA$396)+SUMIFS(raw_resource_build!$L:$L,raw_resource_build!$B:$B,$C417,raw_resource_build!$A:$A,AA$396)","v":0},{"$f":"SUMIFS(raw_resource_build!$K:$K,raw_resource_build!$B:$B,$C417,raw_resource_build!$A:$A,AB$396)+SUMIFS(raw_resource_build!$L:$L,raw_resource_build!$B:$B,$C417,raw_resource_build!$A:$A,AB$396)","v":0},{"$f":"SUMIFS(raw_resource_build!$K:$K,raw_resource_build!$B:$B,$C417,raw_resource_build!$A:$A,AC$396)+SUMIFS(raw_resource_build!$L:$L,raw_resource_build!$B:$B,$C417,raw_resource_build!$A:$A,AC$396)","v":0},{"$f":"SUMIFS(raw_resource_build!$K:$K,raw_resource_build!$B:$B,$C417,raw_resource_build!$A:$A,AD$396)+SUMIFS(raw_resource_build!$L:$L,raw_resource_build!$B:$B,$C417,raw_resource_build!$A:$A,AD$396)","v":0},{"$f":"SUMIFS(raw_resource_build!$K:$K,raw_resource_build!$B:$B,$C417,raw_resource_build!$A:$A,AE$396)+SUMIFS(raw_resource_build!$L:$L,raw_resource_build!$B:$B,$C417,raw_resource_build!$A:$A,AE$396)","v":0},{"$f":"SUMIFS(raw_resource_build!$K:$K,raw_resource_build!$B:$B,$C417,raw_resource_build!$A:$A,AF$396)+SUMIFS(raw_resource_build!$L:$L,raw_resource_build!$B:$B,$C417,raw_resource_build!$A:$A,AF$396)","v":0},{"$f":"SUMIFS(raw_resource_build!$K:$K,raw_resource_build!$B:$B,$C417,raw_resource_build!$A:$A,AG$396)+SUMIFS(raw_resource_build!$L:$L,raw_resource_build!$B:$B,$C417,raw_resource_build!$A:$A,AG$396)","v":0},{"$f":"SUMIFS(raw_resource_build!$K:$K,raw_resource_build!$B:$B,$C417,raw_resource_build!$A:$A,AH$396)+SUMIFS(raw_resource_build!$L:$L,raw_resource_build!$B:$B,$C417,raw_resource_build!$A:$A,AH$396)","v":0},{"$f":"SUMIFS(raw_resource_build!$K:$K,raw_resource_build!$B:$B,$C417,raw_resource_build!$A:$A,AI$396)+SUMIFS(raw_resource_build!$L:$L,raw_resource_build!$B:$B,$C417,raw_resource_build!$A:$A,AI$396)","v":60},{"$f":"SUMIFS(raw_resource_build!$K:$K,raw_resource_build!$B:$B,$C417,raw_resource_build!$A:$A,AJ$396)+SUMIFS(raw_resource_build!$L:$L,raw_resource_build!$B:$B,$C417,raw_resource_build!$A:$A,AJ$396)","v":0},{"$f":"SUMIFS(raw_resource_build!$K:$K,raw_resource_build!$B:$B,$C417,raw_resource_build!$A:$A,AK$396)+SUMIFS(raw_resource_build!$L:$L,raw_resource_build!$B:$B,$C417,raw_resource_build!$A:$A,AK$396)","v":0},{"$f":"SUMIFS(raw_resource_build!$K:$K,raw_resource_build!$B:$B,$C417,raw_resource_build!$A:$A,AL$396)+SUMIFS(raw_resource_build!$L:$L,raw_resource_build!$B:$B,$C417,raw_resource_build!$A:$A,AL$396)","v":0},{"$f":"SUMIFS(raw_resource_build!$K:$K,raw_resource_build!$B:$B,$C417,raw_resource_build!$A:$A,AM$396)+SUMIFS(raw_resource_build!$L:$L,raw_resource_build!$B:$B,$C417,raw_resource_build!$A:$A,AM$396)","v":0},{"$f":"SUMIFS(raw_resource_build!$K:$K,raw_resource_build!$B:$B,$C417,raw_resource_build!$A:$A,AN$396)+SUMIFS(raw_resource_build!$L:$L,raw_resource_build!$B:$B,$C417,raw_resource_build!$A:$A,AN$396)","v":0}]
[null,null,{"$f":"Lists!B56","v":"Kramer_Inyokern_Ex_Solar"},{"$f":"IF(INDEX(raw_resource_build!J:J,MATCH(C418,raw_resource_build!$B:$B,0))=0,\"N/A\",INDEX(raw_resource_build!J:J,MATCH(C418,raw_resource_build!$B:$B,0)))","v":"Kramer_Inyokern_Ex"},{"$f":"SUMIFS(raw_resource_build!$K:$K,raw_resource_build!$B:$B,$C418,raw_resource_build!$A:$A,E$396)+SUMIFS(raw_resource_build!$L:$L,raw_resource_build!$B:$B,$C418,raw_resource_build!$A:$A,E$396)","v":0},{"$f":"SUMIFS(raw_resource_build!$K:$K,raw_resource_build!$B:$B,$C418,raw_resource_build!$A:$A,F$396)+SUMIFS(raw_resource_build!$L:$L,raw_resource_build!$B:$B,$C418,raw_resource_build!$A:$A,F$396)","v":0},{"$f":"SUMIFS(raw_resource_build!$K:$K,raw_resource_build!$B:$B,$C418,raw_resource_build!$A:$A,G$396)+SUMIFS(raw_resource_build!$L:$L,raw_resource_build!$B:$B,$C418,raw_resource_build!$A:$A,G$396)","v":0},{"$f":"SUMIFS(raw_resource_build!$K:$K,raw_resource_build!$B:$B,$C418,raw_resource_build!$A:$A,H$396)+SUMIFS(raw_resource_build!$L:$L,raw_resource_build!$B:$B,$C418,raw_resource_build!$A:$A,H$396)","v":0},{"$f":"SUMIFS(raw_resource_build!$K:$K,raw_resource_build!$B:$B,$C418,raw_resource_build!$A:$A,I$396)+SUMIFS(raw_resource_build!$L:$L,raw_resource_build!$B:$B,$C418,raw_resource_build!$A:$A,I$396)","v":0},{"$f":"SUMIFS(raw_resource_build!$K:$K,raw_resource_build!$B:$B,$C418,raw_resource_build!$A:$A,J$396)+SUMIFS(raw_resource_build!$L:$L,raw_resource_build!$B:$B,$C418,raw_resource_build!$A:$A,J$396)","v":0},{"$f":"SUMIFS(raw_resource_build!$K:$K,raw_resource_build!$B:$B,$C418,raw_resource_build!$A:$A,K$396)+SUMIFS(raw_resource_build!$L:$L,raw_resource_build!$B:$B,$C418,raw_resource_build!$A:$A,K$396)","v":0},{"$f":"SUMIFS(raw_resource_build!$K:$K,raw_resource_build!$B:$B,$C418,raw_resource_build!$A:$A,L$396)+SUMIFS(raw_resource_build!$L:$L,raw_resource_build!$B:$B,$C418,raw_resource_build!$A:$A,L$396)","v":0},{"$f":"SUMIFS(raw_resource_build!$K:$K,raw_resource_build!$B:$B,$C418,raw_resource_build!$A:$A,M$396)+SUMIFS(raw_resource_build!$L:$L,raw_resource_build!$B:$B,$C418,raw_resource_build!$A:$A,M$396)","v":0},{"$f":"SUMIFS(raw_resource_build!$K:$K,raw_resource_build!$B:$B,$C418,raw_resource_build!$A:$A,N$396)+SUMIFS(raw_resource_build!$L:$L,raw_resource_build!$B:$B,$C418,raw_resource_build!$A:$A,N$396)","v":0},{"$f":"SUMIFS(raw_resource_build!$K:$K,raw_resource_build!$B:$B,$C418,raw_resource_build!$A:$A,O$396)+SUMIFS(raw_resource_build!$L:$L,raw_resource_build!$B:$B,$C418,raw_resource_build!$A:$A,O$396)","v":0},{"$f":"SUMIFS(raw_resource_build!$K:$K,raw_resource_build!$B:$B,$C418,raw_resource_build!$A:$A,P$396)+SUMIFS(raw_resource_build!$L:$L,raw_resource_build!$B:$B,$C418,raw_resource_build!$A:$A,P$396)","v":0},{"$f":"SUMIFS(raw_resource_build!$K:$K,raw_resource_build!$B:$B,$C418,raw_resource_build!$A:$A,Q$396)+SUMIFS(raw_resource_build!$L:$L,raw_resource_build!$B:$B,$C418,raw_resource_build!$A:$A,Q$396)","v":0},{"$f":"SUMIFS(raw_resource_build!$K:$K,raw_resource_build!$B:$B,$C418,raw_resource_build!$A:$A,R$396)+SUMIFS(raw_resource_build!$L:$L,raw_resource_build!$B:$B,$C418,raw_resource_build!$A:$A,R$396)","v":0},{"$f":"SUMIFS(raw_resource_build!$K:$K,raw_resource_build!$B:$B,$C418,raw_resource_build!$A:$A,S$396)+SUMIFS(raw_resource_build!$L:$L,raw_resource_build!$B:$B,$C418,raw_resource_build!$A:$A,S$396)","v":0},{"$f":"SUMIFS(raw_resource_build!$K:$K,raw_resource_build!$B:$B,$C418,raw_resource_build!$A:$A,T$396)+SUMIFS(raw_resource_build!$L:$L,raw_resource_build!$B:$B,$C418,raw_resource_build!$A:$A,T$396)","v":0},{"$f":"SUMIFS(raw_resource_build!$K:$K,raw_resource_build!$B:$B,$C418,raw_resource_build!$A:$A,U$396)+SUMIFS(raw_resource_build!$L:$L,raw_resource_build!$B:$B,$C418,raw_resource_build!$A:$A,U$396)","v":0},{"$f":"SUMIFS(raw_resource_build!$K:$K,raw_resource_build!$B:$B,$C418,raw_resource_build!$A:$A,V$396)+SUMIFS(raw_resource_build!$L:$L,raw_resource_build!$B:$B,$C418,raw_resource_build!$A:$A,V$396)","v":0},{"$f":"SUMIFS(raw_resource_build!$K:$K,raw_resource_build!$B:$B,$C418,raw_resource_build!$A:$A,W$396)+SUMIFS(raw_resource_build!$L:$L,raw_resource_build!$B:$B,$C418,raw_resource_build!$A:$A,W$396)","v":0},{"$f":"SUMIFS(raw_resource_build!$K:$K,raw_resource_build!$B:$B,$C418,raw_resource_build!$A:$A,X$396)+SUMIFS(raw_resource_build!$L:$L,raw_resource_build!$B:$B,$C418,raw_resource_build!$A:$A,X$396)","v":0},{"$f":"SUMIFS(raw_resource_build!$K:$K,raw_resource_build!$B:$B,$C418,raw_resource_build!$A:$A,Y$396)+SUMIFS(raw_resource_build!$L:$L,raw_resource_build!$B:$B,$C418,raw_resource_build!$A:$A,Y$396)","v":0},{"$f":"SUMIFS(raw_resource_build!$K:$K,raw_resource_build!$B:$B,$C418,raw_resource_build!$A:$A,Z$396)+SUMIFS(raw_resource_build!$L:$L,raw_resource_build!$B:$B,$C418,raw_resource_build!$A:$A,Z$396)","v":0},{"$f":"SUMIFS(raw_resource_build!$K:$K,raw_resource_build!$B:$B,$C418,raw_resource_build!$A:$A,AA$396)+SUMIFS(raw_resource_build!$L:$L,raw_resource_build!$B:$B,$C418,raw_resource_build!$A:$A,AA$396)","v":0},{"$f":"SUMIFS(raw_resource_build!$K:$K,raw_resource_build!$B:$B,$C418,raw_resource_build!$A:$A,AB$396)+SUMIFS(raw_resource_build!$L:$L,raw_resource_build!$B:$B,$C418,raw_resource_build!$A:$A,AB$396)","v":0},{"$f":"SUMIFS(raw_resource_build!$K:$K,raw_resource_build!$B:$B,$C418,raw_resource_build!$A:$A,AC$396)+SUMIFS(raw_resource_build!$L:$L,raw_resource_build!$B:$B,$C418,raw_resource_build!$A:$A,AC$396)","v":0},{"$f":"SUMIFS(raw_resource_build!$K:$K,raw_resource_build!$B:$B,$C418,raw_resource_build!$A:$A,AD$396)+SUMIFS(raw_resource_build!$L:$L,raw_resource_build!$B:$B,$C418,raw_resource_build!$A:$A,AD$396)","v":0},{"$f":"SUMIFS(raw_resource_build!$K:$K,raw_resource_build!$B:$B,$C418,raw_resource_build!$A:$A,AE$396)+SUMIFS(raw_resource_build!$L:$L,raw_resource_build!$B:$B,$C418,raw_resource_build!$A:$A,AE$396)","v":0},{"$f":"SUMIFS(raw_resource_build!$K:$K,raw_resource_build!$B:$B,$C418,raw_resource_build!$A:$A,AF$396)+SUMIFS(raw_resource_build!$L:$L,raw_resource_build!$B:$B,$C418,raw_resource_build!$A:$A,AF$396)","v":0},{"$f":"SUMIFS(raw_resource_build!$K:$K,raw_resource_build!$B:$B,$C418,raw_resource_build!$A:$A,AG$396)+SUMIFS(raw_resource_build!$L:$L,raw_resource_build!$B:$B,$C418,raw_resource_build!$A:$A,AG$396)","v":0},{"$f":"SUMIFS(raw_resource_build!$K:$K,raw_resource_build!$B:$B,$C418,raw_resource_build!$A:$A,AH$396)+SUMIFS(raw_resource_build!$L:$L,raw_resource_build!$B:$B,$C418,raw_resource_build!$A:$A,AH$396)","v":0},{"$f":"SUMIFS(raw_resource_build!$K:$K,raw_resource_build!$B:$B,$C418,raw_resource_build!$A:$A,AI$396)+SUMIFS(raw_resource_build!$L:$L,raw_resource_build!$B:$B,$C418,raw_resource_build!$A:$A,AI$396)","v":0},{"$f":"SUMIFS(raw_resource_build!$K:$K,raw_resource_build!$B:$B,$C418,raw_resource_build!$A:$A,AJ$396)+SUMIFS(raw_resource_build!$L:$L,raw_resource_build!$B:$B,$C418,raw_resource_build!$A:$A,AJ$396)","v":0},{"$f":"SUMIFS(raw_resource_build!$K:$K,raw_resource_build!$B:$B,$C418,raw_resource_build!$A:$A,AK$396)+SUMIFS(raw_resource_build!$L:$L,raw_resource_build!$B:$B,$C418,raw_resource_build!$A:$A,AK$396)","v":0},{"$f":"SUMIFS(raw_resource_build!$K:$K,raw_resource_build!$B:$B,$C418,raw_resource_build!$A:$A,AL$396)+SUMIFS(raw_resource_build!$L:$L,raw_resource_build!$B:$B,$C418,raw_resource_build!$A:$A,AL$396)","v":0},{"$f":"SUMIFS(raw_resource_build!$K:$K,raw_resource_build!$B:$B,$C418,raw_resource_build!$A:$A,AM$396)+SUMIFS(raw_resource_build!$L:$L,raw_resource_build!$B:$B,$C418,raw_resource_build!$A:$A,AM$396)","v":0},{"$f":"SUMIFS(raw_resource_build!$K:$K,raw_resource_build!$B:$B,$C418,raw_resource_build!$A:$A,AN$396)+SUMIFS(raw_resource_build!$L:$L,raw_resource_build!$B:$B,$C418,raw_resource_build!$A:$A,AN$396)","v":0}]
[null,null,{"$f":"Lists!B57","v":"Kramer_Inyokern_Ex_Wind"},{"$f":"IF(INDEX(raw_resource_build!J:J,MATCH(C419,raw_resource_build!$B:$B,0))=0,\"N/A\",INDEX(raw_resource_build!J:J,MATCH(C419,raw_resource_build!$B:$B,0)))","v":"Kramer_Inyokern_Ex"},{"$f":"SUMIFS(raw_resource_build!$K:$K,raw_resource_build!$B:$B,$C419,raw_resource_build!$A:$A,E$396)+SUMIFS(raw_resource_build!$L:$L,raw_resource_build!$B:$B,$C419,raw_resource_build!$A:$A,E$396)","v":0},{"$f":"SUMIFS(raw_resource_build!$K:$K,raw_resource_build!$B:$B,$C419,raw_resource_build!$A:$A,F$396)+SUMIFS(raw_resource_build!$L:$L,raw_resource_build!$B:$B,$C419,raw_resource_build!$A:$A,F$396)","v":0},{"$f":"SUMIFS(raw_resource_build!$K:$K,raw_resource_build!$B:$B,$C419,raw_resource_build!$A:$A,G$396)+SUMIFS(raw_resource_build!$L:$L,raw_resource_build!$B:$B,$C419,raw_resource_build!$A:$A,G$396)","v":0},{"$f":"SUMIFS(raw_resource_build!$K:$K,raw_resource_build!$B:$B,$C419,raw_resource_build!$A:$A,H$396)+SUMIFS(raw_resource_build!$L:$L,raw_resource_build!$B:$B,$C419,raw_resource_build!$A:$A,H$396)","v":0},{"$f":"SUMIFS(raw_resource_build!$K:$K,raw_resource_build!$B:$B,$C419,raw_resource_build!$A:$A,I$396)+SUMIFS(raw_resource_build!$L:$L,raw_resource_build!$B:$B,$C419,raw_resource_build!$A:$A,I$396)","v":0},{"$f":"SUMIFS(raw_resource_build!$K:$K,raw_resource_build!$B:$B,$C419,raw_resource_build!$A:$A,J$396)+SUMIFS(raw_resource_build!$L:$L,raw_resource_build!$B:$B,$C419,raw_resource_build!$A:$A,J$396)","v":0},{"$f":"SUMIFS(raw_resource_build!$K:$K,raw_resource_build!$B:$B,$C419,raw_resource_build!$A:$A,K$396)+SUMIFS(raw_resource_build!$L:$L,raw_resource_build!$B:$B,$C419,raw_resource_build!$A:$A,K$396)","v":0},{"$f":"SUMIFS(raw_resource_build!$K:$K,raw_resource_build!$B:$B,$C419,raw_resource_build!$A:$A,L$396)+SUMIFS(raw_resource_build!$L:$L,raw_resource_build!$B:$B,$C419,raw_resource_build!$A:$A,L$396)","v":0},{"$f":"SUMIFS(raw_resource_build!$K:$K,raw_resource_build!$B:$B,$C419,raw_resource_build!$A:$A,M$396)+SUMIFS(raw_resource_build!$L:$L,raw_resource_build!$B:$B,$C419,raw_resource_build!$A:$A,M$396)","v":0},{"$f":"SUMIFS(raw_resource_build!$K:$K,raw_resource_build!$B:$B,$C419,raw_resource_build!$A:$A,N$396)+SUMIFS(raw_resource_build!$L:$L,raw_resource_build!$B:$B,$C419,raw_resource_build!$A:$A,N$396)","v":0},{"$f":"SUMIFS(raw_resource_build!$K:$K,raw_resource_build!$B:$B,$C419,raw_resource_build!$A:$A,O$396)+SUMIFS(raw_resource_build!$L:$L,raw_resource_build!$B:$B,$C419,raw_resource_build!$A:$A,O$396)","v":0},{"$f":"SUMIFS(raw_resource_build!$K:$K,raw_resource_build!$B:$B,$C419,raw_resource_build!$A:$A,P$396)+SUMIFS(raw_resource_build!$L:$L,raw_resource_build!$B:$B,$C419,raw_resource_build!$A:$A,P$396)","v":0},{"$f":"SUMIFS(raw_resource_build!$K:$K,raw_resource_build!$B:$B,$C419,raw_resource_build!$A:$A,Q$396)+SUMIFS(raw_resource_build!$L:$L,raw_resource_build!$B:$B,$C419,raw_resource_build!$A:$A,Q$396)","v":0},{"$f":"SUMIFS(raw_resource_build!$K:$K,raw_resource_build!$B:$B,$C419,raw_resource_build!$A:$A,R$396)+SUMIFS(raw_resource_build!$L:$L,raw_resource_build!$B:$B,$C419,raw_resource_build!$A:$A,R$396)","v":0},{"$f":"SUMIFS(raw_resource_build!$K:$K,raw_resource_build!$B:$B,$C419,raw_resource_build!$A:$A,S$396)+SUMIFS(raw_resource_build!$L:$L,raw_resource_build!$B:$B,$C419,raw_resource_build!$A:$A,S$396)","v":0},{"$f":"SUMIFS(raw_resource_build!$K:$K,raw_resource_build!$B:$B,$C419,raw_resource_build!$A:$A,T$396)+SUMIFS(raw_resource_build!$L:$L,raw_resource_build!$B:$B,$C419,raw_resource_build!$A:$A,T$396)","v":0},{"$f":"SUMIFS(raw_resource_build!$K:$K,raw_resource_build!$B:$B,$C419,raw_resource_build!$A:$A,U$396)+SUMIFS(raw_resource_build!$L:$L,raw_resource_build!$B:$B,$C419,raw_resource_build!$A:$A,U$396)","v":0},{"$f":"SUMIFS(raw_resource_build!$K:$K,raw_resource_build!$B:$B,$C419,raw_resource_build!$A:$A,V$396)+SUMIFS(raw_resource_build!$L:$L,raw_resource_build!$B:$B,$C419,raw_resource_build!$A:$A,V$396)","v":0},{"$f":"SUMIFS(raw_resource_build!$K:$K,raw_resource_build!$B:$B,$C419,raw_resource_build!$A:$A,W$396)+SUMIFS(raw_resource_build!$L:$L,raw_resource_build!$B:$B,$C419,raw_resource_build!$A:$A,W$396)","v":0},{"$f":"SUMIFS(raw_resource_build!$K:$K,raw_resource_build!$B:$B,$C419,raw_resource_build!$A:$A,X$396)+SUMIFS(raw_resource_build!$L:$L,raw_resource_build!$B:$B,$C419,raw_resource_build!$A:$A,X$396)","v":0},{"$f":"SUMIFS(raw_resource_build!$K:$K,raw_resource_build!$B:$B,$C419,raw_resource_build!$A:$A,Y$396)+SUMIFS(raw_resource_build!$L:$L,raw_resource_build!$B:$B,$C419,raw_resource_build!$A:$A,Y$396)","v":0},{"$f":"SUMIFS(raw_resource_build!$K:$K,raw_resource_build!$B:$B,$C419,raw_resource_build!$A:$A,Z$396)+SUMIFS(raw_resource_build!$L:$L,raw_resource_build!$B:$B,$C419,raw_resource_build!$A:$A,Z$396)","v":0},{"$f":"SUMIFS(raw_resource_build!$K:$K,raw_resource_build!$B:$B,$C419,raw_resource_build!$A:$A,AA$396)+SUMIFS(raw_resource_build!$L:$L,raw_resource_build!$B:$B,$C419,raw_resource_build!$A:$A,AA$396)","v":0},{"$f":"SUMIFS(raw_resource_build!$K:$K,raw_resource_build!$B:$B,$C419,raw_resource_build!$A:$A,AB$396)+SUMIFS(raw_resource_build!$L:$L,raw_resource_build!$B:$B,$C419,raw_resource_build!$A:$A,AB$396)","v":0},{"$f":"SUMIFS(raw_resource_build!$K:$K,raw_resource_build!$B:$B,$C419,raw_resource_build!$A:$A,AC$396)+SUMIFS(raw_resource_build!$L:$L,raw_resource_build!$B:$B,$C419,raw_resource_build!$A:$A,AC$396)","v":0},{"$f":"SUMIFS(raw_resource_build!$K:$K,raw_resource_build!$B:$B,$C419,raw_resource_build!$A:$A,AD$396)+SUMIFS(raw_resource_build!$L:$L,raw_resource_build!$B:$B,$C419,raw_resource_build!$A:$A,AD$396)","v":0},{"$f":"SUMIFS(raw_resource_build!$K:$K,raw_resource_build!$B:$B,$C419,raw_resource_build!$A:$A,AE$396)+SUMIFS(raw_resource_build!$L:$L,raw_resource_build!$B:$B,$C419,raw_resource_build!$A:$A,AE$396)","v":0},{"$f":"SUMIFS(raw_resource_build!$K:$K,raw_resource_build!$B:$B,$C419,raw_resource_build!$A:$A,AF$396)+SUMIFS(raw_resource_build!$L:$L,raw_resource_build!$B:$B,$C419,raw_resource_build!$A:$A,AF$396)","v":0},{"$f":"SUMIFS(raw_resource_build!$K:$K,raw_resource_build!$B:$B,$C419,raw_resource_build!$A:$A,AG$396)+SUMIFS(raw_resource_build!$L:$L,raw_resource_build!$B:$B,$C419,raw_resource_build!$A:$A,AG$396)","v":0},{"$f":"SUMIFS(raw_resource_build!$K:$K,raw_resource_build!$B:$B,$C419,raw_resource_build!$A:$A,AH$396)+SUMIFS(raw_resource_build!$L:$L,raw_resource_build!$B:$B,$C419,raw_resource_build!$A:$A,AH$396)","v":0},{"$f":"SUMIFS(raw_resource_build!$K:$K,raw_resource_build!$B:$B,$C419,raw_resource_build!$A:$A,AI$396)+SUMIFS(raw_resource_build!$L:$L,raw_resource_build!$B:$B,$C419,raw_resource_build!$A:$A,AI$396)","v":0},{"$f":"SUMIFS(raw_resource_build!$K:$K,raw_resource_build!$B:$B,$C419,raw_resource_build!$A:$A,AJ$396)+SUMIFS(raw_resource_build!$L:$L,raw_resource_build!$B:$B,$C419,raw_resource_build!$A:$A,AJ$396)","v":0},{"$f":"SUMIFS(raw_resource_build!$K:$K,raw_resource_build!$B:$B,$C419,raw_resource_build!$A:$A,AK$396)+SUMIFS(raw_resource_build!$L:$L,raw_resource_build!$B:$B,$C419,raw_resource_build!$A:$A,AK$396)","v":0},{"$f":"SUMIFS(raw_resource_build!$K:$K,raw_resource_build!$B:$B,$C419,raw_resource_build!$A:$A,AL$396)+SUMIFS(raw_resource_build!$L:$L,raw_resource_build!$B:$B,$C419,raw_resource_build!$A:$A,AL$396)","v":0},{"$f":"SUMIFS(raw_resource_build!$K:$K,raw_resource_build!$B:$B,$C419,raw_resource_build!$A:$A,AM$396)+SUMIFS(raw_resource_build!$L:$L,raw_resource_build!$B:$B,$C419,raw_resource_build!$A:$A,AM$396)","v":0},{"$f":"SUMIFS(raw_resource_build!$K:$K,raw_resource_build!$B:$B,$C419,raw_resource_build!$A:$A,AN$396)+SUMIFS(raw_resource_build!$L:$L,raw_resource_build!$B:$B,$C419,raw_resource_build!$A:$A,AN$396)","v":0}]
[null,null,{"$f":"Lists!B58","v":"Mountain_Pass_El_Dorado_Solar"},{"$f":"IF(INDEX(raw_resource_build!J:J,MATCH(C420,raw_resource_build!$B:$B,0))=0,\"N/A\",INDEX(raw_resource_build!J:J,MATCH(C420,raw_resource_build!$B:$B,0)))","v":"N/A"},{"$f":"SUMIFS(raw_resource_build!$K:$K,raw_resource_build!$B:$B,$C420,raw_resource_build!$A:$A,E$396)+SUMIFS(raw_resource_build!$L:$L,raw_resource_build!$B:$B,$C420,raw_resource_build!$A:$A,E$396)","v":0},{"$f":"SUMIFS(raw_resource_build!$K:$K,raw_resource_build!$B:$B,$C420,raw_resource_build!$A:$A,F$396)+SUMIFS(raw_resource_build!$L:$L,raw_resource_build!$B:$B,$C420,raw_resource_build!$A:$A,F$396)","v":0},{"$f":"SUMIFS(raw_resource_build!$K:$K,raw_resource_build!$B:$B,$C420,raw_resource_build!$A:$A,G$396)+SUMIFS(raw_resource_build!$L:$L,raw_resource_build!$B:$B,$C420,raw_resource_build!$A:$A,G$396)","v":0},{"$f":"SUMIFS(raw_resource_build!$K:$K,raw_resource_build!$B:$B,$C420,raw_resource_build!$A:$A,H$396)+SUMIFS(raw_resource_build!$L:$L,raw_resource_build!$B:$B,$C420,raw_resource_build!$A:$A,H$396)","v":0},{"$f":"SUMIFS(raw_resource_build!$K:$K,raw_resource_build!$B:$B,$C420,raw_resource_build!$A:$A,I$396)+SUMIFS(raw_resource_build!$L:$L,raw_resource_build!$B:$B,$C420,raw_resource_build!$A:$A,I$396)","v":0},{"$f":"SUMIFS(raw_resource_build!$K:$K,raw_resource_build!$B:$B,$C420,raw_resource_build!$A:$A,J$396)+SUMIFS(raw_resource_build!$L:$L,raw_resource_build!$B:$B,$C420,raw_resource_build!$A:$A,J$396)","v":0},{"$f":"SUMIFS(raw_resource_build!$K:$K,raw_resource_build!$B:$B,$C420,raw_resource_build!$A:$A,K$396)+SUMIFS(raw_resource_build!$L:$L,raw_resource_build!$B:$B,$C420,raw_resource_build!$A:$A,K$396)","v":0},{"$f":"SUMIFS(raw_resource_build!$K:$K,raw_resource_build!$B:$B,$C420,raw_resource_build!$A:$A,L$396)+SUMIFS(raw_resource_build!$L:$L,raw_resource_build!$B:$B,$C420,raw_resource_build!$A:$A,L$396)","v":0},{"$f":"SUMIFS(raw_resource_build!$K:$K,raw_resource_build!$B:$B,$C420,raw_resource_build!$A:$A,M$396)+SUMIFS(raw_resource_build!$L:$L,raw_resource_build!$B:$B,$C420,raw_resource_build!$A:$A,M$396)","v":66.48},{"$f":"SUMIFS(raw_resource_build!$K:$K,raw_resource_build!$B:$B,$C420,raw_resource_build!$A:$A,N$396)+SUMIFS(raw_resource_build!$L:$L,raw_resource_build!$B:$B,$C420,raw_resource_build!$A:$A,N$396)","v":248},{"$f":"SUMIFS(raw_resource_build!$K:$K,raw_resource_build!$B:$B,$C420,raw_resource_build!$A:$A,O$396)+SUMIFS(raw_resource_build!$L:$L,raw_resource_build!$B:$B,$C420,raw_resource_build!$A:$A,O$396)","v":0},{"$f":"SUMIFS(raw_resource_build!$K:$K,raw_resource_build!$B:$B,$C420,raw_resource_build!$A:$A,P$396)+SUMIFS(raw_resource_build!$L:$L,raw_resource_build!$B:$B,$C420,raw_resource_build!$A:$A,P$396)","v":248},{"$f":"SUMIFS(raw_resource_build!$K:$K,raw_resource_build!$B:$B,$C420,raw_resource_build!$A:$A,Q$396)+SUMIFS(raw_resource_build!$L:$L,raw_resource_build!$B:$B,$C420,raw_resource_build!$A:$A,Q$396)","v":0},{"$f":"SUMIFS(raw_resource_build!$K:$K,raw_resource_build!$B:$B,$C420,raw_resource_build!$A:$A,R$396)+SUMIFS(raw_resource_build!$L:$L,raw_resource_build!$B:$B,$C420,raw_resource_build!$A:$A,R$396)","v":0},{"$f":"SUMIFS(raw_resource_build!$K:$K,raw_resource_build!$B:$B,$C420,raw_resource_build!$A:$A,S$396)+SUMIFS(raw_resource_build!$L:$L,raw_resource_build!$B:$B,$C420,raw_resource_build!$A:$A,S$396)","v":0},{"$f":"SUMIFS(raw_resource_build!$K:$K,raw_resource_build!$B:$B,$C420,raw_resource_build!$A:$A,T$396)+SUMIFS(raw_resource_build!$L:$L,raw_resource_build!$B:$B,$C420,raw_resource_build!$A:$A,T$396)","v":248},{"$f":"SUMIFS(raw_resource_build!$K:$K,raw_resource_build!$B:$B,$C420,raw_resource_build!$A:$A,U$396)+SUMIFS(raw_resource_build!$L:$L,raw_resource_build!$B:$B,$C420,raw_resource_build!$A:$A,U$396)","v":0},{"$f":"SUMIFS(raw_resource_build!$K:$K,raw_resource_build!$B:$B,$C420,raw_resource_build!$A:$A,V$396)+SUMIFS(raw_resource_build!$L:$L,raw_resource_build!$B:$B,$C420,raw_resource_build!$A:$A,V$396)","v":0},{"$f":"SUMIFS(raw_resource_build!$K:$K,raw_resource_build!$B:$B,$C420,raw_resource_build!$A:$A,W$396)+SUMIFS(raw_resource_build!$L:$L,raw_resource_build!$B:$B,$C420,raw_resource_build!$A:$A,W$396)","v":0},{"$f":"SUMIFS(raw_resource_build!$K:$K,raw_resource_build!$B:$B,$C420,raw_resource_build!$A:$A,X$396)+SUMIFS(raw_resource_build!$L:$L,raw_resource_build!$B:$B,$C420,raw_resource_build!$A:$A,X$396)","v":0},{"$f":"SUMIFS(raw_resource_build!$K:$K,raw_resource_build!$B:$B,$C420,raw_resource_build!$A:$A,Y$396)+SUMIFS(raw_resource_build!$L:$L,raw_resource_build!$B:$B,$C420,raw_resource_build!$A:$A,Y$396)","v":0},{"$f":"SUMIFS(raw_resource_build!$K:$K,raw_resource_build!$B:$B,$C420,raw_resource_build!$A:$A,Z$396)+SUMIFS(raw_resource_build!$L:$L,raw_resource_build!$B:$B,$C420,raw_resource_build!$A:$A,Z$396)","v":0},{"$f":"SUMIFS(raw_resource_build!$K:$K,raw_resource_build!$B:$B,$C420,raw_resource_build!$A:$A,AA$396)+SUMIFS(raw_resource_build!$L:$L,raw_resource_build!$B:$B,$C420,raw_resource_build!$A:$A,AA$396)","v":0},{"$f":"SUMIFS(raw_resource_build!$K:$K,raw_resource_build!$B:$B,$C420,raw_resource_build!$A:$A,AB$396)+SUMIFS(raw_resource_build!$L:$L,raw_resource_build!$B:$B,$C420,raw_resource_build!$A:$A,AB$396)","v":0},{"$f":"SUMIFS(raw_resource_build!$K:$K,raw_resource_build!$B:$B,$C420,raw_resource_build!$A:$A,AC$396)+SUMIFS(raw_resource_build!$L:$L,raw_resource_build!$B:$B,$C420,raw_resource_build!$A:$A,AC$396)","v":0},{"$f":"SUMIFS(raw_resource_build!$K:$K,raw_resource_build!$B:$B,$C420,raw_resource_build!$A:$A,AD$396)+SUMIFS(raw_resource_build!$L:$L,raw_resource_build!$B:$B,$C420,raw_resource_build!$A:$A,AD$396)","v":0},{"$f":"SUMIFS(raw_resource_build!$K:$K,raw_resource_build!$B:$B,$C420,raw_resource_build!$A:$A,AE$396)+SUMIFS(raw_resource_build!$L:$L,raw_resource_build!$B:$B,$C420,raw_resource_build!$A:$A,AE$396)","v":0},{"$f":"SUMIFS(raw_resource_build!$K:$K,raw_resource_build!$B:$B,$C420,raw_resource_build!$A:$A,AF$396)+SUMIFS(raw_resource_build!$L:$L,raw_resource_build!$B:$B,$C420,raw_resource_build!$A:$A,AF$396)","v":0},{"$f":"SUMIFS(raw_resource_build!$K:$K,raw_resource_build!$B:$B,$C420,raw_resource_build!$A:$A,AG$396)+SUMIFS(raw_resource_build!$L:$L,raw_resource_build!$B:$B,$C420,raw_resource_build!$A:$A,AG$396)","v":0},{"$f":"SUMIFS(raw_resource_build!$K:$K,raw_resource_build!$B:$B,$C420,raw_resource_build!$A:$A,AH$396)+SUMIFS(raw_resource_build!$L:$L,raw_resource_build!$B:$B,$C420,raw_resource_build!$A:$A,AH$396)","v":0},{"$f":"SUMIFS(raw_resource_build!$K:$K,raw_resource_build!$B:$B,$C420,raw_resource_build!$A:$A,AI$396)+SUMIFS(raw_resource_build!$L:$L,raw_resource_build!$B:$B,$C420,raw_resource_build!$A:$A,AI$396)","v":248},{"$f":"SUMIFS(raw_resource_build!$K:$K,raw_resource_build!$B:$B,$C420,raw_resource_build!$A:$A,AJ$396)+SUMIFS(raw_resource_build!$L:$L,raw_resource_build!$B:$B,$C420,raw_resource_build!$A:$A,AJ$396)","v":0},{"$f":"SUMIFS(raw_resource_build!$K:$K,raw_resource_build!$B:$B,$C420,raw_resource_build!$A:$A,AK$396)+SUMIFS(raw_resource_build!$L:$L,raw_resource_build!$B:$B,$C420,raw_resource_build!$A:$A,AK$396)","v":0},{"$f":"SUMIFS(raw_resource_build!$K:$K,raw_resource_build!$B:$B,$C420,raw_resource_build!$A:$A,AL$396)+SUMIFS(raw_resource_build!$L:$L,raw_resource_build!$B:$B,$C420,raw_resource_build!$A:$A,AL$396)","v":0},{"$f":"SUMIFS(raw_resource_build!$K:$K,raw_resource_build!$B:$B,$C420,raw_resource_build!$A:$A,AM$396)+SUMIFS(raw_resource_build!$L:$L,raw_resource_build!$B:$B,$C420,raw_resource_build!$A:$A,AM$396)","v":0},{"$f":"SUMIFS(raw_resource_build!$K:$K,raw_resource_build!$B:$B,$C420,raw_resource_build!$A:$A,AN$396)+SUMIFS(raw_resource_build!$L:$L,raw_resource_build!$B:$B,$C420,raw_resource_build!$A:$A,AN$396)","v":0}]
[null,null,{"$f":"Lists!B59","v":"North_Victor_Solar"},{"$f":"IF(INDEX(raw_resource_build!J:J,MATCH(C421,raw_resource_build!$B:$B,0))=0,\"N/A\",INDEX(raw_resource_build!J:J,MATCH(C421,raw_resource_build!$B:$B,0)))","v":"North_Victor-Greater_Kramer"},{"$f":"SUMIFS(raw_resource_build!$K:$K,raw_resource_build!$B:$B,$C421,raw_resource_build!$A:$A,E$396)+SUMIFS(raw_resource_build!$L:$L,raw_resource_build!$B:$B,$C421,raw_resource_build!$A:$A,E$396)","v":0},{"$f":"SUMIFS(raw_resource_build!$K:$K,raw_resource_build!$B:$B,$C421,raw_resource_build!$A:$A,F$396)+SUMIFS(raw_resource_build!$L:$L,raw_resource_build!$B:$B,$C421,raw_resource_build!$A:$A,F$396)","v":0},{"$f":"SUMIFS(raw_resource_build!$K:$K,raw_resource_build!$B:$B,$C421,raw_resource_build!$A:$A,G$396)+SUMIFS(raw_resource_build!$L:$L,raw_resource_build!$B:$B,$C421,raw_resource_build!$A:$A,G$396)","v":0},{"$f":"SUMIFS(raw_resource_build!$K:$K,raw_resource_build!$B:$B,$C421,raw_resource_build!$A:$A,H$396)+SUMIFS(raw_resource_build!$L:$L,raw_resource_build!$B:$B,$C421,raw_resource_build!$A:$A,H$396)","v":0},{"$f":"SUMIFS(raw_resource_build!$K:$K,raw_resource_build!$B:$B,$C421,raw_resource_build!$A:$A,I$396)+SUMIFS(raw_resource_build!$L:$L,raw_resource_build!$B:$B,$C421,raw_resource_build!$A:$A,I$396)","v":0},{"$f":"SUMIFS(raw_resource_build!$K:$K,raw_resource_build!$B:$B,$C421,raw_resource_build!$A:$A,J$396)+SUMIFS(raw_resource_build!$L:$L,raw_resource_build!$B:$B,$C421,raw_resource_build!$A:$A,J$396)","v":0},{"$f":"SUMIFS(raw_resource_build!$K:$K,raw_resource_build!$B:$B,$C421,raw_resource_build!$A:$A,K$396)+SUMIFS(raw_resource_build!$L:$L,raw_resource_build!$B:$B,$C421,raw_resource_build!$A:$A,K$396)","v":0},{"$f":"SUMIFS(raw_resource_build!$K:$K,raw_resource_build!$B:$B,$C421,raw_resource_build!$A:$A,L$396)+SUMIFS(raw_resource_build!$L:$L,raw_resource_build!$B:$B,$C421,raw_resource_build!$A:$A,L$396)","v":300},{"$f":"SUMIFS(raw_resource_build!$K:$K,raw_resource_build!$B:$B,$C421,raw_resource_build!$A:$A,M$396)+SUMIFS(raw_resource_build!$L:$L,raw_resource_build!$B:$B,$C421,raw_resource_build!$A:$A,M$396)","v":300},{"$f":"SUMIFS(raw_resource_build!$K:$K,raw_resource_build!$B:$B,$C421,raw_resource_build!$A:$A,N$396)+SUMIFS(raw_resource_build!$L:$L,raw_resource_build!$B:$B,$C421,raw_resource_build!$A:$A,N$396)","v":300},{"$f":"SUMIFS(raw_resource_build!$K:$K,raw_resource_build!$B:$B,$C421,raw_resource_build!$A:$A,O$396)+SUMIFS(raw_resource_build!$L:$L,raw_resource_build!$B:$B,$C421,raw_resource_build!$A:$A,O$396)","v":0},{"$f":"SUMIFS(raw_resource_build!$K:$K,raw_resource_build!$B:$B,$C421,raw_resource_build!$A:$A,P$396)+SUMIFS(raw_resource_build!$L:$L,raw_resource_build!$B:$B,$C421,raw_resource_build!$A:$A,P$396)","v":300},{"$f":"SUMIFS(raw_resource_build!$K:$K,raw_resource_build!$B:$B,$C421,raw_resource_build!$A:$A,Q$396)+SUMIFS(raw_resource_build!$L:$L,raw_resource_build!$B:$B,$C421,raw_resource_build!$A:$A,Q$396)","v":0},{"$f":"SUMIFS(raw_resource_build!$K:$K,raw_resource_build!$B:$B,$C421,raw_resource_build!$A:$A,R$396)+SUMIFS(raw_resource_build!$L:$L,raw_resource_build!$B:$B,$C421,raw_resource_build!$A:$A,R$396)","v":0},{"$f":"SUMIFS(raw_resource_build!$K:$K,raw_resource_build!$B:$B,$C421,raw_resource_build!$A:$A,S$396)+SUMIFS(raw_resource_build!$L:$L,raw_resource_build!$B:$B,$C421,raw_resource_build!$A:$A,S$396)","v":0},{"$f":"SUMIFS(raw_resource_build!$K:$K,raw_resource_build!$B:$B,$C421,raw_resource_build!$A:$A,T$396)+SUMIFS(raw_resource_build!$L:$L,raw_resource_build!$B:$B,$C421,raw_resource_build!$A:$A,T$396)","v":300},{"$f":"SUMIFS(raw_resource_build!$K:$K,raw_resource_build!$B:$B,$C421,raw_resource_build!$A:$A,U$396)+SUMIFS(raw_resource_build!$L:$L,raw_resource_build!$B:$B,$C421,raw_resource_build!$A:$A,U$396)","v":0},{"$f":"SUMIFS(raw_resource_build!$K:$K,raw_resource_build!$B:$B,$C421,raw_resource_build!$A:$A,V$396)+SUMIFS(raw_resource_build!$L:$L,raw_resource_build!$B:$B,$C421,raw_resource_build!$A:$A,V$396)","v":0},{"$f":"SUMIFS(raw_resource_build!$K:$K,raw_resource_build!$B:$B,$C421,raw_resource_build!$A:$A,W$396)+SUMIFS(raw_resource_build!$L:$L,raw_resource_build!$B:$B,$C421,raw_resource_build!$A:$A,W$396)","v":0},{"$f":"SUMIFS(raw_resource_build!$K:$K,raw_resource_build!$B:$B,$C421,raw_resource_build!$A:$A,X$396)+SUMIFS(raw_resource_build!$L:$L,raw_resource_build!$B:$B,$C421,raw_resource_build!$A:$A,X$396)","v":0},{"$f":"SUMIFS(raw_resource_build!$K:$K,raw_resource_build!$B:$B,$C421,raw_resource_build!$A:$A,Y$396)+SUMIFS(raw_resource_build!$L:$L,raw_resource_build!$B:$B,$C421,raw_resource_build!$A:$A,Y$396)","v":0},{"$f":"SUMIFS(raw_resource_build!$K:$K,raw_resource_build!$B:$B,$C421,raw_resource_build!$A:$A,Z$396)+SUMIFS(raw_resource_build!$L:$L,raw_resource_build!$B:$B,$C421,raw_resource_build!$A:$A,Z$396)","v":0},{"$f":"SUMIFS(raw_resource_build!$K:$K,raw_resource_build!$B:$B,$C421,raw_resource_build!$A:$A,AA$396)+SUMIFS(raw_resource_build!$L:$L,raw_resource_build!$B:$B,$C421,raw_resource_build!$A:$A,AA$396)","v":0},{"$f":"SUMIFS(raw_resource_build!$K:$K,raw_resource_build!$B:$B,$C421,raw_resource_build!$A:$A,AB$396)+SUMIFS(raw_resource_build!$L:$L,raw_resource_build!$B:$B,$C421,raw_resource_build!$A:$A,AB$396)","v":0},{"$f":"SUMIFS(raw_resource_build!$K:$K,raw_resource_build!$B:$B,$C421,raw_resource_build!$A:$A,AC$396)+SUMIFS(raw_resource_build!$L:$L,raw_resource_build!$B:$B,$C421,raw_resource_build!$A:$A,AC$396)","v":0},{"$f":"SUMIFS(raw_resource_build!$K:$K,raw_resource_build!$B:$B,$C421,raw_resource_build!$A:$A,AD$396)+SUMIFS(raw_resource_build!$L:$L,raw_resource_build!$B:$B,$C421,raw_resource_build!$A:$A,AD$396)","v":0},{"$f":"SUMIFS(raw_resource_build!$K:$K,raw_resource_build!$B:$B,$C421,raw_resource_build!$A:$A,AE$396)+SUMIFS(raw_resource_build!$L:$L,raw_resource_build!$B:$B,$C421,raw_resource_build!$A:$A,AE$396)","v":0},{"$f":"SUMIFS(raw_resource_build!$K:$K,raw_resource_build!$B:$B,$C421,raw_resource_build!$A:$A,AF$396)+SUMIFS(raw_resource_build!$L:$L,raw_resource_build!$B:$B,$C421,raw_resource_build!$A:$A,AF$396)","v":0},{"$f":"SUMIFS(raw_resource_build!$K:$K,raw_resource_build!$B:$B,$C421,raw_resource_build!$A:$A,AG$396)+SUMIFS(raw_resource_build!$L:$L,raw_resource_build!$B:$B,$C421,raw_resource_build!$A:$A,AG$396)","v":0},{"$f":"SUMIFS(raw_resource_build!$K:$K,raw_resource_build!$B:$B,$C421,raw_resource_build!$A:$A,AH$396)+SUMIFS(raw_resource_build!$L:$L,raw_resource_build!$B:$B,$C421,raw_resource_build!$A:$A,AH$396)","v":0},{"$f":"SUMIFS(raw_resource_build!$K:$K,raw_resource_build!$B:$B,$C421,raw_resource_build!$A:$A,AI$396)+SUMIFS(raw_resource_build!$L:$L,raw_resource_build!$B:$B,$C421,raw_resource_build!$A:$A,AI$396)","v":300},{"$f":"SUMIFS(raw_resource_build!$K:$K,raw_resource_build!$B:$B,$C421,raw_resource_build!$A:$A,AJ$396)+SUMIFS(raw_resource_build!$L:$L,raw_resource_build!$B:$B,$C421,raw_resource_build!$A:$A,AJ$396)","v":0},{"$f":"SUMIFS(raw_resource_build!$K:$K,raw_resource_build!$B:$B,$C421,raw_resource_build!$A:$A,AK$396)+SUMIFS(raw_resource_build!$L:$L,raw_resource_build!$B:$B,$C421,raw_resource_build!$A:$A,AK$396)","v":0},{"$f":"SUMIFS(raw_resource_build!$K:$K,raw_resource_build!$B:$B,$C421,raw_resource_build!$A:$A,AL$396)+SUMIFS(raw_resource_build!$L:$L,raw_resource_build!$B:$B,$C421,raw_resource_build!$A:$A,AL$396)","v":0},{"$f":"SUMIFS(raw_resource_build!$K:$K,raw_resource_build!$B:$B,$C421,raw_resource_build!$A:$A,AM$396)+SUMIFS(raw_resource_build!$L:$L,raw_resource_build!$B:$B,$C421,raw_resource_build!$A:$A,AM$396)","v":0},{"$f":"SUMIFS(raw_resource_build!$K:$K,raw_resource_build!$B:$B,$C421,raw_resource_build!$A:$A,AN$396)+SUMIFS(raw_resource_build!$L:$L,raw_resource_build!$B:$B,$C421,raw_resource_build!$A:$A,AN$396)","v":0}]
[null,null,{"$f":"Lists!B60","v":"Northern_California_Ex_Solar"},{"$f":"IF(INDEX(raw_resource_build!J:J,MATCH(C422,raw_resource_build!$B:$B,0))=0,\"N/A\",INDEX(raw_resource_build!J:J,MATCH(C422,raw_resource_build!$B:$B,0)))","v":"Northern_California_Ex"},{"$f":"SUMIFS(raw_resource_build!$K:$K,raw_resource_build!$B:$B,$C422,raw_resource_build!$A:$A,E$396)+SUMIFS(raw_resource_build!$L:$L,raw_resource_build!$B:$B,$C422,raw_resource_build!$A:$A,E$396)","v":0},{"$f":"SUMIFS(raw_resource_build!$K:$K,raw_resource_build!$B:$B,$C422,raw_resource_build!$A:$A,F$396)+SUMIFS(raw_resource_build!$L:$L,raw_resource_build!$B:$B,$C422,raw_resource_build!$A:$A,F$396)","v":0},{"$f":"SUMIFS(raw_resource_build!$K:$K,raw_resource_build!$B:$B,$C422,raw_resource_build!$A:$A,G$396)+SUMIFS(raw_resource_build!$L:$L,raw_resource_build!$B:$B,$C422,raw_resource_build!$A:$A,G$396)","v":0},{"$f":"SUMIFS(raw_resource_build!$K:$K,raw_resource_build!$B:$B,$C422,raw_resource_build!$A:$A,H$396)+SUMIFS(raw_resource_build!$L:$L,raw_resource_build!$B:$B,$C422,raw_resource_build!$A:$A,H$396)","v":0},{"$f":"SUMIFS(raw_resource_build!$K:$K,raw_resource_build!$B:$B,$C422,raw_resource_build!$A:$A,I$396)+SUMIFS(raw_resource_build!$L:$L,raw_resource_build!$B:$B,$C422,raw_resource_build!$A:$A,I$396)","v":0},{"$f":"SUMIFS(raw_resource_build!$K:$K,raw_resource_build!$B:$B,$C422,raw_resource_build!$A:$A,J$396)+SUMIFS(raw_resource_build!$L:$L,raw_resource_build!$B:$B,$C422,raw_resource_build!$A:$A,J$396)","v":0},{"$f":"SUMIFS(raw_resource_build!$K:$K,raw_resource_build!$B:$B,$C422,raw_resource_build!$A:$A,K$396)+SUMIFS(raw_resource_build!$L:$L,raw_resource_build!$B:$B,$C422,raw_resource_build!$A:$A,K$396)","v":0},{"$f":"SUMIFS(raw_resource_build!$K:$K,raw_resource_build!$B:$B,$C422,raw_resource_build!$A:$A,L$396)+SUMIFS(raw_resource_build!$L:$L,raw_resource_build!$B:$B,$C422,raw_resource_build!$A:$A,L$396)","v":0},{"$f":"SUMIFS(raw_resource_build!$K:$K,raw_resource_build!$B:$B,$C422,raw_resource_build!$A:$A,M$396)+SUMIFS(raw_resource_build!$L:$L,raw_resource_build!$B:$B,$C422,raw_resource_build!$A:$A,M$396)","v":0},{"$f":"SUMIFS(raw_resource_build!$K:$K,raw_resource_build!$B:$B,$C422,raw_resource_build!$A:$A,N$396)+SUMIFS(raw_resource_build!$L:$L,raw_resource_build!$B:$B,$C422,raw_resource_build!$A:$A,N$396)","v":0},{"$f":"SUMIFS(raw_resource_build!$K:$K,raw_resource_build!$B:$B,$C422,raw_resource_build!$A:$A,O$396)+SUMIFS(raw_resource_build!$L:$L,raw_resource_build!$B:$B,$C422,raw_resource_build!$A:$A,O$396)","v":0},{"$f":"SUMIFS(raw_resource_build!$K:$K,raw_resource_build!$B:$B,$C422,raw_resource_build!$A:$A,P$396)+SUMIFS(raw_resource_build!$L:$L,raw_resource_build!$B:$B,$C422,raw_resource_build!$A:$A,P$396)","v":0},{"$f":"SUMIFS(raw_resource_build!$K:$K,raw_resource_build!$B:$B,$C422,raw_resource_build!$A:$A,Q$396)+SUMIFS(raw_resource_build!$L:$L,raw_resource_build!$B:$B,$C422,raw_resource_build!$A:$A,Q$396)","v":0},{"$f":"SUMIFS(raw_resource_build!$K:$K,raw_resource_build!$B:$B,$C422,raw_resource_build!$A:$A,R$396)+SUMIFS(raw_resource_build!$L:$L,raw_resource_build!$B:$B,$C422,raw_resource_build!$A:$A,R$396)","v":0},{"$f":"SUMIFS(raw_resource_build!$K:$K,raw_resource_build!$B:$B,$C422,raw_resource_build!$A:$A,S$396)+SUMIFS(raw_resource_build!$L:$L,raw_resource_build!$B:$B,$C422,raw_resource_build!$A:$A,S$396)","v":0},{"$f":"SUMIFS(raw_resource_build!$K:$K,raw_resource_build!$B:$B,$C422,raw_resource_build!$A:$A,T$396)+SUMIFS(raw_resource_build!$L:$L,raw_resource_build!$B:$B,$C422,raw_resource_build!$A:$A,T$396)","v":396.9},{"$f":"SUMIFS(raw_resource_build!$K:$K,raw_resource_build!$B:$B,$C422,raw_resource_build!$A:$A,U$396)+SUMIFS(raw_resource_build!$L:$L,raw_resource_build!$B:$B,$C422,raw_resource_build!$A:$A,U$396)","v":0},{"$f":"SUMIFS(raw_resource_build!$K:$K,raw_resource_build!$B:$B,$C422,raw_resource_build!$A:$A,V$396)+SUMIFS(raw_resource_build!$L:$L,raw_resource_build!$B:$B,$C422,raw_resource_build!$A:$A,V$396)","v":0},{"$f":"SUMIFS(raw_resource_build!$K:$K,raw_resource_build!$B:$B,$C422,raw_resource_build!$A:$A,W$396)+SUMIFS(raw_resource_build!$L:$L,raw_resource_build!$B:$B,$C422,raw_resource_build!$A:$A,W$396)","v":0},{"$f":"SUMIFS(raw_resource_build!$K:$K,raw_resource_build!$B:$B,$C422,raw_resource_build!$A:$A,X$396)+SUMIFS(raw_resource_build!$L:$L,raw_resource_build!$B:$B,$C422,raw_resource_build!$A:$A,X$396)","v":0},{"$f":"SUMIFS(raw_resource_build!$K:$K,raw_resource_build!$B:$B,$C422,raw_resource_build!$A:$A,Y$396)+SUMIFS(raw_resource_build!$L:$L,raw_resource_build!$B:$B,$C422,raw_resource_build!$A:$A,Y$396)","v":0},{"$f":"SUMIFS(raw_resource_build!$K:$K,raw_resource_build!$B:$B,$C422,raw_resource_build!$A:$A,Z$396)+SUMIFS(raw_resource_build!$L:$L,raw_resource_build!$B:$B,$C422,raw_resource_build!$A:$A,Z$396)","v":0},{"$f":"SUMIFS(raw_resource_build!$K:$K,raw_resource_build!$B:$B,$C422,raw_resource_build!$A:$A,AA$396)+SUMIFS(raw_resource_build!$L:$L,raw_resource_build!$B:$B,$C422,raw_resource_build!$A:$A,AA$396)","v":0},{"$f":"SUMIFS(raw_resource_build!$K:$K,raw_resource_build!$B:$B,$C422,raw_resource_build!$A:$A,AB$396)+SUMIFS(raw_resource_build!$L:$L,raw_resource_build!$B:$B,$C422,raw_resource_build!$A:$A,AB$396)","v":0},{"$f":"SUMIFS(raw_resource_build!$K:$K,raw_resource_build!$B:$B,$C422,raw_resource_build!$A:$A,AC$396)+SUMIFS(raw_resource_build!$L:$L,raw_resource_build!$B:$B,$C422,raw_resource_build!$A:$A,AC$396)","v":0},{"$f":"SUMIFS(raw_resource_build!$K:$K,raw_resource_build!$B:$B,$C422,raw_resource_build!$A:$A,AD$396)+SUMIFS(raw_resource_build!$L:$L,raw_resource_build!$B:$B,$C422,raw_resource_build!$A:$A,AD$396)","v":0},{"$f":"SUMIFS(raw_resource_build!$K:$K,raw_resource_build!$B:$B,$C422,raw_resource_build!$A:$A,AE$396)+SUMIFS(raw_resource_build!$L:$L,raw_resource_build!$B:$B,$C422,raw_resource_build!$A:$A,AE$396)","v":0},{"$f":"SUMIFS(raw_resource_build!$K:$K,raw_resource_build!$B:$B,$C422,raw_resource_build!$A:$A,AF$396)+SUMIFS(raw_resource_build!$L:$L,raw_resource_build!$B:$B,$C422,raw_resource_build!$A:$A,AF$396)","v":0},{"$f":"SUMIFS(raw_resource_build!$K:$K,raw_resource_build!$B:$B,$C422,raw_resource_build!$A:$A,AG$396)+SUMIFS(raw_resource_build!$L:$L,raw_resource_build!$B:$B,$C422,raw_resource_build!$A:$A,AG$396)","v":0},{"$f":"SUMIFS(raw_resource_build!$K:$K,raw_resource_build!$B:$B,$C422,raw_resource_build!$A:$A,AH$396)+SUMIFS(raw_resource_build!$L:$L,raw_resource_build!$B:$B,$C422,raw_resource_build!$A:$A,AH$396)","v":0},{"$f":"SUMIFS(raw_resource_build!$K:$K,raw_resource_build!$B:$B,$C422,raw_resource_build!$A:$A,AI$396)+SUMIFS(raw_resource_build!$L:$L,raw_resource_build!$B:$B,$C422,raw_resource_build!$A:$A,AI$396)","v":396.9},{"$f":"SUMIFS(raw_resource_build!$K:$K,raw_resource_build!$B:$B,$C422,raw_resource_build!$A:$A,AJ$396)+SUMIFS(raw_resource_build!$L:$L,raw_resource_build!$B:$B,$C422,raw_resource_build!$A:$A,AJ$396)","v":0},{"$f":"SUMIFS(raw_resource_build!$K:$K,raw_resource_build!$B:$B,$C422,raw_resource_build!$A:$A,AK$396)+SUMIFS(raw_resource_build!$L:$L,raw_resource_build!$B:$B,$C422,raw_resource_build!$A:$A,AK$396)","v":0},{"$f":"SUMIFS(raw_resource_build!$K:$K,raw_resource_build!$B:$B,$C422,raw_resource_build!$A:$A,AL$396)+SUMIFS(raw_resource_build!$L:$L,raw_resource_build!$B:$B,$C422,raw_resource_build!$A:$A,AL$396)","v":0},{"$f":"SUMIFS(raw_resource_build!$K:$K,raw_resource_build!$B:$B,$C422,raw_resource_build!$A:$A,AM$396)+SUMIFS(raw_resource_build!$L:$L,raw_resource_build!$B:$B,$C422,raw_resource_build!$A:$A,AM$396)","v":0},{"$f":"SUMIFS(raw_resource_build!$K:$K,raw_resource_build!$B:$B,$C422,raw_resource_build!$A:$A,AN$396)+SUMIFS(raw_resource_build!$L:$L,raw_resource_build!$B:$B,$C422,raw_resource_build!$A:$A,AN$396)","v":0}]
[null,null,{"$f":"Lists!B61","v":"Northern_California_Ex_Wind"},{"$f":"IF(INDEX(raw_resource_build!J:J,MATCH(C423,raw_resource_build!$B:$B,0))=0,\"N/A\",INDEX(raw_resource_build!J:J,MATCH(C423,raw_resource_build!$B:$B,0)))","v":"Sacramento_River"},{"$f":"SUMIFS(raw_resource_build!$K:$K,raw_resource_build!$B:$B,$C423,raw_resource_build!$A:$A,E$396)+SUMIFS(raw_resource_build!$L:$L,raw_resource_build!$B:$B,$C423,raw_resource_build!$A:$A,E$396)","v":0},{"$f":"SUMIFS(raw_resource_build!$K:$K,raw_resource_build!$B:$B,$C423,raw_resource_build!$A:$A,F$396)+SUMIFS(raw_resource_build!$L:$L,raw_resource_build!$B:$B,$C423,raw_resource_build!$A:$A,F$396)","v":0},{"$f":"SUMIFS(raw_resource_build!$K:$K,raw_resource_build!$B:$B,$C423,raw_resource_build!$A:$A,G$396)+SUMIFS(raw_resource_build!$L:$L,raw_resource_build!$B:$B,$C423,raw_resource_build!$A:$A,G$396)","v":0},{"$f":"SUMIFS(raw_resource_build!$K:$K,raw_resource_build!$B:$B,$C423,raw_resource_build!$A:$A,H$396)+SUMIFS(raw_resource_build!$L:$L,raw_resource_build!$B:$B,$C423,raw_resource_build!$A:$A,H$396)","v":0},{"$f":"SUMIFS(raw_resource_build!$K:$K,raw_resource_build!$B:$B,$C423,raw_resource_build!$A:$A,I$396)+SUMIFS(raw_resource_build!$L:$L,raw_resource_build!$B:$B,$C423,raw_resource_build!$A:$A,I$396)","v":0},{"$f":"SUMIFS(raw_resource_build!$K:$K,raw_resource_build!$B:$B,$C423,raw_resource_build!$A:$A,J$396)+SUMIFS(raw_resource_build!$L:$L,raw_resource_build!$B:$B,$C423,raw_resource_build!$A:$A,J$396)","v":0},{"$f":"SUMIFS(raw_resource_build!$K:$K,raw_resource_build!$B:$B,$C423,raw_resource_build!$A:$A,K$396)+SUMIFS(raw_resource_build!$L:$L,raw_resource_build!$B:$B,$C423,raw_resource_build!$A:$A,K$396)","v":0},{"$f":"SUMIFS(raw_resource_build!$K:$K,raw_resource_build!$B:$B,$C423,raw_resource_build!$A:$A,L$396)+SUMIFS(raw_resource_build!$L:$L,raw_resource_build!$B:$B,$C423,raw_resource_build!$A:$A,L$396)","v":865.9},{"$f":"SUMIFS(raw_resource_build!$K:$K,raw_resource_build!$B:$B,$C423,raw_resource_build!$A:$A,M$396)+SUMIFS(raw_resource_build!$L:$L,raw_resource_build!$B:$B,$C423,raw_resource_build!$A:$A,M$396)","v":865.9},{"$f":"SUMIFS(raw_resource_build!$K:$K,raw_resource_build!$B:$B,$C423,raw_resource_build!$A:$A,N$396)+SUMIFS(raw_resource_build!$L:$L,raw_resource_build!$B:$B,$C423,raw_resource_build!$A:$A,N$396)","v":865.9},{"$f":"SUMIFS(raw_resource_build!$K:$K,raw_resource_build!$B:$B,$C423,raw_resource_build!$A:$A,O$396)+SUMIFS(raw_resource_build!$L:$L,raw_resource_build!$B:$B,$C423,raw_resource_build!$A:$A,O$396)","v":0},{"$f":"SUMIFS(raw_resource_build!$K:$K,raw_resource_build!$B:$B,$C423,raw_resource_build!$A:$A,P$396)+SUMIFS(raw_resource_build!$L:$L,raw_resource_build!$B:$B,$C423,raw_resource_build!$A:$A,P$396)","v":865.9},{"$f":"SUMIFS(raw_resource_build!$K:$K,raw_resource_build!$B:$B,$C423,raw_resource_build!$A:$A,Q$396)+SUMIFS(raw_resource_build!$L:$L,raw_resource_build!$B:$B,$C423,raw_resource_build!$A:$A,Q$396)","v":0},{"$f":"SUMIFS(raw_resource_build!$K:$K,raw_resource_build!$B:$B,$C423,raw_resource_build!$A:$A,R$396)+SUMIFS(raw_resource_build!$L:$L,raw_resource_build!$B:$B,$C423,raw_resource_build!$A:$A,R$396)","v":0},{"$f":"SUMIFS(raw_resource_build!$K:$K,raw_resource_build!$B:$B,$C423,raw_resource_build!$A:$A,S$396)+SUMIFS(raw_resource_build!$L:$L,raw_resource_build!$B:$B,$C423,raw_resource_build!$A:$A,S$396)","v":0},{"$f":"SUMIFS(raw_resource_build!$K:$K,raw_resource_build!$B:$B,$C423,raw_resource_build!$A:$A,T$396)+SUMIFS(raw_resource_build!$L:$L,raw_resource_build!$B:$B,$C423,raw_resource_build!$A:$A,T$396)","v":865.9},{"$f":"SUMIFS(raw_resource_build!$K:$K,raw_resource_build!$B:$B,$C423,raw_resource_build!$A:$A,U$396)+SUMIFS(raw_resource_build!$L:$L,raw_resource_build!$B:$B,$C423,raw_resource_build!$A:$A,U$396)","v":0},{"$f":"SUMIFS(raw_resource_build!$K:$K,raw_resource_build!$B:$B,$C423,raw_resource_build!$A:$A,V$396)+SUMIFS(raw_resource_build!$L:$L,raw_resource_build!$B:$B,$C423,raw_resource_build!$A:$A,V$396)","v":0},{"$f":"SUMIFS(raw_resource_build!$K:$K,raw_resource_build!$B:$B,$C423,raw_resource_build!$A:$A,W$396)+SUMIFS(raw_resource_build!$L:$L,raw_resource_build!$B:$B,$C423,raw_resource_build!$A:$A,W$396)","v":0},{"$f":"SUMIFS(raw_resource_build!$K:$K,raw_resource_build!$B:$B,$C423,raw_resource_build!$A:$A,X$396)+SUMIFS(raw_resource_build!$L:$L,raw_resource_build!$B:$B,$C423,raw_resource_build!$A:$A,X$396)","v":0},{"$f":"SUMIFS(raw_resource_build!$K:$K,raw_resource_build!$B:$B,$C423,raw_resource_build!$A:$A,Y$396)+SUMIFS(raw_resource_build!$L:$L,raw_resource_build!$B:$B,$C423,raw_resource_build!$A:$A,Y$396)","v":0},{"$f":"SUMIFS(raw_resource_build!$K:$K,raw_resource_build!$B:$B,$C423,raw_resource_build!$A:$A,Z$396)+SUMIFS(raw_resource_build!$L:$L,raw_resource_build!$B:$B,$C423,raw_resource_build!$A:$A,Z$396)","v":0},{"$f":"SUMIFS(raw_resource_build!$K:$K,raw_resource_build!$B:$B,$C423,raw_resource_build!$A:$A,AA$396)+SUMIFS(raw_resource_build!$L:$L,raw_resource_build!$B:$B,$C423,raw_resource_build!$A:$A,AA$396)","v":0},{"$f":"SUMIFS(raw_resource_build!$K:$K,raw_resource_build!$B:$B,$C423,raw_resource_build!$A:$A,AB$396)+SUMIFS(raw_resource_build!$L:$L,raw_resource_build!$B:$B,$C423,raw_resource_build!$A:$A,AB$396)","v":0},{"$f":"SUMIFS(raw_resource_build!$K:$K,raw_resource_build!$B:$B,$C423,raw_resource_build!$A:$A,AC$396)+SUMIFS(raw_resource_build!$L:$L,raw_resource_build!$B:$B,$C423,raw_resource_build!$A:$A,AC$396)","v":0},{"$f":"SUMIFS(raw_resource_build!$K:$K,raw_resource_build!$B:$B,$C423,raw_resource_build!$A:$A,AD$396)+SUMIFS(raw_resource_build!$L:$L,raw_resource_build!$B:$B,$C423,raw_resource_build!$A:$A,AD$396)","v":0},{"$f":"SUMIFS(raw_resource_build!$K:$K,raw_resource_build!$B:$B,$C423,raw_resource_build!$A:$A,AE$396)+SUMIFS(raw_resource_build!$L:$L,raw_resource_build!$B:$B,$C423,raw_resource_build!$A:$A,AE$396)","v":0},{"$f":"SUMIFS(raw_resource_build!$K:$K,raw_resource_build!$B:$B,$C423,raw_resource_build!$A:$A,AF$396)+SUMIFS(raw_resource_build!$L:$L,raw_resource_build!$B:$B,$C423,raw_resource_build!$A:$A,AF$396)","v":0},{"$f":"SUMIFS(raw_resource_build!$K:$K,raw_resource_build!$B:$B,$C423,raw_resource_build!$A:$A,AG$396)+SUMIFS(raw_resource_build!$L:$L,raw_resource_build!$B:$B,$C423,raw_resource_build!$A:$A,AG$396)","v":0},{"$f":"SUMIFS(raw_resource_build!$K:$K,raw_resource_build!$B:$B,$C423,raw_resource_build!$A:$A,AH$396)+SUMIFS(raw_resource_build!$L:$L,raw_resource_build!$B:$B,$C423,raw_resource_build!$A:$A,AH$396)","v":0},{"$f":"SUMIFS(raw_resource_build!$K:$K,raw_resource_build!$B:$B,$C423,raw_resource_build!$A:$A,AI$396)+SUMIFS(raw_resource_build!$L:$L,raw_resource_build!$B:$B,$C423,raw_resource_build!$A:$A,AI$396)","v":865.9},{"$f":"SUMIFS(raw_resource_build!$K:$K,raw_resource_build!$B:$B,$C423,raw_resource_build!$A:$A,AJ$396)+SUMIFS(raw_resource_build!$L:$L,raw_resource_build!$B:$B,$C423,raw_resource_build!$A:$A,AJ$396)","v":0},{"$f":"SUMIFS(raw_resource_build!$K:$K,raw_resource_build!$B:$B,$C423,raw_resource_build!$A:$A,AK$396)+SUMIFS(raw_resource_build!$L:$L,raw_resource_build!$B:$B,$C423,raw_resource_build!$A:$A,AK$396)","v":0},{"$f":"SUMIFS(raw_resource_build!$K:$K,raw_resource_build!$B:$B,$C423,raw_resource_build!$A:$A,AL$396)+SUMIFS(raw_resource_build!$L:$L,raw_resource_build!$B:$B,$C423,raw_resource_build!$A:$A,AL$396)","v":0},{"$f":"SUMIFS(raw_resource_build!$K:$K,raw_resource_build!$B:$B,$C423,raw_resource_build!$A:$A,AM$396)+SUMIFS(raw_resource_build!$L:$L,raw_resource_build!$B:$B,$C423,raw_resource_build!$A:$A,AM$396)","v":0},{"$f":"SUMIFS(raw_resource_build!$K:$K,raw_resource_build!$B:$B,$C423,raw_resource_build!$A:$A,AN$396)+SUMIFS(raw_resource_build!$L:$L,raw_resource_build!$B:$B,$C423,raw_resource_build!$A:$A,AN$396)","v":0}]
[null,null,{"$f":"Lists!B62","v":"NW_Ext_Tx_Wind"},{"$f":"IF(INDEX(raw_resource_build!J:J,MATCH(C424,raw_resource_build!$B:$B,0))=0,\"N/A\",INDEX(raw_resource_build!J:J,MATCH(C424,raw_resource_build!$B:$B,0)))","v":"Sacramento_River"},{"$f":"SUMIFS(raw_resource_build!$K:$K,raw_resource_build!$B:$B,$C424,raw_resource_build!$A:$A,E$396)+SUMIFS(raw_resource_build!$L:$L,raw_resource_build!$B:$B,$C424,raw_resource_build!$A:$A,E$396)","v":0},{"$f":"SUMIFS(raw_resource_build!$K:$K,raw_resource_build!$B:$B,$C424,raw_resource_build!$A:$A,F$396)+SUMIFS(raw_resource_build!$L:$L,raw_resource_build!$B:$B,$C424,raw_resource_build!$A:$A,F$396)","v":0},{"$f":"SUMIFS(raw_resource_build!$K:$K,raw_resource_build!$B:$B,$C424,raw_resource_build!$A:$A,G$396)+SUMIFS(raw_resource_build!$L:$L,raw_resource_build!$B:$B,$C424,raw_resource_build!$A:$A,G$396)","v":0},{"$f":"SUMIFS(raw_resource_build!$K:$K,raw_resource_build!$B:$B,$C424,raw_resource_build!$A:$A,H$396)+SUMIFS(raw_resource_build!$L:$L,raw_resource_build!$B:$B,$C424,raw_resource_build!$A:$A,H$396)","v":0},{"$f":"SUMIFS(raw_resource_build!$K:$K,raw_resource_build!$B:$B,$C424,raw_resource_build!$A:$A,I$396)+SUMIFS(raw_resource_build!$L:$L,raw_resource_build!$B:$B,$C424,raw_resource_build!$A:$A,I$396)","v":0},{"$f":"SUMIFS(raw_resource_build!$K:$K,raw_resource_build!$B:$B,$C424,raw_resource_build!$A:$A,J$396)+SUMIFS(raw_resource_build!$L:$L,raw_resource_build!$B:$B,$C424,raw_resource_build!$A:$A,J$396)","v":0},{"$f":"SUMIFS(raw_resource_build!$K:$K,raw_resource_build!$B:$B,$C424,raw_resource_build!$A:$A,K$396)+SUMIFS(raw_resource_build!$L:$L,raw_resource_build!$B:$B,$C424,raw_resource_build!$A:$A,K$396)","v":0},{"$f":"SUMIFS(raw_resource_build!$K:$K,raw_resource_build!$B:$B,$C424,raw_resource_build!$A:$A,L$396)+SUMIFS(raw_resource_build!$L:$L,raw_resource_build!$B:$B,$C424,raw_resource_build!$A:$A,L$396)","v":617.9},{"$f":"SUMIFS(raw_resource_build!$K:$K,raw_resource_build!$B:$B,$C424,raw_resource_build!$A:$A,M$396)+SUMIFS(raw_resource_build!$L:$L,raw_resource_build!$B:$B,$C424,raw_resource_build!$A:$A,M$396)","v":617.9},{"$f":"SUMIFS(raw_resource_build!$K:$K,raw_resource_build!$B:$B,$C424,raw_resource_build!$A:$A,N$396)+SUMIFS(raw_resource_build!$L:$L,raw_resource_build!$B:$B,$C424,raw_resource_build!$A:$A,N$396)","v":617.9},{"$f":"SUMIFS(raw_resource_build!$K:$K,raw_resource_build!$B:$B,$C424,raw_resource_build!$A:$A,O$396)+SUMIFS(raw_resource_build!$L:$L,raw_resource_build!$B:$B,$C424,raw_resource_build!$A:$A,O$396)","v":0},{"$f":"SUMIFS(raw_resource_build!$K:$K,raw_resource_build!$B:$B,$C424,raw_resource_build!$A:$A,P$396)+SUMIFS(raw_resource_build!$L:$L,raw_resource_build!$B:$B,$C424,raw_resource_build!$A:$A,P$396)","v":617.9},{"$f":"SUMIFS(raw_resource_build!$K:$K,raw_resource_build!$B:$B,$C424,raw_resource_build!$A:$A,Q$396)+SUMIFS(raw_resource_build!$L:$L,raw_resource_build!$B:$B,$C424,raw_resource_build!$A:$A,Q$396)","v":0},{"$f":"SUMIFS(raw_resource_build!$K:$K,raw_resource_build!$B:$B,$C424,raw_resource_build!$A:$A,R$396)+SUMIFS(raw_resource_build!$L:$L,raw_resource_build!$B:$B,$C424,raw_resource_build!$A:$A,R$396)","v":0},{"$f":"SUMIFS(raw_resource_build!$K:$K,raw_resource_build!$B:$B,$C424,raw_resource_build!$A:$A,S$396)+SUMIFS(raw_resource_build!$L:$L,raw_resource_build!$B:$B,$C424,raw_resource_build!$A:$A,S$396)","v":0},{"$f":"SUMIFS(raw_resource_build!$K:$K,raw_resource_build!$B:$B,$C424,raw_resource_build!$A:$A,T$396)+SUMIFS(raw_resource_build!$L:$L,raw_resource_build!$B:$B,$C424,raw_resource_build!$A:$A,T$396)","v":1500},{"$f":"SUMIFS(raw_resource_build!$K:$K,raw_resource_build!$B:$B,$C424,raw_resource_build!$A:$A,U$396)+SUMIFS(raw_resource_build!$L:$L,raw_resource_build!$B:$B,$C424,raw_resource_build!$A:$A,U$396)","v":0},{"$f":"SUMIFS(raw_resource_build!$K:$K,raw_resource_build!$B:$B,$C424,raw_resource_build!$A:$A,V$396)+SUMIFS(raw_resource_build!$L:$L,raw_resource_build!$B:$B,$C424,raw_resource_build!$A:$A,V$396)","v":0},{"$f":"SUMIFS(raw_resource_build!$K:$K,raw_resource_build!$B:$B,$C424,raw_resource_build!$A:$A,W$396)+SUMIFS(raw_resource_build!$L:$L,raw_resource_build!$B:$B,$C424,raw_resource_build!$A:$A,W$396)","v":0},{"$f":"SUMIFS(raw_resource_build!$K:$K,raw_resource_build!$B:$B,$C424,raw_resource_build!$A:$A,X$396)+SUMIFS(raw_resource_build!$L:$L,raw_resource_build!$B:$B,$C424,raw_resource_build!$A:$A,X$396)","v":0},{"$f":"SUMIFS(raw_resource_build!$K:$K,raw_resource_build!$B:$B,$C424,raw_resource_build!$A:$A,Y$396)+SUMIFS(raw_resource_build!$L:$L,raw_resource_build!$B:$B,$C424,raw_resource_build!$A:$A,Y$396)","v":0},{"$f":"SUMIFS(raw_resource_build!$K:$K,raw_resource_build!$B:$B,$C424,raw_resource_build!$A:$A,Z$396)+SUMIFS(raw_resource_build!$L:$L,raw_resource_build!$B:$B,$C424,raw_resource_build!$A:$A,Z$396)","v":0},{"$f":"SUMIFS(raw_resource_build!$K:$K,raw_resource_build!$B:$B,$C424,raw_resource_build!$A:$A,AA$396)+SUMIFS(raw_resource_build!$L:$L,raw_resource_build!$B:$B,$C424,raw_resource_build!$A:$A,AA$396)","v":0},{"$f":"SUMIFS(raw_resource_build!$K:$K,raw_resource_build!$B:$B,$C424,raw_resource_build!$A:$A,AB$396)+SUMIFS(raw_resource_build!$L:$L,raw_resource_build!$B:$B,$C424,raw_resource_build!$A:$A,AB$396)","v":0},{"$f":"SUMIFS(raw_resource_build!$K:$K,raw_resource_build!$B:$B,$C424,raw_resource_build!$A:$A,AC$396)+SUMIFS(raw_resource_build!$L:$L,raw_resource_build!$B:$B,$C424,raw_resource_build!$A:$A,AC$396)","v":0},{"$f":"SUMIFS(raw_resource_build!$K:$K,raw_resource_build!$B:$B,$C424,raw_resource_build!$A:$A,AD$396)+SUMIFS(raw_resource_build!$L:$L,raw_resource_build!$B:$B,$C424,raw_resource_build!$A:$A,AD$396)","v":0},{"$f":"SUMIFS(raw_resource_build!$K:$K,raw_resource_build!$B:$B,$C424,raw_resource_build!$A:$A,AE$396)+SUMIFS(raw_resource_build!$L:$L,raw_resource_build!$B:$B,$C424,raw_resource_build!$A:$A,AE$396)","v":0},{"$f":"SUMIFS(raw_resource_build!$K:$K,raw_resource_build!$B:$B,$C424,raw_resource_build!$A:$A,AF$396)+SUMIFS(raw_resource_build!$L:$L,raw_resource_build!$B:$B,$C424,raw_resource_build!$A:$A,AF$396)","v":0},{"$f":"SUMIFS(raw_resource_build!$K:$K,raw_resource_build!$B:$B,$C424,raw_resource_build!$A:$A,AG$396)+SUMIFS(raw_resource_build!$L:$L,raw_resource_build!$B:$B,$C424,raw_resource_build!$A:$A,AG$396)","v":0},{"$f":"SUMIFS(raw_resource_build!$K:$K,raw_resource_build!$B:$B,$C424,raw_resource_build!$A:$A,AH$396)+SUMIFS(raw_resource_build!$L:$L,raw_resource_build!$B:$B,$C424,raw_resource_build!$A:$A,AH$396)","v":0},{"$f":"SUMIFS(raw_resource_build!$K:$K,raw_resource_build!$B:$B,$C424,raw_resource_build!$A:$A,AI$396)+SUMIFS(raw_resource_build!$L:$L,raw_resource_build!$B:$B,$C424,raw_resource_build!$A:$A,AI$396)","v":1500},{"$f":"SUMIFS(raw_resource_build!$K:$K,raw_resource_build!$B:$B,$C424,raw_resource_build!$A:$A,AJ$396)+SUMIFS(raw_resource_build!$L:$L,raw_resource_build!$B:$B,$C424,raw_resource_build!$A:$A,AJ$396)","v":0},{"$f":"SUMIFS(raw_resource_build!$K:$K,raw_resource_build!$B:$B,$C424,raw_resource_build!$A:$A,AK$396)+SUMIFS(raw_resource_build!$L:$L,raw_resource_build!$B:$B,$C424,raw_resource_build!$A:$A,AK$396)","v":0},{"$f":"SUMIFS(raw_resource_build!$K:$K,raw_resource_build!$B:$B,$C424,raw_resource_build!$A:$A,AL$396)+SUMIFS(raw_resource_build!$L:$L,raw_resource_build!$B:$B,$C424,raw_resource_build!$A:$A,AL$396)","v":0},{"$f":"SUMIFS(raw_resource_build!$K:$K,raw_resource_build!$B:$B,$C424,raw_resource_build!$A:$A,AM$396)+SUMIFS(raw_resource_build!$L:$L,raw_resource_build!$B:$B,$C424,raw_resource_build!$A:$A,AM$396)","v":0},{"$f":"SUMIFS(raw_resource_build!$K:$K,raw_resource_build!$B:$B,$C424,raw_resource_build!$A:$A,AN$396)+SUMIFS(raw_resource_build!$L:$L,raw_resource_build!$B:$B,$C424,raw_resource_build!$A:$A,AN$396)","v":0}]
[null,null,{"$f":"Lists!B63","v":"Riverside_Palm_Springs_Solar"},{"$f":"IF(INDEX(raw_resource_build!J:J,MATCH(C425,raw_resource_build!$B:$B,0))=0,\"N/A\",INDEX(raw_resource_build!J:J,MATCH(C425,raw_resource_build!$B:$B,0)))","v":"SCADSNV-Riverside_Palm_Springs"},{"$f":"SUMIFS(raw_resource_build!$K:$K,raw_resource_build!$B:$B,$C425,raw_resource_build!$A:$A,E$396)+SUMIFS(raw_resource_build!$L:$L,raw_resource_build!$B:$B,$C425,raw_resource_build!$A:$A,E$396)","v":0},{"$f":"SUMIFS(raw_resource_build!$K:$K,raw_resource_build!$B:$B,$C425,raw_resource_build!$A:$A,F$396)+SUMIFS(raw_resource_build!$L:$L,raw_resource_build!$B:$B,$C425,raw_resource_build!$A:$A,F$396)","v":0},{"$f":"SUMIFS(raw_resource_build!$K:$K,raw_resource_build!$B:$B,$C425,raw_resource_build!$A:$A,G$396)+SUMIFS(raw_resource_build!$L:$L,raw_resource_build!$B:$B,$C425,raw_resource_build!$A:$A,G$396)","v":0},{"$f":"SUMIFS(raw_resource_build!$K:$K,raw_resource_build!$B:$B,$C425,raw_resource_build!$A:$A,H$396)+SUMIFS(raw_resource_build!$L:$L,raw_resource_build!$B:$B,$C425,raw_resource_build!$A:$A,H$396)","v":0},{"$f":"SUMIFS(raw_resource_build!$K:$K,raw_resource_build!$B:$B,$C425,raw_resource_build!$A:$A,I$396)+SUMIFS(raw_resource_build!$L:$L,raw_resource_build!$B:$B,$C425,raw_resource_build!$A:$A,I$396)","v":0},{"$f":"SUMIFS(raw_resource_build!$K:$K,raw_resource_build!$B:$B,$C425,raw_resource_build!$A:$A,J$396)+SUMIFS(raw_resource_build!$L:$L,raw_resource_build!$B:$B,$C425,raw_resource_build!$A:$A,J$396)","v":0},{"$f":"SUMIFS(raw_resource_build!$K:$K,raw_resource_build!$B:$B,$C425,raw_resource_build!$A:$A,K$396)+SUMIFS(raw_resource_build!$L:$L,raw_resource_build!$B:$B,$C425,raw_resource_build!$A:$A,K$396)","v":0},{"$f":"SUMIFS(raw_resource_build!$K:$K,raw_resource_build!$B:$B,$C425,raw_resource_build!$A:$A,L$396)+SUMIFS(raw_resource_build!$L:$L,raw_resource_build!$B:$B,$C425,raw_resource_build!$A:$A,L$396)","v":0},{"$f":"SUMIFS(raw_resource_build!$K:$K,raw_resource_build!$B:$B,$C425,raw_resource_build!$A:$A,M$396)+SUMIFS(raw_resource_build!$L:$L,raw_resource_build!$B:$B,$C425,raw_resource_build!$A:$A,M$396)","v":0},{"$f":"SUMIFS(raw_resource_build!$K:$K,raw_resource_build!$B:$B,$C425,raw_resource_build!$A:$A,N$396)+SUMIFS(raw_resource_build!$L:$L,raw_resource_build!$B:$B,$C425,raw_resource_build!$A:$A,N$396)","v":0},{"$f":"SUMIFS(raw_resource_build!$K:$K,raw_resource_build!$B:$B,$C425,raw_resource_build!$A:$A,O$396)+SUMIFS(raw_resource_build!$L:$L,raw_resource_build!$B:$B,$C425,raw_resource_build!$A:$A,O$396)","v":0},{"$f":"SUMIFS(raw_resource_build!$K:$K,raw_resource_build!$B:$B,$C425,raw_resource_build!$A:$A,P$396)+SUMIFS(raw_resource_build!$L:$L,raw_resource_build!$B:$B,$C425,raw_resource_build!$A:$A,P$396)","v":0},{"$f":"SUMIFS(raw_resource_build!$K:$K,raw_resource_build!$B:$B,$C425,raw_resource_build!$A:$A,Q$396)+SUMIFS(raw_resource_build!$L:$L,raw_resource_build!$B:$B,$C425,raw_resource_build!$A:$A,Q$396)","v":0},{"$f":"SUMIFS(raw_resource_build!$K:$K,raw_resource_build!$B:$B,$C425,raw_resource_build!$A:$A,R$396)+SUMIFS(raw_resource_build!$L:$L,raw_resource_build!$B:$B,$C425,raw_resource_build!$A:$A,R$396)","v":0},{"$f":"SUMIFS(raw_resource_build!$K:$K,raw_resource_build!$B:$B,$C425,raw_resource_build!$A:$A,S$396)+SUMIFS(raw_resource_build!$L:$L,raw_resource_build!$B:$B,$C425,raw_resource_build!$A:$A,S$396)","v":0},{"$f":"SUMIFS(raw_resource_build!$K:$K,raw_resource_build!$B:$B,$C425,raw_resource_build!$A:$A,T$396)+SUMIFS(raw_resource_build!$L:$L,raw_resource_build!$B:$B,$C425,raw_resource_build!$A:$A,T$396)","v":0},{"$f":"SUMIFS(raw_resource_build!$K:$K,raw_resource_build!$B:$B,$C425,raw_resource_build!$A:$A,U$396)+SUMIFS(raw_resource_build!$L:$L,raw_resource_build!$B:$B,$C425,raw_resource_build!$A:$A,U$396)","v":0},{"$f":"SUMIFS(raw_resource_build!$K:$K,raw_resource_build!$B:$B,$C425,raw_resource_build!$A:$A,V$396)+SUMIFS(raw_resource_build!$L:$L,raw_resource_build!$B:$B,$C425,raw_resource_build!$A:$A,V$396)","v":0},{"$f":"SUMIFS(raw_resource_build!$K:$K,raw_resource_build!$B:$B,$C425,raw_resource_build!$A:$A,W$396)+SUMIFS(raw_resource_build!$L:$L,raw_resource_build!$B:$B,$C425,raw_resource_build!$A:$A,W$396)","v":0},{"$f":"SUMIFS(raw_resource_build!$K:$K,raw_resource_build!$B:$B,$C425,raw_resource_build!$A:$A,X$396)+SUMIFS(raw_resource_build!$L:$L,raw_resource_build!$B:$B,$C425,raw_resource_build!$A:$A,X$396)","v":0},{"$f":"SUMIFS(raw_resource_build!$K:$K,raw_resource_build!$B:$B,$C425,raw_resource_build!$A:$A,Y$396)+SUMIFS(raw_resource_build!$L:$L,raw_resource_build!$B:$B,$C425,raw_resource_build!$A:$A,Y$396)","v":0},{"$f":"SUMIFS(raw_resource_build!$K:$K,raw_resource_build!$B:$B,$C425,raw_resource_build!$A:$A,Z$396)+SUMIFS(raw_resource_build!$L:$L,raw_resource_build!$B:$B,$C425,raw_resource_build!$A:$A,Z$396)","v":0},{"$f":"SUMIFS(raw_resource_build!$K:$K,raw_resource_build!$B:$B,$C425,raw_resource_build!$A:$A,AA$396)+SUMIFS(raw_resource_build!$L:$L,raw_resource_build!$B:$B,$C425,raw_resource_build!$A:$A,AA$396)","v":0},{"$f":"SUMIFS(raw_resource_build!$K:$K,raw_resource_build!$B:$B,$C425,raw_resource_build!$A:$A,AB$396)+SUMIFS(raw_resource_build!$L:$L,raw_resource_build!$B:$B,$C425,raw_resource_build!$A:$A,AB$396)","v":0},{"$f":"SUMIFS(raw_resource_build!$K:$K,raw_resource_build!$B:$B,$C425,raw_resource_build!$A:$A,AC$396)+SUMIFS(raw_resource_build!$L:$L,raw_resource_build!$B:$B,$C425,raw_resource_build!$A:$A,AC$396)","v":0},{"$f":"SUMIFS(raw_resource_build!$K:$K,raw_resource_build!$B:$B,$C425,raw_resource_build!$A:$A,AD$396)+SUMIFS(raw_resource_build!$L:$L,raw_resource_build!$B:$B,$C425,raw_resource_build!$A:$A,AD$396)","v":0},{"$f":"SUMIFS(raw_resource_build!$K:$K,raw_resource_build!$B:$B,$C425,raw_resource_build!$A:$A,AE$396)+SUMIFS(raw_resource_build!$L:$L,raw_resource_build!$B:$B,$C425,raw_resource_build!$A:$A,AE$396)","v":0},{"$f":"SUMIFS(raw_resource_build!$K:$K,raw_resource_build!$B:$B,$C425,raw_resource_build!$A:$A,AF$396)+SUMIFS(raw_resource_build!$L:$L,raw_resource_build!$B:$B,$C425,raw_resource_build!$A:$A,AF$396)","v":0},{"$f":"SUMIFS(raw_resource_build!$K:$K,raw_resource_build!$B:$B,$C425,raw_resource_build!$A:$A,AG$396)+SUMIFS(raw_resource_build!$L:$L,raw_resource_build!$B:$B,$C425,raw_resource_build!$A:$A,AG$396)","v":0},{"$f":"SUMIFS(raw_resource_build!$K:$K,raw_resource_build!$B:$B,$C425,raw_resource_build!$A:$A,AH$396)+SUMIFS(raw_resource_build!$L:$L,raw_resource_build!$B:$B,$C425,raw_resource_build!$A:$A,AH$396)","v":0},{"$f":"SUMIFS(raw_resource_build!$K:$K,raw_resource_build!$B:$B,$C425,raw_resource_build!$A:$A,AI$396)+SUMIFS(raw_resource_build!$L:$L,raw_resource_build!$B:$B,$C425,raw_resource_build!$A:$A,AI$396)","v":0},{"$f":"SUMIFS(raw_resource_build!$K:$K,raw_resource_build!$B:$B,$C425,raw_resource_build!$A:$A,AJ$396)+SUMIFS(raw_resource_build!$L:$L,raw_resource_build!$B:$B,$C425,raw_resource_build!$A:$A,AJ$396)","v":0},{"$f":"SUMIFS(raw_resource_build!$K:$K,raw_resource_build!$B:$B,$C425,raw_resource_build!$A:$A,AK$396)+SUMIFS(raw_resource_build!$L:$L,raw_resource_build!$B:$B,$C425,raw_resource_build!$A:$A,AK$396)","v":0},{"$f":"SUMIFS(raw_resource_build!$K:$K,raw_resource_build!$B:$B,$C425,raw_resource_build!$A:$A,AL$396)+SUMIFS(raw_resource_build!$L:$L,raw_resource_build!$B:$B,$C425,raw_resource_build!$A:$A,AL$396)","v":0},{"$f":"SUMIFS(raw_resource_build!$K:$K,raw_resource_build!$B:$B,$C425,raw_resource_build!$A:$A,AM$396)+SUMIFS(raw_resource_build!$L:$L,raw_resource_build!$B:$B,$C425,raw_resource_build!$A:$A,AM$396)","v":0},{"$f":"SUMIFS(raw_resource_build!$K:$K,raw_resource_build!$B:$B,$C425,raw_resource_build!$A:$A,AN$396)+SUMIFS(raw_resource_build!$L:$L,raw_resource_build!$B:$B,$C425,raw_resource_build!$A:$A,AN$396)","v":0}]
[null,null,{"$f":"Lists!B64","v":"Sacramento_River_Solar"},{"$f":"IF(INDEX(raw_resource_build!J:J,MATCH(C426,raw_resource_build!$B:$B,0))=0,\"N/A\",INDEX(raw_resource_build!J:J,MATCH(C426,raw_resource_build!$B:$B,0)))","v":"Sacramento_River"},{"$f":"SUMIFS(raw_resource_build!$K:$K,raw_resource_build!$B:$B,$C426,raw_resource_build!$A:$A,E$396)+SUMIFS(raw_resource_build!$L:$L,raw_resource_build!$B:$B,$C426,raw_resource_build!$A:$A,E$396)","v":0},{"$f":"SUMIFS(raw_resource_build!$K:$K,raw_resource_build!$B:$B,$C426,raw_resource_build!$A:$A,F$396)+SUMIFS(raw_resource_build!$L:$L,raw_resource_build!$B:$B,$C426,raw_resource_build!$A:$A,F$396)","v":0},{"$f":"SUMIFS(raw_resource_build!$K:$K,raw_resource_build!$B:$B,$C426,raw_resource_build!$A:$A,G$396)+SUMIFS(raw_resource_build!$L:$L,raw_resource_build!$B:$B,$C426,raw_resource_build!$A:$A,G$396)","v":0},{"$f":"SUMIFS(raw_resource_build!$K:$K,raw_resource_build!$B:$B,$C426,raw_resource_build!$A:$A,H$396)+SUMIFS(raw_resource_build!$L:$L,raw_resource_build!$B:$B,$C426,raw_resource_build!$A:$A,H$396)","v":0},{"$f":"SUMIFS(raw_resource_build!$K:$K,raw_resource_build!$B:$B,$C426,raw_resource_build!$A:$A,I$396)+SUMIFS(raw_resource_build!$L:$L,raw_resource_build!$B:$B,$C426,raw_resource_build!$A:$A,I$396)","v":0},{"$f":"SUMIFS(raw_resource_build!$K:$K,raw_resource_build!$B:$B,$C426,raw_resource_build!$A:$A,J$396)+SUMIFS(raw_resource_build!$L:$L,raw_resource_build!$B:$B,$C426,raw_resource_build!$A:$A,J$396)","v":0},{"$f":"SUMIFS(raw_resource_build!$K:$K,raw_resource_build!$B:$B,$C426,raw_resource_build!$A:$A,K$396)+SUMIFS(raw_resource_build!$L:$L,raw_resource_build!$B:$B,$C426,raw_resource_build!$A:$A,K$396)","v":0},{"$f":"SUMIFS(raw_resource_build!$K:$K,raw_resource_build!$B:$B,$C426,raw_resource_build!$A:$A,L$396)+SUMIFS(raw_resource_build!$L:$L,raw_resource_build!$B:$B,$C426,raw_resource_build!$A:$A,L$396)","v":0},{"$f":"SUMIFS(raw_resource_build!$K:$K,raw_resource_build!$B:$B,$C426,raw_resource_build!$A:$A,M$396)+SUMIFS(raw_resource_build!$L:$L,raw_resource_build!$B:$B,$C426,raw_resource_build!$A:$A,M$396)","v":0},{"$f":"SUMIFS(raw_resource_build!$K:$K,raw_resource_build!$B:$B,$C426,raw_resource_build!$A:$A,N$396)+SUMIFS(raw_resource_build!$L:$L,raw_resource_build!$B:$B,$C426,raw_resource_build!$A:$A,N$396)","v":0},{"$f":"SUMIFS(raw_resource_build!$K:$K,raw_resource_build!$B:$B,$C426,raw_resource_build!$A:$A,O$396)+SUMIFS(raw_resource_build!$L:$L,raw_resource_build!$B:$B,$C426,raw_resource_build!$A:$A,O$396)","v":0},{"$f":"SUMIFS(raw_resource_build!$K:$K,raw_resource_build!$B:$B,$C426,raw_resource_build!$A:$A,P$396)+SUMIFS(raw_resource_build!$L:$L,raw_resource_build!$B:$B,$C426,raw_resource_build!$A:$A,P$396)","v":0},{"$f":"SUMIFS(raw_resource_build!$K:$K,raw_resource_build!$B:$B,$C426,raw_resource_build!$A:$A,Q$396)+SUMIFS(raw_resource_build!$L:$L,raw_resource_build!$B:$B,$C426,raw_resource_build!$A:$A,Q$396)","v":0},{"$f":"SUMIFS(raw_resource_build!$K:$K,raw_resource_build!$B:$B,$C426,raw_resource_build!$A:$A,R$396)+SUMIFS(raw_resource_build!$L:$L,raw_resource_build!$B:$B,$C426,raw_resource_build!$A:$A,R$396)","v":0},{"$f":"SUMIFS(raw_resource_build!$K:$K,raw_resource_build!$B:$B,$C426,raw_resource_build!$A:$A,S$396)+SUMIFS(raw_resource_build!$L:$L,raw_resource_build!$B:$B,$C426,raw_resource_build!$A:$A,S$396)","v":0},{"$f":"SUMIFS(raw_resource_build!$K:$K,raw_resource_build!$B:$B,$C426,raw_resource_build!$A:$A,T$396)+SUMIFS(raw_resource_build!$L:$L,raw_resource_build!$B:$B,$C426,raw_resource_build!$A:$A,T$396)","v":2022.68},{"$f":"SUMIFS(raw_resource_build!$K:$K,raw_resource_build!$B:$B,$C426,raw_resource_build!$A:$A,U$396)+SUMIFS(raw_resource_build!$L:$L,raw_resource_build!$B:$B,$C426,raw_resource_build!$A:$A,U$396)","v":0},{"$f":"SUMIFS(raw_resource_build!$K:$K,raw_resource_build!$B:$B,$C426,raw_resource_build!$A:$A,V$396)+SUMIFS(raw_resource_build!$L:$L,raw_resource_build!$B:$B,$C426,raw_resource_build!$A:$A,V$396)","v":0},{"$f":"SUMIFS(raw_resource_build!$K:$K,raw_resource_build!$B:$B,$C426,raw_resource_build!$A:$A,W$396)+SUMIFS(raw_resource_build!$L:$L,raw_resource_build!$B:$B,$C426,raw_resource_build!$A:$A,W$396)","v":0},{"$f":"SUMIFS(raw_resource_build!$K:$K,raw_resource_build!$B:$B,$C426,raw_resource_build!$A:$A,X$396)+SUMIFS(raw_resource_build!$L:$L,raw_resource_build!$B:$B,$C426,raw_resource_build!$A:$A,X$396)","v":0},{"$f":"SUMIFS(raw_resource_build!$K:$K,raw_resource_build!$B:$B,$C426,raw_resource_build!$A:$A,Y$396)+SUMIFS(raw_resource_build!$L:$L,raw_resource_build!$B:$B,$C426,raw_resource_build!$A:$A,Y$396)","v":0},{"$f":"SUMIFS(raw_resource_build!$K:$K,raw_resource_build!$B:$B,$C426,raw_resource_build!$A:$A,Z$396)+SUMIFS(raw_resource_build!$L:$L,raw_resource_build!$B:$B,$C426,raw_resource_build!$A:$A,Z$396)","v":0},{"$f":"SUMIFS(raw_resource_build!$K:$K,raw_resource_build!$B:$B,$C426,raw_resource_build!$A:$A,AA$396)+SUMIFS(raw_resource_build!$L:$L,raw_resource_build!$B:$B,$C426,raw_resource_build!$A:$A,AA$396)","v":0},{"$f":"SUMIFS(raw_resource_build!$K:$K,raw_resource_build!$B:$B,$C426,raw_resource_build!$A:$A,AB$396)+SUMIFS(raw_resource_build!$L:$L,raw_resource_build!$B:$B,$C426,raw_resource_build!$A:$A,AB$396)","v":0},{"$f":"SUMIFS(raw_resource_build!$K:$K,raw_resource_build!$B:$B,$C426,raw_resource_build!$A:$A,AC$396)+SUMIFS(raw_resource_build!$L:$L,raw_resource_build!$B:$B,$C426,raw_resource_build!$A:$A,AC$396)","v":0},{"$f":"SUMIFS(raw_resource_build!$K:$K,raw_resource_build!$B:$B,$C426,raw_resource_build!$A:$A,AD$396)+SUMIFS(raw_resource_build!$L:$L,raw_resource_build!$B:$B,$C426,raw_resource_build!$A:$A,AD$396)","v":0},{"$f":"SUMIFS(raw_resource_build!$K:$K,raw_resource_build!$B:$B,$C426,raw_resource_build!$A:$A,AE$396)+SUMIFS(raw_resource_build!$L:$L,raw_resource_build!$B:$B,$C426,raw_resource_build!$A:$A,AE$396)","v":0},{"$f":"SUMIFS(raw_resource_build!$K:$K,raw_resource_build!$B:$B,$C426,raw_resource_build!$A:$A,AF$396)+SUMIFS(raw_resource_build!$L:$L,raw_resource_build!$B:$B,$C426,raw_resource_build!$A:$A,AF$396)","v":0},{"$f":"SUMIFS(raw_resource_build!$K:$K,raw_resource_build!$B:$B,$C426,raw_resource_build!$A:$A,AG$396)+SUMIFS(raw_resource_build!$L:$L,raw_resource_build!$B:$B,$C426,raw_resource_build!$A:$A,AG$396)","v":0},{"$f":"SUMIFS(raw_resource_build!$K:$K,raw_resource_build!$B:$B,$C426,raw_resource_build!$A:$A,AH$396)+SUMIFS(raw_resource_build!$L:$L,raw_resource_build!$B:$B,$C426,raw_resource_build!$A:$A,AH$396)","v":0},{"$f":"SUMIFS(raw_resource_build!$K:$K,raw_resource_build!$B:$B,$C426,raw_resource_build!$A:$A,AI$396)+SUMIFS(raw_resource_build!$L:$L,raw_resource_build!$B:$B,$C426,raw_resource_build!$A:$A,AI$396)","v":23484},{"$f":"SUMIFS(raw_resource_build!$K:$K,raw_resource_build!$B:$B,$C426,raw_resource_build!$A:$A,AJ$396)+SUMIFS(raw_resource_build!$L:$L,raw_resource_build!$B:$B,$C426,raw_resource_build!$A:$A,AJ$396)","v":0},{"$f":"SUMIFS(raw_resource_build!$K:$K,raw_resource_build!$B:$B,$C426,raw_resource_build!$A:$A,AK$396)+SUMIFS(raw_resource_build!$L:$L,raw_resource_build!$B:$B,$C426,raw_resource_build!$A:$A,AK$396)","v":0},{"$f":"SUMIFS(raw_resource_build!$K:$K,raw_resource_build!$B:$B,$C426,raw_resource_build!$A:$A,AL$396)+SUMIFS(raw_resource_build!$L:$L,raw_resource_build!$B:$B,$C426,raw_resource_build!$A:$A,AL$396)","v":0},{"$f":"SUMIFS(raw_resource_build!$K:$K,raw_resource_build!$B:$B,$C426,raw_resource_build!$A:$A,AM$396)+SUMIFS(raw_resource_build!$L:$L,raw_resource_build!$B:$B,$C426,raw_resource_build!$A:$A,AM$396)","v":0},{"$f":"SUMIFS(raw_resource_build!$K:$K,raw_resource_build!$B:$B,$C426,raw_resource_build!$A:$A,AN$396)+SUMIFS(raw_resource_build!$L:$L,raw_resource_build!$B:$B,$C426,raw_resource_build!$A:$A,AN$396)","v":0}]
[null,null,{"$f":"Lists!B65","v":"Sacramento_River_Wind"},{"$f":"IF(INDEX(raw_resource_build!J:J,MATCH(C427,raw_resource_build!$B:$B,0))=0,\"N/A\",INDEX(raw_resource_build!J:J,MATCH(C427,raw_resource_build!$B:$B,0)))","v":"N/A"},{"$f":"SUMIFS(raw_resource_build!$K:$K,raw_resource_build!$B:$B,$C427,raw_resource_build!$A:$A,E$396)+SUMIFS(raw_resource_build!$L:$L,raw_resource_build!$B:$B,$C427,raw_resource_build!$A:$A,E$396)","v":0},{"$f":"SUMIFS(raw_resource_build!$K:$K,raw_resource_build!$B:$B,$C427,raw_resource_build!$A:$A,F$396)+SUMIFS(raw_resource_build!$L:$L,raw_resource_build!$B:$B,$C427,raw_resource_build!$A:$A,F$396)","v":0},{"$f":"SUMIFS(raw_resource_build!$K:$K,raw_resource_build!$B:$B,$C427,raw_resource_build!$A:$A,G$396)+SUMIFS(raw_resource_build!$L:$L,raw_resource_build!$B:$B,$C427,raw_resource_build!$A:$A,G$396)","v":0},{"$f":"SUMIFS(raw_resource_build!$K:$K,raw_resource_build!$B:$B,$C427,raw_resource_build!$A:$A,H$396)+SUMIFS(raw_resource_build!$L:$L,raw_resource_build!$B:$B,$C427,raw_resource_build!$A:$A,H$396)","v":0},{"$f":"SUMIFS(raw_resource_build!$K:$K,raw_resource_build!$B:$B,$C427,raw_resource_build!$A:$A,I$396)+SUMIFS(raw_resource_build!$L:$L,raw_resource_build!$B:$B,$C427,raw_resource_build!$A:$A,I$396)","v":0},{"$f":"SUMIFS(raw_resource_build!$K:$K,raw_resource_build!$B:$B,$C427,raw_resource_build!$A:$A,J$396)+SUMIFS(raw_resource_build!$L:$L,raw_resource_build!$B:$B,$C427,raw_resource_build!$A:$A,J$396)","v":0},{"$f":"SUMIFS(raw_resource_build!$K:$K,raw_resource_build!$B:$B,$C427,raw_resource_build!$A:$A,K$396)+SUMIFS(raw_resource_build!$L:$L,raw_resource_build!$B:$B,$C427,raw_resource_build!$A:$A,K$396)","v":0},{"$f":"SUMIFS(raw_resource_build!$K:$K,raw_resource_build!$B:$B,$C427,raw_resource_build!$A:$A,L$396)+SUMIFS(raw_resource_build!$L:$L,raw_resource_build!$B:$B,$C427,raw_resource_build!$A:$A,L$396)","v":0},{"$f":"SUMIFS(raw_resource_build!$K:$K,raw_resource_build!$B:$B,$C427,raw_resource_build!$A:$A,M$396)+SUMIFS(raw_resource_build!$L:$L,raw_resource_build!$B:$B,$C427,raw_resource_build!$A:$A,M$396)","v":0},{"$f":"SUMIFS(raw_resource_build!$K:$K,raw_resource_build!$B:$B,$C427,raw_resource_build!$A:$A,N$396)+SUMIFS(raw_resource_build!$L:$L,raw_resource_build!$B:$B,$C427,raw_resource_build!$A:$A,N$396)","v":0},{"$f":"SUMIFS(raw_resource_build!$K:$K,raw_resource_build!$B:$B,$C427,raw_resource_build!$A:$A,O$396)+SUMIFS(raw_resource_build!$L:$L,raw_resource_build!$B:$B,$C427,raw_resource_build!$A:$A,O$396)","v":0},{"$f":"SUMIFS(raw_resource_build!$K:$K,raw_resource_build!$B:$B,$C427,raw_resource_build!$A:$A,P$396)+SUMIFS(raw_resource_build!$L:$L,raw_resource_build!$B:$B,$C427,raw_resource_build!$A:$A,P$396)","v":0},{"$f":"SUMIFS(raw_resource_build!$K:$K,raw_resource_build!$B:$B,$C427,raw_resource_build!$A:$A,Q$396)+SUMIFS(raw_resource_build!$L:$L,raw_resource_build!$B:$B,$C427,raw_resource_build!$A:$A,Q$396)","v":0},{"$f":"SUMIFS(raw_resource_build!$K:$K,raw_resource_build!$B:$B,$C427,raw_resource_build!$A:$A,R$396)+SUMIFS(raw_resource_build!$L:$L,raw_resource_build!$B:$B,$C427,raw_resource_build!$A:$A,R$396)","v":0},{"$f":"SUMIFS(raw_resource_build!$K:$K,raw_resource_build!$B:$B,$C427,raw_resource_build!$A:$A,S$396)+SUMIFS(raw_resource_build!$L:$L,raw_resource_build!$B:$B,$C427,raw_resource_build!$A:$A,S$396)","v":0},{"$f":"SUMIFS(raw_resource_build!$K:$K,raw_resource_build!$B:$B,$C427,raw_resource_build!$A:$A,T$396)+SUMIFS(raw_resource_build!$L:$L,raw_resource_build!$B:$B,$C427,raw_resource_build!$A:$A,T$396)","v":0},{"$f":"SUMIFS(raw_resource_build!$K:$K,raw_resource_build!$B:$B,$C427,raw_resource_build!$A:$A,U$396)+SUMIFS(raw_resource_build!$L:$L,raw_resource_build!$B:$B,$C427,raw_resource_build!$A:$A,U$396)","v":0},{"$f":"SUMIFS(raw_resource_build!$K:$K,raw_resource_build!$B:$B,$C427,raw_resource_build!$A:$A,V$396)+SUMIFS(raw_resource_build!$L:$L,raw_resource_build!$B:$B,$C427,raw_resource_build!$A:$A,V$396)","v":0},{"$f":"SUMIFS(raw_resource_build!$K:$K,raw_resource_build!$B:$B,$C427,raw_resource_build!$A:$A,W$396)+SUMIFS(raw_resource_build!$L:$L,raw_resource_build!$B:$B,$C427,raw_resource_build!$A:$A,W$396)","v":0},{"$f":"SUMIFS(raw_resource_build!$K:$K,raw_resource_build!$B:$B,$C427,raw_resource_build!$A:$A,X$396)+SUMIFS(raw_resource_build!$L:$L,raw_resource_build!$B:$B,$C427,raw_resource_build!$A:$A,X$396)","v":0},{"$f":"SUMIFS(raw_resource_build!$K:$K,raw_resource_build!$B:$B,$C427,raw_resource_build!$A:$A,Y$396)+SUMIFS(raw_resource_build!$L:$L,raw_resource_build!$B:$B,$C427,raw_resource_build!$A:$A,Y$396)","v":0},{"$f":"SUMIFS(raw_resource_build!$K:$K,raw_resource_build!$B:$B,$C427,raw_resource_build!$A:$A,Z$396)+SUMIFS(raw_resource_build!$L:$L,raw_resource_build!$B:$B,$C427,raw_resource_build!$A:$A,Z$396)","v":0},{"$f":"SUMIFS(raw_resource_build!$K:$K,raw_resource_build!$B:$B,$C427,raw_resource_build!$A:$A,AA$396)+SUMIFS(raw_resource_build!$L:$L,raw_resource_build!$B:$B,$C427,raw_resource_build!$A:$A,AA$396)","v":0},{"$f":"SUMIFS(raw_resource_build!$K:$K,raw_resource_build!$B:$B,$C427,raw_resource_build!$A:$A,AB$396)+SUMIFS(raw_resource_build!$L:$L,raw_resource_build!$B:$B,$C427,raw_resource_build!$A:$A,AB$396)","v":0},{"$f":"SUMIFS(raw_resource_build!$K:$K,raw_resource_build!$B:$B,$C427,raw_resource_build!$A:$A,AC$396)+SUMIFS(raw_resource_build!$L:$L,raw_resource_build!$B:$B,$C427,raw_resource_build!$A:$A,AC$396)","v":0},{"$f":"SUMIFS(raw_resource_build!$K:$K,raw_resource_build!$B:$B,$C427,raw_resource_build!$A:$A,AD$396)+SUMIFS(raw_resource_build!$L:$L,raw_resource_build!$B:$B,$C427,raw_resource_build!$A:$A,AD$396)","v":0},{"$f":"SUMIFS(raw_resource_build!$K:$K,raw_resource_build!$B:$B,$C427,raw_resource_build!$A:$A,AE$396)+SUMIFS(raw_resource_build!$L:$L,raw_resource_build!$B:$B,$C427,raw_resource_build!$A:$A,AE$396)","v":0},{"$f":"SUMIFS(raw_resource_build!$K:$K,raw_resource_build!$B:$B,$C427,raw_resource_build!$A:$A,AF$396)+SUMIFS(raw_resource_build!$L:$L,raw_resource_build!$B:$B,$C427,raw_resource_build!$A:$A,AF$396)","v":0},{"$f":"SUMIFS(raw_resource_build!$K:$K,raw_resource_build!$B:$B,$C427,raw_resource_build!$A:$A,AG$396)+SUMIFS(raw_resource_build!$L:$L,raw_resource_build!$B:$B,$C427,raw_resource_build!$A:$A,AG$396)","v":0},{"$f":"SUMIFS(raw_resource_build!$K:$K,raw_resource_build!$B:$B,$C427,raw_resource_build!$A:$A,AH$396)+SUMIFS(raw_resource_build!$L:$L,raw_resource_build!$B:$B,$C427,raw_resource_build!$A:$A,AH$396)","v":0},{"$f":"SUMIFS(raw_resource_build!$K:$K,raw_resource_build!$B:$B,$C427,raw_resource_build!$A:$A,AI$396)+SUMIFS(raw_resource_build!$L:$L,raw_resource_build!$B:$B,$C427,raw_resource_build!$A:$A,AI$396)","v":0},{"$f":"SUMIFS(raw_resource_build!$K:$K,raw_resource_build!$B:$B,$C427,raw_resource_build!$A:$A,AJ$396)+SUMIFS(raw_resource_build!$L:$L,raw_resource_build!$B:$B,$C427,raw_resource_build!$A:$A,AJ$396)","v":0},{"$f":"SUMIFS(raw_resource_build!$K:$K,raw_resource_build!$B:$B,$C427,raw_resource_build!$A:$A,AK$396)+SUMIFS(raw_resource_build!$L:$L,raw_resource_build!$B:$B,$C427,raw_resource_build!$A:$A,AK$396)","v":0},{"$f":"SUMIFS(raw_resource_build!$K:$K,raw_resource_build!$B:$B,$C427,raw_resource_build!$A:$A,AL$396)+SUMIFS(raw_resource_build!$L:$L,raw_resource_build!$B:$B,$C427,raw_resource_build!$A:$A,AL$396)","v":0},{"$f":"SUMIFS(raw_resource_build!$K:$K,raw_resource_build!$B:$B,$C427,raw_resource_build!$A:$A,AM$396)+SUMIFS(raw_resource_build!$L:$L,raw_resource_build!$B:$B,$C427,raw_resource_build!$A:$A,AM$396)","v":0},{"$f":"SUMIFS(raw_resource_build!$K:$K,raw_resource_build!$B:$B,$C427,raw_resource_build!$A:$A,AN$396)+SUMIFS(raw_resource_build!$L:$L,raw_resource_build!$B:$B,$C427,raw_resource_build!$A:$A,AN$396)","v":0}]
[null,null,{"$f":"Lists!B66","v":"SCADSNV_Solar"},{"$f":"IF(INDEX(raw_resource_build!J:J,MATCH(C428,raw_resource_build!$B:$B,0))=0,\"N/A\",INDEX(raw_resource_build!J:J,MATCH(C428,raw_resource_build!$B:$B,0)))","v":"SCADSNV"},{"$f":"SUMIFS(raw_resource_build!$K:$K,raw_resource_build!$B:$B,$C428,raw_resource_build!$A:$A,E$396)+SUMIFS(raw_resource_build!$L:$L,raw_resource_build!$B:$B,$C428,raw_resource_build!$A:$A,E$396)","v":0},{"$f":"SUMIFS(raw_resource_build!$K:$K,raw_resource_build!$B:$B,$C428,raw_resource_build!$A:$A,F$396)+SUMIFS(raw_resource_build!$L:$L,raw_resource_build!$B:$B,$C428,raw_resource_build!$A:$A,F$396)","v":0},{"$f":"SUMIFS(raw_resource_build!$K:$K,raw_resource_build!$B:$B,$C428,raw_resource_build!$A:$A,G$396)+SUMIFS(raw_resource_build!$L:$L,raw_resource_build!$B:$B,$C428,raw_resource_build!$A:$A,G$396)","v":0},{"$f":"SUMIFS(raw_resource_build!$K:$K,raw_resource_build!$B:$B,$C428,raw_resource_build!$A:$A,H$396)+SUMIFS(raw_resource_build!$L:$L,raw_resource_build!$B:$B,$C428,raw_resource_build!$A:$A,H$396)","v":0},{"$f":"SUMIFS(raw_resource_build!$K:$K,raw_resource_build!$B:$B,$C428,raw_resource_build!$A:$A,I$396)+SUMIFS(raw_resource_build!$L:$L,raw_resource_build!$B:$B,$C428,raw_resource_build!$A:$A,I$396)","v":0},{"$f":"SUMIFS(raw_resource_build!$K:$K,raw_resource_build!$B:$B,$C428,raw_resource_build!$A:$A,J$396)+SUMIFS(raw_resource_build!$L:$L,raw_resource_build!$B:$B,$C428,raw_resource_build!$A:$A,J$396)","v":0},{"$f":"SUMIFS(raw_resource_build!$K:$K,raw_resource_build!$B:$B,$C428,raw_resource_build!$A:$A,K$396)+SUMIFS(raw_resource_build!$L:$L,raw_resource_build!$B:$B,$C428,raw_resource_build!$A:$A,K$396)","v":0},{"$f":"SUMIFS(raw_resource_build!$K:$K,raw_resource_build!$B:$B,$C428,raw_resource_build!$A:$A,L$396)+SUMIFS(raw_resource_build!$L:$L,raw_resource_build!$B:$B,$C428,raw_resource_build!$A:$A,L$396)","v":0},{"$f":"SUMIFS(raw_resource_build!$K:$K,raw_resource_build!$B:$B,$C428,raw_resource_build!$A:$A,M$396)+SUMIFS(raw_resource_build!$L:$L,raw_resource_build!$B:$B,$C428,raw_resource_build!$A:$A,M$396)","v":0},{"$f":"SUMIFS(raw_resource_build!$K:$K,raw_resource_build!$B:$B,$C428,raw_resource_build!$A:$A,N$396)+SUMIFS(raw_resource_build!$L:$L,raw_resource_build!$B:$B,$C428,raw_resource_build!$A:$A,N$396)","v":0},{"$f":"SUMIFS(raw_resource_build!$K:$K,raw_resource_build!$B:$B,$C428,raw_resource_build!$A:$A,O$396)+SUMIFS(raw_resource_build!$L:$L,raw_resource_build!$B:$B,$C428,raw_resource_build!$A:$A,O$396)","v":0},{"$f":"SUMIFS(raw_resource_build!$K:$K,raw_resource_build!$B:$B,$C428,raw_resource_build!$A:$A,P$396)+SUMIFS(raw_resource_build!$L:$L,raw_resource_build!$B:$B,$C428,raw_resource_build!$A:$A,P$396)","v":2150},{"$f":"SUMIFS(raw_resource_build!$K:$K,raw_resource_build!$B:$B,$C428,raw_resource_build!$A:$A,Q$396)+SUMIFS(raw_resource_build!$L:$L,raw_resource_build!$B:$B,$C428,raw_resource_build!$A:$A,Q$396)","v":0},{"$f":"SUMIFS(raw_resource_build!$K:$K,raw_resource_build!$B:$B,$C428,raw_resource_build!$A:$A,R$396)+SUMIFS(raw_resource_build!$L:$L,raw_resource_build!$B:$B,$C428,raw_resource_build!$A:$A,R$396)","v":0},{"$f":"SUMIFS(raw_resource_build!$K:$K,raw_resource_build!$B:$B,$C428,raw_resource_build!$A:$A,S$396)+SUMIFS(raw_resource_build!$L:$L,raw_resource_build!$B:$B,$C428,raw_resource_build!$A:$A,S$396)","v":0},{"$f":"SUMIFS(raw_resource_build!$K:$K,raw_resource_build!$B:$B,$C428,raw_resource_build!$A:$A,T$396)+SUMIFS(raw_resource_build!$L:$L,raw_resource_build!$B:$B,$C428,raw_resource_build!$A:$A,T$396)","v":2150},{"$f":"SUMIFS(raw_resource_build!$K:$K,raw_resource_build!$B:$B,$C428,raw_resource_build!$A:$A,U$396)+SUMIFS(raw_resource_build!$L:$L,raw_resource_build!$B:$B,$C428,raw_resource_build!$A:$A,U$396)","v":0},{"$f":"SUMIFS(raw_resource_build!$K:$K,raw_resource_build!$B:$B,$C428,raw_resource_build!$A:$A,V$396)+SUMIFS(raw_resource_build!$L:$L,raw_resource_build!$B:$B,$C428,raw_resource_build!$A:$A,V$396)","v":0},{"$f":"SUMIFS(raw_resource_build!$K:$K,raw_resource_build!$B:$B,$C428,raw_resource_build!$A:$A,W$396)+SUMIFS(raw_resource_build!$L:$L,raw_resource_build!$B:$B,$C428,raw_resource_build!$A:$A,W$396)","v":0},{"$f":"SUMIFS(raw_resource_build!$K:$K,raw_resource_build!$B:$B,$C428,raw_resource_build!$A:$A,X$396)+SUMIFS(raw_resource_build!$L:$L,raw_resource_build!$B:$B,$C428,raw_resource_build!$A:$A,X$396)","v":0},{"$f":"SUMIFS(raw_resource_build!$K:$K,raw_resource_build!$B:$B,$C428,raw_resource_build!$A:$A,Y$396)+SUMIFS(raw_resource_build!$L:$L,raw_resource_build!$B:$B,$C428,raw_resource_build!$A:$A,Y$396)","v":0},{"$f":"SUMIFS(raw_resource_build!$K:$K,raw_resource_build!$B:$B,$C428,raw_resource_build!$A:$A,Z$396)+SUMIFS(raw_resource_build!$L:$L,raw_resource_build!$B:$B,$C428,raw_resource_build!$A:$A,Z$396)","v":0},{"$f":"SUMIFS(raw_resource_build!$K:$K,raw_resource_build!$B:$B,$C428,raw_resource_build!$A:$A,AA$396)+SUMIFS(raw_resource_build!$L:$L,raw_resource_build!$B:$B,$C428,raw_resource_build!$A:$A,AA$396)","v":0},{"$f":"SUMIFS(raw_resource_build!$K:$K,raw_resource_build!$B:$B,$C428,raw_resource_build!$A:$A,AB$396)+SUMIFS(raw_resource_build!$L:$L,raw_resource_build!$B:$B,$C428,raw_resource_build!$A:$A,AB$396)","v":0},{"$f":"SUMIFS(raw_resource_build!$K:$K,raw_resource_build!$B:$B,$C428,raw_resource_build!$A:$A,AC$396)+SUMIFS(raw_resource_build!$L:$L,raw_resource_build!$B:$B,$C428,raw_resource_build!$A:$A,AC$396)","v":0},{"$f":"SUMIFS(raw_resource_build!$K:$K,raw_resource_build!$B:$B,$C428,raw_resource_build!$A:$A,AD$396)+SUMIFS(raw_resource_build!$L:$L,raw_resource_build!$B:$B,$C428,raw_resource_build!$A:$A,AD$396)","v":0},{"$f":"SUMIFS(raw_resource_build!$K:$K,raw_resource_build!$B:$B,$C428,raw_resource_build!$A:$A,AE$396)+SUMIFS(raw_resource_build!$L:$L,raw_resource_build!$B:$B,$C428,raw_resource_build!$A:$A,AE$396)","v":0},{"$f":"SUMIFS(raw_resource_build!$K:$K,raw_resource_build!$B:$B,$C428,raw_resource_build!$A:$A,AF$396)+SUMIFS(raw_resource_build!$L:$L,raw_resource_build!$B:$B,$C428,raw_resource_build!$A:$A,AF$396)","v":0},{"$f":"SUMIFS(raw_resource_build!$K:$K,raw_resource_build!$B:$B,$C428,raw_resource_build!$A:$A,AG$396)+SUMIFS(raw_resource_build!$L:$L,raw_resource_build!$B:$B,$C428,raw_resource_build!$A:$A,AG$396)","v":0},{"$f":"SUMIFS(raw_resource_build!$K:$K,raw_resource_build!$B:$B,$C428,raw_resource_build!$A:$A,AH$396)+SUMIFS(raw_resource_build!$L:$L,raw_resource_build!$B:$B,$C428,raw_resource_build!$A:$A,AH$396)","v":0},{"$f":"SUMIFS(raw_resource_build!$K:$K,raw_resource_build!$B:$B,$C428,raw_resource_build!$A:$A,AI$396)+SUMIFS(raw_resource_build!$L:$L,raw_resource_build!$B:$B,$C428,raw_resource_build!$A:$A,AI$396)","v":2150},{"$f":"SUMIFS(raw_resource_build!$K:$K,raw_resource_build!$B:$B,$C428,raw_resource_build!$A:$A,AJ$396)+SUMIFS(raw_resource_build!$L:$L,raw_resource_build!$B:$B,$C428,raw_resource_build!$A:$A,AJ$396)","v":0},{"$f":"SUMIFS(raw_resource_build!$K:$K,raw_resource_build!$B:$B,$C428,raw_resource_build!$A:$A,AK$396)+SUMIFS(raw_resource_build!$L:$L,raw_resource_build!$B:$B,$C428,raw_resource_build!$A:$A,AK$396)","v":0},{"$f":"SUMIFS(raw_resource_build!$K:$K,raw_resource_build!$B:$B,$C428,raw_resource_build!$A:$A,AL$396)+SUMIFS(raw_resource_build!$L:$L,raw_resource_build!$B:$B,$C428,raw_resource_build!$A:$A,AL$396)","v":0},{"$f":"SUMIFS(raw_resource_build!$K:$K,raw_resource_build!$B:$B,$C428,raw_resource_build!$A:$A,AM$396)+SUMIFS(raw_resource_build!$L:$L,raw_resource_build!$B:$B,$C428,raw_resource_build!$A:$A,AM$396)","v":0},{"$f":"SUMIFS(raw_resource_build!$K:$K,raw_resource_build!$B:$B,$C428,raw_resource_build!$A:$A,AN$396)+SUMIFS(raw_resource_build!$L:$L,raw_resource_build!$B:$B,$C428,raw_resource_build!$A:$A,AN$396)","v":0}]
[null,null,{"$f":"Lists!B67","v":"SCADSNV_Wind"},{"$f":"IF(INDEX(raw_resource_build!J:J,MATCH(C429,raw_resource_build!$B:$B,0))=0,\"N/A\",INDEX(raw_resource_build!J:J,MATCH(C429,raw_resource_build!$B:$B,0)))","v":"SCADSNV"},{"$f":"SUMIFS(raw_resource_build!$K:$K,raw_resource_build!$B:$B,$C429,raw_resource_build!$A:$A,E$396)+SUMIFS(raw_resource_build!$L:$L,raw_resource_build!$B:$B,$C429,raw_resource_build!$A:$A,E$396)","v":0},{"$f":"SUMIFS(raw_resource_build!$K:$K,raw_resource_build!$B:$B,$C429,raw_resource_build!$A:$A,F$396)+SUMIFS(raw_resource_build!$L:$L,raw_resource_build!$B:$B,$C429,raw_resource_build!$A:$A,F$396)","v":0},{"$f":"SUMIFS(raw_resource_build!$K:$K,raw_resource_build!$B:$B,$C429,raw_resource_build!$A:$A,G$396)+SUMIFS(raw_resource_build!$L:$L,raw_resource_build!$B:$B,$C429,raw_resource_build!$A:$A,G$396)","v":0},{"$f":"SUMIFS(raw_resource_build!$K:$K,raw_resource_build!$B:$B,$C429,raw_resource_build!$A:$A,H$396)+SUMIFS(raw_resource_build!$L:$L,raw_resource_build!$B:$B,$C429,raw_resource_build!$A:$A,H$396)","v":0},{"$f":"SUMIFS(raw_resource_build!$K:$K,raw_resource_build!$B:$B,$C429,raw_resource_build!$A:$A,I$396)+SUMIFS(raw_resource_build!$L:$L,raw_resource_build!$B:$B,$C429,raw_resource_build!$A:$A,I$396)","v":0},{"$f":"SUMIFS(raw_resource_build!$K:$K,raw_resource_build!$B:$B,$C429,raw_resource_build!$A:$A,J$396)+SUMIFS(raw_resource_build!$L:$L,raw_resource_build!$B:$B,$C429,raw_resource_build!$A:$A,J$396)","v":0},{"$f":"SUMIFS(raw_resource_build!$K:$K,raw_resource_build!$B:$B,$C429,raw_resource_build!$A:$A,K$396)+SUMIFS(raw_resource_build!$L:$L,raw_resource_build!$B:$B,$C429,raw_resource_build!$A:$A,K$396)","v":0},{"$f":"SUMIFS(raw_resource_build!$K:$K,raw_resource_build!$B:$B,$C429,raw_resource_build!$A:$A,L$396)+SUMIFS(raw_resource_build!$L:$L,raw_resource_build!$B:$B,$C429,raw_resource_build!$A:$A,L$396)","v":0},{"$f":"SUMIFS(raw_resource_build!$K:$K,raw_resource_build!$B:$B,$C429,raw_resource_build!$A:$A,M$396)+SUMIFS(raw_resource_build!$L:$L,raw_resource_build!$B:$B,$C429,raw_resource_build!$A:$A,M$396)","v":0},{"$f":"SUMIFS(raw_resource_build!$K:$K,raw_resource_build!$B:$B,$C429,raw_resource_build!$A:$A,N$396)+SUMIFS(raw_resource_build!$L:$L,raw_resource_build!$B:$B,$C429,raw_resource_build!$A:$A,N$396)","v":0},{"$f":"SUMIFS(raw_resource_build!$K:$K,raw_resource_build!$B:$B,$C429,raw_resource_build!$A:$A,O$396)+SUMIFS(raw_resource_build!$L:$L,raw_resource_build!$B:$B,$C429,raw_resource_build!$A:$A,O$396)","v":0},{"$f":"SUMIFS(raw_resource_build!$K:$K,raw_resource_build!$B:$B,$C429,raw_resource_build!$A:$A,P$396)+SUMIFS(raw_resource_build!$L:$L,raw_resource_build!$B:$B,$C429,raw_resource_build!$A:$A,P$396)","v":0},{"$f":"SUMIFS(raw_resource_build!$K:$K,raw_resource_build!$B:$B,$C429,raw_resource_build!$A:$A,Q$396)+SUMIFS(raw_resource_build!$L:$L,raw_resource_build!$B:$B,$C429,raw_resource_build!$A:$A,Q$396)","v":0},{"$f":"SUMIFS(raw_resource_build!$K:$K,raw_resource_build!$B:$B,$C429,raw_resource_build!$A:$A,R$396)+SUMIFS(raw_resource_build!$L:$L,raw_resource_build!$B:$B,$C429,raw_resource_build!$A:$A,R$396)","v":0},{"$f":"SUMIFS(raw_resource_build!$K:$K,raw_resource_build!$B:$B,$C429,raw_resource_build!$A:$A,S$396)+SUMIFS(raw_resource_build!$L:$L,raw_resource_build!$B:$B,$C429,raw_resource_build!$A:$A,S$396)","v":0},{"$f":"SUMIFS(raw_resource_build!$K:$K,raw_resource_build!$B:$B,$C429,raw_resource_build!$A:$A,T$396)+SUMIFS(raw_resource_build!$L:$L,raw_resource_build!$B:$B,$C429,raw_resource_build!$A:$A,T$396)","v":0},{"$f":"SUMIFS(raw_resource_build!$K:$K,raw_resource_build!$B:$B,$C429,raw_resource_build!$A:$A,U$396)+SUMIFS(raw_resource_build!$L:$L,raw_resource_build!$B:$B,$C429,raw_resource_build!$A:$A,U$396)","v":0},{"$f":"SUMIFS(raw_resource_build!$K:$K,raw_resource_build!$B:$B,$C429,raw_resource_build!$A:$A,V$396)+SUMIFS(raw_resource_build!$L:$L,raw_resource_build!$B:$B,$C429,raw_resource_build!$A:$A,V$396)","v":0},{"$f":"SUMIFS(raw_resource_build!$K:$K,raw_resource_build!$B:$B,$C429,raw_resource_build!$A:$A,W$396)+SUMIFS(raw_resource_build!$L:$L,raw_resource_build!$B:$B,$C429,raw_resource_build!$A:$A,W$396)","v":0},{"$f":"SUMIFS(raw_resource_build!$K:$K,raw_resource_build!$B:$B,$C429,raw_resource_build!$A:$A,X$396)+SUMIFS(raw_resource_build!$L:$L,raw_resource_build!$B:$B,$C429,raw_resource_build!$A:$A,X$396)","v":0},{"$f":"SUMIFS(raw_resource_build!$K:$K,raw_resource_build!$B:$B,$C429,raw_resource_build!$A:$A,Y$396)+SUMIFS(raw_resource_build!$L:$L,raw_resource_build!$B:$B,$C429,raw_resource_build!$A:$A,Y$396)","v":0},{"$f":"SUMIFS(raw_resource_build!$K:$K,raw_resource_build!$B:$B,$C429,raw_resource_build!$A:$A,Z$396)+SUMIFS(raw_resource_build!$L:$L,raw_resource_build!$B:$B,$C429,raw_resource_build!$A:$A,Z$396)","v":0},{"$f":"SUMIFS(raw_resource_build!$K:$K,raw_resource_build!$B:$B,$C429,raw_resource_build!$A:$A,AA$396)+SUMIFS(raw_resource_build!$L:$L,raw_resource_build!$B:$B,$C429,raw_resource_build!$A:$A,AA$396)","v":0},{"$f":"SUMIFS(raw_resource_build!$K:$K,raw_resource_build!$B:$B,$C429,raw_resource_build!$A:$A,AB$396)+SUMIFS(raw_resource_build!$L:$L,raw_resource_build!$B:$B,$C429,raw_resource_build!$A:$A,AB$396)","v":0},{"$f":"SUMIFS(raw_resource_build!$K:$K,raw_resource_build!$B:$B,$C429,raw_resource_build!$A:$A,AC$396)+SUMIFS(raw_resource_build!$L:$L,raw_resource_build!$B:$B,$C429,raw_resource_build!$A:$A,AC$396)","v":0},{"$f":"SUMIFS(raw_resource_build!$K:$K,raw_resource_build!$B:$B,$C429,raw_resource_build!$A:$A,AD$396)+SUMIFS(raw_resource_build!$L:$L,raw_resource_build!$B:$B,$C429,raw_resource_build!$A:$A,AD$396)","v":0},{"$f":"SUMIFS(raw_resource_build!$K:$K,raw_resource_build!$B:$B,$C429,raw_resource_build!$A:$A,AE$396)+SUMIFS(raw_resource_build!$L:$L,raw_resource_build!$B:$B,$C429,raw_resource_build!$A:$A,AE$396)","v":0},{"$f":"SUMIFS(raw_resource_build!$K:$K,raw_resource_build!$B:$B,$C429,raw_resource_build!$A:$A,AF$396)+SUMIFS(raw_resource_build!$L:$L,raw_resource_build!$B:$B,$C429,raw_resource_build!$A:$A,AF$396)","v":0},{"$f":"SUMIFS(raw_resource_build!$K:$K,raw_resource_build!$B:$B,$C429,raw_resource_build!$A:$A,AG$396)+SUMIFS(raw_resource_build!$L:$L,raw_resource_build!$B:$B,$C429,raw_resource_build!$A:$A,AG$396)","v":0},{"$f":"SUMIFS(raw_resource_build!$K:$K,raw_resource_build!$B:$B,$C429,raw_resource_build!$A:$A,AH$396)+SUMIFS(raw_resource_build!$L:$L,raw_resource_build!$B:$B,$C429,raw_resource_build!$A:$A,AH$396)","v":0},{"$f":"SUMIFS(raw_resource_build!$K:$K,raw_resource_build!$B:$B,$C429,raw_resource_build!$A:$A,AI$396)+SUMIFS(raw_resource_build!$L:$L,raw_resource_build!$B:$B,$C429,raw_resource_build!$A:$A,AI$396)","v":0},{"$f":"SUMIFS(raw_resource_build!$K:$K,raw_resource_build!$B:$B,$C429,raw_resource_build!$A:$A,AJ$396)+SUMIFS(raw_resource_build!$L:$L,raw_resource_build!$B:$B,$C429,raw_resource_build!$A:$A,AJ$396)","v":0},{"$f":"SUMIFS(raw_resource_build!$K:$K,raw_resource_build!$B:$B,$C429,raw_resource_build!$A:$A,AK$396)+SUMIFS(raw_resource_build!$L:$L,raw_resource_build!$B:$B,$C429,raw_resource_build!$A:$A,AK$396)","v":0},{"$f":"SUMIFS(raw_resource_build!$K:$K,raw_resource_build!$B:$B,$C429,raw_resource_build!$A:$A,AL$396)+SUMIFS(raw_resource_build!$L:$L,raw_resource_build!$B:$B,$C429,raw_resource_build!$A:$A,AL$396)","v":0},{"$f":"SUMIFS(raw_resource_build!$K:$K,raw_resource_build!$B:$B,$C429,raw_resource_build!$A:$A,AM$396)+SUMIFS(raw_resource_build!$L:$L,raw_resource_build!$B:$B,$C429,raw_resource_build!$A:$A,AM$396)","v":0},{"$f":"SUMIFS(raw_resource_build!$K:$K,raw_resource_build!$B:$B,$C429,raw_resource_build!$A:$A,AN$396)+SUMIFS(raw_resource_build!$L:$L,raw_resource_build!$B:$B,$C429,raw_resource_build!$A:$A,AN$396)","v":0}]
[null,null,{"$f":"Lists!B68","v":"Solano_Solar"},{"$f":"IF(INDEX(raw_resource_build!J:J,MATCH(C430,raw_resource_build!$B:$B,0))=0,\"N/A\",INDEX(raw_resource_build!J:J,MATCH(C430,raw_resource_build!$B:$B,0)))","v":"Solano-Sacramento_River"},{"$f":"SUMIFS(raw_resource_build!$K:$K,raw_resource_build!$B:$B,$C430,raw_resource_build!$A:$A,E$396)+SUMIFS(raw_resource_build!$L:$L,raw_resource_build!$B:$B,$C430,raw_resource_build!$A:$A,E$396)","v":0},{"$f":"SUMIFS(raw_resource_build!$K:$K,raw_resource_build!$B:$B,$C430,raw_resource_build!$A:$A,F$396)+SUMIFS(raw_resource_build!$L:$L,raw_resource_build!$B:$B,$C430,raw_resource_build!$A:$A,F$396)","v":0},{"$f":"SUMIFS(raw_resource_build!$K:$K,raw_resource_build!$B:$B,$C430,raw_resource_build!$A:$A,G$396)+SUMIFS(raw_resource_build!$L:$L,raw_resource_build!$B:$B,$C430,raw_resource_build!$A:$A,G$396)","v":0},{"$f":"SUMIFS(raw_resource_build!$K:$K,raw_resource_build!$B:$B,$C430,raw_resource_build!$A:$A,H$396)+SUMIFS(raw_resource_build!$L:$L,raw_resource_build!$B:$B,$C430,raw_resource_build!$A:$A,H$396)","v":0},{"$f":"SUMIFS(raw_resource_build!$K:$K,raw_resource_build!$B:$B,$C430,raw_resource_build!$A:$A,I$396)+SUMIFS(raw_resource_build!$L:$L,raw_resource_build!$B:$B,$C430,raw_resource_build!$A:$A,I$396)","v":0},{"$f":"SUMIFS(raw_resource_build!$K:$K,raw_resource_build!$B:$B,$C430,raw_resource_build!$A:$A,J$396)+SUMIFS(raw_resource_build!$L:$L,raw_resource_build!$B:$B,$C430,raw_resource_build!$A:$A,J$396)","v":0},{"$f":"SUMIFS(raw_resource_build!$K:$K,raw_resource_build!$B:$B,$C430,raw_resource_build!$A:$A,K$396)+SUMIFS(raw_resource_build!$L:$L,raw_resource_build!$B:$B,$C430,raw_resource_build!$A:$A,K$396)","v":0},{"$f":"SUMIFS(raw_resource_build!$K:$K,raw_resource_build!$B:$B,$C430,raw_resource_build!$A:$A,L$396)+SUMIFS(raw_resource_build!$L:$L,raw_resource_build!$B:$B,$C430,raw_resource_build!$A:$A,L$396)","v":0},{"$f":"SUMIFS(raw_resource_build!$K:$K,raw_resource_build!$B:$B,$C430,raw_resource_build!$A:$A,M$396)+SUMIFS(raw_resource_build!$L:$L,raw_resource_build!$B:$B,$C430,raw_resource_build!$A:$A,M$396)","v":0},{"$f":"SUMIFS(raw_resource_build!$K:$K,raw_resource_build!$B:$B,$C430,raw_resource_build!$A:$A,N$396)+SUMIFS(raw_resource_build!$L:$L,raw_resource_build!$B:$B,$C430,raw_resource_build!$A:$A,N$396)","v":0},{"$f":"SUMIFS(raw_resource_build!$K:$K,raw_resource_build!$B:$B,$C430,raw_resource_build!$A:$A,O$396)+SUMIFS(raw_resource_build!$L:$L,raw_resource_build!$B:$B,$C430,raw_resource_build!$A:$A,O$396)","v":0},{"$f":"SUMIFS(raw_resource_build!$K:$K,raw_resource_build!$B:$B,$C430,raw_resource_build!$A:$A,P$396)+SUMIFS(raw_resource_build!$L:$L,raw_resource_build!$B:$B,$C430,raw_resource_build!$A:$A,P$396)","v":0},{"$f":"SUMIFS(raw_resource_build!$K:$K,raw_resource_build!$B:$B,$C430,raw_resource_build!$A:$A,Q$396)+SUMIFS(raw_resource_build!$L:$L,raw_resource_build!$B:$B,$C430,raw_resource_build!$A:$A,Q$396)","v":0},{"$f":"SUMIFS(raw_resource_build!$K:$K,raw_resource_build!$B:$B,$C430,raw_resource_build!$A:$A,R$396)+SUMIFS(raw_resource_build!$L:$L,raw_resource_build!$B:$B,$C430,raw_resource_build!$A:$A,R$396)","v":0},{"$f":"SUMIFS(raw_resource_build!$K:$K,raw_resource_build!$B:$B,$C430,raw_resource_build!$A:$A,S$396)+SUMIFS(raw_resource_build!$L:$L,raw_resource_build!$B:$B,$C430,raw_resource_build!$A:$A,S$396)","v":0},{"$f":"SUMIFS(raw_resource_build!$K:$K,raw_resource_build!$B:$B,$C430,raw_resource_build!$A:$A,T$396)+SUMIFS(raw_resource_build!$L:$L,raw_resource_build!$B:$B,$C430,raw_resource_build!$A:$A,T$396)","v":700},{"$f":"SUMIFS(raw_resource_build!$K:$K,raw_resource_build!$B:$B,$C430,raw_resource_build!$A:$A,U$396)+SUMIFS(raw_resource_build!$L:$L,raw_resource_build!$B:$B,$C430,raw_resource_build!$A:$A,U$396)","v":0},{"$f":"SUMIFS(raw_resource_build!$K:$K,raw_resource_build!$B:$B,$C430,raw_resource_build!$A:$A,V$396)+SUMIFS(raw_resource_build!$L:$L,raw_resource_build!$B:$B,$C430,raw_resource_build!$A:$A,V$396)","v":0},{"$f":"SUMIFS(raw_resource_build!$K:$K,raw_resource_build!$B:$B,$C430,raw_resource_build!$A:$A,W$396)+SUMIFS(raw_resource_build!$L:$L,raw_resource_build!$B:$B,$C430,raw_resource_build!$A:$A,W$396)","v":0},{"$f":"SUMIFS(raw_resource_build!$K:$K,raw_resource_build!$B:$B,$C430,raw_resource_build!$A:$A,X$396)+SUMIFS(raw_resource_build!$L:$L,raw_resource_build!$B:$B,$C430,raw_resource_build!$A:$A,X$396)","v":0},{"$f":"SUMIFS(raw_resource_build!$K:$K,raw_resource_build!$B:$B,$C430,raw_resource_build!$A:$A,Y$396)+SUMIFS(raw_resource_build!$L:$L,raw_resource_build!$B:$B,$C430,raw_resource_build!$A:$A,Y$396)","v":0},{"$f":"SUMIFS(raw_resource_build!$K:$K,raw_resource_build!$B:$B,$C430,raw_resource_build!$A:$A,Z$396)+SUMIFS(raw_resource_build!$L:$L,raw_resource_build!$B:$B,$C430,raw_resource_build!$A:$A,Z$396)","v":0},{"$f":"SUMIFS(raw_resource_build!$K:$K,raw_resource_build!$B:$B,$C430,raw_resource_build!$A:$A,AA$396)+SUMIFS(raw_resource_build!$L:$L,raw_resource_build!$B:$B,$C430,raw_resource_build!$A:$A,AA$396)","v":0},{"$f":"SUMIFS(raw_resource_build!$K:$K,raw_resource_build!$B:$B,$C430,raw_resource_build!$A:$A,AB$396)+SUMIFS(raw_resource_build!$L:$L,raw_resource_build!$B:$B,$C430,raw_resource_build!$A:$A,AB$396)","v":0},{"$f":"SUMIFS(raw_resource_build!$K:$K,raw_resource_build!$B:$B,$C430,raw_resource_build!$A:$A,AC$396)+SUMIFS(raw_resource_build!$L:$L,raw_resource_build!$B:$B,$C430,raw_resource_build!$A:$A,AC$396)","v":0},{"$f":"SUMIFS(raw_resource_build!$K:$K,raw_resource_build!$B:$B,$C430,raw_resource_build!$A:$A,AD$396)+SUMIFS(raw_resource_build!$L:$L,raw_resource_build!$B:$B,$C430,raw_resource_build!$A:$A,AD$396)","v":0},{"$f":"SUMIFS(raw_resource_build!$K:$K,raw_resource_build!$B:$B,$C430,raw_resource_build!$A:$A,AE$396)+SUMIFS(raw_resource_build!$L:$L,raw_resource_build!$B:$B,$C430,raw_resource_build!$A:$A,AE$396)","v":0},{"$f":"SUMIFS(raw_resource_build!$K:$K,raw_resource_build!$B:$B,$C430,raw_resource_build!$A:$A,AF$396)+SUMIFS(raw_resource_build!$L:$L,raw_resource_build!$B:$B,$C430,raw_resource_build!$A:$A,AF$396)","v":0},{"$f":"SUMIFS(raw_resource_build!$K:$K,raw_resource_build!$B:$B,$C430,raw_resource_build!$A:$A,AG$396)+SUMIFS(raw_resource_build!$L:$L,raw_resource_build!$B:$B,$C430,raw_resource_build!$A:$A,AG$396)","v":0},{"$f":"SUMIFS(raw_resource_build!$K:$K,raw_resource_build!$B:$B,$C430,raw_resource_build!$A:$A,AH$396)+SUMIFS(raw_resource_build!$L:$L,raw_resource_build!$B:$B,$C430,raw_resource_build!$A:$A,AH$396)","v":0},{"$f":"SUMIFS(raw_resource_build!$K:$K,raw_resource_build!$B:$B,$C430,raw_resource_build!$A:$A,AI$396)+SUMIFS(raw_resource_build!$L:$L,raw_resource_build!$B:$B,$C430,raw_resource_build!$A:$A,AI$396)","v":700},{"$f":"SUMIFS(raw_resource_build!$K:$K,raw_resource_build!$B:$B,$C430,raw_resource_build!$A:$A,AJ$396)+SUMIFS(raw_resource_build!$L:$L,raw_resource_build!$B:$B,$C430,raw_resource_build!$A:$A,AJ$396)","v":0},{"$f":"SUMIFS(raw_resource_build!$K:$K,raw_resource_build!$B:$B,$C430,raw_resource_build!$A:$A,AK$396)+SUMIFS(raw_resource_build!$L:$L,raw_resource_build!$B:$B,$C430,raw_resource_build!$A:$A,AK$396)","v":0},{"$f":"SUMIFS(raw_resource_build!$K:$K,raw_resource_build!$B:$B,$C430,raw_resource_build!$A:$A,AL$396)+SUMIFS(raw_resource_build!$L:$L,raw_resource_build!$B:$B,$C430,raw_resource_build!$A:$A,AL$396)","v":0},{"$f":"SUMIFS(raw_resource_build!$K:$K,raw_resource_build!$B:$B,$C430,raw_resource_build!$A:$A,AM$396)+SUMIFS(raw_resource_build!$L:$L,raw_resource_build!$B:$B,$C430,raw_resource_build!$A:$A,AM$396)","v":0},{"$f":"SUMIFS(raw_resource_build!$K:$K,raw_resource_build!$B:$B,$C430,raw_resource_build!$A:$A,AN$396)+SUMIFS(raw_resource_build!$L:$L,raw_resource_build!$B:$B,$C430,raw_resource_build!$A:$A,AN$396)","v":0}]
[null,null,{"$f":"Lists!B69","v":"Solano_subzone_Solar"},{"$f":"IF(INDEX(raw_resource_build!J:J,MATCH(C431,raw_resource_build!$B:$B,0))=0,\"N/A\",INDEX(raw_resource_build!J:J,MATCH(C431,raw_resource_build!$B:$B,0)))","v":"Solano-Solano_subzone-Sacramento_River"},{"$f":"SUMIFS(raw_resource_build!$K:$K,raw_resource_build!$B:$B,$C431,raw_resource_build!$A:$A,E$396)+SUMIFS(raw_resource_build!$L:$L,raw_resource_build!$B:$B,$C431,raw_resource_build!$A:$A,E$396)","v":0},{"$f":"SUMIFS(raw_resource_build!$K:$K,raw_resource_build!$B:$B,$C431,raw_resource_build!$A:$A,F$396)+SUMIFS(raw_resource_build!$L:$L,raw_resource_build!$B:$B,$C431,raw_resource_build!$A:$A,F$396)","v":0},{"$f":"SUMIFS(raw_resource_build!$K:$K,raw_resource_build!$B:$B,$C431,raw_resource_build!$A:$A,G$396)+SUMIFS(raw_resource_build!$L:$L,raw_resource_build!$B:$B,$C431,raw_resource_build!$A:$A,G$396)","v":0},{"$f":"SUMIFS(raw_resource_build!$K:$K,raw_resource_build!$B:$B,$C431,raw_resource_build!$A:$A,H$396)+SUMIFS(raw_resource_build!$L:$L,raw_resource_build!$B:$B,$C431,raw_resource_build!$A:$A,H$396)","v":0},{"$f":"SUMIFS(raw_resource_build!$K:$K,raw_resource_build!$B:$B,$C431,raw_resource_build!$A:$A,I$396)+SUMIFS(raw_resource_build!$L:$L,raw_resource_build!$B:$B,$C431,raw_resource_build!$A:$A,I$396)","v":0},{"$f":"SUMIFS(raw_resource_build!$K:$K,raw_resource_build!$B:$B,$C431,raw_resource_build!$A:$A,J$396)+SUMIFS(raw_resource_build!$L:$L,raw_resource_build!$B:$B,$C431,raw_resource_build!$A:$A,J$396)","v":0},{"$f":"SUMIFS(raw_resource_build!$K:$K,raw_resource_build!$B:$B,$C431,raw_resource_build!$A:$A,K$396)+SUMIFS(raw_resource_build!$L:$L,raw_resource_build!$B:$B,$C431,raw_resource_build!$A:$A,K$396)","v":0},{"$f":"SUMIFS(raw_resource_build!$K:$K,raw_resource_build!$B:$B,$C431,raw_resource_build!$A:$A,L$396)+SUMIFS(raw_resource_build!$L:$L,raw_resource_build!$B:$B,$C431,raw_resource_build!$A:$A,L$396)","v":0},{"$f":"SUMIFS(raw_resource_build!$K:$K,raw_resource_build!$B:$B,$C431,raw_resource_build!$A:$A,M$396)+SUMIFS(raw_resource_build!$L:$L,raw_resource_build!$B:$B,$C431,raw_resource_build!$A:$A,M$396)","v":0},{"$f":"SUMIFS(raw_resource_build!$K:$K,raw_resource_build!$B:$B,$C431,raw_resource_build!$A:$A,N$396)+SUMIFS(raw_resource_build!$L:$L,raw_resource_build!$B:$B,$C431,raw_resource_build!$A:$A,N$396)","v":0},{"$f":"SUMIFS(raw_resource_build!$K:$K,raw_resource_build!$B:$B,$C431,raw_resource_build!$A:$A,O$396)+SUMIFS(raw_resource_build!$L:$L,raw_resource_build!$B:$B,$C431,raw_resource_build!$A:$A,O$396)","v":0},{"$f":"SUMIFS(raw_resource_build!$K:$K,raw_resource_build!$B:$B,$C431,raw_resource_build!$A:$A,P$396)+SUMIFS(raw_resource_build!$L:$L,raw_resource_build!$B:$B,$C431,raw_resource_build!$A:$A,P$396)","v":0},{"$f":"SUMIFS(raw_resource_build!$K:$K,raw_resource_build!$B:$B,$C431,raw_resource_build!$A:$A,Q$396)+SUMIFS(raw_resource_build!$L:$L,raw_resource_build!$B:$B,$C431,raw_resource_build!$A:$A,Q$396)","v":0},{"$f":"SUMIFS(raw_resource_build!$K:$K,raw_resource_build!$B:$B,$C431,raw_resource_build!$A:$A,R$396)+SUMIFS(raw_resource_build!$L:$L,raw_resource_build!$B:$B,$C431,raw_resource_build!$A:$A,R$396)","v":0},{"$f":"SUMIFS(raw_resource_build!$K:$K,raw_resource_build!$B:$B,$C431,raw_resource_build!$A:$A,S$396)+SUMIFS(raw_resource_build!$L:$L,raw_resource_build!$B:$B,$C431,raw_resource_build!$A:$A,S$396)","v":0},{"$f":"SUMIFS(raw_resource_build!$K:$K,raw_resource_build!$B:$B,$C431,raw_resource_build!$A:$A,T$396)+SUMIFS(raw_resource_build!$L:$L,raw_resource_build!$B:$B,$C431,raw_resource_build!$A:$A,T$396)","v":0},{"$f":"SUMIFS(raw_resource_build!$K:$K,raw_resource_build!$B:$B,$C431,raw_resource_build!$A:$A,U$396)+SUMIFS(raw_resource_build!$L:$L,raw_resource_build!$B:$B,$C431,raw_resource_build!$A:$A,U$396)","v":0},{"$f":"SUMIFS(raw_resource_build!$K:$K,raw_resource_build!$B:$B,$C431,raw_resource_build!$A:$A,V$396)+SUMIFS(raw_resource_build!$L:$L,raw_resource_build!$B:$B,$C431,raw_resource_build!$A:$A,V$396)","v":0},{"$f":"SUMIFS(raw_resource_build!$K:$K,raw_resource_build!$B:$B,$C431,raw_resource_build!$A:$A,W$396)+SUMIFS(raw_resource_build!$L:$L,raw_resource_build!$B:$B,$C431,raw_resource_build!$A:$A,W$396)","v":0},{"$f":"SUMIFS(raw_resource_build!$K:$K,raw_resource_build!$B:$B,$C431,raw_resource_build!$A:$A,X$396)+SUMIFS(raw_resource_build!$L:$L,raw_resource_build!$B:$B,$C431,raw_resource_build!$A:$A,X$396)","v":0},{"$f":"SUMIFS(raw_resource_build!$K:$K,raw_resource_build!$B:$B,$C431,raw_resource_build!$A:$A,Y$396)+SUMIFS(raw_resource_build!$L:$L,raw_resource_build!$B:$B,$C431,raw_resource_build!$A:$A,Y$396)","v":0},{"$f":"SUMIFS(raw_resource_build!$K:$K,raw_resource_build!$B:$B,$C431,raw_resource_build!$A:$A,Z$396)+SUMIFS(raw_resource_build!$L:$L,raw_resource_build!$B:$B,$C431,raw_resource_build!$A:$A,Z$396)","v":0},{"$f":"SUMIFS(raw_resource_build!$K:$K,raw_resource_build!$B:$B,$C431,raw_resource_build!$A:$A,AA$396)+SUMIFS(raw_resource_build!$L:$L,raw_resource_build!$B:$B,$C431,raw_resource_build!$A:$A,AA$396)","v":0},{"$f":"SUMIFS(raw_resource_build!$K:$K,raw_resource_build!$B:$B,$C431,raw_resource_build!$A:$A,AB$396)+SUMIFS(raw_resource_build!$L:$L,raw_resource_build!$B:$B,$C431,raw_resource_build!$A:$A,AB$396)","v":0},{"$f":"SUMIFS(raw_resource_build!$K:$K,raw_resource_build!$B:$B,$C431,raw_resource_build!$A:$A,AC$396)+SUMIFS(raw_resource_build!$L:$L,raw_resource_build!$B:$B,$C431,raw_resource_build!$A:$A,AC$396)","v":0},{"$f":"SUMIFS(raw_resource_build!$K:$K,raw_resource_build!$B:$B,$C431,raw_resource_build!$A:$A,AD$396)+SUMIFS(raw_resource_build!$L:$L,raw_resource_build!$B:$B,$C431,raw_resource_build!$A:$A,AD$396)","v":0},{"$f":"SUMIFS(raw_resource_build!$K:$K,raw_resource_build!$B:$B,$C431,raw_resource_build!$A:$A,AE$396)+SUMIFS(raw_resource_build!$L:$L,raw_resource_build!$B:$B,$C431,raw_resource_build!$A:$A,AE$396)","v":0},{"$f":"SUMIFS(raw_resource_build!$K:$K,raw_resource_build!$B:$B,$C431,raw_resource_build!$A:$A,AF$396)+SUMIFS(raw_resource_build!$L:$L,raw_resource_build!$B:$B,$C431,raw_resource_build!$A:$A,AF$396)","v":0},{"$f":"SUMIFS(raw_resource_build!$K:$K,raw_resource_build!$B:$B,$C431,raw_resource_build!$A:$A,AG$396)+SUMIFS(raw_resource_build!$L:$L,raw_resource_build!$B:$B,$C431,raw_resource_build!$A:$A,AG$396)","v":0},{"$f":"SUMIFS(raw_resource_build!$K:$K,raw_resource_build!$B:$B,$C431,raw_resource_build!$A:$A,AH$396)+SUMIFS(raw_resource_build!$L:$L,raw_resource_build!$B:$B,$C431,raw_resource_build!$A:$A,AH$396)","v":0},{"$f":"SUMIFS(raw_resource_build!$K:$K,raw_resource_build!$B:$B,$C431,raw_resource_build!$A:$A,AI$396)+SUMIFS(raw_resource_build!$L:$L,raw_resource_build!$B:$B,$C431,raw_resource_build!$A:$A,AI$396)","v":0},{"$f":"SUMIFS(raw_resource_build!$K:$K,raw_resource_build!$B:$B,$C431,raw_resource_build!$A:$A,AJ$396)+SUMIFS(raw_resource_build!$L:$L,raw_resource_build!$B:$B,$C431,raw_resource_build!$A:$A,AJ$396)","v":0},{"$f":"SUMIFS(raw_resource_build!$K:$K,raw_resource_build!$B:$B,$C431,raw_resource_build!$A:$A,AK$396)+SUMIFS(raw_resource_build!$L:$L,raw_resource_build!$B:$B,$C431,raw_resource_build!$A:$A,AK$396)","v":0},{"$f":"SUMIFS(raw_resource_build!$K:$K,raw_resource_build!$B:$B,$C431,raw_resource_build!$A:$A,AL$396)+SUMIFS(raw_resource_build!$L:$L,raw_resource_build!$B:$B,$C431,raw_resource_build!$A:$A,AL$396)","v":0},{"$f":"SUMIFS(raw_resource_build!$K:$K,raw_resource_build!$B:$B,$C431,raw_resource_build!$A:$A,AM$396)+SUMIFS(raw_resource_build!$L:$L,raw_resource_build!$B:$B,$C431,raw_resource_build!$A:$A,AM$396)","v":0},{"$f":"SUMIFS(raw_resource_build!$K:$K,raw_resource_build!$B:$B,$C431,raw_resource_build!$A:$A,AN$396)+SUMIFS(raw_resource_build!$L:$L,raw_resource_build!$B:$B,$C431,raw_resource_build!$A:$A,AN$396)","v":0}]
[null,null,{"$f":"Lists!B70","v":"Solano_subzone_Wind"},{"$f":"IF(INDEX(raw_resource_build!J:J,MATCH(C432,raw_resource_build!$B:$B,0))=0,\"N/A\",INDEX(raw_resource_build!J:J,MATCH(C432,raw_resource_build!$B:$B,0)))","v":"Solano-Solano_subzone-Sacramento_River"},{"$f":"SUMIFS(raw_resource_build!$K:$K,raw_resource_build!$B:$B,$C432,raw_resource_build!$A:$A,E$396)+SUMIFS(raw_resource_build!$L:$L,raw_resource_build!$B:$B,$C432,raw_resource_build!$A:$A,E$396)","v":0},{"$f":"SUMIFS(raw_resource_build!$K:$K,raw_resource_build!$B:$B,$C432,raw_resource_build!$A:$A,F$396)+SUMIFS(raw_resource_build!$L:$L,raw_resource_build!$B:$B,$C432,raw_resource_build!$A:$A,F$396)","v":0},{"$f":"SUMIFS(raw_resource_build!$K:$K,raw_resource_build!$B:$B,$C432,raw_resource_build!$A:$A,G$396)+SUMIFS(raw_resource_build!$L:$L,raw_resource_build!$B:$B,$C432,raw_resource_build!$A:$A,G$396)","v":0},{"$f":"SUMIFS(raw_resource_build!$K:$K,raw_resource_build!$B:$B,$C432,raw_resource_build!$A:$A,H$396)+SUMIFS(raw_resource_build!$L:$L,raw_resource_build!$B:$B,$C432,raw_resource_build!$A:$A,H$396)","v":0},{"$f":"SUMIFS(raw_resource_build!$K:$K,raw_resource_build!$B:$B,$C432,raw_resource_build!$A:$A,I$396)+SUMIFS(raw_resource_build!$L:$L,raw_resource_build!$B:$B,$C432,raw_resource_build!$A:$A,I$396)","v":0},{"$f":"SUMIFS(raw_resource_build!$K:$K,raw_resource_build!$B:$B,$C432,raw_resource_build!$A:$A,J$396)+SUMIFS(raw_resource_build!$L:$L,raw_resource_build!$B:$B,$C432,raw_resource_build!$A:$A,J$396)","v":0},{"$f":"SUMIFS(raw_resource_build!$K:$K,raw_resource_build!$B:$B,$C432,raw_resource_build!$A:$A,K$396)+SUMIFS(raw_resource_build!$L:$L,raw_resource_build!$B:$B,$C432,raw_resource_build!$A:$A,K$396)","v":0},{"$f":"SUMIFS(raw_resource_build!$K:$K,raw_resource_build!$B:$B,$C432,raw_resource_build!$A:$A,L$396)+SUMIFS(raw_resource_build!$L:$L,raw_resource_build!$B:$B,$C432,raw_resource_build!$A:$A,L$396)","v":0},{"$f":"SUMIFS(raw_resource_build!$K:$K,raw_resource_build!$B:$B,$C432,raw_resource_build!$A:$A,M$396)+SUMIFS(raw_resource_build!$L:$L,raw_resource_build!$B:$B,$C432,raw_resource_build!$A:$A,M$396)","v":0},{"$f":"SUMIFS(raw_resource_build!$K:$K,raw_resource_build!$B:$B,$C432,raw_resource_build!$A:$A,N$396)+SUMIFS(raw_resource_build!$L:$L,raw_resource_build!$B:$B,$C432,raw_resource_build!$A:$A,N$396)","v":0},{"$f":"SUMIFS(raw_resource_build!$K:$K,raw_resource_build!$B:$B,$C432,raw_resource_build!$A:$A,O$396)+SUMIFS(raw_resource_build!$L:$L,raw_resource_build!$B:$B,$C432,raw_resource_build!$A:$A,O$396)","v":0},{"$f":"SUMIFS(raw_resource_build!$K:$K,raw_resource_build!$B:$B,$C432,raw_resource_build!$A:$A,P$396)+SUMIFS(raw_resource_build!$L:$L,raw_resource_build!$B:$B,$C432,raw_resource_build!$A:$A,P$396)","v":0},{"$f":"SUMIFS(raw_resource_build!$K:$K,raw_resource_build!$B:$B,$C432,raw_resource_build!$A:$A,Q$396)+SUMIFS(raw_resource_build!$L:$L,raw_resource_build!$B:$B,$C432,raw_resource_build!$A:$A,Q$396)","v":0},{"$f":"SUMIFS(raw_resource_build!$K:$K,raw_resource_build!$B:$B,$C432,raw_resource_build!$A:$A,R$396)+SUMIFS(raw_resource_build!$L:$L,raw_resource_build!$B:$B,$C432,raw_resource_build!$A:$A,R$396)","v":0},{"$f":"SUMIFS(raw_resource_build!$K:$K,raw_resource_build!$B:$B,$C432,raw_resource_build!$A:$A,S$396)+SUMIFS(raw_resource_build!$L:$L,raw_resource_build!$B:$B,$C432,raw_resource_build!$A:$A,S$396)","v":0},{"$f":"SUMIFS(raw_resource_build!$K:$K,raw_resource_build!$B:$B,$C432,raw_resource_build!$A:$A,T$396)+SUMIFS(raw_resource_build!$L:$L,raw_resource_build!$B:$B,$C432,raw_resource_build!$A:$A,T$396)","v":0},{"$f":"SUMIFS(raw_resource_build!$K:$K,raw_resource_build!$B:$B,$C432,raw_resource_build!$A:$A,U$396)+SUMIFS(raw_resource_build!$L:$L,raw_resource_build!$B:$B,$C432,raw_resource_build!$A:$A,U$396)","v":0},{"$f":"SUMIFS(raw_resource_build!$K:$K,raw_resource_build!$B:$B,$C432,raw_resource_build!$A:$A,V$396)+SUMIFS(raw_resource_build!$L:$L,raw_resource_build!$B:$B,$C432,raw_resource_build!$A:$A,V$396)","v":0},{"$f":"SUMIFS(raw_resource_build!$K:$K,raw_resource_build!$B:$B,$C432,raw_resource_build!$A:$A,W$396)+SUMIFS(raw_resource_build!$L:$L,raw_resource_build!$B:$B,$C432,raw_resource_build!$A:$A,W$396)","v":0},{"$f":"SUMIFS(raw_resource_build!$K:$K,raw_resource_build!$B:$B,$C432,raw_resource_build!$A:$A,X$396)+SUMIFS(raw_resource_build!$L:$L,raw_resource_build!$B:$B,$C432,raw_resource_build!$A:$A,X$396)","v":0},{"$f":"SUMIFS(raw_resource_build!$K:$K,raw_resource_build!$B:$B,$C432,raw_resource_build!$A:$A,Y$396)+SUMIFS(raw_resource_build!$L:$L,raw_resource_build!$B:$B,$C432,raw_resource_build!$A:$A,Y$396)","v":0},{"$f":"SUMIFS(raw_resource_build!$K:$K,raw_resource_build!$B:$B,$C432,raw_resource_build!$A:$A,Z$396)+SUMIFS(raw_resource_build!$L:$L,raw_resource_build!$B:$B,$C432,raw_resource_build!$A:$A,Z$396)","v":0},{"$f":"SUMIFS(raw_resource_build!$K:$K,raw_resource_build!$B:$B,$C432,raw_resource_build!$A:$A,AA$396)+SUMIFS(raw_resource_build!$L:$L,raw_resource_build!$B:$B,$C432,raw_resource_build!$A:$A,AA$396)","v":0},{"$f":"SUMIFS(raw_resource_build!$K:$K,raw_resource_build!$B:$B,$C432,raw_resource_build!$A:$A,AB$396)+SUMIFS(raw_resource_build!$L:$L,raw_resource_build!$B:$B,$C432,raw_resource_build!$A:$A,AB$396)","v":0},{"$f":"SUMIFS(raw_resource_build!$K:$K,raw_resource_build!$B:$B,$C432,raw_resource_build!$A:$A,AC$396)+SUMIFS(raw_resource_build!$L:$L,raw_resource_build!$B:$B,$C432,raw_resource_build!$A:$A,AC$396)","v":0},{"$f":"SUMIFS(raw_resource_build!$K:$K,raw_resource_build!$B:$B,$C432,raw_resource_build!$A:$A,AD$396)+SUMIFS(raw_resource_build!$L:$L,raw_resource_build!$B:$B,$C432,raw_resource_build!$A:$A,AD$396)","v":0},{"$f":"SUMIFS(raw_resource_build!$K:$K,raw_resource_build!$B:$B,$C432,raw_resource_build!$A:$A,AE$396)+SUMIFS(raw_resource_build!$L:$L,raw_resource_build!$B:$B,$C432,raw_resource_build!$A:$A,AE$396)","v":0},{"$f":"SUMIFS(raw_resource_build!$K:$K,raw_resource_build!$B:$B,$C432,raw_resource_build!$A:$A,AF$396)+SUMIFS(raw_resource_build!$L:$L,raw_resource_build!$B:$B,$C432,raw_resource_build!$A:$A,AF$396)","v":0},{"$f":"SUMIFS(raw_resource_build!$K:$K,raw_resource_build!$B:$B,$C432,raw_resource_build!$A:$A,AG$396)+SUMIFS(raw_resource_build!$L:$L,raw_resource_build!$B:$B,$C432,raw_resource_build!$A:$A,AG$396)","v":0},{"$f":"SUMIFS(raw_resource_build!$K:$K,raw_resource_build!$B:$B,$C432,raw_resource_build!$A:$A,AH$396)+SUMIFS(raw_resource_build!$L:$L,raw_resource_build!$B:$B,$C432,raw_resource_build!$A:$A,AH$396)","v":0},{"$f":"SUMIFS(raw_resource_build!$K:$K,raw_resource_build!$B:$B,$C432,raw_resource_build!$A:$A,AI$396)+SUMIFS(raw_resource_build!$L:$L,raw_resource_build!$B:$B,$C432,raw_resource_build!$A:$A,AI$396)","v":0},{"$f":"SUMIFS(raw_resource_build!$K:$K,raw_resource_build!$B:$B,$C432,raw_resource_build!$A:$A,AJ$396)+SUMIFS(raw_resource_build!$L:$L,raw_resource_build!$B:$B,$C432,raw_resource_build!$A:$A,AJ$396)","v":0},{"$f":"SUMIFS(raw_resource_build!$K:$K,raw_resource_build!$B:$B,$C432,raw_resource_build!$A:$A,AK$396)+SUMIFS(raw_resource_build!$L:$L,raw_resource_build!$B:$B,$C432,raw_resource_build!$A:$A,AK$396)","v":0},{"$f":"SUMIFS(raw_resource_build!$K:$K,raw_resource_build!$B:$B,$C432,raw_resource_build!$A:$A,AL$396)+SUMIFS(raw_resource_build!$L:$L,raw_resource_build!$B:$B,$C432,raw_resource_build!$A:$A,AL$396)","v":0},{"$f":"SUMIFS(raw_resource_build!$K:$K,raw_resource_build!$B:$B,$C432,raw_resource_build!$A:$A,AM$396)+SUMIFS(raw_resource_build!$L:$L,raw_resource_build!$B:$B,$C432,raw_resource_build!$A:$A,AM$396)","v":0},{"$f":"SUMIFS(raw_resource_build!$K:$K,raw_resource_build!$B:$B,$C432,raw_resource_build!$A:$A,AN$396)+SUMIFS(raw_resource_build!$L:$L,raw_resource_build!$B:$B,$C432,raw_resource_build!$A:$A,AN$396)","v":0}]
[null,null,{"$f":"Lists!B71","v":"Solano_Wind"},{"$f":"IF(INDEX(raw_resource_build!J:J,MATCH(C433,raw_resource_build!$B:$B,0))=0,\"N/A\",INDEX(raw_resource_build!J:J,MATCH(C433,raw_resource_build!$B:$B,0)))","v":"Solano-Sacramento_River"},{"$f":"SUMIFS(raw_resource_build!$K:$K,raw_resource_build!$B:$B,$C433,raw_resource_build!$A:$A,E$396)+SUMIFS(raw_resource_build!$L:$L,raw_resource_build!$B:$B,$C433,raw_resource_build!$A:$A,E$396)","v":0},{"$f":"SUMIFS(raw_resource_build!$K:$K,raw_resource_build!$B:$B,$C433,raw_resource_build!$A:$A,F$396)+SUMIFS(raw_resource_build!$L:$L,raw_resource_build!$B:$B,$C433,raw_resource_build!$A:$A,F$396)","v":0},{"$f":"SUMIFS(raw_resource_build!$K:$K,raw_resource_build!$B:$B,$C433,raw_resource_build!$A:$A,G$396)+SUMIFS(raw_resource_build!$L:$L,raw_resource_build!$B:$B,$C433,raw_resource_build!$A:$A,G$396)","v":0},{"$f":"SUMIFS(raw_resource_build!$K:$K,raw_resource_build!$B:$B,$C433,raw_resource_build!$A:$A,H$396)+SUMIFS(raw_resource_build!$L:$L,raw_resource_build!$B:$B,$C433,raw_resource_build!$A:$A,H$396)","v":0},{"$f":"SUMIFS(raw_resource_build!$K:$K,raw_resource_build!$B:$B,$C433,raw_resource_build!$A:$A,I$396)+SUMIFS(raw_resource_build!$L:$L,raw_resource_build!$B:$B,$C433,raw_resource_build!$A:$A,I$396)","v":0},{"$f":"SUMIFS(raw_resource_build!$K:$K,raw_resource_build!$B:$B,$C433,raw_resource_build!$A:$A,J$396)+SUMIFS(raw_resource_build!$L:$L,raw_resource_build!$B:$B,$C433,raw_resource_build!$A:$A,J$396)","v":0},{"$f":"SUMIFS(raw_resource_build!$K:$K,raw_resource_build!$B:$B,$C433,raw_resource_build!$A:$A,K$396)+SUMIFS(raw_resource_build!$L:$L,raw_resource_build!$B:$B,$C433,raw_resource_build!$A:$A,K$396)","v":0},{"$f":"SUMIFS(raw_resource_build!$K:$K,raw_resource_build!$B:$B,$C433,raw_resource_build!$A:$A,L$396)+SUMIFS(raw_resource_build!$L:$L,raw_resource_build!$B:$B,$C433,raw_resource_build!$A:$A,L$396)","v":464},{"$f":"SUMIFS(raw_resource_build!$K:$K,raw_resource_build!$B:$B,$C433,raw_resource_build!$A:$A,M$396)+SUMIFS(raw_resource_build!$L:$L,raw_resource_build!$B:$B,$C433,raw_resource_build!$A:$A,M$396)","v":464},{"$f":"SUMIFS(raw_resource_build!$K:$K,raw_resource_build!$B:$B,$C433,raw_resource_build!$A:$A,N$396)+SUMIFS(raw_resource_build!$L:$L,raw_resource_build!$B:$B,$C433,raw_resource_build!$A:$A,N$396)","v":464},{"$f":"SUMIFS(raw_resource_build!$K:$K,raw_resource_build!$B:$B,$C433,raw_resource_build!$A:$A,O$396)+SUMIFS(raw_resource_build!$L:$L,raw_resource_build!$B:$B,$C433,raw_resource_build!$A:$A,O$396)","v":0},{"$f":"SUMIFS(raw_resource_build!$K:$K,raw_resource_build!$B:$B,$C433,raw_resource_build!$A:$A,P$396)+SUMIFS(raw_resource_build!$L:$L,raw_resource_build!$B:$B,$C433,raw_resource_build!$A:$A,P$396)","v":464},{"$f":"SUMIFS(raw_resource_build!$K:$K,raw_resource_build!$B:$B,$C433,raw_resource_build!$A:$A,Q$396)+SUMIFS(raw_resource_build!$L:$L,raw_resource_build!$B:$B,$C433,raw_resource_build!$A:$A,Q$396)","v":0},{"$f":"SUMIFS(raw_resource_build!$K:$K,raw_resource_build!$B:$B,$C433,raw_resource_build!$A:$A,R$396)+SUMIFS(raw_resource_build!$L:$L,raw_resource_build!$B:$B,$C433,raw_resource_build!$A:$A,R$396)","v":0},{"$f":"SUMIFS(raw_resource_build!$K:$K,raw_resource_build!$B:$B,$C433,raw_resource_build!$A:$A,S$396)+SUMIFS(raw_resource_build!$L:$L,raw_resource_build!$B:$B,$C433,raw_resource_build!$A:$A,S$396)","v":0},{"$f":"SUMIFS(raw_resource_build!$K:$K,raw_resource_build!$B:$B,$C433,raw_resource_build!$A:$A,T$396)+SUMIFS(raw_resource_build!$L:$L,raw_resource_build!$B:$B,$C433,raw_resource_build!$A:$A,T$396)","v":464},{"$f":"SUMIFS(raw_resource_build!$K:$K,raw_resource_build!$B:$B,$C433,raw_resource_build!$A:$A,U$396)+SUMIFS(raw_resource_build!$L:$L,raw_resource_build!$B:$B,$C433,raw_resource_build!$A:$A,U$396)","v":0},{"$f":"SUMIFS(raw_resource_build!$K:$K,raw_resource_build!$B:$B,$C433,raw_resource_build!$A:$A,V$396)+SUMIFS(raw_resource_build!$L:$L,raw_resource_build!$B:$B,$C433,raw_resource_build!$A:$A,V$396)","v":0},{"$f":"SUMIFS(raw_resource_build!$K:$K,raw_resource_build!$B:$B,$C433,raw_resource_build!$A:$A,W$396)+SUMIFS(raw_resource_build!$L:$L,raw_resource_build!$B:$B,$C433,raw_resource_build!$A:$A,W$396)","v":0},{"$f":"SUMIFS(raw_resource_build!$K:$K,raw_resource_build!$B:$B,$C433,raw_resource_build!$A:$A,X$396)+SUMIFS(raw_resource_build!$L:$L,raw_resource_build!$B:$B,$C433,raw_resource_build!$A:$A,X$396)","v":0},{"$f":"SUMIFS(raw_resource_build!$K:$K,raw_resource_build!$B:$B,$C433,raw_resource_build!$A:$A,Y$396)+SUMIFS(raw_resource_build!$L:$L,raw_resource_build!$B:$B,$C433,raw_resource_build!$A:$A,Y$396)","v":0},{"$f":"SUMIFS(raw_resource_build!$K:$K,raw_resource_build!$B:$B,$C433,raw_resource_build!$A:$A,Z$396)+SUMIFS(raw_resource_build!$L:$L,raw_resource_build!$B:$B,$C433,raw_resource_build!$A:$A,Z$396)","v":0},{"$f":"SUMIFS(raw_resource_build!$K:$K,raw_resource_build!$B:$B,$C433,raw_resource_build!$A:$A,AA$396)+SUMIFS(raw_resource_build!$L:$L,raw_resource_build!$B:$B,$C433,raw_resource_build!$A:$A,AA$396)","v":0},{"$f":"SUMIFS(raw_resource_build!$K:$K,raw_resource_build!$B:$B,$C433,raw_resource_build!$A:$A,AB$396)+SUMIFS(raw_resource_build!$L:$L,raw_resource_build!$B:$B,$C433,raw_resource_build!$A:$A,AB$396)","v":0},{"$f":"SUMIFS(raw_resource_build!$K:$K,raw_resource_build!$B:$B,$C433,raw_resource_build!$A:$A,AC$396)+SUMIFS(raw_resource_build!$L:$L,raw_resource_build!$B:$B,$C433,raw_resource_build!$A:$A,AC$396)","v":0},{"$f":"SUMIFS(raw_resource_build!$K:$K,raw_resource_build!$B:$B,$C433,raw_resource_build!$A:$A,AD$396)+SUMIFS(raw_resource_build!$L:$L,raw_resource_build!$B:$B,$C433,raw_resource_build!$A:$A,AD$396)","v":0},{"$f":"SUMIFS(raw_resource_build!$K:$K,raw_resource_build!$B:$B,$C433,raw_resource_build!$A:$A,AE$396)+SUMIFS(raw_resource_build!$L:$L,raw_resource_build!$B:$B,$C433,raw_resource_build!$A:$A,AE$396)","v":0},{"$f":"SUMIFS(raw_resource_build!$K:$K,raw_resource_build!$B:$B,$C433,raw_resource_build!$A:$A,AF$396)+SUMIFS(raw_resource_build!$L:$L,raw_resource_build!$B:$B,$C433,raw_resource_build!$A:$A,AF$396)","v":0},{"$f":"SUMIFS(raw_resource_build!$K:$K,raw_resource_build!$B:$B,$C433,raw_resource_build!$A:$A,AG$396)+SUMIFS(raw_resource_build!$L:$L,raw_resource_build!$B:$B,$C433,raw_resource_build!$A:$A,AG$396)","v":0},{"$f":"SUMIFS(raw_resource_build!$K:$K,raw_resource_build!$B:$B,$C433,raw_resource_build!$A:$A,AH$396)+SUMIFS(raw_resource_build!$L:$L,raw_resource_build!$B:$B,$C433,raw_resource_build!$A:$A,AH$396)","v":0},{"$f":"SUMIFS(raw_resource_build!$K:$K,raw_resource_build!$B:$B,$C433,raw_resource_build!$A:$A,AI$396)+SUMIFS(raw_resource_build!$L:$L,raw_resource_build!$B:$B,$C433,raw_resource_build!$A:$A,AI$396)","v":464},{"$f":"SUMIFS(raw_resource_build!$K:$K,raw_resource_build!$B:$B,$C433,raw_resource_build!$A:$A,AJ$396)+SUMIFS(raw_resource_build!$L:$L,raw_resource_build!$B:$B,$C433,raw_resource_build!$A:$A,AJ$396)","v":0},{"$f":"SUMIFS(raw_resource_build!$K:$K,raw_resource_build!$B:$B,$C433,raw_resource_build!$A:$A,AK$396)+SUMIFS(raw_resource_build!$L:$L,raw_resource_build!$B:$B,$C433,raw_resource_build!$A:$A,AK$396)","v":0},{"$f":"SUMIFS(raw_resource_build!$K:$K,raw_resource_build!$B:$B,$C433,raw_resource_build!$A:$A,AL$396)+SUMIFS(raw_resource_build!$L:$L,raw_resource_build!$B:$B,$C433,raw_resource_build!$A:$A,AL$396)","v":0},{"$f":"SUMIFS(raw_resource_build!$K:$K,raw_resource_build!$B:$B,$C433,raw_resource_build!$A:$A,AM$396)+SUMIFS(raw_resource_build!$L:$L,raw_resource_build!$B:$B,$C433,raw_resource_build!$A:$A,AM$396)","v":0},{"$f":"SUMIFS(raw_resource_build!$K:$K,raw_resource_build!$B:$B,$C433,raw_resource_build!$A:$A,AN$396)+SUMIFS(raw_resource_build!$L:$L,raw_resource_build!$B:$B,$C433,raw_resource_build!$A:$A,AN$396)","v":0}]
[null,null,{"$f":"Lists!B72","v":"Southern_California_Desert_Ex_Solar"},{"$f":"IF(INDEX(raw_resource_build!J:J,MATCH(C434,raw_resource_build!$B:$B,0))=0,\"N/A\",INDEX(raw_resource_build!J:J,MATCH(C434,raw_resource_build!$B:$B,0)))","v":"Southern_California_Desert_Ex"},{"$f":"SUMIFS(raw_resource_build!$K:$K,raw_resource_build!$B:$B,$C434,raw_resource_build!$A:$A,E$396)+SUMIFS(raw_resource_build!$L:$L,raw_resource_build!$B:$B,$C434,raw_resource_build!$A:$A,E$396)","v":0},{"$f":"SUMIFS(raw_resource_build!$K:$K,raw_resource_build!$B:$B,$C434,raw_resource_build!$A:$A,F$396)+SUMIFS(raw_resource_build!$L:$L,raw_resource_build!$B:$B,$C434,raw_resource_build!$A:$A,F$396)","v":0},{"$f":"SUMIFS(raw_resource_build!$K:$K,raw_resource_build!$B:$B,$C434,raw_resource_build!$A:$A,G$396)+SUMIFS(raw_resource_build!$L:$L,raw_resource_build!$B:$B,$C434,raw_resource_build!$A:$A,G$396)","v":0},{"$f":"SUMIFS(raw_resource_build!$K:$K,raw_resource_build!$B:$B,$C434,raw_resource_build!$A:$A,H$396)+SUMIFS(raw_resource_build!$L:$L,raw_resource_build!$B:$B,$C434,raw_resource_build!$A:$A,H$396)","v":0},{"$f":"SUMIFS(raw_resource_build!$K:$K,raw_resource_build!$B:$B,$C434,raw_resource_build!$A:$A,I$396)+SUMIFS(raw_resource_build!$L:$L,raw_resource_build!$B:$B,$C434,raw_resource_build!$A:$A,I$396)","v":0},{"$f":"SUMIFS(raw_resource_build!$K:$K,raw_resource_build!$B:$B,$C434,raw_resource_build!$A:$A,J$396)+SUMIFS(raw_resource_build!$L:$L,raw_resource_build!$B:$B,$C434,raw_resource_build!$A:$A,J$396)","v":0},{"$f":"SUMIFS(raw_resource_build!$K:$K,raw_resource_build!$B:$B,$C434,raw_resource_build!$A:$A,K$396)+SUMIFS(raw_resource_build!$L:$L,raw_resource_build!$B:$B,$C434,raw_resource_build!$A:$A,K$396)","v":0},{"$f":"SUMIFS(raw_resource_build!$K:$K,raw_resource_build!$B:$B,$C434,raw_resource_build!$A:$A,L$396)+SUMIFS(raw_resource_build!$L:$L,raw_resource_build!$B:$B,$C434,raw_resource_build!$A:$A,L$396)","v":862},{"$f":"SUMIFS(raw_resource_build!$K:$K,raw_resource_build!$B:$B,$C434,raw_resource_build!$A:$A,M$396)+SUMIFS(raw_resource_build!$L:$L,raw_resource_build!$B:$B,$C434,raw_resource_build!$A:$A,M$396)","v":862},{"$f":"SUMIFS(raw_resource_build!$K:$K,raw_resource_build!$B:$B,$C434,raw_resource_build!$A:$A,N$396)+SUMIFS(raw_resource_build!$L:$L,raw_resource_build!$B:$B,$C434,raw_resource_build!$A:$A,N$396)","v":862},{"$f":"SUMIFS(raw_resource_build!$K:$K,raw_resource_build!$B:$B,$C434,raw_resource_build!$A:$A,O$396)+SUMIFS(raw_resource_build!$L:$L,raw_resource_build!$B:$B,$C434,raw_resource_build!$A:$A,O$396)","v":0},{"$f":"SUMIFS(raw_resource_build!$K:$K,raw_resource_build!$B:$B,$C434,raw_resource_build!$A:$A,P$396)+SUMIFS(raw_resource_build!$L:$L,raw_resource_build!$B:$B,$C434,raw_resource_build!$A:$A,P$396)","v":862},{"$f":"SUMIFS(raw_resource_build!$K:$K,raw_resource_build!$B:$B,$C434,raw_resource_build!$A:$A,Q$396)+SUMIFS(raw_resource_build!$L:$L,raw_resource_build!$B:$B,$C434,raw_resource_build!$A:$A,Q$396)","v":0},{"$f":"SUMIFS(raw_resource_build!$K:$K,raw_resource_build!$B:$B,$C434,raw_resource_build!$A:$A,R$396)+SUMIFS(raw_resource_build!$L:$L,raw_resource_build!$B:$B,$C434,raw_resource_build!$A:$A,R$396)","v":0},{"$f":"SUMIFS(raw_resource_build!$K:$K,raw_resource_build!$B:$B,$C434,raw_resource_build!$A:$A,S$396)+SUMIFS(raw_resource_build!$L:$L,raw_resource_build!$B:$B,$C434,raw_resource_build!$A:$A,S$396)","v":0},{"$f":"SUMIFS(raw_resource_build!$K:$K,raw_resource_build!$B:$B,$C434,raw_resource_build!$A:$A,T$396)+SUMIFS(raw_resource_build!$L:$L,raw_resource_build!$B:$B,$C434,raw_resource_build!$A:$A,T$396)","v":862},{"$f":"SUMIFS(raw_resource_build!$K:$K,raw_resource_build!$B:$B,$C434,raw_resource_build!$A:$A,U$396)+SUMIFS(raw_resource_build!$L:$L,raw_resource_build!$B:$B,$C434,raw_resource_build!$A:$A,U$396)","v":0},{"$f":"SUMIFS(raw_resource_build!$K:$K,raw_resource_build!$B:$B,$C434,raw_resource_build!$A:$A,V$396)+SUMIFS(raw_resource_build!$L:$L,raw_resource_build!$B:$B,$C434,raw_resource_build!$A:$A,V$396)","v":0},{"$f":"SUMIFS(raw_resource_build!$K:$K,raw_resource_build!$B:$B,$C434,raw_resource_build!$A:$A,W$396)+SUMIFS(raw_resource_build!$L:$L,raw_resource_build!$B:$B,$C434,raw_resource_build!$A:$A,W$396)","v":0},{"$f":"SUMIFS(raw_resource_build!$K:$K,raw_resource_build!$B:$B,$C434,raw_resource_build!$A:$A,X$396)+SUMIFS(raw_resource_build!$L:$L,raw_resource_build!$B:$B,$C434,raw_resource_build!$A:$A,X$396)","v":0},{"$f":"SUMIFS(raw_resource_build!$K:$K,raw_resource_build!$B:$B,$C434,raw_resource_build!$A:$A,Y$396)+SUMIFS(raw_resource_build!$L:$L,raw_resource_build!$B:$B,$C434,raw_resource_build!$A:$A,Y$396)","v":0},{"$f":"SUMIFS(raw_resource_build!$K:$K,raw_resource_build!$B:$B,$C434,raw_resource_build!$A:$A,Z$396)+SUMIFS(raw_resource_build!$L:$L,raw_resource_build!$B:$B,$C434,raw_resource_build!$A:$A,Z$396)","v":0},{"$f":"SUMIFS(raw_resource_build!$K:$K,raw_resource_build!$B:$B,$C434,raw_resource_build!$A:$A,AA$396)+SUMIFS(raw_resource_build!$L:$L,raw_resource_build!$B:$B,$C434,raw_resource_build!$A:$A,AA$396)","v":0},{"$f":"SUMIFS(raw_resource_build!$K:$K,raw_resource_build!$B:$B,$C434,raw_resource_build!$A:$A,AB$396)+SUMIFS(raw_resource_build!$L:$L,raw_resource_build!$B:$B,$C434,raw_resource_build!$A:$A,AB$396)","v":0},{"$f":"SUMIFS(raw_resource_build!$K:$K,raw_resource_build!$B:$B,$C434,raw_resource_build!$A:$A,AC$396)+SUMIFS(raw_resource_build!$L:$L,raw_resource_build!$B:$B,$C434,raw_resource_build!$A:$A,AC$396)","v":0},{"$f":"SUMIFS(raw_resource_build!$K:$K,raw_resource_build!$B:$B,$C434,raw_resource_build!$A:$A,AD$396)+SUMIFS(raw_resource_build!$L:$L,raw_resource_build!$B:$B,$C434,raw_resource_build!$A:$A,AD$396)","v":0},{"$f":"SUMIFS(raw_resource_build!$K:$K,raw_resource_build!$B:$B,$C434,raw_resource_build!$A:$A,AE$396)+SUMIFS(raw_resource_build!$L:$L,raw_resource_build!$B:$B,$C434,raw_resource_build!$A:$A,AE$396)","v":0},{"$f":"SUMIFS(raw_resource_build!$K:$K,raw_resource_build!$B:$B,$C434,raw_resource_build!$A:$A,AF$396)+SUMIFS(raw_resource_build!$L:$L,raw_resource_build!$B:$B,$C434,raw_resource_build!$A:$A,AF$396)","v":0},{"$f":"SUMIFS(raw_resource_build!$K:$K,raw_resource_build!$B:$B,$C434,raw_resource_build!$A:$A,AG$396)+SUMIFS(raw_resource_build!$L:$L,raw_resource_build!$B:$B,$C434,raw_resource_build!$A:$A,AG$396)","v":0},{"$f":"SUMIFS(raw_resource_build!$K:$K,raw_resource_build!$B:$B,$C434,raw_resource_build!$A:$A,AH$396)+SUMIFS(raw_resource_build!$L:$L,raw_resource_build!$B:$B,$C434,raw_resource_build!$A:$A,AH$396)","v":0},{"$f":"SUMIFS(raw_resource_build!$K:$K,raw_resource_build!$B:$B,$C434,raw_resource_build!$A:$A,AI$396)+SUMIFS(raw_resource_build!$L:$L,raw_resource_build!$B:$B,$C434,raw_resource_build!$A:$A,AI$396)","v":862},{"$f":"SUMIFS(raw_resource_build!$K:$K,raw_resource_build!$B:$B,$C434,raw_resource_build!$A:$A,AJ$396)+SUMIFS(raw_resource_build!$L:$L,raw_resource_build!$B:$B,$C434,raw_resource_build!$A:$A,AJ$396)","v":0},{"$f":"SUMIFS(raw_resource_build!$K:$K,raw_resource_build!$B:$B,$C434,raw_resource_build!$A:$A,AK$396)+SUMIFS(raw_resource_build!$L:$L,raw_resource_build!$B:$B,$C434,raw_resource_build!$A:$A,AK$396)","v":0},{"$f":"SUMIFS(raw_resource_build!$K:$K,raw_resource_build!$B:$B,$C434,raw_resource_build!$A:$A,AL$396)+SUMIFS(raw_resource_build!$L:$L,raw_resource_build!$B:$B,$C434,raw_resource_build!$A:$A,AL$396)","v":0},{"$f":"SUMIFS(raw_resource_build!$K:$K,raw_resource_build!$B:$B,$C434,raw_resource_build!$A:$A,AM$396)+SUMIFS(raw_resource_build!$L:$L,raw_resource_build!$B:$B,$C434,raw_resource_build!$A:$A,AM$396)","v":0},{"$f":"SUMIFS(raw_resource_build!$K:$K,raw_resource_build!$B:$B,$C434,raw_resource_build!$A:$A,AN$396)+SUMIFS(raw_resource_build!$L:$L,raw_resource_build!$B:$B,$C434,raw_resource_build!$A:$A,AN$396)","v":0}]
[null,null,{"$f":"Lists!B73","v":"Southern_California_Desert_Ex_Wind"},{"$f":"IF(INDEX(raw_resource_build!J:J,MATCH(C435,raw_resource_build!$B:$B,0))=0,\"N/A\",INDEX(raw_resource_build!J:J,MATCH(C435,raw_resource_build!$B:$B,0)))","v":"Southern_California_Desert_Ex"},{"$f":"SUMIFS(raw_resource_build!$K:$K,raw_resource_build!$B:$B,$C435,raw_resource_build!$A:$A,E$396)+SUMIFS(raw_resource_build!$L:$L,raw_resource_build!$B:$B,$C435,raw_resource_build!$A:$A,E$396)","v":0},{"$f":"SUMIFS(raw_resource_build!$K:$K,raw_resource_build!$B:$B,$C435,raw_resource_build!$A:$A,F$396)+SUMIFS(raw_resource_build!$L:$L,raw_resource_build!$B:$B,$C435,raw_resource_build!$A:$A,F$396)","v":0},{"$f":"SUMIFS(raw_resource_build!$K:$K,raw_resource_build!$B:$B,$C435,raw_resource_build!$A:$A,G$396)+SUMIFS(raw_resource_build!$L:$L,raw_resource_build!$B:$B,$C435,raw_resource_build!$A:$A,G$396)","v":0},{"$f":"SUMIFS(raw_resource_build!$K:$K,raw_resource_build!$B:$B,$C435,raw_resource_build!$A:$A,H$396)+SUMIFS(raw_resource_build!$L:$L,raw_resource_build!$B:$B,$C435,raw_resource_build!$A:$A,H$396)","v":0},{"$f":"SUMIFS(raw_resource_build!$K:$K,raw_resource_build!$B:$B,$C435,raw_resource_build!$A:$A,I$396)+SUMIFS(raw_resource_build!$L:$L,raw_resource_build!$B:$B,$C435,raw_resource_build!$A:$A,I$396)","v":0},{"$f":"SUMIFS(raw_resource_build!$K:$K,raw_resource_build!$B:$B,$C435,raw_resource_build!$A:$A,J$396)+SUMIFS(raw_resource_build!$L:$L,raw_resource_build!$B:$B,$C435,raw_resource_build!$A:$A,J$396)","v":0},{"$f":"SUMIFS(raw_resource_build!$K:$K,raw_resource_build!$B:$B,$C435,raw_resource_build!$A:$A,K$396)+SUMIFS(raw_resource_build!$L:$L,raw_resource_build!$B:$B,$C435,raw_resource_build!$A:$A,K$396)","v":0},{"$f":"SUMIFS(raw_resource_build!$K:$K,raw_resource_build!$B:$B,$C435,raw_resource_build!$A:$A,L$396)+SUMIFS(raw_resource_build!$L:$L,raw_resource_build!$B:$B,$C435,raw_resource_build!$A:$A,L$396)","v":0},{"$f":"SUMIFS(raw_resource_build!$K:$K,raw_resource_build!$B:$B,$C435,raw_resource_build!$A:$A,M$396)+SUMIFS(raw_resource_build!$L:$L,raw_resource_build!$B:$B,$C435,raw_resource_build!$A:$A,M$396)","v":0},{"$f":"SUMIFS(raw_resource_build!$K:$K,raw_resource_build!$B:$B,$C435,raw_resource_build!$A:$A,N$396)+SUMIFS(raw_resource_build!$L:$L,raw_resource_build!$B:$B,$C435,raw_resource_build!$A:$A,N$396)","v":0},{"$f":"SUMIFS(raw_resource_build!$K:$K,raw_resource_build!$B:$B,$C435,raw_resource_build!$A:$A,O$396)+SUMIFS(raw_resource_build!$L:$L,raw_resource_build!$B:$B,$C435,raw_resource_build!$A:$A,O$396)","v":0},{"$f":"SUMIFS(raw_resource_build!$K:$K,raw_resource_build!$B:$B,$C435,raw_resource_build!$A:$A,P$396)+SUMIFS(raw_resource_build!$L:$L,raw_resource_build!$B:$B,$C435,raw_resource_build!$A:$A,P$396)","v":0},{"$f":"SUMIFS(raw_resource_build!$K:$K,raw_resource_build!$B:$B,$C435,raw_resource_build!$A:$A,Q$396)+SUMIFS(raw_resource_build!$L:$L,raw_resource_build!$B:$B,$C435,raw_resource_build!$A:$A,Q$396)","v":0},{"$f":"SUMIFS(raw_resource_build!$K:$K,raw_resource_build!$B:$B,$C435,raw_resource_build!$A:$A,R$396)+SUMIFS(raw_resource_build!$L:$L,raw_resource_build!$B:$B,$C435,raw_resource_build!$A:$A,R$396)","v":0},{"$f":"SUMIFS(raw_resource_build!$K:$K,raw_resource_build!$B:$B,$C435,raw_resource_build!$A:$A,S$396)+SUMIFS(raw_resource_build!$L:$L,raw_resource_build!$B:$B,$C435,raw_resource_build!$A:$A,S$396)","v":0},{"$f":"SUMIFS(raw_resource_build!$K:$K,raw_resource_build!$B:$B,$C435,raw_resource_build!$A:$A,T$396)+SUMIFS(raw_resource_build!$L:$L,raw_resource_build!$B:$B,$C435,raw_resource_build!$A:$A,T$396)","v":0},{"$f":"SUMIFS(raw_resource_build!$K:$K,raw_resource_build!$B:$B,$C435,raw_resource_build!$A:$A,U$396)+SUMIFS(raw_resource_build!$L:$L,raw_resource_build!$B:$B,$C435,raw_resource_build!$A:$A,U$396)","v":0},{"$f":"SUMIFS(raw_resource_build!$K:$K,raw_resource_build!$B:$B,$C435,raw_resource_build!$A:$A,V$396)+SUMIFS(raw_resource_build!$L:$L,raw_resource_build!$B:$B,$C435,raw_resource_build!$A:$A,V$396)","v":0},{"$f":"SUMIFS(raw_resource_build!$K:$K,raw_resource_build!$B:$B,$C435,raw_resource_build!$A:$A,W$396)+SUMIFS(raw_resource_build!$L:$L,raw_resource_build!$B:$B,$C435,raw_resource_build!$A:$A,W$396)","v":0},{"$f":"SUMIFS(raw_resource_build!$K:$K,raw_resource_build!$B:$B,$C435,raw_resource_build!$A:$A,X$396)+SUMIFS(raw_resource_build!$L:$L,raw_resource_build!$B:$B,$C435,raw_resource_build!$A:$A,X$396)","v":0},{"$f":"SUMIFS(raw_resource_build!$K:$K,raw_resource_build!$B:$B,$C435,raw_resource_build!$A:$A,Y$396)+SUMIFS(raw_resource_build!$L:$L,raw_resource_build!$B:$B,$C435,raw_resource_build!$A:$A,Y$396)","v":0},{"$f":"SUMIFS(raw_resource_build!$K:$K,raw_resource_build!$B:$B,$C435,raw_resource_build!$A:$A,Z$396)+SUMIFS(raw_resource_build!$L:$L,raw_resource_build!$B:$B,$C435,raw_resource_build!$A:$A,Z$396)","v":0},{"$f":"SUMIFS(raw_resource_build!$K:$K,raw_resource_build!$B:$B,$C435,raw_resource_build!$A:$A,AA$396)+SUMIFS(raw_resource_build!$L:$L,raw_resource_build!$B:$B,$C435,raw_resource_build!$A:$A,AA$396)","v":0},{"$f":"SUMIFS(raw_resource_build!$K:$K,raw_resource_build!$B:$B,$C435,raw_resource_build!$A:$A,AB$396)+SUMIFS(raw_resource_build!$L:$L,raw_resource_build!$B:$B,$C435,raw_resource_build!$A:$A,AB$396)","v":0},{"$f":"SUMIFS(raw_resource_build!$K:$K,raw_resource_build!$B:$B,$C435,raw_resource_build!$A:$A,AC$396)+SUMIFS(raw_resource_build!$L:$L,raw_resource_build!$B:$B,$C435,raw_resource_build!$A:$A,AC$396)","v":0},{"$f":"SUMIFS(raw_resource_build!$K:$K,raw_resource_build!$B:$B,$C435,raw_resource_build!$A:$A,AD$396)+SUMIFS(raw_resource_build!$L:$L,raw_resource_build!$B:$B,$C435,raw_resource_build!$A:$A,AD$396)","v":0},{"$f":"SUMIFS(raw_resource_build!$K:$K,raw_resource_build!$B:$B,$C435,raw_resource_build!$A:$A,AE$396)+SUMIFS(raw_resource_build!$L:$L,raw_resource_build!$B:$B,$C435,raw_resource_build!$A:$A,AE$396)","v":0},{"$f":"SUMIFS(raw_resource_build!$K:$K,raw_resource_build!$B:$B,$C435,raw_resource_build!$A:$A,AF$396)+SUMIFS(raw_resource_build!$L:$L,raw_resource_build!$B:$B,$C435,raw_resource_build!$A:$A,AF$396)","v":0},{"$f":"SUMIFS(raw_resource_build!$K:$K,raw_resource_build!$B:$B,$C435,raw_resource_build!$A:$A,AG$396)+SUMIFS(raw_resource_build!$L:$L,raw_resource_build!$B:$B,$C435,raw_resource_build!$A:$A,AG$396)","v":0},{"$f":"SUMIFS(raw_resource_build!$K:$K,raw_resource_build!$B:$B,$C435,raw_resource_build!$A:$A,AH$396)+SUMIFS(raw_resource_build!$L:$L,raw_resource_build!$B:$B,$C435,raw_resource_build!$A:$A,AH$396)","v":0},{"$f":"SUMIFS(raw_resource_build!$K:$K,raw_resource_build!$B:$B,$C435,raw_resource_build!$A:$A,AI$396)+SUMIFS(raw_resource_build!$L:$L,raw_resource_build!$B:$B,$C435,raw_resource_build!$A:$A,AI$396)","v":0},{"$f":"SUMIFS(raw_resource_build!$K:$K,raw_resource_build!$B:$B,$C435,raw_resource_build!$A:$A,AJ$396)+SUMIFS(raw_resource_build!$L:$L,raw_resource_build!$B:$B,$C435,raw_resource_build!$A:$A,AJ$396)","v":0},{"$f":"SUMIFS(raw_resource_build!$K:$K,raw_resource_build!$B:$B,$C435,raw_resource_build!$A:$A,AK$396)+SUMIFS(raw_resource_build!$L:$L,raw_resource_build!$B:$B,$C435,raw_resource_build!$A:$A,AK$396)","v":0},{"$f":"SUMIFS(raw_resource_build!$K:$K,raw_resource_build!$B:$B,$C435,raw_resource_build!$A:$A,AL$396)+SUMIFS(raw_resource_build!$L:$L,raw_resource_build!$B:$B,$C435,raw_resource_build!$A:$A,AL$396)","v":0},{"$f":"SUMIFS(raw_resource_build!$K:$K,raw_resource_build!$B:$B,$C435,raw_resource_build!$A:$A,AM$396)+SUMIFS(raw_resource_build!$L:$L,raw_resource_build!$B:$B,$C435,raw_resource_build!$A:$A,AM$396)","v":0},{"$f":"SUMIFS(raw_resource_build!$K:$K,raw_resource_build!$B:$B,$C435,raw_resource_build!$A:$A,AN$396)+SUMIFS(raw_resource_build!$L:$L,raw_resource_build!$B:$B,$C435,raw_resource_build!$A:$A,AN$396)","v":0}]
[null,null,{"$f":"Lists!B74","v":"Southern_Nevada_Solar"},{"$f":"IF(INDEX(raw_resource_build!J:J,MATCH(C436,raw_resource_build!$B:$B,0))=0,\"N/A\",INDEX(raw_resource_build!J:J,MATCH(C436,raw_resource_build!$B:$B,0)))","v":"SCADSNV-GLW_VEA"},{"$f":"SUMIFS(raw_resource_build!$K:$K,raw_resource_build!$B:$B,$C436,raw_resource_build!$A:$A,E$396)+SUMIFS(raw_resource_build!$L:$L,raw_resource_build!$B:$B,$C436,raw_resource_build!$A:$A,E$396)","v":0},{"$f":"SUMIFS(raw_resource_build!$K:$K,raw_resource_build!$B:$B,$C436,raw_resource_build!$A:$A,F$396)+SUMIFS(raw_resource_build!$L:$L,raw_resource_build!$B:$B,$C436,raw_resource_build!$A:$A,F$396)","v":0},{"$f":"SUMIFS(raw_resource_build!$K:$K,raw_resource_build!$B:$B,$C436,raw_resource_build!$A:$A,G$396)+SUMIFS(raw_resource_build!$L:$L,raw_resource_build!$B:$B,$C436,raw_resource_build!$A:$A,G$396)","v":0},{"$f":"SUMIFS(raw_resource_build!$K:$K,raw_resource_build!$B:$B,$C436,raw_resource_build!$A:$A,H$396)+SUMIFS(raw_resource_build!$L:$L,raw_resource_build!$B:$B,$C436,raw_resource_build!$A:$A,H$396)","v":0},{"$f":"SUMIFS(raw_resource_build!$K:$K,raw_resource_build!$B:$B,$C436,raw_resource_build!$A:$A,I$396)+SUMIFS(raw_resource_build!$L:$L,raw_resource_build!$B:$B,$C436,raw_resource_build!$A:$A,I$396)","v":0},{"$f":"SUMIFS(raw_resource_build!$K:$K,raw_resource_build!$B:$B,$C436,raw_resource_build!$A:$A,J$396)+SUMIFS(raw_resource_build!$L:$L,raw_resource_build!$B:$B,$C436,raw_resource_build!$A:$A,J$396)","v":0},{"$f":"SUMIFS(raw_resource_build!$K:$K,raw_resource_build!$B:$B,$C436,raw_resource_build!$A:$A,K$396)+SUMIFS(raw_resource_build!$L:$L,raw_resource_build!$B:$B,$C436,raw_resource_build!$A:$A,K$396)","v":0},{"$f":"SUMIFS(raw_resource_build!$K:$K,raw_resource_build!$B:$B,$C436,raw_resource_build!$A:$A,L$396)+SUMIFS(raw_resource_build!$L:$L,raw_resource_build!$B:$B,$C436,raw_resource_build!$A:$A,L$396)","v":0},{"$f":"SUMIFS(raw_resource_build!$K:$K,raw_resource_build!$B:$B,$C436,raw_resource_build!$A:$A,M$396)+SUMIFS(raw_resource_build!$L:$L,raw_resource_build!$B:$B,$C436,raw_resource_build!$A:$A,M$396)","v":0},{"$f":"SUMIFS(raw_resource_build!$K:$K,raw_resource_build!$B:$B,$C436,raw_resource_build!$A:$A,N$396)+SUMIFS(raw_resource_build!$L:$L,raw_resource_build!$B:$B,$C436,raw_resource_build!$A:$A,N$396)","v":0},{"$f":"SUMIFS(raw_resource_build!$K:$K,raw_resource_build!$B:$B,$C436,raw_resource_build!$A:$A,O$396)+SUMIFS(raw_resource_build!$L:$L,raw_resource_build!$B:$B,$C436,raw_resource_build!$A:$A,O$396)","v":0},{"$f":"SUMIFS(raw_resource_build!$K:$K,raw_resource_build!$B:$B,$C436,raw_resource_build!$A:$A,P$396)+SUMIFS(raw_resource_build!$L:$L,raw_resource_build!$B:$B,$C436,raw_resource_build!$A:$A,P$396)","v":0},{"$f":"SUMIFS(raw_resource_build!$K:$K,raw_resource_build!$B:$B,$C436,raw_resource_build!$A:$A,Q$396)+SUMIFS(raw_resource_build!$L:$L,raw_resource_build!$B:$B,$C436,raw_resource_build!$A:$A,Q$396)","v":0},{"$f":"SUMIFS(raw_resource_build!$K:$K,raw_resource_build!$B:$B,$C436,raw_resource_build!$A:$A,R$396)+SUMIFS(raw_resource_build!$L:$L,raw_resource_build!$B:$B,$C436,raw_resource_build!$A:$A,R$396)","v":0},{"$f":"SUMIFS(raw_resource_build!$K:$K,raw_resource_build!$B:$B,$C436,raw_resource_build!$A:$A,S$396)+SUMIFS(raw_resource_build!$L:$L,raw_resource_build!$B:$B,$C436,raw_resource_build!$A:$A,S$396)","v":0},{"$f":"SUMIFS(raw_resource_build!$K:$K,raw_resource_build!$B:$B,$C436,raw_resource_build!$A:$A,T$396)+SUMIFS(raw_resource_build!$L:$L,raw_resource_build!$B:$B,$C436,raw_resource_build!$A:$A,T$396)","v":0},{"$f":"SUMIFS(raw_resource_build!$K:$K,raw_resource_build!$B:$B,$C436,raw_resource_build!$A:$A,U$396)+SUMIFS(raw_resource_build!$L:$L,raw_resource_build!$B:$B,$C436,raw_resource_build!$A:$A,U$396)","v":0},{"$f":"SUMIFS(raw_resource_build!$K:$K,raw_resource_build!$B:$B,$C436,raw_resource_build!$A:$A,V$396)+SUMIFS(raw_resource_build!$L:$L,raw_resource_build!$B:$B,$C436,raw_resource_build!$A:$A,V$396)","v":0},{"$f":"SUMIFS(raw_resource_build!$K:$K,raw_resource_build!$B:$B,$C436,raw_resource_build!$A:$A,W$396)+SUMIFS(raw_resource_build!$L:$L,raw_resource_build!$B:$B,$C436,raw_resource_build!$A:$A,W$396)","v":0},{"$f":"SUMIFS(raw_resource_build!$K:$K,raw_resource_build!$B:$B,$C436,raw_resource_build!$A:$A,X$396)+SUMIFS(raw_resource_build!$L:$L,raw_resource_build!$B:$B,$C436,raw_resource_build!$A:$A,X$396)","v":0},{"$f":"SUMIFS(raw_resource_build!$K:$K,raw_resource_build!$B:$B,$C436,raw_resource_build!$A:$A,Y$396)+SUMIFS(raw_resource_build!$L:$L,raw_resource_build!$B:$B,$C436,raw_resource_build!$A:$A,Y$396)","v":0},{"$f":"SUMIFS(raw_resource_build!$K:$K,raw_resource_build!$B:$B,$C436,raw_resource_build!$A:$A,Z$396)+SUMIFS(raw_resource_build!$L:$L,raw_resource_build!$B:$B,$C436,raw_resource_build!$A:$A,Z$396)","v":0},{"$f":"SUMIFS(raw_resource_build!$K:$K,raw_resource_build!$B:$B,$C436,raw_resource_build!$A:$A,AA$396)+SUMIFS(raw_resource_build!$L:$L,raw_resource_build!$B:$B,$C436,raw_resource_build!$A:$A,AA$396)","v":0},{"$f":"SUMIFS(raw_resource_build!$K:$K,raw_resource_build!$B:$B,$C436,raw_resource_build!$A:$A,AB$396)+SUMIFS(raw_resource_build!$L:$L,raw_resource_build!$B:$B,$C436,raw_resource_build!$A:$A,AB$396)","v":0},{"$f":"SUMIFS(raw_resource_build!$K:$K,raw_resource_build!$B:$B,$C436,raw_resource_build!$A:$A,AC$396)+SUMIFS(raw_resource_build!$L:$L,raw_resource_build!$B:$B,$C436,raw_resource_build!$A:$A,AC$396)","v":0},{"$f":"SUMIFS(raw_resource_build!$K:$K,raw_resource_build!$B:$B,$C436,raw_resource_build!$A:$A,AD$396)+SUMIFS(raw_resource_build!$L:$L,raw_resource_build!$B:$B,$C436,raw_resource_build!$A:$A,AD$396)","v":0},{"$f":"SUMIFS(raw_resource_build!$K:$K,raw_resource_build!$B:$B,$C436,raw_resource_build!$A:$A,AE$396)+SUMIFS(raw_resource_build!$L:$L,raw_resource_build!$B:$B,$C436,raw_resource_build!$A:$A,AE$396)","v":0},{"$f":"SUMIFS(raw_resource_build!$K:$K,raw_resource_build!$B:$B,$C436,raw_resource_build!$A:$A,AF$396)+SUMIFS(raw_resource_build!$L:$L,raw_resource_build!$B:$B,$C436,raw_resource_build!$A:$A,AF$396)","v":0},{"$f":"SUMIFS(raw_resource_build!$K:$K,raw_resource_build!$B:$B,$C436,raw_resource_build!$A:$A,AG$396)+SUMIFS(raw_resource_build!$L:$L,raw_resource_build!$B:$B,$C436,raw_resource_build!$A:$A,AG$396)","v":0},{"$f":"SUMIFS(raw_resource_build!$K:$K,raw_resource_build!$B:$B,$C436,raw_resource_build!$A:$A,AH$396)+SUMIFS(raw_resource_build!$L:$L,raw_resource_build!$B:$B,$C436,raw_resource_build!$A:$A,AH$396)","v":0},{"$f":"SUMIFS(raw_resource_build!$K:$K,raw_resource_build!$B:$B,$C436,raw_resource_build!$A:$A,AI$396)+SUMIFS(raw_resource_build!$L:$L,raw_resource_build!$B:$B,$C436,raw_resource_build!$A:$A,AI$396)","v":0},{"$f":"SUMIFS(raw_resource_build!$K:$K,raw_resource_build!$B:$B,$C436,raw_resource_build!$A:$A,AJ$396)+SUMIFS(raw_resource_build!$L:$L,raw_resource_build!$B:$B,$C436,raw_resource_build!$A:$A,AJ$396)","v":0},{"$f":"SUMIFS(raw_resource_build!$K:$K,raw_resource_build!$B:$B,$C436,raw_resource_build!$A:$A,AK$396)+SUMIFS(raw_resource_build!$L:$L,raw_resource_build!$B:$B,$C436,raw_resource_build!$A:$A,AK$396)","v":0},{"$f":"SUMIFS(raw_resource_build!$K:$K,raw_resource_build!$B:$B,$C436,raw_resource_build!$A:$A,AL$396)+SUMIFS(raw_resource_build!$L:$L,raw_resource_build!$B:$B,$C436,raw_resource_build!$A:$A,AL$396)","v":0},{"$f":"SUMIFS(raw_resource_build!$K:$K,raw_resource_build!$B:$B,$C436,raw_resource_build!$A:$A,AM$396)+SUMIFS(raw_resource_build!$L:$L,raw_resource_build!$B:$B,$C436,raw_resource_build!$A:$A,AM$396)","v":0},{"$f":"SUMIFS(raw_resource_build!$K:$K,raw_resource_build!$B:$B,$C436,raw_resource_build!$A:$A,AN$396)+SUMIFS(raw_resource_build!$L:$L,raw_resource_build!$B:$B,$C436,raw_resource_build!$A:$A,AN$396)","v":0}]
[null,null,{"$f":"Lists!B75","v":"Southern_Nevada_Wind"},{"$f":"IF(INDEX(raw_resource_build!J:J,MATCH(C437,raw_resource_build!$B:$B,0))=0,\"N/A\",INDEX(raw_resource_build!J:J,MATCH(C437,raw_resource_build!$B:$B,0)))","v":"SCADSNV-GLW_VEA"},{"$f":"SUMIFS(raw_resource_build!$K:$K,raw_resource_build!$B:$B,$C437,raw_resource_build!$A:$A,E$396)+SUMIFS(raw_resource_build!$L:$L,raw_resource_build!$B:$B,$C437,raw_resource_build!$A:$A,E$396)","v":0},{"$f":"SUMIFS(raw_resource_build!$K:$K,raw_resource_build!$B:$B,$C437,raw_resource_build!$A:$A,F$396)+SUMIFS(raw_resource_build!$L:$L,raw_resource_build!$B:$B,$C437,raw_resource_build!$A:$A,F$396)","v":0},{"$f":"SUMIFS(raw_resource_build!$K:$K,raw_resource_build!$B:$B,$C437,raw_resource_build!$A:$A,G$396)+SUMIFS(raw_resource_build!$L:$L,raw_resource_build!$B:$B,$C437,raw_resource_build!$A:$A,G$396)","v":0},{"$f":"SUMIFS(raw_resource_build!$K:$K,raw_resource_build!$B:$B,$C437,raw_resource_build!$A:$A,H$396)+SUMIFS(raw_resource_build!$L:$L,raw_resource_build!$B:$B,$C437,raw_resource_build!$A:$A,H$396)","v":0},{"$f":"SUMIFS(raw_resource_build!$K:$K,raw_resource_build!$B:$B,$C437,raw_resource_build!$A:$A,I$396)+SUMIFS(raw_resource_build!$L:$L,raw_resource_build!$B:$B,$C437,raw_resource_build!$A:$A,I$396)","v":0},{"$f":"SUMIFS(raw_resource_build!$K:$K,raw_resource_build!$B:$B,$C437,raw_resource_build!$A:$A,J$396)+SUMIFS(raw_resource_build!$L:$L,raw_resource_build!$B:$B,$C437,raw_resource_build!$A:$A,J$396)","v":0},{"$f":"SUMIFS(raw_resource_build!$K:$K,raw_resource_build!$B:$B,$C437,raw_resource_build!$A:$A,K$396)+SUMIFS(raw_resource_build!$L:$L,raw_resource_build!$B:$B,$C437,raw_resource_build!$A:$A,K$396)","v":0},{"$f":"SUMIFS(raw_resource_build!$K:$K,raw_resource_build!$B:$B,$C437,raw_resource_build!$A:$A,L$396)+SUMIFS(raw_resource_build!$L:$L,raw_resource_build!$B:$B,$C437,raw_resource_build!$A:$A,L$396)","v":442.03},{"$f":"SUMIFS(raw_resource_build!$K:$K,raw_resource_build!$B:$B,$C437,raw_resource_build!$A:$A,M$396)+SUMIFS(raw_resource_build!$L:$L,raw_resource_build!$B:$B,$C437,raw_resource_build!$A:$A,M$396)","v":442.03},{"$f":"SUMIFS(raw_resource_build!$K:$K,raw_resource_build!$B:$B,$C437,raw_resource_build!$A:$A,N$396)+SUMIFS(raw_resource_build!$L:$L,raw_resource_build!$B:$B,$C437,raw_resource_build!$A:$A,N$396)","v":442.03},{"$f":"SUMIFS(raw_resource_build!$K:$K,raw_resource_build!$B:$B,$C437,raw_resource_build!$A:$A,O$396)+SUMIFS(raw_resource_build!$L:$L,raw_resource_build!$B:$B,$C437,raw_resource_build!$A:$A,O$396)","v":0},{"$f":"SUMIFS(raw_resource_build!$K:$K,raw_resource_build!$B:$B,$C437,raw_resource_build!$A:$A,P$396)+SUMIFS(raw_resource_build!$L:$L,raw_resource_build!$B:$B,$C437,raw_resource_build!$A:$A,P$396)","v":442.03},{"$f":"SUMIFS(raw_resource_build!$K:$K,raw_resource_build!$B:$B,$C437,raw_resource_build!$A:$A,Q$396)+SUMIFS(raw_resource_build!$L:$L,raw_resource_build!$B:$B,$C437,raw_resource_build!$A:$A,Q$396)","v":0},{"$f":"SUMIFS(raw_resource_build!$K:$K,raw_resource_build!$B:$B,$C437,raw_resource_build!$A:$A,R$396)+SUMIFS(raw_resource_build!$L:$L,raw_resource_build!$B:$B,$C437,raw_resource_build!$A:$A,R$396)","v":0},{"$f":"SUMIFS(raw_resource_build!$K:$K,raw_resource_build!$B:$B,$C437,raw_resource_build!$A:$A,S$396)+SUMIFS(raw_resource_build!$L:$L,raw_resource_build!$B:$B,$C437,raw_resource_build!$A:$A,S$396)","v":0},{"$f":"SUMIFS(raw_resource_build!$K:$K,raw_resource_build!$B:$B,$C437,raw_resource_build!$A:$A,T$396)+SUMIFS(raw_resource_build!$L:$L,raw_resource_build!$B:$B,$C437,raw_resource_build!$A:$A,T$396)","v":442.03},{"$f":"SUMIFS(raw_resource_build!$K:$K,raw_resource_build!$B:$B,$C437,raw_resource_build!$A:$A,U$396)+SUMIFS(raw_resource_build!$L:$L,raw_resource_build!$B:$B,$C437,raw_resource_build!$A:$A,U$396)","v":0},{"$f":"SUMIFS(raw_resource_build!$K:$K,raw_resource_build!$B:$B,$C437,raw_resource_build!$A:$A,V$396)+SUMIFS(raw_resource_build!$L:$L,raw_resource_build!$B:$B,$C437,raw_resource_build!$A:$A,V$396)","v":0},{"$f":"SUMIFS(raw_resource_build!$K:$K,raw_resource_build!$B:$B,$C437,raw_resource_build!$A:$A,W$396)+SUMIFS(raw_resource_build!$L:$L,raw_resource_build!$B:$B,$C437,raw_resource_build!$A:$A,W$396)","v":0},{"$f":"SUMIFS(raw_resource_build!$K:$K,raw_resource_build!$B:$B,$C437,raw_resource_build!$A:$A,X$396)+SUMIFS(raw_resource_build!$L:$L,raw_resource_build!$B:$B,$C437,raw_resource_build!$A:$A,X$396)","v":0},{"$f":"SUMIFS(raw_resource_build!$K:$K,raw_resource_build!$B:$B,$C437,raw_resource_build!$A:$A,Y$396)+SUMIFS(raw_resource_build!$L:$L,raw_resource_build!$B:$B,$C437,raw_resource_build!$A:$A,Y$396)","v":0},{"$f":"SUMIFS(raw_resource_build!$K:$K,raw_resource_build!$B:$B,$C437,raw_resource_build!$A:$A,Z$396)+SUMIFS(raw_resource_build!$L:$L,raw_resource_build!$B:$B,$C437,raw_resource_build!$A:$A,Z$396)","v":0},{"$f":"SUMIFS(raw_resource_build!$K:$K,raw_resource_build!$B:$B,$C437,raw_resource_build!$A:$A,AA$396)+SUMIFS(raw_resource_build!$L:$L,raw_resource_build!$B:$B,$C437,raw_resource_build!$A:$A,AA$396)","v":0},{"$f":"SUMIFS(raw_resource_build!$K:$K,raw_resource_build!$B:$B,$C437,raw_resource_build!$A:$A,AB$396)+SUMIFS(raw_resource_build!$L:$L,raw_resource_build!$B:$B,$C437,raw_resource_build!$A:$A,AB$396)","v":0},{"$f":"SUMIFS(raw_resource_build!$K:$K,raw_resource_build!$B:$B,$C437,raw_resource_build!$A:$A,AC$396)+SUMIFS(raw_resource_build!$L:$L,raw_resource_build!$B:$B,$C437,raw_resource_build!$A:$A,AC$396)","v":0},{"$f":"SUMIFS(raw_resource_build!$K:$K,raw_resource_build!$B:$B,$C437,raw_resource_build!$A:$A,AD$396)+SUMIFS(raw_resource_build!$L:$L,raw_resource_build!$B:$B,$C437,raw_resource_build!$A:$A,AD$396)","v":0},{"$f":"SUMIFS(raw_resource_build!$K:$K,raw_resource_build!$B:$B,$C437,raw_resource_build!$A:$A,AE$396)+SUMIFS(raw_resource_build!$L:$L,raw_resource_build!$B:$B,$C437,raw_resource_build!$A:$A,AE$396)","v":0},{"$f":"SUMIFS(raw_resource_build!$K:$K,raw_resource_build!$B:$B,$C437,raw_resource_build!$A:$A,AF$396)+SUMIFS(raw_resource_build!$L:$L,raw_resource_build!$B:$B,$C437,raw_resource_build!$A:$A,AF$396)","v":0},{"$f":"SUMIFS(raw_resource_build!$K:$K,raw_resource_build!$B:$B,$C437,raw_resource_build!$A:$A,AG$396)+SUMIFS(raw_resource_build!$L:$L,raw_resource_build!$B:$B,$C437,raw_resource_build!$A:$A,AG$396)","v":0},{"$f":"SUMIFS(raw_resource_build!$K:$K,raw_resource_build!$B:$B,$C437,raw_resource_build!$A:$A,AH$396)+SUMIFS(raw_resource_build!$L:$L,raw_resource_build!$B:$B,$C437,raw_resource_build!$A:$A,AH$396)","v":0},{"$f":"SUMIFS(raw_resource_build!$K:$K,raw_resource_build!$B:$B,$C437,raw_resource_build!$A:$A,AI$396)+SUMIFS(raw_resource_build!$L:$L,raw_resource_build!$B:$B,$C437,raw_resource_build!$A:$A,AI$396)","v":442.03},{"$f":"SUMIFS(raw_resource_build!$K:$K,raw_resource_build!$B:$B,$C437,raw_resource_build!$A:$A,AJ$396)+SUMIFS(raw_resource_build!$L:$L,raw_resource_build!$B:$B,$C437,raw_resource_build!$A:$A,AJ$396)","v":0},{"$f":"SUMIFS(raw_resource_build!$K:$K,raw_resource_build!$B:$B,$C437,raw_resource_build!$A:$A,AK$396)+SUMIFS(raw_resource_build!$L:$L,raw_resource_build!$B:$B,$C437,raw_resource_build!$A:$A,AK$396)","v":0},{"$f":"SUMIFS(raw_resource_build!$K:$K,raw_resource_build!$B:$B,$C437,raw_resource_build!$A:$A,AL$396)+SUMIFS(raw_resource_build!$L:$L,raw_resource_build!$B:$B,$C437,raw_resource_build!$A:$A,AL$396)","v":0},{"$f":"SUMIFS(raw_resource_build!$K:$K,raw_resource_build!$B:$B,$C437,raw_resource_build!$A:$A,AM$396)+SUMIFS(raw_resource_build!$L:$L,raw_resource_build!$B:$B,$C437,raw_resource_build!$A:$A,AM$396)","v":0},{"$f":"SUMIFS(raw_resource_build!$K:$K,raw_resource_build!$B:$B,$C437,raw_resource_build!$A:$A,AN$396)+SUMIFS(raw_resource_build!$L:$L,raw_resource_build!$B:$B,$C437,raw_resource_build!$A:$A,AN$396)","v":0}]
[null,null,{"$f":"Lists!B76","v":"SW_Ext_Tx_Wind"},{"$f":"IF(INDEX(raw_resource_build!J:J,MATCH(C438,raw_resource_build!$B:$B,0))=0,\"N/A\",INDEX(raw_resource_build!J:J,MATCH(C438,raw_resource_build!$B:$B,0)))","v":"SCADSNV-Riverside_Palm_Springs"},{"$f":"SUMIFS(raw_resource_build!$K:$K,raw_resource_build!$B:$B,$C438,raw_resource_build!$A:$A,E$396)+SUMIFS(raw_resource_build!$L:$L,raw_resource_build!$B:$B,$C438,raw_resource_build!$A:$A,E$396)","v":0},{"$f":"SUMIFS(raw_resource_build!$K:$K,raw_resource_build!$B:$B,$C438,raw_resource_build!$A:$A,F$396)+SUMIFS(raw_resource_build!$L:$L,raw_resource_build!$B:$B,$C438,raw_resource_build!$A:$A,F$396)","v":0},{"$f":"SUMIFS(raw_resource_build!$K:$K,raw_resource_build!$B:$B,$C438,raw_resource_build!$A:$A,G$396)+SUMIFS(raw_resource_build!$L:$L,raw_resource_build!$B:$B,$C438,raw_resource_build!$A:$A,G$396)","v":0},{"$f":"SUMIFS(raw_resource_build!$K:$K,raw_resource_build!$B:$B,$C438,raw_resource_build!$A:$A,H$396)+SUMIFS(raw_resource_build!$L:$L,raw_resource_build!$B:$B,$C438,raw_resource_build!$A:$A,H$396)","v":0},{"$f":"SUMIFS(raw_resource_build!$K:$K,raw_resource_build!$B:$B,$C438,raw_resource_build!$A:$A,I$396)+SUMIFS(raw_resource_build!$L:$L,raw_resource_build!$B:$B,$C438,raw_resource_build!$A:$A,I$396)","v":0},{"$f":"SUMIFS(raw_resource_build!$K:$K,raw_resource_build!$B:$B,$C438,raw_resource_build!$A:$A,J$396)+SUMIFS(raw_resource_build!$L:$L,raw_resource_build!$B:$B,$C438,raw_resource_build!$A:$A,J$396)","v":0},{"$f":"SUMIFS(raw_resource_build!$K:$K,raw_resource_build!$B:$B,$C438,raw_resource_build!$A:$A,K$396)+SUMIFS(raw_resource_build!$L:$L,raw_resource_build!$B:$B,$C438,raw_resource_build!$A:$A,K$396)","v":0},{"$f":"SUMIFS(raw_resource_build!$K:$K,raw_resource_build!$B:$B,$C438,raw_resource_build!$A:$A,L$396)+SUMIFS(raw_resource_build!$L:$L,raw_resource_build!$B:$B,$C438,raw_resource_build!$A:$A,L$396)","v":0},{"$f":"SUMIFS(raw_resource_build!$K:$K,raw_resource_build!$B:$B,$C438,raw_resource_build!$A:$A,M$396)+SUMIFS(raw_resource_build!$L:$L,raw_resource_build!$B:$B,$C438,raw_resource_build!$A:$A,M$396)","v":0},{"$f":"SUMIFS(raw_resource_build!$K:$K,raw_resource_build!$B:$B,$C438,raw_resource_build!$A:$A,N$396)+SUMIFS(raw_resource_build!$L:$L,raw_resource_build!$B:$B,$C438,raw_resource_build!$A:$A,N$396)","v":0},{"$f":"SUMIFS(raw_resource_build!$K:$K,raw_resource_build!$B:$B,$C438,raw_resource_build!$A:$A,O$396)+SUMIFS(raw_resource_build!$L:$L,raw_resource_build!$B:$B,$C438,raw_resource_build!$A:$A,O$396)","v":0},{"$f":"SUMIFS(raw_resource_build!$K:$K,raw_resource_build!$B:$B,$C438,raw_resource_build!$A:$A,P$396)+SUMIFS(raw_resource_build!$L:$L,raw_resource_build!$B:$B,$C438,raw_resource_build!$A:$A,P$396)","v":0},{"$f":"SUMIFS(raw_resource_build!$K:$K,raw_resource_build!$B:$B,$C438,raw_resource_build!$A:$A,Q$396)+SUMIFS(raw_resource_build!$L:$L,raw_resource_build!$B:$B,$C438,raw_resource_build!$A:$A,Q$396)","v":0},{"$f":"SUMIFS(raw_resource_build!$K:$K,raw_resource_build!$B:$B,$C438,raw_resource_build!$A:$A,R$396)+SUMIFS(raw_resource_build!$L:$L,raw_resource_build!$B:$B,$C438,raw_resource_build!$A:$A,R$396)","v":0},{"$f":"SUMIFS(raw_resource_build!$K:$K,raw_resource_build!$B:$B,$C438,raw_resource_build!$A:$A,S$396)+SUMIFS(raw_resource_build!$L:$L,raw_resource_build!$B:$B,$C438,raw_resource_build!$A:$A,S$396)","v":0},{"$f":"SUMIFS(raw_resource_build!$K:$K,raw_resource_build!$B:$B,$C438,raw_resource_build!$A:$A,T$396)+SUMIFS(raw_resource_build!$L:$L,raw_resource_build!$B:$B,$C438,raw_resource_build!$A:$A,T$396)","v":0},{"$f":"SUMIFS(raw_resource_build!$K:$K,raw_resource_build!$B:$B,$C438,raw_resource_build!$A:$A,U$396)+SUMIFS(raw_resource_build!$L:$L,raw_resource_build!$B:$B,$C438,raw_resource_build!$A:$A,U$396)","v":0},{"$f":"SUMIFS(raw_resource_build!$K:$K,raw_resource_build!$B:$B,$C438,raw_resource_build!$A:$A,V$396)+SUMIFS(raw_resource_build!$L:$L,raw_resource_build!$B:$B,$C438,raw_resource_build!$A:$A,V$396)","v":0},{"$f":"SUMIFS(raw_resource_build!$K:$K,raw_resource_build!$B:$B,$C438,raw_resource_build!$A:$A,W$396)+SUMIFS(raw_resource_build!$L:$L,raw_resource_build!$B:$B,$C438,raw_resource_build!$A:$A,W$396)","v":0},{"$f":"SUMIFS(raw_resource_build!$K:$K,raw_resource_build!$B:$B,$C438,raw_resource_build!$A:$A,X$396)+SUMIFS(raw_resource_build!$L:$L,raw_resource_build!$B:$B,$C438,raw_resource_build!$A:$A,X$396)","v":0},{"$f":"SUMIFS(raw_resource_build!$K:$K,raw_resource_build!$B:$B,$C438,raw_resource_build!$A:$A,Y$396)+SUMIFS(raw_resource_build!$L:$L,raw_resource_build!$B:$B,$C438,raw_resource_build!$A:$A,Y$396)","v":0},{"$f":"SUMIFS(raw_resource_build!$K:$K,raw_resource_build!$B:$B,$C438,raw_resource_build!$A:$A,Z$396)+SUMIFS(raw_resource_build!$L:$L,raw_resource_build!$B:$B,$C438,raw_resource_build!$A:$A,Z$396)","v":0},{"$f":"SUMIFS(raw_resource_build!$K:$K,raw_resource_build!$B:$B,$C438,raw_resource_build!$A:$A,AA$396)+SUMIFS(raw_resource_build!$L:$L,raw_resource_build!$B:$B,$C438,raw_resource_build!$A:$A,AA$396)","v":0},{"$f":"SUMIFS(raw_resource_build!$K:$K,raw_resource_build!$B:$B,$C438,raw_resource_build!$A:$A,AB$396)+SUMIFS(raw_resource_build!$L:$L,raw_resource_build!$B:$B,$C438,raw_resource_build!$A:$A,AB$396)","v":0},{"$f":"SUMIFS(raw_resource_build!$K:$K,raw_resource_build!$B:$B,$C438,raw_resource_build!$A:$A,AC$396)+SUMIFS(raw_resource_build!$L:$L,raw_resource_build!$B:$B,$C438,raw_resource_build!$A:$A,AC$396)","v":0},{"$f":"SUMIFS(raw_resource_build!$K:$K,raw_resource_build!$B:$B,$C438,raw_resource_build!$A:$A,AD$396)+SUMIFS(raw_resource_build!$L:$L,raw_resource_build!$B:$B,$C438,raw_resource_build!$A:$A,AD$396)","v":0},{"$f":"SUMIFS(raw_resource_build!$K:$K,raw_resource_build!$B:$B,$C438,raw_resource_build!$A:$A,AE$396)+SUMIFS(raw_resource_build!$L:$L,raw_resource_build!$B:$B,$C438,raw_resource_build!$A:$A,AE$396)","v":0},{"$f":"SUMIFS(raw_resource_build!$K:$K,raw_resource_build!$B:$B,$C438,raw_resource_build!$A:$A,AF$396)+SUMIFS(raw_resource_build!$L:$L,raw_resource_build!$B:$B,$C438,raw_resource_build!$A:$A,AF$396)","v":0},{"$f":"SUMIFS(raw_resource_build!$K:$K,raw_resource_build!$B:$B,$C438,raw_resource_build!$A:$A,AG$396)+SUMIFS(raw_resource_build!$L:$L,raw_resource_build!$B:$B,$C438,raw_resource_build!$A:$A,AG$396)","v":0},{"$f":"SUMIFS(raw_resource_build!$K:$K,raw_resource_build!$B:$B,$C438,raw_resource_build!$A:$A,AH$396)+SUMIFS(raw_resource_build!$L:$L,raw_resource_build!$B:$B,$C438,raw_resource_build!$A:$A,AH$396)","v":0},{"$f":"SUMIFS(raw_resource_build!$K:$K,raw_resource_build!$B:$B,$C438,raw_resource_build!$A:$A,AI$396)+SUMIFS(raw_resource_build!$L:$L,raw_resource_build!$B:$B,$C438,raw_resource_build!$A:$A,AI$396)","v":500},{"$f":"SUMIFS(raw_resource_build!$K:$K,raw_resource_build!$B:$B,$C438,raw_resource_build!$A:$A,AJ$396)+SUMIFS(raw_resource_build!$L:$L,raw_resource_build!$B:$B,$C438,raw_resource_build!$A:$A,AJ$396)","v":0},{"$f":"SUMIFS(raw_resource_build!$K:$K,raw_resource_build!$B:$B,$C438,raw_resource_build!$A:$A,AK$396)+SUMIFS(raw_resource_build!$L:$L,raw_resource_build!$B:$B,$C438,raw_resource_build!$A:$A,AK$396)","v":0},{"$f":"SUMIFS(raw_resource_build!$K:$K,raw_resource_build!$B:$B,$C438,raw_resource_build!$A:$A,AL$396)+SUMIFS(raw_resource_build!$L:$L,raw_resource_build!$B:$B,$C438,raw_resource_build!$A:$A,AL$396)","v":0},{"$f":"SUMIFS(raw_resource_build!$K:$K,raw_resource_build!$B:$B,$C438,raw_resource_build!$A:$A,AM$396)+SUMIFS(raw_resource_build!$L:$L,raw_resource_build!$B:$B,$C438,raw_resource_build!$A:$A,AM$396)","v":0},{"$f":"SUMIFS(raw_resource_build!$K:$K,raw_resource_build!$B:$B,$C438,raw_resource_build!$A:$A,AN$396)+SUMIFS(raw_resource_build!$L:$L,raw_resource_build!$B:$B,$C438,raw_resource_build!$A:$A,AN$396)","v":0}]
[null,null,{"$f":"Lists!B77","v":"Tehachapi_Solar"},{"$f":"IF(INDEX(raw_resource_build!J:J,MATCH(C439,raw_resource_build!$B:$B,0))=0,\"N/A\",INDEX(raw_resource_build!J:J,MATCH(C439,raw_resource_build!$B:$B,0)))","v":"Tehachapi"},{"$f":"SUMIFS(raw_resource_build!$K:$K,raw_resource_build!$B:$B,$C439,raw_resource_build!$A:$A,E$396)+SUMIFS(raw_resource_build!$L:$L,raw_resource_build!$B:$B,$C439,raw_resource_build!$A:$A,E$396)","v":0},{"$f":"SUMIFS(raw_resource_build!$K:$K,raw_resource_build!$B:$B,$C439,raw_resource_build!$A:$A,F$396)+SUMIFS(raw_resource_build!$L:$L,raw_resource_build!$B:$B,$C439,raw_resource_build!$A:$A,F$396)","v":0},{"$f":"SUMIFS(raw_resource_build!$K:$K,raw_resource_build!$B:$B,$C439,raw_resource_build!$A:$A,G$396)+SUMIFS(raw_resource_build!$L:$L,raw_resource_build!$B:$B,$C439,raw_resource_build!$A:$A,G$396)","v":0},{"$f":"SUMIFS(raw_resource_build!$K:$K,raw_resource_build!$B:$B,$C439,raw_resource_build!$A:$A,H$396)+SUMIFS(raw_resource_build!$L:$L,raw_resource_build!$B:$B,$C439,raw_resource_build!$A:$A,H$396)","v":0},{"$f":"SUMIFS(raw_resource_build!$K:$K,raw_resource_build!$B:$B,$C439,raw_resource_build!$A:$A,I$396)+SUMIFS(raw_resource_build!$L:$L,raw_resource_build!$B:$B,$C439,raw_resource_build!$A:$A,I$396)","v":0},{"$f":"SUMIFS(raw_resource_build!$K:$K,raw_resource_build!$B:$B,$C439,raw_resource_build!$A:$A,J$396)+SUMIFS(raw_resource_build!$L:$L,raw_resource_build!$B:$B,$C439,raw_resource_build!$A:$A,J$396)","v":1437},{"$f":"SUMIFS(raw_resource_build!$K:$K,raw_resource_build!$B:$B,$C439,raw_resource_build!$A:$A,K$396)+SUMIFS(raw_resource_build!$L:$L,raw_resource_build!$B:$B,$C439,raw_resource_build!$A:$A,K$396)","v":3402},{"$f":"SUMIFS(raw_resource_build!$K:$K,raw_resource_build!$B:$B,$C439,raw_resource_build!$A:$A,L$396)+SUMIFS(raw_resource_build!$L:$L,raw_resource_build!$B:$B,$C439,raw_resource_build!$A:$A,L$396)","v":4202},{"$f":"SUMIFS(raw_resource_build!$K:$K,raw_resource_build!$B:$B,$C439,raw_resource_build!$A:$A,M$396)+SUMIFS(raw_resource_build!$L:$L,raw_resource_build!$B:$B,$C439,raw_resource_build!$A:$A,M$396)","v":4202},{"$f":"SUMIFS(raw_resource_build!$K:$K,raw_resource_build!$B:$B,$C439,raw_resource_build!$A:$A,N$396)+SUMIFS(raw_resource_build!$L:$L,raw_resource_build!$B:$B,$C439,raw_resource_build!$A:$A,N$396)","v":4202},{"$f":"SUMIFS(raw_resource_build!$K:$K,raw_resource_build!$B:$B,$C439,raw_resource_build!$A:$A,O$396)+SUMIFS(raw_resource_build!$L:$L,raw_resource_build!$B:$B,$C439,raw_resource_build!$A:$A,O$396)","v":0},{"$f":"SUMIFS(raw_resource_build!$K:$K,raw_resource_build!$B:$B,$C439,raw_resource_build!$A:$A,P$396)+SUMIFS(raw_resource_build!$L:$L,raw_resource_build!$B:$B,$C439,raw_resource_build!$A:$A,P$396)","v":4801},{"$f":"SUMIFS(raw_resource_build!$K:$K,raw_resource_build!$B:$B,$C439,raw_resource_build!$A:$A,Q$396)+SUMIFS(raw_resource_build!$L:$L,raw_resource_build!$B:$B,$C439,raw_resource_build!$A:$A,Q$396)","v":0},{"$f":"SUMIFS(raw_resource_build!$K:$K,raw_resource_build!$B:$B,$C439,raw_resource_build!$A:$A,R$396)+SUMIFS(raw_resource_build!$L:$L,raw_resource_build!$B:$B,$C439,raw_resource_build!$A:$A,R$396)","v":0},{"$f":"SUMIFS(raw_resource_build!$K:$K,raw_resource_build!$B:$B,$C439,raw_resource_build!$A:$A,S$396)+SUMIFS(raw_resource_build!$L:$L,raw_resource_build!$B:$B,$C439,raw_resource_build!$A:$A,S$396)","v":0},{"$f":"SUMIFS(raw_resource_build!$K:$K,raw_resource_build!$B:$B,$C439,raw_resource_build!$A:$A,T$396)+SUMIFS(raw_resource_build!$L:$L,raw_resource_build!$B:$B,$C439,raw_resource_build!$A:$A,T$396)","v":4801},{"$f":"SUMIFS(raw_resource_build!$K:$K,raw_resource_build!$B:$B,$C439,raw_resource_build!$A:$A,U$396)+SUMIFS(raw_resource_build!$L:$L,raw_resource_build!$B:$B,$C439,raw_resource_build!$A:$A,U$396)","v":0},{"$f":"SUMIFS(raw_resource_build!$K:$K,raw_resource_build!$B:$B,$C439,raw_resource_build!$A:$A,V$396)+SUMIFS(raw_resource_build!$L:$L,raw_resource_build!$B:$B,$C439,raw_resource_build!$A:$A,V$396)","v":0},{"$f":"SUMIFS(raw_resource_build!$K:$K,raw_resource_build!$B:$B,$C439,raw_resource_build!$A:$A,W$396)+SUMIFS(raw_resource_build!$L:$L,raw_resource_build!$B:$B,$C439,raw_resource_build!$A:$A,W$396)","v":0},{"$f":"SUMIFS(raw_resource_build!$K:$K,raw_resource_build!$B:$B,$C439,raw_resource_build!$A:$A,X$396)+SUMIFS(raw_resource_build!$L:$L,raw_resource_build!$B:$B,$C439,raw_resource_build!$A:$A,X$396)","v":0},{"$f":"SUMIFS(raw_resource_build!$K:$K,raw_resource_build!$B:$B,$C439,raw_resource_build!$A:$A,Y$396)+SUMIFS(raw_resource_build!$L:$L,raw_resource_build!$B:$B,$C439,raw_resource_build!$A:$A,Y$396)","v":0},{"$f":"SUMIFS(raw_resource_build!$K:$K,raw_resource_build!$B:$B,$C439,raw_resource_build!$A:$A,Z$396)+SUMIFS(raw_resource_build!$L:$L,raw_resource_build!$B:$B,$C439,raw_resource_build!$A:$A,Z$396)","v":0},{"$f":"SUMIFS(raw_resource_build!$K:$K,raw_resource_build!$B:$B,$C439,raw_resource_build!$A:$A,AA$396)+SUMIFS(raw_resource_build!$L:$L,raw_resource_build!$B:$B,$C439,raw_resource_build!$A:$A,AA$396)","v":0},{"$f":"SUMIFS(raw_resource_build!$K:$K,raw_resource_build!$B:$B,$C439,raw_resource_build!$A:$A,AB$396)+SUMIFS(raw_resource_build!$L:$L,raw_resource_build!$B:$B,$C439,raw_resource_build!$A:$A,AB$396)","v":0},{"$f":"SUMIFS(raw_resource_build!$K:$K,raw_resource_build!$B:$B,$C439,raw_resource_build!$A:$A,AC$396)+SUMIFS(raw_resource_build!$L:$L,raw_resource_build!$B:$B,$C439,raw_resource_build!$A:$A,AC$396)","v":0},{"$f":"SUMIFS(raw_resource_build!$K:$K,raw_resource_build!$B:$B,$C439,raw_resource_build!$A:$A,AD$396)+SUMIFS(raw_resource_build!$L:$L,raw_resource_build!$B:$B,$C439,raw_resource_build!$A:$A,AD$396)","v":0},{"$f":"SUMIFS(raw_resource_build!$K:$K,raw_resource_build!$B:$B,$C439,raw_resource_build!$A:$A,AE$396)+SUMIFS(raw_resource_build!$L:$L,raw_resource_build!$B:$B,$C439,raw_resource_build!$A:$A,AE$396)","v":0},{"$f":"SUMIFS(raw_resource_build!$K:$K,raw_resource_build!$B:$B,$C439,raw_resource_build!$A:$A,AF$396)+SUMIFS(raw_resource_build!$L:$L,raw_resource_build!$B:$B,$C439,raw_resource_build!$A:$A,AF$396)","v":0},{"$f":"SUMIFS(raw_resource_build!$K:$K,raw_resource_build!$B:$B,$C439,raw_resource_build!$A:$A,AG$396)+SUMIFS(raw_resource_build!$L:$L,raw_resource_build!$B:$B,$C439,raw_resource_build!$A:$A,AG$396)","v":0},{"$f":"SUMIFS(raw_resource_build!$K:$K,raw_resource_build!$B:$B,$C439,raw_resource_build!$A:$A,AH$396)+SUMIFS(raw_resource_build!$L:$L,raw_resource_build!$B:$B,$C439,raw_resource_build!$A:$A,AH$396)","v":0},{"$f":"SUMIFS(raw_resource_build!$K:$K,raw_resource_build!$B:$B,$C439,raw_resource_build!$A:$A,AI$396)+SUMIFS(raw_resource_build!$L:$L,raw_resource_build!$B:$B,$C439,raw_resource_build!$A:$A,AI$396)","v":4801},{"$f":"SUMIFS(raw_resource_build!$K:$K,raw_resource_build!$B:$B,$C439,raw_resource_build!$A:$A,AJ$396)+SUMIFS(raw_resource_build!$L:$L,raw_resource_build!$B:$B,$C439,raw_resource_build!$A:$A,AJ$396)","v":0},{"$f":"SUMIFS(raw_resource_build!$K:$K,raw_resource_build!$B:$B,$C439,raw_resource_build!$A:$A,AK$396)+SUMIFS(raw_resource_build!$L:$L,raw_resource_build!$B:$B,$C439,raw_resource_build!$A:$A,AK$396)","v":0},{"$f":"SUMIFS(raw_resource_build!$K:$K,raw_resource_build!$B:$B,$C439,raw_resource_build!$A:$A,AL$396)+SUMIFS(raw_resource_build!$L:$L,raw_resource_build!$B:$B,$C439,raw_resource_build!$A:$A,AL$396)","v":0},{"$f":"SUMIFS(raw_resource_build!$K:$K,raw_resource_build!$B:$B,$C439,raw_resource_build!$A:$A,AM$396)+SUMIFS(raw_resource_build!$L:$L,raw_resource_build!$B:$B,$C439,raw_resource_build!$A:$A,AM$396)","v":0},{"$f":"SUMIFS(raw_resource_build!$K:$K,raw_resource_build!$B:$B,$C439,raw_resource_build!$A:$A,AN$396)+SUMIFS(raw_resource_build!$L:$L,raw_resource_build!$B:$B,$C439,raw_resource_build!$A:$A,AN$396)","v":0}]
[null,null,{"$f":"Lists!B78","v":"Tehachapi_Ex_Solar"},{"$f":"IF(INDEX(raw_resource_build!J:J,MATCH(C440,raw_resource_build!$B:$B,0))=0,\"N/A\",INDEX(raw_resource_build!J:J,MATCH(C440,raw_resource_build!$B:$B,0)))","v":"Tehachapi_Ex"},{"$f":"SUMIFS(raw_resource_build!$K:$K,raw_resource_build!$B:$B,$C440,raw_resource_build!$A:$A,E$396)+SUMIFS(raw_resource_build!$L:$L,raw_resource_build!$B:$B,$C440,raw_resource_build!$A:$A,E$396)","v":0},{"$f":"SUMIFS(raw_resource_build!$K:$K,raw_resource_build!$B:$B,$C440,raw_resource_build!$A:$A,F$396)+SUMIFS(raw_resource_build!$L:$L,raw_resource_build!$B:$B,$C440,raw_resource_build!$A:$A,F$396)","v":0},{"$f":"SUMIFS(raw_resource_build!$K:$K,raw_resource_build!$B:$B,$C440,raw_resource_build!$A:$A,G$396)+SUMIFS(raw_resource_build!$L:$L,raw_resource_build!$B:$B,$C440,raw_resource_build!$A:$A,G$396)","v":0},{"$f":"SUMIFS(raw_resource_build!$K:$K,raw_resource_build!$B:$B,$C440,raw_resource_build!$A:$A,H$396)+SUMIFS(raw_resource_build!$L:$L,raw_resource_build!$B:$B,$C440,raw_resource_build!$A:$A,H$396)","v":0},{"$f":"SUMIFS(raw_resource_build!$K:$K,raw_resource_build!$B:$B,$C440,raw_resource_build!$A:$A,I$396)+SUMIFS(raw_resource_build!$L:$L,raw_resource_build!$B:$B,$C440,raw_resource_build!$A:$A,I$396)","v":0},{"$f":"SUMIFS(raw_resource_build!$K:$K,raw_resource_build!$B:$B,$C440,raw_resource_build!$A:$A,J$396)+SUMIFS(raw_resource_build!$L:$L,raw_resource_build!$B:$B,$C440,raw_resource_build!$A:$A,J$396)","v":0},{"$f":"SUMIFS(raw_resource_build!$K:$K,raw_resource_build!$B:$B,$C440,raw_resource_build!$A:$A,K$396)+SUMIFS(raw_resource_build!$L:$L,raw_resource_build!$B:$B,$C440,raw_resource_build!$A:$A,K$396)","v":0},{"$f":"SUMIFS(raw_resource_build!$K:$K,raw_resource_build!$B:$B,$C440,raw_resource_build!$A:$A,L$396)+SUMIFS(raw_resource_build!$L:$L,raw_resource_build!$B:$B,$C440,raw_resource_build!$A:$A,L$396)","v":0},{"$f":"SUMIFS(raw_resource_build!$K:$K,raw_resource_build!$B:$B,$C440,raw_resource_build!$A:$A,M$396)+SUMIFS(raw_resource_build!$L:$L,raw_resource_build!$B:$B,$C440,raw_resource_build!$A:$A,M$396)","v":0},{"$f":"SUMIFS(raw_resource_build!$K:$K,raw_resource_build!$B:$B,$C440,raw_resource_build!$A:$A,N$396)+SUMIFS(raw_resource_build!$L:$L,raw_resource_build!$B:$B,$C440,raw_resource_build!$A:$A,N$396)","v":0},{"$f":"SUMIFS(raw_resource_build!$K:$K,raw_resource_build!$B:$B,$C440,raw_resource_build!$A:$A,O$396)+SUMIFS(raw_resource_build!$L:$L,raw_resource_build!$B:$B,$C440,raw_resource_build!$A:$A,O$396)","v":0},{"$f":"SUMIFS(raw_resource_build!$K:$K,raw_resource_build!$B:$B,$C440,raw_resource_build!$A:$A,P$396)+SUMIFS(raw_resource_build!$L:$L,raw_resource_build!$B:$B,$C440,raw_resource_build!$A:$A,P$396)","v":0},{"$f":"SUMIFS(raw_resource_build!$K:$K,raw_resource_build!$B:$B,$C440,raw_resource_build!$A:$A,Q$396)+SUMIFS(raw_resource_build!$L:$L,raw_resource_build!$B:$B,$C440,raw_resource_build!$A:$A,Q$396)","v":0},{"$f":"SUMIFS(raw_resource_build!$K:$K,raw_resource_build!$B:$B,$C440,raw_resource_build!$A:$A,R$396)+SUMIFS(raw_resource_build!$L:$L,raw_resource_build!$B:$B,$C440,raw_resource_build!$A:$A,R$396)","v":0},{"$f":"SUMIFS(raw_resource_build!$K:$K,raw_resource_build!$B:$B,$C440,raw_resource_build!$A:$A,S$396)+SUMIFS(raw_resource_build!$L:$L,raw_resource_build!$B:$B,$C440,raw_resource_build!$A:$A,S$396)","v":0},{"$f":"SUMIFS(raw_resource_build!$K:$K,raw_resource_build!$B:$B,$C440,raw_resource_build!$A:$A,T$396)+SUMIFS(raw_resource_build!$L:$L,raw_resource_build!$B:$B,$C440,raw_resource_build!$A:$A,T$396)","v":0},{"$f":"SUMIFS(raw_resource_build!$K:$K,raw_resource_build!$B:$B,$C440,raw_resource_build!$A:$A,U$396)+SUMIFS(raw_resource_build!$L:$L,raw_resource_build!$B:$B,$C440,raw_resource_build!$A:$A,U$396)","v":0},{"$f":"SUMIFS(raw_resource_build!$K:$K,raw_resource_build!$B:$B,$C440,raw_resource_build!$A:$A,V$396)+SUMIFS(raw_resource_build!$L:$L,raw_resource_build!$B:$B,$C440,raw_resource_build!$A:$A,V$396)","v":0},{"$f":"SUMIFS(raw_resource_build!$K:$K,raw_resource_build!$B:$B,$C440,raw_resource_build!$A:$A,W$396)+SUMIFS(raw_resource_build!$L:$L,raw_resource_build!$B:$B,$C440,raw_resource_build!$A:$A,W$396)","v":0},{"$f":"SUMIFS(raw_resource_build!$K:$K,raw_resource_build!$B:$B,$C440,raw_resource_build!$A:$A,X$396)+SUMIFS(raw_resource_build!$L:$L,raw_resource_build!$B:$B,$C440,raw_resource_build!$A:$A,X$396)","v":0},{"$f":"SUMIFS(raw_resource_build!$K:$K,raw_resource_build!$B:$B,$C440,raw_resource_build!$A:$A,Y$396)+SUMIFS(raw_resource_build!$L:$L,raw_resource_build!$B:$B,$C440,raw_resource_build!$A:$A,Y$396)","v":0},{"$f":"SUMIFS(raw_resource_build!$K:$K,raw_resource_build!$B:$B,$C440,raw_resource_build!$A:$A,Z$396)+SUMIFS(raw_resource_build!$L:$L,raw_resource_build!$B:$B,$C440,raw_resource_build!$A:$A,Z$396)","v":0},{"$f":"SUMIFS(raw_resource_build!$K:$K,raw_resource_build!$B:$B,$C440,raw_resource_build!$A:$A,AA$396)+SUMIFS(raw_resource_build!$L:$L,raw_resource_build!$B:$B,$C440,raw_resource_build!$A:$A,AA$396)","v":0},{"$f":"SUMIFS(raw_resource_build!$K:$K,raw_resource_build!$B:$B,$C440,raw_resource_build!$A:$A,AB$396)+SUMIFS(raw_resource_build!$L:$L,raw_resource_build!$B:$B,$C440,raw_resource_build!$A:$A,AB$396)","v":0},{"$f":"SUMIFS(raw_resource_build!$K:$K,raw_resource_build!$B:$B,$C440,raw_resource_build!$A:$A,AC$396)+SUMIFS(raw_resource_build!$L:$L,raw_resource_build!$B:$B,$C440,raw_resource_build!$A:$A,AC$396)","v":0},{"$f":"SUMIFS(raw_resource_build!$K:$K,raw_resource_build!$B:$B,$C440,raw_resource_build!$A:$A,AD$396)+SUMIFS(raw_resource_build!$L:$L,raw_resource_build!$B:$B,$C440,raw_resource_build!$A:$A,AD$396)","v":0},{"$f":"SUMIFS(raw_resource_build!$K:$K,raw_resource_build!$B:$B,$C440,raw_resource_build!$A:$A,AE$396)+SUMIFS(raw_resource_build!$L:$L,raw_resource_build!$B:$B,$C440,raw_resource_build!$A:$A,AE$396)","v":0},{"$f":"SUMIFS(raw_resource_build!$K:$K,raw_resource_build!$B:$B,$C440,raw_resource_build!$A:$A,AF$396)+SUMIFS(raw_resource_build!$L:$L,raw_resource_build!$B:$B,$C440,raw_resource_build!$A:$A,AF$396)","v":0},{"$f":"SUMIFS(raw_resource_build!$K:$K,raw_resource_build!$B:$B,$C440,raw_resource_build!$A:$A,AG$396)+SUMIFS(raw_resource_build!$L:$L,raw_resource_build!$B:$B,$C440,raw_resource_build!$A:$A,AG$396)","v":0},{"$f":"SUMIFS(raw_resource_build!$K:$K,raw_resource_build!$B:$B,$C440,raw_resource_build!$A:$A,AH$396)+SUMIFS(raw_resource_build!$L:$L,raw_resource_build!$B:$B,$C440,raw_resource_build!$A:$A,AH$396)","v":0},{"$f":"SUMIFS(raw_resource_build!$K:$K,raw_resource_build!$B:$B,$C440,raw_resource_build!$A:$A,AI$396)+SUMIFS(raw_resource_build!$L:$L,raw_resource_build!$B:$B,$C440,raw_resource_build!$A:$A,AI$396)","v":0},{"$f":"SUMIFS(raw_resource_build!$K:$K,raw_resource_build!$B:$B,$C440,raw_resource_build!$A:$A,AJ$396)+SUMIFS(raw_resource_build!$L:$L,raw_resource_build!$B:$B,$C440,raw_resource_build!$A:$A,AJ$396)","v":0},{"$f":"SUMIFS(raw_resource_build!$K:$K,raw_resource_build!$B:$B,$C440,raw_resource_build!$A:$A,AK$396)+SUMIFS(raw_resource_build!$L:$L,raw_resource_build!$B:$B,$C440,raw_resource_build!$A:$A,AK$396)","v":0},{"$f":"SUMIFS(raw_resource_build!$K:$K,raw_resource_build!$B:$B,$C440,raw_resource_build!$A:$A,AL$396)+SUMIFS(raw_resource_build!$L:$L,raw_resource_build!$B:$B,$C440,raw_resource_build!$A:$A,AL$396)","v":0},{"$f":"SUMIFS(raw_resource_build!$K:$K,raw_resource_build!$B:$B,$C440,raw_resource_build!$A:$A,AM$396)+SUMIFS(raw_resource_build!$L:$L,raw_resource_build!$B:$B,$C440,raw_resource_build!$A:$A,AM$396)","v":0},{"$f":"SUMIFS(raw_resource_build!$K:$K,raw_resource_build!$B:$B,$C440,raw_resource_build!$A:$A,AN$396)+SUMIFS(raw_resource_build!$L:$L,raw_resource_build!$B:$B,$C440,raw_resource_build!$A:$A,AN$396)","v":0}]
[null,null,{"$f":"Lists!B79","v":"Tehachapi_Wind"},{"$f":"IF(INDEX(raw_resource_build!J:J,MATCH(C441,raw_resource_build!$B:$B,0))=0,\"N/A\",INDEX(raw_resource_build!J:J,MATCH(C441,raw_resource_build!$B:$B,0)))","v":"Tehachapi"},{"$f":"SUMIFS(raw_resource_build!$K:$K,raw_resource_build!$B:$B,$C441,raw_resource_build!$A:$A,E$396)+SUMIFS(raw_resource_build!$L:$L,raw_resource_build!$B:$B,$C441,raw_resource_build!$A:$A,E$396)","v":0},{"$f":"SUMIFS(raw_resource_build!$K:$K,raw_resource_build!$B:$B,$C441,raw_resource_build!$A:$A,F$396)+SUMIFS(raw_resource_build!$L:$L,raw_resource_build!$B:$B,$C441,raw_resource_build!$A:$A,F$396)","v":0},{"$f":"SUMIFS(raw_resource_build!$K:$K,raw_resource_build!$B:$B,$C441,raw_resource_build!$A:$A,G$396)+SUMIFS(raw_resource_build!$L:$L,raw_resource_build!$B:$B,$C441,raw_resource_build!$A:$A,G$396)","v":0},{"$f":"SUMIFS(raw_resource_build!$K:$K,raw_resource_build!$B:$B,$C441,raw_resource_build!$A:$A,H$396)+SUMIFS(raw_resource_build!$L:$L,raw_resource_build!$B:$B,$C441,raw_resource_build!$A:$A,H$396)","v":0},{"$f":"SUMIFS(raw_resource_build!$K:$K,raw_resource_build!$B:$B,$C441,raw_resource_build!$A:$A,I$396)+SUMIFS(raw_resource_build!$L:$L,raw_resource_build!$B:$B,$C441,raw_resource_build!$A:$A,I$396)","v":0},{"$f":"SUMIFS(raw_resource_build!$K:$K,raw_resource_build!$B:$B,$C441,raw_resource_build!$A:$A,J$396)+SUMIFS(raw_resource_build!$L:$L,raw_resource_build!$B:$B,$C441,raw_resource_build!$A:$A,J$396)","v":0},{"$f":"SUMIFS(raw_resource_build!$K:$K,raw_resource_build!$B:$B,$C441,raw_resource_build!$A:$A,K$396)+SUMIFS(raw_resource_build!$L:$L,raw_resource_build!$B:$B,$C441,raw_resource_build!$A:$A,K$396)","v":0},{"$f":"SUMIFS(raw_resource_build!$K:$K,raw_resource_build!$B:$B,$C441,raw_resource_build!$A:$A,L$396)+SUMIFS(raw_resource_build!$L:$L,raw_resource_build!$B:$B,$C441,raw_resource_build!$A:$A,L$396)","v":275},{"$f":"SUMIFS(raw_resource_build!$K:$K,raw_resource_build!$B:$B,$C441,raw_resource_build!$A:$A,M$396)+SUMIFS(raw_resource_build!$L:$L,raw_resource_build!$B:$B,$C441,raw_resource_build!$A:$A,M$396)","v":275},{"$f":"SUMIFS(raw_resource_build!$K:$K,raw_resource_build!$B:$B,$C441,raw_resource_build!$A:$A,N$396)+SUMIFS(raw_resource_build!$L:$L,raw_resource_build!$B:$B,$C441,raw_resource_build!$A:$A,N$396)","v":275},{"$f":"SUMIFS(raw_resource_build!$K:$K,raw_resource_build!$B:$B,$C441,raw_resource_build!$A:$A,O$396)+SUMIFS(raw_resource_build!$L:$L,raw_resource_build!$B:$B,$C441,raw_resource_build!$A:$A,O$396)","v":0},{"$f":"SUMIFS(raw_resource_build!$K:$K,raw_resource_build!$B:$B,$C441,raw_resource_build!$A:$A,P$396)+SUMIFS(raw_resource_build!$L:$L,raw_resource_build!$B:$B,$C441,raw_resource_build!$A:$A,P$396)","v":275},{"$f":"SUMIFS(raw_resource_build!$K:$K,raw_resource_build!$B:$B,$C441,raw_resource_build!$A:$A,Q$396)+SUMIFS(raw_resource_build!$L:$L,raw_resource_build!$B:$B,$C441,raw_resource_build!$A:$A,Q$396)","v":0},{"$f":"SUMIFS(raw_resource_build!$K:$K,raw_resource_build!$B:$B,$C441,raw_resource_build!$A:$A,R$396)+SUMIFS(raw_resource_build!$L:$L,raw_resource_build!$B:$B,$C441,raw_resource_build!$A:$A,R$396)","v":0},{"$f":"SUMIFS(raw_resource_build!$K:$K,raw_resource_build!$B:$B,$C441,raw_resource_build!$A:$A,S$396)+SUMIFS(raw_resource_build!$L:$L,raw_resource_build!$B:$B,$C441,raw_resource_build!$A:$A,S$396)","v":0},{"$f":"SUMIFS(raw_resource_build!$K:$K,raw_resource_build!$B:$B,$C441,raw_resource_build!$A:$A,T$396)+SUMIFS(raw_resource_build!$L:$L,raw_resource_build!$B:$B,$C441,raw_resource_build!$A:$A,T$396)","v":275},{"$f":"SUMIFS(raw_resource_build!$K:$K,raw_resource_build!$B:$B,$C441,raw_resource_build!$A:$A,U$396)+SUMIFS(raw_resource_build!$L:$L,raw_resource_build!$B:$B,$C441,raw_resource_build!$A:$A,U$396)","v":0},{"$f":"SUMIFS(raw_resource_build!$K:$K,raw_resource_build!$B:$B,$C441,raw_resource_build!$A:$A,V$396)+SUMIFS(raw_resource_build!$L:$L,raw_resource_build!$B:$B,$C441,raw_resource_build!$A:$A,V$396)","v":0},{"$f":"SUMIFS(raw_resource_build!$K:$K,raw_resource_build!$B:$B,$C441,raw_resource_build!$A:$A,W$396)+SUMIFS(raw_resource_build!$L:$L,raw_resource_build!$B:$B,$C441,raw_resource_build!$A:$A,W$396)","v":0},{"$f":"SUMIFS(raw_resource_build!$K:$K,raw_resource_build!$B:$B,$C441,raw_resource_build!$A:$A,X$396)+SUMIFS(raw_resource_build!$L:$L,raw_resource_build!$B:$B,$C441,raw_resource_build!$A:$A,X$396)","v":0},{"$f":"SUMIFS(raw_resource_build!$K:$K,raw_resource_build!$B:$B,$C441,raw_resource_build!$A:$A,Y$396)+SUMIFS(raw_resource_build!$L:$L,raw_resource_build!$B:$B,$C441,raw_resource_build!$A:$A,Y$396)","v":0},{"$f":"SUMIFS(raw_resource_build!$K:$K,raw_resource_build!$B:$B,$C441,raw_resource_build!$A:$A,Z$396)+SUMIFS(raw_resource_build!$L:$L,raw_resource_build!$B:$B,$C441,raw_resource_build!$A:$A,Z$396)","v":0},{"$f":"SUMIFS(raw_resource_build!$K:$K,raw_resource_build!$B:$B,$C441,raw_resource_build!$A:$A,AA$396)+SUMIFS(raw_resource_build!$L:$L,raw_resource_build!$B:$B,$C441,raw_resource_build!$A:$A,AA$396)","v":0},{"$f":"SUMIFS(raw_resource_build!$K:$K,raw_resource_build!$B:$B,$C441,raw_resource_build!$A:$A,AB$396)+SUMIFS(raw_resource_build!$L:$L,raw_resource_build!$B:$B,$C441,raw_resource_build!$A:$A,AB$396)","v":0},{"$f":"SUMIFS(raw_resource_build!$K:$K,raw_resource_build!$B:$B,$C441,raw_resource_build!$A:$A,AC$396)+SUMIFS(raw_resource_build!$L:$L,raw_resource_build!$B:$B,$C441,raw_resource_build!$A:$A,AC$396)","v":0},{"$f":"SUMIFS(raw_resource_build!$K:$K,raw_resource_build!$B:$B,$C441,raw_resource_build!$A:$A,AD$396)+SUMIFS(raw_resource_build!$L:$L,raw_resource_build!$B:$B,$C441,raw_resource_build!$A:$A,AD$396)","v":0},{"$f":"SUMIFS(raw_resource_build!$K:$K,raw_resource_build!$B:$B,$C441,raw_resource_build!$A:$A,AE$396)+SUMIFS(raw_resource_build!$L:$L,raw_resource_build!$B:$B,$C441,raw_resource_build!$A:$A,AE$396)","v":0},{"$f":"SUMIFS(raw_resource_build!$K:$K,raw_resource_build!$B:$B,$C441,raw_resource_build!$A:$A,AF$396)+SUMIFS(raw_resource_build!$L:$L,raw_resource_build!$B:$B,$C441,raw_resource_build!$A:$A,AF$396)","v":0},{"$f":"SUMIFS(raw_resource_build!$K:$K,raw_resource_build!$B:$B,$C441,raw_resource_build!$A:$A,AG$396)+SUMIFS(raw_resource_build!$L:$L,raw_resource_build!$B:$B,$C441,raw_resource_build!$A:$A,AG$396)","v":0},{"$f":"SUMIFS(raw_resource_build!$K:$K,raw_resource_build!$B:$B,$C441,raw_resource_build!$A:$A,AH$396)+SUMIFS(raw_resource_build!$L:$L,raw_resource_build!$B:$B,$C441,raw_resource_build!$A:$A,AH$396)","v":0},{"$f":"SUMIFS(raw_resource_build!$K:$K,raw_resource_build!$B:$B,$C441,raw_resource_build!$A:$A,AI$396)+SUMIFS(raw_resource_build!$L:$L,raw_resource_build!$B:$B,$C441,raw_resource_build!$A:$A,AI$396)","v":275},{"$f":"SUMIFS(raw_resource_build!$K:$K,raw_resource_build!$B:$B,$C441,raw_resource_build!$A:$A,AJ$396)+SUMIFS(raw_resource_build!$L:$L,raw_resource_build!$B:$B,$C441,raw_resource_build!$A:$A,AJ$396)","v":0},{"$f":"SUMIFS(raw_resource_build!$K:$K,raw_resource_build!$B:$B,$C441,raw_resource_build!$A:$A,AK$396)+SUMIFS(raw_resource_build!$L:$L,raw_resource_build!$B:$B,$C441,raw_resource_build!$A:$A,AK$396)","v":0},{"$f":"SUMIFS(raw_resource_build!$K:$K,raw_resource_build!$B:$B,$C441,raw_resource_build!$A:$A,AL$396)+SUMIFS(raw_resource_build!$L:$L,raw_resource_build!$B:$B,$C441,raw_resource_build!$A:$A,AL$396)","v":0},{"$f":"SUMIFS(raw_resource_build!$K:$K,raw_resource_build!$B:$B,$C441,raw_resource_build!$A:$A,AM$396)+SUMIFS(raw_resource_build!$L:$L,raw_resource_build!$B:$B,$C441,raw_resource_build!$A:$A,AM$396)","v":0},{"$f":"SUMIFS(raw_resource_build!$K:$K,raw_resource_build!$B:$B,$C441,raw_resource_build!$A:$A,AN$396)+SUMIFS(raw_resource_build!$L:$L,raw_resource_build!$B:$B,$C441,raw_resource_build!$A:$A,AN$396)","v":0}]
[null,null,{"$f":"Lists!B80","v":"Westlands_Ex_Solar"},{"$f":"IF(INDEX(raw_resource_build!J:J,MATCH(C442,raw_resource_build!$B:$B,0))=0,\"N/A\",INDEX(raw_resource_build!J:J,MATCH(C442,raw_resource_build!$B:$B,0)))","v":"Westlands_Ex"},{"$f":"SUMIFS(raw_resource_build!$K:$K,raw_resource_build!$B:$B,$C442,raw_resource_build!$A:$A,E$396)+SUMIFS(raw_resource_build!$L:$L,raw_resource_build!$B:$B,$C442,raw_resource_build!$A:$A,E$396)","v":0},{"$f":"SUMIFS(raw_resource_build!$K:$K,raw_resource_build!$B:$B,$C442,raw_resource_build!$A:$A,F$396)+SUMIFS(raw_resource_build!$L:$L,raw_resource_build!$B:$B,$C442,raw_resource_build!$A:$A,F$396)","v":0},{"$f":"SUMIFS(raw_resource_build!$K:$K,raw_resource_build!$B:$B,$C442,raw_resource_build!$A:$A,G$396)+SUMIFS(raw_resource_build!$L:$L,raw_resource_build!$B:$B,$C442,raw_resource_build!$A:$A,G$396)","v":0},{"$f":"SUMIFS(raw_resource_build!$K:$K,raw_resource_build!$B:$B,$C442,raw_resource_build!$A:$A,H$396)+SUMIFS(raw_resource_build!$L:$L,raw_resource_build!$B:$B,$C442,raw_resource_build!$A:$A,H$396)","v":0},{"$f":"SUMIFS(raw_resource_build!$K:$K,raw_resource_build!$B:$B,$C442,raw_resource_build!$A:$A,I$396)+SUMIFS(raw_resource_build!$L:$L,raw_resource_build!$B:$B,$C442,raw_resource_build!$A:$A,I$396)","v":0},{"$f":"SUMIFS(raw_resource_build!$K:$K,raw_resource_build!$B:$B,$C442,raw_resource_build!$A:$A,J$396)+SUMIFS(raw_resource_build!$L:$L,raw_resource_build!$B:$B,$C442,raw_resource_build!$A:$A,J$396)","v":0},{"$f":"SUMIFS(raw_resource_build!$K:$K,raw_resource_build!$B:$B,$C442,raw_resource_build!$A:$A,K$396)+SUMIFS(raw_resource_build!$L:$L,raw_resource_build!$B:$B,$C442,raw_resource_build!$A:$A,K$396)","v":0},{"$f":"SUMIFS(raw_resource_build!$K:$K,raw_resource_build!$B:$B,$C442,raw_resource_build!$A:$A,L$396)+SUMIFS(raw_resource_build!$L:$L,raw_resource_build!$B:$B,$C442,raw_resource_build!$A:$A,L$396)","v":0},{"$f":"SUMIFS(raw_resource_build!$K:$K,raw_resource_build!$B:$B,$C442,raw_resource_build!$A:$A,M$396)+SUMIFS(raw_resource_build!$L:$L,raw_resource_build!$B:$B,$C442,raw_resource_build!$A:$A,M$396)","v":1778.57},{"$f":"SUMIFS(raw_resource_build!$K:$K,raw_resource_build!$B:$B,$C442,raw_resource_build!$A:$A,N$396)+SUMIFS(raw_resource_build!$L:$L,raw_resource_build!$B:$B,$C442,raw_resource_build!$A:$A,N$396)","v":1778.57},{"$f":"SUMIFS(raw_resource_build!$K:$K,raw_resource_build!$B:$B,$C442,raw_resource_build!$A:$A,O$396)+SUMIFS(raw_resource_build!$L:$L,raw_resource_build!$B:$B,$C442,raw_resource_build!$A:$A,O$396)","v":0},{"$f":"SUMIFS(raw_resource_build!$K:$K,raw_resource_build!$B:$B,$C442,raw_resource_build!$A:$A,P$396)+SUMIFS(raw_resource_build!$L:$L,raw_resource_build!$B:$B,$C442,raw_resource_build!$A:$A,P$396)","v":1778.57},{"$f":"SUMIFS(raw_resource_build!$K:$K,raw_resource_build!$B:$B,$C442,raw_resource_build!$A:$A,Q$396)+SUMIFS(raw_resource_build!$L:$L,raw_resource_build!$B:$B,$C442,raw_resource_build!$A:$A,Q$396)","v":0},{"$f":"SUMIFS(raw_resource_build!$K:$K,raw_resource_build!$B:$B,$C442,raw_resource_build!$A:$A,R$396)+SUMIFS(raw_resource_build!$L:$L,raw_resource_build!$B:$B,$C442,raw_resource_build!$A:$A,R$396)","v":0},{"$f":"SUMIFS(raw_resource_build!$K:$K,raw_resource_build!$B:$B,$C442,raw_resource_build!$A:$A,S$396)+SUMIFS(raw_resource_build!$L:$L,raw_resource_build!$B:$B,$C442,raw_resource_build!$A:$A,S$396)","v":0},{"$f":"SUMIFS(raw_resource_build!$K:$K,raw_resource_build!$B:$B,$C442,raw_resource_build!$A:$A,T$396)+SUMIFS(raw_resource_build!$L:$L,raw_resource_build!$B:$B,$C442,raw_resource_build!$A:$A,T$396)","v":1778.57},{"$f":"SUMIFS(raw_resource_build!$K:$K,raw_resource_build!$B:$B,$C442,raw_resource_build!$A:$A,U$396)+SUMIFS(raw_resource_build!$L:$L,raw_resource_build!$B:$B,$C442,raw_resource_build!$A:$A,U$396)","v":0},{"$f":"SUMIFS(raw_resource_build!$K:$K,raw_resource_build!$B:$B,$C442,raw_resource_build!$A:$A,V$396)+SUMIFS(raw_resource_build!$L:$L,raw_resource_build!$B:$B,$C442,raw_resource_build!$A:$A,V$396)","v":0},{"$f":"SUMIFS(raw_resource_build!$K:$K,raw_resource_build!$B:$B,$C442,raw_resource_build!$A:$A,W$396)+SUMIFS(raw_resource_build!$L:$L,raw_resource_build!$B:$B,$C442,raw_resource_build!$A:$A,W$396)","v":0},{"$f":"SUMIFS(raw_resource_build!$K:$K,raw_resource_build!$B:$B,$C442,raw_resource_build!$A:$A,X$396)+SUMIFS(raw_resource_build!$L:$L,raw_resource_build!$B:$B,$C442,raw_resource_build!$A:$A,X$396)","v":0},{"$f":"SUMIFS(raw_resource_build!$K:$K,raw_resource_build!$B:$B,$C442,raw_resource_build!$A:$A,Y$396)+SUMIFS(raw_resource_build!$L:$L,raw_resource_build!$B:$B,$C442,raw_resource_build!$A:$A,Y$396)","v":0},{"$f":"SUMIFS(raw_resource_build!$K:$K,raw_resource_build!$B:$B,$C442,raw_resource_build!$A:$A,Z$396)+SUMIFS(raw_resource_build!$L:$L,raw_resource_build!$B:$B,$C442,raw_resource_build!$A:$A,Z$396)","v":0},{"$f":"SUMIFS(raw_resource_build!$K:$K,raw_resource_build!$B:$B,$C442,raw_resource_build!$A:$A,AA$396)+SUMIFS(raw_resource_build!$L:$L,raw_resource_build!$B:$B,$C442,raw_resource_build!$A:$A,AA$396)","v":0},{"$f":"SUMIFS(raw_resource_build!$K:$K,raw_resource_build!$B:$B,$C442,raw_resource_build!$A:$A,AB$396)+SUMIFS(raw_resource_build!$L:$L,raw_resource_build!$B:$B,$C442,raw_resource_build!$A:$A,AB$396)","v":0},{"$f":"SUMIFS(raw_resource_build!$K:$K,raw_resource_build!$B:$B,$C442,raw_resource_build!$A:$A,AC$396)+SUMIFS(raw_resource_build!$L:$L,raw_resource_build!$B:$B,$C442,raw_resource_build!$A:$A,AC$396)","v":0},{"$f":"SUMIFS(raw_resource_build!$K:$K,raw_resource_build!$B:$B,$C442,raw_resource_build!$A:$A,AD$396)+SUMIFS(raw_resource_build!$L:$L,raw_resource_build!$B:$B,$C442,raw_resource_build!$A:$A,AD$396)","v":0},{"$f":"SUMIFS(raw_resource_build!$K:$K,raw_resource_build!$B:$B,$C442,raw_resource_build!$A:$A,AE$396)+SUMIFS(raw_resource_build!$L:$L,raw_resource_build!$B:$B,$C442,raw_resource_build!$A:$A,AE$396)","v":0},{"$f":"SUMIFS(raw_resource_build!$K:$K,raw_resource_build!$B:$B,$C442,raw_resource_build!$A:$A,AF$396)+SUMIFS(raw_resource_build!$L:$L,raw_resource_build!$B:$B,$C442,raw_resource_build!$A:$A,AF$396)","v":0},{"$f":"SUMIFS(raw_resource_build!$K:$K,raw_resource_build!$B:$B,$C442,raw_resource_build!$A:$A,AG$396)+SUMIFS(raw_resource_build!$L:$L,raw_resource_build!$B:$B,$C442,raw_resource_build!$A:$A,AG$396)","v":0},{"$f":"SUMIFS(raw_resource_build!$K:$K,raw_resource_build!$B:$B,$C442,raw_resource_build!$A:$A,AH$396)+SUMIFS(raw_resource_build!$L:$L,raw_resource_build!$B:$B,$C442,raw_resource_build!$A:$A,AH$396)","v":0},{"$f":"SUMIFS(raw_resource_build!$K:$K,raw_resource_build!$B:$B,$C442,raw_resource_build!$A:$A,AI$396)+SUMIFS(raw_resource_build!$L:$L,raw_resource_build!$B:$B,$C442,raw_resource_build!$A:$A,AI$396)","v":1778.57},{"$f":"SUMIFS(raw_resource_build!$K:$K,raw_resource_build!$B:$B,$C442,raw_resource_build!$A:$A,AJ$396)+SUMIFS(raw_resource_build!$L:$L,raw_resource_build!$B:$B,$C442,raw_resource_build!$A:$A,AJ$396)","v":0},{"$f":"SUMIFS(raw_resource_build!$K:$K,raw_resource_build!$B:$B,$C442,raw_resource_build!$A:$A,AK$396)+SUMIFS(raw_resource_build!$L:$L,raw_resource_build!$B:$B,$C442,raw_resource_build!$A:$A,AK$396)","v":0},{"$f":"SUMIFS(raw_resource_build!$K:$K,raw_resource_build!$B:$B,$C442,raw_resource_build!$A:$A,AL$396)+SUMIFS(raw_resource_build!$L:$L,raw_resource_build!$B:$B,$C442,raw_resource_build!$A:$A,AL$396)","v":0},{"$f":"SUMIFS(raw_resource_build!$K:$K,raw_resource_build!$B:$B,$C442,raw_resource_build!$A:$A,AM$396)+SUMIFS(raw_resource_build!$L:$L,raw_resource_build!$B:$B,$C442,raw_resource_build!$A:$A,AM$396)","v":0},{"$f":"SUMIFS(raw_resource_build!$K:$K,raw_resource_build!$B:$B,$C442,raw_resource_build!$A:$A,AN$396)+SUMIFS(raw_resource_build!$L:$L,raw_resource_build!$B:$B,$C442,raw_resource_build!$A:$A,AN$396)","v":0}]
[null,null,{"$f":"Lists!B81","v":"Westlands_Ex_Wind"},{"$f":"IF(INDEX(raw_resource_build!J:J,MATCH(C443,raw_resource_build!$B:$B,0))=0,\"N/A\",INDEX(raw_resource_build!J:J,MATCH(C443,raw_resource_build!$B:$B,0)))","v":"N/A"},{"$f":"SUMIFS(raw_resource_build!$K:$K,raw_resource_build!$B:$B,$C443,raw_resource_build!$A:$A,E$396)+SUMIFS(raw_resource_build!$L:$L,raw_resource_build!$B:$B,$C443,raw_resource_build!$A:$A,E$396)","v":0},{"$f":"SUMIFS(raw_resource_build!$K:$K,raw_resource_build!$B:$B,$C443,raw_resource_build!$A:$A,F$396)+SUMIFS(raw_resource_build!$L:$L,raw_resource_build!$B:$B,$C443,raw_resource_build!$A:$A,F$396)","v":0},{"$f":"SUMIFS(raw_resource_build!$K:$K,raw_resource_build!$B:$B,$C443,raw_resource_build!$A:$A,G$396)+SUMIFS(raw_resource_build!$L:$L,raw_resource_build!$B:$B,$C443,raw_resource_build!$A:$A,G$396)","v":0},{"$f":"SUMIFS(raw_resource_build!$K:$K,raw_resource_build!$B:$B,$C443,raw_resource_build!$A:$A,H$396)+SUMIFS(raw_resource_build!$L:$L,raw_resource_build!$B:$B,$C443,raw_resource_build!$A:$A,H$396)","v":0},{"$f":"SUMIFS(raw_resource_build!$K:$K,raw_resource_build!$B:$B,$C443,raw_resource_build!$A:$A,I$396)+SUMIFS(raw_resource_build!$L:$L,raw_resource_build!$B:$B,$C443,raw_resource_build!$A:$A,I$396)","v":0},{"$f":"SUMIFS(raw_resource_build!$K:$K,raw_resource_build!$B:$B,$C443,raw_resource_build!$A:$A,J$396)+SUMIFS(raw_resource_build!$L:$L,raw_resource_build!$B:$B,$C443,raw_resource_build!$A:$A,J$396)","v":0},{"$f":"SUMIFS(raw_resource_build!$K:$K,raw_resource_build!$B:$B,$C443,raw_resource_build!$A:$A,K$396)+SUMIFS(raw_resource_build!$L:$L,raw_resource_build!$B:$B,$C443,raw_resource_build!$A:$A,K$396)","v":0},{"$f":"SUMIFS(raw_resource_build!$K:$K,raw_resource_build!$B:$B,$C443,raw_resource_build!$A:$A,L$396)+SUMIFS(raw_resource_build!$L:$L,raw_resource_build!$B:$B,$C443,raw_resource_build!$A:$A,L$396)","v":0},{"$f":"SUMIFS(raw_resource_build!$K:$K,raw_resource_build!$B:$B,$C443,raw_resource_build!$A:$A,M$396)+SUMIFS(raw_resource_build!$L:$L,raw_resource_build!$B:$B,$C443,raw_resource_build!$A:$A,M$396)","v":0},{"$f":"SUMIFS(raw_resource_build!$K:$K,raw_resource_build!$B:$B,$C443,raw_resource_build!$A:$A,N$396)+SUMIFS(raw_resource_build!$L:$L,raw_resource_build!$B:$B,$C443,raw_resource_build!$A:$A,N$396)","v":0},{"$f":"SUMIFS(raw_resource_build!$K:$K,raw_resource_build!$B:$B,$C443,raw_resource_build!$A:$A,O$396)+SUMIFS(raw_resource_build!$L:$L,raw_resource_build!$B:$B,$C443,raw_resource_build!$A:$A,O$396)","v":0},{"$f":"SUMIFS(raw_resource_build!$K:$K,raw_resource_build!$B:$B,$C443,raw_resource_build!$A:$A,P$396)+SUMIFS(raw_resource_build!$L:$L,raw_resource_build!$B:$B,$C443,raw_resource_build!$A:$A,P$396)","v":0},{"$f":"SUMIFS(raw_resource_build!$K:$K,raw_resource_build!$B:$B,$C443,raw_resource_build!$A:$A,Q$396)+SUMIFS(raw_resource_build!$L:$L,raw_resource_build!$B:$B,$C443,raw_resource_build!$A:$A,Q$396)","v":0},{"$f":"SUMIFS(raw_resource_build!$K:$K,raw_resource_build!$B:$B,$C443,raw_resource_build!$A:$A,R$396)+SUMIFS(raw_resource_build!$L:$L,raw_resource_build!$B:$B,$C443,raw_resource_build!$A:$A,R$396)","v":0},{"$f":"SUMIFS(raw_resource_build!$K:$K,raw_resource_build!$B:$B,$C443,raw_resource_build!$A:$A,S$396)+SUMIFS(raw_resource_build!$L:$L,raw_resource_build!$B:$B,$C443,raw_resource_build!$A:$A,S$396)","v":0},{"$f":"SUMIFS(raw_resource_build!$K:$K,raw_resource_build!$B:$B,$C443,raw_resource_build!$A:$A,T$396)+SUMIFS(raw_resource_build!$L:$L,raw_resource_build!$B:$B,$C443,raw_resource_build!$A:$A,T$396)","v":0},{"$f":"SUMIFS(raw_resource_build!$K:$K,raw_resource_build!$B:$B,$C443,raw_resource_build!$A:$A,U$396)+SUMIFS(raw_resource_build!$L:$L,raw_resource_build!$B:$B,$C443,raw_resource_build!$A:$A,U$396)","v":0},{"$f":"SUMIFS(raw_resource_build!$K:$K,raw_resource_build!$B:$B,$C443,raw_resource_build!$A:$A,V$396)+SUMIFS(raw_resource_build!$L:$L,raw_resource_build!$B:$B,$C443,raw_resource_build!$A:$A,V$396)","v":0},{"$f":"SUMIFS(raw_resource_build!$K:$K,raw_resource_build!$B:$B,$C443,raw_resource_build!$A:$A,W$396)+SUMIFS(raw_resource_build!$L:$L,raw_resource_build!$B:$B,$C443,raw_resource_build!$A:$A,W$396)","v":0},{"$f":"SUMIFS(raw_resource_build!$K:$K,raw_resource_build!$B:$B,$C443,raw_resource_build!$A:$A,X$396)+SUMIFS(raw_resource_build!$L:$L,raw_resource_build!$B:$B,$C443,raw_resource_build!$A:$A,X$396)","v":0},{"$f":"SUMIFS(raw_resource_build!$K:$K,raw_resource_build!$B:$B,$C443,raw_resource_build!$A:$A,Y$396)+SUMIFS(raw_resource_build!$L:$L,raw_resource_build!$B:$B,$C443,raw_resource_build!$A:$A,Y$396)","v":0},{"$f":"SUMIFS(raw_resource_build!$K:$K,raw_resource_build!$B:$B,$C443,raw_resource_build!$A:$A,Z$396)+SUMIFS(raw_resource_build!$L:$L,raw_resource_build!$B:$B,$C443,raw_resource_build!$A:$A,Z$396)","v":0},{"$f":"SUMIFS(raw_resource_build!$K:$K,raw_resource_build!$B:$B,$C443,raw_resource_build!$A:$A,AA$396)+SUMIFS(raw_resource_build!$L:$L,raw_resource_build!$B:$B,$C443,raw_resource_build!$A:$A,AA$396)","v":0},{"$f":"SUMIFS(raw_resource_build!$K:$K,raw_resource_build!$B:$B,$C443,raw_resource_build!$A:$A,AB$396)+SUMIFS(raw_resource_build!$L:$L,raw_resource_build!$B:$B,$C443,raw_resource_build!$A:$A,AB$396)","v":0},{"$f":"SUMIFS(raw_resource_build!$K:$K,raw_resource_build!$B:$B,$C443,raw_resource_build!$A:$A,AC$396)+SUMIFS(raw_resource_build!$L:$L,raw_resource_build!$B:$B,$C443,raw_resource_build!$A:$A,AC$396)","v":0},{"$f":"SUMIFS(raw_resource_build!$K:$K,raw_resource_build!$B:$B,$C443,raw_resource_build!$A:$A,AD$396)+SUMIFS(raw_resource_build!$L:$L,raw_resource_build!$B:$B,$C443,raw_resource_build!$A:$A,AD$396)","v":0},{"$f":"SUMIFS(raw_resource_build!$K:$K,raw_resource_build!$B:$B,$C443,raw_resource_build!$A:$A,AE$396)+SUMIFS(raw_resource_build!$L:$L,raw_resource_build!$B:$B,$C443,raw_resource_build!$A:$A,AE$396)","v":0},{"$f":"SUMIFS(raw_resource_build!$K:$K,raw_resource_build!$B:$B,$C443,raw_resource_build!$A:$A,AF$396)+SUMIFS(raw_resource_build!$L:$L,raw_resource_build!$B:$B,$C443,raw_resource_build!$A:$A,AF$396)","v":0},{"$f":"SUMIFS(raw_resource_build!$K:$K,raw_resource_build!$B:$B,$C443,raw_resource_build!$A:$A,AG$396)+SUMIFS(raw_resource_build!$L:$L,raw_resource_build!$B:$B,$C443,raw_resource_build!$A:$A,AG$396)","v":0},{"$f":"SUMIFS(raw_resource_build!$K:$K,raw_resource_build!$B:$B,$C443,raw_resource_build!$A:$A,AH$396)+SUMIFS(raw_resource_build!$L:$L,raw_resource_build!$B:$B,$C443,raw_resource_build!$A:$A,AH$396)","v":0},{"$f":"SUMIFS(raw_resource_build!$K:$K,raw_resource_build!$B:$B,$C443,raw_resource_build!$A:$A,AI$396)+SUMIFS(raw_resource_build!$L:$L,raw_resource_build!$B:$B,$C443,raw_resource_build!$A:$A,AI$396)","v":0},{"$f":"SUMIFS(raw_resource_build!$K:$K,raw_resource_build!$B:$B,$C443,raw_resource_build!$A:$A,AJ$396)+SUMIFS(raw_resource_build!$L:$L,raw_resource_build!$B:$B,$C443,raw_resource_build!$A:$A,AJ$396)","v":0},{"$f":"SUMIFS(raw_resource_build!$K:$K,raw_resource_build!$B:$B,$C443,raw_resource_build!$A:$A,AK$396)+SUMIFS(raw_resource_build!$L:$L,raw_resource_build!$B:$B,$C443,raw_resource_build!$A:$A,AK$396)","v":0},{"$f":"SUMIFS(raw_resource_build!$K:$K,raw_resource_build!$B:$B,$C443,raw_resource_build!$A:$A,AL$396)+SUMIFS(raw_resource_build!$L:$L,raw_resource_build!$B:$B,$C443,raw_resource_build!$A:$A,AL$396)","v":0},{"$f":"SUMIFS(raw_resource_build!$K:$K,raw_resource_build!$B:$B,$C443,raw_resource_build!$A:$A,AM$396)+SUMIFS(raw_resource_build!$L:$L,raw_resource_build!$B:$B,$C443,raw_resource_build!$A:$A,AM$396)","v":0},{"$f":"SUMIFS(raw_resource_build!$K:$K,raw_resource_build!$B:$B,$C443,raw_resource_build!$A:$A,AN$396)+SUMIFS(raw_resource_build!$L:$L,raw_resource_build!$B:$B,$C443,raw_resource_build!$A:$A,AN$396)","v":0}]
[null,null,{"$f":"Lists!B82","v":"Westlands_Solar"},{"$f":"IF(INDEX(raw_resource_build!J:J,MATCH(C444,raw_resource_build!$B:$B,0))=0,\"N/A\",INDEX(raw_resource_build!J:J,MATCH(C444,raw_resource_build!$B:$B,0)))","v":"Central_Valley_North_Los_Banos-SPGE"},{"$f":"SUMIFS(raw_resource_build!$K:$K,raw_resource_build!$B:$B,$C444,raw_resource_build!$A:$A,E$396)+SUMIFS(raw_resource_build!$L:$L,raw_resource_build!$B:$B,$C444,raw_resource_build!$A:$A,E$396)","v":0},{"$f":"SUMIFS(raw_resource_build!$K:$K,raw_resource_build!$B:$B,$C444,raw_resource_build!$A:$A,F$396)+SUMIFS(raw_resource_build!$L:$L,raw_resource_build!$B:$B,$C444,raw_resource_build!$A:$A,F$396)","v":0},{"$f":"SUMIFS(raw_resource_build!$K:$K,raw_resource_build!$B:$B,$C444,raw_resource_build!$A:$A,G$396)+SUMIFS(raw_resource_build!$L:$L,raw_resource_build!$B:$B,$C444,raw_resource_build!$A:$A,G$396)","v":0},{"$f":"SUMIFS(raw_resource_build!$K:$K,raw_resource_build!$B:$B,$C444,raw_resource_build!$A:$A,H$396)+SUMIFS(raw_resource_build!$L:$L,raw_resource_build!$B:$B,$C444,raw_resource_build!$A:$A,H$396)","v":0},{"$f":"SUMIFS(raw_resource_build!$K:$K,raw_resource_build!$B:$B,$C444,raw_resource_build!$A:$A,I$396)+SUMIFS(raw_resource_build!$L:$L,raw_resource_build!$B:$B,$C444,raw_resource_build!$A:$A,I$396)","v":0},{"$f":"SUMIFS(raw_resource_build!$K:$K,raw_resource_build!$B:$B,$C444,raw_resource_build!$A:$A,J$396)+SUMIFS(raw_resource_build!$L:$L,raw_resource_build!$B:$B,$C444,raw_resource_build!$A:$A,J$396)","v":0},{"$f":"SUMIFS(raw_resource_build!$K:$K,raw_resource_build!$B:$B,$C444,raw_resource_build!$A:$A,K$396)+SUMIFS(raw_resource_build!$L:$L,raw_resource_build!$B:$B,$C444,raw_resource_build!$A:$A,K$396)","v":0},{"$f":"SUMIFS(raw_resource_build!$K:$K,raw_resource_build!$B:$B,$C444,raw_resource_build!$A:$A,L$396)+SUMIFS(raw_resource_build!$L:$L,raw_resource_build!$B:$B,$C444,raw_resource_build!$A:$A,L$396)","v":0},{"$f":"SUMIFS(raw_resource_build!$K:$K,raw_resource_build!$B:$B,$C444,raw_resource_build!$A:$A,M$396)+SUMIFS(raw_resource_build!$L:$L,raw_resource_build!$B:$B,$C444,raw_resource_build!$A:$A,M$396)","v":40.69},{"$f":"SUMIFS(raw_resource_build!$K:$K,raw_resource_build!$B:$B,$C444,raw_resource_build!$A:$A,N$396)+SUMIFS(raw_resource_build!$L:$L,raw_resource_build!$B:$B,$C444,raw_resource_build!$A:$A,N$396)","v":40.69},{"$f":"SUMIFS(raw_resource_build!$K:$K,raw_resource_build!$B:$B,$C444,raw_resource_build!$A:$A,O$396)+SUMIFS(raw_resource_build!$L:$L,raw_resource_build!$B:$B,$C444,raw_resource_build!$A:$A,O$396)","v":0},{"$f":"SUMIFS(raw_resource_build!$K:$K,raw_resource_build!$B:$B,$C444,raw_resource_build!$A:$A,P$396)+SUMIFS(raw_resource_build!$L:$L,raw_resource_build!$B:$B,$C444,raw_resource_build!$A:$A,P$396)","v":617.94000000000005},{"$f":"SUMIFS(raw_resource_build!$K:$K,raw_resource_build!$B:$B,$C444,raw_resource_build!$A:$A,Q$396)+SUMIFS(raw_resource_build!$L:$L,raw_resource_build!$B:$B,$C444,raw_resource_build!$A:$A,Q$396)","v":0},{"$f":"SUMIFS(raw_resource_build!$K:$K,raw_resource_build!$B:$B,$C444,raw_resource_build!$A:$A,R$396)+SUMIFS(raw_resource_build!$L:$L,raw_resource_build!$B:$B,$C444,raw_resource_build!$A:$A,R$396)","v":0},{"$f":"SUMIFS(raw_resource_build!$K:$K,raw_resource_build!$B:$B,$C444,raw_resource_build!$A:$A,S$396)+SUMIFS(raw_resource_build!$L:$L,raw_resource_build!$B:$B,$C444,raw_resource_build!$A:$A,S$396)","v":0},{"$f":"SUMIFS(raw_resource_build!$K:$K,raw_resource_build!$B:$B,$C444,raw_resource_build!$A:$A,T$396)+SUMIFS(raw_resource_build!$L:$L,raw_resource_build!$B:$B,$C444,raw_resource_build!$A:$A,T$396)","v":617.94000000000005},{"$f":"SUMIFS(raw_resource_build!$K:$K,raw_resource_build!$B:$B,$C444,raw_resource_build!$A:$A,U$396)+SUMIFS(raw_resource_build!$L:$L,raw_resource_build!$B:$B,$C444,raw_resource_build!$A:$A,U$396)","v":0},{"$f":"SUMIFS(raw_resource_build!$K:$K,raw_resource_build!$B:$B,$C444,raw_resource_build!$A:$A,V$396)+SUMIFS(raw_resource_build!$L:$L,raw_resource_build!$B:$B,$C444,raw_resource_build!$A:$A,V$396)","v":0},{"$f":"SUMIFS(raw_resource_build!$K:$K,raw_resource_build!$B:$B,$C444,raw_resource_build!$A:$A,W$396)+SUMIFS(raw_resource_build!$L:$L,raw_resource_build!$B:$B,$C444,raw_resource_build!$A:$A,W$396)","v":0},{"$f":"SUMIFS(raw_resource_build!$K:$K,raw_resource_build!$B:$B,$C444,raw_resource_build!$A:$A,X$396)+SUMIFS(raw_resource_build!$L:$L,raw_resource_build!$B:$B,$C444,raw_resource_build!$A:$A,X$396)","v":0},{"$f":"SUMIFS(raw_resource_build!$K:$K,raw_resource_build!$B:$B,$C444,raw_resource_build!$A:$A,Y$396)+SUMIFS(raw_resource_build!$L:$L,raw_resource_build!$B:$B,$C444,raw_resource_build!$A:$A,Y$396)","v":0},{"$f":"SUMIFS(raw_resource_build!$K:$K,raw_resource_build!$B:$B,$C444,raw_resource_build!$A:$A,Z$396)+SUMIFS(raw_resource_build!$L:$L,raw_resource_build!$B:$B,$C444,raw_resource_build!$A:$A,Z$396)","v":0},{"$f":"SUMIFS(raw_resource_build!$K:$K,raw_resource_build!$B:$B,$C444,raw_resource_build!$A:$A,AA$396)+SUMIFS(raw_resource_build!$L:$L,raw_resource_build!$B:$B,$C444,raw_resource_build!$A:$A,AA$396)","v":0},{"$f":"SUMIFS(raw_resource_build!$K:$K,raw_resource_build!$B:$B,$C444,raw_resource_build!$A:$A,AB$396)+SUMIFS(raw_resource_build!$L:$L,raw_resource_build!$B:$B,$C444,raw_resource_build!$A:$A,AB$396)","v":0},{"$f":"SUMIFS(raw_resource_build!$K:$K,raw_resource_build!$B:$B,$C444,raw_resource_build!$A:$A,AC$396)+SUMIFS(raw_resource_build!$L:$L,raw_resource_build!$B:$B,$C444,raw_resource_build!$A:$A,AC$396)","v":0},{"$f":"SUMIFS(raw_resource_build!$K:$K,raw_resource_build!$B:$B,$C444,raw_resource_build!$A:$A,AD$396)+SUMIFS(raw_resource_build!$L:$L,raw_resource_build!$B:$B,$C444,raw_resource_build!$A:$A,AD$396)","v":0},{"$f":"SUMIFS(raw_resource_build!$K:$K,raw_resource_build!$B:$B,$C444,raw_resource_build!$A:$A,AE$396)+SUMIFS(raw_resource_build!$L:$L,raw_resource_build!$B:$B,$C444,raw_resource_build!$A:$A,AE$396)","v":0},{"$f":"SUMIFS(raw_resource_build!$K:$K,raw_resource_build!$B:$B,$C444,raw_resource_build!$A:$A,AF$396)+SUMIFS(raw_resource_build!$L:$L,raw_resource_build!$B:$B,$C444,raw_resource_build!$A:$A,AF$396)","v":0},{"$f":"SUMIFS(raw_resource_build!$K:$K,raw_resource_build!$B:$B,$C444,raw_resource_build!$A:$A,AG$396)+SUMIFS(raw_resource_build!$L:$L,raw_resource_build!$B:$B,$C444,raw_resource_build!$A:$A,AG$396)","v":0},{"$f":"SUMIFS(raw_resource_build!$K:$K,raw_resource_build!$B:$B,$C444,raw_resource_build!$A:$A,AH$396)+SUMIFS(raw_resource_build!$L:$L,raw_resource_build!$B:$B,$C444,raw_resource_build!$A:$A,AH$396)","v":0},{"$f":"SUMIFS(raw_resource_build!$K:$K,raw_resource_build!$B:$B,$C444,raw_resource_build!$A:$A,AI$396)+SUMIFS(raw_resource_build!$L:$L,raw_resource_build!$B:$B,$C444,raw_resource_build!$A:$A,AI$396)","v":56150.5},{"$f":"SUMIFS(raw_resource_build!$K:$K,raw_resource_build!$B:$B,$C444,raw_resource_build!$A:$A,AJ$396)+SUMIFS(raw_resource_build!$L:$L,raw_resource_build!$B:$B,$C444,raw_resource_build!$A:$A,AJ$396)","v":0},{"$f":"SUMIFS(raw_resource_build!$K:$K,raw_resource_build!$B:$B,$C444,raw_resource_build!$A:$A,AK$396)+SUMIFS(raw_resource_build!$L:$L,raw_resource_build!$B:$B,$C444,raw_resource_build!$A:$A,AK$396)","v":0},{"$f":"SUMIFS(raw_resource_build!$K:$K,raw_resource_build!$B:$B,$C444,raw_resource_build!$A:$A,AL$396)+SUMIFS(raw_resource_build!$L:$L,raw_resource_build!$B:$B,$C444,raw_resource_build!$A:$A,AL$396)","v":0},{"$f":"SUMIFS(raw_resource_build!$K:$K,raw_resource_build!$B:$B,$C444,raw_resource_build!$A:$A,AM$396)+SUMIFS(raw_resource_build!$L:$L,raw_resource_build!$B:$B,$C444,raw_resource_build!$A:$A,AM$396)","v":0},{"$f":"SUMIFS(raw_resource_build!$K:$K,raw_resource_build!$B:$B,$C444,raw_resource_build!$A:$A,AN$396)+SUMIFS(raw_resource_build!$L:$L,raw_resource_build!$B:$B,$C444,raw_resource_build!$A:$A,AN$396)","v":0}]
[null,null,{"$f":"Lists!B83","v":"Cape_Mendocino_Offshore_Wind"},{"$f":"IF(INDEX(raw_resource_build!J:J,MATCH(C445,raw_resource_build!$B:$B,0))=0,\"N/A\",INDEX(raw_resource_build!J:J,MATCH(C445,raw_resource_build!$B:$B,0)))","v":"N/A"},{"$f":"SUMIFS(raw_resource_build!$K:$K,raw_resource_build!$B:$B,$C445,raw_resource_build!$A:$A,E$396)+SUMIFS(raw_resource_build!$L:$L,raw_resource_build!$B:$B,$C445,raw_resource_build!$A:$A,E$396)","v":0},{"$f":"SUMIFS(raw_resource_build!$K:$K,raw_resource_build!$B:$B,$C445,raw_resource_build!$A:$A,F$396)+SUMIFS(raw_resource_build!$L:$L,raw_resource_build!$B:$B,$C445,raw_resource_build!$A:$A,F$396)","v":0},{"$f":"SUMIFS(raw_resource_build!$K:$K,raw_resource_build!$B:$B,$C445,raw_resource_build!$A:$A,G$396)+SUMIFS(raw_resource_build!$L:$L,raw_resource_build!$B:$B,$C445,raw_resource_build!$A:$A,G$396)","v":0},{"$f":"SUMIFS(raw_resource_build!$K:$K,raw_resource_build!$B:$B,$C445,raw_resource_build!$A:$A,H$396)+SUMIFS(raw_resource_build!$L:$L,raw_resource_build!$B:$B,$C445,raw_resource_build!$A:$A,H$396)","v":0},{"$f":"SUMIFS(raw_resource_build!$K:$K,raw_resource_build!$B:$B,$C445,raw_resource_build!$A:$A,I$396)+SUMIFS(raw_resource_build!$L:$L,raw_resource_build!$B:$B,$C445,raw_resource_build!$A:$A,I$396)","v":0},{"$f":"SUMIFS(raw_resource_build!$K:$K,raw_resource_build!$B:$B,$C445,raw_resource_build!$A:$A,J$396)+SUMIFS(raw_resource_build!$L:$L,raw_resource_build!$B:$B,$C445,raw_resource_build!$A:$A,J$396)","v":0},{"$f":"SUMIFS(raw_resource_build!$K:$K,raw_resource_build!$B:$B,$C445,raw_resource_build!$A:$A,K$396)+SUMIFS(raw_resource_build!$L:$L,raw_resource_build!$B:$B,$C445,raw_resource_build!$A:$A,K$396)","v":0},{"$f":"SUMIFS(raw_resource_build!$K:$K,raw_resource_build!$B:$B,$C445,raw_resource_build!$A:$A,L$396)+SUMIFS(raw_resource_build!$L:$L,raw_resource_build!$B:$B,$C445,raw_resource_build!$A:$A,L$396)","v":0},{"$f":"SUMIFS(raw_resource_build!$K:$K,raw_resource_build!$B:$B,$C445,raw_resource_build!$A:$A,M$396)+SUMIFS(raw_resource_build!$L:$L,raw_resource_build!$B:$B,$C445,raw_resource_build!$A:$A,M$396)","v":0},{"$f":"SUMIFS(raw_resource_build!$K:$K,raw_resource_build!$B:$B,$C445,raw_resource_build!$A:$A,N$396)+SUMIFS(raw_resource_build!$L:$L,raw_resource_build!$B:$B,$C445,raw_resource_build!$A:$A,N$396)","v":0},{"$f":"SUMIFS(raw_resource_build!$K:$K,raw_resource_build!$B:$B,$C445,raw_resource_build!$A:$A,O$396)+SUMIFS(raw_resource_build!$L:$L,raw_resource_build!$B:$B,$C445,raw_resource_build!$A:$A,O$396)","v":0},{"$f":"SUMIFS(raw_resource_build!$K:$K,raw_resource_build!$B:$B,$C445,raw_resource_build!$A:$A,P$396)+SUMIFS(raw_resource_build!$L:$L,raw_resource_build!$B:$B,$C445,raw_resource_build!$A:$A,P$396)","v":0},{"$f":"SUMIFS(raw_resource_build!$K:$K,raw_resource_build!$B:$B,$C445,raw_resource_build!$A:$A,Q$396)+SUMIFS(raw_resource_build!$L:$L,raw_resource_build!$B:$B,$C445,raw_resource_build!$A:$A,Q$396)","v":0},{"$f":"SUMIFS(raw_resource_build!$K:$K,raw_resource_build!$B:$B,$C445,raw_resource_build!$A:$A,R$396)+SUMIFS(raw_resource_build!$L:$L,raw_resource_build!$B:$B,$C445,raw_resource_build!$A:$A,R$396)","v":0},{"$f":"SUMIFS(raw_resource_build!$K:$K,raw_resource_build!$B:$B,$C445,raw_resource_build!$A:$A,S$396)+SUMIFS(raw_resource_build!$L:$L,raw_resource_build!$B:$B,$C445,raw_resource_build!$A:$A,S$396)","v":0},{"$f":"SUMIFS(raw_resource_build!$K:$K,raw_resource_build!$B:$B,$C445,raw_resource_build!$A:$A,T$396)+SUMIFS(raw_resource_build!$L:$L,raw_resource_build!$B:$B,$C445,raw_resource_build!$A:$A,T$396)","v":0},{"$f":"SUMIFS(raw_resource_build!$K:$K,raw_resource_build!$B:$B,$C445,raw_resource_build!$A:$A,U$396)+SUMIFS(raw_resource_build!$L:$L,raw_resource_build!$B:$B,$C445,raw_resource_build!$A:$A,U$396)","v":0},{"$f":"SUMIFS(raw_resource_build!$K:$K,raw_resource_build!$B:$B,$C445,raw_resource_build!$A:$A,V$396)+SUMIFS(raw_resource_build!$L:$L,raw_resource_build!$B:$B,$C445,raw_resource_build!$A:$A,V$396)","v":0},{"$f":"SUMIFS(raw_resource_build!$K:$K,raw_resource_build!$B:$B,$C445,raw_resource_build!$A:$A,W$396)+SUMIFS(raw_resource_build!$L:$L,raw_resource_build!$B:$B,$C445,raw_resource_build!$A:$A,W$396)","v":0},{"$f":"SUMIFS(raw_resource_build!$K:$K,raw_resource_build!$B:$B,$C445,raw_resource_build!$A:$A,X$396)+SUMIFS(raw_resource_build!$L:$L,raw_resource_build!$B:$B,$C445,raw_resource_build!$A:$A,X$396)","v":0},{"$f":"SUMIFS(raw_resource_build!$K:$K,raw_resource_build!$B:$B,$C445,raw_resource_build!$A:$A,Y$396)+SUMIFS(raw_resource_build!$L:$L,raw_resource_build!$B:$B,$C445,raw_resource_build!$A:$A,Y$396)","v":0},{"$f":"SUMIFS(raw_resource_build!$K:$K,raw_resource_build!$B:$B,$C445,raw_resource_build!$A:$A,Z$396)+SUMIFS(raw_resource_build!$L:$L,raw_resource_build!$B:$B,$C445,raw_resource_build!$A:$A,Z$396)","v":0},{"$f":"SUMIFS(raw_resource_build!$K:$K,raw_resource_build!$B:$B,$C445,raw_resource_build!$A:$A,AA$396)+SUMIFS(raw_resource_build!$L:$L,raw_resource_build!$B:$B,$C445,raw_resource_build!$A:$A,AA$396)","v":0},{"$f":"SUMIFS(raw_resource_build!$K:$K,raw_resource_build!$B:$B,$C445,raw_resource_build!$A:$A,AB$396)+SUMIFS(raw_resource_build!$L:$L,raw_resource_build!$B:$B,$C445,raw_resource_build!$A:$A,AB$396)","v":0},{"$f":"SUMIFS(raw_resource_build!$K:$K,raw_resource_build!$B:$B,$C445,raw_resource_build!$A:$A,AC$396)+SUMIFS(raw_resource_build!$L:$L,raw_resource_build!$B:$B,$C445,raw_resource_build!$A:$A,AC$396)","v":0},{"$f":"SUMIFS(raw_resource_build!$K:$K,raw_resource_build!$B:$B,$C445,raw_resource_build!$A:$A,AD$396)+SUMIFS(raw_resource_build!$L:$L,raw_resource_build!$B:$B,$C445,raw_resource_build!$A:$A,AD$396)","v":0},{"$f":"SUMIFS(raw_resource_build!$K:$K,raw_resource_build!$B:$B,$C445,raw_resource_build!$A:$A,AE$396)+SUMIFS(raw_resource_build!$L:$L,raw_resource_build!$B:$B,$C445,raw_resource_build!$A:$A,AE$396)","v":0},{"$f":"SUMIFS(raw_resource_build!$K:$K,raw_resource_build!$B:$B,$C445,raw_resource_build!$A:$A,AF$396)+SUMIFS(raw_resource_build!$L:$L,raw_resource_build!$B:$B,$C445,raw_resource_build!$A:$A,AF$396)","v":0},{"$f":"SUMIFS(raw_resource_build!$K:$K,raw_resource_build!$B:$B,$C445,raw_resource_build!$A:$A,AG$396)+SUMIFS(raw_resource_build!$L:$L,raw_resource_build!$B:$B,$C445,raw_resource_build!$A:$A,AG$396)","v":0},{"$f":"SUMIFS(raw_resource_build!$K:$K,raw_resource_build!$B:$B,$C445,raw_resource_build!$A:$A,AH$396)+SUMIFS(raw_resource_build!$L:$L,raw_resource_build!$B:$B,$C445,raw_resource_build!$A:$A,AH$396)","v":0},{"$f":"SUMIFS(raw_resource_build!$K:$K,raw_resource_build!$B:$B,$C445,raw_resource_build!$A:$A,AI$396)+SUMIFS(raw_resource_build!$L:$L,raw_resource_build!$B:$B,$C445,raw_resource_build!$A:$A,AI$396)","v":0},{"$f":"SUMIFS(raw_resource_build!$K:$K,raw_resource_build!$B:$B,$C445,raw_resource_build!$A:$A,AJ$396)+SUMIFS(raw_resource_build!$L:$L,raw_resource_build!$B:$B,$C445,raw_resource_build!$A:$A,AJ$396)","v":0},{"$f":"SUMIFS(raw_resource_build!$K:$K,raw_resource_build!$B:$B,$C445,raw_resource_build!$A:$A,AK$396)+SUMIFS(raw_resource_build!$L:$L,raw_resource_build!$B:$B,$C445,raw_resource_build!$A:$A,AK$396)","v":0},{"$f":"SUMIFS(raw_resource_build!$K:$K,raw_resource_build!$B:$B,$C445,raw_resource_build!$A:$A,AL$396)+SUMIFS(raw_resource_build!$L:$L,raw_resource_build!$B:$B,$C445,raw_resource_build!$A:$A,AL$396)","v":0},{"$f":"SUMIFS(raw_resource_build!$K:$K,raw_resource_build!$B:$B,$C445,raw_resource_build!$A:$A,AM$396)+SUMIFS(raw_resource_build!$L:$L,raw_resource_build!$B:$B,$C445,raw_resource_build!$A:$A,AM$396)","v":0},{"$f":"SUMIFS(raw_resource_build!$K:$K,raw_resource_build!$B:$B,$C445,raw_resource_build!$A:$A,AN$396)+SUMIFS(raw_resource_build!$L:$L,raw_resource_build!$B:$B,$C445,raw_resource_build!$A:$A,AN$396)","v":0}]
[null,null,{"$f":"Lists!B84","v":"Del_Norte_Offshore_Wind"},{"$f":"IF(INDEX(raw_resource_build!J:J,MATCH(C446,raw_resource_build!$B:$B,0))=0,\"N/A\",INDEX(raw_resource_build!J:J,MATCH(C446,raw_resource_build!$B:$B,0)))","v":"N/A"},{"$f":"SUMIFS(raw_resource_build!$K:$K,raw_resource_build!$B:$B,$C446,raw_resource_build!$A:$A,E$396)+SUMIFS(raw_resource_build!$L:$L,raw_resource_build!$B:$B,$C446,raw_resource_build!$A:$A,E$396)","v":0},{"$f":"SUMIFS(raw_resource_build!$K:$K,raw_resource_build!$B:$B,$C446,raw_resource_build!$A:$A,F$396)+SUMIFS(raw_resource_build!$L:$L,raw_resource_build!$B:$B,$C446,raw_resource_build!$A:$A,F$396)","v":0},{"$f":"SUMIFS(raw_resource_build!$K:$K,raw_resource_build!$B:$B,$C446,raw_resource_build!$A:$A,G$396)+SUMIFS(raw_resource_build!$L:$L,raw_resource_build!$B:$B,$C446,raw_resource_build!$A:$A,G$396)","v":0},{"$f":"SUMIFS(raw_resource_build!$K:$K,raw_resource_build!$B:$B,$C446,raw_resource_build!$A:$A,H$396)+SUMIFS(raw_resource_build!$L:$L,raw_resource_build!$B:$B,$C446,raw_resource_build!$A:$A,H$396)","v":0},{"$f":"SUMIFS(raw_resource_build!$K:$K,raw_resource_build!$B:$B,$C446,raw_resource_build!$A:$A,I$396)+SUMIFS(raw_resource_build!$L:$L,raw_resource_build!$B:$B,$C446,raw_resource_build!$A:$A,I$396)","v":0},{"$f":"SUMIFS(raw_resource_build!$K:$K,raw_resource_build!$B:$B,$C446,raw_resource_build!$A:$A,J$396)+SUMIFS(raw_resource_build!$L:$L,raw_resource_build!$B:$B,$C446,raw_resource_build!$A:$A,J$396)","v":0},{"$f":"SUMIFS(raw_resource_build!$K:$K,raw_resource_build!$B:$B,$C446,raw_resource_build!$A:$A,K$396)+SUMIFS(raw_resource_build!$L:$L,raw_resource_build!$B:$B,$C446,raw_resource_build!$A:$A,K$396)","v":0},{"$f":"SUMIFS(raw_resource_build!$K:$K,raw_resource_build!$B:$B,$C446,raw_resource_build!$A:$A,L$396)+SUMIFS(raw_resource_build!$L:$L,raw_resource_build!$B:$B,$C446,raw_resource_build!$A:$A,L$396)","v":0},{"$f":"SUMIFS(raw_resource_build!$K:$K,raw_resource_build!$B:$B,$C446,raw_resource_build!$A:$A,M$396)+SUMIFS(raw_resource_build!$L:$L,raw_resource_build!$B:$B,$C446,raw_resource_build!$A:$A,M$396)","v":0},{"$f":"SUMIFS(raw_resource_build!$K:$K,raw_resource_build!$B:$B,$C446,raw_resource_build!$A:$A,N$396)+SUMIFS(raw_resource_build!$L:$L,raw_resource_build!$B:$B,$C446,raw_resource_build!$A:$A,N$396)","v":0},{"$f":"SUMIFS(raw_resource_build!$K:$K,raw_resource_build!$B:$B,$C446,raw_resource_build!$A:$A,O$396)+SUMIFS(raw_resource_build!$L:$L,raw_resource_build!$B:$B,$C446,raw_resource_build!$A:$A,O$396)","v":0},{"$f":"SUMIFS(raw_resource_build!$K:$K,raw_resource_build!$B:$B,$C446,raw_resource_build!$A:$A,P$396)+SUMIFS(raw_resource_build!$L:$L,raw_resource_build!$B:$B,$C446,raw_resource_build!$A:$A,P$396)","v":0},{"$f":"SUMIFS(raw_resource_build!$K:$K,raw_resource_build!$B:$B,$C446,raw_resource_build!$A:$A,Q$396)+SUMIFS(raw_resource_build!$L:$L,raw_resource_build!$B:$B,$C446,raw_resource_build!$A:$A,Q$396)","v":0},{"$f":"SUMIFS(raw_resource_build!$K:$K,raw_resource_build!$B:$B,$C446,raw_resource_build!$A:$A,R$396)+SUMIFS(raw_resource_build!$L:$L,raw_resource_build!$B:$B,$C446,raw_resource_build!$A:$A,R$396)","v":0},{"$f":"SUMIFS(raw_resource_build!$K:$K,raw_resource_build!$B:$B,$C446,raw_resource_build!$A:$A,S$396)+SUMIFS(raw_resource_build!$L:$L,raw_resource_build!$B:$B,$C446,raw_resource_build!$A:$A,S$396)","v":0},{"$f":"SUMIFS(raw_resource_build!$K:$K,raw_resource_build!$B:$B,$C446,raw_resource_build!$A:$A,T$396)+SUMIFS(raw_resource_build!$L:$L,raw_resource_build!$B:$B,$C446,raw_resource_build!$A:$A,T$396)","v":0},{"$f":"SUMIFS(raw_resource_build!$K:$K,raw_resource_build!$B:$B,$C446,raw_resource_build!$A:$A,U$396)+SUMIFS(raw_resource_build!$L:$L,raw_resource_build!$B:$B,$C446,raw_resource_build!$A:$A,U$396)","v":0},{"$f":"SUMIFS(raw_resource_build!$K:$K,raw_resource_build!$B:$B,$C446,raw_resource_build!$A:$A,V$396)+SUMIFS(raw_resource_build!$L:$L,raw_resource_build!$B:$B,$C446,raw_resource_build!$A:$A,V$396)","v":0},{"$f":"SUMIFS(raw_resource_build!$K:$K,raw_resource_build!$B:$B,$C446,raw_resource_build!$A:$A,W$396)+SUMIFS(raw_resource_build!$L:$L,raw_resource_build!$B:$B,$C446,raw_resource_build!$A:$A,W$396)","v":0},{"$f":"SUMIFS(raw_resource_build!$K:$K,raw_resource_build!$B:$B,$C446,raw_resource_build!$A:$A,X$396)+SUMIFS(raw_resource_build!$L:$L,raw_resource_build!$B:$B,$C446,raw_resource_build!$A:$A,X$396)","v":0},{"$f":"SUMIFS(raw_resource_build!$K:$K,raw_resource_build!$B:$B,$C446,raw_resource_build!$A:$A,Y$396)+SUMIFS(raw_resource_build!$L:$L,raw_resource_build!$B:$B,$C446,raw_resource_build!$A:$A,Y$396)","v":0},{"$f":"SUMIFS(raw_resource_build!$K:$K,raw_resource_build!$B:$B,$C446,raw_resource_build!$A:$A,Z$396)+SUMIFS(raw_resource_build!$L:$L,raw_resource_build!$B:$B,$C446,raw_resource_build!$A:$A,Z$396)","v":0},{"$f":"SUMIFS(raw_resource_build!$K:$K,raw_resource_build!$B:$B,$C446,raw_resource_build!$A:$A,AA$396)+SUMIFS(raw_resource_build!$L:$L,raw_resource_build!$B:$B,$C446,raw_resource_build!$A:$A,AA$396)","v":0},{"$f":"SUMIFS(raw_resource_build!$K:$K,raw_resource_build!$B:$B,$C446,raw_resource_build!$A:$A,AB$396)+SUMIFS(raw_resource_build!$L:$L,raw_resource_build!$B:$B,$C446,raw_resource_build!$A:$A,AB$396)","v":0},{"$f":"SUMIFS(raw_resource_build!$K:$K,raw_resource_build!$B:$B,$C446,raw_resource_build!$A:$A,AC$396)+SUMIFS(raw_resource_build!$L:$L,raw_resource_build!$B:$B,$C446,raw_resource_build!$A:$A,AC$396)","v":0},{"$f":"SUMIFS(raw_resource_build!$K:$K,raw_resource_build!$B:$B,$C446,raw_resource_build!$A:$A,AD$396)+SUMIFS(raw_resource_build!$L:$L,raw_resource_build!$B:$B,$C446,raw_resource_build!$A:$A,AD$396)","v":0},{"$f":"SUMIFS(raw_resource_build!$K:$K,raw_resource_build!$B:$B,$C446,raw_resource_build!$A:$A,AE$396)+SUMIFS(raw_resource_build!$L:$L,raw_resource_build!$B:$B,$C446,raw_resource_build!$A:$A,AE$396)","v":0},{"$f":"SUMIFS(raw_resource_build!$K:$K,raw_resource_build!$B:$B,$C446,raw_resource_build!$A:$A,AF$396)+SUMIFS(raw_resource_build!$L:$L,raw_resource_build!$B:$B,$C446,raw_resource_build!$A:$A,AF$396)","v":0},{"$f":"SUMIFS(raw_resource_build!$K:$K,raw_resource_build!$B:$B,$C446,raw_resource_build!$A:$A,AG$396)+SUMIFS(raw_resource_build!$L:$L,raw_resource_build!$B:$B,$C446,raw_resource_build!$A:$A,AG$396)","v":0},{"$f":"SUMIFS(raw_resource_build!$K:$K,raw_resource_build!$B:$B,$C446,raw_resource_build!$A:$A,AH$396)+SUMIFS(raw_resource_build!$L:$L,raw_resource_build!$B:$B,$C446,raw_resource_build!$A:$A,AH$396)","v":0},{"$f":"SUMIFS(raw_resource_build!$K:$K,raw_resource_build!$B:$B,$C446,raw_resource_build!$A:$A,AI$396)+SUMIFS(raw_resource_build!$L:$L,raw_resource_build!$B:$B,$C446,raw_resource_build!$A:$A,AI$396)","v":0},{"$f":"SUMIFS(raw_resource_build!$K:$K,raw_resource_build!$B:$B,$C446,raw_resource_build!$A:$A,AJ$396)+SUMIFS(raw_resource_build!$L:$L,raw_resource_build!$B:$B,$C446,raw_resource_build!$A:$A,AJ$396)","v":0},{"$f":"SUMIFS(raw_resource_build!$K:$K,raw_resource_build!$B:$B,$C446,raw_resource_build!$A:$A,AK$396)+SUMIFS(raw_resource_build!$L:$L,raw_resource_build!$B:$B,$C446,raw_resource_build!$A:$A,AK$396)","v":0},{"$f":"SUMIFS(raw_resource_build!$K:$K,raw_resource_build!$B:$B,$C446,raw_resource_build!$A:$A,AL$396)+SUMIFS(raw_resource_build!$L:$L,raw_resource_build!$B:$B,$C446,raw_resource_build!$A:$A,AL$396)","v":0},{"$f":"SUMIFS(raw_resource_build!$K:$K,raw_resource_build!$B:$B,$C446,raw_resource_build!$A:$A,AM$396)+SUMIFS(raw_resource_build!$L:$L,raw_resource_build!$B:$B,$C446,raw_resource_build!$A:$A,AM$396)","v":0},{"$f":"SUMIFS(raw_resource_build!$K:$K,raw_resource_build!$B:$B,$C446,raw_resource_build!$A:$A,AN$396)+SUMIFS(raw_resource_build!$L:$L,raw_resource_build!$B:$B,$C446,raw_resource_build!$A:$A,AN$396)","v":0}]
[null,null,{"$f":"Lists!B85","v":"Diablo_Canyon_Offshore_Wind_Ext_Tx"},{"$f":"IF(INDEX(raw_resource_build!J:J,MATCH(C447,raw_resource_build!$B:$B,0))=0,\"N/A\",INDEX(raw_resource_build!J:J,MATCH(C447,raw_resource_build!$B:$B,0)))","v":"N/A"},{"$f":"SUMIFS(raw_resource_build!$K:$K,raw_resource_build!$B:$B,$C447,raw_resource_build!$A:$A,E$396)+SUMIFS(raw_resource_build!$L:$L,raw_resource_build!$B:$B,$C447,raw_resource_build!$A:$A,E$396)","v":0},{"$f":"SUMIFS(raw_resource_build!$K:$K,raw_resource_build!$B:$B,$C447,raw_resource_build!$A:$A,F$396)+SUMIFS(raw_resource_build!$L:$L,raw_resource_build!$B:$B,$C447,raw_resource_build!$A:$A,F$396)","v":0},{"$f":"SUMIFS(raw_resource_build!$K:$K,raw_resource_build!$B:$B,$C447,raw_resource_build!$A:$A,G$396)+SUMIFS(raw_resource_build!$L:$L,raw_resource_build!$B:$B,$C447,raw_resource_build!$A:$A,G$396)","v":0},{"$f":"SUMIFS(raw_resource_build!$K:$K,raw_resource_build!$B:$B,$C447,raw_resource_build!$A:$A,H$396)+SUMIFS(raw_resource_build!$L:$L,raw_resource_build!$B:$B,$C447,raw_resource_build!$A:$A,H$396)","v":0},{"$f":"SUMIFS(raw_resource_build!$K:$K,raw_resource_build!$B:$B,$C447,raw_resource_build!$A:$A,I$396)+SUMIFS(raw_resource_build!$L:$L,raw_resource_build!$B:$B,$C447,raw_resource_build!$A:$A,I$396)","v":0},{"$f":"SUMIFS(raw_resource_build!$K:$K,raw_resource_build!$B:$B,$C447,raw_resource_build!$A:$A,J$396)+SUMIFS(raw_resource_build!$L:$L,raw_resource_build!$B:$B,$C447,raw_resource_build!$A:$A,J$396)","v":0},{"$f":"SUMIFS(raw_resource_build!$K:$K,raw_resource_build!$B:$B,$C447,raw_resource_build!$A:$A,K$396)+SUMIFS(raw_resource_build!$L:$L,raw_resource_build!$B:$B,$C447,raw_resource_build!$A:$A,K$396)","v":0},{"$f":"SUMIFS(raw_resource_build!$K:$K,raw_resource_build!$B:$B,$C447,raw_resource_build!$A:$A,L$396)+SUMIFS(raw_resource_build!$L:$L,raw_resource_build!$B:$B,$C447,raw_resource_build!$A:$A,L$396)","v":0},{"$f":"SUMIFS(raw_resource_build!$K:$K,raw_resource_build!$B:$B,$C447,raw_resource_build!$A:$A,M$396)+SUMIFS(raw_resource_build!$L:$L,raw_resource_build!$B:$B,$C447,raw_resource_build!$A:$A,M$396)","v":0},{"$f":"SUMIFS(raw_resource_build!$K:$K,raw_resource_build!$B:$B,$C447,raw_resource_build!$A:$A,N$396)+SUMIFS(raw_resource_build!$L:$L,raw_resource_build!$B:$B,$C447,raw_resource_build!$A:$A,N$396)","v":0},{"$f":"SUMIFS(raw_resource_build!$K:$K,raw_resource_build!$B:$B,$C447,raw_resource_build!$A:$A,O$396)+SUMIFS(raw_resource_build!$L:$L,raw_resource_build!$B:$B,$C447,raw_resource_build!$A:$A,O$396)","v":0},{"$f":"SUMIFS(raw_resource_build!$K:$K,raw_resource_build!$B:$B,$C447,raw_resource_build!$A:$A,P$396)+SUMIFS(raw_resource_build!$L:$L,raw_resource_build!$B:$B,$C447,raw_resource_build!$A:$A,P$396)","v":0},{"$f":"SUMIFS(raw_resource_build!$K:$K,raw_resource_build!$B:$B,$C447,raw_resource_build!$A:$A,Q$396)+SUMIFS(raw_resource_build!$L:$L,raw_resource_build!$B:$B,$C447,raw_resource_build!$A:$A,Q$396)","v":0},{"$f":"SUMIFS(raw_resource_build!$K:$K,raw_resource_build!$B:$B,$C447,raw_resource_build!$A:$A,R$396)+SUMIFS(raw_resource_build!$L:$L,raw_resource_build!$B:$B,$C447,raw_resource_build!$A:$A,R$396)","v":0},{"$f":"SUMIFS(raw_resource_build!$K:$K,raw_resource_build!$B:$B,$C447,raw_resource_build!$A:$A,S$396)+SUMIFS(raw_resource_build!$L:$L,raw_resource_build!$B:$B,$C447,raw_resource_build!$A:$A,S$396)","v":0},{"$f":"SUMIFS(raw_resource_build!$K:$K,raw_resource_build!$B:$B,$C447,raw_resource_build!$A:$A,T$396)+SUMIFS(raw_resource_build!$L:$L,raw_resource_build!$B:$B,$C447,raw_resource_build!$A:$A,T$396)","v":0},{"$f":"SUMIFS(raw_resource_build!$K:$K,raw_resource_build!$B:$B,$C447,raw_resource_build!$A:$A,U$396)+SUMIFS(raw_resource_build!$L:$L,raw_resource_build!$B:$B,$C447,raw_resource_build!$A:$A,U$396)","v":0},{"$f":"SUMIFS(raw_resource_build!$K:$K,raw_resource_build!$B:$B,$C447,raw_resource_build!$A:$A,V$396)+SUMIFS(raw_resource_build!$L:$L,raw_resource_build!$B:$B,$C447,raw_resource_build!$A:$A,V$396)","v":0},{"$f":"SUMIFS(raw_resource_build!$K:$K,raw_resource_build!$B:$B,$C447,raw_resource_build!$A:$A,W$396)+SUMIFS(raw_resource_build!$L:$L,raw_resource_build!$B:$B,$C447,raw_resource_build!$A:$A,W$396)","v":0},{"$f":"SUMIFS(raw_resource_build!$K:$K,raw_resource_build!$B:$B,$C447,raw_resource_build!$A:$A,X$396)+SUMIFS(raw_resource_build!$L:$L,raw_resource_build!$B:$B,$C447,raw_resource_build!$A:$A,X$396)","v":0},{"$f":"SUMIFS(raw_resource_build!$K:$K,raw_resource_build!$B:$B,$C447,raw_resource_build!$A:$A,Y$396)+SUMIFS(raw_resource_build!$L:$L,raw_resource_build!$B:$B,$C447,raw_resource_build!$A:$A,Y$396)","v":0},{"$f":"SUMIFS(raw_resource_build!$K:$K,raw_resource_build!$B:$B,$C447,raw_resource_build!$A:$A,Z$396)+SUMIFS(raw_resource_build!$L:$L,raw_resource_build!$B:$B,$C447,raw_resource_build!$A:$A,Z$396)","v":0},{"$f":"SUMIFS(raw_resource_build!$K:$K,raw_resource_build!$B:$B,$C447,raw_resource_build!$A:$A,AA$396)+SUMIFS(raw_resource_build!$L:$L,raw_resource_build!$B:$B,$C447,raw_resource_build!$A:$A,AA$396)","v":0},{"$f":"SUMIFS(raw_resource_build!$K:$K,raw_resource_build!$B:$B,$C447,raw_resource_build!$A:$A,AB$396)+SUMIFS(raw_resource_build!$L:$L,raw_resource_build!$B:$B,$C447,raw_resource_build!$A:$A,AB$396)","v":0},{"$f":"SUMIFS(raw_resource_build!$K:$K,raw_resource_build!$B:$B,$C447,raw_resource_build!$A:$A,AC$396)+SUMIFS(raw_resource_build!$L:$L,raw_resource_build!$B:$B,$C447,raw_resource_build!$A:$A,AC$396)","v":0},{"$f":"SUMIFS(raw_resource_build!$K:$K,raw_resource_build!$B:$B,$C447,raw_resource_build!$A:$A,AD$396)+SUMIFS(raw_resource_build!$L:$L,raw_resource_build!$B:$B,$C447,raw_resource_build!$A:$A,AD$396)","v":0},{"$f":"SUMIFS(raw_resource_build!$K:$K,raw_resource_build!$B:$B,$C447,raw_resource_build!$A:$A,AE$396)+SUMIFS(raw_resource_build!$L:$L,raw_resource_build!$B:$B,$C447,raw_resource_build!$A:$A,AE$396)","v":0},{"$f":"SUMIFS(raw_resource_build!$K:$K,raw_resource_build!$B:$B,$C447,raw_resource_build!$A:$A,AF$396)+SUMIFS(raw_resource_build!$L:$L,raw_resource_build!$B:$B,$C447,raw_resource_build!$A:$A,AF$396)","v":0},{"$f":"SUMIFS(raw_resource_build!$K:$K,raw_resource_build!$B:$B,$C447,raw_resource_build!$A:$A,AG$396)+SUMIFS(raw_resource_build!$L:$L,raw_resource_build!$B:$B,$C447,raw_resource_build!$A:$A,AG$396)","v":0},{"$f":"SUMIFS(raw_resource_build!$K:$K,raw_resource_build!$B:$B,$C447,raw_resource_build!$A:$A,AH$396)+SUMIFS(raw_resource_build!$L:$L,raw_resource_build!$B:$B,$C447,raw_resource_build!$A:$A,AH$396)","v":0},{"$f":"SUMIFS(raw_resource_build!$K:$K,raw_resource_build!$B:$B,$C447,raw_resource_build!$A:$A,AI$396)+SUMIFS(raw_resource_build!$L:$L,raw_resource_build!$B:$B,$C447,raw_resource_build!$A:$A,AI$396)","v":0},{"$f":"SUMIFS(raw_resource_build!$K:$K,raw_resource_build!$B:$B,$C447,raw_resource_build!$A:$A,AJ$396)+SUMIFS(raw_resource_build!$L:$L,raw_resource_build!$B:$B,$C447,raw_resource_build!$A:$A,AJ$396)","v":0},{"$f":"SUMIFS(raw_resource_build!$K:$K,raw_resource_build!$B:$B,$C447,raw_resource_build!$A:$A,AK$396)+SUMIFS(raw_resource_build!$L:$L,raw_resource_build!$B:$B,$C447,raw_resource_build!$A:$A,AK$396)","v":0},{"$f":"SUMIFS(raw_resource_build!$K:$K,raw_resource_build!$B:$B,$C447,raw_resource_build!$A:$A,AL$396)+SUMIFS(raw_resource_build!$L:$L,raw_resource_build!$B:$B,$C447,raw_resource_build!$A:$A,AL$396)","v":0},{"$f":"SUMIFS(raw_resource_build!$K:$K,raw_resource_build!$B:$B,$C447,raw_resource_build!$A:$A,AM$396)+SUMIFS(raw_resource_build!$L:$L,raw_resource_build!$B:$B,$C447,raw_resource_build!$A:$A,AM$396)","v":0},{"$f":"SUMIFS(raw_resource_build!$K:$K,raw_resource_build!$B:$B,$C447,raw_resource_build!$A:$A,AN$396)+SUMIFS(raw_resource_build!$L:$L,raw_resource_build!$B:$B,$C447,raw_resource_build!$A:$A,AN$396)","v":0}]
[null,null,{"$f":"Lists!B86","v":"Diablo_Canyon_Offshore_Wind"},{"$f":"IF(INDEX(raw_resource_build!J:J,MATCH(C448,raw_resource_build!$B:$B,0))=0,\"N/A\",INDEX(raw_resource_build!J:J,MATCH(C448,raw_resource_build!$B:$B,0)))","v":"N/A"},{"$f":"SUMIFS(raw_resource_build!$K:$K,raw_resource_build!$B:$B,$C448,raw_resource_build!$A:$A,E$396)+SUMIFS(raw_resource_build!$L:$L,raw_resource_build!$B:$B,$C448,raw_resource_build!$A:$A,E$396)","v":0},{"$f":"SUMIFS(raw_resource_build!$K:$K,raw_resource_build!$B:$B,$C448,raw_resource_build!$A:$A,F$396)+SUMIFS(raw_resource_build!$L:$L,raw_resource_build!$B:$B,$C448,raw_resource_build!$A:$A,F$396)","v":0},{"$f":"SUMIFS(raw_resource_build!$K:$K,raw_resource_build!$B:$B,$C448,raw_resource_build!$A:$A,G$396)+SUMIFS(raw_resource_build!$L:$L,raw_resource_build!$B:$B,$C448,raw_resource_build!$A:$A,G$396)","v":0},{"$f":"SUMIFS(raw_resource_build!$K:$K,raw_resource_build!$B:$B,$C448,raw_resource_build!$A:$A,H$396)+SUMIFS(raw_resource_build!$L:$L,raw_resource_build!$B:$B,$C448,raw_resource_build!$A:$A,H$396)","v":0},{"$f":"SUMIFS(raw_resource_build!$K:$K,raw_resource_build!$B:$B,$C448,raw_resource_build!$A:$A,I$396)+SUMIFS(raw_resource_build!$L:$L,raw_resource_build!$B:$B,$C448,raw_resource_build!$A:$A,I$396)","v":0},{"$f":"SUMIFS(raw_resource_build!$K:$K,raw_resource_build!$B:$B,$C448,raw_resource_build!$A:$A,J$396)+SUMIFS(raw_resource_build!$L:$L,raw_resource_build!$B:$B,$C448,raw_resource_build!$A:$A,J$396)","v":0},{"$f":"SUMIFS(raw_resource_build!$K:$K,raw_resource_build!$B:$B,$C448,raw_resource_build!$A:$A,K$396)+SUMIFS(raw_resource_build!$L:$L,raw_resource_build!$B:$B,$C448,raw_resource_build!$A:$A,K$396)","v":0},{"$f":"SUMIFS(raw_resource_build!$K:$K,raw_resource_build!$B:$B,$C448,raw_resource_build!$A:$A,L$396)+SUMIFS(raw_resource_build!$L:$L,raw_resource_build!$B:$B,$C448,raw_resource_build!$A:$A,L$396)","v":0},{"$f":"SUMIFS(raw_resource_build!$K:$K,raw_resource_build!$B:$B,$C448,raw_resource_build!$A:$A,M$396)+SUMIFS(raw_resource_build!$L:$L,raw_resource_build!$B:$B,$C448,raw_resource_build!$A:$A,M$396)","v":0},{"$f":"SUMIFS(raw_resource_build!$K:$K,raw_resource_build!$B:$B,$C448,raw_resource_build!$A:$A,N$396)+SUMIFS(raw_resource_build!$L:$L,raw_resource_build!$B:$B,$C448,raw_resource_build!$A:$A,N$396)","v":0},{"$f":"SUMIFS(raw_resource_build!$K:$K,raw_resource_build!$B:$B,$C448,raw_resource_build!$A:$A,O$396)+SUMIFS(raw_resource_build!$L:$L,raw_resource_build!$B:$B,$C448,raw_resource_build!$A:$A,O$396)","v":0},{"$f":"SUMIFS(raw_resource_build!$K:$K,raw_resource_build!$B:$B,$C448,raw_resource_build!$A:$A,P$396)+SUMIFS(raw_resource_build!$L:$L,raw_resource_build!$B:$B,$C448,raw_resource_build!$A:$A,P$396)","v":0},{"$f":"SUMIFS(raw_resource_build!$K:$K,raw_resource_build!$B:$B,$C448,raw_resource_build!$A:$A,Q$396)+SUMIFS(raw_resource_build!$L:$L,raw_resource_build!$B:$B,$C448,raw_resource_build!$A:$A,Q$396)","v":0},{"$f":"SUMIFS(raw_resource_build!$K:$K,raw_resource_build!$B:$B,$C448,raw_resource_build!$A:$A,R$396)+SUMIFS(raw_resource_build!$L:$L,raw_resource_build!$B:$B,$C448,raw_resource_build!$A:$A,R$396)","v":0},{"$f":"SUMIFS(raw_resource_build!$K:$K,raw_resource_build!$B:$B,$C448,raw_resource_build!$A:$A,S$396)+SUMIFS(raw_resource_build!$L:$L,raw_resource_build!$B:$B,$C448,raw_resource_build!$A:$A,S$396)","v":0},{"$f":"SUMIFS(raw_resource_build!$K:$K,raw_resource_build!$B:$B,$C448,raw_resource_build!$A:$A,T$396)+SUMIFS(raw_resource_build!$L:$L,raw_resource_build!$B:$B,$C448,raw_resource_build!$A:$A,T$396)","v":0},{"$f":"SUMIFS(raw_resource_build!$K:$K,raw_resource_build!$B:$B,$C448,raw_resource_build!$A:$A,U$396)+SUMIFS(raw_resource_build!$L:$L,raw_resource_build!$B:$B,$C448,raw_resource_build!$A:$A,U$396)","v":0},{"$f":"SUMIFS(raw_resource_build!$K:$K,raw_resource_build!$B:$B,$C448,raw_resource_build!$A:$A,V$396)+SUMIFS(raw_resource_build!$L:$L,raw_resource_build!$B:$B,$C448,raw_resource_build!$A:$A,V$396)","v":0},{"$f":"SUMIFS(raw_resource_build!$K:$K,raw_resource_build!$B:$B,$C448,raw_resource_build!$A:$A,W$396)+SUMIFS(raw_resource_build!$L:$L,raw_resource_build!$B:$B,$C448,raw_resource_build!$A:$A,W$396)","v":0},{"$f":"SUMIFS(raw_resource_build!$K:$K,raw_resource_build!$B:$B,$C448,raw_resource_build!$A:$A,X$396)+SUMIFS(raw_resource_build!$L:$L,raw_resource_build!$B:$B,$C448,raw_resource_build!$A:$A,X$396)","v":0},{"$f":"SUMIFS(raw_resource_build!$K:$K,raw_resource_build!$B:$B,$C448,raw_resource_build!$A:$A,Y$396)+SUMIFS(raw_resource_build!$L:$L,raw_resource_build!$B:$B,$C448,raw_resource_build!$A:$A,Y$396)","v":0},{"$f":"SUMIFS(raw_resource_build!$K:$K,raw_resource_build!$B:$B,$C448,raw_resource_build!$A:$A,Z$396)+SUMIFS(raw_resource_build!$L:$L,raw_resource_build!$B:$B,$C448,raw_resource_build!$A:$A,Z$396)","v":0},{"$f":"SUMIFS(raw_resource_build!$K:$K,raw_resource_build!$B:$B,$C448,raw_resource_build!$A:$A,AA$396)+SUMIFS(raw_resource_build!$L:$L,raw_resource_build!$B:$B,$C448,raw_resource_build!$A:$A,AA$396)","v":0},{"$f":"SUMIFS(raw_resource_build!$K:$K,raw_resource_build!$B:$B,$C448,raw_resource_build!$A:$A,AB$396)+SUMIFS(raw_resource_build!$L:$L,raw_resource_build!$B:$B,$C448,raw_resource_build!$A:$A,AB$396)","v":0},{"$f":"SUMIFS(raw_resource_build!$K:$K,raw_resource_build!$B:$B,$C448,raw_resource_build!$A:$A,AC$396)+SUMIFS(raw_resource_build!$L:$L,raw_resource_build!$B:$B,$C448,raw_resource_build!$A:$A,AC$396)","v":0},{"$f":"SUMIFS(raw_resource_build!$K:$K,raw_resource_build!$B:$B,$C448,raw_resource_build!$A:$A,AD$396)+SUMIFS(raw_resource_build!$L:$L,raw_resource_build!$B:$B,$C448,raw_resource_build!$A:$A,AD$396)","v":0},{"$f":"SUMIFS(raw_resource_build!$K:$K,raw_resource_build!$B:$B,$C448,raw_resource_build!$A:$A,AE$396)+SUMIFS(raw_resource_build!$L:$L,raw_resource_build!$B:$B,$C448,raw_resource_build!$A:$A,AE$396)","v":0},{"$f":"SUMIFS(raw_resource_build!$K:$K,raw_resource_build!$B:$B,$C448,raw_resource_build!$A:$A,AF$396)+SUMIFS(raw_resource_build!$L:$L,raw_resource_build!$B:$B,$C448,raw_resource_build!$A:$A,AF$396)","v":0},{"$f":"SUMIFS(raw_resource_build!$K:$K,raw_resource_build!$B:$B,$C448,raw_resource_build!$A:$A,AG$396)+SUMIFS(raw_resource_build!$L:$L,raw_resource_build!$B:$B,$C448,raw_resource_build!$A:$A,AG$396)","v":0},{"$f":"SUMIFS(raw_resource_build!$K:$K,raw_resource_build!$B:$B,$C448,raw_resource_build!$A:$A,AH$396)+SUMIFS(raw_resource_build!$L:$L,raw_resource_build!$B:$B,$C448,raw_resource_build!$A:$A,AH$396)","v":0},{"$f":"SUMIFS(raw_resource_build!$K:$K,raw_resource_build!$B:$B,$C448,raw_resource_build!$A:$A,AI$396)+SUMIFS(raw_resource_build!$L:$L,raw_resource_build!$B:$B,$C448,raw_resource_build!$A:$A,AI$396)","v":0},{"$f":"SUMIFS(raw_resource_build!$K:$K,raw_resource_build!$B:$B,$C448,raw_resource_build!$A:$A,AJ$396)+SUMIFS(raw_resource_build!$L:$L,raw_resource_build!$B:$B,$C448,raw_resource_build!$A:$A,AJ$396)","v":0},{"$f":"SUMIFS(raw_resource_build!$K:$K,raw_resource_build!$B:$B,$C448,raw_resource_build!$A:$A,AK$396)+SUMIFS(raw_resource_build!$L:$L,raw_resource_build!$B:$B,$C448,raw_resource_build!$A:$A,AK$396)","v":0},{"$f":"SUMIFS(raw_resource_build!$K:$K,raw_resource_build!$B:$B,$C448,raw_resource_build!$A:$A,AL$396)+SUMIFS(raw_resource_build!$L:$L,raw_resource_build!$B:$B,$C448,raw_resource_build!$A:$A,AL$396)","v":0},{"$f":"SUMIFS(raw_resource_build!$K:$K,raw_resource_build!$B:$B,$C448,raw_resource_build!$A:$A,AM$396)+SUMIFS(raw_resource_build!$L:$L,raw_resource_build!$B:$B,$C448,raw_resource_build!$A:$A,AM$396)","v":0},{"$f":"SUMIFS(raw_resource_build!$K:$K,raw_resource_build!$B:$B,$C448,raw_resource_build!$A:$A,AN$396)+SUMIFS(raw_resource_build!$L:$L,raw_resource_build!$B:$B,$C448,raw_resource_build!$A:$A,AN$396)","v":0}]
[null,null,{"$f":"Lists!B87","v":"Humboldt_Bay_Offshore_Wind"},{"$f":"IF(INDEX(raw_resource_build!J:J,MATCH(C449,raw_resource_build!$B:$B,0))=0,\"N/A\",INDEX(raw_resource_build!J:J,MATCH(C449,raw_resource_build!$B:$B,0)))","v":"N/A"},{"$f":"SUMIFS(raw_resource_build!$K:$K,raw_resource_build!$B:$B,$C449,raw_resource_build!$A:$A,E$396)+SUMIFS(raw_resource_build!$L:$L,raw_resource_build!$B:$B,$C449,raw_resource_build!$A:$A,E$396)","v":0},{"$f":"SUMIFS(raw_resource_build!$K:$K,raw_resource_build!$B:$B,$C449,raw_resource_build!$A:$A,F$396)+SUMIFS(raw_resource_build!$L:$L,raw_resource_build!$B:$B,$C449,raw_resource_build!$A:$A,F$396)","v":0},{"$f":"SUMIFS(raw_resource_build!$K:$K,raw_resource_build!$B:$B,$C449,raw_resource_build!$A:$A,G$396)+SUMIFS(raw_resource_build!$L:$L,raw_resource_build!$B:$B,$C449,raw_resource_build!$A:$A,G$396)","v":0},{"$f":"SUMIFS(raw_resource_build!$K:$K,raw_resource_build!$B:$B,$C449,raw_resource_build!$A:$A,H$396)+SUMIFS(raw_resource_build!$L:$L,raw_resource_build!$B:$B,$C449,raw_resource_build!$A:$A,H$396)","v":0},{"$f":"SUMIFS(raw_resource_build!$K:$K,raw_resource_build!$B:$B,$C449,raw_resource_build!$A:$A,I$396)+SUMIFS(raw_resource_build!$L:$L,raw_resource_build!$B:$B,$C449,raw_resource_build!$A:$A,I$396)","v":0},{"$f":"SUMIFS(raw_resource_build!$K:$K,raw_resource_build!$B:$B,$C449,raw_resource_build!$A:$A,J$396)+SUMIFS(raw_resource_build!$L:$L,raw_resource_build!$B:$B,$C449,raw_resource_build!$A:$A,J$396)","v":0},{"$f":"SUMIFS(raw_resource_build!$K:$K,raw_resource_build!$B:$B,$C449,raw_resource_build!$A:$A,K$396)+SUMIFS(raw_resource_build!$L:$L,raw_resource_build!$B:$B,$C449,raw_resource_build!$A:$A,K$396)","v":0},{"$f":"SUMIFS(raw_resource_build!$K:$K,raw_resource_build!$B:$B,$C449,raw_resource_build!$A:$A,L$396)+SUMIFS(raw_resource_build!$L:$L,raw_resource_build!$B:$B,$C449,raw_resource_build!$A:$A,L$396)","v":0},{"$f":"SUMIFS(raw_resource_build!$K:$K,raw_resource_build!$B:$B,$C449,raw_resource_build!$A:$A,M$396)+SUMIFS(raw_resource_build!$L:$L,raw_resource_build!$B:$B,$C449,raw_resource_build!$A:$A,M$396)","v":0},{"$f":"SUMIFS(raw_resource_build!$K:$K,raw_resource_build!$B:$B,$C449,raw_resource_build!$A:$A,N$396)+SUMIFS(raw_resource_build!$L:$L,raw_resource_build!$B:$B,$C449,raw_resource_build!$A:$A,N$396)","v":0},{"$f":"SUMIFS(raw_resource_build!$K:$K,raw_resource_build!$B:$B,$C449,raw_resource_build!$A:$A,O$396)+SUMIFS(raw_resource_build!$L:$L,raw_resource_build!$B:$B,$C449,raw_resource_build!$A:$A,O$396)","v":0},{"$f":"SUMIFS(raw_resource_build!$K:$K,raw_resource_build!$B:$B,$C449,raw_resource_build!$A:$A,P$396)+SUMIFS(raw_resource_build!$L:$L,raw_resource_build!$B:$B,$C449,raw_resource_build!$A:$A,P$396)","v":0},{"$f":"SUMIFS(raw_resource_build!$K:$K,raw_resource_build!$B:$B,$C449,raw_resource_build!$A:$A,Q$396)+SUMIFS(raw_resource_build!$L:$L,raw_resource_build!$B:$B,$C449,raw_resource_build!$A:$A,Q$396)","v":0},{"$f":"SUMIFS(raw_resource_build!$K:$K,raw_resource_build!$B:$B,$C449,raw_resource_build!$A:$A,R$396)+SUMIFS(raw_resource_build!$L:$L,raw_resource_build!$B:$B,$C449,raw_resource_build!$A:$A,R$396)","v":0},{"$f":"SUMIFS(raw_resource_build!$K:$K,raw_resource_build!$B:$B,$C449,raw_resource_build!$A:$A,S$396)+SUMIFS(raw_resource_build!$L:$L,raw_resource_build!$B:$B,$C449,raw_resource_build!$A:$A,S$396)","v":0},{"$f":"SUMIFS(raw_resource_build!$K:$K,raw_resource_build!$B:$B,$C449,raw_resource_build!$A:$A,T$396)+SUMIFS(raw_resource_build!$L:$L,raw_resource_build!$B:$B,$C449,raw_resource_build!$A:$A,T$396)","v":0},{"$f":"SUMIFS(raw_resource_build!$K:$K,raw_resource_build!$B:$B,$C449,raw_resource_build!$A:$A,U$396)+SUMIFS(raw_resource_build!$L:$L,raw_resource_build!$B:$B,$C449,raw_resource_build!$A:$A,U$396)","v":0},{"$f":"SUMIFS(raw_resource_build!$K:$K,raw_resource_build!$B:$B,$C449,raw_resource_build!$A:$A,V$396)+SUMIFS(raw_resource_build!$L:$L,raw_resource_build!$B:$B,$C449,raw_resource_build!$A:$A,V$396)","v":0},{"$f":"SUMIFS(raw_resource_build!$K:$K,raw_resource_build!$B:$B,$C449,raw_resource_build!$A:$A,W$396)+SUMIFS(raw_resource_build!$L:$L,raw_resource_build!$B:$B,$C449,raw_resource_build!$A:$A,W$396)","v":0},{"$f":"SUMIFS(raw_resource_build!$K:$K,raw_resource_build!$B:$B,$C449,raw_resource_build!$A:$A,X$396)+SUMIFS(raw_resource_build!$L:$L,raw_resource_build!$B:$B,$C449,raw_resource_build!$A:$A,X$396)","v":0},{"$f":"SUMIFS(raw_resource_build!$K:$K,raw_resource_build!$B:$B,$C449,raw_resource_build!$A:$A,Y$396)+SUMIFS(raw_resource_build!$L:$L,raw_resource_build!$B:$B,$C449,raw_resource_build!$A:$A,Y$396)","v":0},{"$f":"SUMIFS(raw_resource_build!$K:$K,raw_resource_build!$B:$B,$C449,raw_resource_build!$A:$A,Z$396)+SUMIFS(raw_resource_build!$L:$L,raw_resource_build!$B:$B,$C449,raw_resource_build!$A:$A,Z$396)","v":0},{"$f":"SUMIFS(raw_resource_build!$K:$K,raw_resource_build!$B:$B,$C449,raw_resource_build!$A:$A,AA$396)+SUMIFS(raw_resource_build!$L:$L,raw_resource_build!$B:$B,$C449,raw_resource_build!$A:$A,AA$396)","v":0},{"$f":"SUMIFS(raw_resource_build!$K:$K,raw_resource_build!$B:$B,$C449,raw_resource_build!$A:$A,AB$396)+SUMIFS(raw_resource_build!$L:$L,raw_resource_build!$B:$B,$C449,raw_resource_build!$A:$A,AB$396)","v":0},{"$f":"SUMIFS(raw_resource_build!$K:$K,raw_resource_build!$B:$B,$C449,raw_resource_build!$A:$A,AC$396)+SUMIFS(raw_resource_build!$L:$L,raw_resource_build!$B:$B,$C449,raw_resource_build!$A:$A,AC$396)","v":0},{"$f":"SUMIFS(raw_resource_build!$K:$K,raw_resource_build!$B:$B,$C449,raw_resource_build!$A:$A,AD$396)+SUMIFS(raw_resource_build!$L:$L,raw_resource_build!$B:$B,$C449,raw_resource_build!$A:$A,AD$396)","v":0},{"$f":"SUMIFS(raw_resource_build!$K:$K,raw_resource_build!$B:$B,$C449,raw_resource_build!$A:$A,AE$396)+SUMIFS(raw_resource_build!$L:$L,raw_resource_build!$B:$B,$C449,raw_resource_build!$A:$A,AE$396)","v":0},{"$f":"SUMIFS(raw_resource_build!$K:$K,raw_resource_build!$B:$B,$C449,raw_resource_build!$A:$A,AF$396)+SUMIFS(raw_resource_build!$L:$L,raw_resource_build!$B:$B,$C449,raw_resource_build!$A:$A,AF$396)","v":0},{"$f":"SUMIFS(raw_resource_build!$K:$K,raw_resource_build!$B:$B,$C449,raw_resource_build!$A:$A,AG$396)+SUMIFS(raw_resource_build!$L:$L,raw_resource_build!$B:$B,$C449,raw_resource_build!$A:$A,AG$396)","v":0},{"$f":"SUMIFS(raw_resource_build!$K:$K,raw_resource_build!$B:$B,$C449,raw_resource_build!$A:$A,AH$396)+SUMIFS(raw_resource_build!$L:$L,raw_resource_build!$B:$B,$C449,raw_resource_build!$A:$A,AH$396)","v":0},{"$f":"SUMIFS(raw_resource_build!$K:$K,raw_resource_build!$B:$B,$C449,raw_resource_build!$A:$A,AI$396)+SUMIFS(raw_resource_build!$L:$L,raw_resource_build!$B:$B,$C449,raw_resource_build!$A:$A,AI$396)","v":0},{"$f":"SUMIFS(raw_resource_build!$K:$K,raw_resource_build!$B:$B,$C449,raw_resource_build!$A:$A,AJ$396)+SUMIFS(raw_resource_build!$L:$L,raw_resource_build!$B:$B,$C449,raw_resource_build!$A:$A,AJ$396)","v":0},{"$f":"SUMIFS(raw_resource_build!$K:$K,raw_resource_build!$B:$B,$C449,raw_resource_build!$A:$A,AK$396)+SUMIFS(raw_resource_build!$L:$L,raw_resource_build!$B:$B,$C449,raw_resource_build!$A:$A,AK$396)","v":0},{"$f":"SUMIFS(raw_resource_build!$K:$K,raw_resource_build!$B:$B,$C449,raw_resource_build!$A:$A,AL$396)+SUMIFS(raw_resource_build!$L:$L,raw_resource_build!$B:$B,$C449,raw_resource_build!$A:$A,AL$396)","v":0},{"$f":"SUMIFS(raw_resource_build!$K:$K,raw_resource_build!$B:$B,$C449,raw_resource_build!$A:$A,AM$396)+SUMIFS(raw_resource_build!$L:$L,raw_resource_build!$B:$B,$C449,raw_resource_build!$A:$A,AM$396)","v":0},{"$f":"SUMIFS(raw_resource_build!$K:$K,raw_resource_build!$B:$B,$C449,raw_resource_build!$A:$A,AN$396)+SUMIFS(raw_resource_build!$L:$L,raw_resource_build!$B:$B,$C449,raw_resource_build!$A:$A,AN$396)","v":0}]
[null,null,{"$f":"Lists!B88","v":"Morro_Bay_Offshore_Wind"},{"$f":"IF(INDEX(raw_resource_build!J:J,MATCH(C450,raw_resource_build!$B:$B,0))=0,\"N/A\",INDEX(raw_resource_build!J:J,MATCH(C450,raw_resource_build!$B:$B,0)))","v":"N/A"},{"$f":"SUMIFS(raw_resource_build!$K:$K,raw_resource_build!$B:$B,$C450,raw_resource_build!$A:$A,E$396)+SUMIFS(raw_resource_build!$L:$L,raw_resource_build!$B:$B,$C450,raw_resource_build!$A:$A,E$396)","v":0},{"$f":"SUMIFS(raw_resource_build!$K:$K,raw_resource_build!$B:$B,$C450,raw_resource_build!$A:$A,F$396)+SUMIFS(raw_resource_build!$L:$L,raw_resource_build!$B:$B,$C450,raw_resource_build!$A:$A,F$396)","v":0},{"$f":"SUMIFS(raw_resource_build!$K:$K,raw_resource_build!$B:$B,$C450,raw_resource_build!$A:$A,G$396)+SUMIFS(raw_resource_build!$L:$L,raw_resource_build!$B:$B,$C450,raw_resource_build!$A:$A,G$396)","v":0},{"$f":"SUMIFS(raw_resource_build!$K:$K,raw_resource_build!$B:$B,$C450,raw_resource_build!$A:$A,H$396)+SUMIFS(raw_resource_build!$L:$L,raw_resource_build!$B:$B,$C450,raw_resource_build!$A:$A,H$396)","v":0},{"$f":"SUMIFS(raw_resource_build!$K:$K,raw_resource_build!$B:$B,$C450,raw_resource_build!$A:$A,I$396)+SUMIFS(raw_resource_build!$L:$L,raw_resource_build!$B:$B,$C450,raw_resource_build!$A:$A,I$396)","v":0},{"$f":"SUMIFS(raw_resource_build!$K:$K,raw_resource_build!$B:$B,$C450,raw_resource_build!$A:$A,J$396)+SUMIFS(raw_resource_build!$L:$L,raw_resource_build!$B:$B,$C450,raw_resource_build!$A:$A,J$396)","v":0},{"$f":"SUMIFS(raw_resource_build!$K:$K,raw_resource_build!$B:$B,$C450,raw_resource_build!$A:$A,K$396)+SUMIFS(raw_resource_build!$L:$L,raw_resource_build!$B:$B,$C450,raw_resource_build!$A:$A,K$396)","v":0},{"$f":"SUMIFS(raw_resource_build!$K:$K,raw_resource_build!$B:$B,$C450,raw_resource_build!$A:$A,L$396)+SUMIFS(raw_resource_build!$L:$L,raw_resource_build!$B:$B,$C450,raw_resource_build!$A:$A,L$396)","v":0},{"$f":"SUMIFS(raw_resource_build!$K:$K,raw_resource_build!$B:$B,$C450,raw_resource_build!$A:$A,M$396)+SUMIFS(raw_resource_build!$L:$L,raw_resource_build!$B:$B,$C450,raw_resource_build!$A:$A,M$396)","v":0},{"$f":"SUMIFS(raw_resource_build!$K:$K,raw_resource_build!$B:$B,$C450,raw_resource_build!$A:$A,N$396)+SUMIFS(raw_resource_build!$L:$L,raw_resource_build!$B:$B,$C450,raw_resource_build!$A:$A,N$396)","v":0},{"$f":"SUMIFS(raw_resource_build!$K:$K,raw_resource_build!$B:$B,$C450,raw_resource_build!$A:$A,O$396)+SUMIFS(raw_resource_build!$L:$L,raw_resource_build!$B:$B,$C450,raw_resource_build!$A:$A,O$396)","v":0},{"$f":"SUMIFS(raw_resource_build!$K:$K,raw_resource_build!$B:$B,$C450,raw_resource_build!$A:$A,P$396)+SUMIFS(raw_resource_build!$L:$L,raw_resource_build!$B:$B,$C450,raw_resource_build!$A:$A,P$396)","v":0},{"$f":"SUMIFS(raw_resource_build!$K:$K,raw_resource_build!$B:$B,$C450,raw_resource_build!$A:$A,Q$396)+SUMIFS(raw_resource_build!$L:$L,raw_resource_build!$B:$B,$C450,raw_resource_build!$A:$A,Q$396)","v":0},{"$f":"SUMIFS(raw_resource_build!$K:$K,raw_resource_build!$B:$B,$C450,raw_resource_build!$A:$A,R$396)+SUMIFS(raw_resource_build!$L:$L,raw_resource_build!$B:$B,$C450,raw_resource_build!$A:$A,R$396)","v":0},{"$f":"SUMIFS(raw_resource_build!$K:$K,raw_resource_build!$B:$B,$C450,raw_resource_build!$A:$A,S$396)+SUMIFS(raw_resource_build!$L:$L,raw_resource_build!$B:$B,$C450,raw_resource_build!$A:$A,S$396)","v":0},{"$f":"SUMIFS(raw_resource_build!$K:$K,raw_resource_build!$B:$B,$C450,raw_resource_build!$A:$A,T$396)+SUMIFS(raw_resource_build!$L:$L,raw_resource_build!$B:$B,$C450,raw_resource_build!$A:$A,T$396)","v":0},{"$f":"SUMIFS(raw_resource_build!$K:$K,raw_resource_build!$B:$B,$C450,raw_resource_build!$A:$A,U$396)+SUMIFS(raw_resource_build!$L:$L,raw_resource_build!$B:$B,$C450,raw_resource_build!$A:$A,U$396)","v":0},{"$f":"SUMIFS(raw_resource_build!$K:$K,raw_resource_build!$B:$B,$C450,raw_resource_build!$A:$A,V$396)+SUMIFS(raw_resource_build!$L:$L,raw_resource_build!$B:$B,$C450,raw_resource_build!$A:$A,V$396)","v":0},{"$f":"SUMIFS(raw_resource_build!$K:$K,raw_resource_build!$B:$B,$C450,raw_resource_build!$A:$A,W$396)+SUMIFS(raw_resource_build!$L:$L,raw_resource_build!$B:$B,$C450,raw_resource_build!$A:$A,W$396)","v":0},{"$f":"SUMIFS(raw_resource_build!$K:$K,raw_resource_build!$B:$B,$C450,raw_resource_build!$A:$A,X$396)+SUMIFS(raw_resource_build!$L:$L,raw_resource_build!$B:$B,$C450,raw_resource_build!$A:$A,X$396)","v":0},{"$f":"SUMIFS(raw_resource_build!$K:$K,raw_resource_build!$B:$B,$C450,raw_resource_build!$A:$A,Y$396)+SUMIFS(raw_resource_build!$L:$L,raw_resource_build!$B:$B,$C450,raw_resource_build!$A:$A,Y$396)","v":0},{"$f":"SUMIFS(raw_resource_build!$K:$K,raw_resource_build!$B:$B,$C450,raw_resource_build!$A:$A,Z$396)+SUMIFS(raw_resource_build!$L:$L,raw_resource_build!$B:$B,$C450,raw_resource_build!$A:$A,Z$396)","v":0},{"$f":"SUMIFS(raw_resource_build!$K:$K,raw_resource_build!$B:$B,$C450,raw_resource_build!$A:$A,AA$396)+SUMIFS(raw_resource_build!$L:$L,raw_resource_build!$B:$B,$C450,raw_resource_build!$A:$A,AA$396)","v":0},{"$f":"SUMIFS(raw_resource_build!$K:$K,raw_resource_build!$B:$B,$C450,raw_resource_build!$A:$A,AB$396)+SUMIFS(raw_resource_build!$L:$L,raw_resource_build!$B:$B,$C450,raw_resource_build!$A:$A,AB$396)","v":0},{"$f":"SUMIFS(raw_resource_build!$K:$K,raw_resource_build!$B:$B,$C450,raw_resource_build!$A:$A,AC$396)+SUMIFS(raw_resource_build!$L:$L,raw_resource_build!$B:$B,$C450,raw_resource_build!$A:$A,AC$396)","v":0},{"$f":"SUMIFS(raw_resource_build!$K:$K,raw_resource_build!$B:$B,$C450,raw_resource_build!$A:$A,AD$396)+SUMIFS(raw_resource_build!$L:$L,raw_resource_build!$B:$B,$C450,raw_resource_build!$A:$A,AD$396)","v":0},{"$f":"SUMIFS(raw_resource_build!$K:$K,raw_resource_build!$B:$B,$C450,raw_resource_build!$A:$A,AE$396)+SUMIFS(raw_resource_build!$L:$L,raw_resource_build!$B:$B,$C450,raw_resource_build!$A:$A,AE$396)","v":0},{"$f":"SUMIFS(raw_resource_build!$K:$K,raw_resource_build!$B:$B,$C450,raw_resource_build!$A:$A,AF$396)+SUMIFS(raw_resource_build!$L:$L,raw_resource_build!$B:$B,$C450,raw_resource_build!$A:$A,AF$396)","v":0},{"$f":"SUMIFS(raw_resource_build!$K:$K,raw_resource_build!$B:$B,$C450,raw_resource_build!$A:$A,AG$396)+SUMIFS(raw_resource_build!$L:$L,raw_resource_build!$B:$B,$C450,raw_resource_build!$A:$A,AG$396)","v":0},{"$f":"SUMIFS(raw_resource_build!$K:$K,raw_resource_build!$B:$B,$C450,raw_resource_build!$A:$A,AH$396)+SUMIFS(raw_resource_build!$L:$L,raw_resource_build!$B:$B,$C450,raw_resource_build!$A:$A,AH$396)","v":0},{"$f":"SUMIFS(raw_resource_build!$K:$K,raw_resource_build!$B:$B,$C450,raw_resource_build!$A:$A,AI$396)+SUMIFS(raw_resource_build!$L:$L,raw_resource_build!$B:$B,$C450,raw_resource_build!$A:$A,AI$396)","v":0},{"$f":"SUMIFS(raw_resource_build!$K:$K,raw_resource_build!$B:$B,$C450,raw_resource_build!$A:$A,AJ$396)+SUMIFS(raw_resource_build!$L:$L,raw_resource_build!$B:$B,$C450,raw_resource_build!$A:$A,AJ$396)","v":0},{"$f":"SUMIFS(raw_resource_build!$K:$K,raw_resource_build!$B:$B,$C450,raw_resource_build!$A:$A,AK$396)+SUMIFS(raw_resource_build!$L:$L,raw_resource_build!$B:$B,$C450,raw_resource_build!$A:$A,AK$396)","v":0},{"$f":"SUMIFS(raw_resource_build!$K:$K,raw_resource_build!$B:$B,$C450,raw_resource_build!$A:$A,AL$396)+SUMIFS(raw_resource_build!$L:$L,raw_resource_build!$B:$B,$C450,raw_resource_build!$A:$A,AL$396)","v":0},{"$f":"SUMIFS(raw_resource_build!$K:$K,raw_resource_build!$B:$B,$C450,raw_resource_build!$A:$A,AM$396)+SUMIFS(raw_resource_build!$L:$L,raw_resource_build!$B:$B,$C450,raw_resource_build!$A:$A,AM$396)","v":0},{"$f":"SUMIFS(raw_resource_build!$K:$K,raw_resource_build!$B:$B,$C450,raw_resource_build!$A:$A,AN$396)+SUMIFS(raw_resource_build!$L:$L,raw_resource_build!$B:$B,$C450,raw_resource_build!$A:$A,AN$396)","v":0}]
[null,null,{"$f":"Lists!B89","v":"Utah_Solar"},{"$f":"IF(INDEX(raw_resource_build!J:J,MATCH(C451,raw_resource_build!$B:$B,0))=0,\"N/A\",INDEX(raw_resource_build!J:J,MATCH(C451,raw_resource_build!$B:$B,0)))","v":"N/A"},{"$f":"SUMIFS(raw_resource_build!$K:$K,raw_resource_build!$B:$B,$C451,raw_resource_build!$A:$A,E$396)+SUMIFS(raw_resource_build!$L:$L,raw_resource_build!$B:$B,$C451,raw_resource_build!$A:$A,E$396)","v":0},{"$f":"SUMIFS(raw_resource_build!$K:$K,raw_resource_build!$B:$B,$C451,raw_resource_build!$A:$A,F$396)+SUMIFS(raw_resource_build!$L:$L,raw_resource_build!$B:$B,$C451,raw_resource_build!$A:$A,F$396)","v":0},{"$f":"SUMIFS(raw_resource_build!$K:$K,raw_resource_build!$B:$B,$C451,raw_resource_build!$A:$A,G$396)+SUMIFS(raw_resource_build!$L:$L,raw_resource_build!$B:$B,$C451,raw_resource_build!$A:$A,G$396)","v":0},{"$f":"SUMIFS(raw_resource_build!$K:$K,raw_resource_build!$B:$B,$C451,raw_resource_build!$A:$A,H$396)+SUMIFS(raw_resource_build!$L:$L,raw_resource_build!$B:$B,$C451,raw_resource_build!$A:$A,H$396)","v":0},{"$f":"SUMIFS(raw_resource_build!$K:$K,raw_resource_build!$B:$B,$C451,raw_resource_build!$A:$A,I$396)+SUMIFS(raw_resource_build!$L:$L,raw_resource_build!$B:$B,$C451,raw_resource_build!$A:$A,I$396)","v":0},{"$f":"SUMIFS(raw_resource_build!$K:$K,raw_resource_build!$B:$B,$C451,raw_resource_build!$A:$A,J$396)+SUMIFS(raw_resource_build!$L:$L,raw_resource_build!$B:$B,$C451,raw_resource_build!$A:$A,J$396)","v":0},{"$f":"SUMIFS(raw_resource_build!$K:$K,raw_resource_build!$B:$B,$C451,raw_resource_build!$A:$A,K$396)+SUMIFS(raw_resource_build!$L:$L,raw_resource_build!$B:$B,$C451,raw_resource_build!$A:$A,K$396)","v":0},{"$f":"SUMIFS(raw_resource_build!$K:$K,raw_resource_build!$B:$B,$C451,raw_resource_build!$A:$A,L$396)+SUMIFS(raw_resource_build!$L:$L,raw_resource_build!$B:$B,$C451,raw_resource_build!$A:$A,L$396)","v":0},{"$f":"SUMIFS(raw_resource_build!$K:$K,raw_resource_build!$B:$B,$C451,raw_resource_build!$A:$A,M$396)+SUMIFS(raw_resource_build!$L:$L,raw_resource_build!$B:$B,$C451,raw_resource_build!$A:$A,M$396)","v":0},{"$f":"SUMIFS(raw_resource_build!$K:$K,raw_resource_build!$B:$B,$C451,raw_resource_build!$A:$A,N$396)+SUMIFS(raw_resource_build!$L:$L,raw_resource_build!$B:$B,$C451,raw_resource_build!$A:$A,N$396)","v":0},{"$f":"SUMIFS(raw_resource_build!$K:$K,raw_resource_build!$B:$B,$C451,raw_resource_build!$A:$A,O$396)+SUMIFS(raw_resource_build!$L:$L,raw_resource_build!$B:$B,$C451,raw_resource_build!$A:$A,O$396)","v":0},{"$f":"SUMIFS(raw_resource_build!$K:$K,raw_resource_build!$B:$B,$C451,raw_resource_build!$A:$A,P$396)+SUMIFS(raw_resource_build!$L:$L,raw_resource_build!$B:$B,$C451,raw_resource_build!$A:$A,P$396)","v":0},{"$f":"SUMIFS(raw_resource_build!$K:$K,raw_resource_build!$B:$B,$C451,raw_resource_build!$A:$A,Q$396)+SUMIFS(raw_resource_build!$L:$L,raw_resource_build!$B:$B,$C451,raw_resource_build!$A:$A,Q$396)","v":0},{"$f":"SUMIFS(raw_resource_build!$K:$K,raw_resource_build!$B:$B,$C451,raw_resource_build!$A:$A,R$396)+SUMIFS(raw_resource_build!$L:$L,raw_resource_build!$B:$B,$C451,raw_resource_build!$A:$A,R$396)","v":0},{"$f":"SUMIFS(raw_resource_build!$K:$K,raw_resource_build!$B:$B,$C451,raw_resource_build!$A:$A,S$396)+SUMIFS(raw_resource_build!$L:$L,raw_resource_build!$B:$B,$C451,raw_resource_build!$A:$A,S$396)","v":0},{"$f":"SUMIFS(raw_resource_build!$K:$K,raw_resource_build!$B:$B,$C451,raw_resource_build!$A:$A,T$396)+SUMIFS(raw_resource_build!$L:$L,raw_resource_build!$B:$B,$C451,raw_resource_build!$A:$A,T$396)","v":0},{"$f":"SUMIFS(raw_resource_build!$K:$K,raw_resource_build!$B:$B,$C451,raw_resource_build!$A:$A,U$396)+SUMIFS(raw_resource_build!$L:$L,raw_resource_build!$B:$B,$C451,raw_resource_build!$A:$A,U$396)","v":0},{"$f":"SUMIFS(raw_resource_build!$K:$K,raw_resource_build!$B:$B,$C451,raw_resource_build!$A:$A,V$396)+SUMIFS(raw_resource_build!$L:$L,raw_resource_build!$B:$B,$C451,raw_resource_build!$A:$A,V$396)","v":0},{"$f":"SUMIFS(raw_resource_build!$K:$K,raw_resource_build!$B:$B,$C451,raw_resource_build!$A:$A,W$396)+SUMIFS(raw_resource_build!$L:$L,raw_resource_build!$B:$B,$C451,raw_resource_build!$A:$A,W$396)","v":0},{"$f":"SUMIFS(raw_resource_build!$K:$K,raw_resource_build!$B:$B,$C451,raw_resource_build!$A:$A,X$396)+SUMIFS(raw_resource_build!$L:$L,raw_resource_build!$B:$B,$C451,raw_resource_build!$A:$A,X$396)","v":0},{"$f":"SUMIFS(raw_resource_build!$K:$K,raw_resource_build!$B:$B,$C451,raw_resource_build!$A:$A,Y$396)+SUMIFS(raw_resource_build!$L:$L,raw_resource_build!$B:$B,$C451,raw_resource_build!$A:$A,Y$396)","v":0},{"$f":"SUMIFS(raw_resource_build!$K:$K,raw_resource_build!$B:$B,$C451,raw_resource_build!$A:$A,Z$396)+SUMIFS(raw_resource_build!$L:$L,raw_resource_build!$B:$B,$C451,raw_resource_build!$A:$A,Z$396)","v":0},{"$f":"SUMIFS(raw_resource_build!$K:$K,raw_resource_build!$B:$B,$C451,raw_resource_build!$A:$A,AA$396)+SUMIFS(raw_resource_build!$L:$L,raw_resource_build!$B:$B,$C451,raw_resource_build!$A:$A,AA$396)","v":0},{"$f":"SUMIFS(raw_resource_build!$K:$K,raw_resource_build!$B:$B,$C451,raw_resource_build!$A:$A,AB$396)+SUMIFS(raw_resource_build!$L:$L,raw_resource_build!$B:$B,$C451,raw_resource_build!$A:$A,AB$396)","v":0},{"$f":"SUMIFS(raw_resource_build!$K:$K,raw_resource_build!$B:$B,$C451,raw_resource_build!$A:$A,AC$396)+SUMIFS(raw_resource_build!$L:$L,raw_resource_build!$B:$B,$C451,raw_resource_build!$A:$A,AC$396)","v":0},{"$f":"SUMIFS(raw_resource_build!$K:$K,raw_resource_build!$B:$B,$C451,raw_resource_build!$A:$A,AD$396)+SUMIFS(raw_resource_build!$L:$L,raw_resource_build!$B:$B,$C451,raw_resource_build!$A:$A,AD$396)","v":0},{"$f":"SUMIFS(raw_resource_build!$K:$K,raw_resource_build!$B:$B,$C451,raw_resource_build!$A:$A,AE$396)+SUMIFS(raw_resource_build!$L:$L,raw_resource_build!$B:$B,$C451,raw_resource_build!$A:$A,AE$396)","v":0},{"$f":"SUMIFS(raw_resource_build!$K:$K,raw_resource_build!$B:$B,$C451,raw_resource_build!$A:$A,AF$396)+SUMIFS(raw_resource_build!$L:$L,raw_resource_build!$B:$B,$C451,raw_resource_build!$A:$A,AF$396)","v":0},{"$f":"SUMIFS(raw_resource_build!$K:$K,raw_resource_build!$B:$B,$C451,raw_resource_build!$A:$A,AG$396)+SUMIFS(raw_resource_build!$L:$L,raw_resource_build!$B:$B,$C451,raw_resource_build!$A:$A,AG$396)","v":0},{"$f":"SUMIFS(raw_resource_build!$K:$K,raw_resource_build!$B:$B,$C451,raw_resource_build!$A:$A,AH$396)+SUMIFS(raw_resource_build!$L:$L,raw_resource_build!$B:$B,$C451,raw_resource_build!$A:$A,AH$396)","v":0},{"$f":"SUMIFS(raw_resource_build!$K:$K,raw_resource_build!$B:$B,$C451,raw_resource_build!$A:$A,AI$396)+SUMIFS(raw_resource_build!$L:$L,raw_resource_build!$B:$B,$C451,raw_resource_build!$A:$A,AI$396)","v":0},{"$f":"SUMIFS(raw_resource_build!$K:$K,raw_resource_build!$B:$B,$C451,raw_resource_build!$A:$A,AJ$396)+SUMIFS(raw_resource_build!$L:$L,raw_resource_build!$B:$B,$C451,raw_resource_build!$A:$A,AJ$396)","v":0},{"$f":"SUMIFS(raw_resource_build!$K:$K,raw_resource_build!$B:$B,$C451,raw_resource_build!$A:$A,AK$396)+SUMIFS(raw_resource_build!$L:$L,raw_resource_build!$B:$B,$C451,raw_resource_build!$A:$A,AK$396)","v":0},{"$f":"SUMIFS(raw_resource_build!$K:$K,raw_resource_build!$B:$B,$C451,raw_resource_build!$A:$A,AL$396)+SUMIFS(raw_resource_build!$L:$L,raw_resource_build!$B:$B,$C451,raw_resource_build!$A:$A,AL$396)","v":0},{"$f":"SUMIFS(raw_resource_build!$K:$K,raw_resource_build!$B:$B,$C451,raw_resource_build!$A:$A,AM$396)+SUMIFS(raw_resource_build!$L:$L,raw_resource_build!$B:$B,$C451,raw_resource_build!$A:$A,AM$396)","v":0},{"$f":"SUMIFS(raw_resource_build!$K:$K,raw_resource_build!$B:$B,$C451,raw_resource_build!$A:$A,AN$396)+SUMIFS(raw_resource_build!$L:$L,raw_resource_build!$B:$B,$C451,raw_resource_build!$A:$A,AN$396)","v":0}]
[null,null,{"$f":"Lists!B90","v":"Arizona_Solar"},{"$f":"IF(INDEX(raw_resource_build!J:J,MATCH(C452,raw_resource_build!$B:$B,0))=0,\"N/A\",INDEX(raw_resource_build!J:J,MATCH(C452,raw_resource_build!$B:$B,0)))","v":"SCADSNV-Riverside_Palm_Springs"},{"$f":"SUMIFS(raw_resource_build!$K:$K,raw_resource_build!$B:$B,$C452,raw_resource_build!$A:$A,E$396)+SUMIFS(raw_resource_build!$L:$L,raw_resource_build!$B:$B,$C452,raw_resource_build!$A:$A,E$396)","v":0},{"$f":"SUMIFS(raw_resource_build!$K:$K,raw_resource_build!$B:$B,$C452,raw_resource_build!$A:$A,F$396)+SUMIFS(raw_resource_build!$L:$L,raw_resource_build!$B:$B,$C452,raw_resource_build!$A:$A,F$396)","v":0},{"$f":"SUMIFS(raw_resource_build!$K:$K,raw_resource_build!$B:$B,$C452,raw_resource_build!$A:$A,G$396)+SUMIFS(raw_resource_build!$L:$L,raw_resource_build!$B:$B,$C452,raw_resource_build!$A:$A,G$396)","v":0},{"$f":"SUMIFS(raw_resource_build!$K:$K,raw_resource_build!$B:$B,$C452,raw_resource_build!$A:$A,H$396)+SUMIFS(raw_resource_build!$L:$L,raw_resource_build!$B:$B,$C452,raw_resource_build!$A:$A,H$396)","v":0},{"$f":"SUMIFS(raw_resource_build!$K:$K,raw_resource_build!$B:$B,$C452,raw_resource_build!$A:$A,I$396)+SUMIFS(raw_resource_build!$L:$L,raw_resource_build!$B:$B,$C452,raw_resource_build!$A:$A,I$396)","v":0},{"$f":"SUMIFS(raw_resource_build!$K:$K,raw_resource_build!$B:$B,$C452,raw_resource_build!$A:$A,J$396)+SUMIFS(raw_resource_build!$L:$L,raw_resource_build!$B:$B,$C452,raw_resource_build!$A:$A,J$396)","v":563},{"$f":"SUMIFS(raw_resource_build!$K:$K,raw_resource_build!$B:$B,$C452,raw_resource_build!$A:$A,K$396)+SUMIFS(raw_resource_build!$L:$L,raw_resource_build!$B:$B,$C452,raw_resource_build!$A:$A,K$396)","v":563},{"$f":"SUMIFS(raw_resource_build!$K:$K,raw_resource_build!$B:$B,$C452,raw_resource_build!$A:$A,L$396)+SUMIFS(raw_resource_build!$L:$L,raw_resource_build!$B:$B,$C452,raw_resource_build!$A:$A,L$396)","v":563},{"$f":"SUMIFS(raw_resource_build!$K:$K,raw_resource_build!$B:$B,$C452,raw_resource_build!$A:$A,M$396)+SUMIFS(raw_resource_build!$L:$L,raw_resource_build!$B:$B,$C452,raw_resource_build!$A:$A,M$396)","v":563},{"$f":"SUMIFS(raw_resource_build!$K:$K,raw_resource_build!$B:$B,$C452,raw_resource_build!$A:$A,N$396)+SUMIFS(raw_resource_build!$L:$L,raw_resource_build!$B:$B,$C452,raw_resource_build!$A:$A,N$396)","v":3113},{"$f":"SUMIFS(raw_resource_build!$K:$K,raw_resource_build!$B:$B,$C452,raw_resource_build!$A:$A,O$396)+SUMIFS(raw_resource_build!$L:$L,raw_resource_build!$B:$B,$C452,raw_resource_build!$A:$A,O$396)","v":0},{"$f":"SUMIFS(raw_resource_build!$K:$K,raw_resource_build!$B:$B,$C452,raw_resource_build!$A:$A,P$396)+SUMIFS(raw_resource_build!$L:$L,raw_resource_build!$B:$B,$C452,raw_resource_build!$A:$A,P$396)","v":3113},{"$f":"SUMIFS(raw_resource_build!$K:$K,raw_resource_build!$B:$B,$C452,raw_resource_build!$A:$A,Q$396)+SUMIFS(raw_resource_build!$L:$L,raw_resource_build!$B:$B,$C452,raw_resource_build!$A:$A,Q$396)","v":0},{"$f":"SUMIFS(raw_resource_build!$K:$K,raw_resource_build!$B:$B,$C452,raw_resource_build!$A:$A,R$396)+SUMIFS(raw_resource_build!$L:$L,raw_resource_build!$B:$B,$C452,raw_resource_build!$A:$A,R$396)","v":0},{"$f":"SUMIFS(raw_resource_build!$K:$K,raw_resource_build!$B:$B,$C452,raw_resource_build!$A:$A,S$396)+SUMIFS(raw_resource_build!$L:$L,raw_resource_build!$B:$B,$C452,raw_resource_build!$A:$A,S$396)","v":0},{"$f":"SUMIFS(raw_resource_build!$K:$K,raw_resource_build!$B:$B,$C452,raw_resource_build!$A:$A,T$396)+SUMIFS(raw_resource_build!$L:$L,raw_resource_build!$B:$B,$C452,raw_resource_build!$A:$A,T$396)","v":3113},{"$f":"SUMIFS(raw_resource_build!$K:$K,raw_resource_build!$B:$B,$C452,raw_resource_build!$A:$A,U$396)+SUMIFS(raw_resource_build!$L:$L,raw_resource_build!$B:$B,$C452,raw_resource_build!$A:$A,U$396)","v":0},{"$f":"SUMIFS(raw_resource_build!$K:$K,raw_resource_build!$B:$B,$C452,raw_resource_build!$A:$A,V$396)+SUMIFS(raw_resource_build!$L:$L,raw_resource_build!$B:$B,$C452,raw_resource_build!$A:$A,V$396)","v":0},{"$f":"SUMIFS(raw_resource_build!$K:$K,raw_resource_build!$B:$B,$C452,raw_resource_build!$A:$A,W$396)+SUMIFS(raw_resource_build!$L:$L,raw_resource_build!$B:$B,$C452,raw_resource_build!$A:$A,W$396)","v":0},{"$f":"SUMIFS(raw_resource_build!$K:$K,raw_resource_build!$B:$B,$C452,raw_resource_build!$A:$A,X$396)+SUMIFS(raw_resource_build!$L:$L,raw_resource_build!$B:$B,$C452,raw_resource_build!$A:$A,X$396)","v":0},{"$f":"SUMIFS(raw_resource_build!$K:$K,raw_resource_build!$B:$B,$C452,raw_resource_build!$A:$A,Y$396)+SUMIFS(raw_resource_build!$L:$L,raw_resource_build!$B:$B,$C452,raw_resource_build!$A:$A,Y$396)","v":0},{"$f":"SUMIFS(raw_resource_build!$K:$K,raw_resource_build!$B:$B,$C452,raw_resource_build!$A:$A,Z$396)+SUMIFS(raw_resource_build!$L:$L,raw_resource_build!$B:$B,$C452,raw_resource_build!$A:$A,Z$396)","v":0},{"$f":"SUMIFS(raw_resource_build!$K:$K,raw_resource_build!$B:$B,$C452,raw_resource_build!$A:$A,AA$396)+SUMIFS(raw_resource_build!$L:$L,raw_resource_build!$B:$B,$C452,raw_resource_build!$A:$A,AA$396)","v":0},{"$f":"SUMIFS(raw_resource_build!$K:$K,raw_resource_build!$B:$B,$C452,raw_resource_build!$A:$A,AB$396)+SUMIFS(raw_resource_build!$L:$L,raw_resource_build!$B:$B,$C452,raw_resource_build!$A:$A,AB$396)","v":0},{"$f":"SUMIFS(raw_resource_build!$K:$K,raw_resource_build!$B:$B,$C452,raw_resource_build!$A:$A,AC$396)+SUMIFS(raw_resource_build!$L:$L,raw_resource_build!$B:$B,$C452,raw_resource_build!$A:$A,AC$396)","v":0},{"$f":"SUMIFS(raw_resource_build!$K:$K,raw_resource_build!$B:$B,$C452,raw_resource_build!$A:$A,AD$396)+SUMIFS(raw_resource_build!$L:$L,raw_resource_build!$B:$B,$C452,raw_resource_build!$A:$A,AD$396)","v":0},{"$f":"SUMIFS(raw_resource_build!$K:$K,raw_resource_build!$B:$B,$C452,raw_resource_build!$A:$A,AE$396)+SUMIFS(raw_resource_build!$L:$L,raw_resource_build!$B:$B,$C452,raw_resource_build!$A:$A,AE$396)","v":0},{"$f":"SUMIFS(raw_resource_build!$K:$K,raw_resource_build!$B:$B,$C452,raw_resource_build!$A:$A,AF$396)+SUMIFS(raw_resource_build!$L:$L,raw_resource_build!$B:$B,$C452,raw_resource_build!$A:$A,AF$396)","v":0},{"$f":"SUMIFS(raw_resource_build!$K:$K,raw_resource_build!$B:$B,$C452,raw_resource_build!$A:$A,AG$396)+SUMIFS(raw_resource_build!$L:$L,raw_resource_build!$B:$B,$C452,raw_resource_build!$A:$A,AG$396)","v":0},{"$f":"SUMIFS(raw_resource_build!$K:$K,raw_resource_build!$B:$B,$C452,raw_resource_build!$A:$A,AH$396)+SUMIFS(raw_resource_build!$L:$L,raw_resource_build!$B:$B,$C452,raw_resource_build!$A:$A,AH$396)","v":0},{"$f":"SUMIFS(raw_resource_build!$K:$K,raw_resource_build!$B:$B,$C452,raw_resource_build!$A:$A,AI$396)+SUMIFS(raw_resource_build!$L:$L,raw_resource_build!$B:$B,$C452,raw_resource_build!$A:$A,AI$396)","v":3113},{"$f":"SUMIFS(raw_resource_build!$K:$K,raw_resource_build!$B:$B,$C452,raw_resource_build!$A:$A,AJ$396)+SUMIFS(raw_resource_build!$L:$L,raw_resource_build!$B:$B,$C452,raw_resource_build!$A:$A,AJ$396)","v":0},{"$f":"SUMIFS(raw_resource_build!$K:$K,raw_resource_build!$B:$B,$C452,raw_resource_build!$A:$A,AK$396)+SUMIFS(raw_resource_build!$L:$L,raw_resource_build!$B:$B,$C452,raw_resource_build!$A:$A,AK$396)","v":0},{"$f":"SUMIFS(raw_resource_build!$K:$K,raw_resource_build!$B:$B,$C452,raw_resource_build!$A:$A,AL$396)+SUMIFS(raw_resource_build!$L:$L,raw_resource_build!$B:$B,$C452,raw_resource_build!$A:$A,AL$396)","v":0},{"$f":"SUMIFS(raw_resource_build!$K:$K,raw_resource_build!$B:$B,$C452,raw_resource_build!$A:$A,AM$396)+SUMIFS(raw_resource_build!$L:$L,raw_resource_build!$B:$B,$C452,raw_resource_build!$A:$A,AM$396)","v":0},{"$f":"SUMIFS(raw_resource_build!$K:$K,raw_resource_build!$B:$B,$C452,raw_resource_build!$A:$A,AN$396)+SUMIFS(raw_resource_build!$L:$L,raw_resource_build!$B:$B,$C452,raw_resource_build!$A:$A,AN$396)","v":0}]
[null,null,{"$f":"Lists!B91","v":"New_Mexico_Solar"},{"$f":"IF(INDEX(raw_resource_build!J:J,MATCH(C453,raw_resource_build!$B:$B,0))=0,\"N/A\",INDEX(raw_resource_build!J:J,MATCH(C453,raw_resource_build!$B:$B,0)))","v":"N/A"},{"$f":"SUMIFS(raw_resource_build!$K:$K,raw_resource_build!$B:$B,$C453,raw_resource_build!$A:$A,E$396)+SUMIFS(raw_resource_build!$L:$L,raw_resource_build!$B:$B,$C453,raw_resource_build!$A:$A,E$396)","v":0},{"$f":"SUMIFS(raw_resource_build!$K:$K,raw_resource_build!$B:$B,$C453,raw_resource_build!$A:$A,F$396)+SUMIFS(raw_resource_build!$L:$L,raw_resource_build!$B:$B,$C453,raw_resource_build!$A:$A,F$396)","v":0},{"$f":"SUMIFS(raw_resource_build!$K:$K,raw_resource_build!$B:$B,$C453,raw_resource_build!$A:$A,G$396)+SUMIFS(raw_resource_build!$L:$L,raw_resource_build!$B:$B,$C453,raw_resource_build!$A:$A,G$396)","v":0},{"$f":"SUMIFS(raw_resource_build!$K:$K,raw_resource_build!$B:$B,$C453,raw_resource_build!$A:$A,H$396)+SUMIFS(raw_resource_build!$L:$L,raw_resource_build!$B:$B,$C453,raw_resource_build!$A:$A,H$396)","v":0},{"$f":"SUMIFS(raw_resource_build!$K:$K,raw_resource_build!$B:$B,$C453,raw_resource_build!$A:$A,I$396)+SUMIFS(raw_resource_build!$L:$L,raw_resource_build!$B:$B,$C453,raw_resource_build!$A:$A,I$396)","v":0},{"$f":"SUMIFS(raw_resource_build!$K:$K,raw_resource_build!$B:$B,$C453,raw_resource_build!$A:$A,J$396)+SUMIFS(raw_resource_build!$L:$L,raw_resource_build!$B:$B,$C453,raw_resource_build!$A:$A,J$396)","v":0},{"$f":"SUMIFS(raw_resource_build!$K:$K,raw_resource_build!$B:$B,$C453,raw_resource_build!$A:$A,K$396)+SUMIFS(raw_resource_build!$L:$L,raw_resource_build!$B:$B,$C453,raw_resource_build!$A:$A,K$396)","v":0},{"$f":"SUMIFS(raw_resource_build!$K:$K,raw_resource_build!$B:$B,$C453,raw_resource_build!$A:$A,L$396)+SUMIFS(raw_resource_build!$L:$L,raw_resource_build!$B:$B,$C453,raw_resource_build!$A:$A,L$396)","v":0},{"$f":"SUMIFS(raw_resource_build!$K:$K,raw_resource_build!$B:$B,$C453,raw_resource_build!$A:$A,M$396)+SUMIFS(raw_resource_build!$L:$L,raw_resource_build!$B:$B,$C453,raw_resource_build!$A:$A,M$396)","v":0},{"$f":"SUMIFS(raw_resource_build!$K:$K,raw_resource_build!$B:$B,$C453,raw_resource_build!$A:$A,N$396)+SUMIFS(raw_resource_build!$L:$L,raw_resource_build!$B:$B,$C453,raw_resource_build!$A:$A,N$396)","v":0},{"$f":"SUMIFS(raw_resource_build!$K:$K,raw_resource_build!$B:$B,$C453,raw_resource_build!$A:$A,O$396)+SUMIFS(raw_resource_build!$L:$L,raw_resource_build!$B:$B,$C453,raw_resource_build!$A:$A,O$396)","v":0},{"$f":"SUMIFS(raw_resource_build!$K:$K,raw_resource_build!$B:$B,$C453,raw_resource_build!$A:$A,P$396)+SUMIFS(raw_resource_build!$L:$L,raw_resource_build!$B:$B,$C453,raw_resource_build!$A:$A,P$396)","v":0},{"$f":"SUMIFS(raw_resource_build!$K:$K,raw_resource_build!$B:$B,$C453,raw_resource_build!$A:$A,Q$396)+SUMIFS(raw_resource_build!$L:$L,raw_resource_build!$B:$B,$C453,raw_resource_build!$A:$A,Q$396)","v":0},{"$f":"SUMIFS(raw_resource_build!$K:$K,raw_resource_build!$B:$B,$C453,raw_resource_build!$A:$A,R$396)+SUMIFS(raw_resource_build!$L:$L,raw_resource_build!$B:$B,$C453,raw_resource_build!$A:$A,R$396)","v":0},{"$f":"SUMIFS(raw_resource_build!$K:$K,raw_resource_build!$B:$B,$C453,raw_resource_build!$A:$A,S$396)+SUMIFS(raw_resource_build!$L:$L,raw_resource_build!$B:$B,$C453,raw_resource_build!$A:$A,S$396)","v":0},{"$f":"SUMIFS(raw_resource_build!$K:$K,raw_resource_build!$B:$B,$C453,raw_resource_build!$A:$A,T$396)+SUMIFS(raw_resource_build!$L:$L,raw_resource_build!$B:$B,$C453,raw_resource_build!$A:$A,T$396)","v":0},{"$f":"SUMIFS(raw_resource_build!$K:$K,raw_resource_build!$B:$B,$C453,raw_resource_build!$A:$A,U$396)+SUMIFS(raw_resource_build!$L:$L,raw_resource_build!$B:$B,$C453,raw_resource_build!$A:$A,U$396)","v":0},{"$f":"SUMIFS(raw_resource_build!$K:$K,raw_resource_build!$B:$B,$C453,raw_resource_build!$A:$A,V$396)+SUMIFS(raw_resource_build!$L:$L,raw_resource_build!$B:$B,$C453,raw_resource_build!$A:$A,V$396)","v":0},{"$f":"SUMIFS(raw_resource_build!$K:$K,raw_resource_build!$B:$B,$C453,raw_resource_build!$A:$A,W$396)+SUMIFS(raw_resource_build!$L:$L,raw_resource_build!$B:$B,$C453,raw_resource_build!$A:$A,W$396)","v":0},{"$f":"SUMIFS(raw_resource_build!$K:$K,raw_resource_build!$B:$B,$C453,raw_resource_build!$A:$A,X$396)+SUMIFS(raw_resource_build!$L:$L,raw_resource_build!$B:$B,$C453,raw_resource_build!$A:$A,X$396)","v":0},{"$f":"SUMIFS(raw_resource_build!$K:$K,raw_resource_build!$B:$B,$C453,raw_resource_build!$A:$A,Y$396)+SUMIFS(raw_resource_build!$L:$L,raw_resource_build!$B:$B,$C453,raw_resource_build!$A:$A,Y$396)","v":0},{"$f":"SUMIFS(raw_resource_build!$K:$K,raw_resource_build!$B:$B,$C453,raw_resource_build!$A:$A,Z$396)+SUMIFS(raw_resource_build!$L:$L,raw_resource_build!$B:$B,$C453,raw_resource_build!$A:$A,Z$396)","v":0},{"$f":"SUMIFS(raw_resource_build!$K:$K,raw_resource_build!$B:$B,$C453,raw_resource_build!$A:$A,AA$396)+SUMIFS(raw_resource_build!$L:$L,raw_resource_build!$B:$B,$C453,raw_resource_build!$A:$A,AA$396)","v":0},{"$f":"SUMIFS(raw_resource_build!$K:$K,raw_resource_build!$B:$B,$C453,raw_resource_build!$A:$A,AB$396)+SUMIFS(raw_resource_build!$L:$L,raw_resource_build!$B:$B,$C453,raw_resource_build!$A:$A,AB$396)","v":0},{"$f":"SUMIFS(raw_resource_build!$K:$K,raw_resource_build!$B:$B,$C453,raw_resource_build!$A:$A,AC$396)+SUMIFS(raw_resource_build!$L:$L,raw_resource_build!$B:$B,$C453,raw_resource_build!$A:$A,AC$396)","v":0},{"$f":"SUMIFS(raw_resource_build!$K:$K,raw_resource_build!$B:$B,$C453,raw_resource_build!$A:$A,AD$396)+SUMIFS(raw_resource_build!$L:$L,raw_resource_build!$B:$B,$C453,raw_resource_build!$A:$A,AD$396)","v":0},{"$f":"SUMIFS(raw_resource_build!$K:$K,raw_resource_build!$B:$B,$C453,raw_resource_build!$A:$A,AE$396)+SUMIFS(raw_resource_build!$L:$L,raw_resource_build!$B:$B,$C453,raw_resource_build!$A:$A,AE$396)","v":0},{"$f":"SUMIFS(raw_resource_build!$K:$K,raw_resource_build!$B:$B,$C453,raw_resource_build!$A:$A,AF$396)+SUMIFS(raw_resource_build!$L:$L,raw_resource_build!$B:$B,$C453,raw_resource_build!$A:$A,AF$396)","v":0},{"$f":"SUMIFS(raw_resource_build!$K:$K,raw_resource_build!$B:$B,$C453,raw_resource_build!$A:$A,AG$396)+SUMIFS(raw_resource_build!$L:$L,raw_resource_build!$B:$B,$C453,raw_resource_build!$A:$A,AG$396)","v":0},{"$f":"SUMIFS(raw_resource_build!$K:$K,raw_resource_build!$B:$B,$C453,raw_resource_build!$A:$A,AH$396)+SUMIFS(raw_resource_build!$L:$L,raw_resource_build!$B:$B,$C453,raw_resource_build!$A:$A,AH$396)","v":0},{"$f":"SUMIFS(raw_resource_build!$K:$K,raw_resource_build!$B:$B,$C453,raw_resource_build!$A:$A,AI$396)+SUMIFS(raw_resource_build!$L:$L,raw_resource_build!$B:$B,$C453,raw_resource_build!$A:$A,AI$396)","v":0},{"$f":"SUMIFS(raw_resource_build!$K:$K,raw_resource_build!$B:$B,$C453,raw_resource_build!$A:$A,AJ$396)+SUMIFS(raw_resource_build!$L:$L,raw_resource_build!$B:$B,$C453,raw_resource_build!$A:$A,AJ$396)","v":0},{"$f":"SUMIFS(raw_resource_build!$K:$K,raw_resource_build!$B:$B,$C453,raw_resource_build!$A:$A,AK$396)+SUMIFS(raw_resource_build!$L:$L,raw_resource_build!$B:$B,$C453,raw_resource_build!$A:$A,AK$396)","v":0},{"$f":"SUMIFS(raw_resource_build!$K:$K,raw_resource_build!$B:$B,$C453,raw_resource_build!$A:$A,AL$396)+SUMIFS(raw_resource_build!$L:$L,raw_resource_build!$B:$B,$C453,raw_resource_build!$A:$A,AL$396)","v":0},{"$f":"SUMIFS(raw_resource_build!$K:$K,raw_resource_build!$B:$B,$C453,raw_resource_build!$A:$A,AM$396)+SUMIFS(raw_resource_build!$L:$L,raw_resource_build!$B:$B,$C453,raw_resource_build!$A:$A,AM$396)","v":0},{"$f":"SUMIFS(raw_resource_build!$K:$K,raw_resource_build!$B:$B,$C453,raw_resource_build!$A:$A,AN$396)+SUMIFS(raw_resource_build!$L:$L,raw_resource_build!$B:$B,$C453,raw_resource_build!$A:$A,AN$396)","v":0}]
[null,null,{"$f":"Lists!B92","v":"Baja_California_Solar"},{"$f":"IF(INDEX(raw_resource_build!J:J,MATCH(C454,raw_resource_build!$B:$B,0))=0,\"N/A\",INDEX(raw_resource_build!J:J,MATCH(C454,raw_resource_build!$B:$B,0)))","v":"N/A"},{"$f":"SUMIFS(raw_resource_build!$K:$K,raw_resource_build!$B:$B,$C454,raw_resource_build!$A:$A,E$396)+SUMIFS(raw_resource_build!$L:$L,raw_resource_build!$B:$B,$C454,raw_resource_build!$A:$A,E$396)","v":0},{"$f":"SUMIFS(raw_resource_build!$K:$K,raw_resource_build!$B:$B,$C454,raw_resource_build!$A:$A,F$396)+SUMIFS(raw_resource_build!$L:$L,raw_resource_build!$B:$B,$C454,raw_resource_build!$A:$A,F$396)","v":0},{"$f":"SUMIFS(raw_resource_build!$K:$K,raw_resource_build!$B:$B,$C454,raw_resource_build!$A:$A,G$396)+SUMIFS(raw_resource_build!$L:$L,raw_resource_build!$B:$B,$C454,raw_resource_build!$A:$A,G$396)","v":0},{"$f":"SUMIFS(raw_resource_build!$K:$K,raw_resource_build!$B:$B,$C454,raw_resource_build!$A:$A,H$396)+SUMIFS(raw_resource_build!$L:$L,raw_resource_build!$B:$B,$C454,raw_resource_build!$A:$A,H$396)","v":0},{"$f":"SUMIFS(raw_resource_build!$K:$K,raw_resource_build!$B:$B,$C454,raw_resource_build!$A:$A,I$396)+SUMIFS(raw_resource_build!$L:$L,raw_resource_build!$B:$B,$C454,raw_resource_build!$A:$A,I$396)","v":0},{"$f":"SUMIFS(raw_resource_build!$K:$K,raw_resource_build!$B:$B,$C454,raw_resource_build!$A:$A,J$396)+SUMIFS(raw_resource_build!$L:$L,raw_resource_build!$B:$B,$C454,raw_resource_build!$A:$A,J$396)","v":0},{"$f":"SUMIFS(raw_resource_build!$K:$K,raw_resource_build!$B:$B,$C454,raw_resource_build!$A:$A,K$396)+SUMIFS(raw_resource_build!$L:$L,raw_resource_build!$B:$B,$C454,raw_resource_build!$A:$A,K$396)","v":0},{"$f":"SUMIFS(raw_resource_build!$K:$K,raw_resource_build!$B:$B,$C454,raw_resource_build!$A:$A,L$396)+SUMIFS(raw_resource_build!$L:$L,raw_resource_build!$B:$B,$C454,raw_resource_build!$A:$A,L$396)","v":0},{"$f":"SUMIFS(raw_resource_build!$K:$K,raw_resource_build!$B:$B,$C454,raw_resource_build!$A:$A,M$396)+SUMIFS(raw_resource_build!$L:$L,raw_resource_build!$B:$B,$C454,raw_resource_build!$A:$A,M$396)","v":0},{"$f":"SUMIFS(raw_resource_build!$K:$K,raw_resource_build!$B:$B,$C454,raw_resource_build!$A:$A,N$396)+SUMIFS(raw_resource_build!$L:$L,raw_resource_build!$B:$B,$C454,raw_resource_build!$A:$A,N$396)","v":0},{"$f":"SUMIFS(raw_resource_build!$K:$K,raw_resource_build!$B:$B,$C454,raw_resource_build!$A:$A,O$396)+SUMIFS(raw_resource_build!$L:$L,raw_resource_build!$B:$B,$C454,raw_resource_build!$A:$A,O$396)","v":0},{"$f":"SUMIFS(raw_resource_build!$K:$K,raw_resource_build!$B:$B,$C454,raw_resource_build!$A:$A,P$396)+SUMIFS(raw_resource_build!$L:$L,raw_resource_build!$B:$B,$C454,raw_resource_build!$A:$A,P$396)","v":0},{"$f":"SUMIFS(raw_resource_build!$K:$K,raw_resource_build!$B:$B,$C454,raw_resource_build!$A:$A,Q$396)+SUMIFS(raw_resource_build!$L:$L,raw_resource_build!$B:$B,$C454,raw_resource_build!$A:$A,Q$396)","v":0},{"$f":"SUMIFS(raw_resource_build!$K:$K,raw_resource_build!$B:$B,$C454,raw_resource_build!$A:$A,R$396)+SUMIFS(raw_resource_build!$L:$L,raw_resource_build!$B:$B,$C454,raw_resource_build!$A:$A,R$396)","v":0},{"$f":"SUMIFS(raw_resource_build!$K:$K,raw_resource_build!$B:$B,$C454,raw_resource_build!$A:$A,S$396)+SUMIFS(raw_resource_build!$L:$L,raw_resource_build!$B:$B,$C454,raw_resource_build!$A:$A,S$396)","v":0},{"$f":"SUMIFS(raw_resource_build!$K:$K,raw_resource_build!$B:$B,$C454,raw_resource_build!$A:$A,T$396)+SUMIFS(raw_resource_build!$L:$L,raw_resource_build!$B:$B,$C454,raw_resource_build!$A:$A,T$396)","v":0},{"$f":"SUMIFS(raw_resource_build!$K:$K,raw_resource_build!$B:$B,$C454,raw_resource_build!$A:$A,U$396)+SUMIFS(raw_resource_build!$L:$L,raw_resource_build!$B:$B,$C454,raw_resource_build!$A:$A,U$396)","v":0},{"$f":"SUMIFS(raw_resource_build!$K:$K,raw_resource_build!$B:$B,$C454,raw_resource_build!$A:$A,V$396)+SUMIFS(raw_resource_build!$L:$L,raw_resource_build!$B:$B,$C454,raw_resource_build!$A:$A,V$396)","v":0},{"$f":"SUMIFS(raw_resource_build!$K:$K,raw_resource_build!$B:$B,$C454,raw_resource_build!$A:$A,W$396)+SUMIFS(raw_resource_build!$L:$L,raw_resource_build!$B:$B,$C454,raw_resource_build!$A:$A,W$396)","v":0},{"$f":"SUMIFS(raw_resource_build!$K:$K,raw_resource_build!$B:$B,$C454,raw_resource_build!$A:$A,X$396)+SUMIFS(raw_resource_build!$L:$L,raw_resource_build!$B:$B,$C454,raw_resource_build!$A:$A,X$396)","v":0},{"$f":"SUMIFS(raw_resource_build!$K:$K,raw_resource_build!$B:$B,$C454,raw_resource_build!$A:$A,Y$396)+SUMIFS(raw_resource_build!$L:$L,raw_resource_build!$B:$B,$C454,raw_resource_build!$A:$A,Y$396)","v":0},{"$f":"SUMIFS(raw_resource_build!$K:$K,raw_resource_build!$B:$B,$C454,raw_resource_build!$A:$A,Z$396)+SUMIFS(raw_resource_build!$L:$L,raw_resource_build!$B:$B,$C454,raw_resource_build!$A:$A,Z$396)","v":0},{"$f":"SUMIFS(raw_resource_build!$K:$K,raw_resource_build!$B:$B,$C454,raw_resource_build!$A:$A,AA$396)+SUMIFS(raw_resource_build!$L:$L,raw_resource_build!$B:$B,$C454,raw_resource_build!$A:$A,AA$396)","v":0},{"$f":"SUMIFS(raw_resource_build!$K:$K,raw_resource_build!$B:$B,$C454,raw_resource_build!$A:$A,AB$396)+SUMIFS(raw_resource_build!$L:$L,raw_resource_build!$B:$B,$C454,raw_resource_build!$A:$A,AB$396)","v":0},{"$f":"SUMIFS(raw_resource_build!$K:$K,raw_resource_build!$B:$B,$C454,raw_resource_build!$A:$A,AC$396)+SUMIFS(raw_resource_build!$L:$L,raw_resource_build!$B:$B,$C454,raw_resource_build!$A:$A,AC$396)","v":0},{"$f":"SUMIFS(raw_resource_build!$K:$K,raw_resource_build!$B:$B,$C454,raw_resource_build!$A:$A,AD$396)+SUMIFS(raw_resource_build!$L:$L,raw_resource_build!$B:$B,$C454,raw_resource_build!$A:$A,AD$396)","v":0},{"$f":"SUMIFS(raw_resource_build!$K:$K,raw_resource_build!$B:$B,$C454,raw_resource_build!$A:$A,AE$396)+SUMIFS(raw_resource_build!$L:$L,raw_resource_build!$B:$B,$C454,raw_resource_build!$A:$A,AE$396)","v":0},{"$f":"SUMIFS(raw_resource_build!$K:$K,raw_resource_build!$B:$B,$C454,raw_resource_build!$A:$A,AF$396)+SUMIFS(raw_resource_build!$L:$L,raw_resource_build!$B:$B,$C454,raw_resource_build!$A:$A,AF$396)","v":0},{"$f":"SUMIFS(raw_resource_build!$K:$K,raw_resource_build!$B:$B,$C454,raw_resource_build!$A:$A,AG$396)+SUMIFS(raw_resource_build!$L:$L,raw_resource_build!$B:$B,$C454,raw_resource_build!$A:$A,AG$396)","v":0},{"$f":"SUMIFS(raw_resource_build!$K:$K,raw_resource_build!$B:$B,$C454,raw_resource_build!$A:$A,AH$396)+SUMIFS(raw_resource_build!$L:$L,raw_resource_build!$B:$B,$C454,raw_resource_build!$A:$A,AH$396)","v":0},{"$f":"SUMIFS(raw_resource_build!$K:$K,raw_resource_build!$B:$B,$C454,raw_resource_build!$A:$A,AI$396)+SUMIFS(raw_resource_build!$L:$L,raw_resource_build!$B:$B,$C454,raw_resource_build!$A:$A,AI$396)","v":0},{"$f":"SUMIFS(raw_resource_build!$K:$K,raw_resource_build!$B:$B,$C454,raw_resource_build!$A:$A,AJ$396)+SUMIFS(raw_resource_build!$L:$L,raw_resource_build!$B:$B,$C454,raw_resource_build!$A:$A,AJ$396)","v":0},{"$f":"SUMIFS(raw_resource_build!$K:$K,raw_resource_build!$B:$B,$C454,raw_resource_build!$A:$A,AK$396)+SUMIFS(raw_resource_build!$L:$L,raw_resource_build!$B:$B,$C454,raw_resource_build!$A:$A,AK$396)","v":0},{"$f":"SUMIFS(raw_resource_build!$K:$K,raw_resource_build!$B:$B,$C454,raw_resource_build!$A:$A,AL$396)+SUMIFS(raw_resource_build!$L:$L,raw_resource_build!$B:$B,$C454,raw_resource_build!$A:$A,AL$396)","v":0},{"$f":"SUMIFS(raw_resource_build!$K:$K,raw_resource_build!$B:$B,$C454,raw_resource_build!$A:$A,AM$396)+SUMIFS(raw_resource_build!$L:$L,raw_resource_build!$B:$B,$C454,raw_resource_build!$A:$A,AM$396)","v":0},{"$f":"SUMIFS(raw_resource_build!$K:$K,raw_resource_build!$B:$B,$C454,raw_resource_build!$A:$A,AN$396)+SUMIFS(raw_resource_build!$L:$L,raw_resource_build!$B:$B,$C454,raw_resource_build!$A:$A,AN$396)","v":0}]
[null,null,{"$f":"Lists!B93","v":"Baja_California_Wind"},{"$f":"IF(INDEX(raw_resource_build!J:J,MATCH(C455,raw_resource_build!$B:$B,0))=0,\"N/A\",INDEX(raw_resource_build!J:J,MATCH(C455,raw_resource_build!$B:$B,0)))","v":"SCADSNV-Greater_Imperial"},{"$f":"SUMIFS(raw_resource_build!$K:$K,raw_resource_build!$B:$B,$C455,raw_resource_build!$A:$A,E$396)+SUMIFS(raw_resource_build!$L:$L,raw_resource_build!$B:$B,$C455,raw_resource_build!$A:$A,E$396)","v":0},{"$f":"SUMIFS(raw_resource_build!$K:$K,raw_resource_build!$B:$B,$C455,raw_resource_build!$A:$A,F$396)+SUMIFS(raw_resource_build!$L:$L,raw_resource_build!$B:$B,$C455,raw_resource_build!$A:$A,F$396)","v":0},{"$f":"SUMIFS(raw_resource_build!$K:$K,raw_resource_build!$B:$B,$C455,raw_resource_build!$A:$A,G$396)+SUMIFS(raw_resource_build!$L:$L,raw_resource_build!$B:$B,$C455,raw_resource_build!$A:$A,G$396)","v":0},{"$f":"SUMIFS(raw_resource_build!$K:$K,raw_resource_build!$B:$B,$C455,raw_resource_build!$A:$A,H$396)+SUMIFS(raw_resource_build!$L:$L,raw_resource_build!$B:$B,$C455,raw_resource_build!$A:$A,H$396)","v":0},{"$f":"SUMIFS(raw_resource_build!$K:$K,raw_resource_build!$B:$B,$C455,raw_resource_build!$A:$A,I$396)+SUMIFS(raw_resource_build!$L:$L,raw_resource_build!$B:$B,$C455,raw_resource_build!$A:$A,I$396)","v":0},{"$f":"SUMIFS(raw_resource_build!$K:$K,raw_resource_build!$B:$B,$C455,raw_resource_build!$A:$A,J$396)+SUMIFS(raw_resource_build!$L:$L,raw_resource_build!$B:$B,$C455,raw_resource_build!$A:$A,J$396)","v":0},{"$f":"SUMIFS(raw_resource_build!$K:$K,raw_resource_build!$B:$B,$C455,raw_resource_build!$A:$A,K$396)+SUMIFS(raw_resource_build!$L:$L,raw_resource_build!$B:$B,$C455,raw_resource_build!$A:$A,K$396)","v":0},{"$f":"SUMIFS(raw_resource_build!$K:$K,raw_resource_build!$B:$B,$C455,raw_resource_build!$A:$A,L$396)+SUMIFS(raw_resource_build!$L:$L,raw_resource_build!$B:$B,$C455,raw_resource_build!$A:$A,L$396)","v":0},{"$f":"SUMIFS(raw_resource_build!$K:$K,raw_resource_build!$B:$B,$C455,raw_resource_build!$A:$A,M$396)+SUMIFS(raw_resource_build!$L:$L,raw_resource_build!$B:$B,$C455,raw_resource_build!$A:$A,M$396)","v":0},{"$f":"SUMIFS(raw_resource_build!$K:$K,raw_resource_build!$B:$B,$C455,raw_resource_build!$A:$A,N$396)+SUMIFS(raw_resource_build!$L:$L,raw_resource_build!$B:$B,$C455,raw_resource_build!$A:$A,N$396)","v":92.17},{"$f":"SUMIFS(raw_resource_build!$K:$K,raw_resource_build!$B:$B,$C455,raw_resource_build!$A:$A,O$396)+SUMIFS(raw_resource_build!$L:$L,raw_resource_build!$B:$B,$C455,raw_resource_build!$A:$A,O$396)","v":0},{"$f":"SUMIFS(raw_resource_build!$K:$K,raw_resource_build!$B:$B,$C455,raw_resource_build!$A:$A,P$396)+SUMIFS(raw_resource_build!$L:$L,raw_resource_build!$B:$B,$C455,raw_resource_build!$A:$A,P$396)","v":92.17},{"$f":"SUMIFS(raw_resource_build!$K:$K,raw_resource_build!$B:$B,$C455,raw_resource_build!$A:$A,Q$396)+SUMIFS(raw_resource_build!$L:$L,raw_resource_build!$B:$B,$C455,raw_resource_build!$A:$A,Q$396)","v":0},{"$f":"SUMIFS(raw_resource_build!$K:$K,raw_resource_build!$B:$B,$C455,raw_resource_build!$A:$A,R$396)+SUMIFS(raw_resource_build!$L:$L,raw_resource_build!$B:$B,$C455,raw_resource_build!$A:$A,R$396)","v":0},{"$f":"SUMIFS(raw_resource_build!$K:$K,raw_resource_build!$B:$B,$C455,raw_resource_build!$A:$A,S$396)+SUMIFS(raw_resource_build!$L:$L,raw_resource_build!$B:$B,$C455,raw_resource_build!$A:$A,S$396)","v":0},{"$f":"SUMIFS(raw_resource_build!$K:$K,raw_resource_build!$B:$B,$C455,raw_resource_build!$A:$A,T$396)+SUMIFS(raw_resource_build!$L:$L,raw_resource_build!$B:$B,$C455,raw_resource_build!$A:$A,T$396)","v":600},{"$f":"SUMIFS(raw_resource_build!$K:$K,raw_resource_build!$B:$B,$C455,raw_resource_build!$A:$A,U$396)+SUMIFS(raw_resource_build!$L:$L,raw_resource_build!$B:$B,$C455,raw_resource_build!$A:$A,U$396)","v":0},{"$f":"SUMIFS(raw_resource_build!$K:$K,raw_resource_build!$B:$B,$C455,raw_resource_build!$A:$A,V$396)+SUMIFS(raw_resource_build!$L:$L,raw_resource_build!$B:$B,$C455,raw_resource_build!$A:$A,V$396)","v":0},{"$f":"SUMIFS(raw_resource_build!$K:$K,raw_resource_build!$B:$B,$C455,raw_resource_build!$A:$A,W$396)+SUMIFS(raw_resource_build!$L:$L,raw_resource_build!$B:$B,$C455,raw_resource_build!$A:$A,W$396)","v":0},{"$f":"SUMIFS(raw_resource_build!$K:$K,raw_resource_build!$B:$B,$C455,raw_resource_build!$A:$A,X$396)+SUMIFS(raw_resource_build!$L:$L,raw_resource_build!$B:$B,$C455,raw_resource_build!$A:$A,X$396)","v":0},{"$f":"SUMIFS(raw_resource_build!$K:$K,raw_resource_build!$B:$B,$C455,raw_resource_build!$A:$A,Y$396)+SUMIFS(raw_resource_build!$L:$L,raw_resource_build!$B:$B,$C455,raw_resource_build!$A:$A,Y$396)","v":0},{"$f":"SUMIFS(raw_resource_build!$K:$K,raw_resource_build!$B:$B,$C455,raw_resource_build!$A:$A,Z$396)+SUMIFS(raw_resource_build!$L:$L,raw_resource_build!$B:$B,$C455,raw_resource_build!$A:$A,Z$396)","v":0},{"$f":"SUMIFS(raw_resource_build!$K:$K,raw_resource_build!$B:$B,$C455,raw_resource_build!$A:$A,AA$396)+SUMIFS(raw_resource_build!$L:$L,raw_resource_build!$B:$B,$C455,raw_resource_build!$A:$A,AA$396)","v":0},{"$f":"SUMIFS(raw_resource_build!$K:$K,raw_resource_build!$B:$B,$C455,raw_resource_build!$A:$A,AB$396)+SUMIFS(raw_resource_build!$L:$L,raw_resource_build!$B:$B,$C455,raw_resource_build!$A:$A,AB$396)","v":0},{"$f":"SUMIFS(raw_resource_build!$K:$K,raw_resource_build!$B:$B,$C455,raw_resource_build!$A:$A,AC$396)+SUMIFS(raw_resource_build!$L:$L,raw_resource_build!$B:$B,$C455,raw_resource_build!$A:$A,AC$396)","v":0},{"$f":"SUMIFS(raw_resource_build!$K:$K,raw_resource_build!$B:$B,$C455,raw_resource_build!$A:$A,AD$396)+SUMIFS(raw_resource_build!$L:$L,raw_resource_build!$B:$B,$C455,raw_resource_build!$A:$A,AD$396)","v":0},{"$f":"SUMIFS(raw_resource_build!$K:$K,raw_resource_build!$B:$B,$C455,raw_resource_build!$A:$A,AE$396)+SUMIFS(raw_resource_build!$L:$L,raw_resource_build!$B:$B,$C455,raw_resource_build!$A:$A,AE$396)","v":0},{"$f":"SUMIFS(raw_resource_build!$K:$K,raw_resource_build!$B:$B,$C455,raw_resource_build!$A:$A,AF$396)+SUMIFS(raw_resource_build!$L:$L,raw_resource_build!$B:$B,$C455,raw_resource_build!$A:$A,AF$396)","v":0},{"$f":"SUMIFS(raw_resource_build!$K:$K,raw_resource_build!$B:$B,$C455,raw_resource_build!$A:$A,AG$396)+SUMIFS(raw_resource_build!$L:$L,raw_resource_build!$B:$B,$C455,raw_resource_build!$A:$A,AG$396)","v":0},{"$f":"SUMIFS(raw_resource_build!$K:$K,raw_resource_build!$B:$B,$C455,raw_resource_build!$A:$A,AH$396)+SUMIFS(raw_resource_build!$L:$L,raw_resource_build!$B:$B,$C455,raw_resource_build!$A:$A,AH$396)","v":0},{"$f":"SUMIFS(raw_resource_build!$K:$K,raw_resource_build!$B:$B,$C455,raw_resource_build!$A:$A,AI$396)+SUMIFS(raw_resource_build!$L:$L,raw_resource_build!$B:$B,$C455,raw_resource_build!$A:$A,AI$396)","v":600},{"$f":"SUMIFS(raw_resource_build!$K:$K,raw_resource_build!$B:$B,$C455,raw_resource_build!$A:$A,AJ$396)+SUMIFS(raw_resource_build!$L:$L,raw_resource_build!$B:$B,$C455,raw_resource_build!$A:$A,AJ$396)","v":0},{"$f":"SUMIFS(raw_resource_build!$K:$K,raw_resource_build!$B:$B,$C455,raw_resource_build!$A:$A,AK$396)+SUMIFS(raw_resource_build!$L:$L,raw_resource_build!$B:$B,$C455,raw_resource_build!$A:$A,AK$396)","v":0},{"$f":"SUMIFS(raw_resource_build!$K:$K,raw_resource_build!$B:$B,$C455,raw_resource_build!$A:$A,AL$396)+SUMIFS(raw_resource_build!$L:$L,raw_resource_build!$B:$B,$C455,raw_resource_build!$A:$A,AL$396)","v":0},{"$f":"SUMIFS(raw_resource_build!$K:$K,raw_resource_build!$B:$B,$C455,raw_resource_build!$A:$A,AM$396)+SUMIFS(raw_resource_build!$L:$L,raw_resource_build!$B:$B,$C455,raw_resource_build!$A:$A,AM$396)","v":0},{"$f":"SUMIFS(raw_resource_build!$K:$K,raw_resource_build!$B:$B,$C455,raw_resource_build!$A:$A,AN$396)+SUMIFS(raw_resource_build!$L:$L,raw_resource_build!$B:$B,$C455,raw_resource_build!$A:$A,AN$396)","v":0}]
[null,null,{"$f":"Lists!B94","v":"Pacific_Northwest_Wind"},{"$f":"IF(INDEX(raw_resource_build!J:J,MATCH(C456,raw_resource_build!$B:$B,0))=0,\"N/A\",INDEX(raw_resource_build!J:J,MATCH(C456,raw_resource_build!$B:$B,0)))","v":"N/A"},{"$f":"SUMIFS(raw_resource_build!$K:$K,raw_resource_build!$B:$B,$C456,raw_resource_build!$A:$A,E$396)+SUMIFS(raw_resource_build!$L:$L,raw_resource_build!$B:$B,$C456,raw_resource_build!$A:$A,E$396)","v":0},{"$f":"SUMIFS(raw_resource_build!$K:$K,raw_resource_build!$B:$B,$C456,raw_resource_build!$A:$A,F$396)+SUMIFS(raw_resource_build!$L:$L,raw_resource_build!$B:$B,$C456,raw_resource_build!$A:$A,F$396)","v":0},{"$f":"SUMIFS(raw_resource_build!$K:$K,raw_resource_build!$B:$B,$C456,raw_resource_build!$A:$A,G$396)+SUMIFS(raw_resource_build!$L:$L,raw_resource_build!$B:$B,$C456,raw_resource_build!$A:$A,G$396)","v":0},{"$f":"SUMIFS(raw_resource_build!$K:$K,raw_resource_build!$B:$B,$C456,raw_resource_build!$A:$A,H$396)+SUMIFS(raw_resource_build!$L:$L,raw_resource_build!$B:$B,$C456,raw_resource_build!$A:$A,H$396)","v":0},{"$f":"SUMIFS(raw_resource_build!$K:$K,raw_resource_build!$B:$B,$C456,raw_resource_build!$A:$A,I$396)+SUMIFS(raw_resource_build!$L:$L,raw_resource_build!$B:$B,$C456,raw_resource_build!$A:$A,I$396)","v":0},{"$f":"SUMIFS(raw_resource_build!$K:$K,raw_resource_build!$B:$B,$C456,raw_resource_build!$A:$A,J$396)+SUMIFS(raw_resource_build!$L:$L,raw_resource_build!$B:$B,$C456,raw_resource_build!$A:$A,J$396)","v":0},{"$f":"SUMIFS(raw_resource_build!$K:$K,raw_resource_build!$B:$B,$C456,raw_resource_build!$A:$A,K$396)+SUMIFS(raw_resource_build!$L:$L,raw_resource_build!$B:$B,$C456,raw_resource_build!$A:$A,K$396)","v":0},{"$f":"SUMIFS(raw_resource_build!$K:$K,raw_resource_build!$B:$B,$C456,raw_resource_build!$A:$A,L$396)+SUMIFS(raw_resource_build!$L:$L,raw_resource_build!$B:$B,$C456,raw_resource_build!$A:$A,L$396)","v":0},{"$f":"SUMIFS(raw_resource_build!$K:$K,raw_resource_build!$B:$B,$C456,raw_resource_build!$A:$A,M$396)+SUMIFS(raw_resource_build!$L:$L,raw_resource_build!$B:$B,$C456,raw_resource_build!$A:$A,M$396)","v":0},{"$f":"SUMIFS(raw_resource_build!$K:$K,raw_resource_build!$B:$B,$C456,raw_resource_build!$A:$A,N$396)+SUMIFS(raw_resource_build!$L:$L,raw_resource_build!$B:$B,$C456,raw_resource_build!$A:$A,N$396)","v":0},{"$f":"SUMIFS(raw_resource_build!$K:$K,raw_resource_build!$B:$B,$C456,raw_resource_build!$A:$A,O$396)+SUMIFS(raw_resource_build!$L:$L,raw_resource_build!$B:$B,$C456,raw_resource_build!$A:$A,O$396)","v":0},{"$f":"SUMIFS(raw_resource_build!$K:$K,raw_resource_build!$B:$B,$C456,raw_resource_build!$A:$A,P$396)+SUMIFS(raw_resource_build!$L:$L,raw_resource_build!$B:$B,$C456,raw_resource_build!$A:$A,P$396)","v":0},{"$f":"SUMIFS(raw_resource_build!$K:$K,raw_resource_build!$B:$B,$C456,raw_resource_build!$A:$A,Q$396)+SUMIFS(raw_resource_build!$L:$L,raw_resource_build!$B:$B,$C456,raw_resource_build!$A:$A,Q$396)","v":0},{"$f":"SUMIFS(raw_resource_build!$K:$K,raw_resource_build!$B:$B,$C456,raw_resource_build!$A:$A,R$396)+SUMIFS(raw_resource_build!$L:$L,raw_resource_build!$B:$B,$C456,raw_resource_build!$A:$A,R$396)","v":0},{"$f":"SUMIFS(raw_resource_build!$K:$K,raw_resource_build!$B:$B,$C456,raw_resource_build!$A:$A,S$396)+SUMIFS(raw_resource_build!$L:$L,raw_resource_build!$B:$B,$C456,raw_resource_build!$A:$A,S$396)","v":0},{"$f":"SUMIFS(raw_resource_build!$K:$K,raw_resource_build!$B:$B,$C456,raw_resource_build!$A:$A,T$396)+SUMIFS(raw_resource_build!$L:$L,raw_resource_build!$B:$B,$C456,raw_resource_build!$A:$A,T$396)","v":0},{"$f":"SUMIFS(raw_resource_build!$K:$K,raw_resource_build!$B:$B,$C456,raw_resource_build!$A:$A,U$396)+SUMIFS(raw_resource_build!$L:$L,raw_resource_build!$B:$B,$C456,raw_resource_build!$A:$A,U$396)","v":0},{"$f":"SUMIFS(raw_resource_build!$K:$K,raw_resource_build!$B:$B,$C456,raw_resource_build!$A:$A,V$396)+SUMIFS(raw_resource_build!$L:$L,raw_resource_build!$B:$B,$C456,raw_resource_build!$A:$A,V$396)","v":0},{"$f":"SUMIFS(raw_resource_build!$K:$K,raw_resource_build!$B:$B,$C456,raw_resource_build!$A:$A,W$396)+SUMIFS(raw_resource_build!$L:$L,raw_resource_build!$B:$B,$C456,raw_resource_build!$A:$A,W$396)","v":0},{"$f":"SUMIFS(raw_resource_build!$K:$K,raw_resource_build!$B:$B,$C456,raw_resource_build!$A:$A,X$396)+SUMIFS(raw_resource_build!$L:$L,raw_resource_build!$B:$B,$C456,raw_resource_build!$A:$A,X$396)","v":0},{"$f":"SUMIFS(raw_resource_build!$K:$K,raw_resource_build!$B:$B,$C456,raw_resource_build!$A:$A,Y$396)+SUMIFS(raw_resource_build!$L:$L,raw_resource_build!$B:$B,$C456,raw_resource_build!$A:$A,Y$396)","v":0},{"$f":"SUMIFS(raw_resource_build!$K:$K,raw_resource_build!$B:$B,$C456,raw_resource_build!$A:$A,Z$396)+SUMIFS(raw_resource_build!$L:$L,raw_resource_build!$B:$B,$C456,raw_resource_build!$A:$A,Z$396)","v":0},{"$f":"SUMIFS(raw_resource_build!$K:$K,raw_resource_build!$B:$B,$C456,raw_resource_build!$A:$A,AA$396)+SUMIFS(raw_resource_build!$L:$L,raw_resource_build!$B:$B,$C456,raw_resource_build!$A:$A,AA$396)","v":0},{"$f":"SUMIFS(raw_resource_build!$K:$K,raw_resource_build!$B:$B,$C456,raw_resource_build!$A:$A,AB$396)+SUMIFS(raw_resource_build!$L:$L,raw_resource_build!$B:$B,$C456,raw_resource_build!$A:$A,AB$396)","v":0},{"$f":"SUMIFS(raw_resource_build!$K:$K,raw_resource_build!$B:$B,$C456,raw_resource_build!$A:$A,AC$396)+SUMIFS(raw_resource_build!$L:$L,raw_resource_build!$B:$B,$C456,raw_resource_build!$A:$A,AC$396)","v":0},{"$f":"SUMIFS(raw_resource_build!$K:$K,raw_resource_build!$B:$B,$C456,raw_resource_build!$A:$A,AD$396)+SUMIFS(raw_resource_build!$L:$L,raw_resource_build!$B:$B,$C456,raw_resource_build!$A:$A,AD$396)","v":0},{"$f":"SUMIFS(raw_resource_build!$K:$K,raw_resource_build!$B:$B,$C456,raw_resource_build!$A:$A,AE$396)+SUMIFS(raw_resource_build!$L:$L,raw_resource_build!$B:$B,$C456,raw_resource_build!$A:$A,AE$396)","v":0},{"$f":"SUMIFS(raw_resource_build!$K:$K,raw_resource_build!$B:$B,$C456,raw_resource_build!$A:$A,AF$396)+SUMIFS(raw_resource_build!$L:$L,raw_resource_build!$B:$B,$C456,raw_resource_build!$A:$A,AF$396)","v":0},{"$f":"SUMIFS(raw_resource_build!$K:$K,raw_resource_build!$B:$B,$C456,raw_resource_build!$A:$A,AG$396)+SUMIFS(raw_resource_build!$L:$L,raw_resource_build!$B:$B,$C456,raw_resource_build!$A:$A,AG$396)","v":0},{"$f":"SUMIFS(raw_resource_build!$K:$K,raw_resource_build!$B:$B,$C456,raw_resource_build!$A:$A,AH$396)+SUMIFS(raw_resource_build!$L:$L,raw_resource_build!$B:$B,$C456,raw_resource_build!$A:$A,AH$396)","v":0},{"$f":"SUMIFS(raw_resource_build!$K:$K,raw_resource_build!$B:$B,$C456,raw_resource_build!$A:$A,AI$396)+SUMIFS(raw_resource_build!$L:$L,raw_resource_build!$B:$B,$C456,raw_resource_build!$A:$A,AI$396)","v":0},{"$f":"SUMIFS(raw_resource_build!$K:$K,raw_resource_build!$B:$B,$C456,raw_resource_build!$A:$A,AJ$396)+SUMIFS(raw_resource_build!$L:$L,raw_resource_build!$B:$B,$C456,raw_resource_build!$A:$A,AJ$396)","v":0},{"$f":"SUMIFS(raw_resource_build!$K:$K,raw_resource_build!$B:$B,$C456,raw_resource_build!$A:$A,AK$396)+SUMIFS(raw_resource_build!$L:$L,raw_resource_build!$B:$B,$C456,raw_resource_build!$A:$A,AK$396)","v":0},{"$f":"SUMIFS(raw_resource_build!$K:$K,raw_resource_build!$B:$B,$C456,raw_resource_build!$A:$A,AL$396)+SUMIFS(raw_resource_build!$L:$L,raw_resource_build!$B:$B,$C456,raw_resource_build!$A:$A,AL$396)","v":0},{"$f":"SUMIFS(raw_resource_build!$K:$K,raw_resource_build!$B:$B,$C456,raw_resource_build!$A:$A,AM$396)+SUMIFS(raw_resource_build!$L:$L,raw_resource_build!$B:$B,$C456,raw_resource_build!$A:$A,AM$396)","v":0},{"$f":"SUMIFS(raw_resource_build!$K:$K,raw_resource_build!$B:$B,$C456,raw_resource_build!$A:$A,AN$396)+SUMIFS(raw_resource_build!$L:$L,raw_resource_build!$B:$B,$C456,raw_resource_build!$A:$A,AN$396)","v":0}]
[null,null,{"$f":"Lists!B95","v":"Idaho_Wind"},{"$f":"IF(INDEX(raw_resource_build!J:J,MATCH(C457,raw_resource_build!$B:$B,0))=0,\"N/A\",INDEX(raw_resource_build!J:J,MATCH(C457,raw_resource_build!$B:$B,0)))","v":"N/A"},{"$f":"SUMIFS(raw_resource_build!$K:$K,raw_resource_build!$B:$B,$C457,raw_resource_build!$A:$A,E$396)+SUMIFS(raw_resource_build!$L:$L,raw_resource_build!$B:$B,$C457,raw_resource_build!$A:$A,E$396)","v":0},{"$f":"SUMIFS(raw_resource_build!$K:$K,raw_resource_build!$B:$B,$C457,raw_resource_build!$A:$A,F$396)+SUMIFS(raw_resource_build!$L:$L,raw_resource_build!$B:$B,$C457,raw_resource_build!$A:$A,F$396)","v":0},{"$f":"SUMIFS(raw_resource_build!$K:$K,raw_resource_build!$B:$B,$C457,raw_resource_build!$A:$A,G$396)+SUMIFS(raw_resource_build!$L:$L,raw_resource_build!$B:$B,$C457,raw_resource_build!$A:$A,G$396)","v":0},{"$f":"SUMIFS(raw_resource_build!$K:$K,raw_resource_build!$B:$B,$C457,raw_resource_build!$A:$A,H$396)+SUMIFS(raw_resource_build!$L:$L,raw_resource_build!$B:$B,$C457,raw_resource_build!$A:$A,H$396)","v":0},{"$f":"SUMIFS(raw_resource_build!$K:$K,raw_resource_build!$B:$B,$C457,raw_resource_build!$A:$A,I$396)+SUMIFS(raw_resource_build!$L:$L,raw_resource_build!$B:$B,$C457,raw_resource_build!$A:$A,I$396)","v":0},{"$f":"SUMIFS(raw_resource_build!$K:$K,raw_resource_build!$B:$B,$C457,raw_resource_build!$A:$A,J$396)+SUMIFS(raw_resource_build!$L:$L,raw_resource_build!$B:$B,$C457,raw_resource_build!$A:$A,J$396)","v":0},{"$f":"SUMIFS(raw_resource_build!$K:$K,raw_resource_build!$B:$B,$C457,raw_resource_build!$A:$A,K$396)+SUMIFS(raw_resource_build!$L:$L,raw_resource_build!$B:$B,$C457,raw_resource_build!$A:$A,K$396)","v":0},{"$f":"SUMIFS(raw_resource_build!$K:$K,raw_resource_build!$B:$B,$C457,raw_resource_build!$A:$A,L$396)+SUMIFS(raw_resource_build!$L:$L,raw_resource_build!$B:$B,$C457,raw_resource_build!$A:$A,L$396)","v":0},{"$f":"SUMIFS(raw_resource_build!$K:$K,raw_resource_build!$B:$B,$C457,raw_resource_build!$A:$A,M$396)+SUMIFS(raw_resource_build!$L:$L,raw_resource_build!$B:$B,$C457,raw_resource_build!$A:$A,M$396)","v":0},{"$f":"SUMIFS(raw_resource_build!$K:$K,raw_resource_build!$B:$B,$C457,raw_resource_build!$A:$A,N$396)+SUMIFS(raw_resource_build!$L:$L,raw_resource_build!$B:$B,$C457,raw_resource_build!$A:$A,N$396)","v":0},{"$f":"SUMIFS(raw_resource_build!$K:$K,raw_resource_build!$B:$B,$C457,raw_resource_build!$A:$A,O$396)+SUMIFS(raw_resource_build!$L:$L,raw_resource_build!$B:$B,$C457,raw_resource_build!$A:$A,O$396)","v":0},{"$f":"SUMIFS(raw_resource_build!$K:$K,raw_resource_build!$B:$B,$C457,raw_resource_build!$A:$A,P$396)+SUMIFS(raw_resource_build!$L:$L,raw_resource_build!$B:$B,$C457,raw_resource_build!$A:$A,P$396)","v":0},{"$f":"SUMIFS(raw_resource_build!$K:$K,raw_resource_build!$B:$B,$C457,raw_resource_build!$A:$A,Q$396)+SUMIFS(raw_resource_build!$L:$L,raw_resource_build!$B:$B,$C457,raw_resource_build!$A:$A,Q$396)","v":0},{"$f":"SUMIFS(raw_resource_build!$K:$K,raw_resource_build!$B:$B,$C457,raw_resource_build!$A:$A,R$396)+SUMIFS(raw_resource_build!$L:$L,raw_resource_build!$B:$B,$C457,raw_resource_build!$A:$A,R$396)","v":0},{"$f":"SUMIFS(raw_resource_build!$K:$K,raw_resource_build!$B:$B,$C457,raw_resource_build!$A:$A,S$396)+SUMIFS(raw_resource_build!$L:$L,raw_resource_build!$B:$B,$C457,raw_resource_build!$A:$A,S$396)","v":0},{"$f":"SUMIFS(raw_resource_build!$K:$K,raw_resource_build!$B:$B,$C457,raw_resource_build!$A:$A,T$396)+SUMIFS(raw_resource_build!$L:$L,raw_resource_build!$B:$B,$C457,raw_resource_build!$A:$A,T$396)","v":0},{"$f":"SUMIFS(raw_resource_build!$K:$K,raw_resource_build!$B:$B,$C457,raw_resource_build!$A:$A,U$396)+SUMIFS(raw_resource_build!$L:$L,raw_resource_build!$B:$B,$C457,raw_resource_build!$A:$A,U$396)","v":0},{"$f":"SUMIFS(raw_resource_build!$K:$K,raw_resource_build!$B:$B,$C457,raw_resource_build!$A:$A,V$396)+SUMIFS(raw_resource_build!$L:$L,raw_resource_build!$B:$B,$C457,raw_resource_build!$A:$A,V$396)","v":0},{"$f":"SUMIFS(raw_resource_build!$K:$K,raw_resource_build!$B:$B,$C457,raw_resource_build!$A:$A,W$396)+SUMIFS(raw_resource_build!$L:$L,raw_resource_build!$B:$B,$C457,raw_resource_build!$A:$A,W$396)","v":0},{"$f":"SUMIFS(raw_resource_build!$K:$K,raw_resource_build!$B:$B,$C457,raw_resource_build!$A:$A,X$396)+SUMIFS(raw_resource_build!$L:$L,raw_resource_build!$B:$B,$C457,raw_resource_build!$A:$A,X$396)","v":0},{"$f":"SUMIFS(raw_resource_build!$K:$K,raw_resource_build!$B:$B,$C457,raw_resource_build!$A:$A,Y$396)+SUMIFS(raw_resource_build!$L:$L,raw_resource_build!$B:$B,$C457,raw_resource_build!$A:$A,Y$396)","v":0},{"$f":"SUMIFS(raw_resource_build!$K:$K,raw_resource_build!$B:$B,$C457,raw_resource_build!$A:$A,Z$396)+SUMIFS(raw_resource_build!$L:$L,raw_resource_build!$B:$B,$C457,raw_resource_build!$A:$A,Z$396)","v":0},{"$f":"SUMIFS(raw_resource_build!$K:$K,raw_resource_build!$B:$B,$C457,raw_resource_build!$A:$A,AA$396)+SUMIFS(raw_resource_build!$L:$L,raw_resource_build!$B:$B,$C457,raw_resource_build!$A:$A,AA$396)","v":0},{"$f":"SUMIFS(raw_resource_build!$K:$K,raw_resource_build!$B:$B,$C457,raw_resource_build!$A:$A,AB$396)+SUMIFS(raw_resource_build!$L:$L,raw_resource_build!$B:$B,$C457,raw_resource_build!$A:$A,AB$396)","v":0},{"$f":"SUMIFS(raw_resource_build!$K:$K,raw_resource_build!$B:$B,$C457,raw_resource_build!$A:$A,AC$396)+SUMIFS(raw_resource_build!$L:$L,raw_resource_build!$B:$B,$C457,raw_resource_build!$A:$A,AC$396)","v":0},{"$f":"SUMIFS(raw_resource_build!$K:$K,raw_resource_build!$B:$B,$C457,raw_resource_build!$A:$A,AD$396)+SUMIFS(raw_resource_build!$L:$L,raw_resource_build!$B:$B,$C457,raw_resource_build!$A:$A,AD$396)","v":0},{"$f":"SUMIFS(raw_resource_build!$K:$K,raw_resource_build!$B:$B,$C457,raw_resource_build!$A:$A,AE$396)+SUMIFS(raw_resource_build!$L:$L,raw_resource_build!$B:$B,$C457,raw_resource_build!$A:$A,AE$396)","v":0},{"$f":"SUMIFS(raw_resource_build!$K:$K,raw_resource_build!$B:$B,$C457,raw_resource_build!$A:$A,AF$396)+SUMIFS(raw_resource_build!$L:$L,raw_resource_build!$B:$B,$C457,raw_resource_build!$A:$A,AF$396)","v":0},{"$f":"SUMIFS(raw_resource_build!$K:$K,raw_resource_build!$B:$B,$C457,raw_resource_build!$A:$A,AG$396)+SUMIFS(raw_resource_build!$L:$L,raw_resource_build!$B:$B,$C457,raw_resource_build!$A:$A,AG$396)","v":0},{"$f":"SUMIFS(raw_resource_build!$K:$K,raw_resource_build!$B:$B,$C457,raw_resource_build!$A:$A,AH$396)+SUMIFS(raw_resource_build!$L:$L,raw_resource_build!$B:$B,$C457,raw_resource_build!$A:$A,AH$396)","v":0},{"$f":"SUMIFS(raw_resource_build!$K:$K,raw_resource_build!$B:$B,$C457,raw_resource_build!$A:$A,AI$396)+SUMIFS(raw_resource_build!$L:$L,raw_resource_build!$B:$B,$C457,raw_resource_build!$A:$A,AI$396)","v":0},{"$f":"SUMIFS(raw_resource_build!$K:$K,raw_resource_build!$B:$B,$C457,raw_resource_build!$A:$A,AJ$396)+SUMIFS(raw_resource_build!$L:$L,raw_resource_build!$B:$B,$C457,raw_resource_build!$A:$A,AJ$396)","v":0},{"$f":"SUMIFS(raw_resource_build!$K:$K,raw_resource_build!$B:$B,$C457,raw_resource_build!$A:$A,AK$396)+SUMIFS(raw_resource_build!$L:$L,raw_resource_build!$B:$B,$C457,raw_resource_build!$A:$A,AK$396)","v":0},{"$f":"SUMIFS(raw_resource_build!$K:$K,raw_resource_build!$B:$B,$C457,raw_resource_build!$A:$A,AL$396)+SUMIFS(raw_resource_build!$L:$L,raw_resource_build!$B:$B,$C457,raw_resource_build!$A:$A,AL$396)","v":0},{"$f":"SUMIFS(raw_resource_build!$K:$K,raw_resource_build!$B:$B,$C457,raw_resource_build!$A:$A,AM$396)+SUMIFS(raw_resource_build!$L:$L,raw_resource_build!$B:$B,$C457,raw_resource_build!$A:$A,AM$396)","v":0},{"$f":"SUMIFS(raw_resource_build!$K:$K,raw_resource_build!$B:$B,$C457,raw_resource_build!$A:$A,AN$396)+SUMIFS(raw_resource_build!$L:$L,raw_resource_build!$B:$B,$C457,raw_resource_build!$A:$A,AN$396)","v":0}]
[null,null,{"$f":"Lists!B96","v":"Utah_Wind"},{"$f":"IF(INDEX(raw_resource_build!J:J,MATCH(C458,raw_resource_build!$B:$B,0))=0,\"N/A\",INDEX(raw_resource_build!J:J,MATCH(C458,raw_resource_build!$B:$B,0)))","v":"N/A"},{"$f":"SUMIFS(raw_resource_build!$K:$K,raw_resource_build!$B:$B,$C458,raw_resource_build!$A:$A,E$396)+SUMIFS(raw_resource_build!$L:$L,raw_resource_build!$B:$B,$C458,raw_resource_build!$A:$A,E$396)","v":0},{"$f":"SUMIFS(raw_resource_build!$K:$K,raw_resource_build!$B:$B,$C458,raw_resource_build!$A:$A,F$396)+SUMIFS(raw_resource_build!$L:$L,raw_resource_build!$B:$B,$C458,raw_resource_build!$A:$A,F$396)","v":0},{"$f":"SUMIFS(raw_resource_build!$K:$K,raw_resource_build!$B:$B,$C458,raw_resource_build!$A:$A,G$396)+SUMIFS(raw_resource_build!$L:$L,raw_resource_build!$B:$B,$C458,raw_resource_build!$A:$A,G$396)","v":0},{"$f":"SUMIFS(raw_resource_build!$K:$K,raw_resource_build!$B:$B,$C458,raw_resource_build!$A:$A,H$396)+SUMIFS(raw_resource_build!$L:$L,raw_resource_build!$B:$B,$C458,raw_resource_build!$A:$A,H$396)","v":0},{"$f":"SUMIFS(raw_resource_build!$K:$K,raw_resource_build!$B:$B,$C458,raw_resource_build!$A:$A,I$396)+SUMIFS(raw_resource_build!$L:$L,raw_resource_build!$B:$B,$C458,raw_resource_build!$A:$A,I$396)","v":0},{"$f":"SUMIFS(raw_resource_build!$K:$K,raw_resource_build!$B:$B,$C458,raw_resource_build!$A:$A,J$396)+SUMIFS(raw_resource_build!$L:$L,raw_resource_build!$B:$B,$C458,raw_resource_build!$A:$A,J$396)","v":0},{"$f":"SUMIFS(raw_resource_build!$K:$K,raw_resource_build!$B:$B,$C458,raw_resource_build!$A:$A,K$396)+SUMIFS(raw_resource_build!$L:$L,raw_resource_build!$B:$B,$C458,raw_resource_build!$A:$A,K$396)","v":0},{"$f":"SUMIFS(raw_resource_build!$K:$K,raw_resource_build!$B:$B,$C458,raw_resource_build!$A:$A,L$396)+SUMIFS(raw_resource_build!$L:$L,raw_resource_build!$B:$B,$C458,raw_resource_build!$A:$A,L$396)","v":0},{"$f":"SUMIFS(raw_resource_build!$K:$K,raw_resource_build!$B:$B,$C458,raw_resource_build!$A:$A,M$396)+SUMIFS(raw_resource_build!$L:$L,raw_resource_build!$B:$B,$C458,raw_resource_build!$A:$A,M$396)","v":0},{"$f":"SUMIFS(raw_resource_build!$K:$K,raw_resource_build!$B:$B,$C458,raw_resource_build!$A:$A,N$396)+SUMIFS(raw_resource_build!$L:$L,raw_resource_build!$B:$B,$C458,raw_resource_build!$A:$A,N$396)","v":0},{"$f":"SUMIFS(raw_resource_build!$K:$K,raw_resource_build!$B:$B,$C458,raw_resource_build!$A:$A,O$396)+SUMIFS(raw_resource_build!$L:$L,raw_resource_build!$B:$B,$C458,raw_resource_build!$A:$A,O$396)","v":0},{"$f":"SUMIFS(raw_resource_build!$K:$K,raw_resource_build!$B:$B,$C458,raw_resource_build!$A:$A,P$396)+SUMIFS(raw_resource_build!$L:$L,raw_resource_build!$B:$B,$C458,raw_resource_build!$A:$A,P$396)","v":0},{"$f":"SUMIFS(raw_resource_build!$K:$K,raw_resource_build!$B:$B,$C458,raw_resource_build!$A:$A,Q$396)+SUMIFS(raw_resource_build!$L:$L,raw_resource_build!$B:$B,$C458,raw_resource_build!$A:$A,Q$396)","v":0},{"$f":"SUMIFS(raw_resource_build!$K:$K,raw_resource_build!$B:$B,$C458,raw_resource_build!$A:$A,R$396)+SUMIFS(raw_resource_build!$L:$L,raw_resource_build!$B:$B,$C458,raw_resource_build!$A:$A,R$396)","v":0},{"$f":"SUMIFS(raw_resource_build!$K:$K,raw_resource_build!$B:$B,$C458,raw_resource_build!$A:$A,S$396)+SUMIFS(raw_resource_build!$L:$L,raw_resource_build!$B:$B,$C458,raw_resource_build!$A:$A,S$396)","v":0},{"$f":"SUMIFS(raw_resource_build!$K:$K,raw_resource_build!$B:$B,$C458,raw_resource_build!$A:$A,T$396)+SUMIFS(raw_resource_build!$L:$L,raw_resource_build!$B:$B,$C458,raw_resource_build!$A:$A,T$396)","v":0},{"$f":"SUMIFS(raw_resource_build!$K:$K,raw_resource_build!$B:$B,$C458,raw_resource_build!$A:$A,U$396)+SUMIFS(raw_resource_build!$L:$L,raw_resource_build!$B:$B,$C458,raw_resource_build!$A:$A,U$396)","v":0},{"$f":"SUMIFS(raw_resource_build!$K:$K,raw_resource_build!$B:$B,$C458,raw_resource_build!$A:$A,V$396)+SUMIFS(raw_resource_build!$L:$L,raw_resource_build!$B:$B,$C458,raw_resource_build!$A:$A,V$396)","v":0},{"$f":"SUMIFS(raw_resource_build!$K:$K,raw_resource_build!$B:$B,$C458,raw_resource_build!$A:$A,W$396)+SUMIFS(raw_resource_build!$L:$L,raw_resource_build!$B:$B,$C458,raw_resource_build!$A:$A,W$396)","v":0},{"$f":"SUMIFS(raw_resource_build!$K:$K,raw_resource_build!$B:$B,$C458,raw_resource_build!$A:$A,X$396)+SUMIFS(raw_resource_build!$L:$L,raw_resource_build!$B:$B,$C458,raw_resource_build!$A:$A,X$396)","v":0},{"$f":"SUMIFS(raw_resource_build!$K:$K,raw_resource_build!$B:$B,$C458,raw_resource_build!$A:$A,Y$396)+SUMIFS(raw_resource_build!$L:$L,raw_resource_build!$B:$B,$C458,raw_resource_build!$A:$A,Y$396)","v":0},{"$f":"SUMIFS(raw_resource_build!$K:$K,raw_resource_build!$B:$B,$C458,raw_resource_build!$A:$A,Z$396)+SUMIFS(raw_resource_build!$L:$L,raw_resource_build!$B:$B,$C458,raw_resource_build!$A:$A,Z$396)","v":0},{"$f":"SUMIFS(raw_resource_build!$K:$K,raw_resource_build!$B:$B,$C458,raw_resource_build!$A:$A,AA$396)+SUMIFS(raw_resource_build!$L:$L,raw_resource_build!$B:$B,$C458,raw_resource_build!$A:$A,AA$396)","v":0},{"$f":"SUMIFS(raw_resource_build!$K:$K,raw_resource_build!$B:$B,$C458,raw_resource_build!$A:$A,AB$396)+SUMIFS(raw_resource_build!$L:$L,raw_resource_build!$B:$B,$C458,raw_resource_build!$A:$A,AB$396)","v":0},{"$f":"SUMIFS(raw_resource_build!$K:$K,raw_resource_build!$B:$B,$C458,raw_resource_build!$A:$A,AC$396)+SUMIFS(raw_resource_build!$L:$L,raw_resource_build!$B:$B,$C458,raw_resource_build!$A:$A,AC$396)","v":0},{"$f":"SUMIFS(raw_resource_build!$K:$K,raw_resource_build!$B:$B,$C458,raw_resource_build!$A:$A,AD$396)+SUMIFS(raw_resource_build!$L:$L,raw_resource_build!$B:$B,$C458,raw_resource_build!$A:$A,AD$396)","v":0},{"$f":"SUMIFS(raw_resource_build!$K:$K,raw_resource_build!$B:$B,$C458,raw_resource_build!$A:$A,AE$396)+SUMIFS(raw_resource_build!$L:$L,raw_resource_build!$B:$B,$C458,raw_resource_build!$A:$A,AE$396)","v":0},{"$f":"SUMIFS(raw_resource_build!$K:$K,raw_resource_build!$B:$B,$C458,raw_resource_build!$A:$A,AF$396)+SUMIFS(raw_resource_build!$L:$L,raw_resource_build!$B:$B,$C458,raw_resource_build!$A:$A,AF$396)","v":0},{"$f":"SUMIFS(raw_resource_build!$K:$K,raw_resource_build!$B:$B,$C458,raw_resource_build!$A:$A,AG$396)+SUMIFS(raw_resource_build!$L:$L,raw_resource_build!$B:$B,$C458,raw_resource_build!$A:$A,AG$396)","v":0},{"$f":"SUMIFS(raw_resource_build!$K:$K,raw_resource_build!$B:$B,$C458,raw_resource_build!$A:$A,AH$396)+SUMIFS(raw_resource_build!$L:$L,raw_resource_build!$B:$B,$C458,raw_resource_build!$A:$A,AH$396)","v":0},{"$f":"SUMIFS(raw_resource_build!$K:$K,raw_resource_build!$B:$B,$C458,raw_resource_build!$A:$A,AI$396)+SUMIFS(raw_resource_build!$L:$L,raw_resource_build!$B:$B,$C458,raw_resource_build!$A:$A,AI$396)","v":0},{"$f":"SUMIFS(raw_resource_build!$K:$K,raw_resource_build!$B:$B,$C458,raw_resource_build!$A:$A,AJ$396)+SUMIFS(raw_resource_build!$L:$L,raw_resource_build!$B:$B,$C458,raw_resource_build!$A:$A,AJ$396)","v":0},{"$f":"SUMIFS(raw_resource_build!$K:$K,raw_resource_build!$B:$B,$C458,raw_resource_build!$A:$A,AK$396)+SUMIFS(raw_resource_build!$L:$L,raw_resource_build!$B:$B,$C458,raw_resource_build!$A:$A,AK$396)","v":0},{"$f":"SUMIFS(raw_resource_build!$K:$K,raw_resource_build!$B:$B,$C458,raw_resource_build!$A:$A,AL$396)+SUMIFS(raw_resource_build!$L:$L,raw_resource_build!$B:$B,$C458,raw_resource_build!$A:$A,AL$396)","v":0},{"$f":"SUMIFS(raw_resource_build!$K:$K,raw_resource_build!$B:$B,$C458,raw_resource_build!$A:$A,AM$396)+SUMIFS(raw_resource_build!$L:$L,raw_resource_build!$B:$B,$C458,raw_resource_build!$A:$A,AM$396)","v":0},{"$f":"SUMIFS(raw_resource_build!$K:$K,raw_resource_build!$B:$B,$C458,raw_resource_build!$A:$A,AN$396)+SUMIFS(raw_resource_build!$L:$L,raw_resource_build!$B:$B,$C458,raw_resource_build!$A:$A,AN$396)","v":0}]
[null,null,{"$f":"Lists!B97","v":"Wyoming_Wind"},{"$f":"IF(INDEX(raw_resource_build!J:J,MATCH(C459,raw_resource_build!$B:$B,0))=0,\"N/A\",INDEX(raw_resource_build!J:J,MATCH(C459,raw_resource_build!$B:$B,0)))","v":"SCADSNV-Mountain_Pass_El_Dorado"},{"$f":"SUMIFS(raw_resource_build!$K:$K,raw_resource_build!$B:$B,$C459,raw_resource_build!$A:$A,E$396)+SUMIFS(raw_resource_build!$L:$L,raw_resource_build!$B:$B,$C459,raw_resource_build!$A:$A,E$396)","v":0},{"$f":"SUMIFS(raw_resource_build!$K:$K,raw_resource_build!$B:$B,$C459,raw_resource_build!$A:$A,F$396)+SUMIFS(raw_resource_build!$L:$L,raw_resource_build!$B:$B,$C459,raw_resource_build!$A:$A,F$396)","v":0},{"$f":"SUMIFS(raw_resource_build!$K:$K,raw_resource_build!$B:$B,$C459,raw_resource_build!$A:$A,G$396)+SUMIFS(raw_resource_build!$L:$L,raw_resource_build!$B:$B,$C459,raw_resource_build!$A:$A,G$396)","v":0},{"$f":"SUMIFS(raw_resource_build!$K:$K,raw_resource_build!$B:$B,$C459,raw_resource_build!$A:$A,H$396)+SUMIFS(raw_resource_build!$L:$L,raw_resource_build!$B:$B,$C459,raw_resource_build!$A:$A,H$396)","v":0},{"$f":"SUMIFS(raw_resource_build!$K:$K,raw_resource_build!$B:$B,$C459,raw_resource_build!$A:$A,I$396)+SUMIFS(raw_resource_build!$L:$L,raw_resource_build!$B:$B,$C459,raw_resource_build!$A:$A,I$396)","v":0},{"$f":"SUMIFS(raw_resource_build!$K:$K,raw_resource_build!$B:$B,$C459,raw_resource_build!$A:$A,J$396)+SUMIFS(raw_resource_build!$L:$L,raw_resource_build!$B:$B,$C459,raw_resource_build!$A:$A,J$396)","v":0},{"$f":"SUMIFS(raw_resource_build!$K:$K,raw_resource_build!$B:$B,$C459,raw_resource_build!$A:$A,K$396)+SUMIFS(raw_resource_build!$L:$L,raw_resource_build!$B:$B,$C459,raw_resource_build!$A:$A,K$396)","v":0},{"$f":"SUMIFS(raw_resource_build!$K:$K,raw_resource_build!$B:$B,$C459,raw_resource_build!$A:$A,L$396)+SUMIFS(raw_resource_build!$L:$L,raw_resource_build!$B:$B,$C459,raw_resource_build!$A:$A,L$396)","v":0},{"$f":"SUMIFS(raw_resource_build!$K:$K,raw_resource_build!$B:$B,$C459,raw_resource_build!$A:$A,M$396)+SUMIFS(raw_resource_build!$L:$L,raw_resource_build!$B:$B,$C459,raw_resource_build!$A:$A,M$396)","v":0},{"$f":"SUMIFS(raw_resource_build!$K:$K,raw_resource_build!$B:$B,$C459,raw_resource_build!$A:$A,N$396)+SUMIFS(raw_resource_build!$L:$L,raw_resource_build!$B:$B,$C459,raw_resource_build!$A:$A,N$396)","v":0},{"$f":"SUMIFS(raw_resource_build!$K:$K,raw_resource_build!$B:$B,$C459,raw_resource_build!$A:$A,O$396)+SUMIFS(raw_resource_build!$L:$L,raw_resource_build!$B:$B,$C459,raw_resource_build!$A:$A,O$396)","v":0},{"$f":"SUMIFS(raw_resource_build!$K:$K,raw_resource_build!$B:$B,$C459,raw_resource_build!$A:$A,P$396)+SUMIFS(raw_resource_build!$L:$L,raw_resource_build!$B:$B,$C459,raw_resource_build!$A:$A,P$396)","v":0},{"$f":"SUMIFS(raw_resource_build!$K:$K,raw_resource_build!$B:$B,$C459,raw_resource_build!$A:$A,Q$396)+SUMIFS(raw_resource_build!$L:$L,raw_resource_build!$B:$B,$C459,raw_resource_build!$A:$A,Q$396)","v":0},{"$f":"SUMIFS(raw_resource_build!$K:$K,raw_resource_build!$B:$B,$C459,raw_resource_build!$A:$A,R$396)+SUMIFS(raw_resource_build!$L:$L,raw_resource_build!$B:$B,$C459,raw_resource_build!$A:$A,R$396)","v":0},{"$f":"SUMIFS(raw_resource_build!$K:$K,raw_resource_build!$B:$B,$C459,raw_resource_build!$A:$A,S$396)+SUMIFS(raw_resource_build!$L:$L,raw_resource_build!$B:$B,$C459,raw_resource_build!$A:$A,S$396)","v":0},{"$f":"SUMIFS(raw_resource_build!$K:$K,raw_resource_build!$B:$B,$C459,raw_resource_build!$A:$A,T$396)+SUMIFS(raw_resource_build!$L:$L,raw_resource_build!$B:$B,$C459,raw_resource_build!$A:$A,T$396)","v":0},{"$f":"SUMIFS(raw_resource_build!$K:$K,raw_resource_build!$B:$B,$C459,raw_resource_build!$A:$A,U$396)+SUMIFS(raw_resource_build!$L:$L,raw_resource_build!$B:$B,$C459,raw_resource_build!$A:$A,U$396)","v":0},{"$f":"SUMIFS(raw_resource_build!$K:$K,raw_resource_build!$B:$B,$C459,raw_resource_build!$A:$A,V$396)+SUMIFS(raw_resource_build!$L:$L,raw_resource_build!$B:$B,$C459,raw_resource_build!$A:$A,V$396)","v":0},{"$f":"SUMIFS(raw_resource_build!$K:$K,raw_resource_build!$B:$B,$C459,raw_resource_build!$A:$A,W$396)+SUMIFS(raw_resource_build!$L:$L,raw_resource_build!$B:$B,$C459,raw_resource_build!$A:$A,W$396)","v":0},{"$f":"SUMIFS(raw_resource_build!$K:$K,raw_resource_build!$B:$B,$C459,raw_resource_build!$A:$A,X$396)+SUMIFS(raw_resource_build!$L:$L,raw_resource_build!$B:$B,$C459,raw_resource_build!$A:$A,X$396)","v":0},{"$f":"SUMIFS(raw_resource_build!$K:$K,raw_resource_build!$B:$B,$C459,raw_resource_build!$A:$A,Y$396)+SUMIFS(raw_resource_build!$L:$L,raw_resource_build!$B:$B,$C459,raw_resource_build!$A:$A,Y$396)","v":0},{"$f":"SUMIFS(raw_resource_build!$K:$K,raw_resource_build!$B:$B,$C459,raw_resource_build!$A:$A,Z$396)+SUMIFS(raw_resource_build!$L:$L,raw_resource_build!$B:$B,$C459,raw_resource_build!$A:$A,Z$396)","v":0},{"$f":"SUMIFS(raw_resource_build!$K:$K,raw_resource_build!$B:$B,$C459,raw_resource_build!$A:$A,AA$396)+SUMIFS(raw_resource_build!$L:$L,raw_resource_build!$B:$B,$C459,raw_resource_build!$A:$A,AA$396)","v":0},{"$f":"SUMIFS(raw_resource_build!$K:$K,raw_resource_build!$B:$B,$C459,raw_resource_build!$A:$A,AB$396)+SUMIFS(raw_resource_build!$L:$L,raw_resource_build!$B:$B,$C459,raw_resource_build!$A:$A,AB$396)","v":0},{"$f":"SUMIFS(raw_resource_build!$K:$K,raw_resource_build!$B:$B,$C459,raw_resource_build!$A:$A,AC$396)+SUMIFS(raw_resource_build!$L:$L,raw_resource_build!$B:$B,$C459,raw_resource_build!$A:$A,AC$396)","v":0},{"$f":"SUMIFS(raw_resource_build!$K:$K,raw_resource_build!$B:$B,$C459,raw_resource_build!$A:$A,AD$396)+SUMIFS(raw_resource_build!$L:$L,raw_resource_build!$B:$B,$C459,raw_resource_build!$A:$A,AD$396)","v":0},{"$f":"SUMIFS(raw_resource_build!$K:$K,raw_resource_build!$B:$B,$C459,raw_resource_build!$A:$A,AE$396)+SUMIFS(raw_resource_build!$L:$L,raw_resource_build!$B:$B,$C459,raw_resource_build!$A:$A,AE$396)","v":0},{"$f":"SUMIFS(raw_resource_build!$K:$K,raw_resource_build!$B:$B,$C459,raw_resource_build!$A:$A,AF$396)+SUMIFS(raw_resource_build!$L:$L,raw_resource_build!$B:$B,$C459,raw_resource_build!$A:$A,AF$396)","v":0},{"$f":"SUMIFS(raw_resource_build!$K:$K,raw_resource_build!$B:$B,$C459,raw_resource_build!$A:$A,AG$396)+SUMIFS(raw_resource_build!$L:$L,raw_resource_build!$B:$B,$C459,raw_resource_build!$A:$A,AG$396)","v":0},{"$f":"SUMIFS(raw_resource_build!$K:$K,raw_resource_build!$B:$B,$C459,raw_resource_build!$A:$A,AH$396)+SUMIFS(raw_resource_build!$L:$L,raw_resource_build!$B:$B,$C459,raw_resource_build!$A:$A,AH$396)","v":0},{"$f":"SUMIFS(raw_resource_build!$K:$K,raw_resource_build!$B:$B,$C459,raw_resource_build!$A:$A,AI$396)+SUMIFS(raw_resource_build!$L:$L,raw_resource_build!$B:$B,$C459,raw_resource_build!$A:$A,AI$396)","v":1500},{"$f":"SUMIFS(raw_resource_build!$K:$K,raw_resource_build!$B:$B,$C459,raw_resource_build!$A:$A,AJ$396)+SUMIFS(raw_resource_build!$L:$L,raw_resource_build!$B:$B,$C459,raw_resource_build!$A:$A,AJ$396)","v":0},{"$f":"SUMIFS(raw_resource_build!$K:$K,raw_resource_build!$B:$B,$C459,raw_resource_build!$A:$A,AK$396)+SUMIFS(raw_resource_build!$L:$L,raw_resource_build!$B:$B,$C459,raw_resource_build!$A:$A,AK$396)","v":0},{"$f":"SUMIFS(raw_resource_build!$K:$K,raw_resource_build!$B:$B,$C459,raw_resource_build!$A:$A,AL$396)+SUMIFS(raw_resource_build!$L:$L,raw_resource_build!$B:$B,$C459,raw_resource_build!$A:$A,AL$396)","v":0},{"$f":"SUMIFS(raw_resource_build!$K:$K,raw_resource_build!$B:$B,$C459,raw_resource_build!$A:$A,AM$396)+SUMIFS(raw_resource_build!$L:$L,raw_resource_build!$B:$B,$C459,raw_resource_build!$A:$A,AM$396)","v":0},{"$f":"SUMIFS(raw_resource_build!$K:$K,raw_resource_build!$B:$B,$C459,raw_resource_build!$A:$A,AN$396)+SUMIFS(raw_resource_build!$L:$L,raw_resource_build!$B:$B,$C459,raw_resource_build!$A:$A,AN$396)","v":0}]
[null,null,{"$f":"Lists!B98","v":"Arizona_Wind"},{"$f":"IF(INDEX(raw_resource_build!J:J,MATCH(C460,raw_resource_build!$B:$B,0))=0,\"N/A\",INDEX(raw_resource_build!J:J,MATCH(C460,raw_resource_build!$B:$B,0)))","v":"N/A"},{"$f":"SUMIFS(raw_resource_build!$K:$K,raw_resource_build!$B:$B,$C460,raw_resource_build!$A:$A,E$396)+SUMIFS(raw_resource_build!$L:$L,raw_resource_build!$B:$B,$C460,raw_resource_build!$A:$A,E$396)","v":0},{"$f":"SUMIFS(raw_resource_build!$K:$K,raw_resource_build!$B:$B,$C460,raw_resource_build!$A:$A,F$396)+SUMIFS(raw_resource_build!$L:$L,raw_resource_build!$B:$B,$C460,raw_resource_build!$A:$A,F$396)","v":0},{"$f":"SUMIFS(raw_resource_build!$K:$K,raw_resource_build!$B:$B,$C460,raw_resource_build!$A:$A,G$396)+SUMIFS(raw_resource_build!$L:$L,raw_resource_build!$B:$B,$C460,raw_resource_build!$A:$A,G$396)","v":0},{"$f":"SUMIFS(raw_resource_build!$K:$K,raw_resource_build!$B:$B,$C460,raw_resource_build!$A:$A,H$396)+SUMIFS(raw_resource_build!$L:$L,raw_resource_build!$B:$B,$C460,raw_resource_build!$A:$A,H$396)","v":0},{"$f":"SUMIFS(raw_resource_build!$K:$K,raw_resource_build!$B:$B,$C460,raw_resource_build!$A:$A,I$396)+SUMIFS(raw_resource_build!$L:$L,raw_resource_build!$B:$B,$C460,raw_resource_build!$A:$A,I$396)","v":0},{"$f":"SUMIFS(raw_resource_build!$K:$K,raw_resource_build!$B:$B,$C460,raw_resource_build!$A:$A,J$396)+SUMIFS(raw_resource_build!$L:$L,raw_resource_build!$B:$B,$C460,raw_resource_build!$A:$A,J$396)","v":0},{"$f":"SUMIFS(raw_resource_build!$K:$K,raw_resource_build!$B:$B,$C460,raw_resource_build!$A:$A,K$396)+SUMIFS(raw_resource_build!$L:$L,raw_resource_build!$B:$B,$C460,raw_resource_build!$A:$A,K$396)","v":0},{"$f":"SUMIFS(raw_resource_build!$K:$K,raw_resource_build!$B:$B,$C460,raw_resource_build!$A:$A,L$396)+SUMIFS(raw_resource_build!$L:$L,raw_resource_build!$B:$B,$C460,raw_resource_build!$A:$A,L$396)","v":0},{"$f":"SUMIFS(raw_resource_build!$K:$K,raw_resource_build!$B:$B,$C460,raw_resource_build!$A:$A,M$396)+SUMIFS(raw_resource_build!$L:$L,raw_resource_build!$B:$B,$C460,raw_resource_build!$A:$A,M$396)","v":0},{"$f":"SUMIFS(raw_resource_build!$K:$K,raw_resource_build!$B:$B,$C460,raw_resource_build!$A:$A,N$396)+SUMIFS(raw_resource_build!$L:$L,raw_resource_build!$B:$B,$C460,raw_resource_build!$A:$A,N$396)","v":0},{"$f":"SUMIFS(raw_resource_build!$K:$K,raw_resource_build!$B:$B,$C460,raw_resource_build!$A:$A,O$396)+SUMIFS(raw_resource_build!$L:$L,raw_resource_build!$B:$B,$C460,raw_resource_build!$A:$A,O$396)","v":0},{"$f":"SUMIFS(raw_resource_build!$K:$K,raw_resource_build!$B:$B,$C460,raw_resource_build!$A:$A,P$396)+SUMIFS(raw_resource_build!$L:$L,raw_resource_build!$B:$B,$C460,raw_resource_build!$A:$A,P$396)","v":0},{"$f":"SUMIFS(raw_resource_build!$K:$K,raw_resource_build!$B:$B,$C460,raw_resource_build!$A:$A,Q$396)+SUMIFS(raw_resource_build!$L:$L,raw_resource_build!$B:$B,$C460,raw_resource_build!$A:$A,Q$396)","v":0},{"$f":"SUMIFS(raw_resource_build!$K:$K,raw_resource_build!$B:$B,$C460,raw_resource_build!$A:$A,R$396)+SUMIFS(raw_resource_build!$L:$L,raw_resource_build!$B:$B,$C460,raw_resource_build!$A:$A,R$396)","v":0},{"$f":"SUMIFS(raw_resource_build!$K:$K,raw_resource_build!$B:$B,$C460,raw_resource_build!$A:$A,S$396)+SUMIFS(raw_resource_build!$L:$L,raw_resource_build!$B:$B,$C460,raw_resource_build!$A:$A,S$396)","v":0},{"$f":"SUMIFS(raw_resource_build!$K:$K,raw_resource_build!$B:$B,$C460,raw_resource_build!$A:$A,T$396)+SUMIFS(raw_resource_build!$L:$L,raw_resource_build!$B:$B,$C460,raw_resource_build!$A:$A,T$396)","v":0},{"$f":"SUMIFS(raw_resource_build!$K:$K,raw_resource_build!$B:$B,$C460,raw_resource_build!$A:$A,U$396)+SUMIFS(raw_resource_build!$L:$L,raw_resource_build!$B:$B,$C460,raw_resource_build!$A:$A,U$396)","v":0},{"$f":"SUMIFS(raw_resource_build!$K:$K,raw_resource_build!$B:$B,$C460,raw_resource_build!$A:$A,V$396)+SUMIFS(raw_resource_build!$L:$L,raw_resource_build!$B:$B,$C460,raw_resource_build!$A:$A,V$396)","v":0},{"$f":"SUMIFS(raw_resource_build!$K:$K,raw_resource_build!$B:$B,$C460,raw_resource_build!$A:$A,W$396)+SUMIFS(raw_resource_build!$L:$L,raw_resource_build!$B:$B,$C460,raw_resource_build!$A:$A,W$396)","v":0},{"$f":"SUMIFS(raw_resource_build!$K:$K,raw_resource_build!$B:$B,$C460,raw_resource_build!$A:$A,X$396)+SUMIFS(raw_resource_build!$L:$L,raw_resource_build!$B:$B,$C460,raw_resource_build!$A:$A,X$396)","v":0},{"$f":"SUMIFS(raw_resource_build!$K:$K,raw_resource_build!$B:$B,$C460,raw_resource_build!$A:$A,Y$396)+SUMIFS(raw_resource_build!$L:$L,raw_resource_build!$B:$B,$C460,raw_resource_build!$A:$A,Y$396)","v":0},{"$f":"SUMIFS(raw_resource_build!$K:$K,raw_resource_build!$B:$B,$C460,raw_resource_build!$A:$A,Z$396)+SUMIFS(raw_resource_build!$L:$L,raw_resource_build!$B:$B,$C460,raw_resource_build!$A:$A,Z$396)","v":0},{"$f":"SUMIFS(raw_resource_build!$K:$K,raw_resource_build!$B:$B,$C460,raw_resource_build!$A:$A,AA$396)+SUMIFS(raw_resource_build!$L:$L,raw_resource_build!$B:$B,$C460,raw_resource_build!$A:$A,AA$396)","v":0},{"$f":"SUMIFS(raw_resource_build!$K:$K,raw_resource_build!$B:$B,$C460,raw_resource_build!$A:$A,AB$396)+SUMIFS(raw_resource_build!$L:$L,raw_resource_build!$B:$B,$C460,raw_resource_build!$A:$A,AB$396)","v":0},{"$f":"SUMIFS(raw_resource_build!$K:$K,raw_resource_build!$B:$B,$C460,raw_resource_build!$A:$A,AC$396)+SUMIFS(raw_resource_build!$L:$L,raw_resource_build!$B:$B,$C460,raw_resource_build!$A:$A,AC$396)","v":0},{"$f":"SUMIFS(raw_resource_build!$K:$K,raw_resource_build!$B:$B,$C460,raw_resource_build!$A:$A,AD$396)+SUMIFS(raw_resource_build!$L:$L,raw_resource_build!$B:$B,$C460,raw_resource_build!$A:$A,AD$396)","v":0},{"$f":"SUMIFS(raw_resource_build!$K:$K,raw_resource_build!$B:$B,$C460,raw_resource_build!$A:$A,AE$396)+SUMIFS(raw_resource_build!$L:$L,raw_resource_build!$B:$B,$C460,raw_resource_build!$A:$A,AE$396)","v":0},{"$f":"SUMIFS(raw_resource_build!$K:$K,raw_resource_build!$B:$B,$C460,raw_resource_build!$A:$A,AF$396)+SUMIFS(raw_resource_build!$L:$L,raw_resource_build!$B:$B,$C460,raw_resource_build!$A:$A,AF$396)","v":0},{"$f":"SUMIFS(raw_resource_build!$K:$K,raw_resource_build!$B:$B,$C460,raw_resource_build!$A:$A,AG$396)+SUMIFS(raw_resource_build!$L:$L,raw_resource_build!$B:$B,$C460,raw_resource_build!$A:$A,AG$396)","v":0},{"$f":"SUMIFS(raw_resource_build!$K:$K,raw_resource_build!$B:$B,$C460,raw_resource_build!$A:$A,AH$396)+SUMIFS(raw_resource_build!$L:$L,raw_resource_build!$B:$B,$C460,raw_resource_build!$A:$A,AH$396)","v":0},{"$f":"SUMIFS(raw_resource_build!$K:$K,raw_resource_build!$B:$B,$C460,raw_resource_build!$A:$A,AI$396)+SUMIFS(raw_resource_build!$L:$L,raw_resource_build!$B:$B,$C460,raw_resource_build!$A:$A,AI$396)","v":0},{"$f":"SUMIFS(raw_resource_build!$K:$K,raw_resource_build!$B:$B,$C460,raw_resource_build!$A:$A,AJ$396)+SUMIFS(raw_resource_build!$L:$L,raw_resource_build!$B:$B,$C460,raw_resource_build!$A:$A,AJ$396)","v":0},{"$f":"SUMIFS(raw_resource_build!$K:$K,raw_resource_build!$B:$B,$C460,raw_resource_build!$A:$A,AK$396)+SUMIFS(raw_resource_build!$L:$L,raw_resource_build!$B:$B,$C460,raw_resource_build!$A:$A,AK$396)","v":0},{"$f":"SUMIFS(raw_resource_build!$K:$K,raw_resource_build!$B:$B,$C460,raw_resource_build!$A:$A,AL$396)+SUMIFS(raw_resource_build!$L:$L,raw_resource_build!$B:$B,$C460,raw_resource_build!$A:$A,AL$396)","v":0},{"$f":"SUMIFS(raw_resource_build!$K:$K,raw_resource_build!$B:$B,$C460,raw_resource_build!$A:$A,AM$396)+SUMIFS(raw_resource_build!$L:$L,raw_resource_build!$B:$B,$C460,raw_resource_build!$A:$A,AM$396)","v":0},{"$f":"SUMIFS(raw_resource_build!$K:$K,raw_resource_build!$B:$B,$C460,raw_resource_build!$A:$A,AN$396)+SUMIFS(raw_resource_build!$L:$L,raw_resource_build!$B:$B,$C460,raw_resource_build!$A:$A,AN$396)","v":0}]
[null,null,{"$f":"Lists!B99","v":"New_Mexico_Wind"},{"$f":"IF(INDEX(raw_resource_build!J:J,MATCH(C461,raw_resource_build!$B:$B,0))=0,\"N/A\",INDEX(raw_resource_build!J:J,MATCH(C461,raw_resource_build!$B:$B,0)))","v":"SCADSNV-Riverside_Palm_Springs"},{"$f":"SUMIFS(raw_resource_build!$K:$K,raw_resource_build!$B:$B,$C461,raw_resource_build!$A:$A,E$396)+SUMIFS(raw_resource_build!$L:$L,raw_resource_build!$B:$B,$C461,raw_resource_build!$A:$A,E$396)","v":0},{"$f":"SUMIFS(raw_resource_build!$K:$K,raw_resource_build!$B:$B,$C461,raw_resource_build!$A:$A,F$396)+SUMIFS(raw_resource_build!$L:$L,raw_resource_build!$B:$B,$C461,raw_resource_build!$A:$A,F$396)","v":0},{"$f":"SUMIFS(raw_resource_build!$K:$K,raw_resource_build!$B:$B,$C461,raw_resource_build!$A:$A,G$396)+SUMIFS(raw_resource_build!$L:$L,raw_resource_build!$B:$B,$C461,raw_resource_build!$A:$A,G$396)","v":0},{"$f":"SUMIFS(raw_resource_build!$K:$K,raw_resource_build!$B:$B,$C461,raw_resource_build!$A:$A,H$396)+SUMIFS(raw_resource_build!$L:$L,raw_resource_build!$B:$B,$C461,raw_resource_build!$A:$A,H$396)","v":0},{"$f":"SUMIFS(raw_resource_build!$K:$K,raw_resource_build!$B:$B,$C461,raw_resource_build!$A:$A,I$396)+SUMIFS(raw_resource_build!$L:$L,raw_resource_build!$B:$B,$C461,raw_resource_build!$A:$A,I$396)","v":0},{"$f":"SUMIFS(raw_resource_build!$K:$K,raw_resource_build!$B:$B,$C461,raw_resource_build!$A:$A,J$396)+SUMIFS(raw_resource_build!$L:$L,raw_resource_build!$B:$B,$C461,raw_resource_build!$A:$A,J$396)","v":0},{"$f":"SUMIFS(raw_resource_build!$K:$K,raw_resource_build!$B:$B,$C461,raw_resource_build!$A:$A,K$396)+SUMIFS(raw_resource_build!$L:$L,raw_resource_build!$B:$B,$C461,raw_resource_build!$A:$A,K$396)","v":0},{"$f":"SUMIFS(raw_resource_build!$K:$K,raw_resource_build!$B:$B,$C461,raw_resource_build!$A:$A,L$396)+SUMIFS(raw_resource_build!$L:$L,raw_resource_build!$B:$B,$C461,raw_resource_build!$A:$A,L$396)","v":0},{"$f":"SUMIFS(raw_resource_build!$K:$K,raw_resource_build!$B:$B,$C461,raw_resource_build!$A:$A,M$396)+SUMIFS(raw_resource_build!$L:$L,raw_resource_build!$B:$B,$C461,raw_resource_build!$A:$A,M$396)","v":0},{"$f":"SUMIFS(raw_resource_build!$K:$K,raw_resource_build!$B:$B,$C461,raw_resource_build!$A:$A,N$396)+SUMIFS(raw_resource_build!$L:$L,raw_resource_build!$B:$B,$C461,raw_resource_build!$A:$A,N$396)","v":0},{"$f":"SUMIFS(raw_resource_build!$K:$K,raw_resource_build!$B:$B,$C461,raw_resource_build!$A:$A,O$396)+SUMIFS(raw_resource_build!$L:$L,raw_resource_build!$B:$B,$C461,raw_resource_build!$A:$A,O$396)","v":0},{"$f":"SUMIFS(raw_resource_build!$K:$K,raw_resource_build!$B:$B,$C461,raw_resource_build!$A:$A,P$396)+SUMIFS(raw_resource_build!$L:$L,raw_resource_build!$B:$B,$C461,raw_resource_build!$A:$A,P$396)","v":0},{"$f":"SUMIFS(raw_resource_build!$K:$K,raw_resource_build!$B:$B,$C461,raw_resource_build!$A:$A,Q$396)+SUMIFS(raw_resource_build!$L:$L,raw_resource_build!$B:$B,$C461,raw_resource_build!$A:$A,Q$396)","v":0},{"$f":"SUMIFS(raw_resource_build!$K:$K,raw_resource_build!$B:$B,$C461,raw_resource_build!$A:$A,R$396)+SUMIFS(raw_resource_build!$L:$L,raw_resource_build!$B:$B,$C461,raw_resource_build!$A:$A,R$396)","v":0},{"$f":"SUMIFS(raw_resource_build!$K:$K,raw_resource_build!$B:$B,$C461,raw_resource_build!$A:$A,S$396)+SUMIFS(raw_resource_build!$L:$L,raw_resource_build!$B:$B,$C461,raw_resource_build!$A:$A,S$396)","v":0},{"$f":"SUMIFS(raw_resource_build!$K:$K,raw_resource_build!$B:$B,$C461,raw_resource_build!$A:$A,T$396)+SUMIFS(raw_resource_build!$L:$L,raw_resource_build!$B:$B,$C461,raw_resource_build!$A:$A,T$396)","v":1336.87},{"$f":"SUMIFS(raw_resource_build!$K:$K,raw_resource_build!$B:$B,$C461,raw_resource_build!$A:$A,U$396)+SUMIFS(raw_resource_build!$L:$L,raw_resource_build!$B:$B,$C461,raw_resource_build!$A:$A,U$396)","v":0},{"$f":"SUMIFS(raw_resource_build!$K:$K,raw_resource_build!$B:$B,$C461,raw_resource_build!$A:$A,V$396)+SUMIFS(raw_resource_build!$L:$L,raw_resource_build!$B:$B,$C461,raw_resource_build!$A:$A,V$396)","v":0},{"$f":"SUMIFS(raw_resource_build!$K:$K,raw_resource_build!$B:$B,$C461,raw_resource_build!$A:$A,W$396)+SUMIFS(raw_resource_build!$L:$L,raw_resource_build!$B:$B,$C461,raw_resource_build!$A:$A,W$396)","v":0},{"$f":"SUMIFS(raw_resource_build!$K:$K,raw_resource_build!$B:$B,$C461,raw_resource_build!$A:$A,X$396)+SUMIFS(raw_resource_build!$L:$L,raw_resource_build!$B:$B,$C461,raw_resource_build!$A:$A,X$396)","v":0},{"$f":"SUMIFS(raw_resource_build!$K:$K,raw_resource_build!$B:$B,$C461,raw_resource_build!$A:$A,Y$396)+SUMIFS(raw_resource_build!$L:$L,raw_resource_build!$B:$B,$C461,raw_resource_build!$A:$A,Y$396)","v":0},{"$f":"SUMIFS(raw_resource_build!$K:$K,raw_resource_build!$B:$B,$C461,raw_resource_build!$A:$A,Z$396)+SUMIFS(raw_resource_build!$L:$L,raw_resource_build!$B:$B,$C461,raw_resource_build!$A:$A,Z$396)","v":0},{"$f":"SUMIFS(raw_resource_build!$K:$K,raw_resource_build!$B:$B,$C461,raw_resource_build!$A:$A,AA$396)+SUMIFS(raw_resource_build!$L:$L,raw_resource_build!$B:$B,$C461,raw_resource_build!$A:$A,AA$396)","v":0},{"$f":"SUMIFS(raw_resource_build!$K:$K,raw_resource_build!$B:$B,$C461,raw_resource_build!$A:$A,AB$396)+SUMIFS(raw_resource_build!$L:$L,raw_resource_build!$B:$B,$C461,raw_resource_build!$A:$A,AB$396)","v":0},{"$f":"SUMIFS(raw_resource_build!$K:$K,raw_resource_build!$B:$B,$C461,raw_resource_build!$A:$A,AC$396)+SUMIFS(raw_resource_build!$L:$L,raw_resource_build!$B:$B,$C461,raw_resource_build!$A:$A,AC$396)","v":0},{"$f":"SUMIFS(raw_resource_build!$K:$K,raw_resource_build!$B:$B,$C461,raw_resource_build!$A:$A,AD$396)+SUMIFS(raw_resource_build!$L:$L,raw_resource_build!$B:$B,$C461,raw_resource_build!$A:$A,AD$396)","v":0},{"$f":"SUMIFS(raw_resource_build!$K:$K,raw_resource_build!$B:$B,$C461,raw_resource_build!$A:$A,AE$396)+SUMIFS(raw_resource_build!$L:$L,raw_resource_build!$B:$B,$C461,raw_resource_build!$A:$A,AE$396)","v":0},{"$f":"SUMIFS(raw_resource_build!$K:$K,raw_resource_build!$B:$B,$C461,raw_resource_build!$A:$A,AF$396)+SUMIFS(raw_resource_build!$L:$L,raw_resource_build!$B:$B,$C461,raw_resource_build!$A:$A,AF$396)","v":0},{"$f":"SUMIFS(raw_resource_build!$K:$K,raw_resource_build!$B:$B,$C461,raw_resource_build!$A:$A,AG$396)+SUMIFS(raw_resource_build!$L:$L,raw_resource_build!$B:$B,$C461,raw_resource_build!$A:$A,AG$396)","v":0},{"$f":"SUMIFS(raw_resource_build!$K:$K,raw_resource_build!$B:$B,$C461,raw_resource_build!$A:$A,AH$396)+SUMIFS(raw_resource_build!$L:$L,raw_resource_build!$B:$B,$C461,raw_resource_build!$A:$A,AH$396)","v":0},{"$f":"SUMIFS(raw_resource_build!$K:$K,raw_resource_build!$B:$B,$C461,raw_resource_build!$A:$A,AI$396)+SUMIFS(raw_resource_build!$L:$L,raw_resource_build!$B:$B,$C461,raw_resource_build!$A:$A,AI$396)","v":1500},{"$f":"SUMIFS(raw_resource_build!$K:$K,raw_resource_build!$B:$B,$C461,raw_resource_build!$A:$A,AJ$396)+SUMIFS(raw_resource_build!$L:$L,raw_resource_build!$B:$B,$C461,raw_resource_build!$A:$A,AJ$396)","v":0},{"$f":"SUMIFS(raw_resource_build!$K:$K,raw_resource_build!$B:$B,$C461,raw_resource_build!$A:$A,AK$396)+SUMIFS(raw_resource_build!$L:$L,raw_resource_build!$B:$B,$C461,raw_resource_build!$A:$A,AK$396)","v":0},{"$f":"SUMIFS(raw_resource_build!$K:$K,raw_resource_build!$B:$B,$C461,raw_resource_build!$A:$A,AL$396)+SUMIFS(raw_resource_build!$L:$L,raw_resource_build!$B:$B,$C461,raw_resource_build!$A:$A,AL$396)","v":0},{"$f":"SUMIFS(raw_resource_build!$K:$K,raw_resource_build!$B:$B,$C461,raw_resource_build!$A:$A,AM$396)+SUMIFS(raw_resource_build!$L:$L,raw_resource_build!$B:$B,$C461,raw_resource_build!$A:$A,AM$396)","v":0},{"$f":"SUMIFS(raw_resource_build!$K:$K,raw_resource_build!$B:$B,$C461,raw_resource_build!$A:$A,AN$396)+SUMIFS(raw_resource_build!$L:$L,raw_resource_build!$B:$B,$C461,raw_resource_build!$A:$A,AN$396)","v":0}]
[null,null,"In-State",null,{"$f":"SUMIFS(E$397:E$461,Lists!$C$35:$C$99,$C462)","v":0},{"$f":"SUMIFS(F$397:F$461,Lists!$C$35:$C$99,$C462)","v":0},{"$f":"SUMIFS(G$397:G$461,Lists!$C$35:$C$99,$C462)","v":0},{"$f":"SUMIFS(H$397:H$461,Lists!$C$35:$C$99,$C462)","v":0},{"$f":"SUMIFS(I$397:I$461,Lists!$C$35:$C$99,$C462)","v":0},{"$f":"SUMIFS(J$397:J$461,Lists!$C$35:$C$99,$C462)","v":2000},{"$f":"SUMIFS(K$397:K$461,Lists!$C$35:$C$99,$C462)","v":4034},{"$f":"SUMIFS(L$397:L$461,Lists!$C$35:$C$99,$C462)","v":8931.83},{"$f":"SUMIFS(M$397:M$461,Lists!$C$35:$C$99,$C462)","v":11218.83},{"$f":"SUMIFS(N$397:N$461,Lists!$C$35:$C$99,$C462)","v":14177.52},{"$f":"SUMIFS(O$397:O$461,Lists!$C$35:$C$99,$C462)","v":0},{"$f":"SUMIFS(P$397:P$461,Lists!$C$35:$C$99,$C462)","v":19393.489999999998},{"$f":"SUMIFS(Q$397:Q$461,Lists!$C$35:$C$99,$C462)","v":0},{"$f":"SUMIFS(R$397:R$461,Lists!$C$35:$C$99,$C462)","v":0},{"$f":"SUMIFS(S$397:S$461,Lists!$C$35:$C$99,$C462)","v":0},{"$f":"SUMIFS(T$397:T$461,Lists!$C$35:$C$99,$C462)","v":31094.999999999996},{"$f":"SUMIFS(U$397:U$461,Lists!$C$35:$C$99,$C462)","v":0},{"$f":"SUMIFS(V$397:V$461,Lists!$C$35:$C$99,$C462)","v":0},{"$f":"SUMIFS(W$397:W$461,Lists!$C$35:$C$99,$C462)","v":0},{"$f":"SUMIFS(X$397:X$461,Lists!$C$35:$C$99,$C462)","v":0},{"$f":"SUMIFS(Y$397:Y$461,Lists!$C$35:$C$99,$C462)","v":0},{"$f":"SUMIFS(Z$397:Z$461,Lists!$C$35:$C$99,$C462)","v":0},{"$f":"SUMIFS(AA$397:AA$461,Lists!$C$35:$C$99,$C462)","v":0},{"$f":"SUMIFS(AB$397:AB$461,Lists!$C$35:$C$99,$C462)","v":0},{"$f":"SUMIFS(AC$397:AC$461,Lists!$C$35:$C$99,$C462)","v":0},{"$f":"SUMIFS(AD$397:AD$461,Lists!$C$35:$C$99,$C462)","v":0},{"$f":"SUMIFS(AE$397:AE$461,Lists!$C$35:$C$99,$C462)","v":0},{"$f":"SUMIFS(AF$397:AF$461,Lists!$C$35:$C$99,$C462)","v":0},{"$f":"SUMIFS(AG$397:AG$461,Lists!$C$35:$C$99,$C462)","v":0},{"$f":"SUMIFS(AH$397:AH$461,Lists!$C$35:$C$99,$C462)","v":0},{"$f":"SUMIFS(AI$397:AI$461,Lists!$C$35:$C$99,$C462)","v":125188.66},{"$f":"SUMIFS(AJ$397:AJ$461,Lists!$C$35:$C$99,$C462)","v":0},{"$f":"SUMIFS(AK$397:AK$461,Lists!$C$35:$C$99,$C462)","v":0},{"$f":"SUMIFS(AL$397:AL$461,Lists!$C$35:$C$99,$C462)","v":0},{"$f":"SUMIFS(AM$397:AM$461,Lists!$C$35:$C$99,$C462)","v":0},{"$f":"SUMIFS(AN$397:AN$461,Lists!$C$35:$C$99,$C462)","v":0}]
[null,null,"Out-Of-State",null,{"$f":"SUMIFS(E$397:E$461,Lists!$C$35:$C$99,$C463)","v":0},{"$f":"SUMIFS(F$397:F$461,Lists!$C$35:$C$99,$C463)","v":0},{"$f":"SUMIFS(G$397:G$461,Lists!$C$35:$C$99,$C463)","v":0},{"$f":"SUMIFS(H$397:H$461,Lists!$C$35:$C$99,$C463)","v":0},{"$f":"SUMIFS(I$397:I$461,Lists!$C$35:$C$99,$C463)","v":0},{"$f":"SUMIFS(J$397:J$461,Lists!$C$35:$C$99,$C463)","v":0},{"$f":"SUMIFS(K$397:K$461,Lists!$C$35:$C$99,$C463)","v":0},{"$f":"SUMIFS(L$397:L$461,Lists!$C$35:$C$99,$C463)","v":0},{"$f":"SUMIFS(M$397:M$461,Lists!$C$35:$C$99,$C463)","v":0},{"$f":"SUMIFS(N$397:N$461,Lists!$C$35:$C$99,$C463)","v":0},{"$f":"SUMIFS(O$397:O$461,Lists!$C$35:$C$99,$C463)","v":0},{"$f":"SUMIFS(P$397:P$461,Lists!$C$35:$C$99,$C463)","v":0},{"$f":"SUMIFS(Q$397:Q$461,Lists!$C$35:$C$99,$C463)","v":0},{"$f":"SUMIFS(R$397:R$461,Lists!$C$35:$C$99,$C463)","v":0},{"$f":"SUMIFS(S$397:S$461,Lists!$C$35:$C$99,$C463)","v":0},{"$f":"SUMIFS(T$397:T$461,Lists!$C$35:$C$99,$C463)","v":1336.87},{"$f":"SUMIFS(U$397:U$461,Lists!$C$35:$C$99,$C463)","v":0},{"$f":"SUMIFS(V$397:V$461,Lists!$C$35:$C$99,$C463)","v":0},{"$f":"SUMIFS(W$397:W$461,Lists!$C$35:$C$99,$C463)","v":0},{"$f":"SUMIFS(X$397:X$461,Lists!$C$35:$C$99,$C463)","v":0},{"$f":"SUMIFS(Y$397:Y$461,Lists!$C$35:$C$99,$C463)","v":0},{"$f":"SUMIFS(Z$397:Z$461,Lists!$C$35:$C$99,$C463)","v":0},{"$f":"SUMIFS(AA$397:AA$461,Lists!$C$35:$C$99,$C463)","v":0},{"$f":"SUMIFS(AB$397:AB$461,Lists!$C$35:$C$99,$C463)","v":0},{"$f":"SUMIFS(AC$397:AC$461,Lists!$C$35:$C$99,$C463)","v":0},{"$f":"SUMIFS(AD$397:AD$461,Lists!$C$35:$C$99,$C463)","v":0},{"$f":"SUMIFS(AE$397:AE$461,Lists!$C$35:$C$99,$C463)","v":0},{"$f":"SUMIFS(AF$397:AF$461,Lists!$C$35:$C$99,$C463)","v":0},{"$f":"SUMIFS(AG$397:AG$461,Lists!$C$35:$C$99,$C463)","v":0},{"$f":"SUMIFS(AH$397:AH$461,Lists!$C$35:$C$99,$C463)","v":0},{"$f":"SUMIFS(AI$397:AI$461,Lists!$C$35:$C$99,$C463)","v":3000},{"$f":"SUMIFS(AJ$397:AJ$461,Lists!$C$35:$C$99,$C463)","v":0},{"$f":"SUMIFS(AK$397:AK$461,Lists!$C$35:$C$99,$C463)","v":0},{"$f":"SUMIFS(AL$397:AL$461,Lists!$C$35:$C$99,$C463)","v":0},{"$f":"SUMIFS(AM$397:AM$461,Lists!$C$35:$C$99,$C463)","v":0},{"$f":"SUMIFS(AN$397:AN$461,Lists!$C$35:$C$99,$C463)","v":0}]
[null,null,"Note: Resources with #N/A as transmission zone were not made available to the model for this scenario"]
[]
[null,"Selected Renewables by Location (Fully Deliverable)"]
[]
[null,null,"FCDS Renewable Resource Summary by Location (MW)"]
[null,null,"RESOLVE Resource","Tx Zone",2015,2016,2017,2018,2019,2020,2021,2022,2023,2024,2025,2026,2027,2028,2029,2030,2031,2032,2033,2034,2035,2036,2037,2038,2039,2040,2041,2042,2043,2044,2045,2046,2047,2048,2049,2050]
[null,null,{"$f":"Lists!B35","v":"InState_Biomass"},{"$f":"D397","v":"None"},{"$f":"SUMIFS(raw_resource_build!$K:$K,raw_resource_build!$B:$B,$C470,raw_resource_build!$A:$A,E$469)","v":0},{"$f":"SUMIFS(raw_resource_build!$K:$K,raw_resource_build!$B:$B,$C470,raw_resource_build!$A:$A,F$469)","v":0},{"$f":"SUMIFS(raw_resource_build!$K:$K,raw_resource_build!$B:$B,$C470,raw_resource_build!$A:$A,G$469)","v":0},{"$f":"SUMIFS(raw_resource_build!$K:$K,raw_resource_build!$B:$B,$C470,raw_resource_build!$A:$A,H$469)","v":0},{"$f":"SUMIFS(raw_resource_build!$K:$K,raw_resource_build!$B:$B,$C470,raw_resource_build!$A:$A,I$469)","v":0},{"$f":"SUMIFS(raw_resource_build!$K:$K,raw_resource_build!$B:$B,$C470,raw_resource_build!$A:$A,J$469)","v":0},{"$f":"SUMIFS(raw_resource_build!$K:$K,raw_resource_build!$B:$B,$C470,raw_resource_build!$A:$A,K$469)","v":0},{"$f":"SUMIFS(raw_resource_build!$K:$K,raw_resource_build!$B:$B,$C470,raw_resource_build!$A:$A,L$469)","v":0},{"$f":"SUMIFS(raw_resource_build!$K:$K,raw_resource_build!$B:$B,$C470,raw_resource_build!$A:$A,M$469)","v":0},{"$f":"SUMIFS(raw_resource_build!$K:$K,raw_resource_build!$B:$B,$C470,raw_resource_build!$A:$A,N$469)","v":0},{"$f":"SUMIFS(raw_resource_build!$K:$K,raw_resource_build!$B:$B,$C470,raw_resource_build!$A:$A,O$469)","v":0},{"$f":"SUMIFS(raw_resource_build!$K:$K,raw_resource_build!$B:$B,$C470,raw_resource_build!$A:$A,P$469)","v":0},{"$f":"SUMIFS(raw_resource_build!$K:$K,raw_resource_build!$B:$B,$C470,raw_resource_build!$A:$A,Q$469)","v":0},{"$f":"SUMIFS(raw_resource_build!$K:$K,raw_resource_build!$B:$B,$C470,raw_resource_build!$A:$A,R$469)","v":0},{"$f":"SUMIFS(raw_resource_build!$K:$K,raw_resource_build!$B:$B,$C470,raw_resource_build!$A:$A,S$469)","v":0},{"$f":"SUMIFS(raw_resource_build!$K:$K,raw_resource_build!$B:$B,$C470,raw_resource_build!$A:$A,T$469)","v":0},{"$f":"SUMIFS(raw_resource_build!$K:$K,raw_resource_build!$B:$B,$C470,raw_resource_build!$A:$A,U$469)","v":0},{"$f":"SUMIFS(raw_resource_build!$K:$K,raw_resource_build!$B:$B,$C470,raw_resource_build!$A:$A,V$469)","v":0},{"$f":"SUMIFS(raw_resource_build!$K:$K,raw_resource_build!$B:$B,$C470,raw_resource_build!$A:$A,W$469)","v":0},{"$f":"SUMIFS(raw_resource_build!$K:$K,raw_resource_build!$B:$B,$C470,raw_resource_build!$A:$A,X$469)","v":0},{"$f":"SUMIFS(raw_resource_build!$K:$K,raw_resource_build!$B:$B,$C470,raw_resource_build!$A:$A,Y$469)","v":0},{"$f":"SUMIFS(raw_resource_build!$K:$K,raw_resource_build!$B:$B,$C470,raw_resource_build!$A:$A,Z$469)","v":0},{"$f":"SUMIFS(raw_resource_build!$K:$K,raw_resource_build!$B:$B,$C470,raw_resource_build!$A:$A,AA$469)","v":0},{"$f":"SUMIFS(raw_resource_build!$K:$K,raw_resource_build!$B:$B,$C470,raw_resource_build!$A:$A,AB$469)","v":0},{"$f":"SUMIFS(raw_resource_build!$K:$K,raw_resource_build!$B:$B,$C470,raw_resource_build!$A:$A,AC$469)","v":0},{"$f":"SUMIFS(raw_resource_build!$K:$K,raw_resource_build!$B:$B,$C470,raw_resource_build!$A:$A,AD$469)","v":0},{"$f":"SUMIFS(raw_resource_build!$K:$K,raw_resource_build!$B:$B,$C470,raw_resource_build!$A:$A,AE$469)","v":0},{"$f":"SUMIFS(raw_resource_build!$K:$K,raw_resource_build!$B:$B,$C470,raw_resource_build!$A:$A,AF$469)","v":0},{"$f":"SUMIFS(raw_resource_build!$K:$K,raw_resource_build!$B:$B,$C470,raw_resource_build!$A:$A,AG$469)","v":0},{"$f":"SUMIFS(raw_resource_build!$K:$K,raw_resource_build!$B:$B,$C470,raw_resource_build!$A:$A,AH$469)","v":0},{"$f":"SUMIFS(raw_resource_build!$K:$K,raw_resource_build!$B:$B,$C470,raw_resource_build!$A:$A,AI$469)","v":1146.8499999999999},{"$f":"SUMIFS(raw_resource_build!$K:$K,raw_resource_build!$B:$B,$C470,raw_resource_build!$A:$A,AJ$469)","v":0},{"$f":"SUMIFS(raw_resource_build!$K:$K,raw_resource_build!$B:$B,$C470,raw_resource_build!$A:$A,AK$469)","v":0},{"$f":"SUMIFS(raw_resource_build!$K:$K,raw_resource_build!$B:$B,$C470,raw_resource_build!$A:$A,AL$469)","v":0},{"$f":"SUMIFS(raw_resource_build!$K:$K,raw_resource_build!$B:$B,$C470,raw_resource_build!$A:$A,AM$469)","v":0},{"$f":"SUMIFS(raw_resource_build!$K:$K,raw_resource_build!$B:$B,$C470,raw_resource_build!$A:$A,AN$469)","v":0}]
[null,null,{"$f":"Lists!B36","v":"Greater_Imperial_Geothermal"},"SCADSNV-Greater_Imperial",{"$f":"SUMIFS(raw_resource_build!$K:$K,raw_resource_build!$B:$B,$C471,raw_resource_build!$A:$A,E$469)","v":0},{"$f":"SUMIFS(raw_resource_build!$K:$K,raw_resource_build!$B:$B,$C471,raw_resource_build!$A:$A,F$469)","v":0},{"$f":"SUMIFS(raw_resource_build!$K:$K,raw_resource_build!$B:$B,$C471,raw_resource_build!$A:$A,G$469)","v":0},{"$f":"SUMIFS(raw_resource_build!$K:$K,raw_resource_build!$B:$B,$C471,raw_resource_build!$A:$A,H$469)","v":0},{"$f":"SUMIFS(raw_resource_build!$K:$K,raw_resource_build!$B:$B,$C471,raw_resource_build!$A:$A,I$469)","v":0},{"$f":"SUMIFS(raw_resource_build!$K:$K,raw_resource_build!$B:$B,$C471,raw_resource_build!$A:$A,J$469)","v":0},{"$f":"SUMIFS(raw_resource_build!$K:$K,raw_resource_build!$B:$B,$C471,raw_resource_build!$A:$A,K$469)","v":0},{"$f":"SUMIFS(raw_resource_build!$K:$K,raw_resource_build!$B:$B,$C471,raw_resource_build!$A:$A,L$469)","v":0},{"$f":"SUMIFS(raw_resource_build!$K:$K,raw_resource_build!$B:$B,$C471,raw_resource_build!$A:$A,M$469)","v":0},{"$f":"SUMIFS(raw_resource_build!$K:$K,raw_resource_build!$B:$B,$C471,raw_resource_build!$A:$A,N$469)","v":0},{"$f":"SUMIFS(raw_resource_build!$K:$K,raw_resource_build!$B:$B,$C471,raw_resource_build!$A:$A,O$469)","v":0},{"$f":"SUMIFS(raw_resource_build!$K:$K,raw_resource_build!$B:$B,$C471,raw_resource_build!$A:$A,P$469)","v":0},{"$f":"SUMIFS(raw_resource_build!$K:$K,raw_resource_build!$B:$B,$C471,raw_resource_build!$A:$A,Q$469)","v":0},{"$f":"SUMIFS(raw_resource_build!$K:$K,raw_resource_build!$B:$B,$C471,raw_resource_build!$A:$A,R$469)","v":0},{"$f":"SUMIFS(raw_resource_build!$K:$K,raw_resource_build!$B:$B,$C471,raw_resource_build!$A:$A,S$469)","v":0},{"$f":"SUMIFS(raw_resource_build!$K:$K,raw_resource_build!$B:$B,$C471,raw_resource_build!$A:$A,T$469)","v":0},{"$f":"SUMIFS(raw_resource_build!$K:$K,raw_resource_build!$B:$B,$C471,raw_resource_build!$A:$A,U$469)","v":0},{"$f":"SUMIFS(raw_resource_build!$K:$K,raw_resource_build!$B:$B,$C471,raw_resource_build!$A:$A,V$469)","v":0},{"$f":"SUMIFS(raw_resource_build!$K:$K,raw_resource_build!$B:$B,$C471,raw_resource_build!$A:$A,W$469)","v":0},{"$f":"SUMIFS(raw_resource_build!$K:$K,raw_resource_build!$B:$B,$C471,raw_resource_build!$A:$A,X$469)","v":0},{"$f":"SUMIFS(raw_resource_build!$K:$K,raw_resource_build!$B:$B,$C471,raw_resource_build!$A:$A,Y$469)","v":0},{"$f":"SUMIFS(raw_resource_build!$K:$K,raw_resource_build!$B:$B,$C471,raw_resource_build!$A:$A,Z$469)","v":0},{"$f":"SUMIFS(raw_resource_build!$K:$K,raw_resource_build!$B:$B,$C471,raw_resource_build!$A:$A,AA$469)","v":0},{"$f":"SUMIFS(raw_resource_build!$K:$K,raw_resource_build!$B:$B,$C471,raw_resource_build!$A:$A,AB$469)","v":0},{"$f":"SUMIFS(raw_resource_build!$K:$K,raw_resource_build!$B:$B,$C471,raw_resource_build!$A:$A,AC$469)","v":0},{"$f":"SUMIFS(raw_resource_build!$K:$K,raw_resource_build!$B:$B,$C471,raw_resource_build!$A:$A,AD$469)","v":0},{"$f":"SUMIFS(raw_resource_build!$K:$K,raw_resource_build!$B:$B,$C471,raw_resource_build!$A:$A,AE$469)","v":0},{"$f":"SUMIFS(raw_resource_build!$K:$K,raw_resource_build!$B:$B,$C471,raw_resource_build!$A:$A,AF$469)","v":0},{"$f":"SUMIFS(raw_resource_build!$K:$K,raw_resource_build!$B:$B,$C471,raw_resource_build!$A:$A,AG$469)","v":0},{"$f":"SUMIFS(raw_resource_build!$K:$K,raw_resource_build!$B:$B,$C471,raw_resource_build!$A:$A,AH$469)","v":0},{"$f":"SUMIFS(raw_resource_build!$K:$K,raw_resource_build!$B:$B,$C471,raw_resource_build!$A:$A,AI$469)","v":826.91},{"$f":"SUMIFS(raw_resource_build!$K:$K,raw_resource_build!$B:$B,$C471,raw_resource_build!$A:$A,AJ$469)","v":0},{"$f":"SUMIFS(raw_resource_build!$K:$K,raw_resource_build!$B:$B,$C471,raw_resource_build!$A:$A,AK$469)","v":0},{"$f":"SUMIFS(raw_resource_build!$K:$K,raw_resource_build!$B:$B,$C471,raw_resource_build!$A:$A,AL$469)","v":0},{"$f":"SUMIFS(raw_resource_build!$K:$K,raw_resource_build!$B:$B,$C471,raw_resource_build!$A:$A,AM$469)","v":0},{"$f":"SUMIFS(raw_resource_build!$K:$K,raw_resource_build!$B:$B,$C471,raw_resource_build!$A:$A,AN$469)","v":0}]
[null,null,{"$f":"Lists!B37","v":"Inyokern_North_Kramer_Geothermal"},"Inyokern_North_Kramer-Greater_Kramer",{"$f":"SUMIFS(raw_resource_build!$K:$K,raw_resource_build!$B:$B,$C472,raw_resource_build!$A:$A,E$469)","v":0},{"$f":"SUMIFS(raw_resource_build!$K:$K,raw_resource_build!$B:$B,$C472,raw_resource_build!$A:$A,F$469)","v":0},{"$f":"SUMIFS(raw_resource_build!$K:$K,raw_resource_build!$B:$B,$C472,raw_resource_build!$A:$A,G$469)","v":0},{"$f":"SUMIFS(raw_resource_build!$K:$K,raw_resource_build!$B:$B,$C472,raw_resource_build!$A:$A,H$469)","v":0},{"$f":"SUMIFS(raw_resource_build!$K:$K,raw_resource_build!$B:$B,$C472,raw_resource_build!$A:$A,I$469)","v":0},{"$f":"SUMIFS(raw_resource_build!$K:$K,raw_resource_build!$B:$B,$C472,raw_resource_build!$A:$A,J$469)","v":0},{"$f":"SUMIFS(raw_resource_build!$K:$K,raw_resource_build!$B:$B,$C472,raw_resource_build!$A:$A,K$469)","v":0},{"$f":"SUMIFS(raw_resource_build!$K:$K,raw_resource_build!$B:$B,$C472,raw_resource_build!$A:$A,L$469)","v":0},{"$f":"SUMIFS(raw_resource_build!$K:$K,raw_resource_build!$B:$B,$C472,raw_resource_build!$A:$A,M$469)","v":0},{"$f":"SUMIFS(raw_resource_build!$K:$K,raw_resource_build!$B:$B,$C472,raw_resource_build!$A:$A,N$469)","v":0},{"$f":"SUMIFS(raw_resource_build!$K:$K,raw_resource_build!$B:$B,$C472,raw_resource_build!$A:$A,O$469)","v":0},{"$f":"SUMIFS(raw_resource_build!$K:$K,raw_resource_build!$B:$B,$C472,raw_resource_build!$A:$A,P$469)","v":0},{"$f":"SUMIFS(raw_resource_build!$K:$K,raw_resource_build!$B:$B,$C472,raw_resource_build!$A:$A,Q$469)","v":0},{"$f":"SUMIFS(raw_resource_build!$K:$K,raw_resource_build!$B:$B,$C472,raw_resource_build!$A:$A,R$469)","v":0},{"$f":"SUMIFS(raw_resource_build!$K:$K,raw_resource_build!$B:$B,$C472,raw_resource_build!$A:$A,S$469)","v":0},{"$f":"SUMIFS(raw_resource_build!$K:$K,raw_resource_build!$B:$B,$C472,raw_resource_build!$A:$A,T$469)","v":0},{"$f":"SUMIFS(raw_resource_build!$K:$K,raw_resource_build!$B:$B,$C472,raw_resource_build!$A:$A,U$469)","v":0},{"$f":"SUMIFS(raw_resource_build!$K:$K,raw_resource_build!$B:$B,$C472,raw_resource_build!$A:$A,V$469)","v":0},{"$f":"SUMIFS(raw_resource_build!$K:$K,raw_resource_build!$B:$B,$C472,raw_resource_build!$A:$A,W$469)","v":0},{"$f":"SUMIFS(raw_resource_build!$K:$K,raw_resource_build!$B:$B,$C472,raw_resource_build!$A:$A,X$469)","v":0},{"$f":"SUMIFS(raw_resource_build!$K:$K,raw_resource_build!$B:$B,$C472,raw_resource_build!$A:$A,Y$469)","v":0},{"$f":"SUMIFS(raw_resource_build!$K:$K,raw_resource_build!$B:$B,$C472,raw_resource_build!$A:$A,Z$469)","v":0},{"$f":"SUMIFS(raw_resource_build!$K:$K,raw_resource_build!$B:$B,$C472,raw_resource_build!$A:$A,AA$469)","v":0},{"$f":"SUMIFS(raw_resource_build!$K:$K,raw_resource_build!$B:$B,$C472,raw_resource_build!$A:$A,AB$469)","v":0},{"$f":"SUMIFS(raw_resource_build!$K:$K,raw_resource_build!$B:$B,$C472,raw_resource_build!$A:$A,AC$469)","v":0},{"$f":"SUMIFS(raw_resource_build!$K:$K,raw_resource_build!$B:$B,$C472,raw_resource_build!$A:$A,AD$469)","v":0},{"$f":"SUMIFS(raw_resource_build!$K:$K,raw_resource_build!$B:$B,$C472,raw_resource_build!$A:$A,AE$469)","v":0},{"$f":"SUMIFS(raw_resource_build!$K:$K,raw_resource_build!$B:$B,$C472,raw_resource_build!$A:$A,AF$469)","v":0},{"$f":"SUMIFS(raw_resource_build!$K:$K,raw_resource_build!$B:$B,$C472,raw_resource_build!$A:$A,AG$469)","v":0},{"$f":"SUMIFS(raw_resource_build!$K:$K,raw_resource_build!$B:$B,$C472,raw_resource_build!$A:$A,AH$469)","v":0},{"$f":"SUMIFS(raw_resource_build!$K:$K,raw_resource_build!$B:$B,$C472,raw_resource_build!$A:$A,AI$469)","v":24},{"$f":"SUMIFS(raw_resource_build!$K:$K,raw_resource_build!$B:$B,$C472,raw_resource_build!$A:$A,AJ$469)","v":0},{"$f":"SUMIFS(raw_resource_build!$K:$K,raw_resource_build!$B:$B,$C472,raw_resource_build!$A:$A,AK$469)","v":0},{"$f":"SUMIFS(raw_resource_build!$K:$K,raw_resource_build!$B:$B,$C472,raw_resource_build!$A:$A,AL$469)","v":0},{"$f":"SUMIFS(raw_resource_build!$K:$K,raw_resource_build!$B:$B,$C472,raw_resource_build!$A:$A,AM$469)","v":0},{"$f":"SUMIFS(raw_resource_build!$K:$K,raw_resource_build!$B:$B,$C472,raw_resource_build!$A:$A,AN$469)","v":0}]
[null,null,{"$f":"Lists!B38","v":"Northern_California_Ex_Geothermal"},"Northern_California_Ex",{"$f":"SUMIFS(raw_resource_build!$K:$K,raw_resource_build!$B:$B,$C473,raw_resource_build!$A:$A,E$469)","v":0},{"$f":"SUMIFS(raw_resource_build!$K:$K,raw_resource_build!$B:$B,$C473,raw_resource_build!$A:$A,F$469)","v":0},{"$f":"SUMIFS(raw_resource_build!$K:$K,raw_resource_build!$B:$B,$C473,raw_resource_build!$A:$A,G$469)","v":0},{"$f":"SUMIFS(raw_resource_build!$K:$K,raw_resource_build!$B:$B,$C473,raw_resource_build!$A:$A,H$469)","v":0},{"$f":"SUMIFS(raw_resource_build!$K:$K,raw_resource_build!$B:$B,$C473,raw_resource_build!$A:$A,I$469)","v":0},{"$f":"SUMIFS(raw_resource_build!$K:$K,raw_resource_build!$B:$B,$C473,raw_resource_build!$A:$A,J$469)","v":0},{"$f":"SUMIFS(raw_resource_build!$K:$K,raw_resource_build!$B:$B,$C473,raw_resource_build!$A:$A,K$469)","v":0},{"$f":"SUMIFS(raw_resource_build!$K:$K,raw_resource_build!$B:$B,$C473,raw_resource_build!$A:$A,L$469)","v":0},{"$f":"SUMIFS(raw_resource_build!$K:$K,raw_resource_build!$B:$B,$C473,raw_resource_build!$A:$A,M$469)","v":0},{"$f":"SUMIFS(raw_resource_build!$K:$K,raw_resource_build!$B:$B,$C473,raw_resource_build!$A:$A,N$469)","v":0},{"$f":"SUMIFS(raw_resource_build!$K:$K,raw_resource_build!$B:$B,$C473,raw_resource_build!$A:$A,O$469)","v":0},{"$f":"SUMIFS(raw_resource_build!$K:$K,raw_resource_build!$B:$B,$C473,raw_resource_build!$A:$A,P$469)","v":0},{"$f":"SUMIFS(raw_resource_build!$K:$K,raw_resource_build!$B:$B,$C473,raw_resource_build!$A:$A,Q$469)","v":0},{"$f":"SUMIFS(raw_resource_build!$K:$K,raw_resource_build!$B:$B,$C473,raw_resource_build!$A:$A,R$469)","v":0},{"$f":"SUMIFS(raw_resource_build!$K:$K,raw_resource_build!$B:$B,$C473,raw_resource_build!$A:$A,S$469)","v":0},{"$f":"SUMIFS(raw_resource_build!$K:$K,raw_resource_build!$B:$B,$C473,raw_resource_build!$A:$A,T$469)","v":0},{"$f":"SUMIFS(raw_resource_build!$K:$K,raw_resource_build!$B:$B,$C473,raw_resource_build!$A:$A,U$469)","v":0},{"$f":"SUMIFS(raw_resource_build!$K:$K,raw_resource_build!$B:$B,$C473,raw_resource_build!$A:$A,V$469)","v":0},{"$f":"SUMIFS(raw_resource_build!$K:$K,raw_resource_build!$B:$B,$C473,raw_resource_build!$A:$A,W$469)","v":0},{"$f":"SUMIFS(raw_resource_build!$K:$K,raw_resource_build!$B:$B,$C473,raw_resource_build!$A:$A,X$469)","v":0},{"$f":"SUMIFS(raw_resource_build!$K:$K,raw_resource_build!$B:$B,$C473,raw_resource_build!$A:$A,Y$469)","v":0},{"$f":"SUMIFS(raw_resource_build!$K:$K,raw_resource_build!$B:$B,$C473,raw_resource_build!$A:$A,Z$469)","v":0},{"$f":"SUMIFS(raw_resource_build!$K:$K,raw_resource_build!$B:$B,$C473,raw_resource_build!$A:$A,AA$469)","v":0},{"$f":"SUMIFS(raw_resource_build!$K:$K,raw_resource_build!$B:$B,$C473,raw_resource_build!$A:$A,AB$469)","v":0},{"$f":"SUMIFS(raw_resource_build!$K:$K,raw_resource_build!$B:$B,$C473,raw_resource_build!$A:$A,AC$469)","v":0},{"$f":"SUMIFS(raw_resource_build!$K:$K,raw_resource_build!$B:$B,$C473,raw_resource_build!$A:$A,AD$469)","v":0},{"$f":"SUMIFS(raw_resource_build!$K:$K,raw_resource_build!$B:$B,$C473,raw_resource_build!$A:$A,AE$469)","v":0},{"$f":"SUMIFS(raw_resource_build!$K:$K,raw_resource_build!$B:$B,$C473,raw_resource_build!$A:$A,AF$469)","v":0},{"$f":"SUMIFS(raw_resource_build!$K:$K,raw_resource_build!$B:$B,$C473,raw_resource_build!$A:$A,AG$469)","v":0},{"$f":"SUMIFS(raw_resource_build!$K:$K,raw_resource_build!$B:$B,$C473,raw_resource_build!$A:$A,AH$469)","v":0},{"$f":"SUMIFS(raw_resource_build!$K:$K,raw_resource_build!$B:$B,$C473,raw_resource_build!$A:$A,AI$469)","v":469},{"$f":"SUMIFS(raw_resource_build!$K:$K,raw_resource_build!$B:$B,$C473,raw_resource_build!$A:$A,AJ$469)","v":0},{"$f":"SUMIFS(raw_resource_build!$K:$K,raw_resource_build!$B:$B,$C473,raw_resource_build!$A:$A,AK$469)","v":0},{"$f":"SUMIFS(raw_resource_build!$K:$K,raw_resource_build!$B:$B,$C473,raw_resource_build!$A:$A,AL$469)","v":0},{"$f":"SUMIFS(raw_resource_build!$K:$K,raw_resource_build!$B:$B,$C473,raw_resource_build!$A:$A,AM$469)","v":0},{"$f":"SUMIFS(raw_resource_build!$K:$K,raw_resource_build!$B:$B,$C473,raw_resource_build!$A:$A,AN$469)","v":0}]
[null,null,{"$f":"Lists!B39","v":"Pacific_Northwest_Geothermal"},"N/A",{"$f":"SUMIFS(raw_resource_build!$K:$K,raw_resource_build!$B:$B,$C474,raw_resource_build!$A:$A,E$469)","v":0},{"$f":"SUMIFS(raw_resource_build!$K:$K,raw_resource_build!$B:$B,$C474,raw_resource_build!$A:$A,F$469)","v":0},{"$f":"SUMIFS(raw_resource_build!$K:$K,raw_resource_build!$B:$B,$C474,raw_resource_build!$A:$A,G$469)","v":0},{"$f":"SUMIFS(raw_resource_build!$K:$K,raw_resource_build!$B:$B,$C474,raw_resource_build!$A:$A,H$469)","v":0},{"$f":"SUMIFS(raw_resource_build!$K:$K,raw_resource_build!$B:$B,$C474,raw_resource_build!$A:$A,I$469)","v":0},{"$f":"SUMIFS(raw_resource_build!$K:$K,raw_resource_build!$B:$B,$C474,raw_resource_build!$A:$A,J$469)","v":0},{"$f":"SUMIFS(raw_resource_build!$K:$K,raw_resource_build!$B:$B,$C474,raw_resource_build!$A:$A,K$469)","v":0},{"$f":"SUMIFS(raw_resource_build!$K:$K,raw_resource_build!$B:$B,$C474,raw_resource_build!$A:$A,L$469)","v":0},{"$f":"SUMIFS(raw_resource_build!$K:$K,raw_resource_build!$B:$B,$C474,raw_resource_build!$A:$A,M$469)","v":0},{"$f":"SUMIFS(raw_resource_build!$K:$K,raw_resource_build!$B:$B,$C474,raw_resource_build!$A:$A,N$469)","v":0},{"$f":"SUMIFS(raw_resource_build!$K:$K,raw_resource_build!$B:$B,$C474,raw_resource_build!$A:$A,O$469)","v":0},{"$f":"SUMIFS(raw_resource_build!$K:$K,raw_resource_build!$B:$B,$C474,raw_resource_build!$A:$A,P$469)","v":0},{"$f":"SUMIFS(raw_resource_build!$K:$K,raw_resource_build!$B:$B,$C474,raw_resource_build!$A:$A,Q$469)","v":0},{"$f":"SUMIFS(raw_resource_build!$K:$K,raw_resource_build!$B:$B,$C474,raw_resource_build!$A:$A,R$469)","v":0},{"$f":"SUMIFS(raw_resource_build!$K:$K,raw_resource_build!$B:$B,$C474,raw_resource_build!$A:$A,S$469)","v":0},{"$f":"SUMIFS(raw_resource_build!$K:$K,raw_resource_build!$B:$B,$C474,raw_resource_build!$A:$A,T$469)","v":0},{"$f":"SUMIFS(raw_resource_build!$K:$K,raw_resource_build!$B:$B,$C474,raw_resource_build!$A:$A,U$469)","v":0},{"$f":"SUMIFS(raw_resource_build!$K:$K,raw_resource_build!$B:$B,$C474,raw_resource_build!$A:$A,V$469)","v":0},{"$f":"SUMIFS(raw_resource_build!$K:$K,raw_resource_build!$B:$B,$C474,raw_resource_build!$A:$A,W$469)","v":0},{"$f":"SUMIFS(raw_resource_build!$K:$K,raw_resource_build!$B:$B,$C474,raw_resource_build!$A:$A,X$469)","v":0},{"$f":"SUMIFS(raw_resource_build!$K:$K,raw_resource_build!$B:$B,$C474,raw_resource_build!$A:$A,Y$469)","v":0},{"$f":"SUMIFS(raw_resource_build!$K:$K,raw_resource_build!$B:$B,$C474,raw_resource_build!$A:$A,Z$469)","v":0},{"$f":"SUMIFS(raw_resource_build!$K:$K,raw_resource_build!$B:$B,$C474,raw_resource_build!$A:$A,AA$469)","v":0},{"$f":"SUMIFS(raw_resource_build!$K:$K,raw_resource_build!$B:$B,$C474,raw_resource_build!$A:$A,AB$469)","v":0},{"$f":"SUMIFS(raw_resource_build!$K:$K,raw_resource_build!$B:$B,$C474,raw_resource_build!$A:$A,AC$469)","v":0},{"$f":"SUMIFS(raw_resource_build!$K:$K,raw_resource_build!$B:$B,$C474,raw_resource_build!$A:$A,AD$469)","v":0},{"$f":"SUMIFS(raw_resource_build!$K:$K,raw_resource_build!$B:$B,$C474,raw_resource_build!$A:$A,AE$469)","v":0},{"$f":"SUMIFS(raw_resource_build!$K:$K,raw_resource_build!$B:$B,$C474,raw_resource_build!$A:$A,AF$469)","v":0},{"$f":"SUMIFS(raw_resource_build!$K:$K,raw_resource_build!$B:$B,$C474,raw_resource_build!$A:$A,AG$469)","v":0},{"$f":"SUMIFS(raw_resource_build!$K:$K,raw_resource_build!$B:$B,$C474,raw_resource_build!$A:$A,AH$469)","v":0},{"$f":"SUMIFS(raw_resource_build!$K:$K,raw_resource_build!$B:$B,$C474,raw_resource_build!$A:$A,AI$469)","v":0},{"$f":"SUMIFS(raw_resource_build!$K:$K,raw_resource_build!$B:$B,$C474,raw_resource_build!$A:$A,AJ$469)","v":0},{"$f":"SUMIFS(raw_resource_build!$K:$K,raw_resource_build!$B:$B,$C474,raw_resource_build!$A:$A,AK$469)","v":0},{"$f":"SUMIFS(raw_resource_build!$K:$K,raw_resource_build!$B:$B,$C474,raw_resource_build!$A:$A,AL$469)","v":0},{"$f":"SUMIFS(raw_resource_build!$K:$K,raw_resource_build!$B:$B,$C474,raw_resource_build!$A:$A,AM$469)","v":0},{"$f":"SUMIFS(raw_resource_build!$K:$K,raw_resource_build!$B:$B,$C474,raw_resource_build!$A:$A,AN$469)","v":0}]
[null,null,{"$f":"Lists!B40","v":"Riverside_Palm_Springs_Geothermal"},"SCADSNV-Riverside_Palm_Springs",{"$f":"SUMIFS(raw_resource_build!$K:$K,raw_resource_build!$B:$B,$C475,raw_resource_build!$A:$A,E$469)","v":0},{"$f":"SUMIFS(raw_resource_build!$K:$K,raw_resource_build!$B:$B,$C475,raw_resource_build!$A:$A,F$469)","v":0},{"$f":"SUMIFS(raw_resource_build!$K:$K,raw_resource_build!$B:$B,$C475,raw_resource_build!$A:$A,G$469)","v":0},{"$f":"SUMIFS(raw_resource_build!$K:$K,raw_resource_build!$B:$B,$C475,raw_resource_build!$A:$A,H$469)","v":0},{"$f":"SUMIFS(raw_resource_build!$K:$K,raw_resource_build!$B:$B,$C475,raw_resource_build!$A:$A,I$469)","v":0},{"$f":"SUMIFS(raw_resource_build!$K:$K,raw_resource_build!$B:$B,$C475,raw_resource_build!$A:$A,J$469)","v":0},{"$f":"SUMIFS(raw_resource_build!$K:$K,raw_resource_build!$B:$B,$C475,raw_resource_build!$A:$A,K$469)","v":0},{"$f":"SUMIFS(raw_resource_build!$K:$K,raw_resource_build!$B:$B,$C475,raw_resource_build!$A:$A,L$469)","v":0},{"$f":"SUMIFS(raw_resource_build!$K:$K,raw_resource_build!$B:$B,$C475,raw_resource_build!$A:$A,M$469)","v":0},{"$f":"SUMIFS(raw_resource_build!$K:$K,raw_resource_build!$B:$B,$C475,raw_resource_build!$A:$A,N$469)","v":0},{"$f":"SUMIFS(raw_resource_build!$K:$K,raw_resource_build!$B:$B,$C475,raw_resource_build!$A:$A,O$469)","v":0},{"$f":"SUMIFS(raw_resource_build!$K:$K,raw_resource_build!$B:$B,$C475,raw_resource_build!$A:$A,P$469)","v":0},{"$f":"SUMIFS(raw_resource_build!$K:$K,raw_resource_build!$B:$B,$C475,raw_resource_build!$A:$A,Q$469)","v":0},{"$f":"SUMIFS(raw_resource_build!$K:$K,raw_resource_build!$B:$B,$C475,raw_resource_build!$A:$A,R$469)","v":0},{"$f":"SUMIFS(raw_resource_build!$K:$K,raw_resource_build!$B:$B,$C475,raw_resource_build!$A:$A,S$469)","v":0},{"$f":"SUMIFS(raw_resource_build!$K:$K,raw_resource_build!$B:$B,$C475,raw_resource_build!$A:$A,T$469)","v":0},{"$f":"SUMIFS(raw_resource_build!$K:$K,raw_resource_build!$B:$B,$C475,raw_resource_build!$A:$A,U$469)","v":0},{"$f":"SUMIFS(raw_resource_build!$K:$K,raw_resource_build!$B:$B,$C475,raw_resource_build!$A:$A,V$469)","v":0},{"$f":"SUMIFS(raw_resource_build!$K:$K,raw_resource_build!$B:$B,$C475,raw_resource_build!$A:$A,W$469)","v":0},{"$f":"SUMIFS(raw_resource_build!$K:$K,raw_resource_build!$B:$B,$C475,raw_resource_build!$A:$A,X$469)","v":0},{"$f":"SUMIFS(raw_resource_build!$K:$K,raw_resource_build!$B:$B,$C475,raw_resource_build!$A:$A,Y$469)","v":0},{"$f":"SUMIFS(raw_resource_build!$K:$K,raw_resource_build!$B:$B,$C475,raw_resource_build!$A:$A,Z$469)","v":0},{"$f":"SUMIFS(raw_resource_build!$K:$K,raw_resource_build!$B:$B,$C475,raw_resource_build!$A:$A,AA$469)","v":0},{"$f":"SUMIFS(raw_resource_build!$K:$K,raw_resource_build!$B:$B,$C475,raw_resource_build!$A:$A,AB$469)","v":0},{"$f":"SUMIFS(raw_resource_build!$K:$K,raw_resource_build!$B:$B,$C475,raw_resource_build!$A:$A,AC$469)","v":0},{"$f":"SUMIFS(raw_resource_build!$K:$K,raw_resource_build!$B:$B,$C475,raw_resource_build!$A:$A,AD$469)","v":0},{"$f":"SUMIFS(raw_resource_build!$K:$K,raw_resource_build!$B:$B,$C475,raw_resource_build!$A:$A,AE$469)","v":0},{"$f":"SUMIFS(raw_resource_build!$K:$K,raw_resource_build!$B:$B,$C475,raw_resource_build!$A:$A,AF$469)","v":0},{"$f":"SUMIFS(raw_resource_build!$K:$K,raw_resource_build!$B:$B,$C475,raw_resource_build!$A:$A,AG$469)","v":0},{"$f":"SUMIFS(raw_resource_build!$K:$K,raw_resource_build!$B:$B,$C475,raw_resource_build!$A:$A,AH$469)","v":0},{"$f":"SUMIFS(raw_resource_build!$K:$K,raw_resource_build!$B:$B,$C475,raw_resource_build!$A:$A,AI$469)","v":32},{"$f":"SUMIFS(raw_resource_build!$K:$K,raw_resource_build!$B:$B,$C475,raw_resource_build!$A:$A,AJ$469)","v":0},{"$f":"SUMIFS(raw_resource_build!$K:$K,raw_resource_build!$B:$B,$C475,raw_resource_build!$A:$A,AK$469)","v":0},{"$f":"SUMIFS(raw_resource_build!$K:$K,raw_resource_build!$B:$B,$C475,raw_resource_build!$A:$A,AL$469)","v":0},{"$f":"SUMIFS(raw_resource_build!$K:$K,raw_resource_build!$B:$B,$C475,raw_resource_build!$A:$A,AM$469)","v":0},{"$f":"SUMIFS(raw_resource_build!$K:$K,raw_resource_build!$B:$B,$C475,raw_resource_build!$A:$A,AN$469)","v":0}]
[null,null,{"$f":"Lists!B41","v":"Solano_Geothermal"},"Solano-Sacramento_River",{"$f":"SUMIFS(raw_resource_build!$K:$K,raw_resource_build!$B:$B,$C476,raw_resource_build!$A:$A,E$469)","v":0},{"$f":"SUMIFS(raw_resource_build!$K:$K,raw_resource_build!$B:$B,$C476,raw_resource_build!$A:$A,F$469)","v":0},{"$f":"SUMIFS(raw_resource_build!$K:$K,raw_resource_build!$B:$B,$C476,raw_resource_build!$A:$A,G$469)","v":0},{"$f":"SUMIFS(raw_resource_build!$K:$K,raw_resource_build!$B:$B,$C476,raw_resource_build!$A:$A,H$469)","v":0},{"$f":"SUMIFS(raw_resource_build!$K:$K,raw_resource_build!$B:$B,$C476,raw_resource_build!$A:$A,I$469)","v":0},{"$f":"SUMIFS(raw_resource_build!$K:$K,raw_resource_build!$B:$B,$C476,raw_resource_build!$A:$A,J$469)","v":0},{"$f":"SUMIFS(raw_resource_build!$K:$K,raw_resource_build!$B:$B,$C476,raw_resource_build!$A:$A,K$469)","v":0},{"$f":"SUMIFS(raw_resource_build!$K:$K,raw_resource_build!$B:$B,$C476,raw_resource_build!$A:$A,L$469)","v":0},{"$f":"SUMIFS(raw_resource_build!$K:$K,raw_resource_build!$B:$B,$C476,raw_resource_build!$A:$A,M$469)","v":0},{"$f":"SUMIFS(raw_resource_build!$K:$K,raw_resource_build!$B:$B,$C476,raw_resource_build!$A:$A,N$469)","v":135},{"$f":"SUMIFS(raw_resource_build!$K:$K,raw_resource_build!$B:$B,$C476,raw_resource_build!$A:$A,O$469)","v":0},{"$f":"SUMIFS(raw_resource_build!$K:$K,raw_resource_build!$B:$B,$C476,raw_resource_build!$A:$A,P$469)","v":135},{"$f":"SUMIFS(raw_resource_build!$K:$K,raw_resource_build!$B:$B,$C476,raw_resource_build!$A:$A,Q$469)","v":0},{"$f":"SUMIFS(raw_resource_build!$K:$K,raw_resource_build!$B:$B,$C476,raw_resource_build!$A:$A,R$469)","v":0},{"$f":"SUMIFS(raw_resource_build!$K:$K,raw_resource_build!$B:$B,$C476,raw_resource_build!$A:$A,S$469)","v":0},{"$f":"SUMIFS(raw_resource_build!$K:$K,raw_resource_build!$B:$B,$C476,raw_resource_build!$A:$A,T$469)","v":135},{"$f":"SUMIFS(raw_resource_build!$K:$K,raw_resource_build!$B:$B,$C476,raw_resource_build!$A:$A,U$469)","v":0},{"$f":"SUMIFS(raw_resource_build!$K:$K,raw_resource_build!$B:$B,$C476,raw_resource_build!$A:$A,V$469)","v":0},{"$f":"SUMIFS(raw_resource_build!$K:$K,raw_resource_build!$B:$B,$C476,raw_resource_build!$A:$A,W$469)","v":0},{"$f":"SUMIFS(raw_resource_build!$K:$K,raw_resource_build!$B:$B,$C476,raw_resource_build!$A:$A,X$469)","v":0},{"$f":"SUMIFS(raw_resource_build!$K:$K,raw_resource_build!$B:$B,$C476,raw_resource_build!$A:$A,Y$469)","v":0},{"$f":"SUMIFS(raw_resource_build!$K:$K,raw_resource_build!$B:$B,$C476,raw_resource_build!$A:$A,Z$469)","v":0},{"$f":"SUMIFS(raw_resource_build!$K:$K,raw_resource_build!$B:$B,$C476,raw_resource_build!$A:$A,AA$469)","v":0},{"$f":"SUMIFS(raw_resource_build!$K:$K,raw_resource_build!$B:$B,$C476,raw_resource_build!$A:$A,AB$469)","v":0},{"$f":"SUMIFS(raw_resource_build!$K:$K,raw_resource_build!$B:$B,$C476,raw_resource_build!$A:$A,AC$469)","v":0},{"$f":"SUMIFS(raw_resource_build!$K:$K,raw_resource_build!$B:$B,$C476,raw_resource_build!$A:$A,AD$469)","v":0},{"$f":"SUMIFS(raw_resource_build!$K:$K,raw_resource_build!$B:$B,$C476,raw_resource_build!$A:$A,AE$469)","v":0},{"$f":"SUMIFS(raw_resource_build!$K:$K,raw_resource_build!$B:$B,$C476,raw_resource_build!$A:$A,AF$469)","v":0},{"$f":"SUMIFS(raw_resource_build!$K:$K,raw_resource_build!$B:$B,$C476,raw_resource_build!$A:$A,AG$469)","v":0},{"$f":"SUMIFS(raw_resource_build!$K:$K,raw_resource_build!$B:$B,$C476,raw_resource_build!$A:$A,AH$469)","v":0},{"$f":"SUMIFS(raw_resource_build!$K:$K,raw_resource_build!$B:$B,$C476,raw_resource_build!$A:$A,AI$469)","v":135},{"$f":"SUMIFS(raw_resource_build!$K:$K,raw_resource_build!$B:$B,$C476,raw_resource_build!$A:$A,AJ$469)","v":0},{"$f":"SUMIFS(raw_resource_build!$K:$K,raw_resource_build!$B:$B,$C476,raw_resource_build!$A:$A,AK$469)","v":0},{"$f":"SUMIFS(raw_resource_build!$K:$K,raw_resource_build!$B:$B,$C476,raw_resource_build!$A:$A,AL$469)","v":0},{"$f":"SUMIFS(raw_resource_build!$K:$K,raw_resource_build!$B:$B,$C476,raw_resource_build!$A:$A,AM$469)","v":0},{"$f":"SUMIFS(raw_resource_build!$K:$K,raw_resource_build!$B:$B,$C476,raw_resource_build!$A:$A,AN$469)","v":0}]
[null,null,{"$f":"Lists!B42","v":"Southern_Nevada_Geothermal"},"SCADSNV-Mountain_Pass_El_Dorado",{"$f":"SUMIFS(raw_resource_build!$K:$K,raw_resource_build!$B:$B,$C477,raw_resource_build!$A:$A,E$469)","v":0},{"$f":"SUMIFS(raw_resource_build!$K:$K,raw_resource_build!$B:$B,$C477,raw_resource_build!$A:$A,F$469)","v":0},{"$f":"SUMIFS(raw_resource_build!$K:$K,raw_resource_build!$B:$B,$C477,raw_resource_build!$A:$A,G$469)","v":0},{"$f":"SUMIFS(raw_resource_build!$K:$K,raw_resource_build!$B:$B,$C477,raw_resource_build!$A:$A,H$469)","v":0},{"$f":"SUMIFS(raw_resource_build!$K:$K,raw_resource_build!$B:$B,$C477,raw_resource_build!$A:$A,I$469)","v":0},{"$f":"SUMIFS(raw_resource_build!$K:$K,raw_resource_build!$B:$B,$C477,raw_resource_build!$A:$A,J$469)","v":0},{"$f":"SUMIFS(raw_resource_build!$K:$K,raw_resource_build!$B:$B,$C477,raw_resource_build!$A:$A,K$469)","v":0},{"$f":"SUMIFS(raw_resource_build!$K:$K,raw_resource_build!$B:$B,$C477,raw_resource_build!$A:$A,L$469)","v":0},{"$f":"SUMIFS(raw_resource_build!$K:$K,raw_resource_build!$B:$B,$C477,raw_resource_build!$A:$A,M$469)","v":0},{"$f":"SUMIFS(raw_resource_build!$K:$K,raw_resource_build!$B:$B,$C477,raw_resource_build!$A:$A,N$469)","v":0},{"$f":"SUMIFS(raw_resource_build!$K:$K,raw_resource_build!$B:$B,$C477,raw_resource_build!$A:$A,O$469)","v":0},{"$f":"SUMIFS(raw_resource_build!$K:$K,raw_resource_build!$B:$B,$C477,raw_resource_build!$A:$A,P$469)","v":0},{"$f":"SUMIFS(raw_resource_build!$K:$K,raw_resource_build!$B:$B,$C477,raw_resource_build!$A:$A,Q$469)","v":0},{"$f":"SUMIFS(raw_resource_build!$K:$K,raw_resource_build!$B:$B,$C477,raw_resource_build!$A:$A,R$469)","v":0},{"$f":"SUMIFS(raw_resource_build!$K:$K,raw_resource_build!$B:$B,$C477,raw_resource_build!$A:$A,S$469)","v":0},{"$f":"SUMIFS(raw_resource_build!$K:$K,raw_resource_build!$B:$B,$C477,raw_resource_build!$A:$A,T$469)","v":0},{"$f":"SUMIFS(raw_resource_build!$K:$K,raw_resource_build!$B:$B,$C477,raw_resource_build!$A:$A,U$469)","v":0},{"$f":"SUMIFS(raw_resource_build!$K:$K,raw_resource_build!$B:$B,$C477,raw_resource_build!$A:$A,V$469)","v":0},{"$f":"SUMIFS(raw_resource_build!$K:$K,raw_resource_build!$B:$B,$C477,raw_resource_build!$A:$A,W$469)","v":0},{"$f":"SUMIFS(raw_resource_build!$K:$K,raw_resource_build!$B:$B,$C477,raw_resource_build!$A:$A,X$469)","v":0},{"$f":"SUMIFS(raw_resource_build!$K:$K,raw_resource_build!$B:$B,$C477,raw_resource_build!$A:$A,Y$469)","v":0},{"$f":"SUMIFS(raw_resource_build!$K:$K,raw_resource_build!$B:$B,$C477,raw_resource_build!$A:$A,Z$469)","v":0},{"$f":"SUMIFS(raw_resource_build!$K:$K,raw_resource_build!$B:$B,$C477,raw_resource_build!$A:$A,AA$469)","v":0},{"$f":"SUMIFS(raw_resource_build!$K:$K,raw_resource_build!$B:$B,$C477,raw_resource_build!$A:$A,AB$469)","v":0},{"$f":"SUMIFS(raw_resource_build!$K:$K,raw_resource_build!$B:$B,$C477,raw_resource_build!$A:$A,AC$469)","v":0},{"$f":"SUMIFS(raw_resource_build!$K:$K,raw_resource_build!$B:$B,$C477,raw_resource_build!$A:$A,AD$469)","v":0},{"$f":"SUMIFS(raw_resource_build!$K:$K,raw_resource_build!$B:$B,$C477,raw_resource_build!$A:$A,AE$469)","v":0},{"$f":"SUMIFS(raw_resource_build!$K:$K,raw_resource_build!$B:$B,$C477,raw_resource_build!$A:$A,AF$469)","v":0},{"$f":"SUMIFS(raw_resource_build!$K:$K,raw_resource_build!$B:$B,$C477,raw_resource_build!$A:$A,AG$469)","v":0},{"$f":"SUMIFS(raw_resource_build!$K:$K,raw_resource_build!$B:$B,$C477,raw_resource_build!$A:$A,AH$469)","v":0},{"$f":"SUMIFS(raw_resource_build!$K:$K,raw_resource_build!$B:$B,$C477,raw_resource_build!$A:$A,AI$469)","v":320},{"$f":"SUMIFS(raw_resource_build!$K:$K,raw_resource_build!$B:$B,$C477,raw_resource_build!$A:$A,AJ$469)","v":0},{"$f":"SUMIFS(raw_resource_build!$K:$K,raw_resource_build!$B:$B,$C477,raw_resource_build!$A:$A,AK$469)","v":0},{"$f":"SUMIFS(raw_resource_build!$K:$K,raw_resource_build!$B:$B,$C477,raw_resource_build!$A:$A,AL$469)","v":0},{"$f":"SUMIFS(raw_resource_build!$K:$K,raw_resource_build!$B:$B,$C477,raw_resource_build!$A:$A,AM$469)","v":0},{"$f":"SUMIFS(raw_resource_build!$K:$K,raw_resource_build!$B:$B,$C477,raw_resource_build!$A:$A,AN$469)","v":0}]
[null,null,{"$f":"Lists!B43","v":"Carrizo_Solar"},"Kern_Greater_Carrizo-SPGE-Carrizo",{"$f":"SUMIFS(raw_resource_build!$K:$K,raw_resource_build!$B:$B,$C478,raw_resource_build!$A:$A,E$469)","v":0},{"$f":"SUMIFS(raw_resource_build!$K:$K,raw_resource_build!$B:$B,$C478,raw_resource_build!$A:$A,F$469)","v":0},{"$f":"SUMIFS(raw_resource_build!$K:$K,raw_resource_build!$B:$B,$C478,raw_resource_build!$A:$A,G$469)","v":0},{"$f":"SUMIFS(raw_resource_build!$K:$K,raw_resource_build!$B:$B,$C478,raw_resource_build!$A:$A,H$469)","v":0},{"$f":"SUMIFS(raw_resource_build!$K:$K,raw_resource_build!$B:$B,$C478,raw_resource_build!$A:$A,I$469)","v":0},{"$f":"SUMIFS(raw_resource_build!$K:$K,raw_resource_build!$B:$B,$C478,raw_resource_build!$A:$A,J$469)","v":0},{"$f":"SUMIFS(raw_resource_build!$K:$K,raw_resource_build!$B:$B,$C478,raw_resource_build!$A:$A,K$469)","v":0},{"$f":"SUMIFS(raw_resource_build!$K:$K,raw_resource_build!$B:$B,$C478,raw_resource_build!$A:$A,L$469)","v":0},{"$f":"SUMIFS(raw_resource_build!$K:$K,raw_resource_build!$B:$B,$C478,raw_resource_build!$A:$A,M$469)","v":0},{"$f":"SUMIFS(raw_resource_build!$K:$K,raw_resource_build!$B:$B,$C478,raw_resource_build!$A:$A,N$469)","v":0},{"$f":"SUMIFS(raw_resource_build!$K:$K,raw_resource_build!$B:$B,$C478,raw_resource_build!$A:$A,O$469)","v":0},{"$f":"SUMIFS(raw_resource_build!$K:$K,raw_resource_build!$B:$B,$C478,raw_resource_build!$A:$A,P$469)","v":0},{"$f":"SUMIFS(raw_resource_build!$K:$K,raw_resource_build!$B:$B,$C478,raw_resource_build!$A:$A,Q$469)","v":0},{"$f":"SUMIFS(raw_resource_build!$K:$K,raw_resource_build!$B:$B,$C478,raw_resource_build!$A:$A,R$469)","v":0},{"$f":"SUMIFS(raw_resource_build!$K:$K,raw_resource_build!$B:$B,$C478,raw_resource_build!$A:$A,S$469)","v":0},{"$f":"SUMIFS(raw_resource_build!$K:$K,raw_resource_build!$B:$B,$C478,raw_resource_build!$A:$A,T$469)","v":0},{"$f":"SUMIFS(raw_resource_build!$K:$K,raw_resource_build!$B:$B,$C478,raw_resource_build!$A:$A,U$469)","v":0},{"$f":"SUMIFS(raw_resource_build!$K:$K,raw_resource_build!$B:$B,$C478,raw_resource_build!$A:$A,V$469)","v":0},{"$f":"SUMIFS(raw_resource_build!$K:$K,raw_resource_build!$B:$B,$C478,raw_resource_build!$A:$A,W$469)","v":0},{"$f":"SUMIFS(raw_resource_build!$K:$K,raw_resource_build!$B:$B,$C478,raw_resource_build!$A:$A,X$469)","v":0},{"$f":"SUMIFS(raw_resource_build!$K:$K,raw_resource_build!$B:$B,$C478,raw_resource_build!$A:$A,Y$469)","v":0},{"$f":"SUMIFS(raw_resource_build!$K:$K,raw_resource_build!$B:$B,$C478,raw_resource_build!$A:$A,Z$469)","v":0},{"$f":"SUMIFS(raw_resource_build!$K:$K,raw_resource_build!$B:$B,$C478,raw_resource_build!$A:$A,AA$469)","v":0},{"$f":"SUMIFS(raw_resource_build!$K:$K,raw_resource_build!$B:$B,$C478,raw_resource_build!$A:$A,AB$469)","v":0},{"$f":"SUMIFS(raw_resource_build!$K:$K,raw_resource_build!$B:$B,$C478,raw_resource_build!$A:$A,AC$469)","v":0},{"$f":"SUMIFS(raw_resource_build!$K:$K,raw_resource_build!$B:$B,$C478,raw_resource_build!$A:$A,AD$469)","v":0},{"$f":"SUMIFS(raw_resource_build!$K:$K,raw_resource_build!$B:$B,$C478,raw_resource_build!$A:$A,AE$469)","v":0},{"$f":"SUMIFS(raw_resource_build!$K:$K,raw_resource_build!$B:$B,$C478,raw_resource_build!$A:$A,AF$469)","v":0},{"$f":"SUMIFS(raw_resource_build!$K:$K,raw_resource_build!$B:$B,$C478,raw_resource_build!$A:$A,AG$469)","v":0},{"$f":"SUMIFS(raw_resource_build!$K:$K,raw_resource_build!$B:$B,$C478,raw_resource_build!$A:$A,AH$469)","v":0},{"$f":"SUMIFS(raw_resource_build!$K:$K,raw_resource_build!$B:$B,$C478,raw_resource_build!$A:$A,AI$469)","v":9907},{"$f":"SUMIFS(raw_resource_build!$K:$K,raw_resource_build!$B:$B,$C478,raw_resource_build!$A:$A,AJ$469)","v":0},{"$f":"SUMIFS(raw_resource_build!$K:$K,raw_resource_build!$B:$B,$C478,raw_resource_build!$A:$A,AK$469)","v":0},{"$f":"SUMIFS(raw_resource_build!$K:$K,raw_resource_build!$B:$B,$C478,raw_resource_build!$A:$A,AL$469)","v":0},{"$f":"SUMIFS(raw_resource_build!$K:$K,raw_resource_build!$B:$B,$C478,raw_resource_build!$A:$A,AM$469)","v":0},{"$f":"SUMIFS(raw_resource_build!$K:$K,raw_resource_build!$B:$B,$C478,raw_resource_build!$A:$A,AN$469)","v":0}]
[null,null,{"$f":"Lists!B44","v":"Carrizo_Wind"},"Kern_Greater_Carrizo-SPGE-Carrizo",{"$f":"SUMIFS(raw_resource_build!$K:$K,raw_resource_build!$B:$B,$C479,raw_resource_build!$A:$A,E$469)","v":0},{"$f":"SUMIFS(raw_resource_build!$K:$K,raw_resource_build!$B:$B,$C479,raw_resource_build!$A:$A,F$469)","v":0},{"$f":"SUMIFS(raw_resource_build!$K:$K,raw_resource_build!$B:$B,$C479,raw_resource_build!$A:$A,G$469)","v":0},{"$f":"SUMIFS(raw_resource_build!$K:$K,raw_resource_build!$B:$B,$C479,raw_resource_build!$A:$A,H$469)","v":0},{"$f":"SUMIFS(raw_resource_build!$K:$K,raw_resource_build!$B:$B,$C479,raw_resource_build!$A:$A,I$469)","v":0},{"$f":"SUMIFS(raw_resource_build!$K:$K,raw_resource_build!$B:$B,$C479,raw_resource_build!$A:$A,J$469)","v":0},{"$f":"SUMIFS(raw_resource_build!$K:$K,raw_resource_build!$B:$B,$C479,raw_resource_build!$A:$A,K$469)","v":0},{"$f":"SUMIFS(raw_resource_build!$K:$K,raw_resource_build!$B:$B,$C479,raw_resource_build!$A:$A,L$469)","v":0},{"$f":"SUMIFS(raw_resource_build!$K:$K,raw_resource_build!$B:$B,$C479,raw_resource_build!$A:$A,M$469)","v":287},{"$f":"SUMIFS(raw_resource_build!$K:$K,raw_resource_build!$B:$B,$C479,raw_resource_build!$A:$A,N$469)","v":287},{"$f":"SUMIFS(raw_resource_build!$K:$K,raw_resource_build!$B:$B,$C479,raw_resource_build!$A:$A,O$469)","v":0},{"$f":"SUMIFS(raw_resource_build!$K:$K,raw_resource_build!$B:$B,$C479,raw_resource_build!$A:$A,P$469)","v":287},{"$f":"SUMIFS(raw_resource_build!$K:$K,raw_resource_build!$B:$B,$C479,raw_resource_build!$A:$A,Q$469)","v":0},{"$f":"SUMIFS(raw_resource_build!$K:$K,raw_resource_build!$B:$B,$C479,raw_resource_build!$A:$A,R$469)","v":0},{"$f":"SUMIFS(raw_resource_build!$K:$K,raw_resource_build!$B:$B,$C479,raw_resource_build!$A:$A,S$469)","v":0},{"$f":"SUMIFS(raw_resource_build!$K:$K,raw_resource_build!$B:$B,$C479,raw_resource_build!$A:$A,T$469)","v":287},{"$f":"SUMIFS(raw_resource_build!$K:$K,raw_resource_build!$B:$B,$C479,raw_resource_build!$A:$A,U$469)","v":0},{"$f":"SUMIFS(raw_resource_build!$K:$K,raw_resource_build!$B:$B,$C479,raw_resource_build!$A:$A,V$469)","v":0},{"$f":"SUMIFS(raw_resource_build!$K:$K,raw_resource_build!$B:$B,$C479,raw_resource_build!$A:$A,W$469)","v":0},{"$f":"SUMIFS(raw_resource_build!$K:$K,raw_resource_build!$B:$B,$C479,raw_resource_build!$A:$A,X$469)","v":0},{"$f":"SUMIFS(raw_resource_build!$K:$K,raw_resource_build!$B:$B,$C479,raw_resource_build!$A:$A,Y$469)","v":0},{"$f":"SUMIFS(raw_resource_build!$K:$K,raw_resource_build!$B:$B,$C479,raw_resource_build!$A:$A,Z$469)","v":0},{"$f":"SUMIFS(raw_resource_build!$K:$K,raw_resource_build!$B:$B,$C479,raw_resource_build!$A:$A,AA$469)","v":0},{"$f":"SUMIFS(raw_resource_build!$K:$K,raw_resource_build!$B:$B,$C479,raw_resource_build!$A:$A,AB$469)","v":0},{"$f":"SUMIFS(raw_resource_build!$K:$K,raw_resource_build!$B:$B,$C479,raw_resource_build!$A:$A,AC$469)","v":0},{"$f":"SUMIFS(raw_resource_build!$K:$K,raw_resource_build!$B:$B,$C479,raw_resource_build!$A:$A,AD$469)","v":0},{"$f":"SUMIFS(raw_resource_build!$K:$K,raw_resource_build!$B:$B,$C479,raw_resource_build!$A:$A,AE$469)","v":0},{"$f":"SUMIFS(raw_resource_build!$K:$K,raw_resource_build!$B:$B,$C479,raw_resource_build!$A:$A,AF$469)","v":0},{"$f":"SUMIFS(raw_resource_build!$K:$K,raw_resource_build!$B:$B,$C479,raw_resource_build!$A:$A,AG$469)","v":0},{"$f":"SUMIFS(raw_resource_build!$K:$K,raw_resource_build!$B:$B,$C479,raw_resource_build!$A:$A,AH$469)","v":0},{"$f":"SUMIFS(raw_resource_build!$K:$K,raw_resource_build!$B:$B,$C479,raw_resource_build!$A:$A,AI$469)","v":287},{"$f":"SUMIFS(raw_resource_build!$K:$K,raw_resource_build!$B:$B,$C479,raw_resource_build!$A:$A,AJ$469)","v":0},{"$f":"SUMIFS(raw_resource_build!$K:$K,raw_resource_build!$B:$B,$C479,raw_resource_build!$A:$A,AK$469)","v":0},{"$f":"SUMIFS(raw_resource_build!$K:$K,raw_resource_build!$B:$B,$C479,raw_resource_build!$A:$A,AL$469)","v":0},{"$f":"SUMIFS(raw_resource_build!$K:$K,raw_resource_build!$B:$B,$C479,raw_resource_build!$A:$A,AM$469)","v":0},{"$f":"SUMIFS(raw_resource_build!$K:$K,raw_resource_build!$B:$B,$C479,raw_resource_build!$A:$A,AN$469)","v":0}]
[null,null,{"$f":"Lists!B45","v":"Central_Valley_North_Los_Banos_Solar"},"Central_Valley_North_Los_Banos-SPGE",{"$f":"SUMIFS(raw_resource_build!$K:$K,raw_resource_build!$B:$B,$C480,raw_resource_build!$A:$A,E$469)","v":0},{"$f":"SUMIFS(raw_resource_build!$K:$K,raw_resource_build!$B:$B,$C480,raw_resource_build!$A:$A,F$469)","v":0},{"$f":"SUMIFS(raw_resource_build!$K:$K,raw_resource_build!$B:$B,$C480,raw_resource_build!$A:$A,G$469)","v":0},{"$f":"SUMIFS(raw_resource_build!$K:$K,raw_resource_build!$B:$B,$C480,raw_resource_build!$A:$A,H$469)","v":0},{"$f":"SUMIFS(raw_resource_build!$K:$K,raw_resource_build!$B:$B,$C480,raw_resource_build!$A:$A,I$469)","v":0},{"$f":"SUMIFS(raw_resource_build!$K:$K,raw_resource_build!$B:$B,$C480,raw_resource_build!$A:$A,J$469)","v":0},{"$f":"SUMIFS(raw_resource_build!$K:$K,raw_resource_build!$B:$B,$C480,raw_resource_build!$A:$A,K$469)","v":0},{"$f":"SUMIFS(raw_resource_build!$K:$K,raw_resource_build!$B:$B,$C480,raw_resource_build!$A:$A,L$469)","v":0},{"$f":"SUMIFS(raw_resource_build!$K:$K,raw_resource_build!$B:$B,$C480,raw_resource_build!$A:$A,M$469)","v":0},{"$f":"SUMIFS(raw_resource_build!$K:$K,raw_resource_build!$B:$B,$C480,raw_resource_build!$A:$A,N$469)","v":0},{"$f":"SUMIFS(raw_resource_build!$K:$K,raw_resource_build!$B:$B,$C480,raw_resource_build!$A:$A,O$469)","v":0},{"$f":"SUMIFS(raw_resource_build!$K:$K,raw_resource_build!$B:$B,$C480,raw_resource_build!$A:$A,P$469)","v":0},{"$f":"SUMIFS(raw_resource_build!$K:$K,raw_resource_build!$B:$B,$C480,raw_resource_build!$A:$A,Q$469)","v":0},{"$f":"SUMIFS(raw_resource_build!$K:$K,raw_resource_build!$B:$B,$C480,raw_resource_build!$A:$A,R$469)","v":0},{"$f":"SUMIFS(raw_resource_build!$K:$K,raw_resource_build!$B:$B,$C480,raw_resource_build!$A:$A,S$469)","v":0},{"$f":"SUMIFS(raw_resource_build!$K:$K,raw_resource_build!$B:$B,$C480,raw_resource_build!$A:$A,T$469)","v":0},{"$f":"SUMIFS(raw_resource_build!$K:$K,raw_resource_build!$B:$B,$C480,raw_resource_build!$A:$A,U$469)","v":0},{"$f":"SUMIFS(raw_resource_build!$K:$K,raw_resource_build!$B:$B,$C480,raw_resource_build!$A:$A,V$469)","v":0},{"$f":"SUMIFS(raw_resource_build!$K:$K,raw_resource_build!$B:$B,$C480,raw_resource_build!$A:$A,W$469)","v":0},{"$f":"SUMIFS(raw_resource_build!$K:$K,raw_resource_build!$B:$B,$C480,raw_resource_build!$A:$A,X$469)","v":0},{"$f":"SUMIFS(raw_resource_build!$K:$K,raw_resource_build!$B:$B,$C480,raw_resource_build!$A:$A,Y$469)","v":0},{"$f":"SUMIFS(raw_resource_build!$K:$K,raw_resource_build!$B:$B,$C480,raw_resource_build!$A:$A,Z$469)","v":0},{"$f":"SUMIFS(raw_resource_build!$K:$K,raw_resource_build!$B:$B,$C480,raw_resource_build!$A:$A,AA$469)","v":0},{"$f":"SUMIFS(raw_resource_build!$K:$K,raw_resource_build!$B:$B,$C480,raw_resource_build!$A:$A,AB$469)","v":0},{"$f":"SUMIFS(raw_resource_build!$K:$K,raw_resource_build!$B:$B,$C480,raw_resource_build!$A:$A,AC$469)","v":0},{"$f":"SUMIFS(raw_resource_build!$K:$K,raw_resource_build!$B:$B,$C480,raw_resource_build!$A:$A,AD$469)","v":0},{"$f":"SUMIFS(raw_resource_build!$K:$K,raw_resource_build!$B:$B,$C480,raw_resource_build!$A:$A,AE$469)","v":0},{"$f":"SUMIFS(raw_resource_build!$K:$K,raw_resource_build!$B:$B,$C480,raw_resource_build!$A:$A,AF$469)","v":0},{"$f":"SUMIFS(raw_resource_build!$K:$K,raw_resource_build!$B:$B,$C480,raw_resource_build!$A:$A,AG$469)","v":0},{"$f":"SUMIFS(raw_resource_build!$K:$K,raw_resource_build!$B:$B,$C480,raw_resource_build!$A:$A,AH$469)","v":0},{"$f":"SUMIFS(raw_resource_build!$K:$K,raw_resource_build!$B:$B,$C480,raw_resource_build!$A:$A,AI$469)","v":3348.83},{"$f":"SUMIFS(raw_resource_build!$K:$K,raw_resource_build!$B:$B,$C480,raw_resource_build!$A:$A,AJ$469)","v":0},{"$f":"SUMIFS(raw_resource_build!$K:$K,raw_resource_build!$B:$B,$C480,raw_resource_build!$A:$A,AK$469)","v":0},{"$f":"SUMIFS(raw_resource_build!$K:$K,raw_resource_build!$B:$B,$C480,raw_resource_build!$A:$A,AL$469)","v":0},{"$f":"SUMIFS(raw_resource_build!$K:$K,raw_resource_build!$B:$B,$C480,raw_resource_build!$A:$A,AM$469)","v":0},{"$f":"SUMIFS(raw_resource_build!$K:$K,raw_resource_build!$B:$B,$C480,raw_resource_build!$A:$A,AN$469)","v":0}]
[null,null,{"$f":"Lists!B46","v":"Central_Valley_North_Los_Banos_Wind"},"Central_Valley_North_Los_Banos-SPGE",{"$f":"SUMIFS(raw_resource_build!$K:$K,raw_resource_build!$B:$B,$C481,raw_resource_build!$A:$A,E$469)","v":0},{"$f":"SUMIFS(raw_resource_build!$K:$K,raw_resource_build!$B:$B,$C481,raw_resource_build!$A:$A,F$469)","v":0},{"$f":"SUMIFS(raw_resource_build!$K:$K,raw_resource_build!$B:$B,$C481,raw_resource_build!$A:$A,G$469)","v":0},{"$f":"SUMIFS(raw_resource_build!$K:$K,raw_resource_build!$B:$B,$C481,raw_resource_build!$A:$A,H$469)","v":0},{"$f":"SUMIFS(raw_resource_build!$K:$K,raw_resource_build!$B:$B,$C481,raw_resource_build!$A:$A,I$469)","v":0},{"$f":"SUMIFS(raw_resource_build!$K:$K,raw_resource_build!$B:$B,$C481,raw_resource_build!$A:$A,J$469)","v":0},{"$f":"SUMIFS(raw_resource_build!$K:$K,raw_resource_build!$B:$B,$C481,raw_resource_build!$A:$A,K$469)","v":0},{"$f":"SUMIFS(raw_resource_build!$K:$K,raw_resource_build!$B:$B,$C481,raw_resource_build!$A:$A,L$469)","v":173},{"$f":"SUMIFS(raw_resource_build!$K:$K,raw_resource_build!$B:$B,$C481,raw_resource_build!$A:$A,M$469)","v":173},{"$f":"SUMIFS(raw_resource_build!$K:$K,raw_resource_build!$B:$B,$C481,raw_resource_build!$A:$A,N$469)","v":173},{"$f":"SUMIFS(raw_resource_build!$K:$K,raw_resource_build!$B:$B,$C481,raw_resource_build!$A:$A,O$469)","v":0},{"$f":"SUMIFS(raw_resource_build!$K:$K,raw_resource_build!$B:$B,$C481,raw_resource_build!$A:$A,P$469)","v":173},{"$f":"SUMIFS(raw_resource_build!$K:$K,raw_resource_build!$B:$B,$C481,raw_resource_build!$A:$A,Q$469)","v":0},{"$f":"SUMIFS(raw_resource_build!$K:$K,raw_resource_build!$B:$B,$C481,raw_resource_build!$A:$A,R$469)","v":0},{"$f":"SUMIFS(raw_resource_build!$K:$K,raw_resource_build!$B:$B,$C481,raw_resource_build!$A:$A,S$469)","v":0},{"$f":"SUMIFS(raw_resource_build!$K:$K,raw_resource_build!$B:$B,$C481,raw_resource_build!$A:$A,T$469)","v":173},{"$f":"SUMIFS(raw_resource_build!$K:$K,raw_resource_build!$B:$B,$C481,raw_resource_build!$A:$A,U$469)","v":0},{"$f":"SUMIFS(raw_resource_build!$K:$K,raw_resource_build!$B:$B,$C481,raw_resource_build!$A:$A,V$469)","v":0},{"$f":"SUMIFS(raw_resource_build!$K:$K,raw_resource_build!$B:$B,$C481,raw_resource_build!$A:$A,W$469)","v":0},{"$f":"SUMIFS(raw_resource_build!$K:$K,raw_resource_build!$B:$B,$C481,raw_resource_build!$A:$A,X$469)","v":0},{"$f":"SUMIFS(raw_resource_build!$K:$K,raw_resource_build!$B:$B,$C481,raw_resource_build!$A:$A,Y$469)","v":0},{"$f":"SUMIFS(raw_resource_build!$K:$K,raw_resource_build!$B:$B,$C481,raw_resource_build!$A:$A,Z$469)","v":0},{"$f":"SUMIFS(raw_resource_build!$K:$K,raw_resource_build!$B:$B,$C481,raw_resource_build!$A:$A,AA$469)","v":0},{"$f":"SUMIFS(raw_resource_build!$K:$K,raw_resource_build!$B:$B,$C481,raw_resource_build!$A:$A,AB$469)","v":0},{"$f":"SUMIFS(raw_resource_build!$K:$K,raw_resource_build!$B:$B,$C481,raw_resource_build!$A:$A,AC$469)","v":0},{"$f":"SUMIFS(raw_resource_build!$K:$K,raw_resource_build!$B:$B,$C481,raw_resource_build!$A:$A,AD$469)","v":0},{"$f":"SUMIFS(raw_resource_build!$K:$K,raw_resource_build!$B:$B,$C481,raw_resource_build!$A:$A,AE$469)","v":0},{"$f":"SUMIFS(raw_resource_build!$K:$K,raw_resource_build!$B:$B,$C481,raw_resource_build!$A:$A,AF$469)","v":0},{"$f":"SUMIFS(raw_resource_build!$K:$K,raw_resource_build!$B:$B,$C481,raw_resource_build!$A:$A,AG$469)","v":0},{"$f":"SUMIFS(raw_resource_build!$K:$K,raw_resource_build!$B:$B,$C481,raw_resource_build!$A:$A,AH$469)","v":0},{"$f":"SUMIFS(raw_resource_build!$K:$K,raw_resource_build!$B:$B,$C481,raw_resource_build!$A:$A,AI$469)","v":173},{"$f":"SUMIFS(raw_resource_build!$K:$K,raw_resource_build!$B:$B,$C481,raw_resource_build!$A:$A,AJ$469)","v":0},{"$f":"SUMIFS(raw_resource_build!$K:$K,raw_resource_build!$B:$B,$C481,raw_resource_build!$A:$A,AK$469)","v":0},{"$f":"SUMIFS(raw_resource_build!$K:$K,raw_resource_build!$B:$B,$C481,raw_resource_build!$A:$A,AL$469)","v":0},{"$f":"SUMIFS(raw_resource_build!$K:$K,raw_resource_build!$B:$B,$C481,raw_resource_build!$A:$A,AM$469)","v":0},{"$f":"SUMIFS(raw_resource_build!$K:$K,raw_resource_build!$B:$B,$C481,raw_resource_build!$A:$A,AN$469)","v":0}]
[null,null,{"$f":"Lists!B47","v":"Distributed_Solar"},"None",{"$f":"SUMIFS(raw_resource_build!$K:$K,raw_resource_build!$B:$B,$C482,raw_resource_build!$A:$A,E$469)","v":0},{"$f":"SUMIFS(raw_resource_build!$K:$K,raw_resource_build!$B:$B,$C482,raw_resource_build!$A:$A,F$469)","v":0},{"$f":"SUMIFS(raw_resource_build!$K:$K,raw_resource_build!$B:$B,$C482,raw_resource_build!$A:$A,G$469)","v":0},{"$f":"SUMIFS(raw_resource_build!$K:$K,raw_resource_build!$B:$B,$C482,raw_resource_build!$A:$A,H$469)","v":0},{"$f":"SUMIFS(raw_resource_build!$K:$K,raw_resource_build!$B:$B,$C482,raw_resource_build!$A:$A,I$469)","v":0},{"$f":"SUMIFS(raw_resource_build!$K:$K,raw_resource_build!$B:$B,$C482,raw_resource_build!$A:$A,J$469)","v":0},{"$f":"SUMIFS(raw_resource_build!$K:$K,raw_resource_build!$B:$B,$C482,raw_resource_build!$A:$A,K$469)","v":0},{"$f":"SUMIFS(raw_resource_build!$K:$K,raw_resource_build!$B:$B,$C482,raw_resource_build!$A:$A,L$469)","v":0},{"$f":"SUMIFS(raw_resource_build!$K:$K,raw_resource_build!$B:$B,$C482,raw_resource_build!$A:$A,M$469)","v":0},{"$f":"SUMIFS(raw_resource_build!$K:$K,raw_resource_build!$B:$B,$C482,raw_resource_build!$A:$A,N$469)","v":0},{"$f":"SUMIFS(raw_resource_build!$K:$K,raw_resource_build!$B:$B,$C482,raw_resource_build!$A:$A,O$469)","v":0},{"$f":"SUMIFS(raw_resource_build!$K:$K,raw_resource_build!$B:$B,$C482,raw_resource_build!$A:$A,P$469)","v":0},{"$f":"SUMIFS(raw_resource_build!$K:$K,raw_resource_build!$B:$B,$C482,raw_resource_build!$A:$A,Q$469)","v":0},{"$f":"SUMIFS(raw_resource_build!$K:$K,raw_resource_build!$B:$B,$C482,raw_resource_build!$A:$A,R$469)","v":0},{"$f":"SUMIFS(raw_resource_build!$K:$K,raw_resource_build!$B:$B,$C482,raw_resource_build!$A:$A,S$469)","v":0},{"$f":"SUMIFS(raw_resource_build!$K:$K,raw_resource_build!$B:$B,$C482,raw_resource_build!$A:$A,T$469)","v":0},{"$f":"SUMIFS(raw_resource_build!$K:$K,raw_resource_build!$B:$B,$C482,raw_resource_build!$A:$A,U$469)","v":0},{"$f":"SUMIFS(raw_resource_build!$K:$K,raw_resource_build!$B:$B,$C482,raw_resource_build!$A:$A,V$469)","v":0},{"$f":"SUMIFS(raw_resource_build!$K:$K,raw_resource_build!$B:$B,$C482,raw_resource_build!$A:$A,W$469)","v":0},{"$f":"SUMIFS(raw_resource_build!$K:$K,raw_resource_build!$B:$B,$C482,raw_resource_build!$A:$A,X$469)","v":0},{"$f":"SUMIFS(raw_resource_build!$K:$K,raw_resource_build!$B:$B,$C482,raw_resource_build!$A:$A,Y$469)","v":0},{"$f":"SUMIFS(raw_resource_build!$K:$K,raw_resource_build!$B:$B,$C482,raw_resource_build!$A:$A,Z$469)","v":0},{"$f":"SUMIFS(raw_resource_build!$K:$K,raw_resource_build!$B:$B,$C482,raw_resource_build!$A:$A,AA$469)","v":0},{"$f":"SUMIFS(raw_resource_build!$K:$K,raw_resource_build!$B:$B,$C482,raw_resource_build!$A:$A,AB$469)","v":0},{"$f":"SUMIFS(raw_resource_build!$K:$K,raw_resource_build!$B:$B,$C482,raw_resource_build!$A:$A,AC$469)","v":0},{"$f":"SUMIFS(raw_resource_build!$K:$K,raw_resource_build!$B:$B,$C482,raw_resource_build!$A:$A,AD$469)","v":0},{"$f":"SUMIFS(raw_resource_build!$K:$K,raw_resource_build!$B:$B,$C482,raw_resource_build!$A:$A,AE$469)","v":0},{"$f":"SUMIFS(raw_resource_build!$K:$K,raw_resource_build!$B:$B,$C482,raw_resource_build!$A:$A,AF$469)","v":0},{"$f":"SUMIFS(raw_resource_build!$K:$K,raw_resource_build!$B:$B,$C482,raw_resource_build!$A:$A,AG$469)","v":0},{"$f":"SUMIFS(raw_resource_build!$K:$K,raw_resource_build!$B:$B,$C482,raw_resource_build!$A:$A,AH$469)","v":0},{"$f":"SUMIFS(raw_resource_build!$K:$K,raw_resource_build!$B:$B,$C482,raw_resource_build!$A:$A,AI$469)","v":0},{"$f":"SUMIFS(raw_resource_build!$K:$K,raw_resource_build!$B:$B,$C482,raw_resource_build!$A:$A,AJ$469)","v":0},{"$f":"SUMIFS(raw_resource_build!$K:$K,raw_resource_build!$B:$B,$C482,raw_resource_build!$A:$A,AK$469)","v":0},{"$f":"SUMIFS(raw_resource_build!$K:$K,raw_resource_build!$B:$B,$C482,raw_resource_build!$A:$A,AL$469)","v":0},{"$f":"SUMIFS(raw_resource_build!$K:$K,raw_resource_build!$B:$B,$C482,raw_resource_build!$A:$A,AM$469)","v":0},{"$f":"SUMIFS(raw_resource_build!$K:$K,raw_resource_build!$B:$B,$C482,raw_resource_build!$A:$A,AN$469)","v":0}]
[null,null,{"$f":"Lists!B48","v":"Distributed_Wind"},{"$error":"#N/A"},{"$f":"SUMIFS(raw_resource_build!$K:$K,raw_resource_build!$B:$B,$C483,raw_resource_build!$A:$A,E$469)","v":0},{"$f":"SUMIFS(raw_resource_build!$K:$K,raw_resource_build!$B:$B,$C483,raw_resource_build!$A:$A,F$469)","v":0},{"$f":"SUMIFS(raw_resource_build!$K:$K,raw_resource_build!$B:$B,$C483,raw_resource_build!$A:$A,G$469)","v":0},{"$f":"SUMIFS(raw_resource_build!$K:$K,raw_resource_build!$B:$B,$C483,raw_resource_build!$A:$A,H$469)","v":0},{"$f":"SUMIFS(raw_resource_build!$K:$K,raw_resource_build!$B:$B,$C483,raw_resource_build!$A:$A,I$469)","v":0},{"$f":"SUMIFS(raw_resource_build!$K:$K,raw_resource_build!$B:$B,$C483,raw_resource_build!$A:$A,J$469)","v":0},{"$f":"SUMIFS(raw_resource_build!$K:$K,raw_resource_build!$B:$B,$C483,raw_resource_build!$A:$A,K$469)","v":0},{"$f":"SUMIFS(raw_resource_build!$K:$K,raw_resource_build!$B:$B,$C483,raw_resource_build!$A:$A,L$469)","v":0},{"$f":"SUMIFS(raw_resource_build!$K:$K,raw_resource_build!$B:$B,$C483,raw_resource_build!$A:$A,M$469)","v":0},{"$f":"SUMIFS(raw_resource_build!$K:$K,raw_resource_build!$B:$B,$C483,raw_resource_build!$A:$A,N$469)","v":0},{"$f":"SUMIFS(raw_resource_build!$K:$K,raw_resource_build!$B:$B,$C483,raw_resource_build!$A:$A,O$469)","v":0},{"$f":"SUMIFS(raw_resource_build!$K:$K,raw_resource_build!$B:$B,$C483,raw_resource_build!$A:$A,P$469)","v":0},{"$f":"SUMIFS(raw_resource_build!$K:$K,raw_resource_build!$B:$B,$C483,raw_resource_build!$A:$A,Q$469)","v":0},{"$f":"SUMIFS(raw_resource_build!$K:$K,raw_resource_build!$B:$B,$C483,raw_resource_build!$A:$A,R$469)","v":0},{"$f":"SUMIFS(raw_resource_build!$K:$K,raw_resource_build!$B:$B,$C483,raw_resource_build!$A:$A,S$469)","v":0},{"$f":"SUMIFS(raw_resource_build!$K:$K,raw_resource_build!$B:$B,$C483,raw_resource_build!$A:$A,T$469)","v":0},{"$f":"SUMIFS(raw_resource_build!$K:$K,raw_resource_build!$B:$B,$C483,raw_resource_build!$A:$A,U$469)","v":0},{"$f":"SUMIFS(raw_resource_build!$K:$K,raw_resource_build!$B:$B,$C483,raw_resource_build!$A:$A,V$469)","v":0},{"$f":"SUMIFS(raw_resource_build!$K:$K,raw_resource_build!$B:$B,$C483,raw_resource_build!$A:$A,W$469)","v":0},{"$f":"SUMIFS(raw_resource_build!$K:$K,raw_resource_build!$B:$B,$C483,raw_resource_build!$A:$A,X$469)","v":0},{"$f":"SUMIFS(raw_resource_build!$K:$K,raw_resource_build!$B:$B,$C483,raw_resource_build!$A:$A,Y$469)","v":0},{"$f":"SUMIFS(raw_resource_build!$K:$K,raw_resource_build!$B:$B,$C483,raw_resource_build!$A:$A,Z$469)","v":0},{"$f":"SUMIFS(raw_resource_build!$K:$K,raw_resource_build!$B:$B,$C483,raw_resource_build!$A:$A,AA$469)","v":0},{"$f":"SUMIFS(raw_resource_build!$K:$K,raw_resource_build!$B:$B,$C483,raw_resource_build!$A:$A,AB$469)","v":0},{"$f":"SUMIFS(raw_resource_build!$K:$K,raw_resource_build!$B:$B,$C483,raw_resource_build!$A:$A,AC$469)","v":0},{"$f":"SUMIFS(raw_resource_build!$K:$K,raw_resource_build!$B:$B,$C483,raw_resource_build!$A:$A,AD$469)","v":0},{"$f":"SUMIFS(raw_resource_build!$K:$K,raw_resource_build!$B:$B,$C483,raw_resource_build!$A:$A,AE$469)","v":0},{"$f":"SUMIFS(raw_resource_build!$K:$K,raw_resource_build!$B:$B,$C483,raw_resource_build!$A:$A,AF$469)","v":0},{"$f":"SUMIFS(raw_resource_build!$K:$K,raw_resource_build!$B:$B,$C483,raw_resource_build!$A:$A,AG$469)","v":0},{"$f":"SUMIFS(raw_resource_build!$K:$K,raw_resource_build!$B:$B,$C483,raw_resource_build!$A:$A,AH$469)","v":0},{"$f":"SUMIFS(raw_resource_build!$K:$K,raw_resource_build!$B:$B,$C483,raw_resource_build!$A:$A,AI$469)","v":0},{"$f":"SUMIFS(raw_resource_build!$K:$K,raw_resource_build!$B:$B,$C483,raw_resource_build!$A:$A,AJ$469)","v":0},{"$f":"SUMIFS(raw_resource_build!$K:$K,raw_resource_build!$B:$B,$C483,raw_resource_build!$A:$A,AK$469)","v":0},{"$f":"SUMIFS(raw_resource_build!$K:$K,raw_resource_build!$B:$B,$C483,raw_resource_build!$A:$A,AL$469)","v":0},{"$f":"SUMIFS(raw_resource_build!$K:$K,raw_resource_build!$B:$B,$C483,raw_resource_build!$A:$A,AM$469)","v":0},{"$f":"SUMIFS(raw_resource_build!$K:$K,raw_resource_build!$B:$B,$C483,raw_resource_build!$A:$A,AN$469)","v":0}]
[null,null,{"$f":"Lists!B49","v":"Greater_Imperial_Solar"},"SCADSNV-Greater_Imperial",{"$f":"SUMIFS(raw_resource_build!$K:$K,raw_resource_build!$B:$B,$C484,raw_resource_build!$A:$A,E$469)","v":0},{"$f":"SUMIFS(raw_resource_build!$K:$K,raw_resource_build!$B:$B,$C484,raw_resource_build!$A:$A,F$469)","v":0},{"$f":"SUMIFS(raw_resource_build!$K:$K,raw_resource_build!$B:$B,$C484,raw_resource_build!$A:$A,G$469)","v":0},{"$f":"SUMIFS(raw_resource_build!$K:$K,raw_resource_build!$B:$B,$C484,raw_resource_build!$A:$A,H$469)","v":0},{"$f":"SUMIFS(raw_resource_build!$K:$K,raw_resource_build!$B:$B,$C484,raw_resource_build!$A:$A,I$469)","v":0},{"$f":"SUMIFS(raw_resource_build!$K:$K,raw_resource_build!$B:$B,$C484,raw_resource_build!$A:$A,J$469)","v":0},{"$f":"SUMIFS(raw_resource_build!$K:$K,raw_resource_build!$B:$B,$C484,raw_resource_build!$A:$A,K$469)","v":0},{"$f":"SUMIFS(raw_resource_build!$K:$K,raw_resource_build!$B:$B,$C484,raw_resource_build!$A:$A,L$469)","v":0},{"$f":"SUMIFS(raw_resource_build!$K:$K,raw_resource_build!$B:$B,$C484,raw_resource_build!$A:$A,M$469)","v":0},{"$f":"SUMIFS(raw_resource_build!$K:$K,raw_resource_build!$B:$B,$C484,raw_resource_build!$A:$A,N$469)","v":0},{"$f":"SUMIFS(raw_resource_build!$K:$K,raw_resource_build!$B:$B,$C484,raw_resource_build!$A:$A,O$469)","v":0},{"$f":"SUMIFS(raw_resource_build!$K:$K,raw_resource_build!$B:$B,$C484,raw_resource_build!$A:$A,P$469)","v":0},{"$f":"SUMIFS(raw_resource_build!$K:$K,raw_resource_build!$B:$B,$C484,raw_resource_build!$A:$A,Q$469)","v":0},{"$f":"SUMIFS(raw_resource_build!$K:$K,raw_resource_build!$B:$B,$C484,raw_resource_build!$A:$A,R$469)","v":0},{"$f":"SUMIFS(raw_resource_build!$K:$K,raw_resource_build!$B:$B,$C484,raw_resource_build!$A:$A,S$469)","v":0},{"$f":"SUMIFS(raw_resource_build!$K:$K,raw_resource_build!$B:$B,$C484,raw_resource_build!$A:$A,T$469)","v":0},{"$f":"SUMIFS(raw_resource_build!$K:$K,raw_resource_build!$B:$B,$C484,raw_resource_build!$A:$A,U$469)","v":0},{"$f":"SUMIFS(raw_resource_build!$K:$K,raw_resource_build!$B:$B,$C484,raw_resource_build!$A:$A,V$469)","v":0},{"$f":"SUMIFS(raw_resource_build!$K:$K,raw_resource_build!$B:$B,$C484,raw_resource_build!$A:$A,W$469)","v":0},{"$f":"SUMIFS(raw_resource_build!$K:$K,raw_resource_build!$B:$B,$C484,raw_resource_build!$A:$A,X$469)","v":0},{"$f":"SUMIFS(raw_resource_build!$K:$K,raw_resource_build!$B:$B,$C484,raw_resource_build!$A:$A,Y$469)","v":0},{"$f":"SUMIFS(raw_resource_build!$K:$K,raw_resource_build!$B:$B,$C484,raw_resource_build!$A:$A,Z$469)","v":0},{"$f":"SUMIFS(raw_resource_build!$K:$K,raw_resource_build!$B:$B,$C484,raw_resource_build!$A:$A,AA$469)","v":0},{"$f":"SUMIFS(raw_resource_build!$K:$K,raw_resource_build!$B:$B,$C484,raw_resource_build!$A:$A,AB$469)","v":0},{"$f":"SUMIFS(raw_resource_build!$K:$K,raw_resource_build!$B:$B,$C484,raw_resource_build!$A:$A,AC$469)","v":0},{"$f":"SUMIFS(raw_resource_build!$K:$K,raw_resource_build!$B:$B,$C484,raw_resource_build!$A:$A,AD$469)","v":0},{"$f":"SUMIFS(raw_resource_build!$K:$K,raw_resource_build!$B:$B,$C484,raw_resource_build!$A:$A,AE$469)","v":0},{"$f":"SUMIFS(raw_resource_build!$K:$K,raw_resource_build!$B:$B,$C484,raw_resource_build!$A:$A,AF$469)","v":0},{"$f":"SUMIFS(raw_resource_build!$K:$K,raw_resource_build!$B:$B,$C484,raw_resource_build!$A:$A,AG$469)","v":0},{"$f":"SUMIFS(raw_resource_build!$K:$K,raw_resource_build!$B:$B,$C484,raw_resource_build!$A:$A,AH$469)","v":0},{"$f":"SUMIFS(raw_resource_build!$K:$K,raw_resource_build!$B:$B,$C484,raw_resource_build!$A:$A,AI$469)","v":0},{"$f":"SUMIFS(raw_resource_build!$K:$K,raw_resource_build!$B:$B,$C484,raw_resource_build!$A:$A,AJ$469)","v":0},{"$f":"SUMIFS(raw_resource_build!$K:$K,raw_resource_build!$B:$B,$C484,raw_resource_build!$A:$A,AK$469)","v":0},{"$f":"SUMIFS(raw_resource_build!$K:$K,raw_resource_build!$B:$B,$C484,raw_resource_build!$A:$A,AL$469)","v":0},{"$f":"SUMIFS(raw_resource_build!$K:$K,raw_resource_build!$B:$B,$C484,raw_resource_build!$A:$A,AM$469)","v":0},{"$f":"SUMIFS(raw_resource_build!$K:$K,raw_resource_build!$B:$B,$C484,raw_resource_build!$A:$A,AN$469)","v":0}]
[null,null,{"$f":"Lists!B50","v":"Greater_Imperial_Wind"},"SCADSNV-Greater_Imperial",{"$f":"SUMIFS(raw_resource_build!$K:$K,raw_resource_build!$B:$B,$C485,raw_resource_build!$A:$A,E$469)","v":0},{"$f":"SUMIFS(raw_resource_build!$K:$K,raw_resource_build!$B:$B,$C485,raw_resource_build!$A:$A,F$469)","v":0},{"$f":"SUMIFS(raw_resource_build!$K:$K,raw_resource_build!$B:$B,$C485,raw_resource_build!$A:$A,G$469)","v":0},{"$f":"SUMIFS(raw_resource_build!$K:$K,raw_resource_build!$B:$B,$C485,raw_resource_build!$A:$A,H$469)","v":0},{"$f":"SUMIFS(raw_resource_build!$K:$K,raw_resource_build!$B:$B,$C485,raw_resource_build!$A:$A,I$469)","v":0},{"$f":"SUMIFS(raw_resource_build!$K:$K,raw_resource_build!$B:$B,$C485,raw_resource_build!$A:$A,J$469)","v":0},{"$f":"SUMIFS(raw_resource_build!$K:$K,raw_resource_build!$B:$B,$C485,raw_resource_build!$A:$A,K$469)","v":0},{"$f":"SUMIFS(raw_resource_build!$K:$K,raw_resource_build!$B:$B,$C485,raw_resource_build!$A:$A,L$469)","v":0},{"$f":"SUMIFS(raw_resource_build!$K:$K,raw_resource_build!$B:$B,$C485,raw_resource_build!$A:$A,M$469)","v":0},{"$f":"SUMIFS(raw_resource_build!$K:$K,raw_resource_build!$B:$B,$C485,raw_resource_build!$A:$A,N$469)","v":0},{"$f":"SUMIFS(raw_resource_build!$K:$K,raw_resource_build!$B:$B,$C485,raw_resource_build!$A:$A,O$469)","v":0},{"$f":"SUMIFS(raw_resource_build!$K:$K,raw_resource_build!$B:$B,$C485,raw_resource_build!$A:$A,P$469)","v":0},{"$f":"SUMIFS(raw_resource_build!$K:$K,raw_resource_build!$B:$B,$C485,raw_resource_build!$A:$A,Q$469)","v":0},{"$f":"SUMIFS(raw_resource_build!$K:$K,raw_resource_build!$B:$B,$C485,raw_resource_build!$A:$A,R$469)","v":0},{"$f":"SUMIFS(raw_resource_build!$K:$K,raw_resource_build!$B:$B,$C485,raw_resource_build!$A:$A,S$469)","v":0},{"$f":"SUMIFS(raw_resource_build!$K:$K,raw_resource_build!$B:$B,$C485,raw_resource_build!$A:$A,T$469)","v":0},{"$f":"SUMIFS(raw_resource_build!$K:$K,raw_resource_build!$B:$B,$C485,raw_resource_build!$A:$A,U$469)","v":0},{"$f":"SUMIFS(raw_resource_build!$K:$K,raw_resource_build!$B:$B,$C485,raw_resource_build!$A:$A,V$469)","v":0},{"$f":"SUMIFS(raw_resource_build!$K:$K,raw_resource_build!$B:$B,$C485,raw_resource_build!$A:$A,W$469)","v":0},{"$f":"SUMIFS(raw_resource_build!$K:$K,raw_resource_build!$B:$B,$C485,raw_resource_build!$A:$A,X$469)","v":0},{"$f":"SUMIFS(raw_resource_build!$K:$K,raw_resource_build!$B:$B,$C485,raw_resource_build!$A:$A,Y$469)","v":0},{"$f":"SUMIFS(raw_resource_build!$K:$K,raw_resource_build!$B:$B,$C485,raw_resource_build!$A:$A,Z$469)","v":0},{"$f":"SUMIFS(raw_resource_build!$K:$K,raw_resource_build!$B:$B,$C485,raw_resource_build!$A:$A,AA$469)","v":0},{"$f":"SUMIFS(raw_resource_build!$K:$K,raw_resource_build!$B:$B,$C485,raw_resource_build!$A:$A,AB$469)","v":0},{"$f":"SUMIFS(raw_resource_build!$K:$K,raw_resource_build!$B:$B,$C485,raw_resource_build!$A:$A,AC$469)","v":0},{"$f":"SUMIFS(raw_resource_build!$K:$K,raw_resource_build!$B:$B,$C485,raw_resource_build!$A:$A,AD$469)","v":0},{"$f":"SUMIFS(raw_resource_build!$K:$K,raw_resource_build!$B:$B,$C485,raw_resource_build!$A:$A,AE$469)","v":0},{"$f":"SUMIFS(raw_resource_build!$K:$K,raw_resource_build!$B:$B,$C485,raw_resource_build!$A:$A,AF$469)","v":0},{"$f":"SUMIFS(raw_resource_build!$K:$K,raw_resource_build!$B:$B,$C485,raw_resource_build!$A:$A,AG$469)","v":0},{"$f":"SUMIFS(raw_resource_build!$K:$K,raw_resource_build!$B:$B,$C485,raw_resource_build!$A:$A,AH$469)","v":0},{"$f":"SUMIFS(raw_resource_build!$K:$K,raw_resource_build!$B:$B,$C485,raw_resource_build!$A:$A,AI$469)","v":0},{"$f":"SUMIFS(raw_resource_build!$K:$K,raw_resource_build!$B:$B,$C485,raw_resource_build!$A:$A,AJ$469)","v":0},{"$f":"SUMIFS(raw_resource_build!$K:$K,raw_resource_build!$B:$B,$C485,raw_resource_build!$A:$A,AK$469)","v":0},{"$f":"SUMIFS(raw_resource_build!$K:$K,raw_resource_build!$B:$B,$C485,raw_resource_build!$A:$A,AL$469)","v":0},{"$f":"SUMIFS(raw_resource_build!$K:$K,raw_resource_build!$B:$B,$C485,raw_resource_build!$A:$A,AM$469)","v":0},{"$f":"SUMIFS(raw_resource_build!$K:$K,raw_resource_build!$B:$B,$C485,raw_resource_build!$A:$A,AN$469)","v":0}]
[null,null,{"$f":"Lists!B51","v":"Greater_Kramer_Wind"},"Greater_Kramer",{"$f":"SUMIFS(raw_resource_build!$K:$K,raw_resource_build!$B:$B,$C486,raw_resource_build!$A:$A,E$469)","v":0},{"$f":"SUMIFS(raw_resource_build!$K:$K,raw_resource_build!$B:$B,$C486,raw_resource_build!$A:$A,F$469)","v":0},{"$f":"SUMIFS(raw_resource_build!$K:$K,raw_resource_build!$B:$B,$C486,raw_resource_build!$A:$A,G$469)","v":0},{"$f":"SUMIFS(raw_resource_build!$K:$K,raw_resource_build!$B:$B,$C486,raw_resource_build!$A:$A,H$469)","v":0},{"$f":"SUMIFS(raw_resource_build!$K:$K,raw_resource_build!$B:$B,$C486,raw_resource_build!$A:$A,I$469)","v":0},{"$f":"SUMIFS(raw_resource_build!$K:$K,raw_resource_build!$B:$B,$C486,raw_resource_build!$A:$A,J$469)","v":0},{"$f":"SUMIFS(raw_resource_build!$K:$K,raw_resource_build!$B:$B,$C486,raw_resource_build!$A:$A,K$469)","v":0},{"$f":"SUMIFS(raw_resource_build!$K:$K,raw_resource_build!$B:$B,$C486,raw_resource_build!$A:$A,L$469)","v":0},{"$f":"SUMIFS(raw_resource_build!$K:$K,raw_resource_build!$B:$B,$C486,raw_resource_build!$A:$A,M$469)","v":0},{"$f":"SUMIFS(raw_resource_build!$K:$K,raw_resource_build!$B:$B,$C486,raw_resource_build!$A:$A,N$469)","v":0},{"$f":"SUMIFS(raw_resource_build!$K:$K,raw_resource_build!$B:$B,$C486,raw_resource_build!$A:$A,O$469)","v":0},{"$f":"SUMIFS(raw_resource_build!$K:$K,raw_resource_build!$B:$B,$C486,raw_resource_build!$A:$A,P$469)","v":0},{"$f":"SUMIFS(raw_resource_build!$K:$K,raw_resource_build!$B:$B,$C486,raw_resource_build!$A:$A,Q$469)","v":0},{"$f":"SUMIFS(raw_resource_build!$K:$K,raw_resource_build!$B:$B,$C486,raw_resource_build!$A:$A,R$469)","v":0},{"$f":"SUMIFS(raw_resource_build!$K:$K,raw_resource_build!$B:$B,$C486,raw_resource_build!$A:$A,S$469)","v":0},{"$f":"SUMIFS(raw_resource_build!$K:$K,raw_resource_build!$B:$B,$C486,raw_resource_build!$A:$A,T$469)","v":0},{"$f":"SUMIFS(raw_resource_build!$K:$K,raw_resource_build!$B:$B,$C486,raw_resource_build!$A:$A,U$469)","v":0},{"$f":"SUMIFS(raw_resource_build!$K:$K,raw_resource_build!$B:$B,$C486,raw_resource_build!$A:$A,V$469)","v":0},{"$f":"SUMIFS(raw_resource_build!$K:$K,raw_resource_build!$B:$B,$C486,raw_resource_build!$A:$A,W$469)","v":0},{"$f":"SUMIFS(raw_resource_build!$K:$K,raw_resource_build!$B:$B,$C486,raw_resource_build!$A:$A,X$469)","v":0},{"$f":"SUMIFS(raw_resource_build!$K:$K,raw_resource_build!$B:$B,$C486,raw_resource_build!$A:$A,Y$469)","v":0},{"$f":"SUMIFS(raw_resource_build!$K:$K,raw_resource_build!$B:$B,$C486,raw_resource_build!$A:$A,Z$469)","v":0},{"$f":"SUMIFS(raw_resource_build!$K:$K,raw_resource_build!$B:$B,$C486,raw_resource_build!$A:$A,AA$469)","v":0},{"$f":"SUMIFS(raw_resource_build!$K:$K,raw_resource_build!$B:$B,$C486,raw_resource_build!$A:$A,AB$469)","v":0},{"$f":"SUMIFS(raw_resource_build!$K:$K,raw_resource_build!$B:$B,$C486,raw_resource_build!$A:$A,AC$469)","v":0},{"$f":"SUMIFS(raw_resource_build!$K:$K,raw_resource_build!$B:$B,$C486,raw_resource_build!$A:$A,AD$469)","v":0},{"$f":"SUMIFS(raw_resource_build!$K:$K,raw_resource_build!$B:$B,$C486,raw_resource_build!$A:$A,AE$469)","v":0},{"$f":"SUMIFS(raw_resource_build!$K:$K,raw_resource_build!$B:$B,$C486,raw_resource_build!$A:$A,AF$469)","v":0},{"$f":"SUMIFS(raw_resource_build!$K:$K,raw_resource_build!$B:$B,$C486,raw_resource_build!$A:$A,AG$469)","v":0},{"$f":"SUMIFS(raw_resource_build!$K:$K,raw_resource_build!$B:$B,$C486,raw_resource_build!$A:$A,AH$469)","v":0},{"$f":"SUMIFS(raw_resource_build!$K:$K,raw_resource_build!$B:$B,$C486,raw_resource_build!$A:$A,AI$469)","v":0},{"$f":"SUMIFS(raw_resource_build!$K:$K,raw_resource_build!$B:$B,$C486,raw_resource_build!$A:$A,AJ$469)","v":0},{"$f":"SUMIFS(raw_resource_build!$K:$K,raw_resource_build!$B:$B,$C486,raw_resource_build!$A:$A,AK$469)","v":0},{"$f":"SUMIFS(raw_resource_build!$K:$K,raw_resource_build!$B:$B,$C486,raw_resource_build!$A:$A,AL$469)","v":0},{"$f":"SUMIFS(raw_resource_build!$K:$K,raw_resource_build!$B:$B,$C486,raw_resource_build!$A:$A,AM$469)","v":0},{"$f":"SUMIFS(raw_resource_build!$K:$K,raw_resource_build!$B:$B,$C486,raw_resource_build!$A:$A,AN$469)","v":0}]
[null,null,{"$f":"Lists!B52","v":"Humboldt_Wind"},"Sacramento_River-Humboldt",{"$f":"SUMIFS(raw_resource_build!$K:$K,raw_resource_build!$B:$B,$C487,raw_resource_build!$A:$A,E$469)","v":0},{"$f":"SUMIFS(raw_resource_build!$K:$K,raw_resource_build!$B:$B,$C487,raw_resource_build!$A:$A,F$469)","v":0},{"$f":"SUMIFS(raw_resource_build!$K:$K,raw_resource_build!$B:$B,$C487,raw_resource_build!$A:$A,G$469)","v":0},{"$f":"SUMIFS(raw_resource_build!$K:$K,raw_resource_build!$B:$B,$C487,raw_resource_build!$A:$A,H$469)","v":0},{"$f":"SUMIFS(raw_resource_build!$K:$K,raw_resource_build!$B:$B,$C487,raw_resource_build!$A:$A,I$469)","v":0},{"$f":"SUMIFS(raw_resource_build!$K:$K,raw_resource_build!$B:$B,$C487,raw_resource_build!$A:$A,J$469)","v":0},{"$f":"SUMIFS(raw_resource_build!$K:$K,raw_resource_build!$B:$B,$C487,raw_resource_build!$A:$A,K$469)","v":0},{"$f":"SUMIFS(raw_resource_build!$K:$K,raw_resource_build!$B:$B,$C487,raw_resource_build!$A:$A,L$469)","v":0},{"$f":"SUMIFS(raw_resource_build!$K:$K,raw_resource_build!$B:$B,$C487,raw_resource_build!$A:$A,M$469)","v":0},{"$f":"SUMIFS(raw_resource_build!$K:$K,raw_resource_build!$B:$B,$C487,raw_resource_build!$A:$A,N$469)","v":0},{"$f":"SUMIFS(raw_resource_build!$K:$K,raw_resource_build!$B:$B,$C487,raw_resource_build!$A:$A,O$469)","v":0},{"$f":"SUMIFS(raw_resource_build!$K:$K,raw_resource_build!$B:$B,$C487,raw_resource_build!$A:$A,P$469)","v":0},{"$f":"SUMIFS(raw_resource_build!$K:$K,raw_resource_build!$B:$B,$C487,raw_resource_build!$A:$A,Q$469)","v":0},{"$f":"SUMIFS(raw_resource_build!$K:$K,raw_resource_build!$B:$B,$C487,raw_resource_build!$A:$A,R$469)","v":0},{"$f":"SUMIFS(raw_resource_build!$K:$K,raw_resource_build!$B:$B,$C487,raw_resource_build!$A:$A,S$469)","v":0},{"$f":"SUMIFS(raw_resource_build!$K:$K,raw_resource_build!$B:$B,$C487,raw_resource_build!$A:$A,T$469)","v":0},{"$f":"SUMIFS(raw_resource_build!$K:$K,raw_resource_build!$B:$B,$C487,raw_resource_build!$A:$A,U$469)","v":0},{"$f":"SUMIFS(raw_resource_build!$K:$K,raw_resource_build!$B:$B,$C487,raw_resource_build!$A:$A,V$469)","v":0},{"$f":"SUMIFS(raw_resource_build!$K:$K,raw_resource_build!$B:$B,$C487,raw_resource_build!$A:$A,W$469)","v":0},{"$f":"SUMIFS(raw_resource_build!$K:$K,raw_resource_build!$B:$B,$C487,raw_resource_build!$A:$A,X$469)","v":0},{"$f":"SUMIFS(raw_resource_build!$K:$K,raw_resource_build!$B:$B,$C487,raw_resource_build!$A:$A,Y$469)","v":0},{"$f":"SUMIFS(raw_resource_build!$K:$K,raw_resource_build!$B:$B,$C487,raw_resource_build!$A:$A,Z$469)","v":0},{"$f":"SUMIFS(raw_resource_build!$K:$K,raw_resource_build!$B:$B,$C487,raw_resource_build!$A:$A,AA$469)","v":0},{"$f":"SUMIFS(raw_resource_build!$K:$K,raw_resource_build!$B:$B,$C487,raw_resource_build!$A:$A,AB$469)","v":0},{"$f":"SUMIFS(raw_resource_build!$K:$K,raw_resource_build!$B:$B,$C487,raw_resource_build!$A:$A,AC$469)","v":0},{"$f":"SUMIFS(raw_resource_build!$K:$K,raw_resource_build!$B:$B,$C487,raw_resource_build!$A:$A,AD$469)","v":0},{"$f":"SUMIFS(raw_resource_build!$K:$K,raw_resource_build!$B:$B,$C487,raw_resource_build!$A:$A,AE$469)","v":0},{"$f":"SUMIFS(raw_resource_build!$K:$K,raw_resource_build!$B:$B,$C487,raw_resource_build!$A:$A,AF$469)","v":0},{"$f":"SUMIFS(raw_resource_build!$K:$K,raw_resource_build!$B:$B,$C487,raw_resource_build!$A:$A,AG$469)","v":0},{"$f":"SUMIFS(raw_resource_build!$K:$K,raw_resource_build!$B:$B,$C487,raw_resource_build!$A:$A,AH$469)","v":0},{"$f":"SUMIFS(raw_resource_build!$K:$K,raw_resource_build!$B:$B,$C487,raw_resource_build!$A:$A,AI$469)","v":0},{"$f":"SUMIFS(raw_resource_build!$K:$K,raw_resource_build!$B:$B,$C487,raw_resource_build!$A:$A,AJ$469)","v":0},{"$f":"SUMIFS(raw_resource_build!$K:$K,raw_resource_build!$B:$B,$C487,raw_resource_build!$A:$A,AK$469)","v":0},{"$f":"SUMIFS(raw_resource_build!$K:$K,raw_resource_build!$B:$B,$C487,raw_resource_build!$A:$A,AL$469)","v":0},{"$f":"SUMIFS(raw_resource_build!$K:$K,raw_resource_build!$B:$B,$C487,raw_resource_build!$A:$A,AM$469)","v":0},{"$f":"SUMIFS(raw_resource_build!$K:$K,raw_resource_build!$B:$B,$C487,raw_resource_build!$A:$A,AN$469)","v":0}]
[null,null,{"$f":"Lists!B53","v":"Inyokern_North_Kramer_Solar"},"Inyokern_North_Kramer-Greater_Kramer",{"$f":"SUMIFS(raw_resource_build!$K:$K,raw_resource_build!$B:$B,$C488,raw_resource_build!$A:$A,E$469)","v":0},{"$f":"SUMIFS(raw_resource_build!$K:$K,raw_resource_build!$B:$B,$C488,raw_resource_build!$A:$A,F$469)","v":0},{"$f":"SUMIFS(raw_resource_build!$K:$K,raw_resource_build!$B:$B,$C488,raw_resource_build!$A:$A,G$469)","v":0},{"$f":"SUMIFS(raw_resource_build!$K:$K,raw_resource_build!$B:$B,$C488,raw_resource_build!$A:$A,H$469)","v":0},{"$f":"SUMIFS(raw_resource_build!$K:$K,raw_resource_build!$B:$B,$C488,raw_resource_build!$A:$A,I$469)","v":0},{"$f":"SUMIFS(raw_resource_build!$K:$K,raw_resource_build!$B:$B,$C488,raw_resource_build!$A:$A,J$469)","v":0},{"$f":"SUMIFS(raw_resource_build!$K:$K,raw_resource_build!$B:$B,$C488,raw_resource_build!$A:$A,K$469)","v":35},{"$f":"SUMIFS(raw_resource_build!$K:$K,raw_resource_build!$B:$B,$C488,raw_resource_build!$A:$A,L$469)","v":73},{"$f":"SUMIFS(raw_resource_build!$K:$K,raw_resource_build!$B:$B,$C488,raw_resource_build!$A:$A,M$469)","v":73},{"$f":"SUMIFS(raw_resource_build!$K:$K,raw_resource_build!$B:$B,$C488,raw_resource_build!$A:$A,N$469)","v":73},{"$f":"SUMIFS(raw_resource_build!$K:$K,raw_resource_build!$B:$B,$C488,raw_resource_build!$A:$A,O$469)","v":0},{"$f":"SUMIFS(raw_resource_build!$K:$K,raw_resource_build!$B:$B,$C488,raw_resource_build!$A:$A,P$469)","v":73},{"$f":"SUMIFS(raw_resource_build!$K:$K,raw_resource_build!$B:$B,$C488,raw_resource_build!$A:$A,Q$469)","v":0},{"$f":"SUMIFS(raw_resource_build!$K:$K,raw_resource_build!$B:$B,$C488,raw_resource_build!$A:$A,R$469)","v":0},{"$f":"SUMIFS(raw_resource_build!$K:$K,raw_resource_build!$B:$B,$C488,raw_resource_build!$A:$A,S$469)","v":0},{"$f":"SUMIFS(raw_resource_build!$K:$K,raw_resource_build!$B:$B,$C488,raw_resource_build!$A:$A,T$469)","v":73},{"$f":"SUMIFS(raw_resource_build!$K:$K,raw_resource_build!$B:$B,$C488,raw_resource_build!$A:$A,U$469)","v":0},{"$f":"SUMIFS(raw_resource_build!$K:$K,raw_resource_build!$B:$B,$C488,raw_resource_build!$A:$A,V$469)","v":0},{"$f":"SUMIFS(raw_resource_build!$K:$K,raw_resource_build!$B:$B,$C488,raw_resource_build!$A:$A,W$469)","v":0},{"$f":"SUMIFS(raw_resource_build!$K:$K,raw_resource_build!$B:$B,$C488,raw_resource_build!$A:$A,X$469)","v":0},{"$f":"SUMIFS(raw_resource_build!$K:$K,raw_resource_build!$B:$B,$C488,raw_resource_build!$A:$A,Y$469)","v":0},{"$f":"SUMIFS(raw_resource_build!$K:$K,raw_resource_build!$B:$B,$C488,raw_resource_build!$A:$A,Z$469)","v":0},{"$f":"SUMIFS(raw_resource_build!$K:$K,raw_resource_build!$B:$B,$C488,raw_resource_build!$A:$A,AA$469)","v":0},{"$f":"SUMIFS(raw_resource_build!$K:$K,raw_resource_build!$B:$B,$C488,raw_resource_build!$A:$A,AB$469)","v":0},{"$f":"SUMIFS(raw_resource_build!$K:$K,raw_resource_build!$B:$B,$C488,raw_resource_build!$A:$A,AC$469)","v":0},{"$f":"SUMIFS(raw_resource_build!$K:$K,raw_resource_build!$B:$B,$C488,raw_resource_build!$A:$A,AD$469)","v":0},{"$f":"SUMIFS(raw_resource_build!$K:$K,raw_resource_build!$B:$B,$C488,raw_resource_build!$A:$A,AE$469)","v":0},{"$f":"SUMIFS(raw_resource_build!$K:$K,raw_resource_build!$B:$B,$C488,raw_resource_build!$A:$A,AF$469)","v":0},{"$f":"SUMIFS(raw_resource_build!$K:$K,raw_resource_build!$B:$B,$C488,raw_resource_build!$A:$A,AG$469)","v":0},{"$f":"SUMIFS(raw_resource_build!$K:$K,raw_resource_build!$B:$B,$C488,raw_resource_build!$A:$A,AH$469)","v":0},{"$f":"SUMIFS(raw_resource_build!$K:$K,raw_resource_build!$B:$B,$C488,raw_resource_build!$A:$A,AI$469)","v":73},{"$f":"SUMIFS(raw_resource_build!$K:$K,raw_resource_build!$B:$B,$C488,raw_resource_build!$A:$A,AJ$469)","v":0},{"$f":"SUMIFS(raw_resource_build!$K:$K,raw_resource_build!$B:$B,$C488,raw_resource_build!$A:$A,AK$469)","v":0},{"$f":"SUMIFS(raw_resource_build!$K:$K,raw_resource_build!$B:$B,$C488,raw_resource_build!$A:$A,AL$469)","v":0},{"$f":"SUMIFS(raw_resource_build!$K:$K,raw_resource_build!$B:$B,$C488,raw_resource_build!$A:$A,AM$469)","v":0},{"$f":"SUMIFS(raw_resource_build!$K:$K,raw_resource_build!$B:$B,$C488,raw_resource_build!$A:$A,AN$469)","v":0}]
[null,null,{"$f":"Lists!B54","v":"Kern_Greater_Carrizo_Solar"},"Kern_Greater_Carrizo-SPGE",{"$f":"SUMIFS(raw_resource_build!$K:$K,raw_resource_build!$B:$B,$C489,raw_resource_build!$A:$A,E$469)","v":0},{"$f":"SUMIFS(raw_resource_build!$K:$K,raw_resource_build!$B:$B,$C489,raw_resource_build!$A:$A,F$469)","v":0},{"$f":"SUMIFS(raw_resource_build!$K:$K,raw_resource_build!$B:$B,$C489,raw_resource_build!$A:$A,G$469)","v":0},{"$f":"SUMIFS(raw_resource_build!$K:$K,raw_resource_build!$B:$B,$C489,raw_resource_build!$A:$A,H$469)","v":0},{"$f":"SUMIFS(raw_resource_build!$K:$K,raw_resource_build!$B:$B,$C489,raw_resource_build!$A:$A,I$469)","v":0},{"$f":"SUMIFS(raw_resource_build!$K:$K,raw_resource_build!$B:$B,$C489,raw_resource_build!$A:$A,J$469)","v":0},{"$f":"SUMIFS(raw_resource_build!$K:$K,raw_resource_build!$B:$B,$C489,raw_resource_build!$A:$A,K$469)","v":0},{"$f":"SUMIFS(raw_resource_build!$K:$K,raw_resource_build!$B:$B,$C489,raw_resource_build!$A:$A,L$469)","v":0},{"$f":"SUMIFS(raw_resource_build!$K:$K,raw_resource_build!$B:$B,$C489,raw_resource_build!$A:$A,M$469)","v":114.26},{"$f":"SUMIFS(raw_resource_build!$K:$K,raw_resource_build!$B:$B,$C489,raw_resource_build!$A:$A,N$469)","v":114.26},{"$f":"SUMIFS(raw_resource_build!$K:$K,raw_resource_build!$B:$B,$C489,raw_resource_build!$A:$A,O$469)","v":0},{"$f":"SUMIFS(raw_resource_build!$K:$K,raw_resource_build!$B:$B,$C489,raw_resource_build!$A:$A,P$469)","v":437},{"$f":"SUMIFS(raw_resource_build!$K:$K,raw_resource_build!$B:$B,$C489,raw_resource_build!$A:$A,Q$469)","v":0},{"$f":"SUMIFS(raw_resource_build!$K:$K,raw_resource_build!$B:$B,$C489,raw_resource_build!$A:$A,R$469)","v":0},{"$f":"SUMIFS(raw_resource_build!$K:$K,raw_resource_build!$B:$B,$C489,raw_resource_build!$A:$A,S$469)","v":0},{"$f":"SUMIFS(raw_resource_build!$K:$K,raw_resource_build!$B:$B,$C489,raw_resource_build!$A:$A,T$469)","v":7629},{"$f":"SUMIFS(raw_resource_build!$K:$K,raw_resource_build!$B:$B,$C489,raw_resource_build!$A:$A,U$469)","v":0},{"$f":"SUMIFS(raw_resource_build!$K:$K,raw_resource_build!$B:$B,$C489,raw_resource_build!$A:$A,V$469)","v":0},{"$f":"SUMIFS(raw_resource_build!$K:$K,raw_resource_build!$B:$B,$C489,raw_resource_build!$A:$A,W$469)","v":0},{"$f":"SUMIFS(raw_resource_build!$K:$K,raw_resource_build!$B:$B,$C489,raw_resource_build!$A:$A,X$469)","v":0},{"$f":"SUMIFS(raw_resource_build!$K:$K,raw_resource_build!$B:$B,$C489,raw_resource_build!$A:$A,Y$469)","v":0},{"$f":"SUMIFS(raw_resource_build!$K:$K,raw_resource_build!$B:$B,$C489,raw_resource_build!$A:$A,Z$469)","v":0},{"$f":"SUMIFS(raw_resource_build!$K:$K,raw_resource_build!$B:$B,$C489,raw_resource_build!$A:$A,AA$469)","v":0},{"$f":"SUMIFS(raw_resource_build!$K:$K,raw_resource_build!$B:$B,$C489,raw_resource_build!$A:$A,AB$469)","v":0},{"$f":"SUMIFS(raw_resource_build!$K:$K,raw_resource_build!$B:$B,$C489,raw_resource_build!$A:$A,AC$469)","v":0},{"$f":"SUMIFS(raw_resource_build!$K:$K,raw_resource_build!$B:$B,$C489,raw_resource_build!$A:$A,AD$469)","v":0},{"$f":"SUMIFS(raw_resource_build!$K:$K,raw_resource_build!$B:$B,$C489,raw_resource_build!$A:$A,AE$469)","v":0},{"$f":"SUMIFS(raw_resource_build!$K:$K,raw_resource_build!$B:$B,$C489,raw_resource_build!$A:$A,AF$469)","v":0},{"$f":"SUMIFS(raw_resource_build!$K:$K,raw_resource_build!$B:$B,$C489,raw_resource_build!$A:$A,AG$469)","v":0},{"$f":"SUMIFS(raw_resource_build!$K:$K,raw_resource_build!$B:$B,$C489,raw_resource_build!$A:$A,AH$469)","v":0},{"$f":"SUMIFS(raw_resource_build!$K:$K,raw_resource_build!$B:$B,$C489,raw_resource_build!$A:$A,AI$469)","v":7629},{"$f":"SUMIFS(raw_resource_build!$K:$K,raw_resource_build!$B:$B,$C489,raw_resource_build!$A:$A,AJ$469)","v":0},{"$f":"SUMIFS(raw_resource_build!$K:$K,raw_resource_build!$B:$B,$C489,raw_resource_build!$A:$A,AK$469)","v":0},{"$f":"SUMIFS(raw_resource_build!$K:$K,raw_resource_build!$B:$B,$C489,raw_resource_build!$A:$A,AL$469)","v":0},{"$f":"SUMIFS(raw_resource_build!$K:$K,raw_resource_build!$B:$B,$C489,raw_resource_build!$A:$A,AM$469)","v":0},{"$f":"SUMIFS(raw_resource_build!$K:$K,raw_resource_build!$B:$B,$C489,raw_resource_build!$A:$A,AN$469)","v":0}]
[null,null,{"$f":"Lists!B55","v":"Kern_Greater_Carrizo_Wind"},"Kern_Greater_Carrizo-SPGE",{"$f":"SUMIFS(raw_resource_build!$K:$K,raw_resource_build!$B:$B,$C490,raw_resource_build!$A:$A,E$469)","v":0},{"$f":"SUMIFS(raw_resource_build!$K:$K,raw_resource_build!$B:$B,$C490,raw_resource_build!$A:$A,F$469)","v":0},{"$f":"SUMIFS(raw_resource_build!$K:$K,raw_resource_build!$B:$B,$C490,raw_resource_build!$A:$A,G$469)","v":0},{"$f":"SUMIFS(raw_resource_build!$K:$K,raw_resource_build!$B:$B,$C490,raw_resource_build!$A:$A,H$469)","v":0},{"$f":"SUMIFS(raw_resource_build!$K:$K,raw_resource_build!$B:$B,$C490,raw_resource_build!$A:$A,I$469)","v":0},{"$f":"SUMIFS(raw_resource_build!$K:$K,raw_resource_build!$B:$B,$C490,raw_resource_build!$A:$A,J$469)","v":0},{"$f":"SUMIFS(raw_resource_build!$K:$K,raw_resource_build!$B:$B,$C490,raw_resource_build!$A:$A,K$469)","v":0},{"$f":"SUMIFS(raw_resource_build!$K:$K,raw_resource_build!$B:$B,$C490,raw_resource_build!$A:$A,L$469)","v":60},{"$f":"SUMIFS(raw_resource_build!$K:$K,raw_resource_build!$B:$B,$C490,raw_resource_build!$A:$A,M$469)","v":60},{"$f":"SUMIFS(raw_resource_build!$K:$K,raw_resource_build!$B:$B,$C490,raw_resource_build!$A:$A,N$469)","v":60},{"$f":"SUMIFS(raw_resource_build!$K:$K,raw_resource_build!$B:$B,$C490,raw_resource_build!$A:$A,O$469)","v":0},{"$f":"SUMIFS(raw_resource_build!$K:$K,raw_resource_build!$B:$B,$C490,raw_resource_build!$A:$A,P$469)","v":60},{"$f":"SUMIFS(raw_resource_build!$K:$K,raw_resource_build!$B:$B,$C490,raw_resource_build!$A:$A,Q$469)","v":0},{"$f":"SUMIFS(raw_resource_build!$K:$K,raw_resource_build!$B:$B,$C490,raw_resource_build!$A:$A,R$469)","v":0},{"$f":"SUMIFS(raw_resource_build!$K:$K,raw_resource_build!$B:$B,$C490,raw_resource_build!$A:$A,S$469)","v":0},{"$f":"SUMIFS(raw_resource_build!$K:$K,raw_resource_build!$B:$B,$C490,raw_resource_build!$A:$A,T$469)","v":60},{"$f":"SUMIFS(raw_resource_build!$K:$K,raw_resource_build!$B:$B,$C490,raw_resource_build!$A:$A,U$469)","v":0},{"$f":"SUMIFS(raw_resource_build!$K:$K,raw_resource_build!$B:$B,$C490,raw_resource_build!$A:$A,V$469)","v":0},{"$f":"SUMIFS(raw_resource_build!$K:$K,raw_resource_build!$B:$B,$C490,raw_resource_build!$A:$A,W$469)","v":0},{"$f":"SUMIFS(raw_resource_build!$K:$K,raw_resource_build!$B:$B,$C490,raw_resource_build!$A:$A,X$469)","v":0},{"$f":"SUMIFS(raw_resource_build!$K:$K,raw_resource_build!$B:$B,$C490,raw_resource_build!$A:$A,Y$469)","v":0},{"$f":"SUMIFS(raw_resource_build!$K:$K,raw_resource_build!$B:$B,$C490,raw_resource_build!$A:$A,Z$469)","v":0},{"$f":"SUMIFS(raw_resource_build!$K:$K,raw_resource_build!$B:$B,$C490,raw_resource_build!$A:$A,AA$469)","v":0},{"$f":"SUMIFS(raw_resource_build!$K:$K,raw_resource_build!$B:$B,$C490,raw_resource_build!$A:$A,AB$469)","v":0},{"$f":"SUMIFS(raw_resource_build!$K:$K,raw_resource_build!$B:$B,$C490,raw_resource_build!$A:$A,AC$469)","v":0},{"$f":"SUMIFS(raw_resource_build!$K:$K,raw_resource_build!$B:$B,$C490,raw_resource_build!$A:$A,AD$469)","v":0},{"$f":"SUMIFS(raw_resource_build!$K:$K,raw_resource_build!$B:$B,$C490,raw_resource_build!$A:$A,AE$469)","v":0},{"$f":"SUMIFS(raw_resource_build!$K:$K,raw_resource_build!$B:$B,$C490,raw_resource_build!$A:$A,AF$469)","v":0},{"$f":"SUMIFS(raw_resource_build!$K:$K,raw_resource_build!$B:$B,$C490,raw_resource_build!$A:$A,AG$469)","v":0},{"$f":"SUMIFS(raw_resource_build!$K:$K,raw_resource_build!$B:$B,$C490,raw_resource_build!$A:$A,AH$469)","v":0},{"$f":"SUMIFS(raw_resource_build!$K:$K,raw_resource_build!$B:$B,$C490,raw_resource_build!$A:$A,AI$469)","v":60},{"$f":"SUMIFS(raw_resource_build!$K:$K,raw_resource_build!$B:$B,$C490,raw_resource_build!$A:$A,AJ$469)","v":0},{"$f":"SUMIFS(raw_resource_build!$K:$K,raw_resource_build!$B:$B,$C490,raw_resource_build!$A:$A,AK$469)","v":0},{"$f":"SUMIFS(raw_resource_build!$K:$K,raw_resource_build!$B:$B,$C490,raw_resource_build!$A:$A,AL$469)","v":0},{"$f":"SUMIFS(raw_resource_build!$K:$K,raw_resource_build!$B:$B,$C490,raw_resource_build!$A:$A,AM$469)","v":0},{"$f":"SUMIFS(raw_resource_build!$K:$K,raw_resource_build!$B:$B,$C490,raw_resource_build!$A:$A,AN$469)","v":0}]
[null,null,{"$f":"Lists!B56","v":"Kramer_Inyokern_Ex_Solar"},"Kramer_Inyokern_Ex",{"$f":"SUMIFS(raw_resource_build!$K:$K,raw_resource_build!$B:$B,$C491,raw_resource_build!$A:$A,E$469)","v":0},{"$f":"SUMIFS(raw_resource_build!$K:$K,raw_resource_build!$B:$B,$C491,raw_resource_build!$A:$A,F$469)","v":0},{"$f":"SUMIFS(raw_resource_build!$K:$K,raw_resource_build!$B:$B,$C491,raw_resource_build!$A:$A,G$469)","v":0},{"$f":"SUMIFS(raw_resource_build!$K:$K,raw_resource_build!$B:$B,$C491,raw_resource_build!$A:$A,H$469)","v":0},{"$f":"SUMIFS(raw_resource_build!$K:$K,raw_resource_build!$B:$B,$C491,raw_resource_build!$A:$A,I$469)","v":0},{"$f":"SUMIFS(raw_resource_build!$K:$K,raw_resource_build!$B:$B,$C491,raw_resource_build!$A:$A,J$469)","v":0},{"$f":"SUMIFS(raw_resource_build!$K:$K,raw_resource_build!$B:$B,$C491,raw_resource_build!$A:$A,K$469)","v":0},{"$f":"SUMIFS(raw_resource_build!$K:$K,raw_resource_build!$B:$B,$C491,raw_resource_build!$A:$A,L$469)","v":0},{"$f":"SUMIFS(raw_resource_build!$K:$K,raw_resource_build!$B:$B,$C491,raw_resource_build!$A:$A,M$469)","v":0},{"$f":"SUMIFS(raw_resource_build!$K:$K,raw_resource_build!$B:$B,$C491,raw_resource_build!$A:$A,N$469)","v":0},{"$f":"SUMIFS(raw_resource_build!$K:$K,raw_resource_build!$B:$B,$C491,raw_resource_build!$A:$A,O$469)","v":0},{"$f":"SUMIFS(raw_resource_build!$K:$K,raw_resource_build!$B:$B,$C491,raw_resource_build!$A:$A,P$469)","v":0},{"$f":"SUMIFS(raw_resource_build!$K:$K,raw_resource_build!$B:$B,$C491,raw_resource_build!$A:$A,Q$469)","v":0},{"$f":"SUMIFS(raw_resource_build!$K:$K,raw_resource_build!$B:$B,$C491,raw_resource_build!$A:$A,R$469)","v":0},{"$f":"SUMIFS(raw_resource_build!$K:$K,raw_resource_build!$B:$B,$C491,raw_resource_build!$A:$A,S$469)","v":0},{"$f":"SUMIFS(raw_resource_build!$K:$K,raw_resource_build!$B:$B,$C491,raw_resource_build!$A:$A,T$469)","v":0},{"$f":"SUMIFS(raw_resource_build!$K:$K,raw_resource_build!$B:$B,$C491,raw_resource_build!$A:$A,U$469)","v":0},{"$f":"SUMIFS(raw_resource_build!$K:$K,raw_resource_build!$B:$B,$C491,raw_resource_build!$A:$A,V$469)","v":0},{"$f":"SUMIFS(raw_resource_build!$K:$K,raw_resource_build!$B:$B,$C491,raw_resource_build!$A:$A,W$469)","v":0},{"$f":"SUMIFS(raw_resource_build!$K:$K,raw_resource_build!$B:$B,$C491,raw_resource_build!$A:$A,X$469)","v":0},{"$f":"SUMIFS(raw_resource_build!$K:$K,raw_resource_build!$B:$B,$C491,raw_resource_build!$A:$A,Y$469)","v":0},{"$f":"SUMIFS(raw_resource_build!$K:$K,raw_resource_build!$B:$B,$C491,raw_resource_build!$A:$A,Z$469)","v":0},{"$f":"SUMIFS(raw_resource_build!$K:$K,raw_resource_build!$B:$B,$C491,raw_resource_build!$A:$A,AA$469)","v":0},{"$f":"SUMIFS(raw_resource_build!$K:$K,raw_resource_build!$B:$B,$C491,raw_resource_build!$A:$A,AB$469)","v":0},{"$f":"SUMIFS(raw_resource_build!$K:$K,raw_resource_build!$B:$B,$C491,raw_resource_build!$A:$A,AC$469)","v":0},{"$f":"SUMIFS(raw_resource_build!$K:$K,raw_resource_build!$B:$B,$C491,raw_resource_build!$A:$A,AD$469)","v":0},{"$f":"SUMIFS(raw_resource_build!$K:$K,raw_resource_build!$B:$B,$C491,raw_resource_build!$A:$A,AE$469)","v":0},{"$f":"SUMIFS(raw_resource_build!$K:$K,raw_resource_build!$B:$B,$C491,raw_resource_build!$A:$A,AF$469)","v":0},{"$f":"SUMIFS(raw_resource_build!$K:$K,raw_resource_build!$B:$B,$C491,raw_resource_build!$A:$A,AG$469)","v":0},{"$f":"SUMIFS(raw_resource_build!$K:$K,raw_resource_build!$B:$B,$C491,raw_resource_build!$A:$A,AH$469)","v":0},{"$f":"SUMIFS(raw_resource_build!$K:$K,raw_resource_build!$B:$B,$C491,raw_resource_build!$A:$A,AI$469)","v":0},{"$f":"SUMIFS(raw_resource_build!$K:$K,raw_resource_build!$B:$B,$C491,raw_resource_build!$A:$A,AJ$469)","v":0},{"$f":"SUMIFS(raw_resource_build!$K:$K,raw_resource_build!$B:$B,$C491,raw_resource_build!$A:$A,AK$469)","v":0},{"$f":"SUMIFS(raw_resource_build!$K:$K,raw_resource_build!$B:$B,$C491,raw_resource_build!$A:$A,AL$469)","v":0},{"$f":"SUMIFS(raw_resource_build!$K:$K,raw_resource_build!$B:$B,$C491,raw_resource_build!$A:$A,AM$469)","v":0},{"$f":"SUMIFS(raw_resource_build!$K:$K,raw_resource_build!$B:$B,$C491,raw_resource_build!$A:$A,AN$469)","v":0}]
[null,null,{"$f":"Lists!B57","v":"Kramer_Inyokern_Ex_Wind"},"Kramer_Inyokern_Ex",{"$f":"SUMIFS(raw_resource_build!$K:$K,raw_resource_build!$B:$B,$C492,raw_resource_build!$A:$A,E$469)","v":0},{"$f":"SUMIFS(raw_resource_build!$K:$K,raw_resource_build!$B:$B,$C492,raw_resource_build!$A:$A,F$469)","v":0},{"$f":"SUMIFS(raw_resource_build!$K:$K,raw_resource_build!$B:$B,$C492,raw_resource_build!$A:$A,G$469)","v":0},{"$f":"SUMIFS(raw_resource_build!$K:$K,raw_resource_build!$B:$B,$C492,raw_resource_build!$A:$A,H$469)","v":0},{"$f":"SUMIFS(raw_resource_build!$K:$K,raw_resource_build!$B:$B,$C492,raw_resource_build!$A:$A,I$469)","v":0},{"$f":"SUMIFS(raw_resource_build!$K:$K,raw_resource_build!$B:$B,$C492,raw_resource_build!$A:$A,J$469)","v":0},{"$f":"SUMIFS(raw_resource_build!$K:$K,raw_resource_build!$B:$B,$C492,raw_resource_build!$A:$A,K$469)","v":0},{"$f":"SUMIFS(raw_resource_build!$K:$K,raw_resource_build!$B:$B,$C492,raw_resource_build!$A:$A,L$469)","v":0},{"$f":"SUMIFS(raw_resource_build!$K:$K,raw_resource_build!$B:$B,$C492,raw_resource_build!$A:$A,M$469)","v":0},{"$f":"SUMIFS(raw_resource_build!$K:$K,raw_resource_build!$B:$B,$C492,raw_resource_build!$A:$A,N$469)","v":0},{"$f":"SUMIFS(raw_resource_build!$K:$K,raw_resource_build!$B:$B,$C492,raw_resource_build!$A:$A,O$469)","v":0},{"$f":"SUMIFS(raw_resource_build!$K:$K,raw_resource_build!$B:$B,$C492,raw_resource_build!$A:$A,P$469)","v":0},{"$f":"SUMIFS(raw_resource_build!$K:$K,raw_resource_build!$B:$B,$C492,raw_resource_build!$A:$A,Q$469)","v":0},{"$f":"SUMIFS(raw_resource_build!$K:$K,raw_resource_build!$B:$B,$C492,raw_resource_build!$A:$A,R$469)","v":0},{"$f":"SUMIFS(raw_resource_build!$K:$K,raw_resource_build!$B:$B,$C492,raw_resource_build!$A:$A,S$469)","v":0},{"$f":"SUMIFS(raw_resource_build!$K:$K,raw_resource_build!$B:$B,$C492,raw_resource_build!$A:$A,T$469)","v":0},{"$f":"SUMIFS(raw_resource_build!$K:$K,raw_resource_build!$B:$B,$C492,raw_resource_build!$A:$A,U$469)","v":0},{"$f":"SUMIFS(raw_resource_build!$K:$K,raw_resource_build!$B:$B,$C492,raw_resource_build!$A:$A,V$469)","v":0},{"$f":"SUMIFS(raw_resource_build!$K:$K,raw_resource_build!$B:$B,$C492,raw_resource_build!$A:$A,W$469)","v":0},{"$f":"SUMIFS(raw_resource_build!$K:$K,raw_resource_build!$B:$B,$C492,raw_resource_build!$A:$A,X$469)","v":0},{"$f":"SUMIFS(raw_resource_build!$K:$K,raw_resource_build!$B:$B,$C492,raw_resource_build!$A:$A,Y$469)","v":0},{"$f":"SUMIFS(raw_resource_build!$K:$K,raw_resource_build!$B:$B,$C492,raw_resource_build!$A:$A,Z$469)","v":0},{"$f":"SUMIFS(raw_resource_build!$K:$K,raw_resource_build!$B:$B,$C492,raw_resource_build!$A:$A,AA$469)","v":0},{"$f":"SUMIFS(raw_resource_build!$K:$K,raw_resource_build!$B:$B,$C492,raw_resource_build!$A:$A,AB$469)","v":0},{"$f":"SUMIFS(raw_resource_build!$K:$K,raw_resource_build!$B:$B,$C492,raw_resource_build!$A:$A,AC$469)","v":0},{"$f":"SUMIFS(raw_resource_build!$K:$K,raw_resource_build!$B:$B,$C492,raw_resource_build!$A:$A,AD$469)","v":0},{"$f":"SUMIFS(raw_resource_build!$K:$K,raw_resource_build!$B:$B,$C492,raw_resource_build!$A:$A,AE$469)","v":0},{"$f":"SUMIFS(raw_resource_build!$K:$K,raw_resource_build!$B:$B,$C492,raw_resource_build!$A:$A,AF$469)","v":0},{"$f":"SUMIFS(raw_resource_build!$K:$K,raw_resource_build!$B:$B,$C492,raw_resource_build!$A:$A,AG$469)","v":0},{"$f":"SUMIFS(raw_resource_build!$K:$K,raw_resource_build!$B:$B,$C492,raw_resource_build!$A:$A,AH$469)","v":0},{"$f":"SUMIFS(raw_resource_build!$K:$K,raw_resource_build!$B:$B,$C492,raw_resource_build!$A:$A,AI$469)","v":0},{"$f":"SUMIFS(raw_resource_build!$K:$K,raw_resource_build!$B:$B,$C492,raw_resource_build!$A:$A,AJ$469)","v":0},{"$f":"SUMIFS(raw_resource_build!$K:$K,raw_resource_build!$B:$B,$C492,raw_resource_build!$A:$A,AK$469)","v":0},{"$f":"SUMIFS(raw_resource_build!$K:$K,raw_resource_build!$B:$B,$C492,raw_resource_build!$A:$A,AL$469)","v":0},{"$f":"SUMIFS(raw_resource_build!$K:$K,raw_resource_build!$B:$B,$C492,raw_resource_build!$A:$A,AM$469)","v":0},{"$f":"SUMIFS(raw_resource_build!$K:$K,raw_resource_build!$B:$B,$C492,raw_resource_build!$A:$A,AN$469)","v":0}]
[null,null,{"$f":"Lists!B58","v":"Mountain_Pass_El_Dorado_Solar"},"N/A",{"$f":"SUMIFS(raw_resource_build!$K:$K,raw_resource_build!$B:$B,$C493,raw_resource_build!$A:$A,E$469)","v":0},{"$f":"SUMIFS(raw_resource_build!$K:$K,raw_resource_build!$B:$B,$C493,raw_resource_build!$A:$A,F$469)","v":0},{"$f":"SUMIFS(raw_resource_build!$K:$K,raw_resource_build!$B:$B,$C493,raw_resource_build!$A:$A,G$469)","v":0},{"$f":"SUMIFS(raw_resource_build!$K:$K,raw_resource_build!$B:$B,$C493,raw_resource_build!$A:$A,H$469)","v":0},{"$f":"SUMIFS(raw_resource_build!$K:$K,raw_resource_build!$B:$B,$C493,raw_resource_build!$A:$A,I$469)","v":0},{"$f":"SUMIFS(raw_resource_build!$K:$K,raw_resource_build!$B:$B,$C493,raw_resource_build!$A:$A,J$469)","v":0},{"$f":"SUMIFS(raw_resource_build!$K:$K,raw_resource_build!$B:$B,$C493,raw_resource_build!$A:$A,K$469)","v":0},{"$f":"SUMIFS(raw_resource_build!$K:$K,raw_resource_build!$B:$B,$C493,raw_resource_build!$A:$A,L$469)","v":0},{"$f":"SUMIFS(raw_resource_build!$K:$K,raw_resource_build!$B:$B,$C493,raw_resource_build!$A:$A,M$469)","v":66.48},{"$f":"SUMIFS(raw_resource_build!$K:$K,raw_resource_build!$B:$B,$C493,raw_resource_build!$A:$A,N$469)","v":248},{"$f":"SUMIFS(raw_resource_build!$K:$K,raw_resource_build!$B:$B,$C493,raw_resource_build!$A:$A,O$469)","v":0},{"$f":"SUMIFS(raw_resource_build!$K:$K,raw_resource_build!$B:$B,$C493,raw_resource_build!$A:$A,P$469)","v":248},{"$f":"SUMIFS(raw_resource_build!$K:$K,raw_resource_build!$B:$B,$C493,raw_resource_build!$A:$A,Q$469)","v":0},{"$f":"SUMIFS(raw_resource_build!$K:$K,raw_resource_build!$B:$B,$C493,raw_resource_build!$A:$A,R$469)","v":0},{"$f":"SUMIFS(raw_resource_build!$K:$K,raw_resource_build!$B:$B,$C493,raw_resource_build!$A:$A,S$469)","v":0},{"$f":"SUMIFS(raw_resource_build!$K:$K,raw_resource_build!$B:$B,$C493,raw_resource_build!$A:$A,T$469)","v":248},{"$f":"SUMIFS(raw_resource_build!$K:$K,raw_resource_build!$B:$B,$C493,raw_resource_build!$A:$A,U$469)","v":0},{"$f":"SUMIFS(raw_resource_build!$K:$K,raw_resource_build!$B:$B,$C493,raw_resource_build!$A:$A,V$469)","v":0},{"$f":"SUMIFS(raw_resource_build!$K:$K,raw_resource_build!$B:$B,$C493,raw_resource_build!$A:$A,W$469)","v":0},{"$f":"SUMIFS(raw_resource_build!$K:$K,raw_resource_build!$B:$B,$C493,raw_resource_build!$A:$A,X$469)","v":0},{"$f":"SUMIFS(raw_resource_build!$K:$K,raw_resource_build!$B:$B,$C493,raw_resource_build!$A:$A,Y$469)","v":0},{"$f":"SUMIFS(raw_resource_build!$K:$K,raw_resource_build!$B:$B,$C493,raw_resource_build!$A:$A,Z$469)","v":0},{"$f":"SUMIFS(raw_resource_build!$K:$K,raw_resource_build!$B:$B,$C493,raw_resource_build!$A:$A,AA$469)","v":0},{"$f":"SUMIFS(raw_resource_build!$K:$K,raw_resource_build!$B:$B,$C493,raw_resource_build!$A:$A,AB$469)","v":0},{"$f":"SUMIFS(raw_resource_build!$K:$K,raw_resource_build!$B:$B,$C493,raw_resource_build!$A:$A,AC$469)","v":0},{"$f":"SUMIFS(raw_resource_build!$K:$K,raw_resource_build!$B:$B,$C493,raw_resource_build!$A:$A,AD$469)","v":0},{"$f":"SUMIFS(raw_resource_build!$K:$K,raw_resource_build!$B:$B,$C493,raw_resource_build!$A:$A,AE$469)","v":0},{"$f":"SUMIFS(raw_resource_build!$K:$K,raw_resource_build!$B:$B,$C493,raw_resource_build!$A:$A,AF$469)","v":0},{"$f":"SUMIFS(raw_resource_build!$K:$K,raw_resource_build!$B:$B,$C493,raw_resource_build!$A:$A,AG$469)","v":0},{"$f":"SUMIFS(raw_resource_build!$K:$K,raw_resource_build!$B:$B,$C493,raw_resource_build!$A:$A,AH$469)","v":0},{"$f":"SUMIFS(raw_resource_build!$K:$K,raw_resource_build!$B:$B,$C493,raw_resource_build!$A:$A,AI$469)","v":248},{"$f":"SUMIFS(raw_resource_build!$K:$K,raw_resource_build!$B:$B,$C493,raw_resource_build!$A:$A,AJ$469)","v":0},{"$f":"SUMIFS(raw_resource_build!$K:$K,raw_resource_build!$B:$B,$C493,raw_resource_build!$A:$A,AK$469)","v":0},{"$f":"SUMIFS(raw_resource_build!$K:$K,raw_resource_build!$B:$B,$C493,raw_resource_build!$A:$A,AL$469)","v":0},{"$f":"SUMIFS(raw_resource_build!$K:$K,raw_resource_build!$B:$B,$C493,raw_resource_build!$A:$A,AM$469)","v":0},{"$f":"SUMIFS(raw_resource_build!$K:$K,raw_resource_build!$B:$B,$C493,raw_resource_build!$A:$A,AN$469)","v":0}]
[null,null,{"$f":"Lists!B59","v":"North_Victor_Solar"},"North_Victor-Greater_Kramer",{"$f":"SUMIFS(raw_resource_build!$K:$K,raw_resource_build!$B:$B,$C494,raw_resource_build!$A:$A,E$469)","v":0},{"$f":"SUMIFS(raw_resource_build!$K:$K,raw_resource_build!$B:$B,$C494,raw_resource_build!$A:$A,F$469)","v":0},{"$f":"SUMIFS(raw_resource_build!$K:$K,raw_resource_build!$B:$B,$C494,raw_resource_build!$A:$A,G$469)","v":0},{"$f":"SUMIFS(raw_resource_build!$K:$K,raw_resource_build!$B:$B,$C494,raw_resource_build!$A:$A,H$469)","v":0},{"$f":"SUMIFS(raw_resource_build!$K:$K,raw_resource_build!$B:$B,$C494,raw_resource_build!$A:$A,I$469)","v":0},{"$f":"SUMIFS(raw_resource_build!$K:$K,raw_resource_build!$B:$B,$C494,raw_resource_build!$A:$A,J$469)","v":0},{"$f":"SUMIFS(raw_resource_build!$K:$K,raw_resource_build!$B:$B,$C494,raw_resource_build!$A:$A,K$469)","v":0},{"$f":"SUMIFS(raw_resource_build!$K:$K,raw_resource_build!$B:$B,$C494,raw_resource_build!$A:$A,L$469)","v":300},{"$f":"SUMIFS(raw_resource_build!$K:$K,raw_resource_build!$B:$B,$C494,raw_resource_build!$A:$A,M$469)","v":300},{"$f":"SUMIFS(raw_resource_build!$K:$K,raw_resource_build!$B:$B,$C494,raw_resource_build!$A:$A,N$469)","v":300},{"$f":"SUMIFS(raw_resource_build!$K:$K,raw_resource_build!$B:$B,$C494,raw_resource_build!$A:$A,O$469)","v":0},{"$f":"SUMIFS(raw_resource_build!$K:$K,raw_resource_build!$B:$B,$C494,raw_resource_build!$A:$A,P$469)","v":300},{"$f":"SUMIFS(raw_resource_build!$K:$K,raw_resource_build!$B:$B,$C494,raw_resource_build!$A:$A,Q$469)","v":0},{"$f":"SUMIFS(raw_resource_build!$K:$K,raw_resource_build!$B:$B,$C494,raw_resource_build!$A:$A,R$469)","v":0},{"$f":"SUMIFS(raw_resource_build!$K:$K,raw_resource_build!$B:$B,$C494,raw_resource_build!$A:$A,S$469)","v":0},{"$f":"SUMIFS(raw_resource_build!$K:$K,raw_resource_build!$B:$B,$C494,raw_resource_build!$A:$A,T$469)","v":300},{"$f":"SUMIFS(raw_resource_build!$K:$K,raw_resource_build!$B:$B,$C494,raw_resource_build!$A:$A,U$469)","v":0},{"$f":"SUMIFS(raw_resource_build!$K:$K,raw_resource_build!$B:$B,$C494,raw_resource_build!$A:$A,V$469)","v":0},{"$f":"SUMIFS(raw_resource_build!$K:$K,raw_resource_build!$B:$B,$C494,raw_resource_build!$A:$A,W$469)","v":0},{"$f":"SUMIFS(raw_resource_build!$K:$K,raw_resource_build!$B:$B,$C494,raw_resource_build!$A:$A,X$469)","v":0},{"$f":"SUMIFS(raw_resource_build!$K:$K,raw_resource_build!$B:$B,$C494,raw_resource_build!$A:$A,Y$469)","v":0},{"$f":"SUMIFS(raw_resource_build!$K:$K,raw_resource_build!$B:$B,$C494,raw_resource_build!$A:$A,Z$469)","v":0},{"$f":"SUMIFS(raw_resource_build!$K:$K,raw_resource_build!$B:$B,$C494,raw_resource_build!$A:$A,AA$469)","v":0},{"$f":"SUMIFS(raw_resource_build!$K:$K,raw_resource_build!$B:$B,$C494,raw_resource_build!$A:$A,AB$469)","v":0},{"$f":"SUMIFS(raw_resource_build!$K:$K,raw_resource_build!$B:$B,$C494,raw_resource_build!$A:$A,AC$469)","v":0},{"$f":"SUMIFS(raw_resource_build!$K:$K,raw_resource_build!$B:$B,$C494,raw_resource_build!$A:$A,AD$469)","v":0},{"$f":"SUMIFS(raw_resource_build!$K:$K,raw_resource_build!$B:$B,$C494,raw_resource_build!$A:$A,AE$469)","v":0},{"$f":"SUMIFS(raw_resource_build!$K:$K,raw_resource_build!$B:$B,$C494,raw_resource_build!$A:$A,AF$469)","v":0},{"$f":"SUMIFS(raw_resource_build!$K:$K,raw_resource_build!$B:$B,$C494,raw_resource_build!$A:$A,AG$469)","v":0},{"$f":"SUMIFS(raw_resource_build!$K:$K,raw_resource_build!$B:$B,$C494,raw_resource_build!$A:$A,AH$469)","v":0},{"$f":"SUMIFS(raw_resource_build!$K:$K,raw_resource_build!$B:$B,$C494,raw_resource_build!$A:$A,AI$469)","v":300},{"$f":"SUMIFS(raw_resource_build!$K:$K,raw_resource_build!$B:$B,$C494,raw_resource_build!$A:$A,AJ$469)","v":0},{"$f":"SUMIFS(raw_resource_build!$K:$K,raw_resource_build!$B:$B,$C494,raw_resource_build!$A:$A,AK$469)","v":0},{"$f":"SUMIFS(raw_resource_build!$K:$K,raw_resource_build!$B:$B,$C494,raw_resource_build!$A:$A,AL$469)","v":0},{"$f":"SUMIFS(raw_resource_build!$K:$K,raw_resource_build!$B:$B,$C494,raw_resource_build!$A:$A,AM$469)","v":0},{"$f":"SUMIFS(raw_resource_build!$K:$K,raw_resource_build!$B:$B,$C494,raw_resource_build!$A:$A,AN$469)","v":0}]
[null,null,{"$f":"Lists!B60","v":"Northern_California_Ex_Solar"},"Northern_California_Ex",{"$f":"SUMIFS(raw_resource_build!$K:$K,raw_resource_build!$B:$B,$C495,raw_resource_build!$A:$A,E$469)","v":0},{"$f":"SUMIFS(raw_resource_build!$K:$K,raw_resource_build!$B:$B,$C495,raw_resource_build!$A:$A,F$469)","v":0},{"$f":"SUMIFS(raw_resource_build!$K:$K,raw_resource_build!$B:$B,$C495,raw_resource_build!$A:$A,G$469)","v":0},{"$f":"SUMIFS(raw_resource_build!$K:$K,raw_resource_build!$B:$B,$C495,raw_resource_build!$A:$A,H$469)","v":0},{"$f":"SUMIFS(raw_resource_build!$K:$K,raw_resource_build!$B:$B,$C495,raw_resource_build!$A:$A,I$469)","v":0},{"$f":"SUMIFS(raw_resource_build!$K:$K,raw_resource_build!$B:$B,$C495,raw_resource_build!$A:$A,J$469)","v":0},{"$f":"SUMIFS(raw_resource_build!$K:$K,raw_resource_build!$B:$B,$C495,raw_resource_build!$A:$A,K$469)","v":0},{"$f":"SUMIFS(raw_resource_build!$K:$K,raw_resource_build!$B:$B,$C495,raw_resource_build!$A:$A,L$469)","v":0},{"$f":"SUMIFS(raw_resource_build!$K:$K,raw_resource_build!$B:$B,$C495,raw_resource_build!$A:$A,M$469)","v":0},{"$f":"SUMIFS(raw_resource_build!$K:$K,raw_resource_build!$B:$B,$C495,raw_resource_build!$A:$A,N$469)","v":0},{"$f":"SUMIFS(raw_resource_build!$K:$K,raw_resource_build!$B:$B,$C495,raw_resource_build!$A:$A,O$469)","v":0},{"$f":"SUMIFS(raw_resource_build!$K:$K,raw_resource_build!$B:$B,$C495,raw_resource_build!$A:$A,P$469)","v":0},{"$f":"SUMIFS(raw_resource_build!$K:$K,raw_resource_build!$B:$B,$C495,raw_resource_build!$A:$A,Q$469)","v":0},{"$f":"SUMIFS(raw_resource_build!$K:$K,raw_resource_build!$B:$B,$C495,raw_resource_build!$A:$A,R$469)","v":0},{"$f":"SUMIFS(raw_resource_build!$K:$K,raw_resource_build!$B:$B,$C495,raw_resource_build!$A:$A,S$469)","v":0},{"$f":"SUMIFS(raw_resource_build!$K:$K,raw_resource_build!$B:$B,$C495,raw_resource_build!$A:$A,T$469)","v":396.9},{"$f":"SUMIFS(raw_resource_build!$K:$K,raw_resource_build!$B:$B,$C495,raw_resource_build!$A:$A,U$469)","v":0},{"$f":"SUMIFS(raw_resource_build!$K:$K,raw_resource_build!$B:$B,$C495,raw_resource_build!$A:$A,V$469)","v":0},{"$f":"SUMIFS(raw_resource_build!$K:$K,raw_resource_build!$B:$B,$C495,raw_resource_build!$A:$A,W$469)","v":0},{"$f":"SUMIFS(raw_resource_build!$K:$K,raw_resource_build!$B:$B,$C495,raw_resource_build!$A:$A,X$469)","v":0},{"$f":"SUMIFS(raw_resource_build!$K:$K,raw_resource_build!$B:$B,$C495,raw_resource_build!$A:$A,Y$469)","v":0},{"$f":"SUMIFS(raw_resource_build!$K:$K,raw_resource_build!$B:$B,$C495,raw_resource_build!$A:$A,Z$469)","v":0},{"$f":"SUMIFS(raw_resource_build!$K:$K,raw_resource_build!$B:$B,$C495,raw_resource_build!$A:$A,AA$469)","v":0},{"$f":"SUMIFS(raw_resource_build!$K:$K,raw_resource_build!$B:$B,$C495,raw_resource_build!$A:$A,AB$469)","v":0},{"$f":"SUMIFS(raw_resource_build!$K:$K,raw_resource_build!$B:$B,$C495,raw_resource_build!$A:$A,AC$469)","v":0},{"$f":"SUMIFS(raw_resource_build!$K:$K,raw_resource_build!$B:$B,$C495,raw_resource_build!$A:$A,AD$469)","v":0},{"$f":"SUMIFS(raw_resource_build!$K:$K,raw_resource_build!$B:$B,$C495,raw_resource_build!$A:$A,AE$469)","v":0},{"$f":"SUMIFS(raw_resource_build!$K:$K,raw_resource_build!$B:$B,$C495,raw_resource_build!$A:$A,AF$469)","v":0},{"$f":"SUMIFS(raw_resource_build!$K:$K,raw_resource_build!$B:$B,$C495,raw_resource_build!$A:$A,AG$469)","v":0},{"$f":"SUMIFS(raw_resource_build!$K:$K,raw_resource_build!$B:$B,$C495,raw_resource_build!$A:$A,AH$469)","v":0},{"$f":"SUMIFS(raw_resource_build!$K:$K,raw_resource_build!$B:$B,$C495,raw_resource_build!$A:$A,AI$469)","v":396.9},{"$f":"SUMIFS(raw_resource_build!$K:$K,raw_resource_build!$B:$B,$C495,raw_resource_build!$A:$A,AJ$469)","v":0},{"$f":"SUMIFS(raw_resource_build!$K:$K,raw_resource_build!$B:$B,$C495,raw_resource_build!$A:$A,AK$469)","v":0},{"$f":"SUMIFS(raw_resource_build!$K:$K,raw_resource_build!$B:$B,$C495,raw_resource_build!$A:$A,AL$469)","v":0},{"$f":"SUMIFS(raw_resource_build!$K:$K,raw_resource_build!$B:$B,$C495,raw_resource_build!$A:$A,AM$469)","v":0},{"$f":"SUMIFS(raw_resource_build!$K:$K,raw_resource_build!$B:$B,$C495,raw_resource_build!$A:$A,AN$469)","v":0}]
[null,null,{"$f":"Lists!B61","v":"Northern_California_Ex_Wind"},"Sacramento_River",{"$f":"SUMIFS(raw_resource_build!$K:$K,raw_resource_build!$B:$B,$C496,raw_resource_build!$A:$A,E$469)","v":0},{"$f":"SUMIFS(raw_resource_build!$K:$K,raw_resource_build!$B:$B,$C496,raw_resource_build!$A:$A,F$469)","v":0},{"$f":"SUMIFS(raw_resource_build!$K:$K,raw_resource_build!$B:$B,$C496,raw_resource_build!$A:$A,G$469)","v":0},{"$f":"SUMIFS(raw_resource_build!$K:$K,raw_resource_build!$B:$B,$C496,raw_resource_build!$A:$A,H$469)","v":0},{"$f":"SUMIFS(raw_resource_build!$K:$K,raw_resource_build!$B:$B,$C496,raw_resource_build!$A:$A,I$469)","v":0},{"$f":"SUMIFS(raw_resource_build!$K:$K,raw_resource_build!$B:$B,$C496,raw_resource_build!$A:$A,J$469)","v":0},{"$f":"SUMIFS(raw_resource_build!$K:$K,raw_resource_build!$B:$B,$C496,raw_resource_build!$A:$A,K$469)","v":0},{"$f":"SUMIFS(raw_resource_build!$K:$K,raw_resource_build!$B:$B,$C496,raw_resource_build!$A:$A,L$469)","v":865.9},{"$f":"SUMIFS(raw_resource_build!$K:$K,raw_resource_build!$B:$B,$C496,raw_resource_build!$A:$A,M$469)","v":865.9},{"$f":"SUMIFS(raw_resource_build!$K:$K,raw_resource_build!$B:$B,$C496,raw_resource_build!$A:$A,N$469)","v":865.9},{"$f":"SUMIFS(raw_resource_build!$K:$K,raw_resource_build!$B:$B,$C496,raw_resource_build!$A:$A,O$469)","v":0},{"$f":"SUMIFS(raw_resource_build!$K:$K,raw_resource_build!$B:$B,$C496,raw_resource_build!$A:$A,P$469)","v":865.9},{"$f":"SUMIFS(raw_resource_build!$K:$K,raw_resource_build!$B:$B,$C496,raw_resource_build!$A:$A,Q$469)","v":0},{"$f":"SUMIFS(raw_resource_build!$K:$K,raw_resource_build!$B:$B,$C496,raw_resource_build!$A:$A,R$469)","v":0},{"$f":"SUMIFS(raw_resource_build!$K:$K,raw_resource_build!$B:$B,$C496,raw_resource_build!$A:$A,S$469)","v":0},{"$f":"SUMIFS(raw_resource_build!$K:$K,raw_resource_build!$B:$B,$C496,raw_resource_build!$A:$A,T$469)","v":865.9},{"$f":"SUMIFS(raw_resource_build!$K:$K,raw_resource_build!$B:$B,$C496,raw_resource_build!$A:$A,U$469)","v":0},{"$f":"SUMIFS(raw_resource_build!$K:$K,raw_resource_build!$B:$B,$C496,raw_resource_build!$A:$A,V$469)","v":0},{"$f":"SUMIFS(raw_resource_build!$K:$K,raw_resource_build!$B:$B,$C496,raw_resource_build!$A:$A,W$469)","v":0},{"$f":"SUMIFS(raw_resource_build!$K:$K,raw_resource_build!$B:$B,$C496,raw_resource_build!$A:$A,X$469)","v":0},{"$f":"SUMIFS(raw_resource_build!$K:$K,raw_resource_build!$B:$B,$C496,raw_resource_build!$A:$A,Y$469)","v":0},{"$f":"SUMIFS(raw_resource_build!$K:$K,raw_resource_build!$B:$B,$C496,raw_resource_build!$A:$A,Z$469)","v":0},{"$f":"SUMIFS(raw_resource_build!$K:$K,raw_resource_build!$B:$B,$C496,raw_resource_build!$A:$A,AA$469)","v":0},{"$f":"SUMIFS(raw_resource_build!$K:$K,raw_resource_build!$B:$B,$C496,raw_resource_build!$A:$A,AB$469)","v":0},{"$f":"SUMIFS(raw_resource_build!$K:$K,raw_resource_build!$B:$B,$C496,raw_resource_build!$A:$A,AC$469)","v":0},{"$f":"SUMIFS(raw_resource_build!$K:$K,raw_resource_build!$B:$B,$C496,raw_resource_build!$A:$A,AD$469)","v":0},{"$f":"SUMIFS(raw_resource_build!$K:$K,raw_resource_build!$B:$B,$C496,raw_resource_build!$A:$A,AE$469)","v":0},{"$f":"SUMIFS(raw_resource_build!$K:$K,raw_resource_build!$B:$B,$C496,raw_resource_build!$A:$A,AF$469)","v":0},{"$f":"SUMIFS(raw_resource_build!$K:$K,raw_resource_build!$B:$B,$C496,raw_resource_build!$A:$A,AG$469)","v":0},{"$f":"SUMIFS(raw_resource_build!$K:$K,raw_resource_build!$B:$B,$C496,raw_resource_build!$A:$A,AH$469)","v":0},{"$f":"SUMIFS(raw_resource_build!$K:$K,raw_resource_build!$B:$B,$C496,raw_resource_build!$A:$A,AI$469)","v":865.9},{"$f":"SUMIFS(raw_resource_build!$K:$K,raw_resource_build!$B:$B,$C496,raw_resource_build!$A:$A,AJ$469)","v":0},{"$f":"SUMIFS(raw_resource_build!$K:$K,raw_resource_build!$B:$B,$C496,raw_resource_build!$A:$A,AK$469)","v":0},{"$f":"SUMIFS(raw_resource_build!$K:$K,raw_resource_build!$B:$B,$C496,raw_resource_build!$A:$A,AL$469)","v":0},{"$f":"SUMIFS(raw_resource_build!$K:$K,raw_resource_build!$B:$B,$C496,raw_resource_build!$A:$A,AM$469)","v":0},{"$f":"SUMIFS(raw_resource_build!$K:$K,raw_resource_build!$B:$B,$C496,raw_resource_build!$A:$A,AN$469)","v":0}]
[null,null,{"$f":"Lists!B62","v":"NW_Ext_Tx_Wind"},"Sacramento_River",{"$f":"SUMIFS(raw_resource_build!$K:$K,raw_resource_build!$B:$B,$C497,raw_resource_build!$A:$A,E$469)","v":0},{"$f":"SUMIFS(raw_resource_build!$K:$K,raw_resource_build!$B:$B,$C497,raw_resource_build!$A:$A,F$469)","v":0},{"$f":"SUMIFS(raw_resource_build!$K:$K,raw_resource_build!$B:$B,$C497,raw_resource_build!$A:$A,G$469)","v":0},{"$f":"SUMIFS(raw_resource_build!$K:$K,raw_resource_build!$B:$B,$C497,raw_resource_build!$A:$A,H$469)","v":0},{"$f":"SUMIFS(raw_resource_build!$K:$K,raw_resource_build!$B:$B,$C497,raw_resource_build!$A:$A,I$469)","v":0},{"$f":"SUMIFS(raw_resource_build!$K:$K,raw_resource_build!$B:$B,$C497,raw_resource_build!$A:$A,J$469)","v":0},{"$f":"SUMIFS(raw_resource_build!$K:$K,raw_resource_build!$B:$B,$C497,raw_resource_build!$A:$A,K$469)","v":0},{"$f":"SUMIFS(raw_resource_build!$K:$K,raw_resource_build!$B:$B,$C497,raw_resource_build!$A:$A,L$469)","v":617.9},{"$f":"SUMIFS(raw_resource_build!$K:$K,raw_resource_build!$B:$B,$C497,raw_resource_build!$A:$A,M$469)","v":617.9},{"$f":"SUMIFS(raw_resource_build!$K:$K,raw_resource_build!$B:$B,$C497,raw_resource_build!$A:$A,N$469)","v":617.9},{"$f":"SUMIFS(raw_resource_build!$K:$K,raw_resource_build!$B:$B,$C497,raw_resource_build!$A:$A,O$469)","v":0},{"$f":"SUMIFS(raw_resource_build!$K:$K,raw_resource_build!$B:$B,$C497,raw_resource_build!$A:$A,P$469)","v":617.9},{"$f":"SUMIFS(raw_resource_build!$K:$K,raw_resource_build!$B:$B,$C497,raw_resource_build!$A:$A,Q$469)","v":0},{"$f":"SUMIFS(raw_resource_build!$K:$K,raw_resource_build!$B:$B,$C497,raw_resource_build!$A:$A,R$469)","v":0},{"$f":"SUMIFS(raw_resource_build!$K:$K,raw_resource_build!$B:$B,$C497,raw_resource_build!$A:$A,S$469)","v":0},{"$f":"SUMIFS(raw_resource_build!$K:$K,raw_resource_build!$B:$B,$C497,raw_resource_build!$A:$A,T$469)","v":1500},{"$f":"SUMIFS(raw_resource_build!$K:$K,raw_resource_build!$B:$B,$C497,raw_resource_build!$A:$A,U$469)","v":0},{"$f":"SUMIFS(raw_resource_build!$K:$K,raw_resource_build!$B:$B,$C497,raw_resource_build!$A:$A,V$469)","v":0},{"$f":"SUMIFS(raw_resource_build!$K:$K,raw_resource_build!$B:$B,$C497,raw_resource_build!$A:$A,W$469)","v":0},{"$f":"SUMIFS(raw_resource_build!$K:$K,raw_resource_build!$B:$B,$C497,raw_resource_build!$A:$A,X$469)","v":0},{"$f":"SUMIFS(raw_resource_build!$K:$K,raw_resource_build!$B:$B,$C497,raw_resource_build!$A:$A,Y$469)","v":0},{"$f":"SUMIFS(raw_resource_build!$K:$K,raw_resource_build!$B:$B,$C497,raw_resource_build!$A:$A,Z$469)","v":0},{"$f":"SUMIFS(raw_resource_build!$K:$K,raw_resource_build!$B:$B,$C497,raw_resource_build!$A:$A,AA$469)","v":0},{"$f":"SUMIFS(raw_resource_build!$K:$K,raw_resource_build!$B:$B,$C497,raw_resource_build!$A:$A,AB$469)","v":0},{"$f":"SUMIFS(raw_resource_build!$K:$K,raw_resource_build!$B:$B,$C497,raw_resource_build!$A:$A,AC$469)","v":0},{"$f":"SUMIFS(raw_resource_build!$K:$K,raw_resource_build!$B:$B,$C497,raw_resource_build!$A:$A,AD$469)","v":0},{"$f":"SUMIFS(raw_resource_build!$K:$K,raw_resource_build!$B:$B,$C497,raw_resource_build!$A:$A,AE$469)","v":0},{"$f":"SUMIFS(raw_resource_build!$K:$K,raw_resource_build!$B:$B,$C497,raw_resource_build!$A:$A,AF$469)","v":0},{"$f":"SUMIFS(raw_resource_build!$K:$K,raw_resource_build!$B:$B,$C497,raw_resource_build!$A:$A,AG$469)","v":0},{"$f":"SUMIFS(raw_resource_build!$K:$K,raw_resource_build!$B:$B,$C497,raw_resource_build!$A:$A,AH$469)","v":0},{"$f":"SUMIFS(raw_resource_build!$K:$K,raw_resource_build!$B:$B,$C497,raw_resource_build!$A:$A,AI$469)","v":1500},{"$f":"SUMIFS(raw_resource_build!$K:$K,raw_resource_build!$B:$B,$C497,raw_resource_build!$A:$A,AJ$469)","v":0},{"$f":"SUMIFS(raw_resource_build!$K:$K,raw_resource_build!$B:$B,$C497,raw_resource_build!$A:$A,AK$469)","v":0},{"$f":"SUMIFS(raw_resource_build!$K:$K,raw_resource_build!$B:$B,$C497,raw_resource_build!$A:$A,AL$469)","v":0},{"$f":"SUMIFS(raw_resource_build!$K:$K,raw_resource_build!$B:$B,$C497,raw_resource_build!$A:$A,AM$469)","v":0},{"$f":"SUMIFS(raw_resource_build!$K:$K,raw_resource_build!$B:$B,$C497,raw_resource_build!$A:$A,AN$469)","v":0}]
[null,null,{"$f":"Lists!B63","v":"Riverside_Palm_Springs_Solar"},"SCADSNV-Riverside_Palm_Springs",{"$f":"SUMIFS(raw_resource_build!$K:$K,raw_resource_build!$B:$B,$C498,raw_resource_build!$A:$A,E$469)","v":0},{"$f":"SUMIFS(raw_resource_build!$K:$K,raw_resource_build!$B:$B,$C498,raw_resource_build!$A:$A,F$469)","v":0},{"$f":"SUMIFS(raw_resource_build!$K:$K,raw_resource_build!$B:$B,$C498,raw_resource_build!$A:$A,G$469)","v":0},{"$f":"SUMIFS(raw_resource_build!$K:$K,raw_resource_build!$B:$B,$C498,raw_resource_build!$A:$A,H$469)","v":0},{"$f":"SUMIFS(raw_resource_build!$K:$K,raw_resource_build!$B:$B,$C498,raw_resource_build!$A:$A,I$469)","v":0},{"$f":"SUMIFS(raw_resource_build!$K:$K,raw_resource_build!$B:$B,$C498,raw_resource_build!$A:$A,J$469)","v":0},{"$f":"SUMIFS(raw_resource_build!$K:$K,raw_resource_build!$B:$B,$C498,raw_resource_build!$A:$A,K$469)","v":0},{"$f":"SUMIFS(raw_resource_build!$K:$K,raw_resource_build!$B:$B,$C498,raw_resource_build!$A:$A,L$469)","v":0},{"$f":"SUMIFS(raw_resource_build!$K:$K,raw_resource_build!$B:$B,$C498,raw_resource_build!$A:$A,M$469)","v":0},{"$f":"SUMIFS(raw_resource_build!$K:$K,raw_resource_build!$B:$B,$C498,raw_resource_build!$A:$A,N$469)","v":0},{"$f":"SUMIFS(raw_resource_build!$K:$K,raw_resource_build!$B:$B,$C498,raw_resource_build!$A:$A,O$469)","v":0},{"$f":"SUMIFS(raw_resource_build!$K:$K,raw_resource_build!$B:$B,$C498,raw_resource_build!$A:$A,P$469)","v":0},{"$f":"SUMIFS(raw_resource_build!$K:$K,raw_resource_build!$B:$B,$C498,raw_resource_build!$A:$A,Q$469)","v":0},{"$f":"SUMIFS(raw_resource_build!$K:$K,raw_resource_build!$B:$B,$C498,raw_resource_build!$A:$A,R$469)","v":0},{"$f":"SUMIFS(raw_resource_build!$K:$K,raw_resource_build!$B:$B,$C498,raw_resource_build!$A:$A,S$469)","v":0},{"$f":"SUMIFS(raw_resource_build!$K:$K,raw_resource_build!$B:$B,$C498,raw_resource_build!$A:$A,T$469)","v":0},{"$f":"SUMIFS(raw_resource_build!$K:$K,raw_resource_build!$B:$B,$C498,raw_resource_build!$A:$A,U$469)","v":0},{"$f":"SUMIFS(raw_resource_build!$K:$K,raw_resource_build!$B:$B,$C498,raw_resource_build!$A:$A,V$469)","v":0},{"$f":"SUMIFS(raw_resource_build!$K:$K,raw_resource_build!$B:$B,$C498,raw_resource_build!$A:$A,W$469)","v":0},{"$f":"SUMIFS(raw_resource_build!$K:$K,raw_resource_build!$B:$B,$C498,raw_resource_build!$A:$A,X$469)","v":0},{"$f":"SUMIFS(raw_resource_build!$K:$K,raw_resource_build!$B:$B,$C498,raw_resource_build!$A:$A,Y$469)","v":0},{"$f":"SUMIFS(raw_resource_build!$K:$K,raw_resource_build!$B:$B,$C498,raw_resource_build!$A:$A,Z$469)","v":0},{"$f":"SUMIFS(raw_resource_build!$K:$K,raw_resource_build!$B:$B,$C498,raw_resource_build!$A:$A,AA$469)","v":0},{"$f":"SUMIFS(raw_resource_build!$K:$K,raw_resource_build!$B:$B,$C498,raw_resource_build!$A:$A,AB$469)","v":0},{"$f":"SUMIFS(raw_resource_build!$K:$K,raw_resource_build!$B:$B,$C498,raw_resource_build!$A:$A,AC$469)","v":0},{"$f":"SUMIFS(raw_resource_build!$K:$K,raw_resource_build!$B:$B,$C498,raw_resource_build!$A:$A,AD$469)","v":0},{"$f":"SUMIFS(raw_resource_build!$K:$K,raw_resource_build!$B:$B,$C498,raw_resource_build!$A:$A,AE$469)","v":0},{"$f":"SUMIFS(raw_resource_build!$K:$K,raw_resource_build!$B:$B,$C498,raw_resource_build!$A:$A,AF$469)","v":0},{"$f":"SUMIFS(raw_resource_build!$K:$K,raw_resource_build!$B:$B,$C498,raw_resource_build!$A:$A,AG$469)","v":0},{"$f":"SUMIFS(raw_resource_build!$K:$K,raw_resource_build!$B:$B,$C498,raw_resource_build!$A:$A,AH$469)","v":0},{"$f":"SUMIFS(raw_resource_build!$K:$K,raw_resource_build!$B:$B,$C498,raw_resource_build!$A:$A,AI$469)","v":0},{"$f":"SUMIFS(raw_resource_build!$K:$K,raw_resource_build!$B:$B,$C498,raw_resource_build!$A:$A,AJ$469)","v":0},{"$f":"SUMIFS(raw_resource_build!$K:$K,raw_resource_build!$B:$B,$C498,raw_resource_build!$A:$A,AK$469)","v":0},{"$f":"SUMIFS(raw_resource_build!$K:$K,raw_resource_build!$B:$B,$C498,raw_resource_build!$A:$A,AL$469)","v":0},{"$f":"SUMIFS(raw_resource_build!$K:$K,raw_resource_build!$B:$B,$C498,raw_resource_build!$A:$A,AM$469)","v":0},{"$f":"SUMIFS(raw_resource_build!$K:$K,raw_resource_build!$B:$B,$C498,raw_resource_build!$A:$A,AN$469)","v":0}]
[null,null,{"$f":"Lists!B64","v":"Sacramento_River_Solar"},"Sacramento_River",{"$f":"SUMIFS(raw_resource_build!$K:$K,raw_resource_build!$B:$B,$C499,raw_resource_build!$A:$A,E$469)","v":0},{"$f":"SUMIFS(raw_resource_build!$K:$K,raw_resource_build!$B:$B,$C499,raw_resource_build!$A:$A,F$469)","v":0},{"$f":"SUMIFS(raw_resource_build!$K:$K,raw_resource_build!$B:$B,$C499,raw_resource_build!$A:$A,G$469)","v":0},{"$f":"SUMIFS(raw_resource_build!$K:$K,raw_resource_build!$B:$B,$C499,raw_resource_build!$A:$A,H$469)","v":0},{"$f":"SUMIFS(raw_resource_build!$K:$K,raw_resource_build!$B:$B,$C499,raw_resource_build!$A:$A,I$469)","v":0},{"$f":"SUMIFS(raw_resource_build!$K:$K,raw_resource_build!$B:$B,$C499,raw_resource_build!$A:$A,J$469)","v":0},{"$f":"SUMIFS(raw_resource_build!$K:$K,raw_resource_build!$B:$B,$C499,raw_resource_build!$A:$A,K$469)","v":0},{"$f":"SUMIFS(raw_resource_build!$K:$K,raw_resource_build!$B:$B,$C499,raw_resource_build!$A:$A,L$469)","v":0},{"$f":"SUMIFS(raw_resource_build!$K:$K,raw_resource_build!$B:$B,$C499,raw_resource_build!$A:$A,M$469)","v":0},{"$f":"SUMIFS(raw_resource_build!$K:$K,raw_resource_build!$B:$B,$C499,raw_resource_build!$A:$A,N$469)","v":0},{"$f":"SUMIFS(raw_resource_build!$K:$K,raw_resource_build!$B:$B,$C499,raw_resource_build!$A:$A,O$469)","v":0},{"$f":"SUMIFS(raw_resource_build!$K:$K,raw_resource_build!$B:$B,$C499,raw_resource_build!$A:$A,P$469)","v":0},{"$f":"SUMIFS(raw_resource_build!$K:$K,raw_resource_build!$B:$B,$C499,raw_resource_build!$A:$A,Q$469)","v":0},{"$f":"SUMIFS(raw_resource_build!$K:$K,raw_resource_build!$B:$B,$C499,raw_resource_build!$A:$A,R$469)","v":0},{"$f":"SUMIFS(raw_resource_build!$K:$K,raw_resource_build!$B:$B,$C499,raw_resource_build!$A:$A,S$469)","v":0},{"$f":"SUMIFS(raw_resource_build!$K:$K,raw_resource_build!$B:$B,$C499,raw_resource_build!$A:$A,T$469)","v":156.68},{"$f":"SUMIFS(raw_resource_build!$K:$K,raw_resource_build!$B:$B,$C499,raw_resource_build!$A:$A,U$469)","v":0},{"$f":"SUMIFS(raw_resource_build!$K:$K,raw_resource_build!$B:$B,$C499,raw_resource_build!$A:$A,V$469)","v":0},{"$f":"SUMIFS(raw_resource_build!$K:$K,raw_resource_build!$B:$B,$C499,raw_resource_build!$A:$A,W$469)","v":0},{"$f":"SUMIFS(raw_resource_build!$K:$K,raw_resource_build!$B:$B,$C499,raw_resource_build!$A:$A,X$469)","v":0},{"$f":"SUMIFS(raw_resource_build!$K:$K,raw_resource_build!$B:$B,$C499,raw_resource_build!$A:$A,Y$469)","v":0},{"$f":"SUMIFS(raw_resource_build!$K:$K,raw_resource_build!$B:$B,$C499,raw_resource_build!$A:$A,Z$469)","v":0},{"$f":"SUMIFS(raw_resource_build!$K:$K,raw_resource_build!$B:$B,$C499,raw_resource_build!$A:$A,AA$469)","v":0},{"$f":"SUMIFS(raw_resource_build!$K:$K,raw_resource_build!$B:$B,$C499,raw_resource_build!$A:$A,AB$469)","v":0},{"$f":"SUMIFS(raw_resource_build!$K:$K,raw_resource_build!$B:$B,$C499,raw_resource_build!$A:$A,AC$469)","v":0},{"$f":"SUMIFS(raw_resource_build!$K:$K,raw_resource_build!$B:$B,$C499,raw_resource_build!$A:$A,AD$469)","v":0},{"$f":"SUMIFS(raw_resource_build!$K:$K,raw_resource_build!$B:$B,$C499,raw_resource_build!$A:$A,AE$469)","v":0},{"$f":"SUMIFS(raw_resource_build!$K:$K,raw_resource_build!$B:$B,$C499,raw_resource_build!$A:$A,AF$469)","v":0},{"$f":"SUMIFS(raw_resource_build!$K:$K,raw_resource_build!$B:$B,$C499,raw_resource_build!$A:$A,AG$469)","v":0},{"$f":"SUMIFS(raw_resource_build!$K:$K,raw_resource_build!$B:$B,$C499,raw_resource_build!$A:$A,AH$469)","v":0},{"$f":"SUMIFS(raw_resource_build!$K:$K,raw_resource_build!$B:$B,$C499,raw_resource_build!$A:$A,AI$469)","v":21618},{"$f":"SUMIFS(raw_resource_build!$K:$K,raw_resource_build!$B:$B,$C499,raw_resource_build!$A:$A,AJ$469)","v":0},{"$f":"SUMIFS(raw_resource_build!$K:$K,raw_resource_build!$B:$B,$C499,raw_resource_build!$A:$A,AK$469)","v":0},{"$f":"SUMIFS(raw_resource_build!$K:$K,raw_resource_build!$B:$B,$C499,raw_resource_build!$A:$A,AL$469)","v":0},{"$f":"SUMIFS(raw_resource_build!$K:$K,raw_resource_build!$B:$B,$C499,raw_resource_build!$A:$A,AM$469)","v":0},{"$f":"SUMIFS(raw_resource_build!$K:$K,raw_resource_build!$B:$B,$C499,raw_resource_build!$A:$A,AN$469)","v":0}]
[null,null,{"$f":"Lists!B65","v":"Sacramento_River_Wind"},"N/A",{"$f":"SUMIFS(raw_resource_build!$K:$K,raw_resource_build!$B:$B,$C500,raw_resource_build!$A:$A,E$469)","v":0},{"$f":"SUMIFS(raw_resource_build!$K:$K,raw_resource_build!$B:$B,$C500,raw_resource_build!$A:$A,F$469)","v":0},{"$f":"SUMIFS(raw_resource_build!$K:$K,raw_resource_build!$B:$B,$C500,raw_resource_build!$A:$A,G$469)","v":0},{"$f":"SUMIFS(raw_resource_build!$K:$K,raw_resource_build!$B:$B,$C500,raw_resource_build!$A:$A,H$469)","v":0},{"$f":"SUMIFS(raw_resource_build!$K:$K,raw_resource_build!$B:$B,$C500,raw_resource_build!$A:$A,I$469)","v":0},{"$f":"SUMIFS(raw_resource_build!$K:$K,raw_resource_build!$B:$B,$C500,raw_resource_build!$A:$A,J$469)","v":0},{"$f":"SUMIFS(raw_resource_build!$K:$K,raw_resource_build!$B:$B,$C500,raw_resource_build!$A:$A,K$469)","v":0},{"$f":"SUMIFS(raw_resource_build!$K:$K,raw_resource_build!$B:$B,$C500,raw_resource_build!$A:$A,L$469)","v":0},{"$f":"SUMIFS(raw_resource_build!$K:$K,raw_resource_build!$B:$B,$C500,raw_resource_build!$A:$A,M$469)","v":0},{"$f":"SUMIFS(raw_resource_build!$K:$K,raw_resource_build!$B:$B,$C500,raw_resource_build!$A:$A,N$469)","v":0},{"$f":"SUMIFS(raw_resource_build!$K:$K,raw_resource_build!$B:$B,$C500,raw_resource_build!$A:$A,O$469)","v":0},{"$f":"SUMIFS(raw_resource_build!$K:$K,raw_resource_build!$B:$B,$C500,raw_resource_build!$A:$A,P$469)","v":0},{"$f":"SUMIFS(raw_resource_build!$K:$K,raw_resource_build!$B:$B,$C500,raw_resource_build!$A:$A,Q$469)","v":0},{"$f":"SUMIFS(raw_resource_build!$K:$K,raw_resource_build!$B:$B,$C500,raw_resource_build!$A:$A,R$469)","v":0},{"$f":"SUMIFS(raw_resource_build!$K:$K,raw_resource_build!$B:$B,$C500,raw_resource_build!$A:$A,S$469)","v":0},{"$f":"SUMIFS(raw_resource_build!$K:$K,raw_resource_build!$B:$B,$C500,raw_resource_build!$A:$A,T$469)","v":0},{"$f":"SUMIFS(raw_resource_build!$K:$K,raw_resource_build!$B:$B,$C500,raw_resource_build!$A:$A,U$469)","v":0},{"$f":"SUMIFS(raw_resource_build!$K:$K,raw_resource_build!$B:$B,$C500,raw_resource_build!$A:$A,V$469)","v":0},{"$f":"SUMIFS(raw_resource_build!$K:$K,raw_resource_build!$B:$B,$C500,raw_resource_build!$A:$A,W$469)","v":0},{"$f":"SUMIFS(raw_resource_build!$K:$K,raw_resource_build!$B:$B,$C500,raw_resource_build!$A:$A,X$469)","v":0},{"$f":"SUMIFS(raw_resource_build!$K:$K,raw_resource_build!$B:$B,$C500,raw_resource_build!$A:$A,Y$469)","v":0},{"$f":"SUMIFS(raw_resource_build!$K:$K,raw_resource_build!$B:$B,$C500,raw_resource_build!$A:$A,Z$469)","v":0},{"$f":"SUMIFS(raw_resource_build!$K:$K,raw_resource_build!$B:$B,$C500,raw_resource_build!$A:$A,AA$469)","v":0},{"$f":"SUMIFS(raw_resource_build!$K:$K,raw_resource_build!$B:$B,$C500,raw_resource_build!$A:$A,AB$469)","v":0},{"$f":"SUMIFS(raw_resource_build!$K:$K,raw_resource_build!$B:$B,$C500,raw_resource_build!$A:$A,AC$469)","v":0},{"$f":"SUMIFS(raw_resource_build!$K:$K,raw_resource_build!$B:$B,$C500,raw_resource_build!$A:$A,AD$469)","v":0},{"$f":"SUMIFS(raw_resource_build!$K:$K,raw_resource_build!$B:$B,$C500,raw_resource_build!$A:$A,AE$469)","v":0},{"$f":"SUMIFS(raw_resource_build!$K:$K,raw_resource_build!$B:$B,$C500,raw_resource_build!$A:$A,AF$469)","v":0},{"$f":"SUMIFS(raw_resource_build!$K:$K,raw_resource_build!$B:$B,$C500,raw_resource_build!$A:$A,AG$469)","v":0},{"$f":"SUMIFS(raw_resource_build!$K:$K,raw_resource_build!$B:$B,$C500,raw_resource_build!$A:$A,AH$469)","v":0},{"$f":"SUMIFS(raw_resource_build!$K:$K,raw_resource_build!$B:$B,$C500,raw_resource_build!$A:$A,AI$469)","v":0},{"$f":"SUMIFS(raw_resource_build!$K:$K,raw_resource_build!$B:$B,$C500,raw_resource_build!$A:$A,AJ$469)","v":0},{"$f":"SUMIFS(raw_resource_build!$K:$K,raw_resource_build!$B:$B,$C500,raw_resource_build!$A:$A,AK$469)","v":0},{"$f":"SUMIFS(raw_resource_build!$K:$K,raw_resource_build!$B:$B,$C500,raw_resource_build!$A:$A,AL$469)","v":0},{"$f":"SUMIFS(raw_resource_build!$K:$K,raw_resource_build!$B:$B,$C500,raw_resource_build!$A:$A,AM$469)","v":0},{"$f":"SUMIFS(raw_resource_build!$K:$K,raw_resource_build!$B:$B,$C500,raw_resource_build!$A:$A,AN$469)","v":0}]
[null,null,{"$f":"Lists!B66","v":"SCADSNV_Solar"},"SCADSNV",{"$f":"SUMIFS(raw_resource_build!$K:$K,raw_resource_build!$B:$B,$C501,raw_resource_build!$A:$A,E$469)","v":0},{"$f":"SUMIFS(raw_resource_build!$K:$K,raw_resource_build!$B:$B,$C501,raw_resource_build!$A:$A,F$469)","v":0},{"$f":"SUMIFS(raw_resource_build!$K:$K,raw_resource_build!$B:$B,$C501,raw_resource_build!$A:$A,G$469)","v":0},{"$f":"SUMIFS(raw_resource_build!$K:$K,raw_resource_build!$B:$B,$C501,raw_resource_build!$A:$A,H$469)","v":0},{"$f":"SUMIFS(raw_resource_build!$K:$K,raw_resource_build!$B:$B,$C501,raw_resource_build!$A:$A,I$469)","v":0},{"$f":"SUMIFS(raw_resource_build!$K:$K,raw_resource_build!$B:$B,$C501,raw_resource_build!$A:$A,J$469)","v":0},{"$f":"SUMIFS(raw_resource_build!$K:$K,raw_resource_build!$B:$B,$C501,raw_resource_build!$A:$A,K$469)","v":0},{"$f":"SUMIFS(raw_resource_build!$K:$K,raw_resource_build!$B:$B,$C501,raw_resource_build!$A:$A,L$469)","v":0},{"$f":"SUMIFS(raw_resource_build!$K:$K,raw_resource_build!$B:$B,$C501,raw_resource_build!$A:$A,M$469)","v":0},{"$f":"SUMIFS(raw_resource_build!$K:$K,raw_resource_build!$B:$B,$C501,raw_resource_build!$A:$A,N$469)","v":0},{"$f":"SUMIFS(raw_resource_build!$K:$K,raw_resource_build!$B:$B,$C501,raw_resource_build!$A:$A,O$469)","v":0},{"$f":"SUMIFS(raw_resource_build!$K:$K,raw_resource_build!$B:$B,$C501,raw_resource_build!$A:$A,P$469)","v":0},{"$f":"SUMIFS(raw_resource_build!$K:$K,raw_resource_build!$B:$B,$C501,raw_resource_build!$A:$A,Q$469)","v":0},{"$f":"SUMIFS(raw_resource_build!$K:$K,raw_resource_build!$B:$B,$C501,raw_resource_build!$A:$A,R$469)","v":0},{"$f":"SUMIFS(raw_resource_build!$K:$K,raw_resource_build!$B:$B,$C501,raw_resource_build!$A:$A,S$469)","v":0},{"$f":"SUMIFS(raw_resource_build!$K:$K,raw_resource_build!$B:$B,$C501,raw_resource_build!$A:$A,T$469)","v":0},{"$f":"SUMIFS(raw_resource_build!$K:$K,raw_resource_build!$B:$B,$C501,raw_resource_build!$A:$A,U$469)","v":0},{"$f":"SUMIFS(raw_resource_build!$K:$K,raw_resource_build!$B:$B,$C501,raw_resource_build!$A:$A,V$469)","v":0},{"$f":"SUMIFS(raw_resource_build!$K:$K,raw_resource_build!$B:$B,$C501,raw_resource_build!$A:$A,W$469)","v":0},{"$f":"SUMIFS(raw_resource_build!$K:$K,raw_resource_build!$B:$B,$C501,raw_resource_build!$A:$A,X$469)","v":0},{"$f":"SUMIFS(raw_resource_build!$K:$K,raw_resource_build!$B:$B,$C501,raw_resource_build!$A:$A,Y$469)","v":0},{"$f":"SUMIFS(raw_resource_build!$K:$K,raw_resource_build!$B:$B,$C501,raw_resource_build!$A:$A,Z$469)","v":0},{"$f":"SUMIFS(raw_resource_build!$K:$K,raw_resource_build!$B:$B,$C501,raw_resource_build!$A:$A,AA$469)","v":0},{"$f":"SUMIFS(raw_resource_build!$K:$K,raw_resource_build!$B:$B,$C501,raw_resource_build!$A:$A,AB$469)","v":0},{"$f":"SUMIFS(raw_resource_build!$K:$K,raw_resource_build!$B:$B,$C501,raw_resource_build!$A:$A,AC$469)","v":0},{"$f":"SUMIFS(raw_resource_build!$K:$K,raw_resource_build!$B:$B,$C501,raw_resource_build!$A:$A,AD$469)","v":0},{"$f":"SUMIFS(raw_resource_build!$K:$K,raw_resource_build!$B:$B,$C501,raw_resource_build!$A:$A,AE$469)","v":0},{"$f":"SUMIFS(raw_resource_build!$K:$K,raw_resource_build!$B:$B,$C501,raw_resource_build!$A:$A,AF$469)","v":0},{"$f":"SUMIFS(raw_resource_build!$K:$K,raw_resource_build!$B:$B,$C501,raw_resource_build!$A:$A,AG$469)","v":0},{"$f":"SUMIFS(raw_resource_build!$K:$K,raw_resource_build!$B:$B,$C501,raw_resource_build!$A:$A,AH$469)","v":0},{"$f":"SUMIFS(raw_resource_build!$K:$K,raw_resource_build!$B:$B,$C501,raw_resource_build!$A:$A,AI$469)","v":0},{"$f":"SUMIFS(raw_resource_build!$K:$K,raw_resource_build!$B:$B,$C501,raw_resource_build!$A:$A,AJ$469)","v":0},{"$f":"SUMIFS(raw_resource_build!$K:$K,raw_resource_build!$B:$B,$C501,raw_resource_build!$A:$A,AK$469)","v":0},{"$f":"SUMIFS(raw_resource_build!$K:$K,raw_resource_build!$B:$B,$C501,raw_resource_build!$A:$A,AL$469)","v":0},{"$f":"SUMIFS(raw_resource_build!$K:$K,raw_resource_build!$B:$B,$C501,raw_resource_build!$A:$A,AM$469)","v":0},{"$f":"SUMIFS(raw_resource_build!$K:$K,raw_resource_build!$B:$B,$C501,raw_resource_build!$A:$A,AN$469)","v":0}]
[null,null,{"$f":"Lists!B67","v":"SCADSNV_Wind"},{"$f":"D429","v":"SCADSNV"},{"$f":"SUMIFS(raw_resource_build!$K:$K,raw_resource_build!$B:$B,$C502,raw_resource_build!$A:$A,E$469)","v":0},{"$f":"SUMIFS(raw_resource_build!$K:$K,raw_resource_build!$B:$B,$C502,raw_resource_build!$A:$A,F$469)","v":0},{"$f":"SUMIFS(raw_resource_build!$K:$K,raw_resource_build!$B:$B,$C502,raw_resource_build!$A:$A,G$469)","v":0},{"$f":"SUMIFS(raw_resource_build!$K:$K,raw_resource_build!$B:$B,$C502,raw_resource_build!$A:$A,H$469)","v":0},{"$f":"SUMIFS(raw_resource_build!$K:$K,raw_resource_build!$B:$B,$C502,raw_resource_build!$A:$A,I$469)","v":0},{"$f":"SUMIFS(raw_resource_build!$K:$K,raw_resource_build!$B:$B,$C502,raw_resource_build!$A:$A,J$469)","v":0},{"$f":"SUMIFS(raw_resource_build!$K:$K,raw_resource_build!$B:$B,$C502,raw_resource_build!$A:$A,K$469)","v":0},{"$f":"SUMIFS(raw_resource_build!$K:$K,raw_resource_build!$B:$B,$C502,raw_resource_build!$A:$A,L$469)","v":0},{"$f":"SUMIFS(raw_resource_build!$K:$K,raw_resource_build!$B:$B,$C502,raw_resource_build!$A:$A,M$469)","v":0},{"$f":"SUMIFS(raw_resource_build!$K:$K,raw_resource_build!$B:$B,$C502,raw_resource_build!$A:$A,N$469)","v":0},{"$f":"SUMIFS(raw_resource_build!$K:$K,raw_resource_build!$B:$B,$C502,raw_resource_build!$A:$A,O$469)","v":0},{"$f":"SUMIFS(raw_resource_build!$K:$K,raw_resource_build!$B:$B,$C502,raw_resource_build!$A:$A,P$469)","v":0},{"$f":"SUMIFS(raw_resource_build!$K:$K,raw_resource_build!$B:$B,$C502,raw_resource_build!$A:$A,Q$469)","v":0},{"$f":"SUMIFS(raw_resource_build!$K:$K,raw_resource_build!$B:$B,$C502,raw_resource_build!$A:$A,R$469)","v":0},{"$f":"SUMIFS(raw_resource_build!$K:$K,raw_resource_build!$B:$B,$C502,raw_resource_build!$A:$A,S$469)","v":0},{"$f":"SUMIFS(raw_resource_build!$K:$K,raw_resource_build!$B:$B,$C502,raw_resource_build!$A:$A,T$469)","v":0},{"$f":"SUMIFS(raw_resource_build!$K:$K,raw_resource_build!$B:$B,$C502,raw_resource_build!$A:$A,U$469)","v":0},{"$f":"SUMIFS(raw_resource_build!$K:$K,raw_resource_build!$B:$B,$C502,raw_resource_build!$A:$A,V$469)","v":0},{"$f":"SUMIFS(raw_resource_build!$K:$K,raw_resource_build!$B:$B,$C502,raw_resource_build!$A:$A,W$469)","v":0},{"$f":"SUMIFS(raw_resource_build!$K:$K,raw_resource_build!$B:$B,$C502,raw_resource_build!$A:$A,X$469)","v":0},{"$f":"SUMIFS(raw_resource_build!$K:$K,raw_resource_build!$B:$B,$C502,raw_resource_build!$A:$A,Y$469)","v":0},{"$f":"SUMIFS(raw_resource_build!$K:$K,raw_resource_build!$B:$B,$C502,raw_resource_build!$A:$A,Z$469)","v":0},{"$f":"SUMIFS(raw_resource_build!$K:$K,raw_resource_build!$B:$B,$C502,raw_resource_build!$A:$A,AA$469)","v":0},{"$f":"SUMIFS(raw_resource_build!$K:$K,raw_resource_build!$B:$B,$C502,raw_resource_build!$A:$A,AB$469)","v":0},{"$f":"SUMIFS(raw_resource_build!$K:$K,raw_resource_build!$B:$B,$C502,raw_resource_build!$A:$A,AC$469)","v":0},{"$f":"SUMIFS(raw_resource_build!$K:$K,raw_resource_build!$B:$B,$C502,raw_resource_build!$A:$A,AD$469)","v":0},{"$f":"SUMIFS(raw_resource_build!$K:$K,raw_resource_build!$B:$B,$C502,raw_resource_build!$A:$A,AE$469)","v":0},{"$f":"SUMIFS(raw_resource_build!$K:$K,raw_resource_build!$B:$B,$C502,raw_resource_build!$A:$A,AF$469)","v":0},{"$f":"SUMIFS(raw_resource_build!$K:$K,raw_resource_build!$B:$B,$C502,raw_resource_build!$A:$A,AG$469)","v":0},{"$f":"SUMIFS(raw_resource_build!$K:$K,raw_resource_build!$B:$B,$C502,raw_resource_build!$A:$A,AH$469)","v":0},{"$f":"SUMIFS(raw_resource_build!$K:$K,raw_resource_build!$B:$B,$C502,raw_resource_build!$A:$A,AI$469)","v":0},{"$f":"SUMIFS(raw_resource_build!$K:$K,raw_resource_build!$B:$B,$C502,raw_resource_build!$A:$A,AJ$469)","v":0},{"$f":"SUMIFS(raw_resource_build!$K:$K,raw_resource_build!$B:$B,$C502,raw_resource_build!$A:$A,AK$469)","v":0},{"$f":"SUMIFS(raw_resource_build!$K:$K,raw_resource_build!$B:$B,$C502,raw_resource_build!$A:$A,AL$469)","v":0},{"$f":"SUMIFS(raw_resource_build!$K:$K,raw_resource_build!$B:$B,$C502,raw_resource_build!$A:$A,AM$469)","v":0},{"$f":"SUMIFS(raw_resource_build!$K:$K,raw_resource_build!$B:$B,$C502,raw_resource_build!$A:$A,AN$469)","v":0}]
[null,null,{"$f":"Lists!B68","v":"Solano_Solar"},"Solano-Sacramento_River",{"$f":"SUMIFS(raw_resource_build!$K:$K,raw_resource_build!$B:$B,$C503,raw_resource_build!$A:$A,E$469)","v":0},{"$f":"SUMIFS(raw_resource_build!$K:$K,raw_resource_build!$B:$B,$C503,raw_resource_build!$A:$A,F$469)","v":0},{"$f":"SUMIFS(raw_resource_build!$K:$K,raw_resource_build!$B:$B,$C503,raw_resource_build!$A:$A,G$469)","v":0},{"$f":"SUMIFS(raw_resource_build!$K:$K,raw_resource_build!$B:$B,$C503,raw_resource_build!$A:$A,H$469)","v":0},{"$f":"SUMIFS(raw_resource_build!$K:$K,raw_resource_build!$B:$B,$C503,raw_resource_build!$A:$A,I$469)","v":0},{"$f":"SUMIFS(raw_resource_build!$K:$K,raw_resource_build!$B:$B,$C503,raw_resource_build!$A:$A,J$469)","v":0},{"$f":"SUMIFS(raw_resource_build!$K:$K,raw_resource_build!$B:$B,$C503,raw_resource_build!$A:$A,K$469)","v":0},{"$f":"SUMIFS(raw_resource_build!$K:$K,raw_resource_build!$B:$B,$C503,raw_resource_build!$A:$A,L$469)","v":0},{"$f":"SUMIFS(raw_resource_build!$K:$K,raw_resource_build!$B:$B,$C503,raw_resource_build!$A:$A,M$469)","v":0},{"$f":"SUMIFS(raw_resource_build!$K:$K,raw_resource_build!$B:$B,$C503,raw_resource_build!$A:$A,N$469)","v":0},{"$f":"SUMIFS(raw_resource_build!$K:$K,raw_resource_build!$B:$B,$C503,raw_resource_build!$A:$A,O$469)","v":0},{"$f":"SUMIFS(raw_resource_build!$K:$K,raw_resource_build!$B:$B,$C503,raw_resource_build!$A:$A,P$469)","v":0},{"$f":"SUMIFS(raw_resource_build!$K:$K,raw_resource_build!$B:$B,$C503,raw_resource_build!$A:$A,Q$469)","v":0},{"$f":"SUMIFS(raw_resource_build!$K:$K,raw_resource_build!$B:$B,$C503,raw_resource_build!$A:$A,R$469)","v":0},{"$f":"SUMIFS(raw_resource_build!$K:$K,raw_resource_build!$B:$B,$C503,raw_resource_build!$A:$A,S$469)","v":0},{"$f":"SUMIFS(raw_resource_build!$K:$K,raw_resource_build!$B:$B,$C503,raw_resource_build!$A:$A,T$469)","v":0},{"$f":"SUMIFS(raw_resource_build!$K:$K,raw_resource_build!$B:$B,$C503,raw_resource_build!$A:$A,U$469)","v":0},{"$f":"SUMIFS(raw_resource_build!$K:$K,raw_resource_build!$B:$B,$C503,raw_resource_build!$A:$A,V$469)","v":0},{"$f":"SUMIFS(raw_resource_build!$K:$K,raw_resource_build!$B:$B,$C503,raw_resource_build!$A:$A,W$469)","v":0},{"$f":"SUMIFS(raw_resource_build!$K:$K,raw_resource_build!$B:$B,$C503,raw_resource_build!$A:$A,X$469)","v":0},{"$f":"SUMIFS(raw_resource_build!$K:$K,raw_resource_build!$B:$B,$C503,raw_resource_build!$A:$A,Y$469)","v":0},{"$f":"SUMIFS(raw_resource_build!$K:$K,raw_resource_build!$B:$B,$C503,raw_resource_build!$A:$A,Z$469)","v":0},{"$f":"SUMIFS(raw_resource_build!$K:$K,raw_resource_build!$B:$B,$C503,raw_resource_build!$A:$A,AA$469)","v":0},{"$f":"SUMIFS(raw_resource_build!$K:$K,raw_resource_build!$B:$B,$C503,raw_resource_build!$A:$A,AB$469)","v":0},{"$f":"SUMIFS(raw_resource_build!$K:$K,raw_resource_build!$B:$B,$C503,raw_resource_build!$A:$A,AC$469)","v":0},{"$f":"SUMIFS(raw_resource_build!$K:$K,raw_resource_build!$B:$B,$C503,raw_resource_build!$A:$A,AD$469)","v":0},{"$f":"SUMIFS(raw_resource_build!$K:$K,raw_resource_build!$B:$B,$C503,raw_resource_build!$A:$A,AE$469)","v":0},{"$f":"SUMIFS(raw_resource_build!$K:$K,raw_resource_build!$B:$B,$C503,raw_resource_build!$A:$A,AF$469)","v":0},{"$f":"SUMIFS(raw_resource_build!$K:$K,raw_resource_build!$B:$B,$C503,raw_resource_build!$A:$A,AG$469)","v":0},{"$f":"SUMIFS(raw_resource_build!$K:$K,raw_resource_build!$B:$B,$C503,raw_resource_build!$A:$A,AH$469)","v":0},{"$f":"SUMIFS(raw_resource_build!$K:$K,raw_resource_build!$B:$B,$C503,raw_resource_build!$A:$A,AI$469)","v":0},{"$f":"SUMIFS(raw_resource_build!$K:$K,raw_resource_build!$B:$B,$C503,raw_resource_build!$A:$A,AJ$469)","v":0},{"$f":"SUMIFS(raw_resource_build!$K:$K,raw_resource_build!$B:$B,$C503,raw_resource_build!$A:$A,AK$469)","v":0},{"$f":"SUMIFS(raw_resource_build!$K:$K,raw_resource_build!$B:$B,$C503,raw_resource_build!$A:$A,AL$469)","v":0},{"$f":"SUMIFS(raw_resource_build!$K:$K,raw_resource_build!$B:$B,$C503,raw_resource_build!$A:$A,AM$469)","v":0},{"$f":"SUMIFS(raw_resource_build!$K:$K,raw_resource_build!$B:$B,$C503,raw_resource_build!$A:$A,AN$469)","v":0}]
[null,null,{"$f":"Lists!B69","v":"Solano_subzone_Solar"},"Solano-Solano_subzone-Sacramento_River",{"$f":"SUMIFS(raw_resource_build!$K:$K,raw_resource_build!$B:$B,$C504,raw_resource_build!$A:$A,E$469)","v":0},{"$f":"SUMIFS(raw_resource_build!$K:$K,raw_resource_build!$B:$B,$C504,raw_resource_build!$A:$A,F$469)","v":0},{"$f":"SUMIFS(raw_resource_build!$K:$K,raw_resource_build!$B:$B,$C504,raw_resource_build!$A:$A,G$469)","v":0},{"$f":"SUMIFS(raw_resource_build!$K:$K,raw_resource_build!$B:$B,$C504,raw_resource_build!$A:$A,H$469)","v":0},{"$f":"SUMIFS(raw_resource_build!$K:$K,raw_resource_build!$B:$B,$C504,raw_resource_build!$A:$A,I$469)","v":0},{"$f":"SUMIFS(raw_resource_build!$K:$K,raw_resource_build!$B:$B,$C504,raw_resource_build!$A:$A,J$469)","v":0},{"$f":"SUMIFS(raw_resource_build!$K:$K,raw_resource_build!$B:$B,$C504,raw_resource_build!$A:$A,K$469)","v":0},{"$f":"SUMIFS(raw_resource_build!$K:$K,raw_resource_build!$B:$B,$C504,raw_resource_build!$A:$A,L$469)","v":0},{"$f":"SUMIFS(raw_resource_build!$K:$K,raw_resource_build!$B:$B,$C504,raw_resource_build!$A:$A,M$469)","v":0},{"$f":"SUMIFS(raw_resource_build!$K:$K,raw_resource_build!$B:$B,$C504,raw_resource_build!$A:$A,N$469)","v":0},{"$f":"SUMIFS(raw_resource_build!$K:$K,raw_resource_build!$B:$B,$C504,raw_resource_build!$A:$A,O$469)","v":0},{"$f":"SUMIFS(raw_resource_build!$K:$K,raw_resource_build!$B:$B,$C504,raw_resource_build!$A:$A,P$469)","v":0},{"$f":"SUMIFS(raw_resource_build!$K:$K,raw_resource_build!$B:$B,$C504,raw_resource_build!$A:$A,Q$469)","v":0},{"$f":"SUMIFS(raw_resource_build!$K:$K,raw_resource_build!$B:$B,$C504,raw_resource_build!$A:$A,R$469)","v":0},{"$f":"SUMIFS(raw_resource_build!$K:$K,raw_resource_build!$B:$B,$C504,raw_resource_build!$A:$A,S$469)","v":0},{"$f":"SUMIFS(raw_resource_build!$K:$K,raw_resource_build!$B:$B,$C504,raw_resource_build!$A:$A,T$469)","v":0},{"$f":"SUMIFS(raw_resource_build!$K:$K,raw_resource_build!$B:$B,$C504,raw_resource_build!$A:$A,U$469)","v":0},{"$f":"SUMIFS(raw_resource_build!$K:$K,raw_resource_build!$B:$B,$C504,raw_resource_build!$A:$A,V$469)","v":0},{"$f":"SUMIFS(raw_resource_build!$K:$K,raw_resource_build!$B:$B,$C504,raw_resource_build!$A:$A,W$469)","v":0},{"$f":"SUMIFS(raw_resource_build!$K:$K,raw_resource_build!$B:$B,$C504,raw_resource_build!$A:$A,X$469)","v":0},{"$f":"SUMIFS(raw_resource_build!$K:$K,raw_resource_build!$B:$B,$C504,raw_resource_build!$A:$A,Y$469)","v":0},{"$f":"SUMIFS(raw_resource_build!$K:$K,raw_resource_build!$B:$B,$C504,raw_resource_build!$A:$A,Z$469)","v":0},{"$f":"SUMIFS(raw_resource_build!$K:$K,raw_resource_build!$B:$B,$C504,raw_resource_build!$A:$A,AA$469)","v":0},{"$f":"SUMIFS(raw_resource_build!$K:$K,raw_resource_build!$B:$B,$C504,raw_resource_build!$A:$A,AB$469)","v":0},{"$f":"SUMIFS(raw_resource_build!$K:$K,raw_resource_build!$B:$B,$C504,raw_resource_build!$A:$A,AC$469)","v":0},{"$f":"SUMIFS(raw_resource_build!$K:$K,raw_resource_build!$B:$B,$C504,raw_resource_build!$A:$A,AD$469)","v":0},{"$f":"SUMIFS(raw_resource_build!$K:$K,raw_resource_build!$B:$B,$C504,raw_resource_build!$A:$A,AE$469)","v":0},{"$f":"SUMIFS(raw_resource_build!$K:$K,raw_resource_build!$B:$B,$C504,raw_resource_build!$A:$A,AF$469)","v":0},{"$f":"SUMIFS(raw_resource_build!$K:$K,raw_resource_build!$B:$B,$C504,raw_resource_build!$A:$A,AG$469)","v":0},{"$f":"SUMIFS(raw_resource_build!$K:$K,raw_resource_build!$B:$B,$C504,raw_resource_build!$A:$A,AH$469)","v":0},{"$f":"SUMIFS(raw_resource_build!$K:$K,raw_resource_build!$B:$B,$C504,raw_resource_build!$A:$A,AI$469)","v":0},{"$f":"SUMIFS(raw_resource_build!$K:$K,raw_resource_build!$B:$B,$C504,raw_resource_build!$A:$A,AJ$469)","v":0},{"$f":"SUMIFS(raw_resource_build!$K:$K,raw_resource_build!$B:$B,$C504,raw_resource_build!$A:$A,AK$469)","v":0},{"$f":"SUMIFS(raw_resource_build!$K:$K,raw_resource_build!$B:$B,$C504,raw_resource_build!$A:$A,AL$469)","v":0},{"$f":"SUMIFS(raw_resource_build!$K:$K,raw_resource_build!$B:$B,$C504,raw_resource_build!$A:$A,AM$469)","v":0},{"$f":"SUMIFS(raw_resource_build!$K:$K,raw_resource_build!$B:$B,$C504,raw_resource_build!$A:$A,AN$469)","v":0}]
[null,null,{"$f":"Lists!B70","v":"Solano_subzone_Wind"},"Solano-Solano_subzone-Sacramento_River",{"$f":"SUMIFS(raw_resource_build!$K:$K,raw_resource_build!$B:$B,$C505,raw_resource_build!$A:$A,E$469)","v":0},{"$f":"SUMIFS(raw_resource_build!$K:$K,raw_resource_build!$B:$B,$C505,raw_resource_build!$A:$A,F$469)","v":0},{"$f":"SUMIFS(raw_resource_build!$K:$K,raw_resource_build!$B:$B,$C505,raw_resource_build!$A:$A,G$469)","v":0},{"$f":"SUMIFS(raw_resource_build!$K:$K,raw_resource_build!$B:$B,$C505,raw_resource_build!$A:$A,H$469)","v":0},{"$f":"SUMIFS(raw_resource_build!$K:$K,raw_resource_build!$B:$B,$C505,raw_resource_build!$A:$A,I$469)","v":0},{"$f":"SUMIFS(raw_resource_build!$K:$K,raw_resource_build!$B:$B,$C505,raw_resource_build!$A:$A,J$469)","v":0},{"$f":"SUMIFS(raw_resource_build!$K:$K,raw_resource_build!$B:$B,$C505,raw_resource_build!$A:$A,K$469)","v":0},{"$f":"SUMIFS(raw_resource_build!$K:$K,raw_resource_build!$B:$B,$C505,raw_resource_build!$A:$A,L$469)","v":0},{"$f":"SUMIFS(raw_resource_build!$K:$K,raw_resource_build!$B:$B,$C505,raw_resource_build!$A:$A,M$469)","v":0},{"$f":"SUMIFS(raw_resource_build!$K:$K,raw_resource_build!$B:$B,$C505,raw_resource_build!$A:$A,N$469)","v":0},{"$f":"SUMIFS(raw_resource_build!$K:$K,raw_resource_build!$B:$B,$C505,raw_resource_build!$A:$A,O$469)","v":0},{"$f":"SUMIFS(raw_resource_build!$K:$K,raw_resource_build!$B:$B,$C505,raw_resource_build!$A:$A,P$469)","v":0},{"$f":"SUMIFS(raw_resource_build!$K:$K,raw_resource_build!$B:$B,$C505,raw_resource_build!$A:$A,Q$469)","v":0},{"$f":"SUMIFS(raw_resource_build!$K:$K,raw_resource_build!$B:$B,$C505,raw_resource_build!$A:$A,R$469)","v":0},{"$f":"SUMIFS(raw_resource_build!$K:$K,raw_resource_build!$B:$B,$C505,raw_resource_build!$A:$A,S$469)","v":0},{"$f":"SUMIFS(raw_resource_build!$K:$K,raw_resource_build!$B:$B,$C505,raw_resource_build!$A:$A,T$469)","v":0},{"$f":"SUMIFS(raw_resource_build!$K:$K,raw_resource_build!$B:$B,$C505,raw_resource_build!$A:$A,U$469)","v":0},{"$f":"SUMIFS(raw_resource_build!$K:$K,raw_resource_build!$B:$B,$C505,raw_resource_build!$A:$A,V$469)","v":0},{"$f":"SUMIFS(raw_resource_build!$K:$K,raw_resource_build!$B:$B,$C505,raw_resource_build!$A:$A,W$469)","v":0},{"$f":"SUMIFS(raw_resource_build!$K:$K,raw_resource_build!$B:$B,$C505,raw_resource_build!$A:$A,X$469)","v":0},{"$f":"SUMIFS(raw_resource_build!$K:$K,raw_resource_build!$B:$B,$C505,raw_resource_build!$A:$A,Y$469)","v":0},{"$f":"SUMIFS(raw_resource_build!$K:$K,raw_resource_build!$B:$B,$C505,raw_resource_build!$A:$A,Z$469)","v":0},{"$f":"SUMIFS(raw_resource_build!$K:$K,raw_resource_build!$B:$B,$C505,raw_resource_build!$A:$A,AA$469)","v":0},{"$f":"SUMIFS(raw_resource_build!$K:$K,raw_resource_build!$B:$B,$C505,raw_resource_build!$A:$A,AB$469)","v":0},{"$f":"SUMIFS(raw_resource_build!$K:$K,raw_resource_build!$B:$B,$C505,raw_resource_build!$A:$A,AC$469)","v":0},{"$f":"SUMIFS(raw_resource_build!$K:$K,raw_resource_build!$B:$B,$C505,raw_resource_build!$A:$A,AD$469)","v":0},{"$f":"SUMIFS(raw_resource_build!$K:$K,raw_resource_build!$B:$B,$C505,raw_resource_build!$A:$A,AE$469)","v":0},{"$f":"SUMIFS(raw_resource_build!$K:$K,raw_resource_build!$B:$B,$C505,raw_resource_build!$A:$A,AF$469)","v":0},{"$f":"SUMIFS(raw_resource_build!$K:$K,raw_resource_build!$B:$B,$C505,raw_resource_build!$A:$A,AG$469)","v":0},{"$f":"SUMIFS(raw_resource_build!$K:$K,raw_resource_build!$B:$B,$C505,raw_resource_build!$A:$A,AH$469)","v":0},{"$f":"SUMIFS(raw_resource_build!$K:$K,raw_resource_build!$B:$B,$C505,raw_resource_build!$A:$A,AI$469)","v":0},{"$f":"SUMIFS(raw_resource_build!$K:$K,raw_resource_build!$B:$B,$C505,raw_resource_build!$A:$A,AJ$469)","v":0},{"$f":"SUMIFS(raw_resource_build!$K:$K,raw_resource_build!$B:$B,$C505,raw_resource_build!$A:$A,AK$469)","v":0},{"$f":"SUMIFS(raw_resource_build!$K:$K,raw_resource_build!$B:$B,$C505,raw_resource_build!$A:$A,AL$469)","v":0},{"$f":"SUMIFS(raw_resource_build!$K:$K,raw_resource_build!$B:$B,$C505,raw_resource_build!$A:$A,AM$469)","v":0},{"$f":"SUMIFS(raw_resource_build!$K:$K,raw_resource_build!$B:$B,$C505,raw_resource_build!$A:$A,AN$469)","v":0}]
[null,null,{"$f":"Lists!B71","v":"Solano_Wind"},"Solano-Sacramento_River",{"$f":"SUMIFS(raw_resource_build!$K:$K,raw_resource_build!$B:$B,$C506,raw_resource_build!$A:$A,E$469)","v":0},{"$f":"SUMIFS(raw_resource_build!$K:$K,raw_resource_build!$B:$B,$C506,raw_resource_build!$A:$A,F$469)","v":0},{"$f":"SUMIFS(raw_resource_build!$K:$K,raw_resource_build!$B:$B,$C506,raw_resource_build!$A:$A,G$469)","v":0},{"$f":"SUMIFS(raw_resource_build!$K:$K,raw_resource_build!$B:$B,$C506,raw_resource_build!$A:$A,H$469)","v":0},{"$f":"SUMIFS(raw_resource_build!$K:$K,raw_resource_build!$B:$B,$C506,raw_resource_build!$A:$A,I$469)","v":0},{"$f":"SUMIFS(raw_resource_build!$K:$K,raw_resource_build!$B:$B,$C506,raw_resource_build!$A:$A,J$469)","v":0},{"$f":"SUMIFS(raw_resource_build!$K:$K,raw_resource_build!$B:$B,$C506,raw_resource_build!$A:$A,K$469)","v":0},{"$f":"SUMIFS(raw_resource_build!$K:$K,raw_resource_build!$B:$B,$C506,raw_resource_build!$A:$A,L$469)","v":464},{"$f":"SUMIFS(raw_resource_build!$K:$K,raw_resource_build!$B:$B,$C506,raw_resource_build!$A:$A,M$469)","v":464},{"$f":"SUMIFS(raw_resource_build!$K:$K,raw_resource_build!$B:$B,$C506,raw_resource_build!$A:$A,N$469)","v":464},{"$f":"SUMIFS(raw_resource_build!$K:$K,raw_resource_build!$B:$B,$C506,raw_resource_build!$A:$A,O$469)","v":0},{"$f":"SUMIFS(raw_resource_build!$K:$K,raw_resource_build!$B:$B,$C506,raw_resource_build!$A:$A,P$469)","v":464},{"$f":"SUMIFS(raw_resource_build!$K:$K,raw_resource_build!$B:$B,$C506,raw_resource_build!$A:$A,Q$469)","v":0},{"$f":"SUMIFS(raw_resource_build!$K:$K,raw_resource_build!$B:$B,$C506,raw_resource_build!$A:$A,R$469)","v":0},{"$f":"SUMIFS(raw_resource_build!$K:$K,raw_resource_build!$B:$B,$C506,raw_resource_build!$A:$A,S$469)","v":0},{"$f":"SUMIFS(raw_resource_build!$K:$K,raw_resource_build!$B:$B,$C506,raw_resource_build!$A:$A,T$469)","v":464},{"$f":"SUMIFS(raw_resource_build!$K:$K,raw_resource_build!$B:$B,$C506,raw_resource_build!$A:$A,U$469)","v":0},{"$f":"SUMIFS(raw_resource_build!$K:$K,raw_resource_build!$B:$B,$C506,raw_resource_build!$A:$A,V$469)","v":0},{"$f":"SUMIFS(raw_resource_build!$K:$K,raw_resource_build!$B:$B,$C506,raw_resource_build!$A:$A,W$469)","v":0},{"$f":"SUMIFS(raw_resource_build!$K:$K,raw_resource_build!$B:$B,$C506,raw_resource_build!$A:$A,X$469)","v":0},{"$f":"SUMIFS(raw_resource_build!$K:$K,raw_resource_build!$B:$B,$C506,raw_resource_build!$A:$A,Y$469)","v":0},{"$f":"SUMIFS(raw_resource_build!$K:$K,raw_resource_build!$B:$B,$C506,raw_resource_build!$A:$A,Z$469)","v":0},{"$f":"SUMIFS(raw_resource_build!$K:$K,raw_resource_build!$B:$B,$C506,raw_resource_build!$A:$A,AA$469)","v":0},{"$f":"SUMIFS(raw_resource_build!$K:$K,raw_resource_build!$B:$B,$C506,raw_resource_build!$A:$A,AB$469)","v":0},{"$f":"SUMIFS(raw_resource_build!$K:$K,raw_resource_build!$B:$B,$C506,raw_resource_build!$A:$A,AC$469)","v":0},{"$f":"SUMIFS(raw_resource_build!$K:$K,raw_resource_build!$B:$B,$C506,raw_resource_build!$A:$A,AD$469)","v":0},{"$f":"SUMIFS(raw_resource_build!$K:$K,raw_resource_build!$B:$B,$C506,raw_resource_build!$A:$A,AE$469)","v":0},{"$f":"SUMIFS(raw_resource_build!$K:$K,raw_resource_build!$B:$B,$C506,raw_resource_build!$A:$A,AF$469)","v":0},{"$f":"SUMIFS(raw_resource_build!$K:$K,raw_resource_build!$B:$B,$C506,raw_resource_build!$A:$A,AG$469)","v":0},{"$f":"SUMIFS(raw_resource_build!$K:$K,raw_resource_build!$B:$B,$C506,raw_resource_build!$A:$A,AH$469)","v":0},{"$f":"SUMIFS(raw_resource_build!$K:$K,raw_resource_build!$B:$B,$C506,raw_resource_build!$A:$A,AI$469)","v":464},{"$f":"SUMIFS(raw_resource_build!$K:$K,raw_resource_build!$B:$B,$C506,raw_resource_build!$A:$A,AJ$469)","v":0},{"$f":"SUMIFS(raw_resource_build!$K:$K,raw_resource_build!$B:$B,$C506,raw_resource_build!$A:$A,AK$469)","v":0},{"$f":"SUMIFS(raw_resource_build!$K:$K,raw_resource_build!$B:$B,$C506,raw_resource_build!$A:$A,AL$469)","v":0},{"$f":"SUMIFS(raw_resource_build!$K:$K,raw_resource_build!$B:$B,$C506,raw_resource_build!$A:$A,AM$469)","v":0},{"$f":"SUMIFS(raw_resource_build!$K:$K,raw_resource_build!$B:$B,$C506,raw_resource_build!$A:$A,AN$469)","v":0}]
[null,null,{"$f":"Lists!B72","v":"Southern_California_Desert_Ex_Solar"},"Southern_California_Desert_Ex",{"$f":"SUMIFS(raw_resource_build!$K:$K,raw_resource_build!$B:$B,$C507,raw_resource_build!$A:$A,E$469)","v":0},{"$f":"SUMIFS(raw_resource_build!$K:$K,raw_resource_build!$B:$B,$C507,raw_resource_build!$A:$A,F$469)","v":0},{"$f":"SUMIFS(raw_resource_build!$K:$K,raw_resource_build!$B:$B,$C507,raw_resource_build!$A:$A,G$469)","v":0},{"$f":"SUMIFS(raw_resource_build!$K:$K,raw_resource_build!$B:$B,$C507,raw_resource_build!$A:$A,H$469)","v":0},{"$f":"SUMIFS(raw_resource_build!$K:$K,raw_resource_build!$B:$B,$C507,raw_resource_build!$A:$A,I$469)","v":0},{"$f":"SUMIFS(raw_resource_build!$K:$K,raw_resource_build!$B:$B,$C507,raw_resource_build!$A:$A,J$469)","v":0},{"$f":"SUMIFS(raw_resource_build!$K:$K,raw_resource_build!$B:$B,$C507,raw_resource_build!$A:$A,K$469)","v":0},{"$f":"SUMIFS(raw_resource_build!$K:$K,raw_resource_build!$B:$B,$C507,raw_resource_build!$A:$A,L$469)","v":862},{"$f":"SUMIFS(raw_resource_build!$K:$K,raw_resource_build!$B:$B,$C507,raw_resource_build!$A:$A,M$469)","v":862},{"$f":"SUMIFS(raw_resource_build!$K:$K,raw_resource_build!$B:$B,$C507,raw_resource_build!$A:$A,N$469)","v":862},{"$f":"SUMIFS(raw_resource_build!$K:$K,raw_resource_build!$B:$B,$C507,raw_resource_build!$A:$A,O$469)","v":0},{"$f":"SUMIFS(raw_resource_build!$K:$K,raw_resource_build!$B:$B,$C507,raw_resource_build!$A:$A,P$469)","v":862},{"$f":"SUMIFS(raw_resource_build!$K:$K,raw_resource_build!$B:$B,$C507,raw_resource_build!$A:$A,Q$469)","v":0},{"$f":"SUMIFS(raw_resource_build!$K:$K,raw_resource_build!$B:$B,$C507,raw_resource_build!$A:$A,R$469)","v":0},{"$f":"SUMIFS(raw_resource_build!$K:$K,raw_resource_build!$B:$B,$C507,raw_resource_build!$A:$A,S$469)","v":0},{"$f":"SUMIFS(raw_resource_build!$K:$K,raw_resource_build!$B:$B,$C507,raw_resource_build!$A:$A,T$469)","v":862},{"$f":"SUMIFS(raw_resource_build!$K:$K,raw_resource_build!$B:$B,$C507,raw_resource_build!$A:$A,U$469)","v":0},{"$f":"SUMIFS(raw_resource_build!$K:$K,raw_resource_build!$B:$B,$C507,raw_resource_build!$A:$A,V$469)","v":0},{"$f":"SUMIFS(raw_resource_build!$K:$K,raw_resource_build!$B:$B,$C507,raw_resource_build!$A:$A,W$469)","v":0},{"$f":"SUMIFS(raw_resource_build!$K:$K,raw_resource_build!$B:$B,$C507,raw_resource_build!$A:$A,X$469)","v":0},{"$f":"SUMIFS(raw_resource_build!$K:$K,raw_resource_build!$B:$B,$C507,raw_resource_build!$A:$A,Y$469)","v":0},{"$f":"SUMIFS(raw_resource_build!$K:$K,raw_resource_build!$B:$B,$C507,raw_resource_build!$A:$A,Z$469)","v":0},{"$f":"SUMIFS(raw_resource_build!$K:$K,raw_resource_build!$B:$B,$C507,raw_resource_build!$A:$A,AA$469)","v":0},{"$f":"SUMIFS(raw_resource_build!$K:$K,raw_resource_build!$B:$B,$C507,raw_resource_build!$A:$A,AB$469)","v":0},{"$f":"SUMIFS(raw_resource_build!$K:$K,raw_resource_build!$B:$B,$C507,raw_resource_build!$A:$A,AC$469)","v":0},{"$f":"SUMIFS(raw_resource_build!$K:$K,raw_resource_build!$B:$B,$C507,raw_resource_build!$A:$A,AD$469)","v":0},{"$f":"SUMIFS(raw_resource_build!$K:$K,raw_resource_build!$B:$B,$C507,raw_resource_build!$A:$A,AE$469)","v":0},{"$f":"SUMIFS(raw_resource_build!$K:$K,raw_resource_build!$B:$B,$C507,raw_resource_build!$A:$A,AF$469)","v":0},{"$f":"SUMIFS(raw_resource_build!$K:$K,raw_resource_build!$B:$B,$C507,raw_resource_build!$A:$A,AG$469)","v":0},{"$f":"SUMIFS(raw_resource_build!$K:$K,raw_resource_build!$B:$B,$C507,raw_resource_build!$A:$A,AH$469)","v":0},{"$f":"SUMIFS(raw_resource_build!$K:$K,raw_resource_build!$B:$B,$C507,raw_resource_build!$A:$A,AI$469)","v":862},{"$f":"SUMIFS(raw_resource_build!$K:$K,raw_resource_build!$B:$B,$C507,raw_resource_build!$A:$A,AJ$469)","v":0},{"$f":"SUMIFS(raw_resource_build!$K:$K,raw_resource_build!$B:$B,$C507,raw_resource_build!$A:$A,AK$469)","v":0},{"$f":"SUMIFS(raw_resource_build!$K:$K,raw_resource_build!$B:$B,$C507,raw_resource_build!$A:$A,AL$469)","v":0},{"$f":"SUMIFS(raw_resource_build!$K:$K,raw_resource_build!$B:$B,$C507,raw_resource_build!$A:$A,AM$469)","v":0},{"$f":"SUMIFS(raw_resource_build!$K:$K,raw_resource_build!$B:$B,$C507,raw_resource_build!$A:$A,AN$469)","v":0}]
[null,null,{"$f":"Lists!B73","v":"Southern_California_Desert_Ex_Wind"},"Southern_California_Desert_Ex",{"$f":"SUMIFS(raw_resource_build!$K:$K,raw_resource_build!$B:$B,$C508,raw_resource_build!$A:$A,E$469)","v":0},{"$f":"SUMIFS(raw_resource_build!$K:$K,raw_resource_build!$B:$B,$C508,raw_resource_build!$A:$A,F$469)","v":0},{"$f":"SUMIFS(raw_resource_build!$K:$K,raw_resource_build!$B:$B,$C508,raw_resource_build!$A:$A,G$469)","v":0},{"$f":"SUMIFS(raw_resource_build!$K:$K,raw_resource_build!$B:$B,$C508,raw_resource_build!$A:$A,H$469)","v":0},{"$f":"SUMIFS(raw_resource_build!$K:$K,raw_resource_build!$B:$B,$C508,raw_resource_build!$A:$A,I$469)","v":0},{"$f":"SUMIFS(raw_resource_build!$K:$K,raw_resource_build!$B:$B,$C508,raw_resource_build!$A:$A,J$469)","v":0},{"$f":"SUMIFS(raw_resource_build!$K:$K,raw_resource_build!$B:$B,$C508,raw_resource_build!$A:$A,K$469)","v":0},{"$f":"SUMIFS(raw_resource_build!$K:$K,raw_resource_build!$B:$B,$C508,raw_resource_build!$A:$A,L$469)","v":0},{"$f":"SUMIFS(raw_resource_build!$K:$K,raw_resource_build!$B:$B,$C508,raw_resource_build!$A:$A,M$469)","v":0},{"$f":"SUMIFS(raw_resource_build!$K:$K,raw_resource_build!$B:$B,$C508,raw_resource_build!$A:$A,N$469)","v":0},{"$f":"SUMIFS(raw_resource_build!$K:$K,raw_resource_build!$B:$B,$C508,raw_resource_build!$A:$A,O$469)","v":0},{"$f":"SUMIFS(raw_resource_build!$K:$K,raw_resource_build!$B:$B,$C508,raw_resource_build!$A:$A,P$469)","v":0},{"$f":"SUMIFS(raw_resource_build!$K:$K,raw_resource_build!$B:$B,$C508,raw_resource_build!$A:$A,Q$469)","v":0},{"$f":"SUMIFS(raw_resource_build!$K:$K,raw_resource_build!$B:$B,$C508,raw_resource_build!$A:$A,R$469)","v":0},{"$f":"SUMIFS(raw_resource_build!$K:$K,raw_resource_build!$B:$B,$C508,raw_resource_build!$A:$A,S$469)","v":0},{"$f":"SUMIFS(raw_resource_build!$K:$K,raw_resource_build!$B:$B,$C508,raw_resource_build!$A:$A,T$469)","v":0},{"$f":"SUMIFS(raw_resource_build!$K:$K,raw_resource_build!$B:$B,$C508,raw_resource_build!$A:$A,U$469)","v":0},{"$f":"SUMIFS(raw_resource_build!$K:$K,raw_resource_build!$B:$B,$C508,raw_resource_build!$A:$A,V$469)","v":0},{"$f":"SUMIFS(raw_resource_build!$K:$K,raw_resource_build!$B:$B,$C508,raw_resource_build!$A:$A,W$469)","v":0},{"$f":"SUMIFS(raw_resource_build!$K:$K,raw_resource_build!$B:$B,$C508,raw_resource_build!$A:$A,X$469)","v":0},{"$f":"SUMIFS(raw_resource_build!$K:$K,raw_resource_build!$B:$B,$C508,raw_resource_build!$A:$A,Y$469)","v":0},{"$f":"SUMIFS(raw_resource_build!$K:$K,raw_resource_build!$B:$B,$C508,raw_resource_build!$A:$A,Z$469)","v":0},{"$f":"SUMIFS(raw_resource_build!$K:$K,raw_resource_build!$B:$B,$C508,raw_resource_build!$A:$A,AA$469)","v":0},{"$f":"SUMIFS(raw_resource_build!$K:$K,raw_resource_build!$B:$B,$C508,raw_resource_build!$A:$A,AB$469)","v":0},{"$f":"SUMIFS(raw_resource_build!$K:$K,raw_resource_build!$B:$B,$C508,raw_resource_build!$A:$A,AC$469)","v":0},{"$f":"SUMIFS(raw_resource_build!$K:$K,raw_resource_build!$B:$B,$C508,raw_resource_build!$A:$A,AD$469)","v":0},{"$f":"SUMIFS(raw_resource_build!$K:$K,raw_resource_build!$B:$B,$C508,raw_resource_build!$A:$A,AE$469)","v":0},{"$f":"SUMIFS(raw_resource_build!$K:$K,raw_resource_build!$B:$B,$C508,raw_resource_build!$A:$A,AF$469)","v":0},{"$f":"SUMIFS(raw_resource_build!$K:$K,raw_resource_build!$B:$B,$C508,raw_resource_build!$A:$A,AG$469)","v":0},{"$f":"SUMIFS(raw_resource_build!$K:$K,raw_resource_build!$B:$B,$C508,raw_resource_build!$A:$A,AH$469)","v":0},{"$f":"SUMIFS(raw_resource_build!$K:$K,raw_resource_build!$B:$B,$C508,raw_resource_build!$A:$A,AI$469)","v":0},{"$f":"SUMIFS(raw_resource_build!$K:$K,raw_resource_build!$B:$B,$C508,raw_resource_build!$A:$A,AJ$469)","v":0},{"$f":"SUMIFS(raw_resource_build!$K:$K,raw_resource_build!$B:$B,$C508,raw_resource_build!$A:$A,AK$469)","v":0},{"$f":"SUMIFS(raw_resource_build!$K:$K,raw_resource_build!$B:$B,$C508,raw_resource_build!$A:$A,AL$469)","v":0},{"$f":"SUMIFS(raw_resource_build!$K:$K,raw_resource_build!$B:$B,$C508,raw_resource_build!$A:$A,AM$469)","v":0},{"$f":"SUMIFS(raw_resource_build!$K:$K,raw_resource_build!$B:$B,$C508,raw_resource_build!$A:$A,AN$469)","v":0}]
[null,null,{"$f":"Lists!B74","v":"Southern_Nevada_Solar"},"SCADSNV-GLW_VEA",{"$f":"SUMIFS(raw_resource_build!$K:$K,raw_resource_build!$B:$B,$C509,raw_resource_build!$A:$A,E$469)","v":0},{"$f":"SUMIFS(raw_resource_build!$K:$K,raw_resource_build!$B:$B,$C509,raw_resource_build!$A:$A,F$469)","v":0},{"$f":"SUMIFS(raw_resource_build!$K:$K,raw_resource_build!$B:$B,$C509,raw_resource_build!$A:$A,G$469)","v":0},{"$f":"SUMIFS(raw_resource_build!$K:$K,raw_resource_build!$B:$B,$C509,raw_resource_build!$A:$A,H$469)","v":0},{"$f":"SUMIFS(raw_resource_build!$K:$K,raw_resource_build!$B:$B,$C509,raw_resource_build!$A:$A,I$469)","v":0},{"$f":"SUMIFS(raw_resource_build!$K:$K,raw_resource_build!$B:$B,$C509,raw_resource_build!$A:$A,J$469)","v":0},{"$f":"SUMIFS(raw_resource_build!$K:$K,raw_resource_build!$B:$B,$C509,raw_resource_build!$A:$A,K$469)","v":0},{"$f":"SUMIFS(raw_resource_build!$K:$K,raw_resource_build!$B:$B,$C509,raw_resource_build!$A:$A,L$469)","v":0},{"$f":"SUMIFS(raw_resource_build!$K:$K,raw_resource_build!$B:$B,$C509,raw_resource_build!$A:$A,M$469)","v":0},{"$f":"SUMIFS(raw_resource_build!$K:$K,raw_resource_build!$B:$B,$C509,raw_resource_build!$A:$A,N$469)","v":0},{"$f":"SUMIFS(raw_resource_build!$K:$K,raw_resource_build!$B:$B,$C509,raw_resource_build!$A:$A,O$469)","v":0},{"$f":"SUMIFS(raw_resource_build!$K:$K,raw_resource_build!$B:$B,$C509,raw_resource_build!$A:$A,P$469)","v":0},{"$f":"SUMIFS(raw_resource_build!$K:$K,raw_resource_build!$B:$B,$C509,raw_resource_build!$A:$A,Q$469)","v":0},{"$f":"SUMIFS(raw_resource_build!$K:$K,raw_resource_build!$B:$B,$C509,raw_resource_build!$A:$A,R$469)","v":0},{"$f":"SUMIFS(raw_resource_build!$K:$K,raw_resource_build!$B:$B,$C509,raw_resource_build!$A:$A,S$469)","v":0},{"$f":"SUMIFS(raw_resource_build!$K:$K,raw_resource_build!$B:$B,$C509,raw_resource_build!$A:$A,T$469)","v":0},{"$f":"SUMIFS(raw_resource_build!$K:$K,raw_resource_build!$B:$B,$C509,raw_resource_build!$A:$A,U$469)","v":0},{"$f":"SUMIFS(raw_resource_build!$K:$K,raw_resource_build!$B:$B,$C509,raw_resource_build!$A:$A,V$469)","v":0},{"$f":"SUMIFS(raw_resource_build!$K:$K,raw_resource_build!$B:$B,$C509,raw_resource_build!$A:$A,W$469)","v":0},{"$f":"SUMIFS(raw_resource_build!$K:$K,raw_resource_build!$B:$B,$C509,raw_resource_build!$A:$A,X$469)","v":0},{"$f":"SUMIFS(raw_resource_build!$K:$K,raw_resource_build!$B:$B,$C509,raw_resource_build!$A:$A,Y$469)","v":0},{"$f":"SUMIFS(raw_resource_build!$K:$K,raw_resource_build!$B:$B,$C509,raw_resource_build!$A:$A,Z$469)","v":0},{"$f":"SUMIFS(raw_resource_build!$K:$K,raw_resource_build!$B:$B,$C509,raw_resource_build!$A:$A,AA$469)","v":0},{"$f":"SUMIFS(raw_resource_build!$K:$K,raw_resource_build!$B:$B,$C509,raw_resource_build!$A:$A,AB$469)","v":0},{"$f":"SUMIFS(raw_resource_build!$K:$K,raw_resource_build!$B:$B,$C509,raw_resource_build!$A:$A,AC$469)","v":0},{"$f":"SUMIFS(raw_resource_build!$K:$K,raw_resource_build!$B:$B,$C509,raw_resource_build!$A:$A,AD$469)","v":0},{"$f":"SUMIFS(raw_resource_build!$K:$K,raw_resource_build!$B:$B,$C509,raw_resource_build!$A:$A,AE$469)","v":0},{"$f":"SUMIFS(raw_resource_build!$K:$K,raw_resource_build!$B:$B,$C509,raw_resource_build!$A:$A,AF$469)","v":0},{"$f":"SUMIFS(raw_resource_build!$K:$K,raw_resource_build!$B:$B,$C509,raw_resource_build!$A:$A,AG$469)","v":0},{"$f":"SUMIFS(raw_resource_build!$K:$K,raw_resource_build!$B:$B,$C509,raw_resource_build!$A:$A,AH$469)","v":0},{"$f":"SUMIFS(raw_resource_build!$K:$K,raw_resource_build!$B:$B,$C509,raw_resource_build!$A:$A,AI$469)","v":0},{"$f":"SUMIFS(raw_resource_build!$K:$K,raw_resource_build!$B:$B,$C509,raw_resource_build!$A:$A,AJ$469)","v":0},{"$f":"SUMIFS(raw_resource_build!$K:$K,raw_resource_build!$B:$B,$C509,raw_resource_build!$A:$A,AK$469)","v":0},{"$f":"SUMIFS(raw_resource_build!$K:$K,raw_resource_build!$B:$B,$C509,raw_resource_build!$A:$A,AL$469)","v":0},{"$f":"SUMIFS(raw_resource_build!$K:$K,raw_resource_build!$B:$B,$C509,raw_resource_build!$A:$A,AM$469)","v":0},{"$f":"SUMIFS(raw_resource_build!$K:$K,raw_resource_build!$B:$B,$C509,raw_resource_build!$A:$A,AN$469)","v":0}]
[null,null,{"$f":"Lists!B75","v":"Southern_Nevada_Wind"},"SCADSNV-GLW_VEA",{"$f":"SUMIFS(raw_resource_build!$K:$K,raw_resource_build!$B:$B,$C510,raw_resource_build!$A:$A,E$469)","v":0},{"$f":"SUMIFS(raw_resource_build!$K:$K,raw_resource_build!$B:$B,$C510,raw_resource_build!$A:$A,F$469)","v":0},{"$f":"SUMIFS(raw_resource_build!$K:$K,raw_resource_build!$B:$B,$C510,raw_resource_build!$A:$A,G$469)","v":0},{"$f":"SUMIFS(raw_resource_build!$K:$K,raw_resource_build!$B:$B,$C510,raw_resource_build!$A:$A,H$469)","v":0},{"$f":"SUMIFS(raw_resource_build!$K:$K,raw_resource_build!$B:$B,$C510,raw_resource_build!$A:$A,I$469)","v":0},{"$f":"SUMIFS(raw_resource_build!$K:$K,raw_resource_build!$B:$B,$C510,raw_resource_build!$A:$A,J$469)","v":0},{"$f":"SUMIFS(raw_resource_build!$K:$K,raw_resource_build!$B:$B,$C510,raw_resource_build!$A:$A,K$469)","v":0},{"$f":"SUMIFS(raw_resource_build!$K:$K,raw_resource_build!$B:$B,$C510,raw_resource_build!$A:$A,L$469)","v":442.03},{"$f":"SUMIFS(raw_resource_build!$K:$K,raw_resource_build!$B:$B,$C510,raw_resource_build!$A:$A,M$469)","v":442.03},{"$f":"SUMIFS(raw_resource_build!$K:$K,raw_resource_build!$B:$B,$C510,raw_resource_build!$A:$A,N$469)","v":442.03},{"$f":"SUMIFS(raw_resource_build!$K:$K,raw_resource_build!$B:$B,$C510,raw_resource_build!$A:$A,O$469)","v":0},{"$f":"SUMIFS(raw_resource_build!$K:$K,raw_resource_build!$B:$B,$C510,raw_resource_build!$A:$A,P$469)","v":442.03},{"$f":"SUMIFS(raw_resource_build!$K:$K,raw_resource_build!$B:$B,$C510,raw_resource_build!$A:$A,Q$469)","v":0},{"$f":"SUMIFS(raw_resource_build!$K:$K,raw_resource_build!$B:$B,$C510,raw_resource_build!$A:$A,R$469)","v":0},{"$f":"SUMIFS(raw_resource_build!$K:$K,raw_resource_build!$B:$B,$C510,raw_resource_build!$A:$A,S$469)","v":0},{"$f":"SUMIFS(raw_resource_build!$K:$K,raw_resource_build!$B:$B,$C510,raw_resource_build!$A:$A,T$469)","v":442.03},{"$f":"SUMIFS(raw_resource_build!$K:$K,raw_resource_build!$B:$B,$C510,raw_resource_build!$A:$A,U$469)","v":0},{"$f":"SUMIFS(raw_resource_build!$K:$K,raw_resource_build!$B:$B,$C510,raw_resource_build!$A:$A,V$469)","v":0},{"$f":"SUMIFS(raw_resource_build!$K:$K,raw_resource_build!$B:$B,$C510,raw_resource_build!$A:$A,W$469)","v":0},{"$f":"SUMIFS(raw_resource_build!$K:$K,raw_resource_build!$B:$B,$C510,raw_resource_build!$A:$A,X$469)","v":0},{"$f":"SUMIFS(raw_resource_build!$K:$K,raw_resource_build!$B:$B,$C510,raw_resource_build!$A:$A,Y$469)","v":0},{"$f":"SUMIFS(raw_resource_build!$K:$K,raw_resource_build!$B:$B,$C510,raw_resource_build!$A:$A,Z$469)","v":0},{"$f":"SUMIFS(raw_resource_build!$K:$K,raw_resource_build!$B:$B,$C510,raw_resource_build!$A:$A,AA$469)","v":0},{"$f":"SUMIFS(raw_resource_build!$K:$K,raw_resource_build!$B:$B,$C510,raw_resource_build!$A:$A,AB$469)","v":0},{"$f":"SUMIFS(raw_resource_build!$K:$K,raw_resource_build!$B:$B,$C510,raw_resource_build!$A:$A,AC$469)","v":0},{"$f":"SUMIFS(raw_resource_build!$K:$K,raw_resource_build!$B:$B,$C510,raw_resource_build!$A:$A,AD$469)","v":0},{"$f":"SUMIFS(raw_resource_build!$K:$K,raw_resource_build!$B:$B,$C510,raw_resource_build!$A:$A,AE$469)","v":0},{"$f":"SUMIFS(raw_resource_build!$K:$K,raw_resource_build!$B:$B,$C510,raw_resource_build!$A:$A,AF$469)","v":0},{"$f":"SUMIFS(raw_resource_build!$K:$K,raw_resource_build!$B:$B,$C510,raw_resource_build!$A:$A,AG$469)","v":0},{"$f":"SUMIFS(raw_resource_build!$K:$K,raw_resource_build!$B:$B,$C510,raw_resource_build!$A:$A,AH$469)","v":0},{"$f":"SUMIFS(raw_resource_build!$K:$K,raw_resource_build!$B:$B,$C510,raw_resource_build!$A:$A,AI$469)","v":442.03},{"$f":"SUMIFS(raw_resource_build!$K:$K,raw_resource_build!$B:$B,$C510,raw_resource_build!$A:$A,AJ$469)","v":0},{"$f":"SUMIFS(raw_resource_build!$K:$K,raw_resource_build!$B:$B,$C510,raw_resource_build!$A:$A,AK$469)","v":0},{"$f":"SUMIFS(raw_resource_build!$K:$K,raw_resource_build!$B:$B,$C510,raw_resource_build!$A:$A,AL$469)","v":0},{"$f":"SUMIFS(raw_resource_build!$K:$K,raw_resource_build!$B:$B,$C510,raw_resource_build!$A:$A,AM$469)","v":0},{"$f":"SUMIFS(raw_resource_build!$K:$K,raw_resource_build!$B:$B,$C510,raw_resource_build!$A:$A,AN$469)","v":0}]
[null,null,{"$f":"Lists!B76","v":"SW_Ext_Tx_Wind"},"SCADSNV-Riverside_Palm_Springs",{"$f":"SUMIFS(raw_resource_build!$K:$K,raw_resource_build!$B:$B,$C511,raw_resource_build!$A:$A,E$469)","v":0},{"$f":"SUMIFS(raw_resource_build!$K:$K,raw_resource_build!$B:$B,$C511,raw_resource_build!$A:$A,F$469)","v":0},{"$f":"SUMIFS(raw_resource_build!$K:$K,raw_resource_build!$B:$B,$C511,raw_resource_build!$A:$A,G$469)","v":0},{"$f":"SUMIFS(raw_resource_build!$K:$K,raw_resource_build!$B:$B,$C511,raw_resource_build!$A:$A,H$469)","v":0},{"$f":"SUMIFS(raw_resource_build!$K:$K,raw_resource_build!$B:$B,$C511,raw_resource_build!$A:$A,I$469)","v":0},{"$f":"SUMIFS(raw_resource_build!$K:$K,raw_resource_build!$B:$B,$C511,raw_resource_build!$A:$A,J$469)","v":0},{"$f":"SUMIFS(raw_resource_build!$K:$K,raw_resource_build!$B:$B,$C511,raw_resource_build!$A:$A,K$469)","v":0},{"$f":"SUMIFS(raw_resource_build!$K:$K,raw_resource_build!$B:$B,$C511,raw_resource_build!$A:$A,L$469)","v":0},{"$f":"SUMIFS(raw_resource_build!$K:$K,raw_resource_build!$B:$B,$C511,raw_resource_build!$A:$A,M$469)","v":0},{"$f":"SUMIFS(raw_resource_build!$K:$K,raw_resource_build!$B:$B,$C511,raw_resource_build!$A:$A,N$469)","v":0},{"$f":"SUMIFS(raw_resource_build!$K:$K,raw_resource_build!$B:$B,$C511,raw_resource_build!$A:$A,O$469)","v":0},{"$f":"SUMIFS(raw_resource_build!$K:$K,raw_resource_build!$B:$B,$C511,raw_resource_build!$A:$A,P$469)","v":0},{"$f":"SUMIFS(raw_resource_build!$K:$K,raw_resource_build!$B:$B,$C511,raw_resource_build!$A:$A,Q$469)","v":0},{"$f":"SUMIFS(raw_resource_build!$K:$K,raw_resource_build!$B:$B,$C511,raw_resource_build!$A:$A,R$469)","v":0},{"$f":"SUMIFS(raw_resource_build!$K:$K,raw_resource_build!$B:$B,$C511,raw_resource_build!$A:$A,S$469)","v":0},{"$f":"SUMIFS(raw_resource_build!$K:$K,raw_resource_build!$B:$B,$C511,raw_resource_build!$A:$A,T$469)","v":0},{"$f":"SUMIFS(raw_resource_build!$K:$K,raw_resource_build!$B:$B,$C511,raw_resource_build!$A:$A,U$469)","v":0},{"$f":"SUMIFS(raw_resource_build!$K:$K,raw_resource_build!$B:$B,$C511,raw_resource_build!$A:$A,V$469)","v":0},{"$f":"SUMIFS(raw_resource_build!$K:$K,raw_resource_build!$B:$B,$C511,raw_resource_build!$A:$A,W$469)","v":0},{"$f":"SUMIFS(raw_resource_build!$K:$K,raw_resource_build!$B:$B,$C511,raw_resource_build!$A:$A,X$469)","v":0},{"$f":"SUMIFS(raw_resource_build!$K:$K,raw_resource_build!$B:$B,$C511,raw_resource_build!$A:$A,Y$469)","v":0},{"$f":"SUMIFS(raw_resource_build!$K:$K,raw_resource_build!$B:$B,$C511,raw_resource_build!$A:$A,Z$469)","v":0},{"$f":"SUMIFS(raw_resource_build!$K:$K,raw_resource_build!$B:$B,$C511,raw_resource_build!$A:$A,AA$469)","v":0},{"$f":"SUMIFS(raw_resource_build!$K:$K,raw_resource_build!$B:$B,$C511,raw_resource_build!$A:$A,AB$469)","v":0},{"$f":"SUMIFS(raw_resource_build!$K:$K,raw_resource_build!$B:$B,$C511,raw_resource_build!$A:$A,AC$469)","v":0},{"$f":"SUMIFS(raw_resource_build!$K:$K,raw_resource_build!$B:$B,$C511,raw_resource_build!$A:$A,AD$469)","v":0},{"$f":"SUMIFS(raw_resource_build!$K:$K,raw_resource_build!$B:$B,$C511,raw_resource_build!$A:$A,AE$469)","v":0},{"$f":"SUMIFS(raw_resource_build!$K:$K,raw_resource_build!$B:$B,$C511,raw_resource_build!$A:$A,AF$469)","v":0},{"$f":"SUMIFS(raw_resource_build!$K:$K,raw_resource_build!$B:$B,$C511,raw_resource_build!$A:$A,AG$469)","v":0},{"$f":"SUMIFS(raw_resource_build!$K:$K,raw_resource_build!$B:$B,$C511,raw_resource_build!$A:$A,AH$469)","v":0},{"$f":"SUMIFS(raw_resource_build!$K:$K,raw_resource_build!$B:$B,$C511,raw_resource_build!$A:$A,AI$469)","v":500},{"$f":"SUMIFS(raw_resource_build!$K:$K,raw_resource_build!$B:$B,$C511,raw_resource_build!$A:$A,AJ$469)","v":0},{"$f":"SUMIFS(raw_resource_build!$K:$K,raw_resource_build!$B:$B,$C511,raw_resource_build!$A:$A,AK$469)","v":0},{"$f":"SUMIFS(raw_resource_build!$K:$K,raw_resource_build!$B:$B,$C511,raw_resource_build!$A:$A,AL$469)","v":0},{"$f":"SUMIFS(raw_resource_build!$K:$K,raw_resource_build!$B:$B,$C511,raw_resource_build!$A:$A,AM$469)","v":0},{"$f":"SUMIFS(raw_resource_build!$K:$K,raw_resource_build!$B:$B,$C511,raw_resource_build!$A:$A,AN$469)","v":0}]
[null,null,{"$f":"Lists!B77","v":"Tehachapi_Solar"},"Tehachapi",{"$f":"SUMIFS(raw_resource_build!$K:$K,raw_resource_build!$B:$B,$C512,raw_resource_build!$A:$A,E$469)","v":0},{"$f":"SUMIFS(raw_resource_build!$K:$K,raw_resource_build!$B:$B,$C512,raw_resource_build!$A:$A,F$469)","v":0},{"$f":"SUMIFS(raw_resource_build!$K:$K,raw_resource_build!$B:$B,$C512,raw_resource_build!$A:$A,G$469)","v":0},{"$f":"SUMIFS(raw_resource_build!$K:$K,raw_resource_build!$B:$B,$C512,raw_resource_build!$A:$A,H$469)","v":0},{"$f":"SUMIFS(raw_resource_build!$K:$K,raw_resource_build!$B:$B,$C512,raw_resource_build!$A:$A,I$469)","v":0},{"$f":"SUMIFS(raw_resource_build!$K:$K,raw_resource_build!$B:$B,$C512,raw_resource_build!$A:$A,J$469)","v":1437},{"$f":"SUMIFS(raw_resource_build!$K:$K,raw_resource_build!$B:$B,$C512,raw_resource_build!$A:$A,K$469)","v":3402},{"$f":"SUMIFS(raw_resource_build!$K:$K,raw_resource_build!$B:$B,$C512,raw_resource_build!$A:$A,L$469)","v":3402},{"$f":"SUMIFS(raw_resource_build!$K:$K,raw_resource_build!$B:$B,$C512,raw_resource_build!$A:$A,M$469)","v":3402},{"$f":"SUMIFS(raw_resource_build!$K:$K,raw_resource_build!$B:$B,$C512,raw_resource_build!$A:$A,N$469)","v":3402},{"$f":"SUMIFS(raw_resource_build!$K:$K,raw_resource_build!$B:$B,$C512,raw_resource_build!$A:$A,O$469)","v":0},{"$f":"SUMIFS(raw_resource_build!$K:$K,raw_resource_build!$B:$B,$C512,raw_resource_build!$A:$A,P$469)","v":4001},{"$f":"SUMIFS(raw_resource_build!$K:$K,raw_resource_build!$B:$B,$C512,raw_resource_build!$A:$A,Q$469)","v":0},{"$f":"SUMIFS(raw_resource_build!$K:$K,raw_resource_build!$B:$B,$C512,raw_resource_build!$A:$A,R$469)","v":0},{"$f":"SUMIFS(raw_resource_build!$K:$K,raw_resource_build!$B:$B,$C512,raw_resource_build!$A:$A,S$469)","v":0},{"$f":"SUMIFS(raw_resource_build!$K:$K,raw_resource_build!$B:$B,$C512,raw_resource_build!$A:$A,T$469)","v":4001},{"$f":"SUMIFS(raw_resource_build!$K:$K,raw_resource_build!$B:$B,$C512,raw_resource_build!$A:$A,U$469)","v":0},{"$f":"SUMIFS(raw_resource_build!$K:$K,raw_resource_build!$B:$B,$C512,raw_resource_build!$A:$A,V$469)","v":0},{"$f":"SUMIFS(raw_resource_build!$K:$K,raw_resource_build!$B:$B,$C512,raw_resource_build!$A:$A,W$469)","v":0},{"$f":"SUMIFS(raw_resource_build!$K:$K,raw_resource_build!$B:$B,$C512,raw_resource_build!$A:$A,X$469)","v":0},{"$f":"SUMIFS(raw_resource_build!$K:$K,raw_resource_build!$B:$B,$C512,raw_resource_build!$A:$A,Y$469)","v":0},{"$f":"SUMIFS(raw_resource_build!$K:$K,raw_resource_build!$B:$B,$C512,raw_resource_build!$A:$A,Z$469)","v":0},{"$f":"SUMIFS(raw_resource_build!$K:$K,raw_resource_build!$B:$B,$C512,raw_resource_build!$A:$A,AA$469)","v":0},{"$f":"SUMIFS(raw_resource_build!$K:$K,raw_resource_build!$B:$B,$C512,raw_resource_build!$A:$A,AB$469)","v":0},{"$f":"SUMIFS(raw_resource_build!$K:$K,raw_resource_build!$B:$B,$C512,raw_resource_build!$A:$A,AC$469)","v":0},{"$f":"SUMIFS(raw_resource_build!$K:$K,raw_resource_build!$B:$B,$C512,raw_resource_build!$A:$A,AD$469)","v":0},{"$f":"SUMIFS(raw_resource_build!$K:$K,raw_resource_build!$B:$B,$C512,raw_resource_build!$A:$A,AE$469)","v":0},{"$f":"SUMIFS(raw_resource_build!$K:$K,raw_resource_build!$B:$B,$C512,raw_resource_build!$A:$A,AF$469)","v":0},{"$f":"SUMIFS(raw_resource_build!$K:$K,raw_resource_build!$B:$B,$C512,raw_resource_build!$A:$A,AG$469)","v":0},{"$f":"SUMIFS(raw_resource_build!$K:$K,raw_resource_build!$B:$B,$C512,raw_resource_build!$A:$A,AH$469)","v":0},{"$f":"SUMIFS(raw_resource_build!$K:$K,raw_resource_build!$B:$B,$C512,raw_resource_build!$A:$A,AI$469)","v":4001},{"$f":"SUMIFS(raw_resource_build!$K:$K,raw_resource_build!$B:$B,$C512,raw_resource_build!$A:$A,AJ$469)","v":0},{"$f":"SUMIFS(raw_resource_build!$K:$K,raw_resource_build!$B:$B,$C512,raw_resource_build!$A:$A,AK$469)","v":0},{"$f":"SUMIFS(raw_resource_build!$K:$K,raw_resource_build!$B:$B,$C512,raw_resource_build!$A:$A,AL$469)","v":0},{"$f":"SUMIFS(raw_resource_build!$K:$K,raw_resource_build!$B:$B,$C512,raw_resource_build!$A:$A,AM$469)","v":0},{"$f":"SUMIFS(raw_resource_build!$K:$K,raw_resource_build!$B:$B,$C512,raw_resource_build!$A:$A,AN$469)","v":0}]
[null,null,{"$f":"Lists!B78","v":"Tehachapi_Ex_Solar"},"Tehachapi_Ex",{"$f":"SUMIFS(raw_resource_build!$K:$K,raw_resource_build!$B:$B,$C513,raw_resource_build!$A:$A,E$469)","v":0},{"$f":"SUMIFS(raw_resource_build!$K:$K,raw_resource_build!$B:$B,$C513,raw_resource_build!$A:$A,F$469)","v":0},{"$f":"SUMIFS(raw_resource_build!$K:$K,raw_resource_build!$B:$B,$C513,raw_resource_build!$A:$A,G$469)","v":0},{"$f":"SUMIFS(raw_resource_build!$K:$K,raw_resource_build!$B:$B,$C513,raw_resource_build!$A:$A,H$469)","v":0},{"$f":"SUMIFS(raw_resource_build!$K:$K,raw_resource_build!$B:$B,$C513,raw_resource_build!$A:$A,I$469)","v":0},{"$f":"SUMIFS(raw_resource_build!$K:$K,raw_resource_build!$B:$B,$C513,raw_resource_build!$A:$A,J$469)","v":0},{"$f":"SUMIFS(raw_resource_build!$K:$K,raw_resource_build!$B:$B,$C513,raw_resource_build!$A:$A,K$469)","v":0},{"$f":"SUMIFS(raw_resource_build!$K:$K,raw_resource_build!$B:$B,$C513,raw_resource_build!$A:$A,L$469)","v":0},{"$f":"SUMIFS(raw_resource_build!$K:$K,raw_resource_build!$B:$B,$C513,raw_resource_build!$A:$A,M$469)","v":0},{"$f":"SUMIFS(raw_resource_build!$K:$K,raw_resource_build!$B:$B,$C513,raw_resource_build!$A:$A,N$469)","v":0},{"$f":"SUMIFS(raw_resource_build!$K:$K,raw_resource_build!$B:$B,$C513,raw_resource_build!$A:$A,O$469)","v":0},{"$f":"SUMIFS(raw_resource_build!$K:$K,raw_resource_build!$B:$B,$C513,raw_resource_build!$A:$A,P$469)","v":0},{"$f":"SUMIFS(raw_resource_build!$K:$K,raw_resource_build!$B:$B,$C513,raw_resource_build!$A:$A,Q$469)","v":0},{"$f":"SUMIFS(raw_resource_build!$K:$K,raw_resource_build!$B:$B,$C513,raw_resource_build!$A:$A,R$469)","v":0},{"$f":"SUMIFS(raw_resource_build!$K:$K,raw_resource_build!$B:$B,$C513,raw_resource_build!$A:$A,S$469)","v":0},{"$f":"SUMIFS(raw_resource_build!$K:$K,raw_resource_build!$B:$B,$C513,raw_resource_build!$A:$A,T$469)","v":0},{"$f":"SUMIFS(raw_resource_build!$K:$K,raw_resource_build!$B:$B,$C513,raw_resource_build!$A:$A,U$469)","v":0},{"$f":"SUMIFS(raw_resource_build!$K:$K,raw_resource_build!$B:$B,$C513,raw_resource_build!$A:$A,V$469)","v":0},{"$f":"SUMIFS(raw_resource_build!$K:$K,raw_resource_build!$B:$B,$C513,raw_resource_build!$A:$A,W$469)","v":0},{"$f":"SUMIFS(raw_resource_build!$K:$K,raw_resource_build!$B:$B,$C513,raw_resource_build!$A:$A,X$469)","v":0},{"$f":"SUMIFS(raw_resource_build!$K:$K,raw_resource_build!$B:$B,$C513,raw_resource_build!$A:$A,Y$469)","v":0},{"$f":"SUMIFS(raw_resource_build!$K:$K,raw_resource_build!$B:$B,$C513,raw_resource_build!$A:$A,Z$469)","v":0},{"$f":"SUMIFS(raw_resource_build!$K:$K,raw_resource_build!$B:$B,$C513,raw_resource_build!$A:$A,AA$469)","v":0},{"$f":"SUMIFS(raw_resource_build!$K:$K,raw_resource_build!$B:$B,$C513,raw_resource_build!$A:$A,AB$469)","v":0},{"$f":"SUMIFS(raw_resource_build!$K:$K,raw_resource_build!$B:$B,$C513,raw_resource_build!$A:$A,AC$469)","v":0},{"$f":"SUMIFS(raw_resource_build!$K:$K,raw_resource_build!$B:$B,$C513,raw_resource_build!$A:$A,AD$469)","v":0},{"$f":"SUMIFS(raw_resource_build!$K:$K,raw_resource_build!$B:$B,$C513,raw_resource_build!$A:$A,AE$469)","v":0},{"$f":"SUMIFS(raw_resource_build!$K:$K,raw_resource_build!$B:$B,$C513,raw_resource_build!$A:$A,AF$469)","v":0},{"$f":"SUMIFS(raw_resource_build!$K:$K,raw_resource_build!$B:$B,$C513,raw_resource_build!$A:$A,AG$469)","v":0},{"$f":"SUMIFS(raw_resource_build!$K:$K,raw_resource_build!$B:$B,$C513,raw_resource_build!$A:$A,AH$469)","v":0},{"$f":"SUMIFS(raw_resource_build!$K:$K,raw_resource_build!$B:$B,$C513,raw_resource_build!$A:$A,AI$469)","v":0},{"$f":"SUMIFS(raw_resource_build!$K:$K,raw_resource_build!$B:$B,$C513,raw_resource_build!$A:$A,AJ$469)","v":0},{"$f":"SUMIFS(raw_resource_build!$K:$K,raw_resource_build!$B:$B,$C513,raw_resource_build!$A:$A,AK$469)","v":0},{"$f":"SUMIFS(raw_resource_build!$K:$K,raw_resource_build!$B:$B,$C513,raw_resource_build!$A:$A,AL$469)","v":0},{"$f":"SUMIFS(raw_resource_build!$K:$K,raw_resource_build!$B:$B,$C513,raw_resource_build!$A:$A,AM$469)","v":0},{"$f":"SUMIFS(raw_resource_build!$K:$K,raw_resource_build!$B:$B,$C513,raw_resource_build!$A:$A,AN$469)","v":0}]
[null,null,{"$f":"Lists!B79","v":"Tehachapi_Wind"},"Tehachapi",{"$f":"SUMIFS(raw_resource_build!$K:$K,raw_resource_build!$B:$B,$C514,raw_resource_build!$A:$A,E$469)","v":0},{"$f":"SUMIFS(raw_resource_build!$K:$K,raw_resource_build!$B:$B,$C514,raw_resource_build!$A:$A,F$469)","v":0},{"$f":"SUMIFS(raw_resource_build!$K:$K,raw_resource_build!$B:$B,$C514,raw_resource_build!$A:$A,G$469)","v":0},{"$f":"SUMIFS(raw_resource_build!$K:$K,raw_resource_build!$B:$B,$C514,raw_resource_build!$A:$A,H$469)","v":0},{"$f":"SUMIFS(raw_resource_build!$K:$K,raw_resource_build!$B:$B,$C514,raw_resource_build!$A:$A,I$469)","v":0},{"$f":"SUMIFS(raw_resource_build!$K:$K,raw_resource_build!$B:$B,$C514,raw_resource_build!$A:$A,J$469)","v":0},{"$f":"SUMIFS(raw_resource_build!$K:$K,raw_resource_build!$B:$B,$C514,raw_resource_build!$A:$A,K$469)","v":0},{"$f":"SUMIFS(raw_resource_build!$K:$K,raw_resource_build!$B:$B,$C514,raw_resource_build!$A:$A,L$469)","v":275},{"$f":"SUMIFS(raw_resource_build!$K:$K,raw_resource_build!$B:$B,$C514,raw_resource_build!$A:$A,M$469)","v":275},{"$f":"SUMIFS(raw_resource_build!$K:$K,raw_resource_build!$B:$B,$C514,raw_resource_build!$A:$A,N$469)","v":275},{"$f":"SUMIFS(raw_resource_build!$K:$K,raw_resource_build!$B:$B,$C514,raw_resource_build!$A:$A,O$469)","v":0},{"$f":"SUMIFS(raw_resource_build!$K:$K,raw_resource_build!$B:$B,$C514,raw_resource_build!$A:$A,P$469)","v":275},{"$f":"SUMIFS(raw_resource_build!$K:$K,raw_resource_build!$B:$B,$C514,raw_resource_build!$A:$A,Q$469)","v":0},{"$f":"SUMIFS(raw_resource_build!$K:$K,raw_resource_build!$B:$B,$C514,raw_resource_build!$A:$A,R$469)","v":0},{"$f":"SUMIFS(raw_resource_build!$K:$K,raw_resource_build!$B:$B,$C514,raw_resource_build!$A:$A,S$469)","v":0},{"$f":"SUMIFS(raw_resource_build!$K:$K,raw_resource_build!$B:$B,$C514,raw_resource_build!$A:$A,T$469)","v":275},{"$f":"SUMIFS(raw_resource_build!$K:$K,raw_resource_build!$B:$B,$C514,raw_resource_build!$A:$A,U$469)","v":0},{"$f":"SUMIFS(raw_resource_build!$K:$K,raw_resource_build!$B:$B,$C514,raw_resource_build!$A:$A,V$469)","v":0},{"$f":"SUMIFS(raw_resource_build!$K:$K,raw_resource_build!$B:$B,$C514,raw_resource_build!$A:$A,W$469)","v":0},{"$f":"SUMIFS(raw_resource_build!$K:$K,raw_resource_build!$B:$B,$C514,raw_resource_build!$A:$A,X$469)","v":0},{"$f":"SUMIFS(raw_resource_build!$K:$K,raw_resource_build!$B:$B,$C514,raw_resource_build!$A:$A,Y$469)","v":0},{"$f":"SUMIFS(raw_resource_build!$K:$K,raw_resource_build!$B:$B,$C514,raw_resource_build!$A:$A,Z$469)","v":0},{"$f":"SUMIFS(raw_resource_build!$K:$K,raw_resource_build!$B:$B,$C514,raw_resource_build!$A:$A,AA$469)","v":0},{"$f":"SUMIFS(raw_resource_build!$K:$K,raw_resource_build!$B:$B,$C514,raw_resource_build!$A:$A,AB$469)","v":0},{"$f":"SUMIFS(raw_resource_build!$K:$K,raw_resource_build!$B:$B,$C514,raw_resource_build!$A:$A,AC$469)","v":0},{"$f":"SUMIFS(raw_resource_build!$K:$K,raw_resource_build!$B:$B,$C514,raw_resource_build!$A:$A,AD$469)","v":0},{"$f":"SUMIFS(raw_resource_build!$K:$K,raw_resource_build!$B:$B,$C514,raw_resource_build!$A:$A,AE$469)","v":0},{"$f":"SUMIFS(raw_resource_build!$K:$K,raw_resource_build!$B:$B,$C514,raw_resource_build!$A:$A,AF$469)","v":0},{"$f":"SUMIFS(raw_resource_build!$K:$K,raw_resource_build!$B:$B,$C514,raw_resource_build!$A:$A,AG$469)","v":0},{"$f":"SUMIFS(raw_resource_build!$K:$K,raw_resource_build!$B:$B,$C514,raw_resource_build!$A:$A,AH$469)","v":0},{"$f":"SUMIFS(raw_resource_build!$K:$K,raw_resource_build!$B:$B,$C514,raw_resource_build!$A:$A,AI$469)","v":275},{"$f":"SUMIFS(raw_resource_build!$K:$K,raw_resource_build!$B:$B,$C514,raw_resource_build!$A:$A,AJ$469)","v":0},{"$f":"SUMIFS(raw_resource_build!$K:$K,raw_resource_build!$B:$B,$C514,raw_resource_build!$A:$A,AK$469)","v":0},{"$f":"SUMIFS(raw_resource_build!$K:$K,raw_resource_build!$B:$B,$C514,raw_resource_build!$A:$A,AL$469)","v":0},{"$f":"SUMIFS(raw_resource_build!$K:$K,raw_resource_build!$B:$B,$C514,raw_resource_build!$A:$A,AM$469)","v":0},{"$f":"SUMIFS(raw_resource_build!$K:$K,raw_resource_build!$B:$B,$C514,raw_resource_build!$A:$A,AN$469)","v":0}]
[null,null,{"$f":"Lists!B80","v":"Westlands_Ex_Solar"},"Westlands_Ex",{"$f":"SUMIFS(raw_resource_build!$K:$K,raw_resource_build!$B:$B,$C515,raw_resource_build!$A:$A,E$469)","v":0},{"$f":"SUMIFS(raw_resource_build!$K:$K,raw_resource_build!$B:$B,$C515,raw_resource_build!$A:$A,F$469)","v":0},{"$f":"SUMIFS(raw_resource_build!$K:$K,raw_resource_build!$B:$B,$C515,raw_resource_build!$A:$A,G$469)","v":0},{"$f":"SUMIFS(raw_resource_build!$K:$K,raw_resource_build!$B:$B,$C515,raw_resource_build!$A:$A,H$469)","v":0},{"$f":"SUMIFS(raw_resource_build!$K:$K,raw_resource_build!$B:$B,$C515,raw_resource_build!$A:$A,I$469)","v":0},{"$f":"SUMIFS(raw_resource_build!$K:$K,raw_resource_build!$B:$B,$C515,raw_resource_build!$A:$A,J$469)","v":0},{"$f":"SUMIFS(raw_resource_build!$K:$K,raw_resource_build!$B:$B,$C515,raw_resource_build!$A:$A,K$469)","v":0},{"$f":"SUMIFS(raw_resource_build!$K:$K,raw_resource_build!$B:$B,$C515,raw_resource_build!$A:$A,L$469)","v":0},{"$f":"SUMIFS(raw_resource_build!$K:$K,raw_resource_build!$B:$B,$C515,raw_resource_build!$A:$A,M$469)","v":1778.57},{"$f":"SUMIFS(raw_resource_build!$K:$K,raw_resource_build!$B:$B,$C515,raw_resource_build!$A:$A,N$469)","v":1778.57},{"$f":"SUMIFS(raw_resource_build!$K:$K,raw_resource_build!$B:$B,$C515,raw_resource_build!$A:$A,O$469)","v":0},{"$f":"SUMIFS(raw_resource_build!$K:$K,raw_resource_build!$B:$B,$C515,raw_resource_build!$A:$A,P$469)","v":1778.57},{"$f":"SUMIFS(raw_resource_build!$K:$K,raw_resource_build!$B:$B,$C515,raw_resource_build!$A:$A,Q$469)","v":0},{"$f":"SUMIFS(raw_resource_build!$K:$K,raw_resource_build!$B:$B,$C515,raw_resource_build!$A:$A,R$469)","v":0},{"$f":"SUMIFS(raw_resource_build!$K:$K,raw_resource_build!$B:$B,$C515,raw_resource_build!$A:$A,S$469)","v":0},{"$f":"SUMIFS(raw_resource_build!$K:$K,raw_resource_build!$B:$B,$C515,raw_resource_build!$A:$A,T$469)","v":1778.57},{"$f":"SUMIFS(raw_resource_build!$K:$K,raw_resource_build!$B:$B,$C515,raw_resource_build!$A:$A,U$469)","v":0},{"$f":"SUMIFS(raw_resource_build!$K:$K,raw_resource_build!$B:$B,$C515,raw_resource_build!$A:$A,V$469)","v":0},{"$f":"SUMIFS(raw_resource_build!$K:$K,raw_resource_build!$B:$B,$C515,raw_resource_build!$A:$A,W$469)","v":0},{"$f":"SUMIFS(raw_resource_build!$K:$K,raw_resource_build!$B:$B,$C515,raw_resource_build!$A:$A,X$469)","v":0},{"$f":"SUMIFS(raw_resource_build!$K:$K,raw_resource_build!$B:$B,$C515,raw_resource_build!$A:$A,Y$469)","v":0},{"$f":"SUMIFS(raw_resource_build!$K:$K,raw_resource_build!$B:$B,$C515,raw_resource_build!$A:$A,Z$469)","v":0},{"$f":"SUMIFS(raw_resource_build!$K:$K,raw_resource_build!$B:$B,$C515,raw_resource_build!$A:$A,AA$469)","v":0},{"$f":"SUMIFS(raw_resource_build!$K:$K,raw_resource_build!$B:$B,$C515,raw_resource_build!$A:$A,AB$469)","v":0},{"$f":"SUMIFS(raw_resource_build!$K:$K,raw_resource_build!$B:$B,$C515,raw_resource_build!$A:$A,AC$469)","v":0},{"$f":"SUMIFS(raw_resource_build!$K:$K,raw_resource_build!$B:$B,$C515,raw_resource_build!$A:$A,AD$469)","v":0},{"$f":"SUMIFS(raw_resource_build!$K:$K,raw_resource_build!$B:$B,$C515,raw_resource_build!$A:$A,AE$469)","v":0},{"$f":"SUMIFS(raw_resource_build!$K:$K,raw_resource_build!$B:$B,$C515,raw_resource_build!$A:$A,AF$469)","v":0},{"$f":"SUMIFS(raw_resource_build!$K:$K,raw_resource_build!$B:$B,$C515,raw_resource_build!$A:$A,AG$469)","v":0},{"$f":"SUMIFS(raw_resource_build!$K:$K,raw_resource_build!$B:$B,$C515,raw_resource_build!$A:$A,AH$469)","v":0},{"$f":"SUMIFS(raw_resource_build!$K:$K,raw_resource_build!$B:$B,$C515,raw_resource_build!$A:$A,AI$469)","v":1778.57},{"$f":"SUMIFS(raw_resource_build!$K:$K,raw_resource_build!$B:$B,$C515,raw_resource_build!$A:$A,AJ$469)","v":0},{"$f":"SUMIFS(raw_resource_build!$K:$K,raw_resource_build!$B:$B,$C515,raw_resource_build!$A:$A,AK$469)","v":0},{"$f":"SUMIFS(raw_resource_build!$K:$K,raw_resource_build!$B:$B,$C515,raw_resource_build!$A:$A,AL$469)","v":0},{"$f":"SUMIFS(raw_resource_build!$K:$K,raw_resource_build!$B:$B,$C515,raw_resource_build!$A:$A,AM$469)","v":0},{"$f":"SUMIFS(raw_resource_build!$K:$K,raw_resource_build!$B:$B,$C515,raw_resource_build!$A:$A,AN$469)","v":0}]
[null,null,{"$f":"Lists!B81","v":"Westlands_Ex_Wind"},"N/A",{"$f":"SUMIFS(raw_resource_build!$K:$K,raw_resource_build!$B:$B,$C516,raw_resource_build!$A:$A,E$469)","v":0},{"$f":"SUMIFS(raw_resource_build!$K:$K,raw_resource_build!$B:$B,$C516,raw_resource_build!$A:$A,F$469)","v":0},{"$f":"SUMIFS(raw_resource_build!$K:$K,raw_resource_build!$B:$B,$C516,raw_resource_build!$A:$A,G$469)","v":0},{"$f":"SUMIFS(raw_resource_build!$K:$K,raw_resource_build!$B:$B,$C516,raw_resource_build!$A:$A,H$469)","v":0},{"$f":"SUMIFS(raw_resource_build!$K:$K,raw_resource_build!$B:$B,$C516,raw_resource_build!$A:$A,I$469)","v":0},{"$f":"SUMIFS(raw_resource_build!$K:$K,raw_resource_build!$B:$B,$C516,raw_resource_build!$A:$A,J$469)","v":0},{"$f":"SUMIFS(raw_resource_build!$K:$K,raw_resource_build!$B:$B,$C516,raw_resource_build!$A:$A,K$469)","v":0},{"$f":"SUMIFS(raw_resource_build!$K:$K,raw_resource_build!$B:$B,$C516,raw_resource_build!$A:$A,L$469)","v":0},{"$f":"SUMIFS(raw_resource_build!$K:$K,raw_resource_build!$B:$B,$C516,raw_resource_build!$A:$A,M$469)","v":0},{"$f":"SUMIFS(raw_resource_build!$K:$K,raw_resource_build!$B:$B,$C516,raw_resource_build!$A:$A,N$469)","v":0},{"$f":"SUMIFS(raw_resource_build!$K:$K,raw_resource_build!$B:$B,$C516,raw_resource_build!$A:$A,O$469)","v":0},{"$f":"SUMIFS(raw_resource_build!$K:$K,raw_resource_build!$B:$B,$C516,raw_resource_build!$A:$A,P$469)","v":0},{"$f":"SUMIFS(raw_resource_build!$K:$K,raw_resource_build!$B:$B,$C516,raw_resource_build!$A:$A,Q$469)","v":0},{"$f":"SUMIFS(raw_resource_build!$K:$K,raw_resource_build!$B:$B,$C516,raw_resource_build!$A:$A,R$469)","v":0},{"$f":"SUMIFS(raw_resource_build!$K:$K,raw_resource_build!$B:$B,$C516,raw_resource_build!$A:$A,S$469)","v":0},{"$f":"SUMIFS(raw_resource_build!$K:$K,raw_resource_build!$B:$B,$C516,raw_resource_build!$A:$A,T$469)","v":0},{"$f":"SUMIFS(raw_resource_build!$K:$K,raw_resource_build!$B:$B,$C516,raw_resource_build!$A:$A,U$469)","v":0},{"$f":"SUMIFS(raw_resource_build!$K:$K,raw_resource_build!$B:$B,$C516,raw_resource_build!$A:$A,V$469)","v":0},{"$f":"SUMIFS(raw_resource_build!$K:$K,raw_resource_build!$B:$B,$C516,raw_resource_build!$A:$A,W$469)","v":0},{"$f":"SUMIFS(raw_resource_build!$K:$K,raw_resource_build!$B:$B,$C516,raw_resource_build!$A:$A,X$469)","v":0},{"$f":"SUMIFS(raw_resource_build!$K:$K,raw_resource_build!$B:$B,$C516,raw_resource_build!$A:$A,Y$469)","v":0},{"$f":"SUMIFS(raw_resource_build!$K:$K,raw_resource_build!$B:$B,$C516,raw_resource_build!$A:$A,Z$469)","v":0},{"$f":"SUMIFS(raw_resource_build!$K:$K,raw_resource_build!$B:$B,$C516,raw_resource_build!$A:$A,AA$469)","v":0},{"$f":"SUMIFS(raw_resource_build!$K:$K,raw_resource_build!$B:$B,$C516,raw_resource_build!$A:$A,AB$469)","v":0},{"$f":"SUMIFS(raw_resource_build!$K:$K,raw_resource_build!$B:$B,$C516,raw_resource_build!$A:$A,AC$469)","v":0},{"$f":"SUMIFS(raw_resource_build!$K:$K,raw_resource_build!$B:$B,$C516,raw_resource_build!$A:$A,AD$469)","v":0},{"$f":"SUMIFS(raw_resource_build!$K:$K,raw_resource_build!$B:$B,$C516,raw_resource_build!$A:$A,AE$469)","v":0},{"$f":"SUMIFS(raw_resource_build!$K:$K,raw_resource_build!$B:$B,$C516,raw_resource_build!$A:$A,AF$469)","v":0},{"$f":"SUMIFS(raw_resource_build!$K:$K,raw_resource_build!$B:$B,$C516,raw_resource_build!$A:$A,AG$469)","v":0},{"$f":"SUMIFS(raw_resource_build!$K:$K,raw_resource_build!$B:$B,$C516,raw_resource_build!$A:$A,AH$469)","v":0},{"$f":"SUMIFS(raw_resource_build!$K:$K,raw_resource_build!$B:$B,$C516,raw_resource_build!$A:$A,AI$469)","v":0},{"$f":"SUMIFS(raw_resource_build!$K:$K,raw_resource_build!$B:$B,$C516,raw_resource_build!$A:$A,AJ$469)","v":0},{"$f":"SUMIFS(raw_resource_build!$K:$K,raw_resource_build!$B:$B,$C516,raw_resource_build!$A:$A,AK$469)","v":0},{"$f":"SUMIFS(raw_resource_build!$K:$K,raw_resource_build!$B:$B,$C516,raw_resource_build!$A:$A,AL$469)","v":0},{"$f":"SUMIFS(raw_resource_build!$K:$K,raw_resource_build!$B:$B,$C516,raw_resource_build!$A:$A,AM$469)","v":0},{"$f":"SUMIFS(raw_resource_build!$K:$K,raw_resource_build!$B:$B,$C516,raw_resource_build!$A:$A,AN$469)","v":0}]
[null,null,{"$f":"Lists!B82","v":"Westlands_Solar"},"Central_Valley_North_Los_Banos-SPGE",{"$f":"SUMIFS(raw_resource_build!$K:$K,raw_resource_build!$B:$B,$C517,raw_resource_build!$A:$A,E$469)","v":0},{"$f":"SUMIFS(raw_resource_build!$K:$K,raw_resource_build!$B:$B,$C517,raw_resource_build!$A:$A,F$469)","v":0},{"$f":"SUMIFS(raw_resource_build!$K:$K,raw_resource_build!$B:$B,$C517,raw_resource_build!$A:$A,G$469)","v":0},{"$f":"SUMIFS(raw_resource_build!$K:$K,raw_resource_build!$B:$B,$C517,raw_resource_build!$A:$A,H$469)","v":0},{"$f":"SUMIFS(raw_resource_build!$K:$K,raw_resource_build!$B:$B,$C517,raw_resource_build!$A:$A,I$469)","v":0},{"$f":"SUMIFS(raw_resource_build!$K:$K,raw_resource_build!$B:$B,$C517,raw_resource_build!$A:$A,J$469)","v":0},{"$f":"SUMIFS(raw_resource_build!$K:$K,raw_resource_build!$B:$B,$C517,raw_resource_build!$A:$A,K$469)","v":0},{"$f":"SUMIFS(raw_resource_build!$K:$K,raw_resource_build!$B:$B,$C517,raw_resource_build!$A:$A,L$469)","v":0},{"$f":"SUMIFS(raw_resource_build!$K:$K,raw_resource_build!$B:$B,$C517,raw_resource_build!$A:$A,M$469)","v":40.69},{"$f":"SUMIFS(raw_resource_build!$K:$K,raw_resource_build!$B:$B,$C517,raw_resource_build!$A:$A,N$469)","v":40.69},{"$f":"SUMIFS(raw_resource_build!$K:$K,raw_resource_build!$B:$B,$C517,raw_resource_build!$A:$A,O$469)","v":0},{"$f":"SUMIFS(raw_resource_build!$K:$K,raw_resource_build!$B:$B,$C517,raw_resource_build!$A:$A,P$469)","v":617.94000000000005},{"$f":"SUMIFS(raw_resource_build!$K:$K,raw_resource_build!$B:$B,$C517,raw_resource_build!$A:$A,Q$469)","v":0},{"$f":"SUMIFS(raw_resource_build!$K:$K,raw_resource_build!$B:$B,$C517,raw_resource_build!$A:$A,R$469)","v":0},{"$f":"SUMIFS(raw_resource_build!$K:$K,raw_resource_build!$B:$B,$C517,raw_resource_build!$A:$A,S$469)","v":0},{"$f":"SUMIFS(raw_resource_build!$K:$K,raw_resource_build!$B:$B,$C517,raw_resource_build!$A:$A,T$469)","v":617.94000000000005},{"$f":"SUMIFS(raw_resource_build!$K:$K,raw_resource_build!$B:$B,$C517,raw_resource_build!$A:$A,U$469)","v":0},{"$f":"SUMIFS(raw_resource_build!$K:$K,raw_resource_build!$B:$B,$C517,raw_resource_build!$A:$A,V$469)","v":0},{"$f":"SUMIFS(raw_resource_build!$K:$K,raw_resource_build!$B:$B,$C517,raw_resource_build!$A:$A,W$469)","v":0},{"$f":"SUMIFS(raw_resource_build!$K:$K,raw_resource_build!$B:$B,$C517,raw_resource_build!$A:$A,X$469)","v":0},{"$f":"SUMIFS(raw_resource_build!$K:$K,raw_resource_build!$B:$B,$C517,raw_resource_build!$A:$A,Y$469)","v":0},{"$f":"SUMIFS(raw_resource_build!$K:$K,raw_resource_build!$B:$B,$C517,raw_resource_build!$A:$A,Z$469)","v":0},{"$f":"SUMIFS(raw_resource_build!$K:$K,raw_resource_build!$B:$B,$C517,raw_resource_build!$A:$A,AA$469)","v":0},{"$f":"SUMIFS(raw_resource_build!$K:$K,raw_resource_build!$B:$B,$C517,raw_resource_build!$A:$A,AB$469)","v":0},{"$f":"SUMIFS(raw_resource_build!$K:$K,raw_resource_build!$B:$B,$C517,raw_resource_build!$A:$A,AC$469)","v":0},{"$f":"SUMIFS(raw_resource_build!$K:$K,raw_resource_build!$B:$B,$C517,raw_resource_build!$A:$A,AD$469)","v":0},{"$f":"SUMIFS(raw_resource_build!$K:$K,raw_resource_build!$B:$B,$C517,raw_resource_build!$A:$A,AE$469)","v":0},{"$f":"SUMIFS(raw_resource_build!$K:$K,raw_resource_build!$B:$B,$C517,raw_resource_build!$A:$A,AF$469)","v":0},{"$f":"SUMIFS(raw_resource_build!$K:$K,raw_resource_build!$B:$B,$C517,raw_resource_build!$A:$A,AG$469)","v":0},{"$f":"SUMIFS(raw_resource_build!$K:$K,raw_resource_build!$B:$B,$C517,raw_resource_build!$A:$A,AH$469)","v":0},{"$f":"SUMIFS(raw_resource_build!$K:$K,raw_resource_build!$B:$B,$C517,raw_resource_build!$A:$A,AI$469)","v":56150.5},{"$f":"SUMIFS(raw_resource_build!$K:$K,raw_resource_build!$B:$B,$C517,raw_resource_build!$A:$A,AJ$469)","v":0},{"$f":"SUMIFS(raw_resource_build!$K:$K,raw_resource_build!$B:$B,$C517,raw_resource_build!$A:$A,AK$469)","v":0},{"$f":"SUMIFS(raw_resource_build!$K:$K,raw_resource_build!$B:$B,$C517,raw_resource_build!$A:$A,AL$469)","v":0},{"$f":"SUMIFS(raw_resource_build!$K:$K,raw_resource_build!$B:$B,$C517,raw_resource_build!$A:$A,AM$469)","v":0},{"$f":"SUMIFS(raw_resource_build!$K:$K,raw_resource_build!$B:$B,$C517,raw_resource_build!$A:$A,AN$469)","v":0}]
[null,null,{"$f":"Lists!B83","v":"Cape_Mendocino_Offshore_Wind"},"N/A",{"$f":"SUMIFS(raw_resource_build!$K:$K,raw_resource_build!$B:$B,$C518,raw_resource_build!$A:$A,E$469)","v":0},{"$f":"SUMIFS(raw_resource_build!$K:$K,raw_resource_build!$B:$B,$C518,raw_resource_build!$A:$A,F$469)","v":0},{"$f":"SUMIFS(raw_resource_build!$K:$K,raw_resource_build!$B:$B,$C518,raw_resource_build!$A:$A,G$469)","v":0},{"$f":"SUMIFS(raw_resource_build!$K:$K,raw_resource_build!$B:$B,$C518,raw_resource_build!$A:$A,H$469)","v":0},{"$f":"SUMIFS(raw_resource_build!$K:$K,raw_resource_build!$B:$B,$C518,raw_resource_build!$A:$A,I$469)","v":0},{"$f":"SUMIFS(raw_resource_build!$K:$K,raw_resource_build!$B:$B,$C518,raw_resource_build!$A:$A,J$469)","v":0},{"$f":"SUMIFS(raw_resource_build!$K:$K,raw_resource_build!$B:$B,$C518,raw_resource_build!$A:$A,K$469)","v":0},{"$f":"SUMIFS(raw_resource_build!$K:$K,raw_resource_build!$B:$B,$C518,raw_resource_build!$A:$A,L$469)","v":0},{"$f":"SUMIFS(raw_resource_build!$K:$K,raw_resource_build!$B:$B,$C518,raw_resource_build!$A:$A,M$469)","v":0},{"$f":"SUMIFS(raw_resource_build!$K:$K,raw_resource_build!$B:$B,$C518,raw_resource_build!$A:$A,N$469)","v":0},{"$f":"SUMIFS(raw_resource_build!$K:$K,raw_resource_build!$B:$B,$C518,raw_resource_build!$A:$A,O$469)","v":0},{"$f":"SUMIFS(raw_resource_build!$K:$K,raw_resource_build!$B:$B,$C518,raw_resource_build!$A:$A,P$469)","v":0},{"$f":"SUMIFS(raw_resource_build!$K:$K,raw_resource_build!$B:$B,$C518,raw_resource_build!$A:$A,Q$469)","v":0},{"$f":"SUMIFS(raw_resource_build!$K:$K,raw_resource_build!$B:$B,$C518,raw_resource_build!$A:$A,R$469)","v":0},{"$f":"SUMIFS(raw_resource_build!$K:$K,raw_resource_build!$B:$B,$C518,raw_resource_build!$A:$A,S$469)","v":0},{"$f":"SUMIFS(raw_resource_build!$K:$K,raw_resource_build!$B:$B,$C518,raw_resource_build!$A:$A,T$469)","v":0},{"$f":"SUMIFS(raw_resource_build!$K:$K,raw_resource_build!$B:$B,$C518,raw_resource_build!$A:$A,U$469)","v":0},{"$f":"SUMIFS(raw_resource_build!$K:$K,raw_resource_build!$B:$B,$C518,raw_resource_build!$A:$A,V$469)","v":0},{"$f":"SUMIFS(raw_resource_build!$K:$K,raw_resource_build!$B:$B,$C518,raw_resource_build!$A:$A,W$469)","v":0},{"$f":"SUMIFS(raw_resource_build!$K:$K,raw_resource_build!$B:$B,$C518,raw_resource_build!$A:$A,X$469)","v":0},{"$f":"SUMIFS(raw_resource_build!$K:$K,raw_resource_build!$B:$B,$C518,raw_resource_build!$A:$A,Y$469)","v":0},{"$f":"SUMIFS(raw_resource_build!$K:$K,raw_resource_build!$B:$B,$C518,raw_resource_build!$A:$A,Z$469)","v":0},{"$f":"SUMIFS(raw_resource_build!$K:$K,raw_resource_build!$B:$B,$C518,raw_resource_build!$A:$A,AA$469)","v":0},{"$f":"SUMIFS(raw_resource_build!$K:$K,raw_resource_build!$B:$B,$C518,raw_resource_build!$A:$A,AB$469)","v":0},{"$f":"SUMIFS(raw_resource_build!$K:$K,raw_resource_build!$B:$B,$C518,raw_resource_build!$A:$A,AC$469)","v":0},{"$f":"SUMIFS(raw_resource_build!$K:$K,raw_resource_build!$B:$B,$C518,raw_resource_build!$A:$A,AD$469)","v":0},{"$f":"SUMIFS(raw_resource_build!$K:$K,raw_resource_build!$B:$B,$C518,raw_resource_build!$A:$A,AE$469)","v":0},{"$f":"SUMIFS(raw_resource_build!$K:$K,raw_resource_build!$B:$B,$C518,raw_resource_build!$A:$A,AF$469)","v":0},{"$f":"SUMIFS(raw_resource_build!$K:$K,raw_resource_build!$B:$B,$C518,raw_resource_build!$A:$A,AG$469)","v":0},{"$f":"SUMIFS(raw_resource_build!$K:$K,raw_resource_build!$B:$B,$C518,raw_resource_build!$A:$A,AH$469)","v":0},{"$f":"SUMIFS(raw_resource_build!$K:$K,raw_resource_build!$B:$B,$C518,raw_resource_build!$A:$A,AI$469)","v":0},{"$f":"SUMIFS(raw_resource_build!$K:$K,raw_resource_build!$B:$B,$C518,raw_resource_build!$A:$A,AJ$469)","v":0},{"$f":"SUMIFS(raw_resource_build!$K:$K,raw_resource_build!$B:$B,$C518,raw_resource_build!$A:$A,AK$469)","v":0},{"$f":"SUMIFS(raw_resource_build!$K:$K,raw_resource_build!$B:$B,$C518,raw_resource_build!$A:$A,AL$469)","v":0},{"$f":"SUMIFS(raw_resource_build!$K:$K,raw_resource_build!$B:$B,$C518,raw_resource_build!$A:$A,AM$469)","v":0},{"$f":"SUMIFS(raw_resource_build!$K:$K,raw_resource_build!$B:$B,$C518,raw_resource_build!$A:$A,AN$469)","v":0}]
[null,null,{"$f":"Lists!B84","v":"Del_Norte_Offshore_Wind"},"N/A",{"$f":"SUMIFS(raw_resource_build!$K:$K,raw_resource_build!$B:$B,$C519,raw_resource_build!$A:$A,E$469)","v":0},{"$f":"SUMIFS(raw_resource_build!$K:$K,raw_resource_build!$B:$B,$C519,raw_resource_build!$A:$A,F$469)","v":0},{"$f":"SUMIFS(raw_resource_build!$K:$K,raw_resource_build!$B:$B,$C519,raw_resource_build!$A:$A,G$469)","v":0},{"$f":"SUMIFS(raw_resource_build!$K:$K,raw_resource_build!$B:$B,$C519,raw_resource_build!$A:$A,H$469)","v":0},{"$f":"SUMIFS(raw_resource_build!$K:$K,raw_resource_build!$B:$B,$C519,raw_resource_build!$A:$A,I$469)","v":0},{"$f":"SUMIFS(raw_resource_build!$K:$K,raw_resource_build!$B:$B,$C519,raw_resource_build!$A:$A,J$469)","v":0},{"$f":"SUMIFS(raw_resource_build!$K:$K,raw_resource_build!$B:$B,$C519,raw_resource_build!$A:$A,K$469)","v":0},{"$f":"SUMIFS(raw_resource_build!$K:$K,raw_resource_build!$B:$B,$C519,raw_resource_build!$A:$A,L$469)","v":0},{"$f":"SUMIFS(raw_resource_build!$K:$K,raw_resource_build!$B:$B,$C519,raw_resource_build!$A:$A,M$469)","v":0},{"$f":"SUMIFS(raw_resource_build!$K:$K,raw_resource_build!$B:$B,$C519,raw_resource_build!$A:$A,N$469)","v":0},{"$f":"SUMIFS(raw_resource_build!$K:$K,raw_resource_build!$B:$B,$C519,raw_resource_build!$A:$A,O$469)","v":0},{"$f":"SUMIFS(raw_resource_build!$K:$K,raw_resource_build!$B:$B,$C519,raw_resource_build!$A:$A,P$469)","v":0},{"$f":"SUMIFS(raw_resource_build!$K:$K,raw_resource_build!$B:$B,$C519,raw_resource_build!$A:$A,Q$469)","v":0},{"$f":"SUMIFS(raw_resource_build!$K:$K,raw_resource_build!$B:$B,$C519,raw_resource_build!$A:$A,R$469)","v":0},{"$f":"SUMIFS(raw_resource_build!$K:$K,raw_resource_build!$B:$B,$C519,raw_resource_build!$A:$A,S$469)","v":0},{"$f":"SUMIFS(raw_resource_build!$K:$K,raw_resource_build!$B:$B,$C519,raw_resource_build!$A:$A,T$469)","v":0},{"$f":"SUMIFS(raw_resource_build!$K:$K,raw_resource_build!$B:$B,$C519,raw_resource_build!$A:$A,U$469)","v":0},{"$f":"SUMIFS(raw_resource_build!$K:$K,raw_resource_build!$B:$B,$C519,raw_resource_build!$A:$A,V$469)","v":0},{"$f":"SUMIFS(raw_resource_build!$K:$K,raw_resource_build!$B:$B,$C519,raw_resource_build!$A:$A,W$469)","v":0},{"$f":"SUMIFS(raw_resource_build!$K:$K,raw_resource_build!$B:$B,$C519,raw_resource_build!$A:$A,X$469)","v":0},{"$f":"SUMIFS(raw_resource_build!$K:$K,raw_resource_build!$B:$B,$C519,raw_resource_build!$A:$A,Y$469)","v":0},{"$f":"SUMIFS(raw_resource_build!$K:$K,raw_resource_build!$B:$B,$C519,raw_resource_build!$A:$A,Z$469)","v":0},{"$f":"SUMIFS(raw_resource_build!$K:$K,raw_resource_build!$B:$B,$C519,raw_resource_build!$A:$A,AA$469)","v":0},{"$f":"SUMIFS(raw_resource_build!$K:$K,raw_resource_build!$B:$B,$C519,raw_resource_build!$A:$A,AB$469)","v":0},{"$f":"SUMIFS(raw_resource_build!$K:$K,raw_resource_build!$B:$B,$C519,raw_resource_build!$A:$A,AC$469)","v":0},{"$f":"SUMIFS(raw_resource_build!$K:$K,raw_resource_build!$B:$B,$C519,raw_resource_build!$A:$A,AD$469)","v":0},{"$f":"SUMIFS(raw_resource_build!$K:$K,raw_resource_build!$B:$B,$C519,raw_resource_build!$A:$A,AE$469)","v":0},{"$f":"SUMIFS(raw_resource_build!$K:$K,raw_resource_build!$B:$B,$C519,raw_resource_build!$A:$A,AF$469)","v":0},{"$f":"SUMIFS(raw_resource_build!$K:$K,raw_resource_build!$B:$B,$C519,raw_resource_build!$A:$A,AG$469)","v":0},{"$f":"SUMIFS(raw_resource_build!$K:$K,raw_resource_build!$B:$B,$C519,raw_resource_build!$A:$A,AH$469)","v":0},{"$f":"SUMIFS(raw_resource_build!$K:$K,raw_resource_build!$B:$B,$C519,raw_resource_build!$A:$A,AI$469)","v":0},{"$f":"SUMIFS(raw_resource_build!$K:$K,raw_resource_build!$B:$B,$C519,raw_resource_build!$A:$A,AJ$469)","v":0},{"$f":"SUMIFS(raw_resource_build!$K:$K,raw_resource_build!$B:$B,$C519,raw_resource_build!$A:$A,AK$469)","v":0},{"$f":"SUMIFS(raw_resource_build!$K:$K,raw_resource_build!$B:$B,$C519,raw_resource_build!$A:$A,AL$469)","v":0},{"$f":"SUMIFS(raw_resource_build!$K:$K,raw_resource_build!$B:$B,$C519,raw_resource_build!$A:$A,AM$469)","v":0},{"$f":"SUMIFS(raw_resource_build!$K:$K,raw_resource_build!$B:$B,$C519,raw_resource_build!$A:$A,AN$469)","v":0}]
[null,null,{"$f":"Lists!B85","v":"Diablo_Canyon_Offshore_Wind_Ext_Tx"},"N/A",{"$f":"SUMIFS(raw_resource_build!$K:$K,raw_resource_build!$B:$B,$C520,raw_resource_build!$A:$A,E$469)","v":0},{"$f":"SUMIFS(raw_resource_build!$K:$K,raw_resource_build!$B:$B,$C520,raw_resource_build!$A:$A,F$469)","v":0},{"$f":"SUMIFS(raw_resource_build!$K:$K,raw_resource_build!$B:$B,$C520,raw_resource_build!$A:$A,G$469)","v":0},{"$f":"SUMIFS(raw_resource_build!$K:$K,raw_resource_build!$B:$B,$C520,raw_resource_build!$A:$A,H$469)","v":0},{"$f":"SUMIFS(raw_resource_build!$K:$K,raw_resource_build!$B:$B,$C520,raw_resource_build!$A:$A,I$469)","v":0},{"$f":"SUMIFS(raw_resource_build!$K:$K,raw_resource_build!$B:$B,$C520,raw_resource_build!$A:$A,J$469)","v":0},{"$f":"SUMIFS(raw_resource_build!$K:$K,raw_resource_build!$B:$B,$C520,raw_resource_build!$A:$A,K$469)","v":0},{"$f":"SUMIFS(raw_resource_build!$K:$K,raw_resource_build!$B:$B,$C520,raw_resource_build!$A:$A,L$469)","v":0},{"$f":"SUMIFS(raw_resource_build!$K:$K,raw_resource_build!$B:$B,$C520,raw_resource_build!$A:$A,M$469)","v":0},{"$f":"SUMIFS(raw_resource_build!$K:$K,raw_resource_build!$B:$B,$C520,raw_resource_build!$A:$A,N$469)","v":0},{"$f":"SUMIFS(raw_resource_build!$K:$K,raw_resource_build!$B:$B,$C520,raw_resource_build!$A:$A,O$469)","v":0},{"$f":"SUMIFS(raw_resource_build!$K:$K,raw_resource_build!$B:$B,$C520,raw_resource_build!$A:$A,P$469)","v":0},{"$f":"SUMIFS(raw_resource_build!$K:$K,raw_resource_build!$B:$B,$C520,raw_resource_build!$A:$A,Q$469)","v":0},{"$f":"SUMIFS(raw_resource_build!$K:$K,raw_resource_build!$B:$B,$C520,raw_resource_build!$A:$A,R$469)","v":0},{"$f":"SUMIFS(raw_resource_build!$K:$K,raw_resource_build!$B:$B,$C520,raw_resource_build!$A:$A,S$469)","v":0},{"$f":"SUMIFS(raw_resource_build!$K:$K,raw_resource_build!$B:$B,$C520,raw_resource_build!$A:$A,T$469)","v":0},{"$f":"SUMIFS(raw_resource_build!$K:$K,raw_resource_build!$B:$B,$C520,raw_resource_build!$A:$A,U$469)","v":0},{"$f":"SUMIFS(raw_resource_build!$K:$K,raw_resource_build!$B:$B,$C520,raw_resource_build!$A:$A,V$469)","v":0},{"$f":"SUMIFS(raw_resource_build!$K:$K,raw_resource_build!$B:$B,$C520,raw_resource_build!$A:$A,W$469)","v":0},{"$f":"SUMIFS(raw_resource_build!$K:$K,raw_resource_build!$B:$B,$C520,raw_resource_build!$A:$A,X$469)","v":0},{"$f":"SUMIFS(raw_resource_build!$K:$K,raw_resource_build!$B:$B,$C520,raw_resource_build!$A:$A,Y$469)","v":0},{"$f":"SUMIFS(raw_resource_build!$K:$K,raw_resource_build!$B:$B,$C520,raw_resource_build!$A:$A,Z$469)","v":0},{"$f":"SUMIFS(raw_resource_build!$K:$K,raw_resource_build!$B:$B,$C520,raw_resource_build!$A:$A,AA$469)","v":0},{"$f":"SUMIFS(raw_resource_build!$K:$K,raw_resource_build!$B:$B,$C520,raw_resource_build!$A:$A,AB$469)","v":0},{"$f":"SUMIFS(raw_resource_build!$K:$K,raw_resource_build!$B:$B,$C520,raw_resource_build!$A:$A,AC$469)","v":0},{"$f":"SUMIFS(raw_resource_build!$K:$K,raw_resource_build!$B:$B,$C520,raw_resource_build!$A:$A,AD$469)","v":0},{"$f":"SUMIFS(raw_resource_build!$K:$K,raw_resource_build!$B:$B,$C520,raw_resource_build!$A:$A,AE$469)","v":0},{"$f":"SUMIFS(raw_resource_build!$K:$K,raw_resource_build!$B:$B,$C520,raw_resource_build!$A:$A,AF$469)","v":0},{"$f":"SUMIFS(raw_resource_build!$K:$K,raw_resource_build!$B:$B,$C520,raw_resource_build!$A:$A,AG$469)","v":0},{"$f":"SUMIFS(raw_resource_build!$K:$K,raw_resource_build!$B:$B,$C520,raw_resource_build!$A:$A,AH$469)","v":0},{"$f":"SUMIFS(raw_resource_build!$K:$K,raw_resource_build!$B:$B,$C520,raw_resource_build!$A:$A,AI$469)","v":0},{"$f":"SUMIFS(raw_resource_build!$K:$K,raw_resource_build!$B:$B,$C520,raw_resource_build!$A:$A,AJ$469)","v":0},{"$f":"SUMIFS(raw_resource_build!$K:$K,raw_resource_build!$B:$B,$C520,raw_resource_build!$A:$A,AK$469)","v":0},{"$f":"SUMIFS(raw_resource_build!$K:$K,raw_resource_build!$B:$B,$C520,raw_resource_build!$A:$A,AL$469)","v":0},{"$f":"SUMIFS(raw_resource_build!$K:$K,raw_resource_build!$B:$B,$C520,raw_resource_build!$A:$A,AM$469)","v":0},{"$f":"SUMIFS(raw_resource_build!$K:$K,raw_resource_build!$B:$B,$C520,raw_resource_build!$A:$A,AN$469)","v":0}]
[null,null,{"$f":"Lists!B86","v":"Diablo_Canyon_Offshore_Wind"},"N/A",{"$f":"SUMIFS(raw_resource_build!$K:$K,raw_resource_build!$B:$B,$C521,raw_resource_build!$A:$A,E$469)","v":0},{"$f":"SUMIFS(raw_resource_build!$K:$K,raw_resource_build!$B:$B,$C521,raw_resource_build!$A:$A,F$469)","v":0},{"$f":"SUMIFS(raw_resource_build!$K:$K,raw_resource_build!$B:$B,$C521,raw_resource_build!$A:$A,G$469)","v":0},{"$f":"SUMIFS(raw_resource_build!$K:$K,raw_resource_build!$B:$B,$C521,raw_resource_build!$A:$A,H$469)","v":0},{"$f":"SUMIFS(raw_resource_build!$K:$K,raw_resource_build!$B:$B,$C521,raw_resource_build!$A:$A,I$469)","v":0},{"$f":"SUMIFS(raw_resource_build!$K:$K,raw_resource_build!$B:$B,$C521,raw_resource_build!$A:$A,J$469)","v":0},{"$f":"SUMIFS(raw_resource_build!$K:$K,raw_resource_build!$B:$B,$C521,raw_resource_build!$A:$A,K$469)","v":0},{"$f":"SUMIFS(raw_resource_build!$K:$K,raw_resource_build!$B:$B,$C521,raw_resource_build!$A:$A,L$469)","v":0},{"$f":"SUMIFS(raw_resource_build!$K:$K,raw_resource_build!$B:$B,$C521,raw_resource_build!$A:$A,M$469)","v":0},{"$f":"SUMIFS(raw_resource_build!$K:$K,raw_resource_build!$B:$B,$C521,raw_resource_build!$A:$A,N$469)","v":0},{"$f":"SUMIFS(raw_resource_build!$K:$K,raw_resource_build!$B:$B,$C521,raw_resource_build!$A:$A,O$469)","v":0},{"$f":"SUMIFS(raw_resource_build!$K:$K,raw_resource_build!$B:$B,$C521,raw_resource_build!$A:$A,P$469)","v":0},{"$f":"SUMIFS(raw_resource_build!$K:$K,raw_resource_build!$B:$B,$C521,raw_resource_build!$A:$A,Q$469)","v":0},{"$f":"SUMIFS(raw_resource_build!$K:$K,raw_resource_build!$B:$B,$C521,raw_resource_build!$A:$A,R$469)","v":0},{"$f":"SUMIFS(raw_resource_build!$K:$K,raw_resource_build!$B:$B,$C521,raw_resource_build!$A:$A,S$469)","v":0},{"$f":"SUMIFS(raw_resource_build!$K:$K,raw_resource_build!$B:$B,$C521,raw_resource_build!$A:$A,T$469)","v":0},{"$f":"SUMIFS(raw_resource_build!$K:$K,raw_resource_build!$B:$B,$C521,raw_resource_build!$A:$A,U$469)","v":0},{"$f":"SUMIFS(raw_resource_build!$K:$K,raw_resource_build!$B:$B,$C521,raw_resource_build!$A:$A,V$469)","v":0},{"$f":"SUMIFS(raw_resource_build!$K:$K,raw_resource_build!$B:$B,$C521,raw_resource_build!$A:$A,W$469)","v":0},{"$f":"SUMIFS(raw_resource_build!$K:$K,raw_resource_build!$B:$B,$C521,raw_resource_build!$A:$A,X$469)","v":0},{"$f":"SUMIFS(raw_resource_build!$K:$K,raw_resource_build!$B:$B,$C521,raw_resource_build!$A:$A,Y$469)","v":0},{"$f":"SUMIFS(raw_resource_build!$K:$K,raw_resource_build!$B:$B,$C521,raw_resource_build!$A:$A,Z$469)","v":0},{"$f":"SUMIFS(raw_resource_build!$K:$K,raw_resource_build!$B:$B,$C521,raw_resource_build!$A:$A,AA$469)","v":0},{"$f":"SUMIFS(raw_resource_build!$K:$K,raw_resource_build!$B:$B,$C521,raw_resource_build!$A:$A,AB$469)","v":0},{"$f":"SUMIFS(raw_resource_build!$K:$K,raw_resource_build!$B:$B,$C521,raw_resource_build!$A:$A,AC$469)","v":0},{"$f":"SUMIFS(raw_resource_build!$K:$K,raw_resource_build!$B:$B,$C521,raw_resource_build!$A:$A,AD$469)","v":0},{"$f":"SUMIFS(raw_resource_build!$K:$K,raw_resource_build!$B:$B,$C521,raw_resource_build!$A:$A,AE$469)","v":0},{"$f":"SUMIFS(raw_resource_build!$K:$K,raw_resource_build!$B:$B,$C521,raw_resource_build!$A:$A,AF$469)","v":0},{"$f":"SUMIFS(raw_resource_build!$K:$K,raw_resource_build!$B:$B,$C521,raw_resource_build!$A:$A,AG$469)","v":0},{"$f":"SUMIFS(raw_resource_build!$K:$K,raw_resource_build!$B:$B,$C521,raw_resource_build!$A:$A,AH$469)","v":0},{"$f":"SUMIFS(raw_resource_build!$K:$K,raw_resource_build!$B:$B,$C521,raw_resource_build!$A:$A,AI$469)","v":0},{"$f":"SUMIFS(raw_resource_build!$K:$K,raw_resource_build!$B:$B,$C521,raw_resource_build!$A:$A,AJ$469)","v":0},{"$f":"SUMIFS(raw_resource_build!$K:$K,raw_resource_build!$B:$B,$C521,raw_resource_build!$A:$A,AK$469)","v":0},{"$f":"SUMIFS(raw_resource_build!$K:$K,raw_resource_build!$B:$B,$C521,raw_resource_build!$A:$A,AL$469)","v":0},{"$f":"SUMIFS(raw_resource_build!$K:$K,raw_resource_build!$B:$B,$C521,raw_resource_build!$A:$A,AM$469)","v":0},{"$f":"SUMIFS(raw_resource_build!$K:$K,raw_resource_build!$B:$B,$C521,raw_resource_build!$A:$A,AN$469)","v":0}]
[null,null,{"$f":"Lists!B87","v":"Humboldt_Bay_Offshore_Wind"},"N/A",{"$f":"SUMIFS(raw_resource_build!$K:$K,raw_resource_build!$B:$B,$C522,raw_resource_build!$A:$A,E$469)","v":0},{"$f":"SUMIFS(raw_resource_build!$K:$K,raw_resource_build!$B:$B,$C522,raw_resource_build!$A:$A,F$469)","v":0},{"$f":"SUMIFS(raw_resource_build!$K:$K,raw_resource_build!$B:$B,$C522,raw_resource_build!$A:$A,G$469)","v":0},{"$f":"SUMIFS(raw_resource_build!$K:$K,raw_resource_build!$B:$B,$C522,raw_resource_build!$A:$A,H$469)","v":0},{"$f":"SUMIFS(raw_resource_build!$K:$K,raw_resource_build!$B:$B,$C522,raw_resource_build!$A:$A,I$469)","v":0},{"$f":"SUMIFS(raw_resource_build!$K:$K,raw_resource_build!$B:$B,$C522,raw_resource_build!$A:$A,J$469)","v":0},{"$f":"SUMIFS(raw_resource_build!$K:$K,raw_resource_build!$B:$B,$C522,raw_resource_build!$A:$A,K$469)","v":0},{"$f":"SUMIFS(raw_resource_build!$K:$K,raw_resource_build!$B:$B,$C522,raw_resource_build!$A:$A,L$469)","v":0},{"$f":"SUMIFS(raw_resource_build!$K:$K,raw_resource_build!$B:$B,$C522,raw_resource_build!$A:$A,M$469)","v":0},{"$f":"SUMIFS(raw_resource_build!$K:$K,raw_resource_build!$B:$B,$C522,raw_resource_build!$A:$A,N$469)","v":0},{"$f":"SUMIFS(raw_resource_build!$K:$K,raw_resource_build!$B:$B,$C522,raw_resource_build!$A:$A,O$469)","v":0},{"$f":"SUMIFS(raw_resource_build!$K:$K,raw_resource_build!$B:$B,$C522,raw_resource_build!$A:$A,P$469)","v":0},{"$f":"SUMIFS(raw_resource_build!$K:$K,raw_resource_build!$B:$B,$C522,raw_resource_build!$A:$A,Q$469)","v":0},{"$f":"SUMIFS(raw_resource_build!$K:$K,raw_resource_build!$B:$B,$C522,raw_resource_build!$A:$A,R$469)","v":0},{"$f":"SUMIFS(raw_resource_build!$K:$K,raw_resource_build!$B:$B,$C522,raw_resource_build!$A:$A,S$469)","v":0},{"$f":"SUMIFS(raw_resource_build!$K:$K,raw_resource_build!$B:$B,$C522,raw_resource_build!$A:$A,T$469)","v":0},{"$f":"SUMIFS(raw_resource_build!$K:$K,raw_resource_build!$B:$B,$C522,raw_resource_build!$A:$A,U$469)","v":0},{"$f":"SUMIFS(raw_resource_build!$K:$K,raw_resource_build!$B:$B,$C522,raw_resource_build!$A:$A,V$469)","v":0},{"$f":"SUMIFS(raw_resource_build!$K:$K,raw_resource_build!$B:$B,$C522,raw_resource_build!$A:$A,W$469)","v":0},{"$f":"SUMIFS(raw_resource_build!$K:$K,raw_resource_build!$B:$B,$C522,raw_resource_build!$A:$A,X$469)","v":0},{"$f":"SUMIFS(raw_resource_build!$K:$K,raw_resource_build!$B:$B,$C522,raw_resource_build!$A:$A,Y$469)","v":0},{"$f":"SUMIFS(raw_resource_build!$K:$K,raw_resource_build!$B:$B,$C522,raw_resource_build!$A:$A,Z$469)","v":0},{"$f":"SUMIFS(raw_resource_build!$K:$K,raw_resource_build!$B:$B,$C522,raw_resource_build!$A:$A,AA$469)","v":0},{"$f":"SUMIFS(raw_resource_build!$K:$K,raw_resource_build!$B:$B,$C522,raw_resource_build!$A:$A,AB$469)","v":0},{"$f":"SUMIFS(raw_resource_build!$K:$K,raw_resource_build!$B:$B,$C522,raw_resource_build!$A:$A,AC$469)","v":0},{"$f":"SUMIFS(raw_resource_build!$K:$K,raw_resource_build!$B:$B,$C522,raw_resource_build!$A:$A,AD$469)","v":0},{"$f":"SUMIFS(raw_resource_build!$K:$K,raw_resource_build!$B:$B,$C522,raw_resource_build!$A:$A,AE$469)","v":0},{"$f":"SUMIFS(raw_resource_build!$K:$K,raw_resource_build!$B:$B,$C522,raw_resource_build!$A:$A,AF$469)","v":0},{"$f":"SUMIFS(raw_resource_build!$K:$K,raw_resource_build!$B:$B,$C522,raw_resource_build!$A:$A,AG$469)","v":0},{"$f":"SUMIFS(raw_resource_build!$K:$K,raw_resource_build!$B:$B,$C522,raw_resource_build!$A:$A,AH$469)","v":0},{"$f":"SUMIFS(raw_resource_build!$K:$K,raw_resource_build!$B:$B,$C522,raw_resource_build!$A:$A,AI$469)","v":0},{"$f":"SUMIFS(raw_resource_build!$K:$K,raw_resource_build!$B:$B,$C522,raw_resource_build!$A:$A,AJ$469)","v":0},{"$f":"SUMIFS(raw_resource_build!$K:$K,raw_resource_build!$B:$B,$C522,raw_resource_build!$A:$A,AK$469)","v":0},{"$f":"SUMIFS(raw_resource_build!$K:$K,raw_resource_build!$B:$B,$C522,raw_resource_build!$A:$A,AL$469)","v":0},{"$f":"SUMIFS(raw_resource_build!$K:$K,raw_resource_build!$B:$B,$C522,raw_resource_build!$A:$A,AM$469)","v":0},{"$f":"SUMIFS(raw_resource_build!$K:$K,raw_resource_build!$B:$B,$C522,raw_resource_build!$A:$A,AN$469)","v":0}]
[null,null,{"$f":"Lists!B88","v":"Morro_Bay_Offshore_Wind"},"N/A",{"$f":"SUMIFS(raw_resource_build!$K:$K,raw_resource_build!$B:$B,$C523,raw_resource_build!$A:$A,E$469)","v":0},{"$f":"SUMIFS(raw_resource_build!$K:$K,raw_resource_build!$B:$B,$C523,raw_resource_build!$A:$A,F$469)","v":0},{"$f":"SUMIFS(raw_resource_build!$K:$K,raw_resource_build!$B:$B,$C523,raw_resource_build!$A:$A,G$469)","v":0},{"$f":"SUMIFS(raw_resource_build!$K:$K,raw_resource_build!$B:$B,$C523,raw_resource_build!$A:$A,H$469)","v":0},{"$f":"SUMIFS(raw_resource_build!$K:$K,raw_resource_build!$B:$B,$C523,raw_resource_build!$A:$A,I$469)","v":0},{"$f":"SUMIFS(raw_resource_build!$K:$K,raw_resource_build!$B:$B,$C523,raw_resource_build!$A:$A,J$469)","v":0},{"$f":"SUMIFS(raw_resource_build!$K:$K,raw_resource_build!$B:$B,$C523,raw_resource_build!$A:$A,K$469)","v":0},{"$f":"SUMIFS(raw_resource_build!$K:$K,raw_resource_build!$B:$B,$C523,raw_resource_build!$A:$A,L$469)","v":0},{"$f":"SUMIFS(raw_resource_build!$K:$K,raw_resource_build!$B:$B,$C523,raw_resource_build!$A:$A,M$469)","v":0},{"$f":"SUMIFS(raw_resource_build!$K:$K,raw_resource_build!$B:$B,$C523,raw_resource_build!$A:$A,N$469)","v":0},{"$f":"SUMIFS(raw_resource_build!$K:$K,raw_resource_build!$B:$B,$C523,raw_resource_build!$A:$A,O$469)","v":0},{"$f":"SUMIFS(raw_resource_build!$K:$K,raw_resource_build!$B:$B,$C523,raw_resource_build!$A:$A,P$469)","v":0},{"$f":"SUMIFS(raw_resource_build!$K:$K,raw_resource_build!$B:$B,$C523,raw_resource_build!$A:$A,Q$469)","v":0},{"$f":"SUMIFS(raw_resource_build!$K:$K,raw_resource_build!$B:$B,$C523,raw_resource_build!$A:$A,R$469)","v":0},{"$f":"SUMIFS(raw_resource_build!$K:$K,raw_resource_build!$B:$B,$C523,raw_resource_build!$A:$A,S$469)","v":0},{"$f":"SUMIFS(raw_resource_build!$K:$K,raw_resource_build!$B:$B,$C523,raw_resource_build!$A:$A,T$469)","v":0},{"$f":"SUMIFS(raw_resource_build!$K:$K,raw_resource_build!$B:$B,$C523,raw_resource_build!$A:$A,U$469)","v":0},{"$f":"SUMIFS(raw_resource_build!$K:$K,raw_resource_build!$B:$B,$C523,raw_resource_build!$A:$A,V$469)","v":0},{"$f":"SUMIFS(raw_resource_build!$K:$K,raw_resource_build!$B:$B,$C523,raw_resource_build!$A:$A,W$469)","v":0},{"$f":"SUMIFS(raw_resource_build!$K:$K,raw_resource_build!$B:$B,$C523,raw_resource_build!$A:$A,X$469)","v":0},{"$f":"SUMIFS(raw_resource_build!$K:$K,raw_resource_build!$B:$B,$C523,raw_resource_build!$A:$A,Y$469)","v":0},{"$f":"SUMIFS(raw_resource_build!$K:$K,raw_resource_build!$B:$B,$C523,raw_resource_build!$A:$A,Z$469)","v":0},{"$f":"SUMIFS(raw_resource_build!$K:$K,raw_resource_build!$B:$B,$C523,raw_resource_build!$A:$A,AA$469)","v":0},{"$f":"SUMIFS(raw_resource_build!$K:$K,raw_resource_build!$B:$B,$C523,raw_resource_build!$A:$A,AB$469)","v":0},{"$f":"SUMIFS(raw_resource_build!$K:$K,raw_resource_build!$B:$B,$C523,raw_resource_build!$A:$A,AC$469)","v":0},{"$f":"SUMIFS(raw_resource_build!$K:$K,raw_resource_build!$B:$B,$C523,raw_resource_build!$A:$A,AD$469)","v":0},{"$f":"SUMIFS(raw_resource_build!$K:$K,raw_resource_build!$B:$B,$C523,raw_resource_build!$A:$A,AE$469)","v":0},{"$f":"SUMIFS(raw_resource_build!$K:$K,raw_resource_build!$B:$B,$C523,raw_resource_build!$A:$A,AF$469)","v":0},{"$f":"SUMIFS(raw_resource_build!$K:$K,raw_resource_build!$B:$B,$C523,raw_resource_build!$A:$A,AG$469)","v":0},{"$f":"SUMIFS(raw_resource_build!$K:$K,raw_resource_build!$B:$B,$C523,raw_resource_build!$A:$A,AH$469)","v":0},{"$f":"SUMIFS(raw_resource_build!$K:$K,raw_resource_build!$B:$B,$C523,raw_resource_build!$A:$A,AI$469)","v":0},{"$f":"SUMIFS(raw_resource_build!$K:$K,raw_resource_build!$B:$B,$C523,raw_resource_build!$A:$A,AJ$469)","v":0},{"$f":"SUMIFS(raw_resource_build!$K:$K,raw_resource_build!$B:$B,$C523,raw_resource_build!$A:$A,AK$469)","v":0},{"$f":"SUMIFS(raw_resource_build!$K:$K,raw_resource_build!$B:$B,$C523,raw_resource_build!$A:$A,AL$469)","v":0},{"$f":"SUMIFS(raw_resource_build!$K:$K,raw_resource_build!$B:$B,$C523,raw_resource_build!$A:$A,AM$469)","v":0},{"$f":"SUMIFS(raw_resource_build!$K:$K,raw_resource_build!$B:$B,$C523,raw_resource_build!$A:$A,AN$469)","v":0}]
[null,null,{"$f":"Lists!B89","v":"Utah_Solar"},"N/A",{"$f":"SUMIFS(raw_resource_build!$K:$K,raw_resource_build!$B:$B,$C524,raw_resource_build!$A:$A,E$469)","v":0},{"$f":"SUMIFS(raw_resource_build!$K:$K,raw_resource_build!$B:$B,$C524,raw_resource_build!$A:$A,F$469)","v":0},{"$f":"SUMIFS(raw_resource_build!$K:$K,raw_resource_build!$B:$B,$C524,raw_resource_build!$A:$A,G$469)","v":0},{"$f":"SUMIFS(raw_resource_build!$K:$K,raw_resource_build!$B:$B,$C524,raw_resource_build!$A:$A,H$469)","v":0},{"$f":"SUMIFS(raw_resource_build!$K:$K,raw_resource_build!$B:$B,$C524,raw_resource_build!$A:$A,I$469)","v":0},{"$f":"SUMIFS(raw_resource_build!$K:$K,raw_resource_build!$B:$B,$C524,raw_resource_build!$A:$A,J$469)","v":0},{"$f":"SUMIFS(raw_resource_build!$K:$K,raw_resource_build!$B:$B,$C524,raw_resource_build!$A:$A,K$469)","v":0},{"$f":"SUMIFS(raw_resource_build!$K:$K,raw_resource_build!$B:$B,$C524,raw_resource_build!$A:$A,L$469)","v":0},{"$f":"SUMIFS(raw_resource_build!$K:$K,raw_resource_build!$B:$B,$C524,raw_resource_build!$A:$A,M$469)","v":0},{"$f":"SUMIFS(raw_resource_build!$K:$K,raw_resource_build!$B:$B,$C524,raw_resource_build!$A:$A,N$469)","v":0},{"$f":"SUMIFS(raw_resource_build!$K:$K,raw_resource_build!$B:$B,$C524,raw_resource_build!$A:$A,O$469)","v":0},{"$f":"SUMIFS(raw_resource_build!$K:$K,raw_resource_build!$B:$B,$C524,raw_resource_build!$A:$A,P$469)","v":0},{"$f":"SUMIFS(raw_resource_build!$K:$K,raw_resource_build!$B:$B,$C524,raw_resource_build!$A:$A,Q$469)","v":0},{"$f":"SUMIFS(raw_resource_build!$K:$K,raw_resource_build!$B:$B,$C524,raw_resource_build!$A:$A,R$469)","v":0},{"$f":"SUMIFS(raw_resource_build!$K:$K,raw_resource_build!$B:$B,$C524,raw_resource_build!$A:$A,S$469)","v":0},{"$f":"SUMIFS(raw_resource_build!$K:$K,raw_resource_build!$B:$B,$C524,raw_resource_build!$A:$A,T$469)","v":0},{"$f":"SUMIFS(raw_resource_build!$K:$K,raw_resource_build!$B:$B,$C524,raw_resource_build!$A:$A,U$469)","v":0},{"$f":"SUMIFS(raw_resource_build!$K:$K,raw_resource_build!$B:$B,$C524,raw_resource_build!$A:$A,V$469)","v":0},{"$f":"SUMIFS(raw_resource_build!$K:$K,raw_resource_build!$B:$B,$C524,raw_resource_build!$A:$A,W$469)","v":0},{"$f":"SUMIFS(raw_resource_build!$K:$K,raw_resource_build!$B:$B,$C524,raw_resource_build!$A:$A,X$469)","v":0},{"$f":"SUMIFS(raw_resource_build!$K:$K,raw_resource_build!$B:$B,$C524,raw_resource_build!$A:$A,Y$469)","v":0},{"$f":"SUMIFS(raw_resource_build!$K:$K,raw_resource_build!$B:$B,$C524,raw_resource_build!$A:$A,Z$469)","v":0},{"$f":"SUMIFS(raw_resource_build!$K:$K,raw_resource_build!$B:$B,$C524,raw_resource_build!$A:$A,AA$469)","v":0},{"$f":"SUMIFS(raw_resource_build!$K:$K,raw_resource_build!$B:$B,$C524,raw_resource_build!$A:$A,AB$469)","v":0},{"$f":"SUMIFS(raw_resource_build!$K:$K,raw_resource_build!$B:$B,$C524,raw_resource_build!$A:$A,AC$469)","v":0},{"$f":"SUMIFS(raw_resource_build!$K:$K,raw_resource_build!$B:$B,$C524,raw_resource_build!$A:$A,AD$469)","v":0},{"$f":"SUMIFS(raw_resource_build!$K:$K,raw_resource_build!$B:$B,$C524,raw_resource_build!$A:$A,AE$469)","v":0},{"$f":"SUMIFS(raw_resource_build!$K:$K,raw_resource_build!$B:$B,$C524,raw_resource_build!$A:$A,AF$469)","v":0},{"$f":"SUMIFS(raw_resource_build!$K:$K,raw_resource_build!$B:$B,$C524,raw_resource_build!$A:$A,AG$469)","v":0},{"$f":"SUMIFS(raw_resource_build!$K:$K,raw_resource_build!$B:$B,$C524,raw_resource_build!$A:$A,AH$469)","v":0},{"$f":"SUMIFS(raw_resource_build!$K:$K,raw_resource_build!$B:$B,$C524,raw_resource_build!$A:$A,AI$469)","v":0},{"$f":"SUMIFS(raw_resource_build!$K:$K,raw_resource_build!$B:$B,$C524,raw_resource_build!$A:$A,AJ$469)","v":0},{"$f":"SUMIFS(raw_resource_build!$K:$K,raw_resource_build!$B:$B,$C524,raw_resource_build!$A:$A,AK$469)","v":0},{"$f":"SUMIFS(raw_resource_build!$K:$K,raw_resource_build!$B:$B,$C524,raw_resource_build!$A:$A,AL$469)","v":0},{"$f":"SUMIFS(raw_resource_build!$K:$K,raw_resource_build!$B:$B,$C524,raw_resource_build!$A:$A,AM$469)","v":0},{"$f":"SUMIFS(raw_resource_build!$K:$K,raw_resource_build!$B:$B,$C524,raw_resource_build!$A:$A,AN$469)","v":0}]
[null,null,{"$f":"Lists!B90","v":"Arizona_Solar"},"SCADSNV-Riverside_Palm_Springs",{"$f":"SUMIFS(raw_resource_build!$K:$K,raw_resource_build!$B:$B,$C525,raw_resource_build!$A:$A,E$469)","v":0},{"$f":"SUMIFS(raw_resource_build!$K:$K,raw_resource_build!$B:$B,$C525,raw_resource_build!$A:$A,F$469)","v":0},{"$f":"SUMIFS(raw_resource_build!$K:$K,raw_resource_build!$B:$B,$C525,raw_resource_build!$A:$A,G$469)","v":0},{"$f":"SUMIFS(raw_resource_build!$K:$K,raw_resource_build!$B:$B,$C525,raw_resource_build!$A:$A,H$469)","v":0},{"$f":"SUMIFS(raw_resource_build!$K:$K,raw_resource_build!$B:$B,$C525,raw_resource_build!$A:$A,I$469)","v":0},{"$f":"SUMIFS(raw_resource_build!$K:$K,raw_resource_build!$B:$B,$C525,raw_resource_build!$A:$A,J$469)","v":563},{"$f":"SUMIFS(raw_resource_build!$K:$K,raw_resource_build!$B:$B,$C525,raw_resource_build!$A:$A,K$469)","v":563},{"$f":"SUMIFS(raw_resource_build!$K:$K,raw_resource_build!$B:$B,$C525,raw_resource_build!$A:$A,L$469)","v":563},{"$f":"SUMIFS(raw_resource_build!$K:$K,raw_resource_build!$B:$B,$C525,raw_resource_build!$A:$A,M$469)","v":563},{"$f":"SUMIFS(raw_resource_build!$K:$K,raw_resource_build!$B:$B,$C525,raw_resource_build!$A:$A,N$469)","v":563},{"$f":"SUMIFS(raw_resource_build!$K:$K,raw_resource_build!$B:$B,$C525,raw_resource_build!$A:$A,O$469)","v":0},{"$f":"SUMIFS(raw_resource_build!$K:$K,raw_resource_build!$B:$B,$C525,raw_resource_build!$A:$A,P$469)","v":563},{"$f":"SUMIFS(raw_resource_build!$K:$K,raw_resource_build!$B:$B,$C525,raw_resource_build!$A:$A,Q$469)","v":0},{"$f":"SUMIFS(raw_resource_build!$K:$K,raw_resource_build!$B:$B,$C525,raw_resource_build!$A:$A,R$469)","v":0},{"$f":"SUMIFS(raw_resource_build!$K:$K,raw_resource_build!$B:$B,$C525,raw_resource_build!$A:$A,S$469)","v":0},{"$f":"SUMIFS(raw_resource_build!$K:$K,raw_resource_build!$B:$B,$C525,raw_resource_build!$A:$A,T$469)","v":563},{"$f":"SUMIFS(raw_resource_build!$K:$K,raw_resource_build!$B:$B,$C525,raw_resource_build!$A:$A,U$469)","v":0},{"$f":"SUMIFS(raw_resource_build!$K:$K,raw_resource_build!$B:$B,$C525,raw_resource_build!$A:$A,V$469)","v":0},{"$f":"SUMIFS(raw_resource_build!$K:$K,raw_resource_build!$B:$B,$C525,raw_resource_build!$A:$A,W$469)","v":0},{"$f":"SUMIFS(raw_resource_build!$K:$K,raw_resource_build!$B:$B,$C525,raw_resource_build!$A:$A,X$469)","v":0},{"$f":"SUMIFS(raw_resource_build!$K:$K,raw_resource_build!$B:$B,$C525,raw_resource_build!$A:$A,Y$469)","v":0},{"$f":"SUMIFS(raw_resource_build!$K:$K,raw_resource_build!$B:$B,$C525,raw_resource_build!$A:$A,Z$469)","v":0},{"$f":"SUMIFS(raw_resource_build!$K:$K,raw_resource_build!$B:$B,$C525,raw_resource_build!$A:$A,AA$469)","v":0},{"$f":"SUMIFS(raw_resource_build!$K:$K,raw_resource_build!$B:$B,$C525,raw_resource_build!$A:$A,AB$469)","v":0},{"$f":"SUMIFS(raw_resource_build!$K:$K,raw_resource_build!$B:$B,$C525,raw_resource_build!$A:$A,AC$469)","v":0},{"$f":"SUMIFS(raw_resource_build!$K:$K,raw_resource_build!$B:$B,$C525,raw_resource_build!$A:$A,AD$469)","v":0},{"$f":"SUMIFS(raw_resource_build!$K:$K,raw_resource_build!$B:$B,$C525,raw_resource_build!$A:$A,AE$469)","v":0},{"$f":"SUMIFS(raw_resource_build!$K:$K,raw_resource_build!$B:$B,$C525,raw_resource_build!$A:$A,AF$469)","v":0},{"$f":"SUMIFS(raw_resource_build!$K:$K,raw_resource_build!$B:$B,$C525,raw_resource_build!$A:$A,AG$469)","v":0},{"$f":"SUMIFS(raw_resource_build!$K:$K,raw_resource_build!$B:$B,$C525,raw_resource_build!$A:$A,AH$469)","v":0},{"$f":"SUMIFS(raw_resource_build!$K:$K,raw_resource_build!$B:$B,$C525,raw_resource_build!$A:$A,AI$469)","v":563},{"$f":"SUMIFS(raw_resource_build!$K:$K,raw_resource_build!$B:$B,$C525,raw_resource_build!$A:$A,AJ$469)","v":0},{"$f":"SUMIFS(raw_resource_build!$K:$K,raw_resource_build!$B:$B,$C525,raw_resource_build!$A:$A,AK$469)","v":0},{"$f":"SUMIFS(raw_resource_build!$K:$K,raw_resource_build!$B:$B,$C525,raw_resource_build!$A:$A,AL$469)","v":0},{"$f":"SUMIFS(raw_resource_build!$K:$K,raw_resource_build!$B:$B,$C525,raw_resource_build!$A:$A,AM$469)","v":0},{"$f":"SUMIFS(raw_resource_build!$K:$K,raw_resource_build!$B:$B,$C525,raw_resource_build!$A:$A,AN$469)","v":0}]
[null,null,{"$f":"Lists!B91","v":"New_Mexico_Solar"},"N/A",{"$f":"SUMIFS(raw_resource_build!$K:$K,raw_resource_build!$B:$B,$C526,raw_resource_build!$A:$A,E$469)","v":0},{"$f":"SUMIFS(raw_resource_build!$K:$K,raw_resource_build!$B:$B,$C526,raw_resource_build!$A:$A,F$469)","v":0},{"$f":"SUMIFS(raw_resource_build!$K:$K,raw_resource_build!$B:$B,$C526,raw_resource_build!$A:$A,G$469)","v":0},{"$f":"SUMIFS(raw_resource_build!$K:$K,raw_resource_build!$B:$B,$C526,raw_resource_build!$A:$A,H$469)","v":0},{"$f":"SUMIFS(raw_resource_build!$K:$K,raw_resource_build!$B:$B,$C526,raw_resource_build!$A:$A,I$469)","v":0},{"$f":"SUMIFS(raw_resource_build!$K:$K,raw_resource_build!$B:$B,$C526,raw_resource_build!$A:$A,J$469)","v":0},{"$f":"SUMIFS(raw_resource_build!$K:$K,raw_resource_build!$B:$B,$C526,raw_resource_build!$A:$A,K$469)","v":0},{"$f":"SUMIFS(raw_resource_build!$K:$K,raw_resource_build!$B:$B,$C526,raw_resource_build!$A:$A,L$469)","v":0},{"$f":"SUMIFS(raw_resource_build!$K:$K,raw_resource_build!$B:$B,$C526,raw_resource_build!$A:$A,M$469)","v":0},{"$f":"SUMIFS(raw_resource_build!$K:$K,raw_resource_build!$B:$B,$C526,raw_resource_build!$A:$A,N$469)","v":0},{"$f":"SUMIFS(raw_resource_build!$K:$K,raw_resource_build!$B:$B,$C526,raw_resource_build!$A:$A,O$469)","v":0},{"$f":"SUMIFS(raw_resource_build!$K:$K,raw_resource_build!$B:$B,$C526,raw_resource_build!$A:$A,P$469)","v":0},{"$f":"SUMIFS(raw_resource_build!$K:$K,raw_resource_build!$B:$B,$C526,raw_resource_build!$A:$A,Q$469)","v":0},{"$f":"SUMIFS(raw_resource_build!$K:$K,raw_resource_build!$B:$B,$C526,raw_resource_build!$A:$A,R$469)","v":0},{"$f":"SUMIFS(raw_resource_build!$K:$K,raw_resource_build!$B:$B,$C526,raw_resource_build!$A:$A,S$469)","v":0},{"$f":"SUMIFS(raw_resource_build!$K:$K,raw_resource_build!$B:$B,$C526,raw_resource_build!$A:$A,T$469)","v":0},{"$f":"SUMIFS(raw_resource_build!$K:$K,raw_resource_build!$B:$B,$C526,raw_resource_build!$A:$A,U$469)","v":0},{"$f":"SUMIFS(raw_resource_build!$K:$K,raw_resource_build!$B:$B,$C526,raw_resource_build!$A:$A,V$469)","v":0},{"$f":"SUMIFS(raw_resource_build!$K:$K,raw_resource_build!$B:$B,$C526,raw_resource_build!$A:$A,W$469)","v":0},{"$f":"SUMIFS(raw_resource_build!$K:$K,raw_resource_build!$B:$B,$C526,raw_resource_build!$A:$A,X$469)","v":0},{"$f":"SUMIFS(raw_resource_build!$K:$K,raw_resource_build!$B:$B,$C526,raw_resource_build!$A:$A,Y$469)","v":0},{"$f":"SUMIFS(raw_resource_build!$K:$K,raw_resource_build!$B:$B,$C526,raw_resource_build!$A:$A,Z$469)","v":0},{"$f":"SUMIFS(raw_resource_build!$K:$K,raw_resource_build!$B:$B,$C526,raw_resource_build!$A:$A,AA$469)","v":0},{"$f":"SUMIFS(raw_resource_build!$K:$K,raw_resource_build!$B:$B,$C526,raw_resource_build!$A:$A,AB$469)","v":0},{"$f":"SUMIFS(raw_resource_build!$K:$K,raw_resource_build!$B:$B,$C526,raw_resource_build!$A:$A,AC$469)","v":0},{"$f":"SUMIFS(raw_resource_build!$K:$K,raw_resource_build!$B:$B,$C526,raw_resource_build!$A:$A,AD$469)","v":0},{"$f":"SUMIFS(raw_resource_build!$K:$K,raw_resource_build!$B:$B,$C526,raw_resource_build!$A:$A,AE$469)","v":0},{"$f":"SUMIFS(raw_resource_build!$K:$K,raw_resource_build!$B:$B,$C526,raw_resource_build!$A:$A,AF$469)","v":0},{"$f":"SUMIFS(raw_resource_build!$K:$K,raw_resource_build!$B:$B,$C526,raw_resource_build!$A:$A,AG$469)","v":0},{"$f":"SUMIFS(raw_resource_build!$K:$K,raw_resource_build!$B:$B,$C526,raw_resource_build!$A:$A,AH$469)","v":0},{"$f":"SUMIFS(raw_resource_build!$K:$K,raw_resource_build!$B:$B,$C526,raw_resource_build!$A:$A,AI$469)","v":0},{"$f":"SUMIFS(raw_resource_build!$K:$K,raw_resource_build!$B:$B,$C526,raw_resource_build!$A:$A,AJ$469)","v":0},{"$f":"SUMIFS(raw_resource_build!$K:$K,raw_resource_build!$B:$B,$C526,raw_resource_build!$A:$A,AK$469)","v":0},{"$f":"SUMIFS(raw_resource_build!$K:$K,raw_resource_build!$B:$B,$C526,raw_resource_build!$A:$A,AL$469)","v":0},{"$f":"SUMIFS(raw_resource_build!$K:$K,raw_resource_build!$B:$B,$C526,raw_resource_build!$A:$A,AM$469)","v":0},{"$f":"SUMIFS(raw_resource_build!$K:$K,raw_resource_build!$B:$B,$C526,raw_resource_build!$A:$A,AN$469)","v":0}]
[null,null,{"$f":"Lists!B92","v":"Baja_California_Solar"},"N/A",{"$f":"SUMIFS(raw_resource_build!$K:$K,raw_resource_build!$B:$B,$C527,raw_resource_build!$A:$A,E$469)","v":0},{"$f":"SUMIFS(raw_resource_build!$K:$K,raw_resource_build!$B:$B,$C527,raw_resource_build!$A:$A,F$469)","v":0},{"$f":"SUMIFS(raw_resource_build!$K:$K,raw_resource_build!$B:$B,$C527,raw_resource_build!$A:$A,G$469)","v":0},{"$f":"SUMIFS(raw_resource_build!$K:$K,raw_resource_build!$B:$B,$C527,raw_resource_build!$A:$A,H$469)","v":0},{"$f":"SUMIFS(raw_resource_build!$K:$K,raw_resource_build!$B:$B,$C527,raw_resource_build!$A:$A,I$469)","v":0},{"$f":"SUMIFS(raw_resource_build!$K:$K,raw_resource_build!$B:$B,$C527,raw_resource_build!$A:$A,J$469)","v":0},{"$f":"SUMIFS(raw_resource_build!$K:$K,raw_resource_build!$B:$B,$C527,raw_resource_build!$A:$A,K$469)","v":0},{"$f":"SUMIFS(raw_resource_build!$K:$K,raw_resource_build!$B:$B,$C527,raw_resource_build!$A:$A,L$469)","v":0},{"$f":"SUMIFS(raw_resource_build!$K:$K,raw_resource_build!$B:$B,$C527,raw_resource_build!$A:$A,M$469)","v":0},{"$f":"SUMIFS(raw_resource_build!$K:$K,raw_resource_build!$B:$B,$C527,raw_resource_build!$A:$A,N$469)","v":0},{"$f":"SUMIFS(raw_resource_build!$K:$K,raw_resource_build!$B:$B,$C527,raw_resource_build!$A:$A,O$469)","v":0},{"$f":"SUMIFS(raw_resource_build!$K:$K,raw_resource_build!$B:$B,$C527,raw_resource_build!$A:$A,P$469)","v":0},{"$f":"SUMIFS(raw_resource_build!$K:$K,raw_resource_build!$B:$B,$C527,raw_resource_build!$A:$A,Q$469)","v":0},{"$f":"SUMIFS(raw_resource_build!$K:$K,raw_resource_build!$B:$B,$C527,raw_resource_build!$A:$A,R$469)","v":0},{"$f":"SUMIFS(raw_resource_build!$K:$K,raw_resource_build!$B:$B,$C527,raw_resource_build!$A:$A,S$469)","v":0},{"$f":"SUMIFS(raw_resource_build!$K:$K,raw_resource_build!$B:$B,$C527,raw_resource_build!$A:$A,T$469)","v":0},{"$f":"SUMIFS(raw_resource_build!$K:$K,raw_resource_build!$B:$B,$C527,raw_resource_build!$A:$A,U$469)","v":0},{"$f":"SUMIFS(raw_resource_build!$K:$K,raw_resource_build!$B:$B,$C527,raw_resource_build!$A:$A,V$469)","v":0},{"$f":"SUMIFS(raw_resource_build!$K:$K,raw_resource_build!$B:$B,$C527,raw_resource_build!$A:$A,W$469)","v":0},{"$f":"SUMIFS(raw_resource_build!$K:$K,raw_resource_build!$B:$B,$C527,raw_resource_build!$A:$A,X$469)","v":0},{"$f":"SUMIFS(raw_resource_build!$K:$K,raw_resource_build!$B:$B,$C527,raw_resource_build!$A:$A,Y$469)","v":0},{"$f":"SUMIFS(raw_resource_build!$K:$K,raw_resource_build!$B:$B,$C527,raw_resource_build!$A:$A,Z$469)","v":0},{"$f":"SUMIFS(raw_resource_build!$K:$K,raw_resource_build!$B:$B,$C527,raw_resource_build!$A:$A,AA$469)","v":0},{"$f":"SUMIFS(raw_resource_build!$K:$K,raw_resource_build!$B:$B,$C527,raw_resource_build!$A:$A,AB$469)","v":0},{"$f":"SUMIFS(raw_resource_build!$K:$K,raw_resource_build!$B:$B,$C527,raw_resource_build!$A:$A,AC$469)","v":0},{"$f":"SUMIFS(raw_resource_build!$K:$K,raw_resource_build!$B:$B,$C527,raw_resource_build!$A:$A,AD$469)","v":0},{"$f":"SUMIFS(raw_resource_build!$K:$K,raw_resource_build!$B:$B,$C527,raw_resource_build!$A:$A,AE$469)","v":0},{"$f":"SUMIFS(raw_resource_build!$K:$K,raw_resource_build!$B:$B,$C527,raw_resource_build!$A:$A,AF$469)","v":0},{"$f":"SUMIFS(raw_resource_build!$K:$K,raw_resource_build!$B:$B,$C527,raw_resource_build!$A:$A,AG$469)","v":0},{"$f":"SUMIFS(raw_resource_build!$K:$K,raw_resource_build!$B:$B,$C527,raw_resource_build!$A:$A,AH$469)","v":0},{"$f":"SUMIFS(raw_resource_build!$K:$K,raw_resource_build!$B:$B,$C527,raw_resource_build!$A:$A,AI$469)","v":0},{"$f":"SUMIFS(raw_resource_build!$K:$K,raw_resource_build!$B:$B,$C527,raw_resource_build!$A:$A,AJ$469)","v":0},{"$f":"SUMIFS(raw_resource_build!$K:$K,raw_resource_build!$B:$B,$C527,raw_resource_build!$A:$A,AK$469)","v":0},{"$f":"SUMIFS(raw_resource_build!$K:$K,raw_resource_build!$B:$B,$C527,raw_resource_build!$A:$A,AL$469)","v":0},{"$f":"SUMIFS(raw_resource_build!$K:$K,raw_resource_build!$B:$B,$C527,raw_resource_build!$A:$A,AM$469)","v":0},{"$f":"SUMIFS(raw_resource_build!$K:$K,raw_resource_build!$B:$B,$C527,raw_resource_build!$A:$A,AN$469)","v":0}]
[null,null,{"$f":"Lists!B93","v":"Baja_California_Wind"},"SCADSNV-Greater_Imperial",{"$f":"SUMIFS(raw_resource_build!$K:$K,raw_resource_build!$B:$B,$C528,raw_resource_build!$A:$A,E$469)","v":0},{"$f":"SUMIFS(raw_resource_build!$K:$K,raw_resource_build!$B:$B,$C528,raw_resource_build!$A:$A,F$469)","v":0},{"$f":"SUMIFS(raw_resource_build!$K:$K,raw_resource_build!$B:$B,$C528,raw_resource_build!$A:$A,G$469)","v":0},{"$f":"SUMIFS(raw_resource_build!$K:$K,raw_resource_build!$B:$B,$C528,raw_resource_build!$A:$A,H$469)","v":0},{"$f":"SUMIFS(raw_resource_build!$K:$K,raw_resource_build!$B:$B,$C528,raw_resource_build!$A:$A,I$469)","v":0},{"$f":"SUMIFS(raw_resource_build!$K:$K,raw_resource_build!$B:$B,$C528,raw_resource_build!$A:$A,J$469)","v":0},{"$f":"SUMIFS(raw_resource_build!$K:$K,raw_resource_build!$B:$B,$C528,raw_resource_build!$A:$A,K$469)","v":0},{"$f":"SUMIFS(raw_resource_build!$K:$K,raw_resource_build!$B:$B,$C528,raw_resource_build!$A:$A,L$469)","v":0},{"$f":"SUMIFS(raw_resource_build!$K:$K,raw_resource_build!$B:$B,$C528,raw_resource_build!$A:$A,M$469)","v":0},{"$f":"SUMIFS(raw_resource_build!$K:$K,raw_resource_build!$B:$B,$C528,raw_resource_build!$A:$A,N$469)","v":92.17},{"$f":"SUMIFS(raw_resource_build!$K:$K,raw_resource_build!$B:$B,$C528,raw_resource_build!$A:$A,O$469)","v":0},{"$f":"SUMIFS(raw_resource_build!$K:$K,raw_resource_build!$B:$B,$C528,raw_resource_build!$A:$A,P$469)","v":92.17},{"$f":"SUMIFS(raw_resource_build!$K:$K,raw_resource_build!$B:$B,$C528,raw_resource_build!$A:$A,Q$469)","v":0},{"$f":"SUMIFS(raw_resource_build!$K:$K,raw_resource_build!$B:$B,$C528,raw_resource_build!$A:$A,R$469)","v":0},{"$f":"SUMIFS(raw_resource_build!$K:$K,raw_resource_build!$B:$B,$C528,raw_resource_build!$A:$A,S$469)","v":0},{"$f":"SUMIFS(raw_resource_build!$K:$K,raw_resource_build!$B:$B,$C528,raw_resource_build!$A:$A,T$469)","v":92.17},{"$f":"SUMIFS(raw_resource_build!$K:$K,raw_resource_build!$B:$B,$C528,raw_resource_build!$A:$A,U$469)","v":0},{"$f":"SUMIFS(raw_resource_build!$K:$K,raw_resource_build!$B:$B,$C528,raw_resource_build!$A:$A,V$469)","v":0},{"$f":"SUMIFS(raw_resource_build!$K:$K,raw_resource_build!$B:$B,$C528,raw_resource_build!$A:$A,W$469)","v":0},{"$f":"SUMIFS(raw_resource_build!$K:$K,raw_resource_build!$B:$B,$C528,raw_resource_build!$A:$A,X$469)","v":0},{"$f":"SUMIFS(raw_resource_build!$K:$K,raw_resource_build!$B:$B,$C528,raw_resource_build!$A:$A,Y$469)","v":0},{"$f":"SUMIFS(raw_resource_build!$K:$K,raw_resource_build!$B:$B,$C528,raw_resource_build!$A:$A,Z$469)","v":0},{"$f":"SUMIFS(raw_resource_build!$K:$K,raw_resource_build!$B:$B,$C528,raw_resource_build!$A:$A,AA$469)","v":0},{"$f":"SUMIFS(raw_resource_build!$K:$K,raw_resource_build!$B:$B,$C528,raw_resource_build!$A:$A,AB$469)","v":0},{"$f":"SUMIFS(raw_resource_build!$K:$K,raw_resource_build!$B:$B,$C528,raw_resource_build!$A:$A,AC$469)","v":0},{"$f":"SUMIFS(raw_resource_build!$K:$K,raw_resource_build!$B:$B,$C528,raw_resource_build!$A:$A,AD$469)","v":0},{"$f":"SUMIFS(raw_resource_build!$K:$K,raw_resource_build!$B:$B,$C528,raw_resource_build!$A:$A,AE$469)","v":0},{"$f":"SUMIFS(raw_resource_build!$K:$K,raw_resource_build!$B:$B,$C528,raw_resource_build!$A:$A,AF$469)","v":0},{"$f":"SUMIFS(raw_resource_build!$K:$K,raw_resource_build!$B:$B,$C528,raw_resource_build!$A:$A,AG$469)","v":0},{"$f":"SUMIFS(raw_resource_build!$K:$K,raw_resource_build!$B:$B,$C528,raw_resource_build!$A:$A,AH$469)","v":0},{"$f":"SUMIFS(raw_resource_build!$K:$K,raw_resource_build!$B:$B,$C528,raw_resource_build!$A:$A,AI$469)","v":92.17},{"$f":"SUMIFS(raw_resource_build!$K:$K,raw_resource_build!$B:$B,$C528,raw_resource_build!$A:$A,AJ$469)","v":0},{"$f":"SUMIFS(raw_resource_build!$K:$K,raw_resource_build!$B:$B,$C528,raw_resource_build!$A:$A,AK$469)","v":0},{"$f":"SUMIFS(raw_resource_build!$K:$K,raw_resource_build!$B:$B,$C528,raw_resource_build!$A:$A,AL$469)","v":0},{"$f":"SUMIFS(raw_resource_build!$K:$K,raw_resource_build!$B:$B,$C528,raw_resource_build!$A:$A,AM$469)","v":0},{"$f":"SUMIFS(raw_resource_build!$K:$K,raw_resource_build!$B:$B,$C528,raw_resource_build!$A:$A,AN$469)","v":0}]
[null,null,{"$f":"Lists!B94","v":"Pacific_Northwest_Wind"},"N/A",{"$f":"SUMIFS(raw_resource_build!$K:$K,raw_resource_build!$B:$B,$C529,raw_resource_build!$A:$A,E$469)","v":0},{"$f":"SUMIFS(raw_resource_build!$K:$K,raw_resource_build!$B:$B,$C529,raw_resource_build!$A:$A,F$469)","v":0},{"$f":"SUMIFS(raw_resource_build!$K:$K,raw_resource_build!$B:$B,$C529,raw_resource_build!$A:$A,G$469)","v":0},{"$f":"SUMIFS(raw_resource_build!$K:$K,raw_resource_build!$B:$B,$C529,raw_resource_build!$A:$A,H$469)","v":0},{"$f":"SUMIFS(raw_resource_build!$K:$K,raw_resource_build!$B:$B,$C529,raw_resource_build!$A:$A,I$469)","v":0},{"$f":"SUMIFS(raw_resource_build!$K:$K,raw_resource_build!$B:$B,$C529,raw_resource_build!$A:$A,J$469)","v":0},{"$f":"SUMIFS(raw_resource_build!$K:$K,raw_resource_build!$B:$B,$C529,raw_resource_build!$A:$A,K$469)","v":0},{"$f":"SUMIFS(raw_resource_build!$K:$K,raw_resource_build!$B:$B,$C529,raw_resource_build!$A:$A,L$469)","v":0},{"$f":"SUMIFS(raw_resource_build!$K:$K,raw_resource_build!$B:$B,$C529,raw_resource_build!$A:$A,M$469)","v":0},{"$f":"SUMIFS(raw_resource_build!$K:$K,raw_resource_build!$B:$B,$C529,raw_resource_build!$A:$A,N$469)","v":0},{"$f":"SUMIFS(raw_resource_build!$K:$K,raw_resource_build!$B:$B,$C529,raw_resource_build!$A:$A,O$469)","v":0},{"$f":"SUMIFS(raw_resource_build!$K:$K,raw_resource_build!$B:$B,$C529,raw_resource_build!$A:$A,P$469)","v":0},{"$f":"SUMIFS(raw_resource_build!$K:$K,raw_resource_build!$B:$B,$C529,raw_resource_build!$A:$A,Q$469)","v":0},{"$f":"SUMIFS(raw_resource_build!$K:$K,raw_resource_build!$B:$B,$C529,raw_resource_build!$A:$A,R$469)","v":0},{"$f":"SUMIFS(raw_resource_build!$K:$K,raw_resource_build!$B:$B,$C529,raw_resource_build!$A:$A,S$469)","v":0},{"$f":"SUMIFS(raw_resource_build!$K:$K,raw_resource_build!$B:$B,$C529,raw_resource_build!$A:$A,T$469)","v":0},{"$f":"SUMIFS(raw_resource_build!$K:$K,raw_resource_build!$B:$B,$C529,raw_resource_build!$A:$A,U$469)","v":0},{"$f":"SUMIFS(raw_resource_build!$K:$K,raw_resource_build!$B:$B,$C529,raw_resource_build!$A:$A,V$469)","v":0},{"$f":"SUMIFS(raw_resource_build!$K:$K,raw_resource_build!$B:$B,$C529,raw_resource_build!$A:$A,W$469)","v":0},{"$f":"SUMIFS(raw_resource_build!$K:$K,raw_resource_build!$B:$B,$C529,raw_resource_build!$A:$A,X$469)","v":0},{"$f":"SUMIFS(raw_resource_build!$K:$K,raw_resource_build!$B:$B,$C529,raw_resource_build!$A:$A,Y$469)","v":0},{"$f":"SUMIFS(raw_resource_build!$K:$K,raw_resource_build!$B:$B,$C529,raw_resource_build!$A:$A,Z$469)","v":0},{"$f":"SUMIFS(raw_resource_build!$K:$K,raw_resource_build!$B:$B,$C529,raw_resource_build!$A:$A,AA$469)","v":0},{"$f":"SUMIFS(raw_resource_build!$K:$K,raw_resource_build!$B:$B,$C529,raw_resource_build!$A:$A,AB$469)","v":0},{"$f":"SUMIFS(raw_resource_build!$K:$K,raw_resource_build!$B:$B,$C529,raw_resource_build!$A:$A,AC$469)","v":0},{"$f":"SUMIFS(raw_resource_build!$K:$K,raw_resource_build!$B:$B,$C529,raw_resource_build!$A:$A,AD$469)","v":0},{"$f":"SUMIFS(raw_resource_build!$K:$K,raw_resource_build!$B:$B,$C529,raw_resource_build!$A:$A,AE$469)","v":0},{"$f":"SUMIFS(raw_resource_build!$K:$K,raw_resource_build!$B:$B,$C529,raw_resource_build!$A:$A,AF$469)","v":0},{"$f":"SUMIFS(raw_resource_build!$K:$K,raw_resource_build!$B:$B,$C529,raw_resource_build!$A:$A,AG$469)","v":0},{"$f":"SUMIFS(raw_resource_build!$K:$K,raw_resource_build!$B:$B,$C529,raw_resource_build!$A:$A,AH$469)","v":0},{"$f":"SUMIFS(raw_resource_build!$K:$K,raw_resource_build!$B:$B,$C529,raw_resource_build!$A:$A,AI$469)","v":0},{"$f":"SUMIFS(raw_resource_build!$K:$K,raw_resource_build!$B:$B,$C529,raw_resource_build!$A:$A,AJ$469)","v":0},{"$f":"SUMIFS(raw_resource_build!$K:$K,raw_resource_build!$B:$B,$C529,raw_resource_build!$A:$A,AK$469)","v":0},{"$f":"SUMIFS(raw_resource_build!$K:$K,raw_resource_build!$B:$B,$C529,raw_resource_build!$A:$A,AL$469)","v":0},{"$f":"SUMIFS(raw_resource_build!$K:$K,raw_resource_build!$B:$B,$C529,raw_resource_build!$A:$A,AM$469)","v":0},{"$f":"SUMIFS(raw_resource_build!$K:$K,raw_resource_build!$B:$B,$C529,raw_resource_build!$A:$A,AN$469)","v":0}]
[null,null,{"$f":"Lists!B95","v":"Idaho_Wind"},"N/A",{"$f":"SUMIFS(raw_resource_build!$K:$K,raw_resource_build!$B:$B,$C530,raw_resource_build!$A:$A,E$469)","v":0},{"$f":"SUMIFS(raw_resource_build!$K:$K,raw_resource_build!$B:$B,$C530,raw_resource_build!$A:$A,F$469)","v":0},{"$f":"SUMIFS(raw_resource_build!$K:$K,raw_resource_build!$B:$B,$C530,raw_resource_build!$A:$A,G$469)","v":0},{"$f":"SUMIFS(raw_resource_build!$K:$K,raw_resource_build!$B:$B,$C530,raw_resource_build!$A:$A,H$469)","v":0},{"$f":"SUMIFS(raw_resource_build!$K:$K,raw_resource_build!$B:$B,$C530,raw_resource_build!$A:$A,I$469)","v":0},{"$f":"SUMIFS(raw_resource_build!$K:$K,raw_resource_build!$B:$B,$C530,raw_resource_build!$A:$A,J$469)","v":0},{"$f":"SUMIFS(raw_resource_build!$K:$K,raw_resource_build!$B:$B,$C530,raw_resource_build!$A:$A,K$469)","v":0},{"$f":"SUMIFS(raw_resource_build!$K:$K,raw_resource_build!$B:$B,$C530,raw_resource_build!$A:$A,L$469)","v":0},{"$f":"SUMIFS(raw_resource_build!$K:$K,raw_resource_build!$B:$B,$C530,raw_resource_build!$A:$A,M$469)","v":0},{"$f":"SUMIFS(raw_resource_build!$K:$K,raw_resource_build!$B:$B,$C530,raw_resource_build!$A:$A,N$469)","v":0},{"$f":"SUMIFS(raw_resource_build!$K:$K,raw_resource_build!$B:$B,$C530,raw_resource_build!$A:$A,O$469)","v":0},{"$f":"SUMIFS(raw_resource_build!$K:$K,raw_resource_build!$B:$B,$C530,raw_resource_build!$A:$A,P$469)","v":0},{"$f":"SUMIFS(raw_resource_build!$K:$K,raw_resource_build!$B:$B,$C530,raw_resource_build!$A:$A,Q$469)","v":0},{"$f":"SUMIFS(raw_resource_build!$K:$K,raw_resource_build!$B:$B,$C530,raw_resource_build!$A:$A,R$469)","v":0},{"$f":"SUMIFS(raw_resource_build!$K:$K,raw_resource_build!$B:$B,$C530,raw_resource_build!$A:$A,S$469)","v":0},{"$f":"SUMIFS(raw_resource_build!$K:$K,raw_resource_build!$B:$B,$C530,raw_resource_build!$A:$A,T$469)","v":0},{"$f":"SUMIFS(raw_resource_build!$K:$K,raw_resource_build!$B:$B,$C530,raw_resource_build!$A:$A,U$469)","v":0},{"$f":"SUMIFS(raw_resource_build!$K:$K,raw_resource_build!$B:$B,$C530,raw_resource_build!$A:$A,V$469)","v":0},{"$f":"SUMIFS(raw_resource_build!$K:$K,raw_resource_build!$B:$B,$C530,raw_resource_build!$A:$A,W$469)","v":0},{"$f":"SUMIFS(raw_resource_build!$K:$K,raw_resource_build!$B:$B,$C530,raw_resource_build!$A:$A,X$469)","v":0},{"$f":"SUMIFS(raw_resource_build!$K:$K,raw_resource_build!$B:$B,$C530,raw_resource_build!$A:$A,Y$469)","v":0},{"$f":"SUMIFS(raw_resource_build!$K:$K,raw_resource_build!$B:$B,$C530,raw_resource_build!$A:$A,Z$469)","v":0},{"$f":"SUMIFS(raw_resource_build!$K:$K,raw_resource_build!$B:$B,$C530,raw_resource_build!$A:$A,AA$469)","v":0},{"$f":"SUMIFS(raw_resource_build!$K:$K,raw_resource_build!$B:$B,$C530,raw_resource_build!$A:$A,AB$469)","v":0},{"$f":"SUMIFS(raw_resource_build!$K:$K,raw_resource_build!$B:$B,$C530,raw_resource_build!$A:$A,AC$469)","v":0},{"$f":"SUMIFS(raw_resource_build!$K:$K,raw_resource_build!$B:$B,$C530,raw_resource_build!$A:$A,AD$469)","v":0},{"$f":"SUMIFS(raw_resource_build!$K:$K,raw_resource_build!$B:$B,$C530,raw_resource_build!$A:$A,AE$469)","v":0},{"$f":"SUMIFS(raw_resource_build!$K:$K,raw_resource_build!$B:$B,$C530,raw_resource_build!$A:$A,AF$469)","v":0},{"$f":"SUMIFS(raw_resource_build!$K:$K,raw_resource_build!$B:$B,$C530,raw_resource_build!$A:$A,AG$469)","v":0},{"$f":"SUMIFS(raw_resource_build!$K:$K,raw_resource_build!$B:$B,$C530,raw_resource_build!$A:$A,AH$469)","v":0},{"$f":"SUMIFS(raw_resource_build!$K:$K,raw_resource_build!$B:$B,$C530,raw_resource_build!$A:$A,AI$469)","v":0},{"$f":"SUMIFS(raw_resource_build!$K:$K,raw_resource_build!$B:$B,$C530,raw_resource_build!$A:$A,AJ$469)","v":0},{"$f":"SUMIFS(raw_resource_build!$K:$K,raw_resource_build!$B:$B,$C530,raw_resource_build!$A:$A,AK$469)","v":0},{"$f":"SUMIFS(raw_resource_build!$K:$K,raw_resource_build!$B:$B,$C530,raw_resource_build!$A:$A,AL$469)","v":0},{"$f":"SUMIFS(raw_resource_build!$K:$K,raw_resource_build!$B:$B,$C530,raw_resource_build!$A:$A,AM$469)","v":0},{"$f":"SUMIFS(raw_resource_build!$K:$K,raw_resource_build!$B:$B,$C530,raw_resource_build!$A:$A,AN$469)","v":0}]
[null,null,{"$f":"Lists!B96","v":"Utah_Wind"},"N/A",{"$f":"SUMIFS(raw_resource_build!$K:$K,raw_resource_build!$B:$B,$C531,raw_resource_build!$A:$A,E$469)","v":0},{"$f":"SUMIFS(raw_resource_build!$K:$K,raw_resource_build!$B:$B,$C531,raw_resource_build!$A:$A,F$469)","v":0},{"$f":"SUMIFS(raw_resource_build!$K:$K,raw_resource_build!$B:$B,$C531,raw_resource_build!$A:$A,G$469)","v":0},{"$f":"SUMIFS(raw_resource_build!$K:$K,raw_resource_build!$B:$B,$C531,raw_resource_build!$A:$A,H$469)","v":0},{"$f":"SUMIFS(raw_resource_build!$K:$K,raw_resource_build!$B:$B,$C531,raw_resource_build!$A:$A,I$469)","v":0},{"$f":"SUMIFS(raw_resource_build!$K:$K,raw_resource_build!$B:$B,$C531,raw_resource_build!$A:$A,J$469)","v":0},{"$f":"SUMIFS(raw_resource_build!$K:$K,raw_resource_build!$B:$B,$C531,raw_resource_build!$A:$A,K$469)","v":0},{"$f":"SUMIFS(raw_resource_build!$K:$K,raw_resource_build!$B:$B,$C531,raw_resource_build!$A:$A,L$469)","v":0},{"$f":"SUMIFS(raw_resource_build!$K:$K,raw_resource_build!$B:$B,$C531,raw_resource_build!$A:$A,M$469)","v":0},{"$f":"SUMIFS(raw_resource_build!$K:$K,raw_resource_build!$B:$B,$C531,raw_resource_build!$A:$A,N$469)","v":0},{"$f":"SUMIFS(raw_resource_build!$K:$K,raw_resource_build!$B:$B,$C531,raw_resource_build!$A:$A,O$469)","v":0},{"$f":"SUMIFS(raw_resource_build!$K:$K,raw_resource_build!$B:$B,$C531,raw_resource_build!$A:$A,P$469)","v":0},{"$f":"SUMIFS(raw_resource_build!$K:$K,raw_resource_build!$B:$B,$C531,raw_resource_build!$A:$A,Q$469)","v":0},{"$f":"SUMIFS(raw_resource_build!$K:$K,raw_resource_build!$B:$B,$C531,raw_resource_build!$A:$A,R$469)","v":0},{"$f":"SUMIFS(raw_resource_build!$K:$K,raw_resource_build!$B:$B,$C531,raw_resource_build!$A:$A,S$469)","v":0},{"$f":"SUMIFS(raw_resource_build!$K:$K,raw_resource_build!$B:$B,$C531,raw_resource_build!$A:$A,T$469)","v":0},{"$f":"SUMIFS(raw_resource_build!$K:$K,raw_resource_build!$B:$B,$C531,raw_resource_build!$A:$A,U$469)","v":0},{"$f":"SUMIFS(raw_resource_build!$K:$K,raw_resource_build!$B:$B,$C531,raw_resource_build!$A:$A,V$469)","v":0},{"$f":"SUMIFS(raw_resource_build!$K:$K,raw_resource_build!$B:$B,$C531,raw_resource_build!$A:$A,W$469)","v":0},{"$f":"SUMIFS(raw_resource_build!$K:$K,raw_resource_build!$B:$B,$C531,raw_resource_build!$A:$A,X$469)","v":0},{"$f":"SUMIFS(raw_resource_build!$K:$K,raw_resource_build!$B:$B,$C531,raw_resource_build!$A:$A,Y$469)","v":0},{"$f":"SUMIFS(raw_resource_build!$K:$K,raw_resource_build!$B:$B,$C531,raw_resource_build!$A:$A,Z$469)","v":0},{"$f":"SUMIFS(raw_resource_build!$K:$K,raw_resource_build!$B:$B,$C531,raw_resource_build!$A:$A,AA$469)","v":0},{"$f":"SUMIFS(raw_resource_build!$K:$K,raw_resource_build!$B:$B,$C531,raw_resource_build!$A:$A,AB$469)","v":0},{"$f":"SUMIFS(raw_resource_build!$K:$K,raw_resource_build!$B:$B,$C531,raw_resource_build!$A:$A,AC$469)","v":0},{"$f":"SUMIFS(raw_resource_build!$K:$K,raw_resource_build!$B:$B,$C531,raw_resource_build!$A:$A,AD$469)","v":0},{"$f":"SUMIFS(raw_resource_build!$K:$K,raw_resource_build!$B:$B,$C531,raw_resource_build!$A:$A,AE$469)","v":0},{"$f":"SUMIFS(raw_resource_build!$K:$K,raw_resource_build!$B:$B,$C531,raw_resource_build!$A:$A,AF$469)","v":0},{"$f":"SUMIFS(raw_resource_build!$K:$K,raw_resource_build!$B:$B,$C531,raw_resource_build!$A:$A,AG$469)","v":0},{"$f":"SUMIFS(raw_resource_build!$K:$K,raw_resource_build!$B:$B,$C531,raw_resource_build!$A:$A,AH$469)","v":0},{"$f":"SUMIFS(raw_resource_build!$K:$K,raw_resource_build!$B:$B,$C531,raw_resource_build!$A:$A,AI$469)","v":0},{"$f":"SUMIFS(raw_resource_build!$K:$K,raw_resource_build!$B:$B,$C531,raw_resource_build!$A:$A,AJ$469)","v":0},{"$f":"SUMIFS(raw_resource_build!$K:$K,raw_resource_build!$B:$B,$C531,raw_resource_build!$A:$A,AK$469)","v":0},{"$f":"SUMIFS(raw_resource_build!$K:$K,raw_resource_build!$B:$B,$C531,raw_resource_build!$A:$A,AL$469)","v":0},{"$f":"SUMIFS(raw_resource_build!$K:$K,raw_resource_build!$B:$B,$C531,raw_resource_build!$A:$A,AM$469)","v":0},{"$f":"SUMIFS(raw_resource_build!$K:$K,raw_resource_build!$B:$B,$C531,raw_resource_build!$A:$A,AN$469)","v":0}]
[null,null,{"$f":"Lists!B97","v":"Wyoming_Wind"},"SCADSNV-Mountain_Pass_El_Dorado",{"$f":"SUMIFS(raw_resource_build!$K:$K,raw_resource_build!$B:$B,$C532,raw_resource_build!$A:$A,E$469)","v":0},{"$f":"SUMIFS(raw_resource_build!$K:$K,raw_resource_build!$B:$B,$C532,raw_resource_build!$A:$A,F$469)","v":0},{"$f":"SUMIFS(raw_resource_build!$K:$K,raw_resource_build!$B:$B,$C532,raw_resource_build!$A:$A,G$469)","v":0},{"$f":"SUMIFS(raw_resource_build!$K:$K,raw_resource_build!$B:$B,$C532,raw_resource_build!$A:$A,H$469)","v":0},{"$f":"SUMIFS(raw_resource_build!$K:$K,raw_resource_build!$B:$B,$C532,raw_resource_build!$A:$A,I$469)","v":0},{"$f":"SUMIFS(raw_resource_build!$K:$K,raw_resource_build!$B:$B,$C532,raw_resource_build!$A:$A,J$469)","v":0},{"$f":"SUMIFS(raw_resource_build!$K:$K,raw_resource_build!$B:$B,$C532,raw_resource_build!$A:$A,K$469)","v":0},{"$f":"SUMIFS(raw_resource_build!$K:$K,raw_resource_build!$B:$B,$C532,raw_resource_build!$A:$A,L$469)","v":0},{"$f":"SUMIFS(raw_resource_build!$K:$K,raw_resource_build!$B:$B,$C532,raw_resource_build!$A:$A,M$469)","v":0},{"$f":"SUMIFS(raw_resource_build!$K:$K,raw_resource_build!$B:$B,$C532,raw_resource_build!$A:$A,N$469)","v":0},{"$f":"SUMIFS(raw_resource_build!$K:$K,raw_resource_build!$B:$B,$C532,raw_resource_build!$A:$A,O$469)","v":0},{"$f":"SUMIFS(raw_resource_build!$K:$K,raw_resource_build!$B:$B,$C532,raw_resource_build!$A:$A,P$469)","v":0},{"$f":"SUMIFS(raw_resource_build!$K:$K,raw_resource_build!$B:$B,$C532,raw_resource_build!$A:$A,Q$469)","v":0},{"$f":"SUMIFS(raw_resource_build!$K:$K,raw_resource_build!$B:$B,$C532,raw_resource_build!$A:$A,R$469)","v":0},{"$f":"SUMIFS(raw_resource_build!$K:$K,raw_resource_build!$B:$B,$C532,raw_resource_build!$A:$A,S$469)","v":0},{"$f":"SUMIFS(raw_resource_build!$K:$K,raw_resource_build!$B:$B,$C532,raw_resource_build!$A:$A,T$469)","v":0},{"$f":"SUMIFS(raw_resource_build!$K:$K,raw_resource_build!$B:$B,$C532,raw_resource_build!$A:$A,U$469)","v":0},{"$f":"SUMIFS(raw_resource_build!$K:$K,raw_resource_build!$B:$B,$C532,raw_resource_build!$A:$A,V$469)","v":0},{"$f":"SUMIFS(raw_resource_build!$K:$K,raw_resource_build!$B:$B,$C532,raw_resource_build!$A:$A,W$469)","v":0},{"$f":"SUMIFS(raw_resource_build!$K:$K,raw_resource_build!$B:$B,$C532,raw_resource_build!$A:$A,X$469)","v":0},{"$f":"SUMIFS(raw_resource_build!$K:$K,raw_resource_build!$B:$B,$C532,raw_resource_build!$A:$A,Y$469)","v":0},{"$f":"SUMIFS(raw_resource_build!$K:$K,raw_resource_build!$B:$B,$C532,raw_resource_build!$A:$A,Z$469)","v":0},{"$f":"SUMIFS(raw_resource_build!$K:$K,raw_resource_build!$B:$B,$C532,raw_resource_build!$A:$A,AA$469)","v":0},{"$f":"SUMIFS(raw_resource_build!$K:$K,raw_resource_build!$B:$B,$C532,raw_resource_build!$A:$A,AB$469)","v":0},{"$f":"SUMIFS(raw_resource_build!$K:$K,raw_resource_build!$B:$B,$C532,raw_resource_build!$A:$A,AC$469)","v":0},{"$f":"SUMIFS(raw_resource_build!$K:$K,raw_resource_build!$B:$B,$C532,raw_resource_build!$A:$A,AD$469)","v":0},{"$f":"SUMIFS(raw_resource_build!$K:$K,raw_resource_build!$B:$B,$C532,raw_resource_build!$A:$A,AE$469)","v":0},{"$f":"SUMIFS(raw_resource_build!$K:$K,raw_resource_build!$B:$B,$C532,raw_resource_build!$A:$A,AF$469)","v":0},{"$f":"SUMIFS(raw_resource_build!$K:$K,raw_resource_build!$B:$B,$C532,raw_resource_build!$A:$A,AG$469)","v":0},{"$f":"SUMIFS(raw_resource_build!$K:$K,raw_resource_build!$B:$B,$C532,raw_resource_build!$A:$A,AH$469)","v":0},{"$f":"SUMIFS(raw_resource_build!$K:$K,raw_resource_build!$B:$B,$C532,raw_resource_build!$A:$A,AI$469)","v":1500},{"$f":"SUMIFS(raw_resource_build!$K:$K,raw_resource_build!$B:$B,$C532,raw_resource_build!$A:$A,AJ$469)","v":0},{"$f":"SUMIFS(raw_resource_build!$K:$K,raw_resource_build!$B:$B,$C532,raw_resource_build!$A:$A,AK$469)","v":0},{"$f":"SUMIFS(raw_resource_build!$K:$K,raw_resource_build!$B:$B,$C532,raw_resource_build!$A:$A,AL$469)","v":0},{"$f":"SUMIFS(raw_resource_build!$K:$K,raw_resource_build!$B:$B,$C532,raw_resource_build!$A:$A,AM$469)","v":0},{"$f":"SUMIFS(raw_resource_build!$K:$K,raw_resource_build!$B:$B,$C532,raw_resource_build!$A:$A,AN$469)","v":0}]
[null,null,{"$f":"Lists!B98","v":"Arizona_Wind"},"N/A",{"$f":"SUMIFS(raw_resource_build!$K:$K,raw_resource_build!$B:$B,$C533,raw_resource_build!$A:$A,E$469)","v":0},{"$f":"SUMIFS(raw_resource_build!$K:$K,raw_resource_build!$B:$B,$C533,raw_resource_build!$A:$A,F$469)","v":0},{"$f":"SUMIFS(raw_resource_build!$K:$K,raw_resource_build!$B:$B,$C533,raw_resource_build!$A:$A,G$469)","v":0},{"$f":"SUMIFS(raw_resource_build!$K:$K,raw_resource_build!$B:$B,$C533,raw_resource_build!$A:$A,H$469)","v":0},{"$f":"SUMIFS(raw_resource_build!$K:$K,raw_resource_build!$B:$B,$C533,raw_resource_build!$A:$A,I$469)","v":0},{"$f":"SUMIFS(raw_resource_build!$K:$K,raw_resource_build!$B:$B,$C533,raw_resource_build!$A:$A,J$469)","v":0},{"$f":"SUMIFS(raw_resource_build!$K:$K,raw_resource_build!$B:$B,$C533,raw_resource_build!$A:$A,K$469)","v":0},{"$f":"SUMIFS(raw_resource_build!$K:$K,raw_resource_build!$B:$B,$C533,raw_resource_build!$A:$A,L$469)","v":0},{"$f":"SUMIFS(raw_resource_build!$K:$K,raw_resource_build!$B:$B,$C533,raw_resource_build!$A:$A,M$469)","v":0},{"$f":"SUMIFS(raw_resource_build!$K:$K,raw_resource_build!$B:$B,$C533,raw_resource_build!$A:$A,N$469)","v":0},{"$f":"SUMIFS(raw_resource_build!$K:$K,raw_resource_build!$B:$B,$C533,raw_resource_build!$A:$A,O$469)","v":0},{"$f":"SUMIFS(raw_resource_build!$K:$K,raw_resource_build!$B:$B,$C533,raw_resource_build!$A:$A,P$469)","v":0},{"$f":"SUMIFS(raw_resource_build!$K:$K,raw_resource_build!$B:$B,$C533,raw_resource_build!$A:$A,Q$469)","v":0},{"$f":"SUMIFS(raw_resource_build!$K:$K,raw_resource_build!$B:$B,$C533,raw_resource_build!$A:$A,R$469)","v":0},{"$f":"SUMIFS(raw_resource_build!$K:$K,raw_resource_build!$B:$B,$C533,raw_resource_build!$A:$A,S$469)","v":0},{"$f":"SUMIFS(raw_resource_build!$K:$K,raw_resource_build!$B:$B,$C533,raw_resource_build!$A:$A,T$469)","v":0},{"$f":"SUMIFS(raw_resource_build!$K:$K,raw_resource_build!$B:$B,$C533,raw_resource_build!$A:$A,U$469)","v":0},{"$f":"SUMIFS(raw_resource_build!$K:$K,raw_resource_build!$B:$B,$C533,raw_resource_build!$A:$A,V$469)","v":0},{"$f":"SUMIFS(raw_resource_build!$K:$K,raw_resource_build!$B:$B,$C533,raw_resource_build!$A:$A,W$469)","v":0},{"$f":"SUMIFS(raw_resource_build!$K:$K,raw_resource_build!$B:$B,$C533,raw_resource_build!$A:$A,X$469)","v":0},{"$f":"SUMIFS(raw_resource_build!$K:$K,raw_resource_build!$B:$B,$C533,raw_resource_build!$A:$A,Y$469)","v":0},{"$f":"SUMIFS(raw_resource_build!$K:$K,raw_resource_build!$B:$B,$C533,raw_resource_build!$A:$A,Z$469)","v":0},{"$f":"SUMIFS(raw_resource_build!$K:$K,raw_resource_build!$B:$B,$C533,raw_resource_build!$A:$A,AA$469)","v":0},{"$f":"SUMIFS(raw_resource_build!$K:$K,raw_resource_build!$B:$B,$C533,raw_resource_build!$A:$A,AB$469)","v":0},{"$f":"SUMIFS(raw_resource_build!$K:$K,raw_resource_build!$B:$B,$C533,raw_resource_build!$A:$A,AC$469)","v":0},{"$f":"SUMIFS(raw_resource_build!$K:$K,raw_resource_build!$B:$B,$C533,raw_resource_build!$A:$A,AD$469)","v":0},{"$f":"SUMIFS(raw_resource_build!$K:$K,raw_resource_build!$B:$B,$C533,raw_resource_build!$A:$A,AE$469)","v":0},{"$f":"SUMIFS(raw_resource_build!$K:$K,raw_resource_build!$B:$B,$C533,raw_resource_build!$A:$A,AF$469)","v":0},{"$f":"SUMIFS(raw_resource_build!$K:$K,raw_resource_build!$B:$B,$C533,raw_resource_build!$A:$A,AG$469)","v":0},{"$f":"SUMIFS(raw_resource_build!$K:$K,raw_resource_build!$B:$B,$C533,raw_resource_build!$A:$A,AH$469)","v":0},{"$f":"SUMIFS(raw_resource_build!$K:$K,raw_resource_build!$B:$B,$C533,raw_resource_build!$A:$A,AI$469)","v":0},{"$f":"SUMIFS(raw_resource_build!$K:$K,raw_resource_build!$B:$B,$C533,raw_resource_build!$A:$A,AJ$469)","v":0},{"$f":"SUMIFS(raw_resource_build!$K:$K,raw_resource_build!$B:$B,$C533,raw_resource_build!$A:$A,AK$469)","v":0},{"$f":"SUMIFS(raw_resource_build!$K:$K,raw_resource_build!$B:$B,$C533,raw_resource_build!$A:$A,AL$469)","v":0},{"$f":"SUMIFS(raw_resource_build!$K:$K,raw_resource_build!$B:$B,$C533,raw_resource_build!$A:$A,AM$469)","v":0},{"$f":"SUMIFS(raw_resource_build!$K:$K,raw_resource_build!$B:$B,$C533,raw_resource_build!$A:$A,AN$469)","v":0}]
[null,null,{"$f":"Lists!B99","v":"New_Mexico_Wind"},{"$f":"D461","v":"SCADSNV-Riverside_Palm_Springs"},{"$f":"SUMIFS(raw_resource_build!$K:$K,raw_resource_build!$B:$B,$C534,raw_resource_build!$A:$A,E$469)","v":0},{"$f":"SUMIFS(raw_resource_build!$K:$K,raw_resource_build!$B:$B,$C534,raw_resource_build!$A:$A,F$469)","v":0},{"$f":"SUMIFS(raw_resource_build!$K:$K,raw_resource_build!$B:$B,$C534,raw_resource_build!$A:$A,G$469)","v":0},{"$f":"SUMIFS(raw_resource_build!$K:$K,raw_resource_build!$B:$B,$C534,raw_resource_build!$A:$A,H$469)","v":0},{"$f":"SUMIFS(raw_resource_build!$K:$K,raw_resource_build!$B:$B,$C534,raw_resource_build!$A:$A,I$469)","v":0},{"$f":"SUMIFS(raw_resource_build!$K:$K,raw_resource_build!$B:$B,$C534,raw_resource_build!$A:$A,J$469)","v":0},{"$f":"SUMIFS(raw_resource_build!$K:$K,raw_resource_build!$B:$B,$C534,raw_resource_build!$A:$A,K$469)","v":0},{"$f":"SUMIFS(raw_resource_build!$K:$K,raw_resource_build!$B:$B,$C534,raw_resource_build!$A:$A,L$469)","v":0},{"$f":"SUMIFS(raw_resource_build!$K:$K,raw_resource_build!$B:$B,$C534,raw_resource_build!$A:$A,M$469)","v":0},{"$f":"SUMIFS(raw_resource_build!$K:$K,raw_resource_build!$B:$B,$C534,raw_resource_build!$A:$A,N$469)","v":0},{"$f":"SUMIFS(raw_resource_build!$K:$K,raw_resource_build!$B:$B,$C534,raw_resource_build!$A:$A,O$469)","v":0},{"$f":"SUMIFS(raw_resource_build!$K:$K,raw_resource_build!$B:$B,$C534,raw_resource_build!$A:$A,P$469)","v":0},{"$f":"SUMIFS(raw_resource_build!$K:$K,raw_resource_build!$B:$B,$C534,raw_resource_build!$A:$A,Q$469)","v":0},{"$f":"SUMIFS(raw_resource_build!$K:$K,raw_resource_build!$B:$B,$C534,raw_resource_build!$A:$A,R$469)","v":0},{"$f":"SUMIFS(raw_resource_build!$K:$K,raw_resource_build!$B:$B,$C534,raw_resource_build!$A:$A,S$469)","v":0},{"$f":"SUMIFS(raw_resource_build!$K:$K,raw_resource_build!$B:$B,$C534,raw_resource_build!$A:$A,T$469)","v":1336.87},{"$f":"SUMIFS(raw_resource_build!$K:$K,raw_resource_build!$B:$B,$C534,raw_resource_build!$A:$A,U$469)","v":0},{"$f":"SUMIFS(raw_resource_build!$K:$K,raw_resource_build!$B:$B,$C534,raw_resource_build!$A:$A,V$469)","v":0},{"$f":"SUMIFS(raw_resource_build!$K:$K,raw_resource_build!$B:$B,$C534,raw_resource_build!$A:$A,W$469)","v":0},{"$f":"SUMIFS(raw_resource_build!$K:$K,raw_resource_build!$B:$B,$C534,raw_resource_build!$A:$A,X$469)","v":0},{"$f":"SUMIFS(raw_resource_build!$K:$K,raw_resource_build!$B:$B,$C534,raw_resource_build!$A:$A,Y$469)","v":0},{"$f":"SUMIFS(raw_resource_build!$K:$K,raw_resource_build!$B:$B,$C534,raw_resource_build!$A:$A,Z$469)","v":0},{"$f":"SUMIFS(raw_resource_build!$K:$K,raw_resource_build!$B:$B,$C534,raw_resource_build!$A:$A,AA$469)","v":0},{"$f":"SUMIFS(raw_resource_build!$K:$K,raw_resource_build!$B:$B,$C534,raw_resource_build!$A:$A,AB$469)","v":0},{"$f":"SUMIFS(raw_resource_build!$K:$K,raw_resource_build!$B:$B,$C534,raw_resource_build!$A:$A,AC$469)","v":0},{"$f":"SUMIFS(raw_resource_build!$K:$K,raw_resource_build!$B:$B,$C534,raw_resource_build!$A:$A,AD$469)","v":0},{"$f":"SUMIFS(raw_resource_build!$K:$K,raw_resource_build!$B:$B,$C534,raw_resource_build!$A:$A,AE$469)","v":0},{"$f":"SUMIFS(raw_resource_build!$K:$K,raw_resource_build!$B:$B,$C534,raw_resource_build!$A:$A,AF$469)","v":0},{"$f":"SUMIFS(raw_resource_build!$K:$K,raw_resource_build!$B:$B,$C534,raw_resource_build!$A:$A,AG$469)","v":0},{"$f":"SUMIFS(raw_resource_build!$K:$K,raw_resource_build!$B:$B,$C534,raw_resource_build!$A:$A,AH$469)","v":0},{"$f":"SUMIFS(raw_resource_build!$K:$K,raw_resource_build!$B:$B,$C534,raw_resource_build!$A:$A,AI$469)","v":1500},{"$f":"SUMIFS(raw_resource_build!$K:$K,raw_resource_build!$B:$B,$C534,raw_resource_build!$A:$A,AJ$469)","v":0},{"$f":"SUMIFS(raw_resource_build!$K:$K,raw_resource_build!$B:$B,$C534,raw_resource_build!$A:$A,AK$469)","v":0},{"$f":"SUMIFS(raw_resource_build!$K:$K,raw_resource_build!$B:$B,$C534,raw_resource_build!$A:$A,AL$469)","v":0},{"$f":"SUMIFS(raw_resource_build!$K:$K,raw_resource_build!$B:$B,$C534,raw_resource_build!$A:$A,AM$469)","v":0},{"$f":"SUMIFS(raw_resource_build!$K:$K,raw_resource_build!$B:$B,$C534,raw_resource_build!$A:$A,AN$469)","v":0}]
[null,null,"In-State",null,{"$f":"SUMIFS(E$470:E$534,Lists!$C$35:$C$99,$C535)","v":0},{"$f":"SUMIFS(F$470:F$534,Lists!$C$35:$C$99,$C535)","v":0},{"$f":"SUMIFS(G$470:G$534,Lists!$C$35:$C$99,$C535)","v":0},{"$f":"SUMIFS(H$470:H$534,Lists!$C$35:$C$99,$C535)","v":0},{"$f":"SUMIFS(I$470:I$534,Lists!$C$35:$C$99,$C535)","v":0},{"$f":"SUMIFS(J$470:J$534,Lists!$C$35:$C$99,$C535)","v":2000},{"$f":"SUMIFS(K$470:K$534,Lists!$C$35:$C$99,$C535)","v":4000},{"$f":"SUMIFS(L$470:L$534,Lists!$C$35:$C$99,$C535)","v":8097.83},{"$f":"SUMIFS(M$470:M$534,Lists!$C$35:$C$99,$C535)","v":10384.83},{"$f":"SUMIFS(N$470:N$534,Lists!$C$35:$C$99,$C535)","v":10793.52},{"$f":"SUMIFS(O$470:O$534,Lists!$C$35:$C$99,$C535)","v":0},{"$f":"SUMIFS(P$470:P$534,Lists!$C$35:$C$99,$C535)","v":12292.51},{"$f":"SUMIFS(Q$470:Q$534,Lists!$C$35:$C$99,$C535)","v":0},{"$f":"SUMIFS(R$470:R$534,Lists!$C$35:$C$99,$C535)","v":0},{"$f":"SUMIFS(S$470:S$534,Lists!$C$35:$C$99,$C535)","v":0},{"$f":"SUMIFS(T$470:T$534,Lists!$C$35:$C$99,$C535)","v":20920.189999999999},{"$f":"SUMIFS(U$470:U$534,Lists!$C$35:$C$99,$C535)","v":0},{"$f":"SUMIFS(V$470:V$534,Lists!$C$35:$C$99,$C535)","v":0},{"$f":"SUMIFS(W$470:W$534,Lists!$C$35:$C$99,$C535)","v":0},{"$f":"SUMIFS(X$470:X$534,Lists!$C$35:$C$99,$C535)","v":0},{"$f":"SUMIFS(Y$470:Y$534,Lists!$C$35:$C$99,$C535)","v":0},{"$f":"SUMIFS(Z$470:Z$534,Lists!$C$35:$C$99,$C535)","v":0},{"$f":"SUMIFS(AA$470:AA$534,Lists!$C$35:$C$99,$C535)","v":0},{"$f":"SUMIFS(AB$470:AB$534,Lists!$C$35:$C$99,$C535)","v":0},{"$f":"SUMIFS(AC$470:AC$534,Lists!$C$35:$C$99,$C535)","v":0},{"$f":"SUMIFS(AD$470:AD$534,Lists!$C$35:$C$99,$C535)","v":0},{"$f":"SUMIFS(AE$470:AE$534,Lists!$C$35:$C$99,$C535)","v":0},{"$f":"SUMIFS(AF$470:AF$534,Lists!$C$35:$C$99,$C535)","v":0},{"$f":"SUMIFS(AG$470:AG$534,Lists!$C$35:$C$99,$C535)","v":0},{"$f":"SUMIFS(AH$470:AH$534,Lists!$C$35:$C$99,$C535)","v":0},{"$f":"SUMIFS(AI$470:AI$534,Lists!$C$35:$C$99,$C535)","v":114488.65999999999},{"$f":"SUMIFS(AJ$470:AJ$534,Lists!$C$35:$C$99,$C535)","v":0},{"$f":"SUMIFS(AK$470:AK$534,Lists!$C$35:$C$99,$C535)","v":0},{"$f":"SUMIFS(AL$470:AL$534,Lists!$C$35:$C$99,$C535)","v":0},{"$f":"SUMIFS(AM$470:AM$534,Lists!$C$35:$C$99,$C535)","v":0},{"$f":"SUMIFS(AN$470:AN$534,Lists!$C$35:$C$99,$C535)","v":0}]
[null,null,"Out-Of-State",null,{"$f":"SUMIFS(E$470:E$534,Lists!$C$35:$C$99,$C536)","v":0},{"$f":"SUMIFS(F$470:F$534,Lists!$C$35:$C$99,$C536)","v":0},{"$f":"SUMIFS(G$470:G$534,Lists!$C$35:$C$99,$C536)","v":0},{"$f":"SUMIFS(H$470:H$534,Lists!$C$35:$C$99,$C536)","v":0},{"$f":"SUMIFS(I$470:I$534,Lists!$C$35:$C$99,$C536)","v":0},{"$f":"SUMIFS(J$470:J$534,Lists!$C$35:$C$99,$C536)","v":0},{"$f":"SUMIFS(K$470:K$534,Lists!$C$35:$C$99,$C536)","v":0},{"$f":"SUMIFS(L$470:L$534,Lists!$C$35:$C$99,$C536)","v":0},{"$f":"SUMIFS(M$470:M$534,Lists!$C$35:$C$99,$C536)","v":0},{"$f":"SUMIFS(N$470:N$534,Lists!$C$35:$C$99,$C536)","v":0},{"$f":"SUMIFS(O$470:O$534,Lists!$C$35:$C$99,$C536)","v":0},{"$f":"SUMIFS(P$470:P$534,Lists!$C$35:$C$99,$C536)","v":0},{"$f":"SUMIFS(Q$470:Q$534,Lists!$C$35:$C$99,$C536)","v":0},{"$f":"SUMIFS(R$470:R$534,Lists!$C$35:$C$99,$C536)","v":0},{"$f":"SUMIFS(S$470:S$534,Lists!$C$35:$C$99,$C536)","v":0},{"$f":"SUMIFS(T$470:T$534,Lists!$C$35:$C$99,$C536)","v":1336.87},{"$f":"SUMIFS(U$470:U$534,Lists!$C$35:$C$99,$C536)","v":0},{"$f":"SUMIFS(V$470:V$534,Lists!$C$35:$C$99,$C536)","v":0},{"$f":"SUMIFS(W$470:W$534,Lists!$C$35:$C$99,$C536)","v":0},{"$f":"SUMIFS(X$470:X$534,Lists!$C$35:$C$99,$C536)","v":0},{"$f":"SUMIFS(Y$470:Y$534,Lists!$C$35:$C$99,$C536)","v":0},{"$f":"SUMIFS(Z$470:Z$534,Lists!$C$35:$C$99,$C536)","v":0},{"$f":"SUMIFS(AA$470:AA$534,Lists!$C$35:$C$99,$C536)","v":0},{"$f":"SUMIFS(AB$470:AB$534,Lists!$C$35:$C$99,$C536)","v":0},{"$f":"SUMIFS(AC$470:AC$534,Lists!$C$35:$C$99,$C536)","v":0},{"$f":"SUMIFS(AD$470:AD$534,Lists!$C$35:$C$99,$C536)","v":0},{"$f":"SUMIFS(AE$470:AE$534,Lists!$C$35:$C$99,$C536)","v":0},{"$f":"SUMIFS(AF$470:AF$534,Lists!$C$35:$C$99,$C536)","v":0},{"$f":"SUMIFS(AG$470:AG$534,Lists!$C$35:$C$99,$C536)","v":0},{"$f":"SUMIFS(AH$470:AH$534,Lists!$C$35:$C$99,$C536)","v":0},{"$f":"SUMIFS(AI$470:AI$534,Lists!$C$35:$C$99,$C536)","v":3000},{"$f":"SUMIFS(AJ$470:AJ$534,Lists!$C$35:$C$99,$C536)","v":0},{"$f":"SUMIFS(AK$470:AK$534,Lists!$C$35:$C$99,$C536)","v":0},{"$f":"SUMIFS(AL$470:AL$534,Lists!$C$35:$C$99,$C536)","v":0},{"$f":"SUMIFS(AM$470:AM$534,Lists!$C$35:$C$99,$C536)","v":0},{"$f":"SUMIFS(AN$470:AN$534,Lists!$C$35:$C$99,$C536)","v":0}]
[null,null,"Note: Resources with #N/A as transmission zone were not made available to the model for this scenario"]
[]
[null,"Selected Renewables by Location (Energy Only)"]
[]
[null,null,"EO Renewable Resource Summary by Location (MW)"]
[null,null,"RESOLVE Resource","Tx Zone",2015,2016,2017,2018,2019,2020,2021,2022,2023,2024,2025,2026,2027,2028,2029,2030,2031,2032,2033,2034,2035,2036,2037,2038,2039,2040,2041,2042,2043,2044,2045,2046,2047,2048,2049,2050]
[null,null,{"$f":"Lists!B35","v":"InState_Biomass"},{"$f":"D470","v":"None"},{"$f":"SUMIFS(raw_resource_build!$L:$L,raw_resource_build!$B:$B,$C543,raw_resource_build!$A:$A,E$542)","v":0},{"$f":"SUMIFS(raw_resource_build!$L:$L,raw_resource_build!$B:$B,$C543,raw_resource_build!$A:$A,F$542)","v":0},{"$f":"SUMIFS(raw_resource_build!$L:$L,raw_resource_build!$B:$B,$C543,raw_resource_build!$A:$A,G$542)","v":0},{"$f":"SUMIFS(raw_resource_build!$L:$L,raw_resource_build!$B:$B,$C543,raw_resource_build!$A:$A,H$542)","v":0},{"$f":"SUMIFS(raw_resource_build!$L:$L,raw_resource_build!$B:$B,$C543,raw_resource_build!$A:$A,I$542)","v":0},{"$f":"SUMIFS(raw_resource_build!$L:$L,raw_resource_build!$B:$B,$C543,raw_resource_build!$A:$A,J$542)","v":0},{"$f":"SUMIFS(raw_resource_build!$L:$L,raw_resource_build!$B:$B,$C543,raw_resource_build!$A:$A,K$542)","v":0},{"$f":"SUMIFS(raw_resource_build!$L:$L,raw_resource_build!$B:$B,$C543,raw_resource_build!$A:$A,L$542)","v":0},{"$f":"SUMIFS(raw_resource_build!$L:$L,raw_resource_build!$B:$B,$C543,raw_resource_build!$A:$A,M$542)","v":0},{"$f":"SUMIFS(raw_resource_build!$L:$L,raw_resource_build!$B:$B,$C543,raw_resource_build!$A:$A,N$542)","v":0},{"$f":"SUMIFS(raw_resource_build!$L:$L,raw_resource_build!$B:$B,$C543,raw_resource_build!$A:$A,O$542)","v":0},{"$f":"SUMIFS(raw_resource_build!$L:$L,raw_resource_build!$B:$B,$C543,raw_resource_build!$A:$A,P$542)","v":0},{"$f":"SUMIFS(raw_resource_build!$L:$L,raw_resource_build!$B:$B,$C543,raw_resource_build!$A:$A,Q$542)","v":0},{"$f":"SUMIFS(raw_resource_build!$L:$L,raw_resource_build!$B:$B,$C543,raw_resource_build!$A:$A,R$542)","v":0},{"$f":"SUMIFS(raw_resource_build!$L:$L,raw_resource_build!$B:$B,$C543,raw_resource_build!$A:$A,S$542)","v":0},{"$f":"SUMIFS(raw_resource_build!$L:$L,raw_resource_build!$B:$B,$C543,raw_resource_build!$A:$A,T$542)","v":0},{"$f":"SUMIFS(raw_resource_build!$L:$L,raw_resource_build!$B:$B,$C543,raw_resource_build!$A:$A,U$542)","v":0},{"$f":"SUMIFS(raw_resource_build!$L:$L,raw_resource_build!$B:$B,$C543,raw_resource_build!$A:$A,V$542)","v":0},{"$f":"SUMIFS(raw_resource_build!$L:$L,raw_resource_build!$B:$B,$C543,raw_resource_build!$A:$A,W$542)","v":0},{"$f":"SUMIFS(raw_resource_build!$L:$L,raw_resource_build!$B:$B,$C543,raw_resource_build!$A:$A,X$542)","v":0},{"$f":"SUMIFS(raw_resource_build!$L:$L,raw_resource_build!$B:$B,$C543,raw_resource_build!$A:$A,Y$542)","v":0},{"$f":"SUMIFS(raw_resource_build!$L:$L,raw_resource_build!$B:$B,$C543,raw_resource_build!$A:$A,Z$542)","v":0},{"$f":"SUMIFS(raw_resource_build!$L:$L,raw_resource_build!$B:$B,$C543,raw_resource_build!$A:$A,AA$542)","v":0},{"$f":"SUMIFS(raw_resource_build!$L:$L,raw_resource_build!$B:$B,$C543,raw_resource_build!$A:$A,AB$542)","v":0},{"$f":"SUMIFS(raw_resource_build!$L:$L,raw_resource_build!$B:$B,$C543,raw_resource_build!$A:$A,AC$542)","v":0},{"$f":"SUMIFS(raw_resource_build!$L:$L,raw_resource_build!$B:$B,$C543,raw_resource_build!$A:$A,AD$542)","v":0},{"$f":"SUMIFS(raw_resource_build!$L:$L,raw_resource_build!$B:$B,$C543,raw_resource_build!$A:$A,AE$542)","v":0},{"$f":"SUMIFS(raw_resource_build!$L:$L,raw_resource_build!$B:$B,$C543,raw_resource_build!$A:$A,AF$542)","v":0},{"$f":"SUMIFS(raw_resource_build!$L:$L,raw_resource_build!$B:$B,$C543,raw_resource_build!$A:$A,AG$542)","v":0},{"$f":"SUMIFS(raw_resource_build!$L:$L,raw_resource_build!$B:$B,$C543,raw_resource_build!$A:$A,AH$542)","v":0},{"$f":"SUMIFS(raw_resource_build!$L:$L,raw_resource_build!$B:$B,$C543,raw_resource_build!$A:$A,AI$542)","v":0},{"$f":"SUMIFS(raw_resource_build!$L:$L,raw_resource_build!$B:$B,$C543,raw_resource_build!$A:$A,AJ$542)","v":0},{"$f":"SUMIFS(raw_resource_build!$L:$L,raw_resource_build!$B:$B,$C543,raw_resource_build!$A:$A,AK$542)","v":0},{"$f":"SUMIFS(raw_resource_build!$L:$L,raw_resource_build!$B:$B,$C543,raw_resource_build!$A:$A,AL$542)","v":0},{"$f":"SUMIFS(raw_resource_build!$L:$L,raw_resource_build!$B:$B,$C543,raw_resource_build!$A:$A,AM$542)","v":0},{"$f":"SUMIFS(raw_resource_build!$L:$L,raw_resource_build!$B:$B,$C543,raw_resource_build!$A:$A,AN$542)","v":0}]
[null,null,{"$f":"Lists!B36","v":"Greater_Imperial_Geothermal"},"SCADSNV-Greater_Imperial",{"$f":"SUMIFS(raw_resource_build!$L:$L,raw_resource_build!$B:$B,$C544,raw_resource_build!$A:$A,E$542)","v":0},{"$f":"SUMIFS(raw_resource_build!$L:$L,raw_resource_build!$B:$B,$C544,raw_resource_build!$A:$A,F$542)","v":0},{"$f":"SUMIFS(raw_resource_build!$L:$L,raw_resource_build!$B:$B,$C544,raw_resource_build!$A:$A,G$542)","v":0},{"$f":"SUMIFS(raw_resource_build!$L:$L,raw_resource_build!$B:$B,$C544,raw_resource_build!$A:$A,H$542)","v":0},{"$f":"SUMIFS(raw_resource_build!$L:$L,raw_resource_build!$B:$B,$C544,raw_resource_build!$A:$A,I$542)","v":0},{"$f":"SUMIFS(raw_resource_build!$L:$L,raw_resource_build!$B:$B,$C544,raw_resource_build!$A:$A,J$542)","v":0},{"$f":"SUMIFS(raw_resource_build!$L:$L,raw_resource_build!$B:$B,$C544,raw_resource_build!$A:$A,K$542)","v":0},{"$f":"SUMIFS(raw_resource_build!$L:$L,raw_resource_build!$B:$B,$C544,raw_resource_build!$A:$A,L$542)","v":0},{"$f":"SUMIFS(raw_resource_build!$L:$L,raw_resource_build!$B:$B,$C544,raw_resource_build!$A:$A,M$542)","v":0},{"$f":"SUMIFS(raw_resource_build!$L:$L,raw_resource_build!$B:$B,$C544,raw_resource_build!$A:$A,N$542)","v":0},{"$f":"SUMIFS(raw_resource_build!$L:$L,raw_resource_build!$B:$B,$C544,raw_resource_build!$A:$A,O$542)","v":0},{"$f":"SUMIFS(raw_resource_build!$L:$L,raw_resource_build!$B:$B,$C544,raw_resource_build!$A:$A,P$542)","v":0},{"$f":"SUMIFS(raw_resource_build!$L:$L,raw_resource_build!$B:$B,$C544,raw_resource_build!$A:$A,Q$542)","v":0},{"$f":"SUMIFS(raw_resource_build!$L:$L,raw_resource_build!$B:$B,$C544,raw_resource_build!$A:$A,R$542)","v":0},{"$f":"SUMIFS(raw_resource_build!$L:$L,raw_resource_build!$B:$B,$C544,raw_resource_build!$A:$A,S$542)","v":0},{"$f":"SUMIFS(raw_resource_build!$L:$L,raw_resource_build!$B:$B,$C544,raw_resource_build!$A:$A,T$542)","v":0},{"$f":"SUMIFS(raw_resource_build!$L:$L,raw_resource_build!$B:$B,$C544,raw_resource_build!$A:$A,U$542)","v":0},{"$f":"SUMIFS(raw_resource_build!$L:$L,raw_resource_build!$B:$B,$C544,raw_resource_build!$A:$A,V$542)","v":0},{"$f":"SUMIFS(raw_resource_build!$L:$L,raw_resource_build!$B:$B,$C544,raw_resource_build!$A:$A,W$542)","v":0},{"$f":"SUMIFS(raw_resource_build!$L:$L,raw_resource_build!$B:$B,$C544,raw_resource_build!$A:$A,X$542)","v":0},{"$f":"SUMIFS(raw_resource_build!$L:$L,raw_resource_build!$B:$B,$C544,raw_resource_build!$A:$A,Y$542)","v":0},{"$f":"SUMIFS(raw_resource_build!$L:$L,raw_resource_build!$B:$B,$C544,raw_resource_build!$A:$A,Z$542)","v":0},{"$f":"SUMIFS(raw_resource_build!$L:$L,raw_resource_build!$B:$B,$C544,raw_resource_build!$A:$A,AA$542)","v":0},{"$f":"SUMIFS(raw_resource_build!$L:$L,raw_resource_build!$B:$B,$C544,raw_resource_build!$A:$A,AB$542)","v":0},{"$f":"SUMIFS(raw_resource_build!$L:$L,raw_resource_build!$B:$B,$C544,raw_resource_build!$A:$A,AC$542)","v":0},{"$f":"SUMIFS(raw_resource_build!$L:$L,raw_resource_build!$B:$B,$C544,raw_resource_build!$A:$A,AD$542)","v":0},{"$f":"SUMIFS(raw_resource_build!$L:$L,raw_resource_build!$B:$B,$C544,raw_resource_build!$A:$A,AE$542)","v":0},{"$f":"SUMIFS(raw_resource_build!$L:$L,raw_resource_build!$B:$B,$C544,raw_resource_build!$A:$A,AF$542)","v":0},{"$f":"SUMIFS(raw_resource_build!$L:$L,raw_resource_build!$B:$B,$C544,raw_resource_build!$A:$A,AG$542)","v":0},{"$f":"SUMIFS(raw_resource_build!$L:$L,raw_resource_build!$B:$B,$C544,raw_resource_build!$A:$A,AH$542)","v":0},{"$f":"SUMIFS(raw_resource_build!$L:$L,raw_resource_build!$B:$B,$C544,raw_resource_build!$A:$A,AI$542)","v":525.19000000000005},{"$f":"SUMIFS(raw_resource_build!$L:$L,raw_resource_build!$B:$B,$C544,raw_resource_build!$A:$A,AJ$542)","v":0},{"$f":"SUMIFS(raw_resource_build!$L:$L,raw_resource_build!$B:$B,$C544,raw_resource_build!$A:$A,AK$542)","v":0},{"$f":"SUMIFS(raw_resource_build!$L:$L,raw_resource_build!$B:$B,$C544,raw_resource_build!$A:$A,AL$542)","v":0},{"$f":"SUMIFS(raw_resource_build!$L:$L,raw_resource_build!$B:$B,$C544,raw_resource_build!$A:$A,AM$542)","v":0},{"$f":"SUMIFS(raw_resource_build!$L:$L,raw_resource_build!$B:$B,$C544,raw_resource_build!$A:$A,AN$542)","v":0}]
[null,null,{"$f":"Lists!B37","v":"Inyokern_North_Kramer_Geothermal"},"Inyokern_North_Kramer-Greater_Kramer",{"$f":"SUMIFS(raw_resource_build!$L:$L,raw_resource_build!$B:$B,$C545,raw_resource_build!$A:$A,E$542)","v":0},{"$f":"SUMIFS(raw_resource_build!$L:$L,raw_resource_build!$B:$B,$C545,raw_resource_build!$A:$A,F$542)","v":0},{"$f":"SUMIFS(raw_resource_build!$L:$L,raw_resource_build!$B:$B,$C545,raw_resource_build!$A:$A,G$542)","v":0},{"$f":"SUMIFS(raw_resource_build!$L:$L,raw_resource_build!$B:$B,$C545,raw_resource_build!$A:$A,H$542)","v":0},{"$f":"SUMIFS(raw_resource_build!$L:$L,raw_resource_build!$B:$B,$C545,raw_resource_build!$A:$A,I$542)","v":0},{"$f":"SUMIFS(raw_resource_build!$L:$L,raw_resource_build!$B:$B,$C545,raw_resource_build!$A:$A,J$542)","v":0},{"$f":"SUMIFS(raw_resource_build!$L:$L,raw_resource_build!$B:$B,$C545,raw_resource_build!$A:$A,K$542)","v":0},{"$f":"SUMIFS(raw_resource_build!$L:$L,raw_resource_build!$B:$B,$C545,raw_resource_build!$A:$A,L$542)","v":0},{"$f":"SUMIFS(raw_resource_build!$L:$L,raw_resource_build!$B:$B,$C545,raw_resource_build!$A:$A,M$542)","v":0},{"$f":"SUMIFS(raw_resource_build!$L:$L,raw_resource_build!$B:$B,$C545,raw_resource_build!$A:$A,N$542)","v":0},{"$f":"SUMIFS(raw_resource_build!$L:$L,raw_resource_build!$B:$B,$C545,raw_resource_build!$A:$A,O$542)","v":0},{"$f":"SUMIFS(raw_resource_build!$L:$L,raw_resource_build!$B:$B,$C545,raw_resource_build!$A:$A,P$542)","v":0},{"$f":"SUMIFS(raw_resource_build!$L:$L,raw_resource_build!$B:$B,$C545,raw_resource_build!$A:$A,Q$542)","v":0},{"$f":"SUMIFS(raw_resource_build!$L:$L,raw_resource_build!$B:$B,$C545,raw_resource_build!$A:$A,R$542)","v":0},{"$f":"SUMIFS(raw_resource_build!$L:$L,raw_resource_build!$B:$B,$C545,raw_resource_build!$A:$A,S$542)","v":0},{"$f":"SUMIFS(raw_resource_build!$L:$L,raw_resource_build!$B:$B,$C545,raw_resource_build!$A:$A,T$542)","v":0},{"$f":"SUMIFS(raw_resource_build!$L:$L,raw_resource_build!$B:$B,$C545,raw_resource_build!$A:$A,U$542)","v":0},{"$f":"SUMIFS(raw_resource_build!$L:$L,raw_resource_build!$B:$B,$C545,raw_resource_build!$A:$A,V$542)","v":0},{"$f":"SUMIFS(raw_resource_build!$L:$L,raw_resource_build!$B:$B,$C545,raw_resource_build!$A:$A,W$542)","v":0},{"$f":"SUMIFS(raw_resource_build!$L:$L,raw_resource_build!$B:$B,$C545,raw_resource_build!$A:$A,X$542)","v":0},{"$f":"SUMIFS(raw_resource_build!$L:$L,raw_resource_build!$B:$B,$C545,raw_resource_build!$A:$A,Y$542)","v":0},{"$f":"SUMIFS(raw_resource_build!$L:$L,raw_resource_build!$B:$B,$C545,raw_resource_build!$A:$A,Z$542)","v":0},{"$f":"SUMIFS(raw_resource_build!$L:$L,raw_resource_build!$B:$B,$C545,raw_resource_build!$A:$A,AA$542)","v":0},{"$f":"SUMIFS(raw_resource_build!$L:$L,raw_resource_build!$B:$B,$C545,raw_resource_build!$A:$A,AB$542)","v":0},{"$f":"SUMIFS(raw_resource_build!$L:$L,raw_resource_build!$B:$B,$C545,raw_resource_build!$A:$A,AC$542)","v":0},{"$f":"SUMIFS(raw_resource_build!$L:$L,raw_resource_build!$B:$B,$C545,raw_resource_build!$A:$A,AD$542)","v":0},{"$f":"SUMIFS(raw_resource_build!$L:$L,raw_resource_build!$B:$B,$C545,raw_resource_build!$A:$A,AE$542)","v":0},{"$f":"SUMIFS(raw_resource_build!$L:$L,raw_resource_build!$B:$B,$C545,raw_resource_build!$A:$A,AF$542)","v":0},{"$f":"SUMIFS(raw_resource_build!$L:$L,raw_resource_build!$B:$B,$C545,raw_resource_build!$A:$A,AG$542)","v":0},{"$f":"SUMIFS(raw_resource_build!$L:$L,raw_resource_build!$B:$B,$C545,raw_resource_build!$A:$A,AH$542)","v":0},{"$f":"SUMIFS(raw_resource_build!$L:$L,raw_resource_build!$B:$B,$C545,raw_resource_build!$A:$A,AI$542)","v":0},{"$f":"SUMIFS(raw_resource_build!$L:$L,raw_resource_build!$B:$B,$C545,raw_resource_build!$A:$A,AJ$542)","v":0},{"$f":"SUMIFS(raw_resource_build!$L:$L,raw_resource_build!$B:$B,$C545,raw_resource_build!$A:$A,AK$542)","v":0},{"$f":"SUMIFS(raw_resource_build!$L:$L,raw_resource_build!$B:$B,$C545,raw_resource_build!$A:$A,AL$542)","v":0},{"$f":"SUMIFS(raw_resource_build!$L:$L,raw_resource_build!$B:$B,$C545,raw_resource_build!$A:$A,AM$542)","v":0},{"$f":"SUMIFS(raw_resource_build!$L:$L,raw_resource_build!$B:$B,$C545,raw_resource_build!$A:$A,AN$542)","v":0}]
[null,null,{"$f":"Lists!B38","v":"Northern_California_Ex_Geothermal"},"Northern_California_Ex",{"$f":"SUMIFS(raw_resource_build!$L:$L,raw_resource_build!$B:$B,$C546,raw_resource_build!$A:$A,E$542)","v":0},{"$f":"SUMIFS(raw_resource_build!$L:$L,raw_resource_build!$B:$B,$C546,raw_resource_build!$A:$A,F$542)","v":0},{"$f":"SUMIFS(raw_resource_build!$L:$L,raw_resource_build!$B:$B,$C546,raw_resource_build!$A:$A,G$542)","v":0},{"$f":"SUMIFS(raw_resource_build!$L:$L,raw_resource_build!$B:$B,$C546,raw_resource_build!$A:$A,H$542)","v":0},{"$f":"SUMIFS(raw_resource_build!$L:$L,raw_resource_build!$B:$B,$C546,raw_resource_build!$A:$A,I$542)","v":0},{"$f":"SUMIFS(raw_resource_build!$L:$L,raw_resource_build!$B:$B,$C546,raw_resource_build!$A:$A,J$542)","v":0},{"$f":"SUMIFS(raw_resource_build!$L:$L,raw_resource_build!$B:$B,$C546,raw_resource_build!$A:$A,K$542)","v":0},{"$f":"SUMIFS(raw_resource_build!$L:$L,raw_resource_build!$B:$B,$C546,raw_resource_build!$A:$A,L$542)","v":0},{"$f":"SUMIFS(raw_resource_build!$L:$L,raw_resource_build!$B:$B,$C546,raw_resource_build!$A:$A,M$542)","v":0},{"$f":"SUMIFS(raw_resource_build!$L:$L,raw_resource_build!$B:$B,$C546,raw_resource_build!$A:$A,N$542)","v":0},{"$f":"SUMIFS(raw_resource_build!$L:$L,raw_resource_build!$B:$B,$C546,raw_resource_build!$A:$A,O$542)","v":0},{"$f":"SUMIFS(raw_resource_build!$L:$L,raw_resource_build!$B:$B,$C546,raw_resource_build!$A:$A,P$542)","v":0},{"$f":"SUMIFS(raw_resource_build!$L:$L,raw_resource_build!$B:$B,$C546,raw_resource_build!$A:$A,Q$542)","v":0},{"$f":"SUMIFS(raw_resource_build!$L:$L,raw_resource_build!$B:$B,$C546,raw_resource_build!$A:$A,R$542)","v":0},{"$f":"SUMIFS(raw_resource_build!$L:$L,raw_resource_build!$B:$B,$C546,raw_resource_build!$A:$A,S$542)","v":0},{"$f":"SUMIFS(raw_resource_build!$L:$L,raw_resource_build!$B:$B,$C546,raw_resource_build!$A:$A,T$542)","v":0},{"$f":"SUMIFS(raw_resource_build!$L:$L,raw_resource_build!$B:$B,$C546,raw_resource_build!$A:$A,U$542)","v":0},{"$f":"SUMIFS(raw_resource_build!$L:$L,raw_resource_build!$B:$B,$C546,raw_resource_build!$A:$A,V$542)","v":0},{"$f":"SUMIFS(raw_resource_build!$L:$L,raw_resource_build!$B:$B,$C546,raw_resource_build!$A:$A,W$542)","v":0},{"$f":"SUMIFS(raw_resource_build!$L:$L,raw_resource_build!$B:$B,$C546,raw_resource_build!$A:$A,X$542)","v":0},{"$f":"SUMIFS(raw_resource_build!$L:$L,raw_resource_build!$B:$B,$C546,raw_resource_build!$A:$A,Y$542)","v":0},{"$f":"SUMIFS(raw_resource_build!$L:$L,raw_resource_build!$B:$B,$C546,raw_resource_build!$A:$A,Z$542)","v":0},{"$f":"SUMIFS(raw_resource_build!$L:$L,raw_resource_build!$B:$B,$C546,raw_resource_build!$A:$A,AA$542)","v":0},{"$f":"SUMIFS(raw_resource_build!$L:$L,raw_resource_build!$B:$B,$C546,raw_resource_build!$A:$A,AB$542)","v":0},{"$f":"SUMIFS(raw_resource_build!$L:$L,raw_resource_build!$B:$B,$C546,raw_resource_build!$A:$A,AC$542)","v":0},{"$f":"SUMIFS(raw_resource_build!$L:$L,raw_resource_build!$B:$B,$C546,raw_resource_build!$A:$A,AD$542)","v":0},{"$f":"SUMIFS(raw_resource_build!$L:$L,raw_resource_build!$B:$B,$C546,raw_resource_build!$A:$A,AE$542)","v":0},{"$f":"SUMIFS(raw_resource_build!$L:$L,raw_resource_build!$B:$B,$C546,raw_resource_build!$A:$A,AF$542)","v":0},{"$f":"SUMIFS(raw_resource_build!$L:$L,raw_resource_build!$B:$B,$C546,raw_resource_build!$A:$A,AG$542)","v":0},{"$f":"SUMIFS(raw_resource_build!$L:$L,raw_resource_build!$B:$B,$C546,raw_resource_build!$A:$A,AH$542)","v":0},{"$f":"SUMIFS(raw_resource_build!$L:$L,raw_resource_build!$B:$B,$C546,raw_resource_build!$A:$A,AI$542)","v":0},{"$f":"SUMIFS(raw_resource_build!$L:$L,raw_resource_build!$B:$B,$C546,raw_resource_build!$A:$A,AJ$542)","v":0},{"$f":"SUMIFS(raw_resource_build!$L:$L,raw_resource_build!$B:$B,$C546,raw_resource_build!$A:$A,AK$542)","v":0},{"$f":"SUMIFS(raw_resource_build!$L:$L,raw_resource_build!$B:$B,$C546,raw_resource_build!$A:$A,AL$542)","v":0},{"$f":"SUMIFS(raw_resource_build!$L:$L,raw_resource_build!$B:$B,$C546,raw_resource_build!$A:$A,AM$542)","v":0},{"$f":"SUMIFS(raw_resource_build!$L:$L,raw_resource_build!$B:$B,$C546,raw_resource_build!$A:$A,AN$542)","v":0}]
[null,null,{"$f":"Lists!B39","v":"Pacific_Northwest_Geothermal"},"N/A",{"$f":"SUMIFS(raw_resource_build!$L:$L,raw_resource_build!$B:$B,$C547,raw_resource_build!$A:$A,E$542)","v":0},{"$f":"SUMIFS(raw_resource_build!$L:$L,raw_resource_build!$B:$B,$C547,raw_resource_build!$A:$A,F$542)","v":0},{"$f":"SUMIFS(raw_resource_build!$L:$L,raw_resource_build!$B:$B,$C547,raw_resource_build!$A:$A,G$542)","v":0},{"$f":"SUMIFS(raw_resource_build!$L:$L,raw_resource_build!$B:$B,$C547,raw_resource_build!$A:$A,H$542)","v":0},{"$f":"SUMIFS(raw_resource_build!$L:$L,raw_resource_build!$B:$B,$C547,raw_resource_build!$A:$A,I$542)","v":0},{"$f":"SUMIFS(raw_resource_build!$L:$L,raw_resource_build!$B:$B,$C547,raw_resource_build!$A:$A,J$542)","v":0},{"$f":"SUMIFS(raw_resource_build!$L:$L,raw_resource_build!$B:$B,$C547,raw_resource_build!$A:$A,K$542)","v":0},{"$f":"SUMIFS(raw_resource_build!$L:$L,raw_resource_build!$B:$B,$C547,raw_resource_build!$A:$A,L$542)","v":0},{"$f":"SUMIFS(raw_resource_build!$L:$L,raw_resource_build!$B:$B,$C547,raw_resource_build!$A:$A,M$542)","v":0},{"$f":"SUMIFS(raw_resource_build!$L:$L,raw_resource_build!$B:$B,$C547,raw_resource_build!$A:$A,N$542)","v":0},{"$f":"SUMIFS(raw_resource_build!$L:$L,raw_resource_build!$B:$B,$C547,raw_resource_build!$A:$A,O$542)","v":0},{"$f":"SUMIFS(raw_resource_build!$L:$L,raw_resource_build!$B:$B,$C547,raw_resource_build!$A:$A,P$542)","v":0},{"$f":"SUMIFS(raw_resource_build!$L:$L,raw_resource_build!$B:$B,$C547,raw_resource_build!$A:$A,Q$542)","v":0},{"$f":"SUMIFS(raw_resource_build!$L:$L,raw_resource_build!$B:$B,$C547,raw_resource_build!$A:$A,R$542)","v":0},{"$f":"SUMIFS(raw_resource_build!$L:$L,raw_resource_build!$B:$B,$C547,raw_resource_build!$A:$A,S$542)","v":0},{"$f":"SUMIFS(raw_resource_build!$L:$L,raw_resource_build!$B:$B,$C547,raw_resource_build!$A:$A,T$542)","v":0},{"$f":"SUMIFS(raw_resource_build!$L:$L,raw_resource_build!$B:$B,$C547,raw_resource_build!$A:$A,U$542)","v":0},{"$f":"SUMIFS(raw_resource_build!$L:$L,raw_resource_build!$B:$B,$C547,raw_resource_build!$A:$A,V$542)","v":0},{"$f":"SUMIFS(raw_resource_build!$L:$L,raw_resource_build!$B:$B,$C547,raw_resource_build!$A:$A,W$542)","v":0},{"$f":"SUMIFS(raw_resource_build!$L:$L,raw_resource_build!$B:$B,$C547,raw_resource_build!$A:$A,X$542)","v":0},{"$f":"SUMIFS(raw_resource_build!$L:$L,raw_resource_build!$B:$B,$C547,raw_resource_build!$A:$A,Y$542)","v":0},{"$f":"SUMIFS(raw_resource_build!$L:$L,raw_resource_build!$B:$B,$C547,raw_resource_build!$A:$A,Z$542)","v":0},{"$f":"SUMIFS(raw_resource_build!$L:$L,raw_resource_build!$B:$B,$C547,raw_resource_build!$A:$A,AA$542)","v":0},{"$f":"SUMIFS(raw_resource_build!$L:$L,raw_resource_build!$B:$B,$C547,raw_resource_build!$A:$A,AB$542)","v":0},{"$f":"SUMIFS(raw_resource_build!$L:$L,raw_resource_build!$B:$B,$C547,raw_resource_build!$A:$A,AC$542)","v":0},{"$f":"SUMIFS(raw_resource_build!$L:$L,raw_resource_build!$B:$B,$C547,raw_resource_build!$A:$A,AD$542)","v":0},{"$f":"SUMIFS(raw_resource_build!$L:$L,raw_resource_build!$B:$B,$C547,raw_resource_build!$A:$A,AE$542)","v":0},{"$f":"SUMIFS(raw_resource_build!$L:$L,raw_resource_build!$B:$B,$C547,raw_resource_build!$A:$A,AF$542)","v":0},{"$f":"SUMIFS(raw_resource_build!$L:$L,raw_resource_build!$B:$B,$C547,raw_resource_build!$A:$A,AG$542)","v":0},{"$f":"SUMIFS(raw_resource_build!$L:$L,raw_resource_build!$B:$B,$C547,raw_resource_build!$A:$A,AH$542)","v":0},{"$f":"SUMIFS(raw_resource_build!$L:$L,raw_resource_build!$B:$B,$C547,raw_resource_build!$A:$A,AI$542)","v":0},{"$f":"SUMIFS(raw_resource_build!$L:$L,raw_resource_build!$B:$B,$C547,raw_resource_build!$A:$A,AJ$542)","v":0},{"$f":"SUMIFS(raw_resource_build!$L:$L,raw_resource_build!$B:$B,$C547,raw_resource_build!$A:$A,AK$542)","v":0},{"$f":"SUMIFS(raw_resource_build!$L:$L,raw_resource_build!$B:$B,$C547,raw_resource_build!$A:$A,AL$542)","v":0},{"$f":"SUMIFS(raw_resource_build!$L:$L,raw_resource_build!$B:$B,$C547,raw_resource_build!$A:$A,AM$542)","v":0},{"$f":"SUMIFS(raw_resource_build!$L:$L,raw_resource_build!$B:$B,$C547,raw_resource_build!$A:$A,AN$542)","v":0}]
[null,null,{"$f":"Lists!B40","v":"Riverside_Palm_Springs_Geothermal"},"SCADSNV-Riverside_Palm_Springs",{"$f":"SUMIFS(raw_resource_build!$L:$L,raw_resource_build!$B:$B,$C548,raw_resource_build!$A:$A,E$542)","v":0},{"$f":"SUMIFS(raw_resource_build!$L:$L,raw_resource_build!$B:$B,$C548,raw_resource_build!$A:$A,F$542)","v":0},{"$f":"SUMIFS(raw_resource_build!$L:$L,raw_resource_build!$B:$B,$C548,raw_resource_build!$A:$A,G$542)","v":0},{"$f":"SUMIFS(raw_resource_build!$L:$L,raw_resource_build!$B:$B,$C548,raw_resource_build!$A:$A,H$542)","v":0},{"$f":"SUMIFS(raw_resource_build!$L:$L,raw_resource_build!$B:$B,$C548,raw_resource_build!$A:$A,I$542)","v":0},{"$f":"SUMIFS(raw_resource_build!$L:$L,raw_resource_build!$B:$B,$C548,raw_resource_build!$A:$A,J$542)","v":0},{"$f":"SUMIFS(raw_resource_build!$L:$L,raw_resource_build!$B:$B,$C548,raw_resource_build!$A:$A,K$542)","v":0},{"$f":"SUMIFS(raw_resource_build!$L:$L,raw_resource_build!$B:$B,$C548,raw_resource_build!$A:$A,L$542)","v":0},{"$f":"SUMIFS(raw_resource_build!$L:$L,raw_resource_build!$B:$B,$C548,raw_resource_build!$A:$A,M$542)","v":0},{"$f":"SUMIFS(raw_resource_build!$L:$L,raw_resource_build!$B:$B,$C548,raw_resource_build!$A:$A,N$542)","v":0},{"$f":"SUMIFS(raw_resource_build!$L:$L,raw_resource_build!$B:$B,$C548,raw_resource_build!$A:$A,O$542)","v":0},{"$f":"SUMIFS(raw_resource_build!$L:$L,raw_resource_build!$B:$B,$C548,raw_resource_build!$A:$A,P$542)","v":0},{"$f":"SUMIFS(raw_resource_build!$L:$L,raw_resource_build!$B:$B,$C548,raw_resource_build!$A:$A,Q$542)","v":0},{"$f":"SUMIFS(raw_resource_build!$L:$L,raw_resource_build!$B:$B,$C548,raw_resource_build!$A:$A,R$542)","v":0},{"$f":"SUMIFS(raw_resource_build!$L:$L,raw_resource_build!$B:$B,$C548,raw_resource_build!$A:$A,S$542)","v":0},{"$f":"SUMIFS(raw_resource_build!$L:$L,raw_resource_build!$B:$B,$C548,raw_resource_build!$A:$A,T$542)","v":0},{"$f":"SUMIFS(raw_resource_build!$L:$L,raw_resource_build!$B:$B,$C548,raw_resource_build!$A:$A,U$542)","v":0},{"$f":"SUMIFS(raw_resource_build!$L:$L,raw_resource_build!$B:$B,$C548,raw_resource_build!$A:$A,V$542)","v":0},{"$f":"SUMIFS(raw_resource_build!$L:$L,raw_resource_build!$B:$B,$C548,raw_resource_build!$A:$A,W$542)","v":0},{"$f":"SUMIFS(raw_resource_build!$L:$L,raw_resource_build!$B:$B,$C548,raw_resource_build!$A:$A,X$542)","v":0},{"$f":"SUMIFS(raw_resource_build!$L:$L,raw_resource_build!$B:$B,$C548,raw_resource_build!$A:$A,Y$542)","v":0},{"$f":"SUMIFS(raw_resource_build!$L:$L,raw_resource_build!$B:$B,$C548,raw_resource_build!$A:$A,Z$542)","v":0},{"$f":"SUMIFS(raw_resource_build!$L:$L,raw_resource_build!$B:$B,$C548,raw_resource_build!$A:$A,AA$542)","v":0},{"$f":"SUMIFS(raw_resource_build!$L:$L,raw_resource_build!$B:$B,$C548,raw_resource_build!$A:$A,AB$542)","v":0},{"$f":"SUMIFS(raw_resource_build!$L:$L,raw_resource_build!$B:$B,$C548,raw_resource_build!$A:$A,AC$542)","v":0},{"$f":"SUMIFS(raw_resource_build!$L:$L,raw_resource_build!$B:$B,$C548,raw_resource_build!$A:$A,AD$542)","v":0},{"$f":"SUMIFS(raw_resource_build!$L:$L,raw_resource_build!$B:$B,$C548,raw_resource_build!$A:$A,AE$542)","v":0},{"$f":"SUMIFS(raw_resource_build!$L:$L,raw_resource_build!$B:$B,$C548,raw_resource_build!$A:$A,AF$542)","v":0},{"$f":"SUMIFS(raw_resource_build!$L:$L,raw_resource_build!$B:$B,$C548,raw_resource_build!$A:$A,AG$542)","v":0},{"$f":"SUMIFS(raw_resource_build!$L:$L,raw_resource_build!$B:$B,$C548,raw_resource_build!$A:$A,AH$542)","v":0},{"$f":"SUMIFS(raw_resource_build!$L:$L,raw_resource_build!$B:$B,$C548,raw_resource_build!$A:$A,AI$542)","v":0},{"$f":"SUMIFS(raw_resource_build!$L:$L,raw_resource_build!$B:$B,$C548,raw_resource_build!$A:$A,AJ$542)","v":0},{"$f":"SUMIFS(raw_resource_build!$L:$L,raw_resource_build!$B:$B,$C548,raw_resource_build!$A:$A,AK$542)","v":0},{"$f":"SUMIFS(raw_resource_build!$L:$L,raw_resource_build!$B:$B,$C548,raw_resource_build!$A:$A,AL$542)","v":0},{"$f":"SUMIFS(raw_resource_build!$L:$L,raw_resource_build!$B:$B,$C548,raw_resource_build!$A:$A,AM$542)","v":0},{"$f":"SUMIFS(raw_resource_build!$L:$L,raw_resource_build!$B:$B,$C548,raw_resource_build!$A:$A,AN$542)","v":0}]
[null,null,{"$f":"Lists!B41","v":"Solano_Geothermal"},"Solano-Sacramento_River",{"$f":"SUMIFS(raw_resource_build!$L:$L,raw_resource_build!$B:$B,$C549,raw_resource_build!$A:$A,E$542)","v":0},{"$f":"SUMIFS(raw_resource_build!$L:$L,raw_resource_build!$B:$B,$C549,raw_resource_build!$A:$A,F$542)","v":0},{"$f":"SUMIFS(raw_resource_build!$L:$L,raw_resource_build!$B:$B,$C549,raw_resource_build!$A:$A,G$542)","v":0},{"$f":"SUMIFS(raw_resource_build!$L:$L,raw_resource_build!$B:$B,$C549,raw_resource_build!$A:$A,H$542)","v":0},{"$f":"SUMIFS(raw_resource_build!$L:$L,raw_resource_build!$B:$B,$C549,raw_resource_build!$A:$A,I$542)","v":0},{"$f":"SUMIFS(raw_resource_build!$L:$L,raw_resource_build!$B:$B,$C549,raw_resource_build!$A:$A,J$542)","v":0},{"$f":"SUMIFS(raw_resource_build!$L:$L,raw_resource_build!$B:$B,$C549,raw_resource_build!$A:$A,K$542)","v":0},{"$f":"SUMIFS(raw_resource_build!$L:$L,raw_resource_build!$B:$B,$C549,raw_resource_build!$A:$A,L$542)","v":0},{"$f":"SUMIFS(raw_resource_build!$L:$L,raw_resource_build!$B:$B,$C549,raw_resource_build!$A:$A,M$542)","v":0},{"$f":"SUMIFS(raw_resource_build!$L:$L,raw_resource_build!$B:$B,$C549,raw_resource_build!$A:$A,N$542)","v":0},{"$f":"SUMIFS(raw_resource_build!$L:$L,raw_resource_build!$B:$B,$C549,raw_resource_build!$A:$A,O$542)","v":0},{"$f":"SUMIFS(raw_resource_build!$L:$L,raw_resource_build!$B:$B,$C549,raw_resource_build!$A:$A,P$542)","v":0},{"$f":"SUMIFS(raw_resource_build!$L:$L,raw_resource_build!$B:$B,$C549,raw_resource_build!$A:$A,Q$542)","v":0},{"$f":"SUMIFS(raw_resource_build!$L:$L,raw_resource_build!$B:$B,$C549,raw_resource_build!$A:$A,R$542)","v":0},{"$f":"SUMIFS(raw_resource_build!$L:$L,raw_resource_build!$B:$B,$C549,raw_resource_build!$A:$A,S$542)","v":0},{"$f":"SUMIFS(raw_resource_build!$L:$L,raw_resource_build!$B:$B,$C549,raw_resource_build!$A:$A,T$542)","v":0},{"$f":"SUMIFS(raw_resource_build!$L:$L,raw_resource_build!$B:$B,$C549,raw_resource_build!$A:$A,U$542)","v":0},{"$f":"SUMIFS(raw_resource_build!$L:$L,raw_resource_build!$B:$B,$C549,raw_resource_build!$A:$A,V$542)","v":0},{"$f":"SUMIFS(raw_resource_build!$L:$L,raw_resource_build!$B:$B,$C549,raw_resource_build!$A:$A,W$542)","v":0},{"$f":"SUMIFS(raw_resource_build!$L:$L,raw_resource_build!$B:$B,$C549,raw_resource_build!$A:$A,X$542)","v":0},{"$f":"SUMIFS(raw_resource_build!$L:$L,raw_resource_build!$B:$B,$C549,raw_resource_build!$A:$A,Y$542)","v":0},{"$f":"SUMIFS(raw_resource_build!$L:$L,raw_resource_build!$B:$B,$C549,raw_resource_build!$A:$A,Z$542)","v":0},{"$f":"SUMIFS(raw_resource_build!$L:$L,raw_resource_build!$B:$B,$C549,raw_resource_build!$A:$A,AA$542)","v":0},{"$f":"SUMIFS(raw_resource_build!$L:$L,raw_resource_build!$B:$B,$C549,raw_resource_build!$A:$A,AB$542)","v":0},{"$f":"SUMIFS(raw_resource_build!$L:$L,raw_resource_build!$B:$B,$C549,raw_resource_build!$A:$A,AC$542)","v":0},{"$f":"SUMIFS(raw_resource_build!$L:$L,raw_resource_build!$B:$B,$C549,raw_resource_build!$A:$A,AD$542)","v":0},{"$f":"SUMIFS(raw_resource_build!$L:$L,raw_resource_build!$B:$B,$C549,raw_resource_build!$A:$A,AE$542)","v":0},{"$f":"SUMIFS(raw_resource_build!$L:$L,raw_resource_build!$B:$B,$C549,raw_resource_build!$A:$A,AF$542)","v":0},{"$f":"SUMIFS(raw_resource_build!$L:$L,raw_resource_build!$B:$B,$C549,raw_resource_build!$A:$A,AG$542)","v":0},{"$f":"SUMIFS(raw_resource_build!$L:$L,raw_resource_build!$B:$B,$C549,raw_resource_build!$A:$A,AH$542)","v":0},{"$f":"SUMIFS(raw_resource_build!$L:$L,raw_resource_build!$B:$B,$C549,raw_resource_build!$A:$A,AI$542)","v":0},{"$f":"SUMIFS(raw_resource_build!$L:$L,raw_resource_build!$B:$B,$C549,raw_resource_build!$A:$A,AJ$542)","v":0},{"$f":"SUMIFS(raw_resource_build!$L:$L,raw_resource_build!$B:$B,$C549,raw_resource_build!$A:$A,AK$542)","v":0},{"$f":"SUMIFS(raw_resource_build!$L:$L,raw_resource_build!$B:$B,$C549,raw_resource_build!$A:$A,AL$542)","v":0},{"$f":"SUMIFS(raw_resource_build!$L:$L,raw_resource_build!$B:$B,$C549,raw_resource_build!$A:$A,AM$542)","v":0},{"$f":"SUMIFS(raw_resource_build!$L:$L,raw_resource_build!$B:$B,$C549,raw_resource_build!$A:$A,AN$542)","v":0}]
[null,null,{"$f":"Lists!B42","v":"Southern_Nevada_Geothermal"},"SCADSNV-Mountain_Pass_El_Dorado",{"$f":"SUMIFS(raw_resource_build!$L:$L,raw_resource_build!$B:$B,$C550,raw_resource_build!$A:$A,E$542)","v":0},{"$f":"SUMIFS(raw_resource_build!$L:$L,raw_resource_build!$B:$B,$C550,raw_resource_build!$A:$A,F$542)","v":0},{"$f":"SUMIFS(raw_resource_build!$L:$L,raw_resource_build!$B:$B,$C550,raw_resource_build!$A:$A,G$542)","v":0},{"$f":"SUMIFS(raw_resource_build!$L:$L,raw_resource_build!$B:$B,$C550,raw_resource_build!$A:$A,H$542)","v":0},{"$f":"SUMIFS(raw_resource_build!$L:$L,raw_resource_build!$B:$B,$C550,raw_resource_build!$A:$A,I$542)","v":0},{"$f":"SUMIFS(raw_resource_build!$L:$L,raw_resource_build!$B:$B,$C550,raw_resource_build!$A:$A,J$542)","v":0},{"$f":"SUMIFS(raw_resource_build!$L:$L,raw_resource_build!$B:$B,$C550,raw_resource_build!$A:$A,K$542)","v":0},{"$f":"SUMIFS(raw_resource_build!$L:$L,raw_resource_build!$B:$B,$C550,raw_resource_build!$A:$A,L$542)","v":0},{"$f":"SUMIFS(raw_resource_build!$L:$L,raw_resource_build!$B:$B,$C550,raw_resource_build!$A:$A,M$542)","v":0},{"$f":"SUMIFS(raw_resource_build!$L:$L,raw_resource_build!$B:$B,$C550,raw_resource_build!$A:$A,N$542)","v":0},{"$f":"SUMIFS(raw_resource_build!$L:$L,raw_resource_build!$B:$B,$C550,raw_resource_build!$A:$A,O$542)","v":0},{"$f":"SUMIFS(raw_resource_build!$L:$L,raw_resource_build!$B:$B,$C550,raw_resource_build!$A:$A,P$542)","v":0},{"$f":"SUMIFS(raw_resource_build!$L:$L,raw_resource_build!$B:$B,$C550,raw_resource_build!$A:$A,Q$542)","v":0},{"$f":"SUMIFS(raw_resource_build!$L:$L,raw_resource_build!$B:$B,$C550,raw_resource_build!$A:$A,R$542)","v":0},{"$f":"SUMIFS(raw_resource_build!$L:$L,raw_resource_build!$B:$B,$C550,raw_resource_build!$A:$A,S$542)","v":0},{"$f":"SUMIFS(raw_resource_build!$L:$L,raw_resource_build!$B:$B,$C550,raw_resource_build!$A:$A,T$542)","v":0},{"$f":"SUMIFS(raw_resource_build!$L:$L,raw_resource_build!$B:$B,$C550,raw_resource_build!$A:$A,U$542)","v":0},{"$f":"SUMIFS(raw_resource_build!$L:$L,raw_resource_build!$B:$B,$C550,raw_resource_build!$A:$A,V$542)","v":0},{"$f":"SUMIFS(raw_resource_build!$L:$L,raw_resource_build!$B:$B,$C550,raw_resource_build!$A:$A,W$542)","v":0},{"$f":"SUMIFS(raw_resource_build!$L:$L,raw_resource_build!$B:$B,$C550,raw_resource_build!$A:$A,X$542)","v":0},{"$f":"SUMIFS(raw_resource_build!$L:$L,raw_resource_build!$B:$B,$C550,raw_resource_build!$A:$A,Y$542)","v":0},{"$f":"SUMIFS(raw_resource_build!$L:$L,raw_resource_build!$B:$B,$C550,raw_resource_build!$A:$A,Z$542)","v":0},{"$f":"SUMIFS(raw_resource_build!$L:$L,raw_resource_build!$B:$B,$C550,raw_resource_build!$A:$A,AA$542)","v":0},{"$f":"SUMIFS(raw_resource_build!$L:$L,raw_resource_build!$B:$B,$C550,raw_resource_build!$A:$A,AB$542)","v":0},{"$f":"SUMIFS(raw_resource_build!$L:$L,raw_resource_build!$B:$B,$C550,raw_resource_build!$A:$A,AC$542)","v":0},{"$f":"SUMIFS(raw_resource_build!$L:$L,raw_resource_build!$B:$B,$C550,raw_resource_build!$A:$A,AD$542)","v":0},{"$f":"SUMIFS(raw_resource_build!$L:$L,raw_resource_build!$B:$B,$C550,raw_resource_build!$A:$A,AE$542)","v":0},{"$f":"SUMIFS(raw_resource_build!$L:$L,raw_resource_build!$B:$B,$C550,raw_resource_build!$A:$A,AF$542)","v":0},{"$f":"SUMIFS(raw_resource_build!$L:$L,raw_resource_build!$B:$B,$C550,raw_resource_build!$A:$A,AG$542)","v":0},{"$f":"SUMIFS(raw_resource_build!$L:$L,raw_resource_build!$B:$B,$C550,raw_resource_build!$A:$A,AH$542)","v":0},{"$f":"SUMIFS(raw_resource_build!$L:$L,raw_resource_build!$B:$B,$C550,raw_resource_build!$A:$A,AI$542)","v":0},{"$f":"SUMIFS(raw_resource_build!$L:$L,raw_resource_build!$B:$B,$C550,raw_resource_build!$A:$A,AJ$542)","v":0},{"$f":"SUMIFS(raw_resource_build!$L:$L,raw_resource_build!$B:$B,$C550,raw_resource_build!$A:$A,AK$542)","v":0},{"$f":"SUMIFS(raw_resource_build!$L:$L,raw_resource_build!$B:$B,$C550,raw_resource_build!$A:$A,AL$542)","v":0},{"$f":"SUMIFS(raw_resource_build!$L:$L,raw_resource_build!$B:$B,$C550,raw_resource_build!$A:$A,AM$542)","v":0},{"$f":"SUMIFS(raw_resource_build!$L:$L,raw_resource_build!$B:$B,$C550,raw_resource_build!$A:$A,AN$542)","v":0}]
[null,null,{"$f":"Lists!B43","v":"Carrizo_Solar"},"Kern_Greater_Carrizo-SPGE-Carrizo",{"$f":"SUMIFS(raw_resource_build!$L:$L,raw_resource_build!$B:$B,$C551,raw_resource_build!$A:$A,E$542)","v":0},{"$f":"SUMIFS(raw_resource_build!$L:$L,raw_resource_build!$B:$B,$C551,raw_resource_build!$A:$A,F$542)","v":0},{"$f":"SUMIFS(raw_resource_build!$L:$L,raw_resource_build!$B:$B,$C551,raw_resource_build!$A:$A,G$542)","v":0},{"$f":"SUMIFS(raw_resource_build!$L:$L,raw_resource_build!$B:$B,$C551,raw_resource_build!$A:$A,H$542)","v":0},{"$f":"SUMIFS(raw_resource_build!$L:$L,raw_resource_build!$B:$B,$C551,raw_resource_build!$A:$A,I$542)","v":0},{"$f":"SUMIFS(raw_resource_build!$L:$L,raw_resource_build!$B:$B,$C551,raw_resource_build!$A:$A,J$542)","v":0},{"$f":"SUMIFS(raw_resource_build!$L:$L,raw_resource_build!$B:$B,$C551,raw_resource_build!$A:$A,K$542)","v":0},{"$f":"SUMIFS(raw_resource_build!$L:$L,raw_resource_build!$B:$B,$C551,raw_resource_build!$A:$A,L$542)","v":0},{"$f":"SUMIFS(raw_resource_build!$L:$L,raw_resource_build!$B:$B,$C551,raw_resource_build!$A:$A,M$542)","v":0},{"$f":"SUMIFS(raw_resource_build!$L:$L,raw_resource_build!$B:$B,$C551,raw_resource_build!$A:$A,N$542)","v":0},{"$f":"SUMIFS(raw_resource_build!$L:$L,raw_resource_build!$B:$B,$C551,raw_resource_build!$A:$A,O$542)","v":0},{"$f":"SUMIFS(raw_resource_build!$L:$L,raw_resource_build!$B:$B,$C551,raw_resource_build!$A:$A,P$542)","v":0},{"$f":"SUMIFS(raw_resource_build!$L:$L,raw_resource_build!$B:$B,$C551,raw_resource_build!$A:$A,Q$542)","v":0},{"$f":"SUMIFS(raw_resource_build!$L:$L,raw_resource_build!$B:$B,$C551,raw_resource_build!$A:$A,R$542)","v":0},{"$f":"SUMIFS(raw_resource_build!$L:$L,raw_resource_build!$B:$B,$C551,raw_resource_build!$A:$A,S$542)","v":0},{"$f":"SUMIFS(raw_resource_build!$L:$L,raw_resource_build!$B:$B,$C551,raw_resource_build!$A:$A,T$542)","v":0},{"$f":"SUMIFS(raw_resource_build!$L:$L,raw_resource_build!$B:$B,$C551,raw_resource_build!$A:$A,U$542)","v":0},{"$f":"SUMIFS(raw_resource_build!$L:$L,raw_resource_build!$B:$B,$C551,raw_resource_build!$A:$A,V$542)","v":0},{"$f":"SUMIFS(raw_resource_build!$L:$L,raw_resource_build!$B:$B,$C551,raw_resource_build!$A:$A,W$542)","v":0},{"$f":"SUMIFS(raw_resource_build!$L:$L,raw_resource_build!$B:$B,$C551,raw_resource_build!$A:$A,X$542)","v":0},{"$f":"SUMIFS(raw_resource_build!$L:$L,raw_resource_build!$B:$B,$C551,raw_resource_build!$A:$A,Y$542)","v":0},{"$f":"SUMIFS(raw_resource_build!$L:$L,raw_resource_build!$B:$B,$C551,raw_resource_build!$A:$A,Z$542)","v":0},{"$f":"SUMIFS(raw_resource_build!$L:$L,raw_resource_build!$B:$B,$C551,raw_resource_build!$A:$A,AA$542)","v":0},{"$f":"SUMIFS(raw_resource_build!$L:$L,raw_resource_build!$B:$B,$C551,raw_resource_build!$A:$A,AB$542)","v":0},{"$f":"SUMIFS(raw_resource_build!$L:$L,raw_resource_build!$B:$B,$C551,raw_resource_build!$A:$A,AC$542)","v":0},{"$f":"SUMIFS(raw_resource_build!$L:$L,raw_resource_build!$B:$B,$C551,raw_resource_build!$A:$A,AD$542)","v":0},{"$f":"SUMIFS(raw_resource_build!$L:$L,raw_resource_build!$B:$B,$C551,raw_resource_build!$A:$A,AE$542)","v":0},{"$f":"SUMIFS(raw_resource_build!$L:$L,raw_resource_build!$B:$B,$C551,raw_resource_build!$A:$A,AF$542)","v":0},{"$f":"SUMIFS(raw_resource_build!$L:$L,raw_resource_build!$B:$B,$C551,raw_resource_build!$A:$A,AG$542)","v":0},{"$f":"SUMIFS(raw_resource_build!$L:$L,raw_resource_build!$B:$B,$C551,raw_resource_build!$A:$A,AH$542)","v":0},{"$f":"SUMIFS(raw_resource_build!$L:$L,raw_resource_build!$B:$B,$C551,raw_resource_build!$A:$A,AI$542)","v":0},{"$f":"SUMIFS(raw_resource_build!$L:$L,raw_resource_build!$B:$B,$C551,raw_resource_build!$A:$A,AJ$542)","v":0},{"$f":"SUMIFS(raw_resource_build!$L:$L,raw_resource_build!$B:$B,$C551,raw_resource_build!$A:$A,AK$542)","v":0},{"$f":"SUMIFS(raw_resource_build!$L:$L,raw_resource_build!$B:$B,$C551,raw_resource_build!$A:$A,AL$542)","v":0},{"$f":"SUMIFS(raw_resource_build!$L:$L,raw_resource_build!$B:$B,$C551,raw_resource_build!$A:$A,AM$542)","v":0},{"$f":"SUMIFS(raw_resource_build!$L:$L,raw_resource_build!$B:$B,$C551,raw_resource_build!$A:$A,AN$542)","v":0}]
[null,null,{"$f":"Lists!B44","v":"Carrizo_Wind"},"Kern_Greater_Carrizo-SPGE-Carrizo",{"$f":"SUMIFS(raw_resource_build!$L:$L,raw_resource_build!$B:$B,$C552,raw_resource_build!$A:$A,E$542)","v":0},{"$f":"SUMIFS(raw_resource_build!$L:$L,raw_resource_build!$B:$B,$C552,raw_resource_build!$A:$A,F$542)","v":0},{"$f":"SUMIFS(raw_resource_build!$L:$L,raw_resource_build!$B:$B,$C552,raw_resource_build!$A:$A,G$542)","v":0},{"$f":"SUMIFS(raw_resource_build!$L:$L,raw_resource_build!$B:$B,$C552,raw_resource_build!$A:$A,H$542)","v":0},{"$f":"SUMIFS(raw_resource_build!$L:$L,raw_resource_build!$B:$B,$C552,raw_resource_build!$A:$A,I$542)","v":0},{"$f":"SUMIFS(raw_resource_build!$L:$L,raw_resource_build!$B:$B,$C552,raw_resource_build!$A:$A,J$542)","v":0},{"$f":"SUMIFS(raw_resource_build!$L:$L,raw_resource_build!$B:$B,$C552,raw_resource_build!$A:$A,K$542)","v":0},{"$f":"SUMIFS(raw_resource_build!$L:$L,raw_resource_build!$B:$B,$C552,raw_resource_build!$A:$A,L$542)","v":0},{"$f":"SUMIFS(raw_resource_build!$L:$L,raw_resource_build!$B:$B,$C552,raw_resource_build!$A:$A,M$542)","v":0},{"$f":"SUMIFS(raw_resource_build!$L:$L,raw_resource_build!$B:$B,$C552,raw_resource_build!$A:$A,N$542)","v":0},{"$f":"SUMIFS(raw_resource_build!$L:$L,raw_resource_build!$B:$B,$C552,raw_resource_build!$A:$A,O$542)","v":0},{"$f":"SUMIFS(raw_resource_build!$L:$L,raw_resource_build!$B:$B,$C552,raw_resource_build!$A:$A,P$542)","v":0},{"$f":"SUMIFS(raw_resource_build!$L:$L,raw_resource_build!$B:$B,$C552,raw_resource_build!$A:$A,Q$542)","v":0},{"$f":"SUMIFS(raw_resource_build!$L:$L,raw_resource_build!$B:$B,$C552,raw_resource_build!$A:$A,R$542)","v":0},{"$f":"SUMIFS(raw_resource_build!$L:$L,raw_resource_build!$B:$B,$C552,raw_resource_build!$A:$A,S$542)","v":0},{"$f":"SUMIFS(raw_resource_build!$L:$L,raw_resource_build!$B:$B,$C552,raw_resource_build!$A:$A,T$542)","v":0},{"$f":"SUMIFS(raw_resource_build!$L:$L,raw_resource_build!$B:$B,$C552,raw_resource_build!$A:$A,U$542)","v":0},{"$f":"SUMIFS(raw_resource_build!$L:$L,raw_resource_build!$B:$B,$C552,raw_resource_build!$A:$A,V$542)","v":0},{"$f":"SUMIFS(raw_resource_build!$L:$L,raw_resource_build!$B:$B,$C552,raw_resource_build!$A:$A,W$542)","v":0},{"$f":"SUMIFS(raw_resource_build!$L:$L,raw_resource_build!$B:$B,$C552,raw_resource_build!$A:$A,X$542)","v":0},{"$f":"SUMIFS(raw_resource_build!$L:$L,raw_resource_build!$B:$B,$C552,raw_resource_build!$A:$A,Y$542)","v":0},{"$f":"SUMIFS(raw_resource_build!$L:$L,raw_resource_build!$B:$B,$C552,raw_resource_build!$A:$A,Z$542)","v":0},{"$f":"SUMIFS(raw_resource_build!$L:$L,raw_resource_build!$B:$B,$C552,raw_resource_build!$A:$A,AA$542)","v":0},{"$f":"SUMIFS(raw_resource_build!$L:$L,raw_resource_build!$B:$B,$C552,raw_resource_build!$A:$A,AB$542)","v":0},{"$f":"SUMIFS(raw_resource_build!$L:$L,raw_resource_build!$B:$B,$C552,raw_resource_build!$A:$A,AC$542)","v":0},{"$f":"SUMIFS(raw_resource_build!$L:$L,raw_resource_build!$B:$B,$C552,raw_resource_build!$A:$A,AD$542)","v":0},{"$f":"SUMIFS(raw_resource_build!$L:$L,raw_resource_build!$B:$B,$C552,raw_resource_build!$A:$A,AE$542)","v":0},{"$f":"SUMIFS(raw_resource_build!$L:$L,raw_resource_build!$B:$B,$C552,raw_resource_build!$A:$A,AF$542)","v":0},{"$f":"SUMIFS(raw_resource_build!$L:$L,raw_resource_build!$B:$B,$C552,raw_resource_build!$A:$A,AG$542)","v":0},{"$f":"SUMIFS(raw_resource_build!$L:$L,raw_resource_build!$B:$B,$C552,raw_resource_build!$A:$A,AH$542)","v":0},{"$f":"SUMIFS(raw_resource_build!$L:$L,raw_resource_build!$B:$B,$C552,raw_resource_build!$A:$A,AI$542)","v":0},{"$f":"SUMIFS(raw_resource_build!$L:$L,raw_resource_build!$B:$B,$C552,raw_resource_build!$A:$A,AJ$542)","v":0},{"$f":"SUMIFS(raw_resource_build!$L:$L,raw_resource_build!$B:$B,$C552,raw_resource_build!$A:$A,AK$542)","v":0},{"$f":"SUMIFS(raw_resource_build!$L:$L,raw_resource_build!$B:$B,$C552,raw_resource_build!$A:$A,AL$542)","v":0},{"$f":"SUMIFS(raw_resource_build!$L:$L,raw_resource_build!$B:$B,$C552,raw_resource_build!$A:$A,AM$542)","v":0},{"$f":"SUMIFS(raw_resource_build!$L:$L,raw_resource_build!$B:$B,$C552,raw_resource_build!$A:$A,AN$542)","v":0}]
[null,null,{"$f":"Lists!B45","v":"Central_Valley_North_Los_Banos_Solar"},"Central_Valley_North_Los_Banos-SPGE",{"$f":"SUMIFS(raw_resource_build!$L:$L,raw_resource_build!$B:$B,$C553,raw_resource_build!$A:$A,E$542)","v":0},{"$f":"SUMIFS(raw_resource_build!$L:$L,raw_resource_build!$B:$B,$C553,raw_resource_build!$A:$A,F$542)","v":0},{"$f":"SUMIFS(raw_resource_build!$L:$L,raw_resource_build!$B:$B,$C553,raw_resource_build!$A:$A,G$542)","v":0},{"$f":"SUMIFS(raw_resource_build!$L:$L,raw_resource_build!$B:$B,$C553,raw_resource_build!$A:$A,H$542)","v":0},{"$f":"SUMIFS(raw_resource_build!$L:$L,raw_resource_build!$B:$B,$C553,raw_resource_build!$A:$A,I$542)","v":0},{"$f":"SUMIFS(raw_resource_build!$L:$L,raw_resource_build!$B:$B,$C553,raw_resource_build!$A:$A,J$542)","v":0},{"$f":"SUMIFS(raw_resource_build!$L:$L,raw_resource_build!$B:$B,$C553,raw_resource_build!$A:$A,K$542)","v":0},{"$f":"SUMIFS(raw_resource_build!$L:$L,raw_resource_build!$B:$B,$C553,raw_resource_build!$A:$A,L$542)","v":0},{"$f":"SUMIFS(raw_resource_build!$L:$L,raw_resource_build!$B:$B,$C553,raw_resource_build!$A:$A,M$542)","v":0},{"$f":"SUMIFS(raw_resource_build!$L:$L,raw_resource_build!$B:$B,$C553,raw_resource_build!$A:$A,N$542)","v":0},{"$f":"SUMIFS(raw_resource_build!$L:$L,raw_resource_build!$B:$B,$C553,raw_resource_build!$A:$A,O$542)","v":0},{"$f":"SUMIFS(raw_resource_build!$L:$L,raw_resource_build!$B:$B,$C553,raw_resource_build!$A:$A,P$542)","v":0},{"$f":"SUMIFS(raw_resource_build!$L:$L,raw_resource_build!$B:$B,$C553,raw_resource_build!$A:$A,Q$542)","v":0},{"$f":"SUMIFS(raw_resource_build!$L:$L,raw_resource_build!$B:$B,$C553,raw_resource_build!$A:$A,R$542)","v":0},{"$f":"SUMIFS(raw_resource_build!$L:$L,raw_resource_build!$B:$B,$C553,raw_resource_build!$A:$A,S$542)","v":0},{"$f":"SUMIFS(raw_resource_build!$L:$L,raw_resource_build!$B:$B,$C553,raw_resource_build!$A:$A,T$542)","v":0},{"$f":"SUMIFS(raw_resource_build!$L:$L,raw_resource_build!$B:$B,$C553,raw_resource_build!$A:$A,U$542)","v":0},{"$f":"SUMIFS(raw_resource_build!$L:$L,raw_resource_build!$B:$B,$C553,raw_resource_build!$A:$A,V$542)","v":0},{"$f":"SUMIFS(raw_resource_build!$L:$L,raw_resource_build!$B:$B,$C553,raw_resource_build!$A:$A,W$542)","v":0},{"$f":"SUMIFS(raw_resource_build!$L:$L,raw_resource_build!$B:$B,$C553,raw_resource_build!$A:$A,X$542)","v":0},{"$f":"SUMIFS(raw_resource_build!$L:$L,raw_resource_build!$B:$B,$C553,raw_resource_build!$A:$A,Y$542)","v":0},{"$f":"SUMIFS(raw_resource_build!$L:$L,raw_resource_build!$B:$B,$C553,raw_resource_build!$A:$A,Z$542)","v":0},{"$f":"SUMIFS(raw_resource_build!$L:$L,raw_resource_build!$B:$B,$C553,raw_resource_build!$A:$A,AA$542)","v":0},{"$f":"SUMIFS(raw_resource_build!$L:$L,raw_resource_build!$B:$B,$C553,raw_resource_build!$A:$A,AB$542)","v":0},{"$f":"SUMIFS(raw_resource_build!$L:$L,raw_resource_build!$B:$B,$C553,raw_resource_build!$A:$A,AC$542)","v":0},{"$f":"SUMIFS(raw_resource_build!$L:$L,raw_resource_build!$B:$B,$C553,raw_resource_build!$A:$A,AD$542)","v":0},{"$f":"SUMIFS(raw_resource_build!$L:$L,raw_resource_build!$B:$B,$C553,raw_resource_build!$A:$A,AE$542)","v":0},{"$f":"SUMIFS(raw_resource_build!$L:$L,raw_resource_build!$B:$B,$C553,raw_resource_build!$A:$A,AF$542)","v":0},{"$f":"SUMIFS(raw_resource_build!$L:$L,raw_resource_build!$B:$B,$C553,raw_resource_build!$A:$A,AG$542)","v":0},{"$f":"SUMIFS(raw_resource_build!$L:$L,raw_resource_build!$B:$B,$C553,raw_resource_build!$A:$A,AH$542)","v":0},{"$f":"SUMIFS(raw_resource_build!$L:$L,raw_resource_build!$B:$B,$C553,raw_resource_build!$A:$A,AI$542)","v":0},{"$f":"SUMIFS(raw_resource_build!$L:$L,raw_resource_build!$B:$B,$C553,raw_resource_build!$A:$A,AJ$542)","v":0},{"$f":"SUMIFS(raw_resource_build!$L:$L,raw_resource_build!$B:$B,$C553,raw_resource_build!$A:$A,AK$542)","v":0},{"$f":"SUMIFS(raw_resource_build!$L:$L,raw_resource_build!$B:$B,$C553,raw_resource_build!$A:$A,AL$542)","v":0},{"$f":"SUMIFS(raw_resource_build!$L:$L,raw_resource_build!$B:$B,$C553,raw_resource_build!$A:$A,AM$542)","v":0},{"$f":"SUMIFS(raw_resource_build!$L:$L,raw_resource_build!$B:$B,$C553,raw_resource_build!$A:$A,AN$542)","v":0}]
[null,null,{"$f":"Lists!B46","v":"Central_Valley_North_Los_Banos_Wind"},"Central_Valley_North_Los_Banos-SPGE",{"$f":"SUMIFS(raw_resource_build!$L:$L,raw_resource_build!$B:$B,$C554,raw_resource_build!$A:$A,E$542)","v":0},{"$f":"SUMIFS(raw_resource_build!$L:$L,raw_resource_build!$B:$B,$C554,raw_resource_build!$A:$A,F$542)","v":0},{"$f":"SUMIFS(raw_resource_build!$L:$L,raw_resource_build!$B:$B,$C554,raw_resource_build!$A:$A,G$542)","v":0},{"$f":"SUMIFS(raw_resource_build!$L:$L,raw_resource_build!$B:$B,$C554,raw_resource_build!$A:$A,H$542)","v":0},{"$f":"SUMIFS(raw_resource_build!$L:$L,raw_resource_build!$B:$B,$C554,raw_resource_build!$A:$A,I$542)","v":0},{"$f":"SUMIFS(raw_resource_build!$L:$L,raw_resource_build!$B:$B,$C554,raw_resource_build!$A:$A,J$542)","v":0},{"$f":"SUMIFS(raw_resource_build!$L:$L,raw_resource_build!$B:$B,$C554,raw_resource_build!$A:$A,K$542)","v":0},{"$f":"SUMIFS(raw_resource_build!$L:$L,raw_resource_build!$B:$B,$C554,raw_resource_build!$A:$A,L$542)","v":0},{"$f":"SUMIFS(raw_resource_build!$L:$L,raw_resource_build!$B:$B,$C554,raw_resource_build!$A:$A,M$542)","v":0},{"$f":"SUMIFS(raw_resource_build!$L:$L,raw_resource_build!$B:$B,$C554,raw_resource_build!$A:$A,N$542)","v":0},{"$f":"SUMIFS(raw_resource_build!$L:$L,raw_resource_build!$B:$B,$C554,raw_resource_build!$A:$A,O$542)","v":0},{"$f":"SUMIFS(raw_resource_build!$L:$L,raw_resource_build!$B:$B,$C554,raw_resource_build!$A:$A,P$542)","v":0},{"$f":"SUMIFS(raw_resource_build!$L:$L,raw_resource_build!$B:$B,$C554,raw_resource_build!$A:$A,Q$542)","v":0},{"$f":"SUMIFS(raw_resource_build!$L:$L,raw_resource_build!$B:$B,$C554,raw_resource_build!$A:$A,R$542)","v":0},{"$f":"SUMIFS(raw_resource_build!$L:$L,raw_resource_build!$B:$B,$C554,raw_resource_build!$A:$A,S$542)","v":0},{"$f":"SUMIFS(raw_resource_build!$L:$L,raw_resource_build!$B:$B,$C554,raw_resource_build!$A:$A,T$542)","v":0},{"$f":"SUMIFS(raw_resource_build!$L:$L,raw_resource_build!$B:$B,$C554,raw_resource_build!$A:$A,U$542)","v":0},{"$f":"SUMIFS(raw_resource_build!$L:$L,raw_resource_build!$B:$B,$C554,raw_resource_build!$A:$A,V$542)","v":0},{"$f":"SUMIFS(raw_resource_build!$L:$L,raw_resource_build!$B:$B,$C554,raw_resource_build!$A:$A,W$542)","v":0},{"$f":"SUMIFS(raw_resource_build!$L:$L,raw_resource_build!$B:$B,$C554,raw_resource_build!$A:$A,X$542)","v":0},{"$f":"SUMIFS(raw_resource_build!$L:$L,raw_resource_build!$B:$B,$C554,raw_resource_build!$A:$A,Y$542)","v":0},{"$f":"SUMIFS(raw_resource_build!$L:$L,raw_resource_build!$B:$B,$C554,raw_resource_build!$A:$A,Z$542)","v":0},{"$f":"SUMIFS(raw_resource_build!$L:$L,raw_resource_build!$B:$B,$C554,raw_resource_build!$A:$A,AA$542)","v":0},{"$f":"SUMIFS(raw_resource_build!$L:$L,raw_resource_build!$B:$B,$C554,raw_resource_build!$A:$A,AB$542)","v":0},{"$f":"SUMIFS(raw_resource_build!$L:$L,raw_resource_build!$B:$B,$C554,raw_resource_build!$A:$A,AC$542)","v":0},{"$f":"SUMIFS(raw_resource_build!$L:$L,raw_resource_build!$B:$B,$C554,raw_resource_build!$A:$A,AD$542)","v":0},{"$f":"SUMIFS(raw_resource_build!$L:$L,raw_resource_build!$B:$B,$C554,raw_resource_build!$A:$A,AE$542)","v":0},{"$f":"SUMIFS(raw_resource_build!$L:$L,raw_resource_build!$B:$B,$C554,raw_resource_build!$A:$A,AF$542)","v":0},{"$f":"SUMIFS(raw_resource_build!$L:$L,raw_resource_build!$B:$B,$C554,raw_resource_build!$A:$A,AG$542)","v":0},{"$f":"SUMIFS(raw_resource_build!$L:$L,raw_resource_build!$B:$B,$C554,raw_resource_build!$A:$A,AH$542)","v":0},{"$f":"SUMIFS(raw_resource_build!$L:$L,raw_resource_build!$B:$B,$C554,raw_resource_build!$A:$A,AI$542)","v":0},{"$f":"SUMIFS(raw_resource_build!$L:$L,raw_resource_build!$B:$B,$C554,raw_resource_build!$A:$A,AJ$542)","v":0},{"$f":"SUMIFS(raw_resource_build!$L:$L,raw_resource_build!$B:$B,$C554,raw_resource_build!$A:$A,AK$542)","v":0},{"$f":"SUMIFS(raw_resource_build!$L:$L,raw_resource_build!$B:$B,$C554,raw_resource_build!$A:$A,AL$542)","v":0},{"$f":"SUMIFS(raw_resource_build!$L:$L,raw_resource_build!$B:$B,$C554,raw_resource_build!$A:$A,AM$542)","v":0},{"$f":"SUMIFS(raw_resource_build!$L:$L,raw_resource_build!$B:$B,$C554,raw_resource_build!$A:$A,AN$542)","v":0}]
[null,null,{"$f":"Lists!B47","v":"Distributed_Solar"},"None",{"$f":"SUMIFS(raw_resource_build!$L:$L,raw_resource_build!$B:$B,$C555,raw_resource_build!$A:$A,E$542)","v":0},{"$f":"SUMIFS(raw_resource_build!$L:$L,raw_resource_build!$B:$B,$C555,raw_resource_build!$A:$A,F$542)","v":0},{"$f":"SUMIFS(raw_resource_build!$L:$L,raw_resource_build!$B:$B,$C555,raw_resource_build!$A:$A,G$542)","v":0},{"$f":"SUMIFS(raw_resource_build!$L:$L,raw_resource_build!$B:$B,$C555,raw_resource_build!$A:$A,H$542)","v":0},{"$f":"SUMIFS(raw_resource_build!$L:$L,raw_resource_build!$B:$B,$C555,raw_resource_build!$A:$A,I$542)","v":0},{"$f":"SUMIFS(raw_resource_build!$L:$L,raw_resource_build!$B:$B,$C555,raw_resource_build!$A:$A,J$542)","v":0},{"$f":"SUMIFS(raw_resource_build!$L:$L,raw_resource_build!$B:$B,$C555,raw_resource_build!$A:$A,K$542)","v":0},{"$f":"SUMIFS(raw_resource_build!$L:$L,raw_resource_build!$B:$B,$C555,raw_resource_build!$A:$A,L$542)","v":0},{"$f":"SUMIFS(raw_resource_build!$L:$L,raw_resource_build!$B:$B,$C555,raw_resource_build!$A:$A,M$542)","v":0},{"$f":"SUMIFS(raw_resource_build!$L:$L,raw_resource_build!$B:$B,$C555,raw_resource_build!$A:$A,N$542)","v":0},{"$f":"SUMIFS(raw_resource_build!$L:$L,raw_resource_build!$B:$B,$C555,raw_resource_build!$A:$A,O$542)","v":0},{"$f":"SUMIFS(raw_resource_build!$L:$L,raw_resource_build!$B:$B,$C555,raw_resource_build!$A:$A,P$542)","v":0},{"$f":"SUMIFS(raw_resource_build!$L:$L,raw_resource_build!$B:$B,$C555,raw_resource_build!$A:$A,Q$542)","v":0},{"$f":"SUMIFS(raw_resource_build!$L:$L,raw_resource_build!$B:$B,$C555,raw_resource_build!$A:$A,R$542)","v":0},{"$f":"SUMIFS(raw_resource_build!$L:$L,raw_resource_build!$B:$B,$C555,raw_resource_build!$A:$A,S$542)","v":0},{"$f":"SUMIFS(raw_resource_build!$L:$L,raw_resource_build!$B:$B,$C555,raw_resource_build!$A:$A,T$542)","v":0},{"$f":"SUMIFS(raw_resource_build!$L:$L,raw_resource_build!$B:$B,$C555,raw_resource_build!$A:$A,U$542)","v":0},{"$f":"SUMIFS(raw_resource_build!$L:$L,raw_resource_build!$B:$B,$C555,raw_resource_build!$A:$A,V$542)","v":0},{"$f":"SUMIFS(raw_resource_build!$L:$L,raw_resource_build!$B:$B,$C555,raw_resource_build!$A:$A,W$542)","v":0},{"$f":"SUMIFS(raw_resource_build!$L:$L,raw_resource_build!$B:$B,$C555,raw_resource_build!$A:$A,X$542)","v":0},{"$f":"SUMIFS(raw_resource_build!$L:$L,raw_resource_build!$B:$B,$C555,raw_resource_build!$A:$A,Y$542)","v":0},{"$f":"SUMIFS(raw_resource_build!$L:$L,raw_resource_build!$B:$B,$C555,raw_resource_build!$A:$A,Z$542)","v":0},{"$f":"SUMIFS(raw_resource_build!$L:$L,raw_resource_build!$B:$B,$C555,raw_resource_build!$A:$A,AA$542)","v":0},{"$f":"SUMIFS(raw_resource_build!$L:$L,raw_resource_build!$B:$B,$C555,raw_resource_build!$A:$A,AB$542)","v":0},{"$f":"SUMIFS(raw_resource_build!$L:$L,raw_resource_build!$B:$B,$C555,raw_resource_build!$A:$A,AC$542)","v":0},{"$f":"SUMIFS(raw_resource_build!$L:$L,raw_resource_build!$B:$B,$C555,raw_resource_build!$A:$A,AD$542)","v":0},{"$f":"SUMIFS(raw_resource_build!$L:$L,raw_resource_build!$B:$B,$C555,raw_resource_build!$A:$A,AE$542)","v":0},{"$f":"SUMIFS(raw_resource_build!$L:$L,raw_resource_build!$B:$B,$C555,raw_resource_build!$A:$A,AF$542)","v":0},{"$f":"SUMIFS(raw_resource_build!$L:$L,raw_resource_build!$B:$B,$C555,raw_resource_build!$A:$A,AG$542)","v":0},{"$f":"SUMIFS(raw_resource_build!$L:$L,raw_resource_build!$B:$B,$C555,raw_resource_build!$A:$A,AH$542)","v":0},{"$f":"SUMIFS(raw_resource_build!$L:$L,raw_resource_build!$B:$B,$C555,raw_resource_build!$A:$A,AI$542)","v":0},{"$f":"SUMIFS(raw_resource_build!$L:$L,raw_resource_build!$B:$B,$C555,raw_resource_build!$A:$A,AJ$542)","v":0},{"$f":"SUMIFS(raw_resource_build!$L:$L,raw_resource_build!$B:$B,$C555,raw_resource_build!$A:$A,AK$542)","v":0},{"$f":"SUMIFS(raw_resource_build!$L:$L,raw_resource_build!$B:$B,$C555,raw_resource_build!$A:$A,AL$542)","v":0},{"$f":"SUMIFS(raw_resource_build!$L:$L,raw_resource_build!$B:$B,$C555,raw_resource_build!$A:$A,AM$542)","v":0},{"$f":"SUMIFS(raw_resource_build!$L:$L,raw_resource_build!$B:$B,$C555,raw_resource_build!$A:$A,AN$542)","v":0}]
[null,null,{"$f":"Lists!B48","v":"Distributed_Wind"},{"$error":"#N/A"},{"$f":"SUMIFS(raw_resource_build!$L:$L,raw_resource_build!$B:$B,$C556,raw_resource_build!$A:$A,E$542)","v":0},{"$f":"SUMIFS(raw_resource_build!$L:$L,raw_resource_build!$B:$B,$C556,raw_resource_build!$A:$A,F$542)","v":0},{"$f":"SUMIFS(raw_resource_build!$L:$L,raw_resource_build!$B:$B,$C556,raw_resource_build!$A:$A,G$542)","v":0},{"$f":"SUMIFS(raw_resource_build!$L:$L,raw_resource_build!$B:$B,$C556,raw_resource_build!$A:$A,H$542)","v":0},{"$f":"SUMIFS(raw_resource_build!$L:$L,raw_resource_build!$B:$B,$C556,raw_resource_build!$A:$A,I$542)","v":0},{"$f":"SUMIFS(raw_resource_build!$L:$L,raw_resource_build!$B:$B,$C556,raw_resource_build!$A:$A,J$542)","v":0},{"$f":"SUMIFS(raw_resource_build!$L:$L,raw_resource_build!$B:$B,$C556,raw_resource_build!$A:$A,K$542)","v":0},{"$f":"SUMIFS(raw_resource_build!$L:$L,raw_resource_build!$B:$B,$C556,raw_resource_build!$A:$A,L$542)","v":0},{"$f":"SUMIFS(raw_resource_build!$L:$L,raw_resource_build!$B:$B,$C556,raw_resource_build!$A:$A,M$542)","v":0},{"$f":"SUMIFS(raw_resource_build!$L:$L,raw_resource_build!$B:$B,$C556,raw_resource_build!$A:$A,N$542)","v":0},{"$f":"SUMIFS(raw_resource_build!$L:$L,raw_resource_build!$B:$B,$C556,raw_resource_build!$A:$A,O$542)","v":0},{"$f":"SUMIFS(raw_resource_build!$L:$L,raw_resource_build!$B:$B,$C556,raw_resource_build!$A:$A,P$542)","v":0},{"$f":"SUMIFS(raw_resource_build!$L:$L,raw_resource_build!$B:$B,$C556,raw_resource_build!$A:$A,Q$542)","v":0},{"$f":"SUMIFS(raw_resource_build!$L:$L,raw_resource_build!$B:$B,$C556,raw_resource_build!$A:$A,R$542)","v":0},{"$f":"SUMIFS(raw_resource_build!$L:$L,raw_resource_build!$B:$B,$C556,raw_resource_build!$A:$A,S$542)","v":0},{"$f":"SUMIFS(raw_resource_build!$L:$L,raw_resource_build!$B:$B,$C556,raw_resource_build!$A:$A,T$542)","v":0},{"$f":"SUMIFS(raw_resource_build!$L:$L,raw_resource_build!$B:$B,$C556,raw_resource_build!$A:$A,U$542)","v":0},{"$f":"SUMIFS(raw_resource_build!$L:$L,raw_resource_build!$B:$B,$C556,raw_resource_build!$A:$A,V$542)","v":0},{"$f":"SUMIFS(raw_resource_build!$L:$L,raw_resource_build!$B:$B,$C556,raw_resource_build!$A:$A,W$542)","v":0},{"$f":"SUMIFS(raw_resource_build!$L:$L,raw_resource_build!$B:$B,$C556,raw_resource_build!$A:$A,X$542)","v":0},{"$f":"SUMIFS(raw_resource_build!$L:$L,raw_resource_build!$B:$B,$C556,raw_resource_build!$A:$A,Y$542)","v":0},{"$f":"SUMIFS(raw_resource_build!$L:$L,raw_resource_build!$B:$B,$C556,raw_resource_build!$A:$A,Z$542)","v":0},{"$f":"SUMIFS(raw_resource_build!$L:$L,raw_resource_build!$B:$B,$C556,raw_resource_build!$A:$A,AA$542)","v":0},{"$f":"SUMIFS(raw_resource_build!$L:$L,raw_resource_build!$B:$B,$C556,raw_resource_build!$A:$A,AB$542)","v":0},{"$f":"SUMIFS(raw_resource_build!$L:$L,raw_resource_build!$B:$B,$C556,raw_resource_build!$A:$A,AC$542)","v":0},{"$f":"SUMIFS(raw_resource_build!$L:$L,raw_resource_build!$B:$B,$C556,raw_resource_build!$A:$A,AD$542)","v":0},{"$f":"SUMIFS(raw_resource_build!$L:$L,raw_resource_build!$B:$B,$C556,raw_resource_build!$A:$A,AE$542)","v":0},{"$f":"SUMIFS(raw_resource_build!$L:$L,raw_resource_build!$B:$B,$C556,raw_resource_build!$A:$A,AF$542)","v":0},{"$f":"SUMIFS(raw_resource_build!$L:$L,raw_resource_build!$B:$B,$C556,raw_resource_build!$A:$A,AG$542)","v":0},{"$f":"SUMIFS(raw_resource_build!$L:$L,raw_resource_build!$B:$B,$C556,raw_resource_build!$A:$A,AH$542)","v":0},{"$f":"SUMIFS(raw_resource_build!$L:$L,raw_resource_build!$B:$B,$C556,raw_resource_build!$A:$A,AI$542)","v":0},{"$f":"SUMIFS(raw_resource_build!$L:$L,raw_resource_build!$B:$B,$C556,raw_resource_build!$A:$A,AJ$542)","v":0},{"$f":"SUMIFS(raw_resource_build!$L:$L,raw_resource_build!$B:$B,$C556,raw_resource_build!$A:$A,AK$542)","v":0},{"$f":"SUMIFS(raw_resource_build!$L:$L,raw_resource_build!$B:$B,$C556,raw_resource_build!$A:$A,AL$542)","v":0},{"$f":"SUMIFS(raw_resource_build!$L:$L,raw_resource_build!$B:$B,$C556,raw_resource_build!$A:$A,AM$542)","v":0},{"$f":"SUMIFS(raw_resource_build!$L:$L,raw_resource_build!$B:$B,$C556,raw_resource_build!$A:$A,AN$542)","v":0}]
[null,null,{"$f":"Lists!B49","v":"Greater_Imperial_Solar"},"SCADSNV-Greater_Imperial",{"$f":"SUMIFS(raw_resource_build!$L:$L,raw_resource_build!$B:$B,$C557,raw_resource_build!$A:$A,E$542)","v":0},{"$f":"SUMIFS(raw_resource_build!$L:$L,raw_resource_build!$B:$B,$C557,raw_resource_build!$A:$A,F$542)","v":0},{"$f":"SUMIFS(raw_resource_build!$L:$L,raw_resource_build!$B:$B,$C557,raw_resource_build!$A:$A,G$542)","v":0},{"$f":"SUMIFS(raw_resource_build!$L:$L,raw_resource_build!$B:$B,$C557,raw_resource_build!$A:$A,H$542)","v":0},{"$f":"SUMIFS(raw_resource_build!$L:$L,raw_resource_build!$B:$B,$C557,raw_resource_build!$A:$A,I$542)","v":0},{"$f":"SUMIFS(raw_resource_build!$L:$L,raw_resource_build!$B:$B,$C557,raw_resource_build!$A:$A,J$542)","v":0},{"$f":"SUMIFS(raw_resource_build!$L:$L,raw_resource_build!$B:$B,$C557,raw_resource_build!$A:$A,K$542)","v":0},{"$f":"SUMIFS(raw_resource_build!$L:$L,raw_resource_build!$B:$B,$C557,raw_resource_build!$A:$A,L$542)","v":0},{"$f":"SUMIFS(raw_resource_build!$L:$L,raw_resource_build!$B:$B,$C557,raw_resource_build!$A:$A,M$542)","v":0},{"$f":"SUMIFS(raw_resource_build!$L:$L,raw_resource_build!$B:$B,$C557,raw_resource_build!$A:$A,N$542)","v":0},{"$f":"SUMIFS(raw_resource_build!$L:$L,raw_resource_build!$B:$B,$C557,raw_resource_build!$A:$A,O$542)","v":0},{"$f":"SUMIFS(raw_resource_build!$L:$L,raw_resource_build!$B:$B,$C557,raw_resource_build!$A:$A,P$542)","v":866.98},{"$f":"SUMIFS(raw_resource_build!$L:$L,raw_resource_build!$B:$B,$C557,raw_resource_build!$A:$A,Q$542)","v":0},{"$f":"SUMIFS(raw_resource_build!$L:$L,raw_resource_build!$B:$B,$C557,raw_resource_build!$A:$A,R$542)","v":0},{"$f":"SUMIFS(raw_resource_build!$L:$L,raw_resource_build!$B:$B,$C557,raw_resource_build!$A:$A,S$542)","v":0},{"$f":"SUMIFS(raw_resource_build!$L:$L,raw_resource_build!$B:$B,$C557,raw_resource_build!$A:$A,T$542)","v":866.98},{"$f":"SUMIFS(raw_resource_build!$L:$L,raw_resource_build!$B:$B,$C557,raw_resource_build!$A:$A,U$542)","v":0},{"$f":"SUMIFS(raw_resource_build!$L:$L,raw_resource_build!$B:$B,$C557,raw_resource_build!$A:$A,V$542)","v":0},{"$f":"SUMIFS(raw_resource_build!$L:$L,raw_resource_build!$B:$B,$C557,raw_resource_build!$A:$A,W$542)","v":0},{"$f":"SUMIFS(raw_resource_build!$L:$L,raw_resource_build!$B:$B,$C557,raw_resource_build!$A:$A,X$542)","v":0},{"$f":"SUMIFS(raw_resource_build!$L:$L,raw_resource_build!$B:$B,$C557,raw_resource_build!$A:$A,Y$542)","v":0},{"$f":"SUMIFS(raw_resource_build!$L:$L,raw_resource_build!$B:$B,$C557,raw_resource_build!$A:$A,Z$542)","v":0},{"$f":"SUMIFS(raw_resource_build!$L:$L,raw_resource_build!$B:$B,$C557,raw_resource_build!$A:$A,AA$542)","v":0},{"$f":"SUMIFS(raw_resource_build!$L:$L,raw_resource_build!$B:$B,$C557,raw_resource_build!$A:$A,AB$542)","v":0},{"$f":"SUMIFS(raw_resource_build!$L:$L,raw_resource_build!$B:$B,$C557,raw_resource_build!$A:$A,AC$542)","v":0},{"$f":"SUMIFS(raw_resource_build!$L:$L,raw_resource_build!$B:$B,$C557,raw_resource_build!$A:$A,AD$542)","v":0},{"$f":"SUMIFS(raw_resource_build!$L:$L,raw_resource_build!$B:$B,$C557,raw_resource_build!$A:$A,AE$542)","v":0},{"$f":"SUMIFS(raw_resource_build!$L:$L,raw_resource_build!$B:$B,$C557,raw_resource_build!$A:$A,AF$542)","v":0},{"$f":"SUMIFS(raw_resource_build!$L:$L,raw_resource_build!$B:$B,$C557,raw_resource_build!$A:$A,AG$542)","v":0},{"$f":"SUMIFS(raw_resource_build!$L:$L,raw_resource_build!$B:$B,$C557,raw_resource_build!$A:$A,AH$542)","v":0},{"$f":"SUMIFS(raw_resource_build!$L:$L,raw_resource_build!$B:$B,$C557,raw_resource_build!$A:$A,AI$542)","v":866.98},{"$f":"SUMIFS(raw_resource_build!$L:$L,raw_resource_build!$B:$B,$C557,raw_resource_build!$A:$A,AJ$542)","v":0},{"$f":"SUMIFS(raw_resource_build!$L:$L,raw_resource_build!$B:$B,$C557,raw_resource_build!$A:$A,AK$542)","v":0},{"$f":"SUMIFS(raw_resource_build!$L:$L,raw_resource_build!$B:$B,$C557,raw_resource_build!$A:$A,AL$542)","v":0},{"$f":"SUMIFS(raw_resource_build!$L:$L,raw_resource_build!$B:$B,$C557,raw_resource_build!$A:$A,AM$542)","v":0},{"$f":"SUMIFS(raw_resource_build!$L:$L,raw_resource_build!$B:$B,$C557,raw_resource_build!$A:$A,AN$542)","v":0}]
[null,null,{"$f":"Lists!B50","v":"Greater_Imperial_Wind"},"SCADSNV-Greater_Imperial",{"$f":"SUMIFS(raw_resource_build!$L:$L,raw_resource_build!$B:$B,$C558,raw_resource_build!$A:$A,E$542)","v":0},{"$f":"SUMIFS(raw_resource_build!$L:$L,raw_resource_build!$B:$B,$C558,raw_resource_build!$A:$A,F$542)","v":0},{"$f":"SUMIFS(raw_resource_build!$L:$L,raw_resource_build!$B:$B,$C558,raw_resource_build!$A:$A,G$542)","v":0},{"$f":"SUMIFS(raw_resource_build!$L:$L,raw_resource_build!$B:$B,$C558,raw_resource_build!$A:$A,H$542)","v":0},{"$f":"SUMIFS(raw_resource_build!$L:$L,raw_resource_build!$B:$B,$C558,raw_resource_build!$A:$A,I$542)","v":0},{"$f":"SUMIFS(raw_resource_build!$L:$L,raw_resource_build!$B:$B,$C558,raw_resource_build!$A:$A,J$542)","v":0},{"$f":"SUMIFS(raw_resource_build!$L:$L,raw_resource_build!$B:$B,$C558,raw_resource_build!$A:$A,K$542)","v":0},{"$f":"SUMIFS(raw_resource_build!$L:$L,raw_resource_build!$B:$B,$C558,raw_resource_build!$A:$A,L$542)","v":0},{"$f":"SUMIFS(raw_resource_build!$L:$L,raw_resource_build!$B:$B,$C558,raw_resource_build!$A:$A,M$542)","v":0},{"$f":"SUMIFS(raw_resource_build!$L:$L,raw_resource_build!$B:$B,$C558,raw_resource_build!$A:$A,N$542)","v":0},{"$f":"SUMIFS(raw_resource_build!$L:$L,raw_resource_build!$B:$B,$C558,raw_resource_build!$A:$A,O$542)","v":0},{"$f":"SUMIFS(raw_resource_build!$L:$L,raw_resource_build!$B:$B,$C558,raw_resource_build!$A:$A,P$542)","v":0},{"$f":"SUMIFS(raw_resource_build!$L:$L,raw_resource_build!$B:$B,$C558,raw_resource_build!$A:$A,Q$542)","v":0},{"$f":"SUMIFS(raw_resource_build!$L:$L,raw_resource_build!$B:$B,$C558,raw_resource_build!$A:$A,R$542)","v":0},{"$f":"SUMIFS(raw_resource_build!$L:$L,raw_resource_build!$B:$B,$C558,raw_resource_build!$A:$A,S$542)","v":0},{"$f":"SUMIFS(raw_resource_build!$L:$L,raw_resource_build!$B:$B,$C558,raw_resource_build!$A:$A,T$542)","v":0},{"$f":"SUMIFS(raw_resource_build!$L:$L,raw_resource_build!$B:$B,$C558,raw_resource_build!$A:$A,U$542)","v":0},{"$f":"SUMIFS(raw_resource_build!$L:$L,raw_resource_build!$B:$B,$C558,raw_resource_build!$A:$A,V$542)","v":0},{"$f":"SUMIFS(raw_resource_build!$L:$L,raw_resource_build!$B:$B,$C558,raw_resource_build!$A:$A,W$542)","v":0},{"$f":"SUMIFS(raw_resource_build!$L:$L,raw_resource_build!$B:$B,$C558,raw_resource_build!$A:$A,X$542)","v":0},{"$f":"SUMIFS(raw_resource_build!$L:$L,raw_resource_build!$B:$B,$C558,raw_resource_build!$A:$A,Y$542)","v":0},{"$f":"SUMIFS(raw_resource_build!$L:$L,raw_resource_build!$B:$B,$C558,raw_resource_build!$A:$A,Z$542)","v":0},{"$f":"SUMIFS(raw_resource_build!$L:$L,raw_resource_build!$B:$B,$C558,raw_resource_build!$A:$A,AA$542)","v":0},{"$f":"SUMIFS(raw_resource_build!$L:$L,raw_resource_build!$B:$B,$C558,raw_resource_build!$A:$A,AB$542)","v":0},{"$f":"SUMIFS(raw_resource_build!$L:$L,raw_resource_build!$B:$B,$C558,raw_resource_build!$A:$A,AC$542)","v":0},{"$f":"SUMIFS(raw_resource_build!$L:$L,raw_resource_build!$B:$B,$C558,raw_resource_build!$A:$A,AD$542)","v":0},{"$f":"SUMIFS(raw_resource_build!$L:$L,raw_resource_build!$B:$B,$C558,raw_resource_build!$A:$A,AE$542)","v":0},{"$f":"SUMIFS(raw_resource_build!$L:$L,raw_resource_build!$B:$B,$C558,raw_resource_build!$A:$A,AF$542)","v":0},{"$f":"SUMIFS(raw_resource_build!$L:$L,raw_resource_build!$B:$B,$C558,raw_resource_build!$A:$A,AG$542)","v":0},{"$f":"SUMIFS(raw_resource_build!$L:$L,raw_resource_build!$B:$B,$C558,raw_resource_build!$A:$A,AH$542)","v":0},{"$f":"SUMIFS(raw_resource_build!$L:$L,raw_resource_build!$B:$B,$C558,raw_resource_build!$A:$A,AI$542)","v":0},{"$f":"SUMIFS(raw_resource_build!$L:$L,raw_resource_build!$B:$B,$C558,raw_resource_build!$A:$A,AJ$542)","v":0},{"$f":"SUMIFS(raw_resource_build!$L:$L,raw_resource_build!$B:$B,$C558,raw_resource_build!$A:$A,AK$542)","v":0},{"$f":"SUMIFS(raw_resource_build!$L:$L,raw_resource_build!$B:$B,$C558,raw_resource_build!$A:$A,AL$542)","v":0},{"$f":"SUMIFS(raw_resource_build!$L:$L,raw_resource_build!$B:$B,$C558,raw_resource_build!$A:$A,AM$542)","v":0},{"$f":"SUMIFS(raw_resource_build!$L:$L,raw_resource_build!$B:$B,$C558,raw_resource_build!$A:$A,AN$542)","v":0}]
[null,null,{"$f":"Lists!B51","v":"Greater_Kramer_Wind"},"Greater_Kramer",{"$f":"SUMIFS(raw_resource_build!$L:$L,raw_resource_build!$B:$B,$C559,raw_resource_build!$A:$A,E$542)","v":0},{"$f":"SUMIFS(raw_resource_build!$L:$L,raw_resource_build!$B:$B,$C559,raw_resource_build!$A:$A,F$542)","v":0},{"$f":"SUMIFS(raw_resource_build!$L:$L,raw_resource_build!$B:$B,$C559,raw_resource_build!$A:$A,G$542)","v":0},{"$f":"SUMIFS(raw_resource_build!$L:$L,raw_resource_build!$B:$B,$C559,raw_resource_build!$A:$A,H$542)","v":0},{"$f":"SUMIFS(raw_resource_build!$L:$L,raw_resource_build!$B:$B,$C559,raw_resource_build!$A:$A,I$542)","v":0},{"$f":"SUMIFS(raw_resource_build!$L:$L,raw_resource_build!$B:$B,$C559,raw_resource_build!$A:$A,J$542)","v":0},{"$f":"SUMIFS(raw_resource_build!$L:$L,raw_resource_build!$B:$B,$C559,raw_resource_build!$A:$A,K$542)","v":0},{"$f":"SUMIFS(raw_resource_build!$L:$L,raw_resource_build!$B:$B,$C559,raw_resource_build!$A:$A,L$542)","v":0},{"$f":"SUMIFS(raw_resource_build!$L:$L,raw_resource_build!$B:$B,$C559,raw_resource_build!$A:$A,M$542)","v":0},{"$f":"SUMIFS(raw_resource_build!$L:$L,raw_resource_build!$B:$B,$C559,raw_resource_build!$A:$A,N$542)","v":0},{"$f":"SUMIFS(raw_resource_build!$L:$L,raw_resource_build!$B:$B,$C559,raw_resource_build!$A:$A,O$542)","v":0},{"$f":"SUMIFS(raw_resource_build!$L:$L,raw_resource_build!$B:$B,$C559,raw_resource_build!$A:$A,P$542)","v":0},{"$f":"SUMIFS(raw_resource_build!$L:$L,raw_resource_build!$B:$B,$C559,raw_resource_build!$A:$A,Q$542)","v":0},{"$f":"SUMIFS(raw_resource_build!$L:$L,raw_resource_build!$B:$B,$C559,raw_resource_build!$A:$A,R$542)","v":0},{"$f":"SUMIFS(raw_resource_build!$L:$L,raw_resource_build!$B:$B,$C559,raw_resource_build!$A:$A,S$542)","v":0},{"$f":"SUMIFS(raw_resource_build!$L:$L,raw_resource_build!$B:$B,$C559,raw_resource_build!$A:$A,T$542)","v":0},{"$f":"SUMIFS(raw_resource_build!$L:$L,raw_resource_build!$B:$B,$C559,raw_resource_build!$A:$A,U$542)","v":0},{"$f":"SUMIFS(raw_resource_build!$L:$L,raw_resource_build!$B:$B,$C559,raw_resource_build!$A:$A,V$542)","v":0},{"$f":"SUMIFS(raw_resource_build!$L:$L,raw_resource_build!$B:$B,$C559,raw_resource_build!$A:$A,W$542)","v":0},{"$f":"SUMIFS(raw_resource_build!$L:$L,raw_resource_build!$B:$B,$C559,raw_resource_build!$A:$A,X$542)","v":0},{"$f":"SUMIFS(raw_resource_build!$L:$L,raw_resource_build!$B:$B,$C559,raw_resource_build!$A:$A,Y$542)","v":0},{"$f":"SUMIFS(raw_resource_build!$L:$L,raw_resource_build!$B:$B,$C559,raw_resource_build!$A:$A,Z$542)","v":0},{"$f":"SUMIFS(raw_resource_build!$L:$L,raw_resource_build!$B:$B,$C559,raw_resource_build!$A:$A,AA$542)","v":0},{"$f":"SUMIFS(raw_resource_build!$L:$L,raw_resource_build!$B:$B,$C559,raw_resource_build!$A:$A,AB$542)","v":0},{"$f":"SUMIFS(raw_resource_build!$L:$L,raw_resource_build!$B:$B,$C559,raw_resource_build!$A:$A,AC$542)","v":0},{"$f":"SUMIFS(raw_resource_build!$L:$L,raw_resource_build!$B:$B,$C559,raw_resource_build!$A:$A,AD$542)","v":0},{"$f":"SUMIFS(raw_resource_build!$L:$L,raw_resource_build!$B:$B,$C559,raw_resource_build!$A:$A,AE$542)","v":0},{"$f":"SUMIFS(raw_resource_build!$L:$L,raw_resource_build!$B:$B,$C559,raw_resource_build!$A:$A,AF$542)","v":0},{"$f":"SUMIFS(raw_resource_build!$L:$L,raw_resource_build!$B:$B,$C559,raw_resource_build!$A:$A,AG$542)","v":0},{"$f":"SUMIFS(raw_resource_build!$L:$L,raw_resource_build!$B:$B,$C559,raw_resource_build!$A:$A,AH$542)","v":0},{"$f":"SUMIFS(raw_resource_build!$L:$L,raw_resource_build!$B:$B,$C559,raw_resource_build!$A:$A,AI$542)","v":0},{"$f":"SUMIFS(raw_resource_build!$L:$L,raw_resource_build!$B:$B,$C559,raw_resource_build!$A:$A,AJ$542)","v":0},{"$f":"SUMIFS(raw_resource_build!$L:$L,raw_resource_build!$B:$B,$C559,raw_resource_build!$A:$A,AK$542)","v":0},{"$f":"SUMIFS(raw_resource_build!$L:$L,raw_resource_build!$B:$B,$C559,raw_resource_build!$A:$A,AL$542)","v":0},{"$f":"SUMIFS(raw_resource_build!$L:$L,raw_resource_build!$B:$B,$C559,raw_resource_build!$A:$A,AM$542)","v":0},{"$f":"SUMIFS(raw_resource_build!$L:$L,raw_resource_build!$B:$B,$C559,raw_resource_build!$A:$A,AN$542)","v":0}]
[null,null,{"$f":"Lists!B52","v":"Humboldt_Wind"},"Sacramento_River-Humboldt",{"$f":"SUMIFS(raw_resource_build!$L:$L,raw_resource_build!$B:$B,$C560,raw_resource_build!$A:$A,E$542)","v":0},{"$f":"SUMIFS(raw_resource_build!$L:$L,raw_resource_build!$B:$B,$C560,raw_resource_build!$A:$A,F$542)","v":0},{"$f":"SUMIFS(raw_resource_build!$L:$L,raw_resource_build!$B:$B,$C560,raw_resource_build!$A:$A,G$542)","v":0},{"$f":"SUMIFS(raw_resource_build!$L:$L,raw_resource_build!$B:$B,$C560,raw_resource_build!$A:$A,H$542)","v":0},{"$f":"SUMIFS(raw_resource_build!$L:$L,raw_resource_build!$B:$B,$C560,raw_resource_build!$A:$A,I$542)","v":0},{"$f":"SUMIFS(raw_resource_build!$L:$L,raw_resource_build!$B:$B,$C560,raw_resource_build!$A:$A,J$542)","v":0},{"$f":"SUMIFS(raw_resource_build!$L:$L,raw_resource_build!$B:$B,$C560,raw_resource_build!$A:$A,K$542)","v":34},{"$f":"SUMIFS(raw_resource_build!$L:$L,raw_resource_build!$B:$B,$C560,raw_resource_build!$A:$A,L$542)","v":34},{"$f":"SUMIFS(raw_resource_build!$L:$L,raw_resource_build!$B:$B,$C560,raw_resource_build!$A:$A,M$542)","v":34},{"$f":"SUMIFS(raw_resource_build!$L:$L,raw_resource_build!$B:$B,$C560,raw_resource_build!$A:$A,N$542)","v":34},{"$f":"SUMIFS(raw_resource_build!$L:$L,raw_resource_build!$B:$B,$C560,raw_resource_build!$A:$A,O$542)","v":0},{"$f":"SUMIFS(raw_resource_build!$L:$L,raw_resource_build!$B:$B,$C560,raw_resource_build!$A:$A,P$542)","v":34},{"$f":"SUMIFS(raw_resource_build!$L:$L,raw_resource_build!$B:$B,$C560,raw_resource_build!$A:$A,Q$542)","v":0},{"$f":"SUMIFS(raw_resource_build!$L:$L,raw_resource_build!$B:$B,$C560,raw_resource_build!$A:$A,R$542)","v":0},{"$f":"SUMIFS(raw_resource_build!$L:$L,raw_resource_build!$B:$B,$C560,raw_resource_build!$A:$A,S$542)","v":0},{"$f":"SUMIFS(raw_resource_build!$L:$L,raw_resource_build!$B:$B,$C560,raw_resource_build!$A:$A,T$542)","v":34},{"$f":"SUMIFS(raw_resource_build!$L:$L,raw_resource_build!$B:$B,$C560,raw_resource_build!$A:$A,U$542)","v":0},{"$f":"SUMIFS(raw_resource_build!$L:$L,raw_resource_build!$B:$B,$C560,raw_resource_build!$A:$A,V$542)","v":0},{"$f":"SUMIFS(raw_resource_build!$L:$L,raw_resource_build!$B:$B,$C560,raw_resource_build!$A:$A,W$542)","v":0},{"$f":"SUMIFS(raw_resource_build!$L:$L,raw_resource_build!$B:$B,$C560,raw_resource_build!$A:$A,X$542)","v":0},{"$f":"SUMIFS(raw_resource_build!$L:$L,raw_resource_build!$B:$B,$C560,raw_resource_build!$A:$A,Y$542)","v":0},{"$f":"SUMIFS(raw_resource_build!$L:$L,raw_resource_build!$B:$B,$C560,raw_resource_build!$A:$A,Z$542)","v":0},{"$f":"SUMIFS(raw_resource_build!$L:$L,raw_resource_build!$B:$B,$C560,raw_resource_build!$A:$A,AA$542)","v":0},{"$f":"SUMIFS(raw_resource_build!$L:$L,raw_resource_build!$B:$B,$C560,raw_resource_build!$A:$A,AB$542)","v":0},{"$f":"SUMIFS(raw_resource_build!$L:$L,raw_resource_build!$B:$B,$C560,raw_resource_build!$A:$A,AC$542)","v":0},{"$f":"SUMIFS(raw_resource_build!$L:$L,raw_resource_build!$B:$B,$C560,raw_resource_build!$A:$A,AD$542)","v":0},{"$f":"SUMIFS(raw_resource_build!$L:$L,raw_resource_build!$B:$B,$C560,raw_resource_build!$A:$A,AE$542)","v":0},{"$f":"SUMIFS(raw_resource_build!$L:$L,raw_resource_build!$B:$B,$C560,raw_resource_build!$A:$A,AF$542)","v":0},{"$f":"SUMIFS(raw_resource_build!$L:$L,raw_resource_build!$B:$B,$C560,raw_resource_build!$A:$A,AG$542)","v":0},{"$f":"SUMIFS(raw_resource_build!$L:$L,raw_resource_build!$B:$B,$C560,raw_resource_build!$A:$A,AH$542)","v":0},{"$f":"SUMIFS(raw_resource_build!$L:$L,raw_resource_build!$B:$B,$C560,raw_resource_build!$A:$A,AI$542)","v":34},{"$f":"SUMIFS(raw_resource_build!$L:$L,raw_resource_build!$B:$B,$C560,raw_resource_build!$A:$A,AJ$542)","v":0},{"$f":"SUMIFS(raw_resource_build!$L:$L,raw_resource_build!$B:$B,$C560,raw_resource_build!$A:$A,AK$542)","v":0},{"$f":"SUMIFS(raw_resource_build!$L:$L,raw_resource_build!$B:$B,$C560,raw_resource_build!$A:$A,AL$542)","v":0},{"$f":"SUMIFS(raw_resource_build!$L:$L,raw_resource_build!$B:$B,$C560,raw_resource_build!$A:$A,AM$542)","v":0},{"$f":"SUMIFS(raw_resource_build!$L:$L,raw_resource_build!$B:$B,$C560,raw_resource_build!$A:$A,AN$542)","v":0}]
[null,null,{"$f":"Lists!B53","v":"Inyokern_North_Kramer_Solar"},"Inyokern_North_Kramer-Greater_Kramer",{"$f":"SUMIFS(raw_resource_build!$L:$L,raw_resource_build!$B:$B,$C561,raw_resource_build!$A:$A,E$542)","v":0},{"$f":"SUMIFS(raw_resource_build!$L:$L,raw_resource_build!$B:$B,$C561,raw_resource_build!$A:$A,F$542)","v":0},{"$f":"SUMIFS(raw_resource_build!$L:$L,raw_resource_build!$B:$B,$C561,raw_resource_build!$A:$A,G$542)","v":0},{"$f":"SUMIFS(raw_resource_build!$L:$L,raw_resource_build!$B:$B,$C561,raw_resource_build!$A:$A,H$542)","v":0},{"$f":"SUMIFS(raw_resource_build!$L:$L,raw_resource_build!$B:$B,$C561,raw_resource_build!$A:$A,I$542)","v":0},{"$f":"SUMIFS(raw_resource_build!$L:$L,raw_resource_build!$B:$B,$C561,raw_resource_build!$A:$A,J$542)","v":0},{"$f":"SUMIFS(raw_resource_build!$L:$L,raw_resource_build!$B:$B,$C561,raw_resource_build!$A:$A,K$542)","v":0},{"$f":"SUMIFS(raw_resource_build!$L:$L,raw_resource_build!$B:$B,$C561,raw_resource_build!$A:$A,L$542)","v":0},{"$f":"SUMIFS(raw_resource_build!$L:$L,raw_resource_build!$B:$B,$C561,raw_resource_build!$A:$A,M$542)","v":0},{"$f":"SUMIFS(raw_resource_build!$L:$L,raw_resource_build!$B:$B,$C561,raw_resource_build!$A:$A,N$542)","v":0},{"$f":"SUMIFS(raw_resource_build!$L:$L,raw_resource_build!$B:$B,$C561,raw_resource_build!$A:$A,O$542)","v":0},{"$f":"SUMIFS(raw_resource_build!$L:$L,raw_resource_build!$B:$B,$C561,raw_resource_build!$A:$A,P$542)","v":0},{"$f":"SUMIFS(raw_resource_build!$L:$L,raw_resource_build!$B:$B,$C561,raw_resource_build!$A:$A,Q$542)","v":0},{"$f":"SUMIFS(raw_resource_build!$L:$L,raw_resource_build!$B:$B,$C561,raw_resource_build!$A:$A,R$542)","v":0},{"$f":"SUMIFS(raw_resource_build!$L:$L,raw_resource_build!$B:$B,$C561,raw_resource_build!$A:$A,S$542)","v":0},{"$f":"SUMIFS(raw_resource_build!$L:$L,raw_resource_build!$B:$B,$C561,raw_resource_build!$A:$A,T$542)","v":0},{"$f":"SUMIFS(raw_resource_build!$L:$L,raw_resource_build!$B:$B,$C561,raw_resource_build!$A:$A,U$542)","v":0},{"$f":"SUMIFS(raw_resource_build!$L:$L,raw_resource_build!$B:$B,$C561,raw_resource_build!$A:$A,V$542)","v":0},{"$f":"SUMIFS(raw_resource_build!$L:$L,raw_resource_build!$B:$B,$C561,raw_resource_build!$A:$A,W$542)","v":0},{"$f":"SUMIFS(raw_resource_build!$L:$L,raw_resource_build!$B:$B,$C561,raw_resource_build!$A:$A,X$542)","v":0},{"$f":"SUMIFS(raw_resource_build!$L:$L,raw_resource_build!$B:$B,$C561,raw_resource_build!$A:$A,Y$542)","v":0},{"$f":"SUMIFS(raw_resource_build!$L:$L,raw_resource_build!$B:$B,$C561,raw_resource_build!$A:$A,Z$542)","v":0},{"$f":"SUMIFS(raw_resource_build!$L:$L,raw_resource_build!$B:$B,$C561,raw_resource_build!$A:$A,AA$542)","v":0},{"$f":"SUMIFS(raw_resource_build!$L:$L,raw_resource_build!$B:$B,$C561,raw_resource_build!$A:$A,AB$542)","v":0},{"$f":"SUMIFS(raw_resource_build!$L:$L,raw_resource_build!$B:$B,$C561,raw_resource_build!$A:$A,AC$542)","v":0},{"$f":"SUMIFS(raw_resource_build!$L:$L,raw_resource_build!$B:$B,$C561,raw_resource_build!$A:$A,AD$542)","v":0},{"$f":"SUMIFS(raw_resource_build!$L:$L,raw_resource_build!$B:$B,$C561,raw_resource_build!$A:$A,AE$542)","v":0},{"$f":"SUMIFS(raw_resource_build!$L:$L,raw_resource_build!$B:$B,$C561,raw_resource_build!$A:$A,AF$542)","v":0},{"$f":"SUMIFS(raw_resource_build!$L:$L,raw_resource_build!$B:$B,$C561,raw_resource_build!$A:$A,AG$542)","v":0},{"$f":"SUMIFS(raw_resource_build!$L:$L,raw_resource_build!$B:$B,$C561,raw_resource_build!$A:$A,AH$542)","v":0},{"$f":"SUMIFS(raw_resource_build!$L:$L,raw_resource_build!$B:$B,$C561,raw_resource_build!$A:$A,AI$542)","v":0},{"$f":"SUMIFS(raw_resource_build!$L:$L,raw_resource_build!$B:$B,$C561,raw_resource_build!$A:$A,AJ$542)","v":0},{"$f":"SUMIFS(raw_resource_build!$L:$L,raw_resource_build!$B:$B,$C561,raw_resource_build!$A:$A,AK$542)","v":0},{"$f":"SUMIFS(raw_resource_build!$L:$L,raw_resource_build!$B:$B,$C561,raw_resource_build!$A:$A,AL$542)","v":0},{"$f":"SUMIFS(raw_resource_build!$L:$L,raw_resource_build!$B:$B,$C561,raw_resource_build!$A:$A,AM$542)","v":0},{"$f":"SUMIFS(raw_resource_build!$L:$L,raw_resource_build!$B:$B,$C561,raw_resource_build!$A:$A,AN$542)","v":0}]
[null,null,{"$f":"Lists!B54","v":"Kern_Greater_Carrizo_Solar"},"Kern_Greater_Carrizo-SPGE",{"$f":"SUMIFS(raw_resource_build!$L:$L,raw_resource_build!$B:$B,$C562,raw_resource_build!$A:$A,E$542)","v":0},{"$f":"SUMIFS(raw_resource_build!$L:$L,raw_resource_build!$B:$B,$C562,raw_resource_build!$A:$A,F$542)","v":0},{"$f":"SUMIFS(raw_resource_build!$L:$L,raw_resource_build!$B:$B,$C562,raw_resource_build!$A:$A,G$542)","v":0},{"$f":"SUMIFS(raw_resource_build!$L:$L,raw_resource_build!$B:$B,$C562,raw_resource_build!$A:$A,H$542)","v":0},{"$f":"SUMIFS(raw_resource_build!$L:$L,raw_resource_build!$B:$B,$C562,raw_resource_build!$A:$A,I$542)","v":0},{"$f":"SUMIFS(raw_resource_build!$L:$L,raw_resource_build!$B:$B,$C562,raw_resource_build!$A:$A,J$542)","v":0},{"$f":"SUMIFS(raw_resource_build!$L:$L,raw_resource_build!$B:$B,$C562,raw_resource_build!$A:$A,K$542)","v":0},{"$f":"SUMIFS(raw_resource_build!$L:$L,raw_resource_build!$B:$B,$C562,raw_resource_build!$A:$A,L$542)","v":0},{"$f":"SUMIFS(raw_resource_build!$L:$L,raw_resource_build!$B:$B,$C562,raw_resource_build!$A:$A,M$542)","v":0},{"$f":"SUMIFS(raw_resource_build!$L:$L,raw_resource_build!$B:$B,$C562,raw_resource_build!$A:$A,N$542)","v":0},{"$f":"SUMIFS(raw_resource_build!$L:$L,raw_resource_build!$B:$B,$C562,raw_resource_build!$A:$A,O$542)","v":0},{"$f":"SUMIFS(raw_resource_build!$L:$L,raw_resource_build!$B:$B,$C562,raw_resource_build!$A:$A,P$542)","v":700},{"$f":"SUMIFS(raw_resource_build!$L:$L,raw_resource_build!$B:$B,$C562,raw_resource_build!$A:$A,Q$542)","v":0},{"$f":"SUMIFS(raw_resource_build!$L:$L,raw_resource_build!$B:$B,$C562,raw_resource_build!$A:$A,R$542)","v":0},{"$f":"SUMIFS(raw_resource_build!$L:$L,raw_resource_build!$B:$B,$C562,raw_resource_build!$A:$A,S$542)","v":0},{"$f":"SUMIFS(raw_resource_build!$L:$L,raw_resource_build!$B:$B,$C562,raw_resource_build!$A:$A,T$542)","v":700},{"$f":"SUMIFS(raw_resource_build!$L:$L,raw_resource_build!$B:$B,$C562,raw_resource_build!$A:$A,U$542)","v":0},{"$f":"SUMIFS(raw_resource_build!$L:$L,raw_resource_build!$B:$B,$C562,raw_resource_build!$A:$A,V$542)","v":0},{"$f":"SUMIFS(raw_resource_build!$L:$L,raw_resource_build!$B:$B,$C562,raw_resource_build!$A:$A,W$542)","v":0},{"$f":"SUMIFS(raw_resource_build!$L:$L,raw_resource_build!$B:$B,$C562,raw_resource_build!$A:$A,X$542)","v":0},{"$f":"SUMIFS(raw_resource_build!$L:$L,raw_resource_build!$B:$B,$C562,raw_resource_build!$A:$A,Y$542)","v":0},{"$f":"SUMIFS(raw_resource_build!$L:$L,raw_resource_build!$B:$B,$C562,raw_resource_build!$A:$A,Z$542)","v":0},{"$f":"SUMIFS(raw_resource_build!$L:$L,raw_resource_build!$B:$B,$C562,raw_resource_build!$A:$A,AA$542)","v":0},{"$f":"SUMIFS(raw_resource_build!$L:$L,raw_resource_build!$B:$B,$C562,raw_resource_build!$A:$A,AB$542)","v":0},{"$f":"SUMIFS(raw_resource_build!$L:$L,raw_resource_build!$B:$B,$C562,raw_resource_build!$A:$A,AC$542)","v":0},{"$f":"SUMIFS(raw_resource_build!$L:$L,raw_resource_build!$B:$B,$C562,raw_resource_build!$A:$A,AD$542)","v":0},{"$f":"SUMIFS(raw_resource_build!$L:$L,raw_resource_build!$B:$B,$C562,raw_resource_build!$A:$A,AE$542)","v":0},{"$f":"SUMIFS(raw_resource_build!$L:$L,raw_resource_build!$B:$B,$C562,raw_resource_build!$A:$A,AF$542)","v":0},{"$f":"SUMIFS(raw_resource_build!$L:$L,raw_resource_build!$B:$B,$C562,raw_resource_build!$A:$A,AG$542)","v":0},{"$f":"SUMIFS(raw_resource_build!$L:$L,raw_resource_build!$B:$B,$C562,raw_resource_build!$A:$A,AH$542)","v":0},{"$f":"SUMIFS(raw_resource_build!$L:$L,raw_resource_build!$B:$B,$C562,raw_resource_build!$A:$A,AI$542)","v":700},{"$f":"SUMIFS(raw_resource_build!$L:$L,raw_resource_build!$B:$B,$C562,raw_resource_build!$A:$A,AJ$542)","v":0},{"$f":"SUMIFS(raw_resource_build!$L:$L,raw_resource_build!$B:$B,$C562,raw_resource_build!$A:$A,AK$542)","v":0},{"$f":"SUMIFS(raw_resource_build!$L:$L,raw_resource_build!$B:$B,$C562,raw_resource_build!$A:$A,AL$542)","v":0},{"$f":"SUMIFS(raw_resource_build!$L:$L,raw_resource_build!$B:$B,$C562,raw_resource_build!$A:$A,AM$542)","v":0},{"$f":"SUMIFS(raw_resource_build!$L:$L,raw_resource_build!$B:$B,$C562,raw_resource_build!$A:$A,AN$542)","v":0}]
[null,null,{"$f":"Lists!B55","v":"Kern_Greater_Carrizo_Wind"},"Kern_Greater_Carrizo-SPGE",{"$f":"SUMIFS(raw_resource_build!$L:$L,raw_resource_build!$B:$B,$C563,raw_resource_build!$A:$A,E$542)","v":0},{"$f":"SUMIFS(raw_resource_build!$L:$L,raw_resource_build!$B:$B,$C563,raw_resource_build!$A:$A,F$542)","v":0},{"$f":"SUMIFS(raw_resource_build!$L:$L,raw_resource_build!$B:$B,$C563,raw_resource_build!$A:$A,G$542)","v":0},{"$f":"SUMIFS(raw_resource_build!$L:$L,raw_resource_build!$B:$B,$C563,raw_resource_build!$A:$A,H$542)","v":0},{"$f":"SUMIFS(raw_resource_build!$L:$L,raw_resource_build!$B:$B,$C563,raw_resource_build!$A:$A,I$542)","v":0},{"$f":"SUMIFS(raw_resource_build!$L:$L,raw_resource_build!$B:$B,$C563,raw_resource_build!$A:$A,J$542)","v":0},{"$f":"SUMIFS(raw_resource_build!$L:$L,raw_resource_build!$B:$B,$C563,raw_resource_build!$A:$A,K$542)","v":0},{"$f":"SUMIFS(raw_resource_build!$L:$L,raw_resource_build!$B:$B,$C563,raw_resource_build!$A:$A,L$542)","v":0},{"$f":"SUMIFS(raw_resource_build!$L:$L,raw_resource_build!$B:$B,$C563,raw_resource_build!$A:$A,M$542)","v":0},{"$f":"SUMIFS(raw_resource_build!$L:$L,raw_resource_build!$B:$B,$C563,raw_resource_build!$A:$A,N$542)","v":0},{"$f":"SUMIFS(raw_resource_build!$L:$L,raw_resource_build!$B:$B,$C563,raw_resource_build!$A:$A,O$542)","v":0},{"$f":"SUMIFS(raw_resource_build!$L:$L,raw_resource_build!$B:$B,$C563,raw_resource_build!$A:$A,P$542)","v":0},{"$f":"SUMIFS(raw_resource_build!$L:$L,raw_resource_build!$B:$B,$C563,raw_resource_build!$A:$A,Q$542)","v":0},{"$f":"SUMIFS(raw_resource_build!$L:$L,raw_resource_build!$B:$B,$C563,raw_resource_build!$A:$A,R$542)","v":0},{"$f":"SUMIFS(raw_resource_build!$L:$L,raw_resource_build!$B:$B,$C563,raw_resource_build!$A:$A,S$542)","v":0},{"$f":"SUMIFS(raw_resource_build!$L:$L,raw_resource_build!$B:$B,$C563,raw_resource_build!$A:$A,T$542)","v":0},{"$f":"SUMIFS(raw_resource_build!$L:$L,raw_resource_build!$B:$B,$C563,raw_resource_build!$A:$A,U$542)","v":0},{"$f":"SUMIFS(raw_resource_build!$L:$L,raw_resource_build!$B:$B,$C563,raw_resource_build!$A:$A,V$542)","v":0},{"$f":"SUMIFS(raw_resource_build!$L:$L,raw_resource_build!$B:$B,$C563,raw_resource_build!$A:$A,W$542)","v":0},{"$f":"SUMIFS(raw_resource_build!$L:$L,raw_resource_build!$B:$B,$C563,raw_resource_build!$A:$A,X$542)","v":0},{"$f":"SUMIFS(raw_resource_build!$L:$L,raw_resource_build!$B:$B,$C563,raw_resource_build!$A:$A,Y$542)","v":0},{"$f":"SUMIFS(raw_resource_build!$L:$L,raw_resource_build!$B:$B,$C563,raw_resource_build!$A:$A,Z$542)","v":0},{"$f":"SUMIFS(raw_resource_build!$L:$L,raw_resource_build!$B:$B,$C563,raw_resource_build!$A:$A,AA$542)","v":0},{"$f":"SUMIFS(raw_resource_build!$L:$L,raw_resource_build!$B:$B,$C563,raw_resource_build!$A:$A,AB$542)","v":0},{"$f":"SUMIFS(raw_resource_build!$L:$L,raw_resource_build!$B:$B,$C563,raw_resource_build!$A:$A,AC$542)","v":0},{"$f":"SUMIFS(raw_resource_build!$L:$L,raw_resource_build!$B:$B,$C563,raw_resource_build!$A:$A,AD$542)","v":0},{"$f":"SUMIFS(raw_resource_build!$L:$L,raw_resource_build!$B:$B,$C563,raw_resource_build!$A:$A,AE$542)","v":0},{"$f":"SUMIFS(raw_resource_build!$L:$L,raw_resource_build!$B:$B,$C563,raw_resource_build!$A:$A,AF$542)","v":0},{"$f":"SUMIFS(raw_resource_build!$L:$L,raw_resource_build!$B:$B,$C563,raw_resource_build!$A:$A,AG$542)","v":0},{"$f":"SUMIFS(raw_resource_build!$L:$L,raw_resource_build!$B:$B,$C563,raw_resource_build!$A:$A,AH$542)","v":0},{"$f":"SUMIFS(raw_resource_build!$L:$L,raw_resource_build!$B:$B,$C563,raw_resource_build!$A:$A,AI$542)","v":0},{"$f":"SUMIFS(raw_resource_build!$L:$L,raw_resource_build!$B:$B,$C563,raw_resource_build!$A:$A,AJ$542)","v":0},{"$f":"SUMIFS(raw_resource_build!$L:$L,raw_resource_build!$B:$B,$C563,raw_resource_build!$A:$A,AK$542)","v":0},{"$f":"SUMIFS(raw_resource_build!$L:$L,raw_resource_build!$B:$B,$C563,raw_resource_build!$A:$A,AL$542)","v":0},{"$f":"SUMIFS(raw_resource_build!$L:$L,raw_resource_build!$B:$B,$C563,raw_resource_build!$A:$A,AM$542)","v":0},{"$f":"SUMIFS(raw_resource_build!$L:$L,raw_resource_build!$B:$B,$C563,raw_resource_build!$A:$A,AN$542)","v":0}]
[null,null,{"$f":"Lists!B56","v":"Kramer_Inyokern_Ex_Solar"},"Kramer_Inyokern_Ex",{"$f":"SUMIFS(raw_resource_build!$L:$L,raw_resource_build!$B:$B,$C564,raw_resource_build!$A:$A,E$542)","v":0},{"$f":"SUMIFS(raw_resource_build!$L:$L,raw_resource_build!$B:$B,$C564,raw_resource_build!$A:$A,F$542)","v":0},{"$f":"SUMIFS(raw_resource_build!$L:$L,raw_resource_build!$B:$B,$C564,raw_resource_build!$A:$A,G$542)","v":0},{"$f":"SUMIFS(raw_resource_build!$L:$L,raw_resource_build!$B:$B,$C564,raw_resource_build!$A:$A,H$542)","v":0},{"$f":"SUMIFS(raw_resource_build!$L:$L,raw_resource_build!$B:$B,$C564,raw_resource_build!$A:$A,I$542)","v":0},{"$f":"SUMIFS(raw_resource_build!$L:$L,raw_resource_build!$B:$B,$C564,raw_resource_build!$A:$A,J$542)","v":0},{"$f":"SUMIFS(raw_resource_build!$L:$L,raw_resource_build!$B:$B,$C564,raw_resource_build!$A:$A,K$542)","v":0},{"$f":"SUMIFS(raw_resource_build!$L:$L,raw_resource_build!$B:$B,$C564,raw_resource_build!$A:$A,L$542)","v":0},{"$f":"SUMIFS(raw_resource_build!$L:$L,raw_resource_build!$B:$B,$C564,raw_resource_build!$A:$A,M$542)","v":0},{"$f":"SUMIFS(raw_resource_build!$L:$L,raw_resource_build!$B:$B,$C564,raw_resource_build!$A:$A,N$542)","v":0},{"$f":"SUMIFS(raw_resource_build!$L:$L,raw_resource_build!$B:$B,$C564,raw_resource_build!$A:$A,O$542)","v":0},{"$f":"SUMIFS(raw_resource_build!$L:$L,raw_resource_build!$B:$B,$C564,raw_resource_build!$A:$A,P$542)","v":0},{"$f":"SUMIFS(raw_resource_build!$L:$L,raw_resource_build!$B:$B,$C564,raw_resource_build!$A:$A,Q$542)","v":0},{"$f":"SUMIFS(raw_resource_build!$L:$L,raw_resource_build!$B:$B,$C564,raw_resource_build!$A:$A,R$542)","v":0},{"$f":"SUMIFS(raw_resource_build!$L:$L,raw_resource_build!$B:$B,$C564,raw_resource_build!$A:$A,S$542)","v":0},{"$f":"SUMIFS(raw_resource_build!$L:$L,raw_resource_build!$B:$B,$C564,raw_resource_build!$A:$A,T$542)","v":0},{"$f":"SUMIFS(raw_resource_build!$L:$L,raw_resource_build!$B:$B,$C564,raw_resource_build!$A:$A,U$542)","v":0},{"$f":"SUMIFS(raw_resource_build!$L:$L,raw_resource_build!$B:$B,$C564,raw_resource_build!$A:$A,V$542)","v":0},{"$f":"SUMIFS(raw_resource_build!$L:$L,raw_resource_build!$B:$B,$C564,raw_resource_build!$A:$A,W$542)","v":0},{"$f":"SUMIFS(raw_resource_build!$L:$L,raw_resource_build!$B:$B,$C564,raw_resource_build!$A:$A,X$542)","v":0},{"$f":"SUMIFS(raw_resource_build!$L:$L,raw_resource_build!$B:$B,$C564,raw_resource_build!$A:$A,Y$542)","v":0},{"$f":"SUMIFS(raw_resource_build!$L:$L,raw_resource_build!$B:$B,$C564,raw_resource_build!$A:$A,Z$542)","v":0},{"$f":"SUMIFS(raw_resource_build!$L:$L,raw_resource_build!$B:$B,$C564,raw_resource_build!$A:$A,AA$542)","v":0},{"$f":"SUMIFS(raw_resource_build!$L:$L,raw_resource_build!$B:$B,$C564,raw_resource_build!$A:$A,AB$542)","v":0},{"$f":"SUMIFS(raw_resource_build!$L:$L,raw_resource_build!$B:$B,$C564,raw_resource_build!$A:$A,AC$542)","v":0},{"$f":"SUMIFS(raw_resource_build!$L:$L,raw_resource_build!$B:$B,$C564,raw_resource_build!$A:$A,AD$542)","v":0},{"$f":"SUMIFS(raw_resource_build!$L:$L,raw_resource_build!$B:$B,$C564,raw_resource_build!$A:$A,AE$542)","v":0},{"$f":"SUMIFS(raw_resource_build!$L:$L,raw_resource_build!$B:$B,$C564,raw_resource_build!$A:$A,AF$542)","v":0},{"$f":"SUMIFS(raw_resource_build!$L:$L,raw_resource_build!$B:$B,$C564,raw_resource_build!$A:$A,AG$542)","v":0},{"$f":"SUMIFS(raw_resource_build!$L:$L,raw_resource_build!$B:$B,$C564,raw_resource_build!$A:$A,AH$542)","v":0},{"$f":"SUMIFS(raw_resource_build!$L:$L,raw_resource_build!$B:$B,$C564,raw_resource_build!$A:$A,AI$542)","v":0},{"$f":"SUMIFS(raw_resource_build!$L:$L,raw_resource_build!$B:$B,$C564,raw_resource_build!$A:$A,AJ$542)","v":0},{"$f":"SUMIFS(raw_resource_build!$L:$L,raw_resource_build!$B:$B,$C564,raw_resource_build!$A:$A,AK$542)","v":0},{"$f":"SUMIFS(raw_resource_build!$L:$L,raw_resource_build!$B:$B,$C564,raw_resource_build!$A:$A,AL$542)","v":0},{"$f":"SUMIFS(raw_resource_build!$L:$L,raw_resource_build!$B:$B,$C564,raw_resource_build!$A:$A,AM$542)","v":0},{"$f":"SUMIFS(raw_resource_build!$L:$L,raw_resource_build!$B:$B,$C564,raw_resource_build!$A:$A,AN$542)","v":0}]
[null,null,{"$f":"Lists!B57","v":"Kramer_Inyokern_Ex_Wind"},"Kramer_Inyokern_Ex",{"$f":"SUMIFS(raw_resource_build!$L:$L,raw_resource_build!$B:$B,$C565,raw_resource_build!$A:$A,E$542)","v":0},{"$f":"SUMIFS(raw_resource_build!$L:$L,raw_resource_build!$B:$B,$C565,raw_resource_build!$A:$A,F$542)","v":0},{"$f":"SUMIFS(raw_resource_build!$L:$L,raw_resource_build!$B:$B,$C565,raw_resource_build!$A:$A,G$542)","v":0},{"$f":"SUMIFS(raw_resource_build!$L:$L,raw_resource_build!$B:$B,$C565,raw_resource_build!$A:$A,H$542)","v":0},{"$f":"SUMIFS(raw_resource_build!$L:$L,raw_resource_build!$B:$B,$C565,raw_resource_build!$A:$A,I$542)","v":0},{"$f":"SUMIFS(raw_resource_build!$L:$L,raw_resource_build!$B:$B,$C565,raw_resource_build!$A:$A,J$542)","v":0},{"$f":"SUMIFS(raw_resource_build!$L:$L,raw_resource_build!$B:$B,$C565,raw_resource_build!$A:$A,K$542)","v":0},{"$f":"SUMIFS(raw_resource_build!$L:$L,raw_resource_build!$B:$B,$C565,raw_resource_build!$A:$A,L$542)","v":0},{"$f":"SUMIFS(raw_resource_build!$L:$L,raw_resource_build!$B:$B,$C565,raw_resource_build!$A:$A,M$542)","v":0},{"$f":"SUMIFS(raw_resource_build!$L:$L,raw_resource_build!$B:$B,$C565,raw_resource_build!$A:$A,N$542)","v":0},{"$f":"SUMIFS(raw_resource_build!$L:$L,raw_resource_build!$B:$B,$C565,raw_resource_build!$A:$A,O$542)","v":0},{"$f":"SUMIFS(raw_resource_build!$L:$L,raw_resource_build!$B:$B,$C565,raw_resource_build!$A:$A,P$542)","v":0},{"$f":"SUMIFS(raw_resource_build!$L:$L,raw_resource_build!$B:$B,$C565,raw_resource_build!$A:$A,Q$542)","v":0},{"$f":"SUMIFS(raw_resource_build!$L:$L,raw_resource_build!$B:$B,$C565,raw_resource_build!$A:$A,R$542)","v":0},{"$f":"SUMIFS(raw_resource_build!$L:$L,raw_resource_build!$B:$B,$C565,raw_resource_build!$A:$A,S$542)","v":0},{"$f":"SUMIFS(raw_resource_build!$L:$L,raw_resource_build!$B:$B,$C565,raw_resource_build!$A:$A,T$542)","v":0},{"$f":"SUMIFS(raw_resource_build!$L:$L,raw_resource_build!$B:$B,$C565,raw_resource_build!$A:$A,U$542)","v":0},{"$f":"SUMIFS(raw_resource_build!$L:$L,raw_resource_build!$B:$B,$C565,raw_resource_build!$A:$A,V$542)","v":0},{"$f":"SUMIFS(raw_resource_build!$L:$L,raw_resource_build!$B:$B,$C565,raw_resource_build!$A:$A,W$542)","v":0},{"$f":"SUMIFS(raw_resource_build!$L:$L,raw_resource_build!$B:$B,$C565,raw_resource_build!$A:$A,X$542)","v":0},{"$f":"SUMIFS(raw_resource_build!$L:$L,raw_resource_build!$B:$B,$C565,raw_resource_build!$A:$A,Y$542)","v":0},{"$f":"SUMIFS(raw_resource_build!$L:$L,raw_resource_build!$B:$B,$C565,raw_resource_build!$A:$A,Z$542)","v":0},{"$f":"SUMIFS(raw_resource_build!$L:$L,raw_resource_build!$B:$B,$C565,raw_resource_build!$A:$A,AA$542)","v":0},{"$f":"SUMIFS(raw_resource_build!$L:$L,raw_resource_build!$B:$B,$C565,raw_resource_build!$A:$A,AB$542)","v":0},{"$f":"SUMIFS(raw_resource_build!$L:$L,raw_resource_build!$B:$B,$C565,raw_resource_build!$A:$A,AC$542)","v":0},{"$f":"SUMIFS(raw_resource_build!$L:$L,raw_resource_build!$B:$B,$C565,raw_resource_build!$A:$A,AD$542)","v":0},{"$f":"SUMIFS(raw_resource_build!$L:$L,raw_resource_build!$B:$B,$C565,raw_resource_build!$A:$A,AE$542)","v":0},{"$f":"SUMIFS(raw_resource_build!$L:$L,raw_resource_build!$B:$B,$C565,raw_resource_build!$A:$A,AF$542)","v":0},{"$f":"SUMIFS(raw_resource_build!$L:$L,raw_resource_build!$B:$B,$C565,raw_resource_build!$A:$A,AG$542)","v":0},{"$f":"SUMIFS(raw_resource_build!$L:$L,raw_resource_build!$B:$B,$C565,raw_resource_build!$A:$A,AH$542)","v":0},{"$f":"SUMIFS(raw_resource_build!$L:$L,raw_resource_build!$B:$B,$C565,raw_resource_build!$A:$A,AI$542)","v":0},{"$f":"SUMIFS(raw_resource_build!$L:$L,raw_resource_build!$B:$B,$C565,raw_resource_build!$A:$A,AJ$542)","v":0},{"$f":"SUMIFS(raw_resource_build!$L:$L,raw_resource_build!$B:$B,$C565,raw_resource_build!$A:$A,AK$542)","v":0},{"$f":"SUMIFS(raw_resource_build!$L:$L,raw_resource_build!$B:$B,$C565,raw_resource_build!$A:$A,AL$542)","v":0},{"$f":"SUMIFS(raw_resource_build!$L:$L,raw_resource_build!$B:$B,$C565,raw_resource_build!$A:$A,AM$542)","v":0},{"$f":"SUMIFS(raw_resource_build!$L:$L,raw_resource_build!$B:$B,$C565,raw_resource_build!$A:$A,AN$542)","v":0}]
[null,null,{"$f":"Lists!B58","v":"Mountain_Pass_El_Dorado_Solar"},"N/A",{"$f":"SUMIFS(raw_resource_build!$L:$L,raw_resource_build!$B:$B,$C566,raw_resource_build!$A:$A,E$542)","v":0},{"$f":"SUMIFS(raw_resource_build!$L:$L,raw_resource_build!$B:$B,$C566,raw_resource_build!$A:$A,F$542)","v":0},{"$f":"SUMIFS(raw_resource_build!$L:$L,raw_resource_build!$B:$B,$C566,raw_resource_build!$A:$A,G$542)","v":0},{"$f":"SUMIFS(raw_resource_build!$L:$L,raw_resource_build!$B:$B,$C566,raw_resource_build!$A:$A,H$542)","v":0},{"$f":"SUMIFS(raw_resource_build!$L:$L,raw_resource_build!$B:$B,$C566,raw_resource_build!$A:$A,I$542)","v":0},{"$f":"SUMIFS(raw_resource_build!$L:$L,raw_resource_build!$B:$B,$C566,raw_resource_build!$A:$A,J$542)","v":0},{"$f":"SUMIFS(raw_resource_build!$L:$L,raw_resource_build!$B:$B,$C566,raw_resource_build!$A:$A,K$542)","v":0},{"$f":"SUMIFS(raw_resource_build!$L:$L,raw_resource_build!$B:$B,$C566,raw_resource_build!$A:$A,L$542)","v":0},{"$f":"SUMIFS(raw_resource_build!$L:$L,raw_resource_build!$B:$B,$C566,raw_resource_build!$A:$A,M$542)","v":0},{"$f":"SUMIFS(raw_resource_build!$L:$L,raw_resource_build!$B:$B,$C566,raw_resource_build!$A:$A,N$542)","v":0},{"$f":"SUMIFS(raw_resource_build!$L:$L,raw_resource_build!$B:$B,$C566,raw_resource_build!$A:$A,O$542)","v":0},{"$f":"SUMIFS(raw_resource_build!$L:$L,raw_resource_build!$B:$B,$C566,raw_resource_build!$A:$A,P$542)","v":0},{"$f":"SUMIFS(raw_resource_build!$L:$L,raw_resource_build!$B:$B,$C566,raw_resource_build!$A:$A,Q$542)","v":0},{"$f":"SUMIFS(raw_resource_build!$L:$L,raw_resource_build!$B:$B,$C566,raw_resource_build!$A:$A,R$542)","v":0},{"$f":"SUMIFS(raw_resource_build!$L:$L,raw_resource_build!$B:$B,$C566,raw_resource_build!$A:$A,S$542)","v":0},{"$f":"SUMIFS(raw_resource_build!$L:$L,raw_resource_build!$B:$B,$C566,raw_resource_build!$A:$A,T$542)","v":0},{"$f":"SUMIFS(raw_resource_build!$L:$L,raw_resource_build!$B:$B,$C566,raw_resource_build!$A:$A,U$542)","v":0},{"$f":"SUMIFS(raw_resource_build!$L:$L,raw_resource_build!$B:$B,$C566,raw_resource_build!$A:$A,V$542)","v":0},{"$f":"SUMIFS(raw_resource_build!$L:$L,raw_resource_build!$B:$B,$C566,raw_resource_build!$A:$A,W$542)","v":0},{"$f":"SUMIFS(raw_resource_build!$L:$L,raw_resource_build!$B:$B,$C566,raw_resource_build!$A:$A,X$542)","v":0},{"$f":"SUMIFS(raw_resource_build!$L:$L,raw_resource_build!$B:$B,$C566,raw_resource_build!$A:$A,Y$542)","v":0},{"$f":"SUMIFS(raw_resource_build!$L:$L,raw_resource_build!$B:$B,$C566,raw_resource_build!$A:$A,Z$542)","v":0},{"$f":"SUMIFS(raw_resource_build!$L:$L,raw_resource_build!$B:$B,$C566,raw_resource_build!$A:$A,AA$542)","v":0},{"$f":"SUMIFS(raw_resource_build!$L:$L,raw_resource_build!$B:$B,$C566,raw_resource_build!$A:$A,AB$542)","v":0},{"$f":"SUMIFS(raw_resource_build!$L:$L,raw_resource_build!$B:$B,$C566,raw_resource_build!$A:$A,AC$542)","v":0},{"$f":"SUMIFS(raw_resource_build!$L:$L,raw_resource_build!$B:$B,$C566,raw_resource_build!$A:$A,AD$542)","v":0},{"$f":"SUMIFS(raw_resource_build!$L:$L,raw_resource_build!$B:$B,$C566,raw_resource_build!$A:$A,AE$542)","v":0},{"$f":"SUMIFS(raw_resource_build!$L:$L,raw_resource_build!$B:$B,$C566,raw_resource_build!$A:$A,AF$542)","v":0},{"$f":"SUMIFS(raw_resource_build!$L:$L,raw_resource_build!$B:$B,$C566,raw_resource_build!$A:$A,AG$542)","v":0},{"$f":"SUMIFS(raw_resource_build!$L:$L,raw_resource_build!$B:$B,$C566,raw_resource_build!$A:$A,AH$542)","v":0},{"$f":"SUMIFS(raw_resource_build!$L:$L,raw_resource_build!$B:$B,$C566,raw_resource_build!$A:$A,AI$542)","v":0},{"$f":"SUMIFS(raw_resource_build!$L:$L,raw_resource_build!$B:$B,$C566,raw_resource_build!$A:$A,AJ$542)","v":0},{"$f":"SUMIFS(raw_resource_build!$L:$L,raw_resource_build!$B:$B,$C566,raw_resource_build!$A:$A,AK$542)","v":0},{"$f":"SUMIFS(raw_resource_build!$L:$L,raw_resource_build!$B:$B,$C566,raw_resource_build!$A:$A,AL$542)","v":0},{"$f":"SUMIFS(raw_resource_build!$L:$L,raw_resource_build!$B:$B,$C566,raw_resource_build!$A:$A,AM$542)","v":0},{"$f":"SUMIFS(raw_resource_build!$L:$L,raw_resource_build!$B:$B,$C566,raw_resource_build!$A:$A,AN$542)","v":0}]
[null,null,{"$f":"Lists!B59","v":"North_Victor_Solar"},"North_Victor-Greater_Kramer",{"$f":"SUMIFS(raw_resource_build!$L:$L,raw_resource_build!$B:$B,$C567,raw_resource_build!$A:$A,E$542)","v":0},{"$f":"SUMIFS(raw_resource_build!$L:$L,raw_resource_build!$B:$B,$C567,raw_resource_build!$A:$A,F$542)","v":0},{"$f":"SUMIFS(raw_resource_build!$L:$L,raw_resource_build!$B:$B,$C567,raw_resource_build!$A:$A,G$542)","v":0},{"$f":"SUMIFS(raw_resource_build!$L:$L,raw_resource_build!$B:$B,$C567,raw_resource_build!$A:$A,H$542)","v":0},{"$f":"SUMIFS(raw_resource_build!$L:$L,raw_resource_build!$B:$B,$C567,raw_resource_build!$A:$A,I$542)","v":0},{"$f":"SUMIFS(raw_resource_build!$L:$L,raw_resource_build!$B:$B,$C567,raw_resource_build!$A:$A,J$542)","v":0},{"$f":"SUMIFS(raw_resource_build!$L:$L,raw_resource_build!$B:$B,$C567,raw_resource_build!$A:$A,K$542)","v":0},{"$f":"SUMIFS(raw_resource_build!$L:$L,raw_resource_build!$B:$B,$C567,raw_resource_build!$A:$A,L$542)","v":0},{"$f":"SUMIFS(raw_resource_build!$L:$L,raw_resource_build!$B:$B,$C567,raw_resource_build!$A:$A,M$542)","v":0},{"$f":"SUMIFS(raw_resource_build!$L:$L,raw_resource_build!$B:$B,$C567,raw_resource_build!$A:$A,N$542)","v":0},{"$f":"SUMIFS(raw_resource_build!$L:$L,raw_resource_build!$B:$B,$C567,raw_resource_build!$A:$A,O$542)","v":0},{"$f":"SUMIFS(raw_resource_build!$L:$L,raw_resource_build!$B:$B,$C567,raw_resource_build!$A:$A,P$542)","v":0},{"$f":"SUMIFS(raw_resource_build!$L:$L,raw_resource_build!$B:$B,$C567,raw_resource_build!$A:$A,Q$542)","v":0},{"$f":"SUMIFS(raw_resource_build!$L:$L,raw_resource_build!$B:$B,$C567,raw_resource_build!$A:$A,R$542)","v":0},{"$f":"SUMIFS(raw_resource_build!$L:$L,raw_resource_build!$B:$B,$C567,raw_resource_build!$A:$A,S$542)","v":0},{"$f":"SUMIFS(raw_resource_build!$L:$L,raw_resource_build!$B:$B,$C567,raw_resource_build!$A:$A,T$542)","v":0},{"$f":"SUMIFS(raw_resource_build!$L:$L,raw_resource_build!$B:$B,$C567,raw_resource_build!$A:$A,U$542)","v":0},{"$f":"SUMIFS(raw_resource_build!$L:$L,raw_resource_build!$B:$B,$C567,raw_resource_build!$A:$A,V$542)","v":0},{"$f":"SUMIFS(raw_resource_build!$L:$L,raw_resource_build!$B:$B,$C567,raw_resource_build!$A:$A,W$542)","v":0},{"$f":"SUMIFS(raw_resource_build!$L:$L,raw_resource_build!$B:$B,$C567,raw_resource_build!$A:$A,X$542)","v":0},{"$f":"SUMIFS(raw_resource_build!$L:$L,raw_resource_build!$B:$B,$C567,raw_resource_build!$A:$A,Y$542)","v":0},{"$f":"SUMIFS(raw_resource_build!$L:$L,raw_resource_build!$B:$B,$C567,raw_resource_build!$A:$A,Z$542)","v":0},{"$f":"SUMIFS(raw_resource_build!$L:$L,raw_resource_build!$B:$B,$C567,raw_resource_build!$A:$A,AA$542)","v":0},{"$f":"SUMIFS(raw_resource_build!$L:$L,raw_resource_build!$B:$B,$C567,raw_resource_build!$A:$A,AB$542)","v":0},{"$f":"SUMIFS(raw_resource_build!$L:$L,raw_resource_build!$B:$B,$C567,raw_resource_build!$A:$A,AC$542)","v":0},{"$f":"SUMIFS(raw_resource_build!$L:$L,raw_resource_build!$B:$B,$C567,raw_resource_build!$A:$A,AD$542)","v":0},{"$f":"SUMIFS(raw_resource_build!$L:$L,raw_resource_build!$B:$B,$C567,raw_resource_build!$A:$A,AE$542)","v":0},{"$f":"SUMIFS(raw_resource_build!$L:$L,raw_resource_build!$B:$B,$C567,raw_resource_build!$A:$A,AF$542)","v":0},{"$f":"SUMIFS(raw_resource_build!$L:$L,raw_resource_build!$B:$B,$C567,raw_resource_build!$A:$A,AG$542)","v":0},{"$f":"SUMIFS(raw_resource_build!$L:$L,raw_resource_build!$B:$B,$C567,raw_resource_build!$A:$A,AH$542)","v":0},{"$f":"SUMIFS(raw_resource_build!$L:$L,raw_resource_build!$B:$B,$C567,raw_resource_build!$A:$A,AI$542)","v":0},{"$f":"SUMIFS(raw_resource_build!$L:$L,raw_resource_build!$B:$B,$C567,raw_resource_build!$A:$A,AJ$542)","v":0},{"$f":"SUMIFS(raw_resource_build!$L:$L,raw_resource_build!$B:$B,$C567,raw_resource_build!$A:$A,AK$542)","v":0},{"$f":"SUMIFS(raw_resource_build!$L:$L,raw_resource_build!$B:$B,$C567,raw_resource_build!$A:$A,AL$542)","v":0},{"$f":"SUMIFS(raw_resource_build!$L:$L,raw_resource_build!$B:$B,$C567,raw_resource_build!$A:$A,AM$542)","v":0},{"$f":"SUMIFS(raw_resource_build!$L:$L,raw_resource_build!$B:$B,$C567,raw_resource_build!$A:$A,AN$542)","v":0}]
[null,null,{"$f":"Lists!B60","v":"Northern_California_Ex_Solar"},"Northern_California_Ex",{"$f":"SUMIFS(raw_resource_build!$L:$L,raw_resource_build!$B:$B,$C568,raw_resource_build!$A:$A,E$542)","v":0},{"$f":"SUMIFS(raw_resource_build!$L:$L,raw_resource_build!$B:$B,$C568,raw_resource_build!$A:$A,F$542)","v":0},{"$f":"SUMIFS(raw_resource_build!$L:$L,raw_resource_build!$B:$B,$C568,raw_resource_build!$A:$A,G$542)","v":0},{"$f":"SUMIFS(raw_resource_build!$L:$L,raw_resource_build!$B:$B,$C568,raw_resource_build!$A:$A,H$542)","v":0},{"$f":"SUMIFS(raw_resource_build!$L:$L,raw_resource_build!$B:$B,$C568,raw_resource_build!$A:$A,I$542)","v":0},{"$f":"SUMIFS(raw_resource_build!$L:$L,raw_resource_build!$B:$B,$C568,raw_resource_build!$A:$A,J$542)","v":0},{"$f":"SUMIFS(raw_resource_build!$L:$L,raw_resource_build!$B:$B,$C568,raw_resource_build!$A:$A,K$542)","v":0},{"$f":"SUMIFS(raw_resource_build!$L:$L,raw_resource_build!$B:$B,$C568,raw_resource_build!$A:$A,L$542)","v":0},{"$f":"SUMIFS(raw_resource_build!$L:$L,raw_resource_build!$B:$B,$C568,raw_resource_build!$A:$A,M$542)","v":0},{"$f":"SUMIFS(raw_resource_build!$L:$L,raw_resource_build!$B:$B,$C568,raw_resource_build!$A:$A,N$542)","v":0},{"$f":"SUMIFS(raw_resource_build!$L:$L,raw_resource_build!$B:$B,$C568,raw_resource_build!$A:$A,O$542)","v":0},{"$f":"SUMIFS(raw_resource_build!$L:$L,raw_resource_build!$B:$B,$C568,raw_resource_build!$A:$A,P$542)","v":0},{"$f":"SUMIFS(raw_resource_build!$L:$L,raw_resource_build!$B:$B,$C568,raw_resource_build!$A:$A,Q$542)","v":0},{"$f":"SUMIFS(raw_resource_build!$L:$L,raw_resource_build!$B:$B,$C568,raw_resource_build!$A:$A,R$542)","v":0},{"$f":"SUMIFS(raw_resource_build!$L:$L,raw_resource_build!$B:$B,$C568,raw_resource_build!$A:$A,S$542)","v":0},{"$f":"SUMIFS(raw_resource_build!$L:$L,raw_resource_build!$B:$B,$C568,raw_resource_build!$A:$A,T$542)","v":0},{"$f":"SUMIFS(raw_resource_build!$L:$L,raw_resource_build!$B:$B,$C568,raw_resource_build!$A:$A,U$542)","v":0},{"$f":"SUMIFS(raw_resource_build!$L:$L,raw_resource_build!$B:$B,$C568,raw_resource_build!$A:$A,V$542)","v":0},{"$f":"SUMIFS(raw_resource_build!$L:$L,raw_resource_build!$B:$B,$C568,raw_resource_build!$A:$A,W$542)","v":0},{"$f":"SUMIFS(raw_resource_build!$L:$L,raw_resource_build!$B:$B,$C568,raw_resource_build!$A:$A,X$542)","v":0},{"$f":"SUMIFS(raw_resource_build!$L:$L,raw_resource_build!$B:$B,$C568,raw_resource_build!$A:$A,Y$542)","v":0},{"$f":"SUMIFS(raw_resource_build!$L:$L,raw_resource_build!$B:$B,$C568,raw_resource_build!$A:$A,Z$542)","v":0},{"$f":"SUMIFS(raw_resource_build!$L:$L,raw_resource_build!$B:$B,$C568,raw_resource_build!$A:$A,AA$542)","v":0},{"$f":"SUMIFS(raw_resource_build!$L:$L,raw_resource_build!$B:$B,$C568,raw_resource_build!$A:$A,AB$542)","v":0},{"$f":"SUMIFS(raw_resource_build!$L:$L,raw_resource_build!$B:$B,$C568,raw_resource_build!$A:$A,AC$542)","v":0},{"$f":"SUMIFS(raw_resource_build!$L:$L,raw_resource_build!$B:$B,$C568,raw_resource_build!$A:$A,AD$542)","v":0},{"$f":"SUMIFS(raw_resource_build!$L:$L,raw_resource_build!$B:$B,$C568,raw_resource_build!$A:$A,AE$542)","v":0},{"$f":"SUMIFS(raw_resource_build!$L:$L,raw_resource_build!$B:$B,$C568,raw_resource_build!$A:$A,AF$542)","v":0},{"$f":"SUMIFS(raw_resource_build!$L:$L,raw_resource_build!$B:$B,$C568,raw_resource_build!$A:$A,AG$542)","v":0},{"$f":"SUMIFS(raw_resource_build!$L:$L,raw_resource_build!$B:$B,$C568,raw_resource_build!$A:$A,AH$542)","v":0},{"$f":"SUMIFS(raw_resource_build!$L:$L,raw_resource_build!$B:$B,$C568,raw_resource_build!$A:$A,AI$542)","v":0},{"$f":"SUMIFS(raw_resource_build!$L:$L,raw_resource_build!$B:$B,$C568,raw_resource_build!$A:$A,AJ$542)","v":0},{"$f":"SUMIFS(raw_resource_build!$L:$L,raw_resource_build!$B:$B,$C568,raw_resource_build!$A:$A,AK$542)","v":0},{"$f":"SUMIFS(raw_resource_build!$L:$L,raw_resource_build!$B:$B,$C568,raw_resource_build!$A:$A,AL$542)","v":0},{"$f":"SUMIFS(raw_resource_build!$L:$L,raw_resource_build!$B:$B,$C568,raw_resource_build!$A:$A,AM$542)","v":0},{"$f":"SUMIFS(raw_resource_build!$L:$L,raw_resource_build!$B:$B,$C568,raw_resource_build!$A:$A,AN$542)","v":0}]
[null,null,{"$f":"Lists!B61","v":"Northern_California_Ex_Wind"},"Sacramento_River",{"$f":"SUMIFS(raw_resource_build!$L:$L,raw_resource_build!$B:$B,$C569,raw_resource_build!$A:$A,E$542)","v":0},{"$f":"SUMIFS(raw_resource_build!$L:$L,raw_resource_build!$B:$B,$C569,raw_resource_build!$A:$A,F$542)","v":0},{"$f":"SUMIFS(raw_resource_build!$L:$L,raw_resource_build!$B:$B,$C569,raw_resource_build!$A:$A,G$542)","v":0},{"$f":"SUMIFS(raw_resource_build!$L:$L,raw_resource_build!$B:$B,$C569,raw_resource_build!$A:$A,H$542)","v":0},{"$f":"SUMIFS(raw_resource_build!$L:$L,raw_resource_build!$B:$B,$C569,raw_resource_build!$A:$A,I$542)","v":0},{"$f":"SUMIFS(raw_resource_build!$L:$L,raw_resource_build!$B:$B,$C569,raw_resource_build!$A:$A,J$542)","v":0},{"$f":"SUMIFS(raw_resource_build!$L:$L,raw_resource_build!$B:$B,$C569,raw_resource_build!$A:$A,K$542)","v":0},{"$f":"SUMIFS(raw_resource_build!$L:$L,raw_resource_build!$B:$B,$C569,raw_resource_build!$A:$A,L$542)","v":0},{"$f":"SUMIFS(raw_resource_build!$L:$L,raw_resource_build!$B:$B,$C569,raw_resource_build!$A:$A,M$542)","v":0},{"$f":"SUMIFS(raw_resource_build!$L:$L,raw_resource_build!$B:$B,$C569,raw_resource_build!$A:$A,N$542)","v":0},{"$f":"SUMIFS(raw_resource_build!$L:$L,raw_resource_build!$B:$B,$C569,raw_resource_build!$A:$A,O$542)","v":0},{"$f":"SUMIFS(raw_resource_build!$L:$L,raw_resource_build!$B:$B,$C569,raw_resource_build!$A:$A,P$542)","v":0},{"$f":"SUMIFS(raw_resource_build!$L:$L,raw_resource_build!$B:$B,$C569,raw_resource_build!$A:$A,Q$542)","v":0},{"$f":"SUMIFS(raw_resource_build!$L:$L,raw_resource_build!$B:$B,$C569,raw_resource_build!$A:$A,R$542)","v":0},{"$f":"SUMIFS(raw_resource_build!$L:$L,raw_resource_build!$B:$B,$C569,raw_resource_build!$A:$A,S$542)","v":0},{"$f":"SUMIFS(raw_resource_build!$L:$L,raw_resource_build!$B:$B,$C569,raw_resource_build!$A:$A,T$542)","v":0},{"$f":"SUMIFS(raw_resource_build!$L:$L,raw_resource_build!$B:$B,$C569,raw_resource_build!$A:$A,U$542)","v":0},{"$f":"SUMIFS(raw_resource_build!$L:$L,raw_resource_build!$B:$B,$C569,raw_resource_build!$A:$A,V$542)","v":0},{"$f":"SUMIFS(raw_resource_build!$L:$L,raw_resource_build!$B:$B,$C569,raw_resource_build!$A:$A,W$542)","v":0},{"$f":"SUMIFS(raw_resource_build!$L:$L,raw_resource_build!$B:$B,$C569,raw_resource_build!$A:$A,X$542)","v":0},{"$f":"SUMIFS(raw_resource_build!$L:$L,raw_resource_build!$B:$B,$C569,raw_resource_build!$A:$A,Y$542)","v":0},{"$f":"SUMIFS(raw_resource_build!$L:$L,raw_resource_build!$B:$B,$C569,raw_resource_build!$A:$A,Z$542)","v":0},{"$f":"SUMIFS(raw_resource_build!$L:$L,raw_resource_build!$B:$B,$C569,raw_resource_build!$A:$A,AA$542)","v":0},{"$f":"SUMIFS(raw_resource_build!$L:$L,raw_resource_build!$B:$B,$C569,raw_resource_build!$A:$A,AB$542)","v":0},{"$f":"SUMIFS(raw_resource_build!$L:$L,raw_resource_build!$B:$B,$C569,raw_resource_build!$A:$A,AC$542)","v":0},{"$f":"SUMIFS(raw_resource_build!$L:$L,raw_resource_build!$B:$B,$C569,raw_resource_build!$A:$A,AD$542)","v":0},{"$f":"SUMIFS(raw_resource_build!$L:$L,raw_resource_build!$B:$B,$C569,raw_resource_build!$A:$A,AE$542)","v":0},{"$f":"SUMIFS(raw_resource_build!$L:$L,raw_resource_build!$B:$B,$C569,raw_resource_build!$A:$A,AF$542)","v":0},{"$f":"SUMIFS(raw_resource_build!$L:$L,raw_resource_build!$B:$B,$C569,raw_resource_build!$A:$A,AG$542)","v":0},{"$f":"SUMIFS(raw_resource_build!$L:$L,raw_resource_build!$B:$B,$C569,raw_resource_build!$A:$A,AH$542)","v":0},{"$f":"SUMIFS(raw_resource_build!$L:$L,raw_resource_build!$B:$B,$C569,raw_resource_build!$A:$A,AI$542)","v":0},{"$f":"SUMIFS(raw_resource_build!$L:$L,raw_resource_build!$B:$B,$C569,raw_resource_build!$A:$A,AJ$542)","v":0},{"$f":"SUMIFS(raw_resource_build!$L:$L,raw_resource_build!$B:$B,$C569,raw_resource_build!$A:$A,AK$542)","v":0},{"$f":"SUMIFS(raw_resource_build!$L:$L,raw_resource_build!$B:$B,$C569,raw_resource_build!$A:$A,AL$542)","v":0},{"$f":"SUMIFS(raw_resource_build!$L:$L,raw_resource_build!$B:$B,$C569,raw_resource_build!$A:$A,AM$542)","v":0},{"$f":"SUMIFS(raw_resource_build!$L:$L,raw_resource_build!$B:$B,$C569,raw_resource_build!$A:$A,AN$542)","v":0}]
[null,null,{"$f":"Lists!B62","v":"NW_Ext_Tx_Wind"},"Sacramento_River",{"$f":"SUMIFS(raw_resource_build!$L:$L,raw_resource_build!$B:$B,$C570,raw_resource_build!$A:$A,E$542)","v":0},{"$f":"SUMIFS(raw_resource_build!$L:$L,raw_resource_build!$B:$B,$C570,raw_resource_build!$A:$A,F$542)","v":0},{"$f":"SUMIFS(raw_resource_build!$L:$L,raw_resource_build!$B:$B,$C570,raw_resource_build!$A:$A,G$542)","v":0},{"$f":"SUMIFS(raw_resource_build!$L:$L,raw_resource_build!$B:$B,$C570,raw_resource_build!$A:$A,H$542)","v":0},{"$f":"SUMIFS(raw_resource_build!$L:$L,raw_resource_build!$B:$B,$C570,raw_resource_build!$A:$A,I$542)","v":0},{"$f":"SUMIFS(raw_resource_build!$L:$L,raw_resource_build!$B:$B,$C570,raw_resource_build!$A:$A,J$542)","v":0},{"$f":"SUMIFS(raw_resource_build!$L:$L,raw_resource_build!$B:$B,$C570,raw_resource_build!$A:$A,K$542)","v":0},{"$f":"SUMIFS(raw_resource_build!$L:$L,raw_resource_build!$B:$B,$C570,raw_resource_build!$A:$A,L$542)","v":0},{"$f":"SUMIFS(raw_resource_build!$L:$L,raw_resource_build!$B:$B,$C570,raw_resource_build!$A:$A,M$542)","v":0},{"$f":"SUMIFS(raw_resource_build!$L:$L,raw_resource_build!$B:$B,$C570,raw_resource_build!$A:$A,N$542)","v":0},{"$f":"SUMIFS(raw_resource_build!$L:$L,raw_resource_build!$B:$B,$C570,raw_resource_build!$A:$A,O$542)","v":0},{"$f":"SUMIFS(raw_resource_build!$L:$L,raw_resource_build!$B:$B,$C570,raw_resource_build!$A:$A,P$542)","v":0},{"$f":"SUMIFS(raw_resource_build!$L:$L,raw_resource_build!$B:$B,$C570,raw_resource_build!$A:$A,Q$542)","v":0},{"$f":"SUMIFS(raw_resource_build!$L:$L,raw_resource_build!$B:$B,$C570,raw_resource_build!$A:$A,R$542)","v":0},{"$f":"SUMIFS(raw_resource_build!$L:$L,raw_resource_build!$B:$B,$C570,raw_resource_build!$A:$A,S$542)","v":0},{"$f":"SUMIFS(raw_resource_build!$L:$L,raw_resource_build!$B:$B,$C570,raw_resource_build!$A:$A,T$542)","v":0},{"$f":"SUMIFS(raw_resource_build!$L:$L,raw_resource_build!$B:$B,$C570,raw_resource_build!$A:$A,U$542)","v":0},{"$f":"SUMIFS(raw_resource_build!$L:$L,raw_resource_build!$B:$B,$C570,raw_resource_build!$A:$A,V$542)","v":0},{"$f":"SUMIFS(raw_resource_build!$L:$L,raw_resource_build!$B:$B,$C570,raw_resource_build!$A:$A,W$542)","v":0},{"$f":"SUMIFS(raw_resource_build!$L:$L,raw_resource_build!$B:$B,$C570,raw_resource_build!$A:$A,X$542)","v":0},{"$f":"SUMIFS(raw_resource_build!$L:$L,raw_resource_build!$B:$B,$C570,raw_resource_build!$A:$A,Y$542)","v":0},{"$f":"SUMIFS(raw_resource_build!$L:$L,raw_resource_build!$B:$B,$C570,raw_resource_build!$A:$A,Z$542)","v":0},{"$f":"SUMIFS(raw_resource_build!$L:$L,raw_resource_build!$B:$B,$C570,raw_resource_build!$A:$A,AA$542)","v":0},{"$f":"SUMIFS(raw_resource_build!$L:$L,raw_resource_build!$B:$B,$C570,raw_resource_build!$A:$A,AB$542)","v":0},{"$f":"SUMIFS(raw_resource_build!$L:$L,raw_resource_build!$B:$B,$C570,raw_resource_build!$A:$A,AC$542)","v":0},{"$f":"SUMIFS(raw_resource_build!$L:$L,raw_resource_build!$B:$B,$C570,raw_resource_build!$A:$A,AD$542)","v":0},{"$f":"SUMIFS(raw_resource_build!$L:$L,raw_resource_build!$B:$B,$C570,raw_resource_build!$A:$A,AE$542)","v":0},{"$f":"SUMIFS(raw_resource_build!$L:$L,raw_resource_build!$B:$B,$C570,raw_resource_build!$A:$A,AF$542)","v":0},{"$f":"SUMIFS(raw_resource_build!$L:$L,raw_resource_build!$B:$B,$C570,raw_resource_build!$A:$A,AG$542)","v":0},{"$f":"SUMIFS(raw_resource_build!$L:$L,raw_resource_build!$B:$B,$C570,raw_resource_build!$A:$A,AH$542)","v":0},{"$f":"SUMIFS(raw_resource_build!$L:$L,raw_resource_build!$B:$B,$C570,raw_resource_build!$A:$A,AI$542)","v":0},{"$f":"SUMIFS(raw_resource_build!$L:$L,raw_resource_build!$B:$B,$C570,raw_resource_build!$A:$A,AJ$542)","v":0},{"$f":"SUMIFS(raw_resource_build!$L:$L,raw_resource_build!$B:$B,$C570,raw_resource_build!$A:$A,AK$542)","v":0},{"$f":"SUMIFS(raw_resource_build!$L:$L,raw_resource_build!$B:$B,$C570,raw_resource_build!$A:$A,AL$542)","v":0},{"$f":"SUMIFS(raw_resource_build!$L:$L,raw_resource_build!$B:$B,$C570,raw_resource_build!$A:$A,AM$542)","v":0},{"$f":"SUMIFS(raw_resource_build!$L:$L,raw_resource_build!$B:$B,$C570,raw_resource_build!$A:$A,AN$542)","v":0}]
[null,null,{"$f":"Lists!B63","v":"Riverside_Palm_Springs_Solar"},"SCADSNV-Riverside_Palm_Springs",{"$f":"SUMIFS(raw_resource_build!$L:$L,raw_resource_build!$B:$B,$C571,raw_resource_build!$A:$A,E$542)","v":0},{"$f":"SUMIFS(raw_resource_build!$L:$L,raw_resource_build!$B:$B,$C571,raw_resource_build!$A:$A,F$542)","v":0},{"$f":"SUMIFS(raw_resource_build!$L:$L,raw_resource_build!$B:$B,$C571,raw_resource_build!$A:$A,G$542)","v":0},{"$f":"SUMIFS(raw_resource_build!$L:$L,raw_resource_build!$B:$B,$C571,raw_resource_build!$A:$A,H$542)","v":0},{"$f":"SUMIFS(raw_resource_build!$L:$L,raw_resource_build!$B:$B,$C571,raw_resource_build!$A:$A,I$542)","v":0},{"$f":"SUMIFS(raw_resource_build!$L:$L,raw_resource_build!$B:$B,$C571,raw_resource_build!$A:$A,J$542)","v":0},{"$f":"SUMIFS(raw_resource_build!$L:$L,raw_resource_build!$B:$B,$C571,raw_resource_build!$A:$A,K$542)","v":0},{"$f":"SUMIFS(raw_resource_build!$L:$L,raw_resource_build!$B:$B,$C571,raw_resource_build!$A:$A,L$542)","v":0},{"$f":"SUMIFS(raw_resource_build!$L:$L,raw_resource_build!$B:$B,$C571,raw_resource_build!$A:$A,M$542)","v":0},{"$f":"SUMIFS(raw_resource_build!$L:$L,raw_resource_build!$B:$B,$C571,raw_resource_build!$A:$A,N$542)","v":0},{"$f":"SUMIFS(raw_resource_build!$L:$L,raw_resource_build!$B:$B,$C571,raw_resource_build!$A:$A,O$542)","v":0},{"$f":"SUMIFS(raw_resource_build!$L:$L,raw_resource_build!$B:$B,$C571,raw_resource_build!$A:$A,P$542)","v":0},{"$f":"SUMIFS(raw_resource_build!$L:$L,raw_resource_build!$B:$B,$C571,raw_resource_build!$A:$A,Q$542)","v":0},{"$f":"SUMIFS(raw_resource_build!$L:$L,raw_resource_build!$B:$B,$C571,raw_resource_build!$A:$A,R$542)","v":0},{"$f":"SUMIFS(raw_resource_build!$L:$L,raw_resource_build!$B:$B,$C571,raw_resource_build!$A:$A,S$542)","v":0},{"$f":"SUMIFS(raw_resource_build!$L:$L,raw_resource_build!$B:$B,$C571,raw_resource_build!$A:$A,T$542)","v":0},{"$f":"SUMIFS(raw_resource_build!$L:$L,raw_resource_build!$B:$B,$C571,raw_resource_build!$A:$A,U$542)","v":0},{"$f":"SUMIFS(raw_resource_build!$L:$L,raw_resource_build!$B:$B,$C571,raw_resource_build!$A:$A,V$542)","v":0},{"$f":"SUMIFS(raw_resource_build!$L:$L,raw_resource_build!$B:$B,$C571,raw_resource_build!$A:$A,W$542)","v":0},{"$f":"SUMIFS(raw_resource_build!$L:$L,raw_resource_build!$B:$B,$C571,raw_resource_build!$A:$A,X$542)","v":0},{"$f":"SUMIFS(raw_resource_build!$L:$L,raw_resource_build!$B:$B,$C571,raw_resource_build!$A:$A,Y$542)","v":0},{"$f":"SUMIFS(raw_resource_build!$L:$L,raw_resource_build!$B:$B,$C571,raw_resource_build!$A:$A,Z$542)","v":0},{"$f":"SUMIFS(raw_resource_build!$L:$L,raw_resource_build!$B:$B,$C571,raw_resource_build!$A:$A,AA$542)","v":0},{"$f":"SUMIFS(raw_resource_build!$L:$L,raw_resource_build!$B:$B,$C571,raw_resource_build!$A:$A,AB$542)","v":0},{"$f":"SUMIFS(raw_resource_build!$L:$L,raw_resource_build!$B:$B,$C571,raw_resource_build!$A:$A,AC$542)","v":0},{"$f":"SUMIFS(raw_resource_build!$L:$L,raw_resource_build!$B:$B,$C571,raw_resource_build!$A:$A,AD$542)","v":0},{"$f":"SUMIFS(raw_resource_build!$L:$L,raw_resource_build!$B:$B,$C571,raw_resource_build!$A:$A,AE$542)","v":0},{"$f":"SUMIFS(raw_resource_build!$L:$L,raw_resource_build!$B:$B,$C571,raw_resource_build!$A:$A,AF$542)","v":0},{"$f":"SUMIFS(raw_resource_build!$L:$L,raw_resource_build!$B:$B,$C571,raw_resource_build!$A:$A,AG$542)","v":0},{"$f":"SUMIFS(raw_resource_build!$L:$L,raw_resource_build!$B:$B,$C571,raw_resource_build!$A:$A,AH$542)","v":0},{"$f":"SUMIFS(raw_resource_build!$L:$L,raw_resource_build!$B:$B,$C571,raw_resource_build!$A:$A,AI$542)","v":0},{"$f":"SUMIFS(raw_resource_build!$L:$L,raw_resource_build!$B:$B,$C571,raw_resource_build!$A:$A,AJ$542)","v":0},{"$f":"SUMIFS(raw_resource_build!$L:$L,raw_resource_build!$B:$B,$C571,raw_resource_build!$A:$A,AK$542)","v":0},{"$f":"SUMIFS(raw_resource_build!$L:$L,raw_resource_build!$B:$B,$C571,raw_resource_build!$A:$A,AL$542)","v":0},{"$f":"SUMIFS(raw_resource_build!$L:$L,raw_resource_build!$B:$B,$C571,raw_resource_build!$A:$A,AM$542)","v":0},{"$f":"SUMIFS(raw_resource_build!$L:$L,raw_resource_build!$B:$B,$C571,raw_resource_build!$A:$A,AN$542)","v":0}]
[null,null,{"$f":"Lists!B64","v":"Sacramento_River_Solar"},"Sacramento_River",{"$f":"SUMIFS(raw_resource_build!$L:$L,raw_resource_build!$B:$B,$C572,raw_resource_build!$A:$A,E$542)","v":0},{"$f":"SUMIFS(raw_resource_build!$L:$L,raw_resource_build!$B:$B,$C572,raw_resource_build!$A:$A,F$542)","v":0},{"$f":"SUMIFS(raw_resource_build!$L:$L,raw_resource_build!$B:$B,$C572,raw_resource_build!$A:$A,G$542)","v":0},{"$f":"SUMIFS(raw_resource_build!$L:$L,raw_resource_build!$B:$B,$C572,raw_resource_build!$A:$A,H$542)","v":0},{"$f":"SUMIFS(raw_resource_build!$L:$L,raw_resource_build!$B:$B,$C572,raw_resource_build!$A:$A,I$542)","v":0},{"$f":"SUMIFS(raw_resource_build!$L:$L,raw_resource_build!$B:$B,$C572,raw_resource_build!$A:$A,J$542)","v":0},{"$f":"SUMIFS(raw_resource_build!$L:$L,raw_resource_build!$B:$B,$C572,raw_resource_build!$A:$A,K$542)","v":0},{"$f":"SUMIFS(raw_resource_build!$L:$L,raw_resource_build!$B:$B,$C572,raw_resource_build!$A:$A,L$542)","v":0},{"$f":"SUMIFS(raw_resource_build!$L:$L,raw_resource_build!$B:$B,$C572,raw_resource_build!$A:$A,M$542)","v":0},{"$f":"SUMIFS(raw_resource_build!$L:$L,raw_resource_build!$B:$B,$C572,raw_resource_build!$A:$A,N$542)","v":0},{"$f":"SUMIFS(raw_resource_build!$L:$L,raw_resource_build!$B:$B,$C572,raw_resource_build!$A:$A,O$542)","v":0},{"$f":"SUMIFS(raw_resource_build!$L:$L,raw_resource_build!$B:$B,$C572,raw_resource_build!$A:$A,P$542)","v":0},{"$f":"SUMIFS(raw_resource_build!$L:$L,raw_resource_build!$B:$B,$C572,raw_resource_build!$A:$A,Q$542)","v":0},{"$f":"SUMIFS(raw_resource_build!$L:$L,raw_resource_build!$B:$B,$C572,raw_resource_build!$A:$A,R$542)","v":0},{"$f":"SUMIFS(raw_resource_build!$L:$L,raw_resource_build!$B:$B,$C572,raw_resource_build!$A:$A,S$542)","v":0},{"$f":"SUMIFS(raw_resource_build!$L:$L,raw_resource_build!$B:$B,$C572,raw_resource_build!$A:$A,T$542)","v":1866},{"$f":"SUMIFS(raw_resource_build!$L:$L,raw_resource_build!$B:$B,$C572,raw_resource_build!$A:$A,U$542)","v":0},{"$f":"SUMIFS(raw_resource_build!$L:$L,raw_resource_build!$B:$B,$C572,raw_resource_build!$A:$A,V$542)","v":0},{"$f":"SUMIFS(raw_resource_build!$L:$L,raw_resource_build!$B:$B,$C572,raw_resource_build!$A:$A,W$542)","v":0},{"$f":"SUMIFS(raw_resource_build!$L:$L,raw_resource_build!$B:$B,$C572,raw_resource_build!$A:$A,X$542)","v":0},{"$f":"SUMIFS(raw_resource_build!$L:$L,raw_resource_build!$B:$B,$C572,raw_resource_build!$A:$A,Y$542)","v":0},{"$f":"SUMIFS(raw_resource_build!$L:$L,raw_resource_build!$B:$B,$C572,raw_resource_build!$A:$A,Z$542)","v":0},{"$f":"SUMIFS(raw_resource_build!$L:$L,raw_resource_build!$B:$B,$C572,raw_resource_build!$A:$A,AA$542)","v":0},{"$f":"SUMIFS(raw_resource_build!$L:$L,raw_resource_build!$B:$B,$C572,raw_resource_build!$A:$A,AB$542)","v":0},{"$f":"SUMIFS(raw_resource_build!$L:$L,raw_resource_build!$B:$B,$C572,raw_resource_build!$A:$A,AC$542)","v":0},{"$f":"SUMIFS(raw_resource_build!$L:$L,raw_resource_build!$B:$B,$C572,raw_resource_build!$A:$A,AD$542)","v":0},{"$f":"SUMIFS(raw_resource_build!$L:$L,raw_resource_build!$B:$B,$C572,raw_resource_build!$A:$A,AE$542)","v":0},{"$f":"SUMIFS(raw_resource_build!$L:$L,raw_resource_build!$B:$B,$C572,raw_resource_build!$A:$A,AF$542)","v":0},{"$f":"SUMIFS(raw_resource_build!$L:$L,raw_resource_build!$B:$B,$C572,raw_resource_build!$A:$A,AG$542)","v":0},{"$f":"SUMIFS(raw_resource_build!$L:$L,raw_resource_build!$B:$B,$C572,raw_resource_build!$A:$A,AH$542)","v":0},{"$f":"SUMIFS(raw_resource_build!$L:$L,raw_resource_build!$B:$B,$C572,raw_resource_build!$A:$A,AI$542)","v":1866},{"$f":"SUMIFS(raw_resource_build!$L:$L,raw_resource_build!$B:$B,$C572,raw_resource_build!$A:$A,AJ$542)","v":0},{"$f":"SUMIFS(raw_resource_build!$L:$L,raw_resource_build!$B:$B,$C572,raw_resource_build!$A:$A,AK$542)","v":0},{"$f":"SUMIFS(raw_resource_build!$L:$L,raw_resource_build!$B:$B,$C572,raw_resource_build!$A:$A,AL$542)","v":0},{"$f":"SUMIFS(raw_resource_build!$L:$L,raw_resource_build!$B:$B,$C572,raw_resource_build!$A:$A,AM$542)","v":0},{"$f":"SUMIFS(raw_resource_build!$L:$L,raw_resource_build!$B:$B,$C572,raw_resource_build!$A:$A,AN$542)","v":0}]
[null,null,{"$f":"Lists!B65","v":"Sacramento_River_Wind"},"N/A",{"$f":"SUMIFS(raw_resource_build!$L:$L,raw_resource_build!$B:$B,$C573,raw_resource_build!$A:$A,E$542)","v":0},{"$f":"SUMIFS(raw_resource_build!$L:$L,raw_resource_build!$B:$B,$C573,raw_resource_build!$A:$A,F$542)","v":0},{"$f":"SUMIFS(raw_resource_build!$L:$L,raw_resource_build!$B:$B,$C573,raw_resource_build!$A:$A,G$542)","v":0},{"$f":"SUMIFS(raw_resource_build!$L:$L,raw_resource_build!$B:$B,$C573,raw_resource_build!$A:$A,H$542)","v":0},{"$f":"SUMIFS(raw_resource_build!$L:$L,raw_resource_build!$B:$B,$C573,raw_resource_build!$A:$A,I$542)","v":0},{"$f":"SUMIFS(raw_resource_build!$L:$L,raw_resource_build!$B:$B,$C573,raw_resource_build!$A:$A,J$542)","v":0},{"$f":"SUMIFS(raw_resource_build!$L:$L,raw_resource_build!$B:$B,$C573,raw_resource_build!$A:$A,K$542)","v":0},{"$f":"SUMIFS(raw_resource_build!$L:$L,raw_resource_build!$B:$B,$C573,raw_resource_build!$A:$A,L$542)","v":0},{"$f":"SUMIFS(raw_resource_build!$L:$L,raw_resource_build!$B:$B,$C573,raw_resource_build!$A:$A,M$542)","v":0},{"$f":"SUMIFS(raw_resource_build!$L:$L,raw_resource_build!$B:$B,$C573,raw_resource_build!$A:$A,N$542)","v":0},{"$f":"SUMIFS(raw_resource_build!$L:$L,raw_resource_build!$B:$B,$C573,raw_resource_build!$A:$A,O$542)","v":0},{"$f":"SUMIFS(raw_resource_build!$L:$L,raw_resource_build!$B:$B,$C573,raw_resource_build!$A:$A,P$542)","v":0},{"$f":"SUMIFS(raw_resource_build!$L:$L,raw_resource_build!$B:$B,$C573,raw_resource_build!$A:$A,Q$542)","v":0},{"$f":"SUMIFS(raw_resource_build!$L:$L,raw_resource_build!$B:$B,$C573,raw_resource_build!$A:$A,R$542)","v":0},{"$f":"SUMIFS(raw_resource_build!$L:$L,raw_resource_build!$B:$B,$C573,raw_resource_build!$A:$A,S$542)","v":0},{"$f":"SUMIFS(raw_resource_build!$L:$L,raw_resource_build!$B:$B,$C573,raw_resource_build!$A:$A,T$542)","v":0},{"$f":"SUMIFS(raw_resource_build!$L:$L,raw_resource_build!$B:$B,$C573,raw_resource_build!$A:$A,U$542)","v":0},{"$f":"SUMIFS(raw_resource_build!$L:$L,raw_resource_build!$B:$B,$C573,raw_resource_build!$A:$A,V$542)","v":0},{"$f":"SUMIFS(raw_resource_build!$L:$L,raw_resource_build!$B:$B,$C573,raw_resource_build!$A:$A,W$542)","v":0},{"$f":"SUMIFS(raw_resource_build!$L:$L,raw_resource_build!$B:$B,$C573,raw_resource_build!$A:$A,X$542)","v":0},{"$f":"SUMIFS(raw_resource_build!$L:$L,raw_resource_build!$B:$B,$C573,raw_resource_build!$A:$A,Y$542)","v":0},{"$f":"SUMIFS(raw_resource_build!$L:$L,raw_resource_build!$B:$B,$C573,raw_resource_build!$A:$A,Z$542)","v":0},{"$f":"SUMIFS(raw_resource_build!$L:$L,raw_resource_build!$B:$B,$C573,raw_resource_build!$A:$A,AA$542)","v":0},{"$f":"SUMIFS(raw_resource_build!$L:$L,raw_resource_build!$B:$B,$C573,raw_resource_build!$A:$A,AB$542)","v":0},{"$f":"SUMIFS(raw_resource_build!$L:$L,raw_resource_build!$B:$B,$C573,raw_resource_build!$A:$A,AC$542)","v":0},{"$f":"SUMIFS(raw_resource_build!$L:$L,raw_resource_build!$B:$B,$C573,raw_resource_build!$A:$A,AD$542)","v":0},{"$f":"SUMIFS(raw_resource_build!$L:$L,raw_resource_build!$B:$B,$C573,raw_resource_build!$A:$A,AE$542)","v":0},{"$f":"SUMIFS(raw_resource_build!$L:$L,raw_resource_build!$B:$B,$C573,raw_resource_build!$A:$A,AF$542)","v":0},{"$f":"SUMIFS(raw_resource_build!$L:$L,raw_resource_build!$B:$B,$C573,raw_resource_build!$A:$A,AG$542)","v":0},{"$f":"SUMIFS(raw_resource_build!$L:$L,raw_resource_build!$B:$B,$C573,raw_resource_build!$A:$A,AH$542)","v":0},{"$f":"SUMIFS(raw_resource_build!$L:$L,raw_resource_build!$B:$B,$C573,raw_resource_build!$A:$A,AI$542)","v":0},{"$f":"SUMIFS(raw_resource_build!$L:$L,raw_resource_build!$B:$B,$C573,raw_resource_build!$A:$A,AJ$542)","v":0},{"$f":"SUMIFS(raw_resource_build!$L:$L,raw_resource_build!$B:$B,$C573,raw_resource_build!$A:$A,AK$542)","v":0},{"$f":"SUMIFS(raw_resource_build!$L:$L,raw_resource_build!$B:$B,$C573,raw_resource_build!$A:$A,AL$542)","v":0},{"$f":"SUMIFS(raw_resource_build!$L:$L,raw_resource_build!$B:$B,$C573,raw_resource_build!$A:$A,AM$542)","v":0},{"$f":"SUMIFS(raw_resource_build!$L:$L,raw_resource_build!$B:$B,$C573,raw_resource_build!$A:$A,AN$542)","v":0}]
[null,null,{"$f":"Lists!B66","v":"SCADSNV_Solar"},"SCADSNV",{"$f":"SUMIFS(raw_resource_build!$L:$L,raw_resource_build!$B:$B,$C574,raw_resource_build!$A:$A,E$542)","v":0},{"$f":"SUMIFS(raw_resource_build!$L:$L,raw_resource_build!$B:$B,$C574,raw_resource_build!$A:$A,F$542)","v":0},{"$f":"SUMIFS(raw_resource_build!$L:$L,raw_resource_build!$B:$B,$C574,raw_resource_build!$A:$A,G$542)","v":0},{"$f":"SUMIFS(raw_resource_build!$L:$L,raw_resource_build!$B:$B,$C574,raw_resource_build!$A:$A,H$542)","v":0},{"$f":"SUMIFS(raw_resource_build!$L:$L,raw_resource_build!$B:$B,$C574,raw_resource_build!$A:$A,I$542)","v":0},{"$f":"SUMIFS(raw_resource_build!$L:$L,raw_resource_build!$B:$B,$C574,raw_resource_build!$A:$A,J$542)","v":0},{"$f":"SUMIFS(raw_resource_build!$L:$L,raw_resource_build!$B:$B,$C574,raw_resource_build!$A:$A,K$542)","v":0},{"$f":"SUMIFS(raw_resource_build!$L:$L,raw_resource_build!$B:$B,$C574,raw_resource_build!$A:$A,L$542)","v":0},{"$f":"SUMIFS(raw_resource_build!$L:$L,raw_resource_build!$B:$B,$C574,raw_resource_build!$A:$A,M$542)","v":0},{"$f":"SUMIFS(raw_resource_build!$L:$L,raw_resource_build!$B:$B,$C574,raw_resource_build!$A:$A,N$542)","v":0},{"$f":"SUMIFS(raw_resource_build!$L:$L,raw_resource_build!$B:$B,$C574,raw_resource_build!$A:$A,O$542)","v":0},{"$f":"SUMIFS(raw_resource_build!$L:$L,raw_resource_build!$B:$B,$C574,raw_resource_build!$A:$A,P$542)","v":2150},{"$f":"SUMIFS(raw_resource_build!$L:$L,raw_resource_build!$B:$B,$C574,raw_resource_build!$A:$A,Q$542)","v":0},{"$f":"SUMIFS(raw_resource_build!$L:$L,raw_resource_build!$B:$B,$C574,raw_resource_build!$A:$A,R$542)","v":0},{"$f":"SUMIFS(raw_resource_build!$L:$L,raw_resource_build!$B:$B,$C574,raw_resource_build!$A:$A,S$542)","v":0},{"$f":"SUMIFS(raw_resource_build!$L:$L,raw_resource_build!$B:$B,$C574,raw_resource_build!$A:$A,T$542)","v":2150},{"$f":"SUMIFS(raw_resource_build!$L:$L,raw_resource_build!$B:$B,$C574,raw_resource_build!$A:$A,U$542)","v":0},{"$f":"SUMIFS(raw_resource_build!$L:$L,raw_resource_build!$B:$B,$C574,raw_resource_build!$A:$A,V$542)","v":0},{"$f":"SUMIFS(raw_resource_build!$L:$L,raw_resource_build!$B:$B,$C574,raw_resource_build!$A:$A,W$542)","v":0},{"$f":"SUMIFS(raw_resource_build!$L:$L,raw_resource_build!$B:$B,$C574,raw_resource_build!$A:$A,X$542)","v":0},{"$f":"SUMIFS(raw_resource_build!$L:$L,raw_resource_build!$B:$B,$C574,raw_resource_build!$A:$A,Y$542)","v":0},{"$f":"SUMIFS(raw_resource_build!$L:$L,raw_resource_build!$B:$B,$C574,raw_resource_build!$A:$A,Z$542)","v":0},{"$f":"SUMIFS(raw_resource_build!$L:$L,raw_resource_build!$B:$B,$C574,raw_resource_build!$A:$A,AA$542)","v":0},{"$f":"SUMIFS(raw_resource_build!$L:$L,raw_resource_build!$B:$B,$C574,raw_resource_build!$A:$A,AB$542)","v":0},{"$f":"SUMIFS(raw_resource_build!$L:$L,raw_resource_build!$B:$B,$C574,raw_resource_build!$A:$A,AC$542)","v":0},{"$f":"SUMIFS(raw_resource_build!$L:$L,raw_resource_build!$B:$B,$C574,raw_resource_build!$A:$A,AD$542)","v":0},{"$f":"SUMIFS(raw_resource_build!$L:$L,raw_resource_build!$B:$B,$C574,raw_resource_build!$A:$A,AE$542)","v":0},{"$f":"SUMIFS(raw_resource_build!$L:$L,raw_resource_build!$B:$B,$C574,raw_resource_build!$A:$A,AF$542)","v":0},{"$f":"SUMIFS(raw_resource_build!$L:$L,raw_resource_build!$B:$B,$C574,raw_resource_build!$A:$A,AG$542)","v":0},{"$f":"SUMIFS(raw_resource_build!$L:$L,raw_resource_build!$B:$B,$C574,raw_resource_build!$A:$A,AH$542)","v":0},{"$f":"SUMIFS(raw_resource_build!$L:$L,raw_resource_build!$B:$B,$C574,raw_resource_build!$A:$A,AI$542)","v":2150},{"$f":"SUMIFS(raw_resource_build!$L:$L,raw_resource_build!$B:$B,$C574,raw_resource_build!$A:$A,AJ$542)","v":0},{"$f":"SUMIFS(raw_resource_build!$L:$L,raw_resource_build!$B:$B,$C574,raw_resource_build!$A:$A,AK$542)","v":0},{"$f":"SUMIFS(raw_resource_build!$L:$L,raw_resource_build!$B:$B,$C574,raw_resource_build!$A:$A,AL$542)","v":0},{"$f":"SUMIFS(raw_resource_build!$L:$L,raw_resource_build!$B:$B,$C574,raw_resource_build!$A:$A,AM$542)","v":0},{"$f":"SUMIFS(raw_resource_build!$L:$L,raw_resource_build!$B:$B,$C574,raw_resource_build!$A:$A,AN$542)","v":0}]
[null,null,{"$f":"Lists!B67","v":"SCADSNV_Wind"},{"$f":"D502","v":"SCADSNV"},{"$f":"SUMIFS(raw_resource_build!$L:$L,raw_resource_build!$B:$B,$C575,raw_resource_build!$A:$A,E$542)","v":0},{"$f":"SUMIFS(raw_resource_build!$L:$L,raw_resource_build!$B:$B,$C575,raw_resource_build!$A:$A,F$542)","v":0},{"$f":"SUMIFS(raw_resource_build!$L:$L,raw_resource_build!$B:$B,$C575,raw_resource_build!$A:$A,G$542)","v":0},{"$f":"SUMIFS(raw_resource_build!$L:$L,raw_resource_build!$B:$B,$C575,raw_resource_build!$A:$A,H$542)","v":0},{"$f":"SUMIFS(raw_resource_build!$L:$L,raw_resource_build!$B:$B,$C575,raw_resource_build!$A:$A,I$542)","v":0},{"$f":"SUMIFS(raw_resource_build!$L:$L,raw_resource_build!$B:$B,$C575,raw_resource_build!$A:$A,J$542)","v":0},{"$f":"SUMIFS(raw_resource_build!$L:$L,raw_resource_build!$B:$B,$C575,raw_resource_build!$A:$A,K$542)","v":0},{"$f":"SUMIFS(raw_resource_build!$L:$L,raw_resource_build!$B:$B,$C575,raw_resource_build!$A:$A,L$542)","v":0},{"$f":"SUMIFS(raw_resource_build!$L:$L,raw_resource_build!$B:$B,$C575,raw_resource_build!$A:$A,M$542)","v":0},{"$f":"SUMIFS(raw_resource_build!$L:$L,raw_resource_build!$B:$B,$C575,raw_resource_build!$A:$A,N$542)","v":0},{"$f":"SUMIFS(raw_resource_build!$L:$L,raw_resource_build!$B:$B,$C575,raw_resource_build!$A:$A,O$542)","v":0},{"$f":"SUMIFS(raw_resource_build!$L:$L,raw_resource_build!$B:$B,$C575,raw_resource_build!$A:$A,P$542)","v":0},{"$f":"SUMIFS(raw_resource_build!$L:$L,raw_resource_build!$B:$B,$C575,raw_resource_build!$A:$A,Q$542)","v":0},{"$f":"SUMIFS(raw_resource_build!$L:$L,raw_resource_build!$B:$B,$C575,raw_resource_build!$A:$A,R$542)","v":0},{"$f":"SUMIFS(raw_resource_build!$L:$L,raw_resource_build!$B:$B,$C575,raw_resource_build!$A:$A,S$542)","v":0},{"$f":"SUMIFS(raw_resource_build!$L:$L,raw_resource_build!$B:$B,$C575,raw_resource_build!$A:$A,T$542)","v":0},{"$f":"SUMIFS(raw_resource_build!$L:$L,raw_resource_build!$B:$B,$C575,raw_resource_build!$A:$A,U$542)","v":0},{"$f":"SUMIFS(raw_resource_build!$L:$L,raw_resource_build!$B:$B,$C575,raw_resource_build!$A:$A,V$542)","v":0},{"$f":"SUMIFS(raw_resource_build!$L:$L,raw_resource_build!$B:$B,$C575,raw_resource_build!$A:$A,W$542)","v":0},{"$f":"SUMIFS(raw_resource_build!$L:$L,raw_resource_build!$B:$B,$C575,raw_resource_build!$A:$A,X$542)","v":0},{"$f":"SUMIFS(raw_resource_build!$L:$L,raw_resource_build!$B:$B,$C575,raw_resource_build!$A:$A,Y$542)","v":0},{"$f":"SUMIFS(raw_resource_build!$L:$L,raw_resource_build!$B:$B,$C575,raw_resource_build!$A:$A,Z$542)","v":0},{"$f":"SUMIFS(raw_resource_build!$L:$L,raw_resource_build!$B:$B,$C575,raw_resource_build!$A:$A,AA$542)","v":0},{"$f":"SUMIFS(raw_resource_build!$L:$L,raw_resource_build!$B:$B,$C575,raw_resource_build!$A:$A,AB$542)","v":0},{"$f":"SUMIFS(raw_resource_build!$L:$L,raw_resource_build!$B:$B,$C575,raw_resource_build!$A:$A,AC$542)","v":0},{"$f":"SUMIFS(raw_resource_build!$L:$L,raw_resource_build!$B:$B,$C575,raw_resource_build!$A:$A,AD$542)","v":0},{"$f":"SUMIFS(raw_resource_build!$L:$L,raw_resource_build!$B:$B,$C575,raw_resource_build!$A:$A,AE$542)","v":0},{"$f":"SUMIFS(raw_resource_build!$L:$L,raw_resource_build!$B:$B,$C575,raw_resource_build!$A:$A,AF$542)","v":0},{"$f":"SUMIFS(raw_resource_build!$L:$L,raw_resource_build!$B:$B,$C575,raw_resource_build!$A:$A,AG$542)","v":0},{"$f":"SUMIFS(raw_resource_build!$L:$L,raw_resource_build!$B:$B,$C575,raw_resource_build!$A:$A,AH$542)","v":0},{"$f":"SUMIFS(raw_resource_build!$L:$L,raw_resource_build!$B:$B,$C575,raw_resource_build!$A:$A,AI$542)","v":0},{"$f":"SUMIFS(raw_resource_build!$L:$L,raw_resource_build!$B:$B,$C575,raw_resource_build!$A:$A,AJ$542)","v":0},{"$f":"SUMIFS(raw_resource_build!$L:$L,raw_resource_build!$B:$B,$C575,raw_resource_build!$A:$A,AK$542)","v":0},{"$f":"SUMIFS(raw_resource_build!$L:$L,raw_resource_build!$B:$B,$C575,raw_resource_build!$A:$A,AL$542)","v":0},{"$f":"SUMIFS(raw_resource_build!$L:$L,raw_resource_build!$B:$B,$C575,raw_resource_build!$A:$A,AM$542)","v":0},{"$f":"SUMIFS(raw_resource_build!$L:$L,raw_resource_build!$B:$B,$C575,raw_resource_build!$A:$A,AN$542)","v":0}]
[null,null,{"$f":"Lists!B68","v":"Solano_Solar"},"Solano-Sacramento_River",{"$f":"SUMIFS(raw_resource_build!$L:$L,raw_resource_build!$B:$B,$C576,raw_resource_build!$A:$A,E$542)","v":0},{"$f":"SUMIFS(raw_resource_build!$L:$L,raw_resource_build!$B:$B,$C576,raw_resource_build!$A:$A,F$542)","v":0},{"$f":"SUMIFS(raw_resource_build!$L:$L,raw_resource_build!$B:$B,$C576,raw_resource_build!$A:$A,G$542)","v":0},{"$f":"SUMIFS(raw_resource_build!$L:$L,raw_resource_build!$B:$B,$C576,raw_resource_build!$A:$A,H$542)","v":0},{"$f":"SUMIFS(raw_resource_build!$L:$L,raw_resource_build!$B:$B,$C576,raw_resource_build!$A:$A,I$542)","v":0},{"$f":"SUMIFS(raw_resource_build!$L:$L,raw_resource_build!$B:$B,$C576,raw_resource_build!$A:$A,J$542)","v":0},{"$f":"SUMIFS(raw_resource_build!$L:$L,raw_resource_build!$B:$B,$C576,raw_resource_build!$A:$A,K$542)","v":0},{"$f":"SUMIFS(raw_resource_build!$L:$L,raw_resource_build!$B:$B,$C576,raw_resource_build!$A:$A,L$542)","v":0},{"$f":"SUMIFS(raw_resource_build!$L:$L,raw_resource_build!$B:$B,$C576,raw_resource_build!$A:$A,M$542)","v":0},{"$f":"SUMIFS(raw_resource_build!$L:$L,raw_resource_build!$B:$B,$C576,raw_resource_build!$A:$A,N$542)","v":0},{"$f":"SUMIFS(raw_resource_build!$L:$L,raw_resource_build!$B:$B,$C576,raw_resource_build!$A:$A,O$542)","v":0},{"$f":"SUMIFS(raw_resource_build!$L:$L,raw_resource_build!$B:$B,$C576,raw_resource_build!$A:$A,P$542)","v":0},{"$f":"SUMIFS(raw_resource_build!$L:$L,raw_resource_build!$B:$B,$C576,raw_resource_build!$A:$A,Q$542)","v":0},{"$f":"SUMIFS(raw_resource_build!$L:$L,raw_resource_build!$B:$B,$C576,raw_resource_build!$A:$A,R$542)","v":0},{"$f":"SUMIFS(raw_resource_build!$L:$L,raw_resource_build!$B:$B,$C576,raw_resource_build!$A:$A,S$542)","v":0},{"$f":"SUMIFS(raw_resource_build!$L:$L,raw_resource_build!$B:$B,$C576,raw_resource_build!$A:$A,T$542)","v":700},{"$f":"SUMIFS(raw_resource_build!$L:$L,raw_resource_build!$B:$B,$C576,raw_resource_build!$A:$A,U$542)","v":0},{"$f":"SUMIFS(raw_resource_build!$L:$L,raw_resource_build!$B:$B,$C576,raw_resource_build!$A:$A,V$542)","v":0},{"$f":"SUMIFS(raw_resource_build!$L:$L,raw_resource_build!$B:$B,$C576,raw_resource_build!$A:$A,W$542)","v":0},{"$f":"SUMIFS(raw_resource_build!$L:$L,raw_resource_build!$B:$B,$C576,raw_resource_build!$A:$A,X$542)","v":0},{"$f":"SUMIFS(raw_resource_build!$L:$L,raw_resource_build!$B:$B,$C576,raw_resource_build!$A:$A,Y$542)","v":0},{"$f":"SUMIFS(raw_resource_build!$L:$L,raw_resource_build!$B:$B,$C576,raw_resource_build!$A:$A,Z$542)","v":0},{"$f":"SUMIFS(raw_resource_build!$L:$L,raw_resource_build!$B:$B,$C576,raw_resource_build!$A:$A,AA$542)","v":0},{"$f":"SUMIFS(raw_resource_build!$L:$L,raw_resource_build!$B:$B,$C576,raw_resource_build!$A:$A,AB$542)","v":0},{"$f":"SUMIFS(raw_resource_build!$L:$L,raw_resource_build!$B:$B,$C576,raw_resource_build!$A:$A,AC$542)","v":0},{"$f":"SUMIFS(raw_resource_build!$L:$L,raw_resource_build!$B:$B,$C576,raw_resource_build!$A:$A,AD$542)","v":0},{"$f":"SUMIFS(raw_resource_build!$L:$L,raw_resource_build!$B:$B,$C576,raw_resource_build!$A:$A,AE$542)","v":0},{"$f":"SUMIFS(raw_resource_build!$L:$L,raw_resource_build!$B:$B,$C576,raw_resource_build!$A:$A,AF$542)","v":0},{"$f":"SUMIFS(raw_resource_build!$L:$L,raw_resource_build!$B:$B,$C576,raw_resource_build!$A:$A,AG$542)","v":0},{"$f":"SUMIFS(raw_resource_build!$L:$L,raw_resource_build!$B:$B,$C576,raw_resource_build!$A:$A,AH$542)","v":0},{"$f":"SUMIFS(raw_resource_build!$L:$L,raw_resource_build!$B:$B,$C576,raw_resource_build!$A:$A,AI$542)","v":700},{"$f":"SUMIFS(raw_resource_build!$L:$L,raw_resource_build!$B:$B,$C576,raw_resource_build!$A:$A,AJ$542)","v":0},{"$f":"SUMIFS(raw_resource_build!$L:$L,raw_resource_build!$B:$B,$C576,raw_resource_build!$A:$A,AK$542)","v":0},{"$f":"SUMIFS(raw_resource_build!$L:$L,raw_resource_build!$B:$B,$C576,raw_resource_build!$A:$A,AL$542)","v":0},{"$f":"SUMIFS(raw_resource_build!$L:$L,raw_resource_build!$B:$B,$C576,raw_resource_build!$A:$A,AM$542)","v":0},{"$f":"SUMIFS(raw_resource_build!$L:$L,raw_resource_build!$B:$B,$C576,raw_resource_build!$A:$A,AN$542)","v":0}]
[null,null,{"$f":"Lists!B69","v":"Solano_subzone_Solar"},"Solano-Solano_subzone-Sacramento_River",{"$f":"SUMIFS(raw_resource_build!$L:$L,raw_resource_build!$B:$B,$C577,raw_resource_build!$A:$A,E$542)","v":0},{"$f":"SUMIFS(raw_resource_build!$L:$L,raw_resource_build!$B:$B,$C577,raw_resource_build!$A:$A,F$542)","v":0},{"$f":"SUMIFS(raw_resource_build!$L:$L,raw_resource_build!$B:$B,$C577,raw_resource_build!$A:$A,G$542)","v":0},{"$f":"SUMIFS(raw_resource_build!$L:$L,raw_resource_build!$B:$B,$C577,raw_resource_build!$A:$A,H$542)","v":0},{"$f":"SUMIFS(raw_resource_build!$L:$L,raw_resource_build!$B:$B,$C577,raw_resource_build!$A:$A,I$542)","v":0},{"$f":"SUMIFS(raw_resource_build!$L:$L,raw_resource_build!$B:$B,$C577,raw_resource_build!$A:$A,J$542)","v":0},{"$f":"SUMIFS(raw_resource_build!$L:$L,raw_resource_build!$B:$B,$C577,raw_resource_build!$A:$A,K$542)","v":0},{"$f":"SUMIFS(raw_resource_build!$L:$L,raw_resource_build!$B:$B,$C577,raw_resource_build!$A:$A,L$542)","v":0},{"$f":"SUMIFS(raw_resource_build!$L:$L,raw_resource_build!$B:$B,$C577,raw_resource_build!$A:$A,M$542)","v":0},{"$f":"SUMIFS(raw_resource_build!$L:$L,raw_resource_build!$B:$B,$C577,raw_resource_build!$A:$A,N$542)","v":0},{"$f":"SUMIFS(raw_resource_build!$L:$L,raw_resource_build!$B:$B,$C577,raw_resource_build!$A:$A,O$542)","v":0},{"$f":"SUMIFS(raw_resource_build!$L:$L,raw_resource_build!$B:$B,$C577,raw_resource_build!$A:$A,P$542)","v":0},{"$f":"SUMIFS(raw_resource_build!$L:$L,raw_resource_build!$B:$B,$C577,raw_resource_build!$A:$A,Q$542)","v":0},{"$f":"SUMIFS(raw_resource_build!$L:$L,raw_resource_build!$B:$B,$C577,raw_resource_build!$A:$A,R$542)","v":0},{"$f":"SUMIFS(raw_resource_build!$L:$L,raw_resource_build!$B:$B,$C577,raw_resource_build!$A:$A,S$542)","v":0},{"$f":"SUMIFS(raw_resource_build!$L:$L,raw_resource_build!$B:$B,$C577,raw_resource_build!$A:$A,T$542)","v":0},{"$f":"SUMIFS(raw_resource_build!$L:$L,raw_resource_build!$B:$B,$C577,raw_resource_build!$A:$A,U$542)","v":0},{"$f":"SUMIFS(raw_resource_build!$L:$L,raw_resource_build!$B:$B,$C577,raw_resource_build!$A:$A,V$542)","v":0},{"$f":"SUMIFS(raw_resource_build!$L:$L,raw_resource_build!$B:$B,$C577,raw_resource_build!$A:$A,W$542)","v":0},{"$f":"SUMIFS(raw_resource_build!$L:$L,raw_resource_build!$B:$B,$C577,raw_resource_build!$A:$A,X$542)","v":0},{"$f":"SUMIFS(raw_resource_build!$L:$L,raw_resource_build!$B:$B,$C577,raw_resource_build!$A:$A,Y$542)","v":0},{"$f":"SUMIFS(raw_resource_build!$L:$L,raw_resource_build!$B:$B,$C577,raw_resource_build!$A:$A,Z$542)","v":0},{"$f":"SUMIFS(raw_resource_build!$L:$L,raw_resource_build!$B:$B,$C577,raw_resource_build!$A:$A,AA$542)","v":0},{"$f":"SUMIFS(raw_resource_build!$L:$L,raw_resource_build!$B:$B,$C577,raw_resource_build!$A:$A,AB$542)","v":0},{"$f":"SUMIFS(raw_resource_build!$L:$L,raw_resource_build!$B:$B,$C577,raw_resource_build!$A:$A,AC$542)","v":0},{"$f":"SUMIFS(raw_resource_build!$L:$L,raw_resource_build!$B:$B,$C577,raw_resource_build!$A:$A,AD$542)","v":0},{"$f":"SUMIFS(raw_resource_build!$L:$L,raw_resource_build!$B:$B,$C577,raw_resource_build!$A:$A,AE$542)","v":0},{"$f":"SUMIFS(raw_resource_build!$L:$L,raw_resource_build!$B:$B,$C577,raw_resource_build!$A:$A,AF$542)","v":0},{"$f":"SUMIFS(raw_resource_build!$L:$L,raw_resource_build!$B:$B,$C577,raw_resource_build!$A:$A,AG$542)","v":0},{"$f":"SUMIFS(raw_resource_build!$L:$L,raw_resource_build!$B:$B,$C577,raw_resource_build!$A:$A,AH$542)","v":0},{"$f":"SUMIFS(raw_resource_build!$L:$L,raw_resource_build!$B:$B,$C577,raw_resource_build!$A:$A,AI$542)","v":0},{"$f":"SUMIFS(raw_resource_build!$L:$L,raw_resource_build!$B:$B,$C577,raw_resource_build!$A:$A,AJ$542)","v":0},{"$f":"SUMIFS(raw_resource_build!$L:$L,raw_resource_build!$B:$B,$C577,raw_resource_build!$A:$A,AK$542)","v":0},{"$f":"SUMIFS(raw_resource_build!$L:$L,raw_resource_build!$B:$B,$C577,raw_resource_build!$A:$A,AL$542)","v":0},{"$f":"SUMIFS(raw_resource_build!$L:$L,raw_resource_build!$B:$B,$C577,raw_resource_build!$A:$A,AM$542)","v":0},{"$f":"SUMIFS(raw_resource_build!$L:$L,raw_resource_build!$B:$B,$C577,raw_resource_build!$A:$A,AN$542)","v":0}]
[null,null,{"$f":"Lists!B70","v":"Solano_subzone_Wind"},"Solano-Solano_subzone-Sacramento_River",{"$f":"SUMIFS(raw_resource_build!$L:$L,raw_resource_build!$B:$B,$C578,raw_resource_build!$A:$A,E$542)","v":0},{"$f":"SUMIFS(raw_resource_build!$L:$L,raw_resource_build!$B:$B,$C578,raw_resource_build!$A:$A,F$542)","v":0},{"$f":"SUMIFS(raw_resource_build!$L:$L,raw_resource_build!$B:$B,$C578,raw_resource_build!$A:$A,G$542)","v":0},{"$f":"SUMIFS(raw_resource_build!$L:$L,raw_resource_build!$B:$B,$C578,raw_resource_build!$A:$A,H$542)","v":0},{"$f":"SUMIFS(raw_resource_build!$L:$L,raw_resource_build!$B:$B,$C578,raw_resource_build!$A:$A,I$542)","v":0},{"$f":"SUMIFS(raw_resource_build!$L:$L,raw_resource_build!$B:$B,$C578,raw_resource_build!$A:$A,J$542)","v":0},{"$f":"SUMIFS(raw_resource_build!$L:$L,raw_resource_build!$B:$B,$C578,raw_resource_build!$A:$A,K$542)","v":0},{"$f":"SUMIFS(raw_resource_build!$L:$L,raw_resource_build!$B:$B,$C578,raw_resource_build!$A:$A,L$542)","v":0},{"$f":"SUMIFS(raw_resource_build!$L:$L,raw_resource_build!$B:$B,$C578,raw_resource_build!$A:$A,M$542)","v":0},{"$f":"SUMIFS(raw_resource_build!$L:$L,raw_resource_build!$B:$B,$C578,raw_resource_build!$A:$A,N$542)","v":0},{"$f":"SUMIFS(raw_resource_build!$L:$L,raw_resource_build!$B:$B,$C578,raw_resource_build!$A:$A,O$542)","v":0},{"$f":"SUMIFS(raw_resource_build!$L:$L,raw_resource_build!$B:$B,$C578,raw_resource_build!$A:$A,P$542)","v":0},{"$f":"SUMIFS(raw_resource_build!$L:$L,raw_resource_build!$B:$B,$C578,raw_resource_build!$A:$A,Q$542)","v":0},{"$f":"SUMIFS(raw_resource_build!$L:$L,raw_resource_build!$B:$B,$C578,raw_resource_build!$A:$A,R$542)","v":0},{"$f":"SUMIFS(raw_resource_build!$L:$L,raw_resource_build!$B:$B,$C578,raw_resource_build!$A:$A,S$542)","v":0},{"$f":"SUMIFS(raw_resource_build!$L:$L,raw_resource_build!$B:$B,$C578,raw_resource_build!$A:$A,T$542)","v":0},{"$f":"SUMIFS(raw_resource_build!$L:$L,raw_resource_build!$B:$B,$C578,raw_resource_build!$A:$A,U$542)","v":0},{"$f":"SUMIFS(raw_resource_build!$L:$L,raw_resource_build!$B:$B,$C578,raw_resource_build!$A:$A,V$542)","v":0},{"$f":"SUMIFS(raw_resource_build!$L:$L,raw_resource_build!$B:$B,$C578,raw_resource_build!$A:$A,W$542)","v":0},{"$f":"SUMIFS(raw_resource_build!$L:$L,raw_resource_build!$B:$B,$C578,raw_resource_build!$A:$A,X$542)","v":0},{"$f":"SUMIFS(raw_resource_build!$L:$L,raw_resource_build!$B:$B,$C578,raw_resource_build!$A:$A,Y$542)","v":0},{"$f":"SUMIFS(raw_resource_build!$L:$L,raw_resource_build!$B:$B,$C578,raw_resource_build!$A:$A,Z$542)","v":0},{"$f":"SUMIFS(raw_resource_build!$L:$L,raw_resource_build!$B:$B,$C578,raw_resource_build!$A:$A,AA$542)","v":0},{"$f":"SUMIFS(raw_resource_build!$L:$L,raw_resource_build!$B:$B,$C578,raw_resource_build!$A:$A,AB$542)","v":0},{"$f":"SUMIFS(raw_resource_build!$L:$L,raw_resource_build!$B:$B,$C578,raw_resource_build!$A:$A,AC$542)","v":0},{"$f":"SUMIFS(raw_resource_build!$L:$L,raw_resource_build!$B:$B,$C578,raw_resource_build!$A:$A,AD$542)","v":0},{"$f":"SUMIFS(raw_resource_build!$L:$L,raw_resource_build!$B:$B,$C578,raw_resource_build!$A:$A,AE$542)","v":0},{"$f":"SUMIFS(raw_resource_build!$L:$L,raw_resource_build!$B:$B,$C578,raw_resource_build!$A:$A,AF$542)","v":0},{"$f":"SUMIFS(raw_resource_build!$L:$L,raw_resource_build!$B:$B,$C578,raw_resource_build!$A:$A,AG$542)","v":0},{"$f":"SUMIFS(raw_resource_build!$L:$L,raw_resource_build!$B:$B,$C578,raw_resource_build!$A:$A,AH$542)","v":0},{"$f":"SUMIFS(raw_resource_build!$L:$L,raw_resource_build!$B:$B,$C578,raw_resource_build!$A:$A,AI$542)","v":0},{"$f":"SUMIFS(raw_resource_build!$L:$L,raw_resource_build!$B:$B,$C578,raw_resource_build!$A:$A,AJ$542)","v":0},{"$f":"SUMIFS(raw_resource_build!$L:$L,raw_resource_build!$B:$B,$C578,raw_resource_build!$A:$A,AK$542)","v":0},{"$f":"SUMIFS(raw_resource_build!$L:$L,raw_resource_build!$B:$B,$C578,raw_resource_build!$A:$A,AL$542)","v":0},{"$f":"SUMIFS(raw_resource_build!$L:$L,raw_resource_build!$B:$B,$C578,raw_resource_build!$A:$A,AM$542)","v":0},{"$f":"SUMIFS(raw_resource_build!$L:$L,raw_resource_build!$B:$B,$C578,raw_resource_build!$A:$A,AN$542)","v":0}]
[null,null,{"$f":"Lists!B71","v":"Solano_Wind"},"Solano-Sacramento_River",{"$f":"SUMIFS(raw_resource_build!$L:$L,raw_resource_build!$B:$B,$C579,raw_resource_build!$A:$A,E$542)","v":0},{"$f":"SUMIFS(raw_resource_build!$L:$L,raw_resource_build!$B:$B,$C579,raw_resource_build!$A:$A,F$542)","v":0},{"$f":"SUMIFS(raw_resource_build!$L:$L,raw_resource_build!$B:$B,$C579,raw_resource_build!$A:$A,G$542)","v":0},{"$f":"SUMIFS(raw_resource_build!$L:$L,raw_resource_build!$B:$B,$C579,raw_resource_build!$A:$A,H$542)","v":0},{"$f":"SUMIFS(raw_resource_build!$L:$L,raw_resource_build!$B:$B,$C579,raw_resource_build!$A:$A,I$542)","v":0},{"$f":"SUMIFS(raw_resource_build!$L:$L,raw_resource_build!$B:$B,$C579,raw_resource_build!$A:$A,J$542)","v":0},{"$f":"SUMIFS(raw_resource_build!$L:$L,raw_resource_build!$B:$B,$C579,raw_resource_build!$A:$A,K$542)","v":0},{"$f":"SUMIFS(raw_resource_build!$L:$L,raw_resource_build!$B:$B,$C579,raw_resource_build!$A:$A,L$542)","v":0},{"$f":"SUMIFS(raw_resource_build!$L:$L,raw_resource_build!$B:$B,$C579,raw_resource_build!$A:$A,M$542)","v":0},{"$f":"SUMIFS(raw_resource_build!$L:$L,raw_resource_build!$B:$B,$C579,raw_resource_build!$A:$A,N$542)","v":0},{"$f":"SUMIFS(raw_resource_build!$L:$L,raw_resource_build!$B:$B,$C579,raw_resource_build!$A:$A,O$542)","v":0},{"$f":"SUMIFS(raw_resource_build!$L:$L,raw_resource_build!$B:$B,$C579,raw_resource_build!$A:$A,P$542)","v":0},{"$f":"SUMIFS(raw_resource_build!$L:$L,raw_resource_build!$B:$B,$C579,raw_resource_build!$A:$A,Q$542)","v":0},{"$f":"SUMIFS(raw_resource_build!$L:$L,raw_resource_build!$B:$B,$C579,raw_resource_build!$A:$A,R$542)","v":0},{"$f":"SUMIFS(raw_resource_build!$L:$L,raw_resource_build!$B:$B,$C579,raw_resource_build!$A:$A,S$542)","v":0},{"$f":"SUMIFS(raw_resource_build!$L:$L,raw_resource_build!$B:$B,$C579,raw_resource_build!$A:$A,T$542)","v":0},{"$f":"SUMIFS(raw_resource_build!$L:$L,raw_resource_build!$B:$B,$C579,raw_resource_build!$A:$A,U$542)","v":0},{"$f":"SUMIFS(raw_resource_build!$L:$L,raw_resource_build!$B:$B,$C579,raw_resource_build!$A:$A,V$542)","v":0},{"$f":"SUMIFS(raw_resource_build!$L:$L,raw_resource_build!$B:$B,$C579,raw_resource_build!$A:$A,W$542)","v":0},{"$f":"SUMIFS(raw_resource_build!$L:$L,raw_resource_build!$B:$B,$C579,raw_resource_build!$A:$A,X$542)","v":0},{"$f":"SUMIFS(raw_resource_build!$L:$L,raw_resource_build!$B:$B,$C579,raw_resource_build!$A:$A,Y$542)","v":0},{"$f":"SUMIFS(raw_resource_build!$L:$L,raw_resource_build!$B:$B,$C579,raw_resource_build!$A:$A,Z$542)","v":0},{"$f":"SUMIFS(raw_resource_build!$L:$L,raw_resource_build!$B:$B,$C579,raw_resource_build!$A:$A,AA$542)","v":0},{"$f":"SUMIFS(raw_resource_build!$L:$L,raw_resource_build!$B:$B,$C579,raw_resource_build!$A:$A,AB$542)","v":0},{"$f":"SUMIFS(raw_resource_build!$L:$L,raw_resource_build!$B:$B,$C579,raw_resource_build!$A:$A,AC$542)","v":0},{"$f":"SUMIFS(raw_resource_build!$L:$L,raw_resource_build!$B:$B,$C579,raw_resource_build!$A:$A,AD$542)","v":0},{"$f":"SUMIFS(raw_resource_build!$L:$L,raw_resource_build!$B:$B,$C579,raw_resource_build!$A:$A,AE$542)","v":0},{"$f":"SUMIFS(raw_resource_build!$L:$L,raw_resource_build!$B:$B,$C579,raw_resource_build!$A:$A,AF$542)","v":0},{"$f":"SUMIFS(raw_resource_build!$L:$L,raw_resource_build!$B:$B,$C579,raw_resource_build!$A:$A,AG$542)","v":0},{"$f":"SUMIFS(raw_resource_build!$L:$L,raw_resource_build!$B:$B,$C579,raw_resource_build!$A:$A,AH$542)","v":0},{"$f":"SUMIFS(raw_resource_build!$L:$L,raw_resource_build!$B:$B,$C579,raw_resource_build!$A:$A,AI$542)","v":0},{"$f":"SUMIFS(raw_resource_build!$L:$L,raw_resource_build!$B:$B,$C579,raw_resource_build!$A:$A,AJ$542)","v":0},{"$f":"SUMIFS(raw_resource_build!$L:$L,raw_resource_build!$B:$B,$C579,raw_resource_build!$A:$A,AK$542)","v":0},{"$f":"SUMIFS(raw_resource_build!$L:$L,raw_resource_build!$B:$B,$C579,raw_resource_build!$A:$A,AL$542)","v":0},{"$f":"SUMIFS(raw_resource_build!$L:$L,raw_resource_build!$B:$B,$C579,raw_resource_build!$A:$A,AM$542)","v":0},{"$f":"SUMIFS(raw_resource_build!$L:$L,raw_resource_build!$B:$B,$C579,raw_resource_build!$A:$A,AN$542)","v":0}]
[null,null,{"$f":"Lists!B72","v":"Southern_California_Desert_Ex_Solar"},"Southern_California_Desert_Ex",{"$f":"SUMIFS(raw_resource_build!$L:$L,raw_resource_build!$B:$B,$C580,raw_resource_build!$A:$A,E$542)","v":0},{"$f":"SUMIFS(raw_resource_build!$L:$L,raw_resource_build!$B:$B,$C580,raw_resource_build!$A:$A,F$542)","v":0},{"$f":"SUMIFS(raw_resource_build!$L:$L,raw_resource_build!$B:$B,$C580,raw_resource_build!$A:$A,G$542)","v":0},{"$f":"SUMIFS(raw_resource_build!$L:$L,raw_resource_build!$B:$B,$C580,raw_resource_build!$A:$A,H$542)","v":0},{"$f":"SUMIFS(raw_resource_build!$L:$L,raw_resource_build!$B:$B,$C580,raw_resource_build!$A:$A,I$542)","v":0},{"$f":"SUMIFS(raw_resource_build!$L:$L,raw_resource_build!$B:$B,$C580,raw_resource_build!$A:$A,J$542)","v":0},{"$f":"SUMIFS(raw_resource_build!$L:$L,raw_resource_build!$B:$B,$C580,raw_resource_build!$A:$A,K$542)","v":0},{"$f":"SUMIFS(raw_resource_build!$L:$L,raw_resource_build!$B:$B,$C580,raw_resource_build!$A:$A,L$542)","v":0},{"$f":"SUMIFS(raw_resource_build!$L:$L,raw_resource_build!$B:$B,$C580,raw_resource_build!$A:$A,M$542)","v":0},{"$f":"SUMIFS(raw_resource_build!$L:$L,raw_resource_build!$B:$B,$C580,raw_resource_build!$A:$A,N$542)","v":0},{"$f":"SUMIFS(raw_resource_build!$L:$L,raw_resource_build!$B:$B,$C580,raw_resource_build!$A:$A,O$542)","v":0},{"$f":"SUMIFS(raw_resource_build!$L:$L,raw_resource_build!$B:$B,$C580,raw_resource_build!$A:$A,P$542)","v":0},{"$f":"SUMIFS(raw_resource_build!$L:$L,raw_resource_build!$B:$B,$C580,raw_resource_build!$A:$A,Q$542)","v":0},{"$f":"SUMIFS(raw_resource_build!$L:$L,raw_resource_build!$B:$B,$C580,raw_resource_build!$A:$A,R$542)","v":0},{"$f":"SUMIFS(raw_resource_build!$L:$L,raw_resource_build!$B:$B,$C580,raw_resource_build!$A:$A,S$542)","v":0},{"$f":"SUMIFS(raw_resource_build!$L:$L,raw_resource_build!$B:$B,$C580,raw_resource_build!$A:$A,T$542)","v":0},{"$f":"SUMIFS(raw_resource_build!$L:$L,raw_resource_build!$B:$B,$C580,raw_resource_build!$A:$A,U$542)","v":0},{"$f":"SUMIFS(raw_resource_build!$L:$L,raw_resource_build!$B:$B,$C580,raw_resource_build!$A:$A,V$542)","v":0},{"$f":"SUMIFS(raw_resource_build!$L:$L,raw_resource_build!$B:$B,$C580,raw_resource_build!$A:$A,W$542)","v":0},{"$f":"SUMIFS(raw_resource_build!$L:$L,raw_resource_build!$B:$B,$C580,raw_resource_build!$A:$A,X$542)","v":0},{"$f":"SUMIFS(raw_resource_build!$L:$L,raw_resource_build!$B:$B,$C580,raw_resource_build!$A:$A,Y$542)","v":0},{"$f":"SUMIFS(raw_resource_build!$L:$L,raw_resource_build!$B:$B,$C580,raw_resource_build!$A:$A,Z$542)","v":0},{"$f":"SUMIFS(raw_resource_build!$L:$L,raw_resource_build!$B:$B,$C580,raw_resource_build!$A:$A,AA$542)","v":0},{"$f":"SUMIFS(raw_resource_build!$L:$L,raw_resource_build!$B:$B,$C580,raw_resource_build!$A:$A,AB$542)","v":0},{"$f":"SUMIFS(raw_resource_build!$L:$L,raw_resource_build!$B:$B,$C580,raw_resource_build!$A:$A,AC$542)","v":0},{"$f":"SUMIFS(raw_resource_build!$L:$L,raw_resource_build!$B:$B,$C580,raw_resource_build!$A:$A,AD$542)","v":0},{"$f":"SUMIFS(raw_resource_build!$L:$L,raw_resource_build!$B:$B,$C580,raw_resource_build!$A:$A,AE$542)","v":0},{"$f":"SUMIFS(raw_resource_build!$L:$L,raw_resource_build!$B:$B,$C580,raw_resource_build!$A:$A,AF$542)","v":0},{"$f":"SUMIFS(raw_resource_build!$L:$L,raw_resource_build!$B:$B,$C580,raw_resource_build!$A:$A,AG$542)","v":0},{"$f":"SUMIFS(raw_resource_build!$L:$L,raw_resource_build!$B:$B,$C580,raw_resource_build!$A:$A,AH$542)","v":0},{"$f":"SUMIFS(raw_resource_build!$L:$L,raw_resource_build!$B:$B,$C580,raw_resource_build!$A:$A,AI$542)","v":0},{"$f":"SUMIFS(raw_resource_build!$L:$L,raw_resource_build!$B:$B,$C580,raw_resource_build!$A:$A,AJ$542)","v":0},{"$f":"SUMIFS(raw_resource_build!$L:$L,raw_resource_build!$B:$B,$C580,raw_resource_build!$A:$A,AK$542)","v":0},{"$f":"SUMIFS(raw_resource_build!$L:$L,raw_resource_build!$B:$B,$C580,raw_resource_build!$A:$A,AL$542)","v":0},{"$f":"SUMIFS(raw_resource_build!$L:$L,raw_resource_build!$B:$B,$C580,raw_resource_build!$A:$A,AM$542)","v":0},{"$f":"SUMIFS(raw_resource_build!$L:$L,raw_resource_build!$B:$B,$C580,raw_resource_build!$A:$A,AN$542)","v":0}]
[null,null,{"$f":"Lists!B73","v":"Southern_California_Desert_Ex_Wind"},"Southern_California_Desert_Ex",{"$f":"SUMIFS(raw_resource_build!$L:$L,raw_resource_build!$B:$B,$C581,raw_resource_build!$A:$A,E$542)","v":0},{"$f":"SUMIFS(raw_resource_build!$L:$L,raw_resource_build!$B:$B,$C581,raw_resource_build!$A:$A,F$542)","v":0},{"$f":"SUMIFS(raw_resource_build!$L:$L,raw_resource_build!$B:$B,$C581,raw_resource_build!$A:$A,G$542)","v":0},{"$f":"SUMIFS(raw_resource_build!$L:$L,raw_resource_build!$B:$B,$C581,raw_resource_build!$A:$A,H$542)","v":0},{"$f":"SUMIFS(raw_resource_build!$L:$L,raw_resource_build!$B:$B,$C581,raw_resource_build!$A:$A,I$542)","v":0},{"$f":"SUMIFS(raw_resource_build!$L:$L,raw_resource_build!$B:$B,$C581,raw_resource_build!$A:$A,J$542)","v":0},{"$f":"SUMIFS(raw_resource_build!$L:$L,raw_resource_build!$B:$B,$C581,raw_resource_build!$A:$A,K$542)","v":0},{"$f":"SUMIFS(raw_resource_build!$L:$L,raw_resource_build!$B:$B,$C581,raw_resource_build!$A:$A,L$542)","v":0},{"$f":"SUMIFS(raw_resource_build!$L:$L,raw_resource_build!$B:$B,$C581,raw_resource_build!$A:$A,M$542)","v":0},{"$f":"SUMIFS(raw_resource_build!$L:$L,raw_resource_build!$B:$B,$C581,raw_resource_build!$A:$A,N$542)","v":0},{"$f":"SUMIFS(raw_resource_build!$L:$L,raw_resource_build!$B:$B,$C581,raw_resource_build!$A:$A,O$542)","v":0},{"$f":"SUMIFS(raw_resource_build!$L:$L,raw_resource_build!$B:$B,$C581,raw_resource_build!$A:$A,P$542)","v":0},{"$f":"SUMIFS(raw_resource_build!$L:$L,raw_resource_build!$B:$B,$C581,raw_resource_build!$A:$A,Q$542)","v":0},{"$f":"SUMIFS(raw_resource_build!$L:$L,raw_resource_build!$B:$B,$C581,raw_resource_build!$A:$A,R$542)","v":0},{"$f":"SUMIFS(raw_resource_build!$L:$L,raw_resource_build!$B:$B,$C581,raw_resource_build!$A:$A,S$542)","v":0},{"$f":"SUMIFS(raw_resource_build!$L:$L,raw_resource_build!$B:$B,$C581,raw_resource_build!$A:$A,T$542)","v":0},{"$f":"SUMIFS(raw_resource_build!$L:$L,raw_resource_build!$B:$B,$C581,raw_resource_build!$A:$A,U$542)","v":0},{"$f":"SUMIFS(raw_resource_build!$L:$L,raw_resource_build!$B:$B,$C581,raw_resource_build!$A:$A,V$542)","v":0},{"$f":"SUMIFS(raw_resource_build!$L:$L,raw_resource_build!$B:$B,$C581,raw_resource_build!$A:$A,W$542)","v":0},{"$f":"SUMIFS(raw_resource_build!$L:$L,raw_resource_build!$B:$B,$C581,raw_resource_build!$A:$A,X$542)","v":0},{"$f":"SUMIFS(raw_resource_build!$L:$L,raw_resource_build!$B:$B,$C581,raw_resource_build!$A:$A,Y$542)","v":0},{"$f":"SUMIFS(raw_resource_build!$L:$L,raw_resource_build!$B:$B,$C581,raw_resource_build!$A:$A,Z$542)","v":0},{"$f":"SUMIFS(raw_resource_build!$L:$L,raw_resource_build!$B:$B,$C581,raw_resource_build!$A:$A,AA$542)","v":0},{"$f":"SUMIFS(raw_resource_build!$L:$L,raw_resource_build!$B:$B,$C581,raw_resource_build!$A:$A,AB$542)","v":0},{"$f":"SUMIFS(raw_resource_build!$L:$L,raw_resource_build!$B:$B,$C581,raw_resource_build!$A:$A,AC$542)","v":0},{"$f":"SUMIFS(raw_resource_build!$L:$L,raw_resource_build!$B:$B,$C581,raw_resource_build!$A:$A,AD$542)","v":0},{"$f":"SUMIFS(raw_resource_build!$L:$L,raw_resource_build!$B:$B,$C581,raw_resource_build!$A:$A,AE$542)","v":0},{"$f":"SUMIFS(raw_resource_build!$L:$L,raw_resource_build!$B:$B,$C581,raw_resource_build!$A:$A,AF$542)","v":0},{"$f":"SUMIFS(raw_resource_build!$L:$L,raw_resource_build!$B:$B,$C581,raw_resource_build!$A:$A,AG$542)","v":0},{"$f":"SUMIFS(raw_resource_build!$L:$L,raw_resource_build!$B:$B,$C581,raw_resource_build!$A:$A,AH$542)","v":0},{"$f":"SUMIFS(raw_resource_build!$L:$L,raw_resource_build!$B:$B,$C581,raw_resource_build!$A:$A,AI$542)","v":0},{"$f":"SUMIFS(raw_resource_build!$L:$L,raw_resource_build!$B:$B,$C581,raw_resource_build!$A:$A,AJ$542)","v":0},{"$f":"SUMIFS(raw_resource_build!$L:$L,raw_resource_build!$B:$B,$C581,raw_resource_build!$A:$A,AK$542)","v":0},{"$f":"SUMIFS(raw_resource_build!$L:$L,raw_resource_build!$B:$B,$C581,raw_resource_build!$A:$A,AL$542)","v":0},{"$f":"SUMIFS(raw_resource_build!$L:$L,raw_resource_build!$B:$B,$C581,raw_resource_build!$A:$A,AM$542)","v":0},{"$f":"SUMIFS(raw_resource_build!$L:$L,raw_resource_build!$B:$B,$C581,raw_resource_build!$A:$A,AN$542)","v":0}]
[null,null,{"$f":"Lists!B74","v":"Southern_Nevada_Solar"},"SCADSNV-GLW_VEA",{"$f":"SUMIFS(raw_resource_build!$L:$L,raw_resource_build!$B:$B,$C582,raw_resource_build!$A:$A,E$542)","v":0},{"$f":"SUMIFS(raw_resource_build!$L:$L,raw_resource_build!$B:$B,$C582,raw_resource_build!$A:$A,F$542)","v":0},{"$f":"SUMIFS(raw_resource_build!$L:$L,raw_resource_build!$B:$B,$C582,raw_resource_build!$A:$A,G$542)","v":0},{"$f":"SUMIFS(raw_resource_build!$L:$L,raw_resource_build!$B:$B,$C582,raw_resource_build!$A:$A,H$542)","v":0},{"$f":"SUMIFS(raw_resource_build!$L:$L,raw_resource_build!$B:$B,$C582,raw_resource_build!$A:$A,I$542)","v":0},{"$f":"SUMIFS(raw_resource_build!$L:$L,raw_resource_build!$B:$B,$C582,raw_resource_build!$A:$A,J$542)","v":0},{"$f":"SUMIFS(raw_resource_build!$L:$L,raw_resource_build!$B:$B,$C582,raw_resource_build!$A:$A,K$542)","v":0},{"$f":"SUMIFS(raw_resource_build!$L:$L,raw_resource_build!$B:$B,$C582,raw_resource_build!$A:$A,L$542)","v":0},{"$f":"SUMIFS(raw_resource_build!$L:$L,raw_resource_build!$B:$B,$C582,raw_resource_build!$A:$A,M$542)","v":0},{"$f":"SUMIFS(raw_resource_build!$L:$L,raw_resource_build!$B:$B,$C582,raw_resource_build!$A:$A,N$542)","v":0},{"$f":"SUMIFS(raw_resource_build!$L:$L,raw_resource_build!$B:$B,$C582,raw_resource_build!$A:$A,O$542)","v":0},{"$f":"SUMIFS(raw_resource_build!$L:$L,raw_resource_build!$B:$B,$C582,raw_resource_build!$A:$A,P$542)","v":0},{"$f":"SUMIFS(raw_resource_build!$L:$L,raw_resource_build!$B:$B,$C582,raw_resource_build!$A:$A,Q$542)","v":0},{"$f":"SUMIFS(raw_resource_build!$L:$L,raw_resource_build!$B:$B,$C582,raw_resource_build!$A:$A,R$542)","v":0},{"$f":"SUMIFS(raw_resource_build!$L:$L,raw_resource_build!$B:$B,$C582,raw_resource_build!$A:$A,S$542)","v":0},{"$f":"SUMIFS(raw_resource_build!$L:$L,raw_resource_build!$B:$B,$C582,raw_resource_build!$A:$A,T$542)","v":0},{"$f":"SUMIFS(raw_resource_build!$L:$L,raw_resource_build!$B:$B,$C582,raw_resource_build!$A:$A,U$542)","v":0},{"$f":"SUMIFS(raw_resource_build!$L:$L,raw_resource_build!$B:$B,$C582,raw_resource_build!$A:$A,V$542)","v":0},{"$f":"SUMIFS(raw_resource_build!$L:$L,raw_resource_build!$B:$B,$C582,raw_resource_build!$A:$A,W$542)","v":0},{"$f":"SUMIFS(raw_resource_build!$L:$L,raw_resource_build!$B:$B,$C582,raw_resource_build!$A:$A,X$542)","v":0},{"$f":"SUMIFS(raw_resource_build!$L:$L,raw_resource_build!$B:$B,$C582,raw_resource_build!$A:$A,Y$542)","v":0},{"$f":"SUMIFS(raw_resource_build!$L:$L,raw_resource_build!$B:$B,$C582,raw_resource_build!$A:$A,Z$542)","v":0},{"$f":"SUMIFS(raw_resource_build!$L:$L,raw_resource_build!$B:$B,$C582,raw_resource_build!$A:$A,AA$542)","v":0},{"$f":"SUMIFS(raw_resource_build!$L:$L,raw_resource_build!$B:$B,$C582,raw_resource_build!$A:$A,AB$542)","v":0},{"$f":"SUMIFS(raw_resource_build!$L:$L,raw_resource_build!$B:$B,$C582,raw_resource_build!$A:$A,AC$542)","v":0},{"$f":"SUMIFS(raw_resource_build!$L:$L,raw_resource_build!$B:$B,$C582,raw_resource_build!$A:$A,AD$542)","v":0},{"$f":"SUMIFS(raw_resource_build!$L:$L,raw_resource_build!$B:$B,$C582,raw_resource_build!$A:$A,AE$542)","v":0},{"$f":"SUMIFS(raw_resource_build!$L:$L,raw_resource_build!$B:$B,$C582,raw_resource_build!$A:$A,AF$542)","v":0},{"$f":"SUMIFS(raw_resource_build!$L:$L,raw_resource_build!$B:$B,$C582,raw_resource_build!$A:$A,AG$542)","v":0},{"$f":"SUMIFS(raw_resource_build!$L:$L,raw_resource_build!$B:$B,$C582,raw_resource_build!$A:$A,AH$542)","v":0},{"$f":"SUMIFS(raw_resource_build!$L:$L,raw_resource_build!$B:$B,$C582,raw_resource_build!$A:$A,AI$542)","v":0},{"$f":"SUMIFS(raw_resource_build!$L:$L,raw_resource_build!$B:$B,$C582,raw_resource_build!$A:$A,AJ$542)","v":0},{"$f":"SUMIFS(raw_resource_build!$L:$L,raw_resource_build!$B:$B,$C582,raw_resource_build!$A:$A,AK$542)","v":0},{"$f":"SUMIFS(raw_resource_build!$L:$L,raw_resource_build!$B:$B,$C582,raw_resource_build!$A:$A,AL$542)","v":0},{"$f":"SUMIFS(raw_resource_build!$L:$L,raw_resource_build!$B:$B,$C582,raw_resource_build!$A:$A,AM$542)","v":0},{"$f":"SUMIFS(raw_resource_build!$L:$L,raw_resource_build!$B:$B,$C582,raw_resource_build!$A:$A,AN$542)","v":0}]
[null,null,{"$f":"Lists!B75","v":"Southern_Nevada_Wind"},"SCADSNV-GLW_VEA",{"$f":"SUMIFS(raw_resource_build!$L:$L,raw_resource_build!$B:$B,$C583,raw_resource_build!$A:$A,E$542)","v":0},{"$f":"SUMIFS(raw_resource_build!$L:$L,raw_resource_build!$B:$B,$C583,raw_resource_build!$A:$A,F$542)","v":0},{"$f":"SUMIFS(raw_resource_build!$L:$L,raw_resource_build!$B:$B,$C583,raw_resource_build!$A:$A,G$542)","v":0},{"$f":"SUMIFS(raw_resource_build!$L:$L,raw_resource_build!$B:$B,$C583,raw_resource_build!$A:$A,H$542)","v":0},{"$f":"SUMIFS(raw_resource_build!$L:$L,raw_resource_build!$B:$B,$C583,raw_resource_build!$A:$A,I$542)","v":0},{"$f":"SUMIFS(raw_resource_build!$L:$L,raw_resource_build!$B:$B,$C583,raw_resource_build!$A:$A,J$542)","v":0},{"$f":"SUMIFS(raw_resource_build!$L:$L,raw_resource_build!$B:$B,$C583,raw_resource_build!$A:$A,K$542)","v":0},{"$f":"SUMIFS(raw_resource_build!$L:$L,raw_resource_build!$B:$B,$C583,raw_resource_build!$A:$A,L$542)","v":0},{"$f":"SUMIFS(raw_resource_build!$L:$L,raw_resource_build!$B:$B,$C583,raw_resource_build!$A:$A,M$542)","v":0},{"$f":"SUMIFS(raw_resource_build!$L:$L,raw_resource_build!$B:$B,$C583,raw_resource_build!$A:$A,N$542)","v":0},{"$f":"SUMIFS(raw_resource_build!$L:$L,raw_resource_build!$B:$B,$C583,raw_resource_build!$A:$A,O$542)","v":0},{"$f":"SUMIFS(raw_resource_build!$L:$L,raw_resource_build!$B:$B,$C583,raw_resource_build!$A:$A,P$542)","v":0},{"$f":"SUMIFS(raw_resource_build!$L:$L,raw_resource_build!$B:$B,$C583,raw_resource_build!$A:$A,Q$542)","v":0},{"$f":"SUMIFS(raw_resource_build!$L:$L,raw_resource_build!$B:$B,$C583,raw_resource_build!$A:$A,R$542)","v":0},{"$f":"SUMIFS(raw_resource_build!$L:$L,raw_resource_build!$B:$B,$C583,raw_resource_build!$A:$A,S$542)","v":0},{"$f":"SUMIFS(raw_resource_build!$L:$L,raw_resource_build!$B:$B,$C583,raw_resource_build!$A:$A,T$542)","v":0},{"$f":"SUMIFS(raw_resource_build!$L:$L,raw_resource_build!$B:$B,$C583,raw_resource_build!$A:$A,U$542)","v":0},{"$f":"SUMIFS(raw_resource_build!$L:$L,raw_resource_build!$B:$B,$C583,raw_resource_build!$A:$A,V$542)","v":0},{"$f":"SUMIFS(raw_resource_build!$L:$L,raw_resource_build!$B:$B,$C583,raw_resource_build!$A:$A,W$542)","v":0},{"$f":"SUMIFS(raw_resource_build!$L:$L,raw_resource_build!$B:$B,$C583,raw_resource_build!$A:$A,X$542)","v":0},{"$f":"SUMIFS(raw_resource_build!$L:$L,raw_resource_build!$B:$B,$C583,raw_resource_build!$A:$A,Y$542)","v":0},{"$f":"SUMIFS(raw_resource_build!$L:$L,raw_resource_build!$B:$B,$C583,raw_resource_build!$A:$A,Z$542)","v":0},{"$f":"SUMIFS(raw_resource_build!$L:$L,raw_resource_build!$B:$B,$C583,raw_resource_build!$A:$A,AA$542)","v":0},{"$f":"SUMIFS(raw_resource_build!$L:$L,raw_resource_build!$B:$B,$C583,raw_resource_build!$A:$A,AB$542)","v":0},{"$f":"SUMIFS(raw_resource_build!$L:$L,raw_resource_build!$B:$B,$C583,raw_resource_build!$A:$A,AC$542)","v":0},{"$f":"SUMIFS(raw_resource_build!$L:$L,raw_resource_build!$B:$B,$C583,raw_resource_build!$A:$A,AD$542)","v":0},{"$f":"SUMIFS(raw_resource_build!$L:$L,raw_resource_build!$B:$B,$C583,raw_resource_build!$A:$A,AE$542)","v":0},{"$f":"SUMIFS(raw_resource_build!$L:$L,raw_resource_build!$B:$B,$C583,raw_resource_build!$A:$A,AF$542)","v":0},{"$f":"SUMIFS(raw_resource_build!$L:$L,raw_resource_build!$B:$B,$C583,raw_resource_build!$A:$A,AG$542)","v":0},{"$f":"SUMIFS(raw_resource_build!$L:$L,raw_resource_build!$B:$B,$C583,raw_resource_build!$A:$A,AH$542)","v":0},{"$f":"SUMIFS(raw_resource_build!$L:$L,raw_resource_build!$B:$B,$C583,raw_resource_build!$A:$A,AI$542)","v":0},{"$f":"SUMIFS(raw_resource_build!$L:$L,raw_resource_build!$B:$B,$C583,raw_resource_build!$A:$A,AJ$542)","v":0},{"$f":"SUMIFS(raw_resource_build!$L:$L,raw_resource_build!$B:$B,$C583,raw_resource_build!$A:$A,AK$542)","v":0},{"$f":"SUMIFS(raw_resource_build!$L:$L,raw_resource_build!$B:$B,$C583,raw_resource_build!$A:$A,AL$542)","v":0},{"$f":"SUMIFS(raw_resource_build!$L:$L,raw_resource_build!$B:$B,$C583,raw_resource_build!$A:$A,AM$542)","v":0},{"$f":"SUMIFS(raw_resource_build!$L:$L,raw_resource_build!$B:$B,$C583,raw_resource_build!$A:$A,AN$542)","v":0}]
[null,null,{"$f":"Lists!B76","v":"SW_Ext_Tx_Wind"},"SCADSNV-Riverside_Palm_Springs",{"$f":"SUMIFS(raw_resource_build!$L:$L,raw_resource_build!$B:$B,$C584,raw_resource_build!$A:$A,E$542)","v":0},{"$f":"SUMIFS(raw_resource_build!$L:$L,raw_resource_build!$B:$B,$C584,raw_resource_build!$A:$A,F$542)","v":0},{"$f":"SUMIFS(raw_resource_build!$L:$L,raw_resource_build!$B:$B,$C584,raw_resource_build!$A:$A,G$542)","v":0},{"$f":"SUMIFS(raw_resource_build!$L:$L,raw_resource_build!$B:$B,$C584,raw_resource_build!$A:$A,H$542)","v":0},{"$f":"SUMIFS(raw_resource_build!$L:$L,raw_resource_build!$B:$B,$C584,raw_resource_build!$A:$A,I$542)","v":0},{"$f":"SUMIFS(raw_resource_build!$L:$L,raw_resource_build!$B:$B,$C584,raw_resource_build!$A:$A,J$542)","v":0},{"$f":"SUMIFS(raw_resource_build!$L:$L,raw_resource_build!$B:$B,$C584,raw_resource_build!$A:$A,K$542)","v":0},{"$f":"SUMIFS(raw_resource_build!$L:$L,raw_resource_build!$B:$B,$C584,raw_resource_build!$A:$A,L$542)","v":0},{"$f":"SUMIFS(raw_resource_build!$L:$L,raw_resource_build!$B:$B,$C584,raw_resource_build!$A:$A,M$542)","v":0},{"$f":"SUMIFS(raw_resource_build!$L:$L,raw_resource_build!$B:$B,$C584,raw_resource_build!$A:$A,N$542)","v":0},{"$f":"SUMIFS(raw_resource_build!$L:$L,raw_resource_build!$B:$B,$C584,raw_resource_build!$A:$A,O$542)","v":0},{"$f":"SUMIFS(raw_resource_build!$L:$L,raw_resource_build!$B:$B,$C584,raw_resource_build!$A:$A,P$542)","v":0},{"$f":"SUMIFS(raw_resource_build!$L:$L,raw_resource_build!$B:$B,$C584,raw_resource_build!$A:$A,Q$542)","v":0},{"$f":"SUMIFS(raw_resource_build!$L:$L,raw_resource_build!$B:$B,$C584,raw_resource_build!$A:$A,R$542)","v":0},{"$f":"SUMIFS(raw_resource_build!$L:$L,raw_resource_build!$B:$B,$C584,raw_resource_build!$A:$A,S$542)","v":0},{"$f":"SUMIFS(raw_resource_build!$L:$L,raw_resource_build!$B:$B,$C584,raw_resource_build!$A:$A,T$542)","v":0},{"$f":"SUMIFS(raw_resource_build!$L:$L,raw_resource_build!$B:$B,$C584,raw_resource_build!$A:$A,U$542)","v":0},{"$f":"SUMIFS(raw_resource_build!$L:$L,raw_resource_build!$B:$B,$C584,raw_resource_build!$A:$A,V$542)","v":0},{"$f":"SUMIFS(raw_resource_build!$L:$L,raw_resource_build!$B:$B,$C584,raw_resource_build!$A:$A,W$542)","v":0},{"$f":"SUMIFS(raw_resource_build!$L:$L,raw_resource_build!$B:$B,$C584,raw_resource_build!$A:$A,X$542)","v":0},{"$f":"SUMIFS(raw_resource_build!$L:$L,raw_resource_build!$B:$B,$C584,raw_resource_build!$A:$A,Y$542)","v":0},{"$f":"SUMIFS(raw_resource_build!$L:$L,raw_resource_build!$B:$B,$C584,raw_resource_build!$A:$A,Z$542)","v":0},{"$f":"SUMIFS(raw_resource_build!$L:$L,raw_resource_build!$B:$B,$C584,raw_resource_build!$A:$A,AA$542)","v":0},{"$f":"SUMIFS(raw_resource_build!$L:$L,raw_resource_build!$B:$B,$C584,raw_resource_build!$A:$A,AB$542)","v":0},{"$f":"SUMIFS(raw_resource_build!$L:$L,raw_resource_build!$B:$B,$C584,raw_resource_build!$A:$A,AC$542)","v":0},{"$f":"SUMIFS(raw_resource_build!$L:$L,raw_resource_build!$B:$B,$C584,raw_resource_build!$A:$A,AD$542)","v":0},{"$f":"SUMIFS(raw_resource_build!$L:$L,raw_resource_build!$B:$B,$C584,raw_resource_build!$A:$A,AE$542)","v":0},{"$f":"SUMIFS(raw_resource_build!$L:$L,raw_resource_build!$B:$B,$C584,raw_resource_build!$A:$A,AF$542)","v":0},{"$f":"SUMIFS(raw_resource_build!$L:$L,raw_resource_build!$B:$B,$C584,raw_resource_build!$A:$A,AG$542)","v":0},{"$f":"SUMIFS(raw_resource_build!$L:$L,raw_resource_build!$B:$B,$C584,raw_resource_build!$A:$A,AH$542)","v":0},{"$f":"SUMIFS(raw_resource_build!$L:$L,raw_resource_build!$B:$B,$C584,raw_resource_build!$A:$A,AI$542)","v":0},{"$f":"SUMIFS(raw_resource_build!$L:$L,raw_resource_build!$B:$B,$C584,raw_resource_build!$A:$A,AJ$542)","v":0},{"$f":"SUMIFS(raw_resource_build!$L:$L,raw_resource_build!$B:$B,$C584,raw_resource_build!$A:$A,AK$542)","v":0},{"$f":"SUMIFS(raw_resource_build!$L:$L,raw_resource_build!$B:$B,$C584,raw_resource_build!$A:$A,AL$542)","v":0},{"$f":"SUMIFS(raw_resource_build!$L:$L,raw_resource_build!$B:$B,$C584,raw_resource_build!$A:$A,AM$542)","v":0},{"$f":"SUMIFS(raw_resource_build!$L:$L,raw_resource_build!$B:$B,$C584,raw_resource_build!$A:$A,AN$542)","v":0}]
[null,null,{"$f":"Lists!B77","v":"Tehachapi_Solar"},"Tehachapi",{"$f":"SUMIFS(raw_resource_build!$L:$L,raw_resource_build!$B:$B,$C585,raw_resource_build!$A:$A,E$542)","v":0},{"$f":"SUMIFS(raw_resource_build!$L:$L,raw_resource_build!$B:$B,$C585,raw_resource_build!$A:$A,F$542)","v":0},{"$f":"SUMIFS(raw_resource_build!$L:$L,raw_resource_build!$B:$B,$C585,raw_resource_build!$A:$A,G$542)","v":0},{"$f":"SUMIFS(raw_resource_build!$L:$L,raw_resource_build!$B:$B,$C585,raw_resource_build!$A:$A,H$542)","v":0},{"$f":"SUMIFS(raw_resource_build!$L:$L,raw_resource_build!$B:$B,$C585,raw_resource_build!$A:$A,I$542)","v":0},{"$f":"SUMIFS(raw_resource_build!$L:$L,raw_resource_build!$B:$B,$C585,raw_resource_build!$A:$A,J$542)","v":0},{"$f":"SUMIFS(raw_resource_build!$L:$L,raw_resource_build!$B:$B,$C585,raw_resource_build!$A:$A,K$542)","v":0},{"$f":"SUMIFS(raw_resource_build!$L:$L,raw_resource_build!$B:$B,$C585,raw_resource_build!$A:$A,L$542)","v":800},{"$f":"SUMIFS(raw_resource_build!$L:$L,raw_resource_build!$B:$B,$C585,raw_resource_build!$A:$A,M$542)","v":800},{"$f":"SUMIFS(raw_resource_build!$L:$L,raw_resource_build!$B:$B,$C585,raw_resource_build!$A:$A,N$542)","v":800},{"$f":"SUMIFS(raw_resource_build!$L:$L,raw_resource_build!$B:$B,$C585,raw_resource_build!$A:$A,O$542)","v":0},{"$f":"SUMIFS(raw_resource_build!$L:$L,raw_resource_build!$B:$B,$C585,raw_resource_build!$A:$A,P$542)","v":800},{"$f":"SUMIFS(raw_resource_build!$L:$L,raw_resource_build!$B:$B,$C585,raw_resource_build!$A:$A,Q$542)","v":0},{"$f":"SUMIFS(raw_resource_build!$L:$L,raw_resource_build!$B:$B,$C585,raw_resource_build!$A:$A,R$542)","v":0},{"$f":"SUMIFS(raw_resource_build!$L:$L,raw_resource_build!$B:$B,$C585,raw_resource_build!$A:$A,S$542)","v":0},{"$f":"SUMIFS(raw_resource_build!$L:$L,raw_resource_build!$B:$B,$C585,raw_resource_build!$A:$A,T$542)","v":800},{"$f":"SUMIFS(raw_resource_build!$L:$L,raw_resource_build!$B:$B,$C585,raw_resource_build!$A:$A,U$542)","v":0},{"$f":"SUMIFS(raw_resource_build!$L:$L,raw_resource_build!$B:$B,$C585,raw_resource_build!$A:$A,V$542)","v":0},{"$f":"SUMIFS(raw_resource_build!$L:$L,raw_resource_build!$B:$B,$C585,raw_resource_build!$A:$A,W$542)","v":0},{"$f":"SUMIFS(raw_resource_build!$L:$L,raw_resource_build!$B:$B,$C585,raw_resource_build!$A:$A,X$542)","v":0},{"$f":"SUMIFS(raw_resource_build!$L:$L,raw_resource_build!$B:$B,$C585,raw_resource_build!$A:$A,Y$542)","v":0},{"$f":"SUMIFS(raw_resource_build!$L:$L,raw_resource_build!$B:$B,$C585,raw_resource_build!$A:$A,Z$542)","v":0},{"$f":"SUMIFS(raw_resource_build!$L:$L,raw_resource_build!$B:$B,$C585,raw_resource_build!$A:$A,AA$542)","v":0},{"$f":"SUMIFS(raw_resource_build!$L:$L,raw_resource_build!$B:$B,$C585,raw_resource_build!$A:$A,AB$542)","v":0},{"$f":"SUMIFS(raw_resource_build!$L:$L,raw_resource_build!$B:$B,$C585,raw_resource_build!$A:$A,AC$542)","v":0},{"$f":"SUMIFS(raw_resource_build!$L:$L,raw_resource_build!$B:$B,$C585,raw_resource_build!$A:$A,AD$542)","v":0},{"$f":"SUMIFS(raw_resource_build!$L:$L,raw_resource_build!$B:$B,$C585,raw_resource_build!$A:$A,AE$542)","v":0},{"$f":"SUMIFS(raw_resource_build!$L:$L,raw_resource_build!$B:$B,$C585,raw_resource_build!$A:$A,AF$542)","v":0},{"$f":"SUMIFS(raw_resource_build!$L:$L,raw_resource_build!$B:$B,$C585,raw_resource_build!$A:$A,AG$542)","v":0},{"$f":"SUMIFS(raw_resource_build!$L:$L,raw_resource_build!$B:$B,$C585,raw_resource_build!$A:$A,AH$542)","v":0},{"$f":"SUMIFS(raw_resource_build!$L:$L,raw_resource_build!$B:$B,$C585,raw_resource_build!$A:$A,AI$542)","v":800},{"$f":"SUMIFS(raw_resource_build!$L:$L,raw_resource_build!$B:$B,$C585,raw_resource_build!$A:$A,AJ$542)","v":0},{"$f":"SUMIFS(raw_resource_build!$L:$L,raw_resource_build!$B:$B,$C585,raw_resource_build!$A:$A,AK$542)","v":0},{"$f":"SUMIFS(raw_resource_build!$L:$L,raw_resource_build!$B:$B,$C585,raw_resource_build!$A:$A,AL$542)","v":0},{"$f":"SUMIFS(raw_resource_build!$L:$L,raw_resource_build!$B:$B,$C585,raw_resource_build!$A:$A,AM$542)","v":0},{"$f":"SUMIFS(raw_resource_build!$L:$L,raw_resource_build!$B:$B,$C585,raw_resource_build!$A:$A,AN$542)","v":0}]
[null,null,{"$f":"Lists!B78","v":"Tehachapi_Ex_Solar"},"Tehachapi_Ex",{"$f":"SUMIFS(raw_resource_build!$L:$L,raw_resource_build!$B:$B,$C586,raw_resource_build!$A:$A,E$542)","v":0},{"$f":"SUMIFS(raw_resource_build!$L:$L,raw_resource_build!$B:$B,$C586,raw_resource_build!$A:$A,F$542)","v":0},{"$f":"SUMIFS(raw_resource_build!$L:$L,raw_resource_build!$B:$B,$C586,raw_resource_build!$A:$A,G$542)","v":0},{"$f":"SUMIFS(raw_resource_build!$L:$L,raw_resource_build!$B:$B,$C586,raw_resource_build!$A:$A,H$542)","v":0},{"$f":"SUMIFS(raw_resource_build!$L:$L,raw_resource_build!$B:$B,$C586,raw_resource_build!$A:$A,I$542)","v":0},{"$f":"SUMIFS(raw_resource_build!$L:$L,raw_resource_build!$B:$B,$C586,raw_resource_build!$A:$A,J$542)","v":0},{"$f":"SUMIFS(raw_resource_build!$L:$L,raw_resource_build!$B:$B,$C586,raw_resource_build!$A:$A,K$542)","v":0},{"$f":"SUMIFS(raw_resource_build!$L:$L,raw_resource_build!$B:$B,$C586,raw_resource_build!$A:$A,L$542)","v":0},{"$f":"SUMIFS(raw_resource_build!$L:$L,raw_resource_build!$B:$B,$C586,raw_resource_build!$A:$A,M$542)","v":0},{"$f":"SUMIFS(raw_resource_build!$L:$L,raw_resource_build!$B:$B,$C586,raw_resource_build!$A:$A,N$542)","v":0},{"$f":"SUMIFS(raw_resource_build!$L:$L,raw_resource_build!$B:$B,$C586,raw_resource_build!$A:$A,O$542)","v":0},{"$f":"SUMIFS(raw_resource_build!$L:$L,raw_resource_build!$B:$B,$C586,raw_resource_build!$A:$A,P$542)","v":0},{"$f":"SUMIFS(raw_resource_build!$L:$L,raw_resource_build!$B:$B,$C586,raw_resource_build!$A:$A,Q$542)","v":0},{"$f":"SUMIFS(raw_resource_build!$L:$L,raw_resource_build!$B:$B,$C586,raw_resource_build!$A:$A,R$542)","v":0},{"$f":"SUMIFS(raw_resource_build!$L:$L,raw_resource_build!$B:$B,$C586,raw_resource_build!$A:$A,S$542)","v":0},{"$f":"SUMIFS(raw_resource_build!$L:$L,raw_resource_build!$B:$B,$C586,raw_resource_build!$A:$A,T$542)","v":0},{"$f":"SUMIFS(raw_resource_build!$L:$L,raw_resource_build!$B:$B,$C586,raw_resource_build!$A:$A,U$542)","v":0},{"$f":"SUMIFS(raw_resource_build!$L:$L,raw_resource_build!$B:$B,$C586,raw_resource_build!$A:$A,V$542)","v":0},{"$f":"SUMIFS(raw_resource_build!$L:$L,raw_resource_build!$B:$B,$C586,raw_resource_build!$A:$A,W$542)","v":0},{"$f":"SUMIFS(raw_resource_build!$L:$L,raw_resource_build!$B:$B,$C586,raw_resource_build!$A:$A,X$542)","v":0},{"$f":"SUMIFS(raw_resource_build!$L:$L,raw_resource_build!$B:$B,$C586,raw_resource_build!$A:$A,Y$542)","v":0},{"$f":"SUMIFS(raw_resource_build!$L:$L,raw_resource_build!$B:$B,$C586,raw_resource_build!$A:$A,Z$542)","v":0},{"$f":"SUMIFS(raw_resource_build!$L:$L,raw_resource_build!$B:$B,$C586,raw_resource_build!$A:$A,AA$542)","v":0},{"$f":"SUMIFS(raw_resource_build!$L:$L,raw_resource_build!$B:$B,$C586,raw_resource_build!$A:$A,AB$542)","v":0},{"$f":"SUMIFS(raw_resource_build!$L:$L,raw_resource_build!$B:$B,$C586,raw_resource_build!$A:$A,AC$542)","v":0},{"$f":"SUMIFS(raw_resource_build!$L:$L,raw_resource_build!$B:$B,$C586,raw_resource_build!$A:$A,AD$542)","v":0},{"$f":"SUMIFS(raw_resource_build!$L:$L,raw_resource_build!$B:$B,$C586,raw_resource_build!$A:$A,AE$542)","v":0},{"$f":"SUMIFS(raw_resource_build!$L:$L,raw_resource_build!$B:$B,$C586,raw_resource_build!$A:$A,AF$542)","v":0},{"$f":"SUMIFS(raw_resource_build!$L:$L,raw_resource_build!$B:$B,$C586,raw_resource_build!$A:$A,AG$542)","v":0},{"$f":"SUMIFS(raw_resource_build!$L:$L,raw_resource_build!$B:$B,$C586,raw_resource_build!$A:$A,AH$542)","v":0},{"$f":"SUMIFS(raw_resource_build!$L:$L,raw_resource_build!$B:$B,$C586,raw_resource_build!$A:$A,AI$542)","v":0},{"$f":"SUMIFS(raw_resource_build!$L:$L,raw_resource_build!$B:$B,$C586,raw_resource_build!$A:$A,AJ$542)","v":0},{"$f":"SUMIFS(raw_resource_build!$L:$L,raw_resource_build!$B:$B,$C586,raw_resource_build!$A:$A,AK$542)","v":0},{"$f":"SUMIFS(raw_resource_build!$L:$L,raw_resource_build!$B:$B,$C586,raw_resource_build!$A:$A,AL$542)","v":0},{"$f":"SUMIFS(raw_resource_build!$L:$L,raw_resource_build!$B:$B,$C586,raw_resource_build!$A:$A,AM$542)","v":0},{"$f":"SUMIFS(raw_resource_build!$L:$L,raw_resource_build!$B:$B,$C586,raw_resource_build!$A:$A,AN$542)","v":0}]
[null,null,{"$f":"Lists!B79","v":"Tehachapi_Wind"},"Tehachapi",{"$f":"SUMIFS(raw_resource_build!$L:$L,raw_resource_build!$B:$B,$C587,raw_resource_build!$A:$A,E$542)","v":0},{"$f":"SUMIFS(raw_resource_build!$L:$L,raw_resource_build!$B:$B,$C587,raw_resource_build!$A:$A,F$542)","v":0},{"$f":"SUMIFS(raw_resource_build!$L:$L,raw_resource_build!$B:$B,$C587,raw_resource_build!$A:$A,G$542)","v":0},{"$f":"SUMIFS(raw_resource_build!$L:$L,raw_resource_build!$B:$B,$C587,raw_resource_build!$A:$A,H$542)","v":0},{"$f":"SUMIFS(raw_resource_build!$L:$L,raw_resource_build!$B:$B,$C587,raw_resource_build!$A:$A,I$542)","v":0},{"$f":"SUMIFS(raw_resource_build!$L:$L,raw_resource_build!$B:$B,$C587,raw_resource_build!$A:$A,J$542)","v":0},{"$f":"SUMIFS(raw_resource_build!$L:$L,raw_resource_build!$B:$B,$C587,raw_resource_build!$A:$A,K$542)","v":0},{"$f":"SUMIFS(raw_resource_build!$L:$L,raw_resource_build!$B:$B,$C587,raw_resource_build!$A:$A,L$542)","v":0},{"$f":"SUMIFS(raw_resource_build!$L:$L,raw_resource_build!$B:$B,$C587,raw_resource_build!$A:$A,M$542)","v":0},{"$f":"SUMIFS(raw_resource_build!$L:$L,raw_resource_build!$B:$B,$C587,raw_resource_build!$A:$A,N$542)","v":0},{"$f":"SUMIFS(raw_resource_build!$L:$L,raw_resource_build!$B:$B,$C587,raw_resource_build!$A:$A,O$542)","v":0},{"$f":"SUMIFS(raw_resource_build!$L:$L,raw_resource_build!$B:$B,$C587,raw_resource_build!$A:$A,P$542)","v":0},{"$f":"SUMIFS(raw_resource_build!$L:$L,raw_resource_build!$B:$B,$C587,raw_resource_build!$A:$A,Q$542)","v":0},{"$f":"SUMIFS(raw_resource_build!$L:$L,raw_resource_build!$B:$B,$C587,raw_resource_build!$A:$A,R$542)","v":0},{"$f":"SUMIFS(raw_resource_build!$L:$L,raw_resource_build!$B:$B,$C587,raw_resource_build!$A:$A,S$542)","v":0},{"$f":"SUMIFS(raw_resource_build!$L:$L,raw_resource_build!$B:$B,$C587,raw_resource_build!$A:$A,T$542)","v":0},{"$f":"SUMIFS(raw_resource_build!$L:$L,raw_resource_build!$B:$B,$C587,raw_resource_build!$A:$A,U$542)","v":0},{"$f":"SUMIFS(raw_resource_build!$L:$L,raw_resource_build!$B:$B,$C587,raw_resource_build!$A:$A,V$542)","v":0},{"$f":"SUMIFS(raw_resource_build!$L:$L,raw_resource_build!$B:$B,$C587,raw_resource_build!$A:$A,W$542)","v":0},{"$f":"SUMIFS(raw_resource_build!$L:$L,raw_resource_build!$B:$B,$C587,raw_resource_build!$A:$A,X$542)","v":0},{"$f":"SUMIFS(raw_resource_build!$L:$L,raw_resource_build!$B:$B,$C587,raw_resource_build!$A:$A,Y$542)","v":0},{"$f":"SUMIFS(raw_resource_build!$L:$L,raw_resource_build!$B:$B,$C587,raw_resource_build!$A:$A,Z$542)","v":0},{"$f":"SUMIFS(raw_resource_build!$L:$L,raw_resource_build!$B:$B,$C587,raw_resource_build!$A:$A,AA$542)","v":0},{"$f":"SUMIFS(raw_resource_build!$L:$L,raw_resource_build!$B:$B,$C587,raw_resource_build!$A:$A,AB$542)","v":0},{"$f":"SUMIFS(raw_resource_build!$L:$L,raw_resource_build!$B:$B,$C587,raw_resource_build!$A:$A,AC$542)","v":0},{"$f":"SUMIFS(raw_resource_build!$L:$L,raw_resource_build!$B:$B,$C587,raw_resource_build!$A:$A,AD$542)","v":0},{"$f":"SUMIFS(raw_resource_build!$L:$L,raw_resource_build!$B:$B,$C587,raw_resource_build!$A:$A,AE$542)","v":0},{"$f":"SUMIFS(raw_resource_build!$L:$L,raw_resource_build!$B:$B,$C587,raw_resource_build!$A:$A,AF$542)","v":0},{"$f":"SUMIFS(raw_resource_build!$L:$L,raw_resource_build!$B:$B,$C587,raw_resource_build!$A:$A,AG$542)","v":0},{"$f":"SUMIFS(raw_resource_build!$L:$L,raw_resource_build!$B:$B,$C587,raw_resource_build!$A:$A,AH$542)","v":0},{"$f":"SUMIFS(raw_resource_build!$L:$L,raw_resource_build!$B:$B,$C587,raw_resource_build!$A:$A,AI$542)","v":0},{"$f":"SUMIFS(raw_resource_build!$L:$L,raw_resource_build!$B:$B,$C587,raw_resource_build!$A:$A,AJ$542)","v":0},{"$f":"SUMIFS(raw_resource_build!$L:$L,raw_resource_build!$B:$B,$C587,raw_resource_build!$A:$A,AK$542)","v":0},{"$f":"SUMIFS(raw_resource_build!$L:$L,raw_resource_build!$B:$B,$C587,raw_resource_build!$A:$A,AL$542)","v":0},{"$f":"SUMIFS(raw_resource_build!$L:$L,raw_resource_build!$B:$B,$C587,raw_resource_build!$A:$A,AM$542)","v":0},{"$f":"SUMIFS(raw_resource_build!$L:$L,raw_resource_build!$B:$B,$C587,raw_resource_build!$A:$A,AN$542)","v":0}]
[null,null,{"$f":"Lists!B80","v":"Westlands_Ex_Solar"},"Westlands_Ex",{"$f":"SUMIFS(raw_resource_build!$L:$L,raw_resource_build!$B:$B,$C588,raw_resource_build!$A:$A,E$542)","v":0},{"$f":"SUMIFS(raw_resource_build!$L:$L,raw_resource_build!$B:$B,$C588,raw_resource_build!$A:$A,F$542)","v":0},{"$f":"SUMIFS(raw_resource_build!$L:$L,raw_resource_build!$B:$B,$C588,raw_resource_build!$A:$A,G$542)","v":0},{"$f":"SUMIFS(raw_resource_build!$L:$L,raw_resource_build!$B:$B,$C588,raw_resource_build!$A:$A,H$542)","v":0},{"$f":"SUMIFS(raw_resource_build!$L:$L,raw_resource_build!$B:$B,$C588,raw_resource_build!$A:$A,I$542)","v":0},{"$f":"SUMIFS(raw_resource_build!$L:$L,raw_resource_build!$B:$B,$C588,raw_resource_build!$A:$A,J$542)","v":0},{"$f":"SUMIFS(raw_resource_build!$L:$L,raw_resource_build!$B:$B,$C588,raw_resource_build!$A:$A,K$542)","v":0},{"$f":"SUMIFS(raw_resource_build!$L:$L,raw_resource_build!$B:$B,$C588,raw_resource_build!$A:$A,L$542)","v":0},{"$f":"SUMIFS(raw_resource_build!$L:$L,raw_resource_build!$B:$B,$C588,raw_resource_build!$A:$A,M$542)","v":0},{"$f":"SUMIFS(raw_resource_build!$L:$L,raw_resource_build!$B:$B,$C588,raw_resource_build!$A:$A,N$542)","v":0},{"$f":"SUMIFS(raw_resource_build!$L:$L,raw_resource_build!$B:$B,$C588,raw_resource_build!$A:$A,O$542)","v":0},{"$f":"SUMIFS(raw_resource_build!$L:$L,raw_resource_build!$B:$B,$C588,raw_resource_build!$A:$A,P$542)","v":0},{"$f":"SUMIFS(raw_resource_build!$L:$L,raw_resource_build!$B:$B,$C588,raw_resource_build!$A:$A,Q$542)","v":0},{"$f":"SUMIFS(raw_resource_build!$L:$L,raw_resource_build!$B:$B,$C588,raw_resource_build!$A:$A,R$542)","v":0},{"$f":"SUMIFS(raw_resource_build!$L:$L,raw_resource_build!$B:$B,$C588,raw_resource_build!$A:$A,S$542)","v":0},{"$f":"SUMIFS(raw_resource_build!$L:$L,raw_resource_build!$B:$B,$C588,raw_resource_build!$A:$A,T$542)","v":0},{"$f":"SUMIFS(raw_resource_build!$L:$L,raw_resource_build!$B:$B,$C588,raw_resource_build!$A:$A,U$542)","v":0},{"$f":"SUMIFS(raw_resource_build!$L:$L,raw_resource_build!$B:$B,$C588,raw_resource_build!$A:$A,V$542)","v":0},{"$f":"SUMIFS(raw_resource_build!$L:$L,raw_resource_build!$B:$B,$C588,raw_resource_build!$A:$A,W$542)","v":0},{"$f":"SUMIFS(raw_resource_build!$L:$L,raw_resource_build!$B:$B,$C588,raw_resource_build!$A:$A,X$542)","v":0},{"$f":"SUMIFS(raw_resource_build!$L:$L,raw_resource_build!$B:$B,$C588,raw_resource_build!$A:$A,Y$542)","v":0},{"$f":"SUMIFS(raw_resource_build!$L:$L,raw_resource_build!$B:$B,$C588,raw_resource_build!$A:$A,Z$542)","v":0},{"$f":"SUMIFS(raw_resource_build!$L:$L,raw_resource_build!$B:$B,$C588,raw_resource_build!$A:$A,AA$542)","v":0},{"$f":"SUMIFS(raw_resource_build!$L:$L,raw_resource_build!$B:$B,$C588,raw_resource_build!$A:$A,AB$542)","v":0},{"$f":"SUMIFS(raw_resource_build!$L:$L,raw_resource_build!$B:$B,$C588,raw_resource_build!$A:$A,AC$542)","v":0},{"$f":"SUMIFS(raw_resource_build!$L:$L,raw_resource_build!$B:$B,$C588,raw_resource_build!$A:$A,AD$542)","v":0},{"$f":"SUMIFS(raw_resource_build!$L:$L,raw_resource_build!$B:$B,$C588,raw_resource_build!$A:$A,AE$542)","v":0},{"$f":"SUMIFS(raw_resource_build!$L:$L,raw_resource_build!$B:$B,$C588,raw_resource_build!$A:$A,AF$542)","v":0},{"$f":"SUMIFS(raw_resource_build!$L:$L,raw_resource_build!$B:$B,$C588,raw_resource_build!$A:$A,AG$542)","v":0},{"$f":"SUMIFS(raw_resource_build!$L:$L,raw_resource_build!$B:$B,$C588,raw_resource_build!$A:$A,AH$542)","v":0},{"$f":"SUMIFS(raw_resource_build!$L:$L,raw_resource_build!$B:$B,$C588,raw_resource_build!$A:$A,AI$542)","v":0},{"$f":"SUMIFS(raw_resource_build!$L:$L,raw_resource_build!$B:$B,$C588,raw_resource_build!$A:$A,AJ$542)","v":0},{"$f":"SUMIFS(raw_resource_build!$L:$L,raw_resource_build!$B:$B,$C588,raw_resource_build!$A:$A,AK$542)","v":0},{"$f":"SUMIFS(raw_resource_build!$L:$L,raw_resource_build!$B:$B,$C588,raw_resource_build!$A:$A,AL$542)","v":0},{"$f":"SUMIFS(raw_resource_build!$L:$L,raw_resource_build!$B:$B,$C588,raw_resource_build!$A:$A,AM$542)","v":0},{"$f":"SUMIFS(raw_resource_build!$L:$L,raw_resource_build!$B:$B,$C588,raw_resource_build!$A:$A,AN$542)","v":0}]
[null,null,{"$f":"Lists!B81","v":"Westlands_Ex_Wind"},"N/A",{"$f":"SUMIFS(raw_resource_build!$L:$L,raw_resource_build!$B:$B,$C589,raw_resource_build!$A:$A,E$542)","v":0},{"$f":"SUMIFS(raw_resource_build!$L:$L,raw_resource_build!$B:$B,$C589,raw_resource_build!$A:$A,F$542)","v":0},{"$f":"SUMIFS(raw_resource_build!$L:$L,raw_resource_build!$B:$B,$C589,raw_resource_build!$A:$A,G$542)","v":0},{"$f":"SUMIFS(raw_resource_build!$L:$L,raw_resource_build!$B:$B,$C589,raw_resource_build!$A:$A,H$542)","v":0},{"$f":"SUMIFS(raw_resource_build!$L:$L,raw_resource_build!$B:$B,$C589,raw_resource_build!$A:$A,I$542)","v":0},{"$f":"SUMIFS(raw_resource_build!$L:$L,raw_resource_build!$B:$B,$C589,raw_resource_build!$A:$A,J$542)","v":0},{"$f":"SUMIFS(raw_resource_build!$L:$L,raw_resource_build!$B:$B,$C589,raw_resource_build!$A:$A,K$542)","v":0},{"$f":"SUMIFS(raw_resource_build!$L:$L,raw_resource_build!$B:$B,$C589,raw_resource_build!$A:$A,L$542)","v":0},{"$f":"SUMIFS(raw_resource_build!$L:$L,raw_resource_build!$B:$B,$C589,raw_resource_build!$A:$A,M$542)","v":0},{"$f":"SUMIFS(raw_resource_build!$L:$L,raw_resource_build!$B:$B,$C589,raw_resource_build!$A:$A,N$542)","v":0},{"$f":"SUMIFS(raw_resource_build!$L:$L,raw_resource_build!$B:$B,$C589,raw_resource_build!$A:$A,O$542)","v":0},{"$f":"SUMIFS(raw_resource_build!$L:$L,raw_resource_build!$B:$B,$C589,raw_resource_build!$A:$A,P$542)","v":0},{"$f":"SUMIFS(raw_resource_build!$L:$L,raw_resource_build!$B:$B,$C589,raw_resource_build!$A:$A,Q$542)","v":0},{"$f":"SUMIFS(raw_resource_build!$L:$L,raw_resource_build!$B:$B,$C589,raw_resource_build!$A:$A,R$542)","v":0},{"$f":"SUMIFS(raw_resource_build!$L:$L,raw_resource_build!$B:$B,$C589,raw_resource_build!$A:$A,S$542)","v":0},{"$f":"SUMIFS(raw_resource_build!$L:$L,raw_resource_build!$B:$B,$C589,raw_resource_build!$A:$A,T$542)","v":0},{"$f":"SUMIFS(raw_resource_build!$L:$L,raw_resource_build!$B:$B,$C589,raw_resource_build!$A:$A,U$542)","v":0},{"$f":"SUMIFS(raw_resource_build!$L:$L,raw_resource_build!$B:$B,$C589,raw_resource_build!$A:$A,V$542)","v":0},{"$f":"SUMIFS(raw_resource_build!$L:$L,raw_resource_build!$B:$B,$C589,raw_resource_build!$A:$A,W$542)","v":0},{"$f":"SUMIFS(raw_resource_build!$L:$L,raw_resource_build!$B:$B,$C589,raw_resource_build!$A:$A,X$542)","v":0},{"$f":"SUMIFS(raw_resource_build!$L:$L,raw_resource_build!$B:$B,$C589,raw_resource_build!$A:$A,Y$542)","v":0},{"$f":"SUMIFS(raw_resource_build!$L:$L,raw_resource_build!$B:$B,$C589,raw_resource_build!$A:$A,Z$542)","v":0},{"$f":"SUMIFS(raw_resource_build!$L:$L,raw_resource_build!$B:$B,$C589,raw_resource_build!$A:$A,AA$542)","v":0},{"$f":"SUMIFS(raw_resource_build!$L:$L,raw_resource_build!$B:$B,$C589,raw_resource_build!$A:$A,AB$542)","v":0},{"$f":"SUMIFS(raw_resource_build!$L:$L,raw_resource_build!$B:$B,$C589,raw_resource_build!$A:$A,AC$542)","v":0},{"$f":"SUMIFS(raw_resource_build!$L:$L,raw_resource_build!$B:$B,$C589,raw_resource_build!$A:$A,AD$542)","v":0},{"$f":"SUMIFS(raw_resource_build!$L:$L,raw_resource_build!$B:$B,$C589,raw_resource_build!$A:$A,AE$542)","v":0},{"$f":"SUMIFS(raw_resource_build!$L:$L,raw_resource_build!$B:$B,$C589,raw_resource_build!$A:$A,AF$542)","v":0},{"$f":"SUMIFS(raw_resource_build!$L:$L,raw_resource_build!$B:$B,$C589,raw_resource_build!$A:$A,AG$542)","v":0},{"$f":"SUMIFS(raw_resource_build!$L:$L,raw_resource_build!$B:$B,$C589,raw_resource_build!$A:$A,AH$542)","v":0},{"$f":"SUMIFS(raw_resource_build!$L:$L,raw_resource_build!$B:$B,$C589,raw_resource_build!$A:$A,AI$542)","v":0},{"$f":"SUMIFS(raw_resource_build!$L:$L,raw_resource_build!$B:$B,$C589,raw_resource_build!$A:$A,AJ$542)","v":0},{"$f":"SUMIFS(raw_resource_build!$L:$L,raw_resource_build!$B:$B,$C589,raw_resource_build!$A:$A,AK$542)","v":0},{"$f":"SUMIFS(raw_resource_build!$L:$L,raw_resource_build!$B:$B,$C589,raw_resource_build!$A:$A,AL$542)","v":0},{"$f":"SUMIFS(raw_resource_build!$L:$L,raw_resource_build!$B:$B,$C589,raw_resource_build!$A:$A,AM$542)","v":0},{"$f":"SUMIFS(raw_resource_build!$L:$L,raw_resource_build!$B:$B,$C589,raw_resource_build!$A:$A,AN$542)","v":0}]
[null,null,{"$f":"Lists!B82","v":"Westlands_Solar"},"Central_Valley_North_Los_Banos-SPGE",{"$f":"SUMIFS(raw_resource_build!$L:$L,raw_resource_build!$B:$B,$C590,raw_resource_build!$A:$A,E$542)","v":0},{"$f":"SUMIFS(raw_resource_build!$L:$L,raw_resource_build!$B:$B,$C590,raw_resource_build!$A:$A,F$542)","v":0},{"$f":"SUMIFS(raw_resource_build!$L:$L,raw_resource_build!$B:$B,$C590,raw_resource_build!$A:$A,G$542)","v":0},{"$f":"SUMIFS(raw_resource_build!$L:$L,raw_resource_build!$B:$B,$C590,raw_resource_build!$A:$A,H$542)","v":0},{"$f":"SUMIFS(raw_resource_build!$L:$L,raw_resource_build!$B:$B,$C590,raw_resource_build!$A:$A,I$542)","v":0},{"$f":"SUMIFS(raw_resource_build!$L:$L,raw_resource_build!$B:$B,$C590,raw_resource_build!$A:$A,J$542)","v":0},{"$f":"SUMIFS(raw_resource_build!$L:$L,raw_resource_build!$B:$B,$C590,raw_resource_build!$A:$A,K$542)","v":0},{"$f":"SUMIFS(raw_resource_build!$L:$L,raw_resource_build!$B:$B,$C590,raw_resource_build!$A:$A,L$542)","v":0},{"$f":"SUMIFS(raw_resource_build!$L:$L,raw_resource_build!$B:$B,$C590,raw_resource_build!$A:$A,M$542)","v":0},{"$f":"SUMIFS(raw_resource_build!$L:$L,raw_resource_build!$B:$B,$C590,raw_resource_build!$A:$A,N$542)","v":0},{"$f":"SUMIFS(raw_resource_build!$L:$L,raw_resource_build!$B:$B,$C590,raw_resource_build!$A:$A,O$542)","v":0},{"$f":"SUMIFS(raw_resource_build!$L:$L,raw_resource_build!$B:$B,$C590,raw_resource_build!$A:$A,P$542)","v":0},{"$f":"SUMIFS(raw_resource_build!$L:$L,raw_resource_build!$B:$B,$C590,raw_resource_build!$A:$A,Q$542)","v":0},{"$f":"SUMIFS(raw_resource_build!$L:$L,raw_resource_build!$B:$B,$C590,raw_resource_build!$A:$A,R$542)","v":0},{"$f":"SUMIFS(raw_resource_build!$L:$L,raw_resource_build!$B:$B,$C590,raw_resource_build!$A:$A,S$542)","v":0},{"$f":"SUMIFS(raw_resource_build!$L:$L,raw_resource_build!$B:$B,$C590,raw_resource_build!$A:$A,T$542)","v":0},{"$f":"SUMIFS(raw_resource_build!$L:$L,raw_resource_build!$B:$B,$C590,raw_resource_build!$A:$A,U$542)","v":0},{"$f":"SUMIFS(raw_resource_build!$L:$L,raw_resource_build!$B:$B,$C590,raw_resource_build!$A:$A,V$542)","v":0},{"$f":"SUMIFS(raw_resource_build!$L:$L,raw_resource_build!$B:$B,$C590,raw_resource_build!$A:$A,W$542)","v":0},{"$f":"SUMIFS(raw_resource_build!$L:$L,raw_resource_build!$B:$B,$C590,raw_resource_build!$A:$A,X$542)","v":0},{"$f":"SUMIFS(raw_resource_build!$L:$L,raw_resource_build!$B:$B,$C590,raw_resource_build!$A:$A,Y$542)","v":0},{"$f":"SUMIFS(raw_resource_build!$L:$L,raw_resource_build!$B:$B,$C590,raw_resource_build!$A:$A,Z$542)","v":0},{"$f":"SUMIFS(raw_resource_build!$L:$L,raw_resource_build!$B:$B,$C590,raw_resource_build!$A:$A,AA$542)","v":0},{"$f":"SUMIFS(raw_resource_build!$L:$L,raw_resource_build!$B:$B,$C590,raw_resource_build!$A:$A,AB$542)","v":0},{"$f":"SUMIFS(raw_resource_build!$L:$L,raw_resource_build!$B:$B,$C590,raw_resource_build!$A:$A,AC$542)","v":0},{"$f":"SUMIFS(raw_resource_build!$L:$L,raw_resource_build!$B:$B,$C590,raw_resource_build!$A:$A,AD$542)","v":0},{"$f":"SUMIFS(raw_resource_build!$L:$L,raw_resource_build!$B:$B,$C590,raw_resource_build!$A:$A,AE$542)","v":0},{"$f":"SUMIFS(raw_resource_build!$L:$L,raw_resource_build!$B:$B,$C590,raw_resource_build!$A:$A,AF$542)","v":0},{"$f":"SUMIFS(raw_resource_build!$L:$L,raw_resource_build!$B:$B,$C590,raw_resource_build!$A:$A,AG$542)","v":0},{"$f":"SUMIFS(raw_resource_build!$L:$L,raw_resource_build!$B:$B,$C590,raw_resource_build!$A:$A,AH$542)","v":0},{"$f":"SUMIFS(raw_resource_build!$L:$L,raw_resource_build!$B:$B,$C590,raw_resource_build!$A:$A,AI$542)","v":0},{"$f":"SUMIFS(raw_resource_build!$L:$L,raw_resource_build!$B:$B,$C590,raw_resource_build!$A:$A,AJ$542)","v":0},{"$f":"SUMIFS(raw_resource_build!$L:$L,raw_resource_build!$B:$B,$C590,raw_resource_build!$A:$A,AK$542)","v":0},{"$f":"SUMIFS(raw_resource_build!$L:$L,raw_resource_build!$B:$B,$C590,raw_resource_build!$A:$A,AL$542)","v":0},{"$f":"SUMIFS(raw_resource_build!$L:$L,raw_resource_build!$B:$B,$C590,raw_resource_build!$A:$A,AM$542)","v":0},{"$f":"SUMIFS(raw_resource_build!$L:$L,raw_resource_build!$B:$B,$C590,raw_resource_build!$A:$A,AN$542)","v":0}]
[null,null,{"$f":"Lists!B83","v":"Cape_Mendocino_Offshore_Wind"},"N/A",{"$f":"SUMIFS(raw_resource_build!$L:$L,raw_resource_build!$B:$B,$C591,raw_resource_build!$A:$A,E$542)","v":0},{"$f":"SUMIFS(raw_resource_build!$L:$L,raw_resource_build!$B:$B,$C591,raw_resource_build!$A:$A,F$542)","v":0},{"$f":"SUMIFS(raw_resource_build!$L:$L,raw_resource_build!$B:$B,$C591,raw_resource_build!$A:$A,G$542)","v":0},{"$f":"SUMIFS(raw_resource_build!$L:$L,raw_resource_build!$B:$B,$C591,raw_resource_build!$A:$A,H$542)","v":0},{"$f":"SUMIFS(raw_resource_build!$L:$L,raw_resource_build!$B:$B,$C591,raw_resource_build!$A:$A,I$542)","v":0},{"$f":"SUMIFS(raw_resource_build!$L:$L,raw_resource_build!$B:$B,$C591,raw_resource_build!$A:$A,J$542)","v":0},{"$f":"SUMIFS(raw_resource_build!$L:$L,raw_resource_build!$B:$B,$C591,raw_resource_build!$A:$A,K$542)","v":0},{"$f":"SUMIFS(raw_resource_build!$L:$L,raw_resource_build!$B:$B,$C591,raw_resource_build!$A:$A,L$542)","v":0},{"$f":"SUMIFS(raw_resource_build!$L:$L,raw_resource_build!$B:$B,$C591,raw_resource_build!$A:$A,M$542)","v":0},{"$f":"SUMIFS(raw_resource_build!$L:$L,raw_resource_build!$B:$B,$C591,raw_resource_build!$A:$A,N$542)","v":0},{"$f":"SUMIFS(raw_resource_build!$L:$L,raw_resource_build!$B:$B,$C591,raw_resource_build!$A:$A,O$542)","v":0},{"$f":"SUMIFS(raw_resource_build!$L:$L,raw_resource_build!$B:$B,$C591,raw_resource_build!$A:$A,P$542)","v":0},{"$f":"SUMIFS(raw_resource_build!$L:$L,raw_resource_build!$B:$B,$C591,raw_resource_build!$A:$A,Q$542)","v":0},{"$f":"SUMIFS(raw_resource_build!$L:$L,raw_resource_build!$B:$B,$C591,raw_resource_build!$A:$A,R$542)","v":0},{"$f":"SUMIFS(raw_resource_build!$L:$L,raw_resource_build!$B:$B,$C591,raw_resource_build!$A:$A,S$542)","v":0},{"$f":"SUMIFS(raw_resource_build!$L:$L,raw_resource_build!$B:$B,$C591,raw_resource_build!$A:$A,T$542)","v":0},{"$f":"SUMIFS(raw_resource_build!$L:$L,raw_resource_build!$B:$B,$C591,raw_resource_build!$A:$A,U$542)","v":0},{"$f":"SUMIFS(raw_resource_build!$L:$L,raw_resource_build!$B:$B,$C591,raw_resource_build!$A:$A,V$542)","v":0},{"$f":"SUMIFS(raw_resource_build!$L:$L,raw_resource_build!$B:$B,$C591,raw_resource_build!$A:$A,W$542)","v":0},{"$f":"SUMIFS(raw_resource_build!$L:$L,raw_resource_build!$B:$B,$C591,raw_resource_build!$A:$A,X$542)","v":0},{"$f":"SUMIFS(raw_resource_build!$L:$L,raw_resource_build!$B:$B,$C591,raw_resource_build!$A:$A,Y$542)","v":0},{"$f":"SUMIFS(raw_resource_build!$L:$L,raw_resource_build!$B:$B,$C591,raw_resource_build!$A:$A,Z$542)","v":0},{"$f":"SUMIFS(raw_resource_build!$L:$L,raw_resource_build!$B:$B,$C591,raw_resource_build!$A:$A,AA$542)","v":0},{"$f":"SUMIFS(raw_resource_build!$L:$L,raw_resource_build!$B:$B,$C591,raw_resource_build!$A:$A,AB$542)","v":0},{"$f":"SUMIFS(raw_resource_build!$L:$L,raw_resource_build!$B:$B,$C591,raw_resource_build!$A:$A,AC$542)","v":0},{"$f":"SUMIFS(raw_resource_build!$L:$L,raw_resource_build!$B:$B,$C591,raw_resource_build!$A:$A,AD$542)","v":0},{"$f":"SUMIFS(raw_resource_build!$L:$L,raw_resource_build!$B:$B,$C591,raw_resource_build!$A:$A,AE$542)","v":0},{"$f":"SUMIFS(raw_resource_build!$L:$L,raw_resource_build!$B:$B,$C591,raw_resource_build!$A:$A,AF$542)","v":0},{"$f":"SUMIFS(raw_resource_build!$L:$L,raw_resource_build!$B:$B,$C591,raw_resource_build!$A:$A,AG$542)","v":0},{"$f":"SUMIFS(raw_resource_build!$L:$L,raw_resource_build!$B:$B,$C591,raw_resource_build!$A:$A,AH$542)","v":0},{"$f":"SUMIFS(raw_resource_build!$L:$L,raw_resource_build!$B:$B,$C591,raw_resource_build!$A:$A,AI$542)","v":0},{"$f":"SUMIFS(raw_resource_build!$L:$L,raw_resource_build!$B:$B,$C591,raw_resource_build!$A:$A,AJ$542)","v":0},{"$f":"SUMIFS(raw_resource_build!$L:$L,raw_resource_build!$B:$B,$C591,raw_resource_build!$A:$A,AK$542)","v":0},{"$f":"SUMIFS(raw_resource_build!$L:$L,raw_resource_build!$B:$B,$C591,raw_resource_build!$A:$A,AL$542)","v":0},{"$f":"SUMIFS(raw_resource_build!$L:$L,raw_resource_build!$B:$B,$C591,raw_resource_build!$A:$A,AM$542)","v":0},{"$f":"SUMIFS(raw_resource_build!$L:$L,raw_resource_build!$B:$B,$C591,raw_resource_build!$A:$A,AN$542)","v":0}]
[null,null,{"$f":"Lists!B84","v":"Del_Norte_Offshore_Wind"},"N/A",null,null,null,null,null,{"$f":"SUMIFS(raw_resource_build!$L:$L,raw_resource_build!$B:$B,$C592,raw_resource_build!$A:$A,J$542)","v":0},{"$f":"SUMIFS(raw_resource_build!$L:$L,raw_resource_build!$B:$B,$C592,raw_resource_build!$A:$A,K$542)","v":0},{"$f":"SUMIFS(raw_resource_build!$L:$L,raw_resource_build!$B:$B,$C592,raw_resource_build!$A:$A,L$542)","v":0},{"$f":"SUMIFS(raw_resource_build!$L:$L,raw_resource_build!$B:$B,$C592,raw_resource_build!$A:$A,M$542)","v":0},{"$f":"SUMIFS(raw_resource_build!$L:$L,raw_resource_build!$B:$B,$C592,raw_resource_build!$A:$A,N$542)","v":0},{"$f":"SUMIFS(raw_resource_build!$L:$L,raw_resource_build!$B:$B,$C592,raw_resource_build!$A:$A,O$542)","v":0},{"$f":"SUMIFS(raw_resource_build!$L:$L,raw_resource_build!$B:$B,$C592,raw_resource_build!$A:$A,P$542)","v":0},{"$f":"SUMIFS(raw_resource_build!$L:$L,raw_resource_build!$B:$B,$C592,raw_resource_build!$A:$A,Q$542)","v":0},{"$f":"SUMIFS(raw_resource_build!$L:$L,raw_resource_build!$B:$B,$C592,raw_resource_build!$A:$A,R$542)","v":0},{"$f":"SUMIFS(raw_resource_build!$L:$L,raw_resource_build!$B:$B,$C592,raw_resource_build!$A:$A,S$542)","v":0},{"$f":"SUMIFS(raw_resource_build!$L:$L,raw_resource_build!$B:$B,$C592,raw_resource_build!$A:$A,T$542)","v":0},{"$f":"SUMIFS(raw_resource_build!$L:$L,raw_resource_build!$B:$B,$C592,raw_resource_build!$A:$A,U$542)","v":0},{"$f":"SUMIFS(raw_resource_build!$L:$L,raw_resource_build!$B:$B,$C592,raw_resource_build!$A:$A,V$542)","v":0},{"$f":"SUMIFS(raw_resource_build!$L:$L,raw_resource_build!$B:$B,$C592,raw_resource_build!$A:$A,W$542)","v":0},{"$f":"SUMIFS(raw_resource_build!$L:$L,raw_resource_build!$B:$B,$C592,raw_resource_build!$A:$A,X$542)","v":0},{"$f":"SUMIFS(raw_resource_build!$L:$L,raw_resource_build!$B:$B,$C592,raw_resource_build!$A:$A,Y$542)","v":0},{"$f":"SUMIFS(raw_resource_build!$L:$L,raw_resource_build!$B:$B,$C592,raw_resource_build!$A:$A,Z$542)","v":0},{"$f":"SUMIFS(raw_resource_build!$L:$L,raw_resource_build!$B:$B,$C592,raw_resource_build!$A:$A,AA$542)","v":0},{"$f":"SUMIFS(raw_resource_build!$L:$L,raw_resource_build!$B:$B,$C592,raw_resource_build!$A:$A,AB$542)","v":0},{"$f":"SUMIFS(raw_resource_build!$L:$L,raw_resource_build!$B:$B,$C592,raw_resource_build!$A:$A,AC$542)","v":0},{"$f":"SUMIFS(raw_resource_build!$L:$L,raw_resource_build!$B:$B,$C592,raw_resource_build!$A:$A,AD$542)","v":0},{"$f":"SUMIFS(raw_resource_build!$L:$L,raw_resource_build!$B:$B,$C592,raw_resource_build!$A:$A,AE$542)","v":0},{"$f":"SUMIFS(raw_resource_build!$L:$L,raw_resource_build!$B:$B,$C592,raw_resource_build!$A:$A,AF$542)","v":0},{"$f":"SUMIFS(raw_resource_build!$L:$L,raw_resource_build!$B:$B,$C592,raw_resource_build!$A:$A,AG$542)","v":0},{"$f":"SUMIFS(raw_resource_build!$L:$L,raw_resource_build!$B:$B,$C592,raw_resource_build!$A:$A,AH$542)","v":0},{"$f":"SUMIFS(raw_resource_build!$L:$L,raw_resource_build!$B:$B,$C592,raw_resource_build!$A:$A,AI$542)","v":0},{"$f":"SUMIFS(raw_resource_build!$L:$L,raw_resource_build!$B:$B,$C592,raw_resource_build!$A:$A,AJ$542)","v":0},{"$f":"SUMIFS(raw_resource_build!$L:$L,raw_resource_build!$B:$B,$C592,raw_resource_build!$A:$A,AK$542)","v":0},{"$f":"SUMIFS(raw_resource_build!$L:$L,raw_resource_build!$B:$B,$C592,raw_resource_build!$A:$A,AL$542)","v":0},{"$f":"SUMIFS(raw_resource_build!$L:$L,raw_resource_build!$B:$B,$C592,raw_resource_build!$A:$A,AM$542)","v":0},{"$f":"SUMIFS(raw_resource_build!$L:$L,raw_resource_build!$B:$B,$C592,raw_resource_build!$A:$A,AN$542)","v":0}]
[null,null,{"$f":"Lists!B85","v":"Diablo_Canyon_Offshore_Wind_Ext_Tx"},"N/A",{"$f":"SUMIFS(raw_resource_build!$L:$L,raw_resource_build!$B:$B,$C593,raw_resource_build!$A:$A,E$542)","v":0},{"$f":"SUMIFS(raw_resource_build!$L:$L,raw_resource_build!$B:$B,$C593,raw_resource_build!$A:$A,F$542)","v":0},{"$f":"SUMIFS(raw_resource_build!$L:$L,raw_resource_build!$B:$B,$C593,raw_resource_build!$A:$A,G$542)","v":0},{"$f":"SUMIFS(raw_resource_build!$L:$L,raw_resource_build!$B:$B,$C593,raw_resource_build!$A:$A,H$542)","v":0},{"$f":"SUMIFS(raw_resource_build!$L:$L,raw_resource_build!$B:$B,$C593,raw_resource_build!$A:$A,I$542)","v":0},{"$f":"SUMIFS(raw_resource_build!$L:$L,raw_resource_build!$B:$B,$C593,raw_resource_build!$A:$A,J$542)","v":0},{"$f":"SUMIFS(raw_resource_build!$L:$L,raw_resource_build!$B:$B,$C593,raw_resource_build!$A:$A,K$542)","v":0},{"$f":"SUMIFS(raw_resource_build!$L:$L,raw_resource_build!$B:$B,$C593,raw_resource_build!$A:$A,L$542)","v":0},{"$f":"SUMIFS(raw_resource_build!$L:$L,raw_resource_build!$B:$B,$C593,raw_resource_build!$A:$A,M$542)","v":0},{"$f":"SUMIFS(raw_resource_build!$L:$L,raw_resource_build!$B:$B,$C593,raw_resource_build!$A:$A,N$542)","v":0},{"$f":"SUMIFS(raw_resource_build!$L:$L,raw_resource_build!$B:$B,$C593,raw_resource_build!$A:$A,O$542)","v":0},{"$f":"SUMIFS(raw_resource_build!$L:$L,raw_resource_build!$B:$B,$C593,raw_resource_build!$A:$A,P$542)","v":0},{"$f":"SUMIFS(raw_resource_build!$L:$L,raw_resource_build!$B:$B,$C593,raw_resource_build!$A:$A,Q$542)","v":0},{"$f":"SUMIFS(raw_resource_build!$L:$L,raw_resource_build!$B:$B,$C593,raw_resource_build!$A:$A,R$542)","v":0},{"$f":"SUMIFS(raw_resource_build!$L:$L,raw_resource_build!$B:$B,$C593,raw_resource_build!$A:$A,S$542)","v":0},{"$f":"SUMIFS(raw_resource_build!$L:$L,raw_resource_build!$B:$B,$C593,raw_resource_build!$A:$A,T$542)","v":0},{"$f":"SUMIFS(raw_resource_build!$L:$L,raw_resource_build!$B:$B,$C593,raw_resource_build!$A:$A,U$542)","v":0},{"$f":"SUMIFS(raw_resource_build!$L:$L,raw_resource_build!$B:$B,$C593,raw_resource_build!$A:$A,V$542)","v":0},{"$f":"SUMIFS(raw_resource_build!$L:$L,raw_resource_build!$B:$B,$C593,raw_resource_build!$A:$A,W$542)","v":0},{"$f":"SUMIFS(raw_resource_build!$L:$L,raw_resource_build!$B:$B,$C593,raw_resource_build!$A:$A,X$542)","v":0},{"$f":"SUMIFS(raw_resource_build!$L:$L,raw_resource_build!$B:$B,$C593,raw_resource_build!$A:$A,Y$542)","v":0},{"$f":"SUMIFS(raw_resource_build!$L:$L,raw_resource_build!$B:$B,$C593,raw_resource_build!$A:$A,Z$542)","v":0},{"$f":"SUMIFS(raw_resource_build!$L:$L,raw_resource_build!$B:$B,$C593,raw_resource_build!$A:$A,AA$542)","v":0},{"$f":"SUMIFS(raw_resource_build!$L:$L,raw_resource_build!$B:$B,$C593,raw_resource_build!$A:$A,AB$542)","v":0},{"$f":"SUMIFS(raw_resource_build!$L:$L,raw_resource_build!$B:$B,$C593,raw_resource_build!$A:$A,AC$542)","v":0},{"$f":"SUMIFS(raw_resource_build!$L:$L,raw_resource_build!$B:$B,$C593,raw_resource_build!$A:$A,AD$542)","v":0},{"$f":"SUMIFS(raw_resource_build!$L:$L,raw_resource_build!$B:$B,$C593,raw_resource_build!$A:$A,AE$542)","v":0},{"$f":"SUMIFS(raw_resource_build!$L:$L,raw_resource_build!$B:$B,$C593,raw_resource_build!$A:$A,AF$542)","v":0},{"$f":"SUMIFS(raw_resource_build!$L:$L,raw_resource_build!$B:$B,$C593,raw_resource_build!$A:$A,AG$542)","v":0},{"$f":"SUMIFS(raw_resource_build!$L:$L,raw_resource_build!$B:$B,$C593,raw_resource_build!$A:$A,AH$542)","v":0},{"$f":"SUMIFS(raw_resource_build!$L:$L,raw_resource_build!$B:$B,$C593,raw_resource_build!$A:$A,AI$542)","v":0},{"$f":"SUMIFS(raw_resource_build!$L:$L,raw_resource_build!$B:$B,$C593,raw_resource_build!$A:$A,AJ$542)","v":0},{"$f":"SUMIFS(raw_resource_build!$L:$L,raw_resource_build!$B:$B,$C593,raw_resource_build!$A:$A,AK$542)","v":0},{"$f":"SUMIFS(raw_resource_build!$L:$L,raw_resource_build!$B:$B,$C593,raw_resource_build!$A:$A,AL$542)","v":0},{"$f":"SUMIFS(raw_resource_build!$L:$L,raw_resource_build!$B:$B,$C593,raw_resource_build!$A:$A,AM$542)","v":0},{"$f":"SUMIFS(raw_resource_build!$L:$L,raw_resource_build!$B:$B,$C593,raw_resource_build!$A:$A,AN$542)","v":0}]
[null,null,{"$f":"Lists!B86","v":"Diablo_Canyon_Offshore_Wind"},"N/A",{"$f":"SUMIFS(raw_resource_build!$L:$L,raw_resource_build!$B:$B,$C594,raw_resource_build!$A:$A,E$542)","v":0},{"$f":"SUMIFS(raw_resource_build!$L:$L,raw_resource_build!$B:$B,$C594,raw_resource_build!$A:$A,F$542)","v":0},{"$f":"SUMIFS(raw_resource_build!$L:$L,raw_resource_build!$B:$B,$C594,raw_resource_build!$A:$A,G$542)","v":0},{"$f":"SUMIFS(raw_resource_build!$L:$L,raw_resource_build!$B:$B,$C594,raw_resource_build!$A:$A,H$542)","v":0},{"$f":"SUMIFS(raw_resource_build!$L:$L,raw_resource_build!$B:$B,$C594,raw_resource_build!$A:$A,I$542)","v":0},{"$f":"SUMIFS(raw_resource_build!$L:$L,raw_resource_build!$B:$B,$C594,raw_resource_build!$A:$A,J$542)","v":0},{"$f":"SUMIFS(raw_resource_build!$L:$L,raw_resource_build!$B:$B,$C594,raw_resource_build!$A:$A,K$542)","v":0},{"$f":"SUMIFS(raw_resource_build!$L:$L,raw_resource_build!$B:$B,$C594,raw_resource_build!$A:$A,L$542)","v":0},{"$f":"SUMIFS(raw_resource_build!$L:$L,raw_resource_build!$B:$B,$C594,raw_resource_build!$A:$A,M$542)","v":0},{"$f":"SUMIFS(raw_resource_build!$L:$L,raw_resource_build!$B:$B,$C594,raw_resource_build!$A:$A,N$542)","v":0},{"$f":"SUMIFS(raw_resource_build!$L:$L,raw_resource_build!$B:$B,$C594,raw_resource_build!$A:$A,O$542)","v":0},{"$f":"SUMIFS(raw_resource_build!$L:$L,raw_resource_build!$B:$B,$C594,raw_resource_build!$A:$A,P$542)","v":0},{"$f":"SUMIFS(raw_resource_build!$L:$L,raw_resource_build!$B:$B,$C594,raw_resource_build!$A:$A,Q$542)","v":0},{"$f":"SUMIFS(raw_resource_build!$L:$L,raw_resource_build!$B:$B,$C594,raw_resource_build!$A:$A,R$542)","v":0},{"$f":"SUMIFS(raw_resource_build!$L:$L,raw_resource_build!$B:$B,$C594,raw_resource_build!$A:$A,S$542)","v":0},{"$f":"SUMIFS(raw_resource_build!$L:$L,raw_resource_build!$B:$B,$C594,raw_resource_build!$A:$A,T$542)","v":0},{"$f":"SUMIFS(raw_resource_build!$L:$L,raw_resource_build!$B:$B,$C594,raw_resource_build!$A:$A,U$542)","v":0},{"$f":"SUMIFS(raw_resource_build!$L:$L,raw_resource_build!$B:$B,$C594,raw_resource_build!$A:$A,V$542)","v":0},{"$f":"SUMIFS(raw_resource_build!$L:$L,raw_resource_build!$B:$B,$C594,raw_resource_build!$A:$A,W$542)","v":0},{"$f":"SUMIFS(raw_resource_build!$L:$L,raw_resource_build!$B:$B,$C594,raw_resource_build!$A:$A,X$542)","v":0},{"$f":"SUMIFS(raw_resource_build!$L:$L,raw_resource_build!$B:$B,$C594,raw_resource_build!$A:$A,Y$542)","v":0},{"$f":"SUMIFS(raw_resource_build!$L:$L,raw_resource_build!$B:$B,$C594,raw_resource_build!$A:$A,Z$542)","v":0},{"$f":"SUMIFS(raw_resource_build!$L:$L,raw_resource_build!$B:$B,$C594,raw_resource_build!$A:$A,AA$542)","v":0},{"$f":"SUMIFS(raw_resource_build!$L:$L,raw_resource_build!$B:$B,$C594,raw_resource_build!$A:$A,AB$542)","v":0},{"$f":"SUMIFS(raw_resource_build!$L:$L,raw_resource_build!$B:$B,$C594,raw_resource_build!$A:$A,AC$542)","v":0},{"$f":"SUMIFS(raw_resource_build!$L:$L,raw_resource_build!$B:$B,$C594,raw_resource_build!$A:$A,AD$542)","v":0},{"$f":"SUMIFS(raw_resource_build!$L:$L,raw_resource_build!$B:$B,$C594,raw_resource_build!$A:$A,AE$542)","v":0},{"$f":"SUMIFS(raw_resource_build!$L:$L,raw_resource_build!$B:$B,$C594,raw_resource_build!$A:$A,AF$542)","v":0},{"$f":"SUMIFS(raw_resource_build!$L:$L,raw_resource_build!$B:$B,$C594,raw_resource_build!$A:$A,AG$542)","v":0},{"$f":"SUMIFS(raw_resource_build!$L:$L,raw_resource_build!$B:$B,$C594,raw_resource_build!$A:$A,AH$542)","v":0},{"$f":"SUMIFS(raw_resource_build!$L:$L,raw_resource_build!$B:$B,$C594,raw_resource_build!$A:$A,AI$542)","v":0},{"$f":"SUMIFS(raw_resource_build!$L:$L,raw_resource_build!$B:$B,$C594,raw_resource_build!$A:$A,AJ$542)","v":0},{"$f":"SUMIFS(raw_resource_build!$L:$L,raw_resource_build!$B:$B,$C594,raw_resource_build!$A:$A,AK$542)","v":0},{"$f":"SUMIFS(raw_resource_build!$L:$L,raw_resource_build!$B:$B,$C594,raw_resource_build!$A:$A,AL$542)","v":0},{"$f":"SUMIFS(raw_resource_build!$L:$L,raw_resource_build!$B:$B,$C594,raw_resource_build!$A:$A,AM$542)","v":0},{"$f":"SUMIFS(raw_resource_build!$L:$L,raw_resource_build!$B:$B,$C594,raw_resource_build!$A:$A,AN$542)","v":0}]
[null,null,{"$f":"Lists!B87","v":"Humboldt_Bay_Offshore_Wind"},"N/A",{"$f":"SUMIFS(raw_resource_build!$L:$L,raw_resource_build!$B:$B,$C595,raw_resource_build!$A:$A,E$542)","v":0},{"$f":"SUMIFS(raw_resource_build!$L:$L,raw_resource_build!$B:$B,$C595,raw_resource_build!$A:$A,F$542)","v":0},{"$f":"SUMIFS(raw_resource_build!$L:$L,raw_resource_build!$B:$B,$C595,raw_resource_build!$A:$A,G$542)","v":0},{"$f":"SUMIFS(raw_resource_build!$L:$L,raw_resource_build!$B:$B,$C595,raw_resource_build!$A:$A,H$542)","v":0},{"$f":"SUMIFS(raw_resource_build!$L:$L,raw_resource_build!$B:$B,$C595,raw_resource_build!$A:$A,I$542)","v":0},{"$f":"SUMIFS(raw_resource_build!$L:$L,raw_resource_build!$B:$B,$C595,raw_resource_build!$A:$A,J$542)","v":0},{"$f":"SUMIFS(raw_resource_build!$L:$L,raw_resource_build!$B:$B,$C595,raw_resource_build!$A:$A,K$542)","v":0},{"$f":"SUMIFS(raw_resource_build!$L:$L,raw_resource_build!$B:$B,$C595,raw_resource_build!$A:$A,L$542)","v":0},{"$f":"SUMIFS(raw_resource_build!$L:$L,raw_resource_build!$B:$B,$C595,raw_resource_build!$A:$A,M$542)","v":0},{"$f":"SUMIFS(raw_resource_build!$L:$L,raw_resource_build!$B:$B,$C595,raw_resource_build!$A:$A,N$542)","v":0},{"$f":"SUMIFS(raw_resource_build!$L:$L,raw_resource_build!$B:$B,$C595,raw_resource_build!$A:$A,O$542)","v":0},{"$f":"SUMIFS(raw_resource_build!$L:$L,raw_resource_build!$B:$B,$C595,raw_resource_build!$A:$A,P$542)","v":0},{"$f":"SUMIFS(raw_resource_build!$L:$L,raw_resource_build!$B:$B,$C595,raw_resource_build!$A:$A,Q$542)","v":0},{"$f":"SUMIFS(raw_resource_build!$L:$L,raw_resource_build!$B:$B,$C595,raw_resource_build!$A:$A,R$542)","v":0},{"$f":"SUMIFS(raw_resource_build!$L:$L,raw_resource_build!$B:$B,$C595,raw_resource_build!$A:$A,S$542)","v":0},{"$f":"SUMIFS(raw_resource_build!$L:$L,raw_resource_build!$B:$B,$C595,raw_resource_build!$A:$A,T$542)","v":0},{"$f":"SUMIFS(raw_resource_build!$L:$L,raw_resource_build!$B:$B,$C595,raw_resource_build!$A:$A,U$542)","v":0},{"$f":"SUMIFS(raw_resource_build!$L:$L,raw_resource_build!$B:$B,$C595,raw_resource_build!$A:$A,V$542)","v":0},{"$f":"SUMIFS(raw_resource_build!$L:$L,raw_resource_build!$B:$B,$C595,raw_resource_build!$A:$A,W$542)","v":0},{"$f":"SUMIFS(raw_resource_build!$L:$L,raw_resource_build!$B:$B,$C595,raw_resource_build!$A:$A,X$542)","v":0},{"$f":"SUMIFS(raw_resource_build!$L:$L,raw_resource_build!$B:$B,$C595,raw_resource_build!$A:$A,Y$542)","v":0},{"$f":"SUMIFS(raw_resource_build!$L:$L,raw_resource_build!$B:$B,$C595,raw_resource_build!$A:$A,Z$542)","v":0},{"$f":"SUMIFS(raw_resource_build!$L:$L,raw_resource_build!$B:$B,$C595,raw_resource_build!$A:$A,AA$542)","v":0},{"$f":"SUMIFS(raw_resource_build!$L:$L,raw_resource_build!$B:$B,$C595,raw_resource_build!$A:$A,AB$542)","v":0},{"$f":"SUMIFS(raw_resource_build!$L:$L,raw_resource_build!$B:$B,$C595,raw_resource_build!$A:$A,AC$542)","v":0},{"$f":"SUMIFS(raw_resource_build!$L:$L,raw_resource_build!$B:$B,$C595,raw_resource_build!$A:$A,AD$542)","v":0},{"$f":"SUMIFS(raw_resource_build!$L:$L,raw_resource_build!$B:$B,$C595,raw_resource_build!$A:$A,AE$542)","v":0},{"$f":"SUMIFS(raw_resource_build!$L:$L,raw_resource_build!$B:$B,$C595,raw_resource_build!$A:$A,AF$542)","v":0},{"$f":"SUMIFS(raw_resource_build!$L:$L,raw_resource_build!$B:$B,$C595,raw_resource_build!$A:$A,AG$542)","v":0},{"$f":"SUMIFS(raw_resource_build!$L:$L,raw_resource_build!$B:$B,$C595,raw_resource_build!$A:$A,AH$542)","v":0},{"$f":"SUMIFS(raw_resource_build!$L:$L,raw_resource_build!$B:$B,$C595,raw_resource_build!$A:$A,AI$542)","v":0},{"$f":"SUMIFS(raw_resource_build!$L:$L,raw_resource_build!$B:$B,$C595,raw_resource_build!$A:$A,AJ$542)","v":0},{"$f":"SUMIFS(raw_resource_build!$L:$L,raw_resource_build!$B:$B,$C595,raw_resource_build!$A:$A,AK$542)","v":0},{"$f":"SUMIFS(raw_resource_build!$L:$L,raw_resource_build!$B:$B,$C595,raw_resource_build!$A:$A,AL$542)","v":0},{"$f":"SUMIFS(raw_resource_build!$L:$L,raw_resource_build!$B:$B,$C595,raw_resource_build!$A:$A,AM$542)","v":0},{"$f":"SUMIFS(raw_resource_build!$L:$L,raw_resource_build!$B:$B,$C595,raw_resource_build!$A:$A,AN$542)","v":0}]
[null,null,{"$f":"Lists!B88","v":"Morro_Bay_Offshore_Wind"},"N/A",{"$f":"SUMIFS(raw_resource_build!$L:$L,raw_resource_build!$B:$B,$C596,raw_resource_build!$A:$A,E$542)","v":0},{"$f":"SUMIFS(raw_resource_build!$L:$L,raw_resource_build!$B:$B,$C596,raw_resource_build!$A:$A,F$542)","v":0},{"$f":"SUMIFS(raw_resource_build!$L:$L,raw_resource_build!$B:$B,$C596,raw_resource_build!$A:$A,G$542)","v":0},{"$f":"SUMIFS(raw_resource_build!$L:$L,raw_resource_build!$B:$B,$C596,raw_resource_build!$A:$A,H$542)","v":0},{"$f":"SUMIFS(raw_resource_build!$L:$L,raw_resource_build!$B:$B,$C596,raw_resource_build!$A:$A,I$542)","v":0},{"$f":"SUMIFS(raw_resource_build!$L:$L,raw_resource_build!$B:$B,$C596,raw_resource_build!$A:$A,J$542)","v":0},{"$f":"SUMIFS(raw_resource_build!$L:$L,raw_resource_build!$B:$B,$C596,raw_resource_build!$A:$A,K$542)","v":0},{"$f":"SUMIFS(raw_resource_build!$L:$L,raw_resource_build!$B:$B,$C596,raw_resource_build!$A:$A,L$542)","v":0},{"$f":"SUMIFS(raw_resource_build!$L:$L,raw_resource_build!$B:$B,$C596,raw_resource_build!$A:$A,M$542)","v":0},{"$f":"SUMIFS(raw_resource_build!$L:$L,raw_resource_build!$B:$B,$C596,raw_resource_build!$A:$A,N$542)","v":0},{"$f":"SUMIFS(raw_resource_build!$L:$L,raw_resource_build!$B:$B,$C596,raw_resource_build!$A:$A,O$542)","v":0},{"$f":"SUMIFS(raw_resource_build!$L:$L,raw_resource_build!$B:$B,$C596,raw_resource_build!$A:$A,P$542)","v":0},{"$f":"SUMIFS(raw_resource_build!$L:$L,raw_resource_build!$B:$B,$C596,raw_resource_build!$A:$A,Q$542)","v":0},{"$f":"SUMIFS(raw_resource_build!$L:$L,raw_resource_build!$B:$B,$C596,raw_resource_build!$A:$A,R$542)","v":0},{"$f":"SUMIFS(raw_resource_build!$L:$L,raw_resource_build!$B:$B,$C596,raw_resource_build!$A:$A,S$542)","v":0},{"$f":"SUMIFS(raw_resource_build!$L:$L,raw_resource_build!$B:$B,$C596,raw_resource_build!$A:$A,T$542)","v":0},{"$f":"SUMIFS(raw_resource_build!$L:$L,raw_resource_build!$B:$B,$C596,raw_resource_build!$A:$A,U$542)","v":0},{"$f":"SUMIFS(raw_resource_build!$L:$L,raw_resource_build!$B:$B,$C596,raw_resource_build!$A:$A,V$542)","v":0},{"$f":"SUMIFS(raw_resource_build!$L:$L,raw_resource_build!$B:$B,$C596,raw_resource_build!$A:$A,W$542)","v":0},{"$f":"SUMIFS(raw_resource_build!$L:$L,raw_resource_build!$B:$B,$C596,raw_resource_build!$A:$A,X$542)","v":0},{"$f":"SUMIFS(raw_resource_build!$L:$L,raw_resource_build!$B:$B,$C596,raw_resource_build!$A:$A,Y$542)","v":0},{"$f":"SUMIFS(raw_resource_build!$L:$L,raw_resource_build!$B:$B,$C596,raw_resource_build!$A:$A,Z$542)","v":0},{"$f":"SUMIFS(raw_resource_build!$L:$L,raw_resource_build!$B:$B,$C596,raw_resource_build!$A:$A,AA$542)","v":0},{"$f":"SUMIFS(raw_resource_build!$L:$L,raw_resource_build!$B:$B,$C596,raw_resource_build!$A:$A,AB$542)","v":0},{"$f":"SUMIFS(raw_resource_build!$L:$L,raw_resource_build!$B:$B,$C596,raw_resource_build!$A:$A,AC$542)","v":0},{"$f":"SUMIFS(raw_resource_build!$L:$L,raw_resource_build!$B:$B,$C596,raw_resource_build!$A:$A,AD$542)","v":0},{"$f":"SUMIFS(raw_resource_build!$L:$L,raw_resource_build!$B:$B,$C596,raw_resource_build!$A:$A,AE$542)","v":0},{"$f":"SUMIFS(raw_resource_build!$L:$L,raw_resource_build!$B:$B,$C596,raw_resource_build!$A:$A,AF$542)","v":0},{"$f":"SUMIFS(raw_resource_build!$L:$L,raw_resource_build!$B:$B,$C596,raw_resource_build!$A:$A,AG$542)","v":0},{"$f":"SUMIFS(raw_resource_build!$L:$L,raw_resource_build!$B:$B,$C596,raw_resource_build!$A:$A,AH$542)","v":0},{"$f":"SUMIFS(raw_resource_build!$L:$L,raw_resource_build!$B:$B,$C596,raw_resource_build!$A:$A,AI$542)","v":0},{"$f":"SUMIFS(raw_resource_build!$L:$L,raw_resource_build!$B:$B,$C596,raw_resource_build!$A:$A,AJ$542)","v":0},{"$f":"SUMIFS(raw_resource_build!$L:$L,raw_resource_build!$B:$B,$C596,raw_resource_build!$A:$A,AK$542)","v":0},{"$f":"SUMIFS(raw_resource_build!$L:$L,raw_resource_build!$B:$B,$C596,raw_resource_build!$A:$A,AL$542)","v":0},{"$f":"SUMIFS(raw_resource_build!$L:$L,raw_resource_build!$B:$B,$C596,raw_resource_build!$A:$A,AM$542)","v":0},{"$f":"SUMIFS(raw_resource_build!$L:$L,raw_resource_build!$B:$B,$C596,raw_resource_build!$A:$A,AN$542)","v":0}]
[null,null,{"$f":"Lists!B89","v":"Utah_Solar"},"N/A",{"$f":"SUMIFS(raw_resource_build!$L:$L,raw_resource_build!$B:$B,$C597,raw_resource_build!$A:$A,E$542)","v":0},{"$f":"SUMIFS(raw_resource_build!$L:$L,raw_resource_build!$B:$B,$C597,raw_resource_build!$A:$A,F$542)","v":0},{"$f":"SUMIFS(raw_resource_build!$L:$L,raw_resource_build!$B:$B,$C597,raw_resource_build!$A:$A,G$542)","v":0},{"$f":"SUMIFS(raw_resource_build!$L:$L,raw_resource_build!$B:$B,$C597,raw_resource_build!$A:$A,H$542)","v":0},{"$f":"SUMIFS(raw_resource_build!$L:$L,raw_resource_build!$B:$B,$C597,raw_resource_build!$A:$A,I$542)","v":0},{"$f":"SUMIFS(raw_resource_build!$L:$L,raw_resource_build!$B:$B,$C597,raw_resource_build!$A:$A,J$542)","v":0},{"$f":"SUMIFS(raw_resource_build!$L:$L,raw_resource_build!$B:$B,$C597,raw_resource_build!$A:$A,K$542)","v":0},{"$f":"SUMIFS(raw_resource_build!$L:$L,raw_resource_build!$B:$B,$C597,raw_resource_build!$A:$A,L$542)","v":0},{"$f":"SUMIFS(raw_resource_build!$L:$L,raw_resource_build!$B:$B,$C597,raw_resource_build!$A:$A,M$542)","v":0},{"$f":"SUMIFS(raw_resource_build!$L:$L,raw_resource_build!$B:$B,$C597,raw_resource_build!$A:$A,N$542)","v":0},{"$f":"SUMIFS(raw_resource_build!$L:$L,raw_resource_build!$B:$B,$C597,raw_resource_build!$A:$A,O$542)","v":0},{"$f":"SUMIFS(raw_resource_build!$L:$L,raw_resource_build!$B:$B,$C597,raw_resource_build!$A:$A,P$542)","v":0},{"$f":"SUMIFS(raw_resource_build!$L:$L,raw_resource_build!$B:$B,$C597,raw_resource_build!$A:$A,Q$542)","v":0},{"$f":"SUMIFS(raw_resource_build!$L:$L,raw_resource_build!$B:$B,$C597,raw_resource_build!$A:$A,R$542)","v":0},{"$f":"SUMIFS(raw_resource_build!$L:$L,raw_resource_build!$B:$B,$C597,raw_resource_build!$A:$A,S$542)","v":0},{"$f":"SUMIFS(raw_resource_build!$L:$L,raw_resource_build!$B:$B,$C597,raw_resource_build!$A:$A,T$542)","v":0},{"$f":"SUMIFS(raw_resource_build!$L:$L,raw_resource_build!$B:$B,$C597,raw_resource_build!$A:$A,U$542)","v":0},{"$f":"SUMIFS(raw_resource_build!$L:$L,raw_resource_build!$B:$B,$C597,raw_resource_build!$A:$A,V$542)","v":0},{"$f":"SUMIFS(raw_resource_build!$L:$L,raw_resource_build!$B:$B,$C597,raw_resource_build!$A:$A,W$542)","v":0},{"$f":"SUMIFS(raw_resource_build!$L:$L,raw_resource_build!$B:$B,$C597,raw_resource_build!$A:$A,X$542)","v":0},{"$f":"SUMIFS(raw_resource_build!$L:$L,raw_resource_build!$B:$B,$C597,raw_resource_build!$A:$A,Y$542)","v":0},{"$f":"SUMIFS(raw_resource_build!$L:$L,raw_resource_build!$B:$B,$C597,raw_resource_build!$A:$A,Z$542)","v":0},{"$f":"SUMIFS(raw_resource_build!$L:$L,raw_resource_build!$B:$B,$C597,raw_resource_build!$A:$A,AA$542)","v":0},{"$f":"SUMIFS(raw_resource_build!$L:$L,raw_resource_build!$B:$B,$C597,raw_resource_build!$A:$A,AB$542)","v":0},{"$f":"SUMIFS(raw_resource_build!$L:$L,raw_resource_build!$B:$B,$C597,raw_resource_build!$A:$A,AC$542)","v":0},{"$f":"SUMIFS(raw_resource_build!$L:$L,raw_resource_build!$B:$B,$C597,raw_resource_build!$A:$A,AD$542)","v":0},{"$f":"SUMIFS(raw_resource_build!$L:$L,raw_resource_build!$B:$B,$C597,raw_resource_build!$A:$A,AE$542)","v":0},{"$f":"SUMIFS(raw_resource_build!$L:$L,raw_resource_build!$B:$B,$C597,raw_resource_build!$A:$A,AF$542)","v":0},{"$f":"SUMIFS(raw_resource_build!$L:$L,raw_resource_build!$B:$B,$C597,raw_resource_build!$A:$A,AG$542)","v":0},{"$f":"SUMIFS(raw_resource_build!$L:$L,raw_resource_build!$B:$B,$C597,raw_resource_build!$A:$A,AH$542)","v":0},{"$f":"SUMIFS(raw_resource_build!$L:$L,raw_resource_build!$B:$B,$C597,raw_resource_build!$A:$A,AI$542)","v":0},{"$f":"SUMIFS(raw_resource_build!$L:$L,raw_resource_build!$B:$B,$C597,raw_resource_build!$A:$A,AJ$542)","v":0},{"$f":"SUMIFS(raw_resource_build!$L:$L,raw_resource_build!$B:$B,$C597,raw_resource_build!$A:$A,AK$542)","v":0},{"$f":"SUMIFS(raw_resource_build!$L:$L,raw_resource_build!$B:$B,$C597,raw_resource_build!$A:$A,AL$542)","v":0},{"$f":"SUMIFS(raw_resource_build!$L:$L,raw_resource_build!$B:$B,$C597,raw_resource_build!$A:$A,AM$542)","v":0},{"$f":"SUMIFS(raw_resource_build!$L:$L,raw_resource_build!$B:$B,$C597,raw_resource_build!$A:$A,AN$542)","v":0}]
[null,null,{"$f":"Lists!B90","v":"Arizona_Solar"},"SCADSNV-Riverside_Palm_Springs",{"$f":"SUMIFS(raw_resource_build!$L:$L,raw_resource_build!$B:$B,$C598,raw_resource_build!$A:$A,E$542)","v":0},{"$f":"SUMIFS(raw_resource_build!$L:$L,raw_resource_build!$B:$B,$C598,raw_resource_build!$A:$A,F$542)","v":0},{"$f":"SUMIFS(raw_resource_build!$L:$L,raw_resource_build!$B:$B,$C598,raw_resource_build!$A:$A,G$542)","v":0},{"$f":"SUMIFS(raw_resource_build!$L:$L,raw_resource_build!$B:$B,$C598,raw_resource_build!$A:$A,H$542)","v":0},{"$f":"SUMIFS(raw_resource_build!$L:$L,raw_resource_build!$B:$B,$C598,raw_resource_build!$A:$A,I$542)","v":0},{"$f":"SUMIFS(raw_resource_build!$L:$L,raw_resource_build!$B:$B,$C598,raw_resource_build!$A:$A,J$542)","v":0},{"$f":"SUMIFS(raw_resource_build!$L:$L,raw_resource_build!$B:$B,$C598,raw_resource_build!$A:$A,K$542)","v":0},{"$f":"SUMIFS(raw_resource_build!$L:$L,raw_resource_build!$B:$B,$C598,raw_resource_build!$A:$A,L$542)","v":0},{"$f":"SUMIFS(raw_resource_build!$L:$L,raw_resource_build!$B:$B,$C598,raw_resource_build!$A:$A,M$542)","v":0},{"$f":"SUMIFS(raw_resource_build!$L:$L,raw_resource_build!$B:$B,$C598,raw_resource_build!$A:$A,N$542)","v":2550},{"$f":"SUMIFS(raw_resource_build!$L:$L,raw_resource_build!$B:$B,$C598,raw_resource_build!$A:$A,O$542)","v":0},{"$f":"SUMIFS(raw_resource_build!$L:$L,raw_resource_build!$B:$B,$C598,raw_resource_build!$A:$A,P$542)","v":2550},{"$f":"SUMIFS(raw_resource_build!$L:$L,raw_resource_build!$B:$B,$C598,raw_resource_build!$A:$A,Q$542)","v":0},{"$f":"SUMIFS(raw_resource_build!$L:$L,raw_resource_build!$B:$B,$C598,raw_resource_build!$A:$A,R$542)","v":0},{"$f":"SUMIFS(raw_resource_build!$L:$L,raw_resource_build!$B:$B,$C598,raw_resource_build!$A:$A,S$542)","v":0},{"$f":"SUMIFS(raw_resource_build!$L:$L,raw_resource_build!$B:$B,$C598,raw_resource_build!$A:$A,T$542)","v":2550},{"$f":"SUMIFS(raw_resource_build!$L:$L,raw_resource_build!$B:$B,$C598,raw_resource_build!$A:$A,U$542)","v":0},{"$f":"SUMIFS(raw_resource_build!$L:$L,raw_resource_build!$B:$B,$C598,raw_resource_build!$A:$A,V$542)","v":0},{"$f":"SUMIFS(raw_resource_build!$L:$L,raw_resource_build!$B:$B,$C598,raw_resource_build!$A:$A,W$542)","v":0},{"$f":"SUMIFS(raw_resource_build!$L:$L,raw_resource_build!$B:$B,$C598,raw_resource_build!$A:$A,X$542)","v":0},{"$f":"SUMIFS(raw_resource_build!$L:$L,raw_resource_build!$B:$B,$C598,raw_resource_build!$A:$A,Y$542)","v":0},{"$f":"SUMIFS(raw_resource_build!$L:$L,raw_resource_build!$B:$B,$C598,raw_resource_build!$A:$A,Z$542)","v":0},{"$f":"SUMIFS(raw_resource_build!$L:$L,raw_resource_build!$B:$B,$C598,raw_resource_build!$A:$A,AA$542)","v":0},{"$f":"SUMIFS(raw_resource_build!$L:$L,raw_resource_build!$B:$B,$C598,raw_resource_build!$A:$A,AB$542)","v":0},{"$f":"SUMIFS(raw_resource_build!$L:$L,raw_resource_build!$B:$B,$C598,raw_resource_build!$A:$A,AC$542)","v":0},{"$f":"SUMIFS(raw_resource_build!$L:$L,raw_resource_build!$B:$B,$C598,raw_resource_build!$A:$A,AD$542)","v":0},{"$f":"SUMIFS(raw_resource_build!$L:$L,raw_resource_build!$B:$B,$C598,raw_resource_build!$A:$A,AE$542)","v":0},{"$f":"SUMIFS(raw_resource_build!$L:$L,raw_resource_build!$B:$B,$C598,raw_resource_build!$A:$A,AF$542)","v":0},{"$f":"SUMIFS(raw_resource_build!$L:$L,raw_resource_build!$B:$B,$C598,raw_resource_build!$A:$A,AG$542)","v":0},{"$f":"SUMIFS(raw_resource_build!$L:$L,raw_resource_build!$B:$B,$C598,raw_resource_build!$A:$A,AH$542)","v":0},{"$f":"SUMIFS(raw_resource_build!$L:$L,raw_resource_build!$B:$B,$C598,raw_resource_build!$A:$A,AI$542)","v":2550},{"$f":"SUMIFS(raw_resource_build!$L:$L,raw_resource_build!$B:$B,$C598,raw_resource_build!$A:$A,AJ$542)","v":0},{"$f":"SUMIFS(raw_resource_build!$L:$L,raw_resource_build!$B:$B,$C598,raw_resource_build!$A:$A,AK$542)","v":0},{"$f":"SUMIFS(raw_resource_build!$L:$L,raw_resource_build!$B:$B,$C598,raw_resource_build!$A:$A,AL$542)","v":0},{"$f":"SUMIFS(raw_resource_build!$L:$L,raw_resource_build!$B:$B,$C598,raw_resource_build!$A:$A,AM$542)","v":0},{"$f":"SUMIFS(raw_resource_build!$L:$L,raw_resource_build!$B:$B,$C598,raw_resource_build!$A:$A,AN$542)","v":0}]
[null,null,{"$f":"Lists!B91","v":"New_Mexico_Solar"},"N/A",{"$f":"SUMIFS(raw_resource_build!$L:$L,raw_resource_build!$B:$B,$C599,raw_resource_build!$A:$A,E$542)","v":0},{"$f":"SUMIFS(raw_resource_build!$L:$L,raw_resource_build!$B:$B,$C599,raw_resource_build!$A:$A,F$542)","v":0},{"$f":"SUMIFS(raw_resource_build!$L:$L,raw_resource_build!$B:$B,$C599,raw_resource_build!$A:$A,G$542)","v":0},{"$f":"SUMIFS(raw_resource_build!$L:$L,raw_resource_build!$B:$B,$C599,raw_resource_build!$A:$A,H$542)","v":0},{"$f":"SUMIFS(raw_resource_build!$L:$L,raw_resource_build!$B:$B,$C599,raw_resource_build!$A:$A,I$542)","v":0},{"$f":"SUMIFS(raw_resource_build!$L:$L,raw_resource_build!$B:$B,$C599,raw_resource_build!$A:$A,J$542)","v":0},{"$f":"SUMIFS(raw_resource_build!$L:$L,raw_resource_build!$B:$B,$C599,raw_resource_build!$A:$A,K$542)","v":0},{"$f":"SUMIFS(raw_resource_build!$L:$L,raw_resource_build!$B:$B,$C599,raw_resource_build!$A:$A,L$542)","v":0},{"$f":"SUMIFS(raw_resource_build!$L:$L,raw_resource_build!$B:$B,$C599,raw_resource_build!$A:$A,M$542)","v":0},{"$f":"SUMIFS(raw_resource_build!$L:$L,raw_resource_build!$B:$B,$C599,raw_resource_build!$A:$A,N$542)","v":0},{"$f":"SUMIFS(raw_resource_build!$L:$L,raw_resource_build!$B:$B,$C599,raw_resource_build!$A:$A,O$542)","v":0},{"$f":"SUMIFS(raw_resource_build!$L:$L,raw_resource_build!$B:$B,$C599,raw_resource_build!$A:$A,P$542)","v":0},{"$f":"SUMIFS(raw_resource_build!$L:$L,raw_resource_build!$B:$B,$C599,raw_resource_build!$A:$A,Q$542)","v":0},{"$f":"SUMIFS(raw_resource_build!$L:$L,raw_resource_build!$B:$B,$C599,raw_resource_build!$A:$A,R$542)","v":0},{"$f":"SUMIFS(raw_resource_build!$L:$L,raw_resource_build!$B:$B,$C599,raw_resource_build!$A:$A,S$542)","v":0},{"$f":"SUMIFS(raw_resource_build!$L:$L,raw_resource_build!$B:$B,$C599,raw_resource_build!$A:$A,T$542)","v":0},{"$f":"SUMIFS(raw_resource_build!$L:$L,raw_resource_build!$B:$B,$C599,raw_resource_build!$A:$A,U$542)","v":0},{"$f":"SUMIFS(raw_resource_build!$L:$L,raw_resource_build!$B:$B,$C599,raw_resource_build!$A:$A,V$542)","v":0},{"$f":"SUMIFS(raw_resource_build!$L:$L,raw_resource_build!$B:$B,$C599,raw_resource_build!$A:$A,W$542)","v":0},{"$f":"SUMIFS(raw_resource_build!$L:$L,raw_resource_build!$B:$B,$C599,raw_resource_build!$A:$A,X$542)","v":0},{"$f":"SUMIFS(raw_resource_build!$L:$L,raw_resource_build!$B:$B,$C599,raw_resource_build!$A:$A,Y$542)","v":0},{"$f":"SUMIFS(raw_resource_build!$L:$L,raw_resource_build!$B:$B,$C599,raw_resource_build!$A:$A,Z$542)","v":0},{"$f":"SUMIFS(raw_resource_build!$L:$L,raw_resource_build!$B:$B,$C599,raw_resource_build!$A:$A,AA$542)","v":0},{"$f":"SUMIFS(raw_resource_build!$L:$L,raw_resource_build!$B:$B,$C599,raw_resource_build!$A:$A,AB$542)","v":0},{"$f":"SUMIFS(raw_resource_build!$L:$L,raw_resource_build!$B:$B,$C599,raw_resource_build!$A:$A,AC$542)","v":0},{"$f":"SUMIFS(raw_resource_build!$L:$L,raw_resource_build!$B:$B,$C599,raw_resource_build!$A:$A,AD$542)","v":0},{"$f":"SUMIFS(raw_resource_build!$L:$L,raw_resource_build!$B:$B,$C599,raw_resource_build!$A:$A,AE$542)","v":0},{"$f":"SUMIFS(raw_resource_build!$L:$L,raw_resource_build!$B:$B,$C599,raw_resource_build!$A:$A,AF$542)","v":0},{"$f":"SUMIFS(raw_resource_build!$L:$L,raw_resource_build!$B:$B,$C599,raw_resource_build!$A:$A,AG$542)","v":0},{"$f":"SUMIFS(raw_resource_build!$L:$L,raw_resource_build!$B:$B,$C599,raw_resource_build!$A:$A,AH$542)","v":0},{"$f":"SUMIFS(raw_resource_build!$L:$L,raw_resource_build!$B:$B,$C599,raw_resource_build!$A:$A,AI$542)","v":0},{"$f":"SUMIFS(raw_resource_build!$L:$L,raw_resource_build!$B:$B,$C599,raw_resource_build!$A:$A,AJ$542)","v":0},{"$f":"SUMIFS(raw_resource_build!$L:$L,raw_resource_build!$B:$B,$C599,raw_resource_build!$A:$A,AK$542)","v":0},{"$f":"SUMIFS(raw_resource_build!$L:$L,raw_resource_build!$B:$B,$C599,raw_resource_build!$A:$A,AL$542)","v":0},{"$f":"SUMIFS(raw_resource_build!$L:$L,raw_resource_build!$B:$B,$C599,raw_resource_build!$A:$A,AM$542)","v":0},{"$f":"SUMIFS(raw_resource_build!$L:$L,raw_resource_build!$B:$B,$C599,raw_resource_build!$A:$A,AN$542)","v":0}]
[null,null,{"$f":"Lists!B92","v":"Baja_California_Solar"},"N/A",{"$f":"SUMIFS(raw_resource_build!$L:$L,raw_resource_build!$B:$B,$C600,raw_resource_build!$A:$A,E$542)","v":0},{"$f":"SUMIFS(raw_resource_build!$L:$L,raw_resource_build!$B:$B,$C600,raw_resource_build!$A:$A,F$542)","v":0},{"$f":"SUMIFS(raw_resource_build!$L:$L,raw_resource_build!$B:$B,$C600,raw_resource_build!$A:$A,G$542)","v":0},{"$f":"SUMIFS(raw_resource_build!$L:$L,raw_resource_build!$B:$B,$C600,raw_resource_build!$A:$A,H$542)","v":0},{"$f":"SUMIFS(raw_resource_build!$L:$L,raw_resource_build!$B:$B,$C600,raw_resource_build!$A:$A,I$542)","v":0},{"$f":"SUMIFS(raw_resource_build!$L:$L,raw_resource_build!$B:$B,$C600,raw_resource_build!$A:$A,J$542)","v":0},{"$f":"SUMIFS(raw_resource_build!$L:$L,raw_resource_build!$B:$B,$C600,raw_resource_build!$A:$A,K$542)","v":0},{"$f":"SUMIFS(raw_resource_build!$L:$L,raw_resource_build!$B:$B,$C600,raw_resource_build!$A:$A,L$542)","v":0},{"$f":"SUMIFS(raw_resource_build!$L:$L,raw_resource_build!$B:$B,$C600,raw_resource_build!$A:$A,M$542)","v":0},{"$f":"SUMIFS(raw_resource_build!$L:$L,raw_resource_build!$B:$B,$C600,raw_resource_build!$A:$A,N$542)","v":0},{"$f":"SUMIFS(raw_resource_build!$L:$L,raw_resource_build!$B:$B,$C600,raw_resource_build!$A:$A,O$542)","v":0},{"$f":"SUMIFS(raw_resource_build!$L:$L,raw_resource_build!$B:$B,$C600,raw_resource_build!$A:$A,P$542)","v":0},{"$f":"SUMIFS(raw_resource_build!$L:$L,raw_resource_build!$B:$B,$C600,raw_resource_build!$A:$A,Q$542)","v":0},{"$f":"SUMIFS(raw_resource_build!$L:$L,raw_resource_build!$B:$B,$C600,raw_resource_build!$A:$A,R$542)","v":0},{"$f":"SUMIFS(raw_resource_build!$L:$L,raw_resource_build!$B:$B,$C600,raw_resource_build!$A:$A,S$542)","v":0},{"$f":"SUMIFS(raw_resource_build!$L:$L,raw_resource_build!$B:$B,$C600,raw_resource_build!$A:$A,T$542)","v":0},{"$f":"SUMIFS(raw_resource_build!$L:$L,raw_resource_build!$B:$B,$C600,raw_resource_build!$A:$A,U$542)","v":0},{"$f":"SUMIFS(raw_resource_build!$L:$L,raw_resource_build!$B:$B,$C600,raw_resource_build!$A:$A,V$542)","v":0},{"$f":"SUMIFS(raw_resource_build!$L:$L,raw_resource_build!$B:$B,$C600,raw_resource_build!$A:$A,W$542)","v":0},{"$f":"SUMIFS(raw_resource_build!$L:$L,raw_resource_build!$B:$B,$C600,raw_resource_build!$A:$A,X$542)","v":0},{"$f":"SUMIFS(raw_resource_build!$L:$L,raw_resource_build!$B:$B,$C600,raw_resource_build!$A:$A,Y$542)","v":0},{"$f":"SUMIFS(raw_resource_build!$L:$L,raw_resource_build!$B:$B,$C600,raw_resource_build!$A:$A,Z$542)","v":0},{"$f":"SUMIFS(raw_resource_build!$L:$L,raw_resource_build!$B:$B,$C600,raw_resource_build!$A:$A,AA$542)","v":0},{"$f":"SUMIFS(raw_resource_build!$L:$L,raw_resource_build!$B:$B,$C600,raw_resource_build!$A:$A,AB$542)","v":0},{"$f":"SUMIFS(raw_resource_build!$L:$L,raw_resource_build!$B:$B,$C600,raw_resource_build!$A:$A,AC$542)","v":0},{"$f":"SUMIFS(raw_resource_build!$L:$L,raw_resource_build!$B:$B,$C600,raw_resource_build!$A:$A,AD$542)","v":0},{"$f":"SUMIFS(raw_resource_build!$L:$L,raw_resource_build!$B:$B,$C600,raw_resource_build!$A:$A,AE$542)","v":0},{"$f":"SUMIFS(raw_resource_build!$L:$L,raw_resource_build!$B:$B,$C600,raw_resource_build!$A:$A,AF$542)","v":0},{"$f":"SUMIFS(raw_resource_build!$L:$L,raw_resource_build!$B:$B,$C600,raw_resource_build!$A:$A,AG$542)","v":0},{"$f":"SUMIFS(raw_resource_build!$L:$L,raw_resource_build!$B:$B,$C600,raw_resource_build!$A:$A,AH$542)","v":0},{"$f":"SUMIFS(raw_resource_build!$L:$L,raw_resource_build!$B:$B,$C600,raw_resource_build!$A:$A,AI$542)","v":0},{"$f":"SUMIFS(raw_resource_build!$L:$L,raw_resource_build!$B:$B,$C600,raw_resource_build!$A:$A,AJ$542)","v":0},{"$f":"SUMIFS(raw_resource_build!$L:$L,raw_resource_build!$B:$B,$C600,raw_resource_build!$A:$A,AK$542)","v":0},{"$f":"SUMIFS(raw_resource_build!$L:$L,raw_resource_build!$B:$B,$C600,raw_resource_build!$A:$A,AL$542)","v":0},{"$f":"SUMIFS(raw_resource_build!$L:$L,raw_resource_build!$B:$B,$C600,raw_resource_build!$A:$A,AM$542)","v":0},{"$f":"SUMIFS(raw_resource_build!$L:$L,raw_resource_build!$B:$B,$C600,raw_resource_build!$A:$A,AN$542)","v":0}]
[null,null,{"$f":"Lists!B93","v":"Baja_California_Wind"},"SCADSNV-Greater_Imperial",{"$f":"SUMIFS(raw_resource_build!$L:$L,raw_resource_build!$B:$B,$C601,raw_resource_build!$A:$A,E$542)","v":0},{"$f":"SUMIFS(raw_resource_build!$L:$L,raw_resource_build!$B:$B,$C601,raw_resource_build!$A:$A,F$542)","v":0},{"$f":"SUMIFS(raw_resource_build!$L:$L,raw_resource_build!$B:$B,$C601,raw_resource_build!$A:$A,G$542)","v":0},{"$f":"SUMIFS(raw_resource_build!$L:$L,raw_resource_build!$B:$B,$C601,raw_resource_build!$A:$A,H$542)","v":0},{"$f":"SUMIFS(raw_resource_build!$L:$L,raw_resource_build!$B:$B,$C601,raw_resource_build!$A:$A,I$542)","v":0},{"$f":"SUMIFS(raw_resource_build!$L:$L,raw_resource_build!$B:$B,$C601,raw_resource_build!$A:$A,J$542)","v":0},{"$f":"SUMIFS(raw_resource_build!$L:$L,raw_resource_build!$B:$B,$C601,raw_resource_build!$A:$A,K$542)","v":0},{"$f":"SUMIFS(raw_resource_build!$L:$L,raw_resource_build!$B:$B,$C601,raw_resource_build!$A:$A,L$542)","v":0},{"$f":"SUMIFS(raw_resource_build!$L:$L,raw_resource_build!$B:$B,$C601,raw_resource_build!$A:$A,M$542)","v":0},{"$f":"SUMIFS(raw_resource_build!$L:$L,raw_resource_build!$B:$B,$C601,raw_resource_build!$A:$A,N$542)","v":0},{"$f":"SUMIFS(raw_resource_build!$L:$L,raw_resource_build!$B:$B,$C601,raw_resource_build!$A:$A,O$542)","v":0},{"$f":"SUMIFS(raw_resource_build!$L:$L,raw_resource_build!$B:$B,$C601,raw_resource_build!$A:$A,P$542)","v":0},{"$f":"SUMIFS(raw_resource_build!$L:$L,raw_resource_build!$B:$B,$C601,raw_resource_build!$A:$A,Q$542)","v":0},{"$f":"SUMIFS(raw_resource_build!$L:$L,raw_resource_build!$B:$B,$C601,raw_resource_build!$A:$A,R$542)","v":0},{"$f":"SUMIFS(raw_resource_build!$L:$L,raw_resource_build!$B:$B,$C601,raw_resource_build!$A:$A,S$542)","v":0},{"$f":"SUMIFS(raw_resource_build!$L:$L,raw_resource_build!$B:$B,$C601,raw_resource_build!$A:$A,T$542)","v":507.83},{"$f":"SUMIFS(raw_resource_build!$L:$L,raw_resource_build!$B:$B,$C601,raw_resource_build!$A:$A,U$542)","v":0},{"$f":"SUMIFS(raw_resource_build!$L:$L,raw_resource_build!$B:$B,$C601,raw_resource_build!$A:$A,V$542)","v":0},{"$f":"SUMIFS(raw_resource_build!$L:$L,raw_resource_build!$B:$B,$C601,raw_resource_build!$A:$A,W$542)","v":0},{"$f":"SUMIFS(raw_resource_build!$L:$L,raw_resource_build!$B:$B,$C601,raw_resource_build!$A:$A,X$542)","v":0},{"$f":"SUMIFS(raw_resource_build!$L:$L,raw_resource_build!$B:$B,$C601,raw_resource_build!$A:$A,Y$542)","v":0},{"$f":"SUMIFS(raw_resource_build!$L:$L,raw_resource_build!$B:$B,$C601,raw_resource_build!$A:$A,Z$542)","v":0},{"$f":"SUMIFS(raw_resource_build!$L:$L,raw_resource_build!$B:$B,$C601,raw_resource_build!$A:$A,AA$542)","v":0},{"$f":"SUMIFS(raw_resource_build!$L:$L,raw_resource_build!$B:$B,$C601,raw_resource_build!$A:$A,AB$542)","v":0},{"$f":"SUMIFS(raw_resource_build!$L:$L,raw_resource_build!$B:$B,$C601,raw_resource_build!$A:$A,AC$542)","v":0},{"$f":"SUMIFS(raw_resource_build!$L:$L,raw_resource_build!$B:$B,$C601,raw_resource_build!$A:$A,AD$542)","v":0},{"$f":"SUMIFS(raw_resource_build!$L:$L,raw_resource_build!$B:$B,$C601,raw_resource_build!$A:$A,AE$542)","v":0},{"$f":"SUMIFS(raw_resource_build!$L:$L,raw_resource_build!$B:$B,$C601,raw_resource_build!$A:$A,AF$542)","v":0},{"$f":"SUMIFS(raw_resource_build!$L:$L,raw_resource_build!$B:$B,$C601,raw_resource_build!$A:$A,AG$542)","v":0},{"$f":"SUMIFS(raw_resource_build!$L:$L,raw_resource_build!$B:$B,$C601,raw_resource_build!$A:$A,AH$542)","v":0},{"$f":"SUMIFS(raw_resource_build!$L:$L,raw_resource_build!$B:$B,$C601,raw_resource_build!$A:$A,AI$542)","v":507.83},{"$f":"SUMIFS(raw_resource_build!$L:$L,raw_resource_build!$B:$B,$C601,raw_resource_build!$A:$A,AJ$542)","v":0},{"$f":"SUMIFS(raw_resource_build!$L:$L,raw_resource_build!$B:$B,$C601,raw_resource_build!$A:$A,AK$542)","v":0},{"$f":"SUMIFS(raw_resource_build!$L:$L,raw_resource_build!$B:$B,$C601,raw_resource_build!$A:$A,AL$542)","v":0},{"$f":"SUMIFS(raw_resource_build!$L:$L,raw_resource_build!$B:$B,$C601,raw_resource_build!$A:$A,AM$542)","v":0},{"$f":"SUMIFS(raw_resource_build!$L:$L,raw_resource_build!$B:$B,$C601,raw_resource_build!$A:$A,AN$542)","v":0}]
[null,null,{"$f":"Lists!B94","v":"Pacific_Northwest_Wind"},"N/A",{"$f":"SUMIFS(raw_resource_build!$L:$L,raw_resource_build!$B:$B,$C602,raw_resource_build!$A:$A,E$542)","v":0},{"$f":"SUMIFS(raw_resource_build!$L:$L,raw_resource_build!$B:$B,$C602,raw_resource_build!$A:$A,F$542)","v":0},{"$f":"SUMIFS(raw_resource_build!$L:$L,raw_resource_build!$B:$B,$C602,raw_resource_build!$A:$A,G$542)","v":0},{"$f":"SUMIFS(raw_resource_build!$L:$L,raw_resource_build!$B:$B,$C602,raw_resource_build!$A:$A,H$542)","v":0},{"$f":"SUMIFS(raw_resource_build!$L:$L,raw_resource_build!$B:$B,$C602,raw_resource_build!$A:$A,I$542)","v":0},{"$f":"SUMIFS(raw_resource_build!$L:$L,raw_resource_build!$B:$B,$C602,raw_resource_build!$A:$A,J$542)","v":0},{"$f":"SUMIFS(raw_resource_build!$L:$L,raw_resource_build!$B:$B,$C602,raw_resource_build!$A:$A,K$542)","v":0},{"$f":"SUMIFS(raw_resource_build!$L:$L,raw_resource_build!$B:$B,$C602,raw_resource_build!$A:$A,L$542)","v":0},{"$f":"SUMIFS(raw_resource_build!$L:$L,raw_resource_build!$B:$B,$C602,raw_resource_build!$A:$A,M$542)","v":0},{"$f":"SUMIFS(raw_resource_build!$L:$L,raw_resource_build!$B:$B,$C602,raw_resource_build!$A:$A,N$542)","v":0},{"$f":"SUMIFS(raw_resource_build!$L:$L,raw_resource_build!$B:$B,$C602,raw_resource_build!$A:$A,O$542)","v":0},{"$f":"SUMIFS(raw_resource_build!$L:$L,raw_resource_build!$B:$B,$C602,raw_resource_build!$A:$A,P$542)","v":0},{"$f":"SUMIFS(raw_resource_build!$L:$L,raw_resource_build!$B:$B,$C602,raw_resource_build!$A:$A,Q$542)","v":0},{"$f":"SUMIFS(raw_resource_build!$L:$L,raw_resource_build!$B:$B,$C602,raw_resource_build!$A:$A,R$542)","v":0},{"$f":"SUMIFS(raw_resource_build!$L:$L,raw_resource_build!$B:$B,$C602,raw_resource_build!$A:$A,S$542)","v":0},{"$f":"SUMIFS(raw_resource_build!$L:$L,raw_resource_build!$B:$B,$C602,raw_resource_build!$A:$A,T$542)","v":0},{"$f":"SUMIFS(raw_resource_build!$L:$L,raw_resource_build!$B:$B,$C602,raw_resource_build!$A:$A,U$542)","v":0},{"$f":"SUMIFS(raw_resource_build!$L:$L,raw_resource_build!$B:$B,$C602,raw_resource_build!$A:$A,V$542)","v":0},{"$f":"SUMIFS(raw_resource_build!$L:$L,raw_resource_build!$B:$B,$C602,raw_resource_build!$A:$A,W$542)","v":0},{"$f":"SUMIFS(raw_resource_build!$L:$L,raw_resource_build!$B:$B,$C602,raw_resource_build!$A:$A,X$542)","v":0},{"$f":"SUMIFS(raw_resource_build!$L:$L,raw_resource_build!$B:$B,$C602,raw_resource_build!$A:$A,Y$542)","v":0},{"$f":"SUMIFS(raw_resource_build!$L:$L,raw_resource_build!$B:$B,$C602,raw_resource_build!$A:$A,Z$542)","v":0},{"$f":"SUMIFS(raw_resource_build!$L:$L,raw_resource_build!$B:$B,$C602,raw_resource_build!$A:$A,AA$542)","v":0},{"$f":"SUMIFS(raw_resource_build!$L:$L,raw_resource_build!$B:$B,$C602,raw_resource_build!$A:$A,AB$542)","v":0},{"$f":"SUMIFS(raw_resource_build!$L:$L,raw_resource_build!$B:$B,$C602,raw_resource_build!$A:$A,AC$542)","v":0},{"$f":"SUMIFS(raw_resource_build!$L:$L,raw_resource_build!$B:$B,$C602,raw_resource_build!$A:$A,AD$542)","v":0},{"$f":"SUMIFS(raw_resource_build!$L:$L,raw_resource_build!$B:$B,$C602,raw_resource_build!$A:$A,AE$542)","v":0},{"$f":"SUMIFS(raw_resource_build!$L:$L,raw_resource_build!$B:$B,$C602,raw_resource_build!$A:$A,AF$542)","v":0},{"$f":"SUMIFS(raw_resource_build!$L:$L,raw_resource_build!$B:$B,$C602,raw_resource_build!$A:$A,AG$542)","v":0},{"$f":"SUMIFS(raw_resource_build!$L:$L,raw_resource_build!$B:$B,$C602,raw_resource_build!$A:$A,AH$542)","v":0},{"$f":"SUMIFS(raw_resource_build!$L:$L,raw_resource_build!$B:$B,$C602,raw_resource_build!$A:$A,AI$542)","v":0},{"$f":"SUMIFS(raw_resource_build!$L:$L,raw_resource_build!$B:$B,$C602,raw_resource_build!$A:$A,AJ$542)","v":0},{"$f":"SUMIFS(raw_resource_build!$L:$L,raw_resource_build!$B:$B,$C602,raw_resource_build!$A:$A,AK$542)","v":0},{"$f":"SUMIFS(raw_resource_build!$L:$L,raw_resource_build!$B:$B,$C602,raw_resource_build!$A:$A,AL$542)","v":0},{"$f":"SUMIFS(raw_resource_build!$L:$L,raw_resource_build!$B:$B,$C602,raw_resource_build!$A:$A,AM$542)","v":0},{"$f":"SUMIFS(raw_resource_build!$L:$L,raw_resource_build!$B:$B,$C602,raw_resource_build!$A:$A,AN$542)","v":0}]
[null,null,{"$f":"Lists!B95","v":"Idaho_Wind"},"N/A",{"$f":"SUMIFS(raw_resource_build!$L:$L,raw_resource_build!$B:$B,$C603,raw_resource_build!$A:$A,E$542)","v":0},{"$f":"SUMIFS(raw_resource_build!$L:$L,raw_resource_build!$B:$B,$C603,raw_resource_build!$A:$A,F$542)","v":0},{"$f":"SUMIFS(raw_resource_build!$L:$L,raw_resource_build!$B:$B,$C603,raw_resource_build!$A:$A,G$542)","v":0},{"$f":"SUMIFS(raw_resource_build!$L:$L,raw_resource_build!$B:$B,$C603,raw_resource_build!$A:$A,H$542)","v":0},{"$f":"SUMIFS(raw_resource_build!$L:$L,raw_resource_build!$B:$B,$C603,raw_resource_build!$A:$A,I$542)","v":0},{"$f":"SUMIFS(raw_resource_build!$L:$L,raw_resource_build!$B:$B,$C603,raw_resource_build!$A:$A,J$542)","v":0},{"$f":"SUMIFS(raw_resource_build!$L:$L,raw_resource_build!$B:$B,$C603,raw_resource_build!$A:$A,K$542)","v":0},{"$f":"SUMIFS(raw_resource_build!$L:$L,raw_resource_build!$B:$B,$C603,raw_resource_build!$A:$A,L$542)","v":0},{"$f":"SUMIFS(raw_resource_build!$L:$L,raw_resource_build!$B:$B,$C603,raw_resource_build!$A:$A,M$542)","v":0},{"$f":"SUMIFS(raw_resource_build!$L:$L,raw_resource_build!$B:$B,$C603,raw_resource_build!$A:$A,N$542)","v":0},{"$f":"SUMIFS(raw_resource_build!$L:$L,raw_resource_build!$B:$B,$C603,raw_resource_build!$A:$A,O$542)","v":0},{"$f":"SUMIFS(raw_resource_build!$L:$L,raw_resource_build!$B:$B,$C603,raw_resource_build!$A:$A,P$542)","v":0},{"$f":"SUMIFS(raw_resource_build!$L:$L,raw_resource_build!$B:$B,$C603,raw_resource_build!$A:$A,Q$542)","v":0},{"$f":"SUMIFS(raw_resource_build!$L:$L,raw_resource_build!$B:$B,$C603,raw_resource_build!$A:$A,R$542)","v":0},{"$f":"SUMIFS(raw_resource_build!$L:$L,raw_resource_build!$B:$B,$C603,raw_resource_build!$A:$A,S$542)","v":0},{"$f":"SUMIFS(raw_resource_build!$L:$L,raw_resource_build!$B:$B,$C603,raw_resource_build!$A:$A,T$542)","v":0},{"$f":"SUMIFS(raw_resource_build!$L:$L,raw_resource_build!$B:$B,$C603,raw_resource_build!$A:$A,U$542)","v":0},{"$f":"SUMIFS(raw_resource_build!$L:$L,raw_resource_build!$B:$B,$C603,raw_resource_build!$A:$A,V$542)","v":0},{"$f":"SUMIFS(raw_resource_build!$L:$L,raw_resource_build!$B:$B,$C603,raw_resource_build!$A:$A,W$542)","v":0},{"$f":"SUMIFS(raw_resource_build!$L:$L,raw_resource_build!$B:$B,$C603,raw_resource_build!$A:$A,X$542)","v":0},{"$f":"SUMIFS(raw_resource_build!$L:$L,raw_resource_build!$B:$B,$C603,raw_resource_build!$A:$A,Y$542)","v":0},{"$f":"SUMIFS(raw_resource_build!$L:$L,raw_resource_build!$B:$B,$C603,raw_resource_build!$A:$A,Z$542)","v":0},{"$f":"SUMIFS(raw_resource_build!$L:$L,raw_resource_build!$B:$B,$C603,raw_resource_build!$A:$A,AA$542)","v":0},{"$f":"SUMIFS(raw_resource_build!$L:$L,raw_resource_build!$B:$B,$C603,raw_resource_build!$A:$A,AB$542)","v":0},{"$f":"SUMIFS(raw_resource_build!$L:$L,raw_resource_build!$B:$B,$C603,raw_resource_build!$A:$A,AC$542)","v":0},{"$f":"SUMIFS(raw_resource_build!$L:$L,raw_resource_build!$B:$B,$C603,raw_resource_build!$A:$A,AD$542)","v":0},{"$f":"SUMIFS(raw_resource_build!$L:$L,raw_resource_build!$B:$B,$C603,raw_resource_build!$A:$A,AE$542)","v":0},{"$f":"SUMIFS(raw_resource_build!$L:$L,raw_resource_build!$B:$B,$C603,raw_resource_build!$A:$A,AF$542)","v":0},{"$f":"SUMIFS(raw_resource_build!$L:$L,raw_resource_build!$B:$B,$C603,raw_resource_build!$A:$A,AG$542)","v":0},{"$f":"SUMIFS(raw_resource_build!$L:$L,raw_resource_build!$B:$B,$C603,raw_resource_build!$A:$A,AH$542)","v":0},{"$f":"SUMIFS(raw_resource_build!$L:$L,raw_resource_build!$B:$B,$C603,raw_resource_build!$A:$A,AI$542)","v":0},{"$f":"SUMIFS(raw_resource_build!$L:$L,raw_resource_build!$B:$B,$C603,raw_resource_build!$A:$A,AJ$542)","v":0},{"$f":"SUMIFS(raw_resource_build!$L:$L,raw_resource_build!$B:$B,$C603,raw_resource_build!$A:$A,AK$542)","v":0},{"$f":"SUMIFS(raw_resource_build!$L:$L,raw_resource_build!$B:$B,$C603,raw_resource_build!$A:$A,AL$542)","v":0},{"$f":"SUMIFS(raw_resource_build!$L:$L,raw_resource_build!$B:$B,$C603,raw_resource_build!$A:$A,AM$542)","v":0},{"$f":"SUMIFS(raw_resource_build!$L:$L,raw_resource_build!$B:$B,$C603,raw_resource_build!$A:$A,AN$542)","v":0}]
[null,null,{"$f":"Lists!B96","v":"Utah_Wind"},"N/A",{"$f":"SUMIFS(raw_resource_build!$L:$L,raw_resource_build!$B:$B,$C604,raw_resource_build!$A:$A,E$542)","v":0},{"$f":"SUMIFS(raw_resource_build!$L:$L,raw_resource_build!$B:$B,$C604,raw_resource_build!$A:$A,F$542)","v":0},{"$f":"SUMIFS(raw_resource_build!$L:$L,raw_resource_build!$B:$B,$C604,raw_resource_build!$A:$A,G$542)","v":0},{"$f":"SUMIFS(raw_resource_build!$L:$L,raw_resource_build!$B:$B,$C604,raw_resource_build!$A:$A,H$542)","v":0},{"$f":"SUMIFS(raw_resource_build!$L:$L,raw_resource_build!$B:$B,$C604,raw_resource_build!$A:$A,I$542)","v":0},{"$f":"SUMIFS(raw_resource_build!$L:$L,raw_resource_build!$B:$B,$C604,raw_resource_build!$A:$A,J$542)","v":0},{"$f":"SUMIFS(raw_resource_build!$L:$L,raw_resource_build!$B:$B,$C604,raw_resource_build!$A:$A,K$542)","v":0},{"$f":"SUMIFS(raw_resource_build!$L:$L,raw_resource_build!$B:$B,$C604,raw_resource_build!$A:$A,L$542)","v":0},{"$f":"SUMIFS(raw_resource_build!$L:$L,raw_resource_build!$B:$B,$C604,raw_resource_build!$A:$A,M$542)","v":0},{"$f":"SUMIFS(raw_resource_build!$L:$L,raw_resource_build!$B:$B,$C604,raw_resource_build!$A:$A,N$542)","v":0},{"$f":"SUMIFS(raw_resource_build!$L:$L,raw_resource_build!$B:$B,$C604,raw_resource_build!$A:$A,O$542)","v":0},{"$f":"SUMIFS(raw_resource_build!$L:$L,raw_resource_build!$B:$B,$C604,raw_resource_build!$A:$A,P$542)","v":0},{"$f":"SUMIFS(raw_resource_build!$L:$L,raw_resource_build!$B:$B,$C604,raw_resource_build!$A:$A,Q$542)","v":0},{"$f":"SUMIFS(raw_resource_build!$L:$L,raw_resource_build!$B:$B,$C604,raw_resource_build!$A:$A,R$542)","v":0},{"$f":"SUMIFS(raw_resource_build!$L:$L,raw_resource_build!$B:$B,$C604,raw_resource_build!$A:$A,S$542)","v":0},{"$f":"SUMIFS(raw_resource_build!$L:$L,raw_resource_build!$B:$B,$C604,raw_resource_build!$A:$A,T$542)","v":0},{"$f":"SUMIFS(raw_resource_build!$L:$L,raw_resource_build!$B:$B,$C604,raw_resource_build!$A:$A,U$542)","v":0},{"$f":"SUMIFS(raw_resource_build!$L:$L,raw_resource_build!$B:$B,$C604,raw_resource_build!$A:$A,V$542)","v":0},{"$f":"SUMIFS(raw_resource_build!$L:$L,raw_resource_build!$B:$B,$C604,raw_resource_build!$A:$A,W$542)","v":0},{"$f":"SUMIFS(raw_resource_build!$L:$L,raw_resource_build!$B:$B,$C604,raw_resource_build!$A:$A,X$542)","v":0},{"$f":"SUMIFS(raw_resource_build!$L:$L,raw_resource_build!$B:$B,$C604,raw_resource_build!$A:$A,Y$542)","v":0},{"$f":"SUMIFS(raw_resource_build!$L:$L,raw_resource_build!$B:$B,$C604,raw_resource_build!$A:$A,Z$542)","v":0},{"$f":"SUMIFS(raw_resource_build!$L:$L,raw_resource_build!$B:$B,$C604,raw_resource_build!$A:$A,AA$542)","v":0},{"$f":"SUMIFS(raw_resource_build!$L:$L,raw_resource_build!$B:$B,$C604,raw_resource_build!$A:$A,AB$542)","v":0},{"$f":"SUMIFS(raw_resource_build!$L:$L,raw_resource_build!$B:$B,$C604,raw_resource_build!$A:$A,AC$542)","v":0},{"$f":"SUMIFS(raw_resource_build!$L:$L,raw_resource_build!$B:$B,$C604,raw_resource_build!$A:$A,AD$542)","v":0},{"$f":"SUMIFS(raw_resource_build!$L:$L,raw_resource_build!$B:$B,$C604,raw_resource_build!$A:$A,AE$542)","v":0},{"$f":"SUMIFS(raw_resource_build!$L:$L,raw_resource_build!$B:$B,$C604,raw_resource_build!$A:$A,AF$542)","v":0},{"$f":"SUMIFS(raw_resource_build!$L:$L,raw_resource_build!$B:$B,$C604,raw_resource_build!$A:$A,AG$542)","v":0},{"$f":"SUMIFS(raw_resource_build!$L:$L,raw_resource_build!$B:$B,$C604,raw_resource_build!$A:$A,AH$542)","v":0},{"$f":"SUMIFS(raw_resource_build!$L:$L,raw_resource_build!$B:$B,$C604,raw_resource_build!$A:$A,AI$542)","v":0},{"$f":"SUMIFS(raw_resource_build!$L:$L,raw_resource_build!$B:$B,$C604,raw_resource_build!$A:$A,AJ$542)","v":0},{"$f":"SUMIFS(raw_resource_build!$L:$L,raw_resource_build!$B:$B,$C604,raw_resource_build!$A:$A,AK$542)","v":0},{"$f":"SUMIFS(raw_resource_build!$L:$L,raw_resource_build!$B:$B,$C604,raw_resource_build!$A:$A,AL$542)","v":0},{"$f":"SUMIFS(raw_resource_build!$L:$L,raw_resource_build!$B:$B,$C604,raw_resource_build!$A:$A,AM$542)","v":0},{"$f":"SUMIFS(raw_resource_build!$L:$L,raw_resource_build!$B:$B,$C604,raw_resource_build!$A:$A,AN$542)","v":0}]
[null,null,{"$f":"Lists!B97","v":"Wyoming_Wind"},"SCADSNV-Mountain_Pass_El_Dorado",{"$f":"SUMIFS(raw_resource_build!$L:$L,raw_resource_build!$B:$B,$C605,raw_resource_build!$A:$A,E$542)","v":0},{"$f":"SUMIFS(raw_resource_build!$L:$L,raw_resource_build!$B:$B,$C605,raw_resource_build!$A:$A,F$542)","v":0},{"$f":"SUMIFS(raw_resource_build!$L:$L,raw_resource_build!$B:$B,$C605,raw_resource_build!$A:$A,G$542)","v":0},{"$f":"SUMIFS(raw_resource_build!$L:$L,raw_resource_build!$B:$B,$C605,raw_resource_build!$A:$A,H$542)","v":0},{"$f":"SUMIFS(raw_resource_build!$L:$L,raw_resource_build!$B:$B,$C605,raw_resource_build!$A:$A,I$542)","v":0},{"$f":"SUMIFS(raw_resource_build!$L:$L,raw_resource_build!$B:$B,$C605,raw_resource_build!$A:$A,J$542)","v":0},{"$f":"SUMIFS(raw_resource_build!$L:$L,raw_resource_build!$B:$B,$C605,raw_resource_build!$A:$A,K$542)","v":0},{"$f":"SUMIFS(raw_resource_build!$L:$L,raw_resource_build!$B:$B,$C605,raw_resource_build!$A:$A,L$542)","v":0},{"$f":"SUMIFS(raw_resource_build!$L:$L,raw_resource_build!$B:$B,$C605,raw_resource_build!$A:$A,M$542)","v":0},{"$f":"SUMIFS(raw_resource_build!$L:$L,raw_resource_build!$B:$B,$C605,raw_resource_build!$A:$A,N$542)","v":0},{"$f":"SUMIFS(raw_resource_build!$L:$L,raw_resource_build!$B:$B,$C605,raw_resource_build!$A:$A,O$542)","v":0},{"$f":"SUMIFS(raw_resource_build!$L:$L,raw_resource_build!$B:$B,$C605,raw_resource_build!$A:$A,P$542)","v":0},{"$f":"SUMIFS(raw_resource_build!$L:$L,raw_resource_build!$B:$B,$C605,raw_resource_build!$A:$A,Q$542)","v":0},{"$f":"SUMIFS(raw_resource_build!$L:$L,raw_resource_build!$B:$B,$C605,raw_resource_build!$A:$A,R$542)","v":0},{"$f":"SUMIFS(raw_resource_build!$L:$L,raw_resource_build!$B:$B,$C605,raw_resource_build!$A:$A,S$542)","v":0},{"$f":"SUMIFS(raw_resource_build!$L:$L,raw_resource_build!$B:$B,$C605,raw_resource_build!$A:$A,T$542)","v":0},{"$f":"SUMIFS(raw_resource_build!$L:$L,raw_resource_build!$B:$B,$C605,raw_resource_build!$A:$A,U$542)","v":0},{"$f":"SUMIFS(raw_resource_build!$L:$L,raw_resource_build!$B:$B,$C605,raw_resource_build!$A:$A,V$542)","v":0},{"$f":"SUMIFS(raw_resource_build!$L:$L,raw_resource_build!$B:$B,$C605,raw_resource_build!$A:$A,W$542)","v":0},{"$f":"SUMIFS(raw_resource_build!$L:$L,raw_resource_build!$B:$B,$C605,raw_resource_build!$A:$A,X$542)","v":0},{"$f":"SUMIFS(raw_resource_build!$L:$L,raw_resource_build!$B:$B,$C605,raw_resource_build!$A:$A,Y$542)","v":0},{"$f":"SUMIFS(raw_resource_build!$L:$L,raw_resource_build!$B:$B,$C605,raw_resource_build!$A:$A,Z$542)","v":0},{"$f":"SUMIFS(raw_resource_build!$L:$L,raw_resource_build!$B:$B,$C605,raw_resource_build!$A:$A,AA$542)","v":0},{"$f":"SUMIFS(raw_resource_build!$L:$L,raw_resource_build!$B:$B,$C605,raw_resource_build!$A:$A,AB$542)","v":0},{"$f":"SUMIFS(raw_resource_build!$L:$L,raw_resource_build!$B:$B,$C605,raw_resource_build!$A:$A,AC$542)","v":0},{"$f":"SUMIFS(raw_resource_build!$L:$L,raw_resource_build!$B:$B,$C605,raw_resource_build!$A:$A,AD$542)","v":0},{"$f":"SUMIFS(raw_resource_build!$L:$L,raw_resource_build!$B:$B,$C605,raw_resource_build!$A:$A,AE$542)","v":0},{"$f":"SUMIFS(raw_resource_build!$L:$L,raw_resource_build!$B:$B,$C605,raw_resource_build!$A:$A,AF$542)","v":0},{"$f":"SUMIFS(raw_resource_build!$L:$L,raw_resource_build!$B:$B,$C605,raw_resource_build!$A:$A,AG$542)","v":0},{"$f":"SUMIFS(raw_resource_build!$L:$L,raw_resource_build!$B:$B,$C605,raw_resource_build!$A:$A,AH$542)","v":0},{"$f":"SUMIFS(raw_resource_build!$L:$L,raw_resource_build!$B:$B,$C605,raw_resource_build!$A:$A,AI$542)","v":0},{"$f":"SUMIFS(raw_resource_build!$L:$L,raw_resource_build!$B:$B,$C605,raw_resource_build!$A:$A,AJ$542)","v":0},{"$f":"SUMIFS(raw_resource_build!$L:$L,raw_resource_build!$B:$B,$C605,raw_resource_build!$A:$A,AK$542)","v":0},{"$f":"SUMIFS(raw_resource_build!$L:$L,raw_resource_build!$B:$B,$C605,raw_resource_build!$A:$A,AL$542)","v":0},{"$f":"SUMIFS(raw_resource_build!$L:$L,raw_resource_build!$B:$B,$C605,raw_resource_build!$A:$A,AM$542)","v":0},{"$f":"SUMIFS(raw_resource_build!$L:$L,raw_resource_build!$B:$B,$C605,raw_resource_build!$A:$A,AN$542)","v":0}]
[null,null,{"$f":"Lists!B98","v":"Arizona_Wind"},"N/A",{"$f":"SUMIFS(raw_resource_build!$L:$L,raw_resource_build!$B:$B,$C606,raw_resource_build!$A:$A,E$542)","v":0},{"$f":"SUMIFS(raw_resource_build!$L:$L,raw_resource_build!$B:$B,$C606,raw_resource_build!$A:$A,F$542)","v":0},{"$f":"SUMIFS(raw_resource_build!$L:$L,raw_resource_build!$B:$B,$C606,raw_resource_build!$A:$A,G$542)","v":0},{"$f":"SUMIFS(raw_resource_build!$L:$L,raw_resource_build!$B:$B,$C606,raw_resource_build!$A:$A,H$542)","v":0},{"$f":"SUMIFS(raw_resource_build!$L:$L,raw_resource_build!$B:$B,$C606,raw_resource_build!$A:$A,I$542)","v":0},{"$f":"SUMIFS(raw_resource_build!$L:$L,raw_resource_build!$B:$B,$C606,raw_resource_build!$A:$A,J$542)","v":0},{"$f":"SUMIFS(raw_resource_build!$L:$L,raw_resource_build!$B:$B,$C606,raw_resource_build!$A:$A,K$542)","v":0},{"$f":"SUMIFS(raw_resource_build!$L:$L,raw_resource_build!$B:$B,$C606,raw_resource_build!$A:$A,L$542)","v":0},{"$f":"SUMIFS(raw_resource_build!$L:$L,raw_resource_build!$B:$B,$C606,raw_resource_build!$A:$A,M$542)","v":0},{"$f":"SUMIFS(raw_resource_build!$L:$L,raw_resource_build!$B:$B,$C606,raw_resource_build!$A:$A,N$542)","v":0},{"$f":"SUMIFS(raw_resource_build!$L:$L,raw_resource_build!$B:$B,$C606,raw_resource_build!$A:$A,O$542)","v":0},{"$f":"SUMIFS(raw_resource_build!$L:$L,raw_resource_build!$B:$B,$C606,raw_resource_build!$A:$A,P$542)","v":0},{"$f":"SUMIFS(raw_resource_build!$L:$L,raw_resource_build!$B:$B,$C606,raw_resource_build!$A:$A,Q$542)","v":0},{"$f":"SUMIFS(raw_resource_build!$L:$L,raw_resource_build!$B:$B,$C606,raw_resource_build!$A:$A,R$542)","v":0},{"$f":"SUMIFS(raw_resource_build!$L:$L,raw_resource_build!$B:$B,$C606,raw_resource_build!$A:$A,S$542)","v":0},{"$f":"SUMIFS(raw_resource_build!$L:$L,raw_resource_build!$B:$B,$C606,raw_resource_build!$A:$A,T$542)","v":0},{"$f":"SUMIFS(raw_resource_build!$L:$L,raw_resource_build!$B:$B,$C606,raw_resource_build!$A:$A,U$542)","v":0},{"$f":"SUMIFS(raw_resource_build!$L:$L,raw_resource_build!$B:$B,$C606,raw_resource_build!$A:$A,V$542)","v":0},{"$f":"SUMIFS(raw_resource_build!$L:$L,raw_resource_build!$B:$B,$C606,raw_resource_build!$A:$A,W$542)","v":0},{"$f":"SUMIFS(raw_resource_build!$L:$L,raw_resource_build!$B:$B,$C606,raw_resource_build!$A:$A,X$542)","v":0},{"$f":"SUMIFS(raw_resource_build!$L:$L,raw_resource_build!$B:$B,$C606,raw_resource_build!$A:$A,Y$542)","v":0},{"$f":"SUMIFS(raw_resource_build!$L:$L,raw_resource_build!$B:$B,$C606,raw_resource_build!$A:$A,Z$542)","v":0},{"$f":"SUMIFS(raw_resource_build!$L:$L,raw_resource_build!$B:$B,$C606,raw_resource_build!$A:$A,AA$542)","v":0},{"$f":"SUMIFS(raw_resource_build!$L:$L,raw_resource_build!$B:$B,$C606,raw_resource_build!$A:$A,AB$542)","v":0},{"$f":"SUMIFS(raw_resource_build!$L:$L,raw_resource_build!$B:$B,$C606,raw_resource_build!$A:$A,AC$542)","v":0},{"$f":"SUMIFS(raw_resource_build!$L:$L,raw_resource_build!$B:$B,$C606,raw_resource_build!$A:$A,AD$542)","v":0},{"$f":"SUMIFS(raw_resource_build!$L:$L,raw_resource_build!$B:$B,$C606,raw_resource_build!$A:$A,AE$542)","v":0},{"$f":"SUMIFS(raw_resource_build!$L:$L,raw_resource_build!$B:$B,$C606,raw_resource_build!$A:$A,AF$542)","v":0},{"$f":"SUMIFS(raw_resource_build!$L:$L,raw_resource_build!$B:$B,$C606,raw_resource_build!$A:$A,AG$542)","v":0},{"$f":"SUMIFS(raw_resource_build!$L:$L,raw_resource_build!$B:$B,$C606,raw_resource_build!$A:$A,AH$542)","v":0},{"$f":"SUMIFS(raw_resource_build!$L:$L,raw_resource_build!$B:$B,$C606,raw_resource_build!$A:$A,AI$542)","v":0},{"$f":"SUMIFS(raw_resource_build!$L:$L,raw_resource_build!$B:$B,$C606,raw_resource_build!$A:$A,AJ$542)","v":0},{"$f":"SUMIFS(raw_resource_build!$L:$L,raw_resource_build!$B:$B,$C606,raw_resource_build!$A:$A,AK$542)","v":0},{"$f":"SUMIFS(raw_resource_build!$L:$L,raw_resource_build!$B:$B,$C606,raw_resource_build!$A:$A,AL$542)","v":0},{"$f":"SUMIFS(raw_resource_build!$L:$L,raw_resource_build!$B:$B,$C606,raw_resource_build!$A:$A,AM$542)","v":0},{"$f":"SUMIFS(raw_resource_build!$L:$L,raw_resource_build!$B:$B,$C606,raw_resource_build!$A:$A,AN$542)","v":0}]
[null,null,{"$f":"Lists!B99","v":"New_Mexico_Wind"},{"$f":"D534","v":"SCADSNV-Riverside_Palm_Springs"},{"$f":"SUMIFS(raw_resource_build!$L:$L,raw_resource_build!$B:$B,$C607,raw_resource_build!$A:$A,E$542)","v":0},{"$f":"SUMIFS(raw_resource_build!$L:$L,raw_resource_build!$B:$B,$C607,raw_resource_build!$A:$A,F$542)","v":0},{"$f":"SUMIFS(raw_resource_build!$L:$L,raw_resource_build!$B:$B,$C607,raw_resource_build!$A:$A,G$542)","v":0},{"$f":"SUMIFS(raw_resource_build!$L:$L,raw_resource_build!$B:$B,$C607,raw_resource_build!$A:$A,H$542)","v":0},{"$f":"SUMIFS(raw_resource_build!$L:$L,raw_resource_build!$B:$B,$C607,raw_resource_build!$A:$A,I$542)","v":0},{"$f":"SUMIFS(raw_resource_build!$L:$L,raw_resource_build!$B:$B,$C607,raw_resource_build!$A:$A,J$542)","v":0},{"$f":"SUMIFS(raw_resource_build!$L:$L,raw_resource_build!$B:$B,$C607,raw_resource_build!$A:$A,K$542)","v":0},{"$f":"SUMIFS(raw_resource_build!$L:$L,raw_resource_build!$B:$B,$C607,raw_resource_build!$A:$A,L$542)","v":0},{"$f":"SUMIFS(raw_resource_build!$L:$L,raw_resource_build!$B:$B,$C607,raw_resource_build!$A:$A,M$542)","v":0},{"$f":"SUMIFS(raw_resource_build!$L:$L,raw_resource_build!$B:$B,$C607,raw_resource_build!$A:$A,N$542)","v":0},{"$f":"SUMIFS(raw_resource_build!$L:$L,raw_resource_build!$B:$B,$C607,raw_resource_build!$A:$A,O$542)","v":0},{"$f":"SUMIFS(raw_resource_build!$L:$L,raw_resource_build!$B:$B,$C607,raw_resource_build!$A:$A,P$542)","v":0},{"$f":"SUMIFS(raw_resource_build!$L:$L,raw_resource_build!$B:$B,$C607,raw_resource_build!$A:$A,Q$542)","v":0},{"$f":"SUMIFS(raw_resource_build!$L:$L,raw_resource_build!$B:$B,$C607,raw_resource_build!$A:$A,R$542)","v":0},{"$f":"SUMIFS(raw_resource_build!$L:$L,raw_resource_build!$B:$B,$C607,raw_resource_build!$A:$A,S$542)","v":0},{"$f":"SUMIFS(raw_resource_build!$L:$L,raw_resource_build!$B:$B,$C607,raw_resource_build!$A:$A,T$542)","v":0},{"$f":"SUMIFS(raw_resource_build!$L:$L,raw_resource_build!$B:$B,$C607,raw_resource_build!$A:$A,U$542)","v":0},{"$f":"SUMIFS(raw_resource_build!$L:$L,raw_resource_build!$B:$B,$C607,raw_resource_build!$A:$A,V$542)","v":0},{"$f":"SUMIFS(raw_resource_build!$L:$L,raw_resource_build!$B:$B,$C607,raw_resource_build!$A:$A,W$542)","v":0},{"$f":"SUMIFS(raw_resource_build!$L:$L,raw_resource_build!$B:$B,$C607,raw_resource_build!$A:$A,X$542)","v":0},{"$f":"SUMIFS(raw_resource_build!$L:$L,raw_resource_build!$B:$B,$C607,raw_resource_build!$A:$A,Y$542)","v":0},{"$f":"SUMIFS(raw_resource_build!$L:$L,raw_resource_build!$B:$B,$C607,raw_resource_build!$A:$A,Z$542)","v":0},{"$f":"SUMIFS(raw_resource_build!$L:$L,raw_resource_build!$B:$B,$C607,raw_resource_build!$A:$A,AA$542)","v":0},{"$f":"SUMIFS(raw_resource_build!$L:$L,raw_resource_build!$B:$B,$C607,raw_resource_build!$A:$A,AB$542)","v":0},{"$f":"SUMIFS(raw_resource_build!$L:$L,raw_resource_build!$B:$B,$C607,raw_resource_build!$A:$A,AC$542)","v":0},{"$f":"SUMIFS(raw_resource_build!$L:$L,raw_resource_build!$B:$B,$C607,raw_resource_build!$A:$A,AD$542)","v":0},{"$f":"SUMIFS(raw_resource_build!$L:$L,raw_resource_build!$B:$B,$C607,raw_resource_build!$A:$A,AE$542)","v":0},{"$f":"SUMIFS(raw_resource_build!$L:$L,raw_resource_build!$B:$B,$C607,raw_resource_build!$A:$A,AF$542)","v":0},{"$f":"SUMIFS(raw_resource_build!$L:$L,raw_resource_build!$B:$B,$C607,raw_resource_build!$A:$A,AG$542)","v":0},{"$f":"SUMIFS(raw_resource_build!$L:$L,raw_resource_build!$B:$B,$C607,raw_resource_build!$A:$A,AH$542)","v":0},{"$f":"SUMIFS(raw_resource_build!$L:$L,raw_resource_build!$B:$B,$C607,raw_resource_build!$A:$A,AI$542)","v":0},{"$f":"SUMIFS(raw_resource_build!$L:$L,raw_resource_build!$B:$B,$C607,raw_resource_build!$A:$A,AJ$542)","v":0},{"$f":"SUMIFS(raw_resource_build!$L:$L,raw_resource_build!$B:$B,$C607,raw_resource_build!$A:$A,AK$542)","v":0},{"$f":"SUMIFS(raw_resource_build!$L:$L,raw_resource_build!$B:$B,$C607,raw_resource_build!$A:$A,AL$542)","v":0},{"$f":"SUMIFS(raw_resource_build!$L:$L,raw_resource_build!$B:$B,$C607,raw_resource_build!$A:$A,AM$542)","v":0},{"$f":"SUMIFS(raw_resource_build!$L:$L,raw_resource_build!$B:$B,$C607,raw_resource_build!$A:$A,AN$542)","v":0}]
[null,null,"In-State",null,{"$f":"SUMIFS(E$543:E$607,Lists!$C$35:$C$99,$C608)","v":0},{"$f":"SUMIFS(F$543:F$607,Lists!$C$35:$C$99,$C608)","v":0},{"$f":"SUMIFS(G$543:G$607,Lists!$C$35:$C$99,$C608)","v":0},{"$f":"SUMIFS(H$543:H$607,Lists!$C$35:$C$99,$C608)","v":0},{"$f":"SUMIFS(I$543:I$607,Lists!$C$35:$C$99,$C608)","v":0},{"$f":"SUMIFS(J$543:J$607,Lists!$C$35:$C$99,$C608)","v":0},{"$f":"SUMIFS(K$543:K$607,Lists!$C$35:$C$99,$C608)","v":34},{"$f":"SUMIFS(L$543:L$607,Lists!$C$35:$C$99,$C608)","v":834},{"$f":"SUMIFS(M$543:M$607,Lists!$C$35:$C$99,$C608)","v":834},{"$f":"SUMIFS(N$543:N$607,Lists!$C$35:$C$99,$C608)","v":3384},{"$f":"SUMIFS(O$543:O$607,Lists!$C$35:$C$99,$C608)","v":0},{"$f":"SUMIFS(P$543:P$607,Lists!$C$35:$C$99,$C608)","v":7100.98},{"$f":"SUMIFS(Q$543:Q$607,Lists!$C$35:$C$99,$C608)","v":0},{"$f":"SUMIFS(R$543:R$607,Lists!$C$35:$C$99,$C608)","v":0},{"$f":"SUMIFS(S$543:S$607,Lists!$C$35:$C$99,$C608)","v":0},{"$f":"SUMIFS(T$543:T$607,Lists!$C$35:$C$99,$C608)","v":10174.81},{"$f":"SUMIFS(U$543:U$607,Lists!$C$35:$C$99,$C608)","v":0},{"$f":"SUMIFS(V$543:V$607,Lists!$C$35:$C$99,$C608)","v":0},{"$f":"SUMIFS(W$543:W$607,Lists!$C$35:$C$99,$C608)","v":0},{"$f":"SUMIFS(X$543:X$607,Lists!$C$35:$C$99,$C608)","v":0},{"$f":"SUMIFS(Y$543:Y$607,Lists!$C$35:$C$99,$C608)","v":0},{"$f":"SUMIFS(Z$543:Z$607,Lists!$C$35:$C$99,$C608)","v":0},{"$f":"SUMIFS(AA$543:AA$607,Lists!$C$35:$C$99,$C608)","v":0},{"$f":"SUMIFS(AB$543:AB$607,Lists!$C$35:$C$99,$C608)","v":0},{"$f":"SUMIFS(AC$543:AC$607,Lists!$C$35:$C$99,$C608)","v":0},{"$f":"SUMIFS(AD$543:AD$607,Lists!$C$35:$C$99,$C608)","v":0},{"$f":"SUMIFS(AE$543:AE$607,Lists!$C$35:$C$99,$C608)","v":0},{"$f":"SUMIFS(AF$543:AF$607,Lists!$C$35:$C$99,$C608)","v":0},{"$f":"SUMIFS(AG$543:AG$607,Lists!$C$35:$C$99,$C608)","v":0},{"$f":"SUMIFS(AH$543:AH$607,Lists!$C$35:$C$99,$C608)","v":0},{"$f":"SUMIFS(AI$543:AI$607,Lists!$C$35:$C$99,$C608)","v":10700},{"$f":"SUMIFS(AJ$543:AJ$607,Lists!$C$35:$C$99,$C608)","v":0},{"$f":"SUMIFS(AK$543:AK$607,Lists!$C$35:$C$99,$C608)","v":0},{"$f":"SUMIFS(AL$543:AL$607,Lists!$C$35:$C$99,$C608)","v":0},{"$f":"SUMIFS(AM$543:AM$607,Lists!$C$35:$C$99,$C608)","v":0},{"$f":"SUMIFS(AN$543:AN$607,Lists!$C$35:$C$99,$C608)","v":0}]
[null,null,"Out-Of-State",null,{"$f":"SUMIFS(E$543:E$607,Lists!$C$35:$C$99,$C609)","v":0},{"$f":"SUMIFS(F$543:F$607,Lists!$C$35:$C$99,$C609)","v":0},{"$f":"SUMIFS(G$543:G$607,Lists!$C$35:$C$99,$C609)","v":0},{"$f":"SUMIFS(H$543:H$607,Lists!$C$35:$C$99,$C609)","v":0},{"$f":"SUMIFS(I$543:I$607,Lists!$C$35:$C$99,$C609)","v":0},{"$f":"SUMIFS(J$543:J$607,Lists!$C$35:$C$99,$C609)","v":0},{"$f":"SUMIFS(K$543:K$607,Lists!$C$35:$C$99,$C609)","v":0},{"$f":"SUMIFS(L$543:L$607,Lists!$C$35:$C$99,$C609)","v":0},{"$f":"SUMIFS(M$543:M$607,Lists!$C$35:$C$99,$C609)","v":0},{"$f":"SUMIFS(N$543:N$607,Lists!$C$35:$C$99,$C609)","v":0},{"$f":"SUMIFS(O$543:O$607,Lists!$C$35:$C$99,$C609)","v":0},{"$f":"SUMIFS(P$543:P$607,Lists!$C$35:$C$99,$C609)","v":0},{"$f":"SUMIFS(Q$543:Q$607,Lists!$C$35:$C$99,$C609)","v":0},{"$f":"SUMIFS(R$543:R$607,Lists!$C$35:$C$99,$C609)","v":0},{"$f":"SUMIFS(S$543:S$607,Lists!$C$35:$C$99,$C609)","v":0},{"$f":"SUMIFS(T$543:T$607,Lists!$C$35:$C$99,$C609)","v":0},{"$f":"SUMIFS(U$543:U$607,Lists!$C$35:$C$99,$C609)","v":0},{"$f":"SUMIFS(V$543:V$607,Lists!$C$35:$C$99,$C609)","v":0},{"$f":"SUMIFS(W$543:W$607,Lists!$C$35:$C$99,$C609)","v":0},{"$f":"SUMIFS(X$543:X$607,Lists!$C$35:$C$99,$C609)","v":0},{"$f":"SUMIFS(Y$543:Y$607,Lists!$C$35:$C$99,$C609)","v":0},{"$f":"SUMIFS(Z$543:Z$607,Lists!$C$35:$C$99,$C609)","v":0},{"$f":"SUMIFS(AA$543:AA$607,Lists!$C$35:$C$99,$C609)","v":0},{"$f":"SUMIFS(AB$543:AB$607,Lists!$C$35:$C$99,$C609)","v":0},{"$f":"SUMIFS(AC$543:AC$607,Lists!$C$35:$C$99,$C609)","v":0},{"$f":"SUMIFS(AD$543:AD$607,Lists!$C$35:$C$99,$C609)","v":0},{"$f":"SUMIFS(AE$543:AE$607,Lists!$C$35:$C$99,$C609)","v":0},{"$f":"SUMIFS(AF$543:AF$607,Lists!$C$35:$C$99,$C609)","v":0},{"$f":"SUMIFS(AG$543:AG$607,Lists!$C$35:$C$99,$C609)","v":0},{"$f":"SUMIFS(AH$543:AH$607,Lists!$C$35:$C$99,$C609)","v":0},{"$f":"SUMIFS(AI$543:AI$607,Lists!$C$35:$C$99,$C609)","v":0},{"$f":"SUMIFS(AJ$543:AJ$607,Lists!$C$35:$C$99,$C609)","v":0},{"$f":"SUMIFS(AK$543:AK$607,Lists!$C$35:$C$99,$C609)","v":0},{"$f":"SUMIFS(AL$543:AL$607,Lists!$C$35:$C$99,$C609)","v":0},{"$f":"SUMIFS(AM$543:AM$607,Lists!$C$35:$C$99,$C609)","v":0},{"$f":"SUMIFS(AN$543:AN$607,Lists!$C$35:$C$99,$C609)","v":0}]
[null,null,"Note: Resources with #N/A as transmission zone were not made available to the model for this scenario"]
[]
[null,"Selected Fully Deliverable Resources on Existing Transmission"]
[]
[null,null,"Transmission Threshold by Zone - FCDS build beyond threshold requires new Tx at addtl. cost"]
[null,null,"Tx Zone","Unit",2015,2016,2017,2018,2019,2020,2021,2022,2023,2024,2025,2026,2027,2028,2029,2030,2031,2032,2033,2034,2035,2036,2037,2038,2039,2040,2041,2042,2043,2044,2045,2046,2047,2048,2049,2050]
[null,null,"Greater_Kramer","MW",{"$f":"SUMIFS(raw_transmission_costs!$F:$F,raw_transmission_costs!$B:$B,$C616,raw_transmission_costs!$A:$A,E$615)","v":0},{"$f":"SUMIFS(raw_transmission_costs!$F:$F,raw_transmission_costs!$B:$B,$C616,raw_transmission_costs!$A:$A,F$615)","v":0},{"$f":"SUMIFS(raw_transmission_costs!$F:$F,raw_transmission_costs!$B:$B,$C616,raw_transmission_costs!$A:$A,G$615)","v":0},{"$f":"SUMIFS(raw_transmission_costs!$F:$F,raw_transmission_costs!$B:$B,$C616,raw_transmission_costs!$A:$A,H$615)","v":0},{"$f":"SUMIFS(raw_transmission_costs!$F:$F,raw_transmission_costs!$B:$B,$C616,raw_transmission_costs!$A:$A,I$615)","v":0},{"$f":"SUMIFS(raw_transmission_costs!$F:$F,raw_transmission_costs!$B:$B,$C616,raw_transmission_costs!$A:$A,J$615)","v":597},{"$f":"SUMIFS(raw_transmission_costs!$F:$F,raw_transmission_costs!$B:$B,$C616,raw_transmission_costs!$A:$A,K$615)","v":597},{"$f":"SUMIFS(raw_transmission_costs!$F:$F,raw_transmission_costs!$B:$B,$C616,raw_transmission_costs!$A:$A,L$615)","v":597},{"$f":"SUMIFS(raw_transmission_costs!$F:$F,raw_transmission_costs!$B:$B,$C616,raw_transmission_costs!$A:$A,M$615)","v":597},{"$f":"SUMIFS(raw_transmission_costs!$F:$F,raw_transmission_costs!$B:$B,$C616,raw_transmission_costs!$A:$A,N$615)","v":597},{"$f":"SUMIFS(raw_transmission_costs!$F:$F,raw_transmission_costs!$B:$B,$C616,raw_transmission_costs!$A:$A,O$615)","v":0},{"$f":"SUMIFS(raw_transmission_costs!$F:$F,raw_transmission_costs!$B:$B,$C616,raw_transmission_costs!$A:$A,P$615)","v":597},{"$f":"SUMIFS(raw_transmission_costs!$F:$F,raw_transmission_costs!$B:$B,$C616,raw_transmission_costs!$A:$A,Q$615)","v":0},{"$f":"SUMIFS(raw_transmission_costs!$F:$F,raw_transmission_costs!$B:$B,$C616,raw_transmission_costs!$A:$A,R$615)","v":0},{"$f":"SUMIFS(raw_transmission_costs!$F:$F,raw_transmission_costs!$B:$B,$C616,raw_transmission_costs!$A:$A,S$615)","v":0},{"$f":"SUMIFS(raw_transmission_costs!$F:$F,raw_transmission_costs!$B:$B,$C616,raw_transmission_costs!$A:$A,T$615)","v":597},{"$f":"SUMIFS(raw_transmission_costs!$F:$F,raw_transmission_costs!$B:$B,$C616,raw_transmission_costs!$A:$A,U$615)","v":0},{"$f":"SUMIFS(raw_transmission_costs!$F:$F,raw_transmission_costs!$B:$B,$C616,raw_transmission_costs!$A:$A,V$615)","v":0},{"$f":"SUMIFS(raw_transmission_costs!$F:$F,raw_transmission_costs!$B:$B,$C616,raw_transmission_costs!$A:$A,W$615)","v":0},{"$f":"SUMIFS(raw_transmission_costs!$F:$F,raw_transmission_costs!$B:$B,$C616,raw_transmission_costs!$A:$A,X$615)","v":0},{"$f":"SUMIFS(raw_transmission_costs!$F:$F,raw_transmission_costs!$B:$B,$C616,raw_transmission_costs!$A:$A,Y$615)","v":0},{"$f":"SUMIFS(raw_transmission_costs!$F:$F,raw_transmission_costs!$B:$B,$C616,raw_transmission_costs!$A:$A,Z$615)","v":0},{"$f":"SUMIFS(raw_transmission_costs!$F:$F,raw_transmission_costs!$B:$B,$C616,raw_transmission_costs!$A:$A,AA$615)","v":0},{"$f":"SUMIFS(raw_transmission_costs!$F:$F,raw_transmission_costs!$B:$B,$C616,raw_transmission_costs!$A:$A,AB$615)","v":0},{"$f":"SUMIFS(raw_transmission_costs!$F:$F,raw_transmission_costs!$B:$B,$C616,raw_transmission_costs!$A:$A,AC$615)","v":0},{"$f":"SUMIFS(raw_transmission_costs!$F:$F,raw_transmission_costs!$B:$B,$C616,raw_transmission_costs!$A:$A,AD$615)","v":0},{"$f":"SUMIFS(raw_transmission_costs!$F:$F,raw_transmission_costs!$B:$B,$C616,raw_transmission_costs!$A:$A,AE$615)","v":0},{"$f":"SUMIFS(raw_transmission_costs!$F:$F,raw_transmission_costs!$B:$B,$C616,raw_transmission_costs!$A:$A,AF$615)","v":0},{"$f":"SUMIFS(raw_transmission_costs!$F:$F,raw_transmission_costs!$B:$B,$C616,raw_transmission_costs!$A:$A,AG$615)","v":0},{"$f":"SUMIFS(raw_transmission_costs!$F:$F,raw_transmission_costs!$B:$B,$C616,raw_transmission_costs!$A:$A,AH$615)","v":0},{"$f":"SUMIFS(raw_transmission_costs!$F:$F,raw_transmission_costs!$B:$B,$C616,raw_transmission_costs!$A:$A,AI$615)","v":597},{"$f":"SUMIFS(raw_transmission_costs!$F:$F,raw_transmission_costs!$B:$B,$C616,raw_transmission_costs!$A:$A,AJ$615)","v":0},{"$f":"SUMIFS(raw_transmission_costs!$F:$F,raw_transmission_costs!$B:$B,$C616,raw_transmission_costs!$A:$A,AK$615)","v":0},{"$f":"SUMIFS(raw_transmission_costs!$F:$F,raw_transmission_costs!$B:$B,$C616,raw_transmission_costs!$A:$A,AL$615)","v":0},{"$f":"SUMIFS(raw_transmission_costs!$F:$F,raw_transmission_costs!$B:$B,$C616,raw_transmission_costs!$A:$A,AM$615)","v":0},{"$f":"SUMIFS(raw_transmission_costs!$F:$F,raw_transmission_costs!$B:$B,$C616,raw_transmission_costs!$A:$A,AN$615)","v":0}]
[null,null,"Inyokern_North_Kramer","MW",{"$f":"SUMIFS(raw_transmission_costs!$F:$F,raw_transmission_costs!$B:$B,$C617,raw_transmission_costs!$A:$A,E$615)","v":0},{"$f":"SUMIFS(raw_transmission_costs!$F:$F,raw_transmission_costs!$B:$B,$C617,raw_transmission_costs!$A:$A,F$615)","v":0},{"$f":"SUMIFS(raw_transmission_costs!$F:$F,raw_transmission_costs!$B:$B,$C617,raw_transmission_costs!$A:$A,G$615)","v":0},{"$f":"SUMIFS(raw_transmission_costs!$F:$F,raw_transmission_costs!$B:$B,$C617,raw_transmission_costs!$A:$A,H$615)","v":0},{"$f":"SUMIFS(raw_transmission_costs!$F:$F,raw_transmission_costs!$B:$B,$C617,raw_transmission_costs!$A:$A,I$615)","v":0},{"$f":"SUMIFS(raw_transmission_costs!$F:$F,raw_transmission_costs!$B:$B,$C617,raw_transmission_costs!$A:$A,J$615)","v":97},{"$f":"SUMIFS(raw_transmission_costs!$F:$F,raw_transmission_costs!$B:$B,$C617,raw_transmission_costs!$A:$A,K$615)","v":97},{"$f":"SUMIFS(raw_transmission_costs!$F:$F,raw_transmission_costs!$B:$B,$C617,raw_transmission_costs!$A:$A,L$615)","v":97},{"$f":"SUMIFS(raw_transmission_costs!$F:$F,raw_transmission_costs!$B:$B,$C617,raw_transmission_costs!$A:$A,M$615)","v":97},{"$f":"SUMIFS(raw_transmission_costs!$F:$F,raw_transmission_costs!$B:$B,$C617,raw_transmission_costs!$A:$A,N$615)","v":97},{"$f":"SUMIFS(raw_transmission_costs!$F:$F,raw_transmission_costs!$B:$B,$C617,raw_transmission_costs!$A:$A,O$615)","v":0},{"$f":"SUMIFS(raw_transmission_costs!$F:$F,raw_transmission_costs!$B:$B,$C617,raw_transmission_costs!$A:$A,P$615)","v":97},{"$f":"SUMIFS(raw_transmission_costs!$F:$F,raw_transmission_costs!$B:$B,$C617,raw_transmission_costs!$A:$A,Q$615)","v":0},{"$f":"SUMIFS(raw_transmission_costs!$F:$F,raw_transmission_costs!$B:$B,$C617,raw_transmission_costs!$A:$A,R$615)","v":0},{"$f":"SUMIFS(raw_transmission_costs!$F:$F,raw_transmission_costs!$B:$B,$C617,raw_transmission_costs!$A:$A,S$615)","v":0},{"$f":"SUMIFS(raw_transmission_costs!$F:$F,raw_transmission_costs!$B:$B,$C617,raw_transmission_costs!$A:$A,T$615)","v":97},{"$f":"SUMIFS(raw_transmission_costs!$F:$F,raw_transmission_costs!$B:$B,$C617,raw_transmission_costs!$A:$A,U$615)","v":0},{"$f":"SUMIFS(raw_transmission_costs!$F:$F,raw_transmission_costs!$B:$B,$C617,raw_transmission_costs!$A:$A,V$615)","v":0},{"$f":"SUMIFS(raw_transmission_costs!$F:$F,raw_transmission_costs!$B:$B,$C617,raw_transmission_costs!$A:$A,W$615)","v":0},{"$f":"SUMIFS(raw_transmission_costs!$F:$F,raw_transmission_costs!$B:$B,$C617,raw_transmission_costs!$A:$A,X$615)","v":0},{"$f":"SUMIFS(raw_transmission_costs!$F:$F,raw_transmission_costs!$B:$B,$C617,raw_transmission_costs!$A:$A,Y$615)","v":0},{"$f":"SUMIFS(raw_transmission_costs!$F:$F,raw_transmission_costs!$B:$B,$C617,raw_transmission_costs!$A:$A,Z$615)","v":0},{"$f":"SUMIFS(raw_transmission_costs!$F:$F,raw_transmission_costs!$B:$B,$C617,raw_transmission_costs!$A:$A,AA$615)","v":0},{"$f":"SUMIFS(raw_transmission_costs!$F:$F,raw_transmission_costs!$B:$B,$C617,raw_transmission_costs!$A:$A,AB$615)","v":0},{"$f":"SUMIFS(raw_transmission_costs!$F:$F,raw_transmission_costs!$B:$B,$C617,raw_transmission_costs!$A:$A,AC$615)","v":0},{"$f":"SUMIFS(raw_transmission_costs!$F:$F,raw_transmission_costs!$B:$B,$C617,raw_transmission_costs!$A:$A,AD$615)","v":0},{"$f":"SUMIFS(raw_transmission_costs!$F:$F,raw_transmission_costs!$B:$B,$C617,raw_transmission_costs!$A:$A,AE$615)","v":0},{"$f":"SUMIFS(raw_transmission_costs!$F:$F,raw_transmission_costs!$B:$B,$C617,raw_transmission_costs!$A:$A,AF$615)","v":0},{"$f":"SUMIFS(raw_transmission_costs!$F:$F,raw_transmission_costs!$B:$B,$C617,raw_transmission_costs!$A:$A,AG$615)","v":0},{"$f":"SUMIFS(raw_transmission_costs!$F:$F,raw_transmission_costs!$B:$B,$C617,raw_transmission_costs!$A:$A,AH$615)","v":0},{"$f":"SUMIFS(raw_transmission_costs!$F:$F,raw_transmission_costs!$B:$B,$C617,raw_transmission_costs!$A:$A,AI$615)","v":97},{"$f":"SUMIFS(raw_transmission_costs!$F:$F,raw_transmission_costs!$B:$B,$C617,raw_transmission_costs!$A:$A,AJ$615)","v":0},{"$f":"SUMIFS(raw_transmission_costs!$F:$F,raw_transmission_costs!$B:$B,$C617,raw_transmission_costs!$A:$A,AK$615)","v":0},{"$f":"SUMIFS(raw_transmission_costs!$F:$F,raw_transmission_costs!$B:$B,$C617,raw_transmission_costs!$A:$A,AL$615)","v":0},{"$f":"SUMIFS(raw_transmission_costs!$F:$F,raw_transmission_costs!$B:$B,$C617,raw_transmission_costs!$A:$A,AM$615)","v":0},{"$f":"SUMIFS(raw_transmission_costs!$F:$F,raw_transmission_costs!$B:$B,$C617,raw_transmission_costs!$A:$A,AN$615)","v":0}]
[null,null,"North_Victor","MW",{"$f":"SUMIFS(raw_transmission_costs!$F:$F,raw_transmission_costs!$B:$B,$C618,raw_transmission_costs!$A:$A,E$615)","v":0},{"$f":"SUMIFS(raw_transmission_costs!$F:$F,raw_transmission_costs!$B:$B,$C618,raw_transmission_costs!$A:$A,F$615)","v":0},{"$f":"SUMIFS(raw_transmission_costs!$F:$F,raw_transmission_costs!$B:$B,$C618,raw_transmission_costs!$A:$A,G$615)","v":0},{"$f":"SUMIFS(raw_transmission_costs!$F:$F,raw_transmission_costs!$B:$B,$C618,raw_transmission_costs!$A:$A,H$615)","v":0},{"$f":"SUMIFS(raw_transmission_costs!$F:$F,raw_transmission_costs!$B:$B,$C618,raw_transmission_costs!$A:$A,I$615)","v":0},{"$f":"SUMIFS(raw_transmission_costs!$F:$F,raw_transmission_costs!$B:$B,$C618,raw_transmission_costs!$A:$A,J$615)","v":300},{"$f":"SUMIFS(raw_transmission_costs!$F:$F,raw_transmission_costs!$B:$B,$C618,raw_transmission_costs!$A:$A,K$615)","v":300},{"$f":"SUMIFS(raw_transmission_costs!$F:$F,raw_transmission_costs!$B:$B,$C618,raw_transmission_costs!$A:$A,L$615)","v":300},{"$f":"SUMIFS(raw_transmission_costs!$F:$F,raw_transmission_costs!$B:$B,$C618,raw_transmission_costs!$A:$A,M$615)","v":300},{"$f":"SUMIFS(raw_transmission_costs!$F:$F,raw_transmission_costs!$B:$B,$C618,raw_transmission_costs!$A:$A,N$615)","v":300},{"$f":"SUMIFS(raw_transmission_costs!$F:$F,raw_transmission_costs!$B:$B,$C618,raw_transmission_costs!$A:$A,O$615)","v":0},{"$f":"SUMIFS(raw_transmission_costs!$F:$F,raw_transmission_costs!$B:$B,$C618,raw_transmission_costs!$A:$A,P$615)","v":300},{"$f":"SUMIFS(raw_transmission_costs!$F:$F,raw_transmission_costs!$B:$B,$C618,raw_transmission_costs!$A:$A,Q$615)","v":0},{"$f":"SUMIFS(raw_transmission_costs!$F:$F,raw_transmission_costs!$B:$B,$C618,raw_transmission_costs!$A:$A,R$615)","v":0},{"$f":"SUMIFS(raw_transmission_costs!$F:$F,raw_transmission_costs!$B:$B,$C618,raw_transmission_costs!$A:$A,S$615)","v":0},{"$f":"SUMIFS(raw_transmission_costs!$F:$F,raw_transmission_costs!$B:$B,$C618,raw_transmission_costs!$A:$A,T$615)","v":300},{"$f":"SUMIFS(raw_transmission_costs!$F:$F,raw_transmission_costs!$B:$B,$C618,raw_transmission_costs!$A:$A,U$615)","v":0},{"$f":"SUMIFS(raw_transmission_costs!$F:$F,raw_transmission_costs!$B:$B,$C618,raw_transmission_costs!$A:$A,V$615)","v":0},{"$f":"SUMIFS(raw_transmission_costs!$F:$F,raw_transmission_costs!$B:$B,$C618,raw_transmission_costs!$A:$A,W$615)","v":0},{"$f":"SUMIFS(raw_transmission_costs!$F:$F,raw_transmission_costs!$B:$B,$C618,raw_transmission_costs!$A:$A,X$615)","v":0},{"$f":"SUMIFS(raw_transmission_costs!$F:$F,raw_transmission_costs!$B:$B,$C618,raw_transmission_costs!$A:$A,Y$615)","v":0},{"$f":"SUMIFS(raw_transmission_costs!$F:$F,raw_transmission_costs!$B:$B,$C618,raw_transmission_costs!$A:$A,Z$615)","v":0},{"$f":"SUMIFS(raw_transmission_costs!$F:$F,raw_transmission_costs!$B:$B,$C618,raw_transmission_costs!$A:$A,AA$615)","v":0},{"$f":"SUMIFS(raw_transmission_costs!$F:$F,raw_transmission_costs!$B:$B,$C618,raw_transmission_costs!$A:$A,AB$615)","v":0},{"$f":"SUMIFS(raw_transmission_costs!$F:$F,raw_transmission_costs!$B:$B,$C618,raw_transmission_costs!$A:$A,AC$615)","v":0},{"$f":"SUMIFS(raw_transmission_costs!$F:$F,raw_transmission_costs!$B:$B,$C618,raw_transmission_costs!$A:$A,AD$615)","v":0},{"$f":"SUMIFS(raw_transmission_costs!$F:$F,raw_transmission_costs!$B:$B,$C618,raw_transmission_costs!$A:$A,AE$615)","v":0},{"$f":"SUMIFS(raw_transmission_costs!$F:$F,raw_transmission_costs!$B:$B,$C618,raw_transmission_costs!$A:$A,AF$615)","v":0},{"$f":"SUMIFS(raw_transmission_costs!$F:$F,raw_transmission_costs!$B:$B,$C618,raw_transmission_costs!$A:$A,AG$615)","v":0},{"$f":"SUMIFS(raw_transmission_costs!$F:$F,raw_transmission_costs!$B:$B,$C618,raw_transmission_costs!$A:$A,AH$615)","v":0},{"$f":"SUMIFS(raw_transmission_costs!$F:$F,raw_transmission_costs!$B:$B,$C618,raw_transmission_costs!$A:$A,AI$615)","v":300},{"$f":"SUMIFS(raw_transmission_costs!$F:$F,raw_transmission_costs!$B:$B,$C618,raw_transmission_costs!$A:$A,AJ$615)","v":0},{"$f":"SUMIFS(raw_transmission_costs!$F:$F,raw_transmission_costs!$B:$B,$C618,raw_transmission_costs!$A:$A,AK$615)","v":0},{"$f":"SUMIFS(raw_transmission_costs!$F:$F,raw_transmission_costs!$B:$B,$C618,raw_transmission_costs!$A:$A,AL$615)","v":0},{"$f":"SUMIFS(raw_transmission_costs!$F:$F,raw_transmission_costs!$B:$B,$C618,raw_transmission_costs!$A:$A,AM$615)","v":0},{"$f":"SUMIFS(raw_transmission_costs!$F:$F,raw_transmission_costs!$B:$B,$C618,raw_transmission_costs!$A:$A,AN$615)","v":0}]
[null,null,"Humboldt","MW",{"$f":"SUMIFS(raw_transmission_costs!$F:$F,raw_transmission_costs!$B:$B,$C619,raw_transmission_costs!$A:$A,E$615)","v":0},{"$f":"SUMIFS(raw_transmission_costs!$F:$F,raw_transmission_costs!$B:$B,$C619,raw_transmission_costs!$A:$A,F$615)","v":0},{"$f":"SUMIFS(raw_transmission_costs!$F:$F,raw_transmission_costs!$B:$B,$C619,raw_transmission_costs!$A:$A,G$615)","v":0},{"$f":"SUMIFS(raw_transmission_costs!$F:$F,raw_transmission_costs!$B:$B,$C619,raw_transmission_costs!$A:$A,H$615)","v":0},{"$f":"SUMIFS(raw_transmission_costs!$F:$F,raw_transmission_costs!$B:$B,$C619,raw_transmission_costs!$A:$A,I$615)","v":0},{"$f":"SUMIFS(raw_transmission_costs!$F:$F,raw_transmission_costs!$B:$B,$C619,raw_transmission_costs!$A:$A,J$615)","v":0},{"$f":"SUMIFS(raw_transmission_costs!$F:$F,raw_transmission_costs!$B:$B,$C619,raw_transmission_costs!$A:$A,K$615)","v":0},{"$f":"SUMIFS(raw_transmission_costs!$F:$F,raw_transmission_costs!$B:$B,$C619,raw_transmission_costs!$A:$A,L$615)","v":0},{"$f":"SUMIFS(raw_transmission_costs!$F:$F,raw_transmission_costs!$B:$B,$C619,raw_transmission_costs!$A:$A,M$615)","v":0},{"$f":"SUMIFS(raw_transmission_costs!$F:$F,raw_transmission_costs!$B:$B,$C619,raw_transmission_costs!$A:$A,N$615)","v":0},{"$f":"SUMIFS(raw_transmission_costs!$F:$F,raw_transmission_costs!$B:$B,$C619,raw_transmission_costs!$A:$A,O$615)","v":0},{"$f":"SUMIFS(raw_transmission_costs!$F:$F,raw_transmission_costs!$B:$B,$C619,raw_transmission_costs!$A:$A,P$615)","v":0},{"$f":"SUMIFS(raw_transmission_costs!$F:$F,raw_transmission_costs!$B:$B,$C619,raw_transmission_costs!$A:$A,Q$615)","v":0},{"$f":"SUMIFS(raw_transmission_costs!$F:$F,raw_transmission_costs!$B:$B,$C619,raw_transmission_costs!$A:$A,R$615)","v":0},{"$f":"SUMIFS(raw_transmission_costs!$F:$F,raw_transmission_costs!$B:$B,$C619,raw_transmission_costs!$A:$A,S$615)","v":0},{"$f":"SUMIFS(raw_transmission_costs!$F:$F,raw_transmission_costs!$B:$B,$C619,raw_transmission_costs!$A:$A,T$615)","v":0},{"$f":"SUMIFS(raw_transmission_costs!$F:$F,raw_transmission_costs!$B:$B,$C619,raw_transmission_costs!$A:$A,U$615)","v":0},{"$f":"SUMIFS(raw_transmission_costs!$F:$F,raw_transmission_costs!$B:$B,$C619,raw_transmission_costs!$A:$A,V$615)","v":0},{"$f":"SUMIFS(raw_transmission_costs!$F:$F,raw_transmission_costs!$B:$B,$C619,raw_transmission_costs!$A:$A,W$615)","v":0},{"$f":"SUMIFS(raw_transmission_costs!$F:$F,raw_transmission_costs!$B:$B,$C619,raw_transmission_costs!$A:$A,X$615)","v":0},{"$f":"SUMIFS(raw_transmission_costs!$F:$F,raw_transmission_costs!$B:$B,$C619,raw_transmission_costs!$A:$A,Y$615)","v":0},{"$f":"SUMIFS(raw_transmission_costs!$F:$F,raw_transmission_costs!$B:$B,$C619,raw_transmission_costs!$A:$A,Z$615)","v":0},{"$f":"SUMIFS(raw_transmission_costs!$F:$F,raw_transmission_costs!$B:$B,$C619,raw_transmission_costs!$A:$A,AA$615)","v":0},{"$f":"SUMIFS(raw_transmission_costs!$F:$F,raw_transmission_costs!$B:$B,$C619,raw_transmission_costs!$A:$A,AB$615)","v":0},{"$f":"SUMIFS(raw_transmission_costs!$F:$F,raw_transmission_costs!$B:$B,$C619,raw_transmission_costs!$A:$A,AC$615)","v":0},{"$f":"SUMIFS(raw_transmission_costs!$F:$F,raw_transmission_costs!$B:$B,$C619,raw_transmission_costs!$A:$A,AD$615)","v":0},{"$f":"SUMIFS(raw_transmission_costs!$F:$F,raw_transmission_costs!$B:$B,$C619,raw_transmission_costs!$A:$A,AE$615)","v":0},{"$f":"SUMIFS(raw_transmission_costs!$F:$F,raw_transmission_costs!$B:$B,$C619,raw_transmission_costs!$A:$A,AF$615)","v":0},{"$f":"SUMIFS(raw_transmission_costs!$F:$F,raw_transmission_costs!$B:$B,$C619,raw_transmission_costs!$A:$A,AG$615)","v":0},{"$f":"SUMIFS(raw_transmission_costs!$F:$F,raw_transmission_costs!$B:$B,$C619,raw_transmission_costs!$A:$A,AH$615)","v":0},{"$f":"SUMIFS(raw_transmission_costs!$F:$F,raw_transmission_costs!$B:$B,$C619,raw_transmission_costs!$A:$A,AI$615)","v":0},{"$f":"SUMIFS(raw_transmission_costs!$F:$F,raw_transmission_costs!$B:$B,$C619,raw_transmission_costs!$A:$A,AJ$615)","v":0},{"$f":"SUMIFS(raw_transmission_costs!$F:$F,raw_transmission_costs!$B:$B,$C619,raw_transmission_costs!$A:$A,AK$615)","v":0},{"$f":"SUMIFS(raw_transmission_costs!$F:$F,raw_transmission_costs!$B:$B,$C619,raw_transmission_costs!$A:$A,AL$615)","v":0},{"$f":"SUMIFS(raw_transmission_costs!$F:$F,raw_transmission_costs!$B:$B,$C619,raw_transmission_costs!$A:$A,AM$615)","v":0},{"$f":"SUMIFS(raw_transmission_costs!$F:$F,raw_transmission_costs!$B:$B,$C619,raw_transmission_costs!$A:$A,AN$615)","v":0}]
[null,null,"Sacramento_River","MW",{"$f":"SUMIFS(raw_transmission_costs!$F:$F,raw_transmission_costs!$B:$B,$C620,raw_transmission_costs!$A:$A,E$615)","v":0},{"$f":"SUMIFS(raw_transmission_costs!$F:$F,raw_transmission_costs!$B:$B,$C620,raw_transmission_costs!$A:$A,F$615)","v":0},{"$f":"SUMIFS(raw_transmission_costs!$F:$F,raw_transmission_costs!$B:$B,$C620,raw_transmission_costs!$A:$A,G$615)","v":0},{"$f":"SUMIFS(raw_transmission_costs!$F:$F,raw_transmission_costs!$B:$B,$C620,raw_transmission_costs!$A:$A,H$615)","v":0},{"$f":"SUMIFS(raw_transmission_costs!$F:$F,raw_transmission_costs!$B:$B,$C620,raw_transmission_costs!$A:$A,I$615)","v":0},{"$f":"SUMIFS(raw_transmission_costs!$F:$F,raw_transmission_costs!$B:$B,$C620,raw_transmission_costs!$A:$A,J$615)","v":1995.02},{"$f":"SUMIFS(raw_transmission_costs!$F:$F,raw_transmission_costs!$B:$B,$C620,raw_transmission_costs!$A:$A,K$615)","v":1995.02},{"$f":"SUMIFS(raw_transmission_costs!$F:$F,raw_transmission_costs!$B:$B,$C620,raw_transmission_costs!$A:$A,L$615)","v":1995.02},{"$f":"SUMIFS(raw_transmission_costs!$F:$F,raw_transmission_costs!$B:$B,$C620,raw_transmission_costs!$A:$A,M$615)","v":1995.02},{"$f":"SUMIFS(raw_transmission_costs!$F:$F,raw_transmission_costs!$B:$B,$C620,raw_transmission_costs!$A:$A,N$615)","v":1995.02},{"$f":"SUMIFS(raw_transmission_costs!$F:$F,raw_transmission_costs!$B:$B,$C620,raw_transmission_costs!$A:$A,O$615)","v":0},{"$f":"SUMIFS(raw_transmission_costs!$F:$F,raw_transmission_costs!$B:$B,$C620,raw_transmission_costs!$A:$A,P$615)","v":1995.02},{"$f":"SUMIFS(raw_transmission_costs!$F:$F,raw_transmission_costs!$B:$B,$C620,raw_transmission_costs!$A:$A,Q$615)","v":0},{"$f":"SUMIFS(raw_transmission_costs!$F:$F,raw_transmission_costs!$B:$B,$C620,raw_transmission_costs!$A:$A,R$615)","v":0},{"$f":"SUMIFS(raw_transmission_costs!$F:$F,raw_transmission_costs!$B:$B,$C620,raw_transmission_costs!$A:$A,S$615)","v":0},{"$f":"SUMIFS(raw_transmission_costs!$F:$F,raw_transmission_costs!$B:$B,$C620,raw_transmission_costs!$A:$A,T$615)","v":1995.02},{"$f":"SUMIFS(raw_transmission_costs!$F:$F,raw_transmission_costs!$B:$B,$C620,raw_transmission_costs!$A:$A,U$615)","v":0},{"$f":"SUMIFS(raw_transmission_costs!$F:$F,raw_transmission_costs!$B:$B,$C620,raw_transmission_costs!$A:$A,V$615)","v":0},{"$f":"SUMIFS(raw_transmission_costs!$F:$F,raw_transmission_costs!$B:$B,$C620,raw_transmission_costs!$A:$A,W$615)","v":0},{"$f":"SUMIFS(raw_transmission_costs!$F:$F,raw_transmission_costs!$B:$B,$C620,raw_transmission_costs!$A:$A,X$615)","v":0},{"$f":"SUMIFS(raw_transmission_costs!$F:$F,raw_transmission_costs!$B:$B,$C620,raw_transmission_costs!$A:$A,Y$615)","v":0},{"$f":"SUMIFS(raw_transmission_costs!$F:$F,raw_transmission_costs!$B:$B,$C620,raw_transmission_costs!$A:$A,Z$615)","v":0},{"$f":"SUMIFS(raw_transmission_costs!$F:$F,raw_transmission_costs!$B:$B,$C620,raw_transmission_costs!$A:$A,AA$615)","v":0},{"$f":"SUMIFS(raw_transmission_costs!$F:$F,raw_transmission_costs!$B:$B,$C620,raw_transmission_costs!$A:$A,AB$615)","v":0},{"$f":"SUMIFS(raw_transmission_costs!$F:$F,raw_transmission_costs!$B:$B,$C620,raw_transmission_costs!$A:$A,AC$615)","v":0},{"$f":"SUMIFS(raw_transmission_costs!$F:$F,raw_transmission_costs!$B:$B,$C620,raw_transmission_costs!$A:$A,AD$615)","v":0},{"$f":"SUMIFS(raw_transmission_costs!$F:$F,raw_transmission_costs!$B:$B,$C620,raw_transmission_costs!$A:$A,AE$615)","v":0},{"$f":"SUMIFS(raw_transmission_costs!$F:$F,raw_transmission_costs!$B:$B,$C620,raw_transmission_costs!$A:$A,AF$615)","v":0},{"$f":"SUMIFS(raw_transmission_costs!$F:$F,raw_transmission_costs!$B:$B,$C620,raw_transmission_costs!$A:$A,AG$615)","v":0},{"$f":"SUMIFS(raw_transmission_costs!$F:$F,raw_transmission_costs!$B:$B,$C620,raw_transmission_costs!$A:$A,AH$615)","v":0},{"$f":"SUMIFS(raw_transmission_costs!$F:$F,raw_transmission_costs!$B:$B,$C620,raw_transmission_costs!$A:$A,AI$615)","v":1995.02},{"$f":"SUMIFS(raw_transmission_costs!$F:$F,raw_transmission_costs!$B:$B,$C620,raw_transmission_costs!$A:$A,AJ$615)","v":0},{"$f":"SUMIFS(raw_transmission_costs!$F:$F,raw_transmission_costs!$B:$B,$C620,raw_transmission_costs!$A:$A,AK$615)","v":0},{"$f":"SUMIFS(raw_transmission_costs!$F:$F,raw_transmission_costs!$B:$B,$C620,raw_transmission_costs!$A:$A,AL$615)","v":0},{"$f":"SUMIFS(raw_transmission_costs!$F:$F,raw_transmission_costs!$B:$B,$C620,raw_transmission_costs!$A:$A,AM$615)","v":0},{"$f":"SUMIFS(raw_transmission_costs!$F:$F,raw_transmission_costs!$B:$B,$C620,raw_transmission_costs!$A:$A,AN$615)","v":0}]
[null,null,"Solano","MW",{"$f":"SUMIFS(raw_transmission_costs!$F:$F,raw_transmission_costs!$B:$B,$C621,raw_transmission_costs!$A:$A,E$615)","v":0},{"$f":"SUMIFS(raw_transmission_costs!$F:$F,raw_transmission_costs!$B:$B,$C621,raw_transmission_costs!$A:$A,F$615)","v":0},{"$f":"SUMIFS(raw_transmission_costs!$F:$F,raw_transmission_costs!$B:$B,$C621,raw_transmission_costs!$A:$A,G$615)","v":0},{"$f":"SUMIFS(raw_transmission_costs!$F:$F,raw_transmission_costs!$B:$B,$C621,raw_transmission_costs!$A:$A,H$615)","v":0},{"$f":"SUMIFS(raw_transmission_costs!$F:$F,raw_transmission_costs!$B:$B,$C621,raw_transmission_costs!$A:$A,I$615)","v":0},{"$f":"SUMIFS(raw_transmission_costs!$F:$F,raw_transmission_costs!$B:$B,$C621,raw_transmission_costs!$A:$A,J$615)","v":599},{"$f":"SUMIFS(raw_transmission_costs!$F:$F,raw_transmission_costs!$B:$B,$C621,raw_transmission_costs!$A:$A,K$615)","v":599},{"$f":"SUMIFS(raw_transmission_costs!$F:$F,raw_transmission_costs!$B:$B,$C621,raw_transmission_costs!$A:$A,L$615)","v":599},{"$f":"SUMIFS(raw_transmission_costs!$F:$F,raw_transmission_costs!$B:$B,$C621,raw_transmission_costs!$A:$A,M$615)","v":599},{"$f":"SUMIFS(raw_transmission_costs!$F:$F,raw_transmission_costs!$B:$B,$C621,raw_transmission_costs!$A:$A,N$615)","v":599},{"$f":"SUMIFS(raw_transmission_costs!$F:$F,raw_transmission_costs!$B:$B,$C621,raw_transmission_costs!$A:$A,O$615)","v":0},{"$f":"SUMIFS(raw_transmission_costs!$F:$F,raw_transmission_costs!$B:$B,$C621,raw_transmission_costs!$A:$A,P$615)","v":599},{"$f":"SUMIFS(raw_transmission_costs!$F:$F,raw_transmission_costs!$B:$B,$C621,raw_transmission_costs!$A:$A,Q$615)","v":0},{"$f":"SUMIFS(raw_transmission_costs!$F:$F,raw_transmission_costs!$B:$B,$C621,raw_transmission_costs!$A:$A,R$615)","v":0},{"$f":"SUMIFS(raw_transmission_costs!$F:$F,raw_transmission_costs!$B:$B,$C621,raw_transmission_costs!$A:$A,S$615)","v":0},{"$f":"SUMIFS(raw_transmission_costs!$F:$F,raw_transmission_costs!$B:$B,$C621,raw_transmission_costs!$A:$A,T$615)","v":599},{"$f":"SUMIFS(raw_transmission_costs!$F:$F,raw_transmission_costs!$B:$B,$C621,raw_transmission_costs!$A:$A,U$615)","v":0},{"$f":"SUMIFS(raw_transmission_costs!$F:$F,raw_transmission_costs!$B:$B,$C621,raw_transmission_costs!$A:$A,V$615)","v":0},{"$f":"SUMIFS(raw_transmission_costs!$F:$F,raw_transmission_costs!$B:$B,$C621,raw_transmission_costs!$A:$A,W$615)","v":0},{"$f":"SUMIFS(raw_transmission_costs!$F:$F,raw_transmission_costs!$B:$B,$C621,raw_transmission_costs!$A:$A,X$615)","v":0},{"$f":"SUMIFS(raw_transmission_costs!$F:$F,raw_transmission_costs!$B:$B,$C621,raw_transmission_costs!$A:$A,Y$615)","v":0},{"$f":"SUMIFS(raw_transmission_costs!$F:$F,raw_transmission_costs!$B:$B,$C621,raw_transmission_costs!$A:$A,Z$615)","v":0},{"$f":"SUMIFS(raw_transmission_costs!$F:$F,raw_transmission_costs!$B:$B,$C621,raw_transmission_costs!$A:$A,AA$615)","v":0},{"$f":"SUMIFS(raw_transmission_costs!$F:$F,raw_transmission_costs!$B:$B,$C621,raw_transmission_costs!$A:$A,AB$615)","v":0},{"$f":"SUMIFS(raw_transmission_costs!$F:$F,raw_transmission_costs!$B:$B,$C621,raw_transmission_costs!$A:$A,AC$615)","v":0},{"$f":"SUMIFS(raw_transmission_costs!$F:$F,raw_transmission_costs!$B:$B,$C621,raw_transmission_costs!$A:$A,AD$615)","v":0},{"$f":"SUMIFS(raw_transmission_costs!$F:$F,raw_transmission_costs!$B:$B,$C621,raw_transmission_costs!$A:$A,AE$615)","v":0},{"$f":"SUMIFS(raw_transmission_costs!$F:$F,raw_transmission_costs!$B:$B,$C621,raw_transmission_costs!$A:$A,AF$615)","v":0},{"$f":"SUMIFS(raw_transmission_costs!$F:$F,raw_transmission_costs!$B:$B,$C621,raw_transmission_costs!$A:$A,AG$615)","v":0},{"$f":"SUMIFS(raw_transmission_costs!$F:$F,raw_transmission_costs!$B:$B,$C621,raw_transmission_costs!$A:$A,AH$615)","v":0},{"$f":"SUMIFS(raw_transmission_costs!$F:$F,raw_transmission_costs!$B:$B,$C621,raw_transmission_costs!$A:$A,AI$615)","v":599},{"$f":"SUMIFS(raw_transmission_costs!$F:$F,raw_transmission_costs!$B:$B,$C621,raw_transmission_costs!$A:$A,AJ$615)","v":0},{"$f":"SUMIFS(raw_transmission_costs!$F:$F,raw_transmission_costs!$B:$B,$C621,raw_transmission_costs!$A:$A,AK$615)","v":0},{"$f":"SUMIFS(raw_transmission_costs!$F:$F,raw_transmission_costs!$B:$B,$C621,raw_transmission_costs!$A:$A,AL$615)","v":0},{"$f":"SUMIFS(raw_transmission_costs!$F:$F,raw_transmission_costs!$B:$B,$C621,raw_transmission_costs!$A:$A,AM$615)","v":0},{"$f":"SUMIFS(raw_transmission_costs!$F:$F,raw_transmission_costs!$B:$B,$C621,raw_transmission_costs!$A:$A,AN$615)","v":0}]
[null,null,"Solano_subzone","MW",{"$f":"SUMIFS(raw_transmission_costs!$F:$F,raw_transmission_costs!$B:$B,$C622,raw_transmission_costs!$A:$A,E$615)","v":0},{"$f":"SUMIFS(raw_transmission_costs!$F:$F,raw_transmission_costs!$B:$B,$C622,raw_transmission_costs!$A:$A,F$615)","v":0},{"$f":"SUMIFS(raw_transmission_costs!$F:$F,raw_transmission_costs!$B:$B,$C622,raw_transmission_costs!$A:$A,G$615)","v":0},{"$f":"SUMIFS(raw_transmission_costs!$F:$F,raw_transmission_costs!$B:$B,$C622,raw_transmission_costs!$A:$A,H$615)","v":0},{"$f":"SUMIFS(raw_transmission_costs!$F:$F,raw_transmission_costs!$B:$B,$C622,raw_transmission_costs!$A:$A,I$615)","v":0},{"$f":"SUMIFS(raw_transmission_costs!$F:$F,raw_transmission_costs!$B:$B,$C622,raw_transmission_costs!$A:$A,J$615)","v":0},{"$f":"SUMIFS(raw_transmission_costs!$F:$F,raw_transmission_costs!$B:$B,$C622,raw_transmission_costs!$A:$A,K$615)","v":0},{"$f":"SUMIFS(raw_transmission_costs!$F:$F,raw_transmission_costs!$B:$B,$C622,raw_transmission_costs!$A:$A,L$615)","v":0},{"$f":"SUMIFS(raw_transmission_costs!$F:$F,raw_transmission_costs!$B:$B,$C622,raw_transmission_costs!$A:$A,M$615)","v":0},{"$f":"SUMIFS(raw_transmission_costs!$F:$F,raw_transmission_costs!$B:$B,$C622,raw_transmission_costs!$A:$A,N$615)","v":0},{"$f":"SUMIFS(raw_transmission_costs!$F:$F,raw_transmission_costs!$B:$B,$C622,raw_transmission_costs!$A:$A,O$615)","v":0},{"$f":"SUMIFS(raw_transmission_costs!$F:$F,raw_transmission_costs!$B:$B,$C622,raw_transmission_costs!$A:$A,P$615)","v":0},{"$f":"SUMIFS(raw_transmission_costs!$F:$F,raw_transmission_costs!$B:$B,$C622,raw_transmission_costs!$A:$A,Q$615)","v":0},{"$f":"SUMIFS(raw_transmission_costs!$F:$F,raw_transmission_costs!$B:$B,$C622,raw_transmission_costs!$A:$A,R$615)","v":0},{"$f":"SUMIFS(raw_transmission_costs!$F:$F,raw_transmission_costs!$B:$B,$C622,raw_transmission_costs!$A:$A,S$615)","v":0},{"$f":"SUMIFS(raw_transmission_costs!$F:$F,raw_transmission_costs!$B:$B,$C622,raw_transmission_costs!$A:$A,T$615)","v":0},{"$f":"SUMIFS(raw_transmission_costs!$F:$F,raw_transmission_costs!$B:$B,$C622,raw_transmission_costs!$A:$A,U$615)","v":0},{"$f":"SUMIFS(raw_transmission_costs!$F:$F,raw_transmission_costs!$B:$B,$C622,raw_transmission_costs!$A:$A,V$615)","v":0},{"$f":"SUMIFS(raw_transmission_costs!$F:$F,raw_transmission_costs!$B:$B,$C622,raw_transmission_costs!$A:$A,W$615)","v":0},{"$f":"SUMIFS(raw_transmission_costs!$F:$F,raw_transmission_costs!$B:$B,$C622,raw_transmission_costs!$A:$A,X$615)","v":0},{"$f":"SUMIFS(raw_transmission_costs!$F:$F,raw_transmission_costs!$B:$B,$C622,raw_transmission_costs!$A:$A,Y$615)","v":0},{"$f":"SUMIFS(raw_transmission_costs!$F:$F,raw_transmission_costs!$B:$B,$C622,raw_transmission_costs!$A:$A,Z$615)","v":0},{"$f":"SUMIFS(raw_transmission_costs!$F:$F,raw_transmission_costs!$B:$B,$C622,raw_transmission_costs!$A:$A,AA$615)","v":0},{"$f":"SUMIFS(raw_transmission_costs!$F:$F,raw_transmission_costs!$B:$B,$C622,raw_transmission_costs!$A:$A,AB$615)","v":0},{"$f":"SUMIFS(raw_transmission_costs!$F:$F,raw_transmission_costs!$B:$B,$C622,raw_transmission_costs!$A:$A,AC$615)","v":0},{"$f":"SUMIFS(raw_transmission_costs!$F:$F,raw_transmission_costs!$B:$B,$C622,raw_transmission_costs!$A:$A,AD$615)","v":0},{"$f":"SUMIFS(raw_transmission_costs!$F:$F,raw_transmission_costs!$B:$B,$C622,raw_transmission_costs!$A:$A,AE$615)","v":0},{"$f":"SUMIFS(raw_transmission_costs!$F:$F,raw_transmission_costs!$B:$B,$C622,raw_transmission_costs!$A:$A,AF$615)","v":0},{"$f":"SUMIFS(raw_transmission_costs!$F:$F,raw_transmission_costs!$B:$B,$C622,raw_transmission_costs!$A:$A,AG$615)","v":0},{"$f":"SUMIFS(raw_transmission_costs!$F:$F,raw_transmission_costs!$B:$B,$C622,raw_transmission_costs!$A:$A,AH$615)","v":0},{"$f":"SUMIFS(raw_transmission_costs!$F:$F,raw_transmission_costs!$B:$B,$C622,raw_transmission_costs!$A:$A,AI$615)","v":0},{"$f":"SUMIFS(raw_transmission_costs!$F:$F,raw_transmission_costs!$B:$B,$C622,raw_transmission_costs!$A:$A,AJ$615)","v":0},{"$f":"SUMIFS(raw_transmission_costs!$F:$F,raw_transmission_costs!$B:$B,$C622,raw_transmission_costs!$A:$A,AK$615)","v":0},{"$f":"SUMIFS(raw_transmission_costs!$F:$F,raw_transmission_costs!$B:$B,$C622,raw_transmission_costs!$A:$A,AL$615)","v":0},{"$f":"SUMIFS(raw_transmission_costs!$F:$F,raw_transmission_costs!$B:$B,$C622,raw_transmission_costs!$A:$A,AM$615)","v":0},{"$f":"SUMIFS(raw_transmission_costs!$F:$F,raw_transmission_costs!$B:$B,$C622,raw_transmission_costs!$A:$A,AN$615)","v":0}]
[null,null,"Mountain_Pass_El_Dorado","MW",{"$f":"SUMIFS(raw_transmission_costs!$F:$F,raw_transmission_costs!$B:$B,$C623,raw_transmission_costs!$A:$A,E$615)","v":0},{"$f":"SUMIFS(raw_transmission_costs!$F:$F,raw_transmission_costs!$B:$B,$C623,raw_transmission_costs!$A:$A,F$615)","v":0},{"$f":"SUMIFS(raw_transmission_costs!$F:$F,raw_transmission_costs!$B:$B,$C623,raw_transmission_costs!$A:$A,G$615)","v":0},{"$f":"SUMIFS(raw_transmission_costs!$F:$F,raw_transmission_costs!$B:$B,$C623,raw_transmission_costs!$A:$A,H$615)","v":0},{"$f":"SUMIFS(raw_transmission_costs!$F:$F,raw_transmission_costs!$B:$B,$C623,raw_transmission_costs!$A:$A,I$615)","v":0},{"$f":"SUMIFS(raw_transmission_costs!$F:$F,raw_transmission_costs!$B:$B,$C623,raw_transmission_costs!$A:$A,J$615)","v":250},{"$f":"SUMIFS(raw_transmission_costs!$F:$F,raw_transmission_costs!$B:$B,$C623,raw_transmission_costs!$A:$A,K$615)","v":250},{"$f":"SUMIFS(raw_transmission_costs!$F:$F,raw_transmission_costs!$B:$B,$C623,raw_transmission_costs!$A:$A,L$615)","v":250},{"$f":"SUMIFS(raw_transmission_costs!$F:$F,raw_transmission_costs!$B:$B,$C623,raw_transmission_costs!$A:$A,M$615)","v":250},{"$f":"SUMIFS(raw_transmission_costs!$F:$F,raw_transmission_costs!$B:$B,$C623,raw_transmission_costs!$A:$A,N$615)","v":250},{"$f":"SUMIFS(raw_transmission_costs!$F:$F,raw_transmission_costs!$B:$B,$C623,raw_transmission_costs!$A:$A,O$615)","v":0},{"$f":"SUMIFS(raw_transmission_costs!$F:$F,raw_transmission_costs!$B:$B,$C623,raw_transmission_costs!$A:$A,P$615)","v":250},{"$f":"SUMIFS(raw_transmission_costs!$F:$F,raw_transmission_costs!$B:$B,$C623,raw_transmission_costs!$A:$A,Q$615)","v":0},{"$f":"SUMIFS(raw_transmission_costs!$F:$F,raw_transmission_costs!$B:$B,$C623,raw_transmission_costs!$A:$A,R$615)","v":0},{"$f":"SUMIFS(raw_transmission_costs!$F:$F,raw_transmission_costs!$B:$B,$C623,raw_transmission_costs!$A:$A,S$615)","v":0},{"$f":"SUMIFS(raw_transmission_costs!$F:$F,raw_transmission_costs!$B:$B,$C623,raw_transmission_costs!$A:$A,T$615)","v":250},{"$f":"SUMIFS(raw_transmission_costs!$F:$F,raw_transmission_costs!$B:$B,$C623,raw_transmission_costs!$A:$A,U$615)","v":0},{"$f":"SUMIFS(raw_transmission_costs!$F:$F,raw_transmission_costs!$B:$B,$C623,raw_transmission_costs!$A:$A,V$615)","v":0},{"$f":"SUMIFS(raw_transmission_costs!$F:$F,raw_transmission_costs!$B:$B,$C623,raw_transmission_costs!$A:$A,W$615)","v":0},{"$f":"SUMIFS(raw_transmission_costs!$F:$F,raw_transmission_costs!$B:$B,$C623,raw_transmission_costs!$A:$A,X$615)","v":0},{"$f":"SUMIFS(raw_transmission_costs!$F:$F,raw_transmission_costs!$B:$B,$C623,raw_transmission_costs!$A:$A,Y$615)","v":0},{"$f":"SUMIFS(raw_transmission_costs!$F:$F,raw_transmission_costs!$B:$B,$C623,raw_transmission_costs!$A:$A,Z$615)","v":0},{"$f":"SUMIFS(raw_transmission_costs!$F:$F,raw_transmission_costs!$B:$B,$C623,raw_transmission_costs!$A:$A,AA$615)","v":0},{"$f":"SUMIFS(raw_transmission_costs!$F:$F,raw_transmission_costs!$B:$B,$C623,raw_transmission_costs!$A:$A,AB$615)","v":0},{"$f":"SUMIFS(raw_transmission_costs!$F:$F,raw_transmission_costs!$B:$B,$C623,raw_transmission_costs!$A:$A,AC$615)","v":0},{"$f":"SUMIFS(raw_transmission_costs!$F:$F,raw_transmission_costs!$B:$B,$C623,raw_transmission_costs!$A:$A,AD$615)","v":0},{"$f":"SUMIFS(raw_transmission_costs!$F:$F,raw_transmission_costs!$B:$B,$C623,raw_transmission_costs!$A:$A,AE$615)","v":0},{"$f":"SUMIFS(raw_transmission_costs!$F:$F,raw_transmission_costs!$B:$B,$C623,raw_transmission_costs!$A:$A,AF$615)","v":0},{"$f":"SUMIFS(raw_transmission_costs!$F:$F,raw_transmission_costs!$B:$B,$C623,raw_transmission_costs!$A:$A,AG$615)","v":0},{"$f":"SUMIFS(raw_transmission_costs!$F:$F,raw_transmission_costs!$B:$B,$C623,raw_transmission_costs!$A:$A,AH$615)","v":0},{"$f":"SUMIFS(raw_transmission_costs!$F:$F,raw_transmission_costs!$B:$B,$C623,raw_transmission_costs!$A:$A,AI$615)","v":250},{"$f":"SUMIFS(raw_transmission_costs!$F:$F,raw_transmission_costs!$B:$B,$C623,raw_transmission_costs!$A:$A,AJ$615)","v":0},{"$f":"SUMIFS(raw_transmission_costs!$F:$F,raw_transmission_costs!$B:$B,$C623,raw_transmission_costs!$A:$A,AK$615)","v":0},{"$f":"SUMIFS(raw_transmission_costs!$F:$F,raw_transmission_costs!$B:$B,$C623,raw_transmission_costs!$A:$A,AL$615)","v":0},{"$f":"SUMIFS(raw_transmission_costs!$F:$F,raw_transmission_costs!$B:$B,$C623,raw_transmission_costs!$A:$A,AM$615)","v":0},{"$f":"SUMIFS(raw_transmission_costs!$F:$F,raw_transmission_costs!$B:$B,$C623,raw_transmission_costs!$A:$A,AN$615)","v":0}]
[null,null,"GLW_VEA","MW",{"$f":"SUMIFS(raw_transmission_costs!$F:$F,raw_transmission_costs!$B:$B,$C624,raw_transmission_costs!$A:$A,E$615)","v":0},{"$f":"SUMIFS(raw_transmission_costs!$F:$F,raw_transmission_costs!$B:$B,$C624,raw_transmission_costs!$A:$A,F$615)","v":0},{"$f":"SUMIFS(raw_transmission_costs!$F:$F,raw_transmission_costs!$B:$B,$C624,raw_transmission_costs!$A:$A,G$615)","v":0},{"$f":"SUMIFS(raw_transmission_costs!$F:$F,raw_transmission_costs!$B:$B,$C624,raw_transmission_costs!$A:$A,H$615)","v":0},{"$f":"SUMIFS(raw_transmission_costs!$F:$F,raw_transmission_costs!$B:$B,$C624,raw_transmission_costs!$A:$A,I$615)","v":0},{"$f":"SUMIFS(raw_transmission_costs!$F:$F,raw_transmission_costs!$B:$B,$C624,raw_transmission_costs!$A:$A,J$615)","v":596},{"$f":"SUMIFS(raw_transmission_costs!$F:$F,raw_transmission_costs!$B:$B,$C624,raw_transmission_costs!$A:$A,K$615)","v":596},{"$f":"SUMIFS(raw_transmission_costs!$F:$F,raw_transmission_costs!$B:$B,$C624,raw_transmission_costs!$A:$A,L$615)","v":596},{"$f":"SUMIFS(raw_transmission_costs!$F:$F,raw_transmission_costs!$B:$B,$C624,raw_transmission_costs!$A:$A,M$615)","v":596},{"$f":"SUMIFS(raw_transmission_costs!$F:$F,raw_transmission_costs!$B:$B,$C624,raw_transmission_costs!$A:$A,N$615)","v":596},{"$f":"SUMIFS(raw_transmission_costs!$F:$F,raw_transmission_costs!$B:$B,$C624,raw_transmission_costs!$A:$A,O$615)","v":0},{"$f":"SUMIFS(raw_transmission_costs!$F:$F,raw_transmission_costs!$B:$B,$C624,raw_transmission_costs!$A:$A,P$615)","v":596},{"$f":"SUMIFS(raw_transmission_costs!$F:$F,raw_transmission_costs!$B:$B,$C624,raw_transmission_costs!$A:$A,Q$615)","v":0},{"$f":"SUMIFS(raw_transmission_costs!$F:$F,raw_transmission_costs!$B:$B,$C624,raw_transmission_costs!$A:$A,R$615)","v":0},{"$f":"SUMIFS(raw_transmission_costs!$F:$F,raw_transmission_costs!$B:$B,$C624,raw_transmission_costs!$A:$A,S$615)","v":0},{"$f":"SUMIFS(raw_transmission_costs!$F:$F,raw_transmission_costs!$B:$B,$C624,raw_transmission_costs!$A:$A,T$615)","v":596},{"$f":"SUMIFS(raw_transmission_costs!$F:$F,raw_transmission_costs!$B:$B,$C624,raw_transmission_costs!$A:$A,U$615)","v":0},{"$f":"SUMIFS(raw_transmission_costs!$F:$F,raw_transmission_costs!$B:$B,$C624,raw_transmission_costs!$A:$A,V$615)","v":0},{"$f":"SUMIFS(raw_transmission_costs!$F:$F,raw_transmission_costs!$B:$B,$C624,raw_transmission_costs!$A:$A,W$615)","v":0},{"$f":"SUMIFS(raw_transmission_costs!$F:$F,raw_transmission_costs!$B:$B,$C624,raw_transmission_costs!$A:$A,X$615)","v":0},{"$f":"SUMIFS(raw_transmission_costs!$F:$F,raw_transmission_costs!$B:$B,$C624,raw_transmission_costs!$A:$A,Y$615)","v":0},{"$f":"SUMIFS(raw_transmission_costs!$F:$F,raw_transmission_costs!$B:$B,$C624,raw_transmission_costs!$A:$A,Z$615)","v":0},{"$f":"SUMIFS(raw_transmission_costs!$F:$F,raw_transmission_costs!$B:$B,$C624,raw_transmission_costs!$A:$A,AA$615)","v":0},{"$f":"SUMIFS(raw_transmission_costs!$F:$F,raw_transmission_costs!$B:$B,$C624,raw_transmission_costs!$A:$A,AB$615)","v":0},{"$f":"SUMIFS(raw_transmission_costs!$F:$F,raw_transmission_costs!$B:$B,$C624,raw_transmission_costs!$A:$A,AC$615)","v":0},{"$f":"SUMIFS(raw_transmission_costs!$F:$F,raw_transmission_costs!$B:$B,$C624,raw_transmission_costs!$A:$A,AD$615)","v":0},{"$f":"SUMIFS(raw_transmission_costs!$F:$F,raw_transmission_costs!$B:$B,$C624,raw_transmission_costs!$A:$A,AE$615)","v":0},{"$f":"SUMIFS(raw_transmission_costs!$F:$F,raw_transmission_costs!$B:$B,$C624,raw_transmission_costs!$A:$A,AF$615)","v":0},{"$f":"SUMIFS(raw_transmission_costs!$F:$F,raw_transmission_costs!$B:$B,$C624,raw_transmission_costs!$A:$A,AG$615)","v":0},{"$f":"SUMIFS(raw_transmission_costs!$F:$F,raw_transmission_costs!$B:$B,$C624,raw_transmission_costs!$A:$A,AH$615)","v":0},{"$f":"SUMIFS(raw_transmission_costs!$F:$F,raw_transmission_costs!$B:$B,$C624,raw_transmission_costs!$A:$A,AI$615)","v":596},{"$f":"SUMIFS(raw_transmission_costs!$F:$F,raw_transmission_costs!$B:$B,$C624,raw_transmission_costs!$A:$A,AJ$615)","v":0},{"$f":"SUMIFS(raw_transmission_costs!$F:$F,raw_transmission_costs!$B:$B,$C624,raw_transmission_costs!$A:$A,AK$615)","v":0},{"$f":"SUMIFS(raw_transmission_costs!$F:$F,raw_transmission_costs!$B:$B,$C624,raw_transmission_costs!$A:$A,AL$615)","v":0},{"$f":"SUMIFS(raw_transmission_costs!$F:$F,raw_transmission_costs!$B:$B,$C624,raw_transmission_costs!$A:$A,AM$615)","v":0},{"$f":"SUMIFS(raw_transmission_costs!$F:$F,raw_transmission_costs!$B:$B,$C624,raw_transmission_costs!$A:$A,AN$615)","v":0}]
[null,null,"Greater_Imperial","MW",{"$f":"SUMIFS(raw_transmission_costs!$F:$F,raw_transmission_costs!$B:$B,$C625,raw_transmission_costs!$A:$A,E$615)","v":0},{"$f":"SUMIFS(raw_transmission_costs!$F:$F,raw_transmission_costs!$B:$B,$C625,raw_transmission_costs!$A:$A,F$615)","v":0},{"$f":"SUMIFS(raw_transmission_costs!$F:$F,raw_transmission_costs!$B:$B,$C625,raw_transmission_costs!$A:$A,G$615)","v":0},{"$f":"SUMIFS(raw_transmission_costs!$F:$F,raw_transmission_costs!$B:$B,$C625,raw_transmission_costs!$A:$A,H$615)","v":0},{"$f":"SUMIFS(raw_transmission_costs!$F:$F,raw_transmission_costs!$B:$B,$C625,raw_transmission_costs!$A:$A,I$615)","v":0},{"$f":"SUMIFS(raw_transmission_costs!$F:$F,raw_transmission_costs!$B:$B,$C625,raw_transmission_costs!$A:$A,J$615)","v":919.08},{"$f":"SUMIFS(raw_transmission_costs!$F:$F,raw_transmission_costs!$B:$B,$C625,raw_transmission_costs!$A:$A,K$615)","v":919.08},{"$f":"SUMIFS(raw_transmission_costs!$F:$F,raw_transmission_costs!$B:$B,$C625,raw_transmission_costs!$A:$A,L$615)","v":919.08},{"$f":"SUMIFS(raw_transmission_costs!$F:$F,raw_transmission_costs!$B:$B,$C625,raw_transmission_costs!$A:$A,M$615)","v":919.08},{"$f":"SUMIFS(raw_transmission_costs!$F:$F,raw_transmission_costs!$B:$B,$C625,raw_transmission_costs!$A:$A,N$615)","v":919.08},{"$f":"SUMIFS(raw_transmission_costs!$F:$F,raw_transmission_costs!$B:$B,$C625,raw_transmission_costs!$A:$A,O$615)","v":0},{"$f":"SUMIFS(raw_transmission_costs!$F:$F,raw_transmission_costs!$B:$B,$C625,raw_transmission_costs!$A:$A,P$615)","v":919.08},{"$f":"SUMIFS(raw_transmission_costs!$F:$F,raw_transmission_costs!$B:$B,$C625,raw_transmission_costs!$A:$A,Q$615)","v":0},{"$f":"SUMIFS(raw_transmission_costs!$F:$F,raw_transmission_costs!$B:$B,$C625,raw_transmission_costs!$A:$A,R$615)","v":0},{"$f":"SUMIFS(raw_transmission_costs!$F:$F,raw_transmission_costs!$B:$B,$C625,raw_transmission_costs!$A:$A,S$615)","v":0},{"$f":"SUMIFS(raw_transmission_costs!$F:$F,raw_transmission_costs!$B:$B,$C625,raw_transmission_costs!$A:$A,T$615)","v":919.08},{"$f":"SUMIFS(raw_transmission_costs!$F:$F,raw_transmission_costs!$B:$B,$C625,raw_transmission_costs!$A:$A,U$615)","v":0},{"$f":"SUMIFS(raw_transmission_costs!$F:$F,raw_transmission_costs!$B:$B,$C625,raw_transmission_costs!$A:$A,V$615)","v":0},{"$f":"SUMIFS(raw_transmission_costs!$F:$F,raw_transmission_costs!$B:$B,$C625,raw_transmission_costs!$A:$A,W$615)","v":0},{"$f":"SUMIFS(raw_transmission_costs!$F:$F,raw_transmission_costs!$B:$B,$C625,raw_transmission_costs!$A:$A,X$615)","v":0},{"$f":"SUMIFS(raw_transmission_costs!$F:$F,raw_transmission_costs!$B:$B,$C625,raw_transmission_costs!$A:$A,Y$615)","v":0},{"$f":"SUMIFS(raw_transmission_costs!$F:$F,raw_transmission_costs!$B:$B,$C625,raw_transmission_costs!$A:$A,Z$615)","v":0},{"$f":"SUMIFS(raw_transmission_costs!$F:$F,raw_transmission_costs!$B:$B,$C625,raw_transmission_costs!$A:$A,AA$615)","v":0},{"$f":"SUMIFS(raw_transmission_costs!$F:$F,raw_transmission_costs!$B:$B,$C625,raw_transmission_costs!$A:$A,AB$615)","v":0},{"$f":"SUMIFS(raw_transmission_costs!$F:$F,raw_transmission_costs!$B:$B,$C625,raw_transmission_costs!$A:$A,AC$615)","v":0},{"$f":"SUMIFS(raw_transmission_costs!$F:$F,raw_transmission_costs!$B:$B,$C625,raw_transmission_costs!$A:$A,AD$615)","v":0},{"$f":"SUMIFS(raw_transmission_costs!$F:$F,raw_transmission_costs!$B:$B,$C625,raw_transmission_costs!$A:$A,AE$615)","v":0},{"$f":"SUMIFS(raw_transmission_costs!$F:$F,raw_transmission_costs!$B:$B,$C625,raw_transmission_costs!$A:$A,AF$615)","v":0},{"$f":"SUMIFS(raw_transmission_costs!$F:$F,raw_transmission_costs!$B:$B,$C625,raw_transmission_costs!$A:$A,AG$615)","v":0},{"$f":"SUMIFS(raw_transmission_costs!$F:$F,raw_transmission_costs!$B:$B,$C625,raw_transmission_costs!$A:$A,AH$615)","v":0},{"$f":"SUMIFS(raw_transmission_costs!$F:$F,raw_transmission_costs!$B:$B,$C625,raw_transmission_costs!$A:$A,AI$615)","v":919.08},{"$f":"SUMIFS(raw_transmission_costs!$F:$F,raw_transmission_costs!$B:$B,$C625,raw_transmission_costs!$A:$A,AJ$615)","v":0},{"$f":"SUMIFS(raw_transmission_costs!$F:$F,raw_transmission_costs!$B:$B,$C625,raw_transmission_costs!$A:$A,AK$615)","v":0},{"$f":"SUMIFS(raw_transmission_costs!$F:$F,raw_transmission_costs!$B:$B,$C625,raw_transmission_costs!$A:$A,AL$615)","v":0},{"$f":"SUMIFS(raw_transmission_costs!$F:$F,raw_transmission_costs!$B:$B,$C625,raw_transmission_costs!$A:$A,AM$615)","v":0},{"$f":"SUMIFS(raw_transmission_costs!$F:$F,raw_transmission_costs!$B:$B,$C625,raw_transmission_costs!$A:$A,AN$615)","v":0}]
[null,null,"Riverside_Palm_Springs","MW",{"$f":"SUMIFS(raw_transmission_costs!$F:$F,raw_transmission_costs!$B:$B,$C626,raw_transmission_costs!$A:$A,E$615)","v":0},{"$f":"SUMIFS(raw_transmission_costs!$F:$F,raw_transmission_costs!$B:$B,$C626,raw_transmission_costs!$A:$A,F$615)","v":0},{"$f":"SUMIFS(raw_transmission_costs!$F:$F,raw_transmission_costs!$B:$B,$C626,raw_transmission_costs!$A:$A,G$615)","v":0},{"$f":"SUMIFS(raw_transmission_costs!$F:$F,raw_transmission_costs!$B:$B,$C626,raw_transmission_costs!$A:$A,H$615)","v":0},{"$f":"SUMIFS(raw_transmission_costs!$F:$F,raw_transmission_costs!$B:$B,$C626,raw_transmission_costs!$A:$A,I$615)","v":0},{"$f":"SUMIFS(raw_transmission_costs!$F:$F,raw_transmission_costs!$B:$B,$C626,raw_transmission_costs!$A:$A,J$615)","v":2665},{"$f":"SUMIFS(raw_transmission_costs!$F:$F,raw_transmission_costs!$B:$B,$C626,raw_transmission_costs!$A:$A,K$615)","v":2665},{"$f":"SUMIFS(raw_transmission_costs!$F:$F,raw_transmission_costs!$B:$B,$C626,raw_transmission_costs!$A:$A,L$615)","v":2665},{"$f":"SUMIFS(raw_transmission_costs!$F:$F,raw_transmission_costs!$B:$B,$C626,raw_transmission_costs!$A:$A,M$615)","v":2665},{"$f":"SUMIFS(raw_transmission_costs!$F:$F,raw_transmission_costs!$B:$B,$C626,raw_transmission_costs!$A:$A,N$615)","v":2665},{"$f":"SUMIFS(raw_transmission_costs!$F:$F,raw_transmission_costs!$B:$B,$C626,raw_transmission_costs!$A:$A,O$615)","v":0},{"$f":"SUMIFS(raw_transmission_costs!$F:$F,raw_transmission_costs!$B:$B,$C626,raw_transmission_costs!$A:$A,P$615)","v":2665},{"$f":"SUMIFS(raw_transmission_costs!$F:$F,raw_transmission_costs!$B:$B,$C626,raw_transmission_costs!$A:$A,Q$615)","v":0},{"$f":"SUMIFS(raw_transmission_costs!$F:$F,raw_transmission_costs!$B:$B,$C626,raw_transmission_costs!$A:$A,R$615)","v":0},{"$f":"SUMIFS(raw_transmission_costs!$F:$F,raw_transmission_costs!$B:$B,$C626,raw_transmission_costs!$A:$A,S$615)","v":0},{"$f":"SUMIFS(raw_transmission_costs!$F:$F,raw_transmission_costs!$B:$B,$C626,raw_transmission_costs!$A:$A,T$615)","v":2665},{"$f":"SUMIFS(raw_transmission_costs!$F:$F,raw_transmission_costs!$B:$B,$C626,raw_transmission_costs!$A:$A,U$615)","v":0},{"$f":"SUMIFS(raw_transmission_costs!$F:$F,raw_transmission_costs!$B:$B,$C626,raw_transmission_costs!$A:$A,V$615)","v":0},{"$f":"SUMIFS(raw_transmission_costs!$F:$F,raw_transmission_costs!$B:$B,$C626,raw_transmission_costs!$A:$A,W$615)","v":0},{"$f":"SUMIFS(raw_transmission_costs!$F:$F,raw_transmission_costs!$B:$B,$C626,raw_transmission_costs!$A:$A,X$615)","v":0},{"$f":"SUMIFS(raw_transmission_costs!$F:$F,raw_transmission_costs!$B:$B,$C626,raw_transmission_costs!$A:$A,Y$615)","v":0},{"$f":"SUMIFS(raw_transmission_costs!$F:$F,raw_transmission_costs!$B:$B,$C626,raw_transmission_costs!$A:$A,Z$615)","v":0},{"$f":"SUMIFS(raw_transmission_costs!$F:$F,raw_transmission_costs!$B:$B,$C626,raw_transmission_costs!$A:$A,AA$615)","v":0},{"$f":"SUMIFS(raw_transmission_costs!$F:$F,raw_transmission_costs!$B:$B,$C626,raw_transmission_costs!$A:$A,AB$615)","v":0},{"$f":"SUMIFS(raw_transmission_costs!$F:$F,raw_transmission_costs!$B:$B,$C626,raw_transmission_costs!$A:$A,AC$615)","v":0},{"$f":"SUMIFS(raw_transmission_costs!$F:$F,raw_transmission_costs!$B:$B,$C626,raw_transmission_costs!$A:$A,AD$615)","v":0},{"$f":"SUMIFS(raw_transmission_costs!$F:$F,raw_transmission_costs!$B:$B,$C626,raw_transmission_costs!$A:$A,AE$615)","v":0},{"$f":"SUMIFS(raw_transmission_costs!$F:$F,raw_transmission_costs!$B:$B,$C626,raw_transmission_costs!$A:$A,AF$615)","v":0},{"$f":"SUMIFS(raw_transmission_costs!$F:$F,raw_transmission_costs!$B:$B,$C626,raw_transmission_costs!$A:$A,AG$615)","v":0},{"$f":"SUMIFS(raw_transmission_costs!$F:$F,raw_transmission_costs!$B:$B,$C626,raw_transmission_costs!$A:$A,AH$615)","v":0},{"$f":"SUMIFS(raw_transmission_costs!$F:$F,raw_transmission_costs!$B:$B,$C626,raw_transmission_costs!$A:$A,AI$615)","v":2665},{"$f":"SUMIFS(raw_transmission_costs!$F:$F,raw_transmission_costs!$B:$B,$C626,raw_transmission_costs!$A:$A,AJ$615)","v":0},{"$f":"SUMIFS(raw_transmission_costs!$F:$F,raw_transmission_costs!$B:$B,$C626,raw_transmission_costs!$A:$A,AK$615)","v":0},{"$f":"SUMIFS(raw_transmission_costs!$F:$F,raw_transmission_costs!$B:$B,$C626,raw_transmission_costs!$A:$A,AL$615)","v":0},{"$f":"SUMIFS(raw_transmission_costs!$F:$F,raw_transmission_costs!$B:$B,$C626,raw_transmission_costs!$A:$A,AM$615)","v":0},{"$f":"SUMIFS(raw_transmission_costs!$F:$F,raw_transmission_costs!$B:$B,$C626,raw_transmission_costs!$A:$A,AN$615)","v":0}]
[null,null,"SCADSNV","MW",{"$f":"SUMIFS(raw_transmission_costs!$F:$F,raw_transmission_costs!$B:$B,$C627,raw_transmission_costs!$A:$A,E$615)","v":0},{"$f":"SUMIFS(raw_transmission_costs!$F:$F,raw_transmission_costs!$B:$B,$C627,raw_transmission_costs!$A:$A,F$615)","v":0},{"$f":"SUMIFS(raw_transmission_costs!$F:$F,raw_transmission_costs!$B:$B,$C627,raw_transmission_costs!$A:$A,G$615)","v":0},{"$f":"SUMIFS(raw_transmission_costs!$F:$F,raw_transmission_costs!$B:$B,$C627,raw_transmission_costs!$A:$A,H$615)","v":0},{"$f":"SUMIFS(raw_transmission_costs!$F:$F,raw_transmission_costs!$B:$B,$C627,raw_transmission_costs!$A:$A,I$615)","v":0},{"$f":"SUMIFS(raw_transmission_costs!$F:$F,raw_transmission_costs!$B:$B,$C627,raw_transmission_costs!$A:$A,J$615)","v":2434.08},{"$f":"SUMIFS(raw_transmission_costs!$F:$F,raw_transmission_costs!$B:$B,$C627,raw_transmission_costs!$A:$A,K$615)","v":2434.08},{"$f":"SUMIFS(raw_transmission_costs!$F:$F,raw_transmission_costs!$B:$B,$C627,raw_transmission_costs!$A:$A,L$615)","v":2434.08},{"$f":"SUMIFS(raw_transmission_costs!$F:$F,raw_transmission_costs!$B:$B,$C627,raw_transmission_costs!$A:$A,M$615)","v":2434.08},{"$f":"SUMIFS(raw_transmission_costs!$F:$F,raw_transmission_costs!$B:$B,$C627,raw_transmission_costs!$A:$A,N$615)","v":2434.08},{"$f":"SUMIFS(raw_transmission_costs!$F:$F,raw_transmission_costs!$B:$B,$C627,raw_transmission_costs!$A:$A,O$615)","v":0},{"$f":"SUMIFS(raw_transmission_costs!$F:$F,raw_transmission_costs!$B:$B,$C627,raw_transmission_costs!$A:$A,P$615)","v":2434.08},{"$f":"SUMIFS(raw_transmission_costs!$F:$F,raw_transmission_costs!$B:$B,$C627,raw_transmission_costs!$A:$A,Q$615)","v":0},{"$f":"SUMIFS(raw_transmission_costs!$F:$F,raw_transmission_costs!$B:$B,$C627,raw_transmission_costs!$A:$A,R$615)","v":0},{"$f":"SUMIFS(raw_transmission_costs!$F:$F,raw_transmission_costs!$B:$B,$C627,raw_transmission_costs!$A:$A,S$615)","v":0},{"$f":"SUMIFS(raw_transmission_costs!$F:$F,raw_transmission_costs!$B:$B,$C627,raw_transmission_costs!$A:$A,T$615)","v":2434.08},{"$f":"SUMIFS(raw_transmission_costs!$F:$F,raw_transmission_costs!$B:$B,$C627,raw_transmission_costs!$A:$A,U$615)","v":0},{"$f":"SUMIFS(raw_transmission_costs!$F:$F,raw_transmission_costs!$B:$B,$C627,raw_transmission_costs!$A:$A,V$615)","v":0},{"$f":"SUMIFS(raw_transmission_costs!$F:$F,raw_transmission_costs!$B:$B,$C627,raw_transmission_costs!$A:$A,W$615)","v":0},{"$f":"SUMIFS(raw_transmission_costs!$F:$F,raw_transmission_costs!$B:$B,$C627,raw_transmission_costs!$A:$A,X$615)","v":0},{"$f":"SUMIFS(raw_transmission_costs!$F:$F,raw_transmission_costs!$B:$B,$C627,raw_transmission_costs!$A:$A,Y$615)","v":0},{"$f":"SUMIFS(raw_transmission_costs!$F:$F,raw_transmission_costs!$B:$B,$C627,raw_transmission_costs!$A:$A,Z$615)","v":0},{"$f":"SUMIFS(raw_transmission_costs!$F:$F,raw_transmission_costs!$B:$B,$C627,raw_transmission_costs!$A:$A,AA$615)","v":0},{"$f":"SUMIFS(raw_transmission_costs!$F:$F,raw_transmission_costs!$B:$B,$C627,raw_transmission_costs!$A:$A,AB$615)","v":0},{"$f":"SUMIFS(raw_transmission_costs!$F:$F,raw_transmission_costs!$B:$B,$C627,raw_transmission_costs!$A:$A,AC$615)","v":0},{"$f":"SUMIFS(raw_transmission_costs!$F:$F,raw_transmission_costs!$B:$B,$C627,raw_transmission_costs!$A:$A,AD$615)","v":0},{"$f":"SUMIFS(raw_transmission_costs!$F:$F,raw_transmission_costs!$B:$B,$C627,raw_transmission_costs!$A:$A,AE$615)","v":0},{"$f":"SUMIFS(raw_transmission_costs!$F:$F,raw_transmission_costs!$B:$B,$C627,raw_transmission_costs!$A:$A,AF$615)","v":0},{"$f":"SUMIFS(raw_transmission_costs!$F:$F,raw_transmission_costs!$B:$B,$C627,raw_transmission_costs!$A:$A,AG$615)","v":0},{"$f":"SUMIFS(raw_transmission_costs!$F:$F,raw_transmission_costs!$B:$B,$C627,raw_transmission_costs!$A:$A,AH$615)","v":0},{"$f":"SUMIFS(raw_transmission_costs!$F:$F,raw_transmission_costs!$B:$B,$C627,raw_transmission_costs!$A:$A,AI$615)","v":2434.08},{"$f":"SUMIFS(raw_transmission_costs!$F:$F,raw_transmission_costs!$B:$B,$C627,raw_transmission_costs!$A:$A,AJ$615)","v":0},{"$f":"SUMIFS(raw_transmission_costs!$F:$F,raw_transmission_costs!$B:$B,$C627,raw_transmission_costs!$A:$A,AK$615)","v":0},{"$f":"SUMIFS(raw_transmission_costs!$F:$F,raw_transmission_costs!$B:$B,$C627,raw_transmission_costs!$A:$A,AL$615)","v":0},{"$f":"SUMIFS(raw_transmission_costs!$F:$F,raw_transmission_costs!$B:$B,$C627,raw_transmission_costs!$A:$A,AM$615)","v":0},{"$f":"SUMIFS(raw_transmission_costs!$F:$F,raw_transmission_costs!$B:$B,$C627,raw_transmission_costs!$A:$A,AN$615)","v":0}]
[null,null,"Kern_Greater_Carrizo","MW",{"$f":"SUMIFS(raw_transmission_costs!$F:$F,raw_transmission_costs!$B:$B,$C628,raw_transmission_costs!$A:$A,E$615)","v":0},{"$f":"SUMIFS(raw_transmission_costs!$F:$F,raw_transmission_costs!$B:$B,$C628,raw_transmission_costs!$A:$A,F$615)","v":0},{"$f":"SUMIFS(raw_transmission_costs!$F:$F,raw_transmission_costs!$B:$B,$C628,raw_transmission_costs!$A:$A,G$615)","v":0},{"$f":"SUMIFS(raw_transmission_costs!$F:$F,raw_transmission_costs!$B:$B,$C628,raw_transmission_costs!$A:$A,H$615)","v":0},{"$f":"SUMIFS(raw_transmission_costs!$F:$F,raw_transmission_costs!$B:$B,$C628,raw_transmission_costs!$A:$A,I$615)","v":0},{"$f":"SUMIFS(raw_transmission_costs!$F:$F,raw_transmission_costs!$B:$B,$C628,raw_transmission_costs!$A:$A,J$615)","v":784},{"$f":"SUMIFS(raw_transmission_costs!$F:$F,raw_transmission_costs!$B:$B,$C628,raw_transmission_costs!$A:$A,K$615)","v":784},{"$f":"SUMIFS(raw_transmission_costs!$F:$F,raw_transmission_costs!$B:$B,$C628,raw_transmission_costs!$A:$A,L$615)","v":784},{"$f":"SUMIFS(raw_transmission_costs!$F:$F,raw_transmission_costs!$B:$B,$C628,raw_transmission_costs!$A:$A,M$615)","v":784},{"$f":"SUMIFS(raw_transmission_costs!$F:$F,raw_transmission_costs!$B:$B,$C628,raw_transmission_costs!$A:$A,N$615)","v":784},{"$f":"SUMIFS(raw_transmission_costs!$F:$F,raw_transmission_costs!$B:$B,$C628,raw_transmission_costs!$A:$A,O$615)","v":0},{"$f":"SUMIFS(raw_transmission_costs!$F:$F,raw_transmission_costs!$B:$B,$C628,raw_transmission_costs!$A:$A,P$615)","v":784},{"$f":"SUMIFS(raw_transmission_costs!$F:$F,raw_transmission_costs!$B:$B,$C628,raw_transmission_costs!$A:$A,Q$615)","v":0},{"$f":"SUMIFS(raw_transmission_costs!$F:$F,raw_transmission_costs!$B:$B,$C628,raw_transmission_costs!$A:$A,R$615)","v":0},{"$f":"SUMIFS(raw_transmission_costs!$F:$F,raw_transmission_costs!$B:$B,$C628,raw_transmission_costs!$A:$A,S$615)","v":0},{"$f":"SUMIFS(raw_transmission_costs!$F:$F,raw_transmission_costs!$B:$B,$C628,raw_transmission_costs!$A:$A,T$615)","v":784},{"$f":"SUMIFS(raw_transmission_costs!$F:$F,raw_transmission_costs!$B:$B,$C628,raw_transmission_costs!$A:$A,U$615)","v":0},{"$f":"SUMIFS(raw_transmission_costs!$F:$F,raw_transmission_costs!$B:$B,$C628,raw_transmission_costs!$A:$A,V$615)","v":0},{"$f":"SUMIFS(raw_transmission_costs!$F:$F,raw_transmission_costs!$B:$B,$C628,raw_transmission_costs!$A:$A,W$615)","v":0},{"$f":"SUMIFS(raw_transmission_costs!$F:$F,raw_transmission_costs!$B:$B,$C628,raw_transmission_costs!$A:$A,X$615)","v":0},{"$f":"SUMIFS(raw_transmission_costs!$F:$F,raw_transmission_costs!$B:$B,$C628,raw_transmission_costs!$A:$A,Y$615)","v":0},{"$f":"SUMIFS(raw_transmission_costs!$F:$F,raw_transmission_costs!$B:$B,$C628,raw_transmission_costs!$A:$A,Z$615)","v":0},{"$f":"SUMIFS(raw_transmission_costs!$F:$F,raw_transmission_costs!$B:$B,$C628,raw_transmission_costs!$A:$A,AA$615)","v":0},{"$f":"SUMIFS(raw_transmission_costs!$F:$F,raw_transmission_costs!$B:$B,$C628,raw_transmission_costs!$A:$A,AB$615)","v":0},{"$f":"SUMIFS(raw_transmission_costs!$F:$F,raw_transmission_costs!$B:$B,$C628,raw_transmission_costs!$A:$A,AC$615)","v":0},{"$f":"SUMIFS(raw_transmission_costs!$F:$F,raw_transmission_costs!$B:$B,$C628,raw_transmission_costs!$A:$A,AD$615)","v":0},{"$f":"SUMIFS(raw_transmission_costs!$F:$F,raw_transmission_costs!$B:$B,$C628,raw_transmission_costs!$A:$A,AE$615)","v":0},{"$f":"SUMIFS(raw_transmission_costs!$F:$F,raw_transmission_costs!$B:$B,$C628,raw_transmission_costs!$A:$A,AF$615)","v":0},{"$f":"SUMIFS(raw_transmission_costs!$F:$F,raw_transmission_costs!$B:$B,$C628,raw_transmission_costs!$A:$A,AG$615)","v":0},{"$f":"SUMIFS(raw_transmission_costs!$F:$F,raw_transmission_costs!$B:$B,$C628,raw_transmission_costs!$A:$A,AH$615)","v":0},{"$f":"SUMIFS(raw_transmission_costs!$F:$F,raw_transmission_costs!$B:$B,$C628,raw_transmission_costs!$A:$A,AI$615)","v":784},{"$f":"SUMIFS(raw_transmission_costs!$F:$F,raw_transmission_costs!$B:$B,$C628,raw_transmission_costs!$A:$A,AJ$615)","v":0},{"$f":"SUMIFS(raw_transmission_costs!$F:$F,raw_transmission_costs!$B:$B,$C628,raw_transmission_costs!$A:$A,AK$615)","v":0},{"$f":"SUMIFS(raw_transmission_costs!$F:$F,raw_transmission_costs!$B:$B,$C628,raw_transmission_costs!$A:$A,AL$615)","v":0},{"$f":"SUMIFS(raw_transmission_costs!$F:$F,raw_transmission_costs!$B:$B,$C628,raw_transmission_costs!$A:$A,AM$615)","v":0},{"$f":"SUMIFS(raw_transmission_costs!$F:$F,raw_transmission_costs!$B:$B,$C628,raw_transmission_costs!$A:$A,AN$615)","v":0}]
[null,null,"Carrizo","MW",{"$f":"SUMIFS(raw_transmission_costs!$F:$F,raw_transmission_costs!$B:$B,$C629,raw_transmission_costs!$A:$A,E$615)","v":0},{"$f":"SUMIFS(raw_transmission_costs!$F:$F,raw_transmission_costs!$B:$B,$C629,raw_transmission_costs!$A:$A,F$615)","v":0},{"$f":"SUMIFS(raw_transmission_costs!$F:$F,raw_transmission_costs!$B:$B,$C629,raw_transmission_costs!$A:$A,G$615)","v":0},{"$f":"SUMIFS(raw_transmission_costs!$F:$F,raw_transmission_costs!$B:$B,$C629,raw_transmission_costs!$A:$A,H$615)","v":0},{"$f":"SUMIFS(raw_transmission_costs!$F:$F,raw_transmission_costs!$B:$B,$C629,raw_transmission_costs!$A:$A,I$615)","v":0},{"$f":"SUMIFS(raw_transmission_costs!$F:$F,raw_transmission_costs!$B:$B,$C629,raw_transmission_costs!$A:$A,J$615)","v":187},{"$f":"SUMIFS(raw_transmission_costs!$F:$F,raw_transmission_costs!$B:$B,$C629,raw_transmission_costs!$A:$A,K$615)","v":187},{"$f":"SUMIFS(raw_transmission_costs!$F:$F,raw_transmission_costs!$B:$B,$C629,raw_transmission_costs!$A:$A,L$615)","v":187},{"$f":"SUMIFS(raw_transmission_costs!$F:$F,raw_transmission_costs!$B:$B,$C629,raw_transmission_costs!$A:$A,M$615)","v":187},{"$f":"SUMIFS(raw_transmission_costs!$F:$F,raw_transmission_costs!$B:$B,$C629,raw_transmission_costs!$A:$A,N$615)","v":187},{"$f":"SUMIFS(raw_transmission_costs!$F:$F,raw_transmission_costs!$B:$B,$C629,raw_transmission_costs!$A:$A,O$615)","v":0},{"$f":"SUMIFS(raw_transmission_costs!$F:$F,raw_transmission_costs!$B:$B,$C629,raw_transmission_costs!$A:$A,P$615)","v":187},{"$f":"SUMIFS(raw_transmission_costs!$F:$F,raw_transmission_costs!$B:$B,$C629,raw_transmission_costs!$A:$A,Q$615)","v":0},{"$f":"SUMIFS(raw_transmission_costs!$F:$F,raw_transmission_costs!$B:$B,$C629,raw_transmission_costs!$A:$A,R$615)","v":0},{"$f":"SUMIFS(raw_transmission_costs!$F:$F,raw_transmission_costs!$B:$B,$C629,raw_transmission_costs!$A:$A,S$615)","v":0},{"$f":"SUMIFS(raw_transmission_costs!$F:$F,raw_transmission_costs!$B:$B,$C629,raw_transmission_costs!$A:$A,T$615)","v":187},{"$f":"SUMIFS(raw_transmission_costs!$F:$F,raw_transmission_costs!$B:$B,$C629,raw_transmission_costs!$A:$A,U$615)","v":0},{"$f":"SUMIFS(raw_transmission_costs!$F:$F,raw_transmission_costs!$B:$B,$C629,raw_transmission_costs!$A:$A,V$615)","v":0},{"$f":"SUMIFS(raw_transmission_costs!$F:$F,raw_transmission_costs!$B:$B,$C629,raw_transmission_costs!$A:$A,W$615)","v":0},{"$f":"SUMIFS(raw_transmission_costs!$F:$F,raw_transmission_costs!$B:$B,$C629,raw_transmission_costs!$A:$A,X$615)","v":0},{"$f":"SUMIFS(raw_transmission_costs!$F:$F,raw_transmission_costs!$B:$B,$C629,raw_transmission_costs!$A:$A,Y$615)","v":0},{"$f":"SUMIFS(raw_transmission_costs!$F:$F,raw_transmission_costs!$B:$B,$C629,raw_transmission_costs!$A:$A,Z$615)","v":0},{"$f":"SUMIFS(raw_transmission_costs!$F:$F,raw_transmission_costs!$B:$B,$C629,raw_transmission_costs!$A:$A,AA$615)","v":0},{"$f":"SUMIFS(raw_transmission_costs!$F:$F,raw_transmission_costs!$B:$B,$C629,raw_transmission_costs!$A:$A,AB$615)","v":0},{"$f":"SUMIFS(raw_transmission_costs!$F:$F,raw_transmission_costs!$B:$B,$C629,raw_transmission_costs!$A:$A,AC$615)","v":0},{"$f":"SUMIFS(raw_transmission_costs!$F:$F,raw_transmission_costs!$B:$B,$C629,raw_transmission_costs!$A:$A,AD$615)","v":0},{"$f":"SUMIFS(raw_transmission_costs!$F:$F,raw_transmission_costs!$B:$B,$C629,raw_transmission_costs!$A:$A,AE$615)","v":0},{"$f":"SUMIFS(raw_transmission_costs!$F:$F,raw_transmission_costs!$B:$B,$C629,raw_transmission_costs!$A:$A,AF$615)","v":0},{"$f":"SUMIFS(raw_transmission_costs!$F:$F,raw_transmission_costs!$B:$B,$C629,raw_transmission_costs!$A:$A,AG$615)","v":0},{"$f":"SUMIFS(raw_transmission_costs!$F:$F,raw_transmission_costs!$B:$B,$C629,raw_transmission_costs!$A:$A,AH$615)","v":0},{"$f":"SUMIFS(raw_transmission_costs!$F:$F,raw_transmission_costs!$B:$B,$C629,raw_transmission_costs!$A:$A,AI$615)","v":187},{"$f":"SUMIFS(raw_transmission_costs!$F:$F,raw_transmission_costs!$B:$B,$C629,raw_transmission_costs!$A:$A,AJ$615)","v":0},{"$f":"SUMIFS(raw_transmission_costs!$F:$F,raw_transmission_costs!$B:$B,$C629,raw_transmission_costs!$A:$A,AK$615)","v":0},{"$f":"SUMIFS(raw_transmission_costs!$F:$F,raw_transmission_costs!$B:$B,$C629,raw_transmission_costs!$A:$A,AL$615)","v":0},{"$f":"SUMIFS(raw_transmission_costs!$F:$F,raw_transmission_costs!$B:$B,$C629,raw_transmission_costs!$A:$A,AM$615)","v":0},{"$f":"SUMIFS(raw_transmission_costs!$F:$F,raw_transmission_costs!$B:$B,$C629,raw_transmission_costs!$A:$A,AN$615)","v":0}]
[null,null,"Central_Valley_North_Los_Banos","MW",{"$f":"SUMIFS(raw_transmission_costs!$F:$F,raw_transmission_costs!$B:$B,$C630,raw_transmission_costs!$A:$A,E$615)","v":0},{"$f":"SUMIFS(raw_transmission_costs!$F:$F,raw_transmission_costs!$B:$B,$C630,raw_transmission_costs!$A:$A,F$615)","v":0},{"$f":"SUMIFS(raw_transmission_costs!$F:$F,raw_transmission_costs!$B:$B,$C630,raw_transmission_costs!$A:$A,G$615)","v":0},{"$f":"SUMIFS(raw_transmission_costs!$F:$F,raw_transmission_costs!$B:$B,$C630,raw_transmission_costs!$A:$A,H$615)","v":0},{"$f":"SUMIFS(raw_transmission_costs!$F:$F,raw_transmission_costs!$B:$B,$C630,raw_transmission_costs!$A:$A,I$615)","v":0},{"$f":"SUMIFS(raw_transmission_costs!$F:$F,raw_transmission_costs!$B:$B,$C630,raw_transmission_costs!$A:$A,J$615)","v":790.94},{"$f":"SUMIFS(raw_transmission_costs!$F:$F,raw_transmission_costs!$B:$B,$C630,raw_transmission_costs!$A:$A,K$615)","v":790.94},{"$f":"SUMIFS(raw_transmission_costs!$F:$F,raw_transmission_costs!$B:$B,$C630,raw_transmission_costs!$A:$A,L$615)","v":790.94},{"$f":"SUMIFS(raw_transmission_costs!$F:$F,raw_transmission_costs!$B:$B,$C630,raw_transmission_costs!$A:$A,M$615)","v":790.94},{"$f":"SUMIFS(raw_transmission_costs!$F:$F,raw_transmission_costs!$B:$B,$C630,raw_transmission_costs!$A:$A,N$615)","v":790.94},{"$f":"SUMIFS(raw_transmission_costs!$F:$F,raw_transmission_costs!$B:$B,$C630,raw_transmission_costs!$A:$A,O$615)","v":0},{"$f":"SUMIFS(raw_transmission_costs!$F:$F,raw_transmission_costs!$B:$B,$C630,raw_transmission_costs!$A:$A,P$615)","v":790.94},{"$f":"SUMIFS(raw_transmission_costs!$F:$F,raw_transmission_costs!$B:$B,$C630,raw_transmission_costs!$A:$A,Q$615)","v":0},{"$f":"SUMIFS(raw_transmission_costs!$F:$F,raw_transmission_costs!$B:$B,$C630,raw_transmission_costs!$A:$A,R$615)","v":0},{"$f":"SUMIFS(raw_transmission_costs!$F:$F,raw_transmission_costs!$B:$B,$C630,raw_transmission_costs!$A:$A,S$615)","v":0},{"$f":"SUMIFS(raw_transmission_costs!$F:$F,raw_transmission_costs!$B:$B,$C630,raw_transmission_costs!$A:$A,T$615)","v":790.94},{"$f":"SUMIFS(raw_transmission_costs!$F:$F,raw_transmission_costs!$B:$B,$C630,raw_transmission_costs!$A:$A,U$615)","v":0},{"$f":"SUMIFS(raw_transmission_costs!$F:$F,raw_transmission_costs!$B:$B,$C630,raw_transmission_costs!$A:$A,V$615)","v":0},{"$f":"SUMIFS(raw_transmission_costs!$F:$F,raw_transmission_costs!$B:$B,$C630,raw_transmission_costs!$A:$A,W$615)","v":0},{"$f":"SUMIFS(raw_transmission_costs!$F:$F,raw_transmission_costs!$B:$B,$C630,raw_transmission_costs!$A:$A,X$615)","v":0},{"$f":"SUMIFS(raw_transmission_costs!$F:$F,raw_transmission_costs!$B:$B,$C630,raw_transmission_costs!$A:$A,Y$615)","v":0},{"$f":"SUMIFS(raw_transmission_costs!$F:$F,raw_transmission_costs!$B:$B,$C630,raw_transmission_costs!$A:$A,Z$615)","v":0},{"$f":"SUMIFS(raw_transmission_costs!$F:$F,raw_transmission_costs!$B:$B,$C630,raw_transmission_costs!$A:$A,AA$615)","v":0},{"$f":"SUMIFS(raw_transmission_costs!$F:$F,raw_transmission_costs!$B:$B,$C630,raw_transmission_costs!$A:$A,AB$615)","v":0},{"$f":"SUMIFS(raw_transmission_costs!$F:$F,raw_transmission_costs!$B:$B,$C630,raw_transmission_costs!$A:$A,AC$615)","v":0},{"$f":"SUMIFS(raw_transmission_costs!$F:$F,raw_transmission_costs!$B:$B,$C630,raw_transmission_costs!$A:$A,AD$615)","v":0},{"$f":"SUMIFS(raw_transmission_costs!$F:$F,raw_transmission_costs!$B:$B,$C630,raw_transmission_costs!$A:$A,AE$615)","v":0},{"$f":"SUMIFS(raw_transmission_costs!$F:$F,raw_transmission_costs!$B:$B,$C630,raw_transmission_costs!$A:$A,AF$615)","v":0},{"$f":"SUMIFS(raw_transmission_costs!$F:$F,raw_transmission_costs!$B:$B,$C630,raw_transmission_costs!$A:$A,AG$615)","v":0},{"$f":"SUMIFS(raw_transmission_costs!$F:$F,raw_transmission_costs!$B:$B,$C630,raw_transmission_costs!$A:$A,AH$615)","v":0},{"$f":"SUMIFS(raw_transmission_costs!$F:$F,raw_transmission_costs!$B:$B,$C630,raw_transmission_costs!$A:$A,AI$615)","v":790.94},{"$f":"SUMIFS(raw_transmission_costs!$F:$F,raw_transmission_costs!$B:$B,$C630,raw_transmission_costs!$A:$A,AJ$615)","v":0},{"$f":"SUMIFS(raw_transmission_costs!$F:$F,raw_transmission_costs!$B:$B,$C630,raw_transmission_costs!$A:$A,AK$615)","v":0},{"$f":"SUMIFS(raw_transmission_costs!$F:$F,raw_transmission_costs!$B:$B,$C630,raw_transmission_costs!$A:$A,AL$615)","v":0},{"$f":"SUMIFS(raw_transmission_costs!$F:$F,raw_transmission_costs!$B:$B,$C630,raw_transmission_costs!$A:$A,AM$615)","v":0},{"$f":"SUMIFS(raw_transmission_costs!$F:$F,raw_transmission_costs!$B:$B,$C630,raw_transmission_costs!$A:$A,AN$615)","v":0}]
[null,null,"SPGE","MW",{"$f":"SUMIFS(raw_transmission_costs!$F:$F,raw_transmission_costs!$B:$B,$C631,raw_transmission_costs!$A:$A,E$615)","v":0},{"$f":"SUMIFS(raw_transmission_costs!$F:$F,raw_transmission_costs!$B:$B,$C631,raw_transmission_costs!$A:$A,F$615)","v":0},{"$f":"SUMIFS(raw_transmission_costs!$F:$F,raw_transmission_costs!$B:$B,$C631,raw_transmission_costs!$A:$A,G$615)","v":0},{"$f":"SUMIFS(raw_transmission_costs!$F:$F,raw_transmission_costs!$B:$B,$C631,raw_transmission_costs!$A:$A,H$615)","v":0},{"$f":"SUMIFS(raw_transmission_costs!$F:$F,raw_transmission_costs!$B:$B,$C631,raw_transmission_costs!$A:$A,I$615)","v":0},{"$f":"SUMIFS(raw_transmission_costs!$F:$F,raw_transmission_costs!$B:$B,$C631,raw_transmission_costs!$A:$A,J$615)","v":674.94},{"$f":"SUMIFS(raw_transmission_costs!$F:$F,raw_transmission_costs!$B:$B,$C631,raw_transmission_costs!$A:$A,K$615)","v":674.94},{"$f":"SUMIFS(raw_transmission_costs!$F:$F,raw_transmission_costs!$B:$B,$C631,raw_transmission_costs!$A:$A,L$615)","v":674.94},{"$f":"SUMIFS(raw_transmission_costs!$F:$F,raw_transmission_costs!$B:$B,$C631,raw_transmission_costs!$A:$A,M$615)","v":674.94},{"$f":"SUMIFS(raw_transmission_costs!$F:$F,raw_transmission_costs!$B:$B,$C631,raw_transmission_costs!$A:$A,N$615)","v":674.94},{"$f":"SUMIFS(raw_transmission_costs!$F:$F,raw_transmission_costs!$B:$B,$C631,raw_transmission_costs!$A:$A,O$615)","v":0},{"$f":"SUMIFS(raw_transmission_costs!$F:$F,raw_transmission_costs!$B:$B,$C631,raw_transmission_costs!$A:$A,P$615)","v":674.94},{"$f":"SUMIFS(raw_transmission_costs!$F:$F,raw_transmission_costs!$B:$B,$C631,raw_transmission_costs!$A:$A,Q$615)","v":0},{"$f":"SUMIFS(raw_transmission_costs!$F:$F,raw_transmission_costs!$B:$B,$C631,raw_transmission_costs!$A:$A,R$615)","v":0},{"$f":"SUMIFS(raw_transmission_costs!$F:$F,raw_transmission_costs!$B:$B,$C631,raw_transmission_costs!$A:$A,S$615)","v":0},{"$f":"SUMIFS(raw_transmission_costs!$F:$F,raw_transmission_costs!$B:$B,$C631,raw_transmission_costs!$A:$A,T$615)","v":674.94},{"$f":"SUMIFS(raw_transmission_costs!$F:$F,raw_transmission_costs!$B:$B,$C631,raw_transmission_costs!$A:$A,U$615)","v":0},{"$f":"SUMIFS(raw_transmission_costs!$F:$F,raw_transmission_costs!$B:$B,$C631,raw_transmission_costs!$A:$A,V$615)","v":0},{"$f":"SUMIFS(raw_transmission_costs!$F:$F,raw_transmission_costs!$B:$B,$C631,raw_transmission_costs!$A:$A,W$615)","v":0},{"$f":"SUMIFS(raw_transmission_costs!$F:$F,raw_transmission_costs!$B:$B,$C631,raw_transmission_costs!$A:$A,X$615)","v":0},{"$f":"SUMIFS(raw_transmission_costs!$F:$F,raw_transmission_costs!$B:$B,$C631,raw_transmission_costs!$A:$A,Y$615)","v":0},{"$f":"SUMIFS(raw_transmission_costs!$F:$F,raw_transmission_costs!$B:$B,$C631,raw_transmission_costs!$A:$A,Z$615)","v":0},{"$f":"SUMIFS(raw_transmission_costs!$F:$F,raw_transmission_costs!$B:$B,$C631,raw_transmission_costs!$A:$A,AA$615)","v":0},{"$f":"SUMIFS(raw_transmission_costs!$F:$F,raw_transmission_costs!$B:$B,$C631,raw_transmission_costs!$A:$A,AB$615)","v":0},{"$f":"SUMIFS(raw_transmission_costs!$F:$F,raw_transmission_costs!$B:$B,$C631,raw_transmission_costs!$A:$A,AC$615)","v":0},{"$f":"SUMIFS(raw_transmission_costs!$F:$F,raw_transmission_costs!$B:$B,$C631,raw_transmission_costs!$A:$A,AD$615)","v":0},{"$f":"SUMIFS(raw_transmission_costs!$F:$F,raw_transmission_costs!$B:$B,$C631,raw_transmission_costs!$A:$A,AE$615)","v":0},{"$f":"SUMIFS(raw_transmission_costs!$F:$F,raw_transmission_costs!$B:$B,$C631,raw_transmission_costs!$A:$A,AF$615)","v":0},{"$f":"SUMIFS(raw_transmission_costs!$F:$F,raw_transmission_costs!$B:$B,$C631,raw_transmission_costs!$A:$A,AG$615)","v":0},{"$f":"SUMIFS(raw_transmission_costs!$F:$F,raw_transmission_costs!$B:$B,$C631,raw_transmission_costs!$A:$A,AH$615)","v":0},{"$f":"SUMIFS(raw_transmission_costs!$F:$F,raw_transmission_costs!$B:$B,$C631,raw_transmission_costs!$A:$A,AI$615)","v":674.94},{"$f":"SUMIFS(raw_transmission_costs!$F:$F,raw_transmission_costs!$B:$B,$C631,raw_transmission_costs!$A:$A,AJ$615)","v":0},{"$f":"SUMIFS(raw_transmission_costs!$F:$F,raw_transmission_costs!$B:$B,$C631,raw_transmission_costs!$A:$A,AK$615)","v":0},{"$f":"SUMIFS(raw_transmission_costs!$F:$F,raw_transmission_costs!$B:$B,$C631,raw_transmission_costs!$A:$A,AL$615)","v":0},{"$f":"SUMIFS(raw_transmission_costs!$F:$F,raw_transmission_costs!$B:$B,$C631,raw_transmission_costs!$A:$A,AM$615)","v":0},{"$f":"SUMIFS(raw_transmission_costs!$F:$F,raw_transmission_costs!$B:$B,$C631,raw_transmission_costs!$A:$A,AN$615)","v":0}]
[null,null,"Tehachapi","MW",{"$f":"SUMIFS(raw_transmission_costs!$F:$F,raw_transmission_costs!$B:$B,$C632,raw_transmission_costs!$A:$A,E$615)","v":0},{"$f":"SUMIFS(raw_transmission_costs!$F:$F,raw_transmission_costs!$B:$B,$C632,raw_transmission_costs!$A:$A,F$615)","v":0},{"$f":"SUMIFS(raw_transmission_costs!$F:$F,raw_transmission_costs!$B:$B,$C632,raw_transmission_costs!$A:$A,G$615)","v":0},{"$f":"SUMIFS(raw_transmission_costs!$F:$F,raw_transmission_costs!$B:$B,$C632,raw_transmission_costs!$A:$A,H$615)","v":0},{"$f":"SUMIFS(raw_transmission_costs!$F:$F,raw_transmission_costs!$B:$B,$C632,raw_transmission_costs!$A:$A,I$615)","v":0},{"$f":"SUMIFS(raw_transmission_costs!$F:$F,raw_transmission_costs!$B:$B,$C632,raw_transmission_costs!$A:$A,J$615)","v":3677},{"$f":"SUMIFS(raw_transmission_costs!$F:$F,raw_transmission_costs!$B:$B,$C632,raw_transmission_costs!$A:$A,K$615)","v":3677},{"$f":"SUMIFS(raw_transmission_costs!$F:$F,raw_transmission_costs!$B:$B,$C632,raw_transmission_costs!$A:$A,L$615)","v":3677},{"$f":"SUMIFS(raw_transmission_costs!$F:$F,raw_transmission_costs!$B:$B,$C632,raw_transmission_costs!$A:$A,M$615)","v":3677},{"$f":"SUMIFS(raw_transmission_costs!$F:$F,raw_transmission_costs!$B:$B,$C632,raw_transmission_costs!$A:$A,N$615)","v":3677},{"$f":"SUMIFS(raw_transmission_costs!$F:$F,raw_transmission_costs!$B:$B,$C632,raw_transmission_costs!$A:$A,O$615)","v":0},{"$f":"SUMIFS(raw_transmission_costs!$F:$F,raw_transmission_costs!$B:$B,$C632,raw_transmission_costs!$A:$A,P$615)","v":3677},{"$f":"SUMIFS(raw_transmission_costs!$F:$F,raw_transmission_costs!$B:$B,$C632,raw_transmission_costs!$A:$A,Q$615)","v":0},{"$f":"SUMIFS(raw_transmission_costs!$F:$F,raw_transmission_costs!$B:$B,$C632,raw_transmission_costs!$A:$A,R$615)","v":0},{"$f":"SUMIFS(raw_transmission_costs!$F:$F,raw_transmission_costs!$B:$B,$C632,raw_transmission_costs!$A:$A,S$615)","v":0},{"$f":"SUMIFS(raw_transmission_costs!$F:$F,raw_transmission_costs!$B:$B,$C632,raw_transmission_costs!$A:$A,T$615)","v":3677},{"$f":"SUMIFS(raw_transmission_costs!$F:$F,raw_transmission_costs!$B:$B,$C632,raw_transmission_costs!$A:$A,U$615)","v":0},{"$f":"SUMIFS(raw_transmission_costs!$F:$F,raw_transmission_costs!$B:$B,$C632,raw_transmission_costs!$A:$A,V$615)","v":0},{"$f":"SUMIFS(raw_transmission_costs!$F:$F,raw_transmission_costs!$B:$B,$C632,raw_transmission_costs!$A:$A,W$615)","v":0},{"$f":"SUMIFS(raw_transmission_costs!$F:$F,raw_transmission_costs!$B:$B,$C632,raw_transmission_costs!$A:$A,X$615)","v":0},{"$f":"SUMIFS(raw_transmission_costs!$F:$F,raw_transmission_costs!$B:$B,$C632,raw_transmission_costs!$A:$A,Y$615)","v":0},{"$f":"SUMIFS(raw_transmission_costs!$F:$F,raw_transmission_costs!$B:$B,$C632,raw_transmission_costs!$A:$A,Z$615)","v":0},{"$f":"SUMIFS(raw_transmission_costs!$F:$F,raw_transmission_costs!$B:$B,$C632,raw_transmission_costs!$A:$A,AA$615)","v":0},{"$f":"SUMIFS(raw_transmission_costs!$F:$F,raw_transmission_costs!$B:$B,$C632,raw_transmission_costs!$A:$A,AB$615)","v":0},{"$f":"SUMIFS(raw_transmission_costs!$F:$F,raw_transmission_costs!$B:$B,$C632,raw_transmission_costs!$A:$A,AC$615)","v":0},{"$f":"SUMIFS(raw_transmission_costs!$F:$F,raw_transmission_costs!$B:$B,$C632,raw_transmission_costs!$A:$A,AD$615)","v":0},{"$f":"SUMIFS(raw_transmission_costs!$F:$F,raw_transmission_costs!$B:$B,$C632,raw_transmission_costs!$A:$A,AE$615)","v":0},{"$f":"SUMIFS(raw_transmission_costs!$F:$F,raw_transmission_costs!$B:$B,$C632,raw_transmission_costs!$A:$A,AF$615)","v":0},{"$f":"SUMIFS(raw_transmission_costs!$F:$F,raw_transmission_costs!$B:$B,$C632,raw_transmission_costs!$A:$A,AG$615)","v":0},{"$f":"SUMIFS(raw_transmission_costs!$F:$F,raw_transmission_costs!$B:$B,$C632,raw_transmission_costs!$A:$A,AH$615)","v":0},{"$f":"SUMIFS(raw_transmission_costs!$F:$F,raw_transmission_costs!$B:$B,$C632,raw_transmission_costs!$A:$A,AI$615)","v":3677},{"$f":"SUMIFS(raw_transmission_costs!$F:$F,raw_transmission_costs!$B:$B,$C632,raw_transmission_costs!$A:$A,AJ$615)","v":0},{"$f":"SUMIFS(raw_transmission_costs!$F:$F,raw_transmission_costs!$B:$B,$C632,raw_transmission_costs!$A:$A,AK$615)","v":0},{"$f":"SUMIFS(raw_transmission_costs!$F:$F,raw_transmission_costs!$B:$B,$C632,raw_transmission_costs!$A:$A,AL$615)","v":0},{"$f":"SUMIFS(raw_transmission_costs!$F:$F,raw_transmission_costs!$B:$B,$C632,raw_transmission_costs!$A:$A,AM$615)","v":0},{"$f":"SUMIFS(raw_transmission_costs!$F:$F,raw_transmission_costs!$B:$B,$C632,raw_transmission_costs!$A:$A,AN$615)","v":0}]
[null,null,"Northern_California_Ex","MW",{"$f":"SUMIFS(raw_transmission_costs!$F:$F,raw_transmission_costs!$B:$B,$C633,raw_transmission_costs!$A:$A,E$615)","v":0},{"$f":"SUMIFS(raw_transmission_costs!$F:$F,raw_transmission_costs!$B:$B,$C633,raw_transmission_costs!$A:$A,F$615)","v":0},{"$f":"SUMIFS(raw_transmission_costs!$F:$F,raw_transmission_costs!$B:$B,$C633,raw_transmission_costs!$A:$A,G$615)","v":0},{"$f":"SUMIFS(raw_transmission_costs!$F:$F,raw_transmission_costs!$B:$B,$C633,raw_transmission_costs!$A:$A,H$615)","v":0},{"$f":"SUMIFS(raw_transmission_costs!$F:$F,raw_transmission_costs!$B:$B,$C633,raw_transmission_costs!$A:$A,I$615)","v":0},{"$f":"SUMIFS(raw_transmission_costs!$F:$F,raw_transmission_costs!$B:$B,$C633,raw_transmission_costs!$A:$A,J$615)","v":865.9},{"$f":"SUMIFS(raw_transmission_costs!$F:$F,raw_transmission_costs!$B:$B,$C633,raw_transmission_costs!$A:$A,K$615)","v":865.9},{"$f":"SUMIFS(raw_transmission_costs!$F:$F,raw_transmission_costs!$B:$B,$C633,raw_transmission_costs!$A:$A,L$615)","v":865.9},{"$f":"SUMIFS(raw_transmission_costs!$F:$F,raw_transmission_costs!$B:$B,$C633,raw_transmission_costs!$A:$A,M$615)","v":865.9},{"$f":"SUMIFS(raw_transmission_costs!$F:$F,raw_transmission_costs!$B:$B,$C633,raw_transmission_costs!$A:$A,N$615)","v":865.9},{"$f":"SUMIFS(raw_transmission_costs!$F:$F,raw_transmission_costs!$B:$B,$C633,raw_transmission_costs!$A:$A,O$615)","v":0},{"$f":"SUMIFS(raw_transmission_costs!$F:$F,raw_transmission_costs!$B:$B,$C633,raw_transmission_costs!$A:$A,P$615)","v":865.9},{"$f":"SUMIFS(raw_transmission_costs!$F:$F,raw_transmission_costs!$B:$B,$C633,raw_transmission_costs!$A:$A,Q$615)","v":0},{"$f":"SUMIFS(raw_transmission_costs!$F:$F,raw_transmission_costs!$B:$B,$C633,raw_transmission_costs!$A:$A,R$615)","v":0},{"$f":"SUMIFS(raw_transmission_costs!$F:$F,raw_transmission_costs!$B:$B,$C633,raw_transmission_costs!$A:$A,S$615)","v":0},{"$f":"SUMIFS(raw_transmission_costs!$F:$F,raw_transmission_costs!$B:$B,$C633,raw_transmission_costs!$A:$A,T$615)","v":865.9},{"$f":"SUMIFS(raw_transmission_costs!$F:$F,raw_transmission_costs!$B:$B,$C633,raw_transmission_costs!$A:$A,U$615)","v":0},{"$f":"SUMIFS(raw_transmission_costs!$F:$F,raw_transmission_costs!$B:$B,$C633,raw_transmission_costs!$A:$A,V$615)","v":0},{"$f":"SUMIFS(raw_transmission_costs!$F:$F,raw_transmission_costs!$B:$B,$C633,raw_transmission_costs!$A:$A,W$615)","v":0},{"$f":"SUMIFS(raw_transmission_costs!$F:$F,raw_transmission_costs!$B:$B,$C633,raw_transmission_costs!$A:$A,X$615)","v":0},{"$f":"SUMIFS(raw_transmission_costs!$F:$F,raw_transmission_costs!$B:$B,$C633,raw_transmission_costs!$A:$A,Y$615)","v":0},{"$f":"SUMIFS(raw_transmission_costs!$F:$F,raw_transmission_costs!$B:$B,$C633,raw_transmission_costs!$A:$A,Z$615)","v":0},{"$f":"SUMIFS(raw_transmission_costs!$F:$F,raw_transmission_costs!$B:$B,$C633,raw_transmission_costs!$A:$A,AA$615)","v":0},{"$f":"SUMIFS(raw_transmission_costs!$F:$F,raw_transmission_costs!$B:$B,$C633,raw_transmission_costs!$A:$A,AB$615)","v":0},{"$f":"SUMIFS(raw_transmission_costs!$F:$F,raw_transmission_costs!$B:$B,$C633,raw_transmission_costs!$A:$A,AC$615)","v":0},{"$f":"SUMIFS(raw_transmission_costs!$F:$F,raw_transmission_costs!$B:$B,$C633,raw_transmission_costs!$A:$A,AD$615)","v":0},{"$f":"SUMIFS(raw_transmission_costs!$F:$F,raw_transmission_costs!$B:$B,$C633,raw_transmission_costs!$A:$A,AE$615)","v":0},{"$f":"SUMIFS(raw_transmission_costs!$F:$F,raw_transmission_costs!$B:$B,$C633,raw_transmission_costs!$A:$A,AF$615)","v":0},{"$f":"SUMIFS(raw_transmission_costs!$F:$F,raw_transmission_costs!$B:$B,$C633,raw_transmission_costs!$A:$A,AG$615)","v":0},{"$f":"SUMIFS(raw_transmission_costs!$F:$F,raw_transmission_costs!$B:$B,$C633,raw_transmission_costs!$A:$A,AH$615)","v":0},{"$f":"SUMIFS(raw_transmission_costs!$F:$F,raw_transmission_costs!$B:$B,$C633,raw_transmission_costs!$A:$A,AI$615)","v":865.9},{"$f":"SUMIFS(raw_transmission_costs!$F:$F,raw_transmission_costs!$B:$B,$C633,raw_transmission_costs!$A:$A,AJ$615)","v":0},{"$f":"SUMIFS(raw_transmission_costs!$F:$F,raw_transmission_costs!$B:$B,$C633,raw_transmission_costs!$A:$A,AK$615)","v":0},{"$f":"SUMIFS(raw_transmission_costs!$F:$F,raw_transmission_costs!$B:$B,$C633,raw_transmission_costs!$A:$A,AL$615)","v":0},{"$f":"SUMIFS(raw_transmission_costs!$F:$F,raw_transmission_costs!$B:$B,$C633,raw_transmission_costs!$A:$A,AM$615)","v":0},{"$f":"SUMIFS(raw_transmission_costs!$F:$F,raw_transmission_costs!$B:$B,$C633,raw_transmission_costs!$A:$A,AN$615)","v":0}]
[null,null,"Westlands_Ex","MW",{"$f":"SUMIFS(raw_transmission_costs!$F:$F,raw_transmission_costs!$B:$B,$C634,raw_transmission_costs!$A:$A,E$615)","v":0},{"$f":"SUMIFS(raw_transmission_costs!$F:$F,raw_transmission_costs!$B:$B,$C634,raw_transmission_costs!$A:$A,F$615)","v":0},{"$f":"SUMIFS(raw_transmission_costs!$F:$F,raw_transmission_costs!$B:$B,$C634,raw_transmission_costs!$A:$A,G$615)","v":0},{"$f":"SUMIFS(raw_transmission_costs!$F:$F,raw_transmission_costs!$B:$B,$C634,raw_transmission_costs!$A:$A,H$615)","v":0},{"$f":"SUMIFS(raw_transmission_costs!$F:$F,raw_transmission_costs!$B:$B,$C634,raw_transmission_costs!$A:$A,I$615)","v":0},{"$f":"SUMIFS(raw_transmission_costs!$F:$F,raw_transmission_costs!$B:$B,$C634,raw_transmission_costs!$A:$A,J$615)","v":1778.57},{"$f":"SUMIFS(raw_transmission_costs!$F:$F,raw_transmission_costs!$B:$B,$C634,raw_transmission_costs!$A:$A,K$615)","v":1778.57},{"$f":"SUMIFS(raw_transmission_costs!$F:$F,raw_transmission_costs!$B:$B,$C634,raw_transmission_costs!$A:$A,L$615)","v":1778.57},{"$f":"SUMIFS(raw_transmission_costs!$F:$F,raw_transmission_costs!$B:$B,$C634,raw_transmission_costs!$A:$A,M$615)","v":1778.57},{"$f":"SUMIFS(raw_transmission_costs!$F:$F,raw_transmission_costs!$B:$B,$C634,raw_transmission_costs!$A:$A,N$615)","v":1778.57},{"$f":"SUMIFS(raw_transmission_costs!$F:$F,raw_transmission_costs!$B:$B,$C634,raw_transmission_costs!$A:$A,O$615)","v":0},{"$f":"SUMIFS(raw_transmission_costs!$F:$F,raw_transmission_costs!$B:$B,$C634,raw_transmission_costs!$A:$A,P$615)","v":1778.57},{"$f":"SUMIFS(raw_transmission_costs!$F:$F,raw_transmission_costs!$B:$B,$C634,raw_transmission_costs!$A:$A,Q$615)","v":0},{"$f":"SUMIFS(raw_transmission_costs!$F:$F,raw_transmission_costs!$B:$B,$C634,raw_transmission_costs!$A:$A,R$615)","v":0},{"$f":"SUMIFS(raw_transmission_costs!$F:$F,raw_transmission_costs!$B:$B,$C634,raw_transmission_costs!$A:$A,S$615)","v":0},{"$f":"SUMIFS(raw_transmission_costs!$F:$F,raw_transmission_costs!$B:$B,$C634,raw_transmission_costs!$A:$A,T$615)","v":1778.57},{"$f":"SUMIFS(raw_transmission_costs!$F:$F,raw_transmission_costs!$B:$B,$C634,raw_transmission_costs!$A:$A,U$615)","v":0},{"$f":"SUMIFS(raw_transmission_costs!$F:$F,raw_transmission_costs!$B:$B,$C634,raw_transmission_costs!$A:$A,V$615)","v":0},{"$f":"SUMIFS(raw_transmission_costs!$F:$F,raw_transmission_costs!$B:$B,$C634,raw_transmission_costs!$A:$A,W$615)","v":0},{"$f":"SUMIFS(raw_transmission_costs!$F:$F,raw_transmission_costs!$B:$B,$C634,raw_transmission_costs!$A:$A,X$615)","v":0},{"$f":"SUMIFS(raw_transmission_costs!$F:$F,raw_transmission_costs!$B:$B,$C634,raw_transmission_costs!$A:$A,Y$615)","v":0},{"$f":"SUMIFS(raw_transmission_costs!$F:$F,raw_transmission_costs!$B:$B,$C634,raw_transmission_costs!$A:$A,Z$615)","v":0},{"$f":"SUMIFS(raw_transmission_costs!$F:$F,raw_transmission_costs!$B:$B,$C634,raw_transmission_costs!$A:$A,AA$615)","v":0},{"$f":"SUMIFS(raw_transmission_costs!$F:$F,raw_transmission_costs!$B:$B,$C634,raw_transmission_costs!$A:$A,AB$615)","v":0},{"$f":"SUMIFS(raw_transmission_costs!$F:$F,raw_transmission_costs!$B:$B,$C634,raw_transmission_costs!$A:$A,AC$615)","v":0},{"$f":"SUMIFS(raw_transmission_costs!$F:$F,raw_transmission_costs!$B:$B,$C634,raw_transmission_costs!$A:$A,AD$615)","v":0},{"$f":"SUMIFS(raw_transmission_costs!$F:$F,raw_transmission_costs!$B:$B,$C634,raw_transmission_costs!$A:$A,AE$615)","v":0},{"$f":"SUMIFS(raw_transmission_costs!$F:$F,raw_transmission_costs!$B:$B,$C634,raw_transmission_costs!$A:$A,AF$615)","v":0},{"$f":"SUMIFS(raw_transmission_costs!$F:$F,raw_transmission_costs!$B:$B,$C634,raw_transmission_costs!$A:$A,AG$615)","v":0},{"$f":"SUMIFS(raw_transmission_costs!$F:$F,raw_transmission_costs!$B:$B,$C634,raw_transmission_costs!$A:$A,AH$615)","v":0},{"$f":"SUMIFS(raw_transmission_costs!$F:$F,raw_transmission_costs!$B:$B,$C634,raw_transmission_costs!$A:$A,AI$615)","v":1778.57},{"$f":"SUMIFS(raw_transmission_costs!$F:$F,raw_transmission_costs!$B:$B,$C634,raw_transmission_costs!$A:$A,AJ$615)","v":0},{"$f":"SUMIFS(raw_transmission_costs!$F:$F,raw_transmission_costs!$B:$B,$C634,raw_transmission_costs!$A:$A,AK$615)","v":0},{"$f":"SUMIFS(raw_transmission_costs!$F:$F,raw_transmission_costs!$B:$B,$C634,raw_transmission_costs!$A:$A,AL$615)","v":0},{"$f":"SUMIFS(raw_transmission_costs!$F:$F,raw_transmission_costs!$B:$B,$C634,raw_transmission_costs!$A:$A,AM$615)","v":0},{"$f":"SUMIFS(raw_transmission_costs!$F:$F,raw_transmission_costs!$B:$B,$C634,raw_transmission_costs!$A:$A,AN$615)","v":0}]
[null,null,"Tehachapi_Ex","MW",{"$f":"SUMIFS(raw_transmission_costs!$F:$F,raw_transmission_costs!$B:$B,$C635,raw_transmission_costs!$A:$A,E$615)","v":0},{"$f":"SUMIFS(raw_transmission_costs!$F:$F,raw_transmission_costs!$B:$B,$C635,raw_transmission_costs!$A:$A,F$615)","v":0},{"$f":"SUMIFS(raw_transmission_costs!$F:$F,raw_transmission_costs!$B:$B,$C635,raw_transmission_costs!$A:$A,G$615)","v":0},{"$f":"SUMIFS(raw_transmission_costs!$F:$F,raw_transmission_costs!$B:$B,$C635,raw_transmission_costs!$A:$A,H$615)","v":0},{"$f":"SUMIFS(raw_transmission_costs!$F:$F,raw_transmission_costs!$B:$B,$C635,raw_transmission_costs!$A:$A,I$615)","v":0},{"$f":"SUMIFS(raw_transmission_costs!$F:$F,raw_transmission_costs!$B:$B,$C635,raw_transmission_costs!$A:$A,J$615)","v":0},{"$f":"SUMIFS(raw_transmission_costs!$F:$F,raw_transmission_costs!$B:$B,$C635,raw_transmission_costs!$A:$A,K$615)","v":0},{"$f":"SUMIFS(raw_transmission_costs!$F:$F,raw_transmission_costs!$B:$B,$C635,raw_transmission_costs!$A:$A,L$615)","v":0},{"$f":"SUMIFS(raw_transmission_costs!$F:$F,raw_transmission_costs!$B:$B,$C635,raw_transmission_costs!$A:$A,M$615)","v":0},{"$f":"SUMIFS(raw_transmission_costs!$F:$F,raw_transmission_costs!$B:$B,$C635,raw_transmission_costs!$A:$A,N$615)","v":0},{"$f":"SUMIFS(raw_transmission_costs!$F:$F,raw_transmission_costs!$B:$B,$C635,raw_transmission_costs!$A:$A,O$615)","v":0},{"$f":"SUMIFS(raw_transmission_costs!$F:$F,raw_transmission_costs!$B:$B,$C635,raw_transmission_costs!$A:$A,P$615)","v":0},{"$f":"SUMIFS(raw_transmission_costs!$F:$F,raw_transmission_costs!$B:$B,$C635,raw_transmission_costs!$A:$A,Q$615)","v":0},{"$f":"SUMIFS(raw_transmission_costs!$F:$F,raw_transmission_costs!$B:$B,$C635,raw_transmission_costs!$A:$A,R$615)","v":0},{"$f":"SUMIFS(raw_transmission_costs!$F:$F,raw_transmission_costs!$B:$B,$C635,raw_transmission_costs!$A:$A,S$615)","v":0},{"$f":"SUMIFS(raw_transmission_costs!$F:$F,raw_transmission_costs!$B:$B,$C635,raw_transmission_costs!$A:$A,T$615)","v":0},{"$f":"SUMIFS(raw_transmission_costs!$F:$F,raw_transmission_costs!$B:$B,$C635,raw_transmission_costs!$A:$A,U$615)","v":0},{"$f":"SUMIFS(raw_transmission_costs!$F:$F,raw_transmission_costs!$B:$B,$C635,raw_transmission_costs!$A:$A,V$615)","v":0},{"$f":"SUMIFS(raw_transmission_costs!$F:$F,raw_transmission_costs!$B:$B,$C635,raw_transmission_costs!$A:$A,W$615)","v":0},{"$f":"SUMIFS(raw_transmission_costs!$F:$F,raw_transmission_costs!$B:$B,$C635,raw_transmission_costs!$A:$A,X$615)","v":0},{"$f":"SUMIFS(raw_transmission_costs!$F:$F,raw_transmission_costs!$B:$B,$C635,raw_transmission_costs!$A:$A,Y$615)","v":0},{"$f":"SUMIFS(raw_transmission_costs!$F:$F,raw_transmission_costs!$B:$B,$C635,raw_transmission_costs!$A:$A,Z$615)","v":0},{"$f":"SUMIFS(raw_transmission_costs!$F:$F,raw_transmission_costs!$B:$B,$C635,raw_transmission_costs!$A:$A,AA$615)","v":0},{"$f":"SUMIFS(raw_transmission_costs!$F:$F,raw_transmission_costs!$B:$B,$C635,raw_transmission_costs!$A:$A,AB$615)","v":0},{"$f":"SUMIFS(raw_transmission_costs!$F:$F,raw_transmission_costs!$B:$B,$C635,raw_transmission_costs!$A:$A,AC$615)","v":0},{"$f":"SUMIFS(raw_transmission_costs!$F:$F,raw_transmission_costs!$B:$B,$C635,raw_transmission_costs!$A:$A,AD$615)","v":0},{"$f":"SUMIFS(raw_transmission_costs!$F:$F,raw_transmission_costs!$B:$B,$C635,raw_transmission_costs!$A:$A,AE$615)","v":0},{"$f":"SUMIFS(raw_transmission_costs!$F:$F,raw_transmission_costs!$B:$B,$C635,raw_transmission_costs!$A:$A,AF$615)","v":0},{"$f":"SUMIFS(raw_transmission_costs!$F:$F,raw_transmission_costs!$B:$B,$C635,raw_transmission_costs!$A:$A,AG$615)","v":0},{"$f":"SUMIFS(raw_transmission_costs!$F:$F,raw_transmission_costs!$B:$B,$C635,raw_transmission_costs!$A:$A,AH$615)","v":0},{"$f":"SUMIFS(raw_transmission_costs!$F:$F,raw_transmission_costs!$B:$B,$C635,raw_transmission_costs!$A:$A,AI$615)","v":0},{"$f":"SUMIFS(raw_transmission_costs!$F:$F,raw_transmission_costs!$B:$B,$C635,raw_transmission_costs!$A:$A,AJ$615)","v":0},{"$f":"SUMIFS(raw_transmission_costs!$F:$F,raw_transmission_costs!$B:$B,$C635,raw_transmission_costs!$A:$A,AK$615)","v":0},{"$f":"SUMIFS(raw_transmission_costs!$F:$F,raw_transmission_costs!$B:$B,$C635,raw_transmission_costs!$A:$A,AL$615)","v":0},{"$f":"SUMIFS(raw_transmission_costs!$F:$F,raw_transmission_costs!$B:$B,$C635,raw_transmission_costs!$A:$A,AM$615)","v":0},{"$f":"SUMIFS(raw_transmission_costs!$F:$F,raw_transmission_costs!$B:$B,$C635,raw_transmission_costs!$A:$A,AN$615)","v":0}]
[null,null,"Kramer_Inyokern_Ex","MW",{"$f":"SUMIFS(raw_transmission_costs!$F:$F,raw_transmission_costs!$B:$B,$C636,raw_transmission_costs!$A:$A,E$615)","v":0},{"$f":"SUMIFS(raw_transmission_costs!$F:$F,raw_transmission_costs!$B:$B,$C636,raw_transmission_costs!$A:$A,F$615)","v":0},{"$f":"SUMIFS(raw_transmission_costs!$F:$F,raw_transmission_costs!$B:$B,$C636,raw_transmission_costs!$A:$A,G$615)","v":0},{"$f":"SUMIFS(raw_transmission_costs!$F:$F,raw_transmission_costs!$B:$B,$C636,raw_transmission_costs!$A:$A,H$615)","v":0},{"$f":"SUMIFS(raw_transmission_costs!$F:$F,raw_transmission_costs!$B:$B,$C636,raw_transmission_costs!$A:$A,I$615)","v":0},{"$f":"SUMIFS(raw_transmission_costs!$F:$F,raw_transmission_costs!$B:$B,$C636,raw_transmission_costs!$A:$A,J$615)","v":0},{"$f":"SUMIFS(raw_transmission_costs!$F:$F,raw_transmission_costs!$B:$B,$C636,raw_transmission_costs!$A:$A,K$615)","v":0},{"$f":"SUMIFS(raw_transmission_costs!$F:$F,raw_transmission_costs!$B:$B,$C636,raw_transmission_costs!$A:$A,L$615)","v":0},{"$f":"SUMIFS(raw_transmission_costs!$F:$F,raw_transmission_costs!$B:$B,$C636,raw_transmission_costs!$A:$A,M$615)","v":0},{"$f":"SUMIFS(raw_transmission_costs!$F:$F,raw_transmission_costs!$B:$B,$C636,raw_transmission_costs!$A:$A,N$615)","v":0},{"$f":"SUMIFS(raw_transmission_costs!$F:$F,raw_transmission_costs!$B:$B,$C636,raw_transmission_costs!$A:$A,O$615)","v":0},{"$f":"SUMIFS(raw_transmission_costs!$F:$F,raw_transmission_costs!$B:$B,$C636,raw_transmission_costs!$A:$A,P$615)","v":0},{"$f":"SUMIFS(raw_transmission_costs!$F:$F,raw_transmission_costs!$B:$B,$C636,raw_transmission_costs!$A:$A,Q$615)","v":0},{"$f":"SUMIFS(raw_transmission_costs!$F:$F,raw_transmission_costs!$B:$B,$C636,raw_transmission_costs!$A:$A,R$615)","v":0},{"$f":"SUMIFS(raw_transmission_costs!$F:$F,raw_transmission_costs!$B:$B,$C636,raw_transmission_costs!$A:$A,S$615)","v":0},{"$f":"SUMIFS(raw_transmission_costs!$F:$F,raw_transmission_costs!$B:$B,$C636,raw_transmission_costs!$A:$A,T$615)","v":0},{"$f":"SUMIFS(raw_transmission_costs!$F:$F,raw_transmission_costs!$B:$B,$C636,raw_transmission_costs!$A:$A,U$615)","v":0},{"$f":"SUMIFS(raw_transmission_costs!$F:$F,raw_transmission_costs!$B:$B,$C636,raw_transmission_costs!$A:$A,V$615)","v":0},{"$f":"SUMIFS(raw_transmission_costs!$F:$F,raw_transmission_costs!$B:$B,$C636,raw_transmission_costs!$A:$A,W$615)","v":0},{"$f":"SUMIFS(raw_transmission_costs!$F:$F,raw_transmission_costs!$B:$B,$C636,raw_transmission_costs!$A:$A,X$615)","v":0},{"$f":"SUMIFS(raw_transmission_costs!$F:$F,raw_transmission_costs!$B:$B,$C636,raw_transmission_costs!$A:$A,Y$615)","v":0},{"$f":"SUMIFS(raw_transmission_costs!$F:$F,raw_transmission_costs!$B:$B,$C636,raw_transmission_costs!$A:$A,Z$615)","v":0},{"$f":"SUMIFS(raw_transmission_costs!$F:$F,raw_transmission_costs!$B:$B,$C636,raw_transmission_costs!$A:$A,AA$615)","v":0},{"$f":"SUMIFS(raw_transmission_costs!$F:$F,raw_transmission_costs!$B:$B,$C636,raw_transmission_costs!$A:$A,AB$615)","v":0},{"$f":"SUMIFS(raw_transmission_costs!$F:$F,raw_transmission_costs!$B:$B,$C636,raw_transmission_costs!$A:$A,AC$615)","v":0},{"$f":"SUMIFS(raw_transmission_costs!$F:$F,raw_transmission_costs!$B:$B,$C636,raw_transmission_costs!$A:$A,AD$615)","v":0},{"$f":"SUMIFS(raw_transmission_costs!$F:$F,raw_transmission_costs!$B:$B,$C636,raw_transmission_costs!$A:$A,AE$615)","v":0},{"$f":"SUMIFS(raw_transmission_costs!$F:$F,raw_transmission_costs!$B:$B,$C636,raw_transmission_costs!$A:$A,AF$615)","v":0},{"$f":"SUMIFS(raw_transmission_costs!$F:$F,raw_transmission_costs!$B:$B,$C636,raw_transmission_costs!$A:$A,AG$615)","v":0},{"$f":"SUMIFS(raw_transmission_costs!$F:$F,raw_transmission_costs!$B:$B,$C636,raw_transmission_costs!$A:$A,AH$615)","v":0},{"$f":"SUMIFS(raw_transmission_costs!$F:$F,raw_transmission_costs!$B:$B,$C636,raw_transmission_costs!$A:$A,AI$615)","v":0},{"$f":"SUMIFS(raw_transmission_costs!$F:$F,raw_transmission_costs!$B:$B,$C636,raw_transmission_costs!$A:$A,AJ$615)","v":0},{"$f":"SUMIFS(raw_transmission_costs!$F:$F,raw_transmission_costs!$B:$B,$C636,raw_transmission_costs!$A:$A,AK$615)","v":0},{"$f":"SUMIFS(raw_transmission_costs!$F:$F,raw_transmission_costs!$B:$B,$C636,raw_transmission_costs!$A:$A,AL$615)","v":0},{"$f":"SUMIFS(raw_transmission_costs!$F:$F,raw_transmission_costs!$B:$B,$C636,raw_transmission_costs!$A:$A,AM$615)","v":0},{"$f":"SUMIFS(raw_transmission_costs!$F:$F,raw_transmission_costs!$B:$B,$C636,raw_transmission_costs!$A:$A,AN$615)","v":0}]
[null,null,"Southern_California_Desert_Ex","MW",{"$f":"SUMIFS(raw_transmission_costs!$F:$F,raw_transmission_costs!$B:$B,$C637,raw_transmission_costs!$A:$A,E$615)","v":0},{"$f":"SUMIFS(raw_transmission_costs!$F:$F,raw_transmission_costs!$B:$B,$C637,raw_transmission_costs!$A:$A,F$615)","v":0},{"$f":"SUMIFS(raw_transmission_costs!$F:$F,raw_transmission_costs!$B:$B,$C637,raw_transmission_costs!$A:$A,G$615)","v":0},{"$f":"SUMIFS(raw_transmission_costs!$F:$F,raw_transmission_costs!$B:$B,$C637,raw_transmission_costs!$A:$A,H$615)","v":0},{"$f":"SUMIFS(raw_transmission_costs!$F:$F,raw_transmission_costs!$B:$B,$C637,raw_transmission_costs!$A:$A,I$615)","v":0},{"$f":"SUMIFS(raw_transmission_costs!$F:$F,raw_transmission_costs!$B:$B,$C637,raw_transmission_costs!$A:$A,J$615)","v":862},{"$f":"SUMIFS(raw_transmission_costs!$F:$F,raw_transmission_costs!$B:$B,$C637,raw_transmission_costs!$A:$A,K$615)","v":862},{"$f":"SUMIFS(raw_transmission_costs!$F:$F,raw_transmission_costs!$B:$B,$C637,raw_transmission_costs!$A:$A,L$615)","v":862},{"$f":"SUMIFS(raw_transmission_costs!$F:$F,raw_transmission_costs!$B:$B,$C637,raw_transmission_costs!$A:$A,M$615)","v":862},{"$f":"SUMIFS(raw_transmission_costs!$F:$F,raw_transmission_costs!$B:$B,$C637,raw_transmission_costs!$A:$A,N$615)","v":862},{"$f":"SUMIFS(raw_transmission_costs!$F:$F,raw_transmission_costs!$B:$B,$C637,raw_transmission_costs!$A:$A,O$615)","v":0},{"$f":"SUMIFS(raw_transmission_costs!$F:$F,raw_transmission_costs!$B:$B,$C637,raw_transmission_costs!$A:$A,P$615)","v":862},{"$f":"SUMIFS(raw_transmission_costs!$F:$F,raw_transmission_costs!$B:$B,$C637,raw_transmission_costs!$A:$A,Q$615)","v":0},{"$f":"SUMIFS(raw_transmission_costs!$F:$F,raw_transmission_costs!$B:$B,$C637,raw_transmission_costs!$A:$A,R$615)","v":0},{"$f":"SUMIFS(raw_transmission_costs!$F:$F,raw_transmission_costs!$B:$B,$C637,raw_transmission_costs!$A:$A,S$615)","v":0},{"$f":"SUMIFS(raw_transmission_costs!$F:$F,raw_transmission_costs!$B:$B,$C637,raw_transmission_costs!$A:$A,T$615)","v":862},{"$f":"SUMIFS(raw_transmission_costs!$F:$F,raw_transmission_costs!$B:$B,$C637,raw_transmission_costs!$A:$A,U$615)","v":0},{"$f":"SUMIFS(raw_transmission_costs!$F:$F,raw_transmission_costs!$B:$B,$C637,raw_transmission_costs!$A:$A,V$615)","v":0},{"$f":"SUMIFS(raw_transmission_costs!$F:$F,raw_transmission_costs!$B:$B,$C637,raw_transmission_costs!$A:$A,W$615)","v":0},{"$f":"SUMIFS(raw_transmission_costs!$F:$F,raw_transmission_costs!$B:$B,$C637,raw_transmission_costs!$A:$A,X$615)","v":0},{"$f":"SUMIFS(raw_transmission_costs!$F:$F,raw_transmission_costs!$B:$B,$C637,raw_transmission_costs!$A:$A,Y$615)","v":0},{"$f":"SUMIFS(raw_transmission_costs!$F:$F,raw_transmission_costs!$B:$B,$C637,raw_transmission_costs!$A:$A,Z$615)","v":0},{"$f":"SUMIFS(raw_transmission_costs!$F:$F,raw_transmission_costs!$B:$B,$C637,raw_transmission_costs!$A:$A,AA$615)","v":0},{"$f":"SUMIFS(raw_transmission_costs!$F:$F,raw_transmission_costs!$B:$B,$C637,raw_transmission_costs!$A:$A,AB$615)","v":0},{"$f":"SUMIFS(raw_transmission_costs!$F:$F,raw_transmission_costs!$B:$B,$C637,raw_transmission_costs!$A:$A,AC$615)","v":0},{"$f":"SUMIFS(raw_transmission_costs!$F:$F,raw_transmission_costs!$B:$B,$C637,raw_transmission_costs!$A:$A,AD$615)","v":0},{"$f":"SUMIFS(raw_transmission_costs!$F:$F,raw_transmission_costs!$B:$B,$C637,raw_transmission_costs!$A:$A,AE$615)","v":0},{"$f":"SUMIFS(raw_transmission_costs!$F:$F,raw_transmission_costs!$B:$B,$C637,raw_transmission_costs!$A:$A,AF$615)","v":0},{"$f":"SUMIFS(raw_transmission_costs!$F:$F,raw_transmission_costs!$B:$B,$C637,raw_transmission_costs!$A:$A,AG$615)","v":0},{"$f":"SUMIFS(raw_transmission_costs!$F:$F,raw_transmission_costs!$B:$B,$C637,raw_transmission_costs!$A:$A,AH$615)","v":0},{"$f":"SUMIFS(raw_transmission_costs!$F:$F,raw_transmission_costs!$B:$B,$C637,raw_transmission_costs!$A:$A,AI$615)","v":862},{"$f":"SUMIFS(raw_transmission_costs!$F:$F,raw_transmission_costs!$B:$B,$C637,raw_transmission_costs!$A:$A,AJ$615)","v":0},{"$f":"SUMIFS(raw_transmission_costs!$F:$F,raw_transmission_costs!$B:$B,$C637,raw_transmission_costs!$A:$A,AK$615)","v":0},{"$f":"SUMIFS(raw_transmission_costs!$F:$F,raw_transmission_costs!$B:$B,$C637,raw_transmission_costs!$A:$A,AL$615)","v":0},{"$f":"SUMIFS(raw_transmission_costs!$F:$F,raw_transmission_costs!$B:$B,$C637,raw_transmission_costs!$A:$A,AM$615)","v":0},{"$f":"SUMIFS(raw_transmission_costs!$F:$F,raw_transmission_costs!$B:$B,$C637,raw_transmission_costs!$A:$A,AN$615)","v":0}]
[null,null,"OffshoreWind_UnknownCost","MW",{"$f":"SUMIFS(raw_transmission_costs!$F:$F,raw_transmission_costs!$B:$B,$C638,raw_transmission_costs!$A:$A,E$615)","v":0},{"$f":"SUMIFS(raw_transmission_costs!$F:$F,raw_transmission_costs!$B:$B,$C638,raw_transmission_costs!$A:$A,F$615)","v":0},{"$f":"SUMIFS(raw_transmission_costs!$F:$F,raw_transmission_costs!$B:$B,$C638,raw_transmission_costs!$A:$A,G$615)","v":0},{"$f":"SUMIFS(raw_transmission_costs!$F:$F,raw_transmission_costs!$B:$B,$C638,raw_transmission_costs!$A:$A,H$615)","v":0},{"$f":"SUMIFS(raw_transmission_costs!$F:$F,raw_transmission_costs!$B:$B,$C638,raw_transmission_costs!$A:$A,I$615)","v":0},{"$f":"SUMIFS(raw_transmission_costs!$F:$F,raw_transmission_costs!$B:$B,$C638,raw_transmission_costs!$A:$A,J$615)","v":0},{"$f":"SUMIFS(raw_transmission_costs!$F:$F,raw_transmission_costs!$B:$B,$C638,raw_transmission_costs!$A:$A,K$615)","v":0},{"$f":"SUMIFS(raw_transmission_costs!$F:$F,raw_transmission_costs!$B:$B,$C638,raw_transmission_costs!$A:$A,L$615)","v":0},{"$f":"SUMIFS(raw_transmission_costs!$F:$F,raw_transmission_costs!$B:$B,$C638,raw_transmission_costs!$A:$A,M$615)","v":0},{"$f":"SUMIFS(raw_transmission_costs!$F:$F,raw_transmission_costs!$B:$B,$C638,raw_transmission_costs!$A:$A,N$615)","v":0},{"$f":"SUMIFS(raw_transmission_costs!$F:$F,raw_transmission_costs!$B:$B,$C638,raw_transmission_costs!$A:$A,O$615)","v":0},{"$f":"SUMIFS(raw_transmission_costs!$F:$F,raw_transmission_costs!$B:$B,$C638,raw_transmission_costs!$A:$A,P$615)","v":0},{"$f":"SUMIFS(raw_transmission_costs!$F:$F,raw_transmission_costs!$B:$B,$C638,raw_transmission_costs!$A:$A,Q$615)","v":0},{"$f":"SUMIFS(raw_transmission_costs!$F:$F,raw_transmission_costs!$B:$B,$C638,raw_transmission_costs!$A:$A,R$615)","v":0},{"$f":"SUMIFS(raw_transmission_costs!$F:$F,raw_transmission_costs!$B:$B,$C638,raw_transmission_costs!$A:$A,S$615)","v":0},{"$f":"SUMIFS(raw_transmission_costs!$F:$F,raw_transmission_costs!$B:$B,$C638,raw_transmission_costs!$A:$A,T$615)","v":0},{"$f":"SUMIFS(raw_transmission_costs!$F:$F,raw_transmission_costs!$B:$B,$C638,raw_transmission_costs!$A:$A,U$615)","v":0},{"$f":"SUMIFS(raw_transmission_costs!$F:$F,raw_transmission_costs!$B:$B,$C638,raw_transmission_costs!$A:$A,V$615)","v":0},{"$f":"SUMIFS(raw_transmission_costs!$F:$F,raw_transmission_costs!$B:$B,$C638,raw_transmission_costs!$A:$A,W$615)","v":0},{"$f":"SUMIFS(raw_transmission_costs!$F:$F,raw_transmission_costs!$B:$B,$C638,raw_transmission_costs!$A:$A,X$615)","v":0},{"$f":"SUMIFS(raw_transmission_costs!$F:$F,raw_transmission_costs!$B:$B,$C638,raw_transmission_costs!$A:$A,Y$615)","v":0},{"$f":"SUMIFS(raw_transmission_costs!$F:$F,raw_transmission_costs!$B:$B,$C638,raw_transmission_costs!$A:$A,Z$615)","v":0},{"$f":"SUMIFS(raw_transmission_costs!$F:$F,raw_transmission_costs!$B:$B,$C638,raw_transmission_costs!$A:$A,AA$615)","v":0},{"$f":"SUMIFS(raw_transmission_costs!$F:$F,raw_transmission_costs!$B:$B,$C638,raw_transmission_costs!$A:$A,AB$615)","v":0},{"$f":"SUMIFS(raw_transmission_costs!$F:$F,raw_transmission_costs!$B:$B,$C638,raw_transmission_costs!$A:$A,AC$615)","v":0},{"$f":"SUMIFS(raw_transmission_costs!$F:$F,raw_transmission_costs!$B:$B,$C638,raw_transmission_costs!$A:$A,AD$615)","v":0},{"$f":"SUMIFS(raw_transmission_costs!$F:$F,raw_transmission_costs!$B:$B,$C638,raw_transmission_costs!$A:$A,AE$615)","v":0},{"$f":"SUMIFS(raw_transmission_costs!$F:$F,raw_transmission_costs!$B:$B,$C638,raw_transmission_costs!$A:$A,AF$615)","v":0},{"$f":"SUMIFS(raw_transmission_costs!$F:$F,raw_transmission_costs!$B:$B,$C638,raw_transmission_costs!$A:$A,AG$615)","v":0},{"$f":"SUMIFS(raw_transmission_costs!$F:$F,raw_transmission_costs!$B:$B,$C638,raw_transmission_costs!$A:$A,AH$615)","v":0},{"$f":"SUMIFS(raw_transmission_costs!$F:$F,raw_transmission_costs!$B:$B,$C638,raw_transmission_costs!$A:$A,AI$615)","v":0},{"$f":"SUMIFS(raw_transmission_costs!$F:$F,raw_transmission_costs!$B:$B,$C638,raw_transmission_costs!$A:$A,AJ$615)","v":0},{"$f":"SUMIFS(raw_transmission_costs!$F:$F,raw_transmission_costs!$B:$B,$C638,raw_transmission_costs!$A:$A,AK$615)","v":0},{"$f":"SUMIFS(raw_transmission_costs!$F:$F,raw_transmission_costs!$B:$B,$C638,raw_transmission_costs!$A:$A,AL$615)","v":0},{"$f":"SUMIFS(raw_transmission_costs!$F:$F,raw_transmission_costs!$B:$B,$C638,raw_transmission_costs!$A:$A,AM$615)","v":0},{"$f":"SUMIFS(raw_transmission_costs!$F:$F,raw_transmission_costs!$B:$B,$C638,raw_transmission_costs!$A:$A,AN$615)","v":0}]
[null,null,"None","MW",{"$f":"SUMIFS(raw_transmission_costs!$F:$F,raw_transmission_costs!$B:$B,$C639,raw_transmission_costs!$A:$A,E$615)","v":0},{"$f":"SUMIFS(raw_transmission_costs!$F:$F,raw_transmission_costs!$B:$B,$C639,raw_transmission_costs!$A:$A,F$615)","v":0},{"$f":"SUMIFS(raw_transmission_costs!$F:$F,raw_transmission_costs!$B:$B,$C639,raw_transmission_costs!$A:$A,G$615)","v":0},{"$f":"SUMIFS(raw_transmission_costs!$F:$F,raw_transmission_costs!$B:$B,$C639,raw_transmission_costs!$A:$A,H$615)","v":0},{"$f":"SUMIFS(raw_transmission_costs!$F:$F,raw_transmission_costs!$B:$B,$C639,raw_transmission_costs!$A:$A,I$615)","v":0},{"$f":"SUMIFS(raw_transmission_costs!$F:$F,raw_transmission_costs!$B:$B,$C639,raw_transmission_costs!$A:$A,J$615)","v":0},{"$f":"SUMIFS(raw_transmission_costs!$F:$F,raw_transmission_costs!$B:$B,$C639,raw_transmission_costs!$A:$A,K$615)","v":0},{"$f":"SUMIFS(raw_transmission_costs!$F:$F,raw_transmission_costs!$B:$B,$C639,raw_transmission_costs!$A:$A,L$615)","v":0},{"$f":"SUMIFS(raw_transmission_costs!$F:$F,raw_transmission_costs!$B:$B,$C639,raw_transmission_costs!$A:$A,M$615)","v":0},{"$f":"SUMIFS(raw_transmission_costs!$F:$F,raw_transmission_costs!$B:$B,$C639,raw_transmission_costs!$A:$A,N$615)","v":0},{"$f":"SUMIFS(raw_transmission_costs!$F:$F,raw_transmission_costs!$B:$B,$C639,raw_transmission_costs!$A:$A,O$615)","v":0},{"$f":"SUMIFS(raw_transmission_costs!$F:$F,raw_transmission_costs!$B:$B,$C639,raw_transmission_costs!$A:$A,P$615)","v":0},{"$f":"SUMIFS(raw_transmission_costs!$F:$F,raw_transmission_costs!$B:$B,$C639,raw_transmission_costs!$A:$A,Q$615)","v":0},{"$f":"SUMIFS(raw_transmission_costs!$F:$F,raw_transmission_costs!$B:$B,$C639,raw_transmission_costs!$A:$A,R$615)","v":0},{"$f":"SUMIFS(raw_transmission_costs!$F:$F,raw_transmission_costs!$B:$B,$C639,raw_transmission_costs!$A:$A,S$615)","v":0},{"$f":"SUMIFS(raw_transmission_costs!$F:$F,raw_transmission_costs!$B:$B,$C639,raw_transmission_costs!$A:$A,T$615)","v":0},{"$f":"SUMIFS(raw_transmission_costs!$F:$F,raw_transmission_costs!$B:$B,$C639,raw_transmission_costs!$A:$A,U$615)","v":0},{"$f":"SUMIFS(raw_transmission_costs!$F:$F,raw_transmission_costs!$B:$B,$C639,raw_transmission_costs!$A:$A,V$615)","v":0},{"$f":"SUMIFS(raw_transmission_costs!$F:$F,raw_transmission_costs!$B:$B,$C639,raw_transmission_costs!$A:$A,W$615)","v":0},{"$f":"SUMIFS(raw_transmission_costs!$F:$F,raw_transmission_costs!$B:$B,$C639,raw_transmission_costs!$A:$A,X$615)","v":0},{"$f":"SUMIFS(raw_transmission_costs!$F:$F,raw_transmission_costs!$B:$B,$C639,raw_transmission_costs!$A:$A,Y$615)","v":0},{"$f":"SUMIFS(raw_transmission_costs!$F:$F,raw_transmission_costs!$B:$B,$C639,raw_transmission_costs!$A:$A,Z$615)","v":0},{"$f":"SUMIFS(raw_transmission_costs!$F:$F,raw_transmission_costs!$B:$B,$C639,raw_transmission_costs!$A:$A,AA$615)","v":0},{"$f":"SUMIFS(raw_transmission_costs!$F:$F,raw_transmission_costs!$B:$B,$C639,raw_transmission_costs!$A:$A,AB$615)","v":0},{"$f":"SUMIFS(raw_transmission_costs!$F:$F,raw_transmission_costs!$B:$B,$C639,raw_transmission_costs!$A:$A,AC$615)","v":0},{"$f":"SUMIFS(raw_transmission_costs!$F:$F,raw_transmission_costs!$B:$B,$C639,raw_transmission_costs!$A:$A,AD$615)","v":0},{"$f":"SUMIFS(raw_transmission_costs!$F:$F,raw_transmission_costs!$B:$B,$C639,raw_transmission_costs!$A:$A,AE$615)","v":0},{"$f":"SUMIFS(raw_transmission_costs!$F:$F,raw_transmission_costs!$B:$B,$C639,raw_transmission_costs!$A:$A,AF$615)","v":0},{"$f":"SUMIFS(raw_transmission_costs!$F:$F,raw_transmission_costs!$B:$B,$C639,raw_transmission_costs!$A:$A,AG$615)","v":0},{"$f":"SUMIFS(raw_transmission_costs!$F:$F,raw_transmission_costs!$B:$B,$C639,raw_transmission_costs!$A:$A,AH$615)","v":0},{"$f":"SUMIFS(raw_transmission_costs!$F:$F,raw_transmission_costs!$B:$B,$C639,raw_transmission_costs!$A:$A,AI$615)","v":0},{"$f":"SUMIFS(raw_transmission_costs!$F:$F,raw_transmission_costs!$B:$B,$C639,raw_transmission_costs!$A:$A,AJ$615)","v":0},{"$f":"SUMIFS(raw_transmission_costs!$F:$F,raw_transmission_costs!$B:$B,$C639,raw_transmission_costs!$A:$A,AK$615)","v":0},{"$f":"SUMIFS(raw_transmission_costs!$F:$F,raw_transmission_costs!$B:$B,$C639,raw_transmission_costs!$A:$A,AL$615)","v":0},{"$f":"SUMIFS(raw_transmission_costs!$F:$F,raw_transmission_costs!$B:$B,$C639,raw_transmission_costs!$A:$A,AM$615)","v":0},{"$f":"SUMIFS(raw_transmission_costs!$F:$F,raw_transmission_costs!$B:$B,$C639,raw_transmission_costs!$A:$A,AN$615)","v":0}]
[]
[null,null,"FCDS Build by Tx Zone"]
[null,null,"Tx Zone","Unit",2015,2016,2017,2018,2019,2020,2021,2022,2023,2024,2025,2026,2027,2028,2029,2030,2031,2032,2033,2034,2035,2036,2037,2038,2039,2040,2041,2042,2043,2044,2045,2046,2047,2048,2049,2050]
[null,null,{"$f":"C616","v":"Greater_Kramer"},"MW",{"$f":"SUMIFS(raw_transmission_costs!$G:$G,raw_transmission_costs!$B:$B,$C643,raw_transmission_costs!$A:$A,E$615)-SUMIFS(raw_transmission_costs!$E:$E,raw_transmission_costs!$B:$B,$C643,raw_transmission_costs!$A:$A,E$615)","v":0},{"$f":"SUMIFS(raw_transmission_costs!$G:$G,raw_transmission_costs!$B:$B,$C643,raw_transmission_costs!$A:$A,F$615)-SUMIFS(raw_transmission_costs!$E:$E,raw_transmission_costs!$B:$B,$C643,raw_transmission_costs!$A:$A,F$615)","v":0},{"$f":"SUMIFS(raw_transmission_costs!$G:$G,raw_transmission_costs!$B:$B,$C643,raw_transmission_costs!$A:$A,G$615)-SUMIFS(raw_transmission_costs!$E:$E,raw_transmission_costs!$B:$B,$C643,raw_transmission_costs!$A:$A,G$615)","v":0},{"$f":"SUMIFS(raw_transmission_costs!$G:$G,raw_transmission_costs!$B:$B,$C643,raw_transmission_costs!$A:$A,H$615)-SUMIFS(raw_transmission_costs!$E:$E,raw_transmission_costs!$B:$B,$C643,raw_transmission_costs!$A:$A,H$615)","v":0},{"$f":"SUMIFS(raw_transmission_costs!$G:$G,raw_transmission_costs!$B:$B,$C643,raw_transmission_costs!$A:$A,I$615)-SUMIFS(raw_transmission_costs!$E:$E,raw_transmission_costs!$B:$B,$C643,raw_transmission_costs!$A:$A,I$615)","v":0},{"$f":"SUMIFS(raw_transmission_costs!$G:$G,raw_transmission_costs!$B:$B,$C643,raw_transmission_costs!$A:$A,J$615)-SUMIFS(raw_transmission_costs!$E:$E,raw_transmission_costs!$B:$B,$C643,raw_transmission_costs!$A:$A,J$615)","v":0},{"$f":"SUMIFS(raw_transmission_costs!$G:$G,raw_transmission_costs!$B:$B,$C643,raw_transmission_costs!$A:$A,K$615)-SUMIFS(raw_transmission_costs!$E:$E,raw_transmission_costs!$B:$B,$C643,raw_transmission_costs!$A:$A,K$615)","v":35},{"$f":"SUMIFS(raw_transmission_costs!$G:$G,raw_transmission_costs!$B:$B,$C643,raw_transmission_costs!$A:$A,L$615)-SUMIFS(raw_transmission_costs!$E:$E,raw_transmission_costs!$B:$B,$C643,raw_transmission_costs!$A:$A,L$615)","v":373},{"$f":"SUMIFS(raw_transmission_costs!$G:$G,raw_transmission_costs!$B:$B,$C643,raw_transmission_costs!$A:$A,M$615)-SUMIFS(raw_transmission_costs!$E:$E,raw_transmission_costs!$B:$B,$C643,raw_transmission_costs!$A:$A,M$615)","v":373},{"$f":"SUMIFS(raw_transmission_costs!$G:$G,raw_transmission_costs!$B:$B,$C643,raw_transmission_costs!$A:$A,N$615)-SUMIFS(raw_transmission_costs!$E:$E,raw_transmission_costs!$B:$B,$C643,raw_transmission_costs!$A:$A,N$615)","v":373},{"$f":"SUMIFS(raw_transmission_costs!$G:$G,raw_transmission_costs!$B:$B,$C643,raw_transmission_costs!$A:$A,O$615)-SUMIFS(raw_transmission_costs!$E:$E,raw_transmission_costs!$B:$B,$C643,raw_transmission_costs!$A:$A,O$615)","v":0},{"$f":"SUMIFS(raw_transmission_costs!$G:$G,raw_transmission_costs!$B:$B,$C643,raw_transmission_costs!$A:$A,P$615)-SUMIFS(raw_transmission_costs!$E:$E,raw_transmission_costs!$B:$B,$C643,raw_transmission_costs!$A:$A,P$615)","v":373},{"$f":"SUMIFS(raw_transmission_costs!$G:$G,raw_transmission_costs!$B:$B,$C643,raw_transmission_costs!$A:$A,Q$615)-SUMIFS(raw_transmission_costs!$E:$E,raw_transmission_costs!$B:$B,$C643,raw_transmission_costs!$A:$A,Q$615)","v":0},{"$f":"SUMIFS(raw_transmission_costs!$G:$G,raw_transmission_costs!$B:$B,$C643,raw_transmission_costs!$A:$A,R$615)-SUMIFS(raw_transmission_costs!$E:$E,raw_transmission_costs!$B:$B,$C643,raw_transmission_costs!$A:$A,R$615)","v":0},{"$f":"SUMIFS(raw_transmission_costs!$G:$G,raw_transmission_costs!$B:$B,$C643,raw_transmission_costs!$A:$A,S$615)-SUMIFS(raw_transmission_costs!$E:$E,raw_transmission_costs!$B:$B,$C643,raw_transmission_costs!$A:$A,S$615)","v":0},{"$f":"SUMIFS(raw_transmission_costs!$G:$G,raw_transmission_costs!$B:$B,$C643,raw_transmission_costs!$A:$A,T$615)-SUMIFS(raw_transmission_costs!$E:$E,raw_transmission_costs!$B:$B,$C643,raw_transmission_costs!$A:$A,T$615)","v":373},{"$f":"SUMIFS(raw_transmission_costs!$G:$G,raw_transmission_costs!$B:$B,$C643,raw_transmission_costs!$A:$A,U$615)-SUMIFS(raw_transmission_costs!$E:$E,raw_transmission_costs!$B:$B,$C643,raw_transmission_costs!$A:$A,U$615)","v":0},{"$f":"SUMIFS(raw_transmission_costs!$G:$G,raw_transmission_costs!$B:$B,$C643,raw_transmission_costs!$A:$A,V$615)-SUMIFS(raw_transmission_costs!$E:$E,raw_transmission_costs!$B:$B,$C643,raw_transmission_costs!$A:$A,V$615)","v":0},{"$f":"SUMIFS(raw_transmission_costs!$G:$G,raw_transmission_costs!$B:$B,$C643,raw_transmission_costs!$A:$A,W$615)-SUMIFS(raw_transmission_costs!$E:$E,raw_transmission_costs!$B:$B,$C643,raw_transmission_costs!$A:$A,W$615)","v":0},{"$f":"SUMIFS(raw_transmission_costs!$G:$G,raw_transmission_costs!$B:$B,$C643,raw_transmission_costs!$A:$A,X$615)-SUMIFS(raw_transmission_costs!$E:$E,raw_transmission_costs!$B:$B,$C643,raw_transmission_costs!$A:$A,X$615)","v":0},{"$f":"SUMIFS(raw_transmission_costs!$G:$G,raw_transmission_costs!$B:$B,$C643,raw_transmission_costs!$A:$A,Y$615)-SUMIFS(raw_transmission_costs!$E:$E,raw_transmission_costs!$B:$B,$C643,raw_transmission_costs!$A:$A,Y$615)","v":0},{"$f":"SUMIFS(raw_transmission_costs!$G:$G,raw_transmission_costs!$B:$B,$C643,raw_transmission_costs!$A:$A,Z$615)-SUMIFS(raw_transmission_costs!$E:$E,raw_transmission_costs!$B:$B,$C643,raw_transmission_costs!$A:$A,Z$615)","v":0},{"$f":"SUMIFS(raw_transmission_costs!$G:$G,raw_transmission_costs!$B:$B,$C643,raw_transmission_costs!$A:$A,AA$615)-SUMIFS(raw_transmission_costs!$E:$E,raw_transmission_costs!$B:$B,$C643,raw_transmission_costs!$A:$A,AA$615)","v":0},{"$f":"SUMIFS(raw_transmission_costs!$G:$G,raw_transmission_costs!$B:$B,$C643,raw_transmission_costs!$A:$A,AB$615)-SUMIFS(raw_transmission_costs!$E:$E,raw_transmission_costs!$B:$B,$C643,raw_transmission_costs!$A:$A,AB$615)","v":0},{"$f":"SUMIFS(raw_transmission_costs!$G:$G,raw_transmission_costs!$B:$B,$C643,raw_transmission_costs!$A:$A,AC$615)-SUMIFS(raw_transmission_costs!$E:$E,raw_transmission_costs!$B:$B,$C643,raw_transmission_costs!$A:$A,AC$615)","v":0},{"$f":"SUMIFS(raw_transmission_costs!$G:$G,raw_transmission_costs!$B:$B,$C643,raw_transmission_costs!$A:$A,AD$615)-SUMIFS(raw_transmission_costs!$E:$E,raw_transmission_costs!$B:$B,$C643,raw_transmission_costs!$A:$A,AD$615)","v":0},{"$f":"SUMIFS(raw_transmission_costs!$G:$G,raw_transmission_costs!$B:$B,$C643,raw_transmission_costs!$A:$A,AE$615)-SUMIFS(raw_transmission_costs!$E:$E,raw_transmission_costs!$B:$B,$C643,raw_transmission_costs!$A:$A,AE$615)","v":0},{"$f":"SUMIFS(raw_transmission_costs!$G:$G,raw_transmission_costs!$B:$B,$C643,raw_transmission_costs!$A:$A,AF$615)-SUMIFS(raw_transmission_costs!$E:$E,raw_transmission_costs!$B:$B,$C643,raw_transmission_costs!$A:$A,AF$615)","v":0},{"$f":"SUMIFS(raw_transmission_costs!$G:$G,raw_transmission_costs!$B:$B,$C643,raw_transmission_costs!$A:$A,AG$615)-SUMIFS(raw_transmission_costs!$E:$E,raw_transmission_costs!$B:$B,$C643,raw_transmission_costs!$A:$A,AG$615)","v":0},{"$f":"SUMIFS(raw_transmission_costs!$G:$G,raw_transmission_costs!$B:$B,$C643,raw_transmission_costs!$A:$A,AH$615)-SUMIFS(raw_transmission_costs!$E:$E,raw_transmission_costs!$B:$B,$C643,raw_transmission_costs!$A:$A,AH$615)","v":0},{"$f":"SUMIFS(raw_transmission_costs!$G:$G,raw_transmission_costs!$B:$B,$C643,raw_transmission_costs!$A:$A,AI$615)-SUMIFS(raw_transmission_costs!$E:$E,raw_transmission_costs!$B:$B,$C643,raw_transmission_costs!$A:$A,AI$615)","v":397},{"$f":"SUMIFS(raw_transmission_costs!$G:$G,raw_transmission_costs!$B:$B,$C643,raw_transmission_costs!$A:$A,AJ$615)-SUMIFS(raw_transmission_costs!$E:$E,raw_transmission_costs!$B:$B,$C643,raw_transmission_costs!$A:$A,AJ$615)","v":0},{"$f":"SUMIFS(raw_transmission_costs!$G:$G,raw_transmission_costs!$B:$B,$C643,raw_transmission_costs!$A:$A,AK$615)-SUMIFS(raw_transmission_costs!$E:$E,raw_transmission_costs!$B:$B,$C643,raw_transmission_costs!$A:$A,AK$615)","v":0},{"$f":"SUMIFS(raw_transmission_costs!$G:$G,raw_transmission_costs!$B:$B,$C643,raw_transmission_costs!$A:$A,AL$615)-SUMIFS(raw_transmission_costs!$E:$E,raw_transmission_costs!$B:$B,$C643,raw_transmission_costs!$A:$A,AL$615)","v":0},{"$f":"SUMIFS(raw_transmission_costs!$G:$G,raw_transmission_costs!$B:$B,$C643,raw_transmission_costs!$A:$A,AM$615)-SUMIFS(raw_transmission_costs!$E:$E,raw_transmission_costs!$B:$B,$C643,raw_transmission_costs!$A:$A,AM$615)","v":0},{"$f":"SUMIFS(raw_transmission_costs!$G:$G,raw_transmission_costs!$B:$B,$C643,raw_transmission_costs!$A:$A,AN$615)-SUMIFS(raw_transmission_costs!$E:$E,raw_transmission_costs!$B:$B,$C643,raw_transmission_costs!$A:$A,AN$615)","v":0}]
[null,null,"Inyokern_North_Kramer","MW",{"$f":"SUMIFS(raw_transmission_costs!$G:$G,raw_transmission_costs!$B:$B,$C644,raw_transmission_costs!$A:$A,E$615)-SUMIFS(raw_transmission_costs!$E:$E,raw_transmission_costs!$B:$B,$C644,raw_transmission_costs!$A:$A,E$615)","v":0},{"$f":"SUMIFS(raw_transmission_costs!$G:$G,raw_transmission_costs!$B:$B,$C644,raw_transmission_costs!$A:$A,F$615)-SUMIFS(raw_transmission_costs!$E:$E,raw_transmission_costs!$B:$B,$C644,raw_transmission_costs!$A:$A,F$615)","v":0},{"$f":"SUMIFS(raw_transmission_costs!$G:$G,raw_transmission_costs!$B:$B,$C644,raw_transmission_costs!$A:$A,G$615)-SUMIFS(raw_transmission_costs!$E:$E,raw_transmission_costs!$B:$B,$C644,raw_transmission_costs!$A:$A,G$615)","v":0},{"$f":"SUMIFS(raw_transmission_costs!$G:$G,raw_transmission_costs!$B:$B,$C644,raw_transmission_costs!$A:$A,H$615)-SUMIFS(raw_transmission_costs!$E:$E,raw_transmission_costs!$B:$B,$C644,raw_transmission_costs!$A:$A,H$615)","v":0},{"$f":"SUMIFS(raw_transmission_costs!$G:$G,raw_transmission_costs!$B:$B,$C644,raw_transmission_costs!$A:$A,I$615)-SUMIFS(raw_transmission_costs!$E:$E,raw_transmission_costs!$B:$B,$C644,raw_transmission_costs!$A:$A,I$615)","v":0},{"$f":"SUMIFS(raw_transmission_costs!$G:$G,raw_transmission_costs!$B:$B,$C644,raw_transmission_costs!$A:$A,J$615)-SUMIFS(raw_transmission_costs!$E:$E,raw_transmission_costs!$B:$B,$C644,raw_transmission_costs!$A:$A,J$615)","v":0},{"$f":"SUMIFS(raw_transmission_costs!$G:$G,raw_transmission_costs!$B:$B,$C644,raw_transmission_costs!$A:$A,K$615)-SUMIFS(raw_transmission_costs!$E:$E,raw_transmission_costs!$B:$B,$C644,raw_transmission_costs!$A:$A,K$615)","v":35},{"$f":"SUMIFS(raw_transmission_costs!$G:$G,raw_transmission_costs!$B:$B,$C644,raw_transmission_costs!$A:$A,L$615)-SUMIFS(raw_transmission_costs!$E:$E,raw_transmission_costs!$B:$B,$C644,raw_transmission_costs!$A:$A,L$615)","v":73},{"$f":"SUMIFS(raw_transmission_costs!$G:$G,raw_transmission_costs!$B:$B,$C644,raw_transmission_costs!$A:$A,M$615)-SUMIFS(raw_transmission_costs!$E:$E,raw_transmission_costs!$B:$B,$C644,raw_transmission_costs!$A:$A,M$615)","v":73},{"$f":"SUMIFS(raw_transmission_costs!$G:$G,raw_transmission_costs!$B:$B,$C644,raw_transmission_costs!$A:$A,N$615)-SUMIFS(raw_transmission_costs!$E:$E,raw_transmission_costs!$B:$B,$C644,raw_transmission_costs!$A:$A,N$615)","v":73},{"$f":"SUMIFS(raw_transmission_costs!$G:$G,raw_transmission_costs!$B:$B,$C644,raw_transmission_costs!$A:$A,O$615)-SUMIFS(raw_transmission_costs!$E:$E,raw_transmission_costs!$B:$B,$C644,raw_transmission_costs!$A:$A,O$615)","v":0},{"$f":"SUMIFS(raw_transmission_costs!$G:$G,raw_transmission_costs!$B:$B,$C644,raw_transmission_costs!$A:$A,P$615)-SUMIFS(raw_transmission_costs!$E:$E,raw_transmission_costs!$B:$B,$C644,raw_transmission_costs!$A:$A,P$615)","v":73},{"$f":"SUMIFS(raw_transmission_costs!$G:$G,raw_transmission_costs!$B:$B,$C644,raw_transmission_costs!$A:$A,Q$615)-SUMIFS(raw_transmission_costs!$E:$E,raw_transmission_costs!$B:$B,$C644,raw_transmission_costs!$A:$A,Q$615)","v":0},{"$f":"SUMIFS(raw_transmission_costs!$G:$G,raw_transmission_costs!$B:$B,$C644,raw_transmission_costs!$A:$A,R$615)-SUMIFS(raw_transmission_costs!$E:$E,raw_transmission_costs!$B:$B,$C644,raw_transmission_costs!$A:$A,R$615)","v":0},{"$f":"SUMIFS(raw_transmission_costs!$G:$G,raw_transmission_costs!$B:$B,$C644,raw_transmission_costs!$A:$A,S$615)-SUMIFS(raw_transmission_costs!$E:$E,raw_transmission_costs!$B:$B,$C644,raw_transmission_costs!$A:$A,S$615)","v":0},{"$f":"SUMIFS(raw_transmission_costs!$G:$G,raw_transmission_costs!$B:$B,$C644,raw_transmission_costs!$A:$A,T$615)-SUMIFS(raw_transmission_costs!$E:$E,raw_transmission_costs!$B:$B,$C644,raw_transmission_costs!$A:$A,T$615)","v":73},{"$f":"SUMIFS(raw_transmission_costs!$G:$G,raw_transmission_costs!$B:$B,$C644,raw_transmission_costs!$A:$A,U$615)-SUMIFS(raw_transmission_costs!$E:$E,raw_transmission_costs!$B:$B,$C644,raw_transmission_costs!$A:$A,U$615)","v":0},{"$f":"SUMIFS(raw_transmission_costs!$G:$G,raw_transmission_costs!$B:$B,$C644,raw_transmission_costs!$A:$A,V$615)-SUMIFS(raw_transmission_costs!$E:$E,raw_transmission_costs!$B:$B,$C644,raw_transmission_costs!$A:$A,V$615)","v":0},{"$f":"SUMIFS(raw_transmission_costs!$G:$G,raw_transmission_costs!$B:$B,$C644,raw_transmission_costs!$A:$A,W$615)-SUMIFS(raw_transmission_costs!$E:$E,raw_transmission_costs!$B:$B,$C644,raw_transmission_costs!$A:$A,W$615)","v":0},{"$f":"SUMIFS(raw_transmission_costs!$G:$G,raw_transmission_costs!$B:$B,$C644,raw_transmission_costs!$A:$A,X$615)-SUMIFS(raw_transmission_costs!$E:$E,raw_transmission_costs!$B:$B,$C644,raw_transmission_costs!$A:$A,X$615)","v":0},{"$f":"SUMIFS(raw_transmission_costs!$G:$G,raw_transmission_costs!$B:$B,$C644,raw_transmission_costs!$A:$A,Y$615)-SUMIFS(raw_transmission_costs!$E:$E,raw_transmission_costs!$B:$B,$C644,raw_transmission_costs!$A:$A,Y$615)","v":0},{"$f":"SUMIFS(raw_transmission_costs!$G:$G,raw_transmission_costs!$B:$B,$C644,raw_transmission_costs!$A:$A,Z$615)-SUMIFS(raw_transmission_costs!$E:$E,raw_transmission_costs!$B:$B,$C644,raw_transmission_costs!$A:$A,Z$615)","v":0},{"$f":"SUMIFS(raw_transmission_costs!$G:$G,raw_transmission_costs!$B:$B,$C644,raw_transmission_costs!$A:$A,AA$615)-SUMIFS(raw_transmission_costs!$E:$E,raw_transmission_costs!$B:$B,$C644,raw_transmission_costs!$A:$A,AA$615)","v":0},{"$f":"SUMIFS(raw_transmission_costs!$G:$G,raw_transmission_costs!$B:$B,$C644,raw_transmission_costs!$A:$A,AB$615)-SUMIFS(raw_transmission_costs!$E:$E,raw_transmission_costs!$B:$B,$C644,raw_transmission_costs!$A:$A,AB$615)","v":0},{"$f":"SUMIFS(raw_transmission_costs!$G:$G,raw_transmission_costs!$B:$B,$C644,raw_transmission_costs!$A:$A,AC$615)-SUMIFS(raw_transmission_costs!$E:$E,raw_transmission_costs!$B:$B,$C644,raw_transmission_costs!$A:$A,AC$615)","v":0},{"$f":"SUMIFS(raw_transmission_costs!$G:$G,raw_transmission_costs!$B:$B,$C644,raw_transmission_costs!$A:$A,AD$615)-SUMIFS(raw_transmission_costs!$E:$E,raw_transmission_costs!$B:$B,$C644,raw_transmission_costs!$A:$A,AD$615)","v":0},{"$f":"SUMIFS(raw_transmission_costs!$G:$G,raw_transmission_costs!$B:$B,$C644,raw_transmission_costs!$A:$A,AE$615)-SUMIFS(raw_transmission_costs!$E:$E,raw_transmission_costs!$B:$B,$C644,raw_transmission_costs!$A:$A,AE$615)","v":0},{"$f":"SUMIFS(raw_transmission_costs!$G:$G,raw_transmission_costs!$B:$B,$C644,raw_transmission_costs!$A:$A,AF$615)-SUMIFS(raw_transmission_costs!$E:$E,raw_transmission_costs!$B:$B,$C644,raw_transmission_costs!$A:$A,AF$615)","v":0},{"$f":"SUMIFS(raw_transmission_costs!$G:$G,raw_transmission_costs!$B:$B,$C644,raw_transmission_costs!$A:$A,AG$615)-SUMIFS(raw_transmission_costs!$E:$E,raw_transmission_costs!$B:$B,$C644,raw_transmission_costs!$A:$A,AG$615)","v":0},{"$f":"SUMIFS(raw_transmission_costs!$G:$G,raw_transmission_costs!$B:$B,$C644,raw_transmission_costs!$A:$A,AH$615)-SUMIFS(raw_transmission_costs!$E:$E,raw_transmission_costs!$B:$B,$C644,raw_transmission_costs!$A:$A,AH$615)","v":0},{"$f":"SUMIFS(raw_transmission_costs!$G:$G,raw_transmission_costs!$B:$B,$C644,raw_transmission_costs!$A:$A,AI$615)-SUMIFS(raw_transmission_costs!$E:$E,raw_transmission_costs!$B:$B,$C644,raw_transmission_costs!$A:$A,AI$615)","v":97},{"$f":"SUMIFS(raw_transmission_costs!$G:$G,raw_transmission_costs!$B:$B,$C644,raw_transmission_costs!$A:$A,AJ$615)-SUMIFS(raw_transmission_costs!$E:$E,raw_transmission_costs!$B:$B,$C644,raw_transmission_costs!$A:$A,AJ$615)","v":0},{"$f":"SUMIFS(raw_transmission_costs!$G:$G,raw_transmission_costs!$B:$B,$C644,raw_transmission_costs!$A:$A,AK$615)-SUMIFS(raw_transmission_costs!$E:$E,raw_transmission_costs!$B:$B,$C644,raw_transmission_costs!$A:$A,AK$615)","v":0},{"$f":"SUMIFS(raw_transmission_costs!$G:$G,raw_transmission_costs!$B:$B,$C644,raw_transmission_costs!$A:$A,AL$615)-SUMIFS(raw_transmission_costs!$E:$E,raw_transmission_costs!$B:$B,$C644,raw_transmission_costs!$A:$A,AL$615)","v":0},{"$f":"SUMIFS(raw_transmission_costs!$G:$G,raw_transmission_costs!$B:$B,$C644,raw_transmission_costs!$A:$A,AM$615)-SUMIFS(raw_transmission_costs!$E:$E,raw_transmission_costs!$B:$B,$C644,raw_transmission_costs!$A:$A,AM$615)","v":0},{"$f":"SUMIFS(raw_transmission_costs!$G:$G,raw_transmission_costs!$B:$B,$C644,raw_transmission_costs!$A:$A,AN$615)-SUMIFS(raw_transmission_costs!$E:$E,raw_transmission_costs!$B:$B,$C644,raw_transmission_costs!$A:$A,AN$615)","v":0}]
[null,null,"North_Victor","MW",{"$f":"SUMIFS(raw_transmission_costs!$G:$G,raw_transmission_costs!$B:$B,$C645,raw_transmission_costs!$A:$A,E$615)-SUMIFS(raw_transmission_costs!$E:$E,raw_transmission_costs!$B:$B,$C645,raw_transmission_costs!$A:$A,E$615)","v":0},{"$f":"SUMIFS(raw_transmission_costs!$G:$G,raw_transmission_costs!$B:$B,$C645,raw_transmission_costs!$A:$A,F$615)-SUMIFS(raw_transmission_costs!$E:$E,raw_transmission_costs!$B:$B,$C645,raw_transmission_costs!$A:$A,F$615)","v":0},{"$f":"SUMIFS(raw_transmission_costs!$G:$G,raw_transmission_costs!$B:$B,$C645,raw_transmission_costs!$A:$A,G$615)-SUMIFS(raw_transmission_costs!$E:$E,raw_transmission_costs!$B:$B,$C645,raw_transmission_costs!$A:$A,G$615)","v":0},{"$f":"SUMIFS(raw_transmission_costs!$G:$G,raw_transmission_costs!$B:$B,$C645,raw_transmission_costs!$A:$A,H$615)-SUMIFS(raw_transmission_costs!$E:$E,raw_transmission_costs!$B:$B,$C645,raw_transmission_costs!$A:$A,H$615)","v":0},{"$f":"SUMIFS(raw_transmission_costs!$G:$G,raw_transmission_costs!$B:$B,$C645,raw_transmission_costs!$A:$A,I$615)-SUMIFS(raw_transmission_costs!$E:$E,raw_transmission_costs!$B:$B,$C645,raw_transmission_costs!$A:$A,I$615)","v":0},{"$f":"SUMIFS(raw_transmission_costs!$G:$G,raw_transmission_costs!$B:$B,$C645,raw_transmission_costs!$A:$A,J$615)-SUMIFS(raw_transmission_costs!$E:$E,raw_transmission_costs!$B:$B,$C645,raw_transmission_costs!$A:$A,J$615)","v":0},{"$f":"SUMIFS(raw_transmission_costs!$G:$G,raw_transmission_costs!$B:$B,$C645,raw_transmission_costs!$A:$A,K$615)-SUMIFS(raw_transmission_costs!$E:$E,raw_transmission_costs!$B:$B,$C645,raw_transmission_costs!$A:$A,K$615)","v":0},{"$f":"SUMIFS(raw_transmission_costs!$G:$G,raw_transmission_costs!$B:$B,$C645,raw_transmission_costs!$A:$A,L$615)-SUMIFS(raw_transmission_costs!$E:$E,raw_transmission_costs!$B:$B,$C645,raw_transmission_costs!$A:$A,L$615)","v":300},{"$f":"SUMIFS(raw_transmission_costs!$G:$G,raw_transmission_costs!$B:$B,$C645,raw_transmission_costs!$A:$A,M$615)-SUMIFS(raw_transmission_costs!$E:$E,raw_transmission_costs!$B:$B,$C645,raw_transmission_costs!$A:$A,M$615)","v":300},{"$f":"SUMIFS(raw_transmission_costs!$G:$G,raw_transmission_costs!$B:$B,$C645,raw_transmission_costs!$A:$A,N$615)-SUMIFS(raw_transmission_costs!$E:$E,raw_transmission_costs!$B:$B,$C645,raw_transmission_costs!$A:$A,N$615)","v":300},{"$f":"SUMIFS(raw_transmission_costs!$G:$G,raw_transmission_costs!$B:$B,$C645,raw_transmission_costs!$A:$A,O$615)-SUMIFS(raw_transmission_costs!$E:$E,raw_transmission_costs!$B:$B,$C645,raw_transmission_costs!$A:$A,O$615)","v":0},{"$f":"SUMIFS(raw_transmission_costs!$G:$G,raw_transmission_costs!$B:$B,$C645,raw_transmission_costs!$A:$A,P$615)-SUMIFS(raw_transmission_costs!$E:$E,raw_transmission_costs!$B:$B,$C645,raw_transmission_costs!$A:$A,P$615)","v":300},{"$f":"SUMIFS(raw_transmission_costs!$G:$G,raw_transmission_costs!$B:$B,$C645,raw_transmission_costs!$A:$A,Q$615)-SUMIFS(raw_transmission_costs!$E:$E,raw_transmission_costs!$B:$B,$C645,raw_transmission_costs!$A:$A,Q$615)","v":0},{"$f":"SUMIFS(raw_transmission_costs!$G:$G,raw_transmission_costs!$B:$B,$C645,raw_transmission_costs!$A:$A,R$615)-SUMIFS(raw_transmission_costs!$E:$E,raw_transmission_costs!$B:$B,$C645,raw_transmission_costs!$A:$A,R$615)","v":0},{"$f":"SUMIFS(raw_transmission_costs!$G:$G,raw_transmission_costs!$B:$B,$C645,raw_transmission_costs!$A:$A,S$615)-SUMIFS(raw_transmission_costs!$E:$E,raw_transmission_costs!$B:$B,$C645,raw_transmission_costs!$A:$A,S$615)","v":0},{"$f":"SUMIFS(raw_transmission_costs!$G:$G,raw_transmission_costs!$B:$B,$C645,raw_transmission_costs!$A:$A,T$615)-SUMIFS(raw_transmission_costs!$E:$E,raw_transmission_costs!$B:$B,$C645,raw_transmission_costs!$A:$A,T$615)","v":300},{"$f":"SUMIFS(raw_transmission_costs!$G:$G,raw_transmission_costs!$B:$B,$C645,raw_transmission_costs!$A:$A,U$615)-SUMIFS(raw_transmission_costs!$E:$E,raw_transmission_costs!$B:$B,$C645,raw_transmission_costs!$A:$A,U$615)","v":0},{"$f":"SUMIFS(raw_transmission_costs!$G:$G,raw_transmission_costs!$B:$B,$C645,raw_transmission_costs!$A:$A,V$615)-SUMIFS(raw_transmission_costs!$E:$E,raw_transmission_costs!$B:$B,$C645,raw_transmission_costs!$A:$A,V$615)","v":0},{"$f":"SUMIFS(raw_transmission_costs!$G:$G,raw_transmission_costs!$B:$B,$C645,raw_transmission_costs!$A:$A,W$615)-SUMIFS(raw_transmission_costs!$E:$E,raw_transmission_costs!$B:$B,$C645,raw_transmission_costs!$A:$A,W$615)","v":0},{"$f":"SUMIFS(raw_transmission_costs!$G:$G,raw_transmission_costs!$B:$B,$C645,raw_transmission_costs!$A:$A,X$615)-SUMIFS(raw_transmission_costs!$E:$E,raw_transmission_costs!$B:$B,$C645,raw_transmission_costs!$A:$A,X$615)","v":0},{"$f":"SUMIFS(raw_transmission_costs!$G:$G,raw_transmission_costs!$B:$B,$C645,raw_transmission_costs!$A:$A,Y$615)-SUMIFS(raw_transmission_costs!$E:$E,raw_transmission_costs!$B:$B,$C645,raw_transmission_costs!$A:$A,Y$615)","v":0},{"$f":"SUMIFS(raw_transmission_costs!$G:$G,raw_transmission_costs!$B:$B,$C645,raw_transmission_costs!$A:$A,Z$615)-SUMIFS(raw_transmission_costs!$E:$E,raw_transmission_costs!$B:$B,$C645,raw_transmission_costs!$A:$A,Z$615)","v":0},{"$f":"SUMIFS(raw_transmission_costs!$G:$G,raw_transmission_costs!$B:$B,$C645,raw_transmission_costs!$A:$A,AA$615)-SUMIFS(raw_transmission_costs!$E:$E,raw_transmission_costs!$B:$B,$C645,raw_transmission_costs!$A:$A,AA$615)","v":0},{"$f":"SUMIFS(raw_transmission_costs!$G:$G,raw_transmission_costs!$B:$B,$C645,raw_transmission_costs!$A:$A,AB$615)-SUMIFS(raw_transmission_costs!$E:$E,raw_transmission_costs!$B:$B,$C645,raw_transmission_costs!$A:$A,AB$615)","v":0},{"$f":"SUMIFS(raw_transmission_costs!$G:$G,raw_transmission_costs!$B:$B,$C645,raw_transmission_costs!$A:$A,AC$615)-SUMIFS(raw_transmission_costs!$E:$E,raw_transmission_costs!$B:$B,$C645,raw_transmission_costs!$A:$A,AC$615)","v":0},{"$f":"SUMIFS(raw_transmission_costs!$G:$G,raw_transmission_costs!$B:$B,$C645,raw_transmission_costs!$A:$A,AD$615)-SUMIFS(raw_transmission_costs!$E:$E,raw_transmission_costs!$B:$B,$C645,raw_transmission_costs!$A:$A,AD$615)","v":0},{"$f":"SUMIFS(raw_transmission_costs!$G:$G,raw_transmission_costs!$B:$B,$C645,raw_transmission_costs!$A:$A,AE$615)-SUMIFS(raw_transmission_costs!$E:$E,raw_transmission_costs!$B:$B,$C645,raw_transmission_costs!$A:$A,AE$615)","v":0},{"$f":"SUMIFS(raw_transmission_costs!$G:$G,raw_transmission_costs!$B:$B,$C645,raw_transmission_costs!$A:$A,AF$615)-SUMIFS(raw_transmission_costs!$E:$E,raw_transmission_costs!$B:$B,$C645,raw_transmission_costs!$A:$A,AF$615)","v":0},{"$f":"SUMIFS(raw_transmission_costs!$G:$G,raw_transmission_costs!$B:$B,$C645,raw_transmission_costs!$A:$A,AG$615)-SUMIFS(raw_transmission_costs!$E:$E,raw_transmission_costs!$B:$B,$C645,raw_transmission_costs!$A:$A,AG$615)","v":0},{"$f":"SUMIFS(raw_transmission_costs!$G:$G,raw_transmission_costs!$B:$B,$C645,raw_transmission_costs!$A:$A,AH$615)-SUMIFS(raw_transmission_costs!$E:$E,raw_transmission_costs!$B:$B,$C645,raw_transmission_costs!$A:$A,AH$615)","v":0},{"$f":"SUMIFS(raw_transmission_costs!$G:$G,raw_transmission_costs!$B:$B,$C645,raw_transmission_costs!$A:$A,AI$615)-SUMIFS(raw_transmission_costs!$E:$E,raw_transmission_costs!$B:$B,$C645,raw_transmission_costs!$A:$A,AI$615)","v":300},{"$f":"SUMIFS(raw_transmission_costs!$G:$G,raw_transmission_costs!$B:$B,$C645,raw_transmission_costs!$A:$A,AJ$615)-SUMIFS(raw_transmission_costs!$E:$E,raw_transmission_costs!$B:$B,$C645,raw_transmission_costs!$A:$A,AJ$615)","v":0},{"$f":"SUMIFS(raw_transmission_costs!$G:$G,raw_transmission_costs!$B:$B,$C645,raw_transmission_costs!$A:$A,AK$615)-SUMIFS(raw_transmission_costs!$E:$E,raw_transmission_costs!$B:$B,$C645,raw_transmission_costs!$A:$A,AK$615)","v":0},{"$f":"SUMIFS(raw_transmission_costs!$G:$G,raw_transmission_costs!$B:$B,$C645,raw_transmission_costs!$A:$A,AL$615)-SUMIFS(raw_transmission_costs!$E:$E,raw_transmission_costs!$B:$B,$C645,raw_transmission_costs!$A:$A,AL$615)","v":0},{"$f":"SUMIFS(raw_transmission_costs!$G:$G,raw_transmission_costs!$B:$B,$C645,raw_transmission_costs!$A:$A,AM$615)-SUMIFS(raw_transmission_costs!$E:$E,raw_transmission_costs!$B:$B,$C645,raw_transmission_costs!$A:$A,AM$615)","v":0},{"$f":"SUMIFS(raw_transmission_costs!$G:$G,raw_transmission_costs!$B:$B,$C645,raw_transmission_costs!$A:$A,AN$615)-SUMIFS(raw_transmission_costs!$E:$E,raw_transmission_costs!$B:$B,$C645,raw_transmission_costs!$A:$A,AN$615)","v":0}]
[null,null,"Humboldt","MW",{"$f":"SUMIFS(raw_transmission_costs!$G:$G,raw_transmission_costs!$B:$B,$C646,raw_transmission_costs!$A:$A,E$615)-SUMIFS(raw_transmission_costs!$E:$E,raw_transmission_costs!$B:$B,$C646,raw_transmission_costs!$A:$A,E$615)","v":0},{"$f":"SUMIFS(raw_transmission_costs!$G:$G,raw_transmission_costs!$B:$B,$C646,raw_transmission_costs!$A:$A,F$615)-SUMIFS(raw_transmission_costs!$E:$E,raw_transmission_costs!$B:$B,$C646,raw_transmission_costs!$A:$A,F$615)","v":0},{"$f":"SUMIFS(raw_transmission_costs!$G:$G,raw_transmission_costs!$B:$B,$C646,raw_transmission_costs!$A:$A,G$615)-SUMIFS(raw_transmission_costs!$E:$E,raw_transmission_costs!$B:$B,$C646,raw_transmission_costs!$A:$A,G$615)","v":0},{"$f":"SUMIFS(raw_transmission_costs!$G:$G,raw_transmission_costs!$B:$B,$C646,raw_transmission_costs!$A:$A,H$615)-SUMIFS(raw_transmission_costs!$E:$E,raw_transmission_costs!$B:$B,$C646,raw_transmission_costs!$A:$A,H$615)","v":0},{"$f":"SUMIFS(raw_transmission_costs!$G:$G,raw_transmission_costs!$B:$B,$C646,raw_transmission_costs!$A:$A,I$615)-SUMIFS(raw_transmission_costs!$E:$E,raw_transmission_costs!$B:$B,$C646,raw_transmission_costs!$A:$A,I$615)","v":0},{"$f":"SUMIFS(raw_transmission_costs!$G:$G,raw_transmission_costs!$B:$B,$C646,raw_transmission_costs!$A:$A,J$615)-SUMIFS(raw_transmission_costs!$E:$E,raw_transmission_costs!$B:$B,$C646,raw_transmission_costs!$A:$A,J$615)","v":0},{"$f":"SUMIFS(raw_transmission_costs!$G:$G,raw_transmission_costs!$B:$B,$C646,raw_transmission_costs!$A:$A,K$615)-SUMIFS(raw_transmission_costs!$E:$E,raw_transmission_costs!$B:$B,$C646,raw_transmission_costs!$A:$A,K$615)","v":0},{"$f":"SUMIFS(raw_transmission_costs!$G:$G,raw_transmission_costs!$B:$B,$C646,raw_transmission_costs!$A:$A,L$615)-SUMIFS(raw_transmission_costs!$E:$E,raw_transmission_costs!$B:$B,$C646,raw_transmission_costs!$A:$A,L$615)","v":0},{"$f":"SUMIFS(raw_transmission_costs!$G:$G,raw_transmission_costs!$B:$B,$C646,raw_transmission_costs!$A:$A,M$615)-SUMIFS(raw_transmission_costs!$E:$E,raw_transmission_costs!$B:$B,$C646,raw_transmission_costs!$A:$A,M$615)","v":0},{"$f":"SUMIFS(raw_transmission_costs!$G:$G,raw_transmission_costs!$B:$B,$C646,raw_transmission_costs!$A:$A,N$615)-SUMIFS(raw_transmission_costs!$E:$E,raw_transmission_costs!$B:$B,$C646,raw_transmission_costs!$A:$A,N$615)","v":0},{"$f":"SUMIFS(raw_transmission_costs!$G:$G,raw_transmission_costs!$B:$B,$C646,raw_transmission_costs!$A:$A,O$615)-SUMIFS(raw_transmission_costs!$E:$E,raw_transmission_costs!$B:$B,$C646,raw_transmission_costs!$A:$A,O$615)","v":0},{"$f":"SUMIFS(raw_transmission_costs!$G:$G,raw_transmission_costs!$B:$B,$C646,raw_transmission_costs!$A:$A,P$615)-SUMIFS(raw_transmission_costs!$E:$E,raw_transmission_costs!$B:$B,$C646,raw_transmission_costs!$A:$A,P$615)","v":0},{"$f":"SUMIFS(raw_transmission_costs!$G:$G,raw_transmission_costs!$B:$B,$C646,raw_transmission_costs!$A:$A,Q$615)-SUMIFS(raw_transmission_costs!$E:$E,raw_transmission_costs!$B:$B,$C646,raw_transmission_costs!$A:$A,Q$615)","v":0},{"$f":"SUMIFS(raw_transmission_costs!$G:$G,raw_transmission_costs!$B:$B,$C646,raw_transmission_costs!$A:$A,R$615)-SUMIFS(raw_transmission_costs!$E:$E,raw_transmission_costs!$B:$B,$C646,raw_transmission_costs!$A:$A,R$615)","v":0},{"$f":"SUMIFS(raw_transmission_costs!$G:$G,raw_transmission_costs!$B:$B,$C646,raw_transmission_costs!$A:$A,S$615)-SUMIFS(raw_transmission_costs!$E:$E,raw_transmission_costs!$B:$B,$C646,raw_transmission_costs!$A:$A,S$615)","v":0},{"$f":"SUMIFS(raw_transmission_costs!$G:$G,raw_transmission_costs!$B:$B,$C646,raw_transmission_costs!$A:$A,T$615)-SUMIFS(raw_transmission_costs!$E:$E,raw_transmission_costs!$B:$B,$C646,raw_transmission_costs!$A:$A,T$615)","v":0},{"$f":"SUMIFS(raw_transmission_costs!$G:$G,raw_transmission_costs!$B:$B,$C646,raw_transmission_costs!$A:$A,U$615)-SUMIFS(raw_transmission_costs!$E:$E,raw_transmission_costs!$B:$B,$C646,raw_transmission_costs!$A:$A,U$615)","v":0},{"$f":"SUMIFS(raw_transmission_costs!$G:$G,raw_transmission_costs!$B:$B,$C646,raw_transmission_costs!$A:$A,V$615)-SUMIFS(raw_transmission_costs!$E:$E,raw_transmission_costs!$B:$B,$C646,raw_transmission_costs!$A:$A,V$615)","v":0},{"$f":"SUMIFS(raw_transmission_costs!$G:$G,raw_transmission_costs!$B:$B,$C646,raw_transmission_costs!$A:$A,W$615)-SUMIFS(raw_transmission_costs!$E:$E,raw_transmission_costs!$B:$B,$C646,raw_transmission_costs!$A:$A,W$615)","v":0},{"$f":"SUMIFS(raw_transmission_costs!$G:$G,raw_transmission_costs!$B:$B,$C646,raw_transmission_costs!$A:$A,X$615)-SUMIFS(raw_transmission_costs!$E:$E,raw_transmission_costs!$B:$B,$C646,raw_transmission_costs!$A:$A,X$615)","v":0},{"$f":"SUMIFS(raw_transmission_costs!$G:$G,raw_transmission_costs!$B:$B,$C646,raw_transmission_costs!$A:$A,Y$615)-SUMIFS(raw_transmission_costs!$E:$E,raw_transmission_costs!$B:$B,$C646,raw_transmission_costs!$A:$A,Y$615)","v":0},{"$f":"SUMIFS(raw_transmission_costs!$G:$G,raw_transmission_costs!$B:$B,$C646,raw_transmission_costs!$A:$A,Z$615)-SUMIFS(raw_transmission_costs!$E:$E,raw_transmission_costs!$B:$B,$C646,raw_transmission_costs!$A:$A,Z$615)","v":0},{"$f":"SUMIFS(raw_transmission_costs!$G:$G,raw_transmission_costs!$B:$B,$C646,raw_transmission_costs!$A:$A,AA$615)-SUMIFS(raw_transmission_costs!$E:$E,raw_transmission_costs!$B:$B,$C646,raw_transmission_costs!$A:$A,AA$615)","v":0},{"$f":"SUMIFS(raw_transmission_costs!$G:$G,raw_transmission_costs!$B:$B,$C646,raw_transmission_costs!$A:$A,AB$615)-SUMIFS(raw_transmission_costs!$E:$E,raw_transmission_costs!$B:$B,$C646,raw_transmission_costs!$A:$A,AB$615)","v":0},{"$f":"SUMIFS(raw_transmission_costs!$G:$G,raw_transmission_costs!$B:$B,$C646,raw_transmission_costs!$A:$A,AC$615)-SUMIFS(raw_transmission_costs!$E:$E,raw_transmission_costs!$B:$B,$C646,raw_transmission_costs!$A:$A,AC$615)","v":0},{"$f":"SUMIFS(raw_transmission_costs!$G:$G,raw_transmission_costs!$B:$B,$C646,raw_transmission_costs!$A:$A,AD$615)-SUMIFS(raw_transmission_costs!$E:$E,raw_transmission_costs!$B:$B,$C646,raw_transmission_costs!$A:$A,AD$615)","v":0},{"$f":"SUMIFS(raw_transmission_costs!$G:$G,raw_transmission_costs!$B:$B,$C646,raw_transmission_costs!$A:$A,AE$615)-SUMIFS(raw_transmission_costs!$E:$E,raw_transmission_costs!$B:$B,$C646,raw_transmission_costs!$A:$A,AE$615)","v":0},{"$f":"SUMIFS(raw_transmission_costs!$G:$G,raw_transmission_costs!$B:$B,$C646,raw_transmission_costs!$A:$A,AF$615)-SUMIFS(raw_transmission_costs!$E:$E,raw_transmission_costs!$B:$B,$C646,raw_transmission_costs!$A:$A,AF$615)","v":0},{"$f":"SUMIFS(raw_transmission_costs!$G:$G,raw_transmission_costs!$B:$B,$C646,raw_transmission_costs!$A:$A,AG$615)-SUMIFS(raw_transmission_costs!$E:$E,raw_transmission_costs!$B:$B,$C646,raw_transmission_costs!$A:$A,AG$615)","v":0},{"$f":"SUMIFS(raw_transmission_costs!$G:$G,raw_transmission_costs!$B:$B,$C646,raw_transmission_costs!$A:$A,AH$615)-SUMIFS(raw_transmission_costs!$E:$E,raw_transmission_costs!$B:$B,$C646,raw_transmission_costs!$A:$A,AH$615)","v":0},{"$f":"SUMIFS(raw_transmission_costs!$G:$G,raw_transmission_costs!$B:$B,$C646,raw_transmission_costs!$A:$A,AI$615)-SUMIFS(raw_transmission_costs!$E:$E,raw_transmission_costs!$B:$B,$C646,raw_transmission_costs!$A:$A,AI$615)","v":0},{"$f":"SUMIFS(raw_transmission_costs!$G:$G,raw_transmission_costs!$B:$B,$C646,raw_transmission_costs!$A:$A,AJ$615)-SUMIFS(raw_transmission_costs!$E:$E,raw_transmission_costs!$B:$B,$C646,raw_transmission_costs!$A:$A,AJ$615)","v":0},{"$f":"SUMIFS(raw_transmission_costs!$G:$G,raw_transmission_costs!$B:$B,$C646,raw_transmission_costs!$A:$A,AK$615)-SUMIFS(raw_transmission_costs!$E:$E,raw_transmission_costs!$B:$B,$C646,raw_transmission_costs!$A:$A,AK$615)","v":0},{"$f":"SUMIFS(raw_transmission_costs!$G:$G,raw_transmission_costs!$B:$B,$C646,raw_transmission_costs!$A:$A,AL$615)-SUMIFS(raw_transmission_costs!$E:$E,raw_transmission_costs!$B:$B,$C646,raw_transmission_costs!$A:$A,AL$615)","v":0},{"$f":"SUMIFS(raw_transmission_costs!$G:$G,raw_transmission_costs!$B:$B,$C646,raw_transmission_costs!$A:$A,AM$615)-SUMIFS(raw_transmission_costs!$E:$E,raw_transmission_costs!$B:$B,$C646,raw_transmission_costs!$A:$A,AM$615)","v":0},{"$f":"SUMIFS(raw_transmission_costs!$G:$G,raw_transmission_costs!$B:$B,$C646,raw_transmission_costs!$A:$A,AN$615)-SUMIFS(raw_transmission_costs!$E:$E,raw_transmission_costs!$B:$B,$C646,raw_transmission_costs!$A:$A,AN$615)","v":0}]
[null,null,"Sacramento_River","MW",{"$f":"SUMIFS(raw_transmission_costs!$G:$G,raw_transmission_costs!$B:$B,$C647,raw_transmission_costs!$A:$A,E$615)-SUMIFS(raw_transmission_costs!$E:$E,raw_transmission_costs!$B:$B,$C647,raw_transmission_costs!$A:$A,E$615)","v":0},{"$f":"SUMIFS(raw_transmission_costs!$G:$G,raw_transmission_costs!$B:$B,$C647,raw_transmission_costs!$A:$A,F$615)-SUMIFS(raw_transmission_costs!$E:$E,raw_transmission_costs!$B:$B,$C647,raw_transmission_costs!$A:$A,F$615)","v":0},{"$f":"SUMIFS(raw_transmission_costs!$G:$G,raw_transmission_costs!$B:$B,$C647,raw_transmission_costs!$A:$A,G$615)-SUMIFS(raw_transmission_costs!$E:$E,raw_transmission_costs!$B:$B,$C647,raw_transmission_costs!$A:$A,G$615)","v":0},{"$f":"SUMIFS(raw_transmission_costs!$G:$G,raw_transmission_costs!$B:$B,$C647,raw_transmission_costs!$A:$A,H$615)-SUMIFS(raw_transmission_costs!$E:$E,raw_transmission_costs!$B:$B,$C647,raw_transmission_costs!$A:$A,H$615)","v":0},{"$f":"SUMIFS(raw_transmission_costs!$G:$G,raw_transmission_costs!$B:$B,$C647,raw_transmission_costs!$A:$A,I$615)-SUMIFS(raw_transmission_costs!$E:$E,raw_transmission_costs!$B:$B,$C647,raw_transmission_costs!$A:$A,I$615)","v":0},{"$f":"SUMIFS(raw_transmission_costs!$G:$G,raw_transmission_costs!$B:$B,$C647,raw_transmission_costs!$A:$A,J$615)-SUMIFS(raw_transmission_costs!$E:$E,raw_transmission_costs!$B:$B,$C647,raw_transmission_costs!$A:$A,J$615)","v":0},{"$f":"SUMIFS(raw_transmission_costs!$G:$G,raw_transmission_costs!$B:$B,$C647,raw_transmission_costs!$A:$A,K$615)-SUMIFS(raw_transmission_costs!$E:$E,raw_transmission_costs!$B:$B,$C647,raw_transmission_costs!$A:$A,K$615)","v":0},{"$f":"SUMIFS(raw_transmission_costs!$G:$G,raw_transmission_costs!$B:$B,$C647,raw_transmission_costs!$A:$A,L$615)-SUMIFS(raw_transmission_costs!$E:$E,raw_transmission_costs!$B:$B,$C647,raw_transmission_costs!$A:$A,L$615)","v":1947.8},{"$f":"SUMIFS(raw_transmission_costs!$G:$G,raw_transmission_costs!$B:$B,$C647,raw_transmission_costs!$A:$A,M$615)-SUMIFS(raw_transmission_costs!$E:$E,raw_transmission_costs!$B:$B,$C647,raw_transmission_costs!$A:$A,M$615)","v":1947.8},{"$f":"SUMIFS(raw_transmission_costs!$G:$G,raw_transmission_costs!$B:$B,$C647,raw_transmission_costs!$A:$A,N$615)-SUMIFS(raw_transmission_costs!$E:$E,raw_transmission_costs!$B:$B,$C647,raw_transmission_costs!$A:$A,N$615)","v":1995.0200000000002},{"$f":"SUMIFS(raw_transmission_costs!$G:$G,raw_transmission_costs!$B:$B,$C647,raw_transmission_costs!$A:$A,O$615)-SUMIFS(raw_transmission_costs!$E:$E,raw_transmission_costs!$B:$B,$C647,raw_transmission_costs!$A:$A,O$615)","v":0},{"$f":"SUMIFS(raw_transmission_costs!$G:$G,raw_transmission_costs!$B:$B,$C647,raw_transmission_costs!$A:$A,P$615)-SUMIFS(raw_transmission_costs!$E:$E,raw_transmission_costs!$B:$B,$C647,raw_transmission_costs!$A:$A,P$615)","v":1995.0200000000002},{"$f":"SUMIFS(raw_transmission_costs!$G:$G,raw_transmission_costs!$B:$B,$C647,raw_transmission_costs!$A:$A,Q$615)-SUMIFS(raw_transmission_costs!$E:$E,raw_transmission_costs!$B:$B,$C647,raw_transmission_costs!$A:$A,Q$615)","v":0},{"$f":"SUMIFS(raw_transmission_costs!$G:$G,raw_transmission_costs!$B:$B,$C647,raw_transmission_costs!$A:$A,R$615)-SUMIFS(raw_transmission_costs!$E:$E,raw_transmission_costs!$B:$B,$C647,raw_transmission_costs!$A:$A,R$615)","v":0},{"$f":"SUMIFS(raw_transmission_costs!$G:$G,raw_transmission_costs!$B:$B,$C647,raw_transmission_costs!$A:$A,S$615)-SUMIFS(raw_transmission_costs!$E:$E,raw_transmission_costs!$B:$B,$C647,raw_transmission_costs!$A:$A,S$615)","v":0},{"$f":"SUMIFS(raw_transmission_costs!$G:$G,raw_transmission_costs!$B:$B,$C647,raw_transmission_costs!$A:$A,T$615)-SUMIFS(raw_transmission_costs!$E:$E,raw_transmission_costs!$B:$B,$C647,raw_transmission_costs!$A:$A,T$615)","v":1995.02},{"$f":"SUMIFS(raw_transmission_costs!$G:$G,raw_transmission_costs!$B:$B,$C647,raw_transmission_costs!$A:$A,U$615)-SUMIFS(raw_transmission_costs!$E:$E,raw_transmission_costs!$B:$B,$C647,raw_transmission_costs!$A:$A,U$615)","v":0},{"$f":"SUMIFS(raw_transmission_costs!$G:$G,raw_transmission_costs!$B:$B,$C647,raw_transmission_costs!$A:$A,V$615)-SUMIFS(raw_transmission_costs!$E:$E,raw_transmission_costs!$B:$B,$C647,raw_transmission_costs!$A:$A,V$615)","v":0},{"$f":"SUMIFS(raw_transmission_costs!$G:$G,raw_transmission_costs!$B:$B,$C647,raw_transmission_costs!$A:$A,W$615)-SUMIFS(raw_transmission_costs!$E:$E,raw_transmission_costs!$B:$B,$C647,raw_transmission_costs!$A:$A,W$615)","v":0},{"$f":"SUMIFS(raw_transmission_costs!$G:$G,raw_transmission_costs!$B:$B,$C647,raw_transmission_costs!$A:$A,X$615)-SUMIFS(raw_transmission_costs!$E:$E,raw_transmission_costs!$B:$B,$C647,raw_transmission_costs!$A:$A,X$615)","v":0},{"$f":"SUMIFS(raw_transmission_costs!$G:$G,raw_transmission_costs!$B:$B,$C647,raw_transmission_costs!$A:$A,Y$615)-SUMIFS(raw_transmission_costs!$E:$E,raw_transmission_costs!$B:$B,$C647,raw_transmission_costs!$A:$A,Y$615)","v":0},{"$f":"SUMIFS(raw_transmission_costs!$G:$G,raw_transmission_costs!$B:$B,$C647,raw_transmission_costs!$A:$A,Z$615)-SUMIFS(raw_transmission_costs!$E:$E,raw_transmission_costs!$B:$B,$C647,raw_transmission_costs!$A:$A,Z$615)","v":0},{"$f":"SUMIFS(raw_transmission_costs!$G:$G,raw_transmission_costs!$B:$B,$C647,raw_transmission_costs!$A:$A,AA$615)-SUMIFS(raw_transmission_costs!$E:$E,raw_transmission_costs!$B:$B,$C647,raw_transmission_costs!$A:$A,AA$615)","v":0},{"$f":"SUMIFS(raw_transmission_costs!$G:$G,raw_transmission_costs!$B:$B,$C647,raw_transmission_costs!$A:$A,AB$615)-SUMIFS(raw_transmission_costs!$E:$E,raw_transmission_costs!$B:$B,$C647,raw_transmission_costs!$A:$A,AB$615)","v":0},{"$f":"SUMIFS(raw_transmission_costs!$G:$G,raw_transmission_costs!$B:$B,$C647,raw_transmission_costs!$A:$A,AC$615)-SUMIFS(raw_transmission_costs!$E:$E,raw_transmission_costs!$B:$B,$C647,raw_transmission_costs!$A:$A,AC$615)","v":0},{"$f":"SUMIFS(raw_transmission_costs!$G:$G,raw_transmission_costs!$B:$B,$C647,raw_transmission_costs!$A:$A,AD$615)-SUMIFS(raw_transmission_costs!$E:$E,raw_transmission_costs!$B:$B,$C647,raw_transmission_costs!$A:$A,AD$615)","v":0},{"$f":"SUMIFS(raw_transmission_costs!$G:$G,raw_transmission_costs!$B:$B,$C647,raw_transmission_costs!$A:$A,AE$615)-SUMIFS(raw_transmission_costs!$E:$E,raw_transmission_costs!$B:$B,$C647,raw_transmission_costs!$A:$A,AE$615)","v":0},{"$f":"SUMIFS(raw_transmission_costs!$G:$G,raw_transmission_costs!$B:$B,$C647,raw_transmission_costs!$A:$A,AF$615)-SUMIFS(raw_transmission_costs!$E:$E,raw_transmission_costs!$B:$B,$C647,raw_transmission_costs!$A:$A,AF$615)","v":0},{"$f":"SUMIFS(raw_transmission_costs!$G:$G,raw_transmission_costs!$B:$B,$C647,raw_transmission_costs!$A:$A,AG$615)-SUMIFS(raw_transmission_costs!$E:$E,raw_transmission_costs!$B:$B,$C647,raw_transmission_costs!$A:$A,AG$615)","v":0},{"$f":"SUMIFS(raw_transmission_costs!$G:$G,raw_transmission_costs!$B:$B,$C647,raw_transmission_costs!$A:$A,AH$615)-SUMIFS(raw_transmission_costs!$E:$E,raw_transmission_costs!$B:$B,$C647,raw_transmission_costs!$A:$A,AH$615)","v":0},{"$f":"SUMIFS(raw_transmission_costs!$G:$G,raw_transmission_costs!$B:$B,$C647,raw_transmission_costs!$A:$A,AI$615)-SUMIFS(raw_transmission_costs!$E:$E,raw_transmission_costs!$B:$B,$C647,raw_transmission_costs!$A:$A,AI$615)","v":1995.0200000000004},{"$f":"SUMIFS(raw_transmission_costs!$G:$G,raw_transmission_costs!$B:$B,$C647,raw_transmission_costs!$A:$A,AJ$615)-SUMIFS(raw_transmission_costs!$E:$E,raw_transmission_costs!$B:$B,$C647,raw_transmission_costs!$A:$A,AJ$615)","v":0},{"$f":"SUMIFS(raw_transmission_costs!$G:$G,raw_transmission_costs!$B:$B,$C647,raw_transmission_costs!$A:$A,AK$615)-SUMIFS(raw_transmission_costs!$E:$E,raw_transmission_costs!$B:$B,$C647,raw_transmission_costs!$A:$A,AK$615)","v":0},{"$f":"SUMIFS(raw_transmission_costs!$G:$G,raw_transmission_costs!$B:$B,$C647,raw_transmission_costs!$A:$A,AL$615)-SUMIFS(raw_transmission_costs!$E:$E,raw_transmission_costs!$B:$B,$C647,raw_transmission_costs!$A:$A,AL$615)","v":0},{"$f":"SUMIFS(raw_transmission_costs!$G:$G,raw_transmission_costs!$B:$B,$C647,raw_transmission_costs!$A:$A,AM$615)-SUMIFS(raw_transmission_costs!$E:$E,raw_transmission_costs!$B:$B,$C647,raw_transmission_costs!$A:$A,AM$615)","v":0},{"$f":"SUMIFS(raw_transmission_costs!$G:$G,raw_transmission_costs!$B:$B,$C647,raw_transmission_costs!$A:$A,AN$615)-SUMIFS(raw_transmission_costs!$E:$E,raw_transmission_costs!$B:$B,$C647,raw_transmission_costs!$A:$A,AN$615)","v":0}]
[null,null,"Solano","MW",{"$f":"SUMIFS(raw_transmission_costs!$G:$G,raw_transmission_costs!$B:$B,$C648,raw_transmission_costs!$A:$A,E$615)-SUMIFS(raw_transmission_costs!$E:$E,raw_transmission_costs!$B:$B,$C648,raw_transmission_costs!$A:$A,E$615)","v":0},{"$f":"SUMIFS(raw_transmission_costs!$G:$G,raw_transmission_costs!$B:$B,$C648,raw_transmission_costs!$A:$A,F$615)-SUMIFS(raw_transmission_costs!$E:$E,raw_transmission_costs!$B:$B,$C648,raw_transmission_costs!$A:$A,F$615)","v":0},{"$f":"SUMIFS(raw_transmission_costs!$G:$G,raw_transmission_costs!$B:$B,$C648,raw_transmission_costs!$A:$A,G$615)-SUMIFS(raw_transmission_costs!$E:$E,raw_transmission_costs!$B:$B,$C648,raw_transmission_costs!$A:$A,G$615)","v":0},{"$f":"SUMIFS(raw_transmission_costs!$G:$G,raw_transmission_costs!$B:$B,$C648,raw_transmission_costs!$A:$A,H$615)-SUMIFS(raw_transmission_costs!$E:$E,raw_transmission_costs!$B:$B,$C648,raw_transmission_costs!$A:$A,H$615)","v":0},{"$f":"SUMIFS(raw_transmission_costs!$G:$G,raw_transmission_costs!$B:$B,$C648,raw_transmission_costs!$A:$A,I$615)-SUMIFS(raw_transmission_costs!$E:$E,raw_transmission_costs!$B:$B,$C648,raw_transmission_costs!$A:$A,I$615)","v":0},{"$f":"SUMIFS(raw_transmission_costs!$G:$G,raw_transmission_costs!$B:$B,$C648,raw_transmission_costs!$A:$A,J$615)-SUMIFS(raw_transmission_costs!$E:$E,raw_transmission_costs!$B:$B,$C648,raw_transmission_costs!$A:$A,J$615)","v":0},{"$f":"SUMIFS(raw_transmission_costs!$G:$G,raw_transmission_costs!$B:$B,$C648,raw_transmission_costs!$A:$A,K$615)-SUMIFS(raw_transmission_costs!$E:$E,raw_transmission_costs!$B:$B,$C648,raw_transmission_costs!$A:$A,K$615)","v":0},{"$f":"SUMIFS(raw_transmission_costs!$G:$G,raw_transmission_costs!$B:$B,$C648,raw_transmission_costs!$A:$A,L$615)-SUMIFS(raw_transmission_costs!$E:$E,raw_transmission_costs!$B:$B,$C648,raw_transmission_costs!$A:$A,L$615)","v":464},{"$f":"SUMIFS(raw_transmission_costs!$G:$G,raw_transmission_costs!$B:$B,$C648,raw_transmission_costs!$A:$A,M$615)-SUMIFS(raw_transmission_costs!$E:$E,raw_transmission_costs!$B:$B,$C648,raw_transmission_costs!$A:$A,M$615)","v":464},{"$f":"SUMIFS(raw_transmission_costs!$G:$G,raw_transmission_costs!$B:$B,$C648,raw_transmission_costs!$A:$A,N$615)-SUMIFS(raw_transmission_costs!$E:$E,raw_transmission_costs!$B:$B,$C648,raw_transmission_costs!$A:$A,N$615)","v":599},{"$f":"SUMIFS(raw_transmission_costs!$G:$G,raw_transmission_costs!$B:$B,$C648,raw_transmission_costs!$A:$A,O$615)-SUMIFS(raw_transmission_costs!$E:$E,raw_transmission_costs!$B:$B,$C648,raw_transmission_costs!$A:$A,O$615)","v":0},{"$f":"SUMIFS(raw_transmission_costs!$G:$G,raw_transmission_costs!$B:$B,$C648,raw_transmission_costs!$A:$A,P$615)-SUMIFS(raw_transmission_costs!$E:$E,raw_transmission_costs!$B:$B,$C648,raw_transmission_costs!$A:$A,P$615)","v":599},{"$f":"SUMIFS(raw_transmission_costs!$G:$G,raw_transmission_costs!$B:$B,$C648,raw_transmission_costs!$A:$A,Q$615)-SUMIFS(raw_transmission_costs!$E:$E,raw_transmission_costs!$B:$B,$C648,raw_transmission_costs!$A:$A,Q$615)","v":0},{"$f":"SUMIFS(raw_transmission_costs!$G:$G,raw_transmission_costs!$B:$B,$C648,raw_transmission_costs!$A:$A,R$615)-SUMIFS(raw_transmission_costs!$E:$E,raw_transmission_costs!$B:$B,$C648,raw_transmission_costs!$A:$A,R$615)","v":0},{"$f":"SUMIFS(raw_transmission_costs!$G:$G,raw_transmission_costs!$B:$B,$C648,raw_transmission_costs!$A:$A,S$615)-SUMIFS(raw_transmission_costs!$E:$E,raw_transmission_costs!$B:$B,$C648,raw_transmission_costs!$A:$A,S$615)","v":0},{"$f":"SUMIFS(raw_transmission_costs!$G:$G,raw_transmission_costs!$B:$B,$C648,raw_transmission_costs!$A:$A,T$615)-SUMIFS(raw_transmission_costs!$E:$E,raw_transmission_costs!$B:$B,$C648,raw_transmission_costs!$A:$A,T$615)","v":599},{"$f":"SUMIFS(raw_transmission_costs!$G:$G,raw_transmission_costs!$B:$B,$C648,raw_transmission_costs!$A:$A,U$615)-SUMIFS(raw_transmission_costs!$E:$E,raw_transmission_costs!$B:$B,$C648,raw_transmission_costs!$A:$A,U$615)","v":0},{"$f":"SUMIFS(raw_transmission_costs!$G:$G,raw_transmission_costs!$B:$B,$C648,raw_transmission_costs!$A:$A,V$615)-SUMIFS(raw_transmission_costs!$E:$E,raw_transmission_costs!$B:$B,$C648,raw_transmission_costs!$A:$A,V$615)","v":0},{"$f":"SUMIFS(raw_transmission_costs!$G:$G,raw_transmission_costs!$B:$B,$C648,raw_transmission_costs!$A:$A,W$615)-SUMIFS(raw_transmission_costs!$E:$E,raw_transmission_costs!$B:$B,$C648,raw_transmission_costs!$A:$A,W$615)","v":0},{"$f":"SUMIFS(raw_transmission_costs!$G:$G,raw_transmission_costs!$B:$B,$C648,raw_transmission_costs!$A:$A,X$615)-SUMIFS(raw_transmission_costs!$E:$E,raw_transmission_costs!$B:$B,$C648,raw_transmission_costs!$A:$A,X$615)","v":0},{"$f":"SUMIFS(raw_transmission_costs!$G:$G,raw_transmission_costs!$B:$B,$C648,raw_transmission_costs!$A:$A,Y$615)-SUMIFS(raw_transmission_costs!$E:$E,raw_transmission_costs!$B:$B,$C648,raw_transmission_costs!$A:$A,Y$615)","v":0},{"$f":"SUMIFS(raw_transmission_costs!$G:$G,raw_transmission_costs!$B:$B,$C648,raw_transmission_costs!$A:$A,Z$615)-SUMIFS(raw_transmission_costs!$E:$E,raw_transmission_costs!$B:$B,$C648,raw_transmission_costs!$A:$A,Z$615)","v":0},{"$f":"SUMIFS(raw_transmission_costs!$G:$G,raw_transmission_costs!$B:$B,$C648,raw_transmission_costs!$A:$A,AA$615)-SUMIFS(raw_transmission_costs!$E:$E,raw_transmission_costs!$B:$B,$C648,raw_transmission_costs!$A:$A,AA$615)","v":0},{"$f":"SUMIFS(raw_transmission_costs!$G:$G,raw_transmission_costs!$B:$B,$C648,raw_transmission_costs!$A:$A,AB$615)-SUMIFS(raw_transmission_costs!$E:$E,raw_transmission_costs!$B:$B,$C648,raw_transmission_costs!$A:$A,AB$615)","v":0},{"$f":"SUMIFS(raw_transmission_costs!$G:$G,raw_transmission_costs!$B:$B,$C648,raw_transmission_costs!$A:$A,AC$615)-SUMIFS(raw_transmission_costs!$E:$E,raw_transmission_costs!$B:$B,$C648,raw_transmission_costs!$A:$A,AC$615)","v":0},{"$f":"SUMIFS(raw_transmission_costs!$G:$G,raw_transmission_costs!$B:$B,$C648,raw_transmission_costs!$A:$A,AD$615)-SUMIFS(raw_transmission_costs!$E:$E,raw_transmission_costs!$B:$B,$C648,raw_transmission_costs!$A:$A,AD$615)","v":0},{"$f":"SUMIFS(raw_transmission_costs!$G:$G,raw_transmission_costs!$B:$B,$C648,raw_transmission_costs!$A:$A,AE$615)-SUMIFS(raw_transmission_costs!$E:$E,raw_transmission_costs!$B:$B,$C648,raw_transmission_costs!$A:$A,AE$615)","v":0},{"$f":"SUMIFS(raw_transmission_costs!$G:$G,raw_transmission_costs!$B:$B,$C648,raw_transmission_costs!$A:$A,AF$615)-SUMIFS(raw_transmission_costs!$E:$E,raw_transmission_costs!$B:$B,$C648,raw_transmission_costs!$A:$A,AF$615)","v":0},{"$f":"SUMIFS(raw_transmission_costs!$G:$G,raw_transmission_costs!$B:$B,$C648,raw_transmission_costs!$A:$A,AG$615)-SUMIFS(raw_transmission_costs!$E:$E,raw_transmission_costs!$B:$B,$C648,raw_transmission_costs!$A:$A,AG$615)","v":0},{"$f":"SUMIFS(raw_transmission_costs!$G:$G,raw_transmission_costs!$B:$B,$C648,raw_transmission_costs!$A:$A,AH$615)-SUMIFS(raw_transmission_costs!$E:$E,raw_transmission_costs!$B:$B,$C648,raw_transmission_costs!$A:$A,AH$615)","v":0},{"$f":"SUMIFS(raw_transmission_costs!$G:$G,raw_transmission_costs!$B:$B,$C648,raw_transmission_costs!$A:$A,AI$615)-SUMIFS(raw_transmission_costs!$E:$E,raw_transmission_costs!$B:$B,$C648,raw_transmission_costs!$A:$A,AI$615)","v":599},{"$f":"SUMIFS(raw_transmission_costs!$G:$G,raw_transmission_costs!$B:$B,$C648,raw_transmission_costs!$A:$A,AJ$615)-SUMIFS(raw_transmission_costs!$E:$E,raw_transmission_costs!$B:$B,$C648,raw_transmission_costs!$A:$A,AJ$615)","v":0},{"$f":"SUMIFS(raw_transmission_costs!$G:$G,raw_transmission_costs!$B:$B,$C648,raw_transmission_costs!$A:$A,AK$615)-SUMIFS(raw_transmission_costs!$E:$E,raw_transmission_costs!$B:$B,$C648,raw_transmission_costs!$A:$A,AK$615)","v":0},{"$f":"SUMIFS(raw_transmission_costs!$G:$G,raw_transmission_costs!$B:$B,$C648,raw_transmission_costs!$A:$A,AL$615)-SUMIFS(raw_transmission_costs!$E:$E,raw_transmission_costs!$B:$B,$C648,raw_transmission_costs!$A:$A,AL$615)","v":0},{"$f":"SUMIFS(raw_transmission_costs!$G:$G,raw_transmission_costs!$B:$B,$C648,raw_transmission_costs!$A:$A,AM$615)-SUMIFS(raw_transmission_costs!$E:$E,raw_transmission_costs!$B:$B,$C648,raw_transmission_costs!$A:$A,AM$615)","v":0},{"$f":"SUMIFS(raw_transmission_costs!$G:$G,raw_transmission_costs!$B:$B,$C648,raw_transmission_costs!$A:$A,AN$615)-SUMIFS(raw_transmission_costs!$E:$E,raw_transmission_costs!$B:$B,$C648,raw_transmission_costs!$A:$A,AN$615)","v":0}]
[null,null,"Solano_subzone","MW",{"$f":"SUMIFS(raw_transmission_costs!$G:$G,raw_transmission_costs!$B:$B,$C649,raw_transmission_costs!$A:$A,E$615)-SUMIFS(raw_transmission_costs!$E:$E,raw_transmission_costs!$B:$B,$C649,raw_transmission_costs!$A:$A,E$615)","v":0},{"$f":"SUMIFS(raw_transmission_costs!$G:$G,raw_transmission_costs!$B:$B,$C649,raw_transmission_costs!$A:$A,F$615)-SUMIFS(raw_transmission_costs!$E:$E,raw_transmission_costs!$B:$B,$C649,raw_transmission_costs!$A:$A,F$615)","v":0},{"$f":"SUMIFS(raw_transmission_costs!$G:$G,raw_transmission_costs!$B:$B,$C649,raw_transmission_costs!$A:$A,G$615)-SUMIFS(raw_transmission_costs!$E:$E,raw_transmission_costs!$B:$B,$C649,raw_transmission_costs!$A:$A,G$615)","v":0},{"$f":"SUMIFS(raw_transmission_costs!$G:$G,raw_transmission_costs!$B:$B,$C649,raw_transmission_costs!$A:$A,H$615)-SUMIFS(raw_transmission_costs!$E:$E,raw_transmission_costs!$B:$B,$C649,raw_transmission_costs!$A:$A,H$615)","v":0},{"$f":"SUMIFS(raw_transmission_costs!$G:$G,raw_transmission_costs!$B:$B,$C649,raw_transmission_costs!$A:$A,I$615)-SUMIFS(raw_transmission_costs!$E:$E,raw_transmission_costs!$B:$B,$C649,raw_transmission_costs!$A:$A,I$615)","v":0},{"$f":"SUMIFS(raw_transmission_costs!$G:$G,raw_transmission_costs!$B:$B,$C649,raw_transmission_costs!$A:$A,J$615)-SUMIFS(raw_transmission_costs!$E:$E,raw_transmission_costs!$B:$B,$C649,raw_transmission_costs!$A:$A,J$615)","v":0},{"$f":"SUMIFS(raw_transmission_costs!$G:$G,raw_transmission_costs!$B:$B,$C649,raw_transmission_costs!$A:$A,K$615)-SUMIFS(raw_transmission_costs!$E:$E,raw_transmission_costs!$B:$B,$C649,raw_transmission_costs!$A:$A,K$615)","v":0},{"$f":"SUMIFS(raw_transmission_costs!$G:$G,raw_transmission_costs!$B:$B,$C649,raw_transmission_costs!$A:$A,L$615)-SUMIFS(raw_transmission_costs!$E:$E,raw_transmission_costs!$B:$B,$C649,raw_transmission_costs!$A:$A,L$615)","v":0},{"$f":"SUMIFS(raw_transmission_costs!$G:$G,raw_transmission_costs!$B:$B,$C649,raw_transmission_costs!$A:$A,M$615)-SUMIFS(raw_transmission_costs!$E:$E,raw_transmission_costs!$B:$B,$C649,raw_transmission_costs!$A:$A,M$615)","v":0},{"$f":"SUMIFS(raw_transmission_costs!$G:$G,raw_transmission_costs!$B:$B,$C649,raw_transmission_costs!$A:$A,N$615)-SUMIFS(raw_transmission_costs!$E:$E,raw_transmission_costs!$B:$B,$C649,raw_transmission_costs!$A:$A,N$615)","v":0},{"$f":"SUMIFS(raw_transmission_costs!$G:$G,raw_transmission_costs!$B:$B,$C649,raw_transmission_costs!$A:$A,O$615)-SUMIFS(raw_transmission_costs!$E:$E,raw_transmission_costs!$B:$B,$C649,raw_transmission_costs!$A:$A,O$615)","v":0},{"$f":"SUMIFS(raw_transmission_costs!$G:$G,raw_transmission_costs!$B:$B,$C649,raw_transmission_costs!$A:$A,P$615)-SUMIFS(raw_transmission_costs!$E:$E,raw_transmission_costs!$B:$B,$C649,raw_transmission_costs!$A:$A,P$615)","v":0},{"$f":"SUMIFS(raw_transmission_costs!$G:$G,raw_transmission_costs!$B:$B,$C649,raw_transmission_costs!$A:$A,Q$615)-SUMIFS(raw_transmission_costs!$E:$E,raw_transmission_costs!$B:$B,$C649,raw_transmission_costs!$A:$A,Q$615)","v":0},{"$f":"SUMIFS(raw_transmission_costs!$G:$G,raw_transmission_costs!$B:$B,$C649,raw_transmission_costs!$A:$A,R$615)-SUMIFS(raw_transmission_costs!$E:$E,raw_transmission_costs!$B:$B,$C649,raw_transmission_costs!$A:$A,R$615)","v":0},{"$f":"SUMIFS(raw_transmission_costs!$G:$G,raw_transmission_costs!$B:$B,$C649,raw_transmission_costs!$A:$A,S$615)-SUMIFS(raw_transmission_costs!$E:$E,raw_transmission_costs!$B:$B,$C649,raw_transmission_costs!$A:$A,S$615)","v":0},{"$f":"SUMIFS(raw_transmission_costs!$G:$G,raw_transmission_costs!$B:$B,$C649,raw_transmission_costs!$A:$A,T$615)-SUMIFS(raw_transmission_costs!$E:$E,raw_transmission_costs!$B:$B,$C649,raw_transmission_costs!$A:$A,T$615)","v":0},{"$f":"SUMIFS(raw_transmission_costs!$G:$G,raw_transmission_costs!$B:$B,$C649,raw_transmission_costs!$A:$A,U$615)-SUMIFS(raw_transmission_costs!$E:$E,raw_transmission_costs!$B:$B,$C649,raw_transmission_costs!$A:$A,U$615)","v":0},{"$f":"SUMIFS(raw_transmission_costs!$G:$G,raw_transmission_costs!$B:$B,$C649,raw_transmission_costs!$A:$A,V$615)-SUMIFS(raw_transmission_costs!$E:$E,raw_transmission_costs!$B:$B,$C649,raw_transmission_costs!$A:$A,V$615)","v":0},{"$f":"SUMIFS(raw_transmission_costs!$G:$G,raw_transmission_costs!$B:$B,$C649,raw_transmission_costs!$A:$A,W$615)-SUMIFS(raw_transmission_costs!$E:$E,raw_transmission_costs!$B:$B,$C649,raw_transmission_costs!$A:$A,W$615)","v":0},{"$f":"SUMIFS(raw_transmission_costs!$G:$G,raw_transmission_costs!$B:$B,$C649,raw_transmission_costs!$A:$A,X$615)-SUMIFS(raw_transmission_costs!$E:$E,raw_transmission_costs!$B:$B,$C649,raw_transmission_costs!$A:$A,X$615)","v":0},{"$f":"SUMIFS(raw_transmission_costs!$G:$G,raw_transmission_costs!$B:$B,$C649,raw_transmission_costs!$A:$A,Y$615)-SUMIFS(raw_transmission_costs!$E:$E,raw_transmission_costs!$B:$B,$C649,raw_transmission_costs!$A:$A,Y$615)","v":0},{"$f":"SUMIFS(raw_transmission_costs!$G:$G,raw_transmission_costs!$B:$B,$C649,raw_transmission_costs!$A:$A,Z$615)-SUMIFS(raw_transmission_costs!$E:$E,raw_transmission_costs!$B:$B,$C649,raw_transmission_costs!$A:$A,Z$615)","v":0},{"$f":"SUMIFS(raw_transmission_costs!$G:$G,raw_transmission_costs!$B:$B,$C649,raw_transmission_costs!$A:$A,AA$615)-SUMIFS(raw_transmission_costs!$E:$E,raw_transmission_costs!$B:$B,$C649,raw_transmission_costs!$A:$A,AA$615)","v":0},{"$f":"SUMIFS(raw_transmission_costs!$G:$G,raw_transmission_costs!$B:$B,$C649,raw_transmission_costs!$A:$A,AB$615)-SUMIFS(raw_transmission_costs!$E:$E,raw_transmission_costs!$B:$B,$C649,raw_transmission_costs!$A:$A,AB$615)","v":0},{"$f":"SUMIFS(raw_transmission_costs!$G:$G,raw_transmission_costs!$B:$B,$C649,raw_transmission_costs!$A:$A,AC$615)-SUMIFS(raw_transmission_costs!$E:$E,raw_transmission_costs!$B:$B,$C649,raw_transmission_costs!$A:$A,AC$615)","v":0},{"$f":"SUMIFS(raw_transmission_costs!$G:$G,raw_transmission_costs!$B:$B,$C649,raw_transmission_costs!$A:$A,AD$615)-SUMIFS(raw_transmission_costs!$E:$E,raw_transmission_costs!$B:$B,$C649,raw_transmission_costs!$A:$A,AD$615)","v":0},{"$f":"SUMIFS(raw_transmission_costs!$G:$G,raw_transmission_costs!$B:$B,$C649,raw_transmission_costs!$A:$A,AE$615)-SUMIFS(raw_transmission_costs!$E:$E,raw_transmission_costs!$B:$B,$C649,raw_transmission_costs!$A:$A,AE$615)","v":0},{"$f":"SUMIFS(raw_transmission_costs!$G:$G,raw_transmission_costs!$B:$B,$C649,raw_transmission_costs!$A:$A,AF$615)-SUMIFS(raw_transmission_costs!$E:$E,raw_transmission_costs!$B:$B,$C649,raw_transmission_costs!$A:$A,AF$615)","v":0},{"$f":"SUMIFS(raw_transmission_costs!$G:$G,raw_transmission_costs!$B:$B,$C649,raw_transmission_costs!$A:$A,AG$615)-SUMIFS(raw_transmission_costs!$E:$E,raw_transmission_costs!$B:$B,$C649,raw_transmission_costs!$A:$A,AG$615)","v":0},{"$f":"SUMIFS(raw_transmission_costs!$G:$G,raw_transmission_costs!$B:$B,$C649,raw_transmission_costs!$A:$A,AH$615)-SUMIFS(raw_transmission_costs!$E:$E,raw_transmission_costs!$B:$B,$C649,raw_transmission_costs!$A:$A,AH$615)","v":0},{"$f":"SUMIFS(raw_transmission_costs!$G:$G,raw_transmission_costs!$B:$B,$C649,raw_transmission_costs!$A:$A,AI$615)-SUMIFS(raw_transmission_costs!$E:$E,raw_transmission_costs!$B:$B,$C649,raw_transmission_costs!$A:$A,AI$615)","v":0},{"$f":"SUMIFS(raw_transmission_costs!$G:$G,raw_transmission_costs!$B:$B,$C649,raw_transmission_costs!$A:$A,AJ$615)-SUMIFS(raw_transmission_costs!$E:$E,raw_transmission_costs!$B:$B,$C649,raw_transmission_costs!$A:$A,AJ$615)","v":0},{"$f":"SUMIFS(raw_transmission_costs!$G:$G,raw_transmission_costs!$B:$B,$C649,raw_transmission_costs!$A:$A,AK$615)-SUMIFS(raw_transmission_costs!$E:$E,raw_transmission_costs!$B:$B,$C649,raw_transmission_costs!$A:$A,AK$615)","v":0},{"$f":"SUMIFS(raw_transmission_costs!$G:$G,raw_transmission_costs!$B:$B,$C649,raw_transmission_costs!$A:$A,AL$615)-SUMIFS(raw_transmission_costs!$E:$E,raw_transmission_costs!$B:$B,$C649,raw_transmission_costs!$A:$A,AL$615)","v":0},{"$f":"SUMIFS(raw_transmission_costs!$G:$G,raw_transmission_costs!$B:$B,$C649,raw_transmission_costs!$A:$A,AM$615)-SUMIFS(raw_transmission_costs!$E:$E,raw_transmission_costs!$B:$B,$C649,raw_transmission_costs!$A:$A,AM$615)","v":0},{"$f":"SUMIFS(raw_transmission_costs!$G:$G,raw_transmission_costs!$B:$B,$C649,raw_transmission_costs!$A:$A,AN$615)-SUMIFS(raw_transmission_costs!$E:$E,raw_transmission_costs!$B:$B,$C649,raw_transmission_costs!$A:$A,AN$615)","v":0}]
[null,null,"Mountain_Pass_El_Dorado","MW",{"$f":"SUMIFS(raw_transmission_costs!$G:$G,raw_transmission_costs!$B:$B,$C650,raw_transmission_costs!$A:$A,E$615)-SUMIFS(raw_transmission_costs!$E:$E,raw_transmission_costs!$B:$B,$C650,raw_transmission_costs!$A:$A,E$615)","v":0},{"$f":"SUMIFS(raw_transmission_costs!$G:$G,raw_transmission_costs!$B:$B,$C650,raw_transmission_costs!$A:$A,F$615)-SUMIFS(raw_transmission_costs!$E:$E,raw_transmission_costs!$B:$B,$C650,raw_transmission_costs!$A:$A,F$615)","v":0},{"$f":"SUMIFS(raw_transmission_costs!$G:$G,raw_transmission_costs!$B:$B,$C650,raw_transmission_costs!$A:$A,G$615)-SUMIFS(raw_transmission_costs!$E:$E,raw_transmission_costs!$B:$B,$C650,raw_transmission_costs!$A:$A,G$615)","v":0},{"$f":"SUMIFS(raw_transmission_costs!$G:$G,raw_transmission_costs!$B:$B,$C650,raw_transmission_costs!$A:$A,H$615)-SUMIFS(raw_transmission_costs!$E:$E,raw_transmission_costs!$B:$B,$C650,raw_transmission_costs!$A:$A,H$615)","v":0},{"$f":"SUMIFS(raw_transmission_costs!$G:$G,raw_transmission_costs!$B:$B,$C650,raw_transmission_costs!$A:$A,I$615)-SUMIFS(raw_transmission_costs!$E:$E,raw_transmission_costs!$B:$B,$C650,raw_transmission_costs!$A:$A,I$615)","v":0},{"$f":"SUMIFS(raw_transmission_costs!$G:$G,raw_transmission_costs!$B:$B,$C650,raw_transmission_costs!$A:$A,J$615)-SUMIFS(raw_transmission_costs!$E:$E,raw_transmission_costs!$B:$B,$C650,raw_transmission_costs!$A:$A,J$615)","v":0},{"$f":"SUMIFS(raw_transmission_costs!$G:$G,raw_transmission_costs!$B:$B,$C650,raw_transmission_costs!$A:$A,K$615)-SUMIFS(raw_transmission_costs!$E:$E,raw_transmission_costs!$B:$B,$C650,raw_transmission_costs!$A:$A,K$615)","v":0},{"$f":"SUMIFS(raw_transmission_costs!$G:$G,raw_transmission_costs!$B:$B,$C650,raw_transmission_costs!$A:$A,L$615)-SUMIFS(raw_transmission_costs!$E:$E,raw_transmission_costs!$B:$B,$C650,raw_transmission_costs!$A:$A,L$615)","v":0},{"$f":"SUMIFS(raw_transmission_costs!$G:$G,raw_transmission_costs!$B:$B,$C650,raw_transmission_costs!$A:$A,M$615)-SUMIFS(raw_transmission_costs!$E:$E,raw_transmission_costs!$B:$B,$C650,raw_transmission_costs!$A:$A,M$615)","v":0},{"$f":"SUMIFS(raw_transmission_costs!$G:$G,raw_transmission_costs!$B:$B,$C650,raw_transmission_costs!$A:$A,N$615)-SUMIFS(raw_transmission_costs!$E:$E,raw_transmission_costs!$B:$B,$C650,raw_transmission_costs!$A:$A,N$615)","v":0},{"$f":"SUMIFS(raw_transmission_costs!$G:$G,raw_transmission_costs!$B:$B,$C650,raw_transmission_costs!$A:$A,O$615)-SUMIFS(raw_transmission_costs!$E:$E,raw_transmission_costs!$B:$B,$C650,raw_transmission_costs!$A:$A,O$615)","v":0},{"$f":"SUMIFS(raw_transmission_costs!$G:$G,raw_transmission_costs!$B:$B,$C650,raw_transmission_costs!$A:$A,P$615)-SUMIFS(raw_transmission_costs!$E:$E,raw_transmission_costs!$B:$B,$C650,raw_transmission_costs!$A:$A,P$615)","v":0},{"$f":"SUMIFS(raw_transmission_costs!$G:$G,raw_transmission_costs!$B:$B,$C650,raw_transmission_costs!$A:$A,Q$615)-SUMIFS(raw_transmission_costs!$E:$E,raw_transmission_costs!$B:$B,$C650,raw_transmission_costs!$A:$A,Q$615)","v":0},{"$f":"SUMIFS(raw_transmission_costs!$G:$G,raw_transmission_costs!$B:$B,$C650,raw_transmission_costs!$A:$A,R$615)-SUMIFS(raw_transmission_costs!$E:$E,raw_transmission_costs!$B:$B,$C650,raw_transmission_costs!$A:$A,R$615)","v":0},{"$f":"SUMIFS(raw_transmission_costs!$G:$G,raw_transmission_costs!$B:$B,$C650,raw_transmission_costs!$A:$A,S$615)-SUMIFS(raw_transmission_costs!$E:$E,raw_transmission_costs!$B:$B,$C650,raw_transmission_costs!$A:$A,S$615)","v":0},{"$f":"SUMIFS(raw_transmission_costs!$G:$G,raw_transmission_costs!$B:$B,$C650,raw_transmission_costs!$A:$A,T$615)-SUMIFS(raw_transmission_costs!$E:$E,raw_transmission_costs!$B:$B,$C650,raw_transmission_costs!$A:$A,T$615)","v":0},{"$f":"SUMIFS(raw_transmission_costs!$G:$G,raw_transmission_costs!$B:$B,$C650,raw_transmission_costs!$A:$A,U$615)-SUMIFS(raw_transmission_costs!$E:$E,raw_transmission_costs!$B:$B,$C650,raw_transmission_costs!$A:$A,U$615)","v":0},{"$f":"SUMIFS(raw_transmission_costs!$G:$G,raw_transmission_costs!$B:$B,$C650,raw_transmission_costs!$A:$A,V$615)-SUMIFS(raw_transmission_costs!$E:$E,raw_transmission_costs!$B:$B,$C650,raw_transmission_costs!$A:$A,V$615)","v":0},{"$f":"SUMIFS(raw_transmission_costs!$G:$G,raw_transmission_costs!$B:$B,$C650,raw_transmission_costs!$A:$A,W$615)-SUMIFS(raw_transmission_costs!$E:$E,raw_transmission_costs!$B:$B,$C650,raw_transmission_costs!$A:$A,W$615)","v":0},{"$f":"SUMIFS(raw_transmission_costs!$G:$G,raw_transmission_costs!$B:$B,$C650,raw_transmission_costs!$A:$A,X$615)-SUMIFS(raw_transmission_costs!$E:$E,raw_transmission_costs!$B:$B,$C650,raw_transmission_costs!$A:$A,X$615)","v":0},{"$f":"SUMIFS(raw_transmission_costs!$G:$G,raw_transmission_costs!$B:$B,$C650,raw_transmission_costs!$A:$A,Y$615)-SUMIFS(raw_transmission_costs!$E:$E,raw_transmission_costs!$B:$B,$C650,raw_transmission_costs!$A:$A,Y$615)","v":0},{"$f":"SUMIFS(raw_transmission_costs!$G:$G,raw_transmission_costs!$B:$B,$C650,raw_transmission_costs!$A:$A,Z$615)-SUMIFS(raw_transmission_costs!$E:$E,raw_transmission_costs!$B:$B,$C650,raw_transmission_costs!$A:$A,Z$615)","v":0},{"$f":"SUMIFS(raw_transmission_costs!$G:$G,raw_transmission_costs!$B:$B,$C650,raw_transmission_costs!$A:$A,AA$615)-SUMIFS(raw_transmission_costs!$E:$E,raw_transmission_costs!$B:$B,$C650,raw_transmission_costs!$A:$A,AA$615)","v":0},{"$f":"SUMIFS(raw_transmission_costs!$G:$G,raw_transmission_costs!$B:$B,$C650,raw_transmission_costs!$A:$A,AB$615)-SUMIFS(raw_transmission_costs!$E:$E,raw_transmission_costs!$B:$B,$C650,raw_transmission_costs!$A:$A,AB$615)","v":0},{"$f":"SUMIFS(raw_transmission_costs!$G:$G,raw_transmission_costs!$B:$B,$C650,raw_transmission_costs!$A:$A,AC$615)-SUMIFS(raw_transmission_costs!$E:$E,raw_transmission_costs!$B:$B,$C650,raw_transmission_costs!$A:$A,AC$615)","v":0},{"$f":"SUMIFS(raw_transmission_costs!$G:$G,raw_transmission_costs!$B:$B,$C650,raw_transmission_costs!$A:$A,AD$615)-SUMIFS(raw_transmission_costs!$E:$E,raw_transmission_costs!$B:$B,$C650,raw_transmission_costs!$A:$A,AD$615)","v":0},{"$f":"SUMIFS(raw_transmission_costs!$G:$G,raw_transmission_costs!$B:$B,$C650,raw_transmission_costs!$A:$A,AE$615)-SUMIFS(raw_transmission_costs!$E:$E,raw_transmission_costs!$B:$B,$C650,raw_transmission_costs!$A:$A,AE$615)","v":0},{"$f":"SUMIFS(raw_transmission_costs!$G:$G,raw_transmission_costs!$B:$B,$C650,raw_transmission_costs!$A:$A,AF$615)-SUMIFS(raw_transmission_costs!$E:$E,raw_transmission_costs!$B:$B,$C650,raw_transmission_costs!$A:$A,AF$615)","v":0},{"$f":"SUMIFS(raw_transmission_costs!$G:$G,raw_transmission_costs!$B:$B,$C650,raw_transmission_costs!$A:$A,AG$615)-SUMIFS(raw_transmission_costs!$E:$E,raw_transmission_costs!$B:$B,$C650,raw_transmission_costs!$A:$A,AG$615)","v":0},{"$f":"SUMIFS(raw_transmission_costs!$G:$G,raw_transmission_costs!$B:$B,$C650,raw_transmission_costs!$A:$A,AH$615)-SUMIFS(raw_transmission_costs!$E:$E,raw_transmission_costs!$B:$B,$C650,raw_transmission_costs!$A:$A,AH$615)","v":0},{"$f":"SUMIFS(raw_transmission_costs!$G:$G,raw_transmission_costs!$B:$B,$C650,raw_transmission_costs!$A:$A,AI$615)-SUMIFS(raw_transmission_costs!$E:$E,raw_transmission_costs!$B:$B,$C650,raw_transmission_costs!$A:$A,AI$615)","v":250},{"$f":"SUMIFS(raw_transmission_costs!$G:$G,raw_transmission_costs!$B:$B,$C650,raw_transmission_costs!$A:$A,AJ$615)-SUMIFS(raw_transmission_costs!$E:$E,raw_transmission_costs!$B:$B,$C650,raw_transmission_costs!$A:$A,AJ$615)","v":0},{"$f":"SUMIFS(raw_transmission_costs!$G:$G,raw_transmission_costs!$B:$B,$C650,raw_transmission_costs!$A:$A,AK$615)-SUMIFS(raw_transmission_costs!$E:$E,raw_transmission_costs!$B:$B,$C650,raw_transmission_costs!$A:$A,AK$615)","v":0},{"$f":"SUMIFS(raw_transmission_costs!$G:$G,raw_transmission_costs!$B:$B,$C650,raw_transmission_costs!$A:$A,AL$615)-SUMIFS(raw_transmission_costs!$E:$E,raw_transmission_costs!$B:$B,$C650,raw_transmission_costs!$A:$A,AL$615)","v":0},{"$f":"SUMIFS(raw_transmission_costs!$G:$G,raw_transmission_costs!$B:$B,$C650,raw_transmission_costs!$A:$A,AM$615)-SUMIFS(raw_transmission_costs!$E:$E,raw_transmission_costs!$B:$B,$C650,raw_transmission_costs!$A:$A,AM$615)","v":0},{"$f":"SUMIFS(raw_transmission_costs!$G:$G,raw_transmission_costs!$B:$B,$C650,raw_transmission_costs!$A:$A,AN$615)-SUMIFS(raw_transmission_costs!$E:$E,raw_transmission_costs!$B:$B,$C650,raw_transmission_costs!$A:$A,AN$615)","v":0}]
[null,null,"GLW_VEA","MW",{"$f":"SUMIFS(raw_transmission_costs!$G:$G,raw_transmission_costs!$B:$B,$C651,raw_transmission_costs!$A:$A,E$615)-SUMIFS(raw_transmission_costs!$E:$E,raw_transmission_costs!$B:$B,$C651,raw_transmission_costs!$A:$A,E$615)","v":0},{"$f":"SUMIFS(raw_transmission_costs!$G:$G,raw_transmission_costs!$B:$B,$C651,raw_transmission_costs!$A:$A,F$615)-SUMIFS(raw_transmission_costs!$E:$E,raw_transmission_costs!$B:$B,$C651,raw_transmission_costs!$A:$A,F$615)","v":0},{"$f":"SUMIFS(raw_transmission_costs!$G:$G,raw_transmission_costs!$B:$B,$C651,raw_transmission_costs!$A:$A,G$615)-SUMIFS(raw_transmission_costs!$E:$E,raw_transmission_costs!$B:$B,$C651,raw_transmission_costs!$A:$A,G$615)","v":0},{"$f":"SUMIFS(raw_transmission_costs!$G:$G,raw_transmission_costs!$B:$B,$C651,raw_transmission_costs!$A:$A,H$615)-SUMIFS(raw_transmission_costs!$E:$E,raw_transmission_costs!$B:$B,$C651,raw_transmission_costs!$A:$A,H$615)","v":0},{"$f":"SUMIFS(raw_transmission_costs!$G:$G,raw_transmission_costs!$B:$B,$C651,raw_transmission_costs!$A:$A,I$615)-SUMIFS(raw_transmission_costs!$E:$E,raw_transmission_costs!$B:$B,$C651,raw_transmission_costs!$A:$A,I$615)","v":0},{"$f":"SUMIFS(raw_transmission_costs!$G:$G,raw_transmission_costs!$B:$B,$C651,raw_transmission_costs!$A:$A,J$615)-SUMIFS(raw_transmission_costs!$E:$E,raw_transmission_costs!$B:$B,$C651,raw_transmission_costs!$A:$A,J$615)","v":0},{"$f":"SUMIFS(raw_transmission_costs!$G:$G,raw_transmission_costs!$B:$B,$C651,raw_transmission_costs!$A:$A,K$615)-SUMIFS(raw_transmission_costs!$E:$E,raw_transmission_costs!$B:$B,$C651,raw_transmission_costs!$A:$A,K$615)","v":0},{"$f":"SUMIFS(raw_transmission_costs!$G:$G,raw_transmission_costs!$B:$B,$C651,raw_transmission_costs!$A:$A,L$615)-SUMIFS(raw_transmission_costs!$E:$E,raw_transmission_costs!$B:$B,$C651,raw_transmission_costs!$A:$A,L$615)","v":442.03},{"$f":"SUMIFS(raw_transmission_costs!$G:$G,raw_transmission_costs!$B:$B,$C651,raw_transmission_costs!$A:$A,M$615)-SUMIFS(raw_transmission_costs!$E:$E,raw_transmission_costs!$B:$B,$C651,raw_transmission_costs!$A:$A,M$615)","v":442.03},{"$f":"SUMIFS(raw_transmission_costs!$G:$G,raw_transmission_costs!$B:$B,$C651,raw_transmission_costs!$A:$A,N$615)-SUMIFS(raw_transmission_costs!$E:$E,raw_transmission_costs!$B:$B,$C651,raw_transmission_costs!$A:$A,N$615)","v":442.03},{"$f":"SUMIFS(raw_transmission_costs!$G:$G,raw_transmission_costs!$B:$B,$C651,raw_transmission_costs!$A:$A,O$615)-SUMIFS(raw_transmission_costs!$E:$E,raw_transmission_costs!$B:$B,$C651,raw_transmission_costs!$A:$A,O$615)","v":0},{"$f":"SUMIFS(raw_transmission_costs!$G:$G,raw_transmission_costs!$B:$B,$C651,raw_transmission_costs!$A:$A,P$615)-SUMIFS(raw_transmission_costs!$E:$E,raw_transmission_costs!$B:$B,$C651,raw_transmission_costs!$A:$A,P$615)","v":442.03},{"$f":"SUMIFS(raw_transmission_costs!$G:$G,raw_transmission_costs!$B:$B,$C651,raw_transmission_costs!$A:$A,Q$615)-SUMIFS(raw_transmission_costs!$E:$E,raw_transmission_costs!$B:$B,$C651,raw_transmission_costs!$A:$A,Q$615)","v":0},{"$f":"SUMIFS(raw_transmission_costs!$G:$G,raw_transmission_costs!$B:$B,$C651,raw_transmission_costs!$A:$A,R$615)-SUMIFS(raw_transmission_costs!$E:$E,raw_transmission_costs!$B:$B,$C651,raw_transmission_costs!$A:$A,R$615)","v":0},{"$f":"SUMIFS(raw_transmission_costs!$G:$G,raw_transmission_costs!$B:$B,$C651,raw_transmission_costs!$A:$A,S$615)-SUMIFS(raw_transmission_costs!$E:$E,raw_transmission_costs!$B:$B,$C651,raw_transmission_costs!$A:$A,S$615)","v":0},{"$f":"SUMIFS(raw_transmission_costs!$G:$G,raw_transmission_costs!$B:$B,$C651,raw_transmission_costs!$A:$A,T$615)-SUMIFS(raw_transmission_costs!$E:$E,raw_transmission_costs!$B:$B,$C651,raw_transmission_costs!$A:$A,T$615)","v":442.03},{"$f":"SUMIFS(raw_transmission_costs!$G:$G,raw_transmission_costs!$B:$B,$C651,raw_transmission_costs!$A:$A,U$615)-SUMIFS(raw_transmission_costs!$E:$E,raw_transmission_costs!$B:$B,$C651,raw_transmission_costs!$A:$A,U$615)","v":0},{"$f":"SUMIFS(raw_transmission_costs!$G:$G,raw_transmission_costs!$B:$B,$C651,raw_transmission_costs!$A:$A,V$615)-SUMIFS(raw_transmission_costs!$E:$E,raw_transmission_costs!$B:$B,$C651,raw_transmission_costs!$A:$A,V$615)","v":0},{"$f":"SUMIFS(raw_transmission_costs!$G:$G,raw_transmission_costs!$B:$B,$C651,raw_transmission_costs!$A:$A,W$615)-SUMIFS(raw_transmission_costs!$E:$E,raw_transmission_costs!$B:$B,$C651,raw_transmission_costs!$A:$A,W$615)","v":0},{"$f":"SUMIFS(raw_transmission_costs!$G:$G,raw_transmission_costs!$B:$B,$C651,raw_transmission_costs!$A:$A,X$615)-SUMIFS(raw_transmission_costs!$E:$E,raw_transmission_costs!$B:$B,$C651,raw_transmission_costs!$A:$A,X$615)","v":0},{"$f":"SUMIFS(raw_transmission_costs!$G:$G,raw_transmission_costs!$B:$B,$C651,raw_transmission_costs!$A:$A,Y$615)-SUMIFS(raw_transmission_costs!$E:$E,raw_transmission_costs!$B:$B,$C651,raw_transmission_costs!$A:$A,Y$615)","v":0},{"$f":"SUMIFS(raw_transmission_costs!$G:$G,raw_transmission_costs!$B:$B,$C651,raw_transmission_costs!$A:$A,Z$615)-SUMIFS(raw_transmission_costs!$E:$E,raw_transmission_costs!$B:$B,$C651,raw_transmission_costs!$A:$A,Z$615)","v":0},{"$f":"SUMIFS(raw_transmission_costs!$G:$G,raw_transmission_costs!$B:$B,$C651,raw_transmission_costs!$A:$A,AA$615)-SUMIFS(raw_transmission_costs!$E:$E,raw_transmission_costs!$B:$B,$C651,raw_transmission_costs!$A:$A,AA$615)","v":0},{"$f":"SUMIFS(raw_transmission_costs!$G:$G,raw_transmission_costs!$B:$B,$C651,raw_transmission_costs!$A:$A,AB$615)-SUMIFS(raw_transmission_costs!$E:$E,raw_transmission_costs!$B:$B,$C651,raw_transmission_costs!$A:$A,AB$615)","v":0},{"$f":"SUMIFS(raw_transmission_costs!$G:$G,raw_transmission_costs!$B:$B,$C651,raw_transmission_costs!$A:$A,AC$615)-SUMIFS(raw_transmission_costs!$E:$E,raw_transmission_costs!$B:$B,$C651,raw_transmission_costs!$A:$A,AC$615)","v":0},{"$f":"SUMIFS(raw_transmission_costs!$G:$G,raw_transmission_costs!$B:$B,$C651,raw_transmission_costs!$A:$A,AD$615)-SUMIFS(raw_transmission_costs!$E:$E,raw_transmission_costs!$B:$B,$C651,raw_transmission_costs!$A:$A,AD$615)","v":0},{"$f":"SUMIFS(raw_transmission_costs!$G:$G,raw_transmission_costs!$B:$B,$C651,raw_transmission_costs!$A:$A,AE$615)-SUMIFS(raw_transmission_costs!$E:$E,raw_transmission_costs!$B:$B,$C651,raw_transmission_costs!$A:$A,AE$615)","v":0},{"$f":"SUMIFS(raw_transmission_costs!$G:$G,raw_transmission_costs!$B:$B,$C651,raw_transmission_costs!$A:$A,AF$615)-SUMIFS(raw_transmission_costs!$E:$E,raw_transmission_costs!$B:$B,$C651,raw_transmission_costs!$A:$A,AF$615)","v":0},{"$f":"SUMIFS(raw_transmission_costs!$G:$G,raw_transmission_costs!$B:$B,$C651,raw_transmission_costs!$A:$A,AG$615)-SUMIFS(raw_transmission_costs!$E:$E,raw_transmission_costs!$B:$B,$C651,raw_transmission_costs!$A:$A,AG$615)","v":0},{"$f":"SUMIFS(raw_transmission_costs!$G:$G,raw_transmission_costs!$B:$B,$C651,raw_transmission_costs!$A:$A,AH$615)-SUMIFS(raw_transmission_costs!$E:$E,raw_transmission_costs!$B:$B,$C651,raw_transmission_costs!$A:$A,AH$615)","v":0},{"$f":"SUMIFS(raw_transmission_costs!$G:$G,raw_transmission_costs!$B:$B,$C651,raw_transmission_costs!$A:$A,AI$615)-SUMIFS(raw_transmission_costs!$E:$E,raw_transmission_costs!$B:$B,$C651,raw_transmission_costs!$A:$A,AI$615)","v":442.03},{"$f":"SUMIFS(raw_transmission_costs!$G:$G,raw_transmission_costs!$B:$B,$C651,raw_transmission_costs!$A:$A,AJ$615)-SUMIFS(raw_transmission_costs!$E:$E,raw_transmission_costs!$B:$B,$C651,raw_transmission_costs!$A:$A,AJ$615)","v":0},{"$f":"SUMIFS(raw_transmission_costs!$G:$G,raw_transmission_costs!$B:$B,$C651,raw_transmission_costs!$A:$A,AK$615)-SUMIFS(raw_transmission_costs!$E:$E,raw_transmission_costs!$B:$B,$C651,raw_transmission_costs!$A:$A,AK$615)","v":0},{"$f":"SUMIFS(raw_transmission_costs!$G:$G,raw_transmission_costs!$B:$B,$C651,raw_transmission_costs!$A:$A,AL$615)-SUMIFS(raw_transmission_costs!$E:$E,raw_transmission_costs!$B:$B,$C651,raw_transmission_costs!$A:$A,AL$615)","v":0},{"$f":"SUMIFS(raw_transmission_costs!$G:$G,raw_transmission_costs!$B:$B,$C651,raw_transmission_costs!$A:$A,AM$615)-SUMIFS(raw_transmission_costs!$E:$E,raw_transmission_costs!$B:$B,$C651,raw_transmission_costs!$A:$A,AM$615)","v":0},{"$f":"SUMIFS(raw_transmission_costs!$G:$G,raw_transmission_costs!$B:$B,$C651,raw_transmission_costs!$A:$A,AN$615)-SUMIFS(raw_transmission_costs!$E:$E,raw_transmission_costs!$B:$B,$C651,raw_transmission_costs!$A:$A,AN$615)","v":0}]
[null,null,"Greater_Imperial","MW",{"$f":"SUMIFS(raw_transmission_costs!$G:$G,raw_transmission_costs!$B:$B,$C652,raw_transmission_costs!$A:$A,E$615)-SUMIFS(raw_transmission_costs!$E:$E,raw_transmission_costs!$B:$B,$C652,raw_transmission_costs!$A:$A,E$615)","v":0},{"$f":"SUMIFS(raw_transmission_costs!$G:$G,raw_transmission_costs!$B:$B,$C652,raw_transmission_costs!$A:$A,F$615)-SUMIFS(raw_transmission_costs!$E:$E,raw_transmission_costs!$B:$B,$C652,raw_transmission_costs!$A:$A,F$615)","v":0},{"$f":"SUMIFS(raw_transmission_costs!$G:$G,raw_transmission_costs!$B:$B,$C652,raw_transmission_costs!$A:$A,G$615)-SUMIFS(raw_transmission_costs!$E:$E,raw_transmission_costs!$B:$B,$C652,raw_transmission_costs!$A:$A,G$615)","v":0},{"$f":"SUMIFS(raw_transmission_costs!$G:$G,raw_transmission_costs!$B:$B,$C652,raw_transmission_costs!$A:$A,H$615)-SUMIFS(raw_transmission_costs!$E:$E,raw_transmission_costs!$B:$B,$C652,raw_transmission_costs!$A:$A,H$615)","v":0},{"$f":"SUMIFS(raw_transmission_costs!$G:$G,raw_transmission_costs!$B:$B,$C652,raw_transmission_costs!$A:$A,I$615)-SUMIFS(raw_transmission_costs!$E:$E,raw_transmission_costs!$B:$B,$C652,raw_transmission_costs!$A:$A,I$615)","v":0},{"$f":"SUMIFS(raw_transmission_costs!$G:$G,raw_transmission_costs!$B:$B,$C652,raw_transmission_costs!$A:$A,J$615)-SUMIFS(raw_transmission_costs!$E:$E,raw_transmission_costs!$B:$B,$C652,raw_transmission_costs!$A:$A,J$615)","v":0},{"$f":"SUMIFS(raw_transmission_costs!$G:$G,raw_transmission_costs!$B:$B,$C652,raw_transmission_costs!$A:$A,K$615)-SUMIFS(raw_transmission_costs!$E:$E,raw_transmission_costs!$B:$B,$C652,raw_transmission_costs!$A:$A,K$615)","v":0},{"$f":"SUMIFS(raw_transmission_costs!$G:$G,raw_transmission_costs!$B:$B,$C652,raw_transmission_costs!$A:$A,L$615)-SUMIFS(raw_transmission_costs!$E:$E,raw_transmission_costs!$B:$B,$C652,raw_transmission_costs!$A:$A,L$615)","v":0},{"$f":"SUMIFS(raw_transmission_costs!$G:$G,raw_transmission_costs!$B:$B,$C652,raw_transmission_costs!$A:$A,M$615)-SUMIFS(raw_transmission_costs!$E:$E,raw_transmission_costs!$B:$B,$C652,raw_transmission_costs!$A:$A,M$615)","v":0},{"$f":"SUMIFS(raw_transmission_costs!$G:$G,raw_transmission_costs!$B:$B,$C652,raw_transmission_costs!$A:$A,N$615)-SUMIFS(raw_transmission_costs!$E:$E,raw_transmission_costs!$B:$B,$C652,raw_transmission_costs!$A:$A,N$615)","v":92.17},{"$f":"SUMIFS(raw_transmission_costs!$G:$G,raw_transmission_costs!$B:$B,$C652,raw_transmission_costs!$A:$A,O$615)-SUMIFS(raw_transmission_costs!$E:$E,raw_transmission_costs!$B:$B,$C652,raw_transmission_costs!$A:$A,O$615)","v":0},{"$f":"SUMIFS(raw_transmission_costs!$G:$G,raw_transmission_costs!$B:$B,$C652,raw_transmission_costs!$A:$A,P$615)-SUMIFS(raw_transmission_costs!$E:$E,raw_transmission_costs!$B:$B,$C652,raw_transmission_costs!$A:$A,P$615)","v":92.17},{"$f":"SUMIFS(raw_transmission_costs!$G:$G,raw_transmission_costs!$B:$B,$C652,raw_transmission_costs!$A:$A,Q$615)-SUMIFS(raw_transmission_costs!$E:$E,raw_transmission_costs!$B:$B,$C652,raw_transmission_costs!$A:$A,Q$615)","v":0},{"$f":"SUMIFS(raw_transmission_costs!$G:$G,raw_transmission_costs!$B:$B,$C652,raw_transmission_costs!$A:$A,R$615)-SUMIFS(raw_transmission_costs!$E:$E,raw_transmission_costs!$B:$B,$C652,raw_transmission_costs!$A:$A,R$615)","v":0},{"$f":"SUMIFS(raw_transmission_costs!$G:$G,raw_transmission_costs!$B:$B,$C652,raw_transmission_costs!$A:$A,S$615)-SUMIFS(raw_transmission_costs!$E:$E,raw_transmission_costs!$B:$B,$C652,raw_transmission_costs!$A:$A,S$615)","v":0},{"$f":"SUMIFS(raw_transmission_costs!$G:$G,raw_transmission_costs!$B:$B,$C652,raw_transmission_costs!$A:$A,T$615)-SUMIFS(raw_transmission_costs!$E:$E,raw_transmission_costs!$B:$B,$C652,raw_transmission_costs!$A:$A,T$615)","v":92.17},{"$f":"SUMIFS(raw_transmission_costs!$G:$G,raw_transmission_costs!$B:$B,$C652,raw_transmission_costs!$A:$A,U$615)-SUMIFS(raw_transmission_costs!$E:$E,raw_transmission_costs!$B:$B,$C652,raw_transmission_costs!$A:$A,U$615)","v":0},{"$f":"SUMIFS(raw_transmission_costs!$G:$G,raw_transmission_costs!$B:$B,$C652,raw_transmission_costs!$A:$A,V$615)-SUMIFS(raw_transmission_costs!$E:$E,raw_transmission_costs!$B:$B,$C652,raw_transmission_costs!$A:$A,V$615)","v":0},{"$f":"SUMIFS(raw_transmission_costs!$G:$G,raw_transmission_costs!$B:$B,$C652,raw_transmission_costs!$A:$A,W$615)-SUMIFS(raw_transmission_costs!$E:$E,raw_transmission_costs!$B:$B,$C652,raw_transmission_costs!$A:$A,W$615)","v":0},{"$f":"SUMIFS(raw_transmission_costs!$G:$G,raw_transmission_costs!$B:$B,$C652,raw_transmission_costs!$A:$A,X$615)-SUMIFS(raw_transmission_costs!$E:$E,raw_transmission_costs!$B:$B,$C652,raw_transmission_costs!$A:$A,X$615)","v":0},{"$f":"SUMIFS(raw_transmission_costs!$G:$G,raw_transmission_costs!$B:$B,$C652,raw_transmission_costs!$A:$A,Y$615)-SUMIFS(raw_transmission_costs!$E:$E,raw_transmission_costs!$B:$B,$C652,raw_transmission_costs!$A:$A,Y$615)","v":0},{"$f":"SUMIFS(raw_transmission_costs!$G:$G,raw_transmission_costs!$B:$B,$C652,raw_transmission_costs!$A:$A,Z$615)-SUMIFS(raw_transmission_costs!$E:$E,raw_transmission_costs!$B:$B,$C652,raw_transmission_costs!$A:$A,Z$615)","v":0},{"$f":"SUMIFS(raw_transmission_costs!$G:$G,raw_transmission_costs!$B:$B,$C652,raw_transmission_costs!$A:$A,AA$615)-SUMIFS(raw_transmission_costs!$E:$E,raw_transmission_costs!$B:$B,$C652,raw_transmission_costs!$A:$A,AA$615)","v":0},{"$f":"SUMIFS(raw_transmission_costs!$G:$G,raw_transmission_costs!$B:$B,$C652,raw_transmission_costs!$A:$A,AB$615)-SUMIFS(raw_transmission_costs!$E:$E,raw_transmission_costs!$B:$B,$C652,raw_transmission_costs!$A:$A,AB$615)","v":0},{"$f":"SUMIFS(raw_transmission_costs!$G:$G,raw_transmission_costs!$B:$B,$C652,raw_transmission_costs!$A:$A,AC$615)-SUMIFS(raw_transmission_costs!$E:$E,raw_transmission_costs!$B:$B,$C652,raw_transmission_costs!$A:$A,AC$615)","v":0},{"$f":"SUMIFS(raw_transmission_costs!$G:$G,raw_transmission_costs!$B:$B,$C652,raw_transmission_costs!$A:$A,AD$615)-SUMIFS(raw_transmission_costs!$E:$E,raw_transmission_costs!$B:$B,$C652,raw_transmission_costs!$A:$A,AD$615)","v":0},{"$f":"SUMIFS(raw_transmission_costs!$G:$G,raw_transmission_costs!$B:$B,$C652,raw_transmission_costs!$A:$A,AE$615)-SUMIFS(raw_transmission_costs!$E:$E,raw_transmission_costs!$B:$B,$C652,raw_transmission_costs!$A:$A,AE$615)","v":0},{"$f":"SUMIFS(raw_transmission_costs!$G:$G,raw_transmission_costs!$B:$B,$C652,raw_transmission_costs!$A:$A,AF$615)-SUMIFS(raw_transmission_costs!$E:$E,raw_transmission_costs!$B:$B,$C652,raw_transmission_costs!$A:$A,AF$615)","v":0},{"$f":"SUMIFS(raw_transmission_costs!$G:$G,raw_transmission_costs!$B:$B,$C652,raw_transmission_costs!$A:$A,AG$615)-SUMIFS(raw_transmission_costs!$E:$E,raw_transmission_costs!$B:$B,$C652,raw_transmission_costs!$A:$A,AG$615)","v":0},{"$f":"SUMIFS(raw_transmission_costs!$G:$G,raw_transmission_costs!$B:$B,$C652,raw_transmission_costs!$A:$A,AH$615)-SUMIFS(raw_transmission_costs!$E:$E,raw_transmission_costs!$B:$B,$C652,raw_transmission_costs!$A:$A,AH$615)","v":0},{"$f":"SUMIFS(raw_transmission_costs!$G:$G,raw_transmission_costs!$B:$B,$C652,raw_transmission_costs!$A:$A,AI$615)-SUMIFS(raw_transmission_costs!$E:$E,raw_transmission_costs!$B:$B,$C652,raw_transmission_costs!$A:$A,AI$615)","v":919.08},{"$f":"SUMIFS(raw_transmission_costs!$G:$G,raw_transmission_costs!$B:$B,$C652,raw_transmission_costs!$A:$A,AJ$615)-SUMIFS(raw_transmission_costs!$E:$E,raw_transmission_costs!$B:$B,$C652,raw_transmission_costs!$A:$A,AJ$615)","v":0},{"$f":"SUMIFS(raw_transmission_costs!$G:$G,raw_transmission_costs!$B:$B,$C652,raw_transmission_costs!$A:$A,AK$615)-SUMIFS(raw_transmission_costs!$E:$E,raw_transmission_costs!$B:$B,$C652,raw_transmission_costs!$A:$A,AK$615)","v":0},{"$f":"SUMIFS(raw_transmission_costs!$G:$G,raw_transmission_costs!$B:$B,$C652,raw_transmission_costs!$A:$A,AL$615)-SUMIFS(raw_transmission_costs!$E:$E,raw_transmission_costs!$B:$B,$C652,raw_transmission_costs!$A:$A,AL$615)","v":0},{"$f":"SUMIFS(raw_transmission_costs!$G:$G,raw_transmission_costs!$B:$B,$C652,raw_transmission_costs!$A:$A,AM$615)-SUMIFS(raw_transmission_costs!$E:$E,raw_transmission_costs!$B:$B,$C652,raw_transmission_costs!$A:$A,AM$615)","v":0},{"$f":"SUMIFS(raw_transmission_costs!$G:$G,raw_transmission_costs!$B:$B,$C652,raw_transmission_costs!$A:$A,AN$615)-SUMIFS(raw_transmission_costs!$E:$E,raw_transmission_costs!$B:$B,$C652,raw_transmission_costs!$A:$A,AN$615)","v":0}]
[null,null,"Riverside_Palm_Springs","MW",{"$f":"SUMIFS(raw_transmission_costs!$G:$G,raw_transmission_costs!$B:$B,$C653,raw_transmission_costs!$A:$A,E$615)-SUMIFS(raw_transmission_costs!$E:$E,raw_transmission_costs!$B:$B,$C653,raw_transmission_costs!$A:$A,E$615)","v":0},{"$f":"SUMIFS(raw_transmission_costs!$G:$G,raw_transmission_costs!$B:$B,$C653,raw_transmission_costs!$A:$A,F$615)-SUMIFS(raw_transmission_costs!$E:$E,raw_transmission_costs!$B:$B,$C653,raw_transmission_costs!$A:$A,F$615)","v":0},{"$f":"SUMIFS(raw_transmission_costs!$G:$G,raw_transmission_costs!$B:$B,$C653,raw_transmission_costs!$A:$A,G$615)-SUMIFS(raw_transmission_costs!$E:$E,raw_transmission_costs!$B:$B,$C653,raw_transmission_costs!$A:$A,G$615)","v":0},{"$f":"SUMIFS(raw_transmission_costs!$G:$G,raw_transmission_costs!$B:$B,$C653,raw_transmission_costs!$A:$A,H$615)-SUMIFS(raw_transmission_costs!$E:$E,raw_transmission_costs!$B:$B,$C653,raw_transmission_costs!$A:$A,H$615)","v":0},{"$f":"SUMIFS(raw_transmission_costs!$G:$G,raw_transmission_costs!$B:$B,$C653,raw_transmission_costs!$A:$A,I$615)-SUMIFS(raw_transmission_costs!$E:$E,raw_transmission_costs!$B:$B,$C653,raw_transmission_costs!$A:$A,I$615)","v":0},{"$f":"SUMIFS(raw_transmission_costs!$G:$G,raw_transmission_costs!$B:$B,$C653,raw_transmission_costs!$A:$A,J$615)-SUMIFS(raw_transmission_costs!$E:$E,raw_transmission_costs!$B:$B,$C653,raw_transmission_costs!$A:$A,J$615)","v":563},{"$f":"SUMIFS(raw_transmission_costs!$G:$G,raw_transmission_costs!$B:$B,$C653,raw_transmission_costs!$A:$A,K$615)-SUMIFS(raw_transmission_costs!$E:$E,raw_transmission_costs!$B:$B,$C653,raw_transmission_costs!$A:$A,K$615)","v":563},{"$f":"SUMIFS(raw_transmission_costs!$G:$G,raw_transmission_costs!$B:$B,$C653,raw_transmission_costs!$A:$A,L$615)-SUMIFS(raw_transmission_costs!$E:$E,raw_transmission_costs!$B:$B,$C653,raw_transmission_costs!$A:$A,L$615)","v":563},{"$f":"SUMIFS(raw_transmission_costs!$G:$G,raw_transmission_costs!$B:$B,$C653,raw_transmission_costs!$A:$A,M$615)-SUMIFS(raw_transmission_costs!$E:$E,raw_transmission_costs!$B:$B,$C653,raw_transmission_costs!$A:$A,M$615)","v":563},{"$f":"SUMIFS(raw_transmission_costs!$G:$G,raw_transmission_costs!$B:$B,$C653,raw_transmission_costs!$A:$A,N$615)-SUMIFS(raw_transmission_costs!$E:$E,raw_transmission_costs!$B:$B,$C653,raw_transmission_costs!$A:$A,N$615)","v":563},{"$f":"SUMIFS(raw_transmission_costs!$G:$G,raw_transmission_costs!$B:$B,$C653,raw_transmission_costs!$A:$A,O$615)-SUMIFS(raw_transmission_costs!$E:$E,raw_transmission_costs!$B:$B,$C653,raw_transmission_costs!$A:$A,O$615)","v":0},{"$f":"SUMIFS(raw_transmission_costs!$G:$G,raw_transmission_costs!$B:$B,$C653,raw_transmission_costs!$A:$A,P$615)-SUMIFS(raw_transmission_costs!$E:$E,raw_transmission_costs!$B:$B,$C653,raw_transmission_costs!$A:$A,P$615)","v":563},{"$f":"SUMIFS(raw_transmission_costs!$G:$G,raw_transmission_costs!$B:$B,$C653,raw_transmission_costs!$A:$A,Q$615)-SUMIFS(raw_transmission_costs!$E:$E,raw_transmission_costs!$B:$B,$C653,raw_transmission_costs!$A:$A,Q$615)","v":0},{"$f":"SUMIFS(raw_transmission_costs!$G:$G,raw_transmission_costs!$B:$B,$C653,raw_transmission_costs!$A:$A,R$615)-SUMIFS(raw_transmission_costs!$E:$E,raw_transmission_costs!$B:$B,$C653,raw_transmission_costs!$A:$A,R$615)","v":0},{"$f":"SUMIFS(raw_transmission_costs!$G:$G,raw_transmission_costs!$B:$B,$C653,raw_transmission_costs!$A:$A,S$615)-SUMIFS(raw_transmission_costs!$E:$E,raw_transmission_costs!$B:$B,$C653,raw_transmission_costs!$A:$A,S$615)","v":0},{"$f":"SUMIFS(raw_transmission_costs!$G:$G,raw_transmission_costs!$B:$B,$C653,raw_transmission_costs!$A:$A,T$615)-SUMIFS(raw_transmission_costs!$E:$E,raw_transmission_costs!$B:$B,$C653,raw_transmission_costs!$A:$A,T$615)","v":1899.87},{"$f":"SUMIFS(raw_transmission_costs!$G:$G,raw_transmission_costs!$B:$B,$C653,raw_transmission_costs!$A:$A,U$615)-SUMIFS(raw_transmission_costs!$E:$E,raw_transmission_costs!$B:$B,$C653,raw_transmission_costs!$A:$A,U$615)","v":0},{"$f":"SUMIFS(raw_transmission_costs!$G:$G,raw_transmission_costs!$B:$B,$C653,raw_transmission_costs!$A:$A,V$615)-SUMIFS(raw_transmission_costs!$E:$E,raw_transmission_costs!$B:$B,$C653,raw_transmission_costs!$A:$A,V$615)","v":0},{"$f":"SUMIFS(raw_transmission_costs!$G:$G,raw_transmission_costs!$B:$B,$C653,raw_transmission_costs!$A:$A,W$615)-SUMIFS(raw_transmission_costs!$E:$E,raw_transmission_costs!$B:$B,$C653,raw_transmission_costs!$A:$A,W$615)","v":0},{"$f":"SUMIFS(raw_transmission_costs!$G:$G,raw_transmission_costs!$B:$B,$C653,raw_transmission_costs!$A:$A,X$615)-SUMIFS(raw_transmission_costs!$E:$E,raw_transmission_costs!$B:$B,$C653,raw_transmission_costs!$A:$A,X$615)","v":0},{"$f":"SUMIFS(raw_transmission_costs!$G:$G,raw_transmission_costs!$B:$B,$C653,raw_transmission_costs!$A:$A,Y$615)-SUMIFS(raw_transmission_costs!$E:$E,raw_transmission_costs!$B:$B,$C653,raw_transmission_costs!$A:$A,Y$615)","v":0},{"$f":"SUMIFS(raw_transmission_costs!$G:$G,raw_transmission_costs!$B:$B,$C653,raw_transmission_costs!$A:$A,Z$615)-SUMIFS(raw_transmission_costs!$E:$E,raw_transmission_costs!$B:$B,$C653,raw_transmission_costs!$A:$A,Z$615)","v":0},{"$f":"SUMIFS(raw_transmission_costs!$G:$G,raw_transmission_costs!$B:$B,$C653,raw_transmission_costs!$A:$A,AA$615)-SUMIFS(raw_transmission_costs!$E:$E,raw_transmission_costs!$B:$B,$C653,raw_transmission_costs!$A:$A,AA$615)","v":0},{"$f":"SUMIFS(raw_transmission_costs!$G:$G,raw_transmission_costs!$B:$B,$C653,raw_transmission_costs!$A:$A,AB$615)-SUMIFS(raw_transmission_costs!$E:$E,raw_transmission_costs!$B:$B,$C653,raw_transmission_costs!$A:$A,AB$615)","v":0},{"$f":"SUMIFS(raw_transmission_costs!$G:$G,raw_transmission_costs!$B:$B,$C653,raw_transmission_costs!$A:$A,AC$615)-SUMIFS(raw_transmission_costs!$E:$E,raw_transmission_costs!$B:$B,$C653,raw_transmission_costs!$A:$A,AC$615)","v":0},{"$f":"SUMIFS(raw_transmission_costs!$G:$G,raw_transmission_costs!$B:$B,$C653,raw_transmission_costs!$A:$A,AD$615)-SUMIFS(raw_transmission_costs!$E:$E,raw_transmission_costs!$B:$B,$C653,raw_transmission_costs!$A:$A,AD$615)","v":0},{"$f":"SUMIFS(raw_transmission_costs!$G:$G,raw_transmission_costs!$B:$B,$C653,raw_transmission_costs!$A:$A,AE$615)-SUMIFS(raw_transmission_costs!$E:$E,raw_transmission_costs!$B:$B,$C653,raw_transmission_costs!$A:$A,AE$615)","v":0},{"$f":"SUMIFS(raw_transmission_costs!$G:$G,raw_transmission_costs!$B:$B,$C653,raw_transmission_costs!$A:$A,AF$615)-SUMIFS(raw_transmission_costs!$E:$E,raw_transmission_costs!$B:$B,$C653,raw_transmission_costs!$A:$A,AF$615)","v":0},{"$f":"SUMIFS(raw_transmission_costs!$G:$G,raw_transmission_costs!$B:$B,$C653,raw_transmission_costs!$A:$A,AG$615)-SUMIFS(raw_transmission_costs!$E:$E,raw_transmission_costs!$B:$B,$C653,raw_transmission_costs!$A:$A,AG$615)","v":0},{"$f":"SUMIFS(raw_transmission_costs!$G:$G,raw_transmission_costs!$B:$B,$C653,raw_transmission_costs!$A:$A,AH$615)-SUMIFS(raw_transmission_costs!$E:$E,raw_transmission_costs!$B:$B,$C653,raw_transmission_costs!$A:$A,AH$615)","v":0},{"$f":"SUMIFS(raw_transmission_costs!$G:$G,raw_transmission_costs!$B:$B,$C653,raw_transmission_costs!$A:$A,AI$615)-SUMIFS(raw_transmission_costs!$E:$E,raw_transmission_costs!$B:$B,$C653,raw_transmission_costs!$A:$A,AI$615)","v":2595},{"$f":"SUMIFS(raw_transmission_costs!$G:$G,raw_transmission_costs!$B:$B,$C653,raw_transmission_costs!$A:$A,AJ$615)-SUMIFS(raw_transmission_costs!$E:$E,raw_transmission_costs!$B:$B,$C653,raw_transmission_costs!$A:$A,AJ$615)","v":0},{"$f":"SUMIFS(raw_transmission_costs!$G:$G,raw_transmission_costs!$B:$B,$C653,raw_transmission_costs!$A:$A,AK$615)-SUMIFS(raw_transmission_costs!$E:$E,raw_transmission_costs!$B:$B,$C653,raw_transmission_costs!$A:$A,AK$615)","v":0},{"$f":"SUMIFS(raw_transmission_costs!$G:$G,raw_transmission_costs!$B:$B,$C653,raw_transmission_costs!$A:$A,AL$615)-SUMIFS(raw_transmission_costs!$E:$E,raw_transmission_costs!$B:$B,$C653,raw_transmission_costs!$A:$A,AL$615)","v":0},{"$f":"SUMIFS(raw_transmission_costs!$G:$G,raw_transmission_costs!$B:$B,$C653,raw_transmission_costs!$A:$A,AM$615)-SUMIFS(raw_transmission_costs!$E:$E,raw_transmission_costs!$B:$B,$C653,raw_transmission_costs!$A:$A,AM$615)","v":0},{"$f":"SUMIFS(raw_transmission_costs!$G:$G,raw_transmission_costs!$B:$B,$C653,raw_transmission_costs!$A:$A,AN$615)-SUMIFS(raw_transmission_costs!$E:$E,raw_transmission_costs!$B:$B,$C653,raw_transmission_costs!$A:$A,AN$615)","v":0}]
[null,null,"SCADSNV","MW",{"$f":"SUMIFS(raw_transmission_costs!$G:$G,raw_transmission_costs!$B:$B,$C654,raw_transmission_costs!$A:$A,E$615)-SUMIFS(raw_transmission_costs!$E:$E,raw_transmission_costs!$B:$B,$C654,raw_transmission_costs!$A:$A,E$615)","v":0},{"$f":"SUMIFS(raw_transmission_costs!$G:$G,raw_transmission_costs!$B:$B,$C654,raw_transmission_costs!$A:$A,F$615)-SUMIFS(raw_transmission_costs!$E:$E,raw_transmission_costs!$B:$B,$C654,raw_transmission_costs!$A:$A,F$615)","v":0},{"$f":"SUMIFS(raw_transmission_costs!$G:$G,raw_transmission_costs!$B:$B,$C654,raw_transmission_costs!$A:$A,G$615)-SUMIFS(raw_transmission_costs!$E:$E,raw_transmission_costs!$B:$B,$C654,raw_transmission_costs!$A:$A,G$615)","v":0},{"$f":"SUMIFS(raw_transmission_costs!$G:$G,raw_transmission_costs!$B:$B,$C654,raw_transmission_costs!$A:$A,H$615)-SUMIFS(raw_transmission_costs!$E:$E,raw_transmission_costs!$B:$B,$C654,raw_transmission_costs!$A:$A,H$615)","v":0},{"$f":"SUMIFS(raw_transmission_costs!$G:$G,raw_transmission_costs!$B:$B,$C654,raw_transmission_costs!$A:$A,I$615)-SUMIFS(raw_transmission_costs!$E:$E,raw_transmission_costs!$B:$B,$C654,raw_transmission_costs!$A:$A,I$615)","v":0},{"$f":"SUMIFS(raw_transmission_costs!$G:$G,raw_transmission_costs!$B:$B,$C654,raw_transmission_costs!$A:$A,J$615)-SUMIFS(raw_transmission_costs!$E:$E,raw_transmission_costs!$B:$B,$C654,raw_transmission_costs!$A:$A,J$615)","v":563},{"$f":"SUMIFS(raw_transmission_costs!$G:$G,raw_transmission_costs!$B:$B,$C654,raw_transmission_costs!$A:$A,K$615)-SUMIFS(raw_transmission_costs!$E:$E,raw_transmission_costs!$B:$B,$C654,raw_transmission_costs!$A:$A,K$615)","v":563},{"$f":"SUMIFS(raw_transmission_costs!$G:$G,raw_transmission_costs!$B:$B,$C654,raw_transmission_costs!$A:$A,L$615)-SUMIFS(raw_transmission_costs!$E:$E,raw_transmission_costs!$B:$B,$C654,raw_transmission_costs!$A:$A,L$615)","v":1005.03},{"$f":"SUMIFS(raw_transmission_costs!$G:$G,raw_transmission_costs!$B:$B,$C654,raw_transmission_costs!$A:$A,M$615)-SUMIFS(raw_transmission_costs!$E:$E,raw_transmission_costs!$B:$B,$C654,raw_transmission_costs!$A:$A,M$615)","v":1005.03},{"$f":"SUMIFS(raw_transmission_costs!$G:$G,raw_transmission_costs!$B:$B,$C654,raw_transmission_costs!$A:$A,N$615)-SUMIFS(raw_transmission_costs!$E:$E,raw_transmission_costs!$B:$B,$C654,raw_transmission_costs!$A:$A,N$615)","v":1097.21},{"$f":"SUMIFS(raw_transmission_costs!$G:$G,raw_transmission_costs!$B:$B,$C654,raw_transmission_costs!$A:$A,O$615)-SUMIFS(raw_transmission_costs!$E:$E,raw_transmission_costs!$B:$B,$C654,raw_transmission_costs!$A:$A,O$615)","v":0},{"$f":"SUMIFS(raw_transmission_costs!$G:$G,raw_transmission_costs!$B:$B,$C654,raw_transmission_costs!$A:$A,P$615)-SUMIFS(raw_transmission_costs!$E:$E,raw_transmission_costs!$B:$B,$C654,raw_transmission_costs!$A:$A,P$615)","v":1097.21},{"$f":"SUMIFS(raw_transmission_costs!$G:$G,raw_transmission_costs!$B:$B,$C654,raw_transmission_costs!$A:$A,Q$615)-SUMIFS(raw_transmission_costs!$E:$E,raw_transmission_costs!$B:$B,$C654,raw_transmission_costs!$A:$A,Q$615)","v":0},{"$f":"SUMIFS(raw_transmission_costs!$G:$G,raw_transmission_costs!$B:$B,$C654,raw_transmission_costs!$A:$A,R$615)-SUMIFS(raw_transmission_costs!$E:$E,raw_transmission_costs!$B:$B,$C654,raw_transmission_costs!$A:$A,R$615)","v":0},{"$f":"SUMIFS(raw_transmission_costs!$G:$G,raw_transmission_costs!$B:$B,$C654,raw_transmission_costs!$A:$A,S$615)-SUMIFS(raw_transmission_costs!$E:$E,raw_transmission_costs!$B:$B,$C654,raw_transmission_costs!$A:$A,S$615)","v":0},{"$f":"SUMIFS(raw_transmission_costs!$G:$G,raw_transmission_costs!$B:$B,$C654,raw_transmission_costs!$A:$A,T$615)-SUMIFS(raw_transmission_costs!$E:$E,raw_transmission_costs!$B:$B,$C654,raw_transmission_costs!$A:$A,T$615)","v":2434.08},{"$f":"SUMIFS(raw_transmission_costs!$G:$G,raw_transmission_costs!$B:$B,$C654,raw_transmission_costs!$A:$A,U$615)-SUMIFS(raw_transmission_costs!$E:$E,raw_transmission_costs!$B:$B,$C654,raw_transmission_costs!$A:$A,U$615)","v":0},{"$f":"SUMIFS(raw_transmission_costs!$G:$G,raw_transmission_costs!$B:$B,$C654,raw_transmission_costs!$A:$A,V$615)-SUMIFS(raw_transmission_costs!$E:$E,raw_transmission_costs!$B:$B,$C654,raw_transmission_costs!$A:$A,V$615)","v":0},{"$f":"SUMIFS(raw_transmission_costs!$G:$G,raw_transmission_costs!$B:$B,$C654,raw_transmission_costs!$A:$A,W$615)-SUMIFS(raw_transmission_costs!$E:$E,raw_transmission_costs!$B:$B,$C654,raw_transmission_costs!$A:$A,W$615)","v":0},{"$f":"SUMIFS(raw_transmission_costs!$G:$G,raw_transmission_costs!$B:$B,$C654,raw_transmission_costs!$A:$A,X$615)-SUMIFS(raw_transmission_costs!$E:$E,raw_transmission_costs!$B:$B,$C654,raw_transmission_costs!$A:$A,X$615)","v":0},{"$f":"SUMIFS(raw_transmission_costs!$G:$G,raw_transmission_costs!$B:$B,$C654,raw_transmission_costs!$A:$A,Y$615)-SUMIFS(raw_transmission_costs!$E:$E,raw_transmission_costs!$B:$B,$C654,raw_transmission_costs!$A:$A,Y$615)","v":0},{"$f":"SUMIFS(raw_transmission_costs!$G:$G,raw_transmission_costs!$B:$B,$C654,raw_transmission_costs!$A:$A,Z$615)-SUMIFS(raw_transmission_costs!$E:$E,raw_transmission_costs!$B:$B,$C654,raw_transmission_costs!$A:$A,Z$615)","v":0},{"$f":"SUMIFS(raw_transmission_costs!$G:$G,raw_transmission_costs!$B:$B,$C654,raw_transmission_costs!$A:$A,AA$615)-SUMIFS(raw_transmission_costs!$E:$E,raw_transmission_costs!$B:$B,$C654,raw_transmission_costs!$A:$A,AA$615)","v":0},{"$f":"SUMIFS(raw_transmission_costs!$G:$G,raw_transmission_costs!$B:$B,$C654,raw_transmission_costs!$A:$A,AB$615)-SUMIFS(raw_transmission_costs!$E:$E,raw_transmission_costs!$B:$B,$C654,raw_transmission_costs!$A:$A,AB$615)","v":0},{"$f":"SUMIFS(raw_transmission_costs!$G:$G,raw_transmission_costs!$B:$B,$C654,raw_transmission_costs!$A:$A,AC$615)-SUMIFS(raw_transmission_costs!$E:$E,raw_transmission_costs!$B:$B,$C654,raw_transmission_costs!$A:$A,AC$615)","v":0},{"$f":"SUMIFS(raw_transmission_costs!$G:$G,raw_transmission_costs!$B:$B,$C654,raw_transmission_costs!$A:$A,AD$615)-SUMIFS(raw_transmission_costs!$E:$E,raw_transmission_costs!$B:$B,$C654,raw_transmission_costs!$A:$A,AD$615)","v":0},{"$f":"SUMIFS(raw_transmission_costs!$G:$G,raw_transmission_costs!$B:$B,$C654,raw_transmission_costs!$A:$A,AE$615)-SUMIFS(raw_transmission_costs!$E:$E,raw_transmission_costs!$B:$B,$C654,raw_transmission_costs!$A:$A,AE$615)","v":0},{"$f":"SUMIFS(raw_transmission_costs!$G:$G,raw_transmission_costs!$B:$B,$C654,raw_transmission_costs!$A:$A,AF$615)-SUMIFS(raw_transmission_costs!$E:$E,raw_transmission_costs!$B:$B,$C654,raw_transmission_costs!$A:$A,AF$615)","v":0},{"$f":"SUMIFS(raw_transmission_costs!$G:$G,raw_transmission_costs!$B:$B,$C654,raw_transmission_costs!$A:$A,AG$615)-SUMIFS(raw_transmission_costs!$E:$E,raw_transmission_costs!$B:$B,$C654,raw_transmission_costs!$A:$A,AG$615)","v":0},{"$f":"SUMIFS(raw_transmission_costs!$G:$G,raw_transmission_costs!$B:$B,$C654,raw_transmission_costs!$A:$A,AH$615)-SUMIFS(raw_transmission_costs!$E:$E,raw_transmission_costs!$B:$B,$C654,raw_transmission_costs!$A:$A,AH$615)","v":0},{"$f":"SUMIFS(raw_transmission_costs!$G:$G,raw_transmission_costs!$B:$B,$C654,raw_transmission_costs!$A:$A,AI$615)-SUMIFS(raw_transmission_costs!$E:$E,raw_transmission_costs!$B:$B,$C654,raw_transmission_costs!$A:$A,AI$615)","v":2434.0799999999995},{"$f":"SUMIFS(raw_transmission_costs!$G:$G,raw_transmission_costs!$B:$B,$C654,raw_transmission_costs!$A:$A,AJ$615)-SUMIFS(raw_transmission_costs!$E:$E,raw_transmission_costs!$B:$B,$C654,raw_transmission_costs!$A:$A,AJ$615)","v":0},{"$f":"SUMIFS(raw_transmission_costs!$G:$G,raw_transmission_costs!$B:$B,$C654,raw_transmission_costs!$A:$A,AK$615)-SUMIFS(raw_transmission_costs!$E:$E,raw_transmission_costs!$B:$B,$C654,raw_transmission_costs!$A:$A,AK$615)","v":0},{"$f":"SUMIFS(raw_transmission_costs!$G:$G,raw_transmission_costs!$B:$B,$C654,raw_transmission_costs!$A:$A,AL$615)-SUMIFS(raw_transmission_costs!$E:$E,raw_transmission_costs!$B:$B,$C654,raw_transmission_costs!$A:$A,AL$615)","v":0},{"$f":"SUMIFS(raw_transmission_costs!$G:$G,raw_transmission_costs!$B:$B,$C654,raw_transmission_costs!$A:$A,AM$615)-SUMIFS(raw_transmission_costs!$E:$E,raw_transmission_costs!$B:$B,$C654,raw_transmission_costs!$A:$A,AM$615)","v":0},{"$f":"SUMIFS(raw_transmission_costs!$G:$G,raw_transmission_costs!$B:$B,$C654,raw_transmission_costs!$A:$A,AN$615)-SUMIFS(raw_transmission_costs!$E:$E,raw_transmission_costs!$B:$B,$C654,raw_transmission_costs!$A:$A,AN$615)","v":0}]
[null,null,"Kern_Greater_Carrizo","MW",{"$f":"SUMIFS(raw_transmission_costs!$G:$G,raw_transmission_costs!$B:$B,$C655,raw_transmission_costs!$A:$A,E$615)-SUMIFS(raw_transmission_costs!$E:$E,raw_transmission_costs!$B:$B,$C655,raw_transmission_costs!$A:$A,E$615)","v":0},{"$f":"SUMIFS(raw_transmission_costs!$G:$G,raw_transmission_costs!$B:$B,$C655,raw_transmission_costs!$A:$A,F$615)-SUMIFS(raw_transmission_costs!$E:$E,raw_transmission_costs!$B:$B,$C655,raw_transmission_costs!$A:$A,F$615)","v":0},{"$f":"SUMIFS(raw_transmission_costs!$G:$G,raw_transmission_costs!$B:$B,$C655,raw_transmission_costs!$A:$A,G$615)-SUMIFS(raw_transmission_costs!$E:$E,raw_transmission_costs!$B:$B,$C655,raw_transmission_costs!$A:$A,G$615)","v":0},{"$f":"SUMIFS(raw_transmission_costs!$G:$G,raw_transmission_costs!$B:$B,$C655,raw_transmission_costs!$A:$A,H$615)-SUMIFS(raw_transmission_costs!$E:$E,raw_transmission_costs!$B:$B,$C655,raw_transmission_costs!$A:$A,H$615)","v":0},{"$f":"SUMIFS(raw_transmission_costs!$G:$G,raw_transmission_costs!$B:$B,$C655,raw_transmission_costs!$A:$A,I$615)-SUMIFS(raw_transmission_costs!$E:$E,raw_transmission_costs!$B:$B,$C655,raw_transmission_costs!$A:$A,I$615)","v":0},{"$f":"SUMIFS(raw_transmission_costs!$G:$G,raw_transmission_costs!$B:$B,$C655,raw_transmission_costs!$A:$A,J$615)-SUMIFS(raw_transmission_costs!$E:$E,raw_transmission_costs!$B:$B,$C655,raw_transmission_costs!$A:$A,J$615)","v":0},{"$f":"SUMIFS(raw_transmission_costs!$G:$G,raw_transmission_costs!$B:$B,$C655,raw_transmission_costs!$A:$A,K$615)-SUMIFS(raw_transmission_costs!$E:$E,raw_transmission_costs!$B:$B,$C655,raw_transmission_costs!$A:$A,K$615)","v":0},{"$f":"SUMIFS(raw_transmission_costs!$G:$G,raw_transmission_costs!$B:$B,$C655,raw_transmission_costs!$A:$A,L$615)-SUMIFS(raw_transmission_costs!$E:$E,raw_transmission_costs!$B:$B,$C655,raw_transmission_costs!$A:$A,L$615)","v":60},{"$f":"SUMIFS(raw_transmission_costs!$G:$G,raw_transmission_costs!$B:$B,$C655,raw_transmission_costs!$A:$A,M$615)-SUMIFS(raw_transmission_costs!$E:$E,raw_transmission_costs!$B:$B,$C655,raw_transmission_costs!$A:$A,M$615)","v":461.26},{"$f":"SUMIFS(raw_transmission_costs!$G:$G,raw_transmission_costs!$B:$B,$C655,raw_transmission_costs!$A:$A,N$615)-SUMIFS(raw_transmission_costs!$E:$E,raw_transmission_costs!$B:$B,$C655,raw_transmission_costs!$A:$A,N$615)","v":461.26},{"$f":"SUMIFS(raw_transmission_costs!$G:$G,raw_transmission_costs!$B:$B,$C655,raw_transmission_costs!$A:$A,O$615)-SUMIFS(raw_transmission_costs!$E:$E,raw_transmission_costs!$B:$B,$C655,raw_transmission_costs!$A:$A,O$615)","v":0},{"$f":"SUMIFS(raw_transmission_costs!$G:$G,raw_transmission_costs!$B:$B,$C655,raw_transmission_costs!$A:$A,P$615)-SUMIFS(raw_transmission_costs!$E:$E,raw_transmission_costs!$B:$B,$C655,raw_transmission_costs!$A:$A,P$615)","v":784},{"$f":"SUMIFS(raw_transmission_costs!$G:$G,raw_transmission_costs!$B:$B,$C655,raw_transmission_costs!$A:$A,Q$615)-SUMIFS(raw_transmission_costs!$E:$E,raw_transmission_costs!$B:$B,$C655,raw_transmission_costs!$A:$A,Q$615)","v":0},{"$f":"SUMIFS(raw_transmission_costs!$G:$G,raw_transmission_costs!$B:$B,$C655,raw_transmission_costs!$A:$A,R$615)-SUMIFS(raw_transmission_costs!$E:$E,raw_transmission_costs!$B:$B,$C655,raw_transmission_costs!$A:$A,R$615)","v":0},{"$f":"SUMIFS(raw_transmission_costs!$G:$G,raw_transmission_costs!$B:$B,$C655,raw_transmission_costs!$A:$A,S$615)-SUMIFS(raw_transmission_costs!$E:$E,raw_transmission_costs!$B:$B,$C655,raw_transmission_costs!$A:$A,S$615)","v":0},{"$f":"SUMIFS(raw_transmission_costs!$G:$G,raw_transmission_costs!$B:$B,$C655,raw_transmission_costs!$A:$A,T$615)-SUMIFS(raw_transmission_costs!$E:$E,raw_transmission_costs!$B:$B,$C655,raw_transmission_costs!$A:$A,T$615)","v":784},{"$f":"SUMIFS(raw_transmission_costs!$G:$G,raw_transmission_costs!$B:$B,$C655,raw_transmission_costs!$A:$A,U$615)-SUMIFS(raw_transmission_costs!$E:$E,raw_transmission_costs!$B:$B,$C655,raw_transmission_costs!$A:$A,U$615)","v":0},{"$f":"SUMIFS(raw_transmission_costs!$G:$G,raw_transmission_costs!$B:$B,$C655,raw_transmission_costs!$A:$A,V$615)-SUMIFS(raw_transmission_costs!$E:$E,raw_transmission_costs!$B:$B,$C655,raw_transmission_costs!$A:$A,V$615)","v":0},{"$f":"SUMIFS(raw_transmission_costs!$G:$G,raw_transmission_costs!$B:$B,$C655,raw_transmission_costs!$A:$A,W$615)-SUMIFS(raw_transmission_costs!$E:$E,raw_transmission_costs!$B:$B,$C655,raw_transmission_costs!$A:$A,W$615)","v":0},{"$f":"SUMIFS(raw_transmission_costs!$G:$G,raw_transmission_costs!$B:$B,$C655,raw_transmission_costs!$A:$A,X$615)-SUMIFS(raw_transmission_costs!$E:$E,raw_transmission_costs!$B:$B,$C655,raw_transmission_costs!$A:$A,X$615)","v":0},{"$f":"SUMIFS(raw_transmission_costs!$G:$G,raw_transmission_costs!$B:$B,$C655,raw_transmission_costs!$A:$A,Y$615)-SUMIFS(raw_transmission_costs!$E:$E,raw_transmission_costs!$B:$B,$C655,raw_transmission_costs!$A:$A,Y$615)","v":0},{"$f":"SUMIFS(raw_transmission_costs!$G:$G,raw_transmission_costs!$B:$B,$C655,raw_transmission_costs!$A:$A,Z$615)-SUMIFS(raw_transmission_costs!$E:$E,raw_transmission_costs!$B:$B,$C655,raw_transmission_costs!$A:$A,Z$615)","v":0},{"$f":"SUMIFS(raw_transmission_costs!$G:$G,raw_transmission_costs!$B:$B,$C655,raw_transmission_costs!$A:$A,AA$615)-SUMIFS(raw_transmission_costs!$E:$E,raw_transmission_costs!$B:$B,$C655,raw_transmission_costs!$A:$A,AA$615)","v":0},{"$f":"SUMIFS(raw_transmission_costs!$G:$G,raw_transmission_costs!$B:$B,$C655,raw_transmission_costs!$A:$A,AB$615)-SUMIFS(raw_transmission_costs!$E:$E,raw_transmission_costs!$B:$B,$C655,raw_transmission_costs!$A:$A,AB$615)","v":0},{"$f":"SUMIFS(raw_transmission_costs!$G:$G,raw_transmission_costs!$B:$B,$C655,raw_transmission_costs!$A:$A,AC$615)-SUMIFS(raw_transmission_costs!$E:$E,raw_transmission_costs!$B:$B,$C655,raw_transmission_costs!$A:$A,AC$615)","v":0},{"$f":"SUMIFS(raw_transmission_costs!$G:$G,raw_transmission_costs!$B:$B,$C655,raw_transmission_costs!$A:$A,AD$615)-SUMIFS(raw_transmission_costs!$E:$E,raw_transmission_costs!$B:$B,$C655,raw_transmission_costs!$A:$A,AD$615)","v":0},{"$f":"SUMIFS(raw_transmission_costs!$G:$G,raw_transmission_costs!$B:$B,$C655,raw_transmission_costs!$A:$A,AE$615)-SUMIFS(raw_transmission_costs!$E:$E,raw_transmission_costs!$B:$B,$C655,raw_transmission_costs!$A:$A,AE$615)","v":0},{"$f":"SUMIFS(raw_transmission_costs!$G:$G,raw_transmission_costs!$B:$B,$C655,raw_transmission_costs!$A:$A,AF$615)-SUMIFS(raw_transmission_costs!$E:$E,raw_transmission_costs!$B:$B,$C655,raw_transmission_costs!$A:$A,AF$615)","v":0},{"$f":"SUMIFS(raw_transmission_costs!$G:$G,raw_transmission_costs!$B:$B,$C655,raw_transmission_costs!$A:$A,AG$615)-SUMIFS(raw_transmission_costs!$E:$E,raw_transmission_costs!$B:$B,$C655,raw_transmission_costs!$A:$A,AG$615)","v":0},{"$f":"SUMIFS(raw_transmission_costs!$G:$G,raw_transmission_costs!$B:$B,$C655,raw_transmission_costs!$A:$A,AH$615)-SUMIFS(raw_transmission_costs!$E:$E,raw_transmission_costs!$B:$B,$C655,raw_transmission_costs!$A:$A,AH$615)","v":0},{"$f":"SUMIFS(raw_transmission_costs!$G:$G,raw_transmission_costs!$B:$B,$C655,raw_transmission_costs!$A:$A,AI$615)-SUMIFS(raw_transmission_costs!$E:$E,raw_transmission_costs!$B:$B,$C655,raw_transmission_costs!$A:$A,AI$615)","v":784},{"$f":"SUMIFS(raw_transmission_costs!$G:$G,raw_transmission_costs!$B:$B,$C655,raw_transmission_costs!$A:$A,AJ$615)-SUMIFS(raw_transmission_costs!$E:$E,raw_transmission_costs!$B:$B,$C655,raw_transmission_costs!$A:$A,AJ$615)","v":0},{"$f":"SUMIFS(raw_transmission_costs!$G:$G,raw_transmission_costs!$B:$B,$C655,raw_transmission_costs!$A:$A,AK$615)-SUMIFS(raw_transmission_costs!$E:$E,raw_transmission_costs!$B:$B,$C655,raw_transmission_costs!$A:$A,AK$615)","v":0},{"$f":"SUMIFS(raw_transmission_costs!$G:$G,raw_transmission_costs!$B:$B,$C655,raw_transmission_costs!$A:$A,AL$615)-SUMIFS(raw_transmission_costs!$E:$E,raw_transmission_costs!$B:$B,$C655,raw_transmission_costs!$A:$A,AL$615)","v":0},{"$f":"SUMIFS(raw_transmission_costs!$G:$G,raw_transmission_costs!$B:$B,$C655,raw_transmission_costs!$A:$A,AM$615)-SUMIFS(raw_transmission_costs!$E:$E,raw_transmission_costs!$B:$B,$C655,raw_transmission_costs!$A:$A,AM$615)","v":0},{"$f":"SUMIFS(raw_transmission_costs!$G:$G,raw_transmission_costs!$B:$B,$C655,raw_transmission_costs!$A:$A,AN$615)-SUMIFS(raw_transmission_costs!$E:$E,raw_transmission_costs!$B:$B,$C655,raw_transmission_costs!$A:$A,AN$615)","v":0}]
[null,null,"Carrizo","MW",{"$f":"SUMIFS(raw_transmission_costs!$G:$G,raw_transmission_costs!$B:$B,$C656,raw_transmission_costs!$A:$A,E$615)-SUMIFS(raw_transmission_costs!$E:$E,raw_transmission_costs!$B:$B,$C656,raw_transmission_costs!$A:$A,E$615)","v":0},{"$f":"SUMIFS(raw_transmission_costs!$G:$G,raw_transmission_costs!$B:$B,$C656,raw_transmission_costs!$A:$A,F$615)-SUMIFS(raw_transmission_costs!$E:$E,raw_transmission_costs!$B:$B,$C656,raw_transmission_costs!$A:$A,F$615)","v":0},{"$f":"SUMIFS(raw_transmission_costs!$G:$G,raw_transmission_costs!$B:$B,$C656,raw_transmission_costs!$A:$A,G$615)-SUMIFS(raw_transmission_costs!$E:$E,raw_transmission_costs!$B:$B,$C656,raw_transmission_costs!$A:$A,G$615)","v":0},{"$f":"SUMIFS(raw_transmission_costs!$G:$G,raw_transmission_costs!$B:$B,$C656,raw_transmission_costs!$A:$A,H$615)-SUMIFS(raw_transmission_costs!$E:$E,raw_transmission_costs!$B:$B,$C656,raw_transmission_costs!$A:$A,H$615)","v":0},{"$f":"SUMIFS(raw_transmission_costs!$G:$G,raw_transmission_costs!$B:$B,$C656,raw_transmission_costs!$A:$A,I$615)-SUMIFS(raw_transmission_costs!$E:$E,raw_transmission_costs!$B:$B,$C656,raw_transmission_costs!$A:$A,I$615)","v":0},{"$f":"SUMIFS(raw_transmission_costs!$G:$G,raw_transmission_costs!$B:$B,$C656,raw_transmission_costs!$A:$A,J$615)-SUMIFS(raw_transmission_costs!$E:$E,raw_transmission_costs!$B:$B,$C656,raw_transmission_costs!$A:$A,J$615)","v":0},{"$f":"SUMIFS(raw_transmission_costs!$G:$G,raw_transmission_costs!$B:$B,$C656,raw_transmission_costs!$A:$A,K$615)-SUMIFS(raw_transmission_costs!$E:$E,raw_transmission_costs!$B:$B,$C656,raw_transmission_costs!$A:$A,K$615)","v":0},{"$f":"SUMIFS(raw_transmission_costs!$G:$G,raw_transmission_costs!$B:$B,$C656,raw_transmission_costs!$A:$A,L$615)-SUMIFS(raw_transmission_costs!$E:$E,raw_transmission_costs!$B:$B,$C656,raw_transmission_costs!$A:$A,L$615)","v":0},{"$f":"SUMIFS(raw_transmission_costs!$G:$G,raw_transmission_costs!$B:$B,$C656,raw_transmission_costs!$A:$A,M$615)-SUMIFS(raw_transmission_costs!$E:$E,raw_transmission_costs!$B:$B,$C656,raw_transmission_costs!$A:$A,M$615)","v":187},{"$f":"SUMIFS(raw_transmission_costs!$G:$G,raw_transmission_costs!$B:$B,$C656,raw_transmission_costs!$A:$A,N$615)-SUMIFS(raw_transmission_costs!$E:$E,raw_transmission_costs!$B:$B,$C656,raw_transmission_costs!$A:$A,N$615)","v":187},{"$f":"SUMIFS(raw_transmission_costs!$G:$G,raw_transmission_costs!$B:$B,$C656,raw_transmission_costs!$A:$A,O$615)-SUMIFS(raw_transmission_costs!$E:$E,raw_transmission_costs!$B:$B,$C656,raw_transmission_costs!$A:$A,O$615)","v":0},{"$f":"SUMIFS(raw_transmission_costs!$G:$G,raw_transmission_costs!$B:$B,$C656,raw_transmission_costs!$A:$A,P$615)-SUMIFS(raw_transmission_costs!$E:$E,raw_transmission_costs!$B:$B,$C656,raw_transmission_costs!$A:$A,P$615)","v":187},{"$f":"SUMIFS(raw_transmission_costs!$G:$G,raw_transmission_costs!$B:$B,$C656,raw_transmission_costs!$A:$A,Q$615)-SUMIFS(raw_transmission_costs!$E:$E,raw_transmission_costs!$B:$B,$C656,raw_transmission_costs!$A:$A,Q$615)","v":0},{"$f":"SUMIFS(raw_transmission_costs!$G:$G,raw_transmission_costs!$B:$B,$C656,raw_transmission_costs!$A:$A,R$615)-SUMIFS(raw_transmission_costs!$E:$E,raw_transmission_costs!$B:$B,$C656,raw_transmission_costs!$A:$A,R$615)","v":0},{"$f":"SUMIFS(raw_transmission_costs!$G:$G,raw_transmission_costs!$B:$B,$C656,raw_transmission_costs!$A:$A,S$615)-SUMIFS(raw_transmission_costs!$E:$E,raw_transmission_costs!$B:$B,$C656,raw_transmission_costs!$A:$A,S$615)","v":0},{"$f":"SUMIFS(raw_transmission_costs!$G:$G,raw_transmission_costs!$B:$B,$C656,raw_transmission_costs!$A:$A,T$615)-SUMIFS(raw_transmission_costs!$E:$E,raw_transmission_costs!$B:$B,$C656,raw_transmission_costs!$A:$A,T$615)","v":187},{"$f":"SUMIFS(raw_transmission_costs!$G:$G,raw_transmission_costs!$B:$B,$C656,raw_transmission_costs!$A:$A,U$615)-SUMIFS(raw_transmission_costs!$E:$E,raw_transmission_costs!$B:$B,$C656,raw_transmission_costs!$A:$A,U$615)","v":0},{"$f":"SUMIFS(raw_transmission_costs!$G:$G,raw_transmission_costs!$B:$B,$C656,raw_transmission_costs!$A:$A,V$615)-SUMIFS(raw_transmission_costs!$E:$E,raw_transmission_costs!$B:$B,$C656,raw_transmission_costs!$A:$A,V$615)","v":0},{"$f":"SUMIFS(raw_transmission_costs!$G:$G,raw_transmission_costs!$B:$B,$C656,raw_transmission_costs!$A:$A,W$615)-SUMIFS(raw_transmission_costs!$E:$E,raw_transmission_costs!$B:$B,$C656,raw_transmission_costs!$A:$A,W$615)","v":0},{"$f":"SUMIFS(raw_transmission_costs!$G:$G,raw_transmission_costs!$B:$B,$C656,raw_transmission_costs!$A:$A,X$615)-SUMIFS(raw_transmission_costs!$E:$E,raw_transmission_costs!$B:$B,$C656,raw_transmission_costs!$A:$A,X$615)","v":0},{"$f":"SUMIFS(raw_transmission_costs!$G:$G,raw_transmission_costs!$B:$B,$C656,raw_transmission_costs!$A:$A,Y$615)-SUMIFS(raw_transmission_costs!$E:$E,raw_transmission_costs!$B:$B,$C656,raw_transmission_costs!$A:$A,Y$615)","v":0},{"$f":"SUMIFS(raw_transmission_costs!$G:$G,raw_transmission_costs!$B:$B,$C656,raw_transmission_costs!$A:$A,Z$615)-SUMIFS(raw_transmission_costs!$E:$E,raw_transmission_costs!$B:$B,$C656,raw_transmission_costs!$A:$A,Z$615)","v":0},{"$f":"SUMIFS(raw_transmission_costs!$G:$G,raw_transmission_costs!$B:$B,$C656,raw_transmission_costs!$A:$A,AA$615)-SUMIFS(raw_transmission_costs!$E:$E,raw_transmission_costs!$B:$B,$C656,raw_transmission_costs!$A:$A,AA$615)","v":0},{"$f":"SUMIFS(raw_transmission_costs!$G:$G,raw_transmission_costs!$B:$B,$C656,raw_transmission_costs!$A:$A,AB$615)-SUMIFS(raw_transmission_costs!$E:$E,raw_transmission_costs!$B:$B,$C656,raw_transmission_costs!$A:$A,AB$615)","v":0},{"$f":"SUMIFS(raw_transmission_costs!$G:$G,raw_transmission_costs!$B:$B,$C656,raw_transmission_costs!$A:$A,AC$615)-SUMIFS(raw_transmission_costs!$E:$E,raw_transmission_costs!$B:$B,$C656,raw_transmission_costs!$A:$A,AC$615)","v":0},{"$f":"SUMIFS(raw_transmission_costs!$G:$G,raw_transmission_costs!$B:$B,$C656,raw_transmission_costs!$A:$A,AD$615)-SUMIFS(raw_transmission_costs!$E:$E,raw_transmission_costs!$B:$B,$C656,raw_transmission_costs!$A:$A,AD$615)","v":0},{"$f":"SUMIFS(raw_transmission_costs!$G:$G,raw_transmission_costs!$B:$B,$C656,raw_transmission_costs!$A:$A,AE$615)-SUMIFS(raw_transmission_costs!$E:$E,raw_transmission_costs!$B:$B,$C656,raw_transmission_costs!$A:$A,AE$615)","v":0},{"$f":"SUMIFS(raw_transmission_costs!$G:$G,raw_transmission_costs!$B:$B,$C656,raw_transmission_costs!$A:$A,AF$615)-SUMIFS(raw_transmission_costs!$E:$E,raw_transmission_costs!$B:$B,$C656,raw_transmission_costs!$A:$A,AF$615)","v":0},{"$f":"SUMIFS(raw_transmission_costs!$G:$G,raw_transmission_costs!$B:$B,$C656,raw_transmission_costs!$A:$A,AG$615)-SUMIFS(raw_transmission_costs!$E:$E,raw_transmission_costs!$B:$B,$C656,raw_transmission_costs!$A:$A,AG$615)","v":0},{"$f":"SUMIFS(raw_transmission_costs!$G:$G,raw_transmission_costs!$B:$B,$C656,raw_transmission_costs!$A:$A,AH$615)-SUMIFS(raw_transmission_costs!$E:$E,raw_transmission_costs!$B:$B,$C656,raw_transmission_costs!$A:$A,AH$615)","v":0},{"$f":"SUMIFS(raw_transmission_costs!$G:$G,raw_transmission_costs!$B:$B,$C656,raw_transmission_costs!$A:$A,AI$615)-SUMIFS(raw_transmission_costs!$E:$E,raw_transmission_costs!$B:$B,$C656,raw_transmission_costs!$A:$A,AI$615)","v":187},{"$f":"SUMIFS(raw_transmission_costs!$G:$G,raw_transmission_costs!$B:$B,$C656,raw_transmission_costs!$A:$A,AJ$615)-SUMIFS(raw_transmission_costs!$E:$E,raw_transmission_costs!$B:$B,$C656,raw_transmission_costs!$A:$A,AJ$615)","v":0},{"$f":"SUMIFS(raw_transmission_costs!$G:$G,raw_transmission_costs!$B:$B,$C656,raw_transmission_costs!$A:$A,AK$615)-SUMIFS(raw_transmission_costs!$E:$E,raw_transmission_costs!$B:$B,$C656,raw_transmission_costs!$A:$A,AK$615)","v":0},{"$f":"SUMIFS(raw_transmission_costs!$G:$G,raw_transmission_costs!$B:$B,$C656,raw_transmission_costs!$A:$A,AL$615)-SUMIFS(raw_transmission_costs!$E:$E,raw_transmission_costs!$B:$B,$C656,raw_transmission_costs!$A:$A,AL$615)","v":0},{"$f":"SUMIFS(raw_transmission_costs!$G:$G,raw_transmission_costs!$B:$B,$C656,raw_transmission_costs!$A:$A,AM$615)-SUMIFS(raw_transmission_costs!$E:$E,raw_transmission_costs!$B:$B,$C656,raw_transmission_costs!$A:$A,AM$615)","v":0},{"$f":"SUMIFS(raw_transmission_costs!$G:$G,raw_transmission_costs!$B:$B,$C656,raw_transmission_costs!$A:$A,AN$615)-SUMIFS(raw_transmission_costs!$E:$E,raw_transmission_costs!$B:$B,$C656,raw_transmission_costs!$A:$A,AN$615)","v":0}]
[null,null,"Central_Valley_North_Los_Banos","MW",{"$f":"SUMIFS(raw_transmission_costs!$G:$G,raw_transmission_costs!$B:$B,$C657,raw_transmission_costs!$A:$A,E$615)-SUMIFS(raw_transmission_costs!$E:$E,raw_transmission_costs!$B:$B,$C657,raw_transmission_costs!$A:$A,E$615)","v":0},{"$f":"SUMIFS(raw_transmission_costs!$G:$G,raw_transmission_costs!$B:$B,$C657,raw_transmission_costs!$A:$A,F$615)-SUMIFS(raw_transmission_costs!$E:$E,raw_transmission_costs!$B:$B,$C657,raw_transmission_costs!$A:$A,F$615)","v":0},{"$f":"SUMIFS(raw_transmission_costs!$G:$G,raw_transmission_costs!$B:$B,$C657,raw_transmission_costs!$A:$A,G$615)-SUMIFS(raw_transmission_costs!$E:$E,raw_transmission_costs!$B:$B,$C657,raw_transmission_costs!$A:$A,G$615)","v":0},{"$f":"SUMIFS(raw_transmission_costs!$G:$G,raw_transmission_costs!$B:$B,$C657,raw_transmission_costs!$A:$A,H$615)-SUMIFS(raw_transmission_costs!$E:$E,raw_transmission_costs!$B:$B,$C657,raw_transmission_costs!$A:$A,H$615)","v":0},{"$f":"SUMIFS(raw_transmission_costs!$G:$G,raw_transmission_costs!$B:$B,$C657,raw_transmission_costs!$A:$A,I$615)-SUMIFS(raw_transmission_costs!$E:$E,raw_transmission_costs!$B:$B,$C657,raw_transmission_costs!$A:$A,I$615)","v":0},{"$f":"SUMIFS(raw_transmission_costs!$G:$G,raw_transmission_costs!$B:$B,$C657,raw_transmission_costs!$A:$A,J$615)-SUMIFS(raw_transmission_costs!$E:$E,raw_transmission_costs!$B:$B,$C657,raw_transmission_costs!$A:$A,J$615)","v":0},{"$f":"SUMIFS(raw_transmission_costs!$G:$G,raw_transmission_costs!$B:$B,$C657,raw_transmission_costs!$A:$A,K$615)-SUMIFS(raw_transmission_costs!$E:$E,raw_transmission_costs!$B:$B,$C657,raw_transmission_costs!$A:$A,K$615)","v":0},{"$f":"SUMIFS(raw_transmission_costs!$G:$G,raw_transmission_costs!$B:$B,$C657,raw_transmission_costs!$A:$A,L$615)-SUMIFS(raw_transmission_costs!$E:$E,raw_transmission_costs!$B:$B,$C657,raw_transmission_costs!$A:$A,L$615)","v":173},{"$f":"SUMIFS(raw_transmission_costs!$G:$G,raw_transmission_costs!$B:$B,$C657,raw_transmission_costs!$A:$A,M$615)-SUMIFS(raw_transmission_costs!$E:$E,raw_transmission_costs!$B:$B,$C657,raw_transmission_costs!$A:$A,M$615)","v":213.69},{"$f":"SUMIFS(raw_transmission_costs!$G:$G,raw_transmission_costs!$B:$B,$C657,raw_transmission_costs!$A:$A,N$615)-SUMIFS(raw_transmission_costs!$E:$E,raw_transmission_costs!$B:$B,$C657,raw_transmission_costs!$A:$A,N$615)","v":213.69},{"$f":"SUMIFS(raw_transmission_costs!$G:$G,raw_transmission_costs!$B:$B,$C657,raw_transmission_costs!$A:$A,O$615)-SUMIFS(raw_transmission_costs!$E:$E,raw_transmission_costs!$B:$B,$C657,raw_transmission_costs!$A:$A,O$615)","v":0},{"$f":"SUMIFS(raw_transmission_costs!$G:$G,raw_transmission_costs!$B:$B,$C657,raw_transmission_costs!$A:$A,P$615)-SUMIFS(raw_transmission_costs!$E:$E,raw_transmission_costs!$B:$B,$C657,raw_transmission_costs!$A:$A,P$615)","v":790.94},{"$f":"SUMIFS(raw_transmission_costs!$G:$G,raw_transmission_costs!$B:$B,$C657,raw_transmission_costs!$A:$A,Q$615)-SUMIFS(raw_transmission_costs!$E:$E,raw_transmission_costs!$B:$B,$C657,raw_transmission_costs!$A:$A,Q$615)","v":0},{"$f":"SUMIFS(raw_transmission_costs!$G:$G,raw_transmission_costs!$B:$B,$C657,raw_transmission_costs!$A:$A,R$615)-SUMIFS(raw_transmission_costs!$E:$E,raw_transmission_costs!$B:$B,$C657,raw_transmission_costs!$A:$A,R$615)","v":0},{"$f":"SUMIFS(raw_transmission_costs!$G:$G,raw_transmission_costs!$B:$B,$C657,raw_transmission_costs!$A:$A,S$615)-SUMIFS(raw_transmission_costs!$E:$E,raw_transmission_costs!$B:$B,$C657,raw_transmission_costs!$A:$A,S$615)","v":0},{"$f":"SUMIFS(raw_transmission_costs!$G:$G,raw_transmission_costs!$B:$B,$C657,raw_transmission_costs!$A:$A,T$615)-SUMIFS(raw_transmission_costs!$E:$E,raw_transmission_costs!$B:$B,$C657,raw_transmission_costs!$A:$A,T$615)","v":790.94},{"$f":"SUMIFS(raw_transmission_costs!$G:$G,raw_transmission_costs!$B:$B,$C657,raw_transmission_costs!$A:$A,U$615)-SUMIFS(raw_transmission_costs!$E:$E,raw_transmission_costs!$B:$B,$C657,raw_transmission_costs!$A:$A,U$615)","v":0},{"$f":"SUMIFS(raw_transmission_costs!$G:$G,raw_transmission_costs!$B:$B,$C657,raw_transmission_costs!$A:$A,V$615)-SUMIFS(raw_transmission_costs!$E:$E,raw_transmission_costs!$B:$B,$C657,raw_transmission_costs!$A:$A,V$615)","v":0},{"$f":"SUMIFS(raw_transmission_costs!$G:$G,raw_transmission_costs!$B:$B,$C657,raw_transmission_costs!$A:$A,W$615)-SUMIFS(raw_transmission_costs!$E:$E,raw_transmission_costs!$B:$B,$C657,raw_transmission_costs!$A:$A,W$615)","v":0},{"$f":"SUMIFS(raw_transmission_costs!$G:$G,raw_transmission_costs!$B:$B,$C657,raw_transmission_costs!$A:$A,X$615)-SUMIFS(raw_transmission_costs!$E:$E,raw_transmission_costs!$B:$B,$C657,raw_transmission_costs!$A:$A,X$615)","v":0},{"$f":"SUMIFS(raw_transmission_costs!$G:$G,raw_transmission_costs!$B:$B,$C657,raw_transmission_costs!$A:$A,Y$615)-SUMIFS(raw_transmission_costs!$E:$E,raw_transmission_costs!$B:$B,$C657,raw_transmission_costs!$A:$A,Y$615)","v":0},{"$f":"SUMIFS(raw_transmission_costs!$G:$G,raw_transmission_costs!$B:$B,$C657,raw_transmission_costs!$A:$A,Z$615)-SUMIFS(raw_transmission_costs!$E:$E,raw_transmission_costs!$B:$B,$C657,raw_transmission_costs!$A:$A,Z$615)","v":0},{"$f":"SUMIFS(raw_transmission_costs!$G:$G,raw_transmission_costs!$B:$B,$C657,raw_transmission_costs!$A:$A,AA$615)-SUMIFS(raw_transmission_costs!$E:$E,raw_transmission_costs!$B:$B,$C657,raw_transmission_costs!$A:$A,AA$615)","v":0},{"$f":"SUMIFS(raw_transmission_costs!$G:$G,raw_transmission_costs!$B:$B,$C657,raw_transmission_costs!$A:$A,AB$615)-SUMIFS(raw_transmission_costs!$E:$E,raw_transmission_costs!$B:$B,$C657,raw_transmission_costs!$A:$A,AB$615)","v":0},{"$f":"SUMIFS(raw_transmission_costs!$G:$G,raw_transmission_costs!$B:$B,$C657,raw_transmission_costs!$A:$A,AC$615)-SUMIFS(raw_transmission_costs!$E:$E,raw_transmission_costs!$B:$B,$C657,raw_transmission_costs!$A:$A,AC$615)","v":0},{"$f":"SUMIFS(raw_transmission_costs!$G:$G,raw_transmission_costs!$B:$B,$C657,raw_transmission_costs!$A:$A,AD$615)-SUMIFS(raw_transmission_costs!$E:$E,raw_transmission_costs!$B:$B,$C657,raw_transmission_costs!$A:$A,AD$615)","v":0},{"$f":"SUMIFS(raw_transmission_costs!$G:$G,raw_transmission_costs!$B:$B,$C657,raw_transmission_costs!$A:$A,AE$615)-SUMIFS(raw_transmission_costs!$E:$E,raw_transmission_costs!$B:$B,$C657,raw_transmission_costs!$A:$A,AE$615)","v":0},{"$f":"SUMIFS(raw_transmission_costs!$G:$G,raw_transmission_costs!$B:$B,$C657,raw_transmission_costs!$A:$A,AF$615)-SUMIFS(raw_transmission_costs!$E:$E,raw_transmission_costs!$B:$B,$C657,raw_transmission_costs!$A:$A,AF$615)","v":0},{"$f":"SUMIFS(raw_transmission_costs!$G:$G,raw_transmission_costs!$B:$B,$C657,raw_transmission_costs!$A:$A,AG$615)-SUMIFS(raw_transmission_costs!$E:$E,raw_transmission_costs!$B:$B,$C657,raw_transmission_costs!$A:$A,AG$615)","v":0},{"$f":"SUMIFS(raw_transmission_costs!$G:$G,raw_transmission_costs!$B:$B,$C657,raw_transmission_costs!$A:$A,AH$615)-SUMIFS(raw_transmission_costs!$E:$E,raw_transmission_costs!$B:$B,$C657,raw_transmission_costs!$A:$A,AH$615)","v":0},{"$f":"SUMIFS(raw_transmission_costs!$G:$G,raw_transmission_costs!$B:$B,$C657,raw_transmission_costs!$A:$A,AI$615)-SUMIFS(raw_transmission_costs!$E:$E,raw_transmission_costs!$B:$B,$C657,raw_transmission_costs!$A:$A,AI$615)","v":790.95000000000437},{"$f":"SUMIFS(raw_transmission_costs!$G:$G,raw_transmission_costs!$B:$B,$C657,raw_transmission_costs!$A:$A,AJ$615)-SUMIFS(raw_transmission_costs!$E:$E,raw_transmission_costs!$B:$B,$C657,raw_transmission_costs!$A:$A,AJ$615)","v":0},{"$f":"SUMIFS(raw_transmission_costs!$G:$G,raw_transmission_costs!$B:$B,$C657,raw_transmission_costs!$A:$A,AK$615)-SUMIFS(raw_transmission_costs!$E:$E,raw_transmission_costs!$B:$B,$C657,raw_transmission_costs!$A:$A,AK$615)","v":0},{"$f":"SUMIFS(raw_transmission_costs!$G:$G,raw_transmission_costs!$B:$B,$C657,raw_transmission_costs!$A:$A,AL$615)-SUMIFS(raw_transmission_costs!$E:$E,raw_transmission_costs!$B:$B,$C657,raw_transmission_costs!$A:$A,AL$615)","v":0},{"$f":"SUMIFS(raw_transmission_costs!$G:$G,raw_transmission_costs!$B:$B,$C657,raw_transmission_costs!$A:$A,AM$615)-SUMIFS(raw_transmission_costs!$E:$E,raw_transmission_costs!$B:$B,$C657,raw_transmission_costs!$A:$A,AM$615)","v":0},{"$f":"SUMIFS(raw_transmission_costs!$G:$G,raw_transmission_costs!$B:$B,$C657,raw_transmission_costs!$A:$A,AN$615)-SUMIFS(raw_transmission_costs!$E:$E,raw_transmission_costs!$B:$B,$C657,raw_transmission_costs!$A:$A,AN$615)","v":0}]
[null,null,"SPGE","MW",{"$f":"SUMIFS(raw_transmission_costs!$G:$G,raw_transmission_costs!$B:$B,$C658,raw_transmission_costs!$A:$A,E$615)-SUMIFS(raw_transmission_costs!$E:$E,raw_transmission_costs!$B:$B,$C658,raw_transmission_costs!$A:$A,E$615)","v":0},{"$f":"SUMIFS(raw_transmission_costs!$G:$G,raw_transmission_costs!$B:$B,$C658,raw_transmission_costs!$A:$A,F$615)-SUMIFS(raw_transmission_costs!$E:$E,raw_transmission_costs!$B:$B,$C658,raw_transmission_costs!$A:$A,F$615)","v":0},{"$f":"SUMIFS(raw_transmission_costs!$G:$G,raw_transmission_costs!$B:$B,$C658,raw_transmission_costs!$A:$A,G$615)-SUMIFS(raw_transmission_costs!$E:$E,raw_transmission_costs!$B:$B,$C658,raw_transmission_costs!$A:$A,G$615)","v":0},{"$f":"SUMIFS(raw_transmission_costs!$G:$G,raw_transmission_costs!$B:$B,$C658,raw_transmission_costs!$A:$A,H$615)-SUMIFS(raw_transmission_costs!$E:$E,raw_transmission_costs!$B:$B,$C658,raw_transmission_costs!$A:$A,H$615)","v":0},{"$f":"SUMIFS(raw_transmission_costs!$G:$G,raw_transmission_costs!$B:$B,$C658,raw_transmission_costs!$A:$A,I$615)-SUMIFS(raw_transmission_costs!$E:$E,raw_transmission_costs!$B:$B,$C658,raw_transmission_costs!$A:$A,I$615)","v":0},{"$f":"SUMIFS(raw_transmission_costs!$G:$G,raw_transmission_costs!$B:$B,$C658,raw_transmission_costs!$A:$A,J$615)-SUMIFS(raw_transmission_costs!$E:$E,raw_transmission_costs!$B:$B,$C658,raw_transmission_costs!$A:$A,J$615)","v":0},{"$f":"SUMIFS(raw_transmission_costs!$G:$G,raw_transmission_costs!$B:$B,$C658,raw_transmission_costs!$A:$A,K$615)-SUMIFS(raw_transmission_costs!$E:$E,raw_transmission_costs!$B:$B,$C658,raw_transmission_costs!$A:$A,K$615)","v":0},{"$f":"SUMIFS(raw_transmission_costs!$G:$G,raw_transmission_costs!$B:$B,$C658,raw_transmission_costs!$A:$A,L$615)-SUMIFS(raw_transmission_costs!$E:$E,raw_transmission_costs!$B:$B,$C658,raw_transmission_costs!$A:$A,L$615)","v":233},{"$f":"SUMIFS(raw_transmission_costs!$G:$G,raw_transmission_costs!$B:$B,$C658,raw_transmission_costs!$A:$A,M$615)-SUMIFS(raw_transmission_costs!$E:$E,raw_transmission_costs!$B:$B,$C658,raw_transmission_costs!$A:$A,M$615)","v":674.94},{"$f":"SUMIFS(raw_transmission_costs!$G:$G,raw_transmission_costs!$B:$B,$C658,raw_transmission_costs!$A:$A,N$615)-SUMIFS(raw_transmission_costs!$E:$E,raw_transmission_costs!$B:$B,$C658,raw_transmission_costs!$A:$A,N$615)","v":674.94},{"$f":"SUMIFS(raw_transmission_costs!$G:$G,raw_transmission_costs!$B:$B,$C658,raw_transmission_costs!$A:$A,O$615)-SUMIFS(raw_transmission_costs!$E:$E,raw_transmission_costs!$B:$B,$C658,raw_transmission_costs!$A:$A,O$615)","v":0},{"$f":"SUMIFS(raw_transmission_costs!$G:$G,raw_transmission_costs!$B:$B,$C658,raw_transmission_costs!$A:$A,P$615)-SUMIFS(raw_transmission_costs!$E:$E,raw_transmission_costs!$B:$B,$C658,raw_transmission_costs!$A:$A,P$615)","v":674.94},{"$f":"SUMIFS(raw_transmission_costs!$G:$G,raw_transmission_costs!$B:$B,$C658,raw_transmission_costs!$A:$A,Q$615)-SUMIFS(raw_transmission_costs!$E:$E,raw_transmission_costs!$B:$B,$C658,raw_transmission_costs!$A:$A,Q$615)","v":0},{"$f":"SUMIFS(raw_transmission_costs!$G:$G,raw_transmission_costs!$B:$B,$C658,raw_transmission_costs!$A:$A,R$615)-SUMIFS(raw_transmission_costs!$E:$E,raw_transmission_costs!$B:$B,$C658,raw_transmission_costs!$A:$A,R$615)","v":0},{"$f":"SUMIFS(raw_transmission_costs!$G:$G,raw_transmission_costs!$B:$B,$C658,raw_transmission_costs!$A:$A,S$615)-SUMIFS(raw_transmission_costs!$E:$E,raw_transmission_costs!$B:$B,$C658,raw_transmission_costs!$A:$A,S$615)","v":0},{"$f":"SUMIFS(raw_transmission_costs!$G:$G,raw_transmission_costs!$B:$B,$C658,raw_transmission_costs!$A:$A,T$615)-SUMIFS(raw_transmission_costs!$E:$E,raw_transmission_costs!$B:$B,$C658,raw_transmission_costs!$A:$A,T$615)","v":674.94000000000051},{"$f":"SUMIFS(raw_transmission_costs!$G:$G,raw_transmission_costs!$B:$B,$C658,raw_transmission_costs!$A:$A,U$615)-SUMIFS(raw_transmission_costs!$E:$E,raw_transmission_costs!$B:$B,$C658,raw_transmission_costs!$A:$A,U$615)","v":0},{"$f":"SUMIFS(raw_transmission_costs!$G:$G,raw_transmission_costs!$B:$B,$C658,raw_transmission_costs!$A:$A,V$615)-SUMIFS(raw_transmission_costs!$E:$E,raw_transmission_costs!$B:$B,$C658,raw_transmission_costs!$A:$A,V$615)","v":0},{"$f":"SUMIFS(raw_transmission_costs!$G:$G,raw_transmission_costs!$B:$B,$C658,raw_transmission_costs!$A:$A,W$615)-SUMIFS(raw_transmission_costs!$E:$E,raw_transmission_costs!$B:$B,$C658,raw_transmission_costs!$A:$A,W$615)","v":0},{"$f":"SUMIFS(raw_transmission_costs!$G:$G,raw_transmission_costs!$B:$B,$C658,raw_transmission_costs!$A:$A,X$615)-SUMIFS(raw_transmission_costs!$E:$E,raw_transmission_costs!$B:$B,$C658,raw_transmission_costs!$A:$A,X$615)","v":0},{"$f":"SUMIFS(raw_transmission_costs!$G:$G,raw_transmission_costs!$B:$B,$C658,raw_transmission_costs!$A:$A,Y$615)-SUMIFS(raw_transmission_costs!$E:$E,raw_transmission_costs!$B:$B,$C658,raw_transmission_costs!$A:$A,Y$615)","v":0},{"$f":"SUMIFS(raw_transmission_costs!$G:$G,raw_transmission_costs!$B:$B,$C658,raw_transmission_costs!$A:$A,Z$615)-SUMIFS(raw_transmission_costs!$E:$E,raw_transmission_costs!$B:$B,$C658,raw_transmission_costs!$A:$A,Z$615)","v":0},{"$f":"SUMIFS(raw_transmission_costs!$G:$G,raw_transmission_costs!$B:$B,$C658,raw_transmission_costs!$A:$A,AA$615)-SUMIFS(raw_transmission_costs!$E:$E,raw_transmission_costs!$B:$B,$C658,raw_transmission_costs!$A:$A,AA$615)","v":0},{"$f":"SUMIFS(raw_transmission_costs!$G:$G,raw_transmission_costs!$B:$B,$C658,raw_transmission_costs!$A:$A,AB$615)-SUMIFS(raw_transmission_costs!$E:$E,raw_transmission_costs!$B:$B,$C658,raw_transmission_costs!$A:$A,AB$615)","v":0},{"$f":"SUMIFS(raw_transmission_costs!$G:$G,raw_transmission_costs!$B:$B,$C658,raw_transmission_costs!$A:$A,AC$615)-SUMIFS(raw_transmission_costs!$E:$E,raw_transmission_costs!$B:$B,$C658,raw_transmission_costs!$A:$A,AC$615)","v":0},{"$f":"SUMIFS(raw_transmission_costs!$G:$G,raw_transmission_costs!$B:$B,$C658,raw_transmission_costs!$A:$A,AD$615)-SUMIFS(raw_transmission_costs!$E:$E,raw_transmission_costs!$B:$B,$C658,raw_transmission_costs!$A:$A,AD$615)","v":0},{"$f":"SUMIFS(raw_transmission_costs!$G:$G,raw_transmission_costs!$B:$B,$C658,raw_transmission_costs!$A:$A,AE$615)-SUMIFS(raw_transmission_costs!$E:$E,raw_transmission_costs!$B:$B,$C658,raw_transmission_costs!$A:$A,AE$615)","v":0},{"$f":"SUMIFS(raw_transmission_costs!$G:$G,raw_transmission_costs!$B:$B,$C658,raw_transmission_costs!$A:$A,AF$615)-SUMIFS(raw_transmission_costs!$E:$E,raw_transmission_costs!$B:$B,$C658,raw_transmission_costs!$A:$A,AF$615)","v":0},{"$f":"SUMIFS(raw_transmission_costs!$G:$G,raw_transmission_costs!$B:$B,$C658,raw_transmission_costs!$A:$A,AG$615)-SUMIFS(raw_transmission_costs!$E:$E,raw_transmission_costs!$B:$B,$C658,raw_transmission_costs!$A:$A,AG$615)","v":0},{"$f":"SUMIFS(raw_transmission_costs!$G:$G,raw_transmission_costs!$B:$B,$C658,raw_transmission_costs!$A:$A,AH$615)-SUMIFS(raw_transmission_costs!$E:$E,raw_transmission_costs!$B:$B,$C658,raw_transmission_costs!$A:$A,AH$615)","v":0},{"$f":"SUMIFS(raw_transmission_costs!$G:$G,raw_transmission_costs!$B:$B,$C658,raw_transmission_costs!$A:$A,AI$615)-SUMIFS(raw_transmission_costs!$E:$E,raw_transmission_costs!$B:$B,$C658,raw_transmission_costs!$A:$A,AI$615)","v":674.94999999999709},{"$f":"SUMIFS(raw_transmission_costs!$G:$G,raw_transmission_costs!$B:$B,$C658,raw_transmission_costs!$A:$A,AJ$615)-SUMIFS(raw_transmission_costs!$E:$E,raw_transmission_costs!$B:$B,$C658,raw_transmission_costs!$A:$A,AJ$615)","v":0},{"$f":"SUMIFS(raw_transmission_costs!$G:$G,raw_transmission_costs!$B:$B,$C658,raw_transmission_costs!$A:$A,AK$615)-SUMIFS(raw_transmission_costs!$E:$E,raw_transmission_costs!$B:$B,$C658,raw_transmission_costs!$A:$A,AK$615)","v":0},{"$f":"SUMIFS(raw_transmission_costs!$G:$G,raw_transmission_costs!$B:$B,$C658,raw_transmission_costs!$A:$A,AL$615)-SUMIFS(raw_transmission_costs!$E:$E,raw_transmission_costs!$B:$B,$C658,raw_transmission_costs!$A:$A,AL$615)","v":0},{"$f":"SUMIFS(raw_transmission_costs!$G:$G,raw_transmission_costs!$B:$B,$C658,raw_transmission_costs!$A:$A,AM$615)-SUMIFS(raw_transmission_costs!$E:$E,raw_transmission_costs!$B:$B,$C658,raw_transmission_costs!$A:$A,AM$615)","v":0},{"$f":"SUMIFS(raw_transmission_costs!$G:$G,raw_transmission_costs!$B:$B,$C658,raw_transmission_costs!$A:$A,AN$615)-SUMIFS(raw_transmission_costs!$E:$E,raw_transmission_costs!$B:$B,$C658,raw_transmission_costs!$A:$A,AN$615)","v":0}]
[null,null,"Tehachapi","MW",{"$f":"SUMIFS(raw_transmission_costs!$G:$G,raw_transmission_costs!$B:$B,$C659,raw_transmission_costs!$A:$A,E$615)-SUMIFS(raw_transmission_costs!$E:$E,raw_transmission_costs!$B:$B,$C659,raw_transmission_costs!$A:$A,E$615)","v":0},{"$f":"SUMIFS(raw_transmission_costs!$G:$G,raw_transmission_costs!$B:$B,$C659,raw_transmission_costs!$A:$A,F$615)-SUMIFS(raw_transmission_costs!$E:$E,raw_transmission_costs!$B:$B,$C659,raw_transmission_costs!$A:$A,F$615)","v":0},{"$f":"SUMIFS(raw_transmission_costs!$G:$G,raw_transmission_costs!$B:$B,$C659,raw_transmission_costs!$A:$A,G$615)-SUMIFS(raw_transmission_costs!$E:$E,raw_transmission_costs!$B:$B,$C659,raw_transmission_costs!$A:$A,G$615)","v":0},{"$f":"SUMIFS(raw_transmission_costs!$G:$G,raw_transmission_costs!$B:$B,$C659,raw_transmission_costs!$A:$A,H$615)-SUMIFS(raw_transmission_costs!$E:$E,raw_transmission_costs!$B:$B,$C659,raw_transmission_costs!$A:$A,H$615)","v":0},{"$f":"SUMIFS(raw_transmission_costs!$G:$G,raw_transmission_costs!$B:$B,$C659,raw_transmission_costs!$A:$A,I$615)-SUMIFS(raw_transmission_costs!$E:$E,raw_transmission_costs!$B:$B,$C659,raw_transmission_costs!$A:$A,I$615)","v":0},{"$f":"SUMIFS(raw_transmission_costs!$G:$G,raw_transmission_costs!$B:$B,$C659,raw_transmission_costs!$A:$A,J$615)-SUMIFS(raw_transmission_costs!$E:$E,raw_transmission_costs!$B:$B,$C659,raw_transmission_costs!$A:$A,J$615)","v":1437},{"$f":"SUMIFS(raw_transmission_costs!$G:$G,raw_transmission_costs!$B:$B,$C659,raw_transmission_costs!$A:$A,K$615)-SUMIFS(raw_transmission_costs!$E:$E,raw_transmission_costs!$B:$B,$C659,raw_transmission_costs!$A:$A,K$615)","v":3402},{"$f":"SUMIFS(raw_transmission_costs!$G:$G,raw_transmission_costs!$B:$B,$C659,raw_transmission_costs!$A:$A,L$615)-SUMIFS(raw_transmission_costs!$E:$E,raw_transmission_costs!$B:$B,$C659,raw_transmission_costs!$A:$A,L$615)","v":3677},{"$f":"SUMIFS(raw_transmission_costs!$G:$G,raw_transmission_costs!$B:$B,$C659,raw_transmission_costs!$A:$A,M$615)-SUMIFS(raw_transmission_costs!$E:$E,raw_transmission_costs!$B:$B,$C659,raw_transmission_costs!$A:$A,M$615)","v":3677},{"$f":"SUMIFS(raw_transmission_costs!$G:$G,raw_transmission_costs!$B:$B,$C659,raw_transmission_costs!$A:$A,N$615)-SUMIFS(raw_transmission_costs!$E:$E,raw_transmission_costs!$B:$B,$C659,raw_transmission_costs!$A:$A,N$615)","v":3677},{"$f":"SUMIFS(raw_transmission_costs!$G:$G,raw_transmission_costs!$B:$B,$C659,raw_transmission_costs!$A:$A,O$615)-SUMIFS(raw_transmission_costs!$E:$E,raw_transmission_costs!$B:$B,$C659,raw_transmission_costs!$A:$A,O$615)","v":0},{"$f":"SUMIFS(raw_transmission_costs!$G:$G,raw_transmission_costs!$B:$B,$C659,raw_transmission_costs!$A:$A,P$615)-SUMIFS(raw_transmission_costs!$E:$E,raw_transmission_costs!$B:$B,$C659,raw_transmission_costs!$A:$A,P$615)","v":3677},{"$f":"SUMIFS(raw_transmission_costs!$G:$G,raw_transmission_costs!$B:$B,$C659,raw_transmission_costs!$A:$A,Q$615)-SUMIFS(raw_transmission_costs!$E:$E,raw_transmission_costs!$B:$B,$C659,raw_transmission_costs!$A:$A,Q$615)","v":0},{"$f":"SUMIFS(raw_transmission_costs!$G:$G,raw_transmission_costs!$B:$B,$C659,raw_transmission_costs!$A:$A,R$615)-SUMIFS(raw_transmission_costs!$E:$E,raw_transmission_costs!$B:$B,$C659,raw_transmission_costs!$A:$A,R$615)","v":0},{"$f":"SUMIFS(raw_transmission_costs!$G:$G,raw_transmission_costs!$B:$B,$C659,raw_transmission_costs!$A:$A,S$615)-SUMIFS(raw_transmission_costs!$E:$E,raw_transmission_costs!$B:$B,$C659,raw_transmission_costs!$A:$A,S$615)","v":0},{"$f":"SUMIFS(raw_transmission_costs!$G:$G,raw_transmission_costs!$B:$B,$C659,raw_transmission_costs!$A:$A,T$615)-SUMIFS(raw_transmission_costs!$E:$E,raw_transmission_costs!$B:$B,$C659,raw_transmission_costs!$A:$A,T$615)","v":3677},{"$f":"SUMIFS(raw_transmission_costs!$G:$G,raw_transmission_costs!$B:$B,$C659,raw_transmission_costs!$A:$A,U$615)-SUMIFS(raw_transmission_costs!$E:$E,raw_transmission_costs!$B:$B,$C659,raw_transmission_costs!$A:$A,U$615)","v":0},{"$f":"SUMIFS(raw_transmission_costs!$G:$G,raw_transmission_costs!$B:$B,$C659,raw_transmission_costs!$A:$A,V$615)-SUMIFS(raw_transmission_costs!$E:$E,raw_transmission_costs!$B:$B,$C659,raw_transmission_costs!$A:$A,V$615)","v":0},{"$f":"SUMIFS(raw_transmission_costs!$G:$G,raw_transmission_costs!$B:$B,$C659,raw_transmission_costs!$A:$A,W$615)-SUMIFS(raw_transmission_costs!$E:$E,raw_transmission_costs!$B:$B,$C659,raw_transmission_costs!$A:$A,W$615)","v":0},{"$f":"SUMIFS(raw_transmission_costs!$G:$G,raw_transmission_costs!$B:$B,$C659,raw_transmission_costs!$A:$A,X$615)-SUMIFS(raw_transmission_costs!$E:$E,raw_transmission_costs!$B:$B,$C659,raw_transmission_costs!$A:$A,X$615)","v":0},{"$f":"SUMIFS(raw_transmission_costs!$G:$G,raw_transmission_costs!$B:$B,$C659,raw_transmission_costs!$A:$A,Y$615)-SUMIFS(raw_transmission_costs!$E:$E,raw_transmission_costs!$B:$B,$C659,raw_transmission_costs!$A:$A,Y$615)","v":0},{"$f":"SUMIFS(raw_transmission_costs!$G:$G,raw_transmission_costs!$B:$B,$C659,raw_transmission_costs!$A:$A,Z$615)-SUMIFS(raw_transmission_costs!$E:$E,raw_transmission_costs!$B:$B,$C659,raw_transmission_costs!$A:$A,Z$615)","v":0},{"$f":"SUMIFS(raw_transmission_costs!$G:$G,raw_transmission_costs!$B:$B,$C659,raw_transmission_costs!$A:$A,AA$615)-SUMIFS(raw_transmission_costs!$E:$E,raw_transmission_costs!$B:$B,$C659,raw_transmission_costs!$A:$A,AA$615)","v":0},{"$f":"SUMIFS(raw_transmission_costs!$G:$G,raw_transmission_costs!$B:$B,$C659,raw_transmission_costs!$A:$A,AB$615)-SUMIFS(raw_transmission_costs!$E:$E,raw_transmission_costs!$B:$B,$C659,raw_transmission_costs!$A:$A,AB$615)","v":0},{"$f":"SUMIFS(raw_transmission_costs!$G:$G,raw_transmission_costs!$B:$B,$C659,raw_transmission_costs!$A:$A,AC$615)-SUMIFS(raw_transmission_costs!$E:$E,raw_transmission_costs!$B:$B,$C659,raw_transmission_costs!$A:$A,AC$615)","v":0},{"$f":"SUMIFS(raw_transmission_costs!$G:$G,raw_transmission_costs!$B:$B,$C659,raw_transmission_costs!$A:$A,AD$615)-SUMIFS(raw_transmission_costs!$E:$E,raw_transmission_costs!$B:$B,$C659,raw_transmission_costs!$A:$A,AD$615)","v":0},{"$f":"SUMIFS(raw_transmission_costs!$G:$G,raw_transmission_costs!$B:$B,$C659,raw_transmission_costs!$A:$A,AE$615)-SUMIFS(raw_transmission_costs!$E:$E,raw_transmission_costs!$B:$B,$C659,raw_transmission_costs!$A:$A,AE$615)","v":0},{"$f":"SUMIFS(raw_transmission_costs!$G:$G,raw_transmission_costs!$B:$B,$C659,raw_transmission_costs!$A:$A,AF$615)-SUMIFS(raw_transmission_costs!$E:$E,raw_transmission_costs!$B:$B,$C659,raw_transmission_costs!$A:$A,AF$615)","v":0},{"$f":"SUMIFS(raw_transmission_costs!$G:$G,raw_transmission_costs!$B:$B,$C659,raw_transmission_costs!$A:$A,AG$615)-SUMIFS(raw_transmission_costs!$E:$E,raw_transmission_costs!$B:$B,$C659,raw_transmission_costs!$A:$A,AG$615)","v":0},{"$f":"SUMIFS(raw_transmission_costs!$G:$G,raw_transmission_costs!$B:$B,$C659,raw_transmission_costs!$A:$A,AH$615)-SUMIFS(raw_transmission_costs!$E:$E,raw_transmission_costs!$B:$B,$C659,raw_transmission_costs!$A:$A,AH$615)","v":0},{"$f":"SUMIFS(raw_transmission_costs!$G:$G,raw_transmission_costs!$B:$B,$C659,raw_transmission_costs!$A:$A,AI$615)-SUMIFS(raw_transmission_costs!$E:$E,raw_transmission_costs!$B:$B,$C659,raw_transmission_costs!$A:$A,AI$615)","v":3677},{"$f":"SUMIFS(raw_transmission_costs!$G:$G,raw_transmission_costs!$B:$B,$C659,raw_transmission_costs!$A:$A,AJ$615)-SUMIFS(raw_transmission_costs!$E:$E,raw_transmission_costs!$B:$B,$C659,raw_transmission_costs!$A:$A,AJ$615)","v":0},{"$f":"SUMIFS(raw_transmission_costs!$G:$G,raw_transmission_costs!$B:$B,$C659,raw_transmission_costs!$A:$A,AK$615)-SUMIFS(raw_transmission_costs!$E:$E,raw_transmission_costs!$B:$B,$C659,raw_transmission_costs!$A:$A,AK$615)","v":0},{"$f":"SUMIFS(raw_transmission_costs!$G:$G,raw_transmission_costs!$B:$B,$C659,raw_transmission_costs!$A:$A,AL$615)-SUMIFS(raw_transmission_costs!$E:$E,raw_transmission_costs!$B:$B,$C659,raw_transmission_costs!$A:$A,AL$615)","v":0},{"$f":"SUMIFS(raw_transmission_costs!$G:$G,raw_transmission_costs!$B:$B,$C659,raw_transmission_costs!$A:$A,AM$615)-SUMIFS(raw_transmission_costs!$E:$E,raw_transmission_costs!$B:$B,$C659,raw_transmission_costs!$A:$A,AM$615)","v":0},{"$f":"SUMIFS(raw_transmission_costs!$G:$G,raw_transmission_costs!$B:$B,$C659,raw_transmission_costs!$A:$A,AN$615)-SUMIFS(raw_transmission_costs!$E:$E,raw_transmission_costs!$B:$B,$C659,raw_transmission_costs!$A:$A,AN$615)","v":0}]
[null,null,"Northern_California_Ex","MW",{"$f":"SUMIFS(raw_transmission_costs!$G:$G,raw_transmission_costs!$B:$B,$C660,raw_transmission_costs!$A:$A,E$615)-SUMIFS(raw_transmission_costs!$E:$E,raw_transmission_costs!$B:$B,$C660,raw_transmission_costs!$A:$A,E$615)","v":0},{"$f":"SUMIFS(raw_transmission_costs!$G:$G,raw_transmission_costs!$B:$B,$C660,raw_transmission_costs!$A:$A,F$615)-SUMIFS(raw_transmission_costs!$E:$E,raw_transmission_costs!$B:$B,$C660,raw_transmission_costs!$A:$A,F$615)","v":0},{"$f":"SUMIFS(raw_transmission_costs!$G:$G,raw_transmission_costs!$B:$B,$C660,raw_transmission_costs!$A:$A,G$615)-SUMIFS(raw_transmission_costs!$E:$E,raw_transmission_costs!$B:$B,$C660,raw_transmission_costs!$A:$A,G$615)","v":0},{"$f":"SUMIFS(raw_transmission_costs!$G:$G,raw_transmission_costs!$B:$B,$C660,raw_transmission_costs!$A:$A,H$615)-SUMIFS(raw_transmission_costs!$E:$E,raw_transmission_costs!$B:$B,$C660,raw_transmission_costs!$A:$A,H$615)","v":0},{"$f":"SUMIFS(raw_transmission_costs!$G:$G,raw_transmission_costs!$B:$B,$C660,raw_transmission_costs!$A:$A,I$615)-SUMIFS(raw_transmission_costs!$E:$E,raw_transmission_costs!$B:$B,$C660,raw_transmission_costs!$A:$A,I$615)","v":0},{"$f":"SUMIFS(raw_transmission_costs!$G:$G,raw_transmission_costs!$B:$B,$C660,raw_transmission_costs!$A:$A,J$615)-SUMIFS(raw_transmission_costs!$E:$E,raw_transmission_costs!$B:$B,$C660,raw_transmission_costs!$A:$A,J$615)","v":0},{"$f":"SUMIFS(raw_transmission_costs!$G:$G,raw_transmission_costs!$B:$B,$C660,raw_transmission_costs!$A:$A,K$615)-SUMIFS(raw_transmission_costs!$E:$E,raw_transmission_costs!$B:$B,$C660,raw_transmission_costs!$A:$A,K$615)","v":0},{"$f":"SUMIFS(raw_transmission_costs!$G:$G,raw_transmission_costs!$B:$B,$C660,raw_transmission_costs!$A:$A,L$615)-SUMIFS(raw_transmission_costs!$E:$E,raw_transmission_costs!$B:$B,$C660,raw_transmission_costs!$A:$A,L$615)","v":0},{"$f":"SUMIFS(raw_transmission_costs!$G:$G,raw_transmission_costs!$B:$B,$C660,raw_transmission_costs!$A:$A,M$615)-SUMIFS(raw_transmission_costs!$E:$E,raw_transmission_costs!$B:$B,$C660,raw_transmission_costs!$A:$A,M$615)","v":0},{"$f":"SUMIFS(raw_transmission_costs!$G:$G,raw_transmission_costs!$B:$B,$C660,raw_transmission_costs!$A:$A,N$615)-SUMIFS(raw_transmission_costs!$E:$E,raw_transmission_costs!$B:$B,$C660,raw_transmission_costs!$A:$A,N$615)","v":0},{"$f":"SUMIFS(raw_transmission_costs!$G:$G,raw_transmission_costs!$B:$B,$C660,raw_transmission_costs!$A:$A,O$615)-SUMIFS(raw_transmission_costs!$E:$E,raw_transmission_costs!$B:$B,$C660,raw_transmission_costs!$A:$A,O$615)","v":0},{"$f":"SUMIFS(raw_transmission_costs!$G:$G,raw_transmission_costs!$B:$B,$C660,raw_transmission_costs!$A:$A,P$615)-SUMIFS(raw_transmission_costs!$E:$E,raw_transmission_costs!$B:$B,$C660,raw_transmission_costs!$A:$A,P$615)","v":0},{"$f":"SUMIFS(raw_transmission_costs!$G:$G,raw_transmission_costs!$B:$B,$C660,raw_transmission_costs!$A:$A,Q$615)-SUMIFS(raw_transmission_costs!$E:$E,raw_transmission_costs!$B:$B,$C660,raw_transmission_costs!$A:$A,Q$615)","v":0},{"$f":"SUMIFS(raw_transmission_costs!$G:$G,raw_transmission_costs!$B:$B,$C660,raw_transmission_costs!$A:$A,R$615)-SUMIFS(raw_transmission_costs!$E:$E,raw_transmission_costs!$B:$B,$C660,raw_transmission_costs!$A:$A,R$615)","v":0},{"$f":"SUMIFS(raw_transmission_costs!$G:$G,raw_transmission_costs!$B:$B,$C660,raw_transmission_costs!$A:$A,S$615)-SUMIFS(raw_transmission_costs!$E:$E,raw_transmission_costs!$B:$B,$C660,raw_transmission_costs!$A:$A,S$615)","v":0},{"$f":"SUMIFS(raw_transmission_costs!$G:$G,raw_transmission_costs!$B:$B,$C660,raw_transmission_costs!$A:$A,T$615)-SUMIFS(raw_transmission_costs!$E:$E,raw_transmission_costs!$B:$B,$C660,raw_transmission_costs!$A:$A,T$615)","v":396.9},{"$f":"SUMIFS(raw_transmission_costs!$G:$G,raw_transmission_costs!$B:$B,$C660,raw_transmission_costs!$A:$A,U$615)-SUMIFS(raw_transmission_costs!$E:$E,raw_transmission_costs!$B:$B,$C660,raw_transmission_costs!$A:$A,U$615)","v":0},{"$f":"SUMIFS(raw_transmission_costs!$G:$G,raw_transmission_costs!$B:$B,$C660,raw_transmission_costs!$A:$A,V$615)-SUMIFS(raw_transmission_costs!$E:$E,raw_transmission_costs!$B:$B,$C660,raw_transmission_costs!$A:$A,V$615)","v":0},{"$f":"SUMIFS(raw_transmission_costs!$G:$G,raw_transmission_costs!$B:$B,$C660,raw_transmission_costs!$A:$A,W$615)-SUMIFS(raw_transmission_costs!$E:$E,raw_transmission_costs!$B:$B,$C660,raw_transmission_costs!$A:$A,W$615)","v":0},{"$f":"SUMIFS(raw_transmission_costs!$G:$G,raw_transmission_costs!$B:$B,$C660,raw_transmission_costs!$A:$A,X$615)-SUMIFS(raw_transmission_costs!$E:$E,raw_transmission_costs!$B:$B,$C660,raw_transmission_costs!$A:$A,X$615)","v":0},{"$f":"SUMIFS(raw_transmission_costs!$G:$G,raw_transmission_costs!$B:$B,$C660,raw_transmission_costs!$A:$A,Y$615)-SUMIFS(raw_transmission_costs!$E:$E,raw_transmission_costs!$B:$B,$C660,raw_transmission_costs!$A:$A,Y$615)","v":0},{"$f":"SUMIFS(raw_transmission_costs!$G:$G,raw_transmission_costs!$B:$B,$C660,raw_transmission_costs!$A:$A,Z$615)-SUMIFS(raw_transmission_costs!$E:$E,raw_transmission_costs!$B:$B,$C660,raw_transmission_costs!$A:$A,Z$615)","v":0},{"$f":"SUMIFS(raw_transmission_costs!$G:$G,raw_transmission_costs!$B:$B,$C660,raw_transmission_costs!$A:$A,AA$615)-SUMIFS(raw_transmission_costs!$E:$E,raw_transmission_costs!$B:$B,$C660,raw_transmission_costs!$A:$A,AA$615)","v":0},{"$f":"SUMIFS(raw_transmission_costs!$G:$G,raw_transmission_costs!$B:$B,$C660,raw_transmission_costs!$A:$A,AB$615)-SUMIFS(raw_transmission_costs!$E:$E,raw_transmission_costs!$B:$B,$C660,raw_transmission_costs!$A:$A,AB$615)","v":0},{"$f":"SUMIFS(raw_transmission_costs!$G:$G,raw_transmission_costs!$B:$B,$C660,raw_transmission_costs!$A:$A,AC$615)-SUMIFS(raw_transmission_costs!$E:$E,raw_transmission_costs!$B:$B,$C660,raw_transmission_costs!$A:$A,AC$615)","v":0},{"$f":"SUMIFS(raw_transmission_costs!$G:$G,raw_transmission_costs!$B:$B,$C660,raw_transmission_costs!$A:$A,AD$615)-SUMIFS(raw_transmission_costs!$E:$E,raw_transmission_costs!$B:$B,$C660,raw_transmission_costs!$A:$A,AD$615)","v":0},{"$f":"SUMIFS(raw_transmission_costs!$G:$G,raw_transmission_costs!$B:$B,$C660,raw_transmission_costs!$A:$A,AE$615)-SUMIFS(raw_transmission_costs!$E:$E,raw_transmission_costs!$B:$B,$C660,raw_transmission_costs!$A:$A,AE$615)","v":0},{"$f":"SUMIFS(raw_transmission_costs!$G:$G,raw_transmission_costs!$B:$B,$C660,raw_transmission_costs!$A:$A,AF$615)-SUMIFS(raw_transmission_costs!$E:$E,raw_transmission_costs!$B:$B,$C660,raw_transmission_costs!$A:$A,AF$615)","v":0},{"$f":"SUMIFS(raw_transmission_costs!$G:$G,raw_transmission_costs!$B:$B,$C660,raw_transmission_costs!$A:$A,AG$615)-SUMIFS(raw_transmission_costs!$E:$E,raw_transmission_costs!$B:$B,$C660,raw_transmission_costs!$A:$A,AG$615)","v":0},{"$f":"SUMIFS(raw_transmission_costs!$G:$G,raw_transmission_costs!$B:$B,$C660,raw_transmission_costs!$A:$A,AH$615)-SUMIFS(raw_transmission_costs!$E:$E,raw_transmission_costs!$B:$B,$C660,raw_transmission_costs!$A:$A,AH$615)","v":0},{"$f":"SUMIFS(raw_transmission_costs!$G:$G,raw_transmission_costs!$B:$B,$C660,raw_transmission_costs!$A:$A,AI$615)-SUMIFS(raw_transmission_costs!$E:$E,raw_transmission_costs!$B:$B,$C660,raw_transmission_costs!$A:$A,AI$615)","v":865.9},{"$f":"SUMIFS(raw_transmission_costs!$G:$G,raw_transmission_costs!$B:$B,$C660,raw_transmission_costs!$A:$A,AJ$615)-SUMIFS(raw_transmission_costs!$E:$E,raw_transmission_costs!$B:$B,$C660,raw_transmission_costs!$A:$A,AJ$615)","v":0},{"$f":"SUMIFS(raw_transmission_costs!$G:$G,raw_transmission_costs!$B:$B,$C660,raw_transmission_costs!$A:$A,AK$615)-SUMIFS(raw_transmission_costs!$E:$E,raw_transmission_costs!$B:$B,$C660,raw_transmission_costs!$A:$A,AK$615)","v":0},{"$f":"SUMIFS(raw_transmission_costs!$G:$G,raw_transmission_costs!$B:$B,$C660,raw_transmission_costs!$A:$A,AL$615)-SUMIFS(raw_transmission_costs!$E:$E,raw_transmission_costs!$B:$B,$C660,raw_transmission_costs!$A:$A,AL$615)","v":0},{"$f":"SUMIFS(raw_transmission_costs!$G:$G,raw_transmission_costs!$B:$B,$C660,raw_transmission_costs!$A:$A,AM$615)-SUMIFS(raw_transmission_costs!$E:$E,raw_transmission_costs!$B:$B,$C660,raw_transmission_costs!$A:$A,AM$615)","v":0},{"$f":"SUMIFS(raw_transmission_costs!$G:$G,raw_transmission_costs!$B:$B,$C660,raw_transmission_costs!$A:$A,AN$615)-SUMIFS(raw_transmission_costs!$E:$E,raw_transmission_costs!$B:$B,$C660,raw_transmission_costs!$A:$A,AN$615)","v":0}]
[null,null,"Westlands_Ex","MW",{"$f":"SUMIFS(raw_transmission_costs!$G:$G,raw_transmission_costs!$B:$B,$C661,raw_transmission_costs!$A:$A,E$615)-SUMIFS(raw_transmission_costs!$E:$E,raw_transmission_costs!$B:$B,$C661,raw_transmission_costs!$A:$A,E$615)","v":0},{"$f":"SUMIFS(raw_transmission_costs!$G:$G,raw_transmission_costs!$B:$B,$C661,raw_transmission_costs!$A:$A,F$615)-SUMIFS(raw_transmission_costs!$E:$E,raw_transmission_costs!$B:$B,$C661,raw_transmission_costs!$A:$A,F$615)","v":0},{"$f":"SUMIFS(raw_transmission_costs!$G:$G,raw_transmission_costs!$B:$B,$C661,raw_transmission_costs!$A:$A,G$615)-SUMIFS(raw_transmission_costs!$E:$E,raw_transmission_costs!$B:$B,$C661,raw_transmission_costs!$A:$A,G$615)","v":0},{"$f":"SUMIFS(raw_transmission_costs!$G:$G,raw_transmission_costs!$B:$B,$C661,raw_transmission_costs!$A:$A,H$615)-SUMIFS(raw_transmission_costs!$E:$E,raw_transmission_costs!$B:$B,$C661,raw_transmission_costs!$A:$A,H$615)","v":0},{"$f":"SUMIFS(raw_transmission_costs!$G:$G,raw_transmission_costs!$B:$B,$C661,raw_transmission_costs!$A:$A,I$615)-SUMIFS(raw_transmission_costs!$E:$E,raw_transmission_costs!$B:$B,$C661,raw_transmission_costs!$A:$A,I$615)","v":0},{"$f":"SUMIFS(raw_transmission_costs!$G:$G,raw_transmission_costs!$B:$B,$C661,raw_transmission_costs!$A:$A,J$615)-SUMIFS(raw_transmission_costs!$E:$E,raw_transmission_costs!$B:$B,$C661,raw_transmission_costs!$A:$A,J$615)","v":0},{"$f":"SUMIFS(raw_transmission_costs!$G:$G,raw_transmission_costs!$B:$B,$C661,raw_transmission_costs!$A:$A,K$615)-SUMIFS(raw_transmission_costs!$E:$E,raw_transmission_costs!$B:$B,$C661,raw_transmission_costs!$A:$A,K$615)","v":0},{"$f":"SUMIFS(raw_transmission_costs!$G:$G,raw_transmission_costs!$B:$B,$C661,raw_transmission_costs!$A:$A,L$615)-SUMIFS(raw_transmission_costs!$E:$E,raw_transmission_costs!$B:$B,$C661,raw_transmission_costs!$A:$A,L$615)","v":0},{"$f":"SUMIFS(raw_transmission_costs!$G:$G,raw_transmission_costs!$B:$B,$C661,raw_transmission_costs!$A:$A,M$615)-SUMIFS(raw_transmission_costs!$E:$E,raw_transmission_costs!$B:$B,$C661,raw_transmission_costs!$A:$A,M$615)","v":1778.57},{"$f":"SUMIFS(raw_transmission_costs!$G:$G,raw_transmission_costs!$B:$B,$C661,raw_transmission_costs!$A:$A,N$615)-SUMIFS(raw_transmission_costs!$E:$E,raw_transmission_costs!$B:$B,$C661,raw_transmission_costs!$A:$A,N$615)","v":1778.57},{"$f":"SUMIFS(raw_transmission_costs!$G:$G,raw_transmission_costs!$B:$B,$C661,raw_transmission_costs!$A:$A,O$615)-SUMIFS(raw_transmission_costs!$E:$E,raw_transmission_costs!$B:$B,$C661,raw_transmission_costs!$A:$A,O$615)","v":0},{"$f":"SUMIFS(raw_transmission_costs!$G:$G,raw_transmission_costs!$B:$B,$C661,raw_transmission_costs!$A:$A,P$615)-SUMIFS(raw_transmission_costs!$E:$E,raw_transmission_costs!$B:$B,$C661,raw_transmission_costs!$A:$A,P$615)","v":1778.57},{"$f":"SUMIFS(raw_transmission_costs!$G:$G,raw_transmission_costs!$B:$B,$C661,raw_transmission_costs!$A:$A,Q$615)-SUMIFS(raw_transmission_costs!$E:$E,raw_transmission_costs!$B:$B,$C661,raw_transmission_costs!$A:$A,Q$615)","v":0},{"$f":"SUMIFS(raw_transmission_costs!$G:$G,raw_transmission_costs!$B:$B,$C661,raw_transmission_costs!$A:$A,R$615)-SUMIFS(raw_transmission_costs!$E:$E,raw_transmission_costs!$B:$B,$C661,raw_transmission_costs!$A:$A,R$615)","v":0},{"$f":"SUMIFS(raw_transmission_costs!$G:$G,raw_transmission_costs!$B:$B,$C661,raw_transmission_costs!$A:$A,S$615)-SUMIFS(raw_transmission_costs!$E:$E,raw_transmission_costs!$B:$B,$C661,raw_transmission_costs!$A:$A,S$615)","v":0},{"$f":"SUMIFS(raw_transmission_costs!$G:$G,raw_transmission_costs!$B:$B,$C661,raw_transmission_costs!$A:$A,T$615)-SUMIFS(raw_transmission_costs!$E:$E,raw_transmission_costs!$B:$B,$C661,raw_transmission_costs!$A:$A,T$615)","v":1778.57},{"$f":"SUMIFS(raw_transmission_costs!$G:$G,raw_transmission_costs!$B:$B,$C661,raw_transmission_costs!$A:$A,U$615)-SUMIFS(raw_transmission_costs!$E:$E,raw_transmission_costs!$B:$B,$C661,raw_transmission_costs!$A:$A,U$615)","v":0},{"$f":"SUMIFS(raw_transmission_costs!$G:$G,raw_transmission_costs!$B:$B,$C661,raw_transmission_costs!$A:$A,V$615)-SUMIFS(raw_transmission_costs!$E:$E,raw_transmission_costs!$B:$B,$C661,raw_transmission_costs!$A:$A,V$615)","v":0},{"$f":"SUMIFS(raw_transmission_costs!$G:$G,raw_transmission_costs!$B:$B,$C661,raw_transmission_costs!$A:$A,W$615)-SUMIFS(raw_transmission_costs!$E:$E,raw_transmission_costs!$B:$B,$C661,raw_transmission_costs!$A:$A,W$615)","v":0},{"$f":"SUMIFS(raw_transmission_costs!$G:$G,raw_transmission_costs!$B:$B,$C661,raw_transmission_costs!$A:$A,X$615)-SUMIFS(raw_transmission_costs!$E:$E,raw_transmission_costs!$B:$B,$C661,raw_transmission_costs!$A:$A,X$615)","v":0},{"$f":"SUMIFS(raw_transmission_costs!$G:$G,raw_transmission_costs!$B:$B,$C661,raw_transmission_costs!$A:$A,Y$615)-SUMIFS(raw_transmission_costs!$E:$E,raw_transmission_costs!$B:$B,$C661,raw_transmission_costs!$A:$A,Y$615)","v":0},{"$f":"SUMIFS(raw_transmission_costs!$G:$G,raw_transmission_costs!$B:$B,$C661,raw_transmission_costs!$A:$A,Z$615)-SUMIFS(raw_transmission_costs!$E:$E,raw_transmission_costs!$B:$B,$C661,raw_transmission_costs!$A:$A,Z$615)","v":0},{"$f":"SUMIFS(raw_transmission_costs!$G:$G,raw_transmission_costs!$B:$B,$C661,raw_transmission_costs!$A:$A,AA$615)-SUMIFS(raw_transmission_costs!$E:$E,raw_transmission_costs!$B:$B,$C661,raw_transmission_costs!$A:$A,AA$615)","v":0},{"$f":"SUMIFS(raw_transmission_costs!$G:$G,raw_transmission_costs!$B:$B,$C661,raw_transmission_costs!$A:$A,AB$615)-SUMIFS(raw_transmission_costs!$E:$E,raw_transmission_costs!$B:$B,$C661,raw_transmission_costs!$A:$A,AB$615)","v":0},{"$f":"SUMIFS(raw_transmission_costs!$G:$G,raw_transmission_costs!$B:$B,$C661,raw_transmission_costs!$A:$A,AC$615)-SUMIFS(raw_transmission_costs!$E:$E,raw_transmission_costs!$B:$B,$C661,raw_transmission_costs!$A:$A,AC$615)","v":0},{"$f":"SUMIFS(raw_transmission_costs!$G:$G,raw_transmission_costs!$B:$B,$C661,raw_transmission_costs!$A:$A,AD$615)-SUMIFS(raw_transmission_costs!$E:$E,raw_transmission_costs!$B:$B,$C661,raw_transmission_costs!$A:$A,AD$615)","v":0},{"$f":"SUMIFS(raw_transmission_costs!$G:$G,raw_transmission_costs!$B:$B,$C661,raw_transmission_costs!$A:$A,AE$615)-SUMIFS(raw_transmission_costs!$E:$E,raw_transmission_costs!$B:$B,$C661,raw_transmission_costs!$A:$A,AE$615)","v":0},{"$f":"SUMIFS(raw_transmission_costs!$G:$G,raw_transmission_costs!$B:$B,$C661,raw_transmission_costs!$A:$A,AF$615)-SUMIFS(raw_transmission_costs!$E:$E,raw_transmission_costs!$B:$B,$C661,raw_transmission_costs!$A:$A,AF$615)","v":0},{"$f":"SUMIFS(raw_transmission_costs!$G:$G,raw_transmission_costs!$B:$B,$C661,raw_transmission_costs!$A:$A,AG$615)-SUMIFS(raw_transmission_costs!$E:$E,raw_transmission_costs!$B:$B,$C661,raw_transmission_costs!$A:$A,AG$615)","v":0},{"$f":"SUMIFS(raw_transmission_costs!$G:$G,raw_transmission_costs!$B:$B,$C661,raw_transmission_costs!$A:$A,AH$615)-SUMIFS(raw_transmission_costs!$E:$E,raw_transmission_costs!$B:$B,$C661,raw_transmission_costs!$A:$A,AH$615)","v":0},{"$f":"SUMIFS(raw_transmission_costs!$G:$G,raw_transmission_costs!$B:$B,$C661,raw_transmission_costs!$A:$A,AI$615)-SUMIFS(raw_transmission_costs!$E:$E,raw_transmission_costs!$B:$B,$C661,raw_transmission_costs!$A:$A,AI$615)","v":1778.57},{"$f":"SUMIFS(raw_transmission_costs!$G:$G,raw_transmission_costs!$B:$B,$C661,raw_transmission_costs!$A:$A,AJ$615)-SUMIFS(raw_transmission_costs!$E:$E,raw_transmission_costs!$B:$B,$C661,raw_transmission_costs!$A:$A,AJ$615)","v":0},{"$f":"SUMIFS(raw_transmission_costs!$G:$G,raw_transmission_costs!$B:$B,$C661,raw_transmission_costs!$A:$A,AK$615)-SUMIFS(raw_transmission_costs!$E:$E,raw_transmission_costs!$B:$B,$C661,raw_transmission_costs!$A:$A,AK$615)","v":0},{"$f":"SUMIFS(raw_transmission_costs!$G:$G,raw_transmission_costs!$B:$B,$C661,raw_transmission_costs!$A:$A,AL$615)-SUMIFS(raw_transmission_costs!$E:$E,raw_transmission_costs!$B:$B,$C661,raw_transmission_costs!$A:$A,AL$615)","v":0},{"$f":"SUMIFS(raw_transmission_costs!$G:$G,raw_transmission_costs!$B:$B,$C661,raw_transmission_costs!$A:$A,AM$615)-SUMIFS(raw_transmission_costs!$E:$E,raw_transmission_costs!$B:$B,$C661,raw_transmission_costs!$A:$A,AM$615)","v":0},{"$f":"SUMIFS(raw_transmission_costs!$G:$G,raw_transmission_costs!$B:$B,$C661,raw_transmission_costs!$A:$A,AN$615)-SUMIFS(raw_transmission_costs!$E:$E,raw_transmission_costs!$B:$B,$C661,raw_transmission_costs!$A:$A,AN$615)","v":0}]
[null,null,"Tehachapi_Ex","MW",{"$f":"SUMIFS(raw_transmission_costs!$G:$G,raw_transmission_costs!$B:$B,$C662,raw_transmission_costs!$A:$A,E$615)-SUMIFS(raw_transmission_costs!$E:$E,raw_transmission_costs!$B:$B,$C662,raw_transmission_costs!$A:$A,E$615)","v":0},{"$f":"SUMIFS(raw_transmission_costs!$G:$G,raw_transmission_costs!$B:$B,$C662,raw_transmission_costs!$A:$A,F$615)-SUMIFS(raw_transmission_costs!$E:$E,raw_transmission_costs!$B:$B,$C662,raw_transmission_costs!$A:$A,F$615)","v":0},{"$f":"SUMIFS(raw_transmission_costs!$G:$G,raw_transmission_costs!$B:$B,$C662,raw_transmission_costs!$A:$A,G$615)-SUMIFS(raw_transmission_costs!$E:$E,raw_transmission_costs!$B:$B,$C662,raw_transmission_costs!$A:$A,G$615)","v":0},{"$f":"SUMIFS(raw_transmission_costs!$G:$G,raw_transmission_costs!$B:$B,$C662,raw_transmission_costs!$A:$A,H$615)-SUMIFS(raw_transmission_costs!$E:$E,raw_transmission_costs!$B:$B,$C662,raw_transmission_costs!$A:$A,H$615)","v":0},{"$f":"SUMIFS(raw_transmission_costs!$G:$G,raw_transmission_costs!$B:$B,$C662,raw_transmission_costs!$A:$A,I$615)-SUMIFS(raw_transmission_costs!$E:$E,raw_transmission_costs!$B:$B,$C662,raw_transmission_costs!$A:$A,I$615)","v":0},{"$f":"SUMIFS(raw_transmission_costs!$G:$G,raw_transmission_costs!$B:$B,$C662,raw_transmission_costs!$A:$A,J$615)-SUMIFS(raw_transmission_costs!$E:$E,raw_transmission_costs!$B:$B,$C662,raw_transmission_costs!$A:$A,J$615)","v":0},{"$f":"SUMIFS(raw_transmission_costs!$G:$G,raw_transmission_costs!$B:$B,$C662,raw_transmission_costs!$A:$A,K$615)-SUMIFS(raw_transmission_costs!$E:$E,raw_transmission_costs!$B:$B,$C662,raw_transmission_costs!$A:$A,K$615)","v":0},{"$f":"SUMIFS(raw_transmission_costs!$G:$G,raw_transmission_costs!$B:$B,$C662,raw_transmission_costs!$A:$A,L$615)-SUMIFS(raw_transmission_costs!$E:$E,raw_transmission_costs!$B:$B,$C662,raw_transmission_costs!$A:$A,L$615)","v":0},{"$f":"SUMIFS(raw_transmission_costs!$G:$G,raw_transmission_costs!$B:$B,$C662,raw_transmission_costs!$A:$A,M$615)-SUMIFS(raw_transmission_costs!$E:$E,raw_transmission_costs!$B:$B,$C662,raw_transmission_costs!$A:$A,M$615)","v":0},{"$f":"SUMIFS(raw_transmission_costs!$G:$G,raw_transmission_costs!$B:$B,$C662,raw_transmission_costs!$A:$A,N$615)-SUMIFS(raw_transmission_costs!$E:$E,raw_transmission_costs!$B:$B,$C662,raw_transmission_costs!$A:$A,N$615)","v":0},{"$f":"SUMIFS(raw_transmission_costs!$G:$G,raw_transmission_costs!$B:$B,$C662,raw_transmission_costs!$A:$A,O$615)-SUMIFS(raw_transmission_costs!$E:$E,raw_transmission_costs!$B:$B,$C662,raw_transmission_costs!$A:$A,O$615)","v":0},{"$f":"SUMIFS(raw_transmission_costs!$G:$G,raw_transmission_costs!$B:$B,$C662,raw_transmission_costs!$A:$A,P$615)-SUMIFS(raw_transmission_costs!$E:$E,raw_transmission_costs!$B:$B,$C662,raw_transmission_costs!$A:$A,P$615)","v":0},{"$f":"SUMIFS(raw_transmission_costs!$G:$G,raw_transmission_costs!$B:$B,$C662,raw_transmission_costs!$A:$A,Q$615)-SUMIFS(raw_transmission_costs!$E:$E,raw_transmission_costs!$B:$B,$C662,raw_transmission_costs!$A:$A,Q$615)","v":0},{"$f":"SUMIFS(raw_transmission_costs!$G:$G,raw_transmission_costs!$B:$B,$C662,raw_transmission_costs!$A:$A,R$615)-SUMIFS(raw_transmission_costs!$E:$E,raw_transmission_costs!$B:$B,$C662,raw_transmission_costs!$A:$A,R$615)","v":0},{"$f":"SUMIFS(raw_transmission_costs!$G:$G,raw_transmission_costs!$B:$B,$C662,raw_transmission_costs!$A:$A,S$615)-SUMIFS(raw_transmission_costs!$E:$E,raw_transmission_costs!$B:$B,$C662,raw_transmission_costs!$A:$A,S$615)","v":0},{"$f":"SUMIFS(raw_transmission_costs!$G:$G,raw_transmission_costs!$B:$B,$C662,raw_transmission_costs!$A:$A,T$615)-SUMIFS(raw_transmission_costs!$E:$E,raw_transmission_costs!$B:$B,$C662,raw_transmission_costs!$A:$A,T$615)","v":0},{"$f":"SUMIFS(raw_transmission_costs!$G:$G,raw_transmission_costs!$B:$B,$C662,raw_transmission_costs!$A:$A,U$615)-SUMIFS(raw_transmission_costs!$E:$E,raw_transmission_costs!$B:$B,$C662,raw_transmission_costs!$A:$A,U$615)","v":0},{"$f":"SUMIFS(raw_transmission_costs!$G:$G,raw_transmission_costs!$B:$B,$C662,raw_transmission_costs!$A:$A,V$615)-SUMIFS(raw_transmission_costs!$E:$E,raw_transmission_costs!$B:$B,$C662,raw_transmission_costs!$A:$A,V$615)","v":0},{"$f":"SUMIFS(raw_transmission_costs!$G:$G,raw_transmission_costs!$B:$B,$C662,raw_transmission_costs!$A:$A,W$615)-SUMIFS(raw_transmission_costs!$E:$E,raw_transmission_costs!$B:$B,$C662,raw_transmission_costs!$A:$A,W$615)","v":0},{"$f":"SUMIFS(raw_transmission_costs!$G:$G,raw_transmission_costs!$B:$B,$C662,raw_transmission_costs!$A:$A,X$615)-SUMIFS(raw_transmission_costs!$E:$E,raw_transmission_costs!$B:$B,$C662,raw_transmission_costs!$A:$A,X$615)","v":0},{"$f":"SUMIFS(raw_transmission_costs!$G:$G,raw_transmission_costs!$B:$B,$C662,raw_transmission_costs!$A:$A,Y$615)-SUMIFS(raw_transmission_costs!$E:$E,raw_transmission_costs!$B:$B,$C662,raw_transmission_costs!$A:$A,Y$615)","v":0},{"$f":"SUMIFS(raw_transmission_costs!$G:$G,raw_transmission_costs!$B:$B,$C662,raw_transmission_costs!$A:$A,Z$615)-SUMIFS(raw_transmission_costs!$E:$E,raw_transmission_costs!$B:$B,$C662,raw_transmission_costs!$A:$A,Z$615)","v":0},{"$f":"SUMIFS(raw_transmission_costs!$G:$G,raw_transmission_costs!$B:$B,$C662,raw_transmission_costs!$A:$A,AA$615)-SUMIFS(raw_transmission_costs!$E:$E,raw_transmission_costs!$B:$B,$C662,raw_transmission_costs!$A:$A,AA$615)","v":0},{"$f":"SUMIFS(raw_transmission_costs!$G:$G,raw_transmission_costs!$B:$B,$C662,raw_transmission_costs!$A:$A,AB$615)-SUMIFS(raw_transmission_costs!$E:$E,raw_transmission_costs!$B:$B,$C662,raw_transmission_costs!$A:$A,AB$615)","v":0},{"$f":"SUMIFS(raw_transmission_costs!$G:$G,raw_transmission_costs!$B:$B,$C662,raw_transmission_costs!$A:$A,AC$615)-SUMIFS(raw_transmission_costs!$E:$E,raw_transmission_costs!$B:$B,$C662,raw_transmission_costs!$A:$A,AC$615)","v":0},{"$f":"SUMIFS(raw_transmission_costs!$G:$G,raw_transmission_costs!$B:$B,$C662,raw_transmission_costs!$A:$A,AD$615)-SUMIFS(raw_transmission_costs!$E:$E,raw_transmission_costs!$B:$B,$C662,raw_transmission_costs!$A:$A,AD$615)","v":0},{"$f":"SUMIFS(raw_transmission_costs!$G:$G,raw_transmission_costs!$B:$B,$C662,raw_transmission_costs!$A:$A,AE$615)-SUMIFS(raw_transmission_costs!$E:$E,raw_transmission_costs!$B:$B,$C662,raw_transmission_costs!$A:$A,AE$615)","v":0},{"$f":"SUMIFS(raw_transmission_costs!$G:$G,raw_transmission_costs!$B:$B,$C662,raw_transmission_costs!$A:$A,AF$615)-SUMIFS(raw_transmission_costs!$E:$E,raw_transmission_costs!$B:$B,$C662,raw_transmission_costs!$A:$A,AF$615)","v":0},{"$f":"SUMIFS(raw_transmission_costs!$G:$G,raw_transmission_costs!$B:$B,$C662,raw_transmission_costs!$A:$A,AG$615)-SUMIFS(raw_transmission_costs!$E:$E,raw_transmission_costs!$B:$B,$C662,raw_transmission_costs!$A:$A,AG$615)","v":0},{"$f":"SUMIFS(raw_transmission_costs!$G:$G,raw_transmission_costs!$B:$B,$C662,raw_transmission_costs!$A:$A,AH$615)-SUMIFS(raw_transmission_costs!$E:$E,raw_transmission_costs!$B:$B,$C662,raw_transmission_costs!$A:$A,AH$615)","v":0},{"$f":"SUMIFS(raw_transmission_costs!$G:$G,raw_transmission_costs!$B:$B,$C662,raw_transmission_costs!$A:$A,AI$615)-SUMIFS(raw_transmission_costs!$E:$E,raw_transmission_costs!$B:$B,$C662,raw_transmission_costs!$A:$A,AI$615)","v":0},{"$f":"SUMIFS(raw_transmission_costs!$G:$G,raw_transmission_costs!$B:$B,$C662,raw_transmission_costs!$A:$A,AJ$615)-SUMIFS(raw_transmission_costs!$E:$E,raw_transmission_costs!$B:$B,$C662,raw_transmission_costs!$A:$A,AJ$615)","v":0},{"$f":"SUMIFS(raw_transmission_costs!$G:$G,raw_transmission_costs!$B:$B,$C662,raw_transmission_costs!$A:$A,AK$615)-SUMIFS(raw_transmission_costs!$E:$E,raw_transmission_costs!$B:$B,$C662,raw_transmission_costs!$A:$A,AK$615)","v":0},{"$f":"SUMIFS(raw_transmission_costs!$G:$G,raw_transmission_costs!$B:$B,$C662,raw_transmission_costs!$A:$A,AL$615)-SUMIFS(raw_transmission_costs!$E:$E,raw_transmission_costs!$B:$B,$C662,raw_transmission_costs!$A:$A,AL$615)","v":0},{"$f":"SUMIFS(raw_transmission_costs!$G:$G,raw_transmission_costs!$B:$B,$C662,raw_transmission_costs!$A:$A,AM$615)-SUMIFS(raw_transmission_costs!$E:$E,raw_transmission_costs!$B:$B,$C662,raw_transmission_costs!$A:$A,AM$615)","v":0},{"$f":"SUMIFS(raw_transmission_costs!$G:$G,raw_transmission_costs!$B:$B,$C662,raw_transmission_costs!$A:$A,AN$615)-SUMIFS(raw_transmission_costs!$E:$E,raw_transmission_costs!$B:$B,$C662,raw_transmission_costs!$A:$A,AN$615)","v":0}]
[null,null,"Kramer_Inyokern_Ex","MW",{"$f":"SUMIFS(raw_transmission_costs!$G:$G,raw_transmission_costs!$B:$B,$C663,raw_transmission_costs!$A:$A,E$615)-SUMIFS(raw_transmission_costs!$E:$E,raw_transmission_costs!$B:$B,$C663,raw_transmission_costs!$A:$A,E$615)","v":0},{"$f":"SUMIFS(raw_transmission_costs!$G:$G,raw_transmission_costs!$B:$B,$C663,raw_transmission_costs!$A:$A,F$615)-SUMIFS(raw_transmission_costs!$E:$E,raw_transmission_costs!$B:$B,$C663,raw_transmission_costs!$A:$A,F$615)","v":0},{"$f":"SUMIFS(raw_transmission_costs!$G:$G,raw_transmission_costs!$B:$B,$C663,raw_transmission_costs!$A:$A,G$615)-SUMIFS(raw_transmission_costs!$E:$E,raw_transmission_costs!$B:$B,$C663,raw_transmission_costs!$A:$A,G$615)","v":0},{"$f":"SUMIFS(raw_transmission_costs!$G:$G,raw_transmission_costs!$B:$B,$C663,raw_transmission_costs!$A:$A,H$615)-SUMIFS(raw_transmission_costs!$E:$E,raw_transmission_costs!$B:$B,$C663,raw_transmission_costs!$A:$A,H$615)","v":0},{"$f":"SUMIFS(raw_transmission_costs!$G:$G,raw_transmission_costs!$B:$B,$C663,raw_transmission_costs!$A:$A,I$615)-SUMIFS(raw_transmission_costs!$E:$E,raw_transmission_costs!$B:$B,$C663,raw_transmission_costs!$A:$A,I$615)","v":0},{"$f":"SUMIFS(raw_transmission_costs!$G:$G,raw_transmission_costs!$B:$B,$C663,raw_transmission_costs!$A:$A,J$615)-SUMIFS(raw_transmission_costs!$E:$E,raw_transmission_costs!$B:$B,$C663,raw_transmission_costs!$A:$A,J$615)","v":0},{"$f":"SUMIFS(raw_transmission_costs!$G:$G,raw_transmission_costs!$B:$B,$C663,raw_transmission_costs!$A:$A,K$615)-SUMIFS(raw_transmission_costs!$E:$E,raw_transmission_costs!$B:$B,$C663,raw_transmission_costs!$A:$A,K$615)","v":0},{"$f":"SUMIFS(raw_transmission_costs!$G:$G,raw_transmission_costs!$B:$B,$C663,raw_transmission_costs!$A:$A,L$615)-SUMIFS(raw_transmission_costs!$E:$E,raw_transmission_costs!$B:$B,$C663,raw_transmission_costs!$A:$A,L$615)","v":0},{"$f":"SUMIFS(raw_transmission_costs!$G:$G,raw_transmission_costs!$B:$B,$C663,raw_transmission_costs!$A:$A,M$615)-SUMIFS(raw_transmission_costs!$E:$E,raw_transmission_costs!$B:$B,$C663,raw_transmission_costs!$A:$A,M$615)","v":0},{"$f":"SUMIFS(raw_transmission_costs!$G:$G,raw_transmission_costs!$B:$B,$C663,raw_transmission_costs!$A:$A,N$615)-SUMIFS(raw_transmission_costs!$E:$E,raw_transmission_costs!$B:$B,$C663,raw_transmission_costs!$A:$A,N$615)","v":0},{"$f":"SUMIFS(raw_transmission_costs!$G:$G,raw_transmission_costs!$B:$B,$C663,raw_transmission_costs!$A:$A,O$615)-SUMIFS(raw_transmission_costs!$E:$E,raw_transmission_costs!$B:$B,$C663,raw_transmission_costs!$A:$A,O$615)","v":0},{"$f":"SUMIFS(raw_transmission_costs!$G:$G,raw_transmission_costs!$B:$B,$C663,raw_transmission_costs!$A:$A,P$615)-SUMIFS(raw_transmission_costs!$E:$E,raw_transmission_costs!$B:$B,$C663,raw_transmission_costs!$A:$A,P$615)","v":0},{"$f":"SUMIFS(raw_transmission_costs!$G:$G,raw_transmission_costs!$B:$B,$C663,raw_transmission_costs!$A:$A,Q$615)-SUMIFS(raw_transmission_costs!$E:$E,raw_transmission_costs!$B:$B,$C663,raw_transmission_costs!$A:$A,Q$615)","v":0},{"$f":"SUMIFS(raw_transmission_costs!$G:$G,raw_transmission_costs!$B:$B,$C663,raw_transmission_costs!$A:$A,R$615)-SUMIFS(raw_transmission_costs!$E:$E,raw_transmission_costs!$B:$B,$C663,raw_transmission_costs!$A:$A,R$615)","v":0},{"$f":"SUMIFS(raw_transmission_costs!$G:$G,raw_transmission_costs!$B:$B,$C663,raw_transmission_costs!$A:$A,S$615)-SUMIFS(raw_transmission_costs!$E:$E,raw_transmission_costs!$B:$B,$C663,raw_transmission_costs!$A:$A,S$615)","v":0},{"$f":"SUMIFS(raw_transmission_costs!$G:$G,raw_transmission_costs!$B:$B,$C663,raw_transmission_costs!$A:$A,T$615)-SUMIFS(raw_transmission_costs!$E:$E,raw_transmission_costs!$B:$B,$C663,raw_transmission_costs!$A:$A,T$615)","v":0},{"$f":"SUMIFS(raw_transmission_costs!$G:$G,raw_transmission_costs!$B:$B,$C663,raw_transmission_costs!$A:$A,U$615)-SUMIFS(raw_transmission_costs!$E:$E,raw_transmission_costs!$B:$B,$C663,raw_transmission_costs!$A:$A,U$615)","v":0},{"$f":"SUMIFS(raw_transmission_costs!$G:$G,raw_transmission_costs!$B:$B,$C663,raw_transmission_costs!$A:$A,V$615)-SUMIFS(raw_transmission_costs!$E:$E,raw_transmission_costs!$B:$B,$C663,raw_transmission_costs!$A:$A,V$615)","v":0},{"$f":"SUMIFS(raw_transmission_costs!$G:$G,raw_transmission_costs!$B:$B,$C663,raw_transmission_costs!$A:$A,W$615)-SUMIFS(raw_transmission_costs!$E:$E,raw_transmission_costs!$B:$B,$C663,raw_transmission_costs!$A:$A,W$615)","v":0},{"$f":"SUMIFS(raw_transmission_costs!$G:$G,raw_transmission_costs!$B:$B,$C663,raw_transmission_costs!$A:$A,X$615)-SUMIFS(raw_transmission_costs!$E:$E,raw_transmission_costs!$B:$B,$C663,raw_transmission_costs!$A:$A,X$615)","v":0},{"$f":"SUMIFS(raw_transmission_costs!$G:$G,raw_transmission_costs!$B:$B,$C663,raw_transmission_costs!$A:$A,Y$615)-SUMIFS(raw_transmission_costs!$E:$E,raw_transmission_costs!$B:$B,$C663,raw_transmission_costs!$A:$A,Y$615)","v":0},{"$f":"SUMIFS(raw_transmission_costs!$G:$G,raw_transmission_costs!$B:$B,$C663,raw_transmission_costs!$A:$A,Z$615)-SUMIFS(raw_transmission_costs!$E:$E,raw_transmission_costs!$B:$B,$C663,raw_transmission_costs!$A:$A,Z$615)","v":0},{"$f":"SUMIFS(raw_transmission_costs!$G:$G,raw_transmission_costs!$B:$B,$C663,raw_transmission_costs!$A:$A,AA$615)-SUMIFS(raw_transmission_costs!$E:$E,raw_transmission_costs!$B:$B,$C663,raw_transmission_costs!$A:$A,AA$615)","v":0},{"$f":"SUMIFS(raw_transmission_costs!$G:$G,raw_transmission_costs!$B:$B,$C663,raw_transmission_costs!$A:$A,AB$615)-SUMIFS(raw_transmission_costs!$E:$E,raw_transmission_costs!$B:$B,$C663,raw_transmission_costs!$A:$A,AB$615)","v":0},{"$f":"SUMIFS(raw_transmission_costs!$G:$G,raw_transmission_costs!$B:$B,$C663,raw_transmission_costs!$A:$A,AC$615)-SUMIFS(raw_transmission_costs!$E:$E,raw_transmission_costs!$B:$B,$C663,raw_transmission_costs!$A:$A,AC$615)","v":0},{"$f":"SUMIFS(raw_transmission_costs!$G:$G,raw_transmission_costs!$B:$B,$C663,raw_transmission_costs!$A:$A,AD$615)-SUMIFS(raw_transmission_costs!$E:$E,raw_transmission_costs!$B:$B,$C663,raw_transmission_costs!$A:$A,AD$615)","v":0},{"$f":"SUMIFS(raw_transmission_costs!$G:$G,raw_transmission_costs!$B:$B,$C663,raw_transmission_costs!$A:$A,AE$615)-SUMIFS(raw_transmission_costs!$E:$E,raw_transmission_costs!$B:$B,$C663,raw_transmission_costs!$A:$A,AE$615)","v":0},{"$f":"SUMIFS(raw_transmission_costs!$G:$G,raw_transmission_costs!$B:$B,$C663,raw_transmission_costs!$A:$A,AF$615)-SUMIFS(raw_transmission_costs!$E:$E,raw_transmission_costs!$B:$B,$C663,raw_transmission_costs!$A:$A,AF$615)","v":0},{"$f":"SUMIFS(raw_transmission_costs!$G:$G,raw_transmission_costs!$B:$B,$C663,raw_transmission_costs!$A:$A,AG$615)-SUMIFS(raw_transmission_costs!$E:$E,raw_transmission_costs!$B:$B,$C663,raw_transmission_costs!$A:$A,AG$615)","v":0},{"$f":"SUMIFS(raw_transmission_costs!$G:$G,raw_transmission_costs!$B:$B,$C663,raw_transmission_costs!$A:$A,AH$615)-SUMIFS(raw_transmission_costs!$E:$E,raw_transmission_costs!$B:$B,$C663,raw_transmission_costs!$A:$A,AH$615)","v":0},{"$f":"SUMIFS(raw_transmission_costs!$G:$G,raw_transmission_costs!$B:$B,$C663,raw_transmission_costs!$A:$A,AI$615)-SUMIFS(raw_transmission_costs!$E:$E,raw_transmission_costs!$B:$B,$C663,raw_transmission_costs!$A:$A,AI$615)","v":0},{"$f":"SUMIFS(raw_transmission_costs!$G:$G,raw_transmission_costs!$B:$B,$C663,raw_transmission_costs!$A:$A,AJ$615)-SUMIFS(raw_transmission_costs!$E:$E,raw_transmission_costs!$B:$B,$C663,raw_transmission_costs!$A:$A,AJ$615)","v":0},{"$f":"SUMIFS(raw_transmission_costs!$G:$G,raw_transmission_costs!$B:$B,$C663,raw_transmission_costs!$A:$A,AK$615)-SUMIFS(raw_transmission_costs!$E:$E,raw_transmission_costs!$B:$B,$C663,raw_transmission_costs!$A:$A,AK$615)","v":0},{"$f":"SUMIFS(raw_transmission_costs!$G:$G,raw_transmission_costs!$B:$B,$C663,raw_transmission_costs!$A:$A,AL$615)-SUMIFS(raw_transmission_costs!$E:$E,raw_transmission_costs!$B:$B,$C663,raw_transmission_costs!$A:$A,AL$615)","v":0},{"$f":"SUMIFS(raw_transmission_costs!$G:$G,raw_transmission_costs!$B:$B,$C663,raw_transmission_costs!$A:$A,AM$615)-SUMIFS(raw_transmission_costs!$E:$E,raw_transmission_costs!$B:$B,$C663,raw_transmission_costs!$A:$A,AM$615)","v":0},{"$f":"SUMIFS(raw_transmission_costs!$G:$G,raw_transmission_costs!$B:$B,$C663,raw_transmission_costs!$A:$A,AN$615)-SUMIFS(raw_transmission_costs!$E:$E,raw_transmission_costs!$B:$B,$C663,raw_transmission_costs!$A:$A,AN$615)","v":0}]
[null,null,"Southern_California_Desert_Ex","MW",{"$f":"SUMIFS(raw_transmission_costs!$G:$G,raw_transmission_costs!$B:$B,$C664,raw_transmission_costs!$A:$A,E$615)-SUMIFS(raw_transmission_costs!$E:$E,raw_transmission_costs!$B:$B,$C664,raw_transmission_costs!$A:$A,E$615)","v":0},{"$f":"SUMIFS(raw_transmission_costs!$G:$G,raw_transmission_costs!$B:$B,$C664,raw_transmission_costs!$A:$A,F$615)-SUMIFS(raw_transmission_costs!$E:$E,raw_transmission_costs!$B:$B,$C664,raw_transmission_costs!$A:$A,F$615)","v":0},{"$f":"SUMIFS(raw_transmission_costs!$G:$G,raw_transmission_costs!$B:$B,$C664,raw_transmission_costs!$A:$A,G$615)-SUMIFS(raw_transmission_costs!$E:$E,raw_transmission_costs!$B:$B,$C664,raw_transmission_costs!$A:$A,G$615)","v":0},{"$f":"SUMIFS(raw_transmission_costs!$G:$G,raw_transmission_costs!$B:$B,$C664,raw_transmission_costs!$A:$A,H$615)-SUMIFS(raw_transmission_costs!$E:$E,raw_transmission_costs!$B:$B,$C664,raw_transmission_costs!$A:$A,H$615)","v":0},{"$f":"SUMIFS(raw_transmission_costs!$G:$G,raw_transmission_costs!$B:$B,$C664,raw_transmission_costs!$A:$A,I$615)-SUMIFS(raw_transmission_costs!$E:$E,raw_transmission_costs!$B:$B,$C664,raw_transmission_costs!$A:$A,I$615)","v":0},{"$f":"SUMIFS(raw_transmission_costs!$G:$G,raw_transmission_costs!$B:$B,$C664,raw_transmission_costs!$A:$A,J$615)-SUMIFS(raw_transmission_costs!$E:$E,raw_transmission_costs!$B:$B,$C664,raw_transmission_costs!$A:$A,J$615)","v":0},{"$f":"SUMIFS(raw_transmission_costs!$G:$G,raw_transmission_costs!$B:$B,$C664,raw_transmission_costs!$A:$A,K$615)-SUMIFS(raw_transmission_costs!$E:$E,raw_transmission_costs!$B:$B,$C664,raw_transmission_costs!$A:$A,K$615)","v":0},{"$f":"SUMIFS(raw_transmission_costs!$G:$G,raw_transmission_costs!$B:$B,$C664,raw_transmission_costs!$A:$A,L$615)-SUMIFS(raw_transmission_costs!$E:$E,raw_transmission_costs!$B:$B,$C664,raw_transmission_costs!$A:$A,L$615)","v":862},{"$f":"SUMIFS(raw_transmission_costs!$G:$G,raw_transmission_costs!$B:$B,$C664,raw_transmission_costs!$A:$A,M$615)-SUMIFS(raw_transmission_costs!$E:$E,raw_transmission_costs!$B:$B,$C664,raw_transmission_costs!$A:$A,M$615)","v":862},{"$f":"SUMIFS(raw_transmission_costs!$G:$G,raw_transmission_costs!$B:$B,$C664,raw_transmission_costs!$A:$A,N$615)-SUMIFS(raw_transmission_costs!$E:$E,raw_transmission_costs!$B:$B,$C664,raw_transmission_costs!$A:$A,N$615)","v":862},{"$f":"SUMIFS(raw_transmission_costs!$G:$G,raw_transmission_costs!$B:$B,$C664,raw_transmission_costs!$A:$A,O$615)-SUMIFS(raw_transmission_costs!$E:$E,raw_transmission_costs!$B:$B,$C664,raw_transmission_costs!$A:$A,O$615)","v":0},{"$f":"SUMIFS(raw_transmission_costs!$G:$G,raw_transmission_costs!$B:$B,$C664,raw_transmission_costs!$A:$A,P$615)-SUMIFS(raw_transmission_costs!$E:$E,raw_transmission_costs!$B:$B,$C664,raw_transmission_costs!$A:$A,P$615)","v":862},{"$f":"SUMIFS(raw_transmission_costs!$G:$G,raw_transmission_costs!$B:$B,$C664,raw_transmission_costs!$A:$A,Q$615)-SUMIFS(raw_transmission_costs!$E:$E,raw_transmission_costs!$B:$B,$C664,raw_transmission_costs!$A:$A,Q$615)","v":0},{"$f":"SUMIFS(raw_transmission_costs!$G:$G,raw_transmission_costs!$B:$B,$C664,raw_transmission_costs!$A:$A,R$615)-SUMIFS(raw_transmission_costs!$E:$E,raw_transmission_costs!$B:$B,$C664,raw_transmission_costs!$A:$A,R$615)","v":0},{"$f":"SUMIFS(raw_transmission_costs!$G:$G,raw_transmission_costs!$B:$B,$C664,raw_transmission_costs!$A:$A,S$615)-SUMIFS(raw_transmission_costs!$E:$E,raw_transmission_costs!$B:$B,$C664,raw_transmission_costs!$A:$A,S$615)","v":0},{"$f":"SUMIFS(raw_transmission_costs!$G:$G,raw_transmission_costs!$B:$B,$C664,raw_transmission_costs!$A:$A,T$615)-SUMIFS(raw_transmission_costs!$E:$E,raw_transmission_costs!$B:$B,$C664,raw_transmission_costs!$A:$A,T$615)","v":862},{"$f":"SUMIFS(raw_transmission_costs!$G:$G,raw_transmission_costs!$B:$B,$C664,raw_transmission_costs!$A:$A,U$615)-SUMIFS(raw_transmission_costs!$E:$E,raw_transmission_costs!$B:$B,$C664,raw_transmission_costs!$A:$A,U$615)","v":0},{"$f":"SUMIFS(raw_transmission_costs!$G:$G,raw_transmission_costs!$B:$B,$C664,raw_transmission_costs!$A:$A,V$615)-SUMIFS(raw_transmission_costs!$E:$E,raw_transmission_costs!$B:$B,$C664,raw_transmission_costs!$A:$A,V$615)","v":0},{"$f":"SUMIFS(raw_transmission_costs!$G:$G,raw_transmission_costs!$B:$B,$C664,raw_transmission_costs!$A:$A,W$615)-SUMIFS(raw_transmission_costs!$E:$E,raw_transmission_costs!$B:$B,$C664,raw_transmission_costs!$A:$A,W$615)","v":0},{"$f":"SUMIFS(raw_transmission_costs!$G:$G,raw_transmission_costs!$B:$B,$C664,raw_transmission_costs!$A:$A,X$615)-SUMIFS(raw_transmission_costs!$E:$E,raw_transmission_costs!$B:$B,$C664,raw_transmission_costs!$A:$A,X$615)","v":0},{"$f":"SUMIFS(raw_transmission_costs!$G:$G,raw_transmission_costs!$B:$B,$C664,raw_transmission_costs!$A:$A,Y$615)-SUMIFS(raw_transmission_costs!$E:$E,raw_transmission_costs!$B:$B,$C664,raw_transmission_costs!$A:$A,Y$615)","v":0},{"$f":"SUMIFS(raw_transmission_costs!$G:$G,raw_transmission_costs!$B:$B,$C664,raw_transmission_costs!$A:$A,Z$615)-SUMIFS(raw_transmission_costs!$E:$E,raw_transmission_costs!$B:$B,$C664,raw_transmission_costs!$A:$A,Z$615)","v":0},{"$f":"SUMIFS(raw_transmission_costs!$G:$G,raw_transmission_costs!$B:$B,$C664,raw_transmission_costs!$A:$A,AA$615)-SUMIFS(raw_transmission_costs!$E:$E,raw_transmission_costs!$B:$B,$C664,raw_transmission_costs!$A:$A,AA$615)","v":0},{"$f":"SUMIFS(raw_transmission_costs!$G:$G,raw_transmission_costs!$B:$B,$C664,raw_transmission_costs!$A:$A,AB$615)-SUMIFS(raw_transmission_costs!$E:$E,raw_transmission_costs!$B:$B,$C664,raw_transmission_costs!$A:$A,AB$615)","v":0},{"$f":"SUMIFS(raw_transmission_costs!$G:$G,raw_transmission_costs!$B:$B,$C664,raw_transmission_costs!$A:$A,AC$615)-SUMIFS(raw_transmission_costs!$E:$E,raw_transmission_costs!$B:$B,$C664,raw_transmission_costs!$A:$A,AC$615)","v":0},{"$f":"SUMIFS(raw_transmission_costs!$G:$G,raw_transmission_costs!$B:$B,$C664,raw_transmission_costs!$A:$A,AD$615)-SUMIFS(raw_transmission_costs!$E:$E,raw_transmission_costs!$B:$B,$C664,raw_transmission_costs!$A:$A,AD$615)","v":0},{"$f":"SUMIFS(raw_transmission_costs!$G:$G,raw_transmission_costs!$B:$B,$C664,raw_transmission_costs!$A:$A,AE$615)-SUMIFS(raw_transmission_costs!$E:$E,raw_transmission_costs!$B:$B,$C664,raw_transmission_costs!$A:$A,AE$615)","v":0},{"$f":"SUMIFS(raw_transmission_costs!$G:$G,raw_transmission_costs!$B:$B,$C664,raw_transmission_costs!$A:$A,AF$615)-SUMIFS(raw_transmission_costs!$E:$E,raw_transmission_costs!$B:$B,$C664,raw_transmission_costs!$A:$A,AF$615)","v":0},{"$f":"SUMIFS(raw_transmission_costs!$G:$G,raw_transmission_costs!$B:$B,$C664,raw_transmission_costs!$A:$A,AG$615)-SUMIFS(raw_transmission_costs!$E:$E,raw_transmission_costs!$B:$B,$C664,raw_transmission_costs!$A:$A,AG$615)","v":0},{"$f":"SUMIFS(raw_transmission_costs!$G:$G,raw_transmission_costs!$B:$B,$C664,raw_transmission_costs!$A:$A,AH$615)-SUMIFS(raw_transmission_costs!$E:$E,raw_transmission_costs!$B:$B,$C664,raw_transmission_costs!$A:$A,AH$615)","v":0},{"$f":"SUMIFS(raw_transmission_costs!$G:$G,raw_transmission_costs!$B:$B,$C664,raw_transmission_costs!$A:$A,AI$615)-SUMIFS(raw_transmission_costs!$E:$E,raw_transmission_costs!$B:$B,$C664,raw_transmission_costs!$A:$A,AI$615)","v":862},{"$f":"SUMIFS(raw_transmission_costs!$G:$G,raw_transmission_costs!$B:$B,$C664,raw_transmission_costs!$A:$A,AJ$615)-SUMIFS(raw_transmission_costs!$E:$E,raw_transmission_costs!$B:$B,$C664,raw_transmission_costs!$A:$A,AJ$615)","v":0},{"$f":"SUMIFS(raw_transmission_costs!$G:$G,raw_transmission_costs!$B:$B,$C664,raw_transmission_costs!$A:$A,AK$615)-SUMIFS(raw_transmission_costs!$E:$E,raw_transmission_costs!$B:$B,$C664,raw_transmission_costs!$A:$A,AK$615)","v":0},{"$f":"SUMIFS(raw_transmission_costs!$G:$G,raw_transmission_costs!$B:$B,$C664,raw_transmission_costs!$A:$A,AL$615)-SUMIFS(raw_transmission_costs!$E:$E,raw_transmission_costs!$B:$B,$C664,raw_transmission_costs!$A:$A,AL$615)","v":0},{"$f":"SUMIFS(raw_transmission_costs!$G:$G,raw_transmission_costs!$B:$B,$C664,raw_transmission_costs!$A:$A,AM$615)-SUMIFS(raw_transmission_costs!$E:$E,raw_transmission_costs!$B:$B,$C664,raw_transmission_costs!$A:$A,AM$615)","v":0},{"$f":"SUMIFS(raw_transmission_costs!$G:$G,raw_transmission_costs!$B:$B,$C664,raw_transmission_costs!$A:$A,AN$615)-SUMIFS(raw_transmission_costs!$E:$E,raw_transmission_costs!$B:$B,$C664,raw_transmission_costs!$A:$A,AN$615)","v":0}]
[null,null,"OffshoreWind_UnknownCost","MW",{"$f":"SUMIFS(raw_transmission_costs!$G:$G,raw_transmission_costs!$B:$B,$C665,raw_transmission_costs!$A:$A,E$615)-SUMIFS(raw_transmission_costs!$E:$E,raw_transmission_costs!$B:$B,$C665,raw_transmission_costs!$A:$A,E$615)","v":0},{"$f":"SUMIFS(raw_transmission_costs!$G:$G,raw_transmission_costs!$B:$B,$C665,raw_transmission_costs!$A:$A,F$615)-SUMIFS(raw_transmission_costs!$E:$E,raw_transmission_costs!$B:$B,$C665,raw_transmission_costs!$A:$A,F$615)","v":0},{"$f":"SUMIFS(raw_transmission_costs!$G:$G,raw_transmission_costs!$B:$B,$C665,raw_transmission_costs!$A:$A,G$615)-SUMIFS(raw_transmission_costs!$E:$E,raw_transmission_costs!$B:$B,$C665,raw_transmission_costs!$A:$A,G$615)","v":0},{"$f":"SUMIFS(raw_transmission_costs!$G:$G,raw_transmission_costs!$B:$B,$C665,raw_transmission_costs!$A:$A,H$615)-SUMIFS(raw_transmission_costs!$E:$E,raw_transmission_costs!$B:$B,$C665,raw_transmission_costs!$A:$A,H$615)","v":0},{"$f":"SUMIFS(raw_transmission_costs!$G:$G,raw_transmission_costs!$B:$B,$C665,raw_transmission_costs!$A:$A,I$615)-SUMIFS(raw_transmission_costs!$E:$E,raw_transmission_costs!$B:$B,$C665,raw_transmission_costs!$A:$A,I$615)","v":0},{"$f":"SUMIFS(raw_transmission_costs!$G:$G,raw_transmission_costs!$B:$B,$C665,raw_transmission_costs!$A:$A,J$615)-SUMIFS(raw_transmission_costs!$E:$E,raw_transmission_costs!$B:$B,$C665,raw_transmission_costs!$A:$A,J$615)","v":0},{"$f":"SUMIFS(raw_transmission_costs!$G:$G,raw_transmission_costs!$B:$B,$C665,raw_transmission_costs!$A:$A,K$615)-SUMIFS(raw_transmission_costs!$E:$E,raw_transmission_costs!$B:$B,$C665,raw_transmission_costs!$A:$A,K$615)","v":0},{"$f":"SUMIFS(raw_transmission_costs!$G:$G,raw_transmission_costs!$B:$B,$C665,raw_transmission_costs!$A:$A,L$615)-SUMIFS(raw_transmission_costs!$E:$E,raw_transmission_costs!$B:$B,$C665,raw_transmission_costs!$A:$A,L$615)","v":0},{"$f":"SUMIFS(raw_transmission_costs!$G:$G,raw_transmission_costs!$B:$B,$C665,raw_transmission_costs!$A:$A,M$615)-SUMIFS(raw_transmission_costs!$E:$E,raw_transmission_costs!$B:$B,$C665,raw_transmission_costs!$A:$A,M$615)","v":0},{"$f":"SUMIFS(raw_transmission_costs!$G:$G,raw_transmission_costs!$B:$B,$C665,raw_transmission_costs!$A:$A,N$615)-SUMIFS(raw_transmission_costs!$E:$E,raw_transmission_costs!$B:$B,$C665,raw_transmission_costs!$A:$A,N$615)","v":0},{"$f":"SUMIFS(raw_transmission_costs!$G:$G,raw_transmission_costs!$B:$B,$C665,raw_transmission_costs!$A:$A,O$615)-SUMIFS(raw_transmission_costs!$E:$E,raw_transmission_costs!$B:$B,$C665,raw_transmission_costs!$A:$A,O$615)","v":0},{"$f":"SUMIFS(raw_transmission_costs!$G:$G,raw_transmission_costs!$B:$B,$C665,raw_transmission_costs!$A:$A,P$615)-SUMIFS(raw_transmission_costs!$E:$E,raw_transmission_costs!$B:$B,$C665,raw_transmission_costs!$A:$A,P$615)","v":0},{"$f":"SUMIFS(raw_transmission_costs!$G:$G,raw_transmission_costs!$B:$B,$C665,raw_transmission_costs!$A:$A,Q$615)-SUMIFS(raw_transmission_costs!$E:$E,raw_transmission_costs!$B:$B,$C665,raw_transmission_costs!$A:$A,Q$615)","v":0},{"$f":"SUMIFS(raw_transmission_costs!$G:$G,raw_transmission_costs!$B:$B,$C665,raw_transmission_costs!$A:$A,R$615)-SUMIFS(raw_transmission_costs!$E:$E,raw_transmission_costs!$B:$B,$C665,raw_transmission_costs!$A:$A,R$615)","v":0},{"$f":"SUMIFS(raw_transmission_costs!$G:$G,raw_transmission_costs!$B:$B,$C665,raw_transmission_costs!$A:$A,S$615)-SUMIFS(raw_transmission_costs!$E:$E,raw_transmission_costs!$B:$B,$C665,raw_transmission_costs!$A:$A,S$615)","v":0},{"$f":"SUMIFS(raw_transmission_costs!$G:$G,raw_transmission_costs!$B:$B,$C665,raw_transmission_costs!$A:$A,T$615)-SUMIFS(raw_transmission_costs!$E:$E,raw_transmission_costs!$B:$B,$C665,raw_transmission_costs!$A:$A,T$615)","v":0},{"$f":"SUMIFS(raw_transmission_costs!$G:$G,raw_transmission_costs!$B:$B,$C665,raw_transmission_costs!$A:$A,U$615)-SUMIFS(raw_transmission_costs!$E:$E,raw_transmission_costs!$B:$B,$C665,raw_transmission_costs!$A:$A,U$615)","v":0},{"$f":"SUMIFS(raw_transmission_costs!$G:$G,raw_transmission_costs!$B:$B,$C665,raw_transmission_costs!$A:$A,V$615)-SUMIFS(raw_transmission_costs!$E:$E,raw_transmission_costs!$B:$B,$C665,raw_transmission_costs!$A:$A,V$615)","v":0},{"$f":"SUMIFS(raw_transmission_costs!$G:$G,raw_transmission_costs!$B:$B,$C665,raw_transmission_costs!$A:$A,W$615)-SUMIFS(raw_transmission_costs!$E:$E,raw_transmission_costs!$B:$B,$C665,raw_transmission_costs!$A:$A,W$615)","v":0},{"$f":"SUMIFS(raw_transmission_costs!$G:$G,raw_transmission_costs!$B:$B,$C665,raw_transmission_costs!$A:$A,X$615)-SUMIFS(raw_transmission_costs!$E:$E,raw_transmission_costs!$B:$B,$C665,raw_transmission_costs!$A:$A,X$615)","v":0},{"$f":"SUMIFS(raw_transmission_costs!$G:$G,raw_transmission_costs!$B:$B,$C665,raw_transmission_costs!$A:$A,Y$615)-SUMIFS(raw_transmission_costs!$E:$E,raw_transmission_costs!$B:$B,$C665,raw_transmission_costs!$A:$A,Y$615)","v":0},{"$f":"SUMIFS(raw_transmission_costs!$G:$G,raw_transmission_costs!$B:$B,$C665,raw_transmission_costs!$A:$A,Z$615)-SUMIFS(raw_transmission_costs!$E:$E,raw_transmission_costs!$B:$B,$C665,raw_transmission_costs!$A:$A,Z$615)","v":0},{"$f":"SUMIFS(raw_transmission_costs!$G:$G,raw_transmission_costs!$B:$B,$C665,raw_transmission_costs!$A:$A,AA$615)-SUMIFS(raw_transmission_costs!$E:$E,raw_transmission_costs!$B:$B,$C665,raw_transmission_costs!$A:$A,AA$615)","v":0},{"$f":"SUMIFS(raw_transmission_costs!$G:$G,raw_transmission_costs!$B:$B,$C665,raw_transmission_costs!$A:$A,AB$615)-SUMIFS(raw_transmission_costs!$E:$E,raw_transmission_costs!$B:$B,$C665,raw_transmission_costs!$A:$A,AB$615)","v":0},{"$f":"SUMIFS(raw_transmission_costs!$G:$G,raw_transmission_costs!$B:$B,$C665,raw_transmission_costs!$A:$A,AC$615)-SUMIFS(raw_transmission_costs!$E:$E,raw_transmission_costs!$B:$B,$C665,raw_transmission_costs!$A:$A,AC$615)","v":0},{"$f":"SUMIFS(raw_transmission_costs!$G:$G,raw_transmission_costs!$B:$B,$C665,raw_transmission_costs!$A:$A,AD$615)-SUMIFS(raw_transmission_costs!$E:$E,raw_transmission_costs!$B:$B,$C665,raw_transmission_costs!$A:$A,AD$615)","v":0},{"$f":"SUMIFS(raw_transmission_costs!$G:$G,raw_transmission_costs!$B:$B,$C665,raw_transmission_costs!$A:$A,AE$615)-SUMIFS(raw_transmission_costs!$E:$E,raw_transmission_costs!$B:$B,$C665,raw_transmission_costs!$A:$A,AE$615)","v":0},{"$f":"SUMIFS(raw_transmission_costs!$G:$G,raw_transmission_costs!$B:$B,$C665,raw_transmission_costs!$A:$A,AF$615)-SUMIFS(raw_transmission_costs!$E:$E,raw_transmission_costs!$B:$B,$C665,raw_transmission_costs!$A:$A,AF$615)","v":0},{"$f":"SUMIFS(raw_transmission_costs!$G:$G,raw_transmission_costs!$B:$B,$C665,raw_transmission_costs!$A:$A,AG$615)-SUMIFS(raw_transmission_costs!$E:$E,raw_transmission_costs!$B:$B,$C665,raw_transmission_costs!$A:$A,AG$615)","v":0},{"$f":"SUMIFS(raw_transmission_costs!$G:$G,raw_transmission_costs!$B:$B,$C665,raw_transmission_costs!$A:$A,AH$615)-SUMIFS(raw_transmission_costs!$E:$E,raw_transmission_costs!$B:$B,$C665,raw_transmission_costs!$A:$A,AH$615)","v":0},{"$f":"SUMIFS(raw_transmission_costs!$G:$G,raw_transmission_costs!$B:$B,$C665,raw_transmission_costs!$A:$A,AI$615)-SUMIFS(raw_transmission_costs!$E:$E,raw_transmission_costs!$B:$B,$C665,raw_transmission_costs!$A:$A,AI$615)","v":0},{"$f":"SUMIFS(raw_transmission_costs!$G:$G,raw_transmission_costs!$B:$B,$C665,raw_transmission_costs!$A:$A,AJ$615)-SUMIFS(raw_transmission_costs!$E:$E,raw_transmission_costs!$B:$B,$C665,raw_transmission_costs!$A:$A,AJ$615)","v":0},{"$f":"SUMIFS(raw_transmission_costs!$G:$G,raw_transmission_costs!$B:$B,$C665,raw_transmission_costs!$A:$A,AK$615)-SUMIFS(raw_transmission_costs!$E:$E,raw_transmission_costs!$B:$B,$C665,raw_transmission_costs!$A:$A,AK$615)","v":0},{"$f":"SUMIFS(raw_transmission_costs!$G:$G,raw_transmission_costs!$B:$B,$C665,raw_transmission_costs!$A:$A,AL$615)-SUMIFS(raw_transmission_costs!$E:$E,raw_transmission_costs!$B:$B,$C665,raw_transmission_costs!$A:$A,AL$615)","v":0},{"$f":"SUMIFS(raw_transmission_costs!$G:$G,raw_transmission_costs!$B:$B,$C665,raw_transmission_costs!$A:$A,AM$615)-SUMIFS(raw_transmission_costs!$E:$E,raw_transmission_costs!$B:$B,$C665,raw_transmission_costs!$A:$A,AM$615)","v":0},{"$f":"SUMIFS(raw_transmission_costs!$G:$G,raw_transmission_costs!$B:$B,$C665,raw_transmission_costs!$A:$A,AN$615)-SUMIFS(raw_transmission_costs!$E:$E,raw_transmission_costs!$B:$B,$C665,raw_transmission_costs!$A:$A,AN$615)","v":0}]
[null,null,"None","MW",{"$f":"SUMIFS(raw_transmission_costs!$G:$G,raw_transmission_costs!$B:$B,$C666,raw_transmission_costs!$A:$A,E$615)-SUMIFS(raw_transmission_costs!$E:$E,raw_transmission_costs!$B:$B,$C666,raw_transmission_costs!$A:$A,E$615)","v":0},{"$f":"SUMIFS(raw_transmission_costs!$G:$G,raw_transmission_costs!$B:$B,$C666,raw_transmission_costs!$A:$A,F$615)-SUMIFS(raw_transmission_costs!$E:$E,raw_transmission_costs!$B:$B,$C666,raw_transmission_costs!$A:$A,F$615)","v":0},{"$f":"SUMIFS(raw_transmission_costs!$G:$G,raw_transmission_costs!$B:$B,$C666,raw_transmission_costs!$A:$A,G$615)-SUMIFS(raw_transmission_costs!$E:$E,raw_transmission_costs!$B:$B,$C666,raw_transmission_costs!$A:$A,G$615)","v":0},{"$f":"SUMIFS(raw_transmission_costs!$G:$G,raw_transmission_costs!$B:$B,$C666,raw_transmission_costs!$A:$A,H$615)-SUMIFS(raw_transmission_costs!$E:$E,raw_transmission_costs!$B:$B,$C666,raw_transmission_costs!$A:$A,H$615)","v":0},{"$f":"SUMIFS(raw_transmission_costs!$G:$G,raw_transmission_costs!$B:$B,$C666,raw_transmission_costs!$A:$A,I$615)-SUMIFS(raw_transmission_costs!$E:$E,raw_transmission_costs!$B:$B,$C666,raw_transmission_costs!$A:$A,I$615)","v":0},{"$f":"SUMIFS(raw_transmission_costs!$G:$G,raw_transmission_costs!$B:$B,$C666,raw_transmission_costs!$A:$A,J$615)-SUMIFS(raw_transmission_costs!$E:$E,raw_transmission_costs!$B:$B,$C666,raw_transmission_costs!$A:$A,J$615)","v":0},{"$f":"SUMIFS(raw_transmission_costs!$G:$G,raw_transmission_costs!$B:$B,$C666,raw_transmission_costs!$A:$A,K$615)-SUMIFS(raw_transmission_costs!$E:$E,raw_transmission_costs!$B:$B,$C666,raw_transmission_costs!$A:$A,K$615)","v":0},{"$f":"SUMIFS(raw_transmission_costs!$G:$G,raw_transmission_costs!$B:$B,$C666,raw_transmission_costs!$A:$A,L$615)-SUMIFS(raw_transmission_costs!$E:$E,raw_transmission_costs!$B:$B,$C666,raw_transmission_costs!$A:$A,L$615)","v":0},{"$f":"SUMIFS(raw_transmission_costs!$G:$G,raw_transmission_costs!$B:$B,$C666,raw_transmission_costs!$A:$A,M$615)-SUMIFS(raw_transmission_costs!$E:$E,raw_transmission_costs!$B:$B,$C666,raw_transmission_costs!$A:$A,M$615)","v":0},{"$f":"SUMIFS(raw_transmission_costs!$G:$G,raw_transmission_costs!$B:$B,$C666,raw_transmission_costs!$A:$A,N$615)-SUMIFS(raw_transmission_costs!$E:$E,raw_transmission_costs!$B:$B,$C666,raw_transmission_costs!$A:$A,N$615)","v":0},{"$f":"SUMIFS(raw_transmission_costs!$G:$G,raw_transmission_costs!$B:$B,$C666,raw_transmission_costs!$A:$A,O$615)-SUMIFS(raw_transmission_costs!$E:$E,raw_transmission_costs!$B:$B,$C666,raw_transmission_costs!$A:$A,O$615)","v":0},{"$f":"SUMIFS(raw_transmission_costs!$G:$G,raw_transmission_costs!$B:$B,$C666,raw_transmission_costs!$A:$A,P$615)-SUMIFS(raw_transmission_costs!$E:$E,raw_transmission_costs!$B:$B,$C666,raw_transmission_costs!$A:$A,P$615)","v":0},{"$f":"SUMIFS(raw_transmission_costs!$G:$G,raw_transmission_costs!$B:$B,$C666,raw_transmission_costs!$A:$A,Q$615)-SUMIFS(raw_transmission_costs!$E:$E,raw_transmission_costs!$B:$B,$C666,raw_transmission_costs!$A:$A,Q$615)","v":0},{"$f":"SUMIFS(raw_transmission_costs!$G:$G,raw_transmission_costs!$B:$B,$C666,raw_transmission_costs!$A:$A,R$615)-SUMIFS(raw_transmission_costs!$E:$E,raw_transmission_costs!$B:$B,$C666,raw_transmission_costs!$A:$A,R$615)","v":0},{"$f":"SUMIFS(raw_transmission_costs!$G:$G,raw_transmission_costs!$B:$B,$C666,raw_transmission_costs!$A:$A,S$615)-SUMIFS(raw_transmission_costs!$E:$E,raw_transmission_costs!$B:$B,$C666,raw_transmission_costs!$A:$A,S$615)","v":0},{"$f":"SUMIFS(raw_transmission_costs!$G:$G,raw_transmission_costs!$B:$B,$C666,raw_transmission_costs!$A:$A,T$615)-SUMIFS(raw_transmission_costs!$E:$E,raw_transmission_costs!$B:$B,$C666,raw_transmission_costs!$A:$A,T$615)","v":0},{"$f":"SUMIFS(raw_transmission_costs!$G:$G,raw_transmission_costs!$B:$B,$C666,raw_transmission_costs!$A:$A,U$615)-SUMIFS(raw_transmission_costs!$E:$E,raw_transmission_costs!$B:$B,$C666,raw_transmission_costs!$A:$A,U$615)","v":0},{"$f":"SUMIFS(raw_transmission_costs!$G:$G,raw_transmission_costs!$B:$B,$C666,raw_transmission_costs!$A:$A,V$615)-SUMIFS(raw_transmission_costs!$E:$E,raw_transmission_costs!$B:$B,$C666,raw_transmission_costs!$A:$A,V$615)","v":0},{"$f":"SUMIFS(raw_transmission_costs!$G:$G,raw_transmission_costs!$B:$B,$C666,raw_transmission_costs!$A:$A,W$615)-SUMIFS(raw_transmission_costs!$E:$E,raw_transmission_costs!$B:$B,$C666,raw_transmission_costs!$A:$A,W$615)","v":0},{"$f":"SUMIFS(raw_transmission_costs!$G:$G,raw_transmission_costs!$B:$B,$C666,raw_transmission_costs!$A:$A,X$615)-SUMIFS(raw_transmission_costs!$E:$E,raw_transmission_costs!$B:$B,$C666,raw_transmission_costs!$A:$A,X$615)","v":0},{"$f":"SUMIFS(raw_transmission_costs!$G:$G,raw_transmission_costs!$B:$B,$C666,raw_transmission_costs!$A:$A,Y$615)-SUMIFS(raw_transmission_costs!$E:$E,raw_transmission_costs!$B:$B,$C666,raw_transmission_costs!$A:$A,Y$615)","v":0},{"$f":"SUMIFS(raw_transmission_costs!$G:$G,raw_transmission_costs!$B:$B,$C666,raw_transmission_costs!$A:$A,Z$615)-SUMIFS(raw_transmission_costs!$E:$E,raw_transmission_costs!$B:$B,$C666,raw_transmission_costs!$A:$A,Z$615)","v":0},{"$f":"SUMIFS(raw_transmission_costs!$G:$G,raw_transmission_costs!$B:$B,$C666,raw_transmission_costs!$A:$A,AA$615)-SUMIFS(raw_transmission_costs!$E:$E,raw_transmission_costs!$B:$B,$C666,raw_transmission_costs!$A:$A,AA$615)","v":0},{"$f":"SUMIFS(raw_transmission_costs!$G:$G,raw_transmission_costs!$B:$B,$C666,raw_transmission_costs!$A:$A,AB$615)-SUMIFS(raw_transmission_costs!$E:$E,raw_transmission_costs!$B:$B,$C666,raw_transmission_costs!$A:$A,AB$615)","v":0},{"$f":"SUMIFS(raw_transmission_costs!$G:$G,raw_transmission_costs!$B:$B,$C666,raw_transmission_costs!$A:$A,AC$615)-SUMIFS(raw_transmission_costs!$E:$E,raw_transmission_costs!$B:$B,$C666,raw_transmission_costs!$A:$A,AC$615)","v":0},{"$f":"SUMIFS(raw_transmission_costs!$G:$G,raw_transmission_costs!$B:$B,$C666,raw_transmission_costs!$A:$A,AD$615)-SUMIFS(raw_transmission_costs!$E:$E,raw_transmission_costs!$B:$B,$C666,raw_transmission_costs!$A:$A,AD$615)","v":0},{"$f":"SUMIFS(raw_transmission_costs!$G:$G,raw_transmission_costs!$B:$B,$C666,raw_transmission_costs!$A:$A,AE$615)-SUMIFS(raw_transmission_costs!$E:$E,raw_transmission_costs!$B:$B,$C666,raw_transmission_costs!$A:$A,AE$615)","v":0},{"$f":"SUMIFS(raw_transmission_costs!$G:$G,raw_transmission_costs!$B:$B,$C666,raw_transmission_costs!$A:$A,AF$615)-SUMIFS(raw_transmission_costs!$E:$E,raw_transmission_costs!$B:$B,$C666,raw_transmission_costs!$A:$A,AF$615)","v":0},{"$f":"SUMIFS(raw_transmission_costs!$G:$G,raw_transmission_costs!$B:$B,$C666,raw_transmission_costs!$A:$A,AG$615)-SUMIFS(raw_transmission_costs!$E:$E,raw_transmission_costs!$B:$B,$C666,raw_transmission_costs!$A:$A,AG$615)","v":0},{"$f":"SUMIFS(raw_transmission_costs!$G:$G,raw_transmission_costs!$B:$B,$C666,raw_transmission_costs!$A:$A,AH$615)-SUMIFS(raw_transmission_costs!$E:$E,raw_transmission_costs!$B:$B,$C666,raw_transmission_costs!$A:$A,AH$615)","v":0},{"$f":"SUMIFS(raw_transmission_costs!$G:$G,raw_transmission_costs!$B:$B,$C666,raw_transmission_costs!$A:$A,AI$615)-SUMIFS(raw_transmission_costs!$E:$E,raw_transmission_costs!$B:$B,$C666,raw_transmission_costs!$A:$A,AI$615)","v":0},{"$f":"SUMIFS(raw_transmission_costs!$G:$G,raw_transmission_costs!$B:$B,$C666,raw_transmission_costs!$A:$A,AJ$615)-SUMIFS(raw_transmission_costs!$E:$E,raw_transmission_costs!$B:$B,$C666,raw_transmission_costs!$A:$A,AJ$615)","v":0},{"$f":"SUMIFS(raw_transmission_costs!$G:$G,raw_transmission_costs!$B:$B,$C666,raw_transmission_costs!$A:$A,AK$615)-SUMIFS(raw_transmission_costs!$E:$E,raw_transmission_costs!$B:$B,$C666,raw_transmission_costs!$A:$A,AK$615)","v":0},{"$f":"SUMIFS(raw_transmission_costs!$G:$G,raw_transmission_costs!$B:$B,$C666,raw_transmission_costs!$A:$A,AL$615)-SUMIFS(raw_transmission_costs!$E:$E,raw_transmission_costs!$B:$B,$C666,raw_transmission_costs!$A:$A,AL$615)","v":0},{"$f":"SUMIFS(raw_transmission_costs!$G:$G,raw_transmission_costs!$B:$B,$C666,raw_transmission_costs!$A:$A,AM$615)-SUMIFS(raw_transmission_costs!$E:$E,raw_transmission_costs!$B:$B,$C666,raw_transmission_costs!$A:$A,AM$615)","v":0},{"$f":"SUMIFS(raw_transmission_costs!$G:$G,raw_transmission_costs!$B:$B,$C666,raw_transmission_costs!$A:$A,AN$615)-SUMIFS(raw_transmission_costs!$E:$E,raw_transmission_costs!$B:$B,$C666,raw_transmission_costs!$A:$A,AN$615)","v":0}]
[]
[null,null,"Total FCDS Build on Existing Tx","MW",{"$f":"SUM(E643:E665)","v":0},{"$f":"SUM(F643:F665)","v":0},0,0,0,{"$f":"SUM(J643:J665)","v":2563},4598,10172.86,13022.32,13388.89,0,14288.880000000001,0,0,0,17359.52,0,0,0,0,0,0,0,0,0,0,0,0,0,0,19648.580000000002,0,0,0,0,0]
[]
[null,null,"Remaining FCDS Capacity"]
[null,null,"Tx Zone","Unit",2015,2016,2017,2018,2019,2020,2021,2022,2023,2024,2025,2026,2027,2028,2029,2030,2031,2032,2033,2034,2035,2036,2037,2038,2039,2040,2041,2042,2043,2044,2045,2046,2047,2048,2049,2050]
[null,null,{"$f":"C616","v":"Greater_Kramer"},"MW",{"$f":"E616-E643","v":0},0,0,0,0,597,562,224,224,224,0,224,0,0,0,224,0,0,0,0,0,0,0,0,0,0,0,0,0,0,200,0,0,0,0,0]
[null,null,"Inyokern_North_Kramer","MW",{"$f":"E617-E644","v":0},0,0,0,0,97,62,24,24,24,0,24,0,0,0,24,0,0,0,0,0,0,0,0,0,0,0,0,0,0,0,0,0,0,0,0]
[null,null,"North_Victor","MW",{"$f":"E618-E645","v":0},0,0,0,0,300,300,0,0,0,0,0,0,0,0,0,0,0,0,0,0,0,0,0,0,0,0,0,0,0,0,0,0,0,0,0]
[null,null,"Humboldt","MW",{"$f":"E619-E646","v":0},0,0,0,0,0,0,0,0,0,0,0,0,0,0,0,0,0,0,0,0,0,0,0,0,0,0,0,0,0,0,0,0,0,0,0]
[null,null,"Sacramento_River","MW",{"$f":"E620-E647","v":0},0,0,0,0,1995.02,1995.02,47.220000000000027,47.220000000000027,0,0,0,0,0,0,0,0,0,0,0,0,0,0,0,0,0,0,0,0,0,0,0,0,0,0,0]
[null,null,"Solano","MW",{"$f":"E621-E648","v":0},0,0,0,0,599,599,135,135,0,0,0,0,0,0,0,0,0,0,0,0,0,0,0,0,0,0,0,0,0,0,0,0,0,0,0]
[null,null,"Solano_subzone","MW",{"$f":"E622-E649","v":0},0,0,0,0,0,0,0,0,0,0,0,0,0,0,0,0,0,0,0,0,0,0,0,0,0,0,0,0,0,0,0,0,0,0,0]
[null,null,"Mountain_Pass_El_Dorado","MW",{"$f":"E623-E650","v":0},0,0,0,0,250,250,250,250,250,0,250,0,0,0,250,0,0,0,0,0,0,0,0,0,0,0,0,0,0,0,0,0,0,0,0]
[null,null,"GLW_VEA","MW",{"$f":"E624-E651","v":0},0,0,0,0,596,596,153.97000000000003,153.97000000000003,153.97000000000003,0,153.97000000000003,0,0,0,153.97000000000003,0,0,0,0,0,0,0,0,0,0,0,0,0,0,153.97000000000003,0,0,0,0,0]
[null,null,"Greater_Imperial","MW",{"$f":"E625-E652","v":0},0,0,0,0,919.08,919.08,919.08,919.08,826.91000000000008,0,826.91000000000008,0,0,0,826.91000000000008,0,0,0,0,0,0,0,0,0,0,0,0,0,0,0,0,0,0,0,0]
[null,null,"Riverside_Palm_Springs","MW",{"$f":"E626-E653","v":0},0,0,0,0,2102,2102,2102,2102,2102,0,2102,0,0,0,765.13000000000011,0,0,0,0,0,0,0,0,0,0,0,0,0,0,70,0,0,0,0,0]
[null,null,"SCADSNV","MW",{"$f":"E627-E654","v":0},0,0,0,0,1871.08,1871.08,1429.05,1429.05,1336.87,0,1336.87,0,0,0,0,0,0,0,0,0,0,0,0,0,0,0,0,0,0,0,0,0,0,0,0]
[null,null,"Kern_Greater_Carrizo","MW",{"$f":"E628-E655","v":0},0,0,0,0,784,784,724,322.74,322.74,0,0,0,0,0,0,0,0,0,0,0,0,0,0,0,0,0,0,0,0,0,0,0,0,0,0]
[null,null,"Carrizo","MW",{"$f":"E629-E656","v":0},0,0,0,0,187,187,187,0,0,0,0,0,0,0,0,0,0,0,0,0,0,0,0,0,0,0,0,0,0,0,0,0,0,0,0]
[null,null,"Central_Valley_North_Los_Banos","MW",{"$f":"E630-E657","v":0},0,0,0,0,790.94,790.94,617.94000000000005,577.25,577.25,0,0,0,0,0,0,0,0,0,0,0,0,0,0,0,0,0,0,0,0,-1.0000000004311005E-2,0,0,0,0,0]
[null,null,"SPGE","MW",{"$f":"E631-E658","v":0},0,0,0,0,674.94,674.94,441.94000000000005,0,0,0,0,0,0,0,0,{"$f":"U618-U645","v":0},0,0,0,0,0,0,0,0,0,0,0,0,0,0,0,0,0,0,0]
[null,null,"Tehachapi","MW",{"$f":"E632-E659","v":0},0,0,0,0,2240,275,0,0,0,0,0,0,0,0,0,{"$f":"U619-U646","v":0},0,0,0,0,0,0,0,0,0,0,0,0,0,0,0,0,0,0,0]
[null,null,"Northern_California_Ex","MW",{"$f":"E633-E660","v":0},0,0,0,0,865.9,865.9,865.9,865.9,865.9,0,865.9,0,0,0,469,{"$f":"U620-U647","v":0},0,0,0,0,0,0,0,0,0,0,0,0,0,0,0,0,0,0,0]
[null,null,"Westlands_Ex","MW",{"$f":"E634-E661","v":0},0,0,0,0,1778.57,1778.57,1778.57,0,0,0,0,0,0,0,0,{"$f":"U620-U647","v":0},0,0,0,0,0,0,0,0,0,0,0,0,0,0,0,0,0,0,0]
[null,null,"Tehachapi_Ex","MW",{"$f":"E635-E662","v":0},0,0,0,0,0,0,0,0,0,0,0,0,0,0,0,{"$f":"U621-U648","v":0},0,0,0,0,0,0,0,0,0,0,0,0,0,0,0,0,0,0,0]
[null,null,"Kramer_Inyokern_Ex","MW",{"$f":"E636-E663","v":0},0,0,0,0,0,0,0,0,0,0,0,0,0,0,0,{"$f":"U622-U649","v":0},0,0,0,0,0,0,0,0,0,0,0,0,0,0,0,0,0,0,0]
[null,null,"Southern_California_Desert_Ex","MW",{"$f":"E637-E664","v":0},0,0,0,0,862,862,0,0,0,0,0,0,0,0,0,{"$f":"U623-U650","v":0},0,0,0,0,0,0,0,0,0,0,0,0,0,0,0,0,0,0,0]
[null,null,"OffshoreWind_UnknownCost","MW",0,0,0,0,0,0,0,0,0,0,0,0,0,0,0,0,0,{"$f":"V638-V665","v":0},0,0,0,0,0,0,0,0,0,0,0,0,0,0,0,0,0,0]
[null,null,"None","MW",{"$f":"E639-E666","v":0},0,0,0,0,0,0,0,0,0,0,0,0,0,0,0,{"$f":"U639-U666","v":0},0,0,0,0,0,0,0,0,0,0,0,0,0,0,0,0,0,0,0]
[]
[]
[null,"Selected Fully Deliverable Resources on New Transmission"]
[]
[null,null,"New FCDS Transmission Build"]
[null,null,"Tx Zone","Unit",2015,2016,2017,2018,2019,2020,2021,2022,2023,2024,2025,2026,2027,2028,2029,2030,2031,2032,2033,2034,2035,2036,2037,2038,2039,2040,2041,2042,2043,2044,2045,2046,2047,2048,2049,2050]
[null,null,{"$f":"C616","v":"Greater_Kramer"},"MW",{"$f":"SUMIFS(raw_transmission_costs!$E:$E,raw_transmission_costs!$B:$B,$C702,raw_transmission_costs!$A:$A,E$615)","v":0},{"$f":"SUMIFS(raw_transmission_costs!$E:$E,raw_transmission_costs!$B:$B,$C702,raw_transmission_costs!$A:$A,F$615)","v":0},{"$f":"SUMIFS(raw_transmission_costs!$E:$E,raw_transmission_costs!$B:$B,$C702,raw_transmission_costs!$A:$A,G$615)","v":0},{"$f":"SUMIFS(raw_transmission_costs!$E:$E,raw_transmission_costs!$B:$B,$C702,raw_transmission_costs!$A:$A,H$615)","v":0},{"$f":"SUMIFS(raw_transmission_costs!$E:$E,raw_transmission_costs!$B:$B,$C702,raw_transmission_costs!$A:$A,I$615)","v":0},{"$f":"SUMIFS(raw_transmission_costs!$E:$E,raw_transmission_costs!$B:$B,$C702,raw_transmission_costs!$A:$A,J$615)","v":0},{"$f":"SUMIFS(raw_transmission_costs!$E:$E,raw_transmission_costs!$B:$B,$C702,raw_transmission_costs!$A:$A,K$615)","v":0},{"$f":"SUMIFS(raw_transmission_costs!$E:$E,raw_transmission_costs!$B:$B,$C702,raw_transmission_costs!$A:$A,L$615)","v":0},{"$f":"SUMIFS(raw_transmission_costs!$E:$E,raw_transmission_costs!$B:$B,$C702,raw_transmission_costs!$A:$A,M$615)","v":0},{"$f":"SUMIFS(raw_transmission_costs!$E:$E,raw_transmission_costs!$B:$B,$C702,raw_transmission_costs!$A:$A,N$615)","v":0},{"$f":"SUMIFS(raw_transmission_costs!$E:$E,raw_transmission_costs!$B:$B,$C702,raw_transmission_costs!$A:$A,O$615)","v":0},{"$f":"SUMIFS(raw_transmission_costs!$E:$E,raw_transmission_costs!$B:$B,$C702,raw_transmission_costs!$A:$A,P$615)","v":0},{"$f":"SUMIFS(raw_transmission_costs!$E:$E,raw_transmission_costs!$B:$B,$C702,raw_transmission_costs!$A:$A,Q$615)","v":0},{"$f":"SUMIFS(raw_transmission_costs!$E:$E,raw_transmission_costs!$B:$B,$C702,raw_transmission_costs!$A:$A,R$615)","v":0},{"$f":"SUMIFS(raw_transmission_costs!$E:$E,raw_transmission_costs!$B:$B,$C702,raw_transmission_costs!$A:$A,S$615)","v":0},{"$f":"SUMIFS(raw_transmission_costs!$E:$E,raw_transmission_costs!$B:$B,$C702,raw_transmission_costs!$A:$A,T$615)","v":0},{"$f":"SUMIFS(raw_transmission_costs!$E:$E,raw_transmission_costs!$B:$B,$C702,raw_transmission_costs!$A:$A,U$615)","v":0},{"$f":"SUMIFS(raw_transmission_costs!$E:$E,raw_transmission_costs!$B:$B,$C702,raw_transmission_costs!$A:$A,V$615)","v":0},{"$f":"SUMIFS(raw_transmission_costs!$E:$E,raw_transmission_costs!$B:$B,$C702,raw_transmission_costs!$A:$A,W$615)","v":0},{"$f":"SUMIFS(raw_transmission_costs!$E:$E,raw_transmission_costs!$B:$B,$C702,raw_transmission_costs!$A:$A,X$615)","v":0},{"$f":"SUMIFS(raw_transmission_costs!$E:$E,raw_transmission_costs!$B:$B,$C702,raw_transmission_costs!$A:$A,Y$615)","v":0},{"$f":"SUMIFS(raw_transmission_costs!$E:$E,raw_transmission_costs!$B:$B,$C702,raw_transmission_costs!$A:$A,Z$615)","v":0},{"$f":"SUMIFS(raw_transmission_costs!$E:$E,raw_transmission_costs!$B:$B,$C702,raw_transmission_costs!$A:$A,AA$615)","v":0},{"$f":"SUMIFS(raw_transmission_costs!$E:$E,raw_transmission_costs!$B:$B,$C702,raw_transmission_costs!$A:$A,AB$615)","v":0},{"$f":"SUMIFS(raw_transmission_costs!$E:$E,raw_transmission_costs!$B:$B,$C702,raw_transmission_costs!$A:$A,AC$615)","v":0},{"$f":"SUMIFS(raw_transmission_costs!$E:$E,raw_transmission_costs!$B:$B,$C702,raw_transmission_costs!$A:$A,AD$615)","v":0},{"$f":"SUMIFS(raw_transmission_costs!$E:$E,raw_transmission_costs!$B:$B,$C702,raw_transmission_costs!$A:$A,AE$615)","v":0},{"$f":"SUMIFS(raw_transmission_costs!$E:$E,raw_transmission_costs!$B:$B,$C702,raw_transmission_costs!$A:$A,AF$615)","v":0},{"$f":"SUMIFS(raw_transmission_costs!$E:$E,raw_transmission_costs!$B:$B,$C702,raw_transmission_costs!$A:$A,AG$615)","v":0},{"$f":"SUMIFS(raw_transmission_costs!$E:$E,raw_transmission_costs!$B:$B,$C702,raw_transmission_costs!$A:$A,AH$615)","v":0},{"$f":"SUMIFS(raw_transmission_costs!$E:$E,raw_transmission_costs!$B:$B,$C702,raw_transmission_costs!$A:$A,AI$615)","v":0},{"$f":"SUMIFS(raw_transmission_costs!$E:$E,raw_transmission_costs!$B:$B,$C702,raw_transmission_costs!$A:$A,AJ$615)","v":0},{"$f":"SUMIFS(raw_transmission_costs!$E:$E,raw_transmission_costs!$B:$B,$C702,raw_transmission_costs!$A:$A,AK$615)","v":0},{"$f":"SUMIFS(raw_transmission_costs!$E:$E,raw_transmission_costs!$B:$B,$C702,raw_transmission_costs!$A:$A,AL$615)","v":0},{"$f":"SUMIFS(raw_transmission_costs!$E:$E,raw_transmission_costs!$B:$B,$C702,raw_transmission_costs!$A:$A,AM$615)","v":0},{"$f":"SUMIFS(raw_transmission_costs!$E:$E,raw_transmission_costs!$B:$B,$C702,raw_transmission_costs!$A:$A,AN$615)","v":0}]
[null,null,"Inyokern_North_Kramer","MW",{"$f":"SUMIFS(raw_transmission_costs!$E:$E,raw_transmission_costs!$B:$B,$C703,raw_transmission_costs!$A:$A,E$615)","v":0},{"$f":"SUMIFS(raw_transmission_costs!$E:$E,raw_transmission_costs!$B:$B,$C703,raw_transmission_costs!$A:$A,F$615)","v":0},{"$f":"SUMIFS(raw_transmission_costs!$E:$E,raw_transmission_costs!$B:$B,$C703,raw_transmission_costs!$A:$A,G$615)","v":0},{"$f":"SUMIFS(raw_transmission_costs!$E:$E,raw_transmission_costs!$B:$B,$C703,raw_transmission_costs!$A:$A,H$615)","v":0},{"$f":"SUMIFS(raw_transmission_costs!$E:$E,raw_transmission_costs!$B:$B,$C703,raw_transmission_costs!$A:$A,I$615)","v":0},{"$f":"SUMIFS(raw_transmission_costs!$E:$E,raw_transmission_costs!$B:$B,$C703,raw_transmission_costs!$A:$A,J$615)","v":0},{"$f":"SUMIFS(raw_transmission_costs!$E:$E,raw_transmission_costs!$B:$B,$C703,raw_transmission_costs!$A:$A,K$615)","v":0},{"$f":"SUMIFS(raw_transmission_costs!$E:$E,raw_transmission_costs!$B:$B,$C703,raw_transmission_costs!$A:$A,L$615)","v":0},{"$f":"SUMIFS(raw_transmission_costs!$E:$E,raw_transmission_costs!$B:$B,$C703,raw_transmission_costs!$A:$A,M$615)","v":0},{"$f":"SUMIFS(raw_transmission_costs!$E:$E,raw_transmission_costs!$B:$B,$C703,raw_transmission_costs!$A:$A,N$615)","v":0},{"$f":"SUMIFS(raw_transmission_costs!$E:$E,raw_transmission_costs!$B:$B,$C703,raw_transmission_costs!$A:$A,O$615)","v":0},{"$f":"SUMIFS(raw_transmission_costs!$E:$E,raw_transmission_costs!$B:$B,$C703,raw_transmission_costs!$A:$A,P$615)","v":0},{"$f":"SUMIFS(raw_transmission_costs!$E:$E,raw_transmission_costs!$B:$B,$C703,raw_transmission_costs!$A:$A,Q$615)","v":0},{"$f":"SUMIFS(raw_transmission_costs!$E:$E,raw_transmission_costs!$B:$B,$C703,raw_transmission_costs!$A:$A,R$615)","v":0},{"$f":"SUMIFS(raw_transmission_costs!$E:$E,raw_transmission_costs!$B:$B,$C703,raw_transmission_costs!$A:$A,S$615)","v":0},{"$f":"SUMIFS(raw_transmission_costs!$E:$E,raw_transmission_costs!$B:$B,$C703,raw_transmission_costs!$A:$A,T$615)","v":0},{"$f":"SUMIFS(raw_transmission_costs!$E:$E,raw_transmission_costs!$B:$B,$C703,raw_transmission_costs!$A:$A,U$615)","v":0},{"$f":"SUMIFS(raw_transmission_costs!$E:$E,raw_transmission_costs!$B:$B,$C703,raw_transmission_costs!$A:$A,V$615)","v":0},{"$f":"SUMIFS(raw_transmission_costs!$E:$E,raw_transmission_costs!$B:$B,$C703,raw_transmission_costs!$A:$A,W$615)","v":0},{"$f":"SUMIFS(raw_transmission_costs!$E:$E,raw_transmission_costs!$B:$B,$C703,raw_transmission_costs!$A:$A,X$615)","v":0},{"$f":"SUMIFS(raw_transmission_costs!$E:$E,raw_transmission_costs!$B:$B,$C703,raw_transmission_costs!$A:$A,Y$615)","v":0},{"$f":"SUMIFS(raw_transmission_costs!$E:$E,raw_transmission_costs!$B:$B,$C703,raw_transmission_costs!$A:$A,Z$615)","v":0},{"$f":"SUMIFS(raw_transmission_costs!$E:$E,raw_transmission_costs!$B:$B,$C703,raw_transmission_costs!$A:$A,AA$615)","v":0},{"$f":"SUMIFS(raw_transmission_costs!$E:$E,raw_transmission_costs!$B:$B,$C703,raw_transmission_costs!$A:$A,AB$615)","v":0},{"$f":"SUMIFS(raw_transmission_costs!$E:$E,raw_transmission_costs!$B:$B,$C703,raw_transmission_costs!$A:$A,AC$615)","v":0},{"$f":"SUMIFS(raw_transmission_costs!$E:$E,raw_transmission_costs!$B:$B,$C703,raw_transmission_costs!$A:$A,AD$615)","v":0},{"$f":"SUMIFS(raw_transmission_costs!$E:$E,raw_transmission_costs!$B:$B,$C703,raw_transmission_costs!$A:$A,AE$615)","v":0},{"$f":"SUMIFS(raw_transmission_costs!$E:$E,raw_transmission_costs!$B:$B,$C703,raw_transmission_costs!$A:$A,AF$615)","v":0},{"$f":"SUMIFS(raw_transmission_costs!$E:$E,raw_transmission_costs!$B:$B,$C703,raw_transmission_costs!$A:$A,AG$615)","v":0},{"$f":"SUMIFS(raw_transmission_costs!$E:$E,raw_transmission_costs!$B:$B,$C703,raw_transmission_costs!$A:$A,AH$615)","v":0},{"$f":"SUMIFS(raw_transmission_costs!$E:$E,raw_transmission_costs!$B:$B,$C703,raw_transmission_costs!$A:$A,AI$615)","v":0},{"$f":"SUMIFS(raw_transmission_costs!$E:$E,raw_transmission_costs!$B:$B,$C703,raw_transmission_costs!$A:$A,AJ$615)","v":0},{"$f":"SUMIFS(raw_transmission_costs!$E:$E,raw_transmission_costs!$B:$B,$C703,raw_transmission_costs!$A:$A,AK$615)","v":0},{"$f":"SUMIFS(raw_transmission_costs!$E:$E,raw_transmission_costs!$B:$B,$C703,raw_transmission_costs!$A:$A,AL$615)","v":0},{"$f":"SUMIFS(raw_transmission_costs!$E:$E,raw_transmission_costs!$B:$B,$C703,raw_transmission_costs!$A:$A,AM$615)","v":0},{"$f":"SUMIFS(raw_transmission_costs!$E:$E,raw_transmission_costs!$B:$B,$C703,raw_transmission_costs!$A:$A,AN$615)","v":0}]
[null,null,"North_Victor","MW",{"$f":"SUMIFS(raw_transmission_costs!$E:$E,raw_transmission_costs!$B:$B,$C704,raw_transmission_costs!$A:$A,E$615)","v":0},{"$f":"SUMIFS(raw_transmission_costs!$E:$E,raw_transmission_costs!$B:$B,$C704,raw_transmission_costs!$A:$A,F$615)","v":0},{"$f":"SUMIFS(raw_transmission_costs!$E:$E,raw_transmission_costs!$B:$B,$C704,raw_transmission_costs!$A:$A,G$615)","v":0},{"$f":"SUMIFS(raw_transmission_costs!$E:$E,raw_transmission_costs!$B:$B,$C704,raw_transmission_costs!$A:$A,H$615)","v":0},{"$f":"SUMIFS(raw_transmission_costs!$E:$E,raw_transmission_costs!$B:$B,$C704,raw_transmission_costs!$A:$A,I$615)","v":0},{"$f":"SUMIFS(raw_transmission_costs!$E:$E,raw_transmission_costs!$B:$B,$C704,raw_transmission_costs!$A:$A,J$615)","v":0},{"$f":"SUMIFS(raw_transmission_costs!$E:$E,raw_transmission_costs!$B:$B,$C704,raw_transmission_costs!$A:$A,K$615)","v":0},{"$f":"SUMIFS(raw_transmission_costs!$E:$E,raw_transmission_costs!$B:$B,$C704,raw_transmission_costs!$A:$A,L$615)","v":0},{"$f":"SUMIFS(raw_transmission_costs!$E:$E,raw_transmission_costs!$B:$B,$C704,raw_transmission_costs!$A:$A,M$615)","v":0},{"$f":"SUMIFS(raw_transmission_costs!$E:$E,raw_transmission_costs!$B:$B,$C704,raw_transmission_costs!$A:$A,N$615)","v":0},{"$f":"SUMIFS(raw_transmission_costs!$E:$E,raw_transmission_costs!$B:$B,$C704,raw_transmission_costs!$A:$A,O$615)","v":0},{"$f":"SUMIFS(raw_transmission_costs!$E:$E,raw_transmission_costs!$B:$B,$C704,raw_transmission_costs!$A:$A,P$615)","v":0},{"$f":"SUMIFS(raw_transmission_costs!$E:$E,raw_transmission_costs!$B:$B,$C704,raw_transmission_costs!$A:$A,Q$615)","v":0},{"$f":"SUMIFS(raw_transmission_costs!$E:$E,raw_transmission_costs!$B:$B,$C704,raw_transmission_costs!$A:$A,R$615)","v":0},{"$f":"SUMIFS(raw_transmission_costs!$E:$E,raw_transmission_costs!$B:$B,$C704,raw_transmission_costs!$A:$A,S$615)","v":0},{"$f":"SUMIFS(raw_transmission_costs!$E:$E,raw_transmission_costs!$B:$B,$C704,raw_transmission_costs!$A:$A,T$615)","v":0},{"$f":"SUMIFS(raw_transmission_costs!$E:$E,raw_transmission_costs!$B:$B,$C704,raw_transmission_costs!$A:$A,U$615)","v":0},{"$f":"SUMIFS(raw_transmission_costs!$E:$E,raw_transmission_costs!$B:$B,$C704,raw_transmission_costs!$A:$A,V$615)","v":0},{"$f":"SUMIFS(raw_transmission_costs!$E:$E,raw_transmission_costs!$B:$B,$C704,raw_transmission_costs!$A:$A,W$615)","v":0},{"$f":"SUMIFS(raw_transmission_costs!$E:$E,raw_transmission_costs!$B:$B,$C704,raw_transmission_costs!$A:$A,X$615)","v":0},{"$f":"SUMIFS(raw_transmission_costs!$E:$E,raw_transmission_costs!$B:$B,$C704,raw_transmission_costs!$A:$A,Y$615)","v":0},{"$f":"SUMIFS(raw_transmission_costs!$E:$E,raw_transmission_costs!$B:$B,$C704,raw_transmission_costs!$A:$A,Z$615)","v":0},{"$f":"SUMIFS(raw_transmission_costs!$E:$E,raw_transmission_costs!$B:$B,$C704,raw_transmission_costs!$A:$A,AA$615)","v":0},{"$f":"SUMIFS(raw_transmission_costs!$E:$E,raw_transmission_costs!$B:$B,$C704,raw_transmission_costs!$A:$A,AB$615)","v":0},{"$f":"SUMIFS(raw_transmission_costs!$E:$E,raw_transmission_costs!$B:$B,$C704,raw_transmission_costs!$A:$A,AC$615)","v":0},{"$f":"SUMIFS(raw_transmission_costs!$E:$E,raw_transmission_costs!$B:$B,$C704,raw_transmission_costs!$A:$A,AD$615)","v":0},{"$f":"SUMIFS(raw_transmission_costs!$E:$E,raw_transmission_costs!$B:$B,$C704,raw_transmission_costs!$A:$A,AE$615)","v":0},{"$f":"SUMIFS(raw_transmission_costs!$E:$E,raw_transmission_costs!$B:$B,$C704,raw_transmission_costs!$A:$A,AF$615)","v":0},{"$f":"SUMIFS(raw_transmission_costs!$E:$E,raw_transmission_costs!$B:$B,$C704,raw_transmission_costs!$A:$A,AG$615)","v":0},{"$f":"SUMIFS(raw_transmission_costs!$E:$E,raw_transmission_costs!$B:$B,$C704,raw_transmission_costs!$A:$A,AH$615)","v":0},{"$f":"SUMIFS(raw_transmission_costs!$E:$E,raw_transmission_costs!$B:$B,$C704,raw_transmission_costs!$A:$A,AI$615)","v":0},{"$f":"SUMIFS(raw_transmission_costs!$E:$E,raw_transmission_costs!$B:$B,$C704,raw_transmission_costs!$A:$A,AJ$615)","v":0},{"$f":"SUMIFS(raw_transmission_costs!$E:$E,raw_transmission_costs!$B:$B,$C704,raw_transmission_costs!$A:$A,AK$615)","v":0},{"$f":"SUMIFS(raw_transmission_costs!$E:$E,raw_transmission_costs!$B:$B,$C704,raw_transmission_costs!$A:$A,AL$615)","v":0},{"$f":"SUMIFS(raw_transmission_costs!$E:$E,raw_transmission_costs!$B:$B,$C704,raw_transmission_costs!$A:$A,AM$615)","v":0},{"$f":"SUMIFS(raw_transmission_costs!$E:$E,raw_transmission_costs!$B:$B,$C704,raw_transmission_costs!$A:$A,AN$615)","v":0}]
[null,null,"Humboldt","MW",{"$f":"SUMIFS(raw_transmission_costs!$E:$E,raw_transmission_costs!$B:$B,$C705,raw_transmission_costs!$A:$A,E$615)","v":0},{"$f":"SUMIFS(raw_transmission_costs!$E:$E,raw_transmission_costs!$B:$B,$C705,raw_transmission_costs!$A:$A,F$615)","v":0},{"$f":"SUMIFS(raw_transmission_costs!$E:$E,raw_transmission_costs!$B:$B,$C705,raw_transmission_costs!$A:$A,G$615)","v":0},{"$f":"SUMIFS(raw_transmission_costs!$E:$E,raw_transmission_costs!$B:$B,$C705,raw_transmission_costs!$A:$A,H$615)","v":0},{"$f":"SUMIFS(raw_transmission_costs!$E:$E,raw_transmission_costs!$B:$B,$C705,raw_transmission_costs!$A:$A,I$615)","v":0},{"$f":"SUMIFS(raw_transmission_costs!$E:$E,raw_transmission_costs!$B:$B,$C705,raw_transmission_costs!$A:$A,J$615)","v":0},{"$f":"SUMIFS(raw_transmission_costs!$E:$E,raw_transmission_costs!$B:$B,$C705,raw_transmission_costs!$A:$A,K$615)","v":0},{"$f":"SUMIFS(raw_transmission_costs!$E:$E,raw_transmission_costs!$B:$B,$C705,raw_transmission_costs!$A:$A,L$615)","v":0},{"$f":"SUMIFS(raw_transmission_costs!$E:$E,raw_transmission_costs!$B:$B,$C705,raw_transmission_costs!$A:$A,M$615)","v":0},{"$f":"SUMIFS(raw_transmission_costs!$E:$E,raw_transmission_costs!$B:$B,$C705,raw_transmission_costs!$A:$A,N$615)","v":0},{"$f":"SUMIFS(raw_transmission_costs!$E:$E,raw_transmission_costs!$B:$B,$C705,raw_transmission_costs!$A:$A,O$615)","v":0},{"$f":"SUMIFS(raw_transmission_costs!$E:$E,raw_transmission_costs!$B:$B,$C705,raw_transmission_costs!$A:$A,P$615)","v":0},{"$f":"SUMIFS(raw_transmission_costs!$E:$E,raw_transmission_costs!$B:$B,$C705,raw_transmission_costs!$A:$A,Q$615)","v":0},{"$f":"SUMIFS(raw_transmission_costs!$E:$E,raw_transmission_costs!$B:$B,$C705,raw_transmission_costs!$A:$A,R$615)","v":0},{"$f":"SUMIFS(raw_transmission_costs!$E:$E,raw_transmission_costs!$B:$B,$C705,raw_transmission_costs!$A:$A,S$615)","v":0},{"$f":"SUMIFS(raw_transmission_costs!$E:$E,raw_transmission_costs!$B:$B,$C705,raw_transmission_costs!$A:$A,T$615)","v":0},{"$f":"SUMIFS(raw_transmission_costs!$E:$E,raw_transmission_costs!$B:$B,$C705,raw_transmission_costs!$A:$A,U$615)","v":0},{"$f":"SUMIFS(raw_transmission_costs!$E:$E,raw_transmission_costs!$B:$B,$C705,raw_transmission_costs!$A:$A,V$615)","v":0},{"$f":"SUMIFS(raw_transmission_costs!$E:$E,raw_transmission_costs!$B:$B,$C705,raw_transmission_costs!$A:$A,W$615)","v":0},{"$f":"SUMIFS(raw_transmission_costs!$E:$E,raw_transmission_costs!$B:$B,$C705,raw_transmission_costs!$A:$A,X$615)","v":0},{"$f":"SUMIFS(raw_transmission_costs!$E:$E,raw_transmission_costs!$B:$B,$C705,raw_transmission_costs!$A:$A,Y$615)","v":0},{"$f":"SUMIFS(raw_transmission_costs!$E:$E,raw_transmission_costs!$B:$B,$C705,raw_transmission_costs!$A:$A,Z$615)","v":0},{"$f":"SUMIFS(raw_transmission_costs!$E:$E,raw_transmission_costs!$B:$B,$C705,raw_transmission_costs!$A:$A,AA$615)","v":0},{"$f":"SUMIFS(raw_transmission_costs!$E:$E,raw_transmission_costs!$B:$B,$C705,raw_transmission_costs!$A:$A,AB$615)","v":0},{"$f":"SUMIFS(raw_transmission_costs!$E:$E,raw_transmission_costs!$B:$B,$C705,raw_transmission_costs!$A:$A,AC$615)","v":0},{"$f":"SUMIFS(raw_transmission_costs!$E:$E,raw_transmission_costs!$B:$B,$C705,raw_transmission_costs!$A:$A,AD$615)","v":0},{"$f":"SUMIFS(raw_transmission_costs!$E:$E,raw_transmission_costs!$B:$B,$C705,raw_transmission_costs!$A:$A,AE$615)","v":0},{"$f":"SUMIFS(raw_transmission_costs!$E:$E,raw_transmission_costs!$B:$B,$C705,raw_transmission_costs!$A:$A,AF$615)","v":0},{"$f":"SUMIFS(raw_transmission_costs!$E:$E,raw_transmission_costs!$B:$B,$C705,raw_transmission_costs!$A:$A,AG$615)","v":0},{"$f":"SUMIFS(raw_transmission_costs!$E:$E,raw_transmission_costs!$B:$B,$C705,raw_transmission_costs!$A:$A,AH$615)","v":0},{"$f":"SUMIFS(raw_transmission_costs!$E:$E,raw_transmission_costs!$B:$B,$C705,raw_transmission_costs!$A:$A,AI$615)","v":0},{"$f":"SUMIFS(raw_transmission_costs!$E:$E,raw_transmission_costs!$B:$B,$C705,raw_transmission_costs!$A:$A,AJ$615)","v":0},{"$f":"SUMIFS(raw_transmission_costs!$E:$E,raw_transmission_costs!$B:$B,$C705,raw_transmission_costs!$A:$A,AK$615)","v":0},{"$f":"SUMIFS(raw_transmission_costs!$E:$E,raw_transmission_costs!$B:$B,$C705,raw_transmission_costs!$A:$A,AL$615)","v":0},{"$f":"SUMIFS(raw_transmission_costs!$E:$E,raw_transmission_costs!$B:$B,$C705,raw_transmission_costs!$A:$A,AM$615)","v":0},{"$f":"SUMIFS(raw_transmission_costs!$E:$E,raw_transmission_costs!$B:$B,$C705,raw_transmission_costs!$A:$A,AN$615)","v":0}]
[null,null,"Sacramento_River","MW",{"$f":"SUMIFS(raw_transmission_costs!$E:$E,raw_transmission_costs!$B:$B,$C706,raw_transmission_costs!$A:$A,E$615)","v":0},{"$f":"SUMIFS(raw_transmission_costs!$E:$E,raw_transmission_costs!$B:$B,$C706,raw_transmission_costs!$A:$A,F$615)","v":0},{"$f":"SUMIFS(raw_transmission_costs!$E:$E,raw_transmission_costs!$B:$B,$C706,raw_transmission_costs!$A:$A,G$615)","v":0},{"$f":"SUMIFS(raw_transmission_costs!$E:$E,raw_transmission_costs!$B:$B,$C706,raw_transmission_costs!$A:$A,H$615)","v":0},{"$f":"SUMIFS(raw_transmission_costs!$E:$E,raw_transmission_costs!$B:$B,$C706,raw_transmission_costs!$A:$A,I$615)","v":0},{"$f":"SUMIFS(raw_transmission_costs!$E:$E,raw_transmission_costs!$B:$B,$C706,raw_transmission_costs!$A:$A,J$615)","v":0},{"$f":"SUMIFS(raw_transmission_costs!$E:$E,raw_transmission_costs!$B:$B,$C706,raw_transmission_costs!$A:$A,K$615)","v":0},{"$f":"SUMIFS(raw_transmission_costs!$E:$E,raw_transmission_costs!$B:$B,$C706,raw_transmission_costs!$A:$A,L$615)","v":0},{"$f":"SUMIFS(raw_transmission_costs!$E:$E,raw_transmission_costs!$B:$B,$C706,raw_transmission_costs!$A:$A,M$615)","v":0},{"$f":"SUMIFS(raw_transmission_costs!$E:$E,raw_transmission_costs!$B:$B,$C706,raw_transmission_costs!$A:$A,N$615)","v":87.78},{"$f":"SUMIFS(raw_transmission_costs!$E:$E,raw_transmission_costs!$B:$B,$C706,raw_transmission_costs!$A:$A,O$615)","v":0},{"$f":"SUMIFS(raw_transmission_costs!$E:$E,raw_transmission_costs!$B:$B,$C706,raw_transmission_costs!$A:$A,P$615)","v":87.78},{"$f":"SUMIFS(raw_transmission_costs!$E:$E,raw_transmission_costs!$B:$B,$C706,raw_transmission_costs!$A:$A,Q$615)","v":0},{"$f":"SUMIFS(raw_transmission_costs!$E:$E,raw_transmission_costs!$B:$B,$C706,raw_transmission_costs!$A:$A,R$615)","v":0},{"$f":"SUMIFS(raw_transmission_costs!$E:$E,raw_transmission_costs!$B:$B,$C706,raw_transmission_costs!$A:$A,S$615)","v":0},{"$f":"SUMIFS(raw_transmission_costs!$E:$E,raw_transmission_costs!$B:$B,$C706,raw_transmission_costs!$A:$A,T$615)","v":1126.56},{"$f":"SUMIFS(raw_transmission_costs!$E:$E,raw_transmission_costs!$B:$B,$C706,raw_transmission_costs!$A:$A,U$615)","v":0},{"$f":"SUMIFS(raw_transmission_costs!$E:$E,raw_transmission_costs!$B:$B,$C706,raw_transmission_costs!$A:$A,V$615)","v":0},{"$f":"SUMIFS(raw_transmission_costs!$E:$E,raw_transmission_costs!$B:$B,$C706,raw_transmission_costs!$A:$A,W$615)","v":0},{"$f":"SUMIFS(raw_transmission_costs!$E:$E,raw_transmission_costs!$B:$B,$C706,raw_transmission_costs!$A:$A,X$615)","v":0},{"$f":"SUMIFS(raw_transmission_costs!$E:$E,raw_transmission_costs!$B:$B,$C706,raw_transmission_costs!$A:$A,Y$615)","v":0},{"$f":"SUMIFS(raw_transmission_costs!$E:$E,raw_transmission_costs!$B:$B,$C706,raw_transmission_costs!$A:$A,Z$615)","v":0},{"$f":"SUMIFS(raw_transmission_costs!$E:$E,raw_transmission_costs!$B:$B,$C706,raw_transmission_costs!$A:$A,AA$615)","v":0},{"$f":"SUMIFS(raw_transmission_costs!$E:$E,raw_transmission_costs!$B:$B,$C706,raw_transmission_costs!$A:$A,AB$615)","v":0},{"$f":"SUMIFS(raw_transmission_costs!$E:$E,raw_transmission_costs!$B:$B,$C706,raw_transmission_costs!$A:$A,AC$615)","v":0},{"$f":"SUMIFS(raw_transmission_costs!$E:$E,raw_transmission_costs!$B:$B,$C706,raw_transmission_costs!$A:$A,AD$615)","v":0},{"$f":"SUMIFS(raw_transmission_costs!$E:$E,raw_transmission_costs!$B:$B,$C706,raw_transmission_costs!$A:$A,AE$615)","v":0},{"$f":"SUMIFS(raw_transmission_costs!$E:$E,raw_transmission_costs!$B:$B,$C706,raw_transmission_costs!$A:$A,AF$615)","v":0},{"$f":"SUMIFS(raw_transmission_costs!$E:$E,raw_transmission_costs!$B:$B,$C706,raw_transmission_costs!$A:$A,AG$615)","v":0},{"$f":"SUMIFS(raw_transmission_costs!$E:$E,raw_transmission_costs!$B:$B,$C706,raw_transmission_costs!$A:$A,AH$615)","v":0},{"$f":"SUMIFS(raw_transmission_costs!$E:$E,raw_transmission_costs!$B:$B,$C706,raw_transmission_costs!$A:$A,AI$615)","v":22587.88},{"$f":"SUMIFS(raw_transmission_costs!$E:$E,raw_transmission_costs!$B:$B,$C706,raw_transmission_costs!$A:$A,AJ$615)","v":0},{"$f":"SUMIFS(raw_transmission_costs!$E:$E,raw_transmission_costs!$B:$B,$C706,raw_transmission_costs!$A:$A,AK$615)","v":0},{"$f":"SUMIFS(raw_transmission_costs!$E:$E,raw_transmission_costs!$B:$B,$C706,raw_transmission_costs!$A:$A,AL$615)","v":0},{"$f":"SUMIFS(raw_transmission_costs!$E:$E,raw_transmission_costs!$B:$B,$C706,raw_transmission_costs!$A:$A,AM$615)","v":0},{"$f":"SUMIFS(raw_transmission_costs!$E:$E,raw_transmission_costs!$B:$B,$C706,raw_transmission_costs!$A:$A,AN$615)","v":0}]
[null,null,"Solano","MW",{"$f":"SUMIFS(raw_transmission_costs!$E:$E,raw_transmission_costs!$B:$B,$C707,raw_transmission_costs!$A:$A,E$615)","v":0},{"$f":"SUMIFS(raw_transmission_costs!$E:$E,raw_transmission_costs!$B:$B,$C707,raw_transmission_costs!$A:$A,F$615)","v":0},{"$f":"SUMIFS(raw_transmission_costs!$E:$E,raw_transmission_costs!$B:$B,$C707,raw_transmission_costs!$A:$A,G$615)","v":0},{"$f":"SUMIFS(raw_transmission_costs!$E:$E,raw_transmission_costs!$B:$B,$C707,raw_transmission_costs!$A:$A,H$615)","v":0},{"$f":"SUMIFS(raw_transmission_costs!$E:$E,raw_transmission_costs!$B:$B,$C707,raw_transmission_costs!$A:$A,I$615)","v":0},{"$f":"SUMIFS(raw_transmission_costs!$E:$E,raw_transmission_costs!$B:$B,$C707,raw_transmission_costs!$A:$A,J$615)","v":0},{"$f":"SUMIFS(raw_transmission_costs!$E:$E,raw_transmission_costs!$B:$B,$C707,raw_transmission_costs!$A:$A,K$615)","v":0},{"$f":"SUMIFS(raw_transmission_costs!$E:$E,raw_transmission_costs!$B:$B,$C707,raw_transmission_costs!$A:$A,L$615)","v":0},{"$f":"SUMIFS(raw_transmission_costs!$E:$E,raw_transmission_costs!$B:$B,$C707,raw_transmission_costs!$A:$A,M$615)","v":0},{"$f":"SUMIFS(raw_transmission_costs!$E:$E,raw_transmission_costs!$B:$B,$C707,raw_transmission_costs!$A:$A,N$615)","v":0},{"$f":"SUMIFS(raw_transmission_costs!$E:$E,raw_transmission_costs!$B:$B,$C707,raw_transmission_costs!$A:$A,O$615)","v":0},{"$f":"SUMIFS(raw_transmission_costs!$E:$E,raw_transmission_costs!$B:$B,$C707,raw_transmission_costs!$A:$A,P$615)","v":0},{"$f":"SUMIFS(raw_transmission_costs!$E:$E,raw_transmission_costs!$B:$B,$C707,raw_transmission_costs!$A:$A,Q$615)","v":0},{"$f":"SUMIFS(raw_transmission_costs!$E:$E,raw_transmission_costs!$B:$B,$C707,raw_transmission_costs!$A:$A,R$615)","v":0},{"$f":"SUMIFS(raw_transmission_costs!$E:$E,raw_transmission_costs!$B:$B,$C707,raw_transmission_costs!$A:$A,S$615)","v":0},{"$f":"SUMIFS(raw_transmission_costs!$E:$E,raw_transmission_costs!$B:$B,$C707,raw_transmission_costs!$A:$A,T$615)","v":0},{"$f":"SUMIFS(raw_transmission_costs!$E:$E,raw_transmission_costs!$B:$B,$C707,raw_transmission_costs!$A:$A,U$615)","v":0},{"$f":"SUMIFS(raw_transmission_costs!$E:$E,raw_transmission_costs!$B:$B,$C707,raw_transmission_costs!$A:$A,V$615)","v":0},{"$f":"SUMIFS(raw_transmission_costs!$E:$E,raw_transmission_costs!$B:$B,$C707,raw_transmission_costs!$A:$A,W$615)","v":0},{"$f":"SUMIFS(raw_transmission_costs!$E:$E,raw_transmission_costs!$B:$B,$C707,raw_transmission_costs!$A:$A,X$615)","v":0},{"$f":"SUMIFS(raw_transmission_costs!$E:$E,raw_transmission_costs!$B:$B,$C707,raw_transmission_costs!$A:$A,Y$615)","v":0},{"$f":"SUMIFS(raw_transmission_costs!$E:$E,raw_transmission_costs!$B:$B,$C707,raw_transmission_costs!$A:$A,Z$615)","v":0},{"$f":"SUMIFS(raw_transmission_costs!$E:$E,raw_transmission_costs!$B:$B,$C707,raw_transmission_costs!$A:$A,AA$615)","v":0},{"$f":"SUMIFS(raw_transmission_costs!$E:$E,raw_transmission_costs!$B:$B,$C707,raw_transmission_costs!$A:$A,AB$615)","v":0},{"$f":"SUMIFS(raw_transmission_costs!$E:$E,raw_transmission_costs!$B:$B,$C707,raw_transmission_costs!$A:$A,AC$615)","v":0},{"$f":"SUMIFS(raw_transmission_costs!$E:$E,raw_transmission_costs!$B:$B,$C707,raw_transmission_costs!$A:$A,AD$615)","v":0},{"$f":"SUMIFS(raw_transmission_costs!$E:$E,raw_transmission_costs!$B:$B,$C707,raw_transmission_costs!$A:$A,AE$615)","v":0},{"$f":"SUMIFS(raw_transmission_costs!$E:$E,raw_transmission_costs!$B:$B,$C707,raw_transmission_costs!$A:$A,AF$615)","v":0},{"$f":"SUMIFS(raw_transmission_costs!$E:$E,raw_transmission_costs!$B:$B,$C707,raw_transmission_costs!$A:$A,AG$615)","v":0},{"$f":"SUMIFS(raw_transmission_costs!$E:$E,raw_transmission_costs!$B:$B,$C707,raw_transmission_costs!$A:$A,AH$615)","v":0},{"$f":"SUMIFS(raw_transmission_costs!$E:$E,raw_transmission_costs!$B:$B,$C707,raw_transmission_costs!$A:$A,AI$615)","v":0},{"$f":"SUMIFS(raw_transmission_costs!$E:$E,raw_transmission_costs!$B:$B,$C707,raw_transmission_costs!$A:$A,AJ$615)","v":0},{"$f":"SUMIFS(raw_transmission_costs!$E:$E,raw_transmission_costs!$B:$B,$C707,raw_transmission_costs!$A:$A,AK$615)","v":0},{"$f":"SUMIFS(raw_transmission_costs!$E:$E,raw_transmission_costs!$B:$B,$C707,raw_transmission_costs!$A:$A,AL$615)","v":0},{"$f":"SUMIFS(raw_transmission_costs!$E:$E,raw_transmission_costs!$B:$B,$C707,raw_transmission_costs!$A:$A,AM$615)","v":0},{"$f":"SUMIFS(raw_transmission_costs!$E:$E,raw_transmission_costs!$B:$B,$C707,raw_transmission_costs!$A:$A,AN$615)","v":0}]
[null,null,"Solano_subzone","MW",{"$f":"SUMIFS(raw_transmission_costs!$E:$E,raw_transmission_costs!$B:$B,$C708,raw_transmission_costs!$A:$A,E$615)","v":0},{"$f":"SUMIFS(raw_transmission_costs!$E:$E,raw_transmission_costs!$B:$B,$C708,raw_transmission_costs!$A:$A,F$615)","v":0},{"$f":"SUMIFS(raw_transmission_costs!$E:$E,raw_transmission_costs!$B:$B,$C708,raw_transmission_costs!$A:$A,G$615)","v":0},{"$f":"SUMIFS(raw_transmission_costs!$E:$E,raw_transmission_costs!$B:$B,$C708,raw_transmission_costs!$A:$A,H$615)","v":0},{"$f":"SUMIFS(raw_transmission_costs!$E:$E,raw_transmission_costs!$B:$B,$C708,raw_transmission_costs!$A:$A,I$615)","v":0},{"$f":"SUMIFS(raw_transmission_costs!$E:$E,raw_transmission_costs!$B:$B,$C708,raw_transmission_costs!$A:$A,J$615)","v":0},{"$f":"SUMIFS(raw_transmission_costs!$E:$E,raw_transmission_costs!$B:$B,$C708,raw_transmission_costs!$A:$A,K$615)","v":0},{"$f":"SUMIFS(raw_transmission_costs!$E:$E,raw_transmission_costs!$B:$B,$C708,raw_transmission_costs!$A:$A,L$615)","v":0},{"$f":"SUMIFS(raw_transmission_costs!$E:$E,raw_transmission_costs!$B:$B,$C708,raw_transmission_costs!$A:$A,M$615)","v":0},{"$f":"SUMIFS(raw_transmission_costs!$E:$E,raw_transmission_costs!$B:$B,$C708,raw_transmission_costs!$A:$A,N$615)","v":0},{"$f":"SUMIFS(raw_transmission_costs!$E:$E,raw_transmission_costs!$B:$B,$C708,raw_transmission_costs!$A:$A,O$615)","v":0},{"$f":"SUMIFS(raw_transmission_costs!$E:$E,raw_transmission_costs!$B:$B,$C708,raw_transmission_costs!$A:$A,P$615)","v":0},{"$f":"SUMIFS(raw_transmission_costs!$E:$E,raw_transmission_costs!$B:$B,$C708,raw_transmission_costs!$A:$A,Q$615)","v":0},{"$f":"SUMIFS(raw_transmission_costs!$E:$E,raw_transmission_costs!$B:$B,$C708,raw_transmission_costs!$A:$A,R$615)","v":0},{"$f":"SUMIFS(raw_transmission_costs!$E:$E,raw_transmission_costs!$B:$B,$C708,raw_transmission_costs!$A:$A,S$615)","v":0},{"$f":"SUMIFS(raw_transmission_costs!$E:$E,raw_transmission_costs!$B:$B,$C708,raw_transmission_costs!$A:$A,T$615)","v":0},{"$f":"SUMIFS(raw_transmission_costs!$E:$E,raw_transmission_costs!$B:$B,$C708,raw_transmission_costs!$A:$A,U$615)","v":0},{"$f":"SUMIFS(raw_transmission_costs!$E:$E,raw_transmission_costs!$B:$B,$C708,raw_transmission_costs!$A:$A,V$615)","v":0},{"$f":"SUMIFS(raw_transmission_costs!$E:$E,raw_transmission_costs!$B:$B,$C708,raw_transmission_costs!$A:$A,W$615)","v":0},{"$f":"SUMIFS(raw_transmission_costs!$E:$E,raw_transmission_costs!$B:$B,$C708,raw_transmission_costs!$A:$A,X$615)","v":0},{"$f":"SUMIFS(raw_transmission_costs!$E:$E,raw_transmission_costs!$B:$B,$C708,raw_transmission_costs!$A:$A,Y$615)","v":0},{"$f":"SUMIFS(raw_transmission_costs!$E:$E,raw_transmission_costs!$B:$B,$C708,raw_transmission_costs!$A:$A,Z$615)","v":0},{"$f":"SUMIFS(raw_transmission_costs!$E:$E,raw_transmission_costs!$B:$B,$C708,raw_transmission_costs!$A:$A,AA$615)","v":0},{"$f":"SUMIFS(raw_transmission_costs!$E:$E,raw_transmission_costs!$B:$B,$C708,raw_transmission_costs!$A:$A,AB$615)","v":0},{"$f":"SUMIFS(raw_transmission_costs!$E:$E,raw_transmission_costs!$B:$B,$C708,raw_transmission_costs!$A:$A,AC$615)","v":0},{"$f":"SUMIFS(raw_transmission_costs!$E:$E,raw_transmission_costs!$B:$B,$C708,raw_transmission_costs!$A:$A,AD$615)","v":0},{"$f":"SUMIFS(raw_transmission_costs!$E:$E,raw_transmission_costs!$B:$B,$C708,raw_transmission_costs!$A:$A,AE$615)","v":0},{"$f":"SUMIFS(raw_transmission_costs!$E:$E,raw_transmission_costs!$B:$B,$C708,raw_transmission_costs!$A:$A,AF$615)","v":0},{"$f":"SUMIFS(raw_transmission_costs!$E:$E,raw_transmission_costs!$B:$B,$C708,raw_transmission_costs!$A:$A,AG$615)","v":0},{"$f":"SUMIFS(raw_transmission_costs!$E:$E,raw_transmission_costs!$B:$B,$C708,raw_transmission_costs!$A:$A,AH$615)","v":0},{"$f":"SUMIFS(raw_transmission_costs!$E:$E,raw_transmission_costs!$B:$B,$C708,raw_transmission_costs!$A:$A,AI$615)","v":0},{"$f":"SUMIFS(raw_transmission_costs!$E:$E,raw_transmission_costs!$B:$B,$C708,raw_transmission_costs!$A:$A,AJ$615)","v":0},{"$f":"SUMIFS(raw_transmission_costs!$E:$E,raw_transmission_costs!$B:$B,$C708,raw_transmission_costs!$A:$A,AK$615)","v":0},{"$f":"SUMIFS(raw_transmission_costs!$E:$E,raw_transmission_costs!$B:$B,$C708,raw_transmission_costs!$A:$A,AL$615)","v":0},{"$f":"SUMIFS(raw_transmission_costs!$E:$E,raw_transmission_costs!$B:$B,$C708,raw_transmission_costs!$A:$A,AM$615)","v":0},{"$f":"SUMIFS(raw_transmission_costs!$E:$E,raw_transmission_costs!$B:$B,$C708,raw_transmission_costs!$A:$A,AN$615)","v":0}]
[null,null,"Mountain_Pass_El_Dorado","MW",{"$f":"SUMIFS(raw_transmission_costs!$E:$E,raw_transmission_costs!$B:$B,$C709,raw_transmission_costs!$A:$A,E$615)","v":0},{"$f":"SUMIFS(raw_transmission_costs!$E:$E,raw_transmission_costs!$B:$B,$C709,raw_transmission_costs!$A:$A,F$615)","v":0},{"$f":"SUMIFS(raw_transmission_costs!$E:$E,raw_transmission_costs!$B:$B,$C709,raw_transmission_costs!$A:$A,G$615)","v":0},{"$f":"SUMIFS(raw_transmission_costs!$E:$E,raw_transmission_costs!$B:$B,$C709,raw_transmission_costs!$A:$A,H$615)","v":0},{"$f":"SUMIFS(raw_transmission_costs!$E:$E,raw_transmission_costs!$B:$B,$C709,raw_transmission_costs!$A:$A,I$615)","v":0},{"$f":"SUMIFS(raw_transmission_costs!$E:$E,raw_transmission_costs!$B:$B,$C709,raw_transmission_costs!$A:$A,J$615)","v":0},{"$f":"SUMIFS(raw_transmission_costs!$E:$E,raw_transmission_costs!$B:$B,$C709,raw_transmission_costs!$A:$A,K$615)","v":0},{"$f":"SUMIFS(raw_transmission_costs!$E:$E,raw_transmission_costs!$B:$B,$C709,raw_transmission_costs!$A:$A,L$615)","v":0},{"$f":"SUMIFS(raw_transmission_costs!$E:$E,raw_transmission_costs!$B:$B,$C709,raw_transmission_costs!$A:$A,M$615)","v":0},{"$f":"SUMIFS(raw_transmission_costs!$E:$E,raw_transmission_costs!$B:$B,$C709,raw_transmission_costs!$A:$A,N$615)","v":0},{"$f":"SUMIFS(raw_transmission_costs!$E:$E,raw_transmission_costs!$B:$B,$C709,raw_transmission_costs!$A:$A,O$615)","v":0},{"$f":"SUMIFS(raw_transmission_costs!$E:$E,raw_transmission_costs!$B:$B,$C709,raw_transmission_costs!$A:$A,P$615)","v":0},{"$f":"SUMIFS(raw_transmission_costs!$E:$E,raw_transmission_costs!$B:$B,$C709,raw_transmission_costs!$A:$A,Q$615)","v":0},{"$f":"SUMIFS(raw_transmission_costs!$E:$E,raw_transmission_costs!$B:$B,$C709,raw_transmission_costs!$A:$A,R$615)","v":0},{"$f":"SUMIFS(raw_transmission_costs!$E:$E,raw_transmission_costs!$B:$B,$C709,raw_transmission_costs!$A:$A,S$615)","v":0},{"$f":"SUMIFS(raw_transmission_costs!$E:$E,raw_transmission_costs!$B:$B,$C709,raw_transmission_costs!$A:$A,T$615)","v":0},{"$f":"SUMIFS(raw_transmission_costs!$E:$E,raw_transmission_costs!$B:$B,$C709,raw_transmission_costs!$A:$A,U$615)","v":0},{"$f":"SUMIFS(raw_transmission_costs!$E:$E,raw_transmission_costs!$B:$B,$C709,raw_transmission_costs!$A:$A,V$615)","v":0},{"$f":"SUMIFS(raw_transmission_costs!$E:$E,raw_transmission_costs!$B:$B,$C709,raw_transmission_costs!$A:$A,W$615)","v":0},{"$f":"SUMIFS(raw_transmission_costs!$E:$E,raw_transmission_costs!$B:$B,$C709,raw_transmission_costs!$A:$A,X$615)","v":0},{"$f":"SUMIFS(raw_transmission_costs!$E:$E,raw_transmission_costs!$B:$B,$C709,raw_transmission_costs!$A:$A,Y$615)","v":0},{"$f":"SUMIFS(raw_transmission_costs!$E:$E,raw_transmission_costs!$B:$B,$C709,raw_transmission_costs!$A:$A,Z$615)","v":0},{"$f":"SUMIFS(raw_transmission_costs!$E:$E,raw_transmission_costs!$B:$B,$C709,raw_transmission_costs!$A:$A,AA$615)","v":0},{"$f":"SUMIFS(raw_transmission_costs!$E:$E,raw_transmission_costs!$B:$B,$C709,raw_transmission_costs!$A:$A,AB$615)","v":0},{"$f":"SUMIFS(raw_transmission_costs!$E:$E,raw_transmission_costs!$B:$B,$C709,raw_transmission_costs!$A:$A,AC$615)","v":0},{"$f":"SUMIFS(raw_transmission_costs!$E:$E,raw_transmission_costs!$B:$B,$C709,raw_transmission_costs!$A:$A,AD$615)","v":0},{"$f":"SUMIFS(raw_transmission_costs!$E:$E,raw_transmission_costs!$B:$B,$C709,raw_transmission_costs!$A:$A,AE$615)","v":0},{"$f":"SUMIFS(raw_transmission_costs!$E:$E,raw_transmission_costs!$B:$B,$C709,raw_transmission_costs!$A:$A,AF$615)","v":0},{"$f":"SUMIFS(raw_transmission_costs!$E:$E,raw_transmission_costs!$B:$B,$C709,raw_transmission_costs!$A:$A,AG$615)","v":0},{"$f":"SUMIFS(raw_transmission_costs!$E:$E,raw_transmission_costs!$B:$B,$C709,raw_transmission_costs!$A:$A,AH$615)","v":0},{"$f":"SUMIFS(raw_transmission_costs!$E:$E,raw_transmission_costs!$B:$B,$C709,raw_transmission_costs!$A:$A,AI$615)","v":1570},{"$f":"SUMIFS(raw_transmission_costs!$E:$E,raw_transmission_costs!$B:$B,$C709,raw_transmission_costs!$A:$A,AJ$615)","v":0},{"$f":"SUMIFS(raw_transmission_costs!$E:$E,raw_transmission_costs!$B:$B,$C709,raw_transmission_costs!$A:$A,AK$615)","v":0},{"$f":"SUMIFS(raw_transmission_costs!$E:$E,raw_transmission_costs!$B:$B,$C709,raw_transmission_costs!$A:$A,AL$615)","v":0},{"$f":"SUMIFS(raw_transmission_costs!$E:$E,raw_transmission_costs!$B:$B,$C709,raw_transmission_costs!$A:$A,AM$615)","v":0},{"$f":"SUMIFS(raw_transmission_costs!$E:$E,raw_transmission_costs!$B:$B,$C709,raw_transmission_costs!$A:$A,AN$615)","v":0}]
[null,null,"GLW_VEA","MW",{"$f":"SUMIFS(raw_transmission_costs!$E:$E,raw_transmission_costs!$B:$B,$C710,raw_transmission_costs!$A:$A,E$615)","v":0},{"$f":"SUMIFS(raw_transmission_costs!$E:$E,raw_transmission_costs!$B:$B,$C710,raw_transmission_costs!$A:$A,F$615)","v":0},{"$f":"SUMIFS(raw_transmission_costs!$E:$E,raw_transmission_costs!$B:$B,$C710,raw_transmission_costs!$A:$A,G$615)","v":0},{"$f":"SUMIFS(raw_transmission_costs!$E:$E,raw_transmission_costs!$B:$B,$C710,raw_transmission_costs!$A:$A,H$615)","v":0},{"$f":"SUMIFS(raw_transmission_costs!$E:$E,raw_transmission_costs!$B:$B,$C710,raw_transmission_costs!$A:$A,I$615)","v":0},{"$f":"SUMIFS(raw_transmission_costs!$E:$E,raw_transmission_costs!$B:$B,$C710,raw_transmission_costs!$A:$A,J$615)","v":0},{"$f":"SUMIFS(raw_transmission_costs!$E:$E,raw_transmission_costs!$B:$B,$C710,raw_transmission_costs!$A:$A,K$615)","v":0},{"$f":"SUMIFS(raw_transmission_costs!$E:$E,raw_transmission_costs!$B:$B,$C710,raw_transmission_costs!$A:$A,L$615)","v":0},{"$f":"SUMIFS(raw_transmission_costs!$E:$E,raw_transmission_costs!$B:$B,$C710,raw_transmission_costs!$A:$A,M$615)","v":0},{"$f":"SUMIFS(raw_transmission_costs!$E:$E,raw_transmission_costs!$B:$B,$C710,raw_transmission_costs!$A:$A,N$615)","v":0},{"$f":"SUMIFS(raw_transmission_costs!$E:$E,raw_transmission_costs!$B:$B,$C710,raw_transmission_costs!$A:$A,O$615)","v":0},{"$f":"SUMIFS(raw_transmission_costs!$E:$E,raw_transmission_costs!$B:$B,$C710,raw_transmission_costs!$A:$A,P$615)","v":0},{"$f":"SUMIFS(raw_transmission_costs!$E:$E,raw_transmission_costs!$B:$B,$C710,raw_transmission_costs!$A:$A,Q$615)","v":0},{"$f":"SUMIFS(raw_transmission_costs!$E:$E,raw_transmission_costs!$B:$B,$C710,raw_transmission_costs!$A:$A,R$615)","v":0},{"$f":"SUMIFS(raw_transmission_costs!$E:$E,raw_transmission_costs!$B:$B,$C710,raw_transmission_costs!$A:$A,S$615)","v":0},{"$f":"SUMIFS(raw_transmission_costs!$E:$E,raw_transmission_costs!$B:$B,$C710,raw_transmission_costs!$A:$A,T$615)","v":0},{"$f":"SUMIFS(raw_transmission_costs!$E:$E,raw_transmission_costs!$B:$B,$C710,raw_transmission_costs!$A:$A,U$615)","v":0},{"$f":"SUMIFS(raw_transmission_costs!$E:$E,raw_transmission_costs!$B:$B,$C710,raw_transmission_costs!$A:$A,V$615)","v":0},{"$f":"SUMIFS(raw_transmission_costs!$E:$E,raw_transmission_costs!$B:$B,$C710,raw_transmission_costs!$A:$A,W$615)","v":0},{"$f":"SUMIFS(raw_transmission_costs!$E:$E,raw_transmission_costs!$B:$B,$C710,raw_transmission_costs!$A:$A,X$615)","v":0},{"$f":"SUMIFS(raw_transmission_costs!$E:$E,raw_transmission_costs!$B:$B,$C710,raw_transmission_costs!$A:$A,Y$615)","v":0},{"$f":"SUMIFS(raw_transmission_costs!$E:$E,raw_transmission_costs!$B:$B,$C710,raw_transmission_costs!$A:$A,Z$615)","v":0},{"$f":"SUMIFS(raw_transmission_costs!$E:$E,raw_transmission_costs!$B:$B,$C710,raw_transmission_costs!$A:$A,AA$615)","v":0},{"$f":"SUMIFS(raw_transmission_costs!$E:$E,raw_transmission_costs!$B:$B,$C710,raw_transmission_costs!$A:$A,AB$615)","v":0},{"$f":"SUMIFS(raw_transmission_costs!$E:$E,raw_transmission_costs!$B:$B,$C710,raw_transmission_costs!$A:$A,AC$615)","v":0},{"$f":"SUMIFS(raw_transmission_costs!$E:$E,raw_transmission_costs!$B:$B,$C710,raw_transmission_costs!$A:$A,AD$615)","v":0},{"$f":"SUMIFS(raw_transmission_costs!$E:$E,raw_transmission_costs!$B:$B,$C710,raw_transmission_costs!$A:$A,AE$615)","v":0},{"$f":"SUMIFS(raw_transmission_costs!$E:$E,raw_transmission_costs!$B:$B,$C710,raw_transmission_costs!$A:$A,AF$615)","v":0},{"$f":"SUMIFS(raw_transmission_costs!$E:$E,raw_transmission_costs!$B:$B,$C710,raw_transmission_costs!$A:$A,AG$615)","v":0},{"$f":"SUMIFS(raw_transmission_costs!$E:$E,raw_transmission_costs!$B:$B,$C710,raw_transmission_costs!$A:$A,AH$615)","v":0},{"$f":"SUMIFS(raw_transmission_costs!$E:$E,raw_transmission_costs!$B:$B,$C710,raw_transmission_costs!$A:$A,AI$615)","v":0},{"$f":"SUMIFS(raw_transmission_costs!$E:$E,raw_transmission_costs!$B:$B,$C710,raw_transmission_costs!$A:$A,AJ$615)","v":0},{"$f":"SUMIFS(raw_transmission_costs!$E:$E,raw_transmission_costs!$B:$B,$C710,raw_transmission_costs!$A:$A,AK$615)","v":0},{"$f":"SUMIFS(raw_transmission_costs!$E:$E,raw_transmission_costs!$B:$B,$C710,raw_transmission_costs!$A:$A,AL$615)","v":0},{"$f":"SUMIFS(raw_transmission_costs!$E:$E,raw_transmission_costs!$B:$B,$C710,raw_transmission_costs!$A:$A,AM$615)","v":0},{"$f":"SUMIFS(raw_transmission_costs!$E:$E,raw_transmission_costs!$B:$B,$C710,raw_transmission_costs!$A:$A,AN$615)","v":0}]
[null,null,"Greater_Imperial","MW",{"$f":"SUMIFS(raw_transmission_costs!$E:$E,raw_transmission_costs!$B:$B,$C711,raw_transmission_costs!$A:$A,E$615)","v":0},{"$f":"SUMIFS(raw_transmission_costs!$E:$E,raw_transmission_costs!$B:$B,$C711,raw_transmission_costs!$A:$A,F$615)","v":0},{"$f":"SUMIFS(raw_transmission_costs!$E:$E,raw_transmission_costs!$B:$B,$C711,raw_transmission_costs!$A:$A,G$615)","v":0},{"$f":"SUMIFS(raw_transmission_costs!$E:$E,raw_transmission_costs!$B:$B,$C711,raw_transmission_costs!$A:$A,H$615)","v":0},{"$f":"SUMIFS(raw_transmission_costs!$E:$E,raw_transmission_costs!$B:$B,$C711,raw_transmission_costs!$A:$A,I$615)","v":0},{"$f":"SUMIFS(raw_transmission_costs!$E:$E,raw_transmission_costs!$B:$B,$C711,raw_transmission_costs!$A:$A,J$615)","v":0},{"$f":"SUMIFS(raw_transmission_costs!$E:$E,raw_transmission_costs!$B:$B,$C711,raw_transmission_costs!$A:$A,K$615)","v":0},{"$f":"SUMIFS(raw_transmission_costs!$E:$E,raw_transmission_costs!$B:$B,$C711,raw_transmission_costs!$A:$A,L$615)","v":0},{"$f":"SUMIFS(raw_transmission_costs!$E:$E,raw_transmission_costs!$B:$B,$C711,raw_transmission_costs!$A:$A,M$615)","v":0},{"$f":"SUMIFS(raw_transmission_costs!$E:$E,raw_transmission_costs!$B:$B,$C711,raw_transmission_costs!$A:$A,N$615)","v":0},{"$f":"SUMIFS(raw_transmission_costs!$E:$E,raw_transmission_costs!$B:$B,$C711,raw_transmission_costs!$A:$A,O$615)","v":0},{"$f":"SUMIFS(raw_transmission_costs!$E:$E,raw_transmission_costs!$B:$B,$C711,raw_transmission_costs!$A:$A,P$615)","v":0},{"$f":"SUMIFS(raw_transmission_costs!$E:$E,raw_transmission_costs!$B:$B,$C711,raw_transmission_costs!$A:$A,Q$615)","v":0},{"$f":"SUMIFS(raw_transmission_costs!$E:$E,raw_transmission_costs!$B:$B,$C711,raw_transmission_costs!$A:$A,R$615)","v":0},{"$f":"SUMIFS(raw_transmission_costs!$E:$E,raw_transmission_costs!$B:$B,$C711,raw_transmission_costs!$A:$A,S$615)","v":0},{"$f":"SUMIFS(raw_transmission_costs!$E:$E,raw_transmission_costs!$B:$B,$C711,raw_transmission_costs!$A:$A,T$615)","v":0},{"$f":"SUMIFS(raw_transmission_costs!$E:$E,raw_transmission_costs!$B:$B,$C711,raw_transmission_costs!$A:$A,U$615)","v":0},{"$f":"SUMIFS(raw_transmission_costs!$E:$E,raw_transmission_costs!$B:$B,$C711,raw_transmission_costs!$A:$A,V$615)","v":0},{"$f":"SUMIFS(raw_transmission_costs!$E:$E,raw_transmission_costs!$B:$B,$C711,raw_transmission_costs!$A:$A,W$615)","v":0},{"$f":"SUMIFS(raw_transmission_costs!$E:$E,raw_transmission_costs!$B:$B,$C711,raw_transmission_costs!$A:$A,X$615)","v":0},{"$f":"SUMIFS(raw_transmission_costs!$E:$E,raw_transmission_costs!$B:$B,$C711,raw_transmission_costs!$A:$A,Y$615)","v":0},{"$f":"SUMIFS(raw_transmission_costs!$E:$E,raw_transmission_costs!$B:$B,$C711,raw_transmission_costs!$A:$A,Z$615)","v":0},{"$f":"SUMIFS(raw_transmission_costs!$E:$E,raw_transmission_costs!$B:$B,$C711,raw_transmission_costs!$A:$A,AA$615)","v":0},{"$f":"SUMIFS(raw_transmission_costs!$E:$E,raw_transmission_costs!$B:$B,$C711,raw_transmission_costs!$A:$A,AB$615)","v":0},{"$f":"SUMIFS(raw_transmission_costs!$E:$E,raw_transmission_costs!$B:$B,$C711,raw_transmission_costs!$A:$A,AC$615)","v":0},{"$f":"SUMIFS(raw_transmission_costs!$E:$E,raw_transmission_costs!$B:$B,$C711,raw_transmission_costs!$A:$A,AD$615)","v":0},{"$f":"SUMIFS(raw_transmission_costs!$E:$E,raw_transmission_costs!$B:$B,$C711,raw_transmission_costs!$A:$A,AE$615)","v":0},{"$f":"SUMIFS(raw_transmission_costs!$E:$E,raw_transmission_costs!$B:$B,$C711,raw_transmission_costs!$A:$A,AF$615)","v":0},{"$f":"SUMIFS(raw_transmission_costs!$E:$E,raw_transmission_costs!$B:$B,$C711,raw_transmission_costs!$A:$A,AG$615)","v":0},{"$f":"SUMIFS(raw_transmission_costs!$E:$E,raw_transmission_costs!$B:$B,$C711,raw_transmission_costs!$A:$A,AH$615)","v":0},{"$f":"SUMIFS(raw_transmission_costs!$E:$E,raw_transmission_costs!$B:$B,$C711,raw_transmission_costs!$A:$A,AI$615)","v":0},{"$f":"SUMIFS(raw_transmission_costs!$E:$E,raw_transmission_costs!$B:$B,$C711,raw_transmission_costs!$A:$A,AJ$615)","v":0},{"$f":"SUMIFS(raw_transmission_costs!$E:$E,raw_transmission_costs!$B:$B,$C711,raw_transmission_costs!$A:$A,AK$615)","v":0},{"$f":"SUMIFS(raw_transmission_costs!$E:$E,raw_transmission_costs!$B:$B,$C711,raw_transmission_costs!$A:$A,AL$615)","v":0},{"$f":"SUMIFS(raw_transmission_costs!$E:$E,raw_transmission_costs!$B:$B,$C711,raw_transmission_costs!$A:$A,AM$615)","v":0},{"$f":"SUMIFS(raw_transmission_costs!$E:$E,raw_transmission_costs!$B:$B,$C711,raw_transmission_costs!$A:$A,AN$615)","v":0}]
[null,null,"Riverside_Palm_Springs","MW",{"$f":"SUMIFS(raw_transmission_costs!$E:$E,raw_transmission_costs!$B:$B,$C712,raw_transmission_costs!$A:$A,E$615)","v":0},{"$f":"SUMIFS(raw_transmission_costs!$E:$E,raw_transmission_costs!$B:$B,$C712,raw_transmission_costs!$A:$A,F$615)","v":0},{"$f":"SUMIFS(raw_transmission_costs!$E:$E,raw_transmission_costs!$B:$B,$C712,raw_transmission_costs!$A:$A,G$615)","v":0},{"$f":"SUMIFS(raw_transmission_costs!$E:$E,raw_transmission_costs!$B:$B,$C712,raw_transmission_costs!$A:$A,H$615)","v":0},{"$f":"SUMIFS(raw_transmission_costs!$E:$E,raw_transmission_costs!$B:$B,$C712,raw_transmission_costs!$A:$A,I$615)","v":0},{"$f":"SUMIFS(raw_transmission_costs!$E:$E,raw_transmission_costs!$B:$B,$C712,raw_transmission_costs!$A:$A,J$615)","v":0},{"$f":"SUMIFS(raw_transmission_costs!$E:$E,raw_transmission_costs!$B:$B,$C712,raw_transmission_costs!$A:$A,K$615)","v":0},{"$f":"SUMIFS(raw_transmission_costs!$E:$E,raw_transmission_costs!$B:$B,$C712,raw_transmission_costs!$A:$A,L$615)","v":0},{"$f":"SUMIFS(raw_transmission_costs!$E:$E,raw_transmission_costs!$B:$B,$C712,raw_transmission_costs!$A:$A,M$615)","v":0},{"$f":"SUMIFS(raw_transmission_costs!$E:$E,raw_transmission_costs!$B:$B,$C712,raw_transmission_costs!$A:$A,N$615)","v":0},{"$f":"SUMIFS(raw_transmission_costs!$E:$E,raw_transmission_costs!$B:$B,$C712,raw_transmission_costs!$A:$A,O$615)","v":0},{"$f":"SUMIFS(raw_transmission_costs!$E:$E,raw_transmission_costs!$B:$B,$C712,raw_transmission_costs!$A:$A,P$615)","v":0},{"$f":"SUMIFS(raw_transmission_costs!$E:$E,raw_transmission_costs!$B:$B,$C712,raw_transmission_costs!$A:$A,Q$615)","v":0},{"$f":"SUMIFS(raw_transmission_costs!$E:$E,raw_transmission_costs!$B:$B,$C712,raw_transmission_costs!$A:$A,R$615)","v":0},{"$f":"SUMIFS(raw_transmission_costs!$E:$E,raw_transmission_costs!$B:$B,$C712,raw_transmission_costs!$A:$A,S$615)","v":0},{"$f":"SUMIFS(raw_transmission_costs!$E:$E,raw_transmission_costs!$B:$B,$C712,raw_transmission_costs!$A:$A,T$615)","v":0},{"$f":"SUMIFS(raw_transmission_costs!$E:$E,raw_transmission_costs!$B:$B,$C712,raw_transmission_costs!$A:$A,U$615)","v":0},{"$f":"SUMIFS(raw_transmission_costs!$E:$E,raw_transmission_costs!$B:$B,$C712,raw_transmission_costs!$A:$A,V$615)","v":0},{"$f":"SUMIFS(raw_transmission_costs!$E:$E,raw_transmission_costs!$B:$B,$C712,raw_transmission_costs!$A:$A,W$615)","v":0},{"$f":"SUMIFS(raw_transmission_costs!$E:$E,raw_transmission_costs!$B:$B,$C712,raw_transmission_costs!$A:$A,X$615)","v":0},{"$f":"SUMIFS(raw_transmission_costs!$E:$E,raw_transmission_costs!$B:$B,$C712,raw_transmission_costs!$A:$A,Y$615)","v":0},{"$f":"SUMIFS(raw_transmission_costs!$E:$E,raw_transmission_costs!$B:$B,$C712,raw_transmission_costs!$A:$A,Z$615)","v":0},{"$f":"SUMIFS(raw_transmission_costs!$E:$E,raw_transmission_costs!$B:$B,$C712,raw_transmission_costs!$A:$A,AA$615)","v":0},{"$f":"SUMIFS(raw_transmission_costs!$E:$E,raw_transmission_costs!$B:$B,$C712,raw_transmission_costs!$A:$A,AB$615)","v":0},{"$f":"SUMIFS(raw_transmission_costs!$E:$E,raw_transmission_costs!$B:$B,$C712,raw_transmission_costs!$A:$A,AC$615)","v":0},{"$f":"SUMIFS(raw_transmission_costs!$E:$E,raw_transmission_costs!$B:$B,$C712,raw_transmission_costs!$A:$A,AD$615)","v":0},{"$f":"SUMIFS(raw_transmission_costs!$E:$E,raw_transmission_costs!$B:$B,$C712,raw_transmission_costs!$A:$A,AE$615)","v":0},{"$f":"SUMIFS(raw_transmission_costs!$E:$E,raw_transmission_costs!$B:$B,$C712,raw_transmission_costs!$A:$A,AF$615)","v":0},{"$f":"SUMIFS(raw_transmission_costs!$E:$E,raw_transmission_costs!$B:$B,$C712,raw_transmission_costs!$A:$A,AG$615)","v":0},{"$f":"SUMIFS(raw_transmission_costs!$E:$E,raw_transmission_costs!$B:$B,$C712,raw_transmission_costs!$A:$A,AH$615)","v":0},{"$f":"SUMIFS(raw_transmission_costs!$E:$E,raw_transmission_costs!$B:$B,$C712,raw_transmission_costs!$A:$A,AI$615)","v":0},{"$f":"SUMIFS(raw_transmission_costs!$E:$E,raw_transmission_costs!$B:$B,$C712,raw_transmission_costs!$A:$A,AJ$615)","v":0},{"$f":"SUMIFS(raw_transmission_costs!$E:$E,raw_transmission_costs!$B:$B,$C712,raw_transmission_costs!$A:$A,AK$615)","v":0},{"$f":"SUMIFS(raw_transmission_costs!$E:$E,raw_transmission_costs!$B:$B,$C712,raw_transmission_costs!$A:$A,AL$615)","v":0},{"$f":"SUMIFS(raw_transmission_costs!$E:$E,raw_transmission_costs!$B:$B,$C712,raw_transmission_costs!$A:$A,AM$615)","v":0},{"$f":"SUMIFS(raw_transmission_costs!$E:$E,raw_transmission_costs!$B:$B,$C712,raw_transmission_costs!$A:$A,AN$615)","v":0}]
[null,null,"SCADSNV","MW",{"$f":"SUMIFS(raw_transmission_costs!$E:$E,raw_transmission_costs!$B:$B,$C713,raw_transmission_costs!$A:$A,E$615)","v":0},{"$f":"SUMIFS(raw_transmission_costs!$E:$E,raw_transmission_costs!$B:$B,$C713,raw_transmission_costs!$A:$A,F$615)","v":0},{"$f":"SUMIFS(raw_transmission_costs!$E:$E,raw_transmission_costs!$B:$B,$C713,raw_transmission_costs!$A:$A,G$615)","v":0},{"$f":"SUMIFS(raw_transmission_costs!$E:$E,raw_transmission_costs!$B:$B,$C713,raw_transmission_costs!$A:$A,H$615)","v":0},{"$f":"SUMIFS(raw_transmission_costs!$E:$E,raw_transmission_costs!$B:$B,$C713,raw_transmission_costs!$A:$A,I$615)","v":0},{"$f":"SUMIFS(raw_transmission_costs!$E:$E,raw_transmission_costs!$B:$B,$C713,raw_transmission_costs!$A:$A,J$615)","v":0},{"$f":"SUMIFS(raw_transmission_costs!$E:$E,raw_transmission_costs!$B:$B,$C713,raw_transmission_costs!$A:$A,K$615)","v":0},{"$f":"SUMIFS(raw_transmission_costs!$E:$E,raw_transmission_costs!$B:$B,$C713,raw_transmission_costs!$A:$A,L$615)","v":0},{"$f":"SUMIFS(raw_transmission_costs!$E:$E,raw_transmission_costs!$B:$B,$C713,raw_transmission_costs!$A:$A,M$615)","v":0},{"$f":"SUMIFS(raw_transmission_costs!$E:$E,raw_transmission_costs!$B:$B,$C713,raw_transmission_costs!$A:$A,N$615)","v":0},{"$f":"SUMIFS(raw_transmission_costs!$E:$E,raw_transmission_costs!$B:$B,$C713,raw_transmission_costs!$A:$A,O$615)","v":0},{"$f":"SUMIFS(raw_transmission_costs!$E:$E,raw_transmission_costs!$B:$B,$C713,raw_transmission_costs!$A:$A,P$615)","v":0},{"$f":"SUMIFS(raw_transmission_costs!$E:$E,raw_transmission_costs!$B:$B,$C713,raw_transmission_costs!$A:$A,Q$615)","v":0},{"$f":"SUMIFS(raw_transmission_costs!$E:$E,raw_transmission_costs!$B:$B,$C713,raw_transmission_costs!$A:$A,R$615)","v":0},{"$f":"SUMIFS(raw_transmission_costs!$E:$E,raw_transmission_costs!$B:$B,$C713,raw_transmission_costs!$A:$A,S$615)","v":0},{"$f":"SUMIFS(raw_transmission_costs!$E:$E,raw_transmission_costs!$B:$B,$C713,raw_transmission_costs!$A:$A,T$615)","v":0},{"$f":"SUMIFS(raw_transmission_costs!$E:$E,raw_transmission_costs!$B:$B,$C713,raw_transmission_costs!$A:$A,U$615)","v":0},{"$f":"SUMIFS(raw_transmission_costs!$E:$E,raw_transmission_costs!$B:$B,$C713,raw_transmission_costs!$A:$A,V$615)","v":0},{"$f":"SUMIFS(raw_transmission_costs!$E:$E,raw_transmission_costs!$B:$B,$C713,raw_transmission_costs!$A:$A,W$615)","v":0},{"$f":"SUMIFS(raw_transmission_costs!$E:$E,raw_transmission_costs!$B:$B,$C713,raw_transmission_costs!$A:$A,X$615)","v":0},{"$f":"SUMIFS(raw_transmission_costs!$E:$E,raw_transmission_costs!$B:$B,$C713,raw_transmission_costs!$A:$A,Y$615)","v":0},{"$f":"SUMIFS(raw_transmission_costs!$E:$E,raw_transmission_costs!$B:$B,$C713,raw_transmission_costs!$A:$A,Z$615)","v":0},{"$f":"SUMIFS(raw_transmission_costs!$E:$E,raw_transmission_costs!$B:$B,$C713,raw_transmission_costs!$A:$A,AA$615)","v":0},{"$f":"SUMIFS(raw_transmission_costs!$E:$E,raw_transmission_costs!$B:$B,$C713,raw_transmission_costs!$A:$A,AB$615)","v":0},{"$f":"SUMIFS(raw_transmission_costs!$E:$E,raw_transmission_costs!$B:$B,$C713,raw_transmission_costs!$A:$A,AC$615)","v":0},{"$f":"SUMIFS(raw_transmission_costs!$E:$E,raw_transmission_costs!$B:$B,$C713,raw_transmission_costs!$A:$A,AD$615)","v":0},{"$f":"SUMIFS(raw_transmission_costs!$E:$E,raw_transmission_costs!$B:$B,$C713,raw_transmission_costs!$A:$A,AE$615)","v":0},{"$f":"SUMIFS(raw_transmission_costs!$E:$E,raw_transmission_costs!$B:$B,$C713,raw_transmission_costs!$A:$A,AF$615)","v":0},{"$f":"SUMIFS(raw_transmission_costs!$E:$E,raw_transmission_costs!$B:$B,$C713,raw_transmission_costs!$A:$A,AG$615)","v":0},{"$f":"SUMIFS(raw_transmission_costs!$E:$E,raw_transmission_costs!$B:$B,$C713,raw_transmission_costs!$A:$A,AH$615)","v":0},{"$f":"SUMIFS(raw_transmission_costs!$E:$E,raw_transmission_costs!$B:$B,$C713,raw_transmission_costs!$A:$A,AI$615)","v":3342.03},{"$f":"SUMIFS(raw_transmission_costs!$E:$E,raw_transmission_costs!$B:$B,$C713,raw_transmission_costs!$A:$A,AJ$615)","v":0},{"$f":"SUMIFS(raw_transmission_costs!$E:$E,raw_transmission_costs!$B:$B,$C713,raw_transmission_costs!$A:$A,AK$615)","v":0},{"$f":"SUMIFS(raw_transmission_costs!$E:$E,raw_transmission_costs!$B:$B,$C713,raw_transmission_costs!$A:$A,AL$615)","v":0},{"$f":"SUMIFS(raw_transmission_costs!$E:$E,raw_transmission_costs!$B:$B,$C713,raw_transmission_costs!$A:$A,AM$615)","v":0},{"$f":"SUMIFS(raw_transmission_costs!$E:$E,raw_transmission_costs!$B:$B,$C713,raw_transmission_costs!$A:$A,AN$615)","v":0}]
[null,null,"Kern_Greater_Carrizo","MW",{"$f":"SUMIFS(raw_transmission_costs!$E:$E,raw_transmission_costs!$B:$B,$C714,raw_transmission_costs!$A:$A,E$615)","v":0},{"$f":"SUMIFS(raw_transmission_costs!$E:$E,raw_transmission_costs!$B:$B,$C714,raw_transmission_costs!$A:$A,F$615)","v":0},{"$f":"SUMIFS(raw_transmission_costs!$E:$E,raw_transmission_costs!$B:$B,$C714,raw_transmission_costs!$A:$A,G$615)","v":0},{"$f":"SUMIFS(raw_transmission_costs!$E:$E,raw_transmission_costs!$B:$B,$C714,raw_transmission_costs!$A:$A,H$615)","v":0},{"$f":"SUMIFS(raw_transmission_costs!$E:$E,raw_transmission_costs!$B:$B,$C714,raw_transmission_costs!$A:$A,I$615)","v":0},{"$f":"SUMIFS(raw_transmission_costs!$E:$E,raw_transmission_costs!$B:$B,$C714,raw_transmission_costs!$A:$A,J$615)","v":0},{"$f":"SUMIFS(raw_transmission_costs!$E:$E,raw_transmission_costs!$B:$B,$C714,raw_transmission_costs!$A:$A,K$615)","v":0},{"$f":"SUMIFS(raw_transmission_costs!$E:$E,raw_transmission_costs!$B:$B,$C714,raw_transmission_costs!$A:$A,L$615)","v":0},{"$f":"SUMIFS(raw_transmission_costs!$E:$E,raw_transmission_costs!$B:$B,$C714,raw_transmission_costs!$A:$A,M$615)","v":0},{"$f":"SUMIFS(raw_transmission_costs!$E:$E,raw_transmission_costs!$B:$B,$C714,raw_transmission_costs!$A:$A,N$615)","v":0},{"$f":"SUMIFS(raw_transmission_costs!$E:$E,raw_transmission_costs!$B:$B,$C714,raw_transmission_costs!$A:$A,O$615)","v":0},{"$f":"SUMIFS(raw_transmission_costs!$E:$E,raw_transmission_costs!$B:$B,$C714,raw_transmission_costs!$A:$A,P$615)","v":0},{"$f":"SUMIFS(raw_transmission_costs!$E:$E,raw_transmission_costs!$B:$B,$C714,raw_transmission_costs!$A:$A,Q$615)","v":0},{"$f":"SUMIFS(raw_transmission_costs!$E:$E,raw_transmission_costs!$B:$B,$C714,raw_transmission_costs!$A:$A,R$615)","v":0},{"$f":"SUMIFS(raw_transmission_costs!$E:$E,raw_transmission_costs!$B:$B,$C714,raw_transmission_costs!$A:$A,S$615)","v":0},{"$f":"SUMIFS(raw_transmission_costs!$E:$E,raw_transmission_costs!$B:$B,$C714,raw_transmission_costs!$A:$A,T$615)","v":7192},{"$f":"SUMIFS(raw_transmission_costs!$E:$E,raw_transmission_costs!$B:$B,$C714,raw_transmission_costs!$A:$A,U$615)","v":0},{"$f":"SUMIFS(raw_transmission_costs!$E:$E,raw_transmission_costs!$B:$B,$C714,raw_transmission_costs!$A:$A,V$615)","v":0},{"$f":"SUMIFS(raw_transmission_costs!$E:$E,raw_transmission_costs!$B:$B,$C714,raw_transmission_costs!$A:$A,W$615)","v":0},{"$f":"SUMIFS(raw_transmission_costs!$E:$E,raw_transmission_costs!$B:$B,$C714,raw_transmission_costs!$A:$A,X$615)","v":0},{"$f":"SUMIFS(raw_transmission_costs!$E:$E,raw_transmission_costs!$B:$B,$C714,raw_transmission_costs!$A:$A,Y$615)","v":0},{"$f":"SUMIFS(raw_transmission_costs!$E:$E,raw_transmission_costs!$B:$B,$C714,raw_transmission_costs!$A:$A,Z$615)","v":0},{"$f":"SUMIFS(raw_transmission_costs!$E:$E,raw_transmission_costs!$B:$B,$C714,raw_transmission_costs!$A:$A,AA$615)","v":0},{"$f":"SUMIFS(raw_transmission_costs!$E:$E,raw_transmission_costs!$B:$B,$C714,raw_transmission_costs!$A:$A,AB$615)","v":0},{"$f":"SUMIFS(raw_transmission_costs!$E:$E,raw_transmission_costs!$B:$B,$C714,raw_transmission_costs!$A:$A,AC$615)","v":0},{"$f":"SUMIFS(raw_transmission_costs!$E:$E,raw_transmission_costs!$B:$B,$C714,raw_transmission_costs!$A:$A,AD$615)","v":0},{"$f":"SUMIFS(raw_transmission_costs!$E:$E,raw_transmission_costs!$B:$B,$C714,raw_transmission_costs!$A:$A,AE$615)","v":0},{"$f":"SUMIFS(raw_transmission_costs!$E:$E,raw_transmission_costs!$B:$B,$C714,raw_transmission_costs!$A:$A,AF$615)","v":0},{"$f":"SUMIFS(raw_transmission_costs!$E:$E,raw_transmission_costs!$B:$B,$C714,raw_transmission_costs!$A:$A,AG$615)","v":0},{"$f":"SUMIFS(raw_transmission_costs!$E:$E,raw_transmission_costs!$B:$B,$C714,raw_transmission_costs!$A:$A,AH$615)","v":0},{"$f":"SUMIFS(raw_transmission_costs!$E:$E,raw_transmission_costs!$B:$B,$C714,raw_transmission_costs!$A:$A,AI$615)","v":17099},{"$f":"SUMIFS(raw_transmission_costs!$E:$E,raw_transmission_costs!$B:$B,$C714,raw_transmission_costs!$A:$A,AJ$615)","v":0},{"$f":"SUMIFS(raw_transmission_costs!$E:$E,raw_transmission_costs!$B:$B,$C714,raw_transmission_costs!$A:$A,AK$615)","v":0},{"$f":"SUMIFS(raw_transmission_costs!$E:$E,raw_transmission_costs!$B:$B,$C714,raw_transmission_costs!$A:$A,AL$615)","v":0},{"$f":"SUMIFS(raw_transmission_costs!$E:$E,raw_transmission_costs!$B:$B,$C714,raw_transmission_costs!$A:$A,AM$615)","v":0},{"$f":"SUMIFS(raw_transmission_costs!$E:$E,raw_transmission_costs!$B:$B,$C714,raw_transmission_costs!$A:$A,AN$615)","v":0}]
[null,null,"Carrizo","MW",{"$f":"SUMIFS(raw_transmission_costs!$E:$E,raw_transmission_costs!$B:$B,$C715,raw_transmission_costs!$A:$A,E$615)","v":0},{"$f":"SUMIFS(raw_transmission_costs!$E:$E,raw_transmission_costs!$B:$B,$C715,raw_transmission_costs!$A:$A,F$615)","v":0},{"$f":"SUMIFS(raw_transmission_costs!$E:$E,raw_transmission_costs!$B:$B,$C715,raw_transmission_costs!$A:$A,G$615)","v":0},{"$f":"SUMIFS(raw_transmission_costs!$E:$E,raw_transmission_costs!$B:$B,$C715,raw_transmission_costs!$A:$A,H$615)","v":0},{"$f":"SUMIFS(raw_transmission_costs!$E:$E,raw_transmission_costs!$B:$B,$C715,raw_transmission_costs!$A:$A,I$615)","v":0},{"$f":"SUMIFS(raw_transmission_costs!$E:$E,raw_transmission_costs!$B:$B,$C715,raw_transmission_costs!$A:$A,J$615)","v":0},{"$f":"SUMIFS(raw_transmission_costs!$E:$E,raw_transmission_costs!$B:$B,$C715,raw_transmission_costs!$A:$A,K$615)","v":0},{"$f":"SUMIFS(raw_transmission_costs!$E:$E,raw_transmission_costs!$B:$B,$C715,raw_transmission_costs!$A:$A,L$615)","v":0},{"$f":"SUMIFS(raw_transmission_costs!$E:$E,raw_transmission_costs!$B:$B,$C715,raw_transmission_costs!$A:$A,M$615)","v":100},{"$f":"SUMIFS(raw_transmission_costs!$E:$E,raw_transmission_costs!$B:$B,$C715,raw_transmission_costs!$A:$A,N$615)","v":100},{"$f":"SUMIFS(raw_transmission_costs!$E:$E,raw_transmission_costs!$B:$B,$C715,raw_transmission_costs!$A:$A,O$615)","v":0},{"$f":"SUMIFS(raw_transmission_costs!$E:$E,raw_transmission_costs!$B:$B,$C715,raw_transmission_costs!$A:$A,P$615)","v":100},{"$f":"SUMIFS(raw_transmission_costs!$E:$E,raw_transmission_costs!$B:$B,$C715,raw_transmission_costs!$A:$A,Q$615)","v":0},{"$f":"SUMIFS(raw_transmission_costs!$E:$E,raw_transmission_costs!$B:$B,$C715,raw_transmission_costs!$A:$A,R$615)","v":0},{"$f":"SUMIFS(raw_transmission_costs!$E:$E,raw_transmission_costs!$B:$B,$C715,raw_transmission_costs!$A:$A,S$615)","v":0},{"$f":"SUMIFS(raw_transmission_costs!$E:$E,raw_transmission_costs!$B:$B,$C715,raw_transmission_costs!$A:$A,T$615)","v":100},{"$f":"SUMIFS(raw_transmission_costs!$E:$E,raw_transmission_costs!$B:$B,$C715,raw_transmission_costs!$A:$A,U$615)","v":0},{"$f":"SUMIFS(raw_transmission_costs!$E:$E,raw_transmission_costs!$B:$B,$C715,raw_transmission_costs!$A:$A,V$615)","v":0},{"$f":"SUMIFS(raw_transmission_costs!$E:$E,raw_transmission_costs!$B:$B,$C715,raw_transmission_costs!$A:$A,W$615)","v":0},{"$f":"SUMIFS(raw_transmission_costs!$E:$E,raw_transmission_costs!$B:$B,$C715,raw_transmission_costs!$A:$A,X$615)","v":0},{"$f":"SUMIFS(raw_transmission_costs!$E:$E,raw_transmission_costs!$B:$B,$C715,raw_transmission_costs!$A:$A,Y$615)","v":0},{"$f":"SUMIFS(raw_transmission_costs!$E:$E,raw_transmission_costs!$B:$B,$C715,raw_transmission_costs!$A:$A,Z$615)","v":0},{"$f":"SUMIFS(raw_transmission_costs!$E:$E,raw_transmission_costs!$B:$B,$C715,raw_transmission_costs!$A:$A,AA$615)","v":0},{"$f":"SUMIFS(raw_transmission_costs!$E:$E,raw_transmission_costs!$B:$B,$C715,raw_transmission_costs!$A:$A,AB$615)","v":0},{"$f":"SUMIFS(raw_transmission_costs!$E:$E,raw_transmission_costs!$B:$B,$C715,raw_transmission_costs!$A:$A,AC$615)","v":0},{"$f":"SUMIFS(raw_transmission_costs!$E:$E,raw_transmission_costs!$B:$B,$C715,raw_transmission_costs!$A:$A,AD$615)","v":0},{"$f":"SUMIFS(raw_transmission_costs!$E:$E,raw_transmission_costs!$B:$B,$C715,raw_transmission_costs!$A:$A,AE$615)","v":0},{"$f":"SUMIFS(raw_transmission_costs!$E:$E,raw_transmission_costs!$B:$B,$C715,raw_transmission_costs!$A:$A,AF$615)","v":0},{"$f":"SUMIFS(raw_transmission_costs!$E:$E,raw_transmission_costs!$B:$B,$C715,raw_transmission_costs!$A:$A,AG$615)","v":0},{"$f":"SUMIFS(raw_transmission_costs!$E:$E,raw_transmission_costs!$B:$B,$C715,raw_transmission_costs!$A:$A,AH$615)","v":0},{"$f":"SUMIFS(raw_transmission_costs!$E:$E,raw_transmission_costs!$B:$B,$C715,raw_transmission_costs!$A:$A,AI$615)","v":10007},{"$f":"SUMIFS(raw_transmission_costs!$E:$E,raw_transmission_costs!$B:$B,$C715,raw_transmission_costs!$A:$A,AJ$615)","v":0},{"$f":"SUMIFS(raw_transmission_costs!$E:$E,raw_transmission_costs!$B:$B,$C715,raw_transmission_costs!$A:$A,AK$615)","v":0},{"$f":"SUMIFS(raw_transmission_costs!$E:$E,raw_transmission_costs!$B:$B,$C715,raw_transmission_costs!$A:$A,AL$615)","v":0},{"$f":"SUMIFS(raw_transmission_costs!$E:$E,raw_transmission_costs!$B:$B,$C715,raw_transmission_costs!$A:$A,AM$615)","v":0},{"$f":"SUMIFS(raw_transmission_costs!$E:$E,raw_transmission_costs!$B:$B,$C715,raw_transmission_costs!$A:$A,AN$615)","v":0}]
[null,null,"Central_Valley_North_Los_Banos","MW",{"$f":"SUMIFS(raw_transmission_costs!$E:$E,raw_transmission_costs!$B:$B,$C716,raw_transmission_costs!$A:$A,E$615)","v":0},{"$f":"SUMIFS(raw_transmission_costs!$E:$E,raw_transmission_costs!$B:$B,$C716,raw_transmission_costs!$A:$A,F$615)","v":0},{"$f":"SUMIFS(raw_transmission_costs!$E:$E,raw_transmission_costs!$B:$B,$C716,raw_transmission_costs!$A:$A,G$615)","v":0},{"$f":"SUMIFS(raw_transmission_costs!$E:$E,raw_transmission_costs!$B:$B,$C716,raw_transmission_costs!$A:$A,H$615)","v":0},{"$f":"SUMIFS(raw_transmission_costs!$E:$E,raw_transmission_costs!$B:$B,$C716,raw_transmission_costs!$A:$A,I$615)","v":0},{"$f":"SUMIFS(raw_transmission_costs!$E:$E,raw_transmission_costs!$B:$B,$C716,raw_transmission_costs!$A:$A,J$615)","v":0},{"$f":"SUMIFS(raw_transmission_costs!$E:$E,raw_transmission_costs!$B:$B,$C716,raw_transmission_costs!$A:$A,K$615)","v":0},{"$f":"SUMIFS(raw_transmission_costs!$E:$E,raw_transmission_costs!$B:$B,$C716,raw_transmission_costs!$A:$A,L$615)","v":0},{"$f":"SUMIFS(raw_transmission_costs!$E:$E,raw_transmission_costs!$B:$B,$C716,raw_transmission_costs!$A:$A,M$615)","v":0},{"$f":"SUMIFS(raw_transmission_costs!$E:$E,raw_transmission_costs!$B:$B,$C716,raw_transmission_costs!$A:$A,N$615)","v":0},{"$f":"SUMIFS(raw_transmission_costs!$E:$E,raw_transmission_costs!$B:$B,$C716,raw_transmission_costs!$A:$A,O$615)","v":0},{"$f":"SUMIFS(raw_transmission_costs!$E:$E,raw_transmission_costs!$B:$B,$C716,raw_transmission_costs!$A:$A,P$615)","v":0},{"$f":"SUMIFS(raw_transmission_costs!$E:$E,raw_transmission_costs!$B:$B,$C716,raw_transmission_costs!$A:$A,Q$615)","v":0},{"$f":"SUMIFS(raw_transmission_costs!$E:$E,raw_transmission_costs!$B:$B,$C716,raw_transmission_costs!$A:$A,R$615)","v":0},{"$f":"SUMIFS(raw_transmission_costs!$E:$E,raw_transmission_costs!$B:$B,$C716,raw_transmission_costs!$A:$A,S$615)","v":0},{"$f":"SUMIFS(raw_transmission_costs!$E:$E,raw_transmission_costs!$B:$B,$C716,raw_transmission_costs!$A:$A,T$615)","v":0},{"$f":"SUMIFS(raw_transmission_costs!$E:$E,raw_transmission_costs!$B:$B,$C716,raw_transmission_costs!$A:$A,U$615)","v":0},{"$f":"SUMIFS(raw_transmission_costs!$E:$E,raw_transmission_costs!$B:$B,$C716,raw_transmission_costs!$A:$A,V$615)","v":0},{"$f":"SUMIFS(raw_transmission_costs!$E:$E,raw_transmission_costs!$B:$B,$C716,raw_transmission_costs!$A:$A,W$615)","v":0},{"$f":"SUMIFS(raw_transmission_costs!$E:$E,raw_transmission_costs!$B:$B,$C716,raw_transmission_costs!$A:$A,X$615)","v":0},{"$f":"SUMIFS(raw_transmission_costs!$E:$E,raw_transmission_costs!$B:$B,$C716,raw_transmission_costs!$A:$A,Y$615)","v":0},{"$f":"SUMIFS(raw_transmission_costs!$E:$E,raw_transmission_costs!$B:$B,$C716,raw_transmission_costs!$A:$A,Z$615)","v":0},{"$f":"SUMIFS(raw_transmission_costs!$E:$E,raw_transmission_costs!$B:$B,$C716,raw_transmission_costs!$A:$A,AA$615)","v":0},{"$f":"SUMIFS(raw_transmission_costs!$E:$E,raw_transmission_costs!$B:$B,$C716,raw_transmission_costs!$A:$A,AB$615)","v":0},{"$f":"SUMIFS(raw_transmission_costs!$E:$E,raw_transmission_costs!$B:$B,$C716,raw_transmission_costs!$A:$A,AC$615)","v":0},{"$f":"SUMIFS(raw_transmission_costs!$E:$E,raw_transmission_costs!$B:$B,$C716,raw_transmission_costs!$A:$A,AD$615)","v":0},{"$f":"SUMIFS(raw_transmission_costs!$E:$E,raw_transmission_costs!$B:$B,$C716,raw_transmission_costs!$A:$A,AE$615)","v":0},{"$f":"SUMIFS(raw_transmission_costs!$E:$E,raw_transmission_costs!$B:$B,$C716,raw_transmission_costs!$A:$A,AF$615)","v":0},{"$f":"SUMIFS(raw_transmission_costs!$E:$E,raw_transmission_costs!$B:$B,$C716,raw_transmission_costs!$A:$A,AG$615)","v":0},{"$f":"SUMIFS(raw_transmission_costs!$E:$E,raw_transmission_costs!$B:$B,$C716,raw_transmission_costs!$A:$A,AH$615)","v":0},{"$f":"SUMIFS(raw_transmission_costs!$E:$E,raw_transmission_costs!$B:$B,$C716,raw_transmission_costs!$A:$A,AI$615)","v":58881.38},{"$f":"SUMIFS(raw_transmission_costs!$E:$E,raw_transmission_costs!$B:$B,$C716,raw_transmission_costs!$A:$A,AJ$615)","v":0},{"$f":"SUMIFS(raw_transmission_costs!$E:$E,raw_transmission_costs!$B:$B,$C716,raw_transmission_costs!$A:$A,AK$615)","v":0},{"$f":"SUMIFS(raw_transmission_costs!$E:$E,raw_transmission_costs!$B:$B,$C716,raw_transmission_costs!$A:$A,AL$615)","v":0},{"$f":"SUMIFS(raw_transmission_costs!$E:$E,raw_transmission_costs!$B:$B,$C716,raw_transmission_costs!$A:$A,AM$615)","v":0},{"$f":"SUMIFS(raw_transmission_costs!$E:$E,raw_transmission_costs!$B:$B,$C716,raw_transmission_costs!$A:$A,AN$615)","v":0}]
[null,null,"SPGE","MW",{"$f":"SUMIFS(raw_transmission_costs!$E:$E,raw_transmission_costs!$B:$B,$C717,raw_transmission_costs!$A:$A,E$615)","v":0},{"$f":"SUMIFS(raw_transmission_costs!$E:$E,raw_transmission_costs!$B:$B,$C717,raw_transmission_costs!$A:$A,F$615)","v":0},{"$f":"SUMIFS(raw_transmission_costs!$E:$E,raw_transmission_costs!$B:$B,$C717,raw_transmission_costs!$A:$A,G$615)","v":0},{"$f":"SUMIFS(raw_transmission_costs!$E:$E,raw_transmission_costs!$B:$B,$C717,raw_transmission_costs!$A:$A,H$615)","v":0},{"$f":"SUMIFS(raw_transmission_costs!$E:$E,raw_transmission_costs!$B:$B,$C717,raw_transmission_costs!$A:$A,I$615)","v":0},{"$f":"SUMIFS(raw_transmission_costs!$E:$E,raw_transmission_costs!$B:$B,$C717,raw_transmission_costs!$A:$A,J$615)","v":0},{"$f":"SUMIFS(raw_transmission_costs!$E:$E,raw_transmission_costs!$B:$B,$C717,raw_transmission_costs!$A:$A,K$615)","v":0},{"$f":"SUMIFS(raw_transmission_costs!$E:$E,raw_transmission_costs!$B:$B,$C717,raw_transmission_costs!$A:$A,L$615)","v":0},{"$f":"SUMIFS(raw_transmission_costs!$E:$E,raw_transmission_costs!$B:$B,$C717,raw_transmission_costs!$A:$A,M$615)","v":0},{"$f":"SUMIFS(raw_transmission_costs!$E:$E,raw_transmission_costs!$B:$B,$C717,raw_transmission_costs!$A:$A,N$615)","v":0},{"$f":"SUMIFS(raw_transmission_costs!$E:$E,raw_transmission_costs!$B:$B,$C717,raw_transmission_costs!$A:$A,O$615)","v":0},{"$f":"SUMIFS(raw_transmission_costs!$E:$E,raw_transmission_costs!$B:$B,$C717,raw_transmission_costs!$A:$A,P$615)","v":900},{"$f":"SUMIFS(raw_transmission_costs!$E:$E,raw_transmission_costs!$B:$B,$C717,raw_transmission_costs!$A:$A,Q$615)","v":0},{"$f":"SUMIFS(raw_transmission_costs!$E:$E,raw_transmission_costs!$B:$B,$C717,raw_transmission_costs!$A:$A,R$615)","v":0},{"$f":"SUMIFS(raw_transmission_costs!$E:$E,raw_transmission_costs!$B:$B,$C717,raw_transmission_costs!$A:$A,S$615)","v":0},{"$f":"SUMIFS(raw_transmission_costs!$E:$E,raw_transmission_costs!$B:$B,$C717,raw_transmission_costs!$A:$A,T$615)","v":8092},{"$f":"SUMIFS(raw_transmission_costs!$E:$E,raw_transmission_costs!$B:$B,$C717,raw_transmission_costs!$A:$A,U$615)","v":0},{"$f":"SUMIFS(raw_transmission_costs!$E:$E,raw_transmission_costs!$B:$B,$C717,raw_transmission_costs!$A:$A,V$615)","v":0},{"$f":"SUMIFS(raw_transmission_costs!$E:$E,raw_transmission_costs!$B:$B,$C717,raw_transmission_costs!$A:$A,W$615)","v":0},{"$f":"SUMIFS(raw_transmission_costs!$E:$E,raw_transmission_costs!$B:$B,$C717,raw_transmission_costs!$A:$A,X$615)","v":0},{"$f":"SUMIFS(raw_transmission_costs!$E:$E,raw_transmission_costs!$B:$B,$C717,raw_transmission_costs!$A:$A,Y$615)","v":0},{"$f":"SUMIFS(raw_transmission_costs!$E:$E,raw_transmission_costs!$B:$B,$C717,raw_transmission_costs!$A:$A,Z$615)","v":0},{"$f":"SUMIFS(raw_transmission_costs!$E:$E,raw_transmission_costs!$B:$B,$C717,raw_transmission_costs!$A:$A,AA$615)","v":0},{"$f":"SUMIFS(raw_transmission_costs!$E:$E,raw_transmission_costs!$B:$B,$C717,raw_transmission_costs!$A:$A,AB$615)","v":0},{"$f":"SUMIFS(raw_transmission_costs!$E:$E,raw_transmission_costs!$B:$B,$C717,raw_transmission_costs!$A:$A,AC$615)","v":0},{"$f":"SUMIFS(raw_transmission_costs!$E:$E,raw_transmission_costs!$B:$B,$C717,raw_transmission_costs!$A:$A,AD$615)","v":0},{"$f":"SUMIFS(raw_transmission_costs!$E:$E,raw_transmission_costs!$B:$B,$C717,raw_transmission_costs!$A:$A,AE$615)","v":0},{"$f":"SUMIFS(raw_transmission_costs!$E:$E,raw_transmission_costs!$B:$B,$C717,raw_transmission_costs!$A:$A,AF$615)","v":0},{"$f":"SUMIFS(raw_transmission_costs!$E:$E,raw_transmission_costs!$B:$B,$C717,raw_transmission_costs!$A:$A,AG$615)","v":0},{"$f":"SUMIFS(raw_transmission_costs!$E:$E,raw_transmission_costs!$B:$B,$C717,raw_transmission_costs!$A:$A,AH$615)","v":0},{"$f":"SUMIFS(raw_transmission_costs!$E:$E,raw_transmission_costs!$B:$B,$C717,raw_transmission_costs!$A:$A,AI$615)","v":76880.38},{"$f":"SUMIFS(raw_transmission_costs!$E:$E,raw_transmission_costs!$B:$B,$C717,raw_transmission_costs!$A:$A,AJ$615)","v":0},{"$f":"SUMIFS(raw_transmission_costs!$E:$E,raw_transmission_costs!$B:$B,$C717,raw_transmission_costs!$A:$A,AK$615)","v":0},{"$f":"SUMIFS(raw_transmission_costs!$E:$E,raw_transmission_costs!$B:$B,$C717,raw_transmission_costs!$A:$A,AL$615)","v":0},{"$f":"SUMIFS(raw_transmission_costs!$E:$E,raw_transmission_costs!$B:$B,$C717,raw_transmission_costs!$A:$A,AM$615)","v":0},{"$f":"SUMIFS(raw_transmission_costs!$E:$E,raw_transmission_costs!$B:$B,$C717,raw_transmission_costs!$A:$A,AN$615)","v":0}]
[null,null,"Tehachapi","MW",{"$f":"SUMIFS(raw_transmission_costs!$E:$E,raw_transmission_costs!$B:$B,$C718,raw_transmission_costs!$A:$A,E$615)","v":0},{"$f":"SUMIFS(raw_transmission_costs!$E:$E,raw_transmission_costs!$B:$B,$C718,raw_transmission_costs!$A:$A,F$615)","v":0},{"$f":"SUMIFS(raw_transmission_costs!$E:$E,raw_transmission_costs!$B:$B,$C718,raw_transmission_costs!$A:$A,G$615)","v":0},{"$f":"SUMIFS(raw_transmission_costs!$E:$E,raw_transmission_costs!$B:$B,$C718,raw_transmission_costs!$A:$A,H$615)","v":0},{"$f":"SUMIFS(raw_transmission_costs!$E:$E,raw_transmission_costs!$B:$B,$C718,raw_transmission_costs!$A:$A,I$615)","v":0},{"$f":"SUMIFS(raw_transmission_costs!$E:$E,raw_transmission_costs!$B:$B,$C718,raw_transmission_costs!$A:$A,J$615)","v":0},{"$f":"SUMIFS(raw_transmission_costs!$E:$E,raw_transmission_costs!$B:$B,$C718,raw_transmission_costs!$A:$A,K$615)","v":0},{"$f":"SUMIFS(raw_transmission_costs!$E:$E,raw_transmission_costs!$B:$B,$C718,raw_transmission_costs!$A:$A,L$615)","v":0},{"$f":"SUMIFS(raw_transmission_costs!$E:$E,raw_transmission_costs!$B:$B,$C718,raw_transmission_costs!$A:$A,M$615)","v":0},{"$f":"SUMIFS(raw_transmission_costs!$E:$E,raw_transmission_costs!$B:$B,$C718,raw_transmission_costs!$A:$A,N$615)","v":0},{"$f":"SUMIFS(raw_transmission_costs!$E:$E,raw_transmission_costs!$B:$B,$C718,raw_transmission_costs!$A:$A,O$615)","v":0},{"$f":"SUMIFS(raw_transmission_costs!$E:$E,raw_transmission_costs!$B:$B,$C718,raw_transmission_costs!$A:$A,P$615)","v":599},{"$f":"SUMIFS(raw_transmission_costs!$E:$E,raw_transmission_costs!$B:$B,$C718,raw_transmission_costs!$A:$A,Q$615)","v":0},{"$f":"SUMIFS(raw_transmission_costs!$E:$E,raw_transmission_costs!$B:$B,$C718,raw_transmission_costs!$A:$A,R$615)","v":0},{"$f":"SUMIFS(raw_transmission_costs!$E:$E,raw_transmission_costs!$B:$B,$C718,raw_transmission_costs!$A:$A,S$615)","v":0},{"$f":"SUMIFS(raw_transmission_costs!$E:$E,raw_transmission_costs!$B:$B,$C718,raw_transmission_costs!$A:$A,T$615)","v":599},{"$f":"SUMIFS(raw_transmission_costs!$E:$E,raw_transmission_costs!$B:$B,$C718,raw_transmission_costs!$A:$A,U$615)","v":0},{"$f":"SUMIFS(raw_transmission_costs!$E:$E,raw_transmission_costs!$B:$B,$C718,raw_transmission_costs!$A:$A,V$615)","v":0},{"$f":"SUMIFS(raw_transmission_costs!$E:$E,raw_transmission_costs!$B:$B,$C718,raw_transmission_costs!$A:$A,W$615)","v":0},{"$f":"SUMIFS(raw_transmission_costs!$E:$E,raw_transmission_costs!$B:$B,$C718,raw_transmission_costs!$A:$A,X$615)","v":0},{"$f":"SUMIFS(raw_transmission_costs!$E:$E,raw_transmission_costs!$B:$B,$C718,raw_transmission_costs!$A:$A,Y$615)","v":0},{"$f":"SUMIFS(raw_transmission_costs!$E:$E,raw_transmission_costs!$B:$B,$C718,raw_transmission_costs!$A:$A,Z$615)","v":0},{"$f":"SUMIFS(raw_transmission_costs!$E:$E,raw_transmission_costs!$B:$B,$C718,raw_transmission_costs!$A:$A,AA$615)","v":0},{"$f":"SUMIFS(raw_transmission_costs!$E:$E,raw_transmission_costs!$B:$B,$C718,raw_transmission_costs!$A:$A,AB$615)","v":0},{"$f":"SUMIFS(raw_transmission_costs!$E:$E,raw_transmission_costs!$B:$B,$C718,raw_transmission_costs!$A:$A,AC$615)","v":0},{"$f":"SUMIFS(raw_transmission_costs!$E:$E,raw_transmission_costs!$B:$B,$C718,raw_transmission_costs!$A:$A,AD$615)","v":0},{"$f":"SUMIFS(raw_transmission_costs!$E:$E,raw_transmission_costs!$B:$B,$C718,raw_transmission_costs!$A:$A,AE$615)","v":0},{"$f":"SUMIFS(raw_transmission_costs!$E:$E,raw_transmission_costs!$B:$B,$C718,raw_transmission_costs!$A:$A,AF$615)","v":0},{"$f":"SUMIFS(raw_transmission_costs!$E:$E,raw_transmission_costs!$B:$B,$C718,raw_transmission_costs!$A:$A,AG$615)","v":0},{"$f":"SUMIFS(raw_transmission_costs!$E:$E,raw_transmission_costs!$B:$B,$C718,raw_transmission_costs!$A:$A,AH$615)","v":0},{"$f":"SUMIFS(raw_transmission_costs!$E:$E,raw_transmission_costs!$B:$B,$C718,raw_transmission_costs!$A:$A,AI$615)","v":599},{"$f":"SUMIFS(raw_transmission_costs!$E:$E,raw_transmission_costs!$B:$B,$C718,raw_transmission_costs!$A:$A,AJ$615)","v":0},{"$f":"SUMIFS(raw_transmission_costs!$E:$E,raw_transmission_costs!$B:$B,$C718,raw_transmission_costs!$A:$A,AK$615)","v":0},{"$f":"SUMIFS(raw_transmission_costs!$E:$E,raw_transmission_costs!$B:$B,$C718,raw_transmission_costs!$A:$A,AL$615)","v":0},{"$f":"SUMIFS(raw_transmission_costs!$E:$E,raw_transmission_costs!$B:$B,$C718,raw_transmission_costs!$A:$A,AM$615)","v":0},{"$f":"SUMIFS(raw_transmission_costs!$E:$E,raw_transmission_costs!$B:$B,$C718,raw_transmission_costs!$A:$A,AN$615)","v":0}]
[null,null,"Northern_California_Ex","MW",{"$f":"SUMIFS(raw_transmission_costs!$E:$E,raw_transmission_costs!$B:$B,$C719,raw_transmission_costs!$A:$A,E$615)","v":0},{"$f":"SUMIFS(raw_transmission_costs!$E:$E,raw_transmission_costs!$B:$B,$C719,raw_transmission_costs!$A:$A,F$615)","v":0},{"$f":"SUMIFS(raw_transmission_costs!$E:$E,raw_transmission_costs!$B:$B,$C719,raw_transmission_costs!$A:$A,G$615)","v":0},{"$f":"SUMIFS(raw_transmission_costs!$E:$E,raw_transmission_costs!$B:$B,$C719,raw_transmission_costs!$A:$A,H$615)","v":0},{"$f":"SUMIFS(raw_transmission_costs!$E:$E,raw_transmission_costs!$B:$B,$C719,raw_transmission_costs!$A:$A,I$615)","v":0},{"$f":"SUMIFS(raw_transmission_costs!$E:$E,raw_transmission_costs!$B:$B,$C719,raw_transmission_costs!$A:$A,J$615)","v":0},{"$f":"SUMIFS(raw_transmission_costs!$E:$E,raw_transmission_costs!$B:$B,$C719,raw_transmission_costs!$A:$A,K$615)","v":0},{"$f":"SUMIFS(raw_transmission_costs!$E:$E,raw_transmission_costs!$B:$B,$C719,raw_transmission_costs!$A:$A,L$615)","v":0},{"$f":"SUMIFS(raw_transmission_costs!$E:$E,raw_transmission_costs!$B:$B,$C719,raw_transmission_costs!$A:$A,M$615)","v":0},{"$f":"SUMIFS(raw_transmission_costs!$E:$E,raw_transmission_costs!$B:$B,$C719,raw_transmission_costs!$A:$A,N$615)","v":0},{"$f":"SUMIFS(raw_transmission_costs!$E:$E,raw_transmission_costs!$B:$B,$C719,raw_transmission_costs!$A:$A,O$615)","v":0},{"$f":"SUMIFS(raw_transmission_costs!$E:$E,raw_transmission_costs!$B:$B,$C719,raw_transmission_costs!$A:$A,P$615)","v":0},{"$f":"SUMIFS(raw_transmission_costs!$E:$E,raw_transmission_costs!$B:$B,$C719,raw_transmission_costs!$A:$A,Q$615)","v":0},{"$f":"SUMIFS(raw_transmission_costs!$E:$E,raw_transmission_costs!$B:$B,$C719,raw_transmission_costs!$A:$A,R$615)","v":0},{"$f":"SUMIFS(raw_transmission_costs!$E:$E,raw_transmission_costs!$B:$B,$C719,raw_transmission_costs!$A:$A,S$615)","v":0},{"$f":"SUMIFS(raw_transmission_costs!$E:$E,raw_transmission_costs!$B:$B,$C719,raw_transmission_costs!$A:$A,T$615)","v":0},{"$f":"SUMIFS(raw_transmission_costs!$E:$E,raw_transmission_costs!$B:$B,$C719,raw_transmission_costs!$A:$A,U$615)","v":0},{"$f":"SUMIFS(raw_transmission_costs!$E:$E,raw_transmission_costs!$B:$B,$C719,raw_transmission_costs!$A:$A,V$615)","v":0},{"$f":"SUMIFS(raw_transmission_costs!$E:$E,raw_transmission_costs!$B:$B,$C719,raw_transmission_costs!$A:$A,W$615)","v":0},{"$f":"SUMIFS(raw_transmission_costs!$E:$E,raw_transmission_costs!$B:$B,$C719,raw_transmission_costs!$A:$A,X$615)","v":0},{"$f":"SUMIFS(raw_transmission_costs!$E:$E,raw_transmission_costs!$B:$B,$C719,raw_transmission_costs!$A:$A,Y$615)","v":0},{"$f":"SUMIFS(raw_transmission_costs!$E:$E,raw_transmission_costs!$B:$B,$C719,raw_transmission_costs!$A:$A,Z$615)","v":0},{"$f":"SUMIFS(raw_transmission_costs!$E:$E,raw_transmission_costs!$B:$B,$C719,raw_transmission_costs!$A:$A,AA$615)","v":0},{"$f":"SUMIFS(raw_transmission_costs!$E:$E,raw_transmission_costs!$B:$B,$C719,raw_transmission_costs!$A:$A,AB$615)","v":0},{"$f":"SUMIFS(raw_transmission_costs!$E:$E,raw_transmission_costs!$B:$B,$C719,raw_transmission_costs!$A:$A,AC$615)","v":0},{"$f":"SUMIFS(raw_transmission_costs!$E:$E,raw_transmission_costs!$B:$B,$C719,raw_transmission_costs!$A:$A,AD$615)","v":0},{"$f":"SUMIFS(raw_transmission_costs!$E:$E,raw_transmission_costs!$B:$B,$C719,raw_transmission_costs!$A:$A,AE$615)","v":0},{"$f":"SUMIFS(raw_transmission_costs!$E:$E,raw_transmission_costs!$B:$B,$C719,raw_transmission_costs!$A:$A,AF$615)","v":0},{"$f":"SUMIFS(raw_transmission_costs!$E:$E,raw_transmission_costs!$B:$B,$C719,raw_transmission_costs!$A:$A,AG$615)","v":0},{"$f":"SUMIFS(raw_transmission_costs!$E:$E,raw_transmission_costs!$B:$B,$C719,raw_transmission_costs!$A:$A,AH$615)","v":0},{"$f":"SUMIFS(raw_transmission_costs!$E:$E,raw_transmission_costs!$B:$B,$C719,raw_transmission_costs!$A:$A,AI$615)","v":0},{"$f":"SUMIFS(raw_transmission_costs!$E:$E,raw_transmission_costs!$B:$B,$C719,raw_transmission_costs!$A:$A,AJ$615)","v":0},{"$f":"SUMIFS(raw_transmission_costs!$E:$E,raw_transmission_costs!$B:$B,$C719,raw_transmission_costs!$A:$A,AK$615)","v":0},{"$f":"SUMIFS(raw_transmission_costs!$E:$E,raw_transmission_costs!$B:$B,$C719,raw_transmission_costs!$A:$A,AL$615)","v":0},{"$f":"SUMIFS(raw_transmission_costs!$E:$E,raw_transmission_costs!$B:$B,$C719,raw_transmission_costs!$A:$A,AM$615)","v":0},{"$f":"SUMIFS(raw_transmission_costs!$E:$E,raw_transmission_costs!$B:$B,$C719,raw_transmission_costs!$A:$A,AN$615)","v":0}]
[null,null,"Westlands_Ex","MW",{"$f":"SUMIFS(raw_transmission_costs!$E:$E,raw_transmission_costs!$B:$B,$C720,raw_transmission_costs!$A:$A,E$615)","v":0},{"$f":"SUMIFS(raw_transmission_costs!$E:$E,raw_transmission_costs!$B:$B,$C720,raw_transmission_costs!$A:$A,F$615)","v":0},{"$f":"SUMIFS(raw_transmission_costs!$E:$E,raw_transmission_costs!$B:$B,$C720,raw_transmission_costs!$A:$A,G$615)","v":0},{"$f":"SUMIFS(raw_transmission_costs!$E:$E,raw_transmission_costs!$B:$B,$C720,raw_transmission_costs!$A:$A,H$615)","v":0},{"$f":"SUMIFS(raw_transmission_costs!$E:$E,raw_transmission_costs!$B:$B,$C720,raw_transmission_costs!$A:$A,I$615)","v":0},{"$f":"SUMIFS(raw_transmission_costs!$E:$E,raw_transmission_costs!$B:$B,$C720,raw_transmission_costs!$A:$A,J$615)","v":0},{"$f":"SUMIFS(raw_transmission_costs!$E:$E,raw_transmission_costs!$B:$B,$C720,raw_transmission_costs!$A:$A,K$615)","v":0},{"$f":"SUMIFS(raw_transmission_costs!$E:$E,raw_transmission_costs!$B:$B,$C720,raw_transmission_costs!$A:$A,L$615)","v":0},{"$f":"SUMIFS(raw_transmission_costs!$E:$E,raw_transmission_costs!$B:$B,$C720,raw_transmission_costs!$A:$A,M$615)","v":0},{"$f":"SUMIFS(raw_transmission_costs!$E:$E,raw_transmission_costs!$B:$B,$C720,raw_transmission_costs!$A:$A,N$615)","v":0},{"$f":"SUMIFS(raw_transmission_costs!$E:$E,raw_transmission_costs!$B:$B,$C720,raw_transmission_costs!$A:$A,O$615)","v":0},{"$f":"SUMIFS(raw_transmission_costs!$E:$E,raw_transmission_costs!$B:$B,$C720,raw_transmission_costs!$A:$A,P$615)","v":0},{"$f":"SUMIFS(raw_transmission_costs!$E:$E,raw_transmission_costs!$B:$B,$C720,raw_transmission_costs!$A:$A,Q$615)","v":0},{"$f":"SUMIFS(raw_transmission_costs!$E:$E,raw_transmission_costs!$B:$B,$C720,raw_transmission_costs!$A:$A,R$615)","v":0},{"$f":"SUMIFS(raw_transmission_costs!$E:$E,raw_transmission_costs!$B:$B,$C720,raw_transmission_costs!$A:$A,S$615)","v":0},{"$f":"SUMIFS(raw_transmission_costs!$E:$E,raw_transmission_costs!$B:$B,$C720,raw_transmission_costs!$A:$A,T$615)","v":0},{"$f":"SUMIFS(raw_transmission_costs!$E:$E,raw_transmission_costs!$B:$B,$C720,raw_transmission_costs!$A:$A,U$615)","v":0},{"$f":"SUMIFS(raw_transmission_costs!$E:$E,raw_transmission_costs!$B:$B,$C720,raw_transmission_costs!$A:$A,V$615)","v":0},{"$f":"SUMIFS(raw_transmission_costs!$E:$E,raw_transmission_costs!$B:$B,$C720,raw_transmission_costs!$A:$A,W$615)","v":0},{"$f":"SUMIFS(raw_transmission_costs!$E:$E,raw_transmission_costs!$B:$B,$C720,raw_transmission_costs!$A:$A,X$615)","v":0},{"$f":"SUMIFS(raw_transmission_costs!$E:$E,raw_transmission_costs!$B:$B,$C720,raw_transmission_costs!$A:$A,Y$615)","v":0},{"$f":"SUMIFS(raw_transmission_costs!$E:$E,raw_transmission_costs!$B:$B,$C720,raw_transmission_costs!$A:$A,Z$615)","v":0},{"$f":"SUMIFS(raw_transmission_costs!$E:$E,raw_transmission_costs!$B:$B,$C720,raw_transmission_costs!$A:$A,AA$615)","v":0},{"$f":"SUMIFS(raw_transmission_costs!$E:$E,raw_transmission_costs!$B:$B,$C720,raw_transmission_costs!$A:$A,AB$615)","v":0},{"$f":"SUMIFS(raw_transmission_costs!$E:$E,raw_transmission_costs!$B:$B,$C720,raw_transmission_costs!$A:$A,AC$615)","v":0},{"$f":"SUMIFS(raw_transmission_costs!$E:$E,raw_transmission_costs!$B:$B,$C720,raw_transmission_costs!$A:$A,AD$615)","v":0},{"$f":"SUMIFS(raw_transmission_costs!$E:$E,raw_transmission_costs!$B:$B,$C720,raw_transmission_costs!$A:$A,AE$615)","v":0},{"$f":"SUMIFS(raw_transmission_costs!$E:$E,raw_transmission_costs!$B:$B,$C720,raw_transmission_costs!$A:$A,AF$615)","v":0},{"$f":"SUMIFS(raw_transmission_costs!$E:$E,raw_transmission_costs!$B:$B,$C720,raw_transmission_costs!$A:$A,AG$615)","v":0},{"$f":"SUMIFS(raw_transmission_costs!$E:$E,raw_transmission_costs!$B:$B,$C720,raw_transmission_costs!$A:$A,AH$615)","v":0},{"$f":"SUMIFS(raw_transmission_costs!$E:$E,raw_transmission_costs!$B:$B,$C720,raw_transmission_costs!$A:$A,AI$615)","v":0},{"$f":"SUMIFS(raw_transmission_costs!$E:$E,raw_transmission_costs!$B:$B,$C720,raw_transmission_costs!$A:$A,AJ$615)","v":0},{"$f":"SUMIFS(raw_transmission_costs!$E:$E,raw_transmission_costs!$B:$B,$C720,raw_transmission_costs!$A:$A,AK$615)","v":0},{"$f":"SUMIFS(raw_transmission_costs!$E:$E,raw_transmission_costs!$B:$B,$C720,raw_transmission_costs!$A:$A,AL$615)","v":0},{"$f":"SUMIFS(raw_transmission_costs!$E:$E,raw_transmission_costs!$B:$B,$C720,raw_transmission_costs!$A:$A,AM$615)","v":0},{"$f":"SUMIFS(raw_transmission_costs!$E:$E,raw_transmission_costs!$B:$B,$C720,raw_transmission_costs!$A:$A,AN$615)","v":0}]
[null,null,"Tehachapi_Ex","MW",{"$f":"SUMIFS(raw_transmission_costs!$E:$E,raw_transmission_costs!$B:$B,$C721,raw_transmission_costs!$A:$A,E$615)","v":0},{"$f":"SUMIFS(raw_transmission_costs!$E:$E,raw_transmission_costs!$B:$B,$C721,raw_transmission_costs!$A:$A,F$615)","v":0},{"$f":"SUMIFS(raw_transmission_costs!$E:$E,raw_transmission_costs!$B:$B,$C721,raw_transmission_costs!$A:$A,G$615)","v":0},{"$f":"SUMIFS(raw_transmission_costs!$E:$E,raw_transmission_costs!$B:$B,$C721,raw_transmission_costs!$A:$A,H$615)","v":0},{"$f":"SUMIFS(raw_transmission_costs!$E:$E,raw_transmission_costs!$B:$B,$C721,raw_transmission_costs!$A:$A,I$615)","v":0},{"$f":"SUMIFS(raw_transmission_costs!$E:$E,raw_transmission_costs!$B:$B,$C721,raw_transmission_costs!$A:$A,J$615)","v":0},{"$f":"SUMIFS(raw_transmission_costs!$E:$E,raw_transmission_costs!$B:$B,$C721,raw_transmission_costs!$A:$A,K$615)","v":0},{"$f":"SUMIFS(raw_transmission_costs!$E:$E,raw_transmission_costs!$B:$B,$C721,raw_transmission_costs!$A:$A,L$615)","v":0},{"$f":"SUMIFS(raw_transmission_costs!$E:$E,raw_transmission_costs!$B:$B,$C721,raw_transmission_costs!$A:$A,M$615)","v":0},{"$f":"SUMIFS(raw_transmission_costs!$E:$E,raw_transmission_costs!$B:$B,$C721,raw_transmission_costs!$A:$A,N$615)","v":0},{"$f":"SUMIFS(raw_transmission_costs!$E:$E,raw_transmission_costs!$B:$B,$C721,raw_transmission_costs!$A:$A,O$615)","v":0},{"$f":"SUMIFS(raw_transmission_costs!$E:$E,raw_transmission_costs!$B:$B,$C721,raw_transmission_costs!$A:$A,P$615)","v":0},{"$f":"SUMIFS(raw_transmission_costs!$E:$E,raw_transmission_costs!$B:$B,$C721,raw_transmission_costs!$A:$A,Q$615)","v":0},{"$f":"SUMIFS(raw_transmission_costs!$E:$E,raw_transmission_costs!$B:$B,$C721,raw_transmission_costs!$A:$A,R$615)","v":0},{"$f":"SUMIFS(raw_transmission_costs!$E:$E,raw_transmission_costs!$B:$B,$C721,raw_transmission_costs!$A:$A,S$615)","v":0},{"$f":"SUMIFS(raw_transmission_costs!$E:$E,raw_transmission_costs!$B:$B,$C721,raw_transmission_costs!$A:$A,T$615)","v":0},{"$f":"SUMIFS(raw_transmission_costs!$E:$E,raw_transmission_costs!$B:$B,$C721,raw_transmission_costs!$A:$A,U$615)","v":0},{"$f":"SUMIFS(raw_transmission_costs!$E:$E,raw_transmission_costs!$B:$B,$C721,raw_transmission_costs!$A:$A,V$615)","v":0},{"$f":"SUMIFS(raw_transmission_costs!$E:$E,raw_transmission_costs!$B:$B,$C721,raw_transmission_costs!$A:$A,W$615)","v":0},{"$f":"SUMIFS(raw_transmission_costs!$E:$E,raw_transmission_costs!$B:$B,$C721,raw_transmission_costs!$A:$A,X$615)","v":0},{"$f":"SUMIFS(raw_transmission_costs!$E:$E,raw_transmission_costs!$B:$B,$C721,raw_transmission_costs!$A:$A,Y$615)","v":0},{"$f":"SUMIFS(raw_transmission_costs!$E:$E,raw_transmission_costs!$B:$B,$C721,raw_transmission_costs!$A:$A,Z$615)","v":0},{"$f":"SUMIFS(raw_transmission_costs!$E:$E,raw_transmission_costs!$B:$B,$C721,raw_transmission_costs!$A:$A,AA$615)","v":0},{"$f":"SUMIFS(raw_transmission_costs!$E:$E,raw_transmission_costs!$B:$B,$C721,raw_transmission_costs!$A:$A,AB$615)","v":0},{"$f":"SUMIFS(raw_transmission_costs!$E:$E,raw_transmission_costs!$B:$B,$C721,raw_transmission_costs!$A:$A,AC$615)","v":0},{"$f":"SUMIFS(raw_transmission_costs!$E:$E,raw_transmission_costs!$B:$B,$C721,raw_transmission_costs!$A:$A,AD$615)","v":0},{"$f":"SUMIFS(raw_transmission_costs!$E:$E,raw_transmission_costs!$B:$B,$C721,raw_transmission_costs!$A:$A,AE$615)","v":0},{"$f":"SUMIFS(raw_transmission_costs!$E:$E,raw_transmission_costs!$B:$B,$C721,raw_transmission_costs!$A:$A,AF$615)","v":0},{"$f":"SUMIFS(raw_transmission_costs!$E:$E,raw_transmission_costs!$B:$B,$C721,raw_transmission_costs!$A:$A,AG$615)","v":0},{"$f":"SUMIFS(raw_transmission_costs!$E:$E,raw_transmission_costs!$B:$B,$C721,raw_transmission_costs!$A:$A,AH$615)","v":0},{"$f":"SUMIFS(raw_transmission_costs!$E:$E,raw_transmission_costs!$B:$B,$C721,raw_transmission_costs!$A:$A,AI$615)","v":0},{"$f":"SUMIFS(raw_transmission_costs!$E:$E,raw_transmission_costs!$B:$B,$C721,raw_transmission_costs!$A:$A,AJ$615)","v":0},{"$f":"SUMIFS(raw_transmission_costs!$E:$E,raw_transmission_costs!$B:$B,$C721,raw_transmission_costs!$A:$A,AK$615)","v":0},{"$f":"SUMIFS(raw_transmission_costs!$E:$E,raw_transmission_costs!$B:$B,$C721,raw_transmission_costs!$A:$A,AL$615)","v":0},{"$f":"SUMIFS(raw_transmission_costs!$E:$E,raw_transmission_costs!$B:$B,$C721,raw_transmission_costs!$A:$A,AM$615)","v":0},{"$f":"SUMIFS(raw_transmission_costs!$E:$E,raw_transmission_costs!$B:$B,$C721,raw_transmission_costs!$A:$A,AN$615)","v":0}]
[null,null,"Kramer_Inyokern_Ex","MW",{"$f":"SUMIFS(raw_transmission_costs!$E:$E,raw_transmission_costs!$B:$B,$C722,raw_transmission_costs!$A:$A,E$615)","v":0},{"$f":"SUMIFS(raw_transmission_costs!$E:$E,raw_transmission_costs!$B:$B,$C722,raw_transmission_costs!$A:$A,F$615)","v":0},{"$f":"SUMIFS(raw_transmission_costs!$E:$E,raw_transmission_costs!$B:$B,$C722,raw_transmission_costs!$A:$A,G$615)","v":0},{"$f":"SUMIFS(raw_transmission_costs!$E:$E,raw_transmission_costs!$B:$B,$C722,raw_transmission_costs!$A:$A,H$615)","v":0},{"$f":"SUMIFS(raw_transmission_costs!$E:$E,raw_transmission_costs!$B:$B,$C722,raw_transmission_costs!$A:$A,I$615)","v":0},{"$f":"SUMIFS(raw_transmission_costs!$E:$E,raw_transmission_costs!$B:$B,$C722,raw_transmission_costs!$A:$A,J$615)","v":0},{"$f":"SUMIFS(raw_transmission_costs!$E:$E,raw_transmission_costs!$B:$B,$C722,raw_transmission_costs!$A:$A,K$615)","v":0},{"$f":"SUMIFS(raw_transmission_costs!$E:$E,raw_transmission_costs!$B:$B,$C722,raw_transmission_costs!$A:$A,L$615)","v":0},{"$f":"SUMIFS(raw_transmission_costs!$E:$E,raw_transmission_costs!$B:$B,$C722,raw_transmission_costs!$A:$A,M$615)","v":0},{"$f":"SUMIFS(raw_transmission_costs!$E:$E,raw_transmission_costs!$B:$B,$C722,raw_transmission_costs!$A:$A,N$615)","v":0},{"$f":"SUMIFS(raw_transmission_costs!$E:$E,raw_transmission_costs!$B:$B,$C722,raw_transmission_costs!$A:$A,O$615)","v":0},{"$f":"SUMIFS(raw_transmission_costs!$E:$E,raw_transmission_costs!$B:$B,$C722,raw_transmission_costs!$A:$A,P$615)","v":0},{"$f":"SUMIFS(raw_transmission_costs!$E:$E,raw_transmission_costs!$B:$B,$C722,raw_transmission_costs!$A:$A,Q$615)","v":0},{"$f":"SUMIFS(raw_transmission_costs!$E:$E,raw_transmission_costs!$B:$B,$C722,raw_transmission_costs!$A:$A,R$615)","v":0},{"$f":"SUMIFS(raw_transmission_costs!$E:$E,raw_transmission_costs!$B:$B,$C722,raw_transmission_costs!$A:$A,S$615)","v":0},{"$f":"SUMIFS(raw_transmission_costs!$E:$E,raw_transmission_costs!$B:$B,$C722,raw_transmission_costs!$A:$A,T$615)","v":0},{"$f":"SUMIFS(raw_transmission_costs!$E:$E,raw_transmission_costs!$B:$B,$C722,raw_transmission_costs!$A:$A,U$615)","v":0},{"$f":"SUMIFS(raw_transmission_costs!$E:$E,raw_transmission_costs!$B:$B,$C722,raw_transmission_costs!$A:$A,V$615)","v":0},{"$f":"SUMIFS(raw_transmission_costs!$E:$E,raw_transmission_costs!$B:$B,$C722,raw_transmission_costs!$A:$A,W$615)","v":0},{"$f":"SUMIFS(raw_transmission_costs!$E:$E,raw_transmission_costs!$B:$B,$C722,raw_transmission_costs!$A:$A,X$615)","v":0},{"$f":"SUMIFS(raw_transmission_costs!$E:$E,raw_transmission_costs!$B:$B,$C722,raw_transmission_costs!$A:$A,Y$615)","v":0},{"$f":"SUMIFS(raw_transmission_costs!$E:$E,raw_transmission_costs!$B:$B,$C722,raw_transmission_costs!$A:$A,Z$615)","v":0},{"$f":"SUMIFS(raw_transmission_costs!$E:$E,raw_transmission_costs!$B:$B,$C722,raw_transmission_costs!$A:$A,AA$615)","v":0},{"$f":"SUMIFS(raw_transmission_costs!$E:$E,raw_transmission_costs!$B:$B,$C722,raw_transmission_costs!$A:$A,AB$615)","v":0},{"$f":"SUMIFS(raw_transmission_costs!$E:$E,raw_transmission_costs!$B:$B,$C722,raw_transmission_costs!$A:$A,AC$615)","v":0},{"$f":"SUMIFS(raw_transmission_costs!$E:$E,raw_transmission_costs!$B:$B,$C722,raw_transmission_costs!$A:$A,AD$615)","v":0},{"$f":"SUMIFS(raw_transmission_costs!$E:$E,raw_transmission_costs!$B:$B,$C722,raw_transmission_costs!$A:$A,AE$615)","v":0},{"$f":"SUMIFS(raw_transmission_costs!$E:$E,raw_transmission_costs!$B:$B,$C722,raw_transmission_costs!$A:$A,AF$615)","v":0},{"$f":"SUMIFS(raw_transmission_costs!$E:$E,raw_transmission_costs!$B:$B,$C722,raw_transmission_costs!$A:$A,AG$615)","v":0},{"$f":"SUMIFS(raw_transmission_costs!$E:$E,raw_transmission_costs!$B:$B,$C722,raw_transmission_costs!$A:$A,AH$615)","v":0},{"$f":"SUMIFS(raw_transmission_costs!$E:$E,raw_transmission_costs!$B:$B,$C722,raw_transmission_costs!$A:$A,AI$615)","v":0},{"$f":"SUMIFS(raw_transmission_costs!$E:$E,raw_transmission_costs!$B:$B,$C722,raw_transmission_costs!$A:$A,AJ$615)","v":0},{"$f":"SUMIFS(raw_transmission_costs!$E:$E,raw_transmission_costs!$B:$B,$C722,raw_transmission_costs!$A:$A,AK$615)","v":0},{"$f":"SUMIFS(raw_transmission_costs!$E:$E,raw_transmission_costs!$B:$B,$C722,raw_transmission_costs!$A:$A,AL$615)","v":0},{"$f":"SUMIFS(raw_transmission_costs!$E:$E,raw_transmission_costs!$B:$B,$C722,raw_transmission_costs!$A:$A,AM$615)","v":0},{"$f":"SUMIFS(raw_transmission_costs!$E:$E,raw_transmission_costs!$B:$B,$C722,raw_transmission_costs!$A:$A,AN$615)","v":0}]
[null,null,"Southern_California_Desert_Ex","MW",{"$f":"SUMIFS(raw_transmission_costs!$E:$E,raw_transmission_costs!$B:$B,$C723,raw_transmission_costs!$A:$A,E$615)","v":0},{"$f":"SUMIFS(raw_transmission_costs!$E:$E,raw_transmission_costs!$B:$B,$C723,raw_transmission_costs!$A:$A,F$615)","v":0},{"$f":"SUMIFS(raw_transmission_costs!$E:$E,raw_transmission_costs!$B:$B,$C723,raw_transmission_costs!$A:$A,G$615)","v":0},{"$f":"SUMIFS(raw_transmission_costs!$E:$E,raw_transmission_costs!$B:$B,$C723,raw_transmission_costs!$A:$A,H$615)","v":0},{"$f":"SUMIFS(raw_transmission_costs!$E:$E,raw_transmission_costs!$B:$B,$C723,raw_transmission_costs!$A:$A,I$615)","v":0},{"$f":"SUMIFS(raw_transmission_costs!$E:$E,raw_transmission_costs!$B:$B,$C723,raw_transmission_costs!$A:$A,J$615)","v":0},{"$f":"SUMIFS(raw_transmission_costs!$E:$E,raw_transmission_costs!$B:$B,$C723,raw_transmission_costs!$A:$A,K$615)","v":0},{"$f":"SUMIFS(raw_transmission_costs!$E:$E,raw_transmission_costs!$B:$B,$C723,raw_transmission_costs!$A:$A,L$615)","v":0},{"$f":"SUMIFS(raw_transmission_costs!$E:$E,raw_transmission_costs!$B:$B,$C723,raw_transmission_costs!$A:$A,M$615)","v":0},{"$f":"SUMIFS(raw_transmission_costs!$E:$E,raw_transmission_costs!$B:$B,$C723,raw_transmission_costs!$A:$A,N$615)","v":0},{"$f":"SUMIFS(raw_transmission_costs!$E:$E,raw_transmission_costs!$B:$B,$C723,raw_transmission_costs!$A:$A,O$615)","v":0},{"$f":"SUMIFS(raw_transmission_costs!$E:$E,raw_transmission_costs!$B:$B,$C723,raw_transmission_costs!$A:$A,P$615)","v":0},{"$f":"SUMIFS(raw_transmission_costs!$E:$E,raw_transmission_costs!$B:$B,$C723,raw_transmission_costs!$A:$A,Q$615)","v":0},{"$f":"SUMIFS(raw_transmission_costs!$E:$E,raw_transmission_costs!$B:$B,$C723,raw_transmission_costs!$A:$A,R$615)","v":0},{"$f":"SUMIFS(raw_transmission_costs!$E:$E,raw_transmission_costs!$B:$B,$C723,raw_transmission_costs!$A:$A,S$615)","v":0},{"$f":"SUMIFS(raw_transmission_costs!$E:$E,raw_transmission_costs!$B:$B,$C723,raw_transmission_costs!$A:$A,T$615)","v":0},{"$f":"SUMIFS(raw_transmission_costs!$E:$E,raw_transmission_costs!$B:$B,$C723,raw_transmission_costs!$A:$A,U$615)","v":0},{"$f":"SUMIFS(raw_transmission_costs!$E:$E,raw_transmission_costs!$B:$B,$C723,raw_transmission_costs!$A:$A,V$615)","v":0},{"$f":"SUMIFS(raw_transmission_costs!$E:$E,raw_transmission_costs!$B:$B,$C723,raw_transmission_costs!$A:$A,W$615)","v":0},{"$f":"SUMIFS(raw_transmission_costs!$E:$E,raw_transmission_costs!$B:$B,$C723,raw_transmission_costs!$A:$A,X$615)","v":0},{"$f":"SUMIFS(raw_transmission_costs!$E:$E,raw_transmission_costs!$B:$B,$C723,raw_transmission_costs!$A:$A,Y$615)","v":0},{"$f":"SUMIFS(raw_transmission_costs!$E:$E,raw_transmission_costs!$B:$B,$C723,raw_transmission_costs!$A:$A,Z$615)","v":0},{"$f":"SUMIFS(raw_transmission_costs!$E:$E,raw_transmission_costs!$B:$B,$C723,raw_transmission_costs!$A:$A,AA$615)","v":0},{"$f":"SUMIFS(raw_transmission_costs!$E:$E,raw_transmission_costs!$B:$B,$C723,raw_transmission_costs!$A:$A,AB$615)","v":0},{"$f":"SUMIFS(raw_transmission_costs!$E:$E,raw_transmission_costs!$B:$B,$C723,raw_transmission_costs!$A:$A,AC$615)","v":0},{"$f":"SUMIFS(raw_transmission_costs!$E:$E,raw_transmission_costs!$B:$B,$C723,raw_transmission_costs!$A:$A,AD$615)","v":0},{"$f":"SUMIFS(raw_transmission_costs!$E:$E,raw_transmission_costs!$B:$B,$C723,raw_transmission_costs!$A:$A,AE$615)","v":0},{"$f":"SUMIFS(raw_transmission_costs!$E:$E,raw_transmission_costs!$B:$B,$C723,raw_transmission_costs!$A:$A,AF$615)","v":0},{"$f":"SUMIFS(raw_transmission_costs!$E:$E,raw_transmission_costs!$B:$B,$C723,raw_transmission_costs!$A:$A,AG$615)","v":0},{"$f":"SUMIFS(raw_transmission_costs!$E:$E,raw_transmission_costs!$B:$B,$C723,raw_transmission_costs!$A:$A,AH$615)","v":0},{"$f":"SUMIFS(raw_transmission_costs!$E:$E,raw_transmission_costs!$B:$B,$C723,raw_transmission_costs!$A:$A,AI$615)","v":0},{"$f":"SUMIFS(raw_transmission_costs!$E:$E,raw_transmission_costs!$B:$B,$C723,raw_transmission_costs!$A:$A,AJ$615)","v":0},{"$f":"SUMIFS(raw_transmission_costs!$E:$E,raw_transmission_costs!$B:$B,$C723,raw_transmission_costs!$A:$A,AK$615)","v":0},{"$f":"SUMIFS(raw_transmission_costs!$E:$E,raw_transmission_costs!$B:$B,$C723,raw_transmission_costs!$A:$A,AL$615)","v":0},{"$f":"SUMIFS(raw_transmission_costs!$E:$E,raw_transmission_costs!$B:$B,$C723,raw_transmission_costs!$A:$A,AM$615)","v":0},{"$f":"SUMIFS(raw_transmission_costs!$E:$E,raw_transmission_costs!$B:$B,$C723,raw_transmission_costs!$A:$A,AN$615)","v":0}]
[null,null,"OffshoreWind_UnknownCost","MW",{"$f":"SUMIFS(raw_transmission_costs!$E:$E,raw_transmission_costs!$B:$B,$C724,raw_transmission_costs!$A:$A,E$615)","v":0},{"$f":"SUMIFS(raw_transmission_costs!$E:$E,raw_transmission_costs!$B:$B,$C724,raw_transmission_costs!$A:$A,F$615)","v":0},{"$f":"SUMIFS(raw_transmission_costs!$E:$E,raw_transmission_costs!$B:$B,$C724,raw_transmission_costs!$A:$A,G$615)","v":0},{"$f":"SUMIFS(raw_transmission_costs!$E:$E,raw_transmission_costs!$B:$B,$C724,raw_transmission_costs!$A:$A,H$615)","v":0},{"$f":"SUMIFS(raw_transmission_costs!$E:$E,raw_transmission_costs!$B:$B,$C724,raw_transmission_costs!$A:$A,I$615)","v":0},{"$f":"SUMIFS(raw_transmission_costs!$E:$E,raw_transmission_costs!$B:$B,$C724,raw_transmission_costs!$A:$A,J$615)","v":0},{"$f":"SUMIFS(raw_transmission_costs!$E:$E,raw_transmission_costs!$B:$B,$C724,raw_transmission_costs!$A:$A,K$615)","v":0},{"$f":"SUMIFS(raw_transmission_costs!$E:$E,raw_transmission_costs!$B:$B,$C724,raw_transmission_costs!$A:$A,L$615)","v":0},{"$f":"SUMIFS(raw_transmission_costs!$E:$E,raw_transmission_costs!$B:$B,$C724,raw_transmission_costs!$A:$A,M$615)","v":0},{"$f":"SUMIFS(raw_transmission_costs!$E:$E,raw_transmission_costs!$B:$B,$C724,raw_transmission_costs!$A:$A,N$615)","v":0},{"$f":"SUMIFS(raw_transmission_costs!$E:$E,raw_transmission_costs!$B:$B,$C724,raw_transmission_costs!$A:$A,O$615)","v":0},{"$f":"SUMIFS(raw_transmission_costs!$E:$E,raw_transmission_costs!$B:$B,$C724,raw_transmission_costs!$A:$A,P$615)","v":0},{"$f":"SUMIFS(raw_transmission_costs!$E:$E,raw_transmission_costs!$B:$B,$C724,raw_transmission_costs!$A:$A,Q$615)","v":0},{"$f":"SUMIFS(raw_transmission_costs!$E:$E,raw_transmission_costs!$B:$B,$C724,raw_transmission_costs!$A:$A,R$615)","v":0},{"$f":"SUMIFS(raw_transmission_costs!$E:$E,raw_transmission_costs!$B:$B,$C724,raw_transmission_costs!$A:$A,S$615)","v":0},{"$f":"SUMIFS(raw_transmission_costs!$E:$E,raw_transmission_costs!$B:$B,$C724,raw_transmission_costs!$A:$A,T$615)","v":0},{"$f":"SUMIFS(raw_transmission_costs!$E:$E,raw_transmission_costs!$B:$B,$C724,raw_transmission_costs!$A:$A,U$615)","v":0},{"$f":"SUMIFS(raw_transmission_costs!$E:$E,raw_transmission_costs!$B:$B,$C724,raw_transmission_costs!$A:$A,V$615)","v":0},{"$f":"SUMIFS(raw_transmission_costs!$E:$E,raw_transmission_costs!$B:$B,$C724,raw_transmission_costs!$A:$A,W$615)","v":0},{"$f":"SUMIFS(raw_transmission_costs!$E:$E,raw_transmission_costs!$B:$B,$C724,raw_transmission_costs!$A:$A,X$615)","v":0},{"$f":"SUMIFS(raw_transmission_costs!$E:$E,raw_transmission_costs!$B:$B,$C724,raw_transmission_costs!$A:$A,Y$615)","v":0},{"$f":"SUMIFS(raw_transmission_costs!$E:$E,raw_transmission_costs!$B:$B,$C724,raw_transmission_costs!$A:$A,Z$615)","v":0},{"$f":"SUMIFS(raw_transmission_costs!$E:$E,raw_transmission_costs!$B:$B,$C724,raw_transmission_costs!$A:$A,AA$615)","v":0},{"$f":"SUMIFS(raw_transmission_costs!$E:$E,raw_transmission_costs!$B:$B,$C724,raw_transmission_costs!$A:$A,AB$615)","v":0},{"$f":"SUMIFS(raw_transmission_costs!$E:$E,raw_transmission_costs!$B:$B,$C724,raw_transmission_costs!$A:$A,AC$615)","v":0},{"$f":"SUMIFS(raw_transmission_costs!$E:$E,raw_transmission_costs!$B:$B,$C724,raw_transmission_costs!$A:$A,AD$615)","v":0},{"$f":"SUMIFS(raw_transmission_costs!$E:$E,raw_transmission_costs!$B:$B,$C724,raw_transmission_costs!$A:$A,AE$615)","v":0},{"$f":"SUMIFS(raw_transmission_costs!$E:$E,raw_transmission_costs!$B:$B,$C724,raw_transmission_costs!$A:$A,AF$615)","v":0},{"$f":"SUMIFS(raw_transmission_costs!$E:$E,raw_transmission_costs!$B:$B,$C724,raw_transmission_costs!$A:$A,AG$615)","v":0},{"$f":"SUMIFS(raw_transmission_costs!$E:$E,raw_transmission_costs!$B:$B,$C724,raw_transmission_costs!$A:$A,AH$615)","v":0},{"$f":"SUMIFS(raw_transmission_costs!$E:$E,raw_transmission_costs!$B:$B,$C724,raw_transmission_costs!$A:$A,AI$615)","v":0},{"$f":"SUMIFS(raw_transmission_costs!$E:$E,raw_transmission_costs!$B:$B,$C724,raw_transmission_costs!$A:$A,AJ$615)","v":0},{"$f":"SUMIFS(raw_transmission_costs!$E:$E,raw_transmission_costs!$B:$B,$C724,raw_transmission_costs!$A:$A,AK$615)","v":0},{"$f":"SUMIFS(raw_transmission_costs!$E:$E,raw_transmission_costs!$B:$B,$C724,raw_transmission_costs!$A:$A,AL$615)","v":0},{"$f":"SUMIFS(raw_transmission_costs!$E:$E,raw_transmission_costs!$B:$B,$C724,raw_transmission_costs!$A:$A,AM$615)","v":0},{"$f":"SUMIFS(raw_transmission_costs!$E:$E,raw_transmission_costs!$B:$B,$C724,raw_transmission_costs!$A:$A,AN$615)","v":0}]
[null,null,"None","MW",{"$f":"SUMIFS(raw_transmission_costs!$E:$E,raw_transmission_costs!$B:$B,$C725,raw_transmission_costs!$A:$A,E$615)","v":0},{"$f":"SUMIFS(raw_transmission_costs!$E:$E,raw_transmission_costs!$B:$B,$C725,raw_transmission_costs!$A:$A,F$615)","v":0},{"$f":"SUMIFS(raw_transmission_costs!$E:$E,raw_transmission_costs!$B:$B,$C725,raw_transmission_costs!$A:$A,G$615)","v":0},{"$f":"SUMIFS(raw_transmission_costs!$E:$E,raw_transmission_costs!$B:$B,$C725,raw_transmission_costs!$A:$A,H$615)","v":0},{"$f":"SUMIFS(raw_transmission_costs!$E:$E,raw_transmission_costs!$B:$B,$C725,raw_transmission_costs!$A:$A,I$615)","v":0},{"$f":"SUMIFS(raw_transmission_costs!$E:$E,raw_transmission_costs!$B:$B,$C725,raw_transmission_costs!$A:$A,J$615)","v":0},{"$f":"SUMIFS(raw_transmission_costs!$E:$E,raw_transmission_costs!$B:$B,$C725,raw_transmission_costs!$A:$A,K$615)","v":0},{"$f":"SUMIFS(raw_transmission_costs!$E:$E,raw_transmission_costs!$B:$B,$C725,raw_transmission_costs!$A:$A,L$615)","v":0},{"$f":"SUMIFS(raw_transmission_costs!$E:$E,raw_transmission_costs!$B:$B,$C725,raw_transmission_costs!$A:$A,M$615)","v":0},{"$f":"SUMIFS(raw_transmission_costs!$E:$E,raw_transmission_costs!$B:$B,$C725,raw_transmission_costs!$A:$A,N$615)","v":0},{"$f":"SUMIFS(raw_transmission_costs!$E:$E,raw_transmission_costs!$B:$B,$C725,raw_transmission_costs!$A:$A,O$615)","v":0},{"$f":"SUMIFS(raw_transmission_costs!$E:$E,raw_transmission_costs!$B:$B,$C725,raw_transmission_costs!$A:$A,P$615)","v":0},{"$f":"SUMIFS(raw_transmission_costs!$E:$E,raw_transmission_costs!$B:$B,$C725,raw_transmission_costs!$A:$A,Q$615)","v":0},{"$f":"SUMIFS(raw_transmission_costs!$E:$E,raw_transmission_costs!$B:$B,$C725,raw_transmission_costs!$A:$A,R$615)","v":0},{"$f":"SUMIFS(raw_transmission_costs!$E:$E,raw_transmission_costs!$B:$B,$C725,raw_transmission_costs!$A:$A,S$615)","v":0},{"$f":"SUMIFS(raw_transmission_costs!$E:$E,raw_transmission_costs!$B:$B,$C725,raw_transmission_costs!$A:$A,T$615)","v":0},{"$f":"SUMIFS(raw_transmission_costs!$E:$E,raw_transmission_costs!$B:$B,$C725,raw_transmission_costs!$A:$A,U$615)","v":0},{"$f":"SUMIFS(raw_transmission_costs!$E:$E,raw_transmission_costs!$B:$B,$C725,raw_transmission_costs!$A:$A,V$615)","v":0},{"$f":"SUMIFS(raw_transmission_costs!$E:$E,raw_transmission_costs!$B:$B,$C725,raw_transmission_costs!$A:$A,W$615)","v":0},{"$f":"SUMIFS(raw_transmission_costs!$E:$E,raw_transmission_costs!$B:$B,$C725,raw_transmission_costs!$A:$A,X$615)","v":0},{"$f":"SUMIFS(raw_transmission_costs!$E:$E,raw_transmission_costs!$B:$B,$C725,raw_transmission_costs!$A:$A,Y$615)","v":0},{"$f":"SUMIFS(raw_transmission_costs!$E:$E,raw_transmission_costs!$B:$B,$C725,raw_transmission_costs!$A:$A,Z$615)","v":0},{"$f":"SUMIFS(raw_transmission_costs!$E:$E,raw_transmission_costs!$B:$B,$C725,raw_transmission_costs!$A:$A,AA$615)","v":0},{"$f":"SUMIFS(raw_transmission_costs!$E:$E,raw_transmission_costs!$B:$B,$C725,raw_transmission_costs!$A:$A,AB$615)","v":0},{"$f":"SUMIFS(raw_transmission_costs!$E:$E,raw_transmission_costs!$B:$B,$C725,raw_transmission_costs!$A:$A,AC$615)","v":0},{"$f":"SUMIFS(raw_transmission_costs!$E:$E,raw_transmission_costs!$B:$B,$C725,raw_transmission_costs!$A:$A,AD$615)","v":0},{"$f":"SUMIFS(raw_transmission_costs!$E:$E,raw_transmission_costs!$B:$B,$C725,raw_transmission_costs!$A:$A,AE$615)","v":0},{"$f":"SUMIFS(raw_transmission_costs!$E:$E,raw_transmission_costs!$B:$B,$C725,raw_transmission_costs!$A:$A,AF$615)","v":0},{"$f":"SUMIFS(raw_transmission_costs!$E:$E,raw_transmission_costs!$B:$B,$C725,raw_transmission_costs!$A:$A,AG$615)","v":0},{"$f":"SUMIFS(raw_transmission_costs!$E:$E,raw_transmission_costs!$B:$B,$C725,raw_transmission_costs!$A:$A,AH$615)","v":0},{"$f":"SUMIFS(raw_transmission_costs!$E:$E,raw_transmission_costs!$B:$B,$C725,raw_transmission_costs!$A:$A,AI$615)","v":1146.8499999999999},{"$f":"SUMIFS(raw_transmission_costs!$E:$E,raw_transmission_costs!$B:$B,$C725,raw_transmission_costs!$A:$A,AJ$615)","v":0},{"$f":"SUMIFS(raw_transmission_costs!$E:$E,raw_transmission_costs!$B:$B,$C725,raw_transmission_costs!$A:$A,AK$615)","v":0},{"$f":"SUMIFS(raw_transmission_costs!$E:$E,raw_transmission_costs!$B:$B,$C725,raw_transmission_costs!$A:$A,AL$615)","v":0},{"$f":"SUMIFS(raw_transmission_costs!$E:$E,raw_transmission_costs!$B:$B,$C725,raw_transmission_costs!$A:$A,AM$615)","v":0},{"$f":"SUMIFS(raw_transmission_costs!$E:$E,raw_transmission_costs!$B:$B,$C725,raw_transmission_costs!$A:$A,AN$615)","v":0}]
[]
[null,null,"Transmission Upgrade Cost Associated with New FCDS Transmission Build"]
[null,null,"Tx Zone","Unit",2015,2016,2017,2018,2019,2020,2021,2022,2023,2024,2025,2026,2027,2028,2029,2030,2031,2032,2033,2034,2035,2036,2037,2038,2039,2040,2041,2042,2043,2044,2045,2046,2047,2048,2049,2050]
[null,null,{"$f":"C643","v":"Greater_Kramer"},"$MM",{"$f":"SUMIFS(raw_transmission_costs!$C:$C,raw_transmission_costs!$B:$B,$C729,raw_transmission_costs!$A:$A,E$728)/1000000","v":0},{"$f":"SUMIFS(raw_transmission_costs!$C:$C,raw_transmission_costs!$B:$B,$C729,raw_transmission_costs!$A:$A,F$728)/1000000","v":0},{"$f":"SUMIFS(raw_transmission_costs!$C:$C,raw_transmission_costs!$B:$B,$C729,raw_transmission_costs!$A:$A,G$728)/1000000","v":0},{"$f":"SUMIFS(raw_transmission_costs!$C:$C,raw_transmission_costs!$B:$B,$C729,raw_transmission_costs!$A:$A,H$728)/1000000","v":0},{"$f":"SUMIFS(raw_transmission_costs!$C:$C,raw_transmission_costs!$B:$B,$C729,raw_transmission_costs!$A:$A,I$728)/1000000","v":0},{"$f":"SUMIFS(raw_transmission_costs!$C:$C,raw_transmission_costs!$B:$B,$C729,raw_transmission_costs!$A:$A,J$728)/1000000","v":0},{"$f":"SUMIFS(raw_transmission_costs!$C:$C,raw_transmission_costs!$B:$B,$C729,raw_transmission_costs!$A:$A,K$728)/1000000","v":0},{"$f":"SUMIFS(raw_transmission_costs!$C:$C,raw_transmission_costs!$B:$B,$C729,raw_transmission_costs!$A:$A,L$728)/1000000","v":0},{"$f":"SUMIFS(raw_transmission_costs!$C:$C,raw_transmission_costs!$B:$B,$C729,raw_transmission_costs!$A:$A,M$728)/1000000","v":0},{"$f":"SUMIFS(raw_transmission_costs!$C:$C,raw_transmission_costs!$B:$B,$C729,raw_transmission_costs!$A:$A,N$728)/1000000","v":0},{"$f":"SUMIFS(raw_transmission_costs!$C:$C,raw_transmission_costs!$B:$B,$C729,raw_transmission_costs!$A:$A,O$728)/1000000","v":0},{"$f":"SUMIFS(raw_transmission_costs!$C:$C,raw_transmission_costs!$B:$B,$C729,raw_transmission_costs!$A:$A,P$728)/1000000","v":0},{"$f":"SUMIFS(raw_transmission_costs!$C:$C,raw_transmission_costs!$B:$B,$C729,raw_transmission_costs!$A:$A,Q$728)/1000000","v":0},{"$f":"SUMIFS(raw_transmission_costs!$C:$C,raw_transmission_costs!$B:$B,$C729,raw_transmission_costs!$A:$A,R$728)/1000000","v":0},{"$f":"SUMIFS(raw_transmission_costs!$C:$C,raw_transmission_costs!$B:$B,$C729,raw_transmission_costs!$A:$A,S$728)/1000000","v":0},{"$f":"SUMIFS(raw_transmission_costs!$C:$C,raw_transmission_costs!$B:$B,$C729,raw_transmission_costs!$A:$A,T$728)/1000000","v":0},{"$f":"SUMIFS(raw_transmission_costs!$C:$C,raw_transmission_costs!$B:$B,$C729,raw_transmission_costs!$A:$A,U$728)/1000000","v":0},{"$f":"SUMIFS(raw_transmission_costs!$C:$C,raw_transmission_costs!$B:$B,$C729,raw_transmission_costs!$A:$A,V$728)/1000000","v":0},{"$f":"SUMIFS(raw_transmission_costs!$C:$C,raw_transmission_costs!$B:$B,$C729,raw_transmission_costs!$A:$A,W$728)/1000000","v":0},{"$f":"SUMIFS(raw_transmission_costs!$C:$C,raw_transmission_costs!$B:$B,$C729,raw_transmission_costs!$A:$A,X$728)/1000000","v":0},{"$f":"SUMIFS(raw_transmission_costs!$C:$C,raw_transmission_costs!$B:$B,$C729,raw_transmission_costs!$A:$A,Y$728)/1000000","v":0},{"$f":"SUMIFS(raw_transmission_costs!$C:$C,raw_transmission_costs!$B:$B,$C729,raw_transmission_costs!$A:$A,Z$728)/1000000","v":0},{"$f":"SUMIFS(raw_transmission_costs!$C:$C,raw_transmission_costs!$B:$B,$C729,raw_transmission_costs!$A:$A,AA$728)/1000000","v":0},{"$f":"SUMIFS(raw_transmission_costs!$C:$C,raw_transmission_costs!$B:$B,$C729,raw_transmission_costs!$A:$A,AB$728)/1000000","v":0},{"$f":"SUMIFS(raw_transmission_costs!$C:$C,raw_transmission_costs!$B:$B,$C729,raw_transmission_costs!$A:$A,AC$728)/1000000","v":0},{"$f":"SUMIFS(raw_transmission_costs!$C:$C,raw_transmission_costs!$B:$B,$C729,raw_transmission_costs!$A:$A,AD$728)/1000000","v":0},{"$f":"SUMIFS(raw_transmission_costs!$C:$C,raw_transmission_costs!$B:$B,$C729,raw_transmission_costs!$A:$A,AE$728)/1000000","v":0},{"$f":"SUMIFS(raw_transmission_costs!$C:$C,raw_transmission_costs!$B:$B,$C729,raw_transmission_costs!$A:$A,AF$728)/1000000","v":0},{"$f":"SUMIFS(raw_transmission_costs!$C:$C,raw_transmission_costs!$B:$B,$C729,raw_transmission_costs!$A:$A,AG$728)/1000000","v":0},{"$f":"SUMIFS(raw_transmission_costs!$C:$C,raw_transmission_costs!$B:$B,$C729,raw_transmission_costs!$A:$A,AH$728)/1000000","v":0},{"$f":"SUMIFS(raw_transmission_costs!$C:$C,raw_transmission_costs!$B:$B,$C729,raw_transmission_costs!$A:$A,AI$728)/1000000","v":0},{"$f":"SUMIFS(raw_transmission_costs!$C:$C,raw_transmission_costs!$B:$B,$C729,raw_transmission_costs!$A:$A,AJ$728)/1000000","v":0},{"$f":"SUMIFS(raw_transmission_costs!$C:$C,raw_transmission_costs!$B:$B,$C729,raw_transmission_costs!$A:$A,AK$728)/1000000","v":0},{"$f":"SUMIFS(raw_transmission_costs!$C:$C,raw_transmission_costs!$B:$B,$C729,raw_transmission_costs!$A:$A,AL$728)/1000000","v":0},{"$f":"SUMIFS(raw_transmission_costs!$C:$C,raw_transmission_costs!$B:$B,$C729,raw_transmission_costs!$A:$A,AM$728)/1000000","v":0},{"$f":"SUMIFS(raw_transmission_costs!$C:$C,raw_transmission_costs!$B:$B,$C729,raw_transmission_costs!$A:$A,AN$728)/1000000","v":0}]
[null,null,"Inyokern_North_Kramer","$MM",{"$f":"SUMIFS(raw_transmission_costs!$C:$C,raw_transmission_costs!$B:$B,$C730,raw_transmission_costs!$A:$A,E$728)/1000000","v":0},{"$f":"SUMIFS(raw_transmission_costs!$C:$C,raw_transmission_costs!$B:$B,$C730,raw_transmission_costs!$A:$A,F$728)/1000000","v":0},{"$f":"SUMIFS(raw_transmission_costs!$C:$C,raw_transmission_costs!$B:$B,$C730,raw_transmission_costs!$A:$A,G$728)/1000000","v":0},{"$f":"SUMIFS(raw_transmission_costs!$C:$C,raw_transmission_costs!$B:$B,$C730,raw_transmission_costs!$A:$A,H$728)/1000000","v":0},{"$f":"SUMIFS(raw_transmission_costs!$C:$C,raw_transmission_costs!$B:$B,$C730,raw_transmission_costs!$A:$A,I$728)/1000000","v":0},{"$f":"SUMIFS(raw_transmission_costs!$C:$C,raw_transmission_costs!$B:$B,$C730,raw_transmission_costs!$A:$A,J$728)/1000000","v":0},{"$f":"SUMIFS(raw_transmission_costs!$C:$C,raw_transmission_costs!$B:$B,$C730,raw_transmission_costs!$A:$A,K$728)/1000000","v":0},{"$f":"SUMIFS(raw_transmission_costs!$C:$C,raw_transmission_costs!$B:$B,$C730,raw_transmission_costs!$A:$A,L$728)/1000000","v":0},{"$f":"SUMIFS(raw_transmission_costs!$C:$C,raw_transmission_costs!$B:$B,$C730,raw_transmission_costs!$A:$A,M$728)/1000000","v":0},{"$f":"SUMIFS(raw_transmission_costs!$C:$C,raw_transmission_costs!$B:$B,$C730,raw_transmission_costs!$A:$A,N$728)/1000000","v":0},{"$f":"SUMIFS(raw_transmission_costs!$C:$C,raw_transmission_costs!$B:$B,$C730,raw_transmission_costs!$A:$A,O$728)/1000000","v":0},{"$f":"SUMIFS(raw_transmission_costs!$C:$C,raw_transmission_costs!$B:$B,$C730,raw_transmission_costs!$A:$A,P$728)/1000000","v":0},{"$f":"SUMIFS(raw_transmission_costs!$C:$C,raw_transmission_costs!$B:$B,$C730,raw_transmission_costs!$A:$A,Q$728)/1000000","v":0},{"$f":"SUMIFS(raw_transmission_costs!$C:$C,raw_transmission_costs!$B:$B,$C730,raw_transmission_costs!$A:$A,R$728)/1000000","v":0},{"$f":"SUMIFS(raw_transmission_costs!$C:$C,raw_transmission_costs!$B:$B,$C730,raw_transmission_costs!$A:$A,S$728)/1000000","v":0},{"$f":"SUMIFS(raw_transmission_costs!$C:$C,raw_transmission_costs!$B:$B,$C730,raw_transmission_costs!$A:$A,T$728)/1000000","v":0},{"$f":"SUMIFS(raw_transmission_costs!$C:$C,raw_transmission_costs!$B:$B,$C730,raw_transmission_costs!$A:$A,U$728)/1000000","v":0},{"$f":"SUMIFS(raw_transmission_costs!$C:$C,raw_transmission_costs!$B:$B,$C730,raw_transmission_costs!$A:$A,V$728)/1000000","v":0},{"$f":"SUMIFS(raw_transmission_costs!$C:$C,raw_transmission_costs!$B:$B,$C730,raw_transmission_costs!$A:$A,W$728)/1000000","v":0},{"$f":"SUMIFS(raw_transmission_costs!$C:$C,raw_transmission_costs!$B:$B,$C730,raw_transmission_costs!$A:$A,X$728)/1000000","v":0},{"$f":"SUMIFS(raw_transmission_costs!$C:$C,raw_transmission_costs!$B:$B,$C730,raw_transmission_costs!$A:$A,Y$728)/1000000","v":0},{"$f":"SUMIFS(raw_transmission_costs!$C:$C,raw_transmission_costs!$B:$B,$C730,raw_transmission_costs!$A:$A,Z$728)/1000000","v":0},{"$f":"SUMIFS(raw_transmission_costs!$C:$C,raw_transmission_costs!$B:$B,$C730,raw_transmission_costs!$A:$A,AA$728)/1000000","v":0},{"$f":"SUMIFS(raw_transmission_costs!$C:$C,raw_transmission_costs!$B:$B,$C730,raw_transmission_costs!$A:$A,AB$728)/1000000","v":0},{"$f":"SUMIFS(raw_transmission_costs!$C:$C,raw_transmission_costs!$B:$B,$C730,raw_transmission_costs!$A:$A,AC$728)/1000000","v":0},{"$f":"SUMIFS(raw_transmission_costs!$C:$C,raw_transmission_costs!$B:$B,$C730,raw_transmission_costs!$A:$A,AD$728)/1000000","v":0},{"$f":"SUMIFS(raw_transmission_costs!$C:$C,raw_transmission_costs!$B:$B,$C730,raw_transmission_costs!$A:$A,AE$728)/1000000","v":0},{"$f":"SUMIFS(raw_transmission_costs!$C:$C,raw_transmission_costs!$B:$B,$C730,raw_transmission_costs!$A:$A,AF$728)/1000000","v":0},{"$f":"SUMIFS(raw_transmission_costs!$C:$C,raw_transmission_costs!$B:$B,$C730,raw_transmission_costs!$A:$A,AG$728)/1000000","v":0},{"$f":"SUMIFS(raw_transmission_costs!$C:$C,raw_transmission_costs!$B:$B,$C730,raw_transmission_costs!$A:$A,AH$728)/1000000","v":0},{"$f":"SUMIFS(raw_transmission_costs!$C:$C,raw_transmission_costs!$B:$B,$C730,raw_transmission_costs!$A:$A,AI$728)/1000000","v":0},{"$f":"SUMIFS(raw_transmission_costs!$C:$C,raw_transmission_costs!$B:$B,$C730,raw_transmission_costs!$A:$A,AJ$728)/1000000","v":0},{"$f":"SUMIFS(raw_transmission_costs!$C:$C,raw_transmission_costs!$B:$B,$C730,raw_transmission_costs!$A:$A,AK$728)/1000000","v":0},{"$f":"SUMIFS(raw_transmission_costs!$C:$C,raw_transmission_costs!$B:$B,$C730,raw_transmission_costs!$A:$A,AL$728)/1000000","v":0},{"$f":"SUMIFS(raw_transmission_costs!$C:$C,raw_transmission_costs!$B:$B,$C730,raw_transmission_costs!$A:$A,AM$728)/1000000","v":0},{"$f":"SUMIFS(raw_transmission_costs!$C:$C,raw_transmission_costs!$B:$B,$C730,raw_transmission_costs!$A:$A,AN$728)/1000000","v":0}]
[null,null,"North_Victor","$MM",{"$f":"SUMIFS(raw_transmission_costs!$C:$C,raw_transmission_costs!$B:$B,$C731,raw_transmission_costs!$A:$A,E$728)/1000000","v":0},{"$f":"SUMIFS(raw_transmission_costs!$C:$C,raw_transmission_costs!$B:$B,$C731,raw_transmission_costs!$A:$A,F$728)/1000000","v":0},{"$f":"SUMIFS(raw_transmission_costs!$C:$C,raw_transmission_costs!$B:$B,$C731,raw_transmission_costs!$A:$A,G$728)/1000000","v":0},{"$f":"SUMIFS(raw_transmission_costs!$C:$C,raw_transmission_costs!$B:$B,$C731,raw_transmission_costs!$A:$A,H$728)/1000000","v":0},{"$f":"SUMIFS(raw_transmission_costs!$C:$C,raw_transmission_costs!$B:$B,$C731,raw_transmission_costs!$A:$A,I$728)/1000000","v":0},{"$f":"SUMIFS(raw_transmission_costs!$C:$C,raw_transmission_costs!$B:$B,$C731,raw_transmission_costs!$A:$A,J$728)/1000000","v":0},{"$f":"SUMIFS(raw_transmission_costs!$C:$C,raw_transmission_costs!$B:$B,$C731,raw_transmission_costs!$A:$A,K$728)/1000000","v":0},{"$f":"SUMIFS(raw_transmission_costs!$C:$C,raw_transmission_costs!$B:$B,$C731,raw_transmission_costs!$A:$A,L$728)/1000000","v":0},{"$f":"SUMIFS(raw_transmission_costs!$C:$C,raw_transmission_costs!$B:$B,$C731,raw_transmission_costs!$A:$A,M$728)/1000000","v":0},{"$f":"SUMIFS(raw_transmission_costs!$C:$C,raw_transmission_costs!$B:$B,$C731,raw_transmission_costs!$A:$A,N$728)/1000000","v":0},{"$f":"SUMIFS(raw_transmission_costs!$C:$C,raw_transmission_costs!$B:$B,$C731,raw_transmission_costs!$A:$A,O$728)/1000000","v":0},{"$f":"SUMIFS(raw_transmission_costs!$C:$C,raw_transmission_costs!$B:$B,$C731,raw_transmission_costs!$A:$A,P$728)/1000000","v":0},{"$f":"SUMIFS(raw_transmission_costs!$C:$C,raw_transmission_costs!$B:$B,$C731,raw_transmission_costs!$A:$A,Q$728)/1000000","v":0},{"$f":"SUMIFS(raw_transmission_costs!$C:$C,raw_transmission_costs!$B:$B,$C731,raw_transmission_costs!$A:$A,R$728)/1000000","v":0},{"$f":"SUMIFS(raw_transmission_costs!$C:$C,raw_transmission_costs!$B:$B,$C731,raw_transmission_costs!$A:$A,S$728)/1000000","v":0},{"$f":"SUMIFS(raw_transmission_costs!$C:$C,raw_transmission_costs!$B:$B,$C731,raw_transmission_costs!$A:$A,T$728)/1000000","v":0},{"$f":"SUMIFS(raw_transmission_costs!$C:$C,raw_transmission_costs!$B:$B,$C731,raw_transmission_costs!$A:$A,U$728)/1000000","v":0},{"$f":"SUMIFS(raw_transmission_costs!$C:$C,raw_transmission_costs!$B:$B,$C731,raw_transmission_costs!$A:$A,V$728)/1000000","v":0},{"$f":"SUMIFS(raw_transmission_costs!$C:$C,raw_transmission_costs!$B:$B,$C731,raw_transmission_costs!$A:$A,W$728)/1000000","v":0},{"$f":"SUMIFS(raw_transmission_costs!$C:$C,raw_transmission_costs!$B:$B,$C731,raw_transmission_costs!$A:$A,X$728)/1000000","v":0},{"$f":"SUMIFS(raw_transmission_costs!$C:$C,raw_transmission_costs!$B:$B,$C731,raw_transmission_costs!$A:$A,Y$728)/1000000","v":0},{"$f":"SUMIFS(raw_transmission_costs!$C:$C,raw_transmission_costs!$B:$B,$C731,raw_transmission_costs!$A:$A,Z$728)/1000000","v":0},{"$f":"SUMIFS(raw_transmission_costs!$C:$C,raw_transmission_costs!$B:$B,$C731,raw_transmission_costs!$A:$A,AA$728)/1000000","v":0},{"$f":"SUMIFS(raw_transmission_costs!$C:$C,raw_transmission_costs!$B:$B,$C731,raw_transmission_costs!$A:$A,AB$728)/1000000","v":0},{"$f":"SUMIFS(raw_transmission_costs!$C:$C,raw_transmission_costs!$B:$B,$C731,raw_transmission_costs!$A:$A,AC$728)/1000000","v":0},{"$f":"SUMIFS(raw_transmission_costs!$C:$C,raw_transmission_costs!$B:$B,$C731,raw_transmission_costs!$A:$A,AD$728)/1000000","v":0},{"$f":"SUMIFS(raw_transmission_costs!$C:$C,raw_transmission_costs!$B:$B,$C731,raw_transmission_costs!$A:$A,AE$728)/1000000","v":0},{"$f":"SUMIFS(raw_transmission_costs!$C:$C,raw_transmission_costs!$B:$B,$C731,raw_transmission_costs!$A:$A,AF$728)/1000000","v":0},{"$f":"SUMIFS(raw_transmission_costs!$C:$C,raw_transmission_costs!$B:$B,$C731,raw_transmission_costs!$A:$A,AG$728)/1000000","v":0},{"$f":"SUMIFS(raw_transmission_costs!$C:$C,raw_transmission_costs!$B:$B,$C731,raw_transmission_costs!$A:$A,AH$728)/1000000","v":0},{"$f":"SUMIFS(raw_transmission_costs!$C:$C,raw_transmission_costs!$B:$B,$C731,raw_transmission_costs!$A:$A,AI$728)/1000000","v":0},{"$f":"SUMIFS(raw_transmission_costs!$C:$C,raw_transmission_costs!$B:$B,$C731,raw_transmission_costs!$A:$A,AJ$728)/1000000","v":0},{"$f":"SUMIFS(raw_transmission_costs!$C:$C,raw_transmission_costs!$B:$B,$C731,raw_transmission_costs!$A:$A,AK$728)/1000000","v":0},{"$f":"SUMIFS(raw_transmission_costs!$C:$C,raw_transmission_costs!$B:$B,$C731,raw_transmission_costs!$A:$A,AL$728)/1000000","v":0},{"$f":"SUMIFS(raw_transmission_costs!$C:$C,raw_transmission_costs!$B:$B,$C731,raw_transmission_costs!$A:$A,AM$728)/1000000","v":0},{"$f":"SUMIFS(raw_transmission_costs!$C:$C,raw_transmission_costs!$B:$B,$C731,raw_transmission_costs!$A:$A,AN$728)/1000000","v":0}]
[null,null,"Humboldt","$MM",{"$f":"SUMIFS(raw_transmission_costs!$C:$C,raw_transmission_costs!$B:$B,$C732,raw_transmission_costs!$A:$A,E$728)/1000000","v":0},{"$f":"SUMIFS(raw_transmission_costs!$C:$C,raw_transmission_costs!$B:$B,$C732,raw_transmission_costs!$A:$A,F$728)/1000000","v":0},{"$f":"SUMIFS(raw_transmission_costs!$C:$C,raw_transmission_costs!$B:$B,$C732,raw_transmission_costs!$A:$A,G$728)/1000000","v":0},{"$f":"SUMIFS(raw_transmission_costs!$C:$C,raw_transmission_costs!$B:$B,$C732,raw_transmission_costs!$A:$A,H$728)/1000000","v":0},{"$f":"SUMIFS(raw_transmission_costs!$C:$C,raw_transmission_costs!$B:$B,$C732,raw_transmission_costs!$A:$A,I$728)/1000000","v":0},{"$f":"SUMIFS(raw_transmission_costs!$C:$C,raw_transmission_costs!$B:$B,$C732,raw_transmission_costs!$A:$A,J$728)/1000000","v":0},{"$f":"SUMIFS(raw_transmission_costs!$C:$C,raw_transmission_costs!$B:$B,$C732,raw_transmission_costs!$A:$A,K$728)/1000000","v":0},{"$f":"SUMIFS(raw_transmission_costs!$C:$C,raw_transmission_costs!$B:$B,$C732,raw_transmission_costs!$A:$A,L$728)/1000000","v":0},{"$f":"SUMIFS(raw_transmission_costs!$C:$C,raw_transmission_costs!$B:$B,$C732,raw_transmission_costs!$A:$A,M$728)/1000000","v":0},{"$f":"SUMIFS(raw_transmission_costs!$C:$C,raw_transmission_costs!$B:$B,$C732,raw_transmission_costs!$A:$A,N$728)/1000000","v":0},{"$f":"SUMIFS(raw_transmission_costs!$C:$C,raw_transmission_costs!$B:$B,$C732,raw_transmission_costs!$A:$A,O$728)/1000000","v":0},{"$f":"SUMIFS(raw_transmission_costs!$C:$C,raw_transmission_costs!$B:$B,$C732,raw_transmission_costs!$A:$A,P$728)/1000000","v":0},{"$f":"SUMIFS(raw_transmission_costs!$C:$C,raw_transmission_costs!$B:$B,$C732,raw_transmission_costs!$A:$A,Q$728)/1000000","v":0},{"$f":"SUMIFS(raw_transmission_costs!$C:$C,raw_transmission_costs!$B:$B,$C732,raw_transmission_costs!$A:$A,R$728)/1000000","v":0},{"$f":"SUMIFS(raw_transmission_costs!$C:$C,raw_transmission_costs!$B:$B,$C732,raw_transmission_costs!$A:$A,S$728)/1000000","v":0},{"$f":"SUMIFS(raw_transmission_costs!$C:$C,raw_transmission_costs!$B:$B,$C732,raw_transmission_costs!$A:$A,T$728)/1000000","v":0},{"$f":"SUMIFS(raw_transmission_costs!$C:$C,raw_transmission_costs!$B:$B,$C732,raw_transmission_costs!$A:$A,U$728)/1000000","v":0},{"$f":"SUMIFS(raw_transmission_costs!$C:$C,raw_transmission_costs!$B:$B,$C732,raw_transmission_costs!$A:$A,V$728)/1000000","v":0},{"$f":"SUMIFS(raw_transmission_costs!$C:$C,raw_transmission_costs!$B:$B,$C732,raw_transmission_costs!$A:$A,W$728)/1000000","v":0},{"$f":"SUMIFS(raw_transmission_costs!$C:$C,raw_transmission_costs!$B:$B,$C732,raw_transmission_costs!$A:$A,X$728)/1000000","v":0},{"$f":"SUMIFS(raw_transmission_costs!$C:$C,raw_transmission_costs!$B:$B,$C732,raw_transmission_costs!$A:$A,Y$728)/1000000","v":0},{"$f":"SUMIFS(raw_transmission_costs!$C:$C,raw_transmission_costs!$B:$B,$C732,raw_transmission_costs!$A:$A,Z$728)/1000000","v":0},{"$f":"SUMIFS(raw_transmission_costs!$C:$C,raw_transmission_costs!$B:$B,$C732,raw_transmission_costs!$A:$A,AA$728)/1000000","v":0},{"$f":"SUMIFS(raw_transmission_costs!$C:$C,raw_transmission_costs!$B:$B,$C732,raw_transmission_costs!$A:$A,AB$728)/1000000","v":0},{"$f":"SUMIFS(raw_transmission_costs!$C:$C,raw_transmission_costs!$B:$B,$C732,raw_transmission_costs!$A:$A,AC$728)/1000000","v":0},{"$f":"SUMIFS(raw_transmission_costs!$C:$C,raw_transmission_costs!$B:$B,$C732,raw_transmission_costs!$A:$A,AD$728)/1000000","v":0},{"$f":"SUMIFS(raw_transmission_costs!$C:$C,raw_transmission_costs!$B:$B,$C732,raw_transmission_costs!$A:$A,AE$728)/1000000","v":0},{"$f":"SUMIFS(raw_transmission_costs!$C:$C,raw_transmission_costs!$B:$B,$C732,raw_transmission_costs!$A:$A,AF$728)/1000000","v":0},{"$f":"SUMIFS(raw_transmission_costs!$C:$C,raw_transmission_costs!$B:$B,$C732,raw_transmission_costs!$A:$A,AG$728)/1000000","v":0},{"$f":"SUMIFS(raw_transmission_costs!$C:$C,raw_transmission_costs!$B:$B,$C732,raw_transmission_costs!$A:$A,AH$728)/1000000","v":0},{"$f":"SUMIFS(raw_transmission_costs!$C:$C,raw_transmission_costs!$B:$B,$C732,raw_transmission_costs!$A:$A,AI$728)/1000000","v":0},{"$f":"SUMIFS(raw_transmission_costs!$C:$C,raw_transmission_costs!$B:$B,$C732,raw_transmission_costs!$A:$A,AJ$728)/1000000","v":0},{"$f":"SUMIFS(raw_transmission_costs!$C:$C,raw_transmission_costs!$B:$B,$C732,raw_transmission_costs!$A:$A,AK$728)/1000000","v":0},{"$f":"SUMIFS(raw_transmission_costs!$C:$C,raw_transmission_costs!$B:$B,$C732,raw_transmission_costs!$A:$A,AL$728)/1000000","v":0},{"$f":"SUMIFS(raw_transmission_costs!$C:$C,raw_transmission_costs!$B:$B,$C732,raw_transmission_costs!$A:$A,AM$728)/1000000","v":0},{"$f":"SUMIFS(raw_transmission_costs!$C:$C,raw_transmission_costs!$B:$B,$C732,raw_transmission_costs!$A:$A,AN$728)/1000000","v":0}]
[null,null,"Sacramento_River","$MM",{"$f":"SUMIFS(raw_transmission_costs!$C:$C,raw_transmission_costs!$B:$B,$C733,raw_transmission_costs!$A:$A,E$728)/1000000","v":0},{"$f":"SUMIFS(raw_transmission_costs!$C:$C,raw_transmission_costs!$B:$B,$C733,raw_transmission_costs!$A:$A,F$728)/1000000","v":0},{"$f":"SUMIFS(raw_transmission_costs!$C:$C,raw_transmission_costs!$B:$B,$C733,raw_transmission_costs!$A:$A,G$728)/1000000","v":0},{"$f":"SUMIFS(raw_transmission_costs!$C:$C,raw_transmission_costs!$B:$B,$C733,raw_transmission_costs!$A:$A,H$728)/1000000","v":0},{"$f":"SUMIFS(raw_transmission_costs!$C:$C,raw_transmission_costs!$B:$B,$C733,raw_transmission_costs!$A:$A,I$728)/1000000","v":0},{"$f":"SUMIFS(raw_transmission_costs!$C:$C,raw_transmission_costs!$B:$B,$C733,raw_transmission_costs!$A:$A,J$728)/1000000","v":0},{"$f":"SUMIFS(raw_transmission_costs!$C:$C,raw_transmission_costs!$B:$B,$C733,raw_transmission_costs!$A:$A,K$728)/1000000","v":0},{"$f":"SUMIFS(raw_transmission_costs!$C:$C,raw_transmission_costs!$B:$B,$C733,raw_transmission_costs!$A:$A,L$728)/1000000","v":0},{"$f":"SUMIFS(raw_transmission_costs!$C:$C,raw_transmission_costs!$B:$B,$C733,raw_transmission_costs!$A:$A,M$728)/1000000","v":0},{"$f":"SUMIFS(raw_transmission_costs!$C:$C,raw_transmission_costs!$B:$B,$C733,raw_transmission_costs!$A:$A,N$728)/1000000","v":1.65681327},{"$f":"SUMIFS(raw_transmission_costs!$C:$C,raw_transmission_costs!$B:$B,$C733,raw_transmission_costs!$A:$A,O$728)/1000000","v":0},{"$f":"SUMIFS(raw_transmission_costs!$C:$C,raw_transmission_costs!$B:$B,$C733,raw_transmission_costs!$A:$A,P$728)/1000000","v":1.65681327},{"$f":"SUMIFS(raw_transmission_costs!$C:$C,raw_transmission_costs!$B:$B,$C733,raw_transmission_costs!$A:$A,Q$728)/1000000","v":0},{"$f":"SUMIFS(raw_transmission_costs!$C:$C,raw_transmission_costs!$B:$B,$C733,raw_transmission_costs!$A:$A,R$728)/1000000","v":0},{"$f":"SUMIFS(raw_transmission_costs!$C:$C,raw_transmission_costs!$B:$B,$C733,raw_transmission_costs!$A:$A,S$728)/1000000","v":0},{"$f":"SUMIFS(raw_transmission_costs!$C:$C,raw_transmission_costs!$B:$B,$C733,raw_transmission_costs!$A:$A,T$728)/1000000","v":21.264021530000001},{"$f":"SUMIFS(raw_transmission_costs!$C:$C,raw_transmission_costs!$B:$B,$C733,raw_transmission_costs!$A:$A,U$728)/1000000","v":0},{"$f":"SUMIFS(raw_transmission_costs!$C:$C,raw_transmission_costs!$B:$B,$C733,raw_transmission_costs!$A:$A,V$728)/1000000","v":0},{"$f":"SUMIFS(raw_transmission_costs!$C:$C,raw_transmission_costs!$B:$B,$C733,raw_transmission_costs!$A:$A,W$728)/1000000","v":0},{"$f":"SUMIFS(raw_transmission_costs!$C:$C,raw_transmission_costs!$B:$B,$C733,raw_transmission_costs!$A:$A,X$728)/1000000","v":0},{"$f":"SUMIFS(raw_transmission_costs!$C:$C,raw_transmission_costs!$B:$B,$C733,raw_transmission_costs!$A:$A,Y$728)/1000000","v":0},{"$f":"SUMIFS(raw_transmission_costs!$C:$C,raw_transmission_costs!$B:$B,$C733,raw_transmission_costs!$A:$A,Z$728)/1000000","v":0},{"$f":"SUMIFS(raw_transmission_costs!$C:$C,raw_transmission_costs!$B:$B,$C733,raw_transmission_costs!$A:$A,AA$728)/1000000","v":0},{"$f":"SUMIFS(raw_transmission_costs!$C:$C,raw_transmission_costs!$B:$B,$C733,raw_transmission_costs!$A:$A,AB$728)/1000000","v":0},{"$f":"SUMIFS(raw_transmission_costs!$C:$C,raw_transmission_costs!$B:$B,$C733,raw_transmission_costs!$A:$A,AC$728)/1000000","v":0},{"$f":"SUMIFS(raw_transmission_costs!$C:$C,raw_transmission_costs!$B:$B,$C733,raw_transmission_costs!$A:$A,AD$728)/1000000","v":0},{"$f":"SUMIFS(raw_transmission_costs!$C:$C,raw_transmission_costs!$B:$B,$C733,raw_transmission_costs!$A:$A,AE$728)/1000000","v":0},{"$f":"SUMIFS(raw_transmission_costs!$C:$C,raw_transmission_costs!$B:$B,$C733,raw_transmission_costs!$A:$A,AF$728)/1000000","v":0},{"$f":"SUMIFS(raw_transmission_costs!$C:$C,raw_transmission_costs!$B:$B,$C733,raw_transmission_costs!$A:$A,AG$728)/1000000","v":0},{"$f":"SUMIFS(raw_transmission_costs!$C:$C,raw_transmission_costs!$B:$B,$C733,raw_transmission_costs!$A:$A,AH$728)/1000000","v":0},{"$f":"SUMIFS(raw_transmission_costs!$C:$C,raw_transmission_costs!$B:$B,$C733,raw_transmission_costs!$A:$A,AI$728)/1000000","v":426.35120432999997},{"$f":"SUMIFS(raw_transmission_costs!$C:$C,raw_transmission_costs!$B:$B,$C733,raw_transmission_costs!$A:$A,AJ$728)/1000000","v":0},{"$f":"SUMIFS(raw_transmission_costs!$C:$C,raw_transmission_costs!$B:$B,$C733,raw_transmission_costs!$A:$A,AK$728)/1000000","v":0},{"$f":"SUMIFS(raw_transmission_costs!$C:$C,raw_transmission_costs!$B:$B,$C733,raw_transmission_costs!$A:$A,AL$728)/1000000","v":0},{"$f":"SUMIFS(raw_transmission_costs!$C:$C,raw_transmission_costs!$B:$B,$C733,raw_transmission_costs!$A:$A,AM$728)/1000000","v":0},{"$f":"SUMIFS(raw_transmission_costs!$C:$C,raw_transmission_costs!$B:$B,$C733,raw_transmission_costs!$A:$A,AN$728)/1000000","v":0}]
[null,null,"Solano","$MM",{"$f":"SUMIFS(raw_transmission_costs!$C:$C,raw_transmission_costs!$B:$B,$C734,raw_transmission_costs!$A:$A,E$728)/1000000","v":0},{"$f":"SUMIFS(raw_transmission_costs!$C:$C,raw_transmission_costs!$B:$B,$C734,raw_transmission_costs!$A:$A,F$728)/1000000","v":0},{"$f":"SUMIFS(raw_transmission_costs!$C:$C,raw_transmission_costs!$B:$B,$C734,raw_transmission_costs!$A:$A,G$728)/1000000","v":0},{"$f":"SUMIFS(raw_transmission_costs!$C:$C,raw_transmission_costs!$B:$B,$C734,raw_transmission_costs!$A:$A,H$728)/1000000","v":0},{"$f":"SUMIFS(raw_transmission_costs!$C:$C,raw_transmission_costs!$B:$B,$C734,raw_transmission_costs!$A:$A,I$728)/1000000","v":0},{"$f":"SUMIFS(raw_transmission_costs!$C:$C,raw_transmission_costs!$B:$B,$C734,raw_transmission_costs!$A:$A,J$728)/1000000","v":0},{"$f":"SUMIFS(raw_transmission_costs!$C:$C,raw_transmission_costs!$B:$B,$C734,raw_transmission_costs!$A:$A,K$728)/1000000","v":0},{"$f":"SUMIFS(raw_transmission_costs!$C:$C,raw_transmission_costs!$B:$B,$C734,raw_transmission_costs!$A:$A,L$728)/1000000","v":0},{"$f":"SUMIFS(raw_transmission_costs!$C:$C,raw_transmission_costs!$B:$B,$C734,raw_transmission_costs!$A:$A,M$728)/1000000","v":0},{"$f":"SUMIFS(raw_transmission_costs!$C:$C,raw_transmission_costs!$B:$B,$C734,raw_transmission_costs!$A:$A,N$728)/1000000","v":0},{"$f":"SUMIFS(raw_transmission_costs!$C:$C,raw_transmission_costs!$B:$B,$C734,raw_transmission_costs!$A:$A,O$728)/1000000","v":0},{"$f":"SUMIFS(raw_transmission_costs!$C:$C,raw_transmission_costs!$B:$B,$C734,raw_transmission_costs!$A:$A,P$728)/1000000","v":0},{"$f":"SUMIFS(raw_transmission_costs!$C:$C,raw_transmission_costs!$B:$B,$C734,raw_transmission_costs!$A:$A,Q$728)/1000000","v":0},{"$f":"SUMIFS(raw_transmission_costs!$C:$C,raw_transmission_costs!$B:$B,$C734,raw_transmission_costs!$A:$A,R$728)/1000000","v":0},{"$f":"SUMIFS(raw_transmission_costs!$C:$C,raw_transmission_costs!$B:$B,$C734,raw_transmission_costs!$A:$A,S$728)/1000000","v":0},{"$f":"SUMIFS(raw_transmission_costs!$C:$C,raw_transmission_costs!$B:$B,$C734,raw_transmission_costs!$A:$A,T$728)/1000000","v":0},{"$f":"SUMIFS(raw_transmission_costs!$C:$C,raw_transmission_costs!$B:$B,$C734,raw_transmission_costs!$A:$A,U$728)/1000000","v":0},{"$f":"SUMIFS(raw_transmission_costs!$C:$C,raw_transmission_costs!$B:$B,$C734,raw_transmission_costs!$A:$A,V$728)/1000000","v":0},{"$f":"SUMIFS(raw_transmission_costs!$C:$C,raw_transmission_costs!$B:$B,$C734,raw_transmission_costs!$A:$A,W$728)/1000000","v":0},{"$f":"SUMIFS(raw_transmission_costs!$C:$C,raw_transmission_costs!$B:$B,$C734,raw_transmission_costs!$A:$A,X$728)/1000000","v":0},{"$f":"SUMIFS(raw_transmission_costs!$C:$C,raw_transmission_costs!$B:$B,$C734,raw_transmission_costs!$A:$A,Y$728)/1000000","v":0},{"$f":"SUMIFS(raw_transmission_costs!$C:$C,raw_transmission_costs!$B:$B,$C734,raw_transmission_costs!$A:$A,Z$728)/1000000","v":0},{"$f":"SUMIFS(raw_transmission_costs!$C:$C,raw_transmission_costs!$B:$B,$C734,raw_transmission_costs!$A:$A,AA$728)/1000000","v":0},{"$f":"SUMIFS(raw_transmission_costs!$C:$C,raw_transmission_costs!$B:$B,$C734,raw_transmission_costs!$A:$A,AB$728)/1000000","v":0},{"$f":"SUMIFS(raw_transmission_costs!$C:$C,raw_transmission_costs!$B:$B,$C734,raw_transmission_costs!$A:$A,AC$728)/1000000","v":0},{"$f":"SUMIFS(raw_transmission_costs!$C:$C,raw_transmission_costs!$B:$B,$C734,raw_transmission_costs!$A:$A,AD$728)/1000000","v":0},{"$f":"SUMIFS(raw_transmission_costs!$C:$C,raw_transmission_costs!$B:$B,$C734,raw_transmission_costs!$A:$A,AE$728)/1000000","v":0},{"$f":"SUMIFS(raw_transmission_costs!$C:$C,raw_transmission_costs!$B:$B,$C734,raw_transmission_costs!$A:$A,AF$728)/1000000","v":0},{"$f":"SUMIFS(raw_transmission_costs!$C:$C,raw_transmission_costs!$B:$B,$C734,raw_transmission_costs!$A:$A,AG$728)/1000000","v":0},{"$f":"SUMIFS(raw_transmission_costs!$C:$C,raw_transmission_costs!$B:$B,$C734,raw_transmission_costs!$A:$A,AH$728)/1000000","v":0},{"$f":"SUMIFS(raw_transmission_costs!$C:$C,raw_transmission_costs!$B:$B,$C734,raw_transmission_costs!$A:$A,AI$728)/1000000","v":0},{"$f":"SUMIFS(raw_transmission_costs!$C:$C,raw_transmission_costs!$B:$B,$C734,raw_transmission_costs!$A:$A,AJ$728)/1000000","v":0},{"$f":"SUMIFS(raw_transmission_costs!$C:$C,raw_transmission_costs!$B:$B,$C734,raw_transmission_costs!$A:$A,AK$728)/1000000","v":0},{"$f":"SUMIFS(raw_transmission_costs!$C:$C,raw_transmission_costs!$B:$B,$C734,raw_transmission_costs!$A:$A,AL$728)/1000000","v":0},{"$f":"SUMIFS(raw_transmission_costs!$C:$C,raw_transmission_costs!$B:$B,$C734,raw_transmission_costs!$A:$A,AM$728)/1000000","v":0},{"$f":"SUMIFS(raw_transmission_costs!$C:$C,raw_transmission_costs!$B:$B,$C734,raw_transmission_costs!$A:$A,AN$728)/1000000","v":0}]
[null,null,"Solano_subzone","$MM",{"$f":"SUMIFS(raw_transmission_costs!$C:$C,raw_transmission_costs!$B:$B,$C735,raw_transmission_costs!$A:$A,E$728)/1000000","v":0},{"$f":"SUMIFS(raw_transmission_costs!$C:$C,raw_transmission_costs!$B:$B,$C735,raw_transmission_costs!$A:$A,F$728)/1000000","v":0},{"$f":"SUMIFS(raw_transmission_costs!$C:$C,raw_transmission_costs!$B:$B,$C735,raw_transmission_costs!$A:$A,G$728)/1000000","v":0},{"$f":"SUMIFS(raw_transmission_costs!$C:$C,raw_transmission_costs!$B:$B,$C735,raw_transmission_costs!$A:$A,H$728)/1000000","v":0},{"$f":"SUMIFS(raw_transmission_costs!$C:$C,raw_transmission_costs!$B:$B,$C735,raw_transmission_costs!$A:$A,I$728)/1000000","v":0},{"$f":"SUMIFS(raw_transmission_costs!$C:$C,raw_transmission_costs!$B:$B,$C735,raw_transmission_costs!$A:$A,J$728)/1000000","v":0},{"$f":"SUMIFS(raw_transmission_costs!$C:$C,raw_transmission_costs!$B:$B,$C735,raw_transmission_costs!$A:$A,K$728)/1000000","v":0},{"$f":"SUMIFS(raw_transmission_costs!$C:$C,raw_transmission_costs!$B:$B,$C735,raw_transmission_costs!$A:$A,L$728)/1000000","v":0},{"$f":"SUMIFS(raw_transmission_costs!$C:$C,raw_transmission_costs!$B:$B,$C735,raw_transmission_costs!$A:$A,M$728)/1000000","v":0},{"$f":"SUMIFS(raw_transmission_costs!$C:$C,raw_transmission_costs!$B:$B,$C735,raw_transmission_costs!$A:$A,N$728)/1000000","v":0},{"$f":"SUMIFS(raw_transmission_costs!$C:$C,raw_transmission_costs!$B:$B,$C735,raw_transmission_costs!$A:$A,O$728)/1000000","v":0},{"$f":"SUMIFS(raw_transmission_costs!$C:$C,raw_transmission_costs!$B:$B,$C735,raw_transmission_costs!$A:$A,P$728)/1000000","v":0},{"$f":"SUMIFS(raw_transmission_costs!$C:$C,raw_transmission_costs!$B:$B,$C735,raw_transmission_costs!$A:$A,Q$728)/1000000","v":0},{"$f":"SUMIFS(raw_transmission_costs!$C:$C,raw_transmission_costs!$B:$B,$C735,raw_transmission_costs!$A:$A,R$728)/1000000","v":0},{"$f":"SUMIFS(raw_transmission_costs!$C:$C,raw_transmission_costs!$B:$B,$C735,raw_transmission_costs!$A:$A,S$728)/1000000","v":0},{"$f":"SUMIFS(raw_transmission_costs!$C:$C,raw_transmission_costs!$B:$B,$C735,raw_transmission_costs!$A:$A,T$728)/1000000","v":0},{"$f":"SUMIFS(raw_transmission_costs!$C:$C,raw_transmission_costs!$B:$B,$C735,raw_transmission_costs!$A:$A,U$728)/1000000","v":0},{"$f":"SUMIFS(raw_transmission_costs!$C:$C,raw_transmission_costs!$B:$B,$C735,raw_transmission_costs!$A:$A,V$728)/1000000","v":0},{"$f":"SUMIFS(raw_transmission_costs!$C:$C,raw_transmission_costs!$B:$B,$C735,raw_transmission_costs!$A:$A,W$728)/1000000","v":0},{"$f":"SUMIFS(raw_transmission_costs!$C:$C,raw_transmission_costs!$B:$B,$C735,raw_transmission_costs!$A:$A,X$728)/1000000","v":0},{"$f":"SUMIFS(raw_transmission_costs!$C:$C,raw_transmission_costs!$B:$B,$C735,raw_transmission_costs!$A:$A,Y$728)/1000000","v":0},{"$f":"SUMIFS(raw_transmission_costs!$C:$C,raw_transmission_costs!$B:$B,$C735,raw_transmission_costs!$A:$A,Z$728)/1000000","v":0},{"$f":"SUMIFS(raw_transmission_costs!$C:$C,raw_transmission_costs!$B:$B,$C735,raw_transmission_costs!$A:$A,AA$728)/1000000","v":0},{"$f":"SUMIFS(raw_transmission_costs!$C:$C,raw_transmission_costs!$B:$B,$C735,raw_transmission_costs!$A:$A,AB$728)/1000000","v":0},{"$f":"SUMIFS(raw_transmission_costs!$C:$C,raw_transmission_costs!$B:$B,$C735,raw_transmission_costs!$A:$A,AC$728)/1000000","v":0},{"$f":"SUMIFS(raw_transmission_costs!$C:$C,raw_transmission_costs!$B:$B,$C735,raw_transmission_costs!$A:$A,AD$728)/1000000","v":0},{"$f":"SUMIFS(raw_transmission_costs!$C:$C,raw_transmission_costs!$B:$B,$C735,raw_transmission_costs!$A:$A,AE$728)/1000000","v":0},{"$f":"SUMIFS(raw_transmission_costs!$C:$C,raw_transmission_costs!$B:$B,$C735,raw_transmission_costs!$A:$A,AF$728)/1000000","v":0},{"$f":"SUMIFS(raw_transmission_costs!$C:$C,raw_transmission_costs!$B:$B,$C735,raw_transmission_costs!$A:$A,AG$728)/1000000","v":0},{"$f":"SUMIFS(raw_transmission_costs!$C:$C,raw_transmission_costs!$B:$B,$C735,raw_transmission_costs!$A:$A,AH$728)/1000000","v":0},{"$f":"SUMIFS(raw_transmission_costs!$C:$C,raw_transmission_costs!$B:$B,$C735,raw_transmission_costs!$A:$A,AI$728)/1000000","v":0},{"$f":"SUMIFS(raw_transmission_costs!$C:$C,raw_transmission_costs!$B:$B,$C735,raw_transmission_costs!$A:$A,AJ$728)/1000000","v":0},{"$f":"SUMIFS(raw_transmission_costs!$C:$C,raw_transmission_costs!$B:$B,$C735,raw_transmission_costs!$A:$A,AK$728)/1000000","v":0},{"$f":"SUMIFS(raw_transmission_costs!$C:$C,raw_transmission_costs!$B:$B,$C735,raw_transmission_costs!$A:$A,AL$728)/1000000","v":0},{"$f":"SUMIFS(raw_transmission_costs!$C:$C,raw_transmission_costs!$B:$B,$C735,raw_transmission_costs!$A:$A,AM$728)/1000000","v":0},{"$f":"SUMIFS(raw_transmission_costs!$C:$C,raw_transmission_costs!$B:$B,$C735,raw_transmission_costs!$A:$A,AN$728)/1000000","v":0}]
[null,null,"Mountain_Pass_El_Dorado","$MM",{"$f":"SUMIFS(raw_transmission_costs!$C:$C,raw_transmission_costs!$B:$B,$C736,raw_transmission_costs!$A:$A,E$728)/1000000","v":0},{"$f":"SUMIFS(raw_transmission_costs!$C:$C,raw_transmission_costs!$B:$B,$C736,raw_transmission_costs!$A:$A,F$728)/1000000","v":0},{"$f":"SUMIFS(raw_transmission_costs!$C:$C,raw_transmission_costs!$B:$B,$C736,raw_transmission_costs!$A:$A,G$728)/1000000","v":0},{"$f":"SUMIFS(raw_transmission_costs!$C:$C,raw_transmission_costs!$B:$B,$C736,raw_transmission_costs!$A:$A,H$728)/1000000","v":0},{"$f":"SUMIFS(raw_transmission_costs!$C:$C,raw_transmission_costs!$B:$B,$C736,raw_transmission_costs!$A:$A,I$728)/1000000","v":0},{"$f":"SUMIFS(raw_transmission_costs!$C:$C,raw_transmission_costs!$B:$B,$C736,raw_transmission_costs!$A:$A,J$728)/1000000","v":0},{"$f":"SUMIFS(raw_transmission_costs!$C:$C,raw_transmission_costs!$B:$B,$C736,raw_transmission_costs!$A:$A,K$728)/1000000","v":0},{"$f":"SUMIFS(raw_transmission_costs!$C:$C,raw_transmission_costs!$B:$B,$C736,raw_transmission_costs!$A:$A,L$728)/1000000","v":0},{"$f":"SUMIFS(raw_transmission_costs!$C:$C,raw_transmission_costs!$B:$B,$C736,raw_transmission_costs!$A:$A,M$728)/1000000","v":0},{"$f":"SUMIFS(raw_transmission_costs!$C:$C,raw_transmission_costs!$B:$B,$C736,raw_transmission_costs!$A:$A,N$728)/1000000","v":0},{"$f":"SUMIFS(raw_transmission_costs!$C:$C,raw_transmission_costs!$B:$B,$C736,raw_transmission_costs!$A:$A,O$728)/1000000","v":0},{"$f":"SUMIFS(raw_transmission_costs!$C:$C,raw_transmission_costs!$B:$B,$C736,raw_transmission_costs!$A:$A,P$728)/1000000","v":0},{"$f":"SUMIFS(raw_transmission_costs!$C:$C,raw_transmission_costs!$B:$B,$C736,raw_transmission_costs!$A:$A,Q$728)/1000000","v":0},{"$f":"SUMIFS(raw_transmission_costs!$C:$C,raw_transmission_costs!$B:$B,$C736,raw_transmission_costs!$A:$A,R$728)/1000000","v":0},{"$f":"SUMIFS(raw_transmission_costs!$C:$C,raw_transmission_costs!$B:$B,$C736,raw_transmission_costs!$A:$A,S$728)/1000000","v":0},{"$f":"SUMIFS(raw_transmission_costs!$C:$C,raw_transmission_costs!$B:$B,$C736,raw_transmission_costs!$A:$A,T$728)/1000000","v":0},{"$f":"SUMIFS(raw_transmission_costs!$C:$C,raw_transmission_costs!$B:$B,$C736,raw_transmission_costs!$A:$A,U$728)/1000000","v":0},{"$f":"SUMIFS(raw_transmission_costs!$C:$C,raw_transmission_costs!$B:$B,$C736,raw_transmission_costs!$A:$A,V$728)/1000000","v":0},{"$f":"SUMIFS(raw_transmission_costs!$C:$C,raw_transmission_costs!$B:$B,$C736,raw_transmission_costs!$A:$A,W$728)/1000000","v":0},{"$f":"SUMIFS(raw_transmission_costs!$C:$C,raw_transmission_costs!$B:$B,$C736,raw_transmission_costs!$A:$A,X$728)/1000000","v":0},{"$f":"SUMIFS(raw_transmission_costs!$C:$C,raw_transmission_costs!$B:$B,$C736,raw_transmission_costs!$A:$A,Y$728)/1000000","v":0},{"$f":"SUMIFS(raw_transmission_costs!$C:$C,raw_transmission_costs!$B:$B,$C736,raw_transmission_costs!$A:$A,Z$728)/1000000","v":0},{"$f":"SUMIFS(raw_transmission_costs!$C:$C,raw_transmission_costs!$B:$B,$C736,raw_transmission_costs!$A:$A,AA$728)/1000000","v":0},{"$f":"SUMIFS(raw_transmission_costs!$C:$C,raw_transmission_costs!$B:$B,$C736,raw_transmission_costs!$A:$A,AB$728)/1000000","v":0},{"$f":"SUMIFS(raw_transmission_costs!$C:$C,raw_transmission_costs!$B:$B,$C736,raw_transmission_costs!$A:$A,AC$728)/1000000","v":0},{"$f":"SUMIFS(raw_transmission_costs!$C:$C,raw_transmission_costs!$B:$B,$C736,raw_transmission_costs!$A:$A,AD$728)/1000000","v":0},{"$f":"SUMIFS(raw_transmission_costs!$C:$C,raw_transmission_costs!$B:$B,$C736,raw_transmission_costs!$A:$A,AE$728)/1000000","v":0},{"$f":"SUMIFS(raw_transmission_costs!$C:$C,raw_transmission_costs!$B:$B,$C736,raw_transmission_costs!$A:$A,AF$728)/1000000","v":0},{"$f":"SUMIFS(raw_transmission_costs!$C:$C,raw_transmission_costs!$B:$B,$C736,raw_transmission_costs!$A:$A,AG$728)/1000000","v":0},{"$f":"SUMIFS(raw_transmission_costs!$C:$C,raw_transmission_costs!$B:$B,$C736,raw_transmission_costs!$A:$A,AH$728)/1000000","v":0},{"$f":"SUMIFS(raw_transmission_costs!$C:$C,raw_transmission_costs!$B:$B,$C736,raw_transmission_costs!$A:$A,AI$728)/1000000","v":11.2891792},{"$f":"SUMIFS(raw_transmission_costs!$C:$C,raw_transmission_costs!$B:$B,$C736,raw_transmission_costs!$A:$A,AJ$728)/1000000","v":0},{"$f":"SUMIFS(raw_transmission_costs!$C:$C,raw_transmission_costs!$B:$B,$C736,raw_transmission_costs!$A:$A,AK$728)/1000000","v":0},{"$f":"SUMIFS(raw_transmission_costs!$C:$C,raw_transmission_costs!$B:$B,$C736,raw_transmission_costs!$A:$A,AL$728)/1000000","v":0},{"$f":"SUMIFS(raw_transmission_costs!$C:$C,raw_transmission_costs!$B:$B,$C736,raw_transmission_costs!$A:$A,AM$728)/1000000","v":0},{"$f":"SUMIFS(raw_transmission_costs!$C:$C,raw_transmission_costs!$B:$B,$C736,raw_transmission_costs!$A:$A,AN$728)/1000000","v":0}]
[null,null,"GLW_VEA","$MM",{"$f":"SUMIFS(raw_transmission_costs!$C:$C,raw_transmission_costs!$B:$B,$C737,raw_transmission_costs!$A:$A,E$728)/1000000","v":0},{"$f":"SUMIFS(raw_transmission_costs!$C:$C,raw_transmission_costs!$B:$B,$C737,raw_transmission_costs!$A:$A,F$728)/1000000","v":0},{"$f":"SUMIFS(raw_transmission_costs!$C:$C,raw_transmission_costs!$B:$B,$C737,raw_transmission_costs!$A:$A,G$728)/1000000","v":0},{"$f":"SUMIFS(raw_transmission_costs!$C:$C,raw_transmission_costs!$B:$B,$C737,raw_transmission_costs!$A:$A,H$728)/1000000","v":0},{"$f":"SUMIFS(raw_transmission_costs!$C:$C,raw_transmission_costs!$B:$B,$C737,raw_transmission_costs!$A:$A,I$728)/1000000","v":0},{"$f":"SUMIFS(raw_transmission_costs!$C:$C,raw_transmission_costs!$B:$B,$C737,raw_transmission_costs!$A:$A,J$728)/1000000","v":0},{"$f":"SUMIFS(raw_transmission_costs!$C:$C,raw_transmission_costs!$B:$B,$C737,raw_transmission_costs!$A:$A,K$728)/1000000","v":0},{"$f":"SUMIFS(raw_transmission_costs!$C:$C,raw_transmission_costs!$B:$B,$C737,raw_transmission_costs!$A:$A,L$728)/1000000","v":0},{"$f":"SUMIFS(raw_transmission_costs!$C:$C,raw_transmission_costs!$B:$B,$C737,raw_transmission_costs!$A:$A,M$728)/1000000","v":0},{"$f":"SUMIFS(raw_transmission_costs!$C:$C,raw_transmission_costs!$B:$B,$C737,raw_transmission_costs!$A:$A,N$728)/1000000","v":0},{"$f":"SUMIFS(raw_transmission_costs!$C:$C,raw_transmission_costs!$B:$B,$C737,raw_transmission_costs!$A:$A,O$728)/1000000","v":0},{"$f":"SUMIFS(raw_transmission_costs!$C:$C,raw_transmission_costs!$B:$B,$C737,raw_transmission_costs!$A:$A,P$728)/1000000","v":0},{"$f":"SUMIFS(raw_transmission_costs!$C:$C,raw_transmission_costs!$B:$B,$C737,raw_transmission_costs!$A:$A,Q$728)/1000000","v":0},{"$f":"SUMIFS(raw_transmission_costs!$C:$C,raw_transmission_costs!$B:$B,$C737,raw_transmission_costs!$A:$A,R$728)/1000000","v":0},{"$f":"SUMIFS(raw_transmission_costs!$C:$C,raw_transmission_costs!$B:$B,$C737,raw_transmission_costs!$A:$A,S$728)/1000000","v":0},{"$f":"SUMIFS(raw_transmission_costs!$C:$C,raw_transmission_costs!$B:$B,$C737,raw_transmission_costs!$A:$A,T$728)/1000000","v":0},{"$f":"SUMIFS(raw_transmission_costs!$C:$C,raw_transmission_costs!$B:$B,$C737,raw_transmission_costs!$A:$A,U$728)/1000000","v":0},{"$f":"SUMIFS(raw_transmission_costs!$C:$C,raw_transmission_costs!$B:$B,$C737,raw_transmission_costs!$A:$A,V$728)/1000000","v":0},{"$f":"SUMIFS(raw_transmission_costs!$C:$C,raw_transmission_costs!$B:$B,$C737,raw_transmission_costs!$A:$A,W$728)/1000000","v":0},{"$f":"SUMIFS(raw_transmission_costs!$C:$C,raw_transmission_costs!$B:$B,$C737,raw_transmission_costs!$A:$A,X$728)/1000000","v":0},{"$f":"SUMIFS(raw_transmission_costs!$C:$C,raw_transmission_costs!$B:$B,$C737,raw_transmission_costs!$A:$A,Y$728)/1000000","v":0},{"$f":"SUMIFS(raw_transmission_costs!$C:$C,raw_transmission_costs!$B:$B,$C737,raw_transmission_costs!$A:$A,Z$728)/1000000","v":0},{"$f":"SUMIFS(raw_transmission_costs!$C:$C,raw_transmission_costs!$B:$B,$C737,raw_transmission_costs!$A:$A,AA$728)/1000000","v":0},{"$f":"SUMIFS(raw_transmission_costs!$C:$C,raw_transmission_costs!$B:$B,$C737,raw_transmission_costs!$A:$A,AB$728)/1000000","v":0},{"$f":"SUMIFS(raw_transmission_costs!$C:$C,raw_transmission_costs!$B:$B,$C737,raw_transmission_costs!$A:$A,AC$728)/1000000","v":0},{"$f":"SUMIFS(raw_transmission_costs!$C:$C,raw_transmission_costs!$B:$B,$C737,raw_transmission_costs!$A:$A,AD$728)/1000000","v":0},{"$f":"SUMIFS(raw_transmission_costs!$C:$C,raw_transmission_costs!$B:$B,$C737,raw_transmission_costs!$A:$A,AE$728)/1000000","v":0},{"$f":"SUMIFS(raw_transmission_costs!$C:$C,raw_transmission_costs!$B:$B,$C737,raw_transmission_costs!$A:$A,AF$728)/1000000","v":0},{"$f":"SUMIFS(raw_transmission_costs!$C:$C,raw_transmission_costs!$B:$B,$C737,raw_transmission_costs!$A:$A,AG$728)/1000000","v":0},{"$f":"SUMIFS(raw_transmission_costs!$C:$C,raw_transmission_costs!$B:$B,$C737,raw_transmission_costs!$A:$A,AH$728)/1000000","v":0},{"$f":"SUMIFS(raw_transmission_costs!$C:$C,raw_transmission_costs!$B:$B,$C737,raw_transmission_costs!$A:$A,AI$728)/1000000","v":0},{"$f":"SUMIFS(raw_transmission_costs!$C:$C,raw_transmission_costs!$B:$B,$C737,raw_transmission_costs!$A:$A,AJ$728)/1000000","v":0},{"$f":"SUMIFS(raw_transmission_costs!$C:$C,raw_transmission_costs!$B:$B,$C737,raw_transmission_costs!$A:$A,AK$728)/1000000","v":0},{"$f":"SUMIFS(raw_transmission_costs!$C:$C,raw_transmission_costs!$B:$B,$C737,raw_transmission_costs!$A:$A,AL$728)/1000000","v":0},{"$f":"SUMIFS(raw_transmission_costs!$C:$C,raw_transmission_costs!$B:$B,$C737,raw_transmission_costs!$A:$A,AM$728)/1000000","v":0},{"$f":"SUMIFS(raw_transmission_costs!$C:$C,raw_transmission_costs!$B:$B,$C737,raw_transmission_costs!$A:$A,AN$728)/1000000","v":0}]
[null,null,"Greater_Imperial","$MM",{"$f":"SUMIFS(raw_transmission_costs!$C:$C,raw_transmission_costs!$B:$B,$C738,raw_transmission_costs!$A:$A,E$728)/1000000","v":0},{"$f":"SUMIFS(raw_transmission_costs!$C:$C,raw_transmission_costs!$B:$B,$C738,raw_transmission_costs!$A:$A,F$728)/1000000","v":0},{"$f":"SUMIFS(raw_transmission_costs!$C:$C,raw_transmission_costs!$B:$B,$C738,raw_transmission_costs!$A:$A,G$728)/1000000","v":0},{"$f":"SUMIFS(raw_transmission_costs!$C:$C,raw_transmission_costs!$B:$B,$C738,raw_transmission_costs!$A:$A,H$728)/1000000","v":0},{"$f":"SUMIFS(raw_transmission_costs!$C:$C,raw_transmission_costs!$B:$B,$C738,raw_transmission_costs!$A:$A,I$728)/1000000","v":0},{"$f":"SUMIFS(raw_transmission_costs!$C:$C,raw_transmission_costs!$B:$B,$C738,raw_transmission_costs!$A:$A,J$728)/1000000","v":0},{"$f":"SUMIFS(raw_transmission_costs!$C:$C,raw_transmission_costs!$B:$B,$C738,raw_transmission_costs!$A:$A,K$728)/1000000","v":0},{"$f":"SUMIFS(raw_transmission_costs!$C:$C,raw_transmission_costs!$B:$B,$C738,raw_transmission_costs!$A:$A,L$728)/1000000","v":0},{"$f":"SUMIFS(raw_transmission_costs!$C:$C,raw_transmission_costs!$B:$B,$C738,raw_transmission_costs!$A:$A,M$728)/1000000","v":0},{"$f":"SUMIFS(raw_transmission_costs!$C:$C,raw_transmission_costs!$B:$B,$C738,raw_transmission_costs!$A:$A,N$728)/1000000","v":0},{"$f":"SUMIFS(raw_transmission_costs!$C:$C,raw_transmission_costs!$B:$B,$C738,raw_transmission_costs!$A:$A,O$728)/1000000","v":0},{"$f":"SUMIFS(raw_transmission_costs!$C:$C,raw_transmission_costs!$B:$B,$C738,raw_transmission_costs!$A:$A,P$728)/1000000","v":0},{"$f":"SUMIFS(raw_transmission_costs!$C:$C,raw_transmission_costs!$B:$B,$C738,raw_transmission_costs!$A:$A,Q$728)/1000000","v":0},{"$f":"SUMIFS(raw_transmission_costs!$C:$C,raw_transmission_costs!$B:$B,$C738,raw_transmission_costs!$A:$A,R$728)/1000000","v":0},{"$f":"SUMIFS(raw_transmission_costs!$C:$C,raw_transmission_costs!$B:$B,$C738,raw_transmission_costs!$A:$A,S$728)/1000000","v":0},{"$f":"SUMIFS(raw_transmission_costs!$C:$C,raw_transmission_costs!$B:$B,$C738,raw_transmission_costs!$A:$A,T$728)/1000000","v":0},{"$f":"SUMIFS(raw_transmission_costs!$C:$C,raw_transmission_costs!$B:$B,$C738,raw_transmission_costs!$A:$A,U$728)/1000000","v":0},{"$f":"SUMIFS(raw_transmission_costs!$C:$C,raw_transmission_costs!$B:$B,$C738,raw_transmission_costs!$A:$A,V$728)/1000000","v":0},{"$f":"SUMIFS(raw_transmission_costs!$C:$C,raw_transmission_costs!$B:$B,$C738,raw_transmission_costs!$A:$A,W$728)/1000000","v":0},{"$f":"SUMIFS(raw_transmission_costs!$C:$C,raw_transmission_costs!$B:$B,$C738,raw_transmission_costs!$A:$A,X$728)/1000000","v":0},{"$f":"SUMIFS(raw_transmission_costs!$C:$C,raw_transmission_costs!$B:$B,$C738,raw_transmission_costs!$A:$A,Y$728)/1000000","v":0},{"$f":"SUMIFS(raw_transmission_costs!$C:$C,raw_transmission_costs!$B:$B,$C738,raw_transmission_costs!$A:$A,Z$728)/1000000","v":0},{"$f":"SUMIFS(raw_transmission_costs!$C:$C,raw_transmission_costs!$B:$B,$C738,raw_transmission_costs!$A:$A,AA$728)/1000000","v":0},{"$f":"SUMIFS(raw_transmission_costs!$C:$C,raw_transmission_costs!$B:$B,$C738,raw_transmission_costs!$A:$A,AB$728)/1000000","v":0},{"$f":"SUMIFS(raw_transmission_costs!$C:$C,raw_transmission_costs!$B:$B,$C738,raw_transmission_costs!$A:$A,AC$728)/1000000","v":0},{"$f":"SUMIFS(raw_transmission_costs!$C:$C,raw_transmission_costs!$B:$B,$C738,raw_transmission_costs!$A:$A,AD$728)/1000000","v":0},{"$f":"SUMIFS(raw_transmission_costs!$C:$C,raw_transmission_costs!$B:$B,$C738,raw_transmission_costs!$A:$A,AE$728)/1000000","v":0},{"$f":"SUMIFS(raw_transmission_costs!$C:$C,raw_transmission_costs!$B:$B,$C738,raw_transmission_costs!$A:$A,AF$728)/1000000","v":0},{"$f":"SUMIFS(raw_transmission_costs!$C:$C,raw_transmission_costs!$B:$B,$C738,raw_transmission_costs!$A:$A,AG$728)/1000000","v":0},{"$f":"SUMIFS(raw_transmission_costs!$C:$C,raw_transmission_costs!$B:$B,$C738,raw_transmission_costs!$A:$A,AH$728)/1000000","v":0},{"$f":"SUMIFS(raw_transmission_costs!$C:$C,raw_transmission_costs!$B:$B,$C738,raw_transmission_costs!$A:$A,AI$728)/1000000","v":0},{"$f":"SUMIFS(raw_transmission_costs!$C:$C,raw_transmission_costs!$B:$B,$C738,raw_transmission_costs!$A:$A,AJ$728)/1000000","v":0},{"$f":"SUMIFS(raw_transmission_costs!$C:$C,raw_transmission_costs!$B:$B,$C738,raw_transmission_costs!$A:$A,AK$728)/1000000","v":0},{"$f":"SUMIFS(raw_transmission_costs!$C:$C,raw_transmission_costs!$B:$B,$C738,raw_transmission_costs!$A:$A,AL$728)/1000000","v":0},{"$f":"SUMIFS(raw_transmission_costs!$C:$C,raw_transmission_costs!$B:$B,$C738,raw_transmission_costs!$A:$A,AM$728)/1000000","v":0},{"$f":"SUMIFS(raw_transmission_costs!$C:$C,raw_transmission_costs!$B:$B,$C738,raw_transmission_costs!$A:$A,AN$728)/1000000","v":0}]
[null,null,"Riverside_Palm_Springs","$MM",{"$f":"SUMIFS(raw_transmission_costs!$C:$C,raw_transmission_costs!$B:$B,$C739,raw_transmission_costs!$A:$A,E$728)/1000000","v":0},{"$f":"SUMIFS(raw_transmission_costs!$C:$C,raw_transmission_costs!$B:$B,$C739,raw_transmission_costs!$A:$A,F$728)/1000000","v":0},{"$f":"SUMIFS(raw_transmission_costs!$C:$C,raw_transmission_costs!$B:$B,$C739,raw_transmission_costs!$A:$A,G$728)/1000000","v":0},{"$f":"SUMIFS(raw_transmission_costs!$C:$C,raw_transmission_costs!$B:$B,$C739,raw_transmission_costs!$A:$A,H$728)/1000000","v":0},{"$f":"SUMIFS(raw_transmission_costs!$C:$C,raw_transmission_costs!$B:$B,$C739,raw_transmission_costs!$A:$A,I$728)/1000000","v":0},{"$f":"SUMIFS(raw_transmission_costs!$C:$C,raw_transmission_costs!$B:$B,$C739,raw_transmission_costs!$A:$A,J$728)/1000000","v":0},{"$f":"SUMIFS(raw_transmission_costs!$C:$C,raw_transmission_costs!$B:$B,$C739,raw_transmission_costs!$A:$A,K$728)/1000000","v":0},{"$f":"SUMIFS(raw_transmission_costs!$C:$C,raw_transmission_costs!$B:$B,$C739,raw_transmission_costs!$A:$A,L$728)/1000000","v":0},{"$f":"SUMIFS(raw_transmission_costs!$C:$C,raw_transmission_costs!$B:$B,$C739,raw_transmission_costs!$A:$A,M$728)/1000000","v":0},{"$f":"SUMIFS(raw_transmission_costs!$C:$C,raw_transmission_costs!$B:$B,$C739,raw_transmission_costs!$A:$A,N$728)/1000000","v":0},{"$f":"SUMIFS(raw_transmission_costs!$C:$C,raw_transmission_costs!$B:$B,$C739,raw_transmission_costs!$A:$A,O$728)/1000000","v":0},{"$f":"SUMIFS(raw_transmission_costs!$C:$C,raw_transmission_costs!$B:$B,$C739,raw_transmission_costs!$A:$A,P$728)/1000000","v":0},{"$f":"SUMIFS(raw_transmission_costs!$C:$C,raw_transmission_costs!$B:$B,$C739,raw_transmission_costs!$A:$A,Q$728)/1000000","v":0},{"$f":"SUMIFS(raw_transmission_costs!$C:$C,raw_transmission_costs!$B:$B,$C739,raw_transmission_costs!$A:$A,R$728)/1000000","v":0},{"$f":"SUMIFS(raw_transmission_costs!$C:$C,raw_transmission_costs!$B:$B,$C739,raw_transmission_costs!$A:$A,S$728)/1000000","v":0},{"$f":"SUMIFS(raw_transmission_costs!$C:$C,raw_transmission_costs!$B:$B,$C739,raw_transmission_costs!$A:$A,T$728)/1000000","v":0},{"$f":"SUMIFS(raw_transmission_costs!$C:$C,raw_transmission_costs!$B:$B,$C739,raw_transmission_costs!$A:$A,U$728)/1000000","v":0},{"$f":"SUMIFS(raw_transmission_costs!$C:$C,raw_transmission_costs!$B:$B,$C739,raw_transmission_costs!$A:$A,V$728)/1000000","v":0},{"$f":"SUMIFS(raw_transmission_costs!$C:$C,raw_transmission_costs!$B:$B,$C739,raw_transmission_costs!$A:$A,W$728)/1000000","v":0},{"$f":"SUMIFS(raw_transmission_costs!$C:$C,raw_transmission_costs!$B:$B,$C739,raw_transmission_costs!$A:$A,X$728)/1000000","v":0},{"$f":"SUMIFS(raw_transmission_costs!$C:$C,raw_transmission_costs!$B:$B,$C739,raw_transmission_costs!$A:$A,Y$728)/1000000","v":0},{"$f":"SUMIFS(raw_transmission_costs!$C:$C,raw_transmission_costs!$B:$B,$C739,raw_transmission_costs!$A:$A,Z$728)/1000000","v":0},{"$f":"SUMIFS(raw_transmission_costs!$C:$C,raw_transmission_costs!$B:$B,$C739,raw_transmission_costs!$A:$A,AA$728)/1000000","v":0},{"$f":"SUMIFS(raw_transmission_costs!$C:$C,raw_transmission_costs!$B:$B,$C739,raw_transmission_costs!$A:$A,AB$728)/1000000","v":0},{"$f":"SUMIFS(raw_transmission_costs!$C:$C,raw_transmission_costs!$B:$B,$C739,raw_transmission_costs!$A:$A,AC$728)/1000000","v":0},{"$f":"SUMIFS(raw_transmission_costs!$C:$C,raw_transmission_costs!$B:$B,$C739,raw_transmission_costs!$A:$A,AD$728)/1000000","v":0},{"$f":"SUMIFS(raw_transmission_costs!$C:$C,raw_transmission_costs!$B:$B,$C739,raw_transmission_costs!$A:$A,AE$728)/1000000","v":0},{"$f":"SUMIFS(raw_transmission_costs!$C:$C,raw_transmission_costs!$B:$B,$C739,raw_transmission_costs!$A:$A,AF$728)/1000000","v":0},{"$f":"SUMIFS(raw_transmission_costs!$C:$C,raw_transmission_costs!$B:$B,$C739,raw_transmission_costs!$A:$A,AG$728)/1000000","v":0},{"$f":"SUMIFS(raw_transmission_costs!$C:$C,raw_transmission_costs!$B:$B,$C739,raw_transmission_costs!$A:$A,AH$728)/1000000","v":0},{"$f":"SUMIFS(raw_transmission_costs!$C:$C,raw_transmission_costs!$B:$B,$C739,raw_transmission_costs!$A:$A,AI$728)/1000000","v":0},{"$f":"SUMIFS(raw_transmission_costs!$C:$C,raw_transmission_costs!$B:$B,$C739,raw_transmission_costs!$A:$A,AJ$728)/1000000","v":0},{"$f":"SUMIFS(raw_transmission_costs!$C:$C,raw_transmission_costs!$B:$B,$C739,raw_transmission_costs!$A:$A,AK$728)/1000000","v":0},{"$f":"SUMIFS(raw_transmission_costs!$C:$C,raw_transmission_costs!$B:$B,$C739,raw_transmission_costs!$A:$A,AL$728)/1000000","v":0},{"$f":"SUMIFS(raw_transmission_costs!$C:$C,raw_transmission_costs!$B:$B,$C739,raw_transmission_costs!$A:$A,AM$728)/1000000","v":0},{"$f":"SUMIFS(raw_transmission_costs!$C:$C,raw_transmission_costs!$B:$B,$C739,raw_transmission_costs!$A:$A,AN$728)/1000000","v":0}]
[null,null,"SCADSNV","$MM",{"$f":"SUMIFS(raw_transmission_costs!$C:$C,raw_transmission_costs!$B:$B,$C740,raw_transmission_costs!$A:$A,E$728)/1000000","v":0},{"$f":"SUMIFS(raw_transmission_costs!$C:$C,raw_transmission_costs!$B:$B,$C740,raw_transmission_costs!$A:$A,F$728)/1000000","v":0},{"$f":"SUMIFS(raw_transmission_costs!$C:$C,raw_transmission_costs!$B:$B,$C740,raw_transmission_costs!$A:$A,G$728)/1000000","v":0},{"$f":"SUMIFS(raw_transmission_costs!$C:$C,raw_transmission_costs!$B:$B,$C740,raw_transmission_costs!$A:$A,H$728)/1000000","v":0},{"$f":"SUMIFS(raw_transmission_costs!$C:$C,raw_transmission_costs!$B:$B,$C740,raw_transmission_costs!$A:$A,I$728)/1000000","v":0},{"$f":"SUMIFS(raw_transmission_costs!$C:$C,raw_transmission_costs!$B:$B,$C740,raw_transmission_costs!$A:$A,J$728)/1000000","v":0},{"$f":"SUMIFS(raw_transmission_costs!$C:$C,raw_transmission_costs!$B:$B,$C740,raw_transmission_costs!$A:$A,K$728)/1000000","v":0},{"$f":"SUMIFS(raw_transmission_costs!$C:$C,raw_transmission_costs!$B:$B,$C740,raw_transmission_costs!$A:$A,L$728)/1000000","v":0},{"$f":"SUMIFS(raw_transmission_costs!$C:$C,raw_transmission_costs!$B:$B,$C740,raw_transmission_costs!$A:$A,M$728)/1000000","v":0},{"$f":"SUMIFS(raw_transmission_costs!$C:$C,raw_transmission_costs!$B:$B,$C740,raw_transmission_costs!$A:$A,N$728)/1000000","v":0},{"$f":"SUMIFS(raw_transmission_costs!$C:$C,raw_transmission_costs!$B:$B,$C740,raw_transmission_costs!$A:$A,O$728)/1000000","v":0},{"$f":"SUMIFS(raw_transmission_costs!$C:$C,raw_transmission_costs!$B:$B,$C740,raw_transmission_costs!$A:$A,P$728)/1000000","v":0},{"$f":"SUMIFS(raw_transmission_costs!$C:$C,raw_transmission_costs!$B:$B,$C740,raw_transmission_costs!$A:$A,Q$728)/1000000","v":0},{"$f":"SUMIFS(raw_transmission_costs!$C:$C,raw_transmission_costs!$B:$B,$C740,raw_transmission_costs!$A:$A,R$728)/1000000","v":0},{"$f":"SUMIFS(raw_transmission_costs!$C:$C,raw_transmission_costs!$B:$B,$C740,raw_transmission_costs!$A:$A,S$728)/1000000","v":0},{"$f":"SUMIFS(raw_transmission_costs!$C:$C,raw_transmission_costs!$B:$B,$C740,raw_transmission_costs!$A:$A,T$728)/1000000","v":0},{"$f":"SUMIFS(raw_transmission_costs!$C:$C,raw_transmission_costs!$B:$B,$C740,raw_transmission_costs!$A:$A,U$728)/1000000","v":0},{"$f":"SUMIFS(raw_transmission_costs!$C:$C,raw_transmission_costs!$B:$B,$C740,raw_transmission_costs!$A:$A,V$728)/1000000","v":0},{"$f":"SUMIFS(raw_transmission_costs!$C:$C,raw_transmission_costs!$B:$B,$C740,raw_transmission_costs!$A:$A,W$728)/1000000","v":0},{"$f":"SUMIFS(raw_transmission_costs!$C:$C,raw_transmission_costs!$B:$B,$C740,raw_transmission_costs!$A:$A,X$728)/1000000","v":0},{"$f":"SUMIFS(raw_transmission_costs!$C:$C,raw_transmission_costs!$B:$B,$C740,raw_transmission_costs!$A:$A,Y$728)/1000000","v":0},{"$f":"SUMIFS(raw_transmission_costs!$C:$C,raw_transmission_costs!$B:$B,$C740,raw_transmission_costs!$A:$A,Z$728)/1000000","v":0},{"$f":"SUMIFS(raw_transmission_costs!$C:$C,raw_transmission_costs!$B:$B,$C740,raw_transmission_costs!$A:$A,AA$728)/1000000","v":0},{"$f":"SUMIFS(raw_transmission_costs!$C:$C,raw_transmission_costs!$B:$B,$C740,raw_transmission_costs!$A:$A,AB$728)/1000000","v":0},{"$f":"SUMIFS(raw_transmission_costs!$C:$C,raw_transmission_costs!$B:$B,$C740,raw_transmission_costs!$A:$A,AC$728)/1000000","v":0},{"$f":"SUMIFS(raw_transmission_costs!$C:$C,raw_transmission_costs!$B:$B,$C740,raw_transmission_costs!$A:$A,AD$728)/1000000","v":0},{"$f":"SUMIFS(raw_transmission_costs!$C:$C,raw_transmission_costs!$B:$B,$C740,raw_transmission_costs!$A:$A,AE$728)/1000000","v":0},{"$f":"SUMIFS(raw_transmission_costs!$C:$C,raw_transmission_costs!$B:$B,$C740,raw_transmission_costs!$A:$A,AF$728)/1000000","v":0},{"$f":"SUMIFS(raw_transmission_costs!$C:$C,raw_transmission_costs!$B:$B,$C740,raw_transmission_costs!$A:$A,AG$728)/1000000","v":0},{"$f":"SUMIFS(raw_transmission_costs!$C:$C,raw_transmission_costs!$B:$B,$C740,raw_transmission_costs!$A:$A,AH$728)/1000000","v":0},{"$f":"SUMIFS(raw_transmission_costs!$C:$C,raw_transmission_costs!$B:$B,$C740,raw_transmission_costs!$A:$A,AI$728)/1000000","v":340.86215958999998},{"$f":"SUMIFS(raw_transmission_costs!$C:$C,raw_transmission_costs!$B:$B,$C740,raw_transmission_costs!$A:$A,AJ$728)/1000000","v":0},{"$f":"SUMIFS(raw_transmission_costs!$C:$C,raw_transmission_costs!$B:$B,$C740,raw_transmission_costs!$A:$A,AK$728)/1000000","v":0},{"$f":"SUMIFS(raw_transmission_costs!$C:$C,raw_transmission_costs!$B:$B,$C740,raw_transmission_costs!$A:$A,AL$728)/1000000","v":0},{"$f":"SUMIFS(raw_transmission_costs!$C:$C,raw_transmission_costs!$B:$B,$C740,raw_transmission_costs!$A:$A,AM$728)/1000000","v":0},{"$f":"SUMIFS(raw_transmission_costs!$C:$C,raw_transmission_costs!$B:$B,$C740,raw_transmission_costs!$A:$A,AN$728)/1000000","v":0}]
[null,null,"Kern_Greater_Carrizo","$MM",{"$f":"SUMIFS(raw_transmission_costs!$C:$C,raw_transmission_costs!$B:$B,$C741,raw_transmission_costs!$A:$A,E$728)/1000000","v":0},{"$f":"SUMIFS(raw_transmission_costs!$C:$C,raw_transmission_costs!$B:$B,$C741,raw_transmission_costs!$A:$A,F$728)/1000000","v":0},{"$f":"SUMIFS(raw_transmission_costs!$C:$C,raw_transmission_costs!$B:$B,$C741,raw_transmission_costs!$A:$A,G$728)/1000000","v":0},{"$f":"SUMIFS(raw_transmission_costs!$C:$C,raw_transmission_costs!$B:$B,$C741,raw_transmission_costs!$A:$A,H$728)/1000000","v":0},{"$f":"SUMIFS(raw_transmission_costs!$C:$C,raw_transmission_costs!$B:$B,$C741,raw_transmission_costs!$A:$A,I$728)/1000000","v":0},{"$f":"SUMIFS(raw_transmission_costs!$C:$C,raw_transmission_costs!$B:$B,$C741,raw_transmission_costs!$A:$A,J$728)/1000000","v":0},{"$f":"SUMIFS(raw_transmission_costs!$C:$C,raw_transmission_costs!$B:$B,$C741,raw_transmission_costs!$A:$A,K$728)/1000000","v":0},{"$f":"SUMIFS(raw_transmission_costs!$C:$C,raw_transmission_costs!$B:$B,$C741,raw_transmission_costs!$A:$A,L$728)/1000000","v":0},{"$f":"SUMIFS(raw_transmission_costs!$C:$C,raw_transmission_costs!$B:$B,$C741,raw_transmission_costs!$A:$A,M$728)/1000000","v":0},{"$f":"SUMIFS(raw_transmission_costs!$C:$C,raw_transmission_costs!$B:$B,$C741,raw_transmission_costs!$A:$A,N$728)/1000000","v":0},{"$f":"SUMIFS(raw_transmission_costs!$C:$C,raw_transmission_costs!$B:$B,$C741,raw_transmission_costs!$A:$A,O$728)/1000000","v":0},{"$f":"SUMIFS(raw_transmission_costs!$C:$C,raw_transmission_costs!$B:$B,$C741,raw_transmission_costs!$A:$A,P$728)/1000000","v":0},{"$f":"SUMIFS(raw_transmission_costs!$C:$C,raw_transmission_costs!$B:$B,$C741,raw_transmission_costs!$A:$A,Q$728)/1000000","v":0},{"$f":"SUMIFS(raw_transmission_costs!$C:$C,raw_transmission_costs!$B:$B,$C741,raw_transmission_costs!$A:$A,R$728)/1000000","v":0},{"$f":"SUMIFS(raw_transmission_costs!$C:$C,raw_transmission_costs!$B:$B,$C741,raw_transmission_costs!$A:$A,S$728)/1000000","v":0},{"$f":"SUMIFS(raw_transmission_costs!$C:$C,raw_transmission_costs!$B:$B,$C741,raw_transmission_costs!$A:$A,T$728)/1000000","v":153.05676376},{"$f":"SUMIFS(raw_transmission_costs!$C:$C,raw_transmission_costs!$B:$B,$C741,raw_transmission_costs!$A:$A,U$728)/1000000","v":0},{"$f":"SUMIFS(raw_transmission_costs!$C:$C,raw_transmission_costs!$B:$B,$C741,raw_transmission_costs!$A:$A,V$728)/1000000","v":0},{"$f":"SUMIFS(raw_transmission_costs!$C:$C,raw_transmission_costs!$B:$B,$C741,raw_transmission_costs!$A:$A,W$728)/1000000","v":0},{"$f":"SUMIFS(raw_transmission_costs!$C:$C,raw_transmission_costs!$B:$B,$C741,raw_transmission_costs!$A:$A,X$728)/1000000","v":0},{"$f":"SUMIFS(raw_transmission_costs!$C:$C,raw_transmission_costs!$B:$B,$C741,raw_transmission_costs!$A:$A,Y$728)/1000000","v":0},{"$f":"SUMIFS(raw_transmission_costs!$C:$C,raw_transmission_costs!$B:$B,$C741,raw_transmission_costs!$A:$A,Z$728)/1000000","v":0},{"$f":"SUMIFS(raw_transmission_costs!$C:$C,raw_transmission_costs!$B:$B,$C741,raw_transmission_costs!$A:$A,AA$728)/1000000","v":0},{"$f":"SUMIFS(raw_transmission_costs!$C:$C,raw_transmission_costs!$B:$B,$C741,raw_transmission_costs!$A:$A,AB$728)/1000000","v":0},{"$f":"SUMIFS(raw_transmission_costs!$C:$C,raw_transmission_costs!$B:$B,$C741,raw_transmission_costs!$A:$A,AC$728)/1000000","v":0},{"$f":"SUMIFS(raw_transmission_costs!$C:$C,raw_transmission_costs!$B:$B,$C741,raw_transmission_costs!$A:$A,AD$728)/1000000","v":0},{"$f":"SUMIFS(raw_transmission_costs!$C:$C,raw_transmission_costs!$B:$B,$C741,raw_transmission_costs!$A:$A,AE$728)/1000000","v":0},{"$f":"SUMIFS(raw_transmission_costs!$C:$C,raw_transmission_costs!$B:$B,$C741,raw_transmission_costs!$A:$A,AF$728)/1000000","v":0},{"$f":"SUMIFS(raw_transmission_costs!$C:$C,raw_transmission_costs!$B:$B,$C741,raw_transmission_costs!$A:$A,AG$728)/1000000","v":0},{"$f":"SUMIFS(raw_transmission_costs!$C:$C,raw_transmission_costs!$B:$B,$C741,raw_transmission_costs!$A:$A,AH$728)/1000000","v":0},{"$f":"SUMIFS(raw_transmission_costs!$C:$C,raw_transmission_costs!$B:$B,$C741,raw_transmission_costs!$A:$A,AI$728)/1000000","v":363.89288147000002},{"$f":"SUMIFS(raw_transmission_costs!$C:$C,raw_transmission_costs!$B:$B,$C741,raw_transmission_costs!$A:$A,AJ$728)/1000000","v":0},{"$f":"SUMIFS(raw_transmission_costs!$C:$C,raw_transmission_costs!$B:$B,$C741,raw_transmission_costs!$A:$A,AK$728)/1000000","v":0},{"$f":"SUMIFS(raw_transmission_costs!$C:$C,raw_transmission_costs!$B:$B,$C741,raw_transmission_costs!$A:$A,AL$728)/1000000","v":0},{"$f":"SUMIFS(raw_transmission_costs!$C:$C,raw_transmission_costs!$B:$B,$C741,raw_transmission_costs!$A:$A,AM$728)/1000000","v":0},{"$f":"SUMIFS(raw_transmission_costs!$C:$C,raw_transmission_costs!$B:$B,$C741,raw_transmission_costs!$A:$A,AN$728)/1000000","v":0}]
[null,null,"Carrizo","$MM",{"$f":"SUMIFS(raw_transmission_costs!$C:$C,raw_transmission_costs!$B:$B,$C742,raw_transmission_costs!$A:$A,E$728)/1000000","v":0},{"$f":"SUMIFS(raw_transmission_costs!$C:$C,raw_transmission_costs!$B:$B,$C742,raw_transmission_costs!$A:$A,F$728)/1000000","v":0},{"$f":"SUMIFS(raw_transmission_costs!$C:$C,raw_transmission_costs!$B:$B,$C742,raw_transmission_costs!$A:$A,G$728)/1000000","v":0},{"$f":"SUMIFS(raw_transmission_costs!$C:$C,raw_transmission_costs!$B:$B,$C742,raw_transmission_costs!$A:$A,H$728)/1000000","v":0},{"$f":"SUMIFS(raw_transmission_costs!$C:$C,raw_transmission_costs!$B:$B,$C742,raw_transmission_costs!$A:$A,I$728)/1000000","v":0},{"$f":"SUMIFS(raw_transmission_costs!$C:$C,raw_transmission_costs!$B:$B,$C742,raw_transmission_costs!$A:$A,J$728)/1000000","v":0},{"$f":"SUMIFS(raw_transmission_costs!$C:$C,raw_transmission_costs!$B:$B,$C742,raw_transmission_costs!$A:$A,K$728)/1000000","v":0},{"$f":"SUMIFS(raw_transmission_costs!$C:$C,raw_transmission_costs!$B:$B,$C742,raw_transmission_costs!$A:$A,L$728)/1000000","v":0},{"$f":"SUMIFS(raw_transmission_costs!$C:$C,raw_transmission_costs!$B:$B,$C742,raw_transmission_costs!$A:$A,M$728)/1000000","v":1.002894},{"$f":"SUMIFS(raw_transmission_costs!$C:$C,raw_transmission_costs!$B:$B,$C742,raw_transmission_costs!$A:$A,N$728)/1000000","v":1.002894},{"$f":"SUMIFS(raw_transmission_costs!$C:$C,raw_transmission_costs!$B:$B,$C742,raw_transmission_costs!$A:$A,O$728)/1000000","v":0},{"$f":"SUMIFS(raw_transmission_costs!$C:$C,raw_transmission_costs!$B:$B,$C742,raw_transmission_costs!$A:$A,P$728)/1000000","v":1.002894},{"$f":"SUMIFS(raw_transmission_costs!$C:$C,raw_transmission_costs!$B:$B,$C742,raw_transmission_costs!$A:$A,Q$728)/1000000","v":0},{"$f":"SUMIFS(raw_transmission_costs!$C:$C,raw_transmission_costs!$B:$B,$C742,raw_transmission_costs!$A:$A,R$728)/1000000","v":0},{"$f":"SUMIFS(raw_transmission_costs!$C:$C,raw_transmission_costs!$B:$B,$C742,raw_transmission_costs!$A:$A,S$728)/1000000","v":0},{"$f":"SUMIFS(raw_transmission_costs!$C:$C,raw_transmission_costs!$B:$B,$C742,raw_transmission_costs!$A:$A,T$728)/1000000","v":1.002894},{"$f":"SUMIFS(raw_transmission_costs!$C:$C,raw_transmission_costs!$B:$B,$C742,raw_transmission_costs!$A:$A,U$728)/1000000","v":0},{"$f":"SUMIFS(raw_transmission_costs!$C:$C,raw_transmission_costs!$B:$B,$C742,raw_transmission_costs!$A:$A,V$728)/1000000","v":0},{"$f":"SUMIFS(raw_transmission_costs!$C:$C,raw_transmission_costs!$B:$B,$C742,raw_transmission_costs!$A:$A,W$728)/1000000","v":0},{"$f":"SUMIFS(raw_transmission_costs!$C:$C,raw_transmission_costs!$B:$B,$C742,raw_transmission_costs!$A:$A,X$728)/1000000","v":0},{"$f":"SUMIFS(raw_transmission_costs!$C:$C,raw_transmission_costs!$B:$B,$C742,raw_transmission_costs!$A:$A,Y$728)/1000000","v":0},{"$f":"SUMIFS(raw_transmission_costs!$C:$C,raw_transmission_costs!$B:$B,$C742,raw_transmission_costs!$A:$A,Z$728)/1000000","v":0},{"$f":"SUMIFS(raw_transmission_costs!$C:$C,raw_transmission_costs!$B:$B,$C742,raw_transmission_costs!$A:$A,AA$728)/1000000","v":0},{"$f":"SUMIFS(raw_transmission_costs!$C:$C,raw_transmission_costs!$B:$B,$C742,raw_transmission_costs!$A:$A,AB$728)/1000000","v":0},{"$f":"SUMIFS(raw_transmission_costs!$C:$C,raw_transmission_costs!$B:$B,$C742,raw_transmission_costs!$A:$A,AC$728)/1000000","v":0},{"$f":"SUMIFS(raw_transmission_costs!$C:$C,raw_transmission_costs!$B:$B,$C742,raw_transmission_costs!$A:$A,AD$728)/1000000","v":0},{"$f":"SUMIFS(raw_transmission_costs!$C:$C,raw_transmission_costs!$B:$B,$C742,raw_transmission_costs!$A:$A,AE$728)/1000000","v":0},{"$f":"SUMIFS(raw_transmission_costs!$C:$C,raw_transmission_costs!$B:$B,$C742,raw_transmission_costs!$A:$A,AF$728)/1000000","v":0},{"$f":"SUMIFS(raw_transmission_costs!$C:$C,raw_transmission_costs!$B:$B,$C742,raw_transmission_costs!$A:$A,AG$728)/1000000","v":0},{"$f":"SUMIFS(raw_transmission_costs!$C:$C,raw_transmission_costs!$B:$B,$C742,raw_transmission_costs!$A:$A,AH$728)/1000000","v":0},{"$f":"SUMIFS(raw_transmission_costs!$C:$C,raw_transmission_costs!$B:$B,$C742,raw_transmission_costs!$A:$A,AI$728)/1000000","v":100.35960258},{"$f":"SUMIFS(raw_transmission_costs!$C:$C,raw_transmission_costs!$B:$B,$C742,raw_transmission_costs!$A:$A,AJ$728)/1000000","v":0},{"$f":"SUMIFS(raw_transmission_costs!$C:$C,raw_transmission_costs!$B:$B,$C742,raw_transmission_costs!$A:$A,AK$728)/1000000","v":0},{"$f":"SUMIFS(raw_transmission_costs!$C:$C,raw_transmission_costs!$B:$B,$C742,raw_transmission_costs!$A:$A,AL$728)/1000000","v":0},{"$f":"SUMIFS(raw_transmission_costs!$C:$C,raw_transmission_costs!$B:$B,$C742,raw_transmission_costs!$A:$A,AM$728)/1000000","v":0},{"$f":"SUMIFS(raw_transmission_costs!$C:$C,raw_transmission_costs!$B:$B,$C742,raw_transmission_costs!$A:$A,AN$728)/1000000","v":0}]
[null,null,"Central_Valley_North_Los_Banos","$MM",{"$f":"SUMIFS(raw_transmission_costs!$C:$C,raw_transmission_costs!$B:$B,$C743,raw_transmission_costs!$A:$A,E$728)/1000000","v":0},{"$f":"SUMIFS(raw_transmission_costs!$C:$C,raw_transmission_costs!$B:$B,$C743,raw_transmission_costs!$A:$A,F$728)/1000000","v":0},{"$f":"SUMIFS(raw_transmission_costs!$C:$C,raw_transmission_costs!$B:$B,$C743,raw_transmission_costs!$A:$A,G$728)/1000000","v":0},{"$f":"SUMIFS(raw_transmission_costs!$C:$C,raw_transmission_costs!$B:$B,$C743,raw_transmission_costs!$A:$A,H$728)/1000000","v":0},{"$f":"SUMIFS(raw_transmission_costs!$C:$C,raw_transmission_costs!$B:$B,$C743,raw_transmission_costs!$A:$A,I$728)/1000000","v":0},{"$f":"SUMIFS(raw_transmission_costs!$C:$C,raw_transmission_costs!$B:$B,$C743,raw_transmission_costs!$A:$A,J$728)/1000000","v":0},{"$f":"SUMIFS(raw_transmission_costs!$C:$C,raw_transmission_costs!$B:$B,$C743,raw_transmission_costs!$A:$A,K$728)/1000000","v":0},{"$f":"SUMIFS(raw_transmission_costs!$C:$C,raw_transmission_costs!$B:$B,$C743,raw_transmission_costs!$A:$A,L$728)/1000000","v":0},{"$f":"SUMIFS(raw_transmission_costs!$C:$C,raw_transmission_costs!$B:$B,$C743,raw_transmission_costs!$A:$A,M$728)/1000000","v":0},{"$f":"SUMIFS(raw_transmission_costs!$C:$C,raw_transmission_costs!$B:$B,$C743,raw_transmission_costs!$A:$A,N$728)/1000000","v":0},{"$f":"SUMIFS(raw_transmission_costs!$C:$C,raw_transmission_costs!$B:$B,$C743,raw_transmission_costs!$A:$A,O$728)/1000000","v":0},{"$f":"SUMIFS(raw_transmission_costs!$C:$C,raw_transmission_costs!$B:$B,$C743,raw_transmission_costs!$A:$A,P$728)/1000000","v":0},{"$f":"SUMIFS(raw_transmission_costs!$C:$C,raw_transmission_costs!$B:$B,$C743,raw_transmission_costs!$A:$A,Q$728)/1000000","v":0},{"$f":"SUMIFS(raw_transmission_costs!$C:$C,raw_transmission_costs!$B:$B,$C743,raw_transmission_costs!$A:$A,R$728)/1000000","v":0},{"$f":"SUMIFS(raw_transmission_costs!$C:$C,raw_transmission_costs!$B:$B,$C743,raw_transmission_costs!$A:$A,S$728)/1000000","v":0},{"$f":"SUMIFS(raw_transmission_costs!$C:$C,raw_transmission_costs!$B:$B,$C743,raw_transmission_costs!$A:$A,T$728)/1000000","v":0},{"$f":"SUMIFS(raw_transmission_costs!$C:$C,raw_transmission_costs!$B:$B,$C743,raw_transmission_costs!$A:$A,U$728)/1000000","v":0},{"$f":"SUMIFS(raw_transmission_costs!$C:$C,raw_transmission_costs!$B:$B,$C743,raw_transmission_costs!$A:$A,V$728)/1000000","v":0},{"$f":"SUMIFS(raw_transmission_costs!$C:$C,raw_transmission_costs!$B:$B,$C743,raw_transmission_costs!$A:$A,W$728)/1000000","v":0},{"$f":"SUMIFS(raw_transmission_costs!$C:$C,raw_transmission_costs!$B:$B,$C743,raw_transmission_costs!$A:$A,X$728)/1000000","v":0},{"$f":"SUMIFS(raw_transmission_costs!$C:$C,raw_transmission_costs!$B:$B,$C743,raw_transmission_costs!$A:$A,Y$728)/1000000","v":0},{"$f":"SUMIFS(raw_transmission_costs!$C:$C,raw_transmission_costs!$B:$B,$C743,raw_transmission_costs!$A:$A,Z$728)/1000000","v":0},{"$f":"SUMIFS(raw_transmission_costs!$C:$C,raw_transmission_costs!$B:$B,$C743,raw_transmission_costs!$A:$A,AA$728)/1000000","v":0},{"$f":"SUMIFS(raw_transmission_costs!$C:$C,raw_transmission_costs!$B:$B,$C743,raw_transmission_costs!$A:$A,AB$728)/1000000","v":0},{"$f":"SUMIFS(raw_transmission_costs!$C:$C,raw_transmission_costs!$B:$B,$C743,raw_transmission_costs!$A:$A,AC$728)/1000000","v":0},{"$f":"SUMIFS(raw_transmission_costs!$C:$C,raw_transmission_costs!$B:$B,$C743,raw_transmission_costs!$A:$A,AD$728)/1000000","v":0},{"$f":"SUMIFS(raw_transmission_costs!$C:$C,raw_transmission_costs!$B:$B,$C743,raw_transmission_costs!$A:$A,AE$728)/1000000","v":0},{"$f":"SUMIFS(raw_transmission_costs!$C:$C,raw_transmission_costs!$B:$B,$C743,raw_transmission_costs!$A:$A,AF$728)/1000000","v":0},{"$f":"SUMIFS(raw_transmission_costs!$C:$C,raw_transmission_costs!$B:$B,$C743,raw_transmission_costs!$A:$A,AG$728)/1000000","v":0},{"$f":"SUMIFS(raw_transmission_costs!$C:$C,raw_transmission_costs!$B:$B,$C743,raw_transmission_costs!$A:$A,AH$728)/1000000","v":0},{"$f":"SUMIFS(raw_transmission_costs!$C:$C,raw_transmission_costs!$B:$B,$C743,raw_transmission_costs!$A:$A,AI$728)/1000000","v":2137.0056513699997},{"$f":"SUMIFS(raw_transmission_costs!$C:$C,raw_transmission_costs!$B:$B,$C743,raw_transmission_costs!$A:$A,AJ$728)/1000000","v":0},{"$f":"SUMIFS(raw_transmission_costs!$C:$C,raw_transmission_costs!$B:$B,$C743,raw_transmission_costs!$A:$A,AK$728)/1000000","v":0},{"$f":"SUMIFS(raw_transmission_costs!$C:$C,raw_transmission_costs!$B:$B,$C743,raw_transmission_costs!$A:$A,AL$728)/1000000","v":0},{"$f":"SUMIFS(raw_transmission_costs!$C:$C,raw_transmission_costs!$B:$B,$C743,raw_transmission_costs!$A:$A,AM$728)/1000000","v":0},{"$f":"SUMIFS(raw_transmission_costs!$C:$C,raw_transmission_costs!$B:$B,$C743,raw_transmission_costs!$A:$A,AN$728)/1000000","v":0}]
[null,null,"SPGE","$MM",{"$f":"SUMIFS(raw_transmission_costs!$C:$C,raw_transmission_costs!$B:$B,$C744,raw_transmission_costs!$A:$A,E$728)/1000000","v":0},{"$f":"SUMIFS(raw_transmission_costs!$C:$C,raw_transmission_costs!$B:$B,$C744,raw_transmission_costs!$A:$A,F$728)/1000000","v":0},{"$f":"SUMIFS(raw_transmission_costs!$C:$C,raw_transmission_costs!$B:$B,$C744,raw_transmission_costs!$A:$A,G$728)/1000000","v":0},{"$f":"SUMIFS(raw_transmission_costs!$C:$C,raw_transmission_costs!$B:$B,$C744,raw_transmission_costs!$A:$A,H$728)/1000000","v":0},{"$f":"SUMIFS(raw_transmission_costs!$C:$C,raw_transmission_costs!$B:$B,$C744,raw_transmission_costs!$A:$A,I$728)/1000000","v":0},{"$f":"SUMIFS(raw_transmission_costs!$C:$C,raw_transmission_costs!$B:$B,$C744,raw_transmission_costs!$A:$A,J$728)/1000000","v":0},{"$f":"SUMIFS(raw_transmission_costs!$C:$C,raw_transmission_costs!$B:$B,$C744,raw_transmission_costs!$A:$A,K$728)/1000000","v":0},{"$f":"SUMIFS(raw_transmission_costs!$C:$C,raw_transmission_costs!$B:$B,$C744,raw_transmission_costs!$A:$A,L$728)/1000000","v":0},{"$f":"SUMIFS(raw_transmission_costs!$C:$C,raw_transmission_costs!$B:$B,$C744,raw_transmission_costs!$A:$A,M$728)/1000000","v":0},{"$f":"SUMIFS(raw_transmission_costs!$C:$C,raw_transmission_costs!$B:$B,$C744,raw_transmission_costs!$A:$A,N$728)/1000000","v":0},{"$f":"SUMIFS(raw_transmission_costs!$C:$C,raw_transmission_costs!$B:$B,$C744,raw_transmission_costs!$A:$A,O$728)/1000000","v":0},{"$f":"SUMIFS(raw_transmission_costs!$C:$C,raw_transmission_costs!$B:$B,$C744,raw_transmission_costs!$A:$A,P$728)/1000000","v":6.5566529999999998},{"$f":"SUMIFS(raw_transmission_costs!$C:$C,raw_transmission_costs!$B:$B,$C744,raw_transmission_costs!$A:$A,Q$728)/1000000","v":0},{"$f":"SUMIFS(raw_transmission_costs!$C:$C,raw_transmission_costs!$B:$B,$C744,raw_transmission_costs!$A:$A,R$728)/1000000","v":0},{"$f":"SUMIFS(raw_transmission_costs!$C:$C,raw_transmission_costs!$B:$B,$C744,raw_transmission_costs!$A:$A,S$728)/1000000","v":0},{"$f":"SUMIFS(raw_transmission_costs!$C:$C,raw_transmission_costs!$B:$B,$C744,raw_transmission_costs!$A:$A,T$728)/1000000","v":58.951595640000001},{"$f":"SUMIFS(raw_transmission_costs!$C:$C,raw_transmission_costs!$B:$B,$C744,raw_transmission_costs!$A:$A,U$728)/1000000","v":0},{"$f":"SUMIFS(raw_transmission_costs!$C:$C,raw_transmission_costs!$B:$B,$C744,raw_transmission_costs!$A:$A,V$728)/1000000","v":0},{"$f":"SUMIFS(raw_transmission_costs!$C:$C,raw_transmission_costs!$B:$B,$C744,raw_transmission_costs!$A:$A,W$728)/1000000","v":0},{"$f":"SUMIFS(raw_transmission_costs!$C:$C,raw_transmission_costs!$B:$B,$C744,raw_transmission_costs!$A:$A,X$728)/1000000","v":0},{"$f":"SUMIFS(raw_transmission_costs!$C:$C,raw_transmission_costs!$B:$B,$C744,raw_transmission_costs!$A:$A,Y$728)/1000000","v":0},{"$f":"SUMIFS(raw_transmission_costs!$C:$C,raw_transmission_costs!$B:$B,$C744,raw_transmission_costs!$A:$A,Z$728)/1000000","v":0},{"$f":"SUMIFS(raw_transmission_costs!$C:$C,raw_transmission_costs!$B:$B,$C744,raw_transmission_costs!$A:$A,AA$728)/1000000","v":0},{"$f":"SUMIFS(raw_transmission_costs!$C:$C,raw_transmission_costs!$B:$B,$C744,raw_transmission_costs!$A:$A,AB$728)/1000000","v":0},{"$f":"SUMIFS(raw_transmission_costs!$C:$C,raw_transmission_costs!$B:$B,$C744,raw_transmission_costs!$A:$A,AC$728)/1000000","v":0},{"$f":"SUMIFS(raw_transmission_costs!$C:$C,raw_transmission_costs!$B:$B,$C744,raw_transmission_costs!$A:$A,AD$728)/1000000","v":0},{"$f":"SUMIFS(raw_transmission_costs!$C:$C,raw_transmission_costs!$B:$B,$C744,raw_transmission_costs!$A:$A,AE$728)/1000000","v":0},{"$f":"SUMIFS(raw_transmission_costs!$C:$C,raw_transmission_costs!$B:$B,$C744,raw_transmission_costs!$A:$A,AF$728)/1000000","v":0},{"$f":"SUMIFS(raw_transmission_costs!$C:$C,raw_transmission_costs!$B:$B,$C744,raw_transmission_costs!$A:$A,AG$728)/1000000","v":0},{"$f":"SUMIFS(raw_transmission_costs!$C:$C,raw_transmission_costs!$B:$B,$C744,raw_transmission_costs!$A:$A,AH$728)/1000000","v":0},{"$f":"SUMIFS(raw_transmission_costs!$C:$C,raw_transmission_costs!$B:$B,$C744,raw_transmission_costs!$A:$A,AI$728)/1000000","v":560.08667299000001},{"$f":"SUMIFS(raw_transmission_costs!$C:$C,raw_transmission_costs!$B:$B,$C744,raw_transmission_costs!$A:$A,AJ$728)/1000000","v":0},{"$f":"SUMIFS(raw_transmission_costs!$C:$C,raw_transmission_costs!$B:$B,$C744,raw_transmission_costs!$A:$A,AK$728)/1000000","v":0},{"$f":"SUMIFS(raw_transmission_costs!$C:$C,raw_transmission_costs!$B:$B,$C744,raw_transmission_costs!$A:$A,AL$728)/1000000","v":0},{"$f":"SUMIFS(raw_transmission_costs!$C:$C,raw_transmission_costs!$B:$B,$C744,raw_transmission_costs!$A:$A,AM$728)/1000000","v":0},{"$f":"SUMIFS(raw_transmission_costs!$C:$C,raw_transmission_costs!$B:$B,$C744,raw_transmission_costs!$A:$A,AN$728)/1000000","v":0}]
[null,null,"Tehachapi","$MM",{"$f":"SUMIFS(raw_transmission_costs!$C:$C,raw_transmission_costs!$B:$B,$C745,raw_transmission_costs!$A:$A,E$728)/1000000","v":0},{"$f":"SUMIFS(raw_transmission_costs!$C:$C,raw_transmission_costs!$B:$B,$C745,raw_transmission_costs!$A:$A,F$728)/1000000","v":0},{"$f":"SUMIFS(raw_transmission_costs!$C:$C,raw_transmission_costs!$B:$B,$C745,raw_transmission_costs!$A:$A,G$728)/1000000","v":0},{"$f":"SUMIFS(raw_transmission_costs!$C:$C,raw_transmission_costs!$B:$B,$C745,raw_transmission_costs!$A:$A,H$728)/1000000","v":0},{"$f":"SUMIFS(raw_transmission_costs!$C:$C,raw_transmission_costs!$B:$B,$C745,raw_transmission_costs!$A:$A,I$728)/1000000","v":0},{"$f":"SUMIFS(raw_transmission_costs!$C:$C,raw_transmission_costs!$B:$B,$C745,raw_transmission_costs!$A:$A,J$728)/1000000","v":0},{"$f":"SUMIFS(raw_transmission_costs!$C:$C,raw_transmission_costs!$B:$B,$C745,raw_transmission_costs!$A:$A,K$728)/1000000","v":0},{"$f":"SUMIFS(raw_transmission_costs!$C:$C,raw_transmission_costs!$B:$B,$C745,raw_transmission_costs!$A:$A,L$728)/1000000","v":0},{"$f":"SUMIFS(raw_transmission_costs!$C:$C,raw_transmission_costs!$B:$B,$C745,raw_transmission_costs!$A:$A,M$728)/1000000","v":0},{"$f":"SUMIFS(raw_transmission_costs!$C:$C,raw_transmission_costs!$B:$B,$C745,raw_transmission_costs!$A:$A,N$728)/1000000","v":0},{"$f":"SUMIFS(raw_transmission_costs!$C:$C,raw_transmission_costs!$B:$B,$C745,raw_transmission_costs!$A:$A,O$728)/1000000","v":0},{"$f":"SUMIFS(raw_transmission_costs!$C:$C,raw_transmission_costs!$B:$B,$C745,raw_transmission_costs!$A:$A,P$728)/1000000","v":7.9342162300000005},{"$f":"SUMIFS(raw_transmission_costs!$C:$C,raw_transmission_costs!$B:$B,$C745,raw_transmission_costs!$A:$A,Q$728)/1000000","v":0},{"$f":"SUMIFS(raw_transmission_costs!$C:$C,raw_transmission_costs!$B:$B,$C745,raw_transmission_costs!$A:$A,R$728)/1000000","v":0},{"$f":"SUMIFS(raw_transmission_costs!$C:$C,raw_transmission_costs!$B:$B,$C745,raw_transmission_costs!$A:$A,S$728)/1000000","v":0},{"$f":"SUMIFS(raw_transmission_costs!$C:$C,raw_transmission_costs!$B:$B,$C745,raw_transmission_costs!$A:$A,T$728)/1000000","v":7.9342162300000005},{"$f":"SUMIFS(raw_transmission_costs!$C:$C,raw_transmission_costs!$B:$B,$C745,raw_transmission_costs!$A:$A,U$728)/1000000","v":0},{"$f":"SUMIFS(raw_transmission_costs!$C:$C,raw_transmission_costs!$B:$B,$C745,raw_transmission_costs!$A:$A,V$728)/1000000","v":0},{"$f":"SUMIFS(raw_transmission_costs!$C:$C,raw_transmission_costs!$B:$B,$C745,raw_transmission_costs!$A:$A,W$728)/1000000","v":0},{"$f":"SUMIFS(raw_transmission_costs!$C:$C,raw_transmission_costs!$B:$B,$C745,raw_transmission_costs!$A:$A,X$728)/1000000","v":0},{"$f":"SUMIFS(raw_transmission_costs!$C:$C,raw_transmission_costs!$B:$B,$C745,raw_transmission_costs!$A:$A,Y$728)/1000000","v":0},{"$f":"SUMIFS(raw_transmission_costs!$C:$C,raw_transmission_costs!$B:$B,$C745,raw_transmission_costs!$A:$A,Z$728)/1000000","v":0},{"$f":"SUMIFS(raw_transmission_costs!$C:$C,raw_transmission_costs!$B:$B,$C745,raw_transmission_costs!$A:$A,AA$728)/1000000","v":0},{"$f":"SUMIFS(raw_transmission_costs!$C:$C,raw_transmission_costs!$B:$B,$C745,raw_transmission_costs!$A:$A,AB$728)/1000000","v":0},{"$f":"SUMIFS(raw_transmission_costs!$C:$C,raw_transmission_costs!$B:$B,$C745,raw_transmission_costs!$A:$A,AC$728)/1000000","v":0},{"$f":"SUMIFS(raw_transmission_costs!$C:$C,raw_transmission_costs!$B:$B,$C745,raw_transmission_costs!$A:$A,AD$728)/1000000","v":0},{"$f":"SUMIFS(raw_transmission_costs!$C:$C,raw_transmission_costs!$B:$B,$C745,raw_transmission_costs!$A:$A,AE$728)/1000000","v":0},{"$f":"SUMIFS(raw_transmission_costs!$C:$C,raw_transmission_costs!$B:$B,$C745,raw_transmission_costs!$A:$A,AF$728)/1000000","v":0},{"$f":"SUMIFS(raw_transmission_costs!$C:$C,raw_transmission_costs!$B:$B,$C745,raw_transmission_costs!$A:$A,AG$728)/1000000","v":0},{"$f":"SUMIFS(raw_transmission_costs!$C:$C,raw_transmission_costs!$B:$B,$C745,raw_transmission_costs!$A:$A,AH$728)/1000000","v":0},{"$f":"SUMIFS(raw_transmission_costs!$C:$C,raw_transmission_costs!$B:$B,$C745,raw_transmission_costs!$A:$A,AI$728)/1000000","v":7.9342162300000005},{"$f":"SUMIFS(raw_transmission_costs!$C:$C,raw_transmission_costs!$B:$B,$C745,raw_transmission_costs!$A:$A,AJ$728)/1000000","v":0},{"$f":"SUMIFS(raw_transmission_costs!$C:$C,raw_transmission_costs!$B:$B,$C745,raw_transmission_costs!$A:$A,AK$728)/1000000","v":0},{"$f":"SUMIFS(raw_transmission_costs!$C:$C,raw_transmission_costs!$B:$B,$C745,raw_transmission_costs!$A:$A,AL$728)/1000000","v":0},{"$f":"SUMIFS(raw_transmission_costs!$C:$C,raw_transmission_costs!$B:$B,$C745,raw_transmission_costs!$A:$A,AM$728)/1000000","v":0},{"$f":"SUMIFS(raw_transmission_costs!$C:$C,raw_transmission_costs!$B:$B,$C745,raw_transmission_costs!$A:$A,AN$728)/1000000","v":0}]
[null,null,"Northern_California_Ex","$MM",{"$f":"SUMIFS(raw_transmission_costs!$C:$C,raw_transmission_costs!$B:$B,$C746,raw_transmission_costs!$A:$A,E$728)/1000000","v":0},{"$f":"SUMIFS(raw_transmission_costs!$C:$C,raw_transmission_costs!$B:$B,$C746,raw_transmission_costs!$A:$A,F$728)/1000000","v":0},{"$f":"SUMIFS(raw_transmission_costs!$C:$C,raw_transmission_costs!$B:$B,$C746,raw_transmission_costs!$A:$A,G$728)/1000000","v":0},{"$f":"SUMIFS(raw_transmission_costs!$C:$C,raw_transmission_costs!$B:$B,$C746,raw_transmission_costs!$A:$A,H$728)/1000000","v":0},{"$f":"SUMIFS(raw_transmission_costs!$C:$C,raw_transmission_costs!$B:$B,$C746,raw_transmission_costs!$A:$A,I$728)/1000000","v":0},{"$f":"SUMIFS(raw_transmission_costs!$C:$C,raw_transmission_costs!$B:$B,$C746,raw_transmission_costs!$A:$A,J$728)/1000000","v":0},{"$f":"SUMIFS(raw_transmission_costs!$C:$C,raw_transmission_costs!$B:$B,$C746,raw_transmission_costs!$A:$A,K$728)/1000000","v":0},{"$f":"SUMIFS(raw_transmission_costs!$C:$C,raw_transmission_costs!$B:$B,$C746,raw_transmission_costs!$A:$A,L$728)/1000000","v":0},{"$f":"SUMIFS(raw_transmission_costs!$C:$C,raw_transmission_costs!$B:$B,$C746,raw_transmission_costs!$A:$A,M$728)/1000000","v":0},{"$f":"SUMIFS(raw_transmission_costs!$C:$C,raw_transmission_costs!$B:$B,$C746,raw_transmission_costs!$A:$A,N$728)/1000000","v":0},{"$f":"SUMIFS(raw_transmission_costs!$C:$C,raw_transmission_costs!$B:$B,$C746,raw_transmission_costs!$A:$A,O$728)/1000000","v":0},{"$f":"SUMIFS(raw_transmission_costs!$C:$C,raw_transmission_costs!$B:$B,$C746,raw_transmission_costs!$A:$A,P$728)/1000000","v":0},{"$f":"SUMIFS(raw_transmission_costs!$C:$C,raw_transmission_costs!$B:$B,$C746,raw_transmission_costs!$A:$A,Q$728)/1000000","v":0},{"$f":"SUMIFS(raw_transmission_costs!$C:$C,raw_transmission_costs!$B:$B,$C746,raw_transmission_costs!$A:$A,R$728)/1000000","v":0},{"$f":"SUMIFS(raw_transmission_costs!$C:$C,raw_transmission_costs!$B:$B,$C746,raw_transmission_costs!$A:$A,S$728)/1000000","v":0},{"$f":"SUMIFS(raw_transmission_costs!$C:$C,raw_transmission_costs!$B:$B,$C746,raw_transmission_costs!$A:$A,T$728)/1000000","v":0},{"$f":"SUMIFS(raw_transmission_costs!$C:$C,raw_transmission_costs!$B:$B,$C746,raw_transmission_costs!$A:$A,U$728)/1000000","v":0},{"$f":"SUMIFS(raw_transmission_costs!$C:$C,raw_transmission_costs!$B:$B,$C746,raw_transmission_costs!$A:$A,V$728)/1000000","v":0},{"$f":"SUMIFS(raw_transmission_costs!$C:$C,raw_transmission_costs!$B:$B,$C746,raw_transmission_costs!$A:$A,W$728)/1000000","v":0},{"$f":"SUMIFS(raw_transmission_costs!$C:$C,raw_transmission_costs!$B:$B,$C746,raw_transmission_costs!$A:$A,X$728)/1000000","v":0},{"$f":"SUMIFS(raw_transmission_costs!$C:$C,raw_transmission_costs!$B:$B,$C746,raw_transmission_costs!$A:$A,Y$728)/1000000","v":0},{"$f":"SUMIFS(raw_transmission_costs!$C:$C,raw_transmission_costs!$B:$B,$C746,raw_transmission_costs!$A:$A,Z$728)/1000000","v":0},{"$f":"SUMIFS(raw_transmission_costs!$C:$C,raw_transmission_costs!$B:$B,$C746,raw_transmission_costs!$A:$A,AA$728)/1000000","v":0},{"$f":"SUMIFS(raw_transmission_costs!$C:$C,raw_transmission_costs!$B:$B,$C746,raw_transmission_costs!$A:$A,AB$728)/1000000","v":0},{"$f":"SUMIFS(raw_transmission_costs!$C:$C,raw_transmission_costs!$B:$B,$C746,raw_transmission_costs!$A:$A,AC$728)/1000000","v":0},{"$f":"SUMIFS(raw_transmission_costs!$C:$C,raw_transmission_costs!$B:$B,$C746,raw_transmission_costs!$A:$A,AD$728)/1000000","v":0},{"$f":"SUMIFS(raw_transmission_costs!$C:$C,raw_transmission_costs!$B:$B,$C746,raw_transmission_costs!$A:$A,AE$728)/1000000","v":0},{"$f":"SUMIFS(raw_transmission_costs!$C:$C,raw_transmission_costs!$B:$B,$C746,raw_transmission_costs!$A:$A,AF$728)/1000000","v":0},{"$f":"SUMIFS(raw_transmission_costs!$C:$C,raw_transmission_costs!$B:$B,$C746,raw_transmission_costs!$A:$A,AG$728)/1000000","v":0},{"$f":"SUMIFS(raw_transmission_costs!$C:$C,raw_transmission_costs!$B:$B,$C746,raw_transmission_costs!$A:$A,AH$728)/1000000","v":0},{"$f":"SUMIFS(raw_transmission_costs!$C:$C,raw_transmission_costs!$B:$B,$C746,raw_transmission_costs!$A:$A,AI$728)/1000000","v":0},{"$f":"SUMIFS(raw_transmission_costs!$C:$C,raw_transmission_costs!$B:$B,$C746,raw_transmission_costs!$A:$A,AJ$728)/1000000","v":0},{"$f":"SUMIFS(raw_transmission_costs!$C:$C,raw_transmission_costs!$B:$B,$C746,raw_transmission_costs!$A:$A,AK$728)/1000000","v":0},{"$f":"SUMIFS(raw_transmission_costs!$C:$C,raw_transmission_costs!$B:$B,$C746,raw_transmission_costs!$A:$A,AL$728)/1000000","v":0},{"$f":"SUMIFS(raw_transmission_costs!$C:$C,raw_transmission_costs!$B:$B,$C746,raw_transmission_costs!$A:$A,AM$728)/1000000","v":0},{"$f":"SUMIFS(raw_transmission_costs!$C:$C,raw_transmission_costs!$B:$B,$C746,raw_transmission_costs!$A:$A,AN$728)/1000000","v":0}]
[null,null,"Westlands_Ex","$MM",{"$f":"SUMIFS(raw_transmission_costs!$C:$C,raw_transmission_costs!$B:$B,$C747,raw_transmission_costs!$A:$A,E$728)/1000000","v":0},{"$f":"SUMIFS(raw_transmission_costs!$C:$C,raw_transmission_costs!$B:$B,$C747,raw_transmission_costs!$A:$A,F$728)/1000000","v":0},{"$f":"SUMIFS(raw_transmission_costs!$C:$C,raw_transmission_costs!$B:$B,$C747,raw_transmission_costs!$A:$A,G$728)/1000000","v":0},{"$f":"SUMIFS(raw_transmission_costs!$C:$C,raw_transmission_costs!$B:$B,$C747,raw_transmission_costs!$A:$A,H$728)/1000000","v":0},{"$f":"SUMIFS(raw_transmission_costs!$C:$C,raw_transmission_costs!$B:$B,$C747,raw_transmission_costs!$A:$A,I$728)/1000000","v":0},{"$f":"SUMIFS(raw_transmission_costs!$C:$C,raw_transmission_costs!$B:$B,$C747,raw_transmission_costs!$A:$A,J$728)/1000000","v":0},{"$f":"SUMIFS(raw_transmission_costs!$C:$C,raw_transmission_costs!$B:$B,$C747,raw_transmission_costs!$A:$A,K$728)/1000000","v":0},{"$f":"SUMIFS(raw_transmission_costs!$C:$C,raw_transmission_costs!$B:$B,$C747,raw_transmission_costs!$A:$A,L$728)/1000000","v":0},{"$f":"SUMIFS(raw_transmission_costs!$C:$C,raw_transmission_costs!$B:$B,$C747,raw_transmission_costs!$A:$A,M$728)/1000000","v":0},{"$f":"SUMIFS(raw_transmission_costs!$C:$C,raw_transmission_costs!$B:$B,$C747,raw_transmission_costs!$A:$A,N$728)/1000000","v":0},{"$f":"SUMIFS(raw_transmission_costs!$C:$C,raw_transmission_costs!$B:$B,$C747,raw_transmission_costs!$A:$A,O$728)/1000000","v":0},{"$f":"SUMIFS(raw_transmission_costs!$C:$C,raw_transmission_costs!$B:$B,$C747,raw_transmission_costs!$A:$A,P$728)/1000000","v":0},{"$f":"SUMIFS(raw_transmission_costs!$C:$C,raw_transmission_costs!$B:$B,$C747,raw_transmission_costs!$A:$A,Q$728)/1000000","v":0},{"$f":"SUMIFS(raw_transmission_costs!$C:$C,raw_transmission_costs!$B:$B,$C747,raw_transmission_costs!$A:$A,R$728)/1000000","v":0},{"$f":"SUMIFS(raw_transmission_costs!$C:$C,raw_transmission_costs!$B:$B,$C747,raw_transmission_costs!$A:$A,S$728)/1000000","v":0},{"$f":"SUMIFS(raw_transmission_costs!$C:$C,raw_transmission_costs!$B:$B,$C747,raw_transmission_costs!$A:$A,T$728)/1000000","v":0},{"$f":"SUMIFS(raw_transmission_costs!$C:$C,raw_transmission_costs!$B:$B,$C747,raw_transmission_costs!$A:$A,U$728)/1000000","v":0},{"$f":"SUMIFS(raw_transmission_costs!$C:$C,raw_transmission_costs!$B:$B,$C747,raw_transmission_costs!$A:$A,V$728)/1000000","v":0},{"$f":"SUMIFS(raw_transmission_costs!$C:$C,raw_transmission_costs!$B:$B,$C747,raw_transmission_costs!$A:$A,W$728)/1000000","v":0},{"$f":"SUMIFS(raw_transmission_costs!$C:$C,raw_transmission_costs!$B:$B,$C747,raw_transmission_costs!$A:$A,X$728)/1000000","v":0},{"$f":"SUMIFS(raw_transmission_costs!$C:$C,raw_transmission_costs!$B:$B,$C747,raw_transmission_costs!$A:$A,Y$728)/1000000","v":0},{"$f":"SUMIFS(raw_transmission_costs!$C:$C,raw_transmission_costs!$B:$B,$C747,raw_transmission_costs!$A:$A,Z$728)/1000000","v":0},{"$f":"SUMIFS(raw_transmission_costs!$C:$C,raw_transmission_costs!$B:$B,$C747,raw_transmission_costs!$A:$A,AA$728)/1000000","v":0},{"$f":"SUMIFS(raw_transmission_costs!$C:$C,raw_transmission_costs!$B:$B,$C747,raw_transmission_costs!$A:$A,AB$728)/1000000","v":0},{"$f":"SUMIFS(raw_transmission_costs!$C:$C,raw_transmission_costs!$B:$B,$C747,raw_transmission_costs!$A:$A,AC$728)/1000000","v":0},{"$f":"SUMIFS(raw_transmission_costs!$C:$C,raw_transmission_costs!$B:$B,$C747,raw_transmission_costs!$A:$A,AD$728)/1000000","v":0},{"$f":"SUMIFS(raw_transmission_costs!$C:$C,raw_transmission_costs!$B:$B,$C747,raw_transmission_costs!$A:$A,AE$728)/1000000","v":0},{"$f":"SUMIFS(raw_transmission_costs!$C:$C,raw_transmission_costs!$B:$B,$C747,raw_transmission_costs!$A:$A,AF$728)/1000000","v":0},{"$f":"SUMIFS(raw_transmission_costs!$C:$C,raw_transmission_costs!$B:$B,$C747,raw_transmission_costs!$A:$A,AG$728)/1000000","v":0},{"$f":"SUMIFS(raw_transmission_costs!$C:$C,raw_transmission_costs!$B:$B,$C747,raw_transmission_costs!$A:$A,AH$728)/1000000","v":0},{"$f":"SUMIFS(raw_transmission_costs!$C:$C,raw_transmission_costs!$B:$B,$C747,raw_transmission_costs!$A:$A,AI$728)/1000000","v":0},{"$f":"SUMIFS(raw_transmission_costs!$C:$C,raw_transmission_costs!$B:$B,$C747,raw_transmission_costs!$A:$A,AJ$728)/1000000","v":0},{"$f":"SUMIFS(raw_transmission_costs!$C:$C,raw_transmission_costs!$B:$B,$C747,raw_transmission_costs!$A:$A,AK$728)/1000000","v":0},{"$f":"SUMIFS(raw_transmission_costs!$C:$C,raw_transmission_costs!$B:$B,$C747,raw_transmission_costs!$A:$A,AL$728)/1000000","v":0},{"$f":"SUMIFS(raw_transmission_costs!$C:$C,raw_transmission_costs!$B:$B,$C747,raw_transmission_costs!$A:$A,AM$728)/1000000","v":0},{"$f":"SUMIFS(raw_transmission_costs!$C:$C,raw_transmission_costs!$B:$B,$C747,raw_transmission_costs!$A:$A,AN$728)/1000000","v":0}]
[null,null,"Tehachapi_Ex","$MM",{"$f":"SUMIFS(raw_transmission_costs!$C:$C,raw_transmission_costs!$B:$B,$C748,raw_transmission_costs!$A:$A,E$728)/1000000","v":0},{"$f":"SUMIFS(raw_transmission_costs!$C:$C,raw_transmission_costs!$B:$B,$C748,raw_transmission_costs!$A:$A,F$728)/1000000","v":0},{"$f":"SUMIFS(raw_transmission_costs!$C:$C,raw_transmission_costs!$B:$B,$C748,raw_transmission_costs!$A:$A,G$728)/1000000","v":0},{"$f":"SUMIFS(raw_transmission_costs!$C:$C,raw_transmission_costs!$B:$B,$C748,raw_transmission_costs!$A:$A,H$728)/1000000","v":0},{"$f":"SUMIFS(raw_transmission_costs!$C:$C,raw_transmission_costs!$B:$B,$C748,raw_transmission_costs!$A:$A,I$728)/1000000","v":0},{"$f":"SUMIFS(raw_transmission_costs!$C:$C,raw_transmission_costs!$B:$B,$C748,raw_transmission_costs!$A:$A,J$728)/1000000","v":0},{"$f":"SUMIFS(raw_transmission_costs!$C:$C,raw_transmission_costs!$B:$B,$C748,raw_transmission_costs!$A:$A,K$728)/1000000","v":0},{"$f":"SUMIFS(raw_transmission_costs!$C:$C,raw_transmission_costs!$B:$B,$C748,raw_transmission_costs!$A:$A,L$728)/1000000","v":0},{"$f":"SUMIFS(raw_transmission_costs!$C:$C,raw_transmission_costs!$B:$B,$C748,raw_transmission_costs!$A:$A,M$728)/1000000","v":0},{"$f":"SUMIFS(raw_transmission_costs!$C:$C,raw_transmission_costs!$B:$B,$C748,raw_transmission_costs!$A:$A,N$728)/1000000","v":0},{"$f":"SUMIFS(raw_transmission_costs!$C:$C,raw_transmission_costs!$B:$B,$C748,raw_transmission_costs!$A:$A,O$728)/1000000","v":0},{"$f":"SUMIFS(raw_transmission_costs!$C:$C,raw_transmission_costs!$B:$B,$C748,raw_transmission_costs!$A:$A,P$728)/1000000","v":0},{"$f":"SUMIFS(raw_transmission_costs!$C:$C,raw_transmission_costs!$B:$B,$C748,raw_transmission_costs!$A:$A,Q$728)/1000000","v":0},{"$f":"SUMIFS(raw_transmission_costs!$C:$C,raw_transmission_costs!$B:$B,$C748,raw_transmission_costs!$A:$A,R$728)/1000000","v":0},{"$f":"SUMIFS(raw_transmission_costs!$C:$C,raw_transmission_costs!$B:$B,$C748,raw_transmission_costs!$A:$A,S$728)/1000000","v":0},{"$f":"SUMIFS(raw_transmission_costs!$C:$C,raw_transmission_costs!$B:$B,$C748,raw_transmission_costs!$A:$A,T$728)/1000000","v":0},{"$f":"SUMIFS(raw_transmission_costs!$C:$C,raw_transmission_costs!$B:$B,$C748,raw_transmission_costs!$A:$A,U$728)/1000000","v":0},{"$f":"SUMIFS(raw_transmission_costs!$C:$C,raw_transmission_costs!$B:$B,$C748,raw_transmission_costs!$A:$A,V$728)/1000000","v":0},{"$f":"SUMIFS(raw_transmission_costs!$C:$C,raw_transmission_costs!$B:$B,$C748,raw_transmission_costs!$A:$A,W$728)/1000000","v":0},{"$f":"SUMIFS(raw_transmission_costs!$C:$C,raw_transmission_costs!$B:$B,$C748,raw_transmission_costs!$A:$A,X$728)/1000000","v":0},{"$f":"SUMIFS(raw_transmission_costs!$C:$C,raw_transmission_costs!$B:$B,$C748,raw_transmission_costs!$A:$A,Y$728)/1000000","v":0},{"$f":"SUMIFS(raw_transmission_costs!$C:$C,raw_transmission_costs!$B:$B,$C748,raw_transmission_costs!$A:$A,Z$728)/1000000","v":0},{"$f":"SUMIFS(raw_transmission_costs!$C:$C,raw_transmission_costs!$B:$B,$C748,raw_transmission_costs!$A:$A,AA$728)/1000000","v":0},{"$f":"SUMIFS(raw_transmission_costs!$C:$C,raw_transmission_costs!$B:$B,$C748,raw_transmission_costs!$A:$A,AB$728)/1000000","v":0},{"$f":"SUMIFS(raw_transmission_costs!$C:$C,raw_transmission_costs!$B:$B,$C748,raw_transmission_costs!$A:$A,AC$728)/1000000","v":0},{"$f":"SUMIFS(raw_transmission_costs!$C:$C,raw_transmission_costs!$B:$B,$C748,raw_transmission_costs!$A:$A,AD$728)/1000000","v":0},{"$f":"SUMIFS(raw_transmission_costs!$C:$C,raw_transmission_costs!$B:$B,$C748,raw_transmission_costs!$A:$A,AE$728)/1000000","v":0},{"$f":"SUMIFS(raw_transmission_costs!$C:$C,raw_transmission_costs!$B:$B,$C748,raw_transmission_costs!$A:$A,AF$728)/1000000","v":0},{"$f":"SUMIFS(raw_transmission_costs!$C:$C,raw_transmission_costs!$B:$B,$C748,raw_transmission_costs!$A:$A,AG$728)/1000000","v":0},{"$f":"SUMIFS(raw_transmission_costs!$C:$C,raw_transmission_costs!$B:$B,$C748,raw_transmission_costs!$A:$A,AH$728)/1000000","v":0},{"$f":"SUMIFS(raw_transmission_costs!$C:$C,raw_transmission_costs!$B:$B,$C748,raw_transmission_costs!$A:$A,AI$728)/1000000","v":0},{"$f":"SUMIFS(raw_transmission_costs!$C:$C,raw_transmission_costs!$B:$B,$C748,raw_transmission_costs!$A:$A,AJ$728)/1000000","v":0},{"$f":"SUMIFS(raw_transmission_costs!$C:$C,raw_transmission_costs!$B:$B,$C748,raw_transmission_costs!$A:$A,AK$728)/1000000","v":0},{"$f":"SUMIFS(raw_transmission_costs!$C:$C,raw_transmission_costs!$B:$B,$C748,raw_transmission_costs!$A:$A,AL$728)/1000000","v":0},{"$f":"SUMIFS(raw_transmission_costs!$C:$C,raw_transmission_costs!$B:$B,$C748,raw_transmission_costs!$A:$A,AM$728)/1000000","v":0},{"$f":"SUMIFS(raw_transmission_costs!$C:$C,raw_transmission_costs!$B:$B,$C748,raw_transmission_costs!$A:$A,AN$728)/1000000","v":0}]
[null,null,"Kramer_Inyokern_Ex","$MM",{"$f":"SUMIFS(raw_transmission_costs!$C:$C,raw_transmission_costs!$B:$B,$C749,raw_transmission_costs!$A:$A,E$728)/1000000","v":0},{"$f":"SUMIFS(raw_transmission_costs!$C:$C,raw_transmission_costs!$B:$B,$C749,raw_transmission_costs!$A:$A,F$728)/1000000","v":0},{"$f":"SUMIFS(raw_transmission_costs!$C:$C,raw_transmission_costs!$B:$B,$C749,raw_transmission_costs!$A:$A,G$728)/1000000","v":0},{"$f":"SUMIFS(raw_transmission_costs!$C:$C,raw_transmission_costs!$B:$B,$C749,raw_transmission_costs!$A:$A,H$728)/1000000","v":0},{"$f":"SUMIFS(raw_transmission_costs!$C:$C,raw_transmission_costs!$B:$B,$C749,raw_transmission_costs!$A:$A,I$728)/1000000","v":0},{"$f":"SUMIFS(raw_transmission_costs!$C:$C,raw_transmission_costs!$B:$B,$C749,raw_transmission_costs!$A:$A,J$728)/1000000","v":0},{"$f":"SUMIFS(raw_transmission_costs!$C:$C,raw_transmission_costs!$B:$B,$C749,raw_transmission_costs!$A:$A,K$728)/1000000","v":0},{"$f":"SUMIFS(raw_transmission_costs!$C:$C,raw_transmission_costs!$B:$B,$C749,raw_transmission_costs!$A:$A,L$728)/1000000","v":0},{"$f":"SUMIFS(raw_transmission_costs!$C:$C,raw_transmission_costs!$B:$B,$C749,raw_transmission_costs!$A:$A,M$728)/1000000","v":0},{"$f":"SUMIFS(raw_transmission_costs!$C:$C,raw_transmission_costs!$B:$B,$C749,raw_transmission_costs!$A:$A,N$728)/1000000","v":0},{"$f":"SUMIFS(raw_transmission_costs!$C:$C,raw_transmission_costs!$B:$B,$C749,raw_transmission_costs!$A:$A,O$728)/1000000","v":0},{"$f":"SUMIFS(raw_transmission_costs!$C:$C,raw_transmission_costs!$B:$B,$C749,raw_transmission_costs!$A:$A,P$728)/1000000","v":0},{"$f":"SUMIFS(raw_transmission_costs!$C:$C,raw_transmission_costs!$B:$B,$C749,raw_transmission_costs!$A:$A,Q$728)/1000000","v":0},{"$f":"SUMIFS(raw_transmission_costs!$C:$C,raw_transmission_costs!$B:$B,$C749,raw_transmission_costs!$A:$A,R$728)/1000000","v":0},{"$f":"SUMIFS(raw_transmission_costs!$C:$C,raw_transmission_costs!$B:$B,$C749,raw_transmission_costs!$A:$A,S$728)/1000000","v":0},{"$f":"SUMIFS(raw_transmission_costs!$C:$C,raw_transmission_costs!$B:$B,$C749,raw_transmission_costs!$A:$A,T$728)/1000000","v":0},{"$f":"SUMIFS(raw_transmission_costs!$C:$C,raw_transmission_costs!$B:$B,$C749,raw_transmission_costs!$A:$A,U$728)/1000000","v":0},{"$f":"SUMIFS(raw_transmission_costs!$C:$C,raw_transmission_costs!$B:$B,$C749,raw_transmission_costs!$A:$A,V$728)/1000000","v":0},{"$f":"SUMIFS(raw_transmission_costs!$C:$C,raw_transmission_costs!$B:$B,$C749,raw_transmission_costs!$A:$A,W$728)/1000000","v":0},{"$f":"SUMIFS(raw_transmission_costs!$C:$C,raw_transmission_costs!$B:$B,$C749,raw_transmission_costs!$A:$A,X$728)/1000000","v":0},{"$f":"SUMIFS(raw_transmission_costs!$C:$C,raw_transmission_costs!$B:$B,$C749,raw_transmission_costs!$A:$A,Y$728)/1000000","v":0},{"$f":"SUMIFS(raw_transmission_costs!$C:$C,raw_transmission_costs!$B:$B,$C749,raw_transmission_costs!$A:$A,Z$728)/1000000","v":0},{"$f":"SUMIFS(raw_transmission_costs!$C:$C,raw_transmission_costs!$B:$B,$C749,raw_transmission_costs!$A:$A,AA$728)/1000000","v":0},{"$f":"SUMIFS(raw_transmission_costs!$C:$C,raw_transmission_costs!$B:$B,$C749,raw_transmission_costs!$A:$A,AB$728)/1000000","v":0},{"$f":"SUMIFS(raw_transmission_costs!$C:$C,raw_transmission_costs!$B:$B,$C749,raw_transmission_costs!$A:$A,AC$728)/1000000","v":0},{"$f":"SUMIFS(raw_transmission_costs!$C:$C,raw_transmission_costs!$B:$B,$C749,raw_transmission_costs!$A:$A,AD$728)/1000000","v":0},{"$f":"SUMIFS(raw_transmission_costs!$C:$C,raw_transmission_costs!$B:$B,$C749,raw_transmission_costs!$A:$A,AE$728)/1000000","v":0},{"$f":"SUMIFS(raw_transmission_costs!$C:$C,raw_transmission_costs!$B:$B,$C749,raw_transmission_costs!$A:$A,AF$728)/1000000","v":0},{"$f":"SUMIFS(raw_transmission_costs!$C:$C,raw_transmission_costs!$B:$B,$C749,raw_transmission_costs!$A:$A,AG$728)/1000000","v":0},{"$f":"SUMIFS(raw_transmission_costs!$C:$C,raw_transmission_costs!$B:$B,$C749,raw_transmission_costs!$A:$A,AH$728)/1000000","v":0},{"$f":"SUMIFS(raw_transmission_costs!$C:$C,raw_transmission_costs!$B:$B,$C749,raw_transmission_costs!$A:$A,AI$728)/1000000","v":0},{"$f":"SUMIFS(raw_transmission_costs!$C:$C,raw_transmission_costs!$B:$B,$C749,raw_transmission_costs!$A:$A,AJ$728)/1000000","v":0},{"$f":"SUMIFS(raw_transmission_costs!$C:$C,raw_transmission_costs!$B:$B,$C749,raw_transmission_costs!$A:$A,AK$728)/1000000","v":0},{"$f":"SUMIFS(raw_transmission_costs!$C:$C,raw_transmission_costs!$B:$B,$C749,raw_transmission_costs!$A:$A,AL$728)/1000000","v":0},{"$f":"SUMIFS(raw_transmission_costs!$C:$C,raw_transmission_costs!$B:$B,$C749,raw_transmission_costs!$A:$A,AM$728)/1000000","v":0},{"$f":"SUMIFS(raw_transmission_costs!$C:$C,raw_transmission_costs!$B:$B,$C749,raw_transmission_costs!$A:$A,AN$728)/1000000","v":0}]
[null,null,"Southern_California_Desert_Ex","$MM",{"$f":"SUMIFS(raw_transmission_costs!$C:$C,raw_transmission_costs!$B:$B,$C750,raw_transmission_costs!$A:$A,E$728)/1000000","v":0},{"$f":"SUMIFS(raw_transmission_costs!$C:$C,raw_transmission_costs!$B:$B,$C750,raw_transmission_costs!$A:$A,F$728)/1000000","v":0},{"$f":"SUMIFS(raw_transmission_costs!$C:$C,raw_transmission_costs!$B:$B,$C750,raw_transmission_costs!$A:$A,G$728)/1000000","v":0},{"$f":"SUMIFS(raw_transmission_costs!$C:$C,raw_transmission_costs!$B:$B,$C750,raw_transmission_costs!$A:$A,H$728)/1000000","v":0},{"$f":"SUMIFS(raw_transmission_costs!$C:$C,raw_transmission_costs!$B:$B,$C750,raw_transmission_costs!$A:$A,I$728)/1000000","v":0},{"$f":"SUMIFS(raw_transmission_costs!$C:$C,raw_transmission_costs!$B:$B,$C750,raw_transmission_costs!$A:$A,J$728)/1000000","v":0},{"$f":"SUMIFS(raw_transmission_costs!$C:$C,raw_transmission_costs!$B:$B,$C750,raw_transmission_costs!$A:$A,K$728)/1000000","v":0},{"$f":"SUMIFS(raw_transmission_costs!$C:$C,raw_transmission_costs!$B:$B,$C750,raw_transmission_costs!$A:$A,L$728)/1000000","v":0},{"$f":"SUMIFS(raw_transmission_costs!$C:$C,raw_transmission_costs!$B:$B,$C750,raw_transmission_costs!$A:$A,M$728)/1000000","v":0},{"$f":"SUMIFS(raw_transmission_costs!$C:$C,raw_transmission_costs!$B:$B,$C750,raw_transmission_costs!$A:$A,N$728)/1000000","v":0},{"$f":"SUMIFS(raw_transmission_costs!$C:$C,raw_transmission_costs!$B:$B,$C750,raw_transmission_costs!$A:$A,O$728)/1000000","v":0},{"$f":"SUMIFS(raw_transmission_costs!$C:$C,raw_transmission_costs!$B:$B,$C750,raw_transmission_costs!$A:$A,P$728)/1000000","v":0},{"$f":"SUMIFS(raw_transmission_costs!$C:$C,raw_transmission_costs!$B:$B,$C750,raw_transmission_costs!$A:$A,Q$728)/1000000","v":0},{"$f":"SUMIFS(raw_transmission_costs!$C:$C,raw_transmission_costs!$B:$B,$C750,raw_transmission_costs!$A:$A,R$728)/1000000","v":0},{"$f":"SUMIFS(raw_transmission_costs!$C:$C,raw_transmission_costs!$B:$B,$C750,raw_transmission_costs!$A:$A,S$728)/1000000","v":0},{"$f":"SUMIFS(raw_transmission_costs!$C:$C,raw_transmission_costs!$B:$B,$C750,raw_transmission_costs!$A:$A,T$728)/1000000","v":0},{"$f":"SUMIFS(raw_transmission_costs!$C:$C,raw_transmission_costs!$B:$B,$C750,raw_transmission_costs!$A:$A,U$728)/1000000","v":0},{"$f":"SUMIFS(raw_transmission_costs!$C:$C,raw_transmission_costs!$B:$B,$C750,raw_transmission_costs!$A:$A,V$728)/1000000","v":0},{"$f":"SUMIFS(raw_transmission_costs!$C:$C,raw_transmission_costs!$B:$B,$C750,raw_transmission_costs!$A:$A,W$728)/1000000","v":0},{"$f":"SUMIFS(raw_transmission_costs!$C:$C,raw_transmission_costs!$B:$B,$C750,raw_transmission_costs!$A:$A,X$728)/1000000","v":0},{"$f":"SUMIFS(raw_transmission_costs!$C:$C,raw_transmission_costs!$B:$B,$C750,raw_transmission_costs!$A:$A,Y$728)/1000000","v":0},{"$f":"SUMIFS(raw_transmission_costs!$C:$C,raw_transmission_costs!$B:$B,$C750,raw_transmission_costs!$A:$A,Z$728)/1000000","v":0},{"$f":"SUMIFS(raw_transmission_costs!$C:$C,raw_transmission_costs!$B:$B,$C750,raw_transmission_costs!$A:$A,AA$728)/1000000","v":0},{"$f":"SUMIFS(raw_transmission_costs!$C:$C,raw_transmission_costs!$B:$B,$C750,raw_transmission_costs!$A:$A,AB$728)/1000000","v":0},{"$f":"SUMIFS(raw_transmission_costs!$C:$C,raw_transmission_costs!$B:$B,$C750,raw_transmission_costs!$A:$A,AC$728)/1000000","v":0},{"$f":"SUMIFS(raw_transmission_costs!$C:$C,raw_transmission_costs!$B:$B,$C750,raw_transmission_costs!$A:$A,AD$728)/1000000","v":0},{"$f":"SUMIFS(raw_transmission_costs!$C:$C,raw_transmission_costs!$B:$B,$C750,raw_transmission_costs!$A:$A,AE$728)/1000000","v":0},{"$f":"SUMIFS(raw_transmission_costs!$C:$C,raw_transmission_costs!$B:$B,$C750,raw_transmission_costs!$A:$A,AF$728)/1000000","v":0},{"$f":"SUMIFS(raw_transmission_costs!$C:$C,raw_transmission_costs!$B:$B,$C750,raw_transmission_costs!$A:$A,AG$728)/1000000","v":0},{"$f":"SUMIFS(raw_transmission_costs!$C:$C,raw_transmission_costs!$B:$B,$C750,raw_transmission_costs!$A:$A,AH$728)/1000000","v":0},{"$f":"SUMIFS(raw_transmission_costs!$C:$C,raw_transmission_costs!$B:$B,$C750,raw_transmission_costs!$A:$A,AI$728)/1000000","v":0},{"$f":"SUMIFS(raw_transmission_costs!$C:$C,raw_transmission_costs!$B:$B,$C750,raw_transmission_costs!$A:$A,AJ$728)/1000000","v":0},{"$f":"SUMIFS(raw_transmission_costs!$C:$C,raw_transmission_costs!$B:$B,$C750,raw_transmission_costs!$A:$A,AK$728)/1000000","v":0},{"$f":"SUMIFS(raw_transmission_costs!$C:$C,raw_transmission_costs!$B:$B,$C750,raw_transmission_costs!$A:$A,AL$728)/1000000","v":0},{"$f":"SUMIFS(raw_transmission_costs!$C:$C,raw_transmission_costs!$B:$B,$C750,raw_transmission_costs!$A:$A,AM$728)/1000000","v":0},{"$f":"SUMIFS(raw_transmission_costs!$C:$C,raw_transmission_costs!$B:$B,$C750,raw_transmission_costs!$A:$A,AN$728)/1000000","v":0}]
[null,null,"OffshoreWind_UnknownCost","$MM",{"$f":"SUMIFS(raw_transmission_costs!$C:$C,raw_transmission_costs!$B:$B,$C751,raw_transmission_costs!$A:$A,E$728)/1000000","v":0},{"$f":"SUMIFS(raw_transmission_costs!$C:$C,raw_transmission_costs!$B:$B,$C751,raw_transmission_costs!$A:$A,F$728)/1000000","v":0},{"$f":"SUMIFS(raw_transmission_costs!$C:$C,raw_transmission_costs!$B:$B,$C751,raw_transmission_costs!$A:$A,G$728)/1000000","v":0},{"$f":"SUMIFS(raw_transmission_costs!$C:$C,raw_transmission_costs!$B:$B,$C751,raw_transmission_costs!$A:$A,H$728)/1000000","v":0},{"$f":"SUMIFS(raw_transmission_costs!$C:$C,raw_transmission_costs!$B:$B,$C751,raw_transmission_costs!$A:$A,I$728)/1000000","v":0},{"$f":"SUMIFS(raw_transmission_costs!$C:$C,raw_transmission_costs!$B:$B,$C751,raw_transmission_costs!$A:$A,J$728)/1000000","v":0},{"$f":"SUMIFS(raw_transmission_costs!$C:$C,raw_transmission_costs!$B:$B,$C751,raw_transmission_costs!$A:$A,K$728)/1000000","v":0},{"$f":"SUMIFS(raw_transmission_costs!$C:$C,raw_transmission_costs!$B:$B,$C751,raw_transmission_costs!$A:$A,L$728)/1000000","v":0},{"$f":"SUMIFS(raw_transmission_costs!$C:$C,raw_transmission_costs!$B:$B,$C751,raw_transmission_costs!$A:$A,M$728)/1000000","v":0},{"$f":"SUMIFS(raw_transmission_costs!$C:$C,raw_transmission_costs!$B:$B,$C751,raw_transmission_costs!$A:$A,N$728)/1000000","v":0},{"$f":"SUMIFS(raw_transmission_costs!$C:$C,raw_transmission_costs!$B:$B,$C751,raw_transmission_costs!$A:$A,O$728)/1000000","v":0},{"$f":"SUMIFS(raw_transmission_costs!$C:$C,raw_transmission_costs!$B:$B,$C751,raw_transmission_costs!$A:$A,P$728)/1000000","v":0},{"$f":"SUMIFS(raw_transmission_costs!$C:$C,raw_transmission_costs!$B:$B,$C751,raw_transmission_costs!$A:$A,Q$728)/1000000","v":0},{"$f":"SUMIFS(raw_transmission_costs!$C:$C,raw_transmission_costs!$B:$B,$C751,raw_transmission_costs!$A:$A,R$728)/1000000","v":0},{"$f":"SUMIFS(raw_transmission_costs!$C:$C,raw_transmission_costs!$B:$B,$C751,raw_transmission_costs!$A:$A,S$728)/1000000","v":0},{"$f":"SUMIFS(raw_transmission_costs!$C:$C,raw_transmission_costs!$B:$B,$C751,raw_transmission_costs!$A:$A,T$728)/1000000","v":0},{"$f":"SUMIFS(raw_transmission_costs!$C:$C,raw_transmission_costs!$B:$B,$C751,raw_transmission_costs!$A:$A,U$728)/1000000","v":0},{"$f":"SUMIFS(raw_transmission_costs!$C:$C,raw_transmission_costs!$B:$B,$C751,raw_transmission_costs!$A:$A,V$728)/1000000","v":0},{"$f":"SUMIFS(raw_transmission_costs!$C:$C,raw_transmission_costs!$B:$B,$C751,raw_transmission_costs!$A:$A,W$728)/1000000","v":0},{"$f":"SUMIFS(raw_transmission_costs!$C:$C,raw_transmission_costs!$B:$B,$C751,raw_transmission_costs!$A:$A,X$728)/1000000","v":0},{"$f":"SUMIFS(raw_transmission_costs!$C:$C,raw_transmission_costs!$B:$B,$C751,raw_transmission_costs!$A:$A,Y$728)/1000000","v":0},{"$f":"SUMIFS(raw_transmission_costs!$C:$C,raw_transmission_costs!$B:$B,$C751,raw_transmission_costs!$A:$A,Z$728)/1000000","v":0},{"$f":"SUMIFS(raw_transmission_costs!$C:$C,raw_transmission_costs!$B:$B,$C751,raw_transmission_costs!$A:$A,AA$728)/1000000","v":0},{"$f":"SUMIFS(raw_transmission_costs!$C:$C,raw_transmission_costs!$B:$B,$C751,raw_transmission_costs!$A:$A,AB$728)/1000000","v":0},{"$f":"SUMIFS(raw_transmission_costs!$C:$C,raw_transmission_costs!$B:$B,$C751,raw_transmission_costs!$A:$A,AC$728)/1000000","v":0},{"$f":"SUMIFS(raw_transmission_costs!$C:$C,raw_transmission_costs!$B:$B,$C751,raw_transmission_costs!$A:$A,AD$728)/1000000","v":0},{"$f":"SUMIFS(raw_transmission_costs!$C:$C,raw_transmission_costs!$B:$B,$C751,raw_transmission_costs!$A:$A,AE$728)/1000000","v":0},{"$f":"SUMIFS(raw_transmission_costs!$C:$C,raw_transmission_costs!$B:$B,$C751,raw_transmission_costs!$A:$A,AF$728)/1000000","v":0},{"$f":"SUMIFS(raw_transmission_costs!$C:$C,raw_transmission_costs!$B:$B,$C751,raw_transmission_costs!$A:$A,AG$728)/1000000","v":0},{"$f":"SUMIFS(raw_transmission_costs!$C:$C,raw_transmission_costs!$B:$B,$C751,raw_transmission_costs!$A:$A,AH$728)/1000000","v":0},{"$f":"SUMIFS(raw_transmission_costs!$C:$C,raw_transmission_costs!$B:$B,$C751,raw_transmission_costs!$A:$A,AI$728)/1000000","v":0},{"$f":"SUMIFS(raw_transmission_costs!$C:$C,raw_transmission_costs!$B:$B,$C751,raw_transmission_costs!$A:$A,AJ$728)/1000000","v":0},{"$f":"SUMIFS(raw_transmission_costs!$C:$C,raw_transmission_costs!$B:$B,$C751,raw_transmission_costs!$A:$A,AK$728)/1000000","v":0},{"$f":"SUMIFS(raw_transmission_costs!$C:$C,raw_transmission_costs!$B:$B,$C751,raw_transmission_costs!$A:$A,AL$728)/1000000","v":0},{"$f":"SUMIFS(raw_transmission_costs!$C:$C,raw_transmission_costs!$B:$B,$C751,raw_transmission_costs!$A:$A,AM$728)/1000000","v":0},{"$f":"SUMIFS(raw_transmission_costs!$C:$C,raw_transmission_costs!$B:$B,$C751,raw_transmission_costs!$A:$A,AN$728)/1000000","v":0}]
[null,null,"None","$MM",{"$f":"SUMIFS(raw_transmission_costs!$C:$C,raw_transmission_costs!$B:$B,$C752,raw_transmission_costs!$A:$A,E$728)/1000000","v":0},{"$f":"SUMIFS(raw_transmission_costs!$C:$C,raw_transmission_costs!$B:$B,$C752,raw_transmission_costs!$A:$A,F$728)/1000000","v":0},{"$f":"SUMIFS(raw_transmission_costs!$C:$C,raw_transmission_costs!$B:$B,$C752,raw_transmission_costs!$A:$A,G$728)/1000000","v":0},{"$f":"SUMIFS(raw_transmission_costs!$C:$C,raw_transmission_costs!$B:$B,$C752,raw_transmission_costs!$A:$A,H$728)/1000000","v":0},{"$f":"SUMIFS(raw_transmission_costs!$C:$C,raw_transmission_costs!$B:$B,$C752,raw_transmission_costs!$A:$A,I$728)/1000000","v":0},{"$f":"SUMIFS(raw_transmission_costs!$C:$C,raw_transmission_costs!$B:$B,$C752,raw_transmission_costs!$A:$A,J$728)/1000000","v":0},{"$f":"SUMIFS(raw_transmission_costs!$C:$C,raw_transmission_costs!$B:$B,$C752,raw_transmission_costs!$A:$A,K$728)/1000000","v":0},{"$f":"SUMIFS(raw_transmission_costs!$C:$C,raw_transmission_costs!$B:$B,$C752,raw_transmission_costs!$A:$A,L$728)/1000000","v":0},{"$f":"SUMIFS(raw_transmission_costs!$C:$C,raw_transmission_costs!$B:$B,$C752,raw_transmission_costs!$A:$A,M$728)/1000000","v":0},{"$f":"SUMIFS(raw_transmission_costs!$C:$C,raw_transmission_costs!$B:$B,$C752,raw_transmission_costs!$A:$A,N$728)/1000000","v":0},{"$f":"SUMIFS(raw_transmission_costs!$C:$C,raw_transmission_costs!$B:$B,$C752,raw_transmission_costs!$A:$A,O$728)/1000000","v":0},{"$f":"SUMIFS(raw_transmission_costs!$C:$C,raw_transmission_costs!$B:$B,$C752,raw_transmission_costs!$A:$A,P$728)/1000000","v":0},{"$f":"SUMIFS(raw_transmission_costs!$C:$C,raw_transmission_costs!$B:$B,$C752,raw_transmission_costs!$A:$A,Q$728)/1000000","v":0},{"$f":"SUMIFS(raw_transmission_costs!$C:$C,raw_transmission_costs!$B:$B,$C752,raw_transmission_costs!$A:$A,R$728)/1000000","v":0},{"$f":"SUMIFS(raw_transmission_costs!$C:$C,raw_transmission_costs!$B:$B,$C752,raw_transmission_costs!$A:$A,S$728)/1000000","v":0},{"$f":"SUMIFS(raw_transmission_costs!$C:$C,raw_transmission_costs!$B:$B,$C752,raw_transmission_costs!$A:$A,T$728)/1000000","v":0},{"$f":"SUMIFS(raw_transmission_costs!$C:$C,raw_transmission_costs!$B:$B,$C752,raw_transmission_costs!$A:$A,U$728)/1000000","v":0},{"$f":"SUMIFS(raw_transmission_costs!$C:$C,raw_transmission_costs!$B:$B,$C752,raw_transmission_costs!$A:$A,V$728)/1000000","v":0},{"$f":"SUMIFS(raw_transmission_costs!$C:$C,raw_transmission_costs!$B:$B,$C752,raw_transmission_costs!$A:$A,W$728)/1000000","v":0},{"$f":"SUMIFS(raw_transmission_costs!$C:$C,raw_transmission_costs!$B:$B,$C752,raw_transmission_costs!$A:$A,X$728)/1000000","v":0},{"$f":"SUMIFS(raw_transmission_costs!$C:$C,raw_transmission_costs!$B:$B,$C752,raw_transmission_costs!$A:$A,Y$728)/1000000","v":0},{"$f":"SUMIFS(raw_transmission_costs!$C:$C,raw_transmission_costs!$B:$B,$C752,raw_transmission_costs!$A:$A,Z$728)/1000000","v":0},{"$f":"SUMIFS(raw_transmission_costs!$C:$C,raw_transmission_costs!$B:$B,$C752,raw_transmission_costs!$A:$A,AA$728)/1000000","v":0},{"$f":"SUMIFS(raw_transmission_costs!$C:$C,raw_transmission_costs!$B:$B,$C752,raw_transmission_costs!$A:$A,AB$728)/1000000","v":0},{"$f":"SUMIFS(raw_transmission_costs!$C:$C,raw_transmission_costs!$B:$B,$C752,raw_transmission_costs!$A:$A,AC$728)/1000000","v":0},{"$f":"SUMIFS(raw_transmission_costs!$C:$C,raw_transmission_costs!$B:$B,$C752,raw_transmission_costs!$A:$A,AD$728)/1000000","v":0},{"$f":"SUMIFS(raw_transmission_costs!$C:$C,raw_transmission_costs!$B:$B,$C752,raw_transmission_costs!$A:$A,AE$728)/1000000","v":0},{"$f":"SUMIFS(raw_transmission_costs!$C:$C,raw_transmission_costs!$B:$B,$C752,raw_transmission_costs!$A:$A,AF$728)/1000000","v":0},{"$f":"SUMIFS(raw_transmission_costs!$C:$C,raw_transmission_costs!$B:$B,$C752,raw_transmission_costs!$A:$A,AG$728)/1000000","v":0},{"$f":"SUMIFS(raw_transmission_costs!$C:$C,raw_transmission_costs!$B:$B,$C752,raw_transmission_costs!$A:$A,AH$728)/1000000","v":0},{"$f":"SUMIFS(raw_transmission_costs!$C:$C,raw_transmission_costs!$B:$B,$C752,raw_transmission_costs!$A:$A,AI$728)/1000000","v":0},{"$f":"SUMIFS(raw_transmission_costs!$C:$C,raw_transmission_costs!$B:$B,$C752,raw_transmission_costs!$A:$A,AJ$728)/1000000","v":0},{"$f":"SUMIFS(raw_transmission_costs!$C:$C,raw_transmission_costs!$B:$B,$C752,raw_transmission_costs!$A:$A,AK$728)/1000000","v":0},{"$f":"SUMIFS(raw_transmission_costs!$C:$C,raw_transmission_costs!$B:$B,$C752,raw_transmission_costs!$A:$A,AL$728)/1000000","v":0},{"$f":"SUMIFS(raw_transmission_costs!$C:$C,raw_transmission_costs!$B:$B,$C752,raw_transmission_costs!$A:$A,AM$728)/1000000","v":0},{"$f":"SUMIFS(raw_transmission_costs!$C:$C,raw_transmission_costs!$B:$B,$C752,raw_transmission_costs!$A:$A,AN$728)/1000000","v":0}]
[]
[null,null,"Total FCDS Build on New Tx","MW",{"$f":"SUM(E702:E724)","v":0},{"$f":"SUM(F702:F724)","v":0},0,0,0,0,0,0,100,187.78,0,1686.78,0,0,0,{"$f":"SUM(T702:T724)","v":17109.559999999998},0,0,0,0,0,0,0,0,0,0,0,0,0,0,190966.67,0,0,0,0,0]
[null,null,"Total New Tx Cost","$MM",{"$f":"SUM(E729:E751)","v":0},{"$f":"SUM(F729:F751)","v":0},0,0,0,0,0,0,1.002894,2.6597072700000002,0,17.1505765,0,0,0,{"$f":"SUM(T729:T751)","v":242.20949116},0,0,0,0,0,0,0,0,0,0,0,0,0,0,3947.7815677599992,0,0,0,0,0]
[]
[null,"Selected Energy Only Resources on Existing Transmission"]
[]
[null,null,"Energy Only Transmission Limit"]
[null,null,"Tx Zone","Unit",2015,2016,2017,2018,2019,2020,2021,2022,2023,2024,2025,2026,2027,2028,2029,2030,2031,2032,2033,2034,2035,2036,2037,2038,2039,2040,2041,2042,2043,2044,2045,2046,2047,2048,2049,2050]
[null,null,{"$f":"C616","v":"Greater_Kramer"},"MW",{"$f":"SUMIFS(raw_transmission_costs!$H:$H,raw_transmission_costs!$B:$B,$C761,raw_transmission_costs!$A:$A,E$615)","v":0},{"$f":"SUMIFS(raw_transmission_costs!$H:$H,raw_transmission_costs!$B:$B,$C761,raw_transmission_costs!$A:$A,F$615)","v":0},{"$f":"SUMIFS(raw_transmission_costs!$H:$H,raw_transmission_costs!$B:$B,$C761,raw_transmission_costs!$A:$A,G$615)","v":0},{"$f":"SUMIFS(raw_transmission_costs!$H:$H,raw_transmission_costs!$B:$B,$C761,raw_transmission_costs!$A:$A,H$615)","v":0},{"$f":"SUMIFS(raw_transmission_costs!$H:$H,raw_transmission_costs!$B:$B,$C761,raw_transmission_costs!$A:$A,I$615)","v":0},{"$f":"SUMIFS(raw_transmission_costs!$H:$H,raw_transmission_costs!$B:$B,$C761,raw_transmission_costs!$A:$A,J$615)","v":0},{"$f":"SUMIFS(raw_transmission_costs!$H:$H,raw_transmission_costs!$B:$B,$C761,raw_transmission_costs!$A:$A,K$615)","v":0},{"$f":"SUMIFS(raw_transmission_costs!$H:$H,raw_transmission_costs!$B:$B,$C761,raw_transmission_costs!$A:$A,L$615)","v":0},{"$f":"SUMIFS(raw_transmission_costs!$H:$H,raw_transmission_costs!$B:$B,$C761,raw_transmission_costs!$A:$A,M$615)","v":0},{"$f":"SUMIFS(raw_transmission_costs!$H:$H,raw_transmission_costs!$B:$B,$C761,raw_transmission_costs!$A:$A,N$615)","v":0},{"$f":"SUMIFS(raw_transmission_costs!$H:$H,raw_transmission_costs!$B:$B,$C761,raw_transmission_costs!$A:$A,O$615)","v":0},{"$f":"SUMIFS(raw_transmission_costs!$H:$H,raw_transmission_costs!$B:$B,$C761,raw_transmission_costs!$A:$A,P$615)","v":0},{"$f":"SUMIFS(raw_transmission_costs!$H:$H,raw_transmission_costs!$B:$B,$C761,raw_transmission_costs!$A:$A,Q$615)","v":0},{"$f":"SUMIFS(raw_transmission_costs!$H:$H,raw_transmission_costs!$B:$B,$C761,raw_transmission_costs!$A:$A,R$615)","v":0},{"$f":"SUMIFS(raw_transmission_costs!$H:$H,raw_transmission_costs!$B:$B,$C761,raw_transmission_costs!$A:$A,S$615)","v":0},{"$f":"SUMIFS(raw_transmission_costs!$H:$H,raw_transmission_costs!$B:$B,$C761,raw_transmission_costs!$A:$A,T$615)","v":0},{"$f":"SUMIFS(raw_transmission_costs!$H:$H,raw_transmission_costs!$B:$B,$C761,raw_transmission_costs!$A:$A,U$615)","v":0},{"$f":"SUMIFS(raw_transmission_costs!$H:$H,raw_transmission_costs!$B:$B,$C761,raw_transmission_costs!$A:$A,V$615)","v":0},{"$f":"SUMIFS(raw_transmission_costs!$H:$H,raw_transmission_costs!$B:$B,$C761,raw_transmission_costs!$A:$A,W$615)","v":0},{"$f":"SUMIFS(raw_transmission_costs!$H:$H,raw_transmission_costs!$B:$B,$C761,raw_transmission_costs!$A:$A,X$615)","v":0},{"$f":"SUMIFS(raw_transmission_costs!$H:$H,raw_transmission_costs!$B:$B,$C761,raw_transmission_costs!$A:$A,Y$615)","v":0},{"$f":"SUMIFS(raw_transmission_costs!$H:$H,raw_transmission_costs!$B:$B,$C761,raw_transmission_costs!$A:$A,Z$615)","v":0},{"$f":"SUMIFS(raw_transmission_costs!$H:$H,raw_transmission_costs!$B:$B,$C761,raw_transmission_costs!$A:$A,AA$615)","v":0},{"$f":"SUMIFS(raw_transmission_costs!$H:$H,raw_transmission_costs!$B:$B,$C761,raw_transmission_costs!$A:$A,AB$615)","v":0},{"$f":"SUMIFS(raw_transmission_costs!$H:$H,raw_transmission_costs!$B:$B,$C761,raw_transmission_costs!$A:$A,AC$615)","v":0},{"$f":"SUMIFS(raw_transmission_costs!$H:$H,raw_transmission_costs!$B:$B,$C761,raw_transmission_costs!$A:$A,AD$615)","v":0},{"$f":"SUMIFS(raw_transmission_costs!$H:$H,raw_transmission_costs!$B:$B,$C761,raw_transmission_costs!$A:$A,AE$615)","v":0},{"$f":"SUMIFS(raw_transmission_costs!$H:$H,raw_transmission_costs!$B:$B,$C761,raw_transmission_costs!$A:$A,AF$615)","v":0},{"$f":"SUMIFS(raw_transmission_costs!$H:$H,raw_transmission_costs!$B:$B,$C761,raw_transmission_costs!$A:$A,AG$615)","v":0},{"$f":"SUMIFS(raw_transmission_costs!$H:$H,raw_transmission_costs!$B:$B,$C761,raw_transmission_costs!$A:$A,AH$615)","v":0},{"$f":"SUMIFS(raw_transmission_costs!$H:$H,raw_transmission_costs!$B:$B,$C761,raw_transmission_costs!$A:$A,AI$615)","v":0},{"$f":"SUMIFS(raw_transmission_costs!$H:$H,raw_transmission_costs!$B:$B,$C761,raw_transmission_costs!$A:$A,AJ$615)","v":0},{"$f":"SUMIFS(raw_transmission_costs!$H:$H,raw_transmission_costs!$B:$B,$C761,raw_transmission_costs!$A:$A,AK$615)","v":0},{"$f":"SUMIFS(raw_transmission_costs!$H:$H,raw_transmission_costs!$B:$B,$C761,raw_transmission_costs!$A:$A,AL$615)","v":0},{"$f":"SUMIFS(raw_transmission_costs!$H:$H,raw_transmission_costs!$B:$B,$C761,raw_transmission_costs!$A:$A,AM$615)","v":0},{"$f":"SUMIFS(raw_transmission_costs!$H:$H,raw_transmission_costs!$B:$B,$C761,raw_transmission_costs!$A:$A,AN$615)","v":0}]
[null,null,"Inyokern_North_Kramer","MW",{"$f":"SUMIFS(raw_transmission_costs!$H:$H,raw_transmission_costs!$B:$B,$C762,raw_transmission_costs!$A:$A,E$615)","v":0},{"$f":"SUMIFS(raw_transmission_costs!$H:$H,raw_transmission_costs!$B:$B,$C762,raw_transmission_costs!$A:$A,F$615)","v":0},{"$f":"SUMIFS(raw_transmission_costs!$H:$H,raw_transmission_costs!$B:$B,$C762,raw_transmission_costs!$A:$A,G$615)","v":0},{"$f":"SUMIFS(raw_transmission_costs!$H:$H,raw_transmission_costs!$B:$B,$C762,raw_transmission_costs!$A:$A,H$615)","v":0},{"$f":"SUMIFS(raw_transmission_costs!$H:$H,raw_transmission_costs!$B:$B,$C762,raw_transmission_costs!$A:$A,I$615)","v":0},{"$f":"SUMIFS(raw_transmission_costs!$H:$H,raw_transmission_costs!$B:$B,$C762,raw_transmission_costs!$A:$A,J$615)","v":0},{"$f":"SUMIFS(raw_transmission_costs!$H:$H,raw_transmission_costs!$B:$B,$C762,raw_transmission_costs!$A:$A,K$615)","v":0},{"$f":"SUMIFS(raw_transmission_costs!$H:$H,raw_transmission_costs!$B:$B,$C762,raw_transmission_costs!$A:$A,L$615)","v":0},{"$f":"SUMIFS(raw_transmission_costs!$H:$H,raw_transmission_costs!$B:$B,$C762,raw_transmission_costs!$A:$A,M$615)","v":0},{"$f":"SUMIFS(raw_transmission_costs!$H:$H,raw_transmission_costs!$B:$B,$C762,raw_transmission_costs!$A:$A,N$615)","v":0},{"$f":"SUMIFS(raw_transmission_costs!$H:$H,raw_transmission_costs!$B:$B,$C762,raw_transmission_costs!$A:$A,O$615)","v":0},{"$f":"SUMIFS(raw_transmission_costs!$H:$H,raw_transmission_costs!$B:$B,$C762,raw_transmission_costs!$A:$A,P$615)","v":0},{"$f":"SUMIFS(raw_transmission_costs!$H:$H,raw_transmission_costs!$B:$B,$C762,raw_transmission_costs!$A:$A,Q$615)","v":0},{"$f":"SUMIFS(raw_transmission_costs!$H:$H,raw_transmission_costs!$B:$B,$C762,raw_transmission_costs!$A:$A,R$615)","v":0},{"$f":"SUMIFS(raw_transmission_costs!$H:$H,raw_transmission_costs!$B:$B,$C762,raw_transmission_costs!$A:$A,S$615)","v":0},{"$f":"SUMIFS(raw_transmission_costs!$H:$H,raw_transmission_costs!$B:$B,$C762,raw_transmission_costs!$A:$A,T$615)","v":0},{"$f":"SUMIFS(raw_transmission_costs!$H:$H,raw_transmission_costs!$B:$B,$C762,raw_transmission_costs!$A:$A,U$615)","v":0},{"$f":"SUMIFS(raw_transmission_costs!$H:$H,raw_transmission_costs!$B:$B,$C762,raw_transmission_costs!$A:$A,V$615)","v":0},{"$f":"SUMIFS(raw_transmission_costs!$H:$H,raw_transmission_costs!$B:$B,$C762,raw_transmission_costs!$A:$A,W$615)","v":0},{"$f":"SUMIFS(raw_transmission_costs!$H:$H,raw_transmission_costs!$B:$B,$C762,raw_transmission_costs!$A:$A,X$615)","v":0},{"$f":"SUMIFS(raw_transmission_costs!$H:$H,raw_transmission_costs!$B:$B,$C762,raw_transmission_costs!$A:$A,Y$615)","v":0},{"$f":"SUMIFS(raw_transmission_costs!$H:$H,raw_transmission_costs!$B:$B,$C762,raw_transmission_costs!$A:$A,Z$615)","v":0},{"$f":"SUMIFS(raw_transmission_costs!$H:$H,raw_transmission_costs!$B:$B,$C762,raw_transmission_costs!$A:$A,AA$615)","v":0},{"$f":"SUMIFS(raw_transmission_costs!$H:$H,raw_transmission_costs!$B:$B,$C762,raw_transmission_costs!$A:$A,AB$615)","v":0},{"$f":"SUMIFS(raw_transmission_costs!$H:$H,raw_transmission_costs!$B:$B,$C762,raw_transmission_costs!$A:$A,AC$615)","v":0},{"$f":"SUMIFS(raw_transmission_costs!$H:$H,raw_transmission_costs!$B:$B,$C762,raw_transmission_costs!$A:$A,AD$615)","v":0},{"$f":"SUMIFS(raw_transmission_costs!$H:$H,raw_transmission_costs!$B:$B,$C762,raw_transmission_costs!$A:$A,AE$615)","v":0},{"$f":"SUMIFS(raw_transmission_costs!$H:$H,raw_transmission_costs!$B:$B,$C762,raw_transmission_costs!$A:$A,AF$615)","v":0},{"$f":"SUMIFS(raw_transmission_costs!$H:$H,raw_transmission_costs!$B:$B,$C762,raw_transmission_costs!$A:$A,AG$615)","v":0},{"$f":"SUMIFS(raw_transmission_costs!$H:$H,raw_transmission_costs!$B:$B,$C762,raw_transmission_costs!$A:$A,AH$615)","v":0},{"$f":"SUMIFS(raw_transmission_costs!$H:$H,raw_transmission_costs!$B:$B,$C762,raw_transmission_costs!$A:$A,AI$615)","v":0},{"$f":"SUMIFS(raw_transmission_costs!$H:$H,raw_transmission_costs!$B:$B,$C762,raw_transmission_costs!$A:$A,AJ$615)","v":0},{"$f":"SUMIFS(raw_transmission_costs!$H:$H,raw_transmission_costs!$B:$B,$C762,raw_transmission_costs!$A:$A,AK$615)","v":0},{"$f":"SUMIFS(raw_transmission_costs!$H:$H,raw_transmission_costs!$B:$B,$C762,raw_transmission_costs!$A:$A,AL$615)","v":0},{"$f":"SUMIFS(raw_transmission_costs!$H:$H,raw_transmission_costs!$B:$B,$C762,raw_transmission_costs!$A:$A,AM$615)","v":0},{"$f":"SUMIFS(raw_transmission_costs!$H:$H,raw_transmission_costs!$B:$B,$C762,raw_transmission_costs!$A:$A,AN$615)","v":0}]
[null,null,"North_Victor","MW",{"$f":"SUMIFS(raw_transmission_costs!$H:$H,raw_transmission_costs!$B:$B,$C763,raw_transmission_costs!$A:$A,E$615)","v":0},{"$f":"SUMIFS(raw_transmission_costs!$H:$H,raw_transmission_costs!$B:$B,$C763,raw_transmission_costs!$A:$A,F$615)","v":0},{"$f":"SUMIFS(raw_transmission_costs!$H:$H,raw_transmission_costs!$B:$B,$C763,raw_transmission_costs!$A:$A,G$615)","v":0},{"$f":"SUMIFS(raw_transmission_costs!$H:$H,raw_transmission_costs!$B:$B,$C763,raw_transmission_costs!$A:$A,H$615)","v":0},{"$f":"SUMIFS(raw_transmission_costs!$H:$H,raw_transmission_costs!$B:$B,$C763,raw_transmission_costs!$A:$A,I$615)","v":0},{"$f":"SUMIFS(raw_transmission_costs!$H:$H,raw_transmission_costs!$B:$B,$C763,raw_transmission_costs!$A:$A,J$615)","v":0},{"$f":"SUMIFS(raw_transmission_costs!$H:$H,raw_transmission_costs!$B:$B,$C763,raw_transmission_costs!$A:$A,K$615)","v":0},{"$f":"SUMIFS(raw_transmission_costs!$H:$H,raw_transmission_costs!$B:$B,$C763,raw_transmission_costs!$A:$A,L$615)","v":0},{"$f":"SUMIFS(raw_transmission_costs!$H:$H,raw_transmission_costs!$B:$B,$C763,raw_transmission_costs!$A:$A,M$615)","v":0},{"$f":"SUMIFS(raw_transmission_costs!$H:$H,raw_transmission_costs!$B:$B,$C763,raw_transmission_costs!$A:$A,N$615)","v":0},{"$f":"SUMIFS(raw_transmission_costs!$H:$H,raw_transmission_costs!$B:$B,$C763,raw_transmission_costs!$A:$A,O$615)","v":0},{"$f":"SUMIFS(raw_transmission_costs!$H:$H,raw_transmission_costs!$B:$B,$C763,raw_transmission_costs!$A:$A,P$615)","v":0},{"$f":"SUMIFS(raw_transmission_costs!$H:$H,raw_transmission_costs!$B:$B,$C763,raw_transmission_costs!$A:$A,Q$615)","v":0},{"$f":"SUMIFS(raw_transmission_costs!$H:$H,raw_transmission_costs!$B:$B,$C763,raw_transmission_costs!$A:$A,R$615)","v":0},{"$f":"SUMIFS(raw_transmission_costs!$H:$H,raw_transmission_costs!$B:$B,$C763,raw_transmission_costs!$A:$A,S$615)","v":0},{"$f":"SUMIFS(raw_transmission_costs!$H:$H,raw_transmission_costs!$B:$B,$C763,raw_transmission_costs!$A:$A,T$615)","v":0},{"$f":"SUMIFS(raw_transmission_costs!$H:$H,raw_transmission_costs!$B:$B,$C763,raw_transmission_costs!$A:$A,U$615)","v":0},{"$f":"SUMIFS(raw_transmission_costs!$H:$H,raw_transmission_costs!$B:$B,$C763,raw_transmission_costs!$A:$A,V$615)","v":0},{"$f":"SUMIFS(raw_transmission_costs!$H:$H,raw_transmission_costs!$B:$B,$C763,raw_transmission_costs!$A:$A,W$615)","v":0},{"$f":"SUMIFS(raw_transmission_costs!$H:$H,raw_transmission_costs!$B:$B,$C763,raw_transmission_costs!$A:$A,X$615)","v":0},{"$f":"SUMIFS(raw_transmission_costs!$H:$H,raw_transmission_costs!$B:$B,$C763,raw_transmission_costs!$A:$A,Y$615)","v":0},{"$f":"SUMIFS(raw_transmission_costs!$H:$H,raw_transmission_costs!$B:$B,$C763,raw_transmission_costs!$A:$A,Z$615)","v":0},{"$f":"SUMIFS(raw_transmission_costs!$H:$H,raw_transmission_costs!$B:$B,$C763,raw_transmission_costs!$A:$A,AA$615)","v":0},{"$f":"SUMIFS(raw_transmission_costs!$H:$H,raw_transmission_costs!$B:$B,$C763,raw_transmission_costs!$A:$A,AB$615)","v":0},{"$f":"SUMIFS(raw_transmission_costs!$H:$H,raw_transmission_costs!$B:$B,$C763,raw_transmission_costs!$A:$A,AC$615)","v":0},{"$f":"SUMIFS(raw_transmission_costs!$H:$H,raw_transmission_costs!$B:$B,$C763,raw_transmission_costs!$A:$A,AD$615)","v":0},{"$f":"SUMIFS(raw_transmission_costs!$H:$H,raw_transmission_costs!$B:$B,$C763,raw_transmission_costs!$A:$A,AE$615)","v":0},{"$f":"SUMIFS(raw_transmission_costs!$H:$H,raw_transmission_costs!$B:$B,$C763,raw_transmission_costs!$A:$A,AF$615)","v":0},{"$f":"SUMIFS(raw_transmission_costs!$H:$H,raw_transmission_costs!$B:$B,$C763,raw_transmission_costs!$A:$A,AG$615)","v":0},{"$f":"SUMIFS(raw_transmission_costs!$H:$H,raw_transmission_costs!$B:$B,$C763,raw_transmission_costs!$A:$A,AH$615)","v":0},{"$f":"SUMIFS(raw_transmission_costs!$H:$H,raw_transmission_costs!$B:$B,$C763,raw_transmission_costs!$A:$A,AI$615)","v":0},{"$f":"SUMIFS(raw_transmission_costs!$H:$H,raw_transmission_costs!$B:$B,$C763,raw_transmission_costs!$A:$A,AJ$615)","v":0},{"$f":"SUMIFS(raw_transmission_costs!$H:$H,raw_transmission_costs!$B:$B,$C763,raw_transmission_costs!$A:$A,AK$615)","v":0},{"$f":"SUMIFS(raw_transmission_costs!$H:$H,raw_transmission_costs!$B:$B,$C763,raw_transmission_costs!$A:$A,AL$615)","v":0},{"$f":"SUMIFS(raw_transmission_costs!$H:$H,raw_transmission_costs!$B:$B,$C763,raw_transmission_costs!$A:$A,AM$615)","v":0},{"$f":"SUMIFS(raw_transmission_costs!$H:$H,raw_transmission_costs!$B:$B,$C763,raw_transmission_costs!$A:$A,AN$615)","v":0}]
[null,null,"Humboldt","MW",{"$f":"SUMIFS(raw_transmission_costs!$H:$H,raw_transmission_costs!$B:$B,$C764,raw_transmission_costs!$A:$A,E$615)","v":0},{"$f":"SUMIFS(raw_transmission_costs!$H:$H,raw_transmission_costs!$B:$B,$C764,raw_transmission_costs!$A:$A,F$615)","v":0},{"$f":"SUMIFS(raw_transmission_costs!$H:$H,raw_transmission_costs!$B:$B,$C764,raw_transmission_costs!$A:$A,G$615)","v":0},{"$f":"SUMIFS(raw_transmission_costs!$H:$H,raw_transmission_costs!$B:$B,$C764,raw_transmission_costs!$A:$A,H$615)","v":0},{"$f":"SUMIFS(raw_transmission_costs!$H:$H,raw_transmission_costs!$B:$B,$C764,raw_transmission_costs!$A:$A,I$615)","v":0},{"$f":"SUMIFS(raw_transmission_costs!$H:$H,raw_transmission_costs!$B:$B,$C764,raw_transmission_costs!$A:$A,J$615)","v":100},{"$f":"SUMIFS(raw_transmission_costs!$H:$H,raw_transmission_costs!$B:$B,$C764,raw_transmission_costs!$A:$A,K$615)","v":100},{"$f":"SUMIFS(raw_transmission_costs!$H:$H,raw_transmission_costs!$B:$B,$C764,raw_transmission_costs!$A:$A,L$615)","v":100},{"$f":"SUMIFS(raw_transmission_costs!$H:$H,raw_transmission_costs!$B:$B,$C764,raw_transmission_costs!$A:$A,M$615)","v":100},{"$f":"SUMIFS(raw_transmission_costs!$H:$H,raw_transmission_costs!$B:$B,$C764,raw_transmission_costs!$A:$A,N$615)","v":100},{"$f":"SUMIFS(raw_transmission_costs!$H:$H,raw_transmission_costs!$B:$B,$C764,raw_transmission_costs!$A:$A,O$615)","v":0},{"$f":"SUMIFS(raw_transmission_costs!$H:$H,raw_transmission_costs!$B:$B,$C764,raw_transmission_costs!$A:$A,P$615)","v":100},{"$f":"SUMIFS(raw_transmission_costs!$H:$H,raw_transmission_costs!$B:$B,$C764,raw_transmission_costs!$A:$A,Q$615)","v":0},{"$f":"SUMIFS(raw_transmission_costs!$H:$H,raw_transmission_costs!$B:$B,$C764,raw_transmission_costs!$A:$A,R$615)","v":0},{"$f":"SUMIFS(raw_transmission_costs!$H:$H,raw_transmission_costs!$B:$B,$C764,raw_transmission_costs!$A:$A,S$615)","v":0},{"$f":"SUMIFS(raw_transmission_costs!$H:$H,raw_transmission_costs!$B:$B,$C764,raw_transmission_costs!$A:$A,T$615)","v":100},{"$f":"SUMIFS(raw_transmission_costs!$H:$H,raw_transmission_costs!$B:$B,$C764,raw_transmission_costs!$A:$A,U$615)","v":0},{"$f":"SUMIFS(raw_transmission_costs!$H:$H,raw_transmission_costs!$B:$B,$C764,raw_transmission_costs!$A:$A,V$615)","v":0},{"$f":"SUMIFS(raw_transmission_costs!$H:$H,raw_transmission_costs!$B:$B,$C764,raw_transmission_costs!$A:$A,W$615)","v":0},{"$f":"SUMIFS(raw_transmission_costs!$H:$H,raw_transmission_costs!$B:$B,$C764,raw_transmission_costs!$A:$A,X$615)","v":0},{"$f":"SUMIFS(raw_transmission_costs!$H:$H,raw_transmission_costs!$B:$B,$C764,raw_transmission_costs!$A:$A,Y$615)","v":0},{"$f":"SUMIFS(raw_transmission_costs!$H:$H,raw_transmission_costs!$B:$B,$C764,raw_transmission_costs!$A:$A,Z$615)","v":0},{"$f":"SUMIFS(raw_transmission_costs!$H:$H,raw_transmission_costs!$B:$B,$C764,raw_transmission_costs!$A:$A,AA$615)","v":0},{"$f":"SUMIFS(raw_transmission_costs!$H:$H,raw_transmission_costs!$B:$B,$C764,raw_transmission_costs!$A:$A,AB$615)","v":0},{"$f":"SUMIFS(raw_transmission_costs!$H:$H,raw_transmission_costs!$B:$B,$C764,raw_transmission_costs!$A:$A,AC$615)","v":0},{"$f":"SUMIFS(raw_transmission_costs!$H:$H,raw_transmission_costs!$B:$B,$C764,raw_transmission_costs!$A:$A,AD$615)","v":0},{"$f":"SUMIFS(raw_transmission_costs!$H:$H,raw_transmission_costs!$B:$B,$C764,raw_transmission_costs!$A:$A,AE$615)","v":0},{"$f":"SUMIFS(raw_transmission_costs!$H:$H,raw_transmission_costs!$B:$B,$C764,raw_transmission_costs!$A:$A,AF$615)","v":0},{"$f":"SUMIFS(raw_transmission_costs!$H:$H,raw_transmission_costs!$B:$B,$C764,raw_transmission_costs!$A:$A,AG$615)","v":0},{"$f":"SUMIFS(raw_transmission_costs!$H:$H,raw_transmission_costs!$B:$B,$C764,raw_transmission_costs!$A:$A,AH$615)","v":0},{"$f":"SUMIFS(raw_transmission_costs!$H:$H,raw_transmission_costs!$B:$B,$C764,raw_transmission_costs!$A:$A,AI$615)","v":100},{"$f":"SUMIFS(raw_transmission_costs!$H:$H,raw_transmission_costs!$B:$B,$C764,raw_transmission_costs!$A:$A,AJ$615)","v":0},{"$f":"SUMIFS(raw_transmission_costs!$H:$H,raw_transmission_costs!$B:$B,$C764,raw_transmission_costs!$A:$A,AK$615)","v":0},{"$f":"SUMIFS(raw_transmission_costs!$H:$H,raw_transmission_costs!$B:$B,$C764,raw_transmission_costs!$A:$A,AL$615)","v":0},{"$f":"SUMIFS(raw_transmission_costs!$H:$H,raw_transmission_costs!$B:$B,$C764,raw_transmission_costs!$A:$A,AM$615)","v":0},{"$f":"SUMIFS(raw_transmission_costs!$H:$H,raw_transmission_costs!$B:$B,$C764,raw_transmission_costs!$A:$A,AN$615)","v":0}]
[null,null,"Sacramento_River","MW",{"$f":"SUMIFS(raw_transmission_costs!$H:$H,raw_transmission_costs!$B:$B,$C765,raw_transmission_costs!$A:$A,E$615)","v":0},{"$f":"SUMIFS(raw_transmission_costs!$H:$H,raw_transmission_costs!$B:$B,$C765,raw_transmission_costs!$A:$A,F$615)","v":0},{"$f":"SUMIFS(raw_transmission_costs!$H:$H,raw_transmission_costs!$B:$B,$C765,raw_transmission_costs!$A:$A,G$615)","v":0},{"$f":"SUMIFS(raw_transmission_costs!$H:$H,raw_transmission_costs!$B:$B,$C765,raw_transmission_costs!$A:$A,H$615)","v":0},{"$f":"SUMIFS(raw_transmission_costs!$H:$H,raw_transmission_costs!$B:$B,$C765,raw_transmission_costs!$A:$A,I$615)","v":0},{"$f":"SUMIFS(raw_transmission_costs!$H:$H,raw_transmission_costs!$B:$B,$C765,raw_transmission_costs!$A:$A,J$615)","v":2600},{"$f":"SUMIFS(raw_transmission_costs!$H:$H,raw_transmission_costs!$B:$B,$C765,raw_transmission_costs!$A:$A,K$615)","v":2600},{"$f":"SUMIFS(raw_transmission_costs!$H:$H,raw_transmission_costs!$B:$B,$C765,raw_transmission_costs!$A:$A,L$615)","v":2600},{"$f":"SUMIFS(raw_transmission_costs!$H:$H,raw_transmission_costs!$B:$B,$C765,raw_transmission_costs!$A:$A,M$615)","v":2600},{"$f":"SUMIFS(raw_transmission_costs!$H:$H,raw_transmission_costs!$B:$B,$C765,raw_transmission_costs!$A:$A,N$615)","v":2600},{"$f":"SUMIFS(raw_transmission_costs!$H:$H,raw_transmission_costs!$B:$B,$C765,raw_transmission_costs!$A:$A,O$615)","v":0},{"$f":"SUMIFS(raw_transmission_costs!$H:$H,raw_transmission_costs!$B:$B,$C765,raw_transmission_costs!$A:$A,P$615)","v":2600},{"$f":"SUMIFS(raw_transmission_costs!$H:$H,raw_transmission_costs!$B:$B,$C765,raw_transmission_costs!$A:$A,Q$615)","v":0},{"$f":"SUMIFS(raw_transmission_costs!$H:$H,raw_transmission_costs!$B:$B,$C765,raw_transmission_costs!$A:$A,R$615)","v":0},{"$f":"SUMIFS(raw_transmission_costs!$H:$H,raw_transmission_costs!$B:$B,$C765,raw_transmission_costs!$A:$A,S$615)","v":0},{"$f":"SUMIFS(raw_transmission_costs!$H:$H,raw_transmission_costs!$B:$B,$C765,raw_transmission_costs!$A:$A,T$615)","v":2600},{"$f":"SUMIFS(raw_transmission_costs!$H:$H,raw_transmission_costs!$B:$B,$C765,raw_transmission_costs!$A:$A,U$615)","v":0},{"$f":"SUMIFS(raw_transmission_costs!$H:$H,raw_transmission_costs!$B:$B,$C765,raw_transmission_costs!$A:$A,V$615)","v":0},{"$f":"SUMIFS(raw_transmission_costs!$H:$H,raw_transmission_costs!$B:$B,$C765,raw_transmission_costs!$A:$A,W$615)","v":0},{"$f":"SUMIFS(raw_transmission_costs!$H:$H,raw_transmission_costs!$B:$B,$C765,raw_transmission_costs!$A:$A,X$615)","v":0},{"$f":"SUMIFS(raw_transmission_costs!$H:$H,raw_transmission_costs!$B:$B,$C765,raw_transmission_costs!$A:$A,Y$615)","v":0},{"$f":"SUMIFS(raw_transmission_costs!$H:$H,raw_transmission_costs!$B:$B,$C765,raw_transmission_costs!$A:$A,Z$615)","v":0},{"$f":"SUMIFS(raw_transmission_costs!$H:$H,raw_transmission_costs!$B:$B,$C765,raw_transmission_costs!$A:$A,AA$615)","v":0},{"$f":"SUMIFS(raw_transmission_costs!$H:$H,raw_transmission_costs!$B:$B,$C765,raw_transmission_costs!$A:$A,AB$615)","v":0},{"$f":"SUMIFS(raw_transmission_costs!$H:$H,raw_transmission_costs!$B:$B,$C765,raw_transmission_costs!$A:$A,AC$615)","v":0},{"$f":"SUMIFS(raw_transmission_costs!$H:$H,raw_transmission_costs!$B:$B,$C765,raw_transmission_costs!$A:$A,AD$615)","v":0},{"$f":"SUMIFS(raw_transmission_costs!$H:$H,raw_transmission_costs!$B:$B,$C765,raw_transmission_costs!$A:$A,AE$615)","v":0},{"$f":"SUMIFS(raw_transmission_costs!$H:$H,raw_transmission_costs!$B:$B,$C765,raw_transmission_costs!$A:$A,AF$615)","v":0},{"$f":"SUMIFS(raw_transmission_costs!$H:$H,raw_transmission_costs!$B:$B,$C765,raw_transmission_costs!$A:$A,AG$615)","v":0},{"$f":"SUMIFS(raw_transmission_costs!$H:$H,raw_transmission_costs!$B:$B,$C765,raw_transmission_costs!$A:$A,AH$615)","v":0},{"$f":"SUMIFS(raw_transmission_costs!$H:$H,raw_transmission_costs!$B:$B,$C765,raw_transmission_costs!$A:$A,AI$615)","v":2600},{"$f":"SUMIFS(raw_transmission_costs!$H:$H,raw_transmission_costs!$B:$B,$C765,raw_transmission_costs!$A:$A,AJ$615)","v":0},{"$f":"SUMIFS(raw_transmission_costs!$H:$H,raw_transmission_costs!$B:$B,$C765,raw_transmission_costs!$A:$A,AK$615)","v":0},{"$f":"SUMIFS(raw_transmission_costs!$H:$H,raw_transmission_costs!$B:$B,$C765,raw_transmission_costs!$A:$A,AL$615)","v":0},{"$f":"SUMIFS(raw_transmission_costs!$H:$H,raw_transmission_costs!$B:$B,$C765,raw_transmission_costs!$A:$A,AM$615)","v":0},{"$f":"SUMIFS(raw_transmission_costs!$H:$H,raw_transmission_costs!$B:$B,$C765,raw_transmission_costs!$A:$A,AN$615)","v":0}]
[null,null,"Solano","MW",{"$f":"SUMIFS(raw_transmission_costs!$H:$H,raw_transmission_costs!$B:$B,$C766,raw_transmission_costs!$A:$A,E$615)","v":0},{"$f":"SUMIFS(raw_transmission_costs!$H:$H,raw_transmission_costs!$B:$B,$C766,raw_transmission_costs!$A:$A,F$615)","v":0},{"$f":"SUMIFS(raw_transmission_costs!$H:$H,raw_transmission_costs!$B:$B,$C766,raw_transmission_costs!$A:$A,G$615)","v":0},{"$f":"SUMIFS(raw_transmission_costs!$H:$H,raw_transmission_costs!$B:$B,$C766,raw_transmission_costs!$A:$A,H$615)","v":0},{"$f":"SUMIFS(raw_transmission_costs!$H:$H,raw_transmission_costs!$B:$B,$C766,raw_transmission_costs!$A:$A,I$615)","v":0},{"$f":"SUMIFS(raw_transmission_costs!$H:$H,raw_transmission_costs!$B:$B,$C766,raw_transmission_costs!$A:$A,J$615)","v":700},{"$f":"SUMIFS(raw_transmission_costs!$H:$H,raw_transmission_costs!$B:$B,$C766,raw_transmission_costs!$A:$A,K$615)","v":700},{"$f":"SUMIFS(raw_transmission_costs!$H:$H,raw_transmission_costs!$B:$B,$C766,raw_transmission_costs!$A:$A,L$615)","v":700},{"$f":"SUMIFS(raw_transmission_costs!$H:$H,raw_transmission_costs!$B:$B,$C766,raw_transmission_costs!$A:$A,M$615)","v":700},{"$f":"SUMIFS(raw_transmission_costs!$H:$H,raw_transmission_costs!$B:$B,$C766,raw_transmission_costs!$A:$A,N$615)","v":700},{"$f":"SUMIFS(raw_transmission_costs!$H:$H,raw_transmission_costs!$B:$B,$C766,raw_transmission_costs!$A:$A,O$615)","v":0},{"$f":"SUMIFS(raw_transmission_costs!$H:$H,raw_transmission_costs!$B:$B,$C766,raw_transmission_costs!$A:$A,P$615)","v":700},{"$f":"SUMIFS(raw_transmission_costs!$H:$H,raw_transmission_costs!$B:$B,$C766,raw_transmission_costs!$A:$A,Q$615)","v":0},{"$f":"SUMIFS(raw_transmission_costs!$H:$H,raw_transmission_costs!$B:$B,$C766,raw_transmission_costs!$A:$A,R$615)","v":0},{"$f":"SUMIFS(raw_transmission_costs!$H:$H,raw_transmission_costs!$B:$B,$C766,raw_transmission_costs!$A:$A,S$615)","v":0},{"$f":"SUMIFS(raw_transmission_costs!$H:$H,raw_transmission_costs!$B:$B,$C766,raw_transmission_costs!$A:$A,T$615)","v":700},{"$f":"SUMIFS(raw_transmission_costs!$H:$H,raw_transmission_costs!$B:$B,$C766,raw_transmission_costs!$A:$A,U$615)","v":0},{"$f":"SUMIFS(raw_transmission_costs!$H:$H,raw_transmission_costs!$B:$B,$C766,raw_transmission_costs!$A:$A,V$615)","v":0},{"$f":"SUMIFS(raw_transmission_costs!$H:$H,raw_transmission_costs!$B:$B,$C766,raw_transmission_costs!$A:$A,W$615)","v":0},{"$f":"SUMIFS(raw_transmission_costs!$H:$H,raw_transmission_costs!$B:$B,$C766,raw_transmission_costs!$A:$A,X$615)","v":0},{"$f":"SUMIFS(raw_transmission_costs!$H:$H,raw_transmission_costs!$B:$B,$C766,raw_transmission_costs!$A:$A,Y$615)","v":0},{"$f":"SUMIFS(raw_transmission_costs!$H:$H,raw_transmission_costs!$B:$B,$C766,raw_transmission_costs!$A:$A,Z$615)","v":0},{"$f":"SUMIFS(raw_transmission_costs!$H:$H,raw_transmission_costs!$B:$B,$C766,raw_transmission_costs!$A:$A,AA$615)","v":0},{"$f":"SUMIFS(raw_transmission_costs!$H:$H,raw_transmission_costs!$B:$B,$C766,raw_transmission_costs!$A:$A,AB$615)","v":0},{"$f":"SUMIFS(raw_transmission_costs!$H:$H,raw_transmission_costs!$B:$B,$C766,raw_transmission_costs!$A:$A,AC$615)","v":0},{"$f":"SUMIFS(raw_transmission_costs!$H:$H,raw_transmission_costs!$B:$B,$C766,raw_transmission_costs!$A:$A,AD$615)","v":0},{"$f":"SUMIFS(raw_transmission_costs!$H:$H,raw_transmission_costs!$B:$B,$C766,raw_transmission_costs!$A:$A,AE$615)","v":0},{"$f":"SUMIFS(raw_transmission_costs!$H:$H,raw_transmission_costs!$B:$B,$C766,raw_transmission_costs!$A:$A,AF$615)","v":0},{"$f":"SUMIFS(raw_transmission_costs!$H:$H,raw_transmission_costs!$B:$B,$C766,raw_transmission_costs!$A:$A,AG$615)","v":0},{"$f":"SUMIFS(raw_transmission_costs!$H:$H,raw_transmission_costs!$B:$B,$C766,raw_transmission_costs!$A:$A,AH$615)","v":0},{"$f":"SUMIFS(raw_transmission_costs!$H:$H,raw_transmission_costs!$B:$B,$C766,raw_transmission_costs!$A:$A,AI$615)","v":700},{"$f":"SUMIFS(raw_transmission_costs!$H:$H,raw_transmission_costs!$B:$B,$C766,raw_transmission_costs!$A:$A,AJ$615)","v":0},{"$f":"SUMIFS(raw_transmission_costs!$H:$H,raw_transmission_costs!$B:$B,$C766,raw_transmission_costs!$A:$A,AK$615)","v":0},{"$f":"SUMIFS(raw_transmission_costs!$H:$H,raw_transmission_costs!$B:$B,$C766,raw_transmission_costs!$A:$A,AL$615)","v":0},{"$f":"SUMIFS(raw_transmission_costs!$H:$H,raw_transmission_costs!$B:$B,$C766,raw_transmission_costs!$A:$A,AM$615)","v":0},{"$f":"SUMIFS(raw_transmission_costs!$H:$H,raw_transmission_costs!$B:$B,$C766,raw_transmission_costs!$A:$A,AN$615)","v":0}]
[null,null,"Solano_subzone","MW",{"$f":"SUMIFS(raw_transmission_costs!$H:$H,raw_transmission_costs!$B:$B,$C767,raw_transmission_costs!$A:$A,E$615)","v":0},{"$f":"SUMIFS(raw_transmission_costs!$H:$H,raw_transmission_costs!$B:$B,$C767,raw_transmission_costs!$A:$A,F$615)","v":0},{"$f":"SUMIFS(raw_transmission_costs!$H:$H,raw_transmission_costs!$B:$B,$C767,raw_transmission_costs!$A:$A,G$615)","v":0},{"$f":"SUMIFS(raw_transmission_costs!$H:$H,raw_transmission_costs!$B:$B,$C767,raw_transmission_costs!$A:$A,H$615)","v":0},{"$f":"SUMIFS(raw_transmission_costs!$H:$H,raw_transmission_costs!$B:$B,$C767,raw_transmission_costs!$A:$A,I$615)","v":0},{"$f":"SUMIFS(raw_transmission_costs!$H:$H,raw_transmission_costs!$B:$B,$C767,raw_transmission_costs!$A:$A,J$615)","v":0},{"$f":"SUMIFS(raw_transmission_costs!$H:$H,raw_transmission_costs!$B:$B,$C767,raw_transmission_costs!$A:$A,K$615)","v":0},{"$f":"SUMIFS(raw_transmission_costs!$H:$H,raw_transmission_costs!$B:$B,$C767,raw_transmission_costs!$A:$A,L$615)","v":0},{"$f":"SUMIFS(raw_transmission_costs!$H:$H,raw_transmission_costs!$B:$B,$C767,raw_transmission_costs!$A:$A,M$615)","v":0},{"$f":"SUMIFS(raw_transmission_costs!$H:$H,raw_transmission_costs!$B:$B,$C767,raw_transmission_costs!$A:$A,N$615)","v":0},{"$f":"SUMIFS(raw_transmission_costs!$H:$H,raw_transmission_costs!$B:$B,$C767,raw_transmission_costs!$A:$A,O$615)","v":0},{"$f":"SUMIFS(raw_transmission_costs!$H:$H,raw_transmission_costs!$B:$B,$C767,raw_transmission_costs!$A:$A,P$615)","v":0},{"$f":"SUMIFS(raw_transmission_costs!$H:$H,raw_transmission_costs!$B:$B,$C767,raw_transmission_costs!$A:$A,Q$615)","v":0},{"$f":"SUMIFS(raw_transmission_costs!$H:$H,raw_transmission_costs!$B:$B,$C767,raw_transmission_costs!$A:$A,R$615)","v":0},{"$f":"SUMIFS(raw_transmission_costs!$H:$H,raw_transmission_costs!$B:$B,$C767,raw_transmission_costs!$A:$A,S$615)","v":0},{"$f":"SUMIFS(raw_transmission_costs!$H:$H,raw_transmission_costs!$B:$B,$C767,raw_transmission_costs!$A:$A,T$615)","v":0},{"$f":"SUMIFS(raw_transmission_costs!$H:$H,raw_transmission_costs!$B:$B,$C767,raw_transmission_costs!$A:$A,U$615)","v":0},{"$f":"SUMIFS(raw_transmission_costs!$H:$H,raw_transmission_costs!$B:$B,$C767,raw_transmission_costs!$A:$A,V$615)","v":0},{"$f":"SUMIFS(raw_transmission_costs!$H:$H,raw_transmission_costs!$B:$B,$C767,raw_transmission_costs!$A:$A,W$615)","v":0},{"$f":"SUMIFS(raw_transmission_costs!$H:$H,raw_transmission_costs!$B:$B,$C767,raw_transmission_costs!$A:$A,X$615)","v":0},{"$f":"SUMIFS(raw_transmission_costs!$H:$H,raw_transmission_costs!$B:$B,$C767,raw_transmission_costs!$A:$A,Y$615)","v":0},{"$f":"SUMIFS(raw_transmission_costs!$H:$H,raw_transmission_costs!$B:$B,$C767,raw_transmission_costs!$A:$A,Z$615)","v":0},{"$f":"SUMIFS(raw_transmission_costs!$H:$H,raw_transmission_costs!$B:$B,$C767,raw_transmission_costs!$A:$A,AA$615)","v":0},{"$f":"SUMIFS(raw_transmission_costs!$H:$H,raw_transmission_costs!$B:$B,$C767,raw_transmission_costs!$A:$A,AB$615)","v":0},{"$f":"SUMIFS(raw_transmission_costs!$H:$H,raw_transmission_costs!$B:$B,$C767,raw_transmission_costs!$A:$A,AC$615)","v":0},{"$f":"SUMIFS(raw_transmission_costs!$H:$H,raw_transmission_costs!$B:$B,$C767,raw_transmission_costs!$A:$A,AD$615)","v":0},{"$f":"SUMIFS(raw_transmission_costs!$H:$H,raw_transmission_costs!$B:$B,$C767,raw_transmission_costs!$A:$A,AE$615)","v":0},{"$f":"SUMIFS(raw_transmission_costs!$H:$H,raw_transmission_costs!$B:$B,$C767,raw_transmission_costs!$A:$A,AF$615)","v":0},{"$f":"SUMIFS(raw_transmission_costs!$H:$H,raw_transmission_costs!$B:$B,$C767,raw_transmission_costs!$A:$A,AG$615)","v":0},{"$f":"SUMIFS(raw_transmission_costs!$H:$H,raw_transmission_costs!$B:$B,$C767,raw_transmission_costs!$A:$A,AH$615)","v":0},{"$f":"SUMIFS(raw_transmission_costs!$H:$H,raw_transmission_costs!$B:$B,$C767,raw_transmission_costs!$A:$A,AI$615)","v":0},{"$f":"SUMIFS(raw_transmission_costs!$H:$H,raw_transmission_costs!$B:$B,$C767,raw_transmission_costs!$A:$A,AJ$615)","v":0},{"$f":"SUMIFS(raw_transmission_costs!$H:$H,raw_transmission_costs!$B:$B,$C767,raw_transmission_costs!$A:$A,AK$615)","v":0},{"$f":"SUMIFS(raw_transmission_costs!$H:$H,raw_transmission_costs!$B:$B,$C767,raw_transmission_costs!$A:$A,AL$615)","v":0},{"$f":"SUMIFS(raw_transmission_costs!$H:$H,raw_transmission_costs!$B:$B,$C767,raw_transmission_costs!$A:$A,AM$615)","v":0},{"$f":"SUMIFS(raw_transmission_costs!$H:$H,raw_transmission_costs!$B:$B,$C767,raw_transmission_costs!$A:$A,AN$615)","v":0}]
[null,null,"Mountain_Pass_El_Dorado","MW",{"$f":"SUMIFS(raw_transmission_costs!$H:$H,raw_transmission_costs!$B:$B,$C768,raw_transmission_costs!$A:$A,E$615)","v":0},{"$f":"SUMIFS(raw_transmission_costs!$H:$H,raw_transmission_costs!$B:$B,$C768,raw_transmission_costs!$A:$A,F$615)","v":0},{"$f":"SUMIFS(raw_transmission_costs!$H:$H,raw_transmission_costs!$B:$B,$C768,raw_transmission_costs!$A:$A,G$615)","v":0},{"$f":"SUMIFS(raw_transmission_costs!$H:$H,raw_transmission_costs!$B:$B,$C768,raw_transmission_costs!$A:$A,H$615)","v":0},{"$f":"SUMIFS(raw_transmission_costs!$H:$H,raw_transmission_costs!$B:$B,$C768,raw_transmission_costs!$A:$A,I$615)","v":0},{"$f":"SUMIFS(raw_transmission_costs!$H:$H,raw_transmission_costs!$B:$B,$C768,raw_transmission_costs!$A:$A,J$615)","v":2150},{"$f":"SUMIFS(raw_transmission_costs!$H:$H,raw_transmission_costs!$B:$B,$C768,raw_transmission_costs!$A:$A,K$615)","v":2150},{"$f":"SUMIFS(raw_transmission_costs!$H:$H,raw_transmission_costs!$B:$B,$C768,raw_transmission_costs!$A:$A,L$615)","v":2150},{"$f":"SUMIFS(raw_transmission_costs!$H:$H,raw_transmission_costs!$B:$B,$C768,raw_transmission_costs!$A:$A,M$615)","v":2150},{"$f":"SUMIFS(raw_transmission_costs!$H:$H,raw_transmission_costs!$B:$B,$C768,raw_transmission_costs!$A:$A,N$615)","v":2150},{"$f":"SUMIFS(raw_transmission_costs!$H:$H,raw_transmission_costs!$B:$B,$C768,raw_transmission_costs!$A:$A,O$615)","v":0},{"$f":"SUMIFS(raw_transmission_costs!$H:$H,raw_transmission_costs!$B:$B,$C768,raw_transmission_costs!$A:$A,P$615)","v":2150},{"$f":"SUMIFS(raw_transmission_costs!$H:$H,raw_transmission_costs!$B:$B,$C768,raw_transmission_costs!$A:$A,Q$615)","v":0},{"$f":"SUMIFS(raw_transmission_costs!$H:$H,raw_transmission_costs!$B:$B,$C768,raw_transmission_costs!$A:$A,R$615)","v":0},{"$f":"SUMIFS(raw_transmission_costs!$H:$H,raw_transmission_costs!$B:$B,$C768,raw_transmission_costs!$A:$A,S$615)","v":0},{"$f":"SUMIFS(raw_transmission_costs!$H:$H,raw_transmission_costs!$B:$B,$C768,raw_transmission_costs!$A:$A,T$615)","v":2150},{"$f":"SUMIFS(raw_transmission_costs!$H:$H,raw_transmission_costs!$B:$B,$C768,raw_transmission_costs!$A:$A,U$615)","v":0},{"$f":"SUMIFS(raw_transmission_costs!$H:$H,raw_transmission_costs!$B:$B,$C768,raw_transmission_costs!$A:$A,V$615)","v":0},{"$f":"SUMIFS(raw_transmission_costs!$H:$H,raw_transmission_costs!$B:$B,$C768,raw_transmission_costs!$A:$A,W$615)","v":0},{"$f":"SUMIFS(raw_transmission_costs!$H:$H,raw_transmission_costs!$B:$B,$C768,raw_transmission_costs!$A:$A,X$615)","v":0},{"$f":"SUMIFS(raw_transmission_costs!$H:$H,raw_transmission_costs!$B:$B,$C768,raw_transmission_costs!$A:$A,Y$615)","v":0},{"$f":"SUMIFS(raw_transmission_costs!$H:$H,raw_transmission_costs!$B:$B,$C768,raw_transmission_costs!$A:$A,Z$615)","v":0},{"$f":"SUMIFS(raw_transmission_costs!$H:$H,raw_transmission_costs!$B:$B,$C768,raw_transmission_costs!$A:$A,AA$615)","v":0},{"$f":"SUMIFS(raw_transmission_costs!$H:$H,raw_transmission_costs!$B:$B,$C768,raw_transmission_costs!$A:$A,AB$615)","v":0},{"$f":"SUMIFS(raw_transmission_costs!$H:$H,raw_transmission_costs!$B:$B,$C768,raw_transmission_costs!$A:$A,AC$615)","v":0},{"$f":"SUMIFS(raw_transmission_costs!$H:$H,raw_transmission_costs!$B:$B,$C768,raw_transmission_costs!$A:$A,AD$615)","v":0},{"$f":"SUMIFS(raw_transmission_costs!$H:$H,raw_transmission_costs!$B:$B,$C768,raw_transmission_costs!$A:$A,AE$615)","v":0},{"$f":"SUMIFS(raw_transmission_costs!$H:$H,raw_transmission_costs!$B:$B,$C768,raw_transmission_costs!$A:$A,AF$615)","v":0},{"$f":"SUMIFS(raw_transmission_costs!$H:$H,raw_transmission_costs!$B:$B,$C768,raw_transmission_costs!$A:$A,AG$615)","v":0},{"$f":"SUMIFS(raw_transmission_costs!$H:$H,raw_transmission_costs!$B:$B,$C768,raw_transmission_costs!$A:$A,AH$615)","v":0},{"$f":"SUMIFS(raw_transmission_costs!$H:$H,raw_transmission_costs!$B:$B,$C768,raw_transmission_costs!$A:$A,AI$615)","v":2150},{"$f":"SUMIFS(raw_transmission_costs!$H:$H,raw_transmission_costs!$B:$B,$C768,raw_transmission_costs!$A:$A,AJ$615)","v":0},{"$f":"SUMIFS(raw_transmission_costs!$H:$H,raw_transmission_costs!$B:$B,$C768,raw_transmission_costs!$A:$A,AK$615)","v":0},{"$f":"SUMIFS(raw_transmission_costs!$H:$H,raw_transmission_costs!$B:$B,$C768,raw_transmission_costs!$A:$A,AL$615)","v":0},{"$f":"SUMIFS(raw_transmission_costs!$H:$H,raw_transmission_costs!$B:$B,$C768,raw_transmission_costs!$A:$A,AM$615)","v":0},{"$f":"SUMIFS(raw_transmission_costs!$H:$H,raw_transmission_costs!$B:$B,$C768,raw_transmission_costs!$A:$A,AN$615)","v":0}]
[null,null,"GLW_VEA","MW",{"$f":"SUMIFS(raw_transmission_costs!$H:$H,raw_transmission_costs!$B:$B,$C769,raw_transmission_costs!$A:$A,E$615)","v":0},{"$f":"SUMIFS(raw_transmission_costs!$H:$H,raw_transmission_costs!$B:$B,$C769,raw_transmission_costs!$A:$A,F$615)","v":0},{"$f":"SUMIFS(raw_transmission_costs!$H:$H,raw_transmission_costs!$B:$B,$C769,raw_transmission_costs!$A:$A,G$615)","v":0},{"$f":"SUMIFS(raw_transmission_costs!$H:$H,raw_transmission_costs!$B:$B,$C769,raw_transmission_costs!$A:$A,H$615)","v":0},{"$f":"SUMIFS(raw_transmission_costs!$H:$H,raw_transmission_costs!$B:$B,$C769,raw_transmission_costs!$A:$A,I$615)","v":0},{"$f":"SUMIFS(raw_transmission_costs!$H:$H,raw_transmission_costs!$B:$B,$C769,raw_transmission_costs!$A:$A,J$615)","v":0},{"$f":"SUMIFS(raw_transmission_costs!$H:$H,raw_transmission_costs!$B:$B,$C769,raw_transmission_costs!$A:$A,K$615)","v":0},{"$f":"SUMIFS(raw_transmission_costs!$H:$H,raw_transmission_costs!$B:$B,$C769,raw_transmission_costs!$A:$A,L$615)","v":0},{"$f":"SUMIFS(raw_transmission_costs!$H:$H,raw_transmission_costs!$B:$B,$C769,raw_transmission_costs!$A:$A,M$615)","v":0},{"$f":"SUMIFS(raw_transmission_costs!$H:$H,raw_transmission_costs!$B:$B,$C769,raw_transmission_costs!$A:$A,N$615)","v":0},{"$f":"SUMIFS(raw_transmission_costs!$H:$H,raw_transmission_costs!$B:$B,$C769,raw_transmission_costs!$A:$A,O$615)","v":0},{"$f":"SUMIFS(raw_transmission_costs!$H:$H,raw_transmission_costs!$B:$B,$C769,raw_transmission_costs!$A:$A,P$615)","v":0},{"$f":"SUMIFS(raw_transmission_costs!$H:$H,raw_transmission_costs!$B:$B,$C769,raw_transmission_costs!$A:$A,Q$615)","v":0},{"$f":"SUMIFS(raw_transmission_costs!$H:$H,raw_transmission_costs!$B:$B,$C769,raw_transmission_costs!$A:$A,R$615)","v":0},{"$f":"SUMIFS(raw_transmission_costs!$H:$H,raw_transmission_costs!$B:$B,$C769,raw_transmission_costs!$A:$A,S$615)","v":0},{"$f":"SUMIFS(raw_transmission_costs!$H:$H,raw_transmission_costs!$B:$B,$C769,raw_transmission_costs!$A:$A,T$615)","v":0},{"$f":"SUMIFS(raw_transmission_costs!$H:$H,raw_transmission_costs!$B:$B,$C769,raw_transmission_costs!$A:$A,U$615)","v":0},{"$f":"SUMIFS(raw_transmission_costs!$H:$H,raw_transmission_costs!$B:$B,$C769,raw_transmission_costs!$A:$A,V$615)","v":0},{"$f":"SUMIFS(raw_transmission_costs!$H:$H,raw_transmission_costs!$B:$B,$C769,raw_transmission_costs!$A:$A,W$615)","v":0},{"$f":"SUMIFS(raw_transmission_costs!$H:$H,raw_transmission_costs!$B:$B,$C769,raw_transmission_costs!$A:$A,X$615)","v":0},{"$f":"SUMIFS(raw_transmission_costs!$H:$H,raw_transmission_costs!$B:$B,$C769,raw_transmission_costs!$A:$A,Y$615)","v":0},{"$f":"SUMIFS(raw_transmission_costs!$H:$H,raw_transmission_costs!$B:$B,$C769,raw_transmission_costs!$A:$A,Z$615)","v":0},{"$f":"SUMIFS(raw_transmission_costs!$H:$H,raw_transmission_costs!$B:$B,$C769,raw_transmission_costs!$A:$A,AA$615)","v":0},{"$f":"SUMIFS(raw_transmission_costs!$H:$H,raw_transmission_costs!$B:$B,$C769,raw_transmission_costs!$A:$A,AB$615)","v":0},{"$f":"SUMIFS(raw_transmission_costs!$H:$H,raw_transmission_costs!$B:$B,$C769,raw_transmission_costs!$A:$A,AC$615)","v":0},{"$f":"SUMIFS(raw_transmission_costs!$H:$H,raw_transmission_costs!$B:$B,$C769,raw_transmission_costs!$A:$A,AD$615)","v":0},{"$f":"SUMIFS(raw_transmission_costs!$H:$H,raw_transmission_costs!$B:$B,$C769,raw_transmission_costs!$A:$A,AE$615)","v":0},{"$f":"SUMIFS(raw_transmission_costs!$H:$H,raw_transmission_costs!$B:$B,$C769,raw_transmission_costs!$A:$A,AF$615)","v":0},{"$f":"SUMIFS(raw_transmission_costs!$H:$H,raw_transmission_costs!$B:$B,$C769,raw_transmission_costs!$A:$A,AG$615)","v":0},{"$f":"SUMIFS(raw_transmission_costs!$H:$H,raw_transmission_costs!$B:$B,$C769,raw_transmission_costs!$A:$A,AH$615)","v":0},{"$f":"SUMIFS(raw_transmission_costs!$H:$H,raw_transmission_costs!$B:$B,$C769,raw_transmission_costs!$A:$A,AI$615)","v":0},{"$f":"SUMIFS(raw_transmission_costs!$H:$H,raw_transmission_costs!$B:$B,$C769,raw_transmission_costs!$A:$A,AJ$615)","v":0},{"$f":"SUMIFS(raw_transmission_costs!$H:$H,raw_transmission_costs!$B:$B,$C769,raw_transmission_costs!$A:$A,AK$615)","v":0},{"$f":"SUMIFS(raw_transmission_costs!$H:$H,raw_transmission_costs!$B:$B,$C769,raw_transmission_costs!$A:$A,AL$615)","v":0},{"$f":"SUMIFS(raw_transmission_costs!$H:$H,raw_transmission_costs!$B:$B,$C769,raw_transmission_costs!$A:$A,AM$615)","v":0},{"$f":"SUMIFS(raw_transmission_costs!$H:$H,raw_transmission_costs!$B:$B,$C769,raw_transmission_costs!$A:$A,AN$615)","v":0}]
[null,null,"Greater_Imperial","MW",{"$f":"SUMIFS(raw_transmission_costs!$H:$H,raw_transmission_costs!$B:$B,$C770,raw_transmission_costs!$A:$A,E$615)","v":0},{"$f":"SUMIFS(raw_transmission_costs!$H:$H,raw_transmission_costs!$B:$B,$C770,raw_transmission_costs!$A:$A,F$615)","v":0},{"$f":"SUMIFS(raw_transmission_costs!$H:$H,raw_transmission_costs!$B:$B,$C770,raw_transmission_costs!$A:$A,G$615)","v":0},{"$f":"SUMIFS(raw_transmission_costs!$H:$H,raw_transmission_costs!$B:$B,$C770,raw_transmission_costs!$A:$A,H$615)","v":0},{"$f":"SUMIFS(raw_transmission_costs!$H:$H,raw_transmission_costs!$B:$B,$C770,raw_transmission_costs!$A:$A,I$615)","v":0},{"$f":"SUMIFS(raw_transmission_costs!$H:$H,raw_transmission_costs!$B:$B,$C770,raw_transmission_costs!$A:$A,J$615)","v":1900},{"$f":"SUMIFS(raw_transmission_costs!$H:$H,raw_transmission_costs!$B:$B,$C770,raw_transmission_costs!$A:$A,K$615)","v":1900},{"$f":"SUMIFS(raw_transmission_costs!$H:$H,raw_transmission_costs!$B:$B,$C770,raw_transmission_costs!$A:$A,L$615)","v":1900},{"$f":"SUMIFS(raw_transmission_costs!$H:$H,raw_transmission_costs!$B:$B,$C770,raw_transmission_costs!$A:$A,M$615)","v":1900},{"$f":"SUMIFS(raw_transmission_costs!$H:$H,raw_transmission_costs!$B:$B,$C770,raw_transmission_costs!$A:$A,N$615)","v":1900},{"$f":"SUMIFS(raw_transmission_costs!$H:$H,raw_transmission_costs!$B:$B,$C770,raw_transmission_costs!$A:$A,O$615)","v":0},{"$f":"SUMIFS(raw_transmission_costs!$H:$H,raw_transmission_costs!$B:$B,$C770,raw_transmission_costs!$A:$A,P$615)","v":1900},{"$f":"SUMIFS(raw_transmission_costs!$H:$H,raw_transmission_costs!$B:$B,$C770,raw_transmission_costs!$A:$A,Q$615)","v":0},{"$f":"SUMIFS(raw_transmission_costs!$H:$H,raw_transmission_costs!$B:$B,$C770,raw_transmission_costs!$A:$A,R$615)","v":0},{"$f":"SUMIFS(raw_transmission_costs!$H:$H,raw_transmission_costs!$B:$B,$C770,raw_transmission_costs!$A:$A,S$615)","v":0},{"$f":"SUMIFS(raw_transmission_costs!$H:$H,raw_transmission_costs!$B:$B,$C770,raw_transmission_costs!$A:$A,T$615)","v":1900},{"$f":"SUMIFS(raw_transmission_costs!$H:$H,raw_transmission_costs!$B:$B,$C770,raw_transmission_costs!$A:$A,U$615)","v":0},{"$f":"SUMIFS(raw_transmission_costs!$H:$H,raw_transmission_costs!$B:$B,$C770,raw_transmission_costs!$A:$A,V$615)","v":0},{"$f":"SUMIFS(raw_transmission_costs!$H:$H,raw_transmission_costs!$B:$B,$C770,raw_transmission_costs!$A:$A,W$615)","v":0},{"$f":"SUMIFS(raw_transmission_costs!$H:$H,raw_transmission_costs!$B:$B,$C770,raw_transmission_costs!$A:$A,X$615)","v":0},{"$f":"SUMIFS(raw_transmission_costs!$H:$H,raw_transmission_costs!$B:$B,$C770,raw_transmission_costs!$A:$A,Y$615)","v":0},{"$f":"SUMIFS(raw_transmission_costs!$H:$H,raw_transmission_costs!$B:$B,$C770,raw_transmission_costs!$A:$A,Z$615)","v":0},{"$f":"SUMIFS(raw_transmission_costs!$H:$H,raw_transmission_costs!$B:$B,$C770,raw_transmission_costs!$A:$A,AA$615)","v":0},{"$f":"SUMIFS(raw_transmission_costs!$H:$H,raw_transmission_costs!$B:$B,$C770,raw_transmission_costs!$A:$A,AB$615)","v":0},{"$f":"SUMIFS(raw_transmission_costs!$H:$H,raw_transmission_costs!$B:$B,$C770,raw_transmission_costs!$A:$A,AC$615)","v":0},{"$f":"SUMIFS(raw_transmission_costs!$H:$H,raw_transmission_costs!$B:$B,$C770,raw_transmission_costs!$A:$A,AD$615)","v":0},{"$f":"SUMIFS(raw_transmission_costs!$H:$H,raw_transmission_costs!$B:$B,$C770,raw_transmission_costs!$A:$A,AE$615)","v":0},{"$f":"SUMIFS(raw_transmission_costs!$H:$H,raw_transmission_costs!$B:$B,$C770,raw_transmission_costs!$A:$A,AF$615)","v":0},{"$f":"SUMIFS(raw_transmission_costs!$H:$H,raw_transmission_costs!$B:$B,$C770,raw_transmission_costs!$A:$A,AG$615)","v":0},{"$f":"SUMIFS(raw_transmission_costs!$H:$H,raw_transmission_costs!$B:$B,$C770,raw_transmission_costs!$A:$A,AH$615)","v":0},{"$f":"SUMIFS(raw_transmission_costs!$H:$H,raw_transmission_costs!$B:$B,$C770,raw_transmission_costs!$A:$A,AI$615)","v":1900},{"$f":"SUMIFS(raw_transmission_costs!$H:$H,raw_transmission_costs!$B:$B,$C770,raw_transmission_costs!$A:$A,AJ$615)","v":0},{"$f":"SUMIFS(raw_transmission_costs!$H:$H,raw_transmission_costs!$B:$B,$C770,raw_transmission_costs!$A:$A,AK$615)","v":0},{"$f":"SUMIFS(raw_transmission_costs!$H:$H,raw_transmission_costs!$B:$B,$C770,raw_transmission_costs!$A:$A,AL$615)","v":0},{"$f":"SUMIFS(raw_transmission_costs!$H:$H,raw_transmission_costs!$B:$B,$C770,raw_transmission_costs!$A:$A,AM$615)","v":0},{"$f":"SUMIFS(raw_transmission_costs!$H:$H,raw_transmission_costs!$B:$B,$C770,raw_transmission_costs!$A:$A,AN$615)","v":0}]
[null,null,"Riverside_Palm_Springs","MW",{"$f":"SUMIFS(raw_transmission_costs!$H:$H,raw_transmission_costs!$B:$B,$C771,raw_transmission_costs!$A:$A,E$615)","v":0},{"$f":"SUMIFS(raw_transmission_costs!$H:$H,raw_transmission_costs!$B:$B,$C771,raw_transmission_costs!$A:$A,F$615)","v":0},{"$f":"SUMIFS(raw_transmission_costs!$H:$H,raw_transmission_costs!$B:$B,$C771,raw_transmission_costs!$A:$A,G$615)","v":0},{"$f":"SUMIFS(raw_transmission_costs!$H:$H,raw_transmission_costs!$B:$B,$C771,raw_transmission_costs!$A:$A,H$615)","v":0},{"$f":"SUMIFS(raw_transmission_costs!$H:$H,raw_transmission_costs!$B:$B,$C771,raw_transmission_costs!$A:$A,I$615)","v":0},{"$f":"SUMIFS(raw_transmission_costs!$H:$H,raw_transmission_costs!$B:$B,$C771,raw_transmission_costs!$A:$A,J$615)","v":2550},{"$f":"SUMIFS(raw_transmission_costs!$H:$H,raw_transmission_costs!$B:$B,$C771,raw_transmission_costs!$A:$A,K$615)","v":2550},{"$f":"SUMIFS(raw_transmission_costs!$H:$H,raw_transmission_costs!$B:$B,$C771,raw_transmission_costs!$A:$A,L$615)","v":2550},{"$f":"SUMIFS(raw_transmission_costs!$H:$H,raw_transmission_costs!$B:$B,$C771,raw_transmission_costs!$A:$A,M$615)","v":2550},{"$f":"SUMIFS(raw_transmission_costs!$H:$H,raw_transmission_costs!$B:$B,$C771,raw_transmission_costs!$A:$A,N$615)","v":2550},{"$f":"SUMIFS(raw_transmission_costs!$H:$H,raw_transmission_costs!$B:$B,$C771,raw_transmission_costs!$A:$A,O$615)","v":0},{"$f":"SUMIFS(raw_transmission_costs!$H:$H,raw_transmission_costs!$B:$B,$C771,raw_transmission_costs!$A:$A,P$615)","v":2550},{"$f":"SUMIFS(raw_transmission_costs!$H:$H,raw_transmission_costs!$B:$B,$C771,raw_transmission_costs!$A:$A,Q$615)","v":0},{"$f":"SUMIFS(raw_transmission_costs!$H:$H,raw_transmission_costs!$B:$B,$C771,raw_transmission_costs!$A:$A,R$615)","v":0},{"$f":"SUMIFS(raw_transmission_costs!$H:$H,raw_transmission_costs!$B:$B,$C771,raw_transmission_costs!$A:$A,S$615)","v":0},{"$f":"SUMIFS(raw_transmission_costs!$H:$H,raw_transmission_costs!$B:$B,$C771,raw_transmission_costs!$A:$A,T$615)","v":2550},{"$f":"SUMIFS(raw_transmission_costs!$H:$H,raw_transmission_costs!$B:$B,$C771,raw_transmission_costs!$A:$A,U$615)","v":0},{"$f":"SUMIFS(raw_transmission_costs!$H:$H,raw_transmission_costs!$B:$B,$C771,raw_transmission_costs!$A:$A,V$615)","v":0},{"$f":"SUMIFS(raw_transmission_costs!$H:$H,raw_transmission_costs!$B:$B,$C771,raw_transmission_costs!$A:$A,W$615)","v":0},{"$f":"SUMIFS(raw_transmission_costs!$H:$H,raw_transmission_costs!$B:$B,$C771,raw_transmission_costs!$A:$A,X$615)","v":0},{"$f":"SUMIFS(raw_transmission_costs!$H:$H,raw_transmission_costs!$B:$B,$C771,raw_transmission_costs!$A:$A,Y$615)","v":0},{"$f":"SUMIFS(raw_transmission_costs!$H:$H,raw_transmission_costs!$B:$B,$C771,raw_transmission_costs!$A:$A,Z$615)","v":0},{"$f":"SUMIFS(raw_transmission_costs!$H:$H,raw_transmission_costs!$B:$B,$C771,raw_transmission_costs!$A:$A,AA$615)","v":0},{"$f":"SUMIFS(raw_transmission_costs!$H:$H,raw_transmission_costs!$B:$B,$C771,raw_transmission_costs!$A:$A,AB$615)","v":0},{"$f":"SUMIFS(raw_transmission_costs!$H:$H,raw_transmission_costs!$B:$B,$C771,raw_transmission_costs!$A:$A,AC$615)","v":0},{"$f":"SUMIFS(raw_transmission_costs!$H:$H,raw_transmission_costs!$B:$B,$C771,raw_transmission_costs!$A:$A,AD$615)","v":0},{"$f":"SUMIFS(raw_transmission_costs!$H:$H,raw_transmission_costs!$B:$B,$C771,raw_transmission_costs!$A:$A,AE$615)","v":0},{"$f":"SUMIFS(raw_transmission_costs!$H:$H,raw_transmission_costs!$B:$B,$C771,raw_transmission_costs!$A:$A,AF$615)","v":0},{"$f":"SUMIFS(raw_transmission_costs!$H:$H,raw_transmission_costs!$B:$B,$C771,raw_transmission_costs!$A:$A,AG$615)","v":0},{"$f":"SUMIFS(raw_transmission_costs!$H:$H,raw_transmission_costs!$B:$B,$C771,raw_transmission_costs!$A:$A,AH$615)","v":0},{"$f":"SUMIFS(raw_transmission_costs!$H:$H,raw_transmission_costs!$B:$B,$C771,raw_transmission_costs!$A:$A,AI$615)","v":2550},{"$f":"SUMIFS(raw_transmission_costs!$H:$H,raw_transmission_costs!$B:$B,$C771,raw_transmission_costs!$A:$A,AJ$615)","v":0},{"$f":"SUMIFS(raw_transmission_costs!$H:$H,raw_transmission_costs!$B:$B,$C771,raw_transmission_costs!$A:$A,AK$615)","v":0},{"$f":"SUMIFS(raw_transmission_costs!$H:$H,raw_transmission_costs!$B:$B,$C771,raw_transmission_costs!$A:$A,AL$615)","v":0},{"$f":"SUMIFS(raw_transmission_costs!$H:$H,raw_transmission_costs!$B:$B,$C771,raw_transmission_costs!$A:$A,AM$615)","v":0},{"$f":"SUMIFS(raw_transmission_costs!$H:$H,raw_transmission_costs!$B:$B,$C771,raw_transmission_costs!$A:$A,AN$615)","v":0}]
[null,null,"SCADSNV","MW",{"$f":"SUMIFS(raw_transmission_costs!$H:$H,raw_transmission_costs!$B:$B,$C772,raw_transmission_costs!$A:$A,E$615)","v":0},{"$f":"SUMIFS(raw_transmission_costs!$H:$H,raw_transmission_costs!$B:$B,$C772,raw_transmission_costs!$A:$A,F$615)","v":0},{"$f":"SUMIFS(raw_transmission_costs!$H:$H,raw_transmission_costs!$B:$B,$C772,raw_transmission_costs!$A:$A,G$615)","v":0},{"$f":"SUMIFS(raw_transmission_costs!$H:$H,raw_transmission_costs!$B:$B,$C772,raw_transmission_costs!$A:$A,H$615)","v":0},{"$f":"SUMIFS(raw_transmission_costs!$H:$H,raw_transmission_costs!$B:$B,$C772,raw_transmission_costs!$A:$A,I$615)","v":0},{"$f":"SUMIFS(raw_transmission_costs!$H:$H,raw_transmission_costs!$B:$B,$C772,raw_transmission_costs!$A:$A,J$615)","v":6600},{"$f":"SUMIFS(raw_transmission_costs!$H:$H,raw_transmission_costs!$B:$B,$C772,raw_transmission_costs!$A:$A,K$615)","v":6600},{"$f":"SUMIFS(raw_transmission_costs!$H:$H,raw_transmission_costs!$B:$B,$C772,raw_transmission_costs!$A:$A,L$615)","v":6600},{"$f":"SUMIFS(raw_transmission_costs!$H:$H,raw_transmission_costs!$B:$B,$C772,raw_transmission_costs!$A:$A,M$615)","v":6600},{"$f":"SUMIFS(raw_transmission_costs!$H:$H,raw_transmission_costs!$B:$B,$C772,raw_transmission_costs!$A:$A,N$615)","v":6600},{"$f":"SUMIFS(raw_transmission_costs!$H:$H,raw_transmission_costs!$B:$B,$C772,raw_transmission_costs!$A:$A,O$615)","v":0},{"$f":"SUMIFS(raw_transmission_costs!$H:$H,raw_transmission_costs!$B:$B,$C772,raw_transmission_costs!$A:$A,P$615)","v":6600},{"$f":"SUMIFS(raw_transmission_costs!$H:$H,raw_transmission_costs!$B:$B,$C772,raw_transmission_costs!$A:$A,Q$615)","v":0},{"$f":"SUMIFS(raw_transmission_costs!$H:$H,raw_transmission_costs!$B:$B,$C772,raw_transmission_costs!$A:$A,R$615)","v":0},{"$f":"SUMIFS(raw_transmission_costs!$H:$H,raw_transmission_costs!$B:$B,$C772,raw_transmission_costs!$A:$A,S$615)","v":0},{"$f":"SUMIFS(raw_transmission_costs!$H:$H,raw_transmission_costs!$B:$B,$C772,raw_transmission_costs!$A:$A,T$615)","v":6600},{"$f":"SUMIFS(raw_transmission_costs!$H:$H,raw_transmission_costs!$B:$B,$C772,raw_transmission_costs!$A:$A,U$615)","v":0},{"$f":"SUMIFS(raw_transmission_costs!$H:$H,raw_transmission_costs!$B:$B,$C772,raw_transmission_costs!$A:$A,V$615)","v":0},{"$f":"SUMIFS(raw_transmission_costs!$H:$H,raw_transmission_costs!$B:$B,$C772,raw_transmission_costs!$A:$A,W$615)","v":0},{"$f":"SUMIFS(raw_transmission_costs!$H:$H,raw_transmission_costs!$B:$B,$C772,raw_transmission_costs!$A:$A,X$615)","v":0},{"$f":"SUMIFS(raw_transmission_costs!$H:$H,raw_transmission_costs!$B:$B,$C772,raw_transmission_costs!$A:$A,Y$615)","v":0},{"$f":"SUMIFS(raw_transmission_costs!$H:$H,raw_transmission_costs!$B:$B,$C772,raw_transmission_costs!$A:$A,Z$615)","v":0},{"$f":"SUMIFS(raw_transmission_costs!$H:$H,raw_transmission_costs!$B:$B,$C772,raw_transmission_costs!$A:$A,AA$615)","v":0},{"$f":"SUMIFS(raw_transmission_costs!$H:$H,raw_transmission_costs!$B:$B,$C772,raw_transmission_costs!$A:$A,AB$615)","v":0},{"$f":"SUMIFS(raw_transmission_costs!$H:$H,raw_transmission_costs!$B:$B,$C772,raw_transmission_costs!$A:$A,AC$615)","v":0},{"$f":"SUMIFS(raw_transmission_costs!$H:$H,raw_transmission_costs!$B:$B,$C772,raw_transmission_costs!$A:$A,AD$615)","v":0},{"$f":"SUMIFS(raw_transmission_costs!$H:$H,raw_transmission_costs!$B:$B,$C772,raw_transmission_costs!$A:$A,AE$615)","v":0},{"$f":"SUMIFS(raw_transmission_costs!$H:$H,raw_transmission_costs!$B:$B,$C772,raw_transmission_costs!$A:$A,AF$615)","v":0},{"$f":"SUMIFS(raw_transmission_costs!$H:$H,raw_transmission_costs!$B:$B,$C772,raw_transmission_costs!$A:$A,AG$615)","v":0},{"$f":"SUMIFS(raw_transmission_costs!$H:$H,raw_transmission_costs!$B:$B,$C772,raw_transmission_costs!$A:$A,AH$615)","v":0},{"$f":"SUMIFS(raw_transmission_costs!$H:$H,raw_transmission_costs!$B:$B,$C772,raw_transmission_costs!$A:$A,AI$615)","v":6600},{"$f":"SUMIFS(raw_transmission_costs!$H:$H,raw_transmission_costs!$B:$B,$C772,raw_transmission_costs!$A:$A,AJ$615)","v":0},{"$f":"SUMIFS(raw_transmission_costs!$H:$H,raw_transmission_costs!$B:$B,$C772,raw_transmission_costs!$A:$A,AK$615)","v":0},{"$f":"SUMIFS(raw_transmission_costs!$H:$H,raw_transmission_costs!$B:$B,$C772,raw_transmission_costs!$A:$A,AL$615)","v":0},{"$f":"SUMIFS(raw_transmission_costs!$H:$H,raw_transmission_costs!$B:$B,$C772,raw_transmission_costs!$A:$A,AM$615)","v":0},{"$f":"SUMIFS(raw_transmission_costs!$H:$H,raw_transmission_costs!$B:$B,$C772,raw_transmission_costs!$A:$A,AN$615)","v":0}]
[null,null,"Kern_Greater_Carrizo","MW",{"$f":"SUMIFS(raw_transmission_costs!$H:$H,raw_transmission_costs!$B:$B,$C773,raw_transmission_costs!$A:$A,E$615)","v":0},{"$f":"SUMIFS(raw_transmission_costs!$H:$H,raw_transmission_costs!$B:$B,$C773,raw_transmission_costs!$A:$A,F$615)","v":0},{"$f":"SUMIFS(raw_transmission_costs!$H:$H,raw_transmission_costs!$B:$B,$C773,raw_transmission_costs!$A:$A,G$615)","v":0},{"$f":"SUMIFS(raw_transmission_costs!$H:$H,raw_transmission_costs!$B:$B,$C773,raw_transmission_costs!$A:$A,H$615)","v":0},{"$f":"SUMIFS(raw_transmission_costs!$H:$H,raw_transmission_costs!$B:$B,$C773,raw_transmission_costs!$A:$A,I$615)","v":0},{"$f":"SUMIFS(raw_transmission_costs!$H:$H,raw_transmission_costs!$B:$B,$C773,raw_transmission_costs!$A:$A,J$615)","v":700},{"$f":"SUMIFS(raw_transmission_costs!$H:$H,raw_transmission_costs!$B:$B,$C773,raw_transmission_costs!$A:$A,K$615)","v":700},{"$f":"SUMIFS(raw_transmission_costs!$H:$H,raw_transmission_costs!$B:$B,$C773,raw_transmission_costs!$A:$A,L$615)","v":700},{"$f":"SUMIFS(raw_transmission_costs!$H:$H,raw_transmission_costs!$B:$B,$C773,raw_transmission_costs!$A:$A,M$615)","v":700},{"$f":"SUMIFS(raw_transmission_costs!$H:$H,raw_transmission_costs!$B:$B,$C773,raw_transmission_costs!$A:$A,N$615)","v":700},{"$f":"SUMIFS(raw_transmission_costs!$H:$H,raw_transmission_costs!$B:$B,$C773,raw_transmission_costs!$A:$A,O$615)","v":0},{"$f":"SUMIFS(raw_transmission_costs!$H:$H,raw_transmission_costs!$B:$B,$C773,raw_transmission_costs!$A:$A,P$615)","v":700},{"$f":"SUMIFS(raw_transmission_costs!$H:$H,raw_transmission_costs!$B:$B,$C773,raw_transmission_costs!$A:$A,Q$615)","v":0},{"$f":"SUMIFS(raw_transmission_costs!$H:$H,raw_transmission_costs!$B:$B,$C773,raw_transmission_costs!$A:$A,R$615)","v":0},{"$f":"SUMIFS(raw_transmission_costs!$H:$H,raw_transmission_costs!$B:$B,$C773,raw_transmission_costs!$A:$A,S$615)","v":0},{"$f":"SUMIFS(raw_transmission_costs!$H:$H,raw_transmission_costs!$B:$B,$C773,raw_transmission_costs!$A:$A,T$615)","v":700},{"$f":"SUMIFS(raw_transmission_costs!$H:$H,raw_transmission_costs!$B:$B,$C773,raw_transmission_costs!$A:$A,U$615)","v":0},{"$f":"SUMIFS(raw_transmission_costs!$H:$H,raw_transmission_costs!$B:$B,$C773,raw_transmission_costs!$A:$A,V$615)","v":0},{"$f":"SUMIFS(raw_transmission_costs!$H:$H,raw_transmission_costs!$B:$B,$C773,raw_transmission_costs!$A:$A,W$615)","v":0},{"$f":"SUMIFS(raw_transmission_costs!$H:$H,raw_transmission_costs!$B:$B,$C773,raw_transmission_costs!$A:$A,X$615)","v":0},{"$f":"SUMIFS(raw_transmission_costs!$H:$H,raw_transmission_costs!$B:$B,$C773,raw_transmission_costs!$A:$A,Y$615)","v":0},{"$f":"SUMIFS(raw_transmission_costs!$H:$H,raw_transmission_costs!$B:$B,$C773,raw_transmission_costs!$A:$A,Z$615)","v":0},{"$f":"SUMIFS(raw_transmission_costs!$H:$H,raw_transmission_costs!$B:$B,$C773,raw_transmission_costs!$A:$A,AA$615)","v":0},{"$f":"SUMIFS(raw_transmission_costs!$H:$H,raw_transmission_costs!$B:$B,$C773,raw_transmission_costs!$A:$A,AB$615)","v":0},{"$f":"SUMIFS(raw_transmission_costs!$H:$H,raw_transmission_costs!$B:$B,$C773,raw_transmission_costs!$A:$A,AC$615)","v":0},{"$f":"SUMIFS(raw_transmission_costs!$H:$H,raw_transmission_costs!$B:$B,$C773,raw_transmission_costs!$A:$A,AD$615)","v":0},{"$f":"SUMIFS(raw_transmission_costs!$H:$H,raw_transmission_costs!$B:$B,$C773,raw_transmission_costs!$A:$A,AE$615)","v":0},{"$f":"SUMIFS(raw_transmission_costs!$H:$H,raw_transmission_costs!$B:$B,$C773,raw_transmission_costs!$A:$A,AF$615)","v":0},{"$f":"SUMIFS(raw_transmission_costs!$H:$H,raw_transmission_costs!$B:$B,$C773,raw_transmission_costs!$A:$A,AG$615)","v":0},{"$f":"SUMIFS(raw_transmission_costs!$H:$H,raw_transmission_costs!$B:$B,$C773,raw_transmission_costs!$A:$A,AH$615)","v":0},{"$f":"SUMIFS(raw_transmission_costs!$H:$H,raw_transmission_costs!$B:$B,$C773,raw_transmission_costs!$A:$A,AI$615)","v":700},{"$f":"SUMIFS(raw_transmission_costs!$H:$H,raw_transmission_costs!$B:$B,$C773,raw_transmission_costs!$A:$A,AJ$615)","v":0},{"$f":"SUMIFS(raw_transmission_costs!$H:$H,raw_transmission_costs!$B:$B,$C773,raw_transmission_costs!$A:$A,AK$615)","v":0},{"$f":"SUMIFS(raw_transmission_costs!$H:$H,raw_transmission_costs!$B:$B,$C773,raw_transmission_costs!$A:$A,AL$615)","v":0},{"$f":"SUMIFS(raw_transmission_costs!$H:$H,raw_transmission_costs!$B:$B,$C773,raw_transmission_costs!$A:$A,AM$615)","v":0},{"$f":"SUMIFS(raw_transmission_costs!$H:$H,raw_transmission_costs!$B:$B,$C773,raw_transmission_costs!$A:$A,AN$615)","v":0}]
[null,null,"Carrizo","MW",{"$f":"SUMIFS(raw_transmission_costs!$H:$H,raw_transmission_costs!$B:$B,$C774,raw_transmission_costs!$A:$A,E$615)","v":0},{"$f":"SUMIFS(raw_transmission_costs!$H:$H,raw_transmission_costs!$B:$B,$C774,raw_transmission_costs!$A:$A,F$615)","v":0},{"$f":"SUMIFS(raw_transmission_costs!$H:$H,raw_transmission_costs!$B:$B,$C774,raw_transmission_costs!$A:$A,G$615)","v":0},{"$f":"SUMIFS(raw_transmission_costs!$H:$H,raw_transmission_costs!$B:$B,$C774,raw_transmission_costs!$A:$A,H$615)","v":0},{"$f":"SUMIFS(raw_transmission_costs!$H:$H,raw_transmission_costs!$B:$B,$C774,raw_transmission_costs!$A:$A,I$615)","v":0},{"$f":"SUMIFS(raw_transmission_costs!$H:$H,raw_transmission_costs!$B:$B,$C774,raw_transmission_costs!$A:$A,J$615)","v":0},{"$f":"SUMIFS(raw_transmission_costs!$H:$H,raw_transmission_costs!$B:$B,$C774,raw_transmission_costs!$A:$A,K$615)","v":0},{"$f":"SUMIFS(raw_transmission_costs!$H:$H,raw_transmission_costs!$B:$B,$C774,raw_transmission_costs!$A:$A,L$615)","v":0},{"$f":"SUMIFS(raw_transmission_costs!$H:$H,raw_transmission_costs!$B:$B,$C774,raw_transmission_costs!$A:$A,M$615)","v":0},{"$f":"SUMIFS(raw_transmission_costs!$H:$H,raw_transmission_costs!$B:$B,$C774,raw_transmission_costs!$A:$A,N$615)","v":0},{"$f":"SUMIFS(raw_transmission_costs!$H:$H,raw_transmission_costs!$B:$B,$C774,raw_transmission_costs!$A:$A,O$615)","v":0},{"$f":"SUMIFS(raw_transmission_costs!$H:$H,raw_transmission_costs!$B:$B,$C774,raw_transmission_costs!$A:$A,P$615)","v":0},{"$f":"SUMIFS(raw_transmission_costs!$H:$H,raw_transmission_costs!$B:$B,$C774,raw_transmission_costs!$A:$A,Q$615)","v":0},{"$f":"SUMIFS(raw_transmission_costs!$H:$H,raw_transmission_costs!$B:$B,$C774,raw_transmission_costs!$A:$A,R$615)","v":0},{"$f":"SUMIFS(raw_transmission_costs!$H:$H,raw_transmission_costs!$B:$B,$C774,raw_transmission_costs!$A:$A,S$615)","v":0},{"$f":"SUMIFS(raw_transmission_costs!$H:$H,raw_transmission_costs!$B:$B,$C774,raw_transmission_costs!$A:$A,T$615)","v":0},{"$f":"SUMIFS(raw_transmission_costs!$H:$H,raw_transmission_costs!$B:$B,$C774,raw_transmission_costs!$A:$A,U$615)","v":0},{"$f":"SUMIFS(raw_transmission_costs!$H:$H,raw_transmission_costs!$B:$B,$C774,raw_transmission_costs!$A:$A,V$615)","v":0},{"$f":"SUMIFS(raw_transmission_costs!$H:$H,raw_transmission_costs!$B:$B,$C774,raw_transmission_costs!$A:$A,W$615)","v":0},{"$f":"SUMIFS(raw_transmission_costs!$H:$H,raw_transmission_costs!$B:$B,$C774,raw_transmission_costs!$A:$A,X$615)","v":0},{"$f":"SUMIFS(raw_transmission_costs!$H:$H,raw_transmission_costs!$B:$B,$C774,raw_transmission_costs!$A:$A,Y$615)","v":0},{"$f":"SUMIFS(raw_transmission_costs!$H:$H,raw_transmission_costs!$B:$B,$C774,raw_transmission_costs!$A:$A,Z$615)","v":0},{"$f":"SUMIFS(raw_transmission_costs!$H:$H,raw_transmission_costs!$B:$B,$C774,raw_transmission_costs!$A:$A,AA$615)","v":0},{"$f":"SUMIFS(raw_transmission_costs!$H:$H,raw_transmission_costs!$B:$B,$C774,raw_transmission_costs!$A:$A,AB$615)","v":0},{"$f":"SUMIFS(raw_transmission_costs!$H:$H,raw_transmission_costs!$B:$B,$C774,raw_transmission_costs!$A:$A,AC$615)","v":0},{"$f":"SUMIFS(raw_transmission_costs!$H:$H,raw_transmission_costs!$B:$B,$C774,raw_transmission_costs!$A:$A,AD$615)","v":0},{"$f":"SUMIFS(raw_transmission_costs!$H:$H,raw_transmission_costs!$B:$B,$C774,raw_transmission_costs!$A:$A,AE$615)","v":0},{"$f":"SUMIFS(raw_transmission_costs!$H:$H,raw_transmission_costs!$B:$B,$C774,raw_transmission_costs!$A:$A,AF$615)","v":0},{"$f":"SUMIFS(raw_transmission_costs!$H:$H,raw_transmission_costs!$B:$B,$C774,raw_transmission_costs!$A:$A,AG$615)","v":0},{"$f":"SUMIFS(raw_transmission_costs!$H:$H,raw_transmission_costs!$B:$B,$C774,raw_transmission_costs!$A:$A,AH$615)","v":0},{"$f":"SUMIFS(raw_transmission_costs!$H:$H,raw_transmission_costs!$B:$B,$C774,raw_transmission_costs!$A:$A,AI$615)","v":0},{"$f":"SUMIFS(raw_transmission_costs!$H:$H,raw_transmission_costs!$B:$B,$C774,raw_transmission_costs!$A:$A,AJ$615)","v":0},{"$f":"SUMIFS(raw_transmission_costs!$H:$H,raw_transmission_costs!$B:$B,$C774,raw_transmission_costs!$A:$A,AK$615)","v":0},{"$f":"SUMIFS(raw_transmission_costs!$H:$H,raw_transmission_costs!$B:$B,$C774,raw_transmission_costs!$A:$A,AL$615)","v":0},{"$f":"SUMIFS(raw_transmission_costs!$H:$H,raw_transmission_costs!$B:$B,$C774,raw_transmission_costs!$A:$A,AM$615)","v":0},{"$f":"SUMIFS(raw_transmission_costs!$H:$H,raw_transmission_costs!$B:$B,$C774,raw_transmission_costs!$A:$A,AN$615)","v":0}]
[null,null,"Central_Valley_North_Los_Banos","MW",{"$f":"SUMIFS(raw_transmission_costs!$H:$H,raw_transmission_costs!$B:$B,$C775,raw_transmission_costs!$A:$A,E$615)","v":0},{"$f":"SUMIFS(raw_transmission_costs!$H:$H,raw_transmission_costs!$B:$B,$C775,raw_transmission_costs!$A:$A,F$615)","v":0},{"$f":"SUMIFS(raw_transmission_costs!$H:$H,raw_transmission_costs!$B:$B,$C775,raw_transmission_costs!$A:$A,G$615)","v":0},{"$f":"SUMIFS(raw_transmission_costs!$H:$H,raw_transmission_costs!$B:$B,$C775,raw_transmission_costs!$A:$A,H$615)","v":0},{"$f":"SUMIFS(raw_transmission_costs!$H:$H,raw_transmission_costs!$B:$B,$C775,raw_transmission_costs!$A:$A,I$615)","v":0},{"$f":"SUMIFS(raw_transmission_costs!$H:$H,raw_transmission_costs!$B:$B,$C775,raw_transmission_costs!$A:$A,J$615)","v":0},{"$f":"SUMIFS(raw_transmission_costs!$H:$H,raw_transmission_costs!$B:$B,$C775,raw_transmission_costs!$A:$A,K$615)","v":0},{"$f":"SUMIFS(raw_transmission_costs!$H:$H,raw_transmission_costs!$B:$B,$C775,raw_transmission_costs!$A:$A,L$615)","v":0},{"$f":"SUMIFS(raw_transmission_costs!$H:$H,raw_transmission_costs!$B:$B,$C775,raw_transmission_costs!$A:$A,M$615)","v":0},{"$f":"SUMIFS(raw_transmission_costs!$H:$H,raw_transmission_costs!$B:$B,$C775,raw_transmission_costs!$A:$A,N$615)","v":0},{"$f":"SUMIFS(raw_transmission_costs!$H:$H,raw_transmission_costs!$B:$B,$C775,raw_transmission_costs!$A:$A,O$615)","v":0},{"$f":"SUMIFS(raw_transmission_costs!$H:$H,raw_transmission_costs!$B:$B,$C775,raw_transmission_costs!$A:$A,P$615)","v":0},{"$f":"SUMIFS(raw_transmission_costs!$H:$H,raw_transmission_costs!$B:$B,$C775,raw_transmission_costs!$A:$A,Q$615)","v":0},{"$f":"SUMIFS(raw_transmission_costs!$H:$H,raw_transmission_costs!$B:$B,$C775,raw_transmission_costs!$A:$A,R$615)","v":0},{"$f":"SUMIFS(raw_transmission_costs!$H:$H,raw_transmission_costs!$B:$B,$C775,raw_transmission_costs!$A:$A,S$615)","v":0},{"$f":"SUMIFS(raw_transmission_costs!$H:$H,raw_transmission_costs!$B:$B,$C775,raw_transmission_costs!$A:$A,T$615)","v":0},{"$f":"SUMIFS(raw_transmission_costs!$H:$H,raw_transmission_costs!$B:$B,$C775,raw_transmission_costs!$A:$A,U$615)","v":0},{"$f":"SUMIFS(raw_transmission_costs!$H:$H,raw_transmission_costs!$B:$B,$C775,raw_transmission_costs!$A:$A,V$615)","v":0},{"$f":"SUMIFS(raw_transmission_costs!$H:$H,raw_transmission_costs!$B:$B,$C775,raw_transmission_costs!$A:$A,W$615)","v":0},{"$f":"SUMIFS(raw_transmission_costs!$H:$H,raw_transmission_costs!$B:$B,$C775,raw_transmission_costs!$A:$A,X$615)","v":0},{"$f":"SUMIFS(raw_transmission_costs!$H:$H,raw_transmission_costs!$B:$B,$C775,raw_transmission_costs!$A:$A,Y$615)","v":0},{"$f":"SUMIFS(raw_transmission_costs!$H:$H,raw_transmission_costs!$B:$B,$C775,raw_transmission_costs!$A:$A,Z$615)","v":0},{"$f":"SUMIFS(raw_transmission_costs!$H:$H,raw_transmission_costs!$B:$B,$C775,raw_transmission_costs!$A:$A,AA$615)","v":0},{"$f":"SUMIFS(raw_transmission_costs!$H:$H,raw_transmission_costs!$B:$B,$C775,raw_transmission_costs!$A:$A,AB$615)","v":0},{"$f":"SUMIFS(raw_transmission_costs!$H:$H,raw_transmission_costs!$B:$B,$C775,raw_transmission_costs!$A:$A,AC$615)","v":0},{"$f":"SUMIFS(raw_transmission_costs!$H:$H,raw_transmission_costs!$B:$B,$C775,raw_transmission_costs!$A:$A,AD$615)","v":0},{"$f":"SUMIFS(raw_transmission_costs!$H:$H,raw_transmission_costs!$B:$B,$C775,raw_transmission_costs!$A:$A,AE$615)","v":0},{"$f":"SUMIFS(raw_transmission_costs!$H:$H,raw_transmission_costs!$B:$B,$C775,raw_transmission_costs!$A:$A,AF$615)","v":0},{"$f":"SUMIFS(raw_transmission_costs!$H:$H,raw_transmission_costs!$B:$B,$C775,raw_transmission_costs!$A:$A,AG$615)","v":0},{"$f":"SUMIFS(raw_transmission_costs!$H:$H,raw_transmission_costs!$B:$B,$C775,raw_transmission_costs!$A:$A,AH$615)","v":0},{"$f":"SUMIFS(raw_transmission_costs!$H:$H,raw_transmission_costs!$B:$B,$C775,raw_transmission_costs!$A:$A,AI$615)","v":0},{"$f":"SUMIFS(raw_transmission_costs!$H:$H,raw_transmission_costs!$B:$B,$C775,raw_transmission_costs!$A:$A,AJ$615)","v":0},{"$f":"SUMIFS(raw_transmission_costs!$H:$H,raw_transmission_costs!$B:$B,$C775,raw_transmission_costs!$A:$A,AK$615)","v":0},{"$f":"SUMIFS(raw_transmission_costs!$H:$H,raw_transmission_costs!$B:$B,$C775,raw_transmission_costs!$A:$A,AL$615)","v":0},{"$f":"SUMIFS(raw_transmission_costs!$H:$H,raw_transmission_costs!$B:$B,$C775,raw_transmission_costs!$A:$A,AM$615)","v":0},{"$f":"SUMIFS(raw_transmission_costs!$H:$H,raw_transmission_costs!$B:$B,$C775,raw_transmission_costs!$A:$A,AN$615)","v":0}]
[null,null,"SPGE","MW",{"$f":"SUMIFS(raw_transmission_costs!$H:$H,raw_transmission_costs!$B:$B,$C776,raw_transmission_costs!$A:$A,E$615)","v":0},{"$f":"SUMIFS(raw_transmission_costs!$H:$H,raw_transmission_costs!$B:$B,$C776,raw_transmission_costs!$A:$A,F$615)","v":0},{"$f":"SUMIFS(raw_transmission_costs!$H:$H,raw_transmission_costs!$B:$B,$C776,raw_transmission_costs!$A:$A,G$615)","v":0},{"$f":"SUMIFS(raw_transmission_costs!$H:$H,raw_transmission_costs!$B:$B,$C776,raw_transmission_costs!$A:$A,H$615)","v":0},{"$f":"SUMIFS(raw_transmission_costs!$H:$H,raw_transmission_costs!$B:$B,$C776,raw_transmission_costs!$A:$A,I$615)","v":0},{"$f":"SUMIFS(raw_transmission_costs!$H:$H,raw_transmission_costs!$B:$B,$C776,raw_transmission_costs!$A:$A,J$615)","v":700},{"$f":"SUMIFS(raw_transmission_costs!$H:$H,raw_transmission_costs!$B:$B,$C776,raw_transmission_costs!$A:$A,K$615)","v":700},{"$f":"SUMIFS(raw_transmission_costs!$H:$H,raw_transmission_costs!$B:$B,$C776,raw_transmission_costs!$A:$A,L$615)","v":700},{"$f":"SUMIFS(raw_transmission_costs!$H:$H,raw_transmission_costs!$B:$B,$C776,raw_transmission_costs!$A:$A,M$615)","v":700},{"$f":"SUMIFS(raw_transmission_costs!$H:$H,raw_transmission_costs!$B:$B,$C776,raw_transmission_costs!$A:$A,N$615)","v":700},{"$f":"SUMIFS(raw_transmission_costs!$H:$H,raw_transmission_costs!$B:$B,$C776,raw_transmission_costs!$A:$A,O$615)","v":0},{"$f":"SUMIFS(raw_transmission_costs!$H:$H,raw_transmission_costs!$B:$B,$C776,raw_transmission_costs!$A:$A,P$615)","v":700},{"$f":"SUMIFS(raw_transmission_costs!$H:$H,raw_transmission_costs!$B:$B,$C776,raw_transmission_costs!$A:$A,Q$615)","v":0},{"$f":"SUMIFS(raw_transmission_costs!$H:$H,raw_transmission_costs!$B:$B,$C776,raw_transmission_costs!$A:$A,R$615)","v":0},{"$f":"SUMIFS(raw_transmission_costs!$H:$H,raw_transmission_costs!$B:$B,$C776,raw_transmission_costs!$A:$A,S$615)","v":0},{"$f":"SUMIFS(raw_transmission_costs!$H:$H,raw_transmission_costs!$B:$B,$C776,raw_transmission_costs!$A:$A,T$615)","v":700},{"$f":"SUMIFS(raw_transmission_costs!$H:$H,raw_transmission_costs!$B:$B,$C776,raw_transmission_costs!$A:$A,U$615)","v":0},{"$f":"SUMIFS(raw_transmission_costs!$H:$H,raw_transmission_costs!$B:$B,$C776,raw_transmission_costs!$A:$A,V$615)","v":0},{"$f":"SUMIFS(raw_transmission_costs!$H:$H,raw_transmission_costs!$B:$B,$C776,raw_transmission_costs!$A:$A,W$615)","v":0},{"$f":"SUMIFS(raw_transmission_costs!$H:$H,raw_transmission_costs!$B:$B,$C776,raw_transmission_costs!$A:$A,X$615)","v":0},{"$f":"SUMIFS(raw_transmission_costs!$H:$H,raw_transmission_costs!$B:$B,$C776,raw_transmission_costs!$A:$A,Y$615)","v":0},{"$f":"SUMIFS(raw_transmission_costs!$H:$H,raw_transmission_costs!$B:$B,$C776,raw_transmission_costs!$A:$A,Z$615)","v":0},{"$f":"SUMIFS(raw_transmission_costs!$H:$H,raw_transmission_costs!$B:$B,$C776,raw_transmission_costs!$A:$A,AA$615)","v":0},{"$f":"SUMIFS(raw_transmission_costs!$H:$H,raw_transmission_costs!$B:$B,$C776,raw_transmission_costs!$A:$A,AB$615)","v":0},{"$f":"SUMIFS(raw_transmission_costs!$H:$H,raw_transmission_costs!$B:$B,$C776,raw_transmission_costs!$A:$A,AC$615)","v":0},{"$f":"SUMIFS(raw_transmission_costs!$H:$H,raw_transmission_costs!$B:$B,$C776,raw_transmission_costs!$A:$A,AD$615)","v":0},{"$f":"SUMIFS(raw_transmission_costs!$H:$H,raw_transmission_costs!$B:$B,$C776,raw_transmission_costs!$A:$A,AE$615)","v":0},{"$f":"SUMIFS(raw_transmission_costs!$H:$H,raw_transmission_costs!$B:$B,$C776,raw_transmission_costs!$A:$A,AF$615)","v":0},{"$f":"SUMIFS(raw_transmission_costs!$H:$H,raw_transmission_costs!$B:$B,$C776,raw_transmission_costs!$A:$A,AG$615)","v":0},{"$f":"SUMIFS(raw_transmission_costs!$H:$H,raw_transmission_costs!$B:$B,$C776,raw_transmission_costs!$A:$A,AH$615)","v":0},{"$f":"SUMIFS(raw_transmission_costs!$H:$H,raw_transmission_costs!$B:$B,$C776,raw_transmission_costs!$A:$A,AI$615)","v":700},{"$f":"SUMIFS(raw_transmission_costs!$H:$H,raw_transmission_costs!$B:$B,$C776,raw_transmission_costs!$A:$A,AJ$615)","v":0},{"$f":"SUMIFS(raw_transmission_costs!$H:$H,raw_transmission_costs!$B:$B,$C776,raw_transmission_costs!$A:$A,AK$615)","v":0},{"$f":"SUMIFS(raw_transmission_costs!$H:$H,raw_transmission_costs!$B:$B,$C776,raw_transmission_costs!$A:$A,AL$615)","v":0},{"$f":"SUMIFS(raw_transmission_costs!$H:$H,raw_transmission_costs!$B:$B,$C776,raw_transmission_costs!$A:$A,AM$615)","v":0},{"$f":"SUMIFS(raw_transmission_costs!$H:$H,raw_transmission_costs!$B:$B,$C776,raw_transmission_costs!$A:$A,AN$615)","v":0}]
[null,null,"Tehachapi","MW",{"$f":"SUMIFS(raw_transmission_costs!$H:$H,raw_transmission_costs!$B:$B,$C777,raw_transmission_costs!$A:$A,E$615)","v":0},{"$f":"SUMIFS(raw_transmission_costs!$H:$H,raw_transmission_costs!$B:$B,$C777,raw_transmission_costs!$A:$A,F$615)","v":0},{"$f":"SUMIFS(raw_transmission_costs!$H:$H,raw_transmission_costs!$B:$B,$C777,raw_transmission_costs!$A:$A,G$615)","v":0},{"$f":"SUMIFS(raw_transmission_costs!$H:$H,raw_transmission_costs!$B:$B,$C777,raw_transmission_costs!$A:$A,H$615)","v":0},{"$f":"SUMIFS(raw_transmission_costs!$H:$H,raw_transmission_costs!$B:$B,$C777,raw_transmission_costs!$A:$A,I$615)","v":0},{"$f":"SUMIFS(raw_transmission_costs!$H:$H,raw_transmission_costs!$B:$B,$C777,raw_transmission_costs!$A:$A,J$615)","v":800},{"$f":"SUMIFS(raw_transmission_costs!$H:$H,raw_transmission_costs!$B:$B,$C777,raw_transmission_costs!$A:$A,K$615)","v":800},{"$f":"SUMIFS(raw_transmission_costs!$H:$H,raw_transmission_costs!$B:$B,$C777,raw_transmission_costs!$A:$A,L$615)","v":800},{"$f":"SUMIFS(raw_transmission_costs!$H:$H,raw_transmission_costs!$B:$B,$C777,raw_transmission_costs!$A:$A,M$615)","v":800},{"$f":"SUMIFS(raw_transmission_costs!$H:$H,raw_transmission_costs!$B:$B,$C777,raw_transmission_costs!$A:$A,N$615)","v":800},{"$f":"SUMIFS(raw_transmission_costs!$H:$H,raw_transmission_costs!$B:$B,$C777,raw_transmission_costs!$A:$A,O$615)","v":0},{"$f":"SUMIFS(raw_transmission_costs!$H:$H,raw_transmission_costs!$B:$B,$C777,raw_transmission_costs!$A:$A,P$615)","v":800},{"$f":"SUMIFS(raw_transmission_costs!$H:$H,raw_transmission_costs!$B:$B,$C777,raw_transmission_costs!$A:$A,Q$615)","v":0},{"$f":"SUMIFS(raw_transmission_costs!$H:$H,raw_transmission_costs!$B:$B,$C777,raw_transmission_costs!$A:$A,R$615)","v":0},{"$f":"SUMIFS(raw_transmission_costs!$H:$H,raw_transmission_costs!$B:$B,$C777,raw_transmission_costs!$A:$A,S$615)","v":0},{"$f":"SUMIFS(raw_transmission_costs!$H:$H,raw_transmission_costs!$B:$B,$C777,raw_transmission_costs!$A:$A,T$615)","v":800},{"$f":"SUMIFS(raw_transmission_costs!$H:$H,raw_transmission_costs!$B:$B,$C777,raw_transmission_costs!$A:$A,U$615)","v":0},{"$f":"SUMIFS(raw_transmission_costs!$H:$H,raw_transmission_costs!$B:$B,$C777,raw_transmission_costs!$A:$A,V$615)","v":0},{"$f":"SUMIFS(raw_transmission_costs!$H:$H,raw_transmission_costs!$B:$B,$C777,raw_transmission_costs!$A:$A,W$615)","v":0},{"$f":"SUMIFS(raw_transmission_costs!$H:$H,raw_transmission_costs!$B:$B,$C777,raw_transmission_costs!$A:$A,X$615)","v":0},{"$f":"SUMIFS(raw_transmission_costs!$H:$H,raw_transmission_costs!$B:$B,$C777,raw_transmission_costs!$A:$A,Y$615)","v":0},{"$f":"SUMIFS(raw_transmission_costs!$H:$H,raw_transmission_costs!$B:$B,$C777,raw_transmission_costs!$A:$A,Z$615)","v":0},{"$f":"SUMIFS(raw_transmission_costs!$H:$H,raw_transmission_costs!$B:$B,$C777,raw_transmission_costs!$A:$A,AA$615)","v":0},{"$f":"SUMIFS(raw_transmission_costs!$H:$H,raw_transmission_costs!$B:$B,$C777,raw_transmission_costs!$A:$A,AB$615)","v":0},{"$f":"SUMIFS(raw_transmission_costs!$H:$H,raw_transmission_costs!$B:$B,$C777,raw_transmission_costs!$A:$A,AC$615)","v":0},{"$f":"SUMIFS(raw_transmission_costs!$H:$H,raw_transmission_costs!$B:$B,$C777,raw_transmission_costs!$A:$A,AD$615)","v":0},{"$f":"SUMIFS(raw_transmission_costs!$H:$H,raw_transmission_costs!$B:$B,$C777,raw_transmission_costs!$A:$A,AE$615)","v":0},{"$f":"SUMIFS(raw_transmission_costs!$H:$H,raw_transmission_costs!$B:$B,$C777,raw_transmission_costs!$A:$A,AF$615)","v":0},{"$f":"SUMIFS(raw_transmission_costs!$H:$H,raw_transmission_costs!$B:$B,$C777,raw_transmission_costs!$A:$A,AG$615)","v":0},{"$f":"SUMIFS(raw_transmission_costs!$H:$H,raw_transmission_costs!$B:$B,$C777,raw_transmission_costs!$A:$A,AH$615)","v":0},{"$f":"SUMIFS(raw_transmission_costs!$H:$H,raw_transmission_costs!$B:$B,$C777,raw_transmission_costs!$A:$A,AI$615)","v":800},{"$f":"SUMIFS(raw_transmission_costs!$H:$H,raw_transmission_costs!$B:$B,$C777,raw_transmission_costs!$A:$A,AJ$615)","v":0},{"$f":"SUMIFS(raw_transmission_costs!$H:$H,raw_transmission_costs!$B:$B,$C777,raw_transmission_costs!$A:$A,AK$615)","v":0},{"$f":"SUMIFS(raw_transmission_costs!$H:$H,raw_transmission_costs!$B:$B,$C777,raw_transmission_costs!$A:$A,AL$615)","v":0},{"$f":"SUMIFS(raw_transmission_costs!$H:$H,raw_transmission_costs!$B:$B,$C777,raw_transmission_costs!$A:$A,AM$615)","v":0},{"$f":"SUMIFS(raw_transmission_costs!$H:$H,raw_transmission_costs!$B:$B,$C777,raw_transmission_costs!$A:$A,AN$615)","v":0}]
[null,null,"Northern_California_Ex","MW",{"$f":"SUMIFS(raw_transmission_costs!$H:$H,raw_transmission_costs!$B:$B,$C778,raw_transmission_costs!$A:$A,E$615)","v":0},{"$f":"SUMIFS(raw_transmission_costs!$H:$H,raw_transmission_costs!$B:$B,$C778,raw_transmission_costs!$A:$A,F$615)","v":0},{"$f":"SUMIFS(raw_transmission_costs!$H:$H,raw_transmission_costs!$B:$B,$C778,raw_transmission_costs!$A:$A,G$615)","v":0},{"$f":"SUMIFS(raw_transmission_costs!$H:$H,raw_transmission_costs!$B:$B,$C778,raw_transmission_costs!$A:$A,H$615)","v":0},{"$f":"SUMIFS(raw_transmission_costs!$H:$H,raw_transmission_costs!$B:$B,$C778,raw_transmission_costs!$A:$A,I$615)","v":0},{"$f":"SUMIFS(raw_transmission_costs!$H:$H,raw_transmission_costs!$B:$B,$C778,raw_transmission_costs!$A:$A,J$615)","v":0},{"$f":"SUMIFS(raw_transmission_costs!$H:$H,raw_transmission_costs!$B:$B,$C778,raw_transmission_costs!$A:$A,K$615)","v":0},{"$f":"SUMIFS(raw_transmission_costs!$H:$H,raw_transmission_costs!$B:$B,$C778,raw_transmission_costs!$A:$A,L$615)","v":0},{"$f":"SUMIFS(raw_transmission_costs!$H:$H,raw_transmission_costs!$B:$B,$C778,raw_transmission_costs!$A:$A,M$615)","v":0},{"$f":"SUMIFS(raw_transmission_costs!$H:$H,raw_transmission_costs!$B:$B,$C778,raw_transmission_costs!$A:$A,N$615)","v":0},{"$f":"SUMIFS(raw_transmission_costs!$H:$H,raw_transmission_costs!$B:$B,$C778,raw_transmission_costs!$A:$A,O$615)","v":0},{"$f":"SUMIFS(raw_transmission_costs!$H:$H,raw_transmission_costs!$B:$B,$C778,raw_transmission_costs!$A:$A,P$615)","v":0},{"$f":"SUMIFS(raw_transmission_costs!$H:$H,raw_transmission_costs!$B:$B,$C778,raw_transmission_costs!$A:$A,Q$615)","v":0},{"$f":"SUMIFS(raw_transmission_costs!$H:$H,raw_transmission_costs!$B:$B,$C778,raw_transmission_costs!$A:$A,R$615)","v":0},{"$f":"SUMIFS(raw_transmission_costs!$H:$H,raw_transmission_costs!$B:$B,$C778,raw_transmission_costs!$A:$A,S$615)","v":0},{"$f":"SUMIFS(raw_transmission_costs!$H:$H,raw_transmission_costs!$B:$B,$C778,raw_transmission_costs!$A:$A,T$615)","v":0},{"$f":"SUMIFS(raw_transmission_costs!$H:$H,raw_transmission_costs!$B:$B,$C778,raw_transmission_costs!$A:$A,U$615)","v":0},{"$f":"SUMIFS(raw_transmission_costs!$H:$H,raw_transmission_costs!$B:$B,$C778,raw_transmission_costs!$A:$A,V$615)","v":0},{"$f":"SUMIFS(raw_transmission_costs!$H:$H,raw_transmission_costs!$B:$B,$C778,raw_transmission_costs!$A:$A,W$615)","v":0},{"$f":"SUMIFS(raw_transmission_costs!$H:$H,raw_transmission_costs!$B:$B,$C778,raw_transmission_costs!$A:$A,X$615)","v":0},{"$f":"SUMIFS(raw_transmission_costs!$H:$H,raw_transmission_costs!$B:$B,$C778,raw_transmission_costs!$A:$A,Y$615)","v":0},{"$f":"SUMIFS(raw_transmission_costs!$H:$H,raw_transmission_costs!$B:$B,$C778,raw_transmission_costs!$A:$A,Z$615)","v":0},{"$f":"SUMIFS(raw_transmission_costs!$H:$H,raw_transmission_costs!$B:$B,$C778,raw_transmission_costs!$A:$A,AA$615)","v":0},{"$f":"SUMIFS(raw_transmission_costs!$H:$H,raw_transmission_costs!$B:$B,$C778,raw_transmission_costs!$A:$A,AB$615)","v":0},{"$f":"SUMIFS(raw_transmission_costs!$H:$H,raw_transmission_costs!$B:$B,$C778,raw_transmission_costs!$A:$A,AC$615)","v":0},{"$f":"SUMIFS(raw_transmission_costs!$H:$H,raw_transmission_costs!$B:$B,$C778,raw_transmission_costs!$A:$A,AD$615)","v":0},{"$f":"SUMIFS(raw_transmission_costs!$H:$H,raw_transmission_costs!$B:$B,$C778,raw_transmission_costs!$A:$A,AE$615)","v":0},{"$f":"SUMIFS(raw_transmission_costs!$H:$H,raw_transmission_costs!$B:$B,$C778,raw_transmission_costs!$A:$A,AF$615)","v":0},{"$f":"SUMIFS(raw_transmission_costs!$H:$H,raw_transmission_costs!$B:$B,$C778,raw_transmission_costs!$A:$A,AG$615)","v":0},{"$f":"SUMIFS(raw_transmission_costs!$H:$H,raw_transmission_costs!$B:$B,$C778,raw_transmission_costs!$A:$A,AH$615)","v":0},{"$f":"SUMIFS(raw_transmission_costs!$H:$H,raw_transmission_costs!$B:$B,$C778,raw_transmission_costs!$A:$A,AI$615)","v":0},{"$f":"SUMIFS(raw_transmission_costs!$H:$H,raw_transmission_costs!$B:$B,$C778,raw_transmission_costs!$A:$A,AJ$615)","v":0},{"$f":"SUMIFS(raw_transmission_costs!$H:$H,raw_transmission_costs!$B:$B,$C778,raw_transmission_costs!$A:$A,AK$615)","v":0},{"$f":"SUMIFS(raw_transmission_costs!$H:$H,raw_transmission_costs!$B:$B,$C778,raw_transmission_costs!$A:$A,AL$615)","v":0},{"$f":"SUMIFS(raw_transmission_costs!$H:$H,raw_transmission_costs!$B:$B,$C778,raw_transmission_costs!$A:$A,AM$615)","v":0},{"$f":"SUMIFS(raw_transmission_costs!$H:$H,raw_transmission_costs!$B:$B,$C778,raw_transmission_costs!$A:$A,AN$615)","v":0}]
[null,null,"Westlands_Ex","MW",{"$f":"SUMIFS(raw_transmission_costs!$H:$H,raw_transmission_costs!$B:$B,$C779,raw_transmission_costs!$A:$A,E$615)","v":0},{"$f":"SUMIFS(raw_transmission_costs!$H:$H,raw_transmission_costs!$B:$B,$C779,raw_transmission_costs!$A:$A,F$615)","v":0},{"$f":"SUMIFS(raw_transmission_costs!$H:$H,raw_transmission_costs!$B:$B,$C779,raw_transmission_costs!$A:$A,G$615)","v":0},{"$f":"SUMIFS(raw_transmission_costs!$H:$H,raw_transmission_costs!$B:$B,$C779,raw_transmission_costs!$A:$A,H$615)","v":0},{"$f":"SUMIFS(raw_transmission_costs!$H:$H,raw_transmission_costs!$B:$B,$C779,raw_transmission_costs!$A:$A,I$615)","v":0},{"$f":"SUMIFS(raw_transmission_costs!$H:$H,raw_transmission_costs!$B:$B,$C779,raw_transmission_costs!$A:$A,J$615)","v":0},{"$f":"SUMIFS(raw_transmission_costs!$H:$H,raw_transmission_costs!$B:$B,$C779,raw_transmission_costs!$A:$A,K$615)","v":0},{"$f":"SUMIFS(raw_transmission_costs!$H:$H,raw_transmission_costs!$B:$B,$C779,raw_transmission_costs!$A:$A,L$615)","v":0},{"$f":"SUMIFS(raw_transmission_costs!$H:$H,raw_transmission_costs!$B:$B,$C779,raw_transmission_costs!$A:$A,M$615)","v":0},{"$f":"SUMIFS(raw_transmission_costs!$H:$H,raw_transmission_costs!$B:$B,$C779,raw_transmission_costs!$A:$A,N$615)","v":0},{"$f":"SUMIFS(raw_transmission_costs!$H:$H,raw_transmission_costs!$B:$B,$C779,raw_transmission_costs!$A:$A,O$615)","v":0},{"$f":"SUMIFS(raw_transmission_costs!$H:$H,raw_transmission_costs!$B:$B,$C779,raw_transmission_costs!$A:$A,P$615)","v":0},{"$f":"SUMIFS(raw_transmission_costs!$H:$H,raw_transmission_costs!$B:$B,$C779,raw_transmission_costs!$A:$A,Q$615)","v":0},{"$f":"SUMIFS(raw_transmission_costs!$H:$H,raw_transmission_costs!$B:$B,$C779,raw_transmission_costs!$A:$A,R$615)","v":0},{"$f":"SUMIFS(raw_transmission_costs!$H:$H,raw_transmission_costs!$B:$B,$C779,raw_transmission_costs!$A:$A,S$615)","v":0},{"$f":"SUMIFS(raw_transmission_costs!$H:$H,raw_transmission_costs!$B:$B,$C779,raw_transmission_costs!$A:$A,T$615)","v":0},{"$f":"SUMIFS(raw_transmission_costs!$H:$H,raw_transmission_costs!$B:$B,$C779,raw_transmission_costs!$A:$A,U$615)","v":0},{"$f":"SUMIFS(raw_transmission_costs!$H:$H,raw_transmission_costs!$B:$B,$C779,raw_transmission_costs!$A:$A,V$615)","v":0},{"$f":"SUMIFS(raw_transmission_costs!$H:$H,raw_transmission_costs!$B:$B,$C779,raw_transmission_costs!$A:$A,W$615)","v":0},{"$f":"SUMIFS(raw_transmission_costs!$H:$H,raw_transmission_costs!$B:$B,$C779,raw_transmission_costs!$A:$A,X$615)","v":0},{"$f":"SUMIFS(raw_transmission_costs!$H:$H,raw_transmission_costs!$B:$B,$C779,raw_transmission_costs!$A:$A,Y$615)","v":0},{"$f":"SUMIFS(raw_transmission_costs!$H:$H,raw_transmission_costs!$B:$B,$C779,raw_transmission_costs!$A:$A,Z$615)","v":0},{"$f":"SUMIFS(raw_transmission_costs!$H:$H,raw_transmission_costs!$B:$B,$C779,raw_transmission_costs!$A:$A,AA$615)","v":0},{"$f":"SUMIFS(raw_transmission_costs!$H:$H,raw_transmission_costs!$B:$B,$C779,raw_transmission_costs!$A:$A,AB$615)","v":0},{"$f":"SUMIFS(raw_transmission_costs!$H:$H,raw_transmission_costs!$B:$B,$C779,raw_transmission_costs!$A:$A,AC$615)","v":0},{"$f":"SUMIFS(raw_transmission_costs!$H:$H,raw_transmission_costs!$B:$B,$C779,raw_transmission_costs!$A:$A,AD$615)","v":0},{"$f":"SUMIFS(raw_transmission_costs!$H:$H,raw_transmission_costs!$B:$B,$C779,raw_transmission_costs!$A:$A,AE$615)","v":0},{"$f":"SUMIFS(raw_transmission_costs!$H:$H,raw_transmission_costs!$B:$B,$C779,raw_transmission_costs!$A:$A,AF$615)","v":0},{"$f":"SUMIFS(raw_transmission_costs!$H:$H,raw_transmission_costs!$B:$B,$C779,raw_transmission_costs!$A:$A,AG$615)","v":0},{"$f":"SUMIFS(raw_transmission_costs!$H:$H,raw_transmission_costs!$B:$B,$C779,raw_transmission_costs!$A:$A,AH$615)","v":0},{"$f":"SUMIFS(raw_transmission_costs!$H:$H,raw_transmission_costs!$B:$B,$C779,raw_transmission_costs!$A:$A,AI$615)","v":0},{"$f":"SUMIFS(raw_transmission_costs!$H:$H,raw_transmission_costs!$B:$B,$C779,raw_transmission_costs!$A:$A,AJ$615)","v":0},{"$f":"SUMIFS(raw_transmission_costs!$H:$H,raw_transmission_costs!$B:$B,$C779,raw_transmission_costs!$A:$A,AK$615)","v":0},{"$f":"SUMIFS(raw_transmission_costs!$H:$H,raw_transmission_costs!$B:$B,$C779,raw_transmission_costs!$A:$A,AL$615)","v":0},{"$f":"SUMIFS(raw_transmission_costs!$H:$H,raw_transmission_costs!$B:$B,$C779,raw_transmission_costs!$A:$A,AM$615)","v":0},{"$f":"SUMIFS(raw_transmission_costs!$H:$H,raw_transmission_costs!$B:$B,$C779,raw_transmission_costs!$A:$A,AN$615)","v":0}]
[null,null,"Tehachapi_Ex","MW",{"$f":"SUMIFS(raw_transmission_costs!$H:$H,raw_transmission_costs!$B:$B,$C780,raw_transmission_costs!$A:$A,E$615)","v":0},{"$f":"SUMIFS(raw_transmission_costs!$H:$H,raw_transmission_costs!$B:$B,$C780,raw_transmission_costs!$A:$A,F$615)","v":0},{"$f":"SUMIFS(raw_transmission_costs!$H:$H,raw_transmission_costs!$B:$B,$C780,raw_transmission_costs!$A:$A,G$615)","v":0},{"$f":"SUMIFS(raw_transmission_costs!$H:$H,raw_transmission_costs!$B:$B,$C780,raw_transmission_costs!$A:$A,H$615)","v":0},{"$f":"SUMIFS(raw_transmission_costs!$H:$H,raw_transmission_costs!$B:$B,$C780,raw_transmission_costs!$A:$A,I$615)","v":0},{"$f":"SUMIFS(raw_transmission_costs!$H:$H,raw_transmission_costs!$B:$B,$C780,raw_transmission_costs!$A:$A,J$615)","v":0},{"$f":"SUMIFS(raw_transmission_costs!$H:$H,raw_transmission_costs!$B:$B,$C780,raw_transmission_costs!$A:$A,K$615)","v":0},{"$f":"SUMIFS(raw_transmission_costs!$H:$H,raw_transmission_costs!$B:$B,$C780,raw_transmission_costs!$A:$A,L$615)","v":0},{"$f":"SUMIFS(raw_transmission_costs!$H:$H,raw_transmission_costs!$B:$B,$C780,raw_transmission_costs!$A:$A,M$615)","v":0},{"$f":"SUMIFS(raw_transmission_costs!$H:$H,raw_transmission_costs!$B:$B,$C780,raw_transmission_costs!$A:$A,N$615)","v":0},{"$f":"SUMIFS(raw_transmission_costs!$H:$H,raw_transmission_costs!$B:$B,$C780,raw_transmission_costs!$A:$A,O$615)","v":0},{"$f":"SUMIFS(raw_transmission_costs!$H:$H,raw_transmission_costs!$B:$B,$C780,raw_transmission_costs!$A:$A,P$615)","v":0},{"$f":"SUMIFS(raw_transmission_costs!$H:$H,raw_transmission_costs!$B:$B,$C780,raw_transmission_costs!$A:$A,Q$615)","v":0},{"$f":"SUMIFS(raw_transmission_costs!$H:$H,raw_transmission_costs!$B:$B,$C780,raw_transmission_costs!$A:$A,R$615)","v":0},{"$f":"SUMIFS(raw_transmission_costs!$H:$H,raw_transmission_costs!$B:$B,$C780,raw_transmission_costs!$A:$A,S$615)","v":0},{"$f":"SUMIFS(raw_transmission_costs!$H:$H,raw_transmission_costs!$B:$B,$C780,raw_transmission_costs!$A:$A,T$615)","v":0},{"$f":"SUMIFS(raw_transmission_costs!$H:$H,raw_transmission_costs!$B:$B,$C780,raw_transmission_costs!$A:$A,U$615)","v":0},{"$f":"SUMIFS(raw_transmission_costs!$H:$H,raw_transmission_costs!$B:$B,$C780,raw_transmission_costs!$A:$A,V$615)","v":0},{"$f":"SUMIFS(raw_transmission_costs!$H:$H,raw_transmission_costs!$B:$B,$C780,raw_transmission_costs!$A:$A,W$615)","v":0},{"$f":"SUMIFS(raw_transmission_costs!$H:$H,raw_transmission_costs!$B:$B,$C780,raw_transmission_costs!$A:$A,X$615)","v":0},{"$f":"SUMIFS(raw_transmission_costs!$H:$H,raw_transmission_costs!$B:$B,$C780,raw_transmission_costs!$A:$A,Y$615)","v":0},{"$f":"SUMIFS(raw_transmission_costs!$H:$H,raw_transmission_costs!$B:$B,$C780,raw_transmission_costs!$A:$A,Z$615)","v":0},{"$f":"SUMIFS(raw_transmission_costs!$H:$H,raw_transmission_costs!$B:$B,$C780,raw_transmission_costs!$A:$A,AA$615)","v":0},{"$f":"SUMIFS(raw_transmission_costs!$H:$H,raw_transmission_costs!$B:$B,$C780,raw_transmission_costs!$A:$A,AB$615)","v":0},{"$f":"SUMIFS(raw_transmission_costs!$H:$H,raw_transmission_costs!$B:$B,$C780,raw_transmission_costs!$A:$A,AC$615)","v":0},{"$f":"SUMIFS(raw_transmission_costs!$H:$H,raw_transmission_costs!$B:$B,$C780,raw_transmission_costs!$A:$A,AD$615)","v":0},{"$f":"SUMIFS(raw_transmission_costs!$H:$H,raw_transmission_costs!$B:$B,$C780,raw_transmission_costs!$A:$A,AE$615)","v":0},{"$f":"SUMIFS(raw_transmission_costs!$H:$H,raw_transmission_costs!$B:$B,$C780,raw_transmission_costs!$A:$A,AF$615)","v":0},{"$f":"SUMIFS(raw_transmission_costs!$H:$H,raw_transmission_costs!$B:$B,$C780,raw_transmission_costs!$A:$A,AG$615)","v":0},{"$f":"SUMIFS(raw_transmission_costs!$H:$H,raw_transmission_costs!$B:$B,$C780,raw_transmission_costs!$A:$A,AH$615)","v":0},{"$f":"SUMIFS(raw_transmission_costs!$H:$H,raw_transmission_costs!$B:$B,$C780,raw_transmission_costs!$A:$A,AI$615)","v":0},{"$f":"SUMIFS(raw_transmission_costs!$H:$H,raw_transmission_costs!$B:$B,$C780,raw_transmission_costs!$A:$A,AJ$615)","v":0},{"$f":"SUMIFS(raw_transmission_costs!$H:$H,raw_transmission_costs!$B:$B,$C780,raw_transmission_costs!$A:$A,AK$615)","v":0},{"$f":"SUMIFS(raw_transmission_costs!$H:$H,raw_transmission_costs!$B:$B,$C780,raw_transmission_costs!$A:$A,AL$615)","v":0},{"$f":"SUMIFS(raw_transmission_costs!$H:$H,raw_transmission_costs!$B:$B,$C780,raw_transmission_costs!$A:$A,AM$615)","v":0},{"$f":"SUMIFS(raw_transmission_costs!$H:$H,raw_transmission_costs!$B:$B,$C780,raw_transmission_costs!$A:$A,AN$615)","v":0}]
[null,null,"Kramer_Inyokern_Ex","MW",{"$f":"SUMIFS(raw_transmission_costs!$H:$H,raw_transmission_costs!$B:$B,$C781,raw_transmission_costs!$A:$A,E$615)","v":0},{"$f":"SUMIFS(raw_transmission_costs!$H:$H,raw_transmission_costs!$B:$B,$C781,raw_transmission_costs!$A:$A,F$615)","v":0},{"$f":"SUMIFS(raw_transmission_costs!$H:$H,raw_transmission_costs!$B:$B,$C781,raw_transmission_costs!$A:$A,G$615)","v":0},{"$f":"SUMIFS(raw_transmission_costs!$H:$H,raw_transmission_costs!$B:$B,$C781,raw_transmission_costs!$A:$A,H$615)","v":0},{"$f":"SUMIFS(raw_transmission_costs!$H:$H,raw_transmission_costs!$B:$B,$C781,raw_transmission_costs!$A:$A,I$615)","v":0},{"$f":"SUMIFS(raw_transmission_costs!$H:$H,raw_transmission_costs!$B:$B,$C781,raw_transmission_costs!$A:$A,J$615)","v":0},{"$f":"SUMIFS(raw_transmission_costs!$H:$H,raw_transmission_costs!$B:$B,$C781,raw_transmission_costs!$A:$A,K$615)","v":0},{"$f":"SUMIFS(raw_transmission_costs!$H:$H,raw_transmission_costs!$B:$B,$C781,raw_transmission_costs!$A:$A,L$615)","v":0},{"$f":"SUMIFS(raw_transmission_costs!$H:$H,raw_transmission_costs!$B:$B,$C781,raw_transmission_costs!$A:$A,M$615)","v":0},{"$f":"SUMIFS(raw_transmission_costs!$H:$H,raw_transmission_costs!$B:$B,$C781,raw_transmission_costs!$A:$A,N$615)","v":0},{"$f":"SUMIFS(raw_transmission_costs!$H:$H,raw_transmission_costs!$B:$B,$C781,raw_transmission_costs!$A:$A,O$615)","v":0},{"$f":"SUMIFS(raw_transmission_costs!$H:$H,raw_transmission_costs!$B:$B,$C781,raw_transmission_costs!$A:$A,P$615)","v":0},{"$f":"SUMIFS(raw_transmission_costs!$H:$H,raw_transmission_costs!$B:$B,$C781,raw_transmission_costs!$A:$A,Q$615)","v":0},{"$f":"SUMIFS(raw_transmission_costs!$H:$H,raw_transmission_costs!$B:$B,$C781,raw_transmission_costs!$A:$A,R$615)","v":0},{"$f":"SUMIFS(raw_transmission_costs!$H:$H,raw_transmission_costs!$B:$B,$C781,raw_transmission_costs!$A:$A,S$615)","v":0},{"$f":"SUMIFS(raw_transmission_costs!$H:$H,raw_transmission_costs!$B:$B,$C781,raw_transmission_costs!$A:$A,T$615)","v":0},{"$f":"SUMIFS(raw_transmission_costs!$H:$H,raw_transmission_costs!$B:$B,$C781,raw_transmission_costs!$A:$A,U$615)","v":0},{"$f":"SUMIFS(raw_transmission_costs!$H:$H,raw_transmission_costs!$B:$B,$C781,raw_transmission_costs!$A:$A,V$615)","v":0},{"$f":"SUMIFS(raw_transmission_costs!$H:$H,raw_transmission_costs!$B:$B,$C781,raw_transmission_costs!$A:$A,W$615)","v":0},{"$f":"SUMIFS(raw_transmission_costs!$H:$H,raw_transmission_costs!$B:$B,$C781,raw_transmission_costs!$A:$A,X$615)","v":0},{"$f":"SUMIFS(raw_transmission_costs!$H:$H,raw_transmission_costs!$B:$B,$C781,raw_transmission_costs!$A:$A,Y$615)","v":0},{"$f":"SUMIFS(raw_transmission_costs!$H:$H,raw_transmission_costs!$B:$B,$C781,raw_transmission_costs!$A:$A,Z$615)","v":0},{"$f":"SUMIFS(raw_transmission_costs!$H:$H,raw_transmission_costs!$B:$B,$C781,raw_transmission_costs!$A:$A,AA$615)","v":0},{"$f":"SUMIFS(raw_transmission_costs!$H:$H,raw_transmission_costs!$B:$B,$C781,raw_transmission_costs!$A:$A,AB$615)","v":0},{"$f":"SUMIFS(raw_transmission_costs!$H:$H,raw_transmission_costs!$B:$B,$C781,raw_transmission_costs!$A:$A,AC$615)","v":0},{"$f":"SUMIFS(raw_transmission_costs!$H:$H,raw_transmission_costs!$B:$B,$C781,raw_transmission_costs!$A:$A,AD$615)","v":0},{"$f":"SUMIFS(raw_transmission_costs!$H:$H,raw_transmission_costs!$B:$B,$C781,raw_transmission_costs!$A:$A,AE$615)","v":0},{"$f":"SUMIFS(raw_transmission_costs!$H:$H,raw_transmission_costs!$B:$B,$C781,raw_transmission_costs!$A:$A,AF$615)","v":0},{"$f":"SUMIFS(raw_transmission_costs!$H:$H,raw_transmission_costs!$B:$B,$C781,raw_transmission_costs!$A:$A,AG$615)","v":0},{"$f":"SUMIFS(raw_transmission_costs!$H:$H,raw_transmission_costs!$B:$B,$C781,raw_transmission_costs!$A:$A,AH$615)","v":0},{"$f":"SUMIFS(raw_transmission_costs!$H:$H,raw_transmission_costs!$B:$B,$C781,raw_transmission_costs!$A:$A,AI$615)","v":0},{"$f":"SUMIFS(raw_transmission_costs!$H:$H,raw_transmission_costs!$B:$B,$C781,raw_transmission_costs!$A:$A,AJ$615)","v":0},{"$f":"SUMIFS(raw_transmission_costs!$H:$H,raw_transmission_costs!$B:$B,$C781,raw_transmission_costs!$A:$A,AK$615)","v":0},{"$f":"SUMIFS(raw_transmission_costs!$H:$H,raw_transmission_costs!$B:$B,$C781,raw_transmission_costs!$A:$A,AL$615)","v":0},{"$f":"SUMIFS(raw_transmission_costs!$H:$H,raw_transmission_costs!$B:$B,$C781,raw_transmission_costs!$A:$A,AM$615)","v":0},{"$f":"SUMIFS(raw_transmission_costs!$H:$H,raw_transmission_costs!$B:$B,$C781,raw_transmission_costs!$A:$A,AN$615)","v":0}]
[null,null,"Southern_California_Desert_Ex","MW",{"$f":"SUMIFS(raw_transmission_costs!$H:$H,raw_transmission_costs!$B:$B,$C782,raw_transmission_costs!$A:$A,E$615)","v":0},{"$f":"SUMIFS(raw_transmission_costs!$H:$H,raw_transmission_costs!$B:$B,$C782,raw_transmission_costs!$A:$A,F$615)","v":0},{"$f":"SUMIFS(raw_transmission_costs!$H:$H,raw_transmission_costs!$B:$B,$C782,raw_transmission_costs!$A:$A,G$615)","v":0},{"$f":"SUMIFS(raw_transmission_costs!$H:$H,raw_transmission_costs!$B:$B,$C782,raw_transmission_costs!$A:$A,H$615)","v":0},{"$f":"SUMIFS(raw_transmission_costs!$H:$H,raw_transmission_costs!$B:$B,$C782,raw_transmission_costs!$A:$A,I$615)","v":0},{"$f":"SUMIFS(raw_transmission_costs!$H:$H,raw_transmission_costs!$B:$B,$C782,raw_transmission_costs!$A:$A,J$615)","v":0},{"$f":"SUMIFS(raw_transmission_costs!$H:$H,raw_transmission_costs!$B:$B,$C782,raw_transmission_costs!$A:$A,K$615)","v":0},{"$f":"SUMIFS(raw_transmission_costs!$H:$H,raw_transmission_costs!$B:$B,$C782,raw_transmission_costs!$A:$A,L$615)","v":0},{"$f":"SUMIFS(raw_transmission_costs!$H:$H,raw_transmission_costs!$B:$B,$C782,raw_transmission_costs!$A:$A,M$615)","v":0},{"$f":"SUMIFS(raw_transmission_costs!$H:$H,raw_transmission_costs!$B:$B,$C782,raw_transmission_costs!$A:$A,N$615)","v":0},{"$f":"SUMIFS(raw_transmission_costs!$H:$H,raw_transmission_costs!$B:$B,$C782,raw_transmission_costs!$A:$A,O$615)","v":0},{"$f":"SUMIFS(raw_transmission_costs!$H:$H,raw_transmission_costs!$B:$B,$C782,raw_transmission_costs!$A:$A,P$615)","v":0},{"$f":"SUMIFS(raw_transmission_costs!$H:$H,raw_transmission_costs!$B:$B,$C782,raw_transmission_costs!$A:$A,Q$615)","v":0},{"$f":"SUMIFS(raw_transmission_costs!$H:$H,raw_transmission_costs!$B:$B,$C782,raw_transmission_costs!$A:$A,R$615)","v":0},{"$f":"SUMIFS(raw_transmission_costs!$H:$H,raw_transmission_costs!$B:$B,$C782,raw_transmission_costs!$A:$A,S$615)","v":0},{"$f":"SUMIFS(raw_transmission_costs!$H:$H,raw_transmission_costs!$B:$B,$C782,raw_transmission_costs!$A:$A,T$615)","v":0},{"$f":"SUMIFS(raw_transmission_costs!$H:$H,raw_transmission_costs!$B:$B,$C782,raw_transmission_costs!$A:$A,U$615)","v":0},{"$f":"SUMIFS(raw_transmission_costs!$H:$H,raw_transmission_costs!$B:$B,$C782,raw_transmission_costs!$A:$A,V$615)","v":0},{"$f":"SUMIFS(raw_transmission_costs!$H:$H,raw_transmission_costs!$B:$B,$C782,raw_transmission_costs!$A:$A,W$615)","v":0},{"$f":"SUMIFS(raw_transmission_costs!$H:$H,raw_transmission_costs!$B:$B,$C782,raw_transmission_costs!$A:$A,X$615)","v":0},{"$f":"SUMIFS(raw_transmission_costs!$H:$H,raw_transmission_costs!$B:$B,$C782,raw_transmission_costs!$A:$A,Y$615)","v":0},{"$f":"SUMIFS(raw_transmission_costs!$H:$H,raw_transmission_costs!$B:$B,$C782,raw_transmission_costs!$A:$A,Z$615)","v":0},{"$f":"SUMIFS(raw_transmission_costs!$H:$H,raw_transmission_costs!$B:$B,$C782,raw_transmission_costs!$A:$A,AA$615)","v":0},{"$f":"SUMIFS(raw_transmission_costs!$H:$H,raw_transmission_costs!$B:$B,$C782,raw_transmission_costs!$A:$A,AB$615)","v":0},{"$f":"SUMIFS(raw_transmission_costs!$H:$H,raw_transmission_costs!$B:$B,$C782,raw_transmission_costs!$A:$A,AC$615)","v":0},{"$f":"SUMIFS(raw_transmission_costs!$H:$H,raw_transmission_costs!$B:$B,$C782,raw_transmission_costs!$A:$A,AD$615)","v":0},{"$f":"SUMIFS(raw_transmission_costs!$H:$H,raw_transmission_costs!$B:$B,$C782,raw_transmission_costs!$A:$A,AE$615)","v":0},{"$f":"SUMIFS(raw_transmission_costs!$H:$H,raw_transmission_costs!$B:$B,$C782,raw_transmission_costs!$A:$A,AF$615)","v":0},{"$f":"SUMIFS(raw_transmission_costs!$H:$H,raw_transmission_costs!$B:$B,$C782,raw_transmission_costs!$A:$A,AG$615)","v":0},{"$f":"SUMIFS(raw_transmission_costs!$H:$H,raw_transmission_costs!$B:$B,$C782,raw_transmission_costs!$A:$A,AH$615)","v":0},{"$f":"SUMIFS(raw_transmission_costs!$H:$H,raw_transmission_costs!$B:$B,$C782,raw_transmission_costs!$A:$A,AI$615)","v":0},{"$f":"SUMIFS(raw_transmission_costs!$H:$H,raw_transmission_costs!$B:$B,$C782,raw_transmission_costs!$A:$A,AJ$615)","v":0},{"$f":"SUMIFS(raw_transmission_costs!$H:$H,raw_transmission_costs!$B:$B,$C782,raw_transmission_costs!$A:$A,AK$615)","v":0},{"$f":"SUMIFS(raw_transmission_costs!$H:$H,raw_transmission_costs!$B:$B,$C782,raw_transmission_costs!$A:$A,AL$615)","v":0},{"$f":"SUMIFS(raw_transmission_costs!$H:$H,raw_transmission_costs!$B:$B,$C782,raw_transmission_costs!$A:$A,AM$615)","v":0},{"$f":"SUMIFS(raw_transmission_costs!$H:$H,raw_transmission_costs!$B:$B,$C782,raw_transmission_costs!$A:$A,AN$615)","v":0}]
[null,null,"OffshoreWind_UnknownCost","MW",{"$f":"SUMIFS(raw_transmission_costs!$H:$H,raw_transmission_costs!$B:$B,$C783,raw_transmission_costs!$A:$A,E$615)","v":0},{"$f":"SUMIFS(raw_transmission_costs!$H:$H,raw_transmission_costs!$B:$B,$C783,raw_transmission_costs!$A:$A,F$615)","v":0},{"$f":"SUMIFS(raw_transmission_costs!$H:$H,raw_transmission_costs!$B:$B,$C783,raw_transmission_costs!$A:$A,G$615)","v":0},{"$f":"SUMIFS(raw_transmission_costs!$H:$H,raw_transmission_costs!$B:$B,$C783,raw_transmission_costs!$A:$A,H$615)","v":0},{"$f":"SUMIFS(raw_transmission_costs!$H:$H,raw_transmission_costs!$B:$B,$C783,raw_transmission_costs!$A:$A,I$615)","v":0},{"$f":"SUMIFS(raw_transmission_costs!$H:$H,raw_transmission_costs!$B:$B,$C783,raw_transmission_costs!$A:$A,J$615)","v":0},{"$f":"SUMIFS(raw_transmission_costs!$H:$H,raw_transmission_costs!$B:$B,$C783,raw_transmission_costs!$A:$A,K$615)","v":0},{"$f":"SUMIFS(raw_transmission_costs!$H:$H,raw_transmission_costs!$B:$B,$C783,raw_transmission_costs!$A:$A,L$615)","v":0},{"$f":"SUMIFS(raw_transmission_costs!$H:$H,raw_transmission_costs!$B:$B,$C783,raw_transmission_costs!$A:$A,M$615)","v":0},{"$f":"SUMIFS(raw_transmission_costs!$H:$H,raw_transmission_costs!$B:$B,$C783,raw_transmission_costs!$A:$A,N$615)","v":0},{"$f":"SUMIFS(raw_transmission_costs!$H:$H,raw_transmission_costs!$B:$B,$C783,raw_transmission_costs!$A:$A,O$615)","v":0},{"$f":"SUMIFS(raw_transmission_costs!$H:$H,raw_transmission_costs!$B:$B,$C783,raw_transmission_costs!$A:$A,P$615)","v":0},{"$f":"SUMIFS(raw_transmission_costs!$H:$H,raw_transmission_costs!$B:$B,$C783,raw_transmission_costs!$A:$A,Q$615)","v":0},{"$f":"SUMIFS(raw_transmission_costs!$H:$H,raw_transmission_costs!$B:$B,$C783,raw_transmission_costs!$A:$A,R$615)","v":0},{"$f":"SUMIFS(raw_transmission_costs!$H:$H,raw_transmission_costs!$B:$B,$C783,raw_transmission_costs!$A:$A,S$615)","v":0},{"$f":"SUMIFS(raw_transmission_costs!$H:$H,raw_transmission_costs!$B:$B,$C783,raw_transmission_costs!$A:$A,T$615)","v":0},{"$f":"SUMIFS(raw_transmission_costs!$H:$H,raw_transmission_costs!$B:$B,$C783,raw_transmission_costs!$A:$A,U$615)","v":0},{"$f":"SUMIFS(raw_transmission_costs!$H:$H,raw_transmission_costs!$B:$B,$C783,raw_transmission_costs!$A:$A,V$615)","v":0},{"$f":"SUMIFS(raw_transmission_costs!$H:$H,raw_transmission_costs!$B:$B,$C783,raw_transmission_costs!$A:$A,W$615)","v":0},{"$f":"SUMIFS(raw_transmission_costs!$H:$H,raw_transmission_costs!$B:$B,$C783,raw_transmission_costs!$A:$A,X$615)","v":0},{"$f":"SUMIFS(raw_transmission_costs!$H:$H,raw_transmission_costs!$B:$B,$C783,raw_transmission_costs!$A:$A,Y$615)","v":0},{"$f":"SUMIFS(raw_transmission_costs!$H:$H,raw_transmission_costs!$B:$B,$C783,raw_transmission_costs!$A:$A,Z$615)","v":0},{"$f":"SUMIFS(raw_transmission_costs!$H:$H,raw_transmission_costs!$B:$B,$C783,raw_transmission_costs!$A:$A,AA$615)","v":0},{"$f":"SUMIFS(raw_transmission_costs!$H:$H,raw_transmission_costs!$B:$B,$C783,raw_transmission_costs!$A:$A,AB$615)","v":0},{"$f":"SUMIFS(raw_transmission_costs!$H:$H,raw_transmission_costs!$B:$B,$C783,raw_transmission_costs!$A:$A,AC$615)","v":0},{"$f":"SUMIFS(raw_transmission_costs!$H:$H,raw_transmission_costs!$B:$B,$C783,raw_transmission_costs!$A:$A,AD$615)","v":0},{"$f":"SUMIFS(raw_transmission_costs!$H:$H,raw_transmission_costs!$B:$B,$C783,raw_transmission_costs!$A:$A,AE$615)","v":0},{"$f":"SUMIFS(raw_transmission_costs!$H:$H,raw_transmission_costs!$B:$B,$C783,raw_transmission_costs!$A:$A,AF$615)","v":0},{"$f":"SUMIFS(raw_transmission_costs!$H:$H,raw_transmission_costs!$B:$B,$C783,raw_transmission_costs!$A:$A,AG$615)","v":0},{"$f":"SUMIFS(raw_transmission_costs!$H:$H,raw_transmission_costs!$B:$B,$C783,raw_transmission_costs!$A:$A,AH$615)","v":0},{"$f":"SUMIFS(raw_transmission_costs!$H:$H,raw_transmission_costs!$B:$B,$C783,raw_transmission_costs!$A:$A,AI$615)","v":0},{"$f":"SUMIFS(raw_transmission_costs!$H:$H,raw_transmission_costs!$B:$B,$C783,raw_transmission_costs!$A:$A,AJ$615)","v":0},{"$f":"SUMIFS(raw_transmission_costs!$H:$H,raw_transmission_costs!$B:$B,$C783,raw_transmission_costs!$A:$A,AK$615)","v":0},{"$f":"SUMIFS(raw_transmission_costs!$H:$H,raw_transmission_costs!$B:$B,$C783,raw_transmission_costs!$A:$A,AL$615)","v":0},{"$f":"SUMIFS(raw_transmission_costs!$H:$H,raw_transmission_costs!$B:$B,$C783,raw_transmission_costs!$A:$A,AM$615)","v":0},{"$f":"SUMIFS(raw_transmission_costs!$H:$H,raw_transmission_costs!$B:$B,$C783,raw_transmission_costs!$A:$A,AN$615)","v":0}]
[null,null,"None","MW",{"$f":"SUMIFS(raw_transmission_costs!$H:$H,raw_transmission_costs!$B:$B,$C784,raw_transmission_costs!$A:$A,E$615)","v":0},{"$f":"SUMIFS(raw_transmission_costs!$H:$H,raw_transmission_costs!$B:$B,$C784,raw_transmission_costs!$A:$A,F$615)","v":0},{"$f":"SUMIFS(raw_transmission_costs!$H:$H,raw_transmission_costs!$B:$B,$C784,raw_transmission_costs!$A:$A,G$615)","v":0},{"$f":"SUMIFS(raw_transmission_costs!$H:$H,raw_transmission_costs!$B:$B,$C784,raw_transmission_costs!$A:$A,H$615)","v":0},{"$f":"SUMIFS(raw_transmission_costs!$H:$H,raw_transmission_costs!$B:$B,$C784,raw_transmission_costs!$A:$A,I$615)","v":0},{"$f":"SUMIFS(raw_transmission_costs!$H:$H,raw_transmission_costs!$B:$B,$C784,raw_transmission_costs!$A:$A,J$615)","v":0},{"$f":"SUMIFS(raw_transmission_costs!$H:$H,raw_transmission_costs!$B:$B,$C784,raw_transmission_costs!$A:$A,K$615)","v":0},{"$f":"SUMIFS(raw_transmission_costs!$H:$H,raw_transmission_costs!$B:$B,$C784,raw_transmission_costs!$A:$A,L$615)","v":0},{"$f":"SUMIFS(raw_transmission_costs!$H:$H,raw_transmission_costs!$B:$B,$C784,raw_transmission_costs!$A:$A,M$615)","v":0},{"$f":"SUMIFS(raw_transmission_costs!$H:$H,raw_transmission_costs!$B:$B,$C784,raw_transmission_costs!$A:$A,N$615)","v":0},{"$f":"SUMIFS(raw_transmission_costs!$H:$H,raw_transmission_costs!$B:$B,$C784,raw_transmission_costs!$A:$A,O$615)","v":0},{"$f":"SUMIFS(raw_transmission_costs!$H:$H,raw_transmission_costs!$B:$B,$C784,raw_transmission_costs!$A:$A,P$615)","v":0},{"$f":"SUMIFS(raw_transmission_costs!$H:$H,raw_transmission_costs!$B:$B,$C784,raw_transmission_costs!$A:$A,Q$615)","v":0},{"$f":"SUMIFS(raw_transmission_costs!$H:$H,raw_transmission_costs!$B:$B,$C784,raw_transmission_costs!$A:$A,R$615)","v":0},{"$f":"SUMIFS(raw_transmission_costs!$H:$H,raw_transmission_costs!$B:$B,$C784,raw_transmission_costs!$A:$A,S$615)","v":0},{"$f":"SUMIFS(raw_transmission_costs!$H:$H,raw_transmission_costs!$B:$B,$C784,raw_transmission_costs!$A:$A,T$615)","v":0},{"$f":"SUMIFS(raw_transmission_costs!$H:$H,raw_transmission_costs!$B:$B,$C784,raw_transmission_costs!$A:$A,U$615)","v":0},{"$f":"SUMIFS(raw_transmission_costs!$H:$H,raw_transmission_costs!$B:$B,$C784,raw_transmission_costs!$A:$A,V$615)","v":0},{"$f":"SUMIFS(raw_transmission_costs!$H:$H,raw_transmission_costs!$B:$B,$C784,raw_transmission_costs!$A:$A,W$615)","v":0},{"$f":"SUMIFS(raw_transmission_costs!$H:$H,raw_transmission_costs!$B:$B,$C784,raw_transmission_costs!$A:$A,X$615)","v":0},{"$f":"SUMIFS(raw_transmission_costs!$H:$H,raw_transmission_costs!$B:$B,$C784,raw_transmission_costs!$A:$A,Y$615)","v":0},{"$f":"SUMIFS(raw_transmission_costs!$H:$H,raw_transmission_costs!$B:$B,$C784,raw_transmission_costs!$A:$A,Z$615)","v":0},{"$f":"SUMIFS(raw_transmission_costs!$H:$H,raw_transmission_costs!$B:$B,$C784,raw_transmission_costs!$A:$A,AA$615)","v":0},{"$f":"SUMIFS(raw_transmission_costs!$H:$H,raw_transmission_costs!$B:$B,$C784,raw_transmission_costs!$A:$A,AB$615)","v":0},{"$f":"SUMIFS(raw_transmission_costs!$H:$H,raw_transmission_costs!$B:$B,$C784,raw_transmission_costs!$A:$A,AC$615)","v":0},{"$f":"SUMIFS(raw_transmission_costs!$H:$H,raw_transmission_costs!$B:$B,$C784,raw_transmission_costs!$A:$A,AD$615)","v":0},{"$f":"SUMIFS(raw_transmission_costs!$H:$H,raw_transmission_costs!$B:$B,$C784,raw_transmission_costs!$A:$A,AE$615)","v":0},{"$f":"SUMIFS(raw_transmission_costs!$H:$H,raw_transmission_costs!$B:$B,$C784,raw_transmission_costs!$A:$A,AF$615)","v":0},{"$f":"SUMIFS(raw_transmission_costs!$H:$H,raw_transmission_costs!$B:$B,$C784,raw_transmission_costs!$A:$A,AG$615)","v":0},{"$f":"SUMIFS(raw_transmission_costs!$H:$H,raw_transmission_costs!$B:$B,$C784,raw_transmission_costs!$A:$A,AH$615)","v":0},{"$f":"SUMIFS(raw_transmission_costs!$H:$H,raw_transmission_costs!$B:$B,$C784,raw_transmission_costs!$A:$A,AI$615)","v":0},{"$f":"SUMIFS(raw_transmission_costs!$H:$H,raw_transmission_costs!$B:$B,$C784,raw_transmission_costs!$A:$A,AJ$615)","v":0},{"$f":"SUMIFS(raw_transmission_costs!$H:$H,raw_transmission_costs!$B:$B,$C784,raw_transmission_costs!$A:$A,AK$615)","v":0},{"$f":"SUMIFS(raw_transmission_costs!$H:$H,raw_transmission_costs!$B:$B,$C784,raw_transmission_costs!$A:$A,AL$615)","v":0},{"$f":"SUMIFS(raw_transmission_costs!$H:$H,raw_transmission_costs!$B:$B,$C784,raw_transmission_costs!$A:$A,AM$615)","v":0},{"$f":"SUMIFS(raw_transmission_costs!$H:$H,raw_transmission_costs!$B:$B,$C784,raw_transmission_costs!$A:$A,AN$615)","v":0}]
[]
[null,null,"Utilization of Energy Only Transmission"]
[null,null,"Tx Zone","Unit",2015,2016,2017,2018,2019,2020,2021,2022,2023,2024,2025,2026,2027,2028,2029,2030,2031,2032,2033,2034,2035,2036,2037,2038,2039,2040,2041,2042,2043,2044,2045,2046,2047,2048,2049,2050]
[null,null,{"$f":"C616","v":"Greater_Kramer"},"MW",{"$f":"SUMIFS(raw_transmission_costs!$I:$I,raw_transmission_costs!$B:$B,$C788,raw_transmission_costs!$A:$A,E$615)","v":0},{"$f":"SUMIFS(raw_transmission_costs!$I:$I,raw_transmission_costs!$B:$B,$C788,raw_transmission_costs!$A:$A,F$615)","v":0},{"$f":"SUMIFS(raw_transmission_costs!$I:$I,raw_transmission_costs!$B:$B,$C788,raw_transmission_costs!$A:$A,G$615)","v":0},{"$f":"SUMIFS(raw_transmission_costs!$I:$I,raw_transmission_costs!$B:$B,$C788,raw_transmission_costs!$A:$A,H$615)","v":0},{"$f":"SUMIFS(raw_transmission_costs!$I:$I,raw_transmission_costs!$B:$B,$C788,raw_transmission_costs!$A:$A,I$615)","v":0},{"$f":"SUMIFS(raw_transmission_costs!$I:$I,raw_transmission_costs!$B:$B,$C788,raw_transmission_costs!$A:$A,J$615)","v":0},{"$f":"SUMIFS(raw_transmission_costs!$I:$I,raw_transmission_costs!$B:$B,$C788,raw_transmission_costs!$A:$A,K$615)","v":0},{"$f":"SUMIFS(raw_transmission_costs!$I:$I,raw_transmission_costs!$B:$B,$C788,raw_transmission_costs!$A:$A,L$615)","v":0},{"$f":"SUMIFS(raw_transmission_costs!$I:$I,raw_transmission_costs!$B:$B,$C788,raw_transmission_costs!$A:$A,M$615)","v":0},{"$f":"SUMIFS(raw_transmission_costs!$I:$I,raw_transmission_costs!$B:$B,$C788,raw_transmission_costs!$A:$A,N$615)","v":0},{"$f":"SUMIFS(raw_transmission_costs!$I:$I,raw_transmission_costs!$B:$B,$C788,raw_transmission_costs!$A:$A,O$615)","v":0},{"$f":"SUMIFS(raw_transmission_costs!$I:$I,raw_transmission_costs!$B:$B,$C788,raw_transmission_costs!$A:$A,P$615)","v":0},{"$f":"SUMIFS(raw_transmission_costs!$I:$I,raw_transmission_costs!$B:$B,$C788,raw_transmission_costs!$A:$A,Q$615)","v":0},{"$f":"SUMIFS(raw_transmission_costs!$I:$I,raw_transmission_costs!$B:$B,$C788,raw_transmission_costs!$A:$A,R$615)","v":0},{"$f":"SUMIFS(raw_transmission_costs!$I:$I,raw_transmission_costs!$B:$B,$C788,raw_transmission_costs!$A:$A,S$615)","v":0},{"$f":"SUMIFS(raw_transmission_costs!$I:$I,raw_transmission_costs!$B:$B,$C788,raw_transmission_costs!$A:$A,T$615)","v":0},{"$f":"SUMIFS(raw_transmission_costs!$I:$I,raw_transmission_costs!$B:$B,$C788,raw_transmission_costs!$A:$A,U$615)","v":0},{"$f":"SUMIFS(raw_transmission_costs!$I:$I,raw_transmission_costs!$B:$B,$C788,raw_transmission_costs!$A:$A,V$615)","v":0},{"$f":"SUMIFS(raw_transmission_costs!$I:$I,raw_transmission_costs!$B:$B,$C788,raw_transmission_costs!$A:$A,W$615)","v":0},{"$f":"SUMIFS(raw_transmission_costs!$I:$I,raw_transmission_costs!$B:$B,$C788,raw_transmission_costs!$A:$A,X$615)","v":0},{"$f":"SUMIFS(raw_transmission_costs!$I:$I,raw_transmission_costs!$B:$B,$C788,raw_transmission_costs!$A:$A,Y$615)","v":0},{"$f":"SUMIFS(raw_transmission_costs!$I:$I,raw_transmission_costs!$B:$B,$C788,raw_transmission_costs!$A:$A,Z$615)","v":0},{"$f":"SUMIFS(raw_transmission_costs!$I:$I,raw_transmission_costs!$B:$B,$C788,raw_transmission_costs!$A:$A,AA$615)","v":0},{"$f":"SUMIFS(raw_transmission_costs!$I:$I,raw_transmission_costs!$B:$B,$C788,raw_transmission_costs!$A:$A,AB$615)","v":0},{"$f":"SUMIFS(raw_transmission_costs!$I:$I,raw_transmission_costs!$B:$B,$C788,raw_transmission_costs!$A:$A,AC$615)","v":0},{"$f":"SUMIFS(raw_transmission_costs!$I:$I,raw_transmission_costs!$B:$B,$C788,raw_transmission_costs!$A:$A,AD$615)","v":0},{"$f":"SUMIFS(raw_transmission_costs!$I:$I,raw_transmission_costs!$B:$B,$C788,raw_transmission_costs!$A:$A,AE$615)","v":0},{"$f":"SUMIFS(raw_transmission_costs!$I:$I,raw_transmission_costs!$B:$B,$C788,raw_transmission_costs!$A:$A,AF$615)","v":0},{"$f":"SUMIFS(raw_transmission_costs!$I:$I,raw_transmission_costs!$B:$B,$C788,raw_transmission_costs!$A:$A,AG$615)","v":0},{"$f":"SUMIFS(raw_transmission_costs!$I:$I,raw_transmission_costs!$B:$B,$C788,raw_transmission_costs!$A:$A,AH$615)","v":0},{"$f":"SUMIFS(raw_transmission_costs!$I:$I,raw_transmission_costs!$B:$B,$C788,raw_transmission_costs!$A:$A,AI$615)","v":0},{"$f":"SUMIFS(raw_transmission_costs!$I:$I,raw_transmission_costs!$B:$B,$C788,raw_transmission_costs!$A:$A,AJ$615)","v":0},{"$f":"SUMIFS(raw_transmission_costs!$I:$I,raw_transmission_costs!$B:$B,$C788,raw_transmission_costs!$A:$A,AK$615)","v":0},{"$f":"SUMIFS(raw_transmission_costs!$I:$I,raw_transmission_costs!$B:$B,$C788,raw_transmission_costs!$A:$A,AL$615)","v":0},{"$f":"SUMIFS(raw_transmission_costs!$I:$I,raw_transmission_costs!$B:$B,$C788,raw_transmission_costs!$A:$A,AM$615)","v":0},{"$f":"SUMIFS(raw_transmission_costs!$I:$I,raw_transmission_costs!$B:$B,$C788,raw_transmission_costs!$A:$A,AN$615)","v":0}]
[null,null,"Inyokern_North_Kramer","MW",{"$f":"SUMIFS(raw_transmission_costs!$I:$I,raw_transmission_costs!$B:$B,$C789,raw_transmission_costs!$A:$A,E$615)","v":0},{"$f":"SUMIFS(raw_transmission_costs!$I:$I,raw_transmission_costs!$B:$B,$C789,raw_transmission_costs!$A:$A,F$615)","v":0},{"$f":"SUMIFS(raw_transmission_costs!$I:$I,raw_transmission_costs!$B:$B,$C789,raw_transmission_costs!$A:$A,G$615)","v":0},{"$f":"SUMIFS(raw_transmission_costs!$I:$I,raw_transmission_costs!$B:$B,$C789,raw_transmission_costs!$A:$A,H$615)","v":0},{"$f":"SUMIFS(raw_transmission_costs!$I:$I,raw_transmission_costs!$B:$B,$C789,raw_transmission_costs!$A:$A,I$615)","v":0},{"$f":"SUMIFS(raw_transmission_costs!$I:$I,raw_transmission_costs!$B:$B,$C789,raw_transmission_costs!$A:$A,J$615)","v":0},{"$f":"SUMIFS(raw_transmission_costs!$I:$I,raw_transmission_costs!$B:$B,$C789,raw_transmission_costs!$A:$A,K$615)","v":0},{"$f":"SUMIFS(raw_transmission_costs!$I:$I,raw_transmission_costs!$B:$B,$C789,raw_transmission_costs!$A:$A,L$615)","v":0},{"$f":"SUMIFS(raw_transmission_costs!$I:$I,raw_transmission_costs!$B:$B,$C789,raw_transmission_costs!$A:$A,M$615)","v":0},{"$f":"SUMIFS(raw_transmission_costs!$I:$I,raw_transmission_costs!$B:$B,$C789,raw_transmission_costs!$A:$A,N$615)","v":0},{"$f":"SUMIFS(raw_transmission_costs!$I:$I,raw_transmission_costs!$B:$B,$C789,raw_transmission_costs!$A:$A,O$615)","v":0},{"$f":"SUMIFS(raw_transmission_costs!$I:$I,raw_transmission_costs!$B:$B,$C789,raw_transmission_costs!$A:$A,P$615)","v":0},{"$f":"SUMIFS(raw_transmission_costs!$I:$I,raw_transmission_costs!$B:$B,$C789,raw_transmission_costs!$A:$A,Q$615)","v":0},{"$f":"SUMIFS(raw_transmission_costs!$I:$I,raw_transmission_costs!$B:$B,$C789,raw_transmission_costs!$A:$A,R$615)","v":0},{"$f":"SUMIFS(raw_transmission_costs!$I:$I,raw_transmission_costs!$B:$B,$C789,raw_transmission_costs!$A:$A,S$615)","v":0},{"$f":"SUMIFS(raw_transmission_costs!$I:$I,raw_transmission_costs!$B:$B,$C789,raw_transmission_costs!$A:$A,T$615)","v":0},{"$f":"SUMIFS(raw_transmission_costs!$I:$I,raw_transmission_costs!$B:$B,$C789,raw_transmission_costs!$A:$A,U$615)","v":0},{"$f":"SUMIFS(raw_transmission_costs!$I:$I,raw_transmission_costs!$B:$B,$C789,raw_transmission_costs!$A:$A,V$615)","v":0},{"$f":"SUMIFS(raw_transmission_costs!$I:$I,raw_transmission_costs!$B:$B,$C789,raw_transmission_costs!$A:$A,W$615)","v":0},{"$f":"SUMIFS(raw_transmission_costs!$I:$I,raw_transmission_costs!$B:$B,$C789,raw_transmission_costs!$A:$A,X$615)","v":0},{"$f":"SUMIFS(raw_transmission_costs!$I:$I,raw_transmission_costs!$B:$B,$C789,raw_transmission_costs!$A:$A,Y$615)","v":0},{"$f":"SUMIFS(raw_transmission_costs!$I:$I,raw_transmission_costs!$B:$B,$C789,raw_transmission_costs!$A:$A,Z$615)","v":0},{"$f":"SUMIFS(raw_transmission_costs!$I:$I,raw_transmission_costs!$B:$B,$C789,raw_transmission_costs!$A:$A,AA$615)","v":0},{"$f":"SUMIFS(raw_transmission_costs!$I:$I,raw_transmission_costs!$B:$B,$C789,raw_transmission_costs!$A:$A,AB$615)","v":0},{"$f":"SUMIFS(raw_transmission_costs!$I:$I,raw_transmission_costs!$B:$B,$C789,raw_transmission_costs!$A:$A,AC$615)","v":0},{"$f":"SUMIFS(raw_transmission_costs!$I:$I,raw_transmission_costs!$B:$B,$C789,raw_transmission_costs!$A:$A,AD$615)","v":0},{"$f":"SUMIFS(raw_transmission_costs!$I:$I,raw_transmission_costs!$B:$B,$C789,raw_transmission_costs!$A:$A,AE$615)","v":0},{"$f":"SUMIFS(raw_transmission_costs!$I:$I,raw_transmission_costs!$B:$B,$C789,raw_transmission_costs!$A:$A,AF$615)","v":0},{"$f":"SUMIFS(raw_transmission_costs!$I:$I,raw_transmission_costs!$B:$B,$C789,raw_transmission_costs!$A:$A,AG$615)","v":0},{"$f":"SUMIFS(raw_transmission_costs!$I:$I,raw_transmission_costs!$B:$B,$C789,raw_transmission_costs!$A:$A,AH$615)","v":0},{"$f":"SUMIFS(raw_transmission_costs!$I:$I,raw_transmission_costs!$B:$B,$C789,raw_transmission_costs!$A:$A,AI$615)","v":0},{"$f":"SUMIFS(raw_transmission_costs!$I:$I,raw_transmission_costs!$B:$B,$C789,raw_transmission_costs!$A:$A,AJ$615)","v":0},{"$f":"SUMIFS(raw_transmission_costs!$I:$I,raw_transmission_costs!$B:$B,$C789,raw_transmission_costs!$A:$A,AK$615)","v":0},{"$f":"SUMIFS(raw_transmission_costs!$I:$I,raw_transmission_costs!$B:$B,$C789,raw_transmission_costs!$A:$A,AL$615)","v":0},{"$f":"SUMIFS(raw_transmission_costs!$I:$I,raw_transmission_costs!$B:$B,$C789,raw_transmission_costs!$A:$A,AM$615)","v":0},{"$f":"SUMIFS(raw_transmission_costs!$I:$I,raw_transmission_costs!$B:$B,$C789,raw_transmission_costs!$A:$A,AN$615)","v":0}]
[null,null,"North_Victor","MW",{"$f":"SUMIFS(raw_transmission_costs!$I:$I,raw_transmission_costs!$B:$B,$C790,raw_transmission_costs!$A:$A,E$615)","v":0},{"$f":"SUMIFS(raw_transmission_costs!$I:$I,raw_transmission_costs!$B:$B,$C790,raw_transmission_costs!$A:$A,F$615)","v":0},{"$f":"SUMIFS(raw_transmission_costs!$I:$I,raw_transmission_costs!$B:$B,$C790,raw_transmission_costs!$A:$A,G$615)","v":0},{"$f":"SUMIFS(raw_transmission_costs!$I:$I,raw_transmission_costs!$B:$B,$C790,raw_transmission_costs!$A:$A,H$615)","v":0},{"$f":"SUMIFS(raw_transmission_costs!$I:$I,raw_transmission_costs!$B:$B,$C790,raw_transmission_costs!$A:$A,I$615)","v":0},{"$f":"SUMIFS(raw_transmission_costs!$I:$I,raw_transmission_costs!$B:$B,$C790,raw_transmission_costs!$A:$A,J$615)","v":0},{"$f":"SUMIFS(raw_transmission_costs!$I:$I,raw_transmission_costs!$B:$B,$C790,raw_transmission_costs!$A:$A,K$615)","v":0},{"$f":"SUMIFS(raw_transmission_costs!$I:$I,raw_transmission_costs!$B:$B,$C790,raw_transmission_costs!$A:$A,L$615)","v":0},{"$f":"SUMIFS(raw_transmission_costs!$I:$I,raw_transmission_costs!$B:$B,$C790,raw_transmission_costs!$A:$A,M$615)","v":0},{"$f":"SUMIFS(raw_transmission_costs!$I:$I,raw_transmission_costs!$B:$B,$C790,raw_transmission_costs!$A:$A,N$615)","v":0},{"$f":"SUMIFS(raw_transmission_costs!$I:$I,raw_transmission_costs!$B:$B,$C790,raw_transmission_costs!$A:$A,O$615)","v":0},{"$f":"SUMIFS(raw_transmission_costs!$I:$I,raw_transmission_costs!$B:$B,$C790,raw_transmission_costs!$A:$A,P$615)","v":0},{"$f":"SUMIFS(raw_transmission_costs!$I:$I,raw_transmission_costs!$B:$B,$C790,raw_transmission_costs!$A:$A,Q$615)","v":0},{"$f":"SUMIFS(raw_transmission_costs!$I:$I,raw_transmission_costs!$B:$B,$C790,raw_transmission_costs!$A:$A,R$615)","v":0},{"$f":"SUMIFS(raw_transmission_costs!$I:$I,raw_transmission_costs!$B:$B,$C790,raw_transmission_costs!$A:$A,S$615)","v":0},{"$f":"SUMIFS(raw_transmission_costs!$I:$I,raw_transmission_costs!$B:$B,$C790,raw_transmission_costs!$A:$A,T$615)","v":0},{"$f":"SUMIFS(raw_transmission_costs!$I:$I,raw_transmission_costs!$B:$B,$C790,raw_transmission_costs!$A:$A,U$615)","v":0},{"$f":"SUMIFS(raw_transmission_costs!$I:$I,raw_transmission_costs!$B:$B,$C790,raw_transmission_costs!$A:$A,V$615)","v":0},{"$f":"SUMIFS(raw_transmission_costs!$I:$I,raw_transmission_costs!$B:$B,$C790,raw_transmission_costs!$A:$A,W$615)","v":0},{"$f":"SUMIFS(raw_transmission_costs!$I:$I,raw_transmission_costs!$B:$B,$C790,raw_transmission_costs!$A:$A,X$615)","v":0},{"$f":"SUMIFS(raw_transmission_costs!$I:$I,raw_transmission_costs!$B:$B,$C790,raw_transmission_costs!$A:$A,Y$615)","v":0},{"$f":"SUMIFS(raw_transmission_costs!$I:$I,raw_transmission_costs!$B:$B,$C790,raw_transmission_costs!$A:$A,Z$615)","v":0},{"$f":"SUMIFS(raw_transmission_costs!$I:$I,raw_transmission_costs!$B:$B,$C790,raw_transmission_costs!$A:$A,AA$615)","v":0},{"$f":"SUMIFS(raw_transmission_costs!$I:$I,raw_transmission_costs!$B:$B,$C790,raw_transmission_costs!$A:$A,AB$615)","v":0},{"$f":"SUMIFS(raw_transmission_costs!$I:$I,raw_transmission_costs!$B:$B,$C790,raw_transmission_costs!$A:$A,AC$615)","v":0},{"$f":"SUMIFS(raw_transmission_costs!$I:$I,raw_transmission_costs!$B:$B,$C790,raw_transmission_costs!$A:$A,AD$615)","v":0},{"$f":"SUMIFS(raw_transmission_costs!$I:$I,raw_transmission_costs!$B:$B,$C790,raw_transmission_costs!$A:$A,AE$615)","v":0},{"$f":"SUMIFS(raw_transmission_costs!$I:$I,raw_transmission_costs!$B:$B,$C790,raw_transmission_costs!$A:$A,AF$615)","v":0},{"$f":"SUMIFS(raw_transmission_costs!$I:$I,raw_transmission_costs!$B:$B,$C790,raw_transmission_costs!$A:$A,AG$615)","v":0},{"$f":"SUMIFS(raw_transmission_costs!$I:$I,raw_transmission_costs!$B:$B,$C790,raw_transmission_costs!$A:$A,AH$615)","v":0},{"$f":"SUMIFS(raw_transmission_costs!$I:$I,raw_transmission_costs!$B:$B,$C790,raw_transmission_costs!$A:$A,AI$615)","v":0},{"$f":"SUMIFS(raw_transmission_costs!$I:$I,raw_transmission_costs!$B:$B,$C790,raw_transmission_costs!$A:$A,AJ$615)","v":0},{"$f":"SUMIFS(raw_transmission_costs!$I:$I,raw_transmission_costs!$B:$B,$C790,raw_transmission_costs!$A:$A,AK$615)","v":0},{"$f":"SUMIFS(raw_transmission_costs!$I:$I,raw_transmission_costs!$B:$B,$C790,raw_transmission_costs!$A:$A,AL$615)","v":0},{"$f":"SUMIFS(raw_transmission_costs!$I:$I,raw_transmission_costs!$B:$B,$C790,raw_transmission_costs!$A:$A,AM$615)","v":0},{"$f":"SUMIFS(raw_transmission_costs!$I:$I,raw_transmission_costs!$B:$B,$C790,raw_transmission_costs!$A:$A,AN$615)","v":0}]
[null,null,"Humboldt","MW",{"$f":"SUMIFS(raw_transmission_costs!$I:$I,raw_transmission_costs!$B:$B,$C791,raw_transmission_costs!$A:$A,E$615)","v":0},{"$f":"SUMIFS(raw_transmission_costs!$I:$I,raw_transmission_costs!$B:$B,$C791,raw_transmission_costs!$A:$A,F$615)","v":0},{"$f":"SUMIFS(raw_transmission_costs!$I:$I,raw_transmission_costs!$B:$B,$C791,raw_transmission_costs!$A:$A,G$615)","v":0},{"$f":"SUMIFS(raw_transmission_costs!$I:$I,raw_transmission_costs!$B:$B,$C791,raw_transmission_costs!$A:$A,H$615)","v":0},{"$f":"SUMIFS(raw_transmission_costs!$I:$I,raw_transmission_costs!$B:$B,$C791,raw_transmission_costs!$A:$A,I$615)","v":0},{"$f":"SUMIFS(raw_transmission_costs!$I:$I,raw_transmission_costs!$B:$B,$C791,raw_transmission_costs!$A:$A,J$615)","v":0},{"$f":"SUMIFS(raw_transmission_costs!$I:$I,raw_transmission_costs!$B:$B,$C791,raw_transmission_costs!$A:$A,K$615)","v":34},{"$f":"SUMIFS(raw_transmission_costs!$I:$I,raw_transmission_costs!$B:$B,$C791,raw_transmission_costs!$A:$A,L$615)","v":34},{"$f":"SUMIFS(raw_transmission_costs!$I:$I,raw_transmission_costs!$B:$B,$C791,raw_transmission_costs!$A:$A,M$615)","v":34},{"$f":"SUMIFS(raw_transmission_costs!$I:$I,raw_transmission_costs!$B:$B,$C791,raw_transmission_costs!$A:$A,N$615)","v":34},{"$f":"SUMIFS(raw_transmission_costs!$I:$I,raw_transmission_costs!$B:$B,$C791,raw_transmission_costs!$A:$A,O$615)","v":0},{"$f":"SUMIFS(raw_transmission_costs!$I:$I,raw_transmission_costs!$B:$B,$C791,raw_transmission_costs!$A:$A,P$615)","v":34},{"$f":"SUMIFS(raw_transmission_costs!$I:$I,raw_transmission_costs!$B:$B,$C791,raw_transmission_costs!$A:$A,Q$615)","v":0},{"$f":"SUMIFS(raw_transmission_costs!$I:$I,raw_transmission_costs!$B:$B,$C791,raw_transmission_costs!$A:$A,R$615)","v":0},{"$f":"SUMIFS(raw_transmission_costs!$I:$I,raw_transmission_costs!$B:$B,$C791,raw_transmission_costs!$A:$A,S$615)","v":0},{"$f":"SUMIFS(raw_transmission_costs!$I:$I,raw_transmission_costs!$B:$B,$C791,raw_transmission_costs!$A:$A,T$615)","v":34},{"$f":"SUMIFS(raw_transmission_costs!$I:$I,raw_transmission_costs!$B:$B,$C791,raw_transmission_costs!$A:$A,U$615)","v":0},{"$f":"SUMIFS(raw_transmission_costs!$I:$I,raw_transmission_costs!$B:$B,$C791,raw_transmission_costs!$A:$A,V$615)","v":0},{"$f":"SUMIFS(raw_transmission_costs!$I:$I,raw_transmission_costs!$B:$B,$C791,raw_transmission_costs!$A:$A,W$615)","v":0},{"$f":"SUMIFS(raw_transmission_costs!$I:$I,raw_transmission_costs!$B:$B,$C791,raw_transmission_costs!$A:$A,X$615)","v":0},{"$f":"SUMIFS(raw_transmission_costs!$I:$I,raw_transmission_costs!$B:$B,$C791,raw_transmission_costs!$A:$A,Y$615)","v":0},{"$f":"SUMIFS(raw_transmission_costs!$I:$I,raw_transmission_costs!$B:$B,$C791,raw_transmission_costs!$A:$A,Z$615)","v":0},{"$f":"SUMIFS(raw_transmission_costs!$I:$I,raw_transmission_costs!$B:$B,$C791,raw_transmission_costs!$A:$A,AA$615)","v":0},{"$f":"SUMIFS(raw_transmission_costs!$I:$I,raw_transmission_costs!$B:$B,$C791,raw_transmission_costs!$A:$A,AB$615)","v":0},{"$f":"SUMIFS(raw_transmission_costs!$I:$I,raw_transmission_costs!$B:$B,$C791,raw_transmission_costs!$A:$A,AC$615)","v":0},{"$f":"SUMIFS(raw_transmission_costs!$I:$I,raw_transmission_costs!$B:$B,$C791,raw_transmission_costs!$A:$A,AD$615)","v":0},{"$f":"SUMIFS(raw_transmission_costs!$I:$I,raw_transmission_costs!$B:$B,$C791,raw_transmission_costs!$A:$A,AE$615)","v":0},{"$f":"SUMIFS(raw_transmission_costs!$I:$I,raw_transmission_costs!$B:$B,$C791,raw_transmission_costs!$A:$A,AF$615)","v":0},{"$f":"SUMIFS(raw_transmission_costs!$I:$I,raw_transmission_costs!$B:$B,$C791,raw_transmission_costs!$A:$A,AG$615)","v":0},{"$f":"SUMIFS(raw_transmission_costs!$I:$I,raw_transmission_costs!$B:$B,$C791,raw_transmission_costs!$A:$A,AH$615)","v":0},{"$f":"SUMIFS(raw_transmission_costs!$I:$I,raw_transmission_costs!$B:$B,$C791,raw_transmission_costs!$A:$A,AI$615)","v":34},{"$f":"SUMIFS(raw_transmission_costs!$I:$I,raw_transmission_costs!$B:$B,$C791,raw_transmission_costs!$A:$A,AJ$615)","v":0},{"$f":"SUMIFS(raw_transmission_costs!$I:$I,raw_transmission_costs!$B:$B,$C791,raw_transmission_costs!$A:$A,AK$615)","v":0},{"$f":"SUMIFS(raw_transmission_costs!$I:$I,raw_transmission_costs!$B:$B,$C791,raw_transmission_costs!$A:$A,AL$615)","v":0},{"$f":"SUMIFS(raw_transmission_costs!$I:$I,raw_transmission_costs!$B:$B,$C791,raw_transmission_costs!$A:$A,AM$615)","v":0},{"$f":"SUMIFS(raw_transmission_costs!$I:$I,raw_transmission_costs!$B:$B,$C791,raw_transmission_costs!$A:$A,AN$615)","v":0}]
[null,null,"Sacramento_River","MW",{"$f":"SUMIFS(raw_transmission_costs!$I:$I,raw_transmission_costs!$B:$B,$C792,raw_transmission_costs!$A:$A,E$615)","v":0},{"$f":"SUMIFS(raw_transmission_costs!$I:$I,raw_transmission_costs!$B:$B,$C792,raw_transmission_costs!$A:$A,F$615)","v":0},{"$f":"SUMIFS(raw_transmission_costs!$I:$I,raw_transmission_costs!$B:$B,$C792,raw_transmission_costs!$A:$A,G$615)","v":0},{"$f":"SUMIFS(raw_transmission_costs!$I:$I,raw_transmission_costs!$B:$B,$C792,raw_transmission_costs!$A:$A,H$615)","v":0},{"$f":"SUMIFS(raw_transmission_costs!$I:$I,raw_transmission_costs!$B:$B,$C792,raw_transmission_costs!$A:$A,I$615)","v":0},{"$f":"SUMIFS(raw_transmission_costs!$I:$I,raw_transmission_costs!$B:$B,$C792,raw_transmission_costs!$A:$A,J$615)","v":0},{"$f":"SUMIFS(raw_transmission_costs!$I:$I,raw_transmission_costs!$B:$B,$C792,raw_transmission_costs!$A:$A,K$615)","v":34},{"$f":"SUMIFS(raw_transmission_costs!$I:$I,raw_transmission_costs!$B:$B,$C792,raw_transmission_costs!$A:$A,L$615)","v":34},{"$f":"SUMIFS(raw_transmission_costs!$I:$I,raw_transmission_costs!$B:$B,$C792,raw_transmission_costs!$A:$A,M$615)","v":34},{"$f":"SUMIFS(raw_transmission_costs!$I:$I,raw_transmission_costs!$B:$B,$C792,raw_transmission_costs!$A:$A,N$615)","v":34},{"$f":"SUMIFS(raw_transmission_costs!$I:$I,raw_transmission_costs!$B:$B,$C792,raw_transmission_costs!$A:$A,O$615)","v":0},{"$f":"SUMIFS(raw_transmission_costs!$I:$I,raw_transmission_costs!$B:$B,$C792,raw_transmission_costs!$A:$A,P$615)","v":34},{"$f":"SUMIFS(raw_transmission_costs!$I:$I,raw_transmission_costs!$B:$B,$C792,raw_transmission_costs!$A:$A,Q$615)","v":0},{"$f":"SUMIFS(raw_transmission_costs!$I:$I,raw_transmission_costs!$B:$B,$C792,raw_transmission_costs!$A:$A,R$615)","v":0},{"$f":"SUMIFS(raw_transmission_costs!$I:$I,raw_transmission_costs!$B:$B,$C792,raw_transmission_costs!$A:$A,S$615)","v":0},{"$f":"SUMIFS(raw_transmission_costs!$I:$I,raw_transmission_costs!$B:$B,$C792,raw_transmission_costs!$A:$A,T$615)","v":2600},{"$f":"SUMIFS(raw_transmission_costs!$I:$I,raw_transmission_costs!$B:$B,$C792,raw_transmission_costs!$A:$A,U$615)","v":0},{"$f":"SUMIFS(raw_transmission_costs!$I:$I,raw_transmission_costs!$B:$B,$C792,raw_transmission_costs!$A:$A,V$615)","v":0},{"$f":"SUMIFS(raw_transmission_costs!$I:$I,raw_transmission_costs!$B:$B,$C792,raw_transmission_costs!$A:$A,W$615)","v":0},{"$f":"SUMIFS(raw_transmission_costs!$I:$I,raw_transmission_costs!$B:$B,$C792,raw_transmission_costs!$A:$A,X$615)","v":0},{"$f":"SUMIFS(raw_transmission_costs!$I:$I,raw_transmission_costs!$B:$B,$C792,raw_transmission_costs!$A:$A,Y$615)","v":0},{"$f":"SUMIFS(raw_transmission_costs!$I:$I,raw_transmission_costs!$B:$B,$C792,raw_transmission_costs!$A:$A,Z$615)","v":0},{"$f":"SUMIFS(raw_transmission_costs!$I:$I,raw_transmission_costs!$B:$B,$C792,raw_transmission_costs!$A:$A,AA$615)","v":0},{"$f":"SUMIFS(raw_transmission_costs!$I:$I,raw_transmission_costs!$B:$B,$C792,raw_transmission_costs!$A:$A,AB$615)","v":0},{"$f":"SUMIFS(raw_transmission_costs!$I:$I,raw_transmission_costs!$B:$B,$C792,raw_transmission_costs!$A:$A,AC$615)","v":0},{"$f":"SUMIFS(raw_transmission_costs!$I:$I,raw_transmission_costs!$B:$B,$C792,raw_transmission_costs!$A:$A,AD$615)","v":0},{"$f":"SUMIFS(raw_transmission_costs!$I:$I,raw_transmission_costs!$B:$B,$C792,raw_transmission_costs!$A:$A,AE$615)","v":0},{"$f":"SUMIFS(raw_transmission_costs!$I:$I,raw_transmission_costs!$B:$B,$C792,raw_transmission_costs!$A:$A,AF$615)","v":0},{"$f":"SUMIFS(raw_transmission_costs!$I:$I,raw_transmission_costs!$B:$B,$C792,raw_transmission_costs!$A:$A,AG$615)","v":0},{"$f":"SUMIFS(raw_transmission_costs!$I:$I,raw_transmission_costs!$B:$B,$C792,raw_transmission_costs!$A:$A,AH$615)","v":0},{"$f":"SUMIFS(raw_transmission_costs!$I:$I,raw_transmission_costs!$B:$B,$C792,raw_transmission_costs!$A:$A,AI$615)","v":2600},{"$f":"SUMIFS(raw_transmission_costs!$I:$I,raw_transmission_costs!$B:$B,$C792,raw_transmission_costs!$A:$A,AJ$615)","v":0},{"$f":"SUMIFS(raw_transmission_costs!$I:$I,raw_transmission_costs!$B:$B,$C792,raw_transmission_costs!$A:$A,AK$615)","v":0},{"$f":"SUMIFS(raw_transmission_costs!$I:$I,raw_transmission_costs!$B:$B,$C792,raw_transmission_costs!$A:$A,AL$615)","v":0},{"$f":"SUMIFS(raw_transmission_costs!$I:$I,raw_transmission_costs!$B:$B,$C792,raw_transmission_costs!$A:$A,AM$615)","v":0},{"$f":"SUMIFS(raw_transmission_costs!$I:$I,raw_transmission_costs!$B:$B,$C792,raw_transmission_costs!$A:$A,AN$615)","v":0}]
[null,null,"Solano","MW",{"$f":"SUMIFS(raw_transmission_costs!$I:$I,raw_transmission_costs!$B:$B,$C793,raw_transmission_costs!$A:$A,E$615)","v":0},{"$f":"SUMIFS(raw_transmission_costs!$I:$I,raw_transmission_costs!$B:$B,$C793,raw_transmission_costs!$A:$A,F$615)","v":0},{"$f":"SUMIFS(raw_transmission_costs!$I:$I,raw_transmission_costs!$B:$B,$C793,raw_transmission_costs!$A:$A,G$615)","v":0},{"$f":"SUMIFS(raw_transmission_costs!$I:$I,raw_transmission_costs!$B:$B,$C793,raw_transmission_costs!$A:$A,H$615)","v":0},{"$f":"SUMIFS(raw_transmission_costs!$I:$I,raw_transmission_costs!$B:$B,$C793,raw_transmission_costs!$A:$A,I$615)","v":0},{"$f":"SUMIFS(raw_transmission_costs!$I:$I,raw_transmission_costs!$B:$B,$C793,raw_transmission_costs!$A:$A,J$615)","v":0},{"$f":"SUMIFS(raw_transmission_costs!$I:$I,raw_transmission_costs!$B:$B,$C793,raw_transmission_costs!$A:$A,K$615)","v":0},{"$f":"SUMIFS(raw_transmission_costs!$I:$I,raw_transmission_costs!$B:$B,$C793,raw_transmission_costs!$A:$A,L$615)","v":0},{"$f":"SUMIFS(raw_transmission_costs!$I:$I,raw_transmission_costs!$B:$B,$C793,raw_transmission_costs!$A:$A,M$615)","v":0},{"$f":"SUMIFS(raw_transmission_costs!$I:$I,raw_transmission_costs!$B:$B,$C793,raw_transmission_costs!$A:$A,N$615)","v":0},{"$f":"SUMIFS(raw_transmission_costs!$I:$I,raw_transmission_costs!$B:$B,$C793,raw_transmission_costs!$A:$A,O$615)","v":0},{"$f":"SUMIFS(raw_transmission_costs!$I:$I,raw_transmission_costs!$B:$B,$C793,raw_transmission_costs!$A:$A,P$615)","v":0},{"$f":"SUMIFS(raw_transmission_costs!$I:$I,raw_transmission_costs!$B:$B,$C793,raw_transmission_costs!$A:$A,Q$615)","v":0},{"$f":"SUMIFS(raw_transmission_costs!$I:$I,raw_transmission_costs!$B:$B,$C793,raw_transmission_costs!$A:$A,R$615)","v":0},{"$f":"SUMIFS(raw_transmission_costs!$I:$I,raw_transmission_costs!$B:$B,$C793,raw_transmission_costs!$A:$A,S$615)","v":0},{"$f":"SUMIFS(raw_transmission_costs!$I:$I,raw_transmission_costs!$B:$B,$C793,raw_transmission_costs!$A:$A,T$615)","v":700},{"$f":"SUMIFS(raw_transmission_costs!$I:$I,raw_transmission_costs!$B:$B,$C793,raw_transmission_costs!$A:$A,U$615)","v":0},{"$f":"SUMIFS(raw_transmission_costs!$I:$I,raw_transmission_costs!$B:$B,$C793,raw_transmission_costs!$A:$A,V$615)","v":0},{"$f":"SUMIFS(raw_transmission_costs!$I:$I,raw_transmission_costs!$B:$B,$C793,raw_transmission_costs!$A:$A,W$615)","v":0},{"$f":"SUMIFS(raw_transmission_costs!$I:$I,raw_transmission_costs!$B:$B,$C793,raw_transmission_costs!$A:$A,X$615)","v":0},{"$f":"SUMIFS(raw_transmission_costs!$I:$I,raw_transmission_costs!$B:$B,$C793,raw_transmission_costs!$A:$A,Y$615)","v":0},{"$f":"SUMIFS(raw_transmission_costs!$I:$I,raw_transmission_costs!$B:$B,$C793,raw_transmission_costs!$A:$A,Z$615)","v":0},{"$f":"SUMIFS(raw_transmission_costs!$I:$I,raw_transmission_costs!$B:$B,$C793,raw_transmission_costs!$A:$A,AA$615)","v":0},{"$f":"SUMIFS(raw_transmission_costs!$I:$I,raw_transmission_costs!$B:$B,$C793,raw_transmission_costs!$A:$A,AB$615)","v":0},{"$f":"SUMIFS(raw_transmission_costs!$I:$I,raw_transmission_costs!$B:$B,$C793,raw_transmission_costs!$A:$A,AC$615)","v":0},{"$f":"SUMIFS(raw_transmission_costs!$I:$I,raw_transmission_costs!$B:$B,$C793,raw_transmission_costs!$A:$A,AD$615)","v":0},{"$f":"SUMIFS(raw_transmission_costs!$I:$I,raw_transmission_costs!$B:$B,$C793,raw_transmission_costs!$A:$A,AE$615)","v":0},{"$f":"SUMIFS(raw_transmission_costs!$I:$I,raw_transmission_costs!$B:$B,$C793,raw_transmission_costs!$A:$A,AF$615)","v":0},{"$f":"SUMIFS(raw_transmission_costs!$I:$I,raw_transmission_costs!$B:$B,$C793,raw_transmission_costs!$A:$A,AG$615)","v":0},{"$f":"SUMIFS(raw_transmission_costs!$I:$I,raw_transmission_costs!$B:$B,$C793,raw_transmission_costs!$A:$A,AH$615)","v":0},{"$f":"SUMIFS(raw_transmission_costs!$I:$I,raw_transmission_costs!$B:$B,$C793,raw_transmission_costs!$A:$A,AI$615)","v":700},{"$f":"SUMIFS(raw_transmission_costs!$I:$I,raw_transmission_costs!$B:$B,$C793,raw_transmission_costs!$A:$A,AJ$615)","v":0},{"$f":"SUMIFS(raw_transmission_costs!$I:$I,raw_transmission_costs!$B:$B,$C793,raw_transmission_costs!$A:$A,AK$615)","v":0},{"$f":"SUMIFS(raw_transmission_costs!$I:$I,raw_transmission_costs!$B:$B,$C793,raw_transmission_costs!$A:$A,AL$615)","v":0},{"$f":"SUMIFS(raw_transmission_costs!$I:$I,raw_transmission_costs!$B:$B,$C793,raw_transmission_costs!$A:$A,AM$615)","v":0},{"$f":"SUMIFS(raw_transmission_costs!$I:$I,raw_transmission_costs!$B:$B,$C793,raw_transmission_costs!$A:$A,AN$615)","v":0}]
[null,null,"Solano_subzone","MW",{"$f":"SUMIFS(raw_transmission_costs!$I:$I,raw_transmission_costs!$B:$B,$C794,raw_transmission_costs!$A:$A,E$615)","v":0},{"$f":"SUMIFS(raw_transmission_costs!$I:$I,raw_transmission_costs!$B:$B,$C794,raw_transmission_costs!$A:$A,F$615)","v":0},{"$f":"SUMIFS(raw_transmission_costs!$I:$I,raw_transmission_costs!$B:$B,$C794,raw_transmission_costs!$A:$A,G$615)","v":0},{"$f":"SUMIFS(raw_transmission_costs!$I:$I,raw_transmission_costs!$B:$B,$C794,raw_transmission_costs!$A:$A,H$615)","v":0},{"$f":"SUMIFS(raw_transmission_costs!$I:$I,raw_transmission_costs!$B:$B,$C794,raw_transmission_costs!$A:$A,I$615)","v":0},{"$f":"SUMIFS(raw_transmission_costs!$I:$I,raw_transmission_costs!$B:$B,$C794,raw_transmission_costs!$A:$A,J$615)","v":0},{"$f":"SUMIFS(raw_transmission_costs!$I:$I,raw_transmission_costs!$B:$B,$C794,raw_transmission_costs!$A:$A,K$615)","v":0},{"$f":"SUMIFS(raw_transmission_costs!$I:$I,raw_transmission_costs!$B:$B,$C794,raw_transmission_costs!$A:$A,L$615)","v":0},{"$f":"SUMIFS(raw_transmission_costs!$I:$I,raw_transmission_costs!$B:$B,$C794,raw_transmission_costs!$A:$A,M$615)","v":0},{"$f":"SUMIFS(raw_transmission_costs!$I:$I,raw_transmission_costs!$B:$B,$C794,raw_transmission_costs!$A:$A,N$615)","v":0},{"$f":"SUMIFS(raw_transmission_costs!$I:$I,raw_transmission_costs!$B:$B,$C794,raw_transmission_costs!$A:$A,O$615)","v":0},{"$f":"SUMIFS(raw_transmission_costs!$I:$I,raw_transmission_costs!$B:$B,$C794,raw_transmission_costs!$A:$A,P$615)","v":0},{"$f":"SUMIFS(raw_transmission_costs!$I:$I,raw_transmission_costs!$B:$B,$C794,raw_transmission_costs!$A:$A,Q$615)","v":0},{"$f":"SUMIFS(raw_transmission_costs!$I:$I,raw_transmission_costs!$B:$B,$C794,raw_transmission_costs!$A:$A,R$615)","v":0},{"$f":"SUMIFS(raw_transmission_costs!$I:$I,raw_transmission_costs!$B:$B,$C794,raw_transmission_costs!$A:$A,S$615)","v":0},{"$f":"SUMIFS(raw_transmission_costs!$I:$I,raw_transmission_costs!$B:$B,$C794,raw_transmission_costs!$A:$A,T$615)","v":0},{"$f":"SUMIFS(raw_transmission_costs!$I:$I,raw_transmission_costs!$B:$B,$C794,raw_transmission_costs!$A:$A,U$615)","v":0},{"$f":"SUMIFS(raw_transmission_costs!$I:$I,raw_transmission_costs!$B:$B,$C794,raw_transmission_costs!$A:$A,V$615)","v":0},{"$f":"SUMIFS(raw_transmission_costs!$I:$I,raw_transmission_costs!$B:$B,$C794,raw_transmission_costs!$A:$A,W$615)","v":0},{"$f":"SUMIFS(raw_transmission_costs!$I:$I,raw_transmission_costs!$B:$B,$C794,raw_transmission_costs!$A:$A,X$615)","v":0},{"$f":"SUMIFS(raw_transmission_costs!$I:$I,raw_transmission_costs!$B:$B,$C794,raw_transmission_costs!$A:$A,Y$615)","v":0},{"$f":"SUMIFS(raw_transmission_costs!$I:$I,raw_transmission_costs!$B:$B,$C794,raw_transmission_costs!$A:$A,Z$615)","v":0},{"$f":"SUMIFS(raw_transmission_costs!$I:$I,raw_transmission_costs!$B:$B,$C794,raw_transmission_costs!$A:$A,AA$615)","v":0},{"$f":"SUMIFS(raw_transmission_costs!$I:$I,raw_transmission_costs!$B:$B,$C794,raw_transmission_costs!$A:$A,AB$615)","v":0},{"$f":"SUMIFS(raw_transmission_costs!$I:$I,raw_transmission_costs!$B:$B,$C794,raw_transmission_costs!$A:$A,AC$615)","v":0},{"$f":"SUMIFS(raw_transmission_costs!$I:$I,raw_transmission_costs!$B:$B,$C794,raw_transmission_costs!$A:$A,AD$615)","v":0},{"$f":"SUMIFS(raw_transmission_costs!$I:$I,raw_transmission_costs!$B:$B,$C794,raw_transmission_costs!$A:$A,AE$615)","v":0},{"$f":"SUMIFS(raw_transmission_costs!$I:$I,raw_transmission_costs!$B:$B,$C794,raw_transmission_costs!$A:$A,AF$615)","v":0},{"$f":"SUMIFS(raw_transmission_costs!$I:$I,raw_transmission_costs!$B:$B,$C794,raw_transmission_costs!$A:$A,AG$615)","v":0},{"$f":"SUMIFS(raw_transmission_costs!$I:$I,raw_transmission_costs!$B:$B,$C794,raw_transmission_costs!$A:$A,AH$615)","v":0},{"$f":"SUMIFS(raw_transmission_costs!$I:$I,raw_transmission_costs!$B:$B,$C794,raw_transmission_costs!$A:$A,AI$615)","v":0},{"$f":"SUMIFS(raw_transmission_costs!$I:$I,raw_transmission_costs!$B:$B,$C794,raw_transmission_costs!$A:$A,AJ$615)","v":0},{"$f":"SUMIFS(raw_transmission_costs!$I:$I,raw_transmission_costs!$B:$B,$C794,raw_transmission_costs!$A:$A,AK$615)","v":0},{"$f":"SUMIFS(raw_transmission_costs!$I:$I,raw_transmission_costs!$B:$B,$C794,raw_transmission_costs!$A:$A,AL$615)","v":0},{"$f":"SUMIFS(raw_transmission_costs!$I:$I,raw_transmission_costs!$B:$B,$C794,raw_transmission_costs!$A:$A,AM$615)","v":0},{"$f":"SUMIFS(raw_transmission_costs!$I:$I,raw_transmission_costs!$B:$B,$C794,raw_transmission_costs!$A:$A,AN$615)","v":0}]
[null,null,"Mountain_Pass_El_Dorado","MW",{"$f":"SUMIFS(raw_transmission_costs!$I:$I,raw_transmission_costs!$B:$B,$C795,raw_transmission_costs!$A:$A,E$615)","v":0},{"$f":"SUMIFS(raw_transmission_costs!$I:$I,raw_transmission_costs!$B:$B,$C795,raw_transmission_costs!$A:$A,F$615)","v":0},{"$f":"SUMIFS(raw_transmission_costs!$I:$I,raw_transmission_costs!$B:$B,$C795,raw_transmission_costs!$A:$A,G$615)","v":0},{"$f":"SUMIFS(raw_transmission_costs!$I:$I,raw_transmission_costs!$B:$B,$C795,raw_transmission_costs!$A:$A,H$615)","v":0},{"$f":"SUMIFS(raw_transmission_costs!$I:$I,raw_transmission_costs!$B:$B,$C795,raw_transmission_costs!$A:$A,I$615)","v":0},{"$f":"SUMIFS(raw_transmission_costs!$I:$I,raw_transmission_costs!$B:$B,$C795,raw_transmission_costs!$A:$A,J$615)","v":0},{"$f":"SUMIFS(raw_transmission_costs!$I:$I,raw_transmission_costs!$B:$B,$C795,raw_transmission_costs!$A:$A,K$615)","v":0},{"$f":"SUMIFS(raw_transmission_costs!$I:$I,raw_transmission_costs!$B:$B,$C795,raw_transmission_costs!$A:$A,L$615)","v":0},{"$f":"SUMIFS(raw_transmission_costs!$I:$I,raw_transmission_costs!$B:$B,$C795,raw_transmission_costs!$A:$A,M$615)","v":0},{"$f":"SUMIFS(raw_transmission_costs!$I:$I,raw_transmission_costs!$B:$B,$C795,raw_transmission_costs!$A:$A,N$615)","v":0},{"$f":"SUMIFS(raw_transmission_costs!$I:$I,raw_transmission_costs!$B:$B,$C795,raw_transmission_costs!$A:$A,O$615)","v":0},{"$f":"SUMIFS(raw_transmission_costs!$I:$I,raw_transmission_costs!$B:$B,$C795,raw_transmission_costs!$A:$A,P$615)","v":0},{"$f":"SUMIFS(raw_transmission_costs!$I:$I,raw_transmission_costs!$B:$B,$C795,raw_transmission_costs!$A:$A,Q$615)","v":0},{"$f":"SUMIFS(raw_transmission_costs!$I:$I,raw_transmission_costs!$B:$B,$C795,raw_transmission_costs!$A:$A,R$615)","v":0},{"$f":"SUMIFS(raw_transmission_costs!$I:$I,raw_transmission_costs!$B:$B,$C795,raw_transmission_costs!$A:$A,S$615)","v":0},{"$f":"SUMIFS(raw_transmission_costs!$I:$I,raw_transmission_costs!$B:$B,$C795,raw_transmission_costs!$A:$A,T$615)","v":0},{"$f":"SUMIFS(raw_transmission_costs!$I:$I,raw_transmission_costs!$B:$B,$C795,raw_transmission_costs!$A:$A,U$615)","v":0},{"$f":"SUMIFS(raw_transmission_costs!$I:$I,raw_transmission_costs!$B:$B,$C795,raw_transmission_costs!$A:$A,V$615)","v":0},{"$f":"SUMIFS(raw_transmission_costs!$I:$I,raw_transmission_costs!$B:$B,$C795,raw_transmission_costs!$A:$A,W$615)","v":0},{"$f":"SUMIFS(raw_transmission_costs!$I:$I,raw_transmission_costs!$B:$B,$C795,raw_transmission_costs!$A:$A,X$615)","v":0},{"$f":"SUMIFS(raw_transmission_costs!$I:$I,raw_transmission_costs!$B:$B,$C795,raw_transmission_costs!$A:$A,Y$615)","v":0},{"$f":"SUMIFS(raw_transmission_costs!$I:$I,raw_transmission_costs!$B:$B,$C795,raw_transmission_costs!$A:$A,Z$615)","v":0},{"$f":"SUMIFS(raw_transmission_costs!$I:$I,raw_transmission_costs!$B:$B,$C795,raw_transmission_costs!$A:$A,AA$615)","v":0},{"$f":"SUMIFS(raw_transmission_costs!$I:$I,raw_transmission_costs!$B:$B,$C795,raw_transmission_costs!$A:$A,AB$615)","v":0},{"$f":"SUMIFS(raw_transmission_costs!$I:$I,raw_transmission_costs!$B:$B,$C795,raw_transmission_costs!$A:$A,AC$615)","v":0},{"$f":"SUMIFS(raw_transmission_costs!$I:$I,raw_transmission_costs!$B:$B,$C795,raw_transmission_costs!$A:$A,AD$615)","v":0},{"$f":"SUMIFS(raw_transmission_costs!$I:$I,raw_transmission_costs!$B:$B,$C795,raw_transmission_costs!$A:$A,AE$615)","v":0},{"$f":"SUMIFS(raw_transmission_costs!$I:$I,raw_transmission_costs!$B:$B,$C795,raw_transmission_costs!$A:$A,AF$615)","v":0},{"$f":"SUMIFS(raw_transmission_costs!$I:$I,raw_transmission_costs!$B:$B,$C795,raw_transmission_costs!$A:$A,AG$615)","v":0},{"$f":"SUMIFS(raw_transmission_costs!$I:$I,raw_transmission_costs!$B:$B,$C795,raw_transmission_costs!$A:$A,AH$615)","v":0},{"$f":"SUMIFS(raw_transmission_costs!$I:$I,raw_transmission_costs!$B:$B,$C795,raw_transmission_costs!$A:$A,AI$615)","v":0},{"$f":"SUMIFS(raw_transmission_costs!$I:$I,raw_transmission_costs!$B:$B,$C795,raw_transmission_costs!$A:$A,AJ$615)","v":0},{"$f":"SUMIFS(raw_transmission_costs!$I:$I,raw_transmission_costs!$B:$B,$C795,raw_transmission_costs!$A:$A,AK$615)","v":0},{"$f":"SUMIFS(raw_transmission_costs!$I:$I,raw_transmission_costs!$B:$B,$C795,raw_transmission_costs!$A:$A,AL$615)","v":0},{"$f":"SUMIFS(raw_transmission_costs!$I:$I,raw_transmission_costs!$B:$B,$C795,raw_transmission_costs!$A:$A,AM$615)","v":0},{"$f":"SUMIFS(raw_transmission_costs!$I:$I,raw_transmission_costs!$B:$B,$C795,raw_transmission_costs!$A:$A,AN$615)","v":0}]
[null,null,"GLW_VEA","MW",{"$f":"SUMIFS(raw_transmission_costs!$I:$I,raw_transmission_costs!$B:$B,$C796,raw_transmission_costs!$A:$A,E$615)","v":0},{"$f":"SUMIFS(raw_transmission_costs!$I:$I,raw_transmission_costs!$B:$B,$C796,raw_transmission_costs!$A:$A,F$615)","v":0},{"$f":"SUMIFS(raw_transmission_costs!$I:$I,raw_transmission_costs!$B:$B,$C796,raw_transmission_costs!$A:$A,G$615)","v":0},{"$f":"SUMIFS(raw_transmission_costs!$I:$I,raw_transmission_costs!$B:$B,$C796,raw_transmission_costs!$A:$A,H$615)","v":0},{"$f":"SUMIFS(raw_transmission_costs!$I:$I,raw_transmission_costs!$B:$B,$C796,raw_transmission_costs!$A:$A,I$615)","v":0},{"$f":"SUMIFS(raw_transmission_costs!$I:$I,raw_transmission_costs!$B:$B,$C796,raw_transmission_costs!$A:$A,J$615)","v":0},{"$f":"SUMIFS(raw_transmission_costs!$I:$I,raw_transmission_costs!$B:$B,$C796,raw_transmission_costs!$A:$A,K$615)","v":0},{"$f":"SUMIFS(raw_transmission_costs!$I:$I,raw_transmission_costs!$B:$B,$C796,raw_transmission_costs!$A:$A,L$615)","v":0},{"$f":"SUMIFS(raw_transmission_costs!$I:$I,raw_transmission_costs!$B:$B,$C796,raw_transmission_costs!$A:$A,M$615)","v":0},{"$f":"SUMIFS(raw_transmission_costs!$I:$I,raw_transmission_costs!$B:$B,$C796,raw_transmission_costs!$A:$A,N$615)","v":0},{"$f":"SUMIFS(raw_transmission_costs!$I:$I,raw_transmission_costs!$B:$B,$C796,raw_transmission_costs!$A:$A,O$615)","v":0},{"$f":"SUMIFS(raw_transmission_costs!$I:$I,raw_transmission_costs!$B:$B,$C796,raw_transmission_costs!$A:$A,P$615)","v":0},{"$f":"SUMIFS(raw_transmission_costs!$I:$I,raw_transmission_costs!$B:$B,$C796,raw_transmission_costs!$A:$A,Q$615)","v":0},{"$f":"SUMIFS(raw_transmission_costs!$I:$I,raw_transmission_costs!$B:$B,$C796,raw_transmission_costs!$A:$A,R$615)","v":0},{"$f":"SUMIFS(raw_transmission_costs!$I:$I,raw_transmission_costs!$B:$B,$C796,raw_transmission_costs!$A:$A,S$615)","v":0},{"$f":"SUMIFS(raw_transmission_costs!$I:$I,raw_transmission_costs!$B:$B,$C796,raw_transmission_costs!$A:$A,T$615)","v":0},{"$f":"SUMIFS(raw_transmission_costs!$I:$I,raw_transmission_costs!$B:$B,$C796,raw_transmission_costs!$A:$A,U$615)","v":0},{"$f":"SUMIFS(raw_transmission_costs!$I:$I,raw_transmission_costs!$B:$B,$C796,raw_transmission_costs!$A:$A,V$615)","v":0},{"$f":"SUMIFS(raw_transmission_costs!$I:$I,raw_transmission_costs!$B:$B,$C796,raw_transmission_costs!$A:$A,W$615)","v":0},{"$f":"SUMIFS(raw_transmission_costs!$I:$I,raw_transmission_costs!$B:$B,$C796,raw_transmission_costs!$A:$A,X$615)","v":0},{"$f":"SUMIFS(raw_transmission_costs!$I:$I,raw_transmission_costs!$B:$B,$C796,raw_transmission_costs!$A:$A,Y$615)","v":0},{"$f":"SUMIFS(raw_transmission_costs!$I:$I,raw_transmission_costs!$B:$B,$C796,raw_transmission_costs!$A:$A,Z$615)","v":0},{"$f":"SUMIFS(raw_transmission_costs!$I:$I,raw_transmission_costs!$B:$B,$C796,raw_transmission_costs!$A:$A,AA$615)","v":0},{"$f":"SUMIFS(raw_transmission_costs!$I:$I,raw_transmission_costs!$B:$B,$C796,raw_transmission_costs!$A:$A,AB$615)","v":0},{"$f":"SUMIFS(raw_transmission_costs!$I:$I,raw_transmission_costs!$B:$B,$C796,raw_transmission_costs!$A:$A,AC$615)","v":0},{"$f":"SUMIFS(raw_transmission_costs!$I:$I,raw_transmission_costs!$B:$B,$C796,raw_transmission_costs!$A:$A,AD$615)","v":0},{"$f":"SUMIFS(raw_transmission_costs!$I:$I,raw_transmission_costs!$B:$B,$C796,raw_transmission_costs!$A:$A,AE$615)","v":0},{"$f":"SUMIFS(raw_transmission_costs!$I:$I,raw_transmission_costs!$B:$B,$C796,raw_transmission_costs!$A:$A,AF$615)","v":0},{"$f":"SUMIFS(raw_transmission_costs!$I:$I,raw_transmission_costs!$B:$B,$C796,raw_transmission_costs!$A:$A,AG$615)","v":0},{"$f":"SUMIFS(raw_transmission_costs!$I:$I,raw_transmission_costs!$B:$B,$C796,raw_transmission_costs!$A:$A,AH$615)","v":0},{"$f":"SUMIFS(raw_transmission_costs!$I:$I,raw_transmission_costs!$B:$B,$C796,raw_transmission_costs!$A:$A,AI$615)","v":0},{"$f":"SUMIFS(raw_transmission_costs!$I:$I,raw_transmission_costs!$B:$B,$C796,raw_transmission_costs!$A:$A,AJ$615)","v":0},{"$f":"SUMIFS(raw_transmission_costs!$I:$I,raw_transmission_costs!$B:$B,$C796,raw_transmission_costs!$A:$A,AK$615)","v":0},{"$f":"SUMIFS(raw_transmission_costs!$I:$I,raw_transmission_costs!$B:$B,$C796,raw_transmission_costs!$A:$A,AL$615)","v":0},{"$f":"SUMIFS(raw_transmission_costs!$I:$I,raw_transmission_costs!$B:$B,$C796,raw_transmission_costs!$A:$A,AM$615)","v":0},{"$f":"SUMIFS(raw_transmission_costs!$I:$I,raw_transmission_costs!$B:$B,$C796,raw_transmission_costs!$A:$A,AN$615)","v":0}]
[null,null,"Greater_Imperial","MW",{"$f":"SUMIFS(raw_transmission_costs!$I:$I,raw_transmission_costs!$B:$B,$C797,raw_transmission_costs!$A:$A,E$615)","v":0},{"$f":"SUMIFS(raw_transmission_costs!$I:$I,raw_transmission_costs!$B:$B,$C797,raw_transmission_costs!$A:$A,F$615)","v":0},{"$f":"SUMIFS(raw_transmission_costs!$I:$I,raw_transmission_costs!$B:$B,$C797,raw_transmission_costs!$A:$A,G$615)","v":0},{"$f":"SUMIFS(raw_transmission_costs!$I:$I,raw_transmission_costs!$B:$B,$C797,raw_transmission_costs!$A:$A,H$615)","v":0},{"$f":"SUMIFS(raw_transmission_costs!$I:$I,raw_transmission_costs!$B:$B,$C797,raw_transmission_costs!$A:$A,I$615)","v":0},{"$f":"SUMIFS(raw_transmission_costs!$I:$I,raw_transmission_costs!$B:$B,$C797,raw_transmission_costs!$A:$A,J$615)","v":0},{"$f":"SUMIFS(raw_transmission_costs!$I:$I,raw_transmission_costs!$B:$B,$C797,raw_transmission_costs!$A:$A,K$615)","v":0},{"$f":"SUMIFS(raw_transmission_costs!$I:$I,raw_transmission_costs!$B:$B,$C797,raw_transmission_costs!$A:$A,L$615)","v":0},{"$f":"SUMIFS(raw_transmission_costs!$I:$I,raw_transmission_costs!$B:$B,$C797,raw_transmission_costs!$A:$A,M$615)","v":0},{"$f":"SUMIFS(raw_transmission_costs!$I:$I,raw_transmission_costs!$B:$B,$C797,raw_transmission_costs!$A:$A,N$615)","v":0},{"$f":"SUMIFS(raw_transmission_costs!$I:$I,raw_transmission_costs!$B:$B,$C797,raw_transmission_costs!$A:$A,O$615)","v":0},{"$f":"SUMIFS(raw_transmission_costs!$I:$I,raw_transmission_costs!$B:$B,$C797,raw_transmission_costs!$A:$A,P$615)","v":866.98},{"$f":"SUMIFS(raw_transmission_costs!$I:$I,raw_transmission_costs!$B:$B,$C797,raw_transmission_costs!$A:$A,Q$615)","v":0},{"$f":"SUMIFS(raw_transmission_costs!$I:$I,raw_transmission_costs!$B:$B,$C797,raw_transmission_costs!$A:$A,R$615)","v":0},{"$f":"SUMIFS(raw_transmission_costs!$I:$I,raw_transmission_costs!$B:$B,$C797,raw_transmission_costs!$A:$A,S$615)","v":0},{"$f":"SUMIFS(raw_transmission_costs!$I:$I,raw_transmission_costs!$B:$B,$C797,raw_transmission_costs!$A:$A,T$615)","v":1374.81},{"$f":"SUMIFS(raw_transmission_costs!$I:$I,raw_transmission_costs!$B:$B,$C797,raw_transmission_costs!$A:$A,U$615)","v":0},{"$f":"SUMIFS(raw_transmission_costs!$I:$I,raw_transmission_costs!$B:$B,$C797,raw_transmission_costs!$A:$A,V$615)","v":0},{"$f":"SUMIFS(raw_transmission_costs!$I:$I,raw_transmission_costs!$B:$B,$C797,raw_transmission_costs!$A:$A,W$615)","v":0},{"$f":"SUMIFS(raw_transmission_costs!$I:$I,raw_transmission_costs!$B:$B,$C797,raw_transmission_costs!$A:$A,X$615)","v":0},{"$f":"SUMIFS(raw_transmission_costs!$I:$I,raw_transmission_costs!$B:$B,$C797,raw_transmission_costs!$A:$A,Y$615)","v":0},{"$f":"SUMIFS(raw_transmission_costs!$I:$I,raw_transmission_costs!$B:$B,$C797,raw_transmission_costs!$A:$A,Z$615)","v":0},{"$f":"SUMIFS(raw_transmission_costs!$I:$I,raw_transmission_costs!$B:$B,$C797,raw_transmission_costs!$A:$A,AA$615)","v":0},{"$f":"SUMIFS(raw_transmission_costs!$I:$I,raw_transmission_costs!$B:$B,$C797,raw_transmission_costs!$A:$A,AB$615)","v":0},{"$f":"SUMIFS(raw_transmission_costs!$I:$I,raw_transmission_costs!$B:$B,$C797,raw_transmission_costs!$A:$A,AC$615)","v":0},{"$f":"SUMIFS(raw_transmission_costs!$I:$I,raw_transmission_costs!$B:$B,$C797,raw_transmission_costs!$A:$A,AD$615)","v":0},{"$f":"SUMIFS(raw_transmission_costs!$I:$I,raw_transmission_costs!$B:$B,$C797,raw_transmission_costs!$A:$A,AE$615)","v":0},{"$f":"SUMIFS(raw_transmission_costs!$I:$I,raw_transmission_costs!$B:$B,$C797,raw_transmission_costs!$A:$A,AF$615)","v":0},{"$f":"SUMIFS(raw_transmission_costs!$I:$I,raw_transmission_costs!$B:$B,$C797,raw_transmission_costs!$A:$A,AG$615)","v":0},{"$f":"SUMIFS(raw_transmission_costs!$I:$I,raw_transmission_costs!$B:$B,$C797,raw_transmission_costs!$A:$A,AH$615)","v":0},{"$f":"SUMIFS(raw_transmission_costs!$I:$I,raw_transmission_costs!$B:$B,$C797,raw_transmission_costs!$A:$A,AI$615)","v":1900},{"$f":"SUMIFS(raw_transmission_costs!$I:$I,raw_transmission_costs!$B:$B,$C797,raw_transmission_costs!$A:$A,AJ$615)","v":0},{"$f":"SUMIFS(raw_transmission_costs!$I:$I,raw_transmission_costs!$B:$B,$C797,raw_transmission_costs!$A:$A,AK$615)","v":0},{"$f":"SUMIFS(raw_transmission_costs!$I:$I,raw_transmission_costs!$B:$B,$C797,raw_transmission_costs!$A:$A,AL$615)","v":0},{"$f":"SUMIFS(raw_transmission_costs!$I:$I,raw_transmission_costs!$B:$B,$C797,raw_transmission_costs!$A:$A,AM$615)","v":0},{"$f":"SUMIFS(raw_transmission_costs!$I:$I,raw_transmission_costs!$B:$B,$C797,raw_transmission_costs!$A:$A,AN$615)","v":0}]
[null,null,"Riverside_Palm_Springs","MW",{"$f":"SUMIFS(raw_transmission_costs!$I:$I,raw_transmission_costs!$B:$B,$C798,raw_transmission_costs!$A:$A,E$615)","v":0},{"$f":"SUMIFS(raw_transmission_costs!$I:$I,raw_transmission_costs!$B:$B,$C798,raw_transmission_costs!$A:$A,F$615)","v":0},{"$f":"SUMIFS(raw_transmission_costs!$I:$I,raw_transmission_costs!$B:$B,$C798,raw_transmission_costs!$A:$A,G$615)","v":0},{"$f":"SUMIFS(raw_transmission_costs!$I:$I,raw_transmission_costs!$B:$B,$C798,raw_transmission_costs!$A:$A,H$615)","v":0},{"$f":"SUMIFS(raw_transmission_costs!$I:$I,raw_transmission_costs!$B:$B,$C798,raw_transmission_costs!$A:$A,I$615)","v":0},{"$f":"SUMIFS(raw_transmission_costs!$I:$I,raw_transmission_costs!$B:$B,$C798,raw_transmission_costs!$A:$A,J$615)","v":0},{"$f":"SUMIFS(raw_transmission_costs!$I:$I,raw_transmission_costs!$B:$B,$C798,raw_transmission_costs!$A:$A,K$615)","v":0},{"$f":"SUMIFS(raw_transmission_costs!$I:$I,raw_transmission_costs!$B:$B,$C798,raw_transmission_costs!$A:$A,L$615)","v":0},{"$f":"SUMIFS(raw_transmission_costs!$I:$I,raw_transmission_costs!$B:$B,$C798,raw_transmission_costs!$A:$A,M$615)","v":0},{"$f":"SUMIFS(raw_transmission_costs!$I:$I,raw_transmission_costs!$B:$B,$C798,raw_transmission_costs!$A:$A,N$615)","v":2550},{"$f":"SUMIFS(raw_transmission_costs!$I:$I,raw_transmission_costs!$B:$B,$C798,raw_transmission_costs!$A:$A,O$615)","v":0},{"$f":"SUMIFS(raw_transmission_costs!$I:$I,raw_transmission_costs!$B:$B,$C798,raw_transmission_costs!$A:$A,P$615)","v":2550},{"$f":"SUMIFS(raw_transmission_costs!$I:$I,raw_transmission_costs!$B:$B,$C798,raw_transmission_costs!$A:$A,Q$615)","v":0},{"$f":"SUMIFS(raw_transmission_costs!$I:$I,raw_transmission_costs!$B:$B,$C798,raw_transmission_costs!$A:$A,R$615)","v":0},{"$f":"SUMIFS(raw_transmission_costs!$I:$I,raw_transmission_costs!$B:$B,$C798,raw_transmission_costs!$A:$A,S$615)","v":0},{"$f":"SUMIFS(raw_transmission_costs!$I:$I,raw_transmission_costs!$B:$B,$C798,raw_transmission_costs!$A:$A,T$615)","v":2550},{"$f":"SUMIFS(raw_transmission_costs!$I:$I,raw_transmission_costs!$B:$B,$C798,raw_transmission_costs!$A:$A,U$615)","v":0},{"$f":"SUMIFS(raw_transmission_costs!$I:$I,raw_transmission_costs!$B:$B,$C798,raw_transmission_costs!$A:$A,V$615)","v":0},{"$f":"SUMIFS(raw_transmission_costs!$I:$I,raw_transmission_costs!$B:$B,$C798,raw_transmission_costs!$A:$A,W$615)","v":0},{"$f":"SUMIFS(raw_transmission_costs!$I:$I,raw_transmission_costs!$B:$B,$C798,raw_transmission_costs!$A:$A,X$615)","v":0},{"$f":"SUMIFS(raw_transmission_costs!$I:$I,raw_transmission_costs!$B:$B,$C798,raw_transmission_costs!$A:$A,Y$615)","v":0},{"$f":"SUMIFS(raw_transmission_costs!$I:$I,raw_transmission_costs!$B:$B,$C798,raw_transmission_costs!$A:$A,Z$615)","v":0},{"$f":"SUMIFS(raw_transmission_costs!$I:$I,raw_transmission_costs!$B:$B,$C798,raw_transmission_costs!$A:$A,AA$615)","v":0},{"$f":"SUMIFS(raw_transmission_costs!$I:$I,raw_transmission_costs!$B:$B,$C798,raw_transmission_costs!$A:$A,AB$615)","v":0},{"$f":"SUMIFS(raw_transmission_costs!$I:$I,raw_transmission_costs!$B:$B,$C798,raw_transmission_costs!$A:$A,AC$615)","v":0},{"$f":"SUMIFS(raw_transmission_costs!$I:$I,raw_transmission_costs!$B:$B,$C798,raw_transmission_costs!$A:$A,AD$615)","v":0},{"$f":"SUMIFS(raw_transmission_costs!$I:$I,raw_transmission_costs!$B:$B,$C798,raw_transmission_costs!$A:$A,AE$615)","v":0},{"$f":"SUMIFS(raw_transmission_costs!$I:$I,raw_transmission_costs!$B:$B,$C798,raw_transmission_costs!$A:$A,AF$615)","v":0},{"$f":"SUMIFS(raw_transmission_costs!$I:$I,raw_transmission_costs!$B:$B,$C798,raw_transmission_costs!$A:$A,AG$615)","v":0},{"$f":"SUMIFS(raw_transmission_costs!$I:$I,raw_transmission_costs!$B:$B,$C798,raw_transmission_costs!$A:$A,AH$615)","v":0},{"$f":"SUMIFS(raw_transmission_costs!$I:$I,raw_transmission_costs!$B:$B,$C798,raw_transmission_costs!$A:$A,AI$615)","v":2550},{"$f":"SUMIFS(raw_transmission_costs!$I:$I,raw_transmission_costs!$B:$B,$C798,raw_transmission_costs!$A:$A,AJ$615)","v":0},{"$f":"SUMIFS(raw_transmission_costs!$I:$I,raw_transmission_costs!$B:$B,$C798,raw_transmission_costs!$A:$A,AK$615)","v":0},{"$f":"SUMIFS(raw_transmission_costs!$I:$I,raw_transmission_costs!$B:$B,$C798,raw_transmission_costs!$A:$A,AL$615)","v":0},{"$f":"SUMIFS(raw_transmission_costs!$I:$I,raw_transmission_costs!$B:$B,$C798,raw_transmission_costs!$A:$A,AM$615)","v":0},{"$f":"SUMIFS(raw_transmission_costs!$I:$I,raw_transmission_costs!$B:$B,$C798,raw_transmission_costs!$A:$A,AN$615)","v":0}]
[null,null,"SCADSNV","MW",{"$f":"SUMIFS(raw_transmission_costs!$I:$I,raw_transmission_costs!$B:$B,$C799,raw_transmission_costs!$A:$A,E$615)","v":0},{"$f":"SUMIFS(raw_transmission_costs!$I:$I,raw_transmission_costs!$B:$B,$C799,raw_transmission_costs!$A:$A,F$615)","v":0},{"$f":"SUMIFS(raw_transmission_costs!$I:$I,raw_transmission_costs!$B:$B,$C799,raw_transmission_costs!$A:$A,G$615)","v":0},{"$f":"SUMIFS(raw_transmission_costs!$I:$I,raw_transmission_costs!$B:$B,$C799,raw_transmission_costs!$A:$A,H$615)","v":0},{"$f":"SUMIFS(raw_transmission_costs!$I:$I,raw_transmission_costs!$B:$B,$C799,raw_transmission_costs!$A:$A,I$615)","v":0},{"$f":"SUMIFS(raw_transmission_costs!$I:$I,raw_transmission_costs!$B:$B,$C799,raw_transmission_costs!$A:$A,J$615)","v":0},{"$f":"SUMIFS(raw_transmission_costs!$I:$I,raw_transmission_costs!$B:$B,$C799,raw_transmission_costs!$A:$A,K$615)","v":0},{"$f":"SUMIFS(raw_transmission_costs!$I:$I,raw_transmission_costs!$B:$B,$C799,raw_transmission_costs!$A:$A,L$615)","v":0},{"$f":"SUMIFS(raw_transmission_costs!$I:$I,raw_transmission_costs!$B:$B,$C799,raw_transmission_costs!$A:$A,M$615)","v":0},{"$f":"SUMIFS(raw_transmission_costs!$I:$I,raw_transmission_costs!$B:$B,$C799,raw_transmission_costs!$A:$A,N$615)","v":2550},{"$f":"SUMIFS(raw_transmission_costs!$I:$I,raw_transmission_costs!$B:$B,$C799,raw_transmission_costs!$A:$A,O$615)","v":0},{"$f":"SUMIFS(raw_transmission_costs!$I:$I,raw_transmission_costs!$B:$B,$C799,raw_transmission_costs!$A:$A,P$615)","v":5566.98},{"$f":"SUMIFS(raw_transmission_costs!$I:$I,raw_transmission_costs!$B:$B,$C799,raw_transmission_costs!$A:$A,Q$615)","v":0},{"$f":"SUMIFS(raw_transmission_costs!$I:$I,raw_transmission_costs!$B:$B,$C799,raw_transmission_costs!$A:$A,R$615)","v":0},{"$f":"SUMIFS(raw_transmission_costs!$I:$I,raw_transmission_costs!$B:$B,$C799,raw_transmission_costs!$A:$A,S$615)","v":0},{"$f":"SUMIFS(raw_transmission_costs!$I:$I,raw_transmission_costs!$B:$B,$C799,raw_transmission_costs!$A:$A,T$615)","v":6074.81},{"$f":"SUMIFS(raw_transmission_costs!$I:$I,raw_transmission_costs!$B:$B,$C799,raw_transmission_costs!$A:$A,U$615)","v":0},{"$f":"SUMIFS(raw_transmission_costs!$I:$I,raw_transmission_costs!$B:$B,$C799,raw_transmission_costs!$A:$A,V$615)","v":0},{"$f":"SUMIFS(raw_transmission_costs!$I:$I,raw_transmission_costs!$B:$B,$C799,raw_transmission_costs!$A:$A,W$615)","v":0},{"$f":"SUMIFS(raw_transmission_costs!$I:$I,raw_transmission_costs!$B:$B,$C799,raw_transmission_costs!$A:$A,X$615)","v":0},{"$f":"SUMIFS(raw_transmission_costs!$I:$I,raw_transmission_costs!$B:$B,$C799,raw_transmission_costs!$A:$A,Y$615)","v":0},{"$f":"SUMIFS(raw_transmission_costs!$I:$I,raw_transmission_costs!$B:$B,$C799,raw_transmission_costs!$A:$A,Z$615)","v":0},{"$f":"SUMIFS(raw_transmission_costs!$I:$I,raw_transmission_costs!$B:$B,$C799,raw_transmission_costs!$A:$A,AA$615)","v":0},{"$f":"SUMIFS(raw_transmission_costs!$I:$I,raw_transmission_costs!$B:$B,$C799,raw_transmission_costs!$A:$A,AB$615)","v":0},{"$f":"SUMIFS(raw_transmission_costs!$I:$I,raw_transmission_costs!$B:$B,$C799,raw_transmission_costs!$A:$A,AC$615)","v":0},{"$f":"SUMIFS(raw_transmission_costs!$I:$I,raw_transmission_costs!$B:$B,$C799,raw_transmission_costs!$A:$A,AD$615)","v":0},{"$f":"SUMIFS(raw_transmission_costs!$I:$I,raw_transmission_costs!$B:$B,$C799,raw_transmission_costs!$A:$A,AE$615)","v":0},{"$f":"SUMIFS(raw_transmission_costs!$I:$I,raw_transmission_costs!$B:$B,$C799,raw_transmission_costs!$A:$A,AF$615)","v":0},{"$f":"SUMIFS(raw_transmission_costs!$I:$I,raw_transmission_costs!$B:$B,$C799,raw_transmission_costs!$A:$A,AG$615)","v":0},{"$f":"SUMIFS(raw_transmission_costs!$I:$I,raw_transmission_costs!$B:$B,$C799,raw_transmission_costs!$A:$A,AH$615)","v":0},{"$f":"SUMIFS(raw_transmission_costs!$I:$I,raw_transmission_costs!$B:$B,$C799,raw_transmission_costs!$A:$A,AI$615)","v":6600},{"$f":"SUMIFS(raw_transmission_costs!$I:$I,raw_transmission_costs!$B:$B,$C799,raw_transmission_costs!$A:$A,AJ$615)","v":0},{"$f":"SUMIFS(raw_transmission_costs!$I:$I,raw_transmission_costs!$B:$B,$C799,raw_transmission_costs!$A:$A,AK$615)","v":0},{"$f":"SUMIFS(raw_transmission_costs!$I:$I,raw_transmission_costs!$B:$B,$C799,raw_transmission_costs!$A:$A,AL$615)","v":0},{"$f":"SUMIFS(raw_transmission_costs!$I:$I,raw_transmission_costs!$B:$B,$C799,raw_transmission_costs!$A:$A,AM$615)","v":0},{"$f":"SUMIFS(raw_transmission_costs!$I:$I,raw_transmission_costs!$B:$B,$C799,raw_transmission_costs!$A:$A,AN$615)","v":0}]
[null,null,"Kern_Greater_Carrizo","MW",{"$f":"SUMIFS(raw_transmission_costs!$I:$I,raw_transmission_costs!$B:$B,$C800,raw_transmission_costs!$A:$A,E$615)","v":0},{"$f":"SUMIFS(raw_transmission_costs!$I:$I,raw_transmission_costs!$B:$B,$C800,raw_transmission_costs!$A:$A,F$615)","v":0},{"$f":"SUMIFS(raw_transmission_costs!$I:$I,raw_transmission_costs!$B:$B,$C800,raw_transmission_costs!$A:$A,G$615)","v":0},{"$f":"SUMIFS(raw_transmission_costs!$I:$I,raw_transmission_costs!$B:$B,$C800,raw_transmission_costs!$A:$A,H$615)","v":0},{"$f":"SUMIFS(raw_transmission_costs!$I:$I,raw_transmission_costs!$B:$B,$C800,raw_transmission_costs!$A:$A,I$615)","v":0},{"$f":"SUMIFS(raw_transmission_costs!$I:$I,raw_transmission_costs!$B:$B,$C800,raw_transmission_costs!$A:$A,J$615)","v":0},{"$f":"SUMIFS(raw_transmission_costs!$I:$I,raw_transmission_costs!$B:$B,$C800,raw_transmission_costs!$A:$A,K$615)","v":0},{"$f":"SUMIFS(raw_transmission_costs!$I:$I,raw_transmission_costs!$B:$B,$C800,raw_transmission_costs!$A:$A,L$615)","v":0},{"$f":"SUMIFS(raw_transmission_costs!$I:$I,raw_transmission_costs!$B:$B,$C800,raw_transmission_costs!$A:$A,M$615)","v":0},{"$f":"SUMIFS(raw_transmission_costs!$I:$I,raw_transmission_costs!$B:$B,$C800,raw_transmission_costs!$A:$A,N$615)","v":0},{"$f":"SUMIFS(raw_transmission_costs!$I:$I,raw_transmission_costs!$B:$B,$C800,raw_transmission_costs!$A:$A,O$615)","v":0},{"$f":"SUMIFS(raw_transmission_costs!$I:$I,raw_transmission_costs!$B:$B,$C800,raw_transmission_costs!$A:$A,P$615)","v":700},{"$f":"SUMIFS(raw_transmission_costs!$I:$I,raw_transmission_costs!$B:$B,$C800,raw_transmission_costs!$A:$A,Q$615)","v":0},{"$f":"SUMIFS(raw_transmission_costs!$I:$I,raw_transmission_costs!$B:$B,$C800,raw_transmission_costs!$A:$A,R$615)","v":0},{"$f":"SUMIFS(raw_transmission_costs!$I:$I,raw_transmission_costs!$B:$B,$C800,raw_transmission_costs!$A:$A,S$615)","v":0},{"$f":"SUMIFS(raw_transmission_costs!$I:$I,raw_transmission_costs!$B:$B,$C800,raw_transmission_costs!$A:$A,T$615)","v":700},{"$f":"SUMIFS(raw_transmission_costs!$I:$I,raw_transmission_costs!$B:$B,$C800,raw_transmission_costs!$A:$A,U$615)","v":0},{"$f":"SUMIFS(raw_transmission_costs!$I:$I,raw_transmission_costs!$B:$B,$C800,raw_transmission_costs!$A:$A,V$615)","v":0},{"$f":"SUMIFS(raw_transmission_costs!$I:$I,raw_transmission_costs!$B:$B,$C800,raw_transmission_costs!$A:$A,W$615)","v":0},{"$f":"SUMIFS(raw_transmission_costs!$I:$I,raw_transmission_costs!$B:$B,$C800,raw_transmission_costs!$A:$A,X$615)","v":0},{"$f":"SUMIFS(raw_transmission_costs!$I:$I,raw_transmission_costs!$B:$B,$C800,raw_transmission_costs!$A:$A,Y$615)","v":0},{"$f":"SUMIFS(raw_transmission_costs!$I:$I,raw_transmission_costs!$B:$B,$C800,raw_transmission_costs!$A:$A,Z$615)","v":0},{"$f":"SUMIFS(raw_transmission_costs!$I:$I,raw_transmission_costs!$B:$B,$C800,raw_transmission_costs!$A:$A,AA$615)","v":0},{"$f":"SUMIFS(raw_transmission_costs!$I:$I,raw_transmission_costs!$B:$B,$C800,raw_transmission_costs!$A:$A,AB$615)","v":0},{"$f":"SUMIFS(raw_transmission_costs!$I:$I,raw_transmission_costs!$B:$B,$C800,raw_transmission_costs!$A:$A,AC$615)","v":0},{"$f":"SUMIFS(raw_transmission_costs!$I:$I,raw_transmission_costs!$B:$B,$C800,raw_transmission_costs!$A:$A,AD$615)","v":0},{"$f":"SUMIFS(raw_transmission_costs!$I:$I,raw_transmission_costs!$B:$B,$C800,raw_transmission_costs!$A:$A,AE$615)","v":0},{"$f":"SUMIFS(raw_transmission_costs!$I:$I,raw_transmission_costs!$B:$B,$C800,raw_transmission_costs!$A:$A,AF$615)","v":0},{"$f":"SUMIFS(raw_transmission_costs!$I:$I,raw_transmission_costs!$B:$B,$C800,raw_transmission_costs!$A:$A,AG$615)","v":0},{"$f":"SUMIFS(raw_transmission_costs!$I:$I,raw_transmission_costs!$B:$B,$C800,raw_transmission_costs!$A:$A,AH$615)","v":0},{"$f":"SUMIFS(raw_transmission_costs!$I:$I,raw_transmission_costs!$B:$B,$C800,raw_transmission_costs!$A:$A,AI$615)","v":700},{"$f":"SUMIFS(raw_transmission_costs!$I:$I,raw_transmission_costs!$B:$B,$C800,raw_transmission_costs!$A:$A,AJ$615)","v":0},{"$f":"SUMIFS(raw_transmission_costs!$I:$I,raw_transmission_costs!$B:$B,$C800,raw_transmission_costs!$A:$A,AK$615)","v":0},{"$f":"SUMIFS(raw_transmission_costs!$I:$I,raw_transmission_costs!$B:$B,$C800,raw_transmission_costs!$A:$A,AL$615)","v":0},{"$f":"SUMIFS(raw_transmission_costs!$I:$I,raw_transmission_costs!$B:$B,$C800,raw_transmission_costs!$A:$A,AM$615)","v":0},{"$f":"SUMIFS(raw_transmission_costs!$I:$I,raw_transmission_costs!$B:$B,$C800,raw_transmission_costs!$A:$A,AN$615)","v":0}]
[null,null,"Carrizo","MW",{"$f":"SUMIFS(raw_transmission_costs!$I:$I,raw_transmission_costs!$B:$B,$C801,raw_transmission_costs!$A:$A,E$615)","v":0},{"$f":"SUMIFS(raw_transmission_costs!$I:$I,raw_transmission_costs!$B:$B,$C801,raw_transmission_costs!$A:$A,F$615)","v":0},{"$f":"SUMIFS(raw_transmission_costs!$I:$I,raw_transmission_costs!$B:$B,$C801,raw_transmission_costs!$A:$A,G$615)","v":0},{"$f":"SUMIFS(raw_transmission_costs!$I:$I,raw_transmission_costs!$B:$B,$C801,raw_transmission_costs!$A:$A,H$615)","v":0},{"$f":"SUMIFS(raw_transmission_costs!$I:$I,raw_transmission_costs!$B:$B,$C801,raw_transmission_costs!$A:$A,I$615)","v":0},{"$f":"SUMIFS(raw_transmission_costs!$I:$I,raw_transmission_costs!$B:$B,$C801,raw_transmission_costs!$A:$A,J$615)","v":0},{"$f":"SUMIFS(raw_transmission_costs!$I:$I,raw_transmission_costs!$B:$B,$C801,raw_transmission_costs!$A:$A,K$615)","v":0},{"$f":"SUMIFS(raw_transmission_costs!$I:$I,raw_transmission_costs!$B:$B,$C801,raw_transmission_costs!$A:$A,L$615)","v":0},{"$f":"SUMIFS(raw_transmission_costs!$I:$I,raw_transmission_costs!$B:$B,$C801,raw_transmission_costs!$A:$A,M$615)","v":0},{"$f":"SUMIFS(raw_transmission_costs!$I:$I,raw_transmission_costs!$B:$B,$C801,raw_transmission_costs!$A:$A,N$615)","v":0},{"$f":"SUMIFS(raw_transmission_costs!$I:$I,raw_transmission_costs!$B:$B,$C801,raw_transmission_costs!$A:$A,O$615)","v":0},{"$f":"SUMIFS(raw_transmission_costs!$I:$I,raw_transmission_costs!$B:$B,$C801,raw_transmission_costs!$A:$A,P$615)","v":0},{"$f":"SUMIFS(raw_transmission_costs!$I:$I,raw_transmission_costs!$B:$B,$C801,raw_transmission_costs!$A:$A,Q$615)","v":0},{"$f":"SUMIFS(raw_transmission_costs!$I:$I,raw_transmission_costs!$B:$B,$C801,raw_transmission_costs!$A:$A,R$615)","v":0},{"$f":"SUMIFS(raw_transmission_costs!$I:$I,raw_transmission_costs!$B:$B,$C801,raw_transmission_costs!$A:$A,S$615)","v":0},{"$f":"SUMIFS(raw_transmission_costs!$I:$I,raw_transmission_costs!$B:$B,$C801,raw_transmission_costs!$A:$A,T$615)","v":0},{"$f":"SUMIFS(raw_transmission_costs!$I:$I,raw_transmission_costs!$B:$B,$C801,raw_transmission_costs!$A:$A,U$615)","v":0},{"$f":"SUMIFS(raw_transmission_costs!$I:$I,raw_transmission_costs!$B:$B,$C801,raw_transmission_costs!$A:$A,V$615)","v":0},{"$f":"SUMIFS(raw_transmission_costs!$I:$I,raw_transmission_costs!$B:$B,$C801,raw_transmission_costs!$A:$A,W$615)","v":0},{"$f":"SUMIFS(raw_transmission_costs!$I:$I,raw_transmission_costs!$B:$B,$C801,raw_transmission_costs!$A:$A,X$615)","v":0},{"$f":"SUMIFS(raw_transmission_costs!$I:$I,raw_transmission_costs!$B:$B,$C801,raw_transmission_costs!$A:$A,Y$615)","v":0},{"$f":"SUMIFS(raw_transmission_costs!$I:$I,raw_transmission_costs!$B:$B,$C801,raw_transmission_costs!$A:$A,Z$615)","v":0},{"$f":"SUMIFS(raw_transmission_costs!$I:$I,raw_transmission_costs!$B:$B,$C801,raw_transmission_costs!$A:$A,AA$615)","v":0},{"$f":"SUMIFS(raw_transmission_costs!$I:$I,raw_transmission_costs!$B:$B,$C801,raw_transmission_costs!$A:$A,AB$615)","v":0},{"$f":"SUMIFS(raw_transmission_costs!$I:$I,raw_transmission_costs!$B:$B,$C801,raw_transmission_costs!$A:$A,AC$615)","v":0},{"$f":"SUMIFS(raw_transmission_costs!$I:$I,raw_transmission_costs!$B:$B,$C801,raw_transmission_costs!$A:$A,AD$615)","v":0},{"$f":"SUMIFS(raw_transmission_costs!$I:$I,raw_transmission_costs!$B:$B,$C801,raw_transmission_costs!$A:$A,AE$615)","v":0},{"$f":"SUMIFS(raw_transmission_costs!$I:$I,raw_transmission_costs!$B:$B,$C801,raw_transmission_costs!$A:$A,AF$615)","v":0},{"$f":"SUMIFS(raw_transmission_costs!$I:$I,raw_transmission_costs!$B:$B,$C801,raw_transmission_costs!$A:$A,AG$615)","v":0},{"$f":"SUMIFS(raw_transmission_costs!$I:$I,raw_transmission_costs!$B:$B,$C801,raw_transmission_costs!$A:$A,AH$615)","v":0},{"$f":"SUMIFS(raw_transmission_costs!$I:$I,raw_transmission_costs!$B:$B,$C801,raw_transmission_costs!$A:$A,AI$615)","v":0},{"$f":"SUMIFS(raw_transmission_costs!$I:$I,raw_transmission_costs!$B:$B,$C801,raw_transmission_costs!$A:$A,AJ$615)","v":0},{"$f":"SUMIFS(raw_transmission_costs!$I:$I,raw_transmission_costs!$B:$B,$C801,raw_transmission_costs!$A:$A,AK$615)","v":0},{"$f":"SUMIFS(raw_transmission_costs!$I:$I,raw_transmission_costs!$B:$B,$C801,raw_transmission_costs!$A:$A,AL$615)","v":0},{"$f":"SUMIFS(raw_transmission_costs!$I:$I,raw_transmission_costs!$B:$B,$C801,raw_transmission_costs!$A:$A,AM$615)","v":0},{"$f":"SUMIFS(raw_transmission_costs!$I:$I,raw_transmission_costs!$B:$B,$C801,raw_transmission_costs!$A:$A,AN$615)","v":0}]
[null,null,"Central_Valley_North_Los_Banos","MW",{"$f":"SUMIFS(raw_transmission_costs!$I:$I,raw_transmission_costs!$B:$B,$C802,raw_transmission_costs!$A:$A,E$615)","v":0},{"$f":"SUMIFS(raw_transmission_costs!$I:$I,raw_transmission_costs!$B:$B,$C802,raw_transmission_costs!$A:$A,F$615)","v":0},{"$f":"SUMIFS(raw_transmission_costs!$I:$I,raw_transmission_costs!$B:$B,$C802,raw_transmission_costs!$A:$A,G$615)","v":0},{"$f":"SUMIFS(raw_transmission_costs!$I:$I,raw_transmission_costs!$B:$B,$C802,raw_transmission_costs!$A:$A,H$615)","v":0},{"$f":"SUMIFS(raw_transmission_costs!$I:$I,raw_transmission_costs!$B:$B,$C802,raw_transmission_costs!$A:$A,I$615)","v":0},{"$f":"SUMIFS(raw_transmission_costs!$I:$I,raw_transmission_costs!$B:$B,$C802,raw_transmission_costs!$A:$A,J$615)","v":0},{"$f":"SUMIFS(raw_transmission_costs!$I:$I,raw_transmission_costs!$B:$B,$C802,raw_transmission_costs!$A:$A,K$615)","v":0},{"$f":"SUMIFS(raw_transmission_costs!$I:$I,raw_transmission_costs!$B:$B,$C802,raw_transmission_costs!$A:$A,L$615)","v":0},{"$f":"SUMIFS(raw_transmission_costs!$I:$I,raw_transmission_costs!$B:$B,$C802,raw_transmission_costs!$A:$A,M$615)","v":0},{"$f":"SUMIFS(raw_transmission_costs!$I:$I,raw_transmission_costs!$B:$B,$C802,raw_transmission_costs!$A:$A,N$615)","v":0},{"$f":"SUMIFS(raw_transmission_costs!$I:$I,raw_transmission_costs!$B:$B,$C802,raw_transmission_costs!$A:$A,O$615)","v":0},{"$f":"SUMIFS(raw_transmission_costs!$I:$I,raw_transmission_costs!$B:$B,$C802,raw_transmission_costs!$A:$A,P$615)","v":0},{"$f":"SUMIFS(raw_transmission_costs!$I:$I,raw_transmission_costs!$B:$B,$C802,raw_transmission_costs!$A:$A,Q$615)","v":0},{"$f":"SUMIFS(raw_transmission_costs!$I:$I,raw_transmission_costs!$B:$B,$C802,raw_transmission_costs!$A:$A,R$615)","v":0},{"$f":"SUMIFS(raw_transmission_costs!$I:$I,raw_transmission_costs!$B:$B,$C802,raw_transmission_costs!$A:$A,S$615)","v":0},{"$f":"SUMIFS(raw_transmission_costs!$I:$I,raw_transmission_costs!$B:$B,$C802,raw_transmission_costs!$A:$A,T$615)","v":0},{"$f":"SUMIFS(raw_transmission_costs!$I:$I,raw_transmission_costs!$B:$B,$C802,raw_transmission_costs!$A:$A,U$615)","v":0},{"$f":"SUMIFS(raw_transmission_costs!$I:$I,raw_transmission_costs!$B:$B,$C802,raw_transmission_costs!$A:$A,V$615)","v":0},{"$f":"SUMIFS(raw_transmission_costs!$I:$I,raw_transmission_costs!$B:$B,$C802,raw_transmission_costs!$A:$A,W$615)","v":0},{"$f":"SUMIFS(raw_transmission_costs!$I:$I,raw_transmission_costs!$B:$B,$C802,raw_transmission_costs!$A:$A,X$615)","v":0},{"$f":"SUMIFS(raw_transmission_costs!$I:$I,raw_transmission_costs!$B:$B,$C802,raw_transmission_costs!$A:$A,Y$615)","v":0},{"$f":"SUMIFS(raw_transmission_costs!$I:$I,raw_transmission_costs!$B:$B,$C802,raw_transmission_costs!$A:$A,Z$615)","v":0},{"$f":"SUMIFS(raw_transmission_costs!$I:$I,raw_transmission_costs!$B:$B,$C802,raw_transmission_costs!$A:$A,AA$615)","v":0},{"$f":"SUMIFS(raw_transmission_costs!$I:$I,raw_transmission_costs!$B:$B,$C802,raw_transmission_costs!$A:$A,AB$615)","v":0},{"$f":"SUMIFS(raw_transmission_costs!$I:$I,raw_transmission_costs!$B:$B,$C802,raw_transmission_costs!$A:$A,AC$615)","v":0},{"$f":"SUMIFS(raw_transmission_costs!$I:$I,raw_transmission_costs!$B:$B,$C802,raw_transmission_costs!$A:$A,AD$615)","v":0},{"$f":"SUMIFS(raw_transmission_costs!$I:$I,raw_transmission_costs!$B:$B,$C802,raw_transmission_costs!$A:$A,AE$615)","v":0},{"$f":"SUMIFS(raw_transmission_costs!$I:$I,raw_transmission_costs!$B:$B,$C802,raw_transmission_costs!$A:$A,AF$615)","v":0},{"$f":"SUMIFS(raw_transmission_costs!$I:$I,raw_transmission_costs!$B:$B,$C802,raw_transmission_costs!$A:$A,AG$615)","v":0},{"$f":"SUMIFS(raw_transmission_costs!$I:$I,raw_transmission_costs!$B:$B,$C802,raw_transmission_costs!$A:$A,AH$615)","v":0},{"$f":"SUMIFS(raw_transmission_costs!$I:$I,raw_transmission_costs!$B:$B,$C802,raw_transmission_costs!$A:$A,AI$615)","v":0},{"$f":"SUMIFS(raw_transmission_costs!$I:$I,raw_transmission_costs!$B:$B,$C802,raw_transmission_costs!$A:$A,AJ$615)","v":0},{"$f":"SUMIFS(raw_transmission_costs!$I:$I,raw_transmission_costs!$B:$B,$C802,raw_transmission_costs!$A:$A,AK$615)","v":0},{"$f":"SUMIFS(raw_transmission_costs!$I:$I,raw_transmission_costs!$B:$B,$C802,raw_transmission_costs!$A:$A,AL$615)","v":0},{"$f":"SUMIFS(raw_transmission_costs!$I:$I,raw_transmission_costs!$B:$B,$C802,raw_transmission_costs!$A:$A,AM$615)","v":0},{"$f":"SUMIFS(raw_transmission_costs!$I:$I,raw_transmission_costs!$B:$B,$C802,raw_transmission_costs!$A:$A,AN$615)","v":0}]
[null,null,"SPGE","MW",{"$f":"SUMIFS(raw_transmission_costs!$I:$I,raw_transmission_costs!$B:$B,$C803,raw_transmission_costs!$A:$A,E$615)","v":0},{"$f":"SUMIFS(raw_transmission_costs!$I:$I,raw_transmission_costs!$B:$B,$C803,raw_transmission_costs!$A:$A,F$615)","v":0},{"$f":"SUMIFS(raw_transmission_costs!$I:$I,raw_transmission_costs!$B:$B,$C803,raw_transmission_costs!$A:$A,G$615)","v":0},{"$f":"SUMIFS(raw_transmission_costs!$I:$I,raw_transmission_costs!$B:$B,$C803,raw_transmission_costs!$A:$A,H$615)","v":0},{"$f":"SUMIFS(raw_transmission_costs!$I:$I,raw_transmission_costs!$B:$B,$C803,raw_transmission_costs!$A:$A,I$615)","v":0},{"$f":"SUMIFS(raw_transmission_costs!$I:$I,raw_transmission_costs!$B:$B,$C803,raw_transmission_costs!$A:$A,J$615)","v":0},{"$f":"SUMIFS(raw_transmission_costs!$I:$I,raw_transmission_costs!$B:$B,$C803,raw_transmission_costs!$A:$A,K$615)","v":0},{"$f":"SUMIFS(raw_transmission_costs!$I:$I,raw_transmission_costs!$B:$B,$C803,raw_transmission_costs!$A:$A,L$615)","v":0},{"$f":"SUMIFS(raw_transmission_costs!$I:$I,raw_transmission_costs!$B:$B,$C803,raw_transmission_costs!$A:$A,M$615)","v":0},{"$f":"SUMIFS(raw_transmission_costs!$I:$I,raw_transmission_costs!$B:$B,$C803,raw_transmission_costs!$A:$A,N$615)","v":0},{"$f":"SUMIFS(raw_transmission_costs!$I:$I,raw_transmission_costs!$B:$B,$C803,raw_transmission_costs!$A:$A,O$615)","v":0},{"$f":"SUMIFS(raw_transmission_costs!$I:$I,raw_transmission_costs!$B:$B,$C803,raw_transmission_costs!$A:$A,P$615)","v":700},{"$f":"SUMIFS(raw_transmission_costs!$I:$I,raw_transmission_costs!$B:$B,$C803,raw_transmission_costs!$A:$A,Q$615)","v":0},{"$f":"SUMIFS(raw_transmission_costs!$I:$I,raw_transmission_costs!$B:$B,$C803,raw_transmission_costs!$A:$A,R$615)","v":0},{"$f":"SUMIFS(raw_transmission_costs!$I:$I,raw_transmission_costs!$B:$B,$C803,raw_transmission_costs!$A:$A,S$615)","v":0},{"$f":"SUMIFS(raw_transmission_costs!$I:$I,raw_transmission_costs!$B:$B,$C803,raw_transmission_costs!$A:$A,T$615)","v":700},{"$f":"SUMIFS(raw_transmission_costs!$I:$I,raw_transmission_costs!$B:$B,$C803,raw_transmission_costs!$A:$A,U$615)","v":0},{"$f":"SUMIFS(raw_transmission_costs!$I:$I,raw_transmission_costs!$B:$B,$C803,raw_transmission_costs!$A:$A,V$615)","v":0},{"$f":"SUMIFS(raw_transmission_costs!$I:$I,raw_transmission_costs!$B:$B,$C803,raw_transmission_costs!$A:$A,W$615)","v":0},{"$f":"SUMIFS(raw_transmission_costs!$I:$I,raw_transmission_costs!$B:$B,$C803,raw_transmission_costs!$A:$A,X$615)","v":0},{"$f":"SUMIFS(raw_transmission_costs!$I:$I,raw_transmission_costs!$B:$B,$C803,raw_transmission_costs!$A:$A,Y$615)","v":0},{"$f":"SUMIFS(raw_transmission_costs!$I:$I,raw_transmission_costs!$B:$B,$C803,raw_transmission_costs!$A:$A,Z$615)","v":0},{"$f":"SUMIFS(raw_transmission_costs!$I:$I,raw_transmission_costs!$B:$B,$C803,raw_transmission_costs!$A:$A,AA$615)","v":0},{"$f":"SUMIFS(raw_transmission_costs!$I:$I,raw_transmission_costs!$B:$B,$C803,raw_transmission_costs!$A:$A,AB$615)","v":0},{"$f":"SUMIFS(raw_transmission_costs!$I:$I,raw_transmission_costs!$B:$B,$C803,raw_transmission_costs!$A:$A,AC$615)","v":0},{"$f":"SUMIFS(raw_transmission_costs!$I:$I,raw_transmission_costs!$B:$B,$C803,raw_transmission_costs!$A:$A,AD$615)","v":0},{"$f":"SUMIFS(raw_transmission_costs!$I:$I,raw_transmission_costs!$B:$B,$C803,raw_transmission_costs!$A:$A,AE$615)","v":0},{"$f":"SUMIFS(raw_transmission_costs!$I:$I,raw_transmission_costs!$B:$B,$C803,raw_transmission_costs!$A:$A,AF$615)","v":0},{"$f":"SUMIFS(raw_transmission_costs!$I:$I,raw_transmission_costs!$B:$B,$C803,raw_transmission_costs!$A:$A,AG$615)","v":0},{"$f":"SUMIFS(raw_transmission_costs!$I:$I,raw_transmission_costs!$B:$B,$C803,raw_transmission_costs!$A:$A,AH$615)","v":0},{"$f":"SUMIFS(raw_transmission_costs!$I:$I,raw_transmission_costs!$B:$B,$C803,raw_transmission_costs!$A:$A,AI$615)","v":700},{"$f":"SUMIFS(raw_transmission_costs!$I:$I,raw_transmission_costs!$B:$B,$C803,raw_transmission_costs!$A:$A,AJ$615)","v":0},{"$f":"SUMIFS(raw_transmission_costs!$I:$I,raw_transmission_costs!$B:$B,$C803,raw_transmission_costs!$A:$A,AK$615)","v":0},{"$f":"SUMIFS(raw_transmission_costs!$I:$I,raw_transmission_costs!$B:$B,$C803,raw_transmission_costs!$A:$A,AL$615)","v":0},{"$f":"SUMIFS(raw_transmission_costs!$I:$I,raw_transmission_costs!$B:$B,$C803,raw_transmission_costs!$A:$A,AM$615)","v":0},{"$f":"SUMIFS(raw_transmission_costs!$I:$I,raw_transmission_costs!$B:$B,$C803,raw_transmission_costs!$A:$A,AN$615)","v":0}]
[null,null,"Tehachapi","MW",{"$f":"SUMIFS(raw_transmission_costs!$I:$I,raw_transmission_costs!$B:$B,$C804,raw_transmission_costs!$A:$A,E$615)","v":0},{"$f":"SUMIFS(raw_transmission_costs!$I:$I,raw_transmission_costs!$B:$B,$C804,raw_transmission_costs!$A:$A,F$615)","v":0},{"$f":"SUMIFS(raw_transmission_costs!$I:$I,raw_transmission_costs!$B:$B,$C804,raw_transmission_costs!$A:$A,G$615)","v":0},{"$f":"SUMIFS(raw_transmission_costs!$I:$I,raw_transmission_costs!$B:$B,$C804,raw_transmission_costs!$A:$A,H$615)","v":0},{"$f":"SUMIFS(raw_transmission_costs!$I:$I,raw_transmission_costs!$B:$B,$C804,raw_transmission_costs!$A:$A,I$615)","v":0},{"$f":"SUMIFS(raw_transmission_costs!$I:$I,raw_transmission_costs!$B:$B,$C804,raw_transmission_costs!$A:$A,J$615)","v":0},{"$f":"SUMIFS(raw_transmission_costs!$I:$I,raw_transmission_costs!$B:$B,$C804,raw_transmission_costs!$A:$A,K$615)","v":0},{"$f":"SUMIFS(raw_transmission_costs!$I:$I,raw_transmission_costs!$B:$B,$C804,raw_transmission_costs!$A:$A,L$615)","v":800},{"$f":"SUMIFS(raw_transmission_costs!$I:$I,raw_transmission_costs!$B:$B,$C804,raw_transmission_costs!$A:$A,M$615)","v":800},{"$f":"SUMIFS(raw_transmission_costs!$I:$I,raw_transmission_costs!$B:$B,$C804,raw_transmission_costs!$A:$A,N$615)","v":800},{"$f":"SUMIFS(raw_transmission_costs!$I:$I,raw_transmission_costs!$B:$B,$C804,raw_transmission_costs!$A:$A,O$615)","v":0},{"$f":"SUMIFS(raw_transmission_costs!$I:$I,raw_transmission_costs!$B:$B,$C804,raw_transmission_costs!$A:$A,P$615)","v":800},{"$f":"SUMIFS(raw_transmission_costs!$I:$I,raw_transmission_costs!$B:$B,$C804,raw_transmission_costs!$A:$A,Q$615)","v":0},{"$f":"SUMIFS(raw_transmission_costs!$I:$I,raw_transmission_costs!$B:$B,$C804,raw_transmission_costs!$A:$A,R$615)","v":0},{"$f":"SUMIFS(raw_transmission_costs!$I:$I,raw_transmission_costs!$B:$B,$C804,raw_transmission_costs!$A:$A,S$615)","v":0},{"$f":"SUMIFS(raw_transmission_costs!$I:$I,raw_transmission_costs!$B:$B,$C804,raw_transmission_costs!$A:$A,T$615)","v":800},{"$f":"SUMIFS(raw_transmission_costs!$I:$I,raw_transmission_costs!$B:$B,$C804,raw_transmission_costs!$A:$A,U$615)","v":0},{"$f":"SUMIFS(raw_transmission_costs!$I:$I,raw_transmission_costs!$B:$B,$C804,raw_transmission_costs!$A:$A,V$615)","v":0},{"$f":"SUMIFS(raw_transmission_costs!$I:$I,raw_transmission_costs!$B:$B,$C804,raw_transmission_costs!$A:$A,W$615)","v":0},{"$f":"SUMIFS(raw_transmission_costs!$I:$I,raw_transmission_costs!$B:$B,$C804,raw_transmission_costs!$A:$A,X$615)","v":0},{"$f":"SUMIFS(raw_transmission_costs!$I:$I,raw_transmission_costs!$B:$B,$C804,raw_transmission_costs!$A:$A,Y$615)","v":0},{"$f":"SUMIFS(raw_transmission_costs!$I:$I,raw_transmission_costs!$B:$B,$C804,raw_transmission_costs!$A:$A,Z$615)","v":0},{"$f":"SUMIFS(raw_transmission_costs!$I:$I,raw_transmission_costs!$B:$B,$C804,raw_transmission_costs!$A:$A,AA$615)","v":0},{"$f":"SUMIFS(raw_transmission_costs!$I:$I,raw_transmission_costs!$B:$B,$C804,raw_transmission_costs!$A:$A,AB$615)","v":0},{"$f":"SUMIFS(raw_transmission_costs!$I:$I,raw_transmission_costs!$B:$B,$C804,raw_transmission_costs!$A:$A,AC$615)","v":0},{"$f":"SUMIFS(raw_transmission_costs!$I:$I,raw_transmission_costs!$B:$B,$C804,raw_transmission_costs!$A:$A,AD$615)","v":0},{"$f":"SUMIFS(raw_transmission_costs!$I:$I,raw_transmission_costs!$B:$B,$C804,raw_transmission_costs!$A:$A,AE$615)","v":0},{"$f":"SUMIFS(raw_transmission_costs!$I:$I,raw_transmission_costs!$B:$B,$C804,raw_transmission_costs!$A:$A,AF$615)","v":0},{"$f":"SUMIFS(raw_transmission_costs!$I:$I,raw_transmission_costs!$B:$B,$C804,raw_transmission_costs!$A:$A,AG$615)","v":0},{"$f":"SUMIFS(raw_transmission_costs!$I:$I,raw_transmission_costs!$B:$B,$C804,raw_transmission_costs!$A:$A,AH$615)","v":0},{"$f":"SUMIFS(raw_transmission_costs!$I:$I,raw_transmission_costs!$B:$B,$C804,raw_transmission_costs!$A:$A,AI$615)","v":800},{"$f":"SUMIFS(raw_transmission_costs!$I:$I,raw_transmission_costs!$B:$B,$C804,raw_transmission_costs!$A:$A,AJ$615)","v":0},{"$f":"SUMIFS(raw_transmission_costs!$I:$I,raw_transmission_costs!$B:$B,$C804,raw_transmission_costs!$A:$A,AK$615)","v":0},{"$f":"SUMIFS(raw_transmission_costs!$I:$I,raw_transmission_costs!$B:$B,$C804,raw_transmission_costs!$A:$A,AL$615)","v":0},{"$f":"SUMIFS(raw_transmission_costs!$I:$I,raw_transmission_costs!$B:$B,$C804,raw_transmission_costs!$A:$A,AM$615)","v":0},{"$f":"SUMIFS(raw_transmission_costs!$I:$I,raw_transmission_costs!$B:$B,$C804,raw_transmission_costs!$A:$A,AN$615)","v":0}]
[null,null,"Northern_California_Ex","MW",{"$f":"SUMIFS(raw_transmission_costs!$I:$I,raw_transmission_costs!$B:$B,$C805,raw_transmission_costs!$A:$A,E$615)","v":0},{"$f":"SUMIFS(raw_transmission_costs!$I:$I,raw_transmission_costs!$B:$B,$C805,raw_transmission_costs!$A:$A,F$615)","v":0},{"$f":"SUMIFS(raw_transmission_costs!$I:$I,raw_transmission_costs!$B:$B,$C805,raw_transmission_costs!$A:$A,G$615)","v":0},{"$f":"SUMIFS(raw_transmission_costs!$I:$I,raw_transmission_costs!$B:$B,$C805,raw_transmission_costs!$A:$A,H$615)","v":0},{"$f":"SUMIFS(raw_transmission_costs!$I:$I,raw_transmission_costs!$B:$B,$C805,raw_transmission_costs!$A:$A,I$615)","v":0},{"$f":"SUMIFS(raw_transmission_costs!$I:$I,raw_transmission_costs!$B:$B,$C805,raw_transmission_costs!$A:$A,J$615)","v":0},{"$f":"SUMIFS(raw_transmission_costs!$I:$I,raw_transmission_costs!$B:$B,$C805,raw_transmission_costs!$A:$A,K$615)","v":0},{"$f":"SUMIFS(raw_transmission_costs!$I:$I,raw_transmission_costs!$B:$B,$C805,raw_transmission_costs!$A:$A,L$615)","v":0},{"$f":"SUMIFS(raw_transmission_costs!$I:$I,raw_transmission_costs!$B:$B,$C805,raw_transmission_costs!$A:$A,M$615)","v":0},{"$f":"SUMIFS(raw_transmission_costs!$I:$I,raw_transmission_costs!$B:$B,$C805,raw_transmission_costs!$A:$A,N$615)","v":0},{"$f":"SUMIFS(raw_transmission_costs!$I:$I,raw_transmission_costs!$B:$B,$C805,raw_transmission_costs!$A:$A,O$615)","v":0},{"$f":"SUMIFS(raw_transmission_costs!$I:$I,raw_transmission_costs!$B:$B,$C805,raw_transmission_costs!$A:$A,P$615)","v":0},{"$f":"SUMIFS(raw_transmission_costs!$I:$I,raw_transmission_costs!$B:$B,$C805,raw_transmission_costs!$A:$A,Q$615)","v":0},{"$f":"SUMIFS(raw_transmission_costs!$I:$I,raw_transmission_costs!$B:$B,$C805,raw_transmission_costs!$A:$A,R$615)","v":0},{"$f":"SUMIFS(raw_transmission_costs!$I:$I,raw_transmission_costs!$B:$B,$C805,raw_transmission_costs!$A:$A,S$615)","v":0},{"$f":"SUMIFS(raw_transmission_costs!$I:$I,raw_transmission_costs!$B:$B,$C805,raw_transmission_costs!$A:$A,T$615)","v":0},{"$f":"SUMIFS(raw_transmission_costs!$I:$I,raw_transmission_costs!$B:$B,$C805,raw_transmission_costs!$A:$A,U$615)","v":0},{"$f":"SUMIFS(raw_transmission_costs!$I:$I,raw_transmission_costs!$B:$B,$C805,raw_transmission_costs!$A:$A,V$615)","v":0},{"$f":"SUMIFS(raw_transmission_costs!$I:$I,raw_transmission_costs!$B:$B,$C805,raw_transmission_costs!$A:$A,W$615)","v":0},{"$f":"SUMIFS(raw_transmission_costs!$I:$I,raw_transmission_costs!$B:$B,$C805,raw_transmission_costs!$A:$A,X$615)","v":0},{"$f":"SUMIFS(raw_transmission_costs!$I:$I,raw_transmission_costs!$B:$B,$C805,raw_transmission_costs!$A:$A,Y$615)","v":0},{"$f":"SUMIFS(raw_transmission_costs!$I:$I,raw_transmission_costs!$B:$B,$C805,raw_transmission_costs!$A:$A,Z$615)","v":0},{"$f":"SUMIFS(raw_transmission_costs!$I:$I,raw_transmission_costs!$B:$B,$C805,raw_transmission_costs!$A:$A,AA$615)","v":0},{"$f":"SUMIFS(raw_transmission_costs!$I:$I,raw_transmission_costs!$B:$B,$C805,raw_transmission_costs!$A:$A,AB$615)","v":0},{"$f":"SUMIFS(raw_transmission_costs!$I:$I,raw_transmission_costs!$B:$B,$C805,raw_transmission_costs!$A:$A,AC$615)","v":0},{"$f":"SUMIFS(raw_transmission_costs!$I:$I,raw_transmission_costs!$B:$B,$C805,raw_transmission_costs!$A:$A,AD$615)","v":0},{"$f":"SUMIFS(raw_transmission_costs!$I:$I,raw_transmission_costs!$B:$B,$C805,raw_transmission_costs!$A:$A,AE$615)","v":0},{"$f":"SUMIFS(raw_transmission_costs!$I:$I,raw_transmission_costs!$B:$B,$C805,raw_transmission_costs!$A:$A,AF$615)","v":0},{"$f":"SUMIFS(raw_transmission_costs!$I:$I,raw_transmission_costs!$B:$B,$C805,raw_transmission_costs!$A:$A,AG$615)","v":0},{"$f":"SUMIFS(raw_transmission_costs!$I:$I,raw_transmission_costs!$B:$B,$C805,raw_transmission_costs!$A:$A,AH$615)","v":0},{"$f":"SUMIFS(raw_transmission_costs!$I:$I,raw_transmission_costs!$B:$B,$C805,raw_transmission_costs!$A:$A,AI$615)","v":0},{"$f":"SUMIFS(raw_transmission_costs!$I:$I,raw_transmission_costs!$B:$B,$C805,raw_transmission_costs!$A:$A,AJ$615)","v":0},{"$f":"SUMIFS(raw_transmission_costs!$I:$I,raw_transmission_costs!$B:$B,$C805,raw_transmission_costs!$A:$A,AK$615)","v":0},{"$f":"SUMIFS(raw_transmission_costs!$I:$I,raw_transmission_costs!$B:$B,$C805,raw_transmission_costs!$A:$A,AL$615)","v":0},{"$f":"SUMIFS(raw_transmission_costs!$I:$I,raw_transmission_costs!$B:$B,$C805,raw_transmission_costs!$A:$A,AM$615)","v":0},{"$f":"SUMIFS(raw_transmission_costs!$I:$I,raw_transmission_costs!$B:$B,$C805,raw_transmission_costs!$A:$A,AN$615)","v":0}]
[null,null,"Westlands_Ex","MW",{"$f":"SUMIFS(raw_transmission_costs!$I:$I,raw_transmission_costs!$B:$B,$C806,raw_transmission_costs!$A:$A,E$615)","v":0},{"$f":"SUMIFS(raw_transmission_costs!$I:$I,raw_transmission_costs!$B:$B,$C806,raw_transmission_costs!$A:$A,F$615)","v":0},{"$f":"SUMIFS(raw_transmission_costs!$I:$I,raw_transmission_costs!$B:$B,$C806,raw_transmission_costs!$A:$A,G$615)","v":0},{"$f":"SUMIFS(raw_transmission_costs!$I:$I,raw_transmission_costs!$B:$B,$C806,raw_transmission_costs!$A:$A,H$615)","v":0},{"$f":"SUMIFS(raw_transmission_costs!$I:$I,raw_transmission_costs!$B:$B,$C806,raw_transmission_costs!$A:$A,I$615)","v":0},{"$f":"SUMIFS(raw_transmission_costs!$I:$I,raw_transmission_costs!$B:$B,$C806,raw_transmission_costs!$A:$A,J$615)","v":0},{"$f":"SUMIFS(raw_transmission_costs!$I:$I,raw_transmission_costs!$B:$B,$C806,raw_transmission_costs!$A:$A,K$615)","v":0},{"$f":"SUMIFS(raw_transmission_costs!$I:$I,raw_transmission_costs!$B:$B,$C806,raw_transmission_costs!$A:$A,L$615)","v":0},{"$f":"SUMIFS(raw_transmission_costs!$I:$I,raw_transmission_costs!$B:$B,$C806,raw_transmission_costs!$A:$A,M$615)","v":0},{"$f":"SUMIFS(raw_transmission_costs!$I:$I,raw_transmission_costs!$B:$B,$C806,raw_transmission_costs!$A:$A,N$615)","v":0},{"$f":"SUMIFS(raw_transmission_costs!$I:$I,raw_transmission_costs!$B:$B,$C806,raw_transmission_costs!$A:$A,O$615)","v":0},{"$f":"SUMIFS(raw_transmission_costs!$I:$I,raw_transmission_costs!$B:$B,$C806,raw_transmission_costs!$A:$A,P$615)","v":0},{"$f":"SUMIFS(raw_transmission_costs!$I:$I,raw_transmission_costs!$B:$B,$C806,raw_transmission_costs!$A:$A,Q$615)","v":0},{"$f":"SUMIFS(raw_transmission_costs!$I:$I,raw_transmission_costs!$B:$B,$C806,raw_transmission_costs!$A:$A,R$615)","v":0},{"$f":"SUMIFS(raw_transmission_costs!$I:$I,raw_transmission_costs!$B:$B,$C806,raw_transmission_costs!$A:$A,S$615)","v":0},{"$f":"SUMIFS(raw_transmission_costs!$I:$I,raw_transmission_costs!$B:$B,$C806,raw_transmission_costs!$A:$A,T$615)","v":0},{"$f":"SUMIFS(raw_transmission_costs!$I:$I,raw_transmission_costs!$B:$B,$C806,raw_transmission_costs!$A:$A,U$615)","v":0},{"$f":"SUMIFS(raw_transmission_costs!$I:$I,raw_transmission_costs!$B:$B,$C806,raw_transmission_costs!$A:$A,V$615)","v":0},{"$f":"SUMIFS(raw_transmission_costs!$I:$I,raw_transmission_costs!$B:$B,$C806,raw_transmission_costs!$A:$A,W$615)","v":0},{"$f":"SUMIFS(raw_transmission_costs!$I:$I,raw_transmission_costs!$B:$B,$C806,raw_transmission_costs!$A:$A,X$615)","v":0},{"$f":"SUMIFS(raw_transmission_costs!$I:$I,raw_transmission_costs!$B:$B,$C806,raw_transmission_costs!$A:$A,Y$615)","v":0},{"$f":"SUMIFS(raw_transmission_costs!$I:$I,raw_transmission_costs!$B:$B,$C806,raw_transmission_costs!$A:$A,Z$615)","v":0},{"$f":"SUMIFS(raw_transmission_costs!$I:$I,raw_transmission_costs!$B:$B,$C806,raw_transmission_costs!$A:$A,AA$615)","v":0},{"$f":"SUMIFS(raw_transmission_costs!$I:$I,raw_transmission_costs!$B:$B,$C806,raw_transmission_costs!$A:$A,AB$615)","v":0},{"$f":"SUMIFS(raw_transmission_costs!$I:$I,raw_transmission_costs!$B:$B,$C806,raw_transmission_costs!$A:$A,AC$615)","v":0},{"$f":"SUMIFS(raw_transmission_costs!$I:$I,raw_transmission_costs!$B:$B,$C806,raw_transmission_costs!$A:$A,AD$615)","v":0},{"$f":"SUMIFS(raw_transmission_costs!$I:$I,raw_transmission_costs!$B:$B,$C806,raw_transmission_costs!$A:$A,AE$615)","v":0},{"$f":"SUMIFS(raw_transmission_costs!$I:$I,raw_transmission_costs!$B:$B,$C806,raw_transmission_costs!$A:$A,AF$615)","v":0},{"$f":"SUMIFS(raw_transmission_costs!$I:$I,raw_transmission_costs!$B:$B,$C806,raw_transmission_costs!$A:$A,AG$615)","v":0},{"$f":"SUMIFS(raw_transmission_costs!$I:$I,raw_transmission_costs!$B:$B,$C806,raw_transmission_costs!$A:$A,AH$615)","v":0},{"$f":"SUMIFS(raw_transmission_costs!$I:$I,raw_transmission_costs!$B:$B,$C806,raw_transmission_costs!$A:$A,AI$615)","v":0},{"$f":"SUMIFS(raw_transmission_costs!$I:$I,raw_transmission_costs!$B:$B,$C806,raw_transmission_costs!$A:$A,AJ$615)","v":0},{"$f":"SUMIFS(raw_transmission_costs!$I:$I,raw_transmission_costs!$B:$B,$C806,raw_transmission_costs!$A:$A,AK$615)","v":0},{"$f":"SUMIFS(raw_transmission_costs!$I:$I,raw_transmission_costs!$B:$B,$C806,raw_transmission_costs!$A:$A,AL$615)","v":0},{"$f":"SUMIFS(raw_transmission_costs!$I:$I,raw_transmission_costs!$B:$B,$C806,raw_transmission_costs!$A:$A,AM$615)","v":0},{"$f":"SUMIFS(raw_transmission_costs!$I:$I,raw_transmission_costs!$B:$B,$C806,raw_transmission_costs!$A:$A,AN$615)","v":0}]
[null,null,"Tehachapi_Ex","MW",{"$f":"SUMIFS(raw_transmission_costs!$I:$I,raw_transmission_costs!$B:$B,$C807,raw_transmission_costs!$A:$A,E$615)","v":0},{"$f":"SUMIFS(raw_transmission_costs!$I:$I,raw_transmission_costs!$B:$B,$C807,raw_transmission_costs!$A:$A,F$615)","v":0},{"$f":"SUMIFS(raw_transmission_costs!$I:$I,raw_transmission_costs!$B:$B,$C807,raw_transmission_costs!$A:$A,G$615)","v":0},{"$f":"SUMIFS(raw_transmission_costs!$I:$I,raw_transmission_costs!$B:$B,$C807,raw_transmission_costs!$A:$A,H$615)","v":0},{"$f":"SUMIFS(raw_transmission_costs!$I:$I,raw_transmission_costs!$B:$B,$C807,raw_transmission_costs!$A:$A,I$615)","v":0},{"$f":"SUMIFS(raw_transmission_costs!$I:$I,raw_transmission_costs!$B:$B,$C807,raw_transmission_costs!$A:$A,J$615)","v":0},{"$f":"SUMIFS(raw_transmission_costs!$I:$I,raw_transmission_costs!$B:$B,$C807,raw_transmission_costs!$A:$A,K$615)","v":0},{"$f":"SUMIFS(raw_transmission_costs!$I:$I,raw_transmission_costs!$B:$B,$C807,raw_transmission_costs!$A:$A,L$615)","v":0},{"$f":"SUMIFS(raw_transmission_costs!$I:$I,raw_transmission_costs!$B:$B,$C807,raw_transmission_costs!$A:$A,M$615)","v":0},{"$f":"SUMIFS(raw_transmission_costs!$I:$I,raw_transmission_costs!$B:$B,$C807,raw_transmission_costs!$A:$A,N$615)","v":0},{"$f":"SUMIFS(raw_transmission_costs!$I:$I,raw_transmission_costs!$B:$B,$C807,raw_transmission_costs!$A:$A,O$615)","v":0},{"$f":"SUMIFS(raw_transmission_costs!$I:$I,raw_transmission_costs!$B:$B,$C807,raw_transmission_costs!$A:$A,P$615)","v":0},{"$f":"SUMIFS(raw_transmission_costs!$I:$I,raw_transmission_costs!$B:$B,$C807,raw_transmission_costs!$A:$A,Q$615)","v":0},{"$f":"SUMIFS(raw_transmission_costs!$I:$I,raw_transmission_costs!$B:$B,$C807,raw_transmission_costs!$A:$A,R$615)","v":0},{"$f":"SUMIFS(raw_transmission_costs!$I:$I,raw_transmission_costs!$B:$B,$C807,raw_transmission_costs!$A:$A,S$615)","v":0},{"$f":"SUMIFS(raw_transmission_costs!$I:$I,raw_transmission_costs!$B:$B,$C807,raw_transmission_costs!$A:$A,T$615)","v":0},{"$f":"SUMIFS(raw_transmission_costs!$I:$I,raw_transmission_costs!$B:$B,$C807,raw_transmission_costs!$A:$A,U$615)","v":0},{"$f":"SUMIFS(raw_transmission_costs!$I:$I,raw_transmission_costs!$B:$B,$C807,raw_transmission_costs!$A:$A,V$615)","v":0},{"$f":"SUMIFS(raw_transmission_costs!$I:$I,raw_transmission_costs!$B:$B,$C807,raw_transmission_costs!$A:$A,W$615)","v":0},{"$f":"SUMIFS(raw_transmission_costs!$I:$I,raw_transmission_costs!$B:$B,$C807,raw_transmission_costs!$A:$A,X$615)","v":0},{"$f":"SUMIFS(raw_transmission_costs!$I:$I,raw_transmission_costs!$B:$B,$C807,raw_transmission_costs!$A:$A,Y$615)","v":0},{"$f":"SUMIFS(raw_transmission_costs!$I:$I,raw_transmission_costs!$B:$B,$C807,raw_transmission_costs!$A:$A,Z$615)","v":0},{"$f":"SUMIFS(raw_transmission_costs!$I:$I,raw_transmission_costs!$B:$B,$C807,raw_transmission_costs!$A:$A,AA$615)","v":0},{"$f":"SUMIFS(raw_transmission_costs!$I:$I,raw_transmission_costs!$B:$B,$C807,raw_transmission_costs!$A:$A,AB$615)","v":0},{"$f":"SUMIFS(raw_transmission_costs!$I:$I,raw_transmission_costs!$B:$B,$C807,raw_transmission_costs!$A:$A,AC$615)","v":0},{"$f":"SUMIFS(raw_transmission_costs!$I:$I,raw_transmission_costs!$B:$B,$C807,raw_transmission_costs!$A:$A,AD$615)","v":0},{"$f":"SUMIFS(raw_transmission_costs!$I:$I,raw_transmission_costs!$B:$B,$C807,raw_transmission_costs!$A:$A,AE$615)","v":0},{"$f":"SUMIFS(raw_transmission_costs!$I:$I,raw_transmission_costs!$B:$B,$C807,raw_transmission_costs!$A:$A,AF$615)","v":0},{"$f":"SUMIFS(raw_transmission_costs!$I:$I,raw_transmission_costs!$B:$B,$C807,raw_transmission_costs!$A:$A,AG$615)","v":0},{"$f":"SUMIFS(raw_transmission_costs!$I:$I,raw_transmission_costs!$B:$B,$C807,raw_transmission_costs!$A:$A,AH$615)","v":0},{"$f":"SUMIFS(raw_transmission_costs!$I:$I,raw_transmission_costs!$B:$B,$C807,raw_transmission_costs!$A:$A,AI$615)","v":0},{"$f":"SUMIFS(raw_transmission_costs!$I:$I,raw_transmission_costs!$B:$B,$C807,raw_transmission_costs!$A:$A,AJ$615)","v":0},{"$f":"SUMIFS(raw_transmission_costs!$I:$I,raw_transmission_costs!$B:$B,$C807,raw_transmission_costs!$A:$A,AK$615)","v":0},{"$f":"SUMIFS(raw_transmission_costs!$I:$I,raw_transmission_costs!$B:$B,$C807,raw_transmission_costs!$A:$A,AL$615)","v":0},{"$f":"SUMIFS(raw_transmission_costs!$I:$I,raw_transmission_costs!$B:$B,$C807,raw_transmission_costs!$A:$A,AM$615)","v":0},{"$f":"SUMIFS(raw_transmission_costs!$I:$I,raw_transmission_costs!$B:$B,$C807,raw_transmission_costs!$A:$A,AN$615)","v":0}]
[null,null,"Kramer_Inyokern_Ex","MW",{"$f":"SUMIFS(raw_transmission_costs!$I:$I,raw_transmission_costs!$B:$B,$C808,raw_transmission_costs!$A:$A,E$615)","v":0},{"$f":"SUMIFS(raw_transmission_costs!$I:$I,raw_transmission_costs!$B:$B,$C808,raw_transmission_costs!$A:$A,F$615)","v":0},{"$f":"SUMIFS(raw_transmission_costs!$I:$I,raw_transmission_costs!$B:$B,$C808,raw_transmission_costs!$A:$A,G$615)","v":0},{"$f":"SUMIFS(raw_transmission_costs!$I:$I,raw_transmission_costs!$B:$B,$C808,raw_transmission_costs!$A:$A,H$615)","v":0},{"$f":"SUMIFS(raw_transmission_costs!$I:$I,raw_transmission_costs!$B:$B,$C808,raw_transmission_costs!$A:$A,I$615)","v":0},{"$f":"SUMIFS(raw_transmission_costs!$I:$I,raw_transmission_costs!$B:$B,$C808,raw_transmission_costs!$A:$A,J$615)","v":0},{"$f":"SUMIFS(raw_transmission_costs!$I:$I,raw_transmission_costs!$B:$B,$C808,raw_transmission_costs!$A:$A,K$615)","v":0},{"$f":"SUMIFS(raw_transmission_costs!$I:$I,raw_transmission_costs!$B:$B,$C808,raw_transmission_costs!$A:$A,L$615)","v":0},{"$f":"SUMIFS(raw_transmission_costs!$I:$I,raw_transmission_costs!$B:$B,$C808,raw_transmission_costs!$A:$A,M$615)","v":0},{"$f":"SUMIFS(raw_transmission_costs!$I:$I,raw_transmission_costs!$B:$B,$C808,raw_transmission_costs!$A:$A,N$615)","v":0},{"$f":"SUMIFS(raw_transmission_costs!$I:$I,raw_transmission_costs!$B:$B,$C808,raw_transmission_costs!$A:$A,O$615)","v":0},{"$f":"SUMIFS(raw_transmission_costs!$I:$I,raw_transmission_costs!$B:$B,$C808,raw_transmission_costs!$A:$A,P$615)","v":0},{"$f":"SUMIFS(raw_transmission_costs!$I:$I,raw_transmission_costs!$B:$B,$C808,raw_transmission_costs!$A:$A,Q$615)","v":0},{"$f":"SUMIFS(raw_transmission_costs!$I:$I,raw_transmission_costs!$B:$B,$C808,raw_transmission_costs!$A:$A,R$615)","v":0},{"$f":"SUMIFS(raw_transmission_costs!$I:$I,raw_transmission_costs!$B:$B,$C808,raw_transmission_costs!$A:$A,S$615)","v":0},{"$f":"SUMIFS(raw_transmission_costs!$I:$I,raw_transmission_costs!$B:$B,$C808,raw_transmission_costs!$A:$A,T$615)","v":0},{"$f":"SUMIFS(raw_transmission_costs!$I:$I,raw_transmission_costs!$B:$B,$C808,raw_transmission_costs!$A:$A,U$615)","v":0},{"$f":"SUMIFS(raw_transmission_costs!$I:$I,raw_transmission_costs!$B:$B,$C808,raw_transmission_costs!$A:$A,V$615)","v":0},{"$f":"SUMIFS(raw_transmission_costs!$I:$I,raw_transmission_costs!$B:$B,$C808,raw_transmission_costs!$A:$A,W$615)","v":0},{"$f":"SUMIFS(raw_transmission_costs!$I:$I,raw_transmission_costs!$B:$B,$C808,raw_transmission_costs!$A:$A,X$615)","v":0},{"$f":"SUMIFS(raw_transmission_costs!$I:$I,raw_transmission_costs!$B:$B,$C808,raw_transmission_costs!$A:$A,Y$615)","v":0},{"$f":"SUMIFS(raw_transmission_costs!$I:$I,raw_transmission_costs!$B:$B,$C808,raw_transmission_costs!$A:$A,Z$615)","v":0},{"$f":"SUMIFS(raw_transmission_costs!$I:$I,raw_transmission_costs!$B:$B,$C808,raw_transmission_costs!$A:$A,AA$615)","v":0},{"$f":"SUMIFS(raw_transmission_costs!$I:$I,raw_transmission_costs!$B:$B,$C808,raw_transmission_costs!$A:$A,AB$615)","v":0},{"$f":"SUMIFS(raw_transmission_costs!$I:$I,raw_transmission_costs!$B:$B,$C808,raw_transmission_costs!$A:$A,AC$615)","v":0},{"$f":"SUMIFS(raw_transmission_costs!$I:$I,raw_transmission_costs!$B:$B,$C808,raw_transmission_costs!$A:$A,AD$615)","v":0},{"$f":"SUMIFS(raw_transmission_costs!$I:$I,raw_transmission_costs!$B:$B,$C808,raw_transmission_costs!$A:$A,AE$615)","v":0},{"$f":"SUMIFS(raw_transmission_costs!$I:$I,raw_transmission_costs!$B:$B,$C808,raw_transmission_costs!$A:$A,AF$615)","v":0},{"$f":"SUMIFS(raw_transmission_costs!$I:$I,raw_transmission_costs!$B:$B,$C808,raw_transmission_costs!$A:$A,AG$615)","v":0},{"$f":"SUMIFS(raw_transmission_costs!$I:$I,raw_transmission_costs!$B:$B,$C808,raw_transmission_costs!$A:$A,AH$615)","v":0},{"$f":"SUMIFS(raw_transmission_costs!$I:$I,raw_transmission_costs!$B:$B,$C808,raw_transmission_costs!$A:$A,AI$615)","v":0},{"$f":"SUMIFS(raw_transmission_costs!$I:$I,raw_transmission_costs!$B:$B,$C808,raw_transmission_costs!$A:$A,AJ$615)","v":0},{"$f":"SUMIFS(raw_transmission_costs!$I:$I,raw_transmission_costs!$B:$B,$C808,raw_transmission_costs!$A:$A,AK$615)","v":0},{"$f":"SUMIFS(raw_transmission_costs!$I:$I,raw_transmission_costs!$B:$B,$C808,raw_transmission_costs!$A:$A,AL$615)","v":0},{"$f":"SUMIFS(raw_transmission_costs!$I:$I,raw_transmission_costs!$B:$B,$C808,raw_transmission_costs!$A:$A,AM$615)","v":0},{"$f":"SUMIFS(raw_transmission_costs!$I:$I,raw_transmission_costs!$B:$B,$C808,raw_transmission_costs!$A:$A,AN$615)","v":0}]
[null,null,"Southern_California_Desert_Ex","MW",{"$f":"SUMIFS(raw_transmission_costs!$I:$I,raw_transmission_costs!$B:$B,$C809,raw_transmission_costs!$A:$A,E$615)","v":0},{"$f":"SUMIFS(raw_transmission_costs!$I:$I,raw_transmission_costs!$B:$B,$C809,raw_transmission_costs!$A:$A,F$615)","v":0},{"$f":"SUMIFS(raw_transmission_costs!$I:$I,raw_transmission_costs!$B:$B,$C809,raw_transmission_costs!$A:$A,G$615)","v":0},{"$f":"SUMIFS(raw_transmission_costs!$I:$I,raw_transmission_costs!$B:$B,$C809,raw_transmission_costs!$A:$A,H$615)","v":0},{"$f":"SUMIFS(raw_transmission_costs!$I:$I,raw_transmission_costs!$B:$B,$C809,raw_transmission_costs!$A:$A,I$615)","v":0},{"$f":"SUMIFS(raw_transmission_costs!$I:$I,raw_transmission_costs!$B:$B,$C809,raw_transmission_costs!$A:$A,J$615)","v":0},{"$f":"SUMIFS(raw_transmission_costs!$I:$I,raw_transmission_costs!$B:$B,$C809,raw_transmission_costs!$A:$A,K$615)","v":0},{"$f":"SUMIFS(raw_transmission_costs!$I:$I,raw_transmission_costs!$B:$B,$C809,raw_transmission_costs!$A:$A,L$615)","v":0},{"$f":"SUMIFS(raw_transmission_costs!$I:$I,raw_transmission_costs!$B:$B,$C809,raw_transmission_costs!$A:$A,M$615)","v":0},{"$f":"SUMIFS(raw_transmission_costs!$I:$I,raw_transmission_costs!$B:$B,$C809,raw_transmission_costs!$A:$A,N$615)","v":0},{"$f":"SUMIFS(raw_transmission_costs!$I:$I,raw_transmission_costs!$B:$B,$C809,raw_transmission_costs!$A:$A,O$615)","v":0},{"$f":"SUMIFS(raw_transmission_costs!$I:$I,raw_transmission_costs!$B:$B,$C809,raw_transmission_costs!$A:$A,P$615)","v":0},{"$f":"SUMIFS(raw_transmission_costs!$I:$I,raw_transmission_costs!$B:$B,$C809,raw_transmission_costs!$A:$A,Q$615)","v":0},{"$f":"SUMIFS(raw_transmission_costs!$I:$I,raw_transmission_costs!$B:$B,$C809,raw_transmission_costs!$A:$A,R$615)","v":0},{"$f":"SUMIFS(raw_transmission_costs!$I:$I,raw_transmission_costs!$B:$B,$C809,raw_transmission_costs!$A:$A,S$615)","v":0},{"$f":"SUMIFS(raw_transmission_costs!$I:$I,raw_transmission_costs!$B:$B,$C809,raw_transmission_costs!$A:$A,T$615)","v":0},{"$f":"SUMIFS(raw_transmission_costs!$I:$I,raw_transmission_costs!$B:$B,$C809,raw_transmission_costs!$A:$A,U$615)","v":0},{"$f":"SUMIFS(raw_transmission_costs!$I:$I,raw_transmission_costs!$B:$B,$C809,raw_transmission_costs!$A:$A,V$615)","v":0},{"$f":"SUMIFS(raw_transmission_costs!$I:$I,raw_transmission_costs!$B:$B,$C809,raw_transmission_costs!$A:$A,W$615)","v":0},{"$f":"SUMIFS(raw_transmission_costs!$I:$I,raw_transmission_costs!$B:$B,$C809,raw_transmission_costs!$A:$A,X$615)","v":0},{"$f":"SUMIFS(raw_transmission_costs!$I:$I,raw_transmission_costs!$B:$B,$C809,raw_transmission_costs!$A:$A,Y$615)","v":0},{"$f":"SUMIFS(raw_transmission_costs!$I:$I,raw_transmission_costs!$B:$B,$C809,raw_transmission_costs!$A:$A,Z$615)","v":0},{"$f":"SUMIFS(raw_transmission_costs!$I:$I,raw_transmission_costs!$B:$B,$C809,raw_transmission_costs!$A:$A,AA$615)","v":0},{"$f":"SUMIFS(raw_transmission_costs!$I:$I,raw_transmission_costs!$B:$B,$C809,raw_transmission_costs!$A:$A,AB$615)","v":0},{"$f":"SUMIFS(raw_transmission_costs!$I:$I,raw_transmission_costs!$B:$B,$C809,raw_transmission_costs!$A:$A,AC$615)","v":0},{"$f":"SUMIFS(raw_transmission_costs!$I:$I,raw_transmission_costs!$B:$B,$C809,raw_transmission_costs!$A:$A,AD$615)","v":0},{"$f":"SUMIFS(raw_transmission_costs!$I:$I,raw_transmission_costs!$B:$B,$C809,raw_transmission_costs!$A:$A,AE$615)","v":0},{"$f":"SUMIFS(raw_transmission_costs!$I:$I,raw_transmission_costs!$B:$B,$C809,raw_transmission_costs!$A:$A,AF$615)","v":0},{"$f":"SUMIFS(raw_transmission_costs!$I:$I,raw_transmission_costs!$B:$B,$C809,raw_transmission_costs!$A:$A,AG$615)","v":0},{"$f":"SUMIFS(raw_transmission_costs!$I:$I,raw_transmission_costs!$B:$B,$C809,raw_transmission_costs!$A:$A,AH$615)","v":0},{"$f":"SUMIFS(raw_transmission_costs!$I:$I,raw_transmission_costs!$B:$B,$C809,raw_transmission_costs!$A:$A,AI$615)","v":0},{"$f":"SUMIFS(raw_transmission_costs!$I:$I,raw_transmission_costs!$B:$B,$C809,raw_transmission_costs!$A:$A,AJ$615)","v":0},{"$f":"SUMIFS(raw_transmission_costs!$I:$I,raw_transmission_costs!$B:$B,$C809,raw_transmission_costs!$A:$A,AK$615)","v":0},{"$f":"SUMIFS(raw_transmission_costs!$I:$I,raw_transmission_costs!$B:$B,$C809,raw_transmission_costs!$A:$A,AL$615)","v":0},{"$f":"SUMIFS(raw_transmission_costs!$I:$I,raw_transmission_costs!$B:$B,$C809,raw_transmission_costs!$A:$A,AM$615)","v":0},{"$f":"SUMIFS(raw_transmission_costs!$I:$I,raw_transmission_costs!$B:$B,$C809,raw_transmission_costs!$A:$A,AN$615)","v":0}]
[null,null,"OffshoreWind_UnknownCost","MW",{"$f":"SUMIFS(raw_transmission_costs!$I:$I,raw_transmission_costs!$B:$B,$C810,raw_transmission_costs!$A:$A,E$615)","v":0},{"$f":"SUMIFS(raw_transmission_costs!$I:$I,raw_transmission_costs!$B:$B,$C810,raw_transmission_costs!$A:$A,F$615)","v":0},{"$f":"SUMIFS(raw_transmission_costs!$I:$I,raw_transmission_costs!$B:$B,$C810,raw_transmission_costs!$A:$A,G$615)","v":0},{"$f":"SUMIFS(raw_transmission_costs!$I:$I,raw_transmission_costs!$B:$B,$C810,raw_transmission_costs!$A:$A,H$615)","v":0},{"$f":"SUMIFS(raw_transmission_costs!$I:$I,raw_transmission_costs!$B:$B,$C810,raw_transmission_costs!$A:$A,I$615)","v":0},{"$f":"SUMIFS(raw_transmission_costs!$I:$I,raw_transmission_costs!$B:$B,$C810,raw_transmission_costs!$A:$A,J$615)","v":0},{"$f":"SUMIFS(raw_transmission_costs!$I:$I,raw_transmission_costs!$B:$B,$C810,raw_transmission_costs!$A:$A,K$615)","v":0},{"$f":"SUMIFS(raw_transmission_costs!$I:$I,raw_transmission_costs!$B:$B,$C810,raw_transmission_costs!$A:$A,L$615)","v":0},{"$f":"SUMIFS(raw_transmission_costs!$I:$I,raw_transmission_costs!$B:$B,$C810,raw_transmission_costs!$A:$A,M$615)","v":0},{"$f":"SUMIFS(raw_transmission_costs!$I:$I,raw_transmission_costs!$B:$B,$C810,raw_transmission_costs!$A:$A,N$615)","v":0},{"$f":"SUMIFS(raw_transmission_costs!$I:$I,raw_transmission_costs!$B:$B,$C810,raw_transmission_costs!$A:$A,O$615)","v":0},{"$f":"SUMIFS(raw_transmission_costs!$I:$I,raw_transmission_costs!$B:$B,$C810,raw_transmission_costs!$A:$A,P$615)","v":0},{"$f":"SUMIFS(raw_transmission_costs!$I:$I,raw_transmission_costs!$B:$B,$C810,raw_transmission_costs!$A:$A,Q$615)","v":0},{"$f":"SUMIFS(raw_transmission_costs!$I:$I,raw_transmission_costs!$B:$B,$C810,raw_transmission_costs!$A:$A,R$615)","v":0},{"$f":"SUMIFS(raw_transmission_costs!$I:$I,raw_transmission_costs!$B:$B,$C810,raw_transmission_costs!$A:$A,S$615)","v":0},{"$f":"SUMIFS(raw_transmission_costs!$I:$I,raw_transmission_costs!$B:$B,$C810,raw_transmission_costs!$A:$A,T$615)","v":0},{"$f":"SUMIFS(raw_transmission_costs!$I:$I,raw_transmission_costs!$B:$B,$C810,raw_transmission_costs!$A:$A,U$615)","v":0},{"$f":"SUMIFS(raw_transmission_costs!$I:$I,raw_transmission_costs!$B:$B,$C810,raw_transmission_costs!$A:$A,V$615)","v":0},{"$f":"SUMIFS(raw_transmission_costs!$I:$I,raw_transmission_costs!$B:$B,$C810,raw_transmission_costs!$A:$A,W$615)","v":0},{"$f":"SUMIFS(raw_transmission_costs!$I:$I,raw_transmission_costs!$B:$B,$C810,raw_transmission_costs!$A:$A,X$615)","v":0},{"$f":"SUMIFS(raw_transmission_costs!$I:$I,raw_transmission_costs!$B:$B,$C810,raw_transmission_costs!$A:$A,Y$615)","v":0},{"$f":"SUMIFS(raw_transmission_costs!$I:$I,raw_transmission_costs!$B:$B,$C810,raw_transmission_costs!$A:$A,Z$615)","v":0},{"$f":"SUMIFS(raw_transmission_costs!$I:$I,raw_transmission_costs!$B:$B,$C810,raw_transmission_costs!$A:$A,AA$615)","v":0},{"$f":"SUMIFS(raw_transmission_costs!$I:$I,raw_transmission_costs!$B:$B,$C810,raw_transmission_costs!$A:$A,AB$615)","v":0},{"$f":"SUMIFS(raw_transmission_costs!$I:$I,raw_transmission_costs!$B:$B,$C810,raw_transmission_costs!$A:$A,AC$615)","v":0},{"$f":"SUMIFS(raw_transmission_costs!$I:$I,raw_transmission_costs!$B:$B,$C810,raw_transmission_costs!$A:$A,AD$615)","v":0},{"$f":"SUMIFS(raw_transmission_costs!$I:$I,raw_transmission_costs!$B:$B,$C810,raw_transmission_costs!$A:$A,AE$615)","v":0},{"$f":"SUMIFS(raw_transmission_costs!$I:$I,raw_transmission_costs!$B:$B,$C810,raw_transmission_costs!$A:$A,AF$615)","v":0},{"$f":"SUMIFS(raw_transmission_costs!$I:$I,raw_transmission_costs!$B:$B,$C810,raw_transmission_costs!$A:$A,AG$615)","v":0},{"$f":"SUMIFS(raw_transmission_costs!$I:$I,raw_transmission_costs!$B:$B,$C810,raw_transmission_costs!$A:$A,AH$615)","v":0},{"$f":"SUMIFS(raw_transmission_costs!$I:$I,raw_transmission_costs!$B:$B,$C810,raw_transmission_costs!$A:$A,AI$615)","v":0},{"$f":"SUMIFS(raw_transmission_costs!$I:$I,raw_transmission_costs!$B:$B,$C810,raw_transmission_costs!$A:$A,AJ$615)","v":0},{"$f":"SUMIFS(raw_transmission_costs!$I:$I,raw_transmission_costs!$B:$B,$C810,raw_transmission_costs!$A:$A,AK$615)","v":0},{"$f":"SUMIFS(raw_transmission_costs!$I:$I,raw_transmission_costs!$B:$B,$C810,raw_transmission_costs!$A:$A,AL$615)","v":0},{"$f":"SUMIFS(raw_transmission_costs!$I:$I,raw_transmission_costs!$B:$B,$C810,raw_transmission_costs!$A:$A,AM$615)","v":0},{"$f":"SUMIFS(raw_transmission_costs!$I:$I,raw_transmission_costs!$B:$B,$C810,raw_transmission_costs!$A:$A,AN$615)","v":0}]
[null,null,"None","MW",{"$f":"SUMIFS(raw_transmission_costs!$I:$I,raw_transmission_costs!$B:$B,$C811,raw_transmission_costs!$A:$A,E$615)","v":0},{"$f":"SUMIFS(raw_transmission_costs!$I:$I,raw_transmission_costs!$B:$B,$C811,raw_transmission_costs!$A:$A,F$615)","v":0},{"$f":"SUMIFS(raw_transmission_costs!$I:$I,raw_transmission_costs!$B:$B,$C811,raw_transmission_costs!$A:$A,G$615)","v":0},{"$f":"SUMIFS(raw_transmission_costs!$I:$I,raw_transmission_costs!$B:$B,$C811,raw_transmission_costs!$A:$A,H$615)","v":0},{"$f":"SUMIFS(raw_transmission_costs!$I:$I,raw_transmission_costs!$B:$B,$C811,raw_transmission_costs!$A:$A,I$615)","v":0},{"$f":"SUMIFS(raw_transmission_costs!$I:$I,raw_transmission_costs!$B:$B,$C811,raw_transmission_costs!$A:$A,J$615)","v":0},{"$f":"SUMIFS(raw_transmission_costs!$I:$I,raw_transmission_costs!$B:$B,$C811,raw_transmission_costs!$A:$A,K$615)","v":0},{"$f":"SUMIFS(raw_transmission_costs!$I:$I,raw_transmission_costs!$B:$B,$C811,raw_transmission_costs!$A:$A,L$615)","v":0},{"$f":"SUMIFS(raw_transmission_costs!$I:$I,raw_transmission_costs!$B:$B,$C811,raw_transmission_costs!$A:$A,M$615)","v":0},{"$f":"SUMIFS(raw_transmission_costs!$I:$I,raw_transmission_costs!$B:$B,$C811,raw_transmission_costs!$A:$A,N$615)","v":0},{"$f":"SUMIFS(raw_transmission_costs!$I:$I,raw_transmission_costs!$B:$B,$C811,raw_transmission_costs!$A:$A,O$615)","v":0},{"$f":"SUMIFS(raw_transmission_costs!$I:$I,raw_transmission_costs!$B:$B,$C811,raw_transmission_costs!$A:$A,P$615)","v":0},{"$f":"SUMIFS(raw_transmission_costs!$I:$I,raw_transmission_costs!$B:$B,$C811,raw_transmission_costs!$A:$A,Q$615)","v":0},{"$f":"SUMIFS(raw_transmission_costs!$I:$I,raw_transmission_costs!$B:$B,$C811,raw_transmission_costs!$A:$A,R$615)","v":0},{"$f":"SUMIFS(raw_transmission_costs!$I:$I,raw_transmission_costs!$B:$B,$C811,raw_transmission_costs!$A:$A,S$615)","v":0},{"$f":"SUMIFS(raw_transmission_costs!$I:$I,raw_transmission_costs!$B:$B,$C811,raw_transmission_costs!$A:$A,T$615)","v":0},{"$f":"SUMIFS(raw_transmission_costs!$I:$I,raw_transmission_costs!$B:$B,$C811,raw_transmission_costs!$A:$A,U$615)","v":0},{"$f":"SUMIFS(raw_transmission_costs!$I:$I,raw_transmission_costs!$B:$B,$C811,raw_transmission_costs!$A:$A,V$615)","v":0},{"$f":"SUMIFS(raw_transmission_costs!$I:$I,raw_transmission_costs!$B:$B,$C811,raw_transmission_costs!$A:$A,W$615)","v":0},{"$f":"SUMIFS(raw_transmission_costs!$I:$I,raw_transmission_costs!$B:$B,$C811,raw_transmission_costs!$A:$A,X$615)","v":0},{"$f":"SUMIFS(raw_transmission_costs!$I:$I,raw_transmission_costs!$B:$B,$C811,raw_transmission_costs!$A:$A,Y$615)","v":0},{"$f":"SUMIFS(raw_transmission_costs!$I:$I,raw_transmission_costs!$B:$B,$C811,raw_transmission_costs!$A:$A,Z$615)","v":0},{"$f":"SUMIFS(raw_transmission_costs!$I:$I,raw_transmission_costs!$B:$B,$C811,raw_transmission_costs!$A:$A,AA$615)","v":0},{"$f":"SUMIFS(raw_transmission_costs!$I:$I,raw_transmission_costs!$B:$B,$C811,raw_transmission_costs!$A:$A,AB$615)","v":0},{"$f":"SUMIFS(raw_transmission_costs!$I:$I,raw_transmission_costs!$B:$B,$C811,raw_transmission_costs!$A:$A,AC$615)","v":0},{"$f":"SUMIFS(raw_transmission_costs!$I:$I,raw_transmission_costs!$B:$B,$C811,raw_transmission_costs!$A:$A,AD$615)","v":0},{"$f":"SUMIFS(raw_transmission_costs!$I:$I,raw_transmission_costs!$B:$B,$C811,raw_transmission_costs!$A:$A,AE$615)","v":0},{"$f":"SUMIFS(raw_transmission_costs!$I:$I,raw_transmission_costs!$B:$B,$C811,raw_transmission_costs!$A:$A,AF$615)","v":0},{"$f":"SUMIFS(raw_transmission_costs!$I:$I,raw_transmission_costs!$B:$B,$C811,raw_transmission_costs!$A:$A,AG$615)","v":0},{"$f":"SUMIFS(raw_transmission_costs!$I:$I,raw_transmission_costs!$B:$B,$C811,raw_transmission_costs!$A:$A,AH$615)","v":0},{"$f":"SUMIFS(raw_transmission_costs!$I:$I,raw_transmission_costs!$B:$B,$C811,raw_transmission_costs!$A:$A,AI$615)","v":0},{"$f":"SUMIFS(raw_transmission_costs!$I:$I,raw_transmission_costs!$B:$B,$C811,raw_transmission_costs!$A:$A,AJ$615)","v":0},{"$f":"SUMIFS(raw_transmission_costs!$I:$I,raw_transmission_costs!$B:$B,$C811,raw_transmission_costs!$A:$A,AK$615)","v":0},{"$f":"SUMIFS(raw_transmission_costs!$I:$I,raw_transmission_costs!$B:$B,$C811,raw_transmission_costs!$A:$A,AL$615)","v":0},{"$f":"SUMIFS(raw_transmission_costs!$I:$I,raw_transmission_costs!$B:$B,$C811,raw_transmission_costs!$A:$A,AM$615)","v":0},{"$f":"SUMIFS(raw_transmission_costs!$I:$I,raw_transmission_costs!$B:$B,$C811,raw_transmission_costs!$A:$A,AN$615)","v":0}]
[]
[null,null,"Remaining Energy Only Transmission"]
[null,null,"Tx Zone","Unit",2015,2016,2017,2018,2019,2020,2021,2022,2023,2024,2025,2026,2027,2028,2029,2030,2031,2032,2033,2034,2035,2036,2037,2038,2039,2040,2041,2042,2043,2044,2045,2046,2047,2048,2049,2050]
[null,null,{"$f":"C616","v":"Greater_Kramer"},"MW",{"$f":"E761-E788","v":0},{"$f":"F761-F788","v":0},0,0,0,0,0,0,0,0,0,0,0,0,0,0,0,0,0,0,0,0,0,0,0,0,0,0,0,0,0,0,0,0,0,0]
[null,null,"Inyokern_North_Kramer","MW",{"$f":"E762-E789","v":0},0,0,0,0,0,0,0,0,0,0,0,0,0,0,0,0,0,0,0,0,0,0,0,0,0,0,0,0,0,0,0,0,0,0,0]
[null,null,"North_Victor","MW",{"$f":"E763-E790","v":0},0,0,0,0,0,0,0,0,0,0,0,0,0,0,0,{"$f":"U763-U790","v":0},0,0,0,0,0,0,0,0,0,0,0,0,0,0,0,0,0,0,0]
[null,null,"Humboldt","MW",{"$f":"E764-E791","v":0},0,0,0,0,100,66,66,66,66,0,66,0,0,0,66,{"$f":"U764-U791","v":0},0,0,0,0,0,0,0,0,0,0,0,0,0,66,0,0,0,0,0]
[null,null,"Sacramento_River","MW",{"$f":"E765-E792","v":0},0,0,0,0,2600,2566,2566,2566,2566,0,2566,0,0,0,0,{"$f":"U765-U792","v":0},0,0,0,0,0,0,0,0,0,0,0,0,0,0,0,0,0,0,0]
[null,null,"Solano","MW",{"$f":"E766-E793","v":0},0,0,0,0,700,700,700,700,700,0,700,0,0,0,0,{"$f":"U766-U793","v":0},0,0,0,0,0,0,0,0,0,0,0,0,0,0,0,0,0,0,0]
[null,null,"Solano_subzone","MW",{"$f":"E767-E794","v":0},0,0,0,0,0,0,0,0,0,0,0,0,0,0,0,{"$f":"U767-U794","v":0},0,0,0,0,0,0,0,0,0,0,0,0,0,0,0,0,0,0,0]
[null,null,"Mountain_Pass_El_Dorado","MW",{"$f":"E768-E795","v":0},0,0,0,0,2150,2150,2150,2150,2150,0,2150,0,0,0,2150,{"$f":"U768-U795","v":0},0,0,0,0,0,0,0,0,0,0,0,0,0,2150,0,0,0,0,0]
[null,null,"GLW_VEA","MW",{"$f":"E769-E796","v":0},0,0,0,0,0,0,0,0,0,0,0,0,0,0,0,{"$f":"U769-U796","v":0},0,0,0,0,0,0,0,0,0,0,0,0,0,0,0,0,0,0,0]
[null,null,"Greater_Imperial","MW",{"$f":"E770-E797","v":0},0,0,0,0,1900,1900,1900,1900,1900,0,1033.02,0,0,0,525.19000000000005,{"$f":"U770-U797","v":0},0,0,0,0,0,0,0,0,0,0,0,0,0,0,0,0,0,0,0]
[null,null,"Riverside_Palm_Springs","MW",{"$f":"E771-E798","v":0},0,0,0,0,2550,2550,2550,2550,0,0,0,0,0,0,0,{"$f":"U771-U798","v":0},0,0,0,0,0,0,0,0,0,0,0,0,0,0,0,0,0,0,0]
[null,null,"SCADSNV","MW",{"$f":"E772-E799","v":0},0,0,0,0,6600,6600,6600,6600,4050,0,1033.0200000000004,0,0,0,525.1899999999996,{"$f":"U772-U799","v":0},0,0,0,0,0,0,0,0,0,0,0,0,0,0,0,0,0,0,0]
[null,null,"Kern_Greater_Carrizo","MW",{"$f":"E773-E800","v":0},0,0,0,0,700,700,700,700,700,0,0,0,0,0,0,{"$f":"U773-U800","v":0},0,0,0,0,0,0,0,0,0,0,0,0,0,0,0,0,0,0,0]
[null,null,"Carrizo","MW",{"$f":"E774-E801","v":0},0,0,0,0,0,0,0,0,0,0,0,0,0,0,0,{"$f":"U774-U801","v":0},0,0,0,0,0,0,0,0,0,0,0,0,0,0,0,0,0,0,0]
[null,null,"Central_Valley_North_Los_Banos","MW",{"$f":"E775-E802","v":0},0,0,0,0,0,0,0,0,0,0,0,0,0,0,0,{"$f":"U775-U802","v":0},0,0,0,0,0,0,0,0,0,0,0,0,0,0,0,0,0,0,0]
[null,null,"SPGE","MW",{"$f":"E776-E803","v":0},0,0,0,0,700,700,700,700,700,0,0,0,0,0,0,{"$f":"U776-U803","v":0},0,0,0,0,0,0,0,0,0,0,0,0,0,0,0,0,0,0,0]
[null,null,"Tehachapi","MW",{"$f":"E777-E804","v":0},0,0,0,0,800,800,0,0,0,0,0,0,0,0,0,{"$f":"U777-U804","v":0},0,0,0,0,0,0,0,0,0,0,0,0,0,0,0,0,0,0,0]
[null,null,"Northern_California_Ex","MW",{"$f":"E778-E805","v":0},0,0,0,0,0,0,0,0,0,0,0,0,0,0,0,{"$f":"U778-U805","v":0},0,0,0,0,0,0,0,0,0,0,0,0,0,0,0,0,0,0,0]
[null,null,"Westlands_Ex","MW",{"$f":"E779-E806","v":0},0,0,0,0,0,0,0,0,0,0,0,0,0,0,0,{"$f":"U779-U806","v":0},0,0,0,0,0,0,0,0,0,0,0,0,0,0,0,0,0,0,0]
[null,null,"Tehachapi_Ex","MW",{"$f":"E780-E807","v":0},0,0,0,0,0,0,0,0,0,0,0,0,0,0,0,{"$f":"U780-U807","v":0},0,0,0,0,0,0,0,0,0,0,0,0,0,0,0,0,0,0,0]
[null,null,"Kramer_Inyokern_Ex","MW",{"$f":"E781-E808","v":0},0,0,0,0,0,0,0,0,0,0,0,0,0,0,0,{"$f":"U781-U808","v":0},0,0,0,0,0,0,0,0,0,0,0,0,0,0,0,0,0,0,0]
[null,null,"Southern_California_Desert_Ex","MW",{"$f":"E782-E809","v":0},0,0,0,0,0,0,0,0,0,0,0,0,0,0,0,{"$f":"U782-U809","v":0},0,0,0,0,0,0,0,0,0,0,0,0,0,0,0,0,0,0,0]
[null,null,"OffshoreWind_UnknownCost","MW",0,0,0,0,0,0,0,0,0,0,0,0,0,0,0,0,0,0,0,0,0,0,0,0,0,0,0,0,0,0,0,0,0,0,0,0]
[null,null,"None","MW",{"$f":"E784-E811","v":0},0,0,0,0,0,0,0,0,0,0,0,0,0,0,0,{"$f":"U784-U811","v":0},0,0,0,0,0,0,0,0,0,0,0,0,0,0,0,0,0,0,0]
[]
[]
[null,"RPS and Renewable Curtailment Summary"]
[]
[null,null,"Metric","Unit",2015,{"$f":"E843+1","v":2016},2017,2018,2019,2020,2021,2022,2023,2024,2025,2026,2027,2028,2029,2030,2031,2032,2033,2034,2035,2036,2037,2038,2039,2040,2041,2042,2043,2044,2045,2046,2047,2048,2049,2050]
[null,null,"T&D Losses","%",{"$f":"SUMIFS(raw_inputs_passthrough!$N:$N,raw_inputs_passthrough!$A:$A,E$843)","v":0},{"$f":"SUMIFS(raw_inputs_passthrough!$N:$N,raw_inputs_passthrough!$A:$A,F$843)","v":0},{"$f":"SUMIFS(raw_inputs_passthrough!$N:$N,raw_inputs_passthrough!$A:$A,G$843)","v":0},{"$f":"SUMIFS(raw_inputs_passthrough!$N:$N,raw_inputs_passthrough!$A:$A,H$843)","v":0},{"$f":"SUMIFS(raw_inputs_passthrough!$N:$N,raw_inputs_passthrough!$A:$A,I$843)","v":0},{"$f":"SUMIFS(raw_inputs_passthrough!$N:$N,raw_inputs_passthrough!$A:$A,J$843)","v":7.2400000000000006E-2},{"$f":"SUMIFS(raw_inputs_passthrough!$N:$N,raw_inputs_passthrough!$A:$A,K$843)","v":7.2400000000000006E-2},{"$f":"SUMIFS(raw_inputs_passthrough!$N:$N,raw_inputs_passthrough!$A:$A,L$843)","v":7.2400000000000006E-2},{"$f":"SUMIFS(raw_inputs_passthrough!$N:$N,raw_inputs_passthrough!$A:$A,M$843)","v":7.2400000000000006E-2},{"$f":"SUMIFS(raw_inputs_passthrough!$N:$N,raw_inputs_passthrough!$A:$A,N$843)","v":7.2400000000000006E-2},{"$f":"SUMIFS(raw_inputs_passthrough!$N:$N,raw_inputs_passthrough!$A:$A,O$843)","v":0},{"$f":"SUMIFS(raw_inputs_passthrough!$N:$N,raw_inputs_passthrough!$A:$A,P$843)","v":7.2400000000000006E-2},{"$f":"SUMIFS(raw_inputs_passthrough!$N:$N,raw_inputs_passthrough!$A:$A,Q$843)","v":0},{"$f":"SUMIFS(raw_inputs_passthrough!$N:$N,raw_inputs_passthrough!$A:$A,R$843)","v":0},{"$f":"SUMIFS(raw_inputs_passthrough!$N:$N,raw_inputs_passthrough!$A:$A,S$843)","v":0},{"$f":"SUMIFS(raw_inputs_passthrough!$N:$N,raw_inputs_passthrough!$A:$A,T$843)","v":7.2400000000000006E-2},{"$f":"SUMIFS(raw_inputs_passthrough!$N:$N,raw_inputs_passthrough!$A:$A,U$843)","v":0},{"$f":"SUMIFS(raw_inputs_passthrough!$N:$N,raw_inputs_passthrough!$A:$A,V$843)","v":0},{"$f":"SUMIFS(raw_inputs_passthrough!$N:$N,raw_inputs_passthrough!$A:$A,W$843)","v":0},{"$f":"SUMIFS(raw_inputs_passthrough!$N:$N,raw_inputs_passthrough!$A:$A,X$843)","v":0},{"$f":"SUMIFS(raw_inputs_passthrough!$N:$N,raw_inputs_passthrough!$A:$A,Y$843)","v":0},{"$f":"SUMIFS(raw_inputs_passthrough!$N:$N,raw_inputs_passthrough!$A:$A,Z$843)","v":0},{"$f":"SUMIFS(raw_inputs_passthrough!$N:$N,raw_inputs_passthrough!$A:$A,AA$843)","v":0},{"$f":"SUMIFS(raw_inputs_passthrough!$N:$N,raw_inputs_passthrough!$A:$A,AB$843)","v":0},{"$f":"SUMIFS(raw_inputs_passthrough!$N:$N,raw_inputs_passthrough!$A:$A,AC$843)","v":0},{"$f":"SUMIFS(raw_inputs_passthrough!$N:$N,raw_inputs_passthrough!$A:$A,AD$843)","v":0},{"$f":"SUMIFS(raw_inputs_passthrough!$N:$N,raw_inputs_passthrough!$A:$A,AE$843)","v":0},{"$f":"SUMIFS(raw_inputs_passthrough!$N:$N,raw_inputs_passthrough!$A:$A,AF$843)","v":0},{"$f":"SUMIFS(raw_inputs_passthrough!$N:$N,raw_inputs_passthrough!$A:$A,AG$843)","v":0},{"$f":"SUMIFS(raw_inputs_passthrough!$N:$N,raw_inputs_passthrough!$A:$A,AH$843)","v":0},{"$f":"SUMIFS(raw_inputs_passthrough!$N:$N,raw_inputs_passthrough!$A:$A,AI$843)","v":7.2400000000000006E-2},{"$f":"SUMIFS(raw_inputs_passthrough!$N:$N,raw_inputs_passthrough!$A:$A,AJ$843)","v":0},{"$f":"SUMIFS(raw_inputs_passthrough!$N:$N,raw_inputs_passthrough!$A:$A,AK$843)","v":0},{"$f":"SUMIFS(raw_inputs_passthrough!$N:$N,raw_inputs_passthrough!$A:$A,AL$843)","v":0},{"$f":"SUMIFS(raw_inputs_passthrough!$N:$N,raw_inputs_passthrough!$A:$A,AM$843)","v":0},{"$f":"SUMIFS(raw_inputs_passthrough!$N:$N,raw_inputs_passthrough!$A:$A,AN$843)","v":0}]
[null,null,"Pumping Loads - not grossed up for losses","GWh",{"$f":"SUMIFS(raw_inputs_passthrough!$O:$O,raw_inputs_passthrough!$A:$A,E$843)/1000","v":0},{"$f":"SUMIFS(raw_inputs_passthrough!$O:$O,raw_inputs_passthrough!$A:$A,F$843)/1000","v":0},{"$f":"SUMIFS(raw_inputs_passthrough!$O:$O,raw_inputs_passthrough!$A:$A,G$843)/1000","v":0},{"$f":"SUMIFS(raw_inputs_passthrough!$O:$O,raw_inputs_passthrough!$A:$A,H$843)/1000","v":0},{"$f":"SUMIFS(raw_inputs_passthrough!$O:$O,raw_inputs_passthrough!$A:$A,I$843)/1000","v":0},{"$f":"SUMIFS(raw_inputs_passthrough!$O:$O,raw_inputs_passthrough!$A:$A,J$843)/1000","v":7918},{"$f":"SUMIFS(raw_inputs_passthrough!$O:$O,raw_inputs_passthrough!$A:$A,K$843)/1000","v":7933},{"$f":"SUMIFS(raw_inputs_passthrough!$O:$O,raw_inputs_passthrough!$A:$A,L$843)/1000","v":7950},{"$f":"SUMIFS(raw_inputs_passthrough!$O:$O,raw_inputs_passthrough!$A:$A,M$843)/1000","v":7970},{"$f":"SUMIFS(raw_inputs_passthrough!$O:$O,raw_inputs_passthrough!$A:$A,N$843)/1000","v":7985},{"$f":"SUMIFS(raw_inputs_passthrough!$O:$O,raw_inputs_passthrough!$A:$A,O$843)/1000","v":0},{"$f":"SUMIFS(raw_inputs_passthrough!$O:$O,raw_inputs_passthrough!$A:$A,P$843)/1000","v":8008},{"$f":"SUMIFS(raw_inputs_passthrough!$O:$O,raw_inputs_passthrough!$A:$A,Q$843)/1000","v":0},{"$f":"SUMIFS(raw_inputs_passthrough!$O:$O,raw_inputs_passthrough!$A:$A,R$843)/1000","v":0},{"$f":"SUMIFS(raw_inputs_passthrough!$O:$O,raw_inputs_passthrough!$A:$A,S$843)/1000","v":0},{"$f":"SUMIFS(raw_inputs_passthrough!$O:$O,raw_inputs_passthrough!$A:$A,T$843)/1000","v":8047},{"$f":"SUMIFS(raw_inputs_passthrough!$O:$O,raw_inputs_passthrough!$A:$A,U$843)/1000","v":0},{"$f":"SUMIFS(raw_inputs_passthrough!$O:$O,raw_inputs_passthrough!$A:$A,V$843)/1000","v":0},{"$f":"SUMIFS(raw_inputs_passthrough!$O:$O,raw_inputs_passthrough!$A:$A,W$843)/1000","v":0},{"$f":"SUMIFS(raw_inputs_passthrough!$O:$O,raw_inputs_passthrough!$A:$A,X$843)/1000","v":0},{"$f":"SUMIFS(raw_inputs_passthrough!$O:$O,raw_inputs_passthrough!$A:$A,Y$843)/1000","v":0},{"$f":"SUMIFS(raw_inputs_passthrough!$O:$O,raw_inputs_passthrough!$A:$A,Z$843)/1000","v":0},{"$f":"SUMIFS(raw_inputs_passthrough!$O:$O,raw_inputs_passthrough!$A:$A,AA$843)/1000","v":0},{"$f":"SUMIFS(raw_inputs_passthrough!$O:$O,raw_inputs_passthrough!$A:$A,AB$843)/1000","v":0},{"$f":"SUMIFS(raw_inputs_passthrough!$O:$O,raw_inputs_passthrough!$A:$A,AC$843)/1000","v":0},{"$f":"SUMIFS(raw_inputs_passthrough!$O:$O,raw_inputs_passthrough!$A:$A,AD$843)/1000","v":0},{"$f":"SUMIFS(raw_inputs_passthrough!$O:$O,raw_inputs_passthrough!$A:$A,AE$843)/1000","v":0},{"$f":"SUMIFS(raw_inputs_passthrough!$O:$O,raw_inputs_passthrough!$A:$A,AF$843)/1000","v":0},{"$f":"SUMIFS(raw_inputs_passthrough!$O:$O,raw_inputs_passthrough!$A:$A,AG$843)/1000","v":0},{"$f":"SUMIFS(raw_inputs_passthrough!$O:$O,raw_inputs_passthrough!$A:$A,AH$843)/1000","v":0},{"$f":"SUMIFS(raw_inputs_passthrough!$O:$O,raw_inputs_passthrough!$A:$A,AI$843)/1000","v":8047},{"$f":"SUMIFS(raw_inputs_passthrough!$O:$O,raw_inputs_passthrough!$A:$A,AJ$843)/1000","v":0},{"$f":"SUMIFS(raw_inputs_passthrough!$O:$O,raw_inputs_passthrough!$A:$A,AK$843)/1000","v":0},{"$f":"SUMIFS(raw_inputs_passthrough!$O:$O,raw_inputs_passthrough!$A:$A,AL$843)/1000","v":0},{"$f":"SUMIFS(raw_inputs_passthrough!$O:$O,raw_inputs_passthrough!$A:$A,AM$843)/1000","v":0},{"$f":"SUMIFS(raw_inputs_passthrough!$O:$O,raw_inputs_passthrough!$A:$A,AN$843)/1000","v":0}]
[]
[null,null,"Metric","Unit",2015,{"$f":"E847+1","v":2016},2017,2018,2019,2020,2021,2022,2023,2024,2025,2026,2027,2028,2029,2030,2031,2032,2033,2034,2035,2036,2037,2038,2039,2040,2041,2042,2043,2044,2045,2046,2047,2048,2049,2050]
[null,null,"RPS  Target","GWh",{"$f":"SUMIFS(raw_rps!$G:$G,raw_rps!$B:$B,E$847)/1000","v":0},{"$f":"SUMIFS(raw_rps!$G:$G,raw_rps!$B:$B,F$847)/1000","v":0},{"$f":"SUMIFS(raw_rps!$G:$G,raw_rps!$B:$B,G$847)/1000","v":0},{"$f":"SUMIFS(raw_rps!$G:$G,raw_rps!$B:$B,H$847)/1000","v":0},{"$f":"SUMIFS(raw_rps!$G:$G,raw_rps!$B:$B,I$847)/1000","v":0},{"$f":"SUMIFS(raw_rps!$G:$G,raw_rps!$B:$B,J$847)/1000","v":68692.029469999994},{"$f":"SUMIFS(raw_rps!$G:$G,raw_rps!$B:$B,K$847)/1000","v":75841.873359999998},{"$f":"SUMIFS(raw_rps!$G:$G,raw_rps!$B:$B,L$847)/1000","v":83389.909450000006},{"$f":"SUMIFS(raw_rps!$G:$G,raw_rps!$B:$B,M$847)/1000","v":91058.532650000008},{"$f":"SUMIFS(raw_rps!$G:$G,raw_rps!$B:$B,N$847)/1000","v":98720.234099999987},{"$f":"SUMIFS(raw_rps!$G:$G,raw_rps!$B:$B,O$847)/1000","v":0},{"$f":"SUMIFS(raw_rps!$G:$G,raw_rps!$B:$B,P$847)/1000","v":114233.15279000001},{"$f":"SUMIFS(raw_rps!$G:$G,raw_rps!$B:$B,Q$847)/1000","v":0},{"$f":"SUMIFS(raw_rps!$G:$G,raw_rps!$B:$B,R$847)/1000","v":0},{"$f":"SUMIFS(raw_rps!$G:$G,raw_rps!$B:$B,S$847)/1000","v":0},{"$f":"SUMIFS(raw_rps!$G:$G,raw_rps!$B:$B,T$847)/1000","v":145994.84219},{"$f":"SUMIFS(raw_rps!$G:$G,raw_rps!$B:$B,U$847)/1000","v":0},{"$f":"SUMIFS(raw_rps!$G:$G,raw_rps!$B:$B,V$847)/1000","v":0},{"$f":"SUMIFS(raw_rps!$G:$G,raw_rps!$B:$B,W$847)/1000","v":0},{"$f":"SUMIFS(raw_rps!$G:$G,raw_rps!$B:$B,X$847)/1000","v":0},{"$f":"SUMIFS(raw_rps!$G:$G,raw_rps!$B:$B,Y$847)/1000","v":0},{"$f":"SUMIFS(raw_rps!$G:$G,raw_rps!$B:$B,Z$847)/1000","v":0},{"$f":"SUMIFS(raw_rps!$G:$G,raw_rps!$B:$B,AA$847)/1000","v":0},{"$f":"SUMIFS(raw_rps!$G:$G,raw_rps!$B:$B,AB$847)/1000","v":0},{"$f":"SUMIFS(raw_rps!$G:$G,raw_rps!$B:$B,AC$847)/1000","v":0},{"$f":"SUMIFS(raw_rps!$G:$G,raw_rps!$B:$B,AD$847)/1000","v":0},{"$f":"SUMIFS(raw_rps!$G:$G,raw_rps!$B:$B,AE$847)/1000","v":0},{"$f":"SUMIFS(raw_rps!$G:$G,raw_rps!$B:$B,AF$847)/1000","v":0},{"$f":"SUMIFS(raw_rps!$G:$G,raw_rps!$B:$B,AG$847)/1000","v":0},{"$f":"SUMIFS(raw_rps!$G:$G,raw_rps!$B:$B,AH$847)/1000","v":0},{"$f":"SUMIFS(raw_rps!$G:$G,raw_rps!$B:$B,AI$847)/1000","v":303396.83254000003},{"$f":"SUMIFS(raw_rps!$G:$G,raw_rps!$B:$B,AJ$847)/1000","v":0},{"$f":"SUMIFS(raw_rps!$G:$G,raw_rps!$B:$B,AK$847)/1000","v":0},{"$f":"SUMIFS(raw_rps!$G:$G,raw_rps!$B:$B,AL$847)/1000","v":0},{"$f":"SUMIFS(raw_rps!$G:$G,raw_rps!$B:$B,AM$847)/1000","v":0},{"$f":"SUMIFS(raw_rps!$G:$G,raw_rps!$B:$B,AN$847)/1000","v":0}]
[null,null,"Delivered RPS Renewables, excl. Pipeline Biogas and Scheduled Curtailment","GWh",{"$f":"SUMIFS(raw_rps!$C:$C,raw_rps!$B:$B,E$847)/1000","v":0},{"$f":"SUMIFS(raw_rps!$C:$C,raw_rps!$B:$B,F847)/1000","v":0},{"$f":"SUMIFS(raw_rps!$C:$C,raw_rps!$B:$B,G847)/1000","v":0},{"$f":"SUMIFS(raw_rps!$C:$C,raw_rps!$B:$B,H847)/1000","v":0},{"$f":"SUMIFS(raw_rps!$C:$C,raw_rps!$B:$B,I847)/1000","v":0},{"$f":"SUMIFS(raw_rps!$C:$C,raw_rps!$B:$B,J847)/1000","v":86991.54204},{"$f":"SUMIFS(raw_rps!$C:$C,raw_rps!$B:$B,K847)/1000","v":93794.821169999996},{"$f":"SUMIFS(raw_rps!$C:$C,raw_rps!$B:$B,L847)/1000","v":107145.96198000001},{"$f":"SUMIFS(raw_rps!$C:$C,raw_rps!$B:$B,M847)/1000","v":113186.70081000001},{"$f":"SUMIFS(raw_rps!$C:$C,raw_rps!$B:$B,N847)/1000","v":121969.41079000001},{"$f":"SUMIFS(raw_rps!$C:$C,raw_rps!$B:$B,O847)/1000","v":0},{"$f":"SUMIFS(raw_rps!$C:$C,raw_rps!$B:$B,P847)/1000","v":136231.01168},{"$f":"SUMIFS(raw_rps!$C:$C,raw_rps!$B:$B,Q847)/1000","v":0},{"$f":"SUMIFS(raw_rps!$C:$C,raw_rps!$B:$B,R847)/1000","v":0},{"$f":"SUMIFS(raw_rps!$C:$C,raw_rps!$B:$B,S847)/1000","v":0},{"$f":"SUMIFS(raw_rps!$C:$C,raw_rps!$B:$B,T847)/1000","v":169280.08877},{"$f":"SUMIFS(raw_rps!$C:$C,raw_rps!$B:$B,U847)/1000","v":0},{"$f":"SUMIFS(raw_rps!$C:$C,raw_rps!$B:$B,V847)/1000","v":0},{"$f":"SUMIFS(raw_rps!$C:$C,raw_rps!$B:$B,W847)/1000","v":0},{"$f":"SUMIFS(raw_rps!$C:$C,raw_rps!$B:$B,X847)/1000","v":0},{"$f":"SUMIFS(raw_rps!$C:$C,raw_rps!$B:$B,Y847)/1000","v":0},{"$f":"SUMIFS(raw_rps!$C:$C,raw_rps!$B:$B,Z847)/1000","v":0},{"$f":"SUMIFS(raw_rps!$C:$C,raw_rps!$B:$B,AA847)/1000","v":0},{"$f":"SUMIFS(raw_rps!$C:$C,raw_rps!$B:$B,AB847)/1000","v":0},{"$f":"SUMIFS(raw_rps!$C:$C,raw_rps!$B:$B,AC847)/1000","v":0},{"$f":"SUMIFS(raw_rps!$C:$C,raw_rps!$B:$B,AD847)/1000","v":0},{"$f":"SUMIFS(raw_rps!$C:$C,raw_rps!$B:$B,AE847)/1000","v":0},{"$f":"SUMIFS(raw_rps!$C:$C,raw_rps!$B:$B,AF847)/1000","v":0},{"$f":"SUMIFS(raw_rps!$C:$C,raw_rps!$B:$B,AG847)/1000","v":0},{"$f":"SUMIFS(raw_rps!$C:$C,raw_rps!$B:$B,AH847)/1000","v":0},{"$f":"SUMIFS(raw_rps!$C:$C,raw_rps!$B:$B,AI847)/1000","v":392251.64739},{"$f":"SUMIFS(raw_rps!$C:$C,raw_rps!$B:$B,AJ847)/1000","v":0},{"$f":"SUMIFS(raw_rps!$C:$C,raw_rps!$B:$B,AK847)/1000","v":0},{"$f":"SUMIFS(raw_rps!$C:$C,raw_rps!$B:$B,AL847)/1000","v":0},{"$f":"SUMIFS(raw_rps!$C:$C,raw_rps!$B:$B,AM847)/1000","v":0},{"$f":"SUMIFS(raw_rps!$C:$C,raw_rps!$B:$B,AN847)/1000","v":0}]
[null,null,"Pipeline Biogas","GWh",{"$f":"E203","v":0},0,0,0,0,0,0,0,0,0,0,0,0,0,0,0,0,0,0,0,0,0,0,0,0,0,0,0,0,0,0,0,0,0,0,0]
[null,null,"Non-Modeled RPS Renewables (AESO wind mainly)","GWh",{"$f":"SUMIFS(raw_rps!$J:$J,raw_rps!$B:$B,E$847)/1000","v":0},{"$f":"SUMIFS(raw_rps!$J:$J,raw_rps!$B:$B,F$847)/1000","v":0},{"$f":"SUMIFS(raw_rps!$J:$J,raw_rps!$B:$B,G$847)/1000","v":0},{"$f":"SUMIFS(raw_rps!$J:$J,raw_rps!$B:$B,H$847)/1000","v":0},{"$f":"SUMIFS(raw_rps!$J:$J,raw_rps!$B:$B,I$847)/1000","v":0},{"$f":"SUMIFS(raw_rps!$J:$J,raw_rps!$B:$B,J$847)/1000","v":2847.6088199999999},{"$f":"SUMIFS(raw_rps!$J:$J,raw_rps!$B:$B,K$847)/1000","v":2847.6088199999999},{"$f":"SUMIFS(raw_rps!$J:$J,raw_rps!$B:$B,L$847)/1000","v":2847.6088199999999},{"$f":"SUMIFS(raw_rps!$J:$J,raw_rps!$B:$B,M$847)/1000","v":2847.6088199999999},{"$f":"SUMIFS(raw_rps!$J:$J,raw_rps!$B:$B,N$847)/1000","v":2847.6088199999999},{"$f":"SUMIFS(raw_rps!$J:$J,raw_rps!$B:$B,O$847)/1000","v":0},{"$f":"SUMIFS(raw_rps!$J:$J,raw_rps!$B:$B,P$847)/1000","v":2847.6088199999999},{"$f":"SUMIFS(raw_rps!$J:$J,raw_rps!$B:$B,Q$847)/1000","v":0},{"$f":"SUMIFS(raw_rps!$J:$J,raw_rps!$B:$B,R$847)/1000","v":0},{"$f":"SUMIFS(raw_rps!$J:$J,raw_rps!$B:$B,S$847)/1000","v":0},{"$f":"SUMIFS(raw_rps!$J:$J,raw_rps!$B:$B,T$847)/1000","v":2847.6088199999999},{"$f":"SUMIFS(raw_rps!$J:$J,raw_rps!$B:$B,U$847)/1000","v":0},{"$f":"SUMIFS(raw_rps!$J:$J,raw_rps!$B:$B,V$847)/1000","v":0},{"$f":"SUMIFS(raw_rps!$J:$J,raw_rps!$B:$B,W$847)/1000","v":0},{"$f":"SUMIFS(raw_rps!$J:$J,raw_rps!$B:$B,X$847)/1000","v":0},{"$f":"SUMIFS(raw_rps!$J:$J,raw_rps!$B:$B,Y$847)/1000","v":0},{"$f":"SUMIFS(raw_rps!$J:$J,raw_rps!$B:$B,Z$847)/1000","v":0},{"$f":"SUMIFS(raw_rps!$J:$J,raw_rps!$B:$B,AA$847)/1000","v":0},{"$f":"SUMIFS(raw_rps!$J:$J,raw_rps!$B:$B,AB$847)/1000","v":0},{"$f":"SUMIFS(raw_rps!$J:$J,raw_rps!$B:$B,AC$847)/1000","v":0},{"$f":"SUMIFS(raw_rps!$J:$J,raw_rps!$B:$B,AD$847)/1000","v":0},{"$f":"SUMIFS(raw_rps!$J:$J,raw_rps!$B:$B,AE$847)/1000","v":0},{"$f":"SUMIFS(raw_rps!$J:$J,raw_rps!$B:$B,AF$847)/1000","v":0},{"$f":"SUMIFS(raw_rps!$J:$J,raw_rps!$B:$B,AG$847)/1000","v":0},{"$f":"SUMIFS(raw_rps!$J:$J,raw_rps!$B:$B,AH$847)/1000","v":0},{"$f":"SUMIFS(raw_rps!$J:$J,raw_rps!$B:$B,AI$847)/1000","v":1307.9556},{"$f":"SUMIFS(raw_rps!$J:$J,raw_rps!$B:$B,AJ$847)/1000","v":0},{"$f":"SUMIFS(raw_rps!$J:$J,raw_rps!$B:$B,AK$847)/1000","v":0},{"$f":"SUMIFS(raw_rps!$J:$J,raw_rps!$B:$B,AL$847)/1000","v":0},{"$f":"SUMIFS(raw_rps!$J:$J,raw_rps!$B:$B,AM$847)/1000","v":0},{"$f":"SUMIFS(raw_rps!$J:$J,raw_rps!$B:$B,AN$847)/1000","v":0}]
[null,null,"RPS Spent Bank","GWh",{"$f":"SUMIFS(raw_rps!$K:$K,raw_rps!$B:$B,E$847)/1000","v":0},{"$f":"SUMIFS(raw_rps!$K:$K,raw_rps!$B:$B,F$847)/1000","v":0},{"$f":"SUMIFS(raw_rps!$K:$K,raw_rps!$B:$B,G$847)/1000","v":0},{"$f":"SUMIFS(raw_rps!$K:$K,raw_rps!$B:$B,H$847)/1000","v":0},{"$f":"SUMIFS(raw_rps!$K:$K,raw_rps!$B:$B,I$847)/1000","v":0},{"$f":"SUMIFS(raw_rps!$K:$K,raw_rps!$B:$B,J$847)/1000","v":0},{"$f":"SUMIFS(raw_rps!$K:$K,raw_rps!$B:$B,K$847)/1000","v":0},{"$f":"SUMIFS(raw_rps!$K:$K,raw_rps!$B:$B,L$847)/1000","v":0},{"$f":"SUMIFS(raw_rps!$K:$K,raw_rps!$B:$B,M$847)/1000","v":0},{"$f":"SUMIFS(raw_rps!$K:$K,raw_rps!$B:$B,N$847)/1000","v":4908.5389999999998},{"$f":"SUMIFS(raw_rps!$K:$K,raw_rps!$B:$B,O$847)/1000","v":0},{"$f":"SUMIFS(raw_rps!$K:$K,raw_rps!$B:$B,P$847)/1000","v":15707.105},{"$f":"SUMIFS(raw_rps!$K:$K,raw_rps!$B:$B,Q$847)/1000","v":0},{"$f":"SUMIFS(raw_rps!$K:$K,raw_rps!$B:$B,R$847)/1000","v":0},{"$f":"SUMIFS(raw_rps!$K:$K,raw_rps!$B:$B,S$847)/1000","v":0},{"$f":"SUMIFS(raw_rps!$K:$K,raw_rps!$B:$B,T$847)/1000","v":0},{"$f":"SUMIFS(raw_rps!$K:$K,raw_rps!$B:$B,U$847)/1000","v":0},{"$f":"SUMIFS(raw_rps!$K:$K,raw_rps!$B:$B,V$847)/1000","v":0},{"$f":"SUMIFS(raw_rps!$K:$K,raw_rps!$B:$B,W$847)/1000","v":0},{"$f":"SUMIFS(raw_rps!$K:$K,raw_rps!$B:$B,X$847)/1000","v":0},{"$f":"SUMIFS(raw_rps!$K:$K,raw_rps!$B:$B,Y$847)/1000","v":0},{"$f":"SUMIFS(raw_rps!$K:$K,raw_rps!$B:$B,Z$847)/1000","v":0},{"$f":"SUMIFS(raw_rps!$K:$K,raw_rps!$B:$B,AA$847)/1000","v":0},{"$f":"SUMIFS(raw_rps!$K:$K,raw_rps!$B:$B,AB$847)/1000","v":0},{"$f":"SUMIFS(raw_rps!$K:$K,raw_rps!$B:$B,AC$847)/1000","v":0},{"$f":"SUMIFS(raw_rps!$K:$K,raw_rps!$B:$B,AD$847)/1000","v":0},{"$f":"SUMIFS(raw_rps!$K:$K,raw_rps!$B:$B,AE$847)/1000","v":0},{"$f":"SUMIFS(raw_rps!$K:$K,raw_rps!$B:$B,AF$847)/1000","v":0},{"$f":"SUMIFS(raw_rps!$K:$K,raw_rps!$B:$B,AG$847)/1000","v":0},{"$f":"SUMIFS(raw_rps!$K:$K,raw_rps!$B:$B,AH$847)/1000","v":0},{"$f":"SUMIFS(raw_rps!$K:$K,raw_rps!$B:$B,AI$847)/1000","v":0},{"$f":"SUMIFS(raw_rps!$K:$K,raw_rps!$B:$B,AJ$847)/1000","v":0},{"$f":"SUMIFS(raw_rps!$K:$K,raw_rps!$B:$B,AK$847)/1000","v":0},{"$f":"SUMIFS(raw_rps!$K:$K,raw_rps!$B:$B,AL$847)/1000","v":0},{"$f":"SUMIFS(raw_rps!$K:$K,raw_rps!$B:$B,AM$847)/1000","v":0},{"$f":"SUMIFS(raw_rps!$K:$K,raw_rps!$B:$B,AN$847)/1000","v":0}]
[null,null,"SB100-eligible Resources (Hydro and Nuclear)","GWh",{"$f":"SUM(E207,E208,E209)","v":0},0,0,0,0,52926.877380574486,53169.316197651962,53092.433175320548,53110.554254034723,43856.639829603366,0,35406.467190104944,0,0,0,35074.470779618037,0,0,0,0,0,0,0,0,0,0,0,0,0,0,31445.393817615961,0,0,0,0,0]
[null,null,"Storage Losses Subtracted from RPS","GWh",{"$f":"SUMIFS(raw_rps!$F:$F,raw_rps!$B:$B,E847)/1000","v":0},{"$f":"SUMIFS(raw_rps!$F:$F,raw_rps!$B:$B,F847)/1000","v":0},{"$f":"SUMIFS(raw_rps!$F:$F,raw_rps!$B:$B,G847)/1000","v":0},{"$f":"SUMIFS(raw_rps!$F:$F,raw_rps!$B:$B,H847)/1000","v":0},{"$f":"SUMIFS(raw_rps!$F:$F,raw_rps!$B:$B,I847)/1000","v":0},{"$f":"SUMIFS(raw_rps!$F:$F,raw_rps!$B:$B,J847)/1000","v":770.89873},{"$f":"SUMIFS(raw_rps!$F:$F,raw_rps!$B:$B,K847)/1000","v":1367.40705},{"$f":"SUMIFS(raw_rps!$F:$F,raw_rps!$B:$B,L847)/1000","v":1482.5974199999998},{"$f":"SUMIFS(raw_rps!$F:$F,raw_rps!$B:$B,M847)/1000","v":1702.6023300000002},{"$f":"SUMIFS(raw_rps!$F:$F,raw_rps!$B:$B,N847)/1000","v":2179.7789199999997},{"$f":"SUMIFS(raw_rps!$F:$F,raw_rps!$B:$B,O847)/1000","v":0},{"$f":"SUMIFS(raw_rps!$F:$F,raw_rps!$B:$B,P847)/1000","v":3637.0288500000001},{"$f":"SUMIFS(raw_rps!$F:$F,raw_rps!$B:$B,Q847)/1000","v":0},{"$f":"SUMIFS(raw_rps!$F:$F,raw_rps!$B:$B,R847)/1000","v":0},{"$f":"SUMIFS(raw_rps!$F:$F,raw_rps!$B:$B,S847)/1000","v":0},{"$f":"SUMIFS(raw_rps!$F:$F,raw_rps!$B:$B,T847)/1000","v":5718.03611},{"$f":"SUMIFS(raw_rps!$F:$F,raw_rps!$B:$B,U847)/1000","v":0},{"$f":"SUMIFS(raw_rps!$F:$F,raw_rps!$B:$B,V847)/1000","v":0},{"$f":"SUMIFS(raw_rps!$F:$F,raw_rps!$B:$B,W847)/1000","v":0},{"$f":"SUMIFS(raw_rps!$F:$F,raw_rps!$B:$B,X847)/1000","v":0},{"$f":"SUMIFS(raw_rps!$F:$F,raw_rps!$B:$B,Y847)/1000","v":0},{"$f":"SUMIFS(raw_rps!$F:$F,raw_rps!$B:$B,Z847)/1000","v":0},{"$f":"SUMIFS(raw_rps!$F:$F,raw_rps!$B:$B,AA847)/1000","v":0},{"$f":"SUMIFS(raw_rps!$F:$F,raw_rps!$B:$B,AB847)/1000","v":0},{"$f":"SUMIFS(raw_rps!$F:$F,raw_rps!$B:$B,AC847)/1000","v":0},{"$f":"SUMIFS(raw_rps!$F:$F,raw_rps!$B:$B,AD847)/1000","v":0},{"$f":"SUMIFS(raw_rps!$F:$F,raw_rps!$B:$B,AE847)/1000","v":0},{"$f":"SUMIFS(raw_rps!$F:$F,raw_rps!$B:$B,AF847)/1000","v":0},{"$f":"SUMIFS(raw_rps!$F:$F,raw_rps!$B:$B,AG847)/1000","v":0},{"$f":"SUMIFS(raw_rps!$F:$F,raw_rps!$B:$B,AH847)/1000","v":0},{"$f":"SUMIFS(raw_rps!$F:$F,raw_rps!$B:$B,AI847)/1000","v":27634.333300000002},{"$f":"SUMIFS(raw_rps!$F:$F,raw_rps!$B:$B,AJ847)/1000","v":0},{"$f":"SUMIFS(raw_rps!$F:$F,raw_rps!$B:$B,AK847)/1000","v":0},{"$f":"SUMIFS(raw_rps!$F:$F,raw_rps!$B:$B,AL847)/1000","v":0},{"$f":"SUMIFS(raw_rps!$F:$F,raw_rps!$B:$B,AM847)/1000","v":0},{"$f":"SUMIFS(raw_rps!$F:$F,raw_rps!$B:$B,AN847)/1000","v":0}]
[null,null,"Scheduled Curtailment","GWh",{"$f":"SUMIFS(raw_rps!$D:$D,raw_rps!$B:$B,E847)/1000","v":0},{"$f":"SUMIFS(raw_rps!$D:$D,raw_rps!$B:$B,F847)/1000","v":0},{"$f":"SUMIFS(raw_rps!$D:$D,raw_rps!$B:$B,G847)/1000","v":0},{"$f":"SUMIFS(raw_rps!$D:$D,raw_rps!$B:$B,H847)/1000","v":0},{"$f":"SUMIFS(raw_rps!$D:$D,raw_rps!$B:$B,I847)/1000","v":0},{"$f":"SUMIFS(raw_rps!$D:$D,raw_rps!$B:$B,J847)/1000","v":116.70987},{"$f":"SUMIFS(raw_rps!$D:$D,raw_rps!$B:$B,K847)/1000","v":437.63720000000001},{"$f":"SUMIFS(raw_rps!$D:$D,raw_rps!$B:$B,L847)/1000","v":593.79929000000004},{"$f":"SUMIFS(raw_rps!$D:$D,raw_rps!$B:$B,M847)/1000","v":727.66696000000002},{"$f":"SUMIFS(raw_rps!$D:$D,raw_rps!$B:$B,N847)/1000","v":788.75548000000003},{"$f":"SUMIFS(raw_rps!$D:$D,raw_rps!$B:$B,O847)/1000","v":0},{"$f":"SUMIFS(raw_rps!$D:$D,raw_rps!$B:$B,P847)/1000","v":760.66376000000002},{"$f":"SUMIFS(raw_rps!$D:$D,raw_rps!$B:$B,Q847)/1000","v":0},{"$f":"SUMIFS(raw_rps!$D:$D,raw_rps!$B:$B,R847)/1000","v":0},{"$f":"SUMIFS(raw_rps!$D:$D,raw_rps!$B:$B,S847)/1000","v":0},{"$f":"SUMIFS(raw_rps!$D:$D,raw_rps!$B:$B,T847)/1000","v":3918.7282799999998},{"$f":"SUMIFS(raw_rps!$D:$D,raw_rps!$B:$B,U847)/1000","v":0},{"$f":"SUMIFS(raw_rps!$D:$D,raw_rps!$B:$B,V847)/1000","v":0},{"$f":"SUMIFS(raw_rps!$D:$D,raw_rps!$B:$B,W847)/1000","v":0},{"$f":"SUMIFS(raw_rps!$D:$D,raw_rps!$B:$B,X847)/1000","v":0},{"$f":"SUMIFS(raw_rps!$D:$D,raw_rps!$B:$B,Y847)/1000","v":0},{"$f":"SUMIFS(raw_rps!$D:$D,raw_rps!$B:$B,Z847)/1000","v":0},{"$f":"SUMIFS(raw_rps!$D:$D,raw_rps!$B:$B,AA847)/1000","v":0},{"$f":"SUMIFS(raw_rps!$D:$D,raw_rps!$B:$B,AB847)/1000","v":0},{"$f":"SUMIFS(raw_rps!$D:$D,raw_rps!$B:$B,AC847)/1000","v":0},{"$f":"SUMIFS(raw_rps!$D:$D,raw_rps!$B:$B,AD847)/1000","v":0},{"$f":"SUMIFS(raw_rps!$D:$D,raw_rps!$B:$B,AE847)/1000","v":0},{"$f":"SUMIFS(raw_rps!$D:$D,raw_rps!$B:$B,AF847)/1000","v":0},{"$f":"SUMIFS(raw_rps!$D:$D,raw_rps!$B:$B,AG847)/1000","v":0},{"$f":"SUMIFS(raw_rps!$D:$D,raw_rps!$B:$B,AH847)/1000","v":0},{"$f":"SUMIFS(raw_rps!$D:$D,raw_rps!$B:$B,AI847)/1000","v":51647.644489999999},{"$f":"SUMIFS(raw_rps!$D:$D,raw_rps!$B:$B,AJ847)/1000","v":0},{"$f":"SUMIFS(raw_rps!$D:$D,raw_rps!$B:$B,AK847)/1000","v":0},{"$f":"SUMIFS(raw_rps!$D:$D,raw_rps!$B:$B,AL847)/1000","v":0},{"$f":"SUMIFS(raw_rps!$D:$D,raw_rps!$B:$B,AM847)/1000","v":0},{"$f":"SUMIFS(raw_rps!$D:$D,raw_rps!$B:$B,AN847)/1000","v":0}]
[null,null,"Subhourly Curtailment","GWh",{"$f":"SUMIFS(raw_rps!$E:$E,raw_rps!$B:$B,E847)/1000","v":0},{"$f":"SUMIFS(raw_rps!$E:$E,raw_rps!$B:$B,F847)/1000","v":0},{"$f":"SUMIFS(raw_rps!$E:$E,raw_rps!$B:$B,G847)/1000","v":0},{"$f":"SUMIFS(raw_rps!$E:$E,raw_rps!$B:$B,H847)/1000","v":0},{"$f":"SUMIFS(raw_rps!$E:$E,raw_rps!$B:$B,I847)/1000","v":0},{"$f":"SUMIFS(raw_rps!$E:$E,raw_rps!$B:$B,J847)/1000","v":142.19998000000001},{"$f":"SUMIFS(raw_rps!$E:$E,raw_rps!$B:$B,K847)/1000","v":96.265630000000002},{"$f":"SUMIFS(raw_rps!$E:$E,raw_rps!$B:$B,L847)/1000","v":198.39594},{"$f":"SUMIFS(raw_rps!$E:$E,raw_rps!$B:$B,M847)/1000","v":331.12314000000003},{"$f":"SUMIFS(raw_rps!$E:$E,raw_rps!$B:$B,N847)/1000","v":298.31191999999999},{"$f":"SUMIFS(raw_rps!$E:$E,raw_rps!$B:$B,O847)/1000","v":0},{"$f":"SUMIFS(raw_rps!$E:$E,raw_rps!$B:$B,P847)/1000","v":169.50354999999999},{"$f":"SUMIFS(raw_rps!$E:$E,raw_rps!$B:$B,Q847)/1000","v":0},{"$f":"SUMIFS(raw_rps!$E:$E,raw_rps!$B:$B,R847)/1000","v":0},{"$f":"SUMIFS(raw_rps!$E:$E,raw_rps!$B:$B,S847)/1000","v":0},{"$f":"SUMIFS(raw_rps!$E:$E,raw_rps!$B:$B,T847)/1000","v":749.69882999999993},{"$f":"SUMIFS(raw_rps!$E:$E,raw_rps!$B:$B,U847)/1000","v":0},{"$f":"SUMIFS(raw_rps!$E:$E,raw_rps!$B:$B,V847)/1000","v":0},{"$f":"SUMIFS(raw_rps!$E:$E,raw_rps!$B:$B,W847)/1000","v":0},{"$f":"SUMIFS(raw_rps!$E:$E,raw_rps!$B:$B,X847)/1000","v":0},{"$f":"SUMIFS(raw_rps!$E:$E,raw_rps!$B:$B,Y847)/1000","v":0},{"$f":"SUMIFS(raw_rps!$E:$E,raw_rps!$B:$B,Z847)/1000","v":0},{"$f":"SUMIFS(raw_rps!$E:$E,raw_rps!$B:$B,AA847)/1000","v":0},{"$f":"SUMIFS(raw_rps!$E:$E,raw_rps!$B:$B,AB847)/1000","v":0},{"$f":"SUMIFS(raw_rps!$E:$E,raw_rps!$B:$B,AC847)/1000","v":0},{"$f":"SUMIFS(raw_rps!$E:$E,raw_rps!$B:$B,AD847)/1000","v":0},{"$f":"SUMIFS(raw_rps!$E:$E,raw_rps!$B:$B,AE847)/1000","v":0},{"$f":"SUMIFS(raw_rps!$E:$E,raw_rps!$B:$B,AF847)/1000","v":0},{"$f":"SUMIFS(raw_rps!$E:$E,raw_rps!$B:$B,AG847)/1000","v":0},{"$f":"SUMIFS(raw_rps!$E:$E,raw_rps!$B:$B,AH847)/1000","v":0},{"$f":"SUMIFS(raw_rps!$E:$E,raw_rps!$B:$B,AI847)/1000","v":3623.9993300000001},{"$f":"SUMIFS(raw_rps!$E:$E,raw_rps!$B:$B,AJ847)/1000","v":0},{"$f":"SUMIFS(raw_rps!$E:$E,raw_rps!$B:$B,AK847)/1000","v":0},{"$f":"SUMIFS(raw_rps!$E:$E,raw_rps!$B:$B,AL847)/1000","v":0},{"$f":"SUMIFS(raw_rps!$E:$E,raw_rps!$B:$B,AM847)/1000","v":0},{"$f":"SUMIFS(raw_rps!$E:$E,raw_rps!$B:$B,AN847)/1000","v":0}]
[null,null,"RPS-bound Retail Sales","GWh",{"$f":"MAX((('Portfolio Analytics'!E$196-E181)*(1-E$844)-E$845),0)","v":0},{"$f":"MAX((('Portfolio Analytics'!F$196-F181)*(1-F$844)-F$845),0)","v":0},{"$f":"MAX((('Portfolio Analytics'!G$196-G181)*(1-G$844)-G$845),0)","v":0},{"$f":"MAX((('Portfolio Analytics'!H$196-H181)*(1-H$844)-H$845),0)","v":0},{"$f":"MAX((('Portfolio Analytics'!I$196-I181)*(1-I$844)-I$845),0)","v":0},{"$f":"MAX((('Portfolio Analytics'!J$196-J181)*(1-J$844)-J$845),0)","v":208017.72303954756},{"$f":"MAX((('Portfolio Analytics'!K$196-K181)*(1-K$844)-K$845),0)","v":212337.27034622326},{"$f":"MAX((('Portfolio Analytics'!L$196-L181)*(1-L$844)-L$845),0)","v":217097.73165193075},{"$f":"MAX((('Portfolio Analytics'!M$196-M181)*(1-M$844)-M$845),0)","v":221537.18819745805},{"$f":"MAX((('Portfolio Analytics'!N$196-N181)*(1-N$844)-N$845),0)","v":225420.39441024503},{"$f":"MAX((('Portfolio Analytics'!O$196-O181)*(1-O$844)-O$845),0)","v":0},{"$f":"MAX((('Portfolio Analytics'!P$196-P181)*(1-P$844)-P$845),0)","v":232316.02841684452},{"$f":"MAX((('Portfolio Analytics'!Q$196-Q181)*(1-Q$844)-Q$845),0)","v":0},{"$f":"MAX((('Portfolio Analytics'!R$196-R181)*(1-R$844)-R$845),0)","v":0},{"$f":"MAX((('Portfolio Analytics'!S$196-S181)*(1-S$844)-S$845),0)","v":0},{"$f":"MAX((('Portfolio Analytics'!T$196-T181)*(1-T$844)-T$845),0)","v":243610.82835777331},{"$f":"MAX((('Portfolio Analytics'!U$196-U181)*(1-U$844)-U$845),0)","v":0},{"$f":"MAX((('Portfolio Analytics'!V$196-V181)*(1-V$844)-V$845),0)","v":0},{"$f":"MAX((('Portfolio Analytics'!W$196-W181)*(1-W$844)-W$845),0)","v":0},{"$f":"MAX((('Portfolio Analytics'!X$196-X181)*(1-X$844)-X$845),0)","v":0},{"$f":"MAX((('Portfolio Analytics'!Y$196-Y181)*(1-Y$844)-Y$845),0)","v":0},{"$f":"MAX((('Portfolio Analytics'!Z$196-Z181)*(1-Z$844)-Z$845),0)","v":0},{"$f":"MAX((('Portfolio Analytics'!AA$196-AA181)*(1-AA$844)-AA$845),0)","v":0},{"$f":"MAX((('Portfolio Analytics'!AB$196-AB181)*(1-AB$844)-AB$845),0)","v":0},{"$f":"MAX((('Portfolio Analytics'!AC$196-AC181)*(1-AC$844)-AC$845),0)","v":0},{"$f":"MAX((('Portfolio Analytics'!AD$196-AD181)*(1-AD$844)-AD$845),0)","v":0},{"$f":"MAX((('Portfolio Analytics'!AE$196-AE181)*(1-AE$844)-AE$845),0)","v":0},{"$f":"MAX((('Portfolio Analytics'!AF$196-AF181)*(1-AF$844)-AF$845),0)","v":0},{"$f":"MAX((('Portfolio Analytics'!AG$196-AG181)*(1-AG$844)-AG$845),0)","v":0},{"$f":"MAX((('Portfolio Analytics'!AH$196-AH181)*(1-AH$844)-AH$845),0)","v":0},{"$f":"MAX((('Portfolio Analytics'!AI$196-AI181)*(1-AI$844)-AI$845),0)","v":360102.63375373371},{"$f":"MAX((('Portfolio Analytics'!AJ$196-AJ181)*(1-AJ$844)-AJ$845),0)","v":0},{"$f":"MAX((('Portfolio Analytics'!AK$196-AK181)*(1-AK$844)-AK$845),0)","v":0},{"$f":"MAX((('Portfolio Analytics'!AL$196-AL181)*(1-AL$844)-AL$845),0)","v":0},{"$f":"MAX((('Portfolio Analytics'!AM$196-AM181)*(1-AM$844)-AM$845),0)","v":0},{"$f":"MAX((('Portfolio Analytics'!AN$196-AN181)*(1-AN$844)-AN$845),0)","v":0}]
[null,null,"Curtailment (scheduled and subhourly)","% of RPS Renew.",{"$f":"IFERROR(SUM(E855:E856)/SUM(E849:E851,E855),0)","v":0},{"$f":"IFERROR(SUM(F855:F856)/SUM(F849:F851,F855),0)","v":0},0,0,0,2.8781876789230072E-3,5.499613313565941E-3,7.1635235502506564E-3,9.0679357349169737E-3,8.6545972844089859E-3,0,6.6516881498804104E-3,0,0,0,2.6518158985217685E-2,0,0,0,0,0,0,0,0,0,0,0,0,0,0,0.12414812232472242,0,0,0,0,0]
[null,null,"Curtailment and Storage Losses","% of RPS Renew.",{"$f":"IFERROR(SUM(E854:E856)/SUM(E849:E851,E855),0)","v":0},{"$f":"IFERROR(SUM(F854:F856)/SUM(F849:F851,F855),0)","v":0},0,0,0,1.1447932037368214E-2,1.9584966667553459E-2,2.057009447054118E-2,2.3649757486518069E-2,2.600872704825247E-2,0,3.2660322771019885E-2,0,0,0,{"$f":"IFERROR(SUM(T854:T856)/SUM(T849:T851,T855),0)","v":5.8998432763808541E-2},0,0,0,0,0,0,0,0,0,0,0,0,0,0,0.18621883985328516,0,0,0,0,0]
[null,null,"RPS Target (% of retail sales)","% of Retail Sales",{"$f":"IFERROR(E848/E857,0)","v":0},0,0,0,0,0.33022200448247635,0.35717645440358731,0.38411230193642781,0.41103046125528475,0.43793834341509474,0,0.49171447001939755,0,0,0,0.59929537276392375,0,0,0,0,0,0,0,0,0,0,0,0,0,0,0.84252877957978634,0,0,0,0,0]
[null,null,"Delivered Effective RPS Percentage - Excl. Spent Bank","% of Retail Sales",{"$f":"IFERROR((SUM(E$849:E$851)-E$854-E856)/E857,0)","v":0},{"$f":"IFERROR((SUM(F$849:F$851)-F$854-F856)/F857,0)","v":0},0,0,0,0.42749267154074988,0.4482432931100967,0.49891160361664111,0.51458892787964017,0.54271455380099309,0,0.58227617363224449,0,0,0,0.68001887997649835,0,0,0,0,0,0,0,0,0,0,0,0,0,0,1.0061055832426093,0,0,0,0,0]
[null,null,"Spent Bank","% of Retail Sales",{"$f":"IFERROR(E852/E857,0)","v":0},0,0,0,0,0,0,0,0,2.1775043969920912E-2,0,6.7610939748921461E-2,0,0,0,0,0,0,0,0,0,0,0,0,0,0,0,0,0,0,0,0,0,0,0,0]
[null,null,"Delivered Effective RPS Percentage - Incl. Spent Bank","% of Retail Sales",{"$f":"E861+E862","v":0},{"$f":"F861+F862","v":0},0,0,0,0.42749267154074988,0.4482432931100967,0.49891160361664111,0.51458892787964017,0.56448959777091401,0,0.64988711338116589,0,0,0,0.68001887997649835,0,0,0,0,0,0,0,0,0,0,0,0,0,0,1.0061055832426093,0,0,0,0,0]
[null,null,"SB100%","% of Retail Sales",{"$f":"IFERROR((E853+SUM(E$849:E$851)-E$854-E856)/MAX((('Portfolio Analytics'!E$196-E181)*(1-E$844)),0),0)","v":0},{"$f":"IFERROR((F853+SUM(F$849:F$851)-F$854-F856)/MAX((('Portfolio Analytics'!F$196-F181)*(1-F$844)),0),0)","v":0},{"$f":"IFERROR((G853+SUM(G$849:G$851)-G$854-G856)/MAX((('Portfolio Analytics'!G$196-G181)*(1-G$844)),0),0)","v":0},{"$f":"IFERROR((H853+SUM(H$849:H$851)-H$854-H856)/MAX((('Portfolio Analytics'!H$196-H181)*(1-H$844)),0),0)","v":0},{"$f":"IFERROR((I853+SUM(I$849:I$851)-I$854-I856)/MAX((('Portfolio Analytics'!I$196-I181)*(1-I$844)),0),0)","v":0},{"$f":"IFERROR((J853+SUM(J$849:J$851)-J$854-J856)/MAX((('Portfolio Analytics'!J$196-J181)*(1-J$844)),0),0)","v":0.6569220114848473},{"$f":"IFERROR((K853+SUM(K$849:K$851)-K$854-K856)/MAX((('Portfolio Analytics'!K$196-K181)*(1-K$844)),0),0)","v":0.67348205127490313},{"$f":"IFERROR((L853+SUM(L$849:L$851)-L$854-L856)/MAX((('Portfolio Analytics'!L$196-L181)*(1-L$844)),0),0)","v":0.71720345470958591},{"$f":"IFERROR((M853+SUM(M$849:M$851)-M$854-M856)/MAX((('Portfolio Analytics'!M$196-M181)*(1-M$844)),0),0)","v":0.7281303026999727},{"$f":"IFERROR((N853+SUM(N$849:N$851)-N$854-N856)/MAX((('Portfolio Analytics'!N$196-N181)*(1-N$844)),0),0)","v":0.71204681888152799},{"$f":"IFERROR((O853+SUM(O$849:O$851)-O$854-O856)/MAX((('Portfolio Analytics'!O$196-O181)*(1-O$844)),0),0)","v":0},{"$f":"IFERROR((P853+SUM(P$849:P$851)-P$854-P856)/MAX((('Portfolio Analytics'!P$196-P181)*(1-P$844)),0),0)","v":0.71020179053449128},{"$f":"IFERROR((Q853+SUM(Q$849:Q$851)-Q$854-Q856)/MAX((('Portfolio Analytics'!Q$196-Q181)*(1-Q$844)),0),0)","v":0},{"$f":"IFERROR((R853+SUM(R$849:R$851)-R$854-R856)/MAX((('Portfolio Analytics'!R$196-R181)*(1-R$844)),0),0)","v":0},{"$f":"IFERROR((S853+SUM(S$849:S$851)-S$854-S856)/MAX((('Portfolio Analytics'!S$196-S181)*(1-S$844)),0),0)","v":0},{"$f":"IFERROR((T853+SUM(T$849:T$851)-T$854-T856)/MAX((('Portfolio Analytics'!T$196-T181)*(1-T$844)),0),0)","v":0.79764827797941884},{"$f":"IFERROR((U853+SUM(U$849:U$851)-U$854-U856)/MAX((('Portfolio Analytics'!U$196-U181)*(1-U$844)),0),0)","v":0},{"$f":"IFERROR((V853+SUM(V$849:V$851)-V$854-V856)/MAX((('Portfolio Analytics'!V$196-V181)*(1-V$844)),0),0)","v":0},{"$f":"IFERROR((W853+SUM(W$849:W$851)-W$854-W856)/MAX((('Portfolio Analytics'!W$196-W181)*(1-W$844)),0),0)","v":0},{"$f":"IFERROR((X853+SUM(X$849:X$851)-X$854-X856)/MAX((('Portfolio Analytics'!X$196-X181)*(1-X$844)),0),0)","v":0},{"$f":"IFERROR((Y853+SUM(Y$849:Y$851)-Y$854-Y856)/MAX((('Portfolio Analytics'!Y$196-Y181)*(1-Y$844)),0),0)","v":0},{"$f":"IFERROR((Z853+SUM(Z$849:Z$851)-Z$854-Z856)/MAX((('Portfolio Analytics'!Z$196-Z181)*(1-Z$844)),0),0)","v":0},{"$f":"IFERROR((AA853+SUM(AA$849:AA$851)-AA$854-AA856)/MAX((('Portfolio Analytics'!AA$196-AA181)*(1-AA$844)),0),0)","v":0},{"$f":"IFERROR((AB853+SUM(AB$849:AB$851)-AB$854-AB856)/MAX((('Portfolio Analytics'!AB$196-AB181)*(1-AB$844)),0),0)","v":0},{"$f":"IFERROR((AC853+SUM(AC$849:AC$851)-AC$854-AC856)/MAX((('Portfolio Analytics'!AC$196-AC181)*(1-AC$844)),0),0)","v":0},{"$f":"IFERROR((AD853+SUM(AD$849:AD$851)-AD$854-AD856)/MAX((('Portfolio Analytics'!AD$196-AD181)*(1-AD$844)),0),0)","v":0},{"$f":"IFERROR((AE853+SUM(AE$849:AE$851)-AE$854-AE856)/MAX((('Portfolio Analytics'!AE$196-AE181)*(1-AE$844)),0),0)","v":0},{"$f":"IFERROR((AF853+SUM(AF$849:AF$851)-AF$854-AF856)/MAX((('Portfolio Analytics'!AF$196-AF181)*(1-AF$844)),0),0)","v":0},{"$f":"IFERROR((AG853+SUM(AG$849:AG$851)-AG$854-AG856)/MAX((('Portfolio Analytics'!AG$196-AG181)*(1-AG$844)),0),0)","v":0},{"$f":"IFERROR((AH853+SUM(AH$849:AH$851)-AH$854-AH856)/MAX((('Portfolio Analytics'!AH$196-AH181)*(1-AH$844)),0),0)","v":0},{"$f":"IFERROR((AI853+SUM(AI$849:AI$851)-AI$854-AI856)/MAX((('Portfolio Analytics'!AI$196-AI181)*(1-AI$844)),0),0)","v":1.0695288765138493},{"$f":"IFERROR((AJ853+SUM(AJ$849:AJ$851)-AJ$854-AJ856)/MAX((('Portfolio Analytics'!AJ$196-AJ181)*(1-AJ$844)),0),0)","v":0},{"$f":"IFERROR((AK853+SUM(AK$849:AK$851)-AK$854-AK856)/MAX((('Portfolio Analytics'!AK$196-AK181)*(1-AK$844)),0),0)","v":0},{"$f":"IFERROR((AL853+SUM(AL$849:AL$851)-AL$854-AL856)/MAX((('Portfolio Analytics'!AL$196-AL181)*(1-AL$844)),0),0)","v":0},{"$f":"IFERROR((AM853+SUM(AM$849:AM$851)-AM$854-AM856)/MAX((('Portfolio Analytics'!AM$196-AM181)*(1-AM$844)),0),0)","v":0},{"$f":"IFERROR((AN853+SUM(AN$849:AN$851)-AN$854-AN856)/MAX((('Portfolio Analytics'!AN$196-AN181)*(1-AN$844)),0),0)","v":0}]
[null,null,"RPS Dual","$/MWh",{"$f":"SUMIFS(raw_rps!$I:$I,raw_rps!$B:$B,E$847)","v":0},{"$f":"SUMIFS(raw_rps!$I:$I,raw_rps!$B:$B,F$847)","v":0},{"$f":"SUMIFS(raw_rps!$I:$I,raw_rps!$B:$B,G$847)","v":0},{"$f":"SUMIFS(raw_rps!$I:$I,raw_rps!$B:$B,H$847)","v":0},{"$f":"SUMIFS(raw_rps!$I:$I,raw_rps!$B:$B,I$847)","v":0},{"$f":"SUMIFS(raw_rps!$I:$I,raw_rps!$B:$B,J$847)","v":0},{"$f":"SUMIFS(raw_rps!$I:$I,raw_rps!$B:$B,K$847)","v":0},{"$f":"SUMIFS(raw_rps!$I:$I,raw_rps!$B:$B,L$847)","v":0},{"$f":"SUMIFS(raw_rps!$I:$I,raw_rps!$B:$B,M$847)","v":0},{"$f":"SUMIFS(raw_rps!$I:$I,raw_rps!$B:$B,N$847)","v":0},{"$f":"SUMIFS(raw_rps!$I:$I,raw_rps!$B:$B,O$847)","v":0},{"$f":"SUMIFS(raw_rps!$I:$I,raw_rps!$B:$B,P$847)","v":0},{"$f":"SUMIFS(raw_rps!$I:$I,raw_rps!$B:$B,Q$847)","v":0},{"$f":"SUMIFS(raw_rps!$I:$I,raw_rps!$B:$B,R$847)","v":0},{"$f":"SUMIFS(raw_rps!$I:$I,raw_rps!$B:$B,S$847)","v":0},{"$f":"SUMIFS(raw_rps!$I:$I,raw_rps!$B:$B,T$847)","v":0},{"$f":"SUMIFS(raw_rps!$I:$I,raw_rps!$B:$B,U$847)","v":0},{"$f":"SUMIFS(raw_rps!$I:$I,raw_rps!$B:$B,V$847)","v":0},{"$f":"SUMIFS(raw_rps!$I:$I,raw_rps!$B:$B,W$847)","v":0},{"$f":"SUMIFS(raw_rps!$I:$I,raw_rps!$B:$B,X$847)","v":0},{"$f":"SUMIFS(raw_rps!$I:$I,raw_rps!$B:$B,Y$847)","v":0},{"$f":"SUMIFS(raw_rps!$I:$I,raw_rps!$B:$B,Z$847)","v":0},{"$f":"SUMIFS(raw_rps!$I:$I,raw_rps!$B:$B,AA$847)","v":0},{"$f":"SUMIFS(raw_rps!$I:$I,raw_rps!$B:$B,AB$847)","v":0},{"$f":"SUMIFS(raw_rps!$I:$I,raw_rps!$B:$B,AC$847)","v":0},{"$f":"SUMIFS(raw_rps!$I:$I,raw_rps!$B:$B,AD$847)","v":0},{"$f":"SUMIFS(raw_rps!$I:$I,raw_rps!$B:$B,AE$847)","v":0},{"$f":"SUMIFS(raw_rps!$I:$I,raw_rps!$B:$B,AF$847)","v":0},{"$f":"SUMIFS(raw_rps!$I:$I,raw_rps!$B:$B,AG$847)","v":0},{"$f":"SUMIFS(raw_rps!$I:$I,raw_rps!$B:$B,AH$847)","v":0},{"$f":"SUMIFS(raw_rps!$I:$I,raw_rps!$B:$B,AI$847)","v":0},{"$f":"SUMIFS(raw_rps!$I:$I,raw_rps!$B:$B,AJ$847)","v":0},{"$f":"SUMIFS(raw_rps!$I:$I,raw_rps!$B:$B,AK$847)","v":0},{"$f":"SUMIFS(raw_rps!$I:$I,raw_rps!$B:$B,AL$847)","v":0},{"$f":"SUMIFS(raw_rps!$I:$I,raw_rps!$B:$B,AM$847)","v":0},{"$f":"SUMIFS(raw_rps!$I:$I,raw_rps!$B:$B,AN$847)","v":0}]
[]
[]
[null,"Local Capacity Summary"]
[]
[null,null,"Local Capacity Build"]
[null,null,"Technology","Unit",2015,{"$f":"E871+1","v":2016},2017,2018,2019,2020,2021,2022,2023,2024,2025,2026,2027,2028,2029,2030,2031,2032,2033,2034,2035,2036,2037,2038,2039,2040,2041,2042,2043,2044,2045,2046,2047,2048,2049,2050]
[null,null,"CAISO_Advanced_CCGT","MW",{"$f":"SUMIFS(raw_local_capacity_resources!$C:$C,raw_local_capacity_resources!$A:$A,$C872,raw_local_capacity_resources!$B:$B,E$871)","v":0},{"$f":"SUMIFS(raw_local_capacity_resources!$C:$C,raw_local_capacity_resources!$A:$A,$C872,raw_local_capacity_resources!$B:$B,F$871)","v":0},{"$f":"SUMIFS(raw_local_capacity_resources!$C:$C,raw_local_capacity_resources!$A:$A,$C872,raw_local_capacity_resources!$B:$B,G$871)","v":0},{"$f":"SUMIFS(raw_local_capacity_resources!$C:$C,raw_local_capacity_resources!$A:$A,$C872,raw_local_capacity_resources!$B:$B,H$871)","v":0},{"$f":"SUMIFS(raw_local_capacity_resources!$C:$C,raw_local_capacity_resources!$A:$A,$C872,raw_local_capacity_resources!$B:$B,I$871)","v":0},{"$f":"SUMIFS(raw_local_capacity_resources!$C:$C,raw_local_capacity_resources!$A:$A,$C872,raw_local_capacity_resources!$B:$B,J$871)","v":0},{"$f":"SUMIFS(raw_local_capacity_resources!$C:$C,raw_local_capacity_resources!$A:$A,$C872,raw_local_capacity_resources!$B:$B,K$871)","v":0},{"$f":"SUMIFS(raw_local_capacity_resources!$C:$C,raw_local_capacity_resources!$A:$A,$C872,raw_local_capacity_resources!$B:$B,L$871)","v":0},{"$f":"SUMIFS(raw_local_capacity_resources!$C:$C,raw_local_capacity_resources!$A:$A,$C872,raw_local_capacity_resources!$B:$B,M$871)","v":0},{"$f":"SUMIFS(raw_local_capacity_resources!$C:$C,raw_local_capacity_resources!$A:$A,$C872,raw_local_capacity_resources!$B:$B,N$871)","v":0},{"$f":"SUMIFS(raw_local_capacity_resources!$C:$C,raw_local_capacity_resources!$A:$A,$C872,raw_local_capacity_resources!$B:$B,O$871)","v":0},{"$f":"SUMIFS(raw_local_capacity_resources!$C:$C,raw_local_capacity_resources!$A:$A,$C872,raw_local_capacity_resources!$B:$B,P$871)","v":0},{"$f":"SUMIFS(raw_local_capacity_resources!$C:$C,raw_local_capacity_resources!$A:$A,$C872,raw_local_capacity_resources!$B:$B,Q$871)","v":0},{"$f":"SUMIFS(raw_local_capacity_resources!$C:$C,raw_local_capacity_resources!$A:$A,$C872,raw_local_capacity_resources!$B:$B,R$871)","v":0},{"$f":"SUMIFS(raw_local_capacity_resources!$C:$C,raw_local_capacity_resources!$A:$A,$C872,raw_local_capacity_resources!$B:$B,S$871)","v":0},{"$f":"SUMIFS(raw_local_capacity_resources!$C:$C,raw_local_capacity_resources!$A:$A,$C872,raw_local_capacity_resources!$B:$B,T$871)","v":0},{"$f":"SUMIFS(raw_local_capacity_resources!$C:$C,raw_local_capacity_resources!$A:$A,$C872,raw_local_capacity_resources!$B:$B,U$871)","v":0},{"$f":"SUMIFS(raw_local_capacity_resources!$C:$C,raw_local_capacity_resources!$A:$A,$C872,raw_local_capacity_resources!$B:$B,V$871)","v":0},{"$f":"SUMIFS(raw_local_capacity_resources!$C:$C,raw_local_capacity_resources!$A:$A,$C872,raw_local_capacity_resources!$B:$B,W$871)","v":0},{"$f":"SUMIFS(raw_local_capacity_resources!$C:$C,raw_local_capacity_resources!$A:$A,$C872,raw_local_capacity_resources!$B:$B,X$871)","v":0},{"$f":"SUMIFS(raw_local_capacity_resources!$C:$C,raw_local_capacity_resources!$A:$A,$C872,raw_local_capacity_resources!$B:$B,Y$871)","v":0},{"$f":"SUMIFS(raw_local_capacity_resources!$C:$C,raw_local_capacity_resources!$A:$A,$C872,raw_local_capacity_resources!$B:$B,Z$871)","v":0},{"$f":"SUMIFS(raw_local_capacity_resources!$C:$C,raw_local_capacity_resources!$A:$A,$C872,raw_local_capacity_resources!$B:$B,AA$871)","v":0},{"$f":"SUMIFS(raw_local_capacity_resources!$C:$C,raw_local_capacity_resources!$A:$A,$C872,raw_local_capacity_resources!$B:$B,AB$871)","v":0},{"$f":"SUMIFS(raw_local_capacity_resources!$C:$C,raw_local_capacity_resources!$A:$A,$C872,raw_local_capacity_resources!$B:$B,AC$871)","v":0},{"$f":"SUMIFS(raw_local_capacity_resources!$C:$C,raw_local_capacity_resources!$A:$A,$C872,raw_local_capacity_resources!$B:$B,AD$871)","v":0},{"$f":"SUMIFS(raw_local_capacity_resources!$C:$C,raw_local_capacity_resources!$A:$A,$C872,raw_local_capacity_resources!$B:$B,AE$871)","v":0},{"$f":"SUMIFS(raw_local_capacity_resources!$C:$C,raw_local_capacity_resources!$A:$A,$C872,raw_local_capacity_resources!$B:$B,AF$871)","v":0},{"$f":"SUMIFS(raw_local_capacity_resources!$C:$C,raw_local_capacity_resources!$A:$A,$C872,raw_local_capacity_resources!$B:$B,AG$871)","v":0},{"$f":"SUMIFS(raw_local_capacity_resources!$C:$C,raw_local_capacity_resources!$A:$A,$C872,raw_local_capacity_resources!$B:$B,AH$871)","v":0},{"$f":"SUMIFS(raw_local_capacity_resources!$C:$C,raw_local_capacity_resources!$A:$A,$C872,raw_local_capacity_resources!$B:$B,AI$871)","v":0},{"$f":"SUMIFS(raw_local_capacity_resources!$C:$C,raw_local_capacity_resources!$A:$A,$C872,raw_local_capacity_resources!$B:$B,AJ$871)","v":0},{"$f":"SUMIFS(raw_local_capacity_resources!$C:$C,raw_local_capacity_resources!$A:$A,$C872,raw_local_capacity_resources!$B:$B,AK$871)","v":0},{"$f":"SUMIFS(raw_local_capacity_resources!$C:$C,raw_local_capacity_resources!$A:$A,$C872,raw_local_capacity_resources!$B:$B,AL$871)","v":0},{"$f":"SUMIFS(raw_local_capacity_resources!$C:$C,raw_local_capacity_resources!$A:$A,$C872,raw_local_capacity_resources!$B:$B,AM$871)","v":0},{"$f":"SUMIFS(raw_local_capacity_resources!$C:$C,raw_local_capacity_resources!$A:$A,$C872,raw_local_capacity_resources!$B:$B,AN$871)","v":0}]
[null,null,"CAISO_Aero_CT","MW",{"$f":"SUMIFS(raw_local_capacity_resources!$C:$C,raw_local_capacity_resources!$A:$A,$C873,raw_local_capacity_resources!$B:$B,E$871)","v":0},{"$f":"SUMIFS(raw_local_capacity_resources!$C:$C,raw_local_capacity_resources!$A:$A,$C873,raw_local_capacity_resources!$B:$B,F$871)","v":0},{"$f":"SUMIFS(raw_local_capacity_resources!$C:$C,raw_local_capacity_resources!$A:$A,$C873,raw_local_capacity_resources!$B:$B,G$871)","v":0},{"$f":"SUMIFS(raw_local_capacity_resources!$C:$C,raw_local_capacity_resources!$A:$A,$C873,raw_local_capacity_resources!$B:$B,H$871)","v":0},{"$f":"SUMIFS(raw_local_capacity_resources!$C:$C,raw_local_capacity_resources!$A:$A,$C873,raw_local_capacity_resources!$B:$B,I$871)","v":0},{"$f":"SUMIFS(raw_local_capacity_resources!$C:$C,raw_local_capacity_resources!$A:$A,$C873,raw_local_capacity_resources!$B:$B,J$871)","v":0},{"$f":"SUMIFS(raw_local_capacity_resources!$C:$C,raw_local_capacity_resources!$A:$A,$C873,raw_local_capacity_resources!$B:$B,K$871)","v":0},{"$f":"SUMIFS(raw_local_capacity_resources!$C:$C,raw_local_capacity_resources!$A:$A,$C873,raw_local_capacity_resources!$B:$B,L$871)","v":0},{"$f":"SUMIFS(raw_local_capacity_resources!$C:$C,raw_local_capacity_resources!$A:$A,$C873,raw_local_capacity_resources!$B:$B,M$871)","v":0},{"$f":"SUMIFS(raw_local_capacity_resources!$C:$C,raw_local_capacity_resources!$A:$A,$C873,raw_local_capacity_resources!$B:$B,N$871)","v":0},{"$f":"SUMIFS(raw_local_capacity_resources!$C:$C,raw_local_capacity_resources!$A:$A,$C873,raw_local_capacity_resources!$B:$B,O$871)","v":0},{"$f":"SUMIFS(raw_local_capacity_resources!$C:$C,raw_local_capacity_resources!$A:$A,$C873,raw_local_capacity_resources!$B:$B,P$871)","v":0},{"$f":"SUMIFS(raw_local_capacity_resources!$C:$C,raw_local_capacity_resources!$A:$A,$C873,raw_local_capacity_resources!$B:$B,Q$871)","v":0},{"$f":"SUMIFS(raw_local_capacity_resources!$C:$C,raw_local_capacity_resources!$A:$A,$C873,raw_local_capacity_resources!$B:$B,R$871)","v":0},{"$f":"SUMIFS(raw_local_capacity_resources!$C:$C,raw_local_capacity_resources!$A:$A,$C873,raw_local_capacity_resources!$B:$B,S$871)","v":0},{"$f":"SUMIFS(raw_local_capacity_resources!$C:$C,raw_local_capacity_resources!$A:$A,$C873,raw_local_capacity_resources!$B:$B,T$871)","v":0},{"$f":"SUMIFS(raw_local_capacity_resources!$C:$C,raw_local_capacity_resources!$A:$A,$C873,raw_local_capacity_resources!$B:$B,U$871)","v":0},{"$f":"SUMIFS(raw_local_capacity_resources!$C:$C,raw_local_capacity_resources!$A:$A,$C873,raw_local_capacity_resources!$B:$B,V$871)","v":0},{"$f":"SUMIFS(raw_local_capacity_resources!$C:$C,raw_local_capacity_resources!$A:$A,$C873,raw_local_capacity_resources!$B:$B,W$871)","v":0},{"$f":"SUMIFS(raw_local_capacity_resources!$C:$C,raw_local_capacity_resources!$A:$A,$C873,raw_local_capacity_resources!$B:$B,X$871)","v":0},{"$f":"SUMIFS(raw_local_capacity_resources!$C:$C,raw_local_capacity_resources!$A:$A,$C873,raw_local_capacity_resources!$B:$B,Y$871)","v":0},{"$f":"SUMIFS(raw_local_capacity_resources!$C:$C,raw_local_capacity_resources!$A:$A,$C873,raw_local_capacity_resources!$B:$B,Z$871)","v":0},{"$f":"SUMIFS(raw_local_capacity_resources!$C:$C,raw_local_capacity_resources!$A:$A,$C873,raw_local_capacity_resources!$B:$B,AA$871)","v":0},{"$f":"SUMIFS(raw_local_capacity_resources!$C:$C,raw_local_capacity_resources!$A:$A,$C873,raw_local_capacity_resources!$B:$B,AB$871)","v":0},{"$f":"SUMIFS(raw_local_capacity_resources!$C:$C,raw_local_capacity_resources!$A:$A,$C873,raw_local_capacity_resources!$B:$B,AC$871)","v":0},{"$f":"SUMIFS(raw_local_capacity_resources!$C:$C,raw_local_capacity_resources!$A:$A,$C873,raw_local_capacity_resources!$B:$B,AD$871)","v":0},{"$f":"SUMIFS(raw_local_capacity_resources!$C:$C,raw_local_capacity_resources!$A:$A,$C873,raw_local_capacity_resources!$B:$B,AE$871)","v":0},{"$f":"SUMIFS(raw_local_capacity_resources!$C:$C,raw_local_capacity_resources!$A:$A,$C873,raw_local_capacity_resources!$B:$B,AF$871)","v":0},{"$f":"SUMIFS(raw_local_capacity_resources!$C:$C,raw_local_capacity_resources!$A:$A,$C873,raw_local_capacity_resources!$B:$B,AG$871)","v":0},{"$f":"SUMIFS(raw_local_capacity_resources!$C:$C,raw_local_capacity_resources!$A:$A,$C873,raw_local_capacity_resources!$B:$B,AH$871)","v":0},{"$f":"SUMIFS(raw_local_capacity_resources!$C:$C,raw_local_capacity_resources!$A:$A,$C873,raw_local_capacity_resources!$B:$B,AI$871)","v":0},{"$f":"SUMIFS(raw_local_capacity_resources!$C:$C,raw_local_capacity_resources!$A:$A,$C873,raw_local_capacity_resources!$B:$B,AJ$871)","v":0},{"$f":"SUMIFS(raw_local_capacity_resources!$C:$C,raw_local_capacity_resources!$A:$A,$C873,raw_local_capacity_resources!$B:$B,AK$871)","v":0},{"$f":"SUMIFS(raw_local_capacity_resources!$C:$C,raw_local_capacity_resources!$A:$A,$C873,raw_local_capacity_resources!$B:$B,AL$871)","v":0},{"$f":"SUMIFS(raw_local_capacity_resources!$C:$C,raw_local_capacity_resources!$A:$A,$C873,raw_local_capacity_resources!$B:$B,AM$871)","v":0},{"$f":"SUMIFS(raw_local_capacity_resources!$C:$C,raw_local_capacity_resources!$A:$A,$C873,raw_local_capacity_resources!$B:$B,AN$871)","v":0}]
[null,null,"CAISO_Reciprocating_Engine","MW",{"$f":"SUMIFS(raw_local_capacity_resources!$C:$C,raw_local_capacity_resources!$A:$A,$C874,raw_local_capacity_resources!$B:$B,E$871)","v":0},{"$f":"SUMIFS(raw_local_capacity_resources!$C:$C,raw_local_capacity_resources!$A:$A,$C874,raw_local_capacity_resources!$B:$B,F$871)","v":0},{"$f":"SUMIFS(raw_local_capacity_resources!$C:$C,raw_local_capacity_resources!$A:$A,$C874,raw_local_capacity_resources!$B:$B,G$871)","v":0},{"$f":"SUMIFS(raw_local_capacity_resources!$C:$C,raw_local_capacity_resources!$A:$A,$C874,raw_local_capacity_resources!$B:$B,H$871)","v":0},{"$f":"SUMIFS(raw_local_capacity_resources!$C:$C,raw_local_capacity_resources!$A:$A,$C874,raw_local_capacity_resources!$B:$B,I$871)","v":0},{"$f":"SUMIFS(raw_local_capacity_resources!$C:$C,raw_local_capacity_resources!$A:$A,$C874,raw_local_capacity_resources!$B:$B,J$871)","v":0},{"$f":"SUMIFS(raw_local_capacity_resources!$C:$C,raw_local_capacity_resources!$A:$A,$C874,raw_local_capacity_resources!$B:$B,K$871)","v":0},{"$f":"SUMIFS(raw_local_capacity_resources!$C:$C,raw_local_capacity_resources!$A:$A,$C874,raw_local_capacity_resources!$B:$B,L$871)","v":0},{"$f":"SUMIFS(raw_local_capacity_resources!$C:$C,raw_local_capacity_resources!$A:$A,$C874,raw_local_capacity_resources!$B:$B,M$871)","v":0},{"$f":"SUMIFS(raw_local_capacity_resources!$C:$C,raw_local_capacity_resources!$A:$A,$C874,raw_local_capacity_resources!$B:$B,N$871)","v":0},{"$f":"SUMIFS(raw_local_capacity_resources!$C:$C,raw_local_capacity_resources!$A:$A,$C874,raw_local_capacity_resources!$B:$B,O$871)","v":0},{"$f":"SUMIFS(raw_local_capacity_resources!$C:$C,raw_local_capacity_resources!$A:$A,$C874,raw_local_capacity_resources!$B:$B,P$871)","v":0},{"$f":"SUMIFS(raw_local_capacity_resources!$C:$C,raw_local_capacity_resources!$A:$A,$C874,raw_local_capacity_resources!$B:$B,Q$871)","v":0},{"$f":"SUMIFS(raw_local_capacity_resources!$C:$C,raw_local_capacity_resources!$A:$A,$C874,raw_local_capacity_resources!$B:$B,R$871)","v":0},{"$f":"SUMIFS(raw_local_capacity_resources!$C:$C,raw_local_capacity_resources!$A:$A,$C874,raw_local_capacity_resources!$B:$B,S$871)","v":0},{"$f":"SUMIFS(raw_local_capacity_resources!$C:$C,raw_local_capacity_resources!$A:$A,$C874,raw_local_capacity_resources!$B:$B,T$871)","v":0},{"$f":"SUMIFS(raw_local_capacity_resources!$C:$C,raw_local_capacity_resources!$A:$A,$C874,raw_local_capacity_resources!$B:$B,U$871)","v":0},{"$f":"SUMIFS(raw_local_capacity_resources!$C:$C,raw_local_capacity_resources!$A:$A,$C874,raw_local_capacity_resources!$B:$B,V$871)","v":0},{"$f":"SUMIFS(raw_local_capacity_resources!$C:$C,raw_local_capacity_resources!$A:$A,$C874,raw_local_capacity_resources!$B:$B,W$871)","v":0},{"$f":"SUMIFS(raw_local_capacity_resources!$C:$C,raw_local_capacity_resources!$A:$A,$C874,raw_local_capacity_resources!$B:$B,X$871)","v":0},{"$f":"SUMIFS(raw_local_capacity_resources!$C:$C,raw_local_capacity_resources!$A:$A,$C874,raw_local_capacity_resources!$B:$B,Y$871)","v":0},{"$f":"SUMIFS(raw_local_capacity_resources!$C:$C,raw_local_capacity_resources!$A:$A,$C874,raw_local_capacity_resources!$B:$B,Z$871)","v":0},{"$f":"SUMIFS(raw_local_capacity_resources!$C:$C,raw_local_capacity_resources!$A:$A,$C874,raw_local_capacity_resources!$B:$B,AA$871)","v":0},{"$f":"SUMIFS(raw_local_capacity_resources!$C:$C,raw_local_capacity_resources!$A:$A,$C874,raw_local_capacity_resources!$B:$B,AB$871)","v":0},{"$f":"SUMIFS(raw_local_capacity_resources!$C:$C,raw_local_capacity_resources!$A:$A,$C874,raw_local_capacity_resources!$B:$B,AC$871)","v":0},{"$f":"SUMIFS(raw_local_capacity_resources!$C:$C,raw_local_capacity_resources!$A:$A,$C874,raw_local_capacity_resources!$B:$B,AD$871)","v":0},{"$f":"SUMIFS(raw_local_capacity_resources!$C:$C,raw_local_capacity_resources!$A:$A,$C874,raw_local_capacity_resources!$B:$B,AE$871)","v":0},{"$f":"SUMIFS(raw_local_capacity_resources!$C:$C,raw_local_capacity_resources!$A:$A,$C874,raw_local_capacity_resources!$B:$B,AF$871)","v":0},{"$f":"SUMIFS(raw_local_capacity_resources!$C:$C,raw_local_capacity_resources!$A:$A,$C874,raw_local_capacity_resources!$B:$B,AG$871)","v":0},{"$f":"SUMIFS(raw_local_capacity_resources!$C:$C,raw_local_capacity_resources!$A:$A,$C874,raw_local_capacity_resources!$B:$B,AH$871)","v":0},{"$f":"SUMIFS(raw_local_capacity_resources!$C:$C,raw_local_capacity_resources!$A:$A,$C874,raw_local_capacity_resources!$B:$B,AI$871)","v":0},{"$f":"SUMIFS(raw_local_capacity_resources!$C:$C,raw_local_capacity_resources!$A:$A,$C874,raw_local_capacity_resources!$B:$B,AJ$871)","v":0},{"$f":"SUMIFS(raw_local_capacity_resources!$C:$C,raw_local_capacity_resources!$A:$A,$C874,raw_local_capacity_resources!$B:$B,AK$871)","v":0},{"$f":"SUMIFS(raw_local_capacity_resources!$C:$C,raw_local_capacity_resources!$A:$A,$C874,raw_local_capacity_resources!$B:$B,AL$871)","v":0},{"$f":"SUMIFS(raw_local_capacity_resources!$C:$C,raw_local_capacity_resources!$A:$A,$C874,raw_local_capacity_resources!$B:$B,AM$871)","v":0},{"$f":"SUMIFS(raw_local_capacity_resources!$C:$C,raw_local_capacity_resources!$A:$A,$C874,raw_local_capacity_resources!$B:$B,AN$871)","v":0}]
[null,null,"Distributed Solar","MW",{"$f":"SUMIFS(raw_local_capacity_resources!$C:$C,raw_local_capacity_resources!$A:$A,$C875,raw_local_capacity_resources!$B:$B,E$871)","v":0},{"$f":"SUMIFS(raw_local_capacity_resources!$C:$C,raw_local_capacity_resources!$A:$A,$C875,raw_local_capacity_resources!$B:$B,F$871)","v":0},{"$f":"SUMIFS(raw_local_capacity_resources!$C:$C,raw_local_capacity_resources!$A:$A,$C875,raw_local_capacity_resources!$B:$B,G$871)","v":0},{"$f":"SUMIFS(raw_local_capacity_resources!$C:$C,raw_local_capacity_resources!$A:$A,$C875,raw_local_capacity_resources!$B:$B,H$871)","v":0},{"$f":"SUMIFS(raw_local_capacity_resources!$C:$C,raw_local_capacity_resources!$A:$A,$C875,raw_local_capacity_resources!$B:$B,I$871)","v":0},{"$f":"SUMIFS(raw_local_capacity_resources!$C:$C,raw_local_capacity_resources!$A:$A,$C875,raw_local_capacity_resources!$B:$B,J$871)","v":0},{"$f":"SUMIFS(raw_local_capacity_resources!$C:$C,raw_local_capacity_resources!$A:$A,$C875,raw_local_capacity_resources!$B:$B,K$871)","v":0},{"$f":"SUMIFS(raw_local_capacity_resources!$C:$C,raw_local_capacity_resources!$A:$A,$C875,raw_local_capacity_resources!$B:$B,L$871)","v":0},{"$f":"SUMIFS(raw_local_capacity_resources!$C:$C,raw_local_capacity_resources!$A:$A,$C875,raw_local_capacity_resources!$B:$B,M$871)","v":0},{"$f":"SUMIFS(raw_local_capacity_resources!$C:$C,raw_local_capacity_resources!$A:$A,$C875,raw_local_capacity_resources!$B:$B,N$871)","v":0},{"$f":"SUMIFS(raw_local_capacity_resources!$C:$C,raw_local_capacity_resources!$A:$A,$C875,raw_local_capacity_resources!$B:$B,O$871)","v":0},{"$f":"SUMIFS(raw_local_capacity_resources!$C:$C,raw_local_capacity_resources!$A:$A,$C875,raw_local_capacity_resources!$B:$B,P$871)","v":0},{"$f":"SUMIFS(raw_local_capacity_resources!$C:$C,raw_local_capacity_resources!$A:$A,$C875,raw_local_capacity_resources!$B:$B,Q$871)","v":0},{"$f":"SUMIFS(raw_local_capacity_resources!$C:$C,raw_local_capacity_resources!$A:$A,$C875,raw_local_capacity_resources!$B:$B,R$871)","v":0},{"$f":"SUMIFS(raw_local_capacity_resources!$C:$C,raw_local_capacity_resources!$A:$A,$C875,raw_local_capacity_resources!$B:$B,S$871)","v":0},{"$f":"SUMIFS(raw_local_capacity_resources!$C:$C,raw_local_capacity_resources!$A:$A,$C875,raw_local_capacity_resources!$B:$B,T$871)","v":0},{"$f":"SUMIFS(raw_local_capacity_resources!$C:$C,raw_local_capacity_resources!$A:$A,$C875,raw_local_capacity_resources!$B:$B,U$871)","v":0},{"$f":"SUMIFS(raw_local_capacity_resources!$C:$C,raw_local_capacity_resources!$A:$A,$C875,raw_local_capacity_resources!$B:$B,V$871)","v":0},{"$f":"SUMIFS(raw_local_capacity_resources!$C:$C,raw_local_capacity_resources!$A:$A,$C875,raw_local_capacity_resources!$B:$B,W$871)","v":0},{"$f":"SUMIFS(raw_local_capacity_resources!$C:$C,raw_local_capacity_resources!$A:$A,$C875,raw_local_capacity_resources!$B:$B,X$871)","v":0},{"$f":"SUMIFS(raw_local_capacity_resources!$C:$C,raw_local_capacity_resources!$A:$A,$C875,raw_local_capacity_resources!$B:$B,Y$871)","v":0},{"$f":"SUMIFS(raw_local_capacity_resources!$C:$C,raw_local_capacity_resources!$A:$A,$C875,raw_local_capacity_resources!$B:$B,Z$871)","v":0},{"$f":"SUMIFS(raw_local_capacity_resources!$C:$C,raw_local_capacity_resources!$A:$A,$C875,raw_local_capacity_resources!$B:$B,AA$871)","v":0},{"$f":"SUMIFS(raw_local_capacity_resources!$C:$C,raw_local_capacity_resources!$A:$A,$C875,raw_local_capacity_resources!$B:$B,AB$871)","v":0},{"$f":"SUMIFS(raw_local_capacity_resources!$C:$C,raw_local_capacity_resources!$A:$A,$C875,raw_local_capacity_resources!$B:$B,AC$871)","v":0},{"$f":"SUMIFS(raw_local_capacity_resources!$C:$C,raw_local_capacity_resources!$A:$A,$C875,raw_local_capacity_resources!$B:$B,AD$871)","v":0},{"$f":"SUMIFS(raw_local_capacity_resources!$C:$C,raw_local_capacity_resources!$A:$A,$C875,raw_local_capacity_resources!$B:$B,AE$871)","v":0},{"$f":"SUMIFS(raw_local_capacity_resources!$C:$C,raw_local_capacity_resources!$A:$A,$C875,raw_local_capacity_resources!$B:$B,AF$871)","v":0},{"$f":"SUMIFS(raw_local_capacity_resources!$C:$C,raw_local_capacity_resources!$A:$A,$C875,raw_local_capacity_resources!$B:$B,AG$871)","v":0},{"$f":"SUMIFS(raw_local_capacity_resources!$C:$C,raw_local_capacity_resources!$A:$A,$C875,raw_local_capacity_resources!$B:$B,AH$871)","v":0},{"$f":"SUMIFS(raw_local_capacity_resources!$C:$C,raw_local_capacity_resources!$A:$A,$C875,raw_local_capacity_resources!$B:$B,AI$871)","v":0},{"$f":"SUMIFS(raw_local_capacity_resources!$C:$C,raw_local_capacity_resources!$A:$A,$C875,raw_local_capacity_resources!$B:$B,AJ$871)","v":0},{"$f":"SUMIFS(raw_local_capacity_resources!$C:$C,raw_local_capacity_resources!$A:$A,$C875,raw_local_capacity_resources!$B:$B,AK$871)","v":0},{"$f":"SUMIFS(raw_local_capacity_resources!$C:$C,raw_local_capacity_resources!$A:$A,$C875,raw_local_capacity_resources!$B:$B,AL$871)","v":0},{"$f":"SUMIFS(raw_local_capacity_resources!$C:$C,raw_local_capacity_resources!$A:$A,$C875,raw_local_capacity_resources!$B:$B,AM$871)","v":0},{"$f":"SUMIFS(raw_local_capacity_resources!$C:$C,raw_local_capacity_resources!$A:$A,$C875,raw_local_capacity_resources!$B:$B,AN$871)","v":0}]
[null,null,"CAISO_New_Pumped_Storage","MW",{"$f":"SUMIFS(raw_local_capacity_resources!$C:$C,raw_local_capacity_resources!$A:$A,$C876,raw_local_capacity_resources!$B:$B,E$871)","v":0},{"$f":"SUMIFS(raw_local_capacity_resources!$C:$C,raw_local_capacity_resources!$A:$A,$C876,raw_local_capacity_resources!$B:$B,F$871)","v":0},{"$f":"SUMIFS(raw_local_capacity_resources!$C:$C,raw_local_capacity_resources!$A:$A,$C876,raw_local_capacity_resources!$B:$B,G$871)","v":0},{"$f":"SUMIFS(raw_local_capacity_resources!$C:$C,raw_local_capacity_resources!$A:$A,$C876,raw_local_capacity_resources!$B:$B,H$871)","v":0},{"$f":"SUMIFS(raw_local_capacity_resources!$C:$C,raw_local_capacity_resources!$A:$A,$C876,raw_local_capacity_resources!$B:$B,I$871)","v":0},{"$f":"SUMIFS(raw_local_capacity_resources!$C:$C,raw_local_capacity_resources!$A:$A,$C876,raw_local_capacity_resources!$B:$B,J$871)","v":0},{"$f":"SUMIFS(raw_local_capacity_resources!$C:$C,raw_local_capacity_resources!$A:$A,$C876,raw_local_capacity_resources!$B:$B,K$871)","v":0},{"$f":"SUMIFS(raw_local_capacity_resources!$C:$C,raw_local_capacity_resources!$A:$A,$C876,raw_local_capacity_resources!$B:$B,L$871)","v":0},{"$f":"SUMIFS(raw_local_capacity_resources!$C:$C,raw_local_capacity_resources!$A:$A,$C876,raw_local_capacity_resources!$B:$B,M$871)","v":0},{"$f":"SUMIFS(raw_local_capacity_resources!$C:$C,raw_local_capacity_resources!$A:$A,$C876,raw_local_capacity_resources!$B:$B,N$871)","v":0},{"$f":"SUMIFS(raw_local_capacity_resources!$C:$C,raw_local_capacity_resources!$A:$A,$C876,raw_local_capacity_resources!$B:$B,O$871)","v":0},{"$f":"SUMIFS(raw_local_capacity_resources!$C:$C,raw_local_capacity_resources!$A:$A,$C876,raw_local_capacity_resources!$B:$B,P$871)","v":0},{"$f":"SUMIFS(raw_local_capacity_resources!$C:$C,raw_local_capacity_resources!$A:$A,$C876,raw_local_capacity_resources!$B:$B,Q$871)","v":0},{"$f":"SUMIFS(raw_local_capacity_resources!$C:$C,raw_local_capacity_resources!$A:$A,$C876,raw_local_capacity_resources!$B:$B,R$871)","v":0},{"$f":"SUMIFS(raw_local_capacity_resources!$C:$C,raw_local_capacity_resources!$A:$A,$C876,raw_local_capacity_resources!$B:$B,S$871)","v":0},{"$f":"SUMIFS(raw_local_capacity_resources!$C:$C,raw_local_capacity_resources!$A:$A,$C876,raw_local_capacity_resources!$B:$B,T$871)","v":0},{"$f":"SUMIFS(raw_local_capacity_resources!$C:$C,raw_local_capacity_resources!$A:$A,$C876,raw_local_capacity_resources!$B:$B,U$871)","v":0},{"$f":"SUMIFS(raw_local_capacity_resources!$C:$C,raw_local_capacity_resources!$A:$A,$C876,raw_local_capacity_resources!$B:$B,V$871)","v":0},{"$f":"SUMIFS(raw_local_capacity_resources!$C:$C,raw_local_capacity_resources!$A:$A,$C876,raw_local_capacity_resources!$B:$B,W$871)","v":0},{"$f":"SUMIFS(raw_local_capacity_resources!$C:$C,raw_local_capacity_resources!$A:$A,$C876,raw_local_capacity_resources!$B:$B,X$871)","v":0},{"$f":"SUMIFS(raw_local_capacity_resources!$C:$C,raw_local_capacity_resources!$A:$A,$C876,raw_local_capacity_resources!$B:$B,Y$871)","v":0},{"$f":"SUMIFS(raw_local_capacity_resources!$C:$C,raw_local_capacity_resources!$A:$A,$C876,raw_local_capacity_resources!$B:$B,Z$871)","v":0},{"$f":"SUMIFS(raw_local_capacity_resources!$C:$C,raw_local_capacity_resources!$A:$A,$C876,raw_local_capacity_resources!$B:$B,AA$871)","v":0},{"$f":"SUMIFS(raw_local_capacity_resources!$C:$C,raw_local_capacity_resources!$A:$A,$C876,raw_local_capacity_resources!$B:$B,AB$871)","v":0},{"$f":"SUMIFS(raw_local_capacity_resources!$C:$C,raw_local_capacity_resources!$A:$A,$C876,raw_local_capacity_resources!$B:$B,AC$871)","v":0},{"$f":"SUMIFS(raw_local_capacity_resources!$C:$C,raw_local_capacity_resources!$A:$A,$C876,raw_local_capacity_resources!$B:$B,AD$871)","v":0},{"$f":"SUMIFS(raw_local_capacity_resources!$C:$C,raw_local_capacity_resources!$A:$A,$C876,raw_local_capacity_resources!$B:$B,AE$871)","v":0},{"$f":"SUMIFS(raw_local_capacity_resources!$C:$C,raw_local_capacity_resources!$A:$A,$C876,raw_local_capacity_resources!$B:$B,AF$871)","v":0},{"$f":"SUMIFS(raw_local_capacity_resources!$C:$C,raw_local_capacity_resources!$A:$A,$C876,raw_local_capacity_resources!$B:$B,AG$871)","v":0},{"$f":"SUMIFS(raw_local_capacity_resources!$C:$C,raw_local_capacity_resources!$A:$A,$C876,raw_local_capacity_resources!$B:$B,AH$871)","v":0},{"$f":"SUMIFS(raw_local_capacity_resources!$C:$C,raw_local_capacity_resources!$A:$A,$C876,raw_local_capacity_resources!$B:$B,AI$871)","v":0},{"$f":"SUMIFS(raw_local_capacity_resources!$C:$C,raw_local_capacity_resources!$A:$A,$C876,raw_local_capacity_resources!$B:$B,AJ$871)","v":0},{"$f":"SUMIFS(raw_local_capacity_resources!$C:$C,raw_local_capacity_resources!$A:$A,$C876,raw_local_capacity_resources!$B:$B,AK$871)","v":0},{"$f":"SUMIFS(raw_local_capacity_resources!$C:$C,raw_local_capacity_resources!$A:$A,$C876,raw_local_capacity_resources!$B:$B,AL$871)","v":0},{"$f":"SUMIFS(raw_local_capacity_resources!$C:$C,raw_local_capacity_resources!$A:$A,$C876,raw_local_capacity_resources!$B:$B,AM$871)","v":0},{"$f":"SUMIFS(raw_local_capacity_resources!$C:$C,raw_local_capacity_resources!$A:$A,$C876,raw_local_capacity_resources!$B:$B,AN$871)","v":0}]
[null,null,"CAISO_New_Li_Battery","MW",{"$f":"SUMIFS(raw_local_capacity_resources!$C:$C,raw_local_capacity_resources!$A:$A,$C877,raw_local_capacity_resources!$B:$B,E$871)","v":0},{"$f":"SUMIFS(raw_local_capacity_resources!$C:$C,raw_local_capacity_resources!$A:$A,$C877,raw_local_capacity_resources!$B:$B,F$871)","v":0},{"$f":"SUMIFS(raw_local_capacity_resources!$C:$C,raw_local_capacity_resources!$A:$A,$C877,raw_local_capacity_resources!$B:$B,G$871)","v":0},{"$f":"SUMIFS(raw_local_capacity_resources!$C:$C,raw_local_capacity_resources!$A:$A,$C877,raw_local_capacity_resources!$B:$B,H$871)","v":0},{"$f":"SUMIFS(raw_local_capacity_resources!$C:$C,raw_local_capacity_resources!$A:$A,$C877,raw_local_capacity_resources!$B:$B,I$871)","v":0},{"$f":"SUMIFS(raw_local_capacity_resources!$C:$C,raw_local_capacity_resources!$A:$A,$C877,raw_local_capacity_resources!$B:$B,J$871)","v":0},{"$f":"SUMIFS(raw_local_capacity_resources!$C:$C,raw_local_capacity_resources!$A:$A,$C877,raw_local_capacity_resources!$B:$B,K$871)","v":0},{"$f":"SUMIFS(raw_local_capacity_resources!$C:$C,raw_local_capacity_resources!$A:$A,$C877,raw_local_capacity_resources!$B:$B,L$871)","v":0},{"$f":"SUMIFS(raw_local_capacity_resources!$C:$C,raw_local_capacity_resources!$A:$A,$C877,raw_local_capacity_resources!$B:$B,M$871)","v":0},{"$f":"SUMIFS(raw_local_capacity_resources!$C:$C,raw_local_capacity_resources!$A:$A,$C877,raw_local_capacity_resources!$B:$B,N$871)","v":0},{"$f":"SUMIFS(raw_local_capacity_resources!$C:$C,raw_local_capacity_resources!$A:$A,$C877,raw_local_capacity_resources!$B:$B,O$871)","v":0},{"$f":"SUMIFS(raw_local_capacity_resources!$C:$C,raw_local_capacity_resources!$A:$A,$C877,raw_local_capacity_resources!$B:$B,P$871)","v":0},{"$f":"SUMIFS(raw_local_capacity_resources!$C:$C,raw_local_capacity_resources!$A:$A,$C877,raw_local_capacity_resources!$B:$B,Q$871)","v":0},{"$f":"SUMIFS(raw_local_capacity_resources!$C:$C,raw_local_capacity_resources!$A:$A,$C877,raw_local_capacity_resources!$B:$B,R$871)","v":0},{"$f":"SUMIFS(raw_local_capacity_resources!$C:$C,raw_local_capacity_resources!$A:$A,$C877,raw_local_capacity_resources!$B:$B,S$871)","v":0},{"$f":"SUMIFS(raw_local_capacity_resources!$C:$C,raw_local_capacity_resources!$A:$A,$C877,raw_local_capacity_resources!$B:$B,T$871)","v":0},{"$f":"SUMIFS(raw_local_capacity_resources!$C:$C,raw_local_capacity_resources!$A:$A,$C877,raw_local_capacity_resources!$B:$B,U$871)","v":0},{"$f":"SUMIFS(raw_local_capacity_resources!$C:$C,raw_local_capacity_resources!$A:$A,$C877,raw_local_capacity_resources!$B:$B,V$871)","v":0},{"$f":"SUMIFS(raw_local_capacity_resources!$C:$C,raw_local_capacity_resources!$A:$A,$C877,raw_local_capacity_resources!$B:$B,W$871)","v":0},{"$f":"SUMIFS(raw_local_capacity_resources!$C:$C,raw_local_capacity_resources!$A:$A,$C877,raw_local_capacity_resources!$B:$B,X$871)","v":0},{"$f":"SUMIFS(raw_local_capacity_resources!$C:$C,raw_local_capacity_resources!$A:$A,$C877,raw_local_capacity_resources!$B:$B,Y$871)","v":0},{"$f":"SUMIFS(raw_local_capacity_resources!$C:$C,raw_local_capacity_resources!$A:$A,$C877,raw_local_capacity_resources!$B:$B,Z$871)","v":0},{"$f":"SUMIFS(raw_local_capacity_resources!$C:$C,raw_local_capacity_resources!$A:$A,$C877,raw_local_capacity_resources!$B:$B,AA$871)","v":0},{"$f":"SUMIFS(raw_local_capacity_resources!$C:$C,raw_local_capacity_resources!$A:$A,$C877,raw_local_capacity_resources!$B:$B,AB$871)","v":0},{"$f":"SUMIFS(raw_local_capacity_resources!$C:$C,raw_local_capacity_resources!$A:$A,$C877,raw_local_capacity_resources!$B:$B,AC$871)","v":0},{"$f":"SUMIFS(raw_local_capacity_resources!$C:$C,raw_local_capacity_resources!$A:$A,$C877,raw_local_capacity_resources!$B:$B,AD$871)","v":0},{"$f":"SUMIFS(raw_local_capacity_resources!$C:$C,raw_local_capacity_resources!$A:$A,$C877,raw_local_capacity_resources!$B:$B,AE$871)","v":0},{"$f":"SUMIFS(raw_local_capacity_resources!$C:$C,raw_local_capacity_resources!$A:$A,$C877,raw_local_capacity_resources!$B:$B,AF$871)","v":0},{"$f":"SUMIFS(raw_local_capacity_resources!$C:$C,raw_local_capacity_resources!$A:$A,$C877,raw_local_capacity_resources!$B:$B,AG$871)","v":0},{"$f":"SUMIFS(raw_local_capacity_resources!$C:$C,raw_local_capacity_resources!$A:$A,$C877,raw_local_capacity_resources!$B:$B,AH$871)","v":0},{"$f":"SUMIFS(raw_local_capacity_resources!$C:$C,raw_local_capacity_resources!$A:$A,$C877,raw_local_capacity_resources!$B:$B,AI$871)","v":0},{"$f":"SUMIFS(raw_local_capacity_resources!$C:$C,raw_local_capacity_resources!$A:$A,$C877,raw_local_capacity_resources!$B:$B,AJ$871)","v":0},{"$f":"SUMIFS(raw_local_capacity_resources!$C:$C,raw_local_capacity_resources!$A:$A,$C877,raw_local_capacity_resources!$B:$B,AK$871)","v":0},{"$f":"SUMIFS(raw_local_capacity_resources!$C:$C,raw_local_capacity_resources!$A:$A,$C877,raw_local_capacity_resources!$B:$B,AL$871)","v":0},{"$f":"SUMIFS(raw_local_capacity_resources!$C:$C,raw_local_capacity_resources!$A:$A,$C877,raw_local_capacity_resources!$B:$B,AM$871)","v":0},{"$f":"SUMIFS(raw_local_capacity_resources!$C:$C,raw_local_capacity_resources!$A:$A,$C877,raw_local_capacity_resources!$B:$B,AN$871)","v":0}]
[null,null,"BTM_Li_Battery","MW",{"$f":"SUMIFS(raw_local_capacity_resources!$C:$C,raw_local_capacity_resources!$A:$A,$C878,raw_local_capacity_resources!$B:$B,E$871)","v":0},{"$f":"SUMIFS(raw_local_capacity_resources!$C:$C,raw_local_capacity_resources!$A:$A,$C878,raw_local_capacity_resources!$B:$B,F$871)","v":0},{"$f":"SUMIFS(raw_local_capacity_resources!$C:$C,raw_local_capacity_resources!$A:$A,$C878,raw_local_capacity_resources!$B:$B,G$871)","v":0},{"$f":"SUMIFS(raw_local_capacity_resources!$C:$C,raw_local_capacity_resources!$A:$A,$C878,raw_local_capacity_resources!$B:$B,H$871)","v":0},{"$f":"SUMIFS(raw_local_capacity_resources!$C:$C,raw_local_capacity_resources!$A:$A,$C878,raw_local_capacity_resources!$B:$B,I$871)","v":0},{"$f":"SUMIFS(raw_local_capacity_resources!$C:$C,raw_local_capacity_resources!$A:$A,$C878,raw_local_capacity_resources!$B:$B,J$871)","v":0},{"$f":"SUMIFS(raw_local_capacity_resources!$C:$C,raw_local_capacity_resources!$A:$A,$C878,raw_local_capacity_resources!$B:$B,K$871)","v":0},{"$f":"SUMIFS(raw_local_capacity_resources!$C:$C,raw_local_capacity_resources!$A:$A,$C878,raw_local_capacity_resources!$B:$B,L$871)","v":0},{"$f":"SUMIFS(raw_local_capacity_resources!$C:$C,raw_local_capacity_resources!$A:$A,$C878,raw_local_capacity_resources!$B:$B,M$871)","v":0},{"$f":"SUMIFS(raw_local_capacity_resources!$C:$C,raw_local_capacity_resources!$A:$A,$C878,raw_local_capacity_resources!$B:$B,N$871)","v":0},{"$f":"SUMIFS(raw_local_capacity_resources!$C:$C,raw_local_capacity_resources!$A:$A,$C878,raw_local_capacity_resources!$B:$B,O$871)","v":0},{"$f":"SUMIFS(raw_local_capacity_resources!$C:$C,raw_local_capacity_resources!$A:$A,$C878,raw_local_capacity_resources!$B:$B,P$871)","v":0},{"$f":"SUMIFS(raw_local_capacity_resources!$C:$C,raw_local_capacity_resources!$A:$A,$C878,raw_local_capacity_resources!$B:$B,Q$871)","v":0},{"$f":"SUMIFS(raw_local_capacity_resources!$C:$C,raw_local_capacity_resources!$A:$A,$C878,raw_local_capacity_resources!$B:$B,R$871)","v":0},{"$f":"SUMIFS(raw_local_capacity_resources!$C:$C,raw_local_capacity_resources!$A:$A,$C878,raw_local_capacity_resources!$B:$B,S$871)","v":0},{"$f":"SUMIFS(raw_local_capacity_resources!$C:$C,raw_local_capacity_resources!$A:$A,$C878,raw_local_capacity_resources!$B:$B,T$871)","v":0},{"$f":"SUMIFS(raw_local_capacity_resources!$C:$C,raw_local_capacity_resources!$A:$A,$C878,raw_local_capacity_resources!$B:$B,U$871)","v":0},{"$f":"SUMIFS(raw_local_capacity_resources!$C:$C,raw_local_capacity_resources!$A:$A,$C878,raw_local_capacity_resources!$B:$B,V$871)","v":0},{"$f":"SUMIFS(raw_local_capacity_resources!$C:$C,raw_local_capacity_resources!$A:$A,$C878,raw_local_capacity_resources!$B:$B,W$871)","v":0},{"$f":"SUMIFS(raw_local_capacity_resources!$C:$C,raw_local_capacity_resources!$A:$A,$C878,raw_local_capacity_resources!$B:$B,X$871)","v":0},{"$f":"SUMIFS(raw_local_capacity_resources!$C:$C,raw_local_capacity_resources!$A:$A,$C878,raw_local_capacity_resources!$B:$B,Y$871)","v":0},{"$f":"SUMIFS(raw_local_capacity_resources!$C:$C,raw_local_capacity_resources!$A:$A,$C878,raw_local_capacity_resources!$B:$B,Z$871)","v":0},{"$f":"SUMIFS(raw_local_capacity_resources!$C:$C,raw_local_capacity_resources!$A:$A,$C878,raw_local_capacity_resources!$B:$B,AA$871)","v":0},{"$f":"SUMIFS(raw_local_capacity_resources!$C:$C,raw_local_capacity_resources!$A:$A,$C878,raw_local_capacity_resources!$B:$B,AB$871)","v":0},{"$f":"SUMIFS(raw_local_capacity_resources!$C:$C,raw_local_capacity_resources!$A:$A,$C878,raw_local_capacity_resources!$B:$B,AC$871)","v":0},{"$f":"SUMIFS(raw_local_capacity_resources!$C:$C,raw_local_capacity_resources!$A:$A,$C878,raw_local_capacity_resources!$B:$B,AD$871)","v":0},{"$f":"SUMIFS(raw_local_capacity_resources!$C:$C,raw_local_capacity_resources!$A:$A,$C878,raw_local_capacity_resources!$B:$B,AE$871)","v":0},{"$f":"SUMIFS(raw_local_capacity_resources!$C:$C,raw_local_capacity_resources!$A:$A,$C878,raw_local_capacity_resources!$B:$B,AF$871)","v":0},{"$f":"SUMIFS(raw_local_capacity_resources!$C:$C,raw_local_capacity_resources!$A:$A,$C878,raw_local_capacity_resources!$B:$B,AG$871)","v":0},{"$f":"SUMIFS(raw_local_capacity_resources!$C:$C,raw_local_capacity_resources!$A:$A,$C878,raw_local_capacity_resources!$B:$B,AH$871)","v":0},{"$f":"SUMIFS(raw_local_capacity_resources!$C:$C,raw_local_capacity_resources!$A:$A,$C878,raw_local_capacity_resources!$B:$B,AI$871)","v":0},{"$f":"SUMIFS(raw_local_capacity_resources!$C:$C,raw_local_capacity_resources!$A:$A,$C878,raw_local_capacity_resources!$B:$B,AJ$871)","v":0},{"$f":"SUMIFS(raw_local_capacity_resources!$C:$C,raw_local_capacity_resources!$A:$A,$C878,raw_local_capacity_resources!$B:$B,AK$871)","v":0},{"$f":"SUMIFS(raw_local_capacity_resources!$C:$C,raw_local_capacity_resources!$A:$A,$C878,raw_local_capacity_resources!$B:$B,AL$871)","v":0},{"$f":"SUMIFS(raw_local_capacity_resources!$C:$C,raw_local_capacity_resources!$A:$A,$C878,raw_local_capacity_resources!$B:$B,AM$871)","v":0},{"$f":"SUMIFS(raw_local_capacity_resources!$C:$C,raw_local_capacity_resources!$A:$A,$C878,raw_local_capacity_resources!$B:$B,AN$871)","v":0}]
[null,null,"CAISO_New_Flow_Battery","MW",{"$f":"SUMIFS(raw_local_capacity_resources!$C:$C,raw_local_capacity_resources!$A:$A,$C879,raw_local_capacity_resources!$B:$B,E$871)","v":0},{"$f":"SUMIFS(raw_local_capacity_resources!$C:$C,raw_local_capacity_resources!$A:$A,$C879,raw_local_capacity_resources!$B:$B,F$871)","v":0},{"$f":"SUMIFS(raw_local_capacity_resources!$C:$C,raw_local_capacity_resources!$A:$A,$C879,raw_local_capacity_resources!$B:$B,G$871)","v":0},{"$f":"SUMIFS(raw_local_capacity_resources!$C:$C,raw_local_capacity_resources!$A:$A,$C879,raw_local_capacity_resources!$B:$B,H$871)","v":0},{"$f":"SUMIFS(raw_local_capacity_resources!$C:$C,raw_local_capacity_resources!$A:$A,$C879,raw_local_capacity_resources!$B:$B,I$871)","v":0},{"$f":"SUMIFS(raw_local_capacity_resources!$C:$C,raw_local_capacity_resources!$A:$A,$C879,raw_local_capacity_resources!$B:$B,J$871)","v":0},{"$f":"SUMIFS(raw_local_capacity_resources!$C:$C,raw_local_capacity_resources!$A:$A,$C879,raw_local_capacity_resources!$B:$B,K$871)","v":0},{"$f":"SUMIFS(raw_local_capacity_resources!$C:$C,raw_local_capacity_resources!$A:$A,$C879,raw_local_capacity_resources!$B:$B,L$871)","v":0},{"$f":"SUMIFS(raw_local_capacity_resources!$C:$C,raw_local_capacity_resources!$A:$A,$C879,raw_local_capacity_resources!$B:$B,M$871)","v":0},{"$f":"SUMIFS(raw_local_capacity_resources!$C:$C,raw_local_capacity_resources!$A:$A,$C879,raw_local_capacity_resources!$B:$B,N$871)","v":0},{"$f":"SUMIFS(raw_local_capacity_resources!$C:$C,raw_local_capacity_resources!$A:$A,$C879,raw_local_capacity_resources!$B:$B,O$871)","v":0},{"$f":"SUMIFS(raw_local_capacity_resources!$C:$C,raw_local_capacity_resources!$A:$A,$C879,raw_local_capacity_resources!$B:$B,P$871)","v":0},{"$f":"SUMIFS(raw_local_capacity_resources!$C:$C,raw_local_capacity_resources!$A:$A,$C879,raw_local_capacity_resources!$B:$B,Q$871)","v":0},{"$f":"SUMIFS(raw_local_capacity_resources!$C:$C,raw_local_capacity_resources!$A:$A,$C879,raw_local_capacity_resources!$B:$B,R$871)","v":0},{"$f":"SUMIFS(raw_local_capacity_resources!$C:$C,raw_local_capacity_resources!$A:$A,$C879,raw_local_capacity_resources!$B:$B,S$871)","v":0},{"$f":"SUMIFS(raw_local_capacity_resources!$C:$C,raw_local_capacity_resources!$A:$A,$C879,raw_local_capacity_resources!$B:$B,T$871)","v":0},{"$f":"SUMIFS(raw_local_capacity_resources!$C:$C,raw_local_capacity_resources!$A:$A,$C879,raw_local_capacity_resources!$B:$B,U$871)","v":0},{"$f":"SUMIFS(raw_local_capacity_resources!$C:$C,raw_local_capacity_resources!$A:$A,$C879,raw_local_capacity_resources!$B:$B,V$871)","v":0},{"$f":"SUMIFS(raw_local_capacity_resources!$C:$C,raw_local_capacity_resources!$A:$A,$C879,raw_local_capacity_resources!$B:$B,W$871)","v":0},{"$f":"SUMIFS(raw_local_capacity_resources!$C:$C,raw_local_capacity_resources!$A:$A,$C879,raw_local_capacity_resources!$B:$B,X$871)","v":0},{"$f":"SUMIFS(raw_local_capacity_resources!$C:$C,raw_local_capacity_resources!$A:$A,$C879,raw_local_capacity_resources!$B:$B,Y$871)","v":0},{"$f":"SUMIFS(raw_local_capacity_resources!$C:$C,raw_local_capacity_resources!$A:$A,$C879,raw_local_capacity_resources!$B:$B,Z$871)","v":0},{"$f":"SUMIFS(raw_local_capacity_resources!$C:$C,raw_local_capacity_resources!$A:$A,$C879,raw_local_capacity_resources!$B:$B,AA$871)","v":0},{"$f":"SUMIFS(raw_local_capacity_resources!$C:$C,raw_local_capacity_resources!$A:$A,$C879,raw_local_capacity_resources!$B:$B,AB$871)","v":0},{"$f":"SUMIFS(raw_local_capacity_resources!$C:$C,raw_local_capacity_resources!$A:$A,$C879,raw_local_capacity_resources!$B:$B,AC$871)","v":0},{"$f":"SUMIFS(raw_local_capacity_resources!$C:$C,raw_local_capacity_resources!$A:$A,$C879,raw_local_capacity_resources!$B:$B,AD$871)","v":0},{"$f":"SUMIFS(raw_local_capacity_resources!$C:$C,raw_local_capacity_resources!$A:$A,$C879,raw_local_capacity_resources!$B:$B,AE$871)","v":0},{"$f":"SUMIFS(raw_local_capacity_resources!$C:$C,raw_local_capacity_resources!$A:$A,$C879,raw_local_capacity_resources!$B:$B,AF$871)","v":0},{"$f":"SUMIFS(raw_local_capacity_resources!$C:$C,raw_local_capacity_resources!$A:$A,$C879,raw_local_capacity_resources!$B:$B,AG$871)","v":0},{"$f":"SUMIFS(raw_local_capacity_resources!$C:$C,raw_local_capacity_resources!$A:$A,$C879,raw_local_capacity_resources!$B:$B,AH$871)","v":0},{"$f":"SUMIFS(raw_local_capacity_resources!$C:$C,raw_local_capacity_resources!$A:$A,$C879,raw_local_capacity_resources!$B:$B,AI$871)","v":0},{"$f":"SUMIFS(raw_local_capacity_resources!$C:$C,raw_local_capacity_resources!$A:$A,$C879,raw_local_capacity_resources!$B:$B,AJ$871)","v":0},{"$f":"SUMIFS(raw_local_capacity_resources!$C:$C,raw_local_capacity_resources!$A:$A,$C879,raw_local_capacity_resources!$B:$B,AK$871)","v":0},{"$f":"SUMIFS(raw_local_capacity_resources!$C:$C,raw_local_capacity_resources!$A:$A,$C879,raw_local_capacity_resources!$B:$B,AL$871)","v":0},{"$f":"SUMIFS(raw_local_capacity_resources!$C:$C,raw_local_capacity_resources!$A:$A,$C879,raw_local_capacity_resources!$B:$B,AM$871)","v":0},{"$f":"SUMIFS(raw_local_capacity_resources!$C:$C,raw_local_capacity_resources!$A:$A,$C879,raw_local_capacity_resources!$B:$B,AN$871)","v":0}]
[null,null,"Total","MW",{"$f":"SUM(E872:E879)","v":0},{"$f":"SUM(F872:F879)","v":0},0,0,0,0,0,0,0,0,0,0,0,0,0,0,0,0,0,0,0,0,0,0,0,0,0,0,0,0,0,0,0,0,0,0]
[null,null,"LCR Deficiency","MW",{"$f":"SUMIFS(raw_planning_reserve_margin!$M:$M,raw_planning_reserve_margin!$A:$A,E$871)","v":0},{"$f":"SUMIFS(raw_planning_reserve_margin!$M:$M,raw_planning_reserve_margin!$A:$A,F$871)","v":0},{"$f":"SUMIFS(raw_planning_reserve_margin!$M:$M,raw_planning_reserve_margin!$A:$A,G$871)","v":0},{"$f":"SUMIFS(raw_planning_reserve_margin!$M:$M,raw_planning_reserve_margin!$A:$A,H$871)","v":0},{"$f":"SUMIFS(raw_planning_reserve_margin!$M:$M,raw_planning_reserve_margin!$A:$A,I$871)","v":0},{"$f":"SUMIFS(raw_planning_reserve_margin!$M:$M,raw_planning_reserve_margin!$A:$A,J$871)","v":0},{"$f":"SUMIFS(raw_planning_reserve_margin!$M:$M,raw_planning_reserve_margin!$A:$A,K$871)","v":0},{"$f":"SUMIFS(raw_planning_reserve_margin!$M:$M,raw_planning_reserve_margin!$A:$A,L$871)","v":0},{"$f":"SUMIFS(raw_planning_reserve_margin!$M:$M,raw_planning_reserve_margin!$A:$A,M$871)","v":0},{"$f":"SUMIFS(raw_planning_reserve_margin!$M:$M,raw_planning_reserve_margin!$A:$A,N$871)","v":0},{"$f":"SUMIFS(raw_planning_reserve_margin!$M:$M,raw_planning_reserve_margin!$A:$A,O$871)","v":0},{"$f":"SUMIFS(raw_planning_reserve_margin!$M:$M,raw_planning_reserve_margin!$A:$A,P$871)","v":0},{"$f":"SUMIFS(raw_planning_reserve_margin!$M:$M,raw_planning_reserve_margin!$A:$A,Q$871)","v":0},{"$f":"SUMIFS(raw_planning_reserve_margin!$M:$M,raw_planning_reserve_margin!$A:$A,R$871)","v":0},{"$f":"SUMIFS(raw_planning_reserve_margin!$M:$M,raw_planning_reserve_margin!$A:$A,S$871)","v":0},{"$f":"SUMIFS(raw_planning_reserve_margin!$M:$M,raw_planning_reserve_margin!$A:$A,T$871)","v":0},{"$f":"SUMIFS(raw_planning_reserve_margin!$M:$M,raw_planning_reserve_margin!$A:$A,U$871)","v":0},{"$f":"SUMIFS(raw_planning_reserve_margin!$M:$M,raw_planning_reserve_margin!$A:$A,V$871)","v":0},{"$f":"SUMIFS(raw_planning_reserve_margin!$M:$M,raw_planning_reserve_margin!$A:$A,W$871)","v":0},{"$f":"SUMIFS(raw_planning_reserve_margin!$M:$M,raw_planning_reserve_margin!$A:$A,X$871)","v":0},{"$f":"SUMIFS(raw_planning_reserve_margin!$M:$M,raw_planning_reserve_margin!$A:$A,Y$871)","v":0},{"$f":"SUMIFS(raw_planning_reserve_margin!$M:$M,raw_planning_reserve_margin!$A:$A,Z$871)","v":0},{"$f":"SUMIFS(raw_planning_reserve_margin!$M:$M,raw_planning_reserve_margin!$A:$A,AA$871)","v":0},{"$f":"SUMIFS(raw_planning_reserve_margin!$M:$M,raw_planning_reserve_margin!$A:$A,AB$871)","v":0},{"$f":"SUMIFS(raw_planning_reserve_margin!$M:$M,raw_planning_reserve_margin!$A:$A,AC$871)","v":0},{"$f":"SUMIFS(raw_planning_reserve_margin!$M:$M,raw_planning_reserve_margin!$A:$A,AD$871)","v":0},{"$f":"SUMIFS(raw_planning_reserve_margin!$M:$M,raw_planning_reserve_margin!$A:$A,AE$871)","v":0},{"$f":"SUMIFS(raw_planning_reserve_margin!$M:$M,raw_planning_reserve_margin!$A:$A,AF$871)","v":0},{"$f":"SUMIFS(raw_planning_reserve_margin!$M:$M,raw_planning_reserve_margin!$A:$A,AG$871)","v":0},{"$f":"SUMIFS(raw_planning_reserve_margin!$M:$M,raw_planning_reserve_margin!$A:$A,AH$871)","v":0},{"$f":"SUMIFS(raw_planning_reserve_margin!$M:$M,raw_planning_reserve_margin!$A:$A,AI$871)","v":0},{"$f":"SUMIFS(raw_planning_reserve_margin!$M:$M,raw_planning_reserve_margin!$A:$A,AJ$871)","v":0},{"$f":"SUMIFS(raw_planning_reserve_margin!$M:$M,raw_planning_reserve_margin!$A:$A,AK$871)","v":0},{"$f":"SUMIFS(raw_planning_reserve_margin!$M:$M,raw_planning_reserve_margin!$A:$A,AL$871)","v":0},{"$f":"SUMIFS(raw_planning_reserve_margin!$M:$M,raw_planning_reserve_margin!$A:$A,AM$871)","v":0},{"$f":"SUMIFS(raw_planning_reserve_margin!$M:$M,raw_planning_reserve_margin!$A:$A,AN$871)","v":0}]
[]
[]
[null,"Planning Reserve Margin Summary"]
[]
[null,null,"Metric","Unit",2015,{"$f":"E886+1","v":2016},2017,2018,2019,2020,2021,2022,2023,2024,2025,2026,2027,2028,2029,2030,2031,2032,2033,2034,2035,2036,2037,2038,2039,2040,2041,2042,2043,2044,2045,2046,2047,2048,2049,2050]
[null,null,"Peak Load","MW",{"$f":"SUMIF(raw_planning_reserve_margin!$A:$A,E$886,raw_planning_reserve_margin!$B:$B)","v":0},{"$f":"SUMIF(raw_planning_reserve_margin!$A:$A,F$886,raw_planning_reserve_margin!$B:$B)","v":0},{"$f":"SUMIF(raw_planning_reserve_margin!$A:$A,G$886,raw_planning_reserve_margin!$B:$B)","v":0},{"$f":"SUMIF(raw_planning_reserve_margin!$A:$A,H$886,raw_planning_reserve_margin!$B:$B)","v":0},{"$f":"SUMIF(raw_planning_reserve_margin!$A:$A,I$886,raw_planning_reserve_margin!$B:$B)","v":0},{"$f":"SUMIF(raw_planning_reserve_margin!$A:$A,J$886,raw_planning_reserve_margin!$B:$B)","v":49016.35},{"$f":"SUMIF(raw_planning_reserve_margin!$A:$A,K$886,raw_planning_reserve_margin!$B:$B)","v":49168.4},{"$f":"SUMIF(raw_planning_reserve_margin!$A:$A,L$886,raw_planning_reserve_margin!$B:$B)","v":49716.65},{"$f":"SUMIF(raw_planning_reserve_margin!$A:$A,M$886,raw_planning_reserve_margin!$B:$B)","v":50370.080000000002},{"$f":"SUMIF(raw_planning_reserve_margin!$A:$A,N$886,raw_planning_reserve_margin!$B:$B)","v":50927.23},{"$f":"SUMIF(raw_planning_reserve_margin!$A:$A,O$886,raw_planning_reserve_margin!$B:$B)","v":0},{"$f":"SUMIF(raw_planning_reserve_margin!$A:$A,P$886,raw_planning_reserve_margin!$B:$B)","v":53864.49},{"$f":"SUMIF(raw_planning_reserve_margin!$A:$A,Q$886,raw_planning_reserve_margin!$B:$B)","v":0},{"$f":"SUMIF(raw_planning_reserve_margin!$A:$A,R$886,raw_planning_reserve_margin!$B:$B)","v":0},{"$f":"SUMIF(raw_planning_reserve_margin!$A:$A,S$886,raw_planning_reserve_margin!$B:$B)","v":0},{"$f":"SUMIF(raw_planning_reserve_margin!$A:$A,T$886,raw_planning_reserve_margin!$B:$B)","v":55945.08},{"$f":"SUMIF(raw_planning_reserve_margin!$A:$A,U$886,raw_planning_reserve_margin!$B:$B)","v":0},{"$f":"SUMIF(raw_planning_reserve_margin!$A:$A,V$886,raw_planning_reserve_margin!$B:$B)","v":0},{"$f":"SUMIF(raw_planning_reserve_margin!$A:$A,W$886,raw_planning_reserve_margin!$B:$B)","v":0},{"$f":"SUMIF(raw_planning_reserve_margin!$A:$A,X$886,raw_planning_reserve_margin!$B:$B)","v":0},{"$f":"SUMIF(raw_planning_reserve_margin!$A:$A,Y$886,raw_planning_reserve_margin!$B:$B)","v":0},{"$f":"SUMIF(raw_planning_reserve_margin!$A:$A,Z$886,raw_planning_reserve_margin!$B:$B)","v":0},{"$f":"SUMIF(raw_planning_reserve_margin!$A:$A,AA$886,raw_planning_reserve_margin!$B:$B)","v":0},{"$f":"SUMIF(raw_planning_reserve_margin!$A:$A,AB$886,raw_planning_reserve_margin!$B:$B)","v":0},{"$f":"SUMIF(raw_planning_reserve_margin!$A:$A,AC$886,raw_planning_reserve_margin!$B:$B)","v":0},{"$f":"SUMIF(raw_planning_reserve_margin!$A:$A,AD$886,raw_planning_reserve_margin!$B:$B)","v":0},{"$f":"SUMIF(raw_planning_reserve_margin!$A:$A,AE$886,raw_planning_reserve_margin!$B:$B)","v":0},{"$f":"SUMIF(raw_planning_reserve_margin!$A:$A,AF$886,raw_planning_reserve_margin!$B:$B)","v":0},{"$f":"SUMIF(raw_planning_reserve_margin!$A:$A,AG$886,raw_planning_reserve_margin!$B:$B)","v":0},{"$f":"SUMIF(raw_planning_reserve_margin!$A:$A,AH$886,raw_planning_reserve_margin!$B:$B)","v":0},{"$f":"SUMIF(raw_planning_reserve_margin!$A:$A,AI$886,raw_planning_reserve_margin!$B:$B)","v":64499.27},{"$f":"SUMIF(raw_planning_reserve_margin!$A:$A,AJ$886,raw_planning_reserve_margin!$B:$B)","v":0},{"$f":"SUMIF(raw_planning_reserve_margin!$A:$A,AK$886,raw_planning_reserve_margin!$B:$B)","v":0},{"$f":"SUMIF(raw_planning_reserve_margin!$A:$A,AL$886,raw_planning_reserve_margin!$B:$B)","v":0},{"$f":"SUMIF(raw_planning_reserve_margin!$A:$A,AM$886,raw_planning_reserve_margin!$B:$B)","v":0},{"$f":"SUMIF(raw_planning_reserve_margin!$A:$A,AN$886,raw_planning_reserve_margin!$B:$B)","v":0}]
[null,null,"Reserve Margin Requirement","%",{"$f":"SUMIF(raw_planning_reserve_margin!$A:$A,E$886,raw_planning_reserve_margin!$C:$C)","v":0},{"$f":"SUMIF(raw_planning_reserve_margin!$A:$A,F$886,raw_planning_reserve_margin!$C:$C)","v":0},{"$f":"SUMIF(raw_planning_reserve_margin!$A:$A,G$886,raw_planning_reserve_margin!$C:$C)","v":0},{"$f":"SUMIF(raw_planning_reserve_margin!$A:$A,H$886,raw_planning_reserve_margin!$C:$C)","v":0},{"$f":"SUMIF(raw_planning_reserve_margin!$A:$A,I$886,raw_planning_reserve_margin!$C:$C)","v":0},{"$f":"SUMIF(raw_planning_reserve_margin!$A:$A,J$886,raw_planning_reserve_margin!$C:$C)","v":0.15},{"$f":"SUMIF(raw_planning_reserve_margin!$A:$A,K$886,raw_planning_reserve_margin!$C:$C)","v":0.15},{"$f":"SUMIF(raw_planning_reserve_margin!$A:$A,L$886,raw_planning_reserve_margin!$C:$C)","v":0.15},{"$f":"SUMIF(raw_planning_reserve_margin!$A:$A,M$886,raw_planning_reserve_margin!$C:$C)","v":0.15},{"$f":"SUMIF(raw_planning_reserve_margin!$A:$A,N$886,raw_planning_reserve_margin!$C:$C)","v":0.15},{"$f":"SUMIF(raw_planning_reserve_margin!$A:$A,O$886,raw_planning_reserve_margin!$C:$C)","v":0},{"$f":"SUMIF(raw_planning_reserve_margin!$A:$A,P$886,raw_planning_reserve_margin!$C:$C)","v":0.15},{"$f":"SUMIF(raw_planning_reserve_margin!$A:$A,Q$886,raw_planning_reserve_margin!$C:$C)","v":0},{"$f":"SUMIF(raw_planning_reserve_margin!$A:$A,R$886,raw_planning_reserve_margin!$C:$C)","v":0},{"$f":"SUMIF(raw_planning_reserve_margin!$A:$A,S$886,raw_planning_reserve_margin!$C:$C)","v":0},{"$f":"SUMIF(raw_planning_reserve_margin!$A:$A,T$886,raw_planning_reserve_margin!$C:$C)","v":0.15},{"$f":"SUMIF(raw_planning_reserve_margin!$A:$A,U$886,raw_planning_reserve_margin!$C:$C)","v":0},{"$f":"SUMIF(raw_planning_reserve_margin!$A:$A,V$886,raw_planning_reserve_margin!$C:$C)","v":0},{"$f":"SUMIF(raw_planning_reserve_margin!$A:$A,W$886,raw_planning_reserve_margin!$C:$C)","v":0},{"$f":"SUMIF(raw_planning_reserve_margin!$A:$A,X$886,raw_planning_reserve_margin!$C:$C)","v":0},{"$f":"SUMIF(raw_planning_reserve_margin!$A:$A,Y$886,raw_planning_reserve_margin!$C:$C)","v":0},{"$f":"SUMIF(raw_planning_reserve_margin!$A:$A,Z$886,raw_planning_reserve_margin!$C:$C)","v":0},{"$f":"SUMIF(raw_planning_reserve_margin!$A:$A,AA$886,raw_planning_reserve_margin!$C:$C)","v":0},{"$f":"SUMIF(raw_planning_reserve_margin!$A:$A,AB$886,raw_planning_reserve_margin!$C:$C)","v":0},{"$f":"SUMIF(raw_planning_reserve_margin!$A:$A,AC$886,raw_planning_reserve_margin!$C:$C)","v":0},{"$f":"SUMIF(raw_planning_reserve_margin!$A:$A,AD$886,raw_planning_reserve_margin!$C:$C)","v":0},{"$f":"SUMIF(raw_planning_reserve_margin!$A:$A,AE$886,raw_planning_reserve_margin!$C:$C)","v":0},{"$f":"SUMIF(raw_planning_reserve_margin!$A:$A,AF$886,raw_planning_reserve_margin!$C:$C)","v":0},{"$f":"SUMIF(raw_planning_reserve_margin!$A:$A,AG$886,raw_planning_reserve_margin!$C:$C)","v":0},{"$f":"SUMIF(raw_planning_reserve_margin!$A:$A,AH$886,raw_planning_reserve_margin!$C:$C)","v":0},{"$f":"SUMIF(raw_planning_reserve_margin!$A:$A,AI$886,raw_planning_reserve_margin!$C:$C)","v":0.15},{"$f":"SUMIF(raw_planning_reserve_margin!$A:$A,AJ$886,raw_planning_reserve_margin!$C:$C)","v":0},{"$f":"SUMIF(raw_planning_reserve_margin!$A:$A,AK$886,raw_planning_reserve_margin!$C:$C)","v":0},{"$f":"SUMIF(raw_planning_reserve_margin!$A:$A,AL$886,raw_planning_reserve_margin!$C:$C)","v":0},{"$f":"SUMIF(raw_planning_reserve_margin!$A:$A,AM$886,raw_planning_reserve_margin!$C:$C)","v":0},{"$f":"SUMIF(raw_planning_reserve_margin!$A:$A,AN$886,raw_planning_reserve_margin!$C:$C)","v":0}]
[null,null,"Total Reserve Margin Requirement","MW",{"$f":"E887*(1+E888)","v":0},{"$f":"F887*(1+F888)","v":0},0,0,0,56368.802499999991,56543.659999999996,57174.147499999999,57925.591999999997,58566.3145,0,61944.163499999995,0,0,0,64336.841999999997,0,0,0,0,0,0,0,0,0,0,0,0,0,0,74174.160499999984,0,0,0,0,0]
[null,null,"Firm Capacity","MW",{"$f":"SUMIF(raw_planning_reserve_margin!$A:$A,E$886,raw_planning_reserve_margin!$F:$F)+SUMIF(raw_planning_reserve_margin!$A:$A,E$886,raw_planning_reserve_margin!$H:$H)","v":0},{"$f":"SUMIF(raw_planning_reserve_margin!$A:$A,F$886,raw_planning_reserve_margin!$F:$F)+SUMIF(raw_planning_reserve_margin!$A:$A,F$886,raw_planning_reserve_margin!$H:$H)","v":0},{"$f":"SUMIF(raw_planning_reserve_margin!$A:$A,G$886,raw_planning_reserve_margin!$F:$F)+SUMIF(raw_planning_reserve_margin!$A:$A,G$886,raw_planning_reserve_margin!$H:$H)","v":0},{"$f":"SUMIF(raw_planning_reserve_margin!$A:$A,H$886,raw_planning_reserve_margin!$F:$F)+SUMIF(raw_planning_reserve_margin!$A:$A,H$886,raw_planning_reserve_margin!$H:$H)","v":0},{"$f":"SUMIF(raw_planning_reserve_margin!$A:$A,I$886,raw_planning_reserve_margin!$F:$F)+SUMIF(raw_planning_reserve_margin!$A:$A,I$886,raw_planning_reserve_margin!$H:$H)","v":0},{"$f":"SUMIF(raw_planning_reserve_margin!$A:$A,J$886,raw_planning_reserve_margin!$F:$F)+SUMIF(raw_planning_reserve_margin!$A:$A,J$886,raw_planning_reserve_margin!$H:$H)","v":37934.22},{"$f":"SUMIF(raw_planning_reserve_margin!$A:$A,K$886,raw_planning_reserve_margin!$F:$F)+SUMIF(raw_planning_reserve_margin!$A:$A,K$886,raw_planning_reserve_margin!$H:$H)","v":35409.129999999997},{"$f":"SUMIF(raw_planning_reserve_margin!$A:$A,L$886,raw_planning_reserve_margin!$F:$F)+SUMIF(raw_planning_reserve_margin!$A:$A,L$886,raw_planning_reserve_margin!$H:$H)","v":35409.129999999997},{"$f":"SUMIF(raw_planning_reserve_margin!$A:$A,M$886,raw_planning_reserve_margin!$F:$F)+SUMIF(raw_planning_reserve_margin!$A:$A,M$886,raw_planning_reserve_margin!$H:$H)","v":35409.129999999997},{"$f":"SUMIF(raw_planning_reserve_margin!$A:$A,N$886,raw_planning_reserve_margin!$F:$F)+SUMIF(raw_planning_reserve_margin!$A:$A,N$886,raw_planning_reserve_margin!$H:$H)","v":34388.5},{"$f":"SUMIF(raw_planning_reserve_margin!$A:$A,O$886,raw_planning_reserve_margin!$F:$F)+SUMIF(raw_planning_reserve_margin!$A:$A,O$886,raw_planning_reserve_margin!$H:$H)","v":0},{"$f":"SUMIF(raw_planning_reserve_margin!$A:$A,P$886,raw_planning_reserve_margin!$F:$F)+SUMIF(raw_planning_reserve_margin!$A:$A,P$886,raw_planning_reserve_margin!$H:$H)","v":32775.94},{"$f":"SUMIF(raw_planning_reserve_margin!$A:$A,Q$886,raw_planning_reserve_margin!$F:$F)+SUMIF(raw_planning_reserve_margin!$A:$A,Q$886,raw_planning_reserve_margin!$H:$H)","v":0},{"$f":"SUMIF(raw_planning_reserve_margin!$A:$A,R$886,raw_planning_reserve_margin!$F:$F)+SUMIF(raw_planning_reserve_margin!$A:$A,R$886,raw_planning_reserve_margin!$H:$H)","v":0},{"$f":"SUMIF(raw_planning_reserve_margin!$A:$A,S$886,raw_planning_reserve_margin!$F:$F)+SUMIF(raw_planning_reserve_margin!$A:$A,S$886,raw_planning_reserve_margin!$H:$H)","v":0},{"$f":"SUMIF(raw_planning_reserve_margin!$A:$A,T$886,raw_planning_reserve_margin!$F:$F)+SUMIF(raw_planning_reserve_margin!$A:$A,T$886,raw_planning_reserve_margin!$H:$H)","v":32774.120000000003},{"$f":"SUMIF(raw_planning_reserve_margin!$A:$A,U$886,raw_planning_reserve_margin!$F:$F)+SUMIF(raw_planning_reserve_margin!$A:$A,U$886,raw_planning_reserve_margin!$H:$H)","v":0},{"$f":"SUMIF(raw_planning_reserve_margin!$A:$A,V$886,raw_planning_reserve_margin!$F:$F)+SUMIF(raw_planning_reserve_margin!$A:$A,V$886,raw_planning_reserve_margin!$H:$H)","v":0},{"$f":"SUMIF(raw_planning_reserve_margin!$A:$A,W$886,raw_planning_reserve_margin!$F:$F)+SUMIF(raw_planning_reserve_margin!$A:$A,W$886,raw_planning_reserve_margin!$H:$H)","v":0},{"$f":"SUMIF(raw_planning_reserve_margin!$A:$A,X$886,raw_planning_reserve_margin!$F:$F)+SUMIF(raw_planning_reserve_margin!$A:$A,X$886,raw_planning_reserve_margin!$H:$H)","v":0},{"$f":"SUMIF(raw_planning_reserve_margin!$A:$A,Y$886,raw_planning_reserve_margin!$F:$F)+SUMIF(raw_planning_reserve_margin!$A:$A,Y$886,raw_planning_reserve_margin!$H:$H)","v":0},{"$f":"SUMIF(raw_planning_reserve_margin!$A:$A,Z$886,raw_planning_reserve_margin!$F:$F)+SUMIF(raw_planning_reserve_margin!$A:$A,Z$886,raw_planning_reserve_margin!$H:$H)","v":0},{"$f":"SUMIF(raw_planning_reserve_margin!$A:$A,AA$886,raw_planning_reserve_margin!$F:$F)+SUMIF(raw_planning_reserve_margin!$A:$A,AA$886,raw_planning_reserve_margin!$H:$H)","v":0},{"$f":"SUMIF(raw_planning_reserve_margin!$A:$A,AB$886,raw_planning_reserve_margin!$F:$F)+SUMIF(raw_planning_reserve_margin!$A:$A,AB$886,raw_planning_reserve_margin!$H:$H)","v":0},{"$f":"SUMIF(raw_planning_reserve_margin!$A:$A,AC$886,raw_planning_reserve_margin!$F:$F)+SUMIF(raw_planning_reserve_margin!$A:$A,AC$886,raw_planning_reserve_margin!$H:$H)","v":0},{"$f":"SUMIF(raw_planning_reserve_margin!$A:$A,AD$886,raw_planning_reserve_margin!$F:$F)+SUMIF(raw_planning_reserve_margin!$A:$A,AD$886,raw_planning_reserve_margin!$H:$H)","v":0},{"$f":"SUMIF(raw_planning_reserve_margin!$A:$A,AE$886,raw_planning_reserve_margin!$F:$F)+SUMIF(raw_planning_reserve_margin!$A:$A,AE$886,raw_planning_reserve_margin!$H:$H)","v":0},{"$f":"SUMIF(raw_planning_reserve_margin!$A:$A,AF$886,raw_planning_reserve_margin!$F:$F)+SUMIF(raw_planning_reserve_margin!$A:$A,AF$886,raw_planning_reserve_margin!$H:$H)","v":0},{"$f":"SUMIF(raw_planning_reserve_margin!$A:$A,AG$886,raw_planning_reserve_margin!$F:$F)+SUMIF(raw_planning_reserve_margin!$A:$A,AG$886,raw_planning_reserve_margin!$H:$H)","v":0},{"$f":"SUMIF(raw_planning_reserve_margin!$A:$A,AH$886,raw_planning_reserve_margin!$F:$F)+SUMIF(raw_planning_reserve_margin!$A:$A,AH$886,raw_planning_reserve_margin!$H:$H)","v":0},{"$f":"SUMIF(raw_planning_reserve_margin!$A:$A,AI$886,raw_planning_reserve_margin!$F:$F)+SUMIF(raw_planning_reserve_margin!$A:$A,AI$886,raw_planning_reserve_margin!$H:$H)","v":30158.16},{"$f":"SUMIF(raw_planning_reserve_margin!$A:$A,AJ$886,raw_planning_reserve_margin!$F:$F)+SUMIF(raw_planning_reserve_margin!$A:$A,AJ$886,raw_planning_reserve_margin!$H:$H)","v":0},{"$f":"SUMIF(raw_planning_reserve_margin!$A:$A,AK$886,raw_planning_reserve_margin!$F:$F)+SUMIF(raw_planning_reserve_margin!$A:$A,AK$886,raw_planning_reserve_margin!$H:$H)","v":0},{"$f":"SUMIF(raw_planning_reserve_margin!$A:$A,AL$886,raw_planning_reserve_margin!$F:$F)+SUMIF(raw_planning_reserve_margin!$A:$A,AL$886,raw_planning_reserve_margin!$H:$H)","v":0},{"$f":"SUMIF(raw_planning_reserve_margin!$A:$A,AM$886,raw_planning_reserve_margin!$F:$F)+SUMIF(raw_planning_reserve_margin!$A:$A,AM$886,raw_planning_reserve_margin!$H:$H)","v":0},{"$f":"SUMIF(raw_planning_reserve_margin!$A:$A,AN$886,raw_planning_reserve_margin!$F:$F)+SUMIF(raw_planning_reserve_margin!$A:$A,AN$886,raw_planning_reserve_margin!$H:$H)","v":0}]
[null,null,"CCGT","MW",{"$f":"SUMIFS(raw_resource_build!$AA:$AA,Lists!$P:$P,'Portfolio Analytics'!$C891,raw_resource_build!$A:$A,'Portfolio Analytics'!E$886,raw_resource_build!$C:$C,mainzone)","v":0},{"$f":"SUMIFS(raw_resource_build!$AA:$AA,Lists!$P:$P,'Portfolio Analytics'!$C891,raw_resource_build!$A:$A,'Portfolio Analytics'!F$886,raw_resource_build!$C:$C,mainzone)","v":0},{"$f":"SUMIFS(raw_resource_build!$AA:$AA,Lists!$P:$P,'Portfolio Analytics'!$C891,raw_resource_build!$A:$A,'Portfolio Analytics'!G$886,raw_resource_build!$C:$C,mainzone)","v":0},{"$f":"SUMIFS(raw_resource_build!$AA:$AA,Lists!$P:$P,'Portfolio Analytics'!$C891,raw_resource_build!$A:$A,'Portfolio Analytics'!H$886,raw_resource_build!$C:$C,mainzone)","v":0},{"$f":"SUMIFS(raw_resource_build!$AA:$AA,Lists!$P:$P,'Portfolio Analytics'!$C891,raw_resource_build!$A:$A,'Portfolio Analytics'!I$886,raw_resource_build!$C:$C,mainzone)","v":0},{"$f":"SUMIFS(raw_resource_build!$AA:$AA,Lists!$P:$P,'Portfolio Analytics'!$C891,raw_resource_build!$A:$A,'Portfolio Analytics'!J$886,raw_resource_build!$C:$C,mainzone)","v":14247.68},{"$f":"SUMIFS(raw_resource_build!$AA:$AA,Lists!$P:$P,'Portfolio Analytics'!$C891,raw_resource_build!$A:$A,'Portfolio Analytics'!K$886,raw_resource_build!$C:$C,mainzone)","v":15453.96},{"$f":"SUMIFS(raw_resource_build!$AA:$AA,Lists!$P:$P,'Portfolio Analytics'!$C891,raw_resource_build!$A:$A,'Portfolio Analytics'!L$886,raw_resource_build!$C:$C,mainzone)","v":15453.96},{"$f":"SUMIFS(raw_resource_build!$AA:$AA,Lists!$P:$P,'Portfolio Analytics'!$C891,raw_resource_build!$A:$A,'Portfolio Analytics'!M$886,raw_resource_build!$C:$C,mainzone)","v":15453.96},{"$f":"SUMIFS(raw_resource_build!$AA:$AA,Lists!$P:$P,'Portfolio Analytics'!$C891,raw_resource_build!$A:$A,'Portfolio Analytics'!N$886,raw_resource_build!$C:$C,mainzone)","v":15453.96},{"$f":"SUMIFS(raw_resource_build!$AA:$AA,Lists!$P:$P,'Portfolio Analytics'!$C891,raw_resource_build!$A:$A,'Portfolio Analytics'!O$886,raw_resource_build!$C:$C,mainzone)","v":0},{"$f":"SUMIFS(raw_resource_build!$AA:$AA,Lists!$P:$P,'Portfolio Analytics'!$C891,raw_resource_build!$A:$A,'Portfolio Analytics'!P$886,raw_resource_build!$C:$C,mainzone)","v":15453.96},{"$f":"SUMIFS(raw_resource_build!$AA:$AA,Lists!$P:$P,'Portfolio Analytics'!$C891,raw_resource_build!$A:$A,'Portfolio Analytics'!Q$886,raw_resource_build!$C:$C,mainzone)","v":0},{"$f":"SUMIFS(raw_resource_build!$AA:$AA,Lists!$P:$P,'Portfolio Analytics'!$C891,raw_resource_build!$A:$A,'Portfolio Analytics'!R$886,raw_resource_build!$C:$C,mainzone)","v":0},{"$f":"SUMIFS(raw_resource_build!$AA:$AA,Lists!$P:$P,'Portfolio Analytics'!$C891,raw_resource_build!$A:$A,'Portfolio Analytics'!S$886,raw_resource_build!$C:$C,mainzone)","v":0},{"$f":"SUMIFS(raw_resource_build!$AA:$AA,Lists!$P:$P,'Portfolio Analytics'!$C891,raw_resource_build!$A:$A,'Portfolio Analytics'!T$886,raw_resource_build!$C:$C,mainzone)","v":15453.96},{"$f":"SUMIFS(raw_resource_build!$AA:$AA,Lists!$P:$P,'Portfolio Analytics'!$C891,raw_resource_build!$A:$A,'Portfolio Analytics'!U$886,raw_resource_build!$C:$C,mainzone)","v":0},{"$f":"SUMIFS(raw_resource_build!$AA:$AA,Lists!$P:$P,'Portfolio Analytics'!$C891,raw_resource_build!$A:$A,'Portfolio Analytics'!V$886,raw_resource_build!$C:$C,mainzone)","v":0},{"$f":"SUMIFS(raw_resource_build!$AA:$AA,Lists!$P:$P,'Portfolio Analytics'!$C891,raw_resource_build!$A:$A,'Portfolio Analytics'!W$886,raw_resource_build!$C:$C,mainzone)","v":0},{"$f":"SUMIFS(raw_resource_build!$AA:$AA,Lists!$P:$P,'Portfolio Analytics'!$C891,raw_resource_build!$A:$A,'Portfolio Analytics'!X$886,raw_resource_build!$C:$C,mainzone)","v":0},{"$f":"SUMIFS(raw_resource_build!$AA:$AA,Lists!$P:$P,'Portfolio Analytics'!$C891,raw_resource_build!$A:$A,'Portfolio Analytics'!Y$886,raw_resource_build!$C:$C,mainzone)","v":0},{"$f":"SUMIFS(raw_resource_build!$AA:$AA,Lists!$P:$P,'Portfolio Analytics'!$C891,raw_resource_build!$A:$A,'Portfolio Analytics'!Z$886,raw_resource_build!$C:$C,mainzone)","v":0},{"$f":"SUMIFS(raw_resource_build!$AA:$AA,Lists!$P:$P,'Portfolio Analytics'!$C891,raw_resource_build!$A:$A,'Portfolio Analytics'!AA$886,raw_resource_build!$C:$C,mainzone)","v":0},{"$f":"SUMIFS(raw_resource_build!$AA:$AA,Lists!$P:$P,'Portfolio Analytics'!$C891,raw_resource_build!$A:$A,'Portfolio Analytics'!AB$886,raw_resource_build!$C:$C,mainzone)","v":0},{"$f":"SUMIFS(raw_resource_build!$AA:$AA,Lists!$P:$P,'Portfolio Analytics'!$C891,raw_resource_build!$A:$A,'Portfolio Analytics'!AC$886,raw_resource_build!$C:$C,mainzone)","v":0},{"$f":"SUMIFS(raw_resource_build!$AA:$AA,Lists!$P:$P,'Portfolio Analytics'!$C891,raw_resource_build!$A:$A,'Portfolio Analytics'!AD$886,raw_resource_build!$C:$C,mainzone)","v":0},{"$f":"SUMIFS(raw_resource_build!$AA:$AA,Lists!$P:$P,'Portfolio Analytics'!$C891,raw_resource_build!$A:$A,'Portfolio Analytics'!AE$886,raw_resource_build!$C:$C,mainzone)","v":0},{"$f":"SUMIFS(raw_resource_build!$AA:$AA,Lists!$P:$P,'Portfolio Analytics'!$C891,raw_resource_build!$A:$A,'Portfolio Analytics'!AF$886,raw_resource_build!$C:$C,mainzone)","v":0},{"$f":"SUMIFS(raw_resource_build!$AA:$AA,Lists!$P:$P,'Portfolio Analytics'!$C891,raw_resource_build!$A:$A,'Portfolio Analytics'!AG$886,raw_resource_build!$C:$C,mainzone)","v":0},{"$f":"SUMIFS(raw_resource_build!$AA:$AA,Lists!$P:$P,'Portfolio Analytics'!$C891,raw_resource_build!$A:$A,'Portfolio Analytics'!AH$886,raw_resource_build!$C:$C,mainzone)","v":0},{"$f":"SUMIFS(raw_resource_build!$AA:$AA,Lists!$P:$P,'Portfolio Analytics'!$C891,raw_resource_build!$A:$A,'Portfolio Analytics'!AI$886,raw_resource_build!$C:$C,mainzone)","v":15453.96},{"$f":"SUMIFS(raw_resource_build!$AA:$AA,Lists!$P:$P,'Portfolio Analytics'!$C891,raw_resource_build!$A:$A,'Portfolio Analytics'!AJ$886,raw_resource_build!$C:$C,mainzone)","v":0},{"$f":"SUMIFS(raw_resource_build!$AA:$AA,Lists!$P:$P,'Portfolio Analytics'!$C891,raw_resource_build!$A:$A,'Portfolio Analytics'!AK$886,raw_resource_build!$C:$C,mainzone)","v":0},{"$f":"SUMIFS(raw_resource_build!$AA:$AA,Lists!$P:$P,'Portfolio Analytics'!$C891,raw_resource_build!$A:$A,'Portfolio Analytics'!AL$886,raw_resource_build!$C:$C,mainzone)","v":0},{"$f":"SUMIFS(raw_resource_build!$AA:$AA,Lists!$P:$P,'Portfolio Analytics'!$C891,raw_resource_build!$A:$A,'Portfolio Analytics'!AM$886,raw_resource_build!$C:$C,mainzone)","v":0},{"$f":"SUMIFS(raw_resource_build!$AA:$AA,Lists!$P:$P,'Portfolio Analytics'!$C891,raw_resource_build!$A:$A,'Portfolio Analytics'!AN$886,raw_resource_build!$C:$C,mainzone)","v":0}]
[null,null,"Peaker","MW",{"$f":"SUMIFS(raw_resource_build!$AA:$AA,Lists!$P:$P,'Portfolio Analytics'!$C892,raw_resource_build!$A:$A,'Portfolio Analytics'!E$886,raw_resource_build!$C:$C,mainzone)","v":0},{"$f":"SUMIFS(raw_resource_build!$AA:$AA,Lists!$P:$P,'Portfolio Analytics'!$C892,raw_resource_build!$A:$A,'Portfolio Analytics'!F$886,raw_resource_build!$C:$C,mainzone)","v":0},{"$f":"SUMIFS(raw_resource_build!$AA:$AA,Lists!$P:$P,'Portfolio Analytics'!$C892,raw_resource_build!$A:$A,'Portfolio Analytics'!G$886,raw_resource_build!$C:$C,mainzone)","v":0},{"$f":"SUMIFS(raw_resource_build!$AA:$AA,Lists!$P:$P,'Portfolio Analytics'!$C892,raw_resource_build!$A:$A,'Portfolio Analytics'!H$886,raw_resource_build!$C:$C,mainzone)","v":0},{"$f":"SUMIFS(raw_resource_build!$AA:$AA,Lists!$P:$P,'Portfolio Analytics'!$C892,raw_resource_build!$A:$A,'Portfolio Analytics'!I$886,raw_resource_build!$C:$C,mainzone)","v":0},{"$f":"SUMIFS(raw_resource_build!$AA:$AA,Lists!$P:$P,'Portfolio Analytics'!$C892,raw_resource_build!$A:$A,'Portfolio Analytics'!J$886,raw_resource_build!$C:$C,mainzone)","v":8334.0400000000009},{"$f":"SUMIFS(raw_resource_build!$AA:$AA,Lists!$P:$P,'Portfolio Analytics'!$C892,raw_resource_build!$A:$A,'Portfolio Analytics'!K$886,raw_resource_build!$C:$C,mainzone)","v":8334.0400000000009},{"$f":"SUMIFS(raw_resource_build!$AA:$AA,Lists!$P:$P,'Portfolio Analytics'!$C892,raw_resource_build!$A:$A,'Portfolio Analytics'!L$886,raw_resource_build!$C:$C,mainzone)","v":8334.0400000000009},{"$f":"SUMIFS(raw_resource_build!$AA:$AA,Lists!$P:$P,'Portfolio Analytics'!$C892,raw_resource_build!$A:$A,'Portfolio Analytics'!M$886,raw_resource_build!$C:$C,mainzone)","v":8334.0400000000009},{"$f":"SUMIFS(raw_resource_build!$AA:$AA,Lists!$P:$P,'Portfolio Analytics'!$C892,raw_resource_build!$A:$A,'Portfolio Analytics'!N$886,raw_resource_build!$C:$C,mainzone)","v":8334.0400000000009},{"$f":"SUMIFS(raw_resource_build!$AA:$AA,Lists!$P:$P,'Portfolio Analytics'!$C892,raw_resource_build!$A:$A,'Portfolio Analytics'!O$886,raw_resource_build!$C:$C,mainzone)","v":0},{"$f":"SUMIFS(raw_resource_build!$AA:$AA,Lists!$P:$P,'Portfolio Analytics'!$C892,raw_resource_build!$A:$A,'Portfolio Analytics'!P$886,raw_resource_build!$C:$C,mainzone)","v":8334.0400000000009},{"$f":"SUMIFS(raw_resource_build!$AA:$AA,Lists!$P:$P,'Portfolio Analytics'!$C892,raw_resource_build!$A:$A,'Portfolio Analytics'!Q$886,raw_resource_build!$C:$C,mainzone)","v":0},{"$f":"SUMIFS(raw_resource_build!$AA:$AA,Lists!$P:$P,'Portfolio Analytics'!$C892,raw_resource_build!$A:$A,'Portfolio Analytics'!R$886,raw_resource_build!$C:$C,mainzone)","v":0},{"$f":"SUMIFS(raw_resource_build!$AA:$AA,Lists!$P:$P,'Portfolio Analytics'!$C892,raw_resource_build!$A:$A,'Portfolio Analytics'!S$886,raw_resource_build!$C:$C,mainzone)","v":0},{"$f":"SUMIFS(raw_resource_build!$AA:$AA,Lists!$P:$P,'Portfolio Analytics'!$C892,raw_resource_build!$A:$A,'Portfolio Analytics'!T$886,raw_resource_build!$C:$C,mainzone)","v":8334.0400000000009},{"$f":"SUMIFS(raw_resource_build!$AA:$AA,Lists!$P:$P,'Portfolio Analytics'!$C892,raw_resource_build!$A:$A,'Portfolio Analytics'!U$886,raw_resource_build!$C:$C,mainzone)","v":0},{"$f":"SUMIFS(raw_resource_build!$AA:$AA,Lists!$P:$P,'Portfolio Analytics'!$C892,raw_resource_build!$A:$A,'Portfolio Analytics'!V$886,raw_resource_build!$C:$C,mainzone)","v":0},{"$f":"SUMIFS(raw_resource_build!$AA:$AA,Lists!$P:$P,'Portfolio Analytics'!$C892,raw_resource_build!$A:$A,'Portfolio Analytics'!W$886,raw_resource_build!$C:$C,mainzone)","v":0},{"$f":"SUMIFS(raw_resource_build!$AA:$AA,Lists!$P:$P,'Portfolio Analytics'!$C892,raw_resource_build!$A:$A,'Portfolio Analytics'!X$886,raw_resource_build!$C:$C,mainzone)","v":0},{"$f":"SUMIFS(raw_resource_build!$AA:$AA,Lists!$P:$P,'Portfolio Analytics'!$C892,raw_resource_build!$A:$A,'Portfolio Analytics'!Y$886,raw_resource_build!$C:$C,mainzone)","v":0},{"$f":"SUMIFS(raw_resource_build!$AA:$AA,Lists!$P:$P,'Portfolio Analytics'!$C892,raw_resource_build!$A:$A,'Portfolio Analytics'!Z$886,raw_resource_build!$C:$C,mainzone)","v":0},{"$f":"SUMIFS(raw_resource_build!$AA:$AA,Lists!$P:$P,'Portfolio Analytics'!$C892,raw_resource_build!$A:$A,'Portfolio Analytics'!AA$886,raw_resource_build!$C:$C,mainzone)","v":0},{"$f":"SUMIFS(raw_resource_build!$AA:$AA,Lists!$P:$P,'Portfolio Analytics'!$C892,raw_resource_build!$A:$A,'Portfolio Analytics'!AB$886,raw_resource_build!$C:$C,mainzone)","v":0},{"$f":"SUMIFS(raw_resource_build!$AA:$AA,Lists!$P:$P,'Portfolio Analytics'!$C892,raw_resource_build!$A:$A,'Portfolio Analytics'!AC$886,raw_resource_build!$C:$C,mainzone)","v":0},{"$f":"SUMIFS(raw_resource_build!$AA:$AA,Lists!$P:$P,'Portfolio Analytics'!$C892,raw_resource_build!$A:$A,'Portfolio Analytics'!AD$886,raw_resource_build!$C:$C,mainzone)","v":0},{"$f":"SUMIFS(raw_resource_build!$AA:$AA,Lists!$P:$P,'Portfolio Analytics'!$C892,raw_resource_build!$A:$A,'Portfolio Analytics'!AE$886,raw_resource_build!$C:$C,mainzone)","v":0},{"$f":"SUMIFS(raw_resource_build!$AA:$AA,Lists!$P:$P,'Portfolio Analytics'!$C892,raw_resource_build!$A:$A,'Portfolio Analytics'!AF$886,raw_resource_build!$C:$C,mainzone)","v":0},{"$f":"SUMIFS(raw_resource_build!$AA:$AA,Lists!$P:$P,'Portfolio Analytics'!$C892,raw_resource_build!$A:$A,'Portfolio Analytics'!AG$886,raw_resource_build!$C:$C,mainzone)","v":0},{"$f":"SUMIFS(raw_resource_build!$AA:$AA,Lists!$P:$P,'Portfolio Analytics'!$C892,raw_resource_build!$A:$A,'Portfolio Analytics'!AH$886,raw_resource_build!$C:$C,mainzone)","v":0},{"$f":"SUMIFS(raw_resource_build!$AA:$AA,Lists!$P:$P,'Portfolio Analytics'!$C892,raw_resource_build!$A:$A,'Portfolio Analytics'!AI$886,raw_resource_build!$C:$C,mainzone)","v":4775.96},{"$f":"SUMIFS(raw_resource_build!$AA:$AA,Lists!$P:$P,'Portfolio Analytics'!$C892,raw_resource_build!$A:$A,'Portfolio Analytics'!AJ$886,raw_resource_build!$C:$C,mainzone)","v":0},{"$f":"SUMIFS(raw_resource_build!$AA:$AA,Lists!$P:$P,'Portfolio Analytics'!$C892,raw_resource_build!$A:$A,'Portfolio Analytics'!AK$886,raw_resource_build!$C:$C,mainzone)","v":0},{"$f":"SUMIFS(raw_resource_build!$AA:$AA,Lists!$P:$P,'Portfolio Analytics'!$C892,raw_resource_build!$A:$A,'Portfolio Analytics'!AL$886,raw_resource_build!$C:$C,mainzone)","v":0},{"$f":"SUMIFS(raw_resource_build!$AA:$AA,Lists!$P:$P,'Portfolio Analytics'!$C892,raw_resource_build!$A:$A,'Portfolio Analytics'!AM$886,raw_resource_build!$C:$C,mainzone)","v":0},{"$f":"SUMIFS(raw_resource_build!$AA:$AA,Lists!$P:$P,'Portfolio Analytics'!$C892,raw_resource_build!$A:$A,'Portfolio Analytics'!AN$886,raw_resource_build!$C:$C,mainzone)","v":0}]
[null,null,"Steam Turbine","MW",{"$f":"SUMIFS(raw_resource_build!$AA:$AA,Lists!$P:$P,'Portfolio Analytics'!$C893,raw_resource_build!$A:$A,'Portfolio Analytics'!E$886,raw_resource_build!$C:$C,mainzone)","v":0},{"$f":"SUMIFS(raw_resource_build!$AA:$AA,Lists!$P:$P,'Portfolio Analytics'!$C893,raw_resource_build!$A:$A,'Portfolio Analytics'!F$886,raw_resource_build!$C:$C,mainzone)","v":0},{"$f":"SUMIFS(raw_resource_build!$AA:$AA,Lists!$P:$P,'Portfolio Analytics'!$C893,raw_resource_build!$A:$A,'Portfolio Analytics'!G$886,raw_resource_build!$C:$C,mainzone)","v":0},{"$f":"SUMIFS(raw_resource_build!$AA:$AA,Lists!$P:$P,'Portfolio Analytics'!$C893,raw_resource_build!$A:$A,'Portfolio Analytics'!H$886,raw_resource_build!$C:$C,mainzone)","v":0},{"$f":"SUMIFS(raw_resource_build!$AA:$AA,Lists!$P:$P,'Portfolio Analytics'!$C893,raw_resource_build!$A:$A,'Portfolio Analytics'!I$886,raw_resource_build!$C:$C,mainzone)","v":0},{"$f":"SUMIFS(raw_resource_build!$AA:$AA,Lists!$P:$P,'Portfolio Analytics'!$C893,raw_resource_build!$A:$A,'Portfolio Analytics'!J$886,raw_resource_build!$C:$C,mainzone)","v":3731.37},{"$f":"SUMIFS(raw_resource_build!$AA:$AA,Lists!$P:$P,'Portfolio Analytics'!$C893,raw_resource_build!$A:$A,'Portfolio Analytics'!K$886,raw_resource_build!$C:$C,mainzone)","v":0},{"$f":"SUMIFS(raw_resource_build!$AA:$AA,Lists!$P:$P,'Portfolio Analytics'!$C893,raw_resource_build!$A:$A,'Portfolio Analytics'!L$886,raw_resource_build!$C:$C,mainzone)","v":0},{"$f":"SUMIFS(raw_resource_build!$AA:$AA,Lists!$P:$P,'Portfolio Analytics'!$C893,raw_resource_build!$A:$A,'Portfolio Analytics'!M$886,raw_resource_build!$C:$C,mainzone)","v":0},{"$f":"SUMIFS(raw_resource_build!$AA:$AA,Lists!$P:$P,'Portfolio Analytics'!$C893,raw_resource_build!$A:$A,'Portfolio Analytics'!N$886,raw_resource_build!$C:$C,mainzone)","v":0},{"$f":"SUMIFS(raw_resource_build!$AA:$AA,Lists!$P:$P,'Portfolio Analytics'!$C893,raw_resource_build!$A:$A,'Portfolio Analytics'!O$886,raw_resource_build!$C:$C,mainzone)","v":0},{"$f":"SUMIFS(raw_resource_build!$AA:$AA,Lists!$P:$P,'Portfolio Analytics'!$C893,raw_resource_build!$A:$A,'Portfolio Analytics'!P$886,raw_resource_build!$C:$C,mainzone)","v":0},{"$f":"SUMIFS(raw_resource_build!$AA:$AA,Lists!$P:$P,'Portfolio Analytics'!$C893,raw_resource_build!$A:$A,'Portfolio Analytics'!Q$886,raw_resource_build!$C:$C,mainzone)","v":0},{"$f":"SUMIFS(raw_resource_build!$AA:$AA,Lists!$P:$P,'Portfolio Analytics'!$C893,raw_resource_build!$A:$A,'Portfolio Analytics'!R$886,raw_resource_build!$C:$C,mainzone)","v":0},{"$f":"SUMIFS(raw_resource_build!$AA:$AA,Lists!$P:$P,'Portfolio Analytics'!$C893,raw_resource_build!$A:$A,'Portfolio Analytics'!S$886,raw_resource_build!$C:$C,mainzone)","v":0},{"$f":"SUMIFS(raw_resource_build!$AA:$AA,Lists!$P:$P,'Portfolio Analytics'!$C893,raw_resource_build!$A:$A,'Portfolio Analytics'!T$886,raw_resource_build!$C:$C,mainzone)","v":0},{"$f":"SUMIFS(raw_resource_build!$AA:$AA,Lists!$P:$P,'Portfolio Analytics'!$C893,raw_resource_build!$A:$A,'Portfolio Analytics'!U$886,raw_resource_build!$C:$C,mainzone)","v":0},{"$f":"SUMIFS(raw_resource_build!$AA:$AA,Lists!$P:$P,'Portfolio Analytics'!$C893,raw_resource_build!$A:$A,'Portfolio Analytics'!V$886,raw_resource_build!$C:$C,mainzone)","v":0},{"$f":"SUMIFS(raw_resource_build!$AA:$AA,Lists!$P:$P,'Portfolio Analytics'!$C893,raw_resource_build!$A:$A,'Portfolio Analytics'!W$886,raw_resource_build!$C:$C,mainzone)","v":0},{"$f":"SUMIFS(raw_resource_build!$AA:$AA,Lists!$P:$P,'Portfolio Analytics'!$C893,raw_resource_build!$A:$A,'Portfolio Analytics'!X$886,raw_resource_build!$C:$C,mainzone)","v":0},{"$f":"SUMIFS(raw_resource_build!$AA:$AA,Lists!$P:$P,'Portfolio Analytics'!$C893,raw_resource_build!$A:$A,'Portfolio Analytics'!Y$886,raw_resource_build!$C:$C,mainzone)","v":0},{"$f":"SUMIFS(raw_resource_build!$AA:$AA,Lists!$P:$P,'Portfolio Analytics'!$C893,raw_resource_build!$A:$A,'Portfolio Analytics'!Z$886,raw_resource_build!$C:$C,mainzone)","v":0},{"$f":"SUMIFS(raw_resource_build!$AA:$AA,Lists!$P:$P,'Portfolio Analytics'!$C893,raw_resource_build!$A:$A,'Portfolio Analytics'!AA$886,raw_resource_build!$C:$C,mainzone)","v":0},{"$f":"SUMIFS(raw_resource_build!$AA:$AA,Lists!$P:$P,'Portfolio Analytics'!$C893,raw_resource_build!$A:$A,'Portfolio Analytics'!AB$886,raw_resource_build!$C:$C,mainzone)","v":0},{"$f":"SUMIFS(raw_resource_build!$AA:$AA,Lists!$P:$P,'Portfolio Analytics'!$C893,raw_resource_build!$A:$A,'Portfolio Analytics'!AC$886,raw_resource_build!$C:$C,mainzone)","v":0},{"$f":"SUMIFS(raw_resource_build!$AA:$AA,Lists!$P:$P,'Portfolio Analytics'!$C893,raw_resource_build!$A:$A,'Portfolio Analytics'!AD$886,raw_resource_build!$C:$C,mainzone)","v":0},{"$f":"SUMIFS(raw_resource_build!$AA:$AA,Lists!$P:$P,'Portfolio Analytics'!$C893,raw_resource_build!$A:$A,'Portfolio Analytics'!AE$886,raw_resource_build!$C:$C,mainzone)","v":0},{"$f":"SUMIFS(raw_resource_build!$AA:$AA,Lists!$P:$P,'Portfolio Analytics'!$C893,raw_resource_build!$A:$A,'Portfolio Analytics'!AF$886,raw_resource_build!$C:$C,mainzone)","v":0},{"$f":"SUMIFS(raw_resource_build!$AA:$AA,Lists!$P:$P,'Portfolio Analytics'!$C893,raw_resource_build!$A:$A,'Portfolio Analytics'!AG$886,raw_resource_build!$C:$C,mainzone)","v":0},{"$f":"SUMIFS(raw_resource_build!$AA:$AA,Lists!$P:$P,'Portfolio Analytics'!$C893,raw_resource_build!$A:$A,'Portfolio Analytics'!AH$886,raw_resource_build!$C:$C,mainzone)","v":0},{"$f":"SUMIFS(raw_resource_build!$AA:$AA,Lists!$P:$P,'Portfolio Analytics'!$C893,raw_resource_build!$A:$A,'Portfolio Analytics'!AI$886,raw_resource_build!$C:$C,mainzone)","v":0},{"$f":"SUMIFS(raw_resource_build!$AA:$AA,Lists!$P:$P,'Portfolio Analytics'!$C893,raw_resource_build!$A:$A,'Portfolio Analytics'!AJ$886,raw_resource_build!$C:$C,mainzone)","v":0},{"$f":"SUMIFS(raw_resource_build!$AA:$AA,Lists!$P:$P,'Portfolio Analytics'!$C893,raw_resource_build!$A:$A,'Portfolio Analytics'!AK$886,raw_resource_build!$C:$C,mainzone)","v":0},{"$f":"SUMIFS(raw_resource_build!$AA:$AA,Lists!$P:$P,'Portfolio Analytics'!$C893,raw_resource_build!$A:$A,'Portfolio Analytics'!AL$886,raw_resource_build!$C:$C,mainzone)","v":0},{"$f":"SUMIFS(raw_resource_build!$AA:$AA,Lists!$P:$P,'Portfolio Analytics'!$C893,raw_resource_build!$A:$A,'Portfolio Analytics'!AM$886,raw_resource_build!$C:$C,mainzone)","v":0},{"$f":"SUMIFS(raw_resource_build!$AA:$AA,Lists!$P:$P,'Portfolio Analytics'!$C893,raw_resource_build!$A:$A,'Portfolio Analytics'!AN$886,raw_resource_build!$C:$C,mainzone)","v":0}]
[null,null,"CHP","MW",{"$f":"SUMIFS(raw_resource_build!$AA:$AA,Lists!$P:$P,'Portfolio Analytics'!$C894,raw_resource_build!$A:$A,'Portfolio Analytics'!E$886,raw_resource_build!$C:$C,mainzone)","v":0},{"$f":"SUMIFS(raw_resource_build!$AA:$AA,Lists!$P:$P,'Portfolio Analytics'!$C894,raw_resource_build!$A:$A,'Portfolio Analytics'!F$886,raw_resource_build!$C:$C,mainzone)","v":0},{"$f":"SUMIFS(raw_resource_build!$AA:$AA,Lists!$P:$P,'Portfolio Analytics'!$C894,raw_resource_build!$A:$A,'Portfolio Analytics'!G$886,raw_resource_build!$C:$C,mainzone)","v":0},{"$f":"SUMIFS(raw_resource_build!$AA:$AA,Lists!$P:$P,'Portfolio Analytics'!$C894,raw_resource_build!$A:$A,'Portfolio Analytics'!H$886,raw_resource_build!$C:$C,mainzone)","v":0},{"$f":"SUMIFS(raw_resource_build!$AA:$AA,Lists!$P:$P,'Portfolio Analytics'!$C894,raw_resource_build!$A:$A,'Portfolio Analytics'!I$886,raw_resource_build!$C:$C,mainzone)","v":0},{"$f":"SUMIFS(raw_resource_build!$AA:$AA,Lists!$P:$P,'Portfolio Analytics'!$C894,raw_resource_build!$A:$A,'Portfolio Analytics'!J$886,raw_resource_build!$C:$C,mainzone)","v":1455.68},{"$f":"SUMIFS(raw_resource_build!$AA:$AA,Lists!$P:$P,'Portfolio Analytics'!$C894,raw_resource_build!$A:$A,'Portfolio Analytics'!K$886,raw_resource_build!$C:$C,mainzone)","v":1455.68},{"$f":"SUMIFS(raw_resource_build!$AA:$AA,Lists!$P:$P,'Portfolio Analytics'!$C894,raw_resource_build!$A:$A,'Portfolio Analytics'!L$886,raw_resource_build!$C:$C,mainzone)","v":1455.68},{"$f":"SUMIFS(raw_resource_build!$AA:$AA,Lists!$P:$P,'Portfolio Analytics'!$C894,raw_resource_build!$A:$A,'Portfolio Analytics'!M$886,raw_resource_build!$C:$C,mainzone)","v":1455.68},{"$f":"SUMIFS(raw_resource_build!$AA:$AA,Lists!$P:$P,'Portfolio Analytics'!$C894,raw_resource_build!$A:$A,'Portfolio Analytics'!N$886,raw_resource_build!$C:$C,mainzone)","v":1455.68},{"$f":"SUMIFS(raw_resource_build!$AA:$AA,Lists!$P:$P,'Portfolio Analytics'!$C894,raw_resource_build!$A:$A,'Portfolio Analytics'!O$886,raw_resource_build!$C:$C,mainzone)","v":0},{"$f":"SUMIFS(raw_resource_build!$AA:$AA,Lists!$P:$P,'Portfolio Analytics'!$C894,raw_resource_build!$A:$A,'Portfolio Analytics'!P$886,raw_resource_build!$C:$C,mainzone)","v":1455.68},{"$f":"SUMIFS(raw_resource_build!$AA:$AA,Lists!$P:$P,'Portfolio Analytics'!$C894,raw_resource_build!$A:$A,'Portfolio Analytics'!Q$886,raw_resource_build!$C:$C,mainzone)","v":0},{"$f":"SUMIFS(raw_resource_build!$AA:$AA,Lists!$P:$P,'Portfolio Analytics'!$C894,raw_resource_build!$A:$A,'Portfolio Analytics'!R$886,raw_resource_build!$C:$C,mainzone)","v":0},{"$f":"SUMIFS(raw_resource_build!$AA:$AA,Lists!$P:$P,'Portfolio Analytics'!$C894,raw_resource_build!$A:$A,'Portfolio Analytics'!S$886,raw_resource_build!$C:$C,mainzone)","v":0},{"$f":"SUMIFS(raw_resource_build!$AA:$AA,Lists!$P:$P,'Portfolio Analytics'!$C894,raw_resource_build!$A:$A,'Portfolio Analytics'!T$886,raw_resource_build!$C:$C,mainzone)","v":1455.68},{"$f":"SUMIFS(raw_resource_build!$AA:$AA,Lists!$P:$P,'Portfolio Analytics'!$C894,raw_resource_build!$A:$A,'Portfolio Analytics'!U$886,raw_resource_build!$C:$C,mainzone)","v":0},{"$f":"SUMIFS(raw_resource_build!$AA:$AA,Lists!$P:$P,'Portfolio Analytics'!$C894,raw_resource_build!$A:$A,'Portfolio Analytics'!V$886,raw_resource_build!$C:$C,mainzone)","v":0},{"$f":"SUMIFS(raw_resource_build!$AA:$AA,Lists!$P:$P,'Portfolio Analytics'!$C894,raw_resource_build!$A:$A,'Portfolio Analytics'!W$886,raw_resource_build!$C:$C,mainzone)","v":0},{"$f":"SUMIFS(raw_resource_build!$AA:$AA,Lists!$P:$P,'Portfolio Analytics'!$C894,raw_resource_build!$A:$A,'Portfolio Analytics'!X$886,raw_resource_build!$C:$C,mainzone)","v":0},{"$f":"SUMIFS(raw_resource_build!$AA:$AA,Lists!$P:$P,'Portfolio Analytics'!$C894,raw_resource_build!$A:$A,'Portfolio Analytics'!Y$886,raw_resource_build!$C:$C,mainzone)","v":0},{"$f":"SUMIFS(raw_resource_build!$AA:$AA,Lists!$P:$P,'Portfolio Analytics'!$C894,raw_resource_build!$A:$A,'Portfolio Analytics'!Z$886,raw_resource_build!$C:$C,mainzone)","v":0},{"$f":"SUMIFS(raw_resource_build!$AA:$AA,Lists!$P:$P,'Portfolio Analytics'!$C894,raw_resource_build!$A:$A,'Portfolio Analytics'!AA$886,raw_resource_build!$C:$C,mainzone)","v":0},{"$f":"SUMIFS(raw_resource_build!$AA:$AA,Lists!$P:$P,'Portfolio Analytics'!$C894,raw_resource_build!$A:$A,'Portfolio Analytics'!AB$886,raw_resource_build!$C:$C,mainzone)","v":0},{"$f":"SUMIFS(raw_resource_build!$AA:$AA,Lists!$P:$P,'Portfolio Analytics'!$C894,raw_resource_build!$A:$A,'Portfolio Analytics'!AC$886,raw_resource_build!$C:$C,mainzone)","v":0},{"$f":"SUMIFS(raw_resource_build!$AA:$AA,Lists!$P:$P,'Portfolio Analytics'!$C894,raw_resource_build!$A:$A,'Portfolio Analytics'!AD$886,raw_resource_build!$C:$C,mainzone)","v":0},{"$f":"SUMIFS(raw_resource_build!$AA:$AA,Lists!$P:$P,'Portfolio Analytics'!$C894,raw_resource_build!$A:$A,'Portfolio Analytics'!AE$886,raw_resource_build!$C:$C,mainzone)","v":0},{"$f":"SUMIFS(raw_resource_build!$AA:$AA,Lists!$P:$P,'Portfolio Analytics'!$C894,raw_resource_build!$A:$A,'Portfolio Analytics'!AF$886,raw_resource_build!$C:$C,mainzone)","v":0},{"$f":"SUMIFS(raw_resource_build!$AA:$AA,Lists!$P:$P,'Portfolio Analytics'!$C894,raw_resource_build!$A:$A,'Portfolio Analytics'!AG$886,raw_resource_build!$C:$C,mainzone)","v":0},{"$f":"SUMIFS(raw_resource_build!$AA:$AA,Lists!$P:$P,'Portfolio Analytics'!$C894,raw_resource_build!$A:$A,'Portfolio Analytics'!AH$886,raw_resource_build!$C:$C,mainzone)","v":0},{"$f":"SUMIFS(raw_resource_build!$AA:$AA,Lists!$P:$P,'Portfolio Analytics'!$C894,raw_resource_build!$A:$A,'Portfolio Analytics'!AI$886,raw_resource_build!$C:$C,mainzone)","v":0},{"$f":"SUMIFS(raw_resource_build!$AA:$AA,Lists!$P:$P,'Portfolio Analytics'!$C894,raw_resource_build!$A:$A,'Portfolio Analytics'!AJ$886,raw_resource_build!$C:$C,mainzone)","v":0},{"$f":"SUMIFS(raw_resource_build!$AA:$AA,Lists!$P:$P,'Portfolio Analytics'!$C894,raw_resource_build!$A:$A,'Portfolio Analytics'!AK$886,raw_resource_build!$C:$C,mainzone)","v":0},{"$f":"SUMIFS(raw_resource_build!$AA:$AA,Lists!$P:$P,'Portfolio Analytics'!$C894,raw_resource_build!$A:$A,'Portfolio Analytics'!AL$886,raw_resource_build!$C:$C,mainzone)","v":0},{"$f":"SUMIFS(raw_resource_build!$AA:$AA,Lists!$P:$P,'Portfolio Analytics'!$C894,raw_resource_build!$A:$A,'Portfolio Analytics'!AM$886,raw_resource_build!$C:$C,mainzone)","v":0},{"$f":"SUMIFS(raw_resource_build!$AA:$AA,Lists!$P:$P,'Portfolio Analytics'!$C894,raw_resource_build!$A:$A,'Portfolio Analytics'!AN$886,raw_resource_build!$C:$C,mainzone)","v":0}]
[null,null,"Hydro (small + large)","MW",{"$f":"MAX(0,SUMIFS(raw_resource_build!$AA:$AA,Lists!$P:$P,'Portfolio Analytics'!$C895,raw_resource_build!$A:$A,'Portfolio Analytics'!E$886,raw_resource_build!$C:$C,mainzone)-822)","v":0},{"$f":"MAX(0,SUMIFS(raw_resource_build!$AA:$AA,Lists!$P:$P,'Portfolio Analytics'!$C895,raw_resource_build!$A:$A,'Portfolio Analytics'!F$886,raw_resource_build!$C:$C,mainzone)-822)","v":0},{"$f":"MAX(0,SUMIFS(raw_resource_build!$AA:$AA,Lists!$P:$P,'Portfolio Analytics'!$C895,raw_resource_build!$A:$A,'Portfolio Analytics'!G$886,raw_resource_build!$C:$C,mainzone)-822)","v":0},{"$f":"MAX(0,SUMIFS(raw_resource_build!$AA:$AA,Lists!$P:$P,'Portfolio Analytics'!$C895,raw_resource_build!$A:$A,'Portfolio Analytics'!H$886,raw_resource_build!$C:$C,mainzone)-822)","v":0},{"$f":"MAX(0,SUMIFS(raw_resource_build!$AA:$AA,Lists!$P:$P,'Portfolio Analytics'!$C895,raw_resource_build!$A:$A,'Portfolio Analytics'!I$886,raw_resource_build!$C:$C,mainzone)-822)","v":0},{"$f":"MAX(0,SUMIFS(raw_resource_build!$AA:$AA,Lists!$P:$P,'Portfolio Analytics'!$C895,raw_resource_build!$A:$A,'Portfolio Analytics'!J$886,raw_resource_build!$C:$C,mainzone)-822)","v":5644.6500000000005},{"$f":"MAX(0,SUMIFS(raw_resource_build!$AA:$AA,Lists!$P:$P,'Portfolio Analytics'!$C895,raw_resource_build!$A:$A,'Portfolio Analytics'!K$886,raw_resource_build!$C:$C,mainzone)-822)","v":5644.6500000000005},{"$f":"MAX(0,SUMIFS(raw_resource_build!$AA:$AA,Lists!$P:$P,'Portfolio Analytics'!$C895,raw_resource_build!$A:$A,'Portfolio Analytics'!L$886,raw_resource_build!$C:$C,mainzone)-822)","v":5644.6500000000005},{"$f":"MAX(0,SUMIFS(raw_resource_build!$AA:$AA,Lists!$P:$P,'Portfolio Analytics'!$C895,raw_resource_build!$A:$A,'Portfolio Analytics'!M$886,raw_resource_build!$C:$C,mainzone)-822)","v":5644.6500000000005},{"$f":"MAX(0,SUMIFS(raw_resource_build!$AA:$AA,Lists!$P:$P,'Portfolio Analytics'!$C895,raw_resource_build!$A:$A,'Portfolio Analytics'!N$886,raw_resource_build!$C:$C,mainzone)-822)","v":5644.6500000000005},{"$f":"MAX(0,SUMIFS(raw_resource_build!$AA:$AA,Lists!$P:$P,'Portfolio Analytics'!$C895,raw_resource_build!$A:$A,'Portfolio Analytics'!O$886,raw_resource_build!$C:$C,mainzone)-822)","v":0},{"$f":"MAX(0,SUMIFS(raw_resource_build!$AA:$AA,Lists!$P:$P,'Portfolio Analytics'!$C895,raw_resource_build!$A:$A,'Portfolio Analytics'!P$886,raw_resource_build!$C:$C,mainzone)-822)","v":5644.6500000000005},{"$f":"MAX(0,SUMIFS(raw_resource_build!$AA:$AA,Lists!$P:$P,'Portfolio Analytics'!$C895,raw_resource_build!$A:$A,'Portfolio Analytics'!Q$886,raw_resource_build!$C:$C,mainzone)-822)","v":0},{"$f":"MAX(0,SUMIFS(raw_resource_build!$AA:$AA,Lists!$P:$P,'Portfolio Analytics'!$C895,raw_resource_build!$A:$A,'Portfolio Analytics'!R$886,raw_resource_build!$C:$C,mainzone)-822)","v":0},{"$f":"MAX(0,SUMIFS(raw_resource_build!$AA:$AA,Lists!$P:$P,'Portfolio Analytics'!$C895,raw_resource_build!$A:$A,'Portfolio Analytics'!S$886,raw_resource_build!$C:$C,mainzone)-822)","v":0},{"$f":"MAX(0,SUMIFS(raw_resource_build!$AA:$AA,Lists!$P:$P,'Portfolio Analytics'!$C895,raw_resource_build!$A:$A,'Portfolio Analytics'!T$886,raw_resource_build!$C:$C,mainzone)-822)","v":5644.1500000000005},{"$f":"MAX(0,SUMIFS(raw_resource_build!$AA:$AA,Lists!$P:$P,'Portfolio Analytics'!$C895,raw_resource_build!$A:$A,'Portfolio Analytics'!U$886,raw_resource_build!$C:$C,mainzone)-822)","v":0},{"$f":"MAX(0,SUMIFS(raw_resource_build!$AA:$AA,Lists!$P:$P,'Portfolio Analytics'!$C895,raw_resource_build!$A:$A,'Portfolio Analytics'!V$886,raw_resource_build!$C:$C,mainzone)-822)","v":0},{"$f":"MAX(0,SUMIFS(raw_resource_build!$AA:$AA,Lists!$P:$P,'Portfolio Analytics'!$C895,raw_resource_build!$A:$A,'Portfolio Analytics'!W$886,raw_resource_build!$C:$C,mainzone)-822)","v":0},{"$f":"MAX(0,SUMIFS(raw_resource_build!$AA:$AA,Lists!$P:$P,'Portfolio Analytics'!$C895,raw_resource_build!$A:$A,'Portfolio Analytics'!X$886,raw_resource_build!$C:$C,mainzone)-822)","v":0},{"$f":"MAX(0,SUMIFS(raw_resource_build!$AA:$AA,Lists!$P:$P,'Portfolio Analytics'!$C895,raw_resource_build!$A:$A,'Portfolio Analytics'!Y$886,raw_resource_build!$C:$C,mainzone)-822)","v":0},{"$f":"MAX(0,SUMIFS(raw_resource_build!$AA:$AA,Lists!$P:$P,'Portfolio Analytics'!$C895,raw_resource_build!$A:$A,'Portfolio Analytics'!Z$886,raw_resource_build!$C:$C,mainzone)-822)","v":0},{"$f":"MAX(0,SUMIFS(raw_resource_build!$AA:$AA,Lists!$P:$P,'Portfolio Analytics'!$C895,raw_resource_build!$A:$A,'Portfolio Analytics'!AA$886,raw_resource_build!$C:$C,mainzone)-822)","v":0},{"$f":"MAX(0,SUMIFS(raw_resource_build!$AA:$AA,Lists!$P:$P,'Portfolio Analytics'!$C895,raw_resource_build!$A:$A,'Portfolio Analytics'!AB$886,raw_resource_build!$C:$C,mainzone)-822)","v":0},{"$f":"MAX(0,SUMIFS(raw_resource_build!$AA:$AA,Lists!$P:$P,'Portfolio Analytics'!$C895,raw_resource_build!$A:$A,'Portfolio Analytics'!AC$886,raw_resource_build!$C:$C,mainzone)-822)","v":0},{"$f":"MAX(0,SUMIFS(raw_resource_build!$AA:$AA,Lists!$P:$P,'Portfolio Analytics'!$C895,raw_resource_build!$A:$A,'Portfolio Analytics'!AD$886,raw_resource_build!$C:$C,mainzone)-822)","v":0},{"$f":"MAX(0,SUMIFS(raw_resource_build!$AA:$AA,Lists!$P:$P,'Portfolio Analytics'!$C895,raw_resource_build!$A:$A,'Portfolio Analytics'!AE$886,raw_resource_build!$C:$C,mainzone)-822)","v":0},{"$f":"MAX(0,SUMIFS(raw_resource_build!$AA:$AA,Lists!$P:$P,'Portfolio Analytics'!$C895,raw_resource_build!$A:$A,'Portfolio Analytics'!AF$886,raw_resource_build!$C:$C,mainzone)-822)","v":0},{"$f":"MAX(0,SUMIFS(raw_resource_build!$AA:$AA,Lists!$P:$P,'Portfolio Analytics'!$C895,raw_resource_build!$A:$A,'Portfolio Analytics'!AG$886,raw_resource_build!$C:$C,mainzone)-822)","v":0},{"$f":"MAX(0,SUMIFS(raw_resource_build!$AA:$AA,Lists!$P:$P,'Portfolio Analytics'!$C895,raw_resource_build!$A:$A,'Portfolio Analytics'!AH$886,raw_resource_build!$C:$C,mainzone)-822)","v":0},{"$f":"MAX(0,SUMIFS(raw_resource_build!$AA:$AA,Lists!$P:$P,'Portfolio Analytics'!$C895,raw_resource_build!$A:$A,'Portfolio Analytics'!AI$886,raw_resource_build!$C:$C,mainzone)-822)","v":5644.1500000000005},{"$f":"MAX(0,SUMIFS(raw_resource_build!$AA:$AA,Lists!$P:$P,'Portfolio Analytics'!$C895,raw_resource_build!$A:$A,'Portfolio Analytics'!AJ$886,raw_resource_build!$C:$C,mainzone)-822)","v":0},{"$f":"MAX(0,SUMIFS(raw_resource_build!$AA:$AA,Lists!$P:$P,'Portfolio Analytics'!$C895,raw_resource_build!$A:$A,'Portfolio Analytics'!AK$886,raw_resource_build!$C:$C,mainzone)-822)","v":0},{"$f":"MAX(0,SUMIFS(raw_resource_build!$AA:$AA,Lists!$P:$P,'Portfolio Analytics'!$C895,raw_resource_build!$A:$A,'Portfolio Analytics'!AL$886,raw_resource_build!$C:$C,mainzone)-822)","v":0},{"$f":"MAX(0,SUMIFS(raw_resource_build!$AA:$AA,Lists!$P:$P,'Portfolio Analytics'!$C895,raw_resource_build!$A:$A,'Portfolio Analytics'!AM$886,raw_resource_build!$C:$C,mainzone)-822)","v":0},{"$f":"MAX(0,SUMIFS(raw_resource_build!$AA:$AA,Lists!$P:$P,'Portfolio Analytics'!$C895,raw_resource_build!$A:$A,'Portfolio Analytics'!AN$886,raw_resource_build!$C:$C,mainzone)-822)","v":0}]
[null,null,"Nuclear","MW",{"$f":"MAX(0,SUMIFS(raw_resource_build!$AA:$AA,Lists!$P:$P,'Portfolio Analytics'!$C896,raw_resource_build!$A:$A,'Portfolio Analytics'!E$886,raw_resource_build!$C:$C,mainzone)-635)","v":0},{"$f":"MAX(0,SUMIFS(raw_resource_build!$AA:$AA,Lists!$P:$P,'Portfolio Analytics'!$C896,raw_resource_build!$A:$A,'Portfolio Analytics'!F$886,raw_resource_build!$C:$C,mainzone)-635)","v":0},{"$f":"MAX(0,SUMIFS(raw_resource_build!$AA:$AA,Lists!$P:$P,'Portfolio Analytics'!$C896,raw_resource_build!$A:$A,'Portfolio Analytics'!G$886,raw_resource_build!$C:$C,mainzone)-635)","v":0},{"$f":"MAX(0,SUMIFS(raw_resource_build!$AA:$AA,Lists!$P:$P,'Portfolio Analytics'!$C896,raw_resource_build!$A:$A,'Portfolio Analytics'!H$886,raw_resource_build!$C:$C,mainzone)-635)","v":0},{"$f":"MAX(0,SUMIFS(raw_resource_build!$AA:$AA,Lists!$P:$P,'Portfolio Analytics'!$C896,raw_resource_build!$A:$A,'Portfolio Analytics'!I$886,raw_resource_build!$C:$C,mainzone)-635)","v":0},{"$f":"MAX(0,SUMIFS(raw_resource_build!$AA:$AA,Lists!$P:$P,'Portfolio Analytics'!$C896,raw_resource_build!$A:$A,'Portfolio Analytics'!J$886,raw_resource_build!$C:$C,mainzone)-635)","v":2279.91},{"$f":"MAX(0,SUMIFS(raw_resource_build!$AA:$AA,Lists!$P:$P,'Portfolio Analytics'!$C896,raw_resource_build!$A:$A,'Portfolio Analytics'!K$886,raw_resource_build!$C:$C,mainzone)-635)","v":2279.91},{"$f":"MAX(0,SUMIFS(raw_resource_build!$AA:$AA,Lists!$P:$P,'Portfolio Analytics'!$C896,raw_resource_build!$A:$A,'Portfolio Analytics'!L$886,raw_resource_build!$C:$C,mainzone)-635)","v":2279.91},{"$f":"MAX(0,SUMIFS(raw_resource_build!$AA:$AA,Lists!$P:$P,'Portfolio Analytics'!$C896,raw_resource_build!$A:$A,'Portfolio Analytics'!M$886,raw_resource_build!$C:$C,mainzone)-635)","v":2279.91},{"$f":"MAX(0,SUMIFS(raw_resource_build!$AA:$AA,Lists!$P:$P,'Portfolio Analytics'!$C896,raw_resource_build!$A:$A,'Portfolio Analytics'!N$886,raw_resource_build!$C:$C,mainzone)-635)","v":1137.78},{"$f":"MAX(0,SUMIFS(raw_resource_build!$AA:$AA,Lists!$P:$P,'Portfolio Analytics'!$C896,raw_resource_build!$A:$A,'Portfolio Analytics'!O$886,raw_resource_build!$C:$C,mainzone)-635)","v":0},{"$f":"MAX(0,SUMIFS(raw_resource_build!$AA:$AA,Lists!$P:$P,'Portfolio Analytics'!$C896,raw_resource_build!$A:$A,'Portfolio Analytics'!P$886,raw_resource_build!$C:$C,mainzone)-635)","v":0},{"$f":"MAX(0,SUMIFS(raw_resource_build!$AA:$AA,Lists!$P:$P,'Portfolio Analytics'!$C896,raw_resource_build!$A:$A,'Portfolio Analytics'!Q$886,raw_resource_build!$C:$C,mainzone)-635)","v":0},{"$f":"MAX(0,SUMIFS(raw_resource_build!$AA:$AA,Lists!$P:$P,'Portfolio Analytics'!$C896,raw_resource_build!$A:$A,'Portfolio Analytics'!R$886,raw_resource_build!$C:$C,mainzone)-635)","v":0},{"$f":"MAX(0,SUMIFS(raw_resource_build!$AA:$AA,Lists!$P:$P,'Portfolio Analytics'!$C896,raw_resource_build!$A:$A,'Portfolio Analytics'!S$886,raw_resource_build!$C:$C,mainzone)-635)","v":0},{"$f":"MAX(0,SUMIFS(raw_resource_build!$AA:$AA,Lists!$P:$P,'Portfolio Analytics'!$C896,raw_resource_build!$A:$A,'Portfolio Analytics'!T$886,raw_resource_build!$C:$C,mainzone)-635)","v":0},{"$f":"MAX(0,SUMIFS(raw_resource_build!$AA:$AA,Lists!$P:$P,'Portfolio Analytics'!$C896,raw_resource_build!$A:$A,'Portfolio Analytics'!U$886,raw_resource_build!$C:$C,mainzone)-635)","v":0},{"$f":"MAX(0,SUMIFS(raw_resource_build!$AA:$AA,Lists!$P:$P,'Portfolio Analytics'!$C896,raw_resource_build!$A:$A,'Portfolio Analytics'!V$886,raw_resource_build!$C:$C,mainzone)-635)","v":0},{"$f":"MAX(0,SUMIFS(raw_resource_build!$AA:$AA,Lists!$P:$P,'Portfolio Analytics'!$C896,raw_resource_build!$A:$A,'Portfolio Analytics'!W$886,raw_resource_build!$C:$C,mainzone)-635)","v":0},{"$f":"MAX(0,SUMIFS(raw_resource_build!$AA:$AA,Lists!$P:$P,'Portfolio Analytics'!$C896,raw_resource_build!$A:$A,'Portfolio Analytics'!X$886,raw_resource_build!$C:$C,mainzone)-635)","v":0},{"$f":"MAX(0,SUMIFS(raw_resource_build!$AA:$AA,Lists!$P:$P,'Portfolio Analytics'!$C896,raw_resource_build!$A:$A,'Portfolio Analytics'!Y$886,raw_resource_build!$C:$C,mainzone)-635)","v":0},{"$f":"MAX(0,SUMIFS(raw_resource_build!$AA:$AA,Lists!$P:$P,'Portfolio Analytics'!$C896,raw_resource_build!$A:$A,'Portfolio Analytics'!Z$886,raw_resource_build!$C:$C,mainzone)-635)","v":0},{"$f":"MAX(0,SUMIFS(raw_resource_build!$AA:$AA,Lists!$P:$P,'Portfolio Analytics'!$C896,raw_resource_build!$A:$A,'Portfolio Analytics'!AA$886,raw_resource_build!$C:$C,mainzone)-635)","v":0},{"$f":"MAX(0,SUMIFS(raw_resource_build!$AA:$AA,Lists!$P:$P,'Portfolio Analytics'!$C896,raw_resource_build!$A:$A,'Portfolio Analytics'!AB$886,raw_resource_build!$C:$C,mainzone)-635)","v":0},{"$f":"MAX(0,SUMIFS(raw_resource_build!$AA:$AA,Lists!$P:$P,'Portfolio Analytics'!$C896,raw_resource_build!$A:$A,'Portfolio Analytics'!AC$886,raw_resource_build!$C:$C,mainzone)-635)","v":0},{"$f":"MAX(0,SUMIFS(raw_resource_build!$AA:$AA,Lists!$P:$P,'Portfolio Analytics'!$C896,raw_resource_build!$A:$A,'Portfolio Analytics'!AD$886,raw_resource_build!$C:$C,mainzone)-635)","v":0},{"$f":"MAX(0,SUMIFS(raw_resource_build!$AA:$AA,Lists!$P:$P,'Portfolio Analytics'!$C896,raw_resource_build!$A:$A,'Portfolio Analytics'!AE$886,raw_resource_build!$C:$C,mainzone)-635)","v":0},{"$f":"MAX(0,SUMIFS(raw_resource_build!$AA:$AA,Lists!$P:$P,'Portfolio Analytics'!$C896,raw_resource_build!$A:$A,'Portfolio Analytics'!AF$886,raw_resource_build!$C:$C,mainzone)-635)","v":0},{"$f":"MAX(0,SUMIFS(raw_resource_build!$AA:$AA,Lists!$P:$P,'Portfolio Analytics'!$C896,raw_resource_build!$A:$A,'Portfolio Analytics'!AG$886,raw_resource_build!$C:$C,mainzone)-635)","v":0},{"$f":"MAX(0,SUMIFS(raw_resource_build!$AA:$AA,Lists!$P:$P,'Portfolio Analytics'!$C896,raw_resource_build!$A:$A,'Portfolio Analytics'!AH$886,raw_resource_build!$C:$C,mainzone)-635)","v":0},{"$f":"MAX(0,SUMIFS(raw_resource_build!$AA:$AA,Lists!$P:$P,'Portfolio Analytics'!$C896,raw_resource_build!$A:$A,'Portfolio Analytics'!AI$886,raw_resource_build!$C:$C,mainzone)-635)","v":0},{"$f":"MAX(0,SUMIFS(raw_resource_build!$AA:$AA,Lists!$P:$P,'Portfolio Analytics'!$C896,raw_resource_build!$A:$A,'Portfolio Analytics'!AJ$886,raw_resource_build!$C:$C,mainzone)-635)","v":0},{"$f":"MAX(0,SUMIFS(raw_resource_build!$AA:$AA,Lists!$P:$P,'Portfolio Analytics'!$C896,raw_resource_build!$A:$A,'Portfolio Analytics'!AK$886,raw_resource_build!$C:$C,mainzone)-635)","v":0},{"$f":"MAX(0,SUMIFS(raw_resource_build!$AA:$AA,Lists!$P:$P,'Portfolio Analytics'!$C896,raw_resource_build!$A:$A,'Portfolio Analytics'!AL$886,raw_resource_build!$C:$C,mainzone)-635)","v":0},{"$f":"MAX(0,SUMIFS(raw_resource_build!$AA:$AA,Lists!$P:$P,'Portfolio Analytics'!$C896,raw_resource_build!$A:$A,'Portfolio Analytics'!AM$886,raw_resource_build!$C:$C,mainzone)-635)","v":0},{"$f":"MAX(0,SUMIFS(raw_resource_build!$AA:$AA,Lists!$P:$P,'Portfolio Analytics'!$C896,raw_resource_build!$A:$A,'Portfolio Analytics'!AN$886,raw_resource_build!$C:$C,mainzone)-635)","v":0}]
[null,null,"Coal","MW",{"$f":"SUMIFS(raw_resource_build!$AA:$AA,Lists!$P:$P,'Portfolio Analytics'!$C897,raw_resource_build!$A:$A,'Portfolio Analytics'!E$886,raw_resource_build!$C:$C,mainzone)","v":0},{"$f":"SUMIFS(raw_resource_build!$AA:$AA,Lists!$P:$P,'Portfolio Analytics'!$C897,raw_resource_build!$A:$A,'Portfolio Analytics'!F$886,raw_resource_build!$C:$C,mainzone)","v":0},{"$f":"SUMIFS(raw_resource_build!$AA:$AA,Lists!$P:$P,'Portfolio Analytics'!$C897,raw_resource_build!$A:$A,'Portfolio Analytics'!G$886,raw_resource_build!$C:$C,mainzone)","v":0},{"$f":"SUMIFS(raw_resource_build!$AA:$AA,Lists!$P:$P,'Portfolio Analytics'!$C897,raw_resource_build!$A:$A,'Portfolio Analytics'!H$886,raw_resource_build!$C:$C,mainzone)","v":0},{"$f":"SUMIFS(raw_resource_build!$AA:$AA,Lists!$P:$P,'Portfolio Analytics'!$C897,raw_resource_build!$A:$A,'Portfolio Analytics'!I$886,raw_resource_build!$C:$C,mainzone)","v":0},{"$f":"SUMIFS(raw_resource_build!$AA:$AA,Lists!$P:$P,'Portfolio Analytics'!$C897,raw_resource_build!$A:$A,'Portfolio Analytics'!J$886,raw_resource_build!$C:$C,mainzone)","v":470.43},{"$f":"SUMIFS(raw_resource_build!$AA:$AA,Lists!$P:$P,'Portfolio Analytics'!$C897,raw_resource_build!$A:$A,'Portfolio Analytics'!K$886,raw_resource_build!$C:$C,mainzone)","v":470.43},{"$f":"SUMIFS(raw_resource_build!$AA:$AA,Lists!$P:$P,'Portfolio Analytics'!$C897,raw_resource_build!$A:$A,'Portfolio Analytics'!L$886,raw_resource_build!$C:$C,mainzone)","v":470.43},{"$f":"SUMIFS(raw_resource_build!$AA:$AA,Lists!$P:$P,'Portfolio Analytics'!$C897,raw_resource_build!$A:$A,'Portfolio Analytics'!M$886,raw_resource_build!$C:$C,mainzone)","v":470.43},{"$f":"SUMIFS(raw_resource_build!$AA:$AA,Lists!$P:$P,'Portfolio Analytics'!$C897,raw_resource_build!$A:$A,'Portfolio Analytics'!N$886,raw_resource_build!$C:$C,mainzone)","v":470.43},{"$f":"SUMIFS(raw_resource_build!$AA:$AA,Lists!$P:$P,'Portfolio Analytics'!$C897,raw_resource_build!$A:$A,'Portfolio Analytics'!O$886,raw_resource_build!$C:$C,mainzone)","v":0},{"$f":"SUMIFS(raw_resource_build!$AA:$AA,Lists!$P:$P,'Portfolio Analytics'!$C897,raw_resource_build!$A:$A,'Portfolio Analytics'!P$886,raw_resource_build!$C:$C,mainzone)","v":0},{"$f":"SUMIFS(raw_resource_build!$AA:$AA,Lists!$P:$P,'Portfolio Analytics'!$C897,raw_resource_build!$A:$A,'Portfolio Analytics'!Q$886,raw_resource_build!$C:$C,mainzone)","v":0},{"$f":"SUMIFS(raw_resource_build!$AA:$AA,Lists!$P:$P,'Portfolio Analytics'!$C897,raw_resource_build!$A:$A,'Portfolio Analytics'!R$886,raw_resource_build!$C:$C,mainzone)","v":0},{"$f":"SUMIFS(raw_resource_build!$AA:$AA,Lists!$P:$P,'Portfolio Analytics'!$C897,raw_resource_build!$A:$A,'Portfolio Analytics'!S$886,raw_resource_build!$C:$C,mainzone)","v":0},{"$f":"SUMIFS(raw_resource_build!$AA:$AA,Lists!$P:$P,'Portfolio Analytics'!$C897,raw_resource_build!$A:$A,'Portfolio Analytics'!T$886,raw_resource_build!$C:$C,mainzone)","v":0},{"$f":"SUMIFS(raw_resource_build!$AA:$AA,Lists!$P:$P,'Portfolio Analytics'!$C897,raw_resource_build!$A:$A,'Portfolio Analytics'!U$886,raw_resource_build!$C:$C,mainzone)","v":0},{"$f":"SUMIFS(raw_resource_build!$AA:$AA,Lists!$P:$P,'Portfolio Analytics'!$C897,raw_resource_build!$A:$A,'Portfolio Analytics'!V$886,raw_resource_build!$C:$C,mainzone)","v":0},{"$f":"SUMIFS(raw_resource_build!$AA:$AA,Lists!$P:$P,'Portfolio Analytics'!$C897,raw_resource_build!$A:$A,'Portfolio Analytics'!W$886,raw_resource_build!$C:$C,mainzone)","v":0},{"$f":"SUMIFS(raw_resource_build!$AA:$AA,Lists!$P:$P,'Portfolio Analytics'!$C897,raw_resource_build!$A:$A,'Portfolio Analytics'!X$886,raw_resource_build!$C:$C,mainzone)","v":0},{"$f":"SUMIFS(raw_resource_build!$AA:$AA,Lists!$P:$P,'Portfolio Analytics'!$C897,raw_resource_build!$A:$A,'Portfolio Analytics'!Y$886,raw_resource_build!$C:$C,mainzone)","v":0},{"$f":"SUMIFS(raw_resource_build!$AA:$AA,Lists!$P:$P,'Portfolio Analytics'!$C897,raw_resource_build!$A:$A,'Portfolio Analytics'!Z$886,raw_resource_build!$C:$C,mainzone)","v":0},{"$f":"SUMIFS(raw_resource_build!$AA:$AA,Lists!$P:$P,'Portfolio Analytics'!$C897,raw_resource_build!$A:$A,'Portfolio Analytics'!AA$886,raw_resource_build!$C:$C,mainzone)","v":0},{"$f":"SUMIFS(raw_resource_build!$AA:$AA,Lists!$P:$P,'Portfolio Analytics'!$C897,raw_resource_build!$A:$A,'Portfolio Analytics'!AB$886,raw_resource_build!$C:$C,mainzone)","v":0},{"$f":"SUMIFS(raw_resource_build!$AA:$AA,Lists!$P:$P,'Portfolio Analytics'!$C897,raw_resource_build!$A:$A,'Portfolio Analytics'!AC$886,raw_resource_build!$C:$C,mainzone)","v":0},{"$f":"SUMIFS(raw_resource_build!$AA:$AA,Lists!$P:$P,'Portfolio Analytics'!$C897,raw_resource_build!$A:$A,'Portfolio Analytics'!AD$886,raw_resource_build!$C:$C,mainzone)","v":0},{"$f":"SUMIFS(raw_resource_build!$AA:$AA,Lists!$P:$P,'Portfolio Analytics'!$C897,raw_resource_build!$A:$A,'Portfolio Analytics'!AE$886,raw_resource_build!$C:$C,mainzone)","v":0},{"$f":"SUMIFS(raw_resource_build!$AA:$AA,Lists!$P:$P,'Portfolio Analytics'!$C897,raw_resource_build!$A:$A,'Portfolio Analytics'!AF$886,raw_resource_build!$C:$C,mainzone)","v":0},{"$f":"SUMIFS(raw_resource_build!$AA:$AA,Lists!$P:$P,'Portfolio Analytics'!$C897,raw_resource_build!$A:$A,'Portfolio Analytics'!AG$886,raw_resource_build!$C:$C,mainzone)","v":0},{"$f":"SUMIFS(raw_resource_build!$AA:$AA,Lists!$P:$P,'Portfolio Analytics'!$C897,raw_resource_build!$A:$A,'Portfolio Analytics'!AH$886,raw_resource_build!$C:$C,mainzone)","v":0},{"$f":"SUMIFS(raw_resource_build!$AA:$AA,Lists!$P:$P,'Portfolio Analytics'!$C897,raw_resource_build!$A:$A,'Portfolio Analytics'!AI$886,raw_resource_build!$C:$C,mainzone)","v":0},{"$f":"SUMIFS(raw_resource_build!$AA:$AA,Lists!$P:$P,'Portfolio Analytics'!$C897,raw_resource_build!$A:$A,'Portfolio Analytics'!AJ$886,raw_resource_build!$C:$C,mainzone)","v":0},{"$f":"SUMIFS(raw_resource_build!$AA:$AA,Lists!$P:$P,'Portfolio Analytics'!$C897,raw_resource_build!$A:$A,'Portfolio Analytics'!AK$886,raw_resource_build!$C:$C,mainzone)","v":0},{"$f":"SUMIFS(raw_resource_build!$AA:$AA,Lists!$P:$P,'Portfolio Analytics'!$C897,raw_resource_build!$A:$A,'Portfolio Analytics'!AL$886,raw_resource_build!$C:$C,mainzone)","v":0},{"$f":"SUMIFS(raw_resource_build!$AA:$AA,Lists!$P:$P,'Portfolio Analytics'!$C897,raw_resource_build!$A:$A,'Portfolio Analytics'!AM$886,raw_resource_build!$C:$C,mainzone)","v":0},{"$f":"SUMIFS(raw_resource_build!$AA:$AA,Lists!$P:$P,'Portfolio Analytics'!$C897,raw_resource_build!$A:$A,'Portfolio Analytics'!AN$886,raw_resource_build!$C:$C,mainzone)","v":0}]
[null,null,"Geothermal","MW",{"$f":"SUMIFS(raw_resource_build!$AA:$AA,Lists!$P:$P,'Portfolio Analytics'!$C898,raw_resource_build!$A:$A,'Portfolio Analytics'!E$886,raw_resource_build!$C:$C,mainzone)","v":0},{"$f":"SUMIFS(raw_resource_build!$AA:$AA,Lists!$P:$P,'Portfolio Analytics'!$C898,raw_resource_build!$A:$A,'Portfolio Analytics'!F$886,raw_resource_build!$C:$C,mainzone)","v":0},{"$f":"SUMIFS(raw_resource_build!$AA:$AA,Lists!$P:$P,'Portfolio Analytics'!$C898,raw_resource_build!$A:$A,'Portfolio Analytics'!G$886,raw_resource_build!$C:$C,mainzone)","v":0},{"$f":"SUMIFS(raw_resource_build!$AA:$AA,Lists!$P:$P,'Portfolio Analytics'!$C898,raw_resource_build!$A:$A,'Portfolio Analytics'!H$886,raw_resource_build!$C:$C,mainzone)","v":0},{"$f":"SUMIFS(raw_resource_build!$AA:$AA,Lists!$P:$P,'Portfolio Analytics'!$C898,raw_resource_build!$A:$A,'Portfolio Analytics'!I$886,raw_resource_build!$C:$C,mainzone)","v":0},{"$f":"SUMIFS(raw_resource_build!$AA:$AA,Lists!$P:$P,'Portfolio Analytics'!$C898,raw_resource_build!$A:$A,'Portfolio Analytics'!J$886,raw_resource_build!$C:$C,mainzone)","v":1140.4099999999999},{"$f":"SUMIFS(raw_resource_build!$AA:$AA,Lists!$P:$P,'Portfolio Analytics'!$C898,raw_resource_build!$A:$A,'Portfolio Analytics'!K$886,raw_resource_build!$C:$C,mainzone)","v":1140.4099999999999},{"$f":"SUMIFS(raw_resource_build!$AA:$AA,Lists!$P:$P,'Portfolio Analytics'!$C898,raw_resource_build!$A:$A,'Portfolio Analytics'!L$886,raw_resource_build!$C:$C,mainzone)","v":1140.4099999999999},{"$f":"SUMIFS(raw_resource_build!$AA:$AA,Lists!$P:$P,'Portfolio Analytics'!$C898,raw_resource_build!$A:$A,'Portfolio Analytics'!M$886,raw_resource_build!$C:$C,mainzone)","v":1140.4099999999999},{"$f":"SUMIFS(raw_resource_build!$AA:$AA,Lists!$P:$P,'Portfolio Analytics'!$C898,raw_resource_build!$A:$A,'Portfolio Analytics'!N$886,raw_resource_build!$C:$C,mainzone)","v":1261.9099999999999},{"$f":"SUMIFS(raw_resource_build!$AA:$AA,Lists!$P:$P,'Portfolio Analytics'!$C898,raw_resource_build!$A:$A,'Portfolio Analytics'!O$886,raw_resource_build!$C:$C,mainzone)","v":0},{"$f":"SUMIFS(raw_resource_build!$AA:$AA,Lists!$P:$P,'Portfolio Analytics'!$C898,raw_resource_build!$A:$A,'Portfolio Analytics'!P$886,raw_resource_build!$C:$C,mainzone)","v":1261.9099999999999},{"$f":"SUMIFS(raw_resource_build!$AA:$AA,Lists!$P:$P,'Portfolio Analytics'!$C898,raw_resource_build!$A:$A,'Portfolio Analytics'!Q$886,raw_resource_build!$C:$C,mainzone)","v":0},{"$f":"SUMIFS(raw_resource_build!$AA:$AA,Lists!$P:$P,'Portfolio Analytics'!$C898,raw_resource_build!$A:$A,'Portfolio Analytics'!R$886,raw_resource_build!$C:$C,mainzone)","v":0},{"$f":"SUMIFS(raw_resource_build!$AA:$AA,Lists!$P:$P,'Portfolio Analytics'!$C898,raw_resource_build!$A:$A,'Portfolio Analytics'!S$886,raw_resource_build!$C:$C,mainzone)","v":0},{"$f":"SUMIFS(raw_resource_build!$AA:$AA,Lists!$P:$P,'Portfolio Analytics'!$C898,raw_resource_build!$A:$A,'Portfolio Analytics'!T$886,raw_resource_build!$C:$C,mainzone)","v":1261.9099999999999},{"$f":"SUMIFS(raw_resource_build!$AA:$AA,Lists!$P:$P,'Portfolio Analytics'!$C898,raw_resource_build!$A:$A,'Portfolio Analytics'!U$886,raw_resource_build!$C:$C,mainzone)","v":0},{"$f":"SUMIFS(raw_resource_build!$AA:$AA,Lists!$P:$P,'Portfolio Analytics'!$C898,raw_resource_build!$A:$A,'Portfolio Analytics'!V$886,raw_resource_build!$C:$C,mainzone)","v":0},{"$f":"SUMIFS(raw_resource_build!$AA:$AA,Lists!$P:$P,'Portfolio Analytics'!$C898,raw_resource_build!$A:$A,'Portfolio Analytics'!W$886,raw_resource_build!$C:$C,mainzone)","v":0},{"$f":"SUMIFS(raw_resource_build!$AA:$AA,Lists!$P:$P,'Portfolio Analytics'!$C898,raw_resource_build!$A:$A,'Portfolio Analytics'!X$886,raw_resource_build!$C:$C,mainzone)","v":0},{"$f":"SUMIFS(raw_resource_build!$AA:$AA,Lists!$P:$P,'Portfolio Analytics'!$C898,raw_resource_build!$A:$A,'Portfolio Analytics'!Y$886,raw_resource_build!$C:$C,mainzone)","v":0},{"$f":"SUMIFS(raw_resource_build!$AA:$AA,Lists!$P:$P,'Portfolio Analytics'!$C898,raw_resource_build!$A:$A,'Portfolio Analytics'!Z$886,raw_resource_build!$C:$C,mainzone)","v":0},{"$f":"SUMIFS(raw_resource_build!$AA:$AA,Lists!$P:$P,'Portfolio Analytics'!$C898,raw_resource_build!$A:$A,'Portfolio Analytics'!AA$886,raw_resource_build!$C:$C,mainzone)","v":0},{"$f":"SUMIFS(raw_resource_build!$AA:$AA,Lists!$P:$P,'Portfolio Analytics'!$C898,raw_resource_build!$A:$A,'Portfolio Analytics'!AB$886,raw_resource_build!$C:$C,mainzone)","v":0},{"$f":"SUMIFS(raw_resource_build!$AA:$AA,Lists!$P:$P,'Portfolio Analytics'!$C898,raw_resource_build!$A:$A,'Portfolio Analytics'!AC$886,raw_resource_build!$C:$C,mainzone)","v":0},{"$f":"SUMIFS(raw_resource_build!$AA:$AA,Lists!$P:$P,'Portfolio Analytics'!$C898,raw_resource_build!$A:$A,'Portfolio Analytics'!AD$886,raw_resource_build!$C:$C,mainzone)","v":0},{"$f":"SUMIFS(raw_resource_build!$AA:$AA,Lists!$P:$P,'Portfolio Analytics'!$C898,raw_resource_build!$A:$A,'Portfolio Analytics'!AE$886,raw_resource_build!$C:$C,mainzone)","v":0},{"$f":"SUMIFS(raw_resource_build!$AA:$AA,Lists!$P:$P,'Portfolio Analytics'!$C898,raw_resource_build!$A:$A,'Portfolio Analytics'!AF$886,raw_resource_build!$C:$C,mainzone)","v":0},{"$f":"SUMIFS(raw_resource_build!$AA:$AA,Lists!$P:$P,'Portfolio Analytics'!$C898,raw_resource_build!$A:$A,'Portfolio Analytics'!AG$886,raw_resource_build!$C:$C,mainzone)","v":0},{"$f":"SUMIFS(raw_resource_build!$AA:$AA,Lists!$P:$P,'Portfolio Analytics'!$C898,raw_resource_build!$A:$A,'Portfolio Analytics'!AH$886,raw_resource_build!$C:$C,mainzone)","v":0},{"$f":"SUMIFS(raw_resource_build!$AA:$AA,Lists!$P:$P,'Portfolio Analytics'!$C898,raw_resource_build!$A:$A,'Portfolio Analytics'!AI$886,raw_resource_build!$C:$C,mainzone)","v":2684.8999999999996},{"$f":"SUMIFS(raw_resource_build!$AA:$AA,Lists!$P:$P,'Portfolio Analytics'!$C898,raw_resource_build!$A:$A,'Portfolio Analytics'!AJ$886,raw_resource_build!$C:$C,mainzone)","v":0},{"$f":"SUMIFS(raw_resource_build!$AA:$AA,Lists!$P:$P,'Portfolio Analytics'!$C898,raw_resource_build!$A:$A,'Portfolio Analytics'!AK$886,raw_resource_build!$C:$C,mainzone)","v":0},{"$f":"SUMIFS(raw_resource_build!$AA:$AA,Lists!$P:$P,'Portfolio Analytics'!$C898,raw_resource_build!$A:$A,'Portfolio Analytics'!AL$886,raw_resource_build!$C:$C,mainzone)","v":0},{"$f":"SUMIFS(raw_resource_build!$AA:$AA,Lists!$P:$P,'Portfolio Analytics'!$C898,raw_resource_build!$A:$A,'Portfolio Analytics'!AM$886,raw_resource_build!$C:$C,mainzone)","v":0},{"$f":"SUMIFS(raw_resource_build!$AA:$AA,Lists!$P:$P,'Portfolio Analytics'!$C898,raw_resource_build!$A:$A,'Portfolio Analytics'!AN$886,raw_resource_build!$C:$C,mainzone)","v":0}]
[null,null,"Biomass","MW",{"$f":"SUMIFS(raw_resource_build!$AA:$AA,Lists!$P:$P,'Portfolio Analytics'!$C899,raw_resource_build!$A:$A,'Portfolio Analytics'!E$886,raw_resource_build!$C:$C,mainzone)","v":0},{"$f":"SUMIFS(raw_resource_build!$AA:$AA,Lists!$P:$P,'Portfolio Analytics'!$C899,raw_resource_build!$A:$A,'Portfolio Analytics'!F$886,raw_resource_build!$C:$C,mainzone)","v":0},{"$f":"SUMIFS(raw_resource_build!$AA:$AA,Lists!$P:$P,'Portfolio Analytics'!$C899,raw_resource_build!$A:$A,'Portfolio Analytics'!G$886,raw_resource_build!$C:$C,mainzone)","v":0},{"$f":"SUMIFS(raw_resource_build!$AA:$AA,Lists!$P:$P,'Portfolio Analytics'!$C899,raw_resource_build!$A:$A,'Portfolio Analytics'!H$886,raw_resource_build!$C:$C,mainzone)","v":0},{"$f":"SUMIFS(raw_resource_build!$AA:$AA,Lists!$P:$P,'Portfolio Analytics'!$C899,raw_resource_build!$A:$A,'Portfolio Analytics'!I$886,raw_resource_build!$C:$C,mainzone)","v":0},{"$f":"SUMIFS(raw_resource_build!$AA:$AA,Lists!$P:$P,'Portfolio Analytics'!$C899,raw_resource_build!$A:$A,'Portfolio Analytics'!J$886,raw_resource_build!$C:$C,mainzone)","v":630.04999999999995},{"$f":"SUMIFS(raw_resource_build!$AA:$AA,Lists!$P:$P,'Portfolio Analytics'!$C899,raw_resource_build!$A:$A,'Portfolio Analytics'!K$886,raw_resource_build!$C:$C,mainzone)","v":630.04999999999995},{"$f":"SUMIFS(raw_resource_build!$AA:$AA,Lists!$P:$P,'Portfolio Analytics'!$C899,raw_resource_build!$A:$A,'Portfolio Analytics'!L$886,raw_resource_build!$C:$C,mainzone)","v":630.04999999999995},{"$f":"SUMIFS(raw_resource_build!$AA:$AA,Lists!$P:$P,'Portfolio Analytics'!$C899,raw_resource_build!$A:$A,'Portfolio Analytics'!M$886,raw_resource_build!$C:$C,mainzone)","v":630.04999999999995},{"$f":"SUMIFS(raw_resource_build!$AA:$AA,Lists!$P:$P,'Portfolio Analytics'!$C899,raw_resource_build!$A:$A,'Portfolio Analytics'!N$886,raw_resource_build!$C:$C,mainzone)","v":630.04999999999995},{"$f":"SUMIFS(raw_resource_build!$AA:$AA,Lists!$P:$P,'Portfolio Analytics'!$C899,raw_resource_build!$A:$A,'Portfolio Analytics'!O$886,raw_resource_build!$C:$C,mainzone)","v":0},{"$f":"SUMIFS(raw_resource_build!$AA:$AA,Lists!$P:$P,'Portfolio Analytics'!$C899,raw_resource_build!$A:$A,'Portfolio Analytics'!P$886,raw_resource_build!$C:$C,mainzone)","v":630.04999999999995},{"$f":"SUMIFS(raw_resource_build!$AA:$AA,Lists!$P:$P,'Portfolio Analytics'!$C899,raw_resource_build!$A:$A,'Portfolio Analytics'!Q$886,raw_resource_build!$C:$C,mainzone)","v":0},{"$f":"SUMIFS(raw_resource_build!$AA:$AA,Lists!$P:$P,'Portfolio Analytics'!$C899,raw_resource_build!$A:$A,'Portfolio Analytics'!R$886,raw_resource_build!$C:$C,mainzone)","v":0},{"$f":"SUMIFS(raw_resource_build!$AA:$AA,Lists!$P:$P,'Portfolio Analytics'!$C899,raw_resource_build!$A:$A,'Portfolio Analytics'!S$886,raw_resource_build!$C:$C,mainzone)","v":0},{"$f":"SUMIFS(raw_resource_build!$AA:$AA,Lists!$P:$P,'Portfolio Analytics'!$C899,raw_resource_build!$A:$A,'Portfolio Analytics'!T$886,raw_resource_build!$C:$C,mainzone)","v":628.7299999999999},{"$f":"SUMIFS(raw_resource_build!$AA:$AA,Lists!$P:$P,'Portfolio Analytics'!$C899,raw_resource_build!$A:$A,'Portfolio Analytics'!U$886,raw_resource_build!$C:$C,mainzone)","v":0},{"$f":"SUMIFS(raw_resource_build!$AA:$AA,Lists!$P:$P,'Portfolio Analytics'!$C899,raw_resource_build!$A:$A,'Portfolio Analytics'!V$886,raw_resource_build!$C:$C,mainzone)","v":0},{"$f":"SUMIFS(raw_resource_build!$AA:$AA,Lists!$P:$P,'Portfolio Analytics'!$C899,raw_resource_build!$A:$A,'Portfolio Analytics'!W$886,raw_resource_build!$C:$C,mainzone)","v":0},{"$f":"SUMIFS(raw_resource_build!$AA:$AA,Lists!$P:$P,'Portfolio Analytics'!$C899,raw_resource_build!$A:$A,'Portfolio Analytics'!X$886,raw_resource_build!$C:$C,mainzone)","v":0},{"$f":"SUMIFS(raw_resource_build!$AA:$AA,Lists!$P:$P,'Portfolio Analytics'!$C899,raw_resource_build!$A:$A,'Portfolio Analytics'!Y$886,raw_resource_build!$C:$C,mainzone)","v":0},{"$f":"SUMIFS(raw_resource_build!$AA:$AA,Lists!$P:$P,'Portfolio Analytics'!$C899,raw_resource_build!$A:$A,'Portfolio Analytics'!Z$886,raw_resource_build!$C:$C,mainzone)","v":0},{"$f":"SUMIFS(raw_resource_build!$AA:$AA,Lists!$P:$P,'Portfolio Analytics'!$C899,raw_resource_build!$A:$A,'Portfolio Analytics'!AA$886,raw_resource_build!$C:$C,mainzone)","v":0},{"$f":"SUMIFS(raw_resource_build!$AA:$AA,Lists!$P:$P,'Portfolio Analytics'!$C899,raw_resource_build!$A:$A,'Portfolio Analytics'!AB$886,raw_resource_build!$C:$C,mainzone)","v":0},{"$f":"SUMIFS(raw_resource_build!$AA:$AA,Lists!$P:$P,'Portfolio Analytics'!$C899,raw_resource_build!$A:$A,'Portfolio Analytics'!AC$886,raw_resource_build!$C:$C,mainzone)","v":0},{"$f":"SUMIFS(raw_resource_build!$AA:$AA,Lists!$P:$P,'Portfolio Analytics'!$C899,raw_resource_build!$A:$A,'Portfolio Analytics'!AD$886,raw_resource_build!$C:$C,mainzone)","v":0},{"$f":"SUMIFS(raw_resource_build!$AA:$AA,Lists!$P:$P,'Portfolio Analytics'!$C899,raw_resource_build!$A:$A,'Portfolio Analytics'!AE$886,raw_resource_build!$C:$C,mainzone)","v":0},{"$f":"SUMIFS(raw_resource_build!$AA:$AA,Lists!$P:$P,'Portfolio Analytics'!$C899,raw_resource_build!$A:$A,'Portfolio Analytics'!AF$886,raw_resource_build!$C:$C,mainzone)","v":0},{"$f":"SUMIFS(raw_resource_build!$AA:$AA,Lists!$P:$P,'Portfolio Analytics'!$C899,raw_resource_build!$A:$A,'Portfolio Analytics'!AG$886,raw_resource_build!$C:$C,mainzone)","v":0},{"$f":"SUMIFS(raw_resource_build!$AA:$AA,Lists!$P:$P,'Portfolio Analytics'!$C899,raw_resource_build!$A:$A,'Portfolio Analytics'!AH$886,raw_resource_build!$C:$C,mainzone)","v":0},{"$f":"SUMIFS(raw_resource_build!$AA:$AA,Lists!$P:$P,'Portfolio Analytics'!$C899,raw_resource_build!$A:$A,'Portfolio Analytics'!AI$886,raw_resource_build!$C:$C,mainzone)","v":1603.56},{"$f":"SUMIFS(raw_resource_build!$AA:$AA,Lists!$P:$P,'Portfolio Analytics'!$C899,raw_resource_build!$A:$A,'Portfolio Analytics'!AJ$886,raw_resource_build!$C:$C,mainzone)","v":0},{"$f":"SUMIFS(raw_resource_build!$AA:$AA,Lists!$P:$P,'Portfolio Analytics'!$C899,raw_resource_build!$A:$A,'Portfolio Analytics'!AK$886,raw_resource_build!$C:$C,mainzone)","v":0},{"$f":"SUMIFS(raw_resource_build!$AA:$AA,Lists!$P:$P,'Portfolio Analytics'!$C899,raw_resource_build!$A:$A,'Portfolio Analytics'!AL$886,raw_resource_build!$C:$C,mainzone)","v":0},{"$f":"SUMIFS(raw_resource_build!$AA:$AA,Lists!$P:$P,'Portfolio Analytics'!$C899,raw_resource_build!$A:$A,'Portfolio Analytics'!AM$886,raw_resource_build!$C:$C,mainzone)","v":0},{"$f":"SUMIFS(raw_resource_build!$AA:$AA,Lists!$P:$P,'Portfolio Analytics'!$C899,raw_resource_build!$A:$A,'Portfolio Analytics'!AN$886,raw_resource_build!$C:$C,mainzone)","v":0}]
[null,null,"Shed DR","MW",{"$f":"SUMIFS(raw_resource_build!$AA:$AA,Lists!$P:$P,'Portfolio Analytics'!$C900,raw_resource_build!$A:$A,'Portfolio Analytics'!E$886,raw_resource_build!$C:$C,mainzone)","v":0},{"$f":"SUMIFS(raw_resource_build!$AA:$AA,Lists!$P:$P,'Portfolio Analytics'!$C900,raw_resource_build!$A:$A,'Portfolio Analytics'!F$886,raw_resource_build!$C:$C,mainzone)","v":0},{"$f":"SUMIFS(raw_resource_build!$AA:$AA,Lists!$P:$P,'Portfolio Analytics'!$C900,raw_resource_build!$A:$A,'Portfolio Analytics'!G$886,raw_resource_build!$C:$C,mainzone)","v":0},{"$f":"SUMIFS(raw_resource_build!$AA:$AA,Lists!$P:$P,'Portfolio Analytics'!$C900,raw_resource_build!$A:$A,'Portfolio Analytics'!H$886,raw_resource_build!$C:$C,mainzone)","v":0},{"$f":"SUMIFS(raw_resource_build!$AA:$AA,Lists!$P:$P,'Portfolio Analytics'!$C900,raw_resource_build!$A:$A,'Portfolio Analytics'!I$886,raw_resource_build!$C:$C,mainzone)","v":0},{"$f":"SUMIFS(raw_resource_build!$AA:$AA,Lists!$P:$P,'Portfolio Analytics'!$C900,raw_resource_build!$A:$A,'Portfolio Analytics'!J$886,raw_resource_build!$C:$C,mainzone)","v":0},{"$f":"SUMIFS(raw_resource_build!$AA:$AA,Lists!$P:$P,'Portfolio Analytics'!$C900,raw_resource_build!$A:$A,'Portfolio Analytics'!K$886,raw_resource_build!$C:$C,mainzone)","v":0},{"$f":"SUMIFS(raw_resource_build!$AA:$AA,Lists!$P:$P,'Portfolio Analytics'!$C900,raw_resource_build!$A:$A,'Portfolio Analytics'!L$886,raw_resource_build!$C:$C,mainzone)","v":0},{"$f":"SUMIFS(raw_resource_build!$AA:$AA,Lists!$P:$P,'Portfolio Analytics'!$C900,raw_resource_build!$A:$A,'Portfolio Analytics'!M$886,raw_resource_build!$C:$C,mainzone)","v":0},{"$f":"SUMIFS(raw_resource_build!$AA:$AA,Lists!$P:$P,'Portfolio Analytics'!$C900,raw_resource_build!$A:$A,'Portfolio Analytics'!N$886,raw_resource_build!$C:$C,mainzone)","v":0},{"$f":"SUMIFS(raw_resource_build!$AA:$AA,Lists!$P:$P,'Portfolio Analytics'!$C900,raw_resource_build!$A:$A,'Portfolio Analytics'!O$886,raw_resource_build!$C:$C,mainzone)","v":0},{"$f":"SUMIFS(raw_resource_build!$AA:$AA,Lists!$P:$P,'Portfolio Analytics'!$C900,raw_resource_build!$A:$A,'Portfolio Analytics'!P$886,raw_resource_build!$C:$C,mainzone)","v":0},{"$f":"SUMIFS(raw_resource_build!$AA:$AA,Lists!$P:$P,'Portfolio Analytics'!$C900,raw_resource_build!$A:$A,'Portfolio Analytics'!Q$886,raw_resource_build!$C:$C,mainzone)","v":0},{"$f":"SUMIFS(raw_resource_build!$AA:$AA,Lists!$P:$P,'Portfolio Analytics'!$C900,raw_resource_build!$A:$A,'Portfolio Analytics'!R$886,raw_resource_build!$C:$C,mainzone)","v":0},{"$f":"SUMIFS(raw_resource_build!$AA:$AA,Lists!$P:$P,'Portfolio Analytics'!$C900,raw_resource_build!$A:$A,'Portfolio Analytics'!S$886,raw_resource_build!$C:$C,mainzone)","v":0},{"$f":"SUMIFS(raw_resource_build!$AA:$AA,Lists!$P:$P,'Portfolio Analytics'!$C900,raw_resource_build!$A:$A,'Portfolio Analytics'!T$886,raw_resource_build!$C:$C,mainzone)","v":0},{"$f":"SUMIFS(raw_resource_build!$AA:$AA,Lists!$P:$P,'Portfolio Analytics'!$C900,raw_resource_build!$A:$A,'Portfolio Analytics'!U$886,raw_resource_build!$C:$C,mainzone)","v":0},{"$f":"SUMIFS(raw_resource_build!$AA:$AA,Lists!$P:$P,'Portfolio Analytics'!$C900,raw_resource_build!$A:$A,'Portfolio Analytics'!V$886,raw_resource_build!$C:$C,mainzone)","v":0},{"$f":"SUMIFS(raw_resource_build!$AA:$AA,Lists!$P:$P,'Portfolio Analytics'!$C900,raw_resource_build!$A:$A,'Portfolio Analytics'!W$886,raw_resource_build!$C:$C,mainzone)","v":0},{"$f":"SUMIFS(raw_resource_build!$AA:$AA,Lists!$P:$P,'Portfolio Analytics'!$C900,raw_resource_build!$A:$A,'Portfolio Analytics'!X$886,raw_resource_build!$C:$C,mainzone)","v":0},{"$f":"SUMIFS(raw_resource_build!$AA:$AA,Lists!$P:$P,'Portfolio Analytics'!$C900,raw_resource_build!$A:$A,'Portfolio Analytics'!Y$886,raw_resource_build!$C:$C,mainzone)","v":0},{"$f":"SUMIFS(raw_resource_build!$AA:$AA,Lists!$P:$P,'Portfolio Analytics'!$C900,raw_resource_build!$A:$A,'Portfolio Analytics'!Z$886,raw_resource_build!$C:$C,mainzone)","v":0},{"$f":"SUMIFS(raw_resource_build!$AA:$AA,Lists!$P:$P,'Portfolio Analytics'!$C900,raw_resource_build!$A:$A,'Portfolio Analytics'!AA$886,raw_resource_build!$C:$C,mainzone)","v":0},{"$f":"SUMIFS(raw_resource_build!$AA:$AA,Lists!$P:$P,'Portfolio Analytics'!$C900,raw_resource_build!$A:$A,'Portfolio Analytics'!AB$886,raw_resource_build!$C:$C,mainzone)","v":0},{"$f":"SUMIFS(raw_resource_build!$AA:$AA,Lists!$P:$P,'Portfolio Analytics'!$C900,raw_resource_build!$A:$A,'Portfolio Analytics'!AC$886,raw_resource_build!$C:$C,mainzone)","v":0},{"$f":"SUMIFS(raw_resource_build!$AA:$AA,Lists!$P:$P,'Portfolio Analytics'!$C900,raw_resource_build!$A:$A,'Portfolio Analytics'!AD$886,raw_resource_build!$C:$C,mainzone)","v":0},{"$f":"SUMIFS(raw_resource_build!$AA:$AA,Lists!$P:$P,'Portfolio Analytics'!$C900,raw_resource_build!$A:$A,'Portfolio Analytics'!AE$886,raw_resource_build!$C:$C,mainzone)","v":0},{"$f":"SUMIFS(raw_resource_build!$AA:$AA,Lists!$P:$P,'Portfolio Analytics'!$C900,raw_resource_build!$A:$A,'Portfolio Analytics'!AF$886,raw_resource_build!$C:$C,mainzone)","v":0},{"$f":"SUMIFS(raw_resource_build!$AA:$AA,Lists!$P:$P,'Portfolio Analytics'!$C900,raw_resource_build!$A:$A,'Portfolio Analytics'!AG$886,raw_resource_build!$C:$C,mainzone)","v":0},{"$f":"SUMIFS(raw_resource_build!$AA:$AA,Lists!$P:$P,'Portfolio Analytics'!$C900,raw_resource_build!$A:$A,'Portfolio Analytics'!AH$886,raw_resource_build!$C:$C,mainzone)","v":0},{"$f":"SUMIFS(raw_resource_build!$AA:$AA,Lists!$P:$P,'Portfolio Analytics'!$C900,raw_resource_build!$A:$A,'Portfolio Analytics'!AI$886,raw_resource_build!$C:$C,mainzone)","v":0},{"$f":"SUMIFS(raw_resource_build!$AA:$AA,Lists!$P:$P,'Portfolio Analytics'!$C900,raw_resource_build!$A:$A,'Portfolio Analytics'!AJ$886,raw_resource_build!$C:$C,mainzone)","v":0},{"$f":"SUMIFS(raw_resource_build!$AA:$AA,Lists!$P:$P,'Portfolio Analytics'!$C900,raw_resource_build!$A:$A,'Portfolio Analytics'!AK$886,raw_resource_build!$C:$C,mainzone)","v":0},{"$f":"SUMIFS(raw_resource_build!$AA:$AA,Lists!$P:$P,'Portfolio Analytics'!$C900,raw_resource_build!$A:$A,'Portfolio Analytics'!AL$886,raw_resource_build!$C:$C,mainzone)","v":0},{"$f":"SUMIFS(raw_resource_build!$AA:$AA,Lists!$P:$P,'Portfolio Analytics'!$C900,raw_resource_build!$A:$A,'Portfolio Analytics'!AM$886,raw_resource_build!$C:$C,mainzone)","v":0},{"$f":"SUMIFS(raw_resource_build!$AA:$AA,Lists!$P:$P,'Portfolio Analytics'!$C900,raw_resource_build!$A:$A,'Portfolio Analytics'!AN$886,raw_resource_build!$C:$C,mainzone)","v":0}]
[null,null,"Import Capacity","MW",{"$f":"SUMIF(raw_planning_reserve_margin!$A:$A,E$886,raw_planning_reserve_margin!$G:$G)+SUMIF(raw_planning_reserve_margin!$A:$A,E$886,raw_planning_reserve_margin!$J:$J)","v":0},{"$f":"SUMIF(raw_planning_reserve_margin!$A:$A,F$886,raw_planning_reserve_margin!$G:$G)+SUMIF(raw_planning_reserve_margin!$A:$A,F$886,raw_planning_reserve_margin!$J:$J)","v":0},{"$f":"SUMIF(raw_planning_reserve_margin!$A:$A,G$886,raw_planning_reserve_margin!$G:$G)+SUMIF(raw_planning_reserve_margin!$A:$A,G$886,raw_planning_reserve_margin!$J:$J)","v":0},{"$f":"SUMIF(raw_planning_reserve_margin!$A:$A,H$886,raw_planning_reserve_margin!$G:$G)+SUMIF(raw_planning_reserve_margin!$A:$A,H$886,raw_planning_reserve_margin!$J:$J)","v":0},{"$f":"SUMIF(raw_planning_reserve_margin!$A:$A,I$886,raw_planning_reserve_margin!$G:$G)+SUMIF(raw_planning_reserve_margin!$A:$A,I$886,raw_planning_reserve_margin!$J:$J)","v":0},{"$f":"SUMIF(raw_planning_reserve_margin!$A:$A,J$886,raw_planning_reserve_margin!$G:$G)+SUMIF(raw_planning_reserve_margin!$A:$A,J$886,raw_planning_reserve_margin!$J:$J)","v":5000},{"$f":"SUMIF(raw_planning_reserve_margin!$A:$A,K$886,raw_planning_reserve_margin!$G:$G)+SUMIF(raw_planning_reserve_margin!$A:$A,K$886,raw_planning_reserve_margin!$J:$J)","v":5000},{"$f":"SUMIF(raw_planning_reserve_margin!$A:$A,L$886,raw_planning_reserve_margin!$G:$G)+SUMIF(raw_planning_reserve_margin!$A:$A,L$886,raw_planning_reserve_margin!$J:$J)","v":5000},{"$f":"SUMIF(raw_planning_reserve_margin!$A:$A,M$886,raw_planning_reserve_margin!$G:$G)+SUMIF(raw_planning_reserve_margin!$A:$A,M$886,raw_planning_reserve_margin!$J:$J)","v":5000},{"$f":"SUMIF(raw_planning_reserve_margin!$A:$A,N$886,raw_planning_reserve_margin!$G:$G)+SUMIF(raw_planning_reserve_margin!$A:$A,N$886,raw_planning_reserve_margin!$J:$J)","v":5000},{"$f":"SUMIF(raw_planning_reserve_margin!$A:$A,O$886,raw_planning_reserve_margin!$G:$G)+SUMIF(raw_planning_reserve_margin!$A:$A,O$886,raw_planning_reserve_margin!$J:$J)","v":0},{"$f":"SUMIF(raw_planning_reserve_margin!$A:$A,P$886,raw_planning_reserve_margin!$G:$G)+SUMIF(raw_planning_reserve_margin!$A:$A,P$886,raw_planning_reserve_margin!$J:$J)","v":5000},{"$f":"SUMIF(raw_planning_reserve_margin!$A:$A,Q$886,raw_planning_reserve_margin!$G:$G)+SUMIF(raw_planning_reserve_margin!$A:$A,Q$886,raw_planning_reserve_margin!$J:$J)","v":0},{"$f":"SUMIF(raw_planning_reserve_margin!$A:$A,R$886,raw_planning_reserve_margin!$G:$G)+SUMIF(raw_planning_reserve_margin!$A:$A,R$886,raw_planning_reserve_margin!$J:$J)","v":0},{"$f":"SUMIF(raw_planning_reserve_margin!$A:$A,S$886,raw_planning_reserve_margin!$G:$G)+SUMIF(raw_planning_reserve_margin!$A:$A,S$886,raw_planning_reserve_margin!$J:$J)","v":0},{"$f":"SUMIF(raw_planning_reserve_margin!$A:$A,T$886,raw_planning_reserve_margin!$G:$G)+SUMIF(raw_planning_reserve_margin!$A:$A,T$886,raw_planning_reserve_margin!$J:$J)","v":5000},{"$f":"SUMIF(raw_planning_reserve_margin!$A:$A,U$886,raw_planning_reserve_margin!$G:$G)+SUMIF(raw_planning_reserve_margin!$A:$A,U$886,raw_planning_reserve_margin!$J:$J)","v":0},{"$f":"SUMIF(raw_planning_reserve_margin!$A:$A,V$886,raw_planning_reserve_margin!$G:$G)+SUMIF(raw_planning_reserve_margin!$A:$A,V$886,raw_planning_reserve_margin!$J:$J)","v":0},{"$f":"SUMIF(raw_planning_reserve_margin!$A:$A,W$886,raw_planning_reserve_margin!$G:$G)+SUMIF(raw_planning_reserve_margin!$A:$A,W$886,raw_planning_reserve_margin!$J:$J)","v":0},{"$f":"SUMIF(raw_planning_reserve_margin!$A:$A,X$886,raw_planning_reserve_margin!$G:$G)+SUMIF(raw_planning_reserve_margin!$A:$A,X$886,raw_planning_reserve_margin!$J:$J)","v":0},{"$f":"SUMIF(raw_planning_reserve_margin!$A:$A,Y$886,raw_planning_reserve_margin!$G:$G)+SUMIF(raw_planning_reserve_margin!$A:$A,Y$886,raw_planning_reserve_margin!$J:$J)","v":0},{"$f":"SUMIF(raw_planning_reserve_margin!$A:$A,Z$886,raw_planning_reserve_margin!$G:$G)+SUMIF(raw_planning_reserve_margin!$A:$A,Z$886,raw_planning_reserve_margin!$J:$J)","v":0},{"$f":"SUMIF(raw_planning_reserve_margin!$A:$A,AA$886,raw_planning_reserve_margin!$G:$G)+SUMIF(raw_planning_reserve_margin!$A:$A,AA$886,raw_planning_reserve_margin!$J:$J)","v":0},{"$f":"SUMIF(raw_planning_reserve_margin!$A:$A,AB$886,raw_planning_reserve_margin!$G:$G)+SUMIF(raw_planning_reserve_margin!$A:$A,AB$886,raw_planning_reserve_margin!$J:$J)","v":0},{"$f":"SUMIF(raw_planning_reserve_margin!$A:$A,AC$886,raw_planning_reserve_margin!$G:$G)+SUMIF(raw_planning_reserve_margin!$A:$A,AC$886,raw_planning_reserve_margin!$J:$J)","v":0},{"$f":"SUMIF(raw_planning_reserve_margin!$A:$A,AD$886,raw_planning_reserve_margin!$G:$G)+SUMIF(raw_planning_reserve_margin!$A:$A,AD$886,raw_planning_reserve_margin!$J:$J)","v":0},{"$f":"SUMIF(raw_planning_reserve_margin!$A:$A,AE$886,raw_planning_reserve_margin!$G:$G)+SUMIF(raw_planning_reserve_margin!$A:$A,AE$886,raw_planning_reserve_margin!$J:$J)","v":0},{"$f":"SUMIF(raw_planning_reserve_margin!$A:$A,AF$886,raw_planning_reserve_margin!$G:$G)+SUMIF(raw_planning_reserve_margin!$A:$A,AF$886,raw_planning_reserve_margin!$J:$J)","v":0},{"$f":"SUMIF(raw_planning_reserve_margin!$A:$A,AG$886,raw_planning_reserve_margin!$G:$G)+SUMIF(raw_planning_reserve_margin!$A:$A,AG$886,raw_planning_reserve_margin!$J:$J)","v":0},{"$f":"SUMIF(raw_planning_reserve_margin!$A:$A,AH$886,raw_planning_reserve_margin!$G:$G)+SUMIF(raw_planning_reserve_margin!$A:$A,AH$886,raw_planning_reserve_margin!$J:$J)","v":0},{"$f":"SUMIF(raw_planning_reserve_margin!$A:$A,AI$886,raw_planning_reserve_margin!$G:$G)+SUMIF(raw_planning_reserve_margin!$A:$A,AI$886,raw_planning_reserve_margin!$J:$J)","v":5000},{"$f":"SUMIF(raw_planning_reserve_margin!$A:$A,AJ$886,raw_planning_reserve_margin!$G:$G)+SUMIF(raw_planning_reserve_margin!$A:$A,AJ$886,raw_planning_reserve_margin!$J:$J)","v":0},{"$f":"SUMIF(raw_planning_reserve_margin!$A:$A,AK$886,raw_planning_reserve_margin!$G:$G)+SUMIF(raw_planning_reserve_margin!$A:$A,AK$886,raw_planning_reserve_margin!$J:$J)","v":0},{"$f":"SUMIF(raw_planning_reserve_margin!$A:$A,AL$886,raw_planning_reserve_margin!$G:$G)+SUMIF(raw_planning_reserve_margin!$A:$A,AL$886,raw_planning_reserve_margin!$J:$J)","v":0},{"$f":"SUMIF(raw_planning_reserve_margin!$A:$A,AM$886,raw_planning_reserve_margin!$G:$G)+SUMIF(raw_planning_reserve_margin!$A:$A,AM$886,raw_planning_reserve_margin!$J:$J)","v":0},{"$f":"SUMIF(raw_planning_reserve_margin!$A:$A,AN$886,raw_planning_reserve_margin!$G:$G)+SUMIF(raw_planning_reserve_margin!$A:$A,AN$886,raw_planning_reserve_margin!$J:$J)","v":0}]
[null,null,"Hoover and Palo Verde","MW",{"$f":"-SUMIF(raw_planning_reserve_margin!$A:$A,E$886,raw_planning_reserve_margin!$H:$H)","v":0},{"$f":"-SUMIF(raw_planning_reserve_margin!$A:$A,F$886,raw_planning_reserve_margin!$H:$H)","v":0},{"$f":"-SUMIF(raw_planning_reserve_margin!$A:$A,G$886,raw_planning_reserve_margin!$H:$H)","v":0},{"$f":"-SUMIF(raw_planning_reserve_margin!$A:$A,H$886,raw_planning_reserve_margin!$H:$H)","v":0},{"$f":"-SUMIF(raw_planning_reserve_margin!$A:$A,I$886,raw_planning_reserve_margin!$H:$H)","v":0},{"$f":"-SUMIF(raw_planning_reserve_margin!$A:$A,J$886,raw_planning_reserve_margin!$H:$H)","v":1457},{"$f":"-SUMIF(raw_planning_reserve_margin!$A:$A,K$886,raw_planning_reserve_margin!$H:$H)","v":1457},{"$f":"-SUMIF(raw_planning_reserve_margin!$A:$A,L$886,raw_planning_reserve_margin!$H:$H)","v":1457},{"$f":"-SUMIF(raw_planning_reserve_margin!$A:$A,M$886,raw_planning_reserve_margin!$H:$H)","v":1457},{"$f":"-SUMIF(raw_planning_reserve_margin!$A:$A,N$886,raw_planning_reserve_margin!$H:$H)","v":1457},{"$f":"-SUMIF(raw_planning_reserve_margin!$A:$A,O$886,raw_planning_reserve_margin!$H:$H)","v":0},{"$f":"-SUMIF(raw_planning_reserve_margin!$A:$A,P$886,raw_planning_reserve_margin!$H:$H)","v":1457},{"$f":"-SUMIF(raw_planning_reserve_margin!$A:$A,Q$886,raw_planning_reserve_margin!$H:$H)","v":0},{"$f":"-SUMIF(raw_planning_reserve_margin!$A:$A,R$886,raw_planning_reserve_margin!$H:$H)","v":0},{"$f":"-SUMIF(raw_planning_reserve_margin!$A:$A,S$886,raw_planning_reserve_margin!$H:$H)","v":0},{"$f":"-SUMIF(raw_planning_reserve_margin!$A:$A,T$886,raw_planning_reserve_margin!$H:$H)","v":1457},{"$f":"-SUMIF(raw_planning_reserve_margin!$A:$A,U$886,raw_planning_reserve_margin!$H:$H)","v":0},{"$f":"-SUMIF(raw_planning_reserve_margin!$A:$A,V$886,raw_planning_reserve_margin!$H:$H)","v":0},{"$f":"-SUMIF(raw_planning_reserve_margin!$A:$A,W$886,raw_planning_reserve_margin!$H:$H)","v":0},{"$f":"-SUMIF(raw_planning_reserve_margin!$A:$A,X$886,raw_planning_reserve_margin!$H:$H)","v":0},{"$f":"-SUMIF(raw_planning_reserve_margin!$A:$A,Y$886,raw_planning_reserve_margin!$H:$H)","v":0},{"$f":"-SUMIF(raw_planning_reserve_margin!$A:$A,Z$886,raw_planning_reserve_margin!$H:$H)","v":0},{"$f":"-SUMIF(raw_planning_reserve_margin!$A:$A,AA$886,raw_planning_reserve_margin!$H:$H)","v":0},{"$f":"-SUMIF(raw_planning_reserve_margin!$A:$A,AB$886,raw_planning_reserve_margin!$H:$H)","v":0},{"$f":"-SUMIF(raw_planning_reserve_margin!$A:$A,AC$886,raw_planning_reserve_margin!$H:$H)","v":0},{"$f":"-SUMIF(raw_planning_reserve_margin!$A:$A,AD$886,raw_planning_reserve_margin!$H:$H)","v":0},{"$f":"-SUMIF(raw_planning_reserve_margin!$A:$A,AE$886,raw_planning_reserve_margin!$H:$H)","v":0},{"$f":"-SUMIF(raw_planning_reserve_margin!$A:$A,AF$886,raw_planning_reserve_margin!$H:$H)","v":0},{"$f":"-SUMIF(raw_planning_reserve_margin!$A:$A,AG$886,raw_planning_reserve_margin!$H:$H)","v":0},{"$f":"-SUMIF(raw_planning_reserve_margin!$A:$A,AH$886,raw_planning_reserve_margin!$H:$H)","v":0},{"$f":"-SUMIF(raw_planning_reserve_margin!$A:$A,AI$886,raw_planning_reserve_margin!$H:$H)","v":1457},{"$f":"-SUMIF(raw_planning_reserve_margin!$A:$A,AJ$886,raw_planning_reserve_margin!$H:$H)","v":0},{"$f":"-SUMIF(raw_planning_reserve_margin!$A:$A,AK$886,raw_planning_reserve_margin!$H:$H)","v":0},{"$f":"-SUMIF(raw_planning_reserve_margin!$A:$A,AL$886,raw_planning_reserve_margin!$H:$H)","v":0},{"$f":"-SUMIF(raw_planning_reserve_margin!$A:$A,AM$886,raw_planning_reserve_margin!$H:$H)","v":0},{"$f":"-SUMIF(raw_planning_reserve_margin!$A:$A,AN$886,raw_planning_reserve_margin!$H:$H)","v":0}]
[null,null,"Other Firm Imports","MW",{"$f":"E901-E902","v":0},{"$f":"F901-F902","v":0},0,0,0,3543,3543,3543,3543,3543,0,3543,0,0,0,3543,0,0,0,0,0,0,0,0,0,0,0,0,0,0,3543,0,0,0,0,0]
[null,null,"Storage","MW",{"$f":"SUMIF(raw_planning_reserve_margin!$A:$A,E$886,raw_planning_reserve_margin!$I:$I)","v":0},{"$f":"SUMIF(raw_planning_reserve_margin!$A:$A,F$886,raw_planning_reserve_margin!$I:$I)","v":0},{"$f":"SUMIF(raw_planning_reserve_margin!$A:$A,G$886,raw_planning_reserve_margin!$I:$I)","v":0},{"$f":"SUMIF(raw_planning_reserve_margin!$A:$A,H$886,raw_planning_reserve_margin!$I:$I)","v":0},{"$f":"SUMIF(raw_planning_reserve_margin!$A:$A,I$886,raw_planning_reserve_margin!$I:$I)","v":0},{"$f":"SUMIF(raw_planning_reserve_margin!$A:$A,J$886,raw_planning_reserve_margin!$I:$I)","v":5074.8900000000003},{"$f":"SUMIF(raw_planning_reserve_margin!$A:$A,K$886,raw_planning_reserve_margin!$I:$I)","v":7704.75},{"$f":"SUMIF(raw_planning_reserve_margin!$A:$A,L$886,raw_planning_reserve_margin!$I:$I)","v":7704.75},{"$f":"SUMIF(raw_planning_reserve_margin!$A:$A,M$886,raw_planning_reserve_margin!$I:$I)","v":8092.8},{"$f":"SUMIF(raw_planning_reserve_margin!$A:$A,N$886,raw_planning_reserve_margin!$I:$I)","v":9664.25},{"$f":"SUMIF(raw_planning_reserve_margin!$A:$A,O$886,raw_planning_reserve_margin!$I:$I)","v":0},{"$f":"SUMIF(raw_planning_reserve_margin!$A:$A,P$886,raw_planning_reserve_margin!$I:$I)","v":14139.86},{"$f":"SUMIF(raw_planning_reserve_margin!$A:$A,Q$886,raw_planning_reserve_margin!$I:$I)","v":0},{"$f":"SUMIF(raw_planning_reserve_margin!$A:$A,R$886,raw_planning_reserve_margin!$I:$I)","v":0},{"$f":"SUMIF(raw_planning_reserve_margin!$A:$A,S$886,raw_planning_reserve_margin!$I:$I)","v":0},{"$f":"SUMIF(raw_planning_reserve_margin!$A:$A,T$886,raw_planning_reserve_margin!$I:$I)","v":15585.94},{"$f":"SUMIF(raw_planning_reserve_margin!$A:$A,U$886,raw_planning_reserve_margin!$I:$I)","v":0},{"$f":"SUMIF(raw_planning_reserve_margin!$A:$A,V$886,raw_planning_reserve_margin!$I:$I)","v":0},{"$f":"SUMIF(raw_planning_reserve_margin!$A:$A,W$886,raw_planning_reserve_margin!$I:$I)","v":0},{"$f":"SUMIF(raw_planning_reserve_margin!$A:$A,X$886,raw_planning_reserve_margin!$I:$I)","v":0},{"$f":"SUMIF(raw_planning_reserve_margin!$A:$A,Y$886,raw_planning_reserve_margin!$I:$I)","v":0},{"$f":"SUMIF(raw_planning_reserve_margin!$A:$A,Z$886,raw_planning_reserve_margin!$I:$I)","v":0},{"$f":"SUMIF(raw_planning_reserve_margin!$A:$A,AA$886,raw_planning_reserve_margin!$I:$I)","v":0},{"$f":"SUMIF(raw_planning_reserve_margin!$A:$A,AB$886,raw_planning_reserve_margin!$I:$I)","v":0},{"$f":"SUMIF(raw_planning_reserve_margin!$A:$A,AC$886,raw_planning_reserve_margin!$I:$I)","v":0},{"$f":"SUMIF(raw_planning_reserve_margin!$A:$A,AD$886,raw_planning_reserve_margin!$I:$I)","v":0},{"$f":"SUMIF(raw_planning_reserve_margin!$A:$A,AE$886,raw_planning_reserve_margin!$I:$I)","v":0},{"$f":"SUMIF(raw_planning_reserve_margin!$A:$A,AF$886,raw_planning_reserve_margin!$I:$I)","v":0},{"$f":"SUMIF(raw_planning_reserve_margin!$A:$A,AG$886,raw_planning_reserve_margin!$I:$I)","v":0},{"$f":"SUMIF(raw_planning_reserve_margin!$A:$A,AH$886,raw_planning_reserve_margin!$I:$I)","v":0},{"$f":"SUMIF(raw_planning_reserve_margin!$A:$A,AI$886,raw_planning_reserve_margin!$I:$I)","v":25660.560000000001},{"$f":"SUMIF(raw_planning_reserve_margin!$A:$A,AJ$886,raw_planning_reserve_margin!$I:$I)","v":0},{"$f":"SUMIF(raw_planning_reserve_margin!$A:$A,AK$886,raw_planning_reserve_margin!$I:$I)","v":0},{"$f":"SUMIF(raw_planning_reserve_margin!$A:$A,AL$886,raw_planning_reserve_margin!$I:$I)","v":0},{"$f":"SUMIF(raw_planning_reserve_margin!$A:$A,AM$886,raw_planning_reserve_margin!$I:$I)","v":0},{"$f":"SUMIF(raw_planning_reserve_margin!$A:$A,AN$886,raw_planning_reserve_margin!$I:$I)","v":0}]
[null,null,"Battery (incl. BTM)","MW",{"$f":"SUMIFS(raw_resource_build!$AA:$AA,Lists!$P:$P,'Portfolio Analytics'!$C905,raw_resource_build!$A:$A,'Portfolio Analytics'!E$886,raw_resource_build!$C:$C,mainzone)","v":0},{"$f":"SUMIFS(raw_resource_build!$AA:$AA,Lists!$P:$P,'Portfolio Analytics'!$C905,raw_resource_build!$A:$A,'Portfolio Analytics'!F$886,raw_resource_build!$C:$C,mainzone)","v":0},{"$f":"SUMIFS(raw_resource_build!$AA:$AA,Lists!$P:$P,'Portfolio Analytics'!$C905,raw_resource_build!$A:$A,'Portfolio Analytics'!G$886,raw_resource_build!$C:$C,mainzone)","v":0},{"$f":"SUMIFS(raw_resource_build!$AA:$AA,Lists!$P:$P,'Portfolio Analytics'!$C905,raw_resource_build!$A:$A,'Portfolio Analytics'!H$886,raw_resource_build!$C:$C,mainzone)","v":0},{"$f":"SUMIFS(raw_resource_build!$AA:$AA,Lists!$P:$P,'Portfolio Analytics'!$C905,raw_resource_build!$A:$A,'Portfolio Analytics'!I$886,raw_resource_build!$C:$C,mainzone)","v":0},{"$f":"SUMIFS(raw_resource_build!$AA:$AA,Lists!$P:$P,'Portfolio Analytics'!$C905,raw_resource_build!$A:$A,'Portfolio Analytics'!J$886,raw_resource_build!$C:$C,mainzone)","v":3475.69},{"$f":"SUMIFS(raw_resource_build!$AA:$AA,Lists!$P:$P,'Portfolio Analytics'!$C905,raw_resource_build!$A:$A,'Portfolio Analytics'!K$886,raw_resource_build!$C:$C,mainzone)","v":6105.55},{"$f":"SUMIFS(raw_resource_build!$AA:$AA,Lists!$P:$P,'Portfolio Analytics'!$C905,raw_resource_build!$A:$A,'Portfolio Analytics'!L$886,raw_resource_build!$C:$C,mainzone)","v":6105.55},{"$f":"SUMIFS(raw_resource_build!$AA:$AA,Lists!$P:$P,'Portfolio Analytics'!$C905,raw_resource_build!$A:$A,'Portfolio Analytics'!M$886,raw_resource_build!$C:$C,mainzone)","v":6493.6},{"$f":"SUMIFS(raw_resource_build!$AA:$AA,Lists!$P:$P,'Portfolio Analytics'!$C905,raw_resource_build!$A:$A,'Portfolio Analytics'!N$886,raw_resource_build!$C:$C,mainzone)","v":8065.05},{"$f":"SUMIFS(raw_resource_build!$AA:$AA,Lists!$P:$P,'Portfolio Analytics'!$C905,raw_resource_build!$A:$A,'Portfolio Analytics'!O$886,raw_resource_build!$C:$C,mainzone)","v":0},{"$f":"SUMIFS(raw_resource_build!$AA:$AA,Lists!$P:$P,'Portfolio Analytics'!$C905,raw_resource_build!$A:$A,'Portfolio Analytics'!P$886,raw_resource_build!$C:$C,mainzone)","v":10554.189999999999},{"$f":"SUMIFS(raw_resource_build!$AA:$AA,Lists!$P:$P,'Portfolio Analytics'!$C905,raw_resource_build!$A:$A,'Portfolio Analytics'!Q$886,raw_resource_build!$C:$C,mainzone)","v":0},{"$f":"SUMIFS(raw_resource_build!$AA:$AA,Lists!$P:$P,'Portfolio Analytics'!$C905,raw_resource_build!$A:$A,'Portfolio Analytics'!R$886,raw_resource_build!$C:$C,mainzone)","v":0},{"$f":"SUMIFS(raw_resource_build!$AA:$AA,Lists!$P:$P,'Portfolio Analytics'!$C905,raw_resource_build!$A:$A,'Portfolio Analytics'!S$886,raw_resource_build!$C:$C,mainzone)","v":0},{"$f":"SUMIFS(raw_resource_build!$AA:$AA,Lists!$P:$P,'Portfolio Analytics'!$C905,raw_resource_build!$A:$A,'Portfolio Analytics'!T$886,raw_resource_build!$C:$C,mainzone)","v":12000.27},{"$f":"SUMIFS(raw_resource_build!$AA:$AA,Lists!$P:$P,'Portfolio Analytics'!$C905,raw_resource_build!$A:$A,'Portfolio Analytics'!U$886,raw_resource_build!$C:$C,mainzone)","v":0},{"$f":"SUMIFS(raw_resource_build!$AA:$AA,Lists!$P:$P,'Portfolio Analytics'!$C905,raw_resource_build!$A:$A,'Portfolio Analytics'!V$886,raw_resource_build!$C:$C,mainzone)","v":0},{"$f":"SUMIFS(raw_resource_build!$AA:$AA,Lists!$P:$P,'Portfolio Analytics'!$C905,raw_resource_build!$A:$A,'Portfolio Analytics'!W$886,raw_resource_build!$C:$C,mainzone)","v":0},{"$f":"SUMIFS(raw_resource_build!$AA:$AA,Lists!$P:$P,'Portfolio Analytics'!$C905,raw_resource_build!$A:$A,'Portfolio Analytics'!X$886,raw_resource_build!$C:$C,mainzone)","v":0},{"$f":"SUMIFS(raw_resource_build!$AA:$AA,Lists!$P:$P,'Portfolio Analytics'!$C905,raw_resource_build!$A:$A,'Portfolio Analytics'!Y$886,raw_resource_build!$C:$C,mainzone)","v":0},{"$f":"SUMIFS(raw_resource_build!$AA:$AA,Lists!$P:$P,'Portfolio Analytics'!$C905,raw_resource_build!$A:$A,'Portfolio Analytics'!Z$886,raw_resource_build!$C:$C,mainzone)","v":0},{"$f":"SUMIFS(raw_resource_build!$AA:$AA,Lists!$P:$P,'Portfolio Analytics'!$C905,raw_resource_build!$A:$A,'Portfolio Analytics'!AA$886,raw_resource_build!$C:$C,mainzone)","v":0},{"$f":"SUMIFS(raw_resource_build!$AA:$AA,Lists!$P:$P,'Portfolio Analytics'!$C905,raw_resource_build!$A:$A,'Portfolio Analytics'!AB$886,raw_resource_build!$C:$C,mainzone)","v":0},{"$f":"SUMIFS(raw_resource_build!$AA:$AA,Lists!$P:$P,'Portfolio Analytics'!$C905,raw_resource_build!$A:$A,'Portfolio Analytics'!AC$886,raw_resource_build!$C:$C,mainzone)","v":0},{"$f":"SUMIFS(raw_resource_build!$AA:$AA,Lists!$P:$P,'Portfolio Analytics'!$C905,raw_resource_build!$A:$A,'Portfolio Analytics'!AD$886,raw_resource_build!$C:$C,mainzone)","v":0},{"$f":"SUMIFS(raw_resource_build!$AA:$AA,Lists!$P:$P,'Portfolio Analytics'!$C905,raw_resource_build!$A:$A,'Portfolio Analytics'!AE$886,raw_resource_build!$C:$C,mainzone)","v":0},{"$f":"SUMIFS(raw_resource_build!$AA:$AA,Lists!$P:$P,'Portfolio Analytics'!$C905,raw_resource_build!$A:$A,'Portfolio Analytics'!AF$886,raw_resource_build!$C:$C,mainzone)","v":0},{"$f":"SUMIFS(raw_resource_build!$AA:$AA,Lists!$P:$P,'Portfolio Analytics'!$C905,raw_resource_build!$A:$A,'Portfolio Analytics'!AG$886,raw_resource_build!$C:$C,mainzone)","v":0},{"$f":"SUMIFS(raw_resource_build!$AA:$AA,Lists!$P:$P,'Portfolio Analytics'!$C905,raw_resource_build!$A:$A,'Portfolio Analytics'!AH$886,raw_resource_build!$C:$C,mainzone)","v":0},{"$f":"SUMIFS(raw_resource_build!$AA:$AA,Lists!$P:$P,'Portfolio Analytics'!$C905,raw_resource_build!$A:$A,'Portfolio Analytics'!AI$886,raw_resource_build!$C:$C,mainzone)","v":22074.879999999997},{"$f":"SUMIFS(raw_resource_build!$AA:$AA,Lists!$P:$P,'Portfolio Analytics'!$C905,raw_resource_build!$A:$A,'Portfolio Analytics'!AJ$886,raw_resource_build!$C:$C,mainzone)","v":0},{"$f":"SUMIFS(raw_resource_build!$AA:$AA,Lists!$P:$P,'Portfolio Analytics'!$C905,raw_resource_build!$A:$A,'Portfolio Analytics'!AK$886,raw_resource_build!$C:$C,mainzone)","v":0},{"$f":"SUMIFS(raw_resource_build!$AA:$AA,Lists!$P:$P,'Portfolio Analytics'!$C905,raw_resource_build!$A:$A,'Portfolio Analytics'!AL$886,raw_resource_build!$C:$C,mainzone)","v":0},{"$f":"SUMIFS(raw_resource_build!$AA:$AA,Lists!$P:$P,'Portfolio Analytics'!$C905,raw_resource_build!$A:$A,'Portfolio Analytics'!AM$886,raw_resource_build!$C:$C,mainzone)","v":0},{"$f":"SUMIFS(raw_resource_build!$AA:$AA,Lists!$P:$P,'Portfolio Analytics'!$C905,raw_resource_build!$A:$A,'Portfolio Analytics'!AN$886,raw_resource_build!$C:$C,mainzone)","v":0}]
[null,null,"Pumped Storage","MW",{"$f":"SUMIFS(raw_resource_build!$AA:$AA,Lists!$P:$P,'Portfolio Analytics'!$C906,raw_resource_build!$A:$A,'Portfolio Analytics'!E$886,raw_resource_build!$C:$C,mainzone)","v":0},{"$f":"SUMIFS(raw_resource_build!$AA:$AA,Lists!$P:$P,'Portfolio Analytics'!$C906,raw_resource_build!$A:$A,'Portfolio Analytics'!F$886,raw_resource_build!$C:$C,mainzone)","v":0},{"$f":"SUMIFS(raw_resource_build!$AA:$AA,Lists!$P:$P,'Portfolio Analytics'!$C906,raw_resource_build!$A:$A,'Portfolio Analytics'!G$886,raw_resource_build!$C:$C,mainzone)","v":0},{"$f":"SUMIFS(raw_resource_build!$AA:$AA,Lists!$P:$P,'Portfolio Analytics'!$C906,raw_resource_build!$A:$A,'Portfolio Analytics'!H$886,raw_resource_build!$C:$C,mainzone)","v":0},{"$f":"SUMIFS(raw_resource_build!$AA:$AA,Lists!$P:$P,'Portfolio Analytics'!$C906,raw_resource_build!$A:$A,'Portfolio Analytics'!I$886,raw_resource_build!$C:$C,mainzone)","v":0},{"$f":"SUMIFS(raw_resource_build!$AA:$AA,Lists!$P:$P,'Portfolio Analytics'!$C906,raw_resource_build!$A:$A,'Portfolio Analytics'!J$886,raw_resource_build!$C:$C,mainzone)","v":1599.2},{"$f":"SUMIFS(raw_resource_build!$AA:$AA,Lists!$P:$P,'Portfolio Analytics'!$C906,raw_resource_build!$A:$A,'Portfolio Analytics'!K$886,raw_resource_build!$C:$C,mainzone)","v":1599.2},{"$f":"SUMIFS(raw_resource_build!$AA:$AA,Lists!$P:$P,'Portfolio Analytics'!$C906,raw_resource_build!$A:$A,'Portfolio Analytics'!L$886,raw_resource_build!$C:$C,mainzone)","v":1599.2},{"$f":"SUMIFS(raw_resource_build!$AA:$AA,Lists!$P:$P,'Portfolio Analytics'!$C906,raw_resource_build!$A:$A,'Portfolio Analytics'!M$886,raw_resource_build!$C:$C,mainzone)","v":1599.2},{"$f":"SUMIFS(raw_resource_build!$AA:$AA,Lists!$P:$P,'Portfolio Analytics'!$C906,raw_resource_build!$A:$A,'Portfolio Analytics'!N$886,raw_resource_build!$C:$C,mainzone)","v":1599.2},{"$f":"SUMIFS(raw_resource_build!$AA:$AA,Lists!$P:$P,'Portfolio Analytics'!$C906,raw_resource_build!$A:$A,'Portfolio Analytics'!O$886,raw_resource_build!$C:$C,mainzone)","v":0},{"$f":"SUMIFS(raw_resource_build!$AA:$AA,Lists!$P:$P,'Portfolio Analytics'!$C906,raw_resource_build!$A:$A,'Portfolio Analytics'!P$886,raw_resource_build!$C:$C,mainzone)","v":3585.67},{"$f":"SUMIFS(raw_resource_build!$AA:$AA,Lists!$P:$P,'Portfolio Analytics'!$C906,raw_resource_build!$A:$A,'Portfolio Analytics'!Q$886,raw_resource_build!$C:$C,mainzone)","v":0},{"$f":"SUMIFS(raw_resource_build!$AA:$AA,Lists!$P:$P,'Portfolio Analytics'!$C906,raw_resource_build!$A:$A,'Portfolio Analytics'!R$886,raw_resource_build!$C:$C,mainzone)","v":0},{"$f":"SUMIFS(raw_resource_build!$AA:$AA,Lists!$P:$P,'Portfolio Analytics'!$C906,raw_resource_build!$A:$A,'Portfolio Analytics'!S$886,raw_resource_build!$C:$C,mainzone)","v":0},{"$f":"SUMIFS(raw_resource_build!$AA:$AA,Lists!$P:$P,'Portfolio Analytics'!$C906,raw_resource_build!$A:$A,'Portfolio Analytics'!T$886,raw_resource_build!$C:$C,mainzone)","v":3585.67},{"$f":"SUMIFS(raw_resource_build!$AA:$AA,Lists!$P:$P,'Portfolio Analytics'!$C906,raw_resource_build!$A:$A,'Portfolio Analytics'!U$886,raw_resource_build!$C:$C,mainzone)","v":0},{"$f":"SUMIFS(raw_resource_build!$AA:$AA,Lists!$P:$P,'Portfolio Analytics'!$C906,raw_resource_build!$A:$A,'Portfolio Analytics'!V$886,raw_resource_build!$C:$C,mainzone)","v":0},{"$f":"SUMIFS(raw_resource_build!$AA:$AA,Lists!$P:$P,'Portfolio Analytics'!$C906,raw_resource_build!$A:$A,'Portfolio Analytics'!W$886,raw_resource_build!$C:$C,mainzone)","v":0},{"$f":"SUMIFS(raw_resource_build!$AA:$AA,Lists!$P:$P,'Portfolio Analytics'!$C906,raw_resource_build!$A:$A,'Portfolio Analytics'!X$886,raw_resource_build!$C:$C,mainzone)","v":0},{"$f":"SUMIFS(raw_resource_build!$AA:$AA,Lists!$P:$P,'Portfolio Analytics'!$C906,raw_resource_build!$A:$A,'Portfolio Analytics'!Y$886,raw_resource_build!$C:$C,mainzone)","v":0},{"$f":"SUMIFS(raw_resource_build!$AA:$AA,Lists!$P:$P,'Portfolio Analytics'!$C906,raw_resource_build!$A:$A,'Portfolio Analytics'!Z$886,raw_resource_build!$C:$C,mainzone)","v":0},{"$f":"SUMIFS(raw_resource_build!$AA:$AA,Lists!$P:$P,'Portfolio Analytics'!$C906,raw_resource_build!$A:$A,'Portfolio Analytics'!AA$886,raw_resource_build!$C:$C,mainzone)","v":0},{"$f":"SUMIFS(raw_resource_build!$AA:$AA,Lists!$P:$P,'Portfolio Analytics'!$C906,raw_resource_build!$A:$A,'Portfolio Analytics'!AB$886,raw_resource_build!$C:$C,mainzone)","v":0},{"$f":"SUMIFS(raw_resource_build!$AA:$AA,Lists!$P:$P,'Portfolio Analytics'!$C906,raw_resource_build!$A:$A,'Portfolio Analytics'!AC$886,raw_resource_build!$C:$C,mainzone)","v":0},{"$f":"SUMIFS(raw_resource_build!$AA:$AA,Lists!$P:$P,'Portfolio Analytics'!$C906,raw_resource_build!$A:$A,'Portfolio Analytics'!AD$886,raw_resource_build!$C:$C,mainzone)","v":0},{"$f":"SUMIFS(raw_resource_build!$AA:$AA,Lists!$P:$P,'Portfolio Analytics'!$C906,raw_resource_build!$A:$A,'Portfolio Analytics'!AE$886,raw_resource_build!$C:$C,mainzone)","v":0},{"$f":"SUMIFS(raw_resource_build!$AA:$AA,Lists!$P:$P,'Portfolio Analytics'!$C906,raw_resource_build!$A:$A,'Portfolio Analytics'!AF$886,raw_resource_build!$C:$C,mainzone)","v":0},{"$f":"SUMIFS(raw_resource_build!$AA:$AA,Lists!$P:$P,'Portfolio Analytics'!$C906,raw_resource_build!$A:$A,'Portfolio Analytics'!AG$886,raw_resource_build!$C:$C,mainzone)","v":0},{"$f":"SUMIFS(raw_resource_build!$AA:$AA,Lists!$P:$P,'Portfolio Analytics'!$C906,raw_resource_build!$A:$A,'Portfolio Analytics'!AH$886,raw_resource_build!$C:$C,mainzone)","v":0},{"$f":"SUMIFS(raw_resource_build!$AA:$AA,Lists!$P:$P,'Portfolio Analytics'!$C906,raw_resource_build!$A:$A,'Portfolio Analytics'!AI$886,raw_resource_build!$C:$C,mainzone)","v":3585.67},{"$f":"SUMIFS(raw_resource_build!$AA:$AA,Lists!$P:$P,'Portfolio Analytics'!$C906,raw_resource_build!$A:$A,'Portfolio Analytics'!AJ$886,raw_resource_build!$C:$C,mainzone)","v":0},{"$f":"SUMIFS(raw_resource_build!$AA:$AA,Lists!$P:$P,'Portfolio Analytics'!$C906,raw_resource_build!$A:$A,'Portfolio Analytics'!AK$886,raw_resource_build!$C:$C,mainzone)","v":0},{"$f":"SUMIFS(raw_resource_build!$AA:$AA,Lists!$P:$P,'Portfolio Analytics'!$C906,raw_resource_build!$A:$A,'Portfolio Analytics'!AL$886,raw_resource_build!$C:$C,mainzone)","v":0},{"$f":"SUMIFS(raw_resource_build!$AA:$AA,Lists!$P:$P,'Portfolio Analytics'!$C906,raw_resource_build!$A:$A,'Portfolio Analytics'!AM$886,raw_resource_build!$C:$C,mainzone)","v":0},{"$f":"SUMIFS(raw_resource_build!$AA:$AA,Lists!$P:$P,'Portfolio Analytics'!$C906,raw_resource_build!$A:$A,'Portfolio Analytics'!AN$886,raw_resource_build!$C:$C,mainzone)","v":0}]
[null,null,"Variable Renewable ELCC (Incl. BTM)","MW",{"$f":"SUMIF(raw_planning_reserve_margin!$A:$A,E$886,raw_planning_reserve_margin!$K:$K)","v":0},{"$f":"SUMIF(raw_planning_reserve_margin!$A:$A,F$886,raw_planning_reserve_margin!$K:$K)","v":0},{"$f":"SUMIF(raw_planning_reserve_margin!$A:$A,G$886,raw_planning_reserve_margin!$K:$K)","v":0},{"$f":"SUMIF(raw_planning_reserve_margin!$A:$A,H$886,raw_planning_reserve_margin!$K:$K)","v":0},{"$f":"SUMIF(raw_planning_reserve_margin!$A:$A,I$886,raw_planning_reserve_margin!$K:$K)","v":0},{"$f":"SUMIF(raw_planning_reserve_margin!$A:$A,J$886,raw_planning_reserve_margin!$K:$K)","v":8359.69},{"$f":"SUMIF(raw_planning_reserve_margin!$A:$A,K$886,raw_planning_reserve_margin!$K:$K)","v":8429.7800000000007},{"$f":"SUMIF(raw_planning_reserve_margin!$A:$A,L$886,raw_planning_reserve_margin!$K:$K)","v":9249.5300000000007},{"$f":"SUMIF(raw_planning_reserve_margin!$A:$A,M$886,raw_planning_reserve_margin!$K:$K)","v":9423.66},{"$f":"SUMIF(raw_planning_reserve_margin!$A:$A,N$886,raw_planning_reserve_margin!$K:$K)","v":9513.56},{"$f":"SUMIF(raw_planning_reserve_margin!$A:$A,O$886,raw_planning_reserve_margin!$K:$K)","v":0},{"$f":"SUMIF(raw_planning_reserve_margin!$A:$A,P$886,raw_planning_reserve_margin!$K:$K)","v":10028.36},{"$f":"SUMIF(raw_planning_reserve_margin!$A:$A,Q$886,raw_planning_reserve_margin!$K:$K)","v":0},{"$f":"SUMIF(raw_planning_reserve_margin!$A:$A,R$886,raw_planning_reserve_margin!$K:$K)","v":0},{"$f":"SUMIF(raw_planning_reserve_margin!$A:$A,S$886,raw_planning_reserve_margin!$K:$K)","v":0},{"$f":"SUMIF(raw_planning_reserve_margin!$A:$A,T$886,raw_planning_reserve_margin!$K:$K)","v":10976.78},{"$f":"SUMIF(raw_planning_reserve_margin!$A:$A,U$886,raw_planning_reserve_margin!$K:$K)","v":0},{"$f":"SUMIF(raw_planning_reserve_margin!$A:$A,V$886,raw_planning_reserve_margin!$K:$K)","v":0},{"$f":"SUMIF(raw_planning_reserve_margin!$A:$A,W$886,raw_planning_reserve_margin!$K:$K)","v":0},{"$f":"SUMIF(raw_planning_reserve_margin!$A:$A,X$886,raw_planning_reserve_margin!$K:$K)","v":0},{"$f":"SUMIF(raw_planning_reserve_margin!$A:$A,Y$886,raw_planning_reserve_margin!$K:$K)","v":0},{"$f":"SUMIF(raw_planning_reserve_margin!$A:$A,Z$886,raw_planning_reserve_margin!$K:$K)","v":0},{"$f":"SUMIF(raw_planning_reserve_margin!$A:$A,AA$886,raw_planning_reserve_margin!$K:$K)","v":0},{"$f":"SUMIF(raw_planning_reserve_margin!$A:$A,AB$886,raw_planning_reserve_margin!$K:$K)","v":0},{"$f":"SUMIF(raw_planning_reserve_margin!$A:$A,AC$886,raw_planning_reserve_margin!$K:$K)","v":0},{"$f":"SUMIF(raw_planning_reserve_margin!$A:$A,AD$886,raw_planning_reserve_margin!$K:$K)","v":0},{"$f":"SUMIF(raw_planning_reserve_margin!$A:$A,AE$886,raw_planning_reserve_margin!$K:$K)","v":0},{"$f":"SUMIF(raw_planning_reserve_margin!$A:$A,AF$886,raw_planning_reserve_margin!$K:$K)","v":0},{"$f":"SUMIF(raw_planning_reserve_margin!$A:$A,AG$886,raw_planning_reserve_margin!$K:$K)","v":0},{"$f":"SUMIF(raw_planning_reserve_margin!$A:$A,AH$886,raw_planning_reserve_margin!$K:$K)","v":0},{"$f":"SUMIF(raw_planning_reserve_margin!$A:$A,AI$886,raw_planning_reserve_margin!$K:$K)","v":13355.45},{"$f":"SUMIF(raw_planning_reserve_margin!$A:$A,AJ$886,raw_planning_reserve_margin!$K:$K)","v":0},{"$f":"SUMIF(raw_planning_reserve_margin!$A:$A,AK$886,raw_planning_reserve_margin!$K:$K)","v":0},{"$f":"SUMIF(raw_planning_reserve_margin!$A:$A,AL$886,raw_planning_reserve_margin!$K:$K)","v":0},{"$f":"SUMIF(raw_planning_reserve_margin!$A:$A,AM$886,raw_planning_reserve_margin!$K:$K)","v":0},{"$f":"SUMIF(raw_planning_reserve_margin!$A:$A,AN$886,raw_planning_reserve_margin!$K:$K)","v":0}]
[null,null,"Total Available Capacity","MW",{"$f":"SUM(E890,E901,E904,E907)","v":0},0,0,0,0,56368.800000000003,{"$f":"SUM(K890,K901,K904,K907)","v":56543.659999999996},57363.409999999996,57925.59,58566.31,0,61944.160000000003,0,0,0,64336.840000000004,0,0,0,0,0,0,0,0,0,0,0,0,0,0,74174.17,0,0,0,0,0]
[null,null,"Actual Reserve Margin","%",{"$f":"IF(E887>0,E908/E887-1,0)","v":0},{"$f":"IF(F887>0,F908/F887-1,0)","v":0},0,0,0,0.1499999489966104,0.14999999999999991,0.15380682326745654,0.14999996029388862,0.14999991163862614,0,0.14999993502212683,0,0,0,0.14999996425065443,0,0,0,0,0,0,0,0,0,0,0,0,0,0,0.15000014728848865,0,0,0,0,0]
[null,null,"Marginal PRM Cost","$/kW-yr.",{"$f":"-SUMIF(raw_planning_reserve_margin!$A:$A,E886,raw_planning_reserve_margin!$L:$L)/1000","v":0},{"$f":"-SUMIF(raw_planning_reserve_margin!$A:$A,F886,raw_planning_reserve_margin!$L:$L)/1000","v":0},{"$f":"-SUMIF(raw_planning_reserve_margin!$A:$A,G886,raw_planning_reserve_margin!$L:$L)/1000","v":0},{"$f":"-SUMIF(raw_planning_reserve_margin!$A:$A,H886,raw_planning_reserve_margin!$L:$L)/1000","v":0},{"$f":"-SUMIF(raw_planning_reserve_margin!$A:$A,I886,raw_planning_reserve_margin!$L:$L)/1000","v":0},{"$f":"-SUMIF(raw_planning_reserve_margin!$A:$A,J886,raw_planning_reserve_margin!$L:$L)/1000","v":564.29996999999992},{"$f":"-SUMIF(raw_planning_reserve_margin!$A:$A,K886,raw_planning_reserve_margin!$L:$L)/1000","v":975.95914000000005},{"$f":"-SUMIF(raw_planning_reserve_margin!$A:$A,L886,raw_planning_reserve_margin!$L:$L)/1000","v":0},{"$f":"-SUMIF(raw_planning_reserve_margin!$A:$A,M886,raw_planning_reserve_margin!$L:$L)/1000","v":348.93518999999998},{"$f":"-SUMIF(raw_planning_reserve_margin!$A:$A,N886,raw_planning_reserve_margin!$L:$L)/1000","v":393.03646999999995},{"$f":"-SUMIF(raw_planning_reserve_margin!$A:$A,O886,raw_planning_reserve_margin!$L:$L)/1000","v":0},{"$f":"-SUMIF(raw_planning_reserve_margin!$A:$A,P886,raw_planning_reserve_margin!$L:$L)/1000","v":259.33744000000002},{"$f":"-SUMIF(raw_planning_reserve_margin!$A:$A,Q886,raw_planning_reserve_margin!$L:$L)/1000","v":0},{"$f":"-SUMIF(raw_planning_reserve_margin!$A:$A,R886,raw_planning_reserve_margin!$L:$L)/1000","v":0},{"$f":"-SUMIF(raw_planning_reserve_margin!$A:$A,S886,raw_planning_reserve_margin!$L:$L)/1000","v":0},{"$f":"-SUMIF(raw_planning_reserve_margin!$A:$A,T886,raw_planning_reserve_margin!$L:$L)/1000","v":77.406499999999994},{"$f":"-SUMIF(raw_planning_reserve_margin!$A:$A,U886,raw_planning_reserve_margin!$L:$L)/1000","v":0},{"$f":"-SUMIF(raw_planning_reserve_margin!$A:$A,V886,raw_planning_reserve_margin!$L:$L)/1000","v":0},{"$f":"-SUMIF(raw_planning_reserve_margin!$A:$A,W886,raw_planning_reserve_margin!$L:$L)/1000","v":0},{"$f":"-SUMIF(raw_planning_reserve_margin!$A:$A,X886,raw_planning_reserve_margin!$L:$L)/1000","v":0},{"$f":"-SUMIF(raw_planning_reserve_margin!$A:$A,Y886,raw_planning_reserve_margin!$L:$L)/1000","v":0},{"$f":"-SUMIF(raw_planning_reserve_margin!$A:$A,Z886,raw_planning_reserve_margin!$L:$L)/1000","v":0},{"$f":"-SUMIF(raw_planning_reserve_margin!$A:$A,AA886,raw_planning_reserve_margin!$L:$L)/1000","v":0},{"$f":"-SUMIF(raw_planning_reserve_margin!$A:$A,AB886,raw_planning_reserve_margin!$L:$L)/1000","v":0},{"$f":"-SUMIF(raw_planning_reserve_margin!$A:$A,AC886,raw_planning_reserve_margin!$L:$L)/1000","v":0},{"$f":"-SUMIF(raw_planning_reserve_margin!$A:$A,AD886,raw_planning_reserve_margin!$L:$L)/1000","v":0},{"$f":"-SUMIF(raw_planning_reserve_margin!$A:$A,AE886,raw_planning_reserve_margin!$L:$L)/1000","v":0},{"$f":"-SUMIF(raw_planning_reserve_margin!$A:$A,AF886,raw_planning_reserve_margin!$L:$L)/1000","v":0},{"$f":"-SUMIF(raw_planning_reserve_margin!$A:$A,AG886,raw_planning_reserve_margin!$L:$L)/1000","v":0},{"$f":"-SUMIF(raw_planning_reserve_margin!$A:$A,AH886,raw_planning_reserve_margin!$L:$L)/1000","v":0},{"$f":"-SUMIF(raw_planning_reserve_margin!$A:$A,AI886,raw_planning_reserve_margin!$L:$L)/1000","v":14.246030000000001},{"$f":"-SUMIF(raw_planning_reserve_margin!$A:$A,AJ886,raw_planning_reserve_margin!$L:$L)/1000","v":0},{"$f":"-SUMIF(raw_planning_reserve_margin!$A:$A,AK886,raw_planning_reserve_margin!$L:$L)/1000","v":0},{"$f":"-SUMIF(raw_planning_reserve_margin!$A:$A,AL886,raw_planning_reserve_margin!$L:$L)/1000","v":0},{"$f":"-SUMIF(raw_planning_reserve_margin!$A:$A,AM886,raw_planning_reserve_margin!$L:$L)/1000","v":0},{"$f":"-SUMIF(raw_planning_reserve_margin!$A:$A,AN886,raw_planning_reserve_margin!$L:$L)/1000","v":0}]
[]
[null,null,"Solar Capacity Factor for Marginal ELCC (input assumption)","%",0.32,0.32,0.32,0.32,0.32,0.32,0.32,0.32,0.32,0.32,0.32,0.32,0.32,0.32,0.32,0.32,0.32,0.32,0.32,0.32,0.32,0.32,0.32,0.32,0.32,0.32,0.32,0.32,0.32,0.32,0.32,0.32,0.32,0.32,0.32,0.32]
[null,null,"Wind Capacity Factor for Marginal ELCC (input assumption)","%",0.35,0.35,0.35,0.35,0.35,0.35,0.35,0.35,0.35,0.35,0.35,0.35,0.35,0.35,0.35,0.35,0.35,0.35,0.35,0.35,0.35,0.35,0.35,0.35,0.35,0.35,0.35,0.35,0.35,0.35,0.35,0.35,0.35,0.35,0.35,0.35]
[null,null,"Marginal Solar ELCC","%",{"$f":"IFERROR(SUMIFS(raw_planning_reserve_margin!$O:$O,raw_planning_reserve_margin!$A:$A,E$886)*(E$912*8760)/E$196/1000,0)","v":0},{"$f":"IFERROR(SUMIFS(raw_planning_reserve_margin!$O:$O,raw_planning_reserve_margin!$A:$A,F$886)*(F$912*8760)/F$196/1000,0)","v":0},{"$f":"IFERROR(SUMIFS(raw_planning_reserve_margin!$O:$O,raw_planning_reserve_margin!$A:$A,G$886)*(G$912*8760)/G$196/1000,0)","v":0},{"$f":"IFERROR(SUMIFS(raw_planning_reserve_margin!$O:$O,raw_planning_reserve_margin!$A:$A,H$886)*(H$912*8760)/H$196/1000,0)","v":0},{"$f":"IFERROR(SUMIFS(raw_planning_reserve_margin!$O:$O,raw_planning_reserve_margin!$A:$A,I$886)*(I$912*8760)/I$196/1000,0)","v":0},{"$f":"IFERROR(SUMIFS(raw_planning_reserve_margin!$O:$O,raw_planning_reserve_margin!$A:$A,J$886)*(J$912*8760)/J$196/1000,0)","v":3.5640887429934653E-2},{"$f":"IFERROR(SUMIFS(raw_planning_reserve_margin!$O:$O,raw_planning_reserve_margin!$A:$A,K$886)*(K$912*8760)/K$196/1000,0)","v":2.277010944374452E-2},{"$f":"IFERROR(SUMIFS(raw_planning_reserve_margin!$O:$O,raw_planning_reserve_margin!$A:$A,L$886)*(L$912*8760)/L$196/1000,0)","v":2.2561443055493208E-2},{"$f":"IFERROR(SUMIFS(raw_planning_reserve_margin!$O:$O,raw_planning_reserve_margin!$A:$A,M$886)*(M$912*8760)/M$196/1000,0)","v":2.2437348854107298E-2},{"$f":"IFERROR(SUMIFS(raw_planning_reserve_margin!$O:$O,raw_planning_reserve_margin!$A:$A,N$886)*(N$912*8760)/N$196/1000,0)","v":2.2326265367807088E-2},{"$f":"IFERROR(SUMIFS(raw_planning_reserve_margin!$O:$O,raw_planning_reserve_margin!$A:$A,O$886)*(O$912*8760)/O$196/1000,0)","v":0},{"$f":"IFERROR(SUMIFS(raw_planning_reserve_margin!$O:$O,raw_planning_reserve_margin!$A:$A,P$886)*(P$912*8760)/P$196/1000,0)","v":2.2968498908440483E-2},{"$f":"IFERROR(SUMIFS(raw_planning_reserve_margin!$O:$O,raw_planning_reserve_margin!$A:$A,Q$886)*(Q$912*8760)/Q$196/1000,0)","v":0},{"$f":"IFERROR(SUMIFS(raw_planning_reserve_margin!$O:$O,raw_planning_reserve_margin!$A:$A,R$886)*(R$912*8760)/R$196/1000,0)","v":0},{"$f":"IFERROR(SUMIFS(raw_planning_reserve_margin!$O:$O,raw_planning_reserve_margin!$A:$A,S$886)*(S$912*8760)/S$196/1000,0)","v":0},{"$f":"IFERROR(SUMIFS(raw_planning_reserve_margin!$O:$O,raw_planning_reserve_margin!$A:$A,T$886)*(T$912*8760)/T$196/1000,0)","v":2.2833260051453693E-2},{"$f":"IFERROR(SUMIFS(raw_planning_reserve_margin!$O:$O,raw_planning_reserve_margin!$A:$A,U$886)*(U$912*8760)/U$196/1000,0)","v":0},{"$f":"IFERROR(SUMIFS(raw_planning_reserve_margin!$O:$O,raw_planning_reserve_margin!$A:$A,V$886)*(V$912*8760)/V$196/1000,0)","v":0},{"$f":"IFERROR(SUMIFS(raw_planning_reserve_margin!$O:$O,raw_planning_reserve_margin!$A:$A,W$886)*(W$912*8760)/W$196/1000,0)","v":0},{"$f":"IFERROR(SUMIFS(raw_planning_reserve_margin!$O:$O,raw_planning_reserve_margin!$A:$A,X$886)*(X$912*8760)/X$196/1000,0)","v":0},{"$f":"IFERROR(SUMIFS(raw_planning_reserve_margin!$O:$O,raw_planning_reserve_margin!$A:$A,Y$886)*(Y$912*8760)/Y$196/1000,0)","v":0},{"$f":"IFERROR(SUMIFS(raw_planning_reserve_margin!$O:$O,raw_planning_reserve_margin!$A:$A,Z$886)*(Z$912*8760)/Z$196/1000,0)","v":0},{"$f":"IFERROR(SUMIFS(raw_planning_reserve_margin!$O:$O,raw_planning_reserve_margin!$A:$A,AA$886)*(AA$912*8760)/AA$196/1000,0)","v":0},{"$f":"IFERROR(SUMIFS(raw_planning_reserve_margin!$O:$O,raw_planning_reserve_margin!$A:$A,AB$886)*(AB$912*8760)/AB$196/1000,0)","v":0},{"$f":"IFERROR(SUMIFS(raw_planning_reserve_margin!$O:$O,raw_planning_reserve_margin!$A:$A,AC$886)*(AC$912*8760)/AC$196/1000,0)","v":0},{"$f":"IFERROR(SUMIFS(raw_planning_reserve_margin!$O:$O,raw_planning_reserve_margin!$A:$A,AD$886)*(AD$912*8760)/AD$196/1000,0)","v":0},{"$f":"IFERROR(SUMIFS(raw_planning_reserve_margin!$O:$O,raw_planning_reserve_margin!$A:$A,AE$886)*(AE$912*8760)/AE$196/1000,0)","v":0},{"$f":"IFERROR(SUMIFS(raw_planning_reserve_margin!$O:$O,raw_planning_reserve_margin!$A:$A,AF$886)*(AF$912*8760)/AF$196/1000,0)","v":0},{"$f":"IFERROR(SUMIFS(raw_planning_reserve_margin!$O:$O,raw_planning_reserve_margin!$A:$A,AG$886)*(AG$912*8760)/AG$196/1000,0)","v":0},{"$f":"IFERROR(SUMIFS(raw_planning_reserve_margin!$O:$O,raw_planning_reserve_margin!$A:$A,AH$886)*(AH$912*8760)/AH$196/1000,0)","v":0},{"$f":"IFERROR(SUMIFS(raw_planning_reserve_margin!$O:$O,raw_planning_reserve_margin!$A:$A,AI$886)*(AI$912*8760)/AI$196/1000,0)","v":1.5308471736851213E-2},{"$f":"IFERROR(SUMIFS(raw_planning_reserve_margin!$O:$O,raw_planning_reserve_margin!$A:$A,AJ$886)*(AJ$912*8760)/AJ$196/1000,0)","v":0},{"$f":"IFERROR(SUMIFS(raw_planning_reserve_margin!$O:$O,raw_planning_reserve_margin!$A:$A,AK$886)*(AK$912*8760)/AK$196/1000,0)","v":0},{"$f":"IFERROR(SUMIFS(raw_planning_reserve_margin!$O:$O,raw_planning_reserve_margin!$A:$A,AL$886)*(AL$912*8760)/AL$196/1000,0)","v":0},{"$f":"IFERROR(SUMIFS(raw_planning_reserve_margin!$O:$O,raw_planning_reserve_margin!$A:$A,AM$886)*(AM$912*8760)/AM$196/1000,0)","v":0},{"$f":"IFERROR(SUMIFS(raw_planning_reserve_margin!$O:$O,raw_planning_reserve_margin!$A:$A,AN$886)*(AN$912*8760)/AN$196/1000,0)","v":0}]
[null,null,"Marginal Wind ELCC","%",{"$f":"IFERROR(SUMIFS(raw_planning_reserve_margin!$P:$P,raw_planning_reserve_margin!$A:$A,E$886)*(E$913*8760)/E$196/1000,0)","v":0},{"$f":"IFERROR(SUMIFS(raw_planning_reserve_margin!$P:$P,raw_planning_reserve_margin!$A:$A,F$886)*(F$913*8760)/F$196/1000,0)","v":0},{"$f":"IFERROR(SUMIFS(raw_planning_reserve_margin!$P:$P,raw_planning_reserve_margin!$A:$A,G$886)*(G$913*8760)/G$196/1000,0)","v":0},{"$f":"IFERROR(SUMIFS(raw_planning_reserve_margin!$P:$P,raw_planning_reserve_margin!$A:$A,H$886)*(H$913*8760)/H$196/1000,0)","v":0},{"$f":"IFERROR(SUMIFS(raw_planning_reserve_margin!$P:$P,raw_planning_reserve_margin!$A:$A,I$886)*(I$913*8760)/I$196/1000,0)","v":0},{"$f":"IFERROR(SUMIFS(raw_planning_reserve_margin!$P:$P,raw_planning_reserve_margin!$A:$A,J$886)*(J$913*8760)/J$196/1000,0)","v":0.31487051528564097},{"$f":"IFERROR(SUMIFS(raw_planning_reserve_margin!$P:$P,raw_planning_reserve_margin!$A:$A,K$886)*(K$913*8760)/K$196/1000,0)","v":0.30997286186406342},{"$f":"IFERROR(SUMIFS(raw_planning_reserve_margin!$P:$P,raw_planning_reserve_margin!$A:$A,L$886)*(L$913*8760)/L$196/1000,0)","v":0.20211681659592443},{"$f":"IFERROR(SUMIFS(raw_planning_reserve_margin!$P:$P,raw_planning_reserve_margin!$A:$A,M$886)*(M$913*8760)/M$196/1000,0)","v":0.20100427408116495},{"$f":"IFERROR(SUMIFS(raw_planning_reserve_margin!$P:$P,raw_planning_reserve_margin!$A:$A,N$886)*(N$913*8760)/N$196/1000,0)","v":0.20000975242142877},{"$f":"IFERROR(SUMIFS(raw_planning_reserve_margin!$P:$P,raw_planning_reserve_margin!$A:$A,O$886)*(O$913*8760)/O$196/1000,0)","v":0},{"$f":"IFERROR(SUMIFS(raw_planning_reserve_margin!$P:$P,raw_planning_reserve_margin!$A:$A,P$886)*(P$913*8760)/P$196/1000,0)","v":0.20576285099625666},{"$f":"IFERROR(SUMIFS(raw_planning_reserve_margin!$P:$P,raw_planning_reserve_margin!$A:$A,Q$886)*(Q$913*8760)/Q$196/1000,0)","v":0},{"$f":"IFERROR(SUMIFS(raw_planning_reserve_margin!$P:$P,raw_planning_reserve_margin!$A:$A,R$886)*(R$913*8760)/R$196/1000,0)","v":0},{"$f":"IFERROR(SUMIFS(raw_planning_reserve_margin!$P:$P,raw_planning_reserve_margin!$A:$A,S$886)*(S$913*8760)/S$196/1000,0)","v":0},{"$f":"IFERROR(SUMIFS(raw_planning_reserve_margin!$P:$P,raw_planning_reserve_margin!$A:$A,T$886)*(T$913*8760)/T$196/1000,0)","v":0.20455130397182811},{"$f":"IFERROR(SUMIFS(raw_planning_reserve_margin!$P:$P,raw_planning_reserve_margin!$A:$A,U$886)*(U$913*8760)/U$196/1000,0)","v":0},{"$f":"IFERROR(SUMIFS(raw_planning_reserve_margin!$P:$P,raw_planning_reserve_margin!$A:$A,V$886)*(V$913*8760)/V$196/1000,0)","v":0},{"$f":"IFERROR(SUMIFS(raw_planning_reserve_margin!$P:$P,raw_planning_reserve_margin!$A:$A,W$886)*(W$913*8760)/W$196/1000,0)","v":0},{"$f":"IFERROR(SUMIFS(raw_planning_reserve_margin!$P:$P,raw_planning_reserve_margin!$A:$A,X$886)*(X$913*8760)/X$196/1000,0)","v":0},{"$f":"IFERROR(SUMIFS(raw_planning_reserve_margin!$P:$P,raw_planning_reserve_margin!$A:$A,Y$886)*(Y$913*8760)/Y$196/1000,0)","v":0},{"$f":"IFERROR(SUMIFS(raw_planning_reserve_margin!$P:$P,raw_planning_reserve_margin!$A:$A,Z$886)*(Z$913*8760)/Z$196/1000,0)","v":0},{"$f":"IFERROR(SUMIFS(raw_planning_reserve_margin!$P:$P,raw_planning_reserve_margin!$A:$A,AA$886)*(AA$913*8760)/AA$196/1000,0)","v":0},{"$f":"IFERROR(SUMIFS(raw_planning_reserve_margin!$P:$P,raw_planning_reserve_margin!$A:$A,AB$886)*(AB$913*8760)/AB$196/1000,0)","v":0},{"$f":"IFERROR(SUMIFS(raw_planning_reserve_margin!$P:$P,raw_planning_reserve_margin!$A:$A,AC$886)*(AC$913*8760)/AC$196/1000,0)","v":0},{"$f":"IFERROR(SUMIFS(raw_planning_reserve_margin!$P:$P,raw_planning_reserve_margin!$A:$A,AD$886)*(AD$913*8760)/AD$196/1000,0)","v":0},{"$f":"IFERROR(SUMIFS(raw_planning_reserve_margin!$P:$P,raw_planning_reserve_margin!$A:$A,AE$886)*(AE$913*8760)/AE$196/1000,0)","v":0},{"$f":"IFERROR(SUMIFS(raw_planning_reserve_margin!$P:$P,raw_planning_reserve_margin!$A:$A,AF$886)*(AF$913*8760)/AF$196/1000,0)","v":0},{"$f":"IFERROR(SUMIFS(raw_planning_reserve_margin!$P:$P,raw_planning_reserve_margin!$A:$A,AG$886)*(AG$913*8760)/AG$196/1000,0)","v":0},{"$f":"IFERROR(SUMIFS(raw_planning_reserve_margin!$P:$P,raw_planning_reserve_margin!$A:$A,AH$886)*(AH$913*8760)/AH$196/1000,0)","v":0},{"$f":"IFERROR(SUMIFS(raw_planning_reserve_margin!$P:$P,raw_planning_reserve_margin!$A:$A,AI$886)*(AI$913*8760)/AI$196/1000,0)","v":0.25023130567810331},{"$f":"IFERROR(SUMIFS(raw_planning_reserve_margin!$P:$P,raw_planning_reserve_margin!$A:$A,AJ$886)*(AJ$913*8760)/AJ$196/1000,0)","v":0},{"$f":"IFERROR(SUMIFS(raw_planning_reserve_margin!$P:$P,raw_planning_reserve_margin!$A:$A,AK$886)*(AK$913*8760)/AK$196/1000,0)","v":0},{"$f":"IFERROR(SUMIFS(raw_planning_reserve_margin!$P:$P,raw_planning_reserve_margin!$A:$A,AL$886)*(AL$913*8760)/AL$196/1000,0)","v":0},{"$f":"IFERROR(SUMIFS(raw_planning_reserve_margin!$P:$P,raw_planning_reserve_margin!$A:$A,AM$886)*(AM$913*8760)/AM$196/1000,0)","v":0},{"$f":"IFERROR(SUMIFS(raw_planning_reserve_margin!$P:$P,raw_planning_reserve_margin!$A:$A,AN$886)*(AN$913*8760)/AN$196/1000,0)","v":0}]
[]
[]
[null,"Imports and Exports Summary"]
[]
[null,null,"Imports into CAISO"]
[null,null,"Path","Unit",2015,{"$f":"E921+1","v":2016},2017,2018,2019,2020,2021,2022,2023,2024,2025,2026,2027,2028,2029,2030,2031,2032,2033,2034,2035,2036,2037,2038,2039,2040,2041,2042,2043,2044,2045,2046,2047,2048,2049,2050]
[null,null,"BANC_to_CAISO","GWh",{"$f":"SUMIFS(raw_transmission_flows!$F:$F,raw_transmission_flows!$D:$D,E$921,raw_transmission_flows!$A:$A,$C922)/1000","v":0},{"$f":"SUMIFS(raw_transmission_flows!$F:$F,raw_transmission_flows!$D:$D,F$921,raw_transmission_flows!$A:$A,$C922)/1000","v":0},{"$f":"SUMIFS(raw_transmission_flows!$F:$F,raw_transmission_flows!$D:$D,G$921,raw_transmission_flows!$A:$A,$C922)/1000","v":0},{"$f":"SUMIFS(raw_transmission_flows!$F:$F,raw_transmission_flows!$D:$D,H$921,raw_transmission_flows!$A:$A,$C922)/1000","v":0},{"$f":"SUMIFS(raw_transmission_flows!$F:$F,raw_transmission_flows!$D:$D,I$921,raw_transmission_flows!$A:$A,$C922)/1000","v":0},{"$f":"SUMIFS(raw_transmission_flows!$F:$F,raw_transmission_flows!$D:$D,J$921,raw_transmission_flows!$A:$A,$C922)/1000","v":1710.3542560409601},{"$f":"SUMIFS(raw_transmission_flows!$F:$F,raw_transmission_flows!$D:$D,K$921,raw_transmission_flows!$A:$A,$C922)/1000","v":1512.8980879240701},{"$f":"SUMIFS(raw_transmission_flows!$F:$F,raw_transmission_flows!$D:$D,L$921,raw_transmission_flows!$A:$A,$C922)/1000","v":1291.0507697339801},{"$f":"SUMIFS(raw_transmission_flows!$F:$F,raw_transmission_flows!$D:$D,M$921,raw_transmission_flows!$A:$A,$C922)/1000","v":1448.1734152622},{"$f":"SUMIFS(raw_transmission_flows!$F:$F,raw_transmission_flows!$D:$D,N$921,raw_transmission_flows!$A:$A,$C922)/1000","v":1885.84830154615},{"$f":"SUMIFS(raw_transmission_flows!$F:$F,raw_transmission_flows!$D:$D,O$921,raw_transmission_flows!$A:$A,$C922)/1000","v":0},{"$f":"SUMIFS(raw_transmission_flows!$F:$F,raw_transmission_flows!$D:$D,P$921,raw_transmission_flows!$A:$A,$C922)/1000","v":1820.1091382418101},{"$f":"SUMIFS(raw_transmission_flows!$F:$F,raw_transmission_flows!$D:$D,Q$921,raw_transmission_flows!$A:$A,$C922)/1000","v":0},{"$f":"SUMIFS(raw_transmission_flows!$F:$F,raw_transmission_flows!$D:$D,R$921,raw_transmission_flows!$A:$A,$C922)/1000","v":0},{"$f":"SUMIFS(raw_transmission_flows!$F:$F,raw_transmission_flows!$D:$D,S$921,raw_transmission_flows!$A:$A,$C922)/1000","v":0},{"$f":"SUMIFS(raw_transmission_flows!$F:$F,raw_transmission_flows!$D:$D,T$921,raw_transmission_flows!$A:$A,$C922)/1000","v":743.35486952100302},{"$f":"SUMIFS(raw_transmission_flows!$F:$F,raw_transmission_flows!$D:$D,U$921,raw_transmission_flows!$A:$A,$C922)/1000","v":0},{"$f":"SUMIFS(raw_transmission_flows!$F:$F,raw_transmission_flows!$D:$D,V$921,raw_transmission_flows!$A:$A,$C922)/1000","v":0},{"$f":"SUMIFS(raw_transmission_flows!$F:$F,raw_transmission_flows!$D:$D,W$921,raw_transmission_flows!$A:$A,$C922)/1000","v":0},{"$f":"SUMIFS(raw_transmission_flows!$F:$F,raw_transmission_flows!$D:$D,X$921,raw_transmission_flows!$A:$A,$C922)/1000","v":0},{"$f":"SUMIFS(raw_transmission_flows!$F:$F,raw_transmission_flows!$D:$D,Y$921,raw_transmission_flows!$A:$A,$C922)/1000","v":0},{"$f":"SUMIFS(raw_transmission_flows!$F:$F,raw_transmission_flows!$D:$D,Z$921,raw_transmission_flows!$A:$A,$C922)/1000","v":0},{"$f":"SUMIFS(raw_transmission_flows!$F:$F,raw_transmission_flows!$D:$D,AA$921,raw_transmission_flows!$A:$A,$C922)/1000","v":0},{"$f":"SUMIFS(raw_transmission_flows!$F:$F,raw_transmission_flows!$D:$D,AB$921,raw_transmission_flows!$A:$A,$C922)/1000","v":0},{"$f":"SUMIFS(raw_transmission_flows!$F:$F,raw_transmission_flows!$D:$D,AC$921,raw_transmission_flows!$A:$A,$C922)/1000","v":0},{"$f":"SUMIFS(raw_transmission_flows!$F:$F,raw_transmission_flows!$D:$D,AD$921,raw_transmission_flows!$A:$A,$C922)/1000","v":0},{"$f":"SUMIFS(raw_transmission_flows!$F:$F,raw_transmission_flows!$D:$D,AE$921,raw_transmission_flows!$A:$A,$C922)/1000","v":0},{"$f":"SUMIFS(raw_transmission_flows!$F:$F,raw_transmission_flows!$D:$D,AF$921,raw_transmission_flows!$A:$A,$C922)/1000","v":0},{"$f":"SUMIFS(raw_transmission_flows!$F:$F,raw_transmission_flows!$D:$D,AG$921,raw_transmission_flows!$A:$A,$C922)/1000","v":0},{"$f":"SUMIFS(raw_transmission_flows!$F:$F,raw_transmission_flows!$D:$D,AH$921,raw_transmission_flows!$A:$A,$C922)/1000","v":0},{"$f":"SUMIFS(raw_transmission_flows!$F:$F,raw_transmission_flows!$D:$D,AI$921,raw_transmission_flows!$A:$A,$C922)/1000","v":54.775988743911405},{"$f":"SUMIFS(raw_transmission_flows!$F:$F,raw_transmission_flows!$D:$D,AJ$921,raw_transmission_flows!$A:$A,$C922)/1000","v":0},{"$f":"SUMIFS(raw_transmission_flows!$F:$F,raw_transmission_flows!$D:$D,AK$921,raw_transmission_flows!$A:$A,$C922)/1000","v":0},{"$f":"SUMIFS(raw_transmission_flows!$F:$F,raw_transmission_flows!$D:$D,AL$921,raw_transmission_flows!$A:$A,$C922)/1000","v":0},{"$f":"SUMIFS(raw_transmission_flows!$F:$F,raw_transmission_flows!$D:$D,AM$921,raw_transmission_flows!$A:$A,$C922)/1000","v":0},{"$f":"SUMIFS(raw_transmission_flows!$F:$F,raw_transmission_flows!$D:$D,AN$921,raw_transmission_flows!$A:$A,$C922)/1000","v":0}]
[null,null,"LDWP_to_CAISO","GWh",{"$f":"SUMIFS(raw_transmission_flows!$F:$F,raw_transmission_flows!$D:$D,E$921,raw_transmission_flows!$A:$A,$C923)/1000","v":0},{"$f":"SUMIFS(raw_transmission_flows!$F:$F,raw_transmission_flows!$D:$D,F$921,raw_transmission_flows!$A:$A,$C923)/1000","v":0},{"$f":"SUMIFS(raw_transmission_flows!$F:$F,raw_transmission_flows!$D:$D,G$921,raw_transmission_flows!$A:$A,$C923)/1000","v":0},{"$f":"SUMIFS(raw_transmission_flows!$F:$F,raw_transmission_flows!$D:$D,H$921,raw_transmission_flows!$A:$A,$C923)/1000","v":0},{"$f":"SUMIFS(raw_transmission_flows!$F:$F,raw_transmission_flows!$D:$D,I$921,raw_transmission_flows!$A:$A,$C923)/1000","v":0},{"$f":"SUMIFS(raw_transmission_flows!$F:$F,raw_transmission_flows!$D:$D,J$921,raw_transmission_flows!$A:$A,$C923)/1000","v":238.82179951133898},{"$f":"SUMIFS(raw_transmission_flows!$F:$F,raw_transmission_flows!$D:$D,K$921,raw_transmission_flows!$A:$A,$C923)/1000","v":192.10064131375998},{"$f":"SUMIFS(raw_transmission_flows!$F:$F,raw_transmission_flows!$D:$D,L$921,raw_transmission_flows!$A:$A,$C923)/1000","v":140.22499390569098},{"$f":"SUMIFS(raw_transmission_flows!$F:$F,raw_transmission_flows!$D:$D,M$921,raw_transmission_flows!$A:$A,$C923)/1000","v":177.50353604783601},{"$f":"SUMIFS(raw_transmission_flows!$F:$F,raw_transmission_flows!$D:$D,N$921,raw_transmission_flows!$A:$A,$C923)/1000","v":353.76131969438097},{"$f":"SUMIFS(raw_transmission_flows!$F:$F,raw_transmission_flows!$D:$D,O$921,raw_transmission_flows!$A:$A,$C923)/1000","v":0},{"$f":"SUMIFS(raw_transmission_flows!$F:$F,raw_transmission_flows!$D:$D,P$921,raw_transmission_flows!$A:$A,$C923)/1000","v":323.19595058762798},{"$f":"SUMIFS(raw_transmission_flows!$F:$F,raw_transmission_flows!$D:$D,Q$921,raw_transmission_flows!$A:$A,$C923)/1000","v":0},{"$f":"SUMIFS(raw_transmission_flows!$F:$F,raw_transmission_flows!$D:$D,R$921,raw_transmission_flows!$A:$A,$C923)/1000","v":0},{"$f":"SUMIFS(raw_transmission_flows!$F:$F,raw_transmission_flows!$D:$D,S$921,raw_transmission_flows!$A:$A,$C923)/1000","v":0},{"$f":"SUMIFS(raw_transmission_flows!$F:$F,raw_transmission_flows!$D:$D,T$921,raw_transmission_flows!$A:$A,$C923)/1000","v":41.0678000671004},{"$f":"SUMIFS(raw_transmission_flows!$F:$F,raw_transmission_flows!$D:$D,U$921,raw_transmission_flows!$A:$A,$C923)/1000","v":0},{"$f":"SUMIFS(raw_transmission_flows!$F:$F,raw_transmission_flows!$D:$D,V$921,raw_transmission_flows!$A:$A,$C923)/1000","v":0},{"$f":"SUMIFS(raw_transmission_flows!$F:$F,raw_transmission_flows!$D:$D,W$921,raw_transmission_flows!$A:$A,$C923)/1000","v":0},{"$f":"SUMIFS(raw_transmission_flows!$F:$F,raw_transmission_flows!$D:$D,X$921,raw_transmission_flows!$A:$A,$C923)/1000","v":0},{"$f":"SUMIFS(raw_transmission_flows!$F:$F,raw_transmission_flows!$D:$D,Y$921,raw_transmission_flows!$A:$A,$C923)/1000","v":0},{"$f":"SUMIFS(raw_transmission_flows!$F:$F,raw_transmission_flows!$D:$D,Z$921,raw_transmission_flows!$A:$A,$C923)/1000","v":0},{"$f":"SUMIFS(raw_transmission_flows!$F:$F,raw_transmission_flows!$D:$D,AA$921,raw_transmission_flows!$A:$A,$C923)/1000","v":0},{"$f":"SUMIFS(raw_transmission_flows!$F:$F,raw_transmission_flows!$D:$D,AB$921,raw_transmission_flows!$A:$A,$C923)/1000","v":0},{"$f":"SUMIFS(raw_transmission_flows!$F:$F,raw_transmission_flows!$D:$D,AC$921,raw_transmission_flows!$A:$A,$C923)/1000","v":0},{"$f":"SUMIFS(raw_transmission_flows!$F:$F,raw_transmission_flows!$D:$D,AD$921,raw_transmission_flows!$A:$A,$C923)/1000","v":0},{"$f":"SUMIFS(raw_transmission_flows!$F:$F,raw_transmission_flows!$D:$D,AE$921,raw_transmission_flows!$A:$A,$C923)/1000","v":0},{"$f":"SUMIFS(raw_transmission_flows!$F:$F,raw_transmission_flows!$D:$D,AF$921,raw_transmission_flows!$A:$A,$C923)/1000","v":0},{"$f":"SUMIFS(raw_transmission_flows!$F:$F,raw_transmission_flows!$D:$D,AG$921,raw_transmission_flows!$A:$A,$C923)/1000","v":0},{"$f":"SUMIFS(raw_transmission_flows!$F:$F,raw_transmission_flows!$D:$D,AH$921,raw_transmission_flows!$A:$A,$C923)/1000","v":0},{"$f":"SUMIFS(raw_transmission_flows!$F:$F,raw_transmission_flows!$D:$D,AI$921,raw_transmission_flows!$A:$A,$C923)/1000","v":140.317111838568},{"$f":"SUMIFS(raw_transmission_flows!$F:$F,raw_transmission_flows!$D:$D,AJ$921,raw_transmission_flows!$A:$A,$C923)/1000","v":0},{"$f":"SUMIFS(raw_transmission_flows!$F:$F,raw_transmission_flows!$D:$D,AK$921,raw_transmission_flows!$A:$A,$C923)/1000","v":0},{"$f":"SUMIFS(raw_transmission_flows!$F:$F,raw_transmission_flows!$D:$D,AL$921,raw_transmission_flows!$A:$A,$C923)/1000","v":0},{"$f":"SUMIFS(raw_transmission_flows!$F:$F,raw_transmission_flows!$D:$D,AM$921,raw_transmission_flows!$A:$A,$C923)/1000","v":0},{"$f":"SUMIFS(raw_transmission_flows!$F:$F,raw_transmission_flows!$D:$D,AN$921,raw_transmission_flows!$A:$A,$C923)/1000","v":0}]
[null,null,"IID_to_CAISO","GWh",{"$f":"SUMIFS(raw_transmission_flows!$F:$F,raw_transmission_flows!$D:$D,E$921,raw_transmission_flows!$A:$A,$C924)/1000","v":0},{"$f":"SUMIFS(raw_transmission_flows!$F:$F,raw_transmission_flows!$D:$D,F$921,raw_transmission_flows!$A:$A,$C924)/1000","v":0},{"$f":"SUMIFS(raw_transmission_flows!$F:$F,raw_transmission_flows!$D:$D,G$921,raw_transmission_flows!$A:$A,$C924)/1000","v":0},{"$f":"SUMIFS(raw_transmission_flows!$F:$F,raw_transmission_flows!$D:$D,H$921,raw_transmission_flows!$A:$A,$C924)/1000","v":0},{"$f":"SUMIFS(raw_transmission_flows!$F:$F,raw_transmission_flows!$D:$D,I$921,raw_transmission_flows!$A:$A,$C924)/1000","v":0},{"$f":"SUMIFS(raw_transmission_flows!$F:$F,raw_transmission_flows!$D:$D,J$921,raw_transmission_flows!$A:$A,$C924)/1000","v":2958.99779401461},{"$f":"SUMIFS(raw_transmission_flows!$F:$F,raw_transmission_flows!$D:$D,K$921,raw_transmission_flows!$A:$A,$C924)/1000","v":3023.9550573193901},{"$f":"SUMIFS(raw_transmission_flows!$F:$F,raw_transmission_flows!$D:$D,L$921,raw_transmission_flows!$A:$A,$C924)/1000","v":2610.1977665500999},{"$f":"SUMIFS(raw_transmission_flows!$F:$F,raw_transmission_flows!$D:$D,M$921,raw_transmission_flows!$A:$A,$C924)/1000","v":2480.9783377480303},{"$f":"SUMIFS(raw_transmission_flows!$F:$F,raw_transmission_flows!$D:$D,N$921,raw_transmission_flows!$A:$A,$C924)/1000","v":2690.8820694839496},{"$f":"SUMIFS(raw_transmission_flows!$F:$F,raw_transmission_flows!$D:$D,O$921,raw_transmission_flows!$A:$A,$C924)/1000","v":0},{"$f":"SUMIFS(raw_transmission_flows!$F:$F,raw_transmission_flows!$D:$D,P$921,raw_transmission_flows!$A:$A,$C924)/1000","v":2281.1668793357803},{"$f":"SUMIFS(raw_transmission_flows!$F:$F,raw_transmission_flows!$D:$D,Q$921,raw_transmission_flows!$A:$A,$C924)/1000","v":0},{"$f":"SUMIFS(raw_transmission_flows!$F:$F,raw_transmission_flows!$D:$D,R$921,raw_transmission_flows!$A:$A,$C924)/1000","v":0},{"$f":"SUMIFS(raw_transmission_flows!$F:$F,raw_transmission_flows!$D:$D,S$921,raw_transmission_flows!$A:$A,$C924)/1000","v":0},{"$f":"SUMIFS(raw_transmission_flows!$F:$F,raw_transmission_flows!$D:$D,T$921,raw_transmission_flows!$A:$A,$C924)/1000","v":1470.91331890887},{"$f":"SUMIFS(raw_transmission_flows!$F:$F,raw_transmission_flows!$D:$D,U$921,raw_transmission_flows!$A:$A,$C924)/1000","v":0},{"$f":"SUMIFS(raw_transmission_flows!$F:$F,raw_transmission_flows!$D:$D,V$921,raw_transmission_flows!$A:$A,$C924)/1000","v":0},{"$f":"SUMIFS(raw_transmission_flows!$F:$F,raw_transmission_flows!$D:$D,W$921,raw_transmission_flows!$A:$A,$C924)/1000","v":0},{"$f":"SUMIFS(raw_transmission_flows!$F:$F,raw_transmission_flows!$D:$D,X$921,raw_transmission_flows!$A:$A,$C924)/1000","v":0},{"$f":"SUMIFS(raw_transmission_flows!$F:$F,raw_transmission_flows!$D:$D,Y$921,raw_transmission_flows!$A:$A,$C924)/1000","v":0},{"$f":"SUMIFS(raw_transmission_flows!$F:$F,raw_transmission_flows!$D:$D,Z$921,raw_transmission_flows!$A:$A,$C924)/1000","v":0},{"$f":"SUMIFS(raw_transmission_flows!$F:$F,raw_transmission_flows!$D:$D,AA$921,raw_transmission_flows!$A:$A,$C924)/1000","v":0},{"$f":"SUMIFS(raw_transmission_flows!$F:$F,raw_transmission_flows!$D:$D,AB$921,raw_transmission_flows!$A:$A,$C924)/1000","v":0},{"$f":"SUMIFS(raw_transmission_flows!$F:$F,raw_transmission_flows!$D:$D,AC$921,raw_transmission_flows!$A:$A,$C924)/1000","v":0},{"$f":"SUMIFS(raw_transmission_flows!$F:$F,raw_transmission_flows!$D:$D,AD$921,raw_transmission_flows!$A:$A,$C924)/1000","v":0},{"$f":"SUMIFS(raw_transmission_flows!$F:$F,raw_transmission_flows!$D:$D,AE$921,raw_transmission_flows!$A:$A,$C924)/1000","v":0},{"$f":"SUMIFS(raw_transmission_flows!$F:$F,raw_transmission_flows!$D:$D,AF$921,raw_transmission_flows!$A:$A,$C924)/1000","v":0},{"$f":"SUMIFS(raw_transmission_flows!$F:$F,raw_transmission_flows!$D:$D,AG$921,raw_transmission_flows!$A:$A,$C924)/1000","v":0},{"$f":"SUMIFS(raw_transmission_flows!$F:$F,raw_transmission_flows!$D:$D,AH$921,raw_transmission_flows!$A:$A,$C924)/1000","v":0},{"$f":"SUMIFS(raw_transmission_flows!$F:$F,raw_transmission_flows!$D:$D,AI$921,raw_transmission_flows!$A:$A,$C924)/1000","v":333.00083542684098},{"$f":"SUMIFS(raw_transmission_flows!$F:$F,raw_transmission_flows!$D:$D,AJ$921,raw_transmission_flows!$A:$A,$C924)/1000","v":0},{"$f":"SUMIFS(raw_transmission_flows!$F:$F,raw_transmission_flows!$D:$D,AK$921,raw_transmission_flows!$A:$A,$C924)/1000","v":0},{"$f":"SUMIFS(raw_transmission_flows!$F:$F,raw_transmission_flows!$D:$D,AL$921,raw_transmission_flows!$A:$A,$C924)/1000","v":0},{"$f":"SUMIFS(raw_transmission_flows!$F:$F,raw_transmission_flows!$D:$D,AM$921,raw_transmission_flows!$A:$A,$C924)/1000","v":0},{"$f":"SUMIFS(raw_transmission_flows!$F:$F,raw_transmission_flows!$D:$D,AN$921,raw_transmission_flows!$A:$A,$C924)/1000","v":0}]
[null,null,"NW_to_CAISO_Unspecified","GWh",{"$f":"SUMIFS(raw_transmission_flows!$F:$F,raw_transmission_flows!$D:$D,E$921,raw_transmission_flows!$A:$A,$C925)/1000","v":0},{"$f":"SUMIFS(raw_transmission_flows!$F:$F,raw_transmission_flows!$D:$D,F$921,raw_transmission_flows!$A:$A,$C925)/1000","v":0},{"$f":"SUMIFS(raw_transmission_flows!$F:$F,raw_transmission_flows!$D:$D,G$921,raw_transmission_flows!$A:$A,$C925)/1000","v":0},{"$f":"SUMIFS(raw_transmission_flows!$F:$F,raw_transmission_flows!$D:$D,H$921,raw_transmission_flows!$A:$A,$C925)/1000","v":0},{"$f":"SUMIFS(raw_transmission_flows!$F:$F,raw_transmission_flows!$D:$D,I$921,raw_transmission_flows!$A:$A,$C925)/1000","v":0},{"$f":"SUMIFS(raw_transmission_flows!$F:$F,raw_transmission_flows!$D:$D,J$921,raw_transmission_flows!$A:$A,$C925)/1000","v":10930.6807402542},{"$f":"SUMIFS(raw_transmission_flows!$F:$F,raw_transmission_flows!$D:$D,K$921,raw_transmission_flows!$A:$A,$C925)/1000","v":8303.8125195671601},{"$f":"SUMIFS(raw_transmission_flows!$F:$F,raw_transmission_flows!$D:$D,L$921,raw_transmission_flows!$A:$A,$C925)/1000","v":7134.0861725051},{"$f":"SUMIFS(raw_transmission_flows!$F:$F,raw_transmission_flows!$D:$D,M$921,raw_transmission_flows!$A:$A,$C925)/1000","v":6807.9735703430797},{"$f":"SUMIFS(raw_transmission_flows!$F:$F,raw_transmission_flows!$D:$D,N$921,raw_transmission_flows!$A:$A,$C925)/1000","v":6448.6206051077097},{"$f":"SUMIFS(raw_transmission_flows!$F:$F,raw_transmission_flows!$D:$D,O$921,raw_transmission_flows!$A:$A,$C925)/1000","v":0},{"$f":"SUMIFS(raw_transmission_flows!$F:$F,raw_transmission_flows!$D:$D,P$921,raw_transmission_flows!$A:$A,$C925)/1000","v":4959.2516345978693},{"$f":"SUMIFS(raw_transmission_flows!$F:$F,raw_transmission_flows!$D:$D,Q$921,raw_transmission_flows!$A:$A,$C925)/1000","v":0},{"$f":"SUMIFS(raw_transmission_flows!$F:$F,raw_transmission_flows!$D:$D,R$921,raw_transmission_flows!$A:$A,$C925)/1000","v":0},{"$f":"SUMIFS(raw_transmission_flows!$F:$F,raw_transmission_flows!$D:$D,S$921,raw_transmission_flows!$A:$A,$C925)/1000","v":0},{"$f":"SUMIFS(raw_transmission_flows!$F:$F,raw_transmission_flows!$D:$D,T$921,raw_transmission_flows!$A:$A,$C925)/1000","v":3430.2590467651698},{"$f":"SUMIFS(raw_transmission_flows!$F:$F,raw_transmission_flows!$D:$D,U$921,raw_transmission_flows!$A:$A,$C925)/1000","v":0},{"$f":"SUMIFS(raw_transmission_flows!$F:$F,raw_transmission_flows!$D:$D,V$921,raw_transmission_flows!$A:$A,$C925)/1000","v":0},{"$f":"SUMIFS(raw_transmission_flows!$F:$F,raw_transmission_flows!$D:$D,W$921,raw_transmission_flows!$A:$A,$C925)/1000","v":0},{"$f":"SUMIFS(raw_transmission_flows!$F:$F,raw_transmission_flows!$D:$D,X$921,raw_transmission_flows!$A:$A,$C925)/1000","v":0},{"$f":"SUMIFS(raw_transmission_flows!$F:$F,raw_transmission_flows!$D:$D,Y$921,raw_transmission_flows!$A:$A,$C925)/1000","v":0},{"$f":"SUMIFS(raw_transmission_flows!$F:$F,raw_transmission_flows!$D:$D,Z$921,raw_transmission_flows!$A:$A,$C925)/1000","v":0},{"$f":"SUMIFS(raw_transmission_flows!$F:$F,raw_transmission_flows!$D:$D,AA$921,raw_transmission_flows!$A:$A,$C925)/1000","v":0},{"$f":"SUMIFS(raw_transmission_flows!$F:$F,raw_transmission_flows!$D:$D,AB$921,raw_transmission_flows!$A:$A,$C925)/1000","v":0},{"$f":"SUMIFS(raw_transmission_flows!$F:$F,raw_transmission_flows!$D:$D,AC$921,raw_transmission_flows!$A:$A,$C925)/1000","v":0},{"$f":"SUMIFS(raw_transmission_flows!$F:$F,raw_transmission_flows!$D:$D,AD$921,raw_transmission_flows!$A:$A,$C925)/1000","v":0},{"$f":"SUMIFS(raw_transmission_flows!$F:$F,raw_transmission_flows!$D:$D,AE$921,raw_transmission_flows!$A:$A,$C925)/1000","v":0},{"$f":"SUMIFS(raw_transmission_flows!$F:$F,raw_transmission_flows!$D:$D,AF$921,raw_transmission_flows!$A:$A,$C925)/1000","v":0},{"$f":"SUMIFS(raw_transmission_flows!$F:$F,raw_transmission_flows!$D:$D,AG$921,raw_transmission_flows!$A:$A,$C925)/1000","v":0},{"$f":"SUMIFS(raw_transmission_flows!$F:$F,raw_transmission_flows!$D:$D,AH$921,raw_transmission_flows!$A:$A,$C925)/1000","v":0},{"$f":"SUMIFS(raw_transmission_flows!$F:$F,raw_transmission_flows!$D:$D,AI$921,raw_transmission_flows!$A:$A,$C925)/1000","v":18.717256206729502},{"$f":"SUMIFS(raw_transmission_flows!$F:$F,raw_transmission_flows!$D:$D,AJ$921,raw_transmission_flows!$A:$A,$C925)/1000","v":0},{"$f":"SUMIFS(raw_transmission_flows!$F:$F,raw_transmission_flows!$D:$D,AK$921,raw_transmission_flows!$A:$A,$C925)/1000","v":0},{"$f":"SUMIFS(raw_transmission_flows!$F:$F,raw_transmission_flows!$D:$D,AL$921,raw_transmission_flows!$A:$A,$C925)/1000","v":0},{"$f":"SUMIFS(raw_transmission_flows!$F:$F,raw_transmission_flows!$D:$D,AM$921,raw_transmission_flows!$A:$A,$C925)/1000","v":0},{"$f":"SUMIFS(raw_transmission_flows!$F:$F,raw_transmission_flows!$D:$D,AN$921,raw_transmission_flows!$A:$A,$C925)/1000","v":0}]
[null,null,"SW_to_CAISO","GWh",{"$f":"SUMIFS(raw_transmission_flows!$F:$F,raw_transmission_flows!$D:$D,E$921,raw_transmission_flows!$A:$A,$C926)/1000","v":0},{"$f":"SUMIFS(raw_transmission_flows!$F:$F,raw_transmission_flows!$D:$D,F$921,raw_transmission_flows!$A:$A,$C926)/1000","v":0},{"$f":"SUMIFS(raw_transmission_flows!$F:$F,raw_transmission_flows!$D:$D,G$921,raw_transmission_flows!$A:$A,$C926)/1000","v":0},{"$f":"SUMIFS(raw_transmission_flows!$F:$F,raw_transmission_flows!$D:$D,H$921,raw_transmission_flows!$A:$A,$C926)/1000","v":0},{"$f":"SUMIFS(raw_transmission_flows!$F:$F,raw_transmission_flows!$D:$D,I$921,raw_transmission_flows!$A:$A,$C926)/1000","v":0},{"$f":"SUMIFS(raw_transmission_flows!$F:$F,raw_transmission_flows!$D:$D,J$921,raw_transmission_flows!$A:$A,$C926)/1000","v":11351.858208157801},{"$f":"SUMIFS(raw_transmission_flows!$F:$F,raw_transmission_flows!$D:$D,K$921,raw_transmission_flows!$A:$A,$C926)/1000","v":12109.943381720901},{"$f":"SUMIFS(raw_transmission_flows!$F:$F,raw_transmission_flows!$D:$D,L$921,raw_transmission_flows!$A:$A,$C926)/1000","v":12350.960246157299},{"$f":"SUMIFS(raw_transmission_flows!$F:$F,raw_transmission_flows!$D:$D,M$921,raw_transmission_flows!$A:$A,$C926)/1000","v":13894.323147198002},{"$f":"SUMIFS(raw_transmission_flows!$F:$F,raw_transmission_flows!$D:$D,N$921,raw_transmission_flows!$A:$A,$C926)/1000","v":16208.457795780201},{"$f":"SUMIFS(raw_transmission_flows!$F:$F,raw_transmission_flows!$D:$D,O$921,raw_transmission_flows!$A:$A,$C926)/1000","v":0},{"$f":"SUMIFS(raw_transmission_flows!$F:$F,raw_transmission_flows!$D:$D,P$921,raw_transmission_flows!$A:$A,$C926)/1000","v":13871.505049750102},{"$f":"SUMIFS(raw_transmission_flows!$F:$F,raw_transmission_flows!$D:$D,Q$921,raw_transmission_flows!$A:$A,$C926)/1000","v":0},{"$f":"SUMIFS(raw_transmission_flows!$F:$F,raw_transmission_flows!$D:$D,R$921,raw_transmission_flows!$A:$A,$C926)/1000","v":0},{"$f":"SUMIFS(raw_transmission_flows!$F:$F,raw_transmission_flows!$D:$D,S$921,raw_transmission_flows!$A:$A,$C926)/1000","v":0},{"$f":"SUMIFS(raw_transmission_flows!$F:$F,raw_transmission_flows!$D:$D,T$921,raw_transmission_flows!$A:$A,$C926)/1000","v":16050.5006631505},{"$f":"SUMIFS(raw_transmission_flows!$F:$F,raw_transmission_flows!$D:$D,U$921,raw_transmission_flows!$A:$A,$C926)/1000","v":0},{"$f":"SUMIFS(raw_transmission_flows!$F:$F,raw_transmission_flows!$D:$D,V$921,raw_transmission_flows!$A:$A,$C926)/1000","v":0},{"$f":"SUMIFS(raw_transmission_flows!$F:$F,raw_transmission_flows!$D:$D,W$921,raw_transmission_flows!$A:$A,$C926)/1000","v":0},{"$f":"SUMIFS(raw_transmission_flows!$F:$F,raw_transmission_flows!$D:$D,X$921,raw_transmission_flows!$A:$A,$C926)/1000","v":0},{"$f":"SUMIFS(raw_transmission_flows!$F:$F,raw_transmission_flows!$D:$D,Y$921,raw_transmission_flows!$A:$A,$C926)/1000","v":0},{"$f":"SUMIFS(raw_transmission_flows!$F:$F,raw_transmission_flows!$D:$D,Z$921,raw_transmission_flows!$A:$A,$C926)/1000","v":0},{"$f":"SUMIFS(raw_transmission_flows!$F:$F,raw_transmission_flows!$D:$D,AA$921,raw_transmission_flows!$A:$A,$C926)/1000","v":0},{"$f":"SUMIFS(raw_transmission_flows!$F:$F,raw_transmission_flows!$D:$D,AB$921,raw_transmission_flows!$A:$A,$C926)/1000","v":0},{"$f":"SUMIFS(raw_transmission_flows!$F:$F,raw_transmission_flows!$D:$D,AC$921,raw_transmission_flows!$A:$A,$C926)/1000","v":0},{"$f":"SUMIFS(raw_transmission_flows!$F:$F,raw_transmission_flows!$D:$D,AD$921,raw_transmission_flows!$A:$A,$C926)/1000","v":0},{"$f":"SUMIFS(raw_transmission_flows!$F:$F,raw_transmission_flows!$D:$D,AE$921,raw_transmission_flows!$A:$A,$C926)/1000","v":0},{"$f":"SUMIFS(raw_transmission_flows!$F:$F,raw_transmission_flows!$D:$D,AF$921,raw_transmission_flows!$A:$A,$C926)/1000","v":0},{"$f":"SUMIFS(raw_transmission_flows!$F:$F,raw_transmission_flows!$D:$D,AG$921,raw_transmission_flows!$A:$A,$C926)/1000","v":0},{"$f":"SUMIFS(raw_transmission_flows!$F:$F,raw_transmission_flows!$D:$D,AH$921,raw_transmission_flows!$A:$A,$C926)/1000","v":0},{"$f":"SUMIFS(raw_transmission_flows!$F:$F,raw_transmission_flows!$D:$D,AI$921,raw_transmission_flows!$A:$A,$C926)/1000","v":1433.39314998484},{"$f":"SUMIFS(raw_transmission_flows!$F:$F,raw_transmission_flows!$D:$D,AJ$921,raw_transmission_flows!$A:$A,$C926)/1000","v":0},{"$f":"SUMIFS(raw_transmission_flows!$F:$F,raw_transmission_flows!$D:$D,AK$921,raw_transmission_flows!$A:$A,$C926)/1000","v":0},{"$f":"SUMIFS(raw_transmission_flows!$F:$F,raw_transmission_flows!$D:$D,AL$921,raw_transmission_flows!$A:$A,$C926)/1000","v":0},{"$f":"SUMIFS(raw_transmission_flows!$F:$F,raw_transmission_flows!$D:$D,AM$921,raw_transmission_flows!$A:$A,$C926)/1000","v":0},{"$f":"SUMIFS(raw_transmission_flows!$F:$F,raw_transmission_flows!$D:$D,AN$921,raw_transmission_flows!$A:$A,$C926)/1000","v":0}]
[]
[null,null,"Exports out of CAISO"]
[null,null,"Path","Unit",2015,{"$f":"E929+1","v":2016},2017,2018,2019,2020,2021,2022,2023,2024,2025,2026,2027,2028,2029,2030,2031,2032,2033,2034,2035,2036,2037,2038,2039,2040,2041,2042,2043,2044,2045,2046,2047,2048,2049,2050]
[null,null,"BANC_to_CAISO","GWh",{"$f":"-SUMIFS(raw_transmission_flows!$G:$G,raw_transmission_flows!$D:$D,E$929,raw_transmission_flows!$A:$A,$C930)/1000","v":0},{"$f":"-SUMIFS(raw_transmission_flows!$G:$G,raw_transmission_flows!$D:$D,F$929,raw_transmission_flows!$A:$A,$C930)/1000","v":0},{"$f":"-SUMIFS(raw_transmission_flows!$G:$G,raw_transmission_flows!$D:$D,G$929,raw_transmission_flows!$A:$A,$C930)/1000","v":0},{"$f":"-SUMIFS(raw_transmission_flows!$G:$G,raw_transmission_flows!$D:$D,H$929,raw_transmission_flows!$A:$A,$C930)/1000","v":0},{"$f":"-SUMIFS(raw_transmission_flows!$G:$G,raw_transmission_flows!$D:$D,I$929,raw_transmission_flows!$A:$A,$C930)/1000","v":0},{"$f":"-SUMIFS(raw_transmission_flows!$G:$G,raw_transmission_flows!$D:$D,J$929,raw_transmission_flows!$A:$A,$C930)/1000","v":-51.068865401103103},{"$f":"-SUMIFS(raw_transmission_flows!$G:$G,raw_transmission_flows!$D:$D,K$929,raw_transmission_flows!$A:$A,$C930)/1000","v":-36.586652847351999},{"$f":"-SUMIFS(raw_transmission_flows!$G:$G,raw_transmission_flows!$D:$D,L$929,raw_transmission_flows!$A:$A,$C930)/1000","v":-11.6571471087476},{"$f":"-SUMIFS(raw_transmission_flows!$G:$G,raw_transmission_flows!$D:$D,M$929,raw_transmission_flows!$A:$A,$C930)/1000","v":-13.952042370620701},{"$f":"-SUMIFS(raw_transmission_flows!$G:$G,raw_transmission_flows!$D:$D,N$929,raw_transmission_flows!$A:$A,$C930)/1000","v":-7.2318381975689396},{"$f":"-SUMIFS(raw_transmission_flows!$G:$G,raw_transmission_flows!$D:$D,O$929,raw_transmission_flows!$A:$A,$C930)/1000","v":0},{"$f":"-SUMIFS(raw_transmission_flows!$G:$G,raw_transmission_flows!$D:$D,P$929,raw_transmission_flows!$A:$A,$C930)/1000","v":-0.19595262339505001},{"$f":"-SUMIFS(raw_transmission_flows!$G:$G,raw_transmission_flows!$D:$D,Q$929,raw_transmission_flows!$A:$A,$C930)/1000","v":0},{"$f":"-SUMIFS(raw_transmission_flows!$G:$G,raw_transmission_flows!$D:$D,R$929,raw_transmission_flows!$A:$A,$C930)/1000","v":0},{"$f":"-SUMIFS(raw_transmission_flows!$G:$G,raw_transmission_flows!$D:$D,S$929,raw_transmission_flows!$A:$A,$C930)/1000","v":0},{"$f":"-SUMIFS(raw_transmission_flows!$G:$G,raw_transmission_flows!$D:$D,T$929,raw_transmission_flows!$A:$A,$C930)/1000","v":-6.31534464742212},{"$f":"-SUMIFS(raw_transmission_flows!$G:$G,raw_transmission_flows!$D:$D,U$929,raw_transmission_flows!$A:$A,$C930)/1000","v":0},{"$f":"-SUMIFS(raw_transmission_flows!$G:$G,raw_transmission_flows!$D:$D,V$929,raw_transmission_flows!$A:$A,$C930)/1000","v":0},{"$f":"-SUMIFS(raw_transmission_flows!$G:$G,raw_transmission_flows!$D:$D,W$929,raw_transmission_flows!$A:$A,$C930)/1000","v":0},{"$f":"-SUMIFS(raw_transmission_flows!$G:$G,raw_transmission_flows!$D:$D,X$929,raw_transmission_flows!$A:$A,$C930)/1000","v":0},{"$f":"-SUMIFS(raw_transmission_flows!$G:$G,raw_transmission_flows!$D:$D,Y$929,raw_transmission_flows!$A:$A,$C930)/1000","v":0},{"$f":"-SUMIFS(raw_transmission_flows!$G:$G,raw_transmission_flows!$D:$D,Z$929,raw_transmission_flows!$A:$A,$C930)/1000","v":0},{"$f":"-SUMIFS(raw_transmission_flows!$G:$G,raw_transmission_flows!$D:$D,AA$929,raw_transmission_flows!$A:$A,$C930)/1000","v":0},{"$f":"-SUMIFS(raw_transmission_flows!$G:$G,raw_transmission_flows!$D:$D,AB$929,raw_transmission_flows!$A:$A,$C930)/1000","v":0},{"$f":"-SUMIFS(raw_transmission_flows!$G:$G,raw_transmission_flows!$D:$D,AC$929,raw_transmission_flows!$A:$A,$C930)/1000","v":0},{"$f":"-SUMIFS(raw_transmission_flows!$G:$G,raw_transmission_flows!$D:$D,AD$929,raw_transmission_flows!$A:$A,$C930)/1000","v":0},{"$f":"-SUMIFS(raw_transmission_flows!$G:$G,raw_transmission_flows!$D:$D,AE$929,raw_transmission_flows!$A:$A,$C930)/1000","v":0},{"$f":"-SUMIFS(raw_transmission_flows!$G:$G,raw_transmission_flows!$D:$D,AF$929,raw_transmission_flows!$A:$A,$C930)/1000","v":0},{"$f":"-SUMIFS(raw_transmission_flows!$G:$G,raw_transmission_flows!$D:$D,AG$929,raw_transmission_flows!$A:$A,$C930)/1000","v":0},{"$f":"-SUMIFS(raw_transmission_flows!$G:$G,raw_transmission_flows!$D:$D,AH$929,raw_transmission_flows!$A:$A,$C930)/1000","v":0},{"$f":"-SUMIFS(raw_transmission_flows!$G:$G,raw_transmission_flows!$D:$D,AI$929,raw_transmission_flows!$A:$A,$C930)/1000","v":-826.77863253157795},{"$f":"-SUMIFS(raw_transmission_flows!$G:$G,raw_transmission_flows!$D:$D,AJ$929,raw_transmission_flows!$A:$A,$C930)/1000","v":0},{"$f":"-SUMIFS(raw_transmission_flows!$G:$G,raw_transmission_flows!$D:$D,AK$929,raw_transmission_flows!$A:$A,$C930)/1000","v":0},{"$f":"-SUMIFS(raw_transmission_flows!$G:$G,raw_transmission_flows!$D:$D,AL$929,raw_transmission_flows!$A:$A,$C930)/1000","v":0},{"$f":"-SUMIFS(raw_transmission_flows!$G:$G,raw_transmission_flows!$D:$D,AM$929,raw_transmission_flows!$A:$A,$C930)/1000","v":0},{"$f":"-SUMIFS(raw_transmission_flows!$G:$G,raw_transmission_flows!$D:$D,AN$929,raw_transmission_flows!$A:$A,$C930)/1000","v":0}]
[null,null,"LDWP_to_CAISO","GWh",{"$f":"-SUMIFS(raw_transmission_flows!$G:$G,raw_transmission_flows!$D:$D,E$929,raw_transmission_flows!$A:$A,$C931)/1000","v":0},{"$f":"-SUMIFS(raw_transmission_flows!$G:$G,raw_transmission_flows!$D:$D,F$929,raw_transmission_flows!$A:$A,$C931)/1000","v":0},{"$f":"-SUMIFS(raw_transmission_flows!$G:$G,raw_transmission_flows!$D:$D,G$929,raw_transmission_flows!$A:$A,$C931)/1000","v":0},{"$f":"-SUMIFS(raw_transmission_flows!$G:$G,raw_transmission_flows!$D:$D,H$929,raw_transmission_flows!$A:$A,$C931)/1000","v":0},{"$f":"-SUMIFS(raw_transmission_flows!$G:$G,raw_transmission_flows!$D:$D,I$929,raw_transmission_flows!$A:$A,$C931)/1000","v":0},{"$f":"-SUMIFS(raw_transmission_flows!$G:$G,raw_transmission_flows!$D:$D,J$929,raw_transmission_flows!$A:$A,$C931)/1000","v":-14.883281358582501},{"$f":"-SUMIFS(raw_transmission_flows!$G:$G,raw_transmission_flows!$D:$D,K$929,raw_transmission_flows!$A:$A,$C931)/1000","v":-4.3619015192931903},{"$f":"-SUMIFS(raw_transmission_flows!$G:$G,raw_transmission_flows!$D:$D,L$929,raw_transmission_flows!$A:$A,$C931)/1000","v":-4.9011318214282804},{"$f":"-SUMIFS(raw_transmission_flows!$G:$G,raw_transmission_flows!$D:$D,M$929,raw_transmission_flows!$A:$A,$C931)/1000","v":-1.85698269161647},{"$f":"-SUMIFS(raw_transmission_flows!$G:$G,raw_transmission_flows!$D:$D,N$929,raw_transmission_flows!$A:$A,$C931)/1000","v":-0.83359574831614303},{"$f":"-SUMIFS(raw_transmission_flows!$G:$G,raw_transmission_flows!$D:$D,O$929,raw_transmission_flows!$A:$A,$C931)/1000","v":0},{"$f":"-SUMIFS(raw_transmission_flows!$G:$G,raw_transmission_flows!$D:$D,P$929,raw_transmission_flows!$A:$A,$C931)/1000","v":0},{"$f":"-SUMIFS(raw_transmission_flows!$G:$G,raw_transmission_flows!$D:$D,Q$929,raw_transmission_flows!$A:$A,$C931)/1000","v":0},{"$f":"-SUMIFS(raw_transmission_flows!$G:$G,raw_transmission_flows!$D:$D,R$929,raw_transmission_flows!$A:$A,$C931)/1000","v":0},{"$f":"-SUMIFS(raw_transmission_flows!$G:$G,raw_transmission_flows!$D:$D,S$929,raw_transmission_flows!$A:$A,$C931)/1000","v":0},{"$f":"-SUMIFS(raw_transmission_flows!$G:$G,raw_transmission_flows!$D:$D,T$929,raw_transmission_flows!$A:$A,$C931)/1000","v":-2.0110683288149902},{"$f":"-SUMIFS(raw_transmission_flows!$G:$G,raw_transmission_flows!$D:$D,U$929,raw_transmission_flows!$A:$A,$C931)/1000","v":0},{"$f":"-SUMIFS(raw_transmission_flows!$G:$G,raw_transmission_flows!$D:$D,V$929,raw_transmission_flows!$A:$A,$C931)/1000","v":0},{"$f":"-SUMIFS(raw_transmission_flows!$G:$G,raw_transmission_flows!$D:$D,W$929,raw_transmission_flows!$A:$A,$C931)/1000","v":0},{"$f":"-SUMIFS(raw_transmission_flows!$G:$G,raw_transmission_flows!$D:$D,X$929,raw_transmission_flows!$A:$A,$C931)/1000","v":0},{"$f":"-SUMIFS(raw_transmission_flows!$G:$G,raw_transmission_flows!$D:$D,Y$929,raw_transmission_flows!$A:$A,$C931)/1000","v":0},{"$f":"-SUMIFS(raw_transmission_flows!$G:$G,raw_transmission_flows!$D:$D,Z$929,raw_transmission_flows!$A:$A,$C931)/1000","v":0},{"$f":"-SUMIFS(raw_transmission_flows!$G:$G,raw_transmission_flows!$D:$D,AA$929,raw_transmission_flows!$A:$A,$C931)/1000","v":0},{"$f":"-SUMIFS(raw_transmission_flows!$G:$G,raw_transmission_flows!$D:$D,AB$929,raw_transmission_flows!$A:$A,$C931)/1000","v":0},{"$f":"-SUMIFS(raw_transmission_flows!$G:$G,raw_transmission_flows!$D:$D,AC$929,raw_transmission_flows!$A:$A,$C931)/1000","v":0},{"$f":"-SUMIFS(raw_transmission_flows!$G:$G,raw_transmission_flows!$D:$D,AD$929,raw_transmission_flows!$A:$A,$C931)/1000","v":0},{"$f":"-SUMIFS(raw_transmission_flows!$G:$G,raw_transmission_flows!$D:$D,AE$929,raw_transmission_flows!$A:$A,$C931)/1000","v":0},{"$f":"-SUMIFS(raw_transmission_flows!$G:$G,raw_transmission_flows!$D:$D,AF$929,raw_transmission_flows!$A:$A,$C931)/1000","v":0},{"$f":"-SUMIFS(raw_transmission_flows!$G:$G,raw_transmission_flows!$D:$D,AG$929,raw_transmission_flows!$A:$A,$C931)/1000","v":0},{"$f":"-SUMIFS(raw_transmission_flows!$G:$G,raw_transmission_flows!$D:$D,AH$929,raw_transmission_flows!$A:$A,$C931)/1000","v":0},{"$f":"-SUMIFS(raw_transmission_flows!$G:$G,raw_transmission_flows!$D:$D,AI$929,raw_transmission_flows!$A:$A,$C931)/1000","v":-2203.49131455423},{"$f":"-SUMIFS(raw_transmission_flows!$G:$G,raw_transmission_flows!$D:$D,AJ$929,raw_transmission_flows!$A:$A,$C931)/1000","v":0},{"$f":"-SUMIFS(raw_transmission_flows!$G:$G,raw_transmission_flows!$D:$D,AK$929,raw_transmission_flows!$A:$A,$C931)/1000","v":0},{"$f":"-SUMIFS(raw_transmission_flows!$G:$G,raw_transmission_flows!$D:$D,AL$929,raw_transmission_flows!$A:$A,$C931)/1000","v":0},{"$f":"-SUMIFS(raw_transmission_flows!$G:$G,raw_transmission_flows!$D:$D,AM$929,raw_transmission_flows!$A:$A,$C931)/1000","v":0},{"$f":"-SUMIFS(raw_transmission_flows!$G:$G,raw_transmission_flows!$D:$D,AN$929,raw_transmission_flows!$A:$A,$C931)/1000","v":0}]
[null,null,"IID_to_CAISO","GWh",{"$f":"-SUMIFS(raw_transmission_flows!$G:$G,raw_transmission_flows!$D:$D,E$929,raw_transmission_flows!$A:$A,$C932)/1000","v":0},{"$f":"-SUMIFS(raw_transmission_flows!$G:$G,raw_transmission_flows!$D:$D,F$929,raw_transmission_flows!$A:$A,$C932)/1000","v":0},{"$f":"-SUMIFS(raw_transmission_flows!$G:$G,raw_transmission_flows!$D:$D,G$929,raw_transmission_flows!$A:$A,$C932)/1000","v":0},{"$f":"-SUMIFS(raw_transmission_flows!$G:$G,raw_transmission_flows!$D:$D,H$929,raw_transmission_flows!$A:$A,$C932)/1000","v":0},{"$f":"-SUMIFS(raw_transmission_flows!$G:$G,raw_transmission_flows!$D:$D,I$929,raw_transmission_flows!$A:$A,$C932)/1000","v":0},{"$f":"-SUMIFS(raw_transmission_flows!$G:$G,raw_transmission_flows!$D:$D,J$929,raw_transmission_flows!$A:$A,$C932)/1000","v":0},{"$f":"-SUMIFS(raw_transmission_flows!$G:$G,raw_transmission_flows!$D:$D,K$929,raw_transmission_flows!$A:$A,$C932)/1000","v":0},{"$f":"-SUMIFS(raw_transmission_flows!$G:$G,raw_transmission_flows!$D:$D,L$929,raw_transmission_flows!$A:$A,$C932)/1000","v":0},{"$f":"-SUMIFS(raw_transmission_flows!$G:$G,raw_transmission_flows!$D:$D,M$929,raw_transmission_flows!$A:$A,$C932)/1000","v":0},{"$f":"-SUMIFS(raw_transmission_flows!$G:$G,raw_transmission_flows!$D:$D,N$929,raw_transmission_flows!$A:$A,$C932)/1000","v":0},{"$f":"-SUMIFS(raw_transmission_flows!$G:$G,raw_transmission_flows!$D:$D,O$929,raw_transmission_flows!$A:$A,$C932)/1000","v":0},{"$f":"-SUMIFS(raw_transmission_flows!$G:$G,raw_transmission_flows!$D:$D,P$929,raw_transmission_flows!$A:$A,$C932)/1000","v":0},{"$f":"-SUMIFS(raw_transmission_flows!$G:$G,raw_transmission_flows!$D:$D,Q$929,raw_transmission_flows!$A:$A,$C932)/1000","v":0},{"$f":"-SUMIFS(raw_transmission_flows!$G:$G,raw_transmission_flows!$D:$D,R$929,raw_transmission_flows!$A:$A,$C932)/1000","v":0},{"$f":"-SUMIFS(raw_transmission_flows!$G:$G,raw_transmission_flows!$D:$D,S$929,raw_transmission_flows!$A:$A,$C932)/1000","v":0},{"$f":"-SUMIFS(raw_transmission_flows!$G:$G,raw_transmission_flows!$D:$D,T$929,raw_transmission_flows!$A:$A,$C932)/1000","v":0},{"$f":"-SUMIFS(raw_transmission_flows!$G:$G,raw_transmission_flows!$D:$D,U$929,raw_transmission_flows!$A:$A,$C932)/1000","v":0},{"$f":"-SUMIFS(raw_transmission_flows!$G:$G,raw_transmission_flows!$D:$D,V$929,raw_transmission_flows!$A:$A,$C932)/1000","v":0},{"$f":"-SUMIFS(raw_transmission_flows!$G:$G,raw_transmission_flows!$D:$D,W$929,raw_transmission_flows!$A:$A,$C932)/1000","v":0},{"$f":"-SUMIFS(raw_transmission_flows!$G:$G,raw_transmission_flows!$D:$D,X$929,raw_transmission_flows!$A:$A,$C932)/1000","v":0},{"$f":"-SUMIFS(raw_transmission_flows!$G:$G,raw_transmission_flows!$D:$D,Y$929,raw_transmission_flows!$A:$A,$C932)/1000","v":0},{"$f":"-SUMIFS(raw_transmission_flows!$G:$G,raw_transmission_flows!$D:$D,Z$929,raw_transmission_flows!$A:$A,$C932)/1000","v":0},{"$f":"-SUMIFS(raw_transmission_flows!$G:$G,raw_transmission_flows!$D:$D,AA$929,raw_transmission_flows!$A:$A,$C932)/1000","v":0},{"$f":"-SUMIFS(raw_transmission_flows!$G:$G,raw_transmission_flows!$D:$D,AB$929,raw_transmission_flows!$A:$A,$C932)/1000","v":0},{"$f":"-SUMIFS(raw_transmission_flows!$G:$G,raw_transmission_flows!$D:$D,AC$929,raw_transmission_flows!$A:$A,$C932)/1000","v":0},{"$f":"-SUMIFS(raw_transmission_flows!$G:$G,raw_transmission_flows!$D:$D,AD$929,raw_transmission_flows!$A:$A,$C932)/1000","v":0},{"$f":"-SUMIFS(raw_transmission_flows!$G:$G,raw_transmission_flows!$D:$D,AE$929,raw_transmission_flows!$A:$A,$C932)/1000","v":0},{"$f":"-SUMIFS(raw_transmission_flows!$G:$G,raw_transmission_flows!$D:$D,AF$929,raw_transmission_flows!$A:$A,$C932)/1000","v":0},{"$f":"-SUMIFS(raw_transmission_flows!$G:$G,raw_transmission_flows!$D:$D,AG$929,raw_transmission_flows!$A:$A,$C932)/1000","v":0},{"$f":"-SUMIFS(raw_transmission_flows!$G:$G,raw_transmission_flows!$D:$D,AH$929,raw_transmission_flows!$A:$A,$C932)/1000","v":0},{"$f":"-SUMIFS(raw_transmission_flows!$G:$G,raw_transmission_flows!$D:$D,AI$929,raw_transmission_flows!$A:$A,$C932)/1000","v":-0.86269287567041997},{"$f":"-SUMIFS(raw_transmission_flows!$G:$G,raw_transmission_flows!$D:$D,AJ$929,raw_transmission_flows!$A:$A,$C932)/1000","v":0},{"$f":"-SUMIFS(raw_transmission_flows!$G:$G,raw_transmission_flows!$D:$D,AK$929,raw_transmission_flows!$A:$A,$C932)/1000","v":0},{"$f":"-SUMIFS(raw_transmission_flows!$G:$G,raw_transmission_flows!$D:$D,AL$929,raw_transmission_flows!$A:$A,$C932)/1000","v":0},{"$f":"-SUMIFS(raw_transmission_flows!$G:$G,raw_transmission_flows!$D:$D,AM$929,raw_transmission_flows!$A:$A,$C932)/1000","v":0},{"$f":"-SUMIFS(raw_transmission_flows!$G:$G,raw_transmission_flows!$D:$D,AN$929,raw_transmission_flows!$A:$A,$C932)/1000","v":0}]
[null,null,"NW_to_CAISO_Unspecified","GWh",{"$f":"-SUMIFS(raw_transmission_flows!$G:$G,raw_transmission_flows!$D:$D,E$929,raw_transmission_flows!$A:$A,\"NW_to_CAISO\")/1000","v":0},{"$f":"-SUMIFS(raw_transmission_flows!$G:$G,raw_transmission_flows!$D:$D,F$929,raw_transmission_flows!$A:$A,\"NW_to_CAISO\")/1000","v":0},{"$f":"-SUMIFS(raw_transmission_flows!$G:$G,raw_transmission_flows!$D:$D,G$929,raw_transmission_flows!$A:$A,\"NW_to_CAISO\")/1000","v":0},{"$f":"-SUMIFS(raw_transmission_flows!$G:$G,raw_transmission_flows!$D:$D,H$929,raw_transmission_flows!$A:$A,\"NW_to_CAISO\")/1000","v":0},{"$f":"-SUMIFS(raw_transmission_flows!$G:$G,raw_transmission_flows!$D:$D,I$929,raw_transmission_flows!$A:$A,\"NW_to_CAISO\")/1000","v":0},{"$f":"-SUMIFS(raw_transmission_flows!$G:$G,raw_transmission_flows!$D:$D,J$929,raw_transmission_flows!$A:$A,\"NW_to_CAISO\")/1000","v":-45.239589950378601},{"$f":"-SUMIFS(raw_transmission_flows!$G:$G,raw_transmission_flows!$D:$D,K$929,raw_transmission_flows!$A:$A,\"NW_to_CAISO\")/1000","v":-41.453166430525805},{"$f":"-SUMIFS(raw_transmission_flows!$G:$G,raw_transmission_flows!$D:$D,L$929,raw_transmission_flows!$A:$A,\"NW_to_CAISO\")/1000","v":-277.27484778089001},{"$f":"-SUMIFS(raw_transmission_flows!$G:$G,raw_transmission_flows!$D:$D,M$929,raw_transmission_flows!$A:$A,\"NW_to_CAISO\")/1000","v":-406.755420794244},{"$f":"-SUMIFS(raw_transmission_flows!$G:$G,raw_transmission_flows!$D:$D,N$929,raw_transmission_flows!$A:$A,\"NW_to_CAISO\")/1000","v":-349.41796545146201},{"$f":"-SUMIFS(raw_transmission_flows!$G:$G,raw_transmission_flows!$D:$D,O$929,raw_transmission_flows!$A:$A,\"NW_to_CAISO\")/1000","v":0},{"$f":"-SUMIFS(raw_transmission_flows!$G:$G,raw_transmission_flows!$D:$D,P$929,raw_transmission_flows!$A:$A,\"NW_to_CAISO\")/1000","v":-307.14027733694599},{"$f":"-SUMIFS(raw_transmission_flows!$G:$G,raw_transmission_flows!$D:$D,Q$929,raw_transmission_flows!$A:$A,\"NW_to_CAISO\")/1000","v":0},{"$f":"-SUMIFS(raw_transmission_flows!$G:$G,raw_transmission_flows!$D:$D,R$929,raw_transmission_flows!$A:$A,\"NW_to_CAISO\")/1000","v":0},{"$f":"-SUMIFS(raw_transmission_flows!$G:$G,raw_transmission_flows!$D:$D,S$929,raw_transmission_flows!$A:$A,\"NW_to_CAISO\")/1000","v":0},{"$f":"-SUMIFS(raw_transmission_flows!$G:$G,raw_transmission_flows!$D:$D,T$929,raw_transmission_flows!$A:$A,\"NW_to_CAISO\")/1000","v":-899.09376559249097},{"$f":"-SUMIFS(raw_transmission_flows!$G:$G,raw_transmission_flows!$D:$D,U$929,raw_transmission_flows!$A:$A,\"NW_to_CAISO\")/1000","v":0},{"$f":"-SUMIFS(raw_transmission_flows!$G:$G,raw_transmission_flows!$D:$D,V$929,raw_transmission_flows!$A:$A,\"NW_to_CAISO\")/1000","v":0},{"$f":"-SUMIFS(raw_transmission_flows!$G:$G,raw_transmission_flows!$D:$D,W$929,raw_transmission_flows!$A:$A,\"NW_to_CAISO\")/1000","v":0},{"$f":"-SUMIFS(raw_transmission_flows!$G:$G,raw_transmission_flows!$D:$D,X$929,raw_transmission_flows!$A:$A,\"NW_to_CAISO\")/1000","v":0},{"$f":"-SUMIFS(raw_transmission_flows!$G:$G,raw_transmission_flows!$D:$D,Y$929,raw_transmission_flows!$A:$A,\"NW_to_CAISO\")/1000","v":0},{"$f":"-SUMIFS(raw_transmission_flows!$G:$G,raw_transmission_flows!$D:$D,Z$929,raw_transmission_flows!$A:$A,\"NW_to_CAISO\")/1000","v":0},{"$f":"-SUMIFS(raw_transmission_flows!$G:$G,raw_transmission_flows!$D:$D,AA$929,raw_transmission_flows!$A:$A,\"NW_to_CAISO\")/1000","v":0},{"$f":"-SUMIFS(raw_transmission_flows!$G:$G,raw_transmission_flows!$D:$D,AB$929,raw_transmission_flows!$A:$A,\"NW_to_CAISO\")/1000","v":0},{"$f":"-SUMIFS(raw_transmission_flows!$G:$G,raw_transmission_flows!$D:$D,AC$929,raw_transmission_flows!$A:$A,\"NW_to_CAISO\")/1000","v":0},{"$f":"-SUMIFS(raw_transmission_flows!$G:$G,raw_transmission_flows!$D:$D,AD$929,raw_transmission_flows!$A:$A,\"NW_to_CAISO\")/1000","v":0},{"$f":"-SUMIFS(raw_transmission_flows!$G:$G,raw_transmission_flows!$D:$D,AE$929,raw_transmission_flows!$A:$A,\"NW_to_CAISO\")/1000","v":0},{"$f":"-SUMIFS(raw_transmission_flows!$G:$G,raw_transmission_flows!$D:$D,AF$929,raw_transmission_flows!$A:$A,\"NW_to_CAISO\")/1000","v":0},{"$f":"-SUMIFS(raw_transmission_flows!$G:$G,raw_transmission_flows!$D:$D,AG$929,raw_transmission_flows!$A:$A,\"NW_to_CAISO\")/1000","v":0},{"$f":"-SUMIFS(raw_transmission_flows!$G:$G,raw_transmission_flows!$D:$D,AH$929,raw_transmission_flows!$A:$A,\"NW_to_CAISO\")/1000","v":0},{"$f":"-SUMIFS(raw_transmission_flows!$G:$G,raw_transmission_flows!$D:$D,AI$929,raw_transmission_flows!$A:$A,\"NW_to_CAISO\")/1000","v":-4233.1681065772991},{"$f":"-SUMIFS(raw_transmission_flows!$G:$G,raw_transmission_flows!$D:$D,AJ$929,raw_transmission_flows!$A:$A,\"NW_to_CAISO\")/1000","v":0},{"$f":"-SUMIFS(raw_transmission_flows!$G:$G,raw_transmission_flows!$D:$D,AK$929,raw_transmission_flows!$A:$A,\"NW_to_CAISO\")/1000","v":0},{"$f":"-SUMIFS(raw_transmission_flows!$G:$G,raw_transmission_flows!$D:$D,AL$929,raw_transmission_flows!$A:$A,\"NW_to_CAISO\")/1000","v":0},{"$f":"-SUMIFS(raw_transmission_flows!$G:$G,raw_transmission_flows!$D:$D,AM$929,raw_transmission_flows!$A:$A,\"NW_to_CAISO\")/1000","v":0},{"$f":"-SUMIFS(raw_transmission_flows!$G:$G,raw_transmission_flows!$D:$D,AN$929,raw_transmission_flows!$A:$A,\"NW_to_CAISO\")/1000","v":0}]
[null,null,"SW_to_CAISO","GWh",{"$f":"-SUMIFS(raw_transmission_flows!$G:$G,raw_transmission_flows!$D:$D,E$929,raw_transmission_flows!$A:$A,$C934)/1000","v":0},{"$f":"-SUMIFS(raw_transmission_flows!$G:$G,raw_transmission_flows!$D:$D,F$929,raw_transmission_flows!$A:$A,$C934)/1000","v":0},{"$f":"-SUMIFS(raw_transmission_flows!$G:$G,raw_transmission_flows!$D:$D,G$929,raw_transmission_flows!$A:$A,$C934)/1000","v":0},{"$f":"-SUMIFS(raw_transmission_flows!$G:$G,raw_transmission_flows!$D:$D,H$929,raw_transmission_flows!$A:$A,$C934)/1000","v":0},{"$f":"-SUMIFS(raw_transmission_flows!$G:$G,raw_transmission_flows!$D:$D,I$929,raw_transmission_flows!$A:$A,$C934)/1000","v":0},{"$f":"-SUMIFS(raw_transmission_flows!$G:$G,raw_transmission_flows!$D:$D,J$929,raw_transmission_flows!$A:$A,$C934)/1000","v":-745.68766765731402},{"$f":"-SUMIFS(raw_transmission_flows!$G:$G,raw_transmission_flows!$D:$D,K$929,raw_transmission_flows!$A:$A,$C934)/1000","v":-623.38490888370404},{"$f":"-SUMIFS(raw_transmission_flows!$G:$G,raw_transmission_flows!$D:$D,L$929,raw_transmission_flows!$A:$A,$C934)/1000","v":-1610.83334818924},{"$f":"-SUMIFS(raw_transmission_flows!$G:$G,raw_transmission_flows!$D:$D,M$929,raw_transmission_flows!$A:$A,$C934)/1000","v":-1958.9990850134402},{"$f":"-SUMIFS(raw_transmission_flows!$G:$G,raw_transmission_flows!$D:$D,N$929,raw_transmission_flows!$A:$A,$C934)/1000","v":-1927.0709223479701},{"$f":"-SUMIFS(raw_transmission_flows!$G:$G,raw_transmission_flows!$D:$D,O$929,raw_transmission_flows!$A:$A,$C934)/1000","v":0},{"$f":"-SUMIFS(raw_transmission_flows!$G:$G,raw_transmission_flows!$D:$D,P$929,raw_transmission_flows!$A:$A,$C934)/1000","v":-1912.82022833615},{"$f":"-SUMIFS(raw_transmission_flows!$G:$G,raw_transmission_flows!$D:$D,Q$929,raw_transmission_flows!$A:$A,$C934)/1000","v":0},{"$f":"-SUMIFS(raw_transmission_flows!$G:$G,raw_transmission_flows!$D:$D,R$929,raw_transmission_flows!$A:$A,$C934)/1000","v":0},{"$f":"-SUMIFS(raw_transmission_flows!$G:$G,raw_transmission_flows!$D:$D,S$929,raw_transmission_flows!$A:$A,$C934)/1000","v":0},{"$f":"-SUMIFS(raw_transmission_flows!$G:$G,raw_transmission_flows!$D:$D,T$929,raw_transmission_flows!$A:$A,$C934)/1000","v":-3572.4168880684601},{"$f":"-SUMIFS(raw_transmission_flows!$G:$G,raw_transmission_flows!$D:$D,U$929,raw_transmission_flows!$A:$A,$C934)/1000","v":0},{"$f":"-SUMIFS(raw_transmission_flows!$G:$G,raw_transmission_flows!$D:$D,V$929,raw_transmission_flows!$A:$A,$C934)/1000","v":0},{"$f":"-SUMIFS(raw_transmission_flows!$G:$G,raw_transmission_flows!$D:$D,W$929,raw_transmission_flows!$A:$A,$C934)/1000","v":0},{"$f":"-SUMIFS(raw_transmission_flows!$G:$G,raw_transmission_flows!$D:$D,X$929,raw_transmission_flows!$A:$A,$C934)/1000","v":0},{"$f":"-SUMIFS(raw_transmission_flows!$G:$G,raw_transmission_flows!$D:$D,Y$929,raw_transmission_flows!$A:$A,$C934)/1000","v":0},{"$f":"-SUMIFS(raw_transmission_flows!$G:$G,raw_transmission_flows!$D:$D,Z$929,raw_transmission_flows!$A:$A,$C934)/1000","v":0},{"$f":"-SUMIFS(raw_transmission_flows!$G:$G,raw_transmission_flows!$D:$D,AA$929,raw_transmission_flows!$A:$A,$C934)/1000","v":0},{"$f":"-SUMIFS(raw_transmission_flows!$G:$G,raw_transmission_flows!$D:$D,AB$929,raw_transmission_flows!$A:$A,$C934)/1000","v":0},{"$f":"-SUMIFS(raw_transmission_flows!$G:$G,raw_transmission_flows!$D:$D,AC$929,raw_transmission_flows!$A:$A,$C934)/1000","v":0},{"$f":"-SUMIFS(raw_transmission_flows!$G:$G,raw_transmission_flows!$D:$D,AD$929,raw_transmission_flows!$A:$A,$C934)/1000","v":0},{"$f":"-SUMIFS(raw_transmission_flows!$G:$G,raw_transmission_flows!$D:$D,AE$929,raw_transmission_flows!$A:$A,$C934)/1000","v":0},{"$f":"-SUMIFS(raw_transmission_flows!$G:$G,raw_transmission_flows!$D:$D,AF$929,raw_transmission_flows!$A:$A,$C934)/1000","v":0},{"$f":"-SUMIFS(raw_transmission_flows!$G:$G,raw_transmission_flows!$D:$D,AG$929,raw_transmission_flows!$A:$A,$C934)/1000","v":0},{"$f":"-SUMIFS(raw_transmission_flows!$G:$G,raw_transmission_flows!$D:$D,AH$929,raw_transmission_flows!$A:$A,$C934)/1000","v":0},{"$f":"-SUMIFS(raw_transmission_flows!$G:$G,raw_transmission_flows!$D:$D,AI$929,raw_transmission_flows!$A:$A,$C934)/1000","v":-16424.4024235615},{"$f":"-SUMIFS(raw_transmission_flows!$G:$G,raw_transmission_flows!$D:$D,AJ$929,raw_transmission_flows!$A:$A,$C934)/1000","v":0},{"$f":"-SUMIFS(raw_transmission_flows!$G:$G,raw_transmission_flows!$D:$D,AK$929,raw_transmission_flows!$A:$A,$C934)/1000","v":0},{"$f":"-SUMIFS(raw_transmission_flows!$G:$G,raw_transmission_flows!$D:$D,AL$929,raw_transmission_flows!$A:$A,$C934)/1000","v":0},{"$f":"-SUMIFS(raw_transmission_flows!$G:$G,raw_transmission_flows!$D:$D,AM$929,raw_transmission_flows!$A:$A,$C934)/1000","v":0},{"$f":"-SUMIFS(raw_transmission_flows!$G:$G,raw_transmission_flows!$D:$D,AN$929,raw_transmission_flows!$A:$A,$C934)/1000","v":0}]
[]
[]
[null,"Fixed Costs Summary"]
[]
[null,null,"CA Fixed Costs by Technology, excluding non-modelled, embedded costs"]
[null,null,"Technology","Unit",2015,{"$f":"E940+1","v":2016},2017,2018,2019,2020,2021,2022,2023,2024,2025,2026,2027,2028,2029,2030,2031,2032,2033,2034,2035,2036,2037,2038,2039,2040,2041,2042,2043,2044,2045,2046,2047,2048,2049,2050]
[null,null,{"$f":"Lists!B5","v":"CAISO_ST"},"$MM",{"$f":"SUM(SUMIFS(raw_resource_build!$S:$S,raw_resource_build!$A:$A,E$940,raw_resource_build!$E:$E,$C941)/10^6,\nSUMIFS(raw_resource_build!$T:$T,raw_resource_build!$A:$A,E$940,raw_resource_build!$E:$E,$C941)/10^6)","v":0},{"$f":"SUM(SUMIFS(raw_resource_build!$S:$S,raw_resource_build!$A:$A,F$940,raw_resource_build!$E:$E,$C941)/10^6,\nSUMIFS(raw_resource_build!$T:$T,raw_resource_build!$A:$A,F$940,raw_resource_build!$E:$E,$C941)/10^6)","v":0},{"$f":"SUM(SUMIFS(raw_resource_build!$S:$S,raw_resource_build!$A:$A,G$940,raw_resource_build!$E:$E,$C941)/10^6,\nSUMIFS(raw_resource_build!$T:$T,raw_resource_build!$A:$A,G$940,raw_resource_build!$E:$E,$C941)/10^6)","v":0},{"$f":"SUM(SUMIFS(raw_resource_build!$S:$S,raw_resource_build!$A:$A,H$940,raw_resource_build!$E:$E,$C941)/10^6,\nSUMIFS(raw_resource_build!$T:$T,raw_resource_build!$A:$A,H$940,raw_resource_build!$E:$E,$C941)/10^6)","v":0},{"$f":"SUM(SUMIFS(raw_resource_build!$S:$S,raw_resource_build!$A:$A,I$940,raw_resource_build!$E:$E,$C941)/10^6,\nSUMIFS(raw_resource_build!$T:$T,raw_resource_build!$A:$A,I$940,raw_resource_build!$E:$E,$C941)/10^6)","v":0},{"$f":"SUM(SUMIFS(raw_resource_build!$S:$S,raw_resource_build!$A:$A,J$940,raw_resource_build!$E:$E,$C941)/10^6,\nSUMIFS(raw_resource_build!$T:$T,raw_resource_build!$A:$A,J$940,raw_resource_build!$E:$E,$C941)/10^6)","v":41.491979819999997},{"$f":"SUM(SUMIFS(raw_resource_build!$S:$S,raw_resource_build!$A:$A,K$940,raw_resource_build!$E:$E,$C941)/10^6,\nSUMIFS(raw_resource_build!$T:$T,raw_resource_build!$A:$A,K$940,raw_resource_build!$E:$E,$C941)/10^6)","v":0},{"$f":"SUM(SUMIFS(raw_resource_build!$S:$S,raw_resource_build!$A:$A,L$940,raw_resource_build!$E:$E,$C941)/10^6,\nSUMIFS(raw_resource_build!$T:$T,raw_resource_build!$A:$A,L$940,raw_resource_build!$E:$E,$C941)/10^6)","v":0},{"$f":"SUM(SUMIFS(raw_resource_build!$S:$S,raw_resource_build!$A:$A,M$940,raw_resource_build!$E:$E,$C941)/10^6,\nSUMIFS(raw_resource_build!$T:$T,raw_resource_build!$A:$A,M$940,raw_resource_build!$E:$E,$C941)/10^6)","v":0},{"$f":"SUM(SUMIFS(raw_resource_build!$S:$S,raw_resource_build!$A:$A,N$940,raw_resource_build!$E:$E,$C941)/10^6,\nSUMIFS(raw_resource_build!$T:$T,raw_resource_build!$A:$A,N$940,raw_resource_build!$E:$E,$C941)/10^6)","v":0},{"$f":"SUM(SUMIFS(raw_resource_build!$S:$S,raw_resource_build!$A:$A,O$940,raw_resource_build!$E:$E,$C941)/10^6,\nSUMIFS(raw_resource_build!$T:$T,raw_resource_build!$A:$A,O$940,raw_resource_build!$E:$E,$C941)/10^6)","v":0},{"$f":"SUM(SUMIFS(raw_resource_build!$S:$S,raw_resource_build!$A:$A,P$940,raw_resource_build!$E:$E,$C941)/10^6,\nSUMIFS(raw_resource_build!$T:$T,raw_resource_build!$A:$A,P$940,raw_resource_build!$E:$E,$C941)/10^6)","v":0},{"$f":"SUM(SUMIFS(raw_resource_build!$S:$S,raw_resource_build!$A:$A,Q$940,raw_resource_build!$E:$E,$C941)/10^6,\nSUMIFS(raw_resource_build!$T:$T,raw_resource_build!$A:$A,Q$940,raw_resource_build!$E:$E,$C941)/10^6)","v":0},{"$f":"SUM(SUMIFS(raw_resource_build!$S:$S,raw_resource_build!$A:$A,R$940,raw_resource_build!$E:$E,$C941)/10^6,\nSUMIFS(raw_resource_build!$T:$T,raw_resource_build!$A:$A,R$940,raw_resource_build!$E:$E,$C941)/10^6)","v":0},{"$f":"SUM(SUMIFS(raw_resource_build!$S:$S,raw_resource_build!$A:$A,S$940,raw_resource_build!$E:$E,$C941)/10^6,\nSUMIFS(raw_resource_build!$T:$T,raw_resource_build!$A:$A,S$940,raw_resource_build!$E:$E,$C941)/10^6)","v":0},{"$f":"SUM(SUMIFS(raw_resource_build!$S:$S,raw_resource_build!$A:$A,T$940,raw_resource_build!$E:$E,$C941)/10^6,\nSUMIFS(raw_resource_build!$T:$T,raw_resource_build!$A:$A,T$940,raw_resource_build!$E:$E,$C941)/10^6)","v":0},{"$f":"SUM(SUMIFS(raw_resource_build!$S:$S,raw_resource_build!$A:$A,U$940,raw_resource_build!$E:$E,$C941)/10^6,\nSUMIFS(raw_resource_build!$T:$T,raw_resource_build!$A:$A,U$940,raw_resource_build!$E:$E,$C941)/10^6)","v":0},{"$f":"SUM(SUMIFS(raw_resource_build!$S:$S,raw_resource_build!$A:$A,V$940,raw_resource_build!$E:$E,$C941)/10^6,\nSUMIFS(raw_resource_build!$T:$T,raw_resource_build!$A:$A,V$940,raw_resource_build!$E:$E,$C941)/10^6)","v":0},{"$f":"SUM(SUMIFS(raw_resource_build!$S:$S,raw_resource_build!$A:$A,W$940,raw_resource_build!$E:$E,$C941)/10^6,\nSUMIFS(raw_resource_build!$T:$T,raw_resource_build!$A:$A,W$940,raw_resource_build!$E:$E,$C941)/10^6)","v":0},{"$f":"SUM(SUMIFS(raw_resource_build!$S:$S,raw_resource_build!$A:$A,X$940,raw_resource_build!$E:$E,$C941)/10^6,\nSUMIFS(raw_resource_build!$T:$T,raw_resource_build!$A:$A,X$940,raw_resource_build!$E:$E,$C941)/10^6)","v":0},{"$f":"SUM(SUMIFS(raw_resource_build!$S:$S,raw_resource_build!$A:$A,Y$940,raw_resource_build!$E:$E,$C941)/10^6,\nSUMIFS(raw_resource_build!$T:$T,raw_resource_build!$A:$A,Y$940,raw_resource_build!$E:$E,$C941)/10^6)","v":0},{"$f":"SUM(SUMIFS(raw_resource_build!$S:$S,raw_resource_build!$A:$A,Z$940,raw_resource_build!$E:$E,$C941)/10^6,\nSUMIFS(raw_resource_build!$T:$T,raw_resource_build!$A:$A,Z$940,raw_resource_build!$E:$E,$C941)/10^6)","v":0},{"$f":"SUM(SUMIFS(raw_resource_build!$S:$S,raw_resource_build!$A:$A,AA$940,raw_resource_build!$E:$E,$C941)/10^6,\nSUMIFS(raw_resource_build!$T:$T,raw_resource_build!$A:$A,AA$940,raw_resource_build!$E:$E,$C941)/10^6)","v":0},{"$f":"SUM(SUMIFS(raw_resource_build!$S:$S,raw_resource_build!$A:$A,AB$940,raw_resource_build!$E:$E,$C941)/10^6,\nSUMIFS(raw_resource_build!$T:$T,raw_resource_build!$A:$A,AB$940,raw_resource_build!$E:$E,$C941)/10^6)","v":0},{"$f":"SUM(SUMIFS(raw_resource_build!$S:$S,raw_resource_build!$A:$A,AC$940,raw_resource_build!$E:$E,$C941)/10^6,\nSUMIFS(raw_resource_build!$T:$T,raw_resource_build!$A:$A,AC$940,raw_resource_build!$E:$E,$C941)/10^6)","v":0},{"$f":"SUM(SUMIFS(raw_resource_build!$S:$S,raw_resource_build!$A:$A,AD$940,raw_resource_build!$E:$E,$C941)/10^6,\nSUMIFS(raw_resource_build!$T:$T,raw_resource_build!$A:$A,AD$940,raw_resource_build!$E:$E,$C941)/10^6)","v":0},{"$f":"SUM(SUMIFS(raw_resource_build!$S:$S,raw_resource_build!$A:$A,AE$940,raw_resource_build!$E:$E,$C941)/10^6,\nSUMIFS(raw_resource_build!$T:$T,raw_resource_build!$A:$A,AE$940,raw_resource_build!$E:$E,$C941)/10^6)","v":0},{"$f":"SUM(SUMIFS(raw_resource_build!$S:$S,raw_resource_build!$A:$A,AF$940,raw_resource_build!$E:$E,$C941)/10^6,\nSUMIFS(raw_resource_build!$T:$T,raw_resource_build!$A:$A,AF$940,raw_resource_build!$E:$E,$C941)/10^6)","v":0},{"$f":"SUM(SUMIFS(raw_resource_build!$S:$S,raw_resource_build!$A:$A,AG$940,raw_resource_build!$E:$E,$C941)/10^6,\nSUMIFS(raw_resource_build!$T:$T,raw_resource_build!$A:$A,AG$940,raw_resource_build!$E:$E,$C941)/10^6)","v":0},{"$f":"SUM(SUMIFS(raw_resource_build!$S:$S,raw_resource_build!$A:$A,AH$940,raw_resource_build!$E:$E,$C941)/10^6,\nSUMIFS(raw_resource_build!$T:$T,raw_resource_build!$A:$A,AH$940,raw_resource_build!$E:$E,$C941)/10^6)","v":0},{"$f":"SUM(SUMIFS(raw_resource_build!$S:$S,raw_resource_build!$A:$A,AI$940,raw_resource_build!$E:$E,$C941)/10^6,\nSUMIFS(raw_resource_build!$T:$T,raw_resource_build!$A:$A,AI$940,raw_resource_build!$E:$E,$C941)/10^6)","v":0},{"$f":"SUM(SUMIFS(raw_resource_build!$S:$S,raw_resource_build!$A:$A,AJ$940,raw_resource_build!$E:$E,$C941)/10^6,\nSUMIFS(raw_resource_build!$T:$T,raw_resource_build!$A:$A,AJ$940,raw_resource_build!$E:$E,$C941)/10^6)","v":0},{"$f":"SUM(SUMIFS(raw_resource_build!$S:$S,raw_resource_build!$A:$A,AK$940,raw_resource_build!$E:$E,$C941)/10^6,\nSUMIFS(raw_resource_build!$T:$T,raw_resource_build!$A:$A,AK$940,raw_resource_build!$E:$E,$C941)/10^6)","v":0},{"$f":"SUM(SUMIFS(raw_resource_build!$S:$S,raw_resource_build!$A:$A,AL$940,raw_resource_build!$E:$E,$C941)/10^6,\nSUMIFS(raw_resource_build!$T:$T,raw_resource_build!$A:$A,AL$940,raw_resource_build!$E:$E,$C941)/10^6)","v":0},{"$f":"SUM(SUMIFS(raw_resource_build!$S:$S,raw_resource_build!$A:$A,AM$940,raw_resource_build!$E:$E,$C941)/10^6,\nSUMIFS(raw_resource_build!$T:$T,raw_resource_build!$A:$A,AM$940,raw_resource_build!$E:$E,$C941)/10^6)","v":0},{"$f":"SUM(SUMIFS(raw_resource_build!$S:$S,raw_resource_build!$A:$A,AN$940,raw_resource_build!$E:$E,$C941)/10^6,\nSUMIFS(raw_resource_build!$T:$T,raw_resource_build!$A:$A,AN$940,raw_resource_build!$E:$E,$C941)/10^6)","v":0}]
[null,null,{"$f":"Lists!B6","v":"CAISO_CCGT1"},"$MM",{"$f":"SUM(SUMIFS(raw_resource_build!$S:$S,raw_resource_build!$A:$A,E$940,raw_resource_build!$E:$E,$C942)/10^6,\nSUMIFS(raw_resource_build!$T:$T,raw_resource_build!$A:$A,E$940,raw_resource_build!$E:$E,$C942)/10^6)","v":0},{"$f":"SUM(SUMIFS(raw_resource_build!$S:$S,raw_resource_build!$A:$A,F$940,raw_resource_build!$E:$E,$C942)/10^6,\nSUMIFS(raw_resource_build!$T:$T,raw_resource_build!$A:$A,F$940,raw_resource_build!$E:$E,$C942)/10^6)","v":0},{"$f":"SUM(SUMIFS(raw_resource_build!$S:$S,raw_resource_build!$A:$A,G$940,raw_resource_build!$E:$E,$C942)/10^6,\nSUMIFS(raw_resource_build!$T:$T,raw_resource_build!$A:$A,G$940,raw_resource_build!$E:$E,$C942)/10^6)","v":0},{"$f":"SUM(SUMIFS(raw_resource_build!$S:$S,raw_resource_build!$A:$A,H$940,raw_resource_build!$E:$E,$C942)/10^6,\nSUMIFS(raw_resource_build!$T:$T,raw_resource_build!$A:$A,H$940,raw_resource_build!$E:$E,$C942)/10^6)","v":0},{"$f":"SUM(SUMIFS(raw_resource_build!$S:$S,raw_resource_build!$A:$A,I$940,raw_resource_build!$E:$E,$C942)/10^6,\nSUMIFS(raw_resource_build!$T:$T,raw_resource_build!$A:$A,I$940,raw_resource_build!$E:$E,$C942)/10^6)","v":0},{"$f":"SUM(SUMIFS(raw_resource_build!$S:$S,raw_resource_build!$A:$A,J$940,raw_resource_build!$E:$E,$C942)/10^6,\nSUMIFS(raw_resource_build!$T:$T,raw_resource_build!$A:$A,J$940,raw_resource_build!$E:$E,$C942)/10^6)","v":133.92884169999999},{"$f":"SUM(SUMIFS(raw_resource_build!$S:$S,raw_resource_build!$A:$A,K$940,raw_resource_build!$E:$E,$C942)/10^6,\nSUMIFS(raw_resource_build!$T:$T,raw_resource_build!$A:$A,K$940,raw_resource_build!$E:$E,$C942)/10^6)","v":148.2003933},{"$f":"SUM(SUMIFS(raw_resource_build!$S:$S,raw_resource_build!$A:$A,L$940,raw_resource_build!$E:$E,$C942)/10^6,\nSUMIFS(raw_resource_build!$T:$T,raw_resource_build!$A:$A,L$940,raw_resource_build!$E:$E,$C942)/10^6)","v":148.2003933},{"$f":"SUM(SUMIFS(raw_resource_build!$S:$S,raw_resource_build!$A:$A,M$940,raw_resource_build!$E:$E,$C942)/10^6,\nSUMIFS(raw_resource_build!$T:$T,raw_resource_build!$A:$A,M$940,raw_resource_build!$E:$E,$C942)/10^6)","v":148.2003933},{"$f":"SUM(SUMIFS(raw_resource_build!$S:$S,raw_resource_build!$A:$A,N$940,raw_resource_build!$E:$E,$C942)/10^6,\nSUMIFS(raw_resource_build!$T:$T,raw_resource_build!$A:$A,N$940,raw_resource_build!$E:$E,$C942)/10^6)","v":148.2003933},{"$f":"SUM(SUMIFS(raw_resource_build!$S:$S,raw_resource_build!$A:$A,O$940,raw_resource_build!$E:$E,$C942)/10^6,\nSUMIFS(raw_resource_build!$T:$T,raw_resource_build!$A:$A,O$940,raw_resource_build!$E:$E,$C942)/10^6)","v":0},{"$f":"SUM(SUMIFS(raw_resource_build!$S:$S,raw_resource_build!$A:$A,P$940,raw_resource_build!$E:$E,$C942)/10^6,\nSUMIFS(raw_resource_build!$T:$T,raw_resource_build!$A:$A,P$940,raw_resource_build!$E:$E,$C942)/10^6)","v":148.2003933},{"$f":"SUM(SUMIFS(raw_resource_build!$S:$S,raw_resource_build!$A:$A,Q$940,raw_resource_build!$E:$E,$C942)/10^6,\nSUMIFS(raw_resource_build!$T:$T,raw_resource_build!$A:$A,Q$940,raw_resource_build!$E:$E,$C942)/10^6)","v":0},{"$f":"SUM(SUMIFS(raw_resource_build!$S:$S,raw_resource_build!$A:$A,R$940,raw_resource_build!$E:$E,$C942)/10^6,\nSUMIFS(raw_resource_build!$T:$T,raw_resource_build!$A:$A,R$940,raw_resource_build!$E:$E,$C942)/10^6)","v":0},{"$f":"SUM(SUMIFS(raw_resource_build!$S:$S,raw_resource_build!$A:$A,S$940,raw_resource_build!$E:$E,$C942)/10^6,\nSUMIFS(raw_resource_build!$T:$T,raw_resource_build!$A:$A,S$940,raw_resource_build!$E:$E,$C942)/10^6)","v":0},{"$f":"SUM(SUMIFS(raw_resource_build!$S:$S,raw_resource_build!$A:$A,T$940,raw_resource_build!$E:$E,$C942)/10^6,\nSUMIFS(raw_resource_build!$T:$T,raw_resource_build!$A:$A,T$940,raw_resource_build!$E:$E,$C942)/10^6)","v":148.2003933},{"$f":"SUM(SUMIFS(raw_resource_build!$S:$S,raw_resource_build!$A:$A,U$940,raw_resource_build!$E:$E,$C942)/10^6,\nSUMIFS(raw_resource_build!$T:$T,raw_resource_build!$A:$A,U$940,raw_resource_build!$E:$E,$C942)/10^6)","v":0},{"$f":"SUM(SUMIFS(raw_resource_build!$S:$S,raw_resource_build!$A:$A,V$940,raw_resource_build!$E:$E,$C942)/10^6,\nSUMIFS(raw_resource_build!$T:$T,raw_resource_build!$A:$A,V$940,raw_resource_build!$E:$E,$C942)/10^6)","v":0},{"$f":"SUM(SUMIFS(raw_resource_build!$S:$S,raw_resource_build!$A:$A,W$940,raw_resource_build!$E:$E,$C942)/10^6,\nSUMIFS(raw_resource_build!$T:$T,raw_resource_build!$A:$A,W$940,raw_resource_build!$E:$E,$C942)/10^6)","v":0},{"$f":"SUM(SUMIFS(raw_resource_build!$S:$S,raw_resource_build!$A:$A,X$940,raw_resource_build!$E:$E,$C942)/10^6,\nSUMIFS(raw_resource_build!$T:$T,raw_resource_build!$A:$A,X$940,raw_resource_build!$E:$E,$C942)/10^6)","v":0},{"$f":"SUM(SUMIFS(raw_resource_build!$S:$S,raw_resource_build!$A:$A,Y$940,raw_resource_build!$E:$E,$C942)/10^6,\nSUMIFS(raw_resource_build!$T:$T,raw_resource_build!$A:$A,Y$940,raw_resource_build!$E:$E,$C942)/10^6)","v":0},{"$f":"SUM(SUMIFS(raw_resource_build!$S:$S,raw_resource_build!$A:$A,Z$940,raw_resource_build!$E:$E,$C942)/10^6,\nSUMIFS(raw_resource_build!$T:$T,raw_resource_build!$A:$A,Z$940,raw_resource_build!$E:$E,$C942)/10^6)","v":0},{"$f":"SUM(SUMIFS(raw_resource_build!$S:$S,raw_resource_build!$A:$A,AA$940,raw_resource_build!$E:$E,$C942)/10^6,\nSUMIFS(raw_resource_build!$T:$T,raw_resource_build!$A:$A,AA$940,raw_resource_build!$E:$E,$C942)/10^6)","v":0},{"$f":"SUM(SUMIFS(raw_resource_build!$S:$S,raw_resource_build!$A:$A,AB$940,raw_resource_build!$E:$E,$C942)/10^6,\nSUMIFS(raw_resource_build!$T:$T,raw_resource_build!$A:$A,AB$940,raw_resource_build!$E:$E,$C942)/10^6)","v":0},{"$f":"SUM(SUMIFS(raw_resource_build!$S:$S,raw_resource_build!$A:$A,AC$940,raw_resource_build!$E:$E,$C942)/10^6,\nSUMIFS(raw_resource_build!$T:$T,raw_resource_build!$A:$A,AC$940,raw_resource_build!$E:$E,$C942)/10^6)","v":0},{"$f":"SUM(SUMIFS(raw_resource_build!$S:$S,raw_resource_build!$A:$A,AD$940,raw_resource_build!$E:$E,$C942)/10^6,\nSUMIFS(raw_resource_build!$T:$T,raw_resource_build!$A:$A,AD$940,raw_resource_build!$E:$E,$C942)/10^6)","v":0},{"$f":"SUM(SUMIFS(raw_resource_build!$S:$S,raw_resource_build!$A:$A,AE$940,raw_resource_build!$E:$E,$C942)/10^6,\nSUMIFS(raw_resource_build!$T:$T,raw_resource_build!$A:$A,AE$940,raw_resource_build!$E:$E,$C942)/10^6)","v":0},{"$f":"SUM(SUMIFS(raw_resource_build!$S:$S,raw_resource_build!$A:$A,AF$940,raw_resource_build!$E:$E,$C942)/10^6,\nSUMIFS(raw_resource_build!$T:$T,raw_resource_build!$A:$A,AF$940,raw_resource_build!$E:$E,$C942)/10^6)","v":0},{"$f":"SUM(SUMIFS(raw_resource_build!$S:$S,raw_resource_build!$A:$A,AG$940,raw_resource_build!$E:$E,$C942)/10^6,\nSUMIFS(raw_resource_build!$T:$T,raw_resource_build!$A:$A,AG$940,raw_resource_build!$E:$E,$C942)/10^6)","v":0},{"$f":"SUM(SUMIFS(raw_resource_build!$S:$S,raw_resource_build!$A:$A,AH$940,raw_resource_build!$E:$E,$C942)/10^6,\nSUMIFS(raw_resource_build!$T:$T,raw_resource_build!$A:$A,AH$940,raw_resource_build!$E:$E,$C942)/10^6)","v":0},{"$f":"SUM(SUMIFS(raw_resource_build!$S:$S,raw_resource_build!$A:$A,AI$940,raw_resource_build!$E:$E,$C942)/10^6,\nSUMIFS(raw_resource_build!$T:$T,raw_resource_build!$A:$A,AI$940,raw_resource_build!$E:$E,$C942)/10^6)","v":148.2003933},{"$f":"SUM(SUMIFS(raw_resource_build!$S:$S,raw_resource_build!$A:$A,AJ$940,raw_resource_build!$E:$E,$C942)/10^6,\nSUMIFS(raw_resource_build!$T:$T,raw_resource_build!$A:$A,AJ$940,raw_resource_build!$E:$E,$C942)/10^6)","v":0},{"$f":"SUM(SUMIFS(raw_resource_build!$S:$S,raw_resource_build!$A:$A,AK$940,raw_resource_build!$E:$E,$C942)/10^6,\nSUMIFS(raw_resource_build!$T:$T,raw_resource_build!$A:$A,AK$940,raw_resource_build!$E:$E,$C942)/10^6)","v":0},{"$f":"SUM(SUMIFS(raw_resource_build!$S:$S,raw_resource_build!$A:$A,AL$940,raw_resource_build!$E:$E,$C942)/10^6,\nSUMIFS(raw_resource_build!$T:$T,raw_resource_build!$A:$A,AL$940,raw_resource_build!$E:$E,$C942)/10^6)","v":0},{"$f":"SUM(SUMIFS(raw_resource_build!$S:$S,raw_resource_build!$A:$A,AM$940,raw_resource_build!$E:$E,$C942)/10^6,\nSUMIFS(raw_resource_build!$T:$T,raw_resource_build!$A:$A,AM$940,raw_resource_build!$E:$E,$C942)/10^6)","v":0},{"$f":"SUM(SUMIFS(raw_resource_build!$S:$S,raw_resource_build!$A:$A,AN$940,raw_resource_build!$E:$E,$C942)/10^6,\nSUMIFS(raw_resource_build!$T:$T,raw_resource_build!$A:$A,AN$940,raw_resource_build!$E:$E,$C942)/10^6)","v":0}]
[null,null,{"$f":"Lists!B7","v":"CAISO_CCGT2"},"$MM",{"$f":"SUM(SUMIFS(raw_resource_build!$S:$S,raw_resource_build!$A:$A,E$940,raw_resource_build!$E:$E,$C943)/10^6,\nSUMIFS(raw_resource_build!$T:$T,raw_resource_build!$A:$A,E$940,raw_resource_build!$E:$E,$C943)/10^6)","v":0},{"$f":"SUM(SUMIFS(raw_resource_build!$S:$S,raw_resource_build!$A:$A,F$940,raw_resource_build!$E:$E,$C943)/10^6,\nSUMIFS(raw_resource_build!$T:$T,raw_resource_build!$A:$A,F$940,raw_resource_build!$E:$E,$C943)/10^6)","v":0},{"$f":"SUM(SUMIFS(raw_resource_build!$S:$S,raw_resource_build!$A:$A,G$940,raw_resource_build!$E:$E,$C943)/10^6,\nSUMIFS(raw_resource_build!$T:$T,raw_resource_build!$A:$A,G$940,raw_resource_build!$E:$E,$C943)/10^6)","v":0},{"$f":"SUM(SUMIFS(raw_resource_build!$S:$S,raw_resource_build!$A:$A,H$940,raw_resource_build!$E:$E,$C943)/10^6,\nSUMIFS(raw_resource_build!$T:$T,raw_resource_build!$A:$A,H$940,raw_resource_build!$E:$E,$C943)/10^6)","v":0},{"$f":"SUM(SUMIFS(raw_resource_build!$S:$S,raw_resource_build!$A:$A,I$940,raw_resource_build!$E:$E,$C943)/10^6,\nSUMIFS(raw_resource_build!$T:$T,raw_resource_build!$A:$A,I$940,raw_resource_build!$E:$E,$C943)/10^6)","v":0},{"$f":"SUM(SUMIFS(raw_resource_build!$S:$S,raw_resource_build!$A:$A,J$940,raw_resource_build!$E:$E,$C943)/10^6,\nSUMIFS(raw_resource_build!$T:$T,raw_resource_build!$A:$A,J$940,raw_resource_build!$E:$E,$C943)/10^6)","v":32.543694739999999},{"$f":"SUM(SUMIFS(raw_resource_build!$S:$S,raw_resource_build!$A:$A,K$940,raw_resource_build!$E:$E,$C943)/10^6,\nSUMIFS(raw_resource_build!$T:$T,raw_resource_build!$A:$A,K$940,raw_resource_build!$E:$E,$C943)/10^6)","v":32.543694739999999},{"$f":"SUM(SUMIFS(raw_resource_build!$S:$S,raw_resource_build!$A:$A,L$940,raw_resource_build!$E:$E,$C943)/10^6,\nSUMIFS(raw_resource_build!$T:$T,raw_resource_build!$A:$A,L$940,raw_resource_build!$E:$E,$C943)/10^6)","v":32.543694739999999},{"$f":"SUM(SUMIFS(raw_resource_build!$S:$S,raw_resource_build!$A:$A,M$940,raw_resource_build!$E:$E,$C943)/10^6,\nSUMIFS(raw_resource_build!$T:$T,raw_resource_build!$A:$A,M$940,raw_resource_build!$E:$E,$C943)/10^6)","v":32.543694739999999},{"$f":"SUM(SUMIFS(raw_resource_build!$S:$S,raw_resource_build!$A:$A,N$940,raw_resource_build!$E:$E,$C943)/10^6,\nSUMIFS(raw_resource_build!$T:$T,raw_resource_build!$A:$A,N$940,raw_resource_build!$E:$E,$C943)/10^6)","v":32.543694739999999},{"$f":"SUM(SUMIFS(raw_resource_build!$S:$S,raw_resource_build!$A:$A,O$940,raw_resource_build!$E:$E,$C943)/10^6,\nSUMIFS(raw_resource_build!$T:$T,raw_resource_build!$A:$A,O$940,raw_resource_build!$E:$E,$C943)/10^6)","v":0},{"$f":"SUM(SUMIFS(raw_resource_build!$S:$S,raw_resource_build!$A:$A,P$940,raw_resource_build!$E:$E,$C943)/10^6,\nSUMIFS(raw_resource_build!$T:$T,raw_resource_build!$A:$A,P$940,raw_resource_build!$E:$E,$C943)/10^6)","v":32.543694739999999},{"$f":"SUM(SUMIFS(raw_resource_build!$S:$S,raw_resource_build!$A:$A,Q$940,raw_resource_build!$E:$E,$C943)/10^6,\nSUMIFS(raw_resource_build!$T:$T,raw_resource_build!$A:$A,Q$940,raw_resource_build!$E:$E,$C943)/10^6)","v":0},{"$f":"SUM(SUMIFS(raw_resource_build!$S:$S,raw_resource_build!$A:$A,R$940,raw_resource_build!$E:$E,$C943)/10^6,\nSUMIFS(raw_resource_build!$T:$T,raw_resource_build!$A:$A,R$940,raw_resource_build!$E:$E,$C943)/10^6)","v":0},{"$f":"SUM(SUMIFS(raw_resource_build!$S:$S,raw_resource_build!$A:$A,S$940,raw_resource_build!$E:$E,$C943)/10^6,\nSUMIFS(raw_resource_build!$T:$T,raw_resource_build!$A:$A,S$940,raw_resource_build!$E:$E,$C943)/10^6)","v":0},{"$f":"SUM(SUMIFS(raw_resource_build!$S:$S,raw_resource_build!$A:$A,T$940,raw_resource_build!$E:$E,$C943)/10^6,\nSUMIFS(raw_resource_build!$T:$T,raw_resource_build!$A:$A,T$940,raw_resource_build!$E:$E,$C943)/10^6)","v":32.543694739999999},{"$f":"SUM(SUMIFS(raw_resource_build!$S:$S,raw_resource_build!$A:$A,U$940,raw_resource_build!$E:$E,$C943)/10^6,\nSUMIFS(raw_resource_build!$T:$T,raw_resource_build!$A:$A,U$940,raw_resource_build!$E:$E,$C943)/10^6)","v":0},{"$f":"SUM(SUMIFS(raw_resource_build!$S:$S,raw_resource_build!$A:$A,V$940,raw_resource_build!$E:$E,$C943)/10^6,\nSUMIFS(raw_resource_build!$T:$T,raw_resource_build!$A:$A,V$940,raw_resource_build!$E:$E,$C943)/10^6)","v":0},{"$f":"SUM(SUMIFS(raw_resource_build!$S:$S,raw_resource_build!$A:$A,W$940,raw_resource_build!$E:$E,$C943)/10^6,\nSUMIFS(raw_resource_build!$T:$T,raw_resource_build!$A:$A,W$940,raw_resource_build!$E:$E,$C943)/10^6)","v":0},{"$f":"SUM(SUMIFS(raw_resource_build!$S:$S,raw_resource_build!$A:$A,X$940,raw_resource_build!$E:$E,$C943)/10^6,\nSUMIFS(raw_resource_build!$T:$T,raw_resource_build!$A:$A,X$940,raw_resource_build!$E:$E,$C943)/10^6)","v":0},{"$f":"SUM(SUMIFS(raw_resource_build!$S:$S,raw_resource_build!$A:$A,Y$940,raw_resource_build!$E:$E,$C943)/10^6,\nSUMIFS(raw_resource_build!$T:$T,raw_resource_build!$A:$A,Y$940,raw_resource_build!$E:$E,$C943)/10^6)","v":0},{"$f":"SUM(SUMIFS(raw_resource_build!$S:$S,raw_resource_build!$A:$A,Z$940,raw_resource_build!$E:$E,$C943)/10^6,\nSUMIFS(raw_resource_build!$T:$T,raw_resource_build!$A:$A,Z$940,raw_resource_build!$E:$E,$C943)/10^6)","v":0},{"$f":"SUM(SUMIFS(raw_resource_build!$S:$S,raw_resource_build!$A:$A,AA$940,raw_resource_build!$E:$E,$C943)/10^6,\nSUMIFS(raw_resource_build!$T:$T,raw_resource_build!$A:$A,AA$940,raw_resource_build!$E:$E,$C943)/10^6)","v":0},{"$f":"SUM(SUMIFS(raw_resource_build!$S:$S,raw_resource_build!$A:$A,AB$940,raw_resource_build!$E:$E,$C943)/10^6,\nSUMIFS(raw_resource_build!$T:$T,raw_resource_build!$A:$A,AB$940,raw_resource_build!$E:$E,$C943)/10^6)","v":0},{"$f":"SUM(SUMIFS(raw_resource_build!$S:$S,raw_resource_build!$A:$A,AC$940,raw_resource_build!$E:$E,$C943)/10^6,\nSUMIFS(raw_resource_build!$T:$T,raw_resource_build!$A:$A,AC$940,raw_resource_build!$E:$E,$C943)/10^6)","v":0},{"$f":"SUM(SUMIFS(raw_resource_build!$S:$S,raw_resource_build!$A:$A,AD$940,raw_resource_build!$E:$E,$C943)/10^6,\nSUMIFS(raw_resource_build!$T:$T,raw_resource_build!$A:$A,AD$940,raw_resource_build!$E:$E,$C943)/10^6)","v":0},{"$f":"SUM(SUMIFS(raw_resource_build!$S:$S,raw_resource_build!$A:$A,AE$940,raw_resource_build!$E:$E,$C943)/10^6,\nSUMIFS(raw_resource_build!$T:$T,raw_resource_build!$A:$A,AE$940,raw_resource_build!$E:$E,$C943)/10^6)","v":0},{"$f":"SUM(SUMIFS(raw_resource_build!$S:$S,raw_resource_build!$A:$A,AF$940,raw_resource_build!$E:$E,$C943)/10^6,\nSUMIFS(raw_resource_build!$T:$T,raw_resource_build!$A:$A,AF$940,raw_resource_build!$E:$E,$C943)/10^6)","v":0},{"$f":"SUM(SUMIFS(raw_resource_build!$S:$S,raw_resource_build!$A:$A,AG$940,raw_resource_build!$E:$E,$C943)/10^6,\nSUMIFS(raw_resource_build!$T:$T,raw_resource_build!$A:$A,AG$940,raw_resource_build!$E:$E,$C943)/10^6)","v":0},{"$f":"SUM(SUMIFS(raw_resource_build!$S:$S,raw_resource_build!$A:$A,AH$940,raw_resource_build!$E:$E,$C943)/10^6,\nSUMIFS(raw_resource_build!$T:$T,raw_resource_build!$A:$A,AH$940,raw_resource_build!$E:$E,$C943)/10^6)","v":0},{"$f":"SUM(SUMIFS(raw_resource_build!$S:$S,raw_resource_build!$A:$A,AI$940,raw_resource_build!$E:$E,$C943)/10^6,\nSUMIFS(raw_resource_build!$T:$T,raw_resource_build!$A:$A,AI$940,raw_resource_build!$E:$E,$C943)/10^6)","v":32.543694739999999},{"$f":"SUM(SUMIFS(raw_resource_build!$S:$S,raw_resource_build!$A:$A,AJ$940,raw_resource_build!$E:$E,$C943)/10^6,\nSUMIFS(raw_resource_build!$T:$T,raw_resource_build!$A:$A,AJ$940,raw_resource_build!$E:$E,$C943)/10^6)","v":0},{"$f":"SUM(SUMIFS(raw_resource_build!$S:$S,raw_resource_build!$A:$A,AK$940,raw_resource_build!$E:$E,$C943)/10^6,\nSUMIFS(raw_resource_build!$T:$T,raw_resource_build!$A:$A,AK$940,raw_resource_build!$E:$E,$C943)/10^6)","v":0},{"$f":"SUM(SUMIFS(raw_resource_build!$S:$S,raw_resource_build!$A:$A,AL$940,raw_resource_build!$E:$E,$C943)/10^6,\nSUMIFS(raw_resource_build!$T:$T,raw_resource_build!$A:$A,AL$940,raw_resource_build!$E:$E,$C943)/10^6)","v":0},{"$f":"SUM(SUMIFS(raw_resource_build!$S:$S,raw_resource_build!$A:$A,AM$940,raw_resource_build!$E:$E,$C943)/10^6,\nSUMIFS(raw_resource_build!$T:$T,raw_resource_build!$A:$A,AM$940,raw_resource_build!$E:$E,$C943)/10^6)","v":0},{"$f":"SUM(SUMIFS(raw_resource_build!$S:$S,raw_resource_build!$A:$A,AN$940,raw_resource_build!$E:$E,$C943)/10^6,\nSUMIFS(raw_resource_build!$T:$T,raw_resource_build!$A:$A,AN$940,raw_resource_build!$E:$E,$C943)/10^6)","v":0}]
[null,null,{"$f":"Lists!B8","v":"CAISO_Peaker1"},"$MM",{"$f":"SUM(SUMIFS(raw_resource_build!$S:$S,raw_resource_build!$A:$A,E$940,raw_resource_build!$E:$E,$C944)/10^6,\nSUMIFS(raw_resource_build!$T:$T,raw_resource_build!$A:$A,E$940,raw_resource_build!$E:$E,$C944)/10^6)","v":0},{"$f":"SUM(SUMIFS(raw_resource_build!$S:$S,raw_resource_build!$A:$A,F$940,raw_resource_build!$E:$E,$C944)/10^6,\nSUMIFS(raw_resource_build!$T:$T,raw_resource_build!$A:$A,F$940,raw_resource_build!$E:$E,$C944)/10^6)","v":0},{"$f":"SUM(SUMIFS(raw_resource_build!$S:$S,raw_resource_build!$A:$A,G$940,raw_resource_build!$E:$E,$C944)/10^6,\nSUMIFS(raw_resource_build!$T:$T,raw_resource_build!$A:$A,G$940,raw_resource_build!$E:$E,$C944)/10^6)","v":0},{"$f":"SUM(SUMIFS(raw_resource_build!$S:$S,raw_resource_build!$A:$A,H$940,raw_resource_build!$E:$E,$C944)/10^6,\nSUMIFS(raw_resource_build!$T:$T,raw_resource_build!$A:$A,H$940,raw_resource_build!$E:$E,$C944)/10^6)","v":0},{"$f":"SUM(SUMIFS(raw_resource_build!$S:$S,raw_resource_build!$A:$A,I$940,raw_resource_build!$E:$E,$C944)/10^6,\nSUMIFS(raw_resource_build!$T:$T,raw_resource_build!$A:$A,I$940,raw_resource_build!$E:$E,$C944)/10^6)","v":0},{"$f":"SUM(SUMIFS(raw_resource_build!$S:$S,raw_resource_build!$A:$A,J$940,raw_resource_build!$E:$E,$C944)/10^6,\nSUMIFS(raw_resource_build!$T:$T,raw_resource_build!$A:$A,J$940,raw_resource_build!$E:$E,$C944)/10^6)","v":67.294545830000004},{"$f":"SUM(SUMIFS(raw_resource_build!$S:$S,raw_resource_build!$A:$A,K$940,raw_resource_build!$E:$E,$C944)/10^6,\nSUMIFS(raw_resource_build!$T:$T,raw_resource_build!$A:$A,K$940,raw_resource_build!$E:$E,$C944)/10^6)","v":67.294545830000004},{"$f":"SUM(SUMIFS(raw_resource_build!$S:$S,raw_resource_build!$A:$A,L$940,raw_resource_build!$E:$E,$C944)/10^6,\nSUMIFS(raw_resource_build!$T:$T,raw_resource_build!$A:$A,L$940,raw_resource_build!$E:$E,$C944)/10^6)","v":67.294545830000004},{"$f":"SUM(SUMIFS(raw_resource_build!$S:$S,raw_resource_build!$A:$A,M$940,raw_resource_build!$E:$E,$C944)/10^6,\nSUMIFS(raw_resource_build!$T:$T,raw_resource_build!$A:$A,M$940,raw_resource_build!$E:$E,$C944)/10^6)","v":67.294545830000004},{"$f":"SUM(SUMIFS(raw_resource_build!$S:$S,raw_resource_build!$A:$A,N$940,raw_resource_build!$E:$E,$C944)/10^6,\nSUMIFS(raw_resource_build!$T:$T,raw_resource_build!$A:$A,N$940,raw_resource_build!$E:$E,$C944)/10^6)","v":67.294545830000004},{"$f":"SUM(SUMIFS(raw_resource_build!$S:$S,raw_resource_build!$A:$A,O$940,raw_resource_build!$E:$E,$C944)/10^6,\nSUMIFS(raw_resource_build!$T:$T,raw_resource_build!$A:$A,O$940,raw_resource_build!$E:$E,$C944)/10^6)","v":0},{"$f":"SUM(SUMIFS(raw_resource_build!$S:$S,raw_resource_build!$A:$A,P$940,raw_resource_build!$E:$E,$C944)/10^6,\nSUMIFS(raw_resource_build!$T:$T,raw_resource_build!$A:$A,P$940,raw_resource_build!$E:$E,$C944)/10^6)","v":67.294545830000004},{"$f":"SUM(SUMIFS(raw_resource_build!$S:$S,raw_resource_build!$A:$A,Q$940,raw_resource_build!$E:$E,$C944)/10^6,\nSUMIFS(raw_resource_build!$T:$T,raw_resource_build!$A:$A,Q$940,raw_resource_build!$E:$E,$C944)/10^6)","v":0},{"$f":"SUM(SUMIFS(raw_resource_build!$S:$S,raw_resource_build!$A:$A,R$940,raw_resource_build!$E:$E,$C944)/10^6,\nSUMIFS(raw_resource_build!$T:$T,raw_resource_build!$A:$A,R$940,raw_resource_build!$E:$E,$C944)/10^6)","v":0},{"$f":"SUM(SUMIFS(raw_resource_build!$S:$S,raw_resource_build!$A:$A,S$940,raw_resource_build!$E:$E,$C944)/10^6,\nSUMIFS(raw_resource_build!$T:$T,raw_resource_build!$A:$A,S$940,raw_resource_build!$E:$E,$C944)/10^6)","v":0},{"$f":"SUM(SUMIFS(raw_resource_build!$S:$S,raw_resource_build!$A:$A,T$940,raw_resource_build!$E:$E,$C944)/10^6,\nSUMIFS(raw_resource_build!$T:$T,raw_resource_build!$A:$A,T$940,raw_resource_build!$E:$E,$C944)/10^6)","v":67.294545830000004},{"$f":"SUM(SUMIFS(raw_resource_build!$S:$S,raw_resource_build!$A:$A,U$940,raw_resource_build!$E:$E,$C944)/10^6,\nSUMIFS(raw_resource_build!$T:$T,raw_resource_build!$A:$A,U$940,raw_resource_build!$E:$E,$C944)/10^6)","v":0},{"$f":"SUM(SUMIFS(raw_resource_build!$S:$S,raw_resource_build!$A:$A,V$940,raw_resource_build!$E:$E,$C944)/10^6,\nSUMIFS(raw_resource_build!$T:$T,raw_resource_build!$A:$A,V$940,raw_resource_build!$E:$E,$C944)/10^6)","v":0},{"$f":"SUM(SUMIFS(raw_resource_build!$S:$S,raw_resource_build!$A:$A,W$940,raw_resource_build!$E:$E,$C944)/10^6,\nSUMIFS(raw_resource_build!$T:$T,raw_resource_build!$A:$A,W$940,raw_resource_build!$E:$E,$C944)/10^6)","v":0},{"$f":"SUM(SUMIFS(raw_resource_build!$S:$S,raw_resource_build!$A:$A,X$940,raw_resource_build!$E:$E,$C944)/10^6,\nSUMIFS(raw_resource_build!$T:$T,raw_resource_build!$A:$A,X$940,raw_resource_build!$E:$E,$C944)/10^6)","v":0},{"$f":"SUM(SUMIFS(raw_resource_build!$S:$S,raw_resource_build!$A:$A,Y$940,raw_resource_build!$E:$E,$C944)/10^6,\nSUMIFS(raw_resource_build!$T:$T,raw_resource_build!$A:$A,Y$940,raw_resource_build!$E:$E,$C944)/10^6)","v":0},{"$f":"SUM(SUMIFS(raw_resource_build!$S:$S,raw_resource_build!$A:$A,Z$940,raw_resource_build!$E:$E,$C944)/10^6,\nSUMIFS(raw_resource_build!$T:$T,raw_resource_build!$A:$A,Z$940,raw_resource_build!$E:$E,$C944)/10^6)","v":0},{"$f":"SUM(SUMIFS(raw_resource_build!$S:$S,raw_resource_build!$A:$A,AA$940,raw_resource_build!$E:$E,$C944)/10^6,\nSUMIFS(raw_resource_build!$T:$T,raw_resource_build!$A:$A,AA$940,raw_resource_build!$E:$E,$C944)/10^6)","v":0},{"$f":"SUM(SUMIFS(raw_resource_build!$S:$S,raw_resource_build!$A:$A,AB$940,raw_resource_build!$E:$E,$C944)/10^6,\nSUMIFS(raw_resource_build!$T:$T,raw_resource_build!$A:$A,AB$940,raw_resource_build!$E:$E,$C944)/10^6)","v":0},{"$f":"SUM(SUMIFS(raw_resource_build!$S:$S,raw_resource_build!$A:$A,AC$940,raw_resource_build!$E:$E,$C944)/10^6,\nSUMIFS(raw_resource_build!$T:$T,raw_resource_build!$A:$A,AC$940,raw_resource_build!$E:$E,$C944)/10^6)","v":0},{"$f":"SUM(SUMIFS(raw_resource_build!$S:$S,raw_resource_build!$A:$A,AD$940,raw_resource_build!$E:$E,$C944)/10^6,\nSUMIFS(raw_resource_build!$T:$T,raw_resource_build!$A:$A,AD$940,raw_resource_build!$E:$E,$C944)/10^6)","v":0},{"$f":"SUM(SUMIFS(raw_resource_build!$S:$S,raw_resource_build!$A:$A,AE$940,raw_resource_build!$E:$E,$C944)/10^6,\nSUMIFS(raw_resource_build!$T:$T,raw_resource_build!$A:$A,AE$940,raw_resource_build!$E:$E,$C944)/10^6)","v":0},{"$f":"SUM(SUMIFS(raw_resource_build!$S:$S,raw_resource_build!$A:$A,AF$940,raw_resource_build!$E:$E,$C944)/10^6,\nSUMIFS(raw_resource_build!$T:$T,raw_resource_build!$A:$A,AF$940,raw_resource_build!$E:$E,$C944)/10^6)","v":0},{"$f":"SUM(SUMIFS(raw_resource_build!$S:$S,raw_resource_build!$A:$A,AG$940,raw_resource_build!$E:$E,$C944)/10^6,\nSUMIFS(raw_resource_build!$T:$T,raw_resource_build!$A:$A,AG$940,raw_resource_build!$E:$E,$C944)/10^6)","v":0},{"$f":"SUM(SUMIFS(raw_resource_build!$S:$S,raw_resource_build!$A:$A,AH$940,raw_resource_build!$E:$E,$C944)/10^6,\nSUMIFS(raw_resource_build!$T:$T,raw_resource_build!$A:$A,AH$940,raw_resource_build!$E:$E,$C944)/10^6)","v":0},{"$f":"SUM(SUMIFS(raw_resource_build!$S:$S,raw_resource_build!$A:$A,AI$940,raw_resource_build!$E:$E,$C944)/10^6,\nSUMIFS(raw_resource_build!$T:$T,raw_resource_build!$A:$A,AI$940,raw_resource_build!$E:$E,$C944)/10^6)","v":43.316174320000002},{"$f":"SUM(SUMIFS(raw_resource_build!$S:$S,raw_resource_build!$A:$A,AJ$940,raw_resource_build!$E:$E,$C944)/10^6,\nSUMIFS(raw_resource_build!$T:$T,raw_resource_build!$A:$A,AJ$940,raw_resource_build!$E:$E,$C944)/10^6)","v":0},{"$f":"SUM(SUMIFS(raw_resource_build!$S:$S,raw_resource_build!$A:$A,AK$940,raw_resource_build!$E:$E,$C944)/10^6,\nSUMIFS(raw_resource_build!$T:$T,raw_resource_build!$A:$A,AK$940,raw_resource_build!$E:$E,$C944)/10^6)","v":0},{"$f":"SUM(SUMIFS(raw_resource_build!$S:$S,raw_resource_build!$A:$A,AL$940,raw_resource_build!$E:$E,$C944)/10^6,\nSUMIFS(raw_resource_build!$T:$T,raw_resource_build!$A:$A,AL$940,raw_resource_build!$E:$E,$C944)/10^6)","v":0},{"$f":"SUM(SUMIFS(raw_resource_build!$S:$S,raw_resource_build!$A:$A,AM$940,raw_resource_build!$E:$E,$C944)/10^6,\nSUMIFS(raw_resource_build!$T:$T,raw_resource_build!$A:$A,AM$940,raw_resource_build!$E:$E,$C944)/10^6)","v":0},{"$f":"SUM(SUMIFS(raw_resource_build!$S:$S,raw_resource_build!$A:$A,AN$940,raw_resource_build!$E:$E,$C944)/10^6,\nSUMIFS(raw_resource_build!$T:$T,raw_resource_build!$A:$A,AN$940,raw_resource_build!$E:$E,$C944)/10^6)","v":0}]
[null,null,{"$f":"Lists!B9","v":"CAISO_Peaker2"},"$MM",{"$f":"SUM(SUMIFS(raw_resource_build!$S:$S,raw_resource_build!$A:$A,E$940,raw_resource_build!$E:$E,$C945)/10^6,\nSUMIFS(raw_resource_build!$T:$T,raw_resource_build!$A:$A,E$940,raw_resource_build!$E:$E,$C945)/10^6)","v":0},{"$f":"SUM(SUMIFS(raw_resource_build!$S:$S,raw_resource_build!$A:$A,F$940,raw_resource_build!$E:$E,$C945)/10^6,\nSUMIFS(raw_resource_build!$T:$T,raw_resource_build!$A:$A,F$940,raw_resource_build!$E:$E,$C945)/10^6)","v":0},{"$f":"SUM(SUMIFS(raw_resource_build!$S:$S,raw_resource_build!$A:$A,G$940,raw_resource_build!$E:$E,$C945)/10^6,\nSUMIFS(raw_resource_build!$T:$T,raw_resource_build!$A:$A,G$940,raw_resource_build!$E:$E,$C945)/10^6)","v":0},{"$f":"SUM(SUMIFS(raw_resource_build!$S:$S,raw_resource_build!$A:$A,H$940,raw_resource_build!$E:$E,$C945)/10^6,\nSUMIFS(raw_resource_build!$T:$T,raw_resource_build!$A:$A,H$940,raw_resource_build!$E:$E,$C945)/10^6)","v":0},{"$f":"SUM(SUMIFS(raw_resource_build!$S:$S,raw_resource_build!$A:$A,I$940,raw_resource_build!$E:$E,$C945)/10^6,\nSUMIFS(raw_resource_build!$T:$T,raw_resource_build!$A:$A,I$940,raw_resource_build!$E:$E,$C945)/10^6)","v":0},{"$f":"SUM(SUMIFS(raw_resource_build!$S:$S,raw_resource_build!$A:$A,J$940,raw_resource_build!$E:$E,$C945)/10^6,\nSUMIFS(raw_resource_build!$T:$T,raw_resource_build!$A:$A,J$940,raw_resource_build!$E:$E,$C945)/10^6)","v":50.433420270000006},{"$f":"SUM(SUMIFS(raw_resource_build!$S:$S,raw_resource_build!$A:$A,K$940,raw_resource_build!$E:$E,$C945)/10^6,\nSUMIFS(raw_resource_build!$T:$T,raw_resource_build!$A:$A,K$940,raw_resource_build!$E:$E,$C945)/10^6)","v":50.433420270000006},{"$f":"SUM(SUMIFS(raw_resource_build!$S:$S,raw_resource_build!$A:$A,L$940,raw_resource_build!$E:$E,$C945)/10^6,\nSUMIFS(raw_resource_build!$T:$T,raw_resource_build!$A:$A,L$940,raw_resource_build!$E:$E,$C945)/10^6)","v":50.433420270000006},{"$f":"SUM(SUMIFS(raw_resource_build!$S:$S,raw_resource_build!$A:$A,M$940,raw_resource_build!$E:$E,$C945)/10^6,\nSUMIFS(raw_resource_build!$T:$T,raw_resource_build!$A:$A,M$940,raw_resource_build!$E:$E,$C945)/10^6)","v":50.433420270000006},{"$f":"SUM(SUMIFS(raw_resource_build!$S:$S,raw_resource_build!$A:$A,N$940,raw_resource_build!$E:$E,$C945)/10^6,\nSUMIFS(raw_resource_build!$T:$T,raw_resource_build!$A:$A,N$940,raw_resource_build!$E:$E,$C945)/10^6)","v":50.433420270000006},{"$f":"SUM(SUMIFS(raw_resource_build!$S:$S,raw_resource_build!$A:$A,O$940,raw_resource_build!$E:$E,$C945)/10^6,\nSUMIFS(raw_resource_build!$T:$T,raw_resource_build!$A:$A,O$940,raw_resource_build!$E:$E,$C945)/10^6)","v":0},{"$f":"SUM(SUMIFS(raw_resource_build!$S:$S,raw_resource_build!$A:$A,P$940,raw_resource_build!$E:$E,$C945)/10^6,\nSUMIFS(raw_resource_build!$T:$T,raw_resource_build!$A:$A,P$940,raw_resource_build!$E:$E,$C945)/10^6)","v":50.433420270000006},{"$f":"SUM(SUMIFS(raw_resource_build!$S:$S,raw_resource_build!$A:$A,Q$940,raw_resource_build!$E:$E,$C945)/10^6,\nSUMIFS(raw_resource_build!$T:$T,raw_resource_build!$A:$A,Q$940,raw_resource_build!$E:$E,$C945)/10^6)","v":0},{"$f":"SUM(SUMIFS(raw_resource_build!$S:$S,raw_resource_build!$A:$A,R$940,raw_resource_build!$E:$E,$C945)/10^6,\nSUMIFS(raw_resource_build!$T:$T,raw_resource_build!$A:$A,R$940,raw_resource_build!$E:$E,$C945)/10^6)","v":0},{"$f":"SUM(SUMIFS(raw_resource_build!$S:$S,raw_resource_build!$A:$A,S$940,raw_resource_build!$E:$E,$C945)/10^6,\nSUMIFS(raw_resource_build!$T:$T,raw_resource_build!$A:$A,S$940,raw_resource_build!$E:$E,$C945)/10^6)","v":0},{"$f":"SUM(SUMIFS(raw_resource_build!$S:$S,raw_resource_build!$A:$A,T$940,raw_resource_build!$E:$E,$C945)/10^6,\nSUMIFS(raw_resource_build!$T:$T,raw_resource_build!$A:$A,T$940,raw_resource_build!$E:$E,$C945)/10^6)","v":50.433420270000006},{"$f":"SUM(SUMIFS(raw_resource_build!$S:$S,raw_resource_build!$A:$A,U$940,raw_resource_build!$E:$E,$C945)/10^6,\nSUMIFS(raw_resource_build!$T:$T,raw_resource_build!$A:$A,U$940,raw_resource_build!$E:$E,$C945)/10^6)","v":0},{"$f":"SUM(SUMIFS(raw_resource_build!$S:$S,raw_resource_build!$A:$A,V$940,raw_resource_build!$E:$E,$C945)/10^6,\nSUMIFS(raw_resource_build!$T:$T,raw_resource_build!$A:$A,V$940,raw_resource_build!$E:$E,$C945)/10^6)","v":0},{"$f":"SUM(SUMIFS(raw_resource_build!$S:$S,raw_resource_build!$A:$A,W$940,raw_resource_build!$E:$E,$C945)/10^6,\nSUMIFS(raw_resource_build!$T:$T,raw_resource_build!$A:$A,W$940,raw_resource_build!$E:$E,$C945)/10^6)","v":0},{"$f":"SUM(SUMIFS(raw_resource_build!$S:$S,raw_resource_build!$A:$A,X$940,raw_resource_build!$E:$E,$C945)/10^6,\nSUMIFS(raw_resource_build!$T:$T,raw_resource_build!$A:$A,X$940,raw_resource_build!$E:$E,$C945)/10^6)","v":0},{"$f":"SUM(SUMIFS(raw_resource_build!$S:$S,raw_resource_build!$A:$A,Y$940,raw_resource_build!$E:$E,$C945)/10^6,\nSUMIFS(raw_resource_build!$T:$T,raw_resource_build!$A:$A,Y$940,raw_resource_build!$E:$E,$C945)/10^6)","v":0},{"$f":"SUM(SUMIFS(raw_resource_build!$S:$S,raw_resource_build!$A:$A,Z$940,raw_resource_build!$E:$E,$C945)/10^6,\nSUMIFS(raw_resource_build!$T:$T,raw_resource_build!$A:$A,Z$940,raw_resource_build!$E:$E,$C945)/10^6)","v":0},{"$f":"SUM(SUMIFS(raw_resource_build!$S:$S,raw_resource_build!$A:$A,AA$940,raw_resource_build!$E:$E,$C945)/10^6,\nSUMIFS(raw_resource_build!$T:$T,raw_resource_build!$A:$A,AA$940,raw_resource_build!$E:$E,$C945)/10^6)","v":0},{"$f":"SUM(SUMIFS(raw_resource_build!$S:$S,raw_resource_build!$A:$A,AB$940,raw_resource_build!$E:$E,$C945)/10^6,\nSUMIFS(raw_resource_build!$T:$T,raw_resource_build!$A:$A,AB$940,raw_resource_build!$E:$E,$C945)/10^6)","v":0},{"$f":"SUM(SUMIFS(raw_resource_build!$S:$S,raw_resource_build!$A:$A,AC$940,raw_resource_build!$E:$E,$C945)/10^6,\nSUMIFS(raw_resource_build!$T:$T,raw_resource_build!$A:$A,AC$940,raw_resource_build!$E:$E,$C945)/10^6)","v":0},{"$f":"SUM(SUMIFS(raw_resource_build!$S:$S,raw_resource_build!$A:$A,AD$940,raw_resource_build!$E:$E,$C945)/10^6,\nSUMIFS(raw_resource_build!$T:$T,raw_resource_build!$A:$A,AD$940,raw_resource_build!$E:$E,$C945)/10^6)","v":0},{"$f":"SUM(SUMIFS(raw_resource_build!$S:$S,raw_resource_build!$A:$A,AE$940,raw_resource_build!$E:$E,$C945)/10^6,\nSUMIFS(raw_resource_build!$T:$T,raw_resource_build!$A:$A,AE$940,raw_resource_build!$E:$E,$C945)/10^6)","v":0},{"$f":"SUM(SUMIFS(raw_resource_build!$S:$S,raw_resource_build!$A:$A,AF$940,raw_resource_build!$E:$E,$C945)/10^6,\nSUMIFS(raw_resource_build!$T:$T,raw_resource_build!$A:$A,AF$940,raw_resource_build!$E:$E,$C945)/10^6)","v":0},{"$f":"SUM(SUMIFS(raw_resource_build!$S:$S,raw_resource_build!$A:$A,AG$940,raw_resource_build!$E:$E,$C945)/10^6,\nSUMIFS(raw_resource_build!$T:$T,raw_resource_build!$A:$A,AG$940,raw_resource_build!$E:$E,$C945)/10^6)","v":0},{"$f":"SUM(SUMIFS(raw_resource_build!$S:$S,raw_resource_build!$A:$A,AH$940,raw_resource_build!$E:$E,$C945)/10^6,\nSUMIFS(raw_resource_build!$T:$T,raw_resource_build!$A:$A,AH$940,raw_resource_build!$E:$E,$C945)/10^6)","v":0},{"$f":"SUM(SUMIFS(raw_resource_build!$S:$S,raw_resource_build!$A:$A,AI$940,raw_resource_build!$E:$E,$C945)/10^6,\nSUMIFS(raw_resource_build!$T:$T,raw_resource_build!$A:$A,AI$940,raw_resource_build!$E:$E,$C945)/10^6)","v":22.78621957},{"$f":"SUM(SUMIFS(raw_resource_build!$S:$S,raw_resource_build!$A:$A,AJ$940,raw_resource_build!$E:$E,$C945)/10^6,\nSUMIFS(raw_resource_build!$T:$T,raw_resource_build!$A:$A,AJ$940,raw_resource_build!$E:$E,$C945)/10^6)","v":0},{"$f":"SUM(SUMIFS(raw_resource_build!$S:$S,raw_resource_build!$A:$A,AK$940,raw_resource_build!$E:$E,$C945)/10^6,\nSUMIFS(raw_resource_build!$T:$T,raw_resource_build!$A:$A,AK$940,raw_resource_build!$E:$E,$C945)/10^6)","v":0},{"$f":"SUM(SUMIFS(raw_resource_build!$S:$S,raw_resource_build!$A:$A,AL$940,raw_resource_build!$E:$E,$C945)/10^6,\nSUMIFS(raw_resource_build!$T:$T,raw_resource_build!$A:$A,AL$940,raw_resource_build!$E:$E,$C945)/10^6)","v":0},{"$f":"SUM(SUMIFS(raw_resource_build!$S:$S,raw_resource_build!$A:$A,AM$940,raw_resource_build!$E:$E,$C945)/10^6,\nSUMIFS(raw_resource_build!$T:$T,raw_resource_build!$A:$A,AM$940,raw_resource_build!$E:$E,$C945)/10^6)","v":0},{"$f":"SUM(SUMIFS(raw_resource_build!$S:$S,raw_resource_build!$A:$A,AN$940,raw_resource_build!$E:$E,$C945)/10^6,\nSUMIFS(raw_resource_build!$T:$T,raw_resource_build!$A:$A,AN$940,raw_resource_build!$E:$E,$C945)/10^6)","v":0}]
[null,null,{"$f":"Lists!B10","v":"CAISO_Advanced_CCGT"},"$MM",{"$f":"SUM(SUMIFS(raw_resource_build!$S:$S,raw_resource_build!$A:$A,E$940,raw_resource_build!$E:$E,$C946)/10^6,\nSUMIFS(raw_resource_build!$T:$T,raw_resource_build!$A:$A,E$940,raw_resource_build!$E:$E,$C946)/10^6)","v":0},{"$f":"SUM(SUMIFS(raw_resource_build!$S:$S,raw_resource_build!$A:$A,F$940,raw_resource_build!$E:$E,$C946)/10^6,\nSUMIFS(raw_resource_build!$T:$T,raw_resource_build!$A:$A,F$940,raw_resource_build!$E:$E,$C946)/10^6)","v":0},{"$f":"SUM(SUMIFS(raw_resource_build!$S:$S,raw_resource_build!$A:$A,G$940,raw_resource_build!$E:$E,$C946)/10^6,\nSUMIFS(raw_resource_build!$T:$T,raw_resource_build!$A:$A,G$940,raw_resource_build!$E:$E,$C946)/10^6)","v":0},{"$f":"SUM(SUMIFS(raw_resource_build!$S:$S,raw_resource_build!$A:$A,H$940,raw_resource_build!$E:$E,$C946)/10^6,\nSUMIFS(raw_resource_build!$T:$T,raw_resource_build!$A:$A,H$940,raw_resource_build!$E:$E,$C946)/10^6)","v":0},{"$f":"SUM(SUMIFS(raw_resource_build!$S:$S,raw_resource_build!$A:$A,I$940,raw_resource_build!$E:$E,$C946)/10^6,\nSUMIFS(raw_resource_build!$T:$T,raw_resource_build!$A:$A,I$940,raw_resource_build!$E:$E,$C946)/10^6)","v":0},{"$f":"SUM(SUMIFS(raw_resource_build!$S:$S,raw_resource_build!$A:$A,J$940,raw_resource_build!$E:$E,$C946)/10^6,\nSUMIFS(raw_resource_build!$T:$T,raw_resource_build!$A:$A,J$940,raw_resource_build!$E:$E,$C946)/10^6)","v":0},{"$f":"SUM(SUMIFS(raw_resource_build!$S:$S,raw_resource_build!$A:$A,K$940,raw_resource_build!$E:$E,$C946)/10^6,\nSUMIFS(raw_resource_build!$T:$T,raw_resource_build!$A:$A,K$940,raw_resource_build!$E:$E,$C946)/10^6)","v":0},{"$f":"SUM(SUMIFS(raw_resource_build!$S:$S,raw_resource_build!$A:$A,L$940,raw_resource_build!$E:$E,$C946)/10^6,\nSUMIFS(raw_resource_build!$T:$T,raw_resource_build!$A:$A,L$940,raw_resource_build!$E:$E,$C946)/10^6)","v":0},{"$f":"SUM(SUMIFS(raw_resource_build!$S:$S,raw_resource_build!$A:$A,M$940,raw_resource_build!$E:$E,$C946)/10^6,\nSUMIFS(raw_resource_build!$T:$T,raw_resource_build!$A:$A,M$940,raw_resource_build!$E:$E,$C946)/10^6)","v":0},{"$f":"SUM(SUMIFS(raw_resource_build!$S:$S,raw_resource_build!$A:$A,N$940,raw_resource_build!$E:$E,$C946)/10^6,\nSUMIFS(raw_resource_build!$T:$T,raw_resource_build!$A:$A,N$940,raw_resource_build!$E:$E,$C946)/10^6)","v":0},{"$f":"SUM(SUMIFS(raw_resource_build!$S:$S,raw_resource_build!$A:$A,O$940,raw_resource_build!$E:$E,$C946)/10^6,\nSUMIFS(raw_resource_build!$T:$T,raw_resource_build!$A:$A,O$940,raw_resource_build!$E:$E,$C946)/10^6)","v":0},{"$f":"SUM(SUMIFS(raw_resource_build!$S:$S,raw_resource_build!$A:$A,P$940,raw_resource_build!$E:$E,$C946)/10^6,\nSUMIFS(raw_resource_build!$T:$T,raw_resource_build!$A:$A,P$940,raw_resource_build!$E:$E,$C946)/10^6)","v":0},{"$f":"SUM(SUMIFS(raw_resource_build!$S:$S,raw_resource_build!$A:$A,Q$940,raw_resource_build!$E:$E,$C946)/10^6,\nSUMIFS(raw_resource_build!$T:$T,raw_resource_build!$A:$A,Q$940,raw_resource_build!$E:$E,$C946)/10^6)","v":0},{"$f":"SUM(SUMIFS(raw_resource_build!$S:$S,raw_resource_build!$A:$A,R$940,raw_resource_build!$E:$E,$C946)/10^6,\nSUMIFS(raw_resource_build!$T:$T,raw_resource_build!$A:$A,R$940,raw_resource_build!$E:$E,$C946)/10^6)","v":0},{"$f":"SUM(SUMIFS(raw_resource_build!$S:$S,raw_resource_build!$A:$A,S$940,raw_resource_build!$E:$E,$C946)/10^6,\nSUMIFS(raw_resource_build!$T:$T,raw_resource_build!$A:$A,S$940,raw_resource_build!$E:$E,$C946)/10^6)","v":0},{"$f":"SUM(SUMIFS(raw_resource_build!$S:$S,raw_resource_build!$A:$A,T$940,raw_resource_build!$E:$E,$C946)/10^6,\nSUMIFS(raw_resource_build!$T:$T,raw_resource_build!$A:$A,T$940,raw_resource_build!$E:$E,$C946)/10^6)","v":0},{"$f":"SUM(SUMIFS(raw_resource_build!$S:$S,raw_resource_build!$A:$A,U$940,raw_resource_build!$E:$E,$C946)/10^6,\nSUMIFS(raw_resource_build!$T:$T,raw_resource_build!$A:$A,U$940,raw_resource_build!$E:$E,$C946)/10^6)","v":0},{"$f":"SUM(SUMIFS(raw_resource_build!$S:$S,raw_resource_build!$A:$A,V$940,raw_resource_build!$E:$E,$C946)/10^6,\nSUMIFS(raw_resource_build!$T:$T,raw_resource_build!$A:$A,V$940,raw_resource_build!$E:$E,$C946)/10^6)","v":0},{"$f":"SUM(SUMIFS(raw_resource_build!$S:$S,raw_resource_build!$A:$A,W$940,raw_resource_build!$E:$E,$C946)/10^6,\nSUMIFS(raw_resource_build!$T:$T,raw_resource_build!$A:$A,W$940,raw_resource_build!$E:$E,$C946)/10^6)","v":0},{"$f":"SUM(SUMIFS(raw_resource_build!$S:$S,raw_resource_build!$A:$A,X$940,raw_resource_build!$E:$E,$C946)/10^6,\nSUMIFS(raw_resource_build!$T:$T,raw_resource_build!$A:$A,X$940,raw_resource_build!$E:$E,$C946)/10^6)","v":0},{"$f":"SUM(SUMIFS(raw_resource_build!$S:$S,raw_resource_build!$A:$A,Y$940,raw_resource_build!$E:$E,$C946)/10^6,\nSUMIFS(raw_resource_build!$T:$T,raw_resource_build!$A:$A,Y$940,raw_resource_build!$E:$E,$C946)/10^6)","v":0},{"$f":"SUM(SUMIFS(raw_resource_build!$S:$S,raw_resource_build!$A:$A,Z$940,raw_resource_build!$E:$E,$C946)/10^6,\nSUMIFS(raw_resource_build!$T:$T,raw_resource_build!$A:$A,Z$940,raw_resource_build!$E:$E,$C946)/10^6)","v":0},{"$f":"SUM(SUMIFS(raw_resource_build!$S:$S,raw_resource_build!$A:$A,AA$940,raw_resource_build!$E:$E,$C946)/10^6,\nSUMIFS(raw_resource_build!$T:$T,raw_resource_build!$A:$A,AA$940,raw_resource_build!$E:$E,$C946)/10^6)","v":0},{"$f":"SUM(SUMIFS(raw_resource_build!$S:$S,raw_resource_build!$A:$A,AB$940,raw_resource_build!$E:$E,$C946)/10^6,\nSUMIFS(raw_resource_build!$T:$T,raw_resource_build!$A:$A,AB$940,raw_resource_build!$E:$E,$C946)/10^6)","v":0},{"$f":"SUM(SUMIFS(raw_resource_build!$S:$S,raw_resource_build!$A:$A,AC$940,raw_resource_build!$E:$E,$C946)/10^6,\nSUMIFS(raw_resource_build!$T:$T,raw_resource_build!$A:$A,AC$940,raw_resource_build!$E:$E,$C946)/10^6)","v":0},{"$f":"SUM(SUMIFS(raw_resource_build!$S:$S,raw_resource_build!$A:$A,AD$940,raw_resource_build!$E:$E,$C946)/10^6,\nSUMIFS(raw_resource_build!$T:$T,raw_resource_build!$A:$A,AD$940,raw_resource_build!$E:$E,$C946)/10^6)","v":0},{"$f":"SUM(SUMIFS(raw_resource_build!$S:$S,raw_resource_build!$A:$A,AE$940,raw_resource_build!$E:$E,$C946)/10^6,\nSUMIFS(raw_resource_build!$T:$T,raw_resource_build!$A:$A,AE$940,raw_resource_build!$E:$E,$C946)/10^6)","v":0},{"$f":"SUM(SUMIFS(raw_resource_build!$S:$S,raw_resource_build!$A:$A,AF$940,raw_resource_build!$E:$E,$C946)/10^6,\nSUMIFS(raw_resource_build!$T:$T,raw_resource_build!$A:$A,AF$940,raw_resource_build!$E:$E,$C946)/10^6)","v":0},{"$f":"SUM(SUMIFS(raw_resource_build!$S:$S,raw_resource_build!$A:$A,AG$940,raw_resource_build!$E:$E,$C946)/10^6,\nSUMIFS(raw_resource_build!$T:$T,raw_resource_build!$A:$A,AG$940,raw_resource_build!$E:$E,$C946)/10^6)","v":0},{"$f":"SUM(SUMIFS(raw_resource_build!$S:$S,raw_resource_build!$A:$A,AH$940,raw_resource_build!$E:$E,$C946)/10^6,\nSUMIFS(raw_resource_build!$T:$T,raw_resource_build!$A:$A,AH$940,raw_resource_build!$E:$E,$C946)/10^6)","v":0},{"$f":"SUM(SUMIFS(raw_resource_build!$S:$S,raw_resource_build!$A:$A,AI$940,raw_resource_build!$E:$E,$C946)/10^6,\nSUMIFS(raw_resource_build!$T:$T,raw_resource_build!$A:$A,AI$940,raw_resource_build!$E:$E,$C946)/10^6)","v":0},{"$f":"SUM(SUMIFS(raw_resource_build!$S:$S,raw_resource_build!$A:$A,AJ$940,raw_resource_build!$E:$E,$C946)/10^6,\nSUMIFS(raw_resource_build!$T:$T,raw_resource_build!$A:$A,AJ$940,raw_resource_build!$E:$E,$C946)/10^6)","v":0},{"$f":"SUM(SUMIFS(raw_resource_build!$S:$S,raw_resource_build!$A:$A,AK$940,raw_resource_build!$E:$E,$C946)/10^6,\nSUMIFS(raw_resource_build!$T:$T,raw_resource_build!$A:$A,AK$940,raw_resource_build!$E:$E,$C946)/10^6)","v":0},{"$f":"SUM(SUMIFS(raw_resource_build!$S:$S,raw_resource_build!$A:$A,AL$940,raw_resource_build!$E:$E,$C946)/10^6,\nSUMIFS(raw_resource_build!$T:$T,raw_resource_build!$A:$A,AL$940,raw_resource_build!$E:$E,$C946)/10^6)","v":0},{"$f":"SUM(SUMIFS(raw_resource_build!$S:$S,raw_resource_build!$A:$A,AM$940,raw_resource_build!$E:$E,$C946)/10^6,\nSUMIFS(raw_resource_build!$T:$T,raw_resource_build!$A:$A,AM$940,raw_resource_build!$E:$E,$C946)/10^6)","v":0},{"$f":"SUM(SUMIFS(raw_resource_build!$S:$S,raw_resource_build!$A:$A,AN$940,raw_resource_build!$E:$E,$C946)/10^6,\nSUMIFS(raw_resource_build!$T:$T,raw_resource_build!$A:$A,AN$940,raw_resource_build!$E:$E,$C946)/10^6)","v":0}]
[null,null,{"$f":"Lists!B11","v":"CAISO_Aero_CT"},"$MM",{"$f":"SUM(SUMIFS(raw_resource_build!$S:$S,raw_resource_build!$A:$A,E$940,raw_resource_build!$E:$E,$C947)/10^6,\nSUMIFS(raw_resource_build!$T:$T,raw_resource_build!$A:$A,E$940,raw_resource_build!$E:$E,$C947)/10^6)","v":0},{"$f":"SUM(SUMIFS(raw_resource_build!$S:$S,raw_resource_build!$A:$A,F$940,raw_resource_build!$E:$E,$C947)/10^6,\nSUMIFS(raw_resource_build!$T:$T,raw_resource_build!$A:$A,F$940,raw_resource_build!$E:$E,$C947)/10^6)","v":0},{"$f":"SUM(SUMIFS(raw_resource_build!$S:$S,raw_resource_build!$A:$A,G$940,raw_resource_build!$E:$E,$C947)/10^6,\nSUMIFS(raw_resource_build!$T:$T,raw_resource_build!$A:$A,G$940,raw_resource_build!$E:$E,$C947)/10^6)","v":0},{"$f":"SUM(SUMIFS(raw_resource_build!$S:$S,raw_resource_build!$A:$A,H$940,raw_resource_build!$E:$E,$C947)/10^6,\nSUMIFS(raw_resource_build!$T:$T,raw_resource_build!$A:$A,H$940,raw_resource_build!$E:$E,$C947)/10^6)","v":0},{"$f":"SUM(SUMIFS(raw_resource_build!$S:$S,raw_resource_build!$A:$A,I$940,raw_resource_build!$E:$E,$C947)/10^6,\nSUMIFS(raw_resource_build!$T:$T,raw_resource_build!$A:$A,I$940,raw_resource_build!$E:$E,$C947)/10^6)","v":0},{"$f":"SUM(SUMIFS(raw_resource_build!$S:$S,raw_resource_build!$A:$A,J$940,raw_resource_build!$E:$E,$C947)/10^6,\nSUMIFS(raw_resource_build!$T:$T,raw_resource_build!$A:$A,J$940,raw_resource_build!$E:$E,$C947)/10^6)","v":0},{"$f":"SUM(SUMIFS(raw_resource_build!$S:$S,raw_resource_build!$A:$A,K$940,raw_resource_build!$E:$E,$C947)/10^6,\nSUMIFS(raw_resource_build!$T:$T,raw_resource_build!$A:$A,K$940,raw_resource_build!$E:$E,$C947)/10^6)","v":0},{"$f":"SUM(SUMIFS(raw_resource_build!$S:$S,raw_resource_build!$A:$A,L$940,raw_resource_build!$E:$E,$C947)/10^6,\nSUMIFS(raw_resource_build!$T:$T,raw_resource_build!$A:$A,L$940,raw_resource_build!$E:$E,$C947)/10^6)","v":0},{"$f":"SUM(SUMIFS(raw_resource_build!$S:$S,raw_resource_build!$A:$A,M$940,raw_resource_build!$E:$E,$C947)/10^6,\nSUMIFS(raw_resource_build!$T:$T,raw_resource_build!$A:$A,M$940,raw_resource_build!$E:$E,$C947)/10^6)","v":0},{"$f":"SUM(SUMIFS(raw_resource_build!$S:$S,raw_resource_build!$A:$A,N$940,raw_resource_build!$E:$E,$C947)/10^6,\nSUMIFS(raw_resource_build!$T:$T,raw_resource_build!$A:$A,N$940,raw_resource_build!$E:$E,$C947)/10^6)","v":0},{"$f":"SUM(SUMIFS(raw_resource_build!$S:$S,raw_resource_build!$A:$A,O$940,raw_resource_build!$E:$E,$C947)/10^6,\nSUMIFS(raw_resource_build!$T:$T,raw_resource_build!$A:$A,O$940,raw_resource_build!$E:$E,$C947)/10^6)","v":0},{"$f":"SUM(SUMIFS(raw_resource_build!$S:$S,raw_resource_build!$A:$A,P$940,raw_resource_build!$E:$E,$C947)/10^6,\nSUMIFS(raw_resource_build!$T:$T,raw_resource_build!$A:$A,P$940,raw_resource_build!$E:$E,$C947)/10^6)","v":0},{"$f":"SUM(SUMIFS(raw_resource_build!$S:$S,raw_resource_build!$A:$A,Q$940,raw_resource_build!$E:$E,$C947)/10^6,\nSUMIFS(raw_resource_build!$T:$T,raw_resource_build!$A:$A,Q$940,raw_resource_build!$E:$E,$C947)/10^6)","v":0},{"$f":"SUM(SUMIFS(raw_resource_build!$S:$S,raw_resource_build!$A:$A,R$940,raw_resource_build!$E:$E,$C947)/10^6,\nSUMIFS(raw_resource_build!$T:$T,raw_resource_build!$A:$A,R$940,raw_resource_build!$E:$E,$C947)/10^6)","v":0},{"$f":"SUM(SUMIFS(raw_resource_build!$S:$S,raw_resource_build!$A:$A,S$940,raw_resource_build!$E:$E,$C947)/10^6,\nSUMIFS(raw_resource_build!$T:$T,raw_resource_build!$A:$A,S$940,raw_resource_build!$E:$E,$C947)/10^6)","v":0},{"$f":"SUM(SUMIFS(raw_resource_build!$S:$S,raw_resource_build!$A:$A,T$940,raw_resource_build!$E:$E,$C947)/10^6,\nSUMIFS(raw_resource_build!$T:$T,raw_resource_build!$A:$A,T$940,raw_resource_build!$E:$E,$C947)/10^6)","v":0},{"$f":"SUM(SUMIFS(raw_resource_build!$S:$S,raw_resource_build!$A:$A,U$940,raw_resource_build!$E:$E,$C947)/10^6,\nSUMIFS(raw_resource_build!$T:$T,raw_resource_build!$A:$A,U$940,raw_resource_build!$E:$E,$C947)/10^6)","v":0},{"$f":"SUM(SUMIFS(raw_resource_build!$S:$S,raw_resource_build!$A:$A,V$940,raw_resource_build!$E:$E,$C947)/10^6,\nSUMIFS(raw_resource_build!$T:$T,raw_resource_build!$A:$A,V$940,raw_resource_build!$E:$E,$C947)/10^6)","v":0},{"$f":"SUM(SUMIFS(raw_resource_build!$S:$S,raw_resource_build!$A:$A,W$940,raw_resource_build!$E:$E,$C947)/10^6,\nSUMIFS(raw_resource_build!$T:$T,raw_resource_build!$A:$A,W$940,raw_resource_build!$E:$E,$C947)/10^6)","v":0},{"$f":"SUM(SUMIFS(raw_resource_build!$S:$S,raw_resource_build!$A:$A,X$940,raw_resource_build!$E:$E,$C947)/10^6,\nSUMIFS(raw_resource_build!$T:$T,raw_resource_build!$A:$A,X$940,raw_resource_build!$E:$E,$C947)/10^6)","v":0},{"$f":"SUM(SUMIFS(raw_resource_build!$S:$S,raw_resource_build!$A:$A,Y$940,raw_resource_build!$E:$E,$C947)/10^6,\nSUMIFS(raw_resource_build!$T:$T,raw_resource_build!$A:$A,Y$940,raw_resource_build!$E:$E,$C947)/10^6)","v":0},{"$f":"SUM(SUMIFS(raw_resource_build!$S:$S,raw_resource_build!$A:$A,Z$940,raw_resource_build!$E:$E,$C947)/10^6,\nSUMIFS(raw_resource_build!$T:$T,raw_resource_build!$A:$A,Z$940,raw_resource_build!$E:$E,$C947)/10^6)","v":0},{"$f":"SUM(SUMIFS(raw_resource_build!$S:$S,raw_resource_build!$A:$A,AA$940,raw_resource_build!$E:$E,$C947)/10^6,\nSUMIFS(raw_resource_build!$T:$T,raw_resource_build!$A:$A,AA$940,raw_resource_build!$E:$E,$C947)/10^6)","v":0},{"$f":"SUM(SUMIFS(raw_resource_build!$S:$S,raw_resource_build!$A:$A,AB$940,raw_resource_build!$E:$E,$C947)/10^6,\nSUMIFS(raw_resource_build!$T:$T,raw_resource_build!$A:$A,AB$940,raw_resource_build!$E:$E,$C947)/10^6)","v":0},{"$f":"SUM(SUMIFS(raw_resource_build!$S:$S,raw_resource_build!$A:$A,AC$940,raw_resource_build!$E:$E,$C947)/10^6,\nSUMIFS(raw_resource_build!$T:$T,raw_resource_build!$A:$A,AC$940,raw_resource_build!$E:$E,$C947)/10^6)","v":0},{"$f":"SUM(SUMIFS(raw_resource_build!$S:$S,raw_resource_build!$A:$A,AD$940,raw_resource_build!$E:$E,$C947)/10^6,\nSUMIFS(raw_resource_build!$T:$T,raw_resource_build!$A:$A,AD$940,raw_resource_build!$E:$E,$C947)/10^6)","v":0},{"$f":"SUM(SUMIFS(raw_resource_build!$S:$S,raw_resource_build!$A:$A,AE$940,raw_resource_build!$E:$E,$C947)/10^6,\nSUMIFS(raw_resource_build!$T:$T,raw_resource_build!$A:$A,AE$940,raw_resource_build!$E:$E,$C947)/10^6)","v":0},{"$f":"SUM(SUMIFS(raw_resource_build!$S:$S,raw_resource_build!$A:$A,AF$940,raw_resource_build!$E:$E,$C947)/10^6,\nSUMIFS(raw_resource_build!$T:$T,raw_resource_build!$A:$A,AF$940,raw_resource_build!$E:$E,$C947)/10^6)","v":0},{"$f":"SUM(SUMIFS(raw_resource_build!$S:$S,raw_resource_build!$A:$A,AG$940,raw_resource_build!$E:$E,$C947)/10^6,\nSUMIFS(raw_resource_build!$T:$T,raw_resource_build!$A:$A,AG$940,raw_resource_build!$E:$E,$C947)/10^6)","v":0},{"$f":"SUM(SUMIFS(raw_resource_build!$S:$S,raw_resource_build!$A:$A,AH$940,raw_resource_build!$E:$E,$C947)/10^6,\nSUMIFS(raw_resource_build!$T:$T,raw_resource_build!$A:$A,AH$940,raw_resource_build!$E:$E,$C947)/10^6)","v":0},{"$f":"SUM(SUMIFS(raw_resource_build!$S:$S,raw_resource_build!$A:$A,AI$940,raw_resource_build!$E:$E,$C947)/10^6,\nSUMIFS(raw_resource_build!$T:$T,raw_resource_build!$A:$A,AI$940,raw_resource_build!$E:$E,$C947)/10^6)","v":0},{"$f":"SUM(SUMIFS(raw_resource_build!$S:$S,raw_resource_build!$A:$A,AJ$940,raw_resource_build!$E:$E,$C947)/10^6,\nSUMIFS(raw_resource_build!$T:$T,raw_resource_build!$A:$A,AJ$940,raw_resource_build!$E:$E,$C947)/10^6)","v":0},{"$f":"SUM(SUMIFS(raw_resource_build!$S:$S,raw_resource_build!$A:$A,AK$940,raw_resource_build!$E:$E,$C947)/10^6,\nSUMIFS(raw_resource_build!$T:$T,raw_resource_build!$A:$A,AK$940,raw_resource_build!$E:$E,$C947)/10^6)","v":0},{"$f":"SUM(SUMIFS(raw_resource_build!$S:$S,raw_resource_build!$A:$A,AL$940,raw_resource_build!$E:$E,$C947)/10^6,\nSUMIFS(raw_resource_build!$T:$T,raw_resource_build!$A:$A,AL$940,raw_resource_build!$E:$E,$C947)/10^6)","v":0},{"$f":"SUM(SUMIFS(raw_resource_build!$S:$S,raw_resource_build!$A:$A,AM$940,raw_resource_build!$E:$E,$C947)/10^6,\nSUMIFS(raw_resource_build!$T:$T,raw_resource_build!$A:$A,AM$940,raw_resource_build!$E:$E,$C947)/10^6)","v":0},{"$f":"SUM(SUMIFS(raw_resource_build!$S:$S,raw_resource_build!$A:$A,AN$940,raw_resource_build!$E:$E,$C947)/10^6,\nSUMIFS(raw_resource_build!$T:$T,raw_resource_build!$A:$A,AN$940,raw_resource_build!$E:$E,$C947)/10^6)","v":0}]
[null,null,{"$f":"Lists!B12","v":"CAISO_Reciprocating_Engine"},"$MM",{"$f":"SUM(SUMIFS(raw_resource_build!$S:$S,raw_resource_build!$A:$A,E$940,raw_resource_build!$E:$E,$C948)/10^6,\nSUMIFS(raw_resource_build!$T:$T,raw_resource_build!$A:$A,E$940,raw_resource_build!$E:$E,$C948)/10^6)","v":0},{"$f":"SUM(SUMIFS(raw_resource_build!$S:$S,raw_resource_build!$A:$A,F$940,raw_resource_build!$E:$E,$C948)/10^6,\nSUMIFS(raw_resource_build!$T:$T,raw_resource_build!$A:$A,F$940,raw_resource_build!$E:$E,$C948)/10^6)","v":0},{"$f":"SUM(SUMIFS(raw_resource_build!$S:$S,raw_resource_build!$A:$A,G$940,raw_resource_build!$E:$E,$C948)/10^6,\nSUMIFS(raw_resource_build!$T:$T,raw_resource_build!$A:$A,G$940,raw_resource_build!$E:$E,$C948)/10^6)","v":0},{"$f":"SUM(SUMIFS(raw_resource_build!$S:$S,raw_resource_build!$A:$A,H$940,raw_resource_build!$E:$E,$C948)/10^6,\nSUMIFS(raw_resource_build!$T:$T,raw_resource_build!$A:$A,H$940,raw_resource_build!$E:$E,$C948)/10^6)","v":0},{"$f":"SUM(SUMIFS(raw_resource_build!$S:$S,raw_resource_build!$A:$A,I$940,raw_resource_build!$E:$E,$C948)/10^6,\nSUMIFS(raw_resource_build!$T:$T,raw_resource_build!$A:$A,I$940,raw_resource_build!$E:$E,$C948)/10^6)","v":0},{"$f":"SUM(SUMIFS(raw_resource_build!$S:$S,raw_resource_build!$A:$A,J$940,raw_resource_build!$E:$E,$C948)/10^6,\nSUMIFS(raw_resource_build!$T:$T,raw_resource_build!$A:$A,J$940,raw_resource_build!$E:$E,$C948)/10^6)","v":3.4963899699999996},{"$f":"SUM(SUMIFS(raw_resource_build!$S:$S,raw_resource_build!$A:$A,K$940,raw_resource_build!$E:$E,$C948)/10^6,\nSUMIFS(raw_resource_build!$T:$T,raw_resource_build!$A:$A,K$940,raw_resource_build!$E:$E,$C948)/10^6)","v":3.4963899699999996},{"$f":"SUM(SUMIFS(raw_resource_build!$S:$S,raw_resource_build!$A:$A,L$940,raw_resource_build!$E:$E,$C948)/10^6,\nSUMIFS(raw_resource_build!$T:$T,raw_resource_build!$A:$A,L$940,raw_resource_build!$E:$E,$C948)/10^6)","v":3.4963899699999996},{"$f":"SUM(SUMIFS(raw_resource_build!$S:$S,raw_resource_build!$A:$A,M$940,raw_resource_build!$E:$E,$C948)/10^6,\nSUMIFS(raw_resource_build!$T:$T,raw_resource_build!$A:$A,M$940,raw_resource_build!$E:$E,$C948)/10^6)","v":3.4963899699999996},{"$f":"SUM(SUMIFS(raw_resource_build!$S:$S,raw_resource_build!$A:$A,N$940,raw_resource_build!$E:$E,$C948)/10^6,\nSUMIFS(raw_resource_build!$T:$T,raw_resource_build!$A:$A,N$940,raw_resource_build!$E:$E,$C948)/10^6)","v":3.4963899699999996},{"$f":"SUM(SUMIFS(raw_resource_build!$S:$S,raw_resource_build!$A:$A,O$940,raw_resource_build!$E:$E,$C948)/10^6,\nSUMIFS(raw_resource_build!$T:$T,raw_resource_build!$A:$A,O$940,raw_resource_build!$E:$E,$C948)/10^6)","v":0},{"$f":"SUM(SUMIFS(raw_resource_build!$S:$S,raw_resource_build!$A:$A,P$940,raw_resource_build!$E:$E,$C948)/10^6,\nSUMIFS(raw_resource_build!$T:$T,raw_resource_build!$A:$A,P$940,raw_resource_build!$E:$E,$C948)/10^6)","v":3.4963899699999996},{"$f":"SUM(SUMIFS(raw_resource_build!$S:$S,raw_resource_build!$A:$A,Q$940,raw_resource_build!$E:$E,$C948)/10^6,\nSUMIFS(raw_resource_build!$T:$T,raw_resource_build!$A:$A,Q$940,raw_resource_build!$E:$E,$C948)/10^6)","v":0},{"$f":"SUM(SUMIFS(raw_resource_build!$S:$S,raw_resource_build!$A:$A,R$940,raw_resource_build!$E:$E,$C948)/10^6,\nSUMIFS(raw_resource_build!$T:$T,raw_resource_build!$A:$A,R$940,raw_resource_build!$E:$E,$C948)/10^6)","v":0},{"$f":"SUM(SUMIFS(raw_resource_build!$S:$S,raw_resource_build!$A:$A,S$940,raw_resource_build!$E:$E,$C948)/10^6,\nSUMIFS(raw_resource_build!$T:$T,raw_resource_build!$A:$A,S$940,raw_resource_build!$E:$E,$C948)/10^6)","v":0},{"$f":"SUM(SUMIFS(raw_resource_build!$S:$S,raw_resource_build!$A:$A,T$940,raw_resource_build!$E:$E,$C948)/10^6,\nSUMIFS(raw_resource_build!$T:$T,raw_resource_build!$A:$A,T$940,raw_resource_build!$E:$E,$C948)/10^6)","v":3.4963899699999996},{"$f":"SUM(SUMIFS(raw_resource_build!$S:$S,raw_resource_build!$A:$A,U$940,raw_resource_build!$E:$E,$C948)/10^6,\nSUMIFS(raw_resource_build!$T:$T,raw_resource_build!$A:$A,U$940,raw_resource_build!$E:$E,$C948)/10^6)","v":0},{"$f":"SUM(SUMIFS(raw_resource_build!$S:$S,raw_resource_build!$A:$A,V$940,raw_resource_build!$E:$E,$C948)/10^6,\nSUMIFS(raw_resource_build!$T:$T,raw_resource_build!$A:$A,V$940,raw_resource_build!$E:$E,$C948)/10^6)","v":0},{"$f":"SUM(SUMIFS(raw_resource_build!$S:$S,raw_resource_build!$A:$A,W$940,raw_resource_build!$E:$E,$C948)/10^6,\nSUMIFS(raw_resource_build!$T:$T,raw_resource_build!$A:$A,W$940,raw_resource_build!$E:$E,$C948)/10^6)","v":0},{"$f":"SUM(SUMIFS(raw_resource_build!$S:$S,raw_resource_build!$A:$A,X$940,raw_resource_build!$E:$E,$C948)/10^6,\nSUMIFS(raw_resource_build!$T:$T,raw_resource_build!$A:$A,X$940,raw_resource_build!$E:$E,$C948)/10^6)","v":0},{"$f":"SUM(SUMIFS(raw_resource_build!$S:$S,raw_resource_build!$A:$A,Y$940,raw_resource_build!$E:$E,$C948)/10^6,\nSUMIFS(raw_resource_build!$T:$T,raw_resource_build!$A:$A,Y$940,raw_resource_build!$E:$E,$C948)/10^6)","v":0},{"$f":"SUM(SUMIFS(raw_resource_build!$S:$S,raw_resource_build!$A:$A,Z$940,raw_resource_build!$E:$E,$C948)/10^6,\nSUMIFS(raw_resource_build!$T:$T,raw_resource_build!$A:$A,Z$940,raw_resource_build!$E:$E,$C948)/10^6)","v":0},{"$f":"SUM(SUMIFS(raw_resource_build!$S:$S,raw_resource_build!$A:$A,AA$940,raw_resource_build!$E:$E,$C948)/10^6,\nSUMIFS(raw_resource_build!$T:$T,raw_resource_build!$A:$A,AA$940,raw_resource_build!$E:$E,$C948)/10^6)","v":0},{"$f":"SUM(SUMIFS(raw_resource_build!$S:$S,raw_resource_build!$A:$A,AB$940,raw_resource_build!$E:$E,$C948)/10^6,\nSUMIFS(raw_resource_build!$T:$T,raw_resource_build!$A:$A,AB$940,raw_resource_build!$E:$E,$C948)/10^6)","v":0},{"$f":"SUM(SUMIFS(raw_resource_build!$S:$S,raw_resource_build!$A:$A,AC$940,raw_resource_build!$E:$E,$C948)/10^6,\nSUMIFS(raw_resource_build!$T:$T,raw_resource_build!$A:$A,AC$940,raw_resource_build!$E:$E,$C948)/10^6)","v":0},{"$f":"SUM(SUMIFS(raw_resource_build!$S:$S,raw_resource_build!$A:$A,AD$940,raw_resource_build!$E:$E,$C948)/10^6,\nSUMIFS(raw_resource_build!$T:$T,raw_resource_build!$A:$A,AD$940,raw_resource_build!$E:$E,$C948)/10^6)","v":0},{"$f":"SUM(SUMIFS(raw_resource_build!$S:$S,raw_resource_build!$A:$A,AE$940,raw_resource_build!$E:$E,$C948)/10^6,\nSUMIFS(raw_resource_build!$T:$T,raw_resource_build!$A:$A,AE$940,raw_resource_build!$E:$E,$C948)/10^6)","v":0},{"$f":"SUM(SUMIFS(raw_resource_build!$S:$S,raw_resource_build!$A:$A,AF$940,raw_resource_build!$E:$E,$C948)/10^6,\nSUMIFS(raw_resource_build!$T:$T,raw_resource_build!$A:$A,AF$940,raw_resource_build!$E:$E,$C948)/10^6)","v":0},{"$f":"SUM(SUMIFS(raw_resource_build!$S:$S,raw_resource_build!$A:$A,AG$940,raw_resource_build!$E:$E,$C948)/10^6,\nSUMIFS(raw_resource_build!$T:$T,raw_resource_build!$A:$A,AG$940,raw_resource_build!$E:$E,$C948)/10^6)","v":0},{"$f":"SUM(SUMIFS(raw_resource_build!$S:$S,raw_resource_build!$A:$A,AH$940,raw_resource_build!$E:$E,$C948)/10^6,\nSUMIFS(raw_resource_build!$T:$T,raw_resource_build!$A:$A,AH$940,raw_resource_build!$E:$E,$C948)/10^6)","v":0},{"$f":"SUM(SUMIFS(raw_resource_build!$S:$S,raw_resource_build!$A:$A,AI$940,raw_resource_build!$E:$E,$C948)/10^6,\nSUMIFS(raw_resource_build!$T:$T,raw_resource_build!$A:$A,AI$940,raw_resource_build!$E:$E,$C948)/10^6)","v":3.4963899699999996},{"$f":"SUM(SUMIFS(raw_resource_build!$S:$S,raw_resource_build!$A:$A,AJ$940,raw_resource_build!$E:$E,$C948)/10^6,\nSUMIFS(raw_resource_build!$T:$T,raw_resource_build!$A:$A,AJ$940,raw_resource_build!$E:$E,$C948)/10^6)","v":0},{"$f":"SUM(SUMIFS(raw_resource_build!$S:$S,raw_resource_build!$A:$A,AK$940,raw_resource_build!$E:$E,$C948)/10^6,\nSUMIFS(raw_resource_build!$T:$T,raw_resource_build!$A:$A,AK$940,raw_resource_build!$E:$E,$C948)/10^6)","v":0},{"$f":"SUM(SUMIFS(raw_resource_build!$S:$S,raw_resource_build!$A:$A,AL$940,raw_resource_build!$E:$E,$C948)/10^6,\nSUMIFS(raw_resource_build!$T:$T,raw_resource_build!$A:$A,AL$940,raw_resource_build!$E:$E,$C948)/10^6)","v":0},{"$f":"SUM(SUMIFS(raw_resource_build!$S:$S,raw_resource_build!$A:$A,AM$940,raw_resource_build!$E:$E,$C948)/10^6,\nSUMIFS(raw_resource_build!$T:$T,raw_resource_build!$A:$A,AM$940,raw_resource_build!$E:$E,$C948)/10^6)","v":0},{"$f":"SUM(SUMIFS(raw_resource_build!$S:$S,raw_resource_build!$A:$A,AN$940,raw_resource_build!$E:$E,$C948)/10^6,\nSUMIFS(raw_resource_build!$T:$T,raw_resource_build!$A:$A,AN$940,raw_resource_build!$E:$E,$C948)/10^6)","v":0}]
[null,null,{"$f":"Lists!B13","v":"CAISO_CHP"},"$MM",{"$f":"SUM(SUMIFS(raw_resource_build!$S:$S,raw_resource_build!$A:$A,E$940,raw_resource_build!$E:$E,$C949)/10^6,\nSUMIFS(raw_resource_build!$T:$T,raw_resource_build!$A:$A,E$940,raw_resource_build!$E:$E,$C949)/10^6)","v":0},{"$f":"SUM(SUMIFS(raw_resource_build!$S:$S,raw_resource_build!$A:$A,F$940,raw_resource_build!$E:$E,$C949)/10^6,\nSUMIFS(raw_resource_build!$T:$T,raw_resource_build!$A:$A,F$940,raw_resource_build!$E:$E,$C949)/10^6)","v":0},{"$f":"SUM(SUMIFS(raw_resource_build!$S:$S,raw_resource_build!$A:$A,G$940,raw_resource_build!$E:$E,$C949)/10^6,\nSUMIFS(raw_resource_build!$T:$T,raw_resource_build!$A:$A,G$940,raw_resource_build!$E:$E,$C949)/10^6)","v":0},{"$f":"SUM(SUMIFS(raw_resource_build!$S:$S,raw_resource_build!$A:$A,H$940,raw_resource_build!$E:$E,$C949)/10^6,\nSUMIFS(raw_resource_build!$T:$T,raw_resource_build!$A:$A,H$940,raw_resource_build!$E:$E,$C949)/10^6)","v":0},{"$f":"SUM(SUMIFS(raw_resource_build!$S:$S,raw_resource_build!$A:$A,I$940,raw_resource_build!$E:$E,$C949)/10^6,\nSUMIFS(raw_resource_build!$T:$T,raw_resource_build!$A:$A,I$940,raw_resource_build!$E:$E,$C949)/10^6)","v":0},{"$f":"SUM(SUMIFS(raw_resource_build!$S:$S,raw_resource_build!$A:$A,J$940,raw_resource_build!$E:$E,$C949)/10^6,\nSUMIFS(raw_resource_build!$T:$T,raw_resource_build!$A:$A,J$940,raw_resource_build!$E:$E,$C949)/10^6)","v":0},{"$f":"SUM(SUMIFS(raw_resource_build!$S:$S,raw_resource_build!$A:$A,K$940,raw_resource_build!$E:$E,$C949)/10^6,\nSUMIFS(raw_resource_build!$T:$T,raw_resource_build!$A:$A,K$940,raw_resource_build!$E:$E,$C949)/10^6)","v":0},{"$f":"SUM(SUMIFS(raw_resource_build!$S:$S,raw_resource_build!$A:$A,L$940,raw_resource_build!$E:$E,$C949)/10^6,\nSUMIFS(raw_resource_build!$T:$T,raw_resource_build!$A:$A,L$940,raw_resource_build!$E:$E,$C949)/10^6)","v":0},{"$f":"SUM(SUMIFS(raw_resource_build!$S:$S,raw_resource_build!$A:$A,M$940,raw_resource_build!$E:$E,$C949)/10^6,\nSUMIFS(raw_resource_build!$T:$T,raw_resource_build!$A:$A,M$940,raw_resource_build!$E:$E,$C949)/10^6)","v":0},{"$f":"SUM(SUMIFS(raw_resource_build!$S:$S,raw_resource_build!$A:$A,N$940,raw_resource_build!$E:$E,$C949)/10^6,\nSUMIFS(raw_resource_build!$T:$T,raw_resource_build!$A:$A,N$940,raw_resource_build!$E:$E,$C949)/10^6)","v":0},{"$f":"SUM(SUMIFS(raw_resource_build!$S:$S,raw_resource_build!$A:$A,O$940,raw_resource_build!$E:$E,$C949)/10^6,\nSUMIFS(raw_resource_build!$T:$T,raw_resource_build!$A:$A,O$940,raw_resource_build!$E:$E,$C949)/10^6)","v":0},{"$f":"SUM(SUMIFS(raw_resource_build!$S:$S,raw_resource_build!$A:$A,P$940,raw_resource_build!$E:$E,$C949)/10^6,\nSUMIFS(raw_resource_build!$T:$T,raw_resource_build!$A:$A,P$940,raw_resource_build!$E:$E,$C949)/10^6)","v":0},{"$f":"SUM(SUMIFS(raw_resource_build!$S:$S,raw_resource_build!$A:$A,Q$940,raw_resource_build!$E:$E,$C949)/10^6,\nSUMIFS(raw_resource_build!$T:$T,raw_resource_build!$A:$A,Q$940,raw_resource_build!$E:$E,$C949)/10^6)","v":0},{"$f":"SUM(SUMIFS(raw_resource_build!$S:$S,raw_resource_build!$A:$A,R$940,raw_resource_build!$E:$E,$C949)/10^6,\nSUMIFS(raw_resource_build!$T:$T,raw_resource_build!$A:$A,R$940,raw_resource_build!$E:$E,$C949)/10^6)","v":0},{"$f":"SUM(SUMIFS(raw_resource_build!$S:$S,raw_resource_build!$A:$A,S$940,raw_resource_build!$E:$E,$C949)/10^6,\nSUMIFS(raw_resource_build!$T:$T,raw_resource_build!$A:$A,S$940,raw_resource_build!$E:$E,$C949)/10^6)","v":0},{"$f":"SUM(SUMIFS(raw_resource_build!$S:$S,raw_resource_build!$A:$A,T$940,raw_resource_build!$E:$E,$C949)/10^6,\nSUMIFS(raw_resource_build!$T:$T,raw_resource_build!$A:$A,T$940,raw_resource_build!$E:$E,$C949)/10^6)","v":0},{"$f":"SUM(SUMIFS(raw_resource_build!$S:$S,raw_resource_build!$A:$A,U$940,raw_resource_build!$E:$E,$C949)/10^6,\nSUMIFS(raw_resource_build!$T:$T,raw_resource_build!$A:$A,U$940,raw_resource_build!$E:$E,$C949)/10^6)","v":0},{"$f":"SUM(SUMIFS(raw_resource_build!$S:$S,raw_resource_build!$A:$A,V$940,raw_resource_build!$E:$E,$C949)/10^6,\nSUMIFS(raw_resource_build!$T:$T,raw_resource_build!$A:$A,V$940,raw_resource_build!$E:$E,$C949)/10^6)","v":0},{"$f":"SUM(SUMIFS(raw_resource_build!$S:$S,raw_resource_build!$A:$A,W$940,raw_resource_build!$E:$E,$C949)/10^6,\nSUMIFS(raw_resource_build!$T:$T,raw_resource_build!$A:$A,W$940,raw_resource_build!$E:$E,$C949)/10^6)","v":0},{"$f":"SUM(SUMIFS(raw_resource_build!$S:$S,raw_resource_build!$A:$A,X$940,raw_resource_build!$E:$E,$C949)/10^6,\nSUMIFS(raw_resource_build!$T:$T,raw_resource_build!$A:$A,X$940,raw_resource_build!$E:$E,$C949)/10^6)","v":0},{"$f":"SUM(SUMIFS(raw_resource_build!$S:$S,raw_resource_build!$A:$A,Y$940,raw_resource_build!$E:$E,$C949)/10^6,\nSUMIFS(raw_resource_build!$T:$T,raw_resource_build!$A:$A,Y$940,raw_resource_build!$E:$E,$C949)/10^6)","v":0},{"$f":"SUM(SUMIFS(raw_resource_build!$S:$S,raw_resource_build!$A:$A,Z$940,raw_resource_build!$E:$E,$C949)/10^6,\nSUMIFS(raw_resource_build!$T:$T,raw_resource_build!$A:$A,Z$940,raw_resource_build!$E:$E,$C949)/10^6)","v":0},{"$f":"SUM(SUMIFS(raw_resource_build!$S:$S,raw_resource_build!$A:$A,AA$940,raw_resource_build!$E:$E,$C949)/10^6,\nSUMIFS(raw_resource_build!$T:$T,raw_resource_build!$A:$A,AA$940,raw_resource_build!$E:$E,$C949)/10^6)","v":0},{"$f":"SUM(SUMIFS(raw_resource_build!$S:$S,raw_resource_build!$A:$A,AB$940,raw_resource_build!$E:$E,$C949)/10^6,\nSUMIFS(raw_resource_build!$T:$T,raw_resource_build!$A:$A,AB$940,raw_resource_build!$E:$E,$C949)/10^6)","v":0},{"$f":"SUM(SUMIFS(raw_resource_build!$S:$S,raw_resource_build!$A:$A,AC$940,raw_resource_build!$E:$E,$C949)/10^6,\nSUMIFS(raw_resource_build!$T:$T,raw_resource_build!$A:$A,AC$940,raw_resource_build!$E:$E,$C949)/10^6)","v":0},{"$f":"SUM(SUMIFS(raw_resource_build!$S:$S,raw_resource_build!$A:$A,AD$940,raw_resource_build!$E:$E,$C949)/10^6,\nSUMIFS(raw_resource_build!$T:$T,raw_resource_build!$A:$A,AD$940,raw_resource_build!$E:$E,$C949)/10^6)","v":0},{"$f":"SUM(SUMIFS(raw_resource_build!$S:$S,raw_resource_build!$A:$A,AE$940,raw_resource_build!$E:$E,$C949)/10^6,\nSUMIFS(raw_resource_build!$T:$T,raw_resource_build!$A:$A,AE$940,raw_resource_build!$E:$E,$C949)/10^6)","v":0},{"$f":"SUM(SUMIFS(raw_resource_build!$S:$S,raw_resource_build!$A:$A,AF$940,raw_resource_build!$E:$E,$C949)/10^6,\nSUMIFS(raw_resource_build!$T:$T,raw_resource_build!$A:$A,AF$940,raw_resource_build!$E:$E,$C949)/10^6)","v":0},{"$f":"SUM(SUMIFS(raw_resource_build!$S:$S,raw_resource_build!$A:$A,AG$940,raw_resource_build!$E:$E,$C949)/10^6,\nSUMIFS(raw_resource_build!$T:$T,raw_resource_build!$A:$A,AG$940,raw_resource_build!$E:$E,$C949)/10^6)","v":0},{"$f":"SUM(SUMIFS(raw_resource_build!$S:$S,raw_resource_build!$A:$A,AH$940,raw_resource_build!$E:$E,$C949)/10^6,\nSUMIFS(raw_resource_build!$T:$T,raw_resource_build!$A:$A,AH$940,raw_resource_build!$E:$E,$C949)/10^6)","v":0},{"$f":"SUM(SUMIFS(raw_resource_build!$S:$S,raw_resource_build!$A:$A,AI$940,raw_resource_build!$E:$E,$C949)/10^6,\nSUMIFS(raw_resource_build!$T:$T,raw_resource_build!$A:$A,AI$940,raw_resource_build!$E:$E,$C949)/10^6)","v":0},{"$f":"SUM(SUMIFS(raw_resource_build!$S:$S,raw_resource_build!$A:$A,AJ$940,raw_resource_build!$E:$E,$C949)/10^6,\nSUMIFS(raw_resource_build!$T:$T,raw_resource_build!$A:$A,AJ$940,raw_resource_build!$E:$E,$C949)/10^6)","v":0},{"$f":"SUM(SUMIFS(raw_resource_build!$S:$S,raw_resource_build!$A:$A,AK$940,raw_resource_build!$E:$E,$C949)/10^6,\nSUMIFS(raw_resource_build!$T:$T,raw_resource_build!$A:$A,AK$940,raw_resource_build!$E:$E,$C949)/10^6)","v":0},{"$f":"SUM(SUMIFS(raw_resource_build!$S:$S,raw_resource_build!$A:$A,AL$940,raw_resource_build!$E:$E,$C949)/10^6,\nSUMIFS(raw_resource_build!$T:$T,raw_resource_build!$A:$A,AL$940,raw_resource_build!$E:$E,$C949)/10^6)","v":0},{"$f":"SUM(SUMIFS(raw_resource_build!$S:$S,raw_resource_build!$A:$A,AM$940,raw_resource_build!$E:$E,$C949)/10^6,\nSUMIFS(raw_resource_build!$T:$T,raw_resource_build!$A:$A,AM$940,raw_resource_build!$E:$E,$C949)/10^6)","v":0},{"$f":"SUM(SUMIFS(raw_resource_build!$S:$S,raw_resource_build!$A:$A,AN$940,raw_resource_build!$E:$E,$C949)/10^6,\nSUMIFS(raw_resource_build!$T:$T,raw_resource_build!$A:$A,AN$940,raw_resource_build!$E:$E,$C949)/10^6)","v":0}]
[null,null,{"$f":"Lists!B14","v":"CAISO_Coal"},"$MM",{"$f":"SUM(SUMIFS(raw_resource_build!$S:$S,raw_resource_build!$A:$A,E$940,raw_resource_build!$E:$E,$C950)/10^6,\nSUMIFS(raw_resource_build!$T:$T,raw_resource_build!$A:$A,E$940,raw_resource_build!$E:$E,$C950)/10^6)","v":0},{"$f":"SUM(SUMIFS(raw_resource_build!$S:$S,raw_resource_build!$A:$A,F$940,raw_resource_build!$E:$E,$C950)/10^6,\nSUMIFS(raw_resource_build!$T:$T,raw_resource_build!$A:$A,F$940,raw_resource_build!$E:$E,$C950)/10^6)","v":0},{"$f":"SUM(SUMIFS(raw_resource_build!$S:$S,raw_resource_build!$A:$A,G$940,raw_resource_build!$E:$E,$C950)/10^6,\nSUMIFS(raw_resource_build!$T:$T,raw_resource_build!$A:$A,G$940,raw_resource_build!$E:$E,$C950)/10^6)","v":0},{"$f":"SUM(SUMIFS(raw_resource_build!$S:$S,raw_resource_build!$A:$A,H$940,raw_resource_build!$E:$E,$C950)/10^6,\nSUMIFS(raw_resource_build!$T:$T,raw_resource_build!$A:$A,H$940,raw_resource_build!$E:$E,$C950)/10^6)","v":0},{"$f":"SUM(SUMIFS(raw_resource_build!$S:$S,raw_resource_build!$A:$A,I$940,raw_resource_build!$E:$E,$C950)/10^6,\nSUMIFS(raw_resource_build!$T:$T,raw_resource_build!$A:$A,I$940,raw_resource_build!$E:$E,$C950)/10^6)","v":0},{"$f":"SUM(SUMIFS(raw_resource_build!$S:$S,raw_resource_build!$A:$A,J$940,raw_resource_build!$E:$E,$C950)/10^6,\nSUMIFS(raw_resource_build!$T:$T,raw_resource_build!$A:$A,J$940,raw_resource_build!$E:$E,$C950)/10^6)","v":0},{"$f":"SUM(SUMIFS(raw_resource_build!$S:$S,raw_resource_build!$A:$A,K$940,raw_resource_build!$E:$E,$C950)/10^6,\nSUMIFS(raw_resource_build!$T:$T,raw_resource_build!$A:$A,K$940,raw_resource_build!$E:$E,$C950)/10^6)","v":0},{"$f":"SUM(SUMIFS(raw_resource_build!$S:$S,raw_resource_build!$A:$A,L$940,raw_resource_build!$E:$E,$C950)/10^6,\nSUMIFS(raw_resource_build!$T:$T,raw_resource_build!$A:$A,L$940,raw_resource_build!$E:$E,$C950)/10^6)","v":0},{"$f":"SUM(SUMIFS(raw_resource_build!$S:$S,raw_resource_build!$A:$A,M$940,raw_resource_build!$E:$E,$C950)/10^6,\nSUMIFS(raw_resource_build!$T:$T,raw_resource_build!$A:$A,M$940,raw_resource_build!$E:$E,$C950)/10^6)","v":0},{"$f":"SUM(SUMIFS(raw_resource_build!$S:$S,raw_resource_build!$A:$A,N$940,raw_resource_build!$E:$E,$C950)/10^6,\nSUMIFS(raw_resource_build!$T:$T,raw_resource_build!$A:$A,N$940,raw_resource_build!$E:$E,$C950)/10^6)","v":0},{"$f":"SUM(SUMIFS(raw_resource_build!$S:$S,raw_resource_build!$A:$A,O$940,raw_resource_build!$E:$E,$C950)/10^6,\nSUMIFS(raw_resource_build!$T:$T,raw_resource_build!$A:$A,O$940,raw_resource_build!$E:$E,$C950)/10^6)","v":0},{"$f":"SUM(SUMIFS(raw_resource_build!$S:$S,raw_resource_build!$A:$A,P$940,raw_resource_build!$E:$E,$C950)/10^6,\nSUMIFS(raw_resource_build!$T:$T,raw_resource_build!$A:$A,P$940,raw_resource_build!$E:$E,$C950)/10^6)","v":0},{"$f":"SUM(SUMIFS(raw_resource_build!$S:$S,raw_resource_build!$A:$A,Q$940,raw_resource_build!$E:$E,$C950)/10^6,\nSUMIFS(raw_resource_build!$T:$T,raw_resource_build!$A:$A,Q$940,raw_resource_build!$E:$E,$C950)/10^6)","v":0},{"$f":"SUM(SUMIFS(raw_resource_build!$S:$S,raw_resource_build!$A:$A,R$940,raw_resource_build!$E:$E,$C950)/10^6,\nSUMIFS(raw_resource_build!$T:$T,raw_resource_build!$A:$A,R$940,raw_resource_build!$E:$E,$C950)/10^6)","v":0},{"$f":"SUM(SUMIFS(raw_resource_build!$S:$S,raw_resource_build!$A:$A,S$940,raw_resource_build!$E:$E,$C950)/10^6,\nSUMIFS(raw_resource_build!$T:$T,raw_resource_build!$A:$A,S$940,raw_resource_build!$E:$E,$C950)/10^6)","v":0},{"$f":"SUM(SUMIFS(raw_resource_build!$S:$S,raw_resource_build!$A:$A,T$940,raw_resource_build!$E:$E,$C950)/10^6,\nSUMIFS(raw_resource_build!$T:$T,raw_resource_build!$A:$A,T$940,raw_resource_build!$E:$E,$C950)/10^6)","v":0},{"$f":"SUM(SUMIFS(raw_resource_build!$S:$S,raw_resource_build!$A:$A,U$940,raw_resource_build!$E:$E,$C950)/10^6,\nSUMIFS(raw_resource_build!$T:$T,raw_resource_build!$A:$A,U$940,raw_resource_build!$E:$E,$C950)/10^6)","v":0},{"$f":"SUM(SUMIFS(raw_resource_build!$S:$S,raw_resource_build!$A:$A,V$940,raw_resource_build!$E:$E,$C950)/10^6,\nSUMIFS(raw_resource_build!$T:$T,raw_resource_build!$A:$A,V$940,raw_resource_build!$E:$E,$C950)/10^6)","v":0},{"$f":"SUM(SUMIFS(raw_resource_build!$S:$S,raw_resource_build!$A:$A,W$940,raw_resource_build!$E:$E,$C950)/10^6,\nSUMIFS(raw_resource_build!$T:$T,raw_resource_build!$A:$A,W$940,raw_resource_build!$E:$E,$C950)/10^6)","v":0},{"$f":"SUM(SUMIFS(raw_resource_build!$S:$S,raw_resource_build!$A:$A,X$940,raw_resource_build!$E:$E,$C950)/10^6,\nSUMIFS(raw_resource_build!$T:$T,raw_resource_build!$A:$A,X$940,raw_resource_build!$E:$E,$C950)/10^6)","v":0},{"$f":"SUM(SUMIFS(raw_resource_build!$S:$S,raw_resource_build!$A:$A,Y$940,raw_resource_build!$E:$E,$C950)/10^6,\nSUMIFS(raw_resource_build!$T:$T,raw_resource_build!$A:$A,Y$940,raw_resource_build!$E:$E,$C950)/10^6)","v":0},{"$f":"SUM(SUMIFS(raw_resource_build!$S:$S,raw_resource_build!$A:$A,Z$940,raw_resource_build!$E:$E,$C950)/10^6,\nSUMIFS(raw_resource_build!$T:$T,raw_resource_build!$A:$A,Z$940,raw_resource_build!$E:$E,$C950)/10^6)","v":0},{"$f":"SUM(SUMIFS(raw_resource_build!$S:$S,raw_resource_build!$A:$A,AA$940,raw_resource_build!$E:$E,$C950)/10^6,\nSUMIFS(raw_resource_build!$T:$T,raw_resource_build!$A:$A,AA$940,raw_resource_build!$E:$E,$C950)/10^6)","v":0},{"$f":"SUM(SUMIFS(raw_resource_build!$S:$S,raw_resource_build!$A:$A,AB$940,raw_resource_build!$E:$E,$C950)/10^6,\nSUMIFS(raw_resource_build!$T:$T,raw_resource_build!$A:$A,AB$940,raw_resource_build!$E:$E,$C950)/10^6)","v":0},{"$f":"SUM(SUMIFS(raw_resource_build!$S:$S,raw_resource_build!$A:$A,AC$940,raw_resource_build!$E:$E,$C950)/10^6,\nSUMIFS(raw_resource_build!$T:$T,raw_resource_build!$A:$A,AC$940,raw_resource_build!$E:$E,$C950)/10^6)","v":0},{"$f":"SUM(SUMIFS(raw_resource_build!$S:$S,raw_resource_build!$A:$A,AD$940,raw_resource_build!$E:$E,$C950)/10^6,\nSUMIFS(raw_resource_build!$T:$T,raw_resource_build!$A:$A,AD$940,raw_resource_build!$E:$E,$C950)/10^6)","v":0},{"$f":"SUM(SUMIFS(raw_resource_build!$S:$S,raw_resource_build!$A:$A,AE$940,raw_resource_build!$E:$E,$C950)/10^6,\nSUMIFS(raw_resource_build!$T:$T,raw_resource_build!$A:$A,AE$940,raw_resource_build!$E:$E,$C950)/10^6)","v":0},{"$f":"SUM(SUMIFS(raw_resource_build!$S:$S,raw_resource_build!$A:$A,AF$940,raw_resource_build!$E:$E,$C950)/10^6,\nSUMIFS(raw_resource_build!$T:$T,raw_resource_build!$A:$A,AF$940,raw_resource_build!$E:$E,$C950)/10^6)","v":0},{"$f":"SUM(SUMIFS(raw_resource_build!$S:$S,raw_resource_build!$A:$A,AG$940,raw_resource_build!$E:$E,$C950)/10^6,\nSUMIFS(raw_resource_build!$T:$T,raw_resource_build!$A:$A,AG$940,raw_resource_build!$E:$E,$C950)/10^6)","v":0},{"$f":"SUM(SUMIFS(raw_resource_build!$S:$S,raw_resource_build!$A:$A,AH$940,raw_resource_build!$E:$E,$C950)/10^6,\nSUMIFS(raw_resource_build!$T:$T,raw_resource_build!$A:$A,AH$940,raw_resource_build!$E:$E,$C950)/10^6)","v":0},{"$f":"SUM(SUMIFS(raw_resource_build!$S:$S,raw_resource_build!$A:$A,AI$940,raw_resource_build!$E:$E,$C950)/10^6,\nSUMIFS(raw_resource_build!$T:$T,raw_resource_build!$A:$A,AI$940,raw_resource_build!$E:$E,$C950)/10^6)","v":0},{"$f":"SUM(SUMIFS(raw_resource_build!$S:$S,raw_resource_build!$A:$A,AJ$940,raw_resource_build!$E:$E,$C950)/10^6,\nSUMIFS(raw_resource_build!$T:$T,raw_resource_build!$A:$A,AJ$940,raw_resource_build!$E:$E,$C950)/10^6)","v":0},{"$f":"SUM(SUMIFS(raw_resource_build!$S:$S,raw_resource_build!$A:$A,AK$940,raw_resource_build!$E:$E,$C950)/10^6,\nSUMIFS(raw_resource_build!$T:$T,raw_resource_build!$A:$A,AK$940,raw_resource_build!$E:$E,$C950)/10^6)","v":0},{"$f":"SUM(SUMIFS(raw_resource_build!$S:$S,raw_resource_build!$A:$A,AL$940,raw_resource_build!$E:$E,$C950)/10^6,\nSUMIFS(raw_resource_build!$T:$T,raw_resource_build!$A:$A,AL$940,raw_resource_build!$E:$E,$C950)/10^6)","v":0},{"$f":"SUM(SUMIFS(raw_resource_build!$S:$S,raw_resource_build!$A:$A,AM$940,raw_resource_build!$E:$E,$C950)/10^6,\nSUMIFS(raw_resource_build!$T:$T,raw_resource_build!$A:$A,AM$940,raw_resource_build!$E:$E,$C950)/10^6)","v":0},{"$f":"SUM(SUMIFS(raw_resource_build!$S:$S,raw_resource_build!$A:$A,AN$940,raw_resource_build!$E:$E,$C950)/10^6,\nSUMIFS(raw_resource_build!$T:$T,raw_resource_build!$A:$A,AN$940,raw_resource_build!$E:$E,$C950)/10^6)","v":0}]
[null,null,{"$f":"Lists!B15","v":"CAISO_Nuclear"},"$MM",{"$f":"SUM(SUMIFS(raw_resource_build!$S:$S,raw_resource_build!$A:$A,E$940,raw_resource_build!$E:$E,$C951)/10^6,\nSUMIFS(raw_resource_build!$T:$T,raw_resource_build!$A:$A,E$940,raw_resource_build!$E:$E,$C951)/10^6)","v":0},{"$f":"SUM(SUMIFS(raw_resource_build!$S:$S,raw_resource_build!$A:$A,F$940,raw_resource_build!$E:$E,$C951)/10^6,\nSUMIFS(raw_resource_build!$T:$T,raw_resource_build!$A:$A,F$940,raw_resource_build!$E:$E,$C951)/10^6)","v":0},{"$f":"SUM(SUMIFS(raw_resource_build!$S:$S,raw_resource_build!$A:$A,G$940,raw_resource_build!$E:$E,$C951)/10^6,\nSUMIFS(raw_resource_build!$T:$T,raw_resource_build!$A:$A,G$940,raw_resource_build!$E:$E,$C951)/10^6)","v":0},{"$f":"SUM(SUMIFS(raw_resource_build!$S:$S,raw_resource_build!$A:$A,H$940,raw_resource_build!$E:$E,$C951)/10^6,\nSUMIFS(raw_resource_build!$T:$T,raw_resource_build!$A:$A,H$940,raw_resource_build!$E:$E,$C951)/10^6)","v":0},{"$f":"SUM(SUMIFS(raw_resource_build!$S:$S,raw_resource_build!$A:$A,I$940,raw_resource_build!$E:$E,$C951)/10^6,\nSUMIFS(raw_resource_build!$T:$T,raw_resource_build!$A:$A,I$940,raw_resource_build!$E:$E,$C951)/10^6)","v":0},{"$f":"SUM(SUMIFS(raw_resource_build!$S:$S,raw_resource_build!$A:$A,J$940,raw_resource_build!$E:$E,$C951)/10^6,\nSUMIFS(raw_resource_build!$T:$T,raw_resource_build!$A:$A,J$940,raw_resource_build!$E:$E,$C951)/10^6)","v":0},{"$f":"SUM(SUMIFS(raw_resource_build!$S:$S,raw_resource_build!$A:$A,K$940,raw_resource_build!$E:$E,$C951)/10^6,\nSUMIFS(raw_resource_build!$T:$T,raw_resource_build!$A:$A,K$940,raw_resource_build!$E:$E,$C951)/10^6)","v":0},{"$f":"SUM(SUMIFS(raw_resource_build!$S:$S,raw_resource_build!$A:$A,L$940,raw_resource_build!$E:$E,$C951)/10^6,\nSUMIFS(raw_resource_build!$T:$T,raw_resource_build!$A:$A,L$940,raw_resource_build!$E:$E,$C951)/10^6)","v":0},{"$f":"SUM(SUMIFS(raw_resource_build!$S:$S,raw_resource_build!$A:$A,M$940,raw_resource_build!$E:$E,$C951)/10^6,\nSUMIFS(raw_resource_build!$T:$T,raw_resource_build!$A:$A,M$940,raw_resource_build!$E:$E,$C951)/10^6)","v":0},{"$f":"SUM(SUMIFS(raw_resource_build!$S:$S,raw_resource_build!$A:$A,N$940,raw_resource_build!$E:$E,$C951)/10^6,\nSUMIFS(raw_resource_build!$T:$T,raw_resource_build!$A:$A,N$940,raw_resource_build!$E:$E,$C951)/10^6)","v":0},{"$f":"SUM(SUMIFS(raw_resource_build!$S:$S,raw_resource_build!$A:$A,O$940,raw_resource_build!$E:$E,$C951)/10^6,\nSUMIFS(raw_resource_build!$T:$T,raw_resource_build!$A:$A,O$940,raw_resource_build!$E:$E,$C951)/10^6)","v":0},{"$f":"SUM(SUMIFS(raw_resource_build!$S:$S,raw_resource_build!$A:$A,P$940,raw_resource_build!$E:$E,$C951)/10^6,\nSUMIFS(raw_resource_build!$T:$T,raw_resource_build!$A:$A,P$940,raw_resource_build!$E:$E,$C951)/10^6)","v":0},{"$f":"SUM(SUMIFS(raw_resource_build!$S:$S,raw_resource_build!$A:$A,Q$940,raw_resource_build!$E:$E,$C951)/10^6,\nSUMIFS(raw_resource_build!$T:$T,raw_resource_build!$A:$A,Q$940,raw_resource_build!$E:$E,$C951)/10^6)","v":0},{"$f":"SUM(SUMIFS(raw_resource_build!$S:$S,raw_resource_build!$A:$A,R$940,raw_resource_build!$E:$E,$C951)/10^6,\nSUMIFS(raw_resource_build!$T:$T,raw_resource_build!$A:$A,R$940,raw_resource_build!$E:$E,$C951)/10^6)","v":0},{"$f":"SUM(SUMIFS(raw_resource_build!$S:$S,raw_resource_build!$A:$A,S$940,raw_resource_build!$E:$E,$C951)/10^6,\nSUMIFS(raw_resource_build!$T:$T,raw_resource_build!$A:$A,S$940,raw_resource_build!$E:$E,$C951)/10^6)","v":0},{"$f":"SUM(SUMIFS(raw_resource_build!$S:$S,raw_resource_build!$A:$A,T$940,raw_resource_build!$E:$E,$C951)/10^6,\nSUMIFS(raw_resource_build!$T:$T,raw_resource_build!$A:$A,T$940,raw_resource_build!$E:$E,$C951)/10^6)","v":0},{"$f":"SUM(SUMIFS(raw_resource_build!$S:$S,raw_resource_build!$A:$A,U$940,raw_resource_build!$E:$E,$C951)/10^6,\nSUMIFS(raw_resource_build!$T:$T,raw_resource_build!$A:$A,U$940,raw_resource_build!$E:$E,$C951)/10^6)","v":0},{"$f":"SUM(SUMIFS(raw_resource_build!$S:$S,raw_resource_build!$A:$A,V$940,raw_resource_build!$E:$E,$C951)/10^6,\nSUMIFS(raw_resource_build!$T:$T,raw_resource_build!$A:$A,V$940,raw_resource_build!$E:$E,$C951)/10^6)","v":0},{"$f":"SUM(SUMIFS(raw_resource_build!$S:$S,raw_resource_build!$A:$A,W$940,raw_resource_build!$E:$E,$C951)/10^6,\nSUMIFS(raw_resource_build!$T:$T,raw_resource_build!$A:$A,W$940,raw_resource_build!$E:$E,$C951)/10^6)","v":0},{"$f":"SUM(SUMIFS(raw_resource_build!$S:$S,raw_resource_build!$A:$A,X$940,raw_resource_build!$E:$E,$C951)/10^6,\nSUMIFS(raw_resource_build!$T:$T,raw_resource_build!$A:$A,X$940,raw_resource_build!$E:$E,$C951)/10^6)","v":0},{"$f":"SUM(SUMIFS(raw_resource_build!$S:$S,raw_resource_build!$A:$A,Y$940,raw_resource_build!$E:$E,$C951)/10^6,\nSUMIFS(raw_resource_build!$T:$T,raw_resource_build!$A:$A,Y$940,raw_resource_build!$E:$E,$C951)/10^6)","v":0},{"$f":"SUM(SUMIFS(raw_resource_build!$S:$S,raw_resource_build!$A:$A,Z$940,raw_resource_build!$E:$E,$C951)/10^6,\nSUMIFS(raw_resource_build!$T:$T,raw_resource_build!$A:$A,Z$940,raw_resource_build!$E:$E,$C951)/10^6)","v":0},{"$f":"SUM(SUMIFS(raw_resource_build!$S:$S,raw_resource_build!$A:$A,AA$940,raw_resource_build!$E:$E,$C951)/10^6,\nSUMIFS(raw_resource_build!$T:$T,raw_resource_build!$A:$A,AA$940,raw_resource_build!$E:$E,$C951)/10^6)","v":0},{"$f":"SUM(SUMIFS(raw_resource_build!$S:$S,raw_resource_build!$A:$A,AB$940,raw_resource_build!$E:$E,$C951)/10^6,\nSUMIFS(raw_resource_build!$T:$T,raw_resource_build!$A:$A,AB$940,raw_resource_build!$E:$E,$C951)/10^6)","v":0},{"$f":"SUM(SUMIFS(raw_resource_build!$S:$S,raw_resource_build!$A:$A,AC$940,raw_resource_build!$E:$E,$C951)/10^6,\nSUMIFS(raw_resource_build!$T:$T,raw_resource_build!$A:$A,AC$940,raw_resource_build!$E:$E,$C951)/10^6)","v":0},{"$f":"SUM(SUMIFS(raw_resource_build!$S:$S,raw_resource_build!$A:$A,AD$940,raw_resource_build!$E:$E,$C951)/10^6,\nSUMIFS(raw_resource_build!$T:$T,raw_resource_build!$A:$A,AD$940,raw_resource_build!$E:$E,$C951)/10^6)","v":0},{"$f":"SUM(SUMIFS(raw_resource_build!$S:$S,raw_resource_build!$A:$A,AE$940,raw_resource_build!$E:$E,$C951)/10^6,\nSUMIFS(raw_resource_build!$T:$T,raw_resource_build!$A:$A,AE$940,raw_resource_build!$E:$E,$C951)/10^6)","v":0},{"$f":"SUM(SUMIFS(raw_resource_build!$S:$S,raw_resource_build!$A:$A,AF$940,raw_resource_build!$E:$E,$C951)/10^6,\nSUMIFS(raw_resource_build!$T:$T,raw_resource_build!$A:$A,AF$940,raw_resource_build!$E:$E,$C951)/10^6)","v":0},{"$f":"SUM(SUMIFS(raw_resource_build!$S:$S,raw_resource_build!$A:$A,AG$940,raw_resource_build!$E:$E,$C951)/10^6,\nSUMIFS(raw_resource_build!$T:$T,raw_resource_build!$A:$A,AG$940,raw_resource_build!$E:$E,$C951)/10^6)","v":0},{"$f":"SUM(SUMIFS(raw_resource_build!$S:$S,raw_resource_build!$A:$A,AH$940,raw_resource_build!$E:$E,$C951)/10^6,\nSUMIFS(raw_resource_build!$T:$T,raw_resource_build!$A:$A,AH$940,raw_resource_build!$E:$E,$C951)/10^6)","v":0},{"$f":"SUM(SUMIFS(raw_resource_build!$S:$S,raw_resource_build!$A:$A,AI$940,raw_resource_build!$E:$E,$C951)/10^6,\nSUMIFS(raw_resource_build!$T:$T,raw_resource_build!$A:$A,AI$940,raw_resource_build!$E:$E,$C951)/10^6)","v":0},{"$f":"SUM(SUMIFS(raw_resource_build!$S:$S,raw_resource_build!$A:$A,AJ$940,raw_resource_build!$E:$E,$C951)/10^6,\nSUMIFS(raw_resource_build!$T:$T,raw_resource_build!$A:$A,AJ$940,raw_resource_build!$E:$E,$C951)/10^6)","v":0},{"$f":"SUM(SUMIFS(raw_resource_build!$S:$S,raw_resource_build!$A:$A,AK$940,raw_resource_build!$E:$E,$C951)/10^6,\nSUMIFS(raw_resource_build!$T:$T,raw_resource_build!$A:$A,AK$940,raw_resource_build!$E:$E,$C951)/10^6)","v":0},{"$f":"SUM(SUMIFS(raw_resource_build!$S:$S,raw_resource_build!$A:$A,AL$940,raw_resource_build!$E:$E,$C951)/10^6,\nSUMIFS(raw_resource_build!$T:$T,raw_resource_build!$A:$A,AL$940,raw_resource_build!$E:$E,$C951)/10^6)","v":0},{"$f":"SUM(SUMIFS(raw_resource_build!$S:$S,raw_resource_build!$A:$A,AM$940,raw_resource_build!$E:$E,$C951)/10^6,\nSUMIFS(raw_resource_build!$T:$T,raw_resource_build!$A:$A,AM$940,raw_resource_build!$E:$E,$C951)/10^6)","v":0},{"$f":"SUM(SUMIFS(raw_resource_build!$S:$S,raw_resource_build!$A:$A,AN$940,raw_resource_build!$E:$E,$C951)/10^6,\nSUMIFS(raw_resource_build!$T:$T,raw_resource_build!$A:$A,AN$940,raw_resource_build!$E:$E,$C951)/10^6)","v":0}]
[null,null,{"$f":"Lists!B16","v":"Hydro"},"$MM",{"$f":"SUM(SUMIFS(raw_resource_build!$S:$S,raw_resource_build!$A:$A,E$940,raw_resource_build!$E:$E,$C952)/10^6,\nSUMIFS(raw_resource_build!$T:$T,raw_resource_build!$A:$A,E$940,raw_resource_build!$E:$E,$C952)/10^6)","v":0},{"$f":"SUM(SUMIFS(raw_resource_build!$S:$S,raw_resource_build!$A:$A,F$940,raw_resource_build!$E:$E,$C952)/10^6,\nSUMIFS(raw_resource_build!$T:$T,raw_resource_build!$A:$A,F$940,raw_resource_build!$E:$E,$C952)/10^6)","v":0},{"$f":"SUM(SUMIFS(raw_resource_build!$S:$S,raw_resource_build!$A:$A,G$940,raw_resource_build!$E:$E,$C952)/10^6,\nSUMIFS(raw_resource_build!$T:$T,raw_resource_build!$A:$A,G$940,raw_resource_build!$E:$E,$C952)/10^6)","v":0},{"$f":"SUM(SUMIFS(raw_resource_build!$S:$S,raw_resource_build!$A:$A,H$940,raw_resource_build!$E:$E,$C952)/10^6,\nSUMIFS(raw_resource_build!$T:$T,raw_resource_build!$A:$A,H$940,raw_resource_build!$E:$E,$C952)/10^6)","v":0},{"$f":"SUM(SUMIFS(raw_resource_build!$S:$S,raw_resource_build!$A:$A,I$940,raw_resource_build!$E:$E,$C952)/10^6,\nSUMIFS(raw_resource_build!$T:$T,raw_resource_build!$A:$A,I$940,raw_resource_build!$E:$E,$C952)/10^6)","v":0},{"$f":"SUM(SUMIFS(raw_resource_build!$S:$S,raw_resource_build!$A:$A,J$940,raw_resource_build!$E:$E,$C952)/10^6,\nSUMIFS(raw_resource_build!$T:$T,raw_resource_build!$A:$A,J$940,raw_resource_build!$E:$E,$C952)/10^6)","v":0},{"$f":"SUM(SUMIFS(raw_resource_build!$S:$S,raw_resource_build!$A:$A,K$940,raw_resource_build!$E:$E,$C952)/10^6,\nSUMIFS(raw_resource_build!$T:$T,raw_resource_build!$A:$A,K$940,raw_resource_build!$E:$E,$C952)/10^6)","v":0},{"$f":"SUM(SUMIFS(raw_resource_build!$S:$S,raw_resource_build!$A:$A,L$940,raw_resource_build!$E:$E,$C952)/10^6,\nSUMIFS(raw_resource_build!$T:$T,raw_resource_build!$A:$A,L$940,raw_resource_build!$E:$E,$C952)/10^6)","v":0},{"$f":"SUM(SUMIFS(raw_resource_build!$S:$S,raw_resource_build!$A:$A,M$940,raw_resource_build!$E:$E,$C952)/10^6,\nSUMIFS(raw_resource_build!$T:$T,raw_resource_build!$A:$A,M$940,raw_resource_build!$E:$E,$C952)/10^6)","v":0},{"$f":"SUM(SUMIFS(raw_resource_build!$S:$S,raw_resource_build!$A:$A,N$940,raw_resource_build!$E:$E,$C952)/10^6,\nSUMIFS(raw_resource_build!$T:$T,raw_resource_build!$A:$A,N$940,raw_resource_build!$E:$E,$C952)/10^6)","v":0},{"$f":"SUM(SUMIFS(raw_resource_build!$S:$S,raw_resource_build!$A:$A,O$940,raw_resource_build!$E:$E,$C952)/10^6,\nSUMIFS(raw_resource_build!$T:$T,raw_resource_build!$A:$A,O$940,raw_resource_build!$E:$E,$C952)/10^6)","v":0},{"$f":"SUM(SUMIFS(raw_resource_build!$S:$S,raw_resource_build!$A:$A,P$940,raw_resource_build!$E:$E,$C952)/10^6,\nSUMIFS(raw_resource_build!$T:$T,raw_resource_build!$A:$A,P$940,raw_resource_build!$E:$E,$C952)/10^6)","v":0},{"$f":"SUM(SUMIFS(raw_resource_build!$S:$S,raw_resource_build!$A:$A,Q$940,raw_resource_build!$E:$E,$C952)/10^6,\nSUMIFS(raw_resource_build!$T:$T,raw_resource_build!$A:$A,Q$940,raw_resource_build!$E:$E,$C952)/10^6)","v":0},{"$f":"SUM(SUMIFS(raw_resource_build!$S:$S,raw_resource_build!$A:$A,R$940,raw_resource_build!$E:$E,$C952)/10^6,\nSUMIFS(raw_resource_build!$T:$T,raw_resource_build!$A:$A,R$940,raw_resource_build!$E:$E,$C952)/10^6)","v":0},{"$f":"SUM(SUMIFS(raw_resource_build!$S:$S,raw_resource_build!$A:$A,S$940,raw_resource_build!$E:$E,$C952)/10^6,\nSUMIFS(raw_resource_build!$T:$T,raw_resource_build!$A:$A,S$940,raw_resource_build!$E:$E,$C952)/10^6)","v":0},{"$f":"SUM(SUMIFS(raw_resource_build!$S:$S,raw_resource_build!$A:$A,T$940,raw_resource_build!$E:$E,$C952)/10^6,\nSUMIFS(raw_resource_build!$T:$T,raw_resource_build!$A:$A,T$940,raw_resource_build!$E:$E,$C952)/10^6)","v":0},{"$f":"SUM(SUMIFS(raw_resource_build!$S:$S,raw_resource_build!$A:$A,U$940,raw_resource_build!$E:$E,$C952)/10^6,\nSUMIFS(raw_resource_build!$T:$T,raw_resource_build!$A:$A,U$940,raw_resource_build!$E:$E,$C952)/10^6)","v":0},{"$f":"SUM(SUMIFS(raw_resource_build!$S:$S,raw_resource_build!$A:$A,V$940,raw_resource_build!$E:$E,$C952)/10^6,\nSUMIFS(raw_resource_build!$T:$T,raw_resource_build!$A:$A,V$940,raw_resource_build!$E:$E,$C952)/10^6)","v":0},{"$f":"SUM(SUMIFS(raw_resource_build!$S:$S,raw_resource_build!$A:$A,W$940,raw_resource_build!$E:$E,$C952)/10^6,\nSUMIFS(raw_resource_build!$T:$T,raw_resource_build!$A:$A,W$940,raw_resource_build!$E:$E,$C952)/10^6)","v":0},{"$f":"SUM(SUMIFS(raw_resource_build!$S:$S,raw_resource_build!$A:$A,X$940,raw_resource_build!$E:$E,$C952)/10^6,\nSUMIFS(raw_resource_build!$T:$T,raw_resource_build!$A:$A,X$940,raw_resource_build!$E:$E,$C952)/10^6)","v":0},{"$f":"SUM(SUMIFS(raw_resource_build!$S:$S,raw_resource_build!$A:$A,Y$940,raw_resource_build!$E:$E,$C952)/10^6,\nSUMIFS(raw_resource_build!$T:$T,raw_resource_build!$A:$A,Y$940,raw_resource_build!$E:$E,$C952)/10^6)","v":0},{"$f":"SUM(SUMIFS(raw_resource_build!$S:$S,raw_resource_build!$A:$A,Z$940,raw_resource_build!$E:$E,$C952)/10^6,\nSUMIFS(raw_resource_build!$T:$T,raw_resource_build!$A:$A,Z$940,raw_resource_build!$E:$E,$C952)/10^6)","v":0},{"$f":"SUM(SUMIFS(raw_resource_build!$S:$S,raw_resource_build!$A:$A,AA$940,raw_resource_build!$E:$E,$C952)/10^6,\nSUMIFS(raw_resource_build!$T:$T,raw_resource_build!$A:$A,AA$940,raw_resource_build!$E:$E,$C952)/10^6)","v":0},{"$f":"SUM(SUMIFS(raw_resource_build!$S:$S,raw_resource_build!$A:$A,AB$940,raw_resource_build!$E:$E,$C952)/10^6,\nSUMIFS(raw_resource_build!$T:$T,raw_resource_build!$A:$A,AB$940,raw_resource_build!$E:$E,$C952)/10^6)","v":0},{"$f":"SUM(SUMIFS(raw_resource_build!$S:$S,raw_resource_build!$A:$A,AC$940,raw_resource_build!$E:$E,$C952)/10^6,\nSUMIFS(raw_resource_build!$T:$T,raw_resource_build!$A:$A,AC$940,raw_resource_build!$E:$E,$C952)/10^6)","v":0},{"$f":"SUM(SUMIFS(raw_resource_build!$S:$S,raw_resource_build!$A:$A,AD$940,raw_resource_build!$E:$E,$C952)/10^6,\nSUMIFS(raw_resource_build!$T:$T,raw_resource_build!$A:$A,AD$940,raw_resource_build!$E:$E,$C952)/10^6)","v":0},{"$f":"SUM(SUMIFS(raw_resource_build!$S:$S,raw_resource_build!$A:$A,AE$940,raw_resource_build!$E:$E,$C952)/10^6,\nSUMIFS(raw_resource_build!$T:$T,raw_resource_build!$A:$A,AE$940,raw_resource_build!$E:$E,$C952)/10^6)","v":0},{"$f":"SUM(SUMIFS(raw_resource_build!$S:$S,raw_resource_build!$A:$A,AF$940,raw_resource_build!$E:$E,$C952)/10^6,\nSUMIFS(raw_resource_build!$T:$T,raw_resource_build!$A:$A,AF$940,raw_resource_build!$E:$E,$C952)/10^6)","v":0},{"$f":"SUM(SUMIFS(raw_resource_build!$S:$S,raw_resource_build!$A:$A,AG$940,raw_resource_build!$E:$E,$C952)/10^6,\nSUMIFS(raw_resource_build!$T:$T,raw_resource_build!$A:$A,AG$940,raw_resource_build!$E:$E,$C952)/10^6)","v":0},{"$f":"SUM(SUMIFS(raw_resource_build!$S:$S,raw_resource_build!$A:$A,AH$940,raw_resource_build!$E:$E,$C952)/10^6,\nSUMIFS(raw_resource_build!$T:$T,raw_resource_build!$A:$A,AH$940,raw_resource_build!$E:$E,$C952)/10^6)","v":0},{"$f":"SUM(SUMIFS(raw_resource_build!$S:$S,raw_resource_build!$A:$A,AI$940,raw_resource_build!$E:$E,$C952)/10^6,\nSUMIFS(raw_resource_build!$T:$T,raw_resource_build!$A:$A,AI$940,raw_resource_build!$E:$E,$C952)/10^6)","v":0},{"$f":"SUM(SUMIFS(raw_resource_build!$S:$S,raw_resource_build!$A:$A,AJ$940,raw_resource_build!$E:$E,$C952)/10^6,\nSUMIFS(raw_resource_build!$T:$T,raw_resource_build!$A:$A,AJ$940,raw_resource_build!$E:$E,$C952)/10^6)","v":0},{"$f":"SUM(SUMIFS(raw_resource_build!$S:$S,raw_resource_build!$A:$A,AK$940,raw_resource_build!$E:$E,$C952)/10^6,\nSUMIFS(raw_resource_build!$T:$T,raw_resource_build!$A:$A,AK$940,raw_resource_build!$E:$E,$C952)/10^6)","v":0},{"$f":"SUM(SUMIFS(raw_resource_build!$S:$S,raw_resource_build!$A:$A,AL$940,raw_resource_build!$E:$E,$C952)/10^6,\nSUMIFS(raw_resource_build!$T:$T,raw_resource_build!$A:$A,AL$940,raw_resource_build!$E:$E,$C952)/10^6)","v":0},{"$f":"SUM(SUMIFS(raw_resource_build!$S:$S,raw_resource_build!$A:$A,AM$940,raw_resource_build!$E:$E,$C952)/10^6,\nSUMIFS(raw_resource_build!$T:$T,raw_resource_build!$A:$A,AM$940,raw_resource_build!$E:$E,$C952)/10^6)","v":0},{"$f":"SUM(SUMIFS(raw_resource_build!$S:$S,raw_resource_build!$A:$A,AN$940,raw_resource_build!$E:$E,$C952)/10^6,\nSUMIFS(raw_resource_build!$T:$T,raw_resource_build!$A:$A,AN$940,raw_resource_build!$E:$E,$C952)/10^6)","v":0}]
[null,null,{"$f":"Lists!B17","v":"Hydro_NW_CAISO"},"$MM",{"$f":"SUM(SUMIFS(raw_resource_build!$S:$S,raw_resource_build!$A:$A,E$940,raw_resource_build!$E:$E,$C953)/10^6,\nSUMIFS(raw_resource_build!$T:$T,raw_resource_build!$A:$A,E$940,raw_resource_build!$E:$E,$C953)/10^6)","v":0},{"$f":"SUM(SUMIFS(raw_resource_build!$S:$S,raw_resource_build!$A:$A,F$940,raw_resource_build!$E:$E,$C953)/10^6,\nSUMIFS(raw_resource_build!$T:$T,raw_resource_build!$A:$A,F$940,raw_resource_build!$E:$E,$C953)/10^6)","v":0},{"$f":"SUM(SUMIFS(raw_resource_build!$S:$S,raw_resource_build!$A:$A,G$940,raw_resource_build!$E:$E,$C953)/10^6,\nSUMIFS(raw_resource_build!$T:$T,raw_resource_build!$A:$A,G$940,raw_resource_build!$E:$E,$C953)/10^6)","v":0},{"$f":"SUM(SUMIFS(raw_resource_build!$S:$S,raw_resource_build!$A:$A,H$940,raw_resource_build!$E:$E,$C953)/10^6,\nSUMIFS(raw_resource_build!$T:$T,raw_resource_build!$A:$A,H$940,raw_resource_build!$E:$E,$C953)/10^6)","v":0},{"$f":"SUM(SUMIFS(raw_resource_build!$S:$S,raw_resource_build!$A:$A,I$940,raw_resource_build!$E:$E,$C953)/10^6,\nSUMIFS(raw_resource_build!$T:$T,raw_resource_build!$A:$A,I$940,raw_resource_build!$E:$E,$C953)/10^6)","v":0},{"$f":"SUM(SUMIFS(raw_resource_build!$S:$S,raw_resource_build!$A:$A,J$940,raw_resource_build!$E:$E,$C953)/10^6,\nSUMIFS(raw_resource_build!$T:$T,raw_resource_build!$A:$A,J$940,raw_resource_build!$E:$E,$C953)/10^6)","v":0},{"$f":"SUM(SUMIFS(raw_resource_build!$S:$S,raw_resource_build!$A:$A,K$940,raw_resource_build!$E:$E,$C953)/10^6,\nSUMIFS(raw_resource_build!$T:$T,raw_resource_build!$A:$A,K$940,raw_resource_build!$E:$E,$C953)/10^6)","v":0},{"$f":"SUM(SUMIFS(raw_resource_build!$S:$S,raw_resource_build!$A:$A,L$940,raw_resource_build!$E:$E,$C953)/10^6,\nSUMIFS(raw_resource_build!$T:$T,raw_resource_build!$A:$A,L$940,raw_resource_build!$E:$E,$C953)/10^6)","v":0},{"$f":"SUM(SUMIFS(raw_resource_build!$S:$S,raw_resource_build!$A:$A,M$940,raw_resource_build!$E:$E,$C953)/10^6,\nSUMIFS(raw_resource_build!$T:$T,raw_resource_build!$A:$A,M$940,raw_resource_build!$E:$E,$C953)/10^6)","v":0},{"$f":"SUM(SUMIFS(raw_resource_build!$S:$S,raw_resource_build!$A:$A,N$940,raw_resource_build!$E:$E,$C953)/10^6,\nSUMIFS(raw_resource_build!$T:$T,raw_resource_build!$A:$A,N$940,raw_resource_build!$E:$E,$C953)/10^6)","v":0},{"$f":"SUM(SUMIFS(raw_resource_build!$S:$S,raw_resource_build!$A:$A,O$940,raw_resource_build!$E:$E,$C953)/10^6,\nSUMIFS(raw_resource_build!$T:$T,raw_resource_build!$A:$A,O$940,raw_resource_build!$E:$E,$C953)/10^6)","v":0},{"$f":"SUM(SUMIFS(raw_resource_build!$S:$S,raw_resource_build!$A:$A,P$940,raw_resource_build!$E:$E,$C953)/10^6,\nSUMIFS(raw_resource_build!$T:$T,raw_resource_build!$A:$A,P$940,raw_resource_build!$E:$E,$C953)/10^6)","v":0},{"$f":"SUM(SUMIFS(raw_resource_build!$S:$S,raw_resource_build!$A:$A,Q$940,raw_resource_build!$E:$E,$C953)/10^6,\nSUMIFS(raw_resource_build!$T:$T,raw_resource_build!$A:$A,Q$940,raw_resource_build!$E:$E,$C953)/10^6)","v":0},{"$f":"SUM(SUMIFS(raw_resource_build!$S:$S,raw_resource_build!$A:$A,R$940,raw_resource_build!$E:$E,$C953)/10^6,\nSUMIFS(raw_resource_build!$T:$T,raw_resource_build!$A:$A,R$940,raw_resource_build!$E:$E,$C953)/10^6)","v":0},{"$f":"SUM(SUMIFS(raw_resource_build!$S:$S,raw_resource_build!$A:$A,S$940,raw_resource_build!$E:$E,$C953)/10^6,\nSUMIFS(raw_resource_build!$T:$T,raw_resource_build!$A:$A,S$940,raw_resource_build!$E:$E,$C953)/10^6)","v":0},{"$f":"SUM(SUMIFS(raw_resource_build!$S:$S,raw_resource_build!$A:$A,T$940,raw_resource_build!$E:$E,$C953)/10^6,\nSUMIFS(raw_resource_build!$T:$T,raw_resource_build!$A:$A,T$940,raw_resource_build!$E:$E,$C953)/10^6)","v":0},{"$f":"SUM(SUMIFS(raw_resource_build!$S:$S,raw_resource_build!$A:$A,U$940,raw_resource_build!$E:$E,$C953)/10^6,\nSUMIFS(raw_resource_build!$T:$T,raw_resource_build!$A:$A,U$940,raw_resource_build!$E:$E,$C953)/10^6)","v":0},{"$f":"SUM(SUMIFS(raw_resource_build!$S:$S,raw_resource_build!$A:$A,V$940,raw_resource_build!$E:$E,$C953)/10^6,\nSUMIFS(raw_resource_build!$T:$T,raw_resource_build!$A:$A,V$940,raw_resource_build!$E:$E,$C953)/10^6)","v":0},{"$f":"SUM(SUMIFS(raw_resource_build!$S:$S,raw_resource_build!$A:$A,W$940,raw_resource_build!$E:$E,$C953)/10^6,\nSUMIFS(raw_resource_build!$T:$T,raw_resource_build!$A:$A,W$940,raw_resource_build!$E:$E,$C953)/10^6)","v":0},{"$f":"SUM(SUMIFS(raw_resource_build!$S:$S,raw_resource_build!$A:$A,X$940,raw_resource_build!$E:$E,$C953)/10^6,\nSUMIFS(raw_resource_build!$T:$T,raw_resource_build!$A:$A,X$940,raw_resource_build!$E:$E,$C953)/10^6)","v":0},{"$f":"SUM(SUMIFS(raw_resource_build!$S:$S,raw_resource_build!$A:$A,Y$940,raw_resource_build!$E:$E,$C953)/10^6,\nSUMIFS(raw_resource_build!$T:$T,raw_resource_build!$A:$A,Y$940,raw_resource_build!$E:$E,$C953)/10^6)","v":0},{"$f":"SUM(SUMIFS(raw_resource_build!$S:$S,raw_resource_build!$A:$A,Z$940,raw_resource_build!$E:$E,$C953)/10^6,\nSUMIFS(raw_resource_build!$T:$T,raw_resource_build!$A:$A,Z$940,raw_resource_build!$E:$E,$C953)/10^6)","v":0},{"$f":"SUM(SUMIFS(raw_resource_build!$S:$S,raw_resource_build!$A:$A,AA$940,raw_resource_build!$E:$E,$C953)/10^6,\nSUMIFS(raw_resource_build!$T:$T,raw_resource_build!$A:$A,AA$940,raw_resource_build!$E:$E,$C953)/10^6)","v":0},{"$f":"SUM(SUMIFS(raw_resource_build!$S:$S,raw_resource_build!$A:$A,AB$940,raw_resource_build!$E:$E,$C953)/10^6,\nSUMIFS(raw_resource_build!$T:$T,raw_resource_build!$A:$A,AB$940,raw_resource_build!$E:$E,$C953)/10^6)","v":0},{"$f":"SUM(SUMIFS(raw_resource_build!$S:$S,raw_resource_build!$A:$A,AC$940,raw_resource_build!$E:$E,$C953)/10^6,\nSUMIFS(raw_resource_build!$T:$T,raw_resource_build!$A:$A,AC$940,raw_resource_build!$E:$E,$C953)/10^6)","v":0},{"$f":"SUM(SUMIFS(raw_resource_build!$S:$S,raw_resource_build!$A:$A,AD$940,raw_resource_build!$E:$E,$C953)/10^6,\nSUMIFS(raw_resource_build!$T:$T,raw_resource_build!$A:$A,AD$940,raw_resource_build!$E:$E,$C953)/10^6)","v":0},{"$f":"SUM(SUMIFS(raw_resource_build!$S:$S,raw_resource_build!$A:$A,AE$940,raw_resource_build!$E:$E,$C953)/10^6,\nSUMIFS(raw_resource_build!$T:$T,raw_resource_build!$A:$A,AE$940,raw_resource_build!$E:$E,$C953)/10^6)","v":0},{"$f":"SUM(SUMIFS(raw_resource_build!$S:$S,raw_resource_build!$A:$A,AF$940,raw_resource_build!$E:$E,$C953)/10^6,\nSUMIFS(raw_resource_build!$T:$T,raw_resource_build!$A:$A,AF$940,raw_resource_build!$E:$E,$C953)/10^6)","v":0},{"$f":"SUM(SUMIFS(raw_resource_build!$S:$S,raw_resource_build!$A:$A,AG$940,raw_resource_build!$E:$E,$C953)/10^6,\nSUMIFS(raw_resource_build!$T:$T,raw_resource_build!$A:$A,AG$940,raw_resource_build!$E:$E,$C953)/10^6)","v":0},{"$f":"SUM(SUMIFS(raw_resource_build!$S:$S,raw_resource_build!$A:$A,AH$940,raw_resource_build!$E:$E,$C953)/10^6,\nSUMIFS(raw_resource_build!$T:$T,raw_resource_build!$A:$A,AH$940,raw_resource_build!$E:$E,$C953)/10^6)","v":0},{"$f":"SUM(SUMIFS(raw_resource_build!$S:$S,raw_resource_build!$A:$A,AI$940,raw_resource_build!$E:$E,$C953)/10^6,\nSUMIFS(raw_resource_build!$T:$T,raw_resource_build!$A:$A,AI$940,raw_resource_build!$E:$E,$C953)/10^6)","v":0},{"$f":"SUM(SUMIFS(raw_resource_build!$S:$S,raw_resource_build!$A:$A,AJ$940,raw_resource_build!$E:$E,$C953)/10^6,\nSUMIFS(raw_resource_build!$T:$T,raw_resource_build!$A:$A,AJ$940,raw_resource_build!$E:$E,$C953)/10^6)","v":0},{"$f":"SUM(SUMIFS(raw_resource_build!$S:$S,raw_resource_build!$A:$A,AK$940,raw_resource_build!$E:$E,$C953)/10^6,\nSUMIFS(raw_resource_build!$T:$T,raw_resource_build!$A:$A,AK$940,raw_resource_build!$E:$E,$C953)/10^6)","v":0},{"$f":"SUM(SUMIFS(raw_resource_build!$S:$S,raw_resource_build!$A:$A,AL$940,raw_resource_build!$E:$E,$C953)/10^6,\nSUMIFS(raw_resource_build!$T:$T,raw_resource_build!$A:$A,AL$940,raw_resource_build!$E:$E,$C953)/10^6)","v":0},{"$f":"SUM(SUMIFS(raw_resource_build!$S:$S,raw_resource_build!$A:$A,AM$940,raw_resource_build!$E:$E,$C953)/10^6,\nSUMIFS(raw_resource_build!$T:$T,raw_resource_build!$A:$A,AM$940,raw_resource_build!$E:$E,$C953)/10^6)","v":0},{"$f":"SUM(SUMIFS(raw_resource_build!$S:$S,raw_resource_build!$A:$A,AN$940,raw_resource_build!$E:$E,$C953)/10^6,\nSUMIFS(raw_resource_build!$T:$T,raw_resource_build!$A:$A,AN$940,raw_resource_build!$E:$E,$C953)/10^6)","v":0}]
[null,null,{"$f":"Lists!B18","v":"CAISO_Conventional_DR"},"$MM",{"$f":"SUM(SUMIFS(raw_resource_build!$S:$S,raw_resource_build!$A:$A,E$940,raw_resource_build!$E:$E,$C954)/10^6,\nSUMIFS(raw_resource_build!$T:$T,raw_resource_build!$A:$A,E$940,raw_resource_build!$E:$E,$C954)/10^6)","v":0},{"$f":"SUM(SUMIFS(raw_resource_build!$S:$S,raw_resource_build!$A:$A,F$940,raw_resource_build!$E:$E,$C954)/10^6,\nSUMIFS(raw_resource_build!$T:$T,raw_resource_build!$A:$A,F$940,raw_resource_build!$E:$E,$C954)/10^6)","v":0},{"$f":"SUM(SUMIFS(raw_resource_build!$S:$S,raw_resource_build!$A:$A,G$940,raw_resource_build!$E:$E,$C954)/10^6,\nSUMIFS(raw_resource_build!$T:$T,raw_resource_build!$A:$A,G$940,raw_resource_build!$E:$E,$C954)/10^6)","v":0},{"$f":"SUM(SUMIFS(raw_resource_build!$S:$S,raw_resource_build!$A:$A,H$940,raw_resource_build!$E:$E,$C954)/10^6,\nSUMIFS(raw_resource_build!$T:$T,raw_resource_build!$A:$A,H$940,raw_resource_build!$E:$E,$C954)/10^6)","v":0},{"$f":"SUM(SUMIFS(raw_resource_build!$S:$S,raw_resource_build!$A:$A,I$940,raw_resource_build!$E:$E,$C954)/10^6,\nSUMIFS(raw_resource_build!$T:$T,raw_resource_build!$A:$A,I$940,raw_resource_build!$E:$E,$C954)/10^6)","v":0},{"$f":"SUM(SUMIFS(raw_resource_build!$S:$S,raw_resource_build!$A:$A,J$940,raw_resource_build!$E:$E,$C954)/10^6,\nSUMIFS(raw_resource_build!$T:$T,raw_resource_build!$A:$A,J$940,raw_resource_build!$E:$E,$C954)/10^6)","v":0},{"$f":"SUM(SUMIFS(raw_resource_build!$S:$S,raw_resource_build!$A:$A,K$940,raw_resource_build!$E:$E,$C954)/10^6,\nSUMIFS(raw_resource_build!$T:$T,raw_resource_build!$A:$A,K$940,raw_resource_build!$E:$E,$C954)/10^6)","v":0},{"$f":"SUM(SUMIFS(raw_resource_build!$S:$S,raw_resource_build!$A:$A,L$940,raw_resource_build!$E:$E,$C954)/10^6,\nSUMIFS(raw_resource_build!$T:$T,raw_resource_build!$A:$A,L$940,raw_resource_build!$E:$E,$C954)/10^6)","v":0},{"$f":"SUM(SUMIFS(raw_resource_build!$S:$S,raw_resource_build!$A:$A,M$940,raw_resource_build!$E:$E,$C954)/10^6,\nSUMIFS(raw_resource_build!$T:$T,raw_resource_build!$A:$A,M$940,raw_resource_build!$E:$E,$C954)/10^6)","v":0},{"$f":"SUM(SUMIFS(raw_resource_build!$S:$S,raw_resource_build!$A:$A,N$940,raw_resource_build!$E:$E,$C954)/10^6,\nSUMIFS(raw_resource_build!$T:$T,raw_resource_build!$A:$A,N$940,raw_resource_build!$E:$E,$C954)/10^6)","v":0},{"$f":"SUM(SUMIFS(raw_resource_build!$S:$S,raw_resource_build!$A:$A,O$940,raw_resource_build!$E:$E,$C954)/10^6,\nSUMIFS(raw_resource_build!$T:$T,raw_resource_build!$A:$A,O$940,raw_resource_build!$E:$E,$C954)/10^6)","v":0},{"$f":"SUM(SUMIFS(raw_resource_build!$S:$S,raw_resource_build!$A:$A,P$940,raw_resource_build!$E:$E,$C954)/10^6,\nSUMIFS(raw_resource_build!$T:$T,raw_resource_build!$A:$A,P$940,raw_resource_build!$E:$E,$C954)/10^6)","v":0},{"$f":"SUM(SUMIFS(raw_resource_build!$S:$S,raw_resource_build!$A:$A,Q$940,raw_resource_build!$E:$E,$C954)/10^6,\nSUMIFS(raw_resource_build!$T:$T,raw_resource_build!$A:$A,Q$940,raw_resource_build!$E:$E,$C954)/10^6)","v":0},{"$f":"SUM(SUMIFS(raw_resource_build!$S:$S,raw_resource_build!$A:$A,R$940,raw_resource_build!$E:$E,$C954)/10^6,\nSUMIFS(raw_resource_build!$T:$T,raw_resource_build!$A:$A,R$940,raw_resource_build!$E:$E,$C954)/10^6)","v":0},{"$f":"SUM(SUMIFS(raw_resource_build!$S:$S,raw_resource_build!$A:$A,S$940,raw_resource_build!$E:$E,$C954)/10^6,\nSUMIFS(raw_resource_build!$T:$T,raw_resource_build!$A:$A,S$940,raw_resource_build!$E:$E,$C954)/10^6)","v":0},{"$f":"SUM(SUMIFS(raw_resource_build!$S:$S,raw_resource_build!$A:$A,T$940,raw_resource_build!$E:$E,$C954)/10^6,\nSUMIFS(raw_resource_build!$T:$T,raw_resource_build!$A:$A,T$940,raw_resource_build!$E:$E,$C954)/10^6)","v":0},{"$f":"SUM(SUMIFS(raw_resource_build!$S:$S,raw_resource_build!$A:$A,U$940,raw_resource_build!$E:$E,$C954)/10^6,\nSUMIFS(raw_resource_build!$T:$T,raw_resource_build!$A:$A,U$940,raw_resource_build!$E:$E,$C954)/10^6)","v":0},{"$f":"SUM(SUMIFS(raw_resource_build!$S:$S,raw_resource_build!$A:$A,V$940,raw_resource_build!$E:$E,$C954)/10^6,\nSUMIFS(raw_resource_build!$T:$T,raw_resource_build!$A:$A,V$940,raw_resource_build!$E:$E,$C954)/10^6)","v":0},{"$f":"SUM(SUMIFS(raw_resource_build!$S:$S,raw_resource_build!$A:$A,W$940,raw_resource_build!$E:$E,$C954)/10^6,\nSUMIFS(raw_resource_build!$T:$T,raw_resource_build!$A:$A,W$940,raw_resource_build!$E:$E,$C954)/10^6)","v":0},{"$f":"SUM(SUMIFS(raw_resource_build!$S:$S,raw_resource_build!$A:$A,X$940,raw_resource_build!$E:$E,$C954)/10^6,\nSUMIFS(raw_resource_build!$T:$T,raw_resource_build!$A:$A,X$940,raw_resource_build!$E:$E,$C954)/10^6)","v":0},{"$f":"SUM(SUMIFS(raw_resource_build!$S:$S,raw_resource_build!$A:$A,Y$940,raw_resource_build!$E:$E,$C954)/10^6,\nSUMIFS(raw_resource_build!$T:$T,raw_resource_build!$A:$A,Y$940,raw_resource_build!$E:$E,$C954)/10^6)","v":0},{"$f":"SUM(SUMIFS(raw_resource_build!$S:$S,raw_resource_build!$A:$A,Z$940,raw_resource_build!$E:$E,$C954)/10^6,\nSUMIFS(raw_resource_build!$T:$T,raw_resource_build!$A:$A,Z$940,raw_resource_build!$E:$E,$C954)/10^6)","v":0},{"$f":"SUM(SUMIFS(raw_resource_build!$S:$S,raw_resource_build!$A:$A,AA$940,raw_resource_build!$E:$E,$C954)/10^6,\nSUMIFS(raw_resource_build!$T:$T,raw_resource_build!$A:$A,AA$940,raw_resource_build!$E:$E,$C954)/10^6)","v":0},{"$f":"SUM(SUMIFS(raw_resource_build!$S:$S,raw_resource_build!$A:$A,AB$940,raw_resource_build!$E:$E,$C954)/10^6,\nSUMIFS(raw_resource_build!$T:$T,raw_resource_build!$A:$A,AB$940,raw_resource_build!$E:$E,$C954)/10^6)","v":0},{"$f":"SUM(SUMIFS(raw_resource_build!$S:$S,raw_resource_build!$A:$A,AC$940,raw_resource_build!$E:$E,$C954)/10^6,\nSUMIFS(raw_resource_build!$T:$T,raw_resource_build!$A:$A,AC$940,raw_resource_build!$E:$E,$C954)/10^6)","v":0},{"$f":"SUM(SUMIFS(raw_resource_build!$S:$S,raw_resource_build!$A:$A,AD$940,raw_resource_build!$E:$E,$C954)/10^6,\nSUMIFS(raw_resource_build!$T:$T,raw_resource_build!$A:$A,AD$940,raw_resource_build!$E:$E,$C954)/10^6)","v":0},{"$f":"SUM(SUMIFS(raw_resource_build!$S:$S,raw_resource_build!$A:$A,AE$940,raw_resource_build!$E:$E,$C954)/10^6,\nSUMIFS(raw_resource_build!$T:$T,raw_resource_build!$A:$A,AE$940,raw_resource_build!$E:$E,$C954)/10^6)","v":0},{"$f":"SUM(SUMIFS(raw_resource_build!$S:$S,raw_resource_build!$A:$A,AF$940,raw_resource_build!$E:$E,$C954)/10^6,\nSUMIFS(raw_resource_build!$T:$T,raw_resource_build!$A:$A,AF$940,raw_resource_build!$E:$E,$C954)/10^6)","v":0},{"$f":"SUM(SUMIFS(raw_resource_build!$S:$S,raw_resource_build!$A:$A,AG$940,raw_resource_build!$E:$E,$C954)/10^6,\nSUMIFS(raw_resource_build!$T:$T,raw_resource_build!$A:$A,AG$940,raw_resource_build!$E:$E,$C954)/10^6)","v":0},{"$f":"SUM(SUMIFS(raw_resource_build!$S:$S,raw_resource_build!$A:$A,AH$940,raw_resource_build!$E:$E,$C954)/10^6,\nSUMIFS(raw_resource_build!$T:$T,raw_resource_build!$A:$A,AH$940,raw_resource_build!$E:$E,$C954)/10^6)","v":0},{"$f":"SUM(SUMIFS(raw_resource_build!$S:$S,raw_resource_build!$A:$A,AI$940,raw_resource_build!$E:$E,$C954)/10^6,\nSUMIFS(raw_resource_build!$T:$T,raw_resource_build!$A:$A,AI$940,raw_resource_build!$E:$E,$C954)/10^6)","v":0},{"$f":"SUM(SUMIFS(raw_resource_build!$S:$S,raw_resource_build!$A:$A,AJ$940,raw_resource_build!$E:$E,$C954)/10^6,\nSUMIFS(raw_resource_build!$T:$T,raw_resource_build!$A:$A,AJ$940,raw_resource_build!$E:$E,$C954)/10^6)","v":0},{"$f":"SUM(SUMIFS(raw_resource_build!$S:$S,raw_resource_build!$A:$A,AK$940,raw_resource_build!$E:$E,$C954)/10^6,\nSUMIFS(raw_resource_build!$T:$T,raw_resource_build!$A:$A,AK$940,raw_resource_build!$E:$E,$C954)/10^6)","v":0},{"$f":"SUM(SUMIFS(raw_resource_build!$S:$S,raw_resource_build!$A:$A,AL$940,raw_resource_build!$E:$E,$C954)/10^6,\nSUMIFS(raw_resource_build!$T:$T,raw_resource_build!$A:$A,AL$940,raw_resource_build!$E:$E,$C954)/10^6)","v":0},{"$f":"SUM(SUMIFS(raw_resource_build!$S:$S,raw_resource_build!$A:$A,AM$940,raw_resource_build!$E:$E,$C954)/10^6,\nSUMIFS(raw_resource_build!$T:$T,raw_resource_build!$A:$A,AM$940,raw_resource_build!$E:$E,$C954)/10^6)","v":0},{"$f":"SUM(SUMIFS(raw_resource_build!$S:$S,raw_resource_build!$A:$A,AN$940,raw_resource_build!$E:$E,$C954)/10^6,\nSUMIFS(raw_resource_build!$T:$T,raw_resource_build!$A:$A,AN$940,raw_resource_build!$E:$E,$C954)/10^6)","v":0}]
[null,null,{"$f":"Lists!B19","v":"Customer_PV"},"$MM",{"$f":"SUM(SUMIFS(raw_resource_build!$S:$S,raw_resource_build!$A:$A,E$940,raw_resource_build!$E:$E,$C955)/10^6,\nSUMIFS(raw_resource_build!$T:$T,raw_resource_build!$A:$A,E$940,raw_resource_build!$E:$E,$C955)/10^6)","v":0},{"$f":"SUM(SUMIFS(raw_resource_build!$S:$S,raw_resource_build!$A:$A,F$940,raw_resource_build!$E:$E,$C955)/10^6,\nSUMIFS(raw_resource_build!$T:$T,raw_resource_build!$A:$A,F$940,raw_resource_build!$E:$E,$C955)/10^6)","v":0},{"$f":"SUM(SUMIFS(raw_resource_build!$S:$S,raw_resource_build!$A:$A,G$940,raw_resource_build!$E:$E,$C955)/10^6,\nSUMIFS(raw_resource_build!$T:$T,raw_resource_build!$A:$A,G$940,raw_resource_build!$E:$E,$C955)/10^6)","v":0},{"$f":"SUM(SUMIFS(raw_resource_build!$S:$S,raw_resource_build!$A:$A,H$940,raw_resource_build!$E:$E,$C955)/10^6,\nSUMIFS(raw_resource_build!$T:$T,raw_resource_build!$A:$A,H$940,raw_resource_build!$E:$E,$C955)/10^6)","v":0},{"$f":"SUM(SUMIFS(raw_resource_build!$S:$S,raw_resource_build!$A:$A,I$940,raw_resource_build!$E:$E,$C955)/10^6,\nSUMIFS(raw_resource_build!$T:$T,raw_resource_build!$A:$A,I$940,raw_resource_build!$E:$E,$C955)/10^6)","v":0},{"$f":"SUM(SUMIFS(raw_resource_build!$S:$S,raw_resource_build!$A:$A,J$940,raw_resource_build!$E:$E,$C955)/10^6,\nSUMIFS(raw_resource_build!$T:$T,raw_resource_build!$A:$A,J$940,raw_resource_build!$E:$E,$C955)/10^6)","v":0},{"$f":"SUM(SUMIFS(raw_resource_build!$S:$S,raw_resource_build!$A:$A,K$940,raw_resource_build!$E:$E,$C955)/10^6,\nSUMIFS(raw_resource_build!$T:$T,raw_resource_build!$A:$A,K$940,raw_resource_build!$E:$E,$C955)/10^6)","v":0},{"$f":"SUM(SUMIFS(raw_resource_build!$S:$S,raw_resource_build!$A:$A,L$940,raw_resource_build!$E:$E,$C955)/10^6,\nSUMIFS(raw_resource_build!$T:$T,raw_resource_build!$A:$A,L$940,raw_resource_build!$E:$E,$C955)/10^6)","v":0},{"$f":"SUM(SUMIFS(raw_resource_build!$S:$S,raw_resource_build!$A:$A,M$940,raw_resource_build!$E:$E,$C955)/10^6,\nSUMIFS(raw_resource_build!$T:$T,raw_resource_build!$A:$A,M$940,raw_resource_build!$E:$E,$C955)/10^6)","v":0},{"$f":"SUM(SUMIFS(raw_resource_build!$S:$S,raw_resource_build!$A:$A,N$940,raw_resource_build!$E:$E,$C955)/10^6,\nSUMIFS(raw_resource_build!$T:$T,raw_resource_build!$A:$A,N$940,raw_resource_build!$E:$E,$C955)/10^6)","v":0},{"$f":"SUM(SUMIFS(raw_resource_build!$S:$S,raw_resource_build!$A:$A,O$940,raw_resource_build!$E:$E,$C955)/10^6,\nSUMIFS(raw_resource_build!$T:$T,raw_resource_build!$A:$A,O$940,raw_resource_build!$E:$E,$C955)/10^6)","v":0},{"$f":"SUM(SUMIFS(raw_resource_build!$S:$S,raw_resource_build!$A:$A,P$940,raw_resource_build!$E:$E,$C955)/10^6,\nSUMIFS(raw_resource_build!$T:$T,raw_resource_build!$A:$A,P$940,raw_resource_build!$E:$E,$C955)/10^6)","v":0},{"$f":"SUM(SUMIFS(raw_resource_build!$S:$S,raw_resource_build!$A:$A,Q$940,raw_resource_build!$E:$E,$C955)/10^6,\nSUMIFS(raw_resource_build!$T:$T,raw_resource_build!$A:$A,Q$940,raw_resource_build!$E:$E,$C955)/10^6)","v":0},{"$f":"SUM(SUMIFS(raw_resource_build!$S:$S,raw_resource_build!$A:$A,R$940,raw_resource_build!$E:$E,$C955)/10^6,\nSUMIFS(raw_resource_build!$T:$T,raw_resource_build!$A:$A,R$940,raw_resource_build!$E:$E,$C955)/10^6)","v":0},{"$f":"SUM(SUMIFS(raw_resource_build!$S:$S,raw_resource_build!$A:$A,S$940,raw_resource_build!$E:$E,$C955)/10^6,\nSUMIFS(raw_resource_build!$T:$T,raw_resource_build!$A:$A,S$940,raw_resource_build!$E:$E,$C955)/10^6)","v":0},{"$f":"SUM(SUMIFS(raw_resource_build!$S:$S,raw_resource_build!$A:$A,T$940,raw_resource_build!$E:$E,$C955)/10^6,\nSUMIFS(raw_resource_build!$T:$T,raw_resource_build!$A:$A,T$940,raw_resource_build!$E:$E,$C955)/10^6)","v":0},{"$f":"SUM(SUMIFS(raw_resource_build!$S:$S,raw_resource_build!$A:$A,U$940,raw_resource_build!$E:$E,$C955)/10^6,\nSUMIFS(raw_resource_build!$T:$T,raw_resource_build!$A:$A,U$940,raw_resource_build!$E:$E,$C955)/10^6)","v":0},{"$f":"SUM(SUMIFS(raw_resource_build!$S:$S,raw_resource_build!$A:$A,V$940,raw_resource_build!$E:$E,$C955)/10^6,\nSUMIFS(raw_resource_build!$T:$T,raw_resource_build!$A:$A,V$940,raw_resource_build!$E:$E,$C955)/10^6)","v":0},{"$f":"SUM(SUMIFS(raw_resource_build!$S:$S,raw_resource_build!$A:$A,W$940,raw_resource_build!$E:$E,$C955)/10^6,\nSUMIFS(raw_resource_build!$T:$T,raw_resource_build!$A:$A,W$940,raw_resource_build!$E:$E,$C955)/10^6)","v":0},{"$f":"SUM(SUMIFS(raw_resource_build!$S:$S,raw_resource_build!$A:$A,X$940,raw_resource_build!$E:$E,$C955)/10^6,\nSUMIFS(raw_resource_build!$T:$T,raw_resource_build!$A:$A,X$940,raw_resource_build!$E:$E,$C955)/10^6)","v":0},{"$f":"SUM(SUMIFS(raw_resource_build!$S:$S,raw_resource_build!$A:$A,Y$940,raw_resource_build!$E:$E,$C955)/10^6,\nSUMIFS(raw_resource_build!$T:$T,raw_resource_build!$A:$A,Y$940,raw_resource_build!$E:$E,$C955)/10^6)","v":0},{"$f":"SUM(SUMIFS(raw_resource_build!$S:$S,raw_resource_build!$A:$A,Z$940,raw_resource_build!$E:$E,$C955)/10^6,\nSUMIFS(raw_resource_build!$T:$T,raw_resource_build!$A:$A,Z$940,raw_resource_build!$E:$E,$C955)/10^6)","v":0},{"$f":"SUM(SUMIFS(raw_resource_build!$S:$S,raw_resource_build!$A:$A,AA$940,raw_resource_build!$E:$E,$C955)/10^6,\nSUMIFS(raw_resource_build!$T:$T,raw_resource_build!$A:$A,AA$940,raw_resource_build!$E:$E,$C955)/10^6)","v":0},{"$f":"SUM(SUMIFS(raw_resource_build!$S:$S,raw_resource_build!$A:$A,AB$940,raw_resource_build!$E:$E,$C955)/10^6,\nSUMIFS(raw_resource_build!$T:$T,raw_resource_build!$A:$A,AB$940,raw_resource_build!$E:$E,$C955)/10^6)","v":0},{"$f":"SUM(SUMIFS(raw_resource_build!$S:$S,raw_resource_build!$A:$A,AC$940,raw_resource_build!$E:$E,$C955)/10^6,\nSUMIFS(raw_resource_build!$T:$T,raw_resource_build!$A:$A,AC$940,raw_resource_build!$E:$E,$C955)/10^6)","v":0},{"$f":"SUM(SUMIFS(raw_resource_build!$S:$S,raw_resource_build!$A:$A,AD$940,raw_resource_build!$E:$E,$C955)/10^6,\nSUMIFS(raw_resource_build!$T:$T,raw_resource_build!$A:$A,AD$940,raw_resource_build!$E:$E,$C955)/10^6)","v":0},{"$f":"SUM(SUMIFS(raw_resource_build!$S:$S,raw_resource_build!$A:$A,AE$940,raw_resource_build!$E:$E,$C955)/10^6,\nSUMIFS(raw_resource_build!$T:$T,raw_resource_build!$A:$A,AE$940,raw_resource_build!$E:$E,$C955)/10^6)","v":0},{"$f":"SUM(SUMIFS(raw_resource_build!$S:$S,raw_resource_build!$A:$A,AF$940,raw_resource_build!$E:$E,$C955)/10^6,\nSUMIFS(raw_resource_build!$T:$T,raw_resource_build!$A:$A,AF$940,raw_resource_build!$E:$E,$C955)/10^6)","v":0},{"$f":"SUM(SUMIFS(raw_resource_build!$S:$S,raw_resource_build!$A:$A,AG$940,raw_resource_build!$E:$E,$C955)/10^6,\nSUMIFS(raw_resource_build!$T:$T,raw_resource_build!$A:$A,AG$940,raw_resource_build!$E:$E,$C955)/10^6)","v":0},{"$f":"SUM(SUMIFS(raw_resource_build!$S:$S,raw_resource_build!$A:$A,AH$940,raw_resource_build!$E:$E,$C955)/10^6,\nSUMIFS(raw_resource_build!$T:$T,raw_resource_build!$A:$A,AH$940,raw_resource_build!$E:$E,$C955)/10^6)","v":0},{"$f":"SUM(SUMIFS(raw_resource_build!$S:$S,raw_resource_build!$A:$A,AI$940,raw_resource_build!$E:$E,$C955)/10^6,\nSUMIFS(raw_resource_build!$T:$T,raw_resource_build!$A:$A,AI$940,raw_resource_build!$E:$E,$C955)/10^6)","v":0},{"$f":"SUM(SUMIFS(raw_resource_build!$S:$S,raw_resource_build!$A:$A,AJ$940,raw_resource_build!$E:$E,$C955)/10^6,\nSUMIFS(raw_resource_build!$T:$T,raw_resource_build!$A:$A,AJ$940,raw_resource_build!$E:$E,$C955)/10^6)","v":0},{"$f":"SUM(SUMIFS(raw_resource_build!$S:$S,raw_resource_build!$A:$A,AK$940,raw_resource_build!$E:$E,$C955)/10^6,\nSUMIFS(raw_resource_build!$T:$T,raw_resource_build!$A:$A,AK$940,raw_resource_build!$E:$E,$C955)/10^6)","v":0},{"$f":"SUM(SUMIFS(raw_resource_build!$S:$S,raw_resource_build!$A:$A,AL$940,raw_resource_build!$E:$E,$C955)/10^6,\nSUMIFS(raw_resource_build!$T:$T,raw_resource_build!$A:$A,AL$940,raw_resource_build!$E:$E,$C955)/10^6)","v":0},{"$f":"SUM(SUMIFS(raw_resource_build!$S:$S,raw_resource_build!$A:$A,AM$940,raw_resource_build!$E:$E,$C955)/10^6,\nSUMIFS(raw_resource_build!$T:$T,raw_resource_build!$A:$A,AM$940,raw_resource_build!$E:$E,$C955)/10^6)","v":0},{"$f":"SUM(SUMIFS(raw_resource_build!$S:$S,raw_resource_build!$A:$A,AN$940,raw_resource_build!$E:$E,$C955)/10^6,\nSUMIFS(raw_resource_build!$T:$T,raw_resource_build!$A:$A,AN$940,raw_resource_build!$E:$E,$C955)/10^6)","v":0}]
[null,null,{"$f":"Lists!B20","v":"Solar"},"$MM",{"$f":"SUM(SUMIFS(raw_resource_build!$S:$S,raw_resource_build!$A:$A,E$940,raw_resource_build!$E:$E,$C956)/10^6,\nSUMIFS(raw_resource_build!$T:$T,raw_resource_build!$A:$A,E$940,raw_resource_build!$E:$E,$C956)/10^6)","v":0},{"$f":"SUM(SUMIFS(raw_resource_build!$S:$S,raw_resource_build!$A:$A,F$940,raw_resource_build!$E:$E,$C956)/10^6,\nSUMIFS(raw_resource_build!$T:$T,raw_resource_build!$A:$A,F$940,raw_resource_build!$E:$E,$C956)/10^6)","v":0},{"$f":"SUM(SUMIFS(raw_resource_build!$S:$S,raw_resource_build!$A:$A,G$940,raw_resource_build!$E:$E,$C956)/10^6,\nSUMIFS(raw_resource_build!$T:$T,raw_resource_build!$A:$A,G$940,raw_resource_build!$E:$E,$C956)/10^6)","v":0},{"$f":"SUM(SUMIFS(raw_resource_build!$S:$S,raw_resource_build!$A:$A,H$940,raw_resource_build!$E:$E,$C956)/10^6,\nSUMIFS(raw_resource_build!$T:$T,raw_resource_build!$A:$A,H$940,raw_resource_build!$E:$E,$C956)/10^6)","v":0},{"$f":"SUM(SUMIFS(raw_resource_build!$S:$S,raw_resource_build!$A:$A,I$940,raw_resource_build!$E:$E,$C956)/10^6,\nSUMIFS(raw_resource_build!$T:$T,raw_resource_build!$A:$A,I$940,raw_resource_build!$E:$E,$C956)/10^6)","v":0},{"$f":"SUM(SUMIFS(raw_resource_build!$S:$S,raw_resource_build!$A:$A,J$940,raw_resource_build!$E:$E,$C956)/10^6,\nSUMIFS(raw_resource_build!$T:$T,raw_resource_build!$A:$A,J$940,raw_resource_build!$E:$E,$C956)/10^6)","v":154.23889914999998},{"$f":"SUM(SUMIFS(raw_resource_build!$S:$S,raw_resource_build!$A:$A,K$940,raw_resource_build!$E:$E,$C956)/10^6,\nSUMIFS(raw_resource_build!$T:$T,raw_resource_build!$A:$A,K$940,raw_resource_build!$E:$E,$C956)/10^6)","v":303.35535018999997},{"$f":"SUM(SUMIFS(raw_resource_build!$S:$S,raw_resource_build!$A:$A,L$940,raw_resource_build!$E:$E,$C956)/10^6,\nSUMIFS(raw_resource_build!$T:$T,raw_resource_build!$A:$A,L$940,raw_resource_build!$E:$E,$C956)/10^6)","v":446.58310922999999},{"$f":"SUM(SUMIFS(raw_resource_build!$S:$S,raw_resource_build!$A:$A,M$940,raw_resource_build!$E:$E,$C956)/10^6,\nSUMIFS(raw_resource_build!$T:$T,raw_resource_build!$A:$A,M$940,raw_resource_build!$E:$E,$C956)/10^6)","v":585.90375370000004},{"$f":"SUM(SUMIFS(raw_resource_build!$S:$S,raw_resource_build!$A:$A,N$940,raw_resource_build!$E:$E,$C956)/10^6,\nSUMIFS(raw_resource_build!$T:$T,raw_resource_build!$A:$A,N$940,raw_resource_build!$E:$E,$C956)/10^6)","v":809.56537008999999},{"$f":"SUM(SUMIFS(raw_resource_build!$S:$S,raw_resource_build!$A:$A,O$940,raw_resource_build!$E:$E,$C956)/10^6,\nSUMIFS(raw_resource_build!$T:$T,raw_resource_build!$A:$A,O$940,raw_resource_build!$E:$E,$C956)/10^6)","v":0},{"$f":"SUM(SUMIFS(raw_resource_build!$S:$S,raw_resource_build!$A:$A,P$940,raw_resource_build!$E:$E,$C956)/10^6,\nSUMIFS(raw_resource_build!$T:$T,raw_resource_build!$A:$A,P$940,raw_resource_build!$E:$E,$C956)/10^6)","v":1250.86988496},{"$f":"SUM(SUMIFS(raw_resource_build!$S:$S,raw_resource_build!$A:$A,Q$940,raw_resource_build!$E:$E,$C956)/10^6,\nSUMIFS(raw_resource_build!$T:$T,raw_resource_build!$A:$A,Q$940,raw_resource_build!$E:$E,$C956)/10^6)","v":0},{"$f":"SUM(SUMIFS(raw_resource_build!$S:$S,raw_resource_build!$A:$A,R$940,raw_resource_build!$E:$E,$C956)/10^6,\nSUMIFS(raw_resource_build!$T:$T,raw_resource_build!$A:$A,R$940,raw_resource_build!$E:$E,$C956)/10^6)","v":0},{"$f":"SUM(SUMIFS(raw_resource_build!$S:$S,raw_resource_build!$A:$A,S$940,raw_resource_build!$E:$E,$C956)/10^6,\nSUMIFS(raw_resource_build!$T:$T,raw_resource_build!$A:$A,S$940,raw_resource_build!$E:$E,$C956)/10^6)","v":0},{"$f":"SUM(SUMIFS(raw_resource_build!$S:$S,raw_resource_build!$A:$A,T$940,raw_resource_build!$E:$E,$C956)/10^6,\nSUMIFS(raw_resource_build!$T:$T,raw_resource_build!$A:$A,T$940,raw_resource_build!$E:$E,$C956)/10^6)","v":2096.93660602},{"$f":"SUM(SUMIFS(raw_resource_build!$S:$S,raw_resource_build!$A:$A,U$940,raw_resource_build!$E:$E,$C956)/10^6,\nSUMIFS(raw_resource_build!$T:$T,raw_resource_build!$A:$A,U$940,raw_resource_build!$E:$E,$C956)/10^6)","v":0},{"$f":"SUM(SUMIFS(raw_resource_build!$S:$S,raw_resource_build!$A:$A,V$940,raw_resource_build!$E:$E,$C956)/10^6,\nSUMIFS(raw_resource_build!$T:$T,raw_resource_build!$A:$A,V$940,raw_resource_build!$E:$E,$C956)/10^6)","v":0},{"$f":"SUM(SUMIFS(raw_resource_build!$S:$S,raw_resource_build!$A:$A,W$940,raw_resource_build!$E:$E,$C956)/10^6,\nSUMIFS(raw_resource_build!$T:$T,raw_resource_build!$A:$A,W$940,raw_resource_build!$E:$E,$C956)/10^6)","v":0},{"$f":"SUM(SUMIFS(raw_resource_build!$S:$S,raw_resource_build!$A:$A,X$940,raw_resource_build!$E:$E,$C956)/10^6,\nSUMIFS(raw_resource_build!$T:$T,raw_resource_build!$A:$A,X$940,raw_resource_build!$E:$E,$C956)/10^6)","v":0},{"$f":"SUM(SUMIFS(raw_resource_build!$S:$S,raw_resource_build!$A:$A,Y$940,raw_resource_build!$E:$E,$C956)/10^6,\nSUMIFS(raw_resource_build!$T:$T,raw_resource_build!$A:$A,Y$940,raw_resource_build!$E:$E,$C956)/10^6)","v":0},{"$f":"SUM(SUMIFS(raw_resource_build!$S:$S,raw_resource_build!$A:$A,Z$940,raw_resource_build!$E:$E,$C956)/10^6,\nSUMIFS(raw_resource_build!$T:$T,raw_resource_build!$A:$A,Z$940,raw_resource_build!$E:$E,$C956)/10^6)","v":0},{"$f":"SUM(SUMIFS(raw_resource_build!$S:$S,raw_resource_build!$A:$A,AA$940,raw_resource_build!$E:$E,$C956)/10^6,\nSUMIFS(raw_resource_build!$T:$T,raw_resource_build!$A:$A,AA$940,raw_resource_build!$E:$E,$C956)/10^6)","v":0},{"$f":"SUM(SUMIFS(raw_resource_build!$S:$S,raw_resource_build!$A:$A,AB$940,raw_resource_build!$E:$E,$C956)/10^6,\nSUMIFS(raw_resource_build!$T:$T,raw_resource_build!$A:$A,AB$940,raw_resource_build!$E:$E,$C956)/10^6)","v":0},{"$f":"SUM(SUMIFS(raw_resource_build!$S:$S,raw_resource_build!$A:$A,AC$940,raw_resource_build!$E:$E,$C956)/10^6,\nSUMIFS(raw_resource_build!$T:$T,raw_resource_build!$A:$A,AC$940,raw_resource_build!$E:$E,$C956)/10^6)","v":0},{"$f":"SUM(SUMIFS(raw_resource_build!$S:$S,raw_resource_build!$A:$A,AD$940,raw_resource_build!$E:$E,$C956)/10^6,\nSUMIFS(raw_resource_build!$T:$T,raw_resource_build!$A:$A,AD$940,raw_resource_build!$E:$E,$C956)/10^6)","v":0},{"$f":"SUM(SUMIFS(raw_resource_build!$S:$S,raw_resource_build!$A:$A,AE$940,raw_resource_build!$E:$E,$C956)/10^6,\nSUMIFS(raw_resource_build!$T:$T,raw_resource_build!$A:$A,AE$940,raw_resource_build!$E:$E,$C956)/10^6)","v":0},{"$f":"SUM(SUMIFS(raw_resource_build!$S:$S,raw_resource_build!$A:$A,AF$940,raw_resource_build!$E:$E,$C956)/10^6,\nSUMIFS(raw_resource_build!$T:$T,raw_resource_build!$A:$A,AF$940,raw_resource_build!$E:$E,$C956)/10^6)","v":0},{"$f":"SUM(SUMIFS(raw_resource_build!$S:$S,raw_resource_build!$A:$A,AG$940,raw_resource_build!$E:$E,$C956)/10^6,\nSUMIFS(raw_resource_build!$T:$T,raw_resource_build!$A:$A,AG$940,raw_resource_build!$E:$E,$C956)/10^6)","v":0},{"$f":"SUM(SUMIFS(raw_resource_build!$S:$S,raw_resource_build!$A:$A,AH$940,raw_resource_build!$E:$E,$C956)/10^6,\nSUMIFS(raw_resource_build!$T:$T,raw_resource_build!$A:$A,AH$940,raw_resource_build!$E:$E,$C956)/10^6)","v":0},{"$f":"SUM(SUMIFS(raw_resource_build!$S:$S,raw_resource_build!$A:$A,AI$940,raw_resource_build!$E:$E,$C956)/10^6,\nSUMIFS(raw_resource_build!$T:$T,raw_resource_build!$A:$A,AI$940,raw_resource_build!$E:$E,$C956)/10^6)","v":8916.1734464299989},{"$f":"SUM(SUMIFS(raw_resource_build!$S:$S,raw_resource_build!$A:$A,AJ$940,raw_resource_build!$E:$E,$C956)/10^6,\nSUMIFS(raw_resource_build!$T:$T,raw_resource_build!$A:$A,AJ$940,raw_resource_build!$E:$E,$C956)/10^6)","v":0},{"$f":"SUM(SUMIFS(raw_resource_build!$S:$S,raw_resource_build!$A:$A,AK$940,raw_resource_build!$E:$E,$C956)/10^6,\nSUMIFS(raw_resource_build!$T:$T,raw_resource_build!$A:$A,AK$940,raw_resource_build!$E:$E,$C956)/10^6)","v":0},{"$f":"SUM(SUMIFS(raw_resource_build!$S:$S,raw_resource_build!$A:$A,AL$940,raw_resource_build!$E:$E,$C956)/10^6,\nSUMIFS(raw_resource_build!$T:$T,raw_resource_build!$A:$A,AL$940,raw_resource_build!$E:$E,$C956)/10^6)","v":0},{"$f":"SUM(SUMIFS(raw_resource_build!$S:$S,raw_resource_build!$A:$A,AM$940,raw_resource_build!$E:$E,$C956)/10^6,\nSUMIFS(raw_resource_build!$T:$T,raw_resource_build!$A:$A,AM$940,raw_resource_build!$E:$E,$C956)/10^6)","v":0},{"$f":"SUM(SUMIFS(raw_resource_build!$S:$S,raw_resource_build!$A:$A,AN$940,raw_resource_build!$E:$E,$C956)/10^6,\nSUMIFS(raw_resource_build!$T:$T,raw_resource_build!$A:$A,AN$940,raw_resource_build!$E:$E,$C956)/10^6)","v":0}]
[null,null,{"$f":"Lists!B21","v":"Geothermal"},"$MM",{"$f":"SUM(SUMIFS(raw_resource_build!$S:$S,raw_resource_build!$A:$A,E$940,raw_resource_build!$E:$E,$C957)/10^6,\nSUMIFS(raw_resource_build!$T:$T,raw_resource_build!$A:$A,E$940,raw_resource_build!$E:$E,$C957)/10^6)","v":0},{"$f":"SUM(SUMIFS(raw_resource_build!$S:$S,raw_resource_build!$A:$A,F$940,raw_resource_build!$E:$E,$C957)/10^6,\nSUMIFS(raw_resource_build!$T:$T,raw_resource_build!$A:$A,F$940,raw_resource_build!$E:$E,$C957)/10^6)","v":0},{"$f":"SUM(SUMIFS(raw_resource_build!$S:$S,raw_resource_build!$A:$A,G$940,raw_resource_build!$E:$E,$C957)/10^6,\nSUMIFS(raw_resource_build!$T:$T,raw_resource_build!$A:$A,G$940,raw_resource_build!$E:$E,$C957)/10^6)","v":0},{"$f":"SUM(SUMIFS(raw_resource_build!$S:$S,raw_resource_build!$A:$A,H$940,raw_resource_build!$E:$E,$C957)/10^6,\nSUMIFS(raw_resource_build!$T:$T,raw_resource_build!$A:$A,H$940,raw_resource_build!$E:$E,$C957)/10^6)","v":0},{"$f":"SUM(SUMIFS(raw_resource_build!$S:$S,raw_resource_build!$A:$A,I$940,raw_resource_build!$E:$E,$C957)/10^6,\nSUMIFS(raw_resource_build!$T:$T,raw_resource_build!$A:$A,I$940,raw_resource_build!$E:$E,$C957)/10^6)","v":0},{"$f":"SUM(SUMIFS(raw_resource_build!$S:$S,raw_resource_build!$A:$A,J$940,raw_resource_build!$E:$E,$C957)/10^6,\nSUMIFS(raw_resource_build!$T:$T,raw_resource_build!$A:$A,J$940,raw_resource_build!$E:$E,$C957)/10^6)","v":0},{"$f":"SUM(SUMIFS(raw_resource_build!$S:$S,raw_resource_build!$A:$A,K$940,raw_resource_build!$E:$E,$C957)/10^6,\nSUMIFS(raw_resource_build!$T:$T,raw_resource_build!$A:$A,K$940,raw_resource_build!$E:$E,$C957)/10^6)","v":0},{"$f":"SUM(SUMIFS(raw_resource_build!$S:$S,raw_resource_build!$A:$A,L$940,raw_resource_build!$E:$E,$C957)/10^6,\nSUMIFS(raw_resource_build!$T:$T,raw_resource_build!$A:$A,L$940,raw_resource_build!$E:$E,$C957)/10^6)","v":0},{"$f":"SUM(SUMIFS(raw_resource_build!$S:$S,raw_resource_build!$A:$A,M$940,raw_resource_build!$E:$E,$C957)/10^6,\nSUMIFS(raw_resource_build!$T:$T,raw_resource_build!$A:$A,M$940,raw_resource_build!$E:$E,$C957)/10^6)","v":0},{"$f":"SUM(SUMIFS(raw_resource_build!$S:$S,raw_resource_build!$A:$A,N$940,raw_resource_build!$E:$E,$C957)/10^6,\nSUMIFS(raw_resource_build!$T:$T,raw_resource_build!$A:$A,N$940,raw_resource_build!$E:$E,$C957)/10^6)","v":87.01212812},{"$f":"SUM(SUMIFS(raw_resource_build!$S:$S,raw_resource_build!$A:$A,O$940,raw_resource_build!$E:$E,$C957)/10^6,\nSUMIFS(raw_resource_build!$T:$T,raw_resource_build!$A:$A,O$940,raw_resource_build!$E:$E,$C957)/10^6)","v":0},{"$f":"SUM(SUMIFS(raw_resource_build!$S:$S,raw_resource_build!$A:$A,P$940,raw_resource_build!$E:$E,$C957)/10^6,\nSUMIFS(raw_resource_build!$T:$T,raw_resource_build!$A:$A,P$940,raw_resource_build!$E:$E,$C957)/10^6)","v":87.01212812},{"$f":"SUM(SUMIFS(raw_resource_build!$S:$S,raw_resource_build!$A:$A,Q$940,raw_resource_build!$E:$E,$C957)/10^6,\nSUMIFS(raw_resource_build!$T:$T,raw_resource_build!$A:$A,Q$940,raw_resource_build!$E:$E,$C957)/10^6)","v":0},{"$f":"SUM(SUMIFS(raw_resource_build!$S:$S,raw_resource_build!$A:$A,R$940,raw_resource_build!$E:$E,$C957)/10^6,\nSUMIFS(raw_resource_build!$T:$T,raw_resource_build!$A:$A,R$940,raw_resource_build!$E:$E,$C957)/10^6)","v":0},{"$f":"SUM(SUMIFS(raw_resource_build!$S:$S,raw_resource_build!$A:$A,S$940,raw_resource_build!$E:$E,$C957)/10^6,\nSUMIFS(raw_resource_build!$T:$T,raw_resource_build!$A:$A,S$940,raw_resource_build!$E:$E,$C957)/10^6)","v":0},{"$f":"SUM(SUMIFS(raw_resource_build!$S:$S,raw_resource_build!$A:$A,T$940,raw_resource_build!$E:$E,$C957)/10^6,\nSUMIFS(raw_resource_build!$T:$T,raw_resource_build!$A:$A,T$940,raw_resource_build!$E:$E,$C957)/10^6)","v":87.01212812},{"$f":"SUM(SUMIFS(raw_resource_build!$S:$S,raw_resource_build!$A:$A,U$940,raw_resource_build!$E:$E,$C957)/10^6,\nSUMIFS(raw_resource_build!$T:$T,raw_resource_build!$A:$A,U$940,raw_resource_build!$E:$E,$C957)/10^6)","v":0},{"$f":"SUM(SUMIFS(raw_resource_build!$S:$S,raw_resource_build!$A:$A,V$940,raw_resource_build!$E:$E,$C957)/10^6,\nSUMIFS(raw_resource_build!$T:$T,raw_resource_build!$A:$A,V$940,raw_resource_build!$E:$E,$C957)/10^6)","v":0},{"$f":"SUM(SUMIFS(raw_resource_build!$S:$S,raw_resource_build!$A:$A,W$940,raw_resource_build!$E:$E,$C957)/10^6,\nSUMIFS(raw_resource_build!$T:$T,raw_resource_build!$A:$A,W$940,raw_resource_build!$E:$E,$C957)/10^6)","v":0},{"$f":"SUM(SUMIFS(raw_resource_build!$S:$S,raw_resource_build!$A:$A,X$940,raw_resource_build!$E:$E,$C957)/10^6,\nSUMIFS(raw_resource_build!$T:$T,raw_resource_build!$A:$A,X$940,raw_resource_build!$E:$E,$C957)/10^6)","v":0},{"$f":"SUM(SUMIFS(raw_resource_build!$S:$S,raw_resource_build!$A:$A,Y$940,raw_resource_build!$E:$E,$C957)/10^6,\nSUMIFS(raw_resource_build!$T:$T,raw_resource_build!$A:$A,Y$940,raw_resource_build!$E:$E,$C957)/10^6)","v":0},{"$f":"SUM(SUMIFS(raw_resource_build!$S:$S,raw_resource_build!$A:$A,Z$940,raw_resource_build!$E:$E,$C957)/10^6,\nSUMIFS(raw_resource_build!$T:$T,raw_resource_build!$A:$A,Z$940,raw_resource_build!$E:$E,$C957)/10^6)","v":0},{"$f":"SUM(SUMIFS(raw_resource_build!$S:$S,raw_resource_build!$A:$A,AA$940,raw_resource_build!$E:$E,$C957)/10^6,\nSUMIFS(raw_resource_build!$T:$T,raw_resource_build!$A:$A,AA$940,raw_resource_build!$E:$E,$C957)/10^6)","v":0},{"$f":"SUM(SUMIFS(raw_resource_build!$S:$S,raw_resource_build!$A:$A,AB$940,raw_resource_build!$E:$E,$C957)/10^6,\nSUMIFS(raw_resource_build!$T:$T,raw_resource_build!$A:$A,AB$940,raw_resource_build!$E:$E,$C957)/10^6)","v":0},{"$f":"SUM(SUMIFS(raw_resource_build!$S:$S,raw_resource_build!$A:$A,AC$940,raw_resource_build!$E:$E,$C957)/10^6,\nSUMIFS(raw_resource_build!$T:$T,raw_resource_build!$A:$A,AC$940,raw_resource_build!$E:$E,$C957)/10^6)","v":0},{"$f":"SUM(SUMIFS(raw_resource_build!$S:$S,raw_resource_build!$A:$A,AD$940,raw_resource_build!$E:$E,$C957)/10^6,\nSUMIFS(raw_resource_build!$T:$T,raw_resource_build!$A:$A,AD$940,raw_resource_build!$E:$E,$C957)/10^6)","v":0},{"$f":"SUM(SUMIFS(raw_resource_build!$S:$S,raw_resource_build!$A:$A,AE$940,raw_resource_build!$E:$E,$C957)/10^6,\nSUMIFS(raw_resource_build!$T:$T,raw_resource_build!$A:$A,AE$940,raw_resource_build!$E:$E,$C957)/10^6)","v":0},{"$f":"SUM(SUMIFS(raw_resource_build!$S:$S,raw_resource_build!$A:$A,AF$940,raw_resource_build!$E:$E,$C957)/10^6,\nSUMIFS(raw_resource_build!$T:$T,raw_resource_build!$A:$A,AF$940,raw_resource_build!$E:$E,$C957)/10^6)","v":0},{"$f":"SUM(SUMIFS(raw_resource_build!$S:$S,raw_resource_build!$A:$A,AG$940,raw_resource_build!$E:$E,$C957)/10^6,\nSUMIFS(raw_resource_build!$T:$T,raw_resource_build!$A:$A,AG$940,raw_resource_build!$E:$E,$C957)/10^6)","v":0},{"$f":"SUM(SUMIFS(raw_resource_build!$S:$S,raw_resource_build!$A:$A,AH$940,raw_resource_build!$E:$E,$C957)/10^6,\nSUMIFS(raw_resource_build!$T:$T,raw_resource_build!$A:$A,AH$940,raw_resource_build!$E:$E,$C957)/10^6)","v":0},{"$f":"SUM(SUMIFS(raw_resource_build!$S:$S,raw_resource_build!$A:$A,AI$940,raw_resource_build!$E:$E,$C957)/10^6,\nSUMIFS(raw_resource_build!$T:$T,raw_resource_build!$A:$A,AI$940,raw_resource_build!$E:$E,$C957)/10^6)","v":1639.2762428000001},{"$f":"SUM(SUMIFS(raw_resource_build!$S:$S,raw_resource_build!$A:$A,AJ$940,raw_resource_build!$E:$E,$C957)/10^6,\nSUMIFS(raw_resource_build!$T:$T,raw_resource_build!$A:$A,AJ$940,raw_resource_build!$E:$E,$C957)/10^6)","v":0},{"$f":"SUM(SUMIFS(raw_resource_build!$S:$S,raw_resource_build!$A:$A,AK$940,raw_resource_build!$E:$E,$C957)/10^6,\nSUMIFS(raw_resource_build!$T:$T,raw_resource_build!$A:$A,AK$940,raw_resource_build!$E:$E,$C957)/10^6)","v":0},{"$f":"SUM(SUMIFS(raw_resource_build!$S:$S,raw_resource_build!$A:$A,AL$940,raw_resource_build!$E:$E,$C957)/10^6,\nSUMIFS(raw_resource_build!$T:$T,raw_resource_build!$A:$A,AL$940,raw_resource_build!$E:$E,$C957)/10^6)","v":0},{"$f":"SUM(SUMIFS(raw_resource_build!$S:$S,raw_resource_build!$A:$A,AM$940,raw_resource_build!$E:$E,$C957)/10^6,\nSUMIFS(raw_resource_build!$T:$T,raw_resource_build!$A:$A,AM$940,raw_resource_build!$E:$E,$C957)/10^6)","v":0},{"$f":"SUM(SUMIFS(raw_resource_build!$S:$S,raw_resource_build!$A:$A,AN$940,raw_resource_build!$E:$E,$C957)/10^6,\nSUMIFS(raw_resource_build!$T:$T,raw_resource_build!$A:$A,AN$940,raw_resource_build!$E:$E,$C957)/10^6)","v":0}]
[null,null,{"$f":"Lists!B22","v":"Biomass"},"$MM",{"$f":"SUM(SUMIFS(raw_resource_build!$S:$S,raw_resource_build!$A:$A,E$940,raw_resource_build!$E:$E,$C958)/10^6,\nSUMIFS(raw_resource_build!$T:$T,raw_resource_build!$A:$A,E$940,raw_resource_build!$E:$E,$C958)/10^6)","v":0},{"$f":"SUM(SUMIFS(raw_resource_build!$S:$S,raw_resource_build!$A:$A,F$940,raw_resource_build!$E:$E,$C958)/10^6,\nSUMIFS(raw_resource_build!$T:$T,raw_resource_build!$A:$A,F$940,raw_resource_build!$E:$E,$C958)/10^6)","v":0},{"$f":"SUM(SUMIFS(raw_resource_build!$S:$S,raw_resource_build!$A:$A,G$940,raw_resource_build!$E:$E,$C958)/10^6,\nSUMIFS(raw_resource_build!$T:$T,raw_resource_build!$A:$A,G$940,raw_resource_build!$E:$E,$C958)/10^6)","v":0},{"$f":"SUM(SUMIFS(raw_resource_build!$S:$S,raw_resource_build!$A:$A,H$940,raw_resource_build!$E:$E,$C958)/10^6,\nSUMIFS(raw_resource_build!$T:$T,raw_resource_build!$A:$A,H$940,raw_resource_build!$E:$E,$C958)/10^6)","v":0},{"$f":"SUM(SUMIFS(raw_resource_build!$S:$S,raw_resource_build!$A:$A,I$940,raw_resource_build!$E:$E,$C958)/10^6,\nSUMIFS(raw_resource_build!$T:$T,raw_resource_build!$A:$A,I$940,raw_resource_build!$E:$E,$C958)/10^6)","v":0},{"$f":"SUM(SUMIFS(raw_resource_build!$S:$S,raw_resource_build!$A:$A,J$940,raw_resource_build!$E:$E,$C958)/10^6,\nSUMIFS(raw_resource_build!$T:$T,raw_resource_build!$A:$A,J$940,raw_resource_build!$E:$E,$C958)/10^6)","v":0},{"$f":"SUM(SUMIFS(raw_resource_build!$S:$S,raw_resource_build!$A:$A,K$940,raw_resource_build!$E:$E,$C958)/10^6,\nSUMIFS(raw_resource_build!$T:$T,raw_resource_build!$A:$A,K$940,raw_resource_build!$E:$E,$C958)/10^6)","v":0},{"$f":"SUM(SUMIFS(raw_resource_build!$S:$S,raw_resource_build!$A:$A,L$940,raw_resource_build!$E:$E,$C958)/10^6,\nSUMIFS(raw_resource_build!$T:$T,raw_resource_build!$A:$A,L$940,raw_resource_build!$E:$E,$C958)/10^6)","v":0},{"$f":"SUM(SUMIFS(raw_resource_build!$S:$S,raw_resource_build!$A:$A,M$940,raw_resource_build!$E:$E,$C958)/10^6,\nSUMIFS(raw_resource_build!$T:$T,raw_resource_build!$A:$A,M$940,raw_resource_build!$E:$E,$C958)/10^6)","v":0},{"$f":"SUM(SUMIFS(raw_resource_build!$S:$S,raw_resource_build!$A:$A,N$940,raw_resource_build!$E:$E,$C958)/10^6,\nSUMIFS(raw_resource_build!$T:$T,raw_resource_build!$A:$A,N$940,raw_resource_build!$E:$E,$C958)/10^6)","v":0},{"$f":"SUM(SUMIFS(raw_resource_build!$S:$S,raw_resource_build!$A:$A,O$940,raw_resource_build!$E:$E,$C958)/10^6,\nSUMIFS(raw_resource_build!$T:$T,raw_resource_build!$A:$A,O$940,raw_resource_build!$E:$E,$C958)/10^6)","v":0},{"$f":"SUM(SUMIFS(raw_resource_build!$S:$S,raw_resource_build!$A:$A,P$940,raw_resource_build!$E:$E,$C958)/10^6,\nSUMIFS(raw_resource_build!$T:$T,raw_resource_build!$A:$A,P$940,raw_resource_build!$E:$E,$C958)/10^6)","v":0},{"$f":"SUM(SUMIFS(raw_resource_build!$S:$S,raw_resource_build!$A:$A,Q$940,raw_resource_build!$E:$E,$C958)/10^6,\nSUMIFS(raw_resource_build!$T:$T,raw_resource_build!$A:$A,Q$940,raw_resource_build!$E:$E,$C958)/10^6)","v":0},{"$f":"SUM(SUMIFS(raw_resource_build!$S:$S,raw_resource_build!$A:$A,R$940,raw_resource_build!$E:$E,$C958)/10^6,\nSUMIFS(raw_resource_build!$T:$T,raw_resource_build!$A:$A,R$940,raw_resource_build!$E:$E,$C958)/10^6)","v":0},{"$f":"SUM(SUMIFS(raw_resource_build!$S:$S,raw_resource_build!$A:$A,S$940,raw_resource_build!$E:$E,$C958)/10^6,\nSUMIFS(raw_resource_build!$T:$T,raw_resource_build!$A:$A,S$940,raw_resource_build!$E:$E,$C958)/10^6)","v":0},{"$f":"SUM(SUMIFS(raw_resource_build!$S:$S,raw_resource_build!$A:$A,T$940,raw_resource_build!$E:$E,$C958)/10^6,\nSUMIFS(raw_resource_build!$T:$T,raw_resource_build!$A:$A,T$940,raw_resource_build!$E:$E,$C958)/10^6)","v":0},{"$f":"SUM(SUMIFS(raw_resource_build!$S:$S,raw_resource_build!$A:$A,U$940,raw_resource_build!$E:$E,$C958)/10^6,\nSUMIFS(raw_resource_build!$T:$T,raw_resource_build!$A:$A,U$940,raw_resource_build!$E:$E,$C958)/10^6)","v":0},{"$f":"SUM(SUMIFS(raw_resource_build!$S:$S,raw_resource_build!$A:$A,V$940,raw_resource_build!$E:$E,$C958)/10^6,\nSUMIFS(raw_resource_build!$T:$T,raw_resource_build!$A:$A,V$940,raw_resource_build!$E:$E,$C958)/10^6)","v":0},{"$f":"SUM(SUMIFS(raw_resource_build!$S:$S,raw_resource_build!$A:$A,W$940,raw_resource_build!$E:$E,$C958)/10^6,\nSUMIFS(raw_resource_build!$T:$T,raw_resource_build!$A:$A,W$940,raw_resource_build!$E:$E,$C958)/10^6)","v":0},{"$f":"SUM(SUMIFS(raw_resource_build!$S:$S,raw_resource_build!$A:$A,X$940,raw_resource_build!$E:$E,$C958)/10^6,\nSUMIFS(raw_resource_build!$T:$T,raw_resource_build!$A:$A,X$940,raw_resource_build!$E:$E,$C958)/10^6)","v":0},{"$f":"SUM(SUMIFS(raw_resource_build!$S:$S,raw_resource_build!$A:$A,Y$940,raw_resource_build!$E:$E,$C958)/10^6,\nSUMIFS(raw_resource_build!$T:$T,raw_resource_build!$A:$A,Y$940,raw_resource_build!$E:$E,$C958)/10^6)","v":0},{"$f":"SUM(SUMIFS(raw_resource_build!$S:$S,raw_resource_build!$A:$A,Z$940,raw_resource_build!$E:$E,$C958)/10^6,\nSUMIFS(raw_resource_build!$T:$T,raw_resource_build!$A:$A,Z$940,raw_resource_build!$E:$E,$C958)/10^6)","v":0},{"$f":"SUM(SUMIFS(raw_resource_build!$S:$S,raw_resource_build!$A:$A,AA$940,raw_resource_build!$E:$E,$C958)/10^6,\nSUMIFS(raw_resource_build!$T:$T,raw_resource_build!$A:$A,AA$940,raw_resource_build!$E:$E,$C958)/10^6)","v":0},{"$f":"SUM(SUMIFS(raw_resource_build!$S:$S,raw_resource_build!$A:$A,AB$940,raw_resource_build!$E:$E,$C958)/10^6,\nSUMIFS(raw_resource_build!$T:$T,raw_resource_build!$A:$A,AB$940,raw_resource_build!$E:$E,$C958)/10^6)","v":0},{"$f":"SUM(SUMIFS(raw_resource_build!$S:$S,raw_resource_build!$A:$A,AC$940,raw_resource_build!$E:$E,$C958)/10^6,\nSUMIFS(raw_resource_build!$T:$T,raw_resource_build!$A:$A,AC$940,raw_resource_build!$E:$E,$C958)/10^6)","v":0},{"$f":"SUM(SUMIFS(raw_resource_build!$S:$S,raw_resource_build!$A:$A,AD$940,raw_resource_build!$E:$E,$C958)/10^6,\nSUMIFS(raw_resource_build!$T:$T,raw_resource_build!$A:$A,AD$940,raw_resource_build!$E:$E,$C958)/10^6)","v":0},{"$f":"SUM(SUMIFS(raw_resource_build!$S:$S,raw_resource_build!$A:$A,AE$940,raw_resource_build!$E:$E,$C958)/10^6,\nSUMIFS(raw_resource_build!$T:$T,raw_resource_build!$A:$A,AE$940,raw_resource_build!$E:$E,$C958)/10^6)","v":0},{"$f":"SUM(SUMIFS(raw_resource_build!$S:$S,raw_resource_build!$A:$A,AF$940,raw_resource_build!$E:$E,$C958)/10^6,\nSUMIFS(raw_resource_build!$T:$T,raw_resource_build!$A:$A,AF$940,raw_resource_build!$E:$E,$C958)/10^6)","v":0},{"$f":"SUM(SUMIFS(raw_resource_build!$S:$S,raw_resource_build!$A:$A,AG$940,raw_resource_build!$E:$E,$C958)/10^6,\nSUMIFS(raw_resource_build!$T:$T,raw_resource_build!$A:$A,AG$940,raw_resource_build!$E:$E,$C958)/10^6)","v":0},{"$f":"SUM(SUMIFS(raw_resource_build!$S:$S,raw_resource_build!$A:$A,AH$940,raw_resource_build!$E:$E,$C958)/10^6,\nSUMIFS(raw_resource_build!$T:$T,raw_resource_build!$A:$A,AH$940,raw_resource_build!$E:$E,$C958)/10^6)","v":0},{"$f":"SUM(SUMIFS(raw_resource_build!$S:$S,raw_resource_build!$A:$A,AI$940,raw_resource_build!$E:$E,$C958)/10^6,\nSUMIFS(raw_resource_build!$T:$T,raw_resource_build!$A:$A,AI$940,raw_resource_build!$E:$E,$C958)/10^6)","v":955.00449073999994},{"$f":"SUM(SUMIFS(raw_resource_build!$S:$S,raw_resource_build!$A:$A,AJ$940,raw_resource_build!$E:$E,$C958)/10^6,\nSUMIFS(raw_resource_build!$T:$T,raw_resource_build!$A:$A,AJ$940,raw_resource_build!$E:$E,$C958)/10^6)","v":0},{"$f":"SUM(SUMIFS(raw_resource_build!$S:$S,raw_resource_build!$A:$A,AK$940,raw_resource_build!$E:$E,$C958)/10^6,\nSUMIFS(raw_resource_build!$T:$T,raw_resource_build!$A:$A,AK$940,raw_resource_build!$E:$E,$C958)/10^6)","v":0},{"$f":"SUM(SUMIFS(raw_resource_build!$S:$S,raw_resource_build!$A:$A,AL$940,raw_resource_build!$E:$E,$C958)/10^6,\nSUMIFS(raw_resource_build!$T:$T,raw_resource_build!$A:$A,AL$940,raw_resource_build!$E:$E,$C958)/10^6)","v":0},{"$f":"SUM(SUMIFS(raw_resource_build!$S:$S,raw_resource_build!$A:$A,AM$940,raw_resource_build!$E:$E,$C958)/10^6,\nSUMIFS(raw_resource_build!$T:$T,raw_resource_build!$A:$A,AM$940,raw_resource_build!$E:$E,$C958)/10^6)","v":0},{"$f":"SUM(SUMIFS(raw_resource_build!$S:$S,raw_resource_build!$A:$A,AN$940,raw_resource_build!$E:$E,$C958)/10^6,\nSUMIFS(raw_resource_build!$T:$T,raw_resource_build!$A:$A,AN$940,raw_resource_build!$E:$E,$C958)/10^6)","v":0}]
[null,null,{"$f":"Lists!B23","v":"Small_Hydro"},"$MM",{"$f":"SUM(SUMIFS(raw_resource_build!$S:$S,raw_resource_build!$A:$A,E$940,raw_resource_build!$E:$E,$C959)/10^6,\nSUMIFS(raw_resource_build!$T:$T,raw_resource_build!$A:$A,E$940,raw_resource_build!$E:$E,$C959)/10^6)","v":0},{"$f":"SUM(SUMIFS(raw_resource_build!$S:$S,raw_resource_build!$A:$A,F$940,raw_resource_build!$E:$E,$C959)/10^6,\nSUMIFS(raw_resource_build!$T:$T,raw_resource_build!$A:$A,F$940,raw_resource_build!$E:$E,$C959)/10^6)","v":0},{"$f":"SUM(SUMIFS(raw_resource_build!$S:$S,raw_resource_build!$A:$A,G$940,raw_resource_build!$E:$E,$C959)/10^6,\nSUMIFS(raw_resource_build!$T:$T,raw_resource_build!$A:$A,G$940,raw_resource_build!$E:$E,$C959)/10^6)","v":0},{"$f":"SUM(SUMIFS(raw_resource_build!$S:$S,raw_resource_build!$A:$A,H$940,raw_resource_build!$E:$E,$C959)/10^6,\nSUMIFS(raw_resource_build!$T:$T,raw_resource_build!$A:$A,H$940,raw_resource_build!$E:$E,$C959)/10^6)","v":0},{"$f":"SUM(SUMIFS(raw_resource_build!$S:$S,raw_resource_build!$A:$A,I$940,raw_resource_build!$E:$E,$C959)/10^6,\nSUMIFS(raw_resource_build!$T:$T,raw_resource_build!$A:$A,I$940,raw_resource_build!$E:$E,$C959)/10^6)","v":0},{"$f":"SUM(SUMIFS(raw_resource_build!$S:$S,raw_resource_build!$A:$A,J$940,raw_resource_build!$E:$E,$C959)/10^6,\nSUMIFS(raw_resource_build!$T:$T,raw_resource_build!$A:$A,J$940,raw_resource_build!$E:$E,$C959)/10^6)","v":0},{"$f":"SUM(SUMIFS(raw_resource_build!$S:$S,raw_resource_build!$A:$A,K$940,raw_resource_build!$E:$E,$C959)/10^6,\nSUMIFS(raw_resource_build!$T:$T,raw_resource_build!$A:$A,K$940,raw_resource_build!$E:$E,$C959)/10^6)","v":0},{"$f":"SUM(SUMIFS(raw_resource_build!$S:$S,raw_resource_build!$A:$A,L$940,raw_resource_build!$E:$E,$C959)/10^6,\nSUMIFS(raw_resource_build!$T:$T,raw_resource_build!$A:$A,L$940,raw_resource_build!$E:$E,$C959)/10^6)","v":0},{"$f":"SUM(SUMIFS(raw_resource_build!$S:$S,raw_resource_build!$A:$A,M$940,raw_resource_build!$E:$E,$C959)/10^6,\nSUMIFS(raw_resource_build!$T:$T,raw_resource_build!$A:$A,M$940,raw_resource_build!$E:$E,$C959)/10^6)","v":0},{"$f":"SUM(SUMIFS(raw_resource_build!$S:$S,raw_resource_build!$A:$A,N$940,raw_resource_build!$E:$E,$C959)/10^6,\nSUMIFS(raw_resource_build!$T:$T,raw_resource_build!$A:$A,N$940,raw_resource_build!$E:$E,$C959)/10^6)","v":0},{"$f":"SUM(SUMIFS(raw_resource_build!$S:$S,raw_resource_build!$A:$A,O$940,raw_resource_build!$E:$E,$C959)/10^6,\nSUMIFS(raw_resource_build!$T:$T,raw_resource_build!$A:$A,O$940,raw_resource_build!$E:$E,$C959)/10^6)","v":0},{"$f":"SUM(SUMIFS(raw_resource_build!$S:$S,raw_resource_build!$A:$A,P$940,raw_resource_build!$E:$E,$C959)/10^6,\nSUMIFS(raw_resource_build!$T:$T,raw_resource_build!$A:$A,P$940,raw_resource_build!$E:$E,$C959)/10^6)","v":0},{"$f":"SUM(SUMIFS(raw_resource_build!$S:$S,raw_resource_build!$A:$A,Q$940,raw_resource_build!$E:$E,$C959)/10^6,\nSUMIFS(raw_resource_build!$T:$T,raw_resource_build!$A:$A,Q$940,raw_resource_build!$E:$E,$C959)/10^6)","v":0},{"$f":"SUM(SUMIFS(raw_resource_build!$S:$S,raw_resource_build!$A:$A,R$940,raw_resource_build!$E:$E,$C959)/10^6,\nSUMIFS(raw_resource_build!$T:$T,raw_resource_build!$A:$A,R$940,raw_resource_build!$E:$E,$C959)/10^6)","v":0},{"$f":"SUM(SUMIFS(raw_resource_build!$S:$S,raw_resource_build!$A:$A,S$940,raw_resource_build!$E:$E,$C959)/10^6,\nSUMIFS(raw_resource_build!$T:$T,raw_resource_build!$A:$A,S$940,raw_resource_build!$E:$E,$C959)/10^6)","v":0},{"$f":"SUM(SUMIFS(raw_resource_build!$S:$S,raw_resource_build!$A:$A,T$940,raw_resource_build!$E:$E,$C959)/10^6,\nSUMIFS(raw_resource_build!$T:$T,raw_resource_build!$A:$A,T$940,raw_resource_build!$E:$E,$C959)/10^6)","v":0},{"$f":"SUM(SUMIFS(raw_resource_build!$S:$S,raw_resource_build!$A:$A,U$940,raw_resource_build!$E:$E,$C959)/10^6,\nSUMIFS(raw_resource_build!$T:$T,raw_resource_build!$A:$A,U$940,raw_resource_build!$E:$E,$C959)/10^6)","v":0},{"$f":"SUM(SUMIFS(raw_resource_build!$S:$S,raw_resource_build!$A:$A,V$940,raw_resource_build!$E:$E,$C959)/10^6,\nSUMIFS(raw_resource_build!$T:$T,raw_resource_build!$A:$A,V$940,raw_resource_build!$E:$E,$C959)/10^6)","v":0},{"$f":"SUM(SUMIFS(raw_resource_build!$S:$S,raw_resource_build!$A:$A,W$940,raw_resource_build!$E:$E,$C959)/10^6,\nSUMIFS(raw_resource_build!$T:$T,raw_resource_build!$A:$A,W$940,raw_resource_build!$E:$E,$C959)/10^6)","v":0},{"$f":"SUM(SUMIFS(raw_resource_build!$S:$S,raw_resource_build!$A:$A,X$940,raw_resource_build!$E:$E,$C959)/10^6,\nSUMIFS(raw_resource_build!$T:$T,raw_resource_build!$A:$A,X$940,raw_resource_build!$E:$E,$C959)/10^6)","v":0},{"$f":"SUM(SUMIFS(raw_resource_build!$S:$S,raw_resource_build!$A:$A,Y$940,raw_resource_build!$E:$E,$C959)/10^6,\nSUMIFS(raw_resource_build!$T:$T,raw_resource_build!$A:$A,Y$940,raw_resource_build!$E:$E,$C959)/10^6)","v":0},{"$f":"SUM(SUMIFS(raw_resource_build!$S:$S,raw_resource_build!$A:$A,Z$940,raw_resource_build!$E:$E,$C959)/10^6,\nSUMIFS(raw_resource_build!$T:$T,raw_resource_build!$A:$A,Z$940,raw_resource_build!$E:$E,$C959)/10^6)","v":0},{"$f":"SUM(SUMIFS(raw_resource_build!$S:$S,raw_resource_build!$A:$A,AA$940,raw_resource_build!$E:$E,$C959)/10^6,\nSUMIFS(raw_resource_build!$T:$T,raw_resource_build!$A:$A,AA$940,raw_resource_build!$E:$E,$C959)/10^6)","v":0},{"$f":"SUM(SUMIFS(raw_resource_build!$S:$S,raw_resource_build!$A:$A,AB$940,raw_resource_build!$E:$E,$C959)/10^6,\nSUMIFS(raw_resource_build!$T:$T,raw_resource_build!$A:$A,AB$940,raw_resource_build!$E:$E,$C959)/10^6)","v":0},{"$f":"SUM(SUMIFS(raw_resource_build!$S:$S,raw_resource_build!$A:$A,AC$940,raw_resource_build!$E:$E,$C959)/10^6,\nSUMIFS(raw_resource_build!$T:$T,raw_resource_build!$A:$A,AC$940,raw_resource_build!$E:$E,$C959)/10^6)","v":0},{"$f":"SUM(SUMIFS(raw_resource_build!$S:$S,raw_resource_build!$A:$A,AD$940,raw_resource_build!$E:$E,$C959)/10^6,\nSUMIFS(raw_resource_build!$T:$T,raw_resource_build!$A:$A,AD$940,raw_resource_build!$E:$E,$C959)/10^6)","v":0},{"$f":"SUM(SUMIFS(raw_resource_build!$S:$S,raw_resource_build!$A:$A,AE$940,raw_resource_build!$E:$E,$C959)/10^6,\nSUMIFS(raw_resource_build!$T:$T,raw_resource_build!$A:$A,AE$940,raw_resource_build!$E:$E,$C959)/10^6)","v":0},{"$f":"SUM(SUMIFS(raw_resource_build!$S:$S,raw_resource_build!$A:$A,AF$940,raw_resource_build!$E:$E,$C959)/10^6,\nSUMIFS(raw_resource_build!$T:$T,raw_resource_build!$A:$A,AF$940,raw_resource_build!$E:$E,$C959)/10^6)","v":0},{"$f":"SUM(SUMIFS(raw_resource_build!$S:$S,raw_resource_build!$A:$A,AG$940,raw_resource_build!$E:$E,$C959)/10^6,\nSUMIFS(raw_resource_build!$T:$T,raw_resource_build!$A:$A,AG$940,raw_resource_build!$E:$E,$C959)/10^6)","v":0},{"$f":"SUM(SUMIFS(raw_resource_build!$S:$S,raw_resource_build!$A:$A,AH$940,raw_resource_build!$E:$E,$C959)/10^6,\nSUMIFS(raw_resource_build!$T:$T,raw_resource_build!$A:$A,AH$940,raw_resource_build!$E:$E,$C959)/10^6)","v":0},{"$f":"SUM(SUMIFS(raw_resource_build!$S:$S,raw_resource_build!$A:$A,AI$940,raw_resource_build!$E:$E,$C959)/10^6,\nSUMIFS(raw_resource_build!$T:$T,raw_resource_build!$A:$A,AI$940,raw_resource_build!$E:$E,$C959)/10^6)","v":0},{"$f":"SUM(SUMIFS(raw_resource_build!$S:$S,raw_resource_build!$A:$A,AJ$940,raw_resource_build!$E:$E,$C959)/10^6,\nSUMIFS(raw_resource_build!$T:$T,raw_resource_build!$A:$A,AJ$940,raw_resource_build!$E:$E,$C959)/10^6)","v":0},{"$f":"SUM(SUMIFS(raw_resource_build!$S:$S,raw_resource_build!$A:$A,AK$940,raw_resource_build!$E:$E,$C959)/10^6,\nSUMIFS(raw_resource_build!$T:$T,raw_resource_build!$A:$A,AK$940,raw_resource_build!$E:$E,$C959)/10^6)","v":0},{"$f":"SUM(SUMIFS(raw_resource_build!$S:$S,raw_resource_build!$A:$A,AL$940,raw_resource_build!$E:$E,$C959)/10^6,\nSUMIFS(raw_resource_build!$T:$T,raw_resource_build!$A:$A,AL$940,raw_resource_build!$E:$E,$C959)/10^6)","v":0},{"$f":"SUM(SUMIFS(raw_resource_build!$S:$S,raw_resource_build!$A:$A,AM$940,raw_resource_build!$E:$E,$C959)/10^6,\nSUMIFS(raw_resource_build!$T:$T,raw_resource_build!$A:$A,AM$940,raw_resource_build!$E:$E,$C959)/10^6)","v":0},{"$f":"SUM(SUMIFS(raw_resource_build!$S:$S,raw_resource_build!$A:$A,AN$940,raw_resource_build!$E:$E,$C959)/10^6,\nSUMIFS(raw_resource_build!$T:$T,raw_resource_build!$A:$A,AN$940,raw_resource_build!$E:$E,$C959)/10^6)","v":0}]
[null,null,{"$f":"Lists!B24","v":"Wind"},"$MM",{"$f":"SUM(SUMIFS(raw_resource_build!$S:$S,raw_resource_build!$A:$A,E$940,raw_resource_build!$E:$E,$C960)/10^6,\nSUMIFS(raw_resource_build!$T:$T,raw_resource_build!$A:$A,E$940,raw_resource_build!$E:$E,$C960)/10^6)","v":0},{"$f":"SUM(SUMIFS(raw_resource_build!$S:$S,raw_resource_build!$A:$A,F$940,raw_resource_build!$E:$E,$C960)/10^6,\nSUMIFS(raw_resource_build!$T:$T,raw_resource_build!$A:$A,F$940,raw_resource_build!$E:$E,$C960)/10^6)","v":0},{"$f":"SUM(SUMIFS(raw_resource_build!$S:$S,raw_resource_build!$A:$A,G$940,raw_resource_build!$E:$E,$C960)/10^6,\nSUMIFS(raw_resource_build!$T:$T,raw_resource_build!$A:$A,G$940,raw_resource_build!$E:$E,$C960)/10^6)","v":0},{"$f":"SUM(SUMIFS(raw_resource_build!$S:$S,raw_resource_build!$A:$A,H$940,raw_resource_build!$E:$E,$C960)/10^6,\nSUMIFS(raw_resource_build!$T:$T,raw_resource_build!$A:$A,H$940,raw_resource_build!$E:$E,$C960)/10^6)","v":0},{"$f":"SUM(SUMIFS(raw_resource_build!$S:$S,raw_resource_build!$A:$A,I$940,raw_resource_build!$E:$E,$C960)/10^6,\nSUMIFS(raw_resource_build!$T:$T,raw_resource_build!$A:$A,I$940,raw_resource_build!$E:$E,$C960)/10^6)","v":0},{"$f":"SUM(SUMIFS(raw_resource_build!$S:$S,raw_resource_build!$A:$A,J$940,raw_resource_build!$E:$E,$C960)/10^6,\nSUMIFS(raw_resource_build!$T:$T,raw_resource_build!$A:$A,J$940,raw_resource_build!$E:$E,$C960)/10^6)","v":0},{"$f":"SUM(SUMIFS(raw_resource_build!$S:$S,raw_resource_build!$A:$A,K$940,raw_resource_build!$E:$E,$C960)/10^6,\nSUMIFS(raw_resource_build!$T:$T,raw_resource_build!$A:$A,K$940,raw_resource_build!$E:$E,$C960)/10^6)","v":4.5508268699999999},{"$f":"SUM(SUMIFS(raw_resource_build!$S:$S,raw_resource_build!$A:$A,L$940,raw_resource_build!$E:$E,$C960)/10^6,\nSUMIFS(raw_resource_build!$T:$T,raw_resource_build!$A:$A,L$940,raw_resource_build!$E:$E,$C960)/10^6)","v":440.54899111999998},{"$f":"SUM(SUMIFS(raw_resource_build!$S:$S,raw_resource_build!$A:$A,M$940,raw_resource_build!$E:$E,$C960)/10^6,\nSUMIFS(raw_resource_build!$T:$T,raw_resource_build!$A:$A,M$940,raw_resource_build!$E:$E,$C960)/10^6)","v":484.70109134999996},{"$f":"SUM(SUMIFS(raw_resource_build!$S:$S,raw_resource_build!$A:$A,N$940,raw_resource_build!$E:$E,$C960)/10^6,\nSUMIFS(raw_resource_build!$T:$T,raw_resource_build!$A:$A,N$940,raw_resource_build!$E:$E,$C960)/10^6)","v":498.88225385999999},{"$f":"SUM(SUMIFS(raw_resource_build!$S:$S,raw_resource_build!$A:$A,O$940,raw_resource_build!$E:$E,$C960)/10^6,\nSUMIFS(raw_resource_build!$T:$T,raw_resource_build!$A:$A,O$940,raw_resource_build!$E:$E,$C960)/10^6)","v":0},{"$f":"SUM(SUMIFS(raw_resource_build!$S:$S,raw_resource_build!$A:$A,P$940,raw_resource_build!$E:$E,$C960)/10^6,\nSUMIFS(raw_resource_build!$T:$T,raw_resource_build!$A:$A,P$940,raw_resource_build!$E:$E,$C960)/10^6)","v":498.88225385999999},{"$f":"SUM(SUMIFS(raw_resource_build!$S:$S,raw_resource_build!$A:$A,Q$940,raw_resource_build!$E:$E,$C960)/10^6,\nSUMIFS(raw_resource_build!$T:$T,raw_resource_build!$A:$A,Q$940,raw_resource_build!$E:$E,$C960)/10^6)","v":0},{"$f":"SUM(SUMIFS(raw_resource_build!$S:$S,raw_resource_build!$A:$A,R$940,raw_resource_build!$E:$E,$C960)/10^6,\nSUMIFS(raw_resource_build!$T:$T,raw_resource_build!$A:$A,R$940,raw_resource_build!$E:$E,$C960)/10^6)","v":0},{"$f":"SUM(SUMIFS(raw_resource_build!$S:$S,raw_resource_build!$A:$A,S$940,raw_resource_build!$E:$E,$C960)/10^6,\nSUMIFS(raw_resource_build!$T:$T,raw_resource_build!$A:$A,S$940,raw_resource_build!$E:$E,$C960)/10^6)","v":0},{"$f":"SUM(SUMIFS(raw_resource_build!$S:$S,raw_resource_build!$A:$A,T$940,raw_resource_build!$E:$E,$C960)/10^6,\nSUMIFS(raw_resource_build!$T:$T,raw_resource_build!$A:$A,T$940,raw_resource_build!$E:$E,$C960)/10^6)","v":1114.75255296},{"$f":"SUM(SUMIFS(raw_resource_build!$S:$S,raw_resource_build!$A:$A,U$940,raw_resource_build!$E:$E,$C960)/10^6,\nSUMIFS(raw_resource_build!$T:$T,raw_resource_build!$A:$A,U$940,raw_resource_build!$E:$E,$C960)/10^6)","v":0},{"$f":"SUM(SUMIFS(raw_resource_build!$S:$S,raw_resource_build!$A:$A,V$940,raw_resource_build!$E:$E,$C960)/10^6,\nSUMIFS(raw_resource_build!$T:$T,raw_resource_build!$A:$A,V$940,raw_resource_build!$E:$E,$C960)/10^6)","v":0},{"$f":"SUM(SUMIFS(raw_resource_build!$S:$S,raw_resource_build!$A:$A,W$940,raw_resource_build!$E:$E,$C960)/10^6,\nSUMIFS(raw_resource_build!$T:$T,raw_resource_build!$A:$A,W$940,raw_resource_build!$E:$E,$C960)/10^6)","v":0},{"$f":"SUM(SUMIFS(raw_resource_build!$S:$S,raw_resource_build!$A:$A,X$940,raw_resource_build!$E:$E,$C960)/10^6,\nSUMIFS(raw_resource_build!$T:$T,raw_resource_build!$A:$A,X$940,raw_resource_build!$E:$E,$C960)/10^6)","v":0},{"$f":"SUM(SUMIFS(raw_resource_build!$S:$S,raw_resource_build!$A:$A,Y$940,raw_resource_build!$E:$E,$C960)/10^6,\nSUMIFS(raw_resource_build!$T:$T,raw_resource_build!$A:$A,Y$940,raw_resource_build!$E:$E,$C960)/10^6)","v":0},{"$f":"SUM(SUMIFS(raw_resource_build!$S:$S,raw_resource_build!$A:$A,Z$940,raw_resource_build!$E:$E,$C960)/10^6,\nSUMIFS(raw_resource_build!$T:$T,raw_resource_build!$A:$A,Z$940,raw_resource_build!$E:$E,$C960)/10^6)","v":0},{"$f":"SUM(SUMIFS(raw_resource_build!$S:$S,raw_resource_build!$A:$A,AA$940,raw_resource_build!$E:$E,$C960)/10^6,\nSUMIFS(raw_resource_build!$T:$T,raw_resource_build!$A:$A,AA$940,raw_resource_build!$E:$E,$C960)/10^6)","v":0},{"$f":"SUM(SUMIFS(raw_resource_build!$S:$S,raw_resource_build!$A:$A,AB$940,raw_resource_build!$E:$E,$C960)/10^6,\nSUMIFS(raw_resource_build!$T:$T,raw_resource_build!$A:$A,AB$940,raw_resource_build!$E:$E,$C960)/10^6)","v":0},{"$f":"SUM(SUMIFS(raw_resource_build!$S:$S,raw_resource_build!$A:$A,AC$940,raw_resource_build!$E:$E,$C960)/10^6,\nSUMIFS(raw_resource_build!$T:$T,raw_resource_build!$A:$A,AC$940,raw_resource_build!$E:$E,$C960)/10^6)","v":0},{"$f":"SUM(SUMIFS(raw_resource_build!$S:$S,raw_resource_build!$A:$A,AD$940,raw_resource_build!$E:$E,$C960)/10^6,\nSUMIFS(raw_resource_build!$T:$T,raw_resource_build!$A:$A,AD$940,raw_resource_build!$E:$E,$C960)/10^6)","v":0},{"$f":"SUM(SUMIFS(raw_resource_build!$S:$S,raw_resource_build!$A:$A,AE$940,raw_resource_build!$E:$E,$C960)/10^6,\nSUMIFS(raw_resource_build!$T:$T,raw_resource_build!$A:$A,AE$940,raw_resource_build!$E:$E,$C960)/10^6)","v":0},{"$f":"SUM(SUMIFS(raw_resource_build!$S:$S,raw_resource_build!$A:$A,AF$940,raw_resource_build!$E:$E,$C960)/10^6,\nSUMIFS(raw_resource_build!$T:$T,raw_resource_build!$A:$A,AF$940,raw_resource_build!$E:$E,$C960)/10^6)","v":0},{"$f":"SUM(SUMIFS(raw_resource_build!$S:$S,raw_resource_build!$A:$A,AG$940,raw_resource_build!$E:$E,$C960)/10^6,\nSUMIFS(raw_resource_build!$T:$T,raw_resource_build!$A:$A,AG$940,raw_resource_build!$E:$E,$C960)/10^6)","v":0},{"$f":"SUM(SUMIFS(raw_resource_build!$S:$S,raw_resource_build!$A:$A,AH$940,raw_resource_build!$E:$E,$C960)/10^6,\nSUMIFS(raw_resource_build!$T:$T,raw_resource_build!$A:$A,AH$940,raw_resource_build!$E:$E,$C960)/10^6)","v":0},{"$f":"SUM(SUMIFS(raw_resource_build!$S:$S,raw_resource_build!$A:$A,AI$940,raw_resource_build!$E:$E,$C960)/10^6,\nSUMIFS(raw_resource_build!$T:$T,raw_resource_build!$A:$A,AI$940,raw_resource_build!$E:$E,$C960)/10^6)","v":1695.1046195700001},{"$f":"SUM(SUMIFS(raw_resource_build!$S:$S,raw_resource_build!$A:$A,AJ$940,raw_resource_build!$E:$E,$C960)/10^6,\nSUMIFS(raw_resource_build!$T:$T,raw_resource_build!$A:$A,AJ$940,raw_resource_build!$E:$E,$C960)/10^6)","v":0},{"$f":"SUM(SUMIFS(raw_resource_build!$S:$S,raw_resource_build!$A:$A,AK$940,raw_resource_build!$E:$E,$C960)/10^6,\nSUMIFS(raw_resource_build!$T:$T,raw_resource_build!$A:$A,AK$940,raw_resource_build!$E:$E,$C960)/10^6)","v":0},{"$f":"SUM(SUMIFS(raw_resource_build!$S:$S,raw_resource_build!$A:$A,AL$940,raw_resource_build!$E:$E,$C960)/10^6,\nSUMIFS(raw_resource_build!$T:$T,raw_resource_build!$A:$A,AL$940,raw_resource_build!$E:$E,$C960)/10^6)","v":0},{"$f":"SUM(SUMIFS(raw_resource_build!$S:$S,raw_resource_build!$A:$A,AM$940,raw_resource_build!$E:$E,$C960)/10^6,\nSUMIFS(raw_resource_build!$T:$T,raw_resource_build!$A:$A,AM$940,raw_resource_build!$E:$E,$C960)/10^6)","v":0},{"$f":"SUM(SUMIFS(raw_resource_build!$S:$S,raw_resource_build!$A:$A,AN$940,raw_resource_build!$E:$E,$C960)/10^6,\nSUMIFS(raw_resource_build!$T:$T,raw_resource_build!$A:$A,AN$940,raw_resource_build!$E:$E,$C960)/10^6)","v":0}]
[null,null,{"$f":"Lists!B26","v":"Offshore_Wind"},"$MM",{"$f":"SUM(SUMIFS(raw_resource_build!$S:$S,raw_resource_build!$A:$A,E$940,raw_resource_build!$E:$E,$C961)/10^6,\nSUMIFS(raw_resource_build!$T:$T,raw_resource_build!$A:$A,E$940,raw_resource_build!$E:$E,$C961)/10^6)","v":0},{"$f":"SUM(SUMIFS(raw_resource_build!$S:$S,raw_resource_build!$A:$A,F$940,raw_resource_build!$E:$E,$C961)/10^6,\nSUMIFS(raw_resource_build!$T:$T,raw_resource_build!$A:$A,F$940,raw_resource_build!$E:$E,$C961)/10^6)","v":0},{"$f":"SUM(SUMIFS(raw_resource_build!$S:$S,raw_resource_build!$A:$A,G$940,raw_resource_build!$E:$E,$C961)/10^6,\nSUMIFS(raw_resource_build!$T:$T,raw_resource_build!$A:$A,G$940,raw_resource_build!$E:$E,$C961)/10^6)","v":0},{"$f":"SUM(SUMIFS(raw_resource_build!$S:$S,raw_resource_build!$A:$A,H$940,raw_resource_build!$E:$E,$C961)/10^6,\nSUMIFS(raw_resource_build!$T:$T,raw_resource_build!$A:$A,H$940,raw_resource_build!$E:$E,$C961)/10^6)","v":0},{"$f":"SUM(SUMIFS(raw_resource_build!$S:$S,raw_resource_build!$A:$A,I$940,raw_resource_build!$E:$E,$C961)/10^6,\nSUMIFS(raw_resource_build!$T:$T,raw_resource_build!$A:$A,I$940,raw_resource_build!$E:$E,$C961)/10^6)","v":0},{"$f":"SUM(SUMIFS(raw_resource_build!$S:$S,raw_resource_build!$A:$A,J$940,raw_resource_build!$E:$E,$C961)/10^6,\nSUMIFS(raw_resource_build!$T:$T,raw_resource_build!$A:$A,J$940,raw_resource_build!$E:$E,$C961)/10^6)","v":0},{"$f":"SUM(SUMIFS(raw_resource_build!$S:$S,raw_resource_build!$A:$A,K$940,raw_resource_build!$E:$E,$C961)/10^6,\nSUMIFS(raw_resource_build!$T:$T,raw_resource_build!$A:$A,K$940,raw_resource_build!$E:$E,$C961)/10^6)","v":0},{"$f":"SUM(SUMIFS(raw_resource_build!$S:$S,raw_resource_build!$A:$A,L$940,raw_resource_build!$E:$E,$C961)/10^6,\nSUMIFS(raw_resource_build!$T:$T,raw_resource_build!$A:$A,L$940,raw_resource_build!$E:$E,$C961)/10^6)","v":0},{"$f":"SUM(SUMIFS(raw_resource_build!$S:$S,raw_resource_build!$A:$A,M$940,raw_resource_build!$E:$E,$C961)/10^6,\nSUMIFS(raw_resource_build!$T:$T,raw_resource_build!$A:$A,M$940,raw_resource_build!$E:$E,$C961)/10^6)","v":0},{"$f":"SUM(SUMIFS(raw_resource_build!$S:$S,raw_resource_build!$A:$A,N$940,raw_resource_build!$E:$E,$C961)/10^6,\nSUMIFS(raw_resource_build!$T:$T,raw_resource_build!$A:$A,N$940,raw_resource_build!$E:$E,$C961)/10^6)","v":0},{"$f":"SUM(SUMIFS(raw_resource_build!$S:$S,raw_resource_build!$A:$A,O$940,raw_resource_build!$E:$E,$C961)/10^6,\nSUMIFS(raw_resource_build!$T:$T,raw_resource_build!$A:$A,O$940,raw_resource_build!$E:$E,$C961)/10^6)","v":0},{"$f":"SUM(SUMIFS(raw_resource_build!$S:$S,raw_resource_build!$A:$A,P$940,raw_resource_build!$E:$E,$C961)/10^6,\nSUMIFS(raw_resource_build!$T:$T,raw_resource_build!$A:$A,P$940,raw_resource_build!$E:$E,$C961)/10^6)","v":0},{"$f":"SUM(SUMIFS(raw_resource_build!$S:$S,raw_resource_build!$A:$A,Q$940,raw_resource_build!$E:$E,$C961)/10^6,\nSUMIFS(raw_resource_build!$T:$T,raw_resource_build!$A:$A,Q$940,raw_resource_build!$E:$E,$C961)/10^6)","v":0},{"$f":"SUM(SUMIFS(raw_resource_build!$S:$S,raw_resource_build!$A:$A,R$940,raw_resource_build!$E:$E,$C961)/10^6,\nSUMIFS(raw_resource_build!$T:$T,raw_resource_build!$A:$A,R$940,raw_resource_build!$E:$E,$C961)/10^6)","v":0},{"$f":"SUM(SUMIFS(raw_resource_build!$S:$S,raw_resource_build!$A:$A,S$940,raw_resource_build!$E:$E,$C961)/10^6,\nSUMIFS(raw_resource_build!$T:$T,raw_resource_build!$A:$A,S$940,raw_resource_build!$E:$E,$C961)/10^6)","v":0},{"$f":"SUM(SUMIFS(raw_resource_build!$S:$S,raw_resource_build!$A:$A,T$940,raw_resource_build!$E:$E,$C961)/10^6,\nSUMIFS(raw_resource_build!$T:$T,raw_resource_build!$A:$A,T$940,raw_resource_build!$E:$E,$C961)/10^6)","v":0},{"$f":"SUM(SUMIFS(raw_resource_build!$S:$S,raw_resource_build!$A:$A,U$940,raw_resource_build!$E:$E,$C961)/10^6,\nSUMIFS(raw_resource_build!$T:$T,raw_resource_build!$A:$A,U$940,raw_resource_build!$E:$E,$C961)/10^6)","v":0},{"$f":"SUM(SUMIFS(raw_resource_build!$S:$S,raw_resource_build!$A:$A,V$940,raw_resource_build!$E:$E,$C961)/10^6,\nSUMIFS(raw_resource_build!$T:$T,raw_resource_build!$A:$A,V$940,raw_resource_build!$E:$E,$C961)/10^6)","v":0},{"$f":"SUM(SUMIFS(raw_resource_build!$S:$S,raw_resource_build!$A:$A,W$940,raw_resource_build!$E:$E,$C961)/10^6,\nSUMIFS(raw_resource_build!$T:$T,raw_resource_build!$A:$A,W$940,raw_resource_build!$E:$E,$C961)/10^6)","v":0},{"$f":"SUM(SUMIFS(raw_resource_build!$S:$S,raw_resource_build!$A:$A,X$940,raw_resource_build!$E:$E,$C961)/10^6,\nSUMIFS(raw_resource_build!$T:$T,raw_resource_build!$A:$A,X$940,raw_resource_build!$E:$E,$C961)/10^6)","v":0},{"$f":"SUM(SUMIFS(raw_resource_build!$S:$S,raw_resource_build!$A:$A,Y$940,raw_resource_build!$E:$E,$C961)/10^6,\nSUMIFS(raw_resource_build!$T:$T,raw_resource_build!$A:$A,Y$940,raw_resource_build!$E:$E,$C961)/10^6)","v":0},{"$f":"SUM(SUMIFS(raw_resource_build!$S:$S,raw_resource_build!$A:$A,Z$940,raw_resource_build!$E:$E,$C961)/10^6,\nSUMIFS(raw_resource_build!$T:$T,raw_resource_build!$A:$A,Z$940,raw_resource_build!$E:$E,$C961)/10^6)","v":0},{"$f":"SUM(SUMIFS(raw_resource_build!$S:$S,raw_resource_build!$A:$A,AA$940,raw_resource_build!$E:$E,$C961)/10^6,\nSUMIFS(raw_resource_build!$T:$T,raw_resource_build!$A:$A,AA$940,raw_resource_build!$E:$E,$C961)/10^6)","v":0},{"$f":"SUM(SUMIFS(raw_resource_build!$S:$S,raw_resource_build!$A:$A,AB$940,raw_resource_build!$E:$E,$C961)/10^6,\nSUMIFS(raw_resource_build!$T:$T,raw_resource_build!$A:$A,AB$940,raw_resource_build!$E:$E,$C961)/10^6)","v":0},{"$f":"SUM(SUMIFS(raw_resource_build!$S:$S,raw_resource_build!$A:$A,AC$940,raw_resource_build!$E:$E,$C961)/10^6,\nSUMIFS(raw_resource_build!$T:$T,raw_resource_build!$A:$A,AC$940,raw_resource_build!$E:$E,$C961)/10^6)","v":0},{"$f":"SUM(SUMIFS(raw_resource_build!$S:$S,raw_resource_build!$A:$A,AD$940,raw_resource_build!$E:$E,$C961)/10^6,\nSUMIFS(raw_resource_build!$T:$T,raw_resource_build!$A:$A,AD$940,raw_resource_build!$E:$E,$C961)/10^6)","v":0},{"$f":"SUM(SUMIFS(raw_resource_build!$S:$S,raw_resource_build!$A:$A,AE$940,raw_resource_build!$E:$E,$C961)/10^6,\nSUMIFS(raw_resource_build!$T:$T,raw_resource_build!$A:$A,AE$940,raw_resource_build!$E:$E,$C961)/10^6)","v":0},{"$f":"SUM(SUMIFS(raw_resource_build!$S:$S,raw_resource_build!$A:$A,AF$940,raw_resource_build!$E:$E,$C961)/10^6,\nSUMIFS(raw_resource_build!$T:$T,raw_resource_build!$A:$A,AF$940,raw_resource_build!$E:$E,$C961)/10^6)","v":0},{"$f":"SUM(SUMIFS(raw_resource_build!$S:$S,raw_resource_build!$A:$A,AG$940,raw_resource_build!$E:$E,$C961)/10^6,\nSUMIFS(raw_resource_build!$T:$T,raw_resource_build!$A:$A,AG$940,raw_resource_build!$E:$E,$C961)/10^6)","v":0},{"$f":"SUM(SUMIFS(raw_resource_build!$S:$S,raw_resource_build!$A:$A,AH$940,raw_resource_build!$E:$E,$C961)/10^6,\nSUMIFS(raw_resource_build!$T:$T,raw_resource_build!$A:$A,AH$940,raw_resource_build!$E:$E,$C961)/10^6)","v":0},{"$f":"SUM(SUMIFS(raw_resource_build!$S:$S,raw_resource_build!$A:$A,AI$940,raw_resource_build!$E:$E,$C961)/10^6,\nSUMIFS(raw_resource_build!$T:$T,raw_resource_build!$A:$A,AI$940,raw_resource_build!$E:$E,$C961)/10^6)","v":0},{"$f":"SUM(SUMIFS(raw_resource_build!$S:$S,raw_resource_build!$A:$A,AJ$940,raw_resource_build!$E:$E,$C961)/10^6,\nSUMIFS(raw_resource_build!$T:$T,raw_resource_build!$A:$A,AJ$940,raw_resource_build!$E:$E,$C961)/10^6)","v":0},{"$f":"SUM(SUMIFS(raw_resource_build!$S:$S,raw_resource_build!$A:$A,AK$940,raw_resource_build!$E:$E,$C961)/10^6,\nSUMIFS(raw_resource_build!$T:$T,raw_resource_build!$A:$A,AK$940,raw_resource_build!$E:$E,$C961)/10^6)","v":0},{"$f":"SUM(SUMIFS(raw_resource_build!$S:$S,raw_resource_build!$A:$A,AL$940,raw_resource_build!$E:$E,$C961)/10^6,\nSUMIFS(raw_resource_build!$T:$T,raw_resource_build!$A:$A,AL$940,raw_resource_build!$E:$E,$C961)/10^6)","v":0},{"$f":"SUM(SUMIFS(raw_resource_build!$S:$S,raw_resource_build!$A:$A,AM$940,raw_resource_build!$E:$E,$C961)/10^6,\nSUMIFS(raw_resource_build!$T:$T,raw_resource_build!$A:$A,AM$940,raw_resource_build!$E:$E,$C961)/10^6)","v":0},{"$f":"SUM(SUMIFS(raw_resource_build!$S:$S,raw_resource_build!$A:$A,AN$940,raw_resource_build!$E:$E,$C961)/10^6,\nSUMIFS(raw_resource_build!$T:$T,raw_resource_build!$A:$A,AN$940,raw_resource_build!$E:$E,$C961)/10^6)","v":0}]
[null,null,{"$f":"Lists!B27","v":"Pumped_Hydro"},"$MM",{"$f":"SUM(SUMIFS(raw_resource_build!$S:$S,raw_resource_build!$A:$A,E$940,raw_resource_build!$E:$E,$C962)/10^6,\nSUMIFS(raw_resource_build!$T:$T,raw_resource_build!$A:$A,E$940,raw_resource_build!$E:$E,$C962)/10^6)","v":0},{"$f":"SUM(SUMIFS(raw_resource_build!$S:$S,raw_resource_build!$A:$A,F$940,raw_resource_build!$E:$E,$C962)/10^6,\nSUMIFS(raw_resource_build!$T:$T,raw_resource_build!$A:$A,F$940,raw_resource_build!$E:$E,$C962)/10^6)","v":0},{"$f":"SUM(SUMIFS(raw_resource_build!$S:$S,raw_resource_build!$A:$A,G$940,raw_resource_build!$E:$E,$C962)/10^6,\nSUMIFS(raw_resource_build!$T:$T,raw_resource_build!$A:$A,G$940,raw_resource_build!$E:$E,$C962)/10^6)","v":0},{"$f":"SUM(SUMIFS(raw_resource_build!$S:$S,raw_resource_build!$A:$A,H$940,raw_resource_build!$E:$E,$C962)/10^6,\nSUMIFS(raw_resource_build!$T:$T,raw_resource_build!$A:$A,H$940,raw_resource_build!$E:$E,$C962)/10^6)","v":0},{"$f":"SUM(SUMIFS(raw_resource_build!$S:$S,raw_resource_build!$A:$A,I$940,raw_resource_build!$E:$E,$C962)/10^6,\nSUMIFS(raw_resource_build!$T:$T,raw_resource_build!$A:$A,I$940,raw_resource_build!$E:$E,$C962)/10^6)","v":0},{"$f":"SUM(SUMIFS(raw_resource_build!$S:$S,raw_resource_build!$A:$A,J$940,raw_resource_build!$E:$E,$C962)/10^6,\nSUMIFS(raw_resource_build!$T:$T,raw_resource_build!$A:$A,J$940,raw_resource_build!$E:$E,$C962)/10^6)","v":0},{"$f":"SUM(SUMIFS(raw_resource_build!$S:$S,raw_resource_build!$A:$A,K$940,raw_resource_build!$E:$E,$C962)/10^6,\nSUMIFS(raw_resource_build!$T:$T,raw_resource_build!$A:$A,K$940,raw_resource_build!$E:$E,$C962)/10^6)","v":0},{"$f":"SUM(SUMIFS(raw_resource_build!$S:$S,raw_resource_build!$A:$A,L$940,raw_resource_build!$E:$E,$C962)/10^6,\nSUMIFS(raw_resource_build!$T:$T,raw_resource_build!$A:$A,L$940,raw_resource_build!$E:$E,$C962)/10^6)","v":0},{"$f":"SUM(SUMIFS(raw_resource_build!$S:$S,raw_resource_build!$A:$A,M$940,raw_resource_build!$E:$E,$C962)/10^6,\nSUMIFS(raw_resource_build!$T:$T,raw_resource_build!$A:$A,M$940,raw_resource_build!$E:$E,$C962)/10^6)","v":0},{"$f":"SUM(SUMIFS(raw_resource_build!$S:$S,raw_resource_build!$A:$A,N$940,raw_resource_build!$E:$E,$C962)/10^6,\nSUMIFS(raw_resource_build!$T:$T,raw_resource_build!$A:$A,N$940,raw_resource_build!$E:$E,$C962)/10^6)","v":0},{"$f":"SUM(SUMIFS(raw_resource_build!$S:$S,raw_resource_build!$A:$A,O$940,raw_resource_build!$E:$E,$C962)/10^6,\nSUMIFS(raw_resource_build!$T:$T,raw_resource_build!$A:$A,O$940,raw_resource_build!$E:$E,$C962)/10^6)","v":0},{"$f":"SUM(SUMIFS(raw_resource_build!$S:$S,raw_resource_build!$A:$A,P$940,raw_resource_build!$E:$E,$C962)/10^6,\nSUMIFS(raw_resource_build!$T:$T,raw_resource_build!$A:$A,P$940,raw_resource_build!$E:$E,$C962)/10^6)","v":417.79244526999997},{"$f":"SUM(SUMIFS(raw_resource_build!$S:$S,raw_resource_build!$A:$A,Q$940,raw_resource_build!$E:$E,$C962)/10^6,\nSUMIFS(raw_resource_build!$T:$T,raw_resource_build!$A:$A,Q$940,raw_resource_build!$E:$E,$C962)/10^6)","v":0},{"$f":"SUM(SUMIFS(raw_resource_build!$S:$S,raw_resource_build!$A:$A,R$940,raw_resource_build!$E:$E,$C962)/10^6,\nSUMIFS(raw_resource_build!$T:$T,raw_resource_build!$A:$A,R$940,raw_resource_build!$E:$E,$C962)/10^6)","v":0},{"$f":"SUM(SUMIFS(raw_resource_build!$S:$S,raw_resource_build!$A:$A,S$940,raw_resource_build!$E:$E,$C962)/10^6,\nSUMIFS(raw_resource_build!$T:$T,raw_resource_build!$A:$A,S$940,raw_resource_build!$E:$E,$C962)/10^6)","v":0},{"$f":"SUM(SUMIFS(raw_resource_build!$S:$S,raw_resource_build!$A:$A,T$940,raw_resource_build!$E:$E,$C962)/10^6,\nSUMIFS(raw_resource_build!$T:$T,raw_resource_build!$A:$A,T$940,raw_resource_build!$E:$E,$C962)/10^6)","v":417.79244526999997},{"$f":"SUM(SUMIFS(raw_resource_build!$S:$S,raw_resource_build!$A:$A,U$940,raw_resource_build!$E:$E,$C962)/10^6,\nSUMIFS(raw_resource_build!$T:$T,raw_resource_build!$A:$A,U$940,raw_resource_build!$E:$E,$C962)/10^6)","v":0},{"$f":"SUM(SUMIFS(raw_resource_build!$S:$S,raw_resource_build!$A:$A,V$940,raw_resource_build!$E:$E,$C962)/10^6,\nSUMIFS(raw_resource_build!$T:$T,raw_resource_build!$A:$A,V$940,raw_resource_build!$E:$E,$C962)/10^6)","v":0},{"$f":"SUM(SUMIFS(raw_resource_build!$S:$S,raw_resource_build!$A:$A,W$940,raw_resource_build!$E:$E,$C962)/10^6,\nSUMIFS(raw_resource_build!$T:$T,raw_resource_build!$A:$A,W$940,raw_resource_build!$E:$E,$C962)/10^6)","v":0},{"$f":"SUM(SUMIFS(raw_resource_build!$S:$S,raw_resource_build!$A:$A,X$940,raw_resource_build!$E:$E,$C962)/10^6,\nSUMIFS(raw_resource_build!$T:$T,raw_resource_build!$A:$A,X$940,raw_resource_build!$E:$E,$C962)/10^6)","v":0},{"$f":"SUM(SUMIFS(raw_resource_build!$S:$S,raw_resource_build!$A:$A,Y$940,raw_resource_build!$E:$E,$C962)/10^6,\nSUMIFS(raw_resource_build!$T:$T,raw_resource_build!$A:$A,Y$940,raw_resource_build!$E:$E,$C962)/10^6)","v":0},{"$f":"SUM(SUMIFS(raw_resource_build!$S:$S,raw_resource_build!$A:$A,Z$940,raw_resource_build!$E:$E,$C962)/10^6,\nSUMIFS(raw_resource_build!$T:$T,raw_resource_build!$A:$A,Z$940,raw_resource_build!$E:$E,$C962)/10^6)","v":0},{"$f":"SUM(SUMIFS(raw_resource_build!$S:$S,raw_resource_build!$A:$A,AA$940,raw_resource_build!$E:$E,$C962)/10^6,\nSUMIFS(raw_resource_build!$T:$T,raw_resource_build!$A:$A,AA$940,raw_resource_build!$E:$E,$C962)/10^6)","v":0},{"$f":"SUM(SUMIFS(raw_resource_build!$S:$S,raw_resource_build!$A:$A,AB$940,raw_resource_build!$E:$E,$C962)/10^6,\nSUMIFS(raw_resource_build!$T:$T,raw_resource_build!$A:$A,AB$940,raw_resource_build!$E:$E,$C962)/10^6)","v":0},{"$f":"SUM(SUMIFS(raw_resource_build!$S:$S,raw_resource_build!$A:$A,AC$940,raw_resource_build!$E:$E,$C962)/10^6,\nSUMIFS(raw_resource_build!$T:$T,raw_resource_build!$A:$A,AC$940,raw_resource_build!$E:$E,$C962)/10^6)","v":0},{"$f":"SUM(SUMIFS(raw_resource_build!$S:$S,raw_resource_build!$A:$A,AD$940,raw_resource_build!$E:$E,$C962)/10^6,\nSUMIFS(raw_resource_build!$T:$T,raw_resource_build!$A:$A,AD$940,raw_resource_build!$E:$E,$C962)/10^6)","v":0},{"$f":"SUM(SUMIFS(raw_resource_build!$S:$S,raw_resource_build!$A:$A,AE$940,raw_resource_build!$E:$E,$C962)/10^6,\nSUMIFS(raw_resource_build!$T:$T,raw_resource_build!$A:$A,AE$940,raw_resource_build!$E:$E,$C962)/10^6)","v":0},{"$f":"SUM(SUMIFS(raw_resource_build!$S:$S,raw_resource_build!$A:$A,AF$940,raw_resource_build!$E:$E,$C962)/10^6,\nSUMIFS(raw_resource_build!$T:$T,raw_resource_build!$A:$A,AF$940,raw_resource_build!$E:$E,$C962)/10^6)","v":0},{"$f":"SUM(SUMIFS(raw_resource_build!$S:$S,raw_resource_build!$A:$A,AG$940,raw_resource_build!$E:$E,$C962)/10^6,\nSUMIFS(raw_resource_build!$T:$T,raw_resource_build!$A:$A,AG$940,raw_resource_build!$E:$E,$C962)/10^6)","v":0},{"$f":"SUM(SUMIFS(raw_resource_build!$S:$S,raw_resource_build!$A:$A,AH$940,raw_resource_build!$E:$E,$C962)/10^6,\nSUMIFS(raw_resource_build!$T:$T,raw_resource_build!$A:$A,AH$940,raw_resource_build!$E:$E,$C962)/10^6)","v":0},{"$f":"SUM(SUMIFS(raw_resource_build!$S:$S,raw_resource_build!$A:$A,AI$940,raw_resource_build!$E:$E,$C962)/10^6,\nSUMIFS(raw_resource_build!$T:$T,raw_resource_build!$A:$A,AI$940,raw_resource_build!$E:$E,$C962)/10^6)","v":417.79244526999997},{"$f":"SUM(SUMIFS(raw_resource_build!$S:$S,raw_resource_build!$A:$A,AJ$940,raw_resource_build!$E:$E,$C962)/10^6,\nSUMIFS(raw_resource_build!$T:$T,raw_resource_build!$A:$A,AJ$940,raw_resource_build!$E:$E,$C962)/10^6)","v":0},{"$f":"SUM(SUMIFS(raw_resource_build!$S:$S,raw_resource_build!$A:$A,AK$940,raw_resource_build!$E:$E,$C962)/10^6,\nSUMIFS(raw_resource_build!$T:$T,raw_resource_build!$A:$A,AK$940,raw_resource_build!$E:$E,$C962)/10^6)","v":0},{"$f":"SUM(SUMIFS(raw_resource_build!$S:$S,raw_resource_build!$A:$A,AL$940,raw_resource_build!$E:$E,$C962)/10^6,\nSUMIFS(raw_resource_build!$T:$T,raw_resource_build!$A:$A,AL$940,raw_resource_build!$E:$E,$C962)/10^6)","v":0},{"$f":"SUM(SUMIFS(raw_resource_build!$S:$S,raw_resource_build!$A:$A,AM$940,raw_resource_build!$E:$E,$C962)/10^6,\nSUMIFS(raw_resource_build!$T:$T,raw_resource_build!$A:$A,AM$940,raw_resource_build!$E:$E,$C962)/10^6)","v":0},{"$f":"SUM(SUMIFS(raw_resource_build!$S:$S,raw_resource_build!$A:$A,AN$940,raw_resource_build!$E:$E,$C962)/10^6,\nSUMIFS(raw_resource_build!$T:$T,raw_resource_build!$A:$A,AN$940,raw_resource_build!$E:$E,$C962)/10^6)","v":0}]
[null,null,{"$f":"Lists!B28","v":"Li_Battery"},"$MM",{"$f":"SUM(SUMIFS(raw_resource_build!$S:$S,raw_resource_build!$A:$A,E$940,raw_resource_build!$E:$E,$C963)/10^6,\nSUMIFS(raw_resource_build!$T:$T,raw_resource_build!$A:$A,E$940,raw_resource_build!$E:$E,$C963)/10^6)","v":0},{"$f":"SUM(SUMIFS(raw_resource_build!$S:$S,raw_resource_build!$A:$A,F$940,raw_resource_build!$E:$E,$C963)/10^6,\nSUMIFS(raw_resource_build!$T:$T,raw_resource_build!$A:$A,F$940,raw_resource_build!$E:$E,$C963)/10^6)","v":0},{"$f":"SUM(SUMIFS(raw_resource_build!$S:$S,raw_resource_build!$A:$A,G$940,raw_resource_build!$E:$E,$C963)/10^6,\nSUMIFS(raw_resource_build!$T:$T,raw_resource_build!$A:$A,G$940,raw_resource_build!$E:$E,$C963)/10^6)","v":0},{"$f":"SUM(SUMIFS(raw_resource_build!$S:$S,raw_resource_build!$A:$A,H$940,raw_resource_build!$E:$E,$C963)/10^6,\nSUMIFS(raw_resource_build!$T:$T,raw_resource_build!$A:$A,H$940,raw_resource_build!$E:$E,$C963)/10^6)","v":0},{"$f":"SUM(SUMIFS(raw_resource_build!$S:$S,raw_resource_build!$A:$A,I$940,raw_resource_build!$E:$E,$C963)/10^6,\nSUMIFS(raw_resource_build!$T:$T,raw_resource_build!$A:$A,I$940,raw_resource_build!$E:$E,$C963)/10^6)","v":0},{"$f":"SUM(SUMIFS(raw_resource_build!$S:$S,raw_resource_build!$A:$A,J$940,raw_resource_build!$E:$E,$C963)/10^6,\nSUMIFS(raw_resource_build!$T:$T,raw_resource_build!$A:$A,J$940,raw_resource_build!$E:$E,$C963)/10^6)","v":576.20645854999998},{"$f":"SUM(SUMIFS(raw_resource_build!$S:$S,raw_resource_build!$A:$A,K$940,raw_resource_build!$E:$E,$C963)/10^6,\nSUMIFS(raw_resource_build!$T:$T,raw_resource_build!$A:$A,K$940,raw_resource_build!$E:$E,$C963)/10^6)","v":1022.8615118299999},{"$f":"SUM(SUMIFS(raw_resource_build!$S:$S,raw_resource_build!$A:$A,L$940,raw_resource_build!$E:$E,$C963)/10^6,\nSUMIFS(raw_resource_build!$T:$T,raw_resource_build!$A:$A,L$940,raw_resource_build!$E:$E,$C963)/10^6)","v":1022.8615118299999},{"$f":"SUM(SUMIFS(raw_resource_build!$S:$S,raw_resource_build!$A:$A,M$940,raw_resource_build!$E:$E,$C963)/10^6,\nSUMIFS(raw_resource_build!$T:$T,raw_resource_build!$A:$A,M$940,raw_resource_build!$E:$E,$C963)/10^6)","v":1058.2139942399999},{"$f":"SUM(SUMIFS(raw_resource_build!$S:$S,raw_resource_build!$A:$A,N$940,raw_resource_build!$E:$E,$C963)/10^6,\nSUMIFS(raw_resource_build!$T:$T,raw_resource_build!$A:$A,N$940,raw_resource_build!$E:$E,$C963)/10^6)","v":1292.04477488},{"$f":"SUM(SUMIFS(raw_resource_build!$S:$S,raw_resource_build!$A:$A,O$940,raw_resource_build!$E:$E,$C963)/10^6,\nSUMIFS(raw_resource_build!$T:$T,raw_resource_build!$A:$A,O$940,raw_resource_build!$E:$E,$C963)/10^6)","v":0},{"$f":"SUM(SUMIFS(raw_resource_build!$S:$S,raw_resource_build!$A:$A,P$940,raw_resource_build!$E:$E,$C963)/10^6,\nSUMIFS(raw_resource_build!$T:$T,raw_resource_build!$A:$A,P$940,raw_resource_build!$E:$E,$C963)/10^6)","v":1671.38243175},{"$f":"SUM(SUMIFS(raw_resource_build!$S:$S,raw_resource_build!$A:$A,Q$940,raw_resource_build!$E:$E,$C963)/10^6,\nSUMIFS(raw_resource_build!$T:$T,raw_resource_build!$A:$A,Q$940,raw_resource_build!$E:$E,$C963)/10^6)","v":0},{"$f":"SUM(SUMIFS(raw_resource_build!$S:$S,raw_resource_build!$A:$A,R$940,raw_resource_build!$E:$E,$C963)/10^6,\nSUMIFS(raw_resource_build!$T:$T,raw_resource_build!$A:$A,R$940,raw_resource_build!$E:$E,$C963)/10^6)","v":0},{"$f":"SUM(SUMIFS(raw_resource_build!$S:$S,raw_resource_build!$A:$A,S$940,raw_resource_build!$E:$E,$C963)/10^6,\nSUMIFS(raw_resource_build!$T:$T,raw_resource_build!$A:$A,S$940,raw_resource_build!$E:$E,$C963)/10^6)","v":0},{"$f":"SUM(SUMIFS(raw_resource_build!$S:$S,raw_resource_build!$A:$A,T$940,raw_resource_build!$E:$E,$C963)/10^6,\nSUMIFS(raw_resource_build!$T:$T,raw_resource_build!$A:$A,T$940,raw_resource_build!$E:$E,$C963)/10^6)","v":1866.3008316199998},{"$f":"SUM(SUMIFS(raw_resource_build!$S:$S,raw_resource_build!$A:$A,U$940,raw_resource_build!$E:$E,$C963)/10^6,\nSUMIFS(raw_resource_build!$T:$T,raw_resource_build!$A:$A,U$940,raw_resource_build!$E:$E,$C963)/10^6)","v":0},{"$f":"SUM(SUMIFS(raw_resource_build!$S:$S,raw_resource_build!$A:$A,V$940,raw_resource_build!$E:$E,$C963)/10^6,\nSUMIFS(raw_resource_build!$T:$T,raw_resource_build!$A:$A,V$940,raw_resource_build!$E:$E,$C963)/10^6)","v":0},{"$f":"SUM(SUMIFS(raw_resource_build!$S:$S,raw_resource_build!$A:$A,W$940,raw_resource_build!$E:$E,$C963)/10^6,\nSUMIFS(raw_resource_build!$T:$T,raw_resource_build!$A:$A,W$940,raw_resource_build!$E:$E,$C963)/10^6)","v":0},{"$f":"SUM(SUMIFS(raw_resource_build!$S:$S,raw_resource_build!$A:$A,X$940,raw_resource_build!$E:$E,$C963)/10^6,\nSUMIFS(raw_resource_build!$T:$T,raw_resource_build!$A:$A,X$940,raw_resource_build!$E:$E,$C963)/10^6)","v":0},{"$f":"SUM(SUMIFS(raw_resource_build!$S:$S,raw_resource_build!$A:$A,Y$940,raw_resource_build!$E:$E,$C963)/10^6,\nSUMIFS(raw_resource_build!$T:$T,raw_resource_build!$A:$A,Y$940,raw_resource_build!$E:$E,$C963)/10^6)","v":0},{"$f":"SUM(SUMIFS(raw_resource_build!$S:$S,raw_resource_build!$A:$A,Z$940,raw_resource_build!$E:$E,$C963)/10^6,\nSUMIFS(raw_resource_build!$T:$T,raw_resource_build!$A:$A,Z$940,raw_resource_build!$E:$E,$C963)/10^6)","v":0},{"$f":"SUM(SUMIFS(raw_resource_build!$S:$S,raw_resource_build!$A:$A,AA$940,raw_resource_build!$E:$E,$C963)/10^6,\nSUMIFS(raw_resource_build!$T:$T,raw_resource_build!$A:$A,AA$940,raw_resource_build!$E:$E,$C963)/10^6)","v":0},{"$f":"SUM(SUMIFS(raw_resource_build!$S:$S,raw_resource_build!$A:$A,AB$940,raw_resource_build!$E:$E,$C963)/10^6,\nSUMIFS(raw_resource_build!$T:$T,raw_resource_build!$A:$A,AB$940,raw_resource_build!$E:$E,$C963)/10^6)","v":0},{"$f":"SUM(SUMIFS(raw_resource_build!$S:$S,raw_resource_build!$A:$A,AC$940,raw_resource_build!$E:$E,$C963)/10^6,\nSUMIFS(raw_resource_build!$T:$T,raw_resource_build!$A:$A,AC$940,raw_resource_build!$E:$E,$C963)/10^6)","v":0},{"$f":"SUM(SUMIFS(raw_resource_build!$S:$S,raw_resource_build!$A:$A,AD$940,raw_resource_build!$E:$E,$C963)/10^6,\nSUMIFS(raw_resource_build!$T:$T,raw_resource_build!$A:$A,AD$940,raw_resource_build!$E:$E,$C963)/10^6)","v":0},{"$f":"SUM(SUMIFS(raw_resource_build!$S:$S,raw_resource_build!$A:$A,AE$940,raw_resource_build!$E:$E,$C963)/10^6,\nSUMIFS(raw_resource_build!$T:$T,raw_resource_build!$A:$A,AE$940,raw_resource_build!$E:$E,$C963)/10^6)","v":0},{"$f":"SUM(SUMIFS(raw_resource_build!$S:$S,raw_resource_build!$A:$A,AF$940,raw_resource_build!$E:$E,$C963)/10^6,\nSUMIFS(raw_resource_build!$T:$T,raw_resource_build!$A:$A,AF$940,raw_resource_build!$E:$E,$C963)/10^6)","v":0},{"$f":"SUM(SUMIFS(raw_resource_build!$S:$S,raw_resource_build!$A:$A,AG$940,raw_resource_build!$E:$E,$C963)/10^6,\nSUMIFS(raw_resource_build!$T:$T,raw_resource_build!$A:$A,AG$940,raw_resource_build!$E:$E,$C963)/10^6)","v":0},{"$f":"SUM(SUMIFS(raw_resource_build!$S:$S,raw_resource_build!$A:$A,AH$940,raw_resource_build!$E:$E,$C963)/10^6,\nSUMIFS(raw_resource_build!$T:$T,raw_resource_build!$A:$A,AH$940,raw_resource_build!$E:$E,$C963)/10^6)","v":0},{"$f":"SUM(SUMIFS(raw_resource_build!$S:$S,raw_resource_build!$A:$A,AI$940,raw_resource_build!$E:$E,$C963)/10^6,\nSUMIFS(raw_resource_build!$T:$T,raw_resource_build!$A:$A,AI$940,raw_resource_build!$E:$E,$C963)/10^6)","v":9311.8710029900012},{"$f":"SUM(SUMIFS(raw_resource_build!$S:$S,raw_resource_build!$A:$A,AJ$940,raw_resource_build!$E:$E,$C963)/10^6,\nSUMIFS(raw_resource_build!$T:$T,raw_resource_build!$A:$A,AJ$940,raw_resource_build!$E:$E,$C963)/10^6)","v":0},{"$f":"SUM(SUMIFS(raw_resource_build!$S:$S,raw_resource_build!$A:$A,AK$940,raw_resource_build!$E:$E,$C963)/10^6,\nSUMIFS(raw_resource_build!$T:$T,raw_resource_build!$A:$A,AK$940,raw_resource_build!$E:$E,$C963)/10^6)","v":0},{"$f":"SUM(SUMIFS(raw_resource_build!$S:$S,raw_resource_build!$A:$A,AL$940,raw_resource_build!$E:$E,$C963)/10^6,\nSUMIFS(raw_resource_build!$T:$T,raw_resource_build!$A:$A,AL$940,raw_resource_build!$E:$E,$C963)/10^6)","v":0},{"$f":"SUM(SUMIFS(raw_resource_build!$S:$S,raw_resource_build!$A:$A,AM$940,raw_resource_build!$E:$E,$C963)/10^6,\nSUMIFS(raw_resource_build!$T:$T,raw_resource_build!$A:$A,AM$940,raw_resource_build!$E:$E,$C963)/10^6)","v":0},{"$f":"SUM(SUMIFS(raw_resource_build!$S:$S,raw_resource_build!$A:$A,AN$940,raw_resource_build!$E:$E,$C963)/10^6,\nSUMIFS(raw_resource_build!$T:$T,raw_resource_build!$A:$A,AN$940,raw_resource_build!$E:$E,$C963)/10^6)","v":0}]
[null,null,{"$f":"Lists!B29","v":"BTM_Li_Battery"},"$MM",{"$f":"SUM(SUMIFS(raw_resource_build!$S:$S,raw_resource_build!$A:$A,E$940,raw_resource_build!$E:$E,$C964)/10^6,\nSUMIFS(raw_resource_build!$T:$T,raw_resource_build!$A:$A,E$940,raw_resource_build!$E:$E,$C964)/10^6)","v":0},{"$f":"SUM(SUMIFS(raw_resource_build!$S:$S,raw_resource_build!$A:$A,F$940,raw_resource_build!$E:$E,$C964)/10^6,\nSUMIFS(raw_resource_build!$T:$T,raw_resource_build!$A:$A,F$940,raw_resource_build!$E:$E,$C964)/10^6)","v":0},{"$f":"SUM(SUMIFS(raw_resource_build!$S:$S,raw_resource_build!$A:$A,G$940,raw_resource_build!$E:$E,$C964)/10^6,\nSUMIFS(raw_resource_build!$T:$T,raw_resource_build!$A:$A,G$940,raw_resource_build!$E:$E,$C964)/10^6)","v":0},{"$f":"SUM(SUMIFS(raw_resource_build!$S:$S,raw_resource_build!$A:$A,H$940,raw_resource_build!$E:$E,$C964)/10^6,\nSUMIFS(raw_resource_build!$T:$T,raw_resource_build!$A:$A,H$940,raw_resource_build!$E:$E,$C964)/10^6)","v":0},{"$f":"SUM(SUMIFS(raw_resource_build!$S:$S,raw_resource_build!$A:$A,I$940,raw_resource_build!$E:$E,$C964)/10^6,\nSUMIFS(raw_resource_build!$T:$T,raw_resource_build!$A:$A,I$940,raw_resource_build!$E:$E,$C964)/10^6)","v":0},{"$f":"SUM(SUMIFS(raw_resource_build!$S:$S,raw_resource_build!$A:$A,J$940,raw_resource_build!$E:$E,$C964)/10^6,\nSUMIFS(raw_resource_build!$T:$T,raw_resource_build!$A:$A,J$940,raw_resource_build!$E:$E,$C964)/10^6)","v":0.87865668000000008},{"$f":"SUM(SUMIFS(raw_resource_build!$S:$S,raw_resource_build!$A:$A,K$940,raw_resource_build!$E:$E,$C964)/10^6,\nSUMIFS(raw_resource_build!$T:$T,raw_resource_build!$A:$A,K$940,raw_resource_build!$E:$E,$C964)/10^6)","v":0.87865668000000008},{"$f":"SUM(SUMIFS(raw_resource_build!$S:$S,raw_resource_build!$A:$A,L$940,raw_resource_build!$E:$E,$C964)/10^6,\nSUMIFS(raw_resource_build!$T:$T,raw_resource_build!$A:$A,L$940,raw_resource_build!$E:$E,$C964)/10^6)","v":0.87865668000000008},{"$f":"SUM(SUMIFS(raw_resource_build!$S:$S,raw_resource_build!$A:$A,M$940,raw_resource_build!$E:$E,$C964)/10^6,\nSUMIFS(raw_resource_build!$T:$T,raw_resource_build!$A:$A,M$940,raw_resource_build!$E:$E,$C964)/10^6)","v":0.87865668000000008},{"$f":"SUM(SUMIFS(raw_resource_build!$S:$S,raw_resource_build!$A:$A,N$940,raw_resource_build!$E:$E,$C964)/10^6,\nSUMIFS(raw_resource_build!$T:$T,raw_resource_build!$A:$A,N$940,raw_resource_build!$E:$E,$C964)/10^6)","v":0.87865668000000008},{"$f":"SUM(SUMIFS(raw_resource_build!$S:$S,raw_resource_build!$A:$A,O$940,raw_resource_build!$E:$E,$C964)/10^6,\nSUMIFS(raw_resource_build!$T:$T,raw_resource_build!$A:$A,O$940,raw_resource_build!$E:$E,$C964)/10^6)","v":0},{"$f":"SUM(SUMIFS(raw_resource_build!$S:$S,raw_resource_build!$A:$A,P$940,raw_resource_build!$E:$E,$C964)/10^6,\nSUMIFS(raw_resource_build!$T:$T,raw_resource_build!$A:$A,P$940,raw_resource_build!$E:$E,$C964)/10^6)","v":0.87865668000000008},{"$f":"SUM(SUMIFS(raw_resource_build!$S:$S,raw_resource_build!$A:$A,Q$940,raw_resource_build!$E:$E,$C964)/10^6,\nSUMIFS(raw_resource_build!$T:$T,raw_resource_build!$A:$A,Q$940,raw_resource_build!$E:$E,$C964)/10^6)","v":0},{"$f":"SUM(SUMIFS(raw_resource_build!$S:$S,raw_resource_build!$A:$A,R$940,raw_resource_build!$E:$E,$C964)/10^6,\nSUMIFS(raw_resource_build!$T:$T,raw_resource_build!$A:$A,R$940,raw_resource_build!$E:$E,$C964)/10^6)","v":0},{"$f":"SUM(SUMIFS(raw_resource_build!$S:$S,raw_resource_build!$A:$A,S$940,raw_resource_build!$E:$E,$C964)/10^6,\nSUMIFS(raw_resource_build!$T:$T,raw_resource_build!$A:$A,S$940,raw_resource_build!$E:$E,$C964)/10^6)","v":0},{"$f":"SUM(SUMIFS(raw_resource_build!$S:$S,raw_resource_build!$A:$A,T$940,raw_resource_build!$E:$E,$C964)/10^6,\nSUMIFS(raw_resource_build!$T:$T,raw_resource_build!$A:$A,T$940,raw_resource_build!$E:$E,$C964)/10^6)","v":0.87865668000000008},{"$f":"SUM(SUMIFS(raw_resource_build!$S:$S,raw_resource_build!$A:$A,U$940,raw_resource_build!$E:$E,$C964)/10^6,\nSUMIFS(raw_resource_build!$T:$T,raw_resource_build!$A:$A,U$940,raw_resource_build!$E:$E,$C964)/10^6)","v":0},{"$f":"SUM(SUMIFS(raw_resource_build!$S:$S,raw_resource_build!$A:$A,V$940,raw_resource_build!$E:$E,$C964)/10^6,\nSUMIFS(raw_resource_build!$T:$T,raw_resource_build!$A:$A,V$940,raw_resource_build!$E:$E,$C964)/10^6)","v":0},{"$f":"SUM(SUMIFS(raw_resource_build!$S:$S,raw_resource_build!$A:$A,W$940,raw_resource_build!$E:$E,$C964)/10^6,\nSUMIFS(raw_resource_build!$T:$T,raw_resource_build!$A:$A,W$940,raw_resource_build!$E:$E,$C964)/10^6)","v":0},{"$f":"SUM(SUMIFS(raw_resource_build!$S:$S,raw_resource_build!$A:$A,X$940,raw_resource_build!$E:$E,$C964)/10^6,\nSUMIFS(raw_resource_build!$T:$T,raw_resource_build!$A:$A,X$940,raw_resource_build!$E:$E,$C964)/10^6)","v":0},{"$f":"SUM(SUMIFS(raw_resource_build!$S:$S,raw_resource_build!$A:$A,Y$940,raw_resource_build!$E:$E,$C964)/10^6,\nSUMIFS(raw_resource_build!$T:$T,raw_resource_build!$A:$A,Y$940,raw_resource_build!$E:$E,$C964)/10^6)","v":0},{"$f":"SUM(SUMIFS(raw_resource_build!$S:$S,raw_resource_build!$A:$A,Z$940,raw_resource_build!$E:$E,$C964)/10^6,\nSUMIFS(raw_resource_build!$T:$T,raw_resource_build!$A:$A,Z$940,raw_resource_build!$E:$E,$C964)/10^6)","v":0},{"$f":"SUM(SUMIFS(raw_resource_build!$S:$S,raw_resource_build!$A:$A,AA$940,raw_resource_build!$E:$E,$C964)/10^6,\nSUMIFS(raw_resource_build!$T:$T,raw_resource_build!$A:$A,AA$940,raw_resource_build!$E:$E,$C964)/10^6)","v":0},{"$f":"SUM(SUMIFS(raw_resource_build!$S:$S,raw_resource_build!$A:$A,AB$940,raw_resource_build!$E:$E,$C964)/10^6,\nSUMIFS(raw_resource_build!$T:$T,raw_resource_build!$A:$A,AB$940,raw_resource_build!$E:$E,$C964)/10^6)","v":0},{"$f":"SUM(SUMIFS(raw_resource_build!$S:$S,raw_resource_build!$A:$A,AC$940,raw_resource_build!$E:$E,$C964)/10^6,\nSUMIFS(raw_resource_build!$T:$T,raw_resource_build!$A:$A,AC$940,raw_resource_build!$E:$E,$C964)/10^6)","v":0},{"$f":"SUM(SUMIFS(raw_resource_build!$S:$S,raw_resource_build!$A:$A,AD$940,raw_resource_build!$E:$E,$C964)/10^6,\nSUMIFS(raw_resource_build!$T:$T,raw_resource_build!$A:$A,AD$940,raw_resource_build!$E:$E,$C964)/10^6)","v":0},{"$f":"SUM(SUMIFS(raw_resource_build!$S:$S,raw_resource_build!$A:$A,AE$940,raw_resource_build!$E:$E,$C964)/10^6,\nSUMIFS(raw_resource_build!$T:$T,raw_resource_build!$A:$A,AE$940,raw_resource_build!$E:$E,$C964)/10^6)","v":0},{"$f":"SUM(SUMIFS(raw_resource_build!$S:$S,raw_resource_build!$A:$A,AF$940,raw_resource_build!$E:$E,$C964)/10^6,\nSUMIFS(raw_resource_build!$T:$T,raw_resource_build!$A:$A,AF$940,raw_resource_build!$E:$E,$C964)/10^6)","v":0},{"$f":"SUM(SUMIFS(raw_resource_build!$S:$S,raw_resource_build!$A:$A,AG$940,raw_resource_build!$E:$E,$C964)/10^6,\nSUMIFS(raw_resource_build!$T:$T,raw_resource_build!$A:$A,AG$940,raw_resource_build!$E:$E,$C964)/10^6)","v":0},{"$f":"SUM(SUMIFS(raw_resource_build!$S:$S,raw_resource_build!$A:$A,AH$940,raw_resource_build!$E:$E,$C964)/10^6,\nSUMIFS(raw_resource_build!$T:$T,raw_resource_build!$A:$A,AH$940,raw_resource_build!$E:$E,$C964)/10^6)","v":0},{"$f":"SUM(SUMIFS(raw_resource_build!$S:$S,raw_resource_build!$A:$A,AI$940,raw_resource_build!$E:$E,$C964)/10^6,\nSUMIFS(raw_resource_build!$T:$T,raw_resource_build!$A:$A,AI$940,raw_resource_build!$E:$E,$C964)/10^6)","v":0.87865668000000008},{"$f":"SUM(SUMIFS(raw_resource_build!$S:$S,raw_resource_build!$A:$A,AJ$940,raw_resource_build!$E:$E,$C964)/10^6,\nSUMIFS(raw_resource_build!$T:$T,raw_resource_build!$A:$A,AJ$940,raw_resource_build!$E:$E,$C964)/10^6)","v":0},{"$f":"SUM(SUMIFS(raw_resource_build!$S:$S,raw_resource_build!$A:$A,AK$940,raw_resource_build!$E:$E,$C964)/10^6,\nSUMIFS(raw_resource_build!$T:$T,raw_resource_build!$A:$A,AK$940,raw_resource_build!$E:$E,$C964)/10^6)","v":0},{"$f":"SUM(SUMIFS(raw_resource_build!$S:$S,raw_resource_build!$A:$A,AL$940,raw_resource_build!$E:$E,$C964)/10^6,\nSUMIFS(raw_resource_build!$T:$T,raw_resource_build!$A:$A,AL$940,raw_resource_build!$E:$E,$C964)/10^6)","v":0},{"$f":"SUM(SUMIFS(raw_resource_build!$S:$S,raw_resource_build!$A:$A,AM$940,raw_resource_build!$E:$E,$C964)/10^6,\nSUMIFS(raw_resource_build!$T:$T,raw_resource_build!$A:$A,AM$940,raw_resource_build!$E:$E,$C964)/10^6)","v":0},{"$f":"SUM(SUMIFS(raw_resource_build!$S:$S,raw_resource_build!$A:$A,AN$940,raw_resource_build!$E:$E,$C964)/10^6,\nSUMIFS(raw_resource_build!$T:$T,raw_resource_build!$A:$A,AN$940,raw_resource_build!$E:$E,$C964)/10^6)","v":0}]
[null,null,{"$f":"Lists!B30","v":"Flow_Battery"},"$MM",{"$f":"SUM(SUMIFS(raw_resource_build!$S:$S,raw_resource_build!$A:$A,E$940,raw_resource_build!$E:$E,$C965)/10^6,\nSUMIFS(raw_resource_build!$T:$T,raw_resource_build!$A:$A,E$940,raw_resource_build!$E:$E,$C965)/10^6)","v":0},{"$f":"SUM(SUMIFS(raw_resource_build!$S:$S,raw_resource_build!$A:$A,F$940,raw_resource_build!$E:$E,$C965)/10^6,\nSUMIFS(raw_resource_build!$T:$T,raw_resource_build!$A:$A,F$940,raw_resource_build!$E:$E,$C965)/10^6)","v":0},{"$f":"SUM(SUMIFS(raw_resource_build!$S:$S,raw_resource_build!$A:$A,G$940,raw_resource_build!$E:$E,$C965)/10^6,\nSUMIFS(raw_resource_build!$T:$T,raw_resource_build!$A:$A,G$940,raw_resource_build!$E:$E,$C965)/10^6)","v":0},{"$f":"SUM(SUMIFS(raw_resource_build!$S:$S,raw_resource_build!$A:$A,H$940,raw_resource_build!$E:$E,$C965)/10^6,\nSUMIFS(raw_resource_build!$T:$T,raw_resource_build!$A:$A,H$940,raw_resource_build!$E:$E,$C965)/10^6)","v":0},{"$f":"SUM(SUMIFS(raw_resource_build!$S:$S,raw_resource_build!$A:$A,I$940,raw_resource_build!$E:$E,$C965)/10^6,\nSUMIFS(raw_resource_build!$T:$T,raw_resource_build!$A:$A,I$940,raw_resource_build!$E:$E,$C965)/10^6)","v":0},{"$f":"SUM(SUMIFS(raw_resource_build!$S:$S,raw_resource_build!$A:$A,J$940,raw_resource_build!$E:$E,$C965)/10^6,\nSUMIFS(raw_resource_build!$T:$T,raw_resource_build!$A:$A,J$940,raw_resource_build!$E:$E,$C965)/10^6)","v":0},{"$f":"SUM(SUMIFS(raw_resource_build!$S:$S,raw_resource_build!$A:$A,K$940,raw_resource_build!$E:$E,$C965)/10^6,\nSUMIFS(raw_resource_build!$T:$T,raw_resource_build!$A:$A,K$940,raw_resource_build!$E:$E,$C965)/10^6)","v":0},{"$f":"SUM(SUMIFS(raw_resource_build!$S:$S,raw_resource_build!$A:$A,L$940,raw_resource_build!$E:$E,$C965)/10^6,\nSUMIFS(raw_resource_build!$T:$T,raw_resource_build!$A:$A,L$940,raw_resource_build!$E:$E,$C965)/10^6)","v":0},{"$f":"SUM(SUMIFS(raw_resource_build!$S:$S,raw_resource_build!$A:$A,M$940,raw_resource_build!$E:$E,$C965)/10^6,\nSUMIFS(raw_resource_build!$T:$T,raw_resource_build!$A:$A,M$940,raw_resource_build!$E:$E,$C965)/10^6)","v":0},{"$f":"SUM(SUMIFS(raw_resource_build!$S:$S,raw_resource_build!$A:$A,N$940,raw_resource_build!$E:$E,$C965)/10^6,\nSUMIFS(raw_resource_build!$T:$T,raw_resource_build!$A:$A,N$940,raw_resource_build!$E:$E,$C965)/10^6)","v":0},{"$f":"SUM(SUMIFS(raw_resource_build!$S:$S,raw_resource_build!$A:$A,O$940,raw_resource_build!$E:$E,$C965)/10^6,\nSUMIFS(raw_resource_build!$T:$T,raw_resource_build!$A:$A,O$940,raw_resource_build!$E:$E,$C965)/10^6)","v":0},{"$f":"SUM(SUMIFS(raw_resource_build!$S:$S,raw_resource_build!$A:$A,P$940,raw_resource_build!$E:$E,$C965)/10^6,\nSUMIFS(raw_resource_build!$T:$T,raw_resource_build!$A:$A,P$940,raw_resource_build!$E:$E,$C965)/10^6)","v":0},{"$f":"SUM(SUMIFS(raw_resource_build!$S:$S,raw_resource_build!$A:$A,Q$940,raw_resource_build!$E:$E,$C965)/10^6,\nSUMIFS(raw_resource_build!$T:$T,raw_resource_build!$A:$A,Q$940,raw_resource_build!$E:$E,$C965)/10^6)","v":0},{"$f":"SUM(SUMIFS(raw_resource_build!$S:$S,raw_resource_build!$A:$A,R$940,raw_resource_build!$E:$E,$C965)/10^6,\nSUMIFS(raw_resource_build!$T:$T,raw_resource_build!$A:$A,R$940,raw_resource_build!$E:$E,$C965)/10^6)","v":0},{"$f":"SUM(SUMIFS(raw_resource_build!$S:$S,raw_resource_build!$A:$A,S$940,raw_resource_build!$E:$E,$C965)/10^6,\nSUMIFS(raw_resource_build!$T:$T,raw_resource_build!$A:$A,S$940,raw_resource_build!$E:$E,$C965)/10^6)","v":0},{"$f":"SUM(SUMIFS(raw_resource_build!$S:$S,raw_resource_build!$A:$A,T$940,raw_resource_build!$E:$E,$C965)/10^6,\nSUMIFS(raw_resource_build!$T:$T,raw_resource_build!$A:$A,T$940,raw_resource_build!$E:$E,$C965)/10^6)","v":0},{"$f":"SUM(SUMIFS(raw_resource_build!$S:$S,raw_resource_build!$A:$A,U$940,raw_resource_build!$E:$E,$C965)/10^6,\nSUMIFS(raw_resource_build!$T:$T,raw_resource_build!$A:$A,U$940,raw_resource_build!$E:$E,$C965)/10^6)","v":0},{"$f":"SUM(SUMIFS(raw_resource_build!$S:$S,raw_resource_build!$A:$A,V$940,raw_resource_build!$E:$E,$C965)/10^6,\nSUMIFS(raw_resource_build!$T:$T,raw_resource_build!$A:$A,V$940,raw_resource_build!$E:$E,$C965)/10^6)","v":0},{"$f":"SUM(SUMIFS(raw_resource_build!$S:$S,raw_resource_build!$A:$A,W$940,raw_resource_build!$E:$E,$C965)/10^6,\nSUMIFS(raw_resource_build!$T:$T,raw_resource_build!$A:$A,W$940,raw_resource_build!$E:$E,$C965)/10^6)","v":0},{"$f":"SUM(SUMIFS(raw_resource_build!$S:$S,raw_resource_build!$A:$A,X$940,raw_resource_build!$E:$E,$C965)/10^6,\nSUMIFS(raw_resource_build!$T:$T,raw_resource_build!$A:$A,X$940,raw_resource_build!$E:$E,$C965)/10^6)","v":0},{"$f":"SUM(SUMIFS(raw_resource_build!$S:$S,raw_resource_build!$A:$A,Y$940,raw_resource_build!$E:$E,$C965)/10^6,\nSUMIFS(raw_resource_build!$T:$T,raw_resource_build!$A:$A,Y$940,raw_resource_build!$E:$E,$C965)/10^6)","v":0},{"$f":"SUM(SUMIFS(raw_resource_build!$S:$S,raw_resource_build!$A:$A,Z$940,raw_resource_build!$E:$E,$C965)/10^6,\nSUMIFS(raw_resource_build!$T:$T,raw_resource_build!$A:$A,Z$940,raw_resource_build!$E:$E,$C965)/10^6)","v":0},{"$f":"SUM(SUMIFS(raw_resource_build!$S:$S,raw_resource_build!$A:$A,AA$940,raw_resource_build!$E:$E,$C965)/10^6,\nSUMIFS(raw_resource_build!$T:$T,raw_resource_build!$A:$A,AA$940,raw_resource_build!$E:$E,$C965)/10^6)","v":0},{"$f":"SUM(SUMIFS(raw_resource_build!$S:$S,raw_resource_build!$A:$A,AB$940,raw_resource_build!$E:$E,$C965)/10^6,\nSUMIFS(raw_resource_build!$T:$T,raw_resource_build!$A:$A,AB$940,raw_resource_build!$E:$E,$C965)/10^6)","v":0},{"$f":"SUM(SUMIFS(raw_resource_build!$S:$S,raw_resource_build!$A:$A,AC$940,raw_resource_build!$E:$E,$C965)/10^6,\nSUMIFS(raw_resource_build!$T:$T,raw_resource_build!$A:$A,AC$940,raw_resource_build!$E:$E,$C965)/10^6)","v":0},{"$f":"SUM(SUMIFS(raw_resource_build!$S:$S,raw_resource_build!$A:$A,AD$940,raw_resource_build!$E:$E,$C965)/10^6,\nSUMIFS(raw_resource_build!$T:$T,raw_resource_build!$A:$A,AD$940,raw_resource_build!$E:$E,$C965)/10^6)","v":0},{"$f":"SUM(SUMIFS(raw_resource_build!$S:$S,raw_resource_build!$A:$A,AE$940,raw_resource_build!$E:$E,$C965)/10^6,\nSUMIFS(raw_resource_build!$T:$T,raw_resource_build!$A:$A,AE$940,raw_resource_build!$E:$E,$C965)/10^6)","v":0},{"$f":"SUM(SUMIFS(raw_resource_build!$S:$S,raw_resource_build!$A:$A,AF$940,raw_resource_build!$E:$E,$C965)/10^6,\nSUMIFS(raw_resource_build!$T:$T,raw_resource_build!$A:$A,AF$940,raw_resource_build!$E:$E,$C965)/10^6)","v":0},{"$f":"SUM(SUMIFS(raw_resource_build!$S:$S,raw_resource_build!$A:$A,AG$940,raw_resource_build!$E:$E,$C965)/10^6,\nSUMIFS(raw_resource_build!$T:$T,raw_resource_build!$A:$A,AG$940,raw_resource_build!$E:$E,$C965)/10^6)","v":0},{"$f":"SUM(SUMIFS(raw_resource_build!$S:$S,raw_resource_build!$A:$A,AH$940,raw_resource_build!$E:$E,$C965)/10^6,\nSUMIFS(raw_resource_build!$T:$T,raw_resource_build!$A:$A,AH$940,raw_resource_build!$E:$E,$C965)/10^6)","v":0},{"$f":"SUM(SUMIFS(raw_resource_build!$S:$S,raw_resource_build!$A:$A,AI$940,raw_resource_build!$E:$E,$C965)/10^6,\nSUMIFS(raw_resource_build!$T:$T,raw_resource_build!$A:$A,AI$940,raw_resource_build!$E:$E,$C965)/10^6)","v":0},{"$f":"SUM(SUMIFS(raw_resource_build!$S:$S,raw_resource_build!$A:$A,AJ$940,raw_resource_build!$E:$E,$C965)/10^6,\nSUMIFS(raw_resource_build!$T:$T,raw_resource_build!$A:$A,AJ$940,raw_resource_build!$E:$E,$C965)/10^6)","v":0},{"$f":"SUM(SUMIFS(raw_resource_build!$S:$S,raw_resource_build!$A:$A,AK$940,raw_resource_build!$E:$E,$C965)/10^6,\nSUMIFS(raw_resource_build!$T:$T,raw_resource_build!$A:$A,AK$940,raw_resource_build!$E:$E,$C965)/10^6)","v":0},{"$f":"SUM(SUMIFS(raw_resource_build!$S:$S,raw_resource_build!$A:$A,AL$940,raw_resource_build!$E:$E,$C965)/10^6,\nSUMIFS(raw_resource_build!$T:$T,raw_resource_build!$A:$A,AL$940,raw_resource_build!$E:$E,$C965)/10^6)","v":0},{"$f":"SUM(SUMIFS(raw_resource_build!$S:$S,raw_resource_build!$A:$A,AM$940,raw_resource_build!$E:$E,$C965)/10^6,\nSUMIFS(raw_resource_build!$T:$T,raw_resource_build!$A:$A,AM$940,raw_resource_build!$E:$E,$C965)/10^6)","v":0},{"$f":"SUM(SUMIFS(raw_resource_build!$S:$S,raw_resource_build!$A:$A,AN$940,raw_resource_build!$E:$E,$C965)/10^6,\nSUMIFS(raw_resource_build!$T:$T,raw_resource_build!$A:$A,AN$940,raw_resource_build!$E:$E,$C965)/10^6)","v":0}]
[null,null,{"$f":"Lists!B31","v":"Hydrogen_Electrolysis"},"$MM",{"$f":"SUM(SUMIFS(raw_resource_build!$S:$S,raw_resource_build!$A:$A,E$940,raw_resource_build!$E:$E,$C966)/10^6,\nSUMIFS(raw_resource_build!$T:$T,raw_resource_build!$A:$A,E$940,raw_resource_build!$E:$E,$C966)/10^6)","v":0},{"$f":"SUM(SUMIFS(raw_resource_build!$S:$S,raw_resource_build!$A:$A,F$940,raw_resource_build!$E:$E,$C966)/10^6,\nSUMIFS(raw_resource_build!$T:$T,raw_resource_build!$A:$A,F$940,raw_resource_build!$E:$E,$C966)/10^6)","v":0},{"$f":"SUM(SUMIFS(raw_resource_build!$S:$S,raw_resource_build!$A:$A,G$940,raw_resource_build!$E:$E,$C966)/10^6,\nSUMIFS(raw_resource_build!$T:$T,raw_resource_build!$A:$A,G$940,raw_resource_build!$E:$E,$C966)/10^6)","v":0},{"$f":"SUM(SUMIFS(raw_resource_build!$S:$S,raw_resource_build!$A:$A,H$940,raw_resource_build!$E:$E,$C966)/10^6,\nSUMIFS(raw_resource_build!$T:$T,raw_resource_build!$A:$A,H$940,raw_resource_build!$E:$E,$C966)/10^6)","v":0},{"$f":"SUM(SUMIFS(raw_resource_build!$S:$S,raw_resource_build!$A:$A,I$940,raw_resource_build!$E:$E,$C966)/10^6,\nSUMIFS(raw_resource_build!$T:$T,raw_resource_build!$A:$A,I$940,raw_resource_build!$E:$E,$C966)/10^6)","v":0},{"$f":"SUM(SUMIFS(raw_resource_build!$S:$S,raw_resource_build!$A:$A,J$940,raw_resource_build!$E:$E,$C966)/10^6,\nSUMIFS(raw_resource_build!$T:$T,raw_resource_build!$A:$A,J$940,raw_resource_build!$E:$E,$C966)/10^6)","v":0},{"$f":"SUM(SUMIFS(raw_resource_build!$S:$S,raw_resource_build!$A:$A,K$940,raw_resource_build!$E:$E,$C966)/10^6,\nSUMIFS(raw_resource_build!$T:$T,raw_resource_build!$A:$A,K$940,raw_resource_build!$E:$E,$C966)/10^6)","v":0},{"$f":"SUM(SUMIFS(raw_resource_build!$S:$S,raw_resource_build!$A:$A,L$940,raw_resource_build!$E:$E,$C966)/10^6,\nSUMIFS(raw_resource_build!$T:$T,raw_resource_build!$A:$A,L$940,raw_resource_build!$E:$E,$C966)/10^6)","v":0},{"$f":"SUM(SUMIFS(raw_resource_build!$S:$S,raw_resource_build!$A:$A,M$940,raw_resource_build!$E:$E,$C966)/10^6,\nSUMIFS(raw_resource_build!$T:$T,raw_resource_build!$A:$A,M$940,raw_resource_build!$E:$E,$C966)/10^6)","v":0},{"$f":"SUM(SUMIFS(raw_resource_build!$S:$S,raw_resource_build!$A:$A,N$940,raw_resource_build!$E:$E,$C966)/10^6,\nSUMIFS(raw_resource_build!$T:$T,raw_resource_build!$A:$A,N$940,raw_resource_build!$E:$E,$C966)/10^6)","v":0},{"$f":"SUM(SUMIFS(raw_resource_build!$S:$S,raw_resource_build!$A:$A,O$940,raw_resource_build!$E:$E,$C966)/10^6,\nSUMIFS(raw_resource_build!$T:$T,raw_resource_build!$A:$A,O$940,raw_resource_build!$E:$E,$C966)/10^6)","v":0},{"$f":"SUM(SUMIFS(raw_resource_build!$S:$S,raw_resource_build!$A:$A,P$940,raw_resource_build!$E:$E,$C966)/10^6,\nSUMIFS(raw_resource_build!$T:$T,raw_resource_build!$A:$A,P$940,raw_resource_build!$E:$E,$C966)/10^6)","v":0},{"$f":"SUM(SUMIFS(raw_resource_build!$S:$S,raw_resource_build!$A:$A,Q$940,raw_resource_build!$E:$E,$C966)/10^6,\nSUMIFS(raw_resource_build!$T:$T,raw_resource_build!$A:$A,Q$940,raw_resource_build!$E:$E,$C966)/10^6)","v":0},{"$f":"SUM(SUMIFS(raw_resource_build!$S:$S,raw_resource_build!$A:$A,R$940,raw_resource_build!$E:$E,$C966)/10^6,\nSUMIFS(raw_resource_build!$T:$T,raw_resource_build!$A:$A,R$940,raw_resource_build!$E:$E,$C966)/10^6)","v":0},{"$f":"SUM(SUMIFS(raw_resource_build!$S:$S,raw_resource_build!$A:$A,S$940,raw_resource_build!$E:$E,$C966)/10^6,\nSUMIFS(raw_resource_build!$T:$T,raw_resource_build!$A:$A,S$940,raw_resource_build!$E:$E,$C966)/10^6)","v":0},{"$f":"SUM(SUMIFS(raw_resource_build!$S:$S,raw_resource_build!$A:$A,T$940,raw_resource_build!$E:$E,$C966)/10^6,\nSUMIFS(raw_resource_build!$T:$T,raw_resource_build!$A:$A,T$940,raw_resource_build!$E:$E,$C966)/10^6)","v":0},{"$f":"SUM(SUMIFS(raw_resource_build!$S:$S,raw_resource_build!$A:$A,U$940,raw_resource_build!$E:$E,$C966)/10^6,\nSUMIFS(raw_resource_build!$T:$T,raw_resource_build!$A:$A,U$940,raw_resource_build!$E:$E,$C966)/10^6)","v":0},{"$f":"SUM(SUMIFS(raw_resource_build!$S:$S,raw_resource_build!$A:$A,V$940,raw_resource_build!$E:$E,$C966)/10^6,\nSUMIFS(raw_resource_build!$T:$T,raw_resource_build!$A:$A,V$940,raw_resource_build!$E:$E,$C966)/10^6)","v":0},{"$f":"SUM(SUMIFS(raw_resource_build!$S:$S,raw_resource_build!$A:$A,W$940,raw_resource_build!$E:$E,$C966)/10^6,\nSUMIFS(raw_resource_build!$T:$T,raw_resource_build!$A:$A,W$940,raw_resource_build!$E:$E,$C966)/10^6)","v":0},{"$f":"SUM(SUMIFS(raw_resource_build!$S:$S,raw_resource_build!$A:$A,X$940,raw_resource_build!$E:$E,$C966)/10^6,\nSUMIFS(raw_resource_build!$T:$T,raw_resource_build!$A:$A,X$940,raw_resource_build!$E:$E,$C966)/10^6)","v":0},{"$f":"SUM(SUMIFS(raw_resource_build!$S:$S,raw_resource_build!$A:$A,Y$940,raw_resource_build!$E:$E,$C966)/10^6,\nSUMIFS(raw_resource_build!$T:$T,raw_resource_build!$A:$A,Y$940,raw_resource_build!$E:$E,$C966)/10^6)","v":0},{"$f":"SUM(SUMIFS(raw_resource_build!$S:$S,raw_resource_build!$A:$A,Z$940,raw_resource_build!$E:$E,$C966)/10^6,\nSUMIFS(raw_resource_build!$T:$T,raw_resource_build!$A:$A,Z$940,raw_resource_build!$E:$E,$C966)/10^6)","v":0},{"$f":"SUM(SUMIFS(raw_resource_build!$S:$S,raw_resource_build!$A:$A,AA$940,raw_resource_build!$E:$E,$C966)/10^6,\nSUMIFS(raw_resource_build!$T:$T,raw_resource_build!$A:$A,AA$940,raw_resource_build!$E:$E,$C966)/10^6)","v":0},{"$f":"SUM(SUMIFS(raw_resource_build!$S:$S,raw_resource_build!$A:$A,AB$940,raw_resource_build!$E:$E,$C966)/10^6,\nSUMIFS(raw_resource_build!$T:$T,raw_resource_build!$A:$A,AB$940,raw_resource_build!$E:$E,$C966)/10^6)","v":0},{"$f":"SUM(SUMIFS(raw_resource_build!$S:$S,raw_resource_build!$A:$A,AC$940,raw_resource_build!$E:$E,$C966)/10^6,\nSUMIFS(raw_resource_build!$T:$T,raw_resource_build!$A:$A,AC$940,raw_resource_build!$E:$E,$C966)/10^6)","v":0},{"$f":"SUM(SUMIFS(raw_resource_build!$S:$S,raw_resource_build!$A:$A,AD$940,raw_resource_build!$E:$E,$C966)/10^6,\nSUMIFS(raw_resource_build!$T:$T,raw_resource_build!$A:$A,AD$940,raw_resource_build!$E:$E,$C966)/10^6)","v":0},{"$f":"SUM(SUMIFS(raw_resource_build!$S:$S,raw_resource_build!$A:$A,AE$940,raw_resource_build!$E:$E,$C966)/10^6,\nSUMIFS(raw_resource_build!$T:$T,raw_resource_build!$A:$A,AE$940,raw_resource_build!$E:$E,$C966)/10^6)","v":0},{"$f":"SUM(SUMIFS(raw_resource_build!$S:$S,raw_resource_build!$A:$A,AF$940,raw_resource_build!$E:$E,$C966)/10^6,\nSUMIFS(raw_resource_build!$T:$T,raw_resource_build!$A:$A,AF$940,raw_resource_build!$E:$E,$C966)/10^6)","v":0},{"$f":"SUM(SUMIFS(raw_resource_build!$S:$S,raw_resource_build!$A:$A,AG$940,raw_resource_build!$E:$E,$C966)/10^6,\nSUMIFS(raw_resource_build!$T:$T,raw_resource_build!$A:$A,AG$940,raw_resource_build!$E:$E,$C966)/10^6)","v":0},{"$f":"SUM(SUMIFS(raw_resource_build!$S:$S,raw_resource_build!$A:$A,AH$940,raw_resource_build!$E:$E,$C966)/10^6,\nSUMIFS(raw_resource_build!$T:$T,raw_resource_build!$A:$A,AH$940,raw_resource_build!$E:$E,$C966)/10^6)","v":0},{"$f":"SUM(SUMIFS(raw_resource_build!$S:$S,raw_resource_build!$A:$A,AI$940,raw_resource_build!$E:$E,$C966)/10^6,\nSUMIFS(raw_resource_build!$T:$T,raw_resource_build!$A:$A,AI$940,raw_resource_build!$E:$E,$C966)/10^6)","v":0},{"$f":"SUM(SUMIFS(raw_resource_build!$S:$S,raw_resource_build!$A:$A,AJ$940,raw_resource_build!$E:$E,$C966)/10^6,\nSUMIFS(raw_resource_build!$T:$T,raw_resource_build!$A:$A,AJ$940,raw_resource_build!$E:$E,$C966)/10^6)","v":0},{"$f":"SUM(SUMIFS(raw_resource_build!$S:$S,raw_resource_build!$A:$A,AK$940,raw_resource_build!$E:$E,$C966)/10^6,\nSUMIFS(raw_resource_build!$T:$T,raw_resource_build!$A:$A,AK$940,raw_resource_build!$E:$E,$C966)/10^6)","v":0},{"$f":"SUM(SUMIFS(raw_resource_build!$S:$S,raw_resource_build!$A:$A,AL$940,raw_resource_build!$E:$E,$C966)/10^6,\nSUMIFS(raw_resource_build!$T:$T,raw_resource_build!$A:$A,AL$940,raw_resource_build!$E:$E,$C966)/10^6)","v":0},{"$f":"SUM(SUMIFS(raw_resource_build!$S:$S,raw_resource_build!$A:$A,AM$940,raw_resource_build!$E:$E,$C966)/10^6,\nSUMIFS(raw_resource_build!$T:$T,raw_resource_build!$A:$A,AM$940,raw_resource_build!$E:$E,$C966)/10^6)","v":0},{"$f":"SUM(SUMIFS(raw_resource_build!$S:$S,raw_resource_build!$A:$A,AN$940,raw_resource_build!$E:$E,$C966)/10^6,\nSUMIFS(raw_resource_build!$T:$T,raw_resource_build!$A:$A,AN$940,raw_resource_build!$E:$E,$C966)/10^6)","v":0}]
[null,null,{"$f":"Lists!B32","v":"Flexible_Load"},"$MM",{"$f":"SUM(SUMIFS(raw_resource_build!$S:$S,raw_resource_build!$A:$A,E$940,raw_resource_build!$E:$E,$C967)/10^6,\nSUMIFS(raw_resource_build!$T:$T,raw_resource_build!$A:$A,E$940,raw_resource_build!$E:$E,$C967)/10^6)","v":0},{"$f":"SUM(SUMIFS(raw_resource_build!$S:$S,raw_resource_build!$A:$A,F$940,raw_resource_build!$E:$E,$C967)/10^6,\nSUMIFS(raw_resource_build!$T:$T,raw_resource_build!$A:$A,F$940,raw_resource_build!$E:$E,$C967)/10^6)","v":0},{"$f":"SUM(SUMIFS(raw_resource_build!$S:$S,raw_resource_build!$A:$A,G$940,raw_resource_build!$E:$E,$C967)/10^6,\nSUMIFS(raw_resource_build!$T:$T,raw_resource_build!$A:$A,G$940,raw_resource_build!$E:$E,$C967)/10^6)","v":0},{"$f":"SUM(SUMIFS(raw_resource_build!$S:$S,raw_resource_build!$A:$A,H$940,raw_resource_build!$E:$E,$C967)/10^6,\nSUMIFS(raw_resource_build!$T:$T,raw_resource_build!$A:$A,H$940,raw_resource_build!$E:$E,$C967)/10^6)","v":0},{"$f":"SUM(SUMIFS(raw_resource_build!$S:$S,raw_resource_build!$A:$A,I$940,raw_resource_build!$E:$E,$C967)/10^6,\nSUMIFS(raw_resource_build!$T:$T,raw_resource_build!$A:$A,I$940,raw_resource_build!$E:$E,$C967)/10^6)","v":0},{"$f":"SUM(SUMIFS(raw_resource_build!$S:$S,raw_resource_build!$A:$A,J$940,raw_resource_build!$E:$E,$C967)/10^6,\nSUMIFS(raw_resource_build!$T:$T,raw_resource_build!$A:$A,J$940,raw_resource_build!$E:$E,$C967)/10^6)","v":0},{"$f":"SUM(SUMIFS(raw_resource_build!$S:$S,raw_resource_build!$A:$A,K$940,raw_resource_build!$E:$E,$C967)/10^6,\nSUMIFS(raw_resource_build!$T:$T,raw_resource_build!$A:$A,K$940,raw_resource_build!$E:$E,$C967)/10^6)","v":0},{"$f":"SUM(SUMIFS(raw_resource_build!$S:$S,raw_resource_build!$A:$A,L$940,raw_resource_build!$E:$E,$C967)/10^6,\nSUMIFS(raw_resource_build!$T:$T,raw_resource_build!$A:$A,L$940,raw_resource_build!$E:$E,$C967)/10^6)","v":0},{"$f":"SUM(SUMIFS(raw_resource_build!$S:$S,raw_resource_build!$A:$A,M$940,raw_resource_build!$E:$E,$C967)/10^6,\nSUMIFS(raw_resource_build!$T:$T,raw_resource_build!$A:$A,M$940,raw_resource_build!$E:$E,$C967)/10^6)","v":0},{"$f":"SUM(SUMIFS(raw_resource_build!$S:$S,raw_resource_build!$A:$A,N$940,raw_resource_build!$E:$E,$C967)/10^6,\nSUMIFS(raw_resource_build!$T:$T,raw_resource_build!$A:$A,N$940,raw_resource_build!$E:$E,$C967)/10^6)","v":0},{"$f":"SUM(SUMIFS(raw_resource_build!$S:$S,raw_resource_build!$A:$A,O$940,raw_resource_build!$E:$E,$C967)/10^6,\nSUMIFS(raw_resource_build!$T:$T,raw_resource_build!$A:$A,O$940,raw_resource_build!$E:$E,$C967)/10^6)","v":0},{"$f":"SUM(SUMIFS(raw_resource_build!$S:$S,raw_resource_build!$A:$A,P$940,raw_resource_build!$E:$E,$C967)/10^6,\nSUMIFS(raw_resource_build!$T:$T,raw_resource_build!$A:$A,P$940,raw_resource_build!$E:$E,$C967)/10^6)","v":0},{"$f":"SUM(SUMIFS(raw_resource_build!$S:$S,raw_resource_build!$A:$A,Q$940,raw_resource_build!$E:$E,$C967)/10^6,\nSUMIFS(raw_resource_build!$T:$T,raw_resource_build!$A:$A,Q$940,raw_resource_build!$E:$E,$C967)/10^6)","v":0},{"$f":"SUM(SUMIFS(raw_resource_build!$S:$S,raw_resource_build!$A:$A,R$940,raw_resource_build!$E:$E,$C967)/10^6,\nSUMIFS(raw_resource_build!$T:$T,raw_resource_build!$A:$A,R$940,raw_resource_build!$E:$E,$C967)/10^6)","v":0},{"$f":"SUM(SUMIFS(raw_resource_build!$S:$S,raw_resource_build!$A:$A,S$940,raw_resource_build!$E:$E,$C967)/10^6,\nSUMIFS(raw_resource_build!$T:$T,raw_resource_build!$A:$A,S$940,raw_resource_build!$E:$E,$C967)/10^6)","v":0},{"$f":"SUM(SUMIFS(raw_resource_build!$S:$S,raw_resource_build!$A:$A,T$940,raw_resource_build!$E:$E,$C967)/10^6,\nSUMIFS(raw_resource_build!$T:$T,raw_resource_build!$A:$A,T$940,raw_resource_build!$E:$E,$C967)/10^6)","v":0},{"$f":"SUM(SUMIFS(raw_resource_build!$S:$S,raw_resource_build!$A:$A,U$940,raw_resource_build!$E:$E,$C967)/10^6,\nSUMIFS(raw_resource_build!$T:$T,raw_resource_build!$A:$A,U$940,raw_resource_build!$E:$E,$C967)/10^6)","v":0},{"$f":"SUM(SUMIFS(raw_resource_build!$S:$S,raw_resource_build!$A:$A,V$940,raw_resource_build!$E:$E,$C967)/10^6,\nSUMIFS(raw_resource_build!$T:$T,raw_resource_build!$A:$A,V$940,raw_resource_build!$E:$E,$C967)/10^6)","v":0},{"$f":"SUM(SUMIFS(raw_resource_build!$S:$S,raw_resource_build!$A:$A,W$940,raw_resource_build!$E:$E,$C967)/10^6,\nSUMIFS(raw_resource_build!$T:$T,raw_resource_build!$A:$A,W$940,raw_resource_build!$E:$E,$C967)/10^6)","v":0},{"$f":"SUM(SUMIFS(raw_resource_build!$S:$S,raw_resource_build!$A:$A,X$940,raw_resource_build!$E:$E,$C967)/10^6,\nSUMIFS(raw_resource_build!$T:$T,raw_resource_build!$A:$A,X$940,raw_resource_build!$E:$E,$C967)/10^6)","v":0},{"$f":"SUM(SUMIFS(raw_resource_build!$S:$S,raw_resource_build!$A:$A,Y$940,raw_resource_build!$E:$E,$C967)/10^6,\nSUMIFS(raw_resource_build!$T:$T,raw_resource_build!$A:$A,Y$940,raw_resource_build!$E:$E,$C967)/10^6)","v":0},{"$f":"SUM(SUMIFS(raw_resource_build!$S:$S,raw_resource_build!$A:$A,Z$940,raw_resource_build!$E:$E,$C967)/10^6,\nSUMIFS(raw_resource_build!$T:$T,raw_resource_build!$A:$A,Z$940,raw_resource_build!$E:$E,$C967)/10^6)","v":0},{"$f":"SUM(SUMIFS(raw_resource_build!$S:$S,raw_resource_build!$A:$A,AA$940,raw_resource_build!$E:$E,$C967)/10^6,\nSUMIFS(raw_resource_build!$T:$T,raw_resource_build!$A:$A,AA$940,raw_resource_build!$E:$E,$C967)/10^6)","v":0},{"$f":"SUM(SUMIFS(raw_resource_build!$S:$S,raw_resource_build!$A:$A,AB$940,raw_resource_build!$E:$E,$C967)/10^6,\nSUMIFS(raw_resource_build!$T:$T,raw_resource_build!$A:$A,AB$940,raw_resource_build!$E:$E,$C967)/10^6)","v":0},{"$f":"SUM(SUMIFS(raw_resource_build!$S:$S,raw_resource_build!$A:$A,AC$940,raw_resource_build!$E:$E,$C967)/10^6,\nSUMIFS(raw_resource_build!$T:$T,raw_resource_build!$A:$A,AC$940,raw_resource_build!$E:$E,$C967)/10^6)","v":0},{"$f":"SUM(SUMIFS(raw_resource_build!$S:$S,raw_resource_build!$A:$A,AD$940,raw_resource_build!$E:$E,$C967)/10^6,\nSUMIFS(raw_resource_build!$T:$T,raw_resource_build!$A:$A,AD$940,raw_resource_build!$E:$E,$C967)/10^6)","v":0},{"$f":"SUM(SUMIFS(raw_resource_build!$S:$S,raw_resource_build!$A:$A,AE$940,raw_resource_build!$E:$E,$C967)/10^6,\nSUMIFS(raw_resource_build!$T:$T,raw_resource_build!$A:$A,AE$940,raw_resource_build!$E:$E,$C967)/10^6)","v":0},{"$f":"SUM(SUMIFS(raw_resource_build!$S:$S,raw_resource_build!$A:$A,AF$940,raw_resource_build!$E:$E,$C967)/10^6,\nSUMIFS(raw_resource_build!$T:$T,raw_resource_build!$A:$A,AF$940,raw_resource_build!$E:$E,$C967)/10^6)","v":0},{"$f":"SUM(SUMIFS(raw_resource_build!$S:$S,raw_resource_build!$A:$A,AG$940,raw_resource_build!$E:$E,$C967)/10^6,\nSUMIFS(raw_resource_build!$T:$T,raw_resource_build!$A:$A,AG$940,raw_resource_build!$E:$E,$C967)/10^6)","v":0},{"$f":"SUM(SUMIFS(raw_resource_build!$S:$S,raw_resource_build!$A:$A,AH$940,raw_resource_build!$E:$E,$C967)/10^6,\nSUMIFS(raw_resource_build!$T:$T,raw_resource_build!$A:$A,AH$940,raw_resource_build!$E:$E,$C967)/10^6)","v":0},{"$f":"SUM(SUMIFS(raw_resource_build!$S:$S,raw_resource_build!$A:$A,AI$940,raw_resource_build!$E:$E,$C967)/10^6,\nSUMIFS(raw_resource_build!$T:$T,raw_resource_build!$A:$A,AI$940,raw_resource_build!$E:$E,$C967)/10^6)","v":0},{"$f":"SUM(SUMIFS(raw_resource_build!$S:$S,raw_resource_build!$A:$A,AJ$940,raw_resource_build!$E:$E,$C967)/10^6,\nSUMIFS(raw_resource_build!$T:$T,raw_resource_build!$A:$A,AJ$940,raw_resource_build!$E:$E,$C967)/10^6)","v":0},{"$f":"SUM(SUMIFS(raw_resource_build!$S:$S,raw_resource_build!$A:$A,AK$940,raw_resource_build!$E:$E,$C967)/10^6,\nSUMIFS(raw_resource_build!$T:$T,raw_resource_build!$A:$A,AK$940,raw_resource_build!$E:$E,$C967)/10^6)","v":0},{"$f":"SUM(SUMIFS(raw_resource_build!$S:$S,raw_resource_build!$A:$A,AL$940,raw_resource_build!$E:$E,$C967)/10^6,\nSUMIFS(raw_resource_build!$T:$T,raw_resource_build!$A:$A,AL$940,raw_resource_build!$E:$E,$C967)/10^6)","v":0},{"$f":"SUM(SUMIFS(raw_resource_build!$S:$S,raw_resource_build!$A:$A,AM$940,raw_resource_build!$E:$E,$C967)/10^6,\nSUMIFS(raw_resource_build!$T:$T,raw_resource_build!$A:$A,AM$940,raw_resource_build!$E:$E,$C967)/10^6)","v":0},{"$f":"SUM(SUMIFS(raw_resource_build!$S:$S,raw_resource_build!$A:$A,AN$940,raw_resource_build!$E:$E,$C967)/10^6,\nSUMIFS(raw_resource_build!$T:$T,raw_resource_build!$A:$A,AN$940,raw_resource_build!$E:$E,$C967)/10^6)","v":0}]
[null,null,"Renewable Tx Build in CAISO","$MM",{"$f":"E755","v":0},0,0,0,0,0,0,0,1.002894,2.6597072700000002,0,17.1505765,0,0,0,242.20949116,0,0,0,0,0,0,0,0,0,0,0,0,0,0,3947.7815677599992,0,0,0,0,0]
[null,null,"Total","$MM",{"$f":"SUM(E941:E968)","v":0},0,0,0,0,1060.51288671,1633.6147896799998,2212.8407129699999,2432.6688340800001,2993.01133501,0,4245.9368212500003,0,0,0,6127.8511559399985,0,0,0,0,0,0,0,0,0,0,0,0,0,0,27134.225344140003,0,0,0,0,0]
[]
[]
[null,"Operating Cost Summary (incl. imports)"]
[]
[null,null,"Annual Contracted Resource Operating Costs, including carbon cost"]
[null,null,"Metric","Unit",2015,{"$f":"E975+1","v":2016},2017,2018,2019,2020,2021,2022,2023,2024,2025,2026,2027,2028,2029,2030,2031,2032,2033,2034,2035,2036,2037,2038,2039,2040,2041,2042,2043,2044,2045,2046,2047,2048,2049,2050]
[null,null,"Variable Operating Costs for CAISO Resources","$MM",{"$f":"(SUMIFS(raw_operational_costs!$E:$E,raw_operational_costs!$B:$B,mainzone,raw_operational_costs!$D:$D,E$975)+SUMIFS(raw_operational_costs!$F:$F,raw_operational_costs!$B:$B,mainzone,raw_operational_costs!$D:$D,E$975)+SUMIFS(raw_operational_costs!$G:$G,raw_operational_costs!$B:$B,mainzone,raw_operational_costs!$D:$D,E$975)+SUMIFS(raw_operational_costs!$H:$H,raw_operational_costs!$B:$B,mainzone,raw_operational_costs!$D:$D,E$975))/10^6","v":0},{"$f":"(SUMIFS(raw_operational_costs!$E:$E,raw_operational_costs!$B:$B,mainzone,raw_operational_costs!$D:$D,F$975)+SUMIFS(raw_operational_costs!$F:$F,raw_operational_costs!$B:$B,mainzone,raw_operational_costs!$D:$D,F$975)+SUMIFS(raw_operational_costs!$G:$G,raw_operational_costs!$B:$B,mainzone,raw_operational_costs!$D:$D,F$975)+SUMIFS(raw_operational_costs!$H:$H,raw_operational_costs!$B:$B,mainzone,raw_operational_costs!$D:$D,F$975))/10^6","v":0},{"$f":"(SUMIFS(raw_operational_costs!$E:$E,raw_operational_costs!$B:$B,mainzone,raw_operational_costs!$D:$D,G$975)+SUMIFS(raw_operational_costs!$F:$F,raw_operational_costs!$B:$B,mainzone,raw_operational_costs!$D:$D,G$975)+SUMIFS(raw_operational_costs!$G:$G,raw_operational_costs!$B:$B,mainzone,raw_operational_costs!$D:$D,G$975)+SUMIFS(raw_operational_costs!$H:$H,raw_operational_costs!$B:$B,mainzone,raw_operational_costs!$D:$D,G$975))/10^6","v":0},{"$f":"(SUMIFS(raw_operational_costs!$E:$E,raw_operational_costs!$B:$B,mainzone,raw_operational_costs!$D:$D,H$975)+SUMIFS(raw_operational_costs!$F:$F,raw_operational_costs!$B:$B,mainzone,raw_operational_costs!$D:$D,H$975)+SUMIFS(raw_operational_costs!$G:$G,raw_operational_costs!$B:$B,mainzone,raw_operational_costs!$D:$D,H$975)+SUMIFS(raw_operational_costs!$H:$H,raw_operational_costs!$B:$B,mainzone,raw_operational_costs!$D:$D,H$975))/10^6","v":0},{"$f":"(SUMIFS(raw_operational_costs!$E:$E,raw_operational_costs!$B:$B,mainzone,raw_operational_costs!$D:$D,I$975)+SUMIFS(raw_operational_costs!$F:$F,raw_operational_costs!$B:$B,mainzone,raw_operational_costs!$D:$D,I$975)+SUMIFS(raw_operational_costs!$G:$G,raw_operational_costs!$B:$B,mainzone,raw_operational_costs!$D:$D,I$975)+SUMIFS(raw_operational_costs!$H:$H,raw_operational_costs!$B:$B,mainzone,raw_operational_costs!$D:$D,I$975))/10^6","v":0},{"$f":"(SUMIFS(raw_operational_costs!$E:$E,raw_operational_costs!$B:$B,mainzone,raw_operational_costs!$D:$D,J$975)+SUMIFS(raw_operational_costs!$F:$F,raw_operational_costs!$B:$B,mainzone,raw_operational_costs!$D:$D,J$975)+SUMIFS(raw_operational_costs!$G:$G,raw_operational_costs!$B:$B,mainzone,raw_operational_costs!$D:$D,J$975)+SUMIFS(raw_operational_costs!$H:$H,raw_operational_costs!$B:$B,mainzone,raw_operational_costs!$D:$D,J$975))/10^6","v":3034.832171882415},{"$f":"(SUMIFS(raw_operational_costs!$E:$E,raw_operational_costs!$B:$B,mainzone,raw_operational_costs!$D:$D,K$975)+SUMIFS(raw_operational_costs!$F:$F,raw_operational_costs!$B:$B,mainzone,raw_operational_costs!$D:$D,K$975)+SUMIFS(raw_operational_costs!$G:$G,raw_operational_costs!$B:$B,mainzone,raw_operational_costs!$D:$D,K$975)+SUMIFS(raw_operational_costs!$H:$H,raw_operational_costs!$B:$B,mainzone,raw_operational_costs!$D:$D,K$975))/10^6","v":3029.9022719950399},{"$f":"(SUMIFS(raw_operational_costs!$E:$E,raw_operational_costs!$B:$B,mainzone,raw_operational_costs!$D:$D,L$975)+SUMIFS(raw_operational_costs!$F:$F,raw_operational_costs!$B:$B,mainzone,raw_operational_costs!$D:$D,L$975)+SUMIFS(raw_operational_costs!$G:$G,raw_operational_costs!$B:$B,mainzone,raw_operational_costs!$D:$D,L$975)+SUMIFS(raw_operational_costs!$H:$H,raw_operational_costs!$B:$B,mainzone,raw_operational_costs!$D:$D,L$975))/10^6","v":2867.8837410119036},{"$f":"(SUMIFS(raw_operational_costs!$E:$E,raw_operational_costs!$B:$B,mainzone,raw_operational_costs!$D:$D,M$975)+SUMIFS(raw_operational_costs!$F:$F,raw_operational_costs!$B:$B,mainzone,raw_operational_costs!$D:$D,M$975)+SUMIFS(raw_operational_costs!$G:$G,raw_operational_costs!$B:$B,mainzone,raw_operational_costs!$D:$D,M$975)+SUMIFS(raw_operational_costs!$H:$H,raw_operational_costs!$B:$B,mainzone,raw_operational_costs!$D:$D,M$975))/10^6","v":2836.4802605649734},{"$f":"(SUMIFS(raw_operational_costs!$E:$E,raw_operational_costs!$B:$B,mainzone,raw_operational_costs!$D:$D,N$975)+SUMIFS(raw_operational_costs!$F:$F,raw_operational_costs!$B:$B,mainzone,raw_operational_costs!$D:$D,N$975)+SUMIFS(raw_operational_costs!$G:$G,raw_operational_costs!$B:$B,mainzone,raw_operational_costs!$D:$D,N$975)+SUMIFS(raw_operational_costs!$H:$H,raw_operational_costs!$B:$B,mainzone,raw_operational_costs!$D:$D,N$975))/10^6","v":2861.1299969707379},{"$f":"(SUMIFS(raw_operational_costs!$E:$E,raw_operational_costs!$B:$B,mainzone,raw_operational_costs!$D:$D,O$975)+SUMIFS(raw_operational_costs!$F:$F,raw_operational_costs!$B:$B,mainzone,raw_operational_costs!$D:$D,O$975)+SUMIFS(raw_operational_costs!$G:$G,raw_operational_costs!$B:$B,mainzone,raw_operational_costs!$D:$D,O$975)+SUMIFS(raw_operational_costs!$H:$H,raw_operational_costs!$B:$B,mainzone,raw_operational_costs!$D:$D,O$975))/10^6","v":0},{"$f":"(SUMIFS(raw_operational_costs!$E:$E,raw_operational_costs!$B:$B,mainzone,raw_operational_costs!$D:$D,P$975)+SUMIFS(raw_operational_costs!$F:$F,raw_operational_costs!$B:$B,mainzone,raw_operational_costs!$D:$D,P$975)+SUMIFS(raw_operational_costs!$G:$G,raw_operational_costs!$B:$B,mainzone,raw_operational_costs!$D:$D,P$975)+SUMIFS(raw_operational_costs!$H:$H,raw_operational_costs!$B:$B,mainzone,raw_operational_costs!$D:$D,P$975))/10^6","v":3101.4749571517327},{"$f":"(SUMIFS(raw_operational_costs!$E:$E,raw_operational_costs!$B:$B,mainzone,raw_operational_costs!$D:$D,Q$975)+SUMIFS(raw_operational_costs!$F:$F,raw_operational_costs!$B:$B,mainzone,raw_operational_costs!$D:$D,Q$975)+SUMIFS(raw_operational_costs!$G:$G,raw_operational_costs!$B:$B,mainzone,raw_operational_costs!$D:$D,Q$975)+SUMIFS(raw_operational_costs!$H:$H,raw_operational_costs!$B:$B,mainzone,raw_operational_costs!$D:$D,Q$975))/10^6","v":0},{"$f":"(SUMIFS(raw_operational_costs!$E:$E,raw_operational_costs!$B:$B,mainzone,raw_operational_costs!$D:$D,R$975)+SUMIFS(raw_operational_costs!$F:$F,raw_operational_costs!$B:$B,mainzone,raw_operational_costs!$D:$D,R$975)+SUMIFS(raw_operational_costs!$G:$G,raw_operational_costs!$B:$B,mainzone,raw_operational_costs!$D:$D,R$975)+SUMIFS(raw_operational_costs!$H:$H,raw_operational_costs!$B:$B,mainzone,raw_operational_costs!$D:$D,R$975))/10^6","v":0},{"$f":"(SUMIFS(raw_operational_costs!$E:$E,raw_operational_costs!$B:$B,mainzone,raw_operational_costs!$D:$D,S$975)+SUMIFS(raw_operational_costs!$F:$F,raw_operational_costs!$B:$B,mainzone,raw_operational_costs!$D:$D,S$975)+SUMIFS(raw_operational_costs!$G:$G,raw_operational_costs!$B:$B,mainzone,raw_operational_costs!$D:$D,S$975)+SUMIFS(raw_operational_costs!$H:$H,raw_operational_costs!$B:$B,mainzone,raw_operational_costs!$D:$D,S$975))/10^6","v":0},{"$f":"(SUMIFS(raw_operational_costs!$E:$E,raw_operational_costs!$B:$B,mainzone,raw_operational_costs!$D:$D,T$975)+SUMIFS(raw_operational_costs!$F:$F,raw_operational_costs!$B:$B,mainzone,raw_operational_costs!$D:$D,T$975)+SUMIFS(raw_operational_costs!$G:$G,raw_operational_costs!$B:$B,mainzone,raw_operational_costs!$D:$D,T$975)+SUMIFS(raw_operational_costs!$H:$H,raw_operational_costs!$B:$B,mainzone,raw_operational_costs!$D:$D,T$975))/10^6","v":2687.5771420295969},{"$f":"(SUMIFS(raw_operational_costs!$E:$E,raw_operational_costs!$B:$B,mainzone,raw_operational_costs!$D:$D,U$975)+SUMIFS(raw_operational_costs!$F:$F,raw_operational_costs!$B:$B,mainzone,raw_operational_costs!$D:$D,U$975)+SUMIFS(raw_operational_costs!$G:$G,raw_operational_costs!$B:$B,mainzone,raw_operational_costs!$D:$D,U$975)+SUMIFS(raw_operational_costs!$H:$H,raw_operational_costs!$B:$B,mainzone,raw_operational_costs!$D:$D,U$975))/10^6","v":0},{"$f":"(SUMIFS(raw_operational_costs!$E:$E,raw_operational_costs!$B:$B,mainzone,raw_operational_costs!$D:$D,V$975)+SUMIFS(raw_operational_costs!$F:$F,raw_operational_costs!$B:$B,mainzone,raw_operational_costs!$D:$D,V$975)+SUMIFS(raw_operational_costs!$G:$G,raw_operational_costs!$B:$B,mainzone,raw_operational_costs!$D:$D,V$975)+SUMIFS(raw_operational_costs!$H:$H,raw_operational_costs!$B:$B,mainzone,raw_operational_costs!$D:$D,V$975))/10^6","v":0},{"$f":"(SUMIFS(raw_operational_costs!$E:$E,raw_operational_costs!$B:$B,mainzone,raw_operational_costs!$D:$D,W$975)+SUMIFS(raw_operational_costs!$F:$F,raw_operational_costs!$B:$B,mainzone,raw_operational_costs!$D:$D,W$975)+SUMIFS(raw_operational_costs!$G:$G,raw_operational_costs!$B:$B,mainzone,raw_operational_costs!$D:$D,W$975)+SUMIFS(raw_operational_costs!$H:$H,raw_operational_costs!$B:$B,mainzone,raw_operational_costs!$D:$D,W$975))/10^6","v":0},{"$f":"(SUMIFS(raw_operational_costs!$E:$E,raw_operational_costs!$B:$B,mainzone,raw_operational_costs!$D:$D,X$975)+SUMIFS(raw_operational_costs!$F:$F,raw_operational_costs!$B:$B,mainzone,raw_operational_costs!$D:$D,X$975)+SUMIFS(raw_operational_costs!$G:$G,raw_operational_costs!$B:$B,mainzone,raw_operational_costs!$D:$D,X$975)+SUMIFS(raw_operational_costs!$H:$H,raw_operational_costs!$B:$B,mainzone,raw_operational_costs!$D:$D,X$975))/10^6","v":0},{"$f":"(SUMIFS(raw_operational_costs!$E:$E,raw_operational_costs!$B:$B,mainzone,raw_operational_costs!$D:$D,Y$975)+SUMIFS(raw_operational_costs!$F:$F,raw_operational_costs!$B:$B,mainzone,raw_operational_costs!$D:$D,Y$975)+SUMIFS(raw_operational_costs!$G:$G,raw_operational_costs!$B:$B,mainzone,raw_operational_costs!$D:$D,Y$975)+SUMIFS(raw_operational_costs!$H:$H,raw_operational_costs!$B:$B,mainzone,raw_operational_costs!$D:$D,Y$975))/10^6","v":0},{"$f":"(SUMIFS(raw_operational_costs!$E:$E,raw_operational_costs!$B:$B,mainzone,raw_operational_costs!$D:$D,Z$975)+SUMIFS(raw_operational_costs!$F:$F,raw_operational_costs!$B:$B,mainzone,raw_operational_costs!$D:$D,Z$975)+SUMIFS(raw_operational_costs!$G:$G,raw_operational_costs!$B:$B,mainzone,raw_operational_costs!$D:$D,Z$975)+SUMIFS(raw_operational_costs!$H:$H,raw_operational_costs!$B:$B,mainzone,raw_operational_costs!$D:$D,Z$975))/10^6","v":0},{"$f":"(SUMIFS(raw_operational_costs!$E:$E,raw_operational_costs!$B:$B,mainzone,raw_operational_costs!$D:$D,AA$975)+SUMIFS(raw_operational_costs!$F:$F,raw_operational_costs!$B:$B,mainzone,raw_operational_costs!$D:$D,AA$975)+SUMIFS(raw_operational_costs!$G:$G,raw_operational_costs!$B:$B,mainzone,raw_operational_costs!$D:$D,AA$975)+SUMIFS(raw_operational_costs!$H:$H,raw_operational_costs!$B:$B,mainzone,raw_operational_costs!$D:$D,AA$975))/10^6","v":0},{"$f":"(SUMIFS(raw_operational_costs!$E:$E,raw_operational_costs!$B:$B,mainzone,raw_operational_costs!$D:$D,AB$975)+SUMIFS(raw_operational_costs!$F:$F,raw_operational_costs!$B:$B,mainzone,raw_operational_costs!$D:$D,AB$975)+SUMIFS(raw_operational_costs!$G:$G,raw_operational_costs!$B:$B,mainzone,raw_operational_costs!$D:$D,AB$975)+SUMIFS(raw_operational_costs!$H:$H,raw_operational_costs!$B:$B,mainzone,raw_operational_costs!$D:$D,AB$975))/10^6","v":0},{"$f":"(SUMIFS(raw_operational_costs!$E:$E,raw_operational_costs!$B:$B,mainzone,raw_operational_costs!$D:$D,AC$975)+SUMIFS(raw_operational_costs!$F:$F,raw_operational_costs!$B:$B,mainzone,raw_operational_costs!$D:$D,AC$975)+SUMIFS(raw_operational_costs!$G:$G,raw_operational_costs!$B:$B,mainzone,raw_operational_costs!$D:$D,AC$975)+SUMIFS(raw_operational_costs!$H:$H,raw_operational_costs!$B:$B,mainzone,raw_operational_costs!$D:$D,AC$975))/10^6","v":0},{"$f":"(SUMIFS(raw_operational_costs!$E:$E,raw_operational_costs!$B:$B,mainzone,raw_operational_costs!$D:$D,AD$975)+SUMIFS(raw_operational_costs!$F:$F,raw_operational_costs!$B:$B,mainzone,raw_operational_costs!$D:$D,AD$975)+SUMIFS(raw_operational_costs!$G:$G,raw_operational_costs!$B:$B,mainzone,raw_operational_costs!$D:$D,AD$975)+SUMIFS(raw_operational_costs!$H:$H,raw_operational_costs!$B:$B,mainzone,raw_operational_costs!$D:$D,AD$975))/10^6","v":0},{"$f":"(SUMIFS(raw_operational_costs!$E:$E,raw_operational_costs!$B:$B,mainzone,raw_operational_costs!$D:$D,AE$975)+SUMIFS(raw_operational_costs!$F:$F,raw_operational_costs!$B:$B,mainzone,raw_operational_costs!$D:$D,AE$975)+SUMIFS(raw_operational_costs!$G:$G,raw_operational_costs!$B:$B,mainzone,raw_operational_costs!$D:$D,AE$975)+SUMIFS(raw_operational_costs!$H:$H,raw_operational_costs!$B:$B,mainzone,raw_operational_costs!$D:$D,AE$975))/10^6","v":0},{"$f":"(SUMIFS(raw_operational_costs!$E:$E,raw_operational_costs!$B:$B,mainzone,raw_operational_costs!$D:$D,AF$975)+SUMIFS(raw_operational_costs!$F:$F,raw_operational_costs!$B:$B,mainzone,raw_operational_costs!$D:$D,AF$975)+SUMIFS(raw_operational_costs!$G:$G,raw_operational_costs!$B:$B,mainzone,raw_operational_costs!$D:$D,AF$975)+SUMIFS(raw_operational_costs!$H:$H,raw_operational_costs!$B:$B,mainzone,raw_operational_costs!$D:$D,AF$975))/10^6","v":0},{"$f":"(SUMIFS(raw_operational_costs!$E:$E,raw_operational_costs!$B:$B,mainzone,raw_operational_costs!$D:$D,AG$975)+SUMIFS(raw_operational_costs!$F:$F,raw_operational_costs!$B:$B,mainzone,raw_operational_costs!$D:$D,AG$975)+SUMIFS(raw_operational_costs!$G:$G,raw_operational_costs!$B:$B,mainzone,raw_operational_costs!$D:$D,AG$975)+SUMIFS(raw_operational_costs!$H:$H,raw_operational_costs!$B:$B,mainzone,raw_operational_costs!$D:$D,AG$975))/10^6","v":0},{"$f":"(SUMIFS(raw_operational_costs!$E:$E,raw_operational_costs!$B:$B,mainzone,raw_operational_costs!$D:$D,AH$975)+SUMIFS(raw_operational_costs!$F:$F,raw_operational_costs!$B:$B,mainzone,raw_operational_costs!$D:$D,AH$975)+SUMIFS(raw_operational_costs!$G:$G,raw_operational_costs!$B:$B,mainzone,raw_operational_costs!$D:$D,AH$975)+SUMIFS(raw_operational_costs!$H:$H,raw_operational_costs!$B:$B,mainzone,raw_operational_costs!$D:$D,AH$975))/10^6","v":0},{"$f":"(SUMIFS(raw_operational_costs!$E:$E,raw_operational_costs!$B:$B,mainzone,raw_operational_costs!$D:$D,AI$975)+SUMIFS(raw_operational_costs!$F:$F,raw_operational_costs!$B:$B,mainzone,raw_operational_costs!$D:$D,AI$975)+SUMIFS(raw_operational_costs!$G:$G,raw_operational_costs!$B:$B,mainzone,raw_operational_costs!$D:$D,AI$975)+SUMIFS(raw_operational_costs!$H:$H,raw_operational_costs!$B:$B,mainzone,raw_operational_costs!$D:$D,AI$975))/10^6","v":1773.8537531391341},{"$f":"(SUMIFS(raw_operational_costs!$E:$E,raw_operational_costs!$B:$B,mainzone,raw_operational_costs!$D:$D,AJ$975)+SUMIFS(raw_operational_costs!$F:$F,raw_operational_costs!$B:$B,mainzone,raw_operational_costs!$D:$D,AJ$975)+SUMIFS(raw_operational_costs!$G:$G,raw_operational_costs!$B:$B,mainzone,raw_operational_costs!$D:$D,AJ$975)+SUMIFS(raw_operational_costs!$H:$H,raw_operational_costs!$B:$B,mainzone,raw_operational_costs!$D:$D,AJ$975))/10^6","v":0},{"$f":"(SUMIFS(raw_operational_costs!$E:$E,raw_operational_costs!$B:$B,mainzone,raw_operational_costs!$D:$D,AK$975)+SUMIFS(raw_operational_costs!$F:$F,raw_operational_costs!$B:$B,mainzone,raw_operational_costs!$D:$D,AK$975)+SUMIFS(raw_operational_costs!$G:$G,raw_operational_costs!$B:$B,mainzone,raw_operational_costs!$D:$D,AK$975)+SUMIFS(raw_operational_costs!$H:$H,raw_operational_costs!$B:$B,mainzone,raw_operational_costs!$D:$D,AK$975))/10^6","v":0},{"$f":"(SUMIFS(raw_operational_costs!$E:$E,raw_operational_costs!$B:$B,mainzone,raw_operational_costs!$D:$D,AL$975)+SUMIFS(raw_operational_costs!$F:$F,raw_operational_costs!$B:$B,mainzone,raw_operational_costs!$D:$D,AL$975)+SUMIFS(raw_operational_costs!$G:$G,raw_operational_costs!$B:$B,mainzone,raw_operational_costs!$D:$D,AL$975)+SUMIFS(raw_operational_costs!$H:$H,raw_operational_costs!$B:$B,mainzone,raw_operational_costs!$D:$D,AL$975))/10^6","v":0},{"$f":"(SUMIFS(raw_operational_costs!$E:$E,raw_operational_costs!$B:$B,mainzone,raw_operational_costs!$D:$D,AM$975)+SUMIFS(raw_operational_costs!$F:$F,raw_operational_costs!$B:$B,mainzone,raw_operational_costs!$D:$D,AM$975)+SUMIFS(raw_operational_costs!$G:$G,raw_operational_costs!$B:$B,mainzone,raw_operational_costs!$D:$D,AM$975)+SUMIFS(raw_operational_costs!$H:$H,raw_operational_costs!$B:$B,mainzone,raw_operational_costs!$D:$D,AM$975))/10^6","v":0},{"$f":"(SUMIFS(raw_operational_costs!$E:$E,raw_operational_costs!$B:$B,mainzone,raw_operational_costs!$D:$D,AN$975)+SUMIFS(raw_operational_costs!$F:$F,raw_operational_costs!$B:$B,mainzone,raw_operational_costs!$D:$D,AN$975)+SUMIFS(raw_operational_costs!$G:$G,raw_operational_costs!$B:$B,mainzone,raw_operational_costs!$D:$D,AN$975)+SUMIFS(raw_operational_costs!$H:$H,raw_operational_costs!$B:$B,mainzone,raw_operational_costs!$D:$D,AN$975))/10^6","v":0}]
[null,null,"Incremental Biogas Costs","$MM",{"$f":"SUMIFS(raw_rps!$N:$N,raw_rps!$B:$B,E$975)/1000000","v":0},{"$f":"SUMIFS(raw_rps!$N:$N,raw_rps!$B:$B,F$975)/1000000","v":0},{"$f":"SUMIFS(raw_rps!$N:$N,raw_rps!$B:$B,G$975)/1000000","v":0},{"$f":"SUMIFS(raw_rps!$N:$N,raw_rps!$B:$B,H$975)/1000000","v":0},{"$f":"SUMIFS(raw_rps!$N:$N,raw_rps!$B:$B,I$975)/1000000","v":0},{"$f":"SUMIFS(raw_rps!$N:$N,raw_rps!$B:$B,J$975)/1000000","v":0},{"$f":"SUMIFS(raw_rps!$N:$N,raw_rps!$B:$B,K$975)/1000000","v":0},{"$f":"SUMIFS(raw_rps!$N:$N,raw_rps!$B:$B,L$975)/1000000","v":0},{"$f":"SUMIFS(raw_rps!$N:$N,raw_rps!$B:$B,M$975)/1000000","v":0},{"$f":"SUMIFS(raw_rps!$N:$N,raw_rps!$B:$B,N$975)/1000000","v":0},{"$f":"SUMIFS(raw_rps!$N:$N,raw_rps!$B:$B,O$975)/1000000","v":0},{"$f":"SUMIFS(raw_rps!$N:$N,raw_rps!$B:$B,P$975)/1000000","v":0},{"$f":"SUMIFS(raw_rps!$N:$N,raw_rps!$B:$B,Q$975)/1000000","v":0},{"$f":"SUMIFS(raw_rps!$N:$N,raw_rps!$B:$B,R$975)/1000000","v":0},{"$f":"SUMIFS(raw_rps!$N:$N,raw_rps!$B:$B,S$975)/1000000","v":0},{"$f":"SUMIFS(raw_rps!$N:$N,raw_rps!$B:$B,T$975)/1000000","v":0},{"$f":"SUMIFS(raw_rps!$N:$N,raw_rps!$B:$B,U$975)/1000000","v":0},{"$f":"SUMIFS(raw_rps!$N:$N,raw_rps!$B:$B,V$975)/1000000","v":0},{"$f":"SUMIFS(raw_rps!$N:$N,raw_rps!$B:$B,W$975)/1000000","v":0},{"$f":"SUMIFS(raw_rps!$N:$N,raw_rps!$B:$B,X$975)/1000000","v":0},{"$f":"SUMIFS(raw_rps!$N:$N,raw_rps!$B:$B,Y$975)/1000000","v":0},{"$f":"SUMIFS(raw_rps!$N:$N,raw_rps!$B:$B,Z$975)/1000000","v":0},{"$f":"SUMIFS(raw_rps!$N:$N,raw_rps!$B:$B,AA$975)/1000000","v":0},{"$f":"SUMIFS(raw_rps!$N:$N,raw_rps!$B:$B,AB$975)/1000000","v":0},{"$f":"SUMIFS(raw_rps!$N:$N,raw_rps!$B:$B,AC$975)/1000000","v":0},{"$f":"SUMIFS(raw_rps!$N:$N,raw_rps!$B:$B,AD$975)/1000000","v":0},{"$f":"SUMIFS(raw_rps!$N:$N,raw_rps!$B:$B,AE$975)/1000000","v":0},{"$f":"SUMIFS(raw_rps!$N:$N,raw_rps!$B:$B,AF$975)/1000000","v":0},{"$f":"SUMIFS(raw_rps!$N:$N,raw_rps!$B:$B,AG$975)/1000000","v":0},{"$f":"SUMIFS(raw_rps!$N:$N,raw_rps!$B:$B,AH$975)/1000000","v":0},{"$f":"SUMIFS(raw_rps!$N:$N,raw_rps!$B:$B,AI$975)/1000000","v":0},{"$f":"SUMIFS(raw_rps!$N:$N,raw_rps!$B:$B,AJ$975)/1000000","v":0},{"$f":"SUMIFS(raw_rps!$N:$N,raw_rps!$B:$B,AK$975)/1000000","v":0},{"$f":"SUMIFS(raw_rps!$N:$N,raw_rps!$B:$B,AL$975)/1000000","v":0},{"$f":"SUMIFS(raw_rps!$N:$N,raw_rps!$B:$B,AM$975)/1000000","v":0},{"$f":"SUMIFS(raw_rps!$N:$N,raw_rps!$B:$B,AN$975)/1000000","v":0}]
[null,null,"Market Purchases (incl Carbon Allowance and scheduled NW Hydro)","$MM",{"$f":"(SUMIFS(raw_transmission_flows!$M:$M,raw_transmission_flows!$B:$B,\"<>CAISO_NW_Hydro\",raw_transmission_flows!$C:$C,mainzone,raw_transmission_flows!$D:$D,E$975)\n+SUMIFS(raw_transmission_flows!$P:$P,raw_transmission_flows!$B:$B,mainzone,raw_transmission_flows!$C:$C,\"<>CAISO_NW_Hydro\",raw_transmission_flows!$D:$D,E$975)\n+SUMIFS(raw_transmission_flows!$M:$M,raw_transmission_flows!$B:$B,\"NW\",raw_transmission_flows!$C:$C,\"CAISO_NW_Hydro\",raw_transmission_flows!$D:$D,E$975)\n+SUMIFS(raw_transmission_flows!$P:$P,raw_transmission_flows!$B:$B,\"CAISO_NW_Hydro\",raw_transmission_flows!$C:$C,\"NW\",raw_transmission_flows!$D:$D,E$975))/1000000\n+0.42716568*SUMIFS(raw_inputs_passthrough!$P:$P,raw_inputs_passthrough!$A:$A,N$975)*\n(SUMIFS(raw_transmission_flows!$F:$F,raw_transmission_flows!$C:$C,mainzone,raw_transmission_flows!$B:$B,\"<>CAISO_NW_Hydro\",raw_transmission_flows!$D:$D,E$975)\n+SUMIFS(raw_transmission_flows!$G:$G,raw_transmission_flows!$B:$B,mainzone,raw_transmission_flows!$C:$C,\"<>CAISO_NW_Hydro\",raw_transmission_flows!$D:$D,E$975)\n+SUMIFS(raw_transmission_flows!$F:$F,raw_transmission_flows!$B:$B,\"NW\",raw_transmission_flows!$C:$C,\"CAISO_NW_Hydro\",raw_transmission_flows!$D:$D,E$975)\n+SUMIFS(raw_transmission_flows!$G:$G,raw_transmission_flows!$B:$B,\"CAISO_NW_Hydro\",raw_transmission_flows!$C:$C,\"NW\",raw_transmission_flows!$D:$D,E$975))/1000000","v":0},{"$f":"(SUMIFS(raw_transmission_flows!$M:$M,raw_transmission_flows!$B:$B,\"<>CAISO_NW_Hydro\",raw_transmission_flows!$C:$C,mainzone,raw_transmission_flows!$D:$D,F$975)\n+SUMIFS(raw_transmission_flows!$P:$P,raw_transmission_flows!$B:$B,mainzone,raw_transmission_flows!$C:$C,\"<>CAISO_NW_Hydro\",raw_transmission_flows!$D:$D,F$975)\n+SUMIFS(raw_transmission_flows!$M:$M,raw_transmission_flows!$B:$B,\"NW\",raw_transmission_flows!$C:$C,\"CAISO_NW_Hydro\",raw_transmission_flows!$D:$D,F$975)\n+SUMIFS(raw_transmission_flows!$P:$P,raw_transmission_flows!$B:$B,\"CAISO_NW_Hydro\",raw_transmission_flows!$C:$C,\"NW\",raw_transmission_flows!$D:$D,F$975))/1000000\n+0.42716568*SUMIFS(raw_inputs_passthrough!$P:$P,raw_inputs_passthrough!$A:$A,O$975)*\n(SUMIFS(raw_transmission_flows!$F:$F,raw_transmission_flows!$C:$C,mainzone,raw_transmission_flows!$B:$B,\"<>CAISO_NW_Hydro\",raw_transmission_flows!$D:$D,F$975)\n+SUMIFS(raw_transmission_flows!$G:$G,raw_transmission_flows!$B:$B,mainzone,raw_transmission_flows!$C:$C,\"<>CAISO_NW_Hydro\",raw_transmission_flows!$D:$D,F$975)\n+SUMIFS(raw_transmission_flows!$F:$F,raw_transmission_flows!$B:$B,\"NW\",raw_transmission_flows!$C:$C,\"CAISO_NW_Hydro\",raw_transmission_flows!$D:$D,F$975)\n+SUMIFS(raw_transmission_flows!$G:$G,raw_transmission_flows!$B:$B,\"CAISO_NW_Hydro\",raw_transmission_flows!$C:$C,\"NW\",raw_transmission_flows!$D:$D,F$975))/1000000","v":0},{"$f":"(SUMIFS(raw_transmission_flows!$M:$M,raw_transmission_flows!$B:$B,\"<>CAISO_NW_Hydro\",raw_transmission_flows!$C:$C,mainzone,raw_transmission_flows!$D:$D,G$975)\n+SUMIFS(raw_transmission_flows!$P:$P,raw_transmission_flows!$B:$B,mainzone,raw_transmission_flows!$C:$C,\"<>CAISO_NW_Hydro\",raw_transmission_flows!$D:$D,G$975)\n+SUMIFS(raw_transmission_flows!$M:$M,raw_transmission_flows!$B:$B,\"NW\",raw_transmission_flows!$C:$C,\"CAISO_NW_Hydro\",raw_transmission_flows!$D:$D,G$975)\n+SUMIFS(raw_transmission_flows!$P:$P,raw_transmission_flows!$B:$B,\"CAISO_NW_Hydro\",raw_transmission_flows!$C:$C,\"NW\",raw_transmission_flows!$D:$D,G$975))/1000000\n+0.42716568*SUMIFS(raw_inputs_passthrough!$P:$P,raw_inputs_passthrough!$A:$A,P$975)*\n(SUMIFS(raw_transmission_flows!$F:$F,raw_transmission_flows!$C:$C,mainzone,raw_transmission_flows!$B:$B,\"<>CAISO_NW_Hydro\",raw_transmission_flows!$D:$D,G$975)\n+SUMIFS(raw_transmission_flows!$G:$G,raw_transmission_flows!$B:$B,mainzone,raw_transmission_flows!$C:$C,\"<>CAISO_NW_Hydro\",raw_transmission_flows!$D:$D,G$975)\n+SUMIFS(raw_transmission_flows!$F:$F,raw_transmission_flows!$B:$B,\"NW\",raw_transmission_flows!$C:$C,\"CAISO_NW_Hydro\",raw_transmission_flows!$D:$D,G$975)\n+SUMIFS(raw_transmission_flows!$G:$G,raw_transmission_flows!$B:$B,\"CAISO_NW_Hydro\",raw_transmission_flows!$C:$C,\"NW\",raw_transmission_flows!$D:$D,G$975))/1000000","v":0},{"$f":"(SUMIFS(raw_transmission_flows!$M:$M,raw_transmission_flows!$B:$B,\"<>CAISO_NW_Hydro\",raw_transmission_flows!$C:$C,mainzone,raw_transmission_flows!$D:$D,H$975)\n+SUMIFS(raw_transmission_flows!$P:$P,raw_transmission_flows!$B:$B,mainzone,raw_transmission_flows!$C:$C,\"<>CAISO_NW_Hydro\",raw_transmission_flows!$D:$D,H$975)\n+SUMIFS(raw_transmission_flows!$M:$M,raw_transmission_flows!$B:$B,\"NW\",raw_transmission_flows!$C:$C,\"CAISO_NW_Hydro\",raw_transmission_flows!$D:$D,H$975)\n+SUMIFS(raw_transmission_flows!$P:$P,raw_transmission_flows!$B:$B,\"CAISO_NW_Hydro\",raw_transmission_flows!$C:$C,\"NW\",raw_transmission_flows!$D:$D,H$975))/1000000\n+0.42716568*SUMIFS(raw_inputs_passthrough!$P:$P,raw_inputs_passthrough!$A:$A,Q$975)*\n(SUMIFS(raw_transmission_flows!$F:$F,raw_transmission_flows!$C:$C,mainzone,raw_transmission_flows!$B:$B,\"<>CAISO_NW_Hydro\",raw_transmission_flows!$D:$D,H$975)\n+SUMIFS(raw_transmission_flows!$G:$G,raw_transmission_flows!$B:$B,mainzone,raw_transmission_flows!$C:$C,\"<>CAISO_NW_Hydro\",raw_transmission_flows!$D:$D,H$975)\n+SUMIFS(raw_transmission_flows!$F:$F,raw_transmission_flows!$B:$B,\"NW\",raw_transmission_flows!$C:$C,\"CAISO_NW_Hydro\",raw_transmission_flows!$D:$D,H$975)\n+SUMIFS(raw_transmission_flows!$G:$G,raw_transmission_flows!$B:$B,\"CAISO_NW_Hydro\",raw_transmission_flows!$C:$C,\"NW\",raw_transmission_flows!$D:$D,H$975))/1000000","v":0},{"$f":"(SUMIFS(raw_transmission_flows!$M:$M,raw_transmission_flows!$B:$B,\"<>CAISO_NW_Hydro\",raw_transmission_flows!$C:$C,mainzone,raw_transmission_flows!$D:$D,I$975)\n+SUMIFS(raw_transmission_flows!$P:$P,raw_transmission_flows!$B:$B,mainzone,raw_transmission_flows!$C:$C,\"<>CAISO_NW_Hydro\",raw_transmission_flows!$D:$D,I$975)\n+SUMIFS(raw_transmission_flows!$M:$M,raw_transmission_flows!$B:$B,\"NW\",raw_transmission_flows!$C:$C,\"CAISO_NW_Hydro\",raw_transmission_flows!$D:$D,I$975)\n+SUMIFS(raw_transmission_flows!$P:$P,raw_transmission_flows!$B:$B,\"CAISO_NW_Hydro\",raw_transmission_flows!$C:$C,\"NW\",raw_transmission_flows!$D:$D,I$975))/1000000\n+0.42716568*SUMIFS(raw_inputs_passthrough!$P:$P,raw_inputs_passthrough!$A:$A,R$975)*\n(SUMIFS(raw_transmission_flows!$F:$F,raw_transmission_flows!$C:$C,mainzone,raw_transmission_flows!$B:$B,\"<>CAISO_NW_Hydro\",raw_transmission_flows!$D:$D,I$975)\n+SUMIFS(raw_transmission_flows!$G:$G,raw_transmission_flows!$B:$B,mainzone,raw_transmission_flows!$C:$C,\"<>CAISO_NW_Hydro\",raw_transmission_flows!$D:$D,I$975)\n+SUMIFS(raw_transmission_flows!$F:$F,raw_transmission_flows!$B:$B,\"NW\",raw_transmission_flows!$C:$C,\"CAISO_NW_Hydro\",raw_transmission_flows!$D:$D,I$975)\n+SUMIFS(raw_transmission_flows!$G:$G,raw_transmission_flows!$B:$B,\"CAISO_NW_Hydro\",raw_transmission_flows!$C:$C,\"NW\",raw_transmission_flows!$D:$D,I$975))/1000000","v":0},{"$f":"(SUMIFS(raw_transmission_flows!$M:$M,raw_transmission_flows!$B:$B,\"<>CAISO_NW_Hydro\",raw_transmission_flows!$C:$C,mainzone,raw_transmission_flows!$D:$D,J$975)\n+SUMIFS(raw_transmission_flows!$P:$P,raw_transmission_flows!$B:$B,mainzone,raw_transmission_flows!$C:$C,\"<>CAISO_NW_Hydro\",raw_transmission_flows!$D:$D,J$975)\n+SUMIFS(raw_transmission_flows!$M:$M,raw_transmission_flows!$B:$B,\"NW\",raw_transmission_flows!$C:$C,\"CAISO_NW_Hydro\",raw_transmission_flows!$D:$D,J$975)\n+SUMIFS(raw_transmission_flows!$P:$P,raw_transmission_flows!$B:$B,\"CAISO_NW_Hydro\",raw_transmission_flows!$C:$C,\"NW\",raw_transmission_flows!$D:$D,J$975))/1000000\n+0.42716568*SUMIFS(raw_inputs_passthrough!$P:$P,raw_inputs_passthrough!$A:$A,S$975)*\n(SUMIFS(raw_transmission_flows!$F:$F,raw_transmission_flows!$C:$C,mainzone,raw_transmission_flows!$B:$B,\"<>CAISO_NW_Hydro\",raw_transmission_flows!$D:$D,J$975)\n+SUMIFS(raw_transmission_flows!$G:$G,raw_transmission_flows!$B:$B,mainzone,raw_transmission_flows!$C:$C,\"<>CAISO_NW_Hydro\",raw_transmission_flows!$D:$D,J$975)\n+SUMIFS(raw_transmission_flows!$F:$F,raw_transmission_flows!$B:$B,\"NW\",raw_transmission_flows!$C:$C,\"CAISO_NW_Hydro\",raw_transmission_flows!$D:$D,J$975)\n+SUMIFS(raw_transmission_flows!$G:$G,raw_transmission_flows!$B:$B,\"CAISO_NW_Hydro\",raw_transmission_flows!$C:$C,\"NW\",raw_transmission_flows!$D:$D,J$975))/1000000","v":735.06036026641095},{"$f":"(SUMIFS(raw_transmission_flows!$M:$M,raw_transmission_flows!$B:$B,\"<>CAISO_NW_Hydro\",raw_transmission_flows!$C:$C,mainzone,raw_transmission_flows!$D:$D,K$975)\n+SUMIFS(raw_transmission_flows!$P:$P,raw_transmission_flows!$B:$B,mainzone,raw_transmission_flows!$C:$C,\"<>CAISO_NW_Hydro\",raw_transmission_flows!$D:$D,K$975)\n+SUMIFS(raw_transmission_flows!$M:$M,raw_transmission_flows!$B:$B,\"NW\",raw_transmission_flows!$C:$C,\"CAISO_NW_Hydro\",raw_transmission_flows!$D:$D,K$975)\n+SUMIFS(raw_transmission_flows!$P:$P,raw_transmission_flows!$B:$B,\"CAISO_NW_Hydro\",raw_transmission_flows!$C:$C,\"NW\",raw_transmission_flows!$D:$D,K$975))/1000000\n+0.42716568*SUMIFS(raw_inputs_passthrough!$P:$P,raw_inputs_passthrough!$A:$A,T$975)*\n(SUMIFS(raw_transmission_flows!$F:$F,raw_transmission_flows!$C:$C,mainzone,raw_transmission_flows!$B:$B,\"<>CAISO_NW_Hydro\",raw_transmission_flows!$D:$D,K$975)\n+SUMIFS(raw_transmission_flows!$G:$G,raw_transmission_flows!$B:$B,mainzone,raw_transmission_flows!$C:$C,\"<>CAISO_NW_Hydro\",raw_transmission_flows!$D:$D,K$975)\n+SUMIFS(raw_transmission_flows!$F:$F,raw_transmission_flows!$B:$B,\"NW\",raw_transmission_flows!$C:$C,\"CAISO_NW_Hydro\",raw_transmission_flows!$D:$D,K$975)\n+SUMIFS(raw_transmission_flows!$G:$G,raw_transmission_flows!$B:$B,\"CAISO_NW_Hydro\",raw_transmission_flows!$C:$C,\"NW\",raw_transmission_flows!$D:$D,K$975))/1000000","v":955.06604386616368},{"$f":"(SUMIFS(raw_transmission_flows!$M:$M,raw_transmission_flows!$B:$B,\"<>CAISO_NW_Hydro\",raw_transmission_flows!$C:$C,mainzone,raw_transmission_flows!$D:$D,L$975)\n+SUMIFS(raw_transmission_flows!$P:$P,raw_transmission_flows!$B:$B,mainzone,raw_transmission_flows!$C:$C,\"<>CAISO_NW_Hydro\",raw_transmission_flows!$D:$D,L$975)\n+SUMIFS(raw_transmission_flows!$M:$M,raw_transmission_flows!$B:$B,\"NW\",raw_transmission_flows!$C:$C,\"CAISO_NW_Hydro\",raw_transmission_flows!$D:$D,L$975)\n+SUMIFS(raw_transmission_flows!$P:$P,raw_transmission_flows!$B:$B,\"CAISO_NW_Hydro\",raw_transmission_flows!$C:$C,\"NW\",raw_transmission_flows!$D:$D,L$975))/1000000\n+0.42716568*SUMIFS(raw_inputs_passthrough!$P:$P,raw_inputs_passthrough!$A:$A,U$975)*\n(SUMIFS(raw_transmission_flows!$F:$F,raw_transmission_flows!$C:$C,mainzone,raw_transmission_flows!$B:$B,\"<>CAISO_NW_Hydro\",raw_transmission_flows!$D:$D,L$975)\n+SUMIFS(raw_transmission_flows!$G:$G,raw_transmission_flows!$B:$B,mainzone,raw_transmission_flows!$C:$C,\"<>CAISO_NW_Hydro\",raw_transmission_flows!$D:$D,L$975)\n+SUMIFS(raw_transmission_flows!$F:$F,raw_transmission_flows!$B:$B,\"NW\",raw_transmission_flows!$C:$C,\"CAISO_NW_Hydro\",raw_transmission_flows!$D:$D,L$975)\n+SUMIFS(raw_transmission_flows!$G:$G,raw_transmission_flows!$B:$B,\"CAISO_NW_Hydro\",raw_transmission_flows!$C:$C,\"NW\",raw_transmission_flows!$D:$D,L$975))/1000000","v":638.50677985032667},{"$f":"(SUMIFS(raw_transmission_flows!$M:$M,raw_transmission_flows!$B:$B,\"<>CAISO_NW_Hydro\",raw_transmission_flows!$C:$C,mainzone,raw_transmission_flows!$D:$D,M$975)\n+SUMIFS(raw_transmission_flows!$P:$P,raw_transmission_flows!$B:$B,mainzone,raw_transmission_flows!$C:$C,\"<>CAISO_NW_Hydro\",raw_transmission_flows!$D:$D,M$975)\n+SUMIFS(raw_transmission_flows!$M:$M,raw_transmission_flows!$B:$B,\"NW\",raw_transmission_flows!$C:$C,\"CAISO_NW_Hydro\",raw_transmission_flows!$D:$D,M$975)\n+SUMIFS(raw_transmission_flows!$P:$P,raw_transmission_flows!$B:$B,\"CAISO_NW_Hydro\",raw_transmission_flows!$C:$C,\"NW\",raw_transmission_flows!$D:$D,M$975))/1000000\n+0.42716568*SUMIFS(raw_inputs_passthrough!$P:$P,raw_inputs_passthrough!$A:$A,V$975)*\n(SUMIFS(raw_transmission_flows!$F:$F,raw_transmission_flows!$C:$C,mainzone,raw_transmission_flows!$B:$B,\"<>CAISO_NW_Hydro\",raw_transmission_flows!$D:$D,M$975)\n+SUMIFS(raw_transmission_flows!$G:$G,raw_transmission_flows!$B:$B,mainzone,raw_transmission_flows!$C:$C,\"<>CAISO_NW_Hydro\",raw_transmission_flows!$D:$D,M$975)\n+SUMIFS(raw_transmission_flows!$F:$F,raw_transmission_flows!$B:$B,\"NW\",raw_transmission_flows!$C:$C,\"CAISO_NW_Hydro\",raw_transmission_flows!$D:$D,M$975)\n+SUMIFS(raw_transmission_flows!$G:$G,raw_transmission_flows!$B:$B,\"CAISO_NW_Hydro\",raw_transmission_flows!$C:$C,\"NW\",raw_transmission_flows!$D:$D,M$975))/1000000","v":667.78676267556853},{"$f":"(SUMIFS(raw_transmission_flows!$M:$M,raw_transmission_flows!$B:$B,\"<>CAISO_NW_Hydro\",raw_transmission_flows!$C:$C,mainzone,raw_transmission_flows!$D:$D,N$975)\n+SUMIFS(raw_transmission_flows!$P:$P,raw_transmission_flows!$B:$B,mainzone,raw_transmission_flows!$C:$C,\"<>CAISO_NW_Hydro\",raw_transmission_flows!$D:$D,N$975)\n+SUMIFS(raw_transmission_flows!$M:$M,raw_transmission_flows!$B:$B,\"NW\",raw_transmission_flows!$C:$C,\"CAISO_NW_Hydro\",raw_transmission_flows!$D:$D,N$975)\n+SUMIFS(raw_transmission_flows!$P:$P,raw_transmission_flows!$B:$B,\"CAISO_NW_Hydro\",raw_transmission_flows!$C:$C,\"NW\",raw_transmission_flows!$D:$D,N$975))/1000000\n+0.42716568*SUMIFS(raw_inputs_passthrough!$P:$P,raw_inputs_passthrough!$A:$A,W$975)*\n(SUMIFS(raw_transmission_flows!$F:$F,raw_transmission_flows!$C:$C,mainzone,raw_transmission_flows!$B:$B,\"<>CAISO_NW_Hydro\",raw_transmission_flows!$D:$D,N$975)\n+SUMIFS(raw_transmission_flows!$G:$G,raw_transmission_flows!$B:$B,mainzone,raw_transmission_flows!$C:$C,\"<>CAISO_NW_Hydro\",raw_transmission_flows!$D:$D,N$975)\n+SUMIFS(raw_transmission_flows!$F:$F,raw_transmission_flows!$B:$B,\"NW\",raw_transmission_flows!$C:$C,\"CAISO_NW_Hydro\",raw_transmission_flows!$D:$D,N$975)\n+SUMIFS(raw_transmission_flows!$G:$G,raw_transmission_flows!$B:$B,\"CAISO_NW_Hydro\",raw_transmission_flows!$C:$C,\"NW\",raw_transmission_flows!$D:$D,N$975))/1000000","v":737.18459413173366},{"$f":"(SUMIFS(raw_transmission_flows!$M:$M,raw_transmission_flows!$B:$B,\"<>CAISO_NW_Hydro\",raw_transmission_flows!$C:$C,mainzone,raw_transmission_flows!$D:$D,O$975)\n+SUMIFS(raw_transmission_flows!$P:$P,raw_transmission_flows!$B:$B,mainzone,raw_transmission_flows!$C:$C,\"<>CAISO_NW_Hydro\",raw_transmission_flows!$D:$D,O$975)\n+SUMIFS(raw_transmission_flows!$M:$M,raw_transmission_flows!$B:$B,\"NW\",raw_transmission_flows!$C:$C,\"CAISO_NW_Hydro\",raw_transmission_flows!$D:$D,O$975)\n+SUMIFS(raw_transmission_flows!$P:$P,raw_transmission_flows!$B:$B,\"CAISO_NW_Hydro\",raw_transmission_flows!$C:$C,\"NW\",raw_transmission_flows!$D:$D,O$975))/1000000\n+0.42716568*SUMIFS(raw_inputs_passthrough!$P:$P,raw_inputs_passthrough!$A:$A,X$975)*\n(SUMIFS(raw_transmission_flows!$F:$F,raw_transmission_flows!$C:$C,mainzone,raw_transmission_flows!$B:$B,\"<>CAISO_NW_Hydro\",raw_transmission_flows!$D:$D,O$975)\n+SUMIFS(raw_transmission_flows!$G:$G,raw_transmission_flows!$B:$B,mainzone,raw_transmission_flows!$C:$C,\"<>CAISO_NW_Hydro\",raw_transmission_flows!$D:$D,O$975)\n+SUMIFS(raw_transmission_flows!$F:$F,raw_transmission_flows!$B:$B,\"NW\",raw_transmission_flows!$C:$C,\"CAISO_NW_Hydro\",raw_transmission_flows!$D:$D,O$975)\n+SUMIFS(raw_transmission_flows!$G:$G,raw_transmission_flows!$B:$B,\"CAISO_NW_Hydro\",raw_transmission_flows!$C:$C,\"NW\",raw_transmission_flows!$D:$D,O$975))/1000000","v":0},{"$f":"(SUMIFS(raw_transmission_flows!$M:$M,raw_transmission_flows!$B:$B,\"<>CAISO_NW_Hydro\",raw_transmission_flows!$C:$C,mainzone,raw_transmission_flows!$D:$D,P$975)\n+SUMIFS(raw_transmission_flows!$P:$P,raw_transmission_flows!$B:$B,mainzone,raw_transmission_flows!$C:$C,\"<>CAISO_NW_Hydro\",raw_transmission_flows!$D:$D,P$975)\n+SUMIFS(raw_transmission_flows!$M:$M,raw_transmission_flows!$B:$B,\"NW\",raw_transmission_flows!$C:$C,\"CAISO_NW_Hydro\",raw_transmission_flows!$D:$D,P$975)\n+SUMIFS(raw_transmission_flows!$P:$P,raw_transmission_flows!$B:$B,\"CAISO_NW_Hydro\",raw_transmission_flows!$C:$C,\"NW\",raw_transmission_flows!$D:$D,P$975))/1000000\n+0.42716568*SUMIFS(raw_inputs_passthrough!$P:$P,raw_inputs_passthrough!$A:$A,Y$975)*\n(SUMIFS(raw_transmission_flows!$F:$F,raw_transmission_flows!$C:$C,mainzone,raw_transmission_flows!$B:$B,\"<>CAISO_NW_Hydro\",raw_transmission_flows!$D:$D,P$975)\n+SUMIFS(raw_transmission_flows!$G:$G,raw_transmission_flows!$B:$B,mainzone,raw_transmission_flows!$C:$C,\"<>CAISO_NW_Hydro\",raw_transmission_flows!$D:$D,P$975)\n+SUMIFS(raw_transmission_flows!$F:$F,raw_transmission_flows!$B:$B,\"NW\",raw_transmission_flows!$C:$C,\"CAISO_NW_Hydro\",raw_transmission_flows!$D:$D,P$975)\n+SUMIFS(raw_transmission_flows!$G:$G,raw_transmission_flows!$B:$B,\"CAISO_NW_Hydro\",raw_transmission_flows!$C:$C,\"NW\",raw_transmission_flows!$D:$D,P$975))/1000000","v":583.8115067034679},{"$f":"(SUMIFS(raw_transmission_flows!$M:$M,raw_transmission_flows!$B:$B,\"<>CAISO_NW_Hydro\",raw_transmission_flows!$C:$C,mainzone,raw_transmission_flows!$D:$D,Q$975)\n+SUMIFS(raw_transmission_flows!$P:$P,raw_transmission_flows!$B:$B,mainzone,raw_transmission_flows!$C:$C,\"<>CAISO_NW_Hydro\",raw_transmission_flows!$D:$D,Q$975)\n+SUMIFS(raw_transmission_flows!$M:$M,raw_transmission_flows!$B:$B,\"NW\",raw_transmission_flows!$C:$C,\"CAISO_NW_Hydro\",raw_transmission_flows!$D:$D,Q$975)\n+SUMIFS(raw_transmission_flows!$P:$P,raw_transmission_flows!$B:$B,\"CAISO_NW_Hydro\",raw_transmission_flows!$C:$C,\"NW\",raw_transmission_flows!$D:$D,Q$975))/1000000\n+0.42716568*SUMIFS(raw_inputs_passthrough!$P:$P,raw_inputs_passthrough!$A:$A,Z$975)*\n(SUMIFS(raw_transmission_flows!$F:$F,raw_transmission_flows!$C:$C,mainzone,raw_transmission_flows!$B:$B,\"<>CAISO_NW_Hydro\",raw_transmission_flows!$D:$D,Q$975)\n+SUMIFS(raw_transmission_flows!$G:$G,raw_transmission_flows!$B:$B,mainzone,raw_transmission_flows!$C:$C,\"<>CAISO_NW_Hydro\",raw_transmission_flows!$D:$D,Q$975)\n+SUMIFS(raw_transmission_flows!$F:$F,raw_transmission_flows!$B:$B,\"NW\",raw_transmission_flows!$C:$C,\"CAISO_NW_Hydro\",raw_transmission_flows!$D:$D,Q$975)\n+SUMIFS(raw_transmission_flows!$G:$G,raw_transmission_flows!$B:$B,\"CAISO_NW_Hydro\",raw_transmission_flows!$C:$C,\"NW\",raw_transmission_flows!$D:$D,Q$975))/1000000","v":0},{"$f":"(SUMIFS(raw_transmission_flows!$M:$M,raw_transmission_flows!$B:$B,\"<>CAISO_NW_Hydro\",raw_transmission_flows!$C:$C,mainzone,raw_transmission_flows!$D:$D,R$975)\n+SUMIFS(raw_transmission_flows!$P:$P,raw_transmission_flows!$B:$B,mainzone,raw_transmission_flows!$C:$C,\"<>CAISO_NW_Hydro\",raw_transmission_flows!$D:$D,R$975)\n+SUMIFS(raw_transmission_flows!$M:$M,raw_transmission_flows!$B:$B,\"NW\",raw_transmission_flows!$C:$C,\"CAISO_NW_Hydro\",raw_transmission_flows!$D:$D,R$975)\n+SUMIFS(raw_transmission_flows!$P:$P,raw_transmission_flows!$B:$B,\"CAISO_NW_Hydro\",raw_transmission_flows!$C:$C,\"NW\",raw_transmission_flows!$D:$D,R$975))/1000000\n+0.42716568*SUMIFS(raw_inputs_passthrough!$P:$P,raw_inputs_passthrough!$A:$A,AA$975)*\n(SUMIFS(raw_transmission_flows!$F:$F,raw_transmission_flows!$C:$C,mainzone,raw_transmission_flows!$B:$B,\"<>CAISO_NW_Hydro\",raw_transmission_flows!$D:$D,R$975)\n+SUMIFS(raw_transmission_flows!$G:$G,raw_transmission_flows!$B:$B,mainzone,raw_transmission_flows!$C:$C,\"<>CAISO_NW_Hydro\",raw_transmission_flows!$D:$D,R$975)\n+SUMIFS(raw_transmission_flows!$F:$F,raw_transmission_flows!$B:$B,\"NW\",raw_transmission_flows!$C:$C,\"CAISO_NW_Hydro\",raw_transmission_flows!$D:$D,R$975)\n+SUMIFS(raw_transmission_flows!$G:$G,raw_transmission_flows!$B:$B,\"CAISO_NW_Hydro\",raw_transmission_flows!$C:$C,\"NW\",raw_transmission_flows!$D:$D,R$975))/1000000","v":0},{"$f":"(SUMIFS(raw_transmission_flows!$M:$M,raw_transmission_flows!$B:$B,\"<>CAISO_NW_Hydro\",raw_transmission_flows!$C:$C,mainzone,raw_transmission_flows!$D:$D,S$975)\n+SUMIFS(raw_transmission_flows!$P:$P,raw_transmission_flows!$B:$B,mainzone,raw_transmission_flows!$C:$C,\"<>CAISO_NW_Hydro\",raw_transmission_flows!$D:$D,S$975)\n+SUMIFS(raw_transmission_flows!$M:$M,raw_transmission_flows!$B:$B,\"NW\",raw_transmission_flows!$C:$C,\"CAISO_NW_Hydro\",raw_transmission_flows!$D:$D,S$975)\n+SUMIFS(raw_transmission_flows!$P:$P,raw_transmission_flows!$B:$B,\"CAISO_NW_Hydro\",raw_transmission_flows!$C:$C,\"NW\",raw_transmission_flows!$D:$D,S$975))/1000000\n+0.42716568*SUMIFS(raw_inputs_passthrough!$P:$P,raw_inputs_passthrough!$A:$A,AB$975)*\n(SUMIFS(raw_transmission_flows!$F:$F,raw_transmission_flows!$C:$C,mainzone,raw_transmission_flows!$B:$B,\"<>CAISO_NW_Hydro\",raw_transmission_flows!$D:$D,S$975)\n+SUMIFS(raw_transmission_flows!$G:$G,raw_transmission_flows!$B:$B,mainzone,raw_transmission_flows!$C:$C,\"<>CAISO_NW_Hydro\",raw_transmission_flows!$D:$D,S$975)\n+SUMIFS(raw_transmission_flows!$F:$F,raw_transmission_flows!$B:$B,\"NW\",raw_transmission_flows!$C:$C,\"CAISO_NW_Hydro\",raw_transmission_flows!$D:$D,S$975)\n+SUMIFS(raw_transmission_flows!$G:$G,raw_transmission_flows!$B:$B,\"CAISO_NW_Hydro\",raw_transmission_flows!$C:$C,\"NW\",raw_transmission_flows!$D:$D,S$975))/1000000","v":0},{"$f":"(SUMIFS(raw_transmission_flows!$M:$M,raw_transmission_flows!$B:$B,\"<>CAISO_NW_Hydro\",raw_transmission_flows!$C:$C,mainzone,raw_transmission_flows!$D:$D,T$975)\n+SUMIFS(raw_transmission_flows!$P:$P,raw_transmission_flows!$B:$B,mainzone,raw_transmission_flows!$C:$C,\"<>CAISO_NW_Hydro\",raw_transmission_flows!$D:$D,T$975)\n+SUMIFS(raw_transmission_flows!$M:$M,raw_transmission_flows!$B:$B,\"NW\",raw_transmission_flows!$C:$C,\"CAISO_NW_Hydro\",raw_transmission_flows!$D:$D,T$975)\n+SUMIFS(raw_transmission_flows!$P:$P,raw_transmission_flows!$B:$B,\"CAISO_NW_Hydro\",raw_transmission_flows!$C:$C,\"NW\",raw_transmission_flows!$D:$D,T$975))/1000000\n+0.42716568*SUMIFS(raw_inputs_passthrough!$P:$P,raw_inputs_passthrough!$A:$A,AC$975)*\n(SUMIFS(raw_transmission_flows!$F:$F,raw_transmission_flows!$C:$C,mainzone,raw_transmission_flows!$B:$B,\"<>CAISO_NW_Hydro\",raw_transmission_flows!$D:$D,T$975)\n+SUMIFS(raw_transmission_flows!$G:$G,raw_transmission_flows!$B:$B,mainzone,raw_transmission_flows!$C:$C,\"<>CAISO_NW_Hydro\",raw_transmission_flows!$D:$D,T$975)\n+SUMIFS(raw_transmission_flows!$F:$F,raw_transmission_flows!$B:$B,\"NW\",raw_transmission_flows!$C:$C,\"CAISO_NW_Hydro\",raw_transmission_flows!$D:$D,T$975)\n+SUMIFS(raw_transmission_flows!$G:$G,raw_transmission_flows!$B:$B,\"CAISO_NW_Hydro\",raw_transmission_flows!$C:$C,\"NW\",raw_transmission_flows!$D:$D,T$975))/1000000","v":569.5909553781803},{"$f":"(SUMIFS(raw_transmission_flows!$M:$M,raw_transmission_flows!$B:$B,\"<>CAISO_NW_Hydro\",raw_transmission_flows!$C:$C,mainzone,raw_transmission_flows!$D:$D,U$975)\n+SUMIFS(raw_transmission_flows!$P:$P,raw_transmission_flows!$B:$B,mainzone,raw_transmission_flows!$C:$C,\"<>CAISO_NW_Hydro\",raw_transmission_flows!$D:$D,U$975)\n+SUMIFS(raw_transmission_flows!$M:$M,raw_transmission_flows!$B:$B,\"NW\",raw_transmission_flows!$C:$C,\"CAISO_NW_Hydro\",raw_transmission_flows!$D:$D,U$975)\n+SUMIFS(raw_transmission_flows!$P:$P,raw_transmission_flows!$B:$B,\"CAISO_NW_Hydro\",raw_transmission_flows!$C:$C,\"NW\",raw_transmission_flows!$D:$D,U$975))/1000000\n+0.42716568*SUMIFS(raw_inputs_passthrough!$P:$P,raw_inputs_passthrough!$A:$A,AD$975)*\n(SUMIFS(raw_transmission_flows!$F:$F,raw_transmission_flows!$C:$C,mainzone,raw_transmission_flows!$B:$B,\"<>CAISO_NW_Hydro\",raw_transmission_flows!$D:$D,U$975)\n+SUMIFS(raw_transmission_flows!$G:$G,raw_transmission_flows!$B:$B,mainzone,raw_transmission_flows!$C:$C,\"<>CAISO_NW_Hydro\",raw_transmission_flows!$D:$D,U$975)\n+SUMIFS(raw_transmission_flows!$F:$F,raw_transmission_flows!$B:$B,\"NW\",raw_transmission_flows!$C:$C,\"CAISO_NW_Hydro\",raw_transmission_flows!$D:$D,U$975)\n+SUMIFS(raw_transmission_flows!$G:$G,raw_transmission_flows!$B:$B,\"CAISO_NW_Hydro\",raw_transmission_flows!$C:$C,\"NW\",raw_transmission_flows!$D:$D,U$975))/1000000","v":0},{"$f":"(SUMIFS(raw_transmission_flows!$M:$M,raw_transmission_flows!$B:$B,\"<>CAISO_NW_Hydro\",raw_transmission_flows!$C:$C,mainzone,raw_transmission_flows!$D:$D,V$975)\n+SUMIFS(raw_transmission_flows!$P:$P,raw_transmission_flows!$B:$B,mainzone,raw_transmission_flows!$C:$C,\"<>CAISO_NW_Hydro\",raw_transmission_flows!$D:$D,V$975)\n+SUMIFS(raw_transmission_flows!$M:$M,raw_transmission_flows!$B:$B,\"NW\",raw_transmission_flows!$C:$C,\"CAISO_NW_Hydro\",raw_transmission_flows!$D:$D,V$975)\n+SUMIFS(raw_transmission_flows!$P:$P,raw_transmission_flows!$B:$B,\"CAISO_NW_Hydro\",raw_transmission_flows!$C:$C,\"NW\",raw_transmission_flows!$D:$D,V$975))/1000000\n+0.42716568*SUMIFS(raw_inputs_passthrough!$P:$P,raw_inputs_passthrough!$A:$A,AE$975)*\n(SUMIFS(raw_transmission_flows!$F:$F,raw_transmission_flows!$C:$C,mainzone,raw_transmission_flows!$B:$B,\"<>CAISO_NW_Hydro\",raw_transmission_flows!$D:$D,V$975)\n+SUMIFS(raw_transmission_flows!$G:$G,raw_transmission_flows!$B:$B,mainzone,raw_transmission_flows!$C:$C,\"<>CAISO_NW_Hydro\",raw_transmission_flows!$D:$D,V$975)\n+SUMIFS(raw_transmission_flows!$F:$F,raw_transmission_flows!$B:$B,\"NW\",raw_transmission_flows!$C:$C,\"CAISO_NW_Hydro\",raw_transmission_flows!$D:$D,V$975)\n+SUMIFS(raw_transmission_flows!$G:$G,raw_transmission_flows!$B:$B,\"CAISO_NW_Hydro\",raw_transmission_flows!$C:$C,\"NW\",raw_transmission_flows!$D:$D,V$975))/1000000","v":0},{"$f":"(SUMIFS(raw_transmission_flows!$M:$M,raw_transmission_flows!$B:$B,\"<>CAISO_NW_Hydro\",raw_transmission_flows!$C:$C,mainzone,raw_transmission_flows!$D:$D,W$975)\n+SUMIFS(raw_transmission_flows!$P:$P,raw_transmission_flows!$B:$B,mainzone,raw_transmission_flows!$C:$C,\"<>CAISO_NW_Hydro\",raw_transmission_flows!$D:$D,W$975)\n+SUMIFS(raw_transmission_flows!$M:$M,raw_transmission_flows!$B:$B,\"NW\",raw_transmission_flows!$C:$C,\"CAISO_NW_Hydro\",raw_transmission_flows!$D:$D,W$975)\n+SUMIFS(raw_transmission_flows!$P:$P,raw_transmission_flows!$B:$B,\"CAISO_NW_Hydro\",raw_transmission_flows!$C:$C,\"NW\",raw_transmission_flows!$D:$D,W$975))/1000000\n+0.42716568*SUMIFS(raw_inputs_passthrough!$P:$P,raw_inputs_passthrough!$A:$A,AF$975)*\n(SUMIFS(raw_transmission_flows!$F:$F,raw_transmission_flows!$C:$C,mainzone,raw_transmission_flows!$B:$B,\"<>CAISO_NW_Hydro\",raw_transmission_flows!$D:$D,W$975)\n+SUMIFS(raw_transmission_flows!$G:$G,raw_transmission_flows!$B:$B,mainzone,raw_transmission_flows!$C:$C,\"<>CAISO_NW_Hydro\",raw_transmission_flows!$D:$D,W$975)\n+SUMIFS(raw_transmission_flows!$F:$F,raw_transmission_flows!$B:$B,\"NW\",raw_transmission_flows!$C:$C,\"CAISO_NW_Hydro\",raw_transmission_flows!$D:$D,W$975)\n+SUMIFS(raw_transmission_flows!$G:$G,raw_transmission_flows!$B:$B,\"CAISO_NW_Hydro\",raw_transmission_flows!$C:$C,\"NW\",raw_transmission_flows!$D:$D,W$975))/1000000","v":0},{"$f":"(SUMIFS(raw_transmission_flows!$M:$M,raw_transmission_flows!$B:$B,\"<>CAISO_NW_Hydro\",raw_transmission_flows!$C:$C,mainzone,raw_transmission_flows!$D:$D,X$975)\n+SUMIFS(raw_transmission_flows!$P:$P,raw_transmission_flows!$B:$B,mainzone,raw_transmission_flows!$C:$C,\"<>CAISO_NW_Hydro\",raw_transmission_flows!$D:$D,X$975)\n+SUMIFS(raw_transmission_flows!$M:$M,raw_transmission_flows!$B:$B,\"NW\",raw_transmission_flows!$C:$C,\"CAISO_NW_Hydro\",raw_transmission_flows!$D:$D,X$975)\n+SUMIFS(raw_transmission_flows!$P:$P,raw_transmission_flows!$B:$B,\"CAISO_NW_Hydro\",raw_transmission_flows!$C:$C,\"NW\",raw_transmission_flows!$D:$D,X$975))/1000000\n+0.42716568*SUMIFS(raw_inputs_passthrough!$P:$P,raw_inputs_passthrough!$A:$A,AG$975)*\n(SUMIFS(raw_transmission_flows!$F:$F,raw_transmission_flows!$C:$C,mainzone,raw_transmission_flows!$B:$B,\"<>CAISO_NW_Hydro\",raw_transmission_flows!$D:$D,X$975)\n+SUMIFS(raw_transmission_flows!$G:$G,raw_transmission_flows!$B:$B,mainzone,raw_transmission_flows!$C:$C,\"<>CAISO_NW_Hydro\",raw_transmission_flows!$D:$D,X$975)\n+SUMIFS(raw_transmission_flows!$F:$F,raw_transmission_flows!$B:$B,\"NW\",raw_transmission_flows!$C:$C,\"CAISO_NW_Hydro\",raw_transmission_flows!$D:$D,X$975)\n+SUMIFS(raw_transmission_flows!$G:$G,raw_transmission_flows!$B:$B,\"CAISO_NW_Hydro\",raw_transmission_flows!$C:$C,\"NW\",raw_transmission_flows!$D:$D,X$975))/1000000","v":0},{"$f":"(SUMIFS(raw_transmission_flows!$M:$M,raw_transmission_flows!$B:$B,\"<>CAISO_NW_Hydro\",raw_transmission_flows!$C:$C,mainzone,raw_transmission_flows!$D:$D,Y$975)\n+SUMIFS(raw_transmission_flows!$P:$P,raw_transmission_flows!$B:$B,mainzone,raw_transmission_flows!$C:$C,\"<>CAISO_NW_Hydro\",raw_transmission_flows!$D:$D,Y$975)\n+SUMIFS(raw_transmission_flows!$M:$M,raw_transmission_flows!$B:$B,\"NW\",raw_transmission_flows!$C:$C,\"CAISO_NW_Hydro\",raw_transmission_flows!$D:$D,Y$975)\n+SUMIFS(raw_transmission_flows!$P:$P,raw_transmission_flows!$B:$B,\"CAISO_NW_Hydro\",raw_transmission_flows!$C:$C,\"NW\",raw_transmission_flows!$D:$D,Y$975))/1000000\n+0.42716568*SUMIFS(raw_inputs_passthrough!$P:$P,raw_inputs_passthrough!$A:$A,AH$975)*\n(SUMIFS(raw_transmission_flows!$F:$F,raw_transmission_flows!$C:$C,mainzone,raw_transmission_flows!$B:$B,\"<>CAISO_NW_Hydro\",raw_transmission_flows!$D:$D,Y$975)\n+SUMIFS(raw_transmission_flows!$G:$G,raw_transmission_flows!$B:$B,mainzone,raw_transmission_flows!$C:$C,\"<>CAISO_NW_Hydro\",raw_transmission_flows!$D:$D,Y$975)\n+SUMIFS(raw_transmission_flows!$F:$F,raw_transmission_flows!$B:$B,\"NW\",raw_transmission_flows!$C:$C,\"CAISO_NW_Hydro\",raw_transmission_flows!$D:$D,Y$975)\n+SUMIFS(raw_transmission_flows!$G:$G,raw_transmission_flows!$B:$B,\"CAISO_NW_Hydro\",raw_transmission_flows!$C:$C,\"NW\",raw_transmission_flows!$D:$D,Y$975))/1000000","v":0},{"$f":"(SUMIFS(raw_transmission_flows!$M:$M,raw_transmission_flows!$B:$B,\"<>CAISO_NW_Hydro\",raw_transmission_flows!$C:$C,mainzone,raw_transmission_flows!$D:$D,Z$975)\n+SUMIFS(raw_transmission_flows!$P:$P,raw_transmission_flows!$B:$B,mainzone,raw_transmission_flows!$C:$C,\"<>CAISO_NW_Hydro\",raw_transmission_flows!$D:$D,Z$975)\n+SUMIFS(raw_transmission_flows!$M:$M,raw_transmission_flows!$B:$B,\"NW\",raw_transmission_flows!$C:$C,\"CAISO_NW_Hydro\",raw_transmission_flows!$D:$D,Z$975)\n+SUMIFS(raw_transmission_flows!$P:$P,raw_transmission_flows!$B:$B,\"CAISO_NW_Hydro\",raw_transmission_flows!$C:$C,\"NW\",raw_transmission_flows!$D:$D,Z$975))/1000000\n+0.42716568*SUMIFS(raw_inputs_passthrough!$P:$P,raw_inputs_passthrough!$A:$A,AI$975)*\n(SUMIFS(raw_transmission_flows!$F:$F,raw_transmission_flows!$C:$C,mainzone,raw_transmission_flows!$B:$B,\"<>CAISO_NW_Hydro\",raw_transmission_flows!$D:$D,Z$975)\n+SUMIFS(raw_transmission_flows!$G:$G,raw_transmission_flows!$B:$B,mainzone,raw_transmission_flows!$C:$C,\"<>CAISO_NW_Hydro\",raw_transmission_flows!$D:$D,Z$975)\n+SUMIFS(raw_transmission_flows!$F:$F,raw_transmission_flows!$B:$B,\"NW\",raw_transmission_flows!$C:$C,\"CAISO_NW_Hydro\",raw_transmission_flows!$D:$D,Z$975)\n+SUMIFS(raw_transmission_flows!$G:$G,raw_transmission_flows!$B:$B,\"CAISO_NW_Hydro\",raw_transmission_flows!$C:$C,\"NW\",raw_transmission_flows!$D:$D,Z$975))/1000000","v":0},{"$f":"(SUMIFS(raw_transmission_flows!$M:$M,raw_transmission_flows!$B:$B,\"<>CAISO_NW_Hydro\",raw_transmission_flows!$C:$C,mainzone,raw_transmission_flows!$D:$D,AA$975)\n+SUMIFS(raw_transmission_flows!$P:$P,raw_transmission_flows!$B:$B,mainzone,raw_transmission_flows!$C:$C,\"<>CAISO_NW_Hydro\",raw_transmission_flows!$D:$D,AA$975)\n+SUMIFS(raw_transmission_flows!$M:$M,raw_transmission_flows!$B:$B,\"NW\",raw_transmission_flows!$C:$C,\"CAISO_NW_Hydro\",raw_transmission_flows!$D:$D,AA$975)\n+SUMIFS(raw_transmission_flows!$P:$P,raw_transmission_flows!$B:$B,\"CAISO_NW_Hydro\",raw_transmission_flows!$C:$C,\"NW\",raw_transmission_flows!$D:$D,AA$975))/1000000\n+0.42716568*SUMIFS(raw_inputs_passthrough!$P:$P,raw_inputs_passthrough!$A:$A,AJ$975)*\n(SUMIFS(raw_transmission_flows!$F:$F,raw_transmission_flows!$C:$C,mainzone,raw_transmission_flows!$B:$B,\"<>CAISO_NW_Hydro\",raw_transmission_flows!$D:$D,AA$975)\n+SUMIFS(raw_transmission_flows!$G:$G,raw_transmission_flows!$B:$B,mainzone,raw_transmission_flows!$C:$C,\"<>CAISO_NW_Hydro\",raw_transmission_flows!$D:$D,AA$975)\n+SUMIFS(raw_transmission_flows!$F:$F,raw_transmission_flows!$B:$B,\"NW\",raw_transmission_flows!$C:$C,\"CAISO_NW_Hydro\",raw_transmission_flows!$D:$D,AA$975)\n+SUMIFS(raw_transmission_flows!$G:$G,raw_transmission_flows!$B:$B,\"CAISO_NW_Hydro\",raw_transmission_flows!$C:$C,\"NW\",raw_transmission_flows!$D:$D,AA$975))/1000000","v":0},{"$f":"(SUMIFS(raw_transmission_flows!$M:$M,raw_transmission_flows!$B:$B,\"<>CAISO_NW_Hydro\",raw_transmission_flows!$C:$C,mainzone,raw_transmission_flows!$D:$D,AB$975)\n+SUMIFS(raw_transmission_flows!$P:$P,raw_transmission_flows!$B:$B,mainzone,raw_transmission_flows!$C:$C,\"<>CAISO_NW_Hydro\",raw_transmission_flows!$D:$D,AB$975)\n+SUMIFS(raw_transmission_flows!$M:$M,raw_transmission_flows!$B:$B,\"NW\",raw_transmission_flows!$C:$C,\"CAISO_NW_Hydro\",raw_transmission_flows!$D:$D,AB$975)\n+SUMIFS(raw_transmission_flows!$P:$P,raw_transmission_flows!$B:$B,\"CAISO_NW_Hydro\",raw_transmission_flows!$C:$C,\"NW\",raw_transmission_flows!$D:$D,AB$975))/1000000\n+0.42716568*SUMIFS(raw_inputs_passthrough!$P:$P,raw_inputs_passthrough!$A:$A,AK$975)*\n(SUMIFS(raw_transmission_flows!$F:$F,raw_transmission_flows!$C:$C,mainzone,raw_transmission_flows!$B:$B,\"<>CAISO_NW_Hydro\",raw_transmission_flows!$D:$D,AB$975)\n+SUMIFS(raw_transmission_flows!$G:$G,raw_transmission_flows!$B:$B,mainzone,raw_transmission_flows!$C:$C,\"<>CAISO_NW_Hydro\",raw_transmission_flows!$D:$D,AB$975)\n+SUMIFS(raw_transmission_flows!$F:$F,raw_transmission_flows!$B:$B,\"NW\",raw_transmission_flows!$C:$C,\"CAISO_NW_Hydro\",raw_transmission_flows!$D:$D,AB$975)\n+SUMIFS(raw_transmission_flows!$G:$G,raw_transmission_flows!$B:$B,\"CAISO_NW_Hydro\",raw_transmission_flows!$C:$C,\"NW\",raw_transmission_flows!$D:$D,AB$975))/1000000","v":0},{"$f":"(SUMIFS(raw_transmission_flows!$M:$M,raw_transmission_flows!$B:$B,\"<>CAISO_NW_Hydro\",raw_transmission_flows!$C:$C,mainzone,raw_transmission_flows!$D:$D,AC$975)\n+SUMIFS(raw_transmission_flows!$P:$P,raw_transmission_flows!$B:$B,mainzone,raw_transmission_flows!$C:$C,\"<>CAISO_NW_Hydro\",raw_transmission_flows!$D:$D,AC$975)\n+SUMIFS(raw_transmission_flows!$M:$M,raw_transmission_flows!$B:$B,\"NW\",raw_transmission_flows!$C:$C,\"CAISO_NW_Hydro\",raw_transmission_flows!$D:$D,AC$975)\n+SUMIFS(raw_transmission_flows!$P:$P,raw_transmission_flows!$B:$B,\"CAISO_NW_Hydro\",raw_transmission_flows!$C:$C,\"NW\",raw_transmission_flows!$D:$D,AC$975))/1000000\n+0.42716568*SUMIFS(raw_inputs_passthrough!$P:$P,raw_inputs_passthrough!$A:$A,AL$975)*\n(SUMIFS(raw_transmission_flows!$F:$F,raw_transmission_flows!$C:$C,mainzone,raw_transmission_flows!$B:$B,\"<>CAISO_NW_Hydro\",raw_transmission_flows!$D:$D,AC$975)\n+SUMIFS(raw_transmission_flows!$G:$G,raw_transmission_flows!$B:$B,mainzone,raw_transmission_flows!$C:$C,\"<>CAISO_NW_Hydro\",raw_transmission_flows!$D:$D,AC$975)\n+SUMIFS(raw_transmission_flows!$F:$F,raw_transmission_flows!$B:$B,\"NW\",raw_transmission_flows!$C:$C,\"CAISO_NW_Hydro\",raw_transmission_flows!$D:$D,AC$975)\n+SUMIFS(raw_transmission_flows!$G:$G,raw_transmission_flows!$B:$B,\"CAISO_NW_Hydro\",raw_transmission_flows!$C:$C,\"NW\",raw_transmission_flows!$D:$D,AC$975))/1000000","v":0},{"$f":"(SUMIFS(raw_transmission_flows!$M:$M,raw_transmission_flows!$B:$B,\"<>CAISO_NW_Hydro\",raw_transmission_flows!$C:$C,mainzone,raw_transmission_flows!$D:$D,AD$975)\n+SUMIFS(raw_transmission_flows!$P:$P,raw_transmission_flows!$B:$B,mainzone,raw_transmission_flows!$C:$C,\"<>CAISO_NW_Hydro\",raw_transmission_flows!$D:$D,AD$975)\n+SUMIFS(raw_transmission_flows!$M:$M,raw_transmission_flows!$B:$B,\"NW\",raw_transmission_flows!$C:$C,\"CAISO_NW_Hydro\",raw_transmission_flows!$D:$D,AD$975)\n+SUMIFS(raw_transmission_flows!$P:$P,raw_transmission_flows!$B:$B,\"CAISO_NW_Hydro\",raw_transmission_flows!$C:$C,\"NW\",raw_transmission_flows!$D:$D,AD$975))/1000000\n+0.42716568*SUMIFS(raw_inputs_passthrough!$P:$P,raw_inputs_passthrough!$A:$A,AM$975)*\n(SUMIFS(raw_transmission_flows!$F:$F,raw_transmission_flows!$C:$C,mainzone,raw_transmission_flows!$B:$B,\"<>CAISO_NW_Hydro\",raw_transmission_flows!$D:$D,AD$975)\n+SUMIFS(raw_transmission_flows!$G:$G,raw_transmission_flows!$B:$B,mainzone,raw_transmission_flows!$C:$C,\"<>CAISO_NW_Hydro\",raw_transmission_flows!$D:$D,AD$975)\n+SUMIFS(raw_transmission_flows!$F:$F,raw_transmission_flows!$B:$B,\"NW\",raw_transmission_flows!$C:$C,\"CAISO_NW_Hydro\",raw_transmission_flows!$D:$D,AD$975)\n+SUMIFS(raw_transmission_flows!$G:$G,raw_transmission_flows!$B:$B,\"CAISO_NW_Hydro\",raw_transmission_flows!$C:$C,\"NW\",raw_transmission_flows!$D:$D,AD$975))/1000000","v":0},{"$f":"(SUMIFS(raw_transmission_flows!$M:$M,raw_transmission_flows!$B:$B,\"<>CAISO_NW_Hydro\",raw_transmission_flows!$C:$C,mainzone,raw_transmission_flows!$D:$D,AE$975)\n+SUMIFS(raw_transmission_flows!$P:$P,raw_transmission_flows!$B:$B,mainzone,raw_transmission_flows!$C:$C,\"<>CAISO_NW_Hydro\",raw_transmission_flows!$D:$D,AE$975)\n+SUMIFS(raw_transmission_flows!$M:$M,raw_transmission_flows!$B:$B,\"NW\",raw_transmission_flows!$C:$C,\"CAISO_NW_Hydro\",raw_transmission_flows!$D:$D,AE$975)\n+SUMIFS(raw_transmission_flows!$P:$P,raw_transmission_flows!$B:$B,\"CAISO_NW_Hydro\",raw_transmission_flows!$C:$C,\"NW\",raw_transmission_flows!$D:$D,AE$975))/1000000\n+0.42716568*SUMIFS(raw_inputs_passthrough!$P:$P,raw_inputs_passthrough!$A:$A,AN$975)*\n(SUMIFS(raw_transmission_flows!$F:$F,raw_transmission_flows!$C:$C,mainzone,raw_transmission_flows!$B:$B,\"<>CAISO_NW_Hydro\",raw_transmission_flows!$D:$D,AE$975)\n+SUMIFS(raw_transmission_flows!$G:$G,raw_transmission_flows!$B:$B,mainzone,raw_transmission_flows!$C:$C,\"<>CAISO_NW_Hydro\",raw_transmission_flows!$D:$D,AE$975)\n+SUMIFS(raw_transmission_flows!$F:$F,raw_transmission_flows!$B:$B,\"NW\",raw_transmission_flows!$C:$C,\"CAISO_NW_Hydro\",raw_transmission_flows!$D:$D,AE$975)\n+SUMIFS(raw_transmission_flows!$G:$G,raw_transmission_flows!$B:$B,\"CAISO_NW_Hydro\",raw_transmission_flows!$C:$C,\"NW\",raw_transmission_flows!$D:$D,AE$975))/1000000","v":0},{"$f":"(SUMIFS(raw_transmission_flows!$M:$M,raw_transmission_flows!$B:$B,\"<>CAISO_NW_Hydro\",raw_transmission_flows!$C:$C,mainzone,raw_transmission_flows!$D:$D,AF$975)\n+SUMIFS(raw_transmission_flows!$P:$P,raw_transmission_flows!$B:$B,mainzone,raw_transmission_flows!$C:$C,\"<>CAISO_NW_Hydro\",raw_transmission_flows!$D:$D,AF$975)\n+SUMIFS(raw_transmission_flows!$M:$M,raw_transmission_flows!$B:$B,\"NW\",raw_transmission_flows!$C:$C,\"CAISO_NW_Hydro\",raw_transmission_flows!$D:$D,AF$975)\n+SUMIFS(raw_transmission_flows!$P:$P,raw_transmission_flows!$B:$B,\"CAISO_NW_Hydro\",raw_transmission_flows!$C:$C,\"NW\",raw_transmission_flows!$D:$D,AF$975))/1000000\n+0.42716568*SUMIFS(raw_inputs_passthrough!$P:$P,raw_inputs_passthrough!$A:$A,AO$975)*\n(SUMIFS(raw_transmission_flows!$F:$F,raw_transmission_flows!$C:$C,mainzone,raw_transmission_flows!$B:$B,\"<>CAISO_NW_Hydro\",raw_transmission_flows!$D:$D,AF$975)\n+SUMIFS(raw_transmission_flows!$G:$G,raw_transmission_flows!$B:$B,mainzone,raw_transmission_flows!$C:$C,\"<>CAISO_NW_Hydro\",raw_transmission_flows!$D:$D,AF$975)\n+SUMIFS(raw_transmission_flows!$F:$F,raw_transmission_flows!$B:$B,\"NW\",raw_transmission_flows!$C:$C,\"CAISO_NW_Hydro\",raw_transmission_flows!$D:$D,AF$975)\n+SUMIFS(raw_transmission_flows!$G:$G,raw_transmission_flows!$B:$B,\"CAISO_NW_Hydro\",raw_transmission_flows!$C:$C,\"NW\",raw_transmission_flows!$D:$D,AF$975))/1000000","v":0},{"$f":"(SUMIFS(raw_transmission_flows!$M:$M,raw_transmission_flows!$B:$B,\"<>CAISO_NW_Hydro\",raw_transmission_flows!$C:$C,mainzone,raw_transmission_flows!$D:$D,AG$975)\n+SUMIFS(raw_transmission_flows!$P:$P,raw_transmission_flows!$B:$B,mainzone,raw_transmission_flows!$C:$C,\"<>CAISO_NW_Hydro\",raw_transmission_flows!$D:$D,AG$975)\n+SUMIFS(raw_transmission_flows!$M:$M,raw_transmission_flows!$B:$B,\"NW\",raw_transmission_flows!$C:$C,\"CAISO_NW_Hydro\",raw_transmission_flows!$D:$D,AG$975)\n+SUMIFS(raw_transmission_flows!$P:$P,raw_transmission_flows!$B:$B,\"CAISO_NW_Hydro\",raw_transmission_flows!$C:$C,\"NW\",raw_transmission_flows!$D:$D,AG$975))/1000000\n+0.42716568*SUMIFS(raw_inputs_passthrough!$P:$P,raw_inputs_passthrough!$A:$A,AP$975)*\n(SUMIFS(raw_transmission_flows!$F:$F,raw_transmission_flows!$C:$C,mainzone,raw_transmission_flows!$B:$B,\"<>CAISO_NW_Hydro\",raw_transmission_flows!$D:$D,AG$975)\n+SUMIFS(raw_transmission_flows!$G:$G,raw_transmission_flows!$B:$B,mainzone,raw_transmission_flows!$C:$C,\"<>CAISO_NW_Hydro\",raw_transmission_flows!$D:$D,AG$975)\n+SUMIFS(raw_transmission_flows!$F:$F,raw_transmission_flows!$B:$B,\"NW\",raw_transmission_flows!$C:$C,\"CAISO_NW_Hydro\",raw_transmission_flows!$D:$D,AG$975)\n+SUMIFS(raw_transmission_flows!$G:$G,raw_transmission_flows!$B:$B,\"CAISO_NW_Hydro\",raw_transmission_flows!$C:$C,\"NW\",raw_transmission_flows!$D:$D,AG$975))/1000000","v":0},{"$f":"(SUMIFS(raw_transmission_flows!$M:$M,raw_transmission_flows!$B:$B,\"<>CAISO_NW_Hydro\",raw_transmission_flows!$C:$C,mainzone,raw_transmission_flows!$D:$D,AH$975)\n+SUMIFS(raw_transmission_flows!$P:$P,raw_transmission_flows!$B:$B,mainzone,raw_transmission_flows!$C:$C,\"<>CAISO_NW_Hydro\",raw_transmission_flows!$D:$D,AH$975)\n+SUMIFS(raw_transmission_flows!$M:$M,raw_transmission_flows!$B:$B,\"NW\",raw_transmission_flows!$C:$C,\"CAISO_NW_Hydro\",raw_transmission_flows!$D:$D,AH$975)\n+SUMIFS(raw_transmission_flows!$P:$P,raw_transmission_flows!$B:$B,\"CAISO_NW_Hydro\",raw_transmission_flows!$C:$C,\"NW\",raw_transmission_flows!$D:$D,AH$975))/1000000\n+0.42716568*SUMIFS(raw_inputs_passthrough!$P:$P,raw_inputs_passthrough!$A:$A,AQ$975)*\n(SUMIFS(raw_transmission_flows!$F:$F,raw_transmission_flows!$C:$C,mainzone,raw_transmission_flows!$B:$B,\"<>CAISO_NW_Hydro\",raw_transmission_flows!$D:$D,AH$975)\n+SUMIFS(raw_transmission_flows!$G:$G,raw_transmission_flows!$B:$B,mainzone,raw_transmission_flows!$C:$C,\"<>CAISO_NW_Hydro\",raw_transmission_flows!$D:$D,AH$975)\n+SUMIFS(raw_transmission_flows!$F:$F,raw_transmission_flows!$B:$B,\"NW\",raw_transmission_flows!$C:$C,\"CAISO_NW_Hydro\",raw_transmission_flows!$D:$D,AH$975)\n+SUMIFS(raw_transmission_flows!$G:$G,raw_transmission_flows!$B:$B,\"CAISO_NW_Hydro\",raw_transmission_flows!$C:$C,\"NW\",raw_transmission_flows!$D:$D,AH$975))/1000000","v":0},{"$f":"(SUMIFS(raw_transmission_flows!$M:$M,raw_transmission_flows!$B:$B,\"<>CAISO_NW_Hydro\",raw_transmission_flows!$C:$C,mainzone,raw_transmission_flows!$D:$D,AI$975)\n+SUMIFS(raw_transmission_flows!$P:$P,raw_transmission_flows!$B:$B,mainzone,raw_transmission_flows!$C:$C,\"<>CAISO_NW_Hydro\",raw_transmission_flows!$D:$D,AI$975)\n+SUMIFS(raw_transmission_flows!$M:$M,raw_transmission_flows!$B:$B,\"NW\",raw_transmission_flows!$C:$C,\"CAISO_NW_Hydro\",raw_transmission_flows!$D:$D,AI$975)\n+SUMIFS(raw_transmission_flows!$P:$P,raw_transmission_flows!$B:$B,\"CAISO_NW_Hydro\",raw_transmission_flows!$C:$C,\"NW\",raw_transmission_flows!$D:$D,AI$975))/1000000\n+0.42716568*SUMIFS(raw_inputs_passthrough!$P:$P,raw_inputs_passthrough!$A:$A,AR$975)*\n(SUMIFS(raw_transmission_flows!$F:$F,raw_transmission_flows!$C:$C,mainzone,raw_transmission_flows!$B:$B,\"<>CAISO_NW_Hydro\",raw_transmission_flows!$D:$D,AI$975)\n+SUMIFS(raw_transmission_flows!$G:$G,raw_transmission_flows!$B:$B,mainzone,raw_transmission_flows!$C:$C,\"<>CAISO_NW_Hydro\",raw_transmission_flows!$D:$D,AI$975)\n+SUMIFS(raw_transmission_flows!$F:$F,raw_transmission_flows!$B:$B,\"NW\",raw_transmission_flows!$C:$C,\"CAISO_NW_Hydro\",raw_transmission_flows!$D:$D,AI$975)\n+SUMIFS(raw_transmission_flows!$G:$G,raw_transmission_flows!$B:$B,\"CAISO_NW_Hydro\",raw_transmission_flows!$C:$C,\"NW\",raw_transmission_flows!$D:$D,AI$975))/1000000","v":73.902119403834362},{"$f":"(SUMIFS(raw_transmission_flows!$M:$M,raw_transmission_flows!$B:$B,\"<>CAISO_NW_Hydro\",raw_transmission_flows!$C:$C,mainzone,raw_transmission_flows!$D:$D,AJ$975)\n+SUMIFS(raw_transmission_flows!$P:$P,raw_transmission_flows!$B:$B,mainzone,raw_transmission_flows!$C:$C,\"<>CAISO_NW_Hydro\",raw_transmission_flows!$D:$D,AJ$975)\n+SUMIFS(raw_transmission_flows!$M:$M,raw_transmission_flows!$B:$B,\"NW\",raw_transmission_flows!$C:$C,\"CAISO_NW_Hydro\",raw_transmission_flows!$D:$D,AJ$975)\n+SUMIFS(raw_transmission_flows!$P:$P,raw_transmission_flows!$B:$B,\"CAISO_NW_Hydro\",raw_transmission_flows!$C:$C,\"NW\",raw_transmission_flows!$D:$D,AJ$975))/1000000\n+0.42716568*SUMIFS(raw_inputs_passthrough!$P:$P,raw_inputs_passthrough!$A:$A,AS$975)*\n(SUMIFS(raw_transmission_flows!$F:$F,raw_transmission_flows!$C:$C,mainzone,raw_transmission_flows!$B:$B,\"<>CAISO_NW_Hydro\",raw_transmission_flows!$D:$D,AJ$975)\n+SUMIFS(raw_transmission_flows!$G:$G,raw_transmission_flows!$B:$B,mainzone,raw_transmission_flows!$C:$C,\"<>CAISO_NW_Hydro\",raw_transmission_flows!$D:$D,AJ$975)\n+SUMIFS(raw_transmission_flows!$F:$F,raw_transmission_flows!$B:$B,\"NW\",raw_transmission_flows!$C:$C,\"CAISO_NW_Hydro\",raw_transmission_flows!$D:$D,AJ$975)\n+SUMIFS(raw_transmission_flows!$G:$G,raw_transmission_flows!$B:$B,\"CAISO_NW_Hydro\",raw_transmission_flows!$C:$C,\"NW\",raw_transmission_flows!$D:$D,AJ$975))/1000000","v":0},{"$f":"(SUMIFS(raw_transmission_flows!$M:$M,raw_transmission_flows!$B:$B,\"<>CAISO_NW_Hydro\",raw_transmission_flows!$C:$C,mainzone,raw_transmission_flows!$D:$D,AK$975)\n+SUMIFS(raw_transmission_flows!$P:$P,raw_transmission_flows!$B:$B,mainzone,raw_transmission_flows!$C:$C,\"<>CAISO_NW_Hydro\",raw_transmission_flows!$D:$D,AK$975)\n+SUMIFS(raw_transmission_flows!$M:$M,raw_transmission_flows!$B:$B,\"NW\",raw_transmission_flows!$C:$C,\"CAISO_NW_Hydro\",raw_transmission_flows!$D:$D,AK$975)\n+SUMIFS(raw_transmission_flows!$P:$P,raw_transmission_flows!$B:$B,\"CAISO_NW_Hydro\",raw_transmission_flows!$C:$C,\"NW\",raw_transmission_flows!$D:$D,AK$975))/1000000\n+0.42716568*SUMIFS(raw_inputs_passthrough!$P:$P,raw_inputs_passthrough!$A:$A,AT$975)*\n(SUMIFS(raw_transmission_flows!$F:$F,raw_transmission_flows!$C:$C,mainzone,raw_transmission_flows!$B:$B,\"<>CAISO_NW_Hydro\",raw_transmission_flows!$D:$D,AK$975)\n+SUMIFS(raw_transmission_flows!$G:$G,raw_transmission_flows!$B:$B,mainzone,raw_transmission_flows!$C:$C,\"<>CAISO_NW_Hydro\",raw_transmission_flows!$D:$D,AK$975)\n+SUMIFS(raw_transmission_flows!$F:$F,raw_transmission_flows!$B:$B,\"NW\",raw_transmission_flows!$C:$C,\"CAISO_NW_Hydro\",raw_transmission_flows!$D:$D,AK$975)\n+SUMIFS(raw_transmission_flows!$G:$G,raw_transmission_flows!$B:$B,\"CAISO_NW_Hydro\",raw_transmission_flows!$C:$C,\"NW\",raw_transmission_flows!$D:$D,AK$975))/1000000","v":0},{"$f":"(SUMIFS(raw_transmission_flows!$M:$M,raw_transmission_flows!$B:$B,\"<>CAISO_NW_Hydro\",raw_transmission_flows!$C:$C,mainzone,raw_transmission_flows!$D:$D,AL$975)\n+SUMIFS(raw_transmission_flows!$P:$P,raw_transmission_flows!$B:$B,mainzone,raw_transmission_flows!$C:$C,\"<>CAISO_NW_Hydro\",raw_transmission_flows!$D:$D,AL$975)\n+SUMIFS(raw_transmission_flows!$M:$M,raw_transmission_flows!$B:$B,\"NW\",raw_transmission_flows!$C:$C,\"CAISO_NW_Hydro\",raw_transmission_flows!$D:$D,AL$975)\n+SUMIFS(raw_transmission_flows!$P:$P,raw_transmission_flows!$B:$B,\"CAISO_NW_Hydro\",raw_transmission_flows!$C:$C,\"NW\",raw_transmission_flows!$D:$D,AL$975))/1000000\n+0.42716568*SUMIFS(raw_inputs_passthrough!$P:$P,raw_inputs_passthrough!$A:$A,AU$975)*\n(SUMIFS(raw_transmission_flows!$F:$F,raw_transmission_flows!$C:$C,mainzone,raw_transmission_flows!$B:$B,\"<>CAISO_NW_Hydro\",raw_transmission_flows!$D:$D,AL$975)\n+SUMIFS(raw_transmission_flows!$G:$G,raw_transmission_flows!$B:$B,mainzone,raw_transmission_flows!$C:$C,\"<>CAISO_NW_Hydro\",raw_transmission_flows!$D:$D,AL$975)\n+SUMIFS(raw_transmission_flows!$F:$F,raw_transmission_flows!$B:$B,\"NW\",raw_transmission_flows!$C:$C,\"CAISO_NW_Hydro\",raw_transmission_flows!$D:$D,AL$975)\n+SUMIFS(raw_transmission_flows!$G:$G,raw_transmission_flows!$B:$B,\"CAISO_NW_Hydro\",raw_transmission_flows!$C:$C,\"NW\",raw_transmission_flows!$D:$D,AL$975))/1000000","v":0},{"$f":"(SUMIFS(raw_transmission_flows!$M:$M,raw_transmission_flows!$B:$B,\"<>CAISO_NW_Hydro\",raw_transmission_flows!$C:$C,mainzone,raw_transmission_flows!$D:$D,AM$975)\n+SUMIFS(raw_transmission_flows!$P:$P,raw_transmission_flows!$B:$B,mainzone,raw_transmission_flows!$C:$C,\"<>CAISO_NW_Hydro\",raw_transmission_flows!$D:$D,AM$975)\n+SUMIFS(raw_transmission_flows!$M:$M,raw_transmission_flows!$B:$B,\"NW\",raw_transmission_flows!$C:$C,\"CAISO_NW_Hydro\",raw_transmission_flows!$D:$D,AM$975)\n+SUMIFS(raw_transmission_flows!$P:$P,raw_transmission_flows!$B:$B,\"CAISO_NW_Hydro\",raw_transmission_flows!$C:$C,\"NW\",raw_transmission_flows!$D:$D,AM$975))/1000000\n+0.42716568*SUMIFS(raw_inputs_passthrough!$P:$P,raw_inputs_passthrough!$A:$A,AV$975)*\n(SUMIFS(raw_transmission_flows!$F:$F,raw_transmission_flows!$C:$C,mainzone,raw_transmission_flows!$B:$B,\"<>CAISO_NW_Hydro\",raw_transmission_flows!$D:$D,AM$975)\n+SUMIFS(raw_transmission_flows!$G:$G,raw_transmission_flows!$B:$B,mainzone,raw_transmission_flows!$C:$C,\"<>CAISO_NW_Hydro\",raw_transmission_flows!$D:$D,AM$975)\n+SUMIFS(raw_transmission_flows!$F:$F,raw_transmission_flows!$B:$B,\"NW\",raw_transmission_flows!$C:$C,\"CAISO_NW_Hydro\",raw_transmission_flows!$D:$D,AM$975)\n+SUMIFS(raw_transmission_flows!$G:$G,raw_transmission_flows!$B:$B,\"CAISO_NW_Hydro\",raw_transmission_flows!$C:$C,\"NW\",raw_transmission_flows!$D:$D,AM$975))/1000000","v":0},{"$f":"(SUMIFS(raw_transmission_flows!$M:$M,raw_transmission_flows!$B:$B,\"<>CAISO_NW_Hydro\",raw_transmission_flows!$C:$C,mainzone,raw_transmission_flows!$D:$D,AN$975)\n+SUMIFS(raw_transmission_flows!$P:$P,raw_transmission_flows!$B:$B,mainzone,raw_transmission_flows!$C:$C,\"<>CAISO_NW_Hydro\",raw_transmission_flows!$D:$D,AN$975)\n+SUMIFS(raw_transmission_flows!$M:$M,raw_transmission_flows!$B:$B,\"NW\",raw_transmission_flows!$C:$C,\"CAISO_NW_Hydro\",raw_transmission_flows!$D:$D,AN$975)\n+SUMIFS(raw_transmission_flows!$P:$P,raw_transmission_flows!$B:$B,\"CAISO_NW_Hydro\",raw_transmission_flows!$C:$C,\"NW\",raw_transmission_flows!$D:$D,AN$975))/1000000\n+0.42716568*SUMIFS(raw_inputs_passthrough!$P:$P,raw_inputs_passthrough!$A:$A,AW$975)*\n(SUMIFS(raw_transmission_flows!$F:$F,raw_transmission_flows!$C:$C,mainzone,raw_transmission_flows!$B:$B,\"<>CAISO_NW_Hydro\",raw_transmission_flows!$D:$D,AN$975)\n+SUMIFS(raw_transmission_flows!$G:$G,raw_transmission_flows!$B:$B,mainzone,raw_transmission_flows!$C:$C,\"<>CAISO_NW_Hydro\",raw_transmission_flows!$D:$D,AN$975)\n+SUMIFS(raw_transmission_flows!$F:$F,raw_transmission_flows!$B:$B,\"NW\",raw_transmission_flows!$C:$C,\"CAISO_NW_Hydro\",raw_transmission_flows!$D:$D,AN$975)\n+SUMIFS(raw_transmission_flows!$G:$G,raw_transmission_flows!$B:$B,\"CAISO_NW_Hydro\",raw_transmission_flows!$C:$C,\"NW\",raw_transmission_flows!$D:$D,AN$975))/1000000","v":0}]
[null,null,"Market Revenues","$MM",{"$f":"-(SUMIFS(raw_transmission_flows!$N:$N,raw_transmission_flows!$B:$B,mainzone,raw_transmission_flows!$C:$C,\"<>CAISO_NW_Hydro\",raw_transmission_flows!$D:$D,E$975)\n+SUMIFS(raw_transmission_flows!$O:$O,raw_transmission_flows!$B:$B,\"<>CAISO_NW_Hydro\",raw_transmission_flows!$C:$C,mainzone,raw_transmission_flows!$D:$D,E$975)\n+SUMIFS(raw_transmission_flows!$N:$N,raw_transmission_flows!$B:$B,\"CAISO_NW_Hydro\",raw_transmission_flows!$C:$C,\"NW\",raw_transmission_flows!$D:$D,E$975)\n+SUMIFS(raw_transmission_flows!$O:$O,raw_transmission_flows!$B:$B,\"NW\",raw_transmission_flows!$C:$C,\"CAISO_NW_Hydro\",raw_transmission_flows!$D:$D,E$975))/1000000","v":0},{"$f":"-(SUMIFS(raw_transmission_flows!$N:$N,raw_transmission_flows!$B:$B,mainzone,raw_transmission_flows!$C:$C,\"<>CAISO_NW_Hydro\",raw_transmission_flows!$D:$D,F$975)\n+SUMIFS(raw_transmission_flows!$O:$O,raw_transmission_flows!$B:$B,\"<>CAISO_NW_Hydro\",raw_transmission_flows!$C:$C,mainzone,raw_transmission_flows!$D:$D,F$975)\n+SUMIFS(raw_transmission_flows!$N:$N,raw_transmission_flows!$B:$B,\"CAISO_NW_Hydro\",raw_transmission_flows!$C:$C,\"NW\",raw_transmission_flows!$D:$D,F$975)\n+SUMIFS(raw_transmission_flows!$O:$O,raw_transmission_flows!$B:$B,\"NW\",raw_transmission_flows!$C:$C,\"CAISO_NW_Hydro\",raw_transmission_flows!$D:$D,F$975))/1000000","v":0},{"$f":"-(SUMIFS(raw_transmission_flows!$N:$N,raw_transmission_flows!$B:$B,mainzone,raw_transmission_flows!$C:$C,\"<>CAISO_NW_Hydro\",raw_transmission_flows!$D:$D,G$975)\n+SUMIFS(raw_transmission_flows!$O:$O,raw_transmission_flows!$B:$B,\"<>CAISO_NW_Hydro\",raw_transmission_flows!$C:$C,mainzone,raw_transmission_flows!$D:$D,G$975)\n+SUMIFS(raw_transmission_flows!$N:$N,raw_transmission_flows!$B:$B,\"CAISO_NW_Hydro\",raw_transmission_flows!$C:$C,\"NW\",raw_transmission_flows!$D:$D,G$975)\n+SUMIFS(raw_transmission_flows!$O:$O,raw_transmission_flows!$B:$B,\"NW\",raw_transmission_flows!$C:$C,\"CAISO_NW_Hydro\",raw_transmission_flows!$D:$D,G$975))/1000000","v":0},{"$f":"-(SUMIFS(raw_transmission_flows!$N:$N,raw_transmission_flows!$B:$B,mainzone,raw_transmission_flows!$C:$C,\"<>CAISO_NW_Hydro\",raw_transmission_flows!$D:$D,H$975)\n+SUMIFS(raw_transmission_flows!$O:$O,raw_transmission_flows!$B:$B,\"<>CAISO_NW_Hydro\",raw_transmission_flows!$C:$C,mainzone,raw_transmission_flows!$D:$D,H$975)\n+SUMIFS(raw_transmission_flows!$N:$N,raw_transmission_flows!$B:$B,\"CAISO_NW_Hydro\",raw_transmission_flows!$C:$C,\"NW\",raw_transmission_flows!$D:$D,H$975)\n+SUMIFS(raw_transmission_flows!$O:$O,raw_transmission_flows!$B:$B,\"NW\",raw_transmission_flows!$C:$C,\"CAISO_NW_Hydro\",raw_transmission_flows!$D:$D,H$975))/1000000","v":0},{"$f":"-(SUMIFS(raw_transmission_flows!$N:$N,raw_transmission_flows!$B:$B,mainzone,raw_transmission_flows!$C:$C,\"<>CAISO_NW_Hydro\",raw_transmission_flows!$D:$D,I$975)\n+SUMIFS(raw_transmission_flows!$O:$O,raw_transmission_flows!$B:$B,\"<>CAISO_NW_Hydro\",raw_transmission_flows!$C:$C,mainzone,raw_transmission_flows!$D:$D,I$975)\n+SUMIFS(raw_transmission_flows!$N:$N,raw_transmission_flows!$B:$B,\"CAISO_NW_Hydro\",raw_transmission_flows!$C:$C,\"NW\",raw_transmission_flows!$D:$D,I$975)\n+SUMIFS(raw_transmission_flows!$O:$O,raw_transmission_flows!$B:$B,\"NW\",raw_transmission_flows!$C:$C,\"CAISO_NW_Hydro\",raw_transmission_flows!$D:$D,I$975))/1000000","v":0},{"$f":"-(SUMIFS(raw_transmission_flows!$N:$N,raw_transmission_flows!$B:$B,mainzone,raw_transmission_flows!$C:$C,\"<>CAISO_NW_Hydro\",raw_transmission_flows!$D:$D,J$975)\n+SUMIFS(raw_transmission_flows!$O:$O,raw_transmission_flows!$B:$B,\"<>CAISO_NW_Hydro\",raw_transmission_flows!$C:$C,mainzone,raw_transmission_flows!$D:$D,J$975)\n+SUMIFS(raw_transmission_flows!$N:$N,raw_transmission_flows!$B:$B,\"CAISO_NW_Hydro\",raw_transmission_flows!$C:$C,\"NW\",raw_transmission_flows!$D:$D,J$975)\n+SUMIFS(raw_transmission_flows!$O:$O,raw_transmission_flows!$B:$B,\"NW\",raw_transmission_flows!$C:$C,\"CAISO_NW_Hydro\",raw_transmission_flows!$D:$D,J$975))/1000000","v":-58.192432660376966},{"$f":"-(SUMIFS(raw_transmission_flows!$N:$N,raw_transmission_flows!$B:$B,mainzone,raw_transmission_flows!$C:$C,\"<>CAISO_NW_Hydro\",raw_transmission_flows!$D:$D,K$975)\n+SUMIFS(raw_transmission_flows!$O:$O,raw_transmission_flows!$B:$B,\"<>CAISO_NW_Hydro\",raw_transmission_flows!$C:$C,mainzone,raw_transmission_flows!$D:$D,K$975)\n+SUMIFS(raw_transmission_flows!$N:$N,raw_transmission_flows!$B:$B,\"CAISO_NW_Hydro\",raw_transmission_flows!$C:$C,\"NW\",raw_transmission_flows!$D:$D,K$975)\n+SUMIFS(raw_transmission_flows!$O:$O,raw_transmission_flows!$B:$B,\"NW\",raw_transmission_flows!$C:$C,\"CAISO_NW_Hydro\",raw_transmission_flows!$D:$D,K$975))/1000000","v":-47.644104025101576},{"$f":"-(SUMIFS(raw_transmission_flows!$N:$N,raw_transmission_flows!$B:$B,mainzone,raw_transmission_flows!$C:$C,\"<>CAISO_NW_Hydro\",raw_transmission_flows!$D:$D,L$975)\n+SUMIFS(raw_transmission_flows!$O:$O,raw_transmission_flows!$B:$B,\"<>CAISO_NW_Hydro\",raw_transmission_flows!$C:$C,mainzone,raw_transmission_flows!$D:$D,L$975)\n+SUMIFS(raw_transmission_flows!$N:$N,raw_transmission_flows!$B:$B,\"CAISO_NW_Hydro\",raw_transmission_flows!$C:$C,\"NW\",raw_transmission_flows!$D:$D,L$975)\n+SUMIFS(raw_transmission_flows!$O:$O,raw_transmission_flows!$B:$B,\"NW\",raw_transmission_flows!$C:$C,\"CAISO_NW_Hydro\",raw_transmission_flows!$D:$D,L$975))/1000000","v":-74.050837980506145},{"$f":"-(SUMIFS(raw_transmission_flows!$N:$N,raw_transmission_flows!$B:$B,mainzone,raw_transmission_flows!$C:$C,\"<>CAISO_NW_Hydro\",raw_transmission_flows!$D:$D,M$975)\n+SUMIFS(raw_transmission_flows!$O:$O,raw_transmission_flows!$B:$B,\"<>CAISO_NW_Hydro\",raw_transmission_flows!$C:$C,mainzone,raw_transmission_flows!$D:$D,M$975)\n+SUMIFS(raw_transmission_flows!$N:$N,raw_transmission_flows!$B:$B,\"CAISO_NW_Hydro\",raw_transmission_flows!$C:$C,\"NW\",raw_transmission_flows!$D:$D,M$975)\n+SUMIFS(raw_transmission_flows!$O:$O,raw_transmission_flows!$B:$B,\"NW\",raw_transmission_flows!$C:$C,\"CAISO_NW_Hydro\",raw_transmission_flows!$D:$D,M$975))/1000000","v":-81.168010649717331},{"$f":"-(SUMIFS(raw_transmission_flows!$N:$N,raw_transmission_flows!$B:$B,mainzone,raw_transmission_flows!$C:$C,\"<>CAISO_NW_Hydro\",raw_transmission_flows!$D:$D,N$975)\n+SUMIFS(raw_transmission_flows!$O:$O,raw_transmission_flows!$B:$B,\"<>CAISO_NW_Hydro\",raw_transmission_flows!$C:$C,mainzone,raw_transmission_flows!$D:$D,N$975)\n+SUMIFS(raw_transmission_flows!$N:$N,raw_transmission_flows!$B:$B,\"CAISO_NW_Hydro\",raw_transmission_flows!$C:$C,\"NW\",raw_transmission_flows!$D:$D,N$975)\n+SUMIFS(raw_transmission_flows!$O:$O,raw_transmission_flows!$B:$B,\"NW\",raw_transmission_flows!$C:$C,\"CAISO_NW_Hydro\",raw_transmission_flows!$D:$D,N$975))/1000000","v":-77.295087260087456},{"$f":"-(SUMIFS(raw_transmission_flows!$N:$N,raw_transmission_flows!$B:$B,mainzone,raw_transmission_flows!$C:$C,\"<>CAISO_NW_Hydro\",raw_transmission_flows!$D:$D,O$975)\n+SUMIFS(raw_transmission_flows!$O:$O,raw_transmission_flows!$B:$B,\"<>CAISO_NW_Hydro\",raw_transmission_flows!$C:$C,mainzone,raw_transmission_flows!$D:$D,O$975)\n+SUMIFS(raw_transmission_flows!$N:$N,raw_transmission_flows!$B:$B,\"CAISO_NW_Hydro\",raw_transmission_flows!$C:$C,\"NW\",raw_transmission_flows!$D:$D,O$975)\n+SUMIFS(raw_transmission_flows!$O:$O,raw_transmission_flows!$B:$B,\"NW\",raw_transmission_flows!$C:$C,\"CAISO_NW_Hydro\",raw_transmission_flows!$D:$D,O$975))/1000000","v":0},{"$f":"-(SUMIFS(raw_transmission_flows!$N:$N,raw_transmission_flows!$B:$B,mainzone,raw_transmission_flows!$C:$C,\"<>CAISO_NW_Hydro\",raw_transmission_flows!$D:$D,P$975)\n+SUMIFS(raw_transmission_flows!$O:$O,raw_transmission_flows!$B:$B,\"<>CAISO_NW_Hydro\",raw_transmission_flows!$C:$C,mainzone,raw_transmission_flows!$D:$D,P$975)\n+SUMIFS(raw_transmission_flows!$N:$N,raw_transmission_flows!$B:$B,\"CAISO_NW_Hydro\",raw_transmission_flows!$C:$C,\"NW\",raw_transmission_flows!$D:$D,P$975)\n+SUMIFS(raw_transmission_flows!$O:$O,raw_transmission_flows!$B:$B,\"NW\",raw_transmission_flows!$C:$C,\"CAISO_NW_Hydro\",raw_transmission_flows!$D:$D,P$975))/1000000","v":-55.786953841741273},{"$f":"-(SUMIFS(raw_transmission_flows!$N:$N,raw_transmission_flows!$B:$B,mainzone,raw_transmission_flows!$C:$C,\"<>CAISO_NW_Hydro\",raw_transmission_flows!$D:$D,Q$975)\n+SUMIFS(raw_transmission_flows!$O:$O,raw_transmission_flows!$B:$B,\"<>CAISO_NW_Hydro\",raw_transmission_flows!$C:$C,mainzone,raw_transmission_flows!$D:$D,Q$975)\n+SUMIFS(raw_transmission_flows!$N:$N,raw_transmission_flows!$B:$B,\"CAISO_NW_Hydro\",raw_transmission_flows!$C:$C,\"NW\",raw_transmission_flows!$D:$D,Q$975)\n+SUMIFS(raw_transmission_flows!$O:$O,raw_transmission_flows!$B:$B,\"NW\",raw_transmission_flows!$C:$C,\"CAISO_NW_Hydro\",raw_transmission_flows!$D:$D,Q$975))/1000000","v":0},{"$f":"-(SUMIFS(raw_transmission_flows!$N:$N,raw_transmission_flows!$B:$B,mainzone,raw_transmission_flows!$C:$C,\"<>CAISO_NW_Hydro\",raw_transmission_flows!$D:$D,R$975)\n+SUMIFS(raw_transmission_flows!$O:$O,raw_transmission_flows!$B:$B,\"<>CAISO_NW_Hydro\",raw_transmission_flows!$C:$C,mainzone,raw_transmission_flows!$D:$D,R$975)\n+SUMIFS(raw_transmission_flows!$N:$N,raw_transmission_flows!$B:$B,\"CAISO_NW_Hydro\",raw_transmission_flows!$C:$C,\"NW\",raw_transmission_flows!$D:$D,R$975)\n+SUMIFS(raw_transmission_flows!$O:$O,raw_transmission_flows!$B:$B,\"NW\",raw_transmission_flows!$C:$C,\"CAISO_NW_Hydro\",raw_transmission_flows!$D:$D,R$975))/1000000","v":0},{"$f":"-(SUMIFS(raw_transmission_flows!$N:$N,raw_transmission_flows!$B:$B,mainzone,raw_transmission_flows!$C:$C,\"<>CAISO_NW_Hydro\",raw_transmission_flows!$D:$D,S$975)\n+SUMIFS(raw_transmission_flows!$O:$O,raw_transmission_flows!$B:$B,\"<>CAISO_NW_Hydro\",raw_transmission_flows!$C:$C,mainzone,raw_transmission_flows!$D:$D,S$975)\n+SUMIFS(raw_transmission_flows!$N:$N,raw_transmission_flows!$B:$B,\"CAISO_NW_Hydro\",raw_transmission_flows!$C:$C,\"NW\",raw_transmission_flows!$D:$D,S$975)\n+SUMIFS(raw_transmission_flows!$O:$O,raw_transmission_flows!$B:$B,\"NW\",raw_transmission_flows!$C:$C,\"CAISO_NW_Hydro\",raw_transmission_flows!$D:$D,S$975))/1000000","v":0},{"$f":"-(SUMIFS(raw_transmission_flows!$N:$N,raw_transmission_flows!$B:$B,mainzone,raw_transmission_flows!$C:$C,\"<>CAISO_NW_Hydro\",raw_transmission_flows!$D:$D,T$975)\n+SUMIFS(raw_transmission_flows!$O:$O,raw_transmission_flows!$B:$B,\"<>CAISO_NW_Hydro\",raw_transmission_flows!$C:$C,mainzone,raw_transmission_flows!$D:$D,T$975)\n+SUMIFS(raw_transmission_flows!$N:$N,raw_transmission_flows!$B:$B,\"CAISO_NW_Hydro\",raw_transmission_flows!$C:$C,\"NW\",raw_transmission_flows!$D:$D,T$975)\n+SUMIFS(raw_transmission_flows!$O:$O,raw_transmission_flows!$B:$B,\"NW\",raw_transmission_flows!$C:$C,\"CAISO_NW_Hydro\",raw_transmission_flows!$D:$D,T$975))/1000000","v":-105.88057941337836},{"$f":"-(SUMIFS(raw_transmission_flows!$N:$N,raw_transmission_flows!$B:$B,mainzone,raw_transmission_flows!$C:$C,\"<>CAISO_NW_Hydro\",raw_transmission_flows!$D:$D,U$975)\n+SUMIFS(raw_transmission_flows!$O:$O,raw_transmission_flows!$B:$B,\"<>CAISO_NW_Hydro\",raw_transmission_flows!$C:$C,mainzone,raw_transmission_flows!$D:$D,U$975)\n+SUMIFS(raw_transmission_flows!$N:$N,raw_transmission_flows!$B:$B,\"CAISO_NW_Hydro\",raw_transmission_flows!$C:$C,\"NW\",raw_transmission_flows!$D:$D,U$975)\n+SUMIFS(raw_transmission_flows!$O:$O,raw_transmission_flows!$B:$B,\"NW\",raw_transmission_flows!$C:$C,\"CAISO_NW_Hydro\",raw_transmission_flows!$D:$D,U$975))/1000000","v":0},{"$f":"-(SUMIFS(raw_transmission_flows!$N:$N,raw_transmission_flows!$B:$B,mainzone,raw_transmission_flows!$C:$C,\"<>CAISO_NW_Hydro\",raw_transmission_flows!$D:$D,V$975)\n+SUMIFS(raw_transmission_flows!$O:$O,raw_transmission_flows!$B:$B,\"<>CAISO_NW_Hydro\",raw_transmission_flows!$C:$C,mainzone,raw_transmission_flows!$D:$D,V$975)\n+SUMIFS(raw_transmission_flows!$N:$N,raw_transmission_flows!$B:$B,\"CAISO_NW_Hydro\",raw_transmission_flows!$C:$C,\"NW\",raw_transmission_flows!$D:$D,V$975)\n+SUMIFS(raw_transmission_flows!$O:$O,raw_transmission_flows!$B:$B,\"NW\",raw_transmission_flows!$C:$C,\"CAISO_NW_Hydro\",raw_transmission_flows!$D:$D,V$975))/1000000","v":0},{"$f":"-(SUMIFS(raw_transmission_flows!$N:$N,raw_transmission_flows!$B:$B,mainzone,raw_transmission_flows!$C:$C,\"<>CAISO_NW_Hydro\",raw_transmission_flows!$D:$D,W$975)\n+SUMIFS(raw_transmission_flows!$O:$O,raw_transmission_flows!$B:$B,\"<>CAISO_NW_Hydro\",raw_transmission_flows!$C:$C,mainzone,raw_transmission_flows!$D:$D,W$975)\n+SUMIFS(raw_transmission_flows!$N:$N,raw_transmission_flows!$B:$B,\"CAISO_NW_Hydro\",raw_transmission_flows!$C:$C,\"NW\",raw_transmission_flows!$D:$D,W$975)\n+SUMIFS(raw_transmission_flows!$O:$O,raw_transmission_flows!$B:$B,\"NW\",raw_transmission_flows!$C:$C,\"CAISO_NW_Hydro\",raw_transmission_flows!$D:$D,W$975))/1000000","v":0},{"$f":"-(SUMIFS(raw_transmission_flows!$N:$N,raw_transmission_flows!$B:$B,mainzone,raw_transmission_flows!$C:$C,\"<>CAISO_NW_Hydro\",raw_transmission_flows!$D:$D,X$975)\n+SUMIFS(raw_transmission_flows!$O:$O,raw_transmission_flows!$B:$B,\"<>CAISO_NW_Hydro\",raw_transmission_flows!$C:$C,mainzone,raw_transmission_flows!$D:$D,X$975)\n+SUMIFS(raw_transmission_flows!$N:$N,raw_transmission_flows!$B:$B,\"CAISO_NW_Hydro\",raw_transmission_flows!$C:$C,\"NW\",raw_transmission_flows!$D:$D,X$975)\n+SUMIFS(raw_transmission_flows!$O:$O,raw_transmission_flows!$B:$B,\"NW\",raw_transmission_flows!$C:$C,\"CAISO_NW_Hydro\",raw_transmission_flows!$D:$D,X$975))/1000000","v":0},{"$f":"-(SUMIFS(raw_transmission_flows!$N:$N,raw_transmission_flows!$B:$B,mainzone,raw_transmission_flows!$C:$C,\"<>CAISO_NW_Hydro\",raw_transmission_flows!$D:$D,Y$975)\n+SUMIFS(raw_transmission_flows!$O:$O,raw_transmission_flows!$B:$B,\"<>CAISO_NW_Hydro\",raw_transmission_flows!$C:$C,mainzone,raw_transmission_flows!$D:$D,Y$975)\n+SUMIFS(raw_transmission_flows!$N:$N,raw_transmission_flows!$B:$B,\"CAISO_NW_Hydro\",raw_transmission_flows!$C:$C,\"NW\",raw_transmission_flows!$D:$D,Y$975)\n+SUMIFS(raw_transmission_flows!$O:$O,raw_transmission_flows!$B:$B,\"NW\",raw_transmission_flows!$C:$C,\"CAISO_NW_Hydro\",raw_transmission_flows!$D:$D,Y$975))/1000000","v":0},{"$f":"-(SUMIFS(raw_transmission_flows!$N:$N,raw_transmission_flows!$B:$B,mainzone,raw_transmission_flows!$C:$C,\"<>CAISO_NW_Hydro\",raw_transmission_flows!$D:$D,Z$975)\n+SUMIFS(raw_transmission_flows!$O:$O,raw_transmission_flows!$B:$B,\"<>CAISO_NW_Hydro\",raw_transmission_flows!$C:$C,mainzone,raw_transmission_flows!$D:$D,Z$975)\n+SUMIFS(raw_transmission_flows!$N:$N,raw_transmission_flows!$B:$B,\"CAISO_NW_Hydro\",raw_transmission_flows!$C:$C,\"NW\",raw_transmission_flows!$D:$D,Z$975)\n+SUMIFS(raw_transmission_flows!$O:$O,raw_transmission_flows!$B:$B,\"NW\",raw_transmission_flows!$C:$C,\"CAISO_NW_Hydro\",raw_transmission_flows!$D:$D,Z$975))/1000000","v":0},{"$f":"-(SUMIFS(raw_transmission_flows!$N:$N,raw_transmission_flows!$B:$B,mainzone,raw_transmission_flows!$C:$C,\"<>CAISO_NW_Hydro\",raw_transmission_flows!$D:$D,AA$975)\n+SUMIFS(raw_transmission_flows!$O:$O,raw_transmission_flows!$B:$B,\"<>CAISO_NW_Hydro\",raw_transmission_flows!$C:$C,mainzone,raw_transmission_flows!$D:$D,AA$975)\n+SUMIFS(raw_transmission_flows!$N:$N,raw_transmission_flows!$B:$B,\"CAISO_NW_Hydro\",raw_transmission_flows!$C:$C,\"NW\",raw_transmission_flows!$D:$D,AA$975)\n+SUMIFS(raw_transmission_flows!$O:$O,raw_transmission_flows!$B:$B,\"NW\",raw_transmission_flows!$C:$C,\"CAISO_NW_Hydro\",raw_transmission_flows!$D:$D,AA$975))/1000000","v":0},{"$f":"-(SUMIFS(raw_transmission_flows!$N:$N,raw_transmission_flows!$B:$B,mainzone,raw_transmission_flows!$C:$C,\"<>CAISO_NW_Hydro\",raw_transmission_flows!$D:$D,AB$975)\n+SUMIFS(raw_transmission_flows!$O:$O,raw_transmission_flows!$B:$B,\"<>CAISO_NW_Hydro\",raw_transmission_flows!$C:$C,mainzone,raw_transmission_flows!$D:$D,AB$975)\n+SUMIFS(raw_transmission_flows!$N:$N,raw_transmission_flows!$B:$B,\"CAISO_NW_Hydro\",raw_transmission_flows!$C:$C,\"NW\",raw_transmission_flows!$D:$D,AB$975)\n+SUMIFS(raw_transmission_flows!$O:$O,raw_transmission_flows!$B:$B,\"NW\",raw_transmission_flows!$C:$C,\"CAISO_NW_Hydro\",raw_transmission_flows!$D:$D,AB$975))/1000000","v":0},{"$f":"-(SUMIFS(raw_transmission_flows!$N:$N,raw_transmission_flows!$B:$B,mainzone,raw_transmission_flows!$C:$C,\"<>CAISO_NW_Hydro\",raw_transmission_flows!$D:$D,AC$975)\n+SUMIFS(raw_transmission_flows!$O:$O,raw_transmission_flows!$B:$B,\"<>CAISO_NW_Hydro\",raw_transmission_flows!$C:$C,mainzone,raw_transmission_flows!$D:$D,AC$975)\n+SUMIFS(raw_transmission_flows!$N:$N,raw_transmission_flows!$B:$B,\"CAISO_NW_Hydro\",raw_transmission_flows!$C:$C,\"NW\",raw_transmission_flows!$D:$D,AC$975)\n+SUMIFS(raw_transmission_flows!$O:$O,raw_transmission_flows!$B:$B,\"NW\",raw_transmission_flows!$C:$C,\"CAISO_NW_Hydro\",raw_transmission_flows!$D:$D,AC$975))/1000000","v":0},{"$f":"-(SUMIFS(raw_transmission_flows!$N:$N,raw_transmission_flows!$B:$B,mainzone,raw_transmission_flows!$C:$C,\"<>CAISO_NW_Hydro\",raw_transmission_flows!$D:$D,AD$975)\n+SUMIFS(raw_transmission_flows!$O:$O,raw_transmission_flows!$B:$B,\"<>CAISO_NW_Hydro\",raw_transmission_flows!$C:$C,mainzone,raw_transmission_flows!$D:$D,AD$975)\n+SUMIFS(raw_transmission_flows!$N:$N,raw_transmission_flows!$B:$B,\"CAISO_NW_Hydro\",raw_transmission_flows!$C:$C,\"NW\",raw_transmission_flows!$D:$D,AD$975)\n+SUMIFS(raw_transmission_flows!$O:$O,raw_transmission_flows!$B:$B,\"NW\",raw_transmission_flows!$C:$C,\"CAISO_NW_Hydro\",raw_transmission_flows!$D:$D,AD$975))/1000000","v":0},{"$f":"-(SUMIFS(raw_transmission_flows!$N:$N,raw_transmission_flows!$B:$B,mainzone,raw_transmission_flows!$C:$C,\"<>CAISO_NW_Hydro\",raw_transmission_flows!$D:$D,AE$975)\n+SUMIFS(raw_transmission_flows!$O:$O,raw_transmission_flows!$B:$B,\"<>CAISO_NW_Hydro\",raw_transmission_flows!$C:$C,mainzone,raw_transmission_flows!$D:$D,AE$975)\n+SUMIFS(raw_transmission_flows!$N:$N,raw_transmission_flows!$B:$B,\"CAISO_NW_Hydro\",raw_transmission_flows!$C:$C,\"NW\",raw_transmission_flows!$D:$D,AE$975)\n+SUMIFS(raw_transmission_flows!$O:$O,raw_transmission_flows!$B:$B,\"NW\",raw_transmission_flows!$C:$C,\"CAISO_NW_Hydro\",raw_transmission_flows!$D:$D,AE$975))/1000000","v":0},{"$f":"-(SUMIFS(raw_transmission_flows!$N:$N,raw_transmission_flows!$B:$B,mainzone,raw_transmission_flows!$C:$C,\"<>CAISO_NW_Hydro\",raw_transmission_flows!$D:$D,AF$975)\n+SUMIFS(raw_transmission_flows!$O:$O,raw_transmission_flows!$B:$B,\"<>CAISO_NW_Hydro\",raw_transmission_flows!$C:$C,mainzone,raw_transmission_flows!$D:$D,AF$975)\n+SUMIFS(raw_transmission_flows!$N:$N,raw_transmission_flows!$B:$B,\"CAISO_NW_Hydro\",raw_transmission_flows!$C:$C,\"NW\",raw_transmission_flows!$D:$D,AF$975)\n+SUMIFS(raw_transmission_flows!$O:$O,raw_transmission_flows!$B:$B,\"NW\",raw_transmission_flows!$C:$C,\"CAISO_NW_Hydro\",raw_transmission_flows!$D:$D,AF$975))/1000000","v":0},{"$f":"-(SUMIFS(raw_transmission_flows!$N:$N,raw_transmission_flows!$B:$B,mainzone,raw_transmission_flows!$C:$C,\"<>CAISO_NW_Hydro\",raw_transmission_flows!$D:$D,AG$975)\n+SUMIFS(raw_transmission_flows!$O:$O,raw_transmission_flows!$B:$B,\"<>CAISO_NW_Hydro\",raw_transmission_flows!$C:$C,mainzone,raw_transmission_flows!$D:$D,AG$975)\n+SUMIFS(raw_transmission_flows!$N:$N,raw_transmission_flows!$B:$B,\"CAISO_NW_Hydro\",raw_transmission_flows!$C:$C,\"NW\",raw_transmission_flows!$D:$D,AG$975)\n+SUMIFS(raw_transmission_flows!$O:$O,raw_transmission_flows!$B:$B,\"NW\",raw_transmission_flows!$C:$C,\"CAISO_NW_Hydro\",raw_transmission_flows!$D:$D,AG$975))/1000000","v":0},{"$f":"-(SUMIFS(raw_transmission_flows!$N:$N,raw_transmission_flows!$B:$B,mainzone,raw_transmission_flows!$C:$C,\"<>CAISO_NW_Hydro\",raw_transmission_flows!$D:$D,AH$975)\n+SUMIFS(raw_transmission_flows!$O:$O,raw_transmission_flows!$B:$B,\"<>CAISO_NW_Hydro\",raw_transmission_flows!$C:$C,mainzone,raw_transmission_flows!$D:$D,AH$975)\n+SUMIFS(raw_transmission_flows!$N:$N,raw_transmission_flows!$B:$B,\"CAISO_NW_Hydro\",raw_transmission_flows!$C:$C,\"NW\",raw_transmission_flows!$D:$D,AH$975)\n+SUMIFS(raw_transmission_flows!$O:$O,raw_transmission_flows!$B:$B,\"NW\",raw_transmission_flows!$C:$C,\"CAISO_NW_Hydro\",raw_transmission_flows!$D:$D,AH$975))/1000000","v":0},{"$f":"-(SUMIFS(raw_transmission_flows!$N:$N,raw_transmission_flows!$B:$B,mainzone,raw_transmission_flows!$C:$C,\"<>CAISO_NW_Hydro\",raw_transmission_flows!$D:$D,AI$975)\n+SUMIFS(raw_transmission_flows!$O:$O,raw_transmission_flows!$B:$B,\"<>CAISO_NW_Hydro\",raw_transmission_flows!$C:$C,mainzone,raw_transmission_flows!$D:$D,AI$975)\n+SUMIFS(raw_transmission_flows!$N:$N,raw_transmission_flows!$B:$B,\"CAISO_NW_Hydro\",raw_transmission_flows!$C:$C,\"NW\",raw_transmission_flows!$D:$D,AI$975)\n+SUMIFS(raw_transmission_flows!$O:$O,raw_transmission_flows!$B:$B,\"NW\",raw_transmission_flows!$C:$C,\"CAISO_NW_Hydro\",raw_transmission_flows!$D:$D,AI$975))/1000000","v":-881.52815643439203},{"$f":"-(SUMIFS(raw_transmission_flows!$N:$N,raw_transmission_flows!$B:$B,mainzone,raw_transmission_flows!$C:$C,\"<>CAISO_NW_Hydro\",raw_transmission_flows!$D:$D,AJ$975)\n+SUMIFS(raw_transmission_flows!$O:$O,raw_transmission_flows!$B:$B,\"<>CAISO_NW_Hydro\",raw_transmission_flows!$C:$C,mainzone,raw_transmission_flows!$D:$D,AJ$975)\n+SUMIFS(raw_transmission_flows!$N:$N,raw_transmission_flows!$B:$B,\"CAISO_NW_Hydro\",raw_transmission_flows!$C:$C,\"NW\",raw_transmission_flows!$D:$D,AJ$975)\n+SUMIFS(raw_transmission_flows!$O:$O,raw_transmission_flows!$B:$B,\"NW\",raw_transmission_flows!$C:$C,\"CAISO_NW_Hydro\",raw_transmission_flows!$D:$D,AJ$975))/1000000","v":0},{"$f":"-(SUMIFS(raw_transmission_flows!$N:$N,raw_transmission_flows!$B:$B,mainzone,raw_transmission_flows!$C:$C,\"<>CAISO_NW_Hydro\",raw_transmission_flows!$D:$D,AK$975)\n+SUMIFS(raw_transmission_flows!$O:$O,raw_transmission_flows!$B:$B,\"<>CAISO_NW_Hydro\",raw_transmission_flows!$C:$C,mainzone,raw_transmission_flows!$D:$D,AK$975)\n+SUMIFS(raw_transmission_flows!$N:$N,raw_transmission_flows!$B:$B,\"CAISO_NW_Hydro\",raw_transmission_flows!$C:$C,\"NW\",raw_transmission_flows!$D:$D,AK$975)\n+SUMIFS(raw_transmission_flows!$O:$O,raw_transmission_flows!$B:$B,\"NW\",raw_transmission_flows!$C:$C,\"CAISO_NW_Hydro\",raw_transmission_flows!$D:$D,AK$975))/1000000","v":0},{"$f":"-(SUMIFS(raw_transmission_flows!$N:$N,raw_transmission_flows!$B:$B,mainzone,raw_transmission_flows!$C:$C,\"<>CAISO_NW_Hydro\",raw_transmission_flows!$D:$D,AL$975)\n+SUMIFS(raw_transmission_flows!$O:$O,raw_transmission_flows!$B:$B,\"<>CAISO_NW_Hydro\",raw_transmission_flows!$C:$C,mainzone,raw_transmission_flows!$D:$D,AL$975)\n+SUMIFS(raw_transmission_flows!$N:$N,raw_transmission_flows!$B:$B,\"CAISO_NW_Hydro\",raw_transmission_flows!$C:$C,\"NW\",raw_transmission_flows!$D:$D,AL$975)\n+SUMIFS(raw_transmission_flows!$O:$O,raw_transmission_flows!$B:$B,\"NW\",raw_transmission_flows!$C:$C,\"CAISO_NW_Hydro\",raw_transmission_flows!$D:$D,AL$975))/1000000","v":0},{"$f":"-(SUMIFS(raw_transmission_flows!$N:$N,raw_transmission_flows!$B:$B,mainzone,raw_transmission_flows!$C:$C,\"<>CAISO_NW_Hydro\",raw_transmission_flows!$D:$D,AM$975)\n+SUMIFS(raw_transmission_flows!$O:$O,raw_transmission_flows!$B:$B,\"<>CAISO_NW_Hydro\",raw_transmission_flows!$C:$C,mainzone,raw_transmission_flows!$D:$D,AM$975)\n+SUMIFS(raw_transmission_flows!$N:$N,raw_transmission_flows!$B:$B,\"CAISO_NW_Hydro\",raw_transmission_flows!$C:$C,\"NW\",raw_transmission_flows!$D:$D,AM$975)\n+SUMIFS(raw_transmission_flows!$O:$O,raw_transmission_flows!$B:$B,\"NW\",raw_transmission_flows!$C:$C,\"CAISO_NW_Hydro\",raw_transmission_flows!$D:$D,AM$975))/1000000","v":0},{"$f":"-(SUMIFS(raw_transmission_flows!$N:$N,raw_transmission_flows!$B:$B,mainzone,raw_transmission_flows!$C:$C,\"<>CAISO_NW_Hydro\",raw_transmission_flows!$D:$D,AN$975)\n+SUMIFS(raw_transmission_flows!$O:$O,raw_transmission_flows!$B:$B,\"<>CAISO_NW_Hydro\",raw_transmission_flows!$C:$C,mainzone,raw_transmission_flows!$D:$D,AN$975)\n+SUMIFS(raw_transmission_flows!$N:$N,raw_transmission_flows!$B:$B,\"CAISO_NW_Hydro\",raw_transmission_flows!$C:$C,\"NW\",raw_transmission_flows!$D:$D,AN$975)\n+SUMIFS(raw_transmission_flows!$O:$O,raw_transmission_flows!$B:$B,\"NW\",raw_transmission_flows!$C:$C,\"CAISO_NW_Hydro\",raw_transmission_flows!$D:$D,AN$975))/1000000","v":0}]
[null,null,"Energy Credit for non-CAISO Renewables Contracted to CAISO","$MM",{"$f":"-SUMIFS(raw_annual_unbundled_rps_purcha!$D:$D,raw_annual_unbundled_rps_purcha!$A:$A,\"<>\"&mainzone,raw_annual_unbundled_rps_purcha!$B:$B,E$975)/1000000","v":0},{"$f":"-SUMIFS(raw_annual_unbundled_rps_purcha!$D:$D,raw_annual_unbundled_rps_purcha!$A:$A,\"<>\"&mainzone,raw_annual_unbundled_rps_purcha!$B:$B,F$975)/1000000","v":0},{"$f":"-SUMIFS(raw_annual_unbundled_rps_purcha!$D:$D,raw_annual_unbundled_rps_purcha!$A:$A,\"<>\"&mainzone,raw_annual_unbundled_rps_purcha!$B:$B,G$975)/1000000","v":0},{"$f":"-SUMIFS(raw_annual_unbundled_rps_purcha!$D:$D,raw_annual_unbundled_rps_purcha!$A:$A,\"<>\"&mainzone,raw_annual_unbundled_rps_purcha!$B:$B,H$975)/1000000","v":0},{"$f":"-SUMIFS(raw_annual_unbundled_rps_purcha!$D:$D,raw_annual_unbundled_rps_purcha!$A:$A,\"<>\"&mainzone,raw_annual_unbundled_rps_purcha!$B:$B,I$975)/1000000","v":0},{"$f":"-SUMIFS(raw_annual_unbundled_rps_purcha!$D:$D,raw_annual_unbundled_rps_purcha!$A:$A,\"<>\"&mainzone,raw_annual_unbundled_rps_purcha!$B:$B,J$975)/1000000","v":-117.48847283515251},{"$f":"-SUMIFS(raw_annual_unbundled_rps_purcha!$D:$D,raw_annual_unbundled_rps_purcha!$A:$A,\"<>\"&mainzone,raw_annual_unbundled_rps_purcha!$B:$B,K$975)/1000000","v":-120.41731090169641},{"$f":"-SUMIFS(raw_annual_unbundled_rps_purcha!$D:$D,raw_annual_unbundled_rps_purcha!$A:$A,\"<>\"&mainzone,raw_annual_unbundled_rps_purcha!$B:$B,L$975)/1000000","v":-118.96797767488415},{"$f":"-SUMIFS(raw_annual_unbundled_rps_purcha!$D:$D,raw_annual_unbundled_rps_purcha!$A:$A,\"<>\"&mainzone,raw_annual_unbundled_rps_purcha!$B:$B,M$975)/1000000","v":-119.26300983966003},{"$f":"-SUMIFS(raw_annual_unbundled_rps_purcha!$D:$D,raw_annual_unbundled_rps_purcha!$A:$A,\"<>\"&mainzone,raw_annual_unbundled_rps_purcha!$B:$B,N$975)/1000000","v":-121.06373477937092},{"$f":"-SUMIFS(raw_annual_unbundled_rps_purcha!$D:$D,raw_annual_unbundled_rps_purcha!$A:$A,\"<>\"&mainzone,raw_annual_unbundled_rps_purcha!$B:$B,O$975)/1000000","v":0},{"$f":"-SUMIFS(raw_annual_unbundled_rps_purcha!$D:$D,raw_annual_unbundled_rps_purcha!$A:$A,\"<>\"&mainzone,raw_annual_unbundled_rps_purcha!$B:$B,P$975)/1000000","v":-122.2262060240916},{"$f":"-SUMIFS(raw_annual_unbundled_rps_purcha!$D:$D,raw_annual_unbundled_rps_purcha!$A:$A,\"<>\"&mainzone,raw_annual_unbundled_rps_purcha!$B:$B,Q$975)/1000000","v":0},{"$f":"-SUMIFS(raw_annual_unbundled_rps_purcha!$D:$D,raw_annual_unbundled_rps_purcha!$A:$A,\"<>\"&mainzone,raw_annual_unbundled_rps_purcha!$B:$B,R$975)/1000000","v":0},{"$f":"-SUMIFS(raw_annual_unbundled_rps_purcha!$D:$D,raw_annual_unbundled_rps_purcha!$A:$A,\"<>\"&mainzone,raw_annual_unbundled_rps_purcha!$B:$B,S$975)/1000000","v":0},{"$f":"-SUMIFS(raw_annual_unbundled_rps_purcha!$D:$D,raw_annual_unbundled_rps_purcha!$A:$A,\"<>\"&mainzone,raw_annual_unbundled_rps_purcha!$B:$B,T$975)/1000000","v":-125.08908279301247},{"$f":"-SUMIFS(raw_annual_unbundled_rps_purcha!$D:$D,raw_annual_unbundled_rps_purcha!$A:$A,\"<>\"&mainzone,raw_annual_unbundled_rps_purcha!$B:$B,U$975)/1000000","v":0},{"$f":"-SUMIFS(raw_annual_unbundled_rps_purcha!$D:$D,raw_annual_unbundled_rps_purcha!$A:$A,\"<>\"&mainzone,raw_annual_unbundled_rps_purcha!$B:$B,V$975)/1000000","v":0},{"$f":"-SUMIFS(raw_annual_unbundled_rps_purcha!$D:$D,raw_annual_unbundled_rps_purcha!$A:$A,\"<>\"&mainzone,raw_annual_unbundled_rps_purcha!$B:$B,W$975)/1000000","v":0},{"$f":"-SUMIFS(raw_annual_unbundled_rps_purcha!$D:$D,raw_annual_unbundled_rps_purcha!$A:$A,\"<>\"&mainzone,raw_annual_unbundled_rps_purcha!$B:$B,X$975)/1000000","v":0},{"$f":"-SUMIFS(raw_annual_unbundled_rps_purcha!$D:$D,raw_annual_unbundled_rps_purcha!$A:$A,\"<>\"&mainzone,raw_annual_unbundled_rps_purcha!$B:$B,Y$975)/1000000","v":0},{"$f":"-SUMIFS(raw_annual_unbundled_rps_purcha!$D:$D,raw_annual_unbundled_rps_purcha!$A:$A,\"<>\"&mainzone,raw_annual_unbundled_rps_purcha!$B:$B,Z$975)/1000000","v":0},{"$f":"-SUMIFS(raw_annual_unbundled_rps_purcha!$D:$D,raw_annual_unbundled_rps_purcha!$A:$A,\"<>\"&mainzone,raw_annual_unbundled_rps_purcha!$B:$B,AA$975)/1000000","v":0},{"$f":"-SUMIFS(raw_annual_unbundled_rps_purcha!$D:$D,raw_annual_unbundled_rps_purcha!$A:$A,\"<>\"&mainzone,raw_annual_unbundled_rps_purcha!$B:$B,AB$975)/1000000","v":0},{"$f":"-SUMIFS(raw_annual_unbundled_rps_purcha!$D:$D,raw_annual_unbundled_rps_purcha!$A:$A,\"<>\"&mainzone,raw_annual_unbundled_rps_purcha!$B:$B,AC$975)/1000000","v":0},{"$f":"-SUMIFS(raw_annual_unbundled_rps_purcha!$D:$D,raw_annual_unbundled_rps_purcha!$A:$A,\"<>\"&mainzone,raw_annual_unbundled_rps_purcha!$B:$B,AD$975)/1000000","v":0},{"$f":"-SUMIFS(raw_annual_unbundled_rps_purcha!$D:$D,raw_annual_unbundled_rps_purcha!$A:$A,\"<>\"&mainzone,raw_annual_unbundled_rps_purcha!$B:$B,AE$975)/1000000","v":0},{"$f":"-SUMIFS(raw_annual_unbundled_rps_purcha!$D:$D,raw_annual_unbundled_rps_purcha!$A:$A,\"<>\"&mainzone,raw_annual_unbundled_rps_purcha!$B:$B,AF$975)/1000000","v":0},{"$f":"-SUMIFS(raw_annual_unbundled_rps_purcha!$D:$D,raw_annual_unbundled_rps_purcha!$A:$A,\"<>\"&mainzone,raw_annual_unbundled_rps_purcha!$B:$B,AG$975)/1000000","v":0},{"$f":"-SUMIFS(raw_annual_unbundled_rps_purcha!$D:$D,raw_annual_unbundled_rps_purcha!$A:$A,\"<>\"&mainzone,raw_annual_unbundled_rps_purcha!$B:$B,AH$975)/1000000","v":0},{"$f":"-SUMIFS(raw_annual_unbundled_rps_purcha!$D:$D,raw_annual_unbundled_rps_purcha!$A:$A,\"<>\"&mainzone,raw_annual_unbundled_rps_purcha!$B:$B,AI$975)/1000000","v":-133.24473616132323},{"$f":"-SUMIFS(raw_annual_unbundled_rps_purcha!$D:$D,raw_annual_unbundled_rps_purcha!$A:$A,\"<>\"&mainzone,raw_annual_unbundled_rps_purcha!$B:$B,AJ$975)/1000000","v":0},{"$f":"-SUMIFS(raw_annual_unbundled_rps_purcha!$D:$D,raw_annual_unbundled_rps_purcha!$A:$A,\"<>\"&mainzone,raw_annual_unbundled_rps_purcha!$B:$B,AK$975)/1000000","v":0},{"$f":"-SUMIFS(raw_annual_unbundled_rps_purcha!$D:$D,raw_annual_unbundled_rps_purcha!$A:$A,\"<>\"&mainzone,raw_annual_unbundled_rps_purcha!$B:$B,AL$975)/1000000","v":0},{"$f":"-SUMIFS(raw_annual_unbundled_rps_purcha!$D:$D,raw_annual_unbundled_rps_purcha!$A:$A,\"<>\"&mainzone,raw_annual_unbundled_rps_purcha!$B:$B,AM$975)/1000000","v":0},{"$f":"-SUMIFS(raw_annual_unbundled_rps_purcha!$D:$D,raw_annual_unbundled_rps_purcha!$A:$A,\"<>\"&mainzone,raw_annual_unbundled_rps_purcha!$B:$B,AN$975)/1000000","v":0}]
[null,null,"Total CAISO Operating Cost","$MM",{"$f":"SUM(E976:E980)","v":0},0,0,0,0,3594.2116266532962,3816.9069009344053,3313.37170520684,3303.8360027511644,3399.9557690630136,0,3507.2733039893678,0,0,0,3026.1984352013865,0,0,0,0,0,0,0,0,0,0,0,0,0,0,832.98297994725328,0,0,0,0,0]
[null,null,"Market Purchases","GWh",{"$f":"SUMIFS(raw_transmission_flows!$F:$F,raw_transmission_flows!$C:$C,mainzone,raw_transmission_flows!$D:$D,E$975)/1000","v":0},{"$f":"SUMIFS(raw_transmission_flows!$F:$F,raw_transmission_flows!$C:$C,mainzone,raw_transmission_flows!$D:$D,F$975)/1000","v":0},{"$f":"SUMIFS(raw_transmission_flows!$F:$F,raw_transmission_flows!$C:$C,mainzone,raw_transmission_flows!$D:$D,G$975)/1000","v":0},{"$f":"SUMIFS(raw_transmission_flows!$F:$F,raw_transmission_flows!$C:$C,mainzone,raw_transmission_flows!$D:$D,H$975)/1000","v":0},{"$f":"SUMIFS(raw_transmission_flows!$F:$F,raw_transmission_flows!$C:$C,mainzone,raw_transmission_flows!$D:$D,I$975)/1000","v":0},{"$f":"SUMIFS(raw_transmission_flows!$F:$F,raw_transmission_flows!$C:$C,mainzone,raw_transmission_flows!$D:$D,J$975)/1000","v":37836.678636048811},{"$f":"SUMIFS(raw_transmission_flows!$F:$F,raw_transmission_flows!$C:$C,mainzone,raw_transmission_flows!$D:$D,K$975)/1000","v":36031.117803360619},{"$f":"SUMIFS(raw_transmission_flows!$F:$F,raw_transmission_flows!$C:$C,mainzone,raw_transmission_flows!$D:$D,L$975)/1000","v":34338.042642078573},{"$f":"SUMIFS(raw_transmission_flows!$F:$F,raw_transmission_flows!$C:$C,mainzone,raw_transmission_flows!$D:$D,M$975)/1000","v":35638.597139762067},{"$f":"SUMIFS(raw_transmission_flows!$F:$F,raw_transmission_flows!$C:$C,mainzone,raw_transmission_flows!$D:$D,N$975)/1000","v":38414.678486742589},{"$f":"SUMIFS(raw_transmission_flows!$F:$F,raw_transmission_flows!$C:$C,mainzone,raw_transmission_flows!$D:$D,O$975)/1000","v":0},{"$f":"SUMIFS(raw_transmission_flows!$F:$F,raw_transmission_flows!$C:$C,mainzone,raw_transmission_flows!$D:$D,P$975)/1000","v":34883.542772611916},{"$f":"SUMIFS(raw_transmission_flows!$F:$F,raw_transmission_flows!$C:$C,mainzone,raw_transmission_flows!$D:$D,Q$975)/1000","v":0},{"$f":"SUMIFS(raw_transmission_flows!$F:$F,raw_transmission_flows!$C:$C,mainzone,raw_transmission_flows!$D:$D,R$975)/1000","v":0},{"$f":"SUMIFS(raw_transmission_flows!$F:$F,raw_transmission_flows!$C:$C,mainzone,raw_transmission_flows!$D:$D,S$975)/1000","v":0},{"$f":"SUMIFS(raw_transmission_flows!$F:$F,raw_transmission_flows!$C:$C,mainzone,raw_transmission_flows!$D:$D,T$975)/1000","v":33033.962506790871},{"$f":"SUMIFS(raw_transmission_flows!$F:$F,raw_transmission_flows!$C:$C,mainzone,raw_transmission_flows!$D:$D,U$975)/1000","v":0},{"$f":"SUMIFS(raw_transmission_flows!$F:$F,raw_transmission_flows!$C:$C,mainzone,raw_transmission_flows!$D:$D,V$975)/1000","v":0},{"$f":"SUMIFS(raw_transmission_flows!$F:$F,raw_transmission_flows!$C:$C,mainzone,raw_transmission_flows!$D:$D,W$975)/1000","v":0},{"$f":"SUMIFS(raw_transmission_flows!$F:$F,raw_transmission_flows!$C:$C,mainzone,raw_transmission_flows!$D:$D,X$975)/1000","v":0},{"$f":"SUMIFS(raw_transmission_flows!$F:$F,raw_transmission_flows!$C:$C,mainzone,raw_transmission_flows!$D:$D,Y$975)/1000","v":0},{"$f":"SUMIFS(raw_transmission_flows!$F:$F,raw_transmission_flows!$C:$C,mainzone,raw_transmission_flows!$D:$D,Z$975)/1000","v":0},{"$f":"SUMIFS(raw_transmission_flows!$F:$F,raw_transmission_flows!$C:$C,mainzone,raw_transmission_flows!$D:$D,AA$975)/1000","v":0},{"$f":"SUMIFS(raw_transmission_flows!$F:$F,raw_transmission_flows!$C:$C,mainzone,raw_transmission_flows!$D:$D,AB$975)/1000","v":0},{"$f":"SUMIFS(raw_transmission_flows!$F:$F,raw_transmission_flows!$C:$C,mainzone,raw_transmission_flows!$D:$D,AC$975)/1000","v":0},{"$f":"SUMIFS(raw_transmission_flows!$F:$F,raw_transmission_flows!$C:$C,mainzone,raw_transmission_flows!$D:$D,AD$975)/1000","v":0},{"$f":"SUMIFS(raw_transmission_flows!$F:$F,raw_transmission_flows!$C:$C,mainzone,raw_transmission_flows!$D:$D,AE$975)/1000","v":0},{"$f":"SUMIFS(raw_transmission_flows!$F:$F,raw_transmission_flows!$C:$C,mainzone,raw_transmission_flows!$D:$D,AF$975)/1000","v":0},{"$f":"SUMIFS(raw_transmission_flows!$F:$F,raw_transmission_flows!$C:$C,mainzone,raw_transmission_flows!$D:$D,AG$975)/1000","v":0},{"$f":"SUMIFS(raw_transmission_flows!$F:$F,raw_transmission_flows!$C:$C,mainzone,raw_transmission_flows!$D:$D,AH$975)/1000","v":0},{"$f":"SUMIFS(raw_transmission_flows!$F:$F,raw_transmission_flows!$C:$C,mainzone,raw_transmission_flows!$D:$D,AI$975)/1000","v":9648.9991964680994},{"$f":"SUMIFS(raw_transmission_flows!$F:$F,raw_transmission_flows!$C:$C,mainzone,raw_transmission_flows!$D:$D,AJ$975)/1000","v":0},{"$f":"SUMIFS(raw_transmission_flows!$F:$F,raw_transmission_flows!$C:$C,mainzone,raw_transmission_flows!$D:$D,AK$975)/1000","v":0},{"$f":"SUMIFS(raw_transmission_flows!$F:$F,raw_transmission_flows!$C:$C,mainzone,raw_transmission_flows!$D:$D,AL$975)/1000","v":0},{"$f":"SUMIFS(raw_transmission_flows!$F:$F,raw_transmission_flows!$C:$C,mainzone,raw_transmission_flows!$D:$D,AM$975)/1000","v":0},{"$f":"SUMIFS(raw_transmission_flows!$F:$F,raw_transmission_flows!$C:$C,mainzone,raw_transmission_flows!$D:$D,AN$975)/1000","v":0}]
[null,null,"Market Sales","GWh",{"$f":"-SUMIFS(raw_transmission_flows!$G:$G,raw_transmission_flows!$C:$C,mainzone,raw_transmission_flows!$D:$D,E$975)/1000","v":0},{"$f":"-SUMIFS(raw_transmission_flows!$G:$G,raw_transmission_flows!$C:$C,mainzone,raw_transmission_flows!$D:$D,F$975)/1000","v":0},{"$f":"-SUMIFS(raw_transmission_flows!$G:$G,raw_transmission_flows!$C:$C,mainzone,raw_transmission_flows!$D:$D,G$975)/1000","v":0},{"$f":"-SUMIFS(raw_transmission_flows!$G:$G,raw_transmission_flows!$C:$C,mainzone,raw_transmission_flows!$D:$D,H$975)/1000","v":0},{"$f":"-SUMIFS(raw_transmission_flows!$G:$G,raw_transmission_flows!$C:$C,mainzone,raw_transmission_flows!$D:$D,I$975)/1000","v":0},{"$f":"-SUMIFS(raw_transmission_flows!$G:$G,raw_transmission_flows!$C:$C,mainzone,raw_transmission_flows!$D:$D,J$975)/1000","v":-856.87940436737824},{"$f":"-SUMIFS(raw_transmission_flows!$G:$G,raw_transmission_flows!$C:$C,mainzone,raw_transmission_flows!$D:$D,K$975)/1000","v":-705.78662968087497},{"$f":"-SUMIFS(raw_transmission_flows!$G:$G,raw_transmission_flows!$C:$C,mainzone,raw_transmission_flows!$D:$D,L$975)/1000","v":-1904.666474900306},{"$f":"-SUMIFS(raw_transmission_flows!$G:$G,raw_transmission_flows!$C:$C,mainzone,raw_transmission_flows!$D:$D,M$975)/1000","v":-2381.5635308699211},{"$f":"-SUMIFS(raw_transmission_flows!$G:$G,raw_transmission_flows!$C:$C,mainzone,raw_transmission_flows!$D:$D,N$975)/1000","v":-2284.5543217453173},{"$f":"-SUMIFS(raw_transmission_flows!$G:$G,raw_transmission_flows!$C:$C,mainzone,raw_transmission_flows!$D:$D,O$975)/1000","v":0},{"$f":"-SUMIFS(raw_transmission_flows!$G:$G,raw_transmission_flows!$C:$C,mainzone,raw_transmission_flows!$D:$D,P$975)/1000","v":-2220.1564582964911},{"$f":"-SUMIFS(raw_transmission_flows!$G:$G,raw_transmission_flows!$C:$C,mainzone,raw_transmission_flows!$D:$D,Q$975)/1000","v":0},{"$f":"-SUMIFS(raw_transmission_flows!$G:$G,raw_transmission_flows!$C:$C,mainzone,raw_transmission_flows!$D:$D,R$975)/1000","v":0},{"$f":"-SUMIFS(raw_transmission_flows!$G:$G,raw_transmission_flows!$C:$C,mainzone,raw_transmission_flows!$D:$D,S$975)/1000","v":0},{"$f":"-SUMIFS(raw_transmission_flows!$G:$G,raw_transmission_flows!$C:$C,mainzone,raw_transmission_flows!$D:$D,T$975)/1000","v":-4479.8370666371884},{"$f":"-SUMIFS(raw_transmission_flows!$G:$G,raw_transmission_flows!$C:$C,mainzone,raw_transmission_flows!$D:$D,U$975)/1000","v":0},{"$f":"-SUMIFS(raw_transmission_flows!$G:$G,raw_transmission_flows!$C:$C,mainzone,raw_transmission_flows!$D:$D,V$975)/1000","v":0},{"$f":"-SUMIFS(raw_transmission_flows!$G:$G,raw_transmission_flows!$C:$C,mainzone,raw_transmission_flows!$D:$D,W$975)/1000","v":0},{"$f":"-SUMIFS(raw_transmission_flows!$G:$G,raw_transmission_flows!$C:$C,mainzone,raw_transmission_flows!$D:$D,X$975)/1000","v":0},{"$f":"-SUMIFS(raw_transmission_flows!$G:$G,raw_transmission_flows!$C:$C,mainzone,raw_transmission_flows!$D:$D,Y$975)/1000","v":0},{"$f":"-SUMIFS(raw_transmission_flows!$G:$G,raw_transmission_flows!$C:$C,mainzone,raw_transmission_flows!$D:$D,Z$975)/1000","v":0},{"$f":"-SUMIFS(raw_transmission_flows!$G:$G,raw_transmission_flows!$C:$C,mainzone,raw_transmission_flows!$D:$D,AA$975)/1000","v":0},{"$f":"-SUMIFS(raw_transmission_flows!$G:$G,raw_transmission_flows!$C:$C,mainzone,raw_transmission_flows!$D:$D,AB$975)/1000","v":0},{"$f":"-SUMIFS(raw_transmission_flows!$G:$G,raw_transmission_flows!$C:$C,mainzone,raw_transmission_flows!$D:$D,AC$975)/1000","v":0},{"$f":"-SUMIFS(raw_transmission_flows!$G:$G,raw_transmission_flows!$C:$C,mainzone,raw_transmission_flows!$D:$D,AD$975)/1000","v":0},{"$f":"-SUMIFS(raw_transmission_flows!$G:$G,raw_transmission_flows!$C:$C,mainzone,raw_transmission_flows!$D:$D,AE$975)/1000","v":0},{"$f":"-SUMIFS(raw_transmission_flows!$G:$G,raw_transmission_flows!$C:$C,mainzone,raw_transmission_flows!$D:$D,AF$975)/1000","v":0},{"$f":"-SUMIFS(raw_transmission_flows!$G:$G,raw_transmission_flows!$C:$C,mainzone,raw_transmission_flows!$D:$D,AG$975)/1000","v":0},{"$f":"-SUMIFS(raw_transmission_flows!$G:$G,raw_transmission_flows!$C:$C,mainzone,raw_transmission_flows!$D:$D,AH$975)/1000","v":0},{"$f":"-SUMIFS(raw_transmission_flows!$G:$G,raw_transmission_flows!$C:$C,mainzone,raw_transmission_flows!$D:$D,AI$975)/1000","v":-23688.703170100278},{"$f":"-SUMIFS(raw_transmission_flows!$G:$G,raw_transmission_flows!$C:$C,mainzone,raw_transmission_flows!$D:$D,AJ$975)/1000","v":0},{"$f":"-SUMIFS(raw_transmission_flows!$G:$G,raw_transmission_flows!$C:$C,mainzone,raw_transmission_flows!$D:$D,AK$975)/1000","v":0},{"$f":"-SUMIFS(raw_transmission_flows!$G:$G,raw_transmission_flows!$C:$C,mainzone,raw_transmission_flows!$D:$D,AL$975)/1000","v":0},{"$f":"-SUMIFS(raw_transmission_flows!$G:$G,raw_transmission_flows!$C:$C,mainzone,raw_transmission_flows!$D:$D,AM$975)/1000","v":0},{"$f":"-SUMIFS(raw_transmission_flows!$G:$G,raw_transmission_flows!$C:$C,mainzone,raw_transmission_flows!$D:$D,AN$975)/1000","v":0}]
[null,null,"Total OOS renewables contracted to CAISO","GWh",{"$f":"SUMIFS(raw_annual_unbundled_rps_purcha!$C:$C,raw_annual_unbundled_rps_purcha!$A:$A,\"<>\"&mainzone,raw_annual_unbundled_rps_purcha!$B:$B,E$975)/1000","v":0},{"$f":"SUMIFS(raw_annual_unbundled_rps_purcha!$C:$C,raw_annual_unbundled_rps_purcha!$A:$A,\"<>\"&mainzone,raw_annual_unbundled_rps_purcha!$B:$B,F$975)/1000","v":0},{"$f":"SUMIFS(raw_annual_unbundled_rps_purcha!$C:$C,raw_annual_unbundled_rps_purcha!$A:$A,\"<>\"&mainzone,raw_annual_unbundled_rps_purcha!$B:$B,G$975)/1000","v":0},{"$f":"SUMIFS(raw_annual_unbundled_rps_purcha!$C:$C,raw_annual_unbundled_rps_purcha!$A:$A,\"<>\"&mainzone,raw_annual_unbundled_rps_purcha!$B:$B,H$975)/1000","v":0},{"$f":"SUMIFS(raw_annual_unbundled_rps_purcha!$C:$C,raw_annual_unbundled_rps_purcha!$A:$A,\"<>\"&mainzone,raw_annual_unbundled_rps_purcha!$B:$B,I$975)/1000","v":0},{"$f":"SUMIFS(raw_annual_unbundled_rps_purcha!$C:$C,raw_annual_unbundled_rps_purcha!$A:$A,\"<>\"&mainzone,raw_annual_unbundled_rps_purcha!$B:$B,J$975)/1000","v":4814.6662119625034},{"$f":"SUMIFS(raw_annual_unbundled_rps_purcha!$C:$C,raw_annual_unbundled_rps_purcha!$A:$A,\"<>\"&mainzone,raw_annual_unbundled_rps_purcha!$B:$B,K$975)/1000","v":4508.0654777011632},{"$f":"SUMIFS(raw_annual_unbundled_rps_purcha!$C:$C,raw_annual_unbundled_rps_purcha!$A:$A,\"<>\"&mainzone,raw_annual_unbundled_rps_purcha!$B:$B,L$975)/1000","v":4490.3049216261297},{"$f":"SUMIFS(raw_annual_unbundled_rps_purcha!$C:$C,raw_annual_unbundled_rps_purcha!$A:$A,\"<>\"&mainzone,raw_annual_unbundled_rps_purcha!$B:$B,M$975)/1000","v":4490.6663133385355},{"$f":"SUMIFS(raw_annual_unbundled_rps_purcha!$C:$C,raw_annual_unbundled_rps_purcha!$A:$A,\"<>\"&mainzone,raw_annual_unbundled_rps_purcha!$B:$B,N$975)/1000","v":4521.5740804115385},{"$f":"SUMIFS(raw_annual_unbundled_rps_purcha!$C:$C,raw_annual_unbundled_rps_purcha!$A:$A,\"<>\"&mainzone,raw_annual_unbundled_rps_purcha!$B:$B,O$975)/1000","v":0},{"$f":"SUMIFS(raw_annual_unbundled_rps_purcha!$C:$C,raw_annual_unbundled_rps_purcha!$A:$A,\"<>\"&mainzone,raw_annual_unbundled_rps_purcha!$B:$B,P$975)/1000","v":4428.8307806194953},{"$f":"SUMIFS(raw_annual_unbundled_rps_purcha!$C:$C,raw_annual_unbundled_rps_purcha!$A:$A,\"<>\"&mainzone,raw_annual_unbundled_rps_purcha!$B:$B,Q$975)/1000","v":0},{"$f":"SUMIFS(raw_annual_unbundled_rps_purcha!$C:$C,raw_annual_unbundled_rps_purcha!$A:$A,\"<>\"&mainzone,raw_annual_unbundled_rps_purcha!$B:$B,R$975)/1000","v":0},{"$f":"SUMIFS(raw_annual_unbundled_rps_purcha!$C:$C,raw_annual_unbundled_rps_purcha!$A:$A,\"<>\"&mainzone,raw_annual_unbundled_rps_purcha!$B:$B,S$975)/1000","v":0},{"$f":"SUMIFS(raw_annual_unbundled_rps_purcha!$C:$C,raw_annual_unbundled_rps_purcha!$A:$A,\"<>\"&mainzone,raw_annual_unbundled_rps_purcha!$B:$B,T$975)/1000","v":4365.7631673358692},{"$f":"SUMIFS(raw_annual_unbundled_rps_purcha!$C:$C,raw_annual_unbundled_rps_purcha!$A:$A,\"<>\"&mainzone,raw_annual_unbundled_rps_purcha!$B:$B,U$975)/1000","v":0},{"$f":"SUMIFS(raw_annual_unbundled_rps_purcha!$C:$C,raw_annual_unbundled_rps_purcha!$A:$A,\"<>\"&mainzone,raw_annual_unbundled_rps_purcha!$B:$B,V$975)/1000","v":0},{"$f":"SUMIFS(raw_annual_unbundled_rps_purcha!$C:$C,raw_annual_unbundled_rps_purcha!$A:$A,\"<>\"&mainzone,raw_annual_unbundled_rps_purcha!$B:$B,W$975)/1000","v":0},{"$f":"SUMIFS(raw_annual_unbundled_rps_purcha!$C:$C,raw_annual_unbundled_rps_purcha!$A:$A,\"<>\"&mainzone,raw_annual_unbundled_rps_purcha!$B:$B,X$975)/1000","v":0},{"$f":"SUMIFS(raw_annual_unbundled_rps_purcha!$C:$C,raw_annual_unbundled_rps_purcha!$A:$A,\"<>\"&mainzone,raw_annual_unbundled_rps_purcha!$B:$B,Y$975)/1000","v":0},{"$f":"SUMIFS(raw_annual_unbundled_rps_purcha!$C:$C,raw_annual_unbundled_rps_purcha!$A:$A,\"<>\"&mainzone,raw_annual_unbundled_rps_purcha!$B:$B,Z$975)/1000","v":0},{"$f":"SUMIFS(raw_annual_unbundled_rps_purcha!$C:$C,raw_annual_unbundled_rps_purcha!$A:$A,\"<>\"&mainzone,raw_annual_unbundled_rps_purcha!$B:$B,AA$975)/1000","v":0},{"$f":"SUMIFS(raw_annual_unbundled_rps_purcha!$C:$C,raw_annual_unbundled_rps_purcha!$A:$A,\"<>\"&mainzone,raw_annual_unbundled_rps_purcha!$B:$B,AB$975)/1000","v":0},{"$f":"SUMIFS(raw_annual_unbundled_rps_purcha!$C:$C,raw_annual_unbundled_rps_purcha!$A:$A,\"<>\"&mainzone,raw_annual_unbundled_rps_purcha!$B:$B,AC$975)/1000","v":0},{"$f":"SUMIFS(raw_annual_unbundled_rps_purcha!$C:$C,raw_annual_unbundled_rps_purcha!$A:$A,\"<>\"&mainzone,raw_annual_unbundled_rps_purcha!$B:$B,AD$975)/1000","v":0},{"$f":"SUMIFS(raw_annual_unbundled_rps_purcha!$C:$C,raw_annual_unbundled_rps_purcha!$A:$A,\"<>\"&mainzone,raw_annual_unbundled_rps_purcha!$B:$B,AE$975)/1000","v":0},{"$f":"SUMIFS(raw_annual_unbundled_rps_purcha!$C:$C,raw_annual_unbundled_rps_purcha!$A:$A,\"<>\"&mainzone,raw_annual_unbundled_rps_purcha!$B:$B,AF$975)/1000","v":0},{"$f":"SUMIFS(raw_annual_unbundled_rps_purcha!$C:$C,raw_annual_unbundled_rps_purcha!$A:$A,\"<>\"&mainzone,raw_annual_unbundled_rps_purcha!$B:$B,AG$975)/1000","v":0},{"$f":"SUMIFS(raw_annual_unbundled_rps_purcha!$C:$C,raw_annual_unbundled_rps_purcha!$A:$A,\"<>\"&mainzone,raw_annual_unbundled_rps_purcha!$B:$B,AH$975)/1000","v":0},{"$f":"SUMIFS(raw_annual_unbundled_rps_purcha!$C:$C,raw_annual_unbundled_rps_purcha!$A:$A,\"<>\"&mainzone,raw_annual_unbundled_rps_purcha!$B:$B,AI$975)/1000","v":4302.1744104647596},{"$f":"SUMIFS(raw_annual_unbundled_rps_purcha!$C:$C,raw_annual_unbundled_rps_purcha!$A:$A,\"<>\"&mainzone,raw_annual_unbundled_rps_purcha!$B:$B,AJ$975)/1000","v":0},{"$f":"SUMIFS(raw_annual_unbundled_rps_purcha!$C:$C,raw_annual_unbundled_rps_purcha!$A:$A,\"<>\"&mainzone,raw_annual_unbundled_rps_purcha!$B:$B,AK$975)/1000","v":0},{"$f":"SUMIFS(raw_annual_unbundled_rps_purcha!$C:$C,raw_annual_unbundled_rps_purcha!$A:$A,\"<>\"&mainzone,raw_annual_unbundled_rps_purcha!$B:$B,AL$975)/1000","v":0},{"$f":"SUMIFS(raw_annual_unbundled_rps_purcha!$C:$C,raw_annual_unbundled_rps_purcha!$A:$A,\"<>\"&mainzone,raw_annual_unbundled_rps_purcha!$B:$B,AM$975)/1000","v":0},{"$f":"SUMIFS(raw_annual_unbundled_rps_purcha!$C:$C,raw_annual_unbundled_rps_purcha!$A:$A,\"<>\"&mainzone,raw_annual_unbundled_rps_purcha!$B:$B,AN$975)/1000","v":0}]
[]
[]
[null,"Revenue Requirement, Retail Rates and Total Resource Cost"]
[]
[null,null,"Revenue Requirement and Retail Rate Results"]
[null,null,"Component","Unit",2015,{"$f":"E990+1","v":2016},2017,2018,2019,2020,2021,2022,2023,2024,2025,2026,2027,2028,2029,2030,2031,2032,2033,2034,2035,2036,2037,2038,2039,2040,2041,2042,2043,2044,2045,2046,2047,2048,2049,2050]
[null,null,"Baseline Non-Modeled Costs","$MM",{"$f":"SUMIFS(raw_inputs_passthrough!$B:$B,raw_inputs_passthrough!$A:$A,E$990)+SUMIFS(raw_inputs_passthrough!$C:$C,raw_inputs_passthrough!$A:$A,E$990)+SUMIFS(raw_inputs_passthrough!$D:$D,raw_inputs_passthrough!$A:$A,E$990)+SUMIFS(raw_inputs_passthrough!$E:$E,raw_inputs_passthrough!$A:$A,E$990)+SUMIFS(raw_inputs_passthrough!$F:$F,raw_inputs_passthrough!$A:$A,E$990)","v":0},{"$f":"SUMIFS(raw_inputs_passthrough!$B:$B,raw_inputs_passthrough!$A:$A,F$990)+SUMIFS(raw_inputs_passthrough!$C:$C,raw_inputs_passthrough!$A:$A,F$990)+SUMIFS(raw_inputs_passthrough!$D:$D,raw_inputs_passthrough!$A:$A,F$990)+SUMIFS(raw_inputs_passthrough!$E:$E,raw_inputs_passthrough!$A:$A,F$990)+SUMIFS(raw_inputs_passthrough!$F:$F,raw_inputs_passthrough!$A:$A,F$990)","v":0},{"$f":"SUMIFS(raw_inputs_passthrough!$B:$B,raw_inputs_passthrough!$A:$A,G$990)+SUMIFS(raw_inputs_passthrough!$C:$C,raw_inputs_passthrough!$A:$A,G$990)+SUMIFS(raw_inputs_passthrough!$D:$D,raw_inputs_passthrough!$A:$A,G$990)+SUMIFS(raw_inputs_passthrough!$E:$E,raw_inputs_passthrough!$A:$A,G$990)+SUMIFS(raw_inputs_passthrough!$F:$F,raw_inputs_passthrough!$A:$A,G$990)","v":0},{"$f":"SUMIFS(raw_inputs_passthrough!$B:$B,raw_inputs_passthrough!$A:$A,H$990)+SUMIFS(raw_inputs_passthrough!$C:$C,raw_inputs_passthrough!$A:$A,H$990)+SUMIFS(raw_inputs_passthrough!$D:$D,raw_inputs_passthrough!$A:$A,H$990)+SUMIFS(raw_inputs_passthrough!$E:$E,raw_inputs_passthrough!$A:$A,H$990)+SUMIFS(raw_inputs_passthrough!$F:$F,raw_inputs_passthrough!$A:$A,H$990)","v":0},{"$f":"SUMIFS(raw_inputs_passthrough!$B:$B,raw_inputs_passthrough!$A:$A,I$990)+SUMIFS(raw_inputs_passthrough!$C:$C,raw_inputs_passthrough!$A:$A,I$990)+SUMIFS(raw_inputs_passthrough!$D:$D,raw_inputs_passthrough!$A:$A,I$990)+SUMIFS(raw_inputs_passthrough!$E:$E,raw_inputs_passthrough!$A:$A,I$990)+SUMIFS(raw_inputs_passthrough!$F:$F,raw_inputs_passthrough!$A:$A,I$990)","v":0},{"$f":"SUMIFS(raw_inputs_passthrough!$B:$B,raw_inputs_passthrough!$A:$A,J$990)+SUMIFS(raw_inputs_passthrough!$C:$C,raw_inputs_passthrough!$A:$A,J$990)+SUMIFS(raw_inputs_passthrough!$D:$D,raw_inputs_passthrough!$A:$A,J$990)+SUMIFS(raw_inputs_passthrough!$E:$E,raw_inputs_passthrough!$A:$A,J$990)+SUMIFS(raw_inputs_passthrough!$F:$F,raw_inputs_passthrough!$A:$A,J$990)","v":35599.79433031458},{"$f":"SUMIFS(raw_inputs_passthrough!$B:$B,raw_inputs_passthrough!$A:$A,K$990)+SUMIFS(raw_inputs_passthrough!$C:$C,raw_inputs_passthrough!$A:$A,K$990)+SUMIFS(raw_inputs_passthrough!$D:$D,raw_inputs_passthrough!$A:$A,K$990)+SUMIFS(raw_inputs_passthrough!$E:$E,raw_inputs_passthrough!$A:$A,K$990)+SUMIFS(raw_inputs_passthrough!$F:$F,raw_inputs_passthrough!$A:$A,K$990)","v":37545.955306526666},{"$f":"SUMIFS(raw_inputs_passthrough!$B:$B,raw_inputs_passthrough!$A:$A,L$990)+SUMIFS(raw_inputs_passthrough!$C:$C,raw_inputs_passthrough!$A:$A,L$990)+SUMIFS(raw_inputs_passthrough!$D:$D,raw_inputs_passthrough!$A:$A,L$990)+SUMIFS(raw_inputs_passthrough!$E:$E,raw_inputs_passthrough!$A:$A,L$990)+SUMIFS(raw_inputs_passthrough!$F:$F,raw_inputs_passthrough!$A:$A,L$990)","v":37042.68327251351},{"$f":"SUMIFS(raw_inputs_passthrough!$B:$B,raw_inputs_passthrough!$A:$A,M$990)+SUMIFS(raw_inputs_passthrough!$C:$C,raw_inputs_passthrough!$A:$A,M$990)+SUMIFS(raw_inputs_passthrough!$D:$D,raw_inputs_passthrough!$A:$A,M$990)+SUMIFS(raw_inputs_passthrough!$E:$E,raw_inputs_passthrough!$A:$A,M$990)+SUMIFS(raw_inputs_passthrough!$F:$F,raw_inputs_passthrough!$A:$A,M$990)","v":36358.391245955354},{"$f":"SUMIFS(raw_inputs_passthrough!$B:$B,raw_inputs_passthrough!$A:$A,N$990)+SUMIFS(raw_inputs_passthrough!$C:$C,raw_inputs_passthrough!$A:$A,N$990)+SUMIFS(raw_inputs_passthrough!$D:$D,raw_inputs_passthrough!$A:$A,N$990)+SUMIFS(raw_inputs_passthrough!$E:$E,raw_inputs_passthrough!$A:$A,N$990)+SUMIFS(raw_inputs_passthrough!$F:$F,raw_inputs_passthrough!$A:$A,N$990)","v":35918.397403079071},{"$f":"SUMIFS(raw_inputs_passthrough!$B:$B,raw_inputs_passthrough!$A:$A,O$990)+SUMIFS(raw_inputs_passthrough!$C:$C,raw_inputs_passthrough!$A:$A,O$990)+SUMIFS(raw_inputs_passthrough!$D:$D,raw_inputs_passthrough!$A:$A,O$990)+SUMIFS(raw_inputs_passthrough!$E:$E,raw_inputs_passthrough!$A:$A,O$990)+SUMIFS(raw_inputs_passthrough!$F:$F,raw_inputs_passthrough!$A:$A,O$990)","v":0},{"$f":"SUMIFS(raw_inputs_passthrough!$B:$B,raw_inputs_passthrough!$A:$A,P$990)+SUMIFS(raw_inputs_passthrough!$C:$C,raw_inputs_passthrough!$A:$A,P$990)+SUMIFS(raw_inputs_passthrough!$D:$D,raw_inputs_passthrough!$A:$A,P$990)+SUMIFS(raw_inputs_passthrough!$E:$E,raw_inputs_passthrough!$A:$A,P$990)+SUMIFS(raw_inputs_passthrough!$F:$F,raw_inputs_passthrough!$A:$A,P$990)","v":32888.939067843479},{"$f":"SUMIFS(raw_inputs_passthrough!$B:$B,raw_inputs_passthrough!$A:$A,Q$990)+SUMIFS(raw_inputs_passthrough!$C:$C,raw_inputs_passthrough!$A:$A,Q$990)+SUMIFS(raw_inputs_passthrough!$D:$D,raw_inputs_passthrough!$A:$A,Q$990)+SUMIFS(raw_inputs_passthrough!$E:$E,raw_inputs_passthrough!$A:$A,Q$990)+SUMIFS(raw_inputs_passthrough!$F:$F,raw_inputs_passthrough!$A:$A,Q$990)","v":0},{"$f":"SUMIFS(raw_inputs_passthrough!$B:$B,raw_inputs_passthrough!$A:$A,R$990)+SUMIFS(raw_inputs_passthrough!$C:$C,raw_inputs_passthrough!$A:$A,R$990)+SUMIFS(raw_inputs_passthrough!$D:$D,raw_inputs_passthrough!$A:$A,R$990)+SUMIFS(raw_inputs_passthrough!$E:$E,raw_inputs_passthrough!$A:$A,R$990)+SUMIFS(raw_inputs_passthrough!$F:$F,raw_inputs_passthrough!$A:$A,R$990)","v":0},{"$f":"SUMIFS(raw_inputs_passthrough!$B:$B,raw_inputs_passthrough!$A:$A,S$990)+SUMIFS(raw_inputs_passthrough!$C:$C,raw_inputs_passthrough!$A:$A,S$990)+SUMIFS(raw_inputs_passthrough!$D:$D,raw_inputs_passthrough!$A:$A,S$990)+SUMIFS(raw_inputs_passthrough!$E:$E,raw_inputs_passthrough!$A:$A,S$990)+SUMIFS(raw_inputs_passthrough!$F:$F,raw_inputs_passthrough!$A:$A,S$990)","v":0},{"$f":"SUMIFS(raw_inputs_passthrough!$B:$B,raw_inputs_passthrough!$A:$A,T$990)+SUMIFS(raw_inputs_passthrough!$C:$C,raw_inputs_passthrough!$A:$A,T$990)+SUMIFS(raw_inputs_passthrough!$D:$D,raw_inputs_passthrough!$A:$A,T$990)+SUMIFS(raw_inputs_passthrough!$E:$E,raw_inputs_passthrough!$A:$A,T$990)+SUMIFS(raw_inputs_passthrough!$F:$F,raw_inputs_passthrough!$A:$A,T$990)","v":33263.040410812013},{"$f":"SUMIFS(raw_inputs_passthrough!$B:$B,raw_inputs_passthrough!$A:$A,U$990)+SUMIFS(raw_inputs_passthrough!$C:$C,raw_inputs_passthrough!$A:$A,U$990)+SUMIFS(raw_inputs_passthrough!$D:$D,raw_inputs_passthrough!$A:$A,U$990)+SUMIFS(raw_inputs_passthrough!$E:$E,raw_inputs_passthrough!$A:$A,U$990)+SUMIFS(raw_inputs_passthrough!$F:$F,raw_inputs_passthrough!$A:$A,U$990)","v":0},{"$f":"SUMIFS(raw_inputs_passthrough!$B:$B,raw_inputs_passthrough!$A:$A,V$990)+SUMIFS(raw_inputs_passthrough!$C:$C,raw_inputs_passthrough!$A:$A,V$990)+SUMIFS(raw_inputs_passthrough!$D:$D,raw_inputs_passthrough!$A:$A,V$990)+SUMIFS(raw_inputs_passthrough!$E:$E,raw_inputs_passthrough!$A:$A,V$990)+SUMIFS(raw_inputs_passthrough!$F:$F,raw_inputs_passthrough!$A:$A,V$990)","v":0},{"$f":"SUMIFS(raw_inputs_passthrough!$B:$B,raw_inputs_passthrough!$A:$A,W$990)+SUMIFS(raw_inputs_passthrough!$C:$C,raw_inputs_passthrough!$A:$A,W$990)+SUMIFS(raw_inputs_passthrough!$D:$D,raw_inputs_passthrough!$A:$A,W$990)+SUMIFS(raw_inputs_passthrough!$E:$E,raw_inputs_passthrough!$A:$A,W$990)+SUMIFS(raw_inputs_passthrough!$F:$F,raw_inputs_passthrough!$A:$A,W$990)","v":0},{"$f":"SUMIFS(raw_inputs_passthrough!$B:$B,raw_inputs_passthrough!$A:$A,X$990)+SUMIFS(raw_inputs_passthrough!$C:$C,raw_inputs_passthrough!$A:$A,X$990)+SUMIFS(raw_inputs_passthrough!$D:$D,raw_inputs_passthrough!$A:$A,X$990)+SUMIFS(raw_inputs_passthrough!$E:$E,raw_inputs_passthrough!$A:$A,X$990)+SUMIFS(raw_inputs_passthrough!$F:$F,raw_inputs_passthrough!$A:$A,X$990)","v":0},{"$f":"SUMIFS(raw_inputs_passthrough!$B:$B,raw_inputs_passthrough!$A:$A,Y$990)+SUMIFS(raw_inputs_passthrough!$C:$C,raw_inputs_passthrough!$A:$A,Y$990)+SUMIFS(raw_inputs_passthrough!$D:$D,raw_inputs_passthrough!$A:$A,Y$990)+SUMIFS(raw_inputs_passthrough!$E:$E,raw_inputs_passthrough!$A:$A,Y$990)+SUMIFS(raw_inputs_passthrough!$F:$F,raw_inputs_passthrough!$A:$A,Y$990)","v":0},{"$f":"SUMIFS(raw_inputs_passthrough!$B:$B,raw_inputs_passthrough!$A:$A,Z$990)+SUMIFS(raw_inputs_passthrough!$C:$C,raw_inputs_passthrough!$A:$A,Z$990)+SUMIFS(raw_inputs_passthrough!$D:$D,raw_inputs_passthrough!$A:$A,Z$990)+SUMIFS(raw_inputs_passthrough!$E:$E,raw_inputs_passthrough!$A:$A,Z$990)+SUMIFS(raw_inputs_passthrough!$F:$F,raw_inputs_passthrough!$A:$A,Z$990)","v":0},{"$f":"SUMIFS(raw_inputs_passthrough!$B:$B,raw_inputs_passthrough!$A:$A,AA$990)+SUMIFS(raw_inputs_passthrough!$C:$C,raw_inputs_passthrough!$A:$A,AA$990)+SUMIFS(raw_inputs_passthrough!$D:$D,raw_inputs_passthrough!$A:$A,AA$990)+SUMIFS(raw_inputs_passthrough!$E:$E,raw_inputs_passthrough!$A:$A,AA$990)+SUMIFS(raw_inputs_passthrough!$F:$F,raw_inputs_passthrough!$A:$A,AA$990)","v":0},{"$f":"SUMIFS(raw_inputs_passthrough!$B:$B,raw_inputs_passthrough!$A:$A,AB$990)+SUMIFS(raw_inputs_passthrough!$C:$C,raw_inputs_passthrough!$A:$A,AB$990)+SUMIFS(raw_inputs_passthrough!$D:$D,raw_inputs_passthrough!$A:$A,AB$990)+SUMIFS(raw_inputs_passthrough!$E:$E,raw_inputs_passthrough!$A:$A,AB$990)+SUMIFS(raw_inputs_passthrough!$F:$F,raw_inputs_passthrough!$A:$A,AB$990)","v":0},{"$f":"SUMIFS(raw_inputs_passthrough!$B:$B,raw_inputs_passthrough!$A:$A,AC$990)+SUMIFS(raw_inputs_passthrough!$C:$C,raw_inputs_passthrough!$A:$A,AC$990)+SUMIFS(raw_inputs_passthrough!$D:$D,raw_inputs_passthrough!$A:$A,AC$990)+SUMIFS(raw_inputs_passthrough!$E:$E,raw_inputs_passthrough!$A:$A,AC$990)+SUMIFS(raw_inputs_passthrough!$F:$F,raw_inputs_passthrough!$A:$A,AC$990)","v":0},{"$f":"SUMIFS(raw_inputs_passthrough!$B:$B,raw_inputs_passthrough!$A:$A,AD$990)+SUMIFS(raw_inputs_passthrough!$C:$C,raw_inputs_passthrough!$A:$A,AD$990)+SUMIFS(raw_inputs_passthrough!$D:$D,raw_inputs_passthrough!$A:$A,AD$990)+SUMIFS(raw_inputs_passthrough!$E:$E,raw_inputs_passthrough!$A:$A,AD$990)+SUMIFS(raw_inputs_passthrough!$F:$F,raw_inputs_passthrough!$A:$A,AD$990)","v":0},{"$f":"SUMIFS(raw_inputs_passthrough!$B:$B,raw_inputs_passthrough!$A:$A,AE$990)+SUMIFS(raw_inputs_passthrough!$C:$C,raw_inputs_passthrough!$A:$A,AE$990)+SUMIFS(raw_inputs_passthrough!$D:$D,raw_inputs_passthrough!$A:$A,AE$990)+SUMIFS(raw_inputs_passthrough!$E:$E,raw_inputs_passthrough!$A:$A,AE$990)+SUMIFS(raw_inputs_passthrough!$F:$F,raw_inputs_passthrough!$A:$A,AE$990)","v":0},{"$f":"SUMIFS(raw_inputs_passthrough!$B:$B,raw_inputs_passthrough!$A:$A,AF$990)+SUMIFS(raw_inputs_passthrough!$C:$C,raw_inputs_passthrough!$A:$A,AF$990)+SUMIFS(raw_inputs_passthrough!$D:$D,raw_inputs_passthrough!$A:$A,AF$990)+SUMIFS(raw_inputs_passthrough!$E:$E,raw_inputs_passthrough!$A:$A,AF$990)+SUMIFS(raw_inputs_passthrough!$F:$F,raw_inputs_passthrough!$A:$A,AF$990)","v":0},{"$f":"SUMIFS(raw_inputs_passthrough!$B:$B,raw_inputs_passthrough!$A:$A,AG$990)+SUMIFS(raw_inputs_passthrough!$C:$C,raw_inputs_passthrough!$A:$A,AG$990)+SUMIFS(raw_inputs_passthrough!$D:$D,raw_inputs_passthrough!$A:$A,AG$990)+SUMIFS(raw_inputs_passthrough!$E:$E,raw_inputs_passthrough!$A:$A,AG$990)+SUMIFS(raw_inputs_passthrough!$F:$F,raw_inputs_passthrough!$A:$A,AG$990)","v":0},{"$f":"SUMIFS(raw_inputs_passthrough!$B:$B,raw_inputs_passthrough!$A:$A,AH$990)+SUMIFS(raw_inputs_passthrough!$C:$C,raw_inputs_passthrough!$A:$A,AH$990)+SUMIFS(raw_inputs_passthrough!$D:$D,raw_inputs_passthrough!$A:$A,AH$990)+SUMIFS(raw_inputs_passthrough!$E:$E,raw_inputs_passthrough!$A:$A,AH$990)+SUMIFS(raw_inputs_passthrough!$F:$F,raw_inputs_passthrough!$A:$A,AH$990)","v":0},{"$f":"SUMIFS(raw_inputs_passthrough!$B:$B,raw_inputs_passthrough!$A:$A,AI$990)+SUMIFS(raw_inputs_passthrough!$C:$C,raw_inputs_passthrough!$A:$A,AI$990)+SUMIFS(raw_inputs_passthrough!$D:$D,raw_inputs_passthrough!$A:$A,AI$990)+SUMIFS(raw_inputs_passthrough!$E:$E,raw_inputs_passthrough!$A:$A,AI$990)+SUMIFS(raw_inputs_passthrough!$F:$F,raw_inputs_passthrough!$A:$A,AI$990)","v":35762.411162135279},{"$f":"SUMIFS(raw_inputs_passthrough!$B:$B,raw_inputs_passthrough!$A:$A,AJ$990)+SUMIFS(raw_inputs_passthrough!$C:$C,raw_inputs_passthrough!$A:$A,AJ$990)+SUMIFS(raw_inputs_passthrough!$D:$D,raw_inputs_passthrough!$A:$A,AJ$990)+SUMIFS(raw_inputs_passthrough!$E:$E,raw_inputs_passthrough!$A:$A,AJ$990)+SUMIFS(raw_inputs_passthrough!$F:$F,raw_inputs_passthrough!$A:$A,AJ$990)","v":0},{"$f":"SUMIFS(raw_inputs_passthrough!$B:$B,raw_inputs_passthrough!$A:$A,AK$990)+SUMIFS(raw_inputs_passthrough!$C:$C,raw_inputs_passthrough!$A:$A,AK$990)+SUMIFS(raw_inputs_passthrough!$D:$D,raw_inputs_passthrough!$A:$A,AK$990)+SUMIFS(raw_inputs_passthrough!$E:$E,raw_inputs_passthrough!$A:$A,AK$990)+SUMIFS(raw_inputs_passthrough!$F:$F,raw_inputs_passthrough!$A:$A,AK$990)","v":0},{"$f":"SUMIFS(raw_inputs_passthrough!$B:$B,raw_inputs_passthrough!$A:$A,AL$990)+SUMIFS(raw_inputs_passthrough!$C:$C,raw_inputs_passthrough!$A:$A,AL$990)+SUMIFS(raw_inputs_passthrough!$D:$D,raw_inputs_passthrough!$A:$A,AL$990)+SUMIFS(raw_inputs_passthrough!$E:$E,raw_inputs_passthrough!$A:$A,AL$990)+SUMIFS(raw_inputs_passthrough!$F:$F,raw_inputs_passthrough!$A:$A,AL$990)","v":0},{"$f":"SUMIFS(raw_inputs_passthrough!$B:$B,raw_inputs_passthrough!$A:$A,AM$990)+SUMIFS(raw_inputs_passthrough!$C:$C,raw_inputs_passthrough!$A:$A,AM$990)+SUMIFS(raw_inputs_passthrough!$D:$D,raw_inputs_passthrough!$A:$A,AM$990)+SUMIFS(raw_inputs_passthrough!$E:$E,raw_inputs_passthrough!$A:$A,AM$990)+SUMIFS(raw_inputs_passthrough!$F:$F,raw_inputs_passthrough!$A:$A,AM$990)","v":0},{"$f":"SUMIFS(raw_inputs_passthrough!$B:$B,raw_inputs_passthrough!$A:$A,AN$990)+SUMIFS(raw_inputs_passthrough!$C:$C,raw_inputs_passthrough!$A:$A,AN$990)+SUMIFS(raw_inputs_passthrough!$D:$D,raw_inputs_passthrough!$A:$A,AN$990)+SUMIFS(raw_inputs_passthrough!$E:$E,raw_inputs_passthrough!$A:$A,AN$990)+SUMIFS(raw_inputs_passthrough!$F:$F,raw_inputs_passthrough!$A:$A,AN$990)","v":0}]
[null,null,"Scenario-Specific Non-Modeled Costs","$MM",{"$f":"SUMIFS(raw_inputs_passthrough!$G:$G,raw_inputs_passthrough!$A:$A,E$990)+SUMIFS(raw_inputs_passthrough!$H:$H,raw_inputs_passthrough!$A:$A,E$990)+SUMIFS(raw_inputs_passthrough!$I:$I,raw_inputs_passthrough!$A:$A,E$990)+SUMIFS(raw_inputs_passthrough!$J:$J,raw_inputs_passthrough!$A:$A,E$990)+SUMIFS(raw_inputs_passthrough!$K:$K,raw_inputs_passthrough!$A:$A,E$990)","v":0},{"$f":"SUMIFS(raw_inputs_passthrough!$G:$G,raw_inputs_passthrough!$A:$A,F$990)+SUMIFS(raw_inputs_passthrough!$H:$H,raw_inputs_passthrough!$A:$A,F$990)+SUMIFS(raw_inputs_passthrough!$I:$I,raw_inputs_passthrough!$A:$A,F$990)+SUMIFS(raw_inputs_passthrough!$J:$J,raw_inputs_passthrough!$A:$A,F$990)+SUMIFS(raw_inputs_passthrough!$K:$K,raw_inputs_passthrough!$A:$A,F$990)","v":0},{"$f":"SUMIFS(raw_inputs_passthrough!$G:$G,raw_inputs_passthrough!$A:$A,G$990)+SUMIFS(raw_inputs_passthrough!$H:$H,raw_inputs_passthrough!$A:$A,G$990)+SUMIFS(raw_inputs_passthrough!$I:$I,raw_inputs_passthrough!$A:$A,G$990)+SUMIFS(raw_inputs_passthrough!$J:$J,raw_inputs_passthrough!$A:$A,G$990)+SUMIFS(raw_inputs_passthrough!$K:$K,raw_inputs_passthrough!$A:$A,G$990)","v":0},{"$f":"SUMIFS(raw_inputs_passthrough!$G:$G,raw_inputs_passthrough!$A:$A,H$990)+SUMIFS(raw_inputs_passthrough!$H:$H,raw_inputs_passthrough!$A:$A,H$990)+SUMIFS(raw_inputs_passthrough!$I:$I,raw_inputs_passthrough!$A:$A,H$990)+SUMIFS(raw_inputs_passthrough!$J:$J,raw_inputs_passthrough!$A:$A,H$990)+SUMIFS(raw_inputs_passthrough!$K:$K,raw_inputs_passthrough!$A:$A,H$990)","v":0},{"$f":"SUMIFS(raw_inputs_passthrough!$G:$G,raw_inputs_passthrough!$A:$A,I$990)+SUMIFS(raw_inputs_passthrough!$H:$H,raw_inputs_passthrough!$A:$A,I$990)+SUMIFS(raw_inputs_passthrough!$I:$I,raw_inputs_passthrough!$A:$A,I$990)+SUMIFS(raw_inputs_passthrough!$J:$J,raw_inputs_passthrough!$A:$A,I$990)+SUMIFS(raw_inputs_passthrough!$K:$K,raw_inputs_passthrough!$A:$A,I$990)","v":0},{"$f":"SUMIFS(raw_inputs_passthrough!$G:$G,raw_inputs_passthrough!$A:$A,J$990)+SUMIFS(raw_inputs_passthrough!$H:$H,raw_inputs_passthrough!$A:$A,J$990)+SUMIFS(raw_inputs_passthrough!$I:$I,raw_inputs_passthrough!$A:$A,J$990)+SUMIFS(raw_inputs_passthrough!$J:$J,raw_inputs_passthrough!$A:$A,J$990)+SUMIFS(raw_inputs_passthrough!$K:$K,raw_inputs_passthrough!$A:$A,J$990)","v":158.64446177176299},{"$f":"SUMIFS(raw_inputs_passthrough!$G:$G,raw_inputs_passthrough!$A:$A,K$990)+SUMIFS(raw_inputs_passthrough!$H:$H,raw_inputs_passthrough!$A:$A,K$990)+SUMIFS(raw_inputs_passthrough!$I:$I,raw_inputs_passthrough!$A:$A,K$990)+SUMIFS(raw_inputs_passthrough!$J:$J,raw_inputs_passthrough!$A:$A,K$990)+SUMIFS(raw_inputs_passthrough!$K:$K,raw_inputs_passthrough!$A:$A,K$990)","v":233.13690056900458},{"$f":"SUMIFS(raw_inputs_passthrough!$G:$G,raw_inputs_passthrough!$A:$A,L$990)+SUMIFS(raw_inputs_passthrough!$H:$H,raw_inputs_passthrough!$A:$A,L$990)+SUMIFS(raw_inputs_passthrough!$I:$I,raw_inputs_passthrough!$A:$A,L$990)+SUMIFS(raw_inputs_passthrough!$J:$J,raw_inputs_passthrough!$A:$A,L$990)+SUMIFS(raw_inputs_passthrough!$K:$K,raw_inputs_passthrough!$A:$A,L$990)","v":273.67933491028407},{"$f":"SUMIFS(raw_inputs_passthrough!$G:$G,raw_inputs_passthrough!$A:$A,M$990)+SUMIFS(raw_inputs_passthrough!$H:$H,raw_inputs_passthrough!$A:$A,M$990)+SUMIFS(raw_inputs_passthrough!$I:$I,raw_inputs_passthrough!$A:$A,M$990)+SUMIFS(raw_inputs_passthrough!$J:$J,raw_inputs_passthrough!$A:$A,M$990)+SUMIFS(raw_inputs_passthrough!$K:$K,raw_inputs_passthrough!$A:$A,M$990)","v":313.77763808901193},{"$f":"SUMIFS(raw_inputs_passthrough!$G:$G,raw_inputs_passthrough!$A:$A,N$990)+SUMIFS(raw_inputs_passthrough!$H:$H,raw_inputs_passthrough!$A:$A,N$990)+SUMIFS(raw_inputs_passthrough!$I:$I,raw_inputs_passthrough!$A:$A,N$990)+SUMIFS(raw_inputs_passthrough!$J:$J,raw_inputs_passthrough!$A:$A,N$990)+SUMIFS(raw_inputs_passthrough!$K:$K,raw_inputs_passthrough!$A:$A,N$990)","v":345.34004484349776},{"$f":"SUMIFS(raw_inputs_passthrough!$G:$G,raw_inputs_passthrough!$A:$A,O$990)+SUMIFS(raw_inputs_passthrough!$H:$H,raw_inputs_passthrough!$A:$A,O$990)+SUMIFS(raw_inputs_passthrough!$I:$I,raw_inputs_passthrough!$A:$A,O$990)+SUMIFS(raw_inputs_passthrough!$J:$J,raw_inputs_passthrough!$A:$A,O$990)+SUMIFS(raw_inputs_passthrough!$K:$K,raw_inputs_passthrough!$A:$A,O$990)","v":0},{"$f":"SUMIFS(raw_inputs_passthrough!$G:$G,raw_inputs_passthrough!$A:$A,P$990)+SUMIFS(raw_inputs_passthrough!$H:$H,raw_inputs_passthrough!$A:$A,P$990)+SUMIFS(raw_inputs_passthrough!$I:$I,raw_inputs_passthrough!$A:$A,P$990)+SUMIFS(raw_inputs_passthrough!$J:$J,raw_inputs_passthrough!$A:$A,P$990)+SUMIFS(raw_inputs_passthrough!$K:$K,raw_inputs_passthrough!$A:$A,P$990)","v":388.56675453313949},{"$f":"SUMIFS(raw_inputs_passthrough!$G:$G,raw_inputs_passthrough!$A:$A,Q$990)+SUMIFS(raw_inputs_passthrough!$H:$H,raw_inputs_passthrough!$A:$A,Q$990)+SUMIFS(raw_inputs_passthrough!$I:$I,raw_inputs_passthrough!$A:$A,Q$990)+SUMIFS(raw_inputs_passthrough!$J:$J,raw_inputs_passthrough!$A:$A,Q$990)+SUMIFS(raw_inputs_passthrough!$K:$K,raw_inputs_passthrough!$A:$A,Q$990)","v":0},{"$f":"SUMIFS(raw_inputs_passthrough!$G:$G,raw_inputs_passthrough!$A:$A,R$990)+SUMIFS(raw_inputs_passthrough!$H:$H,raw_inputs_passthrough!$A:$A,R$990)+SUMIFS(raw_inputs_passthrough!$I:$I,raw_inputs_passthrough!$A:$A,R$990)+SUMIFS(raw_inputs_passthrough!$J:$J,raw_inputs_passthrough!$A:$A,R$990)+SUMIFS(raw_inputs_passthrough!$K:$K,raw_inputs_passthrough!$A:$A,R$990)","v":0},{"$f":"SUMIFS(raw_inputs_passthrough!$G:$G,raw_inputs_passthrough!$A:$A,S$990)+SUMIFS(raw_inputs_passthrough!$H:$H,raw_inputs_passthrough!$A:$A,S$990)+SUMIFS(raw_inputs_passthrough!$I:$I,raw_inputs_passthrough!$A:$A,S$990)+SUMIFS(raw_inputs_passthrough!$J:$J,raw_inputs_passthrough!$A:$A,S$990)+SUMIFS(raw_inputs_passthrough!$K:$K,raw_inputs_passthrough!$A:$A,S$990)","v":0},{"$f":"SUMIFS(raw_inputs_passthrough!$G:$G,raw_inputs_passthrough!$A:$A,T$990)+SUMIFS(raw_inputs_passthrough!$H:$H,raw_inputs_passthrough!$A:$A,T$990)+SUMIFS(raw_inputs_passthrough!$I:$I,raw_inputs_passthrough!$A:$A,T$990)+SUMIFS(raw_inputs_passthrough!$J:$J,raw_inputs_passthrough!$A:$A,T$990)+SUMIFS(raw_inputs_passthrough!$K:$K,raw_inputs_passthrough!$A:$A,T$990)","v":457.3657752200906},{"$f":"SUMIFS(raw_inputs_passthrough!$G:$G,raw_inputs_passthrough!$A:$A,U$990)+SUMIFS(raw_inputs_passthrough!$H:$H,raw_inputs_passthrough!$A:$A,U$990)+SUMIFS(raw_inputs_passthrough!$I:$I,raw_inputs_passthrough!$A:$A,U$990)+SUMIFS(raw_inputs_passthrough!$J:$J,raw_inputs_passthrough!$A:$A,U$990)+SUMIFS(raw_inputs_passthrough!$K:$K,raw_inputs_passthrough!$A:$A,U$990)","v":0},{"$f":"SUMIFS(raw_inputs_passthrough!$G:$G,raw_inputs_passthrough!$A:$A,V$990)+SUMIFS(raw_inputs_passthrough!$H:$H,raw_inputs_passthrough!$A:$A,V$990)+SUMIFS(raw_inputs_passthrough!$I:$I,raw_inputs_passthrough!$A:$A,V$990)+SUMIFS(raw_inputs_passthrough!$J:$J,raw_inputs_passthrough!$A:$A,V$990)+SUMIFS(raw_inputs_passthrough!$K:$K,raw_inputs_passthrough!$A:$A,V$990)","v":0},{"$f":"SUMIFS(raw_inputs_passthrough!$G:$G,raw_inputs_passthrough!$A:$A,W$990)+SUMIFS(raw_inputs_passthrough!$H:$H,raw_inputs_passthrough!$A:$A,W$990)+SUMIFS(raw_inputs_passthrough!$I:$I,raw_inputs_passthrough!$A:$A,W$990)+SUMIFS(raw_inputs_passthrough!$J:$J,raw_inputs_passthrough!$A:$A,W$990)+SUMIFS(raw_inputs_passthrough!$K:$K,raw_inputs_passthrough!$A:$A,W$990)","v":0},{"$f":"SUMIFS(raw_inputs_passthrough!$G:$G,raw_inputs_passthrough!$A:$A,X$990)+SUMIFS(raw_inputs_passthrough!$H:$H,raw_inputs_passthrough!$A:$A,X$990)+SUMIFS(raw_inputs_passthrough!$I:$I,raw_inputs_passthrough!$A:$A,X$990)+SUMIFS(raw_inputs_passthrough!$J:$J,raw_inputs_passthrough!$A:$A,X$990)+SUMIFS(raw_inputs_passthrough!$K:$K,raw_inputs_passthrough!$A:$A,X$990)","v":0},{"$f":"SUMIFS(raw_inputs_passthrough!$G:$G,raw_inputs_passthrough!$A:$A,Y$990)+SUMIFS(raw_inputs_passthrough!$H:$H,raw_inputs_passthrough!$A:$A,Y$990)+SUMIFS(raw_inputs_passthrough!$I:$I,raw_inputs_passthrough!$A:$A,Y$990)+SUMIFS(raw_inputs_passthrough!$J:$J,raw_inputs_passthrough!$A:$A,Y$990)+SUMIFS(raw_inputs_passthrough!$K:$K,raw_inputs_passthrough!$A:$A,Y$990)","v":0},{"$f":"SUMIFS(raw_inputs_passthrough!$G:$G,raw_inputs_passthrough!$A:$A,Z$990)+SUMIFS(raw_inputs_passthrough!$H:$H,raw_inputs_passthrough!$A:$A,Z$990)+SUMIFS(raw_inputs_passthrough!$I:$I,raw_inputs_passthrough!$A:$A,Z$990)+SUMIFS(raw_inputs_passthrough!$J:$J,raw_inputs_passthrough!$A:$A,Z$990)+SUMIFS(raw_inputs_passthrough!$K:$K,raw_inputs_passthrough!$A:$A,Z$990)","v":0},{"$f":"SUMIFS(raw_inputs_passthrough!$G:$G,raw_inputs_passthrough!$A:$A,AA$990)+SUMIFS(raw_inputs_passthrough!$H:$H,raw_inputs_passthrough!$A:$A,AA$990)+SUMIFS(raw_inputs_passthrough!$I:$I,raw_inputs_passthrough!$A:$A,AA$990)+SUMIFS(raw_inputs_passthrough!$J:$J,raw_inputs_passthrough!$A:$A,AA$990)+SUMIFS(raw_inputs_passthrough!$K:$K,raw_inputs_passthrough!$A:$A,AA$990)","v":0},{"$f":"SUMIFS(raw_inputs_passthrough!$G:$G,raw_inputs_passthrough!$A:$A,AB$990)+SUMIFS(raw_inputs_passthrough!$H:$H,raw_inputs_passthrough!$A:$A,AB$990)+SUMIFS(raw_inputs_passthrough!$I:$I,raw_inputs_passthrough!$A:$A,AB$990)+SUMIFS(raw_inputs_passthrough!$J:$J,raw_inputs_passthrough!$A:$A,AB$990)+SUMIFS(raw_inputs_passthrough!$K:$K,raw_inputs_passthrough!$A:$A,AB$990)","v":0},{"$f":"SUMIFS(raw_inputs_passthrough!$G:$G,raw_inputs_passthrough!$A:$A,AC$990)+SUMIFS(raw_inputs_passthrough!$H:$H,raw_inputs_passthrough!$A:$A,AC$990)+SUMIFS(raw_inputs_passthrough!$I:$I,raw_inputs_passthrough!$A:$A,AC$990)+SUMIFS(raw_inputs_passthrough!$J:$J,raw_inputs_passthrough!$A:$A,AC$990)+SUMIFS(raw_inputs_passthrough!$K:$K,raw_inputs_passthrough!$A:$A,AC$990)","v":0},{"$f":"SUMIFS(raw_inputs_passthrough!$G:$G,raw_inputs_passthrough!$A:$A,AD$990)+SUMIFS(raw_inputs_passthrough!$H:$H,raw_inputs_passthrough!$A:$A,AD$990)+SUMIFS(raw_inputs_passthrough!$I:$I,raw_inputs_passthrough!$A:$A,AD$990)+SUMIFS(raw_inputs_passthrough!$J:$J,raw_inputs_passthrough!$A:$A,AD$990)+SUMIFS(raw_inputs_passthrough!$K:$K,raw_inputs_passthrough!$A:$A,AD$990)","v":0},{"$f":"SUMIFS(raw_inputs_passthrough!$G:$G,raw_inputs_passthrough!$A:$A,AE$990)+SUMIFS(raw_inputs_passthrough!$H:$H,raw_inputs_passthrough!$A:$A,AE$990)+SUMIFS(raw_inputs_passthrough!$I:$I,raw_inputs_passthrough!$A:$A,AE$990)+SUMIFS(raw_inputs_passthrough!$J:$J,raw_inputs_passthrough!$A:$A,AE$990)+SUMIFS(raw_inputs_passthrough!$K:$K,raw_inputs_passthrough!$A:$A,AE$990)","v":0},{"$f":"SUMIFS(raw_inputs_passthrough!$G:$G,raw_inputs_passthrough!$A:$A,AF$990)+SUMIFS(raw_inputs_passthrough!$H:$H,raw_inputs_passthrough!$A:$A,AF$990)+SUMIFS(raw_inputs_passthrough!$I:$I,raw_inputs_passthrough!$A:$A,AF$990)+SUMIFS(raw_inputs_passthrough!$J:$J,raw_inputs_passthrough!$A:$A,AF$990)+SUMIFS(raw_inputs_passthrough!$K:$K,raw_inputs_passthrough!$A:$A,AF$990)","v":0},{"$f":"SUMIFS(raw_inputs_passthrough!$G:$G,raw_inputs_passthrough!$A:$A,AG$990)+SUMIFS(raw_inputs_passthrough!$H:$H,raw_inputs_passthrough!$A:$A,AG$990)+SUMIFS(raw_inputs_passthrough!$I:$I,raw_inputs_passthrough!$A:$A,AG$990)+SUMIFS(raw_inputs_passthrough!$J:$J,raw_inputs_passthrough!$A:$A,AG$990)+SUMIFS(raw_inputs_passthrough!$K:$K,raw_inputs_passthrough!$A:$A,AG$990)","v":0},{"$f":"SUMIFS(raw_inputs_passthrough!$G:$G,raw_inputs_passthrough!$A:$A,AH$990)+SUMIFS(raw_inputs_passthrough!$H:$H,raw_inputs_passthrough!$A:$A,AH$990)+SUMIFS(raw_inputs_passthrough!$I:$I,raw_inputs_passthrough!$A:$A,AH$990)+SUMIFS(raw_inputs_passthrough!$J:$J,raw_inputs_passthrough!$A:$A,AH$990)+SUMIFS(raw_inputs_passthrough!$K:$K,raw_inputs_passthrough!$A:$A,AH$990)","v":0},{"$f":"SUMIFS(raw_inputs_passthrough!$G:$G,raw_inputs_passthrough!$A:$A,AI$990)+SUMIFS(raw_inputs_passthrough!$H:$H,raw_inputs_passthrough!$A:$A,AI$990)+SUMIFS(raw_inputs_passthrough!$I:$I,raw_inputs_passthrough!$A:$A,AI$990)+SUMIFS(raw_inputs_passthrough!$J:$J,raw_inputs_passthrough!$A:$A,AI$990)+SUMIFS(raw_inputs_passthrough!$K:$K,raw_inputs_passthrough!$A:$A,AI$990)","v":1163.8981986635049},{"$f":"SUMIFS(raw_inputs_passthrough!$G:$G,raw_inputs_passthrough!$A:$A,AJ$990)+SUMIFS(raw_inputs_passthrough!$H:$H,raw_inputs_passthrough!$A:$A,AJ$990)+SUMIFS(raw_inputs_passthrough!$I:$I,raw_inputs_passthrough!$A:$A,AJ$990)+SUMIFS(raw_inputs_passthrough!$J:$J,raw_inputs_passthrough!$A:$A,AJ$990)+SUMIFS(raw_inputs_passthrough!$K:$K,raw_inputs_passthrough!$A:$A,AJ$990)","v":0},{"$f":"SUMIFS(raw_inputs_passthrough!$G:$G,raw_inputs_passthrough!$A:$A,AK$990)+SUMIFS(raw_inputs_passthrough!$H:$H,raw_inputs_passthrough!$A:$A,AK$990)+SUMIFS(raw_inputs_passthrough!$I:$I,raw_inputs_passthrough!$A:$A,AK$990)+SUMIFS(raw_inputs_passthrough!$J:$J,raw_inputs_passthrough!$A:$A,AK$990)+SUMIFS(raw_inputs_passthrough!$K:$K,raw_inputs_passthrough!$A:$A,AK$990)","v":0},{"$f":"SUMIFS(raw_inputs_passthrough!$G:$G,raw_inputs_passthrough!$A:$A,AL$990)+SUMIFS(raw_inputs_passthrough!$H:$H,raw_inputs_passthrough!$A:$A,AL$990)+SUMIFS(raw_inputs_passthrough!$I:$I,raw_inputs_passthrough!$A:$A,AL$990)+SUMIFS(raw_inputs_passthrough!$J:$J,raw_inputs_passthrough!$A:$A,AL$990)+SUMIFS(raw_inputs_passthrough!$K:$K,raw_inputs_passthrough!$A:$A,AL$990)","v":0},{"$f":"SUMIFS(raw_inputs_passthrough!$G:$G,raw_inputs_passthrough!$A:$A,AM$990)+SUMIFS(raw_inputs_passthrough!$H:$H,raw_inputs_passthrough!$A:$A,AM$990)+SUMIFS(raw_inputs_passthrough!$I:$I,raw_inputs_passthrough!$A:$A,AM$990)+SUMIFS(raw_inputs_passthrough!$J:$J,raw_inputs_passthrough!$A:$A,AM$990)+SUMIFS(raw_inputs_passthrough!$K:$K,raw_inputs_passthrough!$A:$A,AM$990)","v":0},{"$f":"SUMIFS(raw_inputs_passthrough!$G:$G,raw_inputs_passthrough!$A:$A,AN$990)+SUMIFS(raw_inputs_passthrough!$H:$H,raw_inputs_passthrough!$A:$A,AN$990)+SUMIFS(raw_inputs_passthrough!$I:$I,raw_inputs_passthrough!$A:$A,AN$990)+SUMIFS(raw_inputs_passthrough!$J:$J,raw_inputs_passthrough!$A:$A,AN$990)+SUMIFS(raw_inputs_passthrough!$K:$K,raw_inputs_passthrough!$A:$A,AN$990)","v":0}]
[null,null,"Baseline Thermal Fleet Fixed Costs","$MM",{"$f":"SUM(E941:E945,E948:E950)","v":0},{"$f":"SUM(F941:F945,F948:F950)","v":0},0,0,0,329.18887233000004,301.96844411000001,301.96844411000001,301.96844411000001,301.96844411000001,0,301.96844411000001,0,0,0,301.96844411000001,0,0,0,0,0,0,0,0,0,0,0,0,0,0,250.34287190000003,0,0,0,0,0]
[null,null,"New Renewables Fixed Costs","$MM",{"$f":"SUM(E953,E955:E961)","v":0},{"$f":"SUM(F953,F955:F961)","v":0},0,0,0,154.23889914999998,307.90617705999995,887.13210034999997,1070.60484505,1395.4597520699999,0,1836.76426694,0,0,0,3298.7012870999997,0,0,0,0,0,0,0,0,0,0,0,0,0,0,13205.55879954,0,0,0,0,0]
[null,null,"New Storage Fixed Costs","$MM",{"$f":"SUM('Portfolio Analytics'!E962:E965)","v":0},{"$f":"SUM('Portfolio Analytics'!F962:F965)","v":0},{"$f":"SUM('Portfolio Analytics'!G962:G965)","v":0},{"$f":"SUM('Portfolio Analytics'!H962:H965)","v":0},{"$f":"SUM('Portfolio Analytics'!I962:I965)","v":0},{"$f":"SUM('Portfolio Analytics'!J962:J965)","v":577.08511522999993},{"$f":"SUM('Portfolio Analytics'!K962:K965)","v":1023.7401685099999},{"$f":"SUM('Portfolio Analytics'!L962:L965)","v":1023.7401685099999},{"$f":"SUM('Portfolio Analytics'!M962:M965)","v":1059.0926509199999},{"$f":"SUM('Portfolio Analytics'!N962:N965)","v":1292.9234315599999},{"$f":"SUM('Portfolio Analytics'!O962:O965)","v":0},{"$f":"SUM('Portfolio Analytics'!P962:P965)","v":2090.0535337000001},{"$f":"SUM('Portfolio Analytics'!Q962:Q965)","v":0},{"$f":"SUM('Portfolio Analytics'!R962:R965)","v":0},{"$f":"SUM('Portfolio Analytics'!S962:S965)","v":0},{"$f":"SUM('Portfolio Analytics'!T962:T965)","v":2284.9719335699997},{"$f":"SUM('Portfolio Analytics'!U962:U965)","v":0},{"$f":"SUM('Portfolio Analytics'!V962:V965)","v":0},{"$f":"SUM('Portfolio Analytics'!W962:W965)","v":0},{"$f":"SUM('Portfolio Analytics'!X962:X965)","v":0},{"$f":"SUM('Portfolio Analytics'!Y962:Y965)","v":0},{"$f":"SUM('Portfolio Analytics'!Z962:Z965)","v":0},{"$f":"SUM('Portfolio Analytics'!AA962:AA965)","v":0},{"$f":"SUM('Portfolio Analytics'!AB962:AB965)","v":0},{"$f":"SUM('Portfolio Analytics'!AC962:AC965)","v":0},{"$f":"SUM('Portfolio Analytics'!AD962:AD965)","v":0},{"$f":"SUM('Portfolio Analytics'!AE962:AE965)","v":0},{"$f":"SUM('Portfolio Analytics'!AF962:AF965)","v":0},{"$f":"SUM('Portfolio Analytics'!AG962:AG965)","v":0},{"$f":"SUM('Portfolio Analytics'!AH962:AH965)","v":0},{"$f":"SUM('Portfolio Analytics'!AI962:AI965)","v":9730.5421049400029},{"$f":"SUM('Portfolio Analytics'!AJ962:AJ965)","v":0},{"$f":"SUM('Portfolio Analytics'!AK962:AK965)","v":0},{"$f":"SUM('Portfolio Analytics'!AL962:AL965)","v":0},{"$f":"SUM('Portfolio Analytics'!AM962:AM965)","v":0},{"$f":"SUM('Portfolio Analytics'!AN962:AN965)","v":0}]
[null,null,"New Thermal Fleet Fixed Costs","$MM",{"$f":"SUM('Portfolio Analytics'!E946:E947)","v":0},{"$f":"SUM('Portfolio Analytics'!F946:F947)","v":0},{"$f":"SUM('Portfolio Analytics'!G946:G947)","v":0},{"$f":"SUM('Portfolio Analytics'!H946:H947)","v":0},{"$f":"SUM('Portfolio Analytics'!I946:I947)","v":0},{"$f":"SUM('Portfolio Analytics'!J946:J947)","v":0},{"$f":"SUM('Portfolio Analytics'!K946:K947)","v":0},{"$f":"SUM('Portfolio Analytics'!L946:L947)","v":0},{"$f":"SUM('Portfolio Analytics'!M946:M947)","v":0},{"$f":"SUM('Portfolio Analytics'!N946:N947)","v":0},{"$f":"SUM('Portfolio Analytics'!O946:O947)","v":0},{"$f":"SUM('Portfolio Analytics'!P946:P947)","v":0},{"$f":"SUM('Portfolio Analytics'!Q946:Q947)","v":0},{"$f":"SUM('Portfolio Analytics'!R946:R947)","v":0},{"$f":"SUM('Portfolio Analytics'!S946:S947)","v":0},{"$f":"SUM('Portfolio Analytics'!T946:T947)","v":0},{"$f":"SUM('Portfolio Analytics'!U946:U947)","v":0},{"$f":"SUM('Portfolio Analytics'!V946:V947)","v":0},{"$f":"SUM('Portfolio Analytics'!W946:W947)","v":0},{"$f":"SUM('Portfolio Analytics'!X946:X947)","v":0},{"$f":"SUM('Portfolio Analytics'!Y946:Y947)","v":0},{"$f":"SUM('Portfolio Analytics'!Z946:Z947)","v":0},{"$f":"SUM('Portfolio Analytics'!AA946:AA947)","v":0},{"$f":"SUM('Portfolio Analytics'!AB946:AB947)","v":0},{"$f":"SUM('Portfolio Analytics'!AC946:AC947)","v":0},{"$f":"SUM('Portfolio Analytics'!AD946:AD947)","v":0},{"$f":"SUM('Portfolio Analytics'!AE946:AE947)","v":0},{"$f":"SUM('Portfolio Analytics'!AF946:AF947)","v":0},{"$f":"SUM('Portfolio Analytics'!AG946:AG947)","v":0},{"$f":"SUM('Portfolio Analytics'!AH946:AH947)","v":0},{"$f":"SUM('Portfolio Analytics'!AI946:AI947)","v":0},{"$f":"SUM('Portfolio Analytics'!AJ946:AJ947)","v":0},{"$f":"SUM('Portfolio Analytics'!AK946:AK947)","v":0},{"$f":"SUM('Portfolio Analytics'!AL946:AL947)","v":0},{"$f":"SUM('Portfolio Analytics'!AM946:AM947)","v":0},{"$f":"SUM('Portfolio Analytics'!AN946:AN947)","v":0}]
[null,null,"New DR Fixed Costs","$MM",{"$f":"SUM(E954,E967)","v":0},{"$f":"SUM(F954,F967)","v":0},0,0,0,0,0,0,0,0,0,0,0,0,0,0,0,0,0,0,0,0,0,0,0,0,0,0,0,0,0,0,0,0,0,0]
[null,null,"New Transmission Fixed Costs","$MM",{"$f":"E968","v":0},{"$f":"F968","v":0},0,0,0,0,0,0,1.002894,2.6597072700000002,0,17.1505765,0,0,0,242.20949116,0,0,0,0,0,0,0,0,0,0,0,0,0,0,3947.7815677599992,0,0,0,0,0]
[null,null,"Total Operating Cost (Incl. Import/Export)","$MM",{"$f":"'Portfolio Analytics'!E981","v":0},{"$f":"'Portfolio Analytics'!F981","v":0},{"$f":"'Portfolio Analytics'!G981","v":0},{"$f":"'Portfolio Analytics'!H981","v":0},{"$f":"'Portfolio Analytics'!I981","v":0},{"$f":"'Portfolio Analytics'!J981","v":3594.2116266532962},{"$f":"'Portfolio Analytics'!K981","v":3816.9069009344053},{"$f":"'Portfolio Analytics'!L981","v":3313.37170520684},{"$f":"'Portfolio Analytics'!M981","v":3303.8360027511644},{"$f":"'Portfolio Analytics'!N981","v":3399.9557690630136},{"$f":"'Portfolio Analytics'!O981","v":0},{"$f":"'Portfolio Analytics'!P981","v":3507.2733039893678},{"$f":"'Portfolio Analytics'!Q981","v":0},{"$f":"'Portfolio Analytics'!R981","v":0},{"$f":"'Portfolio Analytics'!S981","v":0},{"$f":"'Portfolio Analytics'!T981","v":3026.1984352013865},{"$f":"'Portfolio Analytics'!U981","v":0},{"$f":"'Portfolio Analytics'!V981","v":0},{"$f":"'Portfolio Analytics'!W981","v":0},{"$f":"'Portfolio Analytics'!X981","v":0},{"$f":"'Portfolio Analytics'!Y981","v":0},{"$f":"'Portfolio Analytics'!Z981","v":0},{"$f":"'Portfolio Analytics'!AA981","v":0},{"$f":"'Portfolio Analytics'!AB981","v":0},{"$f":"'Portfolio Analytics'!AC981","v":0},{"$f":"'Portfolio Analytics'!AD981","v":0},{"$f":"'Portfolio Analytics'!AE981","v":0},{"$f":"'Portfolio Analytics'!AF981","v":0},{"$f":"'Portfolio Analytics'!AG981","v":0},{"$f":"'Portfolio Analytics'!AH981","v":0},{"$f":"'Portfolio Analytics'!AI981","v":832.98297994725328},{"$f":"'Portfolio Analytics'!AJ981","v":0},{"$f":"'Portfolio Analytics'!AK981","v":0},{"$f":"'Portfolio Analytics'!AL981","v":0},{"$f":"'Portfolio Analytics'!AM981","v":0},{"$f":"'Portfolio Analytics'!AN981","v":0}]
[null,null,"Total Revenue Requirement","$MM",{"$f":"IF(E999=0,0,SUM(E991:E999))","v":0},{"$f":"IF(F999=0,0,SUM(F991:F999))","v":0},0,0,0,40413.163305449641,43229.613897710078,42842.575025600629,42408.673720875537,42656.704551995586,0,41030.71594761598,0,0,0,42874.455777173491,0,0,0,0,0,0,0,0,0,0,0,0,0,0,64893.517684886036,0,0,0,0,0]
[null,null,"Scenario-Specific Customer Costs","$MM",{"$f":"SUMIFS(raw_inputs_passthrough!$L:$L,raw_inputs_passthrough!$A:$A,E$990)","v":0},{"$f":"SUMIFS(raw_inputs_passthrough!$L:$L,raw_inputs_passthrough!$A:$A,F$990)","v":0},{"$f":"SUMIFS(raw_inputs_passthrough!$L:$L,raw_inputs_passthrough!$A:$A,G$990)","v":0},{"$f":"SUMIFS(raw_inputs_passthrough!$L:$L,raw_inputs_passthrough!$A:$A,H$990)","v":0},{"$f":"SUMIFS(raw_inputs_passthrough!$L:$L,raw_inputs_passthrough!$A:$A,I$990)","v":0},{"$f":"SUMIFS(raw_inputs_passthrough!$L:$L,raw_inputs_passthrough!$A:$A,J$990)","v":2211.6203935860099},{"$f":"SUMIFS(raw_inputs_passthrough!$L:$L,raw_inputs_passthrough!$A:$A,K$990)","v":2211.6203935860099},{"$f":"SUMIFS(raw_inputs_passthrough!$L:$L,raw_inputs_passthrough!$A:$A,L$990)","v":2211.6203935860099},{"$f":"SUMIFS(raw_inputs_passthrough!$L:$L,raw_inputs_passthrough!$A:$A,M$990)","v":2211.6203935860099},{"$f":"SUMIFS(raw_inputs_passthrough!$L:$L,raw_inputs_passthrough!$A:$A,N$990)","v":2211.6203935860099},{"$f":"SUMIFS(raw_inputs_passthrough!$L:$L,raw_inputs_passthrough!$A:$A,O$990)","v":0},{"$f":"SUMIFS(raw_inputs_passthrough!$L:$L,raw_inputs_passthrough!$A:$A,P$990)","v":2211.6203935860099},{"$f":"SUMIFS(raw_inputs_passthrough!$L:$L,raw_inputs_passthrough!$A:$A,Q$990)","v":0},{"$f":"SUMIFS(raw_inputs_passthrough!$L:$L,raw_inputs_passthrough!$A:$A,R$990)","v":0},{"$f":"SUMIFS(raw_inputs_passthrough!$L:$L,raw_inputs_passthrough!$A:$A,S$990)","v":0},{"$f":"SUMIFS(raw_inputs_passthrough!$L:$L,raw_inputs_passthrough!$A:$A,T$990)","v":2211.6203935860099},{"$f":"SUMIFS(raw_inputs_passthrough!$L:$L,raw_inputs_passthrough!$A:$A,U$990)","v":0},{"$f":"SUMIFS(raw_inputs_passthrough!$L:$L,raw_inputs_passthrough!$A:$A,V$990)","v":0},{"$f":"SUMIFS(raw_inputs_passthrough!$L:$L,raw_inputs_passthrough!$A:$A,W$990)","v":0},{"$f":"SUMIFS(raw_inputs_passthrough!$L:$L,raw_inputs_passthrough!$A:$A,X$990)","v":0},{"$f":"SUMIFS(raw_inputs_passthrough!$L:$L,raw_inputs_passthrough!$A:$A,Y$990)","v":0},{"$f":"SUMIFS(raw_inputs_passthrough!$L:$L,raw_inputs_passthrough!$A:$A,Z$990)","v":0},{"$f":"SUMIFS(raw_inputs_passthrough!$L:$L,raw_inputs_passthrough!$A:$A,AA$990)","v":0},{"$f":"SUMIFS(raw_inputs_passthrough!$L:$L,raw_inputs_passthrough!$A:$A,AB$990)","v":0},{"$f":"SUMIFS(raw_inputs_passthrough!$L:$L,raw_inputs_passthrough!$A:$A,AC$990)","v":0},{"$f":"SUMIFS(raw_inputs_passthrough!$L:$L,raw_inputs_passthrough!$A:$A,AD$990)","v":0},{"$f":"SUMIFS(raw_inputs_passthrough!$L:$L,raw_inputs_passthrough!$A:$A,AE$990)","v":0},{"$f":"SUMIFS(raw_inputs_passthrough!$L:$L,raw_inputs_passthrough!$A:$A,AF$990)","v":0},{"$f":"SUMIFS(raw_inputs_passthrough!$L:$L,raw_inputs_passthrough!$A:$A,AG$990)","v":0},{"$f":"SUMIFS(raw_inputs_passthrough!$L:$L,raw_inputs_passthrough!$A:$A,AH$990)","v":0},{"$f":"SUMIFS(raw_inputs_passthrough!$L:$L,raw_inputs_passthrough!$A:$A,AI$990)","v":2211.6203935860099},{"$f":"SUMIFS(raw_inputs_passthrough!$L:$L,raw_inputs_passthrough!$A:$A,AJ$990)","v":0},{"$f":"SUMIFS(raw_inputs_passthrough!$L:$L,raw_inputs_passthrough!$A:$A,AK$990)","v":0},{"$f":"SUMIFS(raw_inputs_passthrough!$L:$L,raw_inputs_passthrough!$A:$A,AL$990)","v":0},{"$f":"SUMIFS(raw_inputs_passthrough!$L:$L,raw_inputs_passthrough!$A:$A,AM$990)","v":0},{"$f":"SUMIFS(raw_inputs_passthrough!$L:$L,raw_inputs_passthrough!$A:$A,AN$990)","v":0}]
[null,null,"Total Resource Cost","$MM",{"$f":"SUM(E1000:E1001)","v":0},{"$f":"SUM(F1000:F1001)","v":0},0,0,0,42624.783699035652,45441.234291296088,45054.195419186639,44620.294114461547,44868.324945581597,0,43242.33634120199,0,0,0,45086.076170759501,0,0,0,0,0,0,0,0,0,0,0,0,0,0,67105.138078472039,0,0,0,0,0]
[null,null,"Total Retail Sales","GWh/yr",{"$f":"('Portfolio Analytics'!E196-'Portfolio Analytics'!E181-E191)*(1-'Portfolio Analytics'!E844)","v":0},{"$f":"('Portfolio Analytics'!F196-'Portfolio Analytics'!F181-F191)*(1-'Portfolio Analytics'!F844)","v":0},{"$f":"('Portfolio Analytics'!G196-'Portfolio Analytics'!G181-G191)*(1-'Portfolio Analytics'!G844)","v":0},{"$f":"('Portfolio Analytics'!H196-'Portfolio Analytics'!H181-H191)*(1-'Portfolio Analytics'!H844)","v":0},{"$f":"('Portfolio Analytics'!I196-'Portfolio Analytics'!I181-I191)*(1-'Portfolio Analytics'!I844)","v":0},{"$f":"('Portfolio Analytics'!J196-'Portfolio Analytics'!J181-J191)*(1-'Portfolio Analytics'!J844)","v":215947.61166679751},{"$f":"('Portfolio Analytics'!K196-'Portfolio Analytics'!K181-K191)*(1-'Portfolio Analytics'!K844)","v":220280.78770507782},{"$f":"('Portfolio Analytics'!L196-'Portfolio Analytics'!L181-L191)*(1-'Portfolio Analytics'!L844)","v":225058.82651533952},{"$f":"('Portfolio Analytics'!M196-'Portfolio Analytics'!M181-M191)*(1-'Portfolio Analytics'!M844)","v":229518.68265599429},{"$f":"('Portfolio Analytics'!N196-'Portfolio Analytics'!N181-N191)*(1-'Portfolio Analytics'!N844)","v":233416.96046750512},{"$f":"('Portfolio Analytics'!O196-'Portfolio Analytics'!O181-O191)*(1-'Portfolio Analytics'!O844)","v":0},{"$f":"('Portfolio Analytics'!P196-'Portfolio Analytics'!P181-P191)*(1-'Portfolio Analytics'!P844)","v":240336.91700514342},{"$f":"('Portfolio Analytics'!Q196-'Portfolio Analytics'!Q181-Q191)*(1-'Portfolio Analytics'!Q844)","v":0},{"$f":"('Portfolio Analytics'!R196-'Portfolio Analytics'!R181-R191)*(1-'Portfolio Analytics'!R844)","v":0},{"$f":"('Portfolio Analytics'!S196-'Portfolio Analytics'!S181-S191)*(1-'Portfolio Analytics'!S844)","v":0},{"$f":"('Portfolio Analytics'!T196-'Portfolio Analytics'!T181-T191)*(1-'Portfolio Analytics'!T844)","v":251673.63860375612},{"$f":"('Portfolio Analytics'!U196-'Portfolio Analytics'!U181-U191)*(1-'Portfolio Analytics'!U844)","v":0},{"$f":"('Portfolio Analytics'!V196-'Portfolio Analytics'!V181-V191)*(1-'Portfolio Analytics'!V844)","v":0},{"$f":"('Portfolio Analytics'!W196-'Portfolio Analytics'!W181-W191)*(1-'Portfolio Analytics'!W844)","v":0},{"$f":"('Portfolio Analytics'!X196-'Portfolio Analytics'!X181-X191)*(1-'Portfolio Analytics'!X844)","v":0},{"$f":"('Portfolio Analytics'!Y196-'Portfolio Analytics'!Y181-Y191)*(1-'Portfolio Analytics'!Y844)","v":0},{"$f":"('Portfolio Analytics'!Z196-'Portfolio Analytics'!Z181-Z191)*(1-'Portfolio Analytics'!Z844)","v":0},{"$f":"('Portfolio Analytics'!AA196-'Portfolio Analytics'!AA181-AA191)*(1-'Portfolio Analytics'!AA844)","v":0},{"$f":"('Portfolio Analytics'!AB196-'Portfolio Analytics'!AB181-AB191)*(1-'Portfolio Analytics'!AB844)","v":0},{"$f":"('Portfolio Analytics'!AC196-'Portfolio Analytics'!AC181-AC191)*(1-'Portfolio Analytics'!AC844)","v":0},{"$f":"('Portfolio Analytics'!AD196-'Portfolio Analytics'!AD181-AD191)*(1-'Portfolio Analytics'!AD844)","v":0},{"$f":"('Portfolio Analytics'!AE196-'Portfolio Analytics'!AE181-AE191)*(1-'Portfolio Analytics'!AE844)","v":0},{"$f":"('Portfolio Analytics'!AF196-'Portfolio Analytics'!AF181-AF191)*(1-'Portfolio Analytics'!AF844)","v":0},{"$f":"('Portfolio Analytics'!AG196-'Portfolio Analytics'!AG181-AG191)*(1-'Portfolio Analytics'!AG844)","v":0},{"$f":"('Portfolio Analytics'!AH196-'Portfolio Analytics'!AH181-AH191)*(1-'Portfolio Analytics'!AH844)","v":0},{"$f":"('Portfolio Analytics'!AI196-'Portfolio Analytics'!AI181-AI191)*(1-'Portfolio Analytics'!AI844)","v":368183.69047160581},{"$f":"('Portfolio Analytics'!AJ196-'Portfolio Analytics'!AJ181-AJ191)*(1-'Portfolio Analytics'!AJ844)","v":0},{"$f":"('Portfolio Analytics'!AK196-'Portfolio Analytics'!AK181-AK191)*(1-'Portfolio Analytics'!AK844)","v":0},{"$f":"('Portfolio Analytics'!AL196-'Portfolio Analytics'!AL181-AL191)*(1-'Portfolio Analytics'!AL844)","v":0},{"$f":"('Portfolio Analytics'!AM196-'Portfolio Analytics'!AM181-AM191)*(1-'Portfolio Analytics'!AM844)","v":0},{"$f":"('Portfolio Analytics'!AN196-'Portfolio Analytics'!AN181-AN191)*(1-'Portfolio Analytics'!AN844)","v":0}]
[null,null,"Retail Rate","cts/kWh",{"$f":"IFERROR(E1000/E1003,0)*100","v":0},0,0,0,0,18.714336775257454,19.624777243664074,19.036167427399509,18.477220777899912,18.274895048997088,0,17.072165383039298,0,0,0,17.035735651550119,0,0,0,0,0,0,0,0,0,0,0,0,0,0,17.625310236247575,0,0,0,0,0]
[]
[]
[null,null,"PV Revenue Requirement ($MM)",{"$f":"SUMPRODUCT($E$1169:$AN$1169,Dashboard!$J$212:$AS$212)","v":395252.83527097193}]
[null,null,"Baseline Thermal Fleet Fixed Costs",{"$f":"SUMPRODUCT($E993:$AN993,Dashboard!$J$212:$AS$212)","v":5350.7554447968641}]
[null,null,"New Renewables Fixed Costs",{"$f":"SUMPRODUCT($E994:$AN994,Dashboard!$J$212:$AS$212)","v":112668.51540744952}]
[null,null,"New Storage Fixed Costs",{"$f":"SUMPRODUCT($E995:$AN995,Dashboard!$J$212:$AS$212)","v":86007.64485556104}]
[null,null,"New Thermal Fleet Fixed Costs",{"$f":"SUMPRODUCT($E996:$AN996,Dashboard!$J$212:$AS$212)","v":0}]
[null,null,"New DR Fixed Costs",{"$f":"SUMPRODUCT($E997:$AN997,Dashboard!$J$212:$AS$212)","v":0}]
[null,null,"New Transmission Costs",{"$f":"SUMPRODUCT($E998:$AN998,Dashboard!$J$212:$AS$212)","v":27676.299295321718}]
[null,null,"Operational Costs",{"$f":"SUMPRODUCT($E999:$AN999,Dashboard!$J$212:$AS$212)","v":45449.620270359803}]
[]
[null,null,"Levelized Revenue Requirement ($MM/yr)",{"$f":"D1007/SUM(Dashboard!$J$212:$AS$212)","v":21053.124816580603}]
[null,null,"Baseline Thermal Fleet Fixed Costs",{"$f":"D1008/SUM(Dashboard!$J$212:$AS$212)","v":285.00775248095954}]
[null,null,"New Renewables Fixed Costs",{"$f":"D1009/SUM(Dashboard!$J$212:$AS$212)","v":6001.2834978038554}]
[null,null,"New Storage Fixed Costs",{"$f":"D1010/SUM(Dashboard!$J$212:$AS$212)","v":4581.1934051855396}]
[null,null,"New Thermal Fleet Fixed Costs",{"$f":"D1011/SUM(Dashboard!$J$212:$AS$212)","v":0}]
[null,null,"New DR Fixed Costs",{"$f":"D1012/SUM(Dashboard!$J$212:$AS$212)","v":0}]
[null,null,"New Transmission Costs",{"$f":"D1013/SUM(Dashboard!$J$212:$AS$212)","v":1474.1768597965636}]
[null,null,"Operational Costs",{"$f":"D1014/SUM(Dashboard!$J$212:$AS$212)","v":2420.8720166727921}]
[]
[]
[null,null,"Retail Rate (cts/kWh) Results"]
[null,null,"Component","Unit",2015,{"$f":"E1027+1","v":2016},2017,2018,2019,2020,2021,2022,2023,2024,2025,2026,2027,2028,2029,2030,2031,2032,2033,2034,2035,2036,2037,2038,2039,2040,2041,2042,2043,2044,2045,2046,2047,2048,2049,2050]
[null,null,"Baseline Non-Modeled Costs","cts/kWh",{"$f":"IF(E$1003>0,E991/E$1003,0)*100","v":0},0,0,0,0,16.485384605801656,17.044589179876613,16.459111533663293,15.841146709808285,15.388083766980341,0,13.684514005453281,0,0,0,13.216736005944,0,0,0,0,0,0,0,0,0,0,0,0,0,0,9.7131980822744399,0,0,0,0,0]
[null,null,"DSM Non-Modeled Costs","cts/kWh",{"$f":"IF(E$1003>0,E992/E$1003,0)*100","v":0},0,0,0,0,7.3464328013290531E-2,0.10583623882857143,0.12160346659038083,0.13671115329609401,0.14794985083852716,0,0.16167585045822314,0,0,0,0.18172971065125476,0,0,0,0,0,0,0,0,0,0,0,0,0,0,0.31611889086468492,0,0,0,0,0]
[null,null,"Baseline Thermal Fleet Fixed Costs","cts/kWh",{"$f":"IF(E$1003>0,E993/E$1003,0)*100","v":0},0,0,0,0,0.15243922810219884,0.13708342305107854,0.13417311766238083,0.1315659538542204,0.12936868148106925,0,0.12564380365399197,0,0,0,0.11998413730785282,0,0,0,0,0,0,0,0,0,0,0,0,0,0,6.7994014503829941E-2,0,0,0,0,0]
[null,null,"New Renewables Fixed Costs","cts/kWh",{"$f":"IF(E$1003>0,E994/E$1003,0)*100","v":0},0,0,0,0,7.1424220883714737E-2,0.13977895224899917,0.39417787521856429,0.46645651354431877,0.59783991243612622,0,0.76424558067402171,0,0,0,1.3107059227182676,0,0,0,0,0,0,0,0,0,0,0,0,0,0,3.586676743509476,0,0,0,0,0]
[null,null,"New Storage Fixed Costs","cts/kWh",{"$f":"IF(E$1003>0,E995/E$1003,0)*100","v":0},0,0,0,0,0.26723384934695632,0.46474328477553423,0.45487670239861666,0.46144071526734154,0.55391151909888436,0,0.86963482753474408,0,0,0,0.90791071573751125,0,0,0,0,0,0,0,0,0,0,0,0,0,0,2.642849848258126,0,0,0,0,0]
[null,null,"New Thermal Fleet Fixed Costs","cts/kWh",{"$f":"IF(E$1003>0,E996/E$1003,0)*100","v":0},0,0,0,0,0,0,0,0,0,0,0,0,0,0,0,0,0,0,0,0,0,0,0,0,0,0,0,0,0,0,0,0,0,0,0]
[null,null,"Operating Cost","cts/kWh",{"$f":"IF(E$1003>0,E999/E$1003,0)*100","v":0},0,0,0,0,1.6643905431096346,1.7327461648832754,1.472224731866274,1.4394627768507189,1.4566018520048094,0,1.4593152594673207,0,0,0,1.2024296434025576,0,0,0,0,0,0,0,0,0,0,0,0,0,0,0.22624114036129275,0,0,0,0,0]
[null,null,"Total Revenue Requirement","cts/kWh",{"$f":"IF(E$1003>0,E1000/E$1003,0)*100","v":0},0,0,0,0,18.714336775257454,19.624777243664074,19.036167427399509,18.477220777899912,18.274895048997088,0,17.072165383039298,0,0,0,17.035735651550119,0,0,0,0,0,0,0,0,0,0,0,0,0,0,17.625310236247575,0,0,0,0,0]
[]
[]
[null,null,"Total Revenue Requirement by Component"]
[null,null,"Component","Unit",2015,{"$f":"E1039+1","v":2016},2017,2018,2019,2020,2021,2022,2023,2024,2025,2026,2027,2028,2029,2030,2031,2032,2033,2034,2035,2036,2037,2038,2039,2040,2041,2042,2043,2044,2045,2046,2047,2048,2049,2050]
[null,null,"Distribution","$MM",{"$f":"SUMIFS(raw_inputs_passthrough!$B:$B,raw_inputs_passthrough!$A:$A,E$990)+SUMIFS(raw_inputs_passthrough!$G:$G,raw_inputs_passthrough!$A:$A,E$990)","v":0},{"$f":"SUMIFS(raw_inputs_passthrough!$B:$B,raw_inputs_passthrough!$A:$A,F$990)+SUMIFS(raw_inputs_passthrough!$G:$G,raw_inputs_passthrough!$A:$A,F$990)","v":0},{"$f":"SUMIFS(raw_inputs_passthrough!$B:$B,raw_inputs_passthrough!$A:$A,G$990)+SUMIFS(raw_inputs_passthrough!$G:$G,raw_inputs_passthrough!$A:$A,G$990)","v":0},{"$f":"SUMIFS(raw_inputs_passthrough!$B:$B,raw_inputs_passthrough!$A:$A,H$990)+SUMIFS(raw_inputs_passthrough!$G:$G,raw_inputs_passthrough!$A:$A,H$990)","v":0},{"$f":"SUMIFS(raw_inputs_passthrough!$B:$B,raw_inputs_passthrough!$A:$A,I$990)+SUMIFS(raw_inputs_passthrough!$G:$G,raw_inputs_passthrough!$A:$A,I$990)","v":0},{"$f":"SUMIFS(raw_inputs_passthrough!$B:$B,raw_inputs_passthrough!$A:$A,J$990)+SUMIFS(raw_inputs_passthrough!$G:$G,raw_inputs_passthrough!$A:$A,J$990)","v":12486.928115744437},{"$f":"SUMIFS(raw_inputs_passthrough!$B:$B,raw_inputs_passthrough!$A:$A,K$990)+SUMIFS(raw_inputs_passthrough!$G:$G,raw_inputs_passthrough!$A:$A,K$990)","v":13810.934081870606},{"$f":"SUMIFS(raw_inputs_passthrough!$B:$B,raw_inputs_passthrough!$A:$A,L$990)+SUMIFS(raw_inputs_passthrough!$G:$G,raw_inputs_passthrough!$A:$A,L$990)","v":14096.837858534716},{"$f":"SUMIFS(raw_inputs_passthrough!$B:$B,raw_inputs_passthrough!$A:$A,M$990)+SUMIFS(raw_inputs_passthrough!$G:$G,raw_inputs_passthrough!$A:$A,M$990)","v":13959.0100484665},{"$f":"SUMIFS(raw_inputs_passthrough!$B:$B,raw_inputs_passthrough!$A:$A,N$990)+SUMIFS(raw_inputs_passthrough!$G:$G,raw_inputs_passthrough!$A:$A,N$990)","v":14056.540749463065},{"$f":"SUMIFS(raw_inputs_passthrough!$B:$B,raw_inputs_passthrough!$A:$A,O$990)+SUMIFS(raw_inputs_passthrough!$G:$G,raw_inputs_passthrough!$A:$A,O$990)","v":0},{"$f":"SUMIFS(raw_inputs_passthrough!$B:$B,raw_inputs_passthrough!$A:$A,P$990)+SUMIFS(raw_inputs_passthrough!$G:$G,raw_inputs_passthrough!$A:$A,P$990)","v":14341.147336523796},{"$f":"SUMIFS(raw_inputs_passthrough!$B:$B,raw_inputs_passthrough!$A:$A,Q$990)+SUMIFS(raw_inputs_passthrough!$G:$G,raw_inputs_passthrough!$A:$A,Q$990)","v":0},{"$f":"SUMIFS(raw_inputs_passthrough!$B:$B,raw_inputs_passthrough!$A:$A,R$990)+SUMIFS(raw_inputs_passthrough!$G:$G,raw_inputs_passthrough!$A:$A,R$990)","v":0},{"$f":"SUMIFS(raw_inputs_passthrough!$B:$B,raw_inputs_passthrough!$A:$A,S$990)+SUMIFS(raw_inputs_passthrough!$G:$G,raw_inputs_passthrough!$A:$A,S$990)","v":0},{"$f":"SUMIFS(raw_inputs_passthrough!$B:$B,raw_inputs_passthrough!$A:$A,T$990)+SUMIFS(raw_inputs_passthrough!$G:$G,raw_inputs_passthrough!$A:$A,T$990)","v":15006.398909263009},{"$f":"SUMIFS(raw_inputs_passthrough!$B:$B,raw_inputs_passthrough!$A:$A,U$990)+SUMIFS(raw_inputs_passthrough!$G:$G,raw_inputs_passthrough!$A:$A,U$990)","v":0},{"$f":"SUMIFS(raw_inputs_passthrough!$B:$B,raw_inputs_passthrough!$A:$A,V$990)+SUMIFS(raw_inputs_passthrough!$G:$G,raw_inputs_passthrough!$A:$A,V$990)","v":0},{"$f":"SUMIFS(raw_inputs_passthrough!$B:$B,raw_inputs_passthrough!$A:$A,W$990)+SUMIFS(raw_inputs_passthrough!$G:$G,raw_inputs_passthrough!$A:$A,W$990)","v":0},{"$f":"SUMIFS(raw_inputs_passthrough!$B:$B,raw_inputs_passthrough!$A:$A,X$990)+SUMIFS(raw_inputs_passthrough!$G:$G,raw_inputs_passthrough!$A:$A,X$990)","v":0},{"$f":"SUMIFS(raw_inputs_passthrough!$B:$B,raw_inputs_passthrough!$A:$A,Y$990)+SUMIFS(raw_inputs_passthrough!$G:$G,raw_inputs_passthrough!$A:$A,Y$990)","v":0},{"$f":"SUMIFS(raw_inputs_passthrough!$B:$B,raw_inputs_passthrough!$A:$A,Z$990)+SUMIFS(raw_inputs_passthrough!$G:$G,raw_inputs_passthrough!$A:$A,Z$990)","v":0},{"$f":"SUMIFS(raw_inputs_passthrough!$B:$B,raw_inputs_passthrough!$A:$A,AA$990)+SUMIFS(raw_inputs_passthrough!$G:$G,raw_inputs_passthrough!$A:$A,AA$990)","v":0},{"$f":"SUMIFS(raw_inputs_passthrough!$B:$B,raw_inputs_passthrough!$A:$A,AB$990)+SUMIFS(raw_inputs_passthrough!$G:$G,raw_inputs_passthrough!$A:$A,AB$990)","v":0},{"$f":"SUMIFS(raw_inputs_passthrough!$B:$B,raw_inputs_passthrough!$A:$A,AC$990)+SUMIFS(raw_inputs_passthrough!$G:$G,raw_inputs_passthrough!$A:$A,AC$990)","v":0},{"$f":"SUMIFS(raw_inputs_passthrough!$B:$B,raw_inputs_passthrough!$A:$A,AD$990)+SUMIFS(raw_inputs_passthrough!$G:$G,raw_inputs_passthrough!$A:$A,AD$990)","v":0},{"$f":"SUMIFS(raw_inputs_passthrough!$B:$B,raw_inputs_passthrough!$A:$A,AE$990)+SUMIFS(raw_inputs_passthrough!$G:$G,raw_inputs_passthrough!$A:$A,AE$990)","v":0},{"$f":"SUMIFS(raw_inputs_passthrough!$B:$B,raw_inputs_passthrough!$A:$A,AF$990)+SUMIFS(raw_inputs_passthrough!$G:$G,raw_inputs_passthrough!$A:$A,AF$990)","v":0},{"$f":"SUMIFS(raw_inputs_passthrough!$B:$B,raw_inputs_passthrough!$A:$A,AG$990)+SUMIFS(raw_inputs_passthrough!$G:$G,raw_inputs_passthrough!$A:$A,AG$990)","v":0},{"$f":"SUMIFS(raw_inputs_passthrough!$B:$B,raw_inputs_passthrough!$A:$A,AH$990)+SUMIFS(raw_inputs_passthrough!$G:$G,raw_inputs_passthrough!$A:$A,AH$990)","v":0},{"$f":"SUMIFS(raw_inputs_passthrough!$B:$B,raw_inputs_passthrough!$A:$A,AI$990)+SUMIFS(raw_inputs_passthrough!$G:$G,raw_inputs_passthrough!$A:$A,AI$990)","v":18406.986553332019},{"$f":"SUMIFS(raw_inputs_passthrough!$B:$B,raw_inputs_passthrough!$A:$A,AJ$990)+SUMIFS(raw_inputs_passthrough!$G:$G,raw_inputs_passthrough!$A:$A,AJ$990)","v":0},{"$f":"SUMIFS(raw_inputs_passthrough!$B:$B,raw_inputs_passthrough!$A:$A,AK$990)+SUMIFS(raw_inputs_passthrough!$G:$G,raw_inputs_passthrough!$A:$A,AK$990)","v":0},{"$f":"SUMIFS(raw_inputs_passthrough!$B:$B,raw_inputs_passthrough!$A:$A,AL$990)+SUMIFS(raw_inputs_passthrough!$G:$G,raw_inputs_passthrough!$A:$A,AL$990)","v":0},{"$f":"SUMIFS(raw_inputs_passthrough!$B:$B,raw_inputs_passthrough!$A:$A,AM$990)+SUMIFS(raw_inputs_passthrough!$G:$G,raw_inputs_passthrough!$A:$A,AM$990)","v":0},{"$f":"SUMIFS(raw_inputs_passthrough!$B:$B,raw_inputs_passthrough!$A:$A,AN$990)+SUMIFS(raw_inputs_passthrough!$G:$G,raw_inputs_passthrough!$A:$A,AN$990)","v":0}]
[null,null,"Transmission","$MM",{"$f":"SUMIFS(raw_inputs_passthrough!$C:$C,raw_inputs_passthrough!$A:$A,E$990)+SUMIFS(raw_inputs_passthrough!$H:$H,raw_inputs_passthrough!$A:$A,E$990)","v":0},{"$f":"SUMIFS(raw_inputs_passthrough!$C:$C,raw_inputs_passthrough!$A:$A,F$990)+SUMIFS(raw_inputs_passthrough!$H:$H,raw_inputs_passthrough!$A:$A,F$990)","v":0},{"$f":"SUMIFS(raw_inputs_passthrough!$C:$C,raw_inputs_passthrough!$A:$A,G$990)+SUMIFS(raw_inputs_passthrough!$H:$H,raw_inputs_passthrough!$A:$A,G$990)","v":0},{"$f":"SUMIFS(raw_inputs_passthrough!$C:$C,raw_inputs_passthrough!$A:$A,H$990)+SUMIFS(raw_inputs_passthrough!$H:$H,raw_inputs_passthrough!$A:$A,H$990)","v":0},{"$f":"SUMIFS(raw_inputs_passthrough!$C:$C,raw_inputs_passthrough!$A:$A,I$990)+SUMIFS(raw_inputs_passthrough!$H:$H,raw_inputs_passthrough!$A:$A,I$990)","v":0},{"$f":"SUMIFS(raw_inputs_passthrough!$C:$C,raw_inputs_passthrough!$A:$A,J$990)+SUMIFS(raw_inputs_passthrough!$H:$H,raw_inputs_passthrough!$A:$A,J$990)","v":3938.4682893697},{"$f":"SUMIFS(raw_inputs_passthrough!$C:$C,raw_inputs_passthrough!$A:$A,K$990)+SUMIFS(raw_inputs_passthrough!$H:$H,raw_inputs_passthrough!$A:$A,K$990)","v":4003.5748370097399},{"$f":"SUMIFS(raw_inputs_passthrough!$C:$C,raw_inputs_passthrough!$A:$A,L$990)+SUMIFS(raw_inputs_passthrough!$H:$H,raw_inputs_passthrough!$A:$A,L$990)","v":3510.7041212326299},{"$f":"SUMIFS(raw_inputs_passthrough!$C:$C,raw_inputs_passthrough!$A:$A,M$990)+SUMIFS(raw_inputs_passthrough!$H:$H,raw_inputs_passthrough!$A:$A,M$990)","v":4101.3614075414598},{"$f":"SUMIFS(raw_inputs_passthrough!$C:$C,raw_inputs_passthrough!$A:$A,N$990)+SUMIFS(raw_inputs_passthrough!$H:$H,raw_inputs_passthrough!$A:$A,N$990)","v":4142.1343888402398},{"$f":"SUMIFS(raw_inputs_passthrough!$C:$C,raw_inputs_passthrough!$A:$A,O$990)+SUMIFS(raw_inputs_passthrough!$H:$H,raw_inputs_passthrough!$A:$A,O$990)","v":0},{"$f":"SUMIFS(raw_inputs_passthrough!$C:$C,raw_inputs_passthrough!$A:$A,P$990)+SUMIFS(raw_inputs_passthrough!$H:$H,raw_inputs_passthrough!$A:$A,P$990)","v":4189.0957834091096},{"$f":"SUMIFS(raw_inputs_passthrough!$C:$C,raw_inputs_passthrough!$A:$A,Q$990)+SUMIFS(raw_inputs_passthrough!$H:$H,raw_inputs_passthrough!$A:$A,Q$990)","v":0},{"$f":"SUMIFS(raw_inputs_passthrough!$C:$C,raw_inputs_passthrough!$A:$A,R$990)+SUMIFS(raw_inputs_passthrough!$H:$H,raw_inputs_passthrough!$A:$A,R$990)","v":0},{"$f":"SUMIFS(raw_inputs_passthrough!$C:$C,raw_inputs_passthrough!$A:$A,S$990)+SUMIFS(raw_inputs_passthrough!$H:$H,raw_inputs_passthrough!$A:$A,S$990)","v":0},{"$f":"SUMIFS(raw_inputs_passthrough!$C:$C,raw_inputs_passthrough!$A:$A,T$990)+SUMIFS(raw_inputs_passthrough!$H:$H,raw_inputs_passthrough!$A:$A,T$990)","v":4735.00557016946},{"$f":"SUMIFS(raw_inputs_passthrough!$C:$C,raw_inputs_passthrough!$A:$A,U$990)+SUMIFS(raw_inputs_passthrough!$H:$H,raw_inputs_passthrough!$A:$A,U$990)","v":0},{"$f":"SUMIFS(raw_inputs_passthrough!$C:$C,raw_inputs_passthrough!$A:$A,V$990)+SUMIFS(raw_inputs_passthrough!$H:$H,raw_inputs_passthrough!$A:$A,V$990)","v":0},{"$f":"SUMIFS(raw_inputs_passthrough!$C:$C,raw_inputs_passthrough!$A:$A,W$990)+SUMIFS(raw_inputs_passthrough!$H:$H,raw_inputs_passthrough!$A:$A,W$990)","v":0},{"$f":"SUMIFS(raw_inputs_passthrough!$C:$C,raw_inputs_passthrough!$A:$A,X$990)+SUMIFS(raw_inputs_passthrough!$H:$H,raw_inputs_passthrough!$A:$A,X$990)","v":0},{"$f":"SUMIFS(raw_inputs_passthrough!$C:$C,raw_inputs_passthrough!$A:$A,Y$990)+SUMIFS(raw_inputs_passthrough!$H:$H,raw_inputs_passthrough!$A:$A,Y$990)","v":0},{"$f":"SUMIFS(raw_inputs_passthrough!$C:$C,raw_inputs_passthrough!$A:$A,Z$990)+SUMIFS(raw_inputs_passthrough!$H:$H,raw_inputs_passthrough!$A:$A,Z$990)","v":0},{"$f":"SUMIFS(raw_inputs_passthrough!$C:$C,raw_inputs_passthrough!$A:$A,AA$990)+SUMIFS(raw_inputs_passthrough!$H:$H,raw_inputs_passthrough!$A:$A,AA$990)","v":0},{"$f":"SUMIFS(raw_inputs_passthrough!$C:$C,raw_inputs_passthrough!$A:$A,AB$990)+SUMIFS(raw_inputs_passthrough!$H:$H,raw_inputs_passthrough!$A:$A,AB$990)","v":0},{"$f":"SUMIFS(raw_inputs_passthrough!$C:$C,raw_inputs_passthrough!$A:$A,AC$990)+SUMIFS(raw_inputs_passthrough!$H:$H,raw_inputs_passthrough!$A:$A,AC$990)","v":0},{"$f":"SUMIFS(raw_inputs_passthrough!$C:$C,raw_inputs_passthrough!$A:$A,AD$990)+SUMIFS(raw_inputs_passthrough!$H:$H,raw_inputs_passthrough!$A:$A,AD$990)","v":0},{"$f":"SUMIFS(raw_inputs_passthrough!$C:$C,raw_inputs_passthrough!$A:$A,AE$990)+SUMIFS(raw_inputs_passthrough!$H:$H,raw_inputs_passthrough!$A:$A,AE$990)","v":0},{"$f":"SUMIFS(raw_inputs_passthrough!$C:$C,raw_inputs_passthrough!$A:$A,AF$990)+SUMIFS(raw_inputs_passthrough!$H:$H,raw_inputs_passthrough!$A:$A,AF$990)","v":0},{"$f":"SUMIFS(raw_inputs_passthrough!$C:$C,raw_inputs_passthrough!$A:$A,AG$990)+SUMIFS(raw_inputs_passthrough!$H:$H,raw_inputs_passthrough!$A:$A,AG$990)","v":0},{"$f":"SUMIFS(raw_inputs_passthrough!$C:$C,raw_inputs_passthrough!$A:$A,AH$990)+SUMIFS(raw_inputs_passthrough!$H:$H,raw_inputs_passthrough!$A:$A,AH$990)","v":0},{"$f":"SUMIFS(raw_inputs_passthrough!$C:$C,raw_inputs_passthrough!$A:$A,AI$990)+SUMIFS(raw_inputs_passthrough!$H:$H,raw_inputs_passthrough!$A:$A,AI$990)","v":5199.3026103457196},{"$f":"SUMIFS(raw_inputs_passthrough!$C:$C,raw_inputs_passthrough!$A:$A,AJ$990)+SUMIFS(raw_inputs_passthrough!$H:$H,raw_inputs_passthrough!$A:$A,AJ$990)","v":0},{"$f":"SUMIFS(raw_inputs_passthrough!$C:$C,raw_inputs_passthrough!$A:$A,AK$990)+SUMIFS(raw_inputs_passthrough!$H:$H,raw_inputs_passthrough!$A:$A,AK$990)","v":0},{"$f":"SUMIFS(raw_inputs_passthrough!$C:$C,raw_inputs_passthrough!$A:$A,AL$990)+SUMIFS(raw_inputs_passthrough!$H:$H,raw_inputs_passthrough!$A:$A,AL$990)","v":0},{"$f":"SUMIFS(raw_inputs_passthrough!$C:$C,raw_inputs_passthrough!$A:$A,AM$990)+SUMIFS(raw_inputs_passthrough!$H:$H,raw_inputs_passthrough!$A:$A,AM$990)","v":0},{"$f":"SUMIFS(raw_inputs_passthrough!$C:$C,raw_inputs_passthrough!$A:$A,AN$990)+SUMIFS(raw_inputs_passthrough!$H:$H,raw_inputs_passthrough!$A:$A,AN$990)","v":0}]
[null,null,"Generation","$MM",{"$f":"SUMIFS(raw_inputs_passthrough!$D:$D,raw_inputs_passthrough!$A:$A,E$990)+SUMIFS(raw_inputs_passthrough!$I:$I,raw_inputs_passthrough!$A:$A,E$990)+SUM(E$993:E$999)","v":0},{"$f":"SUMIFS(raw_inputs_passthrough!$D:$D,raw_inputs_passthrough!$A:$A,F$990)+SUMIFS(raw_inputs_passthrough!$I:$I,raw_inputs_passthrough!$A:$A,F$990)+SUM(F$993:F$999)","v":0},{"$f":"SUMIFS(raw_inputs_passthrough!$D:$D,raw_inputs_passthrough!$A:$A,G$990)+SUMIFS(raw_inputs_passthrough!$I:$I,raw_inputs_passthrough!$A:$A,G$990)+SUM(G$993:G$999)","v":0},{"$f":"SUMIFS(raw_inputs_passthrough!$D:$D,raw_inputs_passthrough!$A:$A,H$990)+SUMIFS(raw_inputs_passthrough!$I:$I,raw_inputs_passthrough!$A:$A,H$990)+SUM(H$993:H$999)","v":0},{"$f":"SUMIFS(raw_inputs_passthrough!$D:$D,raw_inputs_passthrough!$A:$A,I$990)+SUMIFS(raw_inputs_passthrough!$I:$I,raw_inputs_passthrough!$A:$A,I$990)+SUM(I$993:I$999)","v":0},{"$f":"SUMIFS(raw_inputs_passthrough!$D:$D,raw_inputs_passthrough!$A:$A,J$990)+SUMIFS(raw_inputs_passthrough!$I:$I,raw_inputs_passthrough!$A:$A,J$990)+SUM(J$993:J$999)","v":22905.816581010324},{"$f":"SUMIFS(raw_inputs_passthrough!$D:$D,raw_inputs_passthrough!$A:$A,K$990)+SUMIFS(raw_inputs_passthrough!$I:$I,raw_inputs_passthrough!$A:$A,K$990)+SUM(K$993:K$999)","v":24397.3085895078},{"$f":"SUMIFS(raw_inputs_passthrough!$D:$D,raw_inputs_passthrough!$A:$A,L$990)+SUMIFS(raw_inputs_passthrough!$I:$I,raw_inputs_passthrough!$A:$A,L$990)+SUM(L$993:L$999)","v":24484.99974030671},{"$f":"SUMIFS(raw_inputs_passthrough!$D:$D,raw_inputs_passthrough!$A:$A,M$990)+SUMIFS(raw_inputs_passthrough!$I:$I,raw_inputs_passthrough!$A:$A,M$990)+SUM(M$993:M$999)","v":24413.151761312678},{"$f":"SUMIFS(raw_inputs_passthrough!$D:$D,raw_inputs_passthrough!$A:$A,N$990)+SUMIFS(raw_inputs_passthrough!$I:$I,raw_inputs_passthrough!$A:$A,N$990)+SUM(N$993:N$999)","v":24816.390872592743},{"$f":"SUMIFS(raw_inputs_passthrough!$D:$D,raw_inputs_passthrough!$A:$A,O$990)+SUMIFS(raw_inputs_passthrough!$I:$I,raw_inputs_passthrough!$A:$A,O$990)+SUM(O$993:O$999)","v":0},{"$f":"SUMIFS(raw_inputs_passthrough!$D:$D,raw_inputs_passthrough!$A:$A,P$990)+SUMIFS(raw_inputs_passthrough!$I:$I,raw_inputs_passthrough!$A:$A,P$990)+SUM(P$993:P$999)","v":24260.48082169921},{"$f":"SUMIFS(raw_inputs_passthrough!$D:$D,raw_inputs_passthrough!$A:$A,Q$990)+SUMIFS(raw_inputs_passthrough!$I:$I,raw_inputs_passthrough!$A:$A,Q$990)+SUM(Q$993:Q$999)","v":0},{"$f":"SUMIFS(raw_inputs_passthrough!$D:$D,raw_inputs_passthrough!$A:$A,R$990)+SUMIFS(raw_inputs_passthrough!$I:$I,raw_inputs_passthrough!$A:$A,R$990)+SUM(R$993:R$999)","v":0},{"$f":"SUMIFS(raw_inputs_passthrough!$D:$D,raw_inputs_passthrough!$A:$A,S$990)+SUMIFS(raw_inputs_passthrough!$I:$I,raw_inputs_passthrough!$A:$A,S$990)+SUM(S$993:S$999)","v":0},{"$f":"SUMIFS(raw_inputs_passthrough!$D:$D,raw_inputs_passthrough!$A:$A,T$990)+SUMIFS(raw_inputs_passthrough!$I:$I,raw_inputs_passthrough!$A:$A,T$990)+SUM(T$993:T$999)","v":25727.186310229066},{"$f":"SUMIFS(raw_inputs_passthrough!$D:$D,raw_inputs_passthrough!$A:$A,U$990)+SUMIFS(raw_inputs_passthrough!$I:$I,raw_inputs_passthrough!$A:$A,U$990)+SUM(U$993:U$999)","v":0},{"$f":"SUMIFS(raw_inputs_passthrough!$D:$D,raw_inputs_passthrough!$A:$A,V$990)+SUMIFS(raw_inputs_passthrough!$I:$I,raw_inputs_passthrough!$A:$A,V$990)+SUM(V$993:V$999)","v":0},{"$f":"SUMIFS(raw_inputs_passthrough!$D:$D,raw_inputs_passthrough!$A:$A,W$990)+SUMIFS(raw_inputs_passthrough!$I:$I,raw_inputs_passthrough!$A:$A,W$990)+SUM(W$993:W$999)","v":0},{"$f":"SUMIFS(raw_inputs_passthrough!$D:$D,raw_inputs_passthrough!$A:$A,X$990)+SUMIFS(raw_inputs_passthrough!$I:$I,raw_inputs_passthrough!$A:$A,X$990)+SUM(X$993:X$999)","v":0},{"$f":"SUMIFS(raw_inputs_passthrough!$D:$D,raw_inputs_passthrough!$A:$A,Y$990)+SUMIFS(raw_inputs_passthrough!$I:$I,raw_inputs_passthrough!$A:$A,Y$990)+SUM(Y$993:Y$999)","v":0},{"$f":"SUMIFS(raw_inputs_passthrough!$D:$D,raw_inputs_passthrough!$A:$A,Z$990)+SUMIFS(raw_inputs_passthrough!$I:$I,raw_inputs_passthrough!$A:$A,Z$990)+SUM(Z$993:Z$999)","v":0},{"$f":"SUMIFS(raw_inputs_passthrough!$D:$D,raw_inputs_passthrough!$A:$A,AA$990)+SUMIFS(raw_inputs_passthrough!$I:$I,raw_inputs_passthrough!$A:$A,AA$990)+SUM(AA$993:AA$999)","v":0},{"$f":"SUMIFS(raw_inputs_passthrough!$D:$D,raw_inputs_passthrough!$A:$A,AB$990)+SUMIFS(raw_inputs_passthrough!$I:$I,raw_inputs_passthrough!$A:$A,AB$990)+SUM(AB$993:AB$999)","v":0},{"$f":"SUMIFS(raw_inputs_passthrough!$D:$D,raw_inputs_passthrough!$A:$A,AC$990)+SUMIFS(raw_inputs_passthrough!$I:$I,raw_inputs_passthrough!$A:$A,AC$990)+SUM(AC$993:AC$999)","v":0},{"$f":"SUMIFS(raw_inputs_passthrough!$D:$D,raw_inputs_passthrough!$A:$A,AD$990)+SUMIFS(raw_inputs_passthrough!$I:$I,raw_inputs_passthrough!$A:$A,AD$990)+SUM(AD$993:AD$999)","v":0},{"$f":"SUMIFS(raw_inputs_passthrough!$D:$D,raw_inputs_passthrough!$A:$A,AE$990)+SUMIFS(raw_inputs_passthrough!$I:$I,raw_inputs_passthrough!$A:$A,AE$990)+SUM(AE$993:AE$999)","v":0},{"$f":"SUMIFS(raw_inputs_passthrough!$D:$D,raw_inputs_passthrough!$A:$A,AF$990)+SUMIFS(raw_inputs_passthrough!$I:$I,raw_inputs_passthrough!$A:$A,AF$990)+SUM(AF$993:AF$999)","v":0},{"$f":"SUMIFS(raw_inputs_passthrough!$D:$D,raw_inputs_passthrough!$A:$A,AG$990)+SUMIFS(raw_inputs_passthrough!$I:$I,raw_inputs_passthrough!$A:$A,AG$990)+SUM(AG$993:AG$999)","v":0},{"$f":"SUMIFS(raw_inputs_passthrough!$D:$D,raw_inputs_passthrough!$A:$A,AH$990)+SUMIFS(raw_inputs_passthrough!$I:$I,raw_inputs_passthrough!$A:$A,AH$990)+SUM(AH$993:AH$999)","v":0},{"$f":"SUMIFS(raw_inputs_passthrough!$D:$D,raw_inputs_passthrough!$A:$A,AI$990)+SUMIFS(raw_inputs_passthrough!$I:$I,raw_inputs_passthrough!$A:$A,AI$990)+SUM(AI$993:AI$999)","v":44778.592699854038},{"$f":"SUMIFS(raw_inputs_passthrough!$D:$D,raw_inputs_passthrough!$A:$A,AJ$990)+SUMIFS(raw_inputs_passthrough!$I:$I,raw_inputs_passthrough!$A:$A,AJ$990)+SUM(AJ$993:AJ$999)","v":0},{"$f":"SUMIFS(raw_inputs_passthrough!$D:$D,raw_inputs_passthrough!$A:$A,AK$990)+SUMIFS(raw_inputs_passthrough!$I:$I,raw_inputs_passthrough!$A:$A,AK$990)+SUM(AK$993:AK$999)","v":0},{"$f":"SUMIFS(raw_inputs_passthrough!$D:$D,raw_inputs_passthrough!$A:$A,AL$990)+SUMIFS(raw_inputs_passthrough!$I:$I,raw_inputs_passthrough!$A:$A,AL$990)+SUM(AL$993:AL$999)","v":0},{"$f":"SUMIFS(raw_inputs_passthrough!$D:$D,raw_inputs_passthrough!$A:$A,AM$990)+SUMIFS(raw_inputs_passthrough!$I:$I,raw_inputs_passthrough!$A:$A,AM$990)+SUM(AM$993:AM$999)","v":0},{"$f":"SUMIFS(raw_inputs_passthrough!$D:$D,raw_inputs_passthrough!$A:$A,AN$990)+SUMIFS(raw_inputs_passthrough!$I:$I,raw_inputs_passthrough!$A:$A,AN$990)+SUM(AN$993:AN$999)","v":0}]
[null,null,"DSM Programs","$MM",{"$f":"SUMIFS(raw_inputs_passthrough!$E:$E,raw_inputs_passthrough!$A:$A,E$990)+SUMIFS(raw_inputs_passthrough!$J:$J,raw_inputs_passthrough!$A:$A,E$990)","v":0},{"$f":"SUMIFS(raw_inputs_passthrough!$E:$E,raw_inputs_passthrough!$A:$A,F$990)+SUMIFS(raw_inputs_passthrough!$J:$J,raw_inputs_passthrough!$A:$A,F$990)","v":0},{"$f":"SUMIFS(raw_inputs_passthrough!$E:$E,raw_inputs_passthrough!$A:$A,G$990)+SUMIFS(raw_inputs_passthrough!$J:$J,raw_inputs_passthrough!$A:$A,G$990)","v":0},{"$f":"SUMIFS(raw_inputs_passthrough!$E:$E,raw_inputs_passthrough!$A:$A,H$990)+SUMIFS(raw_inputs_passthrough!$J:$J,raw_inputs_passthrough!$A:$A,H$990)","v":0},{"$f":"SUMIFS(raw_inputs_passthrough!$E:$E,raw_inputs_passthrough!$A:$A,I$990)+SUMIFS(raw_inputs_passthrough!$J:$J,raw_inputs_passthrough!$A:$A,I$990)","v":0},{"$f":"SUMIFS(raw_inputs_passthrough!$E:$E,raw_inputs_passthrough!$A:$A,J$990)+SUMIFS(raw_inputs_passthrough!$J:$J,raw_inputs_passthrough!$A:$A,J$990)","v":0},{"$f":"SUMIFS(raw_inputs_passthrough!$E:$E,raw_inputs_passthrough!$A:$A,K$990)+SUMIFS(raw_inputs_passthrough!$J:$J,raw_inputs_passthrough!$A:$A,K$990)","v":0},{"$f":"SUMIFS(raw_inputs_passthrough!$E:$E,raw_inputs_passthrough!$A:$A,L$990)+SUMIFS(raw_inputs_passthrough!$J:$J,raw_inputs_passthrough!$A:$A,L$990)","v":0},{"$f":"SUMIFS(raw_inputs_passthrough!$E:$E,raw_inputs_passthrough!$A:$A,M$990)+SUMIFS(raw_inputs_passthrough!$J:$J,raw_inputs_passthrough!$A:$A,M$990)","v":0},{"$f":"SUMIFS(raw_inputs_passthrough!$E:$E,raw_inputs_passthrough!$A:$A,N$990)+SUMIFS(raw_inputs_passthrough!$J:$J,raw_inputs_passthrough!$A:$A,N$990)","v":0},{"$f":"SUMIFS(raw_inputs_passthrough!$E:$E,raw_inputs_passthrough!$A:$A,O$990)+SUMIFS(raw_inputs_passthrough!$J:$J,raw_inputs_passthrough!$A:$A,O$990)","v":0},{"$f":"SUMIFS(raw_inputs_passthrough!$E:$E,raw_inputs_passthrough!$A:$A,P$990)+SUMIFS(raw_inputs_passthrough!$J:$J,raw_inputs_passthrough!$A:$A,P$990)","v":0},{"$f":"SUMIFS(raw_inputs_passthrough!$E:$E,raw_inputs_passthrough!$A:$A,Q$990)+SUMIFS(raw_inputs_passthrough!$J:$J,raw_inputs_passthrough!$A:$A,Q$990)","v":0},{"$f":"SUMIFS(raw_inputs_passthrough!$E:$E,raw_inputs_passthrough!$A:$A,R$990)+SUMIFS(raw_inputs_passthrough!$J:$J,raw_inputs_passthrough!$A:$A,R$990)","v":0},{"$f":"SUMIFS(raw_inputs_passthrough!$E:$E,raw_inputs_passthrough!$A:$A,S$990)+SUMIFS(raw_inputs_passthrough!$J:$J,raw_inputs_passthrough!$A:$A,S$990)","v":0},{"$f":"SUMIFS(raw_inputs_passthrough!$E:$E,raw_inputs_passthrough!$A:$A,T$990)+SUMIFS(raw_inputs_passthrough!$J:$J,raw_inputs_passthrough!$A:$A,T$990)","v":0},{"$f":"SUMIFS(raw_inputs_passthrough!$E:$E,raw_inputs_passthrough!$A:$A,U$990)+SUMIFS(raw_inputs_passthrough!$J:$J,raw_inputs_passthrough!$A:$A,U$990)","v":0},{"$f":"SUMIFS(raw_inputs_passthrough!$E:$E,raw_inputs_passthrough!$A:$A,V$990)+SUMIFS(raw_inputs_passthrough!$J:$J,raw_inputs_passthrough!$A:$A,V$990)","v":0},{"$f":"SUMIFS(raw_inputs_passthrough!$E:$E,raw_inputs_passthrough!$A:$A,W$990)+SUMIFS(raw_inputs_passthrough!$J:$J,raw_inputs_passthrough!$A:$A,W$990)","v":0},{"$f":"SUMIFS(raw_inputs_passthrough!$E:$E,raw_inputs_passthrough!$A:$A,X$990)+SUMIFS(raw_inputs_passthrough!$J:$J,raw_inputs_passthrough!$A:$A,X$990)","v":0},{"$f":"SUMIFS(raw_inputs_passthrough!$E:$E,raw_inputs_passthrough!$A:$A,Y$990)+SUMIFS(raw_inputs_passthrough!$J:$J,raw_inputs_passthrough!$A:$A,Y$990)","v":0},{"$f":"SUMIFS(raw_inputs_passthrough!$E:$E,raw_inputs_passthrough!$A:$A,Z$990)+SUMIFS(raw_inputs_passthrough!$J:$J,raw_inputs_passthrough!$A:$A,Z$990)","v":0},{"$f":"SUMIFS(raw_inputs_passthrough!$E:$E,raw_inputs_passthrough!$A:$A,AA$990)+SUMIFS(raw_inputs_passthrough!$J:$J,raw_inputs_passthrough!$A:$A,AA$990)","v":0},{"$f":"SUMIFS(raw_inputs_passthrough!$E:$E,raw_inputs_passthrough!$A:$A,AB$990)+SUMIFS(raw_inputs_passthrough!$J:$J,raw_inputs_passthrough!$A:$A,AB$990)","v":0},{"$f":"SUMIFS(raw_inputs_passthrough!$E:$E,raw_inputs_passthrough!$A:$A,AC$990)+SUMIFS(raw_inputs_passthrough!$J:$J,raw_inputs_passthrough!$A:$A,AC$990)","v":0},{"$f":"SUMIFS(raw_inputs_passthrough!$E:$E,raw_inputs_passthrough!$A:$A,AD$990)+SUMIFS(raw_inputs_passthrough!$J:$J,raw_inputs_passthrough!$A:$A,AD$990)","v":0},{"$f":"SUMIFS(raw_inputs_passthrough!$E:$E,raw_inputs_passthrough!$A:$A,AE$990)+SUMIFS(raw_inputs_passthrough!$J:$J,raw_inputs_passthrough!$A:$A,AE$990)","v":0},{"$f":"SUMIFS(raw_inputs_passthrough!$E:$E,raw_inputs_passthrough!$A:$A,AF$990)+SUMIFS(raw_inputs_passthrough!$J:$J,raw_inputs_passthrough!$A:$A,AF$990)","v":0},{"$f":"SUMIFS(raw_inputs_passthrough!$E:$E,raw_inputs_passthrough!$A:$A,AG$990)+SUMIFS(raw_inputs_passthrough!$J:$J,raw_inputs_passthrough!$A:$A,AG$990)","v":0},{"$f":"SUMIFS(raw_inputs_passthrough!$E:$E,raw_inputs_passthrough!$A:$A,AH$990)+SUMIFS(raw_inputs_passthrough!$J:$J,raw_inputs_passthrough!$A:$A,AH$990)","v":0},{"$f":"SUMIFS(raw_inputs_passthrough!$E:$E,raw_inputs_passthrough!$A:$A,AI$990)+SUMIFS(raw_inputs_passthrough!$J:$J,raw_inputs_passthrough!$A:$A,AI$990)","v":0},{"$f":"SUMIFS(raw_inputs_passthrough!$E:$E,raw_inputs_passthrough!$A:$A,AJ$990)+SUMIFS(raw_inputs_passthrough!$J:$J,raw_inputs_passthrough!$A:$A,AJ$990)","v":0},{"$f":"SUMIFS(raw_inputs_passthrough!$E:$E,raw_inputs_passthrough!$A:$A,AK$990)+SUMIFS(raw_inputs_passthrough!$J:$J,raw_inputs_passthrough!$A:$A,AK$990)","v":0},{"$f":"SUMIFS(raw_inputs_passthrough!$E:$E,raw_inputs_passthrough!$A:$A,AL$990)+SUMIFS(raw_inputs_passthrough!$J:$J,raw_inputs_passthrough!$A:$A,AL$990)","v":0},{"$f":"SUMIFS(raw_inputs_passthrough!$E:$E,raw_inputs_passthrough!$A:$A,AM$990)+SUMIFS(raw_inputs_passthrough!$J:$J,raw_inputs_passthrough!$A:$A,AM$990)","v":0},{"$f":"SUMIFS(raw_inputs_passthrough!$E:$E,raw_inputs_passthrough!$A:$A,AN$990)+SUMIFS(raw_inputs_passthrough!$J:$J,raw_inputs_passthrough!$A:$A,AN$990)","v":0}]
[null,null,"Other","$MM",{"$f":"SUMIFS(raw_inputs_passthrough!$F:$F,raw_inputs_passthrough!$A:$A,E$990)+SUMIFS(raw_inputs_passthrough!$K:$K,raw_inputs_passthrough!$A:$A,E$990)","v":0},{"$f":"SUMIFS(raw_inputs_passthrough!$F:$F,raw_inputs_passthrough!$A:$A,F$990)+SUMIFS(raw_inputs_passthrough!$K:$K,raw_inputs_passthrough!$A:$A,F$990)","v":0},{"$f":"SUMIFS(raw_inputs_passthrough!$F:$F,raw_inputs_passthrough!$A:$A,G$990)+SUMIFS(raw_inputs_passthrough!$K:$K,raw_inputs_passthrough!$A:$A,G$990)","v":0},{"$f":"SUMIFS(raw_inputs_passthrough!$F:$F,raw_inputs_passthrough!$A:$A,H$990)+SUMIFS(raw_inputs_passthrough!$K:$K,raw_inputs_passthrough!$A:$A,H$990)","v":0},{"$f":"SUMIFS(raw_inputs_passthrough!$F:$F,raw_inputs_passthrough!$A:$A,I$990)+SUMIFS(raw_inputs_passthrough!$K:$K,raw_inputs_passthrough!$A:$A,I$990)","v":0},{"$f":"SUMIFS(raw_inputs_passthrough!$F:$F,raw_inputs_passthrough!$A:$A,J$990)+SUMIFS(raw_inputs_passthrough!$K:$K,raw_inputs_passthrough!$A:$A,J$990)","v":1081.9503193251801},{"$f":"SUMIFS(raw_inputs_passthrough!$F:$F,raw_inputs_passthrough!$A:$A,K$990)+SUMIFS(raw_inputs_passthrough!$K:$K,raw_inputs_passthrough!$A:$A,K$990)","v":1017.79638932193},{"$f":"SUMIFS(raw_inputs_passthrough!$F:$F,raw_inputs_passthrough!$A:$A,L$990)+SUMIFS(raw_inputs_passthrough!$K:$K,raw_inputs_passthrough!$A:$A,L$990)","v":750.03330552657997},{"$f":"SUMIFS(raw_inputs_passthrough!$F:$F,raw_inputs_passthrough!$A:$A,M$990)+SUMIFS(raw_inputs_passthrough!$K:$K,raw_inputs_passthrough!$A:$A,M$990)","v":-64.849496445112706},{"$f":"SUMIFS(raw_inputs_passthrough!$F:$F,raw_inputs_passthrough!$A:$A,N$990)+SUMIFS(raw_inputs_passthrough!$K:$K,raw_inputs_passthrough!$A:$A,N$990)","v":-358.36145890047402},{"$f":"SUMIFS(raw_inputs_passthrough!$F:$F,raw_inputs_passthrough!$A:$A,O$990)+SUMIFS(raw_inputs_passthrough!$K:$K,raw_inputs_passthrough!$A:$A,O$990)","v":0},{"$f":"SUMIFS(raw_inputs_passthrough!$F:$F,raw_inputs_passthrough!$A:$A,P$990)+SUMIFS(raw_inputs_passthrough!$K:$K,raw_inputs_passthrough!$A:$A,P$990)","v":-1760.0079940161299},{"$f":"SUMIFS(raw_inputs_passthrough!$F:$F,raw_inputs_passthrough!$A:$A,Q$990)+SUMIFS(raw_inputs_passthrough!$K:$K,raw_inputs_passthrough!$A:$A,Q$990)","v":0},{"$f":"SUMIFS(raw_inputs_passthrough!$F:$F,raw_inputs_passthrough!$A:$A,R$990)+SUMIFS(raw_inputs_passthrough!$K:$K,raw_inputs_passthrough!$A:$A,R$990)","v":0},{"$f":"SUMIFS(raw_inputs_passthrough!$F:$F,raw_inputs_passthrough!$A:$A,S$990)+SUMIFS(raw_inputs_passthrough!$K:$K,raw_inputs_passthrough!$A:$A,S$990)","v":0},{"$f":"SUMIFS(raw_inputs_passthrough!$F:$F,raw_inputs_passthrough!$A:$A,T$990)+SUMIFS(raw_inputs_passthrough!$K:$K,raw_inputs_passthrough!$A:$A,T$990)","v":-2594.1350124880501},{"$f":"SUMIFS(raw_inputs_passthrough!$F:$F,raw_inputs_passthrough!$A:$A,U$990)+SUMIFS(raw_inputs_passthrough!$K:$K,raw_inputs_passthrough!$A:$A,U$990)","v":0},{"$f":"SUMIFS(raw_inputs_passthrough!$F:$F,raw_inputs_passthrough!$A:$A,V$990)+SUMIFS(raw_inputs_passthrough!$K:$K,raw_inputs_passthrough!$A:$A,V$990)","v":0},{"$f":"SUMIFS(raw_inputs_passthrough!$F:$F,raw_inputs_passthrough!$A:$A,W$990)+SUMIFS(raw_inputs_passthrough!$K:$K,raw_inputs_passthrough!$A:$A,W$990)","v":0},{"$f":"SUMIFS(raw_inputs_passthrough!$F:$F,raw_inputs_passthrough!$A:$A,X$990)+SUMIFS(raw_inputs_passthrough!$K:$K,raw_inputs_passthrough!$A:$A,X$990)","v":0},{"$f":"SUMIFS(raw_inputs_passthrough!$F:$F,raw_inputs_passthrough!$A:$A,Y$990)+SUMIFS(raw_inputs_passthrough!$K:$K,raw_inputs_passthrough!$A:$A,Y$990)","v":0},{"$f":"SUMIFS(raw_inputs_passthrough!$F:$F,raw_inputs_passthrough!$A:$A,Z$990)+SUMIFS(raw_inputs_passthrough!$K:$K,raw_inputs_passthrough!$A:$A,Z$990)","v":0},{"$f":"SUMIFS(raw_inputs_passthrough!$F:$F,raw_inputs_passthrough!$A:$A,AA$990)+SUMIFS(raw_inputs_passthrough!$K:$K,raw_inputs_passthrough!$A:$A,AA$990)","v":0},{"$f":"SUMIFS(raw_inputs_passthrough!$F:$F,raw_inputs_passthrough!$A:$A,AB$990)+SUMIFS(raw_inputs_passthrough!$K:$K,raw_inputs_passthrough!$A:$A,AB$990)","v":0},{"$f":"SUMIFS(raw_inputs_passthrough!$F:$F,raw_inputs_passthrough!$A:$A,AC$990)+SUMIFS(raw_inputs_passthrough!$K:$K,raw_inputs_passthrough!$A:$A,AC$990)","v":0},{"$f":"SUMIFS(raw_inputs_passthrough!$F:$F,raw_inputs_passthrough!$A:$A,AD$990)+SUMIFS(raw_inputs_passthrough!$K:$K,raw_inputs_passthrough!$A:$A,AD$990)","v":0},{"$f":"SUMIFS(raw_inputs_passthrough!$F:$F,raw_inputs_passthrough!$A:$A,AE$990)+SUMIFS(raw_inputs_passthrough!$K:$K,raw_inputs_passthrough!$A:$A,AE$990)","v":0},{"$f":"SUMIFS(raw_inputs_passthrough!$F:$F,raw_inputs_passthrough!$A:$A,AF$990)+SUMIFS(raw_inputs_passthrough!$K:$K,raw_inputs_passthrough!$A:$A,AF$990)","v":0},{"$f":"SUMIFS(raw_inputs_passthrough!$F:$F,raw_inputs_passthrough!$A:$A,AG$990)+SUMIFS(raw_inputs_passthrough!$K:$K,raw_inputs_passthrough!$A:$A,AG$990)","v":0},{"$f":"SUMIFS(raw_inputs_passthrough!$F:$F,raw_inputs_passthrough!$A:$A,AH$990)+SUMIFS(raw_inputs_passthrough!$K:$K,raw_inputs_passthrough!$A:$A,AH$990)","v":0},{"$f":"SUMIFS(raw_inputs_passthrough!$F:$F,raw_inputs_passthrough!$A:$A,AI$990)+SUMIFS(raw_inputs_passthrough!$K:$K,raw_inputs_passthrough!$A:$A,AI$990)","v":-3491.3641786457401},{"$f":"SUMIFS(raw_inputs_passthrough!$F:$F,raw_inputs_passthrough!$A:$A,AJ$990)+SUMIFS(raw_inputs_passthrough!$K:$K,raw_inputs_passthrough!$A:$A,AJ$990)","v":0},{"$f":"SUMIFS(raw_inputs_passthrough!$F:$F,raw_inputs_passthrough!$A:$A,AK$990)+SUMIFS(raw_inputs_passthrough!$K:$K,raw_inputs_passthrough!$A:$A,AK$990)","v":0},{"$f":"SUMIFS(raw_inputs_passthrough!$F:$F,raw_inputs_passthrough!$A:$A,AL$990)+SUMIFS(raw_inputs_passthrough!$K:$K,raw_inputs_passthrough!$A:$A,AL$990)","v":0},{"$f":"SUMIFS(raw_inputs_passthrough!$F:$F,raw_inputs_passthrough!$A:$A,AM$990)+SUMIFS(raw_inputs_passthrough!$K:$K,raw_inputs_passthrough!$A:$A,AM$990)","v":0},{"$f":"SUMIFS(raw_inputs_passthrough!$F:$F,raw_inputs_passthrough!$A:$A,AN$990)+SUMIFS(raw_inputs_passthrough!$K:$K,raw_inputs_passthrough!$A:$A,AN$990)","v":0}]
[null,null,"Total Revenue Requirement","$MM",{"$f":"SUM(E1040:E1044)","v":0},{"$f":"SUM(F1040:F1044)","v":0},{"$f":"SUM(G1040:G1044)","v":0},{"$f":"SUM(H1040:H1044)","v":0},{"$f":"SUM(I1040:I1044)","v":0},40413.163305449641,43229.613897710078,42842.575025600636,42408.673720875529,42656.704551995572,0,41030.715947615987,0,0,0,42874.455777173491,0,0,0,0,0,0,0,0,0,0,0,0,0,0,64893.517684886036,0,0,0,0,0]
[null,null,"Customer Costs","$MM",{"$f":"E1001","v":0},0,0,0,0,2211.6203935860099,2211.6203935860099,2211.6203935860099,2211.6203935860099,2211.6203935860099,0,2211.6203935860099,0,0,0,2211.6203935860099,0,0,0,0,0,0,0,0,0,0,0,0,0,0,2211.6203935860099,0,0,0,0,0]
[null,null,"Total Resource Cost","$MM",{"$f":"SUM(E1045:E1046)","v":0},{"$f":"SUM(F1045:F1046)","v":0},{"$f":"SUM(G1045:G1046)","v":0},{"$f":"SUM(H1045:H1046)","v":0},{"$f":"SUM(I1045:I1046)","v":0},42624.783699035652,45441.234291296088,45054.195419186646,44620.29411446154,44868.324945581582,0,43242.336341201997,0,0,0,45086.076170759501,0,0,0,0,0,0,0,0,0,0,0,0,0,0,67105.138078472039,0,0,0,0,0]
[]
[]
[null,null,"Total Retail Rate by Component"]
[null,null,"Component","Unit",2015,{"$f":"E1051+1","v":2016},2017,2018,2019,2020,2021,2022,2023,2024,2025,2026,2027,2028,2029,2030,2031,2032,2033,2034,2035,2036,2037,2038,2039,2040,2041,2042,2043,2044,2045,2046,2047,2048,2049,2050]
[null,null,"Distribution","cts/kWh",{"$f":"IF(E$1003>0,E1040/E$1003*100,0)","v":0},{"$f":"IF(F$1003>0,F1040/F$1003*100,0)","v":0},0,0,0,5.7823876908680498,6.2696952493021447,6.263623638672934,6.0818622200740204,6.0220734265880091,0,5.9671013156155626,0,0,0,5.9626423301685616,0,0,0,0,0,0,0,0,0,0,0,0,0,0,4.9994030234621594,0,0,0,0,0]
[null,null,"Transmission","cts/kWh",{"$f":"IF(E$1003>0,E1041/E$1003*100,0)","v":0},0,0,0,0,1.8238072924125093,1.8174870712601192,1.5599051037411094,1.786940113144792,1.7745644449075424,0,1.7430097030492653,0,0,0,1.8814070462200534,0,0,0,0,0,0,0,0,0,0,0,0,0,0,1.4121490834333108,0,0,0,0,0]
[null,null,"Generation","cts/kWh",{"$f":"IF(E$1003>0,E1042/E$1003*100,0)","v":0},0,0,0,0,10.607117348606524,11.075549912311033,10.879377680678463,10.636673005789007,10.63178563498068,0,10.094362998415269,0,0,0,10.222439844299648,0,0,0,0,0,0,0,0,0,0,0,0,0,0,12.162025059419992,0,0,0,0,0]
[null,null,"DSM Programs","cts/kWh",{"$f":"IF(E$1003>0,E1043/E$1003*100,0)","v":0},0,0,0,0,0,0,0,0,0,0,0,0,0,0,0,0,0,0,0,0,0,0,0,0,0,0,0,0,0,0,0,0,0,0,0]
[null,null,"Other","cts/kWh",{"$f":"IF(E$1003>0,E1044/E$1003*100,0)","v":0},0,0,0,0,0.50102444337036989,0.46204501079077454,0.33326100430700473,-2.8254561107912076E-2,-0.15352845747914831,0,-0.73230863404079716,0,0,0,-1.030753569138144,0,0,0,0,0,0,0,0,0,0,0,0,0,0,-0.94826693006788487,0,0,0,0,0]
[null,null,"Total Retail Rate","cts/kWh",{"$f":"SUM(E1052:E1056)","v":0},{"$f":"SUM(F1052:F1056)","v":0},0,0,0,18.714336775257451,19.62477724366407,19.036167427399512,18.477220777899909,18.274895048997085,0,17.072165383039298,0,0,0,17.035735651550116,0,0,0,0,0,0,0,0,0,0,0,0,0,0,17.625310236247579,0,0,0,0,0]
[]
[]
[null,"Emissions Summary"]
[]
[null,null,"Emissions by Physical Zone, excluding imports/exports"]
[null,null,"Zone","Unit",2015,{"$f":"E1063+1","v":2016},2017,2018,2019,2020,2021,2022,2023,2024,2025,2026,2027,2028,2029,2030,2031,2032,2033,2034,2035,2036,2037,2038,2039,2040,2041,2042,2043,2044,2045,2046,2047,2048,2049,2050]
[null,null,"CAISO","MMtCO2/Yr",{"$f":"SUMIFS(raw_fuel_burn!$G:$G,raw_fuel_burn!$E:$E,E$1063,raw_fuel_burn!$C:$C,$C1064)/1000000","v":0},{"$f":"SUMIFS(raw_fuel_burn!$G:$G,raw_fuel_burn!$E:$E,F$1063,raw_fuel_burn!$C:$C,$C1064)/1000000","v":0},{"$f":"SUMIFS(raw_fuel_burn!$G:$G,raw_fuel_burn!$E:$E,G$1063,raw_fuel_burn!$C:$C,$C1064)/1000000","v":0},{"$f":"SUMIFS(raw_fuel_burn!$G:$G,raw_fuel_burn!$E:$E,H$1063,raw_fuel_burn!$C:$C,$C1064)/1000000","v":0},{"$f":"SUMIFS(raw_fuel_burn!$G:$G,raw_fuel_burn!$E:$E,I$1063,raw_fuel_burn!$C:$C,$C1064)/1000000","v":0},{"$f":"SUMIFS(raw_fuel_burn!$G:$G,raw_fuel_burn!$E:$E,J$1063,raw_fuel_burn!$C:$C,$C1064)/1000000","v":28.83142924319338},{"$f":"SUMIFS(raw_fuel_burn!$G:$G,raw_fuel_burn!$E:$E,K$1063,raw_fuel_burn!$C:$C,$C1064)/1000000","v":28.142495092711016},{"$f":"SUMIFS(raw_fuel_burn!$G:$G,raw_fuel_burn!$E:$E,L$1063,raw_fuel_burn!$C:$C,$C1064)/1000000","v":25.920319339363814},{"$f":"SUMIFS(raw_fuel_burn!$G:$G,raw_fuel_burn!$E:$E,M$1063,raw_fuel_burn!$C:$C,$C1064)/1000000","v":25.322093912680739},{"$f":"SUMIFS(raw_fuel_burn!$G:$G,raw_fuel_burn!$E:$E,N$1063,raw_fuel_burn!$C:$C,$C1064)/1000000","v":26.154525440500091},{"$f":"SUMIFS(raw_fuel_burn!$G:$G,raw_fuel_burn!$E:$E,O$1063,raw_fuel_burn!$C:$C,$C1064)/1000000","v":0},{"$f":"SUMIFS(raw_fuel_burn!$G:$G,raw_fuel_burn!$E:$E,P$1063,raw_fuel_burn!$C:$C,$C1064)/1000000","v":28.311584559287425},{"$f":"SUMIFS(raw_fuel_burn!$G:$G,raw_fuel_burn!$E:$E,Q$1063,raw_fuel_burn!$C:$C,$C1064)/1000000","v":0},{"$f":"SUMIFS(raw_fuel_burn!$G:$G,raw_fuel_burn!$E:$E,R$1063,raw_fuel_burn!$C:$C,$C1064)/1000000","v":0},{"$f":"SUMIFS(raw_fuel_burn!$G:$G,raw_fuel_burn!$E:$E,S$1063,raw_fuel_burn!$C:$C,$C1064)/1000000","v":0},{"$f":"SUMIFS(raw_fuel_burn!$G:$G,raw_fuel_burn!$E:$E,T$1063,raw_fuel_burn!$C:$C,$C1064)/1000000","v":23.116798661959571},{"$f":"SUMIFS(raw_fuel_burn!$G:$G,raw_fuel_burn!$E:$E,U$1063,raw_fuel_burn!$C:$C,$C1064)/1000000","v":0},{"$f":"SUMIFS(raw_fuel_burn!$G:$G,raw_fuel_burn!$E:$E,V$1063,raw_fuel_burn!$C:$C,$C1064)/1000000","v":0},{"$f":"SUMIFS(raw_fuel_burn!$G:$G,raw_fuel_burn!$E:$E,W$1063,raw_fuel_burn!$C:$C,$C1064)/1000000","v":0},{"$f":"SUMIFS(raw_fuel_burn!$G:$G,raw_fuel_burn!$E:$E,X$1063,raw_fuel_burn!$C:$C,$C1064)/1000000","v":0},{"$f":"SUMIFS(raw_fuel_burn!$G:$G,raw_fuel_burn!$E:$E,Y$1063,raw_fuel_burn!$C:$C,$C1064)/1000000","v":0},{"$f":"SUMIFS(raw_fuel_burn!$G:$G,raw_fuel_burn!$E:$E,Z$1063,raw_fuel_burn!$C:$C,$C1064)/1000000","v":0},{"$f":"SUMIFS(raw_fuel_burn!$G:$G,raw_fuel_burn!$E:$E,AA$1063,raw_fuel_burn!$C:$C,$C1064)/1000000","v":0},{"$f":"SUMIFS(raw_fuel_burn!$G:$G,raw_fuel_burn!$E:$E,AB$1063,raw_fuel_burn!$C:$C,$C1064)/1000000","v":0},{"$f":"SUMIFS(raw_fuel_burn!$G:$G,raw_fuel_burn!$E:$E,AC$1063,raw_fuel_burn!$C:$C,$C1064)/1000000","v":0},{"$f":"SUMIFS(raw_fuel_burn!$G:$G,raw_fuel_burn!$E:$E,AD$1063,raw_fuel_burn!$C:$C,$C1064)/1000000","v":0},{"$f":"SUMIFS(raw_fuel_burn!$G:$G,raw_fuel_burn!$E:$E,AE$1063,raw_fuel_burn!$C:$C,$C1064)/1000000","v":0},{"$f":"SUMIFS(raw_fuel_burn!$G:$G,raw_fuel_burn!$E:$E,AF$1063,raw_fuel_burn!$C:$C,$C1064)/1000000","v":0},{"$f":"SUMIFS(raw_fuel_burn!$G:$G,raw_fuel_burn!$E:$E,AG$1063,raw_fuel_burn!$C:$C,$C1064)/1000000","v":0},{"$f":"SUMIFS(raw_fuel_burn!$G:$G,raw_fuel_burn!$E:$E,AH$1063,raw_fuel_burn!$C:$C,$C1064)/1000000","v":0},{"$f":"SUMIFS(raw_fuel_burn!$G:$G,raw_fuel_burn!$E:$E,AI$1063,raw_fuel_burn!$C:$C,$C1064)/1000000","v":11.403936602214705},{"$f":"SUMIFS(raw_fuel_burn!$G:$G,raw_fuel_burn!$E:$E,AJ$1063,raw_fuel_burn!$C:$C,$C1064)/1000000","v":0},{"$f":"SUMIFS(raw_fuel_burn!$G:$G,raw_fuel_burn!$E:$E,AK$1063,raw_fuel_burn!$C:$C,$C1064)/1000000","v":0},{"$f":"SUMIFS(raw_fuel_burn!$G:$G,raw_fuel_burn!$E:$E,AL$1063,raw_fuel_burn!$C:$C,$C1064)/1000000","v":0},{"$f":"SUMIFS(raw_fuel_burn!$G:$G,raw_fuel_burn!$E:$E,AM$1063,raw_fuel_burn!$C:$C,$C1064)/1000000","v":0},{"$f":"SUMIFS(raw_fuel_burn!$G:$G,raw_fuel_burn!$E:$E,AN$1063,raw_fuel_burn!$C:$C,$C1064)/1000000","v":0}]
[null,null,"LDWP","MMtCO2/Yr",{"$f":"SUMIFS(raw_fuel_burn!$G:$G,raw_fuel_burn!$E:$E,E$1063,raw_fuel_burn!$C:$C,$C1065)/1000000","v":0},{"$f":"SUMIFS(raw_fuel_burn!$G:$G,raw_fuel_burn!$E:$E,F$1063,raw_fuel_burn!$C:$C,$C1065)/1000000","v":0},{"$f":"SUMIFS(raw_fuel_burn!$G:$G,raw_fuel_burn!$E:$E,G$1063,raw_fuel_burn!$C:$C,$C1065)/1000000","v":0},{"$f":"SUMIFS(raw_fuel_burn!$G:$G,raw_fuel_burn!$E:$E,H$1063,raw_fuel_burn!$C:$C,$C1065)/1000000","v":0},{"$f":"SUMIFS(raw_fuel_burn!$G:$G,raw_fuel_burn!$E:$E,I$1063,raw_fuel_burn!$C:$C,$C1065)/1000000","v":0},{"$f":"SUMIFS(raw_fuel_burn!$G:$G,raw_fuel_burn!$E:$E,J$1063,raw_fuel_burn!$C:$C,$C1065)/1000000","v":4.9124264806393603},{"$f":"SUMIFS(raw_fuel_burn!$G:$G,raw_fuel_burn!$E:$E,K$1063,raw_fuel_burn!$C:$C,$C1065)/1000000","v":4.6358196026621403},{"$f":"SUMIFS(raw_fuel_burn!$G:$G,raw_fuel_burn!$E:$E,L$1063,raw_fuel_burn!$C:$C,$C1065)/1000000","v":4.5748665424106791},{"$f":"SUMIFS(raw_fuel_burn!$G:$G,raw_fuel_burn!$E:$E,M$1063,raw_fuel_burn!$C:$C,$C1065)/1000000","v":4.2035224664419202},{"$f":"SUMIFS(raw_fuel_burn!$G:$G,raw_fuel_burn!$E:$E,N$1063,raw_fuel_burn!$C:$C,$C1065)/1000000","v":3.9191850960463097},{"$f":"SUMIFS(raw_fuel_burn!$G:$G,raw_fuel_burn!$E:$E,O$1063,raw_fuel_burn!$C:$C,$C1065)/1000000","v":0},{"$f":"SUMIFS(raw_fuel_burn!$G:$G,raw_fuel_burn!$E:$E,P$1063,raw_fuel_burn!$C:$C,$C1065)/1000000","v":2.6832065824775397},{"$f":"SUMIFS(raw_fuel_burn!$G:$G,raw_fuel_burn!$E:$E,Q$1063,raw_fuel_burn!$C:$C,$C1065)/1000000","v":0},{"$f":"SUMIFS(raw_fuel_burn!$G:$G,raw_fuel_burn!$E:$E,R$1063,raw_fuel_burn!$C:$C,$C1065)/1000000","v":0},{"$f":"SUMIFS(raw_fuel_burn!$G:$G,raw_fuel_burn!$E:$E,S$1063,raw_fuel_burn!$C:$C,$C1065)/1000000","v":0},{"$f":"SUMIFS(raw_fuel_burn!$G:$G,raw_fuel_burn!$E:$E,T$1063,raw_fuel_burn!$C:$C,$C1065)/1000000","v":2.6670527820741703},{"$f":"SUMIFS(raw_fuel_burn!$G:$G,raw_fuel_burn!$E:$E,U$1063,raw_fuel_burn!$C:$C,$C1065)/1000000","v":0},{"$f":"SUMIFS(raw_fuel_burn!$G:$G,raw_fuel_burn!$E:$E,V$1063,raw_fuel_burn!$C:$C,$C1065)/1000000","v":0},{"$f":"SUMIFS(raw_fuel_burn!$G:$G,raw_fuel_burn!$E:$E,W$1063,raw_fuel_burn!$C:$C,$C1065)/1000000","v":0},{"$f":"SUMIFS(raw_fuel_burn!$G:$G,raw_fuel_burn!$E:$E,X$1063,raw_fuel_burn!$C:$C,$C1065)/1000000","v":0},{"$f":"SUMIFS(raw_fuel_burn!$G:$G,raw_fuel_burn!$E:$E,Y$1063,raw_fuel_burn!$C:$C,$C1065)/1000000","v":0},{"$f":"SUMIFS(raw_fuel_burn!$G:$G,raw_fuel_burn!$E:$E,Z$1063,raw_fuel_burn!$C:$C,$C1065)/1000000","v":0},{"$f":"SUMIFS(raw_fuel_burn!$G:$G,raw_fuel_burn!$E:$E,AA$1063,raw_fuel_burn!$C:$C,$C1065)/1000000","v":0},{"$f":"SUMIFS(raw_fuel_burn!$G:$G,raw_fuel_burn!$E:$E,AB$1063,raw_fuel_burn!$C:$C,$C1065)/1000000","v":0},{"$f":"SUMIFS(raw_fuel_burn!$G:$G,raw_fuel_burn!$E:$E,AC$1063,raw_fuel_burn!$C:$C,$C1065)/1000000","v":0},{"$f":"SUMIFS(raw_fuel_burn!$G:$G,raw_fuel_burn!$E:$E,AD$1063,raw_fuel_burn!$C:$C,$C1065)/1000000","v":0},{"$f":"SUMIFS(raw_fuel_burn!$G:$G,raw_fuel_burn!$E:$E,AE$1063,raw_fuel_burn!$C:$C,$C1065)/1000000","v":0},{"$f":"SUMIFS(raw_fuel_burn!$G:$G,raw_fuel_burn!$E:$E,AF$1063,raw_fuel_burn!$C:$C,$C1065)/1000000","v":0},{"$f":"SUMIFS(raw_fuel_burn!$G:$G,raw_fuel_burn!$E:$E,AG$1063,raw_fuel_burn!$C:$C,$C1065)/1000000","v":0},{"$f":"SUMIFS(raw_fuel_burn!$G:$G,raw_fuel_burn!$E:$E,AH$1063,raw_fuel_burn!$C:$C,$C1065)/1000000","v":0},{"$f":"SUMIFS(raw_fuel_burn!$G:$G,raw_fuel_burn!$E:$E,AI$1063,raw_fuel_burn!$C:$C,$C1065)/1000000","v":1.1501111120146699},{"$f":"SUMIFS(raw_fuel_burn!$G:$G,raw_fuel_burn!$E:$E,AJ$1063,raw_fuel_burn!$C:$C,$C1065)/1000000","v":0},{"$f":"SUMIFS(raw_fuel_burn!$G:$G,raw_fuel_burn!$E:$E,AK$1063,raw_fuel_burn!$C:$C,$C1065)/1000000","v":0},{"$f":"SUMIFS(raw_fuel_burn!$G:$G,raw_fuel_burn!$E:$E,AL$1063,raw_fuel_burn!$C:$C,$C1065)/1000000","v":0},{"$f":"SUMIFS(raw_fuel_burn!$G:$G,raw_fuel_burn!$E:$E,AM$1063,raw_fuel_burn!$C:$C,$C1065)/1000000","v":0},{"$f":"SUMIFS(raw_fuel_burn!$G:$G,raw_fuel_burn!$E:$E,AN$1063,raw_fuel_burn!$C:$C,$C1065)/1000000","v":0}]
[null,null,"BANC","MMtCO2/Yr",{"$f":"SUMIFS(raw_fuel_burn!$G:$G,raw_fuel_burn!$E:$E,E$1063,raw_fuel_burn!$C:$C,$C1066)/1000000","v":0},{"$f":"SUMIFS(raw_fuel_burn!$G:$G,raw_fuel_burn!$E:$E,F$1063,raw_fuel_burn!$C:$C,$C1066)/1000000","v":0},{"$f":"SUMIFS(raw_fuel_burn!$G:$G,raw_fuel_burn!$E:$E,G$1063,raw_fuel_burn!$C:$C,$C1066)/1000000","v":0},{"$f":"SUMIFS(raw_fuel_burn!$G:$G,raw_fuel_burn!$E:$E,H$1063,raw_fuel_burn!$C:$C,$C1066)/1000000","v":0},{"$f":"SUMIFS(raw_fuel_burn!$G:$G,raw_fuel_burn!$E:$E,I$1063,raw_fuel_burn!$C:$C,$C1066)/1000000","v":0},{"$f":"SUMIFS(raw_fuel_burn!$G:$G,raw_fuel_burn!$E:$E,J$1063,raw_fuel_burn!$C:$C,$C1066)/1000000","v":1.2675770552407402},{"$f":"SUMIFS(raw_fuel_burn!$G:$G,raw_fuel_burn!$E:$E,K$1063,raw_fuel_burn!$C:$C,$C1066)/1000000","v":1.29352228935644},{"$f":"SUMIFS(raw_fuel_burn!$G:$G,raw_fuel_burn!$E:$E,L$1063,raw_fuel_burn!$C:$C,$C1066)/1000000","v":1.3351934787026098},{"$f":"SUMIFS(raw_fuel_burn!$G:$G,raw_fuel_burn!$E:$E,M$1063,raw_fuel_burn!$C:$C,$C1066)/1000000","v":1.29041835906728},{"$f":"SUMIFS(raw_fuel_burn!$G:$G,raw_fuel_burn!$E:$E,N$1063,raw_fuel_burn!$C:$C,$C1066)/1000000","v":1.33363257256701},{"$f":"SUMIFS(raw_fuel_burn!$G:$G,raw_fuel_burn!$E:$E,O$1063,raw_fuel_burn!$C:$C,$C1066)/1000000","v":0},{"$f":"SUMIFS(raw_fuel_burn!$G:$G,raw_fuel_burn!$E:$E,P$1063,raw_fuel_burn!$C:$C,$C1066)/1000000","v":1.30024319182963},{"$f":"SUMIFS(raw_fuel_burn!$G:$G,raw_fuel_burn!$E:$E,Q$1063,raw_fuel_burn!$C:$C,$C1066)/1000000","v":0},{"$f":"SUMIFS(raw_fuel_burn!$G:$G,raw_fuel_burn!$E:$E,R$1063,raw_fuel_burn!$C:$C,$C1066)/1000000","v":0},{"$f":"SUMIFS(raw_fuel_burn!$G:$G,raw_fuel_burn!$E:$E,S$1063,raw_fuel_burn!$C:$C,$C1066)/1000000","v":0},{"$f":"SUMIFS(raw_fuel_burn!$G:$G,raw_fuel_burn!$E:$E,T$1063,raw_fuel_burn!$C:$C,$C1066)/1000000","v":1.1054602498331401},{"$f":"SUMIFS(raw_fuel_burn!$G:$G,raw_fuel_burn!$E:$E,U$1063,raw_fuel_burn!$C:$C,$C1066)/1000000","v":0},{"$f":"SUMIFS(raw_fuel_burn!$G:$G,raw_fuel_burn!$E:$E,V$1063,raw_fuel_burn!$C:$C,$C1066)/1000000","v":0},{"$f":"SUMIFS(raw_fuel_burn!$G:$G,raw_fuel_burn!$E:$E,W$1063,raw_fuel_burn!$C:$C,$C1066)/1000000","v":0},{"$f":"SUMIFS(raw_fuel_burn!$G:$G,raw_fuel_burn!$E:$E,X$1063,raw_fuel_burn!$C:$C,$C1066)/1000000","v":0},{"$f":"SUMIFS(raw_fuel_burn!$G:$G,raw_fuel_burn!$E:$E,Y$1063,raw_fuel_burn!$C:$C,$C1066)/1000000","v":0},{"$f":"SUMIFS(raw_fuel_burn!$G:$G,raw_fuel_burn!$E:$E,Z$1063,raw_fuel_burn!$C:$C,$C1066)/1000000","v":0},{"$f":"SUMIFS(raw_fuel_burn!$G:$G,raw_fuel_burn!$E:$E,AA$1063,raw_fuel_burn!$C:$C,$C1066)/1000000","v":0},{"$f":"SUMIFS(raw_fuel_burn!$G:$G,raw_fuel_burn!$E:$E,AB$1063,raw_fuel_burn!$C:$C,$C1066)/1000000","v":0},{"$f":"SUMIFS(raw_fuel_burn!$G:$G,raw_fuel_burn!$E:$E,AC$1063,raw_fuel_burn!$C:$C,$C1066)/1000000","v":0},{"$f":"SUMIFS(raw_fuel_burn!$G:$G,raw_fuel_burn!$E:$E,AD$1063,raw_fuel_burn!$C:$C,$C1066)/1000000","v":0},{"$f":"SUMIFS(raw_fuel_burn!$G:$G,raw_fuel_burn!$E:$E,AE$1063,raw_fuel_burn!$C:$C,$C1066)/1000000","v":0},{"$f":"SUMIFS(raw_fuel_burn!$G:$G,raw_fuel_burn!$E:$E,AF$1063,raw_fuel_burn!$C:$C,$C1066)/1000000","v":0},{"$f":"SUMIFS(raw_fuel_burn!$G:$G,raw_fuel_burn!$E:$E,AG$1063,raw_fuel_burn!$C:$C,$C1066)/1000000","v":0},{"$f":"SUMIFS(raw_fuel_burn!$G:$G,raw_fuel_burn!$E:$E,AH$1063,raw_fuel_burn!$C:$C,$C1066)/1000000","v":0},{"$f":"SUMIFS(raw_fuel_burn!$G:$G,raw_fuel_burn!$E:$E,AI$1063,raw_fuel_burn!$C:$C,$C1066)/1000000","v":1.1869998850260501},{"$f":"SUMIFS(raw_fuel_burn!$G:$G,raw_fuel_burn!$E:$E,AJ$1063,raw_fuel_burn!$C:$C,$C1066)/1000000","v":0},{"$f":"SUMIFS(raw_fuel_burn!$G:$G,raw_fuel_burn!$E:$E,AK$1063,raw_fuel_burn!$C:$C,$C1066)/1000000","v":0},{"$f":"SUMIFS(raw_fuel_burn!$G:$G,raw_fuel_burn!$E:$E,AL$1063,raw_fuel_burn!$C:$C,$C1066)/1000000","v":0},{"$f":"SUMIFS(raw_fuel_burn!$G:$G,raw_fuel_burn!$E:$E,AM$1063,raw_fuel_burn!$C:$C,$C1066)/1000000","v":0},{"$f":"SUMIFS(raw_fuel_burn!$G:$G,raw_fuel_burn!$E:$E,AN$1063,raw_fuel_burn!$C:$C,$C1066)/1000000","v":0}]
[null,null,"IID","MMtCO2/Yr",{"$f":"SUMIFS(raw_fuel_burn!$G:$G,raw_fuel_burn!$E:$E,E$1063,raw_fuel_burn!$C:$C,$C1067)/1000000","v":0},{"$f":"SUMIFS(raw_fuel_burn!$G:$G,raw_fuel_burn!$E:$E,F$1063,raw_fuel_burn!$C:$C,$C1067)/1000000","v":0},{"$f":"SUMIFS(raw_fuel_burn!$G:$G,raw_fuel_burn!$E:$E,G$1063,raw_fuel_burn!$C:$C,$C1067)/1000000","v":0},{"$f":"SUMIFS(raw_fuel_burn!$G:$G,raw_fuel_burn!$E:$E,H$1063,raw_fuel_burn!$C:$C,$C1067)/1000000","v":0},{"$f":"SUMIFS(raw_fuel_burn!$G:$G,raw_fuel_burn!$E:$E,I$1063,raw_fuel_burn!$C:$C,$C1067)/1000000","v":0},{"$f":"SUMIFS(raw_fuel_burn!$G:$G,raw_fuel_burn!$E:$E,J$1063,raw_fuel_burn!$C:$C,$C1067)/1000000","v":0},{"$f":"SUMIFS(raw_fuel_burn!$G:$G,raw_fuel_burn!$E:$E,K$1063,raw_fuel_burn!$C:$C,$C1067)/1000000","v":0},{"$f":"SUMIFS(raw_fuel_burn!$G:$G,raw_fuel_burn!$E:$E,L$1063,raw_fuel_burn!$C:$C,$C1067)/1000000","v":0},{"$f":"SUMIFS(raw_fuel_burn!$G:$G,raw_fuel_burn!$E:$E,M$1063,raw_fuel_burn!$C:$C,$C1067)/1000000","v":0},{"$f":"SUMIFS(raw_fuel_burn!$G:$G,raw_fuel_burn!$E:$E,N$1063,raw_fuel_burn!$C:$C,$C1067)/1000000","v":0},{"$f":"SUMIFS(raw_fuel_burn!$G:$G,raw_fuel_burn!$E:$E,O$1063,raw_fuel_burn!$C:$C,$C1067)/1000000","v":0},{"$f":"SUMIFS(raw_fuel_burn!$G:$G,raw_fuel_burn!$E:$E,P$1063,raw_fuel_burn!$C:$C,$C1067)/1000000","v":0},{"$f":"SUMIFS(raw_fuel_burn!$G:$G,raw_fuel_burn!$E:$E,Q$1063,raw_fuel_burn!$C:$C,$C1067)/1000000","v":0},{"$f":"SUMIFS(raw_fuel_burn!$G:$G,raw_fuel_burn!$E:$E,R$1063,raw_fuel_burn!$C:$C,$C1067)/1000000","v":0},{"$f":"SUMIFS(raw_fuel_burn!$G:$G,raw_fuel_burn!$E:$E,S$1063,raw_fuel_burn!$C:$C,$C1067)/1000000","v":0},{"$f":"SUMIFS(raw_fuel_burn!$G:$G,raw_fuel_burn!$E:$E,T$1063,raw_fuel_burn!$C:$C,$C1067)/1000000","v":0},{"$f":"SUMIFS(raw_fuel_burn!$G:$G,raw_fuel_burn!$E:$E,U$1063,raw_fuel_burn!$C:$C,$C1067)/1000000","v":0},{"$f":"SUMIFS(raw_fuel_burn!$G:$G,raw_fuel_burn!$E:$E,V$1063,raw_fuel_burn!$C:$C,$C1067)/1000000","v":0},{"$f":"SUMIFS(raw_fuel_burn!$G:$G,raw_fuel_burn!$E:$E,W$1063,raw_fuel_burn!$C:$C,$C1067)/1000000","v":0},{"$f":"SUMIFS(raw_fuel_burn!$G:$G,raw_fuel_burn!$E:$E,X$1063,raw_fuel_burn!$C:$C,$C1067)/1000000","v":0},{"$f":"SUMIFS(raw_fuel_burn!$G:$G,raw_fuel_burn!$E:$E,Y$1063,raw_fuel_burn!$C:$C,$C1067)/1000000","v":0},{"$f":"SUMIFS(raw_fuel_burn!$G:$G,raw_fuel_burn!$E:$E,Z$1063,raw_fuel_burn!$C:$C,$C1067)/1000000","v":0},{"$f":"SUMIFS(raw_fuel_burn!$G:$G,raw_fuel_burn!$E:$E,AA$1063,raw_fuel_burn!$C:$C,$C1067)/1000000","v":0},{"$f":"SUMIFS(raw_fuel_burn!$G:$G,raw_fuel_burn!$E:$E,AB$1063,raw_fuel_burn!$C:$C,$C1067)/1000000","v":0},{"$f":"SUMIFS(raw_fuel_burn!$G:$G,raw_fuel_burn!$E:$E,AC$1063,raw_fuel_burn!$C:$C,$C1067)/1000000","v":0},{"$f":"SUMIFS(raw_fuel_burn!$G:$G,raw_fuel_burn!$E:$E,AD$1063,raw_fuel_burn!$C:$C,$C1067)/1000000","v":0},{"$f":"SUMIFS(raw_fuel_burn!$G:$G,raw_fuel_burn!$E:$E,AE$1063,raw_fuel_burn!$C:$C,$C1067)/1000000","v":0},{"$f":"SUMIFS(raw_fuel_burn!$G:$G,raw_fuel_burn!$E:$E,AF$1063,raw_fuel_burn!$C:$C,$C1067)/1000000","v":0},{"$f":"SUMIFS(raw_fuel_burn!$G:$G,raw_fuel_burn!$E:$E,AG$1063,raw_fuel_burn!$C:$C,$C1067)/1000000","v":0},{"$f":"SUMIFS(raw_fuel_burn!$G:$G,raw_fuel_burn!$E:$E,AH$1063,raw_fuel_burn!$C:$C,$C1067)/1000000","v":0},{"$f":"SUMIFS(raw_fuel_burn!$G:$G,raw_fuel_burn!$E:$E,AI$1063,raw_fuel_burn!$C:$C,$C1067)/1000000","v":0},{"$f":"SUMIFS(raw_fuel_burn!$G:$G,raw_fuel_burn!$E:$E,AJ$1063,raw_fuel_burn!$C:$C,$C1067)/1000000","v":0},{"$f":"SUMIFS(raw_fuel_burn!$G:$G,raw_fuel_burn!$E:$E,AK$1063,raw_fuel_burn!$C:$C,$C1067)/1000000","v":0},{"$f":"SUMIFS(raw_fuel_burn!$G:$G,raw_fuel_burn!$E:$E,AL$1063,raw_fuel_burn!$C:$C,$C1067)/1000000","v":0},{"$f":"SUMIFS(raw_fuel_burn!$G:$G,raw_fuel_burn!$E:$E,AM$1063,raw_fuel_burn!$C:$C,$C1067)/1000000","v":0},{"$f":"SUMIFS(raw_fuel_burn!$G:$G,raw_fuel_burn!$E:$E,AN$1063,raw_fuel_burn!$C:$C,$C1067)/1000000","v":0}]
[null,null,"SW","MMtCO2/Yr",{"$f":"SUMIFS(raw_fuel_burn!$G:$G,raw_fuel_burn!$E:$E,E$1063,raw_fuel_burn!$C:$C,$C1068)/1000000","v":0},{"$f":"SUMIFS(raw_fuel_burn!$G:$G,raw_fuel_burn!$E:$E,F$1063,raw_fuel_burn!$C:$C,$C1068)/1000000","v":0},{"$f":"SUMIFS(raw_fuel_burn!$G:$G,raw_fuel_burn!$E:$E,G$1063,raw_fuel_burn!$C:$C,$C1068)/1000000","v":0},{"$f":"SUMIFS(raw_fuel_burn!$G:$G,raw_fuel_burn!$E:$E,H$1063,raw_fuel_burn!$C:$C,$C1068)/1000000","v":0},{"$f":"SUMIFS(raw_fuel_burn!$G:$G,raw_fuel_burn!$E:$E,I$1063,raw_fuel_burn!$C:$C,$C1068)/1000000","v":0},{"$f":"SUMIFS(raw_fuel_burn!$G:$G,raw_fuel_burn!$E:$E,J$1063,raw_fuel_burn!$C:$C,$C1068)/1000000","v":62.952454445784198},{"$f":"SUMIFS(raw_fuel_burn!$G:$G,raw_fuel_burn!$E:$E,K$1063,raw_fuel_burn!$C:$C,$C1068)/1000000","v":66.302958598766807},{"$f":"SUMIFS(raw_fuel_burn!$G:$G,raw_fuel_burn!$E:$E,L$1063,raw_fuel_burn!$C:$C,$C1068)/1000000","v":67.863151498609795},{"$f":"SUMIFS(raw_fuel_burn!$G:$G,raw_fuel_burn!$E:$E,M$1063,raw_fuel_burn!$C:$C,$C1068)/1000000","v":70.083568288880414},{"$f":"SUMIFS(raw_fuel_burn!$G:$G,raw_fuel_burn!$E:$E,N$1063,raw_fuel_burn!$C:$C,$C1068)/1000000","v":72.314412606109414},{"$f":"SUMIFS(raw_fuel_burn!$G:$G,raw_fuel_burn!$E:$E,O$1063,raw_fuel_burn!$C:$C,$C1068)/1000000","v":0},{"$f":"SUMIFS(raw_fuel_burn!$G:$G,raw_fuel_burn!$E:$E,P$1063,raw_fuel_burn!$C:$C,$C1068)/1000000","v":69.227190365744093},{"$f":"SUMIFS(raw_fuel_burn!$G:$G,raw_fuel_burn!$E:$E,Q$1063,raw_fuel_burn!$C:$C,$C1068)/1000000","v":0},{"$f":"SUMIFS(raw_fuel_burn!$G:$G,raw_fuel_burn!$E:$E,R$1063,raw_fuel_burn!$C:$C,$C1068)/1000000","v":0},{"$f":"SUMIFS(raw_fuel_burn!$G:$G,raw_fuel_burn!$E:$E,S$1063,raw_fuel_burn!$C:$C,$C1068)/1000000","v":0},{"$f":"SUMIFS(raw_fuel_burn!$G:$G,raw_fuel_burn!$E:$E,T$1063,raw_fuel_burn!$C:$C,$C1068)/1000000","v":75.709579888091596},{"$f":"SUMIFS(raw_fuel_burn!$G:$G,raw_fuel_burn!$E:$E,U$1063,raw_fuel_burn!$C:$C,$C1068)/1000000","v":0},{"$f":"SUMIFS(raw_fuel_burn!$G:$G,raw_fuel_burn!$E:$E,V$1063,raw_fuel_burn!$C:$C,$C1068)/1000000","v":0},{"$f":"SUMIFS(raw_fuel_burn!$G:$G,raw_fuel_burn!$E:$E,W$1063,raw_fuel_burn!$C:$C,$C1068)/1000000","v":0},{"$f":"SUMIFS(raw_fuel_burn!$G:$G,raw_fuel_burn!$E:$E,X$1063,raw_fuel_burn!$C:$C,$C1068)/1000000","v":0},{"$f":"SUMIFS(raw_fuel_burn!$G:$G,raw_fuel_burn!$E:$E,Y$1063,raw_fuel_burn!$C:$C,$C1068)/1000000","v":0},{"$f":"SUMIFS(raw_fuel_burn!$G:$G,raw_fuel_burn!$E:$E,Z$1063,raw_fuel_burn!$C:$C,$C1068)/1000000","v":0},{"$f":"SUMIFS(raw_fuel_burn!$G:$G,raw_fuel_burn!$E:$E,AA$1063,raw_fuel_burn!$C:$C,$C1068)/1000000","v":0},{"$f":"SUMIFS(raw_fuel_burn!$G:$G,raw_fuel_burn!$E:$E,AB$1063,raw_fuel_burn!$C:$C,$C1068)/1000000","v":0},{"$f":"SUMIFS(raw_fuel_burn!$G:$G,raw_fuel_burn!$E:$E,AC$1063,raw_fuel_burn!$C:$C,$C1068)/1000000","v":0},{"$f":"SUMIFS(raw_fuel_burn!$G:$G,raw_fuel_burn!$E:$E,AD$1063,raw_fuel_burn!$C:$C,$C1068)/1000000","v":0},{"$f":"SUMIFS(raw_fuel_burn!$G:$G,raw_fuel_burn!$E:$E,AE$1063,raw_fuel_burn!$C:$C,$C1068)/1000000","v":0},{"$f":"SUMIFS(raw_fuel_burn!$G:$G,raw_fuel_burn!$E:$E,AF$1063,raw_fuel_burn!$C:$C,$C1068)/1000000","v":0},{"$f":"SUMIFS(raw_fuel_burn!$G:$G,raw_fuel_burn!$E:$E,AG$1063,raw_fuel_burn!$C:$C,$C1068)/1000000","v":0},{"$f":"SUMIFS(raw_fuel_burn!$G:$G,raw_fuel_burn!$E:$E,AH$1063,raw_fuel_burn!$C:$C,$C1068)/1000000","v":0},{"$f":"SUMIFS(raw_fuel_burn!$G:$G,raw_fuel_burn!$E:$E,AI$1063,raw_fuel_burn!$C:$C,$C1068)/1000000","v":74.053174936717284},{"$f":"SUMIFS(raw_fuel_burn!$G:$G,raw_fuel_burn!$E:$E,AJ$1063,raw_fuel_burn!$C:$C,$C1068)/1000000","v":0},{"$f":"SUMIFS(raw_fuel_burn!$G:$G,raw_fuel_burn!$E:$E,AK$1063,raw_fuel_burn!$C:$C,$C1068)/1000000","v":0},{"$f":"SUMIFS(raw_fuel_burn!$G:$G,raw_fuel_burn!$E:$E,AL$1063,raw_fuel_burn!$C:$C,$C1068)/1000000","v":0},{"$f":"SUMIFS(raw_fuel_burn!$G:$G,raw_fuel_burn!$E:$E,AM$1063,raw_fuel_burn!$C:$C,$C1068)/1000000","v":0},{"$f":"SUMIFS(raw_fuel_burn!$G:$G,raw_fuel_burn!$E:$E,AN$1063,raw_fuel_burn!$C:$C,$C1068)/1000000","v":0}]
[null,null,"NW","MMtCO2/Yr",{"$f":"SUMIFS(raw_fuel_burn!$G:$G,raw_fuel_burn!$E:$E,E$1063,raw_fuel_burn!$C:$C,$C1069)/1000000","v":0},{"$f":"SUMIFS(raw_fuel_burn!$G:$G,raw_fuel_burn!$E:$E,F$1063,raw_fuel_burn!$C:$C,$C1069)/1000000","v":0},{"$f":"SUMIFS(raw_fuel_burn!$G:$G,raw_fuel_burn!$E:$E,G$1063,raw_fuel_burn!$C:$C,$C1069)/1000000","v":0},{"$f":"SUMIFS(raw_fuel_burn!$G:$G,raw_fuel_burn!$E:$E,H$1063,raw_fuel_burn!$C:$C,$C1069)/1000000","v":0},{"$f":"SUMIFS(raw_fuel_burn!$G:$G,raw_fuel_burn!$E:$E,I$1063,raw_fuel_burn!$C:$C,$C1069)/1000000","v":0},{"$f":"SUMIFS(raw_fuel_burn!$G:$G,raw_fuel_burn!$E:$E,J$1063,raw_fuel_burn!$C:$C,$C1069)/1000000","v":72.478491052675935},{"$f":"SUMIFS(raw_fuel_burn!$G:$G,raw_fuel_burn!$E:$E,K$1063,raw_fuel_burn!$C:$C,$C1069)/1000000","v":67.072919711601799},{"$f":"SUMIFS(raw_fuel_burn!$G:$G,raw_fuel_burn!$E:$E,L$1063,raw_fuel_burn!$C:$C,$C1069)/1000000","v":63.632158134302784},{"$f":"SUMIFS(raw_fuel_burn!$G:$G,raw_fuel_burn!$E:$E,M$1063,raw_fuel_burn!$C:$C,$C1069)/1000000","v":63.717852501146076},{"$f":"SUMIFS(raw_fuel_burn!$G:$G,raw_fuel_burn!$E:$E,N$1063,raw_fuel_burn!$C:$C,$C1069)/1000000","v":64.278865652851565},{"$f":"SUMIFS(raw_fuel_burn!$G:$G,raw_fuel_burn!$E:$E,O$1063,raw_fuel_burn!$C:$C,$C1069)/1000000","v":0},{"$f":"SUMIFS(raw_fuel_burn!$G:$G,raw_fuel_burn!$E:$E,P$1063,raw_fuel_burn!$C:$C,$C1069)/1000000","v":61.04130157465314},{"$f":"SUMIFS(raw_fuel_burn!$G:$G,raw_fuel_burn!$E:$E,Q$1063,raw_fuel_burn!$C:$C,$C1069)/1000000","v":0},{"$f":"SUMIFS(raw_fuel_burn!$G:$G,raw_fuel_burn!$E:$E,R$1063,raw_fuel_burn!$C:$C,$C1069)/1000000","v":0},{"$f":"SUMIFS(raw_fuel_burn!$G:$G,raw_fuel_burn!$E:$E,S$1063,raw_fuel_burn!$C:$C,$C1069)/1000000","v":0},{"$f":"SUMIFS(raw_fuel_burn!$G:$G,raw_fuel_burn!$E:$E,T$1063,raw_fuel_burn!$C:$C,$C1069)/1000000","v":56.163098929781285},{"$f":"SUMIFS(raw_fuel_burn!$G:$G,raw_fuel_burn!$E:$E,U$1063,raw_fuel_burn!$C:$C,$C1069)/1000000","v":0},{"$f":"SUMIFS(raw_fuel_burn!$G:$G,raw_fuel_burn!$E:$E,V$1063,raw_fuel_burn!$C:$C,$C1069)/1000000","v":0},{"$f":"SUMIFS(raw_fuel_burn!$G:$G,raw_fuel_burn!$E:$E,W$1063,raw_fuel_burn!$C:$C,$C1069)/1000000","v":0},{"$f":"SUMIFS(raw_fuel_burn!$G:$G,raw_fuel_burn!$E:$E,X$1063,raw_fuel_burn!$C:$C,$C1069)/1000000","v":0},{"$f":"SUMIFS(raw_fuel_burn!$G:$G,raw_fuel_burn!$E:$E,Y$1063,raw_fuel_burn!$C:$C,$C1069)/1000000","v":0},{"$f":"SUMIFS(raw_fuel_burn!$G:$G,raw_fuel_burn!$E:$E,Z$1063,raw_fuel_burn!$C:$C,$C1069)/1000000","v":0},{"$f":"SUMIFS(raw_fuel_burn!$G:$G,raw_fuel_burn!$E:$E,AA$1063,raw_fuel_burn!$C:$C,$C1069)/1000000","v":0},{"$f":"SUMIFS(raw_fuel_burn!$G:$G,raw_fuel_burn!$E:$E,AB$1063,raw_fuel_burn!$C:$C,$C1069)/1000000","v":0},{"$f":"SUMIFS(raw_fuel_burn!$G:$G,raw_fuel_burn!$E:$E,AC$1063,raw_fuel_burn!$C:$C,$C1069)/1000000","v":0},{"$f":"SUMIFS(raw_fuel_burn!$G:$G,raw_fuel_burn!$E:$E,AD$1063,raw_fuel_burn!$C:$C,$C1069)/1000000","v":0},{"$f":"SUMIFS(raw_fuel_burn!$G:$G,raw_fuel_burn!$E:$E,AE$1063,raw_fuel_burn!$C:$C,$C1069)/1000000","v":0},{"$f":"SUMIFS(raw_fuel_burn!$G:$G,raw_fuel_burn!$E:$E,AF$1063,raw_fuel_burn!$C:$C,$C1069)/1000000","v":0},{"$f":"SUMIFS(raw_fuel_burn!$G:$G,raw_fuel_burn!$E:$E,AG$1063,raw_fuel_burn!$C:$C,$C1069)/1000000","v":0},{"$f":"SUMIFS(raw_fuel_burn!$G:$G,raw_fuel_burn!$E:$E,AH$1063,raw_fuel_burn!$C:$C,$C1069)/1000000","v":0},{"$f":"SUMIFS(raw_fuel_burn!$G:$G,raw_fuel_burn!$E:$E,AI$1063,raw_fuel_burn!$C:$C,$C1069)/1000000","v":60.522870423440423},{"$f":"SUMIFS(raw_fuel_burn!$G:$G,raw_fuel_burn!$E:$E,AJ$1063,raw_fuel_burn!$C:$C,$C1069)/1000000","v":0},{"$f":"SUMIFS(raw_fuel_burn!$G:$G,raw_fuel_burn!$E:$E,AK$1063,raw_fuel_burn!$C:$C,$C1069)/1000000","v":0},{"$f":"SUMIFS(raw_fuel_burn!$G:$G,raw_fuel_burn!$E:$E,AL$1063,raw_fuel_burn!$C:$C,$C1069)/1000000","v":0},{"$f":"SUMIFS(raw_fuel_burn!$G:$G,raw_fuel_burn!$E:$E,AM$1063,raw_fuel_burn!$C:$C,$C1069)/1000000","v":0},{"$f":"SUMIFS(raw_fuel_burn!$G:$G,raw_fuel_burn!$E:$E,AN$1063,raw_fuel_burn!$C:$C,$C1069)/1000000","v":0}]
[null,null,"CAISO_NW_Hydro","MMtCO2/Yr",{"$f":"SUMIFS(raw_fuel_burn!$G:$G,raw_fuel_burn!$E:$E,E$1063,raw_fuel_burn!$C:$C,$C1070)/1000000","v":0},{"$f":"SUMIFS(raw_fuel_burn!$G:$G,raw_fuel_burn!$E:$E,F$1063,raw_fuel_burn!$C:$C,$C1070)/1000000","v":0},{"$f":"SUMIFS(raw_fuel_burn!$G:$G,raw_fuel_burn!$E:$E,G$1063,raw_fuel_burn!$C:$C,$C1070)/1000000","v":0},{"$f":"SUMIFS(raw_fuel_burn!$G:$G,raw_fuel_burn!$E:$E,H$1063,raw_fuel_burn!$C:$C,$C1070)/1000000","v":0},{"$f":"SUMIFS(raw_fuel_burn!$G:$G,raw_fuel_burn!$E:$E,I$1063,raw_fuel_burn!$C:$C,$C1070)/1000000","v":0},{"$f":"SUMIFS(raw_fuel_burn!$G:$G,raw_fuel_burn!$E:$E,J$1063,raw_fuel_burn!$C:$C,$C1070)/1000000","v":0},{"$f":"SUMIFS(raw_fuel_burn!$G:$G,raw_fuel_burn!$E:$E,K$1063,raw_fuel_burn!$C:$C,$C1070)/1000000","v":0},{"$f":"SUMIFS(raw_fuel_burn!$G:$G,raw_fuel_burn!$E:$E,L$1063,raw_fuel_burn!$C:$C,$C1070)/1000000","v":0},{"$f":"SUMIFS(raw_fuel_burn!$G:$G,raw_fuel_burn!$E:$E,M$1063,raw_fuel_burn!$C:$C,$C1070)/1000000","v":0},{"$f":"SUMIFS(raw_fuel_burn!$G:$G,raw_fuel_burn!$E:$E,N$1063,raw_fuel_burn!$C:$C,$C1070)/1000000","v":0},{"$f":"SUMIFS(raw_fuel_burn!$G:$G,raw_fuel_burn!$E:$E,O$1063,raw_fuel_burn!$C:$C,$C1070)/1000000","v":0},{"$f":"SUMIFS(raw_fuel_burn!$G:$G,raw_fuel_burn!$E:$E,P$1063,raw_fuel_burn!$C:$C,$C1070)/1000000","v":0},{"$f":"SUMIFS(raw_fuel_burn!$G:$G,raw_fuel_burn!$E:$E,Q$1063,raw_fuel_burn!$C:$C,$C1070)/1000000","v":0},{"$f":"SUMIFS(raw_fuel_burn!$G:$G,raw_fuel_burn!$E:$E,R$1063,raw_fuel_burn!$C:$C,$C1070)/1000000","v":0},{"$f":"SUMIFS(raw_fuel_burn!$G:$G,raw_fuel_burn!$E:$E,S$1063,raw_fuel_burn!$C:$C,$C1070)/1000000","v":0},{"$f":"SUMIFS(raw_fuel_burn!$G:$G,raw_fuel_burn!$E:$E,T$1063,raw_fuel_burn!$C:$C,$C1070)/1000000","v":0},{"$f":"SUMIFS(raw_fuel_burn!$G:$G,raw_fuel_burn!$E:$E,U$1063,raw_fuel_burn!$C:$C,$C1070)/1000000","v":0},{"$f":"SUMIFS(raw_fuel_burn!$G:$G,raw_fuel_burn!$E:$E,V$1063,raw_fuel_burn!$C:$C,$C1070)/1000000","v":0},{"$f":"SUMIFS(raw_fuel_burn!$G:$G,raw_fuel_burn!$E:$E,W$1063,raw_fuel_burn!$C:$C,$C1070)/1000000","v":0},{"$f":"SUMIFS(raw_fuel_burn!$G:$G,raw_fuel_burn!$E:$E,X$1063,raw_fuel_burn!$C:$C,$C1070)/1000000","v":0},{"$f":"SUMIFS(raw_fuel_burn!$G:$G,raw_fuel_burn!$E:$E,Y$1063,raw_fuel_burn!$C:$C,$C1070)/1000000","v":0},{"$f":"SUMIFS(raw_fuel_burn!$G:$G,raw_fuel_burn!$E:$E,Z$1063,raw_fuel_burn!$C:$C,$C1070)/1000000","v":0},{"$f":"SUMIFS(raw_fuel_burn!$G:$G,raw_fuel_burn!$E:$E,AA$1063,raw_fuel_burn!$C:$C,$C1070)/1000000","v":0},{"$f":"SUMIFS(raw_fuel_burn!$G:$G,raw_fuel_burn!$E:$E,AB$1063,raw_fuel_burn!$C:$C,$C1070)/1000000","v":0},{"$f":"SUMIFS(raw_fuel_burn!$G:$G,raw_fuel_burn!$E:$E,AC$1063,raw_fuel_burn!$C:$C,$C1070)/1000000","v":0},{"$f":"SUMIFS(raw_fuel_burn!$G:$G,raw_fuel_burn!$E:$E,AD$1063,raw_fuel_burn!$C:$C,$C1070)/1000000","v":0},{"$f":"SUMIFS(raw_fuel_burn!$G:$G,raw_fuel_burn!$E:$E,AE$1063,raw_fuel_burn!$C:$C,$C1070)/1000000","v":0},{"$f":"SUMIFS(raw_fuel_burn!$G:$G,raw_fuel_burn!$E:$E,AF$1063,raw_fuel_burn!$C:$C,$C1070)/1000000","v":0},{"$f":"SUMIFS(raw_fuel_burn!$G:$G,raw_fuel_burn!$E:$E,AG$1063,raw_fuel_burn!$C:$C,$C1070)/1000000","v":0},{"$f":"SUMIFS(raw_fuel_burn!$G:$G,raw_fuel_burn!$E:$E,AH$1063,raw_fuel_burn!$C:$C,$C1070)/1000000","v":0},{"$f":"SUMIFS(raw_fuel_burn!$G:$G,raw_fuel_burn!$E:$E,AI$1063,raw_fuel_burn!$C:$C,$C1070)/1000000","v":0},{"$f":"SUMIFS(raw_fuel_burn!$G:$G,raw_fuel_burn!$E:$E,AJ$1063,raw_fuel_burn!$C:$C,$C1070)/1000000","v":0},{"$f":"SUMIFS(raw_fuel_burn!$G:$G,raw_fuel_burn!$E:$E,AK$1063,raw_fuel_burn!$C:$C,$C1070)/1000000","v":0},{"$f":"SUMIFS(raw_fuel_burn!$G:$G,raw_fuel_burn!$E:$E,AL$1063,raw_fuel_burn!$C:$C,$C1070)/1000000","v":0},{"$f":"SUMIFS(raw_fuel_burn!$G:$G,raw_fuel_burn!$E:$E,AM$1063,raw_fuel_burn!$C:$C,$C1070)/1000000","v":0},{"$f":"SUMIFS(raw_fuel_burn!$G:$G,raw_fuel_burn!$E:$E,AN$1063,raw_fuel_burn!$C:$C,$C1070)/1000000","v":0}]
[null,null,"Total","MMtCO2/Yr",{"$f":"SUM(E1064:E1070)","v":0},{"$f":"SUM(F1064:F1070)","v":0},0,0,0,170.44237827753361,167.44771529509819,163.32568899338969,164.61745552821642,168.00062136807441,0,162.56352627399184,0,0,0,158.76199051173975,0,0,0,0,0,0,0,0,0,0,0,0,0,0,148.31709295941312,0,0,0,0,0]
[]
[null,null,"Total CAISO Emissions and Costs Summary"]
[null,null,null,"Unit",2015,{"$f":"E1074+1","v":2016},2017,2018,2019,2020,2021,2022,2023,2024,2025,2026,2027,2028,2029,2030,2031,2032,2033,2034,2035,2036,2037,2038,2039,2040,2041,2042,2043,2044,2045,2046,2047,2048,2049,2050]
[null,null,"GHG Emissions Target","MMtCO2/Yr",{"$f":"(SUMIFS(raw_ghg!$B:$B,raw_ghg!$A:$A,E$1074))/1000000","v":0},{"$f":"(SUMIFS(raw_ghg!$B:$B,raw_ghg!$A:$A,F$1074))/1000000","v":0},{"$f":"(SUMIFS(raw_ghg!$B:$B,raw_ghg!$A:$A,G$1074))/1000000","v":0},{"$f":"(SUMIFS(raw_ghg!$B:$B,raw_ghg!$A:$A,H$1074))/1000000","v":0},{"$f":"(SUMIFS(raw_ghg!$B:$B,raw_ghg!$A:$A,I$1074))/1000000","v":0},{"$f":"(SUMIFS(raw_ghg!$B:$B,raw_ghg!$A:$A,J$1074))/1000000","v":52.512420249999998},{"$f":"(SUMIFS(raw_ghg!$B:$B,raw_ghg!$A:$A,K$1074))/1000000","v":51.051178219999997},{"$f":"(SUMIFS(raw_ghg!$B:$B,raw_ghg!$A:$A,L$1074))/1000000","v":49.589936200000004},{"$f":"(SUMIFS(raw_ghg!$B:$B,raw_ghg!$A:$A,M$1074))/1000000","v":48.128694170000003},{"$f":"(SUMIFS(raw_ghg!$B:$B,raw_ghg!$A:$A,N$1074))/1000000","v":46.667452149999995},{"$f":"(SUMIFS(raw_ghg!$B:$B,raw_ghg!$A:$A,O$1074))/1000000","v":0},{"$f":"(SUMIFS(raw_ghg!$B:$B,raw_ghg!$A:$A,P$1074))/1000000","v":43.744968100000001},{"$f":"(SUMIFS(raw_ghg!$B:$B,raw_ghg!$A:$A,Q$1074))/1000000","v":0},{"$f":"(SUMIFS(raw_ghg!$B:$B,raw_ghg!$A:$A,R$1074))/1000000","v":0},{"$f":"(SUMIFS(raw_ghg!$B:$B,raw_ghg!$A:$A,S$1074))/1000000","v":0},{"$f":"(SUMIFS(raw_ghg!$B:$B,raw_ghg!$A:$A,T$1074))/1000000","v":37.9},{"$f":"(SUMIFS(raw_ghg!$B:$B,raw_ghg!$A:$A,U$1074))/1000000","v":0},{"$f":"(SUMIFS(raw_ghg!$B:$B,raw_ghg!$A:$A,V$1074))/1000000","v":0},{"$f":"(SUMIFS(raw_ghg!$B:$B,raw_ghg!$A:$A,W$1074))/1000000","v":0},{"$f":"(SUMIFS(raw_ghg!$B:$B,raw_ghg!$A:$A,X$1074))/1000000","v":0},{"$f":"(SUMIFS(raw_ghg!$B:$B,raw_ghg!$A:$A,Y$1074))/1000000","v":0},{"$f":"(SUMIFS(raw_ghg!$B:$B,raw_ghg!$A:$A,Z$1074))/1000000","v":0},{"$f":"(SUMIFS(raw_ghg!$B:$B,raw_ghg!$A:$A,AA$1074))/1000000","v":0},{"$f":"(SUMIFS(raw_ghg!$B:$B,raw_ghg!$A:$A,AB$1074))/1000000","v":0},{"$f":"(SUMIFS(raw_ghg!$B:$B,raw_ghg!$A:$A,AC$1074))/1000000","v":0},{"$f":"(SUMIFS(raw_ghg!$B:$B,raw_ghg!$A:$A,AD$1074))/1000000","v":0},{"$f":"(SUMIFS(raw_ghg!$B:$B,raw_ghg!$A:$A,AE$1074))/1000000","v":0},{"$f":"(SUMIFS(raw_ghg!$B:$B,raw_ghg!$A:$A,AF$1074))/1000000","v":0},{"$f":"(SUMIFS(raw_ghg!$B:$B,raw_ghg!$A:$A,AG$1074))/1000000","v":0},{"$f":"(SUMIFS(raw_ghg!$B:$B,raw_ghg!$A:$A,AH$1074))/1000000","v":0},{"$f":"(SUMIFS(raw_ghg!$B:$B,raw_ghg!$A:$A,AI$1074))/1000000","v":12.25146299},{"$f":"(SUMIFS(raw_ghg!$B:$B,raw_ghg!$A:$A,AJ$1074))/1000000","v":0},{"$f":"(SUMIFS(raw_ghg!$B:$B,raw_ghg!$A:$A,AK$1074))/1000000","v":0},{"$f":"(SUMIFS(raw_ghg!$B:$B,raw_ghg!$A:$A,AL$1074))/1000000","v":0},{"$f":"(SUMIFS(raw_ghg!$B:$B,raw_ghg!$A:$A,AM$1074))/1000000","v":0},{"$f":"(SUMIFS(raw_ghg!$B:$B,raw_ghg!$A:$A,AN$1074))/1000000","v":0}]
[null,null,"CAISO BTM CHP Emissions","MMtCO2/Yr",{"$f":"-SUMIFS(raw_ghg!$C:$C,raw_ghg!$A:$A,E$1074)/1000000","v":0},{"$f":"-SUMIFS(raw_ghg!$C:$C,raw_ghg!$A:$A,F$1074)/1000000","v":0},{"$f":"-SUMIFS(raw_ghg!$C:$C,raw_ghg!$A:$A,G$1074)/1000000","v":0},{"$f":"-SUMIFS(raw_ghg!$C:$C,raw_ghg!$A:$A,H$1074)/1000000","v":0},{"$f":"-SUMIFS(raw_ghg!$C:$C,raw_ghg!$A:$A,I$1074)/1000000","v":0},{"$f":"-SUMIFS(raw_ghg!$C:$C,raw_ghg!$A:$A,J$1074)/1000000","v":5.4801563199999999},{"$f":"-SUMIFS(raw_ghg!$C:$C,raw_ghg!$A:$A,K$1074)/1000000","v":5.4801563199999999},{"$f":"-SUMIFS(raw_ghg!$C:$C,raw_ghg!$A:$A,L$1074)/1000000","v":5.4801563199999999},{"$f":"-SUMIFS(raw_ghg!$C:$C,raw_ghg!$A:$A,M$1074)/1000000","v":5.4801563199999999},{"$f":"-SUMIFS(raw_ghg!$C:$C,raw_ghg!$A:$A,N$1074)/1000000","v":5.4801563199999999},{"$f":"-SUMIFS(raw_ghg!$C:$C,raw_ghg!$A:$A,O$1074)/1000000","v":0},{"$f":"-SUMIFS(raw_ghg!$C:$C,raw_ghg!$A:$A,P$1074)/1000000","v":5.4801563199999999},{"$f":"-SUMIFS(raw_ghg!$C:$C,raw_ghg!$A:$A,Q$1074)/1000000","v":0},{"$f":"-SUMIFS(raw_ghg!$C:$C,raw_ghg!$A:$A,R$1074)/1000000","v":0},{"$f":"-SUMIFS(raw_ghg!$C:$C,raw_ghg!$A:$A,S$1074)/1000000","v":0},{"$f":"-SUMIFS(raw_ghg!$C:$C,raw_ghg!$A:$A,T$1074)/1000000","v":5.4801563199999999},{"$f":"-SUMIFS(raw_ghg!$C:$C,raw_ghg!$A:$A,U$1074)/1000000","v":0},{"$f":"-SUMIFS(raw_ghg!$C:$C,raw_ghg!$A:$A,V$1074)/1000000","v":0},{"$f":"-SUMIFS(raw_ghg!$C:$C,raw_ghg!$A:$A,W$1074)/1000000","v":0},{"$f":"-SUMIFS(raw_ghg!$C:$C,raw_ghg!$A:$A,X$1074)/1000000","v":0},{"$f":"-SUMIFS(raw_ghg!$C:$C,raw_ghg!$A:$A,Y$1074)/1000000","v":0},{"$f":"-SUMIFS(raw_ghg!$C:$C,raw_ghg!$A:$A,Z$1074)/1000000","v":0},{"$f":"-SUMIFS(raw_ghg!$C:$C,raw_ghg!$A:$A,AA$1074)/1000000","v":0},{"$f":"-SUMIFS(raw_ghg!$C:$C,raw_ghg!$A:$A,AB$1074)/1000000","v":0},{"$f":"-SUMIFS(raw_ghg!$C:$C,raw_ghg!$A:$A,AC$1074)/1000000","v":0},{"$f":"-SUMIFS(raw_ghg!$C:$C,raw_ghg!$A:$A,AD$1074)/1000000","v":0},{"$f":"-SUMIFS(raw_ghg!$C:$C,raw_ghg!$A:$A,AE$1074)/1000000","v":0},{"$f":"-SUMIFS(raw_ghg!$C:$C,raw_ghg!$A:$A,AF$1074)/1000000","v":0},{"$f":"-SUMIFS(raw_ghg!$C:$C,raw_ghg!$A:$A,AG$1074)/1000000","v":0},{"$f":"-SUMIFS(raw_ghg!$C:$C,raw_ghg!$A:$A,AH$1074)/1000000","v":0},{"$f":"-SUMIFS(raw_ghg!$C:$C,raw_ghg!$A:$A,AI$1074)/1000000","v":0},{"$f":"-SUMIFS(raw_ghg!$C:$C,raw_ghg!$A:$A,AJ$1074)/1000000","v":0},{"$f":"-SUMIFS(raw_ghg!$C:$C,raw_ghg!$A:$A,AK$1074)/1000000","v":0},{"$f":"-SUMIFS(raw_ghg!$C:$C,raw_ghg!$A:$A,AL$1074)/1000000","v":0},{"$f":"-SUMIFS(raw_ghg!$C:$C,raw_ghg!$A:$A,AM$1074)/1000000","v":0},{"$f":"-SUMIFS(raw_ghg!$C:$C,raw_ghg!$A:$A,AN$1074)/1000000","v":0}]
[null,null,"GHG Emissions Target, net of BTM CHP","MMtCO2/Yr",{"$f":"E1075-E1076","v":0},{"$f":"F1075-F1076","v":0},0,0,0,47.032263929999999,45.571021899999998,44.109779880000005,42.648537850000004,41.187295829999996,0,38.264811780000002,0,0,0,32.41984368,0,0,0,0,0,0,0,0,0,0,0,0,0,0,12.25146299,0,0,0,0,0]
[null,null,"CAISO Generator Emissions","MMtCO2/Yr",{"$f":"E1064","v":0},{"$f":"F1064","v":0},0,0,0,28.83142924319338,28.142495092711016,25.920319339363814,25.322093912680739,26.154525440500091,0,{"$f":"P1064","v":28.311584559287425},0,0,0,23.116798661959571,0,0,0,0,0,0,0,0,0,0,0,0,0,0,11.403936602214705,0,0,0,0,0]
[null,null,"Import Emissions","MMtCO2/Yr",{"$f":"MAX((SUMIFS(raw_ghg_imports!$C:$C,raw_ghg_imports!$B:$B,E$1074)+SUMIFS(raw_ghg_imports!$D:$D,raw_ghg_imports!$B:$B,E$1074))/10^6,0)","v":0},{"$f":"MAX((SUMIFS(raw_ghg_imports!$C:$C,raw_ghg_imports!$B:$B,F$1074)+SUMIFS(raw_ghg_imports!$D:$D,raw_ghg_imports!$B:$B,F$1074))/10^6,0)","v":0},{"$f":"MAX((SUMIFS(raw_ghg_imports!$C:$C,raw_ghg_imports!$B:$B,G$1074)+SUMIFS(raw_ghg_imports!$D:$D,raw_ghg_imports!$B:$B,G$1074))/10^6,0)","v":0},{"$f":"MAX((SUMIFS(raw_ghg_imports!$C:$C,raw_ghg_imports!$B:$B,H$1074)+SUMIFS(raw_ghg_imports!$D:$D,raw_ghg_imports!$B:$B,H$1074))/10^6,0)","v":0},{"$f":"MAX((SUMIFS(raw_ghg_imports!$C:$C,raw_ghg_imports!$B:$B,I$1074)+SUMIFS(raw_ghg_imports!$D:$D,raw_ghg_imports!$B:$B,I$1074))/10^6,0)","v":0},{"$f":"MAX((SUMIFS(raw_ghg_imports!$C:$C,raw_ghg_imports!$B:$B,J$1074)+SUMIFS(raw_ghg_imports!$D:$D,raw_ghg_imports!$B:$B,J$1074))/10^6,0)","v":11.637623683844131},{"$f":"MAX((SUMIFS(raw_ghg_imports!$C:$C,raw_ghg_imports!$B:$B,K$1074)+SUMIFS(raw_ghg_imports!$D:$D,raw_ghg_imports!$B:$B,K$1074))/10^6,0)","v":10.761081290174019},{"$f":"MAX((SUMIFS(raw_ghg_imports!$C:$C,raw_ghg_imports!$B:$B,L$1074)+SUMIFS(raw_ghg_imports!$D:$D,raw_ghg_imports!$B:$B,L$1074))/10^6,0)","v":10.06934895913839},{"$f":"MAX((SUMIFS(raw_ghg_imports!$C:$C,raw_ghg_imports!$B:$B,M$1074)+SUMIFS(raw_ghg_imports!$D:$D,raw_ghg_imports!$B:$B,M$1074))/10^6,0)","v":10.618229823942896},{"$f":"MAX((SUMIFS(raw_ghg_imports!$C:$C,raw_ghg_imports!$B:$B,N$1074)+SUMIFS(raw_ghg_imports!$D:$D,raw_ghg_imports!$B:$B,N$1074))/10^6,0)","v":11.807479252179879},{"$f":"MAX((SUMIFS(raw_ghg_imports!$C:$C,raw_ghg_imports!$B:$B,O$1074)+SUMIFS(raw_ghg_imports!$D:$D,raw_ghg_imports!$B:$B,O$1074))/10^6,0)","v":0},{"$f":"MAX((SUMIFS(raw_ghg_imports!$C:$C,raw_ghg_imports!$B:$B,P$1074)+SUMIFS(raw_ghg_imports!$D:$D,raw_ghg_imports!$B:$B,P$1074))/10^6,0)","v":9.953237238788553},{"$f":"MAX((SUMIFS(raw_ghg_imports!$C:$C,raw_ghg_imports!$B:$B,Q$1074)+SUMIFS(raw_ghg_imports!$D:$D,raw_ghg_imports!$B:$B,Q$1074))/10^6,0)","v":0},{"$f":"MAX((SUMIFS(raw_ghg_imports!$C:$C,raw_ghg_imports!$B:$B,R$1074)+SUMIFS(raw_ghg_imports!$D:$D,raw_ghg_imports!$B:$B,R$1074))/10^6,0)","v":0},{"$f":"MAX((SUMIFS(raw_ghg_imports!$C:$C,raw_ghg_imports!$B:$B,S$1074)+SUMIFS(raw_ghg_imports!$D:$D,raw_ghg_imports!$B:$B,S$1074))/10^6,0)","v":0},{"$f":"MAX((SUMIFS(raw_ghg_imports!$C:$C,raw_ghg_imports!$B:$B,T$1074)+SUMIFS(raw_ghg_imports!$D:$D,raw_ghg_imports!$B:$B,T$1074))/10^6,0)","v":9.3030485456123504},{"$f":"MAX((SUMIFS(raw_ghg_imports!$C:$C,raw_ghg_imports!$B:$B,U$1074)+SUMIFS(raw_ghg_imports!$D:$D,raw_ghg_imports!$B:$B,U$1074))/10^6,0)","v":0},{"$f":"MAX((SUMIFS(raw_ghg_imports!$C:$C,raw_ghg_imports!$B:$B,V$1074)+SUMIFS(raw_ghg_imports!$D:$D,raw_ghg_imports!$B:$B,V$1074))/10^6,0)","v":0},{"$f":"MAX((SUMIFS(raw_ghg_imports!$C:$C,raw_ghg_imports!$B:$B,W$1074)+SUMIFS(raw_ghg_imports!$D:$D,raw_ghg_imports!$B:$B,W$1074))/10^6,0)","v":0},{"$f":"MAX((SUMIFS(raw_ghg_imports!$C:$C,raw_ghg_imports!$B:$B,X$1074)+SUMIFS(raw_ghg_imports!$D:$D,raw_ghg_imports!$B:$B,X$1074))/10^6,0)","v":0},{"$f":"MAX((SUMIFS(raw_ghg_imports!$C:$C,raw_ghg_imports!$B:$B,Y$1074)+SUMIFS(raw_ghg_imports!$D:$D,raw_ghg_imports!$B:$B,Y$1074))/10^6,0)","v":0},{"$f":"MAX((SUMIFS(raw_ghg_imports!$C:$C,raw_ghg_imports!$B:$B,Z$1074)+SUMIFS(raw_ghg_imports!$D:$D,raw_ghg_imports!$B:$B,Z$1074))/10^6,0)","v":0},{"$f":"MAX((SUMIFS(raw_ghg_imports!$C:$C,raw_ghg_imports!$B:$B,AA$1074)+SUMIFS(raw_ghg_imports!$D:$D,raw_ghg_imports!$B:$B,AA$1074))/10^6,0)","v":0},{"$f":"MAX((SUMIFS(raw_ghg_imports!$C:$C,raw_ghg_imports!$B:$B,AB$1074)+SUMIFS(raw_ghg_imports!$D:$D,raw_ghg_imports!$B:$B,AB$1074))/10^6,0)","v":0},{"$f":"MAX((SUMIFS(raw_ghg_imports!$C:$C,raw_ghg_imports!$B:$B,AC$1074)+SUMIFS(raw_ghg_imports!$D:$D,raw_ghg_imports!$B:$B,AC$1074))/10^6,0)","v":0},{"$f":"MAX((SUMIFS(raw_ghg_imports!$C:$C,raw_ghg_imports!$B:$B,AD$1074)+SUMIFS(raw_ghg_imports!$D:$D,raw_ghg_imports!$B:$B,AD$1074))/10^6,0)","v":0},{"$f":"MAX((SUMIFS(raw_ghg_imports!$C:$C,raw_ghg_imports!$B:$B,AE$1074)+SUMIFS(raw_ghg_imports!$D:$D,raw_ghg_imports!$B:$B,AE$1074))/10^6,0)","v":0},{"$f":"MAX((SUMIFS(raw_ghg_imports!$C:$C,raw_ghg_imports!$B:$B,AF$1074)+SUMIFS(raw_ghg_imports!$D:$D,raw_ghg_imports!$B:$B,AF$1074))/10^6,0)","v":0},{"$f":"MAX((SUMIFS(raw_ghg_imports!$C:$C,raw_ghg_imports!$B:$B,AG$1074)+SUMIFS(raw_ghg_imports!$D:$D,raw_ghg_imports!$B:$B,AG$1074))/10^6,0)","v":0},{"$f":"MAX((SUMIFS(raw_ghg_imports!$C:$C,raw_ghg_imports!$B:$B,AH$1074)+SUMIFS(raw_ghg_imports!$D:$D,raw_ghg_imports!$B:$B,AH$1074))/10^6,0)","v":0},{"$f":"MAX((SUMIFS(raw_ghg_imports!$C:$C,raw_ghg_imports!$B:$B,AI$1074)+SUMIFS(raw_ghg_imports!$D:$D,raw_ghg_imports!$B:$B,AI$1074))/10^6,0)","v":0.84752783746508109},{"$f":"MAX((SUMIFS(raw_ghg_imports!$C:$C,raw_ghg_imports!$B:$B,AJ$1074)+SUMIFS(raw_ghg_imports!$D:$D,raw_ghg_imports!$B:$B,AJ$1074))/10^6,0)","v":0},{"$f":"MAX((SUMIFS(raw_ghg_imports!$C:$C,raw_ghg_imports!$B:$B,AK$1074)+SUMIFS(raw_ghg_imports!$D:$D,raw_ghg_imports!$B:$B,AK$1074))/10^6,0)","v":0},{"$f":"MAX((SUMIFS(raw_ghg_imports!$C:$C,raw_ghg_imports!$B:$B,AL$1074)+SUMIFS(raw_ghg_imports!$D:$D,raw_ghg_imports!$B:$B,AL$1074))/10^6,0)","v":0},{"$f":"MAX((SUMIFS(raw_ghg_imports!$C:$C,raw_ghg_imports!$B:$B,AM$1074)+SUMIFS(raw_ghg_imports!$D:$D,raw_ghg_imports!$B:$B,AM$1074))/10^6,0)","v":0},{"$f":"MAX((SUMIFS(raw_ghg_imports!$C:$C,raw_ghg_imports!$B:$B,AN$1074)+SUMIFS(raw_ghg_imports!$D:$D,raw_ghg_imports!$B:$B,AN$1074))/10^6,0)","v":0}]
[null,null,"Total CAISO Emissions","MMtCO2/Yr",{"$f":"SUM(E1078:E1079)+E1076","v":0},{"$f":"SUM(F1078:F1079)+F1076","v":0},0,0,0,45.949209247037508,44.383732702885034,41.469824618502201,41.420480056623632,43.442161012679968,0,43.744978118075977,0,0,0,37.900003527571918,0,0,0,0,0,0,0,0,0,0,0,0,0,0,12.251464439679786,0,0,0,0,0]
[null,null,"Marginal GHG Cost","$/tCO2",{"$f":"-SUMIFS(raw_ghg!$D:$D,raw_ghg!$A:$A,E$1074)","v":0},{"$f":"-SUMIFS(raw_ghg!$D:$D,raw_ghg!$A:$A,F$1074)","v":0},{"$f":"-SUMIFS(raw_ghg!$D:$D,raw_ghg!$A:$A,G$1074)","v":0},{"$f":"-SUMIFS(raw_ghg!$D:$D,raw_ghg!$A:$A,H$1074)","v":0},{"$f":"-SUMIFS(raw_ghg!$D:$D,raw_ghg!$A:$A,I$1074)","v":0},{"$f":"-SUMIFS(raw_ghg!$D:$D,raw_ghg!$A:$A,J$1074)","v":0},{"$f":"-SUMIFS(raw_ghg!$D:$D,raw_ghg!$A:$A,K$1074)","v":0},{"$f":"-SUMIFS(raw_ghg!$D:$D,raw_ghg!$A:$A,L$1074)","v":0},{"$f":"-SUMIFS(raw_ghg!$D:$D,raw_ghg!$A:$A,M$1074)","v":0},{"$f":"-SUMIFS(raw_ghg!$D:$D,raw_ghg!$A:$A,N$1074)","v":0},{"$f":"-SUMIFS(raw_ghg!$D:$D,raw_ghg!$A:$A,O$1074)","v":0},{"$f":"-SUMIFS(raw_ghg!$D:$D,raw_ghg!$A:$A,P$1074)","v":27.76},{"$f":"-SUMIFS(raw_ghg!$D:$D,raw_ghg!$A:$A,Q$1074)","v":0},{"$f":"-SUMIFS(raw_ghg!$D:$D,raw_ghg!$A:$A,R$1074)","v":0},{"$f":"-SUMIFS(raw_ghg!$D:$D,raw_ghg!$A:$A,S$1074)","v":0},{"$f":"-SUMIFS(raw_ghg!$D:$D,raw_ghg!$A:$A,T$1074)","v":124.12},{"$f":"-SUMIFS(raw_ghg!$D:$D,raw_ghg!$A:$A,U$1074)","v":0},{"$f":"-SUMIFS(raw_ghg!$D:$D,raw_ghg!$A:$A,V$1074)","v":0},{"$f":"-SUMIFS(raw_ghg!$D:$D,raw_ghg!$A:$A,W$1074)","v":0},{"$f":"-SUMIFS(raw_ghg!$D:$D,raw_ghg!$A:$A,X$1074)","v":0},{"$f":"-SUMIFS(raw_ghg!$D:$D,raw_ghg!$A:$A,Y$1074)","v":0},{"$f":"-SUMIFS(raw_ghg!$D:$D,raw_ghg!$A:$A,Z$1074)","v":0},{"$f":"-SUMIFS(raw_ghg!$D:$D,raw_ghg!$A:$A,AA$1074)","v":0},{"$f":"-SUMIFS(raw_ghg!$D:$D,raw_ghg!$A:$A,AB$1074)","v":0},{"$f":"-SUMIFS(raw_ghg!$D:$D,raw_ghg!$A:$A,AC$1074)","v":0},{"$f":"-SUMIFS(raw_ghg!$D:$D,raw_ghg!$A:$A,AD$1074)","v":0},{"$f":"-SUMIFS(raw_ghg!$D:$D,raw_ghg!$A:$A,AE$1074)","v":0},{"$f":"-SUMIFS(raw_ghg!$D:$D,raw_ghg!$A:$A,AF$1074)","v":0},{"$f":"-SUMIFS(raw_ghg!$D:$D,raw_ghg!$A:$A,AG$1074)","v":0},{"$f":"-SUMIFS(raw_ghg!$D:$D,raw_ghg!$A:$A,AH$1074)","v":0},{"$f":"-SUMIFS(raw_ghg!$D:$D,raw_ghg!$A:$A,AI$1074)","v":554.30999999999995},{"$f":"-SUMIFS(raw_ghg!$D:$D,raw_ghg!$A:$A,AJ$1074)","v":0},{"$f":"-SUMIFS(raw_ghg!$D:$D,raw_ghg!$A:$A,AK$1074)","v":0},{"$f":"-SUMIFS(raw_ghg!$D:$D,raw_ghg!$A:$A,AL$1074)","v":0},{"$f":"-SUMIFS(raw_ghg!$D:$D,raw_ghg!$A:$A,AM$1074)","v":0},{"$f":"-SUMIFS(raw_ghg!$D:$D,raw_ghg!$A:$A,AN$1074)","v":0}]
[null,null,"CARB Floor Carbon Price","$/tCO2",{"$f":"SUMIFS(raw_inputs_passthrough!$P:$P,raw_inputs_passthrough!$A:$A,'Portfolio Analytics'!E$1074)","v":0},{"$f":"SUMIFS(raw_inputs_passthrough!$P:$P,raw_inputs_passthrough!$A:$A,'Portfolio Analytics'!F$1074)","v":0},{"$f":"SUMIFS(raw_inputs_passthrough!$P:$P,raw_inputs_passthrough!$A:$A,'Portfolio Analytics'!G$1074)","v":0},{"$f":"SUMIFS(raw_inputs_passthrough!$P:$P,raw_inputs_passthrough!$A:$A,'Portfolio Analytics'!H$1074)","v":0},{"$f":"SUMIFS(raw_inputs_passthrough!$P:$P,raw_inputs_passthrough!$A:$A,'Portfolio Analytics'!I$1074)","v":0},{"$f":"SUMIFS(raw_inputs_passthrough!$P:$P,raw_inputs_passthrough!$A:$A,'Portfolio Analytics'!J$1074)","v":15.2487795643905},{"$f":"SUMIFS(raw_inputs_passthrough!$P:$P,raw_inputs_passthrough!$A:$A,'Portfolio Analytics'!K$1074)","v":16.000526928051102},{"$f":"SUMIFS(raw_inputs_passthrough!$P:$P,raw_inputs_passthrough!$A:$A,'Portfolio Analytics'!L$1074)","v":16.836956170722701},{"$f":"SUMIFS(raw_inputs_passthrough!$P:$P,raw_inputs_passthrough!$A:$A,'Portfolio Analytics'!M$1074)","v":17.7060323640824},{"$f":"SUMIFS(raw_inputs_passthrough!$P:$P,raw_inputs_passthrough!$A:$A,'Portfolio Analytics'!N$1074)","v":18.624442955812},{"$f":"SUMIFS(raw_inputs_passthrough!$P:$P,raw_inputs_passthrough!$A:$A,'Portfolio Analytics'!O$1074)","v":0},{"$f":"SUMIFS(raw_inputs_passthrough!$P:$P,raw_inputs_passthrough!$A:$A,'Portfolio Analytics'!P$1074)","v":20.592421016414601},{"$f":"SUMIFS(raw_inputs_passthrough!$P:$P,raw_inputs_passthrough!$A:$A,'Portfolio Analytics'!Q$1074)","v":0},{"$f":"SUMIFS(raw_inputs_passthrough!$P:$P,raw_inputs_passthrough!$A:$A,'Portfolio Analytics'!R$1074)","v":0},{"$f":"SUMIFS(raw_inputs_passthrough!$P:$P,raw_inputs_passthrough!$A:$A,'Portfolio Analytics'!S$1074)","v":0},{"$f":"SUMIFS(raw_inputs_passthrough!$P:$P,raw_inputs_passthrough!$A:$A,'Portfolio Analytics'!T$1074)","v":25.247597883069201},{"$f":"SUMIFS(raw_inputs_passthrough!$P:$P,raw_inputs_passthrough!$A:$A,'Portfolio Analytics'!U$1074)","v":0},{"$f":"SUMIFS(raw_inputs_passthrough!$P:$P,raw_inputs_passthrough!$A:$A,'Portfolio Analytics'!V$1074)","v":0},{"$f":"SUMIFS(raw_inputs_passthrough!$P:$P,raw_inputs_passthrough!$A:$A,'Portfolio Analytics'!W$1074)","v":0},{"$f":"SUMIFS(raw_inputs_passthrough!$P:$P,raw_inputs_passthrough!$A:$A,'Portfolio Analytics'!X$1074)","v":0},{"$f":"SUMIFS(raw_inputs_passthrough!$P:$P,raw_inputs_passthrough!$A:$A,'Portfolio Analytics'!Y$1074)","v":0},{"$f":"SUMIFS(raw_inputs_passthrough!$P:$P,raw_inputs_passthrough!$A:$A,'Portfolio Analytics'!Z$1074)","v":0},{"$f":"SUMIFS(raw_inputs_passthrough!$P:$P,raw_inputs_passthrough!$A:$A,'Portfolio Analytics'!AA$1074)","v":0},{"$f":"SUMIFS(raw_inputs_passthrough!$P:$P,raw_inputs_passthrough!$A:$A,'Portfolio Analytics'!AB$1074)","v":0},{"$f":"SUMIFS(raw_inputs_passthrough!$P:$P,raw_inputs_passthrough!$A:$A,'Portfolio Analytics'!AC$1074)","v":0},{"$f":"SUMIFS(raw_inputs_passthrough!$P:$P,raw_inputs_passthrough!$A:$A,'Portfolio Analytics'!AD$1074)","v":0},{"$f":"SUMIFS(raw_inputs_passthrough!$P:$P,raw_inputs_passthrough!$A:$A,'Portfolio Analytics'!AE$1074)","v":0},{"$f":"SUMIFS(raw_inputs_passthrough!$P:$P,raw_inputs_passthrough!$A:$A,'Portfolio Analytics'!AF$1074)","v":0},{"$f":"SUMIFS(raw_inputs_passthrough!$P:$P,raw_inputs_passthrough!$A:$A,'Portfolio Analytics'!AG$1074)","v":0},{"$f":"SUMIFS(raw_inputs_passthrough!$P:$P,raw_inputs_passthrough!$A:$A,'Portfolio Analytics'!AH$1074)","v":0},{"$f":"SUMIFS(raw_inputs_passthrough!$P:$P,raw_inputs_passthrough!$A:$A,'Portfolio Analytics'!AI$1074)","v":54.088573436812702},{"$f":"SUMIFS(raw_inputs_passthrough!$P:$P,raw_inputs_passthrough!$A:$A,'Portfolio Analytics'!AJ$1074)","v":0},{"$f":"SUMIFS(raw_inputs_passthrough!$P:$P,raw_inputs_passthrough!$A:$A,'Portfolio Analytics'!AK$1074)","v":0},{"$f":"SUMIFS(raw_inputs_passthrough!$P:$P,raw_inputs_passthrough!$A:$A,'Portfolio Analytics'!AL$1074)","v":0},{"$f":"SUMIFS(raw_inputs_passthrough!$P:$P,raw_inputs_passthrough!$A:$A,'Portfolio Analytics'!AM$1074)","v":0},{"$f":"SUMIFS(raw_inputs_passthrough!$P:$P,raw_inputs_passthrough!$A:$A,'Portfolio Analytics'!AN$1074)","v":0}]
[null,null,"Total GHG Abatement Cost","$/tCO2",{"$f":"E1082+E1081","v":0},{"$f":"F1082+F1081","v":0},0,0,0,15.2487795643905,16.000526928051102,16.836956170722701,17.7060323640824,18.624442955812,0,48.352421016414603,0,0,0,149.36759788306921,0,0,0,0,0,0,0,0,0,0,0,0,0,0,608.39857343681263,0,0,0,0,0]
[]
[null,null,"CAISO Emissions by Fuel Type"]
[null,null,null,"Unit",2015,{"$f":"E1086+1","v":2016},2017,2018,2019,2020,2021,2022,2023,2024,2025,2026,2027,2028,2029,2030,2031,2032,2033,2034,2035,2036,2037,2038,2039,2040,2041,2042,2043,2044,2045,2046,2047,2048,2049,2050]
[null,null,"CAISO_CCGT1","MMtCO2/Yr",{"$f":"SUMIFS(raw_fuel_burn!$G:$G,Lists!$Z:$Z,'Portfolio Analytics'!$C1087,raw_fuel_burn!$E:$E,'Portfolio Analytics'!E$1086,raw_fuel_burn!$C:$C,mainzone)/1000000","v":0},{"$f":"SUMIFS(raw_fuel_burn!$G:$G,Lists!$Z:$Z,'Portfolio Analytics'!$C1087,raw_fuel_burn!$E:$E,'Portfolio Analytics'!F$1086,raw_fuel_burn!$C:$C,mainzone)/1000000","v":0},{"$f":"SUMIFS(raw_fuel_burn!$G:$G,Lists!$Z:$Z,'Portfolio Analytics'!$C1087,raw_fuel_burn!$E:$E,'Portfolio Analytics'!G$1086,raw_fuel_burn!$C:$C,mainzone)/1000000","v":0},{"$f":"SUMIFS(raw_fuel_burn!$G:$G,Lists!$Z:$Z,'Portfolio Analytics'!$C1087,raw_fuel_burn!$E:$E,'Portfolio Analytics'!H$1086,raw_fuel_burn!$C:$C,mainzone)/1000000","v":0},{"$f":"SUMIFS(raw_fuel_burn!$G:$G,Lists!$Z:$Z,'Portfolio Analytics'!$C1087,raw_fuel_burn!$E:$E,'Portfolio Analytics'!I$1086,raw_fuel_burn!$C:$C,mainzone)/1000000","v":0},{"$f":"SUMIFS(raw_fuel_burn!$G:$G,Lists!$Z:$Z,'Portfolio Analytics'!$C1087,raw_fuel_burn!$E:$E,'Portfolio Analytics'!J$1086,raw_fuel_burn!$C:$C,mainzone)/1000000","v":21.746005062926699},{"$f":"SUMIFS(raw_fuel_burn!$G:$G,Lists!$Z:$Z,'Portfolio Analytics'!$C1087,raw_fuel_burn!$E:$E,'Portfolio Analytics'!K$1086,raw_fuel_burn!$C:$C,mainzone)/1000000","v":22.165516584175002},{"$f":"SUMIFS(raw_fuel_burn!$G:$G,Lists!$Z:$Z,'Portfolio Analytics'!$C1087,raw_fuel_burn!$E:$E,'Portfolio Analytics'!L$1086,raw_fuel_burn!$C:$C,mainzone)/1000000","v":20.5005320189365},{"$f":"SUMIFS(raw_fuel_burn!$G:$G,Lists!$Z:$Z,'Portfolio Analytics'!$C1087,raw_fuel_burn!$E:$E,'Portfolio Analytics'!M$1086,raw_fuel_burn!$C:$C,mainzone)/1000000","v":19.855160361690302},{"$f":"SUMIFS(raw_fuel_burn!$G:$G,Lists!$Z:$Z,'Portfolio Analytics'!$C1087,raw_fuel_burn!$E:$E,'Portfolio Analytics'!N$1086,raw_fuel_burn!$C:$C,mainzone)/1000000","v":20.762748954668499},{"$f":"SUMIFS(raw_fuel_burn!$G:$G,Lists!$Z:$Z,'Portfolio Analytics'!$C1087,raw_fuel_burn!$E:$E,'Portfolio Analytics'!O$1086,raw_fuel_burn!$C:$C,mainzone)/1000000","v":0},{"$f":"SUMIFS(raw_fuel_burn!$G:$G,Lists!$Z:$Z,'Portfolio Analytics'!$C1087,raw_fuel_burn!$E:$E,'Portfolio Analytics'!P$1086,raw_fuel_burn!$C:$C,mainzone)/1000000","v":23.871782070080602},{"$f":"SUMIFS(raw_fuel_burn!$G:$G,Lists!$Z:$Z,'Portfolio Analytics'!$C1087,raw_fuel_burn!$E:$E,'Portfolio Analytics'!Q$1086,raw_fuel_burn!$C:$C,mainzone)/1000000","v":0},{"$f":"SUMIFS(raw_fuel_burn!$G:$G,Lists!$Z:$Z,'Portfolio Analytics'!$C1087,raw_fuel_burn!$E:$E,'Portfolio Analytics'!R$1086,raw_fuel_burn!$C:$C,mainzone)/1000000","v":0},{"$f":"SUMIFS(raw_fuel_burn!$G:$G,Lists!$Z:$Z,'Portfolio Analytics'!$C1087,raw_fuel_burn!$E:$E,'Portfolio Analytics'!S$1086,raw_fuel_burn!$C:$C,mainzone)/1000000","v":0},{"$f":"SUMIFS(raw_fuel_burn!$G:$G,Lists!$Z:$Z,'Portfolio Analytics'!$C1087,raw_fuel_burn!$E:$E,'Portfolio Analytics'!T$1086,raw_fuel_burn!$C:$C,mainzone)/1000000","v":18.676769022135897},{"$f":"SUMIFS(raw_fuel_burn!$G:$G,Lists!$Z:$Z,'Portfolio Analytics'!$C1087,raw_fuel_burn!$E:$E,'Portfolio Analytics'!U$1086,raw_fuel_burn!$C:$C,mainzone)/1000000","v":0},{"$f":"SUMIFS(raw_fuel_burn!$G:$G,Lists!$Z:$Z,'Portfolio Analytics'!$C1087,raw_fuel_burn!$E:$E,'Portfolio Analytics'!V$1086,raw_fuel_burn!$C:$C,mainzone)/1000000","v":0},{"$f":"SUMIFS(raw_fuel_burn!$G:$G,Lists!$Z:$Z,'Portfolio Analytics'!$C1087,raw_fuel_burn!$E:$E,'Portfolio Analytics'!W$1086,raw_fuel_burn!$C:$C,mainzone)/1000000","v":0},{"$f":"SUMIFS(raw_fuel_burn!$G:$G,Lists!$Z:$Z,'Portfolio Analytics'!$C1087,raw_fuel_burn!$E:$E,'Portfolio Analytics'!X$1086,raw_fuel_burn!$C:$C,mainzone)/1000000","v":0},{"$f":"SUMIFS(raw_fuel_burn!$G:$G,Lists!$Z:$Z,'Portfolio Analytics'!$C1087,raw_fuel_burn!$E:$E,'Portfolio Analytics'!Y$1086,raw_fuel_burn!$C:$C,mainzone)/1000000","v":0},{"$f":"SUMIFS(raw_fuel_burn!$G:$G,Lists!$Z:$Z,'Portfolio Analytics'!$C1087,raw_fuel_burn!$E:$E,'Portfolio Analytics'!Z$1086,raw_fuel_burn!$C:$C,mainzone)/1000000","v":0},{"$f":"SUMIFS(raw_fuel_burn!$G:$G,Lists!$Z:$Z,'Portfolio Analytics'!$C1087,raw_fuel_burn!$E:$E,'Portfolio Analytics'!AA$1086,raw_fuel_burn!$C:$C,mainzone)/1000000","v":0},{"$f":"SUMIFS(raw_fuel_burn!$G:$G,Lists!$Z:$Z,'Portfolio Analytics'!$C1087,raw_fuel_burn!$E:$E,'Portfolio Analytics'!AB$1086,raw_fuel_burn!$C:$C,mainzone)/1000000","v":0},{"$f":"SUMIFS(raw_fuel_burn!$G:$G,Lists!$Z:$Z,'Portfolio Analytics'!$C1087,raw_fuel_burn!$E:$E,'Portfolio Analytics'!AC$1086,raw_fuel_burn!$C:$C,mainzone)/1000000","v":0},{"$f":"SUMIFS(raw_fuel_burn!$G:$G,Lists!$Z:$Z,'Portfolio Analytics'!$C1087,raw_fuel_burn!$E:$E,'Portfolio Analytics'!AD$1086,raw_fuel_burn!$C:$C,mainzone)/1000000","v":0},{"$f":"SUMIFS(raw_fuel_burn!$G:$G,Lists!$Z:$Z,'Portfolio Analytics'!$C1087,raw_fuel_burn!$E:$E,'Portfolio Analytics'!AE$1086,raw_fuel_burn!$C:$C,mainzone)/1000000","v":0},{"$f":"SUMIFS(raw_fuel_burn!$G:$G,Lists!$Z:$Z,'Portfolio Analytics'!$C1087,raw_fuel_burn!$E:$E,'Portfolio Analytics'!AF$1086,raw_fuel_burn!$C:$C,mainzone)/1000000","v":0},{"$f":"SUMIFS(raw_fuel_burn!$G:$G,Lists!$Z:$Z,'Portfolio Analytics'!$C1087,raw_fuel_burn!$E:$E,'Portfolio Analytics'!AG$1086,raw_fuel_burn!$C:$C,mainzone)/1000000","v":0},{"$f":"SUMIFS(raw_fuel_burn!$G:$G,Lists!$Z:$Z,'Portfolio Analytics'!$C1087,raw_fuel_burn!$E:$E,'Portfolio Analytics'!AH$1086,raw_fuel_burn!$C:$C,mainzone)/1000000","v":0},{"$f":"SUMIFS(raw_fuel_burn!$G:$G,Lists!$Z:$Z,'Portfolio Analytics'!$C1087,raw_fuel_burn!$E:$E,'Portfolio Analytics'!AI$1086,raw_fuel_burn!$C:$C,mainzone)/1000000","v":11.1396895236372},{"$f":"SUMIFS(raw_fuel_burn!$G:$G,Lists!$Z:$Z,'Portfolio Analytics'!$C1087,raw_fuel_burn!$E:$E,'Portfolio Analytics'!AJ$1086,raw_fuel_burn!$C:$C,mainzone)/1000000","v":0},{"$f":"SUMIFS(raw_fuel_burn!$G:$G,Lists!$Z:$Z,'Portfolio Analytics'!$C1087,raw_fuel_burn!$E:$E,'Portfolio Analytics'!AK$1086,raw_fuel_burn!$C:$C,mainzone)/1000000","v":0},{"$f":"SUMIFS(raw_fuel_burn!$G:$G,Lists!$Z:$Z,'Portfolio Analytics'!$C1087,raw_fuel_burn!$E:$E,'Portfolio Analytics'!AL$1086,raw_fuel_burn!$C:$C,mainzone)/1000000","v":0},{"$f":"SUMIFS(raw_fuel_burn!$G:$G,Lists!$Z:$Z,'Portfolio Analytics'!$C1087,raw_fuel_burn!$E:$E,'Portfolio Analytics'!AM$1086,raw_fuel_burn!$C:$C,mainzone)/1000000","v":0},{"$f":"SUMIFS(raw_fuel_burn!$G:$G,Lists!$Z:$Z,'Portfolio Analytics'!$C1087,raw_fuel_burn!$E:$E,'Portfolio Analytics'!AN$1086,raw_fuel_burn!$C:$C,mainzone)/1000000","v":0}]
[null,null,"CAISO_CCGT2","MMtCO2/Yr",{"$f":"SUMIFS(raw_fuel_burn!$G:$G,Lists!$Z:$Z,'Portfolio Analytics'!$C1088,raw_fuel_burn!$E:$E,'Portfolio Analytics'!E$1086,raw_fuel_burn!$C:$C,mainzone)/1000000","v":0},{"$f":"SUMIFS(raw_fuel_burn!$G:$G,Lists!$Z:$Z,'Portfolio Analytics'!$C1088,raw_fuel_burn!$E:$E,'Portfolio Analytics'!F$1086,raw_fuel_burn!$C:$C,mainzone)/1000000","v":0},{"$f":"SUMIFS(raw_fuel_burn!$G:$G,Lists!$Z:$Z,'Portfolio Analytics'!$C1088,raw_fuel_burn!$E:$E,'Portfolio Analytics'!G$1086,raw_fuel_burn!$C:$C,mainzone)/1000000","v":0},{"$f":"SUMIFS(raw_fuel_burn!$G:$G,Lists!$Z:$Z,'Portfolio Analytics'!$C1088,raw_fuel_burn!$E:$E,'Portfolio Analytics'!H$1086,raw_fuel_burn!$C:$C,mainzone)/1000000","v":0},{"$f":"SUMIFS(raw_fuel_burn!$G:$G,Lists!$Z:$Z,'Portfolio Analytics'!$C1088,raw_fuel_burn!$E:$E,'Portfolio Analytics'!I$1086,raw_fuel_burn!$C:$C,mainzone)/1000000","v":0},{"$f":"SUMIFS(raw_fuel_burn!$G:$G,Lists!$Z:$Z,'Portfolio Analytics'!$C1088,raw_fuel_burn!$E:$E,'Portfolio Analytics'!J$1086,raw_fuel_burn!$C:$C,mainzone)/1000000","v":5.1134352548803295E-2},{"$f":"SUMIFS(raw_fuel_burn!$G:$G,Lists!$Z:$Z,'Portfolio Analytics'!$C1088,raw_fuel_burn!$E:$E,'Portfolio Analytics'!K$1086,raw_fuel_burn!$C:$C,mainzone)/1000000","v":0},{"$f":"SUMIFS(raw_fuel_burn!$G:$G,Lists!$Z:$Z,'Portfolio Analytics'!$C1088,raw_fuel_burn!$E:$E,'Portfolio Analytics'!L$1086,raw_fuel_burn!$C:$C,mainzone)/1000000","v":0},{"$f":"SUMIFS(raw_fuel_burn!$G:$G,Lists!$Z:$Z,'Portfolio Analytics'!$C1088,raw_fuel_burn!$E:$E,'Portfolio Analytics'!M$1086,raw_fuel_burn!$C:$C,mainzone)/1000000","v":0},{"$f":"SUMIFS(raw_fuel_burn!$G:$G,Lists!$Z:$Z,'Portfolio Analytics'!$C1088,raw_fuel_burn!$E:$E,'Portfolio Analytics'!N$1086,raw_fuel_burn!$C:$C,mainzone)/1000000","v":0},{"$f":"SUMIFS(raw_fuel_burn!$G:$G,Lists!$Z:$Z,'Portfolio Analytics'!$C1088,raw_fuel_burn!$E:$E,'Portfolio Analytics'!O$1086,raw_fuel_burn!$C:$C,mainzone)/1000000","v":0},{"$f":"SUMIFS(raw_fuel_burn!$G:$G,Lists!$Z:$Z,'Portfolio Analytics'!$C1088,raw_fuel_burn!$E:$E,'Portfolio Analytics'!P$1086,raw_fuel_burn!$C:$C,mainzone)/1000000","v":0},{"$f":"SUMIFS(raw_fuel_burn!$G:$G,Lists!$Z:$Z,'Portfolio Analytics'!$C1088,raw_fuel_burn!$E:$E,'Portfolio Analytics'!Q$1086,raw_fuel_burn!$C:$C,mainzone)/1000000","v":0},{"$f":"SUMIFS(raw_fuel_burn!$G:$G,Lists!$Z:$Z,'Portfolio Analytics'!$C1088,raw_fuel_burn!$E:$E,'Portfolio Analytics'!R$1086,raw_fuel_burn!$C:$C,mainzone)/1000000","v":0},{"$f":"SUMIFS(raw_fuel_burn!$G:$G,Lists!$Z:$Z,'Portfolio Analytics'!$C1088,raw_fuel_burn!$E:$E,'Portfolio Analytics'!S$1086,raw_fuel_burn!$C:$C,mainzone)/1000000","v":0},{"$f":"SUMIFS(raw_fuel_burn!$G:$G,Lists!$Z:$Z,'Portfolio Analytics'!$C1088,raw_fuel_burn!$E:$E,'Portfolio Analytics'!T$1086,raw_fuel_burn!$C:$C,mainzone)/1000000","v":0},{"$f":"SUMIFS(raw_fuel_burn!$G:$G,Lists!$Z:$Z,'Portfolio Analytics'!$C1088,raw_fuel_burn!$E:$E,'Portfolio Analytics'!U$1086,raw_fuel_burn!$C:$C,mainzone)/1000000","v":0},{"$f":"SUMIFS(raw_fuel_burn!$G:$G,Lists!$Z:$Z,'Portfolio Analytics'!$C1088,raw_fuel_burn!$E:$E,'Portfolio Analytics'!V$1086,raw_fuel_burn!$C:$C,mainzone)/1000000","v":0},{"$f":"SUMIFS(raw_fuel_burn!$G:$G,Lists!$Z:$Z,'Portfolio Analytics'!$C1088,raw_fuel_burn!$E:$E,'Portfolio Analytics'!W$1086,raw_fuel_burn!$C:$C,mainzone)/1000000","v":0},{"$f":"SUMIFS(raw_fuel_burn!$G:$G,Lists!$Z:$Z,'Portfolio Analytics'!$C1088,raw_fuel_burn!$E:$E,'Portfolio Analytics'!X$1086,raw_fuel_burn!$C:$C,mainzone)/1000000","v":0},{"$f":"SUMIFS(raw_fuel_burn!$G:$G,Lists!$Z:$Z,'Portfolio Analytics'!$C1088,raw_fuel_burn!$E:$E,'Portfolio Analytics'!Y$1086,raw_fuel_burn!$C:$C,mainzone)/1000000","v":0},{"$f":"SUMIFS(raw_fuel_burn!$G:$G,Lists!$Z:$Z,'Portfolio Analytics'!$C1088,raw_fuel_burn!$E:$E,'Portfolio Analytics'!Z$1086,raw_fuel_burn!$C:$C,mainzone)/1000000","v":0},{"$f":"SUMIFS(raw_fuel_burn!$G:$G,Lists!$Z:$Z,'Portfolio Analytics'!$C1088,raw_fuel_burn!$E:$E,'Portfolio Analytics'!AA$1086,raw_fuel_burn!$C:$C,mainzone)/1000000","v":0},{"$f":"SUMIFS(raw_fuel_burn!$G:$G,Lists!$Z:$Z,'Portfolio Analytics'!$C1088,raw_fuel_burn!$E:$E,'Portfolio Analytics'!AB$1086,raw_fuel_burn!$C:$C,mainzone)/1000000","v":0},{"$f":"SUMIFS(raw_fuel_burn!$G:$G,Lists!$Z:$Z,'Portfolio Analytics'!$C1088,raw_fuel_burn!$E:$E,'Portfolio Analytics'!AC$1086,raw_fuel_burn!$C:$C,mainzone)/1000000","v":0},{"$f":"SUMIFS(raw_fuel_burn!$G:$G,Lists!$Z:$Z,'Portfolio Analytics'!$C1088,raw_fuel_burn!$E:$E,'Portfolio Analytics'!AD$1086,raw_fuel_burn!$C:$C,mainzone)/1000000","v":0},{"$f":"SUMIFS(raw_fuel_burn!$G:$G,Lists!$Z:$Z,'Portfolio Analytics'!$C1088,raw_fuel_burn!$E:$E,'Portfolio Analytics'!AE$1086,raw_fuel_burn!$C:$C,mainzone)/1000000","v":0},{"$f":"SUMIFS(raw_fuel_burn!$G:$G,Lists!$Z:$Z,'Portfolio Analytics'!$C1088,raw_fuel_burn!$E:$E,'Portfolio Analytics'!AF$1086,raw_fuel_burn!$C:$C,mainzone)/1000000","v":0},{"$f":"SUMIFS(raw_fuel_burn!$G:$G,Lists!$Z:$Z,'Portfolio Analytics'!$C1088,raw_fuel_burn!$E:$E,'Portfolio Analytics'!AG$1086,raw_fuel_burn!$C:$C,mainzone)/1000000","v":0},{"$f":"SUMIFS(raw_fuel_burn!$G:$G,Lists!$Z:$Z,'Portfolio Analytics'!$C1088,raw_fuel_burn!$E:$E,'Portfolio Analytics'!AH$1086,raw_fuel_burn!$C:$C,mainzone)/1000000","v":0},{"$f":"SUMIFS(raw_fuel_burn!$G:$G,Lists!$Z:$Z,'Portfolio Analytics'!$C1088,raw_fuel_burn!$E:$E,'Portfolio Analytics'!AI$1086,raw_fuel_burn!$C:$C,mainzone)/1000000","v":0.24056924124840401},{"$f":"SUMIFS(raw_fuel_burn!$G:$G,Lists!$Z:$Z,'Portfolio Analytics'!$C1088,raw_fuel_burn!$E:$E,'Portfolio Analytics'!AJ$1086,raw_fuel_burn!$C:$C,mainzone)/1000000","v":0},{"$f":"SUMIFS(raw_fuel_burn!$G:$G,Lists!$Z:$Z,'Portfolio Analytics'!$C1088,raw_fuel_burn!$E:$E,'Portfolio Analytics'!AK$1086,raw_fuel_burn!$C:$C,mainzone)/1000000","v":0},{"$f":"SUMIFS(raw_fuel_burn!$G:$G,Lists!$Z:$Z,'Portfolio Analytics'!$C1088,raw_fuel_burn!$E:$E,'Portfolio Analytics'!AL$1086,raw_fuel_burn!$C:$C,mainzone)/1000000","v":0},{"$f":"SUMIFS(raw_fuel_burn!$G:$G,Lists!$Z:$Z,'Portfolio Analytics'!$C1088,raw_fuel_burn!$E:$E,'Portfolio Analytics'!AM$1086,raw_fuel_burn!$C:$C,mainzone)/1000000","v":0},{"$f":"SUMIFS(raw_fuel_burn!$G:$G,Lists!$Z:$Z,'Portfolio Analytics'!$C1088,raw_fuel_burn!$E:$E,'Portfolio Analytics'!AN$1086,raw_fuel_burn!$C:$C,mainzone)/1000000","v":0}]
[null,null,"CAISO_Peaker1","MMtCO2/Yr",{"$f":"SUMIFS(raw_fuel_burn!$G:$G,Lists!$Z:$Z,'Portfolio Analytics'!$C1089,raw_fuel_burn!$E:$E,'Portfolio Analytics'!E$1086,raw_fuel_burn!$C:$C,mainzone)/1000000","v":0},{"$f":"SUMIFS(raw_fuel_burn!$G:$G,Lists!$Z:$Z,'Portfolio Analytics'!$C1089,raw_fuel_burn!$E:$E,'Portfolio Analytics'!F$1086,raw_fuel_burn!$C:$C,mainzone)/1000000","v":0},{"$f":"SUMIFS(raw_fuel_burn!$G:$G,Lists!$Z:$Z,'Portfolio Analytics'!$C1089,raw_fuel_burn!$E:$E,'Portfolio Analytics'!G$1086,raw_fuel_burn!$C:$C,mainzone)/1000000","v":0},{"$f":"SUMIFS(raw_fuel_burn!$G:$G,Lists!$Z:$Z,'Portfolio Analytics'!$C1089,raw_fuel_burn!$E:$E,'Portfolio Analytics'!H$1086,raw_fuel_burn!$C:$C,mainzone)/1000000","v":0},{"$f":"SUMIFS(raw_fuel_burn!$G:$G,Lists!$Z:$Z,'Portfolio Analytics'!$C1089,raw_fuel_burn!$E:$E,'Portfolio Analytics'!I$1086,raw_fuel_burn!$C:$C,mainzone)/1000000","v":0},{"$f":"SUMIFS(raw_fuel_burn!$G:$G,Lists!$Z:$Z,'Portfolio Analytics'!$C1089,raw_fuel_burn!$E:$E,'Portfolio Analytics'!J$1086,raw_fuel_burn!$C:$C,mainzone)/1000000","v":0.54511205043443001},{"$f":"SUMIFS(raw_fuel_burn!$G:$G,Lists!$Z:$Z,'Portfolio Analytics'!$C1089,raw_fuel_burn!$E:$E,'Portfolio Analytics'!K$1086,raw_fuel_burn!$C:$C,mainzone)/1000000","v":0.28510493635971901},{"$f":"SUMIFS(raw_fuel_burn!$G:$G,Lists!$Z:$Z,'Portfolio Analytics'!$C1089,raw_fuel_burn!$E:$E,'Portfolio Analytics'!L$1086,raw_fuel_burn!$C:$C,mainzone)/1000000","v":0.32746178241222601},{"$f":"SUMIFS(raw_fuel_burn!$G:$G,Lists!$Z:$Z,'Portfolio Analytics'!$C1089,raw_fuel_burn!$E:$E,'Portfolio Analytics'!M$1086,raw_fuel_burn!$C:$C,mainzone)/1000000","v":0.39199278846887997},{"$f":"SUMIFS(raw_fuel_burn!$G:$G,Lists!$Z:$Z,'Portfolio Analytics'!$C1089,raw_fuel_burn!$E:$E,'Portfolio Analytics'!N$1086,raw_fuel_burn!$C:$C,mainzone)/1000000","v":0.31941838559098901},{"$f":"SUMIFS(raw_fuel_burn!$G:$G,Lists!$Z:$Z,'Portfolio Analytics'!$C1089,raw_fuel_burn!$E:$E,'Portfolio Analytics'!O$1086,raw_fuel_burn!$C:$C,mainzone)/1000000","v":0},{"$f":"SUMIFS(raw_fuel_burn!$G:$G,Lists!$Z:$Z,'Portfolio Analytics'!$C1089,raw_fuel_burn!$E:$E,'Portfolio Analytics'!P$1086,raw_fuel_burn!$C:$C,mainzone)/1000000","v":4.7127315290857799E-2},{"$f":"SUMIFS(raw_fuel_burn!$G:$G,Lists!$Z:$Z,'Portfolio Analytics'!$C1089,raw_fuel_burn!$E:$E,'Portfolio Analytics'!Q$1086,raw_fuel_burn!$C:$C,mainzone)/1000000","v":0},{"$f":"SUMIFS(raw_fuel_burn!$G:$G,Lists!$Z:$Z,'Portfolio Analytics'!$C1089,raw_fuel_burn!$E:$E,'Portfolio Analytics'!R$1086,raw_fuel_burn!$C:$C,mainzone)/1000000","v":0},{"$f":"SUMIFS(raw_fuel_burn!$G:$G,Lists!$Z:$Z,'Portfolio Analytics'!$C1089,raw_fuel_burn!$E:$E,'Portfolio Analytics'!S$1086,raw_fuel_burn!$C:$C,mainzone)/1000000","v":0},{"$f":"SUMIFS(raw_fuel_burn!$G:$G,Lists!$Z:$Z,'Portfolio Analytics'!$C1089,raw_fuel_burn!$E:$E,'Portfolio Analytics'!T$1086,raw_fuel_burn!$C:$C,mainzone)/1000000","v":4.1583128560377297E-2},{"$f":"SUMIFS(raw_fuel_burn!$G:$G,Lists!$Z:$Z,'Portfolio Analytics'!$C1089,raw_fuel_burn!$E:$E,'Portfolio Analytics'!U$1086,raw_fuel_burn!$C:$C,mainzone)/1000000","v":0},{"$f":"SUMIFS(raw_fuel_burn!$G:$G,Lists!$Z:$Z,'Portfolio Analytics'!$C1089,raw_fuel_burn!$E:$E,'Portfolio Analytics'!V$1086,raw_fuel_burn!$C:$C,mainzone)/1000000","v":0},{"$f":"SUMIFS(raw_fuel_burn!$G:$G,Lists!$Z:$Z,'Portfolio Analytics'!$C1089,raw_fuel_burn!$E:$E,'Portfolio Analytics'!W$1086,raw_fuel_burn!$C:$C,mainzone)/1000000","v":0},{"$f":"SUMIFS(raw_fuel_burn!$G:$G,Lists!$Z:$Z,'Portfolio Analytics'!$C1089,raw_fuel_burn!$E:$E,'Portfolio Analytics'!X$1086,raw_fuel_burn!$C:$C,mainzone)/1000000","v":0},{"$f":"SUMIFS(raw_fuel_burn!$G:$G,Lists!$Z:$Z,'Portfolio Analytics'!$C1089,raw_fuel_burn!$E:$E,'Portfolio Analytics'!Y$1086,raw_fuel_burn!$C:$C,mainzone)/1000000","v":0},{"$f":"SUMIFS(raw_fuel_burn!$G:$G,Lists!$Z:$Z,'Portfolio Analytics'!$C1089,raw_fuel_burn!$E:$E,'Portfolio Analytics'!Z$1086,raw_fuel_burn!$C:$C,mainzone)/1000000","v":0},{"$f":"SUMIFS(raw_fuel_burn!$G:$G,Lists!$Z:$Z,'Portfolio Analytics'!$C1089,raw_fuel_burn!$E:$E,'Portfolio Analytics'!AA$1086,raw_fuel_burn!$C:$C,mainzone)/1000000","v":0},{"$f":"SUMIFS(raw_fuel_burn!$G:$G,Lists!$Z:$Z,'Portfolio Analytics'!$C1089,raw_fuel_burn!$E:$E,'Portfolio Analytics'!AB$1086,raw_fuel_burn!$C:$C,mainzone)/1000000","v":0},{"$f":"SUMIFS(raw_fuel_burn!$G:$G,Lists!$Z:$Z,'Portfolio Analytics'!$C1089,raw_fuel_burn!$E:$E,'Portfolio Analytics'!AC$1086,raw_fuel_burn!$C:$C,mainzone)/1000000","v":0},{"$f":"SUMIFS(raw_fuel_burn!$G:$G,Lists!$Z:$Z,'Portfolio Analytics'!$C1089,raw_fuel_burn!$E:$E,'Portfolio Analytics'!AD$1086,raw_fuel_burn!$C:$C,mainzone)/1000000","v":0},{"$f":"SUMIFS(raw_fuel_burn!$G:$G,Lists!$Z:$Z,'Portfolio Analytics'!$C1089,raw_fuel_burn!$E:$E,'Portfolio Analytics'!AE$1086,raw_fuel_burn!$C:$C,mainzone)/1000000","v":0},{"$f":"SUMIFS(raw_fuel_burn!$G:$G,Lists!$Z:$Z,'Portfolio Analytics'!$C1089,raw_fuel_burn!$E:$E,'Portfolio Analytics'!AF$1086,raw_fuel_burn!$C:$C,mainzone)/1000000","v":0},{"$f":"SUMIFS(raw_fuel_burn!$G:$G,Lists!$Z:$Z,'Portfolio Analytics'!$C1089,raw_fuel_burn!$E:$E,'Portfolio Analytics'!AG$1086,raw_fuel_burn!$C:$C,mainzone)/1000000","v":0},{"$f":"SUMIFS(raw_fuel_burn!$G:$G,Lists!$Z:$Z,'Portfolio Analytics'!$C1089,raw_fuel_burn!$E:$E,'Portfolio Analytics'!AH$1086,raw_fuel_burn!$C:$C,mainzone)/1000000","v":0},{"$f":"SUMIFS(raw_fuel_burn!$G:$G,Lists!$Z:$Z,'Portfolio Analytics'!$C1089,raw_fuel_burn!$E:$E,'Portfolio Analytics'!AI$1086,raw_fuel_burn!$C:$C,mainzone)/1000000","v":0},{"$f":"SUMIFS(raw_fuel_burn!$G:$G,Lists!$Z:$Z,'Portfolio Analytics'!$C1089,raw_fuel_burn!$E:$E,'Portfolio Analytics'!AJ$1086,raw_fuel_burn!$C:$C,mainzone)/1000000","v":0},{"$f":"SUMIFS(raw_fuel_burn!$G:$G,Lists!$Z:$Z,'Portfolio Analytics'!$C1089,raw_fuel_burn!$E:$E,'Portfolio Analytics'!AK$1086,raw_fuel_burn!$C:$C,mainzone)/1000000","v":0},{"$f":"SUMIFS(raw_fuel_burn!$G:$G,Lists!$Z:$Z,'Portfolio Analytics'!$C1089,raw_fuel_burn!$E:$E,'Portfolio Analytics'!AL$1086,raw_fuel_burn!$C:$C,mainzone)/1000000","v":0},{"$f":"SUMIFS(raw_fuel_burn!$G:$G,Lists!$Z:$Z,'Portfolio Analytics'!$C1089,raw_fuel_burn!$E:$E,'Portfolio Analytics'!AM$1086,raw_fuel_burn!$C:$C,mainzone)/1000000","v":0},{"$f":"SUMIFS(raw_fuel_burn!$G:$G,Lists!$Z:$Z,'Portfolio Analytics'!$C1089,raw_fuel_burn!$E:$E,'Portfolio Analytics'!AN$1086,raw_fuel_burn!$C:$C,mainzone)/1000000","v":0}]
[null,null,"CAISO_Peaker2","MMtCO2/Yr",{"$f":"SUMIFS(raw_fuel_burn!$G:$G,Lists!$Z:$Z,'Portfolio Analytics'!$C1090,raw_fuel_burn!$E:$E,'Portfolio Analytics'!E$1086,raw_fuel_burn!$C:$C,mainzone)/1000000","v":0},{"$f":"SUMIFS(raw_fuel_burn!$G:$G,Lists!$Z:$Z,'Portfolio Analytics'!$C1090,raw_fuel_burn!$E:$E,'Portfolio Analytics'!F$1086,raw_fuel_burn!$C:$C,mainzone)/1000000","v":0},{"$f":"SUMIFS(raw_fuel_burn!$G:$G,Lists!$Z:$Z,'Portfolio Analytics'!$C1090,raw_fuel_burn!$E:$E,'Portfolio Analytics'!G$1086,raw_fuel_burn!$C:$C,mainzone)/1000000","v":0},{"$f":"SUMIFS(raw_fuel_burn!$G:$G,Lists!$Z:$Z,'Portfolio Analytics'!$C1090,raw_fuel_burn!$E:$E,'Portfolio Analytics'!H$1086,raw_fuel_burn!$C:$C,mainzone)/1000000","v":0},{"$f":"SUMIFS(raw_fuel_burn!$G:$G,Lists!$Z:$Z,'Portfolio Analytics'!$C1090,raw_fuel_burn!$E:$E,'Portfolio Analytics'!I$1086,raw_fuel_burn!$C:$C,mainzone)/1000000","v":0},{"$f":"SUMIFS(raw_fuel_burn!$G:$G,Lists!$Z:$Z,'Portfolio Analytics'!$C1090,raw_fuel_burn!$E:$E,'Portfolio Analytics'!J$1086,raw_fuel_burn!$C:$C,mainzone)/1000000","v":0},{"$f":"SUMIFS(raw_fuel_burn!$G:$G,Lists!$Z:$Z,'Portfolio Analytics'!$C1090,raw_fuel_burn!$E:$E,'Portfolio Analytics'!K$1086,raw_fuel_burn!$C:$C,mainzone)/1000000","v":0},{"$f":"SUMIFS(raw_fuel_burn!$G:$G,Lists!$Z:$Z,'Portfolio Analytics'!$C1090,raw_fuel_burn!$E:$E,'Portfolio Analytics'!L$1086,raw_fuel_burn!$C:$C,mainzone)/1000000","v":0},{"$f":"SUMIFS(raw_fuel_burn!$G:$G,Lists!$Z:$Z,'Portfolio Analytics'!$C1090,raw_fuel_burn!$E:$E,'Portfolio Analytics'!M$1086,raw_fuel_burn!$C:$C,mainzone)/1000000","v":0},{"$f":"SUMIFS(raw_fuel_burn!$G:$G,Lists!$Z:$Z,'Portfolio Analytics'!$C1090,raw_fuel_burn!$E:$E,'Portfolio Analytics'!N$1086,raw_fuel_burn!$C:$C,mainzone)/1000000","v":0},{"$f":"SUMIFS(raw_fuel_burn!$G:$G,Lists!$Z:$Z,'Portfolio Analytics'!$C1090,raw_fuel_burn!$E:$E,'Portfolio Analytics'!O$1086,raw_fuel_burn!$C:$C,mainzone)/1000000","v":0},{"$f":"SUMIFS(raw_fuel_burn!$G:$G,Lists!$Z:$Z,'Portfolio Analytics'!$C1090,raw_fuel_burn!$E:$E,'Portfolio Analytics'!P$1086,raw_fuel_burn!$C:$C,mainzone)/1000000","v":0},{"$f":"SUMIFS(raw_fuel_burn!$G:$G,Lists!$Z:$Z,'Portfolio Analytics'!$C1090,raw_fuel_burn!$E:$E,'Portfolio Analytics'!Q$1086,raw_fuel_burn!$C:$C,mainzone)/1000000","v":0},{"$f":"SUMIFS(raw_fuel_burn!$G:$G,Lists!$Z:$Z,'Portfolio Analytics'!$C1090,raw_fuel_burn!$E:$E,'Portfolio Analytics'!R$1086,raw_fuel_burn!$C:$C,mainzone)/1000000","v":0},{"$f":"SUMIFS(raw_fuel_burn!$G:$G,Lists!$Z:$Z,'Portfolio Analytics'!$C1090,raw_fuel_burn!$E:$E,'Portfolio Analytics'!S$1086,raw_fuel_burn!$C:$C,mainzone)/1000000","v":0},{"$f":"SUMIFS(raw_fuel_burn!$G:$G,Lists!$Z:$Z,'Portfolio Analytics'!$C1090,raw_fuel_burn!$E:$E,'Portfolio Analytics'!T$1086,raw_fuel_burn!$C:$C,mainzone)/1000000","v":0},{"$f":"SUMIFS(raw_fuel_burn!$G:$G,Lists!$Z:$Z,'Portfolio Analytics'!$C1090,raw_fuel_burn!$E:$E,'Portfolio Analytics'!U$1086,raw_fuel_burn!$C:$C,mainzone)/1000000","v":0},{"$f":"SUMIFS(raw_fuel_burn!$G:$G,Lists!$Z:$Z,'Portfolio Analytics'!$C1090,raw_fuel_burn!$E:$E,'Portfolio Analytics'!V$1086,raw_fuel_burn!$C:$C,mainzone)/1000000","v":0},{"$f":"SUMIFS(raw_fuel_burn!$G:$G,Lists!$Z:$Z,'Portfolio Analytics'!$C1090,raw_fuel_burn!$E:$E,'Portfolio Analytics'!W$1086,raw_fuel_burn!$C:$C,mainzone)/1000000","v":0},{"$f":"SUMIFS(raw_fuel_burn!$G:$G,Lists!$Z:$Z,'Portfolio Analytics'!$C1090,raw_fuel_burn!$E:$E,'Portfolio Analytics'!X$1086,raw_fuel_burn!$C:$C,mainzone)/1000000","v":0},{"$f":"SUMIFS(raw_fuel_burn!$G:$G,Lists!$Z:$Z,'Portfolio Analytics'!$C1090,raw_fuel_burn!$E:$E,'Portfolio Analytics'!Y$1086,raw_fuel_burn!$C:$C,mainzone)/1000000","v":0},{"$f":"SUMIFS(raw_fuel_burn!$G:$G,Lists!$Z:$Z,'Portfolio Analytics'!$C1090,raw_fuel_burn!$E:$E,'Portfolio Analytics'!Z$1086,raw_fuel_burn!$C:$C,mainzone)/1000000","v":0},{"$f":"SUMIFS(raw_fuel_burn!$G:$G,Lists!$Z:$Z,'Portfolio Analytics'!$C1090,raw_fuel_burn!$E:$E,'Portfolio Analytics'!AA$1086,raw_fuel_burn!$C:$C,mainzone)/1000000","v":0},{"$f":"SUMIFS(raw_fuel_burn!$G:$G,Lists!$Z:$Z,'Portfolio Analytics'!$C1090,raw_fuel_burn!$E:$E,'Portfolio Analytics'!AB$1086,raw_fuel_burn!$C:$C,mainzone)/1000000","v":0},{"$f":"SUMIFS(raw_fuel_burn!$G:$G,Lists!$Z:$Z,'Portfolio Analytics'!$C1090,raw_fuel_burn!$E:$E,'Portfolio Analytics'!AC$1086,raw_fuel_burn!$C:$C,mainzone)/1000000","v":0},{"$f":"SUMIFS(raw_fuel_burn!$G:$G,Lists!$Z:$Z,'Portfolio Analytics'!$C1090,raw_fuel_burn!$E:$E,'Portfolio Analytics'!AD$1086,raw_fuel_burn!$C:$C,mainzone)/1000000","v":0},{"$f":"SUMIFS(raw_fuel_burn!$G:$G,Lists!$Z:$Z,'Portfolio Analytics'!$C1090,raw_fuel_burn!$E:$E,'Portfolio Analytics'!AE$1086,raw_fuel_burn!$C:$C,mainzone)/1000000","v":0},{"$f":"SUMIFS(raw_fuel_burn!$G:$G,Lists!$Z:$Z,'Portfolio Analytics'!$C1090,raw_fuel_burn!$E:$E,'Portfolio Analytics'!AF$1086,raw_fuel_burn!$C:$C,mainzone)/1000000","v":0},{"$f":"SUMIFS(raw_fuel_burn!$G:$G,Lists!$Z:$Z,'Portfolio Analytics'!$C1090,raw_fuel_burn!$E:$E,'Portfolio Analytics'!AG$1086,raw_fuel_burn!$C:$C,mainzone)/1000000","v":0},{"$f":"SUMIFS(raw_fuel_burn!$G:$G,Lists!$Z:$Z,'Portfolio Analytics'!$C1090,raw_fuel_burn!$E:$E,'Portfolio Analytics'!AH$1086,raw_fuel_burn!$C:$C,mainzone)/1000000","v":0},{"$f":"SUMIFS(raw_fuel_burn!$G:$G,Lists!$Z:$Z,'Portfolio Analytics'!$C1090,raw_fuel_burn!$E:$E,'Portfolio Analytics'!AI$1086,raw_fuel_burn!$C:$C,mainzone)/1000000","v":0},{"$f":"SUMIFS(raw_fuel_burn!$G:$G,Lists!$Z:$Z,'Portfolio Analytics'!$C1090,raw_fuel_burn!$E:$E,'Portfolio Analytics'!AJ$1086,raw_fuel_burn!$C:$C,mainzone)/1000000","v":0},{"$f":"SUMIFS(raw_fuel_burn!$G:$G,Lists!$Z:$Z,'Portfolio Analytics'!$C1090,raw_fuel_burn!$E:$E,'Portfolio Analytics'!AK$1086,raw_fuel_burn!$C:$C,mainzone)/1000000","v":0},{"$f":"SUMIFS(raw_fuel_burn!$G:$G,Lists!$Z:$Z,'Portfolio Analytics'!$C1090,raw_fuel_burn!$E:$E,'Portfolio Analytics'!AL$1086,raw_fuel_burn!$C:$C,mainzone)/1000000","v":0},{"$f":"SUMIFS(raw_fuel_burn!$G:$G,Lists!$Z:$Z,'Portfolio Analytics'!$C1090,raw_fuel_burn!$E:$E,'Portfolio Analytics'!AM$1086,raw_fuel_burn!$C:$C,mainzone)/1000000","v":0},{"$f":"SUMIFS(raw_fuel_burn!$G:$G,Lists!$Z:$Z,'Portfolio Analytics'!$C1090,raw_fuel_burn!$E:$E,'Portfolio Analytics'!AN$1086,raw_fuel_burn!$C:$C,mainzone)/1000000","v":0}]
[null,null,"CAISO_Advanced_CCGT","MMtCO2/Yr",{"$f":"SUMIFS(raw_fuel_burn!$G:$G,Lists!$Z:$Z,'Portfolio Analytics'!$C1091,raw_fuel_burn!$E:$E,'Portfolio Analytics'!E$1086,raw_fuel_burn!$C:$C,mainzone)/1000000","v":0},{"$f":"SUMIFS(raw_fuel_burn!$G:$G,Lists!$Z:$Z,'Portfolio Analytics'!$C1091,raw_fuel_burn!$E:$E,'Portfolio Analytics'!F$1086,raw_fuel_burn!$C:$C,mainzone)/1000000","v":0},{"$f":"SUMIFS(raw_fuel_burn!$G:$G,Lists!$Z:$Z,'Portfolio Analytics'!$C1091,raw_fuel_burn!$E:$E,'Portfolio Analytics'!G$1086,raw_fuel_burn!$C:$C,mainzone)/1000000","v":0},{"$f":"SUMIFS(raw_fuel_burn!$G:$G,Lists!$Z:$Z,'Portfolio Analytics'!$C1091,raw_fuel_burn!$E:$E,'Portfolio Analytics'!H$1086,raw_fuel_burn!$C:$C,mainzone)/1000000","v":0},{"$f":"SUMIFS(raw_fuel_burn!$G:$G,Lists!$Z:$Z,'Portfolio Analytics'!$C1091,raw_fuel_burn!$E:$E,'Portfolio Analytics'!I$1086,raw_fuel_burn!$C:$C,mainzone)/1000000","v":0},{"$f":"SUMIFS(raw_fuel_burn!$G:$G,Lists!$Z:$Z,'Portfolio Analytics'!$C1091,raw_fuel_burn!$E:$E,'Portfolio Analytics'!J$1086,raw_fuel_burn!$C:$C,mainzone)/1000000","v":0},{"$f":"SUMIFS(raw_fuel_burn!$G:$G,Lists!$Z:$Z,'Portfolio Analytics'!$C1091,raw_fuel_burn!$E:$E,'Portfolio Analytics'!K$1086,raw_fuel_burn!$C:$C,mainzone)/1000000","v":0},{"$f":"SUMIFS(raw_fuel_burn!$G:$G,Lists!$Z:$Z,'Portfolio Analytics'!$C1091,raw_fuel_burn!$E:$E,'Portfolio Analytics'!L$1086,raw_fuel_burn!$C:$C,mainzone)/1000000","v":0},{"$f":"SUMIFS(raw_fuel_burn!$G:$G,Lists!$Z:$Z,'Portfolio Analytics'!$C1091,raw_fuel_burn!$E:$E,'Portfolio Analytics'!M$1086,raw_fuel_burn!$C:$C,mainzone)/1000000","v":0},{"$f":"SUMIFS(raw_fuel_burn!$G:$G,Lists!$Z:$Z,'Portfolio Analytics'!$C1091,raw_fuel_burn!$E:$E,'Portfolio Analytics'!N$1086,raw_fuel_burn!$C:$C,mainzone)/1000000","v":0},{"$f":"SUMIFS(raw_fuel_burn!$G:$G,Lists!$Z:$Z,'Portfolio Analytics'!$C1091,raw_fuel_burn!$E:$E,'Portfolio Analytics'!O$1086,raw_fuel_burn!$C:$C,mainzone)/1000000","v":0},{"$f":"SUMIFS(raw_fuel_burn!$G:$G,Lists!$Z:$Z,'Portfolio Analytics'!$C1091,raw_fuel_burn!$E:$E,'Portfolio Analytics'!P$1086,raw_fuel_burn!$C:$C,mainzone)/1000000","v":0},{"$f":"SUMIFS(raw_fuel_burn!$G:$G,Lists!$Z:$Z,'Portfolio Analytics'!$C1091,raw_fuel_burn!$E:$E,'Portfolio Analytics'!Q$1086,raw_fuel_burn!$C:$C,mainzone)/1000000","v":0},{"$f":"SUMIFS(raw_fuel_burn!$G:$G,Lists!$Z:$Z,'Portfolio Analytics'!$C1091,raw_fuel_burn!$E:$E,'Portfolio Analytics'!R$1086,raw_fuel_burn!$C:$C,mainzone)/1000000","v":0},{"$f":"SUMIFS(raw_fuel_burn!$G:$G,Lists!$Z:$Z,'Portfolio Analytics'!$C1091,raw_fuel_burn!$E:$E,'Portfolio Analytics'!S$1086,raw_fuel_burn!$C:$C,mainzone)/1000000","v":0},{"$f":"SUMIFS(raw_fuel_burn!$G:$G,Lists!$Z:$Z,'Portfolio Analytics'!$C1091,raw_fuel_burn!$E:$E,'Portfolio Analytics'!T$1086,raw_fuel_burn!$C:$C,mainzone)/1000000","v":0},{"$f":"SUMIFS(raw_fuel_burn!$G:$G,Lists!$Z:$Z,'Portfolio Analytics'!$C1091,raw_fuel_burn!$E:$E,'Portfolio Analytics'!U$1086,raw_fuel_burn!$C:$C,mainzone)/1000000","v":0},{"$f":"SUMIFS(raw_fuel_burn!$G:$G,Lists!$Z:$Z,'Portfolio Analytics'!$C1091,raw_fuel_burn!$E:$E,'Portfolio Analytics'!V$1086,raw_fuel_burn!$C:$C,mainzone)/1000000","v":0},{"$f":"SUMIFS(raw_fuel_burn!$G:$G,Lists!$Z:$Z,'Portfolio Analytics'!$C1091,raw_fuel_burn!$E:$E,'Portfolio Analytics'!W$1086,raw_fuel_burn!$C:$C,mainzone)/1000000","v":0},{"$f":"SUMIFS(raw_fuel_burn!$G:$G,Lists!$Z:$Z,'Portfolio Analytics'!$C1091,raw_fuel_burn!$E:$E,'Portfolio Analytics'!X$1086,raw_fuel_burn!$C:$C,mainzone)/1000000","v":0},{"$f":"SUMIFS(raw_fuel_burn!$G:$G,Lists!$Z:$Z,'Portfolio Analytics'!$C1091,raw_fuel_burn!$E:$E,'Portfolio Analytics'!Y$1086,raw_fuel_burn!$C:$C,mainzone)/1000000","v":0},{"$f":"SUMIFS(raw_fuel_burn!$G:$G,Lists!$Z:$Z,'Portfolio Analytics'!$C1091,raw_fuel_burn!$E:$E,'Portfolio Analytics'!Z$1086,raw_fuel_burn!$C:$C,mainzone)/1000000","v":0},{"$f":"SUMIFS(raw_fuel_burn!$G:$G,Lists!$Z:$Z,'Portfolio Analytics'!$C1091,raw_fuel_burn!$E:$E,'Portfolio Analytics'!AA$1086,raw_fuel_burn!$C:$C,mainzone)/1000000","v":0},{"$f":"SUMIFS(raw_fuel_burn!$G:$G,Lists!$Z:$Z,'Portfolio Analytics'!$C1091,raw_fuel_burn!$E:$E,'Portfolio Analytics'!AB$1086,raw_fuel_burn!$C:$C,mainzone)/1000000","v":0},{"$f":"SUMIFS(raw_fuel_burn!$G:$G,Lists!$Z:$Z,'Portfolio Analytics'!$C1091,raw_fuel_burn!$E:$E,'Portfolio Analytics'!AC$1086,raw_fuel_burn!$C:$C,mainzone)/1000000","v":0},{"$f":"SUMIFS(raw_fuel_burn!$G:$G,Lists!$Z:$Z,'Portfolio Analytics'!$C1091,raw_fuel_burn!$E:$E,'Portfolio Analytics'!AD$1086,raw_fuel_burn!$C:$C,mainzone)/1000000","v":0},{"$f":"SUMIFS(raw_fuel_burn!$G:$G,Lists!$Z:$Z,'Portfolio Analytics'!$C1091,raw_fuel_burn!$E:$E,'Portfolio Analytics'!AE$1086,raw_fuel_burn!$C:$C,mainzone)/1000000","v":0},{"$f":"SUMIFS(raw_fuel_burn!$G:$G,Lists!$Z:$Z,'Portfolio Analytics'!$C1091,raw_fuel_burn!$E:$E,'Portfolio Analytics'!AF$1086,raw_fuel_burn!$C:$C,mainzone)/1000000","v":0},{"$f":"SUMIFS(raw_fuel_burn!$G:$G,Lists!$Z:$Z,'Portfolio Analytics'!$C1091,raw_fuel_burn!$E:$E,'Portfolio Analytics'!AG$1086,raw_fuel_burn!$C:$C,mainzone)/1000000","v":0},{"$f":"SUMIFS(raw_fuel_burn!$G:$G,Lists!$Z:$Z,'Portfolio Analytics'!$C1091,raw_fuel_burn!$E:$E,'Portfolio Analytics'!AH$1086,raw_fuel_burn!$C:$C,mainzone)/1000000","v":0},{"$f":"SUMIFS(raw_fuel_burn!$G:$G,Lists!$Z:$Z,'Portfolio Analytics'!$C1091,raw_fuel_burn!$E:$E,'Portfolio Analytics'!AI$1086,raw_fuel_burn!$C:$C,mainzone)/1000000","v":0},{"$f":"SUMIFS(raw_fuel_burn!$G:$G,Lists!$Z:$Z,'Portfolio Analytics'!$C1091,raw_fuel_burn!$E:$E,'Portfolio Analytics'!AJ$1086,raw_fuel_burn!$C:$C,mainzone)/1000000","v":0},{"$f":"SUMIFS(raw_fuel_burn!$G:$G,Lists!$Z:$Z,'Portfolio Analytics'!$C1091,raw_fuel_burn!$E:$E,'Portfolio Analytics'!AK$1086,raw_fuel_burn!$C:$C,mainzone)/1000000","v":0},{"$f":"SUMIFS(raw_fuel_burn!$G:$G,Lists!$Z:$Z,'Portfolio Analytics'!$C1091,raw_fuel_burn!$E:$E,'Portfolio Analytics'!AL$1086,raw_fuel_burn!$C:$C,mainzone)/1000000","v":0},{"$f":"SUMIFS(raw_fuel_burn!$G:$G,Lists!$Z:$Z,'Portfolio Analytics'!$C1091,raw_fuel_burn!$E:$E,'Portfolio Analytics'!AM$1086,raw_fuel_burn!$C:$C,mainzone)/1000000","v":0},{"$f":"SUMIFS(raw_fuel_burn!$G:$G,Lists!$Z:$Z,'Portfolio Analytics'!$C1091,raw_fuel_burn!$E:$E,'Portfolio Analytics'!AN$1086,raw_fuel_burn!$C:$C,mainzone)/1000000","v":0}]
[null,null,"CAISO_Aero_CT","MMtCO2/Yr",{"$f":"SUMIFS(raw_fuel_burn!$G:$G,Lists!$Z:$Z,'Portfolio Analytics'!$C1092,raw_fuel_burn!$E:$E,'Portfolio Analytics'!E$1086,raw_fuel_burn!$C:$C,mainzone)/1000000","v":0},{"$f":"SUMIFS(raw_fuel_burn!$G:$G,Lists!$Z:$Z,'Portfolio Analytics'!$C1092,raw_fuel_burn!$E:$E,'Portfolio Analytics'!F$1086,raw_fuel_burn!$C:$C,mainzone)/1000000","v":0},{"$f":"SUMIFS(raw_fuel_burn!$G:$G,Lists!$Z:$Z,'Portfolio Analytics'!$C1092,raw_fuel_burn!$E:$E,'Portfolio Analytics'!G$1086,raw_fuel_burn!$C:$C,mainzone)/1000000","v":0},{"$f":"SUMIFS(raw_fuel_burn!$G:$G,Lists!$Z:$Z,'Portfolio Analytics'!$C1092,raw_fuel_burn!$E:$E,'Portfolio Analytics'!H$1086,raw_fuel_burn!$C:$C,mainzone)/1000000","v":0},{"$f":"SUMIFS(raw_fuel_burn!$G:$G,Lists!$Z:$Z,'Portfolio Analytics'!$C1092,raw_fuel_burn!$E:$E,'Portfolio Analytics'!I$1086,raw_fuel_burn!$C:$C,mainzone)/1000000","v":0},{"$f":"SUMIFS(raw_fuel_burn!$G:$G,Lists!$Z:$Z,'Portfolio Analytics'!$C1092,raw_fuel_burn!$E:$E,'Portfolio Analytics'!J$1086,raw_fuel_burn!$C:$C,mainzone)/1000000","v":0},{"$f":"SUMIFS(raw_fuel_burn!$G:$G,Lists!$Z:$Z,'Portfolio Analytics'!$C1092,raw_fuel_burn!$E:$E,'Portfolio Analytics'!K$1086,raw_fuel_burn!$C:$C,mainzone)/1000000","v":0},{"$f":"SUMIFS(raw_fuel_burn!$G:$G,Lists!$Z:$Z,'Portfolio Analytics'!$C1092,raw_fuel_burn!$E:$E,'Portfolio Analytics'!L$1086,raw_fuel_burn!$C:$C,mainzone)/1000000","v":0},{"$f":"SUMIFS(raw_fuel_burn!$G:$G,Lists!$Z:$Z,'Portfolio Analytics'!$C1092,raw_fuel_burn!$E:$E,'Portfolio Analytics'!M$1086,raw_fuel_burn!$C:$C,mainzone)/1000000","v":0},{"$f":"SUMIFS(raw_fuel_burn!$G:$G,Lists!$Z:$Z,'Portfolio Analytics'!$C1092,raw_fuel_burn!$E:$E,'Portfolio Analytics'!N$1086,raw_fuel_burn!$C:$C,mainzone)/1000000","v":0},{"$f":"SUMIFS(raw_fuel_burn!$G:$G,Lists!$Z:$Z,'Portfolio Analytics'!$C1092,raw_fuel_burn!$E:$E,'Portfolio Analytics'!O$1086,raw_fuel_burn!$C:$C,mainzone)/1000000","v":0},{"$f":"SUMIFS(raw_fuel_burn!$G:$G,Lists!$Z:$Z,'Portfolio Analytics'!$C1092,raw_fuel_burn!$E:$E,'Portfolio Analytics'!P$1086,raw_fuel_burn!$C:$C,mainzone)/1000000","v":0},{"$f":"SUMIFS(raw_fuel_burn!$G:$G,Lists!$Z:$Z,'Portfolio Analytics'!$C1092,raw_fuel_burn!$E:$E,'Portfolio Analytics'!Q$1086,raw_fuel_burn!$C:$C,mainzone)/1000000","v":0},{"$f":"SUMIFS(raw_fuel_burn!$G:$G,Lists!$Z:$Z,'Portfolio Analytics'!$C1092,raw_fuel_burn!$E:$E,'Portfolio Analytics'!R$1086,raw_fuel_burn!$C:$C,mainzone)/1000000","v":0},{"$f":"SUMIFS(raw_fuel_burn!$G:$G,Lists!$Z:$Z,'Portfolio Analytics'!$C1092,raw_fuel_burn!$E:$E,'Portfolio Analytics'!S$1086,raw_fuel_burn!$C:$C,mainzone)/1000000","v":0},{"$f":"SUMIFS(raw_fuel_burn!$G:$G,Lists!$Z:$Z,'Portfolio Analytics'!$C1092,raw_fuel_burn!$E:$E,'Portfolio Analytics'!T$1086,raw_fuel_burn!$C:$C,mainzone)/1000000","v":0},{"$f":"SUMIFS(raw_fuel_burn!$G:$G,Lists!$Z:$Z,'Portfolio Analytics'!$C1092,raw_fuel_burn!$E:$E,'Portfolio Analytics'!U$1086,raw_fuel_burn!$C:$C,mainzone)/1000000","v":0},{"$f":"SUMIFS(raw_fuel_burn!$G:$G,Lists!$Z:$Z,'Portfolio Analytics'!$C1092,raw_fuel_burn!$E:$E,'Portfolio Analytics'!V$1086,raw_fuel_burn!$C:$C,mainzone)/1000000","v":0},{"$f":"SUMIFS(raw_fuel_burn!$G:$G,Lists!$Z:$Z,'Portfolio Analytics'!$C1092,raw_fuel_burn!$E:$E,'Portfolio Analytics'!W$1086,raw_fuel_burn!$C:$C,mainzone)/1000000","v":0},{"$f":"SUMIFS(raw_fuel_burn!$G:$G,Lists!$Z:$Z,'Portfolio Analytics'!$C1092,raw_fuel_burn!$E:$E,'Portfolio Analytics'!X$1086,raw_fuel_burn!$C:$C,mainzone)/1000000","v":0},{"$f":"SUMIFS(raw_fuel_burn!$G:$G,Lists!$Z:$Z,'Portfolio Analytics'!$C1092,raw_fuel_burn!$E:$E,'Portfolio Analytics'!Y$1086,raw_fuel_burn!$C:$C,mainzone)/1000000","v":0},{"$f":"SUMIFS(raw_fuel_burn!$G:$G,Lists!$Z:$Z,'Portfolio Analytics'!$C1092,raw_fuel_burn!$E:$E,'Portfolio Analytics'!Z$1086,raw_fuel_burn!$C:$C,mainzone)/1000000","v":0},{"$f":"SUMIFS(raw_fuel_burn!$G:$G,Lists!$Z:$Z,'Portfolio Analytics'!$C1092,raw_fuel_burn!$E:$E,'Portfolio Analytics'!AA$1086,raw_fuel_burn!$C:$C,mainzone)/1000000","v":0},{"$f":"SUMIFS(raw_fuel_burn!$G:$G,Lists!$Z:$Z,'Portfolio Analytics'!$C1092,raw_fuel_burn!$E:$E,'Portfolio Analytics'!AB$1086,raw_fuel_burn!$C:$C,mainzone)/1000000","v":0},{"$f":"SUMIFS(raw_fuel_burn!$G:$G,Lists!$Z:$Z,'Portfolio Analytics'!$C1092,raw_fuel_burn!$E:$E,'Portfolio Analytics'!AC$1086,raw_fuel_burn!$C:$C,mainzone)/1000000","v":0},{"$f":"SUMIFS(raw_fuel_burn!$G:$G,Lists!$Z:$Z,'Portfolio Analytics'!$C1092,raw_fuel_burn!$E:$E,'Portfolio Analytics'!AD$1086,raw_fuel_burn!$C:$C,mainzone)/1000000","v":0},{"$f":"SUMIFS(raw_fuel_burn!$G:$G,Lists!$Z:$Z,'Portfolio Analytics'!$C1092,raw_fuel_burn!$E:$E,'Portfolio Analytics'!AE$1086,raw_fuel_burn!$C:$C,mainzone)/1000000","v":0},{"$f":"SUMIFS(raw_fuel_burn!$G:$G,Lists!$Z:$Z,'Portfolio Analytics'!$C1092,raw_fuel_burn!$E:$E,'Portfolio Analytics'!AF$1086,raw_fuel_burn!$C:$C,mainzone)/1000000","v":0},{"$f":"SUMIFS(raw_fuel_burn!$G:$G,Lists!$Z:$Z,'Portfolio Analytics'!$C1092,raw_fuel_burn!$E:$E,'Portfolio Analytics'!AG$1086,raw_fuel_burn!$C:$C,mainzone)/1000000","v":0},{"$f":"SUMIFS(raw_fuel_burn!$G:$G,Lists!$Z:$Z,'Portfolio Analytics'!$C1092,raw_fuel_burn!$E:$E,'Portfolio Analytics'!AH$1086,raw_fuel_burn!$C:$C,mainzone)/1000000","v":0},{"$f":"SUMIFS(raw_fuel_burn!$G:$G,Lists!$Z:$Z,'Portfolio Analytics'!$C1092,raw_fuel_burn!$E:$E,'Portfolio Analytics'!AI$1086,raw_fuel_burn!$C:$C,mainzone)/1000000","v":0},{"$f":"SUMIFS(raw_fuel_burn!$G:$G,Lists!$Z:$Z,'Portfolio Analytics'!$C1092,raw_fuel_burn!$E:$E,'Portfolio Analytics'!AJ$1086,raw_fuel_burn!$C:$C,mainzone)/1000000","v":0},{"$f":"SUMIFS(raw_fuel_burn!$G:$G,Lists!$Z:$Z,'Portfolio Analytics'!$C1092,raw_fuel_burn!$E:$E,'Portfolio Analytics'!AK$1086,raw_fuel_burn!$C:$C,mainzone)/1000000","v":0},{"$f":"SUMIFS(raw_fuel_burn!$G:$G,Lists!$Z:$Z,'Portfolio Analytics'!$C1092,raw_fuel_burn!$E:$E,'Portfolio Analytics'!AL$1086,raw_fuel_burn!$C:$C,mainzone)/1000000","v":0},{"$f":"SUMIFS(raw_fuel_burn!$G:$G,Lists!$Z:$Z,'Portfolio Analytics'!$C1092,raw_fuel_burn!$E:$E,'Portfolio Analytics'!AM$1086,raw_fuel_burn!$C:$C,mainzone)/1000000","v":0},{"$f":"SUMIFS(raw_fuel_burn!$G:$G,Lists!$Z:$Z,'Portfolio Analytics'!$C1092,raw_fuel_burn!$E:$E,'Portfolio Analytics'!AN$1086,raw_fuel_burn!$C:$C,mainzone)/1000000","v":0}]
[null,null,"CAISO_Reciprocating_Engine","MMtCO2/Yr",{"$f":"SUMIFS(raw_fuel_burn!$G:$G,Lists!$Z:$Z,'Portfolio Analytics'!$C1093,raw_fuel_burn!$E:$E,'Portfolio Analytics'!E$1086,raw_fuel_burn!$C:$C,mainzone)/1000000","v":0},{"$f":"SUMIFS(raw_fuel_burn!$G:$G,Lists!$Z:$Z,'Portfolio Analytics'!$C1093,raw_fuel_burn!$E:$E,'Portfolio Analytics'!F$1086,raw_fuel_burn!$C:$C,mainzone)/1000000","v":0},{"$f":"SUMIFS(raw_fuel_burn!$G:$G,Lists!$Z:$Z,'Portfolio Analytics'!$C1093,raw_fuel_burn!$E:$E,'Portfolio Analytics'!G$1086,raw_fuel_burn!$C:$C,mainzone)/1000000","v":0},{"$f":"SUMIFS(raw_fuel_burn!$G:$G,Lists!$Z:$Z,'Portfolio Analytics'!$C1093,raw_fuel_burn!$E:$E,'Portfolio Analytics'!H$1086,raw_fuel_burn!$C:$C,mainzone)/1000000","v":0},{"$f":"SUMIFS(raw_fuel_burn!$G:$G,Lists!$Z:$Z,'Portfolio Analytics'!$C1093,raw_fuel_burn!$E:$E,'Portfolio Analytics'!I$1086,raw_fuel_burn!$C:$C,mainzone)/1000000","v":0},{"$f":"SUMIFS(raw_fuel_burn!$G:$G,Lists!$Z:$Z,'Portfolio Analytics'!$C1093,raw_fuel_burn!$E:$E,'Portfolio Analytics'!J$1086,raw_fuel_burn!$C:$C,mainzone)/1000000","v":3.28740199574203E-2},{"$f":"SUMIFS(raw_fuel_burn!$G:$G,Lists!$Z:$Z,'Portfolio Analytics'!$C1093,raw_fuel_burn!$E:$E,'Portfolio Analytics'!K$1086,raw_fuel_burn!$C:$C,mainzone)/1000000","v":2.3114786469377799E-2},{"$f":"SUMIFS(raw_fuel_burn!$G:$G,Lists!$Z:$Z,'Portfolio Analytics'!$C1093,raw_fuel_burn!$E:$E,'Portfolio Analytics'!L$1086,raw_fuel_burn!$C:$C,mainzone)/1000000","v":2.1915997118130998E-2},{"$f":"SUMIFS(raw_fuel_burn!$G:$G,Lists!$Z:$Z,'Portfolio Analytics'!$C1093,raw_fuel_burn!$E:$E,'Portfolio Analytics'!M$1086,raw_fuel_burn!$C:$C,mainzone)/1000000","v":2.2620156650696898E-2},{"$f":"SUMIFS(raw_fuel_burn!$G:$G,Lists!$Z:$Z,'Portfolio Analytics'!$C1093,raw_fuel_burn!$E:$E,'Portfolio Analytics'!N$1086,raw_fuel_burn!$C:$C,mainzone)/1000000","v":2.0037494369741202E-2},{"$f":"SUMIFS(raw_fuel_burn!$G:$G,Lists!$Z:$Z,'Portfolio Analytics'!$C1093,raw_fuel_burn!$E:$E,'Portfolio Analytics'!O$1086,raw_fuel_burn!$C:$C,mainzone)/1000000","v":0},{"$f":"SUMIFS(raw_fuel_burn!$G:$G,Lists!$Z:$Z,'Portfolio Analytics'!$C1093,raw_fuel_burn!$E:$E,'Portfolio Analytics'!P$1086,raw_fuel_burn!$C:$C,mainzone)/1000000","v":6.3225075458763005E-3},{"$f":"SUMIFS(raw_fuel_burn!$G:$G,Lists!$Z:$Z,'Portfolio Analytics'!$C1093,raw_fuel_burn!$E:$E,'Portfolio Analytics'!Q$1086,raw_fuel_burn!$C:$C,mainzone)/1000000","v":0},{"$f":"SUMIFS(raw_fuel_burn!$G:$G,Lists!$Z:$Z,'Portfolio Analytics'!$C1093,raw_fuel_burn!$E:$E,'Portfolio Analytics'!R$1086,raw_fuel_burn!$C:$C,mainzone)/1000000","v":0},{"$f":"SUMIFS(raw_fuel_burn!$G:$G,Lists!$Z:$Z,'Portfolio Analytics'!$C1093,raw_fuel_burn!$E:$E,'Portfolio Analytics'!S$1086,raw_fuel_burn!$C:$C,mainzone)/1000000","v":0},{"$f":"SUMIFS(raw_fuel_burn!$G:$G,Lists!$Z:$Z,'Portfolio Analytics'!$C1093,raw_fuel_burn!$E:$E,'Portfolio Analytics'!T$1086,raw_fuel_burn!$C:$C,mainzone)/1000000","v":1.20938448932032E-2},{"$f":"SUMIFS(raw_fuel_burn!$G:$G,Lists!$Z:$Z,'Portfolio Analytics'!$C1093,raw_fuel_burn!$E:$E,'Portfolio Analytics'!U$1086,raw_fuel_burn!$C:$C,mainzone)/1000000","v":0},{"$f":"SUMIFS(raw_fuel_burn!$G:$G,Lists!$Z:$Z,'Portfolio Analytics'!$C1093,raw_fuel_burn!$E:$E,'Portfolio Analytics'!V$1086,raw_fuel_burn!$C:$C,mainzone)/1000000","v":0},{"$f":"SUMIFS(raw_fuel_burn!$G:$G,Lists!$Z:$Z,'Portfolio Analytics'!$C1093,raw_fuel_burn!$E:$E,'Portfolio Analytics'!W$1086,raw_fuel_burn!$C:$C,mainzone)/1000000","v":0},{"$f":"SUMIFS(raw_fuel_burn!$G:$G,Lists!$Z:$Z,'Portfolio Analytics'!$C1093,raw_fuel_burn!$E:$E,'Portfolio Analytics'!X$1086,raw_fuel_burn!$C:$C,mainzone)/1000000","v":0},{"$f":"SUMIFS(raw_fuel_burn!$G:$G,Lists!$Z:$Z,'Portfolio Analytics'!$C1093,raw_fuel_burn!$E:$E,'Portfolio Analytics'!Y$1086,raw_fuel_burn!$C:$C,mainzone)/1000000","v":0},{"$f":"SUMIFS(raw_fuel_burn!$G:$G,Lists!$Z:$Z,'Portfolio Analytics'!$C1093,raw_fuel_burn!$E:$E,'Portfolio Analytics'!Z$1086,raw_fuel_burn!$C:$C,mainzone)/1000000","v":0},{"$f":"SUMIFS(raw_fuel_burn!$G:$G,Lists!$Z:$Z,'Portfolio Analytics'!$C1093,raw_fuel_burn!$E:$E,'Portfolio Analytics'!AA$1086,raw_fuel_burn!$C:$C,mainzone)/1000000","v":0},{"$f":"SUMIFS(raw_fuel_burn!$G:$G,Lists!$Z:$Z,'Portfolio Analytics'!$C1093,raw_fuel_burn!$E:$E,'Portfolio Analytics'!AB$1086,raw_fuel_burn!$C:$C,mainzone)/1000000","v":0},{"$f":"SUMIFS(raw_fuel_burn!$G:$G,Lists!$Z:$Z,'Portfolio Analytics'!$C1093,raw_fuel_burn!$E:$E,'Portfolio Analytics'!AC$1086,raw_fuel_burn!$C:$C,mainzone)/1000000","v":0},{"$f":"SUMIFS(raw_fuel_burn!$G:$G,Lists!$Z:$Z,'Portfolio Analytics'!$C1093,raw_fuel_burn!$E:$E,'Portfolio Analytics'!AD$1086,raw_fuel_burn!$C:$C,mainzone)/1000000","v":0},{"$f":"SUMIFS(raw_fuel_burn!$G:$G,Lists!$Z:$Z,'Portfolio Analytics'!$C1093,raw_fuel_burn!$E:$E,'Portfolio Analytics'!AE$1086,raw_fuel_burn!$C:$C,mainzone)/1000000","v":0},{"$f":"SUMIFS(raw_fuel_burn!$G:$G,Lists!$Z:$Z,'Portfolio Analytics'!$C1093,raw_fuel_burn!$E:$E,'Portfolio Analytics'!AF$1086,raw_fuel_burn!$C:$C,mainzone)/1000000","v":0},{"$f":"SUMIFS(raw_fuel_burn!$G:$G,Lists!$Z:$Z,'Portfolio Analytics'!$C1093,raw_fuel_burn!$E:$E,'Portfolio Analytics'!AG$1086,raw_fuel_burn!$C:$C,mainzone)/1000000","v":0},{"$f":"SUMIFS(raw_fuel_burn!$G:$G,Lists!$Z:$Z,'Portfolio Analytics'!$C1093,raw_fuel_burn!$E:$E,'Portfolio Analytics'!AH$1086,raw_fuel_burn!$C:$C,mainzone)/1000000","v":0},{"$f":"SUMIFS(raw_fuel_burn!$G:$G,Lists!$Z:$Z,'Portfolio Analytics'!$C1093,raw_fuel_burn!$E:$E,'Portfolio Analytics'!AI$1086,raw_fuel_burn!$C:$C,mainzone)/1000000","v":2.3677837329100799E-2},{"$f":"SUMIFS(raw_fuel_burn!$G:$G,Lists!$Z:$Z,'Portfolio Analytics'!$C1093,raw_fuel_burn!$E:$E,'Portfolio Analytics'!AJ$1086,raw_fuel_burn!$C:$C,mainzone)/1000000","v":0},{"$f":"SUMIFS(raw_fuel_burn!$G:$G,Lists!$Z:$Z,'Portfolio Analytics'!$C1093,raw_fuel_burn!$E:$E,'Portfolio Analytics'!AK$1086,raw_fuel_burn!$C:$C,mainzone)/1000000","v":0},{"$f":"SUMIFS(raw_fuel_burn!$G:$G,Lists!$Z:$Z,'Portfolio Analytics'!$C1093,raw_fuel_burn!$E:$E,'Portfolio Analytics'!AL$1086,raw_fuel_burn!$C:$C,mainzone)/1000000","v":0},{"$f":"SUMIFS(raw_fuel_burn!$G:$G,Lists!$Z:$Z,'Portfolio Analytics'!$C1093,raw_fuel_burn!$E:$E,'Portfolio Analytics'!AM$1086,raw_fuel_burn!$C:$C,mainzone)/1000000","v":0},{"$f":"SUMIFS(raw_fuel_burn!$G:$G,Lists!$Z:$Z,'Portfolio Analytics'!$C1093,raw_fuel_burn!$E:$E,'Portfolio Analytics'!AN$1086,raw_fuel_burn!$C:$C,mainzone)/1000000","v":0}]
[null,null,"CAISO_Coal","MMtCO2/Yr",{"$f":"SUMIFS(raw_fuel_burn!$G:$G,Lists!$Z:$Z,'Portfolio Analytics'!$C1094,raw_fuel_burn!$E:$E,'Portfolio Analytics'!E$1086,raw_fuel_burn!$C:$C,mainzone)/1000000","v":0},{"$f":"SUMIFS(raw_fuel_burn!$G:$G,Lists!$Z:$Z,'Portfolio Analytics'!$C1094,raw_fuel_burn!$E:$E,'Portfolio Analytics'!F$1086,raw_fuel_burn!$C:$C,mainzone)/1000000","v":0},{"$f":"SUMIFS(raw_fuel_burn!$G:$G,Lists!$Z:$Z,'Portfolio Analytics'!$C1094,raw_fuel_burn!$E:$E,'Portfolio Analytics'!G$1086,raw_fuel_burn!$C:$C,mainzone)/1000000","v":0},{"$f":"SUMIFS(raw_fuel_burn!$G:$G,Lists!$Z:$Z,'Portfolio Analytics'!$C1094,raw_fuel_burn!$E:$E,'Portfolio Analytics'!H$1086,raw_fuel_burn!$C:$C,mainzone)/1000000","v":0},{"$f":"SUMIFS(raw_fuel_burn!$G:$G,Lists!$Z:$Z,'Portfolio Analytics'!$C1094,raw_fuel_burn!$E:$E,'Portfolio Analytics'!I$1086,raw_fuel_burn!$C:$C,mainzone)/1000000","v":0},{"$f":"SUMIFS(raw_fuel_burn!$G:$G,Lists!$Z:$Z,'Portfolio Analytics'!$C1094,raw_fuel_burn!$E:$E,'Portfolio Analytics'!J$1086,raw_fuel_burn!$C:$C,mainzone)/1000000","v":2.0699510909559402},{"$f":"SUMIFS(raw_fuel_burn!$G:$G,Lists!$Z:$Z,'Portfolio Analytics'!$C1094,raw_fuel_burn!$E:$E,'Portfolio Analytics'!K$1086,raw_fuel_burn!$C:$C,mainzone)/1000000","v":1.2824061193368299},{"$f":"SUMIFS(raw_fuel_burn!$G:$G,Lists!$Z:$Z,'Portfolio Analytics'!$C1094,raw_fuel_burn!$E:$E,'Portfolio Analytics'!L$1086,raw_fuel_burn!$C:$C,mainzone)/1000000","v":0.68405687452686492},{"$f":"SUMIFS(raw_fuel_burn!$G:$G,Lists!$Z:$Z,'Portfolio Analytics'!$C1094,raw_fuel_burn!$E:$E,'Portfolio Analytics'!M$1086,raw_fuel_burn!$C:$C,mainzone)/1000000","v":0.66596793950077204},{"$f":"SUMIFS(raw_fuel_burn!$G:$G,Lists!$Z:$Z,'Portfolio Analytics'!$C1094,raw_fuel_burn!$E:$E,'Portfolio Analytics'!N$1086,raw_fuel_burn!$C:$C,mainzone)/1000000","v":0.66596793950077204},{"$f":"SUMIFS(raw_fuel_burn!$G:$G,Lists!$Z:$Z,'Portfolio Analytics'!$C1094,raw_fuel_burn!$E:$E,'Portfolio Analytics'!O$1086,raw_fuel_burn!$C:$C,mainzone)/1000000","v":0},{"$f":"SUMIFS(raw_fuel_burn!$G:$G,Lists!$Z:$Z,'Portfolio Analytics'!$C1094,raw_fuel_burn!$E:$E,'Portfolio Analytics'!P$1086,raw_fuel_burn!$C:$C,mainzone)/1000000","v":0},{"$f":"SUMIFS(raw_fuel_burn!$G:$G,Lists!$Z:$Z,'Portfolio Analytics'!$C1094,raw_fuel_burn!$E:$E,'Portfolio Analytics'!Q$1086,raw_fuel_burn!$C:$C,mainzone)/1000000","v":0},{"$f":"SUMIFS(raw_fuel_burn!$G:$G,Lists!$Z:$Z,'Portfolio Analytics'!$C1094,raw_fuel_burn!$E:$E,'Portfolio Analytics'!R$1086,raw_fuel_burn!$C:$C,mainzone)/1000000","v":0},{"$f":"SUMIFS(raw_fuel_burn!$G:$G,Lists!$Z:$Z,'Portfolio Analytics'!$C1094,raw_fuel_burn!$E:$E,'Portfolio Analytics'!S$1086,raw_fuel_burn!$C:$C,mainzone)/1000000","v":0},{"$f":"SUMIFS(raw_fuel_burn!$G:$G,Lists!$Z:$Z,'Portfolio Analytics'!$C1094,raw_fuel_burn!$E:$E,'Portfolio Analytics'!T$1086,raw_fuel_burn!$C:$C,mainzone)/1000000","v":0},{"$f":"SUMIFS(raw_fuel_burn!$G:$G,Lists!$Z:$Z,'Portfolio Analytics'!$C1094,raw_fuel_burn!$E:$E,'Portfolio Analytics'!U$1086,raw_fuel_burn!$C:$C,mainzone)/1000000","v":0},{"$f":"SUMIFS(raw_fuel_burn!$G:$G,Lists!$Z:$Z,'Portfolio Analytics'!$C1094,raw_fuel_burn!$E:$E,'Portfolio Analytics'!V$1086,raw_fuel_burn!$C:$C,mainzone)/1000000","v":0},{"$f":"SUMIFS(raw_fuel_burn!$G:$G,Lists!$Z:$Z,'Portfolio Analytics'!$C1094,raw_fuel_burn!$E:$E,'Portfolio Analytics'!W$1086,raw_fuel_burn!$C:$C,mainzone)/1000000","v":0},{"$f":"SUMIFS(raw_fuel_burn!$G:$G,Lists!$Z:$Z,'Portfolio Analytics'!$C1094,raw_fuel_burn!$E:$E,'Portfolio Analytics'!X$1086,raw_fuel_burn!$C:$C,mainzone)/1000000","v":0},{"$f":"SUMIFS(raw_fuel_burn!$G:$G,Lists!$Z:$Z,'Portfolio Analytics'!$C1094,raw_fuel_burn!$E:$E,'Portfolio Analytics'!Y$1086,raw_fuel_burn!$C:$C,mainzone)/1000000","v":0},{"$f":"SUMIFS(raw_fuel_burn!$G:$G,Lists!$Z:$Z,'Portfolio Analytics'!$C1094,raw_fuel_burn!$E:$E,'Portfolio Analytics'!Z$1086,raw_fuel_burn!$C:$C,mainzone)/1000000","v":0},{"$f":"SUMIFS(raw_fuel_burn!$G:$G,Lists!$Z:$Z,'Portfolio Analytics'!$C1094,raw_fuel_burn!$E:$E,'Portfolio Analytics'!AA$1086,raw_fuel_burn!$C:$C,mainzone)/1000000","v":0},{"$f":"SUMIFS(raw_fuel_burn!$G:$G,Lists!$Z:$Z,'Portfolio Analytics'!$C1094,raw_fuel_burn!$E:$E,'Portfolio Analytics'!AB$1086,raw_fuel_burn!$C:$C,mainzone)/1000000","v":0},{"$f":"SUMIFS(raw_fuel_burn!$G:$G,Lists!$Z:$Z,'Portfolio Analytics'!$C1094,raw_fuel_burn!$E:$E,'Portfolio Analytics'!AC$1086,raw_fuel_burn!$C:$C,mainzone)/1000000","v":0},{"$f":"SUMIFS(raw_fuel_burn!$G:$G,Lists!$Z:$Z,'Portfolio Analytics'!$C1094,raw_fuel_burn!$E:$E,'Portfolio Analytics'!AD$1086,raw_fuel_burn!$C:$C,mainzone)/1000000","v":0},{"$f":"SUMIFS(raw_fuel_burn!$G:$G,Lists!$Z:$Z,'Portfolio Analytics'!$C1094,raw_fuel_burn!$E:$E,'Portfolio Analytics'!AE$1086,raw_fuel_burn!$C:$C,mainzone)/1000000","v":0},{"$f":"SUMIFS(raw_fuel_burn!$G:$G,Lists!$Z:$Z,'Portfolio Analytics'!$C1094,raw_fuel_burn!$E:$E,'Portfolio Analytics'!AF$1086,raw_fuel_burn!$C:$C,mainzone)/1000000","v":0},{"$f":"SUMIFS(raw_fuel_burn!$G:$G,Lists!$Z:$Z,'Portfolio Analytics'!$C1094,raw_fuel_burn!$E:$E,'Portfolio Analytics'!AG$1086,raw_fuel_burn!$C:$C,mainzone)/1000000","v":0},{"$f":"SUMIFS(raw_fuel_burn!$G:$G,Lists!$Z:$Z,'Portfolio Analytics'!$C1094,raw_fuel_burn!$E:$E,'Portfolio Analytics'!AH$1086,raw_fuel_burn!$C:$C,mainzone)/1000000","v":0},{"$f":"SUMIFS(raw_fuel_burn!$G:$G,Lists!$Z:$Z,'Portfolio Analytics'!$C1094,raw_fuel_burn!$E:$E,'Portfolio Analytics'!AI$1086,raw_fuel_burn!$C:$C,mainzone)/1000000","v":0},{"$f":"SUMIFS(raw_fuel_burn!$G:$G,Lists!$Z:$Z,'Portfolio Analytics'!$C1094,raw_fuel_burn!$E:$E,'Portfolio Analytics'!AJ$1086,raw_fuel_burn!$C:$C,mainzone)/1000000","v":0},{"$f":"SUMIFS(raw_fuel_burn!$G:$G,Lists!$Z:$Z,'Portfolio Analytics'!$C1094,raw_fuel_burn!$E:$E,'Portfolio Analytics'!AK$1086,raw_fuel_burn!$C:$C,mainzone)/1000000","v":0},{"$f":"SUMIFS(raw_fuel_burn!$G:$G,Lists!$Z:$Z,'Portfolio Analytics'!$C1094,raw_fuel_burn!$E:$E,'Portfolio Analytics'!AL$1086,raw_fuel_burn!$C:$C,mainzone)/1000000","v":0},{"$f":"SUMIFS(raw_fuel_burn!$G:$G,Lists!$Z:$Z,'Portfolio Analytics'!$C1094,raw_fuel_burn!$E:$E,'Portfolio Analytics'!AM$1086,raw_fuel_burn!$C:$C,mainzone)/1000000","v":0},{"$f":"SUMIFS(raw_fuel_burn!$G:$G,Lists!$Z:$Z,'Portfolio Analytics'!$C1094,raw_fuel_burn!$E:$E,'Portfolio Analytics'!AN$1086,raw_fuel_burn!$C:$C,mainzone)/1000000","v":0}]
[null,null,"CAISO_ST","MMtCO2/Yr",{"$f":"SUMIFS(raw_fuel_burn!$G:$G,Lists!$Z:$Z,'Portfolio Analytics'!$C1095,raw_fuel_burn!$E:$E,'Portfolio Analytics'!E$1086,raw_fuel_burn!$C:$C,mainzone)/1000000","v":0},{"$f":"SUMIFS(raw_fuel_burn!$G:$G,Lists!$Z:$Z,'Portfolio Analytics'!$C1095,raw_fuel_burn!$E:$E,'Portfolio Analytics'!F$1086,raw_fuel_burn!$C:$C,mainzone)/1000000","v":0},{"$f":"SUMIFS(raw_fuel_burn!$G:$G,Lists!$Z:$Z,'Portfolio Analytics'!$C1095,raw_fuel_burn!$E:$E,'Portfolio Analytics'!G$1086,raw_fuel_burn!$C:$C,mainzone)/1000000","v":0},{"$f":"SUMIFS(raw_fuel_burn!$G:$G,Lists!$Z:$Z,'Portfolio Analytics'!$C1095,raw_fuel_burn!$E:$E,'Portfolio Analytics'!H$1086,raw_fuel_burn!$C:$C,mainzone)/1000000","v":0},{"$f":"SUMIFS(raw_fuel_burn!$G:$G,Lists!$Z:$Z,'Portfolio Analytics'!$C1095,raw_fuel_burn!$E:$E,'Portfolio Analytics'!I$1086,raw_fuel_burn!$C:$C,mainzone)/1000000","v":0},{"$f":"SUMIFS(raw_fuel_burn!$G:$G,Lists!$Z:$Z,'Portfolio Analytics'!$C1095,raw_fuel_burn!$E:$E,'Portfolio Analytics'!J$1086,raw_fuel_burn!$C:$C,mainzone)/1000000","v":0},{"$f":"SUMIFS(raw_fuel_burn!$G:$G,Lists!$Z:$Z,'Portfolio Analytics'!$C1095,raw_fuel_burn!$E:$E,'Portfolio Analytics'!K$1086,raw_fuel_burn!$C:$C,mainzone)/1000000","v":0},{"$f":"SUMIFS(raw_fuel_burn!$G:$G,Lists!$Z:$Z,'Portfolio Analytics'!$C1095,raw_fuel_burn!$E:$E,'Portfolio Analytics'!L$1086,raw_fuel_burn!$C:$C,mainzone)/1000000","v":0},{"$f":"SUMIFS(raw_fuel_burn!$G:$G,Lists!$Z:$Z,'Portfolio Analytics'!$C1095,raw_fuel_burn!$E:$E,'Portfolio Analytics'!M$1086,raw_fuel_burn!$C:$C,mainzone)/1000000","v":0},{"$f":"SUMIFS(raw_fuel_burn!$G:$G,Lists!$Z:$Z,'Portfolio Analytics'!$C1095,raw_fuel_burn!$E:$E,'Portfolio Analytics'!N$1086,raw_fuel_burn!$C:$C,mainzone)/1000000","v":0},{"$f":"SUMIFS(raw_fuel_burn!$G:$G,Lists!$Z:$Z,'Portfolio Analytics'!$C1095,raw_fuel_burn!$E:$E,'Portfolio Analytics'!O$1086,raw_fuel_burn!$C:$C,mainzone)/1000000","v":0},{"$f":"SUMIFS(raw_fuel_burn!$G:$G,Lists!$Z:$Z,'Portfolio Analytics'!$C1095,raw_fuel_burn!$E:$E,'Portfolio Analytics'!P$1086,raw_fuel_burn!$C:$C,mainzone)/1000000","v":0},{"$f":"SUMIFS(raw_fuel_burn!$G:$G,Lists!$Z:$Z,'Portfolio Analytics'!$C1095,raw_fuel_burn!$E:$E,'Portfolio Analytics'!Q$1086,raw_fuel_burn!$C:$C,mainzone)/1000000","v":0},{"$f":"SUMIFS(raw_fuel_burn!$G:$G,Lists!$Z:$Z,'Portfolio Analytics'!$C1095,raw_fuel_burn!$E:$E,'Portfolio Analytics'!R$1086,raw_fuel_burn!$C:$C,mainzone)/1000000","v":0},{"$f":"SUMIFS(raw_fuel_burn!$G:$G,Lists!$Z:$Z,'Portfolio Analytics'!$C1095,raw_fuel_burn!$E:$E,'Portfolio Analytics'!S$1086,raw_fuel_burn!$C:$C,mainzone)/1000000","v":0},{"$f":"SUMIFS(raw_fuel_burn!$G:$G,Lists!$Z:$Z,'Portfolio Analytics'!$C1095,raw_fuel_burn!$E:$E,'Portfolio Analytics'!T$1086,raw_fuel_burn!$C:$C,mainzone)/1000000","v":0},{"$f":"SUMIFS(raw_fuel_burn!$G:$G,Lists!$Z:$Z,'Portfolio Analytics'!$C1095,raw_fuel_burn!$E:$E,'Portfolio Analytics'!U$1086,raw_fuel_burn!$C:$C,mainzone)/1000000","v":0},{"$f":"SUMIFS(raw_fuel_burn!$G:$G,Lists!$Z:$Z,'Portfolio Analytics'!$C1095,raw_fuel_burn!$E:$E,'Portfolio Analytics'!V$1086,raw_fuel_burn!$C:$C,mainzone)/1000000","v":0},{"$f":"SUMIFS(raw_fuel_burn!$G:$G,Lists!$Z:$Z,'Portfolio Analytics'!$C1095,raw_fuel_burn!$E:$E,'Portfolio Analytics'!W$1086,raw_fuel_burn!$C:$C,mainzone)/1000000","v":0},{"$f":"SUMIFS(raw_fuel_burn!$G:$G,Lists!$Z:$Z,'Portfolio Analytics'!$C1095,raw_fuel_burn!$E:$E,'Portfolio Analytics'!X$1086,raw_fuel_burn!$C:$C,mainzone)/1000000","v":0},{"$f":"SUMIFS(raw_fuel_burn!$G:$G,Lists!$Z:$Z,'Portfolio Analytics'!$C1095,raw_fuel_burn!$E:$E,'Portfolio Analytics'!Y$1086,raw_fuel_burn!$C:$C,mainzone)/1000000","v":0},{"$f":"SUMIFS(raw_fuel_burn!$G:$G,Lists!$Z:$Z,'Portfolio Analytics'!$C1095,raw_fuel_burn!$E:$E,'Portfolio Analytics'!Z$1086,raw_fuel_burn!$C:$C,mainzone)/1000000","v":0},{"$f":"SUMIFS(raw_fuel_burn!$G:$G,Lists!$Z:$Z,'Portfolio Analytics'!$C1095,raw_fuel_burn!$E:$E,'Portfolio Analytics'!AA$1086,raw_fuel_burn!$C:$C,mainzone)/1000000","v":0},{"$f":"SUMIFS(raw_fuel_burn!$G:$G,Lists!$Z:$Z,'Portfolio Analytics'!$C1095,raw_fuel_burn!$E:$E,'Portfolio Analytics'!AB$1086,raw_fuel_burn!$C:$C,mainzone)/1000000","v":0},{"$f":"SUMIFS(raw_fuel_burn!$G:$G,Lists!$Z:$Z,'Portfolio Analytics'!$C1095,raw_fuel_burn!$E:$E,'Portfolio Analytics'!AC$1086,raw_fuel_burn!$C:$C,mainzone)/1000000","v":0},{"$f":"SUMIFS(raw_fuel_burn!$G:$G,Lists!$Z:$Z,'Portfolio Analytics'!$C1095,raw_fuel_burn!$E:$E,'Portfolio Analytics'!AD$1086,raw_fuel_burn!$C:$C,mainzone)/1000000","v":0},{"$f":"SUMIFS(raw_fuel_burn!$G:$G,Lists!$Z:$Z,'Portfolio Analytics'!$C1095,raw_fuel_burn!$E:$E,'Portfolio Analytics'!AE$1086,raw_fuel_burn!$C:$C,mainzone)/1000000","v":0},{"$f":"SUMIFS(raw_fuel_burn!$G:$G,Lists!$Z:$Z,'Portfolio Analytics'!$C1095,raw_fuel_burn!$E:$E,'Portfolio Analytics'!AF$1086,raw_fuel_burn!$C:$C,mainzone)/1000000","v":0},{"$f":"SUMIFS(raw_fuel_burn!$G:$G,Lists!$Z:$Z,'Portfolio Analytics'!$C1095,raw_fuel_burn!$E:$E,'Portfolio Analytics'!AG$1086,raw_fuel_burn!$C:$C,mainzone)/1000000","v":0},{"$f":"SUMIFS(raw_fuel_burn!$G:$G,Lists!$Z:$Z,'Portfolio Analytics'!$C1095,raw_fuel_burn!$E:$E,'Portfolio Analytics'!AH$1086,raw_fuel_burn!$C:$C,mainzone)/1000000","v":0},{"$f":"SUMIFS(raw_fuel_burn!$G:$G,Lists!$Z:$Z,'Portfolio Analytics'!$C1095,raw_fuel_burn!$E:$E,'Portfolio Analytics'!AI$1086,raw_fuel_burn!$C:$C,mainzone)/1000000","v":0},{"$f":"SUMIFS(raw_fuel_burn!$G:$G,Lists!$Z:$Z,'Portfolio Analytics'!$C1095,raw_fuel_burn!$E:$E,'Portfolio Analytics'!AJ$1086,raw_fuel_burn!$C:$C,mainzone)/1000000","v":0},{"$f":"SUMIFS(raw_fuel_burn!$G:$G,Lists!$Z:$Z,'Portfolio Analytics'!$C1095,raw_fuel_burn!$E:$E,'Portfolio Analytics'!AK$1086,raw_fuel_burn!$C:$C,mainzone)/1000000","v":0},{"$f":"SUMIFS(raw_fuel_burn!$G:$G,Lists!$Z:$Z,'Portfolio Analytics'!$C1095,raw_fuel_burn!$E:$E,'Portfolio Analytics'!AL$1086,raw_fuel_burn!$C:$C,mainzone)/1000000","v":0},{"$f":"SUMIFS(raw_fuel_burn!$G:$G,Lists!$Z:$Z,'Portfolio Analytics'!$C1095,raw_fuel_burn!$E:$E,'Portfolio Analytics'!AM$1086,raw_fuel_burn!$C:$C,mainzone)/1000000","v":0},{"$f":"SUMIFS(raw_fuel_burn!$G:$G,Lists!$Z:$Z,'Portfolio Analytics'!$C1095,raw_fuel_burn!$E:$E,'Portfolio Analytics'!AN$1086,raw_fuel_burn!$C:$C,mainzone)/1000000","v":0}]
[null,null,"CAISO_CHP","MMtCO2/Yr",{"$f":"SUMIFS(raw_fuel_burn!$G:$G,Lists!$Z:$Z,'Portfolio Analytics'!$C1096,raw_fuel_burn!$E:$E,'Portfolio Analytics'!E$1086,raw_fuel_burn!$C:$C,mainzone)/1000000","v":0},{"$f":"SUMIFS(raw_fuel_burn!$G:$G,Lists!$Z:$Z,'Portfolio Analytics'!$C1096,raw_fuel_burn!$E:$E,'Portfolio Analytics'!F$1086,raw_fuel_burn!$C:$C,mainzone)/1000000","v":0},{"$f":"SUMIFS(raw_fuel_burn!$G:$G,Lists!$Z:$Z,'Portfolio Analytics'!$C1096,raw_fuel_burn!$E:$E,'Portfolio Analytics'!G$1086,raw_fuel_burn!$C:$C,mainzone)/1000000","v":0},{"$f":"SUMIFS(raw_fuel_burn!$G:$G,Lists!$Z:$Z,'Portfolio Analytics'!$C1096,raw_fuel_burn!$E:$E,'Portfolio Analytics'!H$1086,raw_fuel_burn!$C:$C,mainzone)/1000000","v":0},{"$f":"SUMIFS(raw_fuel_burn!$G:$G,Lists!$Z:$Z,'Portfolio Analytics'!$C1096,raw_fuel_burn!$E:$E,'Portfolio Analytics'!I$1086,raw_fuel_burn!$C:$C,mainzone)/1000000","v":0},{"$f":"SUMIFS(raw_fuel_burn!$G:$G,Lists!$Z:$Z,'Portfolio Analytics'!$C1096,raw_fuel_burn!$E:$E,'Portfolio Analytics'!J$1086,raw_fuel_burn!$C:$C,mainzone)/1000000","v":4.3863526663700902},{"$f":"SUMIFS(raw_fuel_burn!$G:$G,Lists!$Z:$Z,'Portfolio Analytics'!$C1096,raw_fuel_burn!$E:$E,'Portfolio Analytics'!K$1086,raw_fuel_burn!$C:$C,mainzone)/1000000","v":4.3863526663700902},{"$f":"SUMIFS(raw_fuel_burn!$G:$G,Lists!$Z:$Z,'Portfolio Analytics'!$C1096,raw_fuel_burn!$E:$E,'Portfolio Analytics'!L$1086,raw_fuel_burn!$C:$C,mainzone)/1000000","v":4.3863526663700902},{"$f":"SUMIFS(raw_fuel_burn!$G:$G,Lists!$Z:$Z,'Portfolio Analytics'!$C1096,raw_fuel_burn!$E:$E,'Portfolio Analytics'!M$1086,raw_fuel_burn!$C:$C,mainzone)/1000000","v":4.3863526663700902},{"$f":"SUMIFS(raw_fuel_burn!$G:$G,Lists!$Z:$Z,'Portfolio Analytics'!$C1096,raw_fuel_burn!$E:$E,'Portfolio Analytics'!N$1086,raw_fuel_burn!$C:$C,mainzone)/1000000","v":4.3863526663700902},{"$f":"SUMIFS(raw_fuel_burn!$G:$G,Lists!$Z:$Z,'Portfolio Analytics'!$C1096,raw_fuel_burn!$E:$E,'Portfolio Analytics'!O$1086,raw_fuel_burn!$C:$C,mainzone)/1000000","v":0},{"$f":"SUMIFS(raw_fuel_burn!$G:$G,Lists!$Z:$Z,'Portfolio Analytics'!$C1096,raw_fuel_burn!$E:$E,'Portfolio Analytics'!P$1086,raw_fuel_burn!$C:$C,mainzone)/1000000","v":4.3863526663700902},{"$f":"SUMIFS(raw_fuel_burn!$G:$G,Lists!$Z:$Z,'Portfolio Analytics'!$C1096,raw_fuel_burn!$E:$E,'Portfolio Analytics'!Q$1086,raw_fuel_burn!$C:$C,mainzone)/1000000","v":0},{"$f":"SUMIFS(raw_fuel_burn!$G:$G,Lists!$Z:$Z,'Portfolio Analytics'!$C1096,raw_fuel_burn!$E:$E,'Portfolio Analytics'!R$1086,raw_fuel_burn!$C:$C,mainzone)/1000000","v":0},{"$f":"SUMIFS(raw_fuel_burn!$G:$G,Lists!$Z:$Z,'Portfolio Analytics'!$C1096,raw_fuel_burn!$E:$E,'Portfolio Analytics'!S$1086,raw_fuel_burn!$C:$C,mainzone)/1000000","v":0},{"$f":"SUMIFS(raw_fuel_burn!$G:$G,Lists!$Z:$Z,'Portfolio Analytics'!$C1096,raw_fuel_burn!$E:$E,'Portfolio Analytics'!T$1086,raw_fuel_burn!$C:$C,mainzone)/1000000","v":4.3863526663700902},{"$f":"SUMIFS(raw_fuel_burn!$G:$G,Lists!$Z:$Z,'Portfolio Analytics'!$C1096,raw_fuel_burn!$E:$E,'Portfolio Analytics'!U$1086,raw_fuel_burn!$C:$C,mainzone)/1000000","v":0},{"$f":"SUMIFS(raw_fuel_burn!$G:$G,Lists!$Z:$Z,'Portfolio Analytics'!$C1096,raw_fuel_burn!$E:$E,'Portfolio Analytics'!V$1086,raw_fuel_burn!$C:$C,mainzone)/1000000","v":0},{"$f":"SUMIFS(raw_fuel_burn!$G:$G,Lists!$Z:$Z,'Portfolio Analytics'!$C1096,raw_fuel_burn!$E:$E,'Portfolio Analytics'!W$1086,raw_fuel_burn!$C:$C,mainzone)/1000000","v":0},{"$f":"SUMIFS(raw_fuel_burn!$G:$G,Lists!$Z:$Z,'Portfolio Analytics'!$C1096,raw_fuel_burn!$E:$E,'Portfolio Analytics'!X$1086,raw_fuel_burn!$C:$C,mainzone)/1000000","v":0},{"$f":"SUMIFS(raw_fuel_burn!$G:$G,Lists!$Z:$Z,'Portfolio Analytics'!$C1096,raw_fuel_burn!$E:$E,'Portfolio Analytics'!Y$1086,raw_fuel_burn!$C:$C,mainzone)/1000000","v":0},{"$f":"SUMIFS(raw_fuel_burn!$G:$G,Lists!$Z:$Z,'Portfolio Analytics'!$C1096,raw_fuel_burn!$E:$E,'Portfolio Analytics'!Z$1086,raw_fuel_burn!$C:$C,mainzone)/1000000","v":0},{"$f":"SUMIFS(raw_fuel_burn!$G:$G,Lists!$Z:$Z,'Portfolio Analytics'!$C1096,raw_fuel_burn!$E:$E,'Portfolio Analytics'!AA$1086,raw_fuel_burn!$C:$C,mainzone)/1000000","v":0},{"$f":"SUMIFS(raw_fuel_burn!$G:$G,Lists!$Z:$Z,'Portfolio Analytics'!$C1096,raw_fuel_burn!$E:$E,'Portfolio Analytics'!AB$1086,raw_fuel_burn!$C:$C,mainzone)/1000000","v":0},{"$f":"SUMIFS(raw_fuel_burn!$G:$G,Lists!$Z:$Z,'Portfolio Analytics'!$C1096,raw_fuel_burn!$E:$E,'Portfolio Analytics'!AC$1086,raw_fuel_burn!$C:$C,mainzone)/1000000","v":0},{"$f":"SUMIFS(raw_fuel_burn!$G:$G,Lists!$Z:$Z,'Portfolio Analytics'!$C1096,raw_fuel_burn!$E:$E,'Portfolio Analytics'!AD$1086,raw_fuel_burn!$C:$C,mainzone)/1000000","v":0},{"$f":"SUMIFS(raw_fuel_burn!$G:$G,Lists!$Z:$Z,'Portfolio Analytics'!$C1096,raw_fuel_burn!$E:$E,'Portfolio Analytics'!AE$1086,raw_fuel_burn!$C:$C,mainzone)/1000000","v":0},{"$f":"SUMIFS(raw_fuel_burn!$G:$G,Lists!$Z:$Z,'Portfolio Analytics'!$C1096,raw_fuel_burn!$E:$E,'Portfolio Analytics'!AF$1086,raw_fuel_burn!$C:$C,mainzone)/1000000","v":0},{"$f":"SUMIFS(raw_fuel_burn!$G:$G,Lists!$Z:$Z,'Portfolio Analytics'!$C1096,raw_fuel_burn!$E:$E,'Portfolio Analytics'!AG$1086,raw_fuel_burn!$C:$C,mainzone)/1000000","v":0},{"$f":"SUMIFS(raw_fuel_burn!$G:$G,Lists!$Z:$Z,'Portfolio Analytics'!$C1096,raw_fuel_burn!$E:$E,'Portfolio Analytics'!AH$1086,raw_fuel_burn!$C:$C,mainzone)/1000000","v":0},{"$f":"SUMIFS(raw_fuel_burn!$G:$G,Lists!$Z:$Z,'Portfolio Analytics'!$C1096,raw_fuel_burn!$E:$E,'Portfolio Analytics'!AI$1086,raw_fuel_burn!$C:$C,mainzone)/1000000","v":0},{"$f":"SUMIFS(raw_fuel_burn!$G:$G,Lists!$Z:$Z,'Portfolio Analytics'!$C1096,raw_fuel_burn!$E:$E,'Portfolio Analytics'!AJ$1086,raw_fuel_burn!$C:$C,mainzone)/1000000","v":0},{"$f":"SUMIFS(raw_fuel_burn!$G:$G,Lists!$Z:$Z,'Portfolio Analytics'!$C1096,raw_fuel_burn!$E:$E,'Portfolio Analytics'!AK$1086,raw_fuel_burn!$C:$C,mainzone)/1000000","v":0},{"$f":"SUMIFS(raw_fuel_burn!$G:$G,Lists!$Z:$Z,'Portfolio Analytics'!$C1096,raw_fuel_burn!$E:$E,'Portfolio Analytics'!AL$1086,raw_fuel_burn!$C:$C,mainzone)/1000000","v":0},{"$f":"SUMIFS(raw_fuel_burn!$G:$G,Lists!$Z:$Z,'Portfolio Analytics'!$C1096,raw_fuel_burn!$E:$E,'Portfolio Analytics'!AM$1086,raw_fuel_burn!$C:$C,mainzone)/1000000","v":0},{"$f":"SUMIFS(raw_fuel_burn!$G:$G,Lists!$Z:$Z,'Portfolio Analytics'!$C1096,raw_fuel_burn!$E:$E,'Portfolio Analytics'!AN$1086,raw_fuel_burn!$C:$C,mainzone)/1000000","v":0}]
[null,null,"CAISO Generation Emissions","MMtCO2/Yr",{"$f":"SUM(E1087:E1096)","v":0},0,0,0,0,28.831429243193384,28.14249509271102,25.920319339363811,25.322093912680739,26.154525440500091,0,28.311584559287425,0,0,0,23.116798661959567,0,0,0,0,0,0,0,0,0,0,0,0,0,0,11.403936602214705,0,0,0,0,0]
[]
[null,null,"Fuel Consumption (total, incl. starts)"]
[null,null,"CAISO_CCGT1","TBtu/yr",{"$f":"SUMIFS(raw_fuel_burn!$F:$F,Lists!$Z:$Z,'Portfolio Analytics'!$C1100,raw_fuel_burn!$E:$E,'Portfolio Analytics'!E$1086,raw_fuel_burn!$C:$C,mainzone)/1000000","v":0},{"$f":"SUMIFS(raw_fuel_burn!$F:$F,Lists!$Z:$Z,'Portfolio Analytics'!$C1100,raw_fuel_burn!$E:$E,'Portfolio Analytics'!F$1086,raw_fuel_burn!$C:$C,mainzone)/1000000","v":0},{"$f":"SUMIFS(raw_fuel_burn!$F:$F,Lists!$Z:$Z,'Portfolio Analytics'!$C1100,raw_fuel_burn!$E:$E,'Portfolio Analytics'!G$1086,raw_fuel_burn!$C:$C,mainzone)/1000000","v":0},{"$f":"SUMIFS(raw_fuel_burn!$F:$F,Lists!$Z:$Z,'Portfolio Analytics'!$C1100,raw_fuel_burn!$E:$E,'Portfolio Analytics'!H$1086,raw_fuel_burn!$C:$C,mainzone)/1000000","v":0},{"$f":"SUMIFS(raw_fuel_burn!$F:$F,Lists!$Z:$Z,'Portfolio Analytics'!$C1100,raw_fuel_burn!$E:$E,'Portfolio Analytics'!I$1086,raw_fuel_burn!$C:$C,mainzone)/1000000","v":0},{"$f":"SUMIFS(raw_fuel_burn!$F:$F,Lists!$Z:$Z,'Portfolio Analytics'!$C1100,raw_fuel_burn!$E:$E,'Portfolio Analytics'!J$1086,raw_fuel_burn!$C:$C,mainzone)/1000000","v":410.30196916263003},{"$f":"SUMIFS(raw_fuel_burn!$F:$F,Lists!$Z:$Z,'Portfolio Analytics'!$C1100,raw_fuel_burn!$E:$E,'Portfolio Analytics'!K$1086,raw_fuel_burn!$C:$C,mainzone)/1000000","v":418.21729150395498},{"$f":"SUMIFS(raw_fuel_burn!$F:$F,Lists!$Z:$Z,'Portfolio Analytics'!$C1100,raw_fuel_burn!$E:$E,'Portfolio Analytics'!L$1086,raw_fuel_burn!$C:$C,mainzone)/1000000","v":386.80242931964301},{"$f":"SUMIFS(raw_fuel_burn!$F:$F,Lists!$Z:$Z,'Portfolio Analytics'!$C1100,raw_fuel_burn!$E:$E,'Portfolio Analytics'!M$1086,raw_fuel_burn!$C:$C,mainzone)/1000000","v":374.625641364231},{"$f":"SUMIFS(raw_fuel_burn!$F:$F,Lists!$Z:$Z,'Portfolio Analytics'!$C1100,raw_fuel_burn!$E:$E,'Portfolio Analytics'!N$1086,raw_fuel_burn!$C:$C,mainzone)/1000000","v":391.74993705393797},{"$f":"SUMIFS(raw_fuel_burn!$F:$F,Lists!$Z:$Z,'Portfolio Analytics'!$C1100,raw_fuel_burn!$E:$E,'Portfolio Analytics'!O$1086,raw_fuel_burn!$C:$C,mainzone)/1000000","v":0},{"$f":"SUMIFS(raw_fuel_burn!$F:$F,Lists!$Z:$Z,'Portfolio Analytics'!$C1100,raw_fuel_burn!$E:$E,'Portfolio Analytics'!P$1086,raw_fuel_burn!$C:$C,mainzone)/1000000","v":450.41085872385798},{"$f":"SUMIFS(raw_fuel_burn!$F:$F,Lists!$Z:$Z,'Portfolio Analytics'!$C1100,raw_fuel_burn!$E:$E,'Portfolio Analytics'!Q$1086,raw_fuel_burn!$C:$C,mainzone)/1000000","v":0},{"$f":"SUMIFS(raw_fuel_burn!$F:$F,Lists!$Z:$Z,'Portfolio Analytics'!$C1100,raw_fuel_burn!$E:$E,'Portfolio Analytics'!R$1086,raw_fuel_burn!$C:$C,mainzone)/1000000","v":0},{"$f":"SUMIFS(raw_fuel_burn!$F:$F,Lists!$Z:$Z,'Portfolio Analytics'!$C1100,raw_fuel_burn!$E:$E,'Portfolio Analytics'!S$1086,raw_fuel_burn!$C:$C,mainzone)/1000000","v":0},{"$f":"SUMIFS(raw_fuel_burn!$F:$F,Lists!$Z:$Z,'Portfolio Analytics'!$C1100,raw_fuel_burn!$E:$E,'Portfolio Analytics'!T$1086,raw_fuel_burn!$C:$C,mainzone)/1000000","v":352.39186114410199},{"$f":"SUMIFS(raw_fuel_burn!$F:$F,Lists!$Z:$Z,'Portfolio Analytics'!$C1100,raw_fuel_burn!$E:$E,'Portfolio Analytics'!U$1086,raw_fuel_burn!$C:$C,mainzone)/1000000","v":0},{"$f":"SUMIFS(raw_fuel_burn!$F:$F,Lists!$Z:$Z,'Portfolio Analytics'!$C1100,raw_fuel_burn!$E:$E,'Portfolio Analytics'!V$1086,raw_fuel_burn!$C:$C,mainzone)/1000000","v":0},{"$f":"SUMIFS(raw_fuel_burn!$F:$F,Lists!$Z:$Z,'Portfolio Analytics'!$C1100,raw_fuel_burn!$E:$E,'Portfolio Analytics'!W$1086,raw_fuel_burn!$C:$C,mainzone)/1000000","v":0},{"$f":"SUMIFS(raw_fuel_burn!$F:$F,Lists!$Z:$Z,'Portfolio Analytics'!$C1100,raw_fuel_burn!$E:$E,'Portfolio Analytics'!X$1086,raw_fuel_burn!$C:$C,mainzone)/1000000","v":0},{"$f":"SUMIFS(raw_fuel_burn!$F:$F,Lists!$Z:$Z,'Portfolio Analytics'!$C1100,raw_fuel_burn!$E:$E,'Portfolio Analytics'!Y$1086,raw_fuel_burn!$C:$C,mainzone)/1000000","v":0},{"$f":"SUMIFS(raw_fuel_burn!$F:$F,Lists!$Z:$Z,'Portfolio Analytics'!$C1100,raw_fuel_burn!$E:$E,'Portfolio Analytics'!Z$1086,raw_fuel_burn!$C:$C,mainzone)/1000000","v":0},{"$f":"SUMIFS(raw_fuel_burn!$F:$F,Lists!$Z:$Z,'Portfolio Analytics'!$C1100,raw_fuel_burn!$E:$E,'Portfolio Analytics'!AA$1086,raw_fuel_burn!$C:$C,mainzone)/1000000","v":0},{"$f":"SUMIFS(raw_fuel_burn!$F:$F,Lists!$Z:$Z,'Portfolio Analytics'!$C1100,raw_fuel_burn!$E:$E,'Portfolio Analytics'!AB$1086,raw_fuel_burn!$C:$C,mainzone)/1000000","v":0},{"$f":"SUMIFS(raw_fuel_burn!$F:$F,Lists!$Z:$Z,'Portfolio Analytics'!$C1100,raw_fuel_burn!$E:$E,'Portfolio Analytics'!AC$1086,raw_fuel_burn!$C:$C,mainzone)/1000000","v":0},{"$f":"SUMIFS(raw_fuel_burn!$F:$F,Lists!$Z:$Z,'Portfolio Analytics'!$C1100,raw_fuel_burn!$E:$E,'Portfolio Analytics'!AD$1086,raw_fuel_burn!$C:$C,mainzone)/1000000","v":0},{"$f":"SUMIFS(raw_fuel_burn!$F:$F,Lists!$Z:$Z,'Portfolio Analytics'!$C1100,raw_fuel_burn!$E:$E,'Portfolio Analytics'!AE$1086,raw_fuel_burn!$C:$C,mainzone)/1000000","v":0},{"$f":"SUMIFS(raw_fuel_burn!$F:$F,Lists!$Z:$Z,'Portfolio Analytics'!$C1100,raw_fuel_burn!$E:$E,'Portfolio Analytics'!AF$1086,raw_fuel_burn!$C:$C,mainzone)/1000000","v":0},{"$f":"SUMIFS(raw_fuel_burn!$F:$F,Lists!$Z:$Z,'Portfolio Analytics'!$C1100,raw_fuel_burn!$E:$E,'Portfolio Analytics'!AG$1086,raw_fuel_burn!$C:$C,mainzone)/1000000","v":0},{"$f":"SUMIFS(raw_fuel_burn!$F:$F,Lists!$Z:$Z,'Portfolio Analytics'!$C1100,raw_fuel_burn!$E:$E,'Portfolio Analytics'!AH$1086,raw_fuel_burn!$C:$C,mainzone)/1000000","v":0},{"$f":"SUMIFS(raw_fuel_burn!$F:$F,Lists!$Z:$Z,'Portfolio Analytics'!$C1100,raw_fuel_burn!$E:$E,'Portfolio Analytics'!AI$1086,raw_fuel_burn!$C:$C,mainzone)/1000000","v":210.18279632269599},{"$f":"SUMIFS(raw_fuel_burn!$F:$F,Lists!$Z:$Z,'Portfolio Analytics'!$C1100,raw_fuel_burn!$E:$E,'Portfolio Analytics'!AJ$1086,raw_fuel_burn!$C:$C,mainzone)/1000000","v":0},{"$f":"SUMIFS(raw_fuel_burn!$F:$F,Lists!$Z:$Z,'Portfolio Analytics'!$C1100,raw_fuel_burn!$E:$E,'Portfolio Analytics'!AK$1086,raw_fuel_burn!$C:$C,mainzone)/1000000","v":0},{"$f":"SUMIFS(raw_fuel_burn!$F:$F,Lists!$Z:$Z,'Portfolio Analytics'!$C1100,raw_fuel_burn!$E:$E,'Portfolio Analytics'!AL$1086,raw_fuel_burn!$C:$C,mainzone)/1000000","v":0},{"$f":"SUMIFS(raw_fuel_burn!$F:$F,Lists!$Z:$Z,'Portfolio Analytics'!$C1100,raw_fuel_burn!$E:$E,'Portfolio Analytics'!AM$1086,raw_fuel_burn!$C:$C,mainzone)/1000000","v":0},{"$f":"SUMIFS(raw_fuel_burn!$F:$F,Lists!$Z:$Z,'Portfolio Analytics'!$C1100,raw_fuel_burn!$E:$E,'Portfolio Analytics'!AN$1086,raw_fuel_burn!$C:$C,mainzone)/1000000","v":0}]
[null,null,"CAISO_CCGT2","TBtu/yr",{"$f":"SUMIFS(raw_fuel_burn!$F:$F,Lists!$Z:$Z,'Portfolio Analytics'!$C1101,raw_fuel_burn!$E:$E,'Portfolio Analytics'!E$1086,raw_fuel_burn!$C:$C,mainzone)/1000000","v":0},{"$f":"SUMIFS(raw_fuel_burn!$F:$F,Lists!$Z:$Z,'Portfolio Analytics'!$C1101,raw_fuel_burn!$E:$E,'Portfolio Analytics'!F$1086,raw_fuel_burn!$C:$C,mainzone)/1000000","v":0},{"$f":"SUMIFS(raw_fuel_burn!$F:$F,Lists!$Z:$Z,'Portfolio Analytics'!$C1101,raw_fuel_burn!$E:$E,'Portfolio Analytics'!G$1086,raw_fuel_burn!$C:$C,mainzone)/1000000","v":0},{"$f":"SUMIFS(raw_fuel_burn!$F:$F,Lists!$Z:$Z,'Portfolio Analytics'!$C1101,raw_fuel_burn!$E:$E,'Portfolio Analytics'!H$1086,raw_fuel_burn!$C:$C,mainzone)/1000000","v":0},{"$f":"SUMIFS(raw_fuel_burn!$F:$F,Lists!$Z:$Z,'Portfolio Analytics'!$C1101,raw_fuel_burn!$E:$E,'Portfolio Analytics'!I$1086,raw_fuel_burn!$C:$C,mainzone)/1000000","v":0},{"$f":"SUMIFS(raw_fuel_burn!$F:$F,Lists!$Z:$Z,'Portfolio Analytics'!$C1101,raw_fuel_burn!$E:$E,'Portfolio Analytics'!J$1086,raw_fuel_burn!$C:$C,mainzone)/1000000","v":0.96480003464852993},{"$f":"SUMIFS(raw_fuel_burn!$F:$F,Lists!$Z:$Z,'Portfolio Analytics'!$C1101,raw_fuel_burn!$E:$E,'Portfolio Analytics'!K$1086,raw_fuel_burn!$C:$C,mainzone)/1000000","v":0},{"$f":"SUMIFS(raw_fuel_burn!$F:$F,Lists!$Z:$Z,'Portfolio Analytics'!$C1101,raw_fuel_burn!$E:$E,'Portfolio Analytics'!L$1086,raw_fuel_burn!$C:$C,mainzone)/1000000","v":0},{"$f":"SUMIFS(raw_fuel_burn!$F:$F,Lists!$Z:$Z,'Portfolio Analytics'!$C1101,raw_fuel_burn!$E:$E,'Portfolio Analytics'!M$1086,raw_fuel_burn!$C:$C,mainzone)/1000000","v":0},{"$f":"SUMIFS(raw_fuel_burn!$F:$F,Lists!$Z:$Z,'Portfolio Analytics'!$C1101,raw_fuel_burn!$E:$E,'Portfolio Analytics'!N$1086,raw_fuel_burn!$C:$C,mainzone)/1000000","v":0},{"$f":"SUMIFS(raw_fuel_burn!$F:$F,Lists!$Z:$Z,'Portfolio Analytics'!$C1101,raw_fuel_burn!$E:$E,'Portfolio Analytics'!O$1086,raw_fuel_burn!$C:$C,mainzone)/1000000","v":0},{"$f":"SUMIFS(raw_fuel_burn!$F:$F,Lists!$Z:$Z,'Portfolio Analytics'!$C1101,raw_fuel_burn!$E:$E,'Portfolio Analytics'!P$1086,raw_fuel_burn!$C:$C,mainzone)/1000000","v":0},{"$f":"SUMIFS(raw_fuel_burn!$F:$F,Lists!$Z:$Z,'Portfolio Analytics'!$C1101,raw_fuel_burn!$E:$E,'Portfolio Analytics'!Q$1086,raw_fuel_burn!$C:$C,mainzone)/1000000","v":0},{"$f":"SUMIFS(raw_fuel_burn!$F:$F,Lists!$Z:$Z,'Portfolio Analytics'!$C1101,raw_fuel_burn!$E:$E,'Portfolio Analytics'!R$1086,raw_fuel_burn!$C:$C,mainzone)/1000000","v":0},{"$f":"SUMIFS(raw_fuel_burn!$F:$F,Lists!$Z:$Z,'Portfolio Analytics'!$C1101,raw_fuel_burn!$E:$E,'Portfolio Analytics'!S$1086,raw_fuel_burn!$C:$C,mainzone)/1000000","v":0},{"$f":"SUMIFS(raw_fuel_burn!$F:$F,Lists!$Z:$Z,'Portfolio Analytics'!$C1101,raw_fuel_burn!$E:$E,'Portfolio Analytics'!T$1086,raw_fuel_burn!$C:$C,mainzone)/1000000","v":0},{"$f":"SUMIFS(raw_fuel_burn!$F:$F,Lists!$Z:$Z,'Portfolio Analytics'!$C1101,raw_fuel_burn!$E:$E,'Portfolio Analytics'!U$1086,raw_fuel_burn!$C:$C,mainzone)/1000000","v":0},{"$f":"SUMIFS(raw_fuel_burn!$F:$F,Lists!$Z:$Z,'Portfolio Analytics'!$C1101,raw_fuel_burn!$E:$E,'Portfolio Analytics'!V$1086,raw_fuel_burn!$C:$C,mainzone)/1000000","v":0},{"$f":"SUMIFS(raw_fuel_burn!$F:$F,Lists!$Z:$Z,'Portfolio Analytics'!$C1101,raw_fuel_burn!$E:$E,'Portfolio Analytics'!W$1086,raw_fuel_burn!$C:$C,mainzone)/1000000","v":0},{"$f":"SUMIFS(raw_fuel_burn!$F:$F,Lists!$Z:$Z,'Portfolio Analytics'!$C1101,raw_fuel_burn!$E:$E,'Portfolio Analytics'!X$1086,raw_fuel_burn!$C:$C,mainzone)/1000000","v":0},{"$f":"SUMIFS(raw_fuel_burn!$F:$F,Lists!$Z:$Z,'Portfolio Analytics'!$C1101,raw_fuel_burn!$E:$E,'Portfolio Analytics'!Y$1086,raw_fuel_burn!$C:$C,mainzone)/1000000","v":0},{"$f":"SUMIFS(raw_fuel_burn!$F:$F,Lists!$Z:$Z,'Portfolio Analytics'!$C1101,raw_fuel_burn!$E:$E,'Portfolio Analytics'!Z$1086,raw_fuel_burn!$C:$C,mainzone)/1000000","v":0},{"$f":"SUMIFS(raw_fuel_burn!$F:$F,Lists!$Z:$Z,'Portfolio Analytics'!$C1101,raw_fuel_burn!$E:$E,'Portfolio Analytics'!AA$1086,raw_fuel_burn!$C:$C,mainzone)/1000000","v":0},{"$f":"SUMIFS(raw_fuel_burn!$F:$F,Lists!$Z:$Z,'Portfolio Analytics'!$C1101,raw_fuel_burn!$E:$E,'Portfolio Analytics'!AB$1086,raw_fuel_burn!$C:$C,mainzone)/1000000","v":0},{"$f":"SUMIFS(raw_fuel_burn!$F:$F,Lists!$Z:$Z,'Portfolio Analytics'!$C1101,raw_fuel_burn!$E:$E,'Portfolio Analytics'!AC$1086,raw_fuel_burn!$C:$C,mainzone)/1000000","v":0},{"$f":"SUMIFS(raw_fuel_burn!$F:$F,Lists!$Z:$Z,'Portfolio Analytics'!$C1101,raw_fuel_burn!$E:$E,'Portfolio Analytics'!AD$1086,raw_fuel_burn!$C:$C,mainzone)/1000000","v":0},{"$f":"SUMIFS(raw_fuel_burn!$F:$F,Lists!$Z:$Z,'Portfolio Analytics'!$C1101,raw_fuel_burn!$E:$E,'Portfolio Analytics'!AE$1086,raw_fuel_burn!$C:$C,mainzone)/1000000","v":0},{"$f":"SUMIFS(raw_fuel_burn!$F:$F,Lists!$Z:$Z,'Portfolio Analytics'!$C1101,raw_fuel_burn!$E:$E,'Portfolio Analytics'!AF$1086,raw_fuel_burn!$C:$C,mainzone)/1000000","v":0},{"$f":"SUMIFS(raw_fuel_burn!$F:$F,Lists!$Z:$Z,'Portfolio Analytics'!$C1101,raw_fuel_burn!$E:$E,'Portfolio Analytics'!AG$1086,raw_fuel_burn!$C:$C,mainzone)/1000000","v":0},{"$f":"SUMIFS(raw_fuel_burn!$F:$F,Lists!$Z:$Z,'Portfolio Analytics'!$C1101,raw_fuel_burn!$E:$E,'Portfolio Analytics'!AH$1086,raw_fuel_burn!$C:$C,mainzone)/1000000","v":0},{"$f":"SUMIFS(raw_fuel_burn!$F:$F,Lists!$Z:$Z,'Portfolio Analytics'!$C1101,raw_fuel_burn!$E:$E,'Portfolio Analytics'!AI$1086,raw_fuel_burn!$C:$C,mainzone)/1000000","v":4.5390436949502204},{"$f":"SUMIFS(raw_fuel_burn!$F:$F,Lists!$Z:$Z,'Portfolio Analytics'!$C1101,raw_fuel_burn!$E:$E,'Portfolio Analytics'!AJ$1086,raw_fuel_burn!$C:$C,mainzone)/1000000","v":0},{"$f":"SUMIFS(raw_fuel_burn!$F:$F,Lists!$Z:$Z,'Portfolio Analytics'!$C1101,raw_fuel_burn!$E:$E,'Portfolio Analytics'!AK$1086,raw_fuel_burn!$C:$C,mainzone)/1000000","v":0},{"$f":"SUMIFS(raw_fuel_burn!$F:$F,Lists!$Z:$Z,'Portfolio Analytics'!$C1101,raw_fuel_burn!$E:$E,'Portfolio Analytics'!AL$1086,raw_fuel_burn!$C:$C,mainzone)/1000000","v":0},{"$f":"SUMIFS(raw_fuel_burn!$F:$F,Lists!$Z:$Z,'Portfolio Analytics'!$C1101,raw_fuel_burn!$E:$E,'Portfolio Analytics'!AM$1086,raw_fuel_burn!$C:$C,mainzone)/1000000","v":0},{"$f":"SUMIFS(raw_fuel_burn!$F:$F,Lists!$Z:$Z,'Portfolio Analytics'!$C1101,raw_fuel_burn!$E:$E,'Portfolio Analytics'!AN$1086,raw_fuel_burn!$C:$C,mainzone)/1000000","v":0}]
[null,null,"CAISO_Peaker1","TBtu/yr",{"$f":"SUMIFS(raw_fuel_burn!$F:$F,Lists!$Z:$Z,'Portfolio Analytics'!$C1102,raw_fuel_burn!$E:$E,'Portfolio Analytics'!E$1086,raw_fuel_burn!$C:$C,mainzone)/1000000","v":0},{"$f":"SUMIFS(raw_fuel_burn!$F:$F,Lists!$Z:$Z,'Portfolio Analytics'!$C1102,raw_fuel_burn!$E:$E,'Portfolio Analytics'!F$1086,raw_fuel_burn!$C:$C,mainzone)/1000000","v":0},{"$f":"SUMIFS(raw_fuel_burn!$F:$F,Lists!$Z:$Z,'Portfolio Analytics'!$C1102,raw_fuel_burn!$E:$E,'Portfolio Analytics'!G$1086,raw_fuel_burn!$C:$C,mainzone)/1000000","v":0},{"$f":"SUMIFS(raw_fuel_burn!$F:$F,Lists!$Z:$Z,'Portfolio Analytics'!$C1102,raw_fuel_burn!$E:$E,'Portfolio Analytics'!H$1086,raw_fuel_burn!$C:$C,mainzone)/1000000","v":0},{"$f":"SUMIFS(raw_fuel_burn!$F:$F,Lists!$Z:$Z,'Portfolio Analytics'!$C1102,raw_fuel_burn!$E:$E,'Portfolio Analytics'!I$1086,raw_fuel_burn!$C:$C,mainzone)/1000000","v":0},{"$f":"SUMIFS(raw_fuel_burn!$F:$F,Lists!$Z:$Z,'Portfolio Analytics'!$C1102,raw_fuel_burn!$E:$E,'Portfolio Analytics'!J$1086,raw_fuel_burn!$C:$C,mainzone)/1000000","v":10.2851321306313},{"$f":"SUMIFS(raw_fuel_burn!$F:$F,Lists!$Z:$Z,'Portfolio Analytics'!$C1102,raw_fuel_burn!$E:$E,'Portfolio Analytics'!K$1086,raw_fuel_burn!$C:$C,mainzone)/1000000","v":5.3793378605349904},{"$f":"SUMIFS(raw_fuel_burn!$F:$F,Lists!$Z:$Z,'Portfolio Analytics'!$C1102,raw_fuel_burn!$E:$E,'Portfolio Analytics'!L$1086,raw_fuel_burn!$C:$C,mainzone)/1000000","v":6.1785200996367298},{"$f":"SUMIFS(raw_fuel_burn!$F:$F,Lists!$Z:$Z,'Portfolio Analytics'!$C1102,raw_fuel_burn!$E:$E,'Portfolio Analytics'!M$1086,raw_fuel_burn!$C:$C,mainzone)/1000000","v":7.3960912562196004},{"$f":"SUMIFS(raw_fuel_burn!$F:$F,Lists!$Z:$Z,'Portfolio Analytics'!$C1102,raw_fuel_burn!$E:$E,'Portfolio Analytics'!N$1086,raw_fuel_burn!$C:$C,mainzone)/1000000","v":6.0267585992580903},{"$f":"SUMIFS(raw_fuel_burn!$F:$F,Lists!$Z:$Z,'Portfolio Analytics'!$C1102,raw_fuel_burn!$E:$E,'Portfolio Analytics'!O$1086,raw_fuel_burn!$C:$C,mainzone)/1000000","v":0},{"$f":"SUMIFS(raw_fuel_burn!$F:$F,Lists!$Z:$Z,'Portfolio Analytics'!$C1102,raw_fuel_burn!$E:$E,'Portfolio Analytics'!P$1086,raw_fuel_burn!$C:$C,mainzone)/1000000","v":0.88919245956078696},{"$f":"SUMIFS(raw_fuel_burn!$F:$F,Lists!$Z:$Z,'Portfolio Analytics'!$C1102,raw_fuel_burn!$E:$E,'Portfolio Analytics'!Q$1086,raw_fuel_burn!$C:$C,mainzone)/1000000","v":0},{"$f":"SUMIFS(raw_fuel_burn!$F:$F,Lists!$Z:$Z,'Portfolio Analytics'!$C1102,raw_fuel_burn!$E:$E,'Portfolio Analytics'!R$1086,raw_fuel_burn!$C:$C,mainzone)/1000000","v":0},{"$f":"SUMIFS(raw_fuel_burn!$F:$F,Lists!$Z:$Z,'Portfolio Analytics'!$C1102,raw_fuel_burn!$E:$E,'Portfolio Analytics'!S$1086,raw_fuel_burn!$C:$C,mainzone)/1000000","v":0},{"$f":"SUMIFS(raw_fuel_burn!$F:$F,Lists!$Z:$Z,'Portfolio Analytics'!$C1102,raw_fuel_burn!$E:$E,'Portfolio Analytics'!T$1086,raw_fuel_burn!$C:$C,mainzone)/1000000","v":0.7845887985988651},{"$f":"SUMIFS(raw_fuel_burn!$F:$F,Lists!$Z:$Z,'Portfolio Analytics'!$C1102,raw_fuel_burn!$E:$E,'Portfolio Analytics'!U$1086,raw_fuel_burn!$C:$C,mainzone)/1000000","v":0},{"$f":"SUMIFS(raw_fuel_burn!$F:$F,Lists!$Z:$Z,'Portfolio Analytics'!$C1102,raw_fuel_burn!$E:$E,'Portfolio Analytics'!V$1086,raw_fuel_burn!$C:$C,mainzone)/1000000","v":0},{"$f":"SUMIFS(raw_fuel_burn!$F:$F,Lists!$Z:$Z,'Portfolio Analytics'!$C1102,raw_fuel_burn!$E:$E,'Portfolio Analytics'!W$1086,raw_fuel_burn!$C:$C,mainzone)/1000000","v":0},{"$f":"SUMIFS(raw_fuel_burn!$F:$F,Lists!$Z:$Z,'Portfolio Analytics'!$C1102,raw_fuel_burn!$E:$E,'Portfolio Analytics'!X$1086,raw_fuel_burn!$C:$C,mainzone)/1000000","v":0},{"$f":"SUMIFS(raw_fuel_burn!$F:$F,Lists!$Z:$Z,'Portfolio Analytics'!$C1102,raw_fuel_burn!$E:$E,'Portfolio Analytics'!Y$1086,raw_fuel_burn!$C:$C,mainzone)/1000000","v":0},{"$f":"SUMIFS(raw_fuel_burn!$F:$F,Lists!$Z:$Z,'Portfolio Analytics'!$C1102,raw_fuel_burn!$E:$E,'Portfolio Analytics'!Z$1086,raw_fuel_burn!$C:$C,mainzone)/1000000","v":0},{"$f":"SUMIFS(raw_fuel_burn!$F:$F,Lists!$Z:$Z,'Portfolio Analytics'!$C1102,raw_fuel_burn!$E:$E,'Portfolio Analytics'!AA$1086,raw_fuel_burn!$C:$C,mainzone)/1000000","v":0},{"$f":"SUMIFS(raw_fuel_burn!$F:$F,Lists!$Z:$Z,'Portfolio Analytics'!$C1102,raw_fuel_burn!$E:$E,'Portfolio Analytics'!AB$1086,raw_fuel_burn!$C:$C,mainzone)/1000000","v":0},{"$f":"SUMIFS(raw_fuel_burn!$F:$F,Lists!$Z:$Z,'Portfolio Analytics'!$C1102,raw_fuel_burn!$E:$E,'Portfolio Analytics'!AC$1086,raw_fuel_burn!$C:$C,mainzone)/1000000","v":0},{"$f":"SUMIFS(raw_fuel_burn!$F:$F,Lists!$Z:$Z,'Portfolio Analytics'!$C1102,raw_fuel_burn!$E:$E,'Portfolio Analytics'!AD$1086,raw_fuel_burn!$C:$C,mainzone)/1000000","v":0},{"$f":"SUMIFS(raw_fuel_burn!$F:$F,Lists!$Z:$Z,'Portfolio Analytics'!$C1102,raw_fuel_burn!$E:$E,'Portfolio Analytics'!AE$1086,raw_fuel_burn!$C:$C,mainzone)/1000000","v":0},{"$f":"SUMIFS(raw_fuel_burn!$F:$F,Lists!$Z:$Z,'Portfolio Analytics'!$C1102,raw_fuel_burn!$E:$E,'Portfolio Analytics'!AF$1086,raw_fuel_burn!$C:$C,mainzone)/1000000","v":0},{"$f":"SUMIFS(raw_fuel_burn!$F:$F,Lists!$Z:$Z,'Portfolio Analytics'!$C1102,raw_fuel_burn!$E:$E,'Portfolio Analytics'!AG$1086,raw_fuel_burn!$C:$C,mainzone)/1000000","v":0},{"$f":"SUMIFS(raw_fuel_burn!$F:$F,Lists!$Z:$Z,'Portfolio Analytics'!$C1102,raw_fuel_burn!$E:$E,'Portfolio Analytics'!AH$1086,raw_fuel_burn!$C:$C,mainzone)/1000000","v":0},{"$f":"SUMIFS(raw_fuel_burn!$F:$F,Lists!$Z:$Z,'Portfolio Analytics'!$C1102,raw_fuel_burn!$E:$E,'Portfolio Analytics'!AI$1086,raw_fuel_burn!$C:$C,mainzone)/1000000","v":0},{"$f":"SUMIFS(raw_fuel_burn!$F:$F,Lists!$Z:$Z,'Portfolio Analytics'!$C1102,raw_fuel_burn!$E:$E,'Portfolio Analytics'!AJ$1086,raw_fuel_burn!$C:$C,mainzone)/1000000","v":0},{"$f":"SUMIFS(raw_fuel_burn!$F:$F,Lists!$Z:$Z,'Portfolio Analytics'!$C1102,raw_fuel_burn!$E:$E,'Portfolio Analytics'!AK$1086,raw_fuel_burn!$C:$C,mainzone)/1000000","v":0},{"$f":"SUMIFS(raw_fuel_burn!$F:$F,Lists!$Z:$Z,'Portfolio Analytics'!$C1102,raw_fuel_burn!$E:$E,'Portfolio Analytics'!AL$1086,raw_fuel_burn!$C:$C,mainzone)/1000000","v":0},{"$f":"SUMIFS(raw_fuel_burn!$F:$F,Lists!$Z:$Z,'Portfolio Analytics'!$C1102,raw_fuel_burn!$E:$E,'Portfolio Analytics'!AM$1086,raw_fuel_burn!$C:$C,mainzone)/1000000","v":0},{"$f":"SUMIFS(raw_fuel_burn!$F:$F,Lists!$Z:$Z,'Portfolio Analytics'!$C1102,raw_fuel_burn!$E:$E,'Portfolio Analytics'!AN$1086,raw_fuel_burn!$C:$C,mainzone)/1000000","v":0}]
[null,null,"CAISO_Peaker2","TBtu/yr",{"$f":"SUMIFS(raw_fuel_burn!$F:$F,Lists!$Z:$Z,'Portfolio Analytics'!$C1103,raw_fuel_burn!$E:$E,'Portfolio Analytics'!E$1086,raw_fuel_burn!$C:$C,mainzone)/1000000","v":0},{"$f":"SUMIFS(raw_fuel_burn!$F:$F,Lists!$Z:$Z,'Portfolio Analytics'!$C1103,raw_fuel_burn!$E:$E,'Portfolio Analytics'!F$1086,raw_fuel_burn!$C:$C,mainzone)/1000000","v":0},{"$f":"SUMIFS(raw_fuel_burn!$F:$F,Lists!$Z:$Z,'Portfolio Analytics'!$C1103,raw_fuel_burn!$E:$E,'Portfolio Analytics'!G$1086,raw_fuel_burn!$C:$C,mainzone)/1000000","v":0},{"$f":"SUMIFS(raw_fuel_burn!$F:$F,Lists!$Z:$Z,'Portfolio Analytics'!$C1103,raw_fuel_burn!$E:$E,'Portfolio Analytics'!H$1086,raw_fuel_burn!$C:$C,mainzone)/1000000","v":0},{"$f":"SUMIFS(raw_fuel_burn!$F:$F,Lists!$Z:$Z,'Portfolio Analytics'!$C1103,raw_fuel_burn!$E:$E,'Portfolio Analytics'!I$1086,raw_fuel_burn!$C:$C,mainzone)/1000000","v":0},{"$f":"SUMIFS(raw_fuel_burn!$F:$F,Lists!$Z:$Z,'Portfolio Analytics'!$C1103,raw_fuel_burn!$E:$E,'Portfolio Analytics'!J$1086,raw_fuel_burn!$C:$C,mainzone)/1000000","v":0},{"$f":"SUMIFS(raw_fuel_burn!$F:$F,Lists!$Z:$Z,'Portfolio Analytics'!$C1103,raw_fuel_burn!$E:$E,'Portfolio Analytics'!K$1086,raw_fuel_burn!$C:$C,mainzone)/1000000","v":0},{"$f":"SUMIFS(raw_fuel_burn!$F:$F,Lists!$Z:$Z,'Portfolio Analytics'!$C1103,raw_fuel_burn!$E:$E,'Portfolio Analytics'!L$1086,raw_fuel_burn!$C:$C,mainzone)/1000000","v":0},{"$f":"SUMIFS(raw_fuel_burn!$F:$F,Lists!$Z:$Z,'Portfolio Analytics'!$C1103,raw_fuel_burn!$E:$E,'Portfolio Analytics'!M$1086,raw_fuel_burn!$C:$C,mainzone)/1000000","v":0},{"$f":"SUMIFS(raw_fuel_burn!$F:$F,Lists!$Z:$Z,'Portfolio Analytics'!$C1103,raw_fuel_burn!$E:$E,'Portfolio Analytics'!N$1086,raw_fuel_burn!$C:$C,mainzone)/1000000","v":0},{"$f":"SUMIFS(raw_fuel_burn!$F:$F,Lists!$Z:$Z,'Portfolio Analytics'!$C1103,raw_fuel_burn!$E:$E,'Portfolio Analytics'!O$1086,raw_fuel_burn!$C:$C,mainzone)/1000000","v":0},{"$f":"SUMIFS(raw_fuel_burn!$F:$F,Lists!$Z:$Z,'Portfolio Analytics'!$C1103,raw_fuel_burn!$E:$E,'Portfolio Analytics'!P$1086,raw_fuel_burn!$C:$C,mainzone)/1000000","v":0},{"$f":"SUMIFS(raw_fuel_burn!$F:$F,Lists!$Z:$Z,'Portfolio Analytics'!$C1103,raw_fuel_burn!$E:$E,'Portfolio Analytics'!Q$1086,raw_fuel_burn!$C:$C,mainzone)/1000000","v":0},{"$f":"SUMIFS(raw_fuel_burn!$F:$F,Lists!$Z:$Z,'Portfolio Analytics'!$C1103,raw_fuel_burn!$E:$E,'Portfolio Analytics'!R$1086,raw_fuel_burn!$C:$C,mainzone)/1000000","v":0},{"$f":"SUMIFS(raw_fuel_burn!$F:$F,Lists!$Z:$Z,'Portfolio Analytics'!$C1103,raw_fuel_burn!$E:$E,'Portfolio Analytics'!S$1086,raw_fuel_burn!$C:$C,mainzone)/1000000","v":0},{"$f":"SUMIFS(raw_fuel_burn!$F:$F,Lists!$Z:$Z,'Portfolio Analytics'!$C1103,raw_fuel_burn!$E:$E,'Portfolio Analytics'!T$1086,raw_fuel_burn!$C:$C,mainzone)/1000000","v":0},{"$f":"SUMIFS(raw_fuel_burn!$F:$F,Lists!$Z:$Z,'Portfolio Analytics'!$C1103,raw_fuel_burn!$E:$E,'Portfolio Analytics'!U$1086,raw_fuel_burn!$C:$C,mainzone)/1000000","v":0},{"$f":"SUMIFS(raw_fuel_burn!$F:$F,Lists!$Z:$Z,'Portfolio Analytics'!$C1103,raw_fuel_burn!$E:$E,'Portfolio Analytics'!V$1086,raw_fuel_burn!$C:$C,mainzone)/1000000","v":0},{"$f":"SUMIFS(raw_fuel_burn!$F:$F,Lists!$Z:$Z,'Portfolio Analytics'!$C1103,raw_fuel_burn!$E:$E,'Portfolio Analytics'!W$1086,raw_fuel_burn!$C:$C,mainzone)/1000000","v":0},{"$f":"SUMIFS(raw_fuel_burn!$F:$F,Lists!$Z:$Z,'Portfolio Analytics'!$C1103,raw_fuel_burn!$E:$E,'Portfolio Analytics'!X$1086,raw_fuel_burn!$C:$C,mainzone)/1000000","v":0},{"$f":"SUMIFS(raw_fuel_burn!$F:$F,Lists!$Z:$Z,'Portfolio Analytics'!$C1103,raw_fuel_burn!$E:$E,'Portfolio Analytics'!Y$1086,raw_fuel_burn!$C:$C,mainzone)/1000000","v":0},{"$f":"SUMIFS(raw_fuel_burn!$F:$F,Lists!$Z:$Z,'Portfolio Analytics'!$C1103,raw_fuel_burn!$E:$E,'Portfolio Analytics'!Z$1086,raw_fuel_burn!$C:$C,mainzone)/1000000","v":0},{"$f":"SUMIFS(raw_fuel_burn!$F:$F,Lists!$Z:$Z,'Portfolio Analytics'!$C1103,raw_fuel_burn!$E:$E,'Portfolio Analytics'!AA$1086,raw_fuel_burn!$C:$C,mainzone)/1000000","v":0},{"$f":"SUMIFS(raw_fuel_burn!$F:$F,Lists!$Z:$Z,'Portfolio Analytics'!$C1103,raw_fuel_burn!$E:$E,'Portfolio Analytics'!AB$1086,raw_fuel_burn!$C:$C,mainzone)/1000000","v":0},{"$f":"SUMIFS(raw_fuel_burn!$F:$F,Lists!$Z:$Z,'Portfolio Analytics'!$C1103,raw_fuel_burn!$E:$E,'Portfolio Analytics'!AC$1086,raw_fuel_burn!$C:$C,mainzone)/1000000","v":0},{"$f":"SUMIFS(raw_fuel_burn!$F:$F,Lists!$Z:$Z,'Portfolio Analytics'!$C1103,raw_fuel_burn!$E:$E,'Portfolio Analytics'!AD$1086,raw_fuel_burn!$C:$C,mainzone)/1000000","v":0},{"$f":"SUMIFS(raw_fuel_burn!$F:$F,Lists!$Z:$Z,'Portfolio Analytics'!$C1103,raw_fuel_burn!$E:$E,'Portfolio Analytics'!AE$1086,raw_fuel_burn!$C:$C,mainzone)/1000000","v":0},{"$f":"SUMIFS(raw_fuel_burn!$F:$F,Lists!$Z:$Z,'Portfolio Analytics'!$C1103,raw_fuel_burn!$E:$E,'Portfolio Analytics'!AF$1086,raw_fuel_burn!$C:$C,mainzone)/1000000","v":0},{"$f":"SUMIFS(raw_fuel_burn!$F:$F,Lists!$Z:$Z,'Portfolio Analytics'!$C1103,raw_fuel_burn!$E:$E,'Portfolio Analytics'!AG$1086,raw_fuel_burn!$C:$C,mainzone)/1000000","v":0},{"$f":"SUMIFS(raw_fuel_burn!$F:$F,Lists!$Z:$Z,'Portfolio Analytics'!$C1103,raw_fuel_burn!$E:$E,'Portfolio Analytics'!AH$1086,raw_fuel_burn!$C:$C,mainzone)/1000000","v":0},{"$f":"SUMIFS(raw_fuel_burn!$F:$F,Lists!$Z:$Z,'Portfolio Analytics'!$C1103,raw_fuel_burn!$E:$E,'Portfolio Analytics'!AI$1086,raw_fuel_burn!$C:$C,mainzone)/1000000","v":0},{"$f":"SUMIFS(raw_fuel_burn!$F:$F,Lists!$Z:$Z,'Portfolio Analytics'!$C1103,raw_fuel_burn!$E:$E,'Portfolio Analytics'!AJ$1086,raw_fuel_burn!$C:$C,mainzone)/1000000","v":0},{"$f":"SUMIFS(raw_fuel_burn!$F:$F,Lists!$Z:$Z,'Portfolio Analytics'!$C1103,raw_fuel_burn!$E:$E,'Portfolio Analytics'!AK$1086,raw_fuel_burn!$C:$C,mainzone)/1000000","v":0},{"$f":"SUMIFS(raw_fuel_burn!$F:$F,Lists!$Z:$Z,'Portfolio Analytics'!$C1103,raw_fuel_burn!$E:$E,'Portfolio Analytics'!AL$1086,raw_fuel_burn!$C:$C,mainzone)/1000000","v":0},{"$f":"SUMIFS(raw_fuel_burn!$F:$F,Lists!$Z:$Z,'Portfolio Analytics'!$C1103,raw_fuel_burn!$E:$E,'Portfolio Analytics'!AM$1086,raw_fuel_burn!$C:$C,mainzone)/1000000","v":0},{"$f":"SUMIFS(raw_fuel_burn!$F:$F,Lists!$Z:$Z,'Portfolio Analytics'!$C1103,raw_fuel_burn!$E:$E,'Portfolio Analytics'!AN$1086,raw_fuel_burn!$C:$C,mainzone)/1000000","v":0}]
[null,null,"CAISO_Advanced_CCGT","TBtu/yr",{"$f":"SUMIFS(raw_fuel_burn!$F:$F,Lists!$Z:$Z,'Portfolio Analytics'!$C1104,raw_fuel_burn!$E:$E,'Portfolio Analytics'!E$1086,raw_fuel_burn!$C:$C,mainzone)/1000000","v":0},{"$f":"SUMIFS(raw_fuel_burn!$F:$F,Lists!$Z:$Z,'Portfolio Analytics'!$C1104,raw_fuel_burn!$E:$E,'Portfolio Analytics'!F$1086,raw_fuel_burn!$C:$C,mainzone)/1000000","v":0},{"$f":"SUMIFS(raw_fuel_burn!$F:$F,Lists!$Z:$Z,'Portfolio Analytics'!$C1104,raw_fuel_burn!$E:$E,'Portfolio Analytics'!G$1086,raw_fuel_burn!$C:$C,mainzone)/1000000","v":0},{"$f":"SUMIFS(raw_fuel_burn!$F:$F,Lists!$Z:$Z,'Portfolio Analytics'!$C1104,raw_fuel_burn!$E:$E,'Portfolio Analytics'!H$1086,raw_fuel_burn!$C:$C,mainzone)/1000000","v":0},{"$f":"SUMIFS(raw_fuel_burn!$F:$F,Lists!$Z:$Z,'Portfolio Analytics'!$C1104,raw_fuel_burn!$E:$E,'Portfolio Analytics'!I$1086,raw_fuel_burn!$C:$C,mainzone)/1000000","v":0},{"$f":"SUMIFS(raw_fuel_burn!$F:$F,Lists!$Z:$Z,'Portfolio Analytics'!$C1104,raw_fuel_burn!$E:$E,'Portfolio Analytics'!J$1086,raw_fuel_burn!$C:$C,mainzone)/1000000","v":0},{"$f":"SUMIFS(raw_fuel_burn!$F:$F,Lists!$Z:$Z,'Portfolio Analytics'!$C1104,raw_fuel_burn!$E:$E,'Portfolio Analytics'!K$1086,raw_fuel_burn!$C:$C,mainzone)/1000000","v":0},{"$f":"SUMIFS(raw_fuel_burn!$F:$F,Lists!$Z:$Z,'Portfolio Analytics'!$C1104,raw_fuel_burn!$E:$E,'Portfolio Analytics'!L$1086,raw_fuel_burn!$C:$C,mainzone)/1000000","v":0},{"$f":"SUMIFS(raw_fuel_burn!$F:$F,Lists!$Z:$Z,'Portfolio Analytics'!$C1104,raw_fuel_burn!$E:$E,'Portfolio Analytics'!M$1086,raw_fuel_burn!$C:$C,mainzone)/1000000","v":0},{"$f":"SUMIFS(raw_fuel_burn!$F:$F,Lists!$Z:$Z,'Portfolio Analytics'!$C1104,raw_fuel_burn!$E:$E,'Portfolio Analytics'!N$1086,raw_fuel_burn!$C:$C,mainzone)/1000000","v":0},{"$f":"SUMIFS(raw_fuel_burn!$F:$F,Lists!$Z:$Z,'Portfolio Analytics'!$C1104,raw_fuel_burn!$E:$E,'Portfolio Analytics'!O$1086,raw_fuel_burn!$C:$C,mainzone)/1000000","v":0},{"$f":"SUMIFS(raw_fuel_burn!$F:$F,Lists!$Z:$Z,'Portfolio Analytics'!$C1104,raw_fuel_burn!$E:$E,'Portfolio Analytics'!P$1086,raw_fuel_burn!$C:$C,mainzone)/1000000","v":0},{"$f":"SUMIFS(raw_fuel_burn!$F:$F,Lists!$Z:$Z,'Portfolio Analytics'!$C1104,raw_fuel_burn!$E:$E,'Portfolio Analytics'!Q$1086,raw_fuel_burn!$C:$C,mainzone)/1000000","v":0},{"$f":"SUMIFS(raw_fuel_burn!$F:$F,Lists!$Z:$Z,'Portfolio Analytics'!$C1104,raw_fuel_burn!$E:$E,'Portfolio Analytics'!R$1086,raw_fuel_burn!$C:$C,mainzone)/1000000","v":0},{"$f":"SUMIFS(raw_fuel_burn!$F:$F,Lists!$Z:$Z,'Portfolio Analytics'!$C1104,raw_fuel_burn!$E:$E,'Portfolio Analytics'!S$1086,raw_fuel_burn!$C:$C,mainzone)/1000000","v":0},{"$f":"SUMIFS(raw_fuel_burn!$F:$F,Lists!$Z:$Z,'Portfolio Analytics'!$C1104,raw_fuel_burn!$E:$E,'Portfolio Analytics'!T$1086,raw_fuel_burn!$C:$C,mainzone)/1000000","v":0},{"$f":"SUMIFS(raw_fuel_burn!$F:$F,Lists!$Z:$Z,'Portfolio Analytics'!$C1104,raw_fuel_burn!$E:$E,'Portfolio Analytics'!U$1086,raw_fuel_burn!$C:$C,mainzone)/1000000","v":0},{"$f":"SUMIFS(raw_fuel_burn!$F:$F,Lists!$Z:$Z,'Portfolio Analytics'!$C1104,raw_fuel_burn!$E:$E,'Portfolio Analytics'!V$1086,raw_fuel_burn!$C:$C,mainzone)/1000000","v":0},{"$f":"SUMIFS(raw_fuel_burn!$F:$F,Lists!$Z:$Z,'Portfolio Analytics'!$C1104,raw_fuel_burn!$E:$E,'Portfolio Analytics'!W$1086,raw_fuel_burn!$C:$C,mainzone)/1000000","v":0},{"$f":"SUMIFS(raw_fuel_burn!$F:$F,Lists!$Z:$Z,'Portfolio Analytics'!$C1104,raw_fuel_burn!$E:$E,'Portfolio Analytics'!X$1086,raw_fuel_burn!$C:$C,mainzone)/1000000","v":0},{"$f":"SUMIFS(raw_fuel_burn!$F:$F,Lists!$Z:$Z,'Portfolio Analytics'!$C1104,raw_fuel_burn!$E:$E,'Portfolio Analytics'!Y$1086,raw_fuel_burn!$C:$C,mainzone)/1000000","v":0},{"$f":"SUMIFS(raw_fuel_burn!$F:$F,Lists!$Z:$Z,'Portfolio Analytics'!$C1104,raw_fuel_burn!$E:$E,'Portfolio Analytics'!Z$1086,raw_fuel_burn!$C:$C,mainzone)/1000000","v":0},{"$f":"SUMIFS(raw_fuel_burn!$F:$F,Lists!$Z:$Z,'Portfolio Analytics'!$C1104,raw_fuel_burn!$E:$E,'Portfolio Analytics'!AA$1086,raw_fuel_burn!$C:$C,mainzone)/1000000","v":0},{"$f":"SUMIFS(raw_fuel_burn!$F:$F,Lists!$Z:$Z,'Portfolio Analytics'!$C1104,raw_fuel_burn!$E:$E,'Portfolio Analytics'!AB$1086,raw_fuel_burn!$C:$C,mainzone)/1000000","v":0},{"$f":"SUMIFS(raw_fuel_burn!$F:$F,Lists!$Z:$Z,'Portfolio Analytics'!$C1104,raw_fuel_burn!$E:$E,'Portfolio Analytics'!AC$1086,raw_fuel_burn!$C:$C,mainzone)/1000000","v":0},{"$f":"SUMIFS(raw_fuel_burn!$F:$F,Lists!$Z:$Z,'Portfolio Analytics'!$C1104,raw_fuel_burn!$E:$E,'Portfolio Analytics'!AD$1086,raw_fuel_burn!$C:$C,mainzone)/1000000","v":0},{"$f":"SUMIFS(raw_fuel_burn!$F:$F,Lists!$Z:$Z,'Portfolio Analytics'!$C1104,raw_fuel_burn!$E:$E,'Portfolio Analytics'!AE$1086,raw_fuel_burn!$C:$C,mainzone)/1000000","v":0},{"$f":"SUMIFS(raw_fuel_burn!$F:$F,Lists!$Z:$Z,'Portfolio Analytics'!$C1104,raw_fuel_burn!$E:$E,'Portfolio Analytics'!AF$1086,raw_fuel_burn!$C:$C,mainzone)/1000000","v":0},{"$f":"SUMIFS(raw_fuel_burn!$F:$F,Lists!$Z:$Z,'Portfolio Analytics'!$C1104,raw_fuel_burn!$E:$E,'Portfolio Analytics'!AG$1086,raw_fuel_burn!$C:$C,mainzone)/1000000","v":0},{"$f":"SUMIFS(raw_fuel_burn!$F:$F,Lists!$Z:$Z,'Portfolio Analytics'!$C1104,raw_fuel_burn!$E:$E,'Portfolio Analytics'!AH$1086,raw_fuel_burn!$C:$C,mainzone)/1000000","v":0},{"$f":"SUMIFS(raw_fuel_burn!$F:$F,Lists!$Z:$Z,'Portfolio Analytics'!$C1104,raw_fuel_burn!$E:$E,'Portfolio Analytics'!AI$1086,raw_fuel_burn!$C:$C,mainzone)/1000000","v":0},{"$f":"SUMIFS(raw_fuel_burn!$F:$F,Lists!$Z:$Z,'Portfolio Analytics'!$C1104,raw_fuel_burn!$E:$E,'Portfolio Analytics'!AJ$1086,raw_fuel_burn!$C:$C,mainzone)/1000000","v":0},{"$f":"SUMIFS(raw_fuel_burn!$F:$F,Lists!$Z:$Z,'Portfolio Analytics'!$C1104,raw_fuel_burn!$E:$E,'Portfolio Analytics'!AK$1086,raw_fuel_burn!$C:$C,mainzone)/1000000","v":0},{"$f":"SUMIFS(raw_fuel_burn!$F:$F,Lists!$Z:$Z,'Portfolio Analytics'!$C1104,raw_fuel_burn!$E:$E,'Portfolio Analytics'!AL$1086,raw_fuel_burn!$C:$C,mainzone)/1000000","v":0},{"$f":"SUMIFS(raw_fuel_burn!$F:$F,Lists!$Z:$Z,'Portfolio Analytics'!$C1104,raw_fuel_burn!$E:$E,'Portfolio Analytics'!AM$1086,raw_fuel_burn!$C:$C,mainzone)/1000000","v":0},{"$f":"SUMIFS(raw_fuel_burn!$F:$F,Lists!$Z:$Z,'Portfolio Analytics'!$C1104,raw_fuel_burn!$E:$E,'Portfolio Analytics'!AN$1086,raw_fuel_burn!$C:$C,mainzone)/1000000","v":0}]
[null,null,"CAISO_Aero_CT","TBtu/yr",{"$f":"SUMIFS(raw_fuel_burn!$F:$F,Lists!$Z:$Z,'Portfolio Analytics'!$C1105,raw_fuel_burn!$E:$E,'Portfolio Analytics'!E$1086,raw_fuel_burn!$C:$C,mainzone)/1000000","v":0},{"$f":"SUMIFS(raw_fuel_burn!$F:$F,Lists!$Z:$Z,'Portfolio Analytics'!$C1105,raw_fuel_burn!$E:$E,'Portfolio Analytics'!F$1086,raw_fuel_burn!$C:$C,mainzone)/1000000","v":0},{"$f":"SUMIFS(raw_fuel_burn!$F:$F,Lists!$Z:$Z,'Portfolio Analytics'!$C1105,raw_fuel_burn!$E:$E,'Portfolio Analytics'!G$1086,raw_fuel_burn!$C:$C,mainzone)/1000000","v":0},{"$f":"SUMIFS(raw_fuel_burn!$F:$F,Lists!$Z:$Z,'Portfolio Analytics'!$C1105,raw_fuel_burn!$E:$E,'Portfolio Analytics'!H$1086,raw_fuel_burn!$C:$C,mainzone)/1000000","v":0},{"$f":"SUMIFS(raw_fuel_burn!$F:$F,Lists!$Z:$Z,'Portfolio Analytics'!$C1105,raw_fuel_burn!$E:$E,'Portfolio Analytics'!I$1086,raw_fuel_burn!$C:$C,mainzone)/1000000","v":0},{"$f":"SUMIFS(raw_fuel_burn!$F:$F,Lists!$Z:$Z,'Portfolio Analytics'!$C1105,raw_fuel_burn!$E:$E,'Portfolio Analytics'!J$1086,raw_fuel_burn!$C:$C,mainzone)/1000000","v":0},{"$f":"SUMIFS(raw_fuel_burn!$F:$F,Lists!$Z:$Z,'Portfolio Analytics'!$C1105,raw_fuel_burn!$E:$E,'Portfolio Analytics'!K$1086,raw_fuel_burn!$C:$C,mainzone)/1000000","v":0},{"$f":"SUMIFS(raw_fuel_burn!$F:$F,Lists!$Z:$Z,'Portfolio Analytics'!$C1105,raw_fuel_burn!$E:$E,'Portfolio Analytics'!L$1086,raw_fuel_burn!$C:$C,mainzone)/1000000","v":0},{"$f":"SUMIFS(raw_fuel_burn!$F:$F,Lists!$Z:$Z,'Portfolio Analytics'!$C1105,raw_fuel_burn!$E:$E,'Portfolio Analytics'!M$1086,raw_fuel_burn!$C:$C,mainzone)/1000000","v":0},{"$f":"SUMIFS(raw_fuel_burn!$F:$F,Lists!$Z:$Z,'Portfolio Analytics'!$C1105,raw_fuel_burn!$E:$E,'Portfolio Analytics'!N$1086,raw_fuel_burn!$C:$C,mainzone)/1000000","v":0},{"$f":"SUMIFS(raw_fuel_burn!$F:$F,Lists!$Z:$Z,'Portfolio Analytics'!$C1105,raw_fuel_burn!$E:$E,'Portfolio Analytics'!O$1086,raw_fuel_burn!$C:$C,mainzone)/1000000","v":0},{"$f":"SUMIFS(raw_fuel_burn!$F:$F,Lists!$Z:$Z,'Portfolio Analytics'!$C1105,raw_fuel_burn!$E:$E,'Portfolio Analytics'!P$1086,raw_fuel_burn!$C:$C,mainzone)/1000000","v":0},{"$f":"SUMIFS(raw_fuel_burn!$F:$F,Lists!$Z:$Z,'Portfolio Analytics'!$C1105,raw_fuel_burn!$E:$E,'Portfolio Analytics'!Q$1086,raw_fuel_burn!$C:$C,mainzone)/1000000","v":0},{"$f":"SUMIFS(raw_fuel_burn!$F:$F,Lists!$Z:$Z,'Portfolio Analytics'!$C1105,raw_fuel_burn!$E:$E,'Portfolio Analytics'!R$1086,raw_fuel_burn!$C:$C,mainzone)/1000000","v":0},{"$f":"SUMIFS(raw_fuel_burn!$F:$F,Lists!$Z:$Z,'Portfolio Analytics'!$C1105,raw_fuel_burn!$E:$E,'Portfolio Analytics'!S$1086,raw_fuel_burn!$C:$C,mainzone)/1000000","v":0},{"$f":"SUMIFS(raw_fuel_burn!$F:$F,Lists!$Z:$Z,'Portfolio Analytics'!$C1105,raw_fuel_burn!$E:$E,'Portfolio Analytics'!T$1086,raw_fuel_burn!$C:$C,mainzone)/1000000","v":0},{"$f":"SUMIFS(raw_fuel_burn!$F:$F,Lists!$Z:$Z,'Portfolio Analytics'!$C1105,raw_fuel_burn!$E:$E,'Portfolio Analytics'!U$1086,raw_fuel_burn!$C:$C,mainzone)/1000000","v":0},{"$f":"SUMIFS(raw_fuel_burn!$F:$F,Lists!$Z:$Z,'Portfolio Analytics'!$C1105,raw_fuel_burn!$E:$E,'Portfolio Analytics'!V$1086,raw_fuel_burn!$C:$C,mainzone)/1000000","v":0},{"$f":"SUMIFS(raw_fuel_burn!$F:$F,Lists!$Z:$Z,'Portfolio Analytics'!$C1105,raw_fuel_burn!$E:$E,'Portfolio Analytics'!W$1086,raw_fuel_burn!$C:$C,mainzone)/1000000","v":0},{"$f":"SUMIFS(raw_fuel_burn!$F:$F,Lists!$Z:$Z,'Portfolio Analytics'!$C1105,raw_fuel_burn!$E:$E,'Portfolio Analytics'!X$1086,raw_fuel_burn!$C:$C,mainzone)/1000000","v":0},{"$f":"SUMIFS(raw_fuel_burn!$F:$F,Lists!$Z:$Z,'Portfolio Analytics'!$C1105,raw_fuel_burn!$E:$E,'Portfolio Analytics'!Y$1086,raw_fuel_burn!$C:$C,mainzone)/1000000","v":0},{"$f":"SUMIFS(raw_fuel_burn!$F:$F,Lists!$Z:$Z,'Portfolio Analytics'!$C1105,raw_fuel_burn!$E:$E,'Portfolio Analytics'!Z$1086,raw_fuel_burn!$C:$C,mainzone)/1000000","v":0},{"$f":"SUMIFS(raw_fuel_burn!$F:$F,Lists!$Z:$Z,'Portfolio Analytics'!$C1105,raw_fuel_burn!$E:$E,'Portfolio Analytics'!AA$1086,raw_fuel_burn!$C:$C,mainzone)/1000000","v":0},{"$f":"SUMIFS(raw_fuel_burn!$F:$F,Lists!$Z:$Z,'Portfolio Analytics'!$C1105,raw_fuel_burn!$E:$E,'Portfolio Analytics'!AB$1086,raw_fuel_burn!$C:$C,mainzone)/1000000","v":0},{"$f":"SUMIFS(raw_fuel_burn!$F:$F,Lists!$Z:$Z,'Portfolio Analytics'!$C1105,raw_fuel_burn!$E:$E,'Portfolio Analytics'!AC$1086,raw_fuel_burn!$C:$C,mainzone)/1000000","v":0},{"$f":"SUMIFS(raw_fuel_burn!$F:$F,Lists!$Z:$Z,'Portfolio Analytics'!$C1105,raw_fuel_burn!$E:$E,'Portfolio Analytics'!AD$1086,raw_fuel_burn!$C:$C,mainzone)/1000000","v":0},{"$f":"SUMIFS(raw_fuel_burn!$F:$F,Lists!$Z:$Z,'Portfolio Analytics'!$C1105,raw_fuel_burn!$E:$E,'Portfolio Analytics'!AE$1086,raw_fuel_burn!$C:$C,mainzone)/1000000","v":0},{"$f":"SUMIFS(raw_fuel_burn!$F:$F,Lists!$Z:$Z,'Portfolio Analytics'!$C1105,raw_fuel_burn!$E:$E,'Portfolio Analytics'!AF$1086,raw_fuel_burn!$C:$C,mainzone)/1000000","v":0},{"$f":"SUMIFS(raw_fuel_burn!$F:$F,Lists!$Z:$Z,'Portfolio Analytics'!$C1105,raw_fuel_burn!$E:$E,'Portfolio Analytics'!AG$1086,raw_fuel_burn!$C:$C,mainzone)/1000000","v":0},{"$f":"SUMIFS(raw_fuel_burn!$F:$F,Lists!$Z:$Z,'Portfolio Analytics'!$C1105,raw_fuel_burn!$E:$E,'Portfolio Analytics'!AH$1086,raw_fuel_burn!$C:$C,mainzone)/1000000","v":0},{"$f":"SUMIFS(raw_fuel_burn!$F:$F,Lists!$Z:$Z,'Portfolio Analytics'!$C1105,raw_fuel_burn!$E:$E,'Portfolio Analytics'!AI$1086,raw_fuel_burn!$C:$C,mainzone)/1000000","v":0},{"$f":"SUMIFS(raw_fuel_burn!$F:$F,Lists!$Z:$Z,'Portfolio Analytics'!$C1105,raw_fuel_burn!$E:$E,'Portfolio Analytics'!AJ$1086,raw_fuel_burn!$C:$C,mainzone)/1000000","v":0},{"$f":"SUMIFS(raw_fuel_burn!$F:$F,Lists!$Z:$Z,'Portfolio Analytics'!$C1105,raw_fuel_burn!$E:$E,'Portfolio Analytics'!AK$1086,raw_fuel_burn!$C:$C,mainzone)/1000000","v":0},{"$f":"SUMIFS(raw_fuel_burn!$F:$F,Lists!$Z:$Z,'Portfolio Analytics'!$C1105,raw_fuel_burn!$E:$E,'Portfolio Analytics'!AL$1086,raw_fuel_burn!$C:$C,mainzone)/1000000","v":0},{"$f":"SUMIFS(raw_fuel_burn!$F:$F,Lists!$Z:$Z,'Portfolio Analytics'!$C1105,raw_fuel_burn!$E:$E,'Portfolio Analytics'!AM$1086,raw_fuel_burn!$C:$C,mainzone)/1000000","v":0},{"$f":"SUMIFS(raw_fuel_burn!$F:$F,Lists!$Z:$Z,'Portfolio Analytics'!$C1105,raw_fuel_burn!$E:$E,'Portfolio Analytics'!AN$1086,raw_fuel_burn!$C:$C,mainzone)/1000000","v":0}]
[null,null,"CAISO_Reciprocating_Engine","TBtu/yr",{"$f":"SUMIFS(raw_fuel_burn!$F:$F,Lists!$Z:$Z,'Portfolio Analytics'!$C1106,raw_fuel_burn!$E:$E,'Portfolio Analytics'!E$1086,raw_fuel_burn!$C:$C,mainzone)/1000000","v":0},{"$f":"SUMIFS(raw_fuel_burn!$F:$F,Lists!$Z:$Z,'Portfolio Analytics'!$C1106,raw_fuel_burn!$E:$E,'Portfolio Analytics'!F$1086,raw_fuel_burn!$C:$C,mainzone)/1000000","v":0},{"$f":"SUMIFS(raw_fuel_burn!$F:$F,Lists!$Z:$Z,'Portfolio Analytics'!$C1106,raw_fuel_burn!$E:$E,'Portfolio Analytics'!G$1086,raw_fuel_burn!$C:$C,mainzone)/1000000","v":0},{"$f":"SUMIFS(raw_fuel_burn!$F:$F,Lists!$Z:$Z,'Portfolio Analytics'!$C1106,raw_fuel_burn!$E:$E,'Portfolio Analytics'!H$1086,raw_fuel_burn!$C:$C,mainzone)/1000000","v":0},{"$f":"SUMIFS(raw_fuel_burn!$F:$F,Lists!$Z:$Z,'Portfolio Analytics'!$C1106,raw_fuel_burn!$E:$E,'Portfolio Analytics'!I$1086,raw_fuel_burn!$C:$C,mainzone)/1000000","v":0},{"$f":"SUMIFS(raw_fuel_burn!$F:$F,Lists!$Z:$Z,'Portfolio Analytics'!$C1106,raw_fuel_burn!$E:$E,'Portfolio Analytics'!J$1086,raw_fuel_burn!$C:$C,mainzone)/1000000","v":0.62023022477692802},{"$f":"SUMIFS(raw_fuel_burn!$F:$F,Lists!$Z:$Z,'Portfolio Analytics'!$C1106,raw_fuel_burn!$E:$E,'Portfolio Analytics'!K$1086,raw_fuel_burn!$C:$C,mainzone)/1000000","v":0.43611804533715998},{"$f":"SUMIFS(raw_fuel_burn!$F:$F,Lists!$Z:$Z,'Portfolio Analytics'!$C1106,raw_fuel_burn!$E:$E,'Portfolio Analytics'!L$1086,raw_fuel_burn!$C:$C,mainzone)/1000000","v":0.41350667044887901},{"$f":"SUMIFS(raw_fuel_burn!$F:$F,Lists!$Z:$Z,'Portfolio Analytics'!$C1106,raw_fuel_burn!$E:$E,'Portfolio Analytics'!M$1086,raw_fuel_burn!$C:$C,mainzone)/1000000","v":0.42679884190733203},{"$f":"SUMIFS(raw_fuel_burn!$F:$F,Lists!$Z:$Z,'Portfolio Analytics'!$C1106,raw_fuel_burn!$E:$E,'Portfolio Analytics'!N$1086,raw_fuel_burn!$C:$C,mainzone)/1000000","v":0.378065781051869},{"$f":"SUMIFS(raw_fuel_burn!$F:$F,Lists!$Z:$Z,'Portfolio Analytics'!$C1106,raw_fuel_burn!$E:$E,'Portfolio Analytics'!O$1086,raw_fuel_burn!$C:$C,mainzone)/1000000","v":0},{"$f":"SUMIFS(raw_fuel_burn!$F:$F,Lists!$Z:$Z,'Portfolio Analytics'!$C1106,raw_fuel_burn!$E:$E,'Portfolio Analytics'!P$1086,raw_fuel_burn!$C:$C,mainzone)/1000000","v":0.119291544262093},{"$f":"SUMIFS(raw_fuel_burn!$F:$F,Lists!$Z:$Z,'Portfolio Analytics'!$C1106,raw_fuel_burn!$E:$E,'Portfolio Analytics'!Q$1086,raw_fuel_burn!$C:$C,mainzone)/1000000","v":0},{"$f":"SUMIFS(raw_fuel_burn!$F:$F,Lists!$Z:$Z,'Portfolio Analytics'!$C1106,raw_fuel_burn!$E:$E,'Portfolio Analytics'!R$1086,raw_fuel_burn!$C:$C,mainzone)/1000000","v":0},{"$f":"SUMIFS(raw_fuel_burn!$F:$F,Lists!$Z:$Z,'Portfolio Analytics'!$C1106,raw_fuel_burn!$E:$E,'Portfolio Analytics'!S$1086,raw_fuel_burn!$C:$C,mainzone)/1000000","v":0},{"$f":"SUMIFS(raw_fuel_burn!$F:$F,Lists!$Z:$Z,'Portfolio Analytics'!$C1106,raw_fuel_burn!$E:$E,'Portfolio Analytics'!T$1086,raw_fuel_burn!$C:$C,mainzone)/1000000","v":0.228180343589237},{"$f":"SUMIFS(raw_fuel_burn!$F:$F,Lists!$Z:$Z,'Portfolio Analytics'!$C1106,raw_fuel_burn!$E:$E,'Portfolio Analytics'!U$1086,raw_fuel_burn!$C:$C,mainzone)/1000000","v":0},{"$f":"SUMIFS(raw_fuel_burn!$F:$F,Lists!$Z:$Z,'Portfolio Analytics'!$C1106,raw_fuel_burn!$E:$E,'Portfolio Analytics'!V$1086,raw_fuel_burn!$C:$C,mainzone)/1000000","v":0},{"$f":"SUMIFS(raw_fuel_burn!$F:$F,Lists!$Z:$Z,'Portfolio Analytics'!$C1106,raw_fuel_burn!$E:$E,'Portfolio Analytics'!W$1086,raw_fuel_burn!$C:$C,mainzone)/1000000","v":0},{"$f":"SUMIFS(raw_fuel_burn!$F:$F,Lists!$Z:$Z,'Portfolio Analytics'!$C1106,raw_fuel_burn!$E:$E,'Portfolio Analytics'!X$1086,raw_fuel_burn!$C:$C,mainzone)/1000000","v":0},{"$f":"SUMIFS(raw_fuel_burn!$F:$F,Lists!$Z:$Z,'Portfolio Analytics'!$C1106,raw_fuel_burn!$E:$E,'Portfolio Analytics'!Y$1086,raw_fuel_burn!$C:$C,mainzone)/1000000","v":0},{"$f":"SUMIFS(raw_fuel_burn!$F:$F,Lists!$Z:$Z,'Portfolio Analytics'!$C1106,raw_fuel_burn!$E:$E,'Portfolio Analytics'!Z$1086,raw_fuel_burn!$C:$C,mainzone)/1000000","v":0},{"$f":"SUMIFS(raw_fuel_burn!$F:$F,Lists!$Z:$Z,'Portfolio Analytics'!$C1106,raw_fuel_burn!$E:$E,'Portfolio Analytics'!AA$1086,raw_fuel_burn!$C:$C,mainzone)/1000000","v":0},{"$f":"SUMIFS(raw_fuel_burn!$F:$F,Lists!$Z:$Z,'Portfolio Analytics'!$C1106,raw_fuel_burn!$E:$E,'Portfolio Analytics'!AB$1086,raw_fuel_burn!$C:$C,mainzone)/1000000","v":0},{"$f":"SUMIFS(raw_fuel_burn!$F:$F,Lists!$Z:$Z,'Portfolio Analytics'!$C1106,raw_fuel_burn!$E:$E,'Portfolio Analytics'!AC$1086,raw_fuel_burn!$C:$C,mainzone)/1000000","v":0},{"$f":"SUMIFS(raw_fuel_burn!$F:$F,Lists!$Z:$Z,'Portfolio Analytics'!$C1106,raw_fuel_burn!$E:$E,'Portfolio Analytics'!AD$1086,raw_fuel_burn!$C:$C,mainzone)/1000000","v":0},{"$f":"SUMIFS(raw_fuel_burn!$F:$F,Lists!$Z:$Z,'Portfolio Analytics'!$C1106,raw_fuel_burn!$E:$E,'Portfolio Analytics'!AE$1086,raw_fuel_burn!$C:$C,mainzone)/1000000","v":0},{"$f":"SUMIFS(raw_fuel_burn!$F:$F,Lists!$Z:$Z,'Portfolio Analytics'!$C1106,raw_fuel_burn!$E:$E,'Portfolio Analytics'!AF$1086,raw_fuel_burn!$C:$C,mainzone)/1000000","v":0},{"$f":"SUMIFS(raw_fuel_burn!$F:$F,Lists!$Z:$Z,'Portfolio Analytics'!$C1106,raw_fuel_burn!$E:$E,'Portfolio Analytics'!AG$1086,raw_fuel_burn!$C:$C,mainzone)/1000000","v":0},{"$f":"SUMIFS(raw_fuel_burn!$F:$F,Lists!$Z:$Z,'Portfolio Analytics'!$C1106,raw_fuel_burn!$E:$E,'Portfolio Analytics'!AH$1086,raw_fuel_burn!$C:$C,mainzone)/1000000","v":0},{"$f":"SUMIFS(raw_fuel_burn!$F:$F,Lists!$Z:$Z,'Portfolio Analytics'!$C1106,raw_fuel_burn!$E:$E,'Portfolio Analytics'!AI$1086,raw_fuel_burn!$C:$C,mainzone)/1000000","v":0.44675833270884202},{"$f":"SUMIFS(raw_fuel_burn!$F:$F,Lists!$Z:$Z,'Portfolio Analytics'!$C1106,raw_fuel_burn!$E:$E,'Portfolio Analytics'!AJ$1086,raw_fuel_burn!$C:$C,mainzone)/1000000","v":0},{"$f":"SUMIFS(raw_fuel_burn!$F:$F,Lists!$Z:$Z,'Portfolio Analytics'!$C1106,raw_fuel_burn!$E:$E,'Portfolio Analytics'!AK$1086,raw_fuel_burn!$C:$C,mainzone)/1000000","v":0},{"$f":"SUMIFS(raw_fuel_burn!$F:$F,Lists!$Z:$Z,'Portfolio Analytics'!$C1106,raw_fuel_burn!$E:$E,'Portfolio Analytics'!AL$1086,raw_fuel_burn!$C:$C,mainzone)/1000000","v":0},{"$f":"SUMIFS(raw_fuel_burn!$F:$F,Lists!$Z:$Z,'Portfolio Analytics'!$C1106,raw_fuel_burn!$E:$E,'Portfolio Analytics'!AM$1086,raw_fuel_burn!$C:$C,mainzone)/1000000","v":0},{"$f":"SUMIFS(raw_fuel_burn!$F:$F,Lists!$Z:$Z,'Portfolio Analytics'!$C1106,raw_fuel_burn!$E:$E,'Portfolio Analytics'!AN$1086,raw_fuel_burn!$C:$C,mainzone)/1000000","v":0}]
[null,null,"CAISO_ST","TBtu/yr",{"$f":"SUMIFS(raw_fuel_burn!$F:$F,Lists!$Z:$Z,'Portfolio Analytics'!$C1107,raw_fuel_burn!$E:$E,'Portfolio Analytics'!E$1086,raw_fuel_burn!$C:$C,mainzone)/1000000","v":0},{"$f":"SUMIFS(raw_fuel_burn!$F:$F,Lists!$Z:$Z,'Portfolio Analytics'!$C1107,raw_fuel_burn!$E:$E,'Portfolio Analytics'!F$1086,raw_fuel_burn!$C:$C,mainzone)/1000000","v":0},{"$f":"SUMIFS(raw_fuel_burn!$F:$F,Lists!$Z:$Z,'Portfolio Analytics'!$C1107,raw_fuel_burn!$E:$E,'Portfolio Analytics'!G$1086,raw_fuel_burn!$C:$C,mainzone)/1000000","v":0},{"$f":"SUMIFS(raw_fuel_burn!$F:$F,Lists!$Z:$Z,'Portfolio Analytics'!$C1107,raw_fuel_burn!$E:$E,'Portfolio Analytics'!H$1086,raw_fuel_burn!$C:$C,mainzone)/1000000","v":0},{"$f":"SUMIFS(raw_fuel_burn!$F:$F,Lists!$Z:$Z,'Portfolio Analytics'!$C1107,raw_fuel_burn!$E:$E,'Portfolio Analytics'!I$1086,raw_fuel_burn!$C:$C,mainzone)/1000000","v":0},{"$f":"SUMIFS(raw_fuel_burn!$F:$F,Lists!$Z:$Z,'Portfolio Analytics'!$C1107,raw_fuel_burn!$E:$E,'Portfolio Analytics'!J$1086,raw_fuel_burn!$C:$C,mainzone)/1000000","v":0},{"$f":"SUMIFS(raw_fuel_burn!$F:$F,Lists!$Z:$Z,'Portfolio Analytics'!$C1107,raw_fuel_burn!$E:$E,'Portfolio Analytics'!K$1086,raw_fuel_burn!$C:$C,mainzone)/1000000","v":0},{"$f":"SUMIFS(raw_fuel_burn!$F:$F,Lists!$Z:$Z,'Portfolio Analytics'!$C1107,raw_fuel_burn!$E:$E,'Portfolio Analytics'!L$1086,raw_fuel_burn!$C:$C,mainzone)/1000000","v":0},{"$f":"SUMIFS(raw_fuel_burn!$F:$F,Lists!$Z:$Z,'Portfolio Analytics'!$C1107,raw_fuel_burn!$E:$E,'Portfolio Analytics'!M$1086,raw_fuel_burn!$C:$C,mainzone)/1000000","v":0},{"$f":"SUMIFS(raw_fuel_burn!$F:$F,Lists!$Z:$Z,'Portfolio Analytics'!$C1107,raw_fuel_burn!$E:$E,'Portfolio Analytics'!N$1086,raw_fuel_burn!$C:$C,mainzone)/1000000","v":0},{"$f":"SUMIFS(raw_fuel_burn!$F:$F,Lists!$Z:$Z,'Portfolio Analytics'!$C1107,raw_fuel_burn!$E:$E,'Portfolio Analytics'!O$1086,raw_fuel_burn!$C:$C,mainzone)/1000000","v":0},{"$f":"SUMIFS(raw_fuel_burn!$F:$F,Lists!$Z:$Z,'Portfolio Analytics'!$C1107,raw_fuel_burn!$E:$E,'Portfolio Analytics'!P$1086,raw_fuel_burn!$C:$C,mainzone)/1000000","v":0},{"$f":"SUMIFS(raw_fuel_burn!$F:$F,Lists!$Z:$Z,'Portfolio Analytics'!$C1107,raw_fuel_burn!$E:$E,'Portfolio Analytics'!Q$1086,raw_fuel_burn!$C:$C,mainzone)/1000000","v":0},{"$f":"SUMIFS(raw_fuel_burn!$F:$F,Lists!$Z:$Z,'Portfolio Analytics'!$C1107,raw_fuel_burn!$E:$E,'Portfolio Analytics'!R$1086,raw_fuel_burn!$C:$C,mainzone)/1000000","v":0},{"$f":"SUMIFS(raw_fuel_burn!$F:$F,Lists!$Z:$Z,'Portfolio Analytics'!$C1107,raw_fuel_burn!$E:$E,'Portfolio Analytics'!S$1086,raw_fuel_burn!$C:$C,mainzone)/1000000","v":0},{"$f":"SUMIFS(raw_fuel_burn!$F:$F,Lists!$Z:$Z,'Portfolio Analytics'!$C1107,raw_fuel_burn!$E:$E,'Portfolio Analytics'!T$1086,raw_fuel_burn!$C:$C,mainzone)/1000000","v":0},{"$f":"SUMIFS(raw_fuel_burn!$F:$F,Lists!$Z:$Z,'Portfolio Analytics'!$C1107,raw_fuel_burn!$E:$E,'Portfolio Analytics'!U$1086,raw_fuel_burn!$C:$C,mainzone)/1000000","v":0},{"$f":"SUMIFS(raw_fuel_burn!$F:$F,Lists!$Z:$Z,'Portfolio Analytics'!$C1107,raw_fuel_burn!$E:$E,'Portfolio Analytics'!V$1086,raw_fuel_burn!$C:$C,mainzone)/1000000","v":0},{"$f":"SUMIFS(raw_fuel_burn!$F:$F,Lists!$Z:$Z,'Portfolio Analytics'!$C1107,raw_fuel_burn!$E:$E,'Portfolio Analytics'!W$1086,raw_fuel_burn!$C:$C,mainzone)/1000000","v":0},{"$f":"SUMIFS(raw_fuel_burn!$F:$F,Lists!$Z:$Z,'Portfolio Analytics'!$C1107,raw_fuel_burn!$E:$E,'Portfolio Analytics'!X$1086,raw_fuel_burn!$C:$C,mainzone)/1000000","v":0},{"$f":"SUMIFS(raw_fuel_burn!$F:$F,Lists!$Z:$Z,'Portfolio Analytics'!$C1107,raw_fuel_burn!$E:$E,'Portfolio Analytics'!Y$1086,raw_fuel_burn!$C:$C,mainzone)/1000000","v":0},{"$f":"SUMIFS(raw_fuel_burn!$F:$F,Lists!$Z:$Z,'Portfolio Analytics'!$C1107,raw_fuel_burn!$E:$E,'Portfolio Analytics'!Z$1086,raw_fuel_burn!$C:$C,mainzone)/1000000","v":0},{"$f":"SUMIFS(raw_fuel_burn!$F:$F,Lists!$Z:$Z,'Portfolio Analytics'!$C1107,raw_fuel_burn!$E:$E,'Portfolio Analytics'!AA$1086,raw_fuel_burn!$C:$C,mainzone)/1000000","v":0},{"$f":"SUMIFS(raw_fuel_burn!$F:$F,Lists!$Z:$Z,'Portfolio Analytics'!$C1107,raw_fuel_burn!$E:$E,'Portfolio Analytics'!AB$1086,raw_fuel_burn!$C:$C,mainzone)/1000000","v":0},{"$f":"SUMIFS(raw_fuel_burn!$F:$F,Lists!$Z:$Z,'Portfolio Analytics'!$C1107,raw_fuel_burn!$E:$E,'Portfolio Analytics'!AC$1086,raw_fuel_burn!$C:$C,mainzone)/1000000","v":0},{"$f":"SUMIFS(raw_fuel_burn!$F:$F,Lists!$Z:$Z,'Portfolio Analytics'!$C1107,raw_fuel_burn!$E:$E,'Portfolio Analytics'!AD$1086,raw_fuel_burn!$C:$C,mainzone)/1000000","v":0},{"$f":"SUMIFS(raw_fuel_burn!$F:$F,Lists!$Z:$Z,'Portfolio Analytics'!$C1107,raw_fuel_burn!$E:$E,'Portfolio Analytics'!AE$1086,raw_fuel_burn!$C:$C,mainzone)/1000000","v":0},{"$f":"SUMIFS(raw_fuel_burn!$F:$F,Lists!$Z:$Z,'Portfolio Analytics'!$C1107,raw_fuel_burn!$E:$E,'Portfolio Analytics'!AF$1086,raw_fuel_burn!$C:$C,mainzone)/1000000","v":0},{"$f":"SUMIFS(raw_fuel_burn!$F:$F,Lists!$Z:$Z,'Portfolio Analytics'!$C1107,raw_fuel_burn!$E:$E,'Portfolio Analytics'!AG$1086,raw_fuel_burn!$C:$C,mainzone)/1000000","v":0},{"$f":"SUMIFS(raw_fuel_burn!$F:$F,Lists!$Z:$Z,'Portfolio Analytics'!$C1107,raw_fuel_burn!$E:$E,'Portfolio Analytics'!AH$1086,raw_fuel_burn!$C:$C,mainzone)/1000000","v":0},{"$f":"SUMIFS(raw_fuel_burn!$F:$F,Lists!$Z:$Z,'Portfolio Analytics'!$C1107,raw_fuel_burn!$E:$E,'Portfolio Analytics'!AI$1086,raw_fuel_burn!$C:$C,mainzone)/1000000","v":0},{"$f":"SUMIFS(raw_fuel_burn!$F:$F,Lists!$Z:$Z,'Portfolio Analytics'!$C1107,raw_fuel_burn!$E:$E,'Portfolio Analytics'!AJ$1086,raw_fuel_burn!$C:$C,mainzone)/1000000","v":0},{"$f":"SUMIFS(raw_fuel_burn!$F:$F,Lists!$Z:$Z,'Portfolio Analytics'!$C1107,raw_fuel_burn!$E:$E,'Portfolio Analytics'!AK$1086,raw_fuel_burn!$C:$C,mainzone)/1000000","v":0},{"$f":"SUMIFS(raw_fuel_burn!$F:$F,Lists!$Z:$Z,'Portfolio Analytics'!$C1107,raw_fuel_burn!$E:$E,'Portfolio Analytics'!AL$1086,raw_fuel_burn!$C:$C,mainzone)/1000000","v":0},{"$f":"SUMIFS(raw_fuel_burn!$F:$F,Lists!$Z:$Z,'Portfolio Analytics'!$C1107,raw_fuel_burn!$E:$E,'Portfolio Analytics'!AM$1086,raw_fuel_burn!$C:$C,mainzone)/1000000","v":0},{"$f":"SUMIFS(raw_fuel_burn!$F:$F,Lists!$Z:$Z,'Portfolio Analytics'!$C1107,raw_fuel_burn!$E:$E,'Portfolio Analytics'!AN$1086,raw_fuel_burn!$C:$C,mainzone)/1000000","v":0}]
[null,null,"CAISO_Coal","TBtu/yr",{"$f":"SUMIFS(raw_fuel_burn!$F:$F,Lists!$Z:$Z,'Portfolio Analytics'!$C1108,raw_fuel_burn!$E:$E,'Portfolio Analytics'!E$1086,raw_fuel_burn!$C:$C,mainzone)/1000000","v":0},{"$f":"SUMIFS(raw_fuel_burn!$F:$F,Lists!$Z:$Z,'Portfolio Analytics'!$C1108,raw_fuel_burn!$E:$E,'Portfolio Analytics'!F$1086,raw_fuel_burn!$C:$C,mainzone)/1000000","v":0},{"$f":"SUMIFS(raw_fuel_burn!$F:$F,Lists!$Z:$Z,'Portfolio Analytics'!$C1108,raw_fuel_burn!$E:$E,'Portfolio Analytics'!G$1086,raw_fuel_burn!$C:$C,mainzone)/1000000","v":0},{"$f":"SUMIFS(raw_fuel_burn!$F:$F,Lists!$Z:$Z,'Portfolio Analytics'!$C1108,raw_fuel_burn!$E:$E,'Portfolio Analytics'!H$1086,raw_fuel_burn!$C:$C,mainzone)/1000000","v":0},{"$f":"SUMIFS(raw_fuel_burn!$F:$F,Lists!$Z:$Z,'Portfolio Analytics'!$C1108,raw_fuel_burn!$E:$E,'Portfolio Analytics'!I$1086,raw_fuel_burn!$C:$C,mainzone)/1000000","v":0},{"$f":"SUMIFS(raw_fuel_burn!$F:$F,Lists!$Z:$Z,'Portfolio Analytics'!$C1108,raw_fuel_burn!$E:$E,'Portfolio Analytics'!J$1086,raw_fuel_burn!$C:$C,mainzone)/1000000","v":22.020534097585397},{"$f":"SUMIFS(raw_fuel_burn!$F:$F,Lists!$Z:$Z,'Portfolio Analytics'!$C1108,raw_fuel_burn!$E:$E,'Portfolio Analytics'!K$1086,raw_fuel_burn!$C:$C,mainzone)/1000000","v":13.642483371768899},{"$f":"SUMIFS(raw_fuel_burn!$F:$F,Lists!$Z:$Z,'Portfolio Analytics'!$C1108,raw_fuel_burn!$E:$E,'Portfolio Analytics'!L$1086,raw_fuel_burn!$C:$C,mainzone)/1000000","v":7.2771287471050998},{"$f":"SUMIFS(raw_fuel_burn!$F:$F,Lists!$Z:$Z,'Portfolio Analytics'!$C1108,raw_fuel_burn!$E:$E,'Portfolio Analytics'!M$1086,raw_fuel_burn!$C:$C,mainzone)/1000000","v":7.0846946562351603},{"$f":"SUMIFS(raw_fuel_burn!$F:$F,Lists!$Z:$Z,'Portfolio Analytics'!$C1108,raw_fuel_burn!$E:$E,'Portfolio Analytics'!N$1086,raw_fuel_burn!$C:$C,mainzone)/1000000","v":7.0846946562351603},{"$f":"SUMIFS(raw_fuel_burn!$F:$F,Lists!$Z:$Z,'Portfolio Analytics'!$C1108,raw_fuel_burn!$E:$E,'Portfolio Analytics'!O$1086,raw_fuel_burn!$C:$C,mainzone)/1000000","v":0},{"$f":"SUMIFS(raw_fuel_burn!$F:$F,Lists!$Z:$Z,'Portfolio Analytics'!$C1108,raw_fuel_burn!$E:$E,'Portfolio Analytics'!P$1086,raw_fuel_burn!$C:$C,mainzone)/1000000","v":0},{"$f":"SUMIFS(raw_fuel_burn!$F:$F,Lists!$Z:$Z,'Portfolio Analytics'!$C1108,raw_fuel_burn!$E:$E,'Portfolio Analytics'!Q$1086,raw_fuel_burn!$C:$C,mainzone)/1000000","v":0},{"$f":"SUMIFS(raw_fuel_burn!$F:$F,Lists!$Z:$Z,'Portfolio Analytics'!$C1108,raw_fuel_burn!$E:$E,'Portfolio Analytics'!R$1086,raw_fuel_burn!$C:$C,mainzone)/1000000","v":0},{"$f":"SUMIFS(raw_fuel_burn!$F:$F,Lists!$Z:$Z,'Portfolio Analytics'!$C1108,raw_fuel_burn!$E:$E,'Portfolio Analytics'!S$1086,raw_fuel_burn!$C:$C,mainzone)/1000000","v":0},{"$f":"SUMIFS(raw_fuel_burn!$F:$F,Lists!$Z:$Z,'Portfolio Analytics'!$C1108,raw_fuel_burn!$E:$E,'Portfolio Analytics'!T$1086,raw_fuel_burn!$C:$C,mainzone)/1000000","v":0},{"$f":"SUMIFS(raw_fuel_burn!$F:$F,Lists!$Z:$Z,'Portfolio Analytics'!$C1108,raw_fuel_burn!$E:$E,'Portfolio Analytics'!U$1086,raw_fuel_burn!$C:$C,mainzone)/1000000","v":0},{"$f":"SUMIFS(raw_fuel_burn!$F:$F,Lists!$Z:$Z,'Portfolio Analytics'!$C1108,raw_fuel_burn!$E:$E,'Portfolio Analytics'!V$1086,raw_fuel_burn!$C:$C,mainzone)/1000000","v":0},{"$f":"SUMIFS(raw_fuel_burn!$F:$F,Lists!$Z:$Z,'Portfolio Analytics'!$C1108,raw_fuel_burn!$E:$E,'Portfolio Analytics'!W$1086,raw_fuel_burn!$C:$C,mainzone)/1000000","v":0},{"$f":"SUMIFS(raw_fuel_burn!$F:$F,Lists!$Z:$Z,'Portfolio Analytics'!$C1108,raw_fuel_burn!$E:$E,'Portfolio Analytics'!X$1086,raw_fuel_burn!$C:$C,mainzone)/1000000","v":0},{"$f":"SUMIFS(raw_fuel_burn!$F:$F,Lists!$Z:$Z,'Portfolio Analytics'!$C1108,raw_fuel_burn!$E:$E,'Portfolio Analytics'!Y$1086,raw_fuel_burn!$C:$C,mainzone)/1000000","v":0},{"$f":"SUMIFS(raw_fuel_burn!$F:$F,Lists!$Z:$Z,'Portfolio Analytics'!$C1108,raw_fuel_burn!$E:$E,'Portfolio Analytics'!Z$1086,raw_fuel_burn!$C:$C,mainzone)/1000000","v":0},{"$f":"SUMIFS(raw_fuel_burn!$F:$F,Lists!$Z:$Z,'Portfolio Analytics'!$C1108,raw_fuel_burn!$E:$E,'Portfolio Analytics'!AA$1086,raw_fuel_burn!$C:$C,mainzone)/1000000","v":0},{"$f":"SUMIFS(raw_fuel_burn!$F:$F,Lists!$Z:$Z,'Portfolio Analytics'!$C1108,raw_fuel_burn!$E:$E,'Portfolio Analytics'!AB$1086,raw_fuel_burn!$C:$C,mainzone)/1000000","v":0},{"$f":"SUMIFS(raw_fuel_burn!$F:$F,Lists!$Z:$Z,'Portfolio Analytics'!$C1108,raw_fuel_burn!$E:$E,'Portfolio Analytics'!AC$1086,raw_fuel_burn!$C:$C,mainzone)/1000000","v":0},{"$f":"SUMIFS(raw_fuel_burn!$F:$F,Lists!$Z:$Z,'Portfolio Analytics'!$C1108,raw_fuel_burn!$E:$E,'Portfolio Analytics'!AD$1086,raw_fuel_burn!$C:$C,mainzone)/1000000","v":0},{"$f":"SUMIFS(raw_fuel_burn!$F:$F,Lists!$Z:$Z,'Portfolio Analytics'!$C1108,raw_fuel_burn!$E:$E,'Portfolio Analytics'!AE$1086,raw_fuel_burn!$C:$C,mainzone)/1000000","v":0},{"$f":"SUMIFS(raw_fuel_burn!$F:$F,Lists!$Z:$Z,'Portfolio Analytics'!$C1108,raw_fuel_burn!$E:$E,'Portfolio Analytics'!AF$1086,raw_fuel_burn!$C:$C,mainzone)/1000000","v":0},{"$f":"SUMIFS(raw_fuel_burn!$F:$F,Lists!$Z:$Z,'Portfolio Analytics'!$C1108,raw_fuel_burn!$E:$E,'Portfolio Analytics'!AG$1086,raw_fuel_burn!$C:$C,mainzone)/1000000","v":0},{"$f":"SUMIFS(raw_fuel_burn!$F:$F,Lists!$Z:$Z,'Portfolio Analytics'!$C1108,raw_fuel_burn!$E:$E,'Portfolio Analytics'!AH$1086,raw_fuel_burn!$C:$C,mainzone)/1000000","v":0},{"$f":"SUMIFS(raw_fuel_burn!$F:$F,Lists!$Z:$Z,'Portfolio Analytics'!$C1108,raw_fuel_burn!$E:$E,'Portfolio Analytics'!AI$1086,raw_fuel_burn!$C:$C,mainzone)/1000000","v":0},{"$f":"SUMIFS(raw_fuel_burn!$F:$F,Lists!$Z:$Z,'Portfolio Analytics'!$C1108,raw_fuel_burn!$E:$E,'Portfolio Analytics'!AJ$1086,raw_fuel_burn!$C:$C,mainzone)/1000000","v":0},{"$f":"SUMIFS(raw_fuel_burn!$F:$F,Lists!$Z:$Z,'Portfolio Analytics'!$C1108,raw_fuel_burn!$E:$E,'Portfolio Analytics'!AK$1086,raw_fuel_burn!$C:$C,mainzone)/1000000","v":0},{"$f":"SUMIFS(raw_fuel_burn!$F:$F,Lists!$Z:$Z,'Portfolio Analytics'!$C1108,raw_fuel_burn!$E:$E,'Portfolio Analytics'!AL$1086,raw_fuel_burn!$C:$C,mainzone)/1000000","v":0},{"$f":"SUMIFS(raw_fuel_burn!$F:$F,Lists!$Z:$Z,'Portfolio Analytics'!$C1108,raw_fuel_burn!$E:$E,'Portfolio Analytics'!AM$1086,raw_fuel_burn!$C:$C,mainzone)/1000000","v":0},{"$f":"SUMIFS(raw_fuel_burn!$F:$F,Lists!$Z:$Z,'Portfolio Analytics'!$C1108,raw_fuel_burn!$E:$E,'Portfolio Analytics'!AN$1086,raw_fuel_burn!$C:$C,mainzone)/1000000","v":0}]
[null,null,"CAISO_CHP","TBtu/yr",{"$f":"SUMIFS(raw_fuel_burn!$F:$F,Lists!$Z:$Z,'Portfolio Analytics'!$C1109,raw_fuel_burn!$E:$E,'Portfolio Analytics'!E$1086,raw_fuel_burn!$C:$C,mainzone)/1000000","v":0},{"$f":"SUMIFS(raw_fuel_burn!$F:$F,Lists!$Z:$Z,'Portfolio Analytics'!$C1109,raw_fuel_burn!$E:$E,'Portfolio Analytics'!F$1086,raw_fuel_burn!$C:$C,mainzone)/1000000","v":0},{"$f":"SUMIFS(raw_fuel_burn!$F:$F,Lists!$Z:$Z,'Portfolio Analytics'!$C1109,raw_fuel_burn!$E:$E,'Portfolio Analytics'!G$1086,raw_fuel_burn!$C:$C,mainzone)/1000000","v":0},{"$f":"SUMIFS(raw_fuel_burn!$F:$F,Lists!$Z:$Z,'Portfolio Analytics'!$C1109,raw_fuel_burn!$E:$E,'Portfolio Analytics'!H$1086,raw_fuel_burn!$C:$C,mainzone)/1000000","v":0},{"$f":"SUMIFS(raw_fuel_burn!$F:$F,Lists!$Z:$Z,'Portfolio Analytics'!$C1109,raw_fuel_burn!$E:$E,'Portfolio Analytics'!I$1086,raw_fuel_burn!$C:$C,mainzone)/1000000","v":0},{"$f":"SUMIFS(raw_fuel_burn!$F:$F,Lists!$Z:$Z,'Portfolio Analytics'!$C1109,raw_fuel_burn!$E:$E,'Portfolio Analytics'!J$1086,raw_fuel_burn!$C:$C,mainzone)/1000000","v":82.761298890187689},{"$f":"SUMIFS(raw_fuel_burn!$F:$F,Lists!$Z:$Z,'Portfolio Analytics'!$C1109,raw_fuel_burn!$E:$E,'Portfolio Analytics'!K$1086,raw_fuel_burn!$C:$C,mainzone)/1000000","v":82.761298890187689},{"$f":"SUMIFS(raw_fuel_burn!$F:$F,Lists!$Z:$Z,'Portfolio Analytics'!$C1109,raw_fuel_burn!$E:$E,'Portfolio Analytics'!L$1086,raw_fuel_burn!$C:$C,mainzone)/1000000","v":82.761298890187689},{"$f":"SUMIFS(raw_fuel_burn!$F:$F,Lists!$Z:$Z,'Portfolio Analytics'!$C1109,raw_fuel_burn!$E:$E,'Portfolio Analytics'!M$1086,raw_fuel_burn!$C:$C,mainzone)/1000000","v":82.761298890187689},{"$f":"SUMIFS(raw_fuel_burn!$F:$F,Lists!$Z:$Z,'Portfolio Analytics'!$C1109,raw_fuel_burn!$E:$E,'Portfolio Analytics'!N$1086,raw_fuel_burn!$C:$C,mainzone)/1000000","v":82.761298890187689},{"$f":"SUMIFS(raw_fuel_burn!$F:$F,Lists!$Z:$Z,'Portfolio Analytics'!$C1109,raw_fuel_burn!$E:$E,'Portfolio Analytics'!O$1086,raw_fuel_burn!$C:$C,mainzone)/1000000","v":0},{"$f":"SUMIFS(raw_fuel_burn!$F:$F,Lists!$Z:$Z,'Portfolio Analytics'!$C1109,raw_fuel_burn!$E:$E,'Portfolio Analytics'!P$1086,raw_fuel_burn!$C:$C,mainzone)/1000000","v":82.761298890187689},{"$f":"SUMIFS(raw_fuel_burn!$F:$F,Lists!$Z:$Z,'Portfolio Analytics'!$C1109,raw_fuel_burn!$E:$E,'Portfolio Analytics'!Q$1086,raw_fuel_burn!$C:$C,mainzone)/1000000","v":0},{"$f":"SUMIFS(raw_fuel_burn!$F:$F,Lists!$Z:$Z,'Portfolio Analytics'!$C1109,raw_fuel_burn!$E:$E,'Portfolio Analytics'!R$1086,raw_fuel_burn!$C:$C,mainzone)/1000000","v":0},{"$f":"SUMIFS(raw_fuel_burn!$F:$F,Lists!$Z:$Z,'Portfolio Analytics'!$C1109,raw_fuel_burn!$E:$E,'Portfolio Analytics'!S$1086,raw_fuel_burn!$C:$C,mainzone)/1000000","v":0},{"$f":"SUMIFS(raw_fuel_burn!$F:$F,Lists!$Z:$Z,'Portfolio Analytics'!$C1109,raw_fuel_burn!$E:$E,'Portfolio Analytics'!T$1086,raw_fuel_burn!$C:$C,mainzone)/1000000","v":82.761298890187689},{"$f":"SUMIFS(raw_fuel_burn!$F:$F,Lists!$Z:$Z,'Portfolio Analytics'!$C1109,raw_fuel_burn!$E:$E,'Portfolio Analytics'!U$1086,raw_fuel_burn!$C:$C,mainzone)/1000000","v":0},{"$f":"SUMIFS(raw_fuel_burn!$F:$F,Lists!$Z:$Z,'Portfolio Analytics'!$C1109,raw_fuel_burn!$E:$E,'Portfolio Analytics'!V$1086,raw_fuel_burn!$C:$C,mainzone)/1000000","v":0},{"$f":"SUMIFS(raw_fuel_burn!$F:$F,Lists!$Z:$Z,'Portfolio Analytics'!$C1109,raw_fuel_burn!$E:$E,'Portfolio Analytics'!W$1086,raw_fuel_burn!$C:$C,mainzone)/1000000","v":0},{"$f":"SUMIFS(raw_fuel_burn!$F:$F,Lists!$Z:$Z,'Portfolio Analytics'!$C1109,raw_fuel_burn!$E:$E,'Portfolio Analytics'!X$1086,raw_fuel_burn!$C:$C,mainzone)/1000000","v":0},{"$f":"SUMIFS(raw_fuel_burn!$F:$F,Lists!$Z:$Z,'Portfolio Analytics'!$C1109,raw_fuel_burn!$E:$E,'Portfolio Analytics'!Y$1086,raw_fuel_burn!$C:$C,mainzone)/1000000","v":0},{"$f":"SUMIFS(raw_fuel_burn!$F:$F,Lists!$Z:$Z,'Portfolio Analytics'!$C1109,raw_fuel_burn!$E:$E,'Portfolio Analytics'!Z$1086,raw_fuel_burn!$C:$C,mainzone)/1000000","v":0},{"$f":"SUMIFS(raw_fuel_burn!$F:$F,Lists!$Z:$Z,'Portfolio Analytics'!$C1109,raw_fuel_burn!$E:$E,'Portfolio Analytics'!AA$1086,raw_fuel_burn!$C:$C,mainzone)/1000000","v":0},{"$f":"SUMIFS(raw_fuel_burn!$F:$F,Lists!$Z:$Z,'Portfolio Analytics'!$C1109,raw_fuel_burn!$E:$E,'Portfolio Analytics'!AB$1086,raw_fuel_burn!$C:$C,mainzone)/1000000","v":0},{"$f":"SUMIFS(raw_fuel_burn!$F:$F,Lists!$Z:$Z,'Portfolio Analytics'!$C1109,raw_fuel_burn!$E:$E,'Portfolio Analytics'!AC$1086,raw_fuel_burn!$C:$C,mainzone)/1000000","v":0},{"$f":"SUMIFS(raw_fuel_burn!$F:$F,Lists!$Z:$Z,'Portfolio Analytics'!$C1109,raw_fuel_burn!$E:$E,'Portfolio Analytics'!AD$1086,raw_fuel_burn!$C:$C,mainzone)/1000000","v":0},{"$f":"SUMIFS(raw_fuel_burn!$F:$F,Lists!$Z:$Z,'Portfolio Analytics'!$C1109,raw_fuel_burn!$E:$E,'Portfolio Analytics'!AE$1086,raw_fuel_burn!$C:$C,mainzone)/1000000","v":0},{"$f":"SUMIFS(raw_fuel_burn!$F:$F,Lists!$Z:$Z,'Portfolio Analytics'!$C1109,raw_fuel_burn!$E:$E,'Portfolio Analytics'!AF$1086,raw_fuel_burn!$C:$C,mainzone)/1000000","v":0},{"$f":"SUMIFS(raw_fuel_burn!$F:$F,Lists!$Z:$Z,'Portfolio Analytics'!$C1109,raw_fuel_burn!$E:$E,'Portfolio Analytics'!AG$1086,raw_fuel_burn!$C:$C,mainzone)/1000000","v":0},{"$f":"SUMIFS(raw_fuel_burn!$F:$F,Lists!$Z:$Z,'Portfolio Analytics'!$C1109,raw_fuel_burn!$E:$E,'Portfolio Analytics'!AH$1086,raw_fuel_burn!$C:$C,mainzone)/1000000","v":0},{"$f":"SUMIFS(raw_fuel_burn!$F:$F,Lists!$Z:$Z,'Portfolio Analytics'!$C1109,raw_fuel_burn!$E:$E,'Portfolio Analytics'!AI$1086,raw_fuel_burn!$C:$C,mainzone)/1000000","v":0},{"$f":"SUMIFS(raw_fuel_burn!$F:$F,Lists!$Z:$Z,'Portfolio Analytics'!$C1109,raw_fuel_burn!$E:$E,'Portfolio Analytics'!AJ$1086,raw_fuel_burn!$C:$C,mainzone)/1000000","v":0},{"$f":"SUMIFS(raw_fuel_burn!$F:$F,Lists!$Z:$Z,'Portfolio Analytics'!$C1109,raw_fuel_burn!$E:$E,'Portfolio Analytics'!AK$1086,raw_fuel_burn!$C:$C,mainzone)/1000000","v":0},{"$f":"SUMIFS(raw_fuel_burn!$F:$F,Lists!$Z:$Z,'Portfolio Analytics'!$C1109,raw_fuel_burn!$E:$E,'Portfolio Analytics'!AL$1086,raw_fuel_burn!$C:$C,mainzone)/1000000","v":0},{"$f":"SUMIFS(raw_fuel_burn!$F:$F,Lists!$Z:$Z,'Portfolio Analytics'!$C1109,raw_fuel_burn!$E:$E,'Portfolio Analytics'!AM$1086,raw_fuel_burn!$C:$C,mainzone)/1000000","v":0},{"$f":"SUMIFS(raw_fuel_burn!$F:$F,Lists!$Z:$Z,'Portfolio Analytics'!$C1109,raw_fuel_burn!$E:$E,'Portfolio Analytics'!AN$1086,raw_fuel_burn!$C:$C,mainzone)/1000000","v":0}]
[null,null,"PG&E: Total CAISO Fuel/Total Load met by CAISO Resources = Average Heat Rate",null,null,null,null,null,null,{"$f":"SUM(J1100:J1109)/(J218-J216-J217)*1000","v":2.3926504497630146},{"$f":"SUM(K1100:K1109)/(K218-K216-K217)*1000","v":2.2946090701587951},2.0591434162251803,1.9779834966472429,2.0324675687737188,{"$error":"#DIV/0!"},2.1212022667822774,{"$error":"#DIV/0!"},{"$error":"#DIV/0!"},{"$error":"#DIV/0!"},1.6285396344203167,{"$error":"#DIV/0!"},{"$error":"#DIV/0!"},{"$error":"#DIV/0!"},{"$error":"#DIV/0!"},{"$error":"#DIV/0!"},{"$error":"#DIV/0!"},{"$error":"#DIV/0!"},{"$error":"#DIV/0!"},{"$error":"#DIV/0!"},{"$error":"#DIV/0!"},{"$error":"#DIV/0!"},{"$error":"#DIV/0!"},{"$error":"#DIV/0!"},{"$error":"#DIV/0!"},0.49764317249906831]
[null,null,"Fuel Consumption (only starts, portion of above)"]
[null,null,"CAISO_CCGT1","TBtu/yr",{"$f":"SUMIFS(raw_fuel_burn!$I:$I,Lists!$Z:$Z,'Portfolio Analytics'!$C1112,raw_fuel_burn!$E:$E,'Portfolio Analytics'!E$1086,raw_fuel_burn!$C:$C,mainzone)/1000000","v":0},{"$f":"SUMIFS(raw_fuel_burn!$I:$I,Lists!$Z:$Z,'Portfolio Analytics'!$C1112,raw_fuel_burn!$E:$E,'Portfolio Analytics'!F$1086,raw_fuel_burn!$C:$C,mainzone)/1000000","v":0},{"$f":"SUMIFS(raw_fuel_burn!$I:$I,Lists!$Z:$Z,'Portfolio Analytics'!$C1112,raw_fuel_burn!$E:$E,'Portfolio Analytics'!G$1086,raw_fuel_burn!$C:$C,mainzone)/1000000","v":0},{"$f":"SUMIFS(raw_fuel_burn!$I:$I,Lists!$Z:$Z,'Portfolio Analytics'!$C1112,raw_fuel_burn!$E:$E,'Portfolio Analytics'!H$1086,raw_fuel_burn!$C:$C,mainzone)/1000000","v":0},{"$f":"SUMIFS(raw_fuel_burn!$I:$I,Lists!$Z:$Z,'Portfolio Analytics'!$C1112,raw_fuel_burn!$E:$E,'Portfolio Analytics'!I$1086,raw_fuel_burn!$C:$C,mainzone)/1000000","v":0},{"$f":"SUMIFS(raw_fuel_burn!$I:$I,Lists!$Z:$Z,'Portfolio Analytics'!$C1112,raw_fuel_burn!$E:$E,'Portfolio Analytics'!J$1086,raw_fuel_burn!$C:$C,mainzone)/1000000","v":0},{"$f":"SUMIFS(raw_fuel_burn!$I:$I,Lists!$Z:$Z,'Portfolio Analytics'!$C1112,raw_fuel_burn!$E:$E,'Portfolio Analytics'!K$1086,raw_fuel_burn!$C:$C,mainzone)/1000000","v":0},{"$f":"SUMIFS(raw_fuel_burn!$I:$I,Lists!$Z:$Z,'Portfolio Analytics'!$C1112,raw_fuel_burn!$E:$E,'Portfolio Analytics'!L$1086,raw_fuel_burn!$C:$C,mainzone)/1000000","v":0},{"$f":"SUMIFS(raw_fuel_burn!$I:$I,Lists!$Z:$Z,'Portfolio Analytics'!$C1112,raw_fuel_burn!$E:$E,'Portfolio Analytics'!M$1086,raw_fuel_burn!$C:$C,mainzone)/1000000","v":1.9487282026952202E-2},{"$f":"SUMIFS(raw_fuel_burn!$I:$I,Lists!$Z:$Z,'Portfolio Analytics'!$C1112,raw_fuel_burn!$E:$E,'Portfolio Analytics'!N$1086,raw_fuel_burn!$C:$C,mainzone)/1000000","v":5.8162228992907801E-2},{"$f":"SUMIFS(raw_fuel_burn!$I:$I,Lists!$Z:$Z,'Portfolio Analytics'!$C1112,raw_fuel_burn!$E:$E,'Portfolio Analytics'!O$1086,raw_fuel_burn!$C:$C,mainzone)/1000000","v":0},{"$f":"SUMIFS(raw_fuel_burn!$I:$I,Lists!$Z:$Z,'Portfolio Analytics'!$C1112,raw_fuel_burn!$E:$E,'Portfolio Analytics'!P$1086,raw_fuel_burn!$C:$C,mainzone)/1000000","v":9.5850723838463603E-2},{"$f":"SUMIFS(raw_fuel_burn!$I:$I,Lists!$Z:$Z,'Portfolio Analytics'!$C1112,raw_fuel_burn!$E:$E,'Portfolio Analytics'!Q$1086,raw_fuel_burn!$C:$C,mainzone)/1000000","v":0},{"$f":"SUMIFS(raw_fuel_burn!$I:$I,Lists!$Z:$Z,'Portfolio Analytics'!$C1112,raw_fuel_burn!$E:$E,'Portfolio Analytics'!R$1086,raw_fuel_burn!$C:$C,mainzone)/1000000","v":0},{"$f":"SUMIFS(raw_fuel_burn!$I:$I,Lists!$Z:$Z,'Portfolio Analytics'!$C1112,raw_fuel_burn!$E:$E,'Portfolio Analytics'!S$1086,raw_fuel_burn!$C:$C,mainzone)/1000000","v":0},{"$f":"SUMIFS(raw_fuel_burn!$I:$I,Lists!$Z:$Z,'Portfolio Analytics'!$C1112,raw_fuel_burn!$E:$E,'Portfolio Analytics'!T$1086,raw_fuel_burn!$C:$C,mainzone)/1000000","v":2.2115146835475499},{"$f":"SUMIFS(raw_fuel_burn!$I:$I,Lists!$Z:$Z,'Portfolio Analytics'!$C1112,raw_fuel_burn!$E:$E,'Portfolio Analytics'!U$1086,raw_fuel_burn!$C:$C,mainzone)/1000000","v":0},{"$f":"SUMIFS(raw_fuel_burn!$I:$I,Lists!$Z:$Z,'Portfolio Analytics'!$C1112,raw_fuel_burn!$E:$E,'Portfolio Analytics'!V$1086,raw_fuel_burn!$C:$C,mainzone)/1000000","v":0},{"$f":"SUMIFS(raw_fuel_burn!$I:$I,Lists!$Z:$Z,'Portfolio Analytics'!$C1112,raw_fuel_burn!$E:$E,'Portfolio Analytics'!W$1086,raw_fuel_burn!$C:$C,mainzone)/1000000","v":0},{"$f":"SUMIFS(raw_fuel_burn!$I:$I,Lists!$Z:$Z,'Portfolio Analytics'!$C1112,raw_fuel_burn!$E:$E,'Portfolio Analytics'!X$1086,raw_fuel_burn!$C:$C,mainzone)/1000000","v":0},{"$f":"SUMIFS(raw_fuel_burn!$I:$I,Lists!$Z:$Z,'Portfolio Analytics'!$C1112,raw_fuel_burn!$E:$E,'Portfolio Analytics'!Y$1086,raw_fuel_burn!$C:$C,mainzone)/1000000","v":0},{"$f":"SUMIFS(raw_fuel_burn!$I:$I,Lists!$Z:$Z,'Portfolio Analytics'!$C1112,raw_fuel_burn!$E:$E,'Portfolio Analytics'!Z$1086,raw_fuel_burn!$C:$C,mainzone)/1000000","v":0},{"$f":"SUMIFS(raw_fuel_burn!$I:$I,Lists!$Z:$Z,'Portfolio Analytics'!$C1112,raw_fuel_burn!$E:$E,'Portfolio Analytics'!AA$1086,raw_fuel_burn!$C:$C,mainzone)/1000000","v":0},{"$f":"SUMIFS(raw_fuel_burn!$I:$I,Lists!$Z:$Z,'Portfolio Analytics'!$C1112,raw_fuel_burn!$E:$E,'Portfolio Analytics'!AB$1086,raw_fuel_burn!$C:$C,mainzone)/1000000","v":0},{"$f":"SUMIFS(raw_fuel_burn!$I:$I,Lists!$Z:$Z,'Portfolio Analytics'!$C1112,raw_fuel_burn!$E:$E,'Portfolio Analytics'!AC$1086,raw_fuel_burn!$C:$C,mainzone)/1000000","v":0},{"$f":"SUMIFS(raw_fuel_burn!$I:$I,Lists!$Z:$Z,'Portfolio Analytics'!$C1112,raw_fuel_burn!$E:$E,'Portfolio Analytics'!AD$1086,raw_fuel_burn!$C:$C,mainzone)/1000000","v":0},{"$f":"SUMIFS(raw_fuel_burn!$I:$I,Lists!$Z:$Z,'Portfolio Analytics'!$C1112,raw_fuel_burn!$E:$E,'Portfolio Analytics'!AE$1086,raw_fuel_burn!$C:$C,mainzone)/1000000","v":0},{"$f":"SUMIFS(raw_fuel_burn!$I:$I,Lists!$Z:$Z,'Portfolio Analytics'!$C1112,raw_fuel_burn!$E:$E,'Portfolio Analytics'!AF$1086,raw_fuel_burn!$C:$C,mainzone)/1000000","v":0},{"$f":"SUMIFS(raw_fuel_burn!$I:$I,Lists!$Z:$Z,'Portfolio Analytics'!$C1112,raw_fuel_burn!$E:$E,'Portfolio Analytics'!AG$1086,raw_fuel_burn!$C:$C,mainzone)/1000000","v":0},{"$f":"SUMIFS(raw_fuel_burn!$I:$I,Lists!$Z:$Z,'Portfolio Analytics'!$C1112,raw_fuel_burn!$E:$E,'Portfolio Analytics'!AH$1086,raw_fuel_burn!$C:$C,mainzone)/1000000","v":0},{"$f":"SUMIFS(raw_fuel_burn!$I:$I,Lists!$Z:$Z,'Portfolio Analytics'!$C1112,raw_fuel_burn!$E:$E,'Portfolio Analytics'!AI$1086,raw_fuel_burn!$C:$C,mainzone)/1000000","v":0.57890985239572801},{"$f":"SUMIFS(raw_fuel_burn!$I:$I,Lists!$Z:$Z,'Portfolio Analytics'!$C1112,raw_fuel_burn!$E:$E,'Portfolio Analytics'!AJ$1086,raw_fuel_burn!$C:$C,mainzone)/1000000","v":0},{"$f":"SUMIFS(raw_fuel_burn!$I:$I,Lists!$Z:$Z,'Portfolio Analytics'!$C1112,raw_fuel_burn!$E:$E,'Portfolio Analytics'!AK$1086,raw_fuel_burn!$C:$C,mainzone)/1000000","v":0},{"$f":"SUMIFS(raw_fuel_burn!$I:$I,Lists!$Z:$Z,'Portfolio Analytics'!$C1112,raw_fuel_burn!$E:$E,'Portfolio Analytics'!AL$1086,raw_fuel_burn!$C:$C,mainzone)/1000000","v":0},{"$f":"SUMIFS(raw_fuel_burn!$I:$I,Lists!$Z:$Z,'Portfolio Analytics'!$C1112,raw_fuel_burn!$E:$E,'Portfolio Analytics'!AM$1086,raw_fuel_burn!$C:$C,mainzone)/1000000","v":0},{"$f":"SUMIFS(raw_fuel_burn!$I:$I,Lists!$Z:$Z,'Portfolio Analytics'!$C1112,raw_fuel_burn!$E:$E,'Portfolio Analytics'!AN$1086,raw_fuel_burn!$C:$C,mainzone)/1000000","v":0}]
[null,null,"CAISO_CCGT2","TBtu/yr",{"$f":"SUMIFS(raw_fuel_burn!$I:$I,Lists!$Z:$Z,'Portfolio Analytics'!$C1113,raw_fuel_burn!$E:$E,'Portfolio Analytics'!E$1086,raw_fuel_burn!$C:$C,mainzone)/1000000","v":0},{"$f":"SUMIFS(raw_fuel_burn!$I:$I,Lists!$Z:$Z,'Portfolio Analytics'!$C1113,raw_fuel_burn!$E:$E,'Portfolio Analytics'!F$1086,raw_fuel_burn!$C:$C,mainzone)/1000000","v":0},{"$f":"SUMIFS(raw_fuel_burn!$I:$I,Lists!$Z:$Z,'Portfolio Analytics'!$C1113,raw_fuel_burn!$E:$E,'Portfolio Analytics'!G$1086,raw_fuel_burn!$C:$C,mainzone)/1000000","v":0},{"$f":"SUMIFS(raw_fuel_burn!$I:$I,Lists!$Z:$Z,'Portfolio Analytics'!$C1113,raw_fuel_burn!$E:$E,'Portfolio Analytics'!H$1086,raw_fuel_burn!$C:$C,mainzone)/1000000","v":0},{"$f":"SUMIFS(raw_fuel_burn!$I:$I,Lists!$Z:$Z,'Portfolio Analytics'!$C1113,raw_fuel_burn!$E:$E,'Portfolio Analytics'!I$1086,raw_fuel_burn!$C:$C,mainzone)/1000000","v":0},{"$f":"SUMIFS(raw_fuel_burn!$I:$I,Lists!$Z:$Z,'Portfolio Analytics'!$C1113,raw_fuel_burn!$E:$E,'Portfolio Analytics'!J$1086,raw_fuel_burn!$C:$C,mainzone)/1000000","v":0.172813094969898},{"$f":"SUMIFS(raw_fuel_burn!$I:$I,Lists!$Z:$Z,'Portfolio Analytics'!$C1113,raw_fuel_burn!$E:$E,'Portfolio Analytics'!K$1086,raw_fuel_burn!$C:$C,mainzone)/1000000","v":0},{"$f":"SUMIFS(raw_fuel_burn!$I:$I,Lists!$Z:$Z,'Portfolio Analytics'!$C1113,raw_fuel_burn!$E:$E,'Portfolio Analytics'!L$1086,raw_fuel_burn!$C:$C,mainzone)/1000000","v":0},{"$f":"SUMIFS(raw_fuel_burn!$I:$I,Lists!$Z:$Z,'Portfolio Analytics'!$C1113,raw_fuel_burn!$E:$E,'Portfolio Analytics'!M$1086,raw_fuel_burn!$C:$C,mainzone)/1000000","v":0},{"$f":"SUMIFS(raw_fuel_burn!$I:$I,Lists!$Z:$Z,'Portfolio Analytics'!$C1113,raw_fuel_burn!$E:$E,'Portfolio Analytics'!N$1086,raw_fuel_burn!$C:$C,mainzone)/1000000","v":0},{"$f":"SUMIFS(raw_fuel_burn!$I:$I,Lists!$Z:$Z,'Portfolio Analytics'!$C1113,raw_fuel_burn!$E:$E,'Portfolio Analytics'!O$1086,raw_fuel_burn!$C:$C,mainzone)/1000000","v":0},{"$f":"SUMIFS(raw_fuel_burn!$I:$I,Lists!$Z:$Z,'Portfolio Analytics'!$C1113,raw_fuel_burn!$E:$E,'Portfolio Analytics'!P$1086,raw_fuel_burn!$C:$C,mainzone)/1000000","v":0},{"$f":"SUMIFS(raw_fuel_burn!$I:$I,Lists!$Z:$Z,'Portfolio Analytics'!$C1113,raw_fuel_burn!$E:$E,'Portfolio Analytics'!Q$1086,raw_fuel_burn!$C:$C,mainzone)/1000000","v":0},{"$f":"SUMIFS(raw_fuel_burn!$I:$I,Lists!$Z:$Z,'Portfolio Analytics'!$C1113,raw_fuel_burn!$E:$E,'Portfolio Analytics'!R$1086,raw_fuel_burn!$C:$C,mainzone)/1000000","v":0},{"$f":"SUMIFS(raw_fuel_burn!$I:$I,Lists!$Z:$Z,'Portfolio Analytics'!$C1113,raw_fuel_burn!$E:$E,'Portfolio Analytics'!S$1086,raw_fuel_burn!$C:$C,mainzone)/1000000","v":0},{"$f":"SUMIFS(raw_fuel_burn!$I:$I,Lists!$Z:$Z,'Portfolio Analytics'!$C1113,raw_fuel_burn!$E:$E,'Portfolio Analytics'!T$1086,raw_fuel_burn!$C:$C,mainzone)/1000000","v":0},{"$f":"SUMIFS(raw_fuel_burn!$I:$I,Lists!$Z:$Z,'Portfolio Analytics'!$C1113,raw_fuel_burn!$E:$E,'Portfolio Analytics'!U$1086,raw_fuel_burn!$C:$C,mainzone)/1000000","v":0},{"$f":"SUMIFS(raw_fuel_burn!$I:$I,Lists!$Z:$Z,'Portfolio Analytics'!$C1113,raw_fuel_burn!$E:$E,'Portfolio Analytics'!V$1086,raw_fuel_burn!$C:$C,mainzone)/1000000","v":0},{"$f":"SUMIFS(raw_fuel_burn!$I:$I,Lists!$Z:$Z,'Portfolio Analytics'!$C1113,raw_fuel_burn!$E:$E,'Portfolio Analytics'!W$1086,raw_fuel_burn!$C:$C,mainzone)/1000000","v":0},{"$f":"SUMIFS(raw_fuel_burn!$I:$I,Lists!$Z:$Z,'Portfolio Analytics'!$C1113,raw_fuel_burn!$E:$E,'Portfolio Analytics'!X$1086,raw_fuel_burn!$C:$C,mainzone)/1000000","v":0},{"$f":"SUMIFS(raw_fuel_burn!$I:$I,Lists!$Z:$Z,'Portfolio Analytics'!$C1113,raw_fuel_burn!$E:$E,'Portfolio Analytics'!Y$1086,raw_fuel_burn!$C:$C,mainzone)/1000000","v":0},{"$f":"SUMIFS(raw_fuel_burn!$I:$I,Lists!$Z:$Z,'Portfolio Analytics'!$C1113,raw_fuel_burn!$E:$E,'Portfolio Analytics'!Z$1086,raw_fuel_burn!$C:$C,mainzone)/1000000","v":0},{"$f":"SUMIFS(raw_fuel_burn!$I:$I,Lists!$Z:$Z,'Portfolio Analytics'!$C1113,raw_fuel_burn!$E:$E,'Portfolio Analytics'!AA$1086,raw_fuel_burn!$C:$C,mainzone)/1000000","v":0},{"$f":"SUMIFS(raw_fuel_burn!$I:$I,Lists!$Z:$Z,'Portfolio Analytics'!$C1113,raw_fuel_burn!$E:$E,'Portfolio Analytics'!AB$1086,raw_fuel_burn!$C:$C,mainzone)/1000000","v":0},{"$f":"SUMIFS(raw_fuel_burn!$I:$I,Lists!$Z:$Z,'Portfolio Analytics'!$C1113,raw_fuel_burn!$E:$E,'Portfolio Analytics'!AC$1086,raw_fuel_burn!$C:$C,mainzone)/1000000","v":0},{"$f":"SUMIFS(raw_fuel_burn!$I:$I,Lists!$Z:$Z,'Portfolio Analytics'!$C1113,raw_fuel_burn!$E:$E,'Portfolio Analytics'!AD$1086,raw_fuel_burn!$C:$C,mainzone)/1000000","v":0},{"$f":"SUMIFS(raw_fuel_burn!$I:$I,Lists!$Z:$Z,'Portfolio Analytics'!$C1113,raw_fuel_burn!$E:$E,'Portfolio Analytics'!AE$1086,raw_fuel_burn!$C:$C,mainzone)/1000000","v":0},{"$f":"SUMIFS(raw_fuel_burn!$I:$I,Lists!$Z:$Z,'Portfolio Analytics'!$C1113,raw_fuel_burn!$E:$E,'Portfolio Analytics'!AF$1086,raw_fuel_burn!$C:$C,mainzone)/1000000","v":0},{"$f":"SUMIFS(raw_fuel_burn!$I:$I,Lists!$Z:$Z,'Portfolio Analytics'!$C1113,raw_fuel_burn!$E:$E,'Portfolio Analytics'!AG$1086,raw_fuel_burn!$C:$C,mainzone)/1000000","v":0},{"$f":"SUMIFS(raw_fuel_burn!$I:$I,Lists!$Z:$Z,'Portfolio Analytics'!$C1113,raw_fuel_burn!$E:$E,'Portfolio Analytics'!AH$1086,raw_fuel_burn!$C:$C,mainzone)/1000000","v":0},{"$f":"SUMIFS(raw_fuel_burn!$I:$I,Lists!$Z:$Z,'Portfolio Analytics'!$C1113,raw_fuel_burn!$E:$E,'Portfolio Analytics'!AI$1086,raw_fuel_burn!$C:$C,mainzone)/1000000","v":0},{"$f":"SUMIFS(raw_fuel_burn!$I:$I,Lists!$Z:$Z,'Portfolio Analytics'!$C1113,raw_fuel_burn!$E:$E,'Portfolio Analytics'!AJ$1086,raw_fuel_burn!$C:$C,mainzone)/1000000","v":0},{"$f":"SUMIFS(raw_fuel_burn!$I:$I,Lists!$Z:$Z,'Portfolio Analytics'!$C1113,raw_fuel_burn!$E:$E,'Portfolio Analytics'!AK$1086,raw_fuel_burn!$C:$C,mainzone)/1000000","v":0},{"$f":"SUMIFS(raw_fuel_burn!$I:$I,Lists!$Z:$Z,'Portfolio Analytics'!$C1113,raw_fuel_burn!$E:$E,'Portfolio Analytics'!AL$1086,raw_fuel_burn!$C:$C,mainzone)/1000000","v":0},{"$f":"SUMIFS(raw_fuel_burn!$I:$I,Lists!$Z:$Z,'Portfolio Analytics'!$C1113,raw_fuel_burn!$E:$E,'Portfolio Analytics'!AM$1086,raw_fuel_burn!$C:$C,mainzone)/1000000","v":0},{"$f":"SUMIFS(raw_fuel_burn!$I:$I,Lists!$Z:$Z,'Portfolio Analytics'!$C1113,raw_fuel_burn!$E:$E,'Portfolio Analytics'!AN$1086,raw_fuel_burn!$C:$C,mainzone)/1000000","v":0}]
[null,null,"CAISO_Peaker1","TBtu/yr",{"$f":"SUMIFS(raw_fuel_burn!$I:$I,Lists!$Z:$Z,'Portfolio Analytics'!$C1114,raw_fuel_burn!$E:$E,'Portfolio Analytics'!E$1086,raw_fuel_burn!$C:$C,mainzone)/1000000","v":0},{"$f":"SUMIFS(raw_fuel_burn!$I:$I,Lists!$Z:$Z,'Portfolio Analytics'!$C1114,raw_fuel_burn!$E:$E,'Portfolio Analytics'!F$1086,raw_fuel_burn!$C:$C,mainzone)/1000000","v":0},{"$f":"SUMIFS(raw_fuel_burn!$I:$I,Lists!$Z:$Z,'Portfolio Analytics'!$C1114,raw_fuel_burn!$E:$E,'Portfolio Analytics'!G$1086,raw_fuel_burn!$C:$C,mainzone)/1000000","v":0},{"$f":"SUMIFS(raw_fuel_burn!$I:$I,Lists!$Z:$Z,'Portfolio Analytics'!$C1114,raw_fuel_burn!$E:$E,'Portfolio Analytics'!H$1086,raw_fuel_burn!$C:$C,mainzone)/1000000","v":0},{"$f":"SUMIFS(raw_fuel_burn!$I:$I,Lists!$Z:$Z,'Portfolio Analytics'!$C1114,raw_fuel_burn!$E:$E,'Portfolio Analytics'!I$1086,raw_fuel_burn!$C:$C,mainzone)/1000000","v":0},{"$f":"SUMIFS(raw_fuel_burn!$I:$I,Lists!$Z:$Z,'Portfolio Analytics'!$C1114,raw_fuel_burn!$E:$E,'Portfolio Analytics'!J$1086,raw_fuel_burn!$C:$C,mainzone)/1000000","v":1.32839450791432},{"$f":"SUMIFS(raw_fuel_burn!$I:$I,Lists!$Z:$Z,'Portfolio Analytics'!$C1114,raw_fuel_burn!$E:$E,'Portfolio Analytics'!K$1086,raw_fuel_burn!$C:$C,mainzone)/1000000","v":0.76164557550599798},{"$f":"SUMIFS(raw_fuel_burn!$I:$I,Lists!$Z:$Z,'Portfolio Analytics'!$C1114,raw_fuel_burn!$E:$E,'Portfolio Analytics'!L$1086,raw_fuel_burn!$C:$C,mainzone)/1000000","v":0.88999157277041197},{"$f":"SUMIFS(raw_fuel_burn!$I:$I,Lists!$Z:$Z,'Portfolio Analytics'!$C1114,raw_fuel_burn!$E:$E,'Portfolio Analytics'!M$1086,raw_fuel_burn!$C:$C,mainzone)/1000000","v":1.0563905675172802},{"$f":"SUMIFS(raw_fuel_burn!$I:$I,Lists!$Z:$Z,'Portfolio Analytics'!$C1114,raw_fuel_burn!$E:$E,'Portfolio Analytics'!N$1086,raw_fuel_burn!$C:$C,mainzone)/1000000","v":0.86172691124973499},{"$f":"SUMIFS(raw_fuel_burn!$I:$I,Lists!$Z:$Z,'Portfolio Analytics'!$C1114,raw_fuel_burn!$E:$E,'Portfolio Analytics'!O$1086,raw_fuel_burn!$C:$C,mainzone)/1000000","v":0},{"$f":"SUMIFS(raw_fuel_burn!$I:$I,Lists!$Z:$Z,'Portfolio Analytics'!$C1114,raw_fuel_burn!$E:$E,'Portfolio Analytics'!P$1086,raw_fuel_burn!$C:$C,mainzone)/1000000","v":0.12648246957081},{"$f":"SUMIFS(raw_fuel_burn!$I:$I,Lists!$Z:$Z,'Portfolio Analytics'!$C1114,raw_fuel_burn!$E:$E,'Portfolio Analytics'!Q$1086,raw_fuel_burn!$C:$C,mainzone)/1000000","v":0},{"$f":"SUMIFS(raw_fuel_burn!$I:$I,Lists!$Z:$Z,'Portfolio Analytics'!$C1114,raw_fuel_burn!$E:$E,'Portfolio Analytics'!R$1086,raw_fuel_burn!$C:$C,mainzone)/1000000","v":0},{"$f":"SUMIFS(raw_fuel_burn!$I:$I,Lists!$Z:$Z,'Portfolio Analytics'!$C1114,raw_fuel_burn!$E:$E,'Portfolio Analytics'!S$1086,raw_fuel_burn!$C:$C,mainzone)/1000000","v":0},{"$f":"SUMIFS(raw_fuel_burn!$I:$I,Lists!$Z:$Z,'Portfolio Analytics'!$C1114,raw_fuel_burn!$E:$E,'Portfolio Analytics'!T$1086,raw_fuel_burn!$C:$C,mainzone)/1000000","v":0.11674026419796001},{"$f":"SUMIFS(raw_fuel_burn!$I:$I,Lists!$Z:$Z,'Portfolio Analytics'!$C1114,raw_fuel_burn!$E:$E,'Portfolio Analytics'!U$1086,raw_fuel_burn!$C:$C,mainzone)/1000000","v":0},{"$f":"SUMIFS(raw_fuel_burn!$I:$I,Lists!$Z:$Z,'Portfolio Analytics'!$C1114,raw_fuel_burn!$E:$E,'Portfolio Analytics'!V$1086,raw_fuel_burn!$C:$C,mainzone)/1000000","v":0},{"$f":"SUMIFS(raw_fuel_burn!$I:$I,Lists!$Z:$Z,'Portfolio Analytics'!$C1114,raw_fuel_burn!$E:$E,'Portfolio Analytics'!W$1086,raw_fuel_burn!$C:$C,mainzone)/1000000","v":0},{"$f":"SUMIFS(raw_fuel_burn!$I:$I,Lists!$Z:$Z,'Portfolio Analytics'!$C1114,raw_fuel_burn!$E:$E,'Portfolio Analytics'!X$1086,raw_fuel_burn!$C:$C,mainzone)/1000000","v":0},{"$f":"SUMIFS(raw_fuel_burn!$I:$I,Lists!$Z:$Z,'Portfolio Analytics'!$C1114,raw_fuel_burn!$E:$E,'Portfolio Analytics'!Y$1086,raw_fuel_burn!$C:$C,mainzone)/1000000","v":0},{"$f":"SUMIFS(raw_fuel_burn!$I:$I,Lists!$Z:$Z,'Portfolio Analytics'!$C1114,raw_fuel_burn!$E:$E,'Portfolio Analytics'!Z$1086,raw_fuel_burn!$C:$C,mainzone)/1000000","v":0},{"$f":"SUMIFS(raw_fuel_burn!$I:$I,Lists!$Z:$Z,'Portfolio Analytics'!$C1114,raw_fuel_burn!$E:$E,'Portfolio Analytics'!AA$1086,raw_fuel_burn!$C:$C,mainzone)/1000000","v":0},{"$f":"SUMIFS(raw_fuel_burn!$I:$I,Lists!$Z:$Z,'Portfolio Analytics'!$C1114,raw_fuel_burn!$E:$E,'Portfolio Analytics'!AB$1086,raw_fuel_burn!$C:$C,mainzone)/1000000","v":0},{"$f":"SUMIFS(raw_fuel_burn!$I:$I,Lists!$Z:$Z,'Portfolio Analytics'!$C1114,raw_fuel_burn!$E:$E,'Portfolio Analytics'!AC$1086,raw_fuel_burn!$C:$C,mainzone)/1000000","v":0},{"$f":"SUMIFS(raw_fuel_burn!$I:$I,Lists!$Z:$Z,'Portfolio Analytics'!$C1114,raw_fuel_burn!$E:$E,'Portfolio Analytics'!AD$1086,raw_fuel_burn!$C:$C,mainzone)/1000000","v":0},{"$f":"SUMIFS(raw_fuel_burn!$I:$I,Lists!$Z:$Z,'Portfolio Analytics'!$C1114,raw_fuel_burn!$E:$E,'Portfolio Analytics'!AE$1086,raw_fuel_burn!$C:$C,mainzone)/1000000","v":0},{"$f":"SUMIFS(raw_fuel_burn!$I:$I,Lists!$Z:$Z,'Portfolio Analytics'!$C1114,raw_fuel_burn!$E:$E,'Portfolio Analytics'!AF$1086,raw_fuel_burn!$C:$C,mainzone)/1000000","v":0},{"$f":"SUMIFS(raw_fuel_burn!$I:$I,Lists!$Z:$Z,'Portfolio Analytics'!$C1114,raw_fuel_burn!$E:$E,'Portfolio Analytics'!AG$1086,raw_fuel_burn!$C:$C,mainzone)/1000000","v":0},{"$f":"SUMIFS(raw_fuel_burn!$I:$I,Lists!$Z:$Z,'Portfolio Analytics'!$C1114,raw_fuel_burn!$E:$E,'Portfolio Analytics'!AH$1086,raw_fuel_burn!$C:$C,mainzone)/1000000","v":0},{"$f":"SUMIFS(raw_fuel_burn!$I:$I,Lists!$Z:$Z,'Portfolio Analytics'!$C1114,raw_fuel_burn!$E:$E,'Portfolio Analytics'!AI$1086,raw_fuel_burn!$C:$C,mainzone)/1000000","v":0},{"$f":"SUMIFS(raw_fuel_burn!$I:$I,Lists!$Z:$Z,'Portfolio Analytics'!$C1114,raw_fuel_burn!$E:$E,'Portfolio Analytics'!AJ$1086,raw_fuel_burn!$C:$C,mainzone)/1000000","v":0},{"$f":"SUMIFS(raw_fuel_burn!$I:$I,Lists!$Z:$Z,'Portfolio Analytics'!$C1114,raw_fuel_burn!$E:$E,'Portfolio Analytics'!AK$1086,raw_fuel_burn!$C:$C,mainzone)/1000000","v":0},{"$f":"SUMIFS(raw_fuel_burn!$I:$I,Lists!$Z:$Z,'Portfolio Analytics'!$C1114,raw_fuel_burn!$E:$E,'Portfolio Analytics'!AL$1086,raw_fuel_burn!$C:$C,mainzone)/1000000","v":0},{"$f":"SUMIFS(raw_fuel_burn!$I:$I,Lists!$Z:$Z,'Portfolio Analytics'!$C1114,raw_fuel_burn!$E:$E,'Portfolio Analytics'!AM$1086,raw_fuel_burn!$C:$C,mainzone)/1000000","v":0},{"$f":"SUMIFS(raw_fuel_burn!$I:$I,Lists!$Z:$Z,'Portfolio Analytics'!$C1114,raw_fuel_burn!$E:$E,'Portfolio Analytics'!AN$1086,raw_fuel_burn!$C:$C,mainzone)/1000000","v":0}]
[null,null,"CAISO_Peaker2","TBtu/yr",{"$f":"SUMIFS(raw_fuel_burn!$I:$I,Lists!$Z:$Z,'Portfolio Analytics'!$C1115,raw_fuel_burn!$E:$E,'Portfolio Analytics'!E$1086,raw_fuel_burn!$C:$C,mainzone)/1000000","v":0},{"$f":"SUMIFS(raw_fuel_burn!$I:$I,Lists!$Z:$Z,'Portfolio Analytics'!$C1115,raw_fuel_burn!$E:$E,'Portfolio Analytics'!F$1086,raw_fuel_burn!$C:$C,mainzone)/1000000","v":0},{"$f":"SUMIFS(raw_fuel_burn!$I:$I,Lists!$Z:$Z,'Portfolio Analytics'!$C1115,raw_fuel_burn!$E:$E,'Portfolio Analytics'!G$1086,raw_fuel_burn!$C:$C,mainzone)/1000000","v":0},{"$f":"SUMIFS(raw_fuel_burn!$I:$I,Lists!$Z:$Z,'Portfolio Analytics'!$C1115,raw_fuel_burn!$E:$E,'Portfolio Analytics'!H$1086,raw_fuel_burn!$C:$C,mainzone)/1000000","v":0},{"$f":"SUMIFS(raw_fuel_burn!$I:$I,Lists!$Z:$Z,'Portfolio Analytics'!$C1115,raw_fuel_burn!$E:$E,'Portfolio Analytics'!I$1086,raw_fuel_burn!$C:$C,mainzone)/1000000","v":0},{"$f":"SUMIFS(raw_fuel_burn!$I:$I,Lists!$Z:$Z,'Portfolio Analytics'!$C1115,raw_fuel_burn!$E:$E,'Portfolio Analytics'!J$1086,raw_fuel_burn!$C:$C,mainzone)/1000000","v":0},{"$f":"SUMIFS(raw_fuel_burn!$I:$I,Lists!$Z:$Z,'Portfolio Analytics'!$C1115,raw_fuel_burn!$E:$E,'Portfolio Analytics'!K$1086,raw_fuel_burn!$C:$C,mainzone)/1000000","v":0},{"$f":"SUMIFS(raw_fuel_burn!$I:$I,Lists!$Z:$Z,'Portfolio Analytics'!$C1115,raw_fuel_burn!$E:$E,'Portfolio Analytics'!L$1086,raw_fuel_burn!$C:$C,mainzone)/1000000","v":0},{"$f":"SUMIFS(raw_fuel_burn!$I:$I,Lists!$Z:$Z,'Portfolio Analytics'!$C1115,raw_fuel_burn!$E:$E,'Portfolio Analytics'!M$1086,raw_fuel_burn!$C:$C,mainzone)/1000000","v":0},{"$f":"SUMIFS(raw_fuel_burn!$I:$I,Lists!$Z:$Z,'Portfolio Analytics'!$C1115,raw_fuel_burn!$E:$E,'Portfolio Analytics'!N$1086,raw_fuel_burn!$C:$C,mainzone)/1000000","v":0},{"$f":"SUMIFS(raw_fuel_burn!$I:$I,Lists!$Z:$Z,'Portfolio Analytics'!$C1115,raw_fuel_burn!$E:$E,'Portfolio Analytics'!O$1086,raw_fuel_burn!$C:$C,mainzone)/1000000","v":0},{"$f":"SUMIFS(raw_fuel_burn!$I:$I,Lists!$Z:$Z,'Portfolio Analytics'!$C1115,raw_fuel_burn!$E:$E,'Portfolio Analytics'!P$1086,raw_fuel_burn!$C:$C,mainzone)/1000000","v":0},{"$f":"SUMIFS(raw_fuel_burn!$I:$I,Lists!$Z:$Z,'Portfolio Analytics'!$C1115,raw_fuel_burn!$E:$E,'Portfolio Analytics'!Q$1086,raw_fuel_burn!$C:$C,mainzone)/1000000","v":0},{"$f":"SUMIFS(raw_fuel_burn!$I:$I,Lists!$Z:$Z,'Portfolio Analytics'!$C1115,raw_fuel_burn!$E:$E,'Portfolio Analytics'!R$1086,raw_fuel_burn!$C:$C,mainzone)/1000000","v":0},{"$f":"SUMIFS(raw_fuel_burn!$I:$I,Lists!$Z:$Z,'Portfolio Analytics'!$C1115,raw_fuel_burn!$E:$E,'Portfolio Analytics'!S$1086,raw_fuel_burn!$C:$C,mainzone)/1000000","v":0},{"$f":"SUMIFS(raw_fuel_burn!$I:$I,Lists!$Z:$Z,'Portfolio Analytics'!$C1115,raw_fuel_burn!$E:$E,'Portfolio Analytics'!T$1086,raw_fuel_burn!$C:$C,mainzone)/1000000","v":0},{"$f":"SUMIFS(raw_fuel_burn!$I:$I,Lists!$Z:$Z,'Portfolio Analytics'!$C1115,raw_fuel_burn!$E:$E,'Portfolio Analytics'!U$1086,raw_fuel_burn!$C:$C,mainzone)/1000000","v":0},{"$f":"SUMIFS(raw_fuel_burn!$I:$I,Lists!$Z:$Z,'Portfolio Analytics'!$C1115,raw_fuel_burn!$E:$E,'Portfolio Analytics'!V$1086,raw_fuel_burn!$C:$C,mainzone)/1000000","v":0},{"$f":"SUMIFS(raw_fuel_burn!$I:$I,Lists!$Z:$Z,'Portfolio Analytics'!$C1115,raw_fuel_burn!$E:$E,'Portfolio Analytics'!W$1086,raw_fuel_burn!$C:$C,mainzone)/1000000","v":0},{"$f":"SUMIFS(raw_fuel_burn!$I:$I,Lists!$Z:$Z,'Portfolio Analytics'!$C1115,raw_fuel_burn!$E:$E,'Portfolio Analytics'!X$1086,raw_fuel_burn!$C:$C,mainzone)/1000000","v":0},{"$f":"SUMIFS(raw_fuel_burn!$I:$I,Lists!$Z:$Z,'Portfolio Analytics'!$C1115,raw_fuel_burn!$E:$E,'Portfolio Analytics'!Y$1086,raw_fuel_burn!$C:$C,mainzone)/1000000","v":0},{"$f":"SUMIFS(raw_fuel_burn!$I:$I,Lists!$Z:$Z,'Portfolio Analytics'!$C1115,raw_fuel_burn!$E:$E,'Portfolio Analytics'!Z$1086,raw_fuel_burn!$C:$C,mainzone)/1000000","v":0},{"$f":"SUMIFS(raw_fuel_burn!$I:$I,Lists!$Z:$Z,'Portfolio Analytics'!$C1115,raw_fuel_burn!$E:$E,'Portfolio Analytics'!AA$1086,raw_fuel_burn!$C:$C,mainzone)/1000000","v":0},{"$f":"SUMIFS(raw_fuel_burn!$I:$I,Lists!$Z:$Z,'Portfolio Analytics'!$C1115,raw_fuel_burn!$E:$E,'Portfolio Analytics'!AB$1086,raw_fuel_burn!$C:$C,mainzone)/1000000","v":0},{"$f":"SUMIFS(raw_fuel_burn!$I:$I,Lists!$Z:$Z,'Portfolio Analytics'!$C1115,raw_fuel_burn!$E:$E,'Portfolio Analytics'!AC$1086,raw_fuel_burn!$C:$C,mainzone)/1000000","v":0},{"$f":"SUMIFS(raw_fuel_burn!$I:$I,Lists!$Z:$Z,'Portfolio Analytics'!$C1115,raw_fuel_burn!$E:$E,'Portfolio Analytics'!AD$1086,raw_fuel_burn!$C:$C,mainzone)/1000000","v":0},{"$f":"SUMIFS(raw_fuel_burn!$I:$I,Lists!$Z:$Z,'Portfolio Analytics'!$C1115,raw_fuel_burn!$E:$E,'Portfolio Analytics'!AE$1086,raw_fuel_burn!$C:$C,mainzone)/1000000","v":0},{"$f":"SUMIFS(raw_fuel_burn!$I:$I,Lists!$Z:$Z,'Portfolio Analytics'!$C1115,raw_fuel_burn!$E:$E,'Portfolio Analytics'!AF$1086,raw_fuel_burn!$C:$C,mainzone)/1000000","v":0},{"$f":"SUMIFS(raw_fuel_burn!$I:$I,Lists!$Z:$Z,'Portfolio Analytics'!$C1115,raw_fuel_burn!$E:$E,'Portfolio Analytics'!AG$1086,raw_fuel_burn!$C:$C,mainzone)/1000000","v":0},{"$f":"SUMIFS(raw_fuel_burn!$I:$I,Lists!$Z:$Z,'Portfolio Analytics'!$C1115,raw_fuel_burn!$E:$E,'Portfolio Analytics'!AH$1086,raw_fuel_burn!$C:$C,mainzone)/1000000","v":0},{"$f":"SUMIFS(raw_fuel_burn!$I:$I,Lists!$Z:$Z,'Portfolio Analytics'!$C1115,raw_fuel_burn!$E:$E,'Portfolio Analytics'!AI$1086,raw_fuel_burn!$C:$C,mainzone)/1000000","v":0},{"$f":"SUMIFS(raw_fuel_burn!$I:$I,Lists!$Z:$Z,'Portfolio Analytics'!$C1115,raw_fuel_burn!$E:$E,'Portfolio Analytics'!AJ$1086,raw_fuel_burn!$C:$C,mainzone)/1000000","v":0},{"$f":"SUMIFS(raw_fuel_burn!$I:$I,Lists!$Z:$Z,'Portfolio Analytics'!$C1115,raw_fuel_burn!$E:$E,'Portfolio Analytics'!AK$1086,raw_fuel_burn!$C:$C,mainzone)/1000000","v":0},{"$f":"SUMIFS(raw_fuel_burn!$I:$I,Lists!$Z:$Z,'Portfolio Analytics'!$C1115,raw_fuel_burn!$E:$E,'Portfolio Analytics'!AL$1086,raw_fuel_burn!$C:$C,mainzone)/1000000","v":0},{"$f":"SUMIFS(raw_fuel_burn!$I:$I,Lists!$Z:$Z,'Portfolio Analytics'!$C1115,raw_fuel_burn!$E:$E,'Portfolio Analytics'!AM$1086,raw_fuel_burn!$C:$C,mainzone)/1000000","v":0},{"$f":"SUMIFS(raw_fuel_burn!$I:$I,Lists!$Z:$Z,'Portfolio Analytics'!$C1115,raw_fuel_burn!$E:$E,'Portfolio Analytics'!AN$1086,raw_fuel_burn!$C:$C,mainzone)/1000000","v":0}]
[null,null,"CAISO_Advanced_CCGT","TBtu/yr",{"$f":"SUMIFS(raw_fuel_burn!$I:$I,Lists!$Z:$Z,'Portfolio Analytics'!$C1116,raw_fuel_burn!$E:$E,'Portfolio Analytics'!E$1086,raw_fuel_burn!$C:$C,mainzone)/1000000","v":0},{"$f":"SUMIFS(raw_fuel_burn!$I:$I,Lists!$Z:$Z,'Portfolio Analytics'!$C1116,raw_fuel_burn!$E:$E,'Portfolio Analytics'!F$1086,raw_fuel_burn!$C:$C,mainzone)/1000000","v":0},{"$f":"SUMIFS(raw_fuel_burn!$I:$I,Lists!$Z:$Z,'Portfolio Analytics'!$C1116,raw_fuel_burn!$E:$E,'Portfolio Analytics'!G$1086,raw_fuel_burn!$C:$C,mainzone)/1000000","v":0},{"$f":"SUMIFS(raw_fuel_burn!$I:$I,Lists!$Z:$Z,'Portfolio Analytics'!$C1116,raw_fuel_burn!$E:$E,'Portfolio Analytics'!H$1086,raw_fuel_burn!$C:$C,mainzone)/1000000","v":0},{"$f":"SUMIFS(raw_fuel_burn!$I:$I,Lists!$Z:$Z,'Portfolio Analytics'!$C1116,raw_fuel_burn!$E:$E,'Portfolio Analytics'!I$1086,raw_fuel_burn!$C:$C,mainzone)/1000000","v":0},{"$f":"SUMIFS(raw_fuel_burn!$I:$I,Lists!$Z:$Z,'Portfolio Analytics'!$C1116,raw_fuel_burn!$E:$E,'Portfolio Analytics'!J$1086,raw_fuel_burn!$C:$C,mainzone)/1000000","v":0},{"$f":"SUMIFS(raw_fuel_burn!$I:$I,Lists!$Z:$Z,'Portfolio Analytics'!$C1116,raw_fuel_burn!$E:$E,'Portfolio Analytics'!K$1086,raw_fuel_burn!$C:$C,mainzone)/1000000","v":0},{"$f":"SUMIFS(raw_fuel_burn!$I:$I,Lists!$Z:$Z,'Portfolio Analytics'!$C1116,raw_fuel_burn!$E:$E,'Portfolio Analytics'!L$1086,raw_fuel_burn!$C:$C,mainzone)/1000000","v":0},{"$f":"SUMIFS(raw_fuel_burn!$I:$I,Lists!$Z:$Z,'Portfolio Analytics'!$C1116,raw_fuel_burn!$E:$E,'Portfolio Analytics'!M$1086,raw_fuel_burn!$C:$C,mainzone)/1000000","v":0},{"$f":"SUMIFS(raw_fuel_burn!$I:$I,Lists!$Z:$Z,'Portfolio Analytics'!$C1116,raw_fuel_burn!$E:$E,'Portfolio Analytics'!N$1086,raw_fuel_burn!$C:$C,mainzone)/1000000","v":0},{"$f":"SUMIFS(raw_fuel_burn!$I:$I,Lists!$Z:$Z,'Portfolio Analytics'!$C1116,raw_fuel_burn!$E:$E,'Portfolio Analytics'!O$1086,raw_fuel_burn!$C:$C,mainzone)/1000000","v":0},{"$f":"SUMIFS(raw_fuel_burn!$I:$I,Lists!$Z:$Z,'Portfolio Analytics'!$C1116,raw_fuel_burn!$E:$E,'Portfolio Analytics'!P$1086,raw_fuel_burn!$C:$C,mainzone)/1000000","v":0},{"$f":"SUMIFS(raw_fuel_burn!$I:$I,Lists!$Z:$Z,'Portfolio Analytics'!$C1116,raw_fuel_burn!$E:$E,'Portfolio Analytics'!Q$1086,raw_fuel_burn!$C:$C,mainzone)/1000000","v":0},{"$f":"SUMIFS(raw_fuel_burn!$I:$I,Lists!$Z:$Z,'Portfolio Analytics'!$C1116,raw_fuel_burn!$E:$E,'Portfolio Analytics'!R$1086,raw_fuel_burn!$C:$C,mainzone)/1000000","v":0},{"$f":"SUMIFS(raw_fuel_burn!$I:$I,Lists!$Z:$Z,'Portfolio Analytics'!$C1116,raw_fuel_burn!$E:$E,'Portfolio Analytics'!S$1086,raw_fuel_burn!$C:$C,mainzone)/1000000","v":0},{"$f":"SUMIFS(raw_fuel_burn!$I:$I,Lists!$Z:$Z,'Portfolio Analytics'!$C1116,raw_fuel_burn!$E:$E,'Portfolio Analytics'!T$1086,raw_fuel_burn!$C:$C,mainzone)/1000000","v":0},{"$f":"SUMIFS(raw_fuel_burn!$I:$I,Lists!$Z:$Z,'Portfolio Analytics'!$C1116,raw_fuel_burn!$E:$E,'Portfolio Analytics'!U$1086,raw_fuel_burn!$C:$C,mainzone)/1000000","v":0},{"$f":"SUMIFS(raw_fuel_burn!$I:$I,Lists!$Z:$Z,'Portfolio Analytics'!$C1116,raw_fuel_burn!$E:$E,'Portfolio Analytics'!V$1086,raw_fuel_burn!$C:$C,mainzone)/1000000","v":0},{"$f":"SUMIFS(raw_fuel_burn!$I:$I,Lists!$Z:$Z,'Portfolio Analytics'!$C1116,raw_fuel_burn!$E:$E,'Portfolio Analytics'!W$1086,raw_fuel_burn!$C:$C,mainzone)/1000000","v":0},{"$f":"SUMIFS(raw_fuel_burn!$I:$I,Lists!$Z:$Z,'Portfolio Analytics'!$C1116,raw_fuel_burn!$E:$E,'Portfolio Analytics'!X$1086,raw_fuel_burn!$C:$C,mainzone)/1000000","v":0},{"$f":"SUMIFS(raw_fuel_burn!$I:$I,Lists!$Z:$Z,'Portfolio Analytics'!$C1116,raw_fuel_burn!$E:$E,'Portfolio Analytics'!Y$1086,raw_fuel_burn!$C:$C,mainzone)/1000000","v":0},{"$f":"SUMIFS(raw_fuel_burn!$I:$I,Lists!$Z:$Z,'Portfolio Analytics'!$C1116,raw_fuel_burn!$E:$E,'Portfolio Analytics'!Z$1086,raw_fuel_burn!$C:$C,mainzone)/1000000","v":0},{"$f":"SUMIFS(raw_fuel_burn!$I:$I,Lists!$Z:$Z,'Portfolio Analytics'!$C1116,raw_fuel_burn!$E:$E,'Portfolio Analytics'!AA$1086,raw_fuel_burn!$C:$C,mainzone)/1000000","v":0},{"$f":"SUMIFS(raw_fuel_burn!$I:$I,Lists!$Z:$Z,'Portfolio Analytics'!$C1116,raw_fuel_burn!$E:$E,'Portfolio Analytics'!AB$1086,raw_fuel_burn!$C:$C,mainzone)/1000000","v":0},{"$f":"SUMIFS(raw_fuel_burn!$I:$I,Lists!$Z:$Z,'Portfolio Analytics'!$C1116,raw_fuel_burn!$E:$E,'Portfolio Analytics'!AC$1086,raw_fuel_burn!$C:$C,mainzone)/1000000","v":0},{"$f":"SUMIFS(raw_fuel_burn!$I:$I,Lists!$Z:$Z,'Portfolio Analytics'!$C1116,raw_fuel_burn!$E:$E,'Portfolio Analytics'!AD$1086,raw_fuel_burn!$C:$C,mainzone)/1000000","v":0},{"$f":"SUMIFS(raw_fuel_burn!$I:$I,Lists!$Z:$Z,'Portfolio Analytics'!$C1116,raw_fuel_burn!$E:$E,'Portfolio Analytics'!AE$1086,raw_fuel_burn!$C:$C,mainzone)/1000000","v":0},{"$f":"SUMIFS(raw_fuel_burn!$I:$I,Lists!$Z:$Z,'Portfolio Analytics'!$C1116,raw_fuel_burn!$E:$E,'Portfolio Analytics'!AF$1086,raw_fuel_burn!$C:$C,mainzone)/1000000","v":0},{"$f":"SUMIFS(raw_fuel_burn!$I:$I,Lists!$Z:$Z,'Portfolio Analytics'!$C1116,raw_fuel_burn!$E:$E,'Portfolio Analytics'!AG$1086,raw_fuel_burn!$C:$C,mainzone)/1000000","v":0},{"$f":"SUMIFS(raw_fuel_burn!$I:$I,Lists!$Z:$Z,'Portfolio Analytics'!$C1116,raw_fuel_burn!$E:$E,'Portfolio Analytics'!AH$1086,raw_fuel_burn!$C:$C,mainzone)/1000000","v":0},{"$f":"SUMIFS(raw_fuel_burn!$I:$I,Lists!$Z:$Z,'Portfolio Analytics'!$C1116,raw_fuel_burn!$E:$E,'Portfolio Analytics'!AI$1086,raw_fuel_burn!$C:$C,mainzone)/1000000","v":0},{"$f":"SUMIFS(raw_fuel_burn!$I:$I,Lists!$Z:$Z,'Portfolio Analytics'!$C1116,raw_fuel_burn!$E:$E,'Portfolio Analytics'!AJ$1086,raw_fuel_burn!$C:$C,mainzone)/1000000","v":0},{"$f":"SUMIFS(raw_fuel_burn!$I:$I,Lists!$Z:$Z,'Portfolio Analytics'!$C1116,raw_fuel_burn!$E:$E,'Portfolio Analytics'!AK$1086,raw_fuel_burn!$C:$C,mainzone)/1000000","v":0},{"$f":"SUMIFS(raw_fuel_burn!$I:$I,Lists!$Z:$Z,'Portfolio Analytics'!$C1116,raw_fuel_burn!$E:$E,'Portfolio Analytics'!AL$1086,raw_fuel_burn!$C:$C,mainzone)/1000000","v":0},{"$f":"SUMIFS(raw_fuel_burn!$I:$I,Lists!$Z:$Z,'Portfolio Analytics'!$C1116,raw_fuel_burn!$E:$E,'Portfolio Analytics'!AM$1086,raw_fuel_burn!$C:$C,mainzone)/1000000","v":0},{"$f":"SUMIFS(raw_fuel_burn!$I:$I,Lists!$Z:$Z,'Portfolio Analytics'!$C1116,raw_fuel_burn!$E:$E,'Portfolio Analytics'!AN$1086,raw_fuel_burn!$C:$C,mainzone)/1000000","v":0}]
[null,null,"CAISO_Aero_CT","TBtu/yr",{"$f":"SUMIFS(raw_fuel_burn!$I:$I,Lists!$Z:$Z,'Portfolio Analytics'!$C1117,raw_fuel_burn!$E:$E,'Portfolio Analytics'!E$1086,raw_fuel_burn!$C:$C,mainzone)/1000000","v":0},{"$f":"SUMIFS(raw_fuel_burn!$I:$I,Lists!$Z:$Z,'Portfolio Analytics'!$C1117,raw_fuel_burn!$E:$E,'Portfolio Analytics'!F$1086,raw_fuel_burn!$C:$C,mainzone)/1000000","v":0},{"$f":"SUMIFS(raw_fuel_burn!$I:$I,Lists!$Z:$Z,'Portfolio Analytics'!$C1117,raw_fuel_burn!$E:$E,'Portfolio Analytics'!G$1086,raw_fuel_burn!$C:$C,mainzone)/1000000","v":0},{"$f":"SUMIFS(raw_fuel_burn!$I:$I,Lists!$Z:$Z,'Portfolio Analytics'!$C1117,raw_fuel_burn!$E:$E,'Portfolio Analytics'!H$1086,raw_fuel_burn!$C:$C,mainzone)/1000000","v":0},{"$f":"SUMIFS(raw_fuel_burn!$I:$I,Lists!$Z:$Z,'Portfolio Analytics'!$C1117,raw_fuel_burn!$E:$E,'Portfolio Analytics'!I$1086,raw_fuel_burn!$C:$C,mainzone)/1000000","v":0},{"$f":"SUMIFS(raw_fuel_burn!$I:$I,Lists!$Z:$Z,'Portfolio Analytics'!$C1117,raw_fuel_burn!$E:$E,'Portfolio Analytics'!J$1086,raw_fuel_burn!$C:$C,mainzone)/1000000","v":0},{"$f":"SUMIFS(raw_fuel_burn!$I:$I,Lists!$Z:$Z,'Portfolio Analytics'!$C1117,raw_fuel_burn!$E:$E,'Portfolio Analytics'!K$1086,raw_fuel_burn!$C:$C,mainzone)/1000000","v":0},{"$f":"SUMIFS(raw_fuel_burn!$I:$I,Lists!$Z:$Z,'Portfolio Analytics'!$C1117,raw_fuel_burn!$E:$E,'Portfolio Analytics'!L$1086,raw_fuel_burn!$C:$C,mainzone)/1000000","v":0},{"$f":"SUMIFS(raw_fuel_burn!$I:$I,Lists!$Z:$Z,'Portfolio Analytics'!$C1117,raw_fuel_burn!$E:$E,'Portfolio Analytics'!M$1086,raw_fuel_burn!$C:$C,mainzone)/1000000","v":0},{"$f":"SUMIFS(raw_fuel_burn!$I:$I,Lists!$Z:$Z,'Portfolio Analytics'!$C1117,raw_fuel_burn!$E:$E,'Portfolio Analytics'!N$1086,raw_fuel_burn!$C:$C,mainzone)/1000000","v":0},{"$f":"SUMIFS(raw_fuel_burn!$I:$I,Lists!$Z:$Z,'Portfolio Analytics'!$C1117,raw_fuel_burn!$E:$E,'Portfolio Analytics'!O$1086,raw_fuel_burn!$C:$C,mainzone)/1000000","v":0},{"$f":"SUMIFS(raw_fuel_burn!$I:$I,Lists!$Z:$Z,'Portfolio Analytics'!$C1117,raw_fuel_burn!$E:$E,'Portfolio Analytics'!P$1086,raw_fuel_burn!$C:$C,mainzone)/1000000","v":0},{"$f":"SUMIFS(raw_fuel_burn!$I:$I,Lists!$Z:$Z,'Portfolio Analytics'!$C1117,raw_fuel_burn!$E:$E,'Portfolio Analytics'!Q$1086,raw_fuel_burn!$C:$C,mainzone)/1000000","v":0},{"$f":"SUMIFS(raw_fuel_burn!$I:$I,Lists!$Z:$Z,'Portfolio Analytics'!$C1117,raw_fuel_burn!$E:$E,'Portfolio Analytics'!R$1086,raw_fuel_burn!$C:$C,mainzone)/1000000","v":0},{"$f":"SUMIFS(raw_fuel_burn!$I:$I,Lists!$Z:$Z,'Portfolio Analytics'!$C1117,raw_fuel_burn!$E:$E,'Portfolio Analytics'!S$1086,raw_fuel_burn!$C:$C,mainzone)/1000000","v":0},{"$f":"SUMIFS(raw_fuel_burn!$I:$I,Lists!$Z:$Z,'Portfolio Analytics'!$C1117,raw_fuel_burn!$E:$E,'Portfolio Analytics'!T$1086,raw_fuel_burn!$C:$C,mainzone)/1000000","v":0},{"$f":"SUMIFS(raw_fuel_burn!$I:$I,Lists!$Z:$Z,'Portfolio Analytics'!$C1117,raw_fuel_burn!$E:$E,'Portfolio Analytics'!U$1086,raw_fuel_burn!$C:$C,mainzone)/1000000","v":0},{"$f":"SUMIFS(raw_fuel_burn!$I:$I,Lists!$Z:$Z,'Portfolio Analytics'!$C1117,raw_fuel_burn!$E:$E,'Portfolio Analytics'!V$1086,raw_fuel_burn!$C:$C,mainzone)/1000000","v":0},{"$f":"SUMIFS(raw_fuel_burn!$I:$I,Lists!$Z:$Z,'Portfolio Analytics'!$C1117,raw_fuel_burn!$E:$E,'Portfolio Analytics'!W$1086,raw_fuel_burn!$C:$C,mainzone)/1000000","v":0},{"$f":"SUMIFS(raw_fuel_burn!$I:$I,Lists!$Z:$Z,'Portfolio Analytics'!$C1117,raw_fuel_burn!$E:$E,'Portfolio Analytics'!X$1086,raw_fuel_burn!$C:$C,mainzone)/1000000","v":0},{"$f":"SUMIFS(raw_fuel_burn!$I:$I,Lists!$Z:$Z,'Portfolio Analytics'!$C1117,raw_fuel_burn!$E:$E,'Portfolio Analytics'!Y$1086,raw_fuel_burn!$C:$C,mainzone)/1000000","v":0},{"$f":"SUMIFS(raw_fuel_burn!$I:$I,Lists!$Z:$Z,'Portfolio Analytics'!$C1117,raw_fuel_burn!$E:$E,'Portfolio Analytics'!Z$1086,raw_fuel_burn!$C:$C,mainzone)/1000000","v":0},{"$f":"SUMIFS(raw_fuel_burn!$I:$I,Lists!$Z:$Z,'Portfolio Analytics'!$C1117,raw_fuel_burn!$E:$E,'Portfolio Analytics'!AA$1086,raw_fuel_burn!$C:$C,mainzone)/1000000","v":0},{"$f":"SUMIFS(raw_fuel_burn!$I:$I,Lists!$Z:$Z,'Portfolio Analytics'!$C1117,raw_fuel_burn!$E:$E,'Portfolio Analytics'!AB$1086,raw_fuel_burn!$C:$C,mainzone)/1000000","v":0},{"$f":"SUMIFS(raw_fuel_burn!$I:$I,Lists!$Z:$Z,'Portfolio Analytics'!$C1117,raw_fuel_burn!$E:$E,'Portfolio Analytics'!AC$1086,raw_fuel_burn!$C:$C,mainzone)/1000000","v":0},{"$f":"SUMIFS(raw_fuel_burn!$I:$I,Lists!$Z:$Z,'Portfolio Analytics'!$C1117,raw_fuel_burn!$E:$E,'Portfolio Analytics'!AD$1086,raw_fuel_burn!$C:$C,mainzone)/1000000","v":0},{"$f":"SUMIFS(raw_fuel_burn!$I:$I,Lists!$Z:$Z,'Portfolio Analytics'!$C1117,raw_fuel_burn!$E:$E,'Portfolio Analytics'!AE$1086,raw_fuel_burn!$C:$C,mainzone)/1000000","v":0},{"$f":"SUMIFS(raw_fuel_burn!$I:$I,Lists!$Z:$Z,'Portfolio Analytics'!$C1117,raw_fuel_burn!$E:$E,'Portfolio Analytics'!AF$1086,raw_fuel_burn!$C:$C,mainzone)/1000000","v":0},{"$f":"SUMIFS(raw_fuel_burn!$I:$I,Lists!$Z:$Z,'Portfolio Analytics'!$C1117,raw_fuel_burn!$E:$E,'Portfolio Analytics'!AG$1086,raw_fuel_burn!$C:$C,mainzone)/1000000","v":0},{"$f":"SUMIFS(raw_fuel_burn!$I:$I,Lists!$Z:$Z,'Portfolio Analytics'!$C1117,raw_fuel_burn!$E:$E,'Portfolio Analytics'!AH$1086,raw_fuel_burn!$C:$C,mainzone)/1000000","v":0},{"$f":"SUMIFS(raw_fuel_burn!$I:$I,Lists!$Z:$Z,'Portfolio Analytics'!$C1117,raw_fuel_burn!$E:$E,'Portfolio Analytics'!AI$1086,raw_fuel_burn!$C:$C,mainzone)/1000000","v":0},{"$f":"SUMIFS(raw_fuel_burn!$I:$I,Lists!$Z:$Z,'Portfolio Analytics'!$C1117,raw_fuel_burn!$E:$E,'Portfolio Analytics'!AJ$1086,raw_fuel_burn!$C:$C,mainzone)/1000000","v":0},{"$f":"SUMIFS(raw_fuel_burn!$I:$I,Lists!$Z:$Z,'Portfolio Analytics'!$C1117,raw_fuel_burn!$E:$E,'Portfolio Analytics'!AK$1086,raw_fuel_burn!$C:$C,mainzone)/1000000","v":0},{"$f":"SUMIFS(raw_fuel_burn!$I:$I,Lists!$Z:$Z,'Portfolio Analytics'!$C1117,raw_fuel_burn!$E:$E,'Portfolio Analytics'!AL$1086,raw_fuel_burn!$C:$C,mainzone)/1000000","v":0},{"$f":"SUMIFS(raw_fuel_burn!$I:$I,Lists!$Z:$Z,'Portfolio Analytics'!$C1117,raw_fuel_burn!$E:$E,'Portfolio Analytics'!AM$1086,raw_fuel_burn!$C:$C,mainzone)/1000000","v":0},{"$f":"SUMIFS(raw_fuel_burn!$I:$I,Lists!$Z:$Z,'Portfolio Analytics'!$C1117,raw_fuel_burn!$E:$E,'Portfolio Analytics'!AN$1086,raw_fuel_burn!$C:$C,mainzone)/1000000","v":0}]
[null,null,"CAISO_Reciprocating_Engine","TBtu/yr",{"$f":"SUMIFS(raw_fuel_burn!$I:$I,Lists!$Z:$Z,'Portfolio Analytics'!$C1118,raw_fuel_burn!$E:$E,'Portfolio Analytics'!E$1086,raw_fuel_burn!$C:$C,mainzone)/1000000","v":0},{"$f":"SUMIFS(raw_fuel_burn!$I:$I,Lists!$Z:$Z,'Portfolio Analytics'!$C1118,raw_fuel_burn!$E:$E,'Portfolio Analytics'!F$1086,raw_fuel_burn!$C:$C,mainzone)/1000000","v":0},{"$f":"SUMIFS(raw_fuel_burn!$I:$I,Lists!$Z:$Z,'Portfolio Analytics'!$C1118,raw_fuel_burn!$E:$E,'Portfolio Analytics'!G$1086,raw_fuel_burn!$C:$C,mainzone)/1000000","v":0},{"$f":"SUMIFS(raw_fuel_burn!$I:$I,Lists!$Z:$Z,'Portfolio Analytics'!$C1118,raw_fuel_burn!$E:$E,'Portfolio Analytics'!H$1086,raw_fuel_burn!$C:$C,mainzone)/1000000","v":0},{"$f":"SUMIFS(raw_fuel_burn!$I:$I,Lists!$Z:$Z,'Portfolio Analytics'!$C1118,raw_fuel_burn!$E:$E,'Portfolio Analytics'!I$1086,raw_fuel_burn!$C:$C,mainzone)/1000000","v":0},{"$f":"SUMIFS(raw_fuel_burn!$I:$I,Lists!$Z:$Z,'Portfolio Analytics'!$C1118,raw_fuel_burn!$E:$E,'Portfolio Analytics'!J$1086,raw_fuel_burn!$C:$C,mainzone)/1000000","v":6.1898590332479901E-2},{"$f":"SUMIFS(raw_fuel_burn!$I:$I,Lists!$Z:$Z,'Portfolio Analytics'!$C1118,raw_fuel_burn!$E:$E,'Portfolio Analytics'!K$1086,raw_fuel_burn!$C:$C,mainzone)/1000000","v":5.3872275922649003E-2},{"$f":"SUMIFS(raw_fuel_burn!$I:$I,Lists!$Z:$Z,'Portfolio Analytics'!$C1118,raw_fuel_burn!$E:$E,'Portfolio Analytics'!L$1086,raw_fuel_burn!$C:$C,mainzone)/1000000","v":5.5119946764385801E-2},{"$f":"SUMIFS(raw_fuel_burn!$I:$I,Lists!$Z:$Z,'Portfolio Analytics'!$C1118,raw_fuel_burn!$E:$E,'Portfolio Analytics'!M$1086,raw_fuel_burn!$C:$C,mainzone)/1000000","v":5.5327652246897605E-2},{"$f":"SUMIFS(raw_fuel_burn!$I:$I,Lists!$Z:$Z,'Portfolio Analytics'!$C1118,raw_fuel_burn!$E:$E,'Portfolio Analytics'!N$1086,raw_fuel_burn!$C:$C,mainzone)/1000000","v":5.0825966660797396E-2},{"$f":"SUMIFS(raw_fuel_burn!$I:$I,Lists!$Z:$Z,'Portfolio Analytics'!$C1118,raw_fuel_burn!$E:$E,'Portfolio Analytics'!O$1086,raw_fuel_burn!$C:$C,mainzone)/1000000","v":0},{"$f":"SUMIFS(raw_fuel_burn!$I:$I,Lists!$Z:$Z,'Portfolio Analytics'!$C1118,raw_fuel_burn!$E:$E,'Portfolio Analytics'!P$1086,raw_fuel_burn!$C:$C,mainzone)/1000000","v":1.8986626107562798E-2},{"$f":"SUMIFS(raw_fuel_burn!$I:$I,Lists!$Z:$Z,'Portfolio Analytics'!$C1118,raw_fuel_burn!$E:$E,'Portfolio Analytics'!Q$1086,raw_fuel_burn!$C:$C,mainzone)/1000000","v":0},{"$f":"SUMIFS(raw_fuel_burn!$I:$I,Lists!$Z:$Z,'Portfolio Analytics'!$C1118,raw_fuel_burn!$E:$E,'Portfolio Analytics'!R$1086,raw_fuel_burn!$C:$C,mainzone)/1000000","v":0},{"$f":"SUMIFS(raw_fuel_burn!$I:$I,Lists!$Z:$Z,'Portfolio Analytics'!$C1118,raw_fuel_burn!$E:$E,'Portfolio Analytics'!S$1086,raw_fuel_burn!$C:$C,mainzone)/1000000","v":0},{"$f":"SUMIFS(raw_fuel_burn!$I:$I,Lists!$Z:$Z,'Portfolio Analytics'!$C1118,raw_fuel_burn!$E:$E,'Portfolio Analytics'!T$1086,raw_fuel_burn!$C:$C,mainzone)/1000000","v":3.43365665908828E-2},{"$f":"SUMIFS(raw_fuel_burn!$I:$I,Lists!$Z:$Z,'Portfolio Analytics'!$C1118,raw_fuel_burn!$E:$E,'Portfolio Analytics'!U$1086,raw_fuel_burn!$C:$C,mainzone)/1000000","v":0},{"$f":"SUMIFS(raw_fuel_burn!$I:$I,Lists!$Z:$Z,'Portfolio Analytics'!$C1118,raw_fuel_burn!$E:$E,'Portfolio Analytics'!V$1086,raw_fuel_burn!$C:$C,mainzone)/1000000","v":0},{"$f":"SUMIFS(raw_fuel_burn!$I:$I,Lists!$Z:$Z,'Portfolio Analytics'!$C1118,raw_fuel_burn!$E:$E,'Portfolio Analytics'!W$1086,raw_fuel_burn!$C:$C,mainzone)/1000000","v":0},{"$f":"SUMIFS(raw_fuel_burn!$I:$I,Lists!$Z:$Z,'Portfolio Analytics'!$C1118,raw_fuel_burn!$E:$E,'Portfolio Analytics'!X$1086,raw_fuel_burn!$C:$C,mainzone)/1000000","v":0},{"$f":"SUMIFS(raw_fuel_burn!$I:$I,Lists!$Z:$Z,'Portfolio Analytics'!$C1118,raw_fuel_burn!$E:$E,'Portfolio Analytics'!Y$1086,raw_fuel_burn!$C:$C,mainzone)/1000000","v":0},{"$f":"SUMIFS(raw_fuel_burn!$I:$I,Lists!$Z:$Z,'Portfolio Analytics'!$C1118,raw_fuel_burn!$E:$E,'Portfolio Analytics'!Z$1086,raw_fuel_burn!$C:$C,mainzone)/1000000","v":0},{"$f":"SUMIFS(raw_fuel_burn!$I:$I,Lists!$Z:$Z,'Portfolio Analytics'!$C1118,raw_fuel_burn!$E:$E,'Portfolio Analytics'!AA$1086,raw_fuel_burn!$C:$C,mainzone)/1000000","v":0},{"$f":"SUMIFS(raw_fuel_burn!$I:$I,Lists!$Z:$Z,'Portfolio Analytics'!$C1118,raw_fuel_burn!$E:$E,'Portfolio Analytics'!AB$1086,raw_fuel_burn!$C:$C,mainzone)/1000000","v":0},{"$f":"SUMIFS(raw_fuel_burn!$I:$I,Lists!$Z:$Z,'Portfolio Analytics'!$C1118,raw_fuel_burn!$E:$E,'Portfolio Analytics'!AC$1086,raw_fuel_burn!$C:$C,mainzone)/1000000","v":0},{"$f":"SUMIFS(raw_fuel_burn!$I:$I,Lists!$Z:$Z,'Portfolio Analytics'!$C1118,raw_fuel_burn!$E:$E,'Portfolio Analytics'!AD$1086,raw_fuel_burn!$C:$C,mainzone)/1000000","v":0},{"$f":"SUMIFS(raw_fuel_burn!$I:$I,Lists!$Z:$Z,'Portfolio Analytics'!$C1118,raw_fuel_burn!$E:$E,'Portfolio Analytics'!AE$1086,raw_fuel_burn!$C:$C,mainzone)/1000000","v":0},{"$f":"SUMIFS(raw_fuel_burn!$I:$I,Lists!$Z:$Z,'Portfolio Analytics'!$C1118,raw_fuel_burn!$E:$E,'Portfolio Analytics'!AF$1086,raw_fuel_burn!$C:$C,mainzone)/1000000","v":0},{"$f":"SUMIFS(raw_fuel_burn!$I:$I,Lists!$Z:$Z,'Portfolio Analytics'!$C1118,raw_fuel_burn!$E:$E,'Portfolio Analytics'!AG$1086,raw_fuel_burn!$C:$C,mainzone)/1000000","v":0},{"$f":"SUMIFS(raw_fuel_burn!$I:$I,Lists!$Z:$Z,'Portfolio Analytics'!$C1118,raw_fuel_burn!$E:$E,'Portfolio Analytics'!AH$1086,raw_fuel_burn!$C:$C,mainzone)/1000000","v":0},{"$f":"SUMIFS(raw_fuel_burn!$I:$I,Lists!$Z:$Z,'Portfolio Analytics'!$C1118,raw_fuel_burn!$E:$E,'Portfolio Analytics'!AI$1086,raw_fuel_burn!$C:$C,mainzone)/1000000","v":1.52323997367788E-2},{"$f":"SUMIFS(raw_fuel_burn!$I:$I,Lists!$Z:$Z,'Portfolio Analytics'!$C1118,raw_fuel_burn!$E:$E,'Portfolio Analytics'!AJ$1086,raw_fuel_burn!$C:$C,mainzone)/1000000","v":0},{"$f":"SUMIFS(raw_fuel_burn!$I:$I,Lists!$Z:$Z,'Portfolio Analytics'!$C1118,raw_fuel_burn!$E:$E,'Portfolio Analytics'!AK$1086,raw_fuel_burn!$C:$C,mainzone)/1000000","v":0},{"$f":"SUMIFS(raw_fuel_burn!$I:$I,Lists!$Z:$Z,'Portfolio Analytics'!$C1118,raw_fuel_burn!$E:$E,'Portfolio Analytics'!AL$1086,raw_fuel_burn!$C:$C,mainzone)/1000000","v":0},{"$f":"SUMIFS(raw_fuel_burn!$I:$I,Lists!$Z:$Z,'Portfolio Analytics'!$C1118,raw_fuel_burn!$E:$E,'Portfolio Analytics'!AM$1086,raw_fuel_burn!$C:$C,mainzone)/1000000","v":0},{"$f":"SUMIFS(raw_fuel_burn!$I:$I,Lists!$Z:$Z,'Portfolio Analytics'!$C1118,raw_fuel_burn!$E:$E,'Portfolio Analytics'!AN$1086,raw_fuel_burn!$C:$C,mainzone)/1000000","v":0}]
[null,null,"CAISO_ST","TBtu/yr",{"$f":"SUMIFS(raw_fuel_burn!$I:$I,Lists!$Z:$Z,'Portfolio Analytics'!$C1119,raw_fuel_burn!$E:$E,'Portfolio Analytics'!E$1086,raw_fuel_burn!$C:$C,mainzone)/1000000","v":0},{"$f":"SUMIFS(raw_fuel_burn!$I:$I,Lists!$Z:$Z,'Portfolio Analytics'!$C1119,raw_fuel_burn!$E:$E,'Portfolio Analytics'!F$1086,raw_fuel_burn!$C:$C,mainzone)/1000000","v":0},{"$f":"SUMIFS(raw_fuel_burn!$I:$I,Lists!$Z:$Z,'Portfolio Analytics'!$C1119,raw_fuel_burn!$E:$E,'Portfolio Analytics'!G$1086,raw_fuel_burn!$C:$C,mainzone)/1000000","v":0},{"$f":"SUMIFS(raw_fuel_burn!$I:$I,Lists!$Z:$Z,'Portfolio Analytics'!$C1119,raw_fuel_burn!$E:$E,'Portfolio Analytics'!H$1086,raw_fuel_burn!$C:$C,mainzone)/1000000","v":0},{"$f":"SUMIFS(raw_fuel_burn!$I:$I,Lists!$Z:$Z,'Portfolio Analytics'!$C1119,raw_fuel_burn!$E:$E,'Portfolio Analytics'!I$1086,raw_fuel_burn!$C:$C,mainzone)/1000000","v":0},{"$f":"SUMIFS(raw_fuel_burn!$I:$I,Lists!$Z:$Z,'Portfolio Analytics'!$C1119,raw_fuel_burn!$E:$E,'Portfolio Analytics'!J$1086,raw_fuel_burn!$C:$C,mainzone)/1000000","v":0},{"$f":"SUMIFS(raw_fuel_burn!$I:$I,Lists!$Z:$Z,'Portfolio Analytics'!$C1119,raw_fuel_burn!$E:$E,'Portfolio Analytics'!K$1086,raw_fuel_burn!$C:$C,mainzone)/1000000","v":0},{"$f":"SUMIFS(raw_fuel_burn!$I:$I,Lists!$Z:$Z,'Portfolio Analytics'!$C1119,raw_fuel_burn!$E:$E,'Portfolio Analytics'!L$1086,raw_fuel_burn!$C:$C,mainzone)/1000000","v":0},{"$f":"SUMIFS(raw_fuel_burn!$I:$I,Lists!$Z:$Z,'Portfolio Analytics'!$C1119,raw_fuel_burn!$E:$E,'Portfolio Analytics'!M$1086,raw_fuel_burn!$C:$C,mainzone)/1000000","v":0},{"$f":"SUMIFS(raw_fuel_burn!$I:$I,Lists!$Z:$Z,'Portfolio Analytics'!$C1119,raw_fuel_burn!$E:$E,'Portfolio Analytics'!N$1086,raw_fuel_burn!$C:$C,mainzone)/1000000","v":0},{"$f":"SUMIFS(raw_fuel_burn!$I:$I,Lists!$Z:$Z,'Portfolio Analytics'!$C1119,raw_fuel_burn!$E:$E,'Portfolio Analytics'!O$1086,raw_fuel_burn!$C:$C,mainzone)/1000000","v":0},{"$f":"SUMIFS(raw_fuel_burn!$I:$I,Lists!$Z:$Z,'Portfolio Analytics'!$C1119,raw_fuel_burn!$E:$E,'Portfolio Analytics'!P$1086,raw_fuel_burn!$C:$C,mainzone)/1000000","v":0},{"$f":"SUMIFS(raw_fuel_burn!$I:$I,Lists!$Z:$Z,'Portfolio Analytics'!$C1119,raw_fuel_burn!$E:$E,'Portfolio Analytics'!Q$1086,raw_fuel_burn!$C:$C,mainzone)/1000000","v":0},{"$f":"SUMIFS(raw_fuel_burn!$I:$I,Lists!$Z:$Z,'Portfolio Analytics'!$C1119,raw_fuel_burn!$E:$E,'Portfolio Analytics'!R$1086,raw_fuel_burn!$C:$C,mainzone)/1000000","v":0},{"$f":"SUMIFS(raw_fuel_burn!$I:$I,Lists!$Z:$Z,'Portfolio Analytics'!$C1119,raw_fuel_burn!$E:$E,'Portfolio Analytics'!S$1086,raw_fuel_burn!$C:$C,mainzone)/1000000","v":0},{"$f":"SUMIFS(raw_fuel_burn!$I:$I,Lists!$Z:$Z,'Portfolio Analytics'!$C1119,raw_fuel_burn!$E:$E,'Portfolio Analytics'!T$1086,raw_fuel_burn!$C:$C,mainzone)/1000000","v":0},{"$f":"SUMIFS(raw_fuel_burn!$I:$I,Lists!$Z:$Z,'Portfolio Analytics'!$C1119,raw_fuel_burn!$E:$E,'Portfolio Analytics'!U$1086,raw_fuel_burn!$C:$C,mainzone)/1000000","v":0},{"$f":"SUMIFS(raw_fuel_burn!$I:$I,Lists!$Z:$Z,'Portfolio Analytics'!$C1119,raw_fuel_burn!$E:$E,'Portfolio Analytics'!V$1086,raw_fuel_burn!$C:$C,mainzone)/1000000","v":0},{"$f":"SUMIFS(raw_fuel_burn!$I:$I,Lists!$Z:$Z,'Portfolio Analytics'!$C1119,raw_fuel_burn!$E:$E,'Portfolio Analytics'!W$1086,raw_fuel_burn!$C:$C,mainzone)/1000000","v":0},{"$f":"SUMIFS(raw_fuel_burn!$I:$I,Lists!$Z:$Z,'Portfolio Analytics'!$C1119,raw_fuel_burn!$E:$E,'Portfolio Analytics'!X$1086,raw_fuel_burn!$C:$C,mainzone)/1000000","v":0},{"$f":"SUMIFS(raw_fuel_burn!$I:$I,Lists!$Z:$Z,'Portfolio Analytics'!$C1119,raw_fuel_burn!$E:$E,'Portfolio Analytics'!Y$1086,raw_fuel_burn!$C:$C,mainzone)/1000000","v":0},{"$f":"SUMIFS(raw_fuel_burn!$I:$I,Lists!$Z:$Z,'Portfolio Analytics'!$C1119,raw_fuel_burn!$E:$E,'Portfolio Analytics'!Z$1086,raw_fuel_burn!$C:$C,mainzone)/1000000","v":0},{"$f":"SUMIFS(raw_fuel_burn!$I:$I,Lists!$Z:$Z,'Portfolio Analytics'!$C1119,raw_fuel_burn!$E:$E,'Portfolio Analytics'!AA$1086,raw_fuel_burn!$C:$C,mainzone)/1000000","v":0},{"$f":"SUMIFS(raw_fuel_burn!$I:$I,Lists!$Z:$Z,'Portfolio Analytics'!$C1119,raw_fuel_burn!$E:$E,'Portfolio Analytics'!AB$1086,raw_fuel_burn!$C:$C,mainzone)/1000000","v":0},{"$f":"SUMIFS(raw_fuel_burn!$I:$I,Lists!$Z:$Z,'Portfolio Analytics'!$C1119,raw_fuel_burn!$E:$E,'Portfolio Analytics'!AC$1086,raw_fuel_burn!$C:$C,mainzone)/1000000","v":0},{"$f":"SUMIFS(raw_fuel_burn!$I:$I,Lists!$Z:$Z,'Portfolio Analytics'!$C1119,raw_fuel_burn!$E:$E,'Portfolio Analytics'!AD$1086,raw_fuel_burn!$C:$C,mainzone)/1000000","v":0},{"$f":"SUMIFS(raw_fuel_burn!$I:$I,Lists!$Z:$Z,'Portfolio Analytics'!$C1119,raw_fuel_burn!$E:$E,'Portfolio Analytics'!AE$1086,raw_fuel_burn!$C:$C,mainzone)/1000000","v":0},{"$f":"SUMIFS(raw_fuel_burn!$I:$I,Lists!$Z:$Z,'Portfolio Analytics'!$C1119,raw_fuel_burn!$E:$E,'Portfolio Analytics'!AF$1086,raw_fuel_burn!$C:$C,mainzone)/1000000","v":0},{"$f":"SUMIFS(raw_fuel_burn!$I:$I,Lists!$Z:$Z,'Portfolio Analytics'!$C1119,raw_fuel_burn!$E:$E,'Portfolio Analytics'!AG$1086,raw_fuel_burn!$C:$C,mainzone)/1000000","v":0},{"$f":"SUMIFS(raw_fuel_burn!$I:$I,Lists!$Z:$Z,'Portfolio Analytics'!$C1119,raw_fuel_burn!$E:$E,'Portfolio Analytics'!AH$1086,raw_fuel_burn!$C:$C,mainzone)/1000000","v":0},{"$f":"SUMIFS(raw_fuel_burn!$I:$I,Lists!$Z:$Z,'Portfolio Analytics'!$C1119,raw_fuel_burn!$E:$E,'Portfolio Analytics'!AI$1086,raw_fuel_burn!$C:$C,mainzone)/1000000","v":0},{"$f":"SUMIFS(raw_fuel_burn!$I:$I,Lists!$Z:$Z,'Portfolio Analytics'!$C1119,raw_fuel_burn!$E:$E,'Portfolio Analytics'!AJ$1086,raw_fuel_burn!$C:$C,mainzone)/1000000","v":0},{"$f":"SUMIFS(raw_fuel_burn!$I:$I,Lists!$Z:$Z,'Portfolio Analytics'!$C1119,raw_fuel_burn!$E:$E,'Portfolio Analytics'!AK$1086,raw_fuel_burn!$C:$C,mainzone)/1000000","v":0},{"$f":"SUMIFS(raw_fuel_burn!$I:$I,Lists!$Z:$Z,'Portfolio Analytics'!$C1119,raw_fuel_burn!$E:$E,'Portfolio Analytics'!AL$1086,raw_fuel_burn!$C:$C,mainzone)/1000000","v":0},{"$f":"SUMIFS(raw_fuel_burn!$I:$I,Lists!$Z:$Z,'Portfolio Analytics'!$C1119,raw_fuel_burn!$E:$E,'Portfolio Analytics'!AM$1086,raw_fuel_burn!$C:$C,mainzone)/1000000","v":0},{"$f":"SUMIFS(raw_fuel_burn!$I:$I,Lists!$Z:$Z,'Portfolio Analytics'!$C1119,raw_fuel_burn!$E:$E,'Portfolio Analytics'!AN$1086,raw_fuel_burn!$C:$C,mainzone)/1000000","v":0}]
[null,null,"CAISO_Coal","TBtu/yr",{"$f":"SUMIFS(raw_fuel_burn!$I:$I,Lists!$Z:$Z,'Portfolio Analytics'!$C1120,raw_fuel_burn!$E:$E,'Portfolio Analytics'!E$1086,raw_fuel_burn!$C:$C,mainzone)/1000000","v":0},{"$f":"SUMIFS(raw_fuel_burn!$I:$I,Lists!$Z:$Z,'Portfolio Analytics'!$C1120,raw_fuel_burn!$E:$E,'Portfolio Analytics'!F$1086,raw_fuel_burn!$C:$C,mainzone)/1000000","v":0},{"$f":"SUMIFS(raw_fuel_burn!$I:$I,Lists!$Z:$Z,'Portfolio Analytics'!$C1120,raw_fuel_burn!$E:$E,'Portfolio Analytics'!G$1086,raw_fuel_burn!$C:$C,mainzone)/1000000","v":0},{"$f":"SUMIFS(raw_fuel_burn!$I:$I,Lists!$Z:$Z,'Portfolio Analytics'!$C1120,raw_fuel_burn!$E:$E,'Portfolio Analytics'!H$1086,raw_fuel_burn!$C:$C,mainzone)/1000000","v":0},{"$f":"SUMIFS(raw_fuel_burn!$I:$I,Lists!$Z:$Z,'Portfolio Analytics'!$C1120,raw_fuel_burn!$E:$E,'Portfolio Analytics'!I$1086,raw_fuel_burn!$C:$C,mainzone)/1000000","v":0},{"$f":"SUMIFS(raw_fuel_burn!$I:$I,Lists!$Z:$Z,'Portfolio Analytics'!$C1120,raw_fuel_burn!$E:$E,'Portfolio Analytics'!J$1086,raw_fuel_burn!$C:$C,mainzone)/1000000","v":0},{"$f":"SUMIFS(raw_fuel_burn!$I:$I,Lists!$Z:$Z,'Portfolio Analytics'!$C1120,raw_fuel_burn!$E:$E,'Portfolio Analytics'!K$1086,raw_fuel_burn!$C:$C,mainzone)/1000000","v":0},{"$f":"SUMIFS(raw_fuel_burn!$I:$I,Lists!$Z:$Z,'Portfolio Analytics'!$C1120,raw_fuel_burn!$E:$E,'Portfolio Analytics'!L$1086,raw_fuel_burn!$C:$C,mainzone)/1000000","v":0},{"$f":"SUMIFS(raw_fuel_burn!$I:$I,Lists!$Z:$Z,'Portfolio Analytics'!$C1120,raw_fuel_burn!$E:$E,'Portfolio Analytics'!M$1086,raw_fuel_burn!$C:$C,mainzone)/1000000","v":0},{"$f":"SUMIFS(raw_fuel_burn!$I:$I,Lists!$Z:$Z,'Portfolio Analytics'!$C1120,raw_fuel_burn!$E:$E,'Portfolio Analytics'!N$1086,raw_fuel_burn!$C:$C,mainzone)/1000000","v":0},{"$f":"SUMIFS(raw_fuel_burn!$I:$I,Lists!$Z:$Z,'Portfolio Analytics'!$C1120,raw_fuel_burn!$E:$E,'Portfolio Analytics'!O$1086,raw_fuel_burn!$C:$C,mainzone)/1000000","v":0},{"$f":"SUMIFS(raw_fuel_burn!$I:$I,Lists!$Z:$Z,'Portfolio Analytics'!$C1120,raw_fuel_burn!$E:$E,'Portfolio Analytics'!P$1086,raw_fuel_burn!$C:$C,mainzone)/1000000","v":0},{"$f":"SUMIFS(raw_fuel_burn!$I:$I,Lists!$Z:$Z,'Portfolio Analytics'!$C1120,raw_fuel_burn!$E:$E,'Portfolio Analytics'!Q$1086,raw_fuel_burn!$C:$C,mainzone)/1000000","v":0},{"$f":"SUMIFS(raw_fuel_burn!$I:$I,Lists!$Z:$Z,'Portfolio Analytics'!$C1120,raw_fuel_burn!$E:$E,'Portfolio Analytics'!R$1086,raw_fuel_burn!$C:$C,mainzone)/1000000","v":0},{"$f":"SUMIFS(raw_fuel_burn!$I:$I,Lists!$Z:$Z,'Portfolio Analytics'!$C1120,raw_fuel_burn!$E:$E,'Portfolio Analytics'!S$1086,raw_fuel_burn!$C:$C,mainzone)/1000000","v":0},{"$f":"SUMIFS(raw_fuel_burn!$I:$I,Lists!$Z:$Z,'Portfolio Analytics'!$C1120,raw_fuel_burn!$E:$E,'Portfolio Analytics'!T$1086,raw_fuel_burn!$C:$C,mainzone)/1000000","v":0},{"$f":"SUMIFS(raw_fuel_burn!$I:$I,Lists!$Z:$Z,'Portfolio Analytics'!$C1120,raw_fuel_burn!$E:$E,'Portfolio Analytics'!U$1086,raw_fuel_burn!$C:$C,mainzone)/1000000","v":0},{"$f":"SUMIFS(raw_fuel_burn!$I:$I,Lists!$Z:$Z,'Portfolio Analytics'!$C1120,raw_fuel_burn!$E:$E,'Portfolio Analytics'!V$1086,raw_fuel_burn!$C:$C,mainzone)/1000000","v":0},{"$f":"SUMIFS(raw_fuel_burn!$I:$I,Lists!$Z:$Z,'Portfolio Analytics'!$C1120,raw_fuel_burn!$E:$E,'Portfolio Analytics'!W$1086,raw_fuel_burn!$C:$C,mainzone)/1000000","v":0},{"$f":"SUMIFS(raw_fuel_burn!$I:$I,Lists!$Z:$Z,'Portfolio Analytics'!$C1120,raw_fuel_burn!$E:$E,'Portfolio Analytics'!X$1086,raw_fuel_burn!$C:$C,mainzone)/1000000","v":0},{"$f":"SUMIFS(raw_fuel_burn!$I:$I,Lists!$Z:$Z,'Portfolio Analytics'!$C1120,raw_fuel_burn!$E:$E,'Portfolio Analytics'!Y$1086,raw_fuel_burn!$C:$C,mainzone)/1000000","v":0},{"$f":"SUMIFS(raw_fuel_burn!$I:$I,Lists!$Z:$Z,'Portfolio Analytics'!$C1120,raw_fuel_burn!$E:$E,'Portfolio Analytics'!Z$1086,raw_fuel_burn!$C:$C,mainzone)/1000000","v":0},{"$f":"SUMIFS(raw_fuel_burn!$I:$I,Lists!$Z:$Z,'Portfolio Analytics'!$C1120,raw_fuel_burn!$E:$E,'Portfolio Analytics'!AA$1086,raw_fuel_burn!$C:$C,mainzone)/1000000","v":0},{"$f":"SUMIFS(raw_fuel_burn!$I:$I,Lists!$Z:$Z,'Portfolio Analytics'!$C1120,raw_fuel_burn!$E:$E,'Portfolio Analytics'!AB$1086,raw_fuel_burn!$C:$C,mainzone)/1000000","v":0},{"$f":"SUMIFS(raw_fuel_burn!$I:$I,Lists!$Z:$Z,'Portfolio Analytics'!$C1120,raw_fuel_burn!$E:$E,'Portfolio Analytics'!AC$1086,raw_fuel_burn!$C:$C,mainzone)/1000000","v":0},{"$f":"SUMIFS(raw_fuel_burn!$I:$I,Lists!$Z:$Z,'Portfolio Analytics'!$C1120,raw_fuel_burn!$E:$E,'Portfolio Analytics'!AD$1086,raw_fuel_burn!$C:$C,mainzone)/1000000","v":0},{"$f":"SUMIFS(raw_fuel_burn!$I:$I,Lists!$Z:$Z,'Portfolio Analytics'!$C1120,raw_fuel_burn!$E:$E,'Portfolio Analytics'!AE$1086,raw_fuel_burn!$C:$C,mainzone)/1000000","v":0},{"$f":"SUMIFS(raw_fuel_burn!$I:$I,Lists!$Z:$Z,'Portfolio Analytics'!$C1120,raw_fuel_burn!$E:$E,'Portfolio Analytics'!AF$1086,raw_fuel_burn!$C:$C,mainzone)/1000000","v":0},{"$f":"SUMIFS(raw_fuel_burn!$I:$I,Lists!$Z:$Z,'Portfolio Analytics'!$C1120,raw_fuel_burn!$E:$E,'Portfolio Analytics'!AG$1086,raw_fuel_burn!$C:$C,mainzone)/1000000","v":0},{"$f":"SUMIFS(raw_fuel_burn!$I:$I,Lists!$Z:$Z,'Portfolio Analytics'!$C1120,raw_fuel_burn!$E:$E,'Portfolio Analytics'!AH$1086,raw_fuel_burn!$C:$C,mainzone)/1000000","v":0},{"$f":"SUMIFS(raw_fuel_burn!$I:$I,Lists!$Z:$Z,'Portfolio Analytics'!$C1120,raw_fuel_burn!$E:$E,'Portfolio Analytics'!AI$1086,raw_fuel_burn!$C:$C,mainzone)/1000000","v":0},{"$f":"SUMIFS(raw_fuel_burn!$I:$I,Lists!$Z:$Z,'Portfolio Analytics'!$C1120,raw_fuel_burn!$E:$E,'Portfolio Analytics'!AJ$1086,raw_fuel_burn!$C:$C,mainzone)/1000000","v":0},{"$f":"SUMIFS(raw_fuel_burn!$I:$I,Lists!$Z:$Z,'Portfolio Analytics'!$C1120,raw_fuel_burn!$E:$E,'Portfolio Analytics'!AK$1086,raw_fuel_burn!$C:$C,mainzone)/1000000","v":0},{"$f":"SUMIFS(raw_fuel_burn!$I:$I,Lists!$Z:$Z,'Portfolio Analytics'!$C1120,raw_fuel_burn!$E:$E,'Portfolio Analytics'!AL$1086,raw_fuel_burn!$C:$C,mainzone)/1000000","v":0},{"$f":"SUMIFS(raw_fuel_burn!$I:$I,Lists!$Z:$Z,'Portfolio Analytics'!$C1120,raw_fuel_burn!$E:$E,'Portfolio Analytics'!AM$1086,raw_fuel_burn!$C:$C,mainzone)/1000000","v":0},{"$f":"SUMIFS(raw_fuel_burn!$I:$I,Lists!$Z:$Z,'Portfolio Analytics'!$C1120,raw_fuel_burn!$E:$E,'Portfolio Analytics'!AN$1086,raw_fuel_burn!$C:$C,mainzone)/1000000","v":0}]
[null,null,"CAISO_CHP","TBtu/yr",{"$f":"SUMIFS(raw_fuel_burn!$I:$I,Lists!$Z:$Z,'Portfolio Analytics'!$C1121,raw_fuel_burn!$E:$E,'Portfolio Analytics'!E$1086,raw_fuel_burn!$C:$C,mainzone)/1000000","v":0},{"$f":"SUMIFS(raw_fuel_burn!$I:$I,Lists!$Z:$Z,'Portfolio Analytics'!$C1121,raw_fuel_burn!$E:$E,'Portfolio Analytics'!F$1086,raw_fuel_burn!$C:$C,mainzone)/1000000","v":0},{"$f":"SUMIFS(raw_fuel_burn!$I:$I,Lists!$Z:$Z,'Portfolio Analytics'!$C1121,raw_fuel_burn!$E:$E,'Portfolio Analytics'!G$1086,raw_fuel_burn!$C:$C,mainzone)/1000000","v":0},{"$f":"SUMIFS(raw_fuel_burn!$I:$I,Lists!$Z:$Z,'Portfolio Analytics'!$C1121,raw_fuel_burn!$E:$E,'Portfolio Analytics'!H$1086,raw_fuel_burn!$C:$C,mainzone)/1000000","v":0},{"$f":"SUMIFS(raw_fuel_burn!$I:$I,Lists!$Z:$Z,'Portfolio Analytics'!$C1121,raw_fuel_burn!$E:$E,'Portfolio Analytics'!I$1086,raw_fuel_burn!$C:$C,mainzone)/1000000","v":0},{"$f":"SUMIFS(raw_fuel_burn!$I:$I,Lists!$Z:$Z,'Portfolio Analytics'!$C1121,raw_fuel_burn!$E:$E,'Portfolio Analytics'!J$1086,raw_fuel_burn!$C:$C,mainzone)/1000000","v":0},{"$f":"SUMIFS(raw_fuel_burn!$I:$I,Lists!$Z:$Z,'Portfolio Analytics'!$C1121,raw_fuel_burn!$E:$E,'Portfolio Analytics'!K$1086,raw_fuel_burn!$C:$C,mainzone)/1000000","v":0},{"$f":"SUMIFS(raw_fuel_burn!$I:$I,Lists!$Z:$Z,'Portfolio Analytics'!$C1121,raw_fuel_burn!$E:$E,'Portfolio Analytics'!L$1086,raw_fuel_burn!$C:$C,mainzone)/1000000","v":0},{"$f":"SUMIFS(raw_fuel_burn!$I:$I,Lists!$Z:$Z,'Portfolio Analytics'!$C1121,raw_fuel_burn!$E:$E,'Portfolio Analytics'!M$1086,raw_fuel_burn!$C:$C,mainzone)/1000000","v":0},{"$f":"SUMIFS(raw_fuel_burn!$I:$I,Lists!$Z:$Z,'Portfolio Analytics'!$C1121,raw_fuel_burn!$E:$E,'Portfolio Analytics'!N$1086,raw_fuel_burn!$C:$C,mainzone)/1000000","v":0},{"$f":"SUMIFS(raw_fuel_burn!$I:$I,Lists!$Z:$Z,'Portfolio Analytics'!$C1121,raw_fuel_burn!$E:$E,'Portfolio Analytics'!O$1086,raw_fuel_burn!$C:$C,mainzone)/1000000","v":0},{"$f":"SUMIFS(raw_fuel_burn!$I:$I,Lists!$Z:$Z,'Portfolio Analytics'!$C1121,raw_fuel_burn!$E:$E,'Portfolio Analytics'!P$1086,raw_fuel_burn!$C:$C,mainzone)/1000000","v":0},{"$f":"SUMIFS(raw_fuel_burn!$I:$I,Lists!$Z:$Z,'Portfolio Analytics'!$C1121,raw_fuel_burn!$E:$E,'Portfolio Analytics'!Q$1086,raw_fuel_burn!$C:$C,mainzone)/1000000","v":0},{"$f":"SUMIFS(raw_fuel_burn!$I:$I,Lists!$Z:$Z,'Portfolio Analytics'!$C1121,raw_fuel_burn!$E:$E,'Portfolio Analytics'!R$1086,raw_fuel_burn!$C:$C,mainzone)/1000000","v":0},{"$f":"SUMIFS(raw_fuel_burn!$I:$I,Lists!$Z:$Z,'Portfolio Analytics'!$C1121,raw_fuel_burn!$E:$E,'Portfolio Analytics'!S$1086,raw_fuel_burn!$C:$C,mainzone)/1000000","v":0},{"$f":"SUMIFS(raw_fuel_burn!$I:$I,Lists!$Z:$Z,'Portfolio Analytics'!$C1121,raw_fuel_burn!$E:$E,'Portfolio Analytics'!T$1086,raw_fuel_burn!$C:$C,mainzone)/1000000","v":0},{"$f":"SUMIFS(raw_fuel_burn!$I:$I,Lists!$Z:$Z,'Portfolio Analytics'!$C1121,raw_fuel_burn!$E:$E,'Portfolio Analytics'!U$1086,raw_fuel_burn!$C:$C,mainzone)/1000000","v":0},{"$f":"SUMIFS(raw_fuel_burn!$I:$I,Lists!$Z:$Z,'Portfolio Analytics'!$C1121,raw_fuel_burn!$E:$E,'Portfolio Analytics'!V$1086,raw_fuel_burn!$C:$C,mainzone)/1000000","v":0},{"$f":"SUMIFS(raw_fuel_burn!$I:$I,Lists!$Z:$Z,'Portfolio Analytics'!$C1121,raw_fuel_burn!$E:$E,'Portfolio Analytics'!W$1086,raw_fuel_burn!$C:$C,mainzone)/1000000","v":0},{"$f":"SUMIFS(raw_fuel_burn!$I:$I,Lists!$Z:$Z,'Portfolio Analytics'!$C1121,raw_fuel_burn!$E:$E,'Portfolio Analytics'!X$1086,raw_fuel_burn!$C:$C,mainzone)/1000000","v":0},{"$f":"SUMIFS(raw_fuel_burn!$I:$I,Lists!$Z:$Z,'Portfolio Analytics'!$C1121,raw_fuel_burn!$E:$E,'Portfolio Analytics'!Y$1086,raw_fuel_burn!$C:$C,mainzone)/1000000","v":0},{"$f":"SUMIFS(raw_fuel_burn!$I:$I,Lists!$Z:$Z,'Portfolio Analytics'!$C1121,raw_fuel_burn!$E:$E,'Portfolio Analytics'!Z$1086,raw_fuel_burn!$C:$C,mainzone)/1000000","v":0},{"$f":"SUMIFS(raw_fuel_burn!$I:$I,Lists!$Z:$Z,'Portfolio Analytics'!$C1121,raw_fuel_burn!$E:$E,'Portfolio Analytics'!AA$1086,raw_fuel_burn!$C:$C,mainzone)/1000000","v":0},{"$f":"SUMIFS(raw_fuel_burn!$I:$I,Lists!$Z:$Z,'Portfolio Analytics'!$C1121,raw_fuel_burn!$E:$E,'Portfolio Analytics'!AB$1086,raw_fuel_burn!$C:$C,mainzone)/1000000","v":0},{"$f":"SUMIFS(raw_fuel_burn!$I:$I,Lists!$Z:$Z,'Portfolio Analytics'!$C1121,raw_fuel_burn!$E:$E,'Portfolio Analytics'!AC$1086,raw_fuel_burn!$C:$C,mainzone)/1000000","v":0},{"$f":"SUMIFS(raw_fuel_burn!$I:$I,Lists!$Z:$Z,'Portfolio Analytics'!$C1121,raw_fuel_burn!$E:$E,'Portfolio Analytics'!AD$1086,raw_fuel_burn!$C:$C,mainzone)/1000000","v":0},{"$f":"SUMIFS(raw_fuel_burn!$I:$I,Lists!$Z:$Z,'Portfolio Analytics'!$C1121,raw_fuel_burn!$E:$E,'Portfolio Analytics'!AE$1086,raw_fuel_burn!$C:$C,mainzone)/1000000","v":0},{"$f":"SUMIFS(raw_fuel_burn!$I:$I,Lists!$Z:$Z,'Portfolio Analytics'!$C1121,raw_fuel_burn!$E:$E,'Portfolio Analytics'!AF$1086,raw_fuel_burn!$C:$C,mainzone)/1000000","v":0},{"$f":"SUMIFS(raw_fuel_burn!$I:$I,Lists!$Z:$Z,'Portfolio Analytics'!$C1121,raw_fuel_burn!$E:$E,'Portfolio Analytics'!AG$1086,raw_fuel_burn!$C:$C,mainzone)/1000000","v":0},{"$f":"SUMIFS(raw_fuel_burn!$I:$I,Lists!$Z:$Z,'Portfolio Analytics'!$C1121,raw_fuel_burn!$E:$E,'Portfolio Analytics'!AH$1086,raw_fuel_burn!$C:$C,mainzone)/1000000","v":0},{"$f":"SUMIFS(raw_fuel_burn!$I:$I,Lists!$Z:$Z,'Portfolio Analytics'!$C1121,raw_fuel_burn!$E:$E,'Portfolio Analytics'!AI$1086,raw_fuel_burn!$C:$C,mainzone)/1000000","v":0},{"$f":"SUMIFS(raw_fuel_burn!$I:$I,Lists!$Z:$Z,'Portfolio Analytics'!$C1121,raw_fuel_burn!$E:$E,'Portfolio Analytics'!AJ$1086,raw_fuel_burn!$C:$C,mainzone)/1000000","v":0},{"$f":"SUMIFS(raw_fuel_burn!$I:$I,Lists!$Z:$Z,'Portfolio Analytics'!$C1121,raw_fuel_burn!$E:$E,'Portfolio Analytics'!AK$1086,raw_fuel_burn!$C:$C,mainzone)/1000000","v":0},{"$f":"SUMIFS(raw_fuel_burn!$I:$I,Lists!$Z:$Z,'Portfolio Analytics'!$C1121,raw_fuel_burn!$E:$E,'Portfolio Analytics'!AL$1086,raw_fuel_burn!$C:$C,mainzone)/1000000","v":0},{"$f":"SUMIFS(raw_fuel_burn!$I:$I,Lists!$Z:$Z,'Portfolio Analytics'!$C1121,raw_fuel_burn!$E:$E,'Portfolio Analytics'!AM$1086,raw_fuel_burn!$C:$C,mainzone)/1000000","v":0},{"$f":"SUMIFS(raw_fuel_burn!$I:$I,Lists!$Z:$Z,'Portfolio Analytics'!$C1121,raw_fuel_burn!$E:$E,'Portfolio Analytics'!AN$1086,raw_fuel_burn!$C:$C,mainzone)/1000000","v":0}]
[]
[null,null,"Average GHG Emissions Factor"]
[null,null,"CAISO_CCGT1","tCO2/MWh",{"$f":"IFERROR(SUMPRODUCT(($C$1087:$C$1097=$C1124)*E$1087:E$1097)/SUMPRODUCT(($C$167:$C$192=$C1124)*E$167:E$192)*1000,0)","v":0},0,0,0,0,0.38033559145776857,0.37995214968166935,0.38098410717891629,0.38157479291830526,0.38134351369599584,{"$f":"IFERROR(SUMPRODUCT(($C$1087:$C$1097=$C1124)*O$1087:O$1097)/SUMPRODUCT(($C$167:$C$192=$C1124)*O$167:O$192)*1000,0)","v":0},0.38018759939159863,0,0,0,0.38320074585898306,0,0,0,0,{"$f":"IFERROR(SUMPRODUCT(($C$1087:$C$1097=$C1124)*Y$1087:Y$1097)/SUMPRODUCT(($C$167:$C$192=$C1124)*Y$167:Y$192)*1000,0)","v":0},0,0,0,0,0,0,0,0,0,{"$f":"IFERROR(SUMPRODUCT(($C$1087:$C$1097=$C1124)*AI$1087:AI$1097)/SUMPRODUCT(($C$167:$C$192=$C1124)*AI$167:AI$192)*1000,0)","v":0.37961013967284618},0,0,0,0,0]
[null,null,"CAISO_CCGT2","tCO2/MWh",0,0,0,0,0,0.57763118762227861,0,0,0,0,0,0,0,0,0,0,0,0,0,0,0,0,0,0,0,0,0,0,0,0,0.44861992991592659,0,0,0,0,0]
[null,null,"CAISO_Peaker1","tCO2/MWh",0,0,0,0,0,0.6057148097500058,0.62279374127613363,0.62555149270785282,0.62421613113765961,0.62385856389241867,0,0.61911229055385919,0,0,0,0.63200407550165283,0,0,0,0,0,0,0,0,0,0,0,0,0,0,0,0,0,0,0,0]
[null,null,"CAISO_Peaker2","tCO2/MWh",0,0,0,0,0,0,0,0,0,0,0,0,0,0,0,0,0,0,0,0,0,0,0,0,0,0,0,0,0,0,0,0,0,0,0,0]
[null,null,"CAISO_Advanced_CCGT","tCO2/MWh",0,0,0,0,0,0,0,0,0,0,0,0,0,0,0,0,0,0,0,0,0,0,0,0,0,0,0,0,0,0,0,0,0,0,0,0]
[null,null,"CAISO_Aero_CT","tCO2/MWh",0,0,0,0,0,0,0,0,0,0,0,0,0,0,0,0,0,0,0,0,0,0,0,0,0,0,0,0,0,0,0,0,0,0,0,0]
[null,null,"CAISO_Reciprocating_Engine","tCO2/MWh",0,0,0,0,0,0.53175121793073521,0.54824858605730187,0.55571314338737732,0.5530757646514064,0.55660890186271939,0,0.57284977992139607,0,0,0,0.56488340021998407,0,0,0,0,0,0,0,0,0,0,0,0,0,0,0.48280838755288608,0,0,0,0,0]
[null,null,"CAISO_ST","tCO2/MWh",0,0,0,0,0,0,0,0,0,0,0,0,0,0,0,0,0,0,0,0,0,0,0,0,0,0,0,0,0,0,0,0,0,0,0,0]
[null,null,"CAISO_CHP","tCO2/MWh",0,0,0,0,0,0.40311831372832468,0.40311831372832468,0.40311831372832468,0.40311831372832468,0.40311831372832468,0,0.40311831372832468,0,0,0,0.40311831372832468,0,0,0,0,0,0,0,0,0,0,0,0,0,0,0,0,0,0,0,0]
[null,null,"CAISO_Coal","tCO2/MWh",0,0,0,0,0,0.95555379170608445,0.9566701021820031,0.95766317153905678,0.95723831000037407,0.95723831000037407,0,0,0,0,0,0,0,0,0,0,0,0,0,0,0,0,0,0,0,0,0,0,0,0,0,0]
[null,null,"Unspecified emissions","tCO2/MWh",{"$f":"IFERROR(E1079/E193*1000,0)","v":0},0,0,0,0,0.42799994874386516,0.42800006140055136,0.42799993288551197,0.42799993410114479,0.4279999729214925,0,0.42799997314637933,0,0,0,0.42799998098516556,0,0,0,0,0,0,0,0,0,0,0,0,0,0,0.42800019139595447,0,0,0,0,0]
[]
[null,null,"Average Heat Rate"]
[null,null,"CAISO_CCGT1","MMBtu/MWh",{"$f":"IFERROR(SUMPRODUCT(($C$1100:$C$1109=$C1137)*E$1100:E$1109)/SUMPRODUCT(($C$167:$C$192=$C1137)*E$167:E$192)*1000,0)","v":0},0,0,0,0,7.176143004942058,7.1689084410701724,7.1883782358846764,7.1995238981426368,7.1951598419121323,{"$f":"IFERROR(SUMPRODUCT(($C$1100:$C$1109=$C1137)*O$1100:O$1109)/SUMPRODUCT(($C$167:$C$192=$C1137)*O$167:O$192)*1000,0)","v":0},7.1733489613561083,0,0,0,7.2302026043695271,0,0,0,0,{"$f":"IFERROR(SUMPRODUCT(($C$1100:$C$1109=$C1137)*Y$1100:Y$1109)/SUMPRODUCT(($C$167:$C$192=$C1137)*Y$167:Y$192)*1000,0)","v":0},0,0,0,0,0,0,0,0,0,{"$f":"IFERROR(SUMPRODUCT(($C$1100:$C$1109=$C1137)*AI$1100:AI$1109)/SUMPRODUCT(($C$167:$C$192=$C1137)*AI$167:AI$192)*1000,0)","v":7.1624546177510267},0,0,0,0,0]
[null,null,"CAISO_CCGT2","MMBtu/MWh",0,0,0,0,0,10.898712158331383,0,0,0,0,0,0,0,0,0,0,0,0,0,0,0,0,0,0,0,0,0,0,0,0,8.4645296038127888,0,0,0,0,0]
[null,null,"CAISO_Peaker1","MMBtu/MWh",0,0,0,0,0,11.428580319943563,11.750824080870856,11.802850526806777,11.7776642971711,11.770909672913659,0,11.681335484194063,0,0,0,11.924627498564748,0,0,0,0,0,0,0,0,0,0,0,0,0,0,0,0,0,0,0,0]
[null,null,"CAISO_Peaker2","MMBtu/MWh",0,0,0,0,0,0,0,0,0,0,0,0,0,0,0,0,0,0,0,0,0,0,0,0,0,0,0,0,0,0,0,0,0,0,0,0]
[null,null,"CAISO_Advanced_CCGT","MMBtu/MWh",0,0,0,0,0,0,0,0,0,0,0,0,0,0,0,0,0,0,0,0,0,0,0,0,0,0,0,0,0,0,0,0,0,0,0,0]
[null,null,"CAISO_Aero_CT","MMBtu/MWh",0,0,0,0,0,0,0,0,0,0,0,0,0,0,0,0,0,0,0,0,0,0,0,0,0,0,0,0,0,0,0,0,0,0,0,0]
[null,null,"CAISO_Reciprocating_Engine","MMBtu/MWh",0,0,0,0,0,10.032486986677181,10.344075729487296,10.485084954528025,10.435475734557301,10.502050572796742,0,10.808391193078768,0,0,0,10.657924711974125,0,0,0,0,0,0,0,0,0,0,0,0,0,0,9.1097285298041761,0,0,0,0,0]
[null,null,"CAISO_ST","MMBtu/MWh",0,0,0,0,0,0,0,0,0,0,0,0,0,0,0,0,0,0,0,0,0,0,0,0,0,0,0,0,0,0,0,0,0,0,0,0]
[null,null,"CAISO_Coal","MMBtu/MWh",0,0,0,0,0,10.165363299778917,10.177240863475971,10.187805217908117,10.183284715908407,10.183284715908407,0,0,0,0,0,0,0,0,0,0,0,0,0,0,0,0,0,0,0,0,0,0,0,0,0,0]
[null,null,"CAISO_CHP","MMBtu/MWh",0,0,0,0,0,7.6059992864612553,7.6059992864612553,7.6059992864612553,7.6059992864612553,7.6059992864612553,0,7.6059992864612553,0,0,0,7.6059992864612553,0,0,0,0,0,0,0,0,0,0,0,0,0,0,0,0,0,0,0,0]
[]
[null,"Shift DR Summary"]
[]
[null,null,"Shift DR Shift Results"]
[null,null,"Metric","Unit",2015,{"$f":"E1151+1","v":2016},2017,2018,2019,2020,2021,2022,2023,2024,2025,2026,2027,2028,2029,2030,2031,2032,2033,2034,2035,2036,2037,2038,2039,2040,2041,2042,2043,2044,2045,2046,2047,2048,2049,2050]
[null,null,"Shift DR","MWh daily energy shift",{"$f":"SUMIFS(raw_resource_build!$AM:$AM,raw_resource_build!$Z:$Z,'Portfolio Analytics'!E$97)","v":0},{"$f":"SUMIFS(raw_resource_build!$AM:$AM,raw_resource_build!$Z:$Z,'Portfolio Analytics'!F$97)","v":0},{"$f":"SUMIFS(raw_resource_build!$AM:$AM,raw_resource_build!$Z:$Z,'Portfolio Analytics'!G$97)","v":0},{"$f":"SUMIFS(raw_resource_build!$AM:$AM,raw_resource_build!$Z:$Z,'Portfolio Analytics'!H$97)","v":0},{"$f":"SUMIFS(raw_resource_build!$AM:$AM,raw_resource_build!$Z:$Z,'Portfolio Analytics'!I$97)","v":0},{"$f":"SUMIFS(raw_resource_build!$AM:$AM,raw_resource_build!$Z:$Z,'Portfolio Analytics'!J$97)","v":0},{"$f":"SUMIFS(raw_resource_build!$AM:$AM,raw_resource_build!$Z:$Z,'Portfolio Analytics'!K$97)","v":0},{"$f":"SUMIFS(raw_resource_build!$AM:$AM,raw_resource_build!$Z:$Z,'Portfolio Analytics'!L$97)","v":0},{"$f":"SUMIFS(raw_resource_build!$AM:$AM,raw_resource_build!$Z:$Z,'Portfolio Analytics'!M$97)","v":0},{"$f":"SUMIFS(raw_resource_build!$AM:$AM,raw_resource_build!$Z:$Z,'Portfolio Analytics'!N$97)","v":0},{"$f":"SUMIFS(raw_resource_build!$AM:$AM,raw_resource_build!$Z:$Z,'Portfolio Analytics'!O$97)","v":0},{"$f":"SUMIFS(raw_resource_build!$AM:$AM,raw_resource_build!$Z:$Z,'Portfolio Analytics'!P$97)","v":0},{"$f":"SUMIFS(raw_resource_build!$AM:$AM,raw_resource_build!$Z:$Z,'Portfolio Analytics'!Q$97)","v":0},{"$f":"SUMIFS(raw_resource_build!$AM:$AM,raw_resource_build!$Z:$Z,'Portfolio Analytics'!R$97)","v":0},{"$f":"SUMIFS(raw_resource_build!$AM:$AM,raw_resource_build!$Z:$Z,'Portfolio Analytics'!S$97)","v":0},{"$f":"SUMIFS(raw_resource_build!$AM:$AM,raw_resource_build!$Z:$Z,'Portfolio Analytics'!T$97)","v":0},{"$f":"SUMIFS(raw_resource_build!$AM:$AM,raw_resource_build!$Z:$Z,'Portfolio Analytics'!U$97)","v":0},{"$f":"SUMIFS(raw_resource_build!$AM:$AM,raw_resource_build!$Z:$Z,'Portfolio Analytics'!V$97)","v":0},{"$f":"SUMIFS(raw_resource_build!$AM:$AM,raw_resource_build!$Z:$Z,'Portfolio Analytics'!W$97)","v":0},{"$f":"SUMIFS(raw_resource_build!$AM:$AM,raw_resource_build!$Z:$Z,'Portfolio Analytics'!X$97)","v":0},{"$f":"SUMIFS(raw_resource_build!$AM:$AM,raw_resource_build!$Z:$Z,'Portfolio Analytics'!Y$97)","v":0},{"$f":"SUMIFS(raw_resource_build!$AM:$AM,raw_resource_build!$Z:$Z,'Portfolio Analytics'!Z$97)","v":0},{"$f":"SUMIFS(raw_resource_build!$AM:$AM,raw_resource_build!$Z:$Z,'Portfolio Analytics'!AA$97)","v":0},{"$f":"SUMIFS(raw_resource_build!$AM:$AM,raw_resource_build!$Z:$Z,'Portfolio Analytics'!AB$97)","v":0},{"$f":"SUMIFS(raw_resource_build!$AM:$AM,raw_resource_build!$Z:$Z,'Portfolio Analytics'!AC$97)","v":0},{"$f":"SUMIFS(raw_resource_build!$AM:$AM,raw_resource_build!$Z:$Z,'Portfolio Analytics'!AD$97)","v":0},{"$f":"SUMIFS(raw_resource_build!$AM:$AM,raw_resource_build!$Z:$Z,'Portfolio Analytics'!AE$97)","v":0},{"$f":"SUMIFS(raw_resource_build!$AM:$AM,raw_resource_build!$Z:$Z,'Portfolio Analytics'!AF$97)","v":0},{"$f":"SUMIFS(raw_resource_build!$AM:$AM,raw_resource_build!$Z:$Z,'Portfolio Analytics'!AG$97)","v":0},{"$f":"SUMIFS(raw_resource_build!$AM:$AM,raw_resource_build!$Z:$Z,'Portfolio Analytics'!AH$97)","v":0},{"$f":"SUMIFS(raw_resource_build!$AM:$AM,raw_resource_build!$Z:$Z,'Portfolio Analytics'!AI$97)","v":0},{"$f":"SUMIFS(raw_resource_build!$AM:$AM,raw_resource_build!$Z:$Z,'Portfolio Analytics'!AJ$97)","v":0},{"$f":"SUMIFS(raw_resource_build!$AM:$AM,raw_resource_build!$Z:$Z,'Portfolio Analytics'!AK$97)","v":0},{"$f":"SUMIFS(raw_resource_build!$AM:$AM,raw_resource_build!$Z:$Z,'Portfolio Analytics'!AL$97)","v":0},{"$f":"SUMIFS(raw_resource_build!$AM:$AM,raw_resource_build!$Z:$Z,'Portfolio Analytics'!AM$97)","v":0},{"$f":"SUMIFS(raw_resource_build!$AM:$AM,raw_resource_build!$Z:$Z,'Portfolio Analytics'!AN$97)","v":0}]
[null,null,"Max. Dispatch Fraction in one hr","-",{"$f":"SUMIFS(raw_inputs_passthrough!$M:$M,raw_inputs_passthrough!$A:$A,E$1151)","v":0},{"$f":"SUMIFS(raw_inputs_passthrough!$M:$M,raw_inputs_passthrough!$A:$A,F$1151)","v":0},{"$f":"SUMIFS(raw_inputs_passthrough!$M:$M,raw_inputs_passthrough!$A:$A,G$1151)","v":0},{"$f":"SUMIFS(raw_inputs_passthrough!$M:$M,raw_inputs_passthrough!$A:$A,H$1151)","v":0},{"$f":"SUMIFS(raw_inputs_passthrough!$M:$M,raw_inputs_passthrough!$A:$A,I$1151)","v":0},{"$f":"SUMIFS(raw_inputs_passthrough!$M:$M,raw_inputs_passthrough!$A:$A,J$1151)","v":0.16666666666666699},{"$f":"SUMIFS(raw_inputs_passthrough!$M:$M,raw_inputs_passthrough!$A:$A,K$1151)","v":0.16666666666666699},{"$f":"SUMIFS(raw_inputs_passthrough!$M:$M,raw_inputs_passthrough!$A:$A,L$1151)","v":0.16666666666666699},{"$f":"SUMIFS(raw_inputs_passthrough!$M:$M,raw_inputs_passthrough!$A:$A,M$1151)","v":0.16666666666666699},{"$f":"SUMIFS(raw_inputs_passthrough!$M:$M,raw_inputs_passthrough!$A:$A,N$1151)","v":0.16666666666666699},{"$f":"SUMIFS(raw_inputs_passthrough!$M:$M,raw_inputs_passthrough!$A:$A,O$1151)","v":0},{"$f":"SUMIFS(raw_inputs_passthrough!$M:$M,raw_inputs_passthrough!$A:$A,P$1151)","v":0.16666666666666699},{"$f":"SUMIFS(raw_inputs_passthrough!$M:$M,raw_inputs_passthrough!$A:$A,Q$1151)","v":0},{"$f":"SUMIFS(raw_inputs_passthrough!$M:$M,raw_inputs_passthrough!$A:$A,R$1151)","v":0},{"$f":"SUMIFS(raw_inputs_passthrough!$M:$M,raw_inputs_passthrough!$A:$A,S$1151)","v":0},{"$f":"SUMIFS(raw_inputs_passthrough!$M:$M,raw_inputs_passthrough!$A:$A,T$1151)","v":0.16666666666666699},{"$f":"SUMIFS(raw_inputs_passthrough!$M:$M,raw_inputs_passthrough!$A:$A,U$1151)","v":0},{"$f":"SUMIFS(raw_inputs_passthrough!$M:$M,raw_inputs_passthrough!$A:$A,V$1151)","v":0},{"$f":"SUMIFS(raw_inputs_passthrough!$M:$M,raw_inputs_passthrough!$A:$A,W$1151)","v":0},{"$f":"SUMIFS(raw_inputs_passthrough!$M:$M,raw_inputs_passthrough!$A:$A,X$1151)","v":0},{"$f":"SUMIFS(raw_inputs_passthrough!$M:$M,raw_inputs_passthrough!$A:$A,Y$1151)","v":0},{"$f":"SUMIFS(raw_inputs_passthrough!$M:$M,raw_inputs_passthrough!$A:$A,Z$1151)","v":0},{"$f":"SUMIFS(raw_inputs_passthrough!$M:$M,raw_inputs_passthrough!$A:$A,AA$1151)","v":0},{"$f":"SUMIFS(raw_inputs_passthrough!$M:$M,raw_inputs_passthrough!$A:$A,AB$1151)","v":0},{"$f":"SUMIFS(raw_inputs_passthrough!$M:$M,raw_inputs_passthrough!$A:$A,AC$1151)","v":0},{"$f":"SUMIFS(raw_inputs_passthrough!$M:$M,raw_inputs_passthrough!$A:$A,AD$1151)","v":0},{"$f":"SUMIFS(raw_inputs_passthrough!$M:$M,raw_inputs_passthrough!$A:$A,AE$1151)","v":0},{"$f":"SUMIFS(raw_inputs_passthrough!$M:$M,raw_inputs_passthrough!$A:$A,AF$1151)","v":0},{"$f":"SUMIFS(raw_inputs_passthrough!$M:$M,raw_inputs_passthrough!$A:$A,AG$1151)","v":0},{"$f":"SUMIFS(raw_inputs_passthrough!$M:$M,raw_inputs_passthrough!$A:$A,AH$1151)","v":0},{"$f":"SUMIFS(raw_inputs_passthrough!$M:$M,raw_inputs_passthrough!$A:$A,AI$1151)","v":0.16666666666666699},{"$f":"SUMIFS(raw_inputs_passthrough!$M:$M,raw_inputs_passthrough!$A:$A,AJ$1151)","v":0},{"$f":"SUMIFS(raw_inputs_passthrough!$M:$M,raw_inputs_passthrough!$A:$A,AK$1151)","v":0},{"$f":"SUMIFS(raw_inputs_passthrough!$M:$M,raw_inputs_passthrough!$A:$A,AL$1151)","v":0},{"$f":"SUMIFS(raw_inputs_passthrough!$M:$M,raw_inputs_passthrough!$A:$A,AM$1151)","v":0},{"$f":"SUMIFS(raw_inputs_passthrough!$M:$M,raw_inputs_passthrough!$A:$A,AN$1151)","v":0}]
[null,null,"Max Hourly Shift DR","MW",{"$f":"E1152*E1153","v":0},0,0,0,0,0,0,0,0,0,0,0,0,0,0,0,0,0,0,0,0,0,0,0,0,0,0,0,0,0,0,0,0,0,0,0]
[]
[]
[null,"Objective Function Summary"]
[]
[null,null,"Objective Function Cost Summary"]
[null,null,"Component","Unit",2015,{"$f":"E1160+1","v":2016},2017,2018,2019,2020,2021,2022,2023,2024,2025,2026,2027,2028,2029,2030,2031,2032,2033,2034,2035,2036,2037,2038,2039,2040,2041,2042,2043,2044,2045,2046,2047,2048,2049,2050]
[null,null,"Baseline Thermal Fleet Costs","$MM",{"$f":"E993","v":0},0,0,0,0,329.18887233000004,301.96844411000001,301.96844411000001,301.96844411000001,301.96844411000001,0,301.96844411000001,0,0,0,301.96844411000001,0,0,0,0,0,0,0,0,0,0,0,0,0,0,250.34287190000003,0,0,0,0,0]
[null,null,"New Renewables Fixed Costs","$MM",{"$f":"E994","v":0},0,0,0,0,154.23889914999998,307.90617705999995,887.13210034999997,1070.60484505,1395.4597520699999,0,1836.76426694,0,0,0,3298.7012870999997,0,0,0,0,0,0,0,0,0,0,0,0,0,0,13205.55879954,0,0,0,0,0]
[null,null,"New Storage Fixed Costs","$MM",{"$f":"E995","v":0},0,0,0,0,577.08511522999993,1023.7401685099999,1023.7401685099999,1059.0926509199999,1292.9234315599999,0,2090.0535337000001,0,0,0,2284.9719335699997,0,0,0,0,0,0,0,0,0,0,0,0,0,0,9730.5421049400029,0,0,0,0,0]
[null,null,"New Thermal Fleet Fixed Costs","$MM",{"$f":"E996","v":0},0,0,0,0,0,0,0,0,0,0,0,0,0,0,0,0,0,0,0,0,0,0,0,0,0,0,0,0,0,0,0,0,0,0,0]
[null,null,"New DR Fixed Costs","$MM",{"$f":"E997","v":0},0,0,0,0,0,0,0,0,0,0,0,0,0,0,0,0,0,0,0,0,0,0,0,0,0,0,0,0,0,0,0,0,0,0,0]
[null,null,"New Transmission Costs","$MM",{"$f":"E998","v":0},0,0,0,0,0,0,0,1.002894,2.6597072700000002,0,17.1505765,0,0,0,242.20949116,0,0,0,0,0,0,0,0,0,0,0,0,0,0,3947.7815677599992,0,0,0,0,0]
[null,null,"Operational Costs","$MM",{"$f":"(SUMIFS(raw_operational_costs!$E:$E,raw_operational_costs!$D:$D,E$1160)+SUMIFS(raw_operational_costs!$F:$F,raw_operational_costs!$D:$D,E$1160)+SUMIFS(raw_operational_costs!$G:$G,raw_operational_costs!$D:$D,E$1160)+SUMIFS(raw_operational_costs!$H:$H,raw_operational_costs!$D:$D,E$1160))/1000000","v":0},{"$f":"(SUMIFS(raw_operational_costs!$E:$E,raw_operational_costs!$D:$D,F$1160)+SUMIFS(raw_operational_costs!$F:$F,raw_operational_costs!$D:$D,F$1160)+SUMIFS(raw_operational_costs!$G:$G,raw_operational_costs!$D:$D,F$1160)+SUMIFS(raw_operational_costs!$H:$H,raw_operational_costs!$D:$D,F$1160))/1000000","v":0},{"$f":"(SUMIFS(raw_operational_costs!$E:$E,raw_operational_costs!$D:$D,G$1160)+SUMIFS(raw_operational_costs!$F:$F,raw_operational_costs!$D:$D,G$1160)+SUMIFS(raw_operational_costs!$G:$G,raw_operational_costs!$D:$D,G$1160)+SUMIFS(raw_operational_costs!$H:$H,raw_operational_costs!$D:$D,G$1160))/1000000","v":0},{"$f":"(SUMIFS(raw_operational_costs!$E:$E,raw_operational_costs!$D:$D,H$1160)+SUMIFS(raw_operational_costs!$F:$F,raw_operational_costs!$D:$D,H$1160)+SUMIFS(raw_operational_costs!$G:$G,raw_operational_costs!$D:$D,H$1160)+SUMIFS(raw_operational_costs!$H:$H,raw_operational_costs!$D:$D,H$1160))/1000000","v":0},{"$f":"(SUMIFS(raw_operational_costs!$E:$E,raw_operational_costs!$D:$D,I$1160)+SUMIFS(raw_operational_costs!$F:$F,raw_operational_costs!$D:$D,I$1160)+SUMIFS(raw_operational_costs!$G:$G,raw_operational_costs!$D:$D,I$1160)+SUMIFS(raw_operational_costs!$H:$H,raw_operational_costs!$D:$D,I$1160))/1000000","v":0},{"$f":"(SUMIFS(raw_operational_costs!$E:$E,raw_operational_costs!$D:$D,J$1160)+SUMIFS(raw_operational_costs!$F:$F,raw_operational_costs!$D:$D,J$1160)+SUMIFS(raw_operational_costs!$G:$G,raw_operational_costs!$D:$D,J$1160)+SUMIFS(raw_operational_costs!$H:$H,raw_operational_costs!$D:$D,J$1160))/1000000","v":8208.8710561217667},{"$f":"(SUMIFS(raw_operational_costs!$E:$E,raw_operational_costs!$D:$D,K$1160)+SUMIFS(raw_operational_costs!$F:$F,raw_operational_costs!$D:$D,K$1160)+SUMIFS(raw_operational_costs!$G:$G,raw_operational_costs!$D:$D,K$1160)+SUMIFS(raw_operational_costs!$H:$H,raw_operational_costs!$D:$D,K$1160))/1000000","v":8222.284182551557},{"$f":"(SUMIFS(raw_operational_costs!$E:$E,raw_operational_costs!$D:$D,L$1160)+SUMIFS(raw_operational_costs!$F:$F,raw_operational_costs!$D:$D,L$1160)+SUMIFS(raw_operational_costs!$G:$G,raw_operational_costs!$D:$D,L$1160)+SUMIFS(raw_operational_costs!$H:$H,raw_operational_costs!$D:$D,L$1160))/1000000","v":8100.4477114249121},{"$f":"(SUMIFS(raw_operational_costs!$E:$E,raw_operational_costs!$D:$D,M$1160)+SUMIFS(raw_operational_costs!$F:$F,raw_operational_costs!$D:$D,M$1160)+SUMIFS(raw_operational_costs!$G:$G,raw_operational_costs!$D:$D,M$1160)+SUMIFS(raw_operational_costs!$H:$H,raw_operational_costs!$D:$D,M$1160))/1000000","v":8129.2383990667668},{"$f":"(SUMIFS(raw_operational_costs!$E:$E,raw_operational_costs!$D:$D,N$1160)+SUMIFS(raw_operational_costs!$F:$F,raw_operational_costs!$D:$D,N$1160)+SUMIFS(raw_operational_costs!$G:$G,raw_operational_costs!$D:$D,N$1160)+SUMIFS(raw_operational_costs!$H:$H,raw_operational_costs!$D:$D,N$1160))/1000000","v":8281.9584932310008},{"$f":"(SUMIFS(raw_operational_costs!$E:$E,raw_operational_costs!$D:$D,O$1160)+SUMIFS(raw_operational_costs!$F:$F,raw_operational_costs!$D:$D,O$1160)+SUMIFS(raw_operational_costs!$G:$G,raw_operational_costs!$D:$D,O$1160)+SUMIFS(raw_operational_costs!$H:$H,raw_operational_costs!$D:$D,O$1160))/1000000","v":0},{"$f":"(SUMIFS(raw_operational_costs!$E:$E,raw_operational_costs!$D:$D,P$1160)+SUMIFS(raw_operational_costs!$F:$F,raw_operational_costs!$D:$D,P$1160)+SUMIFS(raw_operational_costs!$G:$G,raw_operational_costs!$D:$D,P$1160)+SUMIFS(raw_operational_costs!$H:$H,raw_operational_costs!$D:$D,P$1160))/1000000","v":8521.4394029540435},{"$f":"(SUMIFS(raw_operational_costs!$E:$E,raw_operational_costs!$D:$D,Q$1160)+SUMIFS(raw_operational_costs!$F:$F,raw_operational_costs!$D:$D,Q$1160)+SUMIFS(raw_operational_costs!$G:$G,raw_operational_costs!$D:$D,Q$1160)+SUMIFS(raw_operational_costs!$H:$H,raw_operational_costs!$D:$D,Q$1160))/1000000","v":0},{"$f":"(SUMIFS(raw_operational_costs!$E:$E,raw_operational_costs!$D:$D,R$1160)+SUMIFS(raw_operational_costs!$F:$F,raw_operational_costs!$D:$D,R$1160)+SUMIFS(raw_operational_costs!$G:$G,raw_operational_costs!$D:$D,R$1160)+SUMIFS(raw_operational_costs!$H:$H,raw_operational_costs!$D:$D,R$1160))/1000000","v":0},{"$f":"(SUMIFS(raw_operational_costs!$E:$E,raw_operational_costs!$D:$D,S$1160)+SUMIFS(raw_operational_costs!$F:$F,raw_operational_costs!$D:$D,S$1160)+SUMIFS(raw_operational_costs!$G:$G,raw_operational_costs!$D:$D,S$1160)+SUMIFS(raw_operational_costs!$H:$H,raw_operational_costs!$D:$D,S$1160))/1000000","v":0},{"$f":"(SUMIFS(raw_operational_costs!$E:$E,raw_operational_costs!$D:$D,T$1160)+SUMIFS(raw_operational_costs!$F:$F,raw_operational_costs!$D:$D,T$1160)+SUMIFS(raw_operational_costs!$G:$G,raw_operational_costs!$D:$D,T$1160)+SUMIFS(raw_operational_costs!$H:$H,raw_operational_costs!$D:$D,T$1160))/1000000","v":8358.7781666130941},{"$f":"(SUMIFS(raw_operational_costs!$E:$E,raw_operational_costs!$D:$D,U$1160)+SUMIFS(raw_operational_costs!$F:$F,raw_operational_costs!$D:$D,U$1160)+SUMIFS(raw_operational_costs!$G:$G,raw_operational_costs!$D:$D,U$1160)+SUMIFS(raw_operational_costs!$H:$H,raw_operational_costs!$D:$D,U$1160))/1000000","v":0},{"$f":"(SUMIFS(raw_operational_costs!$E:$E,raw_operational_costs!$D:$D,V$1160)+SUMIFS(raw_operational_costs!$F:$F,raw_operational_costs!$D:$D,V$1160)+SUMIFS(raw_operational_costs!$G:$G,raw_operational_costs!$D:$D,V$1160)+SUMIFS(raw_operational_costs!$H:$H,raw_operational_costs!$D:$D,V$1160))/1000000","v":0},{"$f":"(SUMIFS(raw_operational_costs!$E:$E,raw_operational_costs!$D:$D,W$1160)+SUMIFS(raw_operational_costs!$F:$F,raw_operational_costs!$D:$D,W$1160)+SUMIFS(raw_operational_costs!$G:$G,raw_operational_costs!$D:$D,W$1160)+SUMIFS(raw_operational_costs!$H:$H,raw_operational_costs!$D:$D,W$1160))/1000000","v":0},{"$f":"(SUMIFS(raw_operational_costs!$E:$E,raw_operational_costs!$D:$D,X$1160)+SUMIFS(raw_operational_costs!$F:$F,raw_operational_costs!$D:$D,X$1160)+SUMIFS(raw_operational_costs!$G:$G,raw_operational_costs!$D:$D,X$1160)+SUMIFS(raw_operational_costs!$H:$H,raw_operational_costs!$D:$D,X$1160))/1000000","v":0},{"$f":"(SUMIFS(raw_operational_costs!$E:$E,raw_operational_costs!$D:$D,Y$1160)+SUMIFS(raw_operational_costs!$F:$F,raw_operational_costs!$D:$D,Y$1160)+SUMIFS(raw_operational_costs!$G:$G,raw_operational_costs!$D:$D,Y$1160)+SUMIFS(raw_operational_costs!$H:$H,raw_operational_costs!$D:$D,Y$1160))/1000000","v":0},{"$f":"(SUMIFS(raw_operational_costs!$E:$E,raw_operational_costs!$D:$D,Z$1160)+SUMIFS(raw_operational_costs!$F:$F,raw_operational_costs!$D:$D,Z$1160)+SUMIFS(raw_operational_costs!$G:$G,raw_operational_costs!$D:$D,Z$1160)+SUMIFS(raw_operational_costs!$H:$H,raw_operational_costs!$D:$D,Z$1160))/1000000","v":0},{"$f":"(SUMIFS(raw_operational_costs!$E:$E,raw_operational_costs!$D:$D,AA$1160)+SUMIFS(raw_operational_costs!$F:$F,raw_operational_costs!$D:$D,AA$1160)+SUMIFS(raw_operational_costs!$G:$G,raw_operational_costs!$D:$D,AA$1160)+SUMIFS(raw_operational_costs!$H:$H,raw_operational_costs!$D:$D,AA$1160))/1000000","v":0},{"$f":"(SUMIFS(raw_operational_costs!$E:$E,raw_operational_costs!$D:$D,AB$1160)+SUMIFS(raw_operational_costs!$F:$F,raw_operational_costs!$D:$D,AB$1160)+SUMIFS(raw_operational_costs!$G:$G,raw_operational_costs!$D:$D,AB$1160)+SUMIFS(raw_operational_costs!$H:$H,raw_operational_costs!$D:$D,AB$1160))/1000000","v":0},{"$f":"(SUMIFS(raw_operational_costs!$E:$E,raw_operational_costs!$D:$D,AC$1160)+SUMIFS(raw_operational_costs!$F:$F,raw_operational_costs!$D:$D,AC$1160)+SUMIFS(raw_operational_costs!$G:$G,raw_operational_costs!$D:$D,AC$1160)+SUMIFS(raw_operational_costs!$H:$H,raw_operational_costs!$D:$D,AC$1160))/1000000","v":0},{"$f":"(SUMIFS(raw_operational_costs!$E:$E,raw_operational_costs!$D:$D,AD$1160)+SUMIFS(raw_operational_costs!$F:$F,raw_operational_costs!$D:$D,AD$1160)+SUMIFS(raw_operational_costs!$G:$G,raw_operational_costs!$D:$D,AD$1160)+SUMIFS(raw_operational_costs!$H:$H,raw_operational_costs!$D:$D,AD$1160))/1000000","v":0},{"$f":"(SUMIFS(raw_operational_costs!$E:$E,raw_operational_costs!$D:$D,AE$1160)+SUMIFS(raw_operational_costs!$F:$F,raw_operational_costs!$D:$D,AE$1160)+SUMIFS(raw_operational_costs!$G:$G,raw_operational_costs!$D:$D,AE$1160)+SUMIFS(raw_operational_costs!$H:$H,raw_operational_costs!$D:$D,AE$1160))/1000000","v":0},{"$f":"(SUMIFS(raw_operational_costs!$E:$E,raw_operational_costs!$D:$D,AF$1160)+SUMIFS(raw_operational_costs!$F:$F,raw_operational_costs!$D:$D,AF$1160)+SUMIFS(raw_operational_costs!$G:$G,raw_operational_costs!$D:$D,AF$1160)+SUMIFS(raw_operational_costs!$H:$H,raw_operational_costs!$D:$D,AF$1160))/1000000","v":0},{"$f":"(SUMIFS(raw_operational_costs!$E:$E,raw_operational_costs!$D:$D,AG$1160)+SUMIFS(raw_operational_costs!$F:$F,raw_operational_costs!$D:$D,AG$1160)+SUMIFS(raw_operational_costs!$G:$G,raw_operational_costs!$D:$D,AG$1160)+SUMIFS(raw_operational_costs!$H:$H,raw_operational_costs!$D:$D,AG$1160))/1000000","v":0},{"$f":"(SUMIFS(raw_operational_costs!$E:$E,raw_operational_costs!$D:$D,AH$1160)+SUMIFS(raw_operational_costs!$F:$F,raw_operational_costs!$D:$D,AH$1160)+SUMIFS(raw_operational_costs!$G:$G,raw_operational_costs!$D:$D,AH$1160)+SUMIFS(raw_operational_costs!$H:$H,raw_operational_costs!$D:$D,AH$1160))/1000000","v":0},{"$f":"(SUMIFS(raw_operational_costs!$E:$E,raw_operational_costs!$D:$D,AI$1160)+SUMIFS(raw_operational_costs!$F:$F,raw_operational_costs!$D:$D,AI$1160)+SUMIFS(raw_operational_costs!$G:$G,raw_operational_costs!$D:$D,AI$1160)+SUMIFS(raw_operational_costs!$H:$H,raw_operational_costs!$D:$D,AI$1160))/1000000","v":7873.5413476510194},{"$f":"(SUMIFS(raw_operational_costs!$E:$E,raw_operational_costs!$D:$D,AJ$1160)+SUMIFS(raw_operational_costs!$F:$F,raw_operational_costs!$D:$D,AJ$1160)+SUMIFS(raw_operational_costs!$G:$G,raw_operational_costs!$D:$D,AJ$1160)+SUMIFS(raw_operational_costs!$H:$H,raw_operational_costs!$D:$D,AJ$1160))/1000000","v":0},{"$f":"(SUMIFS(raw_operational_costs!$E:$E,raw_operational_costs!$D:$D,AK$1160)+SUMIFS(raw_operational_costs!$F:$F,raw_operational_costs!$D:$D,AK$1160)+SUMIFS(raw_operational_costs!$G:$G,raw_operational_costs!$D:$D,AK$1160)+SUMIFS(raw_operational_costs!$H:$H,raw_operational_costs!$D:$D,AK$1160))/1000000","v":0},{"$f":"(SUMIFS(raw_operational_costs!$E:$E,raw_operational_costs!$D:$D,AL$1160)+SUMIFS(raw_operational_costs!$F:$F,raw_operational_costs!$D:$D,AL$1160)+SUMIFS(raw_operational_costs!$G:$G,raw_operational_costs!$D:$D,AL$1160)+SUMIFS(raw_operational_costs!$H:$H,raw_operational_costs!$D:$D,AL$1160))/1000000","v":0},{"$f":"(SUMIFS(raw_operational_costs!$E:$E,raw_operational_costs!$D:$D,AM$1160)+SUMIFS(raw_operational_costs!$F:$F,raw_operational_costs!$D:$D,AM$1160)+SUMIFS(raw_operational_costs!$G:$G,raw_operational_costs!$D:$D,AM$1160)+SUMIFS(raw_operational_costs!$H:$H,raw_operational_costs!$D:$D,AM$1160))/1000000","v":0},{"$f":"(SUMIFS(raw_operational_costs!$E:$E,raw_operational_costs!$D:$D,AN$1160)+SUMIFS(raw_operational_costs!$F:$F,raw_operational_costs!$D:$D,AN$1160)+SUMIFS(raw_operational_costs!$G:$G,raw_operational_costs!$D:$D,AN$1160)+SUMIFS(raw_operational_costs!$H:$H,raw_operational_costs!$D:$D,AN$1160))/1000000","v":0}]
[null,null,"Hurdle Rate Costs","$MM",{"$f":"SUMIFS(raw_transmission_flows!$R:$R,raw_transmission_flows!$D:$D,E$1160)/1000000+SUMIFS(raw_transmission_flows!$S:$S,raw_transmission_flows!$D:$D,E$1160)/1000000","v":0},{"$f":"SUMIFS(raw_transmission_flows!$R:$R,raw_transmission_flows!$D:$D,F$1160)/1000000+SUMIFS(raw_transmission_flows!$S:$S,raw_transmission_flows!$D:$D,F$1160)/1000000","v":0},{"$f":"SUMIFS(raw_transmission_flows!$R:$R,raw_transmission_flows!$D:$D,G$1160)/1000000+SUMIFS(raw_transmission_flows!$S:$S,raw_transmission_flows!$D:$D,G$1160)/1000000","v":0},{"$f":"SUMIFS(raw_transmission_flows!$R:$R,raw_transmission_flows!$D:$D,H$1160)/1000000+SUMIFS(raw_transmission_flows!$S:$S,raw_transmission_flows!$D:$D,H$1160)/1000000","v":0},{"$f":"SUMIFS(raw_transmission_flows!$R:$R,raw_transmission_flows!$D:$D,I$1160)/1000000+SUMIFS(raw_transmission_flows!$S:$S,raw_transmission_flows!$D:$D,I$1160)/1000000","v":0},{"$f":"SUMIFS(raw_transmission_flows!$R:$R,raw_transmission_flows!$D:$D,J$1160)/1000000+SUMIFS(raw_transmission_flows!$S:$S,raw_transmission_flows!$D:$D,J$1160)/1000000","v":534.45779529196},{"$f":"SUMIFS(raw_transmission_flows!$R:$R,raw_transmission_flows!$D:$D,K$1160)/1000000+SUMIFS(raw_transmission_flows!$S:$S,raw_transmission_flows!$D:$D,K$1160)/1000000","v":511.18422039509323},{"$f":"SUMIFS(raw_transmission_flows!$R:$R,raw_transmission_flows!$D:$D,L$1160)/1000000+SUMIFS(raw_transmission_flows!$S:$S,raw_transmission_flows!$D:$D,L$1160)/1000000","v":512.30847593131784},{"$f":"SUMIFS(raw_transmission_flows!$R:$R,raw_transmission_flows!$D:$D,M$1160)/1000000+SUMIFS(raw_transmission_flows!$S:$S,raw_transmission_flows!$D:$D,M$1160)/1000000","v":546.71367821777983},{"$f":"SUMIFS(raw_transmission_flows!$R:$R,raw_transmission_flows!$D:$D,N$1160)/1000000+SUMIFS(raw_transmission_flows!$S:$S,raw_transmission_flows!$D:$D,N$1160)/1000000","v":588.12980178882992},{"$f":"SUMIFS(raw_transmission_flows!$R:$R,raw_transmission_flows!$D:$D,O$1160)/1000000+SUMIFS(raw_transmission_flows!$S:$S,raw_transmission_flows!$D:$D,O$1160)/1000000","v":0},{"$f":"SUMIFS(raw_transmission_flows!$R:$R,raw_transmission_flows!$D:$D,P$1160)/1000000+SUMIFS(raw_transmission_flows!$S:$S,raw_transmission_flows!$D:$D,P$1160)/1000000","v":552.02325374400607},{"$f":"SUMIFS(raw_transmission_flows!$R:$R,raw_transmission_flows!$D:$D,Q$1160)/1000000+SUMIFS(raw_transmission_flows!$S:$S,raw_transmission_flows!$D:$D,Q$1160)/1000000","v":0},{"$f":"SUMIFS(raw_transmission_flows!$R:$R,raw_transmission_flows!$D:$D,R$1160)/1000000+SUMIFS(raw_transmission_flows!$S:$S,raw_transmission_flows!$D:$D,R$1160)/1000000","v":0},{"$f":"SUMIFS(raw_transmission_flows!$R:$R,raw_transmission_flows!$D:$D,S$1160)/1000000+SUMIFS(raw_transmission_flows!$S:$S,raw_transmission_flows!$D:$D,S$1160)/1000000","v":0},{"$f":"SUMIFS(raw_transmission_flows!$R:$R,raw_transmission_flows!$D:$D,T$1160)/1000000+SUMIFS(raw_transmission_flows!$S:$S,raw_transmission_flows!$D:$D,T$1160)/1000000","v":633.3896274364364},{"$f":"SUMIFS(raw_transmission_flows!$R:$R,raw_transmission_flows!$D:$D,U$1160)/1000000+SUMIFS(raw_transmission_flows!$S:$S,raw_transmission_flows!$D:$D,U$1160)/1000000","v":0},{"$f":"SUMIFS(raw_transmission_flows!$R:$R,raw_transmission_flows!$D:$D,V$1160)/1000000+SUMIFS(raw_transmission_flows!$S:$S,raw_transmission_flows!$D:$D,V$1160)/1000000","v":0},{"$f":"SUMIFS(raw_transmission_flows!$R:$R,raw_transmission_flows!$D:$D,W$1160)/1000000+SUMIFS(raw_transmission_flows!$S:$S,raw_transmission_flows!$D:$D,W$1160)/1000000","v":0},{"$f":"SUMIFS(raw_transmission_flows!$R:$R,raw_transmission_flows!$D:$D,X$1160)/1000000+SUMIFS(raw_transmission_flows!$S:$S,raw_transmission_flows!$D:$D,X$1160)/1000000","v":0},{"$f":"SUMIFS(raw_transmission_flows!$R:$R,raw_transmission_flows!$D:$D,Y$1160)/1000000+SUMIFS(raw_transmission_flows!$S:$S,raw_transmission_flows!$D:$D,Y$1160)/1000000","v":0},{"$f":"SUMIFS(raw_transmission_flows!$R:$R,raw_transmission_flows!$D:$D,Z$1160)/1000000+SUMIFS(raw_transmission_flows!$S:$S,raw_transmission_flows!$D:$D,Z$1160)/1000000","v":0},{"$f":"SUMIFS(raw_transmission_flows!$R:$R,raw_transmission_flows!$D:$D,AA$1160)/1000000+SUMIFS(raw_transmission_flows!$S:$S,raw_transmission_flows!$D:$D,AA$1160)/1000000","v":0},{"$f":"SUMIFS(raw_transmission_flows!$R:$R,raw_transmission_flows!$D:$D,AB$1160)/1000000+SUMIFS(raw_transmission_flows!$S:$S,raw_transmission_flows!$D:$D,AB$1160)/1000000","v":0},{"$f":"SUMIFS(raw_transmission_flows!$R:$R,raw_transmission_flows!$D:$D,AC$1160)/1000000+SUMIFS(raw_transmission_flows!$S:$S,raw_transmission_flows!$D:$D,AC$1160)/1000000","v":0},{"$f":"SUMIFS(raw_transmission_flows!$R:$R,raw_transmission_flows!$D:$D,AD$1160)/1000000+SUMIFS(raw_transmission_flows!$S:$S,raw_transmission_flows!$D:$D,AD$1160)/1000000","v":0},{"$f":"SUMIFS(raw_transmission_flows!$R:$R,raw_transmission_flows!$D:$D,AE$1160)/1000000+SUMIFS(raw_transmission_flows!$S:$S,raw_transmission_flows!$D:$D,AE$1160)/1000000","v":0},{"$f":"SUMIFS(raw_transmission_flows!$R:$R,raw_transmission_flows!$D:$D,AF$1160)/1000000+SUMIFS(raw_transmission_flows!$S:$S,raw_transmission_flows!$D:$D,AF$1160)/1000000","v":0},{"$f":"SUMIFS(raw_transmission_flows!$R:$R,raw_transmission_flows!$D:$D,AG$1160)/1000000+SUMIFS(raw_transmission_flows!$S:$S,raw_transmission_flows!$D:$D,AG$1160)/1000000","v":0},{"$f":"SUMIFS(raw_transmission_flows!$R:$R,raw_transmission_flows!$D:$D,AH$1160)/1000000+SUMIFS(raw_transmission_flows!$S:$S,raw_transmission_flows!$D:$D,AH$1160)/1000000","v":0},{"$f":"SUMIFS(raw_transmission_flows!$R:$R,raw_transmission_flows!$D:$D,AI$1160)/1000000+SUMIFS(raw_transmission_flows!$S:$S,raw_transmission_flows!$D:$D,AI$1160)/1000000","v":493.45214657333531},{"$f":"SUMIFS(raw_transmission_flows!$R:$R,raw_transmission_flows!$D:$D,AJ$1160)/1000000+SUMIFS(raw_transmission_flows!$S:$S,raw_transmission_flows!$D:$D,AJ$1160)/1000000","v":0},{"$f":"SUMIFS(raw_transmission_flows!$R:$R,raw_transmission_flows!$D:$D,AK$1160)/1000000+SUMIFS(raw_transmission_flows!$S:$S,raw_transmission_flows!$D:$D,AK$1160)/1000000","v":0},{"$f":"SUMIFS(raw_transmission_flows!$R:$R,raw_transmission_flows!$D:$D,AL$1160)/1000000+SUMIFS(raw_transmission_flows!$S:$S,raw_transmission_flows!$D:$D,AL$1160)/1000000","v":0},{"$f":"SUMIFS(raw_transmission_flows!$R:$R,raw_transmission_flows!$D:$D,AM$1160)/1000000+SUMIFS(raw_transmission_flows!$S:$S,raw_transmission_flows!$D:$D,AM$1160)/1000000","v":0},{"$f":"SUMIFS(raw_transmission_flows!$R:$R,raw_transmission_flows!$D:$D,AN$1160)/1000000+SUMIFS(raw_transmission_flows!$S:$S,raw_transmission_flows!$D:$D,AN$1160)/1000000","v":0}]
[null,null,"Total","$MM",{"$f":"SUM(E1168,E1161:E1167)","v":0},{"$f":"SUM(F1168,F1161:F1167)","v":0},0,0,0,9803.8417381237268,10367.083192626651,10825.596900326229,11108.620911364545,11863.09963002983,0,13319.399477948049,0,0,0,15120.01894998953,0,0,0,0,0,0,0,0,0,0,0,0,0,0,35501.218838364359,0,0,0,0,0]
[]
[null,null,"Objective Function ($MM)",{"$f":"SUMPRODUCT($E$1169:$AN$1169,Dashboard!$J$212:$AS$212)","v":395252.83527097193}]
[null,null,"Baseline Thermal Fleet Fixed Costs",{"$f":"SUMPRODUCT($E1161:$AN1161,Dashboard!$J$212:$AS$212)","v":5350.7554447968641}]
[null,null,"New Renewables Fixed Costs",{"$f":"SUMPRODUCT($E1162:$AN1162,Dashboard!$J$212:$AS$212)","v":112668.51540744952}]
[null,null,"New Storage Fixed Costs",{"$f":"SUMPRODUCT($E1163:$AN1163,Dashboard!$J$212:$AS$212)","v":86007.64485556104}]
[null,null,"New Thermal Fleet Fixed Costs",{"$f":"SUMPRODUCT($E1164:$AN1164,Dashboard!$J$212:$AS$212)","v":0}]
[null,null,"New DR Fixed Costs",{"$f":"SUMPRODUCT($E1165:$AN1165,Dashboard!$J$212:$AS$212)","v":0}]
[null,null,"New Transmission Costs",{"$f":"SUMPRODUCT($E1166:$AN1166,Dashboard!$J$212:$AS$212)","v":27676.299295321718}]
[null,null,"Operational Costs",{"$f":"SUMPRODUCT($E1167:$AN1167,Dashboard!$J$212:$AS$212)+SUMPRODUCT($E1168:$AN1168,Dashboard!$J$212:$AS$212)","v":163549.62026784278}]
[]
[null,null,"Objective Function ($MM/yr)",{"$f":"D1171/SUM(Dashboard!$J$212:$AS$212)","v":21053.124816580603}]
[null,null,"Baseline Thermal Fleet Costs",{"$f":"D1172/SUM(Dashboard!$J$212:$AS$212)","v":285.00775248095954}]
[null,null,"New Renewables Fixed Costs",{"$f":"D1173/SUM(Dashboard!$J$212:$AS$212)","v":6001.2834978038554}]
[null,null,"New Storage Fixed Costs",{"$f":"D1174/SUM(Dashboard!$J$212:$AS$212)","v":4581.1934051855396}]
[null,null,"New Thermal Fleet Fixed Costs",{"$f":"D1175/SUM(Dashboard!$J$212:$AS$212)","v":0}]
[null,null,"New DR Fixed Costs",{"$f":"D1176/SUM(Dashboard!$J$212:$AS$212)","v":0}]
[null,null,"New Transmission Costs",{"$f":"D1177/SUM(Dashboard!$J$212:$AS$212)","v":1474.1768597965636}]
[null,null,"Operational Costs",{"$f":"D1178/SUM(Dashboard!$J$212:$AS$212)","v":8711.4633013136827}]

{"sheet":"Scenario Comparison","index":2,"n_rows":208,"n_cols":342,"rows_kept":208,"cut":false,"hidden":false,"merged":[]}
[]
[null,"Scenario Comparison",null,"1. Refresh the list of scenarios with available results using the Refresh button"]
[null,"Note: All costs are expressed in 2016 dollars",null,"2. Select scenarios to be compared using the Add and Remove buttons"]
[null,null,null,"3. Select a year of interest and press the Compare button"]
[]
[null,null,null,null,null,null,null,null,null,null,"KEY SUMMARY STATS"]
[null,"Scenarios with Results",null,null,null,"Scenarios To Compare",null,null,null,null,null,null,null,{"$f":"AND(N11:N198=M11:M198)","v":false},{"$f":"AND(O11:O198=N11:N198)","v":false},{"$f":"AND(P11:P198=O11:O198)","v":true},{"$f":"AND(Q11:Q198=P11:P198)","v":true},{"$f":"AND(R11:R198=Q11:Q198)","v":true},{"$f":"AND(S11:S198=R11:R198)","v":true},{"$f":"AND(T11:T198=S11:S198)","v":true},{"$f":"AND(U11:U198=T11:T198)","v":true},{"$f":"AND(V11:V198=U11:U198)","v":true},{"$f":"AND(W11:W198=V11:V198)","v":true},{"$f":"AND(X11:X198=W11:W198)","v":true},{"$f":"AND(Y11:Y198=X11:X198)","v":true},{"$f":"AND(Z11:Z198=Y11:Y198)","v":true},{"$f":"AND(AA11:AA198=Z11:Z198)","v":true},{"$f":"AND(AB11:AB198=AA11:AA198)","v":true},{"$f":"AND(AC11:AC198=AB11:AB198)","v":true},{"$f":"AND(AD11:AD198=AC11:AC198)","v":true},{"$f":"AND(AE11:AE198=AD11:AD198)","v":true},{"$f":"AND(AF11:AF198=AE11:AE198)","v":true},{"$f":"AND(AG11:AG198=AF11:AF198)","v":true},{"$f":"AND(AH11:AH198=AG11:AG198)","v":true},{"$f":"AND(AI11:AI198=AH11:AH198)","v":true},{"$f":"AND(AJ11:AJ198=AI11:AI198)","v":true},{"$f":"AND(AK11:AK198=AJ11:AJ198)","v":true},{"$f":"AND(AL11:AL198=AK11:AK198)","v":true},{"$f":"AND(AM11:AM198=AL11:AL198)","v":true},{"$f":"AND(AN11:AN198=AM11:AM198)","v":true},{"$f":"AND(AO11:AO198=AN11:AN198)","v":true},{"$f":"AND(AP11:AP198=AO11:AO198)","v":true},{"$f":"AND(AQ11:AQ198=AP11:AP198)","v":true},{"$f":"AND(AR11:AR198=AQ11:AQ198)","v":true},{"$f":"AND(AS11:AS198=AR11:AR198)","v":true},{"$f":"AND(AT11:AT198=AS11:AS198)","v":true},{"$f":"AND(AU11:AU198=AT11:AT198)","v":true},{"$f":"AND(AV11:AV198=AU11:AU198)","v":true},{"$f":"AND(AW11:AW198=AV11:AV198)","v":true},{"$f":"AND(AX11:AX198=AW11:AW198)","v":true},{"$f":"AND(AY11:AY198=AX11:AX198)","v":true},{"$f":"AND(AZ11:AZ198=AY11:AY198)","v":true},{"$f":"AND(BA11:BA198=AZ11:AZ198)","v":true},{"$f":"AND(BB11:BB198=BA11:BA198)","v":true},{"$f":"AND(BC11:BC198=BB11:BB198)","v":true},{"$f":"AND(BD11:BD198=BC11:BC198)","v":true},{"$f":"AND(BE11:BE198=BD11:BD198)","v":true},{"$f":"AND(BF11:BF198=BE11:BE198)","v":true},{"$f":"AND(BG11:BG198=BF11:BF198)","v":true},{"$f":"AND(BH11:BH198=BG11:BG198)","v":true},{"$f":"AND(BI11:BI198=BH11:BH198)","v":true},{"$f":"AND(BJ11:BJ198=BI11:BI198)","v":true},{"$f":"AND(BK11:BK198=BJ11:BJ198)","v":true},{"$f":"AND(BL11:BL198=BK11:BK198)","v":true},{"$f":"AND(BM11:BM198=BL11:BL198)","v":true},{"$f":"AND(BN11:BN198=BM11:BM198)","v":true},{"$f":"AND(BO11:BO198=BN11:BN198)","v":true},{"$f":"AND(BP11:BP198=BO11:BO198)","v":true},{"$f":"AND(BQ11:BQ198=BP11:BP198)","v":true},{"$f":"AND(BR11:BR198=BQ11:BQ198)","v":true},{"$f":"AND(BS11:BS198=BR11:BR198)","v":true},{"$f":"AND(BT11:BT198=BS11:BS198)","v":true},{"$f":"AND(BU11:BU198=BT11:BT198)","v":true},{"$f":"AND(BV11:BV198=BU11:BU198)","v":true},{"$f":"AND(BW11:BW198=BV11:BV198)","v":true},{"$f":"AND(BX11:BX198=BW11:BW198)","v":true},{"$f":"AND(BY11:BY198=BX11:BX198)","v":true},{"$f":"AND(BZ11:BZ198=BY11:BY198)","v":true},{"$f":"AND(CA11:CA198=BZ11:BZ198)","v":true},{"$f":"AND(CB11:CB198=CA11:CA198)","v":true},{"$f":"AND(CC11:CC198=CB11:CB198)","v":true},{"$f":"AND(CD11:CD198=CC11:CC198)","v":true},{"$f":"AND(CE11:CE198=CD11:CD198)","v":true},{"$f":"AND(CF11:CF198=CE11:CE198)","v":true},{"$f":"AND(CG11:CG198=CF11:CF198)","v":true},{"$f":"AND(CH11:CH198=CG11:CG198)","v":true},{"$f":"AND(CI11:CI198=CH11:CH198)","v":true},{"$f":"AND(CJ11:CJ198=CI11:CI198)","v":true},{"$f":"AND(CK11:CK198=CJ11:CJ198)","v":true},{"$f":"AND(CL11:CL198=CK11:CK198)","v":true},{"$f":"AND(CM11:CM198=CL11:CL198)","v":true},{"$f":"AND(CN11:CN198=CM11:CM198)","v":true},{"$f":"AND(CO11:CO198=CN11:CN198)","v":true},{"$f":"AND(CP11:CP198=CO11:CO198)","v":true},{"$f":"AND(CQ11:CQ198=CP11:CP198)","v":true},{"$f":"AND(CR11:CR198=CQ11:CQ198)","v":true},{"$f":"AND(CS11:CS198=CR11:CR198)","v":true},{"$f":"AND(CT11:CT198=CS11:CS198)","v":true},{"$f":"AND(CU11:CU198=CT11:CT198)","v":true},{"$f":"AND(CV11:CV198=CU11:CU198)","v":true},{"$f":"AND(CW11:CW198=CV11:CV198)","v":true},{"$f":"AND(CX11:CX198=CW11:CW198)","v":true},{"$f":"AND(CY11:CY198=CX11:CX198)","v":true},{"$f":"AND(CZ11:CZ198=CY11:CY198)","v":true},{"$f":"AND(DA11:DA198=CZ11:CZ198)","v":true},{"$f":"AND(DB11:DB198=DA11:DA198)","v":true},{"$f":"AND(DC11:DC198=DB11:DB198)","v":true},{"$f":"AND(DD11:DD198=DC11:DC198)","v":true},{"$f":"AND(DE11:DE198=DD11:DD198)","v":true},{"$f":"AND(DF11:DF198=DE11:DE198)","v":true},{"$f":"AND(DG11:DG198=DF11:DF198)","v":true},{"$f":"AND(DH11:DH198=DG11:DG198)","v":true},{"$f":"AND(DI11:DI198=DH11:DH198)","v":true},{"$f":"AND(DJ11:DJ198=DI11:DI198)","v":true},{"$f":"AND(DK11:DK198=DJ11:DJ198)","v":true},{"$f":"AND(DL11:DL198=DK11:DK198)","v":true},{"$f":"AND(DM11:DM198=DL11:DL198)","v":true},{"$f":"AND(DN11:DN198=DM11:DM198)","v":true},{"$f":"AND(DO11:DO198=DN11:DN198)","v":true},{"$f":"AND(DP11:DP198=DO11:DO198)","v":true},{"$f":"AND(DQ11:DQ198=DP11:DP198)","v":true},{"$f":"AND(DR11:DR198=DQ11:DQ198)","v":true},{"$f":"AND(DS11:DS198=DR11:DR198)","v":true},{"$f":"AND(DT11:DT198=DS11:DS198)","v":true},{"$f":"AND(DU11:DU198=DT11:DT198)","v":true},{"$f":"AND(DV11:DV198=DU11:DU198)","v":true},{"$f":"AND(DW11:DW198=DV11:DV198)","v":true},{"$f":"AND(DX11:DX198=DW11:DW198)","v":true},{"$f":"AND(DY11:DY198=DX11:DX198)","v":true},{"$f":"AND(DZ11:DZ198=DY11:DY198)","v":true},{"$f":"AND(EA11:EA198=DZ11:DZ198)","v":true},{"$f":"AND(EB11:EB198=EA11:EA198)","v":true},{"$f":"AND(EC11:EC198=EB11:EB198)","v":true},{"$f":"AND(ED11:ED198=EC11:EC198)","v":true},{"$f":"AND(EE11:EE198=ED11:ED198)","v":true},{"$f":"AND(EF11:EF198=EE11:EE198)","v":true},{"$f":"AND(EG11:EG198=EF11:EF198)","v":true},{"$f":"AND(EH11:EH198=EG11:EG198)","v":true},{"$f":"AND(EI11:EI198=EH11:EH198)","v":true},{"$f":"AND(EJ11:EJ198=EI11:EI198)","v":true},{"$f":"AND(EK11:EK198=EJ11:EJ198)","v":true},{"$f":"AND(EL11:EL198=EK11:EK198)","v":true},{"$f":"AND(EM11:EM198=EL11:EL198)","v":true},{"$f":"AND(EN11:EN198=EM11:EM198)","v":true},{"$f":"AND(EO11:EO198=EN11:EN198)","v":true},{"$f":"AND(EP11:EP198=EO11:EO198)","v":true},{"$f":"AND(EQ11:EQ198=EP11:EP198)","v":true},{"$f":"AND(ER11:ER198=EQ11:EQ198)","v":true},{"$f":"AND(ES11:ES198=ER11:ER198)","v":true},{"$f":"AND(ET11:ET198=ES11:ES198)","v":true},{"$f":"AND(EU11:EU198=ET11:ET198)","v":true},{"$f":"AND(EV11:EV198=EU11:EU198)","v":true},{"$f":"AND(EW11:EW198=EV11:EV198)","v":true},{"$f":"AND(EX11:EX198=EW11:EW198)","v":true},{"$f":"AND(EY11:EY198=EX11:EX198)","v":true},{"$f":"AND(EZ11:EZ198=EY11:EY198)","v":true},{"$f":"AND(FA11:FA198=EZ11:EZ198)","v":true},{"$f":"AND(FB11:FB198=FA11:FA198)","v":true},{"$f":"AND(FC11:FC198=FB11:FB198)","v":true},{"$f":"AND(FD11:FD198=FC11:FC198)","v":true},{"$f":"AND(FE11:FE198=FD11:FD198)","v":true},{"$f":"AND(FF11:FF198=FE11:FE198)","v":true},{"$f":"AND(FG11:FG198=FF11:FF198)","v":true},{"$f":"AND(FH11:FH198=FG11:FG198)","v":true},{"$f":"AND(FI11:FI198=FH11:FH198)","v":true},{"$f":"AND(FJ11:FJ198=FI11:FI198)","v":true},{"$f":"AND(FK11:FK198=FJ11:FJ198)","v":true},{"$f":"AND(FL11:FL198=FK11:FK198)","v":true},{"$f":"AND(FM11:FM198=FL11:FL198)","v":true},{"$f":"AND(FN11:FN198=FM11:FM198)","v":true},{"$f":"AND(FO11:FO198=FN11:FN198)","v":true},{"$f":"AND(FP11:FP198=FO11:FO198)","v":true},{"$f":"AND(FQ11:FQ198=FP11:FP198)","v":true},{"$f":"AND(FR11:FR198=FQ11:FQ198)","v":true},{"$f":"AND(FS11:FS198=FR11:FR198)","v":true},{"$f":"AND(FT11:FT198=FS11:FS198)","v":true},{"$f":"AND(FU11:FU198=FT11:FT198)","v":true},{"$f":"AND(FV11:FV198=FU11:FU198)","v":true},{"$f":"AND(FW11:FW198=FV11:FV198)","v":true},{"$f":"AND(FX11:FX198=FW11:FW198)","v":true},{"$f":"AND(FY11:FY198=FX11:FX198)","v":true},{"$f":"AND(FZ11:FZ198=FY11:FY198)","v":true},{"$f":"AND(GA11:GA198=FZ11:FZ198)","v":true},{"$f":"AND(GB11:GB198=GA11:GA198)","v":true},{"$f":"AND(GC11:GC198=GB11:GB198)","v":true},{"$f":"AND(GD11:GD198=GC11:GC198)","v":true},{"$f":"AND(GE11:GE198=GD11:GD198)","v":true},{"$f":"AND(GF11:GF198=GE11:GE198)","v":true},{"$f":"AND(GG11:GG198=GF11:GF198)","v":true},{"$f":"AND(GH11:GH198=GG11:GG198)","v":true},{"$f":"AND(GI11:GI198=GH11:GH198)","v":true},{"$f":"AND(GJ11:GJ198=GI11:GI198)","v":true},{"$f":"AND(GK11:GK198=GJ11:GJ198)","v":true},{"$f":"AND(GL11:GL198=GK11:GK198)","v":true},{"$f":"AND(GM11:GM198=GL11:GL198)","v":true},{"$f":"AND(GN11:GN198=GM11:GM198)","v":true},{"$f":"AND(GO11:GO198=GN11:GN198)","v":true},{"$f":"AND(GP11:GP198=GO11:GO198)","v":true},{"$f":"AND(GQ11:GQ198=GP11:GP198)","v":true},{"$f":"AND(GR11:GR198=GQ11:GQ198)","v":true},{"$f":"AND(GS11:GS198=GR11:GR198)","v":true},{"$f":"AND(GT11:GT198=GS11:GS198)","v":true},{"$f":"AND(GU11:GU198=GT11:GT198)","v":true},{"$f":"AND(GV11:GV198=GU11:GU198)","v":true},{"$f":"AND(GW11:GW198=GV11:GV198)","v":true},{"$f":"AND(GX11:GX198=GW11:GW198)","v":true},{"$f":"AND(GY11:GY198=GX11:GX198)","v":true},{"$f":"AND(GZ11:GZ198=GY11:GY198)","v":true},{"$f":"AND(HA11:HA198=GZ11:GZ198)","v":true},{"$f":"AND(HB11:HB198=HA11:HA198)","v":true},{"$f":"AND(HC11:HC198=HB11:HB198)","v":true},{"$f":"AND(HD11:HD198=HC11:HC198)","v":true},{"$f":"AND(HE11:HE198=HD11:HD198)","v":true},{"$f":"AND(HF11:HF198=HE11:HE198)","v":true},{"$f":"AND(HG11:HG198=HF11:HF198)","v":true},{"$f":"AND(HH11:HH198=HG11:HG198)","v":true},{"$f":"AND(HI11:HI198=HH11:HH198)","v":true},{"$f":"AND(HJ11:HJ198=HI11:HI198)","v":true},{"$f":"AND(HK11:HK198=HJ11:HJ198)","v":true},{"$f":"AND(HL11:HL198=HK11:HK198)","v":true},{"$f":"AND(HM11:HM198=HL11:HL198)","v":true},{"$f":"AND(HN11:HN198=HM11:HM198)","v":true},{"$f":"AND(HO11:HO198=HN11:HN198)","v":true},{"$f":"AND(HP11:HP198=HO11:HO198)","v":true},{"$f":"AND(HQ11:HQ198=HP11:HP198)","v":true},{"$f":"AND(HR11:HR198=HQ11:HQ198)","v":true},{"$f":"AND(HS11:HS198=HR11:HR198)","v":true},{"$f":"AND(HT11:HT198=HS11:HS198)","v":true},{"$f":"AND(HU11:HU198=HT11:HT198)","v":true},{"$f":"AND(HV11:HV198=HU11:HU198)","v":true},{"$f":"AND(HW11:HW198=HV11:HV198)","v":true},{"$f":"AND(HX11:HX198=HW11:HW198)","v":true},{"$f":"AND(HY11:HY198=HX11:HX198)","v":true},{"$f":"AND(HZ11:HZ198=HY11:HY198)","v":true},{"$f":"AND(IA11:IA198=HZ11:HZ198)","v":true},{"$f":"AND(IB11:IB198=IA11:IA198)","v":true},{"$f":"AND(IC11:IC198=IB11:IB198)","v":true},{"$f":"AND(ID11:ID198=IC11:IC198)","v":true},{"$f":"AND(IE11:IE198=ID11:ID198)","v":true},{"$f":"AND(IF11:IF198=IE11:IE198)","v":true},{"$f":"AND(IG11:IG198=IF11:IF198)","v":true},{"$f":"AND(IH11:IH198=IG11:IG198)","v":true},{"$f":"AND(II11:II198=IH11:IH198)","v":true},{"$f":"AND(IJ11:IJ198=II11:II198)","v":true},{"$f":"AND(IK11:IK198=IJ11:IJ198)","v":true},{"$f":"AND(IL11:IL198=IK11:IK198)","v":true},{"$f":"AND(IM11:IM198=IL11:IL198)","v":true},{"$f":"AND(IN11:IN198=IM11:IM198)","v":true},{"$f":"AND(IO11:IO198=IN11:IN198)","v":true},{"$f":"AND(IP11:IP198=IO11:IO198)","v":true},{"$f":"AND(IQ11:IQ198=IP11:IP198)","v":true},{"$f":"AND(IR11:IR198=IQ11:IQ198)","v":true},{"$f":"AND(IS11:IS198=IR11:IR198)","v":true},{"$f":"AND(IT11:IT198=IS11:IS198)","v":true},{"$f":"AND(IU11:IU198=IT11:IT198)","v":true},{"$f":"AND(IV11:IV198=IU11:IU198)","v":true},{"$f":"AND(IW11:IW198=IV11:IV198)","v":true},{"$f":"AND(IX11:IX198=IW11:IW198)","v":true},{"$f":"AND(IY11:IY198=IX11:IX198)","v":true},{"$f":"AND(IZ11:IZ198=IY11:IY198)","v":true},{"$f":"AND(JA11:JA198=IZ11:IZ198)","v":true},{"$f":"AND(JB11:JB198=JA11:JA198)","v":true},{"$f":"AND(JC11:JC198=JB11:JB198)","v":true},{"$f":"AND(JD11:JD198=JC11:JC198)","v":true},{"$f":"AND(JE11:JE198=JD11:JD198)","v":true},{"$f":"AND(JF11:JF198=JE11:JE198)","v":true},{"$f":"AND(JG11:JG198=JF11:JF198)","v":true},{"$f":"AND(JH11:JH198=JG11:JG198)","v":true},{"$f":"AND(JI11:JI198=JH11:JH198)","v":true},{"$f":"AND(JJ11:JJ198=JI11:JI198)","v":true},{"$f":"AND(JK11:JK198=JJ11:JJ198)","v":true},{"$f":"AND(JL11:JL198=JK11:JK198)","v":true},{"$f":"AND(JM11:JM198=JL11:JL198)","v":true},{"$f":"AND(JN11:JN198=JM11:JM198)","v":true},{"$f":"AND(JO11:JO198=JN11:JN198)","v":true},{"$f":"AND(JP11:JP198=JO11:JO198)","v":true},{"$f":"AND(JQ11:JQ198=JP11:JP198)","v":true},{"$f":"AND(JR11:JR198=JQ11:JQ198)","v":true},{"$f":"AND(JS11:JS198=JR11:JR198)","v":true},{"$f":"AND(JT11:JT198=JS11:JS198)","v":true},{"$f":"AND(JU11:JU198=JT11:JT198)","v":true},{"$f":"AND(JV11:JV198=JU11:JU198)","v":true},{"$f":"AND(JW11:JW198=JV11:JV198)","v":true},{"$f":"AND(JX11:JX198=JW11:JW198)","v":true},{"$f":"AND(JY11:JY198=JX11:JX198)","v":true},{"$f":"AND(JZ11:JZ198=JY11:JY198)","v":true},{"$f":"AND(KA11:KA198=JZ11:JZ198)","v":true},{"$f":"AND(KB11:KB198=KA11:KA198)","v":true},{"$f":"AND(KC11:KC198=KB11:KB198)","v":true},{"$f":"AND(KD11:KD198=KC11:KC198)","v":true},{"$f":"AND(KE11:KE198=KD11:KD198)","v":true},{"$f":"AND(KF11:KF198=KE11:KE198)","v":true},{"$f":"AND(KG11:KG198=KF11:KF198)","v":true},{"$f":"AND(KH11:KH198=KG11:KG198)","v":true},{"$f":"AND(KI11:KI198=KH11:KH198)","v":true},{"$f":"AND(KJ11:KJ198=KI11:KI198)","v":true},{"$f":"AND(KK11:KK198=KJ11:KJ198)","v":true},{"$f":"AND(KL11:KL198=KK11:KK198)","v":true},{"$f":"AND(KM11:KM198=KL11:KL198)","v":true},{"$f":"AND(KN11:KN198=KM11:KM198)","v":true},{"$f":"AND(KO11:KO198=KN11:KN198)","v":true},{"$f":"AND(KP11:KP198=KO11:KO198)","v":true},{"$f":"AND(KQ11:KQ198=KP11:KP198)","v":true},{"$f":"AND(KR11:KR198=KQ11:KQ198)","v":true},{"$f":"AND(KS11:KS198=KR11:KR198)","v":true},{"$f":"AND(KT11:KT198=KS11:KS198)","v":true},{"$f":"AND(KU11:KU198=KT11:KT198)","v":true},{"$f":"AND(KV11:KV198=KU11:KU198)","v":true},{"$f":"AND(KW11:KW198=KV11:KV198)","v":true},{"$f":"AND(KX11:KX198=KW11:KW198)","v":true},{"$f":"AND(KY11:KY198=KX11:KX198)","v":true},{"$f":"AND(KZ11:KZ198=KY11:KY198)","v":true},{"$f":"AND(LA11:LA198=KZ11:KZ198)","v":true},{"$f":"AND(LB11:LB198=LA11:LA198)","v":true},{"$f":"AND(LC11:LC198=LB11:LB198)","v":true},{"$f":"AND(LD11:LD198=LC11:LC198)","v":true},{"$f":"AND(LE11:LE198=LD11:LD198)","v":true},{"$f":"AND(LF11:LF198=LE11:LE198)","v":true},{"$f":"AND(LG11:LG198=LF11:LF198)","v":true},{"$f":"AND(LH11:LH198=LG11:LG198)","v":true},{"$f":"AND(LI11:LI198=LH11:LH198)","v":true},{"$f":"AND(LJ11:LJ198=LI11:LI198)","v":true},{"$f":"AND(LK11:LK198=LJ11:LJ198)","v":true},{"$f":"AND(LL11:LL198=LK11:LK198)","v":true},{"$f":"AND(LM11:LM198=LL11:LL198)","v":true},{"$f":"AND(LN11:LN198=LM11:LM198)","v":true},{"$f":"AND(LO11:LO198=LN11:LN198)","v":true},{"$f":"AND(LP11:LP198=LO11:LO198)","v":true},{"$f":"AND(LQ11:LQ198=LP11:LP198)","v":true},{"$f":"AND(LR11:LR198=LQ11:LQ198)","v":true},{"$f":"AND(LS11:LS198=LR11:LR198)","v":true},{"$f":"AND(LT11:LT198=LS11:LS198)","v":true},{"$f":"AND(LU11:LU198=LT11:LT198)","v":true},{"$f":"AND(LV11:LV198=LU11:LU198)","v":true},{"$f":"AND(LW11:LW198=LV11:LV198)","v":true},{"$f":"AND(LX11:LX198=LW11:LW198)","v":true},{"$f":"AND(LY11:LY198=LX11:LX198)","v":true},{"$f":"AND(LZ11:LZ198=LY11:LY198)","v":true},{"$f":"AND(MA11:MA198=LZ11:LZ198)","v":true},{"$f":"AND(MB11:MB198=MA11:MA198)","v":true},{"$f":"AND(MC11:MC198=MB11:MB198)","v":true}]
[null,"30MMT_20200207_2045_2GWPRM_NOOTCEXT",null,null,null,"46MMT_20191104_SolarLimit_PartialOTCExt_Nov_ProposedRSP",null,"Year",2030,null,null,null,"46MMT_20191104_SolarLimit_PartialOTCExt_Nov_ProposedRSP","46MMT_20200207_2045_2GWPRM_NOOTCEXT_RSP_PD"]
[null,"46MMT_20191104_SolarLimit_PartialOTCExt_Nov_ProposedRSP",null,null,null,"46MMT_20200207_2045_2GWPRM_NOOTCEXT_RSP_PD"]
[null,"46MMT_20200207_2045_0PRM_NOOTCEXT",null,null,null,null,null,null,null,null,"Present Value Portfolio Metrics","Unit"]
[null,"46MMT_20200207_2045_0PRM_OTCEXT",null,null,null,null,null,null,null,null,"PV Revenue Requirement","$MM",675316.83,907474.68]
[null,"46MMT_20200207_2045_2GWPRM_NOOTCEXT_NoNewDER",null,null,null,null,null,null,null,null,"PV Total Resource Cost","$MM",742308.9,1012219.62]
[null,"46MMT_20200207_2045_2GWPRM_NOOTCEXT_RSP_PD",null,null,null,null,null,null,null,null,"Levelized Revenue Requirement","$MM",41247.14,48336.6]
[null,"46MMT_20200207_2045_2GWPRM_OTCEXT",null,null,null,null,null,null,null,null,"Levelized Total Resource Cost","$MM",45338.9,53915.83]
[null,null,null,null,null,null,null,null,null,null,"Levelized Average Rate","cts/kWh",20.09846606991017,20.360892537284222]
[]
[null,null,null,null,null,null,null,null,null,null,"Portfolio Metrics","Unit",2030,2030]
[null,null,null,null,null,null,null,null,null,null,"Revenue Requirement","$MM",40818.730000000003,41132.89]
[null,null,null,null,null,null,null,null,null,null,"Total Resource Cost","$MM",45234.05,45680.21]
[null,null,null,null,null,null,null,null,null,null,"Average Rate","cts/kWh",20.070993651417595,20.22140708326836]
[null,null,null,null,null,null,null,null,null,null,"Greenhouse Gas Emissions","MMtCO2",37.900009441440162,37.900006952131221]
[null,null,null,null,null,null,null,null,null,null,"Effective RPS (incl. banked RECs)","% of Retail Sales",0.59904270608787968,0.59859193665572974]
[null,null,null,null,null,null,null,null,null,null,"Renewable Curtailment","% of RPS Gen.",7.8204091322635935E-2,7.8588127891912024E-2]
[]
[null,null,null,null,null,null,null,null,null,null,"Selected Resource Summary"]
[]
[null,null,null,null,null,null,null,null,null,null,null,"Unit",2030,2030]
[null,null,null,null,null,null,null,null,null,null,"Gas","MW",0,0]
[null,null,null,null,null,null,null,null,null,null,"Biomass","MW",0,0]
[null,null,null,null,null,null,null,null,null,null,"Geothermal","MW",0,0]
[null,null,null,null,null,null,null,null,null,null,"Hydro (Small)","MW",0,0]
[null,null,null,null,null,null,null,null,null,null,"Wind","MW",2836.9,2836.9]
[null,null,null,null,null,null,null,null,null,null,"Wind OOS New Tx","MW",0,606.16999999999996]
[null,null,null,null,null,null,null,null,null,null,"Offshore Wind","MW",0,0]
[null,null,null,null,null,null,null,null,null,null,"Solar","MW",11773.94,11017.419999999998]
[null,null,null,null,null,null,null,null,null,null,"Customer Solar","MW",0,0]
[null,null,null,null,null,null,null,null,null,null,"Battery Storage","MW",11384.07,8873.25]
[null,null,null,null,null,null,null,null,null,null,"Pumped Storage","MW",0,973.48]
[null,null,null,null,null,null,null,null,null,null,"Shed DR","MW",222.24,222.24]
[null,null,null,null,null,null,null,null,null,null,"Gas Capacity Not Retained","MW",-3703.7000000000003,-29.520000000000437]
[null,null,null,null,null,null,null,null,null,null,"In-State Renewables","MW",14610.84,13854.319999999998]
[null,null,null,null,null,null,null,null,null,null,"Out-Of-State Renewables","MW",0,606.16999999999996]
[]
[null,null,null,null,null,null,null,null,null,null,"Selected Battery Duration ",null,2030,2030]
[null,null,null,null,null,null,null,null,null,null,"Pumped Hydro","hr",0,11.999948637876484]
[null,null,null,null,null,null,null,null,null,null,"Li Battery ","hr",3.4002724860265268,2.7620928070323725]
[null,null,null,null,null,null,null,null,null,null,"BTM Li Battery","hr",0,0]
[null,null,null,null,null,null,null,null,null,null,"Flow Battery","hr",0,0]
[null,null,null,null,null,null,null,null,null,null,"Note: Optimized duration is a cumulative value reflecting all power and energy capacity built through the reported year."]
[]
[null,null,null,null,null,null,null,null,null,null,"Total Resource Summary"]
[null,null,null,null,null,null,null,null,null,null,null,null,null,null,null,null,null,null,null,null,null,null,null,null,null,null,null,null,null,null,null,null,null,null,null,null,null,null,null,null,null,null,null,null,null,null,null,null,null,null,null,null,null,null,null,null,null,null,null,null,null,null,null,null,null,null,null,null,null,null,null,null,null,null,null,null,null,null,null,null,null,null,null,null,null,null,null,null,null,null,null,null,null,null,null,null,null,null,null,null,null,null,null,null,null,null,null,null,null,null,null,null,null,null,null,null,null,null,null,null,null,null,null,null,null,null,null,null,null,null,null,null,null,null,null,null,null,null,null,null,null,null,null,null,null,null,null,null,null,null,null,null,null,null,null,null,null,null,null,null,null,null,null,null,null,null,null,null,null,null,null,null,null,null,null,null,null,null,null,null,null,null,null,null,null,null,null,null,null,null,null,null,null,null,null,null,null,null,null,null,null,null,null,null,null,null,null,null,null,null,null,null,null,null,null,null,null,null,null,null,null,null,null,null,null,null,null,null,null,null,null,null,null,null,null,null,null,null,null,null,null,null,null,null,null,null,null,null,null,null,null,null,null,null,null,null,null,null,null,null,null,null,null,null,null,null,null,null,null,null,null,null,null,null,null,null,null,null,null,null,null,null,null,null,null,null,null,null,null,null,null,null,null,null,null,null,null,null,null,null,null,null,null,null,null,null,null,null,null,null,null,null,null,null,null,null,null,null,null,null,null,null,null,null,null,null,null,null,null,null,null,null,null,null,null,null,null,null,null,null,null," "]
[null,null,null,null,null,null,null,null,null,null,null,"Unit",2030,2030]
[null,null,null,null,null,null,null,null,null,null,"Nuclear","MW",635,635]
[null,null,null,null,null,null,null,null,null,null,"CHP","MW",2296.02,2296.02]
[null,null,null,null,null,null,null,null,null,null,"Gas","MW",21409.64,25083.819999999996]
[null,null,null,null,null,null,null,null,null,null,"Coal","MW",0,0]
[null,null,null,null,null,null,null,null,null,null,"Hydro (Large)","MW",7069.51,7069.51]
[null,null,null,null,null,null,null,null,null,null,"Hydro (NW scheduled imports)","MW",2851.77,2851.77]
[null,null,null,null,null,null,null,null,null,null,"Biomass","MW",900.75,900.75]
[null,null,null,null,null,null,null,null,null,null,"Geothermal","MW",1851.3100000000002,1851.3100000000002]
[null,null,null,null,null,null,null,null,null,null,"Hydro (Small)","MW",974.03,974.03]
[null,null,null,null,null,null,null,null,null,null,"Wind","MW",10293.209999999999,10293.209999999999]
[null,null,null,null,null,null,null,null,null,null,"Wind OOS New Tx","MW",0,606.16999999999996]
[null,null,null,null,null,null,null,null,null,null,"Offshore Wind","MW",0,0]
[null,null,null,null,null,null,null,null,null,null,"Solar","MW",26661.39,25904.870000000003]
[null,null,null,null,null,null,null,null,null,null,"Customer Solar","MW",20066.03,20066.03]
[null,null,null,null,null,null,null,null,null,null,"Battery Storage","MW",14648.58,12137.76]
[null,null,null,null,null,null,null,null,null,null,"Pumped Storage","MW",1599.2,2572.6800000000003]
[null,null,null,null,null,null,null,null,null,null,"Shed DR","MW",2417.6899999999996,2417.6899999999996]
[null,null,null,null,null,null,null,null,null,null,"Shift DR","MW",0,0]
[null,null,null,null,null,null,null,null,null,null,"Hydrogen Load","MW",0,0]
[null,null,null,null,null,null,null,null,null,null,"In-State Renewables","MW",59276.53,58520.01]
[null,null,null,null,null,null,null,null,null,null,"Out-Of-State Renewables","MW",1470.19,2076.36]
[null,null,null,null,null,null,null,null,null,null,"Battery Storage Penetration","% of peak load",0.28307917187547404,0.22693162114794746]
[null,null,null,null,null,null,null,null,null,null,"Total Gas Capacity Not Retained (cumulative over modeling horizon)","MW",3703.7,29.52]
[null,null,null,null,null,null,null,null,null,null,"Gas capacity not retained (economic, incremental)","MW",3703.7000000000003,29.520000000000437]
[null,null,null,null,null,null,null,null,null,null,"Gas capacity not retained (economic, cumulative)","MW",3703.7000000000003,29.520000000000437]
[]
[]
[null,null,null,null,null,null,null,null,null,null,"Annual Energy Balance"]
[]
[null,null,null,null,null,null,null,null,null,null,null,"Unit",2030,2030]
[null,null,null,null,null,null,null,null,null,null,"CHP","GWh",10881.055305580099,10881.055305580099]
[null,null,null,null,null,null,null,null,null,null,"Nuclear","GWh",5108.3689805718604,5108.3689805718604]
[null,null,null,null,null,null,null,null,null,null,"Hydro","GWh",18668.232141959605,18668.233049189064]
[null,null,null,null,null,null,null,null,null,null,"Hydro (NW scheduled imports)","GWh",11297.52654930451,11311.039105058648]
[null,null,null,null,null,null,null,null,null,null,"Gas","GWh",39116.334004042859,38652.61475277751]
[null,null,null,null,null,null,null,null,null,null,"Coal","GWh",0,0]
[null,null,null,null,null,null,null,null,null,null,"Pipeline Biogas","GWh",0,0]
[null,null,null,null,null,null,null,null,null,null,"Renewables","GWh",154593.28469336501,154100.1533397772]
[null,null,null,null,null,null,null,null,null,null,"Storage Losses","GWh",-4536.838741638333,-4183.408879495275]
[null,null,null,null,null,null,null,null,null,null,"Curtailment","GWh",-5079.9464975432584,-5540.7559163522237]
[null,null,null,null,null,null,null,null,null,null,"Imports (unspecified)","GWh",30228.145362898809,30527.196346457458]
[null,null,null,null,null,null,null,null,null,null,"Exports","GWh",-6616.6545715902093,-6315.524303720189]
[null,null,null,null,null,null,null,null,null,null,"Load","GWh",257009.85349143401,257009.85349143401]
[]
[null,null,null,null,null,null,null,null,null,null,"Cost Summary"]
[]
[null,null,null,null,null,null,null,null,null,null,"Revenue Requirement and TRC",null,2030,2030]
[null,null,null,null,null,null,null,null,null,null,"Non-Modeled Costs","$MM",33265.71,33263.040000000001]
[null,null,null,null,null,null,null,null,null,null,"Non-Modeled Costs (Scenario Specific)","$MM",2046.34,2066.4]
[null,null,null,null,null,null,null,null,null,null,"Baseline Thermal Fleet Fixed Costs","$MM",251.25,301.56]
[null,null,null,null,null,null,null,null,null,null,"New Renewables Fixed Costs","$MM",1325.01,1404.16]
[null,null,null,null,null,null,null,null,null,null,"New Storage Fixed Costs","$MM",1132.46,1259.46]
[null,null,null,null,null,null,null,null,null,null,"New Thermal Fleet Fixed Costs","$MM",0,0]
[null,null,null,null,null,null,null,null,null,null,"New DR Fixed Costs","$MM",20.02,20.02]
[null,null,null,null,null,null,null,null,null,null,"New CAISO Transmission Fixed Costs","$MM",1,1]
[null,null,null,null,null,null,null,null,null,null,"Total Operating Costs","$MM",2776.94,2817.24]
[null,null,null,null,null,null,null,null,null,null,"Total Revenue Requirement","$MM",40818.730000000003,41132.89]
[null,null,null,null,null,null,null,null,null,null,"Customer Costs (Scenario Specific)","$MM",4415.33,4547.32]
[null,null,null,null,null,null,null,null,null,null,"Total Resource Cost","$MM",45234.05,45680.21]
[null,null,null,null,null,null,null,null,null,null,"Total Retail Sales","GWh",203371.72247044038,203412.57898891158]
[null,null,null,null,null,null,null,null,null,null,"Average Rate (cts/kWh)","cts/kWh",20.070993651417595,20.22140708326836]
[]
[null,null,null,null,null,null,null,null,null,null,"Operating Cost Breakdown","Unit",2030,2030]
[null,null,null,null,null,null,null,null,null,null,"Variable Operating Costs for CAISO Resources","$MM",2303.7600000000002,2301.37]
[null,null,null,null,null,null,null,null,null,null,"Incremental Biogas Costs","$MM",0,0]
[null,null,null,null,null,null,null,null,null,null,"Market Purchases (incl Carbon Allowance)","$MM",763.25,801.01]
[null,null,null,null,null,null,null,null,null,null,"Market Revenues","$MM",-164.49,-159.61000000000001]
[null,null,null,null,null,null,null,null,null,null,"Energy Credit for OOS Renewables Contracted to CAISO","$MM",-125.58,-125.53]
[null,null,null,null,null,null,null,null,null,null,"Total CAISO Operating Cost","$MM",2776.94,2817.24]
[]
[null,null,null,null,null,null,null,null,null,null,"RPS Summary"]
[]
[null,null,null,null,null,null,null,null,null,null,null,"Unit",2030,2030]
[null,null,null,null,null,null,null,null,null,null,"RPS Target","% of Retail Sales",0.59859193665572985,0.59859193665572985]
[null,null,null,null,null,null,null,null,null,null,"Effective RPS (w/o banked RECs)","% of Retail Sales",0.59904270608787968,0.59859193665572974]
[null,null,null,null,null,null,null,null,null,null,"Banked RECs","% of Retail Sales",0,0]
[null,null,null,null,null,null,null,null,null,null,"Effective RPS (with banked RECs)","% of Retail Sales",0.59904270608787968,0.59859193665572974]
[null,null,null,null,null,null,null,null,null,null,"Renewable Curtailment (scheduled and subhourly)","% of RPS Gen.",4.2414804408507589E-2,4.5575826161929907E-2]
[null,null,null,null,null,null,null,null,null,null,"Renewable Curtailment incl. Stor. Losses","% of RPS Gen.",7.8204091322635935E-2,7.8588127891912024E-2]
[null,null,null,null,null,null,null,null,null,null,"Marginal RPS Cost","$/MWh",0,3.52]
[null,null,null,null,null,null,null,null,null,null,"RPS Renewables excl. Pipeline Biogas","GWh",119800.20461,119369.11659999999]
[null,null,null,null,null,null,null,null,null,null,"Pipeline Biogas Generation","GWh",0,0]
[null,null,null,null,null,null,null,null,null,null,"Nonmodeled RPS Renewables","GWh",2847.6088199999999,2847.6088199999999]
[null,null,null,null,null,null,null,null,null,null,"SB100%","% of Retail Sales",0.74799375985064209,0.74762738164104603]
[]
[]
[]
[null,null,null,null,null,null,null,null,null,null,"Greenhouse Gas Summary"]
[]
[null,null,null,null,null,null,null,null,null,null,null,"Unit",2030,2030]
[null,null,null,null,null,null,null,null,null,null,"GHG Emission Target Before BTM CHP Emissions","MMtCO2",37.9,37.9]
[null,null,null,null,null,null,null,null,null,null,"CAISO BTM CHP Emissions","MMtCO2",5.4804176299999998,5.4804176299999998]
[null,null,null,null,null,null,null,null,null,null,"Total GHG Emission Target","MMtCO2",32.419582370000001,32.419582370000001]
[null,null,null,null,null,null,null,null,null,null,"CAISO Generator Emissions","MMtCO2",19.481944608315139,19.353949330599757]
[null,null,null,null,null,null,null,null,null,null,"Import Emissions","MMtCO2",12.937647203125026,13.065639991531468]
[null,null,null,null,null,null,null,null,null,null,"Total CAISO Emissions","MMtCO2",37.900009441440162,37.900006952131221]
[null,null,null,null,null,null,null,null,null,null,"Marginal GHG Cost","$/tCO2",88.47,104.51]
[null,null,null,null,null,null,null,null,null,null,"CARB Floor Carbon Price","$/tCO2",25.25,25.25]
[null,null,null,null,null,null,null,null,null,null,"Total GHG Abatement Cost","$/tCO2",113.72,129.76]
[]
[null,null,null,null,null,null,null,null,null,null,"Total WECC Emissions","MMtCO2",157.43280131157397,157.83259710801048]
[]
[]
[]
[]
[]
[null,null,null,null,null,null,null,null,null,null,"Planning Reserve Margin Summary"]
[]
[null,null,null,null,null,null,null,null,null,null,null,"Unit",2030,2030]
[null,null,null,null,null,null,null,null,null,null,"1-in-2 Peak Load","MW",51747.29,53486.42]
[null,null,null,null,null,null,null,null,null,null,"Reserve Margin Requirement","MW",0.15,0.15]
[null,null,null,null,null,null,null,null,null,null,"Total Reserve Margin Requirement","MW",59509.383499999996,61509.382999999994]
[null,null,null,null,null,null,null,null,null,null,"Firm Capacity","MW",31575.72,35043.040000000001]
[null,null,null,null,null,null,null,null,null,null,"CCGT","MW",15453.96,15453.96]
[null,null,null,null,null,null,null,null,null,null,"Peaker","MW",4839.46,8306.77]
[null,null,null,null,null,null,null,null,null,null,"Steam Turbine","MW",0,0]
[null,null,null,null,null,null,null,null,null,null,"CHP","MW",1455.68,1455.68]
[null,null,null,null,null,null,null,null,null,null,"Hydro (small + large)","MW",5644.1500000000005,5644.1500000000005]
[null,null,null,null,null,null,null,null,null,null,"Nuclear","MW",0,0]
[null,null,null,null,null,null,null,null,null,null,"Coal","MW",0,0]
[null,null,null,null,null,null,null,null,null,null,"Geothermal","MW",1140.4099999999999,1140.4099999999999]
[null,null,null,null,null,null,null,null,null,null,"Biomass","MW",628.7299999999999,628.7299999999999]
[null,null,null,null,null,null,null,null,null,null,"Shed DR","MW",2417.6899999999996,2417.6899999999996]
[null,null,null,null,null,null,null,null,null,null,"Import Capacity","MW",5000,5000]
[null,null,null,null,null,null,null,null,null,null,"Hoover and Palo Verde","MW",1457,1457]
[null,null,null,null,null,null,null,null,null,null,"Other Firm Imports","MW",3543,3543]
[null,null,null,null,null,null,null,null,null,null,"Storage","MW",12890.52,11083.68]
[null,null,null,null,null,null,null,null,null,null,"Battery (incl. BTM)","MW",11291.32,8510.99]
[null,null,null,null,null,null,null,null,null,null,"Pumped Storage","MW",1599.2,2572.6800000000003]
[null,null,null,null,null,null,null,null,null,null,"Variable Renewable ELCC (Incl. BTM)","MW",10043.14,10382.67]
[null,null,null,null,null,null,null,null,null,null,"Total Available Capacity","MW",59509.380000000005,61509.39]
[null,null,null,null,null,null,null,null,null,null,"Actual Reserve Margin","%",0.14999993236360787,0.1500001308743415]
[null,null,null,null,null,null,null,null,null,null,"Marginal PRM Cost","$/kW-yr.",14.25,14.83]
[null,null,null,null,null,null,null,null,null,null,"Marginal Solar ELCC","%",2.3426873072011131E-2,2.4214247584120038E-2]
[null,null,null,null,null,null,null,null,null,null,"Marginal Wind ELCC","%",0.20986931678787846,0.21692263585473059]
[]
[null,null,null,null,null,null,null,null,null,null,"Local Capacity Requirement Summary"]
[]
[null,null,null,null,null,null,null,null,null,null,null,"Unit",2030,2030]
[null,null,null,null,null,null,null,null,null,null,"Total LCR Deficiency","MW",0,0]
[null,null,null,null,null,null,null,null,null,null,"Gas","MW",0,0]
[null,null,null,null,null,null,null,null,null,null,"Storage","MW",0,0]
[null,null,null,null,null,null,null,null,null,null,"Solar","MW",0,0]
[null,null,null,null,null,null,null,null,null,null,"Total New Local Capacity","MW",0,0]
[null,null,null,null,null,null,null,null,null,null,"Marginal LCR Cost","$/kW-yr.",0,0]
[]
[null,null,null,null,null,null,null,null,null,null,"Need for New Transmission"]
[]
[null,null,null,null,null,null,null,null,null,null,null,"Unit",2030,2030,2030,2030,2030,2030,2030,2030,2030,2030,2030,2030,2030,2030,2030,2030,2030,2030,2030,2030,2030,2030,2030,2030,2030,2030,2030,2030,2030,2030,2030,2030,2030,2030,2030,2030,2030,2030,2030,2030,2030,2030,2030,2030,2030,2030,2030,2030,2030,2030,2030,2030,2030,2030,2030,2030,2030,2030,2030,2030,2030]
[null,null,null,null,null,null,null,null,null,null,"New Transmission for Selected Resources (within CAISO)","MW",100,100,100,100,100,11989.69,11989.69,11987.03,11987.03,3625.43,3625.43,33150.39,7907.57,3625.43,3994.38,3625.43,3625.43,3625.43,3625.43,5853.1,100,0,100,100,3625.43,100,100,100,2004.52,100,100,22594.63,100,100,100,100,812.87,100,100,100,100,0,100,100,100,100,100,100,0,100,100,11989.69,100,100,100,100,0,100,100,100,0]
[null,null,null,null,null,null,null,null,null,null,"New Transmission Cost (within CAISO)","$MM",1.002894,1.002894,1.002894,1.002894,1.002894,146.15575319000001,146.15575319000001,146.11790675,146.11790675,26.686229019999999,26.686229019999999,624.21896689999994,87.849609529999995,26.686229019999999,30.386432060000001,26.686229019999999,26.686229019999999,26.686229019999999,26.686229019999999,49.027398250000005,1.002894,0,1.002894,1.002894,26.686229019999999,1.002894,1.002894,1.002894,14.87764028,1.002894,1.002894,318.68471942999997,1.002894,1.002894,1.002894,1.002894,6.1962966899999987,1.002894,1.002894,1.002894,1.002894,0,1.002894,1.002894,1.002894,1.002894,1.002894,1.002894,0,1.002894,1.002894,146.15575319000001,1.002894,1.002894,1.002894,1.002894,0,1.002894,1.002894,1.002894,0]
[]
[]
[]
[null,null,null,null,null,null,null,null,null,null," "]

{"sheet":"Lists","index":3,"n_rows":2000,"n_cols":26,"rows_kept":2000,"cut":false,"hidden":false,"merged":[]}
[null,null,null,null,null,null,null,null,null,"Resource to Technology Mapping List"]
[null,"Main Zone","CAISO",null,null,null,"Model Years Count",{"$f":"COUNT(raw_planning_reserve_margin!$A:$A)","v":8},null,{"$f":"IFERROR(INDEX(raw_resource_build!$B$2:$B$546,MATCH(0,COUNTIF($J$1:J1,raw_resource_build!$B$2:$B$546), 0),0), \"\")","v":"resource"},{"$f":"IF(J2=\"\", \"\", INDEX(raw_resource_build!E:E, MATCH(J2, raw_resource_build!B:B, 0)))","v":"technology"},"zone",null,"Resource to OOS wind and capacity contribution category mapping for capacity",null,null,null,"resource to technology mapping for energy",null,null,null,"Battery Technology",null,null,"Resource to technology mapping for fuel burn"]
[null,null,null,null,null,null,null,null,null,{"$f":"IFERROR(INDEX(raw_resource_build!$B$2:$B$1000,MATCH(0,COUNTIF($J$1:J2,raw_resource_build!$B$2:$B$1000), 0),0), \"\")","v":"CAISO_CHP"},{"$f":"IF(J3=\"\", \"\", INDEX(raw_resource_build!E:E, MATCH(J3, raw_resource_build!B:B, 0)))","v":"CAISO_CHP"},{"$f":"IF(J3=\"\", \"\", INDEX(raw_resource_build!C:C, MATCH(J3, raw_resource_build!B:B, 0)))","v":"CAISO"},null,{"$f":"raw_resource_build!B3","v":"CAISO_CHP"},{"$f":"IFERROR(INDEX($C$35:$C$99,MATCH($N3,$B$35:$B$99,0)),\"Non-wind\")","v":"Non-wind"},{"$f":"IFERROR(INDEX($E$5:$E$32,MATCH(raw_resource_build!$E3,Lists!$B$5:$B$32,0)),\"Non-CAISO\")","v":"CHP"},null,{"$f":"raw_annual_energy!C3","v":"BANC_Biomass_for_Other"},{"$f":"INDEX(K:K,MATCH(R3,Lists!J:J,0))","v":"Biomass"},{"$f":"IFERROR(INDEX($C$35:$C$99,MATCH($R3,$B$35:$B$99,0)),\"Non-wind\")","v":"Non-wind"},null,"Pumped_Hydro Duration","Pumped Hydro",null,{"$f":"raw_fuel_burn!A3","v":"BANC_CCGT"},{"$f":"INDEX(K:K,MATCH(Y3,Lists!J:J,0))","v":"BANC_CCGT"}]
[null,"Technology","Category","Enegry Aggr. Category","Capacity Aggr. Category",null,null,null,null,{"$f":"IFERROR(INDEX(raw_resource_build!$B$2:$B$1000,MATCH(0,COUNTIF($J$1:J3,raw_resource_build!$B$2:$B$1000), 0),0), \"\")","v":"CAISO_Nuclear"},{"$f":"IF(J4=\"\", \"\", INDEX(raw_resource_build!E:E, MATCH(J4, raw_resource_build!B:B, 0)))","v":"CAISO_Nuclear"},{"$f":"IF(J4=\"\", \"\", INDEX(raw_resource_build!C:C, MATCH(J4, raw_resource_build!B:B, 0)))","v":"CAISO"},null,{"$f":"raw_resource_build!B4","v":"CAISO_Nuclear"},"Non-wind",{"$f":"IFERROR(INDEX($E$5:$E$32,MATCH(raw_resource_build!$E4,Lists!$B$5:$B$32,0)),\"Non-CAISO\")","v":"Nuclear"},null,{"$f":"raw_annual_energy!C4","v":"BANC_Biomass_for_Other"},{"$f":"INDEX(K:K,MATCH(R4,Lists!J:J,0))","v":"Biomass"},"Non-wind",null,"Li_Battery Duration","Li Battery ",null,{"$f":"raw_fuel_burn!A4","v":"BANC_CCGT"},{"$f":"INDEX(K:K,MATCH(Y4,Lists!J:J,0))","v":"BANC_CCGT"}]
[null,"CAISO_ST","Gas","Gas","Steam Turbine",null,null,null,null,{"$f":"IFERROR(INDEX(raw_resource_build!$B$2:$B$1000,MATCH(0,COUNTIF($J$1:J4,raw_resource_build!$B$2:$B$1000), 0),0), \"\")","v":"CAISO_CCGT1"},{"$f":"IF(J5=\"\", \"\", INDEX(raw_resource_build!E:E, MATCH(J5, raw_resource_build!B:B, 0)))","v":"CAISO_CCGT1"},{"$f":"IF(J5=\"\", \"\", INDEX(raw_resource_build!C:C, MATCH(J5, raw_resource_build!B:B, 0)))","v":"CAISO"},null,{"$f":"raw_resource_build!B5","v":"CAISO_CCGT1"},"Non-wind",{"$f":"IFERROR(INDEX($E$5:$E$32,MATCH(raw_resource_build!$E5,Lists!$B$5:$B$32,0)),\"Non-CAISO\")","v":"CCGT"},null,{"$f":"raw_annual_energy!C5","v":"BANC_Biomass_for_Other"},{"$f":"INDEX(K:K,MATCH(R5,Lists!J:J,0))","v":"Biomass"},"Non-wind",null,"BTM_Li_Battery","BTM Li Battery",null,{"$f":"raw_fuel_burn!A5","v":"BANC_CCGT"},{"$f":"INDEX(K:K,MATCH(Y5,Lists!J:J,0))","v":"BANC_CCGT"}]
[null,"CAISO_CCGT1","Gas","Gas","CCGT",null,null,null,null,{"$f":"IFERROR(INDEX(raw_resource_build!$B$2:$B$1000,MATCH(0,COUNTIF($J$1:J5,raw_resource_build!$B$2:$B$1000), 0),0), \"\")","v":"CAISO_CCGT2"},{"$f":"IF(J6=\"\", \"\", INDEX(raw_resource_build!E:E, MATCH(J6, raw_resource_build!B:B, 0)))","v":"CAISO_CCGT2"},{"$f":"IF(J6=\"\", \"\", INDEX(raw_resource_build!C:C, MATCH(J6, raw_resource_build!B:B, 0)))","v":"CAISO"},null,{"$f":"raw_resource_build!B6","v":"CAISO_CCGT2"},"Non-wind",{"$f":"IFERROR(INDEX($E$5:$E$32,MATCH(raw_resource_build!$E6,Lists!$B$5:$B$32,0)),\"Non-CAISO\")","v":"CCGT"},null,{"$f":"raw_annual_energy!C6","v":"BANC_Biomass_for_Other"},{"$f":"INDEX(K:K,MATCH(R6,Lists!J:J,0))","v":"Biomass"},"Non-wind",null,"Flow_Battery Duration","Flow Battery",null,{"$f":"raw_fuel_burn!A6","v":"BANC_CCGT"},{"$f":"INDEX(K:K,MATCH(Y6,Lists!J:J,0))","v":"BANC_CCGT"}]
[null,"CAISO_CCGT2","Gas","Gas","CCGT",null,null,null,null,{"$f":"IFERROR(INDEX(raw_resource_build!$B$2:$B$1000,MATCH(0,COUNTIF($J$1:J6,raw_resource_build!$B$2:$B$1000), 0),0), \"\")","v":"CAISO_Coal"},{"$f":"IF(J7=\"\", \"\", INDEX(raw_resource_build!E:E, MATCH(J7, raw_resource_build!B:B, 0)))","v":"CAISO_Coal"},{"$f":"IF(J7=\"\", \"\", INDEX(raw_resource_build!C:C, MATCH(J7, raw_resource_build!B:B, 0)))","v":"CAISO"},null,{"$f":"raw_resource_build!B7","v":"CAISO_Coal"},"Non-wind",{"$f":"IFERROR(INDEX($E$5:$E$32,MATCH(raw_resource_build!$E7,Lists!$B$5:$B$32,0)),\"Non-CAISO\")","v":"Coal"},null,{"$f":"raw_annual_energy!C7","v":"BANC_Biomass_for_Other"},{"$f":"INDEX(K:K,MATCH(R7,Lists!J:J,0))","v":"Biomass"},"Non-wind",null,null,null,null,{"$f":"raw_fuel_burn!A7","v":"BANC_CCGT"},{"$f":"INDEX(K:K,MATCH(Y7,Lists!J:J,0))","v":"BANC_CCGT"}]
[null,"CAISO_Peaker1","Gas","Gas","Peaker",null,null,null,null,{"$f":"IFERROR(INDEX(raw_resource_build!$B$2:$B$1000,MATCH(0,COUNTIF($J$1:J7,raw_resource_build!$B$2:$B$1000), 0),0), \"\")","v":"CAISO_Peaker1"},{"$f":"IF(J8=\"\", \"\", INDEX(raw_resource_build!E:E, MATCH(J8, raw_resource_build!B:B, 0)))","v":"CAISO_Peaker1"},{"$f":"IF(J8=\"\", \"\", INDEX(raw_resource_build!C:C, MATCH(J8, raw_resource_build!B:B, 0)))","v":"CAISO"},null,{"$f":"raw_resource_build!B8","v":"CAISO_Peaker1"},"Non-wind",{"$f":"IFERROR(INDEX($E$5:$E$32,MATCH(raw_resource_build!$E8,Lists!$B$5:$B$32,0)),\"Non-CAISO\")","v":"Peaker"},null,{"$f":"raw_annual_energy!C8","v":"BANC_Biomass_for_Other"},{"$f":"INDEX(K:K,MATCH(R8,Lists!J:J,0))","v":"Biomass"},"Non-wind",null,null,null,null,{"$f":"raw_fuel_burn!A8","v":"BANC_CCGT"},{"$f":"INDEX(K:K,MATCH(Y8,Lists!J:J,0))","v":"BANC_CCGT"}]
[null,"CAISO_Peaker2","Gas","Gas","Peaker",null,null,null,null,{"$f":"IFERROR(INDEX(raw_resource_build!$B$2:$B$1000,MATCH(0,COUNTIF($J$1:J8,raw_resource_build!$B$2:$B$1000), 0),0), \"\")","v":"CAISO_Peaker2"},{"$f":"IF(J9=\"\", \"\", INDEX(raw_resource_build!E:E, MATCH(J9, raw_resource_build!B:B, 0)))","v":"CAISO_Peaker2"},{"$f":"IF(J9=\"\", \"\", INDEX(raw_resource_build!C:C, MATCH(J9, raw_resource_build!B:B, 0)))","v":"CAISO"},null,{"$f":"raw_resource_build!B9","v":"CAISO_Peaker2"},"Non-wind",{"$f":"IFERROR(INDEX($E$5:$E$32,MATCH(raw_resource_build!$E9,Lists!$B$5:$B$32,0)),\"Non-CAISO\")","v":"Peaker"},null,{"$f":"raw_annual_energy!C9","v":"BANC_Biomass_for_Other"},{"$f":"INDEX(K:K,MATCH(R9,Lists!J:J,0))","v":"Biomass"},"Non-wind",null,null,null,null,{"$f":"raw_fuel_burn!A9","v":"BANC_CCGT"},{"$f":"INDEX(K:K,MATCH(Y9,Lists!J:J,0))","v":"BANC_CCGT"}]
[null,"CAISO_Advanced_CCGT","Gas","Gas","CCGT",null,null,null,null,{"$f":"IFERROR(INDEX(raw_resource_build!$B$2:$B$1000,MATCH(0,COUNTIF($J$1:J9,raw_resource_build!$B$2:$B$1000), 0),0), \"\")","v":"CAISO_Advanced_CCGT"},{"$f":"IF(J10=\"\", \"\", INDEX(raw_resource_build!E:E, MATCH(J10, raw_resource_build!B:B, 0)))","v":"CAISO_Advanced_CCGT"},{"$f":"IF(J10=\"\", \"\", INDEX(raw_resource_build!C:C, MATCH(J10, raw_resource_build!B:B, 0)))","v":"CAISO"},null,{"$f":"raw_resource_build!B10","v":"CAISO_Advanced_CCGT"},"Non-wind",{"$f":"IFERROR(INDEX($E$5:$E$32,MATCH(raw_resource_build!$E10,Lists!$B$5:$B$32,0)),\"Non-CAISO\")","v":"CCGT"},null,{"$f":"raw_annual_energy!C10","v":"BANC_Biomass_for_Other"},{"$f":"INDEX(K:K,MATCH(R10,Lists!J:J,0))","v":"Biomass"},"Non-wind",null,null,null,null,{"$f":"raw_fuel_burn!A10","v":"BANC_CCGT"},{"$f":"INDEX(K:K,MATCH(Y10,Lists!J:J,0))","v":"BANC_CCGT"}]
[null,"CAISO_Aero_CT","Gas","Gas","Peaker",null,null,null,null,{"$f":"IFERROR(INDEX(raw_resource_build!$B$2:$B$1000,MATCH(0,COUNTIF($J$1:J10,raw_resource_build!$B$2:$B$1000), 0),0), \"\")","v":"CAISO_Aero_CT"},{"$f":"IF(J11=\"\", \"\", INDEX(raw_resource_build!E:E, MATCH(J11, raw_resource_build!B:B, 0)))","v":"CAISO_Aero_CT"},{"$f":"IF(J11=\"\", \"\", INDEX(raw_resource_build!C:C, MATCH(J11, raw_resource_build!B:B, 0)))","v":"CAISO"},null,{"$f":"raw_resource_build!B11","v":"CAISO_Aero_CT"},"Non-wind",{"$f":"IFERROR(INDEX($E$5:$E$32,MATCH(raw_resource_build!$E11,Lists!$B$5:$B$32,0)),\"Non-CAISO\")","v":"Peaker"},null,{"$f":"raw_annual_energy!C11","v":"BANC_CCGT"},{"$f":"INDEX(K:K,MATCH(R11,Lists!J:J,0))","v":"BANC_CCGT"},"Non-wind",null,null,null,null,{"$f":"raw_fuel_burn!A11","v":"BANC_Peaker"},{"$f":"INDEX(K:K,MATCH(Y11,Lists!J:J,0))","v":"BANC_Peaker"}]
[null,"CAISO_Reciprocating_Engine","Gas","Gas","Peaker",null,null,null,null,{"$f":"IFERROR(INDEX(raw_resource_build!$B$2:$B$1000,MATCH(0,COUNTIF($J$1:J11,raw_resource_build!$B$2:$B$1000), 0),0), \"\")","v":"CAISO_Reciprocating_Engine"},{"$f":"IF(J12=\"\", \"\", INDEX(raw_resource_build!E:E, MATCH(J12, raw_resource_build!B:B, 0)))","v":"CAISO_Reciprocating_Engine"},{"$f":"IF(J12=\"\", \"\", INDEX(raw_resource_build!C:C, MATCH(J12, raw_resource_build!B:B, 0)))","v":"CAISO"},null,{"$f":"raw_resource_build!B12","v":"CAISO_Reciprocating_Engine"},"Non-wind",{"$f":"IFERROR(INDEX($E$5:$E$32,MATCH(raw_resource_build!$E12,Lists!$B$5:$B$32,0)),\"Non-CAISO\")","v":"Peaker"},null,{"$f":"raw_annual_energy!C12","v":"BANC_CCGT"},{"$f":"INDEX(K:K,MATCH(R12,Lists!J:J,0))","v":"BANC_CCGT"},"Non-wind",null,null,null,null,{"$f":"raw_fuel_burn!A12","v":"BANC_Peaker"},{"$f":"INDEX(K:K,MATCH(Y12,Lists!J:J,0))","v":"BANC_Peaker"}]
[null,"CAISO_CHP","CHP","CHP","CHP",null,null,null,null,{"$f":"IFERROR(INDEX(raw_resource_build!$B$2:$B$1000,MATCH(0,COUNTIF($J$1:J12,raw_resource_build!$B$2:$B$1000), 0),0), \"\")","v":"CAISO_ST"},{"$f":"IF(J13=\"\", \"\", INDEX(raw_resource_build!E:E, MATCH(J13, raw_resource_build!B:B, 0)))","v":"CAISO_ST"},{"$f":"IF(J13=\"\", \"\", INDEX(raw_resource_build!C:C, MATCH(J13, raw_resource_build!B:B, 0)))","v":"CAISO"},null,{"$f":"raw_resource_build!B13","v":"CAISO_ST"},"Non-wind",{"$f":"IFERROR(INDEX($E$5:$E$32,MATCH(raw_resource_build!$E13,Lists!$B$5:$B$32,0)),\"Non-CAISO\")","v":"Steam Turbine"},null,{"$f":"raw_annual_energy!C13","v":"BANC_CCGT"},{"$f":"INDEX(K:K,MATCH(R13,Lists!J:J,0))","v":"BANC_CCGT"},"Non-wind",null,null,null,null,{"$f":"raw_fuel_burn!A13","v":"BANC_Peaker"},{"$f":"INDEX(K:K,MATCH(Y13,Lists!J:J,0))","v":"BANC_Peaker"}]
[null,"CAISO_Coal","Coal","Coal","Coal",null,null,null,null,{"$f":"IFERROR(INDEX(raw_resource_build!$B$2:$B$1000,MATCH(0,COUNTIF($J$1:J13,raw_resource_build!$B$2:$B$1000), 0),0), \"\")","v":"NW_Nuclear"},{"$f":"IF(J14=\"\", \"\", INDEX(raw_resource_build!E:E, MATCH(J14, raw_resource_build!B:B, 0)))","v":"NW_Nuclear"},{"$f":"IF(J14=\"\", \"\", INDEX(raw_resource_build!C:C, MATCH(J14, raw_resource_build!B:B, 0)))","v":"NW"},null,{"$f":"raw_resource_build!B14","v":"NW_Nuclear"},"Non-wind",{"$f":"IFERROR(INDEX($E$5:$E$32,MATCH(raw_resource_build!$E14,Lists!$B$5:$B$32,0)),\"Non-CAISO\")","v":"Non-CAISO"},null,{"$f":"raw_annual_energy!C14","v":"BANC_CCGT"},{"$f":"INDEX(K:K,MATCH(R14,Lists!J:J,0))","v":"BANC_CCGT"},"Non-wind",null,null,null,null,{"$f":"raw_fuel_burn!A14","v":"BANC_Peaker"},{"$f":"INDEX(K:K,MATCH(Y14,Lists!J:J,0))","v":"BANC_Peaker"}]
[null,"CAISO_Nuclear","Nuclear","Nuclear","Nuclear",null,null,null,null,{"$f":"IFERROR(INDEX(raw_resource_build!$B$2:$B$1000,MATCH(0,COUNTIF($J$1:J14,raw_resource_build!$B$2:$B$1000), 0),0), \"\")","v":"NW_Coal"},{"$f":"IF(J15=\"\", \"\", INDEX(raw_resource_build!E:E, MATCH(J15, raw_resource_build!B:B, 0)))","v":"NW_Coal"},{"$f":"IF(J15=\"\", \"\", INDEX(raw_resource_build!C:C, MATCH(J15, raw_resource_build!B:B, 0)))","v":"NW"},null,{"$f":"raw_resource_build!B15","v":"NW_Coal"},"Non-wind",{"$f":"IFERROR(INDEX($E$5:$E$32,MATCH(raw_resource_build!$E15,Lists!$B$5:$B$32,0)),\"Non-CAISO\")","v":"Non-CAISO"},null,{"$f":"raw_annual_energy!C15","v":"BANC_CCGT"},{"$f":"INDEX(K:K,MATCH(R15,Lists!J:J,0))","v":"BANC_CCGT"},"Non-wind",null,null,null,null,{"$f":"raw_fuel_burn!A15","v":"BANC_Peaker"},{"$f":"INDEX(K:K,MATCH(Y15,Lists!J:J,0))","v":"BANC_Peaker"}]
[null,"Hydro","Hydro (Large)","Hydro","Hydro (small + large)",null,null,null,null,{"$f":"IFERROR(INDEX(raw_resource_build!$B$2:$B$1000,MATCH(0,COUNTIF($J$1:J15,raw_resource_build!$B$2:$B$1000), 0),0), \"\")","v":"NW_CCGT"},{"$f":"IF(J16=\"\", \"\", INDEX(raw_resource_build!E:E, MATCH(J16, raw_resource_build!B:B, 0)))","v":"NW_CCGT"},{"$f":"IF(J16=\"\", \"\", INDEX(raw_resource_build!C:C, MATCH(J16, raw_resource_build!B:B, 0)))","v":"NW"},null,{"$f":"raw_resource_build!B16","v":"NW_CCGT"},"Non-wind",{"$f":"IFERROR(INDEX($E$5:$E$32,MATCH(raw_resource_build!$E16,Lists!$B$5:$B$32,0)),\"Non-CAISO\")","v":"Non-CAISO"},null,{"$f":"raw_annual_energy!C16","v":"BANC_CCGT"},{"$f":"INDEX(K:K,MATCH(R16,Lists!J:J,0))","v":"BANC_CCGT"},"Non-wind",null,null,null,null,{"$f":"raw_fuel_burn!A16","v":"BANC_Peaker"},{"$f":"INDEX(K:K,MATCH(Y16,Lists!J:J,0))","v":"BANC_Peaker"}]
[null,"Hydro_NW_CAISO","Hydro (NW scheduled imports)","Hydro_NW_CAISO","Imports",null,null,null,null,{"$f":"IFERROR(INDEX(raw_resource_build!$B$2:$B$1000,MATCH(0,COUNTIF($J$1:J16,raw_resource_build!$B$2:$B$1000), 0),0), \"\")","v":"NW_Peaker"},{"$f":"IF(J17=\"\", \"\", INDEX(raw_resource_build!E:E, MATCH(J17, raw_resource_build!B:B, 0)))","v":"NW_Peaker"},{"$f":"IF(J17=\"\", \"\", INDEX(raw_resource_build!C:C, MATCH(J17, raw_resource_build!B:B, 0)))","v":"NW"},null,{"$f":"raw_resource_build!B17","v":"NW_Peaker"},"Non-wind",{"$f":"IFERROR(INDEX($E$5:$E$32,MATCH(raw_resource_build!$E17,Lists!$B$5:$B$32,0)),\"Non-CAISO\")","v":"Non-CAISO"},null,{"$f":"raw_annual_energy!C17","v":"BANC_CCGT"},{"$f":"INDEX(K:K,MATCH(R17,Lists!J:J,0))","v":"BANC_CCGT"},"Non-wind",null,null,null,null,{"$f":"raw_fuel_burn!A17","v":"BANC_Peaker"},{"$f":"INDEX(K:K,MATCH(Y17,Lists!J:J,0))","v":"BANC_Peaker"}]
[null,"CAISO_Conventional_DR","Shed DR","Shed DR","Shed DR",null,null,null,null,{"$f":"IFERROR(INDEX(raw_resource_build!$B$2:$B$1000,MATCH(0,COUNTIF($J$1:J17,raw_resource_build!$B$2:$B$1000), 0),0), \"\")","v":"SW_Nuclear"},{"$f":"IF(J18=\"\", \"\", INDEX(raw_resource_build!E:E, MATCH(J18, raw_resource_build!B:B, 0)))","v":"SW_Nuclear"},{"$f":"IF(J18=\"\", \"\", INDEX(raw_resource_build!C:C, MATCH(J18, raw_resource_build!B:B, 0)))","v":"SW"},null,{"$f":"raw_resource_build!B18","v":"SW_Nuclear"},"Non-wind",{"$f":"IFERROR(INDEX($E$5:$E$32,MATCH(raw_resource_build!$E18,Lists!$B$5:$B$32,0)),\"Non-CAISO\")","v":"Non-CAISO"},null,{"$f":"raw_annual_energy!C18","v":"BANC_CCGT"},{"$f":"INDEX(K:K,MATCH(R18,Lists!J:J,0))","v":"BANC_CCGT"},"Non-wind",null,null,null,null,{"$f":"raw_fuel_burn!A18","v":"BANC_Peaker"},{"$f":"INDEX(K:K,MATCH(Y18,Lists!J:J,0))","v":"BANC_Peaker"}]
[null,"Customer_PV","Customer Solar","Renewables","Renewables",null,null,null,null,{"$f":"IFERROR(INDEX(raw_resource_build!$B$2:$B$1000,MATCH(0,COUNTIF($J$1:J18,raw_resource_build!$B$2:$B$1000), 0),0), \"\")","v":"SW_Coal"},{"$f":"IF(J19=\"\", \"\", INDEX(raw_resource_build!E:E, MATCH(J19, raw_resource_build!B:B, 0)))","v":"SW_Coal"},{"$f":"IF(J19=\"\", \"\", INDEX(raw_resource_build!C:C, MATCH(J19, raw_resource_build!B:B, 0)))","v":"SW"},null,{"$f":"raw_resource_build!B19","v":"SW_Coal"},"Non-wind",{"$f":"IFERROR(INDEX($E$5:$E$32,MATCH(raw_resource_build!$E19,Lists!$B$5:$B$32,0)),\"Non-CAISO\")","v":"Non-CAISO"},null,{"$f":"raw_annual_energy!C19","v":"BANC_Geothermal_for_Other"},{"$f":"INDEX(K:K,MATCH(R19,Lists!J:J,0))","v":"Geothermal"},"Non-wind",null,null,null,null,{"$f":"raw_fuel_burn!A19","v":"CAISO_Advanced_CCGT"},{"$f":"INDEX(K:K,MATCH(Y19,Lists!J:J,0))","v":"CAISO_Advanced_CCGT"}]
[null,"Solar","Solar","Renewables","Renewables",null,null,null,null,{"$f":"IFERROR(INDEX(raw_resource_build!$B$2:$B$1000,MATCH(0,COUNTIF($J$1:J19,raw_resource_build!$B$2:$B$1000), 0),0), \"\")","v":"SW_CCGT"},{"$f":"IF(J20=\"\", \"\", INDEX(raw_resource_build!E:E, MATCH(J20, raw_resource_build!B:B, 0)))","v":"SW_CCGT"},{"$f":"IF(J20=\"\", \"\", INDEX(raw_resource_build!C:C, MATCH(J20, raw_resource_build!B:B, 0)))","v":"SW"},null,{"$f":"raw_resource_build!B20","v":"SW_CCGT"},"Non-wind",{"$f":"IFERROR(INDEX($E$5:$E$32,MATCH(raw_resource_build!$E20,Lists!$B$5:$B$32,0)),\"Non-CAISO\")","v":"Non-CAISO"},null,{"$f":"raw_annual_energy!C20","v":"BANC_Geothermal_for_Other"},{"$f":"INDEX(K:K,MATCH(R20,Lists!J:J,0))","v":"Geothermal"},"Non-wind",null,null,null,null,{"$f":"raw_fuel_burn!A20","v":"CAISO_Advanced_CCGT"},{"$f":"INDEX(K:K,MATCH(Y20,Lists!J:J,0))","v":"CAISO_Advanced_CCGT"}]
[null,"Geothermal","Geothermal","Renewables","Geothermal",null,null,null,null,{"$f":"IFERROR(INDEX(raw_resource_build!$B$2:$B$1000,MATCH(0,COUNTIF($J$1:J20,raw_resource_build!$B$2:$B$1000), 0),0), \"\")","v":"SW_Peaker"},{"$f":"IF(J21=\"\", \"\", INDEX(raw_resource_build!E:E, MATCH(J21, raw_resource_build!B:B, 0)))","v":"SW_Peaker"},{"$f":"IF(J21=\"\", \"\", INDEX(raw_resource_build!C:C, MATCH(J21, raw_resource_build!B:B, 0)))","v":"SW"},null,{"$f":"raw_resource_build!B21","v":"SW_Peaker"},"Non-wind",{"$f":"IFERROR(INDEX($E$5:$E$32,MATCH(raw_resource_build!$E21,Lists!$B$5:$B$32,0)),\"Non-CAISO\")","v":"Non-CAISO"},null,{"$f":"raw_annual_energy!C21","v":"BANC_Geothermal_for_Other"},{"$f":"INDEX(K:K,MATCH(R21,Lists!J:J,0))","v":"Geothermal"},"Non-wind",null,null,null,null,{"$f":"raw_fuel_burn!A21","v":"CAISO_Advanced_CCGT"},{"$f":"INDEX(K:K,MATCH(Y21,Lists!J:J,0))","v":"CAISO_Advanced_CCGT"}]
[null,"Biomass","Biomass","Renewables","Biomass",null,null,null,null,{"$f":"IFERROR(INDEX(raw_resource_build!$B$2:$B$1000,MATCH(0,COUNTIF($J$1:J21,raw_resource_build!$B$2:$B$1000), 0),0), \"\")","v":"SW_ST"},{"$f":"IF(J22=\"\", \"\", INDEX(raw_resource_build!E:E, MATCH(J22, raw_resource_build!B:B, 0)))","v":"SW_ST"},{"$f":"IF(J22=\"\", \"\", INDEX(raw_resource_build!C:C, MATCH(J22, raw_resource_build!B:B, 0)))","v":"SW"},null,{"$f":"raw_resource_build!B22","v":"SW_ST"},"Non-wind",{"$f":"IFERROR(INDEX($E$5:$E$32,MATCH(raw_resource_build!$E22,Lists!$B$5:$B$32,0)),\"Non-CAISO\")","v":"Non-CAISO"},null,{"$f":"raw_annual_energy!C22","v":"BANC_Geothermal_for_Other"},{"$f":"INDEX(K:K,MATCH(R22,Lists!J:J,0))","v":"Geothermal"},"Non-wind",null,null,null,null,{"$f":"raw_fuel_burn!A22","v":"CAISO_Advanced_CCGT"},{"$f":"INDEX(K:K,MATCH(Y22,Lists!J:J,0))","v":"CAISO_Advanced_CCGT"}]
[null,"Small_Hydro","Hydro (Small)","Renewables","Hydro (small + large)",null,null,null,null,{"$f":"IFERROR(INDEX(raw_resource_build!$B$2:$B$1000,MATCH(0,COUNTIF($J$1:J22,raw_resource_build!$B$2:$B$1000), 0),0), \"\")","v":"LDWP_Nuclear"},{"$f":"IF(J23=\"\", \"\", INDEX(raw_resource_build!E:E, MATCH(J23, raw_resource_build!B:B, 0)))","v":"LDWP_Nuclear"},{"$f":"IF(J23=\"\", \"\", INDEX(raw_resource_build!C:C, MATCH(J23, raw_resource_build!B:B, 0)))","v":"LDWP"},null,{"$f":"raw_resource_build!B23","v":"LDWP_Nuclear"},"Non-wind",{"$f":"IFERROR(INDEX($E$5:$E$32,MATCH(raw_resource_build!$E23,Lists!$B$5:$B$32,0)),\"Non-CAISO\")","v":"Non-CAISO"},null,{"$f":"raw_annual_energy!C23","v":"BANC_Geothermal_for_Other"},{"$f":"INDEX(K:K,MATCH(R23,Lists!J:J,0))","v":"Geothermal"},"Non-wind",null,null,null,null,{"$f":"raw_fuel_burn!A23","v":"CAISO_Advanced_CCGT"},{"$f":"INDEX(K:K,MATCH(Y23,Lists!J:J,0))","v":"CAISO_Advanced_CCGT"}]
[null,"Wind","Wind","Renewables","Renewables",null,null,null,null,{"$f":"IFERROR(INDEX(raw_resource_build!$B$2:$B$1000,MATCH(0,COUNTIF($J$1:J23,raw_resource_build!$B$2:$B$1000), 0),0), \"\")","v":"LDWP_Coal"},{"$f":"IF(J24=\"\", \"\", INDEX(raw_resource_build!E:E, MATCH(J24, raw_resource_build!B:B, 0)))","v":"LDWP_Coal"},{"$f":"IF(J24=\"\", \"\", INDEX(raw_resource_build!C:C, MATCH(J24, raw_resource_build!B:B, 0)))","v":"LDWP"},null,{"$f":"raw_resource_build!B24","v":"LDWP_Coal"},"Non-wind",{"$f":"IFERROR(INDEX($E$5:$E$32,MATCH(raw_resource_build!$E24,Lists!$B$5:$B$32,0)),\"Non-CAISO\")","v":"Non-CAISO"},null,{"$f":"raw_annual_energy!C24","v":"BANC_Geothermal_for_Other"},{"$f":"INDEX(K:K,MATCH(R24,Lists!J:J,0))","v":"Geothermal"},"Non-wind",null,null,null,null,{"$f":"raw_fuel_burn!A24","v":"CAISO_Advanced_CCGT"},{"$f":"INDEX(K:K,MATCH(Y24,Lists!J:J,0))","v":"CAISO_Advanced_CCGT"}]
[null,"Wind OOS New Tx","Wind OOS New Tx","Renewables","Renewables",null,null,null,null,{"$f":"IFERROR(INDEX(raw_resource_build!$B$2:$B$1000,MATCH(0,COUNTIF($J$1:J24,raw_resource_build!$B$2:$B$1000), 0),0), \"\")","v":"LDWP_CCGT"},{"$f":"IF(J25=\"\", \"\", INDEX(raw_resource_build!E:E, MATCH(J25, raw_resource_build!B:B, 0)))","v":"LDWP_CCGT"},{"$f":"IF(J25=\"\", \"\", INDEX(raw_resource_build!C:C, MATCH(J25, raw_resource_build!B:B, 0)))","v":"LDWP"},null,{"$f":"raw_resource_build!B25","v":"LDWP_CCGT"},"Non-wind",{"$f":"IFERROR(INDEX($E$5:$E$32,MATCH(raw_resource_build!$E25,Lists!$B$5:$B$32,0)),\"Non-CAISO\")","v":"Non-CAISO"},null,{"$f":"raw_annual_energy!C25","v":"BANC_Geothermal_for_Other"},{"$f":"INDEX(K:K,MATCH(R25,Lists!J:J,0))","v":"Geothermal"},"Non-wind",null,null,null,null,{"$f":"raw_fuel_burn!A25","v":"CAISO_Advanced_CCGT"},{"$f":"INDEX(K:K,MATCH(Y25,Lists!J:J,0))","v":"CAISO_Advanced_CCGT"}]
[null,"Offshore_Wind","Offshore Wind","Renewables","Renewables",null,null,null,null,{"$f":"IFERROR(INDEX(raw_resource_build!$B$2:$B$1000,MATCH(0,COUNTIF($J$1:J25,raw_resource_build!$B$2:$B$1000), 0),0), \"\")","v":"LDWP_Peaker"},{"$f":"IF(J26=\"\", \"\", INDEX(raw_resource_build!E:E, MATCH(J26, raw_resource_build!B:B, 0)))","v":"LDWP_Peaker"},{"$f":"IF(J26=\"\", \"\", INDEX(raw_resource_build!C:C, MATCH(J26, raw_resource_build!B:B, 0)))","v":"LDWP"},null,{"$f":"raw_resource_build!B26","v":"LDWP_Peaker"},"Non-wind",{"$f":"IFERROR(INDEX($E$5:$E$32,MATCH(raw_resource_build!$E26,Lists!$B$5:$B$32,0)),\"Non-CAISO\")","v":"Non-CAISO"},null,{"$f":"raw_annual_energy!C26","v":"BANC_Geothermal_for_Other"},{"$f":"INDEX(K:K,MATCH(R26,Lists!J:J,0))","v":"Geothermal"},"Non-wind",null,null,null,null,{"$f":"raw_fuel_burn!A26","v":"CAISO_Advanced_CCGT"},{"$f":"INDEX(K:K,MATCH(Y26,Lists!J:J,0))","v":"CAISO_Advanced_CCGT"}]
[null,"Pumped_Hydro","Pumped Storage","Storage Losses","Pumped Storage",null,null,null,null,{"$f":"IFERROR(INDEX(raw_resource_build!$B$2:$B$1000,MATCH(0,COUNTIF($J$1:J26,raw_resource_build!$B$2:$B$1000), 0),0), \"\")","v":"LDWP_ST"},{"$f":"IF(J27=\"\", \"\", INDEX(raw_resource_build!E:E, MATCH(J27, raw_resource_build!B:B, 0)))","v":"LDWP_ST"},{"$f":"IF(J27=\"\", \"\", INDEX(raw_resource_build!C:C, MATCH(J27, raw_resource_build!B:B, 0)))","v":"LDWP"},null,{"$f":"raw_resource_build!B27","v":"LDWP_ST"},"Non-wind",{"$f":"IFERROR(INDEX($E$5:$E$32,MATCH(raw_resource_build!$E27,Lists!$B$5:$B$32,0)),\"Non-CAISO\")","v":"Non-CAISO"},null,{"$f":"raw_annual_energy!C27","v":"BANC_Hydro"},{"$f":"INDEX(K:K,MATCH(R27,Lists!J:J,0))","v":"Hydro"},"Non-wind",null,null,null,null,{"$f":"raw_fuel_burn!A27","v":"CAISO_Aero_CT"},{"$f":"INDEX(K:K,MATCH(Y27,Lists!J:J,0))","v":"CAISO_Aero_CT"}]
[null,"Li_Battery","Battery Storage","Storage Losses","Battery (incl. BTM)",null,null,null,null,{"$f":"IFERROR(INDEX(raw_resource_build!$B$2:$B$1000,MATCH(0,COUNTIF($J$1:J27,raw_resource_build!$B$2:$B$1000), 0),0), \"\")","v":"IID_CCGT"},{"$f":"IF(J28=\"\", \"\", INDEX(raw_resource_build!E:E, MATCH(J28, raw_resource_build!B:B, 0)))","v":"IID_CCGT"},{"$f":"IF(J28=\"\", \"\", INDEX(raw_resource_build!C:C, MATCH(J28, raw_resource_build!B:B, 0)))","v":"IID"},null,{"$f":"raw_resource_build!B28","v":"IID_CCGT"},"Non-wind",{"$f":"IFERROR(INDEX($E$5:$E$32,MATCH(raw_resource_build!$E28,Lists!$B$5:$B$32,0)),\"Non-CAISO\")","v":"Non-CAISO"},null,{"$f":"raw_annual_energy!C28","v":"BANC_Hydro"},{"$f":"INDEX(K:K,MATCH(R28,Lists!J:J,0))","v":"Hydro"},"Non-wind",null,null,null,null,{"$f":"raw_fuel_burn!A28","v":"CAISO_Aero_CT"},{"$f":"INDEX(K:K,MATCH(Y28,Lists!J:J,0))","v":"CAISO_Aero_CT"}]
[null,"BTM_Li_Battery","Battery Storage","Storage Losses","Battery (incl. BTM)",null,null,null,null,{"$f":"IFERROR(INDEX(raw_resource_build!$B$2:$B$1000,MATCH(0,COUNTIF($J$1:J28,raw_resource_build!$B$2:$B$1000), 0),0), \"\")","v":"IID_Peaker"},{"$f":"IF(J29=\"\", \"\", INDEX(raw_resource_build!E:E, MATCH(J29, raw_resource_build!B:B, 0)))","v":"IID_Peaker"},{"$f":"IF(J29=\"\", \"\", INDEX(raw_resource_build!C:C, MATCH(J29, raw_resource_build!B:B, 0)))","v":"IID"},null,{"$f":"raw_resource_build!B29","v":"IID_Peaker"},"Non-wind",{"$f":"IFERROR(INDEX($E$5:$E$32,MATCH(raw_resource_build!$E29,Lists!$B$5:$B$32,0)),\"Non-CAISO\")","v":"Non-CAISO"},null,{"$f":"raw_annual_energy!C29","v":"BANC_Hydro"},{"$f":"INDEX(K:K,MATCH(R29,Lists!J:J,0))","v":"Hydro"},"Non-wind",null,null,null,null,{"$f":"raw_fuel_burn!A29","v":"CAISO_Aero_CT"},{"$f":"INDEX(K:K,MATCH(Y29,Lists!J:J,0))","v":"CAISO_Aero_CT"}]
[null,"Flow_Battery","Battery Storage","Storage Losses","Battery (incl. BTM)",null,null,null,null,{"$f":"IFERROR(INDEX(raw_resource_build!$B$2:$B$1000,MATCH(0,COUNTIF($J$1:J29,raw_resource_build!$B$2:$B$1000), 0),0), \"\")","v":"BANC_CCGT"},{"$f":"IF(J30=\"\", \"\", INDEX(raw_resource_build!E:E, MATCH(J30, raw_resource_build!B:B, 0)))","v":"BANC_CCGT"},{"$f":"IF(J30=\"\", \"\", INDEX(raw_resource_build!C:C, MATCH(J30, raw_resource_build!B:B, 0)))","v":"BANC"},null,{"$f":"raw_resource_build!B30","v":"BANC_CCGT"},"Non-wind",{"$f":"IFERROR(INDEX($E$5:$E$32,MATCH(raw_resource_build!$E30,Lists!$B$5:$B$32,0)),\"Non-CAISO\")","v":"Non-CAISO"},null,{"$f":"raw_annual_energy!C30","v":"BANC_Hydro"},{"$f":"INDEX(K:K,MATCH(R30,Lists!J:J,0))","v":"Hydro"},"Non-wind",null,null,null,null,{"$f":"raw_fuel_burn!A30","v":"CAISO_Aero_CT"},{"$f":"INDEX(K:K,MATCH(Y30,Lists!J:J,0))","v":"CAISO_Aero_CT"}]
[null,"Hydrogen_Electrolysis","Hydrogen Load","Hydrogen Load","Hydrogen Load",null,null,null,null,{"$f":"IFERROR(INDEX(raw_resource_build!$B$2:$B$1000,MATCH(0,COUNTIF($J$1:J30,raw_resource_build!$B$2:$B$1000), 0),0), \"\")","v":"BANC_Peaker"},{"$f":"IF(J31=\"\", \"\", INDEX(raw_resource_build!E:E, MATCH(J31, raw_resource_build!B:B, 0)))","v":"BANC_Peaker"},{"$f":"IF(J31=\"\", \"\", INDEX(raw_resource_build!C:C, MATCH(J31, raw_resource_build!B:B, 0)))","v":"BANC"},null,{"$f":"raw_resource_build!B31","v":"BANC_Peaker"},"Non-wind",{"$f":"IFERROR(INDEX($E$5:$E$32,MATCH(raw_resource_build!$E31,Lists!$B$5:$B$32,0)),\"Non-CAISO\")","v":"Non-CAISO"},null,{"$f":"raw_annual_energy!C31","v":"BANC_Hydro"},{"$f":"INDEX(K:K,MATCH(R31,Lists!J:J,0))","v":"Hydro"},"Non-wind",null,null,null,null,{"$f":"raw_fuel_burn!A31","v":"CAISO_Aero_CT"},{"$f":"INDEX(K:K,MATCH(Y31,Lists!J:J,0))","v":"CAISO_Aero_CT"}]
[null,"Flexible_Load","Shift DR","Load","Load",null,null,null,null,{"$f":"IFERROR(INDEX(raw_resource_build!$B$2:$B$1000,MATCH(0,COUNTIF($J$1:J31,raw_resource_build!$B$2:$B$1000), 0),0), \"\")","v":"BANC_Biomass_for_Other"},{"$f":"IF(J32=\"\", \"\", INDEX(raw_resource_build!E:E, MATCH(J32, raw_resource_build!B:B, 0)))","v":"Biomass"},{"$f":"IF(J32=\"\", \"\", INDEX(raw_resource_build!C:C, MATCH(J32, raw_resource_build!B:B, 0)))","v":"BANC"},null,{"$f":"raw_resource_build!B32","v":"BANC_Biomass_for_Other"},"Non-wind",{"$f":"IFERROR(INDEX($E$5:$E$32,MATCH(raw_resource_build!$E32,Lists!$B$5:$B$32,0)),\"Non-CAISO\")","v":"Biomass"},null,{"$f":"raw_annual_energy!C32","v":"BANC_Hydro"},{"$f":"INDEX(K:K,MATCH(R32,Lists!J:J,0))","v":"Hydro"},"Non-wind",null,null,null,null,{"$f":"raw_fuel_burn!A32","v":"CAISO_Aero_CT"},{"$f":"INDEX(K:K,MATCH(Y32,Lists!J:J,0))","v":"CAISO_Aero_CT"}]
[null,null,null,null,null,null,null,null,null,{"$f":"IFERROR(INDEX(raw_resource_build!$B$2:$B$1000,MATCH(0,COUNTIF($J$1:J32,raw_resource_build!$B$2:$B$1000), 0),0), \"\")","v":"BANC_Geothermal_for_Other"},{"$f":"IF(J33=\"\", \"\", INDEX(raw_resource_build!E:E, MATCH(J33, raw_resource_build!B:B, 0)))","v":"Geothermal"},{"$f":"IF(J33=\"\", \"\", INDEX(raw_resource_build!C:C, MATCH(J33, raw_resource_build!B:B, 0)))","v":"BANC"},null,{"$f":"raw_resource_build!B33","v":"BANC_Geothermal_for_Other"},"Non-wind",{"$f":"IFERROR(INDEX($E$5:$E$32,MATCH(raw_resource_build!$E33,Lists!$B$5:$B$32,0)),\"Non-CAISO\")","v":"Geothermal"},null,{"$f":"raw_annual_energy!C33","v":"BANC_Hydro"},{"$f":"INDEX(K:K,MATCH(R33,Lists!J:J,0))","v":"Hydro"},"Non-wind",null,null,null,null,{"$f":"raw_fuel_burn!A33","v":"CAISO_Aero_CT"},{"$f":"INDEX(K:K,MATCH(Y33,Lists!J:J,0))","v":"CAISO_Aero_CT"}]
[null,"Resource","Location",null,null,null,null,null,null,{"$f":"IFERROR(INDEX(raw_resource_build!$B$2:$B$1000,MATCH(0,COUNTIF($J$1:J33,raw_resource_build!$B$2:$B$1000), 0),0), \"\")","v":"CAISO_Biomass_for_Other"},{"$f":"IF(J34=\"\", \"\", INDEX(raw_resource_build!E:E, MATCH(J34, raw_resource_build!B:B, 0)))","v":"Biomass"},{"$f":"IF(J34=\"\", \"\", INDEX(raw_resource_build!C:C, MATCH(J34, raw_resource_build!B:B, 0)))","v":"CAISO"},null,{"$f":"raw_resource_build!B34","v":"CAISO_Biomass_for_Other"},"Non-wind",{"$f":"IFERROR(INDEX($E$5:$E$32,MATCH(raw_resource_build!$E34,Lists!$B$5:$B$32,0)),\"Non-CAISO\")","v":"Biomass"},null,{"$f":"raw_annual_energy!C34","v":"BANC_Hydro"},{"$f":"INDEX(K:K,MATCH(R34,Lists!J:J,0))","v":"Hydro"},"Non-wind",null,null,null,null,{"$f":"raw_fuel_burn!A34","v":"CAISO_Aero_CT"},{"$f":"INDEX(K:K,MATCH(Y34,Lists!J:J,0))","v":"CAISO_Aero_CT"}]
[null,"InState_Biomass","In-State",null,null,null,null,null,null,{"$f":"IFERROR(INDEX(raw_resource_build!$B$2:$B$1000,MATCH(0,COUNTIF($J$1:J34,raw_resource_build!$B$2:$B$1000), 0),0), \"\")","v":"CAISO_Geothermal_for_Other"},{"$f":"IF(J35=\"\", \"\", INDEX(raw_resource_build!E:E, MATCH(J35, raw_resource_build!B:B, 0)))","v":"Geothermal"},{"$f":"IF(J35=\"\", \"\", INDEX(raw_resource_build!C:C, MATCH(J35, raw_resource_build!B:B, 0)))","v":"CAISO"},null,{"$f":"raw_resource_build!B35","v":"CAISO_Geothermal_for_Other"},"Non-wind",{"$f":"IFERROR(INDEX($E$5:$E$32,MATCH(raw_resource_build!$E35,Lists!$B$5:$B$32,0)),\"Non-CAISO\")","v":"Geothermal"},null,{"$f":"raw_annual_energy!C35","v":"BANC_Peaker"},{"$f":"INDEX(K:K,MATCH(R35,Lists!J:J,0))","v":"BANC_Peaker"},"Non-wind",null,null,null,null,{"$f":"raw_fuel_burn!A35","v":"CAISO_CCGT1"},{"$f":"INDEX(K:K,MATCH(Y35,Lists!J:J,0))","v":"CAISO_CCGT1"}]
[null,"Greater_Imperial_Geothermal","In-State",null,null,null,null,null,null,{"$f":"IFERROR(INDEX(raw_resource_build!$B$2:$B$1000,MATCH(0,COUNTIF($J$1:J35,raw_resource_build!$B$2:$B$1000), 0),0), \"\")","v":"IID_Biomass_for_Other"},{"$f":"IF(J36=\"\", \"\", INDEX(raw_resource_build!E:E, MATCH(J36, raw_resource_build!B:B, 0)))","v":"Biomass"},{"$f":"IF(J36=\"\", \"\", INDEX(raw_resource_build!C:C, MATCH(J36, raw_resource_build!B:B, 0)))","v":"IID"},null,{"$f":"raw_resource_build!B36","v":"IID_Biomass_for_Other"},"Non-wind",{"$f":"IFERROR(INDEX($E$5:$E$32,MATCH(raw_resource_build!$E36,Lists!$B$5:$B$32,0)),\"Non-CAISO\")","v":"Biomass"},null,{"$f":"raw_annual_energy!C36","v":"BANC_Peaker"},{"$f":"INDEX(K:K,MATCH(R36,Lists!J:J,0))","v":"BANC_Peaker"},"Non-wind",null,null,null,null,{"$f":"raw_fuel_burn!A36","v":"CAISO_CCGT1"},{"$f":"INDEX(K:K,MATCH(Y36,Lists!J:J,0))","v":"CAISO_CCGT1"}]
[null,"Inyokern_North_Kramer_Geothermal","In-State",null,null,null,null,null,null,{"$f":"IFERROR(INDEX(raw_resource_build!$B$2:$B$1000,MATCH(0,COUNTIF($J$1:J36,raw_resource_build!$B$2:$B$1000), 0),0), \"\")","v":"IID_Geothermal_for_Other"},{"$f":"IF(J37=\"\", \"\", INDEX(raw_resource_build!E:E, MATCH(J37, raw_resource_build!B:B, 0)))","v":"Geothermal"},{"$f":"IF(J37=\"\", \"\", INDEX(raw_resource_build!C:C, MATCH(J37, raw_resource_build!B:B, 0)))","v":"IID"},null,{"$f":"raw_resource_build!B37","v":"IID_Geothermal_for_Other"},"Non-wind",{"$f":"IFERROR(INDEX($E$5:$E$32,MATCH(raw_resource_build!$E37,Lists!$B$5:$B$32,0)),\"Non-CAISO\")","v":"Geothermal"},null,{"$f":"raw_annual_energy!C37","v":"BANC_Peaker"},{"$f":"INDEX(K:K,MATCH(R37,Lists!J:J,0))","v":"BANC_Peaker"},"Non-wind",null,null,null,null,{"$f":"raw_fuel_burn!A37","v":"CAISO_CCGT1"},{"$f":"INDEX(K:K,MATCH(Y37,Lists!J:J,0))","v":"CAISO_CCGT1"}]
[null,"Northern_California_Ex_Geothermal","In-State",null,null,null,null,null,null,{"$f":"IFERROR(INDEX(raw_resource_build!$B$2:$B$1000,MATCH(0,COUNTIF($J$1:J37,raw_resource_build!$B$2:$B$1000), 0),0), \"\")","v":"LDWP_Biomass_for_Other"},{"$f":"IF(J38=\"\", \"\", INDEX(raw_resource_build!E:E, MATCH(J38, raw_resource_build!B:B, 0)))","v":"Biomass"},{"$f":"IF(J38=\"\", \"\", INDEX(raw_resource_build!C:C, MATCH(J38, raw_resource_build!B:B, 0)))","v":"LDWP"},null,{"$f":"raw_resource_build!B38","v":"LDWP_Biomass_for_Other"},"Non-wind",{"$f":"IFERROR(INDEX($E$5:$E$32,MATCH(raw_resource_build!$E38,Lists!$B$5:$B$32,0)),\"Non-CAISO\")","v":"Biomass"},null,{"$f":"raw_annual_energy!C38","v":"BANC_Peaker"},{"$f":"INDEX(K:K,MATCH(R38,Lists!J:J,0))","v":"BANC_Peaker"},"Non-wind",null,null,null,null,{"$f":"raw_fuel_burn!A38","v":"CAISO_CCGT1"},{"$f":"INDEX(K:K,MATCH(Y38,Lists!J:J,0))","v":"CAISO_CCGT1"}]
[null,"Pacific_Northwest_Geothermal","Out-Of-State",null,null,null,null,null,null,{"$f":"IFERROR(INDEX(raw_resource_build!$B$2:$B$1000,MATCH(0,COUNTIF($J$1:J38,raw_resource_build!$B$2:$B$1000), 0),0), \"\")","v":"LDWP_Geothermal_for_Other"},{"$f":"IF(J39=\"\", \"\", INDEX(raw_resource_build!E:E, MATCH(J39, raw_resource_build!B:B, 0)))","v":"Geothermal"},{"$f":"IF(J39=\"\", \"\", INDEX(raw_resource_build!C:C, MATCH(J39, raw_resource_build!B:B, 0)))","v":"LDWP"},null,{"$f":"raw_resource_build!B39","v":"LDWP_Geothermal_for_Other"},"Non-wind",{"$f":"IFERROR(INDEX($E$5:$E$32,MATCH(raw_resource_build!$E39,Lists!$B$5:$B$32,0)),\"Non-CAISO\")","v":"Geothermal"},null,{"$f":"raw_annual_energy!C39","v":"BANC_Peaker"},{"$f":"INDEX(K:K,MATCH(R39,Lists!J:J,0))","v":"BANC_Peaker"},"Non-wind",null,null,null,null,{"$f":"raw_fuel_burn!A39","v":"CAISO_CCGT1"},{"$f":"INDEX(K:K,MATCH(Y39,Lists!J:J,0))","v":"CAISO_CCGT1"}]
[null,"Riverside_Palm_Springs_Geothermal","In-State",null,null,null,null,null,null,{"$f":"IFERROR(INDEX(raw_resource_build!$B$2:$B$1000,MATCH(0,COUNTIF($J$1:J39,raw_resource_build!$B$2:$B$1000), 0),0), \"\")","v":"NW_Biomass_for_Other"},{"$f":"IF(J40=\"\", \"\", INDEX(raw_resource_build!E:E, MATCH(J40, raw_resource_build!B:B, 0)))","v":"Biomass"},{"$f":"IF(J40=\"\", \"\", INDEX(raw_resource_build!C:C, MATCH(J40, raw_resource_build!B:B, 0)))","v":"NW"},null,{"$f":"raw_resource_build!B40","v":"NW_Biomass_for_Other"},"Non-wind",{"$f":"IFERROR(INDEX($E$5:$E$32,MATCH(raw_resource_build!$E40,Lists!$B$5:$B$32,0)),\"Non-CAISO\")","v":"Biomass"},null,{"$f":"raw_annual_energy!C40","v":"BANC_Peaker"},{"$f":"INDEX(K:K,MATCH(R40,Lists!J:J,0))","v":"BANC_Peaker"},"Non-wind",null,null,null,null,{"$f":"raw_fuel_burn!A40","v":"CAISO_CCGT1"},{"$f":"INDEX(K:K,MATCH(Y40,Lists!J:J,0))","v":"CAISO_CCGT1"}]
[null,"Solano_Geothermal","In-State",null,null,null,null,null,null,{"$f":"IFERROR(INDEX(raw_resource_build!$B$2:$B$1000,MATCH(0,COUNTIF($J$1:J40,raw_resource_build!$B$2:$B$1000), 0),0), \"\")","v":"NW_Geothermal_for_Other"},{"$f":"IF(J41=\"\", \"\", INDEX(raw_resource_build!E:E, MATCH(J41, raw_resource_build!B:B, 0)))","v":"Geothermal"},{"$f":"IF(J41=\"\", \"\", INDEX(raw_resource_build!C:C, MATCH(J41, raw_resource_build!B:B, 0)))","v":"NW"},null,{"$f":"raw_resource_build!B41","v":"NW_Geothermal_for_Other"},"Non-wind",{"$f":"IFERROR(INDEX($E$5:$E$32,MATCH(raw_resource_build!$E41,Lists!$B$5:$B$32,0)),\"Non-CAISO\")","v":"Geothermal"},null,{"$f":"raw_annual_energy!C41","v":"BANC_Peaker"},{"$f":"INDEX(K:K,MATCH(R41,Lists!J:J,0))","v":"BANC_Peaker"},"Non-wind",null,null,null,null,{"$f":"raw_fuel_burn!A41","v":"CAISO_CCGT1"},{"$f":"INDEX(K:K,MATCH(Y41,Lists!J:J,0))","v":"CAISO_CCGT1"}]
[null,"Southern_Nevada_Geothermal","In-State",null,null,null,null,null,null,{"$f":"IFERROR(INDEX(raw_resource_build!$B$2:$B$1000,MATCH(0,COUNTIF($J$1:J41,raw_resource_build!$B$2:$B$1000), 0),0), \"\")","v":"SW_Biomass_for_Other"},{"$f":"IF(J42=\"\", \"\", INDEX(raw_resource_build!E:E, MATCH(J42, raw_resource_build!B:B, 0)))","v":"Biomass"},{"$f":"IF(J42=\"\", \"\", INDEX(raw_resource_build!C:C, MATCH(J42, raw_resource_build!B:B, 0)))","v":"SW"},null,{"$f":"raw_resource_build!B42","v":"SW_Biomass_for_Other"},"Non-wind",{"$f":"IFERROR(INDEX($E$5:$E$32,MATCH(raw_resource_build!$E42,Lists!$B$5:$B$32,0)),\"Non-CAISO\")","v":"Biomass"},null,{"$f":"raw_annual_energy!C42","v":"BANC_Peaker"},{"$f":"INDEX(K:K,MATCH(R42,Lists!J:J,0))","v":"BANC_Peaker"},"Non-wind",null,null,null,null,{"$f":"raw_fuel_burn!A42","v":"CAISO_CCGT1"},{"$f":"INDEX(K:K,MATCH(Y42,Lists!J:J,0))","v":"CAISO_CCGT1"}]
[null,"Carrizo_Solar","In-State",null,null,null,null,null,null,{"$f":"IFERROR(INDEX(raw_resource_build!$B$2:$B$1000,MATCH(0,COUNTIF($J$1:J42,raw_resource_build!$B$2:$B$1000), 0),0), \"\")","v":"SW_Geothermal_for_Other"},{"$f":"IF(J43=\"\", \"\", INDEX(raw_resource_build!E:E, MATCH(J43, raw_resource_build!B:B, 0)))","v":"Geothermal"},{"$f":"IF(J43=\"\", \"\", INDEX(raw_resource_build!C:C, MATCH(J43, raw_resource_build!B:B, 0)))","v":"SW"},null,{"$f":"raw_resource_build!B43","v":"SW_Geothermal_for_Other"},"Non-wind",{"$f":"IFERROR(INDEX($E$5:$E$32,MATCH(raw_resource_build!$E43,Lists!$B$5:$B$32,0)),\"Non-CAISO\")","v":"Geothermal"},null,{"$f":"raw_annual_energy!C43","v":"BANC_Small_Hydro_for_Other"},{"$f":"INDEX(K:K,MATCH(R43,Lists!J:J,0))","v":"Small_Hydro"},"Non-wind",null,null,null,null,{"$f":"raw_fuel_burn!A43","v":"CAISO_CCGT2"},{"$f":"INDEX(K:K,MATCH(Y43,Lists!J:J,0))","v":"CAISO_CCGT2"}]
[null,"Carrizo_Wind","In-State",null,null,null,null,null,null,{"$f":"IFERROR(INDEX(raw_resource_build!$B$2:$B$1000,MATCH(0,COUNTIF($J$1:J43,raw_resource_build!$B$2:$B$1000), 0),0), \"\")","v":"CAISO_Biomass_for_CAISO"},{"$f":"IF(J44=\"\", \"\", INDEX(raw_resource_build!E:E, MATCH(J44, raw_resource_build!B:B, 0)))","v":"Biomass"},{"$f":"IF(J44=\"\", \"\", INDEX(raw_resource_build!C:C, MATCH(J44, raw_resource_build!B:B, 0)))","v":"CAISO"},null,{"$f":"raw_resource_build!B44","v":"CAISO_Biomass_for_CAISO"},"Non-wind",{"$f":"IFERROR(INDEX($E$5:$E$32,MATCH(raw_resource_build!$E44,Lists!$B$5:$B$32,0)),\"Non-CAISO\")","v":"Biomass"},null,{"$f":"raw_annual_energy!C44","v":"BANC_Small_Hydro_for_Other"},{"$f":"INDEX(K:K,MATCH(R44,Lists!J:J,0))","v":"Small_Hydro"},"Non-wind",null,null,null,null,{"$f":"raw_fuel_burn!A44","v":"CAISO_CCGT2"},{"$f":"INDEX(K:K,MATCH(Y44,Lists!J:J,0))","v":"CAISO_CCGT2"}]
[null,"Central_Valley_North_Los_Banos_Solar","In-State",null,null,null,null,null,null,{"$f":"IFERROR(INDEX(raw_resource_build!$B$2:$B$1000,MATCH(0,COUNTIF($J$1:J44,raw_resource_build!$B$2:$B$1000), 0),0), \"\")","v":"CAISO_Geothermal_for_CAISO"},{"$f":"IF(J45=\"\", \"\", INDEX(raw_resource_build!E:E, MATCH(J45, raw_resource_build!B:B, 0)))","v":"Geothermal"},{"$f":"IF(J45=\"\", \"\", INDEX(raw_resource_build!C:C, MATCH(J45, raw_resource_build!B:B, 0)))","v":"CAISO"},null,{"$f":"raw_resource_build!B45","v":"CAISO_Geothermal_for_CAISO"},"Non-wind",{"$f":"IFERROR(INDEX($E$5:$E$32,MATCH(raw_resource_build!$E45,Lists!$B$5:$B$32,0)),\"Non-CAISO\")","v":"Geothermal"},null,{"$f":"raw_annual_energy!C45","v":"BANC_Small_Hydro_for_Other"},{"$f":"INDEX(K:K,MATCH(R45,Lists!J:J,0))","v":"Small_Hydro"},"Non-wind",null,null,null,null,{"$f":"raw_fuel_burn!A45","v":"CAISO_CCGT2"},{"$f":"INDEX(K:K,MATCH(Y45,Lists!J:J,0))","v":"CAISO_CCGT2"}]
[null,"Central_Valley_North_Los_Banos_Wind","In-State",null,null,null,null,null,null,{"$f":"IFERROR(INDEX(raw_resource_build!$B$2:$B$1000,MATCH(0,COUNTIF($J$1:J45,raw_resource_build!$B$2:$B$1000), 0),0), \"\")","v":"IID_Geothermal_for_CAISO"},{"$f":"IF(J46=\"\", \"\", INDEX(raw_resource_build!E:E, MATCH(J46, raw_resource_build!B:B, 0)))","v":"Geothermal"},{"$f":"IF(J46=\"\", \"\", INDEX(raw_resource_build!C:C, MATCH(J46, raw_resource_build!B:B, 0)))","v":"IID"},null,{"$f":"raw_resource_build!B46","v":"IID_Geothermal_for_CAISO"},"Non-wind",{"$f":"IFERROR(INDEX($E$5:$E$32,MATCH(raw_resource_build!$E46,Lists!$B$5:$B$32,0)),\"Non-CAISO\")","v":"Geothermal"},null,{"$f":"raw_annual_energy!C46","v":"BANC_Small_Hydro_for_Other"},{"$f":"INDEX(K:K,MATCH(R46,Lists!J:J,0))","v":"Small_Hydro"},"Non-wind",null,null,null,null,{"$f":"raw_fuel_burn!A46","v":"CAISO_CCGT2"},{"$f":"INDEX(K:K,MATCH(Y46,Lists!J:J,0))","v":"CAISO_CCGT2"}]
[null,"Distributed_Solar","In-State",null,null,null,null,null,null,{"$f":"IFERROR(INDEX(raw_resource_build!$B$2:$B$1000,MATCH(0,COUNTIF($J$1:J46,raw_resource_build!$B$2:$B$1000), 0),0), \"\")","v":"NW_Biomass_for_CAISO"},{"$f":"IF(J47=\"\", \"\", INDEX(raw_resource_build!E:E, MATCH(J47, raw_resource_build!B:B, 0)))","v":"Biomass"},{"$f":"IF(J47=\"\", \"\", INDEX(raw_resource_build!C:C, MATCH(J47, raw_resource_build!B:B, 0)))","v":"NW"},null,{"$f":"raw_resource_build!B47","v":"NW_Biomass_for_CAISO"},"Non-wind",{"$f":"IFERROR(INDEX($E$5:$E$32,MATCH(raw_resource_build!$E47,Lists!$B$5:$B$32,0)),\"Non-CAISO\")","v":"Biomass"},null,{"$f":"raw_annual_energy!C47","v":"BANC_Small_Hydro_for_Other"},{"$f":"INDEX(K:K,MATCH(R47,Lists!J:J,0))","v":"Small_Hydro"},"Non-wind",null,null,null,null,{"$f":"raw_fuel_burn!A47","v":"CAISO_CCGT2"},{"$f":"INDEX(K:K,MATCH(Y47,Lists!J:J,0))","v":"CAISO_CCGT2"}]
[null,"Distributed_Wind","In-State",null,null,null,null,null,null,{"$f":"IFERROR(INDEX(raw_resource_build!$B$2:$B$1000,MATCH(0,COUNTIF($J$1:J47,raw_resource_build!$B$2:$B$1000), 0),0), \"\")","v":"NW_Geothermal_for_CAISO"},{"$f":"IF(J48=\"\", \"\", INDEX(raw_resource_build!E:E, MATCH(J48, raw_resource_build!B:B, 0)))","v":"Geothermal"},{"$f":"IF(J48=\"\", \"\", INDEX(raw_resource_build!C:C, MATCH(J48, raw_resource_build!B:B, 0)))","v":"NW"},null,{"$f":"raw_resource_build!B48","v":"NW_Geothermal_for_CAISO"},"Non-wind",{"$f":"IFERROR(INDEX($E$5:$E$32,MATCH(raw_resource_build!$E48,Lists!$B$5:$B$32,0)),\"Non-CAISO\")","v":"Geothermal"},null,{"$f":"raw_annual_energy!C48","v":"BANC_Small_Hydro_for_Other"},{"$f":"INDEX(K:K,MATCH(R48,Lists!J:J,0))","v":"Small_Hydro"},"Non-wind",null,null,null,null,{"$f":"raw_fuel_burn!A48","v":"CAISO_CCGT2"},{"$f":"INDEX(K:K,MATCH(Y48,Lists!J:J,0))","v":"CAISO_CCGT2"}]
[null,"Greater_Imperial_Solar","In-State",null,null,null,null,null,null,{"$f":"IFERROR(INDEX(raw_resource_build!$B$2:$B$1000,MATCH(0,COUNTIF($J$1:J48,raw_resource_build!$B$2:$B$1000), 0),0), \"\")","v":"InState_Biomass"},{"$f":"IF(J49=\"\", \"\", INDEX(raw_resource_build!E:E, MATCH(J49, raw_resource_build!B:B, 0)))","v":"Biomass"},{"$f":"IF(J49=\"\", \"\", INDEX(raw_resource_build!C:C, MATCH(J49, raw_resource_build!B:B, 0)))","v":"CAISO"},null,{"$f":"raw_resource_build!B49","v":"InState_Biomass"},"In-State",{"$f":"IFERROR(INDEX($E$5:$E$32,MATCH(raw_resource_build!$E49,Lists!$B$5:$B$32,0)),\"Non-CAISO\")","v":"Biomass"},null,{"$f":"raw_annual_energy!C49","v":"BANC_Small_Hydro_for_Other"},{"$f":"INDEX(K:K,MATCH(R49,Lists!J:J,0))","v":"Small_Hydro"},"Non-wind",null,null,null,null,{"$f":"raw_fuel_burn!A49","v":"CAISO_CCGT2"},{"$f":"INDEX(K:K,MATCH(Y49,Lists!J:J,0))","v":"CAISO_CCGT2"}]
[null,"Greater_Imperial_Wind","In-State",null,null,null,null,null,null,{"$f":"IFERROR(INDEX(raw_resource_build!$B$2:$B$1000,MATCH(0,COUNTIF($J$1:J49,raw_resource_build!$B$2:$B$1000), 0),0), \"\")","v":"CAISO_Small_Hydro_for_CAISO"},{"$f":"IF(J50=\"\", \"\", INDEX(raw_resource_build!E:E, MATCH(J50, raw_resource_build!B:B, 0)))","v":"Small_Hydro"},{"$f":"IF(J50=\"\", \"\", INDEX(raw_resource_build!C:C, MATCH(J50, raw_resource_build!B:B, 0)))","v":"CAISO"},null,{"$f":"raw_resource_build!B50","v":"CAISO_Small_Hydro_for_CAISO"},"Non-wind",{"$f":"IFERROR(INDEX($E$5:$E$32,MATCH(raw_resource_build!$E50,Lists!$B$5:$B$32,0)),\"Non-CAISO\")","v":"Hydro (small + large)"},null,{"$f":"raw_annual_energy!C50","v":"BANC_Small_Hydro_for_Other"},{"$f":"INDEX(K:K,MATCH(R50,Lists!J:J,0))","v":"Small_Hydro"},"Non-wind",null,null,null,null,{"$f":"raw_fuel_burn!A50","v":"CAISO_CCGT2"},{"$f":"INDEX(K:K,MATCH(Y50,Lists!J:J,0))","v":"CAISO_CCGT2"}]
[null,"Greater_Kramer_Wind","In-State",null,null,null,null,null,null,{"$f":"IFERROR(INDEX(raw_resource_build!$B$2:$B$1000,MATCH(0,COUNTIF($J$1:J50,raw_resource_build!$B$2:$B$1000), 0),0), \"\")","v":"BANC_Small_Hydro_for_CAISO"},{"$f":"IF(J51=\"\", \"\", INDEX(raw_resource_build!E:E, MATCH(J51, raw_resource_build!B:B, 0)))","v":"Small_Hydro"},{"$f":"IF(J51=\"\", \"\", INDEX(raw_resource_build!C:C, MATCH(J51, raw_resource_build!B:B, 0)))","v":"BANC"},null,{"$f":"raw_resource_build!B51","v":"BANC_Small_Hydro_for_CAISO"},"Non-wind",{"$f":"IFERROR(INDEX($E$5:$E$32,MATCH(raw_resource_build!$E51,Lists!$B$5:$B$32,0)),\"Non-CAISO\")","v":"Hydro (small + large)"},null,{"$f":"raw_annual_energy!C51","v":"BANC_Solar_for_Other"},{"$f":"INDEX(K:K,MATCH(R51,Lists!J:J,0))","v":"Solar"},"Non-wind",null,null,null,null,{"$f":"raw_fuel_burn!A51","v":"CAISO_CHP"},{"$f":"INDEX(K:K,MATCH(Y51,Lists!J:J,0))","v":"CAISO_CHP"}]
[null,"Humboldt_Wind","In-State",null,null,null,null,null,null,{"$f":"IFERROR(INDEX(raw_resource_build!$B$2:$B$1000,MATCH(0,COUNTIF($J$1:J51,raw_resource_build!$B$2:$B$1000), 0),0), \"\")","v":"NW_Small_Hydro_for_CAISO"},{"$f":"IF(J52=\"\", \"\", INDEX(raw_resource_build!E:E, MATCH(J52, raw_resource_build!B:B, 0)))","v":"Small_Hydro"},{"$f":"IF(J52=\"\", \"\", INDEX(raw_resource_build!C:C, MATCH(J52, raw_resource_build!B:B, 0)))","v":"NW"},null,{"$f":"raw_resource_build!B52","v":"NW_Small_Hydro_for_CAISO"},"Non-wind",{"$f":"IFERROR(INDEX($E$5:$E$32,MATCH(raw_resource_build!$E52,Lists!$B$5:$B$32,0)),\"Non-CAISO\")","v":"Hydro (small + large)"},null,{"$f":"raw_annual_energy!C52","v":"BANC_Solar_for_Other"},{"$f":"INDEX(K:K,MATCH(R52,Lists!J:J,0))","v":"Solar"},"Non-wind",null,null,null,null,{"$f":"raw_fuel_burn!A52","v":"CAISO_CHP"},{"$f":"INDEX(K:K,MATCH(Y52,Lists!J:J,0))","v":"CAISO_CHP"}]
[null,"Inyokern_North_Kramer_Solar","In-State",null,null,null,null,null,null,{"$f":"IFERROR(INDEX(raw_resource_build!$B$2:$B$1000,MATCH(0,COUNTIF($J$1:J52,raw_resource_build!$B$2:$B$1000), 0),0), \"\")","v":"CAISO_Small_Hydro_for_Other"},{"$f":"IF(J53=\"\", \"\", INDEX(raw_resource_build!E:E, MATCH(J53, raw_resource_build!B:B, 0)))","v":"Small_Hydro"},{"$f":"IF(J53=\"\", \"\", INDEX(raw_resource_build!C:C, MATCH(J53, raw_resource_build!B:B, 0)))","v":"CAISO"},null,{"$f":"raw_resource_build!B53","v":"CAISO_Small_Hydro_for_Other"},"Non-wind",{"$f":"IFERROR(INDEX($E$5:$E$32,MATCH(raw_resource_build!$E53,Lists!$B$5:$B$32,0)),\"Non-CAISO\")","v":"Hydro (small + large)"},null,{"$f":"raw_annual_energy!C53","v":"BANC_Solar_for_Other"},{"$f":"INDEX(K:K,MATCH(R53,Lists!J:J,0))","v":"Solar"},"Non-wind",null,null,null,null,{"$f":"raw_fuel_burn!A53","v":"CAISO_CHP"},{"$f":"INDEX(K:K,MATCH(Y53,Lists!J:J,0))","v":"CAISO_CHP"}]
[null,"Kern_Greater_Carrizo_Solar","In-State",null,null,null,null,null,null,{"$f":"IFERROR(INDEX(raw_resource_build!$B$2:$B$1000,MATCH(0,COUNTIF($J$1:J53,raw_resource_build!$B$2:$B$1000), 0),0), \"\")","v":"BANC_Small_Hydro_for_Other"},{"$f":"IF(J54=\"\", \"\", INDEX(raw_resource_build!E:E, MATCH(J54, raw_resource_build!B:B, 0)))","v":"Small_Hydro"},{"$f":"IF(J54=\"\", \"\", INDEX(raw_resource_build!C:C, MATCH(J54, raw_resource_build!B:B, 0)))","v":"BANC"},null,{"$f":"raw_resource_build!B54","v":"BANC_Small_Hydro_for_Other"},"Non-wind",{"$f":"IFERROR(INDEX($E$5:$E$32,MATCH(raw_resource_build!$E54,Lists!$B$5:$B$32,0)),\"Non-CAISO\")","v":"Hydro (small + large)"},null,{"$f":"raw_annual_energy!C54","v":"BANC_Solar_for_Other"},{"$f":"INDEX(K:K,MATCH(R54,Lists!J:J,0))","v":"Solar"},"Non-wind",null,null,null,null,{"$f":"raw_fuel_burn!A54","v":"CAISO_CHP"},{"$f":"INDEX(K:K,MATCH(Y54,Lists!J:J,0))","v":"CAISO_CHP"}]
[null,"Kern_Greater_Carrizo_Wind","In-State",null,null,null,null,null,null,{"$f":"IFERROR(INDEX(raw_resource_build!$B$2:$B$1000,MATCH(0,COUNTIF($J$1:J54,raw_resource_build!$B$2:$B$1000), 0),0), \"\")","v":"IID_Small_Hydro_for_Other"},{"$f":"IF(J55=\"\", \"\", INDEX(raw_resource_build!E:E, MATCH(J55, raw_resource_build!B:B, 0)))","v":"Small_Hydro"},{"$f":"IF(J55=\"\", \"\", INDEX(raw_resource_build!C:C, MATCH(J55, raw_resource_build!B:B, 0)))","v":"IID"},null,{"$f":"raw_resource_build!B55","v":"IID_Small_Hydro_for_Other"},"Non-wind",{"$f":"IFERROR(INDEX($E$5:$E$32,MATCH(raw_resource_build!$E55,Lists!$B$5:$B$32,0)),\"Non-CAISO\")","v":"Hydro (small + large)"},null,{"$f":"raw_annual_energy!C55","v":"BANC_Solar_for_Other"},{"$f":"INDEX(K:K,MATCH(R55,Lists!J:J,0))","v":"Solar"},"Non-wind",null,null,null,null,{"$f":"raw_fuel_burn!A55","v":"CAISO_CHP"},{"$f":"INDEX(K:K,MATCH(Y55,Lists!J:J,0))","v":"CAISO_CHP"}]
[null,"Kramer_Inyokern_Ex_Solar","In-State",null,null,null,null,null,null,{"$f":"IFERROR(INDEX(raw_resource_build!$B$2:$B$1000,MATCH(0,COUNTIF($J$1:J55,raw_resource_build!$B$2:$B$1000), 0),0), \"\")","v":"LDWP_Small_Hydro_for_Other"},{"$f":"IF(J56=\"\", \"\", INDEX(raw_resource_build!E:E, MATCH(J56, raw_resource_build!B:B, 0)))","v":"Small_Hydro"},{"$f":"IF(J56=\"\", \"\", INDEX(raw_resource_build!C:C, MATCH(J56, raw_resource_build!B:B, 0)))","v":"LDWP"},null,{"$f":"raw_resource_build!B56","v":"LDWP_Small_Hydro_for_Other"},"Non-wind",{"$f":"IFERROR(INDEX($E$5:$E$32,MATCH(raw_resource_build!$E56,Lists!$B$5:$B$32,0)),\"Non-CAISO\")","v":"Hydro (small + large)"},null,{"$f":"raw_annual_energy!C56","v":"BANC_Solar_for_Other"},{"$f":"INDEX(K:K,MATCH(R56,Lists!J:J,0))","v":"Solar"},"Non-wind",null,null,null,null,{"$f":"raw_fuel_burn!A56","v":"CAISO_CHP"},{"$f":"INDEX(K:K,MATCH(Y56,Lists!J:J,0))","v":"CAISO_CHP"}]
[null,"Kramer_Inyokern_Ex_Wind","In-State",null,null,null,null,null,null,{"$f":"IFERROR(INDEX(raw_resource_build!$B$2:$B$1000,MATCH(0,COUNTIF($J$1:J56,raw_resource_build!$B$2:$B$1000), 0),0), \"\")","v":"NW_Small_Hydro_for_Other"},{"$f":"IF(J57=\"\", \"\", INDEX(raw_resource_build!E:E, MATCH(J57, raw_resource_build!B:B, 0)))","v":"Small_Hydro"},{"$f":"IF(J57=\"\", \"\", INDEX(raw_resource_build!C:C, MATCH(J57, raw_resource_build!B:B, 0)))","v":"NW"},null,{"$f":"raw_resource_build!B57","v":"NW_Small_Hydro_for_Other"},"Non-wind",{"$f":"IFERROR(INDEX($E$5:$E$32,MATCH(raw_resource_build!$E57,Lists!$B$5:$B$32,0)),\"Non-CAISO\")","v":"Hydro (small + large)"},null,{"$f":"raw_annual_energy!C57","v":"BANC_Solar_for_Other"},{"$f":"INDEX(K:K,MATCH(R57,Lists!J:J,0))","v":"Solar"},"Non-wind",null,null,null,null,{"$f":"raw_fuel_burn!A57","v":"CAISO_CHP"},{"$f":"INDEX(K:K,MATCH(Y57,Lists!J:J,0))","v":"CAISO_CHP"}]
[null,"Mountain_Pass_El_Dorado_Solar","In-State",null,null,null,null,null,null,{"$f":"IFERROR(INDEX(raw_resource_build!$B$2:$B$1000,MATCH(0,COUNTIF($J$1:J57,raw_resource_build!$B$2:$B$1000), 0),0), \"\")","v":"SW_Small_Hydro_for_Other"},{"$f":"IF(J58=\"\", \"\", INDEX(raw_resource_build!E:E, MATCH(J58, raw_resource_build!B:B, 0)))","v":"Small_Hydro"},{"$f":"IF(J58=\"\", \"\", INDEX(raw_resource_build!C:C, MATCH(J58, raw_resource_build!B:B, 0)))","v":"SW"},null,{"$f":"raw_resource_build!B58","v":"SW_Small_Hydro_for_Other"},"Non-wind",{"$f":"IFERROR(INDEX($E$5:$E$32,MATCH(raw_resource_build!$E58,Lists!$B$5:$B$32,0)),\"Non-CAISO\")","v":"Hydro (small + large)"},null,{"$f":"raw_annual_energy!C58","v":"BANC_Solar_for_Other"},{"$f":"INDEX(K:K,MATCH(R58,Lists!J:J,0))","v":"Solar"},"Non-wind",null,null,null,null,{"$f":"raw_fuel_burn!A58","v":"CAISO_CHP"},{"$f":"INDEX(K:K,MATCH(Y58,Lists!J:J,0))","v":"CAISO_CHP"}]
[null,"North_Victor_Solar","In-State",null,null,null,null,null,null,{"$f":"IFERROR(INDEX(raw_resource_build!$B$2:$B$1000,MATCH(0,COUNTIF($J$1:J58,raw_resource_build!$B$2:$B$1000), 0),0), \"\")","v":"Greater_Imperial_Geothermal"},{"$f":"IF(J59=\"\", \"\", INDEX(raw_resource_build!E:E, MATCH(J59, raw_resource_build!B:B, 0)))","v":"Geothermal"},{"$f":"IF(J59=\"\", \"\", INDEX(raw_resource_build!C:C, MATCH(J59, raw_resource_build!B:B, 0)))","v":"CAISO"},null,{"$f":"raw_resource_build!B59","v":"Greater_Imperial_Geothermal"},"In-State",{"$f":"IFERROR(INDEX($E$5:$E$32,MATCH(raw_resource_build!$E59,Lists!$B$5:$B$32,0)),\"Non-CAISO\")","v":"Geothermal"},null,{"$f":"raw_annual_energy!C59","v":"BANC_Wind_for_Other"},{"$f":"INDEX(K:K,MATCH(R59,Lists!J:J,0))","v":"Wind"},"Non-wind",null,null,null,null,{"$f":"raw_fuel_burn!A59","v":"CAISO_Coal"},{"$f":"INDEX(K:K,MATCH(Y59,Lists!J:J,0))","v":"CAISO_Coal"}]
[null,"Northern_California_Ex_Solar","In-State",null,null,null,null,null,null,{"$f":"IFERROR(INDEX(raw_resource_build!$B$2:$B$1000,MATCH(0,COUNTIF($J$1:J59,raw_resource_build!$B$2:$B$1000), 0),0), \"\")","v":"Inyokern_North_Kramer_Geothermal"},{"$f":"IF(J60=\"\", \"\", INDEX(raw_resource_build!E:E, MATCH(J60, raw_resource_build!B:B, 0)))","v":"Geothermal"},{"$f":"IF(J60=\"\", \"\", INDEX(raw_resource_build!C:C, MATCH(J60, raw_resource_build!B:B, 0)))","v":"CAISO"},null,{"$f":"raw_resource_build!B60","v":"Inyokern_North_Kramer_Geothermal"},"In-State",{"$f":"IFERROR(INDEX($E$5:$E$32,MATCH(raw_resource_build!$E60,Lists!$B$5:$B$32,0)),\"Non-CAISO\")","v":"Geothermal"},null,{"$f":"raw_annual_energy!C60","v":"BANC_Wind_for_Other"},{"$f":"INDEX(K:K,MATCH(R60,Lists!J:J,0))","v":"Wind"},"Non-wind",null,null,null,null,{"$f":"raw_fuel_burn!A60","v":"CAISO_Coal"},{"$f":"INDEX(K:K,MATCH(Y60,Lists!J:J,0))","v":"CAISO_Coal"}]
[null,"Northern_California_Ex_Wind","In-State",null,null,null,null,null,null,{"$f":"IFERROR(INDEX(raw_resource_build!$B$2:$B$1000,MATCH(0,COUNTIF($J$1:J60,raw_resource_build!$B$2:$B$1000), 0),0), \"\")","v":"Northern_California_Ex_Geothermal"},{"$f":"IF(J61=\"\", \"\", INDEX(raw_resource_build!E:E, MATCH(J61, raw_resource_build!B:B, 0)))","v":"Geothermal"},{"$f":"IF(J61=\"\", \"\", INDEX(raw_resource_build!C:C, MATCH(J61, raw_resource_build!B:B, 0)))","v":"CAISO"},null,{"$f":"raw_resource_build!B61","v":"Northern_California_Ex_Geothermal"},"In-State",{"$f":"IFERROR(INDEX($E$5:$E$32,MATCH(raw_resource_build!$E61,Lists!$B$5:$B$32,0)),\"Non-CAISO\")","v":"Geothermal"},null,{"$f":"raw_annual_energy!C61","v":"BANC_Wind_for_Other"},{"$f":"INDEX(K:K,MATCH(R61,Lists!J:J,0))","v":"Wind"},"Non-wind",null,null,null,null,{"$f":"raw_fuel_burn!A61","v":"CAISO_Coal"},{"$f":"INDEX(K:K,MATCH(Y61,Lists!J:J,0))","v":"CAISO_Coal"}]
[null,"NW_Ext_Tx_Wind","In-State",null,null,null,null,null,null,{"$f":"IFERROR(INDEX(raw_resource_build!$B$2:$B$1000,MATCH(0,COUNTIF($J$1:J61,raw_resource_build!$B$2:$B$1000), 0),0), \"\")","v":"Pacific_Northwest_Geothermal"},{"$f":"IF(J62=\"\", \"\", INDEX(raw_resource_build!E:E, MATCH(J62, raw_resource_build!B:B, 0)))","v":"Geothermal"},{"$f":"IF(J62=\"\", \"\", INDEX(raw_resource_build!C:C, MATCH(J62, raw_resource_build!B:B, 0)))","v":"CAISO"},null,{"$f":"raw_resource_build!B62","v":"Pacific_Northwest_Geothermal"},"Out-Of-State",{"$f":"IFERROR(INDEX($E$5:$E$32,MATCH(raw_resource_build!$E62,Lists!$B$5:$B$32,0)),\"Non-CAISO\")","v":"Geothermal"},null,{"$f":"raw_annual_energy!C62","v":"BANC_Wind_for_Other"},{"$f":"INDEX(K:K,MATCH(R62,Lists!J:J,0))","v":"Wind"},"Non-wind",null,null,null,null,{"$f":"raw_fuel_burn!A62","v":"CAISO_Coal"},{"$f":"INDEX(K:K,MATCH(Y62,Lists!J:J,0))","v":"CAISO_Coal"}]
[null,"Riverside_Palm_Springs_Solar","In-State",null,null,null,null,null,null,{"$f":"IFERROR(INDEX(raw_resource_build!$B$2:$B$1000,MATCH(0,COUNTIF($J$1:J62,raw_resource_build!$B$2:$B$1000), 0),0), \"\")","v":"Riverside_Palm_Springs_Geothermal"},{"$f":"IF(J63=\"\", \"\", INDEX(raw_resource_build!E:E, MATCH(J63, raw_resource_build!B:B, 0)))","v":"Geothermal"},{"$f":"IF(J63=\"\", \"\", INDEX(raw_resource_build!C:C, MATCH(J63, raw_resource_build!B:B, 0)))","v":"CAISO"},null,{"$f":"raw_resource_build!B63","v":"Riverside_Palm_Springs_Geothermal"},"In-State",{"$f":"IFERROR(INDEX($E$5:$E$32,MATCH(raw_resource_build!$E63,Lists!$B$5:$B$32,0)),\"Non-CAISO\")","v":"Geothermal"},null,{"$f":"raw_annual_energy!C63","v":"BANC_Wind_for_Other"},{"$f":"INDEX(K:K,MATCH(R63,Lists!J:J,0))","v":"Wind"},"Non-wind",null,null,null,null,{"$f":"raw_fuel_burn!A63","v":"CAISO_Coal"},{"$f":"INDEX(K:K,MATCH(Y63,Lists!J:J,0))","v":"CAISO_Coal"}]
[null,"Sacramento_River_Solar","In-State",null,null,null,null,null,null,{"$f":"IFERROR(INDEX(raw_resource_build!$B$2:$B$1000,MATCH(0,COUNTIF($J$1:J63,raw_resource_build!$B$2:$B$1000), 0),0), \"\")","v":"Solano_Geothermal"},{"$f":"IF(J64=\"\", \"\", INDEX(raw_resource_build!E:E, MATCH(J64, raw_resource_build!B:B, 0)))","v":"Geothermal"},{"$f":"IF(J64=\"\", \"\", INDEX(raw_resource_build!C:C, MATCH(J64, raw_resource_build!B:B, 0)))","v":"CAISO"},null,{"$f":"raw_resource_build!B64","v":"Solano_Geothermal"},"In-State",{"$f":"IFERROR(INDEX($E$5:$E$32,MATCH(raw_resource_build!$E64,Lists!$B$5:$B$32,0)),\"Non-CAISO\")","v":"Geothermal"},null,{"$f":"raw_annual_energy!C64","v":"BANC_Wind_for_Other"},{"$f":"INDEX(K:K,MATCH(R64,Lists!J:J,0))","v":"Wind"},"Non-wind",null,null,null,null,{"$f":"raw_fuel_burn!A64","v":"CAISO_Coal"},{"$f":"INDEX(K:K,MATCH(Y64,Lists!J:J,0))","v":"CAISO_Coal"}]
[null,"Sacramento_River_Wind","In-State",null,null,null,null,null,null,{"$f":"IFERROR(INDEX(raw_resource_build!$B$2:$B$1000,MATCH(0,COUNTIF($J$1:J64,raw_resource_build!$B$2:$B$1000), 0),0), \"\")","v":"Southern_Nevada_Geothermal"},{"$f":"IF(J65=\"\", \"\", INDEX(raw_resource_build!E:E, MATCH(J65, raw_resource_build!B:B, 0)))","v":"Geothermal"},{"$f":"IF(J65=\"\", \"\", INDEX(raw_resource_build!C:C, MATCH(J65, raw_resource_build!B:B, 0)))","v":"CAISO"},null,{"$f":"raw_resource_build!B65","v":"Southern_Nevada_Geothermal"},"In-State",{"$f":"IFERROR(INDEX($E$5:$E$32,MATCH(raw_resource_build!$E65,Lists!$B$5:$B$32,0)),\"Non-CAISO\")","v":"Geothermal"},null,{"$f":"raw_annual_energy!C65","v":"BANC_Wind_for_Other"},{"$f":"INDEX(K:K,MATCH(R65,Lists!J:J,0))","v":"Wind"},"Non-wind",null,null,null,null,{"$f":"raw_fuel_burn!A65","v":"CAISO_Coal"},{"$f":"INDEX(K:K,MATCH(Y65,Lists!J:J,0))","v":"CAISO_Coal"}]
[null,"SCADSNV_Solar","In-State",null,null,null,null,null,null,{"$f":"IFERROR(INDEX(raw_resource_build!$B$2:$B$1000,MATCH(0,COUNTIF($J$1:J65,raw_resource_build!$B$2:$B$1000), 0),0), \"\")","v":"Customer_PV"},{"$f":"IF(J66=\"\", \"\", INDEX(raw_resource_build!E:E, MATCH(J66, raw_resource_build!B:B, 0)))","v":"Customer_PV"},{"$f":"IF(J66=\"\", \"\", INDEX(raw_resource_build!C:C, MATCH(J66, raw_resource_build!B:B, 0)))","v":"CAISO"},null,{"$f":"raw_resource_build!B66","v":"Customer_PV"},"Non-wind",{"$f":"IFERROR(INDEX($E$5:$E$32,MATCH(raw_resource_build!$E66,Lists!$B$5:$B$32,0)),\"Non-CAISO\")","v":"Renewables"},null,{"$f":"raw_annual_energy!C66","v":"BANC_Wind_for_Other"},{"$f":"INDEX(K:K,MATCH(R66,Lists!J:J,0))","v":"Wind"},"Non-wind",null,null,null,null,{"$f":"raw_fuel_burn!A66","v":"CAISO_Coal"},{"$f":"INDEX(K:K,MATCH(Y66,Lists!J:J,0))","v":"CAISO_Coal"}]
[null,"SCADSNV_Wind","In-State",null,null,null,null,null,null,{"$f":"IFERROR(INDEX(raw_resource_build!$B$2:$B$1000,MATCH(0,COUNTIF($J$1:J66,raw_resource_build!$B$2:$B$1000), 0),0), \"\")","v":"BANC_Solar_for_Other"},{"$f":"IF(J67=\"\", \"\", INDEX(raw_resource_build!E:E, MATCH(J67, raw_resource_build!B:B, 0)))","v":"Solar"},{"$f":"IF(J67=\"\", \"\", INDEX(raw_resource_build!C:C, MATCH(J67, raw_resource_build!B:B, 0)))","v":"BANC"},null,{"$f":"raw_resource_build!B67","v":"BANC_Solar_for_Other"},{"$f":"IFERROR(INDEX($C$35:$C$99,MATCH($N67,$B$35:$B$99,0)),\"Non-wind\")","v":"Non-wind"},{"$f":"IFERROR(INDEX($E$5:$E$32,MATCH(raw_resource_build!$E67,Lists!$B$5:$B$32,0)),\"Non-CAISO\")","v":"Renewables"},null,{"$f":"raw_annual_energy!C67","v":"BANC_Small_Hydro_for_CAISO"},{"$f":"INDEX(K:K,MATCH(R67,Lists!J:J,0))","v":"Small_Hydro"},{"$f":"IFERROR(INDEX($C$35:$C$99,MATCH($R67,$B$35:$B$99,0)),\"Non-wind\")","v":"Non-wind"},null,null,null,null,{"$f":"raw_fuel_burn!A67","v":"CAISO_Nuclear"},{"$f":"INDEX(K:K,MATCH(Y67,Lists!J:J,0))","v":"CAISO_Nuclear"}]
[null,"Solano_Solar","In-State",null,null,null,null,null,null,{"$f":"IFERROR(INDEX(raw_resource_build!$B$2:$B$1000,MATCH(0,COUNTIF($J$1:J67,raw_resource_build!$B$2:$B$1000), 0),0), \"\")","v":"CAISO_Solar_for_Other"},{"$f":"IF(J68=\"\", \"\", INDEX(raw_resource_build!E:E, MATCH(J68, raw_resource_build!B:B, 0)))","v":"Solar"},{"$f":"IF(J68=\"\", \"\", INDEX(raw_resource_build!C:C, MATCH(J68, raw_resource_build!B:B, 0)))","v":"CAISO"},null,{"$f":"raw_resource_build!B68","v":"CAISO_Solar_for_Other"},"Non-wind",{"$f":"IFERROR(INDEX($E$5:$E$32,MATCH(raw_resource_build!$E68,Lists!$B$5:$B$32,0)),\"Non-CAISO\")","v":"Renewables"},null,{"$f":"raw_annual_energy!C68","v":"BANC_Small_Hydro_for_CAISO"},{"$f":"INDEX(K:K,MATCH(R68,Lists!J:J,0))","v":"Small_Hydro"},"Non-wind",null,null,null,null,{"$f":"raw_fuel_burn!A68","v":"CAISO_Nuclear"},{"$f":"INDEX(K:K,MATCH(Y68,Lists!J:J,0))","v":"CAISO_Nuclear"}]
[null,"Solano_subzone_Solar","In-State",null,null,null,null,null,null,{"$f":"IFERROR(INDEX(raw_resource_build!$B$2:$B$1000,MATCH(0,COUNTIF($J$1:J68,raw_resource_build!$B$2:$B$1000), 0),0), \"\")","v":"IID_Solar_for_Other"},{"$f":"IF(J69=\"\", \"\", INDEX(raw_resource_build!E:E, MATCH(J69, raw_resource_build!B:B, 0)))","v":"Solar"},{"$f":"IF(J69=\"\", \"\", INDEX(raw_resource_build!C:C, MATCH(J69, raw_resource_build!B:B, 0)))","v":"IID"},null,{"$f":"raw_resource_build!B69","v":"IID_Solar_for_Other"},"Non-wind",{"$f":"IFERROR(INDEX($E$5:$E$32,MATCH(raw_resource_build!$E69,Lists!$B$5:$B$32,0)),\"Non-CAISO\")","v":"Renewables"},null,{"$f":"raw_annual_energy!C69","v":"BANC_Small_Hydro_for_CAISO"},{"$f":"INDEX(K:K,MATCH(R69,Lists!J:J,0))","v":"Small_Hydro"},"Non-wind",null,null,null,null,{"$f":"raw_fuel_burn!A69","v":"CAISO_Nuclear"},{"$f":"INDEX(K:K,MATCH(Y69,Lists!J:J,0))","v":"CAISO_Nuclear"}]
[null,"Solano_subzone_Wind","In-State",null,null,null,null,null,null,{"$f":"IFERROR(INDEX(raw_resource_build!$B$2:$B$1000,MATCH(0,COUNTIF($J$1:J69,raw_resource_build!$B$2:$B$1000), 0),0), \"\")","v":"LDWP_Solar_for_Other"},{"$f":"IF(J70=\"\", \"\", INDEX(raw_resource_build!E:E, MATCH(J70, raw_resource_build!B:B, 0)))","v":"Solar"},{"$f":"IF(J70=\"\", \"\", INDEX(raw_resource_build!C:C, MATCH(J70, raw_resource_build!B:B, 0)))","v":"LDWP"},null,{"$f":"raw_resource_build!B70","v":"LDWP_Solar_for_Other"},"Non-wind",{"$f":"IFERROR(INDEX($E$5:$E$32,MATCH(raw_resource_build!$E70,Lists!$B$5:$B$32,0)),\"Non-CAISO\")","v":"Renewables"},null,{"$f":"raw_annual_energy!C70","v":"BANC_Small_Hydro_for_CAISO"},{"$f":"INDEX(K:K,MATCH(R70,Lists!J:J,0))","v":"Small_Hydro"},"Non-wind",null,null,null,null,{"$f":"raw_fuel_burn!A70","v":"CAISO_Nuclear"},{"$f":"INDEX(K:K,MATCH(Y70,Lists!J:J,0))","v":"CAISO_Nuclear"}]
[null,"Solano_Wind","In-State",null,null,null,null,null,null,{"$f":"IFERROR(INDEX(raw_resource_build!$B$2:$B$1000,MATCH(0,COUNTIF($J$1:J70,raw_resource_build!$B$2:$B$1000), 0),0), \"\")","v":"NW_Solar_for_Other"},{"$f":"IF(J71=\"\", \"\", INDEX(raw_resource_build!E:E, MATCH(J71, raw_resource_build!B:B, 0)))","v":"Solar"},{"$f":"IF(J71=\"\", \"\", INDEX(raw_resource_build!C:C, MATCH(J71, raw_resource_build!B:B, 0)))","v":"NW"},null,{"$f":"raw_resource_build!B71","v":"NW_Solar_for_Other"},"Non-wind",{"$f":"IFERROR(INDEX($E$5:$E$32,MATCH(raw_resource_build!$E71,Lists!$B$5:$B$32,0)),\"Non-CAISO\")","v":"Renewables"},null,{"$f":"raw_annual_energy!C71","v":"BANC_Small_Hydro_for_CAISO"},{"$f":"INDEX(K:K,MATCH(R71,Lists!J:J,0))","v":"Small_Hydro"},"Non-wind",null,null,null,null,{"$f":"raw_fuel_burn!A71","v":"CAISO_Nuclear"},{"$f":"INDEX(K:K,MATCH(Y71,Lists!J:J,0))","v":"CAISO_Nuclear"}]
[null,"Southern_California_Desert_Ex_Solar","In-State",null,null,null,null,null,null,{"$f":"IFERROR(INDEX(raw_resource_build!$B$2:$B$1000,MATCH(0,COUNTIF($J$1:J71,raw_resource_build!$B$2:$B$1000), 0),0), \"\")","v":"SW_Solar_for_Other"},{"$f":"IF(J72=\"\", \"\", INDEX(raw_resource_build!E:E, MATCH(J72, raw_resource_build!B:B, 0)))","v":"Solar"},{"$f":"IF(J72=\"\", \"\", INDEX(raw_resource_build!C:C, MATCH(J72, raw_resource_build!B:B, 0)))","v":"SW"},null,{"$f":"raw_resource_build!B72","v":"SW_Solar_for_Other"},"Non-wind",{"$f":"IFERROR(INDEX($E$5:$E$32,MATCH(raw_resource_build!$E72,Lists!$B$5:$B$32,0)),\"Non-CAISO\")","v":"Renewables"},null,{"$f":"raw_annual_energy!C72","v":"BANC_Small_Hydro_for_CAISO"},{"$f":"INDEX(K:K,MATCH(R72,Lists!J:J,0))","v":"Small_Hydro"},"Non-wind",null,null,null,null,{"$f":"raw_fuel_burn!A72","v":"CAISO_Nuclear"},{"$f":"INDEX(K:K,MATCH(Y72,Lists!J:J,0))","v":"CAISO_Nuclear"}]
[null,"Southern_California_Desert_Ex_Wind","In-State",null,null,null,null,null,null,{"$f":"IFERROR(INDEX(raw_resource_build!$B$2:$B$1000,MATCH(0,COUNTIF($J$1:J72,raw_resource_build!$B$2:$B$1000), 0),0), \"\")","v":"CAISO_Solar_for_CAISO"},{"$f":"IF(J73=\"\", \"\", INDEX(raw_resource_build!E:E, MATCH(J73, raw_resource_build!B:B, 0)))","v":"Solar"},{"$f":"IF(J73=\"\", \"\", INDEX(raw_resource_build!C:C, MATCH(J73, raw_resource_build!B:B, 0)))","v":"CAISO"},null,{"$f":"raw_resource_build!B73","v":"CAISO_Solar_for_CAISO"},"Non-wind",{"$f":"IFERROR(INDEX($E$5:$E$32,MATCH(raw_resource_build!$E73,Lists!$B$5:$B$32,0)),\"Non-CAISO\")","v":"Renewables"},null,{"$f":"raw_annual_energy!C73","v":"BANC_Small_Hydro_for_CAISO"},{"$f":"INDEX(K:K,MATCH(R73,Lists!J:J,0))","v":"Small_Hydro"},"Non-wind",null,null,null,null,{"$f":"raw_fuel_burn!A73","v":"CAISO_Nuclear"},{"$f":"INDEX(K:K,MATCH(Y73,Lists!J:J,0))","v":"CAISO_Nuclear"}]
[null,"Southern_Nevada_Solar","In-State",null,null,null,null,null,null,{"$f":"IFERROR(INDEX(raw_resource_build!$B$2:$B$1000,MATCH(0,COUNTIF($J$1:J73,raw_resource_build!$B$2:$B$1000), 0),0), \"\")","v":"IID_Solar_for_CAISO"},{"$f":"IF(J74=\"\", \"\", INDEX(raw_resource_build!E:E, MATCH(J74, raw_resource_build!B:B, 0)))","v":"Solar"},{"$f":"IF(J74=\"\", \"\", INDEX(raw_resource_build!C:C, MATCH(J74, raw_resource_build!B:B, 0)))","v":"IID"},null,{"$f":"raw_resource_build!B74","v":"IID_Solar_for_CAISO"},"Non-wind",{"$f":"IFERROR(INDEX($E$5:$E$32,MATCH(raw_resource_build!$E74,Lists!$B$5:$B$32,0)),\"Non-CAISO\")","v":"Renewables"},null,{"$f":"raw_annual_energy!C74","v":"BANC_Small_Hydro_for_CAISO"},{"$f":"INDEX(K:K,MATCH(R74,Lists!J:J,0))","v":"Small_Hydro"},"Non-wind",null,null,null,null,{"$f":"raw_fuel_burn!A74","v":"CAISO_Nuclear"},{"$f":"INDEX(K:K,MATCH(Y74,Lists!J:J,0))","v":"CAISO_Nuclear"}]
[null,"Southern_Nevada_Wind","In-State",null,null,null,null,null,null,{"$f":"IFERROR(INDEX(raw_resource_build!$B$2:$B$1000,MATCH(0,COUNTIF($J$1:J74,raw_resource_build!$B$2:$B$1000), 0),0), \"\")","v":"SW_Solar_for_CAISO"},{"$f":"IF(J75=\"\", \"\", INDEX(raw_resource_build!E:E, MATCH(J75, raw_resource_build!B:B, 0)))","v":"Solar"},{"$f":"IF(J75=\"\", \"\", INDEX(raw_resource_build!C:C, MATCH(J75, raw_resource_build!B:B, 0)))","v":"SW"},null,{"$f":"raw_resource_build!B75","v":"SW_Solar_for_CAISO"},"Non-wind",{"$f":"IFERROR(INDEX($E$5:$E$32,MATCH(raw_resource_build!$E75,Lists!$B$5:$B$32,0)),\"Non-CAISO\")","v":"Renewables"},null,{"$f":"raw_annual_energy!C75","v":"Arizona_Solar"},{"$f":"INDEX(K:K,MATCH(R75,Lists!J:J,0))","v":"Solar"},"In-State",null,null,null,null,{"$f":"raw_fuel_burn!A75","v":"CAISO_Peaker1"},{"$f":"INDEX(K:K,MATCH(Y75,Lists!J:J,0))","v":"CAISO_Peaker1"}]
[null,"SW_Ext_Tx_Wind","In-State",null,null,null,null,null,null,{"$f":"IFERROR(INDEX(raw_resource_build!$B$2:$B$1000,MATCH(0,COUNTIF($J$1:J75,raw_resource_build!$B$2:$B$1000), 0),0), \"\")","v":"BANC_Wind_for_Other"},{"$f":"IF(J76=\"\", \"\", INDEX(raw_resource_build!E:E, MATCH(J76, raw_resource_build!B:B, 0)))","v":"Wind"},{"$f":"IF(J76=\"\", \"\", INDEX(raw_resource_build!C:C, MATCH(J76, raw_resource_build!B:B, 0)))","v":"BANC"},null,{"$f":"raw_resource_build!B76","v":"BANC_Wind_for_Other"},"Non-wind",{"$f":"IFERROR(INDEX($E$5:$E$32,MATCH(raw_resource_build!$E76,Lists!$B$5:$B$32,0)),\"Non-CAISO\")","v":"Renewables"},null,{"$f":"raw_annual_energy!C76","v":"Arizona_Solar"},{"$f":"INDEX(K:K,MATCH(R76,Lists!J:J,0))","v":"Solar"},"In-State",null,null,null,null,{"$f":"raw_fuel_burn!A76","v":"CAISO_Peaker1"},{"$f":"INDEX(K:K,MATCH(Y76,Lists!J:J,0))","v":"CAISO_Peaker1"}]
[null,"Tehachapi_Solar","In-State",null,null,null,null,null,null,{"$f":"IFERROR(INDEX(raw_resource_build!$B$2:$B$1000,MATCH(0,COUNTIF($J$1:J76,raw_resource_build!$B$2:$B$1000), 0),0), \"\")","v":"CAISO_Wind_for_Other"},{"$f":"IF(J77=\"\", \"\", INDEX(raw_resource_build!E:E, MATCH(J77, raw_resource_build!B:B, 0)))","v":"Wind"},{"$f":"IF(J77=\"\", \"\", INDEX(raw_resource_build!C:C, MATCH(J77, raw_resource_build!B:B, 0)))","v":"CAISO"},null,{"$f":"raw_resource_build!B77","v":"CAISO_Wind_for_Other"},"Non-wind",{"$f":"IFERROR(INDEX($E$5:$E$32,MATCH(raw_resource_build!$E77,Lists!$B$5:$B$32,0)),\"Non-CAISO\")","v":"Renewables"},null,{"$f":"raw_annual_energy!C77","v":"Arizona_Solar"},{"$f":"INDEX(K:K,MATCH(R77,Lists!J:J,0))","v":"Solar"},"In-State",null,null,null,null,{"$f":"raw_fuel_burn!A77","v":"CAISO_Peaker1"},{"$f":"INDEX(K:K,MATCH(Y77,Lists!J:J,0))","v":"CAISO_Peaker1"}]
[null,"Tehachapi_Ex_Solar","In-State",null,null,null,null,null,null,{"$f":"IFERROR(INDEX(raw_resource_build!$B$2:$B$1000,MATCH(0,COUNTIF($J$1:J77,raw_resource_build!$B$2:$B$1000), 0),0), \"\")","v":"IID_Wind_for_Other"},{"$f":"IF(J78=\"\", \"\", INDEX(raw_resource_build!E:E, MATCH(J78, raw_resource_build!B:B, 0)))","v":"Wind"},{"$f":"IF(J78=\"\", \"\", INDEX(raw_resource_build!C:C, MATCH(J78, raw_resource_build!B:B, 0)))","v":"IID"},null,{"$f":"raw_resource_build!B78","v":"IID_Wind_for_Other"},"Non-wind",{"$f":"IFERROR(INDEX($E$5:$E$32,MATCH(raw_resource_build!$E78,Lists!$B$5:$B$32,0)),\"Non-CAISO\")","v":"Renewables"},null,{"$f":"raw_annual_energy!C78","v":"Arizona_Solar"},{"$f":"INDEX(K:K,MATCH(R78,Lists!J:J,0))","v":"Solar"},"In-State",null,null,null,null,{"$f":"raw_fuel_burn!A78","v":"CAISO_Peaker1"},{"$f":"INDEX(K:K,MATCH(Y78,Lists!J:J,0))","v":"CAISO_Peaker1"}]
[null,"Tehachapi_Wind","In-State",null,null,null,null,null,null,{"$f":"IFERROR(INDEX(raw_resource_build!$B$2:$B$1000,MATCH(0,COUNTIF($J$1:J78,raw_resource_build!$B$2:$B$1000), 0),0), \"\")","v":"LDWP_Wind_for_Other"},{"$f":"IF(J79=\"\", \"\", INDEX(raw_resource_build!E:E, MATCH(J79, raw_resource_build!B:B, 0)))","v":"Wind"},{"$f":"IF(J79=\"\", \"\", INDEX(raw_resource_build!C:C, MATCH(J79, raw_resource_build!B:B, 0)))","v":"LDWP"},null,{"$f":"raw_resource_build!B79","v":"LDWP_Wind_for_Other"},"Non-wind",{"$f":"IFERROR(INDEX($E$5:$E$32,MATCH(raw_resource_build!$E79,Lists!$B$5:$B$32,0)),\"Non-CAISO\")","v":"Renewables"},null,{"$f":"raw_annual_energy!C79","v":"Arizona_Solar"},{"$f":"INDEX(K:K,MATCH(R79,Lists!J:J,0))","v":"Solar"},"In-State",null,null,null,null,{"$f":"raw_fuel_burn!A79","v":"CAISO_Peaker1"},{"$f":"INDEX(K:K,MATCH(Y79,Lists!J:J,0))","v":"CAISO_Peaker1"}]
[null,"Westlands_Ex_Solar","In-State",null,null,null,null,null,null,{"$f":"IFERROR(INDEX(raw_resource_build!$B$2:$B$1000,MATCH(0,COUNTIF($J$1:J79,raw_resource_build!$B$2:$B$1000), 0),0), \"\")","v":"NW_Wind_for_Other"},{"$f":"IF(J80=\"\", \"\", INDEX(raw_resource_build!E:E, MATCH(J80, raw_resource_build!B:B, 0)))","v":"Wind"},{"$f":"IF(J80=\"\", \"\", INDEX(raw_resource_build!C:C, MATCH(J80, raw_resource_build!B:B, 0)))","v":"NW"},null,{"$f":"raw_resource_build!B80","v":"NW_Wind_for_Other"},"Non-wind",{"$f":"IFERROR(INDEX($E$5:$E$32,MATCH(raw_resource_build!$E80,Lists!$B$5:$B$32,0)),\"Non-CAISO\")","v":"Renewables"},null,{"$f":"raw_annual_energy!C80","v":"Arizona_Solar"},{"$f":"INDEX(K:K,MATCH(R80,Lists!J:J,0))","v":"Solar"},"In-State",null,null,null,null,{"$f":"raw_fuel_burn!A80","v":"CAISO_Peaker1"},{"$f":"INDEX(K:K,MATCH(Y80,Lists!J:J,0))","v":"CAISO_Peaker1"}]
[null,"Westlands_Ex_Wind","In-State",null,null,null,null,null,null,{"$f":"IFERROR(INDEX(raw_resource_build!$B$2:$B$1000,MATCH(0,COUNTIF($J$1:J80,raw_resource_build!$B$2:$B$1000), 0),0), \"\")","v":"SW_Wind_for_Other"},{"$f":"IF(J81=\"\", \"\", INDEX(raw_resource_build!E:E, MATCH(J81, raw_resource_build!B:B, 0)))","v":"Wind"},{"$f":"IF(J81=\"\", \"\", INDEX(raw_resource_build!C:C, MATCH(J81, raw_resource_build!B:B, 0)))","v":"SW"},null,{"$f":"raw_resource_build!B81","v":"SW_Wind_for_Other"},"Non-wind",{"$f":"IFERROR(INDEX($E$5:$E$32,MATCH(raw_resource_build!$E81,Lists!$B$5:$B$32,0)),\"Non-CAISO\")","v":"Renewables"},null,{"$f":"raw_annual_energy!C81","v":"Arizona_Solar"},{"$f":"INDEX(K:K,MATCH(R81,Lists!J:J,0))","v":"Solar"},"In-State",null,null,null,null,{"$f":"raw_fuel_burn!A81","v":"CAISO_Peaker1"},{"$f":"INDEX(K:K,MATCH(Y81,Lists!J:J,0))","v":"CAISO_Peaker1"}]
[null,"Westlands_Solar","In-State",null,null,null,null,null,null,{"$f":"IFERROR(INDEX(raw_resource_build!$B$2:$B$1000,MATCH(0,COUNTIF($J$1:J81,raw_resource_build!$B$2:$B$1000), 0),0), \"\")","v":"CAISO_Wind_for_CAISO"},{"$f":"IF(J82=\"\", \"\", INDEX(raw_resource_build!E:E, MATCH(J82, raw_resource_build!B:B, 0)))","v":"Wind"},{"$f":"IF(J82=\"\", \"\", INDEX(raw_resource_build!C:C, MATCH(J82, raw_resource_build!B:B, 0)))","v":"CAISO"},null,{"$f":"raw_resource_build!B82","v":"CAISO_Wind_for_CAISO"},"Non-wind",{"$f":"IFERROR(INDEX($E$5:$E$32,MATCH(raw_resource_build!$E82,Lists!$B$5:$B$32,0)),\"Non-CAISO\")","v":"Renewables"},null,{"$f":"raw_annual_energy!C82","v":"Arizona_Solar"},{"$f":"INDEX(K:K,MATCH(R82,Lists!J:J,0))","v":"Solar"},"In-State",null,null,null,null,{"$f":"raw_fuel_burn!A82","v":"CAISO_Peaker1"},{"$f":"INDEX(K:K,MATCH(Y82,Lists!J:J,0))","v":"CAISO_Peaker1"}]
[null,"Cape_Mendocino_Offshore_Wind","In-State",null,null,null,null,null,null,{"$f":"IFERROR(INDEX(raw_resource_build!$B$2:$B$1000,MATCH(0,COUNTIF($J$1:J82,raw_resource_build!$B$2:$B$1000), 0),0), \"\")","v":"LDWP_Wind_for_CAISO"},{"$f":"IF(J83=\"\", \"\", INDEX(raw_resource_build!E:E, MATCH(J83, raw_resource_build!B:B, 0)))","v":"Wind"},{"$f":"IF(J83=\"\", \"\", INDEX(raw_resource_build!C:C, MATCH(J83, raw_resource_build!B:B, 0)))","v":"LDWP"},null,{"$f":"raw_resource_build!B83","v":"LDWP_Wind_for_CAISO"},"Non-wind",{"$f":"IFERROR(INDEX($E$5:$E$32,MATCH(raw_resource_build!$E83,Lists!$B$5:$B$32,0)),\"Non-CAISO\")","v":"Renewables"},null,{"$f":"raw_annual_energy!C83","v":"Arizona_Wind"},{"$f":"INDEX(K:K,MATCH(R83,Lists!J:J,0))","v":"Wind"},"Out-Of-State",null,null,null,null,{"$f":"raw_fuel_burn!A83","v":"CAISO_Peaker2"},{"$f":"INDEX(K:K,MATCH(Y83,Lists!J:J,0))","v":"CAISO_Peaker2"}]
[null,"Del_Norte_Offshore_Wind","In-State",null,null,null,null,null,null,{"$f":"IFERROR(INDEX(raw_resource_build!$B$2:$B$1000,MATCH(0,COUNTIF($J$1:J83,raw_resource_build!$B$2:$B$1000), 0),0), \"\")","v":"NW_Wind_for_CAISO"},{"$f":"IF(J84=\"\", \"\", INDEX(raw_resource_build!E:E, MATCH(J84, raw_resource_build!B:B, 0)))","v":"Wind"},{"$f":"IF(J84=\"\", \"\", INDEX(raw_resource_build!C:C, MATCH(J84, raw_resource_build!B:B, 0)))","v":"NW"},null,{"$f":"raw_resource_build!B84","v":"NW_Wind_for_CAISO"},"Non-wind",{"$f":"IFERROR(INDEX($E$5:$E$32,MATCH(raw_resource_build!$E84,Lists!$B$5:$B$32,0)),\"Non-CAISO\")","v":"Renewables"},null,{"$f":"raw_annual_energy!C84","v":"Arizona_Wind"},{"$f":"INDEX(K:K,MATCH(R84,Lists!J:J,0))","v":"Wind"},"Out-Of-State",null,null,null,null,{"$f":"raw_fuel_burn!A84","v":"CAISO_Peaker2"},{"$f":"INDEX(K:K,MATCH(Y84,Lists!J:J,0))","v":"CAISO_Peaker2"}]
[null,"Diablo_Canyon_Offshore_Wind_Ext_Tx","In-State",null,null,null,null,null,null,{"$f":"IFERROR(INDEX(raw_resource_build!$B$2:$B$1000,MATCH(0,COUNTIF($J$1:J84,raw_resource_build!$B$2:$B$1000), 0),0), \"\")","v":"SW_Wind_for_CAISO"},{"$f":"IF(J85=\"\", \"\", INDEX(raw_resource_build!E:E, MATCH(J85, raw_resource_build!B:B, 0)))","v":"Wind"},{"$f":"IF(J85=\"\", \"\", INDEX(raw_resource_build!C:C, MATCH(J85, raw_resource_build!B:B, 0)))","v":"SW"},null,{"$f":"raw_resource_build!B85","v":"SW_Wind_for_CAISO"},"Non-wind",{"$f":"IFERROR(INDEX($E$5:$E$32,MATCH(raw_resource_build!$E85,Lists!$B$5:$B$32,0)),\"Non-CAISO\")","v":"Renewables"},null,{"$f":"raw_annual_energy!C85","v":"Arizona_Wind"},{"$f":"INDEX(K:K,MATCH(R85,Lists!J:J,0))","v":"Wind"},"Out-Of-State",null,null,null,null,{"$f":"raw_fuel_burn!A85","v":"CAISO_Peaker2"},{"$f":"INDEX(K:K,MATCH(Y85,Lists!J:J,0))","v":"CAISO_Peaker2"}]
[null,"Diablo_Canyon_Offshore_Wind","In-State",null,null,null,null,null,null,{"$f":"IFERROR(INDEX(raw_resource_build!$B$2:$B$1000,MATCH(0,COUNTIF($J$1:J85,raw_resource_build!$B$2:$B$1000), 0),0), \"\")","v":"Carrizo_Solar"},{"$f":"IF(J86=\"\", \"\", INDEX(raw_resource_build!E:E, MATCH(J86, raw_resource_build!B:B, 0)))","v":"Solar"},{"$f":"IF(J86=\"\", \"\", INDEX(raw_resource_build!C:C, MATCH(J86, raw_resource_build!B:B, 0)))","v":"CAISO"},null,{"$f":"raw_resource_build!B86","v":"Carrizo_Solar"},"In-State",{"$f":"IFERROR(INDEX($E$5:$E$32,MATCH(raw_resource_build!$E86,Lists!$B$5:$B$32,0)),\"Non-CAISO\")","v":"Renewables"},null,{"$f":"raw_annual_energy!C86","v":"Arizona_Wind"},{"$f":"INDEX(K:K,MATCH(R86,Lists!J:J,0))","v":"Wind"},"Out-Of-State",null,null,null,null,{"$f":"raw_fuel_burn!A86","v":"CAISO_Peaker2"},{"$f":"INDEX(K:K,MATCH(Y86,Lists!J:J,0))","v":"CAISO_Peaker2"}]
[null,"Humboldt_Bay_Offshore_Wind","In-State",null,null,null,null,null,null,{"$f":"IFERROR(INDEX(raw_resource_build!$B$2:$B$1000,MATCH(0,COUNTIF($J$1:J86,raw_resource_build!$B$2:$B$1000), 0),0), \"\")","v":"Carrizo_Wind"},{"$f":"IF(J87=\"\", \"\", INDEX(raw_resource_build!E:E, MATCH(J87, raw_resource_build!B:B, 0)))","v":"Wind"},{"$f":"IF(J87=\"\", \"\", INDEX(raw_resource_build!C:C, MATCH(J87, raw_resource_build!B:B, 0)))","v":"CAISO"},null,{"$f":"raw_resource_build!B87","v":"Carrizo_Wind"},"In-State",{"$f":"IFERROR(INDEX($E$5:$E$32,MATCH(raw_resource_build!$E87,Lists!$B$5:$B$32,0)),\"Non-CAISO\")","v":"Renewables"},null,{"$f":"raw_annual_energy!C87","v":"Arizona_Wind"},{"$f":"INDEX(K:K,MATCH(R87,Lists!J:J,0))","v":"Wind"},"Out-Of-State",null,null,null,null,{"$f":"raw_fuel_burn!A87","v":"CAISO_Peaker2"},{"$f":"INDEX(K:K,MATCH(Y87,Lists!J:J,0))","v":"CAISO_Peaker2"}]
[null,"Morro_Bay_Offshore_Wind","In-State",null,null,null,null,null,null,{"$f":"IFERROR(INDEX(raw_resource_build!$B$2:$B$1000,MATCH(0,COUNTIF($J$1:J87,raw_resource_build!$B$2:$B$1000), 0),0), \"\")","v":"Central_Valley_North_Los_Banos_Solar"},{"$f":"IF(J88=\"\", \"\", INDEX(raw_resource_build!E:E, MATCH(J88, raw_resource_build!B:B, 0)))","v":"Solar"},{"$f":"IF(J88=\"\", \"\", INDEX(raw_resource_build!C:C, MATCH(J88, raw_resource_build!B:B, 0)))","v":"CAISO"},null,{"$f":"raw_resource_build!B88","v":"Central_Valley_North_Los_Banos_Solar"},"In-State",{"$f":"IFERROR(INDEX($E$5:$E$32,MATCH(raw_resource_build!$E88,Lists!$B$5:$B$32,0)),\"Non-CAISO\")","v":"Renewables"},null,{"$f":"raw_annual_energy!C88","v":"Arizona_Wind"},{"$f":"INDEX(K:K,MATCH(R88,Lists!J:J,0))","v":"Wind"},"Out-Of-State",null,null,null,null,{"$f":"raw_fuel_burn!A88","v":"CAISO_Peaker2"},{"$f":"INDEX(K:K,MATCH(Y88,Lists!J:J,0))","v":"CAISO_Peaker2"}]
[null,"Utah_Solar","Out-Of-State",null,null,null,null,null,null,{"$f":"IFERROR(INDEX(raw_resource_build!$B$2:$B$1000,MATCH(0,COUNTIF($J$1:J88,raw_resource_build!$B$2:$B$1000), 0),0), \"\")","v":"Central_Valley_North_Los_Banos_Wind"},{"$f":"IF(J89=\"\", \"\", INDEX(raw_resource_build!E:E, MATCH(J89, raw_resource_build!B:B, 0)))","v":"Wind"},{"$f":"IF(J89=\"\", \"\", INDEX(raw_resource_build!C:C, MATCH(J89, raw_resource_build!B:B, 0)))","v":"CAISO"},null,{"$f":"raw_resource_build!B89","v":"Central_Valley_North_Los_Banos_Wind"},"In-State",{"$f":"IFERROR(INDEX($E$5:$E$32,MATCH(raw_resource_build!$E89,Lists!$B$5:$B$32,0)),\"Non-CAISO\")","v":"Renewables"},null,{"$f":"raw_annual_energy!C89","v":"Arizona_Wind"},{"$f":"INDEX(K:K,MATCH(R89,Lists!J:J,0))","v":"Wind"},"Out-Of-State",null,null,null,null,{"$f":"raw_fuel_burn!A89","v":"CAISO_Peaker2"},{"$f":"INDEX(K:K,MATCH(Y89,Lists!J:J,0))","v":"CAISO_Peaker2"}]
[null,"Arizona_Solar","In-State",null,null,null,null,null,null,{"$f":"IFERROR(INDEX(raw_resource_build!$B$2:$B$1000,MATCH(0,COUNTIF($J$1:J89,raw_resource_build!$B$2:$B$1000), 0),0), \"\")","v":"Distributed_Solar"},{"$f":"IF(J90=\"\", \"\", INDEX(raw_resource_build!E:E, MATCH(J90, raw_resource_build!B:B, 0)))","v":"Solar"},{"$f":"IF(J90=\"\", \"\", INDEX(raw_resource_build!C:C, MATCH(J90, raw_resource_build!B:B, 0)))","v":"CAISO"},null,{"$f":"raw_resource_build!B90","v":"Distributed_Solar"},"In-State",{"$f":"IFERROR(INDEX($E$5:$E$32,MATCH(raw_resource_build!$E90,Lists!$B$5:$B$32,0)),\"Non-CAISO\")","v":"Renewables"},null,{"$f":"raw_annual_energy!C90","v":"Arizona_Wind"},{"$f":"INDEX(K:K,MATCH(R90,Lists!J:J,0))","v":"Wind"},"Out-Of-State",null,null,null,null,{"$f":"raw_fuel_burn!A90","v":"CAISO_Peaker2"},{"$f":"INDEX(K:K,MATCH(Y90,Lists!J:J,0))","v":"CAISO_Peaker2"}]
[null,"New_Mexico_Solar","Out-Of-State",null,null,null,null,null,null,{"$f":"IFERROR(INDEX(raw_resource_build!$B$2:$B$1000,MATCH(0,COUNTIF($J$1:J90,raw_resource_build!$B$2:$B$1000), 0),0), \"\")","v":"Mountain_Pass_El_Dorado_Solar"},{"$f":"IF(J91=\"\", \"\", INDEX(raw_resource_build!E:E, MATCH(J91, raw_resource_build!B:B, 0)))","v":"Solar"},{"$f":"IF(J91=\"\", \"\", INDEX(raw_resource_build!C:C, MATCH(J91, raw_resource_build!B:B, 0)))","v":"CAISO"},null,{"$f":"raw_resource_build!B91","v":"Mountain_Pass_El_Dorado_Solar"},"In-State",{"$f":"IFERROR(INDEX($E$5:$E$32,MATCH(raw_resource_build!$E91,Lists!$B$5:$B$32,0)),\"Non-CAISO\")","v":"Renewables"},null,{"$f":"raw_annual_energy!C91","v":"Baja_California_Solar"},{"$f":"INDEX(K:K,MATCH(R91,Lists!J:J,0))","v":"Solar"},"In-State",null,null,null,null,{"$f":"raw_fuel_burn!A91","v":"CAISO_Reciprocating_Engine"},{"$f":"INDEX(K:K,MATCH(Y91,Lists!J:J,0))","v":"CAISO_Reciprocating_Engine"}]
[null,"Baja_California_Solar","In-State",null,null,null,null,null,null,{"$f":"IFERROR(INDEX(raw_resource_build!$B$2:$B$1000,MATCH(0,COUNTIF($J$1:J91,raw_resource_build!$B$2:$B$1000), 0),0), \"\")","v":"Greater_Imperial_Solar"},{"$f":"IF(J92=\"\", \"\", INDEX(raw_resource_build!E:E, MATCH(J92, raw_resource_build!B:B, 0)))","v":"Solar"},{"$f":"IF(J92=\"\", \"\", INDEX(raw_resource_build!C:C, MATCH(J92, raw_resource_build!B:B, 0)))","v":"CAISO"},null,{"$f":"raw_resource_build!B92","v":"Greater_Imperial_Solar"},"In-State",{"$f":"IFERROR(INDEX($E$5:$E$32,MATCH(raw_resource_build!$E92,Lists!$B$5:$B$32,0)),\"Non-CAISO\")","v":"Renewables"},null,{"$f":"raw_annual_energy!C92","v":"Baja_California_Solar"},{"$f":"INDEX(K:K,MATCH(R92,Lists!J:J,0))","v":"Solar"},"In-State",null,null,null,null,{"$f":"raw_fuel_burn!A92","v":"CAISO_Reciprocating_Engine"},{"$f":"INDEX(K:K,MATCH(Y92,Lists!J:J,0))","v":"CAISO_Reciprocating_Engine"}]
[null,"Baja_California_Wind","In-State",null,null,null,null,null,null,{"$f":"IFERROR(INDEX(raw_resource_build!$B$2:$B$1000,MATCH(0,COUNTIF($J$1:J92,raw_resource_build!$B$2:$B$1000), 0),0), \"\")","v":"Greater_Imperial_Wind"},{"$f":"IF(J93=\"\", \"\", INDEX(raw_resource_build!E:E, MATCH(J93, raw_resource_build!B:B, 0)))","v":"Wind"},{"$f":"IF(J93=\"\", \"\", INDEX(raw_resource_build!C:C, MATCH(J93, raw_resource_build!B:B, 0)))","v":"CAISO"},null,{"$f":"raw_resource_build!B93","v":"Greater_Imperial_Wind"},"In-State",{"$f":"IFERROR(INDEX($E$5:$E$32,MATCH(raw_resource_build!$E93,Lists!$B$5:$B$32,0)),\"Non-CAISO\")","v":"Renewables"},null,{"$f":"raw_annual_energy!C93","v":"Baja_California_Solar"},{"$f":"INDEX(K:K,MATCH(R93,Lists!J:J,0))","v":"Solar"},"In-State",null,null,null,null,{"$f":"raw_fuel_burn!A93","v":"CAISO_Reciprocating_Engine"},{"$f":"INDEX(K:K,MATCH(Y93,Lists!J:J,0))","v":"CAISO_Reciprocating_Engine"}]
[null,"Pacific_Northwest_Wind","Out-Of-State",null,null,null,null,null,null,{"$f":"IFERROR(INDEX(raw_resource_build!$B$2:$B$1000,MATCH(0,COUNTIF($J$1:J93,raw_resource_build!$B$2:$B$1000), 0),0), \"\")","v":"Greater_Kramer_Wind"},{"$f":"IF(J94=\"\", \"\", INDEX(raw_resource_build!E:E, MATCH(J94, raw_resource_build!B:B, 0)))","v":"Wind"},{"$f":"IF(J94=\"\", \"\", INDEX(raw_resource_build!C:C, MATCH(J94, raw_resource_build!B:B, 0)))","v":"CAISO"},null,{"$f":"raw_resource_build!B94","v":"Greater_Kramer_Wind"},"In-State",{"$f":"IFERROR(INDEX($E$5:$E$32,MATCH(raw_resource_build!$E94,Lists!$B$5:$B$32,0)),\"Non-CAISO\")","v":"Renewables"},null,{"$f":"raw_annual_energy!C94","v":"Baja_California_Solar"},{"$f":"INDEX(K:K,MATCH(R94,Lists!J:J,0))","v":"Solar"},"In-State",null,null,null,null,{"$f":"raw_fuel_burn!A94","v":"CAISO_Reciprocating_Engine"},{"$f":"INDEX(K:K,MATCH(Y94,Lists!J:J,0))","v":"CAISO_Reciprocating_Engine"}]
[null,"Idaho_Wind","Out-Of-State",null,null,null,null,null,null,{"$f":"IFERROR(INDEX(raw_resource_build!$B$2:$B$1000,MATCH(0,COUNTIF($J$1:J94,raw_resource_build!$B$2:$B$1000), 0),0), \"\")","v":"Humboldt_Wind"},{"$f":"IF(J95=\"\", \"\", INDEX(raw_resource_build!E:E, MATCH(J95, raw_resource_build!B:B, 0)))","v":"Wind"},{"$f":"IF(J95=\"\", \"\", INDEX(raw_resource_build!C:C, MATCH(J95, raw_resource_build!B:B, 0)))","v":"CAISO"},null,{"$f":"raw_resource_build!B95","v":"Humboldt_Wind"},"In-State",{"$f":"IFERROR(INDEX($E$5:$E$32,MATCH(raw_resource_build!$E95,Lists!$B$5:$B$32,0)),\"Non-CAISO\")","v":"Renewables"},null,{"$f":"raw_annual_energy!C95","v":"Baja_California_Solar"},{"$f":"INDEX(K:K,MATCH(R95,Lists!J:J,0))","v":"Solar"},"In-State",null,null,null,null,{"$f":"raw_fuel_burn!A95","v":"CAISO_Reciprocating_Engine"},{"$f":"INDEX(K:K,MATCH(Y95,Lists!J:J,0))","v":"CAISO_Reciprocating_Engine"}]
[null,"Utah_Wind","Out-Of-State",null,null,null,null,null,null,{"$f":"IFERROR(INDEX(raw_resource_build!$B$2:$B$1000,MATCH(0,COUNTIF($J$1:J95,raw_resource_build!$B$2:$B$1000), 0),0), \"\")","v":"Inyokern_North_Kramer_Solar"},{"$f":"IF(J96=\"\", \"\", INDEX(raw_resource_build!E:E, MATCH(J96, raw_resource_build!B:B, 0)))","v":"Solar"},{"$f":"IF(J96=\"\", \"\", INDEX(raw_resource_build!C:C, MATCH(J96, raw_resource_build!B:B, 0)))","v":"CAISO"},null,{"$f":"raw_resource_build!B96","v":"Inyokern_North_Kramer_Solar"},"In-State",{"$f":"IFERROR(INDEX($E$5:$E$32,MATCH(raw_resource_build!$E96,Lists!$B$5:$B$32,0)),\"Non-CAISO\")","v":"Renewables"},null,{"$f":"raw_annual_energy!C96","v":"Baja_California_Solar"},{"$f":"INDEX(K:K,MATCH(R96,Lists!J:J,0))","v":"Solar"},"In-State",null,null,null,null,{"$f":"raw_fuel_burn!A96","v":"CAISO_Reciprocating_Engine"},{"$f":"INDEX(K:K,MATCH(Y96,Lists!J:J,0))","v":"CAISO_Reciprocating_Engine"}]
[null,"Wyoming_Wind","Out-Of-State",null,null,null,null,null,null,{"$f":"IFERROR(INDEX(raw_resource_build!$B$2:$B$1000,MATCH(0,COUNTIF($J$1:J96,raw_resource_build!$B$2:$B$1000), 0),0), \"\")","v":"Kern_Greater_Carrizo_Solar"},{"$f":"IF(J97=\"\", \"\", INDEX(raw_resource_build!E:E, MATCH(J97, raw_resource_build!B:B, 0)))","v":"Solar"},{"$f":"IF(J97=\"\", \"\", INDEX(raw_resource_build!C:C, MATCH(J97, raw_resource_build!B:B, 0)))","v":"CAISO"},null,{"$f":"raw_resource_build!B97","v":"Kern_Greater_Carrizo_Solar"},"In-State",{"$f":"IFERROR(INDEX($E$5:$E$32,MATCH(raw_resource_build!$E97,Lists!$B$5:$B$32,0)),\"Non-CAISO\")","v":"Renewables"},null,{"$f":"raw_annual_energy!C97","v":"Baja_California_Solar"},{"$f":"INDEX(K:K,MATCH(R97,Lists!J:J,0))","v":"Solar"},"In-State",null,null,null,null,{"$f":"raw_fuel_burn!A97","v":"CAISO_Reciprocating_Engine"},{"$f":"INDEX(K:K,MATCH(Y97,Lists!J:J,0))","v":"CAISO_Reciprocating_Engine"}]
[null,"Arizona_Wind","Out-Of-State",null,null,null,null,null,null,{"$f":"IFERROR(INDEX(raw_resource_build!$B$2:$B$1000,MATCH(0,COUNTIF($J$1:J97,raw_resource_build!$B$2:$B$1000), 0),0), \"\")","v":"Kern_Greater_Carrizo_Wind"},{"$f":"IF(J98=\"\", \"\", INDEX(raw_resource_build!E:E, MATCH(J98, raw_resource_build!B:B, 0)))","v":"Wind"},{"$f":"IF(J98=\"\", \"\", INDEX(raw_resource_build!C:C, MATCH(J98, raw_resource_build!B:B, 0)))","v":"CAISO"},null,{"$f":"raw_resource_build!B98","v":"Kern_Greater_Carrizo_Wind"},"In-State",{"$f":"IFERROR(INDEX($E$5:$E$32,MATCH(raw_resource_build!$E98,Lists!$B$5:$B$32,0)),\"Non-CAISO\")","v":"Renewables"},null,{"$f":"raw_annual_energy!C98","v":"Baja_California_Solar"},{"$f":"INDEX(K:K,MATCH(R98,Lists!J:J,0))","v":"Solar"},"In-State",null,null,null,null,{"$f":"raw_fuel_burn!A98","v":"CAISO_Reciprocating_Engine"},{"$f":"INDEX(K:K,MATCH(Y98,Lists!J:J,0))","v":"CAISO_Reciprocating_Engine"}]
[null,"New_Mexico_Wind","Out-Of-State",null,null,null,null,null,null,{"$f":"IFERROR(INDEX(raw_resource_build!$B$2:$B$1000,MATCH(0,COUNTIF($J$1:J98,raw_resource_build!$B$2:$B$1000), 0),0), \"\")","v":"Kramer_Inyokern_Ex_Solar"},{"$f":"IF(J99=\"\", \"\", INDEX(raw_resource_build!E:E, MATCH(J99, raw_resource_build!B:B, 0)))","v":"Solar"},{"$f":"IF(J99=\"\", \"\", INDEX(raw_resource_build!C:C, MATCH(J99, raw_resource_build!B:B, 0)))","v":"CAISO"},null,{"$f":"raw_resource_build!B99","v":"Kramer_Inyokern_Ex_Solar"},"In-State",{"$f":"IFERROR(INDEX($E$5:$E$32,MATCH(raw_resource_build!$E99,Lists!$B$5:$B$32,0)),\"Non-CAISO\")","v":"Renewables"},null,{"$f":"raw_annual_energy!C99","v":"Baja_California_Wind"},{"$f":"INDEX(K:K,MATCH(R99,Lists!J:J,0))","v":"Wind"},"In-State",null,null,null,null,{"$f":"raw_fuel_burn!A99","v":"CAISO_ST"},{"$f":"INDEX(K:K,MATCH(Y99,Lists!J:J,0))","v":"CAISO_ST"}]
[null,null,null,null,null,null,null,null,null,{"$f":"IFERROR(INDEX(raw_resource_build!$B$2:$B$1000,MATCH(0,COUNTIF($J$1:J99,raw_resource_build!$B$2:$B$1000), 0),0), \"\")","v":"Kramer_Inyokern_Ex_Wind"},{"$f":"IF(J100=\"\", \"\", INDEX(raw_resource_build!E:E, MATCH(J100, raw_resource_build!B:B, 0)))","v":"Wind"},{"$f":"IF(J100=\"\", \"\", INDEX(raw_resource_build!C:C, MATCH(J100, raw_resource_build!B:B, 0)))","v":"CAISO"},null,{"$f":"raw_resource_build!B100","v":"Kramer_Inyokern_Ex_Wind"},"In-State",{"$f":"IFERROR(INDEX($E$5:$E$32,MATCH(raw_resource_build!$E100,Lists!$B$5:$B$32,0)),\"Non-CAISO\")","v":"Renewables"},null,{"$f":"raw_annual_energy!C100","v":"Baja_California_Wind"},{"$f":"INDEX(K:K,MATCH(R100,Lists!J:J,0))","v":"Wind"},"In-State",null,null,null,null,{"$f":"raw_fuel_burn!A100","v":"CAISO_ST"},{"$f":"INDEX(K:K,MATCH(Y100,Lists!J:J,0))","v":"CAISO_ST"}]
[null,null,null,null,null,null,null,null,null,{"$f":"IFERROR(INDEX(raw_resource_build!$B$2:$B$1000,MATCH(0,COUNTIF($J$1:J100,raw_resource_build!$B$2:$B$1000), 0),0), \"\")","v":"North_Victor_Solar"},{"$f":"IF(J101=\"\", \"\", INDEX(raw_resource_build!E:E, MATCH(J101, raw_resource_build!B:B, 0)))","v":"Solar"},{"$f":"IF(J101=\"\", \"\", INDEX(raw_resource_build!C:C, MATCH(J101, raw_resource_build!B:B, 0)))","v":"CAISO"},null,{"$f":"raw_resource_build!B101","v":"North_Victor_Solar"},"In-State",{"$f":"IFERROR(INDEX($E$5:$E$32,MATCH(raw_resource_build!$E101,Lists!$B$5:$B$32,0)),\"Non-CAISO\")","v":"Renewables"},null,{"$f":"raw_annual_energy!C101","v":"Baja_California_Wind"},{"$f":"INDEX(K:K,MATCH(R101,Lists!J:J,0))","v":"Wind"},"In-State",null,null,null,null,{"$f":"raw_fuel_burn!A101","v":"CAISO_ST"},{"$f":"INDEX(K:K,MATCH(Y101,Lists!J:J,0))","v":"CAISO_ST"}]
[null,null,null,null,null,null,null,null,null,{"$f":"IFERROR(INDEX(raw_resource_build!$B$2:$B$1000,MATCH(0,COUNTIF($J$1:J101,raw_resource_build!$B$2:$B$1000), 0),0), \"\")","v":"Northern_California_Ex_Solar"},{"$f":"IF(J102=\"\", \"\", INDEX(raw_resource_build!E:E, MATCH(J102, raw_resource_build!B:B, 0)))","v":"Solar"},{"$f":"IF(J102=\"\", \"\", INDEX(raw_resource_build!C:C, MATCH(J102, raw_resource_build!B:B, 0)))","v":"CAISO"},null,{"$f":"raw_resource_build!B102","v":"Northern_California_Ex_Solar"},"In-State",{"$f":"IFERROR(INDEX($E$5:$E$32,MATCH(raw_resource_build!$E102,Lists!$B$5:$B$32,0)),\"Non-CAISO\")","v":"Renewables"},null,{"$f":"raw_annual_energy!C102","v":"Baja_California_Wind"},{"$f":"INDEX(K:K,MATCH(R102,Lists!J:J,0))","v":"Wind"},"In-State",null,null,null,null,{"$f":"raw_fuel_burn!A102","v":"CAISO_ST"},{"$f":"INDEX(K:K,MATCH(Y102,Lists!J:J,0))","v":"CAISO_ST"}]
[null,null,null,null,null,null,null,null,null,{"$f":"IFERROR(INDEX(raw_resource_build!$B$2:$B$1000,MATCH(0,COUNTIF($J$1:J102,raw_resource_build!$B$2:$B$1000), 0),0), \"\")","v":"Northern_California_Ex_Wind"},{"$f":"IF(J103=\"\", \"\", INDEX(raw_resource_build!E:E, MATCH(J103, raw_resource_build!B:B, 0)))","v":"Wind"},{"$f":"IF(J103=\"\", \"\", INDEX(raw_resource_build!C:C, MATCH(J103, raw_resource_build!B:B, 0)))","v":"CAISO"},null,{"$f":"raw_resource_build!B103","v":"Northern_California_Ex_Wind"},"In-State",{"$f":"IFERROR(INDEX($E$5:$E$32,MATCH(raw_resource_build!$E103,Lists!$B$5:$B$32,0)),\"Non-CAISO\")","v":"Renewables"},null,{"$f":"raw_annual_energy!C103","v":"Baja_California_Wind"},{"$f":"INDEX(K:K,MATCH(R103,Lists!J:J,0))","v":"Wind"},"In-State",null,null,null,null,{"$f":"raw_fuel_burn!A103","v":"CAISO_ST"},{"$f":"INDEX(K:K,MATCH(Y103,Lists!J:J,0))","v":"CAISO_ST"}]
[null,null,null,null,null,null,null,null,null,{"$f":"IFERROR(INDEX(raw_resource_build!$B$2:$B$1000,MATCH(0,COUNTIF($J$1:J103,raw_resource_build!$B$2:$B$1000), 0),0), \"\")","v":"NW_Ext_Tx_Wind"},{"$f":"IF(J104=\"\", \"\", INDEX(raw_resource_build!E:E, MATCH(J104, raw_resource_build!B:B, 0)))","v":"Wind"},{"$f":"IF(J104=\"\", \"\", INDEX(raw_resource_build!C:C, MATCH(J104, raw_resource_build!B:B, 0)))","v":"CAISO"},null,{"$f":"raw_resource_build!B104","v":"NW_Ext_Tx_Wind"},"In-State",{"$f":"IFERROR(INDEX($E$5:$E$32,MATCH(raw_resource_build!$E104,Lists!$B$5:$B$32,0)),\"Non-CAISO\")","v":"Renewables"},null,{"$f":"raw_annual_energy!C104","v":"Baja_California_Wind"},{"$f":"INDEX(K:K,MATCH(R104,Lists!J:J,0))","v":"Wind"},"In-State",null,null,null,null,{"$f":"raw_fuel_burn!A104","v":"CAISO_ST"},{"$f":"INDEX(K:K,MATCH(Y104,Lists!J:J,0))","v":"CAISO_ST"}]
[null,null,null,null,null,null,null,null,null,{"$f":"IFERROR(INDEX(raw_resource_build!$B$2:$B$1000,MATCH(0,COUNTIF($J$1:J104,raw_resource_build!$B$2:$B$1000), 0),0), \"\")","v":"Riverside_Palm_Springs_Solar"},{"$f":"IF(J105=\"\", \"\", INDEX(raw_resource_build!E:E, MATCH(J105, raw_resource_build!B:B, 0)))","v":"Solar"},{"$f":"IF(J105=\"\", \"\", INDEX(raw_resource_build!C:C, MATCH(J105, raw_resource_build!B:B, 0)))","v":"CAISO"},null,{"$f":"raw_resource_build!B105","v":"Riverside_Palm_Springs_Solar"},"In-State",{"$f":"IFERROR(INDEX($E$5:$E$32,MATCH(raw_resource_build!$E105,Lists!$B$5:$B$32,0)),\"Non-CAISO\")","v":"Renewables"},null,{"$f":"raw_annual_energy!C105","v":"Baja_California_Wind"},{"$f":"INDEX(K:K,MATCH(R105,Lists!J:J,0))","v":"Wind"},"In-State",null,null,null,null,{"$f":"raw_fuel_burn!A105","v":"CAISO_ST"},{"$f":"INDEX(K:K,MATCH(Y105,Lists!J:J,0))","v":"CAISO_ST"}]
[null,null,null,null,null,null,null,null,null,{"$f":"IFERROR(INDEX(raw_resource_build!$B$2:$B$1000,MATCH(0,COUNTIF($J$1:J105,raw_resource_build!$B$2:$B$1000), 0),0), \"\")","v":"Sacramento_River_Solar"},{"$f":"IF(J106=\"\", \"\", INDEX(raw_resource_build!E:E, MATCH(J106, raw_resource_build!B:B, 0)))","v":"Solar"},{"$f":"IF(J106=\"\", \"\", INDEX(raw_resource_build!C:C, MATCH(J106, raw_resource_build!B:B, 0)))","v":"CAISO"},null,{"$f":"raw_resource_build!B106","v":"Sacramento_River_Solar"},"In-State",{"$f":"IFERROR(INDEX($E$5:$E$32,MATCH(raw_resource_build!$E106,Lists!$B$5:$B$32,0)),\"Non-CAISO\")","v":"Renewables"},null,{"$f":"raw_annual_energy!C106","v":"Baja_California_Wind"},{"$f":"INDEX(K:K,MATCH(R106,Lists!J:J,0))","v":"Wind"},"In-State",null,null,null,null,{"$f":"raw_fuel_burn!A106","v":"CAISO_ST"},{"$f":"INDEX(K:K,MATCH(Y106,Lists!J:J,0))","v":"CAISO_ST"}]
[null,null,null,null,null,null,null,null,null,{"$f":"IFERROR(INDEX(raw_resource_build!$B$2:$B$1000,MATCH(0,COUNTIF($J$1:J106,raw_resource_build!$B$2:$B$1000), 0),0), \"\")","v":"Sacramento_River_Wind"},{"$f":"IF(J107=\"\", \"\", INDEX(raw_resource_build!E:E, MATCH(J107, raw_resource_build!B:B, 0)))","v":"Wind"},{"$f":"IF(J107=\"\", \"\", INDEX(raw_resource_build!C:C, MATCH(J107, raw_resource_build!B:B, 0)))","v":"CAISO"},null,{"$f":"raw_resource_build!B107","v":"Sacramento_River_Wind"},"In-State",{"$f":"IFERROR(INDEX($E$5:$E$32,MATCH(raw_resource_build!$E107,Lists!$B$5:$B$32,0)),\"Non-CAISO\")","v":"Renewables"},null,{"$f":"raw_annual_energy!C107","v":"CAISO_Advanced_CCGT"},{"$f":"INDEX(K:K,MATCH(R107,Lists!J:J,0))","v":"CAISO_Advanced_CCGT"},"Non-wind",null,null,null,null,{"$f":"raw_fuel_burn!A107","v":"CAISO_Shed_DR_Existing"},{"$f":"INDEX(K:K,MATCH(Y107,Lists!J:J,0))","v":"CAISO_Conventional_DR"}]
[null,null,null,null,null,null,null,null,null,{"$f":"IFERROR(INDEX(raw_resource_build!$B$2:$B$1000,MATCH(0,COUNTIF($J$1:J107,raw_resource_build!$B$2:$B$1000), 0),0), \"\")","v":"SCADSNV_Solar"},{"$f":"IF(J108=\"\", \"\", INDEX(raw_resource_build!E:E, MATCH(J108, raw_resource_build!B:B, 0)))","v":"Solar"},{"$f":"IF(J108=\"\", \"\", INDEX(raw_resource_build!C:C, MATCH(J108, raw_resource_build!B:B, 0)))","v":"CAISO"},null,{"$f":"raw_resource_build!B108","v":"SCADSNV_Solar"},"In-State",{"$f":"IFERROR(INDEX($E$5:$E$32,MATCH(raw_resource_build!$E108,Lists!$B$5:$B$32,0)),\"Non-CAISO\")","v":"Renewables"},null,{"$f":"raw_annual_energy!C108","v":"CAISO_Advanced_CCGT"},{"$f":"INDEX(K:K,MATCH(R108,Lists!J:J,0))","v":"CAISO_Advanced_CCGT"},"Non-wind",null,null,null,null,{"$f":"raw_fuel_burn!A108","v":"CAISO_Shed_DR_Existing"},{"$f":"INDEX(K:K,MATCH(Y108,Lists!J:J,0))","v":"CAISO_Conventional_DR"}]
[null,null,null,null,null,null,null,null,null,{"$f":"IFERROR(INDEX(raw_resource_build!$B$2:$B$1000,MATCH(0,COUNTIF($J$1:J108,raw_resource_build!$B$2:$B$1000), 0),0), \"\")","v":"SCADSNV_Wind"},{"$f":"IF(J109=\"\", \"\", INDEX(raw_resource_build!E:E, MATCH(J109, raw_resource_build!B:B, 0)))","v":"Wind"},{"$f":"IF(J109=\"\", \"\", INDEX(raw_resource_build!C:C, MATCH(J109, raw_resource_build!B:B, 0)))","v":"CAISO"},null,{"$f":"raw_resource_build!B109","v":"SCADSNV_Wind"},"In-State",{"$f":"IFERROR(INDEX($E$5:$E$32,MATCH(raw_resource_build!$E109,Lists!$B$5:$B$32,0)),\"Non-CAISO\")","v":"Renewables"},null,{"$f":"raw_annual_energy!C109","v":"CAISO_Advanced_CCGT"},{"$f":"INDEX(K:K,MATCH(R109,Lists!J:J,0))","v":"CAISO_Advanced_CCGT"},"Non-wind",null,null,null,null,{"$f":"raw_fuel_burn!A109","v":"CAISO_Shed_DR_Existing"},{"$f":"INDEX(K:K,MATCH(Y109,Lists!J:J,0))","v":"CAISO_Conventional_DR"}]
[null,null,null,null,null,null,null,null,null,{"$f":"IFERROR(INDEX(raw_resource_build!$B$2:$B$1000,MATCH(0,COUNTIF($J$1:J109,raw_resource_build!$B$2:$B$1000), 0),0), \"\")","v":"Solano_Solar"},{"$f":"IF(J110=\"\", \"\", INDEX(raw_resource_build!E:E, MATCH(J110, raw_resource_build!B:B, 0)))","v":"Solar"},{"$f":"IF(J110=\"\", \"\", INDEX(raw_resource_build!C:C, MATCH(J110, raw_resource_build!B:B, 0)))","v":"CAISO"},null,{"$f":"raw_resource_build!B110","v":"Solano_Solar"},"In-State",{"$f":"IFERROR(INDEX($E$5:$E$32,MATCH(raw_resource_build!$E110,Lists!$B$5:$B$32,0)),\"Non-CAISO\")","v":"Renewables"},null,{"$f":"raw_annual_energy!C110","v":"CAISO_Advanced_CCGT"},{"$f":"INDEX(K:K,MATCH(R110,Lists!J:J,0))","v":"CAISO_Advanced_CCGT"},"Non-wind",null,null,null,null,{"$f":"raw_fuel_burn!A110","v":"CAISO_Shed_DR_Existing"},{"$f":"INDEX(K:K,MATCH(Y110,Lists!J:J,0))","v":"CAISO_Conventional_DR"}]
[null,null,null,null,null,null,null,null,null,{"$f":"IFERROR(INDEX(raw_resource_build!$B$2:$B$1000,MATCH(0,COUNTIF($J$1:J110,raw_resource_build!$B$2:$B$1000), 0),0), \"\")","v":"Solano_subzone_Solar"},{"$f":"IF(J111=\"\", \"\", INDEX(raw_resource_build!E:E, MATCH(J111, raw_resource_build!B:B, 0)))","v":"Solar"},{"$f":"IF(J111=\"\", \"\", INDEX(raw_resource_build!C:C, MATCH(J111, raw_resource_build!B:B, 0)))","v":"CAISO"},null,{"$f":"raw_resource_build!B111","v":"Solano_subzone_Solar"},"In-State",{"$f":"IFERROR(INDEX($E$5:$E$32,MATCH(raw_resource_build!$E111,Lists!$B$5:$B$32,0)),\"Non-CAISO\")","v":"Renewables"},null,{"$f":"raw_annual_energy!C111","v":"CAISO_Advanced_CCGT"},{"$f":"INDEX(K:K,MATCH(R111,Lists!J:J,0))","v":"CAISO_Advanced_CCGT"},"Non-wind",null,null,null,null,{"$f":"raw_fuel_burn!A111","v":"CAISO_Shed_DR_Existing"},{"$f":"INDEX(K:K,MATCH(Y111,Lists!J:J,0))","v":"CAISO_Conventional_DR"}]
[null,null,null,null,null,null,null,null,null,{"$f":"IFERROR(INDEX(raw_resource_build!$B$2:$B$1000,MATCH(0,COUNTIF($J$1:J111,raw_resource_build!$B$2:$B$1000), 0),0), \"\")","v":"Solano_subzone_Wind"},{"$f":"IF(J112=\"\", \"\", INDEX(raw_resource_build!E:E, MATCH(J112, raw_resource_build!B:B, 0)))","v":"Wind"},{"$f":"IF(J112=\"\", \"\", INDEX(raw_resource_build!C:C, MATCH(J112, raw_resource_build!B:B, 0)))","v":"CAISO"},null,{"$f":"raw_resource_build!B112","v":"Solano_subzone_Wind"},"In-State",{"$f":"IFERROR(INDEX($E$5:$E$32,MATCH(raw_resource_build!$E112,Lists!$B$5:$B$32,0)),\"Non-CAISO\")","v":"Renewables"},null,{"$f":"raw_annual_energy!C112","v":"CAISO_Advanced_CCGT"},{"$f":"INDEX(K:K,MATCH(R112,Lists!J:J,0))","v":"CAISO_Advanced_CCGT"},"Non-wind",null,null,null,null,{"$f":"raw_fuel_burn!A112","v":"CAISO_Shed_DR_Existing"},{"$f":"INDEX(K:K,MATCH(Y112,Lists!J:J,0))","v":"CAISO_Conventional_DR"}]
[null,null,null,null,null,null,null,null,null,{"$f":"IFERROR(INDEX(raw_resource_build!$B$2:$B$1000,MATCH(0,COUNTIF($J$1:J112,raw_resource_build!$B$2:$B$1000), 0),0), \"\")","v":"Solano_Wind"},{"$f":"IF(J113=\"\", \"\", INDEX(raw_resource_build!E:E, MATCH(J113, raw_resource_build!B:B, 0)))","v":"Wind"},{"$f":"IF(J113=\"\", \"\", INDEX(raw_resource_build!C:C, MATCH(J113, raw_resource_build!B:B, 0)))","v":"CAISO"},null,{"$f":"raw_resource_build!B113","v":"Solano_Wind"},"In-State",{"$f":"IFERROR(INDEX($E$5:$E$32,MATCH(raw_resource_build!$E113,Lists!$B$5:$B$32,0)),\"Non-CAISO\")","v":"Renewables"},null,{"$f":"raw_annual_energy!C113","v":"CAISO_Advanced_CCGT"},{"$f":"INDEX(K:K,MATCH(R113,Lists!J:J,0))","v":"CAISO_Advanced_CCGT"},"Non-wind",null,null,null,null,{"$f":"raw_fuel_burn!A113","v":"CAISO_Shed_DR_Existing"},{"$f":"INDEX(K:K,MATCH(Y113,Lists!J:J,0))","v":"CAISO_Conventional_DR"}]
[null,null,null,null,null,null,null,null,null,{"$f":"IFERROR(INDEX(raw_resource_build!$B$2:$B$1000,MATCH(0,COUNTIF($J$1:J113,raw_resource_build!$B$2:$B$1000), 0),0), \"\")","v":"Southern_California_Desert_Ex_Solar"},{"$f":"IF(J114=\"\", \"\", INDEX(raw_resource_build!E:E, MATCH(J114, raw_resource_build!B:B, 0)))","v":"Solar"},{"$f":"IF(J114=\"\", \"\", INDEX(raw_resource_build!C:C, MATCH(J114, raw_resource_build!B:B, 0)))","v":"CAISO"},null,{"$f":"raw_resource_build!B114","v":"Southern_California_Desert_Ex_Solar"},"In-State",{"$f":"IFERROR(INDEX($E$5:$E$32,MATCH(raw_resource_build!$E114,Lists!$B$5:$B$32,0)),\"Non-CAISO\")","v":"Renewables"},null,{"$f":"raw_annual_energy!C114","v":"CAISO_Advanced_CCGT"},{"$f":"INDEX(K:K,MATCH(R114,Lists!J:J,0))","v":"CAISO_Advanced_CCGT"},"Non-wind",null,null,null,null,{"$f":"raw_fuel_burn!A114","v":"CAISO_Shed_DR_Existing"},{"$f":"INDEX(K:K,MATCH(Y114,Lists!J:J,0))","v":"CAISO_Conventional_DR"}]
[null,null,null,null,null,null,null,null,null,{"$f":"IFERROR(INDEX(raw_resource_build!$B$2:$B$1000,MATCH(0,COUNTIF($J$1:J114,raw_resource_build!$B$2:$B$1000), 0),0), \"\")","v":"Southern_California_Desert_Ex_Wind"},{"$f":"IF(J115=\"\", \"\", INDEX(raw_resource_build!E:E, MATCH(J115, raw_resource_build!B:B, 0)))","v":"Wind"},{"$f":"IF(J115=\"\", \"\", INDEX(raw_resource_build!C:C, MATCH(J115, raw_resource_build!B:B, 0)))","v":"CAISO"},null,{"$f":"raw_resource_build!B115","v":"Southern_California_Desert_Ex_Wind"},"In-State",{"$f":"IFERROR(INDEX($E$5:$E$32,MATCH(raw_resource_build!$E115,Lists!$B$5:$B$32,0)),\"Non-CAISO\")","v":"Renewables"},null,{"$f":"raw_annual_energy!C115","v":"CAISO_Aero_CT"},{"$f":"INDEX(K:K,MATCH(R115,Lists!J:J,0))","v":"CAISO_Aero_CT"},"Non-wind",null,null,null,null,{"$f":"raw_fuel_burn!A115","v":"CAISO_Shed_DR_Tranche1"},{"$f":"INDEX(K:K,MATCH(Y115,Lists!J:J,0))","v":"CAISO_Conventional_DR"}]
[null,null,null,null,null,null,null,null,null,{"$f":"IFERROR(INDEX(raw_resource_build!$B$2:$B$1000,MATCH(0,COUNTIF($J$1:J115,raw_resource_build!$B$2:$B$1000), 0),0), \"\")","v":"Southern_Nevada_Solar"},{"$f":"IF(J116=\"\", \"\", INDEX(raw_resource_build!E:E, MATCH(J116, raw_resource_build!B:B, 0)))","v":"Solar"},{"$f":"IF(J116=\"\", \"\", INDEX(raw_resource_build!C:C, MATCH(J116, raw_resource_build!B:B, 0)))","v":"CAISO"},null,{"$f":"raw_resource_build!B116","v":"Southern_Nevada_Solar"},"In-State",{"$f":"IFERROR(INDEX($E$5:$E$32,MATCH(raw_resource_build!$E116,Lists!$B$5:$B$32,0)),\"Non-CAISO\")","v":"Renewables"},null,{"$f":"raw_annual_energy!C116","v":"CAISO_Aero_CT"},{"$f":"INDEX(K:K,MATCH(R116,Lists!J:J,0))","v":"CAISO_Aero_CT"},"Non-wind",null,null,null,null,{"$f":"raw_fuel_burn!A116","v":"CAISO_Shed_DR_Tranche1"},{"$f":"INDEX(K:K,MATCH(Y116,Lists!J:J,0))","v":"CAISO_Conventional_DR"}]
[null,null,null,null,null,null,null,null,null,{"$f":"IFERROR(INDEX(raw_resource_build!$B$2:$B$1000,MATCH(0,COUNTIF($J$1:J116,raw_resource_build!$B$2:$B$1000), 0),0), \"\")","v":"Southern_Nevada_Wind"},{"$f":"IF(J117=\"\", \"\", INDEX(raw_resource_build!E:E, MATCH(J117, raw_resource_build!B:B, 0)))","v":"Wind"},{"$f":"IF(J117=\"\", \"\", INDEX(raw_resource_build!C:C, MATCH(J117, raw_resource_build!B:B, 0)))","v":"CAISO"},null,{"$f":"raw_resource_build!B117","v":"Southern_Nevada_Wind"},"In-State",{"$f":"IFERROR(INDEX($E$5:$E$32,MATCH(raw_resource_build!$E117,Lists!$B$5:$B$32,0)),\"Non-CAISO\")","v":"Renewables"},null,{"$f":"raw_annual_energy!C117","v":"CAISO_Aero_CT"},{"$f":"INDEX(K:K,MATCH(R117,Lists!J:J,0))","v":"CAISO_Aero_CT"},"Non-wind",null,null,null,null,{"$f":"raw_fuel_burn!A117","v":"CAISO_Shed_DR_Tranche1"},{"$f":"INDEX(K:K,MATCH(Y117,Lists!J:J,0))","v":"CAISO_Conventional_DR"}]
[null,null,null,null,null,null,null,null,null,{"$f":"IFERROR(INDEX(raw_resource_build!$B$2:$B$1000,MATCH(0,COUNTIF($J$1:J117,raw_resource_build!$B$2:$B$1000), 0),0), \"\")","v":"SW_Ext_Tx_Wind"},{"$f":"IF(J118=\"\", \"\", INDEX(raw_resource_build!E:E, MATCH(J118, raw_resource_build!B:B, 0)))","v":"Wind"},{"$f":"IF(J118=\"\", \"\", INDEX(raw_resource_build!C:C, MATCH(J118, raw_resource_build!B:B, 0)))","v":"CAISO"},null,{"$f":"raw_resource_build!B118","v":"SW_Ext_Tx_Wind"},"In-State",{"$f":"IFERROR(INDEX($E$5:$E$32,MATCH(raw_resource_build!$E118,Lists!$B$5:$B$32,0)),\"Non-CAISO\")","v":"Renewables"},null,{"$f":"raw_annual_energy!C118","v":"CAISO_Aero_CT"},{"$f":"INDEX(K:K,MATCH(R118,Lists!J:J,0))","v":"CAISO_Aero_CT"},"Non-wind",null,null,null,null,{"$f":"raw_fuel_burn!A118","v":"CAISO_Shed_DR_Tranche1"},{"$f":"INDEX(K:K,MATCH(Y118,Lists!J:J,0))","v":"CAISO_Conventional_DR"}]
[null,null,null,null,null,null,null,null,null,{"$f":"IFERROR(INDEX(raw_resource_build!$B$2:$B$1000,MATCH(0,COUNTIF($J$1:J118,raw_resource_build!$B$2:$B$1000), 0),0), \"\")","v":"Tehachapi_Ex_Solar"},{"$f":"IF(J119=\"\", \"\", INDEX(raw_resource_build!E:E, MATCH(J119, raw_resource_build!B:B, 0)))","v":"Solar"},{"$f":"IF(J119=\"\", \"\", INDEX(raw_resource_build!C:C, MATCH(J119, raw_resource_build!B:B, 0)))","v":"CAISO"},null,{"$f":"raw_resource_build!B119","v":"Tehachapi_Ex_Solar"},"In-State",{"$f":"IFERROR(INDEX($E$5:$E$32,MATCH(raw_resource_build!$E119,Lists!$B$5:$B$32,0)),\"Non-CAISO\")","v":"Renewables"},null,{"$f":"raw_annual_energy!C119","v":"CAISO_Aero_CT"},{"$f":"INDEX(K:K,MATCH(R119,Lists!J:J,0))","v":"CAISO_Aero_CT"},"Non-wind",null,null,null,null,{"$f":"raw_fuel_burn!A119","v":"CAISO_Shed_DR_Tranche1"},{"$f":"INDEX(K:K,MATCH(Y119,Lists!J:J,0))","v":"CAISO_Conventional_DR"}]
[null,null,null,null,null,null,null,null,null,{"$f":"IFERROR(INDEX(raw_resource_build!$B$2:$B$1000,MATCH(0,COUNTIF($J$1:J119,raw_resource_build!$B$2:$B$1000), 0),0), \"\")","v":"Tehachapi_Solar"},{"$f":"IF(J120=\"\", \"\", INDEX(raw_resource_build!E:E, MATCH(J120, raw_resource_build!B:B, 0)))","v":"Solar"},{"$f":"IF(J120=\"\", \"\", INDEX(raw_resource_build!C:C, MATCH(J120, raw_resource_build!B:B, 0)))","v":"CAISO"},null,{"$f":"raw_resource_build!B120","v":"Tehachapi_Solar"},"In-State",{"$f":"IFERROR(INDEX($E$5:$E$32,MATCH(raw_resource_build!$E120,Lists!$B$5:$B$32,0)),\"Non-CAISO\")","v":"Renewables"},null,{"$f":"raw_annual_energy!C120","v":"CAISO_Aero_CT"},{"$f":"INDEX(K:K,MATCH(R120,Lists!J:J,0))","v":"CAISO_Aero_CT"},"Non-wind",null,null,null,null,{"$f":"raw_fuel_burn!A120","v":"CAISO_Shed_DR_Tranche1"},{"$f":"INDEX(K:K,MATCH(Y120,Lists!J:J,0))","v":"CAISO_Conventional_DR"}]
[null,null,null,null,null,null,null,null,null,{"$f":"IFERROR(INDEX(raw_resource_build!$B$2:$B$1000,MATCH(0,COUNTIF($J$1:J120,raw_resource_build!$B$2:$B$1000), 0),0), \"\")","v":"Tehachapi_Wind"},{"$f":"IF(J121=\"\", \"\", INDEX(raw_resource_build!E:E, MATCH(J121, raw_resource_build!B:B, 0)))","v":"Wind"},{"$f":"IF(J121=\"\", \"\", INDEX(raw_resource_build!C:C, MATCH(J121, raw_resource_build!B:B, 0)))","v":"CAISO"},null,{"$f":"raw_resource_build!B121","v":"Tehachapi_Wind"},"In-State",{"$f":"IFERROR(INDEX($E$5:$E$32,MATCH(raw_resource_build!$E121,Lists!$B$5:$B$32,0)),\"Non-CAISO\")","v":"Renewables"},null,{"$f":"raw_annual_energy!C121","v":"CAISO_Aero_CT"},{"$f":"INDEX(K:K,MATCH(R121,Lists!J:J,0))","v":"CAISO_Aero_CT"},"Non-wind",null,null,null,null,{"$f":"raw_fuel_burn!A121","v":"CAISO_Shed_DR_Tranche1"},{"$f":"INDEX(K:K,MATCH(Y121,Lists!J:J,0))","v":"CAISO_Conventional_DR"}]
[null,null,null,null,null,null,null,null,null,{"$f":"IFERROR(INDEX(raw_resource_build!$B$2:$B$1000,MATCH(0,COUNTIF($J$1:J121,raw_resource_build!$B$2:$B$1000), 0),0), \"\")","v":"Westlands_Ex_Solar"},{"$f":"IF(J122=\"\", \"\", INDEX(raw_resource_build!E:E, MATCH(J122, raw_resource_build!B:B, 0)))","v":"Solar"},{"$f":"IF(J122=\"\", \"\", INDEX(raw_resource_build!C:C, MATCH(J122, raw_resource_build!B:B, 0)))","v":"CAISO"},null,{"$f":"raw_resource_build!B122","v":"Westlands_Ex_Solar"},"In-State",{"$f":"IFERROR(INDEX($E$5:$E$32,MATCH(raw_resource_build!$E122,Lists!$B$5:$B$32,0)),\"Non-CAISO\")","v":"Renewables"},null,{"$f":"raw_annual_energy!C122","v":"CAISO_Aero_CT"},{"$f":"INDEX(K:K,MATCH(R122,Lists!J:J,0))","v":"CAISO_Aero_CT"},"Non-wind",null,null,null,null,{"$f":"raw_fuel_burn!A122","v":"CAISO_Shed_DR_Tranche1"},{"$f":"INDEX(K:K,MATCH(Y122,Lists!J:J,0))","v":"CAISO_Conventional_DR"}]
[null,null,null,null,null,null,null,null,null,{"$f":"IFERROR(INDEX(raw_resource_build!$B$2:$B$1000,MATCH(0,COUNTIF($J$1:J122,raw_resource_build!$B$2:$B$1000), 0),0), \"\")","v":"Westlands_Ex_Wind"},{"$f":"IF(J123=\"\", \"\", INDEX(raw_resource_build!E:E, MATCH(J123, raw_resource_build!B:B, 0)))","v":"Wind"},{"$f":"IF(J123=\"\", \"\", INDEX(raw_resource_build!C:C, MATCH(J123, raw_resource_build!B:B, 0)))","v":"CAISO"},null,{"$f":"raw_resource_build!B123","v":"Westlands_Ex_Wind"},"In-State",{"$f":"IFERROR(INDEX($E$5:$E$32,MATCH(raw_resource_build!$E123,Lists!$B$5:$B$32,0)),\"Non-CAISO\")","v":"Renewables"},null,{"$f":"raw_annual_energy!C123","v":"CAISO_BTM_Li_Battery"},{"$f":"INDEX(K:K,MATCH(R123,Lists!J:J,0))","v":"BTM_Li_Battery"},"Non-wind",null,null,null,null,{"$f":"raw_fuel_burn!A123","v":"CAISO_Shed_DR_Tranche2"},{"$f":"INDEX(K:K,MATCH(Y123,Lists!J:J,0))","v":"CAISO_Conventional_DR"}]
[null,null,null,null,null,null,null,null,null,{"$f":"IFERROR(INDEX(raw_resource_build!$B$2:$B$1000,MATCH(0,COUNTIF($J$1:J123,raw_resource_build!$B$2:$B$1000), 0),0), \"\")","v":"Westlands_Solar"},{"$f":"IF(J124=\"\", \"\", INDEX(raw_resource_build!E:E, MATCH(J124, raw_resource_build!B:B, 0)))","v":"Solar"},{"$f":"IF(J124=\"\", \"\", INDEX(raw_resource_build!C:C, MATCH(J124, raw_resource_build!B:B, 0)))","v":"CAISO"},null,{"$f":"raw_resource_build!B124","v":"Westlands_Solar"},"In-State",{"$f":"IFERROR(INDEX($E$5:$E$32,MATCH(raw_resource_build!$E124,Lists!$B$5:$B$32,0)),\"Non-CAISO\")","v":"Renewables"},null,{"$f":"raw_annual_energy!C124","v":"CAISO_BTM_Li_Battery"},{"$f":"INDEX(K:K,MATCH(R124,Lists!J:J,0))","v":"BTM_Li_Battery"},"Non-wind",null,null,null,null,{"$f":"raw_fuel_burn!A124","v":"CAISO_Shed_DR_Tranche2"},{"$f":"INDEX(K:K,MATCH(Y124,Lists!J:J,0))","v":"CAISO_Conventional_DR"}]
[null,null,null,null,null,null,null,null,null,{"$f":"IFERROR(INDEX(raw_resource_build!$B$2:$B$1000,MATCH(0,COUNTIF($J$1:J124,raw_resource_build!$B$2:$B$1000), 0),0), \"\")","v":"Arizona_Solar"},{"$f":"IF(J125=\"\", \"\", INDEX(raw_resource_build!E:E, MATCH(J125, raw_resource_build!B:B, 0)))","v":"Solar"},{"$f":"IF(J125=\"\", \"\", INDEX(raw_resource_build!C:C, MATCH(J125, raw_resource_build!B:B, 0)))","v":"CAISO"},null,{"$f":"raw_resource_build!B125","v":"Arizona_Solar"},"In-State",{"$f":"IFERROR(INDEX($E$5:$E$32,MATCH(raw_resource_build!$E125,Lists!$B$5:$B$32,0)),\"Non-CAISO\")","v":"Renewables"},null,{"$f":"raw_annual_energy!C125","v":"CAISO_BTM_Li_Battery"},{"$f":"INDEX(K:K,MATCH(R125,Lists!J:J,0))","v":"BTM_Li_Battery"},"Non-wind",null,null,null,null,{"$f":"raw_fuel_burn!A125","v":"CAISO_Shed_DR_Tranche2"},{"$f":"INDEX(K:K,MATCH(Y125,Lists!J:J,0))","v":"CAISO_Conventional_DR"}]
[null,null,null,null,null,null,null,null,null,{"$f":"IFERROR(INDEX(raw_resource_build!$B$2:$B$1000,MATCH(0,COUNTIF($J$1:J125,raw_resource_build!$B$2:$B$1000), 0),0), \"\")","v":"Arizona_Wind"},{"$f":"IF(J126=\"\", \"\", INDEX(raw_resource_build!E:E, MATCH(J126, raw_resource_build!B:B, 0)))","v":"Wind"},{"$f":"IF(J126=\"\", \"\", INDEX(raw_resource_build!C:C, MATCH(J126, raw_resource_build!B:B, 0)))","v":"CAISO"},null,{"$f":"raw_resource_build!B126","v":"Arizona_Wind"},"Out-Of-State",{"$f":"IFERROR(INDEX($E$5:$E$32,MATCH(raw_resource_build!$E126,Lists!$B$5:$B$32,0)),\"Non-CAISO\")","v":"Renewables"},null,{"$f":"raw_annual_energy!C126","v":"CAISO_BTM_Li_Battery"},{"$f":"INDEX(K:K,MATCH(R126,Lists!J:J,0))","v":"BTM_Li_Battery"},"Non-wind",null,null,null,null,{"$f":"raw_fuel_burn!A126","v":"CAISO_Shed_DR_Tranche2"},{"$f":"INDEX(K:K,MATCH(Y126,Lists!J:J,0))","v":"CAISO_Conventional_DR"}]
[null,null,null,null,null,null,null,null,null,{"$f":"IFERROR(INDEX(raw_resource_build!$B$2:$B$1000,MATCH(0,COUNTIF($J$1:J126,raw_resource_build!$B$2:$B$1000), 0),0), \"\")","v":"Baja_California_Solar"},{"$f":"IF(J127=\"\", \"\", INDEX(raw_resource_build!E:E, MATCH(J127, raw_resource_build!B:B, 0)))","v":"Solar"},{"$f":"IF(J127=\"\", \"\", INDEX(raw_resource_build!C:C, MATCH(J127, raw_resource_build!B:B, 0)))","v":"CAISO"},null,{"$f":"raw_resource_build!B127","v":"Baja_California_Solar"},"In-State",{"$f":"IFERROR(INDEX($E$5:$E$32,MATCH(raw_resource_build!$E127,Lists!$B$5:$B$32,0)),\"Non-CAISO\")","v":"Renewables"},null,{"$f":"raw_annual_energy!C127","v":"CAISO_BTM_Li_Battery"},{"$f":"INDEX(K:K,MATCH(R127,Lists!J:J,0))","v":"BTM_Li_Battery"},"Non-wind",null,null,null,null,{"$f":"raw_fuel_burn!A127","v":"CAISO_Shed_DR_Tranche2"},{"$f":"INDEX(K:K,MATCH(Y127,Lists!J:J,0))","v":"CAISO_Conventional_DR"}]
[null,null,null,null,null,null,null,null,null,{"$f":"IFERROR(INDEX(raw_resource_build!$B$2:$B$1000,MATCH(0,COUNTIF($J$1:J127,raw_resource_build!$B$2:$B$1000), 0),0), \"\")","v":"Baja_California_Wind"},{"$f":"IF(J128=\"\", \"\", INDEX(raw_resource_build!E:E, MATCH(J128, raw_resource_build!B:B, 0)))","v":"Wind"},{"$f":"IF(J128=\"\", \"\", INDEX(raw_resource_build!C:C, MATCH(J128, raw_resource_build!B:B, 0)))","v":"CAISO"},null,{"$f":"raw_resource_build!B128","v":"Baja_California_Wind"},"In-State",{"$f":"IFERROR(INDEX($E$5:$E$32,MATCH(raw_resource_build!$E128,Lists!$B$5:$B$32,0)),\"Non-CAISO\")","v":"Renewables"},null,{"$f":"raw_annual_energy!C128","v":"CAISO_BTM_Li_Battery"},{"$f":"INDEX(K:K,MATCH(R128,Lists!J:J,0))","v":"BTM_Li_Battery"},"Non-wind",null,null,null,null,{"$f":"raw_fuel_burn!A128","v":"CAISO_Shed_DR_Tranche2"},{"$f":"INDEX(K:K,MATCH(Y128,Lists!J:J,0))","v":"CAISO_Conventional_DR"}]
[null,null,null,null,null,null,null,null,null,{"$f":"IFERROR(INDEX(raw_resource_build!$B$2:$B$1000,MATCH(0,COUNTIF($J$1:J128,raw_resource_build!$B$2:$B$1000), 0),0), \"\")","v":"Idaho_Wind"},{"$f":"IF(J129=\"\", \"\", INDEX(raw_resource_build!E:E, MATCH(J129, raw_resource_build!B:B, 0)))","v":"Wind"},{"$f":"IF(J129=\"\", \"\", INDEX(raw_resource_build!C:C, MATCH(J129, raw_resource_build!B:B, 0)))","v":"CAISO"},null,{"$f":"raw_resource_build!B129","v":"Idaho_Wind"},"Out-Of-State",{"$f":"IFERROR(INDEX($E$5:$E$32,MATCH(raw_resource_build!$E129,Lists!$B$5:$B$32,0)),\"Non-CAISO\")","v":"Renewables"},null,{"$f":"raw_annual_energy!C129","v":"CAISO_BTM_Li_Battery"},{"$f":"INDEX(K:K,MATCH(R129,Lists!J:J,0))","v":"BTM_Li_Battery"},"Non-wind",null,null,null,null,{"$f":"raw_fuel_burn!A129","v":"CAISO_Shed_DR_Tranche2"},{"$f":"INDEX(K:K,MATCH(Y129,Lists!J:J,0))","v":"CAISO_Conventional_DR"}]
[null,null,null,null,null,null,null,null,null,{"$f":"IFERROR(INDEX(raw_resource_build!$B$2:$B$1000,MATCH(0,COUNTIF($J$1:J129,raw_resource_build!$B$2:$B$1000), 0),0), \"\")","v":"New_Mexico_Solar"},"EV_Charging","CAISO",null,{"$f":"raw_resource_build!B130","v":"New_Mexico_Solar"},"Out-Of-State",{"$f":"IFERROR(INDEX($E$5:$E$32,MATCH(raw_resource_build!$E130,Lists!$B$5:$B$32,0)),\"Non-CAISO\")","v":"Renewables"},null,{"$f":"raw_annual_energy!C130","v":"CAISO_BTM_Li_Battery"},{"$f":"INDEX(K:K,MATCH(R130,Lists!J:J,0))","v":"BTM_Li_Battery"},"Non-wind",null,null,null,null,{"$f":"raw_fuel_burn!A130","v":"CAISO_Shed_DR_Tranche2"},{"$f":"INDEX(K:K,MATCH(Y130,Lists!J:J,0))","v":"CAISO_Conventional_DR"}]
[null,null,null,null,null,null,null,null,null,{"$f":"IFERROR(INDEX(raw_resource_build!$B$2:$B$1000,MATCH(0,COUNTIF($J$1:J130,raw_resource_build!$B$2:$B$1000), 0),0), \"\")","v":"New_Mexico_Wind"},{"$f":"IF(J131=\"\", \"\", INDEX(raw_resource_build!E:E, MATCH(J131, raw_resource_build!B:B, 0)))","v":"Wind"},{"$f":"IF(J131=\"\", \"\", INDEX(raw_resource_build!C:C, MATCH(J131, raw_resource_build!B:B, 0)))","v":"CAISO"},null,{"$f":"raw_resource_build!B131","v":"New_Mexico_Wind"},{"$f":"IFERROR(INDEX($C$35:$C$99,MATCH($N131,$B$35:$B$99,0)),\"Non-wind\")","v":"Out-Of-State"},{"$f":"IFERROR(INDEX($E$5:$E$32,MATCH(raw_resource_build!$E131,Lists!$B$5:$B$32,0)),\"Non-CAISO\")","v":"Renewables"},null,{"$f":"raw_annual_energy!C131","v":"CAISO_Biomass_for_CAISO"},{"$f":"INDEX(K:K,MATCH(R131,Lists!J:J,0))","v":"Biomass"},{"$f":"IFERROR(INDEX($C$35:$C$99,MATCH($R131,$B$35:$B$99,0)),\"Non-wind\")","v":"Non-wind"},null,null,null,null,{"$f":"raw_fuel_burn!A131","v":"CAISO_Shed_DR_Tranche3"},{"$f":"INDEX(K:K,MATCH(Y131,Lists!J:J,0))","v":"CAISO_Conventional_DR"}]
[null,null,null,null,null,null,null,null,null,{"$f":"IFERROR(INDEX(raw_resource_build!$B$2:$B$1000,MATCH(0,COUNTIF($J$1:J131,raw_resource_build!$B$2:$B$1000), 0),0), \"\")","v":"Utah_Solar"},{"$f":"IF(J132=\"\", \"\", INDEX(raw_resource_build!E:E, MATCH(J132, raw_resource_build!B:B, 0)))","v":"Solar"},{"$f":"IF(J132=\"\", \"\", INDEX(raw_resource_build!C:C, MATCH(J132, raw_resource_build!B:B, 0)))","v":"CAISO"},null,{"$f":"raw_resource_build!B132","v":"Utah_Solar"},"Out-Of-State",{"$f":"IFERROR(INDEX($E$5:$E$32,MATCH(raw_resource_build!$E132,Lists!$B$5:$B$32,0)),\"Non-CAISO\")","v":"Renewables"},null,{"$f":"raw_annual_energy!C132","v":"CAISO_Biomass_for_CAISO"},{"$f":"INDEX(K:K,MATCH(R132,Lists!J:J,0))","v":"Biomass"},"Non-wind",null,null,null,null,{"$f":"raw_fuel_burn!A132","v":"CAISO_Shed_DR_Tranche3"},{"$f":"INDEX(K:K,MATCH(Y132,Lists!J:J,0))","v":"CAISO_Conventional_DR"}]
[null,null,null,null,null,null,null,null,null,{"$f":"IFERROR(INDEX(raw_resource_build!$B$2:$B$1000,MATCH(0,COUNTIF($J$1:J132,raw_resource_build!$B$2:$B$1000), 0),0), \"\")","v":"Utah_Wind"},{"$f":"IF(J133=\"\", \"\", INDEX(raw_resource_build!E:E, MATCH(J133, raw_resource_build!B:B, 0)))","v":"Wind"},{"$f":"IF(J133=\"\", \"\", INDEX(raw_resource_build!C:C, MATCH(J133, raw_resource_build!B:B, 0)))","v":"CAISO"},null,{"$f":"raw_resource_build!B133","v":"Utah_Wind"},"Out-Of-State",{"$f":"IFERROR(INDEX($E$5:$E$32,MATCH(raw_resource_build!$E133,Lists!$B$5:$B$32,0)),\"Non-CAISO\")","v":"Renewables"},null,{"$f":"raw_annual_energy!C133","v":"CAISO_Biomass_for_CAISO"},{"$f":"INDEX(K:K,MATCH(R133,Lists!J:J,0))","v":"Biomass"},"Non-wind",null,null,null,null,{"$f":"raw_fuel_burn!A133","v":"CAISO_Shed_DR_Tranche3"},{"$f":"INDEX(K:K,MATCH(Y133,Lists!J:J,0))","v":"CAISO_Conventional_DR"}]
[null,null,null,null,null,null,null,null,null,{"$f":"IFERROR(INDEX(raw_resource_build!$B$2:$B$1000,MATCH(0,COUNTIF($J$1:J133,raw_resource_build!$B$2:$B$1000), 0),0), \"\")","v":"Wyoming_Wind"},{"$f":"IF(J134=\"\", \"\", INDEX(raw_resource_build!E:E, MATCH(J134, raw_resource_build!B:B, 0)))","v":"Wind"},{"$f":"IF(J134=\"\", \"\", INDEX(raw_resource_build!C:C, MATCH(J134, raw_resource_build!B:B, 0)))","v":"CAISO"},null,{"$f":"raw_resource_build!B134","v":"Wyoming_Wind"},"Out-Of-State",{"$f":"IFERROR(INDEX($E$5:$E$32,MATCH(raw_resource_build!$E134,Lists!$B$5:$B$32,0)),\"Non-CAISO\")","v":"Renewables"},null,{"$f":"raw_annual_energy!C134","v":"CAISO_Biomass_for_CAISO"},{"$f":"INDEX(K:K,MATCH(R134,Lists!J:J,0))","v":"Biomass"},"Non-wind",null,null,null,null,{"$f":"raw_fuel_burn!A134","v":"CAISO_Shed_DR_Tranche3"},{"$f":"INDEX(K:K,MATCH(Y134,Lists!J:J,0))","v":"CAISO_Conventional_DR"}]
[null,null,null,null,null,null,null,null,null,{"$f":"IFERROR(INDEX(raw_resource_build!$B$2:$B$1000,MATCH(0,COUNTIF($J$1:J134,raw_resource_build!$B$2:$B$1000), 0),0), \"\")","v":"Pacific_Northwest_Wind"},{"$f":"IF(J135=\"\", \"\", INDEX(raw_resource_build!E:E, MATCH(J135, raw_resource_build!B:B, 0)))","v":"Wind"},{"$f":"IF(J135=\"\", \"\", INDEX(raw_resource_build!C:C, MATCH(J135, raw_resource_build!B:B, 0)))","v":"CAISO"},null,{"$f":"raw_resource_build!B135","v":"Pacific_Northwest_Wind"},"Out-Of-State",{"$f":"IFERROR(INDEX($E$5:$E$32,MATCH(raw_resource_build!$E135,Lists!$B$5:$B$32,0)),\"Non-CAISO\")","v":"Renewables"},null,{"$f":"raw_annual_energy!C135","v":"CAISO_Biomass_for_CAISO"},{"$f":"INDEX(K:K,MATCH(R135,Lists!J:J,0))","v":"Biomass"},"Non-wind",null,null,null,null,{"$f":"raw_fuel_burn!A135","v":"CAISO_Shed_DR_Tranche3"},{"$f":"INDEX(K:K,MATCH(Y135,Lists!J:J,0))","v":"CAISO_Conventional_DR"}]
[null,null,null,null,null,null,null,null,null,{"$f":"IFERROR(INDEX(raw_resource_build!$B$2:$B$1000,MATCH(0,COUNTIF($J$1:J135,raw_resource_build!$B$2:$B$1000), 0),0), \"\")","v":"Diablo_Canyon_Offshore_Wind"},{"$f":"IF(J136=\"\", \"\", INDEX(raw_resource_build!E:E, MATCH(J136, raw_resource_build!B:B, 0)))","v":"Offshore_Wind"},{"$f":"IF(J136=\"\", \"\", INDEX(raw_resource_build!C:C, MATCH(J136, raw_resource_build!B:B, 0)))","v":"CAISO"},null,{"$f":"raw_resource_build!B136","v":"Diablo_Canyon_Offshore_Wind"},"In-State",{"$f":"IFERROR(INDEX($E$5:$E$32,MATCH(raw_resource_build!$E136,Lists!$B$5:$B$32,0)),\"Non-CAISO\")","v":"Renewables"},null,{"$f":"raw_annual_energy!C136","v":"CAISO_Biomass_for_CAISO"},{"$f":"INDEX(K:K,MATCH(R136,Lists!J:J,0))","v":"Biomass"},"Non-wind",null,null,null,null,{"$f":"raw_fuel_burn!A136","v":"CAISO_Shed_DR_Tranche3"},{"$f":"INDEX(K:K,MATCH(Y136,Lists!J:J,0))","v":"CAISO_Conventional_DR"}]
[null,null,null,null,null,null,null,null,null,{"$f":"IFERROR(INDEX(raw_resource_build!$B$2:$B$1000,MATCH(0,COUNTIF($J$1:J136,raw_resource_build!$B$2:$B$1000), 0),0), \"\")","v":"Humboldt_Bay_Offshore_Wind"},{"$f":"IF(J137=\"\", \"\", INDEX(raw_resource_build!E:E, MATCH(J137, raw_resource_build!B:B, 0)))","v":"Offshore_Wind"},{"$f":"IF(J137=\"\", \"\", INDEX(raw_resource_build!C:C, MATCH(J137, raw_resource_build!B:B, 0)))","v":"CAISO"},null,{"$f":"raw_resource_build!B137","v":"Humboldt_Bay_Offshore_Wind"},"In-State",{"$f":"IFERROR(INDEX($E$5:$E$32,MATCH(raw_resource_build!$E137,Lists!$B$5:$B$32,0)),\"Non-CAISO\")","v":"Renewables"},null,{"$f":"raw_annual_energy!C137","v":"CAISO_Biomass_for_CAISO"},{"$f":"INDEX(K:K,MATCH(R137,Lists!J:J,0))","v":"Biomass"},"Non-wind",null,null,null,null,{"$f":"raw_fuel_burn!A137","v":"CAISO_Shed_DR_Tranche3"},{"$f":"INDEX(K:K,MATCH(Y137,Lists!J:J,0))","v":"CAISO_Conventional_DR"}]
[null,null,null,null,null,null,null,null,null,{"$f":"IFERROR(INDEX(raw_resource_build!$B$2:$B$1000,MATCH(0,COUNTIF($J$1:J137,raw_resource_build!$B$2:$B$1000), 0),0), \"\")","v":"Morro_Bay_Offshore_Wind"},{"$f":"IF(J138=\"\", \"\", INDEX(raw_resource_build!E:E, MATCH(J138, raw_resource_build!B:B, 0)))","v":"Offshore_Wind"},{"$f":"IF(J138=\"\", \"\", INDEX(raw_resource_build!C:C, MATCH(J138, raw_resource_build!B:B, 0)))","v":"CAISO"},null,{"$f":"raw_resource_build!B138","v":"Morro_Bay_Offshore_Wind"},"In-State",{"$f":"IFERROR(INDEX($E$5:$E$32,MATCH(raw_resource_build!$E138,Lists!$B$5:$B$32,0)),\"Non-CAISO\")","v":"Renewables"},null,{"$f":"raw_annual_energy!C138","v":"CAISO_Biomass_for_CAISO"},{"$f":"INDEX(K:K,MATCH(R138,Lists!J:J,0))","v":"Biomass"},"Non-wind",null,null,null,null,{"$f":"raw_fuel_burn!A138","v":"CAISO_Shed_DR_Tranche3"},{"$f":"INDEX(K:K,MATCH(Y138,Lists!J:J,0))","v":"CAISO_Conventional_DR"}]
[null,null,null,null,null,null,null,null,null,{"$f":"IFERROR(INDEX(raw_resource_build!$B$2:$B$1000,MATCH(0,COUNTIF($J$1:J138,raw_resource_build!$B$2:$B$1000), 0),0), \"\")","v":"Diablo_Canyon_Offshore_Wind_Ext_Tx"},{"$f":"IF(J139=\"\", \"\", INDEX(raw_resource_build!E:E, MATCH(J139, raw_resource_build!B:B, 0)))","v":"Offshore_Wind"},{"$f":"IF(J139=\"\", \"\", INDEX(raw_resource_build!C:C, MATCH(J139, raw_resource_build!B:B, 0)))","v":"CAISO"},null,{"$f":"raw_resource_build!B139","v":"Diablo_Canyon_Offshore_Wind_Ext_Tx"},"In-State",{"$f":"IFERROR(INDEX($E$5:$E$32,MATCH(raw_resource_build!$E139,Lists!$B$5:$B$32,0)),\"Non-CAISO\")","v":"Renewables"},null,{"$f":"raw_annual_energy!C139","v":"CAISO_Biomass_for_Other"},{"$f":"INDEX(K:K,MATCH(R139,Lists!J:J,0))","v":"Biomass"},"Non-wind",null,null,null,null,{"$f":"raw_fuel_burn!A139","v":"CAISO_Shed_DR_Tranche4"},{"$f":"INDEX(K:K,MATCH(Y139,Lists!J:J,0))","v":"CAISO_Conventional_DR"}]
[null,null,null,null,null,null,null,null,null,{"$f":"IFERROR(INDEX(raw_resource_build!$B$2:$B$1000,MATCH(0,COUNTIF($J$1:J139,raw_resource_build!$B$2:$B$1000), 0),0), \"\")","v":"Cape_Mendocino_Offshore_Wind"},{"$f":"IF(J140=\"\", \"\", INDEX(raw_resource_build!E:E, MATCH(J140, raw_resource_build!B:B, 0)))","v":"Offshore_Wind"},{"$f":"IF(J140=\"\", \"\", INDEX(raw_resource_build!C:C, MATCH(J140, raw_resource_build!B:B, 0)))","v":"CAISO"},null,{"$f":"raw_resource_build!B140","v":"Cape_Mendocino_Offshore_Wind"},"In-State",{"$f":"IFERROR(INDEX($E$5:$E$32,MATCH(raw_resource_build!$E140,Lists!$B$5:$B$32,0)),\"Non-CAISO\")","v":"Renewables"},null,{"$f":"raw_annual_energy!C140","v":"CAISO_Biomass_for_Other"},{"$f":"INDEX(K:K,MATCH(R140,Lists!J:J,0))","v":"Biomass"},"Non-wind",null,null,null,null,{"$f":"raw_fuel_burn!A140","v":"CAISO_Shed_DR_Tranche4"},{"$f":"INDEX(K:K,MATCH(Y140,Lists!J:J,0))","v":"CAISO_Conventional_DR"}]
[null,null,null,null,null,null,null,null,null,{"$f":"IFERROR(INDEX(raw_resource_build!$B$2:$B$1000,MATCH(0,COUNTIF($J$1:J140,raw_resource_build!$B$2:$B$1000), 0),0), \"\")","v":"Del_Norte_Offshore_Wind"},{"$f":"IF(J141=\"\", \"\", INDEX(raw_resource_build!E:E, MATCH(J141, raw_resource_build!B:B, 0)))","v":"Offshore_Wind"},{"$f":"IF(J141=\"\", \"\", INDEX(raw_resource_build!C:C, MATCH(J141, raw_resource_build!B:B, 0)))","v":"CAISO"},null,{"$f":"raw_resource_build!B141","v":"Del_Norte_Offshore_Wind"},"In-State",{"$f":"IFERROR(INDEX($E$5:$E$32,MATCH(raw_resource_build!$E141,Lists!$B$5:$B$32,0)),\"Non-CAISO\")","v":"Renewables"},null,{"$f":"raw_annual_energy!C141","v":"CAISO_Biomass_for_Other"},{"$f":"INDEX(K:K,MATCH(R141,Lists!J:J,0))","v":"Biomass"},"Non-wind",null,null,null,null,{"$f":"raw_fuel_burn!A141","v":"CAISO_Shed_DR_Tranche4"},{"$f":"INDEX(K:K,MATCH(Y141,Lists!J:J,0))","v":"CAISO_Conventional_DR"}]
[null,null,null,null,null,null,null,null,null,{"$f":"IFERROR(INDEX(raw_resource_build!$B$2:$B$1000,MATCH(0,COUNTIF($J$1:J141,raw_resource_build!$B$2:$B$1000), 0),0), \"\")","v":"CAISO_Existing_Pumped_Storage"},{"$f":"IF(J142=\"\", \"\", INDEX(raw_resource_build!E:E, MATCH(J142, raw_resource_build!B:B, 0)))","v":"Pumped_Hydro"},{"$f":"IF(J142=\"\", \"\", INDEX(raw_resource_build!C:C, MATCH(J142, raw_resource_build!B:B, 0)))","v":"CAISO"},null,{"$f":"raw_resource_build!B142","v":"CAISO_Existing_Pumped_Storage"},"Non-wind",{"$f":"IFERROR(INDEX($E$5:$E$32,MATCH(raw_resource_build!$E142,Lists!$B$5:$B$32,0)),\"Non-CAISO\")","v":"Pumped Storage"},null,{"$f":"raw_annual_energy!C142","v":"CAISO_Biomass_for_Other"},{"$f":"INDEX(K:K,MATCH(R142,Lists!J:J,0))","v":"Biomass"},"Non-wind",null,null,null,null,{"$f":"raw_fuel_burn!A142","v":"CAISO_Shed_DR_Tranche4"},{"$f":"INDEX(K:K,MATCH(Y142,Lists!J:J,0))","v":"CAISO_Conventional_DR"}]
[null,null,null,null,null,null,null,null,null,{"$f":"IFERROR(INDEX(raw_resource_build!$B$2:$B$1000,MATCH(0,COUNTIF($J$1:J142,raw_resource_build!$B$2:$B$1000), 0),0), \"\")","v":"CAISO_New_Pumped_Storage"},{"$f":"IF(J143=\"\", \"\", INDEX(raw_resource_build!E:E, MATCH(J143, raw_resource_build!B:B, 0)))","v":"Pumped_Hydro"},{"$f":"IF(J143=\"\", \"\", INDEX(raw_resource_build!C:C, MATCH(J143, raw_resource_build!B:B, 0)))","v":"CAISO"},null,{"$f":"raw_resource_build!B143","v":"CAISO_New_Pumped_Storage"},"Non-wind",{"$f":"IFERROR(INDEX($E$5:$E$32,MATCH(raw_resource_build!$E143,Lists!$B$5:$B$32,0)),\"Non-CAISO\")","v":"Pumped Storage"},null,{"$f":"raw_annual_energy!C143","v":"CAISO_Biomass_for_Other"},{"$f":"INDEX(K:K,MATCH(R143,Lists!J:J,0))","v":"Biomass"},"Non-wind",null,null,null,null,{"$f":"raw_fuel_burn!A143","v":"CAISO_Shed_DR_Tranche4"},{"$f":"INDEX(K:K,MATCH(Y143,Lists!J:J,0))","v":"CAISO_Conventional_DR"}]
[null,null,null,null,null,null,null,null,null,{"$f":"IFERROR(INDEX(raw_resource_build!$B$2:$B$1000,MATCH(0,COUNTIF($J$1:J143,raw_resource_build!$B$2:$B$1000), 0),0), \"\")","v":"CAISO_New_Flow_Battery"},{"$f":"IF(J144=\"\", \"\", INDEX(raw_resource_build!E:E, MATCH(J144, raw_resource_build!B:B, 0)))","v":"Flow_Battery"},{"$f":"IF(J144=\"\", \"\", INDEX(raw_resource_build!C:C, MATCH(J144, raw_resource_build!B:B, 0)))","v":"CAISO"},null,{"$f":"raw_resource_build!B144","v":"CAISO_New_Flow_Battery"},"Non-wind",{"$f":"IFERROR(INDEX($E$5:$E$32,MATCH(raw_resource_build!$E144,Lists!$B$5:$B$32,0)),\"Non-CAISO\")","v":"Battery (incl. BTM)"},null,{"$f":"raw_annual_energy!C144","v":"CAISO_Biomass_for_Other"},{"$f":"INDEX(K:K,MATCH(R144,Lists!J:J,0))","v":"Biomass"},"Non-wind",null,null,null,null,{"$f":"raw_fuel_burn!A144","v":"CAISO_Shed_DR_Tranche4"},{"$f":"INDEX(K:K,MATCH(Y144,Lists!J:J,0))","v":"CAISO_Conventional_DR"}]
[null,null,null,null,null,null,null,null,null,{"$f":"IFERROR(INDEX(raw_resource_build!$B$2:$B$1000,MATCH(0,COUNTIF($J$1:J144,raw_resource_build!$B$2:$B$1000), 0),0), \"\")","v":"CAISO_New_Flow_Battery_2"},{"$f":"IF(J145=\"\", \"\", INDEX(raw_resource_build!E:E, MATCH(J145, raw_resource_build!B:B, 0)))","v":"Flow_Battery"},{"$f":"IF(J145=\"\", \"\", INDEX(raw_resource_build!C:C, MATCH(J145, raw_resource_build!B:B, 0)))","v":"CAISO"},null,{"$f":"raw_resource_build!B145","v":"CAISO_New_Flow_Battery_2"},"Non-wind",{"$f":"IFERROR(INDEX($E$5:$E$32,MATCH(raw_resource_build!$E145,Lists!$B$5:$B$32,0)),\"Non-CAISO\")","v":"Battery (incl. BTM)"},null,{"$f":"raw_annual_energy!C145","v":"CAISO_Biomass_for_Other"},{"$f":"INDEX(K:K,MATCH(R145,Lists!J:J,0))","v":"Biomass"},"Non-wind",null,null,null,null,{"$f":"raw_fuel_burn!A145","v":"CAISO_Shed_DR_Tranche4"},{"$f":"INDEX(K:K,MATCH(Y145,Lists!J:J,0))","v":"CAISO_Conventional_DR"}]
[null,null,null,null,null,null,null,null,null,{"$f":"IFERROR(INDEX(raw_resource_build!$B$2:$B$1000,MATCH(0,COUNTIF($J$1:J145,raw_resource_build!$B$2:$B$1000), 0),0), \"\")","v":"CAISO_New_Flow_Battery_3"},{"$f":"IF(J146=\"\", \"\", INDEX(raw_resource_build!E:E, MATCH(J146, raw_resource_build!B:B, 0)))","v":"Flow_Battery"},{"$f":"IF(J146=\"\", \"\", INDEX(raw_resource_build!C:C, MATCH(J146, raw_resource_build!B:B, 0)))","v":"CAISO"},null,{"$f":"raw_resource_build!B146","v":"CAISO_New_Flow_Battery_3"},"Non-wind",{"$f":"IFERROR(INDEX($E$5:$E$32,MATCH(raw_resource_build!$E146,Lists!$B$5:$B$32,0)),\"Non-CAISO\")","v":"Battery (incl. BTM)"},null,{"$f":"raw_annual_energy!C146","v":"CAISO_Biomass_for_Other"},{"$f":"INDEX(K:K,MATCH(R146,Lists!J:J,0))","v":"Biomass"},"Non-wind",null,null,null,null,{"$f":"raw_fuel_burn!A146","v":"CAISO_Shed_DR_Tranche4"},{"$f":"INDEX(K:K,MATCH(Y146,Lists!J:J,0))","v":"CAISO_Conventional_DR"}]
[null,null,null,null,null,null,null,null,null,{"$f":"IFERROR(INDEX(raw_resource_build!$B$2:$B$1000,MATCH(0,COUNTIF($J$1:J146,raw_resource_build!$B$2:$B$1000), 0),0), \"\")","v":"CAISO_New_Flow_Battery_4"},{"$f":"IF(J147=\"\", \"\", INDEX(raw_resource_build!E:E, MATCH(J147, raw_resource_build!B:B, 0)))","v":"Flow_Battery"},{"$f":"IF(J147=\"\", \"\", INDEX(raw_resource_build!C:C, MATCH(J147, raw_resource_build!B:B, 0)))","v":"CAISO"},null,{"$f":"raw_resource_build!B147","v":"CAISO_New_Flow_Battery_4"},"Non-wind",{"$f":"IFERROR(INDEX($E$5:$E$32,MATCH(raw_resource_build!$E147,Lists!$B$5:$B$32,0)),\"Non-CAISO\")","v":"Battery (incl. BTM)"},null,{"$f":"raw_annual_energy!C147","v":"CAISO_CCGT1"},{"$f":"INDEX(K:K,MATCH(R147,Lists!J:J,0))","v":"CAISO_CCGT1"},"Non-wind",null,null,null,null,{"$f":"raw_fuel_burn!A147","v":"CAISO_Shed_DR_Tranche5"},{"$f":"INDEX(K:K,MATCH(Y147,Lists!J:J,0))","v":"CAISO_Conventional_DR"}]
[null,null,null,null,null,null,null,null,null,{"$f":"IFERROR(INDEX(raw_resource_build!$B$2:$B$1000,MATCH(0,COUNTIF($J$1:J147,raw_resource_build!$B$2:$B$1000), 0),0), \"\")","v":"CAISO_New_Flow_Battery_5"},{"$f":"IF(J148=\"\", \"\", INDEX(raw_resource_build!E:E, MATCH(J148, raw_resource_build!B:B, 0)))","v":"Flow_Battery"},{"$f":"IF(J148=\"\", \"\", INDEX(raw_resource_build!C:C, MATCH(J148, raw_resource_build!B:B, 0)))","v":"CAISO"},null,{"$f":"raw_resource_build!B148","v":"CAISO_New_Flow_Battery_5"},"Non-wind",{"$f":"IFERROR(INDEX($E$5:$E$32,MATCH(raw_resource_build!$E148,Lists!$B$5:$B$32,0)),\"Non-CAISO\")","v":"Battery (incl. BTM)"},null,{"$f":"raw_annual_energy!C148","v":"CAISO_CCGT1"},{"$f":"INDEX(K:K,MATCH(R148,Lists!J:J,0))","v":"CAISO_CCGT1"},"Non-wind",null,null,null,null,{"$f":"raw_fuel_burn!A148","v":"CAISO_Shed_DR_Tranche5"},{"$f":"INDEX(K:K,MATCH(Y148,Lists!J:J,0))","v":"CAISO_Conventional_DR"}]
[null,null,null,null,null,null,null,null,null,{"$f":"IFERROR(INDEX(raw_resource_build!$B$2:$B$1000,MATCH(0,COUNTIF($J$1:J148,raw_resource_build!$B$2:$B$1000), 0),0), \"\")","v":"CAISO_New_Li_Battery"},{"$f":"IF(J149=\"\", \"\", INDEX(raw_resource_build!E:E, MATCH(J149, raw_resource_build!B:B, 0)))","v":"Li_Battery"},{"$f":"IF(J149=\"\", \"\", INDEX(raw_resource_build!C:C, MATCH(J149, raw_resource_build!B:B, 0)))","v":"CAISO"},null,{"$f":"raw_resource_build!B149","v":"CAISO_New_Li_Battery"},"Non-wind",{"$f":"IFERROR(INDEX($E$5:$E$32,MATCH(raw_resource_build!$E149,Lists!$B$5:$B$32,0)),\"Non-CAISO\")","v":"Battery (incl. BTM)"},null,{"$f":"raw_annual_energy!C149","v":"CAISO_CCGT1"},{"$f":"INDEX(K:K,MATCH(R149,Lists!J:J,0))","v":"CAISO_CCGT1"},"Non-wind",null,null,null,null,{"$f":"raw_fuel_burn!A149","v":"CAISO_Shed_DR_Tranche5"},{"$f":"INDEX(K:K,MATCH(Y149,Lists!J:J,0))","v":"CAISO_Conventional_DR"}]
[null,null,null,null,null,null,null,null,null,{"$f":"IFERROR(INDEX(raw_resource_build!$B$2:$B$1000,MATCH(0,COUNTIF($J$1:J149,raw_resource_build!$B$2:$B$1000), 0),0), \"\")","v":"CAISO_BTM_Li_Battery"},{"$f":"IF(J150=\"\", \"\", INDEX(raw_resource_build!E:E, MATCH(J150, raw_resource_build!B:B, 0)))","v":"BTM_Li_Battery"},{"$f":"IF(J150=\"\", \"\", INDEX(raw_resource_build!C:C, MATCH(J150, raw_resource_build!B:B, 0)))","v":"CAISO"},null,{"$f":"raw_resource_build!B150","v":"CAISO_BTM_Li_Battery"},"Non-wind",{"$f":"IFERROR(INDEX($E$5:$E$32,MATCH(raw_resource_build!$E150,Lists!$B$5:$B$32,0)),\"Non-CAISO\")","v":"Battery (incl. BTM)"},null,{"$f":"raw_annual_energy!C150","v":"CAISO_CCGT1"},{"$f":"INDEX(K:K,MATCH(R150,Lists!J:J,0))","v":"CAISO_CCGT1"},"Non-wind",null,null,null,null,{"$f":"raw_fuel_burn!A150","v":"CAISO_Shed_DR_Tranche5"},{"$f":"INDEX(K:K,MATCH(Y150,Lists!J:J,0))","v":"CAISO_Conventional_DR"}]
[null,null,null,null,null,null,null,null,null,{"$f":"IFERROR(INDEX(raw_resource_build!$B$2:$B$1000,MATCH(0,COUNTIF($J$1:J150,raw_resource_build!$B$2:$B$1000), 0),0), \"\")","v":"CAISO_New_Li_Battery_2"},{"$f":"IF(J151=\"\", \"\", INDEX(raw_resource_build!E:E, MATCH(J151, raw_resource_build!B:B, 0)))","v":"Li_Battery"},{"$f":"IF(J151=\"\", \"\", INDEX(raw_resource_build!C:C, MATCH(J151, raw_resource_build!B:B, 0)))","v":"CAISO"},null,{"$f":"raw_resource_build!B151","v":"CAISO_New_Li_Battery_2"},"Non-wind",{"$f":"IFERROR(INDEX($E$5:$E$32,MATCH(raw_resource_build!$E151,Lists!$B$5:$B$32,0)),\"Non-CAISO\")","v":"Battery (incl. BTM)"},null,{"$f":"raw_annual_energy!C151","v":"CAISO_CCGT1"},{"$f":"INDEX(K:K,MATCH(R151,Lists!J:J,0))","v":"CAISO_CCGT1"},"Non-wind",null,null,null,null,{"$f":"raw_fuel_burn!A151","v":"CAISO_Shed_DR_Tranche5"},{"$f":"INDEX(K:K,MATCH(Y151,Lists!J:J,0))","v":"CAISO_Conventional_DR"}]
[null,null,null,null,null,null,null,null,null,{"$f":"IFERROR(INDEX(raw_resource_build!$B$2:$B$1000,MATCH(0,COUNTIF($J$1:J151,raw_resource_build!$B$2:$B$1000), 0),0), \"\")","v":"CAISO_New_Li_Battery_3"},{"$f":"IF(J152=\"\", \"\", INDEX(raw_resource_build!E:E, MATCH(J152, raw_resource_build!B:B, 0)))","v":"Li_Battery"},{"$f":"IF(J152=\"\", \"\", INDEX(raw_resource_build!C:C, MATCH(J152, raw_resource_build!B:B, 0)))","v":"CAISO"},null,{"$f":"raw_resource_build!B152","v":"CAISO_New_Li_Battery_3"},"Non-wind",{"$f":"IFERROR(INDEX($E$5:$E$32,MATCH(raw_resource_build!$E152,Lists!$B$5:$B$32,0)),\"Non-CAISO\")","v":"Battery (incl. BTM)"},null,{"$f":"raw_annual_energy!C152","v":"CAISO_CCGT1"},{"$f":"INDEX(K:K,MATCH(R152,Lists!J:J,0))","v":"CAISO_CCGT1"},"Non-wind",null,null,null,null,{"$f":"raw_fuel_burn!A152","v":"CAISO_Shed_DR_Tranche5"},{"$f":"INDEX(K:K,MATCH(Y152,Lists!J:J,0))","v":"CAISO_Conventional_DR"}]
[null,null,null,null,null,null,null,null,null,{"$f":"IFERROR(INDEX(raw_resource_build!$B$2:$B$1000,MATCH(0,COUNTIF($J$1:J152,raw_resource_build!$B$2:$B$1000), 0),0), \"\")","v":"CAISO_New_Li_Battery_4"},{"$f":"IF(J153=\"\", \"\", INDEX(raw_resource_build!E:E, MATCH(J153, raw_resource_build!B:B, 0)))","v":"Li_Battery"},{"$f":"IF(J153=\"\", \"\", INDEX(raw_resource_build!C:C, MATCH(J153, raw_resource_build!B:B, 0)))","v":"CAISO"},null,{"$f":"raw_resource_build!B153","v":"CAISO_New_Li_Battery_4"},"Non-wind",{"$f":"IFERROR(INDEX($E$5:$E$32,MATCH(raw_resource_build!$E153,Lists!$B$5:$B$32,0)),\"Non-CAISO\")","v":"Battery (incl. BTM)"},null,{"$f":"raw_annual_energy!C153","v":"CAISO_CCGT1"},{"$f":"INDEX(K:K,MATCH(R153,Lists!J:J,0))","v":"CAISO_CCGT1"},"Non-wind",null,null,null,null,{"$f":"raw_fuel_burn!A153","v":"CAISO_Shed_DR_Tranche5"},{"$f":"INDEX(K:K,MATCH(Y153,Lists!J:J,0))","v":"CAISO_Conventional_DR"}]
[null,null,null,null,null,null,null,null,null,{"$f":"IFERROR(INDEX(raw_resource_build!$B$2:$B$1000,MATCH(0,COUNTIF($J$1:J153,raw_resource_build!$B$2:$B$1000), 0),0), \"\")","v":"CAISO_New_Li_Battery_5"},{"$f":"IF(J154=\"\", \"\", INDEX(raw_resource_build!E:E, MATCH(J154, raw_resource_build!B:B, 0)))","v":"Li_Battery"},{"$f":"IF(J154=\"\", \"\", INDEX(raw_resource_build!C:C, MATCH(J154, raw_resource_build!B:B, 0)))","v":"CAISO"},null,{"$f":"raw_resource_build!B154","v":"CAISO_New_Li_Battery_5"},"Non-wind",{"$f":"IFERROR(INDEX($E$5:$E$32,MATCH(raw_resource_build!$E154,Lists!$B$5:$B$32,0)),\"Non-CAISO\")","v":"Battery (incl. BTM)"},null,{"$f":"raw_annual_energy!C154","v":"CAISO_CCGT1"},{"$f":"INDEX(K:K,MATCH(R154,Lists!J:J,0))","v":"CAISO_CCGT1"},"Non-wind",null,null,null,null,{"$f":"raw_fuel_burn!A154","v":"CAISO_Shed_DR_Tranche5"},{"$f":"INDEX(K:K,MATCH(Y154,Lists!J:J,0))","v":"CAISO_Conventional_DR"}]
[null,null,null,null,null,null,null,null,null,{"$f":"IFERROR(INDEX(raw_resource_build!$B$2:$B$1000,MATCH(0,COUNTIF($J$1:J154,raw_resource_build!$B$2:$B$1000), 0),0), \"\")","v":"CAISO_New_Li_Battery_6"},{"$f":"IF(J155=\"\", \"\", INDEX(raw_resource_build!E:E, MATCH(J155, raw_resource_build!B:B, 0)))","v":"Li_Battery"},{"$f":"IF(J155=\"\", \"\", INDEX(raw_resource_build!C:C, MATCH(J155, raw_resource_build!B:B, 0)))","v":"CAISO"},null,{"$f":"raw_resource_build!B155","v":"CAISO_New_Li_Battery_6"},"Non-wind",{"$f":"IFERROR(INDEX($E$5:$E$32,MATCH(raw_resource_build!$E155,Lists!$B$5:$B$32,0)),\"Non-CAISO\")","v":"Battery (incl. BTM)"},null,{"$f":"raw_annual_energy!C155","v":"CAISO_CCGT2"},{"$f":"INDEX(K:K,MATCH(R155,Lists!J:J,0))","v":"CAISO_CCGT2"},"Non-wind",null,null,null,null,{"$f":"raw_fuel_burn!A155","v":"CAISO_Shed_DR_Tranche6"},{"$f":"INDEX(K:K,MATCH(Y155,Lists!J:J,0))","v":"CAISO_Conventional_DR"}]
[null,null,null,null,null,null,null,null,null,{"$f":"IFERROR(INDEX(raw_resource_build!$B$2:$B$1000,MATCH(0,COUNTIF($J$1:J155,raw_resource_build!$B$2:$B$1000), 0),0), \"\")","v":"CAISO_Hydro"},{"$f":"IF(J156=\"\", \"\", INDEX(raw_resource_build!E:E, MATCH(J156, raw_resource_build!B:B, 0)))","v":"Hydro"},{"$f":"IF(J156=\"\", \"\", INDEX(raw_resource_build!C:C, MATCH(J156, raw_resource_build!B:B, 0)))","v":"CAISO"},null,{"$f":"raw_resource_build!B156","v":"CAISO_Hydro"},"Non-wind",{"$f":"IFERROR(INDEX($E$5:$E$32,MATCH(raw_resource_build!$E156,Lists!$B$5:$B$32,0)),\"Non-CAISO\")","v":"Hydro (small + large)"},null,{"$f":"raw_annual_energy!C156","v":"CAISO_CCGT2"},{"$f":"INDEX(K:K,MATCH(R156,Lists!J:J,0))","v":"CAISO_CCGT2"},"Non-wind",null,null,null,null,{"$f":"raw_fuel_burn!A156","v":"CAISO_Shed_DR_Tranche6"},{"$f":"INDEX(K:K,MATCH(Y156,Lists!J:J,0))","v":"CAISO_Conventional_DR"}]
[null,null,null,null,null,null,null,null,null,{"$f":"IFERROR(INDEX(raw_resource_build!$B$2:$B$1000,MATCH(0,COUNTIF($J$1:J156,raw_resource_build!$B$2:$B$1000), 0),0), \"\")","v":"NW_Hydro"},{"$f":"IF(J157=\"\", \"\", INDEX(raw_resource_build!E:E, MATCH(J157, raw_resource_build!B:B, 0)))","v":"Hydro"},{"$f":"IF(J157=\"\", \"\", INDEX(raw_resource_build!C:C, MATCH(J157, raw_resource_build!B:B, 0)))","v":"NW"},null,{"$f":"raw_resource_build!B157","v":"NW_Hydro"},"Non-wind",{"$f":"IFERROR(INDEX($E$5:$E$32,MATCH(raw_resource_build!$E157,Lists!$B$5:$B$32,0)),\"Non-CAISO\")","v":"Hydro (small + large)"},null,{"$f":"raw_annual_energy!C157","v":"CAISO_CCGT2"},{"$f":"INDEX(K:K,MATCH(R157,Lists!J:J,0))","v":"CAISO_CCGT2"},"Non-wind",null,null,null,null,{"$f":"raw_fuel_burn!A157","v":"CAISO_Shed_DR_Tranche6"},{"$f":"INDEX(K:K,MATCH(Y157,Lists!J:J,0))","v":"CAISO_Conventional_DR"}]
[null,null,null,null,null,null,null,null,null,{"$f":"IFERROR(INDEX(raw_resource_build!$B$2:$B$1000,MATCH(0,COUNTIF($J$1:J157,raw_resource_build!$B$2:$B$1000), 0),0), \"\")","v":"SW_Hydro"},{"$f":"IF(J158=\"\", \"\", INDEX(raw_resource_build!E:E, MATCH(J158, raw_resource_build!B:B, 0)))","v":"Hydro"},{"$f":"IF(J158=\"\", \"\", INDEX(raw_resource_build!C:C, MATCH(J158, raw_resource_build!B:B, 0)))","v":"SW"},null,{"$f":"raw_resource_build!B158","v":"SW_Hydro"},"Non-wind",{"$f":"IFERROR(INDEX($E$5:$E$32,MATCH(raw_resource_build!$E158,Lists!$B$5:$B$32,0)),\"Non-CAISO\")","v":"Hydro (small + large)"},null,{"$f":"raw_annual_energy!C158","v":"CAISO_CCGT2"},{"$f":"INDEX(K:K,MATCH(R158,Lists!J:J,0))","v":"CAISO_CCGT2"},"Non-wind",null,null,null,null,{"$f":"raw_fuel_burn!A158","v":"CAISO_Shed_DR_Tranche6"},{"$f":"INDEX(K:K,MATCH(Y158,Lists!J:J,0))","v":"CAISO_Conventional_DR"}]
[null,null,null,null,null,null,null,null,null,{"$f":"IFERROR(INDEX(raw_resource_build!$B$2:$B$1000,MATCH(0,COUNTIF($J$1:J158,raw_resource_build!$B$2:$B$1000), 0),0), \"\")","v":"LDWP_Hydro"},{"$f":"IF(J159=\"\", \"\", INDEX(raw_resource_build!E:E, MATCH(J159, raw_resource_build!B:B, 0)))","v":"Hydro"},{"$f":"IF(J159=\"\", \"\", INDEX(raw_resource_build!C:C, MATCH(J159, raw_resource_build!B:B, 0)))","v":"LDWP"},null,{"$f":"raw_resource_build!B159","v":"LDWP_Hydro"},"Non-wind",{"$f":"IFERROR(INDEX($E$5:$E$32,MATCH(raw_resource_build!$E159,Lists!$B$5:$B$32,0)),\"Non-CAISO\")","v":"Hydro (small + large)"},null,{"$f":"raw_annual_energy!C159","v":"CAISO_CCGT2"},{"$f":"INDEX(K:K,MATCH(R159,Lists!J:J,0))","v":"CAISO_CCGT2"},"Non-wind",null,null,null,null,{"$f":"raw_fuel_burn!A159","v":"CAISO_Shed_DR_Tranche6"},{"$f":"INDEX(K:K,MATCH(Y159,Lists!J:J,0))","v":"CAISO_Conventional_DR"}]
[null,null,null,null,null,null,null,null,null,{"$f":"IFERROR(INDEX(raw_resource_build!$B$2:$B$1000,MATCH(0,COUNTIF($J$1:J159,raw_resource_build!$B$2:$B$1000), 0),0), \"\")","v":"BANC_Hydro"},{"$f":"IF(J160=\"\", \"\", INDEX(raw_resource_build!E:E, MATCH(J160, raw_resource_build!B:B, 0)))","v":"Hydro"},{"$f":"IF(J160=\"\", \"\", INDEX(raw_resource_build!C:C, MATCH(J160, raw_resource_build!B:B, 0)))","v":"BANC"},null,{"$f":"raw_resource_build!B160","v":"BANC_Hydro"},"Non-wind",{"$f":"IFERROR(INDEX($E$5:$E$32,MATCH(raw_resource_build!$E160,Lists!$B$5:$B$32,0)),\"Non-CAISO\")","v":"Hydro (small + large)"},null,{"$f":"raw_annual_energy!C160","v":"CAISO_CCGT2"},{"$f":"INDEX(K:K,MATCH(R160,Lists!J:J,0))","v":"CAISO_CCGT2"},"Non-wind",null,null,null,null,{"$f":"raw_fuel_burn!A160","v":"CAISO_Shed_DR_Tranche6"},{"$f":"INDEX(K:K,MATCH(Y160,Lists!J:J,0))","v":"CAISO_Conventional_DR"}]
[null,null,null,null,null,null,null,null,null,{"$f":"IFERROR(INDEX(raw_resource_build!$B$2:$B$1000,MATCH(0,COUNTIF($J$1:J160,raw_resource_build!$B$2:$B$1000), 0),0), \"\")","v":"IID_Hydro"},{"$f":"IF(J161=\"\", \"\", INDEX(raw_resource_build!E:E, MATCH(J161, raw_resource_build!B:B, 0)))","v":"Hydro"},{"$f":"IF(J161=\"\", \"\", INDEX(raw_resource_build!C:C, MATCH(J161, raw_resource_build!B:B, 0)))","v":"IID"},null,{"$f":"raw_resource_build!B161","v":"IID_Hydro"},"Non-wind",{"$f":"IFERROR(INDEX($E$5:$E$32,MATCH(raw_resource_build!$E161,Lists!$B$5:$B$32,0)),\"Non-CAISO\")","v":"Hydro (small + large)"},null,{"$f":"raw_annual_energy!C161","v":"CAISO_CCGT2"},{"$f":"INDEX(K:K,MATCH(R161,Lists!J:J,0))","v":"CAISO_CCGT2"},"Non-wind",null,null,null,null,{"$f":"raw_fuel_burn!A161","v":"CAISO_Shed_DR_Tranche6"},{"$f":"INDEX(K:K,MATCH(Y161,Lists!J:J,0))","v":"CAISO_Conventional_DR"}]
[null,null,null,null,null,null,null,null,null,{"$f":"IFERROR(INDEX(raw_resource_build!$B$2:$B$1000,MATCH(0,COUNTIF($J$1:J161,raw_resource_build!$B$2:$B$1000), 0),0), \"\")","v":"NW_Hydro_for_CAISO"},{"$f":"IF(J162=\"\", \"\", INDEX(raw_resource_build!E:E, MATCH(J162, raw_resource_build!B:B, 0)))","v":"Hydro_NW_CAISO"},{"$f":"IF(J162=\"\", \"\", INDEX(raw_resource_build!C:C, MATCH(J162, raw_resource_build!B:B, 0)))","v":"CAISO_NW_Hydro"},null,{"$f":"raw_resource_build!B162","v":"NW_Hydro_for_CAISO"},"Non-wind",{"$f":"IFERROR(INDEX($E$5:$E$32,MATCH(raw_resource_build!$E162,Lists!$B$5:$B$32,0)),\"Non-CAISO\")","v":"Imports"},null,{"$f":"raw_annual_energy!C162","v":"CAISO_CCGT2"},{"$f":"INDEX(K:K,MATCH(R162,Lists!J:J,0))","v":"CAISO_CCGT2"},"Non-wind",null,null,null,null,{"$f":"raw_fuel_burn!A162","v":"CAISO_Shed_DR_Tranche6"},{"$f":"INDEX(K:K,MATCH(Y162,Lists!J:J,0))","v":"CAISO_Conventional_DR"}]
[null,null,null,null,null,null,null,null,null,{"$f":"IFERROR(INDEX(raw_resource_build!$B$2:$B$1000,MATCH(0,COUNTIF($J$1:J162,raw_resource_build!$B$2:$B$1000), 0),0), \"\")","v":"Hydrogen_electrolysis"},{"$f":"IF(J163=\"\", \"\", INDEX(raw_resource_build!E:E, MATCH(J163, raw_resource_build!B:B, 0)))","v":"Hydrogen_Electrolysis"},{"$f":"IF(J163=\"\", \"\", INDEX(raw_resource_build!C:C, MATCH(J163, raw_resource_build!B:B, 0)))","v":"CAISO"},null,{"$f":"raw_resource_build!B163","v":"Hydrogen_electrolysis"},"Non-wind",{"$f":"IFERROR(INDEX($E$5:$E$32,MATCH(raw_resource_build!$E163,Lists!$B$5:$B$32,0)),\"Non-CAISO\")","v":"Hydrogen Load"},null,{"$f":"raw_annual_energy!C163","v":"CAISO_CHP"},{"$f":"INDEX(K:K,MATCH(R163,Lists!J:J,0))","v":"CAISO_CHP"},"Non-wind",null,null,null,null,{"$f":"raw_fuel_burn!A163","v":"CAISO_Shed_DR_Tranche7"},{"$f":"INDEX(K:K,MATCH(Y163,Lists!J:J,0))","v":"CAISO_Conventional_DR"}]
[null,null,null,null,null,null,null,null,null,{"$f":"IFERROR(INDEX(raw_resource_build!$B$2:$B$1000,MATCH(0,COUNTIF($J$1:J163,raw_resource_build!$B$2:$B$1000), 0),0), \"\")","v":"CAISO_Shed_DR_Existing"},{"$f":"IF(J164=\"\", \"\", INDEX(raw_resource_build!E:E, MATCH(J164, raw_resource_build!B:B, 0)))","v":"CAISO_Conventional_DR"},{"$f":"IF(J164=\"\", \"\", INDEX(raw_resource_build!C:C, MATCH(J164, raw_resource_build!B:B, 0)))","v":"CAISO"},null,{"$f":"raw_resource_build!B164","v":"CAISO_Shed_DR_Existing"},"Non-wind",{"$f":"IFERROR(INDEX($E$5:$E$32,MATCH(raw_resource_build!$E164,Lists!$B$5:$B$32,0)),\"Non-CAISO\")","v":"Shed DR"},null,{"$f":"raw_annual_energy!C164","v":"CAISO_CHP"},{"$f":"INDEX(K:K,MATCH(R164,Lists!J:J,0))","v":"CAISO_CHP"},"Non-wind",null,null,null,null,{"$f":"raw_fuel_burn!A164","v":"CAISO_Shed_DR_Tranche7"},{"$f":"INDEX(K:K,MATCH(Y164,Lists!J:J,0))","v":"CAISO_Conventional_DR"}]
[null,null,null,null,null,null,null,null,null,{"$f":"IFERROR(INDEX(raw_resource_build!$B$2:$B$1000,MATCH(0,COUNTIF($J$1:J164,raw_resource_build!$B$2:$B$1000), 0),0), \"\")","v":"CAISO_Shed_DR_Tranche1"},{"$f":"IF(J165=\"\", \"\", INDEX(raw_resource_build!E:E, MATCH(J165, raw_resource_build!B:B, 0)))","v":"CAISO_Conventional_DR"},{"$f":"IF(J165=\"\", \"\", INDEX(raw_resource_build!C:C, MATCH(J165, raw_resource_build!B:B, 0)))","v":"CAISO"},null,{"$f":"raw_resource_build!B165","v":"CAISO_Shed_DR_Tranche1"},"Non-wind",{"$f":"IFERROR(INDEX($E$5:$E$32,MATCH(raw_resource_build!$E165,Lists!$B$5:$B$32,0)),\"Non-CAISO\")","v":"Shed DR"},null,{"$f":"raw_annual_energy!C165","v":"CAISO_CHP"},{"$f":"INDEX(K:K,MATCH(R165,Lists!J:J,0))","v":"CAISO_CHP"},"Non-wind",null,null,null,null,{"$f":"raw_fuel_burn!A165","v":"CAISO_Shed_DR_Tranche7"},{"$f":"INDEX(K:K,MATCH(Y165,Lists!J:J,0))","v":"CAISO_Conventional_DR"}]
[null,null,null,null,null,null,null,null,null,{"$f":"IFERROR(INDEX(raw_resource_build!$B$2:$B$1000,MATCH(0,COUNTIF($J$1:J165,raw_resource_build!$B$2:$B$1000), 0),0), \"\")","v":"CAISO_Shed_DR_Tranche2"},{"$f":"IF(J166=\"\", \"\", INDEX(raw_resource_build!E:E, MATCH(J166, raw_resource_build!B:B, 0)))","v":"CAISO_Conventional_DR"},{"$f":"IF(J166=\"\", \"\", INDEX(raw_resource_build!C:C, MATCH(J166, raw_resource_build!B:B, 0)))","v":"CAISO"},null,{"$f":"raw_resource_build!B166","v":"CAISO_Shed_DR_Tranche2"},"Non-wind",{"$f":"IFERROR(INDEX($E$5:$E$32,MATCH(raw_resource_build!$E166,Lists!$B$5:$B$32,0)),\"Non-CAISO\")","v":"Shed DR"},null,{"$f":"raw_annual_energy!C166","v":"CAISO_CHP"},{"$f":"INDEX(K:K,MATCH(R166,Lists!J:J,0))","v":"CAISO_CHP"},"Non-wind",null,null,null,null,{"$f":"raw_fuel_burn!A166","v":"CAISO_Shed_DR_Tranche7"},{"$f":"INDEX(K:K,MATCH(Y166,Lists!J:J,0))","v":"CAISO_Conventional_DR"}]
[null,null,null,null,null,null,null,null,null,{"$f":"IFERROR(INDEX(raw_resource_build!$B$2:$B$1000,MATCH(0,COUNTIF($J$1:J166,raw_resource_build!$B$2:$B$1000), 0),0), \"\")","v":"CAISO_Shed_DR_Tranche3"},{"$f":"IF(J167=\"\", \"\", INDEX(raw_resource_build!E:E, MATCH(J167, raw_resource_build!B:B, 0)))","v":"CAISO_Conventional_DR"},{"$f":"IF(J167=\"\", \"\", INDEX(raw_resource_build!C:C, MATCH(J167, raw_resource_build!B:B, 0)))","v":"CAISO"},null,{"$f":"raw_resource_build!B167","v":"CAISO_Shed_DR_Tranche3"},"Non-wind",{"$f":"IFERROR(INDEX($E$5:$E$32,MATCH(raw_resource_build!$E167,Lists!$B$5:$B$32,0)),\"Non-CAISO\")","v":"Shed DR"},null,{"$f":"raw_annual_energy!C167","v":"CAISO_CHP"},{"$f":"INDEX(K:K,MATCH(R167,Lists!J:J,0))","v":"CAISO_CHP"},"Non-wind",null,null,null,null,{"$f":"raw_fuel_burn!A167","v":"CAISO_Shed_DR_Tranche7"},{"$f":"INDEX(K:K,MATCH(Y167,Lists!J:J,0))","v":"CAISO_Conventional_DR"}]
[null,null,null,null,null,null,null,null,null,{"$f":"IFERROR(INDEX(raw_resource_build!$B$2:$B$1000,MATCH(0,COUNTIF($J$1:J167,raw_resource_build!$B$2:$B$1000), 0),0), \"\")","v":"CAISO_Shed_DR_Tranche4"},{"$f":"IF(J168=\"\", \"\", INDEX(raw_resource_build!E:E, MATCH(J168, raw_resource_build!B:B, 0)))","v":"CAISO_Conventional_DR"},{"$f":"IF(J168=\"\", \"\", INDEX(raw_resource_build!C:C, MATCH(J168, raw_resource_build!B:B, 0)))","v":"CAISO"},null,{"$f":"raw_resource_build!B168","v":"CAISO_Shed_DR_Tranche4"},"Non-wind",{"$f":"IFERROR(INDEX($E$5:$E$32,MATCH(raw_resource_build!$E168,Lists!$B$5:$B$32,0)),\"Non-CAISO\")","v":"Shed DR"},null,{"$f":"raw_annual_energy!C168","v":"CAISO_CHP"},{"$f":"INDEX(K:K,MATCH(R168,Lists!J:J,0))","v":"CAISO_CHP"},"Non-wind",null,null,null,null,{"$f":"raw_fuel_burn!A168","v":"CAISO_Shed_DR_Tranche7"},{"$f":"INDEX(K:K,MATCH(Y168,Lists!J:J,0))","v":"CAISO_Conventional_DR"}]
[null,null,null,null,null,null,null,null,null,{"$f":"IFERROR(INDEX(raw_resource_build!$B$2:$B$1000,MATCH(0,COUNTIF($J$1:J168,raw_resource_build!$B$2:$B$1000), 0),0), \"\")","v":"CAISO_Shed_DR_Tranche5"},{"$f":"IF(J169=\"\", \"\", INDEX(raw_resource_build!E:E, MATCH(J169, raw_resource_build!B:B, 0)))","v":"CAISO_Conventional_DR"},{"$f":"IF(J169=\"\", \"\", INDEX(raw_resource_build!C:C, MATCH(J169, raw_resource_build!B:B, 0)))","v":"CAISO"},null,{"$f":"raw_resource_build!B169","v":"CAISO_Shed_DR_Tranche5"},"Non-wind",{"$f":"IFERROR(INDEX($E$5:$E$32,MATCH(raw_resource_build!$E169,Lists!$B$5:$B$32,0)),\"Non-CAISO\")","v":"Shed DR"},null,{"$f":"raw_annual_energy!C169","v":"CAISO_CHP"},{"$f":"INDEX(K:K,MATCH(R169,Lists!J:J,0))","v":"CAISO_CHP"},"Non-wind",null,null,null,null,{"$f":"raw_fuel_burn!A169","v":"CAISO_Shed_DR_Tranche7"},{"$f":"INDEX(K:K,MATCH(Y169,Lists!J:J,0))","v":"CAISO_Conventional_DR"}]
[null,null,null,null,null,null,null,null,null,{"$f":"IFERROR(INDEX(raw_resource_build!$B$2:$B$1000,MATCH(0,COUNTIF($J$1:J169,raw_resource_build!$B$2:$B$1000), 0),0), \"\")","v":"CAISO_Shed_DR_Tranche6"},{"$f":"IF(J170=\"\", \"\", INDEX(raw_resource_build!E:E, MATCH(J170, raw_resource_build!B:B, 0)))","v":"CAISO_Conventional_DR"},{"$f":"IF(J170=\"\", \"\", INDEX(raw_resource_build!C:C, MATCH(J170, raw_resource_build!B:B, 0)))","v":"CAISO"},null,{"$f":"raw_resource_build!B170","v":"CAISO_Shed_DR_Tranche6"},"Non-wind",{"$f":"IFERROR(INDEX($E$5:$E$32,MATCH(raw_resource_build!$E170,Lists!$B$5:$B$32,0)),\"Non-CAISO\")","v":"Shed DR"},null,{"$f":"raw_annual_energy!C170","v":"CAISO_CHP"},{"$f":"INDEX(K:K,MATCH(R170,Lists!J:J,0))","v":"CAISO_CHP"},"Non-wind",null,null,null,null,{"$f":"raw_fuel_burn!A170","v":"CAISO_Shed_DR_Tranche7"},{"$f":"INDEX(K:K,MATCH(Y170,Lists!J:J,0))","v":"CAISO_Conventional_DR"}]
[null,null,null,null,null,null,null,null,null,{"$f":"IFERROR(INDEX(raw_resource_build!$B$2:$B$1000,MATCH(0,COUNTIF($J$1:J170,raw_resource_build!$B$2:$B$1000), 0),0), \"\")","v":"CAISO_Shed_DR_Tranche7"},{"$f":"IF(J171=\"\", \"\", INDEX(raw_resource_build!E:E, MATCH(J171, raw_resource_build!B:B, 0)))","v":"CAISO_Conventional_DR"},{"$f":"IF(J171=\"\", \"\", INDEX(raw_resource_build!C:C, MATCH(J171, raw_resource_build!B:B, 0)))","v":"CAISO"},null,{"$f":"raw_resource_build!B171","v":"CAISO_Shed_DR_Tranche7"},"Non-wind",{"$f":"IFERROR(INDEX($E$5:$E$32,MATCH(raw_resource_build!$E171,Lists!$B$5:$B$32,0)),\"Non-CAISO\")","v":"Shed DR"},null,{"$f":"raw_annual_energy!C171","v":"CAISO_Coal"},{"$f":"INDEX(K:K,MATCH(R171,Lists!J:J,0))","v":"CAISO_Coal"},"Non-wind",null,null,null,null,{"$f":"raw_fuel_burn!A171","v":"CAISO_Shed_DR_Tranche8"},{"$f":"INDEX(K:K,MATCH(Y171,Lists!J:J,0))","v":"CAISO_Conventional_DR"}]
[null,null,null,null,null,null,null,null,null,{"$f":"IFERROR(INDEX(raw_resource_build!$B$2:$B$1000,MATCH(0,COUNTIF($J$1:J171,raw_resource_build!$B$2:$B$1000), 0),0), \"\")","v":"CAISO_Shed_DR_Tranche8"},{"$f":"IF(J172=\"\", \"\", INDEX(raw_resource_build!E:E, MATCH(J172, raw_resource_build!B:B, 0)))","v":"CAISO_Conventional_DR"},{"$f":"IF(J172=\"\", \"\", INDEX(raw_resource_build!C:C, MATCH(J172, raw_resource_build!B:B, 0)))","v":"CAISO"},null,{"$f":"raw_resource_build!B172","v":"CAISO_Shed_DR_Tranche8"},"Non-wind",{"$f":"IFERROR(INDEX($E$5:$E$32,MATCH(raw_resource_build!$E172,Lists!$B$5:$B$32,0)),\"Non-CAISO\")","v":"Shed DR"},null,{"$f":"raw_annual_energy!C172","v":"CAISO_Coal"},{"$f":"INDEX(K:K,MATCH(R172,Lists!J:J,0))","v":"CAISO_Coal"},"Non-wind",null,null,null,null,{"$f":"raw_fuel_burn!A172","v":"CAISO_Shed_DR_Tranche8"},{"$f":"INDEX(K:K,MATCH(Y172,Lists!J:J,0))","v":"CAISO_Conventional_DR"}]
[null,null,null,null,null,null,null,null,null,{"$f":"IFERROR(INDEX(raw_resource_build!$B$2:$B$1000,MATCH(0,COUNTIF($J$1:J172,raw_resource_build!$B$2:$B$1000), 0),0), \"\")","v":""},{"$f":"IF(J173=\"\", \"\", INDEX(raw_resource_build!E:E, MATCH(J173, raw_resource_build!B:B, 0)))","v":""},{"$f":"IF(J173=\"\", \"\", INDEX(raw_resource_build!C:C, MATCH(J173, raw_resource_build!B:B, 0)))","v":""},null,{"$f":"raw_resource_build!B173","v":"CAISO_CHP"},"Non-wind",{"$f":"IFERROR(INDEX($E$5:$E$32,MATCH(raw_resource_build!$E173,Lists!$B$5:$B$32,0)),\"Non-CAISO\")","v":"CHP"},null,{"$f":"raw_annual_energy!C173","v":"CAISO_Coal"},{"$f":"INDEX(K:K,MATCH(R173,Lists!J:J,0))","v":"CAISO_Coal"},"Non-wind",null,null,null,null,{"$f":"raw_fuel_burn!A173","v":"CAISO_Shed_DR_Tranche8"},{"$f":"INDEX(K:K,MATCH(Y173,Lists!J:J,0))","v":"CAISO_Conventional_DR"}]
[null,null,null,null,null,null,null,null,null,{"$f":"IFERROR(INDEX(raw_resource_build!$B$2:$B$1000,MATCH(0,COUNTIF($J$1:J173,raw_resource_build!$B$2:$B$1000), 0),0), \"\")","v":""},{"$f":"IF(J174=\"\", \"\", INDEX(raw_resource_build!E:E, MATCH(J174, raw_resource_build!B:B, 0)))","v":""},{"$f":"IF(J174=\"\", \"\", INDEX(raw_resource_build!C:C, MATCH(J174, raw_resource_build!B:B, 0)))","v":""},null,{"$f":"raw_resource_build!B174","v":"CAISO_Nuclear"},"Non-wind",{"$f":"IFERROR(INDEX($E$5:$E$32,MATCH(raw_resource_build!$E174,Lists!$B$5:$B$32,0)),\"Non-CAISO\")","v":"Nuclear"},null,{"$f":"raw_annual_energy!C174","v":"CAISO_Coal"},{"$f":"INDEX(K:K,MATCH(R174,Lists!J:J,0))","v":"CAISO_Coal"},"Non-wind",null,null,null,null,{"$f":"raw_fuel_burn!A174","v":"CAISO_Shed_DR_Tranche8"},{"$f":"INDEX(K:K,MATCH(Y174,Lists!J:J,0))","v":"CAISO_Conventional_DR"}]
[null,null,null,null,null,null,null,null,null,{"$f":"IFERROR(INDEX(raw_resource_build!$B$2:$B$1000,MATCH(0,COUNTIF($J$1:J174,raw_resource_build!$B$2:$B$1000), 0),0), \"\")","v":""},{"$f":"IF(J175=\"\", \"\", INDEX(raw_resource_build!E:E, MATCH(J175, raw_resource_build!B:B, 0)))","v":""},{"$f":"IF(J175=\"\", \"\", INDEX(raw_resource_build!C:C, MATCH(J175, raw_resource_build!B:B, 0)))","v":""},null,{"$f":"raw_resource_build!B175","v":"CAISO_CCGT1"},"Non-wind",{"$f":"IFERROR(INDEX($E$5:$E$32,MATCH(raw_resource_build!$E175,Lists!$B$5:$B$32,0)),\"Non-CAISO\")","v":"CCGT"},null,{"$f":"raw_annual_energy!C175","v":"CAISO_Coal"},{"$f":"INDEX(K:K,MATCH(R175,Lists!J:J,0))","v":"CAISO_Coal"},"Non-wind",null,null,null,null,{"$f":"raw_fuel_burn!A175","v":"CAISO_Shed_DR_Tranche8"},{"$f":"INDEX(K:K,MATCH(Y175,Lists!J:J,0))","v":"CAISO_Conventional_DR"}]
[null,null,null,null,null,null,null,null,null,{"$f":"IFERROR(INDEX(raw_resource_build!$B$2:$B$1000,MATCH(0,COUNTIF($J$1:J175,raw_resource_build!$B$2:$B$1000), 0),0), \"\")","v":""},{"$f":"IF(J176=\"\", \"\", INDEX(raw_resource_build!E:E, MATCH(J176, raw_resource_build!B:B, 0)))","v":""},{"$f":"IF(J176=\"\", \"\", INDEX(raw_resource_build!C:C, MATCH(J176, raw_resource_build!B:B, 0)))","v":""},null,{"$f":"raw_resource_build!B176","v":"CAISO_CCGT2"},"Non-wind",{"$f":"IFERROR(INDEX($E$5:$E$32,MATCH(raw_resource_build!$E176,Lists!$B$5:$B$32,0)),\"Non-CAISO\")","v":"CCGT"},null,{"$f":"raw_annual_energy!C176","v":"CAISO_Coal"},{"$f":"INDEX(K:K,MATCH(R176,Lists!J:J,0))","v":"CAISO_Coal"},"Non-wind",null,null,null,null,{"$f":"raw_fuel_burn!A176","v":"CAISO_Shed_DR_Tranche8"},{"$f":"INDEX(K:K,MATCH(Y176,Lists!J:J,0))","v":"CAISO_Conventional_DR"}]
[null,null,null,null,null,null,null,null,null,{"$f":"IFERROR(INDEX(raw_resource_build!$B$2:$B$1000,MATCH(0,COUNTIF($J$1:J176,raw_resource_build!$B$2:$B$1000), 0),0), \"\")","v":""},{"$f":"IF(J177=\"\", \"\", INDEX(raw_resource_build!E:E, MATCH(J177, raw_resource_build!B:B, 0)))","v":""},{"$f":"IF(J177=\"\", \"\", INDEX(raw_resource_build!C:C, MATCH(J177, raw_resource_build!B:B, 0)))","v":""},null,{"$f":"raw_resource_build!B177","v":"CAISO_Coal"},"Non-wind",{"$f":"IFERROR(INDEX($E$5:$E$32,MATCH(raw_resource_build!$E177,Lists!$B$5:$B$32,0)),\"Non-CAISO\")","v":"Coal"},null,{"$f":"raw_annual_energy!C177","v":"CAISO_Coal"},{"$f":"INDEX(K:K,MATCH(R177,Lists!J:J,0))","v":"CAISO_Coal"},"Non-wind",null,null,null,null,{"$f":"raw_fuel_burn!A177","v":"CAISO_Shed_DR_Tranche8"},{"$f":"INDEX(K:K,MATCH(Y177,Lists!J:J,0))","v":"CAISO_Conventional_DR"}]
[null,null,null,null,null,null,null,null,null,{"$f":"IFERROR(INDEX(raw_resource_build!$B$2:$B$1000,MATCH(0,COUNTIF($J$1:J177,raw_resource_build!$B$2:$B$1000), 0),0), \"\")","v":""},{"$f":"IF(J178=\"\", \"\", INDEX(raw_resource_build!E:E, MATCH(J178, raw_resource_build!B:B, 0)))","v":""},{"$f":"IF(J178=\"\", \"\", INDEX(raw_resource_build!C:C, MATCH(J178, raw_resource_build!B:B, 0)))","v":""},null,{"$f":"raw_resource_build!B178","v":"CAISO_Peaker1"},"Non-wind",{"$f":"IFERROR(INDEX($E$5:$E$32,MATCH(raw_resource_build!$E178,Lists!$B$5:$B$32,0)),\"Non-CAISO\")","v":"Peaker"},null,{"$f":"raw_annual_energy!C178","v":"CAISO_Coal"},{"$f":"INDEX(K:K,MATCH(R178,Lists!J:J,0))","v":"CAISO_Coal"},"Non-wind",null,null,null,null,{"$f":"raw_fuel_burn!A178","v":"CAISO_Shed_DR_Tranche8"},{"$f":"INDEX(K:K,MATCH(Y178,Lists!J:J,0))","v":"CAISO_Conventional_DR"}]
[null,null,null,null,null,null,null,null,null,{"$f":"IFERROR(INDEX(raw_resource_build!$B$2:$B$1000,MATCH(0,COUNTIF($J$1:J178,raw_resource_build!$B$2:$B$1000), 0),0), \"\")","v":""},{"$f":"IF(J179=\"\", \"\", INDEX(raw_resource_build!E:E, MATCH(J179, raw_resource_build!B:B, 0)))","v":""},{"$f":"IF(J179=\"\", \"\", INDEX(raw_resource_build!C:C, MATCH(J179, raw_resource_build!B:B, 0)))","v":""},null,{"$f":"raw_resource_build!B179","v":"CAISO_Peaker2"},"Non-wind",{"$f":"IFERROR(INDEX($E$5:$E$32,MATCH(raw_resource_build!$E179,Lists!$B$5:$B$32,0)),\"Non-CAISO\")","v":"Peaker"},null,{"$f":"raw_annual_energy!C179","v":"CAISO_Existing_Pumped_Storage"},{"$f":"INDEX(K:K,MATCH(R179,Lists!J:J,0))","v":"Pumped_Hydro"},"Non-wind",null,null,null,null,{"$f":"raw_fuel_burn!A179","v":"IID_CCGT"},{"$f":"INDEX(K:K,MATCH(Y179,Lists!J:J,0))","v":"IID_CCGT"}]
[null,null,null,null,null,null,null,null,null,{"$f":"IFERROR(INDEX(raw_resource_build!$B$2:$B$1000,MATCH(0,COUNTIF($J$1:J179,raw_resource_build!$B$2:$B$1000), 0),0), \"\")","v":""},{"$f":"IF(J180=\"\", \"\", INDEX(raw_resource_build!E:E, MATCH(J180, raw_resource_build!B:B, 0)))","v":""},{"$f":"IF(J180=\"\", \"\", INDEX(raw_resource_build!C:C, MATCH(J180, raw_resource_build!B:B, 0)))","v":""},null,{"$f":"raw_resource_build!B180","v":"CAISO_Advanced_CCGT"},"Non-wind",{"$f":"IFERROR(INDEX($E$5:$E$32,MATCH(raw_resource_build!$E180,Lists!$B$5:$B$32,0)),\"Non-CAISO\")","v":"CCGT"},null,{"$f":"raw_annual_energy!C180","v":"CAISO_Existing_Pumped_Storage"},{"$f":"INDEX(K:K,MATCH(R180,Lists!J:J,0))","v":"Pumped_Hydro"},"Non-wind",null,null,null,null,{"$f":"raw_fuel_burn!A180","v":"IID_CCGT"},{"$f":"INDEX(K:K,MATCH(Y180,Lists!J:J,0))","v":"IID_CCGT"}]
[null,null,null,null,null,null,null,null,null,{"$f":"IFERROR(INDEX(raw_resource_build!$B$2:$B$1000,MATCH(0,COUNTIF($J$1:J180,raw_resource_build!$B$2:$B$1000), 0),0), \"\")","v":""},{"$f":"IF(J181=\"\", \"\", INDEX(raw_resource_build!E:E, MATCH(J181, raw_resource_build!B:B, 0)))","v":""},{"$f":"IF(J181=\"\", \"\", INDEX(raw_resource_build!C:C, MATCH(J181, raw_resource_build!B:B, 0)))","v":""},null,{"$f":"raw_resource_build!B181","v":"CAISO_Aero_CT"},"Non-wind",{"$f":"IFERROR(INDEX($E$5:$E$32,MATCH(raw_resource_build!$E181,Lists!$B$5:$B$32,0)),\"Non-CAISO\")","v":"Peaker"},null,{"$f":"raw_annual_energy!C181","v":"CAISO_Existing_Pumped_Storage"},{"$f":"INDEX(K:K,MATCH(R181,Lists!J:J,0))","v":"Pumped_Hydro"},"Non-wind",null,null,null,null,{"$f":"raw_fuel_burn!A181","v":"IID_CCGT"},{"$f":"INDEX(K:K,MATCH(Y181,Lists!J:J,0))","v":"IID_CCGT"}]
[null,null,null,null,null,null,null,null,null,{"$f":"IFERROR(INDEX(raw_resource_build!$B$2:$B$1000,MATCH(0,COUNTIF($J$1:J181,raw_resource_build!$B$2:$B$1000), 0),0), \"\")","v":""},{"$f":"IF(J182=\"\", \"\", INDEX(raw_resource_build!E:E, MATCH(J182, raw_resource_build!B:B, 0)))","v":""},{"$f":"IF(J182=\"\", \"\", INDEX(raw_resource_build!C:C, MATCH(J182, raw_resource_build!B:B, 0)))","v":""},null,{"$f":"raw_resource_build!B182","v":"CAISO_Reciprocating_Engine"},"Non-wind",{"$f":"IFERROR(INDEX($E$5:$E$32,MATCH(raw_resource_build!$E182,Lists!$B$5:$B$32,0)),\"Non-CAISO\")","v":"Peaker"},null,{"$f":"raw_annual_energy!C182","v":"CAISO_Existing_Pumped_Storage"},{"$f":"INDEX(K:K,MATCH(R182,Lists!J:J,0))","v":"Pumped_Hydro"},"Non-wind",null,null,null,null,{"$f":"raw_fuel_burn!A182","v":"IID_CCGT"},{"$f":"INDEX(K:K,MATCH(Y182,Lists!J:J,0))","v":"IID_CCGT"}]
[null,null,null,null,null,null,null,null,null,{"$f":"IFERROR(INDEX(raw_resource_build!$B$2:$B$1000,MATCH(0,COUNTIF($J$1:J182,raw_resource_build!$B$2:$B$1000), 0),0), \"\")","v":""},{"$f":"IF(J183=\"\", \"\", INDEX(raw_resource_build!E:E, MATCH(J183, raw_resource_build!B:B, 0)))","v":""},{"$f":"IF(J183=\"\", \"\", INDEX(raw_resource_build!C:C, MATCH(J183, raw_resource_build!B:B, 0)))","v":""},null,{"$f":"raw_resource_build!B183","v":"CAISO_ST"},"Non-wind",{"$f":"IFERROR(INDEX($E$5:$E$32,MATCH(raw_resource_build!$E183,Lists!$B$5:$B$32,0)),\"Non-CAISO\")","v":"Steam Turbine"},null,{"$f":"raw_annual_energy!C183","v":"CAISO_Existing_Pumped_Storage"},{"$f":"INDEX(K:K,MATCH(R183,Lists!J:J,0))","v":"Pumped_Hydro"},"Non-wind",null,null,null,null,{"$f":"raw_fuel_burn!A183","v":"IID_CCGT"},{"$f":"INDEX(K:K,MATCH(Y183,Lists!J:J,0))","v":"IID_CCGT"}]
[null,null,null,null,null,null,null,null,null,{"$f":"IFERROR(INDEX(raw_resource_build!$B$2:$B$1000,MATCH(0,COUNTIF($J$1:J183,raw_resource_build!$B$2:$B$1000), 0),0), \"\")","v":""},{"$f":"IF(J184=\"\", \"\", INDEX(raw_resource_build!E:E, MATCH(J184, raw_resource_build!B:B, 0)))","v":""},{"$f":"IF(J184=\"\", \"\", INDEX(raw_resource_build!C:C, MATCH(J184, raw_resource_build!B:B, 0)))","v":""},null,{"$f":"raw_resource_build!B184","v":"NW_Nuclear"},"Non-wind",{"$f":"IFERROR(INDEX($E$5:$E$32,MATCH(raw_resource_build!$E184,Lists!$B$5:$B$32,0)),\"Non-CAISO\")","v":"Non-CAISO"},null,{"$f":"raw_annual_energy!C184","v":"CAISO_Existing_Pumped_Storage"},{"$f":"INDEX(K:K,MATCH(R184,Lists!J:J,0))","v":"Pumped_Hydro"},"Non-wind",null,null,null,null,{"$f":"raw_fuel_burn!A184","v":"IID_CCGT"},{"$f":"INDEX(K:K,MATCH(Y184,Lists!J:J,0))","v":"IID_CCGT"}]
[null,null,null,null,null,null,null,null,null,{"$f":"IFERROR(INDEX(raw_resource_build!$B$2:$B$1000,MATCH(0,COUNTIF($J$1:J184,raw_resource_build!$B$2:$B$1000), 0),0), \"\")","v":""},{"$f":"IF(J185=\"\", \"\", INDEX(raw_resource_build!E:E, MATCH(J185, raw_resource_build!B:B, 0)))","v":""},{"$f":"IF(J185=\"\", \"\", INDEX(raw_resource_build!C:C, MATCH(J185, raw_resource_build!B:B, 0)))","v":""},null,{"$f":"raw_resource_build!B185","v":"NW_Coal"},"Non-wind",{"$f":"IFERROR(INDEX($E$5:$E$32,MATCH(raw_resource_build!$E185,Lists!$B$5:$B$32,0)),\"Non-CAISO\")","v":"Non-CAISO"},null,{"$f":"raw_annual_energy!C185","v":"CAISO_Existing_Pumped_Storage"},{"$f":"INDEX(K:K,MATCH(R185,Lists!J:J,0))","v":"Pumped_Hydro"},"Non-wind",null,null,null,null,{"$f":"raw_fuel_burn!A185","v":"IID_CCGT"},{"$f":"INDEX(K:K,MATCH(Y185,Lists!J:J,0))","v":"IID_CCGT"}]
[null,null,null,null,null,null,null,null,null,{"$f":"IFERROR(INDEX(raw_resource_build!$B$2:$B$1000,MATCH(0,COUNTIF($J$1:J185,raw_resource_build!$B$2:$B$1000), 0),0), \"\")","v":""},{"$f":"IF(J186=\"\", \"\", INDEX(raw_resource_build!E:E, MATCH(J186, raw_resource_build!B:B, 0)))","v":""},{"$f":"IF(J186=\"\", \"\", INDEX(raw_resource_build!C:C, MATCH(J186, raw_resource_build!B:B, 0)))","v":""},null,{"$f":"raw_resource_build!B186","v":"NW_CCGT"},"Non-wind",{"$f":"IFERROR(INDEX($E$5:$E$32,MATCH(raw_resource_build!$E186,Lists!$B$5:$B$32,0)),\"Non-CAISO\")","v":"Non-CAISO"},null,{"$f":"raw_annual_energy!C186","v":"CAISO_Existing_Pumped_Storage"},{"$f":"INDEX(K:K,MATCH(R186,Lists!J:J,0))","v":"Pumped_Hydro"},"Non-wind",null,null,null,null,{"$f":"raw_fuel_burn!A186","v":"IID_CCGT"},{"$f":"INDEX(K:K,MATCH(Y186,Lists!J:J,0))","v":"IID_CCGT"}]
[null,null,null,null,null,null,null,null,null,{"$f":"IFERROR(INDEX(raw_resource_build!$B$2:$B$1000,MATCH(0,COUNTIF($J$1:J186,raw_resource_build!$B$2:$B$1000), 0),0), \"\")","v":""},{"$f":"IF(J187=\"\", \"\", INDEX(raw_resource_build!E:E, MATCH(J187, raw_resource_build!B:B, 0)))","v":""},{"$f":"IF(J187=\"\", \"\", INDEX(raw_resource_build!C:C, MATCH(J187, raw_resource_build!B:B, 0)))","v":""},null,{"$f":"raw_resource_build!B187","v":"NW_Peaker"},"Non-wind",{"$f":"IFERROR(INDEX($E$5:$E$32,MATCH(raw_resource_build!$E187,Lists!$B$5:$B$32,0)),\"Non-CAISO\")","v":"Non-CAISO"},null,{"$f":"raw_annual_energy!C187","v":"CAISO_Geothermal_for_CAISO"},{"$f":"INDEX(K:K,MATCH(R187,Lists!J:J,0))","v":"Geothermal"},"Non-wind",null,null,null,null,{"$f":"raw_fuel_burn!A187","v":"IID_Peaker"},{"$f":"INDEX(K:K,MATCH(Y187,Lists!J:J,0))","v":"IID_Peaker"}]
[null,null,null,null,null,null,null,null,null,{"$f":"IFERROR(INDEX(raw_resource_build!$B$2:$B$1000,MATCH(0,COUNTIF($J$1:J187,raw_resource_build!$B$2:$B$1000), 0),0), \"\")","v":""},{"$f":"IF(J188=\"\", \"\", INDEX(raw_resource_build!E:E, MATCH(J188, raw_resource_build!B:B, 0)))","v":""},{"$f":"IF(J188=\"\", \"\", INDEX(raw_resource_build!C:C, MATCH(J188, raw_resource_build!B:B, 0)))","v":""},null,{"$f":"raw_resource_build!B188","v":"SW_Nuclear"},"Non-wind",{"$f":"IFERROR(INDEX($E$5:$E$32,MATCH(raw_resource_build!$E188,Lists!$B$5:$B$32,0)),\"Non-CAISO\")","v":"Non-CAISO"},null,{"$f":"raw_annual_energy!C188","v":"CAISO_Geothermal_for_CAISO"},{"$f":"INDEX(K:K,MATCH(R188,Lists!J:J,0))","v":"Geothermal"},"Non-wind",null,null,null,null,{"$f":"raw_fuel_burn!A188","v":"IID_Peaker"},{"$f":"INDEX(K:K,MATCH(Y188,Lists!J:J,0))","v":"IID_Peaker"}]
[null,null,null,null,null,null,null,null,null,{"$f":"IFERROR(INDEX(raw_resource_build!$B$2:$B$1000,MATCH(0,COUNTIF($J$1:J188,raw_resource_build!$B$2:$B$1000), 0),0), \"\")","v":""},{"$f":"IF(J189=\"\", \"\", INDEX(raw_resource_build!E:E, MATCH(J189, raw_resource_build!B:B, 0)))","v":""},{"$f":"IF(J189=\"\", \"\", INDEX(raw_resource_build!C:C, MATCH(J189, raw_resource_build!B:B, 0)))","v":""},null,{"$f":"raw_resource_build!B189","v":"SW_Coal"},"Non-wind",{"$f":"IFERROR(INDEX($E$5:$E$32,MATCH(raw_resource_build!$E189,Lists!$B$5:$B$32,0)),\"Non-CAISO\")","v":"Non-CAISO"},null,{"$f":"raw_annual_energy!C189","v":"CAISO_Geothermal_for_CAISO"},{"$f":"INDEX(K:K,MATCH(R189,Lists!J:J,0))","v":"Geothermal"},"Non-wind",null,null,null,null,{"$f":"raw_fuel_burn!A189","v":"IID_Peaker"},{"$f":"INDEX(K:K,MATCH(Y189,Lists!J:J,0))","v":"IID_Peaker"}]
[null,null,null,null,null,null,null,null,null,{"$f":"IFERROR(INDEX(raw_resource_build!$B$2:$B$1000,MATCH(0,COUNTIF($J$1:J189,raw_resource_build!$B$2:$B$1000), 0),0), \"\")","v":""},{"$f":"IF(J190=\"\", \"\", INDEX(raw_resource_build!E:E, MATCH(J190, raw_resource_build!B:B, 0)))","v":""},{"$f":"IF(J190=\"\", \"\", INDEX(raw_resource_build!C:C, MATCH(J190, raw_resource_build!B:B, 0)))","v":""},null,{"$f":"raw_resource_build!B190","v":"SW_CCGT"},"Non-wind",{"$f":"IFERROR(INDEX($E$5:$E$32,MATCH(raw_resource_build!$E190,Lists!$B$5:$B$32,0)),\"Non-CAISO\")","v":"Non-CAISO"},null,{"$f":"raw_annual_energy!C190","v":"CAISO_Geothermal_for_CAISO"},{"$f":"INDEX(K:K,MATCH(R190,Lists!J:J,0))","v":"Geothermal"},"Non-wind",null,null,null,null,{"$f":"raw_fuel_burn!A190","v":"IID_Peaker"},{"$f":"INDEX(K:K,MATCH(Y190,Lists!J:J,0))","v":"IID_Peaker"}]
[null,null,null,null,null,null,null,null,null,{"$f":"IFERROR(INDEX(raw_resource_build!$B$2:$B$1000,MATCH(0,COUNTIF($J$1:J190,raw_resource_build!$B$2:$B$1000), 0),0), \"\")","v":""},{"$f":"IF(J191=\"\", \"\", INDEX(raw_resource_build!E:E, MATCH(J191, raw_resource_build!B:B, 0)))","v":""},{"$f":"IF(J191=\"\", \"\", INDEX(raw_resource_build!C:C, MATCH(J191, raw_resource_build!B:B, 0)))","v":""},null,{"$f":"raw_resource_build!B191","v":"SW_Peaker"},"Non-wind",{"$f":"IFERROR(INDEX($E$5:$E$32,MATCH(raw_resource_build!$E191,Lists!$B$5:$B$32,0)),\"Non-CAISO\")","v":"Non-CAISO"},null,{"$f":"raw_annual_energy!C191","v":"CAISO_Geothermal_for_CAISO"},{"$f":"INDEX(K:K,MATCH(R191,Lists!J:J,0))","v":"Geothermal"},"Non-wind",null,null,null,null,{"$f":"raw_fuel_burn!A191","v":"IID_Peaker"},{"$f":"INDEX(K:K,MATCH(Y191,Lists!J:J,0))","v":"IID_Peaker"}]
[null,null,null,null,null,null,null,null,null,{"$f":"IFERROR(INDEX(raw_resource_build!$B$2:$B$1000,MATCH(0,COUNTIF($J$1:J191,raw_resource_build!$B$2:$B$1000), 0),0), \"\")","v":""},{"$f":"IF(J192=\"\", \"\", INDEX(raw_resource_build!E:E, MATCH(J192, raw_resource_build!B:B, 0)))","v":""},{"$f":"IF(J192=\"\", \"\", INDEX(raw_resource_build!C:C, MATCH(J192, raw_resource_build!B:B, 0)))","v":""},null,{"$f":"raw_resource_build!B192","v":"SW_ST"},"Non-wind",{"$f":"IFERROR(INDEX($E$5:$E$32,MATCH(raw_resource_build!$E192,Lists!$B$5:$B$32,0)),\"Non-CAISO\")","v":"Non-CAISO"},null,{"$f":"raw_annual_energy!C192","v":"CAISO_Geothermal_for_CAISO"},{"$f":"INDEX(K:K,MATCH(R192,Lists!J:J,0))","v":"Geothermal"},"Non-wind",null,null,null,null,{"$f":"raw_fuel_burn!A192","v":"IID_Peaker"},{"$f":"INDEX(K:K,MATCH(Y192,Lists!J:J,0))","v":"IID_Peaker"}]
[null,null,null,null,null,null,null,null,null,{"$f":"IFERROR(INDEX(raw_resource_build!$B$2:$B$1000,MATCH(0,COUNTIF($J$1:J192,raw_resource_build!$B$2:$B$1000), 0),0), \"\")","v":""},{"$f":"IF(J193=\"\", \"\", INDEX(raw_resource_build!E:E, MATCH(J193, raw_resource_build!B:B, 0)))","v":""},{"$f":"IF(J193=\"\", \"\", INDEX(raw_resource_build!C:C, MATCH(J193, raw_resource_build!B:B, 0)))","v":""},null,{"$f":"raw_resource_build!B193","v":"LDWP_Nuclear"},"Non-wind",{"$f":"IFERROR(INDEX($E$5:$E$32,MATCH(raw_resource_build!$E193,Lists!$B$5:$B$32,0)),\"Non-CAISO\")","v":"Non-CAISO"},null,{"$f":"raw_annual_energy!C193","v":"CAISO_Geothermal_for_CAISO"},{"$f":"INDEX(K:K,MATCH(R193,Lists!J:J,0))","v":"Geothermal"},"Non-wind",null,null,null,null,{"$f":"raw_fuel_burn!A193","v":"IID_Peaker"},{"$f":"INDEX(K:K,MATCH(Y193,Lists!J:J,0))","v":"IID_Peaker"}]
[null,null,null,null,null,null,null,null,null,{"$f":"IFERROR(INDEX(raw_resource_build!$B$2:$B$1000,MATCH(0,COUNTIF($J$1:J193,raw_resource_build!$B$2:$B$1000), 0),0), \"\")","v":""},{"$f":"IF(J194=\"\", \"\", INDEX(raw_resource_build!E:E, MATCH(J194, raw_resource_build!B:B, 0)))","v":""},{"$f":"IF(J194=\"\", \"\", INDEX(raw_resource_build!C:C, MATCH(J194, raw_resource_build!B:B, 0)))","v":""},null,{"$f":"raw_resource_build!B194","v":"LDWP_Coal"},"Non-wind",{"$f":"IFERROR(INDEX($E$5:$E$32,MATCH(raw_resource_build!$E194,Lists!$B$5:$B$32,0)),\"Non-CAISO\")","v":"Non-CAISO"},null,{"$f":"raw_annual_energy!C194","v":"CAISO_Geothermal_for_CAISO"},{"$f":"INDEX(K:K,MATCH(R194,Lists!J:J,0))","v":"Geothermal"},"Non-wind",null,null,null,null,{"$f":"raw_fuel_burn!A194","v":"IID_Peaker"},{"$f":"INDEX(K:K,MATCH(Y194,Lists!J:J,0))","v":"IID_Peaker"}]
[null,null,null,null,null,null,null,null,null,{"$f":"IFERROR(INDEX(raw_resource_build!$B$2:$B$1000,MATCH(0,COUNTIF($J$1:J194,raw_resource_build!$B$2:$B$1000), 0),0), \"\")","v":""},{"$f":"IF(J195=\"\", \"\", INDEX(raw_resource_build!E:E, MATCH(J195, raw_resource_build!B:B, 0)))","v":""},{"$f":"IF(J195=\"\", \"\", INDEX(raw_resource_build!C:C, MATCH(J195, raw_resource_build!B:B, 0)))","v":""},null,{"$f":"raw_resource_build!B195","v":"LDWP_CCGT"},{"$f":"IFERROR(INDEX($C$35:$C$99,MATCH($N195,$B$35:$B$99,0)),\"Non-wind\")","v":"Non-wind"},{"$f":"IFERROR(INDEX($E$5:$E$32,MATCH(raw_resource_build!$E195,Lists!$B$5:$B$32,0)),\"Non-CAISO\")","v":"Non-CAISO"},null,{"$f":"raw_annual_energy!C195","v":"CAISO_Geothermal_for_Other"},{"$f":"INDEX(K:K,MATCH(R195,Lists!J:J,0))","v":"Geothermal"},{"$f":"IFERROR(INDEX($C$35:$C$99,MATCH($R195,$B$35:$B$99,0)),\"Non-wind\")","v":"Non-wind"},null,null,null,null,{"$f":"raw_fuel_burn!A195","v":"LDWP_CCGT"},{"$f":"INDEX(K:K,MATCH(Y195,Lists!J:J,0))","v":"LDWP_CCGT"}]
[null,null,null,null,null,null,null,null,null,{"$f":"IFERROR(INDEX(raw_resource_build!$B$2:$B$1000,MATCH(0,COUNTIF($J$1:J195,raw_resource_build!$B$2:$B$1000), 0),0), \"\")","v":""},{"$f":"IF(J196=\"\", \"\", INDEX(raw_resource_build!E:E, MATCH(J196, raw_resource_build!B:B, 0)))","v":""},{"$f":"IF(J196=\"\", \"\", INDEX(raw_resource_build!C:C, MATCH(J196, raw_resource_build!B:B, 0)))","v":""},null,{"$f":"raw_resource_build!B196","v":"LDWP_Peaker"},"Non-wind",{"$f":"IFERROR(INDEX($E$5:$E$32,MATCH(raw_resource_build!$E196,Lists!$B$5:$B$32,0)),\"Non-CAISO\")","v":"Non-CAISO"},null,{"$f":"raw_annual_energy!C196","v":"CAISO_Geothermal_for_Other"},{"$f":"INDEX(K:K,MATCH(R196,Lists!J:J,0))","v":"Geothermal"},"Non-wind",null,null,null,null,{"$f":"raw_fuel_burn!A196","v":"LDWP_CCGT"},{"$f":"INDEX(K:K,MATCH(Y196,Lists!J:J,0))","v":"LDWP_CCGT"}]
[null,null,null,null,null,null,null,null,null,{"$f":"IFERROR(INDEX(raw_resource_build!$B$2:$B$1000,MATCH(0,COUNTIF($J$1:J196,raw_resource_build!$B$2:$B$1000), 0),0), \"\")","v":""},{"$f":"IF(J197=\"\", \"\", INDEX(raw_resource_build!E:E, MATCH(J197, raw_resource_build!B:B, 0)))","v":""},{"$f":"IF(J197=\"\", \"\", INDEX(raw_resource_build!C:C, MATCH(J197, raw_resource_build!B:B, 0)))","v":""},null,{"$f":"raw_resource_build!B197","v":"LDWP_ST"},"Non-wind",{"$f":"IFERROR(INDEX($E$5:$E$32,MATCH(raw_resource_build!$E197,Lists!$B$5:$B$32,0)),\"Non-CAISO\")","v":"Non-CAISO"},null,{"$f":"raw_annual_energy!C197","v":"CAISO_Geothermal_for_Other"},{"$f":"INDEX(K:K,MATCH(R197,Lists!J:J,0))","v":"Geothermal"},"Non-wind",null,null,null,null,{"$f":"raw_fuel_burn!A197","v":"LDWP_CCGT"},{"$f":"INDEX(K:K,MATCH(Y197,Lists!J:J,0))","v":"LDWP_CCGT"}]
[null,null,null,null,null,null,null,null,null,{"$f":"IFERROR(INDEX(raw_resource_build!$B$2:$B$1000,MATCH(0,COUNTIF($J$1:J197,raw_resource_build!$B$2:$B$1000), 0),0), \"\")","v":""},{"$f":"IF(J198=\"\", \"\", INDEX(raw_resource_build!E:E, MATCH(J198, raw_resource_build!B:B, 0)))","v":""},{"$f":"IF(J198=\"\", \"\", INDEX(raw_resource_build!C:C, MATCH(J198, raw_resource_build!B:B, 0)))","v":""},null,{"$f":"raw_resource_build!B198","v":"IID_CCGT"},"Non-wind",{"$f":"IFERROR(INDEX($E$5:$E$32,MATCH(raw_resource_build!$E198,Lists!$B$5:$B$32,0)),\"Non-CAISO\")","v":"Non-CAISO"},null,{"$f":"raw_annual_energy!C198","v":"CAISO_Geothermal_for_Other"},{"$f":"INDEX(K:K,MATCH(R198,Lists!J:J,0))","v":"Geothermal"},"Non-wind",null,null,null,null,{"$f":"raw_fuel_burn!A198","v":"LDWP_CCGT"},{"$f":"INDEX(K:K,MATCH(Y198,Lists!J:J,0))","v":"LDWP_CCGT"}]
[null,null,null,null,null,null,null,null,null,{"$f":"IFERROR(INDEX(raw_resource_build!$B$2:$B$1000,MATCH(0,COUNTIF($J$1:J198,raw_resource_build!$B$2:$B$1000), 0),0), \"\")","v":""},{"$f":"IF(J199=\"\", \"\", INDEX(raw_resource_build!E:E, MATCH(J199, raw_resource_build!B:B, 0)))","v":""},{"$f":"IF(J199=\"\", \"\", INDEX(raw_resource_build!C:C, MATCH(J199, raw_resource_build!B:B, 0)))","v":""},null,{"$f":"raw_resource_build!B199","v":"IID_Peaker"},"Non-wind",{"$f":"IFERROR(INDEX($E$5:$E$32,MATCH(raw_resource_build!$E199,Lists!$B$5:$B$32,0)),\"Non-CAISO\")","v":"Non-CAISO"},null,{"$f":"raw_annual_energy!C199","v":"CAISO_Geothermal_for_Other"},{"$f":"INDEX(K:K,MATCH(R199,Lists!J:J,0))","v":"Geothermal"},"Non-wind",null,null,null,null,{"$f":"raw_fuel_burn!A199","v":"LDWP_CCGT"},{"$f":"INDEX(K:K,MATCH(Y199,Lists!J:J,0))","v":"LDWP_CCGT"}]
[null,null,null,null,null,null,null,null,null,{"$f":"IFERROR(INDEX(raw_resource_build!$B$2:$B$1000,MATCH(0,COUNTIF($J$1:J199,raw_resource_build!$B$2:$B$1000), 0),0), \"\")","v":""},{"$f":"IF(J200=\"\", \"\", INDEX(raw_resource_build!E:E, MATCH(J200, raw_resource_build!B:B, 0)))","v":""},{"$f":"IF(J200=\"\", \"\", INDEX(raw_resource_build!C:C, MATCH(J200, raw_resource_build!B:B, 0)))","v":""},null,{"$f":"raw_resource_build!B200","v":"BANC_CCGT"},"Non-wind",{"$f":"IFERROR(INDEX($E$5:$E$32,MATCH(raw_resource_build!$E200,Lists!$B$5:$B$32,0)),\"Non-CAISO\")","v":"Non-CAISO"},null,{"$f":"raw_annual_energy!C200","v":"CAISO_Geothermal_for_Other"},{"$f":"INDEX(K:K,MATCH(R200,Lists!J:J,0))","v":"Geothermal"},"Non-wind",null,null,null,null,{"$f":"raw_fuel_burn!A200","v":"LDWP_CCGT"},{"$f":"INDEX(K:K,MATCH(Y200,Lists!J:J,0))","v":"LDWP_CCGT"}]
[null,null,null,null,null,null,null,null,null,{"$f":"IFERROR(INDEX(raw_resource_build!$B$2:$B$1000,MATCH(0,COUNTIF($J$1:J200,raw_resource_build!$B$2:$B$1000), 0),0), \"\")","v":""},{"$f":"IF(J201=\"\", \"\", INDEX(raw_resource_build!E:E, MATCH(J201, raw_resource_build!B:B, 0)))","v":""},{"$f":"IF(J201=\"\", \"\", INDEX(raw_resource_build!C:C, MATCH(J201, raw_resource_build!B:B, 0)))","v":""},null,{"$f":"raw_resource_build!B201","v":"BANC_Peaker"},"Non-wind",{"$f":"IFERROR(INDEX($E$5:$E$32,MATCH(raw_resource_build!$E201,Lists!$B$5:$B$32,0)),\"Non-CAISO\")","v":"Non-CAISO"},null,{"$f":"raw_annual_energy!C201","v":"CAISO_Geothermal_for_Other"},{"$f":"INDEX(K:K,MATCH(R201,Lists!J:J,0))","v":"Geothermal"},"Non-wind",null,null,null,null,{"$f":"raw_fuel_burn!A201","v":"LDWP_CCGT"},{"$f":"INDEX(K:K,MATCH(Y201,Lists!J:J,0))","v":"LDWP_CCGT"}]
[null,null,null,null,null,null,null,null,null,{"$f":"IFERROR(INDEX(raw_resource_build!$B$2:$B$1000,MATCH(0,COUNTIF($J$1:J201,raw_resource_build!$B$2:$B$1000), 0),0), \"\")","v":""},{"$f":"IF(J202=\"\", \"\", INDEX(raw_resource_build!E:E, MATCH(J202, raw_resource_build!B:B, 0)))","v":""},{"$f":"IF(J202=\"\", \"\", INDEX(raw_resource_build!C:C, MATCH(J202, raw_resource_build!B:B, 0)))","v":""},null,{"$f":"raw_resource_build!B202","v":"BANC_Biomass_for_Other"},"Non-wind",{"$f":"IFERROR(INDEX($E$5:$E$32,MATCH(raw_resource_build!$E202,Lists!$B$5:$B$32,0)),\"Non-CAISO\")","v":"Biomass"},null,{"$f":"raw_annual_energy!C202","v":"CAISO_Geothermal_for_Other"},{"$f":"INDEX(K:K,MATCH(R202,Lists!J:J,0))","v":"Geothermal"},"Non-wind",null,null,null,null,{"$f":"raw_fuel_burn!A202","v":"LDWP_CCGT"},{"$f":"INDEX(K:K,MATCH(Y202,Lists!J:J,0))","v":"LDWP_CCGT"}]
[null,null,null,null,null,null,null,null,null,{"$f":"IFERROR(INDEX(raw_resource_build!$B$2:$B$1000,MATCH(0,COUNTIF($J$1:J202,raw_resource_build!$B$2:$B$1000), 0),0), \"\")","v":""},{"$f":"IF(J203=\"\", \"\", INDEX(raw_resource_build!E:E, MATCH(J203, raw_resource_build!B:B, 0)))","v":""},{"$f":"IF(J203=\"\", \"\", INDEX(raw_resource_build!C:C, MATCH(J203, raw_resource_build!B:B, 0)))","v":""},null,{"$f":"raw_resource_build!B203","v":"BANC_Geothermal_for_Other"},"Non-wind",{"$f":"IFERROR(INDEX($E$5:$E$32,MATCH(raw_resource_build!$E203,Lists!$B$5:$B$32,0)),\"Non-CAISO\")","v":"Geothermal"},null,{"$f":"raw_annual_energy!C203","v":"CAISO_Hydro"},{"$f":"INDEX(K:K,MATCH(R203,Lists!J:J,0))","v":"Hydro"},"Non-wind",null,null,null,null,{"$f":"raw_fuel_burn!A203","v":"LDWP_Coal"},{"$f":"INDEX(K:K,MATCH(Y203,Lists!J:J,0))","v":"LDWP_Coal"}]
[null,null,null,null,null,null,null,null,null,{"$f":"IFERROR(INDEX(raw_resource_build!$B$2:$B$1000,MATCH(0,COUNTIF($J$1:J203,raw_resource_build!$B$2:$B$1000), 0),0), \"\")","v":""},{"$f":"IF(J204=\"\", \"\", INDEX(raw_resource_build!E:E, MATCH(J204, raw_resource_build!B:B, 0)))","v":""},{"$f":"IF(J204=\"\", \"\", INDEX(raw_resource_build!C:C, MATCH(J204, raw_resource_build!B:B, 0)))","v":""},null,{"$f":"raw_resource_build!B204","v":"CAISO_Biomass_for_Other"},"Non-wind",{"$f":"IFERROR(INDEX($E$5:$E$32,MATCH(raw_resource_build!$E204,Lists!$B$5:$B$32,0)),\"Non-CAISO\")","v":"Biomass"},null,{"$f":"raw_annual_energy!C204","v":"CAISO_Hydro"},{"$f":"INDEX(K:K,MATCH(R204,Lists!J:J,0))","v":"Hydro"},"Non-wind",null,null,null,null,{"$f":"raw_fuel_burn!A204","v":"LDWP_Coal"},{"$f":"INDEX(K:K,MATCH(Y204,Lists!J:J,0))","v":"LDWP_Coal"}]
[null,null,null,null,null,null,null,null,null,{"$f":"IFERROR(INDEX(raw_resource_build!$B$2:$B$1000,MATCH(0,COUNTIF($J$1:J204,raw_resource_build!$B$2:$B$1000), 0),0), \"\")","v":""},{"$f":"IF(J205=\"\", \"\", INDEX(raw_resource_build!E:E, MATCH(J205, raw_resource_build!B:B, 0)))","v":""},{"$f":"IF(J205=\"\", \"\", INDEX(raw_resource_build!C:C, MATCH(J205, raw_resource_build!B:B, 0)))","v":""},null,{"$f":"raw_resource_build!B205","v":"CAISO_Geothermal_for_Other"},"Non-wind",{"$f":"IFERROR(INDEX($E$5:$E$32,MATCH(raw_resource_build!$E205,Lists!$B$5:$B$32,0)),\"Non-CAISO\")","v":"Geothermal"},null,{"$f":"raw_annual_energy!C205","v":"CAISO_Hydro"},{"$f":"INDEX(K:K,MATCH(R205,Lists!J:J,0))","v":"Hydro"},"Non-wind",null,null,null,null,{"$f":"raw_fuel_burn!A205","v":"LDWP_Coal"},{"$f":"INDEX(K:K,MATCH(Y205,Lists!J:J,0))","v":"LDWP_Coal"}]
[null,null,null,null,null,null,null,null,null,{"$f":"IFERROR(INDEX(raw_resource_build!$B$2:$B$1000,MATCH(0,COUNTIF($J$1:J205,raw_resource_build!$B$2:$B$1000), 0),0), \"\")","v":""},{"$f":"IF(J206=\"\", \"\", INDEX(raw_resource_build!E:E, MATCH(J206, raw_resource_build!B:B, 0)))","v":""},{"$f":"IF(J206=\"\", \"\", INDEX(raw_resource_build!C:C, MATCH(J206, raw_resource_build!B:B, 0)))","v":""},null,{"$f":"raw_resource_build!B206","v":"IID_Biomass_for_Other"},"Non-wind",{"$f":"IFERROR(INDEX($E$5:$E$32,MATCH(raw_resource_build!$E206,Lists!$B$5:$B$32,0)),\"Non-CAISO\")","v":"Biomass"},null,{"$f":"raw_annual_energy!C206","v":"CAISO_Hydro"},{"$f":"INDEX(K:K,MATCH(R206,Lists!J:J,0))","v":"Hydro"},"Non-wind",null,null,null,null,{"$f":"raw_fuel_burn!A206","v":"LDWP_Coal"},{"$f":"INDEX(K:K,MATCH(Y206,Lists!J:J,0))","v":"LDWP_Coal"}]
[null,null,null,null,null,null,null,null,null,{"$f":"IFERROR(INDEX(raw_resource_build!$B$2:$B$1000,MATCH(0,COUNTIF($J$1:J206,raw_resource_build!$B$2:$B$1000), 0),0), \"\")","v":""},{"$f":"IF(J207=\"\", \"\", INDEX(raw_resource_build!E:E, MATCH(J207, raw_resource_build!B:B, 0)))","v":""},{"$f":"IF(J207=\"\", \"\", INDEX(raw_resource_build!C:C, MATCH(J207, raw_resource_build!B:B, 0)))","v":""},null,{"$f":"raw_resource_build!B207","v":"IID_Geothermal_for_Other"},"Non-wind",{"$f":"IFERROR(INDEX($E$5:$E$32,MATCH(raw_resource_build!$E207,Lists!$B$5:$B$32,0)),\"Non-CAISO\")","v":"Geothermal"},null,{"$f":"raw_annual_energy!C207","v":"CAISO_Hydro"},{"$f":"INDEX(K:K,MATCH(R207,Lists!J:J,0))","v":"Hydro"},"Non-wind",null,null,null,null,{"$f":"raw_fuel_burn!A207","v":"LDWP_Coal"},{"$f":"INDEX(K:K,MATCH(Y207,Lists!J:J,0))","v":"LDWP_Coal"}]
[null,null,null,null,null,null,null,null,null,{"$f":"IFERROR(INDEX(raw_resource_build!$B$2:$B$1000,MATCH(0,COUNTIF($J$1:J207,raw_resource_build!$B$2:$B$1000), 0),0), \"\")","v":""},{"$f":"IF(J208=\"\", \"\", INDEX(raw_resource_build!E:E, MATCH(J208, raw_resource_build!B:B, 0)))","v":""},{"$f":"IF(J208=\"\", \"\", INDEX(raw_resource_build!C:C, MATCH(J208, raw_resource_build!B:B, 0)))","v":""},null,{"$f":"raw_resource_build!B208","v":"LDWP_Biomass_for_Other"},"Non-wind",{"$f":"IFERROR(INDEX($E$5:$E$32,MATCH(raw_resource_build!$E208,Lists!$B$5:$B$32,0)),\"Non-CAISO\")","v":"Biomass"},null,{"$f":"raw_annual_energy!C208","v":"CAISO_Hydro"},{"$f":"INDEX(K:K,MATCH(R208,Lists!J:J,0))","v":"Hydro"},"Non-wind",null,null,null,null,{"$f":"raw_fuel_burn!A208","v":"LDWP_Coal"},{"$f":"INDEX(K:K,MATCH(Y208,Lists!J:J,0))","v":"LDWP_Coal"}]
[null,null,null,null,null,null,null,null,null,{"$f":"IFERROR(INDEX(raw_resource_build!$B$2:$B$1000,MATCH(0,COUNTIF($J$1:J208,raw_resource_build!$B$2:$B$1000), 0),0), \"\")","v":""},{"$f":"IF(J209=\"\", \"\", INDEX(raw_resource_build!E:E, MATCH(J209, raw_resource_build!B:B, 0)))","v":""},{"$f":"IF(J209=\"\", \"\", INDEX(raw_resource_build!C:C, MATCH(J209, raw_resource_build!B:B, 0)))","v":""},null,{"$f":"raw_resource_build!B209","v":"LDWP_Geothermal_for_Other"},"Non-wind",{"$f":"IFERROR(INDEX($E$5:$E$32,MATCH(raw_resource_build!$E209,Lists!$B$5:$B$32,0)),\"Non-CAISO\")","v":"Geothermal"},null,{"$f":"raw_annual_energy!C209","v":"CAISO_Hydro"},{"$f":"INDEX(K:K,MATCH(R209,Lists!J:J,0))","v":"Hydro"},"Non-wind",null,null,null,null,{"$f":"raw_fuel_burn!A209","v":"LDWP_Coal"},{"$f":"INDEX(K:K,MATCH(Y209,Lists!J:J,0))","v":"LDWP_Coal"}]
[null,null,null,null,null,null,null,null,null,{"$f":"IFERROR(INDEX(raw_resource_build!$B$2:$B$1000,MATCH(0,COUNTIF($J$1:J209,raw_resource_build!$B$2:$B$1000), 0),0), \"\")","v":""},{"$f":"IF(J210=\"\", \"\", INDEX(raw_resource_build!E:E, MATCH(J210, raw_resource_build!B:B, 0)))","v":""},{"$f":"IF(J210=\"\", \"\", INDEX(raw_resource_build!C:C, MATCH(J210, raw_resource_build!B:B, 0)))","v":""},null,{"$f":"raw_resource_build!B210","v":"NW_Biomass_for_Other"},"Non-wind",{"$f":"IFERROR(INDEX($E$5:$E$32,MATCH(raw_resource_build!$E210,Lists!$B$5:$B$32,0)),\"Non-CAISO\")","v":"Biomass"},null,{"$f":"raw_annual_energy!C210","v":"CAISO_Hydro"},{"$f":"INDEX(K:K,MATCH(R210,Lists!J:J,0))","v":"Hydro"},"Non-wind",null,null,null,null,{"$f":"raw_fuel_burn!A210","v":"LDWP_Coal"},{"$f":"INDEX(K:K,MATCH(Y210,Lists!J:J,0))","v":"LDWP_Coal"}]
[null,null,null,null,null,null,null,null,null,{"$f":"IFERROR(INDEX(raw_resource_build!$B$2:$B$1000,MATCH(0,COUNTIF($J$1:J210,raw_resource_build!$B$2:$B$1000), 0),0), \"\")","v":""},{"$f":"IF(J211=\"\", \"\", INDEX(raw_resource_build!E:E, MATCH(J211, raw_resource_build!B:B, 0)))","v":""},{"$f":"IF(J211=\"\", \"\", INDEX(raw_resource_build!C:C, MATCH(J211, raw_resource_build!B:B, 0)))","v":""},null,{"$f":"raw_resource_build!B211","v":"NW_Geothermal_for_Other"},"Non-wind",{"$f":"IFERROR(INDEX($E$5:$E$32,MATCH(raw_resource_build!$E211,Lists!$B$5:$B$32,0)),\"Non-CAISO\")","v":"Geothermal"},null,{"$f":"raw_annual_energy!C211","v":"CAISO_New_Flow_Battery"},{"$f":"INDEX(K:K,MATCH(R211,Lists!J:J,0))","v":"Flow_Battery"},"Non-wind",null,null,null,null,{"$f":"raw_fuel_burn!A211","v":"LDWP_Nuclear"},{"$f":"INDEX(K:K,MATCH(Y211,Lists!J:J,0))","v":"LDWP_Nuclear"}]
[null,null,null,null,null,null,null,null,null,{"$f":"IFERROR(INDEX(raw_resource_build!$B$2:$B$1000,MATCH(0,COUNTIF($J$1:J211,raw_resource_build!$B$2:$B$1000), 0),0), \"\")","v":""},{"$f":"IF(J212=\"\", \"\", INDEX(raw_resource_build!E:E, MATCH(J212, raw_resource_build!B:B, 0)))","v":""},{"$f":"IF(J212=\"\", \"\", INDEX(raw_resource_build!C:C, MATCH(J212, raw_resource_build!B:B, 0)))","v":""},null,{"$f":"raw_resource_build!B212","v":"SW_Biomass_for_Other"},"Non-wind",{"$f":"IFERROR(INDEX($E$5:$E$32,MATCH(raw_resource_build!$E212,Lists!$B$5:$B$32,0)),\"Non-CAISO\")","v":"Biomass"},null,{"$f":"raw_annual_energy!C212","v":"CAISO_New_Flow_Battery"},{"$f":"INDEX(K:K,MATCH(R212,Lists!J:J,0))","v":"Flow_Battery"},"Non-wind",null,null,null,null,{"$f":"raw_fuel_burn!A212","v":"LDWP_Nuclear"},{"$f":"INDEX(K:K,MATCH(Y212,Lists!J:J,0))","v":"LDWP_Nuclear"}]
[null,null,null,null,null,null,null,null,null,{"$f":"IFERROR(INDEX(raw_resource_build!$B$2:$B$1000,MATCH(0,COUNTIF($J$1:J212,raw_resource_build!$B$2:$B$1000), 0),0), \"\")","v":""},{"$f":"IF(J213=\"\", \"\", INDEX(raw_resource_build!E:E, MATCH(J213, raw_resource_build!B:B, 0)))","v":""},{"$f":"IF(J213=\"\", \"\", INDEX(raw_resource_build!C:C, MATCH(J213, raw_resource_build!B:B, 0)))","v":""},null,{"$f":"raw_resource_build!B213","v":"SW_Geothermal_for_Other"},"Non-wind",{"$f":"IFERROR(INDEX($E$5:$E$32,MATCH(raw_resource_build!$E213,Lists!$B$5:$B$32,0)),\"Non-CAISO\")","v":"Geothermal"},null,{"$f":"raw_annual_energy!C213","v":"CAISO_New_Flow_Battery"},{"$f":"INDEX(K:K,MATCH(R213,Lists!J:J,0))","v":"Flow_Battery"},"Non-wind",null,null,null,null,{"$f":"raw_fuel_burn!A213","v":"LDWP_Nuclear"},{"$f":"INDEX(K:K,MATCH(Y213,Lists!J:J,0))","v":"LDWP_Nuclear"}]
[null,null,null,null,null,null,null,null,null,{"$f":"IFERROR(INDEX(raw_resource_build!$B$2:$B$1000,MATCH(0,COUNTIF($J$1:J213,raw_resource_build!$B$2:$B$1000), 0),0), \"\")","v":""},{"$f":"IF(J214=\"\", \"\", INDEX(raw_resource_build!E:E, MATCH(J214, raw_resource_build!B:B, 0)))","v":""},{"$f":"IF(J214=\"\", \"\", INDEX(raw_resource_build!C:C, MATCH(J214, raw_resource_build!B:B, 0)))","v":""},null,{"$f":"raw_resource_build!B214","v":"CAISO_Biomass_for_CAISO"},"Non-wind",{"$f":"IFERROR(INDEX($E$5:$E$32,MATCH(raw_resource_build!$E214,Lists!$B$5:$B$32,0)),\"Non-CAISO\")","v":"Biomass"},null,{"$f":"raw_annual_energy!C214","v":"CAISO_New_Flow_Battery"},{"$f":"INDEX(K:K,MATCH(R214,Lists!J:J,0))","v":"Flow_Battery"},"Non-wind",null,null,null,null,{"$f":"raw_fuel_burn!A214","v":"LDWP_Nuclear"},{"$f":"INDEX(K:K,MATCH(Y214,Lists!J:J,0))","v":"LDWP_Nuclear"}]
[null,null,null,null,null,null,null,null,null,{"$f":"IFERROR(INDEX(raw_resource_build!$B$2:$B$1000,MATCH(0,COUNTIF($J$1:J214,raw_resource_build!$B$2:$B$1000), 0),0), \"\")","v":""},{"$f":"IF(J215=\"\", \"\", INDEX(raw_resource_build!E:E, MATCH(J215, raw_resource_build!B:B, 0)))","v":""},{"$f":"IF(J215=\"\", \"\", INDEX(raw_resource_build!C:C, MATCH(J215, raw_resource_build!B:B, 0)))","v":""},null,{"$f":"raw_resource_build!B215","v":"CAISO_Geothermal_for_CAISO"},"Non-wind",{"$f":"IFERROR(INDEX($E$5:$E$32,MATCH(raw_resource_build!$E215,Lists!$B$5:$B$32,0)),\"Non-CAISO\")","v":"Geothermal"},null,{"$f":"raw_annual_energy!C215","v":"CAISO_New_Flow_Battery"},{"$f":"INDEX(K:K,MATCH(R215,Lists!J:J,0))","v":"Flow_Battery"},"Non-wind",null,null,null,null,{"$f":"raw_fuel_burn!A215","v":"LDWP_Nuclear"},{"$f":"INDEX(K:K,MATCH(Y215,Lists!J:J,0))","v":"LDWP_Nuclear"}]
[null,null,null,null,null,null,null,null,null,{"$f":"IFERROR(INDEX(raw_resource_build!$B$2:$B$1000,MATCH(0,COUNTIF($J$1:J215,raw_resource_build!$B$2:$B$1000), 0),0), \"\")","v":""},{"$f":"IF(J216=\"\", \"\", INDEX(raw_resource_build!E:E, MATCH(J216, raw_resource_build!B:B, 0)))","v":""},{"$f":"IF(J216=\"\", \"\", INDEX(raw_resource_build!C:C, MATCH(J216, raw_resource_build!B:B, 0)))","v":""},null,{"$f":"raw_resource_build!B216","v":"IID_Geothermal_for_CAISO"},"Non-wind",{"$f":"IFERROR(INDEX($E$5:$E$32,MATCH(raw_resource_build!$E216,Lists!$B$5:$B$32,0)),\"Non-CAISO\")","v":"Geothermal"},null,{"$f":"raw_annual_energy!C216","v":"CAISO_New_Flow_Battery"},{"$f":"INDEX(K:K,MATCH(R216,Lists!J:J,0))","v":"Flow_Battery"},"Non-wind",null,null,null,null,{"$f":"raw_fuel_burn!A216","v":"LDWP_Nuclear"},{"$f":"INDEX(K:K,MATCH(Y216,Lists!J:J,0))","v":"LDWP_Nuclear"}]
[null,null,null,null,null,null,null,null,null,{"$f":"IFERROR(INDEX(raw_resource_build!$B$2:$B$1000,MATCH(0,COUNTIF($J$1:J216,raw_resource_build!$B$2:$B$1000), 0),0), \"\")","v":""},{"$f":"IF(J217=\"\", \"\", INDEX(raw_resource_build!E:E, MATCH(J217, raw_resource_build!B:B, 0)))","v":""},{"$f":"IF(J217=\"\", \"\", INDEX(raw_resource_build!C:C, MATCH(J217, raw_resource_build!B:B, 0)))","v":""},null,{"$f":"raw_resource_build!B217","v":"NW_Biomass_for_CAISO"},"Non-wind",{"$f":"IFERROR(INDEX($E$5:$E$32,MATCH(raw_resource_build!$E217,Lists!$B$5:$B$32,0)),\"Non-CAISO\")","v":"Biomass"},null,{"$f":"raw_annual_energy!C217","v":"CAISO_New_Flow_Battery"},{"$f":"INDEX(K:K,MATCH(R217,Lists!J:J,0))","v":"Flow_Battery"},"Non-wind",null,null,null,null,{"$f":"raw_fuel_burn!A217","v":"LDWP_Nuclear"},{"$f":"INDEX(K:K,MATCH(Y217,Lists!J:J,0))","v":"LDWP_Nuclear"}]
[null,null,null,null,null,null,null,null,null,{"$f":"IFERROR(INDEX(raw_resource_build!$B$2:$B$1000,MATCH(0,COUNTIF($J$1:J217,raw_resource_build!$B$2:$B$1000), 0),0), \"\")","v":""},{"$f":"IF(J218=\"\", \"\", INDEX(raw_resource_build!E:E, MATCH(J218, raw_resource_build!B:B, 0)))","v":""},{"$f":"IF(J218=\"\", \"\", INDEX(raw_resource_build!C:C, MATCH(J218, raw_resource_build!B:B, 0)))","v":""},null,{"$f":"raw_resource_build!B218","v":"NW_Geothermal_for_CAISO"},"Non-wind",{"$f":"IFERROR(INDEX($E$5:$E$32,MATCH(raw_resource_build!$E218,Lists!$B$5:$B$32,0)),\"Non-CAISO\")","v":"Geothermal"},null,{"$f":"raw_annual_energy!C218","v":"CAISO_New_Flow_Battery"},{"$f":"INDEX(K:K,MATCH(R218,Lists!J:J,0))","v":"Flow_Battery"},"Non-wind",null,null,null,null,{"$f":"raw_fuel_burn!A218","v":"LDWP_Nuclear"},{"$f":"INDEX(K:K,MATCH(Y218,Lists!J:J,0))","v":"LDWP_Nuclear"}]
[null,null,null,null,null,null,null,null,null,{"$f":"IFERROR(INDEX(raw_resource_build!$B$2:$B$1000,MATCH(0,COUNTIF($J$1:J218,raw_resource_build!$B$2:$B$1000), 0),0), \"\")","v":""},{"$f":"IF(J219=\"\", \"\", INDEX(raw_resource_build!E:E, MATCH(J219, raw_resource_build!B:B, 0)))","v":""},{"$f":"IF(J219=\"\", \"\", INDEX(raw_resource_build!C:C, MATCH(J219, raw_resource_build!B:B, 0)))","v":""},null,{"$f":"raw_resource_build!B219","v":"InState_Biomass"},"In-State",{"$f":"IFERROR(INDEX($E$5:$E$32,MATCH(raw_resource_build!$E219,Lists!$B$5:$B$32,0)),\"Non-CAISO\")","v":"Biomass"},null,{"$f":"raw_annual_energy!C219","v":"CAISO_New_Flow_Battery_2"},{"$f":"INDEX(K:K,MATCH(R219,Lists!J:J,0))","v":"Flow_Battery"},"Non-wind",null,null,null,null,{"$f":"raw_fuel_burn!A219","v":"LDWP_Peaker"},{"$f":"INDEX(K:K,MATCH(Y219,Lists!J:J,0))","v":"LDWP_Peaker"}]
[null,null,null,null,null,null,null,null,null,{"$f":"IFERROR(INDEX(raw_resource_build!$B$2:$B$1000,MATCH(0,COUNTIF($J$1:J219,raw_resource_build!$B$2:$B$1000), 0),0), \"\")","v":""},{"$f":"IF(J220=\"\", \"\", INDEX(raw_resource_build!E:E, MATCH(J220, raw_resource_build!B:B, 0)))","v":""},{"$f":"IF(J220=\"\", \"\", INDEX(raw_resource_build!C:C, MATCH(J220, raw_resource_build!B:B, 0)))","v":""},null,{"$f":"raw_resource_build!B220","v":"CAISO_Small_Hydro_for_CAISO"},"Non-wind",{"$f":"IFERROR(INDEX($E$5:$E$32,MATCH(raw_resource_build!$E220,Lists!$B$5:$B$32,0)),\"Non-CAISO\")","v":"Hydro (small + large)"},null,{"$f":"raw_annual_energy!C220","v":"CAISO_New_Flow_Battery_2"},{"$f":"INDEX(K:K,MATCH(R220,Lists!J:J,0))","v":"Flow_Battery"},"Non-wind",null,null,null,null,{"$f":"raw_fuel_burn!A220","v":"LDWP_Peaker"},{"$f":"INDEX(K:K,MATCH(Y220,Lists!J:J,0))","v":"LDWP_Peaker"}]
[null,null,null,null,null,null,null,null,null,{"$f":"IFERROR(INDEX(raw_resource_build!$B$2:$B$1000,MATCH(0,COUNTIF($J$1:J220,raw_resource_build!$B$2:$B$1000), 0),0), \"\")","v":""},{"$f":"IF(J221=\"\", \"\", INDEX(raw_resource_build!E:E, MATCH(J221, raw_resource_build!B:B, 0)))","v":""},{"$f":"IF(J221=\"\", \"\", INDEX(raw_resource_build!C:C, MATCH(J221, raw_resource_build!B:B, 0)))","v":""},null,{"$f":"raw_resource_build!B221","v":"BANC_Small_Hydro_for_CAISO"},"Non-wind",{"$f":"IFERROR(INDEX($E$5:$E$32,MATCH(raw_resource_build!$E221,Lists!$B$5:$B$32,0)),\"Non-CAISO\")","v":"Hydro (small + large)"},null,{"$f":"raw_annual_energy!C221","v":"CAISO_New_Flow_Battery_2"},{"$f":"INDEX(K:K,MATCH(R221,Lists!J:J,0))","v":"Flow_Battery"},"Non-wind",null,null,null,null,{"$f":"raw_fuel_burn!A221","v":"LDWP_Peaker"},{"$f":"INDEX(K:K,MATCH(Y221,Lists!J:J,0))","v":"LDWP_Peaker"}]
[null,null,null,null,null,null,null,null,null,{"$f":"IFERROR(INDEX(raw_resource_build!$B$2:$B$1000,MATCH(0,COUNTIF($J$1:J221,raw_resource_build!$B$2:$B$1000), 0),0), \"\")","v":""},{"$f":"IF(J222=\"\", \"\", INDEX(raw_resource_build!E:E, MATCH(J222, raw_resource_build!B:B, 0)))","v":""},{"$f":"IF(J222=\"\", \"\", INDEX(raw_resource_build!C:C, MATCH(J222, raw_resource_build!B:B, 0)))","v":""},null,{"$f":"raw_resource_build!B222","v":"NW_Small_Hydro_for_CAISO"},"Non-wind",{"$f":"IFERROR(INDEX($E$5:$E$32,MATCH(raw_resource_build!$E222,Lists!$B$5:$B$32,0)),\"Non-CAISO\")","v":"Hydro (small + large)"},null,{"$f":"raw_annual_energy!C222","v":"CAISO_New_Flow_Battery_2"},{"$f":"INDEX(K:K,MATCH(R222,Lists!J:J,0))","v":"Flow_Battery"},"Non-wind",null,null,null,null,{"$f":"raw_fuel_burn!A222","v":"LDWP_Peaker"},{"$f":"INDEX(K:K,MATCH(Y222,Lists!J:J,0))","v":"LDWP_Peaker"}]
[null,null,null,null,null,null,null,null,null,{"$f":"IFERROR(INDEX(raw_resource_build!$B$2:$B$1000,MATCH(0,COUNTIF($J$1:J222,raw_resource_build!$B$2:$B$1000), 0),0), \"\")","v":""},{"$f":"IF(J223=\"\", \"\", INDEX(raw_resource_build!E:E, MATCH(J223, raw_resource_build!B:B, 0)))","v":""},{"$f":"IF(J223=\"\", \"\", INDEX(raw_resource_build!C:C, MATCH(J223, raw_resource_build!B:B, 0)))","v":""},null,{"$f":"raw_resource_build!B223","v":"CAISO_Small_Hydro_for_Other"},"Non-wind",{"$f":"IFERROR(INDEX($E$5:$E$32,MATCH(raw_resource_build!$E223,Lists!$B$5:$B$32,0)),\"Non-CAISO\")","v":"Hydro (small + large)"},null,{"$f":"raw_annual_energy!C223","v":"CAISO_New_Flow_Battery_2"},{"$f":"INDEX(K:K,MATCH(R223,Lists!J:J,0))","v":"Flow_Battery"},"Non-wind",null,null,null,null,{"$f":"raw_fuel_burn!A223","v":"LDWP_Peaker"},{"$f":"INDEX(K:K,MATCH(Y223,Lists!J:J,0))","v":"LDWP_Peaker"}]
[null,null,null,null,null,null,null,null,null,{"$f":"IFERROR(INDEX(raw_resource_build!$B$2:$B$1000,MATCH(0,COUNTIF($J$1:J223,raw_resource_build!$B$2:$B$1000), 0),0), \"\")","v":""},{"$f":"IF(J224=\"\", \"\", INDEX(raw_resource_build!E:E, MATCH(J224, raw_resource_build!B:B, 0)))","v":""},{"$f":"IF(J224=\"\", \"\", INDEX(raw_resource_build!C:C, MATCH(J224, raw_resource_build!B:B, 0)))","v":""},null,{"$f":"raw_resource_build!B224","v":"BANC_Small_Hydro_for_Other"},"Non-wind",{"$f":"IFERROR(INDEX($E$5:$E$32,MATCH(raw_resource_build!$E224,Lists!$B$5:$B$32,0)),\"Non-CAISO\")","v":"Hydro (small + large)"},null,{"$f":"raw_annual_energy!C224","v":"CAISO_New_Flow_Battery_2"},{"$f":"INDEX(K:K,MATCH(R224,Lists!J:J,0))","v":"Flow_Battery"},"Non-wind",null,null,null,null,{"$f":"raw_fuel_burn!A224","v":"LDWP_Peaker"},{"$f":"INDEX(K:K,MATCH(Y224,Lists!J:J,0))","v":"LDWP_Peaker"}]
[null,null,null,null,null,null,null,null,null,{"$f":"IFERROR(INDEX(raw_resource_build!$B$2:$B$1000,MATCH(0,COUNTIF($J$1:J224,raw_resource_build!$B$2:$B$1000), 0),0), \"\")","v":""},{"$f":"IF(J225=\"\", \"\", INDEX(raw_resource_build!E:E, MATCH(J225, raw_resource_build!B:B, 0)))","v":""},{"$f":"IF(J225=\"\", \"\", INDEX(raw_resource_build!C:C, MATCH(J225, raw_resource_build!B:B, 0)))","v":""},null,{"$f":"raw_resource_build!B225","v":"IID_Small_Hydro_for_Other"},"Non-wind",{"$f":"IFERROR(INDEX($E$5:$E$32,MATCH(raw_resource_build!$E225,Lists!$B$5:$B$32,0)),\"Non-CAISO\")","v":"Hydro (small + large)"},null,{"$f":"raw_annual_energy!C225","v":"CAISO_New_Flow_Battery_2"},{"$f":"INDEX(K:K,MATCH(R225,Lists!J:J,0))","v":"Flow_Battery"},"Non-wind",null,null,null,null,{"$f":"raw_fuel_burn!A225","v":"LDWP_Peaker"},{"$f":"INDEX(K:K,MATCH(Y225,Lists!J:J,0))","v":"LDWP_Peaker"}]
[null,null,null,null,null,null,null,null,null,{"$f":"IFERROR(INDEX(raw_resource_build!$B$2:$B$1000,MATCH(0,COUNTIF($J$1:J225,raw_resource_build!$B$2:$B$1000), 0),0), \"\")","v":""},{"$f":"IF(J226=\"\", \"\", INDEX(raw_resource_build!E:E, MATCH(J226, raw_resource_build!B:B, 0)))","v":""},{"$f":"IF(J226=\"\", \"\", INDEX(raw_resource_build!C:C, MATCH(J226, raw_resource_build!B:B, 0)))","v":""},null,{"$f":"raw_resource_build!B226","v":"LDWP_Small_Hydro_for_Other"},"Non-wind",{"$f":"IFERROR(INDEX($E$5:$E$32,MATCH(raw_resource_build!$E226,Lists!$B$5:$B$32,0)),\"Non-CAISO\")","v":"Hydro (small + large)"},null,{"$f":"raw_annual_energy!C226","v":"CAISO_New_Flow_Battery_2"},{"$f":"INDEX(K:K,MATCH(R226,Lists!J:J,0))","v":"Flow_Battery"},"Non-wind",null,null,null,null,{"$f":"raw_fuel_burn!A226","v":"LDWP_Peaker"},{"$f":"INDEX(K:K,MATCH(Y226,Lists!J:J,0))","v":"LDWP_Peaker"}]
[null,null,null,null,null,null,null,null,null,{"$f":"IFERROR(INDEX(raw_resource_build!$B$2:$B$1000,MATCH(0,COUNTIF($J$1:J226,raw_resource_build!$B$2:$B$1000), 0),0), \"\")","v":""},{"$f":"IF(J227=\"\", \"\", INDEX(raw_resource_build!E:E, MATCH(J227, raw_resource_build!B:B, 0)))","v":""},{"$f":"IF(J227=\"\", \"\", INDEX(raw_resource_build!C:C, MATCH(J227, raw_resource_build!B:B, 0)))","v":""},null,{"$f":"raw_resource_build!B227","v":"NW_Small_Hydro_for_Other"},"Non-wind",{"$f":"IFERROR(INDEX($E$5:$E$32,MATCH(raw_resource_build!$E227,Lists!$B$5:$B$32,0)),\"Non-CAISO\")","v":"Hydro (small + large)"},null,{"$f":"raw_annual_energy!C227","v":"CAISO_New_Flow_Battery_3"},{"$f":"INDEX(K:K,MATCH(R227,Lists!J:J,0))","v":"Flow_Battery"},"Non-wind",null,null,null,null,{"$f":"raw_fuel_burn!A227","v":"LDWP_ST"},{"$f":"INDEX(K:K,MATCH(Y227,Lists!J:J,0))","v":"LDWP_ST"}]
[null,null,null,null,null,null,null,null,null,{"$f":"IFERROR(INDEX(raw_resource_build!$B$2:$B$1000,MATCH(0,COUNTIF($J$1:J227,raw_resource_build!$B$2:$B$1000), 0),0), \"\")","v":""},{"$f":"IF(J228=\"\", \"\", INDEX(raw_resource_build!E:E, MATCH(J228, raw_resource_build!B:B, 0)))","v":""},{"$f":"IF(J228=\"\", \"\", INDEX(raw_resource_build!C:C, MATCH(J228, raw_resource_build!B:B, 0)))","v":""},null,{"$f":"raw_resource_build!B228","v":"SW_Small_Hydro_for_Other"},"Non-wind",{"$f":"IFERROR(INDEX($E$5:$E$32,MATCH(raw_resource_build!$E228,Lists!$B$5:$B$32,0)),\"Non-CAISO\")","v":"Hydro (small + large)"},null,{"$f":"raw_annual_energy!C228","v":"CAISO_New_Flow_Battery_3"},{"$f":"INDEX(K:K,MATCH(R228,Lists!J:J,0))","v":"Flow_Battery"},"Non-wind",null,null,null,null,{"$f":"raw_fuel_burn!A228","v":"LDWP_ST"},{"$f":"INDEX(K:K,MATCH(Y228,Lists!J:J,0))","v":"LDWP_ST"}]
[null,null,null,null,null,null,null,null,null,{"$f":"IFERROR(INDEX(raw_resource_build!$B$2:$B$1000,MATCH(0,COUNTIF($J$1:J228,raw_resource_build!$B$2:$B$1000), 0),0), \"\")","v":""},{"$f":"IF(J229=\"\", \"\", INDEX(raw_resource_build!E:E, MATCH(J229, raw_resource_build!B:B, 0)))","v":""},{"$f":"IF(J229=\"\", \"\", INDEX(raw_resource_build!C:C, MATCH(J229, raw_resource_build!B:B, 0)))","v":""},null,{"$f":"raw_resource_build!B229","v":"Greater_Imperial_Geothermal"},"In-State",{"$f":"IFERROR(INDEX($E$5:$E$32,MATCH(raw_resource_build!$E229,Lists!$B$5:$B$32,0)),\"Non-CAISO\")","v":"Geothermal"},null,{"$f":"raw_annual_energy!C229","v":"CAISO_New_Flow_Battery_3"},{"$f":"INDEX(K:K,MATCH(R229,Lists!J:J,0))","v":"Flow_Battery"},"Non-wind",null,null,null,null,{"$f":"raw_fuel_burn!A229","v":"LDWP_ST"},{"$f":"INDEX(K:K,MATCH(Y229,Lists!J:J,0))","v":"LDWP_ST"}]
[null,null,null,null,null,null,null,null,null,{"$f":"IFERROR(INDEX(raw_resource_build!$B$2:$B$1000,MATCH(0,COUNTIF($J$1:J229,raw_resource_build!$B$2:$B$1000), 0),0), \"\")","v":""},{"$f":"IF(J230=\"\", \"\", INDEX(raw_resource_build!E:E, MATCH(J230, raw_resource_build!B:B, 0)))","v":""},{"$f":"IF(J230=\"\", \"\", INDEX(raw_resource_build!C:C, MATCH(J230, raw_resource_build!B:B, 0)))","v":""},null,{"$f":"raw_resource_build!B230","v":"Inyokern_North_Kramer_Geothermal"},"In-State",{"$f":"IFERROR(INDEX($E$5:$E$32,MATCH(raw_resource_build!$E230,Lists!$B$5:$B$32,0)),\"Non-CAISO\")","v":"Geothermal"},null,{"$f":"raw_annual_energy!C230","v":"CAISO_New_Flow_Battery_3"},{"$f":"INDEX(K:K,MATCH(R230,Lists!J:J,0))","v":"Flow_Battery"},"Non-wind",null,null,null,null,{"$f":"raw_fuel_burn!A230","v":"LDWP_ST"},{"$f":"INDEX(K:K,MATCH(Y230,Lists!J:J,0))","v":"LDWP_ST"}]
[null,null,null,null,null,null,null,null,null,{"$f":"IFERROR(INDEX(raw_resource_build!$B$2:$B$1000,MATCH(0,COUNTIF($J$1:J230,raw_resource_build!$B$2:$B$1000), 0),0), \"\")","v":""},{"$f":"IF(J231=\"\", \"\", INDEX(raw_resource_build!E:E, MATCH(J231, raw_resource_build!B:B, 0)))","v":""},{"$f":"IF(J231=\"\", \"\", INDEX(raw_resource_build!C:C, MATCH(J231, raw_resource_build!B:B, 0)))","v":""},null,{"$f":"raw_resource_build!B231","v":"Northern_California_Ex_Geothermal"},"In-State",{"$f":"IFERROR(INDEX($E$5:$E$32,MATCH(raw_resource_build!$E231,Lists!$B$5:$B$32,0)),\"Non-CAISO\")","v":"Geothermal"},null,{"$f":"raw_annual_energy!C231","v":"CAISO_New_Flow_Battery_3"},{"$f":"INDEX(K:K,MATCH(R231,Lists!J:J,0))","v":"Flow_Battery"},"Non-wind",null,null,null,null,{"$f":"raw_fuel_burn!A231","v":"LDWP_ST"},{"$f":"INDEX(K:K,MATCH(Y231,Lists!J:J,0))","v":"LDWP_ST"}]
[null,null,null,null,null,null,null,null,null,{"$f":"IFERROR(INDEX(raw_resource_build!$B$2:$B$1000,MATCH(0,COUNTIF($J$1:J231,raw_resource_build!$B$2:$B$1000), 0),0), \"\")","v":""},{"$f":"IF(J232=\"\", \"\", INDEX(raw_resource_build!E:E, MATCH(J232, raw_resource_build!B:B, 0)))","v":""},{"$f":"IF(J232=\"\", \"\", INDEX(raw_resource_build!C:C, MATCH(J232, raw_resource_build!B:B, 0)))","v":""},null,{"$f":"raw_resource_build!B232","v":"Pacific_Northwest_Geothermal"},"Out-Of-State",{"$f":"IFERROR(INDEX($E$5:$E$32,MATCH(raw_resource_build!$E232,Lists!$B$5:$B$32,0)),\"Non-CAISO\")","v":"Geothermal"},null,{"$f":"raw_annual_energy!C232","v":"CAISO_New_Flow_Battery_3"},{"$f":"INDEX(K:K,MATCH(R232,Lists!J:J,0))","v":"Flow_Battery"},"Non-wind",null,null,null,null,{"$f":"raw_fuel_burn!A232","v":"LDWP_ST"},{"$f":"INDEX(K:K,MATCH(Y232,Lists!J:J,0))","v":"LDWP_ST"}]
[null,null,null,null,null,null,null,null,null,{"$f":"IFERROR(INDEX(raw_resource_build!$B$2:$B$1000,MATCH(0,COUNTIF($J$1:J232,raw_resource_build!$B$2:$B$1000), 0),0), \"\")","v":""},{"$f":"IF(J233=\"\", \"\", INDEX(raw_resource_build!E:E, MATCH(J233, raw_resource_build!B:B, 0)))","v":""},{"$f":"IF(J233=\"\", \"\", INDEX(raw_resource_build!C:C, MATCH(J233, raw_resource_build!B:B, 0)))","v":""},null,{"$f":"raw_resource_build!B233","v":"Riverside_Palm_Springs_Geothermal"},"In-State",{"$f":"IFERROR(INDEX($E$5:$E$32,MATCH(raw_resource_build!$E233,Lists!$B$5:$B$32,0)),\"Non-CAISO\")","v":"Geothermal"},null,{"$f":"raw_annual_energy!C233","v":"CAISO_New_Flow_Battery_3"},{"$f":"INDEX(K:K,MATCH(R233,Lists!J:J,0))","v":"Flow_Battery"},"Non-wind",null,null,null,null,{"$f":"raw_fuel_burn!A233","v":"LDWP_ST"},{"$f":"INDEX(K:K,MATCH(Y233,Lists!J:J,0))","v":"LDWP_ST"}]
[null,null,null,null,null,null,null,null,null,{"$f":"IFERROR(INDEX(raw_resource_build!$B$2:$B$1000,MATCH(0,COUNTIF($J$1:J233,raw_resource_build!$B$2:$B$1000), 0),0), \"\")","v":""},{"$f":"IF(J234=\"\", \"\", INDEX(raw_resource_build!E:E, MATCH(J234, raw_resource_build!B:B, 0)))","v":""},{"$f":"IF(J234=\"\", \"\", INDEX(raw_resource_build!C:C, MATCH(J234, raw_resource_build!B:B, 0)))","v":""},null,{"$f":"raw_resource_build!B234","v":"Solano_Geothermal"},"In-State",{"$f":"IFERROR(INDEX($E$5:$E$32,MATCH(raw_resource_build!$E234,Lists!$B$5:$B$32,0)),\"Non-CAISO\")","v":"Geothermal"},null,{"$f":"raw_annual_energy!C234","v":"CAISO_New_Flow_Battery_3"},{"$f":"INDEX(K:K,MATCH(R234,Lists!J:J,0))","v":"Flow_Battery"},"Non-wind",null,null,null,null,{"$f":"raw_fuel_burn!A234","v":"LDWP_ST"},{"$f":"INDEX(K:K,MATCH(Y234,Lists!J:J,0))","v":"LDWP_ST"}]
[null,null,null,null,null,null,null,null,null,{"$f":"IFERROR(INDEX(raw_resource_build!$B$2:$B$1000,MATCH(0,COUNTIF($J$1:J234,raw_resource_build!$B$2:$B$1000), 0),0), \"\")","v":""},{"$f":"IF(J235=\"\", \"\", INDEX(raw_resource_build!E:E, MATCH(J235, raw_resource_build!B:B, 0)))","v":""},{"$f":"IF(J235=\"\", \"\", INDEX(raw_resource_build!C:C, MATCH(J235, raw_resource_build!B:B, 0)))","v":""},null,{"$f":"raw_resource_build!B235","v":"Southern_Nevada_Geothermal"},"In-State",{"$f":"IFERROR(INDEX($E$5:$E$32,MATCH(raw_resource_build!$E235,Lists!$B$5:$B$32,0)),\"Non-CAISO\")","v":"Geothermal"},null,{"$f":"raw_annual_energy!C235","v":"CAISO_New_Flow_Battery_4"},{"$f":"INDEX(K:K,MATCH(R235,Lists!J:J,0))","v":"Flow_Battery"},"Non-wind",null,null,null,null,{"$f":"raw_fuel_burn!A235","v":"NW_CCGT"},{"$f":"INDEX(K:K,MATCH(Y235,Lists!J:J,0))","v":"NW_CCGT"}]
[null,null,null,null,null,null,null,null,null,{"$f":"IFERROR(INDEX(raw_resource_build!$B$2:$B$1000,MATCH(0,COUNTIF($J$1:J235,raw_resource_build!$B$2:$B$1000), 0),0), \"\")","v":""},{"$f":"IF(J236=\"\", \"\", INDEX(raw_resource_build!E:E, MATCH(J236, raw_resource_build!B:B, 0)))","v":""},{"$f":"IF(J236=\"\", \"\", INDEX(raw_resource_build!C:C, MATCH(J236, raw_resource_build!B:B, 0)))","v":""},null,{"$f":"raw_resource_build!B236","v":"Customer_PV"},"Non-wind",{"$f":"IFERROR(INDEX($E$5:$E$32,MATCH(raw_resource_build!$E236,Lists!$B$5:$B$32,0)),\"Non-CAISO\")","v":"Renewables"},null,{"$f":"raw_annual_energy!C236","v":"CAISO_New_Flow_Battery_4"},{"$f":"INDEX(K:K,MATCH(R236,Lists!J:J,0))","v":"Flow_Battery"},"Non-wind",null,null,null,null,{"$f":"raw_fuel_burn!A236","v":"NW_CCGT"},{"$f":"INDEX(K:K,MATCH(Y236,Lists!J:J,0))","v":"NW_CCGT"}]
[null,null,null,null,null,null,null,null,null,{"$f":"IFERROR(INDEX(raw_resource_build!$B$2:$B$1000,MATCH(0,COUNTIF($J$1:J236,raw_resource_build!$B$2:$B$1000), 0),0), \"\")","v":""},{"$f":"IF(J237=\"\", \"\", INDEX(raw_resource_build!E:E, MATCH(J237, raw_resource_build!B:B, 0)))","v":""},{"$f":"IF(J237=\"\", \"\", INDEX(raw_resource_build!C:C, MATCH(J237, raw_resource_build!B:B, 0)))","v":""},null,{"$f":"raw_resource_build!B237","v":"BANC_Solar_for_Other"},"Non-wind",{"$f":"IFERROR(INDEX($E$5:$E$32,MATCH(raw_resource_build!$E237,Lists!$B$5:$B$32,0)),\"Non-CAISO\")","v":"Renewables"},null,{"$f":"raw_annual_energy!C237","v":"CAISO_New_Flow_Battery_4"},{"$f":"INDEX(K:K,MATCH(R237,Lists!J:J,0))","v":"Flow_Battery"},"Non-wind",null,null,null,null,{"$f":"raw_fuel_burn!A237","v":"NW_CCGT"},{"$f":"INDEX(K:K,MATCH(Y237,Lists!J:J,0))","v":"NW_CCGT"}]
[null,null,null,null,null,null,null,null,null,{"$f":"IFERROR(INDEX(raw_resource_build!$B$2:$B$1000,MATCH(0,COUNTIF($J$1:J237,raw_resource_build!$B$2:$B$1000), 0),0), \"\")","v":""},{"$f":"IF(J238=\"\", \"\", INDEX(raw_resource_build!E:E, MATCH(J238, raw_resource_build!B:B, 0)))","v":""},{"$f":"IF(J238=\"\", \"\", INDEX(raw_resource_build!C:C, MATCH(J238, raw_resource_build!B:B, 0)))","v":""},null,{"$f":"raw_resource_build!B238","v":"CAISO_Solar_for_Other"},"Non-wind",{"$f":"IFERROR(INDEX($E$5:$E$32,MATCH(raw_resource_build!$E238,Lists!$B$5:$B$32,0)),\"Non-CAISO\")","v":"Renewables"},null,{"$f":"raw_annual_energy!C238","v":"CAISO_New_Flow_Battery_4"},{"$f":"INDEX(K:K,MATCH(R238,Lists!J:J,0))","v":"Flow_Battery"},"Non-wind",null,null,null,null,{"$f":"raw_fuel_burn!A238","v":"NW_CCGT"},{"$f":"INDEX(K:K,MATCH(Y238,Lists!J:J,0))","v":"NW_CCGT"}]
[null,null,null,null,null,null,null,null,null,{"$f":"IFERROR(INDEX(raw_resource_build!$B$2:$B$1000,MATCH(0,COUNTIF($J$1:J238,raw_resource_build!$B$2:$B$1000), 0),0), \"\")","v":""},{"$f":"IF(J239=\"\", \"\", INDEX(raw_resource_build!E:E, MATCH(J239, raw_resource_build!B:B, 0)))","v":""},{"$f":"IF(J239=\"\", \"\", INDEX(raw_resource_build!C:C, MATCH(J239, raw_resource_build!B:B, 0)))","v":""},null,{"$f":"raw_resource_build!B239","v":"IID_Solar_for_Other"},"Non-wind",{"$f":"IFERROR(INDEX($E$5:$E$32,MATCH(raw_resource_build!$E239,Lists!$B$5:$B$32,0)),\"Non-CAISO\")","v":"Renewables"},null,{"$f":"raw_annual_energy!C239","v":"CAISO_New_Flow_Battery_4"},{"$f":"INDEX(K:K,MATCH(R239,Lists!J:J,0))","v":"Flow_Battery"},"Non-wind",null,null,null,null,{"$f":"raw_fuel_burn!A239","v":"NW_CCGT"},{"$f":"INDEX(K:K,MATCH(Y239,Lists!J:J,0))","v":"NW_CCGT"}]
[null,null,null,null,null,null,null,null,null,{"$f":"IFERROR(INDEX(raw_resource_build!$B$2:$B$1000,MATCH(0,COUNTIF($J$1:J239,raw_resource_build!$B$2:$B$1000), 0),0), \"\")","v":""},{"$f":"IF(J240=\"\", \"\", INDEX(raw_resource_build!E:E, MATCH(J240, raw_resource_build!B:B, 0)))","v":""},{"$f":"IF(J240=\"\", \"\", INDEX(raw_resource_build!C:C, MATCH(J240, raw_resource_build!B:B, 0)))","v":""},null,{"$f":"raw_resource_build!B240","v":"LDWP_Solar_for_Other"},"Non-wind",{"$f":"IFERROR(INDEX($E$5:$E$32,MATCH(raw_resource_build!$E240,Lists!$B$5:$B$32,0)),\"Non-CAISO\")","v":"Renewables"},null,{"$f":"raw_annual_energy!C240","v":"CAISO_New_Flow_Battery_4"},{"$f":"INDEX(K:K,MATCH(R240,Lists!J:J,0))","v":"Flow_Battery"},"Non-wind",null,null,null,null,{"$f":"raw_fuel_burn!A240","v":"NW_CCGT"},{"$f":"INDEX(K:K,MATCH(Y240,Lists!J:J,0))","v":"NW_CCGT"}]
[null,null,null,null,null,null,null,null,null,{"$f":"IFERROR(INDEX(raw_resource_build!$B$2:$B$1000,MATCH(0,COUNTIF($J$1:J240,raw_resource_build!$B$2:$B$1000), 0),0), \"\")","v":""},{"$f":"IF(J241=\"\", \"\", INDEX(raw_resource_build!E:E, MATCH(J241, raw_resource_build!B:B, 0)))","v":""},{"$f":"IF(J241=\"\", \"\", INDEX(raw_resource_build!C:C, MATCH(J241, raw_resource_build!B:B, 0)))","v":""},null,{"$f":"raw_resource_build!B241","v":"NW_Solar_for_Other"},"Non-wind",{"$f":"IFERROR(INDEX($E$5:$E$32,MATCH(raw_resource_build!$E241,Lists!$B$5:$B$32,0)),\"Non-CAISO\")","v":"Renewables"},null,{"$f":"raw_annual_energy!C241","v":"CAISO_New_Flow_Battery_4"},{"$f":"INDEX(K:K,MATCH(R241,Lists!J:J,0))","v":"Flow_Battery"},"Non-wind",null,null,null,null,{"$f":"raw_fuel_burn!A241","v":"NW_CCGT"},{"$f":"INDEX(K:K,MATCH(Y241,Lists!J:J,0))","v":"NW_CCGT"}]
[null,null,null,null,null,null,null,null,null,{"$f":"IFERROR(INDEX(raw_resource_build!$B$2:$B$1000,MATCH(0,COUNTIF($J$1:J241,raw_resource_build!$B$2:$B$1000), 0),0), \"\")","v":""},{"$f":"IF(J242=\"\", \"\", INDEX(raw_resource_build!E:E, MATCH(J242, raw_resource_build!B:B, 0)))","v":""},{"$f":"IF(J242=\"\", \"\", INDEX(raw_resource_build!C:C, MATCH(J242, raw_resource_build!B:B, 0)))","v":""},null,{"$f":"raw_resource_build!B242","v":"SW_Solar_for_Other"},"Non-wind",{"$f":"IFERROR(INDEX($E$5:$E$32,MATCH(raw_resource_build!$E242,Lists!$B$5:$B$32,0)),\"Non-CAISO\")","v":"Renewables"},null,{"$f":"raw_annual_energy!C242","v":"CAISO_New_Flow_Battery_4"},{"$f":"INDEX(K:K,MATCH(R242,Lists!J:J,0))","v":"Flow_Battery"},"Non-wind",null,null,null,null,{"$f":"raw_fuel_burn!A242","v":"NW_CCGT"},{"$f":"INDEX(K:K,MATCH(Y242,Lists!J:J,0))","v":"NW_CCGT"}]
[null,null,null,null,null,null,null,null,null,{"$f":"IFERROR(INDEX(raw_resource_build!$B$2:$B$1000,MATCH(0,COUNTIF($J$1:J242,raw_resource_build!$B$2:$B$1000), 0),0), \"\")","v":""},{"$f":"IF(J243=\"\", \"\", INDEX(raw_resource_build!E:E, MATCH(J243, raw_resource_build!B:B, 0)))","v":""},{"$f":"IF(J243=\"\", \"\", INDEX(raw_resource_build!C:C, MATCH(J243, raw_resource_build!B:B, 0)))","v":""},null,{"$f":"raw_resource_build!B243","v":"CAISO_Solar_for_CAISO"},"Non-wind",{"$f":"IFERROR(INDEX($E$5:$E$32,MATCH(raw_resource_build!$E243,Lists!$B$5:$B$32,0)),\"Non-CAISO\")","v":"Renewables"},null,{"$f":"raw_annual_energy!C243","v":"CAISO_New_Flow_Battery_5"},{"$f":"INDEX(K:K,MATCH(R243,Lists!J:J,0))","v":"Flow_Battery"},"Non-wind",null,null,null,null,{"$f":"raw_fuel_burn!A243","v":"NW_Coal"},{"$f":"INDEX(K:K,MATCH(Y243,Lists!J:J,0))","v":"NW_Coal"}]
[null,null,null,null,null,null,null,null,null,{"$f":"IFERROR(INDEX(raw_resource_build!$B$2:$B$1000,MATCH(0,COUNTIF($J$1:J243,raw_resource_build!$B$2:$B$1000), 0),0), \"\")","v":""},{"$f":"IF(J244=\"\", \"\", INDEX(raw_resource_build!E:E, MATCH(J244, raw_resource_build!B:B, 0)))","v":""},{"$f":"IF(J244=\"\", \"\", INDEX(raw_resource_build!C:C, MATCH(J244, raw_resource_build!B:B, 0)))","v":""},null,{"$f":"raw_resource_build!B244","v":"IID_Solar_for_CAISO"},"Non-wind",{"$f":"IFERROR(INDEX($E$5:$E$32,MATCH(raw_resource_build!$E244,Lists!$B$5:$B$32,0)),\"Non-CAISO\")","v":"Renewables"},null,{"$f":"raw_annual_energy!C244","v":"CAISO_New_Flow_Battery_5"},{"$f":"INDEX(K:K,MATCH(R244,Lists!J:J,0))","v":"Flow_Battery"},"Non-wind",null,null,null,null,{"$f":"raw_fuel_burn!A244","v":"NW_Coal"},{"$f":"INDEX(K:K,MATCH(Y244,Lists!J:J,0))","v":"NW_Coal"}]
[null,null,null,null,null,null,null,null,null,{"$f":"IFERROR(INDEX(raw_resource_build!$B$2:$B$1000,MATCH(0,COUNTIF($J$1:J244,raw_resource_build!$B$2:$B$1000), 0),0), \"\")","v":""},{"$f":"IF(J245=\"\", \"\", INDEX(raw_resource_build!E:E, MATCH(J245, raw_resource_build!B:B, 0)))","v":""},{"$f":"IF(J245=\"\", \"\", INDEX(raw_resource_build!C:C, MATCH(J245, raw_resource_build!B:B, 0)))","v":""},null,{"$f":"raw_resource_build!B245","v":"SW_Solar_for_CAISO"},"Non-wind",{"$f":"IFERROR(INDEX($E$5:$E$32,MATCH(raw_resource_build!$E245,Lists!$B$5:$B$32,0)),\"Non-CAISO\")","v":"Renewables"},null,{"$f":"raw_annual_energy!C245","v":"CAISO_New_Flow_Battery_5"},{"$f":"INDEX(K:K,MATCH(R245,Lists!J:J,0))","v":"Flow_Battery"},"Non-wind",null,null,null,null,{"$f":"raw_fuel_burn!A245","v":"NW_Coal"},{"$f":"INDEX(K:K,MATCH(Y245,Lists!J:J,0))","v":"NW_Coal"}]
[null,null,null,null,null,null,null,null,null,{"$f":"IFERROR(INDEX(raw_resource_build!$B$2:$B$1000,MATCH(0,COUNTIF($J$1:J245,raw_resource_build!$B$2:$B$1000), 0),0), \"\")","v":""},{"$f":"IF(J246=\"\", \"\", INDEX(raw_resource_build!E:E, MATCH(J246, raw_resource_build!B:B, 0)))","v":""},{"$f":"IF(J246=\"\", \"\", INDEX(raw_resource_build!C:C, MATCH(J246, raw_resource_build!B:B, 0)))","v":""},null,{"$f":"raw_resource_build!B246","v":"BANC_Wind_for_Other"},"Non-wind",{"$f":"IFERROR(INDEX($E$5:$E$32,MATCH(raw_resource_build!$E246,Lists!$B$5:$B$32,0)),\"Non-CAISO\")","v":"Renewables"},null,{"$f":"raw_annual_energy!C246","v":"CAISO_New_Flow_Battery_5"},{"$f":"INDEX(K:K,MATCH(R246,Lists!J:J,0))","v":"Flow_Battery"},"Non-wind",null,null,null,null,{"$f":"raw_fuel_burn!A246","v":"NW_Coal"},{"$f":"INDEX(K:K,MATCH(Y246,Lists!J:J,0))","v":"NW_Coal"}]
[null,null,null,null,null,null,null,null,null,{"$f":"IFERROR(INDEX(raw_resource_build!$B$2:$B$1000,MATCH(0,COUNTIF($J$1:J246,raw_resource_build!$B$2:$B$1000), 0),0), \"\")","v":""},{"$f":"IF(J247=\"\", \"\", INDEX(raw_resource_build!E:E, MATCH(J247, raw_resource_build!B:B, 0)))","v":""},{"$f":"IF(J247=\"\", \"\", INDEX(raw_resource_build!C:C, MATCH(J247, raw_resource_build!B:B, 0)))","v":""},null,{"$f":"raw_resource_build!B247","v":"CAISO_Wind_for_Other"},"Non-wind",{"$f":"IFERROR(INDEX($E$5:$E$32,MATCH(raw_resource_build!$E247,Lists!$B$5:$B$32,0)),\"Non-CAISO\")","v":"Renewables"},null,{"$f":"raw_annual_energy!C247","v":"CAISO_New_Flow_Battery_5"},{"$f":"INDEX(K:K,MATCH(R247,Lists!J:J,0))","v":"Flow_Battery"},"Non-wind",null,null,null,null,{"$f":"raw_fuel_burn!A247","v":"NW_Coal"},{"$f":"INDEX(K:K,MATCH(Y247,Lists!J:J,0))","v":"NW_Coal"}]
[null,null,null,null,null,null,null,null,null,{"$f":"IFERROR(INDEX(raw_resource_build!$B$2:$B$1000,MATCH(0,COUNTIF($J$1:J247,raw_resource_build!$B$2:$B$1000), 0),0), \"\")","v":""},{"$f":"IF(J248=\"\", \"\", INDEX(raw_resource_build!E:E, MATCH(J248, raw_resource_build!B:B, 0)))","v":""},{"$f":"IF(J248=\"\", \"\", INDEX(raw_resource_build!C:C, MATCH(J248, raw_resource_build!B:B, 0)))","v":""},null,{"$f":"raw_resource_build!B248","v":"IID_Wind_for_Other"},"Non-wind",{"$f":"IFERROR(INDEX($E$5:$E$32,MATCH(raw_resource_build!$E248,Lists!$B$5:$B$32,0)),\"Non-CAISO\")","v":"Renewables"},null,{"$f":"raw_annual_energy!C248","v":"CAISO_New_Flow_Battery_5"},{"$f":"INDEX(K:K,MATCH(R248,Lists!J:J,0))","v":"Flow_Battery"},"Non-wind",null,null,null,null,{"$f":"raw_fuel_burn!A248","v":"NW_Coal"},{"$f":"INDEX(K:K,MATCH(Y248,Lists!J:J,0))","v":"NW_Coal"}]
[null,null,null,null,null,null,null,null,null,{"$f":"IFERROR(INDEX(raw_resource_build!$B$2:$B$1000,MATCH(0,COUNTIF($J$1:J248,raw_resource_build!$B$2:$B$1000), 0),0), \"\")","v":""},{"$f":"IF(J249=\"\", \"\", INDEX(raw_resource_build!E:E, MATCH(J249, raw_resource_build!B:B, 0)))","v":""},{"$f":"IF(J249=\"\", \"\", INDEX(raw_resource_build!C:C, MATCH(J249, raw_resource_build!B:B, 0)))","v":""},null,{"$f":"raw_resource_build!B249","v":"LDWP_Wind_for_Other"},"Non-wind",{"$f":"IFERROR(INDEX($E$5:$E$32,MATCH(raw_resource_build!$E249,Lists!$B$5:$B$32,0)),\"Non-CAISO\")","v":"Renewables"},null,{"$f":"raw_annual_energy!C249","v":"CAISO_New_Flow_Battery_5"},{"$f":"INDEX(K:K,MATCH(R249,Lists!J:J,0))","v":"Flow_Battery"},"Non-wind",null,null,null,null,{"$f":"raw_fuel_burn!A249","v":"NW_Coal"},{"$f":"INDEX(K:K,MATCH(Y249,Lists!J:J,0))","v":"NW_Coal"}]
[null,null,null,null,null,null,null,null,null,{"$f":"IFERROR(INDEX(raw_resource_build!$B$2:$B$1000,MATCH(0,COUNTIF($J$1:J249,raw_resource_build!$B$2:$B$1000), 0),0), \"\")","v":""},{"$f":"IF(J250=\"\", \"\", INDEX(raw_resource_build!E:E, MATCH(J250, raw_resource_build!B:B, 0)))","v":""},{"$f":"IF(J250=\"\", \"\", INDEX(raw_resource_build!C:C, MATCH(J250, raw_resource_build!B:B, 0)))","v":""},null,{"$f":"raw_resource_build!B250","v":"NW_Wind_for_Other"},"Non-wind",{"$f":"IFERROR(INDEX($E$5:$E$32,MATCH(raw_resource_build!$E250,Lists!$B$5:$B$32,0)),\"Non-CAISO\")","v":"Renewables"},null,{"$f":"raw_annual_energy!C250","v":"CAISO_New_Flow_Battery_5"},{"$f":"INDEX(K:K,MATCH(R250,Lists!J:J,0))","v":"Flow_Battery"},"Non-wind",null,null,null,null,{"$f":"raw_fuel_burn!A250","v":"NW_Coal"},{"$f":"INDEX(K:K,MATCH(Y250,Lists!J:J,0))","v":"NW_Coal"}]
[null,null,null,null,null,null,null,null,null,{"$f":"IFERROR(INDEX(raw_resource_build!$B$2:$B$1000,MATCH(0,COUNTIF($J$1:J250,raw_resource_build!$B$2:$B$1000), 0),0), \"\")","v":""},{"$f":"IF(J251=\"\", \"\", INDEX(raw_resource_build!E:E, MATCH(J251, raw_resource_build!B:B, 0)))","v":""},{"$f":"IF(J251=\"\", \"\", INDEX(raw_resource_build!C:C, MATCH(J251, raw_resource_build!B:B, 0)))","v":""},null,{"$f":"raw_resource_build!B251","v":"SW_Wind_for_Other"},"Non-wind",{"$f":"IFERROR(INDEX($E$5:$E$32,MATCH(raw_resource_build!$E251,Lists!$B$5:$B$32,0)),\"Non-CAISO\")","v":"Renewables"},null,{"$f":"raw_annual_energy!C251","v":"CAISO_New_Li_Battery"},{"$f":"INDEX(K:K,MATCH(R251,Lists!J:J,0))","v":"Li_Battery"},"Non-wind",null,null,null,null,{"$f":"raw_fuel_burn!A251","v":"NW_Nuclear"},{"$f":"INDEX(K:K,MATCH(Y251,Lists!J:J,0))","v":"NW_Nuclear"}]
[null,null,null,null,null,null,null,null,null,{"$f":"IFERROR(INDEX(raw_resource_build!$B$2:$B$1000,MATCH(0,COUNTIF($J$1:J251,raw_resource_build!$B$2:$B$1000), 0),0), \"\")","v":""},{"$f":"IF(J252=\"\", \"\", INDEX(raw_resource_build!E:E, MATCH(J252, raw_resource_build!B:B, 0)))","v":""},{"$f":"IF(J252=\"\", \"\", INDEX(raw_resource_build!C:C, MATCH(J252, raw_resource_build!B:B, 0)))","v":""},null,{"$f":"raw_resource_build!B252","v":"CAISO_Wind_for_CAISO"},"Non-wind",{"$f":"IFERROR(INDEX($E$5:$E$32,MATCH(raw_resource_build!$E252,Lists!$B$5:$B$32,0)),\"Non-CAISO\")","v":"Renewables"},null,{"$f":"raw_annual_energy!C252","v":"CAISO_New_Li_Battery"},{"$f":"INDEX(K:K,MATCH(R252,Lists!J:J,0))","v":"Li_Battery"},"Non-wind",null,null,null,null,{"$f":"raw_fuel_burn!A252","v":"NW_Nuclear"},{"$f":"INDEX(K:K,MATCH(Y252,Lists!J:J,0))","v":"NW_Nuclear"}]
[null,null,null,null,null,null,null,null,null,{"$f":"IFERROR(INDEX(raw_resource_build!$B$2:$B$1000,MATCH(0,COUNTIF($J$1:J252,raw_resource_build!$B$2:$B$1000), 0),0), \"\")","v":""},{"$f":"IF(J253=\"\", \"\", INDEX(raw_resource_build!E:E, MATCH(J253, raw_resource_build!B:B, 0)))","v":""},{"$f":"IF(J253=\"\", \"\", INDEX(raw_resource_build!C:C, MATCH(J253, raw_resource_build!B:B, 0)))","v":""},null,{"$f":"raw_resource_build!B253","v":"LDWP_Wind_for_CAISO"},"Non-wind",{"$f":"IFERROR(INDEX($E$5:$E$32,MATCH(raw_resource_build!$E253,Lists!$B$5:$B$32,0)),\"Non-CAISO\")","v":"Renewables"},null,{"$f":"raw_annual_energy!C253","v":"CAISO_New_Li_Battery"},{"$f":"INDEX(K:K,MATCH(R253,Lists!J:J,0))","v":"Li_Battery"},"Non-wind",null,null,null,null,{"$f":"raw_fuel_burn!A253","v":"NW_Nuclear"},{"$f":"INDEX(K:K,MATCH(Y253,Lists!J:J,0))","v":"NW_Nuclear"}]
[null,null,null,null,null,null,null,null,null,{"$f":"IFERROR(INDEX(raw_resource_build!$B$2:$B$1000,MATCH(0,COUNTIF($J$1:J253,raw_resource_build!$B$2:$B$1000), 0),0), \"\")","v":""},{"$f":"IF(J254=\"\", \"\", INDEX(raw_resource_build!E:E, MATCH(J254, raw_resource_build!B:B, 0)))","v":""},{"$f":"IF(J254=\"\", \"\", INDEX(raw_resource_build!C:C, MATCH(J254, raw_resource_build!B:B, 0)))","v":""},null,{"$f":"raw_resource_build!B254","v":"NW_Wind_for_CAISO"},"Non-wind",{"$f":"IFERROR(INDEX($E$5:$E$32,MATCH(raw_resource_build!$E254,Lists!$B$5:$B$32,0)),\"Non-CAISO\")","v":"Renewables"},null,{"$f":"raw_annual_energy!C254","v":"CAISO_New_Li_Battery"},{"$f":"INDEX(K:K,MATCH(R254,Lists!J:J,0))","v":"Li_Battery"},"Non-wind",null,null,null,null,{"$f":"raw_fuel_burn!A254","v":"NW_Nuclear"},{"$f":"INDEX(K:K,MATCH(Y254,Lists!J:J,0))","v":"NW_Nuclear"}]
[null,null,null,null,null,null,null,null,null,{"$f":"IFERROR(INDEX(raw_resource_build!$B$2:$B$1000,MATCH(0,COUNTIF($J$1:J254,raw_resource_build!$B$2:$B$1000), 0),0), \"\")","v":""},{"$f":"IF(J255=\"\", \"\", INDEX(raw_resource_build!E:E, MATCH(J255, raw_resource_build!B:B, 0)))","v":""},{"$f":"IF(J255=\"\", \"\", INDEX(raw_resource_build!C:C, MATCH(J255, raw_resource_build!B:B, 0)))","v":""},null,{"$f":"raw_resource_build!B255","v":"SW_Wind_for_CAISO"},"Non-wind",{"$f":"IFERROR(INDEX($E$5:$E$32,MATCH(raw_resource_build!$E255,Lists!$B$5:$B$32,0)),\"Non-CAISO\")","v":"Renewables"},null,{"$f":"raw_annual_energy!C255","v":"CAISO_New_Li_Battery"},{"$f":"INDEX(K:K,MATCH(R255,Lists!J:J,0))","v":"Li_Battery"},"Non-wind",null,null,null,null,{"$f":"raw_fuel_burn!A255","v":"NW_Nuclear"},{"$f":"INDEX(K:K,MATCH(Y255,Lists!J:J,0))","v":"NW_Nuclear"}]
[null,null,null,null,null,null,null,null,null,{"$f":"IFERROR(INDEX(raw_resource_build!$B$2:$B$1000,MATCH(0,COUNTIF($J$1:J255,raw_resource_build!$B$2:$B$1000), 0),0), \"\")","v":""},{"$f":"IF(J256=\"\", \"\", INDEX(raw_resource_build!E:E, MATCH(J256, raw_resource_build!B:B, 0)))","v":""},{"$f":"IF(J256=\"\", \"\", INDEX(raw_resource_build!C:C, MATCH(J256, raw_resource_build!B:B, 0)))","v":""},null,{"$f":"raw_resource_build!B256","v":"Carrizo_Solar"},"In-State",{"$f":"IFERROR(INDEX($E$5:$E$32,MATCH(raw_resource_build!$E256,Lists!$B$5:$B$32,0)),\"Non-CAISO\")","v":"Renewables"},null,{"$f":"raw_annual_energy!C256","v":"CAISO_New_Li_Battery"},{"$f":"INDEX(K:K,MATCH(R256,Lists!J:J,0))","v":"Li_Battery"},"Non-wind",null,null,null,null,{"$f":"raw_fuel_burn!A256","v":"NW_Nuclear"},{"$f":"INDEX(K:K,MATCH(Y256,Lists!J:J,0))","v":"NW_Nuclear"}]
[null,null,null,null,null,null,null,null,null,{"$f":"IFERROR(INDEX(raw_resource_build!$B$2:$B$1000,MATCH(0,COUNTIF($J$1:J256,raw_resource_build!$B$2:$B$1000), 0),0), \"\")","v":""},{"$f":"IF(J257=\"\", \"\", INDEX(raw_resource_build!E:E, MATCH(J257, raw_resource_build!B:B, 0)))","v":""},{"$f":"IF(J257=\"\", \"\", INDEX(raw_resource_build!C:C, MATCH(J257, raw_resource_build!B:B, 0)))","v":""},null,{"$f":"raw_resource_build!B257","v":"Carrizo_Wind"},"In-State",{"$f":"IFERROR(INDEX($E$5:$E$32,MATCH(raw_resource_build!$E257,Lists!$B$5:$B$32,0)),\"Non-CAISO\")","v":"Renewables"},null,{"$f":"raw_annual_energy!C257","v":"CAISO_New_Li_Battery"},{"$f":"INDEX(K:K,MATCH(R257,Lists!J:J,0))","v":"Li_Battery"},"Non-wind",null,null,null,null,{"$f":"raw_fuel_burn!A257","v":"NW_Nuclear"},{"$f":"INDEX(K:K,MATCH(Y257,Lists!J:J,0))","v":"NW_Nuclear"}]
[null,null,null,null,null,null,null,null,null,{"$f":"IFERROR(INDEX(raw_resource_build!$B$2:$B$1000,MATCH(0,COUNTIF($J$1:J257,raw_resource_build!$B$2:$B$1000), 0),0), \"\")","v":""},{"$f":"IF(J258=\"\", \"\", INDEX(raw_resource_build!E:E, MATCH(J258, raw_resource_build!B:B, 0)))","v":""},{"$f":"IF(J258=\"\", \"\", INDEX(raw_resource_build!C:C, MATCH(J258, raw_resource_build!B:B, 0)))","v":""},null,{"$f":"raw_resource_build!B258","v":"Central_Valley_North_Los_Banos_Solar"},"In-State",{"$f":"IFERROR(INDEX($E$5:$E$32,MATCH(raw_resource_build!$E258,Lists!$B$5:$B$32,0)),\"Non-CAISO\")","v":"Renewables"},null,{"$f":"raw_annual_energy!C258","v":"CAISO_New_Li_Battery"},{"$f":"INDEX(K:K,MATCH(R258,Lists!J:J,0))","v":"Li_Battery"},"Non-wind",null,null,null,null,{"$f":"raw_fuel_burn!A258","v":"NW_Nuclear"},{"$f":"INDEX(K:K,MATCH(Y258,Lists!J:J,0))","v":"NW_Nuclear"}]
[null,null,null,null,null,null,null,null,null,{"$f":"IFERROR(INDEX(raw_resource_build!$B$2:$B$1000,MATCH(0,COUNTIF($J$1:J258,raw_resource_build!$B$2:$B$1000), 0),0), \"\")","v":""},{"$f":"IF(J259=\"\", \"\", INDEX(raw_resource_build!E:E, MATCH(J259, raw_resource_build!B:B, 0)))","v":""},{"$f":"IF(J259=\"\", \"\", INDEX(raw_resource_build!C:C, MATCH(J259, raw_resource_build!B:B, 0)))","v":""},null,{"$f":"raw_resource_build!B259","v":"Central_Valley_North_Los_Banos_Wind"},{"$f":"IFERROR(INDEX($C$35:$C$99,MATCH($N259,$B$35:$B$99,0)),\"Non-wind\")","v":"In-State"},{"$f":"IFERROR(INDEX($E$5:$E$32,MATCH(raw_resource_build!$E259,Lists!$B$5:$B$32,0)),\"Non-CAISO\")","v":"Renewables"},null,{"$f":"raw_annual_energy!C259","v":"CAISO_New_Li_Battery_2"},{"$f":"INDEX(K:K,MATCH(R259,Lists!J:J,0))","v":"Li_Battery"},{"$f":"IFERROR(INDEX($C$35:$C$99,MATCH($R259,$B$35:$B$99,0)),\"Non-wind\")","v":"Non-wind"},null,null,null,null,{"$f":"raw_fuel_burn!A259","v":"NW_Peaker"},{"$f":"INDEX(K:K,MATCH(Y259,Lists!J:J,0))","v":"NW_Peaker"}]
[null,null,null,null,null,null,null,null,null,{"$f":"IFERROR(INDEX(raw_resource_build!$B$2:$B$1000,MATCH(0,COUNTIF($J$1:J259,raw_resource_build!$B$2:$B$1000), 0),0), \"\")","v":""},{"$f":"IF(J260=\"\", \"\", INDEX(raw_resource_build!E:E, MATCH(J260, raw_resource_build!B:B, 0)))","v":""},{"$f":"IF(J260=\"\", \"\", INDEX(raw_resource_build!C:C, MATCH(J260, raw_resource_build!B:B, 0)))","v":""},null,{"$f":"raw_resource_build!B260","v":"Distributed_Solar"},"In-State",{"$f":"IFERROR(INDEX($E$5:$E$32,MATCH(raw_resource_build!$E260,Lists!$B$5:$B$32,0)),\"Non-CAISO\")","v":"Renewables"},null,{"$f":"raw_annual_energy!C260","v":"CAISO_New_Li_Battery_2"},{"$f":"INDEX(K:K,MATCH(R260,Lists!J:J,0))","v":"Li_Battery"},"Non-wind",null,null,null,null,{"$f":"raw_fuel_burn!A260","v":"NW_Peaker"},{"$f":"INDEX(K:K,MATCH(Y260,Lists!J:J,0))","v":"NW_Peaker"}]
[null,null,null,null,null,null,null,null,null,{"$f":"IFERROR(INDEX(raw_resource_build!$B$2:$B$1000,MATCH(0,COUNTIF($J$1:J260,raw_resource_build!$B$2:$B$1000), 0),0), \"\")","v":""},{"$f":"IF(J261=\"\", \"\", INDEX(raw_resource_build!E:E, MATCH(J261, raw_resource_build!B:B, 0)))","v":""},{"$f":"IF(J261=\"\", \"\", INDEX(raw_resource_build!C:C, MATCH(J261, raw_resource_build!B:B, 0)))","v":""},null,{"$f":"raw_resource_build!B261","v":"Mountain_Pass_El_Dorado_Solar"},"In-State",{"$f":"IFERROR(INDEX($E$5:$E$32,MATCH(raw_resource_build!$E261,Lists!$B$5:$B$32,0)),\"Non-CAISO\")","v":"Renewables"},null,{"$f":"raw_annual_energy!C261","v":"CAISO_New_Li_Battery_2"},{"$f":"INDEX(K:K,MATCH(R261,Lists!J:J,0))","v":"Li_Battery"},"Non-wind",null,null,null,null,{"$f":"raw_fuel_burn!A261","v":"NW_Peaker"},{"$f":"INDEX(K:K,MATCH(Y261,Lists!J:J,0))","v":"NW_Peaker"}]
[null,null,null,null,null,null,null,null,null,{"$f":"IFERROR(INDEX(raw_resource_build!$B$2:$B$1000,MATCH(0,COUNTIF($J$1:J261,raw_resource_build!$B$2:$B$1000), 0),0), \"\")","v":""},{"$f":"IF(J262=\"\", \"\", INDEX(raw_resource_build!E:E, MATCH(J262, raw_resource_build!B:B, 0)))","v":""},{"$f":"IF(J262=\"\", \"\", INDEX(raw_resource_build!C:C, MATCH(J262, raw_resource_build!B:B, 0)))","v":""},null,{"$f":"raw_resource_build!B262","v":"Greater_Imperial_Solar"},"In-State",{"$f":"IFERROR(INDEX($E$5:$E$32,MATCH(raw_resource_build!$E262,Lists!$B$5:$B$32,0)),\"Non-CAISO\")","v":"Renewables"},null,{"$f":"raw_annual_energy!C262","v":"CAISO_New_Li_Battery_2"},{"$f":"INDEX(K:K,MATCH(R262,Lists!J:J,0))","v":"Li_Battery"},"Non-wind",null,null,null,null,{"$f":"raw_fuel_burn!A262","v":"NW_Peaker"},{"$f":"INDEX(K:K,MATCH(Y262,Lists!J:J,0))","v":"NW_Peaker"}]
[null,null,null,null,null,null,null,null,null,{"$f":"IFERROR(INDEX(raw_resource_build!$B$2:$B$1000,MATCH(0,COUNTIF($J$1:J262,raw_resource_build!$B$2:$B$1000), 0),0), \"\")","v":""},{"$f":"IF(J263=\"\", \"\", INDEX(raw_resource_build!E:E, MATCH(J263, raw_resource_build!B:B, 0)))","v":""},{"$f":"IF(J263=\"\", \"\", INDEX(raw_resource_build!C:C, MATCH(J263, raw_resource_build!B:B, 0)))","v":""},null,{"$f":"raw_resource_build!B263","v":"Greater_Imperial_Wind"},"In-State",{"$f":"IFERROR(INDEX($E$5:$E$32,MATCH(raw_resource_build!$E263,Lists!$B$5:$B$32,0)),\"Non-CAISO\")","v":"Renewables"},null,{"$f":"raw_annual_energy!C263","v":"CAISO_New_Li_Battery_2"},{"$f":"INDEX(K:K,MATCH(R263,Lists!J:J,0))","v":"Li_Battery"},"Non-wind",null,null,null,null,{"$f":"raw_fuel_burn!A263","v":"NW_Peaker"},{"$f":"INDEX(K:K,MATCH(Y263,Lists!J:J,0))","v":"NW_Peaker"}]
[null,null,null,null,null,null,null,null,null,{"$f":"IFERROR(INDEX(raw_resource_build!$B$2:$B$1000,MATCH(0,COUNTIF($J$1:J263,raw_resource_build!$B$2:$B$1000), 0),0), \"\")","v":""},{"$f":"IF(J264=\"\", \"\", INDEX(raw_resource_build!E:E, MATCH(J264, raw_resource_build!B:B, 0)))","v":""},{"$f":"IF(J264=\"\", \"\", INDEX(raw_resource_build!C:C, MATCH(J264, raw_resource_build!B:B, 0)))","v":""},null,{"$f":"raw_resource_build!B264","v":"Greater_Kramer_Wind"},"In-State",{"$f":"IFERROR(INDEX($E$5:$E$32,MATCH(raw_resource_build!$E264,Lists!$B$5:$B$32,0)),\"Non-CAISO\")","v":"Renewables"},null,{"$f":"raw_annual_energy!C264","v":"CAISO_New_Li_Battery_2"},{"$f":"INDEX(K:K,MATCH(R264,Lists!J:J,0))","v":"Li_Battery"},"Non-wind",null,null,null,null,{"$f":"raw_fuel_burn!A264","v":"NW_Peaker"},{"$f":"INDEX(K:K,MATCH(Y264,Lists!J:J,0))","v":"NW_Peaker"}]
[null,null,null,null,null,null,null,null,null,{"$f":"IFERROR(INDEX(raw_resource_build!$B$2:$B$1000,MATCH(0,COUNTIF($J$1:J264,raw_resource_build!$B$2:$B$1000), 0),0), \"\")","v":""},{"$f":"IF(J265=\"\", \"\", INDEX(raw_resource_build!E:E, MATCH(J265, raw_resource_build!B:B, 0)))","v":""},{"$f":"IF(J265=\"\", \"\", INDEX(raw_resource_build!C:C, MATCH(J265, raw_resource_build!B:B, 0)))","v":""},null,{"$f":"raw_resource_build!B265","v":"Humboldt_Wind"},"In-State",{"$f":"IFERROR(INDEX($E$5:$E$32,MATCH(raw_resource_build!$E265,Lists!$B$5:$B$32,0)),\"Non-CAISO\")","v":"Renewables"},null,{"$f":"raw_annual_energy!C265","v":"CAISO_New_Li_Battery_2"},{"$f":"INDEX(K:K,MATCH(R265,Lists!J:J,0))","v":"Li_Battery"},"Non-wind",null,null,null,null,{"$f":"raw_fuel_burn!A265","v":"NW_Peaker"},{"$f":"INDEX(K:K,MATCH(Y265,Lists!J:J,0))","v":"NW_Peaker"}]
[null,null,null,null,null,null,null,null,null,{"$f":"IFERROR(INDEX(raw_resource_build!$B$2:$B$1000,MATCH(0,COUNTIF($J$1:J265,raw_resource_build!$B$2:$B$1000), 0),0), \"\")","v":""},{"$f":"IF(J266=\"\", \"\", INDEX(raw_resource_build!E:E, MATCH(J266, raw_resource_build!B:B, 0)))","v":""},{"$f":"IF(J266=\"\", \"\", INDEX(raw_resource_build!C:C, MATCH(J266, raw_resource_build!B:B, 0)))","v":""},null,{"$f":"raw_resource_build!B266","v":"Inyokern_North_Kramer_Solar"},"In-State",{"$f":"IFERROR(INDEX($E$5:$E$32,MATCH(raw_resource_build!$E266,Lists!$B$5:$B$32,0)),\"Non-CAISO\")","v":"Renewables"},null,{"$f":"raw_annual_energy!C266","v":"CAISO_New_Li_Battery_2"},{"$f":"INDEX(K:K,MATCH(R266,Lists!J:J,0))","v":"Li_Battery"},"Non-wind",null,null,null,null,{"$f":"raw_fuel_burn!A266","v":"NW_Peaker"},{"$f":"INDEX(K:K,MATCH(Y266,Lists!J:J,0))","v":"NW_Peaker"}]
[null,null,null,null,null,null,null,null,null,{"$f":"IFERROR(INDEX(raw_resource_build!$B$2:$B$1000,MATCH(0,COUNTIF($J$1:J266,raw_resource_build!$B$2:$B$1000), 0),0), \"\")","v":""},{"$f":"IF(J267=\"\", \"\", INDEX(raw_resource_build!E:E, MATCH(J267, raw_resource_build!B:B, 0)))","v":""},{"$f":"IF(J267=\"\", \"\", INDEX(raw_resource_build!C:C, MATCH(J267, raw_resource_build!B:B, 0)))","v":""},null,{"$f":"raw_resource_build!B267","v":"Kern_Greater_Carrizo_Solar"},"In-State",{"$f":"IFERROR(INDEX($E$5:$E$32,MATCH(raw_resource_build!$E267,Lists!$B$5:$B$32,0)),\"Non-CAISO\")","v":"Renewables"},null,{"$f":"raw_annual_energy!C267","v":"CAISO_New_Li_Battery_3"},{"$f":"INDEX(K:K,MATCH(R267,Lists!J:J,0))","v":"Li_Battery"},"Non-wind",null,null,null,null,{"$f":"raw_fuel_burn!A267","v":"SW_CCGT"},{"$f":"INDEX(K:K,MATCH(Y267,Lists!J:J,0))","v":"SW_CCGT"}]
[null,null,null,null,null,null,null,null,null,{"$f":"IFERROR(INDEX(raw_resource_build!$B$2:$B$1000,MATCH(0,COUNTIF($J$1:J267,raw_resource_build!$B$2:$B$1000), 0),0), \"\")","v":""},{"$f":"IF(J268=\"\", \"\", INDEX(raw_resource_build!E:E, MATCH(J268, raw_resource_build!B:B, 0)))","v":""},{"$f":"IF(J268=\"\", \"\", INDEX(raw_resource_build!C:C, MATCH(J268, raw_resource_build!B:B, 0)))","v":""},null,{"$f":"raw_resource_build!B268","v":"Kern_Greater_Carrizo_Wind"},"In-State",{"$f":"IFERROR(INDEX($E$5:$E$32,MATCH(raw_resource_build!$E268,Lists!$B$5:$B$32,0)),\"Non-CAISO\")","v":"Renewables"},null,{"$f":"raw_annual_energy!C268","v":"CAISO_New_Li_Battery_3"},{"$f":"INDEX(K:K,MATCH(R268,Lists!J:J,0))","v":"Li_Battery"},"Non-wind",null,null,null,null,{"$f":"raw_fuel_burn!A268","v":"SW_CCGT"},{"$f":"INDEX(K:K,MATCH(Y268,Lists!J:J,0))","v":"SW_CCGT"}]
[null,null,null,null,null,null,null,null,null,{"$f":"IFERROR(INDEX(raw_resource_build!$B$2:$B$1000,MATCH(0,COUNTIF($J$1:J268,raw_resource_build!$B$2:$B$1000), 0),0), \"\")","v":""},{"$f":"IF(J269=\"\", \"\", INDEX(raw_resource_build!E:E, MATCH(J269, raw_resource_build!B:B, 0)))","v":""},{"$f":"IF(J269=\"\", \"\", INDEX(raw_resource_build!C:C, MATCH(J269, raw_resource_build!B:B, 0)))","v":""},null,{"$f":"raw_resource_build!B269","v":"Kramer_Inyokern_Ex_Solar"},"In-State",{"$f":"IFERROR(INDEX($E$5:$E$32,MATCH(raw_resource_build!$E269,Lists!$B$5:$B$32,0)),\"Non-CAISO\")","v":"Renewables"},null,{"$f":"raw_annual_energy!C269","v":"CAISO_New_Li_Battery_3"},{"$f":"INDEX(K:K,MATCH(R269,Lists!J:J,0))","v":"Li_Battery"},"Non-wind",null,null,null,null,{"$f":"raw_fuel_burn!A269","v":"SW_CCGT"},{"$f":"INDEX(K:K,MATCH(Y269,Lists!J:J,0))","v":"SW_CCGT"}]
[null,null,null,null,null,null,null,null,null,{"$f":"IFERROR(INDEX(raw_resource_build!$B$2:$B$1000,MATCH(0,COUNTIF($J$1:J269,raw_resource_build!$B$2:$B$1000), 0),0), \"\")","v":""},{"$f":"IF(J270=\"\", \"\", INDEX(raw_resource_build!E:E, MATCH(J270, raw_resource_build!B:B, 0)))","v":""},{"$f":"IF(J270=\"\", \"\", INDEX(raw_resource_build!C:C, MATCH(J270, raw_resource_build!B:B, 0)))","v":""},null,{"$f":"raw_resource_build!B270","v":"Kramer_Inyokern_Ex_Wind"},"In-State",{"$f":"IFERROR(INDEX($E$5:$E$32,MATCH(raw_resource_build!$E270,Lists!$B$5:$B$32,0)),\"Non-CAISO\")","v":"Renewables"},null,{"$f":"raw_annual_energy!C270","v":"CAISO_New_Li_Battery_3"},{"$f":"INDEX(K:K,MATCH(R270,Lists!J:J,0))","v":"Li_Battery"},"Non-wind",null,null,null,null,{"$f":"raw_fuel_burn!A270","v":"SW_CCGT"},{"$f":"INDEX(K:K,MATCH(Y270,Lists!J:J,0))","v":"SW_CCGT"}]
[null,null,null,null,null,null,null,null,null,{"$f":"IFERROR(INDEX(raw_resource_build!$B$2:$B$1000,MATCH(0,COUNTIF($J$1:J270,raw_resource_build!$B$2:$B$1000), 0),0), \"\")","v":""},{"$f":"IF(J271=\"\", \"\", INDEX(raw_resource_build!E:E, MATCH(J271, raw_resource_build!B:B, 0)))","v":""},{"$f":"IF(J271=\"\", \"\", INDEX(raw_resource_build!C:C, MATCH(J271, raw_resource_build!B:B, 0)))","v":""},null,{"$f":"raw_resource_build!B271","v":"North_Victor_Solar"},"In-State",{"$f":"IFERROR(INDEX($E$5:$E$32,MATCH(raw_resource_build!$E271,Lists!$B$5:$B$32,0)),\"Non-CAISO\")","v":"Renewables"},null,{"$f":"raw_annual_energy!C271","v":"CAISO_New_Li_Battery_3"},{"$f":"INDEX(K:K,MATCH(R271,Lists!J:J,0))","v":"Li_Battery"},"Non-wind",null,null,null,null,{"$f":"raw_fuel_burn!A271","v":"SW_CCGT"},{"$f":"INDEX(K:K,MATCH(Y271,Lists!J:J,0))","v":"SW_CCGT"}]
[null,null,null,null,null,null,null,null,null,{"$f":"IFERROR(INDEX(raw_resource_build!$B$2:$B$1000,MATCH(0,COUNTIF($J$1:J271,raw_resource_build!$B$2:$B$1000), 0),0), \"\")","v":""},{"$f":"IF(J272=\"\", \"\", INDEX(raw_resource_build!E:E, MATCH(J272, raw_resource_build!B:B, 0)))","v":""},{"$f":"IF(J272=\"\", \"\", INDEX(raw_resource_build!C:C, MATCH(J272, raw_resource_build!B:B, 0)))","v":""},null,{"$f":"raw_resource_build!B272","v":"Northern_California_Ex_Solar"},"In-State",{"$f":"IFERROR(INDEX($E$5:$E$32,MATCH(raw_resource_build!$E272,Lists!$B$5:$B$32,0)),\"Non-CAISO\")","v":"Renewables"},null,{"$f":"raw_annual_energy!C272","v":"CAISO_New_Li_Battery_3"},{"$f":"INDEX(K:K,MATCH(R272,Lists!J:J,0))","v":"Li_Battery"},"Non-wind",null,null,null,null,{"$f":"raw_fuel_burn!A272","v":"SW_CCGT"},{"$f":"INDEX(K:K,MATCH(Y272,Lists!J:J,0))","v":"SW_CCGT"}]
[null,null,null,null,null,null,null,null,null,{"$f":"IFERROR(INDEX(raw_resource_build!$B$2:$B$1000,MATCH(0,COUNTIF($J$1:J272,raw_resource_build!$B$2:$B$1000), 0),0), \"\")","v":""},{"$f":"IF(J273=\"\", \"\", INDEX(raw_resource_build!E:E, MATCH(J273, raw_resource_build!B:B, 0)))","v":""},{"$f":"IF(J273=\"\", \"\", INDEX(raw_resource_build!C:C, MATCH(J273, raw_resource_build!B:B, 0)))","v":""},null,{"$f":"raw_resource_build!B273","v":"Northern_California_Ex_Wind"},"In-State",{"$f":"IFERROR(INDEX($E$5:$E$32,MATCH(raw_resource_build!$E273,Lists!$B$5:$B$32,0)),\"Non-CAISO\")","v":"Renewables"},null,{"$f":"raw_annual_energy!C273","v":"CAISO_New_Li_Battery_3"},{"$f":"INDEX(K:K,MATCH(R273,Lists!J:J,0))","v":"Li_Battery"},"Non-wind",null,null,null,null,{"$f":"raw_fuel_burn!A273","v":"SW_CCGT"},{"$f":"INDEX(K:K,MATCH(Y273,Lists!J:J,0))","v":"SW_CCGT"}]
[null,null,null,null,null,null,null,null,null,{"$f":"IFERROR(INDEX(raw_resource_build!$B$2:$B$1000,MATCH(0,COUNTIF($J$1:J273,raw_resource_build!$B$2:$B$1000), 0),0), \"\")","v":""},{"$f":"IF(J274=\"\", \"\", INDEX(raw_resource_build!E:E, MATCH(J274, raw_resource_build!B:B, 0)))","v":""},{"$f":"IF(J274=\"\", \"\", INDEX(raw_resource_build!C:C, MATCH(J274, raw_resource_build!B:B, 0)))","v":""},null,{"$f":"raw_resource_build!B274","v":"NW_Ext_Tx_Wind"},"In-State",{"$f":"IFERROR(INDEX($E$5:$E$32,MATCH(raw_resource_build!$E274,Lists!$B$5:$B$32,0)),\"Non-CAISO\")","v":"Renewables"},null,{"$f":"raw_annual_energy!C274","v":"CAISO_New_Li_Battery_3"},{"$f":"INDEX(K:K,MATCH(R274,Lists!J:J,0))","v":"Li_Battery"},"Non-wind",null,null,null,null,{"$f":"raw_fuel_burn!A274","v":"SW_CCGT"},{"$f":"INDEX(K:K,MATCH(Y274,Lists!J:J,0))","v":"SW_CCGT"}]
[null,null,null,null,null,null,null,null,null,{"$f":"IFERROR(INDEX(raw_resource_build!$B$2:$B$1000,MATCH(0,COUNTIF($J$1:J274,raw_resource_build!$B$2:$B$1000), 0),0), \"\")","v":""},{"$f":"IF(J275=\"\", \"\", INDEX(raw_resource_build!E:E, MATCH(J275, raw_resource_build!B:B, 0)))","v":""},{"$f":"IF(J275=\"\", \"\", INDEX(raw_resource_build!C:C, MATCH(J275, raw_resource_build!B:B, 0)))","v":""},null,{"$f":"raw_resource_build!B275","v":"Riverside_Palm_Springs_Solar"},"In-State",{"$f":"IFERROR(INDEX($E$5:$E$32,MATCH(raw_resource_build!$E275,Lists!$B$5:$B$32,0)),\"Non-CAISO\")","v":"Renewables"},null,{"$f":"raw_annual_energy!C275","v":"CAISO_New_Li_Battery_4"},{"$f":"INDEX(K:K,MATCH(R275,Lists!J:J,0))","v":"Li_Battery"},"Non-wind",null,null,null,null,{"$f":"raw_fuel_burn!A275","v":"SW_Coal"},{"$f":"INDEX(K:K,MATCH(Y275,Lists!J:J,0))","v":"SW_Coal"}]
[null,null,null,null,null,null,null,null,null,{"$f":"IFERROR(INDEX(raw_resource_build!$B$2:$B$1000,MATCH(0,COUNTIF($J$1:J275,raw_resource_build!$B$2:$B$1000), 0),0), \"\")","v":""},{"$f":"IF(J276=\"\", \"\", INDEX(raw_resource_build!E:E, MATCH(J276, raw_resource_build!B:B, 0)))","v":""},{"$f":"IF(J276=\"\", \"\", INDEX(raw_resource_build!C:C, MATCH(J276, raw_resource_build!B:B, 0)))","v":""},null,{"$f":"raw_resource_build!B276","v":"Sacramento_River_Solar"},"In-State",{"$f":"IFERROR(INDEX($E$5:$E$32,MATCH(raw_resource_build!$E276,Lists!$B$5:$B$32,0)),\"Non-CAISO\")","v":"Renewables"},null,{"$f":"raw_annual_energy!C276","v":"CAISO_New_Li_Battery_4"},{"$f":"INDEX(K:K,MATCH(R276,Lists!J:J,0))","v":"Li_Battery"},"Non-wind",null,null,null,null,{"$f":"raw_fuel_burn!A276","v":"SW_Coal"},{"$f":"INDEX(K:K,MATCH(Y276,Lists!J:J,0))","v":"SW_Coal"}]
[null,null,null,null,null,null,null,null,null,{"$f":"IFERROR(INDEX(raw_resource_build!$B$2:$B$1000,MATCH(0,COUNTIF($J$1:J276,raw_resource_build!$B$2:$B$1000), 0),0), \"\")","v":""},{"$f":"IF(J277=\"\", \"\", INDEX(raw_resource_build!E:E, MATCH(J277, raw_resource_build!B:B, 0)))","v":""},{"$f":"IF(J277=\"\", \"\", INDEX(raw_resource_build!C:C, MATCH(J277, raw_resource_build!B:B, 0)))","v":""},null,{"$f":"raw_resource_build!B277","v":"Sacramento_River_Wind"},"In-State",{"$f":"IFERROR(INDEX($E$5:$E$32,MATCH(raw_resource_build!$E277,Lists!$B$5:$B$32,0)),\"Non-CAISO\")","v":"Renewables"},null,{"$f":"raw_annual_energy!C277","v":"CAISO_New_Li_Battery_4"},{"$f":"INDEX(K:K,MATCH(R277,Lists!J:J,0))","v":"Li_Battery"},"Non-wind",null,null,null,null,{"$f":"raw_fuel_burn!A277","v":"SW_Coal"},{"$f":"INDEX(K:K,MATCH(Y277,Lists!J:J,0))","v":"SW_Coal"}]
[null,null,null,null,null,null,null,null,null,{"$f":"IFERROR(INDEX(raw_resource_build!$B$2:$B$1000,MATCH(0,COUNTIF($J$1:J277,raw_resource_build!$B$2:$B$1000), 0),0), \"\")","v":""},{"$f":"IF(J278=\"\", \"\", INDEX(raw_resource_build!E:E, MATCH(J278, raw_resource_build!B:B, 0)))","v":""},{"$f":"IF(J278=\"\", \"\", INDEX(raw_resource_build!C:C, MATCH(J278, raw_resource_build!B:B, 0)))","v":""},null,{"$f":"raw_resource_build!B278","v":"SCADSNV_Solar"},"In-State",{"$f":"IFERROR(INDEX($E$5:$E$32,MATCH(raw_resource_build!$E278,Lists!$B$5:$B$32,0)),\"Non-CAISO\")","v":"Renewables"},null,{"$f":"raw_annual_energy!C278","v":"CAISO_New_Li_Battery_4"},{"$f":"INDEX(K:K,MATCH(R278,Lists!J:J,0))","v":"Li_Battery"},"Non-wind",null,null,null,null,{"$f":"raw_fuel_burn!A278","v":"SW_Coal"},{"$f":"INDEX(K:K,MATCH(Y278,Lists!J:J,0))","v":"SW_Coal"}]
[null,null,null,null,null,null,null,null,null,{"$f":"IFERROR(INDEX(raw_resource_build!$B$2:$B$1000,MATCH(0,COUNTIF($J$1:J278,raw_resource_build!$B$2:$B$1000), 0),0), \"\")","v":""},{"$f":"IF(J279=\"\", \"\", INDEX(raw_resource_build!E:E, MATCH(J279, raw_resource_build!B:B, 0)))","v":""},{"$f":"IF(J279=\"\", \"\", INDEX(raw_resource_build!C:C, MATCH(J279, raw_resource_build!B:B, 0)))","v":""},null,{"$f":"raw_resource_build!B279","v":"SCADSNV_Wind"},"In-State",{"$f":"IFERROR(INDEX($E$5:$E$32,MATCH(raw_resource_build!$E279,Lists!$B$5:$B$32,0)),\"Non-CAISO\")","v":"Renewables"},null,{"$f":"raw_annual_energy!C279","v":"CAISO_New_Li_Battery_4"},{"$f":"INDEX(K:K,MATCH(R279,Lists!J:J,0))","v":"Li_Battery"},"Non-wind",null,null,null,null,{"$f":"raw_fuel_burn!A279","v":"SW_Coal"},{"$f":"INDEX(K:K,MATCH(Y279,Lists!J:J,0))","v":"SW_Coal"}]
[null,null,null,null,null,null,null,null,null,{"$f":"IFERROR(INDEX(raw_resource_build!$B$2:$B$1000,MATCH(0,COUNTIF($J$1:J279,raw_resource_build!$B$2:$B$1000), 0),0), \"\")","v":""},{"$f":"IF(J280=\"\", \"\", INDEX(raw_resource_build!E:E, MATCH(J280, raw_resource_build!B:B, 0)))","v":""},{"$f":"IF(J280=\"\", \"\", INDEX(raw_resource_build!C:C, MATCH(J280, raw_resource_build!B:B, 0)))","v":""},null,{"$f":"raw_resource_build!B280","v":"Solano_Solar"},"In-State",{"$f":"IFERROR(INDEX($E$5:$E$32,MATCH(raw_resource_build!$E280,Lists!$B$5:$B$32,0)),\"Non-CAISO\")","v":"Renewables"},null,{"$f":"raw_annual_energy!C280","v":"CAISO_New_Li_Battery_4"},{"$f":"INDEX(K:K,MATCH(R280,Lists!J:J,0))","v":"Li_Battery"},"Non-wind",null,null,null,null,{"$f":"raw_fuel_burn!A280","v":"SW_Coal"},{"$f":"INDEX(K:K,MATCH(Y280,Lists!J:J,0))","v":"SW_Coal"}]
[null,null,null,null,null,null,null,null,null,{"$f":"IFERROR(INDEX(raw_resource_build!$B$2:$B$1000,MATCH(0,COUNTIF($J$1:J280,raw_resource_build!$B$2:$B$1000), 0),0), \"\")","v":""},{"$f":"IF(J281=\"\", \"\", INDEX(raw_resource_build!E:E, MATCH(J281, raw_resource_build!B:B, 0)))","v":""},{"$f":"IF(J281=\"\", \"\", INDEX(raw_resource_build!C:C, MATCH(J281, raw_resource_build!B:B, 0)))","v":""},null,{"$f":"raw_resource_build!B281","v":"Solano_subzone_Solar"},"In-State",{"$f":"IFERROR(INDEX($E$5:$E$32,MATCH(raw_resource_build!$E281,Lists!$B$5:$B$32,0)),\"Non-CAISO\")","v":"Renewables"},null,{"$f":"raw_annual_energy!C281","v":"CAISO_New_Li_Battery_4"},{"$f":"INDEX(K:K,MATCH(R281,Lists!J:J,0))","v":"Li_Battery"},"Non-wind",null,null,null,null,{"$f":"raw_fuel_burn!A281","v":"SW_Coal"},{"$f":"INDEX(K:K,MATCH(Y281,Lists!J:J,0))","v":"SW_Coal"}]
[null,null,null,null,null,null,null,null,null,{"$f":"IFERROR(INDEX(raw_resource_build!$B$2:$B$1000,MATCH(0,COUNTIF($J$1:J281,raw_resource_build!$B$2:$B$1000), 0),0), \"\")","v":""},{"$f":"IF(J282=\"\", \"\", INDEX(raw_resource_build!E:E, MATCH(J282, raw_resource_build!B:B, 0)))","v":""},{"$f":"IF(J282=\"\", \"\", INDEX(raw_resource_build!C:C, MATCH(J282, raw_resource_build!B:B, 0)))","v":""},null,{"$f":"raw_resource_build!B282","v":"Solano_subzone_Wind"},"In-State",{"$f":"IFERROR(INDEX($E$5:$E$32,MATCH(raw_resource_build!$E282,Lists!$B$5:$B$32,0)),\"Non-CAISO\")","v":"Renewables"},null,{"$f":"raw_annual_energy!C282","v":"CAISO_New_Li_Battery_4"},{"$f":"INDEX(K:K,MATCH(R282,Lists!J:J,0))","v":"Li_Battery"},"Non-wind",null,null,null,null,{"$f":"raw_fuel_burn!A282","v":"SW_Coal"},{"$f":"INDEX(K:K,MATCH(Y282,Lists!J:J,0))","v":"SW_Coal"}]
[null,null,null,null,null,null,null,null,null,{"$f":"IFERROR(INDEX(raw_resource_build!$B$2:$B$1000,MATCH(0,COUNTIF($J$1:J282,raw_resource_build!$B$2:$B$1000), 0),0), \"\")","v":""},{"$f":"IF(J283=\"\", \"\", INDEX(raw_resource_build!E:E, MATCH(J283, raw_resource_build!B:B, 0)))","v":""},{"$f":"IF(J283=\"\", \"\", INDEX(raw_resource_build!C:C, MATCH(J283, raw_resource_build!B:B, 0)))","v":""},null,{"$f":"raw_resource_build!B283","v":"Solano_Wind"},"In-State",{"$f":"IFERROR(INDEX($E$5:$E$32,MATCH(raw_resource_build!$E283,Lists!$B$5:$B$32,0)),\"Non-CAISO\")","v":"Renewables"},null,{"$f":"raw_annual_energy!C283","v":"CAISO_New_Li_Battery_5"},{"$f":"INDEX(K:K,MATCH(R283,Lists!J:J,0))","v":"Li_Battery"},"Non-wind",null,null,null,null,{"$f":"raw_fuel_burn!A283","v":"SW_Nuclear"},{"$f":"INDEX(K:K,MATCH(Y283,Lists!J:J,0))","v":"SW_Nuclear"}]
[null,null,null,null,null,null,null,null,null,{"$f":"IFERROR(INDEX(raw_resource_build!$B$2:$B$1000,MATCH(0,COUNTIF($J$1:J283,raw_resource_build!$B$2:$B$1000), 0),0), \"\")","v":""},{"$f":"IF(J284=\"\", \"\", INDEX(raw_resource_build!E:E, MATCH(J284, raw_resource_build!B:B, 0)))","v":""},{"$f":"IF(J284=\"\", \"\", INDEX(raw_resource_build!C:C, MATCH(J284, raw_resource_build!B:B, 0)))","v":""},null,{"$f":"raw_resource_build!B284","v":"Southern_California_Desert_Ex_Solar"},"In-State",{"$f":"IFERROR(INDEX($E$5:$E$32,MATCH(raw_resource_build!$E284,Lists!$B$5:$B$32,0)),\"Non-CAISO\")","v":"Renewables"},null,{"$f":"raw_annual_energy!C284","v":"CAISO_New_Li_Battery_5"},{"$f":"INDEX(K:K,MATCH(R284,Lists!J:J,0))","v":"Li_Battery"},"Non-wind",null,null,null,null,{"$f":"raw_fuel_burn!A284","v":"SW_Nuclear"},{"$f":"INDEX(K:K,MATCH(Y284,Lists!J:J,0))","v":"SW_Nuclear"}]
[null,null,null,null,null,null,null,null,null,{"$f":"IFERROR(INDEX(raw_resource_build!$B$2:$B$1000,MATCH(0,COUNTIF($J$1:J284,raw_resource_build!$B$2:$B$1000), 0),0), \"\")","v":""},{"$f":"IF(J285=\"\", \"\", INDEX(raw_resource_build!E:E, MATCH(J285, raw_resource_build!B:B, 0)))","v":""},{"$f":"IF(J285=\"\", \"\", INDEX(raw_resource_build!C:C, MATCH(J285, raw_resource_build!B:B, 0)))","v":""},null,{"$f":"raw_resource_build!B285","v":"Southern_California_Desert_Ex_Wind"},"In-State",{"$f":"IFERROR(INDEX($E$5:$E$32,MATCH(raw_resource_build!$E285,Lists!$B$5:$B$32,0)),\"Non-CAISO\")","v":"Renewables"},null,{"$f":"raw_annual_energy!C285","v":"CAISO_New_Li_Battery_5"},{"$f":"INDEX(K:K,MATCH(R285,Lists!J:J,0))","v":"Li_Battery"},"Non-wind",null,null,null,null,{"$f":"raw_fuel_burn!A285","v":"SW_Nuclear"},{"$f":"INDEX(K:K,MATCH(Y285,Lists!J:J,0))","v":"SW_Nuclear"}]
[null,null,null,null,null,null,null,null,null,{"$f":"IFERROR(INDEX(raw_resource_build!$B$2:$B$1000,MATCH(0,COUNTIF($J$1:J285,raw_resource_build!$B$2:$B$1000), 0),0), \"\")","v":""},{"$f":"IF(J286=\"\", \"\", INDEX(raw_resource_build!E:E, MATCH(J286, raw_resource_build!B:B, 0)))","v":""},{"$f":"IF(J286=\"\", \"\", INDEX(raw_resource_build!C:C, MATCH(J286, raw_resource_build!B:B, 0)))","v":""},null,{"$f":"raw_resource_build!B286","v":"Southern_Nevada_Solar"},"In-State",{"$f":"IFERROR(INDEX($E$5:$E$32,MATCH(raw_resource_build!$E286,Lists!$B$5:$B$32,0)),\"Non-CAISO\")","v":"Renewables"},null,{"$f":"raw_annual_energy!C286","v":"CAISO_New_Li_Battery_5"},{"$f":"INDEX(K:K,MATCH(R286,Lists!J:J,0))","v":"Li_Battery"},"Non-wind",null,null,null,null,{"$f":"raw_fuel_burn!A286","v":"SW_Nuclear"},{"$f":"INDEX(K:K,MATCH(Y286,Lists!J:J,0))","v":"SW_Nuclear"}]
[null,null,null,null,null,null,null,null,null,{"$f":"IFERROR(INDEX(raw_resource_build!$B$2:$B$1000,MATCH(0,COUNTIF($J$1:J286,raw_resource_build!$B$2:$B$1000), 0),0), \"\")","v":""},{"$f":"IF(J287=\"\", \"\", INDEX(raw_resource_build!E:E, MATCH(J287, raw_resource_build!B:B, 0)))","v":""},{"$f":"IF(J287=\"\", \"\", INDEX(raw_resource_build!C:C, MATCH(J287, raw_resource_build!B:B, 0)))","v":""},null,{"$f":"raw_resource_build!B287","v":"Southern_Nevada_Wind"},"In-State",{"$f":"IFERROR(INDEX($E$5:$E$32,MATCH(raw_resource_build!$E287,Lists!$B$5:$B$32,0)),\"Non-CAISO\")","v":"Renewables"},null,{"$f":"raw_annual_energy!C287","v":"CAISO_New_Li_Battery_5"},{"$f":"INDEX(K:K,MATCH(R287,Lists!J:J,0))","v":"Li_Battery"},"Non-wind",null,null,null,null,{"$f":"raw_fuel_burn!A287","v":"SW_Nuclear"},{"$f":"INDEX(K:K,MATCH(Y287,Lists!J:J,0))","v":"SW_Nuclear"}]
[null,null,null,null,null,null,null,null,null,{"$f":"IFERROR(INDEX(raw_resource_build!$B$2:$B$1000,MATCH(0,COUNTIF($J$1:J287,raw_resource_build!$B$2:$B$1000), 0),0), \"\")","v":""},{"$f":"IF(J288=\"\", \"\", INDEX(raw_resource_build!E:E, MATCH(J288, raw_resource_build!B:B, 0)))","v":""},{"$f":"IF(J288=\"\", \"\", INDEX(raw_resource_build!C:C, MATCH(J288, raw_resource_build!B:B, 0)))","v":""},null,{"$f":"raw_resource_build!B288","v":"SW_Ext_Tx_Wind"},"In-State",{"$f":"IFERROR(INDEX($E$5:$E$32,MATCH(raw_resource_build!$E288,Lists!$B$5:$B$32,0)),\"Non-CAISO\")","v":"Renewables"},null,{"$f":"raw_annual_energy!C288","v":"CAISO_New_Li_Battery_5"},{"$f":"INDEX(K:K,MATCH(R288,Lists!J:J,0))","v":"Li_Battery"},"Non-wind",null,null,null,null,{"$f":"raw_fuel_burn!A288","v":"SW_Nuclear"},{"$f":"INDEX(K:K,MATCH(Y288,Lists!J:J,0))","v":"SW_Nuclear"}]
[null,null,null,null,null,null,null,null,null,{"$f":"IFERROR(INDEX(raw_resource_build!$B$2:$B$1000,MATCH(0,COUNTIF($J$1:J288,raw_resource_build!$B$2:$B$1000), 0),0), \"\")","v":""},{"$f":"IF(J289=\"\", \"\", INDEX(raw_resource_build!E:E, MATCH(J289, raw_resource_build!B:B, 0)))","v":""},{"$f":"IF(J289=\"\", \"\", INDEX(raw_resource_build!C:C, MATCH(J289, raw_resource_build!B:B, 0)))","v":""},null,{"$f":"raw_resource_build!B289","v":"Tehachapi_Ex_Solar"},"In-State",{"$f":"IFERROR(INDEX($E$5:$E$32,MATCH(raw_resource_build!$E289,Lists!$B$5:$B$32,0)),\"Non-CAISO\")","v":"Renewables"},null,{"$f":"raw_annual_energy!C289","v":"CAISO_New_Li_Battery_5"},{"$f":"INDEX(K:K,MATCH(R289,Lists!J:J,0))","v":"Li_Battery"},"Non-wind",null,null,null,null,{"$f":"raw_fuel_burn!A289","v":"SW_Nuclear"},{"$f":"INDEX(K:K,MATCH(Y289,Lists!J:J,0))","v":"SW_Nuclear"}]
[null,null,null,null,null,null,null,null,null,{"$f":"IFERROR(INDEX(raw_resource_build!$B$2:$B$1000,MATCH(0,COUNTIF($J$1:J289,raw_resource_build!$B$2:$B$1000), 0),0), \"\")","v":""},{"$f":"IF(J290=\"\", \"\", INDEX(raw_resource_build!E:E, MATCH(J290, raw_resource_build!B:B, 0)))","v":""},{"$f":"IF(J290=\"\", \"\", INDEX(raw_resource_build!C:C, MATCH(J290, raw_resource_build!B:B, 0)))","v":""},null,{"$f":"raw_resource_build!B290","v":"Tehachapi_Solar"},"In-State",{"$f":"IFERROR(INDEX($E$5:$E$32,MATCH(raw_resource_build!$E290,Lists!$B$5:$B$32,0)),\"Non-CAISO\")","v":"Renewables"},null,{"$f":"raw_annual_energy!C290","v":"CAISO_New_Li_Battery_5"},{"$f":"INDEX(K:K,MATCH(R290,Lists!J:J,0))","v":"Li_Battery"},"Non-wind",null,null,null,null,{"$f":"raw_fuel_burn!A290","v":"SW_Nuclear"},{"$f":"INDEX(K:K,MATCH(Y290,Lists!J:J,0))","v":"SW_Nuclear"}]
[null,null,null,null,null,null,null,null,null,{"$f":"IFERROR(INDEX(raw_resource_build!$B$2:$B$1000,MATCH(0,COUNTIF($J$1:J290,raw_resource_build!$B$2:$B$1000), 0),0), \"\")","v":""},{"$f":"IF(J291=\"\", \"\", INDEX(raw_resource_build!E:E, MATCH(J291, raw_resource_build!B:B, 0)))","v":""},{"$f":"IF(J291=\"\", \"\", INDEX(raw_resource_build!C:C, MATCH(J291, raw_resource_build!B:B, 0)))","v":""},null,{"$f":"raw_resource_build!B291","v":"Tehachapi_Wind"},"In-State",{"$f":"IFERROR(INDEX($E$5:$E$32,MATCH(raw_resource_build!$E291,Lists!$B$5:$B$32,0)),\"Non-CAISO\")","v":"Renewables"},null,{"$f":"raw_annual_energy!C291","v":"CAISO_New_Li_Battery_6"},{"$f":"INDEX(K:K,MATCH(R291,Lists!J:J,0))","v":"Li_Battery"},"Non-wind",null,null,null,null,{"$f":"raw_fuel_burn!A291","v":"SW_Peaker"},{"$f":"INDEX(K:K,MATCH(Y291,Lists!J:J,0))","v":"SW_Peaker"}]
[null,null,null,null,null,null,null,null,null,{"$f":"IFERROR(INDEX(raw_resource_build!$B$2:$B$1000,MATCH(0,COUNTIF($J$1:J291,raw_resource_build!$B$2:$B$1000), 0),0), \"\")","v":""},{"$f":"IF(J292=\"\", \"\", INDEX(raw_resource_build!E:E, MATCH(J292, raw_resource_build!B:B, 0)))","v":""},{"$f":"IF(J292=\"\", \"\", INDEX(raw_resource_build!C:C, MATCH(J292, raw_resource_build!B:B, 0)))","v":""},null,{"$f":"raw_resource_build!B292","v":"Westlands_Ex_Solar"},"In-State",{"$f":"IFERROR(INDEX($E$5:$E$32,MATCH(raw_resource_build!$E292,Lists!$B$5:$B$32,0)),\"Non-CAISO\")","v":"Renewables"},null,{"$f":"raw_annual_energy!C292","v":"CAISO_New_Li_Battery_6"},{"$f":"INDEX(K:K,MATCH(R292,Lists!J:J,0))","v":"Li_Battery"},"Non-wind",null,null,null,null,{"$f":"raw_fuel_burn!A292","v":"SW_Peaker"},{"$f":"INDEX(K:K,MATCH(Y292,Lists!J:J,0))","v":"SW_Peaker"}]
[null,null,null,null,null,null,null,null,null,{"$f":"IFERROR(INDEX(raw_resource_build!$B$2:$B$1000,MATCH(0,COUNTIF($J$1:J292,raw_resource_build!$B$2:$B$1000), 0),0), \"\")","v":""},{"$f":"IF(J293=\"\", \"\", INDEX(raw_resource_build!E:E, MATCH(J293, raw_resource_build!B:B, 0)))","v":""},{"$f":"IF(J293=\"\", \"\", INDEX(raw_resource_build!C:C, MATCH(J293, raw_resource_build!B:B, 0)))","v":""},null,{"$f":"raw_resource_build!B293","v":"Westlands_Ex_Wind"},"In-State",{"$f":"IFERROR(INDEX($E$5:$E$32,MATCH(raw_resource_build!$E293,Lists!$B$5:$B$32,0)),\"Non-CAISO\")","v":"Renewables"},null,{"$f":"raw_annual_energy!C293","v":"CAISO_New_Li_Battery_6"},{"$f":"INDEX(K:K,MATCH(R293,Lists!J:J,0))","v":"Li_Battery"},"Non-wind",null,null,null,null,{"$f":"raw_fuel_burn!A293","v":"SW_Peaker"},{"$f":"INDEX(K:K,MATCH(Y293,Lists!J:J,0))","v":"SW_Peaker"}]
[null,null,null,null,null,null,null,null,null,{"$f":"IFERROR(INDEX(raw_resource_build!$B$2:$B$1000,MATCH(0,COUNTIF($J$1:J293,raw_resource_build!$B$2:$B$1000), 0),0), \"\")","v":""},{"$f":"IF(J294=\"\", \"\", INDEX(raw_resource_build!E:E, MATCH(J294, raw_resource_build!B:B, 0)))","v":""},{"$f":"IF(J294=\"\", \"\", INDEX(raw_resource_build!C:C, MATCH(J294, raw_resource_build!B:B, 0)))","v":""},null,{"$f":"raw_resource_build!B294","v":"Westlands_Solar"},"In-State",{"$f":"IFERROR(INDEX($E$5:$E$32,MATCH(raw_resource_build!$E294,Lists!$B$5:$B$32,0)),\"Non-CAISO\")","v":"Renewables"},null,{"$f":"raw_annual_energy!C294","v":"CAISO_New_Li_Battery_6"},{"$f":"INDEX(K:K,MATCH(R294,Lists!J:J,0))","v":"Li_Battery"},"Non-wind",null,null,null,null,{"$f":"raw_fuel_burn!A294","v":"SW_Peaker"},{"$f":"INDEX(K:K,MATCH(Y294,Lists!J:J,0))","v":"SW_Peaker"}]
[null,null,null,null,null,null,null,null,null,{"$f":"IFERROR(INDEX(raw_resource_build!$B$2:$B$1000,MATCH(0,COUNTIF($J$1:J294,raw_resource_build!$B$2:$B$1000), 0),0), \"\")","v":""},{"$f":"IF(J295=\"\", \"\", INDEX(raw_resource_build!E:E, MATCH(J295, raw_resource_build!B:B, 0)))","v":""},{"$f":"IF(J295=\"\", \"\", INDEX(raw_resource_build!C:C, MATCH(J295, raw_resource_build!B:B, 0)))","v":""},null,{"$f":"raw_resource_build!B295","v":"Arizona_Solar"},"In-State",{"$f":"IFERROR(INDEX($E$5:$E$32,MATCH(raw_resource_build!$E295,Lists!$B$5:$B$32,0)),\"Non-CAISO\")","v":"Renewables"},null,{"$f":"raw_annual_energy!C295","v":"CAISO_New_Li_Battery_6"},{"$f":"INDEX(K:K,MATCH(R295,Lists!J:J,0))","v":"Li_Battery"},"Non-wind",null,null,null,null,{"$f":"raw_fuel_burn!A295","v":"SW_Peaker"},{"$f":"INDEX(K:K,MATCH(Y295,Lists!J:J,0))","v":"SW_Peaker"}]
[null,null,null,null,null,null,null,null,null,{"$f":"IFERROR(INDEX(raw_resource_build!$B$2:$B$1000,MATCH(0,COUNTIF($J$1:J295,raw_resource_build!$B$2:$B$1000), 0),0), \"\")","v":""},{"$f":"IF(J296=\"\", \"\", INDEX(raw_resource_build!E:E, MATCH(J296, raw_resource_build!B:B, 0)))","v":""},{"$f":"IF(J296=\"\", \"\", INDEX(raw_resource_build!C:C, MATCH(J296, raw_resource_build!B:B, 0)))","v":""},null,{"$f":"raw_resource_build!B296","v":"Arizona_Wind"},"Out-Of-State",{"$f":"IFERROR(INDEX($E$5:$E$32,MATCH(raw_resource_build!$E296,Lists!$B$5:$B$32,0)),\"Non-CAISO\")","v":"Renewables"},null,{"$f":"raw_annual_energy!C296","v":"CAISO_New_Li_Battery_6"},{"$f":"INDEX(K:K,MATCH(R296,Lists!J:J,0))","v":"Li_Battery"},"Non-wind",null,null,null,null,{"$f":"raw_fuel_burn!A296","v":"SW_Peaker"},{"$f":"INDEX(K:K,MATCH(Y296,Lists!J:J,0))","v":"SW_Peaker"}]
[null,null,null,null,null,null,null,null,null,{"$f":"IFERROR(INDEX(raw_resource_build!$B$2:$B$1000,MATCH(0,COUNTIF($J$1:J296,raw_resource_build!$B$2:$B$1000), 0),0), \"\")","v":""},{"$f":"IF(J297=\"\", \"\", INDEX(raw_resource_build!E:E, MATCH(J297, raw_resource_build!B:B, 0)))","v":""},{"$f":"IF(J297=\"\", \"\", INDEX(raw_resource_build!C:C, MATCH(J297, raw_resource_build!B:B, 0)))","v":""},null,{"$f":"raw_resource_build!B297","v":"Baja_California_Solar"},"In-State",{"$f":"IFERROR(INDEX($E$5:$E$32,MATCH(raw_resource_build!$E297,Lists!$B$5:$B$32,0)),\"Non-CAISO\")","v":"Renewables"},null,{"$f":"raw_annual_energy!C297","v":"CAISO_New_Li_Battery_6"},{"$f":"INDEX(K:K,MATCH(R297,Lists!J:J,0))","v":"Li_Battery"},"Non-wind",null,null,null,null,{"$f":"raw_fuel_burn!A297","v":"SW_Peaker"},{"$f":"INDEX(K:K,MATCH(Y297,Lists!J:J,0))","v":"SW_Peaker"}]
[null,null,null,null,null,null,null,null,null,{"$f":"IFERROR(INDEX(raw_resource_build!$B$2:$B$1000,MATCH(0,COUNTIF($J$1:J297,raw_resource_build!$B$2:$B$1000), 0),0), \"\")","v":""},{"$f":"IF(J298=\"\", \"\", INDEX(raw_resource_build!E:E, MATCH(J298, raw_resource_build!B:B, 0)))","v":""},{"$f":"IF(J298=\"\", \"\", INDEX(raw_resource_build!C:C, MATCH(J298, raw_resource_build!B:B, 0)))","v":""},null,{"$f":"raw_resource_build!B298","v":"Baja_California_Wind"},"In-State",{"$f":"IFERROR(INDEX($E$5:$E$32,MATCH(raw_resource_build!$E298,Lists!$B$5:$B$32,0)),\"Non-CAISO\")","v":"Renewables"},null,{"$f":"raw_annual_energy!C298","v":"CAISO_New_Li_Battery_6"},{"$f":"INDEX(K:K,MATCH(R298,Lists!J:J,0))","v":"Li_Battery"},"Non-wind",null,null,null,null,{"$f":"raw_fuel_burn!A298","v":"SW_Peaker"},{"$f":"INDEX(K:K,MATCH(Y298,Lists!J:J,0))","v":"SW_Peaker"}]
[null,null,null,null,null,null,null,null,null,{"$f":"IFERROR(INDEX(raw_resource_build!$B$2:$B$1000,MATCH(0,COUNTIF($J$1:J298,raw_resource_build!$B$2:$B$1000), 0),0), \"\")","v":""},{"$f":"IF(J299=\"\", \"\", INDEX(raw_resource_build!E:E, MATCH(J299, raw_resource_build!B:B, 0)))","v":""},{"$f":"IF(J299=\"\", \"\", INDEX(raw_resource_build!C:C, MATCH(J299, raw_resource_build!B:B, 0)))","v":""},null,{"$f":"raw_resource_build!B299","v":"Idaho_Wind"},"Out-Of-State",{"$f":"IFERROR(INDEX($E$5:$E$32,MATCH(raw_resource_build!$E299,Lists!$B$5:$B$32,0)),\"Non-CAISO\")","v":"Renewables"},null,{"$f":"raw_annual_energy!C299","v":"CAISO_New_Pumped_Storage"},{"$f":"INDEX(K:K,MATCH(R299,Lists!J:J,0))","v":"Pumped_Hydro"},"Non-wind",null,null,null,null,{"$f":"raw_fuel_burn!A299","v":"SW_ST"},{"$f":"INDEX(K:K,MATCH(Y299,Lists!J:J,0))","v":"SW_ST"}]
[null,null,null,null,null,null,null,null,null,{"$f":"IFERROR(INDEX(raw_resource_build!$B$2:$B$1000,MATCH(0,COUNTIF($J$1:J299,raw_resource_build!$B$2:$B$1000), 0),0), \"\")","v":""},{"$f":"IF(J300=\"\", \"\", INDEX(raw_resource_build!E:E, MATCH(J300, raw_resource_build!B:B, 0)))","v":""},{"$f":"IF(J300=\"\", \"\", INDEX(raw_resource_build!C:C, MATCH(J300, raw_resource_build!B:B, 0)))","v":""},null,{"$f":"raw_resource_build!B300","v":"New_Mexico_Solar"},"Out-Of-State",{"$f":"IFERROR(INDEX($E$5:$E$32,MATCH(raw_resource_build!$E300,Lists!$B$5:$B$32,0)),\"Non-CAISO\")","v":"Renewables"},null,{"$f":"raw_annual_energy!C300","v":"CAISO_New_Pumped_Storage"},{"$f":"INDEX(K:K,MATCH(R300,Lists!J:J,0))","v":"Pumped_Hydro"},"Non-wind",null,null,null,null,{"$f":"raw_fuel_burn!A300","v":"SW_ST"},{"$f":"INDEX(K:K,MATCH(Y300,Lists!J:J,0))","v":"SW_ST"}]
[null,null,null,null,null,null,null,null,null,{"$f":"IFERROR(INDEX(raw_resource_build!$B$2:$B$1000,MATCH(0,COUNTIF($J$1:J300,raw_resource_build!$B$2:$B$1000), 0),0), \"\")","v":""},{"$f":"IF(J301=\"\", \"\", INDEX(raw_resource_build!E:E, MATCH(J301, raw_resource_build!B:B, 0)))","v":""},{"$f":"IF(J301=\"\", \"\", INDEX(raw_resource_build!C:C, MATCH(J301, raw_resource_build!B:B, 0)))","v":""},null,{"$f":"raw_resource_build!B301","v":"New_Mexico_Wind"},"Out-Of-State",{"$f":"IFERROR(INDEX($E$5:$E$32,MATCH(raw_resource_build!$E301,Lists!$B$5:$B$32,0)),\"Non-CAISO\")","v":"Renewables"},null,{"$f":"raw_annual_energy!C301","v":"CAISO_New_Pumped_Storage"},{"$f":"INDEX(K:K,MATCH(R301,Lists!J:J,0))","v":"Pumped_Hydro"},"Non-wind",null,null,null,null,{"$f":"raw_fuel_burn!A301","v":"SW_ST"},{"$f":"INDEX(K:K,MATCH(Y301,Lists!J:J,0))","v":"SW_ST"}]
[null,null,null,null,null,null,null,null,null,{"$f":"IFERROR(INDEX(raw_resource_build!$B$2:$B$1000,MATCH(0,COUNTIF($J$1:J301,raw_resource_build!$B$2:$B$1000), 0),0), \"\")","v":""},{"$f":"IF(J302=\"\", \"\", INDEX(raw_resource_build!E:E, MATCH(J302, raw_resource_build!B:B, 0)))","v":""},{"$f":"IF(J302=\"\", \"\", INDEX(raw_resource_build!C:C, MATCH(J302, raw_resource_build!B:B, 0)))","v":""},null,{"$f":"raw_resource_build!B302","v":"Utah_Solar"},"Out-Of-State",{"$f":"IFERROR(INDEX($E$5:$E$32,MATCH(raw_resource_build!$E302,Lists!$B$5:$B$32,0)),\"Non-CAISO\")","v":"Renewables"},null,{"$f":"raw_annual_energy!C302","v":"CAISO_New_Pumped_Storage"},{"$f":"INDEX(K:K,MATCH(R302,Lists!J:J,0))","v":"Pumped_Hydro"},"Non-wind",null,null,null,null,{"$f":"raw_fuel_burn!A302","v":"SW_ST"},{"$f":"INDEX(K:K,MATCH(Y302,Lists!J:J,0))","v":"SW_ST"}]
[null,null,null,null,null,null,null,null,null,{"$f":"IFERROR(INDEX(raw_resource_build!$B$2:$B$1000,MATCH(0,COUNTIF($J$1:J302,raw_resource_build!$B$2:$B$1000), 0),0), \"\")","v":""},{"$f":"IF(J303=\"\", \"\", INDEX(raw_resource_build!E:E, MATCH(J303, raw_resource_build!B:B, 0)))","v":""},{"$f":"IF(J303=\"\", \"\", INDEX(raw_resource_build!C:C, MATCH(J303, raw_resource_build!B:B, 0)))","v":""},null,{"$f":"raw_resource_build!B303","v":"Utah_Wind"},"Out-Of-State",{"$f":"IFERROR(INDEX($E$5:$E$32,MATCH(raw_resource_build!$E303,Lists!$B$5:$B$32,0)),\"Non-CAISO\")","v":"Renewables"},null,{"$f":"raw_annual_energy!C303","v":"CAISO_New_Pumped_Storage"},{"$f":"INDEX(K:K,MATCH(R303,Lists!J:J,0))","v":"Pumped_Hydro"},"Non-wind",null,null,null,null,{"$f":"raw_fuel_burn!A303","v":"SW_ST"},{"$f":"INDEX(K:K,MATCH(Y303,Lists!J:J,0))","v":"SW_ST"}]
[null,null,null,null,null,null,null,null,null,{"$f":"IFERROR(INDEX(raw_resource_build!$B$2:$B$1000,MATCH(0,COUNTIF($J$1:J303,raw_resource_build!$B$2:$B$1000), 0),0), \"\")","v":""},{"$f":"IF(J304=\"\", \"\", INDEX(raw_resource_build!E:E, MATCH(J304, raw_resource_build!B:B, 0)))","v":""},{"$f":"IF(J304=\"\", \"\", INDEX(raw_resource_build!C:C, MATCH(J304, raw_resource_build!B:B, 0)))","v":""},null,{"$f":"raw_resource_build!B304","v":"Wyoming_Wind"},"Out-Of-State",{"$f":"IFERROR(INDEX($E$5:$E$32,MATCH(raw_resource_build!$E304,Lists!$B$5:$B$32,0)),\"Non-CAISO\")","v":"Renewables"},null,{"$f":"raw_annual_energy!C304","v":"CAISO_New_Pumped_Storage"},{"$f":"INDEX(K:K,MATCH(R304,Lists!J:J,0))","v":"Pumped_Hydro"},"Non-wind",null,null,null,null,{"$f":"raw_fuel_burn!A304","v":"SW_ST"},{"$f":"INDEX(K:K,MATCH(Y304,Lists!J:J,0))","v":"SW_ST"}]
[null,null,null,null,null,null,null,null,null,{"$f":"IFERROR(INDEX(raw_resource_build!$B$2:$B$1000,MATCH(0,COUNTIF($J$1:J304,raw_resource_build!$B$2:$B$1000), 0),0), \"\")","v":""},{"$f":"IF(J305=\"\", \"\", INDEX(raw_resource_build!E:E, MATCH(J305, raw_resource_build!B:B, 0)))","v":""},{"$f":"IF(J305=\"\", \"\", INDEX(raw_resource_build!C:C, MATCH(J305, raw_resource_build!B:B, 0)))","v":""},null,{"$f":"raw_resource_build!B305","v":"Pacific_Northwest_Wind"},"Out-Of-State",{"$f":"IFERROR(INDEX($E$5:$E$32,MATCH(raw_resource_build!$E305,Lists!$B$5:$B$32,0)),\"Non-CAISO\")","v":"Renewables"},null,{"$f":"raw_annual_energy!C305","v":"CAISO_New_Pumped_Storage"},{"$f":"INDEX(K:K,MATCH(R305,Lists!J:J,0))","v":"Pumped_Hydro"},"Non-wind",null,null,null,null,{"$f":"raw_fuel_burn!A305","v":"SW_ST"},{"$f":"INDEX(K:K,MATCH(Y305,Lists!J:J,0))","v":"SW_ST"}]
[null,null,null,null,null,null,null,null,null,{"$f":"IFERROR(INDEX(raw_resource_build!$B$2:$B$1000,MATCH(0,COUNTIF($J$1:J305,raw_resource_build!$B$2:$B$1000), 0),0), \"\")","v":""},{"$f":"IF(J306=\"\", \"\", INDEX(raw_resource_build!E:E, MATCH(J306, raw_resource_build!B:B, 0)))","v":""},{"$f":"IF(J306=\"\", \"\", INDEX(raw_resource_build!C:C, MATCH(J306, raw_resource_build!B:B, 0)))","v":""},null,{"$f":"raw_resource_build!B306","v":"Diablo_Canyon_Offshore_Wind"},"In-State",{"$f":"IFERROR(INDEX($E$5:$E$32,MATCH(raw_resource_build!$E306,Lists!$B$5:$B$32,0)),\"Non-CAISO\")","v":"Renewables"},null,{"$f":"raw_annual_energy!C306","v":"CAISO_New_Pumped_Storage"},{"$f":"INDEX(K:K,MATCH(R306,Lists!J:J,0))","v":"Pumped_Hydro"},"Non-wind",null,null,null,null,{"$f":"raw_fuel_burn!A306","v":"SW_ST"},{"$f":"INDEX(K:K,MATCH(Y306,Lists!J:J,0))","v":"SW_ST"}]
[null,null,null,null,null,null,null,null,null,{"$f":"IFERROR(INDEX(raw_resource_build!$B$2:$B$1000,MATCH(0,COUNTIF($J$1:J306,raw_resource_build!$B$2:$B$1000), 0),0), \"\")","v":""},{"$f":"IF(J307=\"\", \"\", INDEX(raw_resource_build!E:E, MATCH(J307, raw_resource_build!B:B, 0)))","v":""},{"$f":"IF(J307=\"\", \"\", INDEX(raw_resource_build!C:C, MATCH(J307, raw_resource_build!B:B, 0)))","v":""},null,{"$f":"raw_resource_build!B307","v":"Humboldt_Bay_Offshore_Wind"},"In-State",{"$f":"IFERROR(INDEX($E$5:$E$32,MATCH(raw_resource_build!$E307,Lists!$B$5:$B$32,0)),\"Non-CAISO\")","v":"Renewables"},null,{"$f":"raw_annual_energy!C307","v":"CAISO_Nuclear"},{"$f":"INDEX(K:K,MATCH(R307,Lists!J:J,0))","v":"CAISO_Nuclear"},"Non-wind",null,null,null,null,{"$f":"raw_fuel_burn!A307","v":0},{"$f":"INDEX(K:K,MATCH(Y307,Lists!J:J,0))","v":{"$error":"#N/A"}}]
[null,null,null,null,null,null,null,null,null,{"$f":"IFERROR(INDEX(raw_resource_build!$B$2:$B$1000,MATCH(0,COUNTIF($J$1:J307,raw_resource_build!$B$2:$B$1000), 0),0), \"\")","v":""},{"$f":"IF(J308=\"\", \"\", INDEX(raw_resource_build!E:E, MATCH(J308, raw_resource_build!B:B, 0)))","v":""},{"$f":"IF(J308=\"\", \"\", INDEX(raw_resource_build!C:C, MATCH(J308, raw_resource_build!B:B, 0)))","v":""},null,{"$f":"raw_resource_build!B308","v":"Morro_Bay_Offshore_Wind"},"In-State",{"$f":"IFERROR(INDEX($E$5:$E$32,MATCH(raw_resource_build!$E308,Lists!$B$5:$B$32,0)),\"Non-CAISO\")","v":"Renewables"},null,{"$f":"raw_annual_energy!C308","v":"CAISO_Nuclear"},{"$f":"INDEX(K:K,MATCH(R308,Lists!J:J,0))","v":"CAISO_Nuclear"},"Non-wind",null,null,null,null,{"$f":"raw_fuel_burn!A308","v":0},{"$f":"INDEX(K:K,MATCH(Y308,Lists!J:J,0))","v":{"$error":"#N/A"}}]
[null,null,null,null,null,null,null,null,null,{"$f":"IFERROR(INDEX(raw_resource_build!$B$2:$B$1000,MATCH(0,COUNTIF($J$1:J308,raw_resource_build!$B$2:$B$1000), 0),0), \"\")","v":""},{"$f":"IF(J309=\"\", \"\", INDEX(raw_resource_build!E:E, MATCH(J309, raw_resource_build!B:B, 0)))","v":""},{"$f":"IF(J309=\"\", \"\", INDEX(raw_resource_build!C:C, MATCH(J309, raw_resource_build!B:B, 0)))","v":""},null,{"$f":"raw_resource_build!B309","v":"Diablo_Canyon_Offshore_Wind_Ext_Tx"},"In-State",{"$f":"IFERROR(INDEX($E$5:$E$32,MATCH(raw_resource_build!$E309,Lists!$B$5:$B$32,0)),\"Non-CAISO\")","v":"Renewables"},null,{"$f":"raw_annual_energy!C309","v":"CAISO_Nuclear"},{"$f":"INDEX(K:K,MATCH(R309,Lists!J:J,0))","v":"CAISO_Nuclear"},"Non-wind",null,null,null,null,{"$f":"raw_fuel_burn!A309","v":0},{"$f":"INDEX(K:K,MATCH(Y309,Lists!J:J,0))","v":{"$error":"#N/A"}}]
[null,null,null,null,null,null,null,null,null,{"$f":"IFERROR(INDEX(raw_resource_build!$B$2:$B$1000,MATCH(0,COUNTIF($J$1:J309,raw_resource_build!$B$2:$B$1000), 0),0), \"\")","v":""},{"$f":"IF(J310=\"\", \"\", INDEX(raw_resource_build!E:E, MATCH(J310, raw_resource_build!B:B, 0)))","v":""},{"$f":"IF(J310=\"\", \"\", INDEX(raw_resource_build!C:C, MATCH(J310, raw_resource_build!B:B, 0)))","v":""},null,{"$f":"raw_resource_build!B310","v":"Cape_Mendocino_Offshore_Wind"},"In-State",{"$f":"IFERROR(INDEX($E$5:$E$32,MATCH(raw_resource_build!$E310,Lists!$B$5:$B$32,0)),\"Non-CAISO\")","v":"Renewables"},null,{"$f":"raw_annual_energy!C310","v":"CAISO_Nuclear"},{"$f":"INDEX(K:K,MATCH(R310,Lists!J:J,0))","v":"CAISO_Nuclear"},"Non-wind",null,null,null,null,{"$f":"raw_fuel_burn!A310","v":0},{"$f":"INDEX(K:K,MATCH(Y310,Lists!J:J,0))","v":{"$error":"#N/A"}}]
[null,null,null,null,null,null,null,null,null,{"$f":"IFERROR(INDEX(raw_resource_build!$B$2:$B$1000,MATCH(0,COUNTIF($J$1:J310,raw_resource_build!$B$2:$B$1000), 0),0), \"\")","v":""},{"$f":"IF(J311=\"\", \"\", INDEX(raw_resource_build!E:E, MATCH(J311, raw_resource_build!B:B, 0)))","v":""},{"$f":"IF(J311=\"\", \"\", INDEX(raw_resource_build!C:C, MATCH(J311, raw_resource_build!B:B, 0)))","v":""},null,{"$f":"raw_resource_build!B311","v":"Del_Norte_Offshore_Wind"},"In-State",{"$f":"IFERROR(INDEX($E$5:$E$32,MATCH(raw_resource_build!$E311,Lists!$B$5:$B$32,0)),\"Non-CAISO\")","v":"Renewables"},null,{"$f":"raw_annual_energy!C311","v":"CAISO_Nuclear"},{"$f":"INDEX(K:K,MATCH(R311,Lists!J:J,0))","v":"CAISO_Nuclear"},"Non-wind",null,null,null,null,{"$f":"raw_fuel_burn!A311","v":0},{"$f":"INDEX(K:K,MATCH(Y311,Lists!J:J,0))","v":{"$error":"#N/A"}}]
[null,null,null,null,null,null,null,null,null,{"$f":"IFERROR(INDEX(raw_resource_build!$B$2:$B$1000,MATCH(0,COUNTIF($J$1:J311,raw_resource_build!$B$2:$B$1000), 0),0), \"\")","v":""},{"$f":"IF(J312=\"\", \"\", INDEX(raw_resource_build!E:E, MATCH(J312, raw_resource_build!B:B, 0)))","v":""},{"$f":"IF(J312=\"\", \"\", INDEX(raw_resource_build!C:C, MATCH(J312, raw_resource_build!B:B, 0)))","v":""},null,{"$f":"raw_resource_build!B312","v":"CAISO_Existing_Pumped_Storage"},"Non-wind",{"$f":"IFERROR(INDEX($E$5:$E$32,MATCH(raw_resource_build!$E312,Lists!$B$5:$B$32,0)),\"Non-CAISO\")","v":"Pumped Storage"},null,{"$f":"raw_annual_energy!C312","v":"CAISO_Nuclear"},{"$f":"INDEX(K:K,MATCH(R312,Lists!J:J,0))","v":"CAISO_Nuclear"},"Non-wind",null,null,null,null,{"$f":"raw_fuel_burn!A312","v":0},{"$f":"INDEX(K:K,MATCH(Y312,Lists!J:J,0))","v":{"$error":"#N/A"}}]
[null,null,null,null,null,null,null,null,null,{"$f":"IFERROR(INDEX(raw_resource_build!$B$2:$B$1000,MATCH(0,COUNTIF($J$1:J312,raw_resource_build!$B$2:$B$1000), 0),0), \"\")","v":""},{"$f":"IF(J313=\"\", \"\", INDEX(raw_resource_build!E:E, MATCH(J313, raw_resource_build!B:B, 0)))","v":""},{"$f":"IF(J313=\"\", \"\", INDEX(raw_resource_build!C:C, MATCH(J313, raw_resource_build!B:B, 0)))","v":""},null,{"$f":"raw_resource_build!B313","v":"CAISO_New_Pumped_Storage"},"Non-wind",{"$f":"IFERROR(INDEX($E$5:$E$32,MATCH(raw_resource_build!$E313,Lists!$B$5:$B$32,0)),\"Non-CAISO\")","v":"Pumped Storage"},null,{"$f":"raw_annual_energy!C313","v":"CAISO_Nuclear"},{"$f":"INDEX(K:K,MATCH(R313,Lists!J:J,0))","v":"CAISO_Nuclear"},"Non-wind",null,null,null,null,{"$f":"raw_fuel_burn!A313","v":0},{"$f":"INDEX(K:K,MATCH(Y313,Lists!J:J,0))","v":{"$error":"#N/A"}}]
[null,null,null,null,null,null,null,null,null,{"$f":"IFERROR(INDEX(raw_resource_build!$B$2:$B$1000,MATCH(0,COUNTIF($J$1:J313,raw_resource_build!$B$2:$B$1000), 0),0), \"\")","v":""},{"$f":"IF(J314=\"\", \"\", INDEX(raw_resource_build!E:E, MATCH(J314, raw_resource_build!B:B, 0)))","v":""},{"$f":"IF(J314=\"\", \"\", INDEX(raw_resource_build!C:C, MATCH(J314, raw_resource_build!B:B, 0)))","v":""},null,{"$f":"raw_resource_build!B314","v":"CAISO_New_Flow_Battery"},"Non-wind",{"$f":"IFERROR(INDEX($E$5:$E$32,MATCH(raw_resource_build!$E314,Lists!$B$5:$B$32,0)),\"Non-CAISO\")","v":"Battery (incl. BTM)"},null,{"$f":"raw_annual_energy!C314","v":"CAISO_Nuclear"},{"$f":"INDEX(K:K,MATCH(R314,Lists!J:J,0))","v":"CAISO_Nuclear"},"Non-wind",null,null,null,null,{"$f":"raw_fuel_burn!A314","v":0},{"$f":"INDEX(K:K,MATCH(Y314,Lists!J:J,0))","v":{"$error":"#N/A"}}]
[null,null,null,null,null,null,null,null,null,{"$f":"IFERROR(INDEX(raw_resource_build!$B$2:$B$1000,MATCH(0,COUNTIF($J$1:J314,raw_resource_build!$B$2:$B$1000), 0),0), \"\")","v":""},{"$f":"IF(J315=\"\", \"\", INDEX(raw_resource_build!E:E, MATCH(J315, raw_resource_build!B:B, 0)))","v":""},{"$f":"IF(J315=\"\", \"\", INDEX(raw_resource_build!C:C, MATCH(J315, raw_resource_build!B:B, 0)))","v":""},null,{"$f":"raw_resource_build!B315","v":"CAISO_New_Flow_Battery_2"},"Non-wind",{"$f":"IFERROR(INDEX($E$5:$E$32,MATCH(raw_resource_build!$E315,Lists!$B$5:$B$32,0)),\"Non-CAISO\")","v":"Battery (incl. BTM)"},null,{"$f":"raw_annual_energy!C315","v":"CAISO_Peaker1"},{"$f":"INDEX(K:K,MATCH(R315,Lists!J:J,0))","v":"CAISO_Peaker1"},"Non-wind",null,null,null,null,{"$f":"raw_fuel_burn!A315","v":0},{"$f":"INDEX(K:K,MATCH(Y315,Lists!J:J,0))","v":{"$error":"#N/A"}}]
[null,null,null,null,null,null,null,null,null,{"$f":"IFERROR(INDEX(raw_resource_build!$B$2:$B$1000,MATCH(0,COUNTIF($J$1:J315,raw_resource_build!$B$2:$B$1000), 0),0), \"\")","v":""},{"$f":"IF(J316=\"\", \"\", INDEX(raw_resource_build!E:E, MATCH(J316, raw_resource_build!B:B, 0)))","v":""},{"$f":"IF(J316=\"\", \"\", INDEX(raw_resource_build!C:C, MATCH(J316, raw_resource_build!B:B, 0)))","v":""},null,{"$f":"raw_resource_build!B316","v":"CAISO_New_Flow_Battery_3"},"Non-wind",{"$f":"IFERROR(INDEX($E$5:$E$32,MATCH(raw_resource_build!$E316,Lists!$B$5:$B$32,0)),\"Non-CAISO\")","v":"Battery (incl. BTM)"},null,{"$f":"raw_annual_energy!C316","v":"CAISO_Peaker1"},{"$f":"INDEX(K:K,MATCH(R316,Lists!J:J,0))","v":"CAISO_Peaker1"},"Non-wind",null,null,null,null,{"$f":"raw_fuel_burn!A316","v":0},{"$f":"INDEX(K:K,MATCH(Y316,Lists!J:J,0))","v":{"$error":"#N/A"}}]
[null,null,null,null,null,null,null,null,null,{"$f":"IFERROR(INDEX(raw_resource_build!$B$2:$B$1000,MATCH(0,COUNTIF($J$1:J316,raw_resource_build!$B$2:$B$1000), 0),0), \"\")","v":""},{"$f":"IF(J317=\"\", \"\", INDEX(raw_resource_build!E:E, MATCH(J317, raw_resource_build!B:B, 0)))","v":""},{"$f":"IF(J317=\"\", \"\", INDEX(raw_resource_build!C:C, MATCH(J317, raw_resource_build!B:B, 0)))","v":""},null,{"$f":"raw_resource_build!B317","v":"CAISO_New_Flow_Battery_4"},"Non-wind",{"$f":"IFERROR(INDEX($E$5:$E$32,MATCH(raw_resource_build!$E317,Lists!$B$5:$B$32,0)),\"Non-CAISO\")","v":"Battery (incl. BTM)"},null,{"$f":"raw_annual_energy!C317","v":"CAISO_Peaker1"},{"$f":"INDEX(K:K,MATCH(R317,Lists!J:J,0))","v":"CAISO_Peaker1"},"Non-wind",null,null,null,null,{"$f":"raw_fuel_burn!A317","v":0},{"$f":"INDEX(K:K,MATCH(Y317,Lists!J:J,0))","v":{"$error":"#N/A"}}]
[null,null,null,null,null,null,null,null,null,{"$f":"IFERROR(INDEX(raw_resource_build!$B$2:$B$1000,MATCH(0,COUNTIF($J$1:J317,raw_resource_build!$B$2:$B$1000), 0),0), \"\")","v":""},{"$f":"IF(J318=\"\", \"\", INDEX(raw_resource_build!E:E, MATCH(J318, raw_resource_build!B:B, 0)))","v":""},{"$f":"IF(J318=\"\", \"\", INDEX(raw_resource_build!C:C, MATCH(J318, raw_resource_build!B:B, 0)))","v":""},null,{"$f":"raw_resource_build!B318","v":"CAISO_New_Flow_Battery_5"},"Non-wind",{"$f":"IFERROR(INDEX($E$5:$E$32,MATCH(raw_resource_build!$E318,Lists!$B$5:$B$32,0)),\"Non-CAISO\")","v":"Battery (incl. BTM)"},null,{"$f":"raw_annual_energy!C318","v":"CAISO_Peaker1"},{"$f":"INDEX(K:K,MATCH(R318,Lists!J:J,0))","v":"CAISO_Peaker1"},"Non-wind",null,null,null,null,{"$f":"raw_fuel_burn!A318","v":0},{"$f":"INDEX(K:K,MATCH(Y318,Lists!J:J,0))","v":{"$error":"#N/A"}}]
[null,null,null,null,null,null,null,null,null,{"$f":"IFERROR(INDEX(raw_resource_build!$B$2:$B$1000,MATCH(0,COUNTIF($J$1:J318,raw_resource_build!$B$2:$B$1000), 0),0), \"\")","v":""},{"$f":"IF(J319=\"\", \"\", INDEX(raw_resource_build!E:E, MATCH(J319, raw_resource_build!B:B, 0)))","v":""},{"$f":"IF(J319=\"\", \"\", INDEX(raw_resource_build!C:C, MATCH(J319, raw_resource_build!B:B, 0)))","v":""},null,{"$f":"raw_resource_build!B319","v":"CAISO_New_Li_Battery"},"Non-wind",{"$f":"IFERROR(INDEX($E$5:$E$32,MATCH(raw_resource_build!$E319,Lists!$B$5:$B$32,0)),\"Non-CAISO\")","v":"Battery (incl. BTM)"},null,{"$f":"raw_annual_energy!C319","v":"CAISO_Peaker1"},{"$f":"INDEX(K:K,MATCH(R319,Lists!J:J,0))","v":"CAISO_Peaker1"},"Non-wind",null,null,null,null,{"$f":"raw_fuel_burn!A319","v":0},{"$f":"INDEX(K:K,MATCH(Y319,Lists!J:J,0))","v":{"$error":"#N/A"}}]
[null,null,null,null,null,null,null,null,null,{"$f":"IFERROR(INDEX(raw_resource_build!$B$2:$B$1000,MATCH(0,COUNTIF($J$1:J319,raw_resource_build!$B$2:$B$1000), 0),0), \"\")","v":""},{"$f":"IF(J320=\"\", \"\", INDEX(raw_resource_build!E:E, MATCH(J320, raw_resource_build!B:B, 0)))","v":""},{"$f":"IF(J320=\"\", \"\", INDEX(raw_resource_build!C:C, MATCH(J320, raw_resource_build!B:B, 0)))","v":""},null,{"$f":"raw_resource_build!B320","v":"CAISO_BTM_Li_Battery"},"Non-wind",{"$f":"IFERROR(INDEX($E$5:$E$32,MATCH(raw_resource_build!$E320,Lists!$B$5:$B$32,0)),\"Non-CAISO\")","v":"Battery (incl. BTM)"},null,{"$f":"raw_annual_energy!C320","v":"CAISO_Peaker1"},{"$f":"INDEX(K:K,MATCH(R320,Lists!J:J,0))","v":"CAISO_Peaker1"},"Non-wind",null,null,null,null,{"$f":"raw_fuel_burn!A320","v":0},{"$f":"INDEX(K:K,MATCH(Y320,Lists!J:J,0))","v":{"$error":"#N/A"}}]
[null,null,null,null,null,null,null,null,null,{"$f":"IFERROR(INDEX(raw_resource_build!$B$2:$B$1000,MATCH(0,COUNTIF($J$1:J320,raw_resource_build!$B$2:$B$1000), 0),0), \"\")","v":""},{"$f":"IF(J321=\"\", \"\", INDEX(raw_resource_build!E:E, MATCH(J321, raw_resource_build!B:B, 0)))","v":""},{"$f":"IF(J321=\"\", \"\", INDEX(raw_resource_build!C:C, MATCH(J321, raw_resource_build!B:B, 0)))","v":""},null,{"$f":"raw_resource_build!B321","v":"CAISO_New_Li_Battery_2"},"Non-wind",{"$f":"IFERROR(INDEX($E$5:$E$32,MATCH(raw_resource_build!$E321,Lists!$B$5:$B$32,0)),\"Non-CAISO\")","v":"Battery (incl. BTM)"},null,{"$f":"raw_annual_energy!C321","v":"CAISO_Peaker1"},{"$f":"INDEX(K:K,MATCH(R321,Lists!J:J,0))","v":"CAISO_Peaker1"},"Non-wind",null,null,null,null,{"$f":"raw_fuel_burn!A321","v":0},{"$f":"INDEX(K:K,MATCH(Y321,Lists!J:J,0))","v":{"$error":"#N/A"}}]
[null,null,null,null,null,null,null,null,null,{"$f":"IFERROR(INDEX(raw_resource_build!$B$2:$B$1000,MATCH(0,COUNTIF($J$1:J321,raw_resource_build!$B$2:$B$1000), 0),0), \"\")","v":""},{"$f":"IF(J322=\"\", \"\", INDEX(raw_resource_build!E:E, MATCH(J322, raw_resource_build!B:B, 0)))","v":""},{"$f":"IF(J322=\"\", \"\", INDEX(raw_resource_build!C:C, MATCH(J322, raw_resource_build!B:B, 0)))","v":""},null,{"$f":"raw_resource_build!B322","v":"CAISO_New_Li_Battery_3"},"Non-wind",{"$f":"IFERROR(INDEX($E$5:$E$32,MATCH(raw_resource_build!$E322,Lists!$B$5:$B$32,0)),\"Non-CAISO\")","v":"Battery (incl. BTM)"},null,{"$f":"raw_annual_energy!C322","v":"CAISO_Peaker1"},{"$f":"INDEX(K:K,MATCH(R322,Lists!J:J,0))","v":"CAISO_Peaker1"},"Non-wind",null,null,null,null,{"$f":"raw_fuel_burn!A322","v":0},{"$f":"INDEX(K:K,MATCH(Y322,Lists!J:J,0))","v":{"$error":"#N/A"}}]
[null,null,null,null,null,null,null,null,null,{"$f":"IFERROR(INDEX(raw_resource_build!$B$2:$B$1000,MATCH(0,COUNTIF($J$1:J322,raw_resource_build!$B$2:$B$1000), 0),0), \"\")","v":""},{"$f":"IF(J323=\"\", \"\", INDEX(raw_resource_build!E:E, MATCH(J323, raw_resource_build!B:B, 0)))","v":""},{"$f":"IF(J323=\"\", \"\", INDEX(raw_resource_build!C:C, MATCH(J323, raw_resource_build!B:B, 0)))","v":""},null,{"$f":"raw_resource_build!B323","v":"CAISO_New_Li_Battery_4"},{"$f":"IFERROR(INDEX($C$35:$C$99,MATCH($N323,$B$35:$B$99,0)),\"Non-wind\")","v":"Non-wind"},{"$f":"IFERROR(INDEX($E$5:$E$32,MATCH(raw_resource_build!$E323,Lists!$B$5:$B$32,0)),\"Non-CAISO\")","v":"Battery (incl. BTM)"},null,{"$f":"raw_annual_energy!C323","v":"CAISO_Peaker2"},{"$f":"INDEX(K:K,MATCH(R323,Lists!J:J,0))","v":"CAISO_Peaker2"},{"$f":"IFERROR(INDEX($C$35:$C$99,MATCH($R323,$B$35:$B$99,0)),\"Non-wind\")","v":"Non-wind"},null,null,null,null,{"$f":"raw_fuel_burn!A323","v":0},{"$f":"INDEX(K:K,MATCH(Y323,Lists!J:J,0))","v":{"$error":"#N/A"}}]
[null,null,null,null,null,null,null,null,null,{"$f":"IFERROR(INDEX(raw_resource_build!$B$2:$B$1000,MATCH(0,COUNTIF($J$1:J323,raw_resource_build!$B$2:$B$1000), 0),0), \"\")","v":""},{"$f":"IF(J324=\"\", \"\", INDEX(raw_resource_build!E:E, MATCH(J324, raw_resource_build!B:B, 0)))","v":""},{"$f":"IF(J324=\"\", \"\", INDEX(raw_resource_build!C:C, MATCH(J324, raw_resource_build!B:B, 0)))","v":""},null,{"$f":"raw_resource_build!B324","v":"CAISO_New_Li_Battery_5"},"Non-wind",{"$f":"IFERROR(INDEX($E$5:$E$32,MATCH(raw_resource_build!$E324,Lists!$B$5:$B$32,0)),\"Non-CAISO\")","v":"Battery (incl. BTM)"},null,{"$f":"raw_annual_energy!C324","v":"CAISO_Peaker2"},{"$f":"INDEX(K:K,MATCH(R324,Lists!J:J,0))","v":"CAISO_Peaker2"},"Non-wind",null,null,null,null,{"$f":"raw_fuel_burn!A324","v":0},{"$f":"INDEX(K:K,MATCH(Y324,Lists!J:J,0))","v":{"$error":"#N/A"}}]
[null,null,null,null,null,null,null,null,null,{"$f":"IFERROR(INDEX(raw_resource_build!$B$2:$B$1000,MATCH(0,COUNTIF($J$1:J324,raw_resource_build!$B$2:$B$1000), 0),0), \"\")","v":""},{"$f":"IF(J325=\"\", \"\", INDEX(raw_resource_build!E:E, MATCH(J325, raw_resource_build!B:B, 0)))","v":""},{"$f":"IF(J325=\"\", \"\", INDEX(raw_resource_build!C:C, MATCH(J325, raw_resource_build!B:B, 0)))","v":""},null,{"$f":"raw_resource_build!B325","v":"CAISO_New_Li_Battery_6"},"Non-wind",{"$f":"IFERROR(INDEX($E$5:$E$32,MATCH(raw_resource_build!$E325,Lists!$B$5:$B$32,0)),\"Non-CAISO\")","v":"Battery (incl. BTM)"},null,{"$f":"raw_annual_energy!C325","v":"CAISO_Peaker2"},{"$f":"INDEX(K:K,MATCH(R325,Lists!J:J,0))","v":"CAISO_Peaker2"},"Non-wind",null,null,null,null,{"$f":"raw_fuel_burn!A325","v":0},{"$f":"INDEX(K:K,MATCH(Y325,Lists!J:J,0))","v":{"$error":"#N/A"}}]
[null,null,null,null,null,null,null,null,null,{"$f":"IFERROR(INDEX(raw_resource_build!$B$2:$B$1000,MATCH(0,COUNTIF($J$1:J325,raw_resource_build!$B$2:$B$1000), 0),0), \"\")","v":""},{"$f":"IF(J326=\"\", \"\", INDEX(raw_resource_build!E:E, MATCH(J326, raw_resource_build!B:B, 0)))","v":""},{"$f":"IF(J326=\"\", \"\", INDEX(raw_resource_build!C:C, MATCH(J326, raw_resource_build!B:B, 0)))","v":""},null,{"$f":"raw_resource_build!B326","v":"CAISO_Hydro"},"Non-wind",{"$f":"IFERROR(INDEX($E$5:$E$32,MATCH(raw_resource_build!$E326,Lists!$B$5:$B$32,0)),\"Non-CAISO\")","v":"Hydro (small + large)"},null,{"$f":"raw_annual_energy!C326","v":"CAISO_Peaker2"},{"$f":"INDEX(K:K,MATCH(R326,Lists!J:J,0))","v":"CAISO_Peaker2"},"Non-wind",null,null,null,null,{"$f":"raw_fuel_burn!A326","v":0},{"$f":"INDEX(K:K,MATCH(Y326,Lists!J:J,0))","v":{"$error":"#N/A"}}]
[null,null,null,null,null,null,null,null,null,{"$f":"IFERROR(INDEX(raw_resource_build!$B$2:$B$1000,MATCH(0,COUNTIF($J$1:J326,raw_resource_build!$B$2:$B$1000), 0),0), \"\")","v":""},{"$f":"IF(J327=\"\", \"\", INDEX(raw_resource_build!E:E, MATCH(J327, raw_resource_build!B:B, 0)))","v":""},{"$f":"IF(J327=\"\", \"\", INDEX(raw_resource_build!C:C, MATCH(J327, raw_resource_build!B:B, 0)))","v":""},null,{"$f":"raw_resource_build!B327","v":"NW_Hydro"},"Non-wind",{"$f":"IFERROR(INDEX($E$5:$E$32,MATCH(raw_resource_build!$E327,Lists!$B$5:$B$32,0)),\"Non-CAISO\")","v":"Hydro (small + large)"},null,{"$f":"raw_annual_energy!C327","v":"CAISO_Peaker2"},{"$f":"INDEX(K:K,MATCH(R327,Lists!J:J,0))","v":"CAISO_Peaker2"},"Non-wind",null,null,null,null,{"$f":"raw_fuel_burn!A327","v":0},{"$f":"INDEX(K:K,MATCH(Y327,Lists!J:J,0))","v":{"$error":"#N/A"}}]
[null,null,null,null,null,null,null,null,null,{"$f":"IFERROR(INDEX(raw_resource_build!$B$2:$B$1000,MATCH(0,COUNTIF($J$1:J327,raw_resource_build!$B$2:$B$1000), 0),0), \"\")","v":""},{"$f":"IF(J328=\"\", \"\", INDEX(raw_resource_build!E:E, MATCH(J328, raw_resource_build!B:B, 0)))","v":""},{"$f":"IF(J328=\"\", \"\", INDEX(raw_resource_build!C:C, MATCH(J328, raw_resource_build!B:B, 0)))","v":""},null,{"$f":"raw_resource_build!B328","v":"SW_Hydro"},"Non-wind",{"$f":"IFERROR(INDEX($E$5:$E$32,MATCH(raw_resource_build!$E328,Lists!$B$5:$B$32,0)),\"Non-CAISO\")","v":"Hydro (small + large)"},null,{"$f":"raw_annual_energy!C328","v":"CAISO_Peaker2"},{"$f":"INDEX(K:K,MATCH(R328,Lists!J:J,0))","v":"CAISO_Peaker2"},"Non-wind",null,null,null,null,{"$f":"raw_fuel_burn!A328","v":0},{"$f":"INDEX(K:K,MATCH(Y328,Lists!J:J,0))","v":{"$error":"#N/A"}}]
[null,null,null,null,null,null,null,null,null,{"$f":"IFERROR(INDEX(raw_resource_build!$B$2:$B$1000,MATCH(0,COUNTIF($J$1:J328,raw_resource_build!$B$2:$B$1000), 0),0), \"\")","v":""},{"$f":"IF(J329=\"\", \"\", INDEX(raw_resource_build!E:E, MATCH(J329, raw_resource_build!B:B, 0)))","v":""},{"$f":"IF(J329=\"\", \"\", INDEX(raw_resource_build!C:C, MATCH(J329, raw_resource_build!B:B, 0)))","v":""},null,{"$f":"raw_resource_build!B329","v":"LDWP_Hydro"},"Non-wind",{"$f":"IFERROR(INDEX($E$5:$E$32,MATCH(raw_resource_build!$E329,Lists!$B$5:$B$32,0)),\"Non-CAISO\")","v":"Hydro (small + large)"},null,{"$f":"raw_annual_energy!C329","v":"CAISO_Peaker2"},{"$f":"INDEX(K:K,MATCH(R329,Lists!J:J,0))","v":"CAISO_Peaker2"},"Non-wind",null,null,null,null,{"$f":"raw_fuel_burn!A329","v":0},{"$f":"INDEX(K:K,MATCH(Y329,Lists!J:J,0))","v":{"$error":"#N/A"}}]
[null,null,null,null,null,null,null,null,null,{"$f":"IFERROR(INDEX(raw_resource_build!$B$2:$B$1000,MATCH(0,COUNTIF($J$1:J329,raw_resource_build!$B$2:$B$1000), 0),0), \"\")","v":""},{"$f":"IF(J330=\"\", \"\", INDEX(raw_resource_build!E:E, MATCH(J330, raw_resource_build!B:B, 0)))","v":""},{"$f":"IF(J330=\"\", \"\", INDEX(raw_resource_build!C:C, MATCH(J330, raw_resource_build!B:B, 0)))","v":""},null,{"$f":"raw_resource_build!B330","v":"BANC_Hydro"},"Non-wind",{"$f":"IFERROR(INDEX($E$5:$E$32,MATCH(raw_resource_build!$E330,Lists!$B$5:$B$32,0)),\"Non-CAISO\")","v":"Hydro (small + large)"},null,{"$f":"raw_annual_energy!C330","v":"CAISO_Peaker2"},{"$f":"INDEX(K:K,MATCH(R330,Lists!J:J,0))","v":"CAISO_Peaker2"},"Non-wind",null,null,null,null,{"$f":"raw_fuel_burn!A330","v":0},{"$f":"INDEX(K:K,MATCH(Y330,Lists!J:J,0))","v":{"$error":"#N/A"}}]
[null,null,null,null,null,null,null,null,null,{"$f":"IFERROR(INDEX(raw_resource_build!$B$2:$B$1000,MATCH(0,COUNTIF($J$1:J330,raw_resource_build!$B$2:$B$1000), 0),0), \"\")","v":""},{"$f":"IF(J331=\"\", \"\", INDEX(raw_resource_build!E:E, MATCH(J331, raw_resource_build!B:B, 0)))","v":""},{"$f":"IF(J331=\"\", \"\", INDEX(raw_resource_build!C:C, MATCH(J331, raw_resource_build!B:B, 0)))","v":""},null,{"$f":"raw_resource_build!B331","v":"IID_Hydro"},"Non-wind",{"$f":"IFERROR(INDEX($E$5:$E$32,MATCH(raw_resource_build!$E331,Lists!$B$5:$B$32,0)),\"Non-CAISO\")","v":"Hydro (small + large)"},null,{"$f":"raw_annual_energy!C331","v":"CAISO_Reciprocating_Engine"},{"$f":"INDEX(K:K,MATCH(R331,Lists!J:J,0))","v":"CAISO_Reciprocating_Engine"},"Non-wind",null,null,null,null,{"$f":"raw_fuel_burn!A331","v":0},{"$f":"INDEX(K:K,MATCH(Y331,Lists!J:J,0))","v":{"$error":"#N/A"}}]
[null,null,null,null,null,null,null,null,null,{"$f":"IFERROR(INDEX(raw_resource_build!$B$2:$B$1000,MATCH(0,COUNTIF($J$1:J331,raw_resource_build!$B$2:$B$1000), 0),0), \"\")","v":""},{"$f":"IF(J332=\"\", \"\", INDEX(raw_resource_build!E:E, MATCH(J332, raw_resource_build!B:B, 0)))","v":""},{"$f":"IF(J332=\"\", \"\", INDEX(raw_resource_build!C:C, MATCH(J332, raw_resource_build!B:B, 0)))","v":""},null,{"$f":"raw_resource_build!B332","v":"NW_Hydro_for_CAISO"},"Non-wind",{"$f":"IFERROR(INDEX($E$5:$E$32,MATCH(raw_resource_build!$E332,Lists!$B$5:$B$32,0)),\"Non-CAISO\")","v":"Imports"},null,{"$f":"raw_annual_energy!C332","v":"CAISO_Reciprocating_Engine"},{"$f":"INDEX(K:K,MATCH(R332,Lists!J:J,0))","v":"CAISO_Reciprocating_Engine"},"Non-wind",null,null,null,null,{"$f":"raw_fuel_burn!A332","v":0},{"$f":"INDEX(K:K,MATCH(Y332,Lists!J:J,0))","v":{"$error":"#N/A"}}]
[null,null,null,null,null,null,null,null,null,{"$f":"IFERROR(INDEX(raw_resource_build!$B$2:$B$1000,MATCH(0,COUNTIF($J$1:J332,raw_resource_build!$B$2:$B$1000), 0),0), \"\")","v":""},{"$f":"IF(J333=\"\", \"\", INDEX(raw_resource_build!E:E, MATCH(J333, raw_resource_build!B:B, 0)))","v":""},{"$f":"IF(J333=\"\", \"\", INDEX(raw_resource_build!C:C, MATCH(J333, raw_resource_build!B:B, 0)))","v":""},null,{"$f":"raw_resource_build!B333","v":"Hydrogen_electrolysis"},"Non-wind",{"$f":"IFERROR(INDEX($E$5:$E$32,MATCH(raw_resource_build!$E333,Lists!$B$5:$B$32,0)),\"Non-CAISO\")","v":"Hydrogen Load"},null,{"$f":"raw_annual_energy!C333","v":"CAISO_Reciprocating_Engine"},{"$f":"INDEX(K:K,MATCH(R333,Lists!J:J,0))","v":"CAISO_Reciprocating_Engine"},"Non-wind",null,null,null,null,{"$f":"raw_fuel_burn!A333","v":0},{"$f":"INDEX(K:K,MATCH(Y333,Lists!J:J,0))","v":{"$error":"#N/A"}}]
[null,null,null,null,null,null,null,null,null,{"$f":"IFERROR(INDEX(raw_resource_build!$B$2:$B$1000,MATCH(0,COUNTIF($J$1:J333,raw_resource_build!$B$2:$B$1000), 0),0), \"\")","v":""},{"$f":"IF(J334=\"\", \"\", INDEX(raw_resource_build!E:E, MATCH(J334, raw_resource_build!B:B, 0)))","v":""},{"$f":"IF(J334=\"\", \"\", INDEX(raw_resource_build!C:C, MATCH(J334, raw_resource_build!B:B, 0)))","v":""},null,{"$f":"raw_resource_build!B334","v":"CAISO_Shed_DR_Existing"},"Non-wind",{"$f":"IFERROR(INDEX($E$5:$E$32,MATCH(raw_resource_build!$E334,Lists!$B$5:$B$32,0)),\"Non-CAISO\")","v":"Shed DR"},null,{"$f":"raw_annual_energy!C334","v":"CAISO_Reciprocating_Engine"},{"$f":"INDEX(K:K,MATCH(R334,Lists!J:J,0))","v":"CAISO_Reciprocating_Engine"},"Non-wind",null,null,null,null,{"$f":"raw_fuel_burn!A334","v":0},{"$f":"INDEX(K:K,MATCH(Y334,Lists!J:J,0))","v":{"$error":"#N/A"}}]
[null,null,null,null,null,null,null,null,null,{"$f":"IFERROR(INDEX(raw_resource_build!$B$2:$B$1000,MATCH(0,COUNTIF($J$1:J334,raw_resource_build!$B$2:$B$1000), 0),0), \"\")","v":""},{"$f":"IF(J335=\"\", \"\", INDEX(raw_resource_build!E:E, MATCH(J335, raw_resource_build!B:B, 0)))","v":""},{"$f":"IF(J335=\"\", \"\", INDEX(raw_resource_build!C:C, MATCH(J335, raw_resource_build!B:B, 0)))","v":""},null,{"$f":"raw_resource_build!B335","v":"CAISO_Shed_DR_Tranche1"},"Non-wind",{"$f":"IFERROR(INDEX($E$5:$E$32,MATCH(raw_resource_build!$E335,Lists!$B$5:$B$32,0)),\"Non-CAISO\")","v":"Shed DR"},null,{"$f":"raw_annual_energy!C335","v":"CAISO_Reciprocating_Engine"},{"$f":"INDEX(K:K,MATCH(R335,Lists!J:J,0))","v":"CAISO_Reciprocating_Engine"},"Non-wind",null,null,null,null,{"$f":"raw_fuel_burn!A335","v":0},{"$f":"INDEX(K:K,MATCH(Y335,Lists!J:J,0))","v":{"$error":"#N/A"}}]
[null,null,null,null,null,null,null,null,null,{"$f":"IFERROR(INDEX(raw_resource_build!$B$2:$B$1000,MATCH(0,COUNTIF($J$1:J335,raw_resource_build!$B$2:$B$1000), 0),0), \"\")","v":""},{"$f":"IF(J336=\"\", \"\", INDEX(raw_resource_build!E:E, MATCH(J336, raw_resource_build!B:B, 0)))","v":""},{"$f":"IF(J336=\"\", \"\", INDEX(raw_resource_build!C:C, MATCH(J336, raw_resource_build!B:B, 0)))","v":""},null,{"$f":"raw_resource_build!B336","v":"CAISO_Shed_DR_Tranche2"},"Non-wind",{"$f":"IFERROR(INDEX($E$5:$E$32,MATCH(raw_resource_build!$E336,Lists!$B$5:$B$32,0)),\"Non-CAISO\")","v":"Shed DR"},null,{"$f":"raw_annual_energy!C336","v":"CAISO_Reciprocating_Engine"},{"$f":"INDEX(K:K,MATCH(R336,Lists!J:J,0))","v":"CAISO_Reciprocating_Engine"},"Non-wind",null,null,null,null,{"$f":"raw_fuel_burn!A336","v":0},{"$f":"INDEX(K:K,MATCH(Y336,Lists!J:J,0))","v":{"$error":"#N/A"}}]
[null,null,null,null,null,null,null,null,null,{"$f":"IFERROR(INDEX(raw_resource_build!$B$2:$B$1000,MATCH(0,COUNTIF($J$1:J336,raw_resource_build!$B$2:$B$1000), 0),0), \"\")","v":""},{"$f":"IF(J337=\"\", \"\", INDEX(raw_resource_build!E:E, MATCH(J337, raw_resource_build!B:B, 0)))","v":""},{"$f":"IF(J337=\"\", \"\", INDEX(raw_resource_build!C:C, MATCH(J337, raw_resource_build!B:B, 0)))","v":""},null,{"$f":"raw_resource_build!B337","v":"CAISO_Shed_DR_Tranche3"},"Non-wind",{"$f":"IFERROR(INDEX($E$5:$E$32,MATCH(raw_resource_build!$E337,Lists!$B$5:$B$32,0)),\"Non-CAISO\")","v":"Shed DR"},null,{"$f":"raw_annual_energy!C337","v":"CAISO_Reciprocating_Engine"},{"$f":"INDEX(K:K,MATCH(R337,Lists!J:J,0))","v":"CAISO_Reciprocating_Engine"},"Non-wind",null,null,null,null,{"$f":"raw_fuel_burn!A337","v":0},{"$f":"INDEX(K:K,MATCH(Y337,Lists!J:J,0))","v":{"$error":"#N/A"}}]
[null,null,null,null,null,null,null,null,null,{"$f":"IFERROR(INDEX(raw_resource_build!$B$2:$B$1000,MATCH(0,COUNTIF($J$1:J337,raw_resource_build!$B$2:$B$1000), 0),0), \"\")","v":""},{"$f":"IF(J338=\"\", \"\", INDEX(raw_resource_build!E:E, MATCH(J338, raw_resource_build!B:B, 0)))","v":""},{"$f":"IF(J338=\"\", \"\", INDEX(raw_resource_build!C:C, MATCH(J338, raw_resource_build!B:B, 0)))","v":""},null,{"$f":"raw_resource_build!B338","v":"CAISO_Shed_DR_Tranche4"},"Non-wind",{"$f":"IFERROR(INDEX($E$5:$E$32,MATCH(raw_resource_build!$E338,Lists!$B$5:$B$32,0)),\"Non-CAISO\")","v":"Shed DR"},null,{"$f":"raw_annual_energy!C338","v":"CAISO_Reciprocating_Engine"},{"$f":"INDEX(K:K,MATCH(R338,Lists!J:J,0))","v":"CAISO_Reciprocating_Engine"},"Non-wind",null,null,null,null,{"$f":"raw_fuel_burn!A338","v":0},{"$f":"INDEX(K:K,MATCH(Y338,Lists!J:J,0))","v":{"$error":"#N/A"}}]
[null,null,null,null,null,null,null,null,null,{"$f":"IFERROR(INDEX(raw_resource_build!$B$2:$B$1000,MATCH(0,COUNTIF($J$1:J338,raw_resource_build!$B$2:$B$1000), 0),0), \"\")","v":""},{"$f":"IF(J339=\"\", \"\", INDEX(raw_resource_build!E:E, MATCH(J339, raw_resource_build!B:B, 0)))","v":""},{"$f":"IF(J339=\"\", \"\", INDEX(raw_resource_build!C:C, MATCH(J339, raw_resource_build!B:B, 0)))","v":""},null,{"$f":"raw_resource_build!B339","v":"CAISO_Shed_DR_Tranche5"},"Non-wind",{"$f":"IFERROR(INDEX($E$5:$E$32,MATCH(raw_resource_build!$E339,Lists!$B$5:$B$32,0)),\"Non-CAISO\")","v":"Shed DR"},null,{"$f":"raw_annual_energy!C339","v":"CAISO_ST"},{"$f":"INDEX(K:K,MATCH(R339,Lists!J:J,0))","v":"CAISO_ST"},"Non-wind",null,null,null,null,{"$f":"raw_fuel_burn!A339","v":0},{"$f":"INDEX(K:K,MATCH(Y339,Lists!J:J,0))","v":{"$error":"#N/A"}}]
[null,null,null,null,null,null,null,null,null,{"$f":"IFERROR(INDEX(raw_resource_build!$B$2:$B$1000,MATCH(0,COUNTIF($J$1:J339,raw_resource_build!$B$2:$B$1000), 0),0), \"\")","v":""},{"$f":"IF(J340=\"\", \"\", INDEX(raw_resource_build!E:E, MATCH(J340, raw_resource_build!B:B, 0)))","v":""},{"$f":"IF(J340=\"\", \"\", INDEX(raw_resource_build!C:C, MATCH(J340, raw_resource_build!B:B, 0)))","v":""},null,{"$f":"raw_resource_build!B340","v":"CAISO_Shed_DR_Tranche6"},"Non-wind",{"$f":"IFERROR(INDEX($E$5:$E$32,MATCH(raw_resource_build!$E340,Lists!$B$5:$B$32,0)),\"Non-CAISO\")","v":"Shed DR"},null,{"$f":"raw_annual_energy!C340","v":"CAISO_ST"},{"$f":"INDEX(K:K,MATCH(R340,Lists!J:J,0))","v":"CAISO_ST"},"Non-wind",null,null,null,null,{"$f":"raw_fuel_burn!A340","v":0},{"$f":"INDEX(K:K,MATCH(Y340,Lists!J:J,0))","v":{"$error":"#N/A"}}]
[null,null,null,null,null,null,null,null,null,{"$f":"IFERROR(INDEX(raw_resource_build!$B$2:$B$1000,MATCH(0,COUNTIF($J$1:J340,raw_resource_build!$B$2:$B$1000), 0),0), \"\")","v":""},{"$f":"IF(J341=\"\", \"\", INDEX(raw_resource_build!E:E, MATCH(J341, raw_resource_build!B:B, 0)))","v":""},{"$f":"IF(J341=\"\", \"\", INDEX(raw_resource_build!C:C, MATCH(J341, raw_resource_build!B:B, 0)))","v":""},null,{"$f":"raw_resource_build!B341","v":"CAISO_Shed_DR_Tranche7"},"Non-wind",{"$f":"IFERROR(INDEX($E$5:$E$32,MATCH(raw_resource_build!$E341,Lists!$B$5:$B$32,0)),\"Non-CAISO\")","v":"Shed DR"},null,{"$f":"raw_annual_energy!C341","v":"CAISO_ST"},{"$f":"INDEX(K:K,MATCH(R341,Lists!J:J,0))","v":"CAISO_ST"},"Non-wind",null,null,null,null,{"$f":"raw_fuel_burn!A341","v":0},{"$f":"INDEX(K:K,MATCH(Y341,Lists!J:J,0))","v":{"$error":"#N/A"}}]
[null,null,null,null,null,null,null,null,null,{"$f":"IFERROR(INDEX(raw_resource_build!$B$2:$B$1000,MATCH(0,COUNTIF($J$1:J341,raw_resource_build!$B$2:$B$1000), 0),0), \"\")","v":""},{"$f":"IF(J342=\"\", \"\", INDEX(raw_resource_build!E:E, MATCH(J342, raw_resource_build!B:B, 0)))","v":""},{"$f":"IF(J342=\"\", \"\", INDEX(raw_resource_build!C:C, MATCH(J342, raw_resource_build!B:B, 0)))","v":""},null,{"$f":"raw_resource_build!B342","v":"CAISO_Shed_DR_Tranche8"},"Non-wind",{"$f":"IFERROR(INDEX($E$5:$E$32,MATCH(raw_resource_build!$E342,Lists!$B$5:$B$32,0)),\"Non-CAISO\")","v":"Shed DR"},null,{"$f":"raw_annual_energy!C342","v":"CAISO_ST"},{"$f":"INDEX(K:K,MATCH(R342,Lists!J:J,0))","v":"CAISO_ST"},"Non-wind",null,null,null,null,{"$f":"raw_fuel_burn!A342","v":0},{"$f":"INDEX(K:K,MATCH(Y342,Lists!J:J,0))","v":{"$error":"#N/A"}}]
[null,null,null,null,null,null,null,null,null,{"$f":"IFERROR(INDEX(raw_resource_build!$B$2:$B$1000,MATCH(0,COUNTIF($J$1:J342,raw_resource_build!$B$2:$B$1000), 0),0), \"\")","v":""},{"$f":"IF(J343=\"\", \"\", INDEX(raw_resource_build!E:E, MATCH(J343, raw_resource_build!B:B, 0)))","v":""},{"$f":"IF(J343=\"\", \"\", INDEX(raw_resource_build!C:C, MATCH(J343, raw_resource_build!B:B, 0)))","v":""},null,{"$f":"raw_resource_build!B343","v":"CAISO_CHP"},"Non-wind",{"$f":"IFERROR(INDEX($E$5:$E$32,MATCH(raw_resource_build!$E343,Lists!$B$5:$B$32,0)),\"Non-CAISO\")","v":"CHP"},null,{"$f":"raw_annual_energy!C343","v":"CAISO_ST"},{"$f":"INDEX(K:K,MATCH(R343,Lists!J:J,0))","v":"CAISO_ST"},"Non-wind",null,null,null,null,{"$f":"raw_fuel_burn!A343","v":0},{"$f":"INDEX(K:K,MATCH(Y343,Lists!J:J,0))","v":{"$error":"#N/A"}}]
[null,null,null,null,null,null,null,null,null,{"$f":"IFERROR(INDEX(raw_resource_build!$B$2:$B$1000,MATCH(0,COUNTIF($J$1:J343,raw_resource_build!$B$2:$B$1000), 0),0), \"\")","v":""},{"$f":"IF(J344=\"\", \"\", INDEX(raw_resource_build!E:E, MATCH(J344, raw_resource_build!B:B, 0)))","v":""},{"$f":"IF(J344=\"\", \"\", INDEX(raw_resource_build!C:C, MATCH(J344, raw_resource_build!B:B, 0)))","v":""},null,{"$f":"raw_resource_build!B344","v":"CAISO_Nuclear"},"Non-wind",{"$f":"IFERROR(INDEX($E$5:$E$32,MATCH(raw_resource_build!$E344,Lists!$B$5:$B$32,0)),\"Non-CAISO\")","v":"Nuclear"},null,{"$f":"raw_annual_energy!C344","v":"CAISO_ST"},{"$f":"INDEX(K:K,MATCH(R344,Lists!J:J,0))","v":"CAISO_ST"},"Non-wind",null,null,null,null,{"$f":"raw_fuel_burn!A344","v":0},{"$f":"INDEX(K:K,MATCH(Y344,Lists!J:J,0))","v":{"$error":"#N/A"}}]
[null,null,null,null,null,null,null,null,null,{"$f":"IFERROR(INDEX(raw_resource_build!$B$2:$B$1000,MATCH(0,COUNTIF($J$1:J344,raw_resource_build!$B$2:$B$1000), 0),0), \"\")","v":""},{"$f":"IF(J345=\"\", \"\", INDEX(raw_resource_build!E:E, MATCH(J345, raw_resource_build!B:B, 0)))","v":""},{"$f":"IF(J345=\"\", \"\", INDEX(raw_resource_build!C:C, MATCH(J345, raw_resource_build!B:B, 0)))","v":""},null,{"$f":"raw_resource_build!B345","v":"CAISO_CCGT1"},"Non-wind",{"$f":"IFERROR(INDEX($E$5:$E$32,MATCH(raw_resource_build!$E345,Lists!$B$5:$B$32,0)),\"Non-CAISO\")","v":"CCGT"},null,{"$f":"raw_annual_energy!C345","v":"CAISO_ST"},{"$f":"INDEX(K:K,MATCH(R345,Lists!J:J,0))","v":"CAISO_ST"},"Non-wind",null,null,null,null,{"$f":"raw_fuel_burn!A345","v":0},{"$f":"INDEX(K:K,MATCH(Y345,Lists!J:J,0))","v":{"$error":"#N/A"}}]
[null,null,null,null,null,null,null,null,null,{"$f":"IFERROR(INDEX(raw_resource_build!$B$2:$B$1000,MATCH(0,COUNTIF($J$1:J345,raw_resource_build!$B$2:$B$1000), 0),0), \"\")","v":""},{"$f":"IF(J346=\"\", \"\", INDEX(raw_resource_build!E:E, MATCH(J346, raw_resource_build!B:B, 0)))","v":""},{"$f":"IF(J346=\"\", \"\", INDEX(raw_resource_build!C:C, MATCH(J346, raw_resource_build!B:B, 0)))","v":""},null,{"$f":"raw_resource_build!B346","v":"CAISO_CCGT2"},"Non-wind",{"$f":"IFERROR(INDEX($E$5:$E$32,MATCH(raw_resource_build!$E346,Lists!$B$5:$B$32,0)),\"Non-CAISO\")","v":"CCGT"},null,{"$f":"raw_annual_energy!C346","v":"CAISO_ST"},{"$f":"INDEX(K:K,MATCH(R346,Lists!J:J,0))","v":"CAISO_ST"},"Non-wind",null,null,null,null,{"$f":"raw_fuel_burn!A346","v":0},{"$f":"INDEX(K:K,MATCH(Y346,Lists!J:J,0))","v":{"$error":"#N/A"}}]
[null,null,null,null,null,null,null,null,null,{"$f":"IFERROR(INDEX(raw_resource_build!$B$2:$B$1000,MATCH(0,COUNTIF($J$1:J346,raw_resource_build!$B$2:$B$1000), 0),0), \"\")","v":""},{"$f":"IF(J347=\"\", \"\", INDEX(raw_resource_build!E:E, MATCH(J347, raw_resource_build!B:B, 0)))","v":""},{"$f":"IF(J347=\"\", \"\", INDEX(raw_resource_build!C:C, MATCH(J347, raw_resource_build!B:B, 0)))","v":""},null,{"$f":"raw_resource_build!B347","v":"CAISO_Coal"},"Non-wind",{"$f":"IFERROR(INDEX($E$5:$E$32,MATCH(raw_resource_build!$E347,Lists!$B$5:$B$32,0)),\"Non-CAISO\")","v":"Coal"},null,{"$f":"raw_annual_energy!C347","v":"CAISO_Shed_DR_Existing"},{"$f":"INDEX(K:K,MATCH(R347,Lists!J:J,0))","v":"CAISO_Conventional_DR"},"Non-wind",null,null,null,null,{"$f":"raw_fuel_burn!A347","v":0},{"$f":"INDEX(K:K,MATCH(Y347,Lists!J:J,0))","v":{"$error":"#N/A"}}]
[null,null,null,null,null,null,null,null,null,{"$f":"IFERROR(INDEX(raw_resource_build!$B$2:$B$1000,MATCH(0,COUNTIF($J$1:J347,raw_resource_build!$B$2:$B$1000), 0),0), \"\")","v":""},{"$f":"IF(J348=\"\", \"\", INDEX(raw_resource_build!E:E, MATCH(J348, raw_resource_build!B:B, 0)))","v":""},{"$f":"IF(J348=\"\", \"\", INDEX(raw_resource_build!C:C, MATCH(J348, raw_resource_build!B:B, 0)))","v":""},null,{"$f":"raw_resource_build!B348","v":"CAISO_Peaker1"},"Non-wind",{"$f":"IFERROR(INDEX($E$5:$E$32,MATCH(raw_resource_build!$E348,Lists!$B$5:$B$32,0)),\"Non-CAISO\")","v":"Peaker"},null,{"$f":"raw_annual_energy!C348","v":"CAISO_Shed_DR_Existing"},{"$f":"INDEX(K:K,MATCH(R348,Lists!J:J,0))","v":"CAISO_Conventional_DR"},"Non-wind",null,null,null,null,{"$f":"raw_fuel_burn!A348","v":0},{"$f":"INDEX(K:K,MATCH(Y348,Lists!J:J,0))","v":{"$error":"#N/A"}}]
[null,null,null,null,null,null,null,null,null,{"$f":"IFERROR(INDEX(raw_resource_build!$B$2:$B$1000,MATCH(0,COUNTIF($J$1:J348,raw_resource_build!$B$2:$B$1000), 0),0), \"\")","v":""},{"$f":"IF(J349=\"\", \"\", INDEX(raw_resource_build!E:E, MATCH(J349, raw_resource_build!B:B, 0)))","v":""},{"$f":"IF(J349=\"\", \"\", INDEX(raw_resource_build!C:C, MATCH(J349, raw_resource_build!B:B, 0)))","v":""},null,{"$f":"raw_resource_build!B349","v":"CAISO_Peaker2"},"Non-wind",{"$f":"IFERROR(INDEX($E$5:$E$32,MATCH(raw_resource_build!$E349,Lists!$B$5:$B$32,0)),\"Non-CAISO\")","v":"Peaker"},null,{"$f":"raw_annual_energy!C349","v":"CAISO_Shed_DR_Existing"},{"$f":"INDEX(K:K,MATCH(R349,Lists!J:J,0))","v":"CAISO_Conventional_DR"},"Non-wind",null,null,null,null,{"$f":"raw_fuel_burn!A349","v":0},{"$f":"INDEX(K:K,MATCH(Y349,Lists!J:J,0))","v":{"$error":"#N/A"}}]
[null,null,null,null,null,null,null,null,null,{"$f":"IFERROR(INDEX(raw_resource_build!$B$2:$B$1000,MATCH(0,COUNTIF($J$1:J349,raw_resource_build!$B$2:$B$1000), 0),0), \"\")","v":""},{"$f":"IF(J350=\"\", \"\", INDEX(raw_resource_build!E:E, MATCH(J350, raw_resource_build!B:B, 0)))","v":""},{"$f":"IF(J350=\"\", \"\", INDEX(raw_resource_build!C:C, MATCH(J350, raw_resource_build!B:B, 0)))","v":""},null,{"$f":"raw_resource_build!B350","v":"CAISO_Advanced_CCGT"},"Non-wind",{"$f":"IFERROR(INDEX($E$5:$E$32,MATCH(raw_resource_build!$E350,Lists!$B$5:$B$32,0)),\"Non-CAISO\")","v":"CCGT"},null,{"$f":"raw_annual_energy!C350","v":"CAISO_Shed_DR_Existing"},{"$f":"INDEX(K:K,MATCH(R350,Lists!J:J,0))","v":"CAISO_Conventional_DR"},"Non-wind",null,null,null,null,{"$f":"raw_fuel_burn!A350","v":0},{"$f":"INDEX(K:K,MATCH(Y350,Lists!J:J,0))","v":{"$error":"#N/A"}}]
[null,null,null,null,null,null,null,null,null,{"$f":"IFERROR(INDEX(raw_resource_build!$B$2:$B$1000,MATCH(0,COUNTIF($J$1:J350,raw_resource_build!$B$2:$B$1000), 0),0), \"\")","v":""},{"$f":"IF(J351=\"\", \"\", INDEX(raw_resource_build!E:E, MATCH(J351, raw_resource_build!B:B, 0)))","v":""},{"$f":"IF(J351=\"\", \"\", INDEX(raw_resource_build!C:C, MATCH(J351, raw_resource_build!B:B, 0)))","v":""},null,{"$f":"raw_resource_build!B351","v":"CAISO_Aero_CT"},"Non-wind",{"$f":"IFERROR(INDEX($E$5:$E$32,MATCH(raw_resource_build!$E351,Lists!$B$5:$B$32,0)),\"Non-CAISO\")","v":"Peaker"},null,{"$f":"raw_annual_energy!C351","v":"CAISO_Shed_DR_Existing"},{"$f":"INDEX(K:K,MATCH(R351,Lists!J:J,0))","v":"CAISO_Conventional_DR"},"Non-wind",null,null,null,null,{"$f":"raw_fuel_burn!A351","v":0},{"$f":"INDEX(K:K,MATCH(Y351,Lists!J:J,0))","v":{"$error":"#N/A"}}]
[null,null,null,null,null,null,null,null,null,{"$f":"IFERROR(INDEX(raw_resource_build!$B$2:$B$1000,MATCH(0,COUNTIF($J$1:J351,raw_resource_build!$B$2:$B$1000), 0),0), \"\")","v":""},{"$f":"IF(J352=\"\", \"\", INDEX(raw_resource_build!E:E, MATCH(J352, raw_resource_build!B:B, 0)))","v":""},{"$f":"IF(J352=\"\", \"\", INDEX(raw_resource_build!C:C, MATCH(J352, raw_resource_build!B:B, 0)))","v":""},null,{"$f":"raw_resource_build!B352","v":"CAISO_Reciprocating_Engine"},"Non-wind",{"$f":"IFERROR(INDEX($E$5:$E$32,MATCH(raw_resource_build!$E352,Lists!$B$5:$B$32,0)),\"Non-CAISO\")","v":"Peaker"},null,{"$f":"raw_annual_energy!C352","v":"CAISO_Shed_DR_Existing"},{"$f":"INDEX(K:K,MATCH(R352,Lists!J:J,0))","v":"CAISO_Conventional_DR"},"Non-wind",null,null,null,null,{"$f":"raw_fuel_burn!A352","v":0},{"$f":"INDEX(K:K,MATCH(Y352,Lists!J:J,0))","v":{"$error":"#N/A"}}]
[null,null,null,null,null,null,null,null,null,{"$f":"IFERROR(INDEX(raw_resource_build!$B$2:$B$1000,MATCH(0,COUNTIF($J$1:J352,raw_resource_build!$B$2:$B$1000), 0),0), \"\")","v":""},{"$f":"IF(J353=\"\", \"\", INDEX(raw_resource_build!E:E, MATCH(J353, raw_resource_build!B:B, 0)))","v":""},{"$f":"IF(J353=\"\", \"\", INDEX(raw_resource_build!C:C, MATCH(J353, raw_resource_build!B:B, 0)))","v":""},null,{"$f":"raw_resource_build!B353","v":"CAISO_ST"},"Non-wind",{"$f":"IFERROR(INDEX($E$5:$E$32,MATCH(raw_resource_build!$E353,Lists!$B$5:$B$32,0)),\"Non-CAISO\")","v":"Steam Turbine"},null,{"$f":"raw_annual_energy!C353","v":"CAISO_Shed_DR_Existing"},{"$f":"INDEX(K:K,MATCH(R353,Lists!J:J,0))","v":"CAISO_Conventional_DR"},"Non-wind",null,null,null,null,{"$f":"raw_fuel_burn!A353","v":0},{"$f":"INDEX(K:K,MATCH(Y353,Lists!J:J,0))","v":{"$error":"#N/A"}}]
[null,null,null,null,null,null,null,null,null,{"$f":"IFERROR(INDEX(raw_resource_build!$B$2:$B$1000,MATCH(0,COUNTIF($J$1:J353,raw_resource_build!$B$2:$B$1000), 0),0), \"\")","v":""},{"$f":"IF(J354=\"\", \"\", INDEX(raw_resource_build!E:E, MATCH(J354, raw_resource_build!B:B, 0)))","v":""},{"$f":"IF(J354=\"\", \"\", INDEX(raw_resource_build!C:C, MATCH(J354, raw_resource_build!B:B, 0)))","v":""},null,{"$f":"raw_resource_build!B354","v":"NW_Nuclear"},"Non-wind",{"$f":"IFERROR(INDEX($E$5:$E$32,MATCH(raw_resource_build!$E354,Lists!$B$5:$B$32,0)),\"Non-CAISO\")","v":"Non-CAISO"},null,{"$f":"raw_annual_energy!C354","v":"CAISO_Shed_DR_Existing"},{"$f":"INDEX(K:K,MATCH(R354,Lists!J:J,0))","v":"CAISO_Conventional_DR"},"Non-wind",null,null,null,null,{"$f":"raw_fuel_burn!A354","v":0},{"$f":"INDEX(K:K,MATCH(Y354,Lists!J:J,0))","v":{"$error":"#N/A"}}]
[null,null,null,null,null,null,null,null,null,{"$f":"IFERROR(INDEX(raw_resource_build!$B$2:$B$1000,MATCH(0,COUNTIF($J$1:J354,raw_resource_build!$B$2:$B$1000), 0),0), \"\")","v":""},{"$f":"IF(J355=\"\", \"\", INDEX(raw_resource_build!E:E, MATCH(J355, raw_resource_build!B:B, 0)))","v":""},{"$f":"IF(J355=\"\", \"\", INDEX(raw_resource_build!C:C, MATCH(J355, raw_resource_build!B:B, 0)))","v":""},null,{"$f":"raw_resource_build!B355","v":"NW_Coal"},"Non-wind",{"$f":"IFERROR(INDEX($E$5:$E$32,MATCH(raw_resource_build!$E355,Lists!$B$5:$B$32,0)),\"Non-CAISO\")","v":"Non-CAISO"},null,{"$f":"raw_annual_energy!C355","v":"CAISO_Shed_DR_Tranche1"},{"$f":"INDEX(K:K,MATCH(R355,Lists!J:J,0))","v":"CAISO_Conventional_DR"},"Non-wind",null,null,null,null,{"$f":"raw_fuel_burn!A355","v":0},{"$f":"INDEX(K:K,MATCH(Y355,Lists!J:J,0))","v":{"$error":"#N/A"}}]
[null,null,null,null,null,null,null,null,null,{"$f":"IFERROR(INDEX(raw_resource_build!$B$2:$B$1000,MATCH(0,COUNTIF($J$1:J355,raw_resource_build!$B$2:$B$1000), 0),0), \"\")","v":""},{"$f":"IF(J356=\"\", \"\", INDEX(raw_resource_build!E:E, MATCH(J356, raw_resource_build!B:B, 0)))","v":""},{"$f":"IF(J356=\"\", \"\", INDEX(raw_resource_build!C:C, MATCH(J356, raw_resource_build!B:B, 0)))","v":""},null,{"$f":"raw_resource_build!B356","v":"NW_CCGT"},"Non-wind",{"$f":"IFERROR(INDEX($E$5:$E$32,MATCH(raw_resource_build!$E356,Lists!$B$5:$B$32,0)),\"Non-CAISO\")","v":"Non-CAISO"},null,{"$f":"raw_annual_energy!C356","v":"CAISO_Shed_DR_Tranche1"},{"$f":"INDEX(K:K,MATCH(R356,Lists!J:J,0))","v":"CAISO_Conventional_DR"},"Non-wind",null,null,null,null,{"$f":"raw_fuel_burn!A356","v":0},{"$f":"INDEX(K:K,MATCH(Y356,Lists!J:J,0))","v":{"$error":"#N/A"}}]
[null,null,null,null,null,null,null,null,null,{"$f":"IFERROR(INDEX(raw_resource_build!$B$2:$B$1000,MATCH(0,COUNTIF($J$1:J356,raw_resource_build!$B$2:$B$1000), 0),0), \"\")","v":""},{"$f":"IF(J357=\"\", \"\", INDEX(raw_resource_build!E:E, MATCH(J357, raw_resource_build!B:B, 0)))","v":""},{"$f":"IF(J357=\"\", \"\", INDEX(raw_resource_build!C:C, MATCH(J357, raw_resource_build!B:B, 0)))","v":""},null,{"$f":"raw_resource_build!B357","v":"NW_Peaker"},"Non-wind",{"$f":"IFERROR(INDEX($E$5:$E$32,MATCH(raw_resource_build!$E357,Lists!$B$5:$B$32,0)),\"Non-CAISO\")","v":"Non-CAISO"},null,{"$f":"raw_annual_energy!C357","v":"CAISO_Shed_DR_Tranche1"},{"$f":"INDEX(K:K,MATCH(R357,Lists!J:J,0))","v":"CAISO_Conventional_DR"},"Non-wind",null,null,null,null,{"$f":"raw_fuel_burn!A357","v":0},{"$f":"INDEX(K:K,MATCH(Y357,Lists!J:J,0))","v":{"$error":"#N/A"}}]
[null,null,null,null,null,null,null,null,null,{"$f":"IFERROR(INDEX(raw_resource_build!$B$2:$B$1000,MATCH(0,COUNTIF($J$1:J357,raw_resource_build!$B$2:$B$1000), 0),0), \"\")","v":""},{"$f":"IF(J358=\"\", \"\", INDEX(raw_resource_build!E:E, MATCH(J358, raw_resource_build!B:B, 0)))","v":""},{"$f":"IF(J358=\"\", \"\", INDEX(raw_resource_build!C:C, MATCH(J358, raw_resource_build!B:B, 0)))","v":""},null,{"$f":"raw_resource_build!B358","v":"SW_Nuclear"},"Non-wind",{"$f":"IFERROR(INDEX($E$5:$E$32,MATCH(raw_resource_build!$E358,Lists!$B$5:$B$32,0)),\"Non-CAISO\")","v":"Non-CAISO"},null,{"$f":"raw_annual_energy!C358","v":"CAISO_Shed_DR_Tranche1"},{"$f":"INDEX(K:K,MATCH(R358,Lists!J:J,0))","v":"CAISO_Conventional_DR"},"Non-wind",null,null,null,null,{"$f":"raw_fuel_burn!A358","v":0},{"$f":"INDEX(K:K,MATCH(Y358,Lists!J:J,0))","v":{"$error":"#N/A"}}]
[null,null,null,null,null,null,null,null,null,{"$f":"IFERROR(INDEX(raw_resource_build!$B$2:$B$1000,MATCH(0,COUNTIF($J$1:J358,raw_resource_build!$B$2:$B$1000), 0),0), \"\")","v":""},{"$f":"IF(J359=\"\", \"\", INDEX(raw_resource_build!E:E, MATCH(J359, raw_resource_build!B:B, 0)))","v":""},{"$f":"IF(J359=\"\", \"\", INDEX(raw_resource_build!C:C, MATCH(J359, raw_resource_build!B:B, 0)))","v":""},null,{"$f":"raw_resource_build!B359","v":"SW_Coal"},"Non-wind",{"$f":"IFERROR(INDEX($E$5:$E$32,MATCH(raw_resource_build!$E359,Lists!$B$5:$B$32,0)),\"Non-CAISO\")","v":"Non-CAISO"},null,{"$f":"raw_annual_energy!C359","v":"CAISO_Shed_DR_Tranche1"},{"$f":"INDEX(K:K,MATCH(R359,Lists!J:J,0))","v":"CAISO_Conventional_DR"},"Non-wind",null,null,null,null,{"$f":"raw_fuel_burn!A359","v":0},{"$f":"INDEX(K:K,MATCH(Y359,Lists!J:J,0))","v":{"$error":"#N/A"}}]
[null,null,null,null,null,null,null,null,null,{"$f":"IFERROR(INDEX(raw_resource_build!$B$2:$B$1000,MATCH(0,COUNTIF($J$1:J359,raw_resource_build!$B$2:$B$1000), 0),0), \"\")","v":""},{"$f":"IF(J360=\"\", \"\", INDEX(raw_resource_build!E:E, MATCH(J360, raw_resource_build!B:B, 0)))","v":""},{"$f":"IF(J360=\"\", \"\", INDEX(raw_resource_build!C:C, MATCH(J360, raw_resource_build!B:B, 0)))","v":""},null,{"$f":"raw_resource_build!B360","v":"SW_CCGT"},"Non-wind",{"$f":"IFERROR(INDEX($E$5:$E$32,MATCH(raw_resource_build!$E360,Lists!$B$5:$B$32,0)),\"Non-CAISO\")","v":"Non-CAISO"},null,{"$f":"raw_annual_energy!C360","v":"CAISO_Shed_DR_Tranche1"},{"$f":"INDEX(K:K,MATCH(R360,Lists!J:J,0))","v":"CAISO_Conventional_DR"},"Non-wind",null,null,null,null,{"$f":"raw_fuel_burn!A360","v":0},{"$f":"INDEX(K:K,MATCH(Y360,Lists!J:J,0))","v":{"$error":"#N/A"}}]
[null,null,null,null,null,null,null,null,null,{"$f":"IFERROR(INDEX(raw_resource_build!$B$2:$B$1000,MATCH(0,COUNTIF($J$1:J360,raw_resource_build!$B$2:$B$1000), 0),0), \"\")","v":""},{"$f":"IF(J361=\"\", \"\", INDEX(raw_resource_build!E:E, MATCH(J361, raw_resource_build!B:B, 0)))","v":""},{"$f":"IF(J361=\"\", \"\", INDEX(raw_resource_build!C:C, MATCH(J361, raw_resource_build!B:B, 0)))","v":""},null,{"$f":"raw_resource_build!B361","v":"SW_Peaker"},"Non-wind",{"$f":"IFERROR(INDEX($E$5:$E$32,MATCH(raw_resource_build!$E361,Lists!$B$5:$B$32,0)),\"Non-CAISO\")","v":"Non-CAISO"},null,{"$f":"raw_annual_energy!C361","v":"CAISO_Shed_DR_Tranche1"},{"$f":"INDEX(K:K,MATCH(R361,Lists!J:J,0))","v":"CAISO_Conventional_DR"},"Non-wind",null,null,null,null,{"$f":"raw_fuel_burn!A361","v":0},{"$f":"INDEX(K:K,MATCH(Y361,Lists!J:J,0))","v":{"$error":"#N/A"}}]
[null,null,null,null,null,null,null,null,null,{"$f":"IFERROR(INDEX(raw_resource_build!$B$2:$B$1000,MATCH(0,COUNTIF($J$1:J361,raw_resource_build!$B$2:$B$1000), 0),0), \"\")","v":""},{"$f":"IF(J362=\"\", \"\", INDEX(raw_resource_build!E:E, MATCH(J362, raw_resource_build!B:B, 0)))","v":""},{"$f":"IF(J362=\"\", \"\", INDEX(raw_resource_build!C:C, MATCH(J362, raw_resource_build!B:B, 0)))","v":""},null,{"$f":"raw_resource_build!B362","v":"SW_ST"},"Non-wind",{"$f":"IFERROR(INDEX($E$5:$E$32,MATCH(raw_resource_build!$E362,Lists!$B$5:$B$32,0)),\"Non-CAISO\")","v":"Non-CAISO"},null,{"$f":"raw_annual_energy!C362","v":"CAISO_Shed_DR_Tranche1"},{"$f":"INDEX(K:K,MATCH(R362,Lists!J:J,0))","v":"CAISO_Conventional_DR"},"Non-wind",null,null,null,null,{"$f":"raw_fuel_burn!A362","v":0},{"$f":"INDEX(K:K,MATCH(Y362,Lists!J:J,0))","v":{"$error":"#N/A"}}]
[null,null,null,null,null,null,null,null,null,{"$f":"IFERROR(INDEX(raw_resource_build!$B$2:$B$1000,MATCH(0,COUNTIF($J$1:J362,raw_resource_build!$B$2:$B$1000), 0),0), \"\")","v":""},{"$f":"IF(J363=\"\", \"\", INDEX(raw_resource_build!E:E, MATCH(J363, raw_resource_build!B:B, 0)))","v":""},{"$f":"IF(J363=\"\", \"\", INDEX(raw_resource_build!C:C, MATCH(J363, raw_resource_build!B:B, 0)))","v":""},null,{"$f":"raw_resource_build!B363","v":"LDWP_Nuclear"},"Non-wind",{"$f":"IFERROR(INDEX($E$5:$E$32,MATCH(raw_resource_build!$E363,Lists!$B$5:$B$32,0)),\"Non-CAISO\")","v":"Non-CAISO"},null,{"$f":"raw_annual_energy!C363","v":"CAISO_Shed_DR_Tranche2"},{"$f":"INDEX(K:K,MATCH(R363,Lists!J:J,0))","v":"CAISO_Conventional_DR"},"Non-wind",null,null,null,null,{"$f":"raw_fuel_burn!A363","v":0},{"$f":"INDEX(K:K,MATCH(Y363,Lists!J:J,0))","v":{"$error":"#N/A"}}]
[null,null,null,null,null,null,null,null,null,{"$f":"IFERROR(INDEX(raw_resource_build!$B$2:$B$1000,MATCH(0,COUNTIF($J$1:J363,raw_resource_build!$B$2:$B$1000), 0),0), \"\")","v":""},{"$f":"IF(J364=\"\", \"\", INDEX(raw_resource_build!E:E, MATCH(J364, raw_resource_build!B:B, 0)))","v":""},{"$f":"IF(J364=\"\", \"\", INDEX(raw_resource_build!C:C, MATCH(J364, raw_resource_build!B:B, 0)))","v":""},null,{"$f":"raw_resource_build!B364","v":"LDWP_Coal"},"Non-wind",{"$f":"IFERROR(INDEX($E$5:$E$32,MATCH(raw_resource_build!$E364,Lists!$B$5:$B$32,0)),\"Non-CAISO\")","v":"Non-CAISO"},null,{"$f":"raw_annual_energy!C364","v":"CAISO_Shed_DR_Tranche2"},{"$f":"INDEX(K:K,MATCH(R364,Lists!J:J,0))","v":"CAISO_Conventional_DR"},"Non-wind",null,null,null,null,{"$f":"raw_fuel_burn!A364","v":0},{"$f":"INDEX(K:K,MATCH(Y364,Lists!J:J,0))","v":{"$error":"#N/A"}}]
[null,null,null,null,null,null,null,null,null,{"$f":"IFERROR(INDEX(raw_resource_build!$B$2:$B$1000,MATCH(0,COUNTIF($J$1:J364,raw_resource_build!$B$2:$B$1000), 0),0), \"\")","v":""},{"$f":"IF(J365=\"\", \"\", INDEX(raw_resource_build!E:E, MATCH(J365, raw_resource_build!B:B, 0)))","v":""},{"$f":"IF(J365=\"\", \"\", INDEX(raw_resource_build!C:C, MATCH(J365, raw_resource_build!B:B, 0)))","v":""},null,{"$f":"raw_resource_build!B365","v":"LDWP_CCGT"},"Non-wind",{"$f":"IFERROR(INDEX($E$5:$E$32,MATCH(raw_resource_build!$E365,Lists!$B$5:$B$32,0)),\"Non-CAISO\")","v":"Non-CAISO"},null,{"$f":"raw_annual_energy!C365","v":"CAISO_Shed_DR_Tranche2"},{"$f":"INDEX(K:K,MATCH(R365,Lists!J:J,0))","v":"CAISO_Conventional_DR"},"Non-wind",null,null,null,null,{"$f":"raw_fuel_burn!A365","v":0},{"$f":"INDEX(K:K,MATCH(Y365,Lists!J:J,0))","v":{"$error":"#N/A"}}]
[null,null,null,null,null,null,null,null,null,{"$f":"IFERROR(INDEX(raw_resource_build!$B$2:$B$1000,MATCH(0,COUNTIF($J$1:J365,raw_resource_build!$B$2:$B$1000), 0),0), \"\")","v":""},{"$f":"IF(J366=\"\", \"\", INDEX(raw_resource_build!E:E, MATCH(J366, raw_resource_build!B:B, 0)))","v":""},{"$f":"IF(J366=\"\", \"\", INDEX(raw_resource_build!C:C, MATCH(J366, raw_resource_build!B:B, 0)))","v":""},null,{"$f":"raw_resource_build!B366","v":"LDWP_Peaker"},"Non-wind",{"$f":"IFERROR(INDEX($E$5:$E$32,MATCH(raw_resource_build!$E366,Lists!$B$5:$B$32,0)),\"Non-CAISO\")","v":"Non-CAISO"},null,{"$f":"raw_annual_energy!C366","v":"CAISO_Shed_DR_Tranche2"},{"$f":"INDEX(K:K,MATCH(R366,Lists!J:J,0))","v":"CAISO_Conventional_DR"},"Non-wind",null,null,null,null,{"$f":"raw_fuel_burn!A366","v":0},{"$f":"INDEX(K:K,MATCH(Y366,Lists!J:J,0))","v":{"$error":"#N/A"}}]
[null,null,null,null,null,null,null,null,null,{"$f":"IFERROR(INDEX(raw_resource_build!$B$2:$B$1000,MATCH(0,COUNTIF($J$1:J366,raw_resource_build!$B$2:$B$1000), 0),0), \"\")","v":""},{"$f":"IF(J367=\"\", \"\", INDEX(raw_resource_build!E:E, MATCH(J367, raw_resource_build!B:B, 0)))","v":""},{"$f":"IF(J367=\"\", \"\", INDEX(raw_resource_build!C:C, MATCH(J367, raw_resource_build!B:B, 0)))","v":""},null,{"$f":"raw_resource_build!B367","v":"LDWP_ST"},"Non-wind",{"$f":"IFERROR(INDEX($E$5:$E$32,MATCH(raw_resource_build!$E367,Lists!$B$5:$B$32,0)),\"Non-CAISO\")","v":"Non-CAISO"},null,{"$f":"raw_annual_energy!C367","v":"CAISO_Shed_DR_Tranche2"},{"$f":"INDEX(K:K,MATCH(R367,Lists!J:J,0))","v":"CAISO_Conventional_DR"},"Non-wind",null,null,null,null,{"$f":"raw_fuel_burn!A367","v":0},{"$f":"INDEX(K:K,MATCH(Y367,Lists!J:J,0))","v":{"$error":"#N/A"}}]
[null,null,null,null,null,null,null,null,null,{"$f":"IFERROR(INDEX(raw_resource_build!$B$2:$B$1000,MATCH(0,COUNTIF($J$1:J367,raw_resource_build!$B$2:$B$1000), 0),0), \"\")","v":""},{"$f":"IF(J368=\"\", \"\", INDEX(raw_resource_build!E:E, MATCH(J368, raw_resource_build!B:B, 0)))","v":""},{"$f":"IF(J368=\"\", \"\", INDEX(raw_resource_build!C:C, MATCH(J368, raw_resource_build!B:B, 0)))","v":""},null,{"$f":"raw_resource_build!B368","v":"IID_CCGT"},"Non-wind",{"$f":"IFERROR(INDEX($E$5:$E$32,MATCH(raw_resource_build!$E368,Lists!$B$5:$B$32,0)),\"Non-CAISO\")","v":"Non-CAISO"},null,{"$f":"raw_annual_energy!C368","v":"CAISO_Shed_DR_Tranche2"},{"$f":"INDEX(K:K,MATCH(R368,Lists!J:J,0))","v":"CAISO_Conventional_DR"},"Non-wind",null,null,null,null,{"$f":"raw_fuel_burn!A368","v":0},{"$f":"INDEX(K:K,MATCH(Y368,Lists!J:J,0))","v":{"$error":"#N/A"}}]
[null,null,null,null,null,null,null,null,null,{"$f":"IFERROR(INDEX(raw_resource_build!$B$2:$B$1000,MATCH(0,COUNTIF($J$1:J368,raw_resource_build!$B$2:$B$1000), 0),0), \"\")","v":""},{"$f":"IF(J369=\"\", \"\", INDEX(raw_resource_build!E:E, MATCH(J369, raw_resource_build!B:B, 0)))","v":""},{"$f":"IF(J369=\"\", \"\", INDEX(raw_resource_build!C:C, MATCH(J369, raw_resource_build!B:B, 0)))","v":""},null,{"$f":"raw_resource_build!B369","v":"IID_Peaker"},"Non-wind",{"$f":"IFERROR(INDEX($E$5:$E$32,MATCH(raw_resource_build!$E369,Lists!$B$5:$B$32,0)),\"Non-CAISO\")","v":"Non-CAISO"},null,{"$f":"raw_annual_energy!C369","v":"CAISO_Shed_DR_Tranche2"},{"$f":"INDEX(K:K,MATCH(R369,Lists!J:J,0))","v":"CAISO_Conventional_DR"},"Non-wind",null,null,null,null,{"$f":"raw_fuel_burn!A369","v":0},{"$f":"INDEX(K:K,MATCH(Y369,Lists!J:J,0))","v":{"$error":"#N/A"}}]
[null,null,null,null,null,null,null,null,null,{"$f":"IFERROR(INDEX(raw_resource_build!$B$2:$B$1000,MATCH(0,COUNTIF($J$1:J369,raw_resource_build!$B$2:$B$1000), 0),0), \"\")","v":""},{"$f":"IF(J370=\"\", \"\", INDEX(raw_resource_build!E:E, MATCH(J370, raw_resource_build!B:B, 0)))","v":""},{"$f":"IF(J370=\"\", \"\", INDEX(raw_resource_build!C:C, MATCH(J370, raw_resource_build!B:B, 0)))","v":""},null,{"$f":"raw_resource_build!B370","v":"BANC_CCGT"},"Non-wind",{"$f":"IFERROR(INDEX($E$5:$E$32,MATCH(raw_resource_build!$E370,Lists!$B$5:$B$32,0)),\"Non-CAISO\")","v":"Non-CAISO"},null,{"$f":"raw_annual_energy!C370","v":"CAISO_Shed_DR_Tranche2"},{"$f":"INDEX(K:K,MATCH(R370,Lists!J:J,0))","v":"CAISO_Conventional_DR"},"Non-wind",null,null,null,null,{"$f":"raw_fuel_burn!A370","v":0},{"$f":"INDEX(K:K,MATCH(Y370,Lists!J:J,0))","v":{"$error":"#N/A"}}]
[null,null,null,null,null,null,null,null,null,{"$f":"IFERROR(INDEX(raw_resource_build!$B$2:$B$1000,MATCH(0,COUNTIF($J$1:J370,raw_resource_build!$B$2:$B$1000), 0),0), \"\")","v":""},{"$f":"IF(J371=\"\", \"\", INDEX(raw_resource_build!E:E, MATCH(J371, raw_resource_build!B:B, 0)))","v":""},{"$f":"IF(J371=\"\", \"\", INDEX(raw_resource_build!C:C, MATCH(J371, raw_resource_build!B:B, 0)))","v":""},null,{"$f":"raw_resource_build!B371","v":"BANC_Peaker"},"Non-wind",{"$f":"IFERROR(INDEX($E$5:$E$32,MATCH(raw_resource_build!$E371,Lists!$B$5:$B$32,0)),\"Non-CAISO\")","v":"Non-CAISO"},null,{"$f":"raw_annual_energy!C371","v":"CAISO_Shed_DR_Tranche3"},{"$f":"INDEX(K:K,MATCH(R371,Lists!J:J,0))","v":"CAISO_Conventional_DR"},"Non-wind",null,null,null,null,{"$f":"raw_fuel_burn!A371","v":0},{"$f":"INDEX(K:K,MATCH(Y371,Lists!J:J,0))","v":{"$error":"#N/A"}}]
[null,null,null,null,null,null,null,null,null,{"$f":"IFERROR(INDEX(raw_resource_build!$B$2:$B$1000,MATCH(0,COUNTIF($J$1:J371,raw_resource_build!$B$2:$B$1000), 0),0), \"\")","v":""},{"$f":"IF(J372=\"\", \"\", INDEX(raw_resource_build!E:E, MATCH(J372, raw_resource_build!B:B, 0)))","v":""},{"$f":"IF(J372=\"\", \"\", INDEX(raw_resource_build!C:C, MATCH(J372, raw_resource_build!B:B, 0)))","v":""},null,{"$f":"raw_resource_build!B372","v":"BANC_Biomass_for_Other"},"Non-wind",{"$f":"IFERROR(INDEX($E$5:$E$32,MATCH(raw_resource_build!$E372,Lists!$B$5:$B$32,0)),\"Non-CAISO\")","v":"Biomass"},null,{"$f":"raw_annual_energy!C372","v":"CAISO_Shed_DR_Tranche3"},{"$f":"INDEX(K:K,MATCH(R372,Lists!J:J,0))","v":"CAISO_Conventional_DR"},"Non-wind",null,null,null,null,{"$f":"raw_fuel_burn!A372","v":0},{"$f":"INDEX(K:K,MATCH(Y372,Lists!J:J,0))","v":{"$error":"#N/A"}}]
[null,null,null,null,null,null,null,null,null,{"$f":"IFERROR(INDEX(raw_resource_build!$B$2:$B$1000,MATCH(0,COUNTIF($J$1:J372,raw_resource_build!$B$2:$B$1000), 0),0), \"\")","v":""},{"$f":"IF(J373=\"\", \"\", INDEX(raw_resource_build!E:E, MATCH(J373, raw_resource_build!B:B, 0)))","v":""},{"$f":"IF(J373=\"\", \"\", INDEX(raw_resource_build!C:C, MATCH(J373, raw_resource_build!B:B, 0)))","v":""},null,{"$f":"raw_resource_build!B373","v":"BANC_Geothermal_for_Other"},"Non-wind",{"$f":"IFERROR(INDEX($E$5:$E$32,MATCH(raw_resource_build!$E373,Lists!$B$5:$B$32,0)),\"Non-CAISO\")","v":"Geothermal"},null,{"$f":"raw_annual_energy!C373","v":"CAISO_Shed_DR_Tranche3"},{"$f":"INDEX(K:K,MATCH(R373,Lists!J:J,0))","v":"CAISO_Conventional_DR"},"Non-wind",null,null,null,null,{"$f":"raw_fuel_burn!A373","v":0},{"$f":"INDEX(K:K,MATCH(Y373,Lists!J:J,0))","v":{"$error":"#N/A"}}]
[null,null,null,null,null,null,null,null,null,{"$f":"IFERROR(INDEX(raw_resource_build!$B$2:$B$1000,MATCH(0,COUNTIF($J$1:J373,raw_resource_build!$B$2:$B$1000), 0),0), \"\")","v":""},{"$f":"IF(J374=\"\", \"\", INDEX(raw_resource_build!E:E, MATCH(J374, raw_resource_build!B:B, 0)))","v":""},{"$f":"IF(J374=\"\", \"\", INDEX(raw_resource_build!C:C, MATCH(J374, raw_resource_build!B:B, 0)))","v":""},null,{"$f":"raw_resource_build!B374","v":"CAISO_Biomass_for_Other"},"Non-wind",{"$f":"IFERROR(INDEX($E$5:$E$32,MATCH(raw_resource_build!$E374,Lists!$B$5:$B$32,0)),\"Non-CAISO\")","v":"Biomass"},null,{"$f":"raw_annual_energy!C374","v":"CAISO_Shed_DR_Tranche3"},{"$f":"INDEX(K:K,MATCH(R374,Lists!J:J,0))","v":"CAISO_Conventional_DR"},"Non-wind",null,null,null,null,{"$f":"raw_fuel_burn!A374","v":0},{"$f":"INDEX(K:K,MATCH(Y374,Lists!J:J,0))","v":{"$error":"#N/A"}}]
[null,null,null,null,null,null,null,null,null,{"$f":"IFERROR(INDEX(raw_resource_build!$B$2:$B$1000,MATCH(0,COUNTIF($J$1:J374,raw_resource_build!$B$2:$B$1000), 0),0), \"\")","v":""},{"$f":"IF(J375=\"\", \"\", INDEX(raw_resource_build!E:E, MATCH(J375, raw_resource_build!B:B, 0)))","v":""},{"$f":"IF(J375=\"\", \"\", INDEX(raw_resource_build!C:C, MATCH(J375, raw_resource_build!B:B, 0)))","v":""},null,{"$f":"raw_resource_build!B375","v":"CAISO_Geothermal_for_Other"},"Non-wind",{"$f":"IFERROR(INDEX($E$5:$E$32,MATCH(raw_resource_build!$E375,Lists!$B$5:$B$32,0)),\"Non-CAISO\")","v":"Geothermal"},null,{"$f":"raw_annual_energy!C375","v":"CAISO_Shed_DR_Tranche3"},{"$f":"INDEX(K:K,MATCH(R375,Lists!J:J,0))","v":"CAISO_Conventional_DR"},"Non-wind",null,null,null,null,{"$f":"raw_fuel_burn!A375","v":0},{"$f":"INDEX(K:K,MATCH(Y375,Lists!J:J,0))","v":{"$error":"#N/A"}}]
[null,null,null,null,null,null,null,null,null,{"$f":"IFERROR(INDEX(raw_resource_build!$B$2:$B$1000,MATCH(0,COUNTIF($J$1:J375,raw_resource_build!$B$2:$B$1000), 0),0), \"\")","v":""},{"$f":"IF(J376=\"\", \"\", INDEX(raw_resource_build!E:E, MATCH(J376, raw_resource_build!B:B, 0)))","v":""},{"$f":"IF(J376=\"\", \"\", INDEX(raw_resource_build!C:C, MATCH(J376, raw_resource_build!B:B, 0)))","v":""},null,{"$f":"raw_resource_build!B376","v":"IID_Biomass_for_Other"},"Non-wind",{"$f":"IFERROR(INDEX($E$5:$E$32,MATCH(raw_resource_build!$E376,Lists!$B$5:$B$32,0)),\"Non-CAISO\")","v":"Biomass"},null,{"$f":"raw_annual_energy!C376","v":"CAISO_Shed_DR_Tranche3"},{"$f":"INDEX(K:K,MATCH(R376,Lists!J:J,0))","v":"CAISO_Conventional_DR"},"Non-wind",null,null,null,null,{"$f":"raw_fuel_burn!A376","v":0},{"$f":"INDEX(K:K,MATCH(Y376,Lists!J:J,0))","v":{"$error":"#N/A"}}]
[null,null,null,null,null,null,null,null,null,{"$f":"IFERROR(INDEX(raw_resource_build!$B$2:$B$1000,MATCH(0,COUNTIF($J$1:J376,raw_resource_build!$B$2:$B$1000), 0),0), \"\")","v":""},{"$f":"IF(J377=\"\", \"\", INDEX(raw_resource_build!E:E, MATCH(J377, raw_resource_build!B:B, 0)))","v":""},{"$f":"IF(J377=\"\", \"\", INDEX(raw_resource_build!C:C, MATCH(J377, raw_resource_build!B:B, 0)))","v":""},null,{"$f":"raw_resource_build!B377","v":"IID_Geothermal_for_Other"},"Non-wind",{"$f":"IFERROR(INDEX($E$5:$E$32,MATCH(raw_resource_build!$E377,Lists!$B$5:$B$32,0)),\"Non-CAISO\")","v":"Geothermal"},null,{"$f":"raw_annual_energy!C377","v":"CAISO_Shed_DR_Tranche3"},{"$f":"INDEX(K:K,MATCH(R377,Lists!J:J,0))","v":"CAISO_Conventional_DR"},"Non-wind",null,null,null,null,{"$f":"raw_fuel_burn!A377","v":0},{"$f":"INDEX(K:K,MATCH(Y377,Lists!J:J,0))","v":{"$error":"#N/A"}}]
[null,null,null,null,null,null,null,null,null,{"$f":"IFERROR(INDEX(raw_resource_build!$B$2:$B$1000,MATCH(0,COUNTIF($J$1:J377,raw_resource_build!$B$2:$B$1000), 0),0), \"\")","v":""},{"$f":"IF(J378=\"\", \"\", INDEX(raw_resource_build!E:E, MATCH(J378, raw_resource_build!B:B, 0)))","v":""},{"$f":"IF(J378=\"\", \"\", INDEX(raw_resource_build!C:C, MATCH(J378, raw_resource_build!B:B, 0)))","v":""},null,{"$f":"raw_resource_build!B378","v":"LDWP_Biomass_for_Other"},"Non-wind",{"$f":"IFERROR(INDEX($E$5:$E$32,MATCH(raw_resource_build!$E378,Lists!$B$5:$B$32,0)),\"Non-CAISO\")","v":"Biomass"},null,{"$f":"raw_annual_energy!C378","v":"CAISO_Shed_DR_Tranche3"},{"$f":"INDEX(K:K,MATCH(R378,Lists!J:J,0))","v":"CAISO_Conventional_DR"},"Non-wind",null,null,null,null,{"$f":"raw_fuel_burn!A378","v":0},{"$f":"INDEX(K:K,MATCH(Y378,Lists!J:J,0))","v":{"$error":"#N/A"}}]
[null,null,null,null,null,null,null,null,null,{"$f":"IFERROR(INDEX(raw_resource_build!$B$2:$B$1000,MATCH(0,COUNTIF($J$1:J378,raw_resource_build!$B$2:$B$1000), 0),0), \"\")","v":""},{"$f":"IF(J379=\"\", \"\", INDEX(raw_resource_build!E:E, MATCH(J379, raw_resource_build!B:B, 0)))","v":""},{"$f":"IF(J379=\"\", \"\", INDEX(raw_resource_build!C:C, MATCH(J379, raw_resource_build!B:B, 0)))","v":""},null,{"$f":"raw_resource_build!B379","v":"LDWP_Geothermal_for_Other"},"Non-wind",{"$f":"IFERROR(INDEX($E$5:$E$32,MATCH(raw_resource_build!$E379,Lists!$B$5:$B$32,0)),\"Non-CAISO\")","v":"Geothermal"},null,{"$f":"raw_annual_energy!C379","v":"CAISO_Shed_DR_Tranche4"},{"$f":"INDEX(K:K,MATCH(R379,Lists!J:J,0))","v":"CAISO_Conventional_DR"},"Non-wind"]
[null,null,null,null,null,null,null,null,null,{"$f":"IFERROR(INDEX(raw_resource_build!$B$2:$B$1000,MATCH(0,COUNTIF($J$1:J379,raw_resource_build!$B$2:$B$1000), 0),0), \"\")","v":""},{"$f":"IF(J380=\"\", \"\", INDEX(raw_resource_build!E:E, MATCH(J380, raw_resource_build!B:B, 0)))","v":""},{"$f":"IF(J380=\"\", \"\", INDEX(raw_resource_build!C:C, MATCH(J380, raw_resource_build!B:B, 0)))","v":""},null,{"$f":"raw_resource_build!B380","v":"NW_Biomass_for_Other"},"Non-wind",{"$f":"IFERROR(INDEX($E$5:$E$32,MATCH(raw_resource_build!$E380,Lists!$B$5:$B$32,0)),\"Non-CAISO\")","v":"Biomass"},null,{"$f":"raw_annual_energy!C380","v":"CAISO_Shed_DR_Tranche4"},{"$f":"INDEX(K:K,MATCH(R380,Lists!J:J,0))","v":"CAISO_Conventional_DR"},"Non-wind"]
[null,null,null,null,null,null,null,null,null,{"$f":"IFERROR(INDEX(raw_resource_build!$B$2:$B$1000,MATCH(0,COUNTIF($J$1:J380,raw_resource_build!$B$2:$B$1000), 0),0), \"\")","v":""},{"$f":"IF(J381=\"\", \"\", INDEX(raw_resource_build!E:E, MATCH(J381, raw_resource_build!B:B, 0)))","v":""},{"$f":"IF(J381=\"\", \"\", INDEX(raw_resource_build!C:C, MATCH(J381, raw_resource_build!B:B, 0)))","v":""},null,{"$f":"raw_resource_build!B381","v":"NW_Geothermal_for_Other"},"Non-wind",{"$f":"IFERROR(INDEX($E$5:$E$32,MATCH(raw_resource_build!$E381,Lists!$B$5:$B$32,0)),\"Non-CAISO\")","v":"Geothermal"},null,{"$f":"raw_annual_energy!C381","v":"CAISO_Shed_DR_Tranche4"},{"$f":"INDEX(K:K,MATCH(R381,Lists!J:J,0))","v":"CAISO_Conventional_DR"},"Non-wind"]
[null,null,null,null,null,null,null,null,null,{"$f":"IFERROR(INDEX(raw_resource_build!$B$2:$B$1000,MATCH(0,COUNTIF($J$1:J381,raw_resource_build!$B$2:$B$1000), 0),0), \"\")","v":""},{"$f":"IF(J382=\"\", \"\", INDEX(raw_resource_build!E:E, MATCH(J382, raw_resource_build!B:B, 0)))","v":""},{"$f":"IF(J382=\"\", \"\", INDEX(raw_resource_build!C:C, MATCH(J382, raw_resource_build!B:B, 0)))","v":""},null,{"$f":"raw_resource_build!B382","v":"SW_Biomass_for_Other"},"Non-wind",{"$f":"IFERROR(INDEX($E$5:$E$32,MATCH(raw_resource_build!$E382,Lists!$B$5:$B$32,0)),\"Non-CAISO\")","v":"Biomass"},null,{"$f":"raw_annual_energy!C382","v":"CAISO_Shed_DR_Tranche4"},{"$f":"INDEX(K:K,MATCH(R382,Lists!J:J,0))","v":"CAISO_Conventional_DR"},"Non-wind"]
[null,null,null,null,null,null,null,null,null,{"$f":"IFERROR(INDEX(raw_resource_build!$B$2:$B$1000,MATCH(0,COUNTIF($J$1:J382,raw_resource_build!$B$2:$B$1000), 0),0), \"\")","v":""},{"$f":"IF(J383=\"\", \"\", INDEX(raw_resource_build!E:E, MATCH(J383, raw_resource_build!B:B, 0)))","v":""},{"$f":"IF(J383=\"\", \"\", INDEX(raw_resource_build!C:C, MATCH(J383, raw_resource_build!B:B, 0)))","v":""},null,{"$f":"raw_resource_build!B383","v":"SW_Geothermal_for_Other"},"Non-wind",{"$f":"IFERROR(INDEX($E$5:$E$32,MATCH(raw_resource_build!$E383,Lists!$B$5:$B$32,0)),\"Non-CAISO\")","v":"Geothermal"},null,{"$f":"raw_annual_energy!C383","v":"CAISO_Shed_DR_Tranche4"},{"$f":"INDEX(K:K,MATCH(R383,Lists!J:J,0))","v":"CAISO_Conventional_DR"},"Non-wind"]
[null,null,null,null,null,null,null,null,null,{"$f":"IFERROR(INDEX(raw_resource_build!$B$2:$B$1000,MATCH(0,COUNTIF($J$1:J383,raw_resource_build!$B$2:$B$1000), 0),0), \"\")","v":""},{"$f":"IF(J384=\"\", \"\", INDEX(raw_resource_build!E:E, MATCH(J384, raw_resource_build!B:B, 0)))","v":""},{"$f":"IF(J384=\"\", \"\", INDEX(raw_resource_build!C:C, MATCH(J384, raw_resource_build!B:B, 0)))","v":""},null,{"$f":"raw_resource_build!B384","v":"CAISO_Biomass_for_CAISO"},"Non-wind",{"$f":"IFERROR(INDEX($E$5:$E$32,MATCH(raw_resource_build!$E384,Lists!$B$5:$B$32,0)),\"Non-CAISO\")","v":"Biomass"},null,{"$f":"raw_annual_energy!C384","v":"CAISO_Shed_DR_Tranche4"},{"$f":"INDEX(K:K,MATCH(R384,Lists!J:J,0))","v":"CAISO_Conventional_DR"},"Non-wind"]
[null,null,null,null,null,null,null,null,null,{"$f":"IFERROR(INDEX(raw_resource_build!$B$2:$B$1000,MATCH(0,COUNTIF($J$1:J384,raw_resource_build!$B$2:$B$1000), 0),0), \"\")","v":""},{"$f":"IF(J385=\"\", \"\", INDEX(raw_resource_build!E:E, MATCH(J385, raw_resource_build!B:B, 0)))","v":""},{"$f":"IF(J385=\"\", \"\", INDEX(raw_resource_build!C:C, MATCH(J385, raw_resource_build!B:B, 0)))","v":""},null,{"$f":"raw_resource_build!B385","v":"CAISO_Geothermal_for_CAISO"},"Non-wind",{"$f":"IFERROR(INDEX($E$5:$E$32,MATCH(raw_resource_build!$E385,Lists!$B$5:$B$32,0)),\"Non-CAISO\")","v":"Geothermal"},null,{"$f":"raw_annual_energy!C385","v":"CAISO_Shed_DR_Tranche4"},{"$f":"INDEX(K:K,MATCH(R385,Lists!J:J,0))","v":"CAISO_Conventional_DR"},"Non-wind"]
[null,null,null,null,null,null,null,null,null,{"$f":"IFERROR(INDEX(raw_resource_build!$B$2:$B$1000,MATCH(0,COUNTIF($J$1:J385,raw_resource_build!$B$2:$B$1000), 0),0), \"\")","v":""},{"$f":"IF(J386=\"\", \"\", INDEX(raw_resource_build!E:E, MATCH(J386, raw_resource_build!B:B, 0)))","v":""},{"$f":"IF(J386=\"\", \"\", INDEX(raw_resource_build!C:C, MATCH(J386, raw_resource_build!B:B, 0)))","v":""},null,{"$f":"raw_resource_build!B386","v":"IID_Geothermal_for_CAISO"},"Non-wind",{"$f":"IFERROR(INDEX($E$5:$E$32,MATCH(raw_resource_build!$E386,Lists!$B$5:$B$32,0)),\"Non-CAISO\")","v":"Geothermal"},null,{"$f":"raw_annual_energy!C386","v":"CAISO_Shed_DR_Tranche4"},{"$f":"INDEX(K:K,MATCH(R386,Lists!J:J,0))","v":"CAISO_Conventional_DR"},"Non-wind"]
[null,null,null,null,null,null,null,null,null,{"$f":"IFERROR(INDEX(raw_resource_build!$B$2:$B$1000,MATCH(0,COUNTIF($J$1:J386,raw_resource_build!$B$2:$B$1000), 0),0), \"\")","v":""},{"$f":"IF(J387=\"\", \"\", INDEX(raw_resource_build!E:E, MATCH(J387, raw_resource_build!B:B, 0)))","v":""},{"$f":"IF(J387=\"\", \"\", INDEX(raw_resource_build!C:C, MATCH(J387, raw_resource_build!B:B, 0)))","v":""},null,{"$f":"raw_resource_build!B387","v":"NW_Biomass_for_CAISO"},{"$f":"IFERROR(INDEX($C$35:$C$99,MATCH($N387,$B$35:$B$99,0)),\"Non-wind\")","v":"Non-wind"},{"$f":"IFERROR(INDEX($E$5:$E$32,MATCH(raw_resource_build!$E387,Lists!$B$5:$B$32,0)),\"Non-CAISO\")","v":"Biomass"},null,{"$f":"raw_annual_energy!C387","v":"CAISO_Shed_DR_Tranche5"},{"$f":"INDEX(K:K,MATCH(R387,Lists!J:J,0))","v":"CAISO_Conventional_DR"},{"$f":"IFERROR(INDEX($C$35:$C$99,MATCH($R387,$B$35:$B$99,0)),\"Non-wind\")","v":"Non-wind"}]
[null,null,null,null,null,null,null,null,null,{"$f":"IFERROR(INDEX(raw_resource_build!$B$2:$B$1000,MATCH(0,COUNTIF($J$1:J387,raw_resource_build!$B$2:$B$1000), 0),0), \"\")","v":""},{"$f":"IF(J388=\"\", \"\", INDEX(raw_resource_build!E:E, MATCH(J388, raw_resource_build!B:B, 0)))","v":""},{"$f":"IF(J388=\"\", \"\", INDEX(raw_resource_build!C:C, MATCH(J388, raw_resource_build!B:B, 0)))","v":""},null,{"$f":"raw_resource_build!B388","v":"NW_Geothermal_for_CAISO"},"Non-wind",{"$f":"IFERROR(INDEX($E$5:$E$32,MATCH(raw_resource_build!$E388,Lists!$B$5:$B$32,0)),\"Non-CAISO\")","v":"Geothermal"},null,{"$f":"raw_annual_energy!C388","v":"CAISO_Shed_DR_Tranche5"},{"$f":"INDEX(K:K,MATCH(R388,Lists!J:J,0))","v":"CAISO_Conventional_DR"},"Non-wind"]
[null,null,null,null,null,null,null,null,null,{"$f":"IFERROR(INDEX(raw_resource_build!$B$2:$B$1000,MATCH(0,COUNTIF($J$1:J388,raw_resource_build!$B$2:$B$1000), 0),0), \"\")","v":""},{"$f":"IF(J389=\"\", \"\", INDEX(raw_resource_build!E:E, MATCH(J389, raw_resource_build!B:B, 0)))","v":""},{"$f":"IF(J389=\"\", \"\", INDEX(raw_resource_build!C:C, MATCH(J389, raw_resource_build!B:B, 0)))","v":""},null,{"$f":"raw_resource_build!B389","v":"InState_Biomass"},"In-State",{"$f":"IFERROR(INDEX($E$5:$E$32,MATCH(raw_resource_build!$E389,Lists!$B$5:$B$32,0)),\"Non-CAISO\")","v":"Biomass"},null,{"$f":"raw_annual_energy!C389","v":"CAISO_Shed_DR_Tranche5"},{"$f":"INDEX(K:K,MATCH(R389,Lists!J:J,0))","v":"CAISO_Conventional_DR"},"Non-wind"]
[null,null,null,null,null,null,null,null,null,{"$f":"IFERROR(INDEX(raw_resource_build!$B$2:$B$1000,MATCH(0,COUNTIF($J$1:J389,raw_resource_build!$B$2:$B$1000), 0),0), \"\")","v":""},{"$f":"IF(J390=\"\", \"\", INDEX(raw_resource_build!E:E, MATCH(J390, raw_resource_build!B:B, 0)))","v":""},{"$f":"IF(J390=\"\", \"\", INDEX(raw_resource_build!C:C, MATCH(J390, raw_resource_build!B:B, 0)))","v":""},null,{"$f":"raw_resource_build!B390","v":"CAISO_Small_Hydro_for_CAISO"},"Non-wind",{"$f":"IFERROR(INDEX($E$5:$E$32,MATCH(raw_resource_build!$E390,Lists!$B$5:$B$32,0)),\"Non-CAISO\")","v":"Hydro (small + large)"},null,{"$f":"raw_annual_energy!C390","v":"CAISO_Shed_DR_Tranche5"},{"$f":"INDEX(K:K,MATCH(R390,Lists!J:J,0))","v":"CAISO_Conventional_DR"},"Non-wind"]
[null,null,null,null,null,null,null,null,null,{"$f":"IFERROR(INDEX(raw_resource_build!$B$2:$B$1000,MATCH(0,COUNTIF($J$1:J390,raw_resource_build!$B$2:$B$1000), 0),0), \"\")","v":""},{"$f":"IF(J391=\"\", \"\", INDEX(raw_resource_build!E:E, MATCH(J391, raw_resource_build!B:B, 0)))","v":""},{"$f":"IF(J391=\"\", \"\", INDEX(raw_resource_build!C:C, MATCH(J391, raw_resource_build!B:B, 0)))","v":""},null,{"$f":"raw_resource_build!B391","v":"BANC_Small_Hydro_for_CAISO"},"Non-wind",{"$f":"IFERROR(INDEX($E$5:$E$32,MATCH(raw_resource_build!$E391,Lists!$B$5:$B$32,0)),\"Non-CAISO\")","v":"Hydro (small + large)"},null,{"$f":"raw_annual_energy!C391","v":"CAISO_Shed_DR_Tranche5"},{"$f":"INDEX(K:K,MATCH(R391,Lists!J:J,0))","v":"CAISO_Conventional_DR"},"Non-wind"]
[null,null,null,null,null,null,null,null,null,{"$f":"IFERROR(INDEX(raw_resource_build!$B$2:$B$1000,MATCH(0,COUNTIF($J$1:J391,raw_resource_build!$B$2:$B$1000), 0),0), \"\")","v":""},{"$f":"IF(J392=\"\", \"\", INDEX(raw_resource_build!E:E, MATCH(J392, raw_resource_build!B:B, 0)))","v":""},{"$f":"IF(J392=\"\", \"\", INDEX(raw_resource_build!C:C, MATCH(J392, raw_resource_build!B:B, 0)))","v":""},null,{"$f":"raw_resource_build!B392","v":"NW_Small_Hydro_for_CAISO"},"Non-wind",{"$f":"IFERROR(INDEX($E$5:$E$32,MATCH(raw_resource_build!$E392,Lists!$B$5:$B$32,0)),\"Non-CAISO\")","v":"Hydro (small + large)"},null,{"$f":"raw_annual_energy!C392","v":"CAISO_Shed_DR_Tranche5"},{"$f":"INDEX(K:K,MATCH(R392,Lists!J:J,0))","v":"CAISO_Conventional_DR"},"Non-wind"]
[null,null,null,null,null,null,null,null,null,{"$f":"IFERROR(INDEX(raw_resource_build!$B$2:$B$1000,MATCH(0,COUNTIF($J$1:J392,raw_resource_build!$B$2:$B$1000), 0),0), \"\")","v":""},{"$f":"IF(J393=\"\", \"\", INDEX(raw_resource_build!E:E, MATCH(J393, raw_resource_build!B:B, 0)))","v":""},{"$f":"IF(J393=\"\", \"\", INDEX(raw_resource_build!C:C, MATCH(J393, raw_resource_build!B:B, 0)))","v":""},null,{"$f":"raw_resource_build!B393","v":"CAISO_Small_Hydro_for_Other"},"Non-wind",{"$f":"IFERROR(INDEX($E$5:$E$32,MATCH(raw_resource_build!$E393,Lists!$B$5:$B$32,0)),\"Non-CAISO\")","v":"Hydro (small + large)"},null,{"$f":"raw_annual_energy!C393","v":"CAISO_Shed_DR_Tranche5"},{"$f":"INDEX(K:K,MATCH(R393,Lists!J:J,0))","v":"CAISO_Conventional_DR"},"Non-wind"]
[null,null,null,null,null,null,null,null,null,{"$f":"IFERROR(INDEX(raw_resource_build!$B$2:$B$1000,MATCH(0,COUNTIF($J$1:J393,raw_resource_build!$B$2:$B$1000), 0),0), \"\")","v":""},{"$f":"IF(J394=\"\", \"\", INDEX(raw_resource_build!E:E, MATCH(J394, raw_resource_build!B:B, 0)))","v":""},{"$f":"IF(J394=\"\", \"\", INDEX(raw_resource_build!C:C, MATCH(J394, raw_resource_build!B:B, 0)))","v":""},null,{"$f":"raw_resource_build!B394","v":"BANC_Small_Hydro_for_Other"},"Non-wind",{"$f":"IFERROR(INDEX($E$5:$E$32,MATCH(raw_resource_build!$E394,Lists!$B$5:$B$32,0)),\"Non-CAISO\")","v":"Hydro (small + large)"},null,{"$f":"raw_annual_energy!C394","v":"CAISO_Shed_DR_Tranche5"},{"$f":"INDEX(K:K,MATCH(R394,Lists!J:J,0))","v":"CAISO_Conventional_DR"},"Non-wind"]
[null,null,null,null,null,null,null,null,null,{"$f":"IFERROR(INDEX(raw_resource_build!$B$2:$B$1000,MATCH(0,COUNTIF($J$1:J394,raw_resource_build!$B$2:$B$1000), 0),0), \"\")","v":""},{"$f":"IF(J395=\"\", \"\", INDEX(raw_resource_build!E:E, MATCH(J395, raw_resource_build!B:B, 0)))","v":""},{"$f":"IF(J395=\"\", \"\", INDEX(raw_resource_build!C:C, MATCH(J395, raw_resource_build!B:B, 0)))","v":""},null,{"$f":"raw_resource_build!B395","v":"IID_Small_Hydro_for_Other"},"Non-wind",{"$f":"IFERROR(INDEX($E$5:$E$32,MATCH(raw_resource_build!$E395,Lists!$B$5:$B$32,0)),\"Non-CAISO\")","v":"Hydro (small + large)"},null,{"$f":"raw_annual_energy!C395","v":"CAISO_Shed_DR_Tranche6"},{"$f":"INDEX(K:K,MATCH(R395,Lists!J:J,0))","v":"CAISO_Conventional_DR"},"Non-wind"]
[null,null,null,null,null,null,null,null,null,{"$f":"IFERROR(INDEX(raw_resource_build!$B$2:$B$1000,MATCH(0,COUNTIF($J$1:J395,raw_resource_build!$B$2:$B$1000), 0),0), \"\")","v":""},{"$f":"IF(J396=\"\", \"\", INDEX(raw_resource_build!E:E, MATCH(J396, raw_resource_build!B:B, 0)))","v":""},{"$f":"IF(J396=\"\", \"\", INDEX(raw_resource_build!C:C, MATCH(J396, raw_resource_build!B:B, 0)))","v":""},null,{"$f":"raw_resource_build!B396","v":"LDWP_Small_Hydro_for_Other"},"Non-wind",{"$f":"IFERROR(INDEX($E$5:$E$32,MATCH(raw_resource_build!$E396,Lists!$B$5:$B$32,0)),\"Non-CAISO\")","v":"Hydro (small + large)"},null,{"$f":"raw_annual_energy!C396","v":"CAISO_Shed_DR_Tranche6"},{"$f":"INDEX(K:K,MATCH(R396,Lists!J:J,0))","v":"CAISO_Conventional_DR"},"Non-wind"]
[null,null,null,null,null,null,null,null,null,{"$f":"IFERROR(INDEX(raw_resource_build!$B$2:$B$1000,MATCH(0,COUNTIF($J$1:J396,raw_resource_build!$B$2:$B$1000), 0),0), \"\")","v":""},{"$f":"IF(J397=\"\", \"\", INDEX(raw_resource_build!E:E, MATCH(J397, raw_resource_build!B:B, 0)))","v":""},{"$f":"IF(J397=\"\", \"\", INDEX(raw_resource_build!C:C, MATCH(J397, raw_resource_build!B:B, 0)))","v":""},null,{"$f":"raw_resource_build!B397","v":"NW_Small_Hydro_for_Other"},"Non-wind",{"$f":"IFERROR(INDEX($E$5:$E$32,MATCH(raw_resource_build!$E397,Lists!$B$5:$B$32,0)),\"Non-CAISO\")","v":"Hydro (small + large)"},null,{"$f":"raw_annual_energy!C397","v":"CAISO_Shed_DR_Tranche6"},{"$f":"INDEX(K:K,MATCH(R397,Lists!J:J,0))","v":"CAISO_Conventional_DR"},"Non-wind"]
[null,null,null,null,null,null,null,null,null,{"$f":"IFERROR(INDEX(raw_resource_build!$B$2:$B$1000,MATCH(0,COUNTIF($J$1:J397,raw_resource_build!$B$2:$B$1000), 0),0), \"\")","v":""},{"$f":"IF(J398=\"\", \"\", INDEX(raw_resource_build!E:E, MATCH(J398, raw_resource_build!B:B, 0)))","v":""},{"$f":"IF(J398=\"\", \"\", INDEX(raw_resource_build!C:C, MATCH(J398, raw_resource_build!B:B, 0)))","v":""},null,{"$f":"raw_resource_build!B398","v":"SW_Small_Hydro_for_Other"},"Non-wind",{"$f":"IFERROR(INDEX($E$5:$E$32,MATCH(raw_resource_build!$E398,Lists!$B$5:$B$32,0)),\"Non-CAISO\")","v":"Hydro (small + large)"},null,{"$f":"raw_annual_energy!C398","v":"CAISO_Shed_DR_Tranche6"},{"$f":"INDEX(K:K,MATCH(R398,Lists!J:J,0))","v":"CAISO_Conventional_DR"},"Non-wind"]
[null,null,null,null,null,null,null,null,null,{"$f":"IFERROR(INDEX(raw_resource_build!$B$2:$B$1000,MATCH(0,COUNTIF($J$1:J398,raw_resource_build!$B$2:$B$1000), 0),0), \"\")","v":""},{"$f":"IF(J399=\"\", \"\", INDEX(raw_resource_build!E:E, MATCH(J399, raw_resource_build!B:B, 0)))","v":""},{"$f":"IF(J399=\"\", \"\", INDEX(raw_resource_build!C:C, MATCH(J399, raw_resource_build!B:B, 0)))","v":""},null,{"$f":"raw_resource_build!B399","v":"Greater_Imperial_Geothermal"},"In-State",{"$f":"IFERROR(INDEX($E$5:$E$32,MATCH(raw_resource_build!$E399,Lists!$B$5:$B$32,0)),\"Non-CAISO\")","v":"Geothermal"},null,{"$f":"raw_annual_energy!C399","v":"CAISO_Shed_DR_Tranche6"},{"$f":"INDEX(K:K,MATCH(R399,Lists!J:J,0))","v":"CAISO_Conventional_DR"},"Non-wind"]
[null,null,null,null,null,null,null,null,null,{"$f":"IFERROR(INDEX(raw_resource_build!$B$2:$B$1000,MATCH(0,COUNTIF($J$1:J399,raw_resource_build!$B$2:$B$1000), 0),0), \"\")","v":""},{"$f":"IF(J400=\"\", \"\", INDEX(raw_resource_build!E:E, MATCH(J400, raw_resource_build!B:B, 0)))","v":""},{"$f":"IF(J400=\"\", \"\", INDEX(raw_resource_build!C:C, MATCH(J400, raw_resource_build!B:B, 0)))","v":""},null,{"$f":"raw_resource_build!B400","v":"Inyokern_North_Kramer_Geothermal"},"In-State",{"$f":"IFERROR(INDEX($E$5:$E$32,MATCH(raw_resource_build!$E400,Lists!$B$5:$B$32,0)),\"Non-CAISO\")","v":"Geothermal"},null,{"$f":"raw_annual_energy!C400","v":"CAISO_Shed_DR_Tranche6"},{"$f":"INDEX(K:K,MATCH(R400,Lists!J:J,0))","v":"CAISO_Conventional_DR"},"Non-wind"]
[null,null,null,null,null,null,null,null,null,{"$f":"IFERROR(INDEX(raw_resource_build!$B$2:$B$1000,MATCH(0,COUNTIF($J$1:J400,raw_resource_build!$B$2:$B$1000), 0),0), \"\")","v":""},{"$f":"IF(J401=\"\", \"\", INDEX(raw_resource_build!E:E, MATCH(J401, raw_resource_build!B:B, 0)))","v":""},{"$f":"IF(J401=\"\", \"\", INDEX(raw_resource_build!C:C, MATCH(J401, raw_resource_build!B:B, 0)))","v":""},null,{"$f":"raw_resource_build!B401","v":"Northern_California_Ex_Geothermal"},"In-State",{"$f":"IFERROR(INDEX($E$5:$E$32,MATCH(raw_resource_build!$E401,Lists!$B$5:$B$32,0)),\"Non-CAISO\")","v":"Geothermal"},null,{"$f":"raw_annual_energy!C401","v":"CAISO_Shed_DR_Tranche6"},{"$f":"INDEX(K:K,MATCH(R401,Lists!J:J,0))","v":"CAISO_Conventional_DR"},"Non-wind"]
[null,null,null,null,null,null,null,null,null,{"$f":"IFERROR(INDEX(raw_resource_build!$B$2:$B$1000,MATCH(0,COUNTIF($J$1:J401,raw_resource_build!$B$2:$B$1000), 0),0), \"\")","v":""},{"$f":"IF(J402=\"\", \"\", INDEX(raw_resource_build!E:E, MATCH(J402, raw_resource_build!B:B, 0)))","v":""},{"$f":"IF(J402=\"\", \"\", INDEX(raw_resource_build!C:C, MATCH(J402, raw_resource_build!B:B, 0)))","v":""},null,{"$f":"raw_resource_build!B402","v":"Pacific_Northwest_Geothermal"},"Out-Of-State",{"$f":"IFERROR(INDEX($E$5:$E$32,MATCH(raw_resource_build!$E402,Lists!$B$5:$B$32,0)),\"Non-CAISO\")","v":"Geothermal"},null,{"$f":"raw_annual_energy!C402","v":"CAISO_Shed_DR_Tranche6"},{"$f":"INDEX(K:K,MATCH(R402,Lists!J:J,0))","v":"CAISO_Conventional_DR"},"Non-wind"]
[null,null,null,null,null,null,null,null,null,{"$f":"IFERROR(INDEX(raw_resource_build!$B$2:$B$1000,MATCH(0,COUNTIF($J$1:J402,raw_resource_build!$B$2:$B$1000), 0),0), \"\")","v":""},{"$f":"IF(J403=\"\", \"\", INDEX(raw_resource_build!E:E, MATCH(J403, raw_resource_build!B:B, 0)))","v":""},{"$f":"IF(J403=\"\", \"\", INDEX(raw_resource_build!C:C, MATCH(J403, raw_resource_build!B:B, 0)))","v":""},null,{"$f":"raw_resource_build!B403","v":"Riverside_Palm_Springs_Geothermal"},"In-State",{"$f":"IFERROR(INDEX($E$5:$E$32,MATCH(raw_resource_build!$E403,Lists!$B$5:$B$32,0)),\"Non-CAISO\")","v":"Geothermal"},null,{"$f":"raw_annual_energy!C403","v":"CAISO_Shed_DR_Tranche7"},{"$f":"INDEX(K:K,MATCH(R403,Lists!J:J,0))","v":"CAISO_Conventional_DR"},"Non-wind"]
[null,null,null,null,null,null,null,null,null,{"$f":"IFERROR(INDEX(raw_resource_build!$B$2:$B$1000,MATCH(0,COUNTIF($J$1:J403,raw_resource_build!$B$2:$B$1000), 0),0), \"\")","v":""},{"$f":"IF(J404=\"\", \"\", INDEX(raw_resource_build!E:E, MATCH(J404, raw_resource_build!B:B, 0)))","v":""},{"$f":"IF(J404=\"\", \"\", INDEX(raw_resource_build!C:C, MATCH(J404, raw_resource_build!B:B, 0)))","v":""},null,{"$f":"raw_resource_build!B404","v":"Solano_Geothermal"},"In-State",{"$f":"IFERROR(INDEX($E$5:$E$32,MATCH(raw_resource_build!$E404,Lists!$B$5:$B$32,0)),\"Non-CAISO\")","v":"Geothermal"},null,{"$f":"raw_annual_energy!C404","v":"CAISO_Shed_DR_Tranche7"},{"$f":"INDEX(K:K,MATCH(R404,Lists!J:J,0))","v":"CAISO_Conventional_DR"},"Non-wind"]
[null,null,null,null,null,null,null,null,null,{"$f":"IFERROR(INDEX(raw_resource_build!$B$2:$B$1000,MATCH(0,COUNTIF($J$1:J404,raw_resource_build!$B$2:$B$1000), 0),0), \"\")","v":""},{"$f":"IF(J405=\"\", \"\", INDEX(raw_resource_build!E:E, MATCH(J405, raw_resource_build!B:B, 0)))","v":""},{"$f":"IF(J405=\"\", \"\", INDEX(raw_resource_build!C:C, MATCH(J405, raw_resource_build!B:B, 0)))","v":""},null,{"$f":"raw_resource_build!B405","v":"Southern_Nevada_Geothermal"},"In-State",{"$f":"IFERROR(INDEX($E$5:$E$32,MATCH(raw_resource_build!$E405,Lists!$B$5:$B$32,0)),\"Non-CAISO\")","v":"Geothermal"},null,{"$f":"raw_annual_energy!C405","v":"CAISO_Shed_DR_Tranche7"},{"$f":"INDEX(K:K,MATCH(R405,Lists!J:J,0))","v":"CAISO_Conventional_DR"},"Non-wind"]
[null,null,null,null,null,null,null,null,null,{"$f":"IFERROR(INDEX(raw_resource_build!$B$2:$B$1000,MATCH(0,COUNTIF($J$1:J405,raw_resource_build!$B$2:$B$1000), 0),0), \"\")","v":""},{"$f":"IF(J406=\"\", \"\", INDEX(raw_resource_build!E:E, MATCH(J406, raw_resource_build!B:B, 0)))","v":""},{"$f":"IF(J406=\"\", \"\", INDEX(raw_resource_build!C:C, MATCH(J406, raw_resource_build!B:B, 0)))","v":""},null,{"$f":"raw_resource_build!B406","v":"Customer_PV"},"Non-wind",{"$f":"IFERROR(INDEX($E$5:$E$32,MATCH(raw_resource_build!$E406,Lists!$B$5:$B$32,0)),\"Non-CAISO\")","v":"Renewables"},null,{"$f":"raw_annual_energy!C406","v":"CAISO_Shed_DR_Tranche7"},{"$f":"INDEX(K:K,MATCH(R406,Lists!J:J,0))","v":"CAISO_Conventional_DR"},"Non-wind"]
[null,null,null,null,null,null,null,null,null,{"$f":"IFERROR(INDEX(raw_resource_build!$B$2:$B$1000,MATCH(0,COUNTIF($J$1:J406,raw_resource_build!$B$2:$B$1000), 0),0), \"\")","v":""},{"$f":"IF(J407=\"\", \"\", INDEX(raw_resource_build!E:E, MATCH(J407, raw_resource_build!B:B, 0)))","v":""},{"$f":"IF(J407=\"\", \"\", INDEX(raw_resource_build!C:C, MATCH(J407, raw_resource_build!B:B, 0)))","v":""},null,{"$f":"raw_resource_build!B407","v":"BANC_Solar_for_Other"},"Non-wind",{"$f":"IFERROR(INDEX($E$5:$E$32,MATCH(raw_resource_build!$E407,Lists!$B$5:$B$32,0)),\"Non-CAISO\")","v":"Renewables"},null,{"$f":"raw_annual_energy!C407","v":"CAISO_Shed_DR_Tranche7"},{"$f":"INDEX(K:K,MATCH(R407,Lists!J:J,0))","v":"CAISO_Conventional_DR"},"Non-wind"]
[null,null,null,null,null,null,null,null,null,{"$f":"IFERROR(INDEX(raw_resource_build!$B$2:$B$1000,MATCH(0,COUNTIF($J$1:J407,raw_resource_build!$B$2:$B$1000), 0),0), \"\")","v":""},{"$f":"IF(J408=\"\", \"\", INDEX(raw_resource_build!E:E, MATCH(J408, raw_resource_build!B:B, 0)))","v":""},{"$f":"IF(J408=\"\", \"\", INDEX(raw_resource_build!C:C, MATCH(J408, raw_resource_build!B:B, 0)))","v":""},null,{"$f":"raw_resource_build!B408","v":"CAISO_Solar_for_Other"},"Non-wind",{"$f":"IFERROR(INDEX($E$5:$E$32,MATCH(raw_resource_build!$E408,Lists!$B$5:$B$32,0)),\"Non-CAISO\")","v":"Renewables"},null,{"$f":"raw_annual_energy!C408","v":"CAISO_Shed_DR_Tranche7"},{"$f":"INDEX(K:K,MATCH(R408,Lists!J:J,0))","v":"CAISO_Conventional_DR"},"Non-wind"]
[null,null,null,null,null,null,null,null,null,{"$f":"IFERROR(INDEX(raw_resource_build!$B$2:$B$1000,MATCH(0,COUNTIF($J$1:J408,raw_resource_build!$B$2:$B$1000), 0),0), \"\")","v":""},{"$f":"IF(J409=\"\", \"\", INDEX(raw_resource_build!E:E, MATCH(J409, raw_resource_build!B:B, 0)))","v":""},{"$f":"IF(J409=\"\", \"\", INDEX(raw_resource_build!C:C, MATCH(J409, raw_resource_build!B:B, 0)))","v":""},null,{"$f":"raw_resource_build!B409","v":"IID_Solar_for_Other"},"Non-wind",{"$f":"IFERROR(INDEX($E$5:$E$32,MATCH(raw_resource_build!$E409,Lists!$B$5:$B$32,0)),\"Non-CAISO\")","v":"Renewables"},null,{"$f":"raw_annual_energy!C409","v":"CAISO_Shed_DR_Tranche7"},{"$f":"INDEX(K:K,MATCH(R409,Lists!J:J,0))","v":"CAISO_Conventional_DR"},"Non-wind"]
[null,null,null,null,null,null,null,null,null,{"$f":"IFERROR(INDEX(raw_resource_build!$B$2:$B$1000,MATCH(0,COUNTIF($J$1:J409,raw_resource_build!$B$2:$B$1000), 0),0), \"\")","v":""},{"$f":"IF(J410=\"\", \"\", INDEX(raw_resource_build!E:E, MATCH(J410, raw_resource_build!B:B, 0)))","v":""},{"$f":"IF(J410=\"\", \"\", INDEX(raw_resource_build!C:C, MATCH(J410, raw_resource_build!B:B, 0)))","v":""},null,{"$f":"raw_resource_build!B410","v":"LDWP_Solar_for_Other"},"Non-wind",{"$f":"IFERROR(INDEX($E$5:$E$32,MATCH(raw_resource_build!$E410,Lists!$B$5:$B$32,0)),\"Non-CAISO\")","v":"Renewables"},null,{"$f":"raw_annual_energy!C410","v":"CAISO_Shed_DR_Tranche7"},{"$f":"INDEX(K:K,MATCH(R410,Lists!J:J,0))","v":"CAISO_Conventional_DR"},"Non-wind"]
[null,null,null,null,null,null,null,null,null,{"$f":"IFERROR(INDEX(raw_resource_build!$B$2:$B$1000,MATCH(0,COUNTIF($J$1:J410,raw_resource_build!$B$2:$B$1000), 0),0), \"\")","v":""},{"$f":"IF(J411=\"\", \"\", INDEX(raw_resource_build!E:E, MATCH(J411, raw_resource_build!B:B, 0)))","v":""},{"$f":"IF(J411=\"\", \"\", INDEX(raw_resource_build!C:C, MATCH(J411, raw_resource_build!B:B, 0)))","v":""},null,{"$f":"raw_resource_build!B411","v":"NW_Solar_for_Other"},"Non-wind",{"$f":"IFERROR(INDEX($E$5:$E$32,MATCH(raw_resource_build!$E411,Lists!$B$5:$B$32,0)),\"Non-CAISO\")","v":"Renewables"},null,{"$f":"raw_annual_energy!C411","v":"CAISO_Shed_DR_Tranche8"},{"$f":"INDEX(K:K,MATCH(R411,Lists!J:J,0))","v":"CAISO_Conventional_DR"},"Non-wind"]
[null,null,null,null,null,null,null,null,null,{"$f":"IFERROR(INDEX(raw_resource_build!$B$2:$B$1000,MATCH(0,COUNTIF($J$1:J411,raw_resource_build!$B$2:$B$1000), 0),0), \"\")","v":""},{"$f":"IF(J412=\"\", \"\", INDEX(raw_resource_build!E:E, MATCH(J412, raw_resource_build!B:B, 0)))","v":""},{"$f":"IF(J412=\"\", \"\", INDEX(raw_resource_build!C:C, MATCH(J412, raw_resource_build!B:B, 0)))","v":""},null,{"$f":"raw_resource_build!B412","v":"SW_Solar_for_Other"},"Non-wind",{"$f":"IFERROR(INDEX($E$5:$E$32,MATCH(raw_resource_build!$E412,Lists!$B$5:$B$32,0)),\"Non-CAISO\")","v":"Renewables"},null,{"$f":"raw_annual_energy!C412","v":"CAISO_Shed_DR_Tranche8"},{"$f":"INDEX(K:K,MATCH(R412,Lists!J:J,0))","v":"CAISO_Conventional_DR"},"Non-wind"]
[null,null,null,null,null,null,null,null,null,{"$f":"IFERROR(INDEX(raw_resource_build!$B$2:$B$1000,MATCH(0,COUNTIF($J$1:J412,raw_resource_build!$B$2:$B$1000), 0),0), \"\")","v":""},{"$f":"IF(J413=\"\", \"\", INDEX(raw_resource_build!E:E, MATCH(J413, raw_resource_build!B:B, 0)))","v":""},{"$f":"IF(J413=\"\", \"\", INDEX(raw_resource_build!C:C, MATCH(J413, raw_resource_build!B:B, 0)))","v":""},null,{"$f":"raw_resource_build!B413","v":"CAISO_Solar_for_CAISO"},"Non-wind",{"$f":"IFERROR(INDEX($E$5:$E$32,MATCH(raw_resource_build!$E413,Lists!$B$5:$B$32,0)),\"Non-CAISO\")","v":"Renewables"},null,{"$f":"raw_annual_energy!C413","v":"CAISO_Shed_DR_Tranche8"},{"$f":"INDEX(K:K,MATCH(R413,Lists!J:J,0))","v":"CAISO_Conventional_DR"},"Non-wind"]
[null,null,null,null,null,null,null,null,null,{"$f":"IFERROR(INDEX(raw_resource_build!$B$2:$B$1000,MATCH(0,COUNTIF($J$1:J413,raw_resource_build!$B$2:$B$1000), 0),0), \"\")","v":""},{"$f":"IF(J414=\"\", \"\", INDEX(raw_resource_build!E:E, MATCH(J414, raw_resource_build!B:B, 0)))","v":""},{"$f":"IF(J414=\"\", \"\", INDEX(raw_resource_build!C:C, MATCH(J414, raw_resource_build!B:B, 0)))","v":""},null,{"$f":"raw_resource_build!B414","v":"IID_Solar_for_CAISO"},"Non-wind",{"$f":"IFERROR(INDEX($E$5:$E$32,MATCH(raw_resource_build!$E414,Lists!$B$5:$B$32,0)),\"Non-CAISO\")","v":"Renewables"},null,{"$f":"raw_annual_energy!C414","v":"CAISO_Shed_DR_Tranche8"},{"$f":"INDEX(K:K,MATCH(R414,Lists!J:J,0))","v":"CAISO_Conventional_DR"},"Non-wind"]
[null,null,null,null,null,null,null,null,null,{"$f":"IFERROR(INDEX(raw_resource_build!$B$2:$B$1000,MATCH(0,COUNTIF($J$1:J414,raw_resource_build!$B$2:$B$1000), 0),0), \"\")","v":""},{"$f":"IF(J415=\"\", \"\", INDEX(raw_resource_build!E:E, MATCH(J415, raw_resource_build!B:B, 0)))","v":""},{"$f":"IF(J415=\"\", \"\", INDEX(raw_resource_build!C:C, MATCH(J415, raw_resource_build!B:B, 0)))","v":""},null,{"$f":"raw_resource_build!B415","v":"SW_Solar_for_CAISO"},"Non-wind",{"$f":"IFERROR(INDEX($E$5:$E$32,MATCH(raw_resource_build!$E415,Lists!$B$5:$B$32,0)),\"Non-CAISO\")","v":"Renewables"},null,{"$f":"raw_annual_energy!C415","v":"CAISO_Shed_DR_Tranche8"},{"$f":"INDEX(K:K,MATCH(R415,Lists!J:J,0))","v":"CAISO_Conventional_DR"},"Non-wind"]
[null,null,null,null,null,null,null,null,null,{"$f":"IFERROR(INDEX(raw_resource_build!$B$2:$B$1000,MATCH(0,COUNTIF($J$1:J415,raw_resource_build!$B$2:$B$1000), 0),0), \"\")","v":""},{"$f":"IF(J416=\"\", \"\", INDEX(raw_resource_build!E:E, MATCH(J416, raw_resource_build!B:B, 0)))","v":""},{"$f":"IF(J416=\"\", \"\", INDEX(raw_resource_build!C:C, MATCH(J416, raw_resource_build!B:B, 0)))","v":""},null,{"$f":"raw_resource_build!B416","v":"BANC_Wind_for_Other"},"Non-wind",{"$f":"IFERROR(INDEX($E$5:$E$32,MATCH(raw_resource_build!$E416,Lists!$B$5:$B$32,0)),\"Non-CAISO\")","v":"Renewables"},null,{"$f":"raw_annual_energy!C416","v":"CAISO_Shed_DR_Tranche8"},{"$f":"INDEX(K:K,MATCH(R416,Lists!J:J,0))","v":"CAISO_Conventional_DR"},"Non-wind"]
[null,null,null,null,null,null,null,null,null,{"$f":"IFERROR(INDEX(raw_resource_build!$B$2:$B$1000,MATCH(0,COUNTIF($J$1:J416,raw_resource_build!$B$2:$B$1000), 0),0), \"\")","v":""},{"$f":"IF(J417=\"\", \"\", INDEX(raw_resource_build!E:E, MATCH(J417, raw_resource_build!B:B, 0)))","v":""},{"$f":"IF(J417=\"\", \"\", INDEX(raw_resource_build!C:C, MATCH(J417, raw_resource_build!B:B, 0)))","v":""},null,{"$f":"raw_resource_build!B417","v":"CAISO_Wind_for_Other"},"Non-wind",{"$f":"IFERROR(INDEX($E$5:$E$32,MATCH(raw_resource_build!$E417,Lists!$B$5:$B$32,0)),\"Non-CAISO\")","v":"Renewables"},null,{"$f":"raw_annual_energy!C417","v":"CAISO_Shed_DR_Tranche8"},{"$f":"INDEX(K:K,MATCH(R417,Lists!J:J,0))","v":"CAISO_Conventional_DR"},"Non-wind"]
[null,null,null,null,null,null,null,null,null,{"$f":"IFERROR(INDEX(raw_resource_build!$B$2:$B$1000,MATCH(0,COUNTIF($J$1:J417,raw_resource_build!$B$2:$B$1000), 0),0), \"\")","v":""},{"$f":"IF(J418=\"\", \"\", INDEX(raw_resource_build!E:E, MATCH(J418, raw_resource_build!B:B, 0)))","v":""},{"$f":"IF(J418=\"\", \"\", INDEX(raw_resource_build!C:C, MATCH(J418, raw_resource_build!B:B, 0)))","v":""},null,{"$f":"raw_resource_build!B418","v":"IID_Wind_for_Other"},"Non-wind",{"$f":"IFERROR(INDEX($E$5:$E$32,MATCH(raw_resource_build!$E418,Lists!$B$5:$B$32,0)),\"Non-CAISO\")","v":"Renewables"},null,{"$f":"raw_annual_energy!C418","v":"CAISO_Shed_DR_Tranche8"},{"$f":"INDEX(K:K,MATCH(R418,Lists!J:J,0))","v":"CAISO_Conventional_DR"},"Non-wind"]
[null,null,null,null,null,null,null,null,null,{"$f":"IFERROR(INDEX(raw_resource_build!$B$2:$B$1000,MATCH(0,COUNTIF($J$1:J418,raw_resource_build!$B$2:$B$1000), 0),0), \"\")","v":""},{"$f":"IF(J419=\"\", \"\", INDEX(raw_resource_build!E:E, MATCH(J419, raw_resource_build!B:B, 0)))","v":""},{"$f":"IF(J419=\"\", \"\", INDEX(raw_resource_build!C:C, MATCH(J419, raw_resource_build!B:B, 0)))","v":""},null,{"$f":"raw_resource_build!B419","v":"LDWP_Wind_for_Other"},"Non-wind",{"$f":"IFERROR(INDEX($E$5:$E$32,MATCH(raw_resource_build!$E419,Lists!$B$5:$B$32,0)),\"Non-CAISO\")","v":"Renewables"},null,{"$f":"raw_annual_energy!C419","v":"CAISO_Small_Hydro_for_CAISO"},{"$f":"INDEX(K:K,MATCH(R419,Lists!J:J,0))","v":"Small_Hydro"},"Non-wind"]
[null,null,null,null,null,null,null,null,null,{"$f":"IFERROR(INDEX(raw_resource_build!$B$2:$B$1000,MATCH(0,COUNTIF($J$1:J419,raw_resource_build!$B$2:$B$1000), 0),0), \"\")","v":""},{"$f":"IF(J420=\"\", \"\", INDEX(raw_resource_build!E:E, MATCH(J420, raw_resource_build!B:B, 0)))","v":""},{"$f":"IF(J420=\"\", \"\", INDEX(raw_resource_build!C:C, MATCH(J420, raw_resource_build!B:B, 0)))","v":""},null,{"$f":"raw_resource_build!B420","v":"NW_Wind_for_Other"},"Non-wind",{"$f":"IFERROR(INDEX($E$5:$E$32,MATCH(raw_resource_build!$E420,Lists!$B$5:$B$32,0)),\"Non-CAISO\")","v":"Renewables"},null,{"$f":"raw_annual_energy!C420","v":"CAISO_Small_Hydro_for_CAISO"},{"$f":"INDEX(K:K,MATCH(R420,Lists!J:J,0))","v":"Small_Hydro"},"Non-wind"]
[null,null,null,null,null,null,null,null,null,{"$f":"IFERROR(INDEX(raw_resource_build!$B$2:$B$1000,MATCH(0,COUNTIF($J$1:J420,raw_resource_build!$B$2:$B$1000), 0),0), \"\")","v":""},{"$f":"IF(J421=\"\", \"\", INDEX(raw_resource_build!E:E, MATCH(J421, raw_resource_build!B:B, 0)))","v":""},{"$f":"IF(J421=\"\", \"\", INDEX(raw_resource_build!C:C, MATCH(J421, raw_resource_build!B:B, 0)))","v":""},null,{"$f":"raw_resource_build!B421","v":"SW_Wind_for_Other"},"Non-wind",{"$f":"IFERROR(INDEX($E$5:$E$32,MATCH(raw_resource_build!$E421,Lists!$B$5:$B$32,0)),\"Non-CAISO\")","v":"Renewables"},null,{"$f":"raw_annual_energy!C421","v":"CAISO_Small_Hydro_for_CAISO"},{"$f":"INDEX(K:K,MATCH(R421,Lists!J:J,0))","v":"Small_Hydro"},"Non-wind"]
[null,null,null,null,null,null,null,null,null,{"$f":"IFERROR(INDEX(raw_resource_build!$B$2:$B$1000,MATCH(0,COUNTIF($J$1:J421,raw_resource_build!$B$2:$B$1000), 0),0), \"\")","v":""},{"$f":"IF(J422=\"\", \"\", INDEX(raw_resource_build!E:E, MATCH(J422, raw_resource_build!B:B, 0)))","v":""},{"$f":"IF(J422=\"\", \"\", INDEX(raw_resource_build!C:C, MATCH(J422, raw_resource_build!B:B, 0)))","v":""},null,{"$f":"raw_resource_build!B422","v":"CAISO_Wind_for_CAISO"},"Non-wind",{"$f":"IFERROR(INDEX($E$5:$E$32,MATCH(raw_resource_build!$E422,Lists!$B$5:$B$32,0)),\"Non-CAISO\")","v":"Renewables"},null,{"$f":"raw_annual_energy!C422","v":"CAISO_Small_Hydro_for_CAISO"},{"$f":"INDEX(K:K,MATCH(R422,Lists!J:J,0))","v":"Small_Hydro"},"Non-wind"]
[null,null,null,null,null,null,null,null,null,{"$f":"IFERROR(INDEX(raw_resource_build!$B$2:$B$1000,MATCH(0,COUNTIF($J$1:J422,raw_resource_build!$B$2:$B$1000), 0),0), \"\")","v":""},{"$f":"IF(J423=\"\", \"\", INDEX(raw_resource_build!E:E, MATCH(J423, raw_resource_build!B:B, 0)))","v":""},{"$f":"IF(J423=\"\", \"\", INDEX(raw_resource_build!C:C, MATCH(J423, raw_resource_build!B:B, 0)))","v":""},null,{"$f":"raw_resource_build!B423","v":"LDWP_Wind_for_CAISO"},"Non-wind",{"$f":"IFERROR(INDEX($E$5:$E$32,MATCH(raw_resource_build!$E423,Lists!$B$5:$B$32,0)),\"Non-CAISO\")","v":"Renewables"},null,{"$f":"raw_annual_energy!C423","v":"CAISO_Small_Hydro_for_CAISO"},{"$f":"INDEX(K:K,MATCH(R423,Lists!J:J,0))","v":"Small_Hydro"},"Non-wind"]
[null,null,null,null,null,null,null,null,null,{"$f":"IFERROR(INDEX(raw_resource_build!$B$2:$B$1000,MATCH(0,COUNTIF($J$1:J423,raw_resource_build!$B$2:$B$1000), 0),0), \"\")","v":""},{"$f":"IF(J424=\"\", \"\", INDEX(raw_resource_build!E:E, MATCH(J424, raw_resource_build!B:B, 0)))","v":""},{"$f":"IF(J424=\"\", \"\", INDEX(raw_resource_build!C:C, MATCH(J424, raw_resource_build!B:B, 0)))","v":""},null,{"$f":"raw_resource_build!B424","v":"NW_Wind_for_CAISO"},"Non-wind",{"$f":"IFERROR(INDEX($E$5:$E$32,MATCH(raw_resource_build!$E424,Lists!$B$5:$B$32,0)),\"Non-CAISO\")","v":"Renewables"},null,{"$f":"raw_annual_energy!C424","v":"CAISO_Small_Hydro_for_CAISO"},{"$f":"INDEX(K:K,MATCH(R424,Lists!J:J,0))","v":"Small_Hydro"},"Non-wind"]
[null,null,null,null,null,null,null,null,null,{"$f":"IFERROR(INDEX(raw_resource_build!$B$2:$B$1000,MATCH(0,COUNTIF($J$1:J424,raw_resource_build!$B$2:$B$1000), 0),0), \"\")","v":""},{"$f":"IF(J425=\"\", \"\", INDEX(raw_resource_build!E:E, MATCH(J425, raw_resource_build!B:B, 0)))","v":""},{"$f":"IF(J425=\"\", \"\", INDEX(raw_resource_build!C:C, MATCH(J425, raw_resource_build!B:B, 0)))","v":""},null,{"$f":"raw_resource_build!B425","v":"SW_Wind_for_CAISO"},"Non-wind",{"$f":"IFERROR(INDEX($E$5:$E$32,MATCH(raw_resource_build!$E425,Lists!$B$5:$B$32,0)),\"Non-CAISO\")","v":"Renewables"},null,{"$f":"raw_annual_energy!C425","v":"CAISO_Small_Hydro_for_CAISO"},{"$f":"INDEX(K:K,MATCH(R425,Lists!J:J,0))","v":"Small_Hydro"},"Non-wind"]
[null,null,null,null,null,null,null,null,null,{"$f":"IFERROR(INDEX(raw_resource_build!$B$2:$B$1000,MATCH(0,COUNTIF($J$1:J425,raw_resource_build!$B$2:$B$1000), 0),0), \"\")","v":""},{"$f":"IF(J426=\"\", \"\", INDEX(raw_resource_build!E:E, MATCH(J426, raw_resource_build!B:B, 0)))","v":""},{"$f":"IF(J426=\"\", \"\", INDEX(raw_resource_build!C:C, MATCH(J426, raw_resource_build!B:B, 0)))","v":""},null,{"$f":"raw_resource_build!B426","v":"Carrizo_Solar"},"In-State",{"$f":"IFERROR(INDEX($E$5:$E$32,MATCH(raw_resource_build!$E426,Lists!$B$5:$B$32,0)),\"Non-CAISO\")","v":"Renewables"},null,{"$f":"raw_annual_energy!C426","v":"CAISO_Small_Hydro_for_CAISO"},{"$f":"INDEX(K:K,MATCH(R426,Lists!J:J,0))","v":"Small_Hydro"},"Non-wind"]
[null,null,null,null,null,null,null,null,null,{"$f":"IFERROR(INDEX(raw_resource_build!$B$2:$B$1000,MATCH(0,COUNTIF($J$1:J426,raw_resource_build!$B$2:$B$1000), 0),0), \"\")","v":""},{"$f":"IF(J427=\"\", \"\", INDEX(raw_resource_build!E:E, MATCH(J427, raw_resource_build!B:B, 0)))","v":""},{"$f":"IF(J427=\"\", \"\", INDEX(raw_resource_build!C:C, MATCH(J427, raw_resource_build!B:B, 0)))","v":""},null,{"$f":"raw_resource_build!B427","v":"Carrizo_Wind"},"In-State",{"$f":"IFERROR(INDEX($E$5:$E$32,MATCH(raw_resource_build!$E427,Lists!$B$5:$B$32,0)),\"Non-CAISO\")","v":"Renewables"},null,{"$f":"raw_annual_energy!C427","v":"CAISO_Small_Hydro_for_Other"},{"$f":"INDEX(K:K,MATCH(R427,Lists!J:J,0))","v":"Small_Hydro"},"Non-wind"]
[null,null,null,null,null,null,null,null,null,{"$f":"IFERROR(INDEX(raw_resource_build!$B$2:$B$1000,MATCH(0,COUNTIF($J$1:J427,raw_resource_build!$B$2:$B$1000), 0),0), \"\")","v":""},{"$f":"IF(J428=\"\", \"\", INDEX(raw_resource_build!E:E, MATCH(J428, raw_resource_build!B:B, 0)))","v":""},{"$f":"IF(J428=\"\", \"\", INDEX(raw_resource_build!C:C, MATCH(J428, raw_resource_build!B:B, 0)))","v":""},null,{"$f":"raw_resource_build!B428","v":"Central_Valley_North_Los_Banos_Solar"},"In-State",{"$f":"IFERROR(INDEX($E$5:$E$32,MATCH(raw_resource_build!$E428,Lists!$B$5:$B$32,0)),\"Non-CAISO\")","v":"Renewables"},null,{"$f":"raw_annual_energy!C428","v":"CAISO_Small_Hydro_for_Other"},{"$f":"INDEX(K:K,MATCH(R428,Lists!J:J,0))","v":"Small_Hydro"},"Non-wind"]
[null,null,null,null,null,null,null,null,null,{"$f":"IFERROR(INDEX(raw_resource_build!$B$2:$B$1000,MATCH(0,COUNTIF($J$1:J428,raw_resource_build!$B$2:$B$1000), 0),0), \"\")","v":""},{"$f":"IF(J429=\"\", \"\", INDEX(raw_resource_build!E:E, MATCH(J429, raw_resource_build!B:B, 0)))","v":""},{"$f":"IF(J429=\"\", \"\", INDEX(raw_resource_build!C:C, MATCH(J429, raw_resource_build!B:B, 0)))","v":""},null,{"$f":"raw_resource_build!B429","v":"Central_Valley_North_Los_Banos_Wind"},"In-State",{"$f":"IFERROR(INDEX($E$5:$E$32,MATCH(raw_resource_build!$E429,Lists!$B$5:$B$32,0)),\"Non-CAISO\")","v":"Renewables"},null,{"$f":"raw_annual_energy!C429","v":"CAISO_Small_Hydro_for_Other"},{"$f":"INDEX(K:K,MATCH(R429,Lists!J:J,0))","v":"Small_Hydro"},"Non-wind"]
[null,null,null,null,null,null,null,null,null,{"$f":"IFERROR(INDEX(raw_resource_build!$B$2:$B$1000,MATCH(0,COUNTIF($J$1:J429,raw_resource_build!$B$2:$B$1000), 0),0), \"\")","v":""},{"$f":"IF(J430=\"\", \"\", INDEX(raw_resource_build!E:E, MATCH(J430, raw_resource_build!B:B, 0)))","v":""},{"$f":"IF(J430=\"\", \"\", INDEX(raw_resource_build!C:C, MATCH(J430, raw_resource_build!B:B, 0)))","v":""},null,{"$f":"raw_resource_build!B430","v":"Distributed_Solar"},"In-State",{"$f":"IFERROR(INDEX($E$5:$E$32,MATCH(raw_resource_build!$E430,Lists!$B$5:$B$32,0)),\"Non-CAISO\")","v":"Renewables"},null,{"$f":"raw_annual_energy!C430","v":"CAISO_Small_Hydro_for_Other"},{"$f":"INDEX(K:K,MATCH(R430,Lists!J:J,0))","v":"Small_Hydro"},"Non-wind"]
[null,null,null,null,null,null,null,null,null,{"$f":"IFERROR(INDEX(raw_resource_build!$B$2:$B$1000,MATCH(0,COUNTIF($J$1:J430,raw_resource_build!$B$2:$B$1000), 0),0), \"\")","v":""},{"$f":"IF(J431=\"\", \"\", INDEX(raw_resource_build!E:E, MATCH(J431, raw_resource_build!B:B, 0)))","v":""},{"$f":"IF(J431=\"\", \"\", INDEX(raw_resource_build!C:C, MATCH(J431, raw_resource_build!B:B, 0)))","v":""},null,{"$f":"raw_resource_build!B431","v":"Mountain_Pass_El_Dorado_Solar"},"In-State",{"$f":"IFERROR(INDEX($E$5:$E$32,MATCH(raw_resource_build!$E431,Lists!$B$5:$B$32,0)),\"Non-CAISO\")","v":"Renewables"},null,{"$f":"raw_annual_energy!C431","v":"CAISO_Small_Hydro_for_Other"},{"$f":"INDEX(K:K,MATCH(R431,Lists!J:J,0))","v":"Small_Hydro"},"Non-wind"]
[null,null,null,null,null,null,null,null,null,{"$f":"IFERROR(INDEX(raw_resource_build!$B$2:$B$1000,MATCH(0,COUNTIF($J$1:J431,raw_resource_build!$B$2:$B$1000), 0),0), \"\")","v":""},{"$f":"IF(J432=\"\", \"\", INDEX(raw_resource_build!E:E, MATCH(J432, raw_resource_build!B:B, 0)))","v":""},{"$f":"IF(J432=\"\", \"\", INDEX(raw_resource_build!C:C, MATCH(J432, raw_resource_build!B:B, 0)))","v":""},null,{"$f":"raw_resource_build!B432","v":"Greater_Imperial_Solar"},"In-State",{"$f":"IFERROR(INDEX($E$5:$E$32,MATCH(raw_resource_build!$E432,Lists!$B$5:$B$32,0)),\"Non-CAISO\")","v":"Renewables"},null,{"$f":"raw_annual_energy!C432","v":"CAISO_Small_Hydro_for_Other"},{"$f":"INDEX(K:K,MATCH(R432,Lists!J:J,0))","v":"Small_Hydro"},"Non-wind"]
[null,null,null,null,null,null,null,null,null,{"$f":"IFERROR(INDEX(raw_resource_build!$B$2:$B$1000,MATCH(0,COUNTIF($J$1:J432,raw_resource_build!$B$2:$B$1000), 0),0), \"\")","v":""},{"$f":"IF(J433=\"\", \"\", INDEX(raw_resource_build!E:E, MATCH(J433, raw_resource_build!B:B, 0)))","v":""},{"$f":"IF(J433=\"\", \"\", INDEX(raw_resource_build!C:C, MATCH(J433, raw_resource_build!B:B, 0)))","v":""},null,{"$f":"raw_resource_build!B433","v":"Greater_Imperial_Wind"},"In-State",{"$f":"IFERROR(INDEX($E$5:$E$32,MATCH(raw_resource_build!$E433,Lists!$B$5:$B$32,0)),\"Non-CAISO\")","v":"Renewables"},null,{"$f":"raw_annual_energy!C433","v":"CAISO_Small_Hydro_for_Other"},{"$f":"INDEX(K:K,MATCH(R433,Lists!J:J,0))","v":"Small_Hydro"},"Non-wind"]
[null,null,null,null,null,null,null,null,null,{"$f":"IFERROR(INDEX(raw_resource_build!$B$2:$B$1000,MATCH(0,COUNTIF($J$1:J433,raw_resource_build!$B$2:$B$1000), 0),0), \"\")","v":""},{"$f":"IF(J434=\"\", \"\", INDEX(raw_resource_build!E:E, MATCH(J434, raw_resource_build!B:B, 0)))","v":""},{"$f":"IF(J434=\"\", \"\", INDEX(raw_resource_build!C:C, MATCH(J434, raw_resource_build!B:B, 0)))","v":""},null,{"$f":"raw_resource_build!B434","v":"Greater_Kramer_Wind"},"In-State",{"$f":"IFERROR(INDEX($E$5:$E$32,MATCH(raw_resource_build!$E434,Lists!$B$5:$B$32,0)),\"Non-CAISO\")","v":"Renewables"},null,{"$f":"raw_annual_energy!C434","v":"CAISO_Small_Hydro_for_Other"},{"$f":"INDEX(K:K,MATCH(R434,Lists!J:J,0))","v":"Small_Hydro"},"Non-wind"]
[null,null,null,null,null,null,null,null,null,{"$f":"IFERROR(INDEX(raw_resource_build!$B$2:$B$1000,MATCH(0,COUNTIF($J$1:J434,raw_resource_build!$B$2:$B$1000), 0),0), \"\")","v":""},{"$f":"IF(J435=\"\", \"\", INDEX(raw_resource_build!E:E, MATCH(J435, raw_resource_build!B:B, 0)))","v":""},{"$f":"IF(J435=\"\", \"\", INDEX(raw_resource_build!C:C, MATCH(J435, raw_resource_build!B:B, 0)))","v":""},null,{"$f":"raw_resource_build!B435","v":"Humboldt_Wind"},"In-State",{"$f":"IFERROR(INDEX($E$5:$E$32,MATCH(raw_resource_build!$E435,Lists!$B$5:$B$32,0)),\"Non-CAISO\")","v":"Renewables"},null,{"$f":"raw_annual_energy!C435","v":"CAISO_Solar_for_CAISO"},{"$f":"INDEX(K:K,MATCH(R435,Lists!J:J,0))","v":"Solar"},"Non-wind"]
[null,null,null,null,null,null,null,null,null,{"$f":"IFERROR(INDEX(raw_resource_build!$B$2:$B$1000,MATCH(0,COUNTIF($J$1:J435,raw_resource_build!$B$2:$B$1000), 0),0), \"\")","v":""},{"$f":"IF(J436=\"\", \"\", INDEX(raw_resource_build!E:E, MATCH(J436, raw_resource_build!B:B, 0)))","v":""},{"$f":"IF(J436=\"\", \"\", INDEX(raw_resource_build!C:C, MATCH(J436, raw_resource_build!B:B, 0)))","v":""},null,{"$f":"raw_resource_build!B436","v":"Inyokern_North_Kramer_Solar"},"In-State",{"$f":"IFERROR(INDEX($E$5:$E$32,MATCH(raw_resource_build!$E436,Lists!$B$5:$B$32,0)),\"Non-CAISO\")","v":"Renewables"},null,{"$f":"raw_annual_energy!C436","v":"CAISO_Solar_for_CAISO"},{"$f":"INDEX(K:K,MATCH(R436,Lists!J:J,0))","v":"Solar"},"Non-wind"]
[null,null,null,null,null,null,null,null,null,{"$f":"IFERROR(INDEX(raw_resource_build!$B$2:$B$1000,MATCH(0,COUNTIF($J$1:J436,raw_resource_build!$B$2:$B$1000), 0),0), \"\")","v":""},{"$f":"IF(J437=\"\", \"\", INDEX(raw_resource_build!E:E, MATCH(J437, raw_resource_build!B:B, 0)))","v":""},{"$f":"IF(J437=\"\", \"\", INDEX(raw_resource_build!C:C, MATCH(J437, raw_resource_build!B:B, 0)))","v":""},null,{"$f":"raw_resource_build!B437","v":"Kern_Greater_Carrizo_Solar"},"In-State",{"$f":"IFERROR(INDEX($E$5:$E$32,MATCH(raw_resource_build!$E437,Lists!$B$5:$B$32,0)),\"Non-CAISO\")","v":"Renewables"},null,{"$f":"raw_annual_energy!C437","v":"CAISO_Solar_for_CAISO"},{"$f":"INDEX(K:K,MATCH(R437,Lists!J:J,0))","v":"Solar"},"Non-wind"]
[null,null,null,null,null,null,null,null,null,{"$f":"IFERROR(INDEX(raw_resource_build!$B$2:$B$1000,MATCH(0,COUNTIF($J$1:J437,raw_resource_build!$B$2:$B$1000), 0),0), \"\")","v":""},{"$f":"IF(J438=\"\", \"\", INDEX(raw_resource_build!E:E, MATCH(J438, raw_resource_build!B:B, 0)))","v":""},{"$f":"IF(J438=\"\", \"\", INDEX(raw_resource_build!C:C, MATCH(J438, raw_resource_build!B:B, 0)))","v":""},null,{"$f":"raw_resource_build!B438","v":"Kern_Greater_Carrizo_Wind"},"In-State",{"$f":"IFERROR(INDEX($E$5:$E$32,MATCH(raw_resource_build!$E438,Lists!$B$5:$B$32,0)),\"Non-CAISO\")","v":"Renewables"},null,{"$f":"raw_annual_energy!C438","v":"CAISO_Solar_for_CAISO"},{"$f":"INDEX(K:K,MATCH(R438,Lists!J:J,0))","v":"Solar"},"Non-wind"]
[null,null,null,null,null,null,null,null,null,{"$f":"IFERROR(INDEX(raw_resource_build!$B$2:$B$1000,MATCH(0,COUNTIF($J$1:J438,raw_resource_build!$B$2:$B$1000), 0),0), \"\")","v":""},{"$f":"IF(J439=\"\", \"\", INDEX(raw_resource_build!E:E, MATCH(J439, raw_resource_build!B:B, 0)))","v":""},{"$f":"IF(J439=\"\", \"\", INDEX(raw_resource_build!C:C, MATCH(J439, raw_resource_build!B:B, 0)))","v":""},null,{"$f":"raw_resource_build!B439","v":"Kramer_Inyokern_Ex_Solar"},"In-State",{"$f":"IFERROR(INDEX($E$5:$E$32,MATCH(raw_resource_build!$E439,Lists!$B$5:$B$32,0)),\"Non-CAISO\")","v":"Renewables"},null,{"$f":"raw_annual_energy!C439","v":"CAISO_Solar_for_CAISO"},{"$f":"INDEX(K:K,MATCH(R439,Lists!J:J,0))","v":"Solar"},"Non-wind"]
[null,null,null,null,null,null,null,null,null,{"$f":"IFERROR(INDEX(raw_resource_build!$B$2:$B$1000,MATCH(0,COUNTIF($J$1:J439,raw_resource_build!$B$2:$B$1000), 0),0), \"\")","v":""},{"$f":"IF(J440=\"\", \"\", INDEX(raw_resource_build!E:E, MATCH(J440, raw_resource_build!B:B, 0)))","v":""},{"$f":"IF(J440=\"\", \"\", INDEX(raw_resource_build!C:C, MATCH(J440, raw_resource_build!B:B, 0)))","v":""},null,{"$f":"raw_resource_build!B440","v":"Kramer_Inyokern_Ex_Wind"},"In-State",{"$f":"IFERROR(INDEX($E$5:$E$32,MATCH(raw_resource_build!$E440,Lists!$B$5:$B$32,0)),\"Non-CAISO\")","v":"Renewables"},null,{"$f":"raw_annual_energy!C440","v":"CAISO_Solar_for_CAISO"},{"$f":"INDEX(K:K,MATCH(R440,Lists!J:J,0))","v":"Solar"},"Non-wind"]
[null,null,null,null,null,null,null,null,null,{"$f":"IFERROR(INDEX(raw_resource_build!$B$2:$B$1000,MATCH(0,COUNTIF($J$1:J440,raw_resource_build!$B$2:$B$1000), 0),0), \"\")","v":""},{"$f":"IF(J441=\"\", \"\", INDEX(raw_resource_build!E:E, MATCH(J441, raw_resource_build!B:B, 0)))","v":""},{"$f":"IF(J441=\"\", \"\", INDEX(raw_resource_build!C:C, MATCH(J441, raw_resource_build!B:B, 0)))","v":""},null,{"$f":"raw_resource_build!B441","v":"North_Victor_Solar"},"In-State",{"$f":"IFERROR(INDEX($E$5:$E$32,MATCH(raw_resource_build!$E441,Lists!$B$5:$B$32,0)),\"Non-CAISO\")","v":"Renewables"},null,{"$f":"raw_annual_energy!C441","v":"CAISO_Solar_for_CAISO"},{"$f":"INDEX(K:K,MATCH(R441,Lists!J:J,0))","v":"Solar"},"Non-wind"]
[null,null,null,null,null,null,null,null,null,{"$f":"IFERROR(INDEX(raw_resource_build!$B$2:$B$1000,MATCH(0,COUNTIF($J$1:J441,raw_resource_build!$B$2:$B$1000), 0),0), \"\")","v":""},{"$f":"IF(J442=\"\", \"\", INDEX(raw_resource_build!E:E, MATCH(J442, raw_resource_build!B:B, 0)))","v":""},{"$f":"IF(J442=\"\", \"\", INDEX(raw_resource_build!C:C, MATCH(J442, raw_resource_build!B:B, 0)))","v":""},null,{"$f":"raw_resource_build!B442","v":"Northern_California_Ex_Solar"},"In-State",{"$f":"IFERROR(INDEX($E$5:$E$32,MATCH(raw_resource_build!$E442,Lists!$B$5:$B$32,0)),\"Non-CAISO\")","v":"Renewables"},null,{"$f":"raw_annual_energy!C442","v":"CAISO_Solar_for_CAISO"},{"$f":"INDEX(K:K,MATCH(R442,Lists!J:J,0))","v":"Solar"},"Non-wind"]
[null,null,null,null,null,null,null,null,null,{"$f":"IFERROR(INDEX(raw_resource_build!$B$2:$B$1000,MATCH(0,COUNTIF($J$1:J442,raw_resource_build!$B$2:$B$1000), 0),0), \"\")","v":""},{"$f":"IF(J443=\"\", \"\", INDEX(raw_resource_build!E:E, MATCH(J443, raw_resource_build!B:B, 0)))","v":""},{"$f":"IF(J443=\"\", \"\", INDEX(raw_resource_build!C:C, MATCH(J443, raw_resource_build!B:B, 0)))","v":""},null,{"$f":"raw_resource_build!B443","v":"Northern_California_Ex_Wind"},"In-State",{"$f":"IFERROR(INDEX($E$5:$E$32,MATCH(raw_resource_build!$E443,Lists!$B$5:$B$32,0)),\"Non-CAISO\")","v":"Renewables"},null,{"$f":"raw_annual_energy!C443","v":"CAISO_Solar_for_Other"},{"$f":"INDEX(K:K,MATCH(R443,Lists!J:J,0))","v":"Solar"},"Non-wind"]
[null,null,null,null,null,null,null,null,null,{"$f":"IFERROR(INDEX(raw_resource_build!$B$2:$B$1000,MATCH(0,COUNTIF($J$1:J443,raw_resource_build!$B$2:$B$1000), 0),0), \"\")","v":""},{"$f":"IF(J444=\"\", \"\", INDEX(raw_resource_build!E:E, MATCH(J444, raw_resource_build!B:B, 0)))","v":""},{"$f":"IF(J444=\"\", \"\", INDEX(raw_resource_build!C:C, MATCH(J444, raw_resource_build!B:B, 0)))","v":""},null,{"$f":"raw_resource_build!B444","v":"NW_Ext_Tx_Wind"},"In-State",{"$f":"IFERROR(INDEX($E$5:$E$32,MATCH(raw_resource_build!$E444,Lists!$B$5:$B$32,0)),\"Non-CAISO\")","v":"Renewables"},null,{"$f":"raw_annual_energy!C444","v":"CAISO_Solar_for_Other"},{"$f":"INDEX(K:K,MATCH(R444,Lists!J:J,0))","v":"Solar"},"Non-wind"]
[null,null,null,null,null,null,null,null,null,{"$f":"IFERROR(INDEX(raw_resource_build!$B$2:$B$1000,MATCH(0,COUNTIF($J$1:J444,raw_resource_build!$B$2:$B$1000), 0),0), \"\")","v":""},{"$f":"IF(J445=\"\", \"\", INDEX(raw_resource_build!E:E, MATCH(J445, raw_resource_build!B:B, 0)))","v":""},{"$f":"IF(J445=\"\", \"\", INDEX(raw_resource_build!C:C, MATCH(J445, raw_resource_build!B:B, 0)))","v":""},null,{"$f":"raw_resource_build!B445","v":"Riverside_Palm_Springs_Solar"},"In-State",{"$f":"IFERROR(INDEX($E$5:$E$32,MATCH(raw_resource_build!$E445,Lists!$B$5:$B$32,0)),\"Non-CAISO\")","v":"Renewables"},null,{"$f":"raw_annual_energy!C445","v":"CAISO_Solar_for_Other"},{"$f":"INDEX(K:K,MATCH(R445,Lists!J:J,0))","v":"Solar"},"Non-wind"]
[null,null,null,null,null,null,null,null,null,{"$f":"IFERROR(INDEX(raw_resource_build!$B$2:$B$1000,MATCH(0,COUNTIF($J$1:J445,raw_resource_build!$B$2:$B$1000), 0),0), \"\")","v":""},{"$f":"IF(J446=\"\", \"\", INDEX(raw_resource_build!E:E, MATCH(J446, raw_resource_build!B:B, 0)))","v":""},{"$f":"IF(J446=\"\", \"\", INDEX(raw_resource_build!C:C, MATCH(J446, raw_resource_build!B:B, 0)))","v":""},null,{"$f":"raw_resource_build!B446","v":"Sacramento_River_Solar"},"In-State",{"$f":"IFERROR(INDEX($E$5:$E$32,MATCH(raw_resource_build!$E446,Lists!$B$5:$B$32,0)),\"Non-CAISO\")","v":"Renewables"},null,{"$f":"raw_annual_energy!C446","v":"CAISO_Solar_for_Other"},{"$f":"INDEX(K:K,MATCH(R446,Lists!J:J,0))","v":"Solar"},"Non-wind"]
[null,null,null,null,null,null,null,null,null,{"$f":"IFERROR(INDEX(raw_resource_build!$B$2:$B$1000,MATCH(0,COUNTIF($J$1:J446,raw_resource_build!$B$2:$B$1000), 0),0), \"\")","v":""},{"$f":"IF(J447=\"\", \"\", INDEX(raw_resource_build!E:E, MATCH(J447, raw_resource_build!B:B, 0)))","v":""},{"$f":"IF(J447=\"\", \"\", INDEX(raw_resource_build!C:C, MATCH(J447, raw_resource_build!B:B, 0)))","v":""},null,{"$f":"raw_resource_build!B447","v":"Sacramento_River_Wind"},"In-State",{"$f":"IFERROR(INDEX($E$5:$E$32,MATCH(raw_resource_build!$E447,Lists!$B$5:$B$32,0)),\"Non-CAISO\")","v":"Renewables"},null,{"$f":"raw_annual_energy!C447","v":"CAISO_Solar_for_Other"},{"$f":"INDEX(K:K,MATCH(R447,Lists!J:J,0))","v":"Solar"},"Non-wind"]
[null,null,null,null,null,null,null,null,null,{"$f":"IFERROR(INDEX(raw_resource_build!$B$2:$B$1000,MATCH(0,COUNTIF($J$1:J447,raw_resource_build!$B$2:$B$1000), 0),0), \"\")","v":""},{"$f":"IF(J448=\"\", \"\", INDEX(raw_resource_build!E:E, MATCH(J448, raw_resource_build!B:B, 0)))","v":""},{"$f":"IF(J448=\"\", \"\", INDEX(raw_resource_build!C:C, MATCH(J448, raw_resource_build!B:B, 0)))","v":""},null,{"$f":"raw_resource_build!B448","v":"SCADSNV_Solar"},"In-State",{"$f":"IFERROR(INDEX($E$5:$E$32,MATCH(raw_resource_build!$E448,Lists!$B$5:$B$32,0)),\"Non-CAISO\")","v":"Renewables"},null,{"$f":"raw_annual_energy!C448","v":"CAISO_Solar_for_Other"},{"$f":"INDEX(K:K,MATCH(R448,Lists!J:J,0))","v":"Solar"},"Non-wind"]
[null,null,null,null,null,null,null,null,null,{"$f":"IFERROR(INDEX(raw_resource_build!$B$2:$B$1000,MATCH(0,COUNTIF($J$1:J448,raw_resource_build!$B$2:$B$1000), 0),0), \"\")","v":""},{"$f":"IF(J449=\"\", \"\", INDEX(raw_resource_build!E:E, MATCH(J449, raw_resource_build!B:B, 0)))","v":""},{"$f":"IF(J449=\"\", \"\", INDEX(raw_resource_build!C:C, MATCH(J449, raw_resource_build!B:B, 0)))","v":""},null,{"$f":"raw_resource_build!B449","v":"SCADSNV_Wind"},"In-State",{"$f":"IFERROR(INDEX($E$5:$E$32,MATCH(raw_resource_build!$E449,Lists!$B$5:$B$32,0)),\"Non-CAISO\")","v":"Renewables"},null,{"$f":"raw_annual_energy!C449","v":"CAISO_Solar_for_Other"},{"$f":"INDEX(K:K,MATCH(R449,Lists!J:J,0))","v":"Solar"},"Non-wind"]
[null,null,null,null,null,null,null,null,null,{"$f":"IFERROR(INDEX(raw_resource_build!$B$2:$B$1000,MATCH(0,COUNTIF($J$1:J449,raw_resource_build!$B$2:$B$1000), 0),0), \"\")","v":""},{"$f":"IF(J450=\"\", \"\", INDEX(raw_resource_build!E:E, MATCH(J450, raw_resource_build!B:B, 0)))","v":""},{"$f":"IF(J450=\"\", \"\", INDEX(raw_resource_build!C:C, MATCH(J450, raw_resource_build!B:B, 0)))","v":""},null,{"$f":"raw_resource_build!B450","v":"Solano_Solar"},"In-State",{"$f":"IFERROR(INDEX($E$5:$E$32,MATCH(raw_resource_build!$E450,Lists!$B$5:$B$32,0)),\"Non-CAISO\")","v":"Renewables"},null,{"$f":"raw_annual_energy!C450","v":"CAISO_Solar_for_Other"},{"$f":"INDEX(K:K,MATCH(R450,Lists!J:J,0))","v":"Solar"},"Non-wind"]
[null,null,null,null,null,null,null,null,null,{"$f":"IFERROR(INDEX(raw_resource_build!$B$2:$B$1000,MATCH(0,COUNTIF($J$1:J450,raw_resource_build!$B$2:$B$1000), 0),0), \"\")","v":""},{"$f":"IF(J451=\"\", \"\", INDEX(raw_resource_build!E:E, MATCH(J451, raw_resource_build!B:B, 0)))","v":""},{"$f":"IF(J451=\"\", \"\", INDEX(raw_resource_build!C:C, MATCH(J451, raw_resource_build!B:B, 0)))","v":""},null,{"$f":"raw_resource_build!B451","v":"Solano_subzone_Solar"},{"$f":"IFERROR(INDEX($C$35:$C$99,MATCH($N451,$B$35:$B$99,0)),\"Non-wind\")","v":"In-State"},{"$f":"IFERROR(INDEX($E$5:$E$32,MATCH(raw_resource_build!$E451,Lists!$B$5:$B$32,0)),\"Non-CAISO\")","v":"Renewables"},null,{"$f":"raw_annual_energy!C451","v":"CAISO_Wind_for_CAISO"},{"$f":"INDEX(K:K,MATCH(R451,Lists!J:J,0))","v":"Wind"},{"$f":"IFERROR(INDEX($C$35:$C$99,MATCH($R451,$B$35:$B$99,0)),\"Non-wind\")","v":"Non-wind"}]
[null,null,null,null,null,null,null,null,null,{"$f":"IFERROR(INDEX(raw_resource_build!$B$2:$B$1000,MATCH(0,COUNTIF($J$1:J451,raw_resource_build!$B$2:$B$1000), 0),0), \"\")","v":""},{"$f":"IF(J452=\"\", \"\", INDEX(raw_resource_build!E:E, MATCH(J452, raw_resource_build!B:B, 0)))","v":""},{"$f":"IF(J452=\"\", \"\", INDEX(raw_resource_build!C:C, MATCH(J452, raw_resource_build!B:B, 0)))","v":""},null,{"$f":"raw_resource_build!B452","v":"Solano_subzone_Wind"},"In-State",{"$f":"IFERROR(INDEX($E$5:$E$32,MATCH(raw_resource_build!$E452,Lists!$B$5:$B$32,0)),\"Non-CAISO\")","v":"Renewables"},null,{"$f":"raw_annual_energy!C452","v":"CAISO_Wind_for_CAISO"},{"$f":"INDEX(K:K,MATCH(R452,Lists!J:J,0))","v":"Wind"},"Non-wind"]
[null,null,null,null,null,null,null,null,null,{"$f":"IFERROR(INDEX(raw_resource_build!$B$2:$B$1000,MATCH(0,COUNTIF($J$1:J452,raw_resource_build!$B$2:$B$1000), 0),0), \"\")","v":""},{"$f":"IF(J453=\"\", \"\", INDEX(raw_resource_build!E:E, MATCH(J453, raw_resource_build!B:B, 0)))","v":""},{"$f":"IF(J453=\"\", \"\", INDEX(raw_resource_build!C:C, MATCH(J453, raw_resource_build!B:B, 0)))","v":""},null,{"$f":"raw_resource_build!B453","v":"Solano_Wind"},"In-State",{"$f":"IFERROR(INDEX($E$5:$E$32,MATCH(raw_resource_build!$E453,Lists!$B$5:$B$32,0)),\"Non-CAISO\")","v":"Renewables"},null,{"$f":"raw_annual_energy!C453","v":"CAISO_Wind_for_CAISO"},{"$f":"INDEX(K:K,MATCH(R453,Lists!J:J,0))","v":"Wind"},"Non-wind"]
[null,null,null,null,null,null,null,null,null,{"$f":"IFERROR(INDEX(raw_resource_build!$B$2:$B$1000,MATCH(0,COUNTIF($J$1:J453,raw_resource_build!$B$2:$B$1000), 0),0), \"\")","v":""},{"$f":"IF(J454=\"\", \"\", INDEX(raw_resource_build!E:E, MATCH(J454, raw_resource_build!B:B, 0)))","v":""},{"$f":"IF(J454=\"\", \"\", INDEX(raw_resource_build!C:C, MATCH(J454, raw_resource_build!B:B, 0)))","v":""},null,{"$f":"raw_resource_build!B454","v":"Southern_California_Desert_Ex_Solar"},"In-State",{"$f":"IFERROR(INDEX($E$5:$E$32,MATCH(raw_resource_build!$E454,Lists!$B$5:$B$32,0)),\"Non-CAISO\")","v":"Renewables"},null,{"$f":"raw_annual_energy!C454","v":"CAISO_Wind_for_CAISO"},{"$f":"INDEX(K:K,MATCH(R454,Lists!J:J,0))","v":"Wind"},"Non-wind"]
[null,null,null,null,null,null,null,null,null,{"$f":"IFERROR(INDEX(raw_resource_build!$B$2:$B$1000,MATCH(0,COUNTIF($J$1:J454,raw_resource_build!$B$2:$B$1000), 0),0), \"\")","v":""},{"$f":"IF(J455=\"\", \"\", INDEX(raw_resource_build!E:E, MATCH(J455, raw_resource_build!B:B, 0)))","v":""},{"$f":"IF(J455=\"\", \"\", INDEX(raw_resource_build!C:C, MATCH(J455, raw_resource_build!B:B, 0)))","v":""},null,{"$f":"raw_resource_build!B455","v":"Southern_California_Desert_Ex_Wind"},"In-State",{"$f":"IFERROR(INDEX($E$5:$E$32,MATCH(raw_resource_build!$E455,Lists!$B$5:$B$32,0)),\"Non-CAISO\")","v":"Renewables"},null,{"$f":"raw_annual_energy!C455","v":"CAISO_Wind_for_CAISO"},{"$f":"INDEX(K:K,MATCH(R455,Lists!J:J,0))","v":"Wind"},"Non-wind"]
[null,null,null,null,null,null,null,null,null,{"$f":"IFERROR(INDEX(raw_resource_build!$B$2:$B$1000,MATCH(0,COUNTIF($J$1:J455,raw_resource_build!$B$2:$B$1000), 0),0), \"\")","v":""},{"$f":"IF(J456=\"\", \"\", INDEX(raw_resource_build!E:E, MATCH(J456, raw_resource_build!B:B, 0)))","v":""},{"$f":"IF(J456=\"\", \"\", INDEX(raw_resource_build!C:C, MATCH(J456, raw_resource_build!B:B, 0)))","v":""},null,{"$f":"raw_resource_build!B456","v":"Southern_Nevada_Solar"},"In-State",{"$f":"IFERROR(INDEX($E$5:$E$32,MATCH(raw_resource_build!$E456,Lists!$B$5:$B$32,0)),\"Non-CAISO\")","v":"Renewables"},null,{"$f":"raw_annual_energy!C456","v":"CAISO_Wind_for_CAISO"},{"$f":"INDEX(K:K,MATCH(R456,Lists!J:J,0))","v":"Wind"},"Non-wind"]
[null,null,null,null,null,null,null,null,null,{"$f":"IFERROR(INDEX(raw_resource_build!$B$2:$B$1000,MATCH(0,COUNTIF($J$1:J456,raw_resource_build!$B$2:$B$1000), 0),0), \"\")","v":""},{"$f":"IF(J457=\"\", \"\", INDEX(raw_resource_build!E:E, MATCH(J457, raw_resource_build!B:B, 0)))","v":""},{"$f":"IF(J457=\"\", \"\", INDEX(raw_resource_build!C:C, MATCH(J457, raw_resource_build!B:B, 0)))","v":""},null,{"$f":"raw_resource_build!B457","v":"Southern_Nevada_Wind"},"In-State",{"$f":"IFERROR(INDEX($E$5:$E$32,MATCH(raw_resource_build!$E457,Lists!$B$5:$B$32,0)),\"Non-CAISO\")","v":"Renewables"},null,{"$f":"raw_annual_energy!C457","v":"CAISO_Wind_for_CAISO"},{"$f":"INDEX(K:K,MATCH(R457,Lists!J:J,0))","v":"Wind"},"Non-wind"]
[null,null,null,null,null,null,null,null,null,{"$f":"IFERROR(INDEX(raw_resource_build!$B$2:$B$1000,MATCH(0,COUNTIF($J$1:J457,raw_resource_build!$B$2:$B$1000), 0),0), \"\")","v":""},{"$f":"IF(J458=\"\", \"\", INDEX(raw_resource_build!E:E, MATCH(J458, raw_resource_build!B:B, 0)))","v":""},{"$f":"IF(J458=\"\", \"\", INDEX(raw_resource_build!C:C, MATCH(J458, raw_resource_build!B:B, 0)))","v":""},null,{"$f":"raw_resource_build!B458","v":"SW_Ext_Tx_Wind"},"In-State",{"$f":"IFERROR(INDEX($E$5:$E$32,MATCH(raw_resource_build!$E458,Lists!$B$5:$B$32,0)),\"Non-CAISO\")","v":"Renewables"},null,{"$f":"raw_annual_energy!C458","v":"CAISO_Wind_for_CAISO"},{"$f":"INDEX(K:K,MATCH(R458,Lists!J:J,0))","v":"Wind"},"Non-wind"]
[null,null,null,null,null,null,null,null,null,{"$f":"IFERROR(INDEX(raw_resource_build!$B$2:$B$1000,MATCH(0,COUNTIF($J$1:J458,raw_resource_build!$B$2:$B$1000), 0),0), \"\")","v":""},{"$f":"IF(J459=\"\", \"\", INDEX(raw_resource_build!E:E, MATCH(J459, raw_resource_build!B:B, 0)))","v":""},{"$f":"IF(J459=\"\", \"\", INDEX(raw_resource_build!C:C, MATCH(J459, raw_resource_build!B:B, 0)))","v":""},null,{"$f":"raw_resource_build!B459","v":"Tehachapi_Ex_Solar"},"In-State",{"$f":"IFERROR(INDEX($E$5:$E$32,MATCH(raw_resource_build!$E459,Lists!$B$5:$B$32,0)),\"Non-CAISO\")","v":"Renewables"},null,{"$f":"raw_annual_energy!C459","v":"CAISO_Wind_for_Other"},{"$f":"INDEX(K:K,MATCH(R459,Lists!J:J,0))","v":"Wind"},"Non-wind"]
[null,null,null,null,null,null,null,null,null,{"$f":"IFERROR(INDEX(raw_resource_build!$B$2:$B$1000,MATCH(0,COUNTIF($J$1:J459,raw_resource_build!$B$2:$B$1000), 0),0), \"\")","v":""},{"$f":"IF(J460=\"\", \"\", INDEX(raw_resource_build!E:E, MATCH(J460, raw_resource_build!B:B, 0)))","v":""},{"$f":"IF(J460=\"\", \"\", INDEX(raw_resource_build!C:C, MATCH(J460, raw_resource_build!B:B, 0)))","v":""},null,{"$f":"raw_resource_build!B460","v":"Tehachapi_Solar"},"In-State",{"$f":"IFERROR(INDEX($E$5:$E$32,MATCH(raw_resource_build!$E460,Lists!$B$5:$B$32,0)),\"Non-CAISO\")","v":"Renewables"},null,{"$f":"raw_annual_energy!C460","v":"CAISO_Wind_for_Other"},{"$f":"INDEX(K:K,MATCH(R460,Lists!J:J,0))","v":"Wind"},"Non-wind"]
[null,null,null,null,null,null,null,null,null,{"$f":"IFERROR(INDEX(raw_resource_build!$B$2:$B$1000,MATCH(0,COUNTIF($J$1:J460,raw_resource_build!$B$2:$B$1000), 0),0), \"\")","v":""},{"$f":"IF(J461=\"\", \"\", INDEX(raw_resource_build!E:E, MATCH(J461, raw_resource_build!B:B, 0)))","v":""},{"$f":"IF(J461=\"\", \"\", INDEX(raw_resource_build!C:C, MATCH(J461, raw_resource_build!B:B, 0)))","v":""},null,{"$f":"raw_resource_build!B461","v":"Tehachapi_Wind"},"In-State",{"$f":"IFERROR(INDEX($E$5:$E$32,MATCH(raw_resource_build!$E461,Lists!$B$5:$B$32,0)),\"Non-CAISO\")","v":"Renewables"},null,{"$f":"raw_annual_energy!C461","v":"CAISO_Wind_for_Other"},{"$f":"INDEX(K:K,MATCH(R461,Lists!J:J,0))","v":"Wind"},"Non-wind"]
[null,null,null,null,null,null,null,null,null,{"$f":"IFERROR(INDEX(raw_resource_build!$B$2:$B$1000,MATCH(0,COUNTIF($J$1:J461,raw_resource_build!$B$2:$B$1000), 0),0), \"\")","v":""},{"$f":"IF(J462=\"\", \"\", INDEX(raw_resource_build!E:E, MATCH(J462, raw_resource_build!B:B, 0)))","v":""},{"$f":"IF(J462=\"\", \"\", INDEX(raw_resource_build!C:C, MATCH(J462, raw_resource_build!B:B, 0)))","v":""},null,{"$f":"raw_resource_build!B462","v":"Westlands_Ex_Solar"},"In-State",{"$f":"IFERROR(INDEX($E$5:$E$32,MATCH(raw_resource_build!$E462,Lists!$B$5:$B$32,0)),\"Non-CAISO\")","v":"Renewables"},null,{"$f":"raw_annual_energy!C462","v":"CAISO_Wind_for_Other"},{"$f":"INDEX(K:K,MATCH(R462,Lists!J:J,0))","v":"Wind"},"Non-wind"]
[null,null,null,null,null,null,null,null,null,{"$f":"IFERROR(INDEX(raw_resource_build!$B$2:$B$1000,MATCH(0,COUNTIF($J$1:J462,raw_resource_build!$B$2:$B$1000), 0),0), \"\")","v":""},{"$f":"IF(J463=\"\", \"\", INDEX(raw_resource_build!E:E, MATCH(J463, raw_resource_build!B:B, 0)))","v":""},{"$f":"IF(J463=\"\", \"\", INDEX(raw_resource_build!C:C, MATCH(J463, raw_resource_build!B:B, 0)))","v":""},null,{"$f":"raw_resource_build!B463","v":"Westlands_Ex_Wind"},"In-State",{"$f":"IFERROR(INDEX($E$5:$E$32,MATCH(raw_resource_build!$E463,Lists!$B$5:$B$32,0)),\"Non-CAISO\")","v":"Renewables"},null,{"$f":"raw_annual_energy!C463","v":"CAISO_Wind_for_Other"},{"$f":"INDEX(K:K,MATCH(R463,Lists!J:J,0))","v":"Wind"},"Non-wind"]
[null,null,null,null,null,null,null,null,null,{"$f":"IFERROR(INDEX(raw_resource_build!$B$2:$B$1000,MATCH(0,COUNTIF($J$1:J463,raw_resource_build!$B$2:$B$1000), 0),0), \"\")","v":""},{"$f":"IF(J464=\"\", \"\", INDEX(raw_resource_build!E:E, MATCH(J464, raw_resource_build!B:B, 0)))","v":""},{"$f":"IF(J464=\"\", \"\", INDEX(raw_resource_build!C:C, MATCH(J464, raw_resource_build!B:B, 0)))","v":""},null,{"$f":"raw_resource_build!B464","v":"Westlands_Solar"},"In-State",{"$f":"IFERROR(INDEX($E$5:$E$32,MATCH(raw_resource_build!$E464,Lists!$B$5:$B$32,0)),\"Non-CAISO\")","v":"Renewables"},null,{"$f":"raw_annual_energy!C464","v":"CAISO_Wind_for_Other"},{"$f":"INDEX(K:K,MATCH(R464,Lists!J:J,0))","v":"Wind"},"Non-wind"]
[null,null,null,null,null,null,null,null,null,{"$f":"IFERROR(INDEX(raw_resource_build!$B$2:$B$1000,MATCH(0,COUNTIF($J$1:J464,raw_resource_build!$B$2:$B$1000), 0),0), \"\")","v":""},{"$f":"IF(J465=\"\", \"\", INDEX(raw_resource_build!E:E, MATCH(J465, raw_resource_build!B:B, 0)))","v":""},{"$f":"IF(J465=\"\", \"\", INDEX(raw_resource_build!C:C, MATCH(J465, raw_resource_build!B:B, 0)))","v":""},null,{"$f":"raw_resource_build!B465","v":"Arizona_Solar"},"In-State",{"$f":"IFERROR(INDEX($E$5:$E$32,MATCH(raw_resource_build!$E465,Lists!$B$5:$B$32,0)),\"Non-CAISO\")","v":"Renewables"},null,{"$f":"raw_annual_energy!C465","v":"CAISO_Wind_for_Other"},{"$f":"INDEX(K:K,MATCH(R465,Lists!J:J,0))","v":"Wind"},"Non-wind"]
[null,null,null,null,null,null,null,null,null,{"$f":"IFERROR(INDEX(raw_resource_build!$B$2:$B$1000,MATCH(0,COUNTIF($J$1:J465,raw_resource_build!$B$2:$B$1000), 0),0), \"\")","v":""},{"$f":"IF(J466=\"\", \"\", INDEX(raw_resource_build!E:E, MATCH(J466, raw_resource_build!B:B, 0)))","v":""},{"$f":"IF(J466=\"\", \"\", INDEX(raw_resource_build!C:C, MATCH(J466, raw_resource_build!B:B, 0)))","v":""},null,{"$f":"raw_resource_build!B466","v":"Arizona_Wind"},"Out-Of-State",{"$f":"IFERROR(INDEX($E$5:$E$32,MATCH(raw_resource_build!$E466,Lists!$B$5:$B$32,0)),\"Non-CAISO\")","v":"Renewables"},null,{"$f":"raw_annual_energy!C466","v":"CAISO_Wind_for_Other"},{"$f":"INDEX(K:K,MATCH(R466,Lists!J:J,0))","v":"Wind"},"Non-wind"]
[null,null,null,null,null,null,null,null,null,{"$f":"IFERROR(INDEX(raw_resource_build!$B$2:$B$1000,MATCH(0,COUNTIF($J$1:J466,raw_resource_build!$B$2:$B$1000), 0),0), \"\")","v":""},{"$f":"IF(J467=\"\", \"\", INDEX(raw_resource_build!E:E, MATCH(J467, raw_resource_build!B:B, 0)))","v":""},{"$f":"IF(J467=\"\", \"\", INDEX(raw_resource_build!C:C, MATCH(J467, raw_resource_build!B:B, 0)))","v":""},null,{"$f":"raw_resource_build!B467","v":"Baja_California_Solar"},"In-State",{"$f":"IFERROR(INDEX($E$5:$E$32,MATCH(raw_resource_build!$E467,Lists!$B$5:$B$32,0)),\"Non-CAISO\")","v":"Renewables"},null,{"$f":"raw_annual_energy!C467","v":"Cape_Mendocino_Offshore_Wind"},{"$f":"INDEX(K:K,MATCH(R467,Lists!J:J,0))","v":"Offshore_Wind"},"In-State"]
[null,null,null,null,null,null,null,null,null,{"$f":"IFERROR(INDEX(raw_resource_build!$B$2:$B$1000,MATCH(0,COUNTIF($J$1:J467,raw_resource_build!$B$2:$B$1000), 0),0), \"\")","v":""},{"$f":"IF(J468=\"\", \"\", INDEX(raw_resource_build!E:E, MATCH(J468, raw_resource_build!B:B, 0)))","v":""},{"$f":"IF(J468=\"\", \"\", INDEX(raw_resource_build!C:C, MATCH(J468, raw_resource_build!B:B, 0)))","v":""},null,{"$f":"raw_resource_build!B468","v":"Baja_California_Wind"},"In-State",{"$f":"IFERROR(INDEX($E$5:$E$32,MATCH(raw_resource_build!$E468,Lists!$B$5:$B$32,0)),\"Non-CAISO\")","v":"Renewables"},null,{"$f":"raw_annual_energy!C468","v":"Cape_Mendocino_Offshore_Wind"},{"$f":"INDEX(K:K,MATCH(R468,Lists!J:J,0))","v":"Offshore_Wind"},"In-State"]
[null,null,null,null,null,null,null,null,null,{"$f":"IFERROR(INDEX(raw_resource_build!$B$2:$B$1000,MATCH(0,COUNTIF($J$1:J468,raw_resource_build!$B$2:$B$1000), 0),0), \"\")","v":""},{"$f":"IF(J469=\"\", \"\", INDEX(raw_resource_build!E:E, MATCH(J469, raw_resource_build!B:B, 0)))","v":""},{"$f":"IF(J469=\"\", \"\", INDEX(raw_resource_build!C:C, MATCH(J469, raw_resource_build!B:B, 0)))","v":""},null,{"$f":"raw_resource_build!B469","v":"Idaho_Wind"},"Out-Of-State",{"$f":"IFERROR(INDEX($E$5:$E$32,MATCH(raw_resource_build!$E469,Lists!$B$5:$B$32,0)),\"Non-CAISO\")","v":"Renewables"},null,{"$f":"raw_annual_energy!C469","v":"Cape_Mendocino_Offshore_Wind"},{"$f":"INDEX(K:K,MATCH(R469,Lists!J:J,0))","v":"Offshore_Wind"},"In-State"]
[null,null,null,null,null,null,null,null,null,{"$f":"IFERROR(INDEX(raw_resource_build!$B$2:$B$1000,MATCH(0,COUNTIF($J$1:J469,raw_resource_build!$B$2:$B$1000), 0),0), \"\")","v":""},{"$f":"IF(J470=\"\", \"\", INDEX(raw_resource_build!E:E, MATCH(J470, raw_resource_build!B:B, 0)))","v":""},{"$f":"IF(J470=\"\", \"\", INDEX(raw_resource_build!C:C, MATCH(J470, raw_resource_build!B:B, 0)))","v":""},null,{"$f":"raw_resource_build!B470","v":"New_Mexico_Solar"},"Out-Of-State",{"$f":"IFERROR(INDEX($E$5:$E$32,MATCH(raw_resource_build!$E470,Lists!$B$5:$B$32,0)),\"Non-CAISO\")","v":"Renewables"},null,{"$f":"raw_annual_energy!C470","v":"Cape_Mendocino_Offshore_Wind"},{"$f":"INDEX(K:K,MATCH(R470,Lists!J:J,0))","v":"Offshore_Wind"},"In-State"]
[null,null,null,null,null,null,null,null,null,{"$f":"IFERROR(INDEX(raw_resource_build!$B$2:$B$1000,MATCH(0,COUNTIF($J$1:J470,raw_resource_build!$B$2:$B$1000), 0),0), \"\")","v":""},{"$f":"IF(J471=\"\", \"\", INDEX(raw_resource_build!E:E, MATCH(J471, raw_resource_build!B:B, 0)))","v":""},{"$f":"IF(J471=\"\", \"\", INDEX(raw_resource_build!C:C, MATCH(J471, raw_resource_build!B:B, 0)))","v":""},null,{"$f":"raw_resource_build!B471","v":"New_Mexico_Wind"},"Out-Of-State",{"$f":"IFERROR(INDEX($E$5:$E$32,MATCH(raw_resource_build!$E471,Lists!$B$5:$B$32,0)),\"Non-CAISO\")","v":"Renewables"},null,{"$f":"raw_annual_energy!C471","v":"Cape_Mendocino_Offshore_Wind"},{"$f":"INDEX(K:K,MATCH(R471,Lists!J:J,0))","v":"Offshore_Wind"},"In-State"]
[null,null,null,null,null,null,null,null,null,{"$f":"IFERROR(INDEX(raw_resource_build!$B$2:$B$1000,MATCH(0,COUNTIF($J$1:J471,raw_resource_build!$B$2:$B$1000), 0),0), \"\")","v":""},{"$f":"IF(J472=\"\", \"\", INDEX(raw_resource_build!E:E, MATCH(J472, raw_resource_build!B:B, 0)))","v":""},{"$f":"IF(J472=\"\", \"\", INDEX(raw_resource_build!C:C, MATCH(J472, raw_resource_build!B:B, 0)))","v":""},null,{"$f":"raw_resource_build!B472","v":"Utah_Solar"},"Out-Of-State",{"$f":"IFERROR(INDEX($E$5:$E$32,MATCH(raw_resource_build!$E472,Lists!$B$5:$B$32,0)),\"Non-CAISO\")","v":"Renewables"},null,{"$f":"raw_annual_energy!C472","v":"Cape_Mendocino_Offshore_Wind"},{"$f":"INDEX(K:K,MATCH(R472,Lists!J:J,0))","v":"Offshore_Wind"},"In-State"]
[null,null,null,null,null,null,null,null,null,{"$f":"IFERROR(INDEX(raw_resource_build!$B$2:$B$1000,MATCH(0,COUNTIF($J$1:J472,raw_resource_build!$B$2:$B$1000), 0),0), \"\")","v":""},{"$f":"IF(J473=\"\", \"\", INDEX(raw_resource_build!E:E, MATCH(J473, raw_resource_build!B:B, 0)))","v":""},{"$f":"IF(J473=\"\", \"\", INDEX(raw_resource_build!C:C, MATCH(J473, raw_resource_build!B:B, 0)))","v":""},null,{"$f":"raw_resource_build!B473","v":"Utah_Wind"},"Out-Of-State",{"$f":"IFERROR(INDEX($E$5:$E$32,MATCH(raw_resource_build!$E473,Lists!$B$5:$B$32,0)),\"Non-CAISO\")","v":"Renewables"},null,{"$f":"raw_annual_energy!C473","v":"Cape_Mendocino_Offshore_Wind"},{"$f":"INDEX(K:K,MATCH(R473,Lists!J:J,0))","v":"Offshore_Wind"},"In-State"]
[null,null,null,null,null,null,null,null,null,{"$f":"IFERROR(INDEX(raw_resource_build!$B$2:$B$1000,MATCH(0,COUNTIF($J$1:J473,raw_resource_build!$B$2:$B$1000), 0),0), \"\")","v":""},{"$f":"IF(J474=\"\", \"\", INDEX(raw_resource_build!E:E, MATCH(J474, raw_resource_build!B:B, 0)))","v":""},{"$f":"IF(J474=\"\", \"\", INDEX(raw_resource_build!C:C, MATCH(J474, raw_resource_build!B:B, 0)))","v":""},null,{"$f":"raw_resource_build!B474","v":"Wyoming_Wind"},"Out-Of-State",{"$f":"IFERROR(INDEX($E$5:$E$32,MATCH(raw_resource_build!$E474,Lists!$B$5:$B$32,0)),\"Non-CAISO\")","v":"Renewables"},null,{"$f":"raw_annual_energy!C474","v":"Cape_Mendocino_Offshore_Wind"},{"$f":"INDEX(K:K,MATCH(R474,Lists!J:J,0))","v":"Offshore_Wind"},"In-State"]
[null,null,null,null,null,null,null,null,null,{"$f":"IFERROR(INDEX(raw_resource_build!$B$2:$B$1000,MATCH(0,COUNTIF($J$1:J474,raw_resource_build!$B$2:$B$1000), 0),0), \"\")","v":""},{"$f":"IF(J475=\"\", \"\", INDEX(raw_resource_build!E:E, MATCH(J475, raw_resource_build!B:B, 0)))","v":""},{"$f":"IF(J475=\"\", \"\", INDEX(raw_resource_build!C:C, MATCH(J475, raw_resource_build!B:B, 0)))","v":""},null,{"$f":"raw_resource_build!B475","v":"Pacific_Northwest_Wind"},"Out-Of-State",{"$f":"IFERROR(INDEX($E$5:$E$32,MATCH(raw_resource_build!$E475,Lists!$B$5:$B$32,0)),\"Non-CAISO\")","v":"Renewables"},null,{"$f":"raw_annual_energy!C475","v":"Carrizo_Solar"},{"$f":"INDEX(K:K,MATCH(R475,Lists!J:J,0))","v":"Solar"},"In-State"]
[null,null,null,null,null,null,null,null,null,{"$f":"IFERROR(INDEX(raw_resource_build!$B$2:$B$1000,MATCH(0,COUNTIF($J$1:J475,raw_resource_build!$B$2:$B$1000), 0),0), \"\")","v":""},{"$f":"IF(J476=\"\", \"\", INDEX(raw_resource_build!E:E, MATCH(J476, raw_resource_build!B:B, 0)))","v":""},{"$f":"IF(J476=\"\", \"\", INDEX(raw_resource_build!C:C, MATCH(J476, raw_resource_build!B:B, 0)))","v":""},null,{"$f":"raw_resource_build!B476","v":"Diablo_Canyon_Offshore_Wind"},"In-State",{"$f":"IFERROR(INDEX($E$5:$E$32,MATCH(raw_resource_build!$E476,Lists!$B$5:$B$32,0)),\"Non-CAISO\")","v":"Renewables"},null,{"$f":"raw_annual_energy!C476","v":"Carrizo_Solar"},{"$f":"INDEX(K:K,MATCH(R476,Lists!J:J,0))","v":"Solar"},"In-State"]
[null,null,null,null,null,null,null,null,null,{"$f":"IFERROR(INDEX(raw_resource_build!$B$2:$B$1000,MATCH(0,COUNTIF($J$1:J476,raw_resource_build!$B$2:$B$1000), 0),0), \"\")","v":""},{"$f":"IF(J477=\"\", \"\", INDEX(raw_resource_build!E:E, MATCH(J477, raw_resource_build!B:B, 0)))","v":""},{"$f":"IF(J477=\"\", \"\", INDEX(raw_resource_build!C:C, MATCH(J477, raw_resource_build!B:B, 0)))","v":""},null,{"$f":"raw_resource_build!B477","v":"Humboldt_Bay_Offshore_Wind"},"In-State",{"$f":"IFERROR(INDEX($E$5:$E$32,MATCH(raw_resource_build!$E477,Lists!$B$5:$B$32,0)),\"Non-CAISO\")","v":"Renewables"},null,{"$f":"raw_annual_energy!C477","v":"Carrizo_Solar"},{"$f":"INDEX(K:K,MATCH(R477,Lists!J:J,0))","v":"Solar"},"In-State"]
[null,null,null,null,null,null,null,null,null,{"$f":"IFERROR(INDEX(raw_resource_build!$B$2:$B$1000,MATCH(0,COUNTIF($J$1:J477,raw_resource_build!$B$2:$B$1000), 0),0), \"\")","v":""},{"$f":"IF(J478=\"\", \"\", INDEX(raw_resource_build!E:E, MATCH(J478, raw_resource_build!B:B, 0)))","v":""},{"$f":"IF(J478=\"\", \"\", INDEX(raw_resource_build!C:C, MATCH(J478, raw_resource_build!B:B, 0)))","v":""},null,{"$f":"raw_resource_build!B478","v":"Morro_Bay_Offshore_Wind"},"In-State",{"$f":"IFERROR(INDEX($E$5:$E$32,MATCH(raw_resource_build!$E478,Lists!$B$5:$B$32,0)),\"Non-CAISO\")","v":"Renewables"},null,{"$f":"raw_annual_energy!C478","v":"Carrizo_Solar"},{"$f":"INDEX(K:K,MATCH(R478,Lists!J:J,0))","v":"Solar"},"In-State"]
[null,null,null,null,null,null,null,null,null,{"$f":"IFERROR(INDEX(raw_resource_build!$B$2:$B$1000,MATCH(0,COUNTIF($J$1:J478,raw_resource_build!$B$2:$B$1000), 0),0), \"\")","v":""},{"$f":"IF(J479=\"\", \"\", INDEX(raw_resource_build!E:E, MATCH(J479, raw_resource_build!B:B, 0)))","v":""},{"$f":"IF(J479=\"\", \"\", INDEX(raw_resource_build!C:C, MATCH(J479, raw_resource_build!B:B, 0)))","v":""},null,{"$f":"raw_resource_build!B479","v":"Diablo_Canyon_Offshore_Wind_Ext_Tx"},"In-State",{"$f":"IFERROR(INDEX($E$5:$E$32,MATCH(raw_resource_build!$E479,Lists!$B$5:$B$32,0)),\"Non-CAISO\")","v":"Renewables"},null,{"$f":"raw_annual_energy!C479","v":"Carrizo_Solar"},{"$f":"INDEX(K:K,MATCH(R479,Lists!J:J,0))","v":"Solar"},"In-State"]
[null,null,null,null,null,null,null,null,null,{"$f":"IFERROR(INDEX(raw_resource_build!$B$2:$B$1000,MATCH(0,COUNTIF($J$1:J479,raw_resource_build!$B$2:$B$1000), 0),0), \"\")","v":""},{"$f":"IF(J480=\"\", \"\", INDEX(raw_resource_build!E:E, MATCH(J480, raw_resource_build!B:B, 0)))","v":""},{"$f":"IF(J480=\"\", \"\", INDEX(raw_resource_build!C:C, MATCH(J480, raw_resource_build!B:B, 0)))","v":""},null,{"$f":"raw_resource_build!B480","v":"Cape_Mendocino_Offshore_Wind"},"In-State",{"$f":"IFERROR(INDEX($E$5:$E$32,MATCH(raw_resource_build!$E480,Lists!$B$5:$B$32,0)),\"Non-CAISO\")","v":"Renewables"},null,{"$f":"raw_annual_energy!C480","v":"Carrizo_Solar"},{"$f":"INDEX(K:K,MATCH(R480,Lists!J:J,0))","v":"Solar"},"In-State"]
[null,null,null,null,null,null,null,null,null,{"$f":"IFERROR(INDEX(raw_resource_build!$B$2:$B$1000,MATCH(0,COUNTIF($J$1:J480,raw_resource_build!$B$2:$B$1000), 0),0), \"\")","v":""},{"$f":"IF(J481=\"\", \"\", INDEX(raw_resource_build!E:E, MATCH(J481, raw_resource_build!B:B, 0)))","v":""},{"$f":"IF(J481=\"\", \"\", INDEX(raw_resource_build!C:C, MATCH(J481, raw_resource_build!B:B, 0)))","v":""},null,{"$f":"raw_resource_build!B481","v":"Del_Norte_Offshore_Wind"},"In-State",{"$f":"IFERROR(INDEX($E$5:$E$32,MATCH(raw_resource_build!$E481,Lists!$B$5:$B$32,0)),\"Non-CAISO\")","v":"Renewables"},null,{"$f":"raw_annual_energy!C481","v":"Carrizo_Solar"},{"$f":"INDEX(K:K,MATCH(R481,Lists!J:J,0))","v":"Solar"},"In-State"]
[null,null,null,null,null,null,null,null,null,{"$f":"IFERROR(INDEX(raw_resource_build!$B$2:$B$1000,MATCH(0,COUNTIF($J$1:J481,raw_resource_build!$B$2:$B$1000), 0),0), \"\")","v":""},{"$f":"IF(J482=\"\", \"\", INDEX(raw_resource_build!E:E, MATCH(J482, raw_resource_build!B:B, 0)))","v":""},{"$f":"IF(J482=\"\", \"\", INDEX(raw_resource_build!C:C, MATCH(J482, raw_resource_build!B:B, 0)))","v":""},null,{"$f":"raw_resource_build!B482","v":"CAISO_Existing_Pumped_Storage"},"Non-wind",{"$f":"IFERROR(INDEX($E$5:$E$32,MATCH(raw_resource_build!$E482,Lists!$B$5:$B$32,0)),\"Non-CAISO\")","v":"Pumped Storage"},null,{"$f":"raw_annual_energy!C482","v":"Carrizo_Solar"},{"$f":"INDEX(K:K,MATCH(R482,Lists!J:J,0))","v":"Solar"},"In-State"]
[null,null,null,null,null,null,null,null,null,{"$f":"IFERROR(INDEX(raw_resource_build!$B$2:$B$1000,MATCH(0,COUNTIF($J$1:J482,raw_resource_build!$B$2:$B$1000), 0),0), \"\")","v":""},{"$f":"IF(J483=\"\", \"\", INDEX(raw_resource_build!E:E, MATCH(J483, raw_resource_build!B:B, 0)))","v":""},{"$f":"IF(J483=\"\", \"\", INDEX(raw_resource_build!C:C, MATCH(J483, raw_resource_build!B:B, 0)))","v":""},null,{"$f":"raw_resource_build!B483","v":"CAISO_New_Pumped_Storage"},"Non-wind",{"$f":"IFERROR(INDEX($E$5:$E$32,MATCH(raw_resource_build!$E483,Lists!$B$5:$B$32,0)),\"Non-CAISO\")","v":"Pumped Storage"},null,{"$f":"raw_annual_energy!C483","v":"Carrizo_Wind"},{"$f":"INDEX(K:K,MATCH(R483,Lists!J:J,0))","v":"Wind"},"In-State"]
[null,null,null,null,null,null,null,null,null,{"$f":"IFERROR(INDEX(raw_resource_build!$B$2:$B$1000,MATCH(0,COUNTIF($J$1:J483,raw_resource_build!$B$2:$B$1000), 0),0), \"\")","v":""},{"$f":"IF(J484=\"\", \"\", INDEX(raw_resource_build!E:E, MATCH(J484, raw_resource_build!B:B, 0)))","v":""},{"$f":"IF(J484=\"\", \"\", INDEX(raw_resource_build!C:C, MATCH(J484, raw_resource_build!B:B, 0)))","v":""},null,{"$f":"raw_resource_build!B484","v":"CAISO_New_Flow_Battery"},"Non-wind",{"$f":"IFERROR(INDEX($E$5:$E$32,MATCH(raw_resource_build!$E484,Lists!$B$5:$B$32,0)),\"Non-CAISO\")","v":"Battery (incl. BTM)"},null,{"$f":"raw_annual_energy!C484","v":"Carrizo_Wind"},{"$f":"INDEX(K:K,MATCH(R484,Lists!J:J,0))","v":"Wind"},"In-State"]
[null,null,null,null,null,null,null,null,null,{"$f":"IFERROR(INDEX(raw_resource_build!$B$2:$B$1000,MATCH(0,COUNTIF($J$1:J484,raw_resource_build!$B$2:$B$1000), 0),0), \"\")","v":""},{"$f":"IF(J485=\"\", \"\", INDEX(raw_resource_build!E:E, MATCH(J485, raw_resource_build!B:B, 0)))","v":""},{"$f":"IF(J485=\"\", \"\", INDEX(raw_resource_build!C:C, MATCH(J485, raw_resource_build!B:B, 0)))","v":""},null,{"$f":"raw_resource_build!B485","v":"CAISO_New_Flow_Battery_2"},"Non-wind",{"$f":"IFERROR(INDEX($E$5:$E$32,MATCH(raw_resource_build!$E485,Lists!$B$5:$B$32,0)),\"Non-CAISO\")","v":"Battery (incl. BTM)"},null,{"$f":"raw_annual_energy!C485","v":"Carrizo_Wind"},{"$f":"INDEX(K:K,MATCH(R485,Lists!J:J,0))","v":"Wind"},"In-State"]
[null,null,null,null,null,null,null,null,null,{"$f":"IFERROR(INDEX(raw_resource_build!$B$2:$B$1000,MATCH(0,COUNTIF($J$1:J485,raw_resource_build!$B$2:$B$1000), 0),0), \"\")","v":""},{"$f":"IF(J486=\"\", \"\", INDEX(raw_resource_build!E:E, MATCH(J486, raw_resource_build!B:B, 0)))","v":""},{"$f":"IF(J486=\"\", \"\", INDEX(raw_resource_build!C:C, MATCH(J486, raw_resource_build!B:B, 0)))","v":""},null,{"$f":"raw_resource_build!B486","v":"CAISO_New_Flow_Battery_3"},"Non-wind",{"$f":"IFERROR(INDEX($E$5:$E$32,MATCH(raw_resource_build!$E486,Lists!$B$5:$B$32,0)),\"Non-CAISO\")","v":"Battery (incl. BTM)"},null,{"$f":"raw_annual_energy!C486","v":"Carrizo_Wind"},{"$f":"INDEX(K:K,MATCH(R486,Lists!J:J,0))","v":"Wind"},"In-State"]
[null,null,null,null,null,null,null,null,null,{"$f":"IFERROR(INDEX(raw_resource_build!$B$2:$B$1000,MATCH(0,COUNTIF($J$1:J486,raw_resource_build!$B$2:$B$1000), 0),0), \"\")","v":""},{"$f":"IF(J487=\"\", \"\", INDEX(raw_resource_build!E:E, MATCH(J487, raw_resource_build!B:B, 0)))","v":""},{"$f":"IF(J487=\"\", \"\", INDEX(raw_resource_build!C:C, MATCH(J487, raw_resource_build!B:B, 0)))","v":""},null,{"$f":"raw_resource_build!B487","v":"CAISO_New_Flow_Battery_4"},"Non-wind",{"$f":"IFERROR(INDEX($E$5:$E$32,MATCH(raw_resource_build!$E487,Lists!$B$5:$B$32,0)),\"Non-CAISO\")","v":"Battery (incl. BTM)"},null,{"$f":"raw_annual_energy!C487","v":"Carrizo_Wind"},{"$f":"INDEX(K:K,MATCH(R487,Lists!J:J,0))","v":"Wind"},"In-State"]
[null,null,null,null,null,null,null,null,null,{"$f":"IFERROR(INDEX(raw_resource_build!$B$2:$B$1000,MATCH(0,COUNTIF($J$1:J487,raw_resource_build!$B$2:$B$1000), 0),0), \"\")","v":""},{"$f":"IF(J488=\"\", \"\", INDEX(raw_resource_build!E:E, MATCH(J488, raw_resource_build!B:B, 0)))","v":""},{"$f":"IF(J488=\"\", \"\", INDEX(raw_resource_build!C:C, MATCH(J488, raw_resource_build!B:B, 0)))","v":""},null,{"$f":"raw_resource_build!B488","v":"CAISO_New_Flow_Battery_5"},"Non-wind",{"$f":"IFERROR(INDEX($E$5:$E$32,MATCH(raw_resource_build!$E488,Lists!$B$5:$B$32,0)),\"Non-CAISO\")","v":"Battery (incl. BTM)"},null,{"$f":"raw_annual_energy!C488","v":"Carrizo_Wind"},{"$f":"INDEX(K:K,MATCH(R488,Lists!J:J,0))","v":"Wind"},"In-State"]
[null,null,null,null,null,null,null,null,null,{"$f":"IFERROR(INDEX(raw_resource_build!$B$2:$B$1000,MATCH(0,COUNTIF($J$1:J488,raw_resource_build!$B$2:$B$1000), 0),0), \"\")","v":""},{"$f":"IF(J489=\"\", \"\", INDEX(raw_resource_build!E:E, MATCH(J489, raw_resource_build!B:B, 0)))","v":""},{"$f":"IF(J489=\"\", \"\", INDEX(raw_resource_build!C:C, MATCH(J489, raw_resource_build!B:B, 0)))","v":""},null,{"$f":"raw_resource_build!B489","v":"CAISO_New_Li_Battery"},"Non-wind",{"$f":"IFERROR(INDEX($E$5:$E$32,MATCH(raw_resource_build!$E489,Lists!$B$5:$B$32,0)),\"Non-CAISO\")","v":"Battery (incl. BTM)"},null,{"$f":"raw_annual_energy!C489","v":"Carrizo_Wind"},{"$f":"INDEX(K:K,MATCH(R489,Lists!J:J,0))","v":"Wind"},"In-State"]
[null,null,null,null,null,null,null,null,null,{"$f":"IFERROR(INDEX(raw_resource_build!$B$2:$B$1000,MATCH(0,COUNTIF($J$1:J489,raw_resource_build!$B$2:$B$1000), 0),0), \"\")","v":""},{"$f":"IF(J490=\"\", \"\", INDEX(raw_resource_build!E:E, MATCH(J490, raw_resource_build!B:B, 0)))","v":""},{"$f":"IF(J490=\"\", \"\", INDEX(raw_resource_build!C:C, MATCH(J490, raw_resource_build!B:B, 0)))","v":""},null,{"$f":"raw_resource_build!B490","v":"CAISO_BTM_Li_Battery"},"Non-wind",{"$f":"IFERROR(INDEX($E$5:$E$32,MATCH(raw_resource_build!$E490,Lists!$B$5:$B$32,0)),\"Non-CAISO\")","v":"Battery (incl. BTM)"},null,{"$f":"raw_annual_energy!C490","v":"Carrizo_Wind"},{"$f":"INDEX(K:K,MATCH(R490,Lists!J:J,0))","v":"Wind"},"In-State"]
[null,null,null,null,null,null,null,null,null,{"$f":"IFERROR(INDEX(raw_resource_build!$B$2:$B$1000,MATCH(0,COUNTIF($J$1:J490,raw_resource_build!$B$2:$B$1000), 0),0), \"\")","v":""},{"$f":"IF(J491=\"\", \"\", INDEX(raw_resource_build!E:E, MATCH(J491, raw_resource_build!B:B, 0)))","v":""},{"$f":"IF(J491=\"\", \"\", INDEX(raw_resource_build!C:C, MATCH(J491, raw_resource_build!B:B, 0)))","v":""},null,{"$f":"raw_resource_build!B491","v":"CAISO_New_Li_Battery_2"},"Non-wind",{"$f":"IFERROR(INDEX($E$5:$E$32,MATCH(raw_resource_build!$E491,Lists!$B$5:$B$32,0)),\"Non-CAISO\")","v":"Battery (incl. BTM)"},null,{"$f":"raw_annual_energy!C491","v":"Central_Valley_North_Los_Banos_Solar"},{"$f":"INDEX(K:K,MATCH(R491,Lists!J:J,0))","v":"Solar"},"In-State"]
[null,null,null,null,null,null,null,null,null,{"$f":"IFERROR(INDEX(raw_resource_build!$B$2:$B$1000,MATCH(0,COUNTIF($J$1:J491,raw_resource_build!$B$2:$B$1000), 0),0), \"\")","v":""},{"$f":"IF(J492=\"\", \"\", INDEX(raw_resource_build!E:E, MATCH(J492, raw_resource_build!B:B, 0)))","v":""},{"$f":"IF(J492=\"\", \"\", INDEX(raw_resource_build!C:C, MATCH(J492, raw_resource_build!B:B, 0)))","v":""},null,{"$f":"raw_resource_build!B492","v":"CAISO_New_Li_Battery_3"},"Non-wind",{"$f":"IFERROR(INDEX($E$5:$E$32,MATCH(raw_resource_build!$E492,Lists!$B$5:$B$32,0)),\"Non-CAISO\")","v":"Battery (incl. BTM)"},null,{"$f":"raw_annual_energy!C492","v":"Central_Valley_North_Los_Banos_Solar"},{"$f":"INDEX(K:K,MATCH(R492,Lists!J:J,0))","v":"Solar"},"In-State"]
[null,null,null,null,null,null,null,null,null,{"$f":"IFERROR(INDEX(raw_resource_build!$B$2:$B$1000,MATCH(0,COUNTIF($J$1:J492,raw_resource_build!$B$2:$B$1000), 0),0), \"\")","v":""},{"$f":"IF(J493=\"\", \"\", INDEX(raw_resource_build!E:E, MATCH(J493, raw_resource_build!B:B, 0)))","v":""},{"$f":"IF(J493=\"\", \"\", INDEX(raw_resource_build!C:C, MATCH(J493, raw_resource_build!B:B, 0)))","v":""},null,{"$f":"raw_resource_build!B493","v":"CAISO_New_Li_Battery_4"},"Non-wind",{"$f":"IFERROR(INDEX($E$5:$E$32,MATCH(raw_resource_build!$E493,Lists!$B$5:$B$32,0)),\"Non-CAISO\")","v":"Battery (incl. BTM)"},null,{"$f":"raw_annual_energy!C493","v":"Central_Valley_North_Los_Banos_Solar"},{"$f":"INDEX(K:K,MATCH(R493,Lists!J:J,0))","v":"Solar"},"In-State"]
[null,null,null,null,null,null,null,null,null,{"$f":"IFERROR(INDEX(raw_resource_build!$B$2:$B$1000,MATCH(0,COUNTIF($J$1:J493,raw_resource_build!$B$2:$B$1000), 0),0), \"\")","v":""},{"$f":"IF(J494=\"\", \"\", INDEX(raw_resource_build!E:E, MATCH(J494, raw_resource_build!B:B, 0)))","v":""},{"$f":"IF(J494=\"\", \"\", INDEX(raw_resource_build!C:C, MATCH(J494, raw_resource_build!B:B, 0)))","v":""},null,{"$f":"raw_resource_build!B494","v":"CAISO_New_Li_Battery_5"},"Non-wind",{"$f":"IFERROR(INDEX($E$5:$E$32,MATCH(raw_resource_build!$E494,Lists!$B$5:$B$32,0)),\"Non-CAISO\")","v":"Battery (incl. BTM)"},null,{"$f":"raw_annual_energy!C494","v":"Central_Valley_North_Los_Banos_Solar"},{"$f":"INDEX(K:K,MATCH(R494,Lists!J:J,0))","v":"Solar"},"In-State"]
[null,null,null,null,null,null,null,null,null,{"$f":"IFERROR(INDEX(raw_resource_build!$B$2:$B$1000,MATCH(0,COUNTIF($J$1:J494,raw_resource_build!$B$2:$B$1000), 0),0), \"\")","v":""},{"$f":"IF(J495=\"\", \"\", INDEX(raw_resource_build!E:E, MATCH(J495, raw_resource_build!B:B, 0)))","v":""},{"$f":"IF(J495=\"\", \"\", INDEX(raw_resource_build!C:C, MATCH(J495, raw_resource_build!B:B, 0)))","v":""},null,{"$f":"raw_resource_build!B495","v":"CAISO_New_Li_Battery_6"},"Non-wind",{"$f":"IFERROR(INDEX($E$5:$E$32,MATCH(raw_resource_build!$E495,Lists!$B$5:$B$32,0)),\"Non-CAISO\")","v":"Battery (incl. BTM)"},null,{"$f":"raw_annual_energy!C495","v":"Central_Valley_North_Los_Banos_Solar"},{"$f":"INDEX(K:K,MATCH(R495,Lists!J:J,0))","v":"Solar"},"In-State"]
[null,null,null,null,null,null,null,null,null,{"$f":"IFERROR(INDEX(raw_resource_build!$B$2:$B$1000,MATCH(0,COUNTIF($J$1:J495,raw_resource_build!$B$2:$B$1000), 0),0), \"\")","v":""},{"$f":"IF(J496=\"\", \"\", INDEX(raw_resource_build!E:E, MATCH(J496, raw_resource_build!B:B, 0)))","v":""},{"$f":"IF(J496=\"\", \"\", INDEX(raw_resource_build!C:C, MATCH(J496, raw_resource_build!B:B, 0)))","v":""},null,{"$f":"raw_resource_build!B496","v":"CAISO_Hydro"},"Non-wind",{"$f":"IFERROR(INDEX($E$5:$E$32,MATCH(raw_resource_build!$E496,Lists!$B$5:$B$32,0)),\"Non-CAISO\")","v":"Hydro (small + large)"},null,{"$f":"raw_annual_energy!C496","v":"Central_Valley_North_Los_Banos_Solar"},{"$f":"INDEX(K:K,MATCH(R496,Lists!J:J,0))","v":"Solar"},"In-State"]
[null,null,null,null,null,null,null,null,null,{"$f":"IFERROR(INDEX(raw_resource_build!$B$2:$B$1000,MATCH(0,COUNTIF($J$1:J496,raw_resource_build!$B$2:$B$1000), 0),0), \"\")","v":""},{"$f":"IF(J497=\"\", \"\", INDEX(raw_resource_build!E:E, MATCH(J497, raw_resource_build!B:B, 0)))","v":""},{"$f":"IF(J497=\"\", \"\", INDEX(raw_resource_build!C:C, MATCH(J497, raw_resource_build!B:B, 0)))","v":""},null,{"$f":"raw_resource_build!B497","v":"NW_Hydro"},"Non-wind",{"$f":"IFERROR(INDEX($E$5:$E$32,MATCH(raw_resource_build!$E497,Lists!$B$5:$B$32,0)),\"Non-CAISO\")","v":"Hydro (small + large)"},null,{"$f":"raw_annual_energy!C497","v":"Central_Valley_North_Los_Banos_Solar"},{"$f":"INDEX(K:K,MATCH(R497,Lists!J:J,0))","v":"Solar"},"In-State"]
[null,null,null,null,null,null,null,null,null,{"$f":"IFERROR(INDEX(raw_resource_build!$B$2:$B$1000,MATCH(0,COUNTIF($J$1:J497,raw_resource_build!$B$2:$B$1000), 0),0), \"\")","v":""},{"$f":"IF(J498=\"\", \"\", INDEX(raw_resource_build!E:E, MATCH(J498, raw_resource_build!B:B, 0)))","v":""},{"$f":"IF(J498=\"\", \"\", INDEX(raw_resource_build!C:C, MATCH(J498, raw_resource_build!B:B, 0)))","v":""},null,{"$f":"raw_resource_build!B498","v":"SW_Hydro"},"Non-wind",{"$f":"IFERROR(INDEX($E$5:$E$32,MATCH(raw_resource_build!$E498,Lists!$B$5:$B$32,0)),\"Non-CAISO\")","v":"Hydro (small + large)"},null,{"$f":"raw_annual_energy!C498","v":"Central_Valley_North_Los_Banos_Solar"},{"$f":"INDEX(K:K,MATCH(R498,Lists!J:J,0))","v":"Solar"},"In-State"]
[null,null,null,null,null,null,null,null,null,{"$f":"IFERROR(INDEX(raw_resource_build!$B$2:$B$1000,MATCH(0,COUNTIF($J$1:J498,raw_resource_build!$B$2:$B$1000), 0),0), \"\")","v":""},{"$f":"IF(J499=\"\", \"\", INDEX(raw_resource_build!E:E, MATCH(J499, raw_resource_build!B:B, 0)))","v":""},{"$f":"IF(J499=\"\", \"\", INDEX(raw_resource_build!C:C, MATCH(J499, raw_resource_build!B:B, 0)))","v":""},null,{"$f":"raw_resource_build!B499","v":"LDWP_Hydro"},"Non-wind",{"$f":"IFERROR(INDEX($E$5:$E$32,MATCH(raw_resource_build!$E499,Lists!$B$5:$B$32,0)),\"Non-CAISO\")","v":"Hydro (small + large)"},null,{"$f":"raw_annual_energy!C499","v":"Central_Valley_North_Los_Banos_Wind"},{"$f":"INDEX(K:K,MATCH(R499,Lists!J:J,0))","v":"Wind"},"In-State"]
[null,null,null,null,null,null,null,null,null,{"$f":"IFERROR(INDEX(raw_resource_build!$B$2:$B$1000,MATCH(0,COUNTIF($J$1:J499,raw_resource_build!$B$2:$B$1000), 0),0), \"\")","v":""},{"$f":"IF(J500=\"\", \"\", INDEX(raw_resource_build!E:E, MATCH(J500, raw_resource_build!B:B, 0)))","v":""},{"$f":"IF(J500=\"\", \"\", INDEX(raw_resource_build!C:C, MATCH(J500, raw_resource_build!B:B, 0)))","v":""},null,{"$f":"raw_resource_build!B500","v":"BANC_Hydro"},"Non-wind",{"$f":"IFERROR(INDEX($E$5:$E$32,MATCH(raw_resource_build!$E500,Lists!$B$5:$B$32,0)),\"Non-CAISO\")","v":"Hydro (small + large)"},null,{"$f":"raw_annual_energy!C500","v":"Central_Valley_North_Los_Banos_Wind"},{"$f":"INDEX(K:K,MATCH(R500,Lists!J:J,0))","v":"Wind"},"In-State"]
[null,null,null,null,null,null,null,null,null,{"$f":"IFERROR(INDEX(raw_resource_build!$B$2:$B$1000,MATCH(0,COUNTIF($J$1:J500,raw_resource_build!$B$2:$B$1000), 0),0), \"\")","v":""},{"$f":"IF(J501=\"\", \"\", INDEX(raw_resource_build!E:E, MATCH(J501, raw_resource_build!B:B, 0)))","v":""},{"$f":"IF(J501=\"\", \"\", INDEX(raw_resource_build!C:C, MATCH(J501, raw_resource_build!B:B, 0)))","v":""},null,{"$f":"raw_resource_build!B501","v":"IID_Hydro"},"Non-wind",{"$f":"IFERROR(INDEX($E$5:$E$32,MATCH(raw_resource_build!$E501,Lists!$B$5:$B$32,0)),\"Non-CAISO\")","v":"Hydro (small + large)"},null,{"$f":"raw_annual_energy!C501","v":"Central_Valley_North_Los_Banos_Wind"},{"$f":"INDEX(K:K,MATCH(R501,Lists!J:J,0))","v":"Wind"},"In-State"]
[null,null,null,null,null,null,null,null,null,{"$f":"IFERROR(INDEX(raw_resource_build!$B$2:$B$1000,MATCH(0,COUNTIF($J$1:J501,raw_resource_build!$B$2:$B$1000), 0),0), \"\")","v":""},{"$f":"IF(J502=\"\", \"\", INDEX(raw_resource_build!E:E, MATCH(J502, raw_resource_build!B:B, 0)))","v":""},{"$f":"IF(J502=\"\", \"\", INDEX(raw_resource_build!C:C, MATCH(J502, raw_resource_build!B:B, 0)))","v":""},null,{"$f":"raw_resource_build!B502","v":"NW_Hydro_for_CAISO"},"Non-wind",{"$f":"IFERROR(INDEX($E$5:$E$32,MATCH(raw_resource_build!$E502,Lists!$B$5:$B$32,0)),\"Non-CAISO\")","v":"Imports"},null,{"$f":"raw_annual_energy!C502","v":"Central_Valley_North_Los_Banos_Wind"},{"$f":"INDEX(K:K,MATCH(R502,Lists!J:J,0))","v":"Wind"},"In-State"]
[null,null,null,null,null,null,null,null,null,{"$f":"IFERROR(INDEX(raw_resource_build!$B$2:$B$1000,MATCH(0,COUNTIF($J$1:J502,raw_resource_build!$B$2:$B$1000), 0),0), \"\")","v":""},{"$f":"IF(J503=\"\", \"\", INDEX(raw_resource_build!E:E, MATCH(J503, raw_resource_build!B:B, 0)))","v":""},{"$f":"IF(J503=\"\", \"\", INDEX(raw_resource_build!C:C, MATCH(J503, raw_resource_build!B:B, 0)))","v":""},null,{"$f":"raw_resource_build!B503","v":"Hydrogen_electrolysis"},"Non-wind",{"$f":"IFERROR(INDEX($E$5:$E$32,MATCH(raw_resource_build!$E503,Lists!$B$5:$B$32,0)),\"Non-CAISO\")","v":"Hydrogen Load"},null,{"$f":"raw_annual_energy!C503","v":"Central_Valley_North_Los_Banos_Wind"},{"$f":"INDEX(K:K,MATCH(R503,Lists!J:J,0))","v":"Wind"},"In-State"]
[null,null,null,null,null,null,null,null,null,{"$f":"IFERROR(INDEX(raw_resource_build!$B$2:$B$1000,MATCH(0,COUNTIF($J$1:J503,raw_resource_build!$B$2:$B$1000), 0),0), \"\")","v":""},{"$f":"IF(J504=\"\", \"\", INDEX(raw_resource_build!E:E, MATCH(J504, raw_resource_build!B:B, 0)))","v":""},{"$f":"IF(J504=\"\", \"\", INDEX(raw_resource_build!C:C, MATCH(J504, raw_resource_build!B:B, 0)))","v":""},null,{"$f":"raw_resource_build!B504","v":"CAISO_Shed_DR_Existing"},"Non-wind",{"$f":"IFERROR(INDEX($E$5:$E$32,MATCH(raw_resource_build!$E504,Lists!$B$5:$B$32,0)),\"Non-CAISO\")","v":"Shed DR"},null,{"$f":"raw_annual_energy!C504","v":"Central_Valley_North_Los_Banos_Wind"},{"$f":"INDEX(K:K,MATCH(R504,Lists!J:J,0))","v":"Wind"},"In-State"]
[null,null,null,null,null,null,null,null,null,{"$f":"IFERROR(INDEX(raw_resource_build!$B$2:$B$1000,MATCH(0,COUNTIF($J$1:J504,raw_resource_build!$B$2:$B$1000), 0),0), \"\")","v":""},{"$f":"IF(J505=\"\", \"\", INDEX(raw_resource_build!E:E, MATCH(J505, raw_resource_build!B:B, 0)))","v":""},{"$f":"IF(J505=\"\", \"\", INDEX(raw_resource_build!C:C, MATCH(J505, raw_resource_build!B:B, 0)))","v":""},null,{"$f":"raw_resource_build!B505","v":"CAISO_Shed_DR_Tranche1"},"Non-wind",{"$f":"IFERROR(INDEX($E$5:$E$32,MATCH(raw_resource_build!$E505,Lists!$B$5:$B$32,0)),\"Non-CAISO\")","v":"Shed DR"},null,{"$f":"raw_annual_energy!C505","v":"Central_Valley_North_Los_Banos_Wind"},{"$f":"INDEX(K:K,MATCH(R505,Lists!J:J,0))","v":"Wind"},"In-State"]
[null,null,null,null,null,null,null,null,null,{"$f":"IFERROR(INDEX(raw_resource_build!$B$2:$B$1000,MATCH(0,COUNTIF($J$1:J505,raw_resource_build!$B$2:$B$1000), 0),0), \"\")","v":""},{"$f":"IF(J506=\"\", \"\", INDEX(raw_resource_build!E:E, MATCH(J506, raw_resource_build!B:B, 0)))","v":""},{"$f":"IF(J506=\"\", \"\", INDEX(raw_resource_build!C:C, MATCH(J506, raw_resource_build!B:B, 0)))","v":""},null,{"$f":"raw_resource_build!B506","v":"CAISO_Shed_DR_Tranche2"},"Non-wind",{"$f":"IFERROR(INDEX($E$5:$E$32,MATCH(raw_resource_build!$E506,Lists!$B$5:$B$32,0)),\"Non-CAISO\")","v":"Shed DR"},null,{"$f":"raw_annual_energy!C506","v":"Central_Valley_North_Los_Banos_Wind"},{"$f":"INDEX(K:K,MATCH(R506,Lists!J:J,0))","v":"Wind"},"In-State"]
[null,null,null,null,null,null,null,null,null,{"$f":"IFERROR(INDEX(raw_resource_build!$B$2:$B$1000,MATCH(0,COUNTIF($J$1:J506,raw_resource_build!$B$2:$B$1000), 0),0), \"\")","v":""},{"$f":"IF(J507=\"\", \"\", INDEX(raw_resource_build!E:E, MATCH(J507, raw_resource_build!B:B, 0)))","v":""},{"$f":"IF(J507=\"\", \"\", INDEX(raw_resource_build!C:C, MATCH(J507, raw_resource_build!B:B, 0)))","v":""},null,{"$f":"raw_resource_build!B507","v":"CAISO_Shed_DR_Tranche3"},"Non-wind",{"$f":"IFERROR(INDEX($E$5:$E$32,MATCH(raw_resource_build!$E507,Lists!$B$5:$B$32,0)),\"Non-CAISO\")","v":"Shed DR"},null,{"$f":"raw_annual_energy!C507","v":"Customer_PV"},{"$f":"INDEX(K:K,MATCH(R507,Lists!J:J,0))","v":"Customer_PV"},"Non-wind"]
[null,null,null,null,null,null,null,null,null,{"$f":"IFERROR(INDEX(raw_resource_build!$B$2:$B$1000,MATCH(0,COUNTIF($J$1:J507,raw_resource_build!$B$2:$B$1000), 0),0), \"\")","v":""},{"$f":"IF(J508=\"\", \"\", INDEX(raw_resource_build!E:E, MATCH(J508, raw_resource_build!B:B, 0)))","v":""},{"$f":"IF(J508=\"\", \"\", INDEX(raw_resource_build!C:C, MATCH(J508, raw_resource_build!B:B, 0)))","v":""},null,{"$f":"raw_resource_build!B508","v":"CAISO_Shed_DR_Tranche4"},"Non-wind",{"$f":"IFERROR(INDEX($E$5:$E$32,MATCH(raw_resource_build!$E508,Lists!$B$5:$B$32,0)),\"Non-CAISO\")","v":"Shed DR"},null,{"$f":"raw_annual_energy!C508","v":"Customer_PV"},{"$f":"INDEX(K:K,MATCH(R508,Lists!J:J,0))","v":"Customer_PV"},"Non-wind"]
[null,null,null,null,null,null,null,null,null,{"$f":"IFERROR(INDEX(raw_resource_build!$B$2:$B$1000,MATCH(0,COUNTIF($J$1:J508,raw_resource_build!$B$2:$B$1000), 0),0), \"\")","v":""},{"$f":"IF(J509=\"\", \"\", INDEX(raw_resource_build!E:E, MATCH(J509, raw_resource_build!B:B, 0)))","v":""},{"$f":"IF(J509=\"\", \"\", INDEX(raw_resource_build!C:C, MATCH(J509, raw_resource_build!B:B, 0)))","v":""},null,{"$f":"raw_resource_build!B509","v":"CAISO_Shed_DR_Tranche5"},"Non-wind",{"$f":"IFERROR(INDEX($E$5:$E$32,MATCH(raw_resource_build!$E509,Lists!$B$5:$B$32,0)),\"Non-CAISO\")","v":"Shed DR"},null,{"$f":"raw_annual_energy!C509","v":"Customer_PV"},{"$f":"INDEX(K:K,MATCH(R509,Lists!J:J,0))","v":"Customer_PV"},"Non-wind"]
[null,null,null,null,null,null,null,null,null,{"$f":"IFERROR(INDEX(raw_resource_build!$B$2:$B$1000,MATCH(0,COUNTIF($J$1:J509,raw_resource_build!$B$2:$B$1000), 0),0), \"\")","v":""},{"$f":"IF(J510=\"\", \"\", INDEX(raw_resource_build!E:E, MATCH(J510, raw_resource_build!B:B, 0)))","v":""},{"$f":"IF(J510=\"\", \"\", INDEX(raw_resource_build!C:C, MATCH(J510, raw_resource_build!B:B, 0)))","v":""},null,{"$f":"raw_resource_build!B510","v":"CAISO_Shed_DR_Tranche6"},"Non-wind",{"$f":"IFERROR(INDEX($E$5:$E$32,MATCH(raw_resource_build!$E510,Lists!$B$5:$B$32,0)),\"Non-CAISO\")","v":"Shed DR"},null,{"$f":"raw_annual_energy!C510","v":"Customer_PV"},{"$f":"INDEX(K:K,MATCH(R510,Lists!J:J,0))","v":"Customer_PV"},"Non-wind"]
[null,null,null,null,null,null,null,null,null,{"$f":"IFERROR(INDEX(raw_resource_build!$B$2:$B$1000,MATCH(0,COUNTIF($J$1:J510,raw_resource_build!$B$2:$B$1000), 0),0), \"\")","v":""},{"$f":"IF(J511=\"\", \"\", INDEX(raw_resource_build!E:E, MATCH(J511, raw_resource_build!B:B, 0)))","v":""},{"$f":"IF(J511=\"\", \"\", INDEX(raw_resource_build!C:C, MATCH(J511, raw_resource_build!B:B, 0)))","v":""},null,{"$f":"raw_resource_build!B511","v":"CAISO_Shed_DR_Tranche7"},"Non-wind",{"$f":"IFERROR(INDEX($E$5:$E$32,MATCH(raw_resource_build!$E511,Lists!$B$5:$B$32,0)),\"Non-CAISO\")","v":"Shed DR"},null,{"$f":"raw_annual_energy!C511","v":"Customer_PV"},{"$f":"INDEX(K:K,MATCH(R511,Lists!J:J,0))","v":"Customer_PV"},"Non-wind"]
[null,null,null,null,null,null,null,null,null,{"$f":"IFERROR(INDEX(raw_resource_build!$B$2:$B$1000,MATCH(0,COUNTIF($J$1:J511,raw_resource_build!$B$2:$B$1000), 0),0), \"\")","v":""},{"$f":"IF(J512=\"\", \"\", INDEX(raw_resource_build!E:E, MATCH(J512, raw_resource_build!B:B, 0)))","v":""},{"$f":"IF(J512=\"\", \"\", INDEX(raw_resource_build!C:C, MATCH(J512, raw_resource_build!B:B, 0)))","v":""},null,{"$f":"raw_resource_build!B512","v":"CAISO_Shed_DR_Tranche8"},"Non-wind",{"$f":"IFERROR(INDEX($E$5:$E$32,MATCH(raw_resource_build!$E512,Lists!$B$5:$B$32,0)),\"Non-CAISO\")","v":"Shed DR"},null,{"$f":"raw_annual_energy!C512","v":"Customer_PV"},{"$f":"INDEX(K:K,MATCH(R512,Lists!J:J,0))","v":"Customer_PV"},"Non-wind"]
[null,null,null,null,null,null,null,null,null,{"$f":"IFERROR(INDEX(raw_resource_build!$B$2:$B$1000,MATCH(0,COUNTIF($J$1:J512,raw_resource_build!$B$2:$B$1000), 0),0), \"\")","v":""},{"$f":"IF(J513=\"\", \"\", INDEX(raw_resource_build!E:E, MATCH(J513, raw_resource_build!B:B, 0)))","v":""},{"$f":"IF(J513=\"\", \"\", INDEX(raw_resource_build!C:C, MATCH(J513, raw_resource_build!B:B, 0)))","v":""},null,{"$f":"raw_resource_build!B513","v":"CAISO_CHP"},"Non-wind",{"$f":"IFERROR(INDEX($E$5:$E$32,MATCH(raw_resource_build!$E513,Lists!$B$5:$B$32,0)),\"Non-CAISO\")","v":"CHP"},null,{"$f":"raw_annual_energy!C513","v":"Customer_PV"},{"$f":"INDEX(K:K,MATCH(R513,Lists!J:J,0))","v":"Customer_PV"},"Non-wind"]
[null,null,null,null,null,null,null,null,null,{"$f":"IFERROR(INDEX(raw_resource_build!$B$2:$B$1000,MATCH(0,COUNTIF($J$1:J513,raw_resource_build!$B$2:$B$1000), 0),0), \"\")","v":""},{"$f":"IF(J514=\"\", \"\", INDEX(raw_resource_build!E:E, MATCH(J514, raw_resource_build!B:B, 0)))","v":""},{"$f":"IF(J514=\"\", \"\", INDEX(raw_resource_build!C:C, MATCH(J514, raw_resource_build!B:B, 0)))","v":""},null,{"$f":"raw_resource_build!B514","v":"CAISO_Nuclear"},"Non-wind",{"$f":"IFERROR(INDEX($E$5:$E$32,MATCH(raw_resource_build!$E514,Lists!$B$5:$B$32,0)),\"Non-CAISO\")","v":"Nuclear"},null,{"$f":"raw_annual_energy!C514","v":"Customer_PV"},{"$f":"INDEX(K:K,MATCH(R514,Lists!J:J,0))","v":"Customer_PV"},"Non-wind"]
[null,null,null,null,null,null,null,null,null,{"$f":"IFERROR(INDEX(raw_resource_build!$B$2:$B$1000,MATCH(0,COUNTIF($J$1:J514,raw_resource_build!$B$2:$B$1000), 0),0), \"\")","v":""},{"$f":"IF(J515=\"\", \"\", INDEX(raw_resource_build!E:E, MATCH(J515, raw_resource_build!B:B, 0)))","v":""},{"$f":"IF(J515=\"\", \"\", INDEX(raw_resource_build!C:C, MATCH(J515, raw_resource_build!B:B, 0)))","v":""},null,{"$f":"raw_resource_build!B515","v":"CAISO_CCGT1"},{"$f":"IFERROR(INDEX($C$35:$C$99,MATCH($N515,$B$35:$B$99,0)),\"Non-wind\")","v":"Non-wind"},{"$f":"IFERROR(INDEX($E$5:$E$32,MATCH(raw_resource_build!$E515,Lists!$B$5:$B$32,0)),\"Non-CAISO\")","v":"CCGT"},null,{"$f":"raw_annual_energy!C515","v":"Del_Norte_Offshore_Wind"},{"$f":"INDEX(K:K,MATCH(R515,Lists!J:J,0))","v":"Offshore_Wind"},{"$f":"IFERROR(INDEX($C$35:$C$99,MATCH($R515,$B$35:$B$99,0)),\"Non-wind\")","v":"In-State"}]
[null,null,null,null,null,null,null,null,null,{"$f":"IFERROR(INDEX(raw_resource_build!$B$2:$B$1000,MATCH(0,COUNTIF($J$1:J515,raw_resource_build!$B$2:$B$1000), 0),0), \"\")","v":""},{"$f":"IF(J516=\"\", \"\", INDEX(raw_resource_build!E:E, MATCH(J516, raw_resource_build!B:B, 0)))","v":""},{"$f":"IF(J516=\"\", \"\", INDEX(raw_resource_build!C:C, MATCH(J516, raw_resource_build!B:B, 0)))","v":""},null,{"$f":"raw_resource_build!B516","v":"CAISO_CCGT2"},"Non-wind",{"$f":"IFERROR(INDEX($E$5:$E$32,MATCH(raw_resource_build!$E516,Lists!$B$5:$B$32,0)),\"Non-CAISO\")","v":"CCGT"},null,{"$f":"raw_annual_energy!C516","v":"Del_Norte_Offshore_Wind"},{"$f":"INDEX(K:K,MATCH(R516,Lists!J:J,0))","v":"Offshore_Wind"},"In-State"]
[null,null,null,null,null,null,null,null,null,{"$f":"IFERROR(INDEX(raw_resource_build!$B$2:$B$1000,MATCH(0,COUNTIF($J$1:J516,raw_resource_build!$B$2:$B$1000), 0),0), \"\")","v":""},{"$f":"IF(J517=\"\", \"\", INDEX(raw_resource_build!E:E, MATCH(J517, raw_resource_build!B:B, 0)))","v":""},{"$f":"IF(J517=\"\", \"\", INDEX(raw_resource_build!C:C, MATCH(J517, raw_resource_build!B:B, 0)))","v":""},null,{"$f":"raw_resource_build!B517","v":"CAISO_Coal"},"Non-wind",{"$f":"IFERROR(INDEX($E$5:$E$32,MATCH(raw_resource_build!$E517,Lists!$B$5:$B$32,0)),\"Non-CAISO\")","v":"Coal"},null,{"$f":"raw_annual_energy!C517","v":"Del_Norte_Offshore_Wind"},{"$f":"INDEX(K:K,MATCH(R517,Lists!J:J,0))","v":"Offshore_Wind"},"In-State"]
[null,null,null,null,null,null,null,null,null,{"$f":"IFERROR(INDEX(raw_resource_build!$B$2:$B$1000,MATCH(0,COUNTIF($J$1:J517,raw_resource_build!$B$2:$B$1000), 0),0), \"\")","v":""},{"$f":"IF(J518=\"\", \"\", INDEX(raw_resource_build!E:E, MATCH(J518, raw_resource_build!B:B, 0)))","v":""},{"$f":"IF(J518=\"\", \"\", INDEX(raw_resource_build!C:C, MATCH(J518, raw_resource_build!B:B, 0)))","v":""},null,{"$f":"raw_resource_build!B518","v":"CAISO_Peaker1"},"Non-wind",{"$f":"IFERROR(INDEX($E$5:$E$32,MATCH(raw_resource_build!$E518,Lists!$B$5:$B$32,0)),\"Non-CAISO\")","v":"Peaker"},null,{"$f":"raw_annual_energy!C518","v":"Del_Norte_Offshore_Wind"},{"$f":"INDEX(K:K,MATCH(R518,Lists!J:J,0))","v":"Offshore_Wind"},"In-State"]
[null,null,null,null,null,null,null,null,null,{"$f":"IFERROR(INDEX(raw_resource_build!$B$2:$B$1000,MATCH(0,COUNTIF($J$1:J518,raw_resource_build!$B$2:$B$1000), 0),0), \"\")","v":""},{"$f":"IF(J519=\"\", \"\", INDEX(raw_resource_build!E:E, MATCH(J519, raw_resource_build!B:B, 0)))","v":""},{"$f":"IF(J519=\"\", \"\", INDEX(raw_resource_build!C:C, MATCH(J519, raw_resource_build!B:B, 0)))","v":""},null,{"$f":"raw_resource_build!B519","v":"CAISO_Peaker2"},"Non-wind",{"$f":"IFERROR(INDEX($E$5:$E$32,MATCH(raw_resource_build!$E519,Lists!$B$5:$B$32,0)),\"Non-CAISO\")","v":"Peaker"},null,{"$f":"raw_annual_energy!C519","v":"Del_Norte_Offshore_Wind"},{"$f":"INDEX(K:K,MATCH(R519,Lists!J:J,0))","v":"Offshore_Wind"},"In-State"]
[null,null,null,null,null,null,null,null,null,{"$f":"IFERROR(INDEX(raw_resource_build!$B$2:$B$1000,MATCH(0,COUNTIF($J$1:J519,raw_resource_build!$B$2:$B$1000), 0),0), \"\")","v":""},{"$f":"IF(J520=\"\", \"\", INDEX(raw_resource_build!E:E, MATCH(J520, raw_resource_build!B:B, 0)))","v":""},{"$f":"IF(J520=\"\", \"\", INDEX(raw_resource_build!C:C, MATCH(J520, raw_resource_build!B:B, 0)))","v":""},null,{"$f":"raw_resource_build!B520","v":"CAISO_Advanced_CCGT"},"Non-wind",{"$f":"IFERROR(INDEX($E$5:$E$32,MATCH(raw_resource_build!$E520,Lists!$B$5:$B$32,0)),\"Non-CAISO\")","v":"CCGT"},null,{"$f":"raw_annual_energy!C520","v":"Del_Norte_Offshore_Wind"},{"$f":"INDEX(K:K,MATCH(R520,Lists!J:J,0))","v":"Offshore_Wind"},"In-State"]
[null,null,null,null,null,null,null,null,null,{"$f":"IFERROR(INDEX(raw_resource_build!$B$2:$B$1000,MATCH(0,COUNTIF($J$1:J520,raw_resource_build!$B$2:$B$1000), 0),0), \"\")","v":""},{"$f":"IF(J521=\"\", \"\", INDEX(raw_resource_build!E:E, MATCH(J521, raw_resource_build!B:B, 0)))","v":""},{"$f":"IF(J521=\"\", \"\", INDEX(raw_resource_build!C:C, MATCH(J521, raw_resource_build!B:B, 0)))","v":""},null,{"$f":"raw_resource_build!B521","v":"CAISO_Aero_CT"},"Non-wind",{"$f":"IFERROR(INDEX($E$5:$E$32,MATCH(raw_resource_build!$E521,Lists!$B$5:$B$32,0)),\"Non-CAISO\")","v":"Peaker"},null,{"$f":"raw_annual_energy!C521","v":"Del_Norte_Offshore_Wind"},{"$f":"INDEX(K:K,MATCH(R521,Lists!J:J,0))","v":"Offshore_Wind"},"In-State"]
[null,null,null,null,null,null,null,null,null,{"$f":"IFERROR(INDEX(raw_resource_build!$B$2:$B$1000,MATCH(0,COUNTIF($J$1:J521,raw_resource_build!$B$2:$B$1000), 0),0), \"\")","v":""},{"$f":"IF(J522=\"\", \"\", INDEX(raw_resource_build!E:E, MATCH(J522, raw_resource_build!B:B, 0)))","v":""},{"$f":"IF(J522=\"\", \"\", INDEX(raw_resource_build!C:C, MATCH(J522, raw_resource_build!B:B, 0)))","v":""},null,{"$f":"raw_resource_build!B522","v":"CAISO_Reciprocating_Engine"},"Non-wind",{"$f":"IFERROR(INDEX($E$5:$E$32,MATCH(raw_resource_build!$E522,Lists!$B$5:$B$32,0)),\"Non-CAISO\")","v":"Peaker"},null,{"$f":"raw_annual_energy!C522","v":"Del_Norte_Offshore_Wind"},{"$f":"INDEX(K:K,MATCH(R522,Lists!J:J,0))","v":"Offshore_Wind"},"In-State"]
[null,null,null,null,null,null,null,null,null,{"$f":"IFERROR(INDEX(raw_resource_build!$B$2:$B$1000,MATCH(0,COUNTIF($J$1:J522,raw_resource_build!$B$2:$B$1000), 0),0), \"\")","v":""},{"$f":"IF(J523=\"\", \"\", INDEX(raw_resource_build!E:E, MATCH(J523, raw_resource_build!B:B, 0)))","v":""},{"$f":"IF(J523=\"\", \"\", INDEX(raw_resource_build!C:C, MATCH(J523, raw_resource_build!B:B, 0)))","v":""},null,{"$f":"raw_resource_build!B523","v":"CAISO_ST"},"Non-wind",{"$f":"IFERROR(INDEX($E$5:$E$32,MATCH(raw_resource_build!$E523,Lists!$B$5:$B$32,0)),\"Non-CAISO\")","v":"Steam Turbine"},null,{"$f":"raw_annual_energy!C523","v":"Diablo_Canyon_Offshore_Wind"},{"$f":"INDEX(K:K,MATCH(R523,Lists!J:J,0))","v":"Offshore_Wind"},"In-State"]
[null,null,null,null,null,null,null,null,null,{"$f":"IFERROR(INDEX(raw_resource_build!$B$2:$B$1000,MATCH(0,COUNTIF($J$1:J523,raw_resource_build!$B$2:$B$1000), 0),0), \"\")","v":""},{"$f":"IF(J524=\"\", \"\", INDEX(raw_resource_build!E:E, MATCH(J524, raw_resource_build!B:B, 0)))","v":""},{"$f":"IF(J524=\"\", \"\", INDEX(raw_resource_build!C:C, MATCH(J524, raw_resource_build!B:B, 0)))","v":""},null,{"$f":"raw_resource_build!B524","v":"NW_Nuclear"},"Non-wind",{"$f":"IFERROR(INDEX($E$5:$E$32,MATCH(raw_resource_build!$E524,Lists!$B$5:$B$32,0)),\"Non-CAISO\")","v":"Non-CAISO"},null,{"$f":"raw_annual_energy!C524","v":"Diablo_Canyon_Offshore_Wind"},{"$f":"INDEX(K:K,MATCH(R524,Lists!J:J,0))","v":"Offshore_Wind"},"In-State"]
[null,null,null,null,null,null,null,null,null,{"$f":"IFERROR(INDEX(raw_resource_build!$B$2:$B$1000,MATCH(0,COUNTIF($J$1:J524,raw_resource_build!$B$2:$B$1000), 0),0), \"\")","v":""},{"$f":"IF(J525=\"\", \"\", INDEX(raw_resource_build!E:E, MATCH(J525, raw_resource_build!B:B, 0)))","v":""},{"$f":"IF(J525=\"\", \"\", INDEX(raw_resource_build!C:C, MATCH(J525, raw_resource_build!B:B, 0)))","v":""},null,{"$f":"raw_resource_build!B525","v":"NW_Coal"},"Non-wind",{"$f":"IFERROR(INDEX($E$5:$E$32,MATCH(raw_resource_build!$E525,Lists!$B$5:$B$32,0)),\"Non-CAISO\")","v":"Non-CAISO"},null,{"$f":"raw_annual_energy!C525","v":"Diablo_Canyon_Offshore_Wind"},{"$f":"INDEX(K:K,MATCH(R525,Lists!J:J,0))","v":"Offshore_Wind"},"In-State"]
[null,null,null,null,null,null,null,null,null,{"$f":"IFERROR(INDEX(raw_resource_build!$B$2:$B$1000,MATCH(0,COUNTIF($J$1:J525,raw_resource_build!$B$2:$B$1000), 0),0), \"\")","v":""},{"$f":"IF(J526=\"\", \"\", INDEX(raw_resource_build!E:E, MATCH(J526, raw_resource_build!B:B, 0)))","v":""},{"$f":"IF(J526=\"\", \"\", INDEX(raw_resource_build!C:C, MATCH(J526, raw_resource_build!B:B, 0)))","v":""},null,{"$f":"raw_resource_build!B526","v":"NW_CCGT"},"Non-wind",{"$f":"IFERROR(INDEX($E$5:$E$32,MATCH(raw_resource_build!$E526,Lists!$B$5:$B$32,0)),\"Non-CAISO\")","v":"Non-CAISO"},null,{"$f":"raw_annual_energy!C526","v":"Diablo_Canyon_Offshore_Wind"},{"$f":"INDEX(K:K,MATCH(R526,Lists!J:J,0))","v":"Offshore_Wind"},"In-State"]
[null,null,null,null,null,null,null,null,null,{"$f":"IFERROR(INDEX(raw_resource_build!$B$2:$B$1000,MATCH(0,COUNTIF($J$1:J526,raw_resource_build!$B$2:$B$1000), 0),0), \"\")","v":""},{"$f":"IF(J527=\"\", \"\", INDEX(raw_resource_build!E:E, MATCH(J527, raw_resource_build!B:B, 0)))","v":""},{"$f":"IF(J527=\"\", \"\", INDEX(raw_resource_build!C:C, MATCH(J527, raw_resource_build!B:B, 0)))","v":""},null,{"$f":"raw_resource_build!B527","v":"NW_Peaker"},"Non-wind",{"$f":"IFERROR(INDEX($E$5:$E$32,MATCH(raw_resource_build!$E527,Lists!$B$5:$B$32,0)),\"Non-CAISO\")","v":"Non-CAISO"},null,{"$f":"raw_annual_energy!C527","v":"Diablo_Canyon_Offshore_Wind"},{"$f":"INDEX(K:K,MATCH(R527,Lists!J:J,0))","v":"Offshore_Wind"},"In-State"]
[null,null,null,null,null,null,null,null,null,{"$f":"IFERROR(INDEX(raw_resource_build!$B$2:$B$1000,MATCH(0,COUNTIF($J$1:J527,raw_resource_build!$B$2:$B$1000), 0),0), \"\")","v":""},{"$f":"IF(J528=\"\", \"\", INDEX(raw_resource_build!E:E, MATCH(J528, raw_resource_build!B:B, 0)))","v":""},{"$f":"IF(J528=\"\", \"\", INDEX(raw_resource_build!C:C, MATCH(J528, raw_resource_build!B:B, 0)))","v":""},null,{"$f":"raw_resource_build!B528","v":"SW_Nuclear"},"Non-wind",{"$f":"IFERROR(INDEX($E$5:$E$32,MATCH(raw_resource_build!$E528,Lists!$B$5:$B$32,0)),\"Non-CAISO\")","v":"Non-CAISO"},null,{"$f":"raw_annual_energy!C528","v":"Diablo_Canyon_Offshore_Wind"},{"$f":"INDEX(K:K,MATCH(R528,Lists!J:J,0))","v":"Offshore_Wind"},"In-State"]
[null,null,null,null,null,null,null,null,null,{"$f":"IFERROR(INDEX(raw_resource_build!$B$2:$B$1000,MATCH(0,COUNTIF($J$1:J528,raw_resource_build!$B$2:$B$1000), 0),0), \"\")","v":""},{"$f":"IF(J529=\"\", \"\", INDEX(raw_resource_build!E:E, MATCH(J529, raw_resource_build!B:B, 0)))","v":""},{"$f":"IF(J529=\"\", \"\", INDEX(raw_resource_build!C:C, MATCH(J529, raw_resource_build!B:B, 0)))","v":""},null,{"$f":"raw_resource_build!B529","v":"SW_Coal"},"Non-wind",{"$f":"IFERROR(INDEX($E$5:$E$32,MATCH(raw_resource_build!$E529,Lists!$B$5:$B$32,0)),\"Non-CAISO\")","v":"Non-CAISO"},null,{"$f":"raw_annual_energy!C529","v":"Diablo_Canyon_Offshore_Wind"},{"$f":"INDEX(K:K,MATCH(R529,Lists!J:J,0))","v":"Offshore_Wind"},"In-State"]
[null,null,null,null,null,null,null,null,null,{"$f":"IFERROR(INDEX(raw_resource_build!$B$2:$B$1000,MATCH(0,COUNTIF($J$1:J529,raw_resource_build!$B$2:$B$1000), 0),0), \"\")","v":""},{"$f":"IF(J530=\"\", \"\", INDEX(raw_resource_build!E:E, MATCH(J530, raw_resource_build!B:B, 0)))","v":""},{"$f":"IF(J530=\"\", \"\", INDEX(raw_resource_build!C:C, MATCH(J530, raw_resource_build!B:B, 0)))","v":""},null,{"$f":"raw_resource_build!B530","v":"SW_CCGT"},"Non-wind",{"$f":"IFERROR(INDEX($E$5:$E$32,MATCH(raw_resource_build!$E530,Lists!$B$5:$B$32,0)),\"Non-CAISO\")","v":"Non-CAISO"},null,{"$f":"raw_annual_energy!C530","v":"Diablo_Canyon_Offshore_Wind"},{"$f":"INDEX(K:K,MATCH(R530,Lists!J:J,0))","v":"Offshore_Wind"},"In-State"]
[null,null,null,null,null,null,null,null,null,{"$f":"IFERROR(INDEX(raw_resource_build!$B$2:$B$1000,MATCH(0,COUNTIF($J$1:J530,raw_resource_build!$B$2:$B$1000), 0),0), \"\")","v":""},{"$f":"IF(J531=\"\", \"\", INDEX(raw_resource_build!E:E, MATCH(J531, raw_resource_build!B:B, 0)))","v":""},{"$f":"IF(J531=\"\", \"\", INDEX(raw_resource_build!C:C, MATCH(J531, raw_resource_build!B:B, 0)))","v":""},null,{"$f":"raw_resource_build!B531","v":"SW_Peaker"},"Non-wind",{"$f":"IFERROR(INDEX($E$5:$E$32,MATCH(raw_resource_build!$E531,Lists!$B$5:$B$32,0)),\"Non-CAISO\")","v":"Non-CAISO"},null,{"$f":"raw_annual_energy!C531","v":"Diablo_Canyon_Offshore_Wind_Ext_Tx"},{"$f":"INDEX(K:K,MATCH(R531,Lists!J:J,0))","v":"Offshore_Wind"},"In-State"]
[null,null,null,null,null,null,null,null,null,{"$f":"IFERROR(INDEX(raw_resource_build!$B$2:$B$1000,MATCH(0,COUNTIF($J$1:J531,raw_resource_build!$B$2:$B$1000), 0),0), \"\")","v":""},{"$f":"IF(J532=\"\", \"\", INDEX(raw_resource_build!E:E, MATCH(J532, raw_resource_build!B:B, 0)))","v":""},{"$f":"IF(J532=\"\", \"\", INDEX(raw_resource_build!C:C, MATCH(J532, raw_resource_build!B:B, 0)))","v":""},null,{"$f":"raw_resource_build!B532","v":"SW_ST"},"Non-wind",{"$f":"IFERROR(INDEX($E$5:$E$32,MATCH(raw_resource_build!$E532,Lists!$B$5:$B$32,0)),\"Non-CAISO\")","v":"Non-CAISO"},null,{"$f":"raw_annual_energy!C532","v":"Diablo_Canyon_Offshore_Wind_Ext_Tx"},{"$f":"INDEX(K:K,MATCH(R532,Lists!J:J,0))","v":"Offshore_Wind"},"In-State"]
[null,null,null,null,null,null,null,null,null,{"$f":"IFERROR(INDEX(raw_resource_build!$B$2:$B$1000,MATCH(0,COUNTIF($J$1:J532,raw_resource_build!$B$2:$B$1000), 0),0), \"\")","v":""},{"$f":"IF(J533=\"\", \"\", INDEX(raw_resource_build!E:E, MATCH(J533, raw_resource_build!B:B, 0)))","v":""},{"$f":"IF(J533=\"\", \"\", INDEX(raw_resource_build!C:C, MATCH(J533, raw_resource_build!B:B, 0)))","v":""},null,{"$f":"raw_resource_build!B533","v":"LDWP_Nuclear"},"Non-wind",{"$f":"IFERROR(INDEX($E$5:$E$32,MATCH(raw_resource_build!$E533,Lists!$B$5:$B$32,0)),\"Non-CAISO\")","v":"Non-CAISO"},null,{"$f":"raw_annual_energy!C533","v":"Diablo_Canyon_Offshore_Wind_Ext_Tx"},{"$f":"INDEX(K:K,MATCH(R533,Lists!J:J,0))","v":"Offshore_Wind"},"In-State"]
[null,null,null,null,null,null,null,null,null,{"$f":"IFERROR(INDEX(raw_resource_build!$B$2:$B$1000,MATCH(0,COUNTIF($J$1:J533,raw_resource_build!$B$2:$B$1000), 0),0), \"\")","v":""},{"$f":"IF(J534=\"\", \"\", INDEX(raw_resource_build!E:E, MATCH(J534, raw_resource_build!B:B, 0)))","v":""},{"$f":"IF(J534=\"\", \"\", INDEX(raw_resource_build!C:C, MATCH(J534, raw_resource_build!B:B, 0)))","v":""},null,{"$f":"raw_resource_build!B534","v":"LDWP_Coal"},"Non-wind",{"$f":"IFERROR(INDEX($E$5:$E$32,MATCH(raw_resource_build!$E534,Lists!$B$5:$B$32,0)),\"Non-CAISO\")","v":"Non-CAISO"},null,{"$f":"raw_annual_energy!C534","v":"Diablo_Canyon_Offshore_Wind_Ext_Tx"},{"$f":"INDEX(K:K,MATCH(R534,Lists!J:J,0))","v":"Offshore_Wind"},"In-State"]
[null,null,null,null,null,null,null,null,null,{"$f":"IFERROR(INDEX(raw_resource_build!$B$2:$B$1000,MATCH(0,COUNTIF($J$1:J534,raw_resource_build!$B$2:$B$1000), 0),0), \"\")","v":""},{"$f":"IF(J535=\"\", \"\", INDEX(raw_resource_build!E:E, MATCH(J535, raw_resource_build!B:B, 0)))","v":""},{"$f":"IF(J535=\"\", \"\", INDEX(raw_resource_build!C:C, MATCH(J535, raw_resource_build!B:B, 0)))","v":""},null,{"$f":"raw_resource_build!B535","v":"LDWP_CCGT"},"Non-wind",{"$f":"IFERROR(INDEX($E$5:$E$32,MATCH(raw_resource_build!$E535,Lists!$B$5:$B$32,0)),\"Non-CAISO\")","v":"Non-CAISO"},null,{"$f":"raw_annual_energy!C535","v":"Diablo_Canyon_Offshore_Wind_Ext_Tx"},{"$f":"INDEX(K:K,MATCH(R535,Lists!J:J,0))","v":"Offshore_Wind"},"In-State"]
[null,null,null,null,null,null,null,null,null,{"$f":"IFERROR(INDEX(raw_resource_build!$B$2:$B$1000,MATCH(0,COUNTIF($J$1:J535,raw_resource_build!$B$2:$B$1000), 0),0), \"\")","v":""},{"$f":"IF(J536=\"\", \"\", INDEX(raw_resource_build!E:E, MATCH(J536, raw_resource_build!B:B, 0)))","v":""},{"$f":"IF(J536=\"\", \"\", INDEX(raw_resource_build!C:C, MATCH(J536, raw_resource_build!B:B, 0)))","v":""},null,{"$f":"raw_resource_build!B536","v":"LDWP_Peaker"},"Non-wind",{"$f":"IFERROR(INDEX($E$5:$E$32,MATCH(raw_resource_build!$E536,Lists!$B$5:$B$32,0)),\"Non-CAISO\")","v":"Non-CAISO"},null,{"$f":"raw_annual_energy!C536","v":"Diablo_Canyon_Offshore_Wind_Ext_Tx"},{"$f":"INDEX(K:K,MATCH(R536,Lists!J:J,0))","v":"Offshore_Wind"},"In-State"]
[null,null,null,null,null,null,null,null,null,{"$f":"IFERROR(INDEX(raw_resource_build!$B$2:$B$1000,MATCH(0,COUNTIF($J$1:J536,raw_resource_build!$B$2:$B$1000), 0),0), \"\")","v":""},{"$f":"IF(J537=\"\", \"\", INDEX(raw_resource_build!E:E, MATCH(J537, raw_resource_build!B:B, 0)))","v":""},{"$f":"IF(J537=\"\", \"\", INDEX(raw_resource_build!C:C, MATCH(J537, raw_resource_build!B:B, 0)))","v":""},null,{"$f":"raw_resource_build!B537","v":"LDWP_ST"},"Non-wind",{"$f":"IFERROR(INDEX($E$5:$E$32,MATCH(raw_resource_build!$E537,Lists!$B$5:$B$32,0)),\"Non-CAISO\")","v":"Non-CAISO"},null,{"$f":"raw_annual_energy!C537","v":"Diablo_Canyon_Offshore_Wind_Ext_Tx"},{"$f":"INDEX(K:K,MATCH(R537,Lists!J:J,0))","v":"Offshore_Wind"},"In-State"]
[null,null,null,null,null,null,null,null,null,{"$f":"IFERROR(INDEX(raw_resource_build!$B$2:$B$1000,MATCH(0,COUNTIF($J$1:J537,raw_resource_build!$B$2:$B$1000), 0),0), \"\")","v":""},{"$f":"IF(J538=\"\", \"\", INDEX(raw_resource_build!E:E, MATCH(J538, raw_resource_build!B:B, 0)))","v":""},{"$f":"IF(J538=\"\", \"\", INDEX(raw_resource_build!C:C, MATCH(J538, raw_resource_build!B:B, 0)))","v":""},null,{"$f":"raw_resource_build!B538","v":"IID_CCGT"},"Non-wind",{"$f":"IFERROR(INDEX($E$5:$E$32,MATCH(raw_resource_build!$E538,Lists!$B$5:$B$32,0)),\"Non-CAISO\")","v":"Non-CAISO"},null,{"$f":"raw_annual_energy!C538","v":"Diablo_Canyon_Offshore_Wind_Ext_Tx"},{"$f":"INDEX(K:K,MATCH(R538,Lists!J:J,0))","v":"Offshore_Wind"},"In-State"]
[null,null,null,null,null,null,null,null,null,{"$f":"IFERROR(INDEX(raw_resource_build!$B$2:$B$1000,MATCH(0,COUNTIF($J$1:J538,raw_resource_build!$B$2:$B$1000), 0),0), \"\")","v":""},{"$f":"IF(J539=\"\", \"\", INDEX(raw_resource_build!E:E, MATCH(J539, raw_resource_build!B:B, 0)))","v":""},{"$f":"IF(J539=\"\", \"\", INDEX(raw_resource_build!C:C, MATCH(J539, raw_resource_build!B:B, 0)))","v":""},null,{"$f":"raw_resource_build!B539","v":"IID_Peaker"},"Non-wind",{"$f":"IFERROR(INDEX($E$5:$E$32,MATCH(raw_resource_build!$E539,Lists!$B$5:$B$32,0)),\"Non-CAISO\")","v":"Non-CAISO"},null,{"$f":"raw_annual_energy!C539","v":"Distributed_Solar"},{"$f":"INDEX(K:K,MATCH(R539,Lists!J:J,0))","v":"Solar"},"In-State"]
[null,null,null,null,null,null,null,null,null,{"$f":"IFERROR(INDEX(raw_resource_build!$B$2:$B$1000,MATCH(0,COUNTIF($J$1:J539,raw_resource_build!$B$2:$B$1000), 0),0), \"\")","v":""},{"$f":"IF(J540=\"\", \"\", INDEX(raw_resource_build!E:E, MATCH(J540, raw_resource_build!B:B, 0)))","v":""},{"$f":"IF(J540=\"\", \"\", INDEX(raw_resource_build!C:C, MATCH(J540, raw_resource_build!B:B, 0)))","v":""},null,{"$f":"raw_resource_build!B540","v":"BANC_CCGT"},"Non-wind",{"$f":"IFERROR(INDEX($E$5:$E$32,MATCH(raw_resource_build!$E540,Lists!$B$5:$B$32,0)),\"Non-CAISO\")","v":"Non-CAISO"},null,{"$f":"raw_annual_energy!C540","v":"Distributed_Solar"},{"$f":"INDEX(K:K,MATCH(R540,Lists!J:J,0))","v":"Solar"},"In-State"]
[null,null,null,null,null,null,null,null,null,{"$f":"IFERROR(INDEX(raw_resource_build!$B$2:$B$1000,MATCH(0,COUNTIF($J$1:J540,raw_resource_build!$B$2:$B$1000), 0),0), \"\")","v":""},{"$f":"IF(J541=\"\", \"\", INDEX(raw_resource_build!E:E, MATCH(J541, raw_resource_build!B:B, 0)))","v":""},{"$f":"IF(J541=\"\", \"\", INDEX(raw_resource_build!C:C, MATCH(J541, raw_resource_build!B:B, 0)))","v":""},null,{"$f":"raw_resource_build!B541","v":"BANC_Peaker"},"Non-wind",{"$f":"IFERROR(INDEX($E$5:$E$32,MATCH(raw_resource_build!$E541,Lists!$B$5:$B$32,0)),\"Non-CAISO\")","v":"Non-CAISO"},null,{"$f":"raw_annual_energy!C541","v":"Distributed_Solar"},{"$f":"INDEX(K:K,MATCH(R541,Lists!J:J,0))","v":"Solar"},"In-State"]
[null,null,null,null,null,null,null,null,null,{"$f":"IFERROR(INDEX(raw_resource_build!$B$2:$B$1000,MATCH(0,COUNTIF($J$1:J541,raw_resource_build!$B$2:$B$1000), 0),0), \"\")","v":""},{"$f":"IF(J542=\"\", \"\", INDEX(raw_resource_build!E:E, MATCH(J542, raw_resource_build!B:B, 0)))","v":""},{"$f":"IF(J542=\"\", \"\", INDEX(raw_resource_build!C:C, MATCH(J542, raw_resource_build!B:B, 0)))","v":""},null,{"$f":"raw_resource_build!B542","v":"BANC_Biomass_for_Other"},"Non-wind",{"$f":"IFERROR(INDEX($E$5:$E$32,MATCH(raw_resource_build!$E542,Lists!$B$5:$B$32,0)),\"Non-CAISO\")","v":"Biomass"},null,{"$f":"raw_annual_energy!C542","v":"Distributed_Solar"},{"$f":"INDEX(K:K,MATCH(R542,Lists!J:J,0))","v":"Solar"},"In-State"]
[null,null,null,null,null,null,null,null,null,{"$f":"IFERROR(INDEX(raw_resource_build!$B$2:$B$1000,MATCH(0,COUNTIF($J$1:J542,raw_resource_build!$B$2:$B$1000), 0),0), \"\")","v":""},{"$f":"IF(J543=\"\", \"\", INDEX(raw_resource_build!E:E, MATCH(J543, raw_resource_build!B:B, 0)))","v":""},{"$f":"IF(J543=\"\", \"\", INDEX(raw_resource_build!C:C, MATCH(J543, raw_resource_build!B:B, 0)))","v":""},null,{"$f":"raw_resource_build!B543","v":"BANC_Geothermal_for_Other"},"Non-wind",{"$f":"IFERROR(INDEX($E$5:$E$32,MATCH(raw_resource_build!$E543,Lists!$B$5:$B$32,0)),\"Non-CAISO\")","v":"Geothermal"},null,{"$f":"raw_annual_energy!C543","v":"Distributed_Solar"},{"$f":"INDEX(K:K,MATCH(R543,Lists!J:J,0))","v":"Solar"},"In-State"]
[null,null,null,null,null,null,null,null,null,{"$f":"IFERROR(INDEX(raw_resource_build!$B$2:$B$1000,MATCH(0,COUNTIF($J$1:J543,raw_resource_build!$B$2:$B$1000), 0),0), \"\")","v":""},{"$f":"IF(J544=\"\", \"\", INDEX(raw_resource_build!E:E, MATCH(J544, raw_resource_build!B:B, 0)))","v":""},{"$f":"IF(J544=\"\", \"\", INDEX(raw_resource_build!C:C, MATCH(J544, raw_resource_build!B:B, 0)))","v":""},null,{"$f":"raw_resource_build!B544","v":"CAISO_Biomass_for_Other"},"Non-wind",{"$f":"IFERROR(INDEX($E$5:$E$32,MATCH(raw_resource_build!$E544,Lists!$B$5:$B$32,0)),\"Non-CAISO\")","v":"Biomass"},null,{"$f":"raw_annual_energy!C544","v":"Distributed_Solar"},{"$f":"INDEX(K:K,MATCH(R544,Lists!J:J,0))","v":"Solar"},"In-State"]
[null,null,null,null,null,null,null,null,null,{"$f":"IFERROR(INDEX(raw_resource_build!$B$2:$B$1000,MATCH(0,COUNTIF($J$1:J544,raw_resource_build!$B$2:$B$1000), 0),0), \"\")","v":""},{"$f":"IF(J545=\"\", \"\", INDEX(raw_resource_build!E:E, MATCH(J545, raw_resource_build!B:B, 0)))","v":""},{"$f":"IF(J545=\"\", \"\", INDEX(raw_resource_build!C:C, MATCH(J545, raw_resource_build!B:B, 0)))","v":""},null,{"$f":"raw_resource_build!B545","v":"CAISO_Geothermal_for_Other"},"Non-wind",{"$f":"IFERROR(INDEX($E$5:$E$32,MATCH(raw_resource_build!$E545,Lists!$B$5:$B$32,0)),\"Non-CAISO\")","v":"Geothermal"},null,{"$f":"raw_annual_energy!C545","v":"Distributed_Solar"},{"$f":"INDEX(K:K,MATCH(R545,Lists!J:J,0))","v":"Solar"},"In-State"]
[null,null,null,null,null,null,null,null,null,{"$f":"IFERROR(INDEX(raw_resource_build!$B$2:$B$1000,MATCH(0,COUNTIF($J$1:J545,raw_resource_build!$B$2:$B$1000), 0),0), \"\")","v":""},{"$f":"IF(J546=\"\", \"\", INDEX(raw_resource_build!E:E, MATCH(J546, raw_resource_build!B:B, 0)))","v":""},{"$f":"IF(J546=\"\", \"\", INDEX(raw_resource_build!C:C, MATCH(J546, raw_resource_build!B:B, 0)))","v":""},null,{"$f":"raw_resource_build!B546","v":"IID_Biomass_for_Other"},"Non-wind",{"$f":"IFERROR(INDEX($E$5:$E$32,MATCH(raw_resource_build!$E546,Lists!$B$5:$B$32,0)),\"Non-CAISO\")","v":"Biomass"},null,{"$f":"raw_annual_energy!C546","v":"Distributed_Solar"},{"$f":"INDEX(K:K,MATCH(R546,Lists!J:J,0))","v":"Solar"},"In-State"]
[null,null,null,null,null,null,null,null,null,{"$f":"IFERROR(INDEX(raw_resource_build!$B$2:$B$1000,MATCH(0,COUNTIF($J$1:J546,raw_resource_build!$B$2:$B$1000), 0),0), \"\")","v":""},{"$f":"IF(J547=\"\", \"\", INDEX(raw_resource_build!E:E, MATCH(J547, raw_resource_build!B:B, 0)))","v":""},{"$f":"IF(J547=\"\", \"\", INDEX(raw_resource_build!C:C, MATCH(J547, raw_resource_build!B:B, 0)))","v":""},null,{"$f":"raw_resource_build!B547","v":"IID_Geothermal_for_Other"},"Non-wind",{"$f":"IFERROR(INDEX($E$5:$E$32,MATCH(raw_resource_build!$E547,Lists!$B$5:$B$32,0)),\"Non-CAISO\")","v":"Geothermal"},null,{"$f":"raw_annual_energy!C547","v":"EV_Charging"},{"$f":"INDEX(K:K,MATCH(R547,Lists!J:J,0))","v":{"$error":"#N/A"}},"Non-wind"]
[null,null,null,null,null,null,null,null,null,{"$f":"IFERROR(INDEX(raw_resource_build!$B$2:$B$1000,MATCH(0,COUNTIF($J$1:J547,raw_resource_build!$B$2:$B$1000), 0),0), \"\")","v":""},{"$f":"IF(J548=\"\", \"\", INDEX(raw_resource_build!E:E, MATCH(J548, raw_resource_build!B:B, 0)))","v":""},{"$f":"IF(J548=\"\", \"\", INDEX(raw_resource_build!C:C, MATCH(J548, raw_resource_build!B:B, 0)))","v":""},null,{"$f":"raw_resource_build!B548","v":"LDWP_Biomass_for_Other"},"Non-wind",{"$f":"IFERROR(INDEX($E$5:$E$32,MATCH(raw_resource_build!$E548,Lists!$B$5:$B$32,0)),\"Non-CAISO\")","v":"Biomass"},null,{"$f":"raw_annual_energy!C548","v":"EV_Charging"},{"$f":"INDEX(K:K,MATCH(R548,Lists!J:J,0))","v":{"$error":"#N/A"}},"Non-wind"]
[null,null,null,null,null,null,null,null,null,{"$f":"IFERROR(INDEX(raw_resource_build!$B$2:$B$1000,MATCH(0,COUNTIF($J$1:J548,raw_resource_build!$B$2:$B$1000), 0),0), \"\")","v":""},{"$f":"IF(J549=\"\", \"\", INDEX(raw_resource_build!E:E, MATCH(J549, raw_resource_build!B:B, 0)))","v":""},{"$f":"IF(J549=\"\", \"\", INDEX(raw_resource_build!C:C, MATCH(J549, raw_resource_build!B:B, 0)))","v":""},null,{"$f":"raw_resource_build!B549","v":"LDWP_Geothermal_for_Other"},"Non-wind",{"$f":"IFERROR(INDEX($E$5:$E$32,MATCH(raw_resource_build!$E549,Lists!$B$5:$B$32,0)),\"Non-CAISO\")","v":"Geothermal"},null,{"$f":"raw_annual_energy!C549","v":"EV_Charging"},{"$f":"INDEX(K:K,MATCH(R549,Lists!J:J,0))","v":{"$error":"#N/A"}},"Non-wind"]
[null,null,null,null,null,null,null,null,null,{"$f":"IFERROR(INDEX(raw_resource_build!$B$2:$B$1000,MATCH(0,COUNTIF($J$1:J549,raw_resource_build!$B$2:$B$1000), 0),0), \"\")","v":""},{"$f":"IF(J550=\"\", \"\", INDEX(raw_resource_build!E:E, MATCH(J550, raw_resource_build!B:B, 0)))","v":""},{"$f":"IF(J550=\"\", \"\", INDEX(raw_resource_build!C:C, MATCH(J550, raw_resource_build!B:B, 0)))","v":""},null,{"$f":"raw_resource_build!B550","v":"NW_Biomass_for_Other"},"Non-wind",{"$f":"IFERROR(INDEX($E$5:$E$32,MATCH(raw_resource_build!$E550,Lists!$B$5:$B$32,0)),\"Non-CAISO\")","v":"Biomass"},null,{"$f":"raw_annual_energy!C550","v":"EV_Charging"},{"$f":"INDEX(K:K,MATCH(R550,Lists!J:J,0))","v":{"$error":"#N/A"}},"Non-wind"]
[null,null,null,null,null,null,null,null,null,{"$f":"IFERROR(INDEX(raw_resource_build!$B$2:$B$1000,MATCH(0,COUNTIF($J$1:J550,raw_resource_build!$B$2:$B$1000), 0),0), \"\")","v":""},{"$f":"IF(J551=\"\", \"\", INDEX(raw_resource_build!E:E, MATCH(J551, raw_resource_build!B:B, 0)))","v":""},{"$f":"IF(J551=\"\", \"\", INDEX(raw_resource_build!C:C, MATCH(J551, raw_resource_build!B:B, 0)))","v":""},null,{"$f":"raw_resource_build!B551","v":"NW_Geothermal_for_Other"},"Non-wind",{"$f":"IFERROR(INDEX($E$5:$E$32,MATCH(raw_resource_build!$E551,Lists!$B$5:$B$32,0)),\"Non-CAISO\")","v":"Geothermal"},null,{"$f":"raw_annual_energy!C551","v":"EV_Charging"},{"$f":"INDEX(K:K,MATCH(R551,Lists!J:J,0))","v":{"$error":"#N/A"}},"Non-wind"]
[null,null,null,null,null,null,null,null,null,{"$f":"IFERROR(INDEX(raw_resource_build!$B$2:$B$1000,MATCH(0,COUNTIF($J$1:J551,raw_resource_build!$B$2:$B$1000), 0),0), \"\")","v":""},{"$f":"IF(J552=\"\", \"\", INDEX(raw_resource_build!E:E, MATCH(J552, raw_resource_build!B:B, 0)))","v":""},{"$f":"IF(J552=\"\", \"\", INDEX(raw_resource_build!C:C, MATCH(J552, raw_resource_build!B:B, 0)))","v":""},null,{"$f":"raw_resource_build!B552","v":"SW_Biomass_for_Other"},"Non-wind",{"$f":"IFERROR(INDEX($E$5:$E$32,MATCH(raw_resource_build!$E552,Lists!$B$5:$B$32,0)),\"Non-CAISO\")","v":"Biomass"},null,{"$f":"raw_annual_energy!C552","v":"EV_Charging"},{"$f":"INDEX(K:K,MATCH(R552,Lists!J:J,0))","v":{"$error":"#N/A"}},"Non-wind"]
[null,null,null,null,null,null,null,null,null,{"$f":"IFERROR(INDEX(raw_resource_build!$B$2:$B$1000,MATCH(0,COUNTIF($J$1:J552,raw_resource_build!$B$2:$B$1000), 0),0), \"\")","v":""},{"$f":"IF(J553=\"\", \"\", INDEX(raw_resource_build!E:E, MATCH(J553, raw_resource_build!B:B, 0)))","v":""},{"$f":"IF(J553=\"\", \"\", INDEX(raw_resource_build!C:C, MATCH(J553, raw_resource_build!B:B, 0)))","v":""},null,{"$f":"raw_resource_build!B553","v":"SW_Geothermal_for_Other"},"Non-wind",{"$f":"IFERROR(INDEX($E$5:$E$32,MATCH(raw_resource_build!$E553,Lists!$B$5:$B$32,0)),\"Non-CAISO\")","v":"Geothermal"},null,{"$f":"raw_annual_energy!C553","v":"EV_Charging"},{"$f":"INDEX(K:K,MATCH(R553,Lists!J:J,0))","v":{"$error":"#N/A"}},"Non-wind"]
[null,null,null,null,null,null,null,null,null,{"$f":"IFERROR(INDEX(raw_resource_build!$B$2:$B$1000,MATCH(0,COUNTIF($J$1:J553,raw_resource_build!$B$2:$B$1000), 0),0), \"\")","v":""},{"$f":"IF(J554=\"\", \"\", INDEX(raw_resource_build!E:E, MATCH(J554, raw_resource_build!B:B, 0)))","v":""},{"$f":"IF(J554=\"\", \"\", INDEX(raw_resource_build!C:C, MATCH(J554, raw_resource_build!B:B, 0)))","v":""},null,{"$f":"raw_resource_build!B554","v":"CAISO_Biomass_for_CAISO"},"Non-wind",{"$f":"IFERROR(INDEX($E$5:$E$32,MATCH(raw_resource_build!$E554,Lists!$B$5:$B$32,0)),\"Non-CAISO\")","v":"Biomass"},null,{"$f":"raw_annual_energy!C554","v":"EV_Charging"},{"$f":"INDEX(K:K,MATCH(R554,Lists!J:J,0))","v":{"$error":"#N/A"}},"Non-wind"]
[null,null,null,null,null,null,null,null,null,{"$f":"IFERROR(INDEX(raw_resource_build!$B$2:$B$1000,MATCH(0,COUNTIF($J$1:J554,raw_resource_build!$B$2:$B$1000), 0),0), \"\")","v":""},{"$f":"IF(J555=\"\", \"\", INDEX(raw_resource_build!E:E, MATCH(J555, raw_resource_build!B:B, 0)))","v":""},{"$f":"IF(J555=\"\", \"\", INDEX(raw_resource_build!C:C, MATCH(J555, raw_resource_build!B:B, 0)))","v":""},null,{"$f":"raw_resource_build!B555","v":"CAISO_Geothermal_for_CAISO"},"Non-wind",{"$f":"IFERROR(INDEX($E$5:$E$32,MATCH(raw_resource_build!$E555,Lists!$B$5:$B$32,0)),\"Non-CAISO\")","v":"Geothermal"},null,{"$f":"raw_annual_energy!C555","v":"Greater_Imperial_Geothermal"},{"$f":"INDEX(K:K,MATCH(R555,Lists!J:J,0))","v":"Geothermal"},"In-State"]
[null,null,null,null,null,null,null,null,null,{"$f":"IFERROR(INDEX(raw_resource_build!$B$2:$B$1000,MATCH(0,COUNTIF($J$1:J555,raw_resource_build!$B$2:$B$1000), 0),0), \"\")","v":""},{"$f":"IF(J556=\"\", \"\", INDEX(raw_resource_build!E:E, MATCH(J556, raw_resource_build!B:B, 0)))","v":""},{"$f":"IF(J556=\"\", \"\", INDEX(raw_resource_build!C:C, MATCH(J556, raw_resource_build!B:B, 0)))","v":""},null,{"$f":"raw_resource_build!B556","v":"IID_Geothermal_for_CAISO"},"Non-wind",{"$f":"IFERROR(INDEX($E$5:$E$32,MATCH(raw_resource_build!$E556,Lists!$B$5:$B$32,0)),\"Non-CAISO\")","v":"Geothermal"},null,{"$f":"raw_annual_energy!C556","v":"Greater_Imperial_Geothermal"},{"$f":"INDEX(K:K,MATCH(R556,Lists!J:J,0))","v":"Geothermal"},"In-State"]
[null,null,null,null,null,null,null,null,null,{"$f":"IFERROR(INDEX(raw_resource_build!$B$2:$B$1000,MATCH(0,COUNTIF($J$1:J556,raw_resource_build!$B$2:$B$1000), 0),0), \"\")","v":""},{"$f":"IF(J557=\"\", \"\", INDEX(raw_resource_build!E:E, MATCH(J557, raw_resource_build!B:B, 0)))","v":""},{"$f":"IF(J557=\"\", \"\", INDEX(raw_resource_build!C:C, MATCH(J557, raw_resource_build!B:B, 0)))","v":""},null,{"$f":"raw_resource_build!B557","v":"NW_Biomass_for_CAISO"},"Non-wind",{"$f":"IFERROR(INDEX($E$5:$E$32,MATCH(raw_resource_build!$E557,Lists!$B$5:$B$32,0)),\"Non-CAISO\")","v":"Biomass"},null,{"$f":"raw_annual_energy!C557","v":"Greater_Imperial_Geothermal"},{"$f":"INDEX(K:K,MATCH(R557,Lists!J:J,0))","v":"Geothermal"},"In-State"]
[null,null,null,null,null,null,null,null,null,{"$f":"IFERROR(INDEX(raw_resource_build!$B$2:$B$1000,MATCH(0,COUNTIF($J$1:J557,raw_resource_build!$B$2:$B$1000), 0),0), \"\")","v":""},{"$f":"IF(J558=\"\", \"\", INDEX(raw_resource_build!E:E, MATCH(J558, raw_resource_build!B:B, 0)))","v":""},{"$f":"IF(J558=\"\", \"\", INDEX(raw_resource_build!C:C, MATCH(J558, raw_resource_build!B:B, 0)))","v":""},null,{"$f":"raw_resource_build!B558","v":"NW_Geothermal_for_CAISO"},"Non-wind",{"$f":"IFERROR(INDEX($E$5:$E$32,MATCH(raw_resource_build!$E558,Lists!$B$5:$B$32,0)),\"Non-CAISO\")","v":"Geothermal"},null,{"$f":"raw_annual_energy!C558","v":"Greater_Imperial_Geothermal"},{"$f":"INDEX(K:K,MATCH(R558,Lists!J:J,0))","v":"Geothermal"},"In-State"]
[null,null,null,null,null,null,null,null,null,{"$f":"IFERROR(INDEX(raw_resource_build!$B$2:$B$1000,MATCH(0,COUNTIF($J$1:J558,raw_resource_build!$B$2:$B$1000), 0),0), \"\")","v":""},{"$f":"IF(J559=\"\", \"\", INDEX(raw_resource_build!E:E, MATCH(J559, raw_resource_build!B:B, 0)))","v":""},{"$f":"IF(J559=\"\", \"\", INDEX(raw_resource_build!C:C, MATCH(J559, raw_resource_build!B:B, 0)))","v":""},null,{"$f":"raw_resource_build!B559","v":"InState_Biomass"},"In-State",{"$f":"IFERROR(INDEX($E$5:$E$32,MATCH(raw_resource_build!$E559,Lists!$B$5:$B$32,0)),\"Non-CAISO\")","v":"Biomass"},null,{"$f":"raw_annual_energy!C559","v":"Greater_Imperial_Geothermal"},{"$f":"INDEX(K:K,MATCH(R559,Lists!J:J,0))","v":"Geothermal"},"In-State"]
[null,null,null,null,null,null,null,null,null,{"$f":"IFERROR(INDEX(raw_resource_build!$B$2:$B$1000,MATCH(0,COUNTIF($J$1:J559,raw_resource_build!$B$2:$B$1000), 0),0), \"\")","v":""},{"$f":"IF(J560=\"\", \"\", INDEX(raw_resource_build!E:E, MATCH(J560, raw_resource_build!B:B, 0)))","v":""},{"$f":"IF(J560=\"\", \"\", INDEX(raw_resource_build!C:C, MATCH(J560, raw_resource_build!B:B, 0)))","v":""},null,{"$f":"raw_resource_build!B560","v":"CAISO_Small_Hydro_for_CAISO"},"Non-wind",{"$f":"IFERROR(INDEX($E$5:$E$32,MATCH(raw_resource_build!$E560,Lists!$B$5:$B$32,0)),\"Non-CAISO\")","v":"Hydro (small + large)"},null,{"$f":"raw_annual_energy!C560","v":"Greater_Imperial_Geothermal"},{"$f":"INDEX(K:K,MATCH(R560,Lists!J:J,0))","v":"Geothermal"},"In-State"]
[null,null,null,null,null,null,null,null,null,{"$f":"IFERROR(INDEX(raw_resource_build!$B$2:$B$1000,MATCH(0,COUNTIF($J$1:J560,raw_resource_build!$B$2:$B$1000), 0),0), \"\")","v":""},{"$f":"IF(J561=\"\", \"\", INDEX(raw_resource_build!E:E, MATCH(J561, raw_resource_build!B:B, 0)))","v":""},{"$f":"IF(J561=\"\", \"\", INDEX(raw_resource_build!C:C, MATCH(J561, raw_resource_build!B:B, 0)))","v":""},null,{"$f":"raw_resource_build!B561","v":"BANC_Small_Hydro_for_CAISO"},"Non-wind",{"$f":"IFERROR(INDEX($E$5:$E$32,MATCH(raw_resource_build!$E561,Lists!$B$5:$B$32,0)),\"Non-CAISO\")","v":"Hydro (small + large)"},null,{"$f":"raw_annual_energy!C561","v":"Greater_Imperial_Geothermal"},{"$f":"INDEX(K:K,MATCH(R561,Lists!J:J,0))","v":"Geothermal"},"In-State"]
[null,null,null,null,null,null,null,null,null,{"$f":"IFERROR(INDEX(raw_resource_build!$B$2:$B$1000,MATCH(0,COUNTIF($J$1:J561,raw_resource_build!$B$2:$B$1000), 0),0), \"\")","v":""},{"$f":"IF(J562=\"\", \"\", INDEX(raw_resource_build!E:E, MATCH(J562, raw_resource_build!B:B, 0)))","v":""},{"$f":"IF(J562=\"\", \"\", INDEX(raw_resource_build!C:C, MATCH(J562, raw_resource_build!B:B, 0)))","v":""},null,{"$f":"raw_resource_build!B562","v":"NW_Small_Hydro_for_CAISO"},"Non-wind",{"$f":"IFERROR(INDEX($E$5:$E$32,MATCH(raw_resource_build!$E562,Lists!$B$5:$B$32,0)),\"Non-CAISO\")","v":"Hydro (small + large)"},null,{"$f":"raw_annual_energy!C562","v":"Greater_Imperial_Geothermal"},{"$f":"INDEX(K:K,MATCH(R562,Lists!J:J,0))","v":"Geothermal"},"In-State"]
[null,null,null,null,null,null,null,null,null,{"$f":"IFERROR(INDEX(raw_resource_build!$B$2:$B$1000,MATCH(0,COUNTIF($J$1:J562,raw_resource_build!$B$2:$B$1000), 0),0), \"\")","v":""},{"$f":"IF(J563=\"\", \"\", INDEX(raw_resource_build!E:E, MATCH(J563, raw_resource_build!B:B, 0)))","v":""},{"$f":"IF(J563=\"\", \"\", INDEX(raw_resource_build!C:C, MATCH(J563, raw_resource_build!B:B, 0)))","v":""},null,{"$f":"raw_resource_build!B563","v":"CAISO_Small_Hydro_for_Other"},"Non-wind",{"$f":"IFERROR(INDEX($E$5:$E$32,MATCH(raw_resource_build!$E563,Lists!$B$5:$B$32,0)),\"Non-CAISO\")","v":"Hydro (small + large)"},null,{"$f":"raw_annual_energy!C563","v":"Greater_Imperial_Solar"},{"$f":"INDEX(K:K,MATCH(R563,Lists!J:J,0))","v":"Solar"},"In-State"]
[null,null,null,null,null,null,null,null,null,{"$f":"IFERROR(INDEX(raw_resource_build!$B$2:$B$1000,MATCH(0,COUNTIF($J$1:J563,raw_resource_build!$B$2:$B$1000), 0),0), \"\")","v":""},{"$f":"IF(J564=\"\", \"\", INDEX(raw_resource_build!E:E, MATCH(J564, raw_resource_build!B:B, 0)))","v":""},{"$f":"IF(J564=\"\", \"\", INDEX(raw_resource_build!C:C, MATCH(J564, raw_resource_build!B:B, 0)))","v":""},null,{"$f":"raw_resource_build!B564","v":"BANC_Small_Hydro_for_Other"},"Non-wind",{"$f":"IFERROR(INDEX($E$5:$E$32,MATCH(raw_resource_build!$E564,Lists!$B$5:$B$32,0)),\"Non-CAISO\")","v":"Hydro (small + large)"},null,{"$f":"raw_annual_energy!C564","v":"Greater_Imperial_Solar"},{"$f":"INDEX(K:K,MATCH(R564,Lists!J:J,0))","v":"Solar"},"In-State"]
[null,null,null,null,null,null,null,null,null,{"$f":"IFERROR(INDEX(raw_resource_build!$B$2:$B$1000,MATCH(0,COUNTIF($J$1:J564,raw_resource_build!$B$2:$B$1000), 0),0), \"\")","v":""},{"$f":"IF(J565=\"\", \"\", INDEX(raw_resource_build!E:E, MATCH(J565, raw_resource_build!B:B, 0)))","v":""},{"$f":"IF(J565=\"\", \"\", INDEX(raw_resource_build!C:C, MATCH(J565, raw_resource_build!B:B, 0)))","v":""},null,{"$f":"raw_resource_build!B565","v":"IID_Small_Hydro_for_Other"},"Non-wind",{"$f":"IFERROR(INDEX($E$5:$E$32,MATCH(raw_resource_build!$E565,Lists!$B$5:$B$32,0)),\"Non-CAISO\")","v":"Hydro (small + large)"},null,{"$f":"raw_annual_energy!C565","v":"Greater_Imperial_Solar"},{"$f":"INDEX(K:K,MATCH(R565,Lists!J:J,0))","v":"Solar"},"In-State"]
[null,null,null,null,null,null,null,null,null,{"$f":"IFERROR(INDEX(raw_resource_build!$B$2:$B$1000,MATCH(0,COUNTIF($J$1:J565,raw_resource_build!$B$2:$B$1000), 0),0), \"\")","v":""},{"$f":"IF(J566=\"\", \"\", INDEX(raw_resource_build!E:E, MATCH(J566, raw_resource_build!B:B, 0)))","v":""},{"$f":"IF(J566=\"\", \"\", INDEX(raw_resource_build!C:C, MATCH(J566, raw_resource_build!B:B, 0)))","v":""},null,{"$f":"raw_resource_build!B566","v":"LDWP_Small_Hydro_for_Other"},"Non-wind",{"$f":"IFERROR(INDEX($E$5:$E$32,MATCH(raw_resource_build!$E566,Lists!$B$5:$B$32,0)),\"Non-CAISO\")","v":"Hydro (small + large)"},null,{"$f":"raw_annual_energy!C566","v":"Greater_Imperial_Solar"},{"$f":"INDEX(K:K,MATCH(R566,Lists!J:J,0))","v":"Solar"},"In-State"]
[null,null,null,null,null,null,null,null,null,{"$f":"IFERROR(INDEX(raw_resource_build!$B$2:$B$1000,MATCH(0,COUNTIF($J$1:J566,raw_resource_build!$B$2:$B$1000), 0),0), \"\")","v":""},{"$f":"IF(J567=\"\", \"\", INDEX(raw_resource_build!E:E, MATCH(J567, raw_resource_build!B:B, 0)))","v":""},{"$f":"IF(J567=\"\", \"\", INDEX(raw_resource_build!C:C, MATCH(J567, raw_resource_build!B:B, 0)))","v":""},null,{"$f":"raw_resource_build!B567","v":"NW_Small_Hydro_for_Other"},"Non-wind",{"$f":"IFERROR(INDEX($E$5:$E$32,MATCH(raw_resource_build!$E567,Lists!$B$5:$B$32,0)),\"Non-CAISO\")","v":"Hydro (small + large)"},null,{"$f":"raw_annual_energy!C567","v":"Greater_Imperial_Solar"},{"$f":"INDEX(K:K,MATCH(R567,Lists!J:J,0))","v":"Solar"},"In-State"]
[null,null,null,null,null,null,null,null,null,{"$f":"IFERROR(INDEX(raw_resource_build!$B$2:$B$1000,MATCH(0,COUNTIF($J$1:J567,raw_resource_build!$B$2:$B$1000), 0),0), \"\")","v":""},{"$f":"IF(J568=\"\", \"\", INDEX(raw_resource_build!E:E, MATCH(J568, raw_resource_build!B:B, 0)))","v":""},{"$f":"IF(J568=\"\", \"\", INDEX(raw_resource_build!C:C, MATCH(J568, raw_resource_build!B:B, 0)))","v":""},null,{"$f":"raw_resource_build!B568","v":"SW_Small_Hydro_for_Other"},"Non-wind",{"$f":"IFERROR(INDEX($E$5:$E$32,MATCH(raw_resource_build!$E568,Lists!$B$5:$B$32,0)),\"Non-CAISO\")","v":"Hydro (small + large)"},null,{"$f":"raw_annual_energy!C568","v":"Greater_Imperial_Solar"},{"$f":"INDEX(K:K,MATCH(R568,Lists!J:J,0))","v":"Solar"},"In-State"]
[null,null,null,null,null,null,null,null,null,{"$f":"IFERROR(INDEX(raw_resource_build!$B$2:$B$1000,MATCH(0,COUNTIF($J$1:J568,raw_resource_build!$B$2:$B$1000), 0),0), \"\")","v":""},{"$f":"IF(J569=\"\", \"\", INDEX(raw_resource_build!E:E, MATCH(J569, raw_resource_build!B:B, 0)))","v":""},{"$f":"IF(J569=\"\", \"\", INDEX(raw_resource_build!C:C, MATCH(J569, raw_resource_build!B:B, 0)))","v":""},null,{"$f":"raw_resource_build!B569","v":"Greater_Imperial_Geothermal"},"In-State",{"$f":"IFERROR(INDEX($E$5:$E$32,MATCH(raw_resource_build!$E569,Lists!$B$5:$B$32,0)),\"Non-CAISO\")","v":"Geothermal"},null,{"$f":"raw_annual_energy!C569","v":"Greater_Imperial_Solar"},{"$f":"INDEX(K:K,MATCH(R569,Lists!J:J,0))","v":"Solar"},"In-State"]
[null,null,null,null,null,null,null,null,null,{"$f":"IFERROR(INDEX(raw_resource_build!$B$2:$B$1000,MATCH(0,COUNTIF($J$1:J569,raw_resource_build!$B$2:$B$1000), 0),0), \"\")","v":""},{"$f":"IF(J570=\"\", \"\", INDEX(raw_resource_build!E:E, MATCH(J570, raw_resource_build!B:B, 0)))","v":""},{"$f":"IF(J570=\"\", \"\", INDEX(raw_resource_build!C:C, MATCH(J570, raw_resource_build!B:B, 0)))","v":""},null,{"$f":"raw_resource_build!B570","v":"Inyokern_North_Kramer_Geothermal"},"In-State",{"$f":"IFERROR(INDEX($E$5:$E$32,MATCH(raw_resource_build!$E570,Lists!$B$5:$B$32,0)),\"Non-CAISO\")","v":"Geothermal"},null,{"$f":"raw_annual_energy!C570","v":"Greater_Imperial_Solar"},{"$f":"INDEX(K:K,MATCH(R570,Lists!J:J,0))","v":"Solar"},"In-State"]
[null,null,null,null,null,null,null,null,null,{"$f":"IFERROR(INDEX(raw_resource_build!$B$2:$B$1000,MATCH(0,COUNTIF($J$1:J570,raw_resource_build!$B$2:$B$1000), 0),0), \"\")","v":""},{"$f":"IF(J571=\"\", \"\", INDEX(raw_resource_build!E:E, MATCH(J571, raw_resource_build!B:B, 0)))","v":""},{"$f":"IF(J571=\"\", \"\", INDEX(raw_resource_build!C:C, MATCH(J571, raw_resource_build!B:B, 0)))","v":""},null,{"$f":"raw_resource_build!B571","v":"Northern_California_Ex_Geothermal"},"In-State",{"$f":"IFERROR(INDEX($E$5:$E$32,MATCH(raw_resource_build!$E571,Lists!$B$5:$B$32,0)),\"Non-CAISO\")","v":"Geothermal"},null,{"$f":"raw_annual_energy!C571","v":"Greater_Imperial_Wind"},{"$f":"INDEX(K:K,MATCH(R571,Lists!J:J,0))","v":"Wind"},"In-State"]
[null,null,null,null,null,null,null,null,null,{"$f":"IFERROR(INDEX(raw_resource_build!$B$2:$B$1000,MATCH(0,COUNTIF($J$1:J571,raw_resource_build!$B$2:$B$1000), 0),0), \"\")","v":""},{"$f":"IF(J572=\"\", \"\", INDEX(raw_resource_build!E:E, MATCH(J572, raw_resource_build!B:B, 0)))","v":""},{"$f":"IF(J572=\"\", \"\", INDEX(raw_resource_build!C:C, MATCH(J572, raw_resource_build!B:B, 0)))","v":""},null,{"$f":"raw_resource_build!B572","v":"Pacific_Northwest_Geothermal"},"Out-Of-State",{"$f":"IFERROR(INDEX($E$5:$E$32,MATCH(raw_resource_build!$E572,Lists!$B$5:$B$32,0)),\"Non-CAISO\")","v":"Geothermal"},null,{"$f":"raw_annual_energy!C572","v":"Greater_Imperial_Wind"},{"$f":"INDEX(K:K,MATCH(R572,Lists!J:J,0))","v":"Wind"},"In-State"]
[null,null,null,null,null,null,null,null,null,{"$f":"IFERROR(INDEX(raw_resource_build!$B$2:$B$1000,MATCH(0,COUNTIF($J$1:J572,raw_resource_build!$B$2:$B$1000), 0),0), \"\")","v":""},{"$f":"IF(J573=\"\", \"\", INDEX(raw_resource_build!E:E, MATCH(J573, raw_resource_build!B:B, 0)))","v":""},{"$f":"IF(J573=\"\", \"\", INDEX(raw_resource_build!C:C, MATCH(J573, raw_resource_build!B:B, 0)))","v":""},null,{"$f":"raw_resource_build!B573","v":"Riverside_Palm_Springs_Geothermal"},"In-State",{"$f":"IFERROR(INDEX($E$5:$E$32,MATCH(raw_resource_build!$E573,Lists!$B$5:$B$32,0)),\"Non-CAISO\")","v":"Geothermal"},null,{"$f":"raw_annual_energy!C573","v":"Greater_Imperial_Wind"},{"$f":"INDEX(K:K,MATCH(R573,Lists!J:J,0))","v":"Wind"},"In-State"]
[null,null,null,null,null,null,null,null,null,{"$f":"IFERROR(INDEX(raw_resource_build!$B$2:$B$1000,MATCH(0,COUNTIF($J$1:J573,raw_resource_build!$B$2:$B$1000), 0),0), \"\")","v":""},{"$f":"IF(J574=\"\", \"\", INDEX(raw_resource_build!E:E, MATCH(J574, raw_resource_build!B:B, 0)))","v":""},{"$f":"IF(J574=\"\", \"\", INDEX(raw_resource_build!C:C, MATCH(J574, raw_resource_build!B:B, 0)))","v":""},null,{"$f":"raw_resource_build!B574","v":"Solano_Geothermal"},"In-State",{"$f":"IFERROR(INDEX($E$5:$E$32,MATCH(raw_resource_build!$E574,Lists!$B$5:$B$32,0)),\"Non-CAISO\")","v":"Geothermal"},null,{"$f":"raw_annual_energy!C574","v":"Greater_Imperial_Wind"},{"$f":"INDEX(K:K,MATCH(R574,Lists!J:J,0))","v":"Wind"},"In-State"]
[null,null,null,null,null,null,null,null,null,{"$f":"IFERROR(INDEX(raw_resource_build!$B$2:$B$1000,MATCH(0,COUNTIF($J$1:J574,raw_resource_build!$B$2:$B$1000), 0),0), \"\")","v":""},{"$f":"IF(J575=\"\", \"\", INDEX(raw_resource_build!E:E, MATCH(J575, raw_resource_build!B:B, 0)))","v":""},{"$f":"IF(J575=\"\", \"\", INDEX(raw_resource_build!C:C, MATCH(J575, raw_resource_build!B:B, 0)))","v":""},null,{"$f":"raw_resource_build!B575","v":"Southern_Nevada_Geothermal"},"In-State",{"$f":"IFERROR(INDEX($E$5:$E$32,MATCH(raw_resource_build!$E575,Lists!$B$5:$B$32,0)),\"Non-CAISO\")","v":"Geothermal"},null,{"$f":"raw_annual_energy!C575","v":"Greater_Imperial_Wind"},{"$f":"INDEX(K:K,MATCH(R575,Lists!J:J,0))","v":"Wind"},"In-State"]
[null,null,null,null,null,null,null,null,null,{"$f":"IFERROR(INDEX(raw_resource_build!$B$2:$B$1000,MATCH(0,COUNTIF($J$1:J575,raw_resource_build!$B$2:$B$1000), 0),0), \"\")","v":""},{"$f":"IF(J576=\"\", \"\", INDEX(raw_resource_build!E:E, MATCH(J576, raw_resource_build!B:B, 0)))","v":""},{"$f":"IF(J576=\"\", \"\", INDEX(raw_resource_build!C:C, MATCH(J576, raw_resource_build!B:B, 0)))","v":""},null,{"$f":"raw_resource_build!B576","v":"Customer_PV"},"Non-wind",{"$f":"IFERROR(INDEX($E$5:$E$32,MATCH(raw_resource_build!$E576,Lists!$B$5:$B$32,0)),\"Non-CAISO\")","v":"Renewables"},null,{"$f":"raw_annual_energy!C576","v":"Greater_Imperial_Wind"},{"$f":"INDEX(K:K,MATCH(R576,Lists!J:J,0))","v":"Wind"},"In-State"]
[null,null,null,null,null,null,null,null,null,{"$f":"IFERROR(INDEX(raw_resource_build!$B$2:$B$1000,MATCH(0,COUNTIF($J$1:J576,raw_resource_build!$B$2:$B$1000), 0),0), \"\")","v":""},{"$f":"IF(J577=\"\", \"\", INDEX(raw_resource_build!E:E, MATCH(J577, raw_resource_build!B:B, 0)))","v":""},{"$f":"IF(J577=\"\", \"\", INDEX(raw_resource_build!C:C, MATCH(J577, raw_resource_build!B:B, 0)))","v":""},null,{"$f":"raw_resource_build!B577","v":"BANC_Solar_for_Other"},"Non-wind",{"$f":"IFERROR(INDEX($E$5:$E$32,MATCH(raw_resource_build!$E577,Lists!$B$5:$B$32,0)),\"Non-CAISO\")","v":"Renewables"},null,{"$f":"raw_annual_energy!C577","v":"Greater_Imperial_Wind"},{"$f":"INDEX(K:K,MATCH(R577,Lists!J:J,0))","v":"Wind"},"In-State"]
[null,null,null,null,null,null,null,null,null,{"$f":"IFERROR(INDEX(raw_resource_build!$B$2:$B$1000,MATCH(0,COUNTIF($J$1:J577,raw_resource_build!$B$2:$B$1000), 0),0), \"\")","v":""},{"$f":"IF(J578=\"\", \"\", INDEX(raw_resource_build!E:E, MATCH(J578, raw_resource_build!B:B, 0)))","v":""},{"$f":"IF(J578=\"\", \"\", INDEX(raw_resource_build!C:C, MATCH(J578, raw_resource_build!B:B, 0)))","v":""},null,{"$f":"raw_resource_build!B578","v":"CAISO_Solar_for_Other"},"Non-wind",{"$f":"IFERROR(INDEX($E$5:$E$32,MATCH(raw_resource_build!$E578,Lists!$B$5:$B$32,0)),\"Non-CAISO\")","v":"Renewables"},null,{"$f":"raw_annual_energy!C578","v":"Greater_Imperial_Wind"},{"$f":"INDEX(K:K,MATCH(R578,Lists!J:J,0))","v":"Wind"},"In-State"]
[null,null,null,null,null,null,null,null,null,{"$f":"IFERROR(INDEX(raw_resource_build!$B$2:$B$1000,MATCH(0,COUNTIF($J$1:J578,raw_resource_build!$B$2:$B$1000), 0),0), \"\")","v":""},{"$f":"IF(J579=\"\", \"\", INDEX(raw_resource_build!E:E, MATCH(J579, raw_resource_build!B:B, 0)))","v":""},{"$f":"IF(J579=\"\", \"\", INDEX(raw_resource_build!C:C, MATCH(J579, raw_resource_build!B:B, 0)))","v":""},null,{"$f":"raw_resource_build!B579","v":"IID_Solar_for_Other"},{"$f":"IFERROR(INDEX($C$35:$C$99,MATCH($N579,$B$35:$B$99,0)),\"Non-wind\")","v":"Non-wind"},{"$f":"IFERROR(INDEX($E$5:$E$32,MATCH(raw_resource_build!$E579,Lists!$B$5:$B$32,0)),\"Non-CAISO\")","v":"Renewables"},null,{"$f":"raw_annual_energy!C579","v":"Greater_Kramer_Wind"},{"$f":"INDEX(K:K,MATCH(R579,Lists!J:J,0))","v":"Wind"},{"$f":"IFERROR(INDEX($C$35:$C$99,MATCH($R579,$B$35:$B$99,0)),\"Non-wind\")","v":"In-State"}]
[null,null,null,null,null,null,null,null,null,{"$f":"IFERROR(INDEX(raw_resource_build!$B$2:$B$1000,MATCH(0,COUNTIF($J$1:J579,raw_resource_build!$B$2:$B$1000), 0),0), \"\")","v":""},{"$f":"IF(J580=\"\", \"\", INDEX(raw_resource_build!E:E, MATCH(J580, raw_resource_build!B:B, 0)))","v":""},{"$f":"IF(J580=\"\", \"\", INDEX(raw_resource_build!C:C, MATCH(J580, raw_resource_build!B:B, 0)))","v":""},null,{"$f":"raw_resource_build!B580","v":"LDWP_Solar_for_Other"},"Non-wind",{"$f":"IFERROR(INDEX($E$5:$E$32,MATCH(raw_resource_build!$E580,Lists!$B$5:$B$32,0)),\"Non-CAISO\")","v":"Renewables"},null,{"$f":"raw_annual_energy!C580","v":"Greater_Kramer_Wind"},{"$f":"INDEX(K:K,MATCH(R580,Lists!J:J,0))","v":"Wind"},"In-State"]
[null,null,null,null,null,null,null,null,null,{"$f":"IFERROR(INDEX(raw_resource_build!$B$2:$B$1000,MATCH(0,COUNTIF($J$1:J580,raw_resource_build!$B$2:$B$1000), 0),0), \"\")","v":""},{"$f":"IF(J581=\"\", \"\", INDEX(raw_resource_build!E:E, MATCH(J581, raw_resource_build!B:B, 0)))","v":""},{"$f":"IF(J581=\"\", \"\", INDEX(raw_resource_build!C:C, MATCH(J581, raw_resource_build!B:B, 0)))","v":""},null,{"$f":"raw_resource_build!B581","v":"NW_Solar_for_Other"},"Non-wind",{"$f":"IFERROR(INDEX($E$5:$E$32,MATCH(raw_resource_build!$E581,Lists!$B$5:$B$32,0)),\"Non-CAISO\")","v":"Renewables"},null,{"$f":"raw_annual_energy!C581","v":"Greater_Kramer_Wind"},{"$f":"INDEX(K:K,MATCH(R581,Lists!J:J,0))","v":"Wind"},"In-State"]
[null,null,null,null,null,null,null,null,null,{"$f":"IFERROR(INDEX(raw_resource_build!$B$2:$B$1000,MATCH(0,COUNTIF($J$1:J581,raw_resource_build!$B$2:$B$1000), 0),0), \"\")","v":""},{"$f":"IF(J582=\"\", \"\", INDEX(raw_resource_build!E:E, MATCH(J582, raw_resource_build!B:B, 0)))","v":""},{"$f":"IF(J582=\"\", \"\", INDEX(raw_resource_build!C:C, MATCH(J582, raw_resource_build!B:B, 0)))","v":""},null,{"$f":"raw_resource_build!B582","v":"SW_Solar_for_Other"},"Non-wind",{"$f":"IFERROR(INDEX($E$5:$E$32,MATCH(raw_resource_build!$E582,Lists!$B$5:$B$32,0)),\"Non-CAISO\")","v":"Renewables"},null,{"$f":"raw_annual_energy!C582","v":"Greater_Kramer_Wind"},{"$f":"INDEX(K:K,MATCH(R582,Lists!J:J,0))","v":"Wind"},"In-State"]
[null,null,null,null,null,null,null,null,null,{"$f":"IFERROR(INDEX(raw_resource_build!$B$2:$B$1000,MATCH(0,COUNTIF($J$1:J582,raw_resource_build!$B$2:$B$1000), 0),0), \"\")","v":""},{"$f":"IF(J583=\"\", \"\", INDEX(raw_resource_build!E:E, MATCH(J583, raw_resource_build!B:B, 0)))","v":""},{"$f":"IF(J583=\"\", \"\", INDEX(raw_resource_build!C:C, MATCH(J583, raw_resource_build!B:B, 0)))","v":""},null,{"$f":"raw_resource_build!B583","v":"CAISO_Solar_for_CAISO"},"Non-wind",{"$f":"IFERROR(INDEX($E$5:$E$32,MATCH(raw_resource_build!$E583,Lists!$B$5:$B$32,0)),\"Non-CAISO\")","v":"Renewables"},null,{"$f":"raw_annual_energy!C583","v":"Greater_Kramer_Wind"},{"$f":"INDEX(K:K,MATCH(R583,Lists!J:J,0))","v":"Wind"},"In-State"]
[null,null,null,null,null,null,null,null,null,{"$f":"IFERROR(INDEX(raw_resource_build!$B$2:$B$1000,MATCH(0,COUNTIF($J$1:J583,raw_resource_build!$B$2:$B$1000), 0),0), \"\")","v":""},{"$f":"IF(J584=\"\", \"\", INDEX(raw_resource_build!E:E, MATCH(J584, raw_resource_build!B:B, 0)))","v":""},{"$f":"IF(J584=\"\", \"\", INDEX(raw_resource_build!C:C, MATCH(J584, raw_resource_build!B:B, 0)))","v":""},null,{"$f":"raw_resource_build!B584","v":"IID_Solar_for_CAISO"},"Non-wind",{"$f":"IFERROR(INDEX($E$5:$E$32,MATCH(raw_resource_build!$E584,Lists!$B$5:$B$32,0)),\"Non-CAISO\")","v":"Renewables"},null,{"$f":"raw_annual_energy!C584","v":"Greater_Kramer_Wind"},{"$f":"INDEX(K:K,MATCH(R584,Lists!J:J,0))","v":"Wind"},"In-State"]
[null,null,null,null,null,null,null,null,null,{"$f":"IFERROR(INDEX(raw_resource_build!$B$2:$B$1000,MATCH(0,COUNTIF($J$1:J584,raw_resource_build!$B$2:$B$1000), 0),0), \"\")","v":""},{"$f":"IF(J585=\"\", \"\", INDEX(raw_resource_build!E:E, MATCH(J585, raw_resource_build!B:B, 0)))","v":""},{"$f":"IF(J585=\"\", \"\", INDEX(raw_resource_build!C:C, MATCH(J585, raw_resource_build!B:B, 0)))","v":""},null,{"$f":"raw_resource_build!B585","v":"SW_Solar_for_CAISO"},"Non-wind",{"$f":"IFERROR(INDEX($E$5:$E$32,MATCH(raw_resource_build!$E585,Lists!$B$5:$B$32,0)),\"Non-CAISO\")","v":"Renewables"},null,{"$f":"raw_annual_energy!C585","v":"Greater_Kramer_Wind"},{"$f":"INDEX(K:K,MATCH(R585,Lists!J:J,0))","v":"Wind"},"In-State"]
[null,null,null,null,null,null,null,null,null,{"$f":"IFERROR(INDEX(raw_resource_build!$B$2:$B$1000,MATCH(0,COUNTIF($J$1:J585,raw_resource_build!$B$2:$B$1000), 0),0), \"\")","v":""},{"$f":"IF(J586=\"\", \"\", INDEX(raw_resource_build!E:E, MATCH(J586, raw_resource_build!B:B, 0)))","v":""},{"$f":"IF(J586=\"\", \"\", INDEX(raw_resource_build!C:C, MATCH(J586, raw_resource_build!B:B, 0)))","v":""},null,{"$f":"raw_resource_build!B586","v":"BANC_Wind_for_Other"},"Non-wind",{"$f":"IFERROR(INDEX($E$5:$E$32,MATCH(raw_resource_build!$E586,Lists!$B$5:$B$32,0)),\"Non-CAISO\")","v":"Renewables"},null,{"$f":"raw_annual_energy!C586","v":"Greater_Kramer_Wind"},{"$f":"INDEX(K:K,MATCH(R586,Lists!J:J,0))","v":"Wind"},"In-State"]
[null,null,null,null,null,null,null,null,null,{"$f":"IFERROR(INDEX(raw_resource_build!$B$2:$B$1000,MATCH(0,COUNTIF($J$1:J586,raw_resource_build!$B$2:$B$1000), 0),0), \"\")","v":""},{"$f":"IF(J587=\"\", \"\", INDEX(raw_resource_build!E:E, MATCH(J587, raw_resource_build!B:B, 0)))","v":""},{"$f":"IF(J587=\"\", \"\", INDEX(raw_resource_build!C:C, MATCH(J587, raw_resource_build!B:B, 0)))","v":""},null,{"$f":"raw_resource_build!B587","v":"CAISO_Wind_for_Other"},"Non-wind",{"$f":"IFERROR(INDEX($E$5:$E$32,MATCH(raw_resource_build!$E587,Lists!$B$5:$B$32,0)),\"Non-CAISO\")","v":"Renewables"},null,{"$f":"raw_annual_energy!C587","v":"Humboldt_Bay_Offshore_Wind"},{"$f":"INDEX(K:K,MATCH(R587,Lists!J:J,0))","v":"Offshore_Wind"},"In-State"]
[null,null,null,null,null,null,null,null,null,{"$f":"IFERROR(INDEX(raw_resource_build!$B$2:$B$1000,MATCH(0,COUNTIF($J$1:J587,raw_resource_build!$B$2:$B$1000), 0),0), \"\")","v":""},{"$f":"IF(J588=\"\", \"\", INDEX(raw_resource_build!E:E, MATCH(J588, raw_resource_build!B:B, 0)))","v":""},{"$f":"IF(J588=\"\", \"\", INDEX(raw_resource_build!C:C, MATCH(J588, raw_resource_build!B:B, 0)))","v":""},null,{"$f":"raw_resource_build!B588","v":"IID_Wind_for_Other"},"Non-wind",{"$f":"IFERROR(INDEX($E$5:$E$32,MATCH(raw_resource_build!$E588,Lists!$B$5:$B$32,0)),\"Non-CAISO\")","v":"Renewables"},null,{"$f":"raw_annual_energy!C588","v":"Humboldt_Bay_Offshore_Wind"},{"$f":"INDEX(K:K,MATCH(R588,Lists!J:J,0))","v":"Offshore_Wind"},"In-State"]
[null,null,null,null,null,null,null,null,null,{"$f":"IFERROR(INDEX(raw_resource_build!$B$2:$B$1000,MATCH(0,COUNTIF($J$1:J588,raw_resource_build!$B$2:$B$1000), 0),0), \"\")","v":""},{"$f":"IF(J589=\"\", \"\", INDEX(raw_resource_build!E:E, MATCH(J589, raw_resource_build!B:B, 0)))","v":""},{"$f":"IF(J589=\"\", \"\", INDEX(raw_resource_build!C:C, MATCH(J589, raw_resource_build!B:B, 0)))","v":""},null,{"$f":"raw_resource_build!B589","v":"LDWP_Wind_for_Other"},"Non-wind",{"$f":"IFERROR(INDEX($E$5:$E$32,MATCH(raw_resource_build!$E589,Lists!$B$5:$B$32,0)),\"Non-CAISO\")","v":"Renewables"},null,{"$f":"raw_annual_energy!C589","v":"Humboldt_Bay_Offshore_Wind"},{"$f":"INDEX(K:K,MATCH(R589,Lists!J:J,0))","v":"Offshore_Wind"},"In-State"]
[null,null,null,null,null,null,null,null,null,{"$f":"IFERROR(INDEX(raw_resource_build!$B$2:$B$1000,MATCH(0,COUNTIF($J$1:J589,raw_resource_build!$B$2:$B$1000), 0),0), \"\")","v":""},{"$f":"IF(J590=\"\", \"\", INDEX(raw_resource_build!E:E, MATCH(J590, raw_resource_build!B:B, 0)))","v":""},{"$f":"IF(J590=\"\", \"\", INDEX(raw_resource_build!C:C, MATCH(J590, raw_resource_build!B:B, 0)))","v":""},null,{"$f":"raw_resource_build!B590","v":"NW_Wind_for_Other"},"Non-wind",{"$f":"IFERROR(INDEX($E$5:$E$32,MATCH(raw_resource_build!$E590,Lists!$B$5:$B$32,0)),\"Non-CAISO\")","v":"Renewables"},null,{"$f":"raw_annual_energy!C590","v":"Humboldt_Bay_Offshore_Wind"},{"$f":"INDEX(K:K,MATCH(R590,Lists!J:J,0))","v":"Offshore_Wind"},"In-State"]
[null,null,null,null,null,null,null,null,null,{"$f":"IFERROR(INDEX(raw_resource_build!$B$2:$B$1000,MATCH(0,COUNTIF($J$1:J590,raw_resource_build!$B$2:$B$1000), 0),0), \"\")","v":""},{"$f":"IF(J591=\"\", \"\", INDEX(raw_resource_build!E:E, MATCH(J591, raw_resource_build!B:B, 0)))","v":""},{"$f":"IF(J591=\"\", \"\", INDEX(raw_resource_build!C:C, MATCH(J591, raw_resource_build!B:B, 0)))","v":""},null,{"$f":"raw_resource_build!B591","v":"SW_Wind_for_Other"},"Non-wind",{"$f":"IFERROR(INDEX($E$5:$E$32,MATCH(raw_resource_build!$E591,Lists!$B$5:$B$32,0)),\"Non-CAISO\")","v":"Renewables"},null,{"$f":"raw_annual_energy!C591","v":"Humboldt_Bay_Offshore_Wind"},{"$f":"INDEX(K:K,MATCH(R591,Lists!J:J,0))","v":"Offshore_Wind"},"In-State"]
[null,null,null,null,null,null,null,null,null,{"$f":"IFERROR(INDEX(raw_resource_build!$B$2:$B$1000,MATCH(0,COUNTIF($J$1:J591,raw_resource_build!$B$2:$B$1000), 0),0), \"\")","v":""},{"$f":"IF(J592=\"\", \"\", INDEX(raw_resource_build!E:E, MATCH(J592, raw_resource_build!B:B, 0)))","v":""},{"$f":"IF(J592=\"\", \"\", INDEX(raw_resource_build!C:C, MATCH(J592, raw_resource_build!B:B, 0)))","v":""},null,{"$f":"raw_resource_build!B592","v":"CAISO_Wind_for_CAISO"},"Non-wind",{"$f":"IFERROR(INDEX($E$5:$E$32,MATCH(raw_resource_build!$E592,Lists!$B$5:$B$32,0)),\"Non-CAISO\")","v":"Renewables"},null,{"$f":"raw_annual_energy!C592","v":"Humboldt_Bay_Offshore_Wind"},{"$f":"INDEX(K:K,MATCH(R592,Lists!J:J,0))","v":"Offshore_Wind"},"In-State"]
[null,null,null,null,null,null,null,null,null,{"$f":"IFERROR(INDEX(raw_resource_build!$B$2:$B$1000,MATCH(0,COUNTIF($J$1:J592,raw_resource_build!$B$2:$B$1000), 0),0), \"\")","v":""},{"$f":"IF(J593=\"\", \"\", INDEX(raw_resource_build!E:E, MATCH(J593, raw_resource_build!B:B, 0)))","v":""},{"$f":"IF(J593=\"\", \"\", INDEX(raw_resource_build!C:C, MATCH(J593, raw_resource_build!B:B, 0)))","v":""},null,{"$f":"raw_resource_build!B593","v":"LDWP_Wind_for_CAISO"},"Non-wind",{"$f":"IFERROR(INDEX($E$5:$E$32,MATCH(raw_resource_build!$E593,Lists!$B$5:$B$32,0)),\"Non-CAISO\")","v":"Renewables"},null,{"$f":"raw_annual_energy!C593","v":"Humboldt_Bay_Offshore_Wind"},{"$f":"INDEX(K:K,MATCH(R593,Lists!J:J,0))","v":"Offshore_Wind"},"In-State"]
[null,null,null,null,null,null,null,null,null,{"$f":"IFERROR(INDEX(raw_resource_build!$B$2:$B$1000,MATCH(0,COUNTIF($J$1:J593,raw_resource_build!$B$2:$B$1000), 0),0), \"\")","v":""},{"$f":"IF(J594=\"\", \"\", INDEX(raw_resource_build!E:E, MATCH(J594, raw_resource_build!B:B, 0)))","v":""},{"$f":"IF(J594=\"\", \"\", INDEX(raw_resource_build!C:C, MATCH(J594, raw_resource_build!B:B, 0)))","v":""},null,{"$f":"raw_resource_build!B594","v":"NW_Wind_for_CAISO"},"Non-wind",{"$f":"IFERROR(INDEX($E$5:$E$32,MATCH(raw_resource_build!$E594,Lists!$B$5:$B$32,0)),\"Non-CAISO\")","v":"Renewables"},null,{"$f":"raw_annual_energy!C594","v":"Humboldt_Bay_Offshore_Wind"},{"$f":"INDEX(K:K,MATCH(R594,Lists!J:J,0))","v":"Offshore_Wind"},"In-State"]
[null,null,null,null,null,null,null,null,null,{"$f":"IFERROR(INDEX(raw_resource_build!$B$2:$B$1000,MATCH(0,COUNTIF($J$1:J594,raw_resource_build!$B$2:$B$1000), 0),0), \"\")","v":""},{"$f":"IF(J595=\"\", \"\", INDEX(raw_resource_build!E:E, MATCH(J595, raw_resource_build!B:B, 0)))","v":""},{"$f":"IF(J595=\"\", \"\", INDEX(raw_resource_build!C:C, MATCH(J595, raw_resource_build!B:B, 0)))","v":""},null,{"$f":"raw_resource_build!B595","v":"SW_Wind_for_CAISO"},"Non-wind",{"$f":"IFERROR(INDEX($E$5:$E$32,MATCH(raw_resource_build!$E595,Lists!$B$5:$B$32,0)),\"Non-CAISO\")","v":"Renewables"},null,{"$f":"raw_annual_energy!C595","v":"Humboldt_Wind"},{"$f":"INDEX(K:K,MATCH(R595,Lists!J:J,0))","v":"Wind"},"In-State"]
[null,null,null,null,null,null,null,null,null,{"$f":"IFERROR(INDEX(raw_resource_build!$B$2:$B$1000,MATCH(0,COUNTIF($J$1:J595,raw_resource_build!$B$2:$B$1000), 0),0), \"\")","v":""},{"$f":"IF(J596=\"\", \"\", INDEX(raw_resource_build!E:E, MATCH(J596, raw_resource_build!B:B, 0)))","v":""},{"$f":"IF(J596=\"\", \"\", INDEX(raw_resource_build!C:C, MATCH(J596, raw_resource_build!B:B, 0)))","v":""},null,{"$f":"raw_resource_build!B596","v":"Carrizo_Solar"},"In-State",{"$f":"IFERROR(INDEX($E$5:$E$32,MATCH(raw_resource_build!$E596,Lists!$B$5:$B$32,0)),\"Non-CAISO\")","v":"Renewables"},null,{"$f":"raw_annual_energy!C596","v":"Humboldt_Wind"},{"$f":"INDEX(K:K,MATCH(R596,Lists!J:J,0))","v":"Wind"},"In-State"]
[null,null,null,null,null,null,null,null,null,{"$f":"IFERROR(INDEX(raw_resource_build!$B$2:$B$1000,MATCH(0,COUNTIF($J$1:J596,raw_resource_build!$B$2:$B$1000), 0),0), \"\")","v":""},{"$f":"IF(J597=\"\", \"\", INDEX(raw_resource_build!E:E, MATCH(J597, raw_resource_build!B:B, 0)))","v":""},{"$f":"IF(J597=\"\", \"\", INDEX(raw_resource_build!C:C, MATCH(J597, raw_resource_build!B:B, 0)))","v":""},null,{"$f":"raw_resource_build!B597","v":"Carrizo_Wind"},"In-State",{"$f":"IFERROR(INDEX($E$5:$E$32,MATCH(raw_resource_build!$E597,Lists!$B$5:$B$32,0)),\"Non-CAISO\")","v":"Renewables"},null,{"$f":"raw_annual_energy!C597","v":"Humboldt_Wind"},{"$f":"INDEX(K:K,MATCH(R597,Lists!J:J,0))","v":"Wind"},"In-State"]
[null,null,null,null,null,null,null,null,null,{"$f":"IFERROR(INDEX(raw_resource_build!$B$2:$B$1000,MATCH(0,COUNTIF($J$1:J597,raw_resource_build!$B$2:$B$1000), 0),0), \"\")","v":""},{"$f":"IF(J598=\"\", \"\", INDEX(raw_resource_build!E:E, MATCH(J598, raw_resource_build!B:B, 0)))","v":""},{"$f":"IF(J598=\"\", \"\", INDEX(raw_resource_build!C:C, MATCH(J598, raw_resource_build!B:B, 0)))","v":""},null,{"$f":"raw_resource_build!B598","v":"Central_Valley_North_Los_Banos_Solar"},"In-State",{"$f":"IFERROR(INDEX($E$5:$E$32,MATCH(raw_resource_build!$E598,Lists!$B$5:$B$32,0)),\"Non-CAISO\")","v":"Renewables"},null,{"$f":"raw_annual_energy!C598","v":"Humboldt_Wind"},{"$f":"INDEX(K:K,MATCH(R598,Lists!J:J,0))","v":"Wind"},"In-State"]
[null,null,null,null,null,null,null,null,null,{"$f":"IFERROR(INDEX(raw_resource_build!$B$2:$B$1000,MATCH(0,COUNTIF($J$1:J598,raw_resource_build!$B$2:$B$1000), 0),0), \"\")","v":""},{"$f":"IF(J599=\"\", \"\", INDEX(raw_resource_build!E:E, MATCH(J599, raw_resource_build!B:B, 0)))","v":""},{"$f":"IF(J599=\"\", \"\", INDEX(raw_resource_build!C:C, MATCH(J599, raw_resource_build!B:B, 0)))","v":""},null,{"$f":"raw_resource_build!B599","v":"Central_Valley_North_Los_Banos_Wind"},"In-State",{"$f":"IFERROR(INDEX($E$5:$E$32,MATCH(raw_resource_build!$E599,Lists!$B$5:$B$32,0)),\"Non-CAISO\")","v":"Renewables"},null,{"$f":"raw_annual_energy!C599","v":"Humboldt_Wind"},{"$f":"INDEX(K:K,MATCH(R599,Lists!J:J,0))","v":"Wind"},"In-State"]
[null,null,null,null,null,null,null,null,null,{"$f":"IFERROR(INDEX(raw_resource_build!$B$2:$B$1000,MATCH(0,COUNTIF($J$1:J599,raw_resource_build!$B$2:$B$1000), 0),0), \"\")","v":""},{"$f":"IF(J600=\"\", \"\", INDEX(raw_resource_build!E:E, MATCH(J600, raw_resource_build!B:B, 0)))","v":""},{"$f":"IF(J600=\"\", \"\", INDEX(raw_resource_build!C:C, MATCH(J600, raw_resource_build!B:B, 0)))","v":""},null,{"$f":"raw_resource_build!B600","v":"Distributed_Solar"},"In-State",{"$f":"IFERROR(INDEX($E$5:$E$32,MATCH(raw_resource_build!$E600,Lists!$B$5:$B$32,0)),\"Non-CAISO\")","v":"Renewables"},null,{"$f":"raw_annual_energy!C600","v":"Humboldt_Wind"},{"$f":"INDEX(K:K,MATCH(R600,Lists!J:J,0))","v":"Wind"},"In-State"]
[null,null,null,null,null,null,null,null,null,{"$f":"IFERROR(INDEX(raw_resource_build!$B$2:$B$1000,MATCH(0,COUNTIF($J$1:J600,raw_resource_build!$B$2:$B$1000), 0),0), \"\")","v":""},{"$f":"IF(J601=\"\", \"\", INDEX(raw_resource_build!E:E, MATCH(J601, raw_resource_build!B:B, 0)))","v":""},{"$f":"IF(J601=\"\", \"\", INDEX(raw_resource_build!C:C, MATCH(J601, raw_resource_build!B:B, 0)))","v":""},null,{"$f":"raw_resource_build!B601","v":"Mountain_Pass_El_Dorado_Solar"},"In-State",{"$f":"IFERROR(INDEX($E$5:$E$32,MATCH(raw_resource_build!$E601,Lists!$B$5:$B$32,0)),\"Non-CAISO\")","v":"Renewables"},null,{"$f":"raw_annual_energy!C601","v":"Humboldt_Wind"},{"$f":"INDEX(K:K,MATCH(R601,Lists!J:J,0))","v":"Wind"},"In-State"]
[null,null,null,null,null,null,null,null,null,{"$f":"IFERROR(INDEX(raw_resource_build!$B$2:$B$1000,MATCH(0,COUNTIF($J$1:J601,raw_resource_build!$B$2:$B$1000), 0),0), \"\")","v":""},{"$f":"IF(J602=\"\", \"\", INDEX(raw_resource_build!E:E, MATCH(J602, raw_resource_build!B:B, 0)))","v":""},{"$f":"IF(J602=\"\", \"\", INDEX(raw_resource_build!C:C, MATCH(J602, raw_resource_build!B:B, 0)))","v":""},null,{"$f":"raw_resource_build!B602","v":"Greater_Imperial_Solar"},"In-State",{"$f":"IFERROR(INDEX($E$5:$E$32,MATCH(raw_resource_build!$E602,Lists!$B$5:$B$32,0)),\"Non-CAISO\")","v":"Renewables"},null,{"$f":"raw_annual_energy!C602","v":"Humboldt_Wind"},{"$f":"INDEX(K:K,MATCH(R602,Lists!J:J,0))","v":"Wind"},"In-State"]
[null,null,null,null,null,null,null,null,null,{"$f":"IFERROR(INDEX(raw_resource_build!$B$2:$B$1000,MATCH(0,COUNTIF($J$1:J602,raw_resource_build!$B$2:$B$1000), 0),0), \"\")","v":""},{"$f":"IF(J603=\"\", \"\", INDEX(raw_resource_build!E:E, MATCH(J603, raw_resource_build!B:B, 0)))","v":""},{"$f":"IF(J603=\"\", \"\", INDEX(raw_resource_build!C:C, MATCH(J603, raw_resource_build!B:B, 0)))","v":""},null,{"$f":"raw_resource_build!B603","v":"Greater_Imperial_Wind"},"In-State",{"$f":"IFERROR(INDEX($E$5:$E$32,MATCH(raw_resource_build!$E603,Lists!$B$5:$B$32,0)),\"Non-CAISO\")","v":"Renewables"},null,{"$f":"raw_annual_energy!C603","v":"Hydrogen_electrolysis"},{"$f":"INDEX(K:K,MATCH(R603,Lists!J:J,0))","v":"Hydrogen_Electrolysis"},"Non-wind"]
[null,null,null,null,null,null,null,null,null,{"$f":"IFERROR(INDEX(raw_resource_build!$B$2:$B$1000,MATCH(0,COUNTIF($J$1:J603,raw_resource_build!$B$2:$B$1000), 0),0), \"\")","v":""},{"$f":"IF(J604=\"\", \"\", INDEX(raw_resource_build!E:E, MATCH(J604, raw_resource_build!B:B, 0)))","v":""},{"$f":"IF(J604=\"\", \"\", INDEX(raw_resource_build!C:C, MATCH(J604, raw_resource_build!B:B, 0)))","v":""},null,{"$f":"raw_resource_build!B604","v":"Greater_Kramer_Wind"},"In-State",{"$f":"IFERROR(INDEX($E$5:$E$32,MATCH(raw_resource_build!$E604,Lists!$B$5:$B$32,0)),\"Non-CAISO\")","v":"Renewables"},null,{"$f":"raw_annual_energy!C604","v":"Hydrogen_electrolysis"},{"$f":"INDEX(K:K,MATCH(R604,Lists!J:J,0))","v":"Hydrogen_Electrolysis"},"Non-wind"]
[null,null,null,null,null,null,null,null,null,{"$f":"IFERROR(INDEX(raw_resource_build!$B$2:$B$1000,MATCH(0,COUNTIF($J$1:J604,raw_resource_build!$B$2:$B$1000), 0),0), \"\")","v":""},{"$f":"IF(J605=\"\", \"\", INDEX(raw_resource_build!E:E, MATCH(J605, raw_resource_build!B:B, 0)))","v":""},{"$f":"IF(J605=\"\", \"\", INDEX(raw_resource_build!C:C, MATCH(J605, raw_resource_build!B:B, 0)))","v":""},null,{"$f":"raw_resource_build!B605","v":"Humboldt_Wind"},"In-State",{"$f":"IFERROR(INDEX($E$5:$E$32,MATCH(raw_resource_build!$E605,Lists!$B$5:$B$32,0)),\"Non-CAISO\")","v":"Renewables"},null,{"$f":"raw_annual_energy!C605","v":"Hydrogen_electrolysis"},{"$f":"INDEX(K:K,MATCH(R605,Lists!J:J,0))","v":"Hydrogen_Electrolysis"},"Non-wind"]
[null,null,null,null,null,null,null,null,null,{"$f":"IFERROR(INDEX(raw_resource_build!$B$2:$B$1000,MATCH(0,COUNTIF($J$1:J605,raw_resource_build!$B$2:$B$1000), 0),0), \"\")","v":""},{"$f":"IF(J606=\"\", \"\", INDEX(raw_resource_build!E:E, MATCH(J606, raw_resource_build!B:B, 0)))","v":""},{"$f":"IF(J606=\"\", \"\", INDEX(raw_resource_build!C:C, MATCH(J606, raw_resource_build!B:B, 0)))","v":""},null,{"$f":"raw_resource_build!B606","v":"Inyokern_North_Kramer_Solar"},"In-State",{"$f":"IFERROR(INDEX($E$5:$E$32,MATCH(raw_resource_build!$E606,Lists!$B$5:$B$32,0)),\"Non-CAISO\")","v":"Renewables"},null,{"$f":"raw_annual_energy!C606","v":"Hydrogen_electrolysis"},{"$f":"INDEX(K:K,MATCH(R606,Lists!J:J,0))","v":"Hydrogen_Electrolysis"},"Non-wind"]
[null,null,null,null,null,null,null,null,null,{"$f":"IFERROR(INDEX(raw_resource_build!$B$2:$B$1000,MATCH(0,COUNTIF($J$1:J606,raw_resource_build!$B$2:$B$1000), 0),0), \"\")","v":""},{"$f":"IF(J607=\"\", \"\", INDEX(raw_resource_build!E:E, MATCH(J607, raw_resource_build!B:B, 0)))","v":""},{"$f":"IF(J607=\"\", \"\", INDEX(raw_resource_build!C:C, MATCH(J607, raw_resource_build!B:B, 0)))","v":""},null,{"$f":"raw_resource_build!B607","v":"Kern_Greater_Carrizo_Solar"},"In-State",{"$f":"IFERROR(INDEX($E$5:$E$32,MATCH(raw_resource_build!$E607,Lists!$B$5:$B$32,0)),\"Non-CAISO\")","v":"Renewables"},null,{"$f":"raw_annual_energy!C607","v":"Hydrogen_electrolysis"},{"$f":"INDEX(K:K,MATCH(R607,Lists!J:J,0))","v":"Hydrogen_Electrolysis"},"Non-wind"]
[null,null,null,null,null,null,null,null,null,{"$f":"IFERROR(INDEX(raw_resource_build!$B$2:$B$1000,MATCH(0,COUNTIF($J$1:J607,raw_resource_build!$B$2:$B$1000), 0),0), \"\")","v":""},{"$f":"IF(J608=\"\", \"\", INDEX(raw_resource_build!E:E, MATCH(J608, raw_resource_build!B:B, 0)))","v":""},{"$f":"IF(J608=\"\", \"\", INDEX(raw_resource_build!C:C, MATCH(J608, raw_resource_build!B:B, 0)))","v":""},null,{"$f":"raw_resource_build!B608","v":"Kern_Greater_Carrizo_Wind"},"In-State",{"$f":"IFERROR(INDEX($E$5:$E$32,MATCH(raw_resource_build!$E608,Lists!$B$5:$B$32,0)),\"Non-CAISO\")","v":"Renewables"},null,{"$f":"raw_annual_energy!C608","v":"Hydrogen_electrolysis"},{"$f":"INDEX(K:K,MATCH(R608,Lists!J:J,0))","v":"Hydrogen_Electrolysis"},"Non-wind"]
[null,null,null,null,null,null,null,null,null,{"$f":"IFERROR(INDEX(raw_resource_build!$B$2:$B$1000,MATCH(0,COUNTIF($J$1:J608,raw_resource_build!$B$2:$B$1000), 0),0), \"\")","v":""},{"$f":"IF(J609=\"\", \"\", INDEX(raw_resource_build!E:E, MATCH(J609, raw_resource_build!B:B, 0)))","v":""},{"$f":"IF(J609=\"\", \"\", INDEX(raw_resource_build!C:C, MATCH(J609, raw_resource_build!B:B, 0)))","v":""},null,{"$f":"raw_resource_build!B609","v":"Kramer_Inyokern_Ex_Solar"},"In-State",{"$f":"IFERROR(INDEX($E$5:$E$32,MATCH(raw_resource_build!$E609,Lists!$B$5:$B$32,0)),\"Non-CAISO\")","v":"Renewables"},null,{"$f":"raw_annual_energy!C609","v":"Hydrogen_electrolysis"},{"$f":"INDEX(K:K,MATCH(R609,Lists!J:J,0))","v":"Hydrogen_Electrolysis"},"Non-wind"]
[null,null,null,null,null,null,null,null,null,{"$f":"IFERROR(INDEX(raw_resource_build!$B$2:$B$1000,MATCH(0,COUNTIF($J$1:J609,raw_resource_build!$B$2:$B$1000), 0),0), \"\")","v":""},{"$f":"IF(J610=\"\", \"\", INDEX(raw_resource_build!E:E, MATCH(J610, raw_resource_build!B:B, 0)))","v":""},{"$f":"IF(J610=\"\", \"\", INDEX(raw_resource_build!C:C, MATCH(J610, raw_resource_build!B:B, 0)))","v":""},null,{"$f":"raw_resource_build!B610","v":"Kramer_Inyokern_Ex_Wind"},"In-State",{"$f":"IFERROR(INDEX($E$5:$E$32,MATCH(raw_resource_build!$E610,Lists!$B$5:$B$32,0)),\"Non-CAISO\")","v":"Renewables"},null,{"$f":"raw_annual_energy!C610","v":"Hydrogen_electrolysis"},{"$f":"INDEX(K:K,MATCH(R610,Lists!J:J,0))","v":"Hydrogen_Electrolysis"},"Non-wind"]
[null,null,null,null,null,null,null,null,null,{"$f":"IFERROR(INDEX(raw_resource_build!$B$2:$B$1000,MATCH(0,COUNTIF($J$1:J610,raw_resource_build!$B$2:$B$1000), 0),0), \"\")","v":""},{"$f":"IF(J611=\"\", \"\", INDEX(raw_resource_build!E:E, MATCH(J611, raw_resource_build!B:B, 0)))","v":""},{"$f":"IF(J611=\"\", \"\", INDEX(raw_resource_build!C:C, MATCH(J611, raw_resource_build!B:B, 0)))","v":""},null,{"$f":"raw_resource_build!B611","v":"North_Victor_Solar"},"In-State",{"$f":"IFERROR(INDEX($E$5:$E$32,MATCH(raw_resource_build!$E611,Lists!$B$5:$B$32,0)),\"Non-CAISO\")","v":"Renewables"},null,{"$f":"raw_annual_energy!C611","v":"Idaho_Wind"},{"$f":"INDEX(K:K,MATCH(R611,Lists!J:J,0))","v":"Wind"},"Out-Of-State"]
[null,null,null,null,null,null,null,null,null,{"$f":"IFERROR(INDEX(raw_resource_build!$B$2:$B$1000,MATCH(0,COUNTIF($J$1:J611,raw_resource_build!$B$2:$B$1000), 0),0), \"\")","v":""},{"$f":"IF(J612=\"\", \"\", INDEX(raw_resource_build!E:E, MATCH(J612, raw_resource_build!B:B, 0)))","v":""},{"$f":"IF(J612=\"\", \"\", INDEX(raw_resource_build!C:C, MATCH(J612, raw_resource_build!B:B, 0)))","v":""},null,{"$f":"raw_resource_build!B612","v":"Northern_California_Ex_Solar"},"In-State",{"$f":"IFERROR(INDEX($E$5:$E$32,MATCH(raw_resource_build!$E612,Lists!$B$5:$B$32,0)),\"Non-CAISO\")","v":"Renewables"},null,{"$f":"raw_annual_energy!C612","v":"Idaho_Wind"},{"$f":"INDEX(K:K,MATCH(R612,Lists!J:J,0))","v":"Wind"},"Out-Of-State"]
[null,null,null,null,null,null,null,null,null,{"$f":"IFERROR(INDEX(raw_resource_build!$B$2:$B$1000,MATCH(0,COUNTIF($J$1:J612,raw_resource_build!$B$2:$B$1000), 0),0), \"\")","v":""},{"$f":"IF(J613=\"\", \"\", INDEX(raw_resource_build!E:E, MATCH(J613, raw_resource_build!B:B, 0)))","v":""},{"$f":"IF(J613=\"\", \"\", INDEX(raw_resource_build!C:C, MATCH(J613, raw_resource_build!B:B, 0)))","v":""},null,{"$f":"raw_resource_build!B613","v":"Northern_California_Ex_Wind"},"In-State",{"$f":"IFERROR(INDEX($E$5:$E$32,MATCH(raw_resource_build!$E613,Lists!$B$5:$B$32,0)),\"Non-CAISO\")","v":"Renewables"},null,{"$f":"raw_annual_energy!C613","v":"Idaho_Wind"},{"$f":"INDEX(K:K,MATCH(R613,Lists!J:J,0))","v":"Wind"},"Out-Of-State"]
[null,null,null,null,null,null,null,null,null,{"$f":"IFERROR(INDEX(raw_resource_build!$B$2:$B$1000,MATCH(0,COUNTIF($J$1:J613,raw_resource_build!$B$2:$B$1000), 0),0), \"\")","v":""},{"$f":"IF(J614=\"\", \"\", INDEX(raw_resource_build!E:E, MATCH(J614, raw_resource_build!B:B, 0)))","v":""},{"$f":"IF(J614=\"\", \"\", INDEX(raw_resource_build!C:C, MATCH(J614, raw_resource_build!B:B, 0)))","v":""},null,{"$f":"raw_resource_build!B614","v":"NW_Ext_Tx_Wind"},"In-State",{"$f":"IFERROR(INDEX($E$5:$E$32,MATCH(raw_resource_build!$E614,Lists!$B$5:$B$32,0)),\"Non-CAISO\")","v":"Renewables"},null,{"$f":"raw_annual_energy!C614","v":"Idaho_Wind"},{"$f":"INDEX(K:K,MATCH(R614,Lists!J:J,0))","v":"Wind"},"Out-Of-State"]
[null,null,null,null,null,null,null,null,null,{"$f":"IFERROR(INDEX(raw_resource_build!$B$2:$B$1000,MATCH(0,COUNTIF($J$1:J614,raw_resource_build!$B$2:$B$1000), 0),0), \"\")","v":""},{"$f":"IF(J615=\"\", \"\", INDEX(raw_resource_build!E:E, MATCH(J615, raw_resource_build!B:B, 0)))","v":""},{"$f":"IF(J615=\"\", \"\", INDEX(raw_resource_build!C:C, MATCH(J615, raw_resource_build!B:B, 0)))","v":""},null,{"$f":"raw_resource_build!B615","v":"Riverside_Palm_Springs_Solar"},"In-State",{"$f":"IFERROR(INDEX($E$5:$E$32,MATCH(raw_resource_build!$E615,Lists!$B$5:$B$32,0)),\"Non-CAISO\")","v":"Renewables"},null,{"$f":"raw_annual_energy!C615","v":"Idaho_Wind"},{"$f":"INDEX(K:K,MATCH(R615,Lists!J:J,0))","v":"Wind"},"Out-Of-State"]
[null,null,null,null,null,null,null,null,null,{"$f":"IFERROR(INDEX(raw_resource_build!$B$2:$B$1000,MATCH(0,COUNTIF($J$1:J615,raw_resource_build!$B$2:$B$1000), 0),0), \"\")","v":""},{"$f":"IF(J616=\"\", \"\", INDEX(raw_resource_build!E:E, MATCH(J616, raw_resource_build!B:B, 0)))","v":""},{"$f":"IF(J616=\"\", \"\", INDEX(raw_resource_build!C:C, MATCH(J616, raw_resource_build!B:B, 0)))","v":""},null,{"$f":"raw_resource_build!B616","v":"Sacramento_River_Solar"},"In-State",{"$f":"IFERROR(INDEX($E$5:$E$32,MATCH(raw_resource_build!$E616,Lists!$B$5:$B$32,0)),\"Non-CAISO\")","v":"Renewables"},null,{"$f":"raw_annual_energy!C616","v":"Idaho_Wind"},{"$f":"INDEX(K:K,MATCH(R616,Lists!J:J,0))","v":"Wind"},"Out-Of-State"]
[null,null,null,null,null,null,null,null,null,{"$f":"IFERROR(INDEX(raw_resource_build!$B$2:$B$1000,MATCH(0,COUNTIF($J$1:J616,raw_resource_build!$B$2:$B$1000), 0),0), \"\")","v":""},{"$f":"IF(J617=\"\", \"\", INDEX(raw_resource_build!E:E, MATCH(J617, raw_resource_build!B:B, 0)))","v":""},{"$f":"IF(J617=\"\", \"\", INDEX(raw_resource_build!C:C, MATCH(J617, raw_resource_build!B:B, 0)))","v":""},null,{"$f":"raw_resource_build!B617","v":"Sacramento_River_Wind"},"In-State",{"$f":"IFERROR(INDEX($E$5:$E$32,MATCH(raw_resource_build!$E617,Lists!$B$5:$B$32,0)),\"Non-CAISO\")","v":"Renewables"},null,{"$f":"raw_annual_energy!C617","v":"Idaho_Wind"},{"$f":"INDEX(K:K,MATCH(R617,Lists!J:J,0))","v":"Wind"},"Out-Of-State"]
[null,null,null,null,null,null,null,null,null,{"$f":"IFERROR(INDEX(raw_resource_build!$B$2:$B$1000,MATCH(0,COUNTIF($J$1:J617,raw_resource_build!$B$2:$B$1000), 0),0), \"\")","v":""},{"$f":"IF(J618=\"\", \"\", INDEX(raw_resource_build!E:E, MATCH(J618, raw_resource_build!B:B, 0)))","v":""},{"$f":"IF(J618=\"\", \"\", INDEX(raw_resource_build!C:C, MATCH(J618, raw_resource_build!B:B, 0)))","v":""},null,{"$f":"raw_resource_build!B618","v":"SCADSNV_Solar"},"In-State",{"$f":"IFERROR(INDEX($E$5:$E$32,MATCH(raw_resource_build!$E618,Lists!$B$5:$B$32,0)),\"Non-CAISO\")","v":"Renewables"},null,{"$f":"raw_annual_energy!C618","v":"Idaho_Wind"},{"$f":"INDEX(K:K,MATCH(R618,Lists!J:J,0))","v":"Wind"},"Out-Of-State"]
[null,null,null,null,null,null,null,null,null,{"$f":"IFERROR(INDEX(raw_resource_build!$B$2:$B$1000,MATCH(0,COUNTIF($J$1:J618,raw_resource_build!$B$2:$B$1000), 0),0), \"\")","v":""},{"$f":"IF(J619=\"\", \"\", INDEX(raw_resource_build!E:E, MATCH(J619, raw_resource_build!B:B, 0)))","v":""},{"$f":"IF(J619=\"\", \"\", INDEX(raw_resource_build!C:C, MATCH(J619, raw_resource_build!B:B, 0)))","v":""},null,{"$f":"raw_resource_build!B619","v":"SCADSNV_Wind"},"In-State",{"$f":"IFERROR(INDEX($E$5:$E$32,MATCH(raw_resource_build!$E619,Lists!$B$5:$B$32,0)),\"Non-CAISO\")","v":"Renewables"},null,{"$f":"raw_annual_energy!C619","v":"InState_Biomass"},{"$f":"INDEX(K:K,MATCH(R619,Lists!J:J,0))","v":"Biomass"},"In-State"]
[null,null,null,null,null,null,null,null,null,{"$f":"IFERROR(INDEX(raw_resource_build!$B$2:$B$1000,MATCH(0,COUNTIF($J$1:J619,raw_resource_build!$B$2:$B$1000), 0),0), \"\")","v":""},{"$f":"IF(J620=\"\", \"\", INDEX(raw_resource_build!E:E, MATCH(J620, raw_resource_build!B:B, 0)))","v":""},{"$f":"IF(J620=\"\", \"\", INDEX(raw_resource_build!C:C, MATCH(J620, raw_resource_build!B:B, 0)))","v":""},null,{"$f":"raw_resource_build!B620","v":"Solano_Solar"},"In-State",{"$f":"IFERROR(INDEX($E$5:$E$32,MATCH(raw_resource_build!$E620,Lists!$B$5:$B$32,0)),\"Non-CAISO\")","v":"Renewables"},null,{"$f":"raw_annual_energy!C620","v":"InState_Biomass"},{"$f":"INDEX(K:K,MATCH(R620,Lists!J:J,0))","v":"Biomass"},"In-State"]
[null,null,null,null,null,null,null,null,null,{"$f":"IFERROR(INDEX(raw_resource_build!$B$2:$B$1000,MATCH(0,COUNTIF($J$1:J620,raw_resource_build!$B$2:$B$1000), 0),0), \"\")","v":""},{"$f":"IF(J621=\"\", \"\", INDEX(raw_resource_build!E:E, MATCH(J621, raw_resource_build!B:B, 0)))","v":""},{"$f":"IF(J621=\"\", \"\", INDEX(raw_resource_build!C:C, MATCH(J621, raw_resource_build!B:B, 0)))","v":""},null,{"$f":"raw_resource_build!B621","v":"Solano_subzone_Solar"},"In-State",{"$f":"IFERROR(INDEX($E$5:$E$32,MATCH(raw_resource_build!$E621,Lists!$B$5:$B$32,0)),\"Non-CAISO\")","v":"Renewables"},null,{"$f":"raw_annual_energy!C621","v":"InState_Biomass"},{"$f":"INDEX(K:K,MATCH(R621,Lists!J:J,0))","v":"Biomass"},"In-State"]
[null,null,null,null,null,null,null,null,null,{"$f":"IFERROR(INDEX(raw_resource_build!$B$2:$B$1000,MATCH(0,COUNTIF($J$1:J621,raw_resource_build!$B$2:$B$1000), 0),0), \"\")","v":""},{"$f":"IF(J622=\"\", \"\", INDEX(raw_resource_build!E:E, MATCH(J622, raw_resource_build!B:B, 0)))","v":""},{"$f":"IF(J622=\"\", \"\", INDEX(raw_resource_build!C:C, MATCH(J622, raw_resource_build!B:B, 0)))","v":""},null,{"$f":"raw_resource_build!B622","v":"Solano_subzone_Wind"},"In-State",{"$f":"IFERROR(INDEX($E$5:$E$32,MATCH(raw_resource_build!$E622,Lists!$B$5:$B$32,0)),\"Non-CAISO\")","v":"Renewables"},null,{"$f":"raw_annual_energy!C622","v":"InState_Biomass"},{"$f":"INDEX(K:K,MATCH(R622,Lists!J:J,0))","v":"Biomass"},"In-State"]
[null,null,null,null,null,null,null,null,null,{"$f":"IFERROR(INDEX(raw_resource_build!$B$2:$B$1000,MATCH(0,COUNTIF($J$1:J622,raw_resource_build!$B$2:$B$1000), 0),0), \"\")","v":""},{"$f":"IF(J623=\"\", \"\", INDEX(raw_resource_build!E:E, MATCH(J623, raw_resource_build!B:B, 0)))","v":""},{"$f":"IF(J623=\"\", \"\", INDEX(raw_resource_build!C:C, MATCH(J623, raw_resource_build!B:B, 0)))","v":""},null,{"$f":"raw_resource_build!B623","v":"Solano_Wind"},"In-State",{"$f":"IFERROR(INDEX($E$5:$E$32,MATCH(raw_resource_build!$E623,Lists!$B$5:$B$32,0)),\"Non-CAISO\")","v":"Renewables"},null,{"$f":"raw_annual_energy!C623","v":"InState_Biomass"},{"$f":"INDEX(K:K,MATCH(R623,Lists!J:J,0))","v":"Biomass"},"In-State"]
[null,null,null,null,null,null,null,null,null,{"$f":"IFERROR(INDEX(raw_resource_build!$B$2:$B$1000,MATCH(0,COUNTIF($J$1:J623,raw_resource_build!$B$2:$B$1000), 0),0), \"\")","v":""},{"$f":"IF(J624=\"\", \"\", INDEX(raw_resource_build!E:E, MATCH(J624, raw_resource_build!B:B, 0)))","v":""},{"$f":"IF(J624=\"\", \"\", INDEX(raw_resource_build!C:C, MATCH(J624, raw_resource_build!B:B, 0)))","v":""},null,{"$f":"raw_resource_build!B624","v":"Southern_California_Desert_Ex_Solar"},"In-State",{"$f":"IFERROR(INDEX($E$5:$E$32,MATCH(raw_resource_build!$E624,Lists!$B$5:$B$32,0)),\"Non-CAISO\")","v":"Renewables"},null,{"$f":"raw_annual_energy!C624","v":"InState_Biomass"},{"$f":"INDEX(K:K,MATCH(R624,Lists!J:J,0))","v":"Biomass"},"In-State"]
[null,null,null,null,null,null,null,null,null,{"$f":"IFERROR(INDEX(raw_resource_build!$B$2:$B$1000,MATCH(0,COUNTIF($J$1:J624,raw_resource_build!$B$2:$B$1000), 0),0), \"\")","v":""},{"$f":"IF(J625=\"\", \"\", INDEX(raw_resource_build!E:E, MATCH(J625, raw_resource_build!B:B, 0)))","v":""},{"$f":"IF(J625=\"\", \"\", INDEX(raw_resource_build!C:C, MATCH(J625, raw_resource_build!B:B, 0)))","v":""},null,{"$f":"raw_resource_build!B625","v":"Southern_California_Desert_Ex_Wind"},"In-State",{"$f":"IFERROR(INDEX($E$5:$E$32,MATCH(raw_resource_build!$E625,Lists!$B$5:$B$32,0)),\"Non-CAISO\")","v":"Renewables"},null,{"$f":"raw_annual_energy!C625","v":"InState_Biomass"},{"$f":"INDEX(K:K,MATCH(R625,Lists!J:J,0))","v":"Biomass"},"In-State"]
[null,null,null,null,null,null,null,null,null,{"$f":"IFERROR(INDEX(raw_resource_build!$B$2:$B$1000,MATCH(0,COUNTIF($J$1:J625,raw_resource_build!$B$2:$B$1000), 0),0), \"\")","v":""},{"$f":"IF(J626=\"\", \"\", INDEX(raw_resource_build!E:E, MATCH(J626, raw_resource_build!B:B, 0)))","v":""},{"$f":"IF(J626=\"\", \"\", INDEX(raw_resource_build!C:C, MATCH(J626, raw_resource_build!B:B, 0)))","v":""},null,{"$f":"raw_resource_build!B626","v":"Southern_Nevada_Solar"},"In-State",{"$f":"IFERROR(INDEX($E$5:$E$32,MATCH(raw_resource_build!$E626,Lists!$B$5:$B$32,0)),\"Non-CAISO\")","v":"Renewables"},null,{"$f":"raw_annual_energy!C626","v":"InState_Biomass"},{"$f":"INDEX(K:K,MATCH(R626,Lists!J:J,0))","v":"Biomass"},"In-State"]
[null,null,null,null,null,null,null,null,null,{"$f":"IFERROR(INDEX(raw_resource_build!$B$2:$B$1000,MATCH(0,COUNTIF($J$1:J626,raw_resource_build!$B$2:$B$1000), 0),0), \"\")","v":""},{"$f":"IF(J627=\"\", \"\", INDEX(raw_resource_build!E:E, MATCH(J627, raw_resource_build!B:B, 0)))","v":""},{"$f":"IF(J627=\"\", \"\", INDEX(raw_resource_build!C:C, MATCH(J627, raw_resource_build!B:B, 0)))","v":""},null,{"$f":"raw_resource_build!B627","v":"Southern_Nevada_Wind"},"In-State",{"$f":"IFERROR(INDEX($E$5:$E$32,MATCH(raw_resource_build!$E627,Lists!$B$5:$B$32,0)),\"Non-CAISO\")","v":"Renewables"},null,{"$f":"raw_annual_energy!C627","v":"Inyokern_North_Kramer_Geothermal"},{"$f":"INDEX(K:K,MATCH(R627,Lists!J:J,0))","v":"Geothermal"},"In-State"]
[null,null,null,null,null,null,null,null,null,{"$f":"IFERROR(INDEX(raw_resource_build!$B$2:$B$1000,MATCH(0,COUNTIF($J$1:J627,raw_resource_build!$B$2:$B$1000), 0),0), \"\")","v":""},{"$f":"IF(J628=\"\", \"\", INDEX(raw_resource_build!E:E, MATCH(J628, raw_resource_build!B:B, 0)))","v":""},{"$f":"IF(J628=\"\", \"\", INDEX(raw_resource_build!C:C, MATCH(J628, raw_resource_build!B:B, 0)))","v":""},null,{"$f":"raw_resource_build!B628","v":"SW_Ext_Tx_Wind"},"In-State",{"$f":"IFERROR(INDEX($E$5:$E$32,MATCH(raw_resource_build!$E628,Lists!$B$5:$B$32,0)),\"Non-CAISO\")","v":"Renewables"},null,{"$f":"raw_annual_energy!C628","v":"Inyokern_North_Kramer_Geothermal"},{"$f":"INDEX(K:K,MATCH(R628,Lists!J:J,0))","v":"Geothermal"},"In-State"]
[null,null,null,null,null,null,null,null,null,{"$f":"IFERROR(INDEX(raw_resource_build!$B$2:$B$1000,MATCH(0,COUNTIF($J$1:J628,raw_resource_build!$B$2:$B$1000), 0),0), \"\")","v":""},{"$f":"IF(J629=\"\", \"\", INDEX(raw_resource_build!E:E, MATCH(J629, raw_resource_build!B:B, 0)))","v":""},{"$f":"IF(J629=\"\", \"\", INDEX(raw_resource_build!C:C, MATCH(J629, raw_resource_build!B:B, 0)))","v":""},null,{"$f":"raw_resource_build!B629","v":"Tehachapi_Ex_Solar"},"In-State",{"$f":"IFERROR(INDEX($E$5:$E$32,MATCH(raw_resource_build!$E629,Lists!$B$5:$B$32,0)),\"Non-CAISO\")","v":"Renewables"},null,{"$f":"raw_annual_energy!C629","v":"Inyokern_North_Kramer_Geothermal"},{"$f":"INDEX(K:K,MATCH(R629,Lists!J:J,0))","v":"Geothermal"},"In-State"]
[null,null,null,null,null,null,null,null,null,{"$f":"IFERROR(INDEX(raw_resource_build!$B$2:$B$1000,MATCH(0,COUNTIF($J$1:J629,raw_resource_build!$B$2:$B$1000), 0),0), \"\")","v":""},{"$f":"IF(J630=\"\", \"\", INDEX(raw_resource_build!E:E, MATCH(J630, raw_resource_build!B:B, 0)))","v":""},{"$f":"IF(J630=\"\", \"\", INDEX(raw_resource_build!C:C, MATCH(J630, raw_resource_build!B:B, 0)))","v":""},null,{"$f":"raw_resource_build!B630","v":"Tehachapi_Solar"},"In-State",{"$f":"IFERROR(INDEX($E$5:$E$32,MATCH(raw_resource_build!$E630,Lists!$B$5:$B$32,0)),\"Non-CAISO\")","v":"Renewables"},null,{"$f":"raw_annual_energy!C630","v":"Inyokern_North_Kramer_Geothermal"},{"$f":"INDEX(K:K,MATCH(R630,Lists!J:J,0))","v":"Geothermal"},"In-State"]
[null,null,null,null,null,null,null,null,null,{"$f":"IFERROR(INDEX(raw_resource_build!$B$2:$B$1000,MATCH(0,COUNTIF($J$1:J630,raw_resource_build!$B$2:$B$1000), 0),0), \"\")","v":""},{"$f":"IF(J631=\"\", \"\", INDEX(raw_resource_build!E:E, MATCH(J631, raw_resource_build!B:B, 0)))","v":""},{"$f":"IF(J631=\"\", \"\", INDEX(raw_resource_build!C:C, MATCH(J631, raw_resource_build!B:B, 0)))","v":""},null,{"$f":"raw_resource_build!B631","v":"Tehachapi_Wind"},"In-State",{"$f":"IFERROR(INDEX($E$5:$E$32,MATCH(raw_resource_build!$E631,Lists!$B$5:$B$32,0)),\"Non-CAISO\")","v":"Renewables"},null,{"$f":"raw_annual_energy!C631","v":"Inyokern_North_Kramer_Geothermal"},{"$f":"INDEX(K:K,MATCH(R631,Lists!J:J,0))","v":"Geothermal"},"In-State"]
[null,null,null,null,null,null,null,null,null,{"$f":"IFERROR(INDEX(raw_resource_build!$B$2:$B$1000,MATCH(0,COUNTIF($J$1:J631,raw_resource_build!$B$2:$B$1000), 0),0), \"\")","v":""},{"$f":"IF(J632=\"\", \"\", INDEX(raw_resource_build!E:E, MATCH(J632, raw_resource_build!B:B, 0)))","v":""},{"$f":"IF(J632=\"\", \"\", INDEX(raw_resource_build!C:C, MATCH(J632, raw_resource_build!B:B, 0)))","v":""},null,{"$f":"raw_resource_build!B632","v":"Westlands_Ex_Solar"},"In-State",{"$f":"IFERROR(INDEX($E$5:$E$32,MATCH(raw_resource_build!$E632,Lists!$B$5:$B$32,0)),\"Non-CAISO\")","v":"Renewables"},null,{"$f":"raw_annual_energy!C632","v":"Inyokern_North_Kramer_Geothermal"},{"$f":"INDEX(K:K,MATCH(R632,Lists!J:J,0))","v":"Geothermal"},"In-State"]
[null,null,null,null,null,null,null,null,null,{"$f":"IFERROR(INDEX(raw_resource_build!$B$2:$B$1000,MATCH(0,COUNTIF($J$1:J632,raw_resource_build!$B$2:$B$1000), 0),0), \"\")","v":""},{"$f":"IF(J633=\"\", \"\", INDEX(raw_resource_build!E:E, MATCH(J633, raw_resource_build!B:B, 0)))","v":""},{"$f":"IF(J633=\"\", \"\", INDEX(raw_resource_build!C:C, MATCH(J633, raw_resource_build!B:B, 0)))","v":""},null,{"$f":"raw_resource_build!B633","v":"Westlands_Ex_Wind"},"In-State",{"$f":"IFERROR(INDEX($E$5:$E$32,MATCH(raw_resource_build!$E633,Lists!$B$5:$B$32,0)),\"Non-CAISO\")","v":"Renewables"},null,{"$f":"raw_annual_energy!C633","v":"Inyokern_North_Kramer_Geothermal"},{"$f":"INDEX(K:K,MATCH(R633,Lists!J:J,0))","v":"Geothermal"},"In-State"]
[null,null,null,null,null,null,null,null,null,{"$f":"IFERROR(INDEX(raw_resource_build!$B$2:$B$1000,MATCH(0,COUNTIF($J$1:J633,raw_resource_build!$B$2:$B$1000), 0),0), \"\")","v":""},{"$f":"IF(J634=\"\", \"\", INDEX(raw_resource_build!E:E, MATCH(J634, raw_resource_build!B:B, 0)))","v":""},{"$f":"IF(J634=\"\", \"\", INDEX(raw_resource_build!C:C, MATCH(J634, raw_resource_build!B:B, 0)))","v":""},null,{"$f":"raw_resource_build!B634","v":"Westlands_Solar"},"In-State",{"$f":"IFERROR(INDEX($E$5:$E$32,MATCH(raw_resource_build!$E634,Lists!$B$5:$B$32,0)),\"Non-CAISO\")","v":"Renewables"},null,{"$f":"raw_annual_energy!C634","v":"Inyokern_North_Kramer_Geothermal"},{"$f":"INDEX(K:K,MATCH(R634,Lists!J:J,0))","v":"Geothermal"},"In-State"]
[null,null,null,null,null,null,null,null,null,{"$f":"IFERROR(INDEX(raw_resource_build!$B$2:$B$1000,MATCH(0,COUNTIF($J$1:J634,raw_resource_build!$B$2:$B$1000), 0),0), \"\")","v":""},{"$f":"IF(J635=\"\", \"\", INDEX(raw_resource_build!E:E, MATCH(J635, raw_resource_build!B:B, 0)))","v":""},{"$f":"IF(J635=\"\", \"\", INDEX(raw_resource_build!C:C, MATCH(J635, raw_resource_build!B:B, 0)))","v":""},null,{"$f":"raw_resource_build!B635","v":"Arizona_Solar"},"In-State",{"$f":"IFERROR(INDEX($E$5:$E$32,MATCH(raw_resource_build!$E635,Lists!$B$5:$B$32,0)),\"Non-CAISO\")","v":"Renewables"},null,{"$f":"raw_annual_energy!C635","v":"Inyokern_North_Kramer_Solar"},{"$f":"INDEX(K:K,MATCH(R635,Lists!J:J,0))","v":"Solar"},"In-State"]
[null,null,null,null,null,null,null,null,null,{"$f":"IFERROR(INDEX(raw_resource_build!$B$2:$B$1000,MATCH(0,COUNTIF($J$1:J635,raw_resource_build!$B$2:$B$1000), 0),0), \"\")","v":""},{"$f":"IF(J636=\"\", \"\", INDEX(raw_resource_build!E:E, MATCH(J636, raw_resource_build!B:B, 0)))","v":""},{"$f":"IF(J636=\"\", \"\", INDEX(raw_resource_build!C:C, MATCH(J636, raw_resource_build!B:B, 0)))","v":""},null,{"$f":"raw_resource_build!B636","v":"Arizona_Wind"},"Out-Of-State",{"$f":"IFERROR(INDEX($E$5:$E$32,MATCH(raw_resource_build!$E636,Lists!$B$5:$B$32,0)),\"Non-CAISO\")","v":"Renewables"},null,{"$f":"raw_annual_energy!C636","v":"Inyokern_North_Kramer_Solar"},{"$f":"INDEX(K:K,MATCH(R636,Lists!J:J,0))","v":"Solar"},"In-State"]
[null,null,null,null,null,null,null,null,null,{"$f":"IFERROR(INDEX(raw_resource_build!$B$2:$B$1000,MATCH(0,COUNTIF($J$1:J636,raw_resource_build!$B$2:$B$1000), 0),0), \"\")","v":""},{"$f":"IF(J637=\"\", \"\", INDEX(raw_resource_build!E:E, MATCH(J637, raw_resource_build!B:B, 0)))","v":""},{"$f":"IF(J637=\"\", \"\", INDEX(raw_resource_build!C:C, MATCH(J637, raw_resource_build!B:B, 0)))","v":""},null,{"$f":"raw_resource_build!B637","v":"Baja_California_Solar"},"In-State",{"$f":"IFERROR(INDEX($E$5:$E$32,MATCH(raw_resource_build!$E637,Lists!$B$5:$B$32,0)),\"Non-CAISO\")","v":"Renewables"},null,{"$f":"raw_annual_energy!C637","v":"Inyokern_North_Kramer_Solar"},{"$f":"INDEX(K:K,MATCH(R637,Lists!J:J,0))","v":"Solar"},"In-State"]
[null,null,null,null,null,null,null,null,null,{"$f":"IFERROR(INDEX(raw_resource_build!$B$2:$B$1000,MATCH(0,COUNTIF($J$1:J637,raw_resource_build!$B$2:$B$1000), 0),0), \"\")","v":""},{"$f":"IF(J638=\"\", \"\", INDEX(raw_resource_build!E:E, MATCH(J638, raw_resource_build!B:B, 0)))","v":""},{"$f":"IF(J638=\"\", \"\", INDEX(raw_resource_build!C:C, MATCH(J638, raw_resource_build!B:B, 0)))","v":""},null,{"$f":"raw_resource_build!B638","v":"Baja_California_Wind"},"In-State",{"$f":"IFERROR(INDEX($E$5:$E$32,MATCH(raw_resource_build!$E638,Lists!$B$5:$B$32,0)),\"Non-CAISO\")","v":"Renewables"},null,{"$f":"raw_annual_energy!C638","v":"Inyokern_North_Kramer_Solar"},{"$f":"INDEX(K:K,MATCH(R638,Lists!J:J,0))","v":"Solar"},"In-State"]
[null,null,null,null,null,null,null,null,null,{"$f":"IFERROR(INDEX(raw_resource_build!$B$2:$B$1000,MATCH(0,COUNTIF($J$1:J638,raw_resource_build!$B$2:$B$1000), 0),0), \"\")","v":""},{"$f":"IF(J639=\"\", \"\", INDEX(raw_resource_build!E:E, MATCH(J639, raw_resource_build!B:B, 0)))","v":""},{"$f":"IF(J639=\"\", \"\", INDEX(raw_resource_build!C:C, MATCH(J639, raw_resource_build!B:B, 0)))","v":""},null,{"$f":"raw_resource_build!B639","v":"Idaho_Wind"},"Out-Of-State",{"$f":"IFERROR(INDEX($E$5:$E$32,MATCH(raw_resource_build!$E639,Lists!$B$5:$B$32,0)),\"Non-CAISO\")","v":"Renewables"},null,{"$f":"raw_annual_energy!C639","v":"Inyokern_North_Kramer_Solar"},{"$f":"INDEX(K:K,MATCH(R639,Lists!J:J,0))","v":"Solar"},"In-State"]
[null,null,null,null,null,null,null,null,null,{"$f":"IFERROR(INDEX(raw_resource_build!$B$2:$B$1000,MATCH(0,COUNTIF($J$1:J639,raw_resource_build!$B$2:$B$1000), 0),0), \"\")","v":""},{"$f":"IF(J640=\"\", \"\", INDEX(raw_resource_build!E:E, MATCH(J640, raw_resource_build!B:B, 0)))","v":""},{"$f":"IF(J640=\"\", \"\", INDEX(raw_resource_build!C:C, MATCH(J640, raw_resource_build!B:B, 0)))","v":""},null,{"$f":"raw_resource_build!B640","v":"New_Mexico_Solar"},"Out-Of-State",{"$f":"IFERROR(INDEX($E$5:$E$32,MATCH(raw_resource_build!$E640,Lists!$B$5:$B$32,0)),\"Non-CAISO\")","v":"Renewables"},null,{"$f":"raw_annual_energy!C640","v":"Inyokern_North_Kramer_Solar"},{"$f":"INDEX(K:K,MATCH(R640,Lists!J:J,0))","v":"Solar"},"In-State"]
[null,null,null,null,null,null,null,null,null,{"$f":"IFERROR(INDEX(raw_resource_build!$B$2:$B$1000,MATCH(0,COUNTIF($J$1:J640,raw_resource_build!$B$2:$B$1000), 0),0), \"\")","v":""},{"$f":"IF(J641=\"\", \"\", INDEX(raw_resource_build!E:E, MATCH(J641, raw_resource_build!B:B, 0)))","v":""},{"$f":"IF(J641=\"\", \"\", INDEX(raw_resource_build!C:C, MATCH(J641, raw_resource_build!B:B, 0)))","v":""},null,{"$f":"raw_resource_build!B641","v":"New_Mexico_Wind"},"Out-Of-State",{"$f":"IFERROR(INDEX($E$5:$E$32,MATCH(raw_resource_build!$E641,Lists!$B$5:$B$32,0)),\"Non-CAISO\")","v":"Renewables"},null,{"$f":"raw_annual_energy!C641","v":"Inyokern_North_Kramer_Solar"},{"$f":"INDEX(K:K,MATCH(R641,Lists!J:J,0))","v":"Solar"},"In-State"]
[null,null,null,null,null,null,null,null,null,{"$f":"IFERROR(INDEX(raw_resource_build!$B$2:$B$1000,MATCH(0,COUNTIF($J$1:J641,raw_resource_build!$B$2:$B$1000), 0),0), \"\")","v":""},{"$f":"IF(J642=\"\", \"\", INDEX(raw_resource_build!E:E, MATCH(J642, raw_resource_build!B:B, 0)))","v":""},{"$f":"IF(J642=\"\", \"\", INDEX(raw_resource_build!C:C, MATCH(J642, raw_resource_build!B:B, 0)))","v":""},null,{"$f":"raw_resource_build!B642","v":"Utah_Solar"},"Out-Of-State",{"$f":"IFERROR(INDEX($E$5:$E$32,MATCH(raw_resource_build!$E642,Lists!$B$5:$B$32,0)),\"Non-CAISO\")","v":"Renewables"},null,{"$f":"raw_annual_energy!C642","v":"Inyokern_North_Kramer_Solar"},{"$f":"INDEX(K:K,MATCH(R642,Lists!J:J,0))","v":"Solar"},"In-State"]
[null,null,null,null,null,null,null,null,null,{"$f":"IFERROR(INDEX(raw_resource_build!$B$2:$B$1000,MATCH(0,COUNTIF($J$1:J642,raw_resource_build!$B$2:$B$1000), 0),0), \"\")","v":""},{"$f":"IF(J643=\"\", \"\", INDEX(raw_resource_build!E:E, MATCH(J643, raw_resource_build!B:B, 0)))","v":""},{"$f":"IF(J643=\"\", \"\", INDEX(raw_resource_build!C:C, MATCH(J643, raw_resource_build!B:B, 0)))","v":""},null,{"$f":"raw_resource_build!B643","v":"Utah_Wind"},{"$f":"IFERROR(INDEX($C$35:$C$99,MATCH($N643,$B$35:$B$99,0)),\"Non-wind\")","v":"Out-Of-State"},{"$f":"IFERROR(INDEX($E$5:$E$32,MATCH(raw_resource_build!$E643,Lists!$B$5:$B$32,0)),\"Non-CAISO\")","v":"Renewables"},null,{"$f":"raw_annual_energy!C643","v":"Kern_Greater_Carrizo_Solar"},{"$f":"INDEX(K:K,MATCH(R643,Lists!J:J,0))","v":"Solar"},{"$f":"IFERROR(INDEX($C$35:$C$99,MATCH($R643,$B$35:$B$99,0)),\"Non-wind\")","v":"In-State"}]
[null,null,null,null,null,null,null,null,null,{"$f":"IFERROR(INDEX(raw_resource_build!$B$2:$B$1000,MATCH(0,COUNTIF($J$1:J643,raw_resource_build!$B$2:$B$1000), 0),0), \"\")","v":""},{"$f":"IF(J644=\"\", \"\", INDEX(raw_resource_build!E:E, MATCH(J644, raw_resource_build!B:B, 0)))","v":""},{"$f":"IF(J644=\"\", \"\", INDEX(raw_resource_build!C:C, MATCH(J644, raw_resource_build!B:B, 0)))","v":""},null,{"$f":"raw_resource_build!B644","v":"Wyoming_Wind"},"Out-Of-State",{"$f":"IFERROR(INDEX($E$5:$E$32,MATCH(raw_resource_build!$E644,Lists!$B$5:$B$32,0)),\"Non-CAISO\")","v":"Renewables"},null,{"$f":"raw_annual_energy!C644","v":"Kern_Greater_Carrizo_Solar"},{"$f":"INDEX(K:K,MATCH(R644,Lists!J:J,0))","v":"Solar"},"In-State"]
[null,null,null,null,null,null,null,null,null,{"$f":"IFERROR(INDEX(raw_resource_build!$B$2:$B$1000,MATCH(0,COUNTIF($J$1:J644,raw_resource_build!$B$2:$B$1000), 0),0), \"\")","v":""},{"$f":"IF(J645=\"\", \"\", INDEX(raw_resource_build!E:E, MATCH(J645, raw_resource_build!B:B, 0)))","v":""},{"$f":"IF(J645=\"\", \"\", INDEX(raw_resource_build!C:C, MATCH(J645, raw_resource_build!B:B, 0)))","v":""},null,{"$f":"raw_resource_build!B645","v":"Pacific_Northwest_Wind"},"Out-Of-State",{"$f":"IFERROR(INDEX($E$5:$E$32,MATCH(raw_resource_build!$E645,Lists!$B$5:$B$32,0)),\"Non-CAISO\")","v":"Renewables"},null,{"$f":"raw_annual_energy!C645","v":"Kern_Greater_Carrizo_Solar"},{"$f":"INDEX(K:K,MATCH(R645,Lists!J:J,0))","v":"Solar"},"In-State"]
[null,null,null,null,null,null,null,null,null,{"$f":"IFERROR(INDEX(raw_resource_build!$B$2:$B$1000,MATCH(0,COUNTIF($J$1:J645,raw_resource_build!$B$2:$B$1000), 0),0), \"\")","v":""},{"$f":"IF(J646=\"\", \"\", INDEX(raw_resource_build!E:E, MATCH(J646, raw_resource_build!B:B, 0)))","v":""},{"$f":"IF(J646=\"\", \"\", INDEX(raw_resource_build!C:C, MATCH(J646, raw_resource_build!B:B, 0)))","v":""},null,{"$f":"raw_resource_build!B646","v":"Diablo_Canyon_Offshore_Wind"},"In-State",{"$f":"IFERROR(INDEX($E$5:$E$32,MATCH(raw_resource_build!$E646,Lists!$B$5:$B$32,0)),\"Non-CAISO\")","v":"Renewables"},null,{"$f":"raw_annual_energy!C646","v":"Kern_Greater_Carrizo_Solar"},{"$f":"INDEX(K:K,MATCH(R646,Lists!J:J,0))","v":"Solar"},"In-State"]
[null,null,null,null,null,null,null,null,null,{"$f":"IFERROR(INDEX(raw_resource_build!$B$2:$B$1000,MATCH(0,COUNTIF($J$1:J646,raw_resource_build!$B$2:$B$1000), 0),0), \"\")","v":""},{"$f":"IF(J647=\"\", \"\", INDEX(raw_resource_build!E:E, MATCH(J647, raw_resource_build!B:B, 0)))","v":""},{"$f":"IF(J647=\"\", \"\", INDEX(raw_resource_build!C:C, MATCH(J647, raw_resource_build!B:B, 0)))","v":""},null,{"$f":"raw_resource_build!B647","v":"Humboldt_Bay_Offshore_Wind"},"In-State",{"$f":"IFERROR(INDEX($E$5:$E$32,MATCH(raw_resource_build!$E647,Lists!$B$5:$B$32,0)),\"Non-CAISO\")","v":"Renewables"},null,{"$f":"raw_annual_energy!C647","v":"Kern_Greater_Carrizo_Solar"},{"$f":"INDEX(K:K,MATCH(R647,Lists!J:J,0))","v":"Solar"},"In-State"]
[null,null,null,null,null,null,null,null,null,{"$f":"IFERROR(INDEX(raw_resource_build!$B$2:$B$1000,MATCH(0,COUNTIF($J$1:J647,raw_resource_build!$B$2:$B$1000), 0),0), \"\")","v":""},{"$f":"IF(J648=\"\", \"\", INDEX(raw_resource_build!E:E, MATCH(J648, raw_resource_build!B:B, 0)))","v":""},{"$f":"IF(J648=\"\", \"\", INDEX(raw_resource_build!C:C, MATCH(J648, raw_resource_build!B:B, 0)))","v":""},null,{"$f":"raw_resource_build!B648","v":"Morro_Bay_Offshore_Wind"},"In-State",{"$f":"IFERROR(INDEX($E$5:$E$32,MATCH(raw_resource_build!$E648,Lists!$B$5:$B$32,0)),\"Non-CAISO\")","v":"Renewables"},null,{"$f":"raw_annual_energy!C648","v":"Kern_Greater_Carrizo_Solar"},{"$f":"INDEX(K:K,MATCH(R648,Lists!J:J,0))","v":"Solar"},"In-State"]
[null,null,null,null,null,null,null,null,null,{"$f":"IFERROR(INDEX(raw_resource_build!$B$2:$B$1000,MATCH(0,COUNTIF($J$1:J648,raw_resource_build!$B$2:$B$1000), 0),0), \"\")","v":""},{"$f":"IF(J649=\"\", \"\", INDEX(raw_resource_build!E:E, MATCH(J649, raw_resource_build!B:B, 0)))","v":""},{"$f":"IF(J649=\"\", \"\", INDEX(raw_resource_build!C:C, MATCH(J649, raw_resource_build!B:B, 0)))","v":""},null,{"$f":"raw_resource_build!B649","v":"Diablo_Canyon_Offshore_Wind_Ext_Tx"},"In-State",{"$f":"IFERROR(INDEX($E$5:$E$32,MATCH(raw_resource_build!$E649,Lists!$B$5:$B$32,0)),\"Non-CAISO\")","v":"Renewables"},null,{"$f":"raw_annual_energy!C649","v":"Kern_Greater_Carrizo_Solar"},{"$f":"INDEX(K:K,MATCH(R649,Lists!J:J,0))","v":"Solar"},"In-State"]
[null,null,null,null,null,null,null,null,null,{"$f":"IFERROR(INDEX(raw_resource_build!$B$2:$B$1000,MATCH(0,COUNTIF($J$1:J649,raw_resource_build!$B$2:$B$1000), 0),0), \"\")","v":""},{"$f":"IF(J650=\"\", \"\", INDEX(raw_resource_build!E:E, MATCH(J650, raw_resource_build!B:B, 0)))","v":""},{"$f":"IF(J650=\"\", \"\", INDEX(raw_resource_build!C:C, MATCH(J650, raw_resource_build!B:B, 0)))","v":""},null,{"$f":"raw_resource_build!B650","v":"Cape_Mendocino_Offshore_Wind"},"In-State",{"$f":"IFERROR(INDEX($E$5:$E$32,MATCH(raw_resource_build!$E650,Lists!$B$5:$B$32,0)),\"Non-CAISO\")","v":"Renewables"},null,{"$f":"raw_annual_energy!C650","v":"Kern_Greater_Carrizo_Solar"},{"$f":"INDEX(K:K,MATCH(R650,Lists!J:J,0))","v":"Solar"},"In-State"]
[null,null,null,null,null,null,null,null,null,{"$f":"IFERROR(INDEX(raw_resource_build!$B$2:$B$1000,MATCH(0,COUNTIF($J$1:J650,raw_resource_build!$B$2:$B$1000), 0),0), \"\")","v":""},{"$f":"IF(J651=\"\", \"\", INDEX(raw_resource_build!E:E, MATCH(J651, raw_resource_build!B:B, 0)))","v":""},{"$f":"IF(J651=\"\", \"\", INDEX(raw_resource_build!C:C, MATCH(J651, raw_resource_build!B:B, 0)))","v":""},null,{"$f":"raw_resource_build!B651","v":"Del_Norte_Offshore_Wind"},"In-State",{"$f":"IFERROR(INDEX($E$5:$E$32,MATCH(raw_resource_build!$E651,Lists!$B$5:$B$32,0)),\"Non-CAISO\")","v":"Renewables"},null,{"$f":"raw_annual_energy!C651","v":"Kern_Greater_Carrizo_Wind"},{"$f":"INDEX(K:K,MATCH(R651,Lists!J:J,0))","v":"Wind"},"In-State"]
[null,null,null,null,null,null,null,null,null,{"$f":"IFERROR(INDEX(raw_resource_build!$B$2:$B$1000,MATCH(0,COUNTIF($J$1:J651,raw_resource_build!$B$2:$B$1000), 0),0), \"\")","v":""},{"$f":"IF(J652=\"\", \"\", INDEX(raw_resource_build!E:E, MATCH(J652, raw_resource_build!B:B, 0)))","v":""},{"$f":"IF(J652=\"\", \"\", INDEX(raw_resource_build!C:C, MATCH(J652, raw_resource_build!B:B, 0)))","v":""},null,{"$f":"raw_resource_build!B652","v":"CAISO_Existing_Pumped_Storage"},"Non-wind",{"$f":"IFERROR(INDEX($E$5:$E$32,MATCH(raw_resource_build!$E652,Lists!$B$5:$B$32,0)),\"Non-CAISO\")","v":"Pumped Storage"},null,{"$f":"raw_annual_energy!C652","v":"Kern_Greater_Carrizo_Wind"},{"$f":"INDEX(K:K,MATCH(R652,Lists!J:J,0))","v":"Wind"},"In-State"]
[null,null,null,null,null,null,null,null,null,{"$f":"IFERROR(INDEX(raw_resource_build!$B$2:$B$1000,MATCH(0,COUNTIF($J$1:J652,raw_resource_build!$B$2:$B$1000), 0),0), \"\")","v":""},{"$f":"IF(J653=\"\", \"\", INDEX(raw_resource_build!E:E, MATCH(J653, raw_resource_build!B:B, 0)))","v":""},{"$f":"IF(J653=\"\", \"\", INDEX(raw_resource_build!C:C, MATCH(J653, raw_resource_build!B:B, 0)))","v":""},null,{"$f":"raw_resource_build!B653","v":"CAISO_New_Pumped_Storage"},"Non-wind",{"$f":"IFERROR(INDEX($E$5:$E$32,MATCH(raw_resource_build!$E653,Lists!$B$5:$B$32,0)),\"Non-CAISO\")","v":"Pumped Storage"},null,{"$f":"raw_annual_energy!C653","v":"Kern_Greater_Carrizo_Wind"},{"$f":"INDEX(K:K,MATCH(R653,Lists!J:J,0))","v":"Wind"},"In-State"]
[null,null,null,null,null,null,null,null,null,{"$f":"IFERROR(INDEX(raw_resource_build!$B$2:$B$1000,MATCH(0,COUNTIF($J$1:J653,raw_resource_build!$B$2:$B$1000), 0),0), \"\")","v":""},{"$f":"IF(J654=\"\", \"\", INDEX(raw_resource_build!E:E, MATCH(J654, raw_resource_build!B:B, 0)))","v":""},{"$f":"IF(J654=\"\", \"\", INDEX(raw_resource_build!C:C, MATCH(J654, raw_resource_build!B:B, 0)))","v":""},null,{"$f":"raw_resource_build!B654","v":"CAISO_New_Flow_Battery"},"Non-wind",{"$f":"IFERROR(INDEX($E$5:$E$32,MATCH(raw_resource_build!$E654,Lists!$B$5:$B$32,0)),\"Non-CAISO\")","v":"Battery (incl. BTM)"},null,{"$f":"raw_annual_energy!C654","v":"Kern_Greater_Carrizo_Wind"},{"$f":"INDEX(K:K,MATCH(R654,Lists!J:J,0))","v":"Wind"},"In-State"]
[null,null,null,null,null,null,null,null,null,{"$f":"IFERROR(INDEX(raw_resource_build!$B$2:$B$1000,MATCH(0,COUNTIF($J$1:J654,raw_resource_build!$B$2:$B$1000), 0),0), \"\")","v":""},{"$f":"IF(J655=\"\", \"\", INDEX(raw_resource_build!E:E, MATCH(J655, raw_resource_build!B:B, 0)))","v":""},{"$f":"IF(J655=\"\", \"\", INDEX(raw_resource_build!C:C, MATCH(J655, raw_resource_build!B:B, 0)))","v":""},null,{"$f":"raw_resource_build!B655","v":"CAISO_New_Flow_Battery_2"},"Non-wind",{"$f":"IFERROR(INDEX($E$5:$E$32,MATCH(raw_resource_build!$E655,Lists!$B$5:$B$32,0)),\"Non-CAISO\")","v":"Battery (incl. BTM)"},null,{"$f":"raw_annual_energy!C655","v":"Kern_Greater_Carrizo_Wind"},{"$f":"INDEX(K:K,MATCH(R655,Lists!J:J,0))","v":"Wind"},"In-State"]
[null,null,null,null,null,null,null,null,null,{"$f":"IFERROR(INDEX(raw_resource_build!$B$2:$B$1000,MATCH(0,COUNTIF($J$1:J655,raw_resource_build!$B$2:$B$1000), 0),0), \"\")","v":""},{"$f":"IF(J656=\"\", \"\", INDEX(raw_resource_build!E:E, MATCH(J656, raw_resource_build!B:B, 0)))","v":""},{"$f":"IF(J656=\"\", \"\", INDEX(raw_resource_build!C:C, MATCH(J656, raw_resource_build!B:B, 0)))","v":""},null,{"$f":"raw_resource_build!B656","v":"CAISO_New_Flow_Battery_3"},"Non-wind",{"$f":"IFERROR(INDEX($E$5:$E$32,MATCH(raw_resource_build!$E656,Lists!$B$5:$B$32,0)),\"Non-CAISO\")","v":"Battery (incl. BTM)"},null,{"$f":"raw_annual_energy!C656","v":"Kern_Greater_Carrizo_Wind"},{"$f":"INDEX(K:K,MATCH(R656,Lists!J:J,0))","v":"Wind"},"In-State"]
[null,null,null,null,null,null,null,null,null,{"$f":"IFERROR(INDEX(raw_resource_build!$B$2:$B$1000,MATCH(0,COUNTIF($J$1:J656,raw_resource_build!$B$2:$B$1000), 0),0), \"\")","v":""},{"$f":"IF(J657=\"\", \"\", INDEX(raw_resource_build!E:E, MATCH(J657, raw_resource_build!B:B, 0)))","v":""},{"$f":"IF(J657=\"\", \"\", INDEX(raw_resource_build!C:C, MATCH(J657, raw_resource_build!B:B, 0)))","v":""},null,{"$f":"raw_resource_build!B657","v":"CAISO_New_Flow_Battery_4"},"Non-wind",{"$f":"IFERROR(INDEX($E$5:$E$32,MATCH(raw_resource_build!$E657,Lists!$B$5:$B$32,0)),\"Non-CAISO\")","v":"Battery (incl. BTM)"},null,{"$f":"raw_annual_energy!C657","v":"Kern_Greater_Carrizo_Wind"},{"$f":"INDEX(K:K,MATCH(R657,Lists!J:J,0))","v":"Wind"},"In-State"]
[null,null,null,null,null,null,null,null,null,{"$f":"IFERROR(INDEX(raw_resource_build!$B$2:$B$1000,MATCH(0,COUNTIF($J$1:J657,raw_resource_build!$B$2:$B$1000), 0),0), \"\")","v":""},{"$f":"IF(J658=\"\", \"\", INDEX(raw_resource_build!E:E, MATCH(J658, raw_resource_build!B:B, 0)))","v":""},{"$f":"IF(J658=\"\", \"\", INDEX(raw_resource_build!C:C, MATCH(J658, raw_resource_build!B:B, 0)))","v":""},null,{"$f":"raw_resource_build!B658","v":"CAISO_New_Flow_Battery_5"},"Non-wind",{"$f":"IFERROR(INDEX($E$5:$E$32,MATCH(raw_resource_build!$E658,Lists!$B$5:$B$32,0)),\"Non-CAISO\")","v":"Battery (incl. BTM)"},null,{"$f":"raw_annual_energy!C658","v":"Kern_Greater_Carrizo_Wind"},{"$f":"INDEX(K:K,MATCH(R658,Lists!J:J,0))","v":"Wind"},"In-State"]
[null,null,null,null,null,null,null,null,null,{"$f":"IFERROR(INDEX(raw_resource_build!$B$2:$B$1000,MATCH(0,COUNTIF($J$1:J658,raw_resource_build!$B$2:$B$1000), 0),0), \"\")","v":""},{"$f":"IF(J659=\"\", \"\", INDEX(raw_resource_build!E:E, MATCH(J659, raw_resource_build!B:B, 0)))","v":""},{"$f":"IF(J659=\"\", \"\", INDEX(raw_resource_build!C:C, MATCH(J659, raw_resource_build!B:B, 0)))","v":""},null,{"$f":"raw_resource_build!B659","v":"CAISO_New_Li_Battery"},"Non-wind",{"$f":"IFERROR(INDEX($E$5:$E$32,MATCH(raw_resource_build!$E659,Lists!$B$5:$B$32,0)),\"Non-CAISO\")","v":"Battery (incl. BTM)"},null,{"$f":"raw_annual_energy!C659","v":"Kramer_Inyokern_Ex_Solar"},{"$f":"INDEX(K:K,MATCH(R659,Lists!J:J,0))","v":"Solar"},"In-State"]
[null,null,null,null,null,null,null,null,null,{"$f":"IFERROR(INDEX(raw_resource_build!$B$2:$B$1000,MATCH(0,COUNTIF($J$1:J659,raw_resource_build!$B$2:$B$1000), 0),0), \"\")","v":""},{"$f":"IF(J660=\"\", \"\", INDEX(raw_resource_build!E:E, MATCH(J660, raw_resource_build!B:B, 0)))","v":""},{"$f":"IF(J660=\"\", \"\", INDEX(raw_resource_build!C:C, MATCH(J660, raw_resource_build!B:B, 0)))","v":""},null,{"$f":"raw_resource_build!B660","v":"CAISO_BTM_Li_Battery"},"Non-wind",{"$f":"IFERROR(INDEX($E$5:$E$32,MATCH(raw_resource_build!$E660,Lists!$B$5:$B$32,0)),\"Non-CAISO\")","v":"Battery (incl. BTM)"},null,{"$f":"raw_annual_energy!C660","v":"Kramer_Inyokern_Ex_Solar"},{"$f":"INDEX(K:K,MATCH(R660,Lists!J:J,0))","v":"Solar"},"In-State"]
[null,null,null,null,null,null,null,null,null,{"$f":"IFERROR(INDEX(raw_resource_build!$B$2:$B$1000,MATCH(0,COUNTIF($J$1:J660,raw_resource_build!$B$2:$B$1000), 0),0), \"\")","v":""},{"$f":"IF(J661=\"\", \"\", INDEX(raw_resource_build!E:E, MATCH(J661, raw_resource_build!B:B, 0)))","v":""},{"$f":"IF(J661=\"\", \"\", INDEX(raw_resource_build!C:C, MATCH(J661, raw_resource_build!B:B, 0)))","v":""},null,{"$f":"raw_resource_build!B661","v":"CAISO_New_Li_Battery_2"},"Non-wind",{"$f":"IFERROR(INDEX($E$5:$E$32,MATCH(raw_resource_build!$E661,Lists!$B$5:$B$32,0)),\"Non-CAISO\")","v":"Battery (incl. BTM)"},null,{"$f":"raw_annual_energy!C661","v":"Kramer_Inyokern_Ex_Solar"},{"$f":"INDEX(K:K,MATCH(R661,Lists!J:J,0))","v":"Solar"},"In-State"]
[null,null,null,null,null,null,null,null,null,{"$f":"IFERROR(INDEX(raw_resource_build!$B$2:$B$1000,MATCH(0,COUNTIF($J$1:J661,raw_resource_build!$B$2:$B$1000), 0),0), \"\")","v":""},{"$f":"IF(J662=\"\", \"\", INDEX(raw_resource_build!E:E, MATCH(J662, raw_resource_build!B:B, 0)))","v":""},{"$f":"IF(J662=\"\", \"\", INDEX(raw_resource_build!C:C, MATCH(J662, raw_resource_build!B:B, 0)))","v":""},null,{"$f":"raw_resource_build!B662","v":"CAISO_New_Li_Battery_3"},"Non-wind",{"$f":"IFERROR(INDEX($E$5:$E$32,MATCH(raw_resource_build!$E662,Lists!$B$5:$B$32,0)),\"Non-CAISO\")","v":"Battery (incl. BTM)"},null,{"$f":"raw_annual_energy!C662","v":"Kramer_Inyokern_Ex_Solar"},{"$f":"INDEX(K:K,MATCH(R662,Lists!J:J,0))","v":"Solar"},"In-State"]
[null,null,null,null,null,null,null,null,null,{"$f":"IFERROR(INDEX(raw_resource_build!$B$2:$B$1000,MATCH(0,COUNTIF($J$1:J662,raw_resource_build!$B$2:$B$1000), 0),0), \"\")","v":""},{"$f":"IF(J663=\"\", \"\", INDEX(raw_resource_build!E:E, MATCH(J663, raw_resource_build!B:B, 0)))","v":""},{"$f":"IF(J663=\"\", \"\", INDEX(raw_resource_build!C:C, MATCH(J663, raw_resource_build!B:B, 0)))","v":""},null,{"$f":"raw_resource_build!B663","v":"CAISO_New_Li_Battery_4"},"Non-wind",{"$f":"IFERROR(INDEX($E$5:$E$32,MATCH(raw_resource_build!$E663,Lists!$B$5:$B$32,0)),\"Non-CAISO\")","v":"Battery (incl. BTM)"},null,{"$f":"raw_annual_energy!C663","v":"Kramer_Inyokern_Ex_Solar"},{"$f":"INDEX(K:K,MATCH(R663,Lists!J:J,0))","v":"Solar"},"In-State"]
[null,null,null,null,null,null,null,null,null,{"$f":"IFERROR(INDEX(raw_resource_build!$B$2:$B$1000,MATCH(0,COUNTIF($J$1:J663,raw_resource_build!$B$2:$B$1000), 0),0), \"\")","v":""},{"$f":"IF(J664=\"\", \"\", INDEX(raw_resource_build!E:E, MATCH(J664, raw_resource_build!B:B, 0)))","v":""},{"$f":"IF(J664=\"\", \"\", INDEX(raw_resource_build!C:C, MATCH(J664, raw_resource_build!B:B, 0)))","v":""},null,{"$f":"raw_resource_build!B664","v":"CAISO_New_Li_Battery_5"},"Non-wind",{"$f":"IFERROR(INDEX($E$5:$E$32,MATCH(raw_resource_build!$E664,Lists!$B$5:$B$32,0)),\"Non-CAISO\")","v":"Battery (incl. BTM)"},null,{"$f":"raw_annual_energy!C664","v":"Kramer_Inyokern_Ex_Solar"},{"$f":"INDEX(K:K,MATCH(R664,Lists!J:J,0))","v":"Solar"},"In-State"]
[null,null,null,null,null,null,null,null,null,{"$f":"IFERROR(INDEX(raw_resource_build!$B$2:$B$1000,MATCH(0,COUNTIF($J$1:J664,raw_resource_build!$B$2:$B$1000), 0),0), \"\")","v":""},{"$f":"IF(J665=\"\", \"\", INDEX(raw_resource_build!E:E, MATCH(J665, raw_resource_build!B:B, 0)))","v":""},{"$f":"IF(J665=\"\", \"\", INDEX(raw_resource_build!C:C, MATCH(J665, raw_resource_build!B:B, 0)))","v":""},null,{"$f":"raw_resource_build!B665","v":"CAISO_New_Li_Battery_6"},"Non-wind",{"$f":"IFERROR(INDEX($E$5:$E$32,MATCH(raw_resource_build!$E665,Lists!$B$5:$B$32,0)),\"Non-CAISO\")","v":"Battery (incl. BTM)"},null,{"$f":"raw_annual_energy!C665","v":"Kramer_Inyokern_Ex_Solar"},{"$f":"INDEX(K:K,MATCH(R665,Lists!J:J,0))","v":"Solar"},"In-State"]
[null,null,null,null,null,null,null,null,null,{"$f":"IFERROR(INDEX(raw_resource_build!$B$2:$B$1000,MATCH(0,COUNTIF($J$1:J665,raw_resource_build!$B$2:$B$1000), 0),0), \"\")","v":""},{"$f":"IF(J666=\"\", \"\", INDEX(raw_resource_build!E:E, MATCH(J666, raw_resource_build!B:B, 0)))","v":""},{"$f":"IF(J666=\"\", \"\", INDEX(raw_resource_build!C:C, MATCH(J666, raw_resource_build!B:B, 0)))","v":""},null,{"$f":"raw_resource_build!B666","v":"CAISO_Hydro"},"Non-wind",{"$f":"IFERROR(INDEX($E$5:$E$32,MATCH(raw_resource_build!$E666,Lists!$B$5:$B$32,0)),\"Non-CAISO\")","v":"Hydro (small + large)"},null,{"$f":"raw_annual_energy!C666","v":"Kramer_Inyokern_Ex_Solar"},{"$f":"INDEX(K:K,MATCH(R666,Lists!J:J,0))","v":"Solar"},"In-State"]
[null,null,null,null,null,null,null,null,null,{"$f":"IFERROR(INDEX(raw_resource_build!$B$2:$B$1000,MATCH(0,COUNTIF($J$1:J666,raw_resource_build!$B$2:$B$1000), 0),0), \"\")","v":""},{"$f":"IF(J667=\"\", \"\", INDEX(raw_resource_build!E:E, MATCH(J667, raw_resource_build!B:B, 0)))","v":""},{"$f":"IF(J667=\"\", \"\", INDEX(raw_resource_build!C:C, MATCH(J667, raw_resource_build!B:B, 0)))","v":""},null,{"$f":"raw_resource_build!B667","v":"NW_Hydro"},"Non-wind",{"$f":"IFERROR(INDEX($E$5:$E$32,MATCH(raw_resource_build!$E667,Lists!$B$5:$B$32,0)),\"Non-CAISO\")","v":"Hydro (small + large)"},null,{"$f":"raw_annual_energy!C667","v":"Kramer_Inyokern_Ex_Wind"},{"$f":"INDEX(K:K,MATCH(R667,Lists!J:J,0))","v":"Wind"},"In-State"]
[null,null,null,null,null,null,null,null,null,{"$f":"IFERROR(INDEX(raw_resource_build!$B$2:$B$1000,MATCH(0,COUNTIF($J$1:J667,raw_resource_build!$B$2:$B$1000), 0),0), \"\")","v":""},{"$f":"IF(J668=\"\", \"\", INDEX(raw_resource_build!E:E, MATCH(J668, raw_resource_build!B:B, 0)))","v":""},{"$f":"IF(J668=\"\", \"\", INDEX(raw_resource_build!C:C, MATCH(J668, raw_resource_build!B:B, 0)))","v":""},null,{"$f":"raw_resource_build!B668","v":"SW_Hydro"},"Non-wind",{"$f":"IFERROR(INDEX($E$5:$E$32,MATCH(raw_resource_build!$E668,Lists!$B$5:$B$32,0)),\"Non-CAISO\")","v":"Hydro (small + large)"},null,{"$f":"raw_annual_energy!C668","v":"Kramer_Inyokern_Ex_Wind"},{"$f":"INDEX(K:K,MATCH(R668,Lists!J:J,0))","v":"Wind"},"In-State"]
[null,null,null,null,null,null,null,null,null,{"$f":"IFERROR(INDEX(raw_resource_build!$B$2:$B$1000,MATCH(0,COUNTIF($J$1:J668,raw_resource_build!$B$2:$B$1000), 0),0), \"\")","v":""},{"$f":"IF(J669=\"\", \"\", INDEX(raw_resource_build!E:E, MATCH(J669, raw_resource_build!B:B, 0)))","v":""},{"$f":"IF(J669=\"\", \"\", INDEX(raw_resource_build!C:C, MATCH(J669, raw_resource_build!B:B, 0)))","v":""},null,{"$f":"raw_resource_build!B669","v":"LDWP_Hydro"},"Non-wind",{"$f":"IFERROR(INDEX($E$5:$E$32,MATCH(raw_resource_build!$E669,Lists!$B$5:$B$32,0)),\"Non-CAISO\")","v":"Hydro (small + large)"},null,{"$f":"raw_annual_energy!C669","v":"Kramer_Inyokern_Ex_Wind"},{"$f":"INDEX(K:K,MATCH(R669,Lists!J:J,0))","v":"Wind"},"In-State"]
[null,null,null,null,null,null,null,null,null,{"$f":"IFERROR(INDEX(raw_resource_build!$B$2:$B$1000,MATCH(0,COUNTIF($J$1:J669,raw_resource_build!$B$2:$B$1000), 0),0), \"\")","v":""},{"$f":"IF(J670=\"\", \"\", INDEX(raw_resource_build!E:E, MATCH(J670, raw_resource_build!B:B, 0)))","v":""},{"$f":"IF(J670=\"\", \"\", INDEX(raw_resource_build!C:C, MATCH(J670, raw_resource_build!B:B, 0)))","v":""},null,{"$f":"raw_resource_build!B670","v":"BANC_Hydro"},"Non-wind",{"$f":"IFERROR(INDEX($E$5:$E$32,MATCH(raw_resource_build!$E670,Lists!$B$5:$B$32,0)),\"Non-CAISO\")","v":"Hydro (small + large)"},null,{"$f":"raw_annual_energy!C670","v":"Kramer_Inyokern_Ex_Wind"},{"$f":"INDEX(K:K,MATCH(R670,Lists!J:J,0))","v":"Wind"},"In-State"]
[null,null,null,null,null,null,null,null,null,{"$f":"IFERROR(INDEX(raw_resource_build!$B$2:$B$1000,MATCH(0,COUNTIF($J$1:J670,raw_resource_build!$B$2:$B$1000), 0),0), \"\")","v":""},{"$f":"IF(J671=\"\", \"\", INDEX(raw_resource_build!E:E, MATCH(J671, raw_resource_build!B:B, 0)))","v":""},{"$f":"IF(J671=\"\", \"\", INDEX(raw_resource_build!C:C, MATCH(J671, raw_resource_build!B:B, 0)))","v":""},null,{"$f":"raw_resource_build!B671","v":"IID_Hydro"},"Non-wind",{"$f":"IFERROR(INDEX($E$5:$E$32,MATCH(raw_resource_build!$E671,Lists!$B$5:$B$32,0)),\"Non-CAISO\")","v":"Hydro (small + large)"},null,{"$f":"raw_annual_energy!C671","v":"Kramer_Inyokern_Ex_Wind"},{"$f":"INDEX(K:K,MATCH(R671,Lists!J:J,0))","v":"Wind"},"In-State"]
[null,null,null,null,null,null,null,null,null,{"$f":"IFERROR(INDEX(raw_resource_build!$B$2:$B$1000,MATCH(0,COUNTIF($J$1:J671,raw_resource_build!$B$2:$B$1000), 0),0), \"\")","v":""},{"$f":"IF(J672=\"\", \"\", INDEX(raw_resource_build!E:E, MATCH(J672, raw_resource_build!B:B, 0)))","v":""},{"$f":"IF(J672=\"\", \"\", INDEX(raw_resource_build!C:C, MATCH(J672, raw_resource_build!B:B, 0)))","v":""},null,{"$f":"raw_resource_build!B672","v":"NW_Hydro_for_CAISO"},"Non-wind",{"$f":"IFERROR(INDEX($E$5:$E$32,MATCH(raw_resource_build!$E672,Lists!$B$5:$B$32,0)),\"Non-CAISO\")","v":"Imports"},null,{"$f":"raw_annual_energy!C672","v":"Kramer_Inyokern_Ex_Wind"},{"$f":"INDEX(K:K,MATCH(R672,Lists!J:J,0))","v":"Wind"},"In-State"]
[null,null,null,null,null,null,null,null,null,{"$f":"IFERROR(INDEX(raw_resource_build!$B$2:$B$1000,MATCH(0,COUNTIF($J$1:J672,raw_resource_build!$B$2:$B$1000), 0),0), \"\")","v":""},{"$f":"IF(J673=\"\", \"\", INDEX(raw_resource_build!E:E, MATCH(J673, raw_resource_build!B:B, 0)))","v":""},{"$f":"IF(J673=\"\", \"\", INDEX(raw_resource_build!C:C, MATCH(J673, raw_resource_build!B:B, 0)))","v":""},null,{"$f":"raw_resource_build!B673","v":"Hydrogen_electrolysis"},"Non-wind",{"$f":"IFERROR(INDEX($E$5:$E$32,MATCH(raw_resource_build!$E673,Lists!$B$5:$B$32,0)),\"Non-CAISO\")","v":"Hydrogen Load"},null,{"$f":"raw_annual_energy!C673","v":"Kramer_Inyokern_Ex_Wind"},{"$f":"INDEX(K:K,MATCH(R673,Lists!J:J,0))","v":"Wind"},"In-State"]
[null,null,null,null,null,null,null,null,null,{"$f":"IFERROR(INDEX(raw_resource_build!$B$2:$B$1000,MATCH(0,COUNTIF($J$1:J673,raw_resource_build!$B$2:$B$1000), 0),0), \"\")","v":""},{"$f":"IF(J674=\"\", \"\", INDEX(raw_resource_build!E:E, MATCH(J674, raw_resource_build!B:B, 0)))","v":""},{"$f":"IF(J674=\"\", \"\", INDEX(raw_resource_build!C:C, MATCH(J674, raw_resource_build!B:B, 0)))","v":""},null,{"$f":"raw_resource_build!B674","v":"CAISO_Shed_DR_Existing"},"Non-wind",{"$f":"IFERROR(INDEX($E$5:$E$32,MATCH(raw_resource_build!$E674,Lists!$B$5:$B$32,0)),\"Non-CAISO\")","v":"Shed DR"},null,{"$f":"raw_annual_energy!C674","v":"Kramer_Inyokern_Ex_Wind"},{"$f":"INDEX(K:K,MATCH(R674,Lists!J:J,0))","v":"Wind"},"In-State"]
[null,null,null,null,null,null,null,null,null,{"$f":"IFERROR(INDEX(raw_resource_build!$B$2:$B$1000,MATCH(0,COUNTIF($J$1:J674,raw_resource_build!$B$2:$B$1000), 0),0), \"\")","v":""},{"$f":"IF(J675=\"\", \"\", INDEX(raw_resource_build!E:E, MATCH(J675, raw_resource_build!B:B, 0)))","v":""},{"$f":"IF(J675=\"\", \"\", INDEX(raw_resource_build!C:C, MATCH(J675, raw_resource_build!B:B, 0)))","v":""},null,{"$f":"raw_resource_build!B675","v":"CAISO_Shed_DR_Tranche1"},"Non-wind",{"$f":"IFERROR(INDEX($E$5:$E$32,MATCH(raw_resource_build!$E675,Lists!$B$5:$B$32,0)),\"Non-CAISO\")","v":"Shed DR"},null,{"$f":"raw_annual_energy!C675","v":"Morro_Bay_Offshore_Wind"},{"$f":"INDEX(K:K,MATCH(R675,Lists!J:J,0))","v":"Offshore_Wind"},"In-State"]
[null,null,null,null,null,null,null,null,null,{"$f":"IFERROR(INDEX(raw_resource_build!$B$2:$B$1000,MATCH(0,COUNTIF($J$1:J675,raw_resource_build!$B$2:$B$1000), 0),0), \"\")","v":""},{"$f":"IF(J676=\"\", \"\", INDEX(raw_resource_build!E:E, MATCH(J676, raw_resource_build!B:B, 0)))","v":""},{"$f":"IF(J676=\"\", \"\", INDEX(raw_resource_build!C:C, MATCH(J676, raw_resource_build!B:B, 0)))","v":""},null,{"$f":"raw_resource_build!B676","v":"CAISO_Shed_DR_Tranche2"},"Non-wind",{"$f":"IFERROR(INDEX($E$5:$E$32,MATCH(raw_resource_build!$E676,Lists!$B$5:$B$32,0)),\"Non-CAISO\")","v":"Shed DR"},null,{"$f":"raw_annual_energy!C676","v":"Morro_Bay_Offshore_Wind"},{"$f":"INDEX(K:K,MATCH(R676,Lists!J:J,0))","v":"Offshore_Wind"},"In-State"]
[null,null,null,null,null,null,null,null,null,{"$f":"IFERROR(INDEX(raw_resource_build!$B$2:$B$1000,MATCH(0,COUNTIF($J$1:J676,raw_resource_build!$B$2:$B$1000), 0),0), \"\")","v":""},{"$f":"IF(J677=\"\", \"\", INDEX(raw_resource_build!E:E, MATCH(J677, raw_resource_build!B:B, 0)))","v":""},{"$f":"IF(J677=\"\", \"\", INDEX(raw_resource_build!C:C, MATCH(J677, raw_resource_build!B:B, 0)))","v":""},null,{"$f":"raw_resource_build!B677","v":"CAISO_Shed_DR_Tranche3"},"Non-wind",{"$f":"IFERROR(INDEX($E$5:$E$32,MATCH(raw_resource_build!$E677,Lists!$B$5:$B$32,0)),\"Non-CAISO\")","v":"Shed DR"},null,{"$f":"raw_annual_energy!C677","v":"Morro_Bay_Offshore_Wind"},{"$f":"INDEX(K:K,MATCH(R677,Lists!J:J,0))","v":"Offshore_Wind"},"In-State"]
[null,null,null,null,null,null,null,null,null,{"$f":"IFERROR(INDEX(raw_resource_build!$B$2:$B$1000,MATCH(0,COUNTIF($J$1:J677,raw_resource_build!$B$2:$B$1000), 0),0), \"\")","v":""},{"$f":"IF(J678=\"\", \"\", INDEX(raw_resource_build!E:E, MATCH(J678, raw_resource_build!B:B, 0)))","v":""},{"$f":"IF(J678=\"\", \"\", INDEX(raw_resource_build!C:C, MATCH(J678, raw_resource_build!B:B, 0)))","v":""},null,{"$f":"raw_resource_build!B678","v":"CAISO_Shed_DR_Tranche4"},"Non-wind",{"$f":"IFERROR(INDEX($E$5:$E$32,MATCH(raw_resource_build!$E678,Lists!$B$5:$B$32,0)),\"Non-CAISO\")","v":"Shed DR"},null,{"$f":"raw_annual_energy!C678","v":"Morro_Bay_Offshore_Wind"},{"$f":"INDEX(K:K,MATCH(R678,Lists!J:J,0))","v":"Offshore_Wind"},"In-State"]
[null,null,null,null,null,null,null,null,null,{"$f":"IFERROR(INDEX(raw_resource_build!$B$2:$B$1000,MATCH(0,COUNTIF($J$1:J678,raw_resource_build!$B$2:$B$1000), 0),0), \"\")","v":""},{"$f":"IF(J679=\"\", \"\", INDEX(raw_resource_build!E:E, MATCH(J679, raw_resource_build!B:B, 0)))","v":""},{"$f":"IF(J679=\"\", \"\", INDEX(raw_resource_build!C:C, MATCH(J679, raw_resource_build!B:B, 0)))","v":""},null,{"$f":"raw_resource_build!B679","v":"CAISO_Shed_DR_Tranche5"},"Non-wind",{"$f":"IFERROR(INDEX($E$5:$E$32,MATCH(raw_resource_build!$E679,Lists!$B$5:$B$32,0)),\"Non-CAISO\")","v":"Shed DR"},null,{"$f":"raw_annual_energy!C679","v":"Morro_Bay_Offshore_Wind"},{"$f":"INDEX(K:K,MATCH(R679,Lists!J:J,0))","v":"Offshore_Wind"},"In-State"]
[null,null,null,null,null,null,null,null,null,{"$f":"IFERROR(INDEX(raw_resource_build!$B$2:$B$1000,MATCH(0,COUNTIF($J$1:J679,raw_resource_build!$B$2:$B$1000), 0),0), \"\")","v":""},{"$f":"IF(J680=\"\", \"\", INDEX(raw_resource_build!E:E, MATCH(J680, raw_resource_build!B:B, 0)))","v":""},{"$f":"IF(J680=\"\", \"\", INDEX(raw_resource_build!C:C, MATCH(J680, raw_resource_build!B:B, 0)))","v":""},null,{"$f":"raw_resource_build!B680","v":"CAISO_Shed_DR_Tranche6"},"Non-wind",{"$f":"IFERROR(INDEX($E$5:$E$32,MATCH(raw_resource_build!$E680,Lists!$B$5:$B$32,0)),\"Non-CAISO\")","v":"Shed DR"},null,{"$f":"raw_annual_energy!C680","v":"Morro_Bay_Offshore_Wind"},{"$f":"INDEX(K:K,MATCH(R680,Lists!J:J,0))","v":"Offshore_Wind"},"In-State"]
[null,null,null,null,null,null,null,null,null,{"$f":"IFERROR(INDEX(raw_resource_build!$B$2:$B$1000,MATCH(0,COUNTIF($J$1:J680,raw_resource_build!$B$2:$B$1000), 0),0), \"\")","v":""},{"$f":"IF(J681=\"\", \"\", INDEX(raw_resource_build!E:E, MATCH(J681, raw_resource_build!B:B, 0)))","v":""},{"$f":"IF(J681=\"\", \"\", INDEX(raw_resource_build!C:C, MATCH(J681, raw_resource_build!B:B, 0)))","v":""},null,{"$f":"raw_resource_build!B681","v":"CAISO_Shed_DR_Tranche7"},"Non-wind",{"$f":"IFERROR(INDEX($E$5:$E$32,MATCH(raw_resource_build!$E681,Lists!$B$5:$B$32,0)),\"Non-CAISO\")","v":"Shed DR"},null,{"$f":"raw_annual_energy!C681","v":"Morro_Bay_Offshore_Wind"},{"$f":"INDEX(K:K,MATCH(R681,Lists!J:J,0))","v":"Offshore_Wind"},"In-State"]
[null,null,null,null,null,null,null,null,null,{"$f":"IFERROR(INDEX(raw_resource_build!$B$2:$B$1000,MATCH(0,COUNTIF($J$1:J681,raw_resource_build!$B$2:$B$1000), 0),0), \"\")","v":""},{"$f":"IF(J682=\"\", \"\", INDEX(raw_resource_build!E:E, MATCH(J682, raw_resource_build!B:B, 0)))","v":""},{"$f":"IF(J682=\"\", \"\", INDEX(raw_resource_build!C:C, MATCH(J682, raw_resource_build!B:B, 0)))","v":""},null,{"$f":"raw_resource_build!B682","v":"CAISO_Shed_DR_Tranche8"},"Non-wind",{"$f":"IFERROR(INDEX($E$5:$E$32,MATCH(raw_resource_build!$E682,Lists!$B$5:$B$32,0)),\"Non-CAISO\")","v":"Shed DR"},null,{"$f":"raw_annual_energy!C682","v":"Morro_Bay_Offshore_Wind"},{"$f":"INDEX(K:K,MATCH(R682,Lists!J:J,0))","v":"Offshore_Wind"},"In-State"]
[null,null,null,null,null,null,null,null,null,{"$f":"IFERROR(INDEX(raw_resource_build!$B$2:$B$1000,MATCH(0,COUNTIF($J$1:J682,raw_resource_build!$B$2:$B$1000), 0),0), \"\")","v":""},{"$f":"IF(J683=\"\", \"\", INDEX(raw_resource_build!E:E, MATCH(J683, raw_resource_build!B:B, 0)))","v":""},{"$f":"IF(J683=\"\", \"\", INDEX(raw_resource_build!C:C, MATCH(J683, raw_resource_build!B:B, 0)))","v":""},null,{"$f":"raw_resource_build!B683","v":"CAISO_CHP"},"Non-wind",{"$f":"IFERROR(INDEX($E$5:$E$32,MATCH(raw_resource_build!$E683,Lists!$B$5:$B$32,0)),\"Non-CAISO\")","v":"CHP"},null,{"$f":"raw_annual_energy!C683","v":"Mountain_Pass_El_Dorado_Solar"},{"$f":"INDEX(K:K,MATCH(R683,Lists!J:J,0))","v":"Solar"},"In-State"]
[null,null,null,null,null,null,null,null,null,{"$f":"IFERROR(INDEX(raw_resource_build!$B$2:$B$1000,MATCH(0,COUNTIF($J$1:J683,raw_resource_build!$B$2:$B$1000), 0),0), \"\")","v":""},{"$f":"IF(J684=\"\", \"\", INDEX(raw_resource_build!E:E, MATCH(J684, raw_resource_build!B:B, 0)))","v":""},{"$f":"IF(J684=\"\", \"\", INDEX(raw_resource_build!C:C, MATCH(J684, raw_resource_build!B:B, 0)))","v":""},null,{"$f":"raw_resource_build!B684","v":"CAISO_Nuclear"},"Non-wind",{"$f":"IFERROR(INDEX($E$5:$E$32,MATCH(raw_resource_build!$E684,Lists!$B$5:$B$32,0)),\"Non-CAISO\")","v":"Nuclear"},null,{"$f":"raw_annual_energy!C684","v":"Mountain_Pass_El_Dorado_Solar"},{"$f":"INDEX(K:K,MATCH(R684,Lists!J:J,0))","v":"Solar"},"In-State"]
[null,null,null,null,null,null,null,null,null,{"$f":"IFERROR(INDEX(raw_resource_build!$B$2:$B$1000,MATCH(0,COUNTIF($J$1:J684,raw_resource_build!$B$2:$B$1000), 0),0), \"\")","v":""},{"$f":"IF(J685=\"\", \"\", INDEX(raw_resource_build!E:E, MATCH(J685, raw_resource_build!B:B, 0)))","v":""},{"$f":"IF(J685=\"\", \"\", INDEX(raw_resource_build!C:C, MATCH(J685, raw_resource_build!B:B, 0)))","v":""},null,{"$f":"raw_resource_build!B685","v":"CAISO_CCGT1"},"Non-wind",{"$f":"IFERROR(INDEX($E$5:$E$32,MATCH(raw_resource_build!$E685,Lists!$B$5:$B$32,0)),\"Non-CAISO\")","v":"CCGT"},null,{"$f":"raw_annual_energy!C685","v":"Mountain_Pass_El_Dorado_Solar"},{"$f":"INDEX(K:K,MATCH(R685,Lists!J:J,0))","v":"Solar"},"In-State"]
[null,null,null,null,null,null,null,null,null,{"$f":"IFERROR(INDEX(raw_resource_build!$B$2:$B$1000,MATCH(0,COUNTIF($J$1:J685,raw_resource_build!$B$2:$B$1000), 0),0), \"\")","v":""},{"$f":"IF(J686=\"\", \"\", INDEX(raw_resource_build!E:E, MATCH(J686, raw_resource_build!B:B, 0)))","v":""},{"$f":"IF(J686=\"\", \"\", INDEX(raw_resource_build!C:C, MATCH(J686, raw_resource_build!B:B, 0)))","v":""},null,{"$f":"raw_resource_build!B686","v":"CAISO_CCGT2"},"Non-wind",{"$f":"IFERROR(INDEX($E$5:$E$32,MATCH(raw_resource_build!$E686,Lists!$B$5:$B$32,0)),\"Non-CAISO\")","v":"CCGT"},null,{"$f":"raw_annual_energy!C686","v":"Mountain_Pass_El_Dorado_Solar"},{"$f":"INDEX(K:K,MATCH(R686,Lists!J:J,0))","v":"Solar"},"In-State"]
[null,null,null,null,null,null,null,null,null,{"$f":"IFERROR(INDEX(raw_resource_build!$B$2:$B$1000,MATCH(0,COUNTIF($J$1:J686,raw_resource_build!$B$2:$B$1000), 0),0), \"\")","v":""},{"$f":"IF(J687=\"\", \"\", INDEX(raw_resource_build!E:E, MATCH(J687, raw_resource_build!B:B, 0)))","v":""},{"$f":"IF(J687=\"\", \"\", INDEX(raw_resource_build!C:C, MATCH(J687, raw_resource_build!B:B, 0)))","v":""},null,{"$f":"raw_resource_build!B687","v":"CAISO_Coal"},"Non-wind",{"$f":"IFERROR(INDEX($E$5:$E$32,MATCH(raw_resource_build!$E687,Lists!$B$5:$B$32,0)),\"Non-CAISO\")","v":"Coal"},null,{"$f":"raw_annual_energy!C687","v":"Mountain_Pass_El_Dorado_Solar"},{"$f":"INDEX(K:K,MATCH(R687,Lists!J:J,0))","v":"Solar"},"In-State"]
[null,null,null,null,null,null,null,null,null,{"$f":"IFERROR(INDEX(raw_resource_build!$B$2:$B$1000,MATCH(0,COUNTIF($J$1:J687,raw_resource_build!$B$2:$B$1000), 0),0), \"\")","v":""},{"$f":"IF(J688=\"\", \"\", INDEX(raw_resource_build!E:E, MATCH(J688, raw_resource_build!B:B, 0)))","v":""},{"$f":"IF(J688=\"\", \"\", INDEX(raw_resource_build!C:C, MATCH(J688, raw_resource_build!B:B, 0)))","v":""},null,{"$f":"raw_resource_build!B688","v":"CAISO_Peaker1"},"Non-wind",{"$f":"IFERROR(INDEX($E$5:$E$32,MATCH(raw_resource_build!$E688,Lists!$B$5:$B$32,0)),\"Non-CAISO\")","v":"Peaker"},null,{"$f":"raw_annual_energy!C688","v":"Mountain_Pass_El_Dorado_Solar"},{"$f":"INDEX(K:K,MATCH(R688,Lists!J:J,0))","v":"Solar"},"In-State"]
[null,null,null,null,null,null,null,null,null,{"$f":"IFERROR(INDEX(raw_resource_build!$B$2:$B$1000,MATCH(0,COUNTIF($J$1:J688,raw_resource_build!$B$2:$B$1000), 0),0), \"\")","v":""},{"$f":"IF(J689=\"\", \"\", INDEX(raw_resource_build!E:E, MATCH(J689, raw_resource_build!B:B, 0)))","v":""},{"$f":"IF(J689=\"\", \"\", INDEX(raw_resource_build!C:C, MATCH(J689, raw_resource_build!B:B, 0)))","v":""},null,{"$f":"raw_resource_build!B689","v":"CAISO_Peaker2"},"Non-wind",{"$f":"IFERROR(INDEX($E$5:$E$32,MATCH(raw_resource_build!$E689,Lists!$B$5:$B$32,0)),\"Non-CAISO\")","v":"Peaker"},null,{"$f":"raw_annual_energy!C689","v":"Mountain_Pass_El_Dorado_Solar"},{"$f":"INDEX(K:K,MATCH(R689,Lists!J:J,0))","v":"Solar"},"In-State"]
[null,null,null,null,null,null,null,null,null,{"$f":"IFERROR(INDEX(raw_resource_build!$B$2:$B$1000,MATCH(0,COUNTIF($J$1:J689,raw_resource_build!$B$2:$B$1000), 0),0), \"\")","v":""},{"$f":"IF(J690=\"\", \"\", INDEX(raw_resource_build!E:E, MATCH(J690, raw_resource_build!B:B, 0)))","v":""},{"$f":"IF(J690=\"\", \"\", INDEX(raw_resource_build!C:C, MATCH(J690, raw_resource_build!B:B, 0)))","v":""},null,{"$f":"raw_resource_build!B690","v":"CAISO_Advanced_CCGT"},"Non-wind",{"$f":"IFERROR(INDEX($E$5:$E$32,MATCH(raw_resource_build!$E690,Lists!$B$5:$B$32,0)),\"Non-CAISO\")","v":"CCGT"},null,{"$f":"raw_annual_energy!C690","v":"Mountain_Pass_El_Dorado_Solar"},{"$f":"INDEX(K:K,MATCH(R690,Lists!J:J,0))","v":"Solar"},"In-State"]
[null,null,null,null,null,null,null,null,null,{"$f":"IFERROR(INDEX(raw_resource_build!$B$2:$B$1000,MATCH(0,COUNTIF($J$1:J690,raw_resource_build!$B$2:$B$1000), 0),0), \"\")","v":""},{"$f":"IF(J691=\"\", \"\", INDEX(raw_resource_build!E:E, MATCH(J691, raw_resource_build!B:B, 0)))","v":""},{"$f":"IF(J691=\"\", \"\", INDEX(raw_resource_build!C:C, MATCH(J691, raw_resource_build!B:B, 0)))","v":""},null,{"$f":"raw_resource_build!B691","v":"CAISO_Aero_CT"},"Non-wind",{"$f":"IFERROR(INDEX($E$5:$E$32,MATCH(raw_resource_build!$E691,Lists!$B$5:$B$32,0)),\"Non-CAISO\")","v":"Peaker"},null,{"$f":"raw_annual_energy!C691","v":"NW_Ext_Tx_Wind"},{"$f":"INDEX(K:K,MATCH(R691,Lists!J:J,0))","v":"Wind"},"In-State"]
[null,null,null,null,null,null,null,null,null,{"$f":"IFERROR(INDEX(raw_resource_build!$B$2:$B$1000,MATCH(0,COUNTIF($J$1:J691,raw_resource_build!$B$2:$B$1000), 0),0), \"\")","v":""},{"$f":"IF(J692=\"\", \"\", INDEX(raw_resource_build!E:E, MATCH(J692, raw_resource_build!B:B, 0)))","v":""},{"$f":"IF(J692=\"\", \"\", INDEX(raw_resource_build!C:C, MATCH(J692, raw_resource_build!B:B, 0)))","v":""},null,{"$f":"raw_resource_build!B692","v":"CAISO_Reciprocating_Engine"},"Non-wind",{"$f":"IFERROR(INDEX($E$5:$E$32,MATCH(raw_resource_build!$E692,Lists!$B$5:$B$32,0)),\"Non-CAISO\")","v":"Peaker"},null,{"$f":"raw_annual_energy!C692","v":"NW_Ext_Tx_Wind"},{"$f":"INDEX(K:K,MATCH(R692,Lists!J:J,0))","v":"Wind"},"In-State"]
[null,null,null,null,null,null,null,null,null,{"$f":"IFERROR(INDEX(raw_resource_build!$B$2:$B$1000,MATCH(0,COUNTIF($J$1:J692,raw_resource_build!$B$2:$B$1000), 0),0), \"\")","v":""},{"$f":"IF(J693=\"\", \"\", INDEX(raw_resource_build!E:E, MATCH(J693, raw_resource_build!B:B, 0)))","v":""},{"$f":"IF(J693=\"\", \"\", INDEX(raw_resource_build!C:C, MATCH(J693, raw_resource_build!B:B, 0)))","v":""},null,{"$f":"raw_resource_build!B693","v":"CAISO_ST"},"Non-wind",{"$f":"IFERROR(INDEX($E$5:$E$32,MATCH(raw_resource_build!$E693,Lists!$B$5:$B$32,0)),\"Non-CAISO\")","v":"Steam Turbine"},null,{"$f":"raw_annual_energy!C693","v":"NW_Ext_Tx_Wind"},{"$f":"INDEX(K:K,MATCH(R693,Lists!J:J,0))","v":"Wind"},"In-State"]
[null,null,null,null,null,null,null,null,null,{"$f":"IFERROR(INDEX(raw_resource_build!$B$2:$B$1000,MATCH(0,COUNTIF($J$1:J693,raw_resource_build!$B$2:$B$1000), 0),0), \"\")","v":""},{"$f":"IF(J694=\"\", \"\", INDEX(raw_resource_build!E:E, MATCH(J694, raw_resource_build!B:B, 0)))","v":""},{"$f":"IF(J694=\"\", \"\", INDEX(raw_resource_build!C:C, MATCH(J694, raw_resource_build!B:B, 0)))","v":""},null,{"$f":"raw_resource_build!B694","v":"NW_Nuclear"},"Non-wind",{"$f":"IFERROR(INDEX($E$5:$E$32,MATCH(raw_resource_build!$E694,Lists!$B$5:$B$32,0)),\"Non-CAISO\")","v":"Non-CAISO"},null,{"$f":"raw_annual_energy!C694","v":"NW_Ext_Tx_Wind"},{"$f":"INDEX(K:K,MATCH(R694,Lists!J:J,0))","v":"Wind"},"In-State"]
[null,null,null,null,null,null,null,null,null,{"$f":"IFERROR(INDEX(raw_resource_build!$B$2:$B$1000,MATCH(0,COUNTIF($J$1:J694,raw_resource_build!$B$2:$B$1000), 0),0), \"\")","v":""},{"$f":"IF(J695=\"\", \"\", INDEX(raw_resource_build!E:E, MATCH(J695, raw_resource_build!B:B, 0)))","v":""},{"$f":"IF(J695=\"\", \"\", INDEX(raw_resource_build!C:C, MATCH(J695, raw_resource_build!B:B, 0)))","v":""},null,{"$f":"raw_resource_build!B695","v":"NW_Coal"},"Non-wind",{"$f":"IFERROR(INDEX($E$5:$E$32,MATCH(raw_resource_build!$E695,Lists!$B$5:$B$32,0)),\"Non-CAISO\")","v":"Non-CAISO"},null,{"$f":"raw_annual_energy!C695","v":"NW_Ext_Tx_Wind"},{"$f":"INDEX(K:K,MATCH(R695,Lists!J:J,0))","v":"Wind"},"In-State"]
[null,null,null,null,null,null,null,null,null,{"$f":"IFERROR(INDEX(raw_resource_build!$B$2:$B$1000,MATCH(0,COUNTIF($J$1:J695,raw_resource_build!$B$2:$B$1000), 0),0), \"\")","v":""},{"$f":"IF(J696=\"\", \"\", INDEX(raw_resource_build!E:E, MATCH(J696, raw_resource_build!B:B, 0)))","v":""},{"$f":"IF(J696=\"\", \"\", INDEX(raw_resource_build!C:C, MATCH(J696, raw_resource_build!B:B, 0)))","v":""},null,{"$f":"raw_resource_build!B696","v":"NW_CCGT"},"Non-wind",{"$f":"IFERROR(INDEX($E$5:$E$32,MATCH(raw_resource_build!$E696,Lists!$B$5:$B$32,0)),\"Non-CAISO\")","v":"Non-CAISO"},null,{"$f":"raw_annual_energy!C696","v":"NW_Ext_Tx_Wind"},{"$f":"INDEX(K:K,MATCH(R696,Lists!J:J,0))","v":"Wind"},"In-State"]
[null,null,null,null,null,null,null,null,null,{"$f":"IFERROR(INDEX(raw_resource_build!$B$2:$B$1000,MATCH(0,COUNTIF($J$1:J696,raw_resource_build!$B$2:$B$1000), 0),0), \"\")","v":""},{"$f":"IF(J697=\"\", \"\", INDEX(raw_resource_build!E:E, MATCH(J697, raw_resource_build!B:B, 0)))","v":""},{"$f":"IF(J697=\"\", \"\", INDEX(raw_resource_build!C:C, MATCH(J697, raw_resource_build!B:B, 0)))","v":""},null,{"$f":"raw_resource_build!B697","v":"NW_Peaker"},"Non-wind",{"$f":"IFERROR(INDEX($E$5:$E$32,MATCH(raw_resource_build!$E697,Lists!$B$5:$B$32,0)),\"Non-CAISO\")","v":"Non-CAISO"},null,{"$f":"raw_annual_energy!C697","v":"NW_Ext_Tx_Wind"},{"$f":"INDEX(K:K,MATCH(R697,Lists!J:J,0))","v":"Wind"},"In-State"]
[null,null,null,null,null,null,null,null,null,{"$f":"IFERROR(INDEX(raw_resource_build!$B$2:$B$1000,MATCH(0,COUNTIF($J$1:J697,raw_resource_build!$B$2:$B$1000), 0),0), \"\")","v":""},{"$f":"IF(J698=\"\", \"\", INDEX(raw_resource_build!E:E, MATCH(J698, raw_resource_build!B:B, 0)))","v":""},{"$f":"IF(J698=\"\", \"\", INDEX(raw_resource_build!C:C, MATCH(J698, raw_resource_build!B:B, 0)))","v":""},null,{"$f":"raw_resource_build!B698","v":"SW_Nuclear"},"Non-wind",{"$f":"IFERROR(INDEX($E$5:$E$32,MATCH(raw_resource_build!$E698,Lists!$B$5:$B$32,0)),\"Non-CAISO\")","v":"Non-CAISO"},null,{"$f":"raw_annual_energy!C698","v":"NW_Ext_Tx_Wind"},{"$f":"INDEX(K:K,MATCH(R698,Lists!J:J,0))","v":"Wind"},"In-State"]
[null,null,null,null,null,null,null,null,null,{"$f":"IFERROR(INDEX(raw_resource_build!$B$2:$B$1000,MATCH(0,COUNTIF($J$1:J698,raw_resource_build!$B$2:$B$1000), 0),0), \"\")","v":""},{"$f":"IF(J699=\"\", \"\", INDEX(raw_resource_build!E:E, MATCH(J699, raw_resource_build!B:B, 0)))","v":""},{"$f":"IF(J699=\"\", \"\", INDEX(raw_resource_build!C:C, MATCH(J699, raw_resource_build!B:B, 0)))","v":""},null,{"$f":"raw_resource_build!B699","v":"SW_Coal"},"Non-wind",{"$f":"IFERROR(INDEX($E$5:$E$32,MATCH(raw_resource_build!$E699,Lists!$B$5:$B$32,0)),\"Non-CAISO\")","v":"Non-CAISO"},null,{"$f":"raw_annual_energy!C699","v":"New_Mexico_Solar"},{"$f":"INDEX(K:K,MATCH(R699,Lists!J:J,0))","v":"EV_Charging"},"Out-Of-State"]
[null,null,null,null,null,null,null,null,null,{"$f":"IFERROR(INDEX(raw_resource_build!$B$2:$B$1000,MATCH(0,COUNTIF($J$1:J699,raw_resource_build!$B$2:$B$1000), 0),0), \"\")","v":""},{"$f":"IF(J700=\"\", \"\", INDEX(raw_resource_build!E:E, MATCH(J700, raw_resource_build!B:B, 0)))","v":""},{"$f":"IF(J700=\"\", \"\", INDEX(raw_resource_build!C:C, MATCH(J700, raw_resource_build!B:B, 0)))","v":""},null,{"$f":"raw_resource_build!B700","v":"SW_CCGT"},"Non-wind",{"$f":"IFERROR(INDEX($E$5:$E$32,MATCH(raw_resource_build!$E700,Lists!$B$5:$B$32,0)),\"Non-CAISO\")","v":"Non-CAISO"},null,{"$f":"raw_annual_energy!C700","v":"New_Mexico_Solar"},{"$f":"INDEX(K:K,MATCH(R700,Lists!J:J,0))","v":"EV_Charging"},"Out-Of-State"]
[null,null,null,null,null,null,null,null,null,{"$f":"IFERROR(INDEX(raw_resource_build!$B$2:$B$1000,MATCH(0,COUNTIF($J$1:J700,raw_resource_build!$B$2:$B$1000), 0),0), \"\")","v":""},{"$f":"IF(J701=\"\", \"\", INDEX(raw_resource_build!E:E, MATCH(J701, raw_resource_build!B:B, 0)))","v":""},{"$f":"IF(J701=\"\", \"\", INDEX(raw_resource_build!C:C, MATCH(J701, raw_resource_build!B:B, 0)))","v":""},null,{"$f":"raw_resource_build!B701","v":"SW_Peaker"},"Non-wind",{"$f":"IFERROR(INDEX($E$5:$E$32,MATCH(raw_resource_build!$E701,Lists!$B$5:$B$32,0)),\"Non-CAISO\")","v":"Non-CAISO"},null,{"$f":"raw_annual_energy!C701","v":"New_Mexico_Solar"},{"$f":"INDEX(K:K,MATCH(R701,Lists!J:J,0))","v":"EV_Charging"},"Out-Of-State"]
[null,null,null,null,null,null,null,null,null,{"$f":"IFERROR(INDEX(raw_resource_build!$B$2:$B$1000,MATCH(0,COUNTIF($J$1:J701,raw_resource_build!$B$2:$B$1000), 0),0), \"\")","v":""},{"$f":"IF(J702=\"\", \"\", INDEX(raw_resource_build!E:E, MATCH(J702, raw_resource_build!B:B, 0)))","v":""},{"$f":"IF(J702=\"\", \"\", INDEX(raw_resource_build!C:C, MATCH(J702, raw_resource_build!B:B, 0)))","v":""},null,{"$f":"raw_resource_build!B702","v":"SW_ST"},"Non-wind",{"$f":"IFERROR(INDEX($E$5:$E$32,MATCH(raw_resource_build!$E702,Lists!$B$5:$B$32,0)),\"Non-CAISO\")","v":"Non-CAISO"},null,{"$f":"raw_annual_energy!C702","v":"New_Mexico_Solar"},{"$f":"INDEX(K:K,MATCH(R702,Lists!J:J,0))","v":"EV_Charging"},"Out-Of-State"]
[null,null,null,null,null,null,null,null,null,{"$f":"IFERROR(INDEX(raw_resource_build!$B$2:$B$1000,MATCH(0,COUNTIF($J$1:J702,raw_resource_build!$B$2:$B$1000), 0),0), \"\")","v":""},{"$f":"IF(J703=\"\", \"\", INDEX(raw_resource_build!E:E, MATCH(J703, raw_resource_build!B:B, 0)))","v":""},{"$f":"IF(J703=\"\", \"\", INDEX(raw_resource_build!C:C, MATCH(J703, raw_resource_build!B:B, 0)))","v":""},null,{"$f":"raw_resource_build!B703","v":"LDWP_Nuclear"},"Non-wind",{"$f":"IFERROR(INDEX($E$5:$E$32,MATCH(raw_resource_build!$E703,Lists!$B$5:$B$32,0)),\"Non-CAISO\")","v":"Non-CAISO"},null,{"$f":"raw_annual_energy!C703","v":"New_Mexico_Solar"},{"$f":"INDEX(K:K,MATCH(R703,Lists!J:J,0))","v":"EV_Charging"},"Out-Of-State"]
[null,null,null,null,null,null,null,null,null,{"$f":"IFERROR(INDEX(raw_resource_build!$B$2:$B$1000,MATCH(0,COUNTIF($J$1:J703,raw_resource_build!$B$2:$B$1000), 0),0), \"\")","v":""},{"$f":"IF(J704=\"\", \"\", INDEX(raw_resource_build!E:E, MATCH(J704, raw_resource_build!B:B, 0)))","v":""},{"$f":"IF(J704=\"\", \"\", INDEX(raw_resource_build!C:C, MATCH(J704, raw_resource_build!B:B, 0)))","v":""},null,{"$f":"raw_resource_build!B704","v":"LDWP_Coal"},"Non-wind",{"$f":"IFERROR(INDEX($E$5:$E$32,MATCH(raw_resource_build!$E704,Lists!$B$5:$B$32,0)),\"Non-CAISO\")","v":"Non-CAISO"},null,{"$f":"raw_annual_energy!C704","v":"New_Mexico_Solar"},{"$f":"INDEX(K:K,MATCH(R704,Lists!J:J,0))","v":"EV_Charging"},"Out-Of-State"]
[null,null,null,null,null,null,null,null,null,{"$f":"IFERROR(INDEX(raw_resource_build!$B$2:$B$1000,MATCH(0,COUNTIF($J$1:J704,raw_resource_build!$B$2:$B$1000), 0),0), \"\")","v":""},{"$f":"IF(J705=\"\", \"\", INDEX(raw_resource_build!E:E, MATCH(J705, raw_resource_build!B:B, 0)))","v":""},{"$f":"IF(J705=\"\", \"\", INDEX(raw_resource_build!C:C, MATCH(J705, raw_resource_build!B:B, 0)))","v":""},null,{"$f":"raw_resource_build!B705","v":"LDWP_CCGT"},"Non-wind",{"$f":"IFERROR(INDEX($E$5:$E$32,MATCH(raw_resource_build!$E705,Lists!$B$5:$B$32,0)),\"Non-CAISO\")","v":"Non-CAISO"},null,{"$f":"raw_annual_energy!C705","v":"New_Mexico_Solar"},{"$f":"INDEX(K:K,MATCH(R705,Lists!J:J,0))","v":"EV_Charging"},"Out-Of-State"]
[null,null,null,null,null,null,null,null,null,{"$f":"IFERROR(INDEX(raw_resource_build!$B$2:$B$1000,MATCH(0,COUNTIF($J$1:J705,raw_resource_build!$B$2:$B$1000), 0),0), \"\")","v":""},{"$f":"IF(J706=\"\", \"\", INDEX(raw_resource_build!E:E, MATCH(J706, raw_resource_build!B:B, 0)))","v":""},{"$f":"IF(J706=\"\", \"\", INDEX(raw_resource_build!C:C, MATCH(J706, raw_resource_build!B:B, 0)))","v":""},null,{"$f":"raw_resource_build!B706","v":"LDWP_Peaker"},"Non-wind",{"$f":"IFERROR(INDEX($E$5:$E$32,MATCH(raw_resource_build!$E706,Lists!$B$5:$B$32,0)),\"Non-CAISO\")","v":"Non-CAISO"},null,{"$f":"raw_annual_energy!C706","v":"New_Mexico_Solar"},{"$f":"INDEX(K:K,MATCH(R706,Lists!J:J,0))","v":"EV_Charging"},"Out-Of-State"]
[null,null,null,null,null,null,null,null,null,{"$f":"IFERROR(INDEX(raw_resource_build!$B$2:$B$1000,MATCH(0,COUNTIF($J$1:J706,raw_resource_build!$B$2:$B$1000), 0),0), \"\")","v":""},{"$f":"IF(J707=\"\", \"\", INDEX(raw_resource_build!E:E, MATCH(J707, raw_resource_build!B:B, 0)))","v":""},{"$f":"IF(J707=\"\", \"\", INDEX(raw_resource_build!C:C, MATCH(J707, raw_resource_build!B:B, 0)))","v":""},null,{"$f":"raw_resource_build!B707","v":"LDWP_ST"},{"$f":"IFERROR(INDEX($C$35:$C$99,MATCH($N707,$B$35:$B$99,0)),\"Non-wind\")","v":"Non-wind"},{"$f":"IFERROR(INDEX($E$5:$E$32,MATCH(raw_resource_build!$E707,Lists!$B$5:$B$32,0)),\"Non-CAISO\")","v":"Non-CAISO"},null,{"$f":"raw_annual_energy!C707","v":"New_Mexico_Wind"},{"$f":"INDEX(K:K,MATCH(R707,Lists!J:J,0))","v":"Wind"},{"$f":"IFERROR(INDEX($C$35:$C$99,MATCH($R707,$B$35:$B$99,0)),\"Non-wind\")","v":"Out-Of-State"}]
[null,null,null,null,null,null,null,null,null,{"$f":"IFERROR(INDEX(raw_resource_build!$B$2:$B$1000,MATCH(0,COUNTIF($J$1:J707,raw_resource_build!$B$2:$B$1000), 0),0), \"\")","v":""},{"$f":"IF(J708=\"\", \"\", INDEX(raw_resource_build!E:E, MATCH(J708, raw_resource_build!B:B, 0)))","v":""},{"$f":"IF(J708=\"\", \"\", INDEX(raw_resource_build!C:C, MATCH(J708, raw_resource_build!B:B, 0)))","v":""},null,{"$f":"raw_resource_build!B708","v":"IID_CCGT"},"Non-wind",{"$f":"IFERROR(INDEX($E$5:$E$32,MATCH(raw_resource_build!$E708,Lists!$B$5:$B$32,0)),\"Non-CAISO\")","v":"Non-CAISO"},null,{"$f":"raw_annual_energy!C708","v":"New_Mexico_Wind"},{"$f":"INDEX(K:K,MATCH(R708,Lists!J:J,0))","v":"Wind"},"Out-Of-State"]
[null,null,null,null,null,null,null,null,null,{"$f":"IFERROR(INDEX(raw_resource_build!$B$2:$B$1000,MATCH(0,COUNTIF($J$1:J708,raw_resource_build!$B$2:$B$1000), 0),0), \"\")","v":""},{"$f":"IF(J709=\"\", \"\", INDEX(raw_resource_build!E:E, MATCH(J709, raw_resource_build!B:B, 0)))","v":""},{"$f":"IF(J709=\"\", \"\", INDEX(raw_resource_build!C:C, MATCH(J709, raw_resource_build!B:B, 0)))","v":""},null,{"$f":"raw_resource_build!B709","v":"IID_Peaker"},"Non-wind",{"$f":"IFERROR(INDEX($E$5:$E$32,MATCH(raw_resource_build!$E709,Lists!$B$5:$B$32,0)),\"Non-CAISO\")","v":"Non-CAISO"},null,{"$f":"raw_annual_energy!C709","v":"New_Mexico_Wind"},{"$f":"INDEX(K:K,MATCH(R709,Lists!J:J,0))","v":"Wind"},"Out-Of-State"]
[null,null,null,null,null,null,null,null,null,{"$f":"IFERROR(INDEX(raw_resource_build!$B$2:$B$1000,MATCH(0,COUNTIF($J$1:J709,raw_resource_build!$B$2:$B$1000), 0),0), \"\")","v":""},{"$f":"IF(J710=\"\", \"\", INDEX(raw_resource_build!E:E, MATCH(J710, raw_resource_build!B:B, 0)))","v":""},{"$f":"IF(J710=\"\", \"\", INDEX(raw_resource_build!C:C, MATCH(J710, raw_resource_build!B:B, 0)))","v":""},null,{"$f":"raw_resource_build!B710","v":"BANC_CCGT"},"Non-wind",{"$f":"IFERROR(INDEX($E$5:$E$32,MATCH(raw_resource_build!$E710,Lists!$B$5:$B$32,0)),\"Non-CAISO\")","v":"Non-CAISO"},null,{"$f":"raw_annual_energy!C710","v":"New_Mexico_Wind"},{"$f":"INDEX(K:K,MATCH(R710,Lists!J:J,0))","v":"Wind"},"Out-Of-State"]
[null,null,null,null,null,null,null,null,null,{"$f":"IFERROR(INDEX(raw_resource_build!$B$2:$B$1000,MATCH(0,COUNTIF($J$1:J710,raw_resource_build!$B$2:$B$1000), 0),0), \"\")","v":""},{"$f":"IF(J711=\"\", \"\", INDEX(raw_resource_build!E:E, MATCH(J711, raw_resource_build!B:B, 0)))","v":""},{"$f":"IF(J711=\"\", \"\", INDEX(raw_resource_build!C:C, MATCH(J711, raw_resource_build!B:B, 0)))","v":""},null,{"$f":"raw_resource_build!B711","v":"BANC_Peaker"},"Non-wind",{"$f":"IFERROR(INDEX($E$5:$E$32,MATCH(raw_resource_build!$E711,Lists!$B$5:$B$32,0)),\"Non-CAISO\")","v":"Non-CAISO"},null,{"$f":"raw_annual_energy!C711","v":"New_Mexico_Wind"},{"$f":"INDEX(K:K,MATCH(R711,Lists!J:J,0))","v":"Wind"},"Out-Of-State"]
[null,null,null,null,null,null,null,null,null,{"$f":"IFERROR(INDEX(raw_resource_build!$B$2:$B$1000,MATCH(0,COUNTIF($J$1:J711,raw_resource_build!$B$2:$B$1000), 0),0), \"\")","v":""},{"$f":"IF(J712=\"\", \"\", INDEX(raw_resource_build!E:E, MATCH(J712, raw_resource_build!B:B, 0)))","v":""},{"$f":"IF(J712=\"\", \"\", INDEX(raw_resource_build!C:C, MATCH(J712, raw_resource_build!B:B, 0)))","v":""},null,{"$f":"raw_resource_build!B712","v":"BANC_Biomass_for_Other"},"Non-wind",{"$f":"IFERROR(INDEX($E$5:$E$32,MATCH(raw_resource_build!$E712,Lists!$B$5:$B$32,0)),\"Non-CAISO\")","v":"Biomass"},null,{"$f":"raw_annual_energy!C712","v":"New_Mexico_Wind"},{"$f":"INDEX(K:K,MATCH(R712,Lists!J:J,0))","v":"Wind"},"Out-Of-State"]
[null,null,null,null,null,null,null,null,null,{"$f":"IFERROR(INDEX(raw_resource_build!$B$2:$B$1000,MATCH(0,COUNTIF($J$1:J712,raw_resource_build!$B$2:$B$1000), 0),0), \"\")","v":""},{"$f":"IF(J713=\"\", \"\", INDEX(raw_resource_build!E:E, MATCH(J713, raw_resource_build!B:B, 0)))","v":""},{"$f":"IF(J713=\"\", \"\", INDEX(raw_resource_build!C:C, MATCH(J713, raw_resource_build!B:B, 0)))","v":""},null,{"$f":"raw_resource_build!B713","v":"BANC_Geothermal_for_Other"},"Non-wind",{"$f":"IFERROR(INDEX($E$5:$E$32,MATCH(raw_resource_build!$E713,Lists!$B$5:$B$32,0)),\"Non-CAISO\")","v":"Geothermal"},null,{"$f":"raw_annual_energy!C713","v":"New_Mexico_Wind"},{"$f":"INDEX(K:K,MATCH(R713,Lists!J:J,0))","v":"Wind"},"Out-Of-State"]
[null,null,null,null,null,null,null,null,null,{"$f":"IFERROR(INDEX(raw_resource_build!$B$2:$B$1000,MATCH(0,COUNTIF($J$1:J713,raw_resource_build!$B$2:$B$1000), 0),0), \"\")","v":""},{"$f":"IF(J714=\"\", \"\", INDEX(raw_resource_build!E:E, MATCH(J714, raw_resource_build!B:B, 0)))","v":""},{"$f":"IF(J714=\"\", \"\", INDEX(raw_resource_build!C:C, MATCH(J714, raw_resource_build!B:B, 0)))","v":""},null,{"$f":"raw_resource_build!B714","v":"CAISO_Biomass_for_Other"},"Non-wind",{"$f":"IFERROR(INDEX($E$5:$E$32,MATCH(raw_resource_build!$E714,Lists!$B$5:$B$32,0)),\"Non-CAISO\")","v":"Biomass"},null,{"$f":"raw_annual_energy!C714","v":"New_Mexico_Wind"},{"$f":"INDEX(K:K,MATCH(R714,Lists!J:J,0))","v":"Wind"},"Out-Of-State"]
[null,null,null,null,null,null,null,null,null,{"$f":"IFERROR(INDEX(raw_resource_build!$B$2:$B$1000,MATCH(0,COUNTIF($J$1:J714,raw_resource_build!$B$2:$B$1000), 0),0), \"\")","v":""},{"$f":"IF(J715=\"\", \"\", INDEX(raw_resource_build!E:E, MATCH(J715, raw_resource_build!B:B, 0)))","v":""},{"$f":"IF(J715=\"\", \"\", INDEX(raw_resource_build!C:C, MATCH(J715, raw_resource_build!B:B, 0)))","v":""},null,{"$f":"raw_resource_build!B715","v":"CAISO_Geothermal_for_Other"},"Non-wind",{"$f":"IFERROR(INDEX($E$5:$E$32,MATCH(raw_resource_build!$E715,Lists!$B$5:$B$32,0)),\"Non-CAISO\")","v":"Geothermal"},null,{"$f":"raw_annual_energy!C715","v":"North_Victor_Solar"},{"$f":"INDEX(K:K,MATCH(R715,Lists!J:J,0))","v":"Solar"},"In-State"]
[null,null,null,null,null,null,null,null,null,{"$f":"IFERROR(INDEX(raw_resource_build!$B$2:$B$1000,MATCH(0,COUNTIF($J$1:J715,raw_resource_build!$B$2:$B$1000), 0),0), \"\")","v":""},{"$f":"IF(J716=\"\", \"\", INDEX(raw_resource_build!E:E, MATCH(J716, raw_resource_build!B:B, 0)))","v":""},{"$f":"IF(J716=\"\", \"\", INDEX(raw_resource_build!C:C, MATCH(J716, raw_resource_build!B:B, 0)))","v":""},null,{"$f":"raw_resource_build!B716","v":"IID_Biomass_for_Other"},"Non-wind",{"$f":"IFERROR(INDEX($E$5:$E$32,MATCH(raw_resource_build!$E716,Lists!$B$5:$B$32,0)),\"Non-CAISO\")","v":"Biomass"},null,{"$f":"raw_annual_energy!C716","v":"North_Victor_Solar"},{"$f":"INDEX(K:K,MATCH(R716,Lists!J:J,0))","v":"Solar"},"In-State"]
[null,null,null,null,null,null,null,null,null,{"$f":"IFERROR(INDEX(raw_resource_build!$B$2:$B$1000,MATCH(0,COUNTIF($J$1:J716,raw_resource_build!$B$2:$B$1000), 0),0), \"\")","v":""},{"$f":"IF(J717=\"\", \"\", INDEX(raw_resource_build!E:E, MATCH(J717, raw_resource_build!B:B, 0)))","v":""},{"$f":"IF(J717=\"\", \"\", INDEX(raw_resource_build!C:C, MATCH(J717, raw_resource_build!B:B, 0)))","v":""},null,{"$f":"raw_resource_build!B717","v":"IID_Geothermal_for_Other"},"Non-wind",{"$f":"IFERROR(INDEX($E$5:$E$32,MATCH(raw_resource_build!$E717,Lists!$B$5:$B$32,0)),\"Non-CAISO\")","v":"Geothermal"},null,{"$f":"raw_annual_energy!C717","v":"North_Victor_Solar"},{"$f":"INDEX(K:K,MATCH(R717,Lists!J:J,0))","v":"Solar"},"In-State"]
[null,null,null,null,null,null,null,null,null,{"$f":"IFERROR(INDEX(raw_resource_build!$B$2:$B$1000,MATCH(0,COUNTIF($J$1:J717,raw_resource_build!$B$2:$B$1000), 0),0), \"\")","v":""},{"$f":"IF(J718=\"\", \"\", INDEX(raw_resource_build!E:E, MATCH(J718, raw_resource_build!B:B, 0)))","v":""},{"$f":"IF(J718=\"\", \"\", INDEX(raw_resource_build!C:C, MATCH(J718, raw_resource_build!B:B, 0)))","v":""},null,{"$f":"raw_resource_build!B718","v":"LDWP_Biomass_for_Other"},"Non-wind",{"$f":"IFERROR(INDEX($E$5:$E$32,MATCH(raw_resource_build!$E718,Lists!$B$5:$B$32,0)),\"Non-CAISO\")","v":"Biomass"},null,{"$f":"raw_annual_energy!C718","v":"North_Victor_Solar"},{"$f":"INDEX(K:K,MATCH(R718,Lists!J:J,0))","v":"Solar"},"In-State"]
[null,null,null,null,null,null,null,null,null,{"$f":"IFERROR(INDEX(raw_resource_build!$B$2:$B$1000,MATCH(0,COUNTIF($J$1:J718,raw_resource_build!$B$2:$B$1000), 0),0), \"\")","v":""},{"$f":"IF(J719=\"\", \"\", INDEX(raw_resource_build!E:E, MATCH(J719, raw_resource_build!B:B, 0)))","v":""},{"$f":"IF(J719=\"\", \"\", INDEX(raw_resource_build!C:C, MATCH(J719, raw_resource_build!B:B, 0)))","v":""},null,{"$f":"raw_resource_build!B719","v":"LDWP_Geothermal_for_Other"},"Non-wind",{"$f":"IFERROR(INDEX($E$5:$E$32,MATCH(raw_resource_build!$E719,Lists!$B$5:$B$32,0)),\"Non-CAISO\")","v":"Geothermal"},null,{"$f":"raw_annual_energy!C719","v":"North_Victor_Solar"},{"$f":"INDEX(K:K,MATCH(R719,Lists!J:J,0))","v":"Solar"},"In-State"]
[null,null,null,null,null,null,null,null,null,{"$f":"IFERROR(INDEX(raw_resource_build!$B$2:$B$1000,MATCH(0,COUNTIF($J$1:J719,raw_resource_build!$B$2:$B$1000), 0),0), \"\")","v":""},{"$f":"IF(J720=\"\", \"\", INDEX(raw_resource_build!E:E, MATCH(J720, raw_resource_build!B:B, 0)))","v":""},{"$f":"IF(J720=\"\", \"\", INDEX(raw_resource_build!C:C, MATCH(J720, raw_resource_build!B:B, 0)))","v":""},null,{"$f":"raw_resource_build!B720","v":"NW_Biomass_for_Other"},"Non-wind",{"$f":"IFERROR(INDEX($E$5:$E$32,MATCH(raw_resource_build!$E720,Lists!$B$5:$B$32,0)),\"Non-CAISO\")","v":"Biomass"},null,{"$f":"raw_annual_energy!C720","v":"North_Victor_Solar"},{"$f":"INDEX(K:K,MATCH(R720,Lists!J:J,0))","v":"Solar"},"In-State"]
[null,null,null,null,null,null,null,null,null,{"$f":"IFERROR(INDEX(raw_resource_build!$B$2:$B$1000,MATCH(0,COUNTIF($J$1:J720,raw_resource_build!$B$2:$B$1000), 0),0), \"\")","v":""},{"$f":"IF(J721=\"\", \"\", INDEX(raw_resource_build!E:E, MATCH(J721, raw_resource_build!B:B, 0)))","v":""},{"$f":"IF(J721=\"\", \"\", INDEX(raw_resource_build!C:C, MATCH(J721, raw_resource_build!B:B, 0)))","v":""},null,{"$f":"raw_resource_build!B721","v":"NW_Geothermal_for_Other"},"Non-wind",{"$f":"IFERROR(INDEX($E$5:$E$32,MATCH(raw_resource_build!$E721,Lists!$B$5:$B$32,0)),\"Non-CAISO\")","v":"Geothermal"},null,{"$f":"raw_annual_energy!C721","v":"North_Victor_Solar"},{"$f":"INDEX(K:K,MATCH(R721,Lists!J:J,0))","v":"Solar"},"In-State"]
[null,null,null,null,null,null,null,null,null,{"$f":"IFERROR(INDEX(raw_resource_build!$B$2:$B$1000,MATCH(0,COUNTIF($J$1:J721,raw_resource_build!$B$2:$B$1000), 0),0), \"\")","v":""},{"$f":"IF(J722=\"\", \"\", INDEX(raw_resource_build!E:E, MATCH(J722, raw_resource_build!B:B, 0)))","v":""},{"$f":"IF(J722=\"\", \"\", INDEX(raw_resource_build!C:C, MATCH(J722, raw_resource_build!B:B, 0)))","v":""},null,{"$f":"raw_resource_build!B722","v":"SW_Biomass_for_Other"},"Non-wind",{"$f":"IFERROR(INDEX($E$5:$E$32,MATCH(raw_resource_build!$E722,Lists!$B$5:$B$32,0)),\"Non-CAISO\")","v":"Biomass"},null,{"$f":"raw_annual_energy!C722","v":"North_Victor_Solar"},{"$f":"INDEX(K:K,MATCH(R722,Lists!J:J,0))","v":"Solar"},"In-State"]
[null,null,null,null,null,null,null,null,null,{"$f":"IFERROR(INDEX(raw_resource_build!$B$2:$B$1000,MATCH(0,COUNTIF($J$1:J722,raw_resource_build!$B$2:$B$1000), 0),0), \"\")","v":""},{"$f":"IF(J723=\"\", \"\", INDEX(raw_resource_build!E:E, MATCH(J723, raw_resource_build!B:B, 0)))","v":""},{"$f":"IF(J723=\"\", \"\", INDEX(raw_resource_build!C:C, MATCH(J723, raw_resource_build!B:B, 0)))","v":""},null,{"$f":"raw_resource_build!B723","v":"SW_Geothermal_for_Other"},"Non-wind",{"$f":"IFERROR(INDEX($E$5:$E$32,MATCH(raw_resource_build!$E723,Lists!$B$5:$B$32,0)),\"Non-CAISO\")","v":"Geothermal"},null,{"$f":"raw_annual_energy!C723","v":"Northern_California_Ex_Geothermal"},{"$f":"INDEX(K:K,MATCH(R723,Lists!J:J,0))","v":"Geothermal"},"In-State"]
[null,null,null,null,null,null,null,null,null,{"$f":"IFERROR(INDEX(raw_resource_build!$B$2:$B$1000,MATCH(0,COUNTIF($J$1:J723,raw_resource_build!$B$2:$B$1000), 0),0), \"\")","v":""},{"$f":"IF(J724=\"\", \"\", INDEX(raw_resource_build!E:E, MATCH(J724, raw_resource_build!B:B, 0)))","v":""},{"$f":"IF(J724=\"\", \"\", INDEX(raw_resource_build!C:C, MATCH(J724, raw_resource_build!B:B, 0)))","v":""},null,{"$f":"raw_resource_build!B724","v":"CAISO_Biomass_for_CAISO"},"Non-wind",{"$f":"IFERROR(INDEX($E$5:$E$32,MATCH(raw_resource_build!$E724,Lists!$B$5:$B$32,0)),\"Non-CAISO\")","v":"Biomass"},null,{"$f":"raw_annual_energy!C724","v":"Northern_California_Ex_Geothermal"},{"$f":"INDEX(K:K,MATCH(R724,Lists!J:J,0))","v":"Geothermal"},"In-State"]
[null,null,null,null,null,null,null,null,null,{"$f":"IFERROR(INDEX(raw_resource_build!$B$2:$B$1000,MATCH(0,COUNTIF($J$1:J724,raw_resource_build!$B$2:$B$1000), 0),0), \"\")","v":""},{"$f":"IF(J725=\"\", \"\", INDEX(raw_resource_build!E:E, MATCH(J725, raw_resource_build!B:B, 0)))","v":""},{"$f":"IF(J725=\"\", \"\", INDEX(raw_resource_build!C:C, MATCH(J725, raw_resource_build!B:B, 0)))","v":""},null,{"$f":"raw_resource_build!B725","v":"CAISO_Geothermal_for_CAISO"},"Non-wind",{"$f":"IFERROR(INDEX($E$5:$E$32,MATCH(raw_resource_build!$E725,Lists!$B$5:$B$32,0)),\"Non-CAISO\")","v":"Geothermal"},null,{"$f":"raw_annual_energy!C725","v":"Northern_California_Ex_Geothermal"},{"$f":"INDEX(K:K,MATCH(R725,Lists!J:J,0))","v":"Geothermal"},"In-State"]
[null,null,null,null,null,null,null,null,null,{"$f":"IFERROR(INDEX(raw_resource_build!$B$2:$B$1000,MATCH(0,COUNTIF($J$1:J725,raw_resource_build!$B$2:$B$1000), 0),0), \"\")","v":""},{"$f":"IF(J726=\"\", \"\", INDEX(raw_resource_build!E:E, MATCH(J726, raw_resource_build!B:B, 0)))","v":""},{"$f":"IF(J726=\"\", \"\", INDEX(raw_resource_build!C:C, MATCH(J726, raw_resource_build!B:B, 0)))","v":""},null,{"$f":"raw_resource_build!B726","v":"IID_Geothermal_for_CAISO"},"Non-wind",{"$f":"IFERROR(INDEX($E$5:$E$32,MATCH(raw_resource_build!$E726,Lists!$B$5:$B$32,0)),\"Non-CAISO\")","v":"Geothermal"},null,{"$f":"raw_annual_energy!C726","v":"Northern_California_Ex_Geothermal"},{"$f":"INDEX(K:K,MATCH(R726,Lists!J:J,0))","v":"Geothermal"},"In-State"]
[null,null,null,null,null,null,null,null,null,{"$f":"IFERROR(INDEX(raw_resource_build!$B$2:$B$1000,MATCH(0,COUNTIF($J$1:J726,raw_resource_build!$B$2:$B$1000), 0),0), \"\")","v":""},{"$f":"IF(J727=\"\", \"\", INDEX(raw_resource_build!E:E, MATCH(J727, raw_resource_build!B:B, 0)))","v":""},{"$f":"IF(J727=\"\", \"\", INDEX(raw_resource_build!C:C, MATCH(J727, raw_resource_build!B:B, 0)))","v":""},null,{"$f":"raw_resource_build!B727","v":"NW_Biomass_for_CAISO"},"Non-wind",{"$f":"IFERROR(INDEX($E$5:$E$32,MATCH(raw_resource_build!$E727,Lists!$B$5:$B$32,0)),\"Non-CAISO\")","v":"Biomass"},null,{"$f":"raw_annual_energy!C727","v":"Northern_California_Ex_Geothermal"},{"$f":"INDEX(K:K,MATCH(R727,Lists!J:J,0))","v":"Geothermal"},"In-State"]
[null,null,null,null,null,null,null,null,null,{"$f":"IFERROR(INDEX(raw_resource_build!$B$2:$B$1000,MATCH(0,COUNTIF($J$1:J727,raw_resource_build!$B$2:$B$1000), 0),0), \"\")","v":""},{"$f":"IF(J728=\"\", \"\", INDEX(raw_resource_build!E:E, MATCH(J728, raw_resource_build!B:B, 0)))","v":""},{"$f":"IF(J728=\"\", \"\", INDEX(raw_resource_build!C:C, MATCH(J728, raw_resource_build!B:B, 0)))","v":""},null,{"$f":"raw_resource_build!B728","v":"NW_Geothermal_for_CAISO"},"Non-wind",{"$f":"IFERROR(INDEX($E$5:$E$32,MATCH(raw_resource_build!$E728,Lists!$B$5:$B$32,0)),\"Non-CAISO\")","v":"Geothermal"},null,{"$f":"raw_annual_energy!C728","v":"Northern_California_Ex_Geothermal"},{"$f":"INDEX(K:K,MATCH(R728,Lists!J:J,0))","v":"Geothermal"},"In-State"]
[null,null,null,null,null,null,null,null,null,{"$f":"IFERROR(INDEX(raw_resource_build!$B$2:$B$1000,MATCH(0,COUNTIF($J$1:J728,raw_resource_build!$B$2:$B$1000), 0),0), \"\")","v":""},{"$f":"IF(J729=\"\", \"\", INDEX(raw_resource_build!E:E, MATCH(J729, raw_resource_build!B:B, 0)))","v":""},{"$f":"IF(J729=\"\", \"\", INDEX(raw_resource_build!C:C, MATCH(J729, raw_resource_build!B:B, 0)))","v":""},null,{"$f":"raw_resource_build!B729","v":"InState_Biomass"},"In-State",{"$f":"IFERROR(INDEX($E$5:$E$32,MATCH(raw_resource_build!$E729,Lists!$B$5:$B$32,0)),\"Non-CAISO\")","v":"Biomass"},null,{"$f":"raw_annual_energy!C729","v":"Northern_California_Ex_Geothermal"},{"$f":"INDEX(K:K,MATCH(R729,Lists!J:J,0))","v":"Geothermal"},"In-State"]
[null,null,null,null,null,null,null,null,null,{"$f":"IFERROR(INDEX(raw_resource_build!$B$2:$B$1000,MATCH(0,COUNTIF($J$1:J729,raw_resource_build!$B$2:$B$1000), 0),0), \"\")","v":""},{"$f":"IF(J730=\"\", \"\", INDEX(raw_resource_build!E:E, MATCH(J730, raw_resource_build!B:B, 0)))","v":""},{"$f":"IF(J730=\"\", \"\", INDEX(raw_resource_build!C:C, MATCH(J730, raw_resource_build!B:B, 0)))","v":""},null,{"$f":"raw_resource_build!B730","v":"CAISO_Small_Hydro_for_CAISO"},"Non-wind",{"$f":"IFERROR(INDEX($E$5:$E$32,MATCH(raw_resource_build!$E730,Lists!$B$5:$B$32,0)),\"Non-CAISO\")","v":"Hydro (small + large)"},null,{"$f":"raw_annual_energy!C730","v":"Northern_California_Ex_Geothermal"},{"$f":"INDEX(K:K,MATCH(R730,Lists!J:J,0))","v":"Geothermal"},"In-State"]
[null,null,null,null,null,null,null,null,null,{"$f":"IFERROR(INDEX(raw_resource_build!$B$2:$B$1000,MATCH(0,COUNTIF($J$1:J730,raw_resource_build!$B$2:$B$1000), 0),0), \"\")","v":""},{"$f":"IF(J731=\"\", \"\", INDEX(raw_resource_build!E:E, MATCH(J731, raw_resource_build!B:B, 0)))","v":""},{"$f":"IF(J731=\"\", \"\", INDEX(raw_resource_build!C:C, MATCH(J731, raw_resource_build!B:B, 0)))","v":""},null,{"$f":"raw_resource_build!B731","v":"BANC_Small_Hydro_for_CAISO"},"Non-wind",{"$f":"IFERROR(INDEX($E$5:$E$32,MATCH(raw_resource_build!$E731,Lists!$B$5:$B$32,0)),\"Non-CAISO\")","v":"Hydro (small + large)"},null,{"$f":"raw_annual_energy!C731","v":"Northern_California_Ex_Solar"},{"$f":"INDEX(K:K,MATCH(R731,Lists!J:J,0))","v":"Solar"},"In-State"]
[null,null,null,null,null,null,null,null,null,{"$f":"IFERROR(INDEX(raw_resource_build!$B$2:$B$1000,MATCH(0,COUNTIF($J$1:J731,raw_resource_build!$B$2:$B$1000), 0),0), \"\")","v":""},{"$f":"IF(J732=\"\", \"\", INDEX(raw_resource_build!E:E, MATCH(J732, raw_resource_build!B:B, 0)))","v":""},{"$f":"IF(J732=\"\", \"\", INDEX(raw_resource_build!C:C, MATCH(J732, raw_resource_build!B:B, 0)))","v":""},null,{"$f":"raw_resource_build!B732","v":"NW_Small_Hydro_for_CAISO"},"Non-wind",{"$f":"IFERROR(INDEX($E$5:$E$32,MATCH(raw_resource_build!$E732,Lists!$B$5:$B$32,0)),\"Non-CAISO\")","v":"Hydro (small + large)"},null,{"$f":"raw_annual_energy!C732","v":"Northern_California_Ex_Solar"},{"$f":"INDEX(K:K,MATCH(R732,Lists!J:J,0))","v":"Solar"},"In-State"]
[null,null,null,null,null,null,null,null,null,{"$f":"IFERROR(INDEX(raw_resource_build!$B$2:$B$1000,MATCH(0,COUNTIF($J$1:J732,raw_resource_build!$B$2:$B$1000), 0),0), \"\")","v":""},{"$f":"IF(J733=\"\", \"\", INDEX(raw_resource_build!E:E, MATCH(J733, raw_resource_build!B:B, 0)))","v":""},{"$f":"IF(J733=\"\", \"\", INDEX(raw_resource_build!C:C, MATCH(J733, raw_resource_build!B:B, 0)))","v":""},null,{"$f":"raw_resource_build!B733","v":"CAISO_Small_Hydro_for_Other"},"Non-wind",{"$f":"IFERROR(INDEX($E$5:$E$32,MATCH(raw_resource_build!$E733,Lists!$B$5:$B$32,0)),\"Non-CAISO\")","v":"Hydro (small + large)"},null,{"$f":"raw_annual_energy!C733","v":"Northern_California_Ex_Solar"},{"$f":"INDEX(K:K,MATCH(R733,Lists!J:J,0))","v":"Solar"},"In-State"]
[null,null,null,null,null,null,null,null,null,{"$f":"IFERROR(INDEX(raw_resource_build!$B$2:$B$1000,MATCH(0,COUNTIF($J$1:J733,raw_resource_build!$B$2:$B$1000), 0),0), \"\")","v":""},{"$f":"IF(J734=\"\", \"\", INDEX(raw_resource_build!E:E, MATCH(J734, raw_resource_build!B:B, 0)))","v":""},{"$f":"IF(J734=\"\", \"\", INDEX(raw_resource_build!C:C, MATCH(J734, raw_resource_build!B:B, 0)))","v":""},null,{"$f":"raw_resource_build!B734","v":"BANC_Small_Hydro_for_Other"},"Non-wind",{"$f":"IFERROR(INDEX($E$5:$E$32,MATCH(raw_resource_build!$E734,Lists!$B$5:$B$32,0)),\"Non-CAISO\")","v":"Hydro (small + large)"},null,{"$f":"raw_annual_energy!C734","v":"Northern_California_Ex_Solar"},{"$f":"INDEX(K:K,MATCH(R734,Lists!J:J,0))","v":"Solar"},"In-State"]
[null,null,null,null,null,null,null,null,null,{"$f":"IFERROR(INDEX(raw_resource_build!$B$2:$B$1000,MATCH(0,COUNTIF($J$1:J734,raw_resource_build!$B$2:$B$1000), 0),0), \"\")","v":""},{"$f":"IF(J735=\"\", \"\", INDEX(raw_resource_build!E:E, MATCH(J735, raw_resource_build!B:B, 0)))","v":""},{"$f":"IF(J735=\"\", \"\", INDEX(raw_resource_build!C:C, MATCH(J735, raw_resource_build!B:B, 0)))","v":""},null,{"$f":"raw_resource_build!B735","v":"IID_Small_Hydro_for_Other"},"Non-wind",{"$f":"IFERROR(INDEX($E$5:$E$32,MATCH(raw_resource_build!$E735,Lists!$B$5:$B$32,0)),\"Non-CAISO\")","v":"Hydro (small + large)"},null,{"$f":"raw_annual_energy!C735","v":"Northern_California_Ex_Solar"},{"$f":"INDEX(K:K,MATCH(R735,Lists!J:J,0))","v":"Solar"},"In-State"]
[null,null,null,null,null,null,null,null,null,{"$f":"IFERROR(INDEX(raw_resource_build!$B$2:$B$1000,MATCH(0,COUNTIF($J$1:J735,raw_resource_build!$B$2:$B$1000), 0),0), \"\")","v":""},{"$f":"IF(J736=\"\", \"\", INDEX(raw_resource_build!E:E, MATCH(J736, raw_resource_build!B:B, 0)))","v":""},{"$f":"IF(J736=\"\", \"\", INDEX(raw_resource_build!C:C, MATCH(J736, raw_resource_build!B:B, 0)))","v":""},null,{"$f":"raw_resource_build!B736","v":"LDWP_Small_Hydro_for_Other"},"Non-wind",{"$f":"IFERROR(INDEX($E$5:$E$32,MATCH(raw_resource_build!$E736,Lists!$B$5:$B$32,0)),\"Non-CAISO\")","v":"Hydro (small + large)"},null,{"$f":"raw_annual_energy!C736","v":"Northern_California_Ex_Solar"},{"$f":"INDEX(K:K,MATCH(R736,Lists!J:J,0))","v":"Solar"},"In-State"]
[null,null,null,null,null,null,null,null,null,{"$f":"IFERROR(INDEX(raw_resource_build!$B$2:$B$1000,MATCH(0,COUNTIF($J$1:J736,raw_resource_build!$B$2:$B$1000), 0),0), \"\")","v":""},{"$f":"IF(J737=\"\", \"\", INDEX(raw_resource_build!E:E, MATCH(J737, raw_resource_build!B:B, 0)))","v":""},{"$f":"IF(J737=\"\", \"\", INDEX(raw_resource_build!C:C, MATCH(J737, raw_resource_build!B:B, 0)))","v":""},null,{"$f":"raw_resource_build!B737","v":"NW_Small_Hydro_for_Other"},"Non-wind",{"$f":"IFERROR(INDEX($E$5:$E$32,MATCH(raw_resource_build!$E737,Lists!$B$5:$B$32,0)),\"Non-CAISO\")","v":"Hydro (small + large)"},null,{"$f":"raw_annual_energy!C737","v":"Northern_California_Ex_Solar"},{"$f":"INDEX(K:K,MATCH(R737,Lists!J:J,0))","v":"Solar"},"In-State"]
[null,null,null,null,null,null,null,null,null,{"$f":"IFERROR(INDEX(raw_resource_build!$B$2:$B$1000,MATCH(0,COUNTIF($J$1:J737,raw_resource_build!$B$2:$B$1000), 0),0), \"\")","v":""},{"$f":"IF(J738=\"\", \"\", INDEX(raw_resource_build!E:E, MATCH(J738, raw_resource_build!B:B, 0)))","v":""},{"$f":"IF(J738=\"\", \"\", INDEX(raw_resource_build!C:C, MATCH(J738, raw_resource_build!B:B, 0)))","v":""},null,{"$f":"raw_resource_build!B738","v":"SW_Small_Hydro_for_Other"},"Non-wind",{"$f":"IFERROR(INDEX($E$5:$E$32,MATCH(raw_resource_build!$E738,Lists!$B$5:$B$32,0)),\"Non-CAISO\")","v":"Hydro (small + large)"},null,{"$f":"raw_annual_energy!C738","v":"Northern_California_Ex_Solar"},{"$f":"INDEX(K:K,MATCH(R738,Lists!J:J,0))","v":"Solar"},"In-State"]
[null,null,null,null,null,null,null,null,null,{"$f":"IFERROR(INDEX(raw_resource_build!$B$2:$B$1000,MATCH(0,COUNTIF($J$1:J738,raw_resource_build!$B$2:$B$1000), 0),0), \"\")","v":""},{"$f":"IF(J739=\"\", \"\", INDEX(raw_resource_build!E:E, MATCH(J739, raw_resource_build!B:B, 0)))","v":""},{"$f":"IF(J739=\"\", \"\", INDEX(raw_resource_build!C:C, MATCH(J739, raw_resource_build!B:B, 0)))","v":""},null,{"$f":"raw_resource_build!B739","v":"Greater_Imperial_Geothermal"},"In-State",{"$f":"IFERROR(INDEX($E$5:$E$32,MATCH(raw_resource_build!$E739,Lists!$B$5:$B$32,0)),\"Non-CAISO\")","v":"Geothermal"},null,{"$f":"raw_annual_energy!C739","v":"Northern_California_Ex_Wind"},{"$f":"INDEX(K:K,MATCH(R739,Lists!J:J,0))","v":"Wind"},"In-State"]
[null,null,null,null,null,null,null,null,null,{"$f":"IFERROR(INDEX(raw_resource_build!$B$2:$B$1000,MATCH(0,COUNTIF($J$1:J739,raw_resource_build!$B$2:$B$1000), 0),0), \"\")","v":""},{"$f":"IF(J740=\"\", \"\", INDEX(raw_resource_build!E:E, MATCH(J740, raw_resource_build!B:B, 0)))","v":""},{"$f":"IF(J740=\"\", \"\", INDEX(raw_resource_build!C:C, MATCH(J740, raw_resource_build!B:B, 0)))","v":""},null,{"$f":"raw_resource_build!B740","v":"Inyokern_North_Kramer_Geothermal"},"In-State",{"$f":"IFERROR(INDEX($E$5:$E$32,MATCH(raw_resource_build!$E740,Lists!$B$5:$B$32,0)),\"Non-CAISO\")","v":"Geothermal"},null,{"$f":"raw_annual_energy!C740","v":"Northern_California_Ex_Wind"},{"$f":"INDEX(K:K,MATCH(R740,Lists!J:J,0))","v":"Wind"},"In-State"]
[null,null,null,null,null,null,null,null,null,{"$f":"IFERROR(INDEX(raw_resource_build!$B$2:$B$1000,MATCH(0,COUNTIF($J$1:J740,raw_resource_build!$B$2:$B$1000), 0),0), \"\")","v":""},{"$f":"IF(J741=\"\", \"\", INDEX(raw_resource_build!E:E, MATCH(J741, raw_resource_build!B:B, 0)))","v":""},{"$f":"IF(J741=\"\", \"\", INDEX(raw_resource_build!C:C, MATCH(J741, raw_resource_build!B:B, 0)))","v":""},null,{"$f":"raw_resource_build!B741","v":"Northern_California_Ex_Geothermal"},"In-State",{"$f":"IFERROR(INDEX($E$5:$E$32,MATCH(raw_resource_build!$E741,Lists!$B$5:$B$32,0)),\"Non-CAISO\")","v":"Geothermal"},null,{"$f":"raw_annual_energy!C741","v":"Northern_California_Ex_Wind"},{"$f":"INDEX(K:K,MATCH(R741,Lists!J:J,0))","v":"Wind"},"In-State"]
[null,null,null,null,null,null,null,null,null,{"$f":"IFERROR(INDEX(raw_resource_build!$B$2:$B$1000,MATCH(0,COUNTIF($J$1:J741,raw_resource_build!$B$2:$B$1000), 0),0), \"\")","v":""},{"$f":"IF(J742=\"\", \"\", INDEX(raw_resource_build!E:E, MATCH(J742, raw_resource_build!B:B, 0)))","v":""},{"$f":"IF(J742=\"\", \"\", INDEX(raw_resource_build!C:C, MATCH(J742, raw_resource_build!B:B, 0)))","v":""},null,{"$f":"raw_resource_build!B742","v":"Pacific_Northwest_Geothermal"},"Out-Of-State",{"$f":"IFERROR(INDEX($E$5:$E$32,MATCH(raw_resource_build!$E742,Lists!$B$5:$B$32,0)),\"Non-CAISO\")","v":"Geothermal"},null,{"$f":"raw_annual_energy!C742","v":"Northern_California_Ex_Wind"},{"$f":"INDEX(K:K,MATCH(R742,Lists!J:J,0))","v":"Wind"},"In-State"]
[null,null,null,null,null,null,null,null,null,{"$f":"IFERROR(INDEX(raw_resource_build!$B$2:$B$1000,MATCH(0,COUNTIF($J$1:J742,raw_resource_build!$B$2:$B$1000), 0),0), \"\")","v":""},{"$f":"IF(J743=\"\", \"\", INDEX(raw_resource_build!E:E, MATCH(J743, raw_resource_build!B:B, 0)))","v":""},{"$f":"IF(J743=\"\", \"\", INDEX(raw_resource_build!C:C, MATCH(J743, raw_resource_build!B:B, 0)))","v":""},null,{"$f":"raw_resource_build!B743","v":"Riverside_Palm_Springs_Geothermal"},"In-State",{"$f":"IFERROR(INDEX($E$5:$E$32,MATCH(raw_resource_build!$E743,Lists!$B$5:$B$32,0)),\"Non-CAISO\")","v":"Geothermal"},null,{"$f":"raw_annual_energy!C743","v":"Northern_California_Ex_Wind"},{"$f":"INDEX(K:K,MATCH(R743,Lists!J:J,0))","v":"Wind"},"In-State"]
[null,null,null,null,null,null,null,null,null,{"$f":"IFERROR(INDEX(raw_resource_build!$B$2:$B$1000,MATCH(0,COUNTIF($J$1:J743,raw_resource_build!$B$2:$B$1000), 0),0), \"\")","v":""},{"$f":"IF(J744=\"\", \"\", INDEX(raw_resource_build!E:E, MATCH(J744, raw_resource_build!B:B, 0)))","v":""},{"$f":"IF(J744=\"\", \"\", INDEX(raw_resource_build!C:C, MATCH(J744, raw_resource_build!B:B, 0)))","v":""},null,{"$f":"raw_resource_build!B744","v":"Solano_Geothermal"},"In-State",{"$f":"IFERROR(INDEX($E$5:$E$32,MATCH(raw_resource_build!$E744,Lists!$B$5:$B$32,0)),\"Non-CAISO\")","v":"Geothermal"},null,{"$f":"raw_annual_energy!C744","v":"Northern_California_Ex_Wind"},{"$f":"INDEX(K:K,MATCH(R744,Lists!J:J,0))","v":"Wind"},"In-State"]
[null,null,null,null,null,null,null,null,null,{"$f":"IFERROR(INDEX(raw_resource_build!$B$2:$B$1000,MATCH(0,COUNTIF($J$1:J744,raw_resource_build!$B$2:$B$1000), 0),0), \"\")","v":""},{"$f":"IF(J745=\"\", \"\", INDEX(raw_resource_build!E:E, MATCH(J745, raw_resource_build!B:B, 0)))","v":""},{"$f":"IF(J745=\"\", \"\", INDEX(raw_resource_build!C:C, MATCH(J745, raw_resource_build!B:B, 0)))","v":""},null,{"$f":"raw_resource_build!B745","v":"Southern_Nevada_Geothermal"},"In-State",{"$f":"IFERROR(INDEX($E$5:$E$32,MATCH(raw_resource_build!$E745,Lists!$B$5:$B$32,0)),\"Non-CAISO\")","v":"Geothermal"},null,{"$f":"raw_annual_energy!C745","v":"Northern_California_Ex_Wind"},{"$f":"INDEX(K:K,MATCH(R745,Lists!J:J,0))","v":"Wind"},"In-State"]
[null,null,null,null,null,null,null,null,null,{"$f":"IFERROR(INDEX(raw_resource_build!$B$2:$B$1000,MATCH(0,COUNTIF($J$1:J745,raw_resource_build!$B$2:$B$1000), 0),0), \"\")","v":""},{"$f":"IF(J746=\"\", \"\", INDEX(raw_resource_build!E:E, MATCH(J746, raw_resource_build!B:B, 0)))","v":""},{"$f":"IF(J746=\"\", \"\", INDEX(raw_resource_build!C:C, MATCH(J746, raw_resource_build!B:B, 0)))","v":""},null,{"$f":"raw_resource_build!B746","v":"Customer_PV"},"Non-wind",{"$f":"IFERROR(INDEX($E$5:$E$32,MATCH(raw_resource_build!$E746,Lists!$B$5:$B$32,0)),\"Non-CAISO\")","v":"Renewables"},null,{"$f":"raw_annual_energy!C746","v":"Northern_California_Ex_Wind"},{"$f":"INDEX(K:K,MATCH(R746,Lists!J:J,0))","v":"Wind"},"In-State"]
[null,null,null,null,null,null,null,null,null,{"$f":"IFERROR(INDEX(raw_resource_build!$B$2:$B$1000,MATCH(0,COUNTIF($J$1:J746,raw_resource_build!$B$2:$B$1000), 0),0), \"\")","v":""},{"$f":"IF(J747=\"\", \"\", INDEX(raw_resource_build!E:E, MATCH(J747, raw_resource_build!B:B, 0)))","v":""},{"$f":"IF(J747=\"\", \"\", INDEX(raw_resource_build!C:C, MATCH(J747, raw_resource_build!B:B, 0)))","v":""},null,{"$f":"raw_resource_build!B747","v":"BANC_Solar_for_Other"},"Non-wind",{"$f":"IFERROR(INDEX($E$5:$E$32,MATCH(raw_resource_build!$E747,Lists!$B$5:$B$32,0)),\"Non-CAISO\")","v":"Renewables"},null,{"$f":"raw_annual_energy!C747","v":"Pacific_Northwest_Geothermal"},{"$f":"INDEX(K:K,MATCH(R747,Lists!J:J,0))","v":"Geothermal"},"Out-Of-State"]
[null,null,null,null,null,null,null,null,null,{"$f":"IFERROR(INDEX(raw_resource_build!$B$2:$B$1000,MATCH(0,COUNTIF($J$1:J747,raw_resource_build!$B$2:$B$1000), 0),0), \"\")","v":""},{"$f":"IF(J748=\"\", \"\", INDEX(raw_resource_build!E:E, MATCH(J748, raw_resource_build!B:B, 0)))","v":""},{"$f":"IF(J748=\"\", \"\", INDEX(raw_resource_build!C:C, MATCH(J748, raw_resource_build!B:B, 0)))","v":""},null,{"$f":"raw_resource_build!B748","v":"CAISO_Solar_for_Other"},"Non-wind",{"$f":"IFERROR(INDEX($E$5:$E$32,MATCH(raw_resource_build!$E748,Lists!$B$5:$B$32,0)),\"Non-CAISO\")","v":"Renewables"},null,{"$f":"raw_annual_energy!C748","v":"Pacific_Northwest_Geothermal"},{"$f":"INDEX(K:K,MATCH(R748,Lists!J:J,0))","v":"Geothermal"},"Out-Of-State"]
[null,null,null,null,null,null,null,null,null,{"$f":"IFERROR(INDEX(raw_resource_build!$B$2:$B$1000,MATCH(0,COUNTIF($J$1:J748,raw_resource_build!$B$2:$B$1000), 0),0), \"\")","v":""},{"$f":"IF(J749=\"\", \"\", INDEX(raw_resource_build!E:E, MATCH(J749, raw_resource_build!B:B, 0)))","v":""},{"$f":"IF(J749=\"\", \"\", INDEX(raw_resource_build!C:C, MATCH(J749, raw_resource_build!B:B, 0)))","v":""},null,{"$f":"raw_resource_build!B749","v":"IID_Solar_for_Other"},"Non-wind",{"$f":"IFERROR(INDEX($E$5:$E$32,MATCH(raw_resource_build!$E749,Lists!$B$5:$B$32,0)),\"Non-CAISO\")","v":"Renewables"},null,{"$f":"raw_annual_energy!C749","v":"Pacific_Northwest_Geothermal"},{"$f":"INDEX(K:K,MATCH(R749,Lists!J:J,0))","v":"Geothermal"},"Out-Of-State"]
[null,null,null,null,null,null,null,null,null,{"$f":"IFERROR(INDEX(raw_resource_build!$B$2:$B$1000,MATCH(0,COUNTIF($J$1:J749,raw_resource_build!$B$2:$B$1000), 0),0), \"\")","v":""},{"$f":"IF(J750=\"\", \"\", INDEX(raw_resource_build!E:E, MATCH(J750, raw_resource_build!B:B, 0)))","v":""},{"$f":"IF(J750=\"\", \"\", INDEX(raw_resource_build!C:C, MATCH(J750, raw_resource_build!B:B, 0)))","v":""},null,{"$f":"raw_resource_build!B750","v":"LDWP_Solar_for_Other"},"Non-wind",{"$f":"IFERROR(INDEX($E$5:$E$32,MATCH(raw_resource_build!$E750,Lists!$B$5:$B$32,0)),\"Non-CAISO\")","v":"Renewables"},null,{"$f":"raw_annual_energy!C750","v":"Pacific_Northwest_Geothermal"},{"$f":"INDEX(K:K,MATCH(R750,Lists!J:J,0))","v":"Geothermal"},"Out-Of-State"]
[null,null,null,null,null,null,null,null,null,{"$f":"IFERROR(INDEX(raw_resource_build!$B$2:$B$1000,MATCH(0,COUNTIF($J$1:J750,raw_resource_build!$B$2:$B$1000), 0),0), \"\")","v":""},{"$f":"IF(J751=\"\", \"\", INDEX(raw_resource_build!E:E, MATCH(J751, raw_resource_build!B:B, 0)))","v":""},{"$f":"IF(J751=\"\", \"\", INDEX(raw_resource_build!C:C, MATCH(J751, raw_resource_build!B:B, 0)))","v":""},null,{"$f":"raw_resource_build!B751","v":"NW_Solar_for_Other"},"Non-wind",{"$f":"IFERROR(INDEX($E$5:$E$32,MATCH(raw_resource_build!$E751,Lists!$B$5:$B$32,0)),\"Non-CAISO\")","v":"Renewables"},null,{"$f":"raw_annual_energy!C751","v":"Pacific_Northwest_Geothermal"},{"$f":"INDEX(K:K,MATCH(R751,Lists!J:J,0))","v":"Geothermal"},"Out-Of-State"]
[null,null,null,null,null,null,null,null,null,{"$f":"IFERROR(INDEX(raw_resource_build!$B$2:$B$1000,MATCH(0,COUNTIF($J$1:J751,raw_resource_build!$B$2:$B$1000), 0),0), \"\")","v":""},{"$f":"IF(J752=\"\", \"\", INDEX(raw_resource_build!E:E, MATCH(J752, raw_resource_build!B:B, 0)))","v":""},{"$f":"IF(J752=\"\", \"\", INDEX(raw_resource_build!C:C, MATCH(J752, raw_resource_build!B:B, 0)))","v":""},null,{"$f":"raw_resource_build!B752","v":"SW_Solar_for_Other"},"Non-wind",{"$f":"IFERROR(INDEX($E$5:$E$32,MATCH(raw_resource_build!$E752,Lists!$B$5:$B$32,0)),\"Non-CAISO\")","v":"Renewables"},null,{"$f":"raw_annual_energy!C752","v":"Pacific_Northwest_Geothermal"},{"$f":"INDEX(K:K,MATCH(R752,Lists!J:J,0))","v":"Geothermal"},"Out-Of-State"]
[null,null,null,null,null,null,null,null,null,{"$f":"IFERROR(INDEX(raw_resource_build!$B$2:$B$1000,MATCH(0,COUNTIF($J$1:J752,raw_resource_build!$B$2:$B$1000), 0),0), \"\")","v":""},{"$f":"IF(J753=\"\", \"\", INDEX(raw_resource_build!E:E, MATCH(J753, raw_resource_build!B:B, 0)))","v":""},{"$f":"IF(J753=\"\", \"\", INDEX(raw_resource_build!C:C, MATCH(J753, raw_resource_build!B:B, 0)))","v":""},null,{"$f":"raw_resource_build!B753","v":"CAISO_Solar_for_CAISO"},"Non-wind",{"$f":"IFERROR(INDEX($E$5:$E$32,MATCH(raw_resource_build!$E753,Lists!$B$5:$B$32,0)),\"Non-CAISO\")","v":"Renewables"},null,{"$f":"raw_annual_energy!C753","v":"Pacific_Northwest_Geothermal"},{"$f":"INDEX(K:K,MATCH(R753,Lists!J:J,0))","v":"Geothermal"},"Out-Of-State"]
[null,null,null,null,null,null,null,null,null,{"$f":"IFERROR(INDEX(raw_resource_build!$B$2:$B$1000,MATCH(0,COUNTIF($J$1:J753,raw_resource_build!$B$2:$B$1000), 0),0), \"\")","v":""},{"$f":"IF(J754=\"\", \"\", INDEX(raw_resource_build!E:E, MATCH(J754, raw_resource_build!B:B, 0)))","v":""},{"$f":"IF(J754=\"\", \"\", INDEX(raw_resource_build!C:C, MATCH(J754, raw_resource_build!B:B, 0)))","v":""},null,{"$f":"raw_resource_build!B754","v":"IID_Solar_for_CAISO"},"Non-wind",{"$f":"IFERROR(INDEX($E$5:$E$32,MATCH(raw_resource_build!$E754,Lists!$B$5:$B$32,0)),\"Non-CAISO\")","v":"Renewables"},null,{"$f":"raw_annual_energy!C754","v":"Pacific_Northwest_Geothermal"},{"$f":"INDEX(K:K,MATCH(R754,Lists!J:J,0))","v":"Geothermal"},"Out-Of-State"]
[null,null,null,null,null,null,null,null,null,{"$f":"IFERROR(INDEX(raw_resource_build!$B$2:$B$1000,MATCH(0,COUNTIF($J$1:J754,raw_resource_build!$B$2:$B$1000), 0),0), \"\")","v":""},{"$f":"IF(J755=\"\", \"\", INDEX(raw_resource_build!E:E, MATCH(J755, raw_resource_build!B:B, 0)))","v":""},{"$f":"IF(J755=\"\", \"\", INDEX(raw_resource_build!C:C, MATCH(J755, raw_resource_build!B:B, 0)))","v":""},null,{"$f":"raw_resource_build!B755","v":"SW_Solar_for_CAISO"},"Non-wind",{"$f":"IFERROR(INDEX($E$5:$E$32,MATCH(raw_resource_build!$E755,Lists!$B$5:$B$32,0)),\"Non-CAISO\")","v":"Renewables"},null,{"$f":"raw_annual_energy!C755","v":"Pacific_Northwest_Wind"},{"$f":"INDEX(K:K,MATCH(R755,Lists!J:J,0))","v":"Wind"},"Out-Of-State"]
[null,null,null,null,null,null,null,null,null,{"$f":"IFERROR(INDEX(raw_resource_build!$B$2:$B$1000,MATCH(0,COUNTIF($J$1:J755,raw_resource_build!$B$2:$B$1000), 0),0), \"\")","v":""},{"$f":"IF(J756=\"\", \"\", INDEX(raw_resource_build!E:E, MATCH(J756, raw_resource_build!B:B, 0)))","v":""},{"$f":"IF(J756=\"\", \"\", INDEX(raw_resource_build!C:C, MATCH(J756, raw_resource_build!B:B, 0)))","v":""},null,{"$f":"raw_resource_build!B756","v":"BANC_Wind_for_Other"},"Non-wind",{"$f":"IFERROR(INDEX($E$5:$E$32,MATCH(raw_resource_build!$E756,Lists!$B$5:$B$32,0)),\"Non-CAISO\")","v":"Renewables"},null,{"$f":"raw_annual_energy!C756","v":"Pacific_Northwest_Wind"},{"$f":"INDEX(K:K,MATCH(R756,Lists!J:J,0))","v":"Wind"},"Out-Of-State"]
[null,null,null,null,null,null,null,null,null,{"$f":"IFERROR(INDEX(raw_resource_build!$B$2:$B$1000,MATCH(0,COUNTIF($J$1:J756,raw_resource_build!$B$2:$B$1000), 0),0), \"\")","v":""},{"$f":"IF(J757=\"\", \"\", INDEX(raw_resource_build!E:E, MATCH(J757, raw_resource_build!B:B, 0)))","v":""},{"$f":"IF(J757=\"\", \"\", INDEX(raw_resource_build!C:C, MATCH(J757, raw_resource_build!B:B, 0)))","v":""},null,{"$f":"raw_resource_build!B757","v":"CAISO_Wind_for_Other"},"Non-wind",{"$f":"IFERROR(INDEX($E$5:$E$32,MATCH(raw_resource_build!$E757,Lists!$B$5:$B$32,0)),\"Non-CAISO\")","v":"Renewables"},null,{"$f":"raw_annual_energy!C757","v":"Pacific_Northwest_Wind"},{"$f":"INDEX(K:K,MATCH(R757,Lists!J:J,0))","v":"Wind"},"Out-Of-State"]
[null,null,null,null,null,null,null,null,null,{"$f":"IFERROR(INDEX(raw_resource_build!$B$2:$B$1000,MATCH(0,COUNTIF($J$1:J757,raw_resource_build!$B$2:$B$1000), 0),0), \"\")","v":""},{"$f":"IF(J758=\"\", \"\", INDEX(raw_resource_build!E:E, MATCH(J758, raw_resource_build!B:B, 0)))","v":""},{"$f":"IF(J758=\"\", \"\", INDEX(raw_resource_build!C:C, MATCH(J758, raw_resource_build!B:B, 0)))","v":""},null,{"$f":"raw_resource_build!B758","v":"IID_Wind_for_Other"},"Non-wind",{"$f":"IFERROR(INDEX($E$5:$E$32,MATCH(raw_resource_build!$E758,Lists!$B$5:$B$32,0)),\"Non-CAISO\")","v":"Renewables"},null,{"$f":"raw_annual_energy!C758","v":"Pacific_Northwest_Wind"},{"$f":"INDEX(K:K,MATCH(R758,Lists!J:J,0))","v":"Wind"},"Out-Of-State"]
[null,null,null,null,null,null,null,null,null,{"$f":"IFERROR(INDEX(raw_resource_build!$B$2:$B$1000,MATCH(0,COUNTIF($J$1:J758,raw_resource_build!$B$2:$B$1000), 0),0), \"\")","v":""},{"$f":"IF(J759=\"\", \"\", INDEX(raw_resource_build!E:E, MATCH(J759, raw_resource_build!B:B, 0)))","v":""},{"$f":"IF(J759=\"\", \"\", INDEX(raw_resource_build!C:C, MATCH(J759, raw_resource_build!B:B, 0)))","v":""},null,{"$f":"raw_resource_build!B759","v":"LDWP_Wind_for_Other"},"Non-wind",{"$f":"IFERROR(INDEX($E$5:$E$32,MATCH(raw_resource_build!$E759,Lists!$B$5:$B$32,0)),\"Non-CAISO\")","v":"Renewables"},null,{"$f":"raw_annual_energy!C759","v":"Pacific_Northwest_Wind"},{"$f":"INDEX(K:K,MATCH(R759,Lists!J:J,0))","v":"Wind"},"Out-Of-State"]
[null,null,null,null,null,null,null,null,null,{"$f":"IFERROR(INDEX(raw_resource_build!$B$2:$B$1000,MATCH(0,COUNTIF($J$1:J759,raw_resource_build!$B$2:$B$1000), 0),0), \"\")","v":""},{"$f":"IF(J760=\"\", \"\", INDEX(raw_resource_build!E:E, MATCH(J760, raw_resource_build!B:B, 0)))","v":""},{"$f":"IF(J760=\"\", \"\", INDEX(raw_resource_build!C:C, MATCH(J760, raw_resource_build!B:B, 0)))","v":""},null,{"$f":"raw_resource_build!B760","v":"NW_Wind_for_Other"},"Non-wind",{"$f":"IFERROR(INDEX($E$5:$E$32,MATCH(raw_resource_build!$E760,Lists!$B$5:$B$32,0)),\"Non-CAISO\")","v":"Renewables"},null,{"$f":"raw_annual_energy!C760","v":"Pacific_Northwest_Wind"},{"$f":"INDEX(K:K,MATCH(R760,Lists!J:J,0))","v":"Wind"},"Out-Of-State"]
[null,null,null,null,null,null,null,null,null,{"$f":"IFERROR(INDEX(raw_resource_build!$B$2:$B$1000,MATCH(0,COUNTIF($J$1:J760,raw_resource_build!$B$2:$B$1000), 0),0), \"\")","v":""},{"$f":"IF(J761=\"\", \"\", INDEX(raw_resource_build!E:E, MATCH(J761, raw_resource_build!B:B, 0)))","v":""},{"$f":"IF(J761=\"\", \"\", INDEX(raw_resource_build!C:C, MATCH(J761, raw_resource_build!B:B, 0)))","v":""},null,{"$f":"raw_resource_build!B761","v":"SW_Wind_for_Other"},"Non-wind",{"$f":"IFERROR(INDEX($E$5:$E$32,MATCH(raw_resource_build!$E761,Lists!$B$5:$B$32,0)),\"Non-CAISO\")","v":"Renewables"},null,{"$f":"raw_annual_energy!C761","v":"Pacific_Northwest_Wind"},{"$f":"INDEX(K:K,MATCH(R761,Lists!J:J,0))","v":"Wind"},"Out-Of-State"]
[null,null,null,null,null,null,null,null,null,{"$f":"IFERROR(INDEX(raw_resource_build!$B$2:$B$1000,MATCH(0,COUNTIF($J$1:J761,raw_resource_build!$B$2:$B$1000), 0),0), \"\")","v":""},{"$f":"IF(J762=\"\", \"\", INDEX(raw_resource_build!E:E, MATCH(J762, raw_resource_build!B:B, 0)))","v":""},{"$f":"IF(J762=\"\", \"\", INDEX(raw_resource_build!C:C, MATCH(J762, raw_resource_build!B:B, 0)))","v":""},null,{"$f":"raw_resource_build!B762","v":"CAISO_Wind_for_CAISO"},"Non-wind",{"$f":"IFERROR(INDEX($E$5:$E$32,MATCH(raw_resource_build!$E762,Lists!$B$5:$B$32,0)),\"Non-CAISO\")","v":"Renewables"},null,{"$f":"raw_annual_energy!C762","v":"Pacific_Northwest_Wind"},{"$f":"INDEX(K:K,MATCH(R762,Lists!J:J,0))","v":"Wind"},"Out-Of-State"]
[null,null,null,null,null,null,null,null,null,{"$f":"IFERROR(INDEX(raw_resource_build!$B$2:$B$1000,MATCH(0,COUNTIF($J$1:J762,raw_resource_build!$B$2:$B$1000), 0),0), \"\")","v":""},{"$f":"IF(J763=\"\", \"\", INDEX(raw_resource_build!E:E, MATCH(J763, raw_resource_build!B:B, 0)))","v":""},{"$f":"IF(J763=\"\", \"\", INDEX(raw_resource_build!C:C, MATCH(J763, raw_resource_build!B:B, 0)))","v":""},null,{"$f":"raw_resource_build!B763","v":"LDWP_Wind_for_CAISO"},"Non-wind",{"$f":"IFERROR(INDEX($E$5:$E$32,MATCH(raw_resource_build!$E763,Lists!$B$5:$B$32,0)),\"Non-CAISO\")","v":"Renewables"},null,{"$f":"raw_annual_energy!C763","v":"Riverside_Palm_Springs_Geothermal"},{"$f":"INDEX(K:K,MATCH(R763,Lists!J:J,0))","v":"Geothermal"},"In-State"]
[null,null,null,null,null,null,null,null,null,{"$f":"IFERROR(INDEX(raw_resource_build!$B$2:$B$1000,MATCH(0,COUNTIF($J$1:J763,raw_resource_build!$B$2:$B$1000), 0),0), \"\")","v":""},{"$f":"IF(J764=\"\", \"\", INDEX(raw_resource_build!E:E, MATCH(J764, raw_resource_build!B:B, 0)))","v":""},{"$f":"IF(J764=\"\", \"\", INDEX(raw_resource_build!C:C, MATCH(J764, raw_resource_build!B:B, 0)))","v":""},null,{"$f":"raw_resource_build!B764","v":"NW_Wind_for_CAISO"},"Non-wind",{"$f":"IFERROR(INDEX($E$5:$E$32,MATCH(raw_resource_build!$E764,Lists!$B$5:$B$32,0)),\"Non-CAISO\")","v":"Renewables"},null,{"$f":"raw_annual_energy!C764","v":"Riverside_Palm_Springs_Geothermal"},{"$f":"INDEX(K:K,MATCH(R764,Lists!J:J,0))","v":"Geothermal"},"In-State"]
[null,null,null,null,null,null,null,null,null,{"$f":"IFERROR(INDEX(raw_resource_build!$B$2:$B$1000,MATCH(0,COUNTIF($J$1:J764,raw_resource_build!$B$2:$B$1000), 0),0), \"\")","v":""},{"$f":"IF(J765=\"\", \"\", INDEX(raw_resource_build!E:E, MATCH(J765, raw_resource_build!B:B, 0)))","v":""},{"$f":"IF(J765=\"\", \"\", INDEX(raw_resource_build!C:C, MATCH(J765, raw_resource_build!B:B, 0)))","v":""},null,{"$f":"raw_resource_build!B765","v":"SW_Wind_for_CAISO"},"Non-wind",{"$f":"IFERROR(INDEX($E$5:$E$32,MATCH(raw_resource_build!$E765,Lists!$B$5:$B$32,0)),\"Non-CAISO\")","v":"Renewables"},null,{"$f":"raw_annual_energy!C765","v":"Riverside_Palm_Springs_Geothermal"},{"$f":"INDEX(K:K,MATCH(R765,Lists!J:J,0))","v":"Geothermal"},"In-State"]
[null,null,null,null,null,null,null,null,null,{"$f":"IFERROR(INDEX(raw_resource_build!$B$2:$B$1000,MATCH(0,COUNTIF($J$1:J765,raw_resource_build!$B$2:$B$1000), 0),0), \"\")","v":""},{"$f":"IF(J766=\"\", \"\", INDEX(raw_resource_build!E:E, MATCH(J766, raw_resource_build!B:B, 0)))","v":""},{"$f":"IF(J766=\"\", \"\", INDEX(raw_resource_build!C:C, MATCH(J766, raw_resource_build!B:B, 0)))","v":""},null,{"$f":"raw_resource_build!B766","v":"Carrizo_Solar"},"In-State",{"$f":"IFERROR(INDEX($E$5:$E$32,MATCH(raw_resource_build!$E766,Lists!$B$5:$B$32,0)),\"Non-CAISO\")","v":"Renewables"},null,{"$f":"raw_annual_energy!C766","v":"Riverside_Palm_Springs_Geothermal"},{"$f":"INDEX(K:K,MATCH(R766,Lists!J:J,0))","v":"Geothermal"},"In-State"]
[null,null,null,null,null,null,null,null,null,{"$f":"IFERROR(INDEX(raw_resource_build!$B$2:$B$1000,MATCH(0,COUNTIF($J$1:J766,raw_resource_build!$B$2:$B$1000), 0),0), \"\")","v":""},{"$f":"IF(J767=\"\", \"\", INDEX(raw_resource_build!E:E, MATCH(J767, raw_resource_build!B:B, 0)))","v":""},{"$f":"IF(J767=\"\", \"\", INDEX(raw_resource_build!C:C, MATCH(J767, raw_resource_build!B:B, 0)))","v":""},null,{"$f":"raw_resource_build!B767","v":"Carrizo_Wind"},"In-State",{"$f":"IFERROR(INDEX($E$5:$E$32,MATCH(raw_resource_build!$E767,Lists!$B$5:$B$32,0)),\"Non-CAISO\")","v":"Renewables"},null,{"$f":"raw_annual_energy!C767","v":"Riverside_Palm_Springs_Geothermal"},{"$f":"INDEX(K:K,MATCH(R767,Lists!J:J,0))","v":"Geothermal"},"In-State"]
[null,null,null,null,null,null,null,null,null,{"$f":"IFERROR(INDEX(raw_resource_build!$B$2:$B$1000,MATCH(0,COUNTIF($J$1:J767,raw_resource_build!$B$2:$B$1000), 0),0), \"\")","v":""},{"$f":"IF(J768=\"\", \"\", INDEX(raw_resource_build!E:E, MATCH(J768, raw_resource_build!B:B, 0)))","v":""},{"$f":"IF(J768=\"\", \"\", INDEX(raw_resource_build!C:C, MATCH(J768, raw_resource_build!B:B, 0)))","v":""},null,{"$f":"raw_resource_build!B768","v":"Central_Valley_North_Los_Banos_Solar"},"In-State",{"$f":"IFERROR(INDEX($E$5:$E$32,MATCH(raw_resource_build!$E768,Lists!$B$5:$B$32,0)),\"Non-CAISO\")","v":"Renewables"},null,{"$f":"raw_annual_energy!C768","v":"Riverside_Palm_Springs_Geothermal"},{"$f":"INDEX(K:K,MATCH(R768,Lists!J:J,0))","v":"Geothermal"},"In-State"]
[null,null,null,null,null,null,null,null,null,{"$f":"IFERROR(INDEX(raw_resource_build!$B$2:$B$1000,MATCH(0,COUNTIF($J$1:J768,raw_resource_build!$B$2:$B$1000), 0),0), \"\")","v":""},{"$f":"IF(J769=\"\", \"\", INDEX(raw_resource_build!E:E, MATCH(J769, raw_resource_build!B:B, 0)))","v":""},{"$f":"IF(J769=\"\", \"\", INDEX(raw_resource_build!C:C, MATCH(J769, raw_resource_build!B:B, 0)))","v":""},null,{"$f":"raw_resource_build!B769","v":"Central_Valley_North_Los_Banos_Wind"},"In-State",{"$f":"IFERROR(INDEX($E$5:$E$32,MATCH(raw_resource_build!$E769,Lists!$B$5:$B$32,0)),\"Non-CAISO\")","v":"Renewables"},null,{"$f":"raw_annual_energy!C769","v":"Riverside_Palm_Springs_Geothermal"},{"$f":"INDEX(K:K,MATCH(R769,Lists!J:J,0))","v":"Geothermal"},"In-State"]
[null,null,null,null,null,null,null,null,null,{"$f":"IFERROR(INDEX(raw_resource_build!$B$2:$B$1000,MATCH(0,COUNTIF($J$1:J769,raw_resource_build!$B$2:$B$1000), 0),0), \"\")","v":""},{"$f":"IF(J770=\"\", \"\", INDEX(raw_resource_build!E:E, MATCH(J770, raw_resource_build!B:B, 0)))","v":""},{"$f":"IF(J770=\"\", \"\", INDEX(raw_resource_build!C:C, MATCH(J770, raw_resource_build!B:B, 0)))","v":""},null,{"$f":"raw_resource_build!B770","v":"Distributed_Solar"},"In-State",{"$f":"IFERROR(INDEX($E$5:$E$32,MATCH(raw_resource_build!$E770,Lists!$B$5:$B$32,0)),\"Non-CAISO\")","v":"Renewables"},null,{"$f":"raw_annual_energy!C770","v":"Riverside_Palm_Springs_Geothermal"},{"$f":"INDEX(K:K,MATCH(R770,Lists!J:J,0))","v":"Geothermal"},"In-State"]
[null,null,null,null,null,null,null,null,null,{"$f":"IFERROR(INDEX(raw_resource_build!$B$2:$B$1000,MATCH(0,COUNTIF($J$1:J770,raw_resource_build!$B$2:$B$1000), 0),0), \"\")","v":""},{"$f":"IF(J771=\"\", \"\", INDEX(raw_resource_build!E:E, MATCH(J771, raw_resource_build!B:B, 0)))","v":""},{"$f":"IF(J771=\"\", \"\", INDEX(raw_resource_build!C:C, MATCH(J771, raw_resource_build!B:B, 0)))","v":""},null,{"$f":"raw_resource_build!B771","v":"Mountain_Pass_El_Dorado_Solar"},{"$f":"IFERROR(INDEX($C$35:$C$99,MATCH($N771,$B$35:$B$99,0)),\"Non-wind\")","v":"In-State"},{"$f":"IFERROR(INDEX($E$5:$E$32,MATCH(raw_resource_build!$E771,Lists!$B$5:$B$32,0)),\"Non-CAISO\")","v":"Renewables"},null,{"$f":"raw_annual_energy!C771","v":"Riverside_Palm_Springs_Solar"},{"$f":"INDEX(K:K,MATCH(R771,Lists!J:J,0))","v":"Solar"},{"$f":"IFERROR(INDEX($C$35:$C$99,MATCH($R771,$B$35:$B$99,0)),\"Non-wind\")","v":"In-State"}]
[null,null,null,null,null,null,null,null,null,{"$f":"IFERROR(INDEX(raw_resource_build!$B$2:$B$1000,MATCH(0,COUNTIF($J$1:J771,raw_resource_build!$B$2:$B$1000), 0),0), \"\")","v":""},{"$f":"IF(J772=\"\", \"\", INDEX(raw_resource_build!E:E, MATCH(J772, raw_resource_build!B:B, 0)))","v":""},{"$f":"IF(J772=\"\", \"\", INDEX(raw_resource_build!C:C, MATCH(J772, raw_resource_build!B:B, 0)))","v":""},null,{"$f":"raw_resource_build!B772","v":"Greater_Imperial_Solar"},"In-State",{"$f":"IFERROR(INDEX($E$5:$E$32,MATCH(raw_resource_build!$E772,Lists!$B$5:$B$32,0)),\"Non-CAISO\")","v":"Renewables"},null,{"$f":"raw_annual_energy!C772","v":"Riverside_Palm_Springs_Solar"},{"$f":"INDEX(K:K,MATCH(R772,Lists!J:J,0))","v":"Solar"},"In-State"]
[null,null,null,null,null,null,null,null,null,{"$f":"IFERROR(INDEX(raw_resource_build!$B$2:$B$1000,MATCH(0,COUNTIF($J$1:J772,raw_resource_build!$B$2:$B$1000), 0),0), \"\")","v":""},{"$f":"IF(J773=\"\", \"\", INDEX(raw_resource_build!E:E, MATCH(J773, raw_resource_build!B:B, 0)))","v":""},{"$f":"IF(J773=\"\", \"\", INDEX(raw_resource_build!C:C, MATCH(J773, raw_resource_build!B:B, 0)))","v":""},null,{"$f":"raw_resource_build!B773","v":"Greater_Imperial_Wind"},"In-State",{"$f":"IFERROR(INDEX($E$5:$E$32,MATCH(raw_resource_build!$E773,Lists!$B$5:$B$32,0)),\"Non-CAISO\")","v":"Renewables"},null,{"$f":"raw_annual_energy!C773","v":"Riverside_Palm_Springs_Solar"},{"$f":"INDEX(K:K,MATCH(R773,Lists!J:J,0))","v":"Solar"},"In-State"]
[null,null,null,null,null,null,null,null,null,{"$f":"IFERROR(INDEX(raw_resource_build!$B$2:$B$1000,MATCH(0,COUNTIF($J$1:J773,raw_resource_build!$B$2:$B$1000), 0),0), \"\")","v":""},{"$f":"IF(J774=\"\", \"\", INDEX(raw_resource_build!E:E, MATCH(J774, raw_resource_build!B:B, 0)))","v":""},{"$f":"IF(J774=\"\", \"\", INDEX(raw_resource_build!C:C, MATCH(J774, raw_resource_build!B:B, 0)))","v":""},null,{"$f":"raw_resource_build!B774","v":"Greater_Kramer_Wind"},"In-State",{"$f":"IFERROR(INDEX($E$5:$E$32,MATCH(raw_resource_build!$E774,Lists!$B$5:$B$32,0)),\"Non-CAISO\")","v":"Renewables"},null,{"$f":"raw_annual_energy!C774","v":"Riverside_Palm_Springs_Solar"},{"$f":"INDEX(K:K,MATCH(R774,Lists!J:J,0))","v":"Solar"},"In-State"]
[null,null,null,null,null,null,null,null,null,{"$f":"IFERROR(INDEX(raw_resource_build!$B$2:$B$1000,MATCH(0,COUNTIF($J$1:J774,raw_resource_build!$B$2:$B$1000), 0),0), \"\")","v":""},{"$f":"IF(J775=\"\", \"\", INDEX(raw_resource_build!E:E, MATCH(J775, raw_resource_build!B:B, 0)))","v":""},{"$f":"IF(J775=\"\", \"\", INDEX(raw_resource_build!C:C, MATCH(J775, raw_resource_build!B:B, 0)))","v":""},null,{"$f":"raw_resource_build!B775","v":"Humboldt_Wind"},"In-State",{"$f":"IFERROR(INDEX($E$5:$E$32,MATCH(raw_resource_build!$E775,Lists!$B$5:$B$32,0)),\"Non-CAISO\")","v":"Renewables"},null,{"$f":"raw_annual_energy!C775","v":"Riverside_Palm_Springs_Solar"},{"$f":"INDEX(K:K,MATCH(R775,Lists!J:J,0))","v":"Solar"},"In-State"]
[null,null,null,null,null,null,null,null,null,{"$f":"IFERROR(INDEX(raw_resource_build!$B$2:$B$1000,MATCH(0,COUNTIF($J$1:J775,raw_resource_build!$B$2:$B$1000), 0),0), \"\")","v":""},{"$f":"IF(J776=\"\", \"\", INDEX(raw_resource_build!E:E, MATCH(J776, raw_resource_build!B:B, 0)))","v":""},{"$f":"IF(J776=\"\", \"\", INDEX(raw_resource_build!C:C, MATCH(J776, raw_resource_build!B:B, 0)))","v":""},null,{"$f":"raw_resource_build!B776","v":"Inyokern_North_Kramer_Solar"},"In-State",{"$f":"IFERROR(INDEX($E$5:$E$32,MATCH(raw_resource_build!$E776,Lists!$B$5:$B$32,0)),\"Non-CAISO\")","v":"Renewables"},null,{"$f":"raw_annual_energy!C776","v":"Riverside_Palm_Springs_Solar"},{"$f":"INDEX(K:K,MATCH(R776,Lists!J:J,0))","v":"Solar"},"In-State"]
[null,null,null,null,null,null,null,null,null,{"$f":"IFERROR(INDEX(raw_resource_build!$B$2:$B$1000,MATCH(0,COUNTIF($J$1:J776,raw_resource_build!$B$2:$B$1000), 0),0), \"\")","v":""},{"$f":"IF(J777=\"\", \"\", INDEX(raw_resource_build!E:E, MATCH(J777, raw_resource_build!B:B, 0)))","v":""},{"$f":"IF(J777=\"\", \"\", INDEX(raw_resource_build!C:C, MATCH(J777, raw_resource_build!B:B, 0)))","v":""},null,{"$f":"raw_resource_build!B777","v":"Kern_Greater_Carrizo_Solar"},"In-State",{"$f":"IFERROR(INDEX($E$5:$E$32,MATCH(raw_resource_build!$E777,Lists!$B$5:$B$32,0)),\"Non-CAISO\")","v":"Renewables"},null,{"$f":"raw_annual_energy!C777","v":"Riverside_Palm_Springs_Solar"},{"$f":"INDEX(K:K,MATCH(R777,Lists!J:J,0))","v":"Solar"},"In-State"]
[null,null,null,null,null,null,null,null,null,{"$f":"IFERROR(INDEX(raw_resource_build!$B$2:$B$1000,MATCH(0,COUNTIF($J$1:J777,raw_resource_build!$B$2:$B$1000), 0),0), \"\")","v":""},{"$f":"IF(J778=\"\", \"\", INDEX(raw_resource_build!E:E, MATCH(J778, raw_resource_build!B:B, 0)))","v":""},{"$f":"IF(J778=\"\", \"\", INDEX(raw_resource_build!C:C, MATCH(J778, raw_resource_build!B:B, 0)))","v":""},null,{"$f":"raw_resource_build!B778","v":"Kern_Greater_Carrizo_Wind"},"In-State",{"$f":"IFERROR(INDEX($E$5:$E$32,MATCH(raw_resource_build!$E778,Lists!$B$5:$B$32,0)),\"Non-CAISO\")","v":"Renewables"},null,{"$f":"raw_annual_energy!C778","v":"Riverside_Palm_Springs_Solar"},{"$f":"INDEX(K:K,MATCH(R778,Lists!J:J,0))","v":"Solar"},"In-State"]
[null,null,null,null,null,null,null,null,null,{"$f":"IFERROR(INDEX(raw_resource_build!$B$2:$B$1000,MATCH(0,COUNTIF($J$1:J778,raw_resource_build!$B$2:$B$1000), 0),0), \"\")","v":""},{"$f":"IF(J779=\"\", \"\", INDEX(raw_resource_build!E:E, MATCH(J779, raw_resource_build!B:B, 0)))","v":""},{"$f":"IF(J779=\"\", \"\", INDEX(raw_resource_build!C:C, MATCH(J779, raw_resource_build!B:B, 0)))","v":""},null,{"$f":"raw_resource_build!B779","v":"Kramer_Inyokern_Ex_Solar"},"In-State",{"$f":"IFERROR(INDEX($E$5:$E$32,MATCH(raw_resource_build!$E779,Lists!$B$5:$B$32,0)),\"Non-CAISO\")","v":"Renewables"},null,{"$f":"raw_annual_energy!C779","v":"SCADSNV_Solar"},{"$f":"INDEX(K:K,MATCH(R779,Lists!J:J,0))","v":"Solar"},"In-State"]
[null,null,null,null,null,null,null,null,null,{"$f":"IFERROR(INDEX(raw_resource_build!$B$2:$B$1000,MATCH(0,COUNTIF($J$1:J779,raw_resource_build!$B$2:$B$1000), 0),0), \"\")","v":""},{"$f":"IF(J780=\"\", \"\", INDEX(raw_resource_build!E:E, MATCH(J780, raw_resource_build!B:B, 0)))","v":""},{"$f":"IF(J780=\"\", \"\", INDEX(raw_resource_build!C:C, MATCH(J780, raw_resource_build!B:B, 0)))","v":""},null,{"$f":"raw_resource_build!B780","v":"Kramer_Inyokern_Ex_Wind"},"In-State",{"$f":"IFERROR(INDEX($E$5:$E$32,MATCH(raw_resource_build!$E780,Lists!$B$5:$B$32,0)),\"Non-CAISO\")","v":"Renewables"},null,{"$f":"raw_annual_energy!C780","v":"SCADSNV_Solar"},{"$f":"INDEX(K:K,MATCH(R780,Lists!J:J,0))","v":"Solar"},"In-State"]
[null,null,null,null,null,null,null,null,null,{"$f":"IFERROR(INDEX(raw_resource_build!$B$2:$B$1000,MATCH(0,COUNTIF($J$1:J780,raw_resource_build!$B$2:$B$1000), 0),0), \"\")","v":""},{"$f":"IF(J781=\"\", \"\", INDEX(raw_resource_build!E:E, MATCH(J781, raw_resource_build!B:B, 0)))","v":""},{"$f":"IF(J781=\"\", \"\", INDEX(raw_resource_build!C:C, MATCH(J781, raw_resource_build!B:B, 0)))","v":""},null,{"$f":"raw_resource_build!B781","v":"North_Victor_Solar"},"In-State",{"$f":"IFERROR(INDEX($E$5:$E$32,MATCH(raw_resource_build!$E781,Lists!$B$5:$B$32,0)),\"Non-CAISO\")","v":"Renewables"},null,{"$f":"raw_annual_energy!C781","v":"SCADSNV_Solar"},{"$f":"INDEX(K:K,MATCH(R781,Lists!J:J,0))","v":"Solar"},"In-State"]
[null,null,null,null,null,null,null,null,null,{"$f":"IFERROR(INDEX(raw_resource_build!$B$2:$B$1000,MATCH(0,COUNTIF($J$1:J781,raw_resource_build!$B$2:$B$1000), 0),0), \"\")","v":""},{"$f":"IF(J782=\"\", \"\", INDEX(raw_resource_build!E:E, MATCH(J782, raw_resource_build!B:B, 0)))","v":""},{"$f":"IF(J782=\"\", \"\", INDEX(raw_resource_build!C:C, MATCH(J782, raw_resource_build!B:B, 0)))","v":""},null,{"$f":"raw_resource_build!B782","v":"Northern_California_Ex_Solar"},"In-State",{"$f":"IFERROR(INDEX($E$5:$E$32,MATCH(raw_resource_build!$E782,Lists!$B$5:$B$32,0)),\"Non-CAISO\")","v":"Renewables"},null,{"$f":"raw_annual_energy!C782","v":"SCADSNV_Solar"},{"$f":"INDEX(K:K,MATCH(R782,Lists!J:J,0))","v":"Solar"},"In-State"]
[null,null,null,null,null,null,null,null,null,{"$f":"IFERROR(INDEX(raw_resource_build!$B$2:$B$1000,MATCH(0,COUNTIF($J$1:J782,raw_resource_build!$B$2:$B$1000), 0),0), \"\")","v":""},{"$f":"IF(J783=\"\", \"\", INDEX(raw_resource_build!E:E, MATCH(J783, raw_resource_build!B:B, 0)))","v":""},{"$f":"IF(J783=\"\", \"\", INDEX(raw_resource_build!C:C, MATCH(J783, raw_resource_build!B:B, 0)))","v":""},null,{"$f":"raw_resource_build!B783","v":"Northern_California_Ex_Wind"},"In-State",{"$f":"IFERROR(INDEX($E$5:$E$32,MATCH(raw_resource_build!$E783,Lists!$B$5:$B$32,0)),\"Non-CAISO\")","v":"Renewables"},null,{"$f":"raw_annual_energy!C783","v":"SCADSNV_Solar"},{"$f":"INDEX(K:K,MATCH(R783,Lists!J:J,0))","v":"Solar"},"In-State"]
[null,null,null,null,null,null,null,null,null,{"$f":"IFERROR(INDEX(raw_resource_build!$B$2:$B$1000,MATCH(0,COUNTIF($J$1:J783,raw_resource_build!$B$2:$B$1000), 0),0), \"\")","v":""},{"$f":"IF(J784=\"\", \"\", INDEX(raw_resource_build!E:E, MATCH(J784, raw_resource_build!B:B, 0)))","v":""},{"$f":"IF(J784=\"\", \"\", INDEX(raw_resource_build!C:C, MATCH(J784, raw_resource_build!B:B, 0)))","v":""},null,{"$f":"raw_resource_build!B784","v":"NW_Ext_Tx_Wind"},"In-State",{"$f":"IFERROR(INDEX($E$5:$E$32,MATCH(raw_resource_build!$E784,Lists!$B$5:$B$32,0)),\"Non-CAISO\")","v":"Renewables"},null,{"$f":"raw_annual_energy!C784","v":"SCADSNV_Solar"},{"$f":"INDEX(K:K,MATCH(R784,Lists!J:J,0))","v":"Solar"},"In-State"]
[null,null,null,null,null,null,null,null,null,{"$f":"IFERROR(INDEX(raw_resource_build!$B$2:$B$1000,MATCH(0,COUNTIF($J$1:J784,raw_resource_build!$B$2:$B$1000), 0),0), \"\")","v":""},{"$f":"IF(J785=\"\", \"\", INDEX(raw_resource_build!E:E, MATCH(J785, raw_resource_build!B:B, 0)))","v":""},{"$f":"IF(J785=\"\", \"\", INDEX(raw_resource_build!C:C, MATCH(J785, raw_resource_build!B:B, 0)))","v":""},null,{"$f":"raw_resource_build!B785","v":"Riverside_Palm_Springs_Solar"},"In-State",{"$f":"IFERROR(INDEX($E$5:$E$32,MATCH(raw_resource_build!$E785,Lists!$B$5:$B$32,0)),\"Non-CAISO\")","v":"Renewables"},null,{"$f":"raw_annual_energy!C785","v":"SCADSNV_Solar"},{"$f":"INDEX(K:K,MATCH(R785,Lists!J:J,0))","v":"Solar"},"In-State"]
[null,null,null,null,null,null,null,null,null,{"$f":"IFERROR(INDEX(raw_resource_build!$B$2:$B$1000,MATCH(0,COUNTIF($J$1:J785,raw_resource_build!$B$2:$B$1000), 0),0), \"\")","v":""},{"$f":"IF(J786=\"\", \"\", INDEX(raw_resource_build!E:E, MATCH(J786, raw_resource_build!B:B, 0)))","v":""},{"$f":"IF(J786=\"\", \"\", INDEX(raw_resource_build!C:C, MATCH(J786, raw_resource_build!B:B, 0)))","v":""},null,{"$f":"raw_resource_build!B786","v":"Sacramento_River_Solar"},"In-State",{"$f":"IFERROR(INDEX($E$5:$E$32,MATCH(raw_resource_build!$E786,Lists!$B$5:$B$32,0)),\"Non-CAISO\")","v":"Renewables"},null,{"$f":"raw_annual_energy!C786","v":"SCADSNV_Solar"},{"$f":"INDEX(K:K,MATCH(R786,Lists!J:J,0))","v":"Solar"},"In-State"]
[null,null,null,null,null,null,null,null,null,{"$f":"IFERROR(INDEX(raw_resource_build!$B$2:$B$1000,MATCH(0,COUNTIF($J$1:J786,raw_resource_build!$B$2:$B$1000), 0),0), \"\")","v":""},{"$f":"IF(J787=\"\", \"\", INDEX(raw_resource_build!E:E, MATCH(J787, raw_resource_build!B:B, 0)))","v":""},{"$f":"IF(J787=\"\", \"\", INDEX(raw_resource_build!C:C, MATCH(J787, raw_resource_build!B:B, 0)))","v":""},null,{"$f":"raw_resource_build!B787","v":"Sacramento_River_Wind"},"In-State",{"$f":"IFERROR(INDEX($E$5:$E$32,MATCH(raw_resource_build!$E787,Lists!$B$5:$B$32,0)),\"Non-CAISO\")","v":"Renewables"},null,{"$f":"raw_annual_energy!C787","v":"SCADSNV_Wind"},{"$f":"INDEX(K:K,MATCH(R787,Lists!J:J,0))","v":"Wind"},"In-State"]
[null,null,null,null,null,null,null,null,null,{"$f":"IFERROR(INDEX(raw_resource_build!$B$2:$B$1000,MATCH(0,COUNTIF($J$1:J787,raw_resource_build!$B$2:$B$1000), 0),0), \"\")","v":""},{"$f":"IF(J788=\"\", \"\", INDEX(raw_resource_build!E:E, MATCH(J788, raw_resource_build!B:B, 0)))","v":""},{"$f":"IF(J788=\"\", \"\", INDEX(raw_resource_build!C:C, MATCH(J788, raw_resource_build!B:B, 0)))","v":""},null,{"$f":"raw_resource_build!B788","v":"SCADSNV_Solar"},"In-State",{"$f":"IFERROR(INDEX($E$5:$E$32,MATCH(raw_resource_build!$E788,Lists!$B$5:$B$32,0)),\"Non-CAISO\")","v":"Renewables"},null,{"$f":"raw_annual_energy!C788","v":"SCADSNV_Wind"},{"$f":"INDEX(K:K,MATCH(R788,Lists!J:J,0))","v":"Wind"},"In-State"]
[null,null,null,null,null,null,null,null,null,{"$f":"IFERROR(INDEX(raw_resource_build!$B$2:$B$1000,MATCH(0,COUNTIF($J$1:J788,raw_resource_build!$B$2:$B$1000), 0),0), \"\")","v":""},{"$f":"IF(J789=\"\", \"\", INDEX(raw_resource_build!E:E, MATCH(J789, raw_resource_build!B:B, 0)))","v":""},{"$f":"IF(J789=\"\", \"\", INDEX(raw_resource_build!C:C, MATCH(J789, raw_resource_build!B:B, 0)))","v":""},null,{"$f":"raw_resource_build!B789","v":"SCADSNV_Wind"},"In-State",{"$f":"IFERROR(INDEX($E$5:$E$32,MATCH(raw_resource_build!$E789,Lists!$B$5:$B$32,0)),\"Non-CAISO\")","v":"Renewables"},null,{"$f":"raw_annual_energy!C789","v":"SCADSNV_Wind"},{"$f":"INDEX(K:K,MATCH(R789,Lists!J:J,0))","v":"Wind"},"In-State"]
[null,null,null,null,null,null,null,null,null,{"$f":"IFERROR(INDEX(raw_resource_build!$B$2:$B$1000,MATCH(0,COUNTIF($J$1:J789,raw_resource_build!$B$2:$B$1000), 0),0), \"\")","v":""},{"$f":"IF(J790=\"\", \"\", INDEX(raw_resource_build!E:E, MATCH(J790, raw_resource_build!B:B, 0)))","v":""},{"$f":"IF(J790=\"\", \"\", INDEX(raw_resource_build!C:C, MATCH(J790, raw_resource_build!B:B, 0)))","v":""},null,{"$f":"raw_resource_build!B790","v":"Solano_Solar"},"In-State",{"$f":"IFERROR(INDEX($E$5:$E$32,MATCH(raw_resource_build!$E790,Lists!$B$5:$B$32,0)),\"Non-CAISO\")","v":"Renewables"},null,{"$f":"raw_annual_energy!C790","v":"SCADSNV_Wind"},{"$f":"INDEX(K:K,MATCH(R790,Lists!J:J,0))","v":"Wind"},"In-State"]
[null,null,null,null,null,null,null,null,null,{"$f":"IFERROR(INDEX(raw_resource_build!$B$2:$B$1000,MATCH(0,COUNTIF($J$1:J790,raw_resource_build!$B$2:$B$1000), 0),0), \"\")","v":""},{"$f":"IF(J791=\"\", \"\", INDEX(raw_resource_build!E:E, MATCH(J791, raw_resource_build!B:B, 0)))","v":""},{"$f":"IF(J791=\"\", \"\", INDEX(raw_resource_build!C:C, MATCH(J791, raw_resource_build!B:B, 0)))","v":""},null,{"$f":"raw_resource_build!B791","v":"Solano_subzone_Solar"},"In-State",{"$f":"IFERROR(INDEX($E$5:$E$32,MATCH(raw_resource_build!$E791,Lists!$B$5:$B$32,0)),\"Non-CAISO\")","v":"Renewables"},null,{"$f":"raw_annual_energy!C791","v":"SCADSNV_Wind"},{"$f":"INDEX(K:K,MATCH(R791,Lists!J:J,0))","v":"Wind"},"In-State"]
[null,null,null,null,null,null,null,null,null,{"$f":"IFERROR(INDEX(raw_resource_build!$B$2:$B$1000,MATCH(0,COUNTIF($J$1:J791,raw_resource_build!$B$2:$B$1000), 0),0), \"\")","v":""},{"$f":"IF(J792=\"\", \"\", INDEX(raw_resource_build!E:E, MATCH(J792, raw_resource_build!B:B, 0)))","v":""},{"$f":"IF(J792=\"\", \"\", INDEX(raw_resource_build!C:C, MATCH(J792, raw_resource_build!B:B, 0)))","v":""},null,{"$f":"raw_resource_build!B792","v":"Solano_subzone_Wind"},"In-State",{"$f":"IFERROR(INDEX($E$5:$E$32,MATCH(raw_resource_build!$E792,Lists!$B$5:$B$32,0)),\"Non-CAISO\")","v":"Renewables"},null,{"$f":"raw_annual_energy!C792","v":"SCADSNV_Wind"},{"$f":"INDEX(K:K,MATCH(R792,Lists!J:J,0))","v":"Wind"},"In-State"]
[null,null,null,null,null,null,null,null,null,{"$f":"IFERROR(INDEX(raw_resource_build!$B$2:$B$1000,MATCH(0,COUNTIF($J$1:J792,raw_resource_build!$B$2:$B$1000), 0),0), \"\")","v":""},{"$f":"IF(J793=\"\", \"\", INDEX(raw_resource_build!E:E, MATCH(J793, raw_resource_build!B:B, 0)))","v":""},{"$f":"IF(J793=\"\", \"\", INDEX(raw_resource_build!C:C, MATCH(J793, raw_resource_build!B:B, 0)))","v":""},null,{"$f":"raw_resource_build!B793","v":"Solano_Wind"},"In-State",{"$f":"IFERROR(INDEX($E$5:$E$32,MATCH(raw_resource_build!$E793,Lists!$B$5:$B$32,0)),\"Non-CAISO\")","v":"Renewables"},null,{"$f":"raw_annual_energy!C793","v":"SCADSNV_Wind"},{"$f":"INDEX(K:K,MATCH(R793,Lists!J:J,0))","v":"Wind"},"In-State"]
[null,null,null,null,null,null,null,null,null,{"$f":"IFERROR(INDEX(raw_resource_build!$B$2:$B$1000,MATCH(0,COUNTIF($J$1:J793,raw_resource_build!$B$2:$B$1000), 0),0), \"\")","v":""},{"$f":"IF(J794=\"\", \"\", INDEX(raw_resource_build!E:E, MATCH(J794, raw_resource_build!B:B, 0)))","v":""},{"$f":"IF(J794=\"\", \"\", INDEX(raw_resource_build!C:C, MATCH(J794, raw_resource_build!B:B, 0)))","v":""},null,{"$f":"raw_resource_build!B794","v":"Southern_California_Desert_Ex_Solar"},"In-State",{"$f":"IFERROR(INDEX($E$5:$E$32,MATCH(raw_resource_build!$E794,Lists!$B$5:$B$32,0)),\"Non-CAISO\")","v":"Renewables"},null,{"$f":"raw_annual_energy!C794","v":"SCADSNV_Wind"},{"$f":"INDEX(K:K,MATCH(R794,Lists!J:J,0))","v":"Wind"},"In-State"]
[null,null,null,null,null,null,null,null,null,{"$f":"IFERROR(INDEX(raw_resource_build!$B$2:$B$1000,MATCH(0,COUNTIF($J$1:J794,raw_resource_build!$B$2:$B$1000), 0),0), \"\")","v":""},{"$f":"IF(J795=\"\", \"\", INDEX(raw_resource_build!E:E, MATCH(J795, raw_resource_build!B:B, 0)))","v":""},{"$f":"IF(J795=\"\", \"\", INDEX(raw_resource_build!C:C, MATCH(J795, raw_resource_build!B:B, 0)))","v":""},null,{"$f":"raw_resource_build!B795","v":"Southern_California_Desert_Ex_Wind"},"In-State",{"$f":"IFERROR(INDEX($E$5:$E$32,MATCH(raw_resource_build!$E795,Lists!$B$5:$B$32,0)),\"Non-CAISO\")","v":"Renewables"},null,{"$f":"raw_annual_energy!C795","v":"SW_Ext_Tx_Wind"},{"$f":"INDEX(K:K,MATCH(R795,Lists!J:J,0))","v":"Wind"},"In-State"]
[null,null,null,null,null,null,null,null,null,{"$f":"IFERROR(INDEX(raw_resource_build!$B$2:$B$1000,MATCH(0,COUNTIF($J$1:J795,raw_resource_build!$B$2:$B$1000), 0),0), \"\")","v":""},{"$f":"IF(J796=\"\", \"\", INDEX(raw_resource_build!E:E, MATCH(J796, raw_resource_build!B:B, 0)))","v":""},{"$f":"IF(J796=\"\", \"\", INDEX(raw_resource_build!C:C, MATCH(J796, raw_resource_build!B:B, 0)))","v":""},null,{"$f":"raw_resource_build!B796","v":"Southern_Nevada_Solar"},"In-State",{"$f":"IFERROR(INDEX($E$5:$E$32,MATCH(raw_resource_build!$E796,Lists!$B$5:$B$32,0)),\"Non-CAISO\")","v":"Renewables"},null,{"$f":"raw_annual_energy!C796","v":"SW_Ext_Tx_Wind"},{"$f":"INDEX(K:K,MATCH(R796,Lists!J:J,0))","v":"Wind"},"In-State"]
[null,null,null,null,null,null,null,null,null,{"$f":"IFERROR(INDEX(raw_resource_build!$B$2:$B$1000,MATCH(0,COUNTIF($J$1:J796,raw_resource_build!$B$2:$B$1000), 0),0), \"\")","v":""},{"$f":"IF(J797=\"\", \"\", INDEX(raw_resource_build!E:E, MATCH(J797, raw_resource_build!B:B, 0)))","v":""},{"$f":"IF(J797=\"\", \"\", INDEX(raw_resource_build!C:C, MATCH(J797, raw_resource_build!B:B, 0)))","v":""},null,{"$f":"raw_resource_build!B797","v":"Southern_Nevada_Wind"},"In-State",{"$f":"IFERROR(INDEX($E$5:$E$32,MATCH(raw_resource_build!$E797,Lists!$B$5:$B$32,0)),\"Non-CAISO\")","v":"Renewables"},null,{"$f":"raw_annual_energy!C797","v":"SW_Ext_Tx_Wind"},{"$f":"INDEX(K:K,MATCH(R797,Lists!J:J,0))","v":"Wind"},"In-State"]
[null,null,null,null,null,null,null,null,null,{"$f":"IFERROR(INDEX(raw_resource_build!$B$2:$B$1000,MATCH(0,COUNTIF($J$1:J797,raw_resource_build!$B$2:$B$1000), 0),0), \"\")","v":""},{"$f":"IF(J798=\"\", \"\", INDEX(raw_resource_build!E:E, MATCH(J798, raw_resource_build!B:B, 0)))","v":""},{"$f":"IF(J798=\"\", \"\", INDEX(raw_resource_build!C:C, MATCH(J798, raw_resource_build!B:B, 0)))","v":""},null,{"$f":"raw_resource_build!B798","v":"SW_Ext_Tx_Wind"},"In-State",{"$f":"IFERROR(INDEX($E$5:$E$32,MATCH(raw_resource_build!$E798,Lists!$B$5:$B$32,0)),\"Non-CAISO\")","v":"Renewables"},null,{"$f":"raw_annual_energy!C798","v":"SW_Ext_Tx_Wind"},{"$f":"INDEX(K:K,MATCH(R798,Lists!J:J,0))","v":"Wind"},"In-State"]
[null,null,null,null,null,null,null,null,null,{"$f":"IFERROR(INDEX(raw_resource_build!$B$2:$B$1000,MATCH(0,COUNTIF($J$1:J798,raw_resource_build!$B$2:$B$1000), 0),0), \"\")","v":""},{"$f":"IF(J799=\"\", \"\", INDEX(raw_resource_build!E:E, MATCH(J799, raw_resource_build!B:B, 0)))","v":""},{"$f":"IF(J799=\"\", \"\", INDEX(raw_resource_build!C:C, MATCH(J799, raw_resource_build!B:B, 0)))","v":""},null,{"$f":"raw_resource_build!B799","v":"Tehachapi_Ex_Solar"},"In-State",{"$f":"IFERROR(INDEX($E$5:$E$32,MATCH(raw_resource_build!$E799,Lists!$B$5:$B$32,0)),\"Non-CAISO\")","v":"Renewables"},null,{"$f":"raw_annual_energy!C799","v":"SW_Ext_Tx_Wind"},{"$f":"INDEX(K:K,MATCH(R799,Lists!J:J,0))","v":"Wind"},"In-State"]
[null,null,null,null,null,null,null,null,null,{"$f":"IFERROR(INDEX(raw_resource_build!$B$2:$B$1000,MATCH(0,COUNTIF($J$1:J799,raw_resource_build!$B$2:$B$1000), 0),0), \"\")","v":""},{"$f":"IF(J800=\"\", \"\", INDEX(raw_resource_build!E:E, MATCH(J800, raw_resource_build!B:B, 0)))","v":""},{"$f":"IF(J800=\"\", \"\", INDEX(raw_resource_build!C:C, MATCH(J800, raw_resource_build!B:B, 0)))","v":""},null,{"$f":"raw_resource_build!B800","v":"Tehachapi_Solar"},"In-State",{"$f":"IFERROR(INDEX($E$5:$E$32,MATCH(raw_resource_build!$E800,Lists!$B$5:$B$32,0)),\"Non-CAISO\")","v":"Renewables"},null,{"$f":"raw_annual_energy!C800","v":"SW_Ext_Tx_Wind"},{"$f":"INDEX(K:K,MATCH(R800,Lists!J:J,0))","v":"Wind"},"In-State"]
[null,null,null,null,null,null,null,null,null,{"$f":"IFERROR(INDEX(raw_resource_build!$B$2:$B$1000,MATCH(0,COUNTIF($J$1:J800,raw_resource_build!$B$2:$B$1000), 0),0), \"\")","v":""},{"$f":"IF(J801=\"\", \"\", INDEX(raw_resource_build!E:E, MATCH(J801, raw_resource_build!B:B, 0)))","v":""},{"$f":"IF(J801=\"\", \"\", INDEX(raw_resource_build!C:C, MATCH(J801, raw_resource_build!B:B, 0)))","v":""},null,{"$f":"raw_resource_build!B801","v":"Tehachapi_Wind"},"In-State",{"$f":"IFERROR(INDEX($E$5:$E$32,MATCH(raw_resource_build!$E801,Lists!$B$5:$B$32,0)),\"Non-CAISO\")","v":"Renewables"},null,{"$f":"raw_annual_energy!C801","v":"SW_Ext_Tx_Wind"},{"$f":"INDEX(K:K,MATCH(R801,Lists!J:J,0))","v":"Wind"},"In-State"]
[null,null,null,null,null,null,null,null,null,{"$f":"IFERROR(INDEX(raw_resource_build!$B$2:$B$1000,MATCH(0,COUNTIF($J$1:J801,raw_resource_build!$B$2:$B$1000), 0),0), \"\")","v":""},{"$f":"IF(J802=\"\", \"\", INDEX(raw_resource_build!E:E, MATCH(J802, raw_resource_build!B:B, 0)))","v":""},{"$f":"IF(J802=\"\", \"\", INDEX(raw_resource_build!C:C, MATCH(J802, raw_resource_build!B:B, 0)))","v":""},null,{"$f":"raw_resource_build!B802","v":"Westlands_Ex_Solar"},"In-State",{"$f":"IFERROR(INDEX($E$5:$E$32,MATCH(raw_resource_build!$E802,Lists!$B$5:$B$32,0)),\"Non-CAISO\")","v":"Renewables"},null,{"$f":"raw_annual_energy!C802","v":"SW_Ext_Tx_Wind"},{"$f":"INDEX(K:K,MATCH(R802,Lists!J:J,0))","v":"Wind"},"In-State"]
[null,null,null,null,null,null,null,null,null,{"$f":"IFERROR(INDEX(raw_resource_build!$B$2:$B$1000,MATCH(0,COUNTIF($J$1:J802,raw_resource_build!$B$2:$B$1000), 0),0), \"\")","v":""},{"$f":"IF(J803=\"\", \"\", INDEX(raw_resource_build!E:E, MATCH(J803, raw_resource_build!B:B, 0)))","v":""},{"$f":"IF(J803=\"\", \"\", INDEX(raw_resource_build!C:C, MATCH(J803, raw_resource_build!B:B, 0)))","v":""},null,{"$f":"raw_resource_build!B803","v":"Westlands_Ex_Wind"},"In-State",{"$f":"IFERROR(INDEX($E$5:$E$32,MATCH(raw_resource_build!$E803,Lists!$B$5:$B$32,0)),\"Non-CAISO\")","v":"Renewables"},null,{"$f":"raw_annual_energy!C803","v":"Sacramento_River_Solar"},{"$f":"INDEX(K:K,MATCH(R803,Lists!J:J,0))","v":"Solar"},"In-State"]
[null,null,null,null,null,null,null,null,null,{"$f":"IFERROR(INDEX(raw_resource_build!$B$2:$B$1000,MATCH(0,COUNTIF($J$1:J803,raw_resource_build!$B$2:$B$1000), 0),0), \"\")","v":""},{"$f":"IF(J804=\"\", \"\", INDEX(raw_resource_build!E:E, MATCH(J804, raw_resource_build!B:B, 0)))","v":""},{"$f":"IF(J804=\"\", \"\", INDEX(raw_resource_build!C:C, MATCH(J804, raw_resource_build!B:B, 0)))","v":""},null,{"$f":"raw_resource_build!B804","v":"Westlands_Solar"},"In-State",{"$f":"IFERROR(INDEX($E$5:$E$32,MATCH(raw_resource_build!$E804,Lists!$B$5:$B$32,0)),\"Non-CAISO\")","v":"Renewables"},null,{"$f":"raw_annual_energy!C804","v":"Sacramento_River_Solar"},{"$f":"INDEX(K:K,MATCH(R804,Lists!J:J,0))","v":"Solar"},"In-State"]
[null,null,null,null,null,null,null,null,null,{"$f":"IFERROR(INDEX(raw_resource_build!$B$2:$B$1000,MATCH(0,COUNTIF($J$1:J804,raw_resource_build!$B$2:$B$1000), 0),0), \"\")","v":""},{"$f":"IF(J805=\"\", \"\", INDEX(raw_resource_build!E:E, MATCH(J805, raw_resource_build!B:B, 0)))","v":""},{"$f":"IF(J805=\"\", \"\", INDEX(raw_resource_build!C:C, MATCH(J805, raw_resource_build!B:B, 0)))","v":""},null,{"$f":"raw_resource_build!B805","v":"Arizona_Solar"},"In-State",{"$f":"IFERROR(INDEX($E$5:$E$32,MATCH(raw_resource_build!$E805,Lists!$B$5:$B$32,0)),\"Non-CAISO\")","v":"Renewables"},null,{"$f":"raw_annual_energy!C805","v":"Sacramento_River_Solar"},{"$f":"INDEX(K:K,MATCH(R805,Lists!J:J,0))","v":"Solar"},"In-State"]
[null,null,null,null,null,null,null,null,null,{"$f":"IFERROR(INDEX(raw_resource_build!$B$2:$B$1000,MATCH(0,COUNTIF($J$1:J805,raw_resource_build!$B$2:$B$1000), 0),0), \"\")","v":""},{"$f":"IF(J806=\"\", \"\", INDEX(raw_resource_build!E:E, MATCH(J806, raw_resource_build!B:B, 0)))","v":""},{"$f":"IF(J806=\"\", \"\", INDEX(raw_resource_build!C:C, MATCH(J806, raw_resource_build!B:B, 0)))","v":""},null,{"$f":"raw_resource_build!B806","v":"Arizona_Wind"},"Out-Of-State",{"$f":"IFERROR(INDEX($E$5:$E$32,MATCH(raw_resource_build!$E806,Lists!$B$5:$B$32,0)),\"Non-CAISO\")","v":"Renewables"},null,{"$f":"raw_annual_energy!C806","v":"Sacramento_River_Solar"},{"$f":"INDEX(K:K,MATCH(R806,Lists!J:J,0))","v":"Solar"},"In-State"]
[null,null,null,null,null,null,null,null,null,{"$f":"IFERROR(INDEX(raw_resource_build!$B$2:$B$1000,MATCH(0,COUNTIF($J$1:J806,raw_resource_build!$B$2:$B$1000), 0),0), \"\")","v":""},{"$f":"IF(J807=\"\", \"\", INDEX(raw_resource_build!E:E, MATCH(J807, raw_resource_build!B:B, 0)))","v":""},{"$f":"IF(J807=\"\", \"\", INDEX(raw_resource_build!C:C, MATCH(J807, raw_resource_build!B:B, 0)))","v":""},null,{"$f":"raw_resource_build!B807","v":"Baja_California_Solar"},"In-State",{"$f":"IFERROR(INDEX($E$5:$E$32,MATCH(raw_resource_build!$E807,Lists!$B$5:$B$32,0)),\"Non-CAISO\")","v":"Renewables"},null,{"$f":"raw_annual_energy!C807","v":"Sacramento_River_Solar"},{"$f":"INDEX(K:K,MATCH(R807,Lists!J:J,0))","v":"Solar"},"In-State"]
[null,null,null,null,null,null,null,null,null,{"$f":"IFERROR(INDEX(raw_resource_build!$B$2:$B$1000,MATCH(0,COUNTIF($J$1:J807,raw_resource_build!$B$2:$B$1000), 0),0), \"\")","v":""},{"$f":"IF(J808=\"\", \"\", INDEX(raw_resource_build!E:E, MATCH(J808, raw_resource_build!B:B, 0)))","v":""},{"$f":"IF(J808=\"\", \"\", INDEX(raw_resource_build!C:C, MATCH(J808, raw_resource_build!B:B, 0)))","v":""},null,{"$f":"raw_resource_build!B808","v":"Baja_California_Wind"},"In-State",{"$f":"IFERROR(INDEX($E$5:$E$32,MATCH(raw_resource_build!$E808,Lists!$B$5:$B$32,0)),\"Non-CAISO\")","v":"Renewables"},null,{"$f":"raw_annual_energy!C808","v":"Sacramento_River_Solar"},{"$f":"INDEX(K:K,MATCH(R808,Lists!J:J,0))","v":"Solar"},"In-State"]
[null,null,null,null,null,null,null,null,null,{"$f":"IFERROR(INDEX(raw_resource_build!$B$2:$B$1000,MATCH(0,COUNTIF($J$1:J808,raw_resource_build!$B$2:$B$1000), 0),0), \"\")","v":""},{"$f":"IF(J809=\"\", \"\", INDEX(raw_resource_build!E:E, MATCH(J809, raw_resource_build!B:B, 0)))","v":""},{"$f":"IF(J809=\"\", \"\", INDEX(raw_resource_build!C:C, MATCH(J809, raw_resource_build!B:B, 0)))","v":""},null,{"$f":"raw_resource_build!B809","v":"Idaho_Wind"},"Out-Of-State",{"$f":"IFERROR(INDEX($E$5:$E$32,MATCH(raw_resource_build!$E809,Lists!$B$5:$B$32,0)),\"Non-CAISO\")","v":"Renewables"},null,{"$f":"raw_annual_energy!C809","v":"Sacramento_River_Solar"},{"$f":"INDEX(K:K,MATCH(R809,Lists!J:J,0))","v":"Solar"},"In-State"]
[null,null,null,null,null,null,null,null,null,{"$f":"IFERROR(INDEX(raw_resource_build!$B$2:$B$1000,MATCH(0,COUNTIF($J$1:J809,raw_resource_build!$B$2:$B$1000), 0),0), \"\")","v":""},{"$f":"IF(J810=\"\", \"\", INDEX(raw_resource_build!E:E, MATCH(J810, raw_resource_build!B:B, 0)))","v":""},{"$f":"IF(J810=\"\", \"\", INDEX(raw_resource_build!C:C, MATCH(J810, raw_resource_build!B:B, 0)))","v":""},null,{"$f":"raw_resource_build!B810","v":"New_Mexico_Solar"},"Out-Of-State",{"$f":"IFERROR(INDEX($E$5:$E$32,MATCH(raw_resource_build!$E810,Lists!$B$5:$B$32,0)),\"Non-CAISO\")","v":"Renewables"},null,{"$f":"raw_annual_energy!C810","v":"Sacramento_River_Solar"},{"$f":"INDEX(K:K,MATCH(R810,Lists!J:J,0))","v":"Solar"},"In-State"]
[null,null,null,null,null,null,null,null,null,{"$f":"IFERROR(INDEX(raw_resource_build!$B$2:$B$1000,MATCH(0,COUNTIF($J$1:J810,raw_resource_build!$B$2:$B$1000), 0),0), \"\")","v":""},{"$f":"IF(J811=\"\", \"\", INDEX(raw_resource_build!E:E, MATCH(J811, raw_resource_build!B:B, 0)))","v":""},{"$f":"IF(J811=\"\", \"\", INDEX(raw_resource_build!C:C, MATCH(J811, raw_resource_build!B:B, 0)))","v":""},null,{"$f":"raw_resource_build!B811","v":"New_Mexico_Wind"},"Out-Of-State",{"$f":"IFERROR(INDEX($E$5:$E$32,MATCH(raw_resource_build!$E811,Lists!$B$5:$B$32,0)),\"Non-CAISO\")","v":"Renewables"},null,{"$f":"raw_annual_energy!C811","v":"Sacramento_River_Wind"},{"$f":"INDEX(K:K,MATCH(R811,Lists!J:J,0))","v":"Wind"},"In-State"]
[null,null,null,null,null,null,null,null,null,{"$f":"IFERROR(INDEX(raw_resource_build!$B$2:$B$1000,MATCH(0,COUNTIF($J$1:J811,raw_resource_build!$B$2:$B$1000), 0),0), \"\")","v":""},{"$f":"IF(J812=\"\", \"\", INDEX(raw_resource_build!E:E, MATCH(J812, raw_resource_build!B:B, 0)))","v":""},{"$f":"IF(J812=\"\", \"\", INDEX(raw_resource_build!C:C, MATCH(J812, raw_resource_build!B:B, 0)))","v":""},null,{"$f":"raw_resource_build!B812","v":"Utah_Solar"},"Out-Of-State",{"$f":"IFERROR(INDEX($E$5:$E$32,MATCH(raw_resource_build!$E812,Lists!$B$5:$B$32,0)),\"Non-CAISO\")","v":"Renewables"},null,{"$f":"raw_annual_energy!C812","v":"Sacramento_River_Wind"},{"$f":"INDEX(K:K,MATCH(R812,Lists!J:J,0))","v":"Wind"},"In-State"]
[null,null,null,null,null,null,null,null,null,{"$f":"IFERROR(INDEX(raw_resource_build!$B$2:$B$1000,MATCH(0,COUNTIF($J$1:J812,raw_resource_build!$B$2:$B$1000), 0),0), \"\")","v":""},{"$f":"IF(J813=\"\", \"\", INDEX(raw_resource_build!E:E, MATCH(J813, raw_resource_build!B:B, 0)))","v":""},{"$f":"IF(J813=\"\", \"\", INDEX(raw_resource_build!C:C, MATCH(J813, raw_resource_build!B:B, 0)))","v":""},null,{"$f":"raw_resource_build!B813","v":"Utah_Wind"},"Out-Of-State",{"$f":"IFERROR(INDEX($E$5:$E$32,MATCH(raw_resource_build!$E813,Lists!$B$5:$B$32,0)),\"Non-CAISO\")","v":"Renewables"},null,{"$f":"raw_annual_energy!C813","v":"Sacramento_River_Wind"},{"$f":"INDEX(K:K,MATCH(R813,Lists!J:J,0))","v":"Wind"},"In-State"]
[null,null,null,null,null,null,null,null,null,{"$f":"IFERROR(INDEX(raw_resource_build!$B$2:$B$1000,MATCH(0,COUNTIF($J$1:J813,raw_resource_build!$B$2:$B$1000), 0),0), \"\")","v":""},{"$f":"IF(J814=\"\", \"\", INDEX(raw_resource_build!E:E, MATCH(J814, raw_resource_build!B:B, 0)))","v":""},{"$f":"IF(J814=\"\", \"\", INDEX(raw_resource_build!C:C, MATCH(J814, raw_resource_build!B:B, 0)))","v":""},null,{"$f":"raw_resource_build!B814","v":"Wyoming_Wind"},"Out-Of-State",{"$f":"IFERROR(INDEX($E$5:$E$32,MATCH(raw_resource_build!$E814,Lists!$B$5:$B$32,0)),\"Non-CAISO\")","v":"Renewables"},null,{"$f":"raw_annual_energy!C814","v":"Sacramento_River_Wind"},{"$f":"INDEX(K:K,MATCH(R814,Lists!J:J,0))","v":"Wind"},"In-State"]
[null,null,null,null,null,null,null,null,null,{"$f":"IFERROR(INDEX(raw_resource_build!$B$2:$B$1000,MATCH(0,COUNTIF($J$1:J814,raw_resource_build!$B$2:$B$1000), 0),0), \"\")","v":""},{"$f":"IF(J815=\"\", \"\", INDEX(raw_resource_build!E:E, MATCH(J815, raw_resource_build!B:B, 0)))","v":""},{"$f":"IF(J815=\"\", \"\", INDEX(raw_resource_build!C:C, MATCH(J815, raw_resource_build!B:B, 0)))","v":""},null,{"$f":"raw_resource_build!B815","v":"Pacific_Northwest_Wind"},"Out-Of-State",{"$f":"IFERROR(INDEX($E$5:$E$32,MATCH(raw_resource_build!$E815,Lists!$B$5:$B$32,0)),\"Non-CAISO\")","v":"Renewables"},null,{"$f":"raw_annual_energy!C815","v":"Sacramento_River_Wind"},{"$f":"INDEX(K:K,MATCH(R815,Lists!J:J,0))","v":"Wind"},"In-State"]
[null,null,null,null,null,null,null,null,null,{"$f":"IFERROR(INDEX(raw_resource_build!$B$2:$B$1000,MATCH(0,COUNTIF($J$1:J815,raw_resource_build!$B$2:$B$1000), 0),0), \"\")","v":""},{"$f":"IF(J816=\"\", \"\", INDEX(raw_resource_build!E:E, MATCH(J816, raw_resource_build!B:B, 0)))","v":""},{"$f":"IF(J816=\"\", \"\", INDEX(raw_resource_build!C:C, MATCH(J816, raw_resource_build!B:B, 0)))","v":""},null,{"$f":"raw_resource_build!B816","v":"Diablo_Canyon_Offshore_Wind"},"In-State",{"$f":"IFERROR(INDEX($E$5:$E$32,MATCH(raw_resource_build!$E816,Lists!$B$5:$B$32,0)),\"Non-CAISO\")","v":"Renewables"},null,{"$f":"raw_annual_energy!C816","v":"Sacramento_River_Wind"},{"$f":"INDEX(K:K,MATCH(R816,Lists!J:J,0))","v":"Wind"},"In-State"]
[null,null,null,null,null,null,null,null,null,{"$f":"IFERROR(INDEX(raw_resource_build!$B$2:$B$1000,MATCH(0,COUNTIF($J$1:J816,raw_resource_build!$B$2:$B$1000), 0),0), \"\")","v":""},{"$f":"IF(J817=\"\", \"\", INDEX(raw_resource_build!E:E, MATCH(J817, raw_resource_build!B:B, 0)))","v":""},{"$f":"IF(J817=\"\", \"\", INDEX(raw_resource_build!C:C, MATCH(J817, raw_resource_build!B:B, 0)))","v":""},null,{"$f":"raw_resource_build!B817","v":"Humboldt_Bay_Offshore_Wind"},"In-State",{"$f":"IFERROR(INDEX($E$5:$E$32,MATCH(raw_resource_build!$E817,Lists!$B$5:$B$32,0)),\"Non-CAISO\")","v":"Renewables"},null,{"$f":"raw_annual_energy!C817","v":"Sacramento_River_Wind"},{"$f":"INDEX(K:K,MATCH(R817,Lists!J:J,0))","v":"Wind"},"In-State"]
[null,null,null,null,null,null,null,null,null,{"$f":"IFERROR(INDEX(raw_resource_build!$B$2:$B$1000,MATCH(0,COUNTIF($J$1:J817,raw_resource_build!$B$2:$B$1000), 0),0), \"\")","v":""},{"$f":"IF(J818=\"\", \"\", INDEX(raw_resource_build!E:E, MATCH(J818, raw_resource_build!B:B, 0)))","v":""},{"$f":"IF(J818=\"\", \"\", INDEX(raw_resource_build!C:C, MATCH(J818, raw_resource_build!B:B, 0)))","v":""},null,{"$f":"raw_resource_build!B818","v":"Morro_Bay_Offshore_Wind"},"In-State",{"$f":"IFERROR(INDEX($E$5:$E$32,MATCH(raw_resource_build!$E818,Lists!$B$5:$B$32,0)),\"Non-CAISO\")","v":"Renewables"},null,{"$f":"raw_annual_energy!C818","v":"Sacramento_River_Wind"},{"$f":"INDEX(K:K,MATCH(R818,Lists!J:J,0))","v":"Wind"},"In-State"]
[null,null,null,null,null,null,null,null,null,{"$f":"IFERROR(INDEX(raw_resource_build!$B$2:$B$1000,MATCH(0,COUNTIF($J$1:J818,raw_resource_build!$B$2:$B$1000), 0),0), \"\")","v":""},{"$f":"IF(J819=\"\", \"\", INDEX(raw_resource_build!E:E, MATCH(J819, raw_resource_build!B:B, 0)))","v":""},{"$f":"IF(J819=\"\", \"\", INDEX(raw_resource_build!C:C, MATCH(J819, raw_resource_build!B:B, 0)))","v":""},null,{"$f":"raw_resource_build!B819","v":"Diablo_Canyon_Offshore_Wind_Ext_Tx"},"In-State",{"$f":"IFERROR(INDEX($E$5:$E$32,MATCH(raw_resource_build!$E819,Lists!$B$5:$B$32,0)),\"Non-CAISO\")","v":"Renewables"},null,{"$f":"raw_annual_energy!C819","v":"Solano_Geothermal"},{"$f":"INDEX(K:K,MATCH(R819,Lists!J:J,0))","v":"Geothermal"},"In-State"]
[null,null,null,null,null,null,null,null,null,{"$f":"IFERROR(INDEX(raw_resource_build!$B$2:$B$1000,MATCH(0,COUNTIF($J$1:J819,raw_resource_build!$B$2:$B$1000), 0),0), \"\")","v":""},{"$f":"IF(J820=\"\", \"\", INDEX(raw_resource_build!E:E, MATCH(J820, raw_resource_build!B:B, 0)))","v":""},{"$f":"IF(J820=\"\", \"\", INDEX(raw_resource_build!C:C, MATCH(J820, raw_resource_build!B:B, 0)))","v":""},null,{"$f":"raw_resource_build!B820","v":"Cape_Mendocino_Offshore_Wind"},"In-State",{"$f":"IFERROR(INDEX($E$5:$E$32,MATCH(raw_resource_build!$E820,Lists!$B$5:$B$32,0)),\"Non-CAISO\")","v":"Renewables"},null,{"$f":"raw_annual_energy!C820","v":"Solano_Geothermal"},{"$f":"INDEX(K:K,MATCH(R820,Lists!J:J,0))","v":"Geothermal"},"In-State"]
[null,null,null,null,null,null,null,null,null,{"$f":"IFERROR(INDEX(raw_resource_build!$B$2:$B$1000,MATCH(0,COUNTIF($J$1:J820,raw_resource_build!$B$2:$B$1000), 0),0), \"\")","v":""},{"$f":"IF(J821=\"\", \"\", INDEX(raw_resource_build!E:E, MATCH(J821, raw_resource_build!B:B, 0)))","v":""},{"$f":"IF(J821=\"\", \"\", INDEX(raw_resource_build!C:C, MATCH(J821, raw_resource_build!B:B, 0)))","v":""},null,{"$f":"raw_resource_build!B821","v":"Del_Norte_Offshore_Wind"},"In-State",{"$f":"IFERROR(INDEX($E$5:$E$32,MATCH(raw_resource_build!$E821,Lists!$B$5:$B$32,0)),\"Non-CAISO\")","v":"Renewables"},null,{"$f":"raw_annual_energy!C821","v":"Solano_Geothermal"},{"$f":"INDEX(K:K,MATCH(R821,Lists!J:J,0))","v":"Geothermal"},"In-State"]
[null,null,null,null,null,null,null,null,null,{"$f":"IFERROR(INDEX(raw_resource_build!$B$2:$B$1000,MATCH(0,COUNTIF($J$1:J821,raw_resource_build!$B$2:$B$1000), 0),0), \"\")","v":""},{"$f":"IF(J822=\"\", \"\", INDEX(raw_resource_build!E:E, MATCH(J822, raw_resource_build!B:B, 0)))","v":""},{"$f":"IF(J822=\"\", \"\", INDEX(raw_resource_build!C:C, MATCH(J822, raw_resource_build!B:B, 0)))","v":""},null,{"$f":"raw_resource_build!B822","v":"CAISO_Existing_Pumped_Storage"},"Non-wind",{"$f":"IFERROR(INDEX($E$5:$E$32,MATCH(raw_resource_build!$E822,Lists!$B$5:$B$32,0)),\"Non-CAISO\")","v":"Pumped Storage"},null,{"$f":"raw_annual_energy!C822","v":"Solano_Geothermal"},{"$f":"INDEX(K:K,MATCH(R822,Lists!J:J,0))","v":"Geothermal"},"In-State"]
[null,null,null,null,null,null,null,null,null,{"$f":"IFERROR(INDEX(raw_resource_build!$B$2:$B$1000,MATCH(0,COUNTIF($J$1:J822,raw_resource_build!$B$2:$B$1000), 0),0), \"\")","v":""},{"$f":"IF(J823=\"\", \"\", INDEX(raw_resource_build!E:E, MATCH(J823, raw_resource_build!B:B, 0)))","v":""},{"$f":"IF(J823=\"\", \"\", INDEX(raw_resource_build!C:C, MATCH(J823, raw_resource_build!B:B, 0)))","v":""},null,{"$f":"raw_resource_build!B823","v":"CAISO_New_Pumped_Storage"},"Non-wind",{"$f":"IFERROR(INDEX($E$5:$E$32,MATCH(raw_resource_build!$E823,Lists!$B$5:$B$32,0)),\"Non-CAISO\")","v":"Pumped Storage"},null,{"$f":"raw_annual_energy!C823","v":"Solano_Geothermal"},{"$f":"INDEX(K:K,MATCH(R823,Lists!J:J,0))","v":"Geothermal"},"In-State"]
[null,null,null,null,null,null,null,null,null,{"$f":"IFERROR(INDEX(raw_resource_build!$B$2:$B$1000,MATCH(0,COUNTIF($J$1:J823,raw_resource_build!$B$2:$B$1000), 0),0), \"\")","v":""},{"$f":"IF(J824=\"\", \"\", INDEX(raw_resource_build!E:E, MATCH(J824, raw_resource_build!B:B, 0)))","v":""},{"$f":"IF(J824=\"\", \"\", INDEX(raw_resource_build!C:C, MATCH(J824, raw_resource_build!B:B, 0)))","v":""},null,{"$f":"raw_resource_build!B824","v":"CAISO_New_Flow_Battery"},"Non-wind",{"$f":"IFERROR(INDEX($E$5:$E$32,MATCH(raw_resource_build!$E824,Lists!$B$5:$B$32,0)),\"Non-CAISO\")","v":"Battery (incl. BTM)"},null,{"$f":"raw_annual_energy!C824","v":"Solano_Geothermal"},{"$f":"INDEX(K:K,MATCH(R824,Lists!J:J,0))","v":"Geothermal"},"In-State"]
[null,null,null,null,null,null,null,null,null,{"$f":"IFERROR(INDEX(raw_resource_build!$B$2:$B$1000,MATCH(0,COUNTIF($J$1:J824,raw_resource_build!$B$2:$B$1000), 0),0), \"\")","v":""},{"$f":"IF(J825=\"\", \"\", INDEX(raw_resource_build!E:E, MATCH(J825, raw_resource_build!B:B, 0)))","v":""},{"$f":"IF(J825=\"\", \"\", INDEX(raw_resource_build!C:C, MATCH(J825, raw_resource_build!B:B, 0)))","v":""},null,{"$f":"raw_resource_build!B825","v":"CAISO_New_Flow_Battery_2"},"Non-wind",{"$f":"IFERROR(INDEX($E$5:$E$32,MATCH(raw_resource_build!$E825,Lists!$B$5:$B$32,0)),\"Non-CAISO\")","v":"Battery (incl. BTM)"},null,{"$f":"raw_annual_energy!C825","v":"Solano_Geothermal"},{"$f":"INDEX(K:K,MATCH(R825,Lists!J:J,0))","v":"Geothermal"},"In-State"]
[null,null,null,null,null,null,null,null,null,{"$f":"IFERROR(INDEX(raw_resource_build!$B$2:$B$1000,MATCH(0,COUNTIF($J$1:J825,raw_resource_build!$B$2:$B$1000), 0),0), \"\")","v":""},{"$f":"IF(J826=\"\", \"\", INDEX(raw_resource_build!E:E, MATCH(J826, raw_resource_build!B:B, 0)))","v":""},{"$f":"IF(J826=\"\", \"\", INDEX(raw_resource_build!C:C, MATCH(J826, raw_resource_build!B:B, 0)))","v":""},null,{"$f":"raw_resource_build!B826","v":"CAISO_New_Flow_Battery_3"},"Non-wind",{"$f":"IFERROR(INDEX($E$5:$E$32,MATCH(raw_resource_build!$E826,Lists!$B$5:$B$32,0)),\"Non-CAISO\")","v":"Battery (incl. BTM)"},null,{"$f":"raw_annual_energy!C826","v":"Solano_Geothermal"},{"$f":"INDEX(K:K,MATCH(R826,Lists!J:J,0))","v":"Geothermal"},"In-State"]
[null,null,null,null,null,null,null,null,null,{"$f":"IFERROR(INDEX(raw_resource_build!$B$2:$B$1000,MATCH(0,COUNTIF($J$1:J826,raw_resource_build!$B$2:$B$1000), 0),0), \"\")","v":""},{"$f":"IF(J827=\"\", \"\", INDEX(raw_resource_build!E:E, MATCH(J827, raw_resource_build!B:B, 0)))","v":""},{"$f":"IF(J827=\"\", \"\", INDEX(raw_resource_build!C:C, MATCH(J827, raw_resource_build!B:B, 0)))","v":""},null,{"$f":"raw_resource_build!B827","v":"CAISO_New_Flow_Battery_4"},"Non-wind",{"$f":"IFERROR(INDEX($E$5:$E$32,MATCH(raw_resource_build!$E827,Lists!$B$5:$B$32,0)),\"Non-CAISO\")","v":"Battery (incl. BTM)"},null,{"$f":"raw_annual_energy!C827","v":"Solano_Solar"},{"$f":"INDEX(K:K,MATCH(R827,Lists!J:J,0))","v":"Solar"},"In-State"]
[null,null,null,null,null,null,null,null,null,{"$f":"IFERROR(INDEX(raw_resource_build!$B$2:$B$1000,MATCH(0,COUNTIF($J$1:J827,raw_resource_build!$B$2:$B$1000), 0),0), \"\")","v":""},{"$f":"IF(J828=\"\", \"\", INDEX(raw_resource_build!E:E, MATCH(J828, raw_resource_build!B:B, 0)))","v":""},{"$f":"IF(J828=\"\", \"\", INDEX(raw_resource_build!C:C, MATCH(J828, raw_resource_build!B:B, 0)))","v":""},null,{"$f":"raw_resource_build!B828","v":"CAISO_New_Flow_Battery_5"},"Non-wind",{"$f":"IFERROR(INDEX($E$5:$E$32,MATCH(raw_resource_build!$E828,Lists!$B$5:$B$32,0)),\"Non-CAISO\")","v":"Battery (incl. BTM)"},null,{"$f":"raw_annual_energy!C828","v":"Solano_Solar"},{"$f":"INDEX(K:K,MATCH(R828,Lists!J:J,0))","v":"Solar"},"In-State"]
[null,null,null,null,null,null,null,null,null,{"$f":"IFERROR(INDEX(raw_resource_build!$B$2:$B$1000,MATCH(0,COUNTIF($J$1:J828,raw_resource_build!$B$2:$B$1000), 0),0), \"\")","v":""},{"$f":"IF(J829=\"\", \"\", INDEX(raw_resource_build!E:E, MATCH(J829, raw_resource_build!B:B, 0)))","v":""},{"$f":"IF(J829=\"\", \"\", INDEX(raw_resource_build!C:C, MATCH(J829, raw_resource_build!B:B, 0)))","v":""},null,{"$f":"raw_resource_build!B829","v":"CAISO_New_Li_Battery"},"Non-wind",{"$f":"IFERROR(INDEX($E$5:$E$32,MATCH(raw_resource_build!$E829,Lists!$B$5:$B$32,0)),\"Non-CAISO\")","v":"Battery (incl. BTM)"},null,{"$f":"raw_annual_energy!C829","v":"Solano_Solar"},{"$f":"INDEX(K:K,MATCH(R829,Lists!J:J,0))","v":"Solar"},"In-State"]
[null,null,null,null,null,null,null,null,null,{"$f":"IFERROR(INDEX(raw_resource_build!$B$2:$B$1000,MATCH(0,COUNTIF($J$1:J829,raw_resource_build!$B$2:$B$1000), 0),0), \"\")","v":""},{"$f":"IF(J830=\"\", \"\", INDEX(raw_resource_build!E:E, MATCH(J830, raw_resource_build!B:B, 0)))","v":""},{"$f":"IF(J830=\"\", \"\", INDEX(raw_resource_build!C:C, MATCH(J830, raw_resource_build!B:B, 0)))","v":""},null,{"$f":"raw_resource_build!B830","v":"CAISO_BTM_Li_Battery"},"Non-wind",{"$f":"IFERROR(INDEX($E$5:$E$32,MATCH(raw_resource_build!$E830,Lists!$B$5:$B$32,0)),\"Non-CAISO\")","v":"Battery (incl. BTM)"},null,{"$f":"raw_annual_energy!C830","v":"Solano_Solar"},{"$f":"INDEX(K:K,MATCH(R830,Lists!J:J,0))","v":"Solar"},"In-State"]
[null,null,null,null,null,null,null,null,null,{"$f":"IFERROR(INDEX(raw_resource_build!$B$2:$B$1000,MATCH(0,COUNTIF($J$1:J830,raw_resource_build!$B$2:$B$1000), 0),0), \"\")","v":""},{"$f":"IF(J831=\"\", \"\", INDEX(raw_resource_build!E:E, MATCH(J831, raw_resource_build!B:B, 0)))","v":""},{"$f":"IF(J831=\"\", \"\", INDEX(raw_resource_build!C:C, MATCH(J831, raw_resource_build!B:B, 0)))","v":""},null,{"$f":"raw_resource_build!B831","v":"CAISO_New_Li_Battery_2"},"Non-wind",{"$f":"IFERROR(INDEX($E$5:$E$32,MATCH(raw_resource_build!$E831,Lists!$B$5:$B$32,0)),\"Non-CAISO\")","v":"Battery (incl. BTM)"},null,{"$f":"raw_annual_energy!C831","v":"Solano_Solar"},{"$f":"INDEX(K:K,MATCH(R831,Lists!J:J,0))","v":"Solar"},"In-State"]
[null,null,null,null,null,null,null,null,null,{"$f":"IFERROR(INDEX(raw_resource_build!$B$2:$B$1000,MATCH(0,COUNTIF($J$1:J831,raw_resource_build!$B$2:$B$1000), 0),0), \"\")","v":""},{"$f":"IF(J832=\"\", \"\", INDEX(raw_resource_build!E:E, MATCH(J832, raw_resource_build!B:B, 0)))","v":""},{"$f":"IF(J832=\"\", \"\", INDEX(raw_resource_build!C:C, MATCH(J832, raw_resource_build!B:B, 0)))","v":""},null,{"$f":"raw_resource_build!B832","v":"CAISO_New_Li_Battery_3"},"Non-wind",{"$f":"IFERROR(INDEX($E$5:$E$32,MATCH(raw_resource_build!$E832,Lists!$B$5:$B$32,0)),\"Non-CAISO\")","v":"Battery (incl. BTM)"},null,{"$f":"raw_annual_energy!C832","v":"Solano_Solar"},{"$f":"INDEX(K:K,MATCH(R832,Lists!J:J,0))","v":"Solar"},"In-State"]
[null,null,null,null,null,null,null,null,null,{"$f":"IFERROR(INDEX(raw_resource_build!$B$2:$B$1000,MATCH(0,COUNTIF($J$1:J832,raw_resource_build!$B$2:$B$1000), 0),0), \"\")","v":""},{"$f":"IF(J833=\"\", \"\", INDEX(raw_resource_build!E:E, MATCH(J833, raw_resource_build!B:B, 0)))","v":""},{"$f":"IF(J833=\"\", \"\", INDEX(raw_resource_build!C:C, MATCH(J833, raw_resource_build!B:B, 0)))","v":""},null,{"$f":"raw_resource_build!B833","v":"CAISO_New_Li_Battery_4"},"Non-wind",{"$f":"IFERROR(INDEX($E$5:$E$32,MATCH(raw_resource_build!$E833,Lists!$B$5:$B$32,0)),\"Non-CAISO\")","v":"Battery (incl. BTM)"},null,{"$f":"raw_annual_energy!C833","v":"Solano_Solar"},{"$f":"INDEX(K:K,MATCH(R833,Lists!J:J,0))","v":"Solar"},"In-State"]
[null,null,null,null,null,null,null,null,null,{"$f":"IFERROR(INDEX(raw_resource_build!$B$2:$B$1000,MATCH(0,COUNTIF($J$1:J833,raw_resource_build!$B$2:$B$1000), 0),0), \"\")","v":""},{"$f":"IF(J834=\"\", \"\", INDEX(raw_resource_build!E:E, MATCH(J834, raw_resource_build!B:B, 0)))","v":""},{"$f":"IF(J834=\"\", \"\", INDEX(raw_resource_build!C:C, MATCH(J834, raw_resource_build!B:B, 0)))","v":""},null,{"$f":"raw_resource_build!B834","v":"CAISO_New_Li_Battery_5"},"Non-wind",{"$f":"IFERROR(INDEX($E$5:$E$32,MATCH(raw_resource_build!$E834,Lists!$B$5:$B$32,0)),\"Non-CAISO\")","v":"Battery (incl. BTM)"},null,{"$f":"raw_annual_energy!C834","v":"Solano_Solar"},{"$f":"INDEX(K:K,MATCH(R834,Lists!J:J,0))","v":"Solar"},"In-State"]
[null,null,null,null,null,null,null,null,null,{"$f":"IFERROR(INDEX(raw_resource_build!$B$2:$B$1000,MATCH(0,COUNTIF($J$1:J834,raw_resource_build!$B$2:$B$1000), 0),0), \"\")","v":""},{"$f":"IF(J835=\"\", \"\", INDEX(raw_resource_build!E:E, MATCH(J835, raw_resource_build!B:B, 0)))","v":""},{"$f":"IF(J835=\"\", \"\", INDEX(raw_resource_build!C:C, MATCH(J835, raw_resource_build!B:B, 0)))","v":""},null,{"$f":"raw_resource_build!B835","v":"CAISO_New_Li_Battery_6"},{"$f":"IFERROR(INDEX($C$35:$C$99,MATCH($N835,$B$35:$B$99,0)),\"Non-wind\")","v":"Non-wind"},{"$f":"IFERROR(INDEX($E$5:$E$32,MATCH(raw_resource_build!$E835,Lists!$B$5:$B$32,0)),\"Non-CAISO\")","v":"Battery (incl. BTM)"},null,{"$f":"raw_annual_energy!C835","v":"Solano_Wind"},{"$f":"INDEX(K:K,MATCH(R835,Lists!J:J,0))","v":"Wind"},{"$f":"IFERROR(INDEX($C$35:$C$99,MATCH($R835,$B$35:$B$99,0)),\"Non-wind\")","v":"In-State"}]
[null,null,null,null,null,null,null,null,null,{"$f":"IFERROR(INDEX(raw_resource_build!$B$2:$B$1000,MATCH(0,COUNTIF($J$1:J835,raw_resource_build!$B$2:$B$1000), 0),0), \"\")","v":""},{"$f":"IF(J836=\"\", \"\", INDEX(raw_resource_build!E:E, MATCH(J836, raw_resource_build!B:B, 0)))","v":""},{"$f":"IF(J836=\"\", \"\", INDEX(raw_resource_build!C:C, MATCH(J836, raw_resource_build!B:B, 0)))","v":""},null,{"$f":"raw_resource_build!B836","v":"CAISO_Hydro"},"Non-wind",{"$f":"IFERROR(INDEX($E$5:$E$32,MATCH(raw_resource_build!$E836,Lists!$B$5:$B$32,0)),\"Non-CAISO\")","v":"Hydro (small + large)"},null,{"$f":"raw_annual_energy!C836","v":"Solano_Wind"},{"$f":"INDEX(K:K,MATCH(R836,Lists!J:J,0))","v":"Wind"},"In-State"]
[null,null,null,null,null,null,null,null,null,{"$f":"IFERROR(INDEX(raw_resource_build!$B$2:$B$1000,MATCH(0,COUNTIF($J$1:J836,raw_resource_build!$B$2:$B$1000), 0),0), \"\")","v":""},{"$f":"IF(J837=\"\", \"\", INDEX(raw_resource_build!E:E, MATCH(J837, raw_resource_build!B:B, 0)))","v":""},{"$f":"IF(J837=\"\", \"\", INDEX(raw_resource_build!C:C, MATCH(J837, raw_resource_build!B:B, 0)))","v":""},null,{"$f":"raw_resource_build!B837","v":"NW_Hydro"},"Non-wind",{"$f":"IFERROR(INDEX($E$5:$E$32,MATCH(raw_resource_build!$E837,Lists!$B$5:$B$32,0)),\"Non-CAISO\")","v":"Hydro (small + large)"},null,{"$f":"raw_annual_energy!C837","v":"Solano_Wind"},{"$f":"INDEX(K:K,MATCH(R837,Lists!J:J,0))","v":"Wind"},"In-State"]
[null,null,null,null,null,null,null,null,null,{"$f":"IFERROR(INDEX(raw_resource_build!$B$2:$B$1000,MATCH(0,COUNTIF($J$1:J837,raw_resource_build!$B$2:$B$1000), 0),0), \"\")","v":""},{"$f":"IF(J838=\"\", \"\", INDEX(raw_resource_build!E:E, MATCH(J838, raw_resource_build!B:B, 0)))","v":""},{"$f":"IF(J838=\"\", \"\", INDEX(raw_resource_build!C:C, MATCH(J838, raw_resource_build!B:B, 0)))","v":""},null,{"$f":"raw_resource_build!B838","v":"SW_Hydro"},"Non-wind",{"$f":"IFERROR(INDEX($E$5:$E$32,MATCH(raw_resource_build!$E838,Lists!$B$5:$B$32,0)),\"Non-CAISO\")","v":"Hydro (small + large)"},null,{"$f":"raw_annual_energy!C838","v":"Solano_Wind"},{"$f":"INDEX(K:K,MATCH(R838,Lists!J:J,0))","v":"Wind"},"In-State"]
[null,null,null,null,null,null,null,null,null,{"$f":"IFERROR(INDEX(raw_resource_build!$B$2:$B$1000,MATCH(0,COUNTIF($J$1:J838,raw_resource_build!$B$2:$B$1000), 0),0), \"\")","v":""},{"$f":"IF(J839=\"\", \"\", INDEX(raw_resource_build!E:E, MATCH(J839, raw_resource_build!B:B, 0)))","v":""},{"$f":"IF(J839=\"\", \"\", INDEX(raw_resource_build!C:C, MATCH(J839, raw_resource_build!B:B, 0)))","v":""},null,{"$f":"raw_resource_build!B839","v":"LDWP_Hydro"},"Non-wind",{"$f":"IFERROR(INDEX($E$5:$E$32,MATCH(raw_resource_build!$E839,Lists!$B$5:$B$32,0)),\"Non-CAISO\")","v":"Hydro (small + large)"},null,{"$f":"raw_annual_energy!C839","v":"Solano_Wind"},{"$f":"INDEX(K:K,MATCH(R839,Lists!J:J,0))","v":"Wind"},"In-State"]
[null,null,null,null,null,null,null,null,null,{"$f":"IFERROR(INDEX(raw_resource_build!$B$2:$B$1000,MATCH(0,COUNTIF($J$1:J839,raw_resource_build!$B$2:$B$1000), 0),0), \"\")","v":""},{"$f":"IF(J840=\"\", \"\", INDEX(raw_resource_build!E:E, MATCH(J840, raw_resource_build!B:B, 0)))","v":""},{"$f":"IF(J840=\"\", \"\", INDEX(raw_resource_build!C:C, MATCH(J840, raw_resource_build!B:B, 0)))","v":""},null,{"$f":"raw_resource_build!B840","v":"BANC_Hydro"},"Non-wind",{"$f":"IFERROR(INDEX($E$5:$E$32,MATCH(raw_resource_build!$E840,Lists!$B$5:$B$32,0)),\"Non-CAISO\")","v":"Hydro (small + large)"},null,{"$f":"raw_annual_energy!C840","v":"Solano_Wind"},{"$f":"INDEX(K:K,MATCH(R840,Lists!J:J,0))","v":"Wind"},"In-State"]
[null,null,null,null,null,null,null,null,null,{"$f":"IFERROR(INDEX(raw_resource_build!$B$2:$B$1000,MATCH(0,COUNTIF($J$1:J840,raw_resource_build!$B$2:$B$1000), 0),0), \"\")","v":""},{"$f":"IF(J841=\"\", \"\", INDEX(raw_resource_build!E:E, MATCH(J841, raw_resource_build!B:B, 0)))","v":""},{"$f":"IF(J841=\"\", \"\", INDEX(raw_resource_build!C:C, MATCH(J841, raw_resource_build!B:B, 0)))","v":""},null,{"$f":"raw_resource_build!B841","v":"IID_Hydro"},"Non-wind",{"$f":"IFERROR(INDEX($E$5:$E$32,MATCH(raw_resource_build!$E841,Lists!$B$5:$B$32,0)),\"Non-CAISO\")","v":"Hydro (small + large)"},null,{"$f":"raw_annual_energy!C841","v":"Solano_Wind"},{"$f":"INDEX(K:K,MATCH(R841,Lists!J:J,0))","v":"Wind"},"In-State"]
[null,null,null,null,null,null,null,null,null,{"$f":"IFERROR(INDEX(raw_resource_build!$B$2:$B$1000,MATCH(0,COUNTIF($J$1:J841,raw_resource_build!$B$2:$B$1000), 0),0), \"\")","v":""},{"$f":"IF(J842=\"\", \"\", INDEX(raw_resource_build!E:E, MATCH(J842, raw_resource_build!B:B, 0)))","v":""},{"$f":"IF(J842=\"\", \"\", INDEX(raw_resource_build!C:C, MATCH(J842, raw_resource_build!B:B, 0)))","v":""},null,{"$f":"raw_resource_build!B842","v":"NW_Hydro_for_CAISO"},"Non-wind",{"$f":"IFERROR(INDEX($E$5:$E$32,MATCH(raw_resource_build!$E842,Lists!$B$5:$B$32,0)),\"Non-CAISO\")","v":"Imports"},null,{"$f":"raw_annual_energy!C842","v":"Solano_Wind"},{"$f":"INDEX(K:K,MATCH(R842,Lists!J:J,0))","v":"Wind"},"In-State"]
[null,null,null,null,null,null,null,null,null,{"$f":"IFERROR(INDEX(raw_resource_build!$B$2:$B$1000,MATCH(0,COUNTIF($J$1:J842,raw_resource_build!$B$2:$B$1000), 0),0), \"\")","v":""},{"$f":"IF(J843=\"\", \"\", INDEX(raw_resource_build!E:E, MATCH(J843, raw_resource_build!B:B, 0)))","v":""},{"$f":"IF(J843=\"\", \"\", INDEX(raw_resource_build!C:C, MATCH(J843, raw_resource_build!B:B, 0)))","v":""},null,{"$f":"raw_resource_build!B843","v":"Hydrogen_electrolysis"},"Non-wind",{"$f":"IFERROR(INDEX($E$5:$E$32,MATCH(raw_resource_build!$E843,Lists!$B$5:$B$32,0)),\"Non-CAISO\")","v":"Hydrogen Load"},null,{"$f":"raw_annual_energy!C843","v":"Solano_subzone_Solar"},{"$f":"INDEX(K:K,MATCH(R843,Lists!J:J,0))","v":"Solar"},"In-State"]
[null,null,null,null,null,null,null,null,null,{"$f":"IFERROR(INDEX(raw_resource_build!$B$2:$B$1000,MATCH(0,COUNTIF($J$1:J843,raw_resource_build!$B$2:$B$1000), 0),0), \"\")","v":""},{"$f":"IF(J844=\"\", \"\", INDEX(raw_resource_build!E:E, MATCH(J844, raw_resource_build!B:B, 0)))","v":""},{"$f":"IF(J844=\"\", \"\", INDEX(raw_resource_build!C:C, MATCH(J844, raw_resource_build!B:B, 0)))","v":""},null,{"$f":"raw_resource_build!B844","v":"CAISO_Shed_DR_Existing"},"Non-wind",{"$f":"IFERROR(INDEX($E$5:$E$32,MATCH(raw_resource_build!$E844,Lists!$B$5:$B$32,0)),\"Non-CAISO\")","v":"Shed DR"},null,{"$f":"raw_annual_energy!C844","v":"Solano_subzone_Solar"},{"$f":"INDEX(K:K,MATCH(R844,Lists!J:J,0))","v":"Solar"},"In-State"]
[null,null,null,null,null,null,null,null,null,{"$f":"IFERROR(INDEX(raw_resource_build!$B$2:$B$1000,MATCH(0,COUNTIF($J$1:J844,raw_resource_build!$B$2:$B$1000), 0),0), \"\")","v":""},{"$f":"IF(J845=\"\", \"\", INDEX(raw_resource_build!E:E, MATCH(J845, raw_resource_build!B:B, 0)))","v":""},{"$f":"IF(J845=\"\", \"\", INDEX(raw_resource_build!C:C, MATCH(J845, raw_resource_build!B:B, 0)))","v":""},null,{"$f":"raw_resource_build!B845","v":"CAISO_Shed_DR_Tranche1"},"Non-wind",{"$f":"IFERROR(INDEX($E$5:$E$32,MATCH(raw_resource_build!$E845,Lists!$B$5:$B$32,0)),\"Non-CAISO\")","v":"Shed DR"},null,{"$f":"raw_annual_energy!C845","v":"Solano_subzone_Solar"},{"$f":"INDEX(K:K,MATCH(R845,Lists!J:J,0))","v":"Solar"},"In-State"]
[null,null,null,null,null,null,null,null,null,{"$f":"IFERROR(INDEX(raw_resource_build!$B$2:$B$1000,MATCH(0,COUNTIF($J$1:J845,raw_resource_build!$B$2:$B$1000), 0),0), \"\")","v":""},{"$f":"IF(J846=\"\", \"\", INDEX(raw_resource_build!E:E, MATCH(J846, raw_resource_build!B:B, 0)))","v":""},{"$f":"IF(J846=\"\", \"\", INDEX(raw_resource_build!C:C, MATCH(J846, raw_resource_build!B:B, 0)))","v":""},null,{"$f":"raw_resource_build!B846","v":"CAISO_Shed_DR_Tranche2"},"Non-wind",{"$f":"IFERROR(INDEX($E$5:$E$32,MATCH(raw_resource_build!$E846,Lists!$B$5:$B$32,0)),\"Non-CAISO\")","v":"Shed DR"},null,{"$f":"raw_annual_energy!C846","v":"Solano_subzone_Solar"},{"$f":"INDEX(K:K,MATCH(R846,Lists!J:J,0))","v":"Solar"},"In-State"]
[null,null,null,null,null,null,null,null,null,{"$f":"IFERROR(INDEX(raw_resource_build!$B$2:$B$1000,MATCH(0,COUNTIF($J$1:J846,raw_resource_build!$B$2:$B$1000), 0),0), \"\")","v":""},{"$f":"IF(J847=\"\", \"\", INDEX(raw_resource_build!E:E, MATCH(J847, raw_resource_build!B:B, 0)))","v":""},{"$f":"IF(J847=\"\", \"\", INDEX(raw_resource_build!C:C, MATCH(J847, raw_resource_build!B:B, 0)))","v":""},null,{"$f":"raw_resource_build!B847","v":"CAISO_Shed_DR_Tranche3"},"Non-wind",{"$f":"IFERROR(INDEX($E$5:$E$32,MATCH(raw_resource_build!$E847,Lists!$B$5:$B$32,0)),\"Non-CAISO\")","v":"Shed DR"},null,{"$f":"raw_annual_energy!C847","v":"Solano_subzone_Solar"},{"$f":"INDEX(K:K,MATCH(R847,Lists!J:J,0))","v":"Solar"},"In-State"]
[null,null,null,null,null,null,null,null,null,{"$f":"IFERROR(INDEX(raw_resource_build!$B$2:$B$1000,MATCH(0,COUNTIF($J$1:J847,raw_resource_build!$B$2:$B$1000), 0),0), \"\")","v":""},{"$f":"IF(J848=\"\", \"\", INDEX(raw_resource_build!E:E, MATCH(J848, raw_resource_build!B:B, 0)))","v":""},{"$f":"IF(J848=\"\", \"\", INDEX(raw_resource_build!C:C, MATCH(J848, raw_resource_build!B:B, 0)))","v":""},null,{"$f":"raw_resource_build!B848","v":"CAISO_Shed_DR_Tranche4"},"Non-wind",{"$f":"IFERROR(INDEX($E$5:$E$32,MATCH(raw_resource_build!$E848,Lists!$B$5:$B$32,0)),\"Non-CAISO\")","v":"Shed DR"},null,{"$f":"raw_annual_energy!C848","v":"Solano_subzone_Solar"},{"$f":"INDEX(K:K,MATCH(R848,Lists!J:J,0))","v":"Solar"},"In-State"]
[null,null,null,null,null,null,null,null,null,{"$f":"IFERROR(INDEX(raw_resource_build!$B$2:$B$1000,MATCH(0,COUNTIF($J$1:J848,raw_resource_build!$B$2:$B$1000), 0),0), \"\")","v":""},{"$f":"IF(J849=\"\", \"\", INDEX(raw_resource_build!E:E, MATCH(J849, raw_resource_build!B:B, 0)))","v":""},{"$f":"IF(J849=\"\", \"\", INDEX(raw_resource_build!C:C, MATCH(J849, raw_resource_build!B:B, 0)))","v":""},null,{"$f":"raw_resource_build!B849","v":"CAISO_Shed_DR_Tranche5"},"Non-wind",{"$f":"IFERROR(INDEX($E$5:$E$32,MATCH(raw_resource_build!$E849,Lists!$B$5:$B$32,0)),\"Non-CAISO\")","v":"Shed DR"},null,{"$f":"raw_annual_energy!C849","v":"Solano_subzone_Solar"},{"$f":"INDEX(K:K,MATCH(R849,Lists!J:J,0))","v":"Solar"},"In-State"]
[null,null,null,null,null,null,null,null,null,{"$f":"IFERROR(INDEX(raw_resource_build!$B$2:$B$1000,MATCH(0,COUNTIF($J$1:J849,raw_resource_build!$B$2:$B$1000), 0),0), \"\")","v":""},{"$f":"IF(J850=\"\", \"\", INDEX(raw_resource_build!E:E, MATCH(J850, raw_resource_build!B:B, 0)))","v":""},{"$f":"IF(J850=\"\", \"\", INDEX(raw_resource_build!C:C, MATCH(J850, raw_resource_build!B:B, 0)))","v":""},null,{"$f":"raw_resource_build!B850","v":"CAISO_Shed_DR_Tranche6"},"Non-wind",{"$f":"IFERROR(INDEX($E$5:$E$32,MATCH(raw_resource_build!$E850,Lists!$B$5:$B$32,0)),\"Non-CAISO\")","v":"Shed DR"},null,{"$f":"raw_annual_energy!C850","v":"Solano_subzone_Solar"},{"$f":"INDEX(K:K,MATCH(R850,Lists!J:J,0))","v":"Solar"},"In-State"]
[null,null,null,null,null,null,null,null,null,{"$f":"IFERROR(INDEX(raw_resource_build!$B$2:$B$1000,MATCH(0,COUNTIF($J$1:J850,raw_resource_build!$B$2:$B$1000), 0),0), \"\")","v":""},{"$f":"IF(J851=\"\", \"\", INDEX(raw_resource_build!E:E, MATCH(J851, raw_resource_build!B:B, 0)))","v":""},{"$f":"IF(J851=\"\", \"\", INDEX(raw_resource_build!C:C, MATCH(J851, raw_resource_build!B:B, 0)))","v":""},null,{"$f":"raw_resource_build!B851","v":"CAISO_Shed_DR_Tranche7"},"Non-wind",{"$f":"IFERROR(INDEX($E$5:$E$32,MATCH(raw_resource_build!$E851,Lists!$B$5:$B$32,0)),\"Non-CAISO\")","v":"Shed DR"},null,{"$f":"raw_annual_energy!C851","v":"Solano_subzone_Wind"},{"$f":"INDEX(K:K,MATCH(R851,Lists!J:J,0))","v":"Wind"},"In-State"]
[null,null,null,null,null,null,null,null,null,{"$f":"IFERROR(INDEX(raw_resource_build!$B$2:$B$1000,MATCH(0,COUNTIF($J$1:J851,raw_resource_build!$B$2:$B$1000), 0),0), \"\")","v":""},{"$f":"IF(J852=\"\", \"\", INDEX(raw_resource_build!E:E, MATCH(J852, raw_resource_build!B:B, 0)))","v":""},{"$f":"IF(J852=\"\", \"\", INDEX(raw_resource_build!C:C, MATCH(J852, raw_resource_build!B:B, 0)))","v":""},null,{"$f":"raw_resource_build!B852","v":"CAISO_Shed_DR_Tranche8"},"Non-wind",{"$f":"IFERROR(INDEX($E$5:$E$32,MATCH(raw_resource_build!$E852,Lists!$B$5:$B$32,0)),\"Non-CAISO\")","v":"Shed DR"},null,{"$f":"raw_annual_energy!C852","v":"Solano_subzone_Wind"},{"$f":"INDEX(K:K,MATCH(R852,Lists!J:J,0))","v":"Wind"},"In-State"]
[null,null,null,null,null,null,null,null,null,{"$f":"IFERROR(INDEX(raw_resource_build!$B$2:$B$1000,MATCH(0,COUNTIF($J$1:J852,raw_resource_build!$B$2:$B$1000), 0),0), \"\")","v":""},{"$f":"IF(J853=\"\", \"\", INDEX(raw_resource_build!E:E, MATCH(J853, raw_resource_build!B:B, 0)))","v":""},{"$f":"IF(J853=\"\", \"\", INDEX(raw_resource_build!C:C, MATCH(J853, raw_resource_build!B:B, 0)))","v":""},null,{"$f":"raw_resource_build!B853","v":"CAISO_CHP"},"Non-wind",{"$f":"IFERROR(INDEX($E$5:$E$32,MATCH(raw_resource_build!$E853,Lists!$B$5:$B$32,0)),\"Non-CAISO\")","v":"CHP"},null,{"$f":"raw_annual_energy!C853","v":"Solano_subzone_Wind"},{"$f":"INDEX(K:K,MATCH(R853,Lists!J:J,0))","v":"Wind"},"In-State"]
[null,null,null,null,null,null,null,null,null,{"$f":"IFERROR(INDEX(raw_resource_build!$B$2:$B$1000,MATCH(0,COUNTIF($J$1:J853,raw_resource_build!$B$2:$B$1000), 0),0), \"\")","v":""},{"$f":"IF(J854=\"\", \"\", INDEX(raw_resource_build!E:E, MATCH(J854, raw_resource_build!B:B, 0)))","v":""},{"$f":"IF(J854=\"\", \"\", INDEX(raw_resource_build!C:C, MATCH(J854, raw_resource_build!B:B, 0)))","v":""},null,{"$f":"raw_resource_build!B854","v":"CAISO_Nuclear"},"Non-wind",{"$f":"IFERROR(INDEX($E$5:$E$32,MATCH(raw_resource_build!$E854,Lists!$B$5:$B$32,0)),\"Non-CAISO\")","v":"Nuclear"},null,{"$f":"raw_annual_energy!C854","v":"Solano_subzone_Wind"},{"$f":"INDEX(K:K,MATCH(R854,Lists!J:J,0))","v":"Wind"},"In-State"]
[null,null,null,null,null,null,null,null,null,{"$f":"IFERROR(INDEX(raw_resource_build!$B$2:$B$1000,MATCH(0,COUNTIF($J$1:J854,raw_resource_build!$B$2:$B$1000), 0),0), \"\")","v":""},{"$f":"IF(J855=\"\", \"\", INDEX(raw_resource_build!E:E, MATCH(J855, raw_resource_build!B:B, 0)))","v":""},{"$f":"IF(J855=\"\", \"\", INDEX(raw_resource_build!C:C, MATCH(J855, raw_resource_build!B:B, 0)))","v":""},null,{"$f":"raw_resource_build!B855","v":"CAISO_CCGT1"},"Non-wind",{"$f":"IFERROR(INDEX($E$5:$E$32,MATCH(raw_resource_build!$E855,Lists!$B$5:$B$32,0)),\"Non-CAISO\")","v":"CCGT"},null,{"$f":"raw_annual_energy!C855","v":"Solano_subzone_Wind"},{"$f":"INDEX(K:K,MATCH(R855,Lists!J:J,0))","v":"Wind"},"In-State"]
[null,null,null,null,null,null,null,null,null,{"$f":"IFERROR(INDEX(raw_resource_build!$B$2:$B$1000,MATCH(0,COUNTIF($J$1:J855,raw_resource_build!$B$2:$B$1000), 0),0), \"\")","v":""},{"$f":"IF(J856=\"\", \"\", INDEX(raw_resource_build!E:E, MATCH(J856, raw_resource_build!B:B, 0)))","v":""},{"$f":"IF(J856=\"\", \"\", INDEX(raw_resource_build!C:C, MATCH(J856, raw_resource_build!B:B, 0)))","v":""},null,{"$f":"raw_resource_build!B856","v":"CAISO_CCGT2"},"Non-wind",{"$f":"IFERROR(INDEX($E$5:$E$32,MATCH(raw_resource_build!$E856,Lists!$B$5:$B$32,0)),\"Non-CAISO\")","v":"CCGT"},null,{"$f":"raw_annual_energy!C856","v":"Solano_subzone_Wind"},{"$f":"INDEX(K:K,MATCH(R856,Lists!J:J,0))","v":"Wind"},"In-State"]
[null,null,null,null,null,null,null,null,null,{"$f":"IFERROR(INDEX(raw_resource_build!$B$2:$B$1000,MATCH(0,COUNTIF($J$1:J856,raw_resource_build!$B$2:$B$1000), 0),0), \"\")","v":""},{"$f":"IF(J857=\"\", \"\", INDEX(raw_resource_build!E:E, MATCH(J857, raw_resource_build!B:B, 0)))","v":""},{"$f":"IF(J857=\"\", \"\", INDEX(raw_resource_build!C:C, MATCH(J857, raw_resource_build!B:B, 0)))","v":""},null,{"$f":"raw_resource_build!B857","v":"CAISO_Coal"},"Non-wind",{"$f":"IFERROR(INDEX($E$5:$E$32,MATCH(raw_resource_build!$E857,Lists!$B$5:$B$32,0)),\"Non-CAISO\")","v":"Coal"},null,{"$f":"raw_annual_energy!C857","v":"Solano_subzone_Wind"},{"$f":"INDEX(K:K,MATCH(R857,Lists!J:J,0))","v":"Wind"},"In-State"]
[null,null,null,null,null,null,null,null,null,{"$f":"IFERROR(INDEX(raw_resource_build!$B$2:$B$1000,MATCH(0,COUNTIF($J$1:J857,raw_resource_build!$B$2:$B$1000), 0),0), \"\")","v":""},{"$f":"IF(J858=\"\", \"\", INDEX(raw_resource_build!E:E, MATCH(J858, raw_resource_build!B:B, 0)))","v":""},{"$f":"IF(J858=\"\", \"\", INDEX(raw_resource_build!C:C, MATCH(J858, raw_resource_build!B:B, 0)))","v":""},null,{"$f":"raw_resource_build!B858","v":"CAISO_Peaker1"},"Non-wind",{"$f":"IFERROR(INDEX($E$5:$E$32,MATCH(raw_resource_build!$E858,Lists!$B$5:$B$32,0)),\"Non-CAISO\")","v":"Peaker"},null,{"$f":"raw_annual_energy!C858","v":"Solano_subzone_Wind"},{"$f":"INDEX(K:K,MATCH(R858,Lists!J:J,0))","v":"Wind"},"In-State"]
[null,null,null,null,null,null,null,null,null,{"$f":"IFERROR(INDEX(raw_resource_build!$B$2:$B$1000,MATCH(0,COUNTIF($J$1:J858,raw_resource_build!$B$2:$B$1000), 0),0), \"\")","v":""},{"$f":"IF(J859=\"\", \"\", INDEX(raw_resource_build!E:E, MATCH(J859, raw_resource_build!B:B, 0)))","v":""},{"$f":"IF(J859=\"\", \"\", INDEX(raw_resource_build!C:C, MATCH(J859, raw_resource_build!B:B, 0)))","v":""},null,{"$f":"raw_resource_build!B859","v":"CAISO_Peaker2"},"Non-wind",{"$f":"IFERROR(INDEX($E$5:$E$32,MATCH(raw_resource_build!$E859,Lists!$B$5:$B$32,0)),\"Non-CAISO\")","v":"Peaker"},null,{"$f":"raw_annual_energy!C859","v":"Southern_California_Desert_Ex_Solar"},{"$f":"INDEX(K:K,MATCH(R859,Lists!J:J,0))","v":"Solar"},"In-State"]
[null,null,null,null,null,null,null,null,null,{"$f":"IFERROR(INDEX(raw_resource_build!$B$2:$B$1000,MATCH(0,COUNTIF($J$1:J859,raw_resource_build!$B$2:$B$1000), 0),0), \"\")","v":""},{"$f":"IF(J860=\"\", \"\", INDEX(raw_resource_build!E:E, MATCH(J860, raw_resource_build!B:B, 0)))","v":""},{"$f":"IF(J860=\"\", \"\", INDEX(raw_resource_build!C:C, MATCH(J860, raw_resource_build!B:B, 0)))","v":""},null,{"$f":"raw_resource_build!B860","v":"CAISO_Advanced_CCGT"},"Non-wind",{"$f":"IFERROR(INDEX($E$5:$E$32,MATCH(raw_resource_build!$E860,Lists!$B$5:$B$32,0)),\"Non-CAISO\")","v":"CCGT"},null,{"$f":"raw_annual_energy!C860","v":"Southern_California_Desert_Ex_Solar"},{"$f":"INDEX(K:K,MATCH(R860,Lists!J:J,0))","v":"Solar"},"In-State"]
[null,null,null,null,null,null,null,null,null,{"$f":"IFERROR(INDEX(raw_resource_build!$B$2:$B$1000,MATCH(0,COUNTIF($J$1:J860,raw_resource_build!$B$2:$B$1000), 0),0), \"\")","v":""},{"$f":"IF(J861=\"\", \"\", INDEX(raw_resource_build!E:E, MATCH(J861, raw_resource_build!B:B, 0)))","v":""},{"$f":"IF(J861=\"\", \"\", INDEX(raw_resource_build!C:C, MATCH(J861, raw_resource_build!B:B, 0)))","v":""},null,{"$f":"raw_resource_build!B861","v":"CAISO_Aero_CT"},"Non-wind",{"$f":"IFERROR(INDEX($E$5:$E$32,MATCH(raw_resource_build!$E861,Lists!$B$5:$B$32,0)),\"Non-CAISO\")","v":"Peaker"},null,{"$f":"raw_annual_energy!C861","v":"Southern_California_Desert_Ex_Solar"},{"$f":"INDEX(K:K,MATCH(R861,Lists!J:J,0))","v":"Solar"},"In-State"]
[null,null,null,null,null,null,null,null,null,{"$f":"IFERROR(INDEX(raw_resource_build!$B$2:$B$1000,MATCH(0,COUNTIF($J$1:J861,raw_resource_build!$B$2:$B$1000), 0),0), \"\")","v":""},{"$f":"IF(J862=\"\", \"\", INDEX(raw_resource_build!E:E, MATCH(J862, raw_resource_build!B:B, 0)))","v":""},{"$f":"IF(J862=\"\", \"\", INDEX(raw_resource_build!C:C, MATCH(J862, raw_resource_build!B:B, 0)))","v":""},null,{"$f":"raw_resource_build!B862","v":"CAISO_Reciprocating_Engine"},"Non-wind",{"$f":"IFERROR(INDEX($E$5:$E$32,MATCH(raw_resource_build!$E862,Lists!$B$5:$B$32,0)),\"Non-CAISO\")","v":"Peaker"},null,{"$f":"raw_annual_energy!C862","v":"Southern_California_Desert_Ex_Solar"},{"$f":"INDEX(K:K,MATCH(R862,Lists!J:J,0))","v":"Solar"},"In-State"]
[null,null,null,null,null,null,null,null,null,{"$f":"IFERROR(INDEX(raw_resource_build!$B$2:$B$1000,MATCH(0,COUNTIF($J$1:J862,raw_resource_build!$B$2:$B$1000), 0),0), \"\")","v":""},{"$f":"IF(J863=\"\", \"\", INDEX(raw_resource_build!E:E, MATCH(J863, raw_resource_build!B:B, 0)))","v":""},{"$f":"IF(J863=\"\", \"\", INDEX(raw_resource_build!C:C, MATCH(J863, raw_resource_build!B:B, 0)))","v":""},null,{"$f":"raw_resource_build!B863","v":"CAISO_ST"},"Non-wind",{"$f":"IFERROR(INDEX($E$5:$E$32,MATCH(raw_resource_build!$E863,Lists!$B$5:$B$32,0)),\"Non-CAISO\")","v":"Steam Turbine"},null,{"$f":"raw_annual_energy!C863","v":"Southern_California_Desert_Ex_Solar"},{"$f":"INDEX(K:K,MATCH(R863,Lists!J:J,0))","v":"Solar"},"In-State"]
[null,null,null,null,null,null,null,null,null,{"$f":"IFERROR(INDEX(raw_resource_build!$B$2:$B$1000,MATCH(0,COUNTIF($J$1:J863,raw_resource_build!$B$2:$B$1000), 0),0), \"\")","v":""},{"$f":"IF(J864=\"\", \"\", INDEX(raw_resource_build!E:E, MATCH(J864, raw_resource_build!B:B, 0)))","v":""},{"$f":"IF(J864=\"\", \"\", INDEX(raw_resource_build!C:C, MATCH(J864, raw_resource_build!B:B, 0)))","v":""},null,{"$f":"raw_resource_build!B864","v":"NW_Nuclear"},"Non-wind",{"$f":"IFERROR(INDEX($E$5:$E$32,MATCH(raw_resource_build!$E864,Lists!$B$5:$B$32,0)),\"Non-CAISO\")","v":"Non-CAISO"},null,{"$f":"raw_annual_energy!C864","v":"Southern_California_Desert_Ex_Solar"},{"$f":"INDEX(K:K,MATCH(R864,Lists!J:J,0))","v":"Solar"},"In-State"]
[null,null,null,null,null,null,null,null,null,{"$f":"IFERROR(INDEX(raw_resource_build!$B$2:$B$1000,MATCH(0,COUNTIF($J$1:J864,raw_resource_build!$B$2:$B$1000), 0),0), \"\")","v":""},{"$f":"IF(J865=\"\", \"\", INDEX(raw_resource_build!E:E, MATCH(J865, raw_resource_build!B:B, 0)))","v":""},{"$f":"IF(J865=\"\", \"\", INDEX(raw_resource_build!C:C, MATCH(J865, raw_resource_build!B:B, 0)))","v":""},null,{"$f":"raw_resource_build!B865","v":"NW_Coal"},"Non-wind",{"$f":"IFERROR(INDEX($E$5:$E$32,MATCH(raw_resource_build!$E865,Lists!$B$5:$B$32,0)),\"Non-CAISO\")","v":"Non-CAISO"},null,{"$f":"raw_annual_energy!C865","v":"Southern_California_Desert_Ex_Solar"},{"$f":"INDEX(K:K,MATCH(R865,Lists!J:J,0))","v":"Solar"},"In-State"]
[null,null,null,null,null,null,null,null,null,{"$f":"IFERROR(INDEX(raw_resource_build!$B$2:$B$1000,MATCH(0,COUNTIF($J$1:J865,raw_resource_build!$B$2:$B$1000), 0),0), \"\")","v":""},{"$f":"IF(J866=\"\", \"\", INDEX(raw_resource_build!E:E, MATCH(J866, raw_resource_build!B:B, 0)))","v":""},{"$f":"IF(J866=\"\", \"\", INDEX(raw_resource_build!C:C, MATCH(J866, raw_resource_build!B:B, 0)))","v":""},null,{"$f":"raw_resource_build!B866","v":"NW_CCGT"},"Non-wind",{"$f":"IFERROR(INDEX($E$5:$E$32,MATCH(raw_resource_build!$E866,Lists!$B$5:$B$32,0)),\"Non-CAISO\")","v":"Non-CAISO"},null,{"$f":"raw_annual_energy!C866","v":"Southern_California_Desert_Ex_Solar"},{"$f":"INDEX(K:K,MATCH(R866,Lists!J:J,0))","v":"Solar"},"In-State"]
[null,null,null,null,null,null,null,null,null,{"$f":"IFERROR(INDEX(raw_resource_build!$B$2:$B$1000,MATCH(0,COUNTIF($J$1:J866,raw_resource_build!$B$2:$B$1000), 0),0), \"\")","v":""},{"$f":"IF(J867=\"\", \"\", INDEX(raw_resource_build!E:E, MATCH(J867, raw_resource_build!B:B, 0)))","v":""},{"$f":"IF(J867=\"\", \"\", INDEX(raw_resource_build!C:C, MATCH(J867, raw_resource_build!B:B, 0)))","v":""},null,{"$f":"raw_resource_build!B867","v":"NW_Peaker"},"Non-wind",{"$f":"IFERROR(INDEX($E$5:$E$32,MATCH(raw_resource_build!$E867,Lists!$B$5:$B$32,0)),\"Non-CAISO\")","v":"Non-CAISO"},null,{"$f":"raw_annual_energy!C867","v":"Southern_California_Desert_Ex_Wind"},{"$f":"INDEX(K:K,MATCH(R867,Lists!J:J,0))","v":"Wind"},"In-State"]
[null,null,null,null,null,null,null,null,null,{"$f":"IFERROR(INDEX(raw_resource_build!$B$2:$B$1000,MATCH(0,COUNTIF($J$1:J867,raw_resource_build!$B$2:$B$1000), 0),0), \"\")","v":""},{"$f":"IF(J868=\"\", \"\", INDEX(raw_resource_build!E:E, MATCH(J868, raw_resource_build!B:B, 0)))","v":""},{"$f":"IF(J868=\"\", \"\", INDEX(raw_resource_build!C:C, MATCH(J868, raw_resource_build!B:B, 0)))","v":""},null,{"$f":"raw_resource_build!B868","v":"SW_Nuclear"},"Non-wind",{"$f":"IFERROR(INDEX($E$5:$E$32,MATCH(raw_resource_build!$E868,Lists!$B$5:$B$32,0)),\"Non-CAISO\")","v":"Non-CAISO"},null,{"$f":"raw_annual_energy!C868","v":"Southern_California_Desert_Ex_Wind"},{"$f":"INDEX(K:K,MATCH(R868,Lists!J:J,0))","v":"Wind"},"In-State"]
[null,null,null,null,null,null,null,null,null,{"$f":"IFERROR(INDEX(raw_resource_build!$B$2:$B$1000,MATCH(0,COUNTIF($J$1:J868,raw_resource_build!$B$2:$B$1000), 0),0), \"\")","v":""},{"$f":"IF(J869=\"\", \"\", INDEX(raw_resource_build!E:E, MATCH(J869, raw_resource_build!B:B, 0)))","v":""},{"$f":"IF(J869=\"\", \"\", INDEX(raw_resource_build!C:C, MATCH(J869, raw_resource_build!B:B, 0)))","v":""},null,{"$f":"raw_resource_build!B869","v":"SW_Coal"},"Non-wind",{"$f":"IFERROR(INDEX($E$5:$E$32,MATCH(raw_resource_build!$E869,Lists!$B$5:$B$32,0)),\"Non-CAISO\")","v":"Non-CAISO"},null,{"$f":"raw_annual_energy!C869","v":"Southern_California_Desert_Ex_Wind"},{"$f":"INDEX(K:K,MATCH(R869,Lists!J:J,0))","v":"Wind"},"In-State"]
[null,null,null,null,null,null,null,null,null,{"$f":"IFERROR(INDEX(raw_resource_build!$B$2:$B$1000,MATCH(0,COUNTIF($J$1:J869,raw_resource_build!$B$2:$B$1000), 0),0), \"\")","v":""},{"$f":"IF(J870=\"\", \"\", INDEX(raw_resource_build!E:E, MATCH(J870, raw_resource_build!B:B, 0)))","v":""},{"$f":"IF(J870=\"\", \"\", INDEX(raw_resource_build!C:C, MATCH(J870, raw_resource_build!B:B, 0)))","v":""},null,{"$f":"raw_resource_build!B870","v":"SW_CCGT"},"Non-wind",{"$f":"IFERROR(INDEX($E$5:$E$32,MATCH(raw_resource_build!$E870,Lists!$B$5:$B$32,0)),\"Non-CAISO\")","v":"Non-CAISO"},null,{"$f":"raw_annual_energy!C870","v":"Southern_California_Desert_Ex_Wind"},{"$f":"INDEX(K:K,MATCH(R870,Lists!J:J,0))","v":"Wind"},"In-State"]
[null,null,null,null,null,null,null,null,null,{"$f":"IFERROR(INDEX(raw_resource_build!$B$2:$B$1000,MATCH(0,COUNTIF($J$1:J870,raw_resource_build!$B$2:$B$1000), 0),0), \"\")","v":""},{"$f":"IF(J871=\"\", \"\", INDEX(raw_resource_build!E:E, MATCH(J871, raw_resource_build!B:B, 0)))","v":""},{"$f":"IF(J871=\"\", \"\", INDEX(raw_resource_build!C:C, MATCH(J871, raw_resource_build!B:B, 0)))","v":""},null,{"$f":"raw_resource_build!B871","v":"SW_Peaker"},"Non-wind",{"$f":"IFERROR(INDEX($E$5:$E$32,MATCH(raw_resource_build!$E871,Lists!$B$5:$B$32,0)),\"Non-CAISO\")","v":"Non-CAISO"},null,{"$f":"raw_annual_energy!C871","v":"Southern_California_Desert_Ex_Wind"},{"$f":"INDEX(K:K,MATCH(R871,Lists!J:J,0))","v":"Wind"},"In-State"]
[null,null,null,null,null,null,null,null,null,{"$f":"IFERROR(INDEX(raw_resource_build!$B$2:$B$1000,MATCH(0,COUNTIF($J$1:J871,raw_resource_build!$B$2:$B$1000), 0),0), \"\")","v":""},{"$f":"IF(J872=\"\", \"\", INDEX(raw_resource_build!E:E, MATCH(J872, raw_resource_build!B:B, 0)))","v":""},{"$f":"IF(J872=\"\", \"\", INDEX(raw_resource_build!C:C, MATCH(J872, raw_resource_build!B:B, 0)))","v":""},null,{"$f":"raw_resource_build!B872","v":"SW_ST"},"Non-wind",{"$f":"IFERROR(INDEX($E$5:$E$32,MATCH(raw_resource_build!$E872,Lists!$B$5:$B$32,0)),\"Non-CAISO\")","v":"Non-CAISO"},null,{"$f":"raw_annual_energy!C872","v":"Southern_California_Desert_Ex_Wind"},{"$f":"INDEX(K:K,MATCH(R872,Lists!J:J,0))","v":"Wind"},"In-State"]
[null,null,null,null,null,null,null,null,null,{"$f":"IFERROR(INDEX(raw_resource_build!$B$2:$B$1000,MATCH(0,COUNTIF($J$1:J872,raw_resource_build!$B$2:$B$1000), 0),0), \"\")","v":""},{"$f":"IF(J873=\"\", \"\", INDEX(raw_resource_build!E:E, MATCH(J873, raw_resource_build!B:B, 0)))","v":""},{"$f":"IF(J873=\"\", \"\", INDEX(raw_resource_build!C:C, MATCH(J873, raw_resource_build!B:B, 0)))","v":""},null,{"$f":"raw_resource_build!B873","v":"LDWP_Nuclear"},"Non-wind",{"$f":"IFERROR(INDEX($E$5:$E$32,MATCH(raw_resource_build!$E873,Lists!$B$5:$B$32,0)),\"Non-CAISO\")","v":"Non-CAISO"},null,{"$f":"raw_annual_energy!C873","v":"Southern_California_Desert_Ex_Wind"},{"$f":"INDEX(K:K,MATCH(R873,Lists!J:J,0))","v":"Wind"},"In-State"]
[null,null,null,null,null,null,null,null,null,{"$f":"IFERROR(INDEX(raw_resource_build!$B$2:$B$1000,MATCH(0,COUNTIF($J$1:J873,raw_resource_build!$B$2:$B$1000), 0),0), \"\")","v":""},{"$f":"IF(J874=\"\", \"\", INDEX(raw_resource_build!E:E, MATCH(J874, raw_resource_build!B:B, 0)))","v":""},{"$f":"IF(J874=\"\", \"\", INDEX(raw_resource_build!C:C, MATCH(J874, raw_resource_build!B:B, 0)))","v":""},null,{"$f":"raw_resource_build!B874","v":"LDWP_Coal"},"Non-wind",{"$f":"IFERROR(INDEX($E$5:$E$32,MATCH(raw_resource_build!$E874,Lists!$B$5:$B$32,0)),\"Non-CAISO\")","v":"Non-CAISO"},null,{"$f":"raw_annual_energy!C874","v":"Southern_California_Desert_Ex_Wind"},{"$f":"INDEX(K:K,MATCH(R874,Lists!J:J,0))","v":"Wind"},"In-State"]
[null,null,null,null,null,null,null,null,null,{"$f":"IFERROR(INDEX(raw_resource_build!$B$2:$B$1000,MATCH(0,COUNTIF($J$1:J874,raw_resource_build!$B$2:$B$1000), 0),0), \"\")","v":""},{"$f":"IF(J875=\"\", \"\", INDEX(raw_resource_build!E:E, MATCH(J875, raw_resource_build!B:B, 0)))","v":""},{"$f":"IF(J875=\"\", \"\", INDEX(raw_resource_build!C:C, MATCH(J875, raw_resource_build!B:B, 0)))","v":""},null,{"$f":"raw_resource_build!B875","v":"LDWP_CCGT"},"Non-wind",{"$f":"IFERROR(INDEX($E$5:$E$32,MATCH(raw_resource_build!$E875,Lists!$B$5:$B$32,0)),\"Non-CAISO\")","v":"Non-CAISO"},null,{"$f":"raw_annual_energy!C875","v":"Southern_Nevada_Geothermal"},{"$f":"INDEX(K:K,MATCH(R875,Lists!J:J,0))","v":"Geothermal"},"In-State"]
[null,null,null,null,null,null,null,null,null,{"$f":"IFERROR(INDEX(raw_resource_build!$B$2:$B$1000,MATCH(0,COUNTIF($J$1:J875,raw_resource_build!$B$2:$B$1000), 0),0), \"\")","v":""},{"$f":"IF(J876=\"\", \"\", INDEX(raw_resource_build!E:E, MATCH(J876, raw_resource_build!B:B, 0)))","v":""},{"$f":"IF(J876=\"\", \"\", INDEX(raw_resource_build!C:C, MATCH(J876, raw_resource_build!B:B, 0)))","v":""},null,{"$f":"raw_resource_build!B876","v":"LDWP_Peaker"},"Non-wind",{"$f":"IFERROR(INDEX($E$5:$E$32,MATCH(raw_resource_build!$E876,Lists!$B$5:$B$32,0)),\"Non-CAISO\")","v":"Non-CAISO"},null,{"$f":"raw_annual_energy!C876","v":"Southern_Nevada_Geothermal"},{"$f":"INDEX(K:K,MATCH(R876,Lists!J:J,0))","v":"Geothermal"},"In-State"]
[null,null,null,null,null,null,null,null,null,{"$f":"IFERROR(INDEX(raw_resource_build!$B$2:$B$1000,MATCH(0,COUNTIF($J$1:J876,raw_resource_build!$B$2:$B$1000), 0),0), \"\")","v":""},{"$f":"IF(J877=\"\", \"\", INDEX(raw_resource_build!E:E, MATCH(J877, raw_resource_build!B:B, 0)))","v":""},{"$f":"IF(J877=\"\", \"\", INDEX(raw_resource_build!C:C, MATCH(J877, raw_resource_build!B:B, 0)))","v":""},null,{"$f":"raw_resource_build!B877","v":"LDWP_ST"},"Non-wind",{"$f":"IFERROR(INDEX($E$5:$E$32,MATCH(raw_resource_build!$E877,Lists!$B$5:$B$32,0)),\"Non-CAISO\")","v":"Non-CAISO"},null,{"$f":"raw_annual_energy!C877","v":"Southern_Nevada_Geothermal"},{"$f":"INDEX(K:K,MATCH(R877,Lists!J:J,0))","v":"Geothermal"},"In-State"]
[null,null,null,null,null,null,null,null,null,{"$f":"IFERROR(INDEX(raw_resource_build!$B$2:$B$1000,MATCH(0,COUNTIF($J$1:J877,raw_resource_build!$B$2:$B$1000), 0),0), \"\")","v":""},{"$f":"IF(J878=\"\", \"\", INDEX(raw_resource_build!E:E, MATCH(J878, raw_resource_build!B:B, 0)))","v":""},{"$f":"IF(J878=\"\", \"\", INDEX(raw_resource_build!C:C, MATCH(J878, raw_resource_build!B:B, 0)))","v":""},null,{"$f":"raw_resource_build!B878","v":"IID_CCGT"},"Non-wind",{"$f":"IFERROR(INDEX($E$5:$E$32,MATCH(raw_resource_build!$E878,Lists!$B$5:$B$32,0)),\"Non-CAISO\")","v":"Non-CAISO"},null,{"$f":"raw_annual_energy!C878","v":"Southern_Nevada_Geothermal"},{"$f":"INDEX(K:K,MATCH(R878,Lists!J:J,0))","v":"Geothermal"},"In-State"]
[null,null,null,null,null,null,null,null,null,{"$f":"IFERROR(INDEX(raw_resource_build!$B$2:$B$1000,MATCH(0,COUNTIF($J$1:J878,raw_resource_build!$B$2:$B$1000), 0),0), \"\")","v":""},{"$f":"IF(J879=\"\", \"\", INDEX(raw_resource_build!E:E, MATCH(J879, raw_resource_build!B:B, 0)))","v":""},{"$f":"IF(J879=\"\", \"\", INDEX(raw_resource_build!C:C, MATCH(J879, raw_resource_build!B:B, 0)))","v":""},null,{"$f":"raw_resource_build!B879","v":"IID_Peaker"},"Non-wind",{"$f":"IFERROR(INDEX($E$5:$E$32,MATCH(raw_resource_build!$E879,Lists!$B$5:$B$32,0)),\"Non-CAISO\")","v":"Non-CAISO"},null,{"$f":"raw_annual_energy!C879","v":"Southern_Nevada_Geothermal"},{"$f":"INDEX(K:K,MATCH(R879,Lists!J:J,0))","v":"Geothermal"},"In-State"]
[null,null,null,null,null,null,null,null,null,{"$f":"IFERROR(INDEX(raw_resource_build!$B$2:$B$1000,MATCH(0,COUNTIF($J$1:J879,raw_resource_build!$B$2:$B$1000), 0),0), \"\")","v":""},{"$f":"IF(J880=\"\", \"\", INDEX(raw_resource_build!E:E, MATCH(J880, raw_resource_build!B:B, 0)))","v":""},{"$f":"IF(J880=\"\", \"\", INDEX(raw_resource_build!C:C, MATCH(J880, raw_resource_build!B:B, 0)))","v":""},null,{"$f":"raw_resource_build!B880","v":"BANC_CCGT"},"Non-wind",{"$f":"IFERROR(INDEX($E$5:$E$32,MATCH(raw_resource_build!$E880,Lists!$B$5:$B$32,0)),\"Non-CAISO\")","v":"Non-CAISO"},null,{"$f":"raw_annual_energy!C880","v":"Southern_Nevada_Geothermal"},{"$f":"INDEX(K:K,MATCH(R880,Lists!J:J,0))","v":"Geothermal"},"In-State"]
[null,null,null,null,null,null,null,null,null,{"$f":"IFERROR(INDEX(raw_resource_build!$B$2:$B$1000,MATCH(0,COUNTIF($J$1:J880,raw_resource_build!$B$2:$B$1000), 0),0), \"\")","v":""},{"$f":"IF(J881=\"\", \"\", INDEX(raw_resource_build!E:E, MATCH(J881, raw_resource_build!B:B, 0)))","v":""},{"$f":"IF(J881=\"\", \"\", INDEX(raw_resource_build!C:C, MATCH(J881, raw_resource_build!B:B, 0)))","v":""},null,{"$f":"raw_resource_build!B881","v":"BANC_Peaker"},"Non-wind",{"$f":"IFERROR(INDEX($E$5:$E$32,MATCH(raw_resource_build!$E881,Lists!$B$5:$B$32,0)),\"Non-CAISO\")","v":"Non-CAISO"},null,{"$f":"raw_annual_energy!C881","v":"Southern_Nevada_Geothermal"},{"$f":"INDEX(K:K,MATCH(R881,Lists!J:J,0))","v":"Geothermal"},"In-State"]
[null,null,null,null,null,null,null,null,null,{"$f":"IFERROR(INDEX(raw_resource_build!$B$2:$B$1000,MATCH(0,COUNTIF($J$1:J881,raw_resource_build!$B$2:$B$1000), 0),0), \"\")","v":""},{"$f":"IF(J882=\"\", \"\", INDEX(raw_resource_build!E:E, MATCH(J882, raw_resource_build!B:B, 0)))","v":""},{"$f":"IF(J882=\"\", \"\", INDEX(raw_resource_build!C:C, MATCH(J882, raw_resource_build!B:B, 0)))","v":""},null,{"$f":"raw_resource_build!B882","v":"BANC_Biomass_for_Other"},"Non-wind",{"$f":"IFERROR(INDEX($E$5:$E$32,MATCH(raw_resource_build!$E882,Lists!$B$5:$B$32,0)),\"Non-CAISO\")","v":"Biomass"},null,{"$f":"raw_annual_energy!C882","v":"Southern_Nevada_Geothermal"},{"$f":"INDEX(K:K,MATCH(R882,Lists!J:J,0))","v":"Geothermal"},"In-State"]
[null,null,null,null,null,null,null,null,null,{"$f":"IFERROR(INDEX(raw_resource_build!$B$2:$B$1000,MATCH(0,COUNTIF($J$1:J882,raw_resource_build!$B$2:$B$1000), 0),0), \"\")","v":""},{"$f":"IF(J883=\"\", \"\", INDEX(raw_resource_build!E:E, MATCH(J883, raw_resource_build!B:B, 0)))","v":""},{"$f":"IF(J883=\"\", \"\", INDEX(raw_resource_build!C:C, MATCH(J883, raw_resource_build!B:B, 0)))","v":""},null,{"$f":"raw_resource_build!B883","v":"BANC_Geothermal_for_Other"},"Non-wind",{"$f":"IFERROR(INDEX($E$5:$E$32,MATCH(raw_resource_build!$E883,Lists!$B$5:$B$32,0)),\"Non-CAISO\")","v":"Geothermal"},null,{"$f":"raw_annual_energy!C883","v":"Southern_Nevada_Solar"},{"$f":"INDEX(K:K,MATCH(R883,Lists!J:J,0))","v":"Solar"},"In-State"]
[null,null,null,null,null,null,null,null,null,{"$f":"IFERROR(INDEX(raw_resource_build!$B$2:$B$1000,MATCH(0,COUNTIF($J$1:J883,raw_resource_build!$B$2:$B$1000), 0),0), \"\")","v":""},{"$f":"IF(J884=\"\", \"\", INDEX(raw_resource_build!E:E, MATCH(J884, raw_resource_build!B:B, 0)))","v":""},{"$f":"IF(J884=\"\", \"\", INDEX(raw_resource_build!C:C, MATCH(J884, raw_resource_build!B:B, 0)))","v":""},null,{"$f":"raw_resource_build!B884","v":"CAISO_Biomass_for_Other"},"Non-wind",{"$f":"IFERROR(INDEX($E$5:$E$32,MATCH(raw_resource_build!$E884,Lists!$B$5:$B$32,0)),\"Non-CAISO\")","v":"Biomass"},null,{"$f":"raw_annual_energy!C884","v":"Southern_Nevada_Solar"},{"$f":"INDEX(K:K,MATCH(R884,Lists!J:J,0))","v":"Solar"},"In-State"]
[null,null,null,null,null,null,null,null,null,{"$f":"IFERROR(INDEX(raw_resource_build!$B$2:$B$1000,MATCH(0,COUNTIF($J$1:J884,raw_resource_build!$B$2:$B$1000), 0),0), \"\")","v":""},{"$f":"IF(J885=\"\", \"\", INDEX(raw_resource_build!E:E, MATCH(J885, raw_resource_build!B:B, 0)))","v":""},{"$f":"IF(J885=\"\", \"\", INDEX(raw_resource_build!C:C, MATCH(J885, raw_resource_build!B:B, 0)))","v":""},null,{"$f":"raw_resource_build!B885","v":"CAISO_Geothermal_for_Other"},"Non-wind",{"$f":"IFERROR(INDEX($E$5:$E$32,MATCH(raw_resource_build!$E885,Lists!$B$5:$B$32,0)),\"Non-CAISO\")","v":"Geothermal"},null,{"$f":"raw_annual_energy!C885","v":"Southern_Nevada_Solar"},{"$f":"INDEX(K:K,MATCH(R885,Lists!J:J,0))","v":"Solar"},"In-State"]
[null,null,null,null,null,null,null,null,null,{"$f":"IFERROR(INDEX(raw_resource_build!$B$2:$B$1000,MATCH(0,COUNTIF($J$1:J885,raw_resource_build!$B$2:$B$1000), 0),0), \"\")","v":""},{"$f":"IF(J886=\"\", \"\", INDEX(raw_resource_build!E:E, MATCH(J886, raw_resource_build!B:B, 0)))","v":""},{"$f":"IF(J886=\"\", \"\", INDEX(raw_resource_build!C:C, MATCH(J886, raw_resource_build!B:B, 0)))","v":""},null,{"$f":"raw_resource_build!B886","v":"IID_Biomass_for_Other"},"Non-wind",{"$f":"IFERROR(INDEX($E$5:$E$32,MATCH(raw_resource_build!$E886,Lists!$B$5:$B$32,0)),\"Non-CAISO\")","v":"Biomass"},null,{"$f":"raw_annual_energy!C886","v":"Southern_Nevada_Solar"},{"$f":"INDEX(K:K,MATCH(R886,Lists!J:J,0))","v":"Solar"},"In-State"]
[null,null,null,null,null,null,null,null,null,{"$f":"IFERROR(INDEX(raw_resource_build!$B$2:$B$1000,MATCH(0,COUNTIF($J$1:J886,raw_resource_build!$B$2:$B$1000), 0),0), \"\")","v":""},{"$f":"IF(J887=\"\", \"\", INDEX(raw_resource_build!E:E, MATCH(J887, raw_resource_build!B:B, 0)))","v":""},{"$f":"IF(J887=\"\", \"\", INDEX(raw_resource_build!C:C, MATCH(J887, raw_resource_build!B:B, 0)))","v":""},null,{"$f":"raw_resource_build!B887","v":"IID_Geothermal_for_Other"},"Non-wind",{"$f":"IFERROR(INDEX($E$5:$E$32,MATCH(raw_resource_build!$E887,Lists!$B$5:$B$32,0)),\"Non-CAISO\")","v":"Geothermal"},null,{"$f":"raw_annual_energy!C887","v":"Southern_Nevada_Solar"},{"$f":"INDEX(K:K,MATCH(R887,Lists!J:J,0))","v":"Solar"},"In-State"]
[null,null,null,null,null,null,null,null,null,{"$f":"IFERROR(INDEX(raw_resource_build!$B$2:$B$1000,MATCH(0,COUNTIF($J$1:J887,raw_resource_build!$B$2:$B$1000), 0),0), \"\")","v":""},{"$f":"IF(J888=\"\", \"\", INDEX(raw_resource_build!E:E, MATCH(J888, raw_resource_build!B:B, 0)))","v":""},{"$f":"IF(J888=\"\", \"\", INDEX(raw_resource_build!C:C, MATCH(J888, raw_resource_build!B:B, 0)))","v":""},null,{"$f":"raw_resource_build!B888","v":"LDWP_Biomass_for_Other"},"Non-wind",{"$f":"IFERROR(INDEX($E$5:$E$32,MATCH(raw_resource_build!$E888,Lists!$B$5:$B$32,0)),\"Non-CAISO\")","v":"Biomass"},null,{"$f":"raw_annual_energy!C888","v":"Southern_Nevada_Solar"},{"$f":"INDEX(K:K,MATCH(R888,Lists!J:J,0))","v":"Solar"},"In-State"]
[null,null,null,null,null,null,null,null,null,{"$f":"IFERROR(INDEX(raw_resource_build!$B$2:$B$1000,MATCH(0,COUNTIF($J$1:J888,raw_resource_build!$B$2:$B$1000), 0),0), \"\")","v":""},{"$f":"IF(J889=\"\", \"\", INDEX(raw_resource_build!E:E, MATCH(J889, raw_resource_build!B:B, 0)))","v":""},{"$f":"IF(J889=\"\", \"\", INDEX(raw_resource_build!C:C, MATCH(J889, raw_resource_build!B:B, 0)))","v":""},null,{"$f":"raw_resource_build!B889","v":"LDWP_Geothermal_for_Other"},"Non-wind",{"$f":"IFERROR(INDEX($E$5:$E$32,MATCH(raw_resource_build!$E889,Lists!$B$5:$B$32,0)),\"Non-CAISO\")","v":"Geothermal"},null,{"$f":"raw_annual_energy!C889","v":"Southern_Nevada_Solar"},{"$f":"INDEX(K:K,MATCH(R889,Lists!J:J,0))","v":"Solar"},"In-State"]
[null,null,null,null,null,null,null,null,null,{"$f":"IFERROR(INDEX(raw_resource_build!$B$2:$B$1000,MATCH(0,COUNTIF($J$1:J889,raw_resource_build!$B$2:$B$1000), 0),0), \"\")","v":""},{"$f":"IF(J890=\"\", \"\", INDEX(raw_resource_build!E:E, MATCH(J890, raw_resource_build!B:B, 0)))","v":""},{"$f":"IF(J890=\"\", \"\", INDEX(raw_resource_build!C:C, MATCH(J890, raw_resource_build!B:B, 0)))","v":""},null,{"$f":"raw_resource_build!B890","v":"NW_Biomass_for_Other"},"Non-wind",{"$f":"IFERROR(INDEX($E$5:$E$32,MATCH(raw_resource_build!$E890,Lists!$B$5:$B$32,0)),\"Non-CAISO\")","v":"Biomass"},null,{"$f":"raw_annual_energy!C890","v":"Southern_Nevada_Solar"},{"$f":"INDEX(K:K,MATCH(R890,Lists!J:J,0))","v":"Solar"},"In-State"]
[null,null,null,null,null,null,null,null,null,{"$f":"IFERROR(INDEX(raw_resource_build!$B$2:$B$1000,MATCH(0,COUNTIF($J$1:J890,raw_resource_build!$B$2:$B$1000), 0),0), \"\")","v":""},{"$f":"IF(J891=\"\", \"\", INDEX(raw_resource_build!E:E, MATCH(J891, raw_resource_build!B:B, 0)))","v":""},{"$f":"IF(J891=\"\", \"\", INDEX(raw_resource_build!C:C, MATCH(J891, raw_resource_build!B:B, 0)))","v":""},null,{"$f":"raw_resource_build!B891","v":"NW_Geothermal_for_Other"},"Non-wind",{"$f":"IFERROR(INDEX($E$5:$E$32,MATCH(raw_resource_build!$E891,Lists!$B$5:$B$32,0)),\"Non-CAISO\")","v":"Geothermal"},null,{"$f":"raw_annual_energy!C891","v":"Southern_Nevada_Wind"},{"$f":"INDEX(K:K,MATCH(R891,Lists!J:J,0))","v":"Wind"},"In-State"]
[null,null,null,null,null,null,null,null,null,{"$f":"IFERROR(INDEX(raw_resource_build!$B$2:$B$1000,MATCH(0,COUNTIF($J$1:J891,raw_resource_build!$B$2:$B$1000), 0),0), \"\")","v":""},{"$f":"IF(J892=\"\", \"\", INDEX(raw_resource_build!E:E, MATCH(J892, raw_resource_build!B:B, 0)))","v":""},{"$f":"IF(J892=\"\", \"\", INDEX(raw_resource_build!C:C, MATCH(J892, raw_resource_build!B:B, 0)))","v":""},null,{"$f":"raw_resource_build!B892","v":"SW_Biomass_for_Other"},"Non-wind",{"$f":"IFERROR(INDEX($E$5:$E$32,MATCH(raw_resource_build!$E892,Lists!$B$5:$B$32,0)),\"Non-CAISO\")","v":"Biomass"},null,{"$f":"raw_annual_energy!C892","v":"Southern_Nevada_Wind"},{"$f":"INDEX(K:K,MATCH(R892,Lists!J:J,0))","v":"Wind"},"In-State"]
[null,null,null,null,null,null,null,null,null,{"$f":"IFERROR(INDEX(raw_resource_build!$B$2:$B$1000,MATCH(0,COUNTIF($J$1:J892,raw_resource_build!$B$2:$B$1000), 0),0), \"\")","v":""},{"$f":"IF(J893=\"\", \"\", INDEX(raw_resource_build!E:E, MATCH(J893, raw_resource_build!B:B, 0)))","v":""},{"$f":"IF(J893=\"\", \"\", INDEX(raw_resource_build!C:C, MATCH(J893, raw_resource_build!B:B, 0)))","v":""},null,{"$f":"raw_resource_build!B893","v":"SW_Geothermal_for_Other"},"Non-wind",{"$f":"IFERROR(INDEX($E$5:$E$32,MATCH(raw_resource_build!$E893,Lists!$B$5:$B$32,0)),\"Non-CAISO\")","v":"Geothermal"},null,{"$f":"raw_annual_energy!C893","v":"Southern_Nevada_Wind"},{"$f":"INDEX(K:K,MATCH(R893,Lists!J:J,0))","v":"Wind"},"In-State"]
[null,null,null,null,null,null,null,null,null,{"$f":"IFERROR(INDEX(raw_resource_build!$B$2:$B$1000,MATCH(0,COUNTIF($J$1:J893,raw_resource_build!$B$2:$B$1000), 0),0), \"\")","v":""},{"$f":"IF(J894=\"\", \"\", INDEX(raw_resource_build!E:E, MATCH(J894, raw_resource_build!B:B, 0)))","v":""},{"$f":"IF(J894=\"\", \"\", INDEX(raw_resource_build!C:C, MATCH(J894, raw_resource_build!B:B, 0)))","v":""},null,{"$f":"raw_resource_build!B894","v":"CAISO_Biomass_for_CAISO"},"Non-wind",{"$f":"IFERROR(INDEX($E$5:$E$32,MATCH(raw_resource_build!$E894,Lists!$B$5:$B$32,0)),\"Non-CAISO\")","v":"Biomass"},null,{"$f":"raw_annual_energy!C894","v":"Southern_Nevada_Wind"},{"$f":"INDEX(K:K,MATCH(R894,Lists!J:J,0))","v":"Wind"},"In-State"]
[null,null,null,null,null,null,null,null,null,{"$f":"IFERROR(INDEX(raw_resource_build!$B$2:$B$1000,MATCH(0,COUNTIF($J$1:J894,raw_resource_build!$B$2:$B$1000), 0),0), \"\")","v":""},{"$f":"IF(J895=\"\", \"\", INDEX(raw_resource_build!E:E, MATCH(J895, raw_resource_build!B:B, 0)))","v":""},{"$f":"IF(J895=\"\", \"\", INDEX(raw_resource_build!C:C, MATCH(J895, raw_resource_build!B:B, 0)))","v":""},null,{"$f":"raw_resource_build!B895","v":"CAISO_Geothermal_for_CAISO"},"Non-wind",{"$f":"IFERROR(INDEX($E$5:$E$32,MATCH(raw_resource_build!$E895,Lists!$B$5:$B$32,0)),\"Non-CAISO\")","v":"Geothermal"},null,{"$f":"raw_annual_energy!C895","v":"Southern_Nevada_Wind"},{"$f":"INDEX(K:K,MATCH(R895,Lists!J:J,0))","v":"Wind"},"In-State"]
[null,null,null,null,null,null,null,null,null,{"$f":"IFERROR(INDEX(raw_resource_build!$B$2:$B$1000,MATCH(0,COUNTIF($J$1:J895,raw_resource_build!$B$2:$B$1000), 0),0), \"\")","v":""},{"$f":"IF(J896=\"\", \"\", INDEX(raw_resource_build!E:E, MATCH(J896, raw_resource_build!B:B, 0)))","v":""},{"$f":"IF(J896=\"\", \"\", INDEX(raw_resource_build!C:C, MATCH(J896, raw_resource_build!B:B, 0)))","v":""},null,{"$f":"raw_resource_build!B896","v":"IID_Geothermal_for_CAISO"},"Non-wind",{"$f":"IFERROR(INDEX($E$5:$E$32,MATCH(raw_resource_build!$E896,Lists!$B$5:$B$32,0)),\"Non-CAISO\")","v":"Geothermal"},null,{"$f":"raw_annual_energy!C896","v":"Southern_Nevada_Wind"},{"$f":"INDEX(K:K,MATCH(R896,Lists!J:J,0))","v":"Wind"},"In-State"]
[null,null,null,null,null,null,null,null,null,{"$f":"IFERROR(INDEX(raw_resource_build!$B$2:$B$1000,MATCH(0,COUNTIF($J$1:J896,raw_resource_build!$B$2:$B$1000), 0),0), \"\")","v":""},{"$f":"IF(J897=\"\", \"\", INDEX(raw_resource_build!E:E, MATCH(J897, raw_resource_build!B:B, 0)))","v":""},{"$f":"IF(J897=\"\", \"\", INDEX(raw_resource_build!C:C, MATCH(J897, raw_resource_build!B:B, 0)))","v":""},null,{"$f":"raw_resource_build!B897","v":"NW_Biomass_for_CAISO"},"Non-wind",{"$f":"IFERROR(INDEX($E$5:$E$32,MATCH(raw_resource_build!$E897,Lists!$B$5:$B$32,0)),\"Non-CAISO\")","v":"Biomass"},null,{"$f":"raw_annual_energy!C897","v":"Southern_Nevada_Wind"},{"$f":"INDEX(K:K,MATCH(R897,Lists!J:J,0))","v":"Wind"},"In-State"]
[null,null,null,null,null,null,null,null,null,{"$f":"IFERROR(INDEX(raw_resource_build!$B$2:$B$1000,MATCH(0,COUNTIF($J$1:J897,raw_resource_build!$B$2:$B$1000), 0),0), \"\")","v":""},{"$f":"IF(J898=\"\", \"\", INDEX(raw_resource_build!E:E, MATCH(J898, raw_resource_build!B:B, 0)))","v":""},{"$f":"IF(J898=\"\", \"\", INDEX(raw_resource_build!C:C, MATCH(J898, raw_resource_build!B:B, 0)))","v":""},null,{"$f":"raw_resource_build!B898","v":"NW_Geothermal_for_CAISO"},"Non-wind",{"$f":"IFERROR(INDEX($E$5:$E$32,MATCH(raw_resource_build!$E898,Lists!$B$5:$B$32,0)),\"Non-CAISO\")","v":"Geothermal"},null,{"$f":"raw_annual_energy!C898","v":"Southern_Nevada_Wind"},{"$f":"INDEX(K:K,MATCH(R898,Lists!J:J,0))","v":"Wind"},"In-State"]
[null,null,null,null,null,null,null,null,null,{"$f":"IFERROR(INDEX(raw_resource_build!$B$2:$B$1000,MATCH(0,COUNTIF($J$1:J898,raw_resource_build!$B$2:$B$1000), 0),0), \"\")","v":""},{"$f":"IF(J899=\"\", \"\", INDEX(raw_resource_build!E:E, MATCH(J899, raw_resource_build!B:B, 0)))","v":""},{"$f":"IF(J899=\"\", \"\", INDEX(raw_resource_build!C:C, MATCH(J899, raw_resource_build!B:B, 0)))","v":""},null,{"$f":"raw_resource_build!B899","v":"InState_Biomass"},{"$f":"IFERROR(INDEX($C$35:$C$99,MATCH($N899,$B$35:$B$99,0)),\"Non-wind\")","v":"In-State"},{"$f":"IFERROR(INDEX($E$5:$E$32,MATCH(raw_resource_build!$E899,Lists!$B$5:$B$32,0)),\"Non-CAISO\")","v":"Biomass"},null,{"$f":"raw_annual_energy!C899","v":"Tehachapi_Ex_Solar"},{"$f":"INDEX(K:K,MATCH(R899,Lists!J:J,0))","v":"Solar"},{"$f":"IFERROR(INDEX($C$35:$C$99,MATCH($R899,$B$35:$B$99,0)),\"Non-wind\")","v":"In-State"}]
[null,null,null,null,null,null,null,null,null,{"$f":"IFERROR(INDEX(raw_resource_build!$B$2:$B$1000,MATCH(0,COUNTIF($J$1:J899,raw_resource_build!$B$2:$B$1000), 0),0), \"\")","v":""},{"$f":"IF(J900=\"\", \"\", INDEX(raw_resource_build!E:E, MATCH(J900, raw_resource_build!B:B, 0)))","v":""},{"$f":"IF(J900=\"\", \"\", INDEX(raw_resource_build!C:C, MATCH(J900, raw_resource_build!B:B, 0)))","v":""},null,{"$f":"raw_resource_build!B900","v":"CAISO_Small_Hydro_for_CAISO"},"Non-wind",{"$f":"IFERROR(INDEX($E$5:$E$32,MATCH(raw_resource_build!$E900,Lists!$B$5:$B$32,0)),\"Non-CAISO\")","v":"Hydro (small + large)"},null,{"$f":"raw_annual_energy!C900","v":"Tehachapi_Ex_Solar"},{"$f":"INDEX(K:K,MATCH(R900,Lists!J:J,0))","v":"Solar"},"In-State"]
[null,null,null,null,null,null,null,null,null,{"$f":"IFERROR(INDEX(raw_resource_build!$B$2:$B$1000,MATCH(0,COUNTIF($J$1:J900,raw_resource_build!$B$2:$B$1000), 0),0), \"\")","v":""},{"$f":"IF(J901=\"\", \"\", INDEX(raw_resource_build!E:E, MATCH(J901, raw_resource_build!B:B, 0)))","v":""},{"$f":"IF(J901=\"\", \"\", INDEX(raw_resource_build!C:C, MATCH(J901, raw_resource_build!B:B, 0)))","v":""},null,{"$f":"raw_resource_build!B901","v":"BANC_Small_Hydro_for_CAISO"},"Non-wind",{"$f":"IFERROR(INDEX($E$5:$E$32,MATCH(raw_resource_build!$E901,Lists!$B$5:$B$32,0)),\"Non-CAISO\")","v":"Hydro (small + large)"},null,{"$f":"raw_annual_energy!C901","v":"Tehachapi_Ex_Solar"},{"$f":"INDEX(K:K,MATCH(R901,Lists!J:J,0))","v":"Solar"},"In-State"]
[null,null,null,null,null,null,null,null,null,{"$f":"IFERROR(INDEX(raw_resource_build!$B$2:$B$1000,MATCH(0,COUNTIF($J$1:J901,raw_resource_build!$B$2:$B$1000), 0),0), \"\")","v":""},{"$f":"IF(J902=\"\", \"\", INDEX(raw_resource_build!E:E, MATCH(J902, raw_resource_build!B:B, 0)))","v":""},{"$f":"IF(J902=\"\", \"\", INDEX(raw_resource_build!C:C, MATCH(J902, raw_resource_build!B:B, 0)))","v":""},null,{"$f":"raw_resource_build!B902","v":"NW_Small_Hydro_for_CAISO"},"Non-wind",{"$f":"IFERROR(INDEX($E$5:$E$32,MATCH(raw_resource_build!$E902,Lists!$B$5:$B$32,0)),\"Non-CAISO\")","v":"Hydro (small + large)"},null,{"$f":"raw_annual_energy!C902","v":"Tehachapi_Ex_Solar"},{"$f":"INDEX(K:K,MATCH(R902,Lists!J:J,0))","v":"Solar"},"In-State"]
[null,null,null,null,null,null,null,null,null,{"$f":"IFERROR(INDEX(raw_resource_build!$B$2:$B$1000,MATCH(0,COUNTIF($J$1:J902,raw_resource_build!$B$2:$B$1000), 0),0), \"\")","v":""},{"$f":"IF(J903=\"\", \"\", INDEX(raw_resource_build!E:E, MATCH(J903, raw_resource_build!B:B, 0)))","v":""},{"$f":"IF(J903=\"\", \"\", INDEX(raw_resource_build!C:C, MATCH(J903, raw_resource_build!B:B, 0)))","v":""},null,{"$f":"raw_resource_build!B903","v":"CAISO_Small_Hydro_for_Other"},"Non-wind",{"$f":"IFERROR(INDEX($E$5:$E$32,MATCH(raw_resource_build!$E903,Lists!$B$5:$B$32,0)),\"Non-CAISO\")","v":"Hydro (small + large)"},null,{"$f":"raw_annual_energy!C903","v":"Tehachapi_Ex_Solar"},{"$f":"INDEX(K:K,MATCH(R903,Lists!J:J,0))","v":"Solar"},"In-State"]
[null,null,null,null,null,null,null,null,null,{"$f":"IFERROR(INDEX(raw_resource_build!$B$2:$B$1000,MATCH(0,COUNTIF($J$1:J903,raw_resource_build!$B$2:$B$1000), 0),0), \"\")","v":""},{"$f":"IF(J904=\"\", \"\", INDEX(raw_resource_build!E:E, MATCH(J904, raw_resource_build!B:B, 0)))","v":""},{"$f":"IF(J904=\"\", \"\", INDEX(raw_resource_build!C:C, MATCH(J904, raw_resource_build!B:B, 0)))","v":""},null,{"$f":"raw_resource_build!B904","v":"BANC_Small_Hydro_for_Other"},"Non-wind",{"$f":"IFERROR(INDEX($E$5:$E$32,MATCH(raw_resource_build!$E904,Lists!$B$5:$B$32,0)),\"Non-CAISO\")","v":"Hydro (small + large)"},null,{"$f":"raw_annual_energy!C904","v":"Tehachapi_Ex_Solar"},{"$f":"INDEX(K:K,MATCH(R904,Lists!J:J,0))","v":"Solar"},"In-State"]
[null,null,null,null,null,null,null,null,null,{"$f":"IFERROR(INDEX(raw_resource_build!$B$2:$B$1000,MATCH(0,COUNTIF($J$1:J904,raw_resource_build!$B$2:$B$1000), 0),0), \"\")","v":""},{"$f":"IF(J905=\"\", \"\", INDEX(raw_resource_build!E:E, MATCH(J905, raw_resource_build!B:B, 0)))","v":""},{"$f":"IF(J905=\"\", \"\", INDEX(raw_resource_build!C:C, MATCH(J905, raw_resource_build!B:B, 0)))","v":""},null,{"$f":"raw_resource_build!B905","v":"IID_Small_Hydro_for_Other"},"Non-wind",{"$f":"IFERROR(INDEX($E$5:$E$32,MATCH(raw_resource_build!$E905,Lists!$B$5:$B$32,0)),\"Non-CAISO\")","v":"Hydro (small + large)"},null,{"$f":"raw_annual_energy!C905","v":"Tehachapi_Ex_Solar"},{"$f":"INDEX(K:K,MATCH(R905,Lists!J:J,0))","v":"Solar"},"In-State"]
[null,null,null,null,null,null,null,null,null,{"$f":"IFERROR(INDEX(raw_resource_build!$B$2:$B$1000,MATCH(0,COUNTIF($J$1:J905,raw_resource_build!$B$2:$B$1000), 0),0), \"\")","v":""},{"$f":"IF(J906=\"\", \"\", INDEX(raw_resource_build!E:E, MATCH(J906, raw_resource_build!B:B, 0)))","v":""},{"$f":"IF(J906=\"\", \"\", INDEX(raw_resource_build!C:C, MATCH(J906, raw_resource_build!B:B, 0)))","v":""},null,{"$f":"raw_resource_build!B906","v":"LDWP_Small_Hydro_for_Other"},"Non-wind",{"$f":"IFERROR(INDEX($E$5:$E$32,MATCH(raw_resource_build!$E906,Lists!$B$5:$B$32,0)),\"Non-CAISO\")","v":"Hydro (small + large)"},null,{"$f":"raw_annual_energy!C906","v":"Tehachapi_Ex_Solar"},{"$f":"INDEX(K:K,MATCH(R906,Lists!J:J,0))","v":"Solar"},"In-State"]
[null,null,null,null,null,null,null,null,null,{"$f":"IFERROR(INDEX(raw_resource_build!$B$2:$B$1000,MATCH(0,COUNTIF($J$1:J906,raw_resource_build!$B$2:$B$1000), 0),0), \"\")","v":""},{"$f":"IF(J907=\"\", \"\", INDEX(raw_resource_build!E:E, MATCH(J907, raw_resource_build!B:B, 0)))","v":""},{"$f":"IF(J907=\"\", \"\", INDEX(raw_resource_build!C:C, MATCH(J907, raw_resource_build!B:B, 0)))","v":""},null,{"$f":"raw_resource_build!B907","v":"NW_Small_Hydro_for_Other"},"Non-wind",{"$f":"IFERROR(INDEX($E$5:$E$32,MATCH(raw_resource_build!$E907,Lists!$B$5:$B$32,0)),\"Non-CAISO\")","v":"Hydro (small + large)"},null,{"$f":"raw_annual_energy!C907","v":"Tehachapi_Solar"},{"$f":"INDEX(K:K,MATCH(R907,Lists!J:J,0))","v":"Solar"},"In-State"]
[null,null,null,null,null,null,null,null,null,{"$f":"IFERROR(INDEX(raw_resource_build!$B$2:$B$1000,MATCH(0,COUNTIF($J$1:J907,raw_resource_build!$B$2:$B$1000), 0),0), \"\")","v":""},{"$f":"IF(J908=\"\", \"\", INDEX(raw_resource_build!E:E, MATCH(J908, raw_resource_build!B:B, 0)))","v":""},{"$f":"IF(J908=\"\", \"\", INDEX(raw_resource_build!C:C, MATCH(J908, raw_resource_build!B:B, 0)))","v":""},null,{"$f":"raw_resource_build!B908","v":"SW_Small_Hydro_for_Other"},"Non-wind",{"$f":"IFERROR(INDEX($E$5:$E$32,MATCH(raw_resource_build!$E908,Lists!$B$5:$B$32,0)),\"Non-CAISO\")","v":"Hydro (small + large)"},null,{"$f":"raw_annual_energy!C908","v":"Tehachapi_Solar"},{"$f":"INDEX(K:K,MATCH(R908,Lists!J:J,0))","v":"Solar"},"In-State"]
[null,null,null,null,null,null,null,null,null,{"$f":"IFERROR(INDEX(raw_resource_build!$B$2:$B$1000,MATCH(0,COUNTIF($J$1:J908,raw_resource_build!$B$2:$B$1000), 0),0), \"\")","v":""},{"$f":"IF(J909=\"\", \"\", INDEX(raw_resource_build!E:E, MATCH(J909, raw_resource_build!B:B, 0)))","v":""},{"$f":"IF(J909=\"\", \"\", INDEX(raw_resource_build!C:C, MATCH(J909, raw_resource_build!B:B, 0)))","v":""},null,{"$f":"raw_resource_build!B909","v":"Greater_Imperial_Geothermal"},"In-State",{"$f":"IFERROR(INDEX($E$5:$E$32,MATCH(raw_resource_build!$E909,Lists!$B$5:$B$32,0)),\"Non-CAISO\")","v":"Geothermal"},null,{"$f":"raw_annual_energy!C909","v":"Tehachapi_Solar"},{"$f":"INDEX(K:K,MATCH(R909,Lists!J:J,0))","v":"Solar"},"In-State"]
[null,null,null,null,null,null,null,null,null,{"$f":"IFERROR(INDEX(raw_resource_build!$B$2:$B$1000,MATCH(0,COUNTIF($J$1:J909,raw_resource_build!$B$2:$B$1000), 0),0), \"\")","v":""},{"$f":"IF(J910=\"\", \"\", INDEX(raw_resource_build!E:E, MATCH(J910, raw_resource_build!B:B, 0)))","v":""},{"$f":"IF(J910=\"\", \"\", INDEX(raw_resource_build!C:C, MATCH(J910, raw_resource_build!B:B, 0)))","v":""},null,{"$f":"raw_resource_build!B910","v":"Inyokern_North_Kramer_Geothermal"},"In-State",{"$f":"IFERROR(INDEX($E$5:$E$32,MATCH(raw_resource_build!$E910,Lists!$B$5:$B$32,0)),\"Non-CAISO\")","v":"Geothermal"},null,{"$f":"raw_annual_energy!C910","v":"Tehachapi_Solar"},{"$f":"INDEX(K:K,MATCH(R910,Lists!J:J,0))","v":"Solar"},"In-State"]
[null,null,null,null,null,null,null,null,null,{"$f":"IFERROR(INDEX(raw_resource_build!$B$2:$B$1000,MATCH(0,COUNTIF($J$1:J910,raw_resource_build!$B$2:$B$1000), 0),0), \"\")","v":""},{"$f":"IF(J911=\"\", \"\", INDEX(raw_resource_build!E:E, MATCH(J911, raw_resource_build!B:B, 0)))","v":""},{"$f":"IF(J911=\"\", \"\", INDEX(raw_resource_build!C:C, MATCH(J911, raw_resource_build!B:B, 0)))","v":""},null,{"$f":"raw_resource_build!B911","v":"Northern_California_Ex_Geothermal"},"In-State",{"$f":"IFERROR(INDEX($E$5:$E$32,MATCH(raw_resource_build!$E911,Lists!$B$5:$B$32,0)),\"Non-CAISO\")","v":"Geothermal"},null,{"$f":"raw_annual_energy!C911","v":"Tehachapi_Solar"},{"$f":"INDEX(K:K,MATCH(R911,Lists!J:J,0))","v":"Solar"},"In-State"]
[null,null,null,null,null,null,null,null,null,{"$f":"IFERROR(INDEX(raw_resource_build!$B$2:$B$1000,MATCH(0,COUNTIF($J$1:J911,raw_resource_build!$B$2:$B$1000), 0),0), \"\")","v":""},{"$f":"IF(J912=\"\", \"\", INDEX(raw_resource_build!E:E, MATCH(J912, raw_resource_build!B:B, 0)))","v":""},{"$f":"IF(J912=\"\", \"\", INDEX(raw_resource_build!C:C, MATCH(J912, raw_resource_build!B:B, 0)))","v":""},null,{"$f":"raw_resource_build!B912","v":"Pacific_Northwest_Geothermal"},"Out-Of-State",{"$f":"IFERROR(INDEX($E$5:$E$32,MATCH(raw_resource_build!$E912,Lists!$B$5:$B$32,0)),\"Non-CAISO\")","v":"Geothermal"},null,{"$f":"raw_annual_energy!C912","v":"Tehachapi_Solar"},{"$f":"INDEX(K:K,MATCH(R912,Lists!J:J,0))","v":"Solar"},"In-State"]
[null,null,null,null,null,null,null,null,null,{"$f":"IFERROR(INDEX(raw_resource_build!$B$2:$B$1000,MATCH(0,COUNTIF($J$1:J912,raw_resource_build!$B$2:$B$1000), 0),0), \"\")","v":""},{"$f":"IF(J913=\"\", \"\", INDEX(raw_resource_build!E:E, MATCH(J913, raw_resource_build!B:B, 0)))","v":""},{"$f":"IF(J913=\"\", \"\", INDEX(raw_resource_build!C:C, MATCH(J913, raw_resource_build!B:B, 0)))","v":""},null,{"$f":"raw_resource_build!B913","v":"Riverside_Palm_Springs_Geothermal"},"In-State",{"$f":"IFERROR(INDEX($E$5:$E$32,MATCH(raw_resource_build!$E913,Lists!$B$5:$B$32,0)),\"Non-CAISO\")","v":"Geothermal"},null,{"$f":"raw_annual_energy!C913","v":"Tehachapi_Solar"},{"$f":"INDEX(K:K,MATCH(R913,Lists!J:J,0))","v":"Solar"},"In-State"]
[null,null,null,null,null,null,null,null,null,{"$f":"IFERROR(INDEX(raw_resource_build!$B$2:$B$1000,MATCH(0,COUNTIF($J$1:J913,raw_resource_build!$B$2:$B$1000), 0),0), \"\")","v":""},{"$f":"IF(J914=\"\", \"\", INDEX(raw_resource_build!E:E, MATCH(J914, raw_resource_build!B:B, 0)))","v":""},{"$f":"IF(J914=\"\", \"\", INDEX(raw_resource_build!C:C, MATCH(J914, raw_resource_build!B:B, 0)))","v":""},null,{"$f":"raw_resource_build!B914","v":"Solano_Geothermal"},"In-State",{"$f":"IFERROR(INDEX($E$5:$E$32,MATCH(raw_resource_build!$E914,Lists!$B$5:$B$32,0)),\"Non-CAISO\")","v":"Geothermal"},null,{"$f":"raw_annual_energy!C914","v":"Tehachapi_Solar"},{"$f":"INDEX(K:K,MATCH(R914,Lists!J:J,0))","v":"Solar"},"In-State"]
[null,null,null,null,null,null,null,null,null,{"$f":"IFERROR(INDEX(raw_resource_build!$B$2:$B$1000,MATCH(0,COUNTIF($J$1:J914,raw_resource_build!$B$2:$B$1000), 0),0), \"\")","v":""},{"$f":"IF(J915=\"\", \"\", INDEX(raw_resource_build!E:E, MATCH(J915, raw_resource_build!B:B, 0)))","v":""},{"$f":"IF(J915=\"\", \"\", INDEX(raw_resource_build!C:C, MATCH(J915, raw_resource_build!B:B, 0)))","v":""},null,{"$f":"raw_resource_build!B915","v":"Southern_Nevada_Geothermal"},"In-State",{"$f":"IFERROR(INDEX($E$5:$E$32,MATCH(raw_resource_build!$E915,Lists!$B$5:$B$32,0)),\"Non-CAISO\")","v":"Geothermal"},null,{"$f":"raw_annual_energy!C915","v":"Tehachapi_Wind"},{"$f":"INDEX(K:K,MATCH(R915,Lists!J:J,0))","v":"Wind"},"In-State"]
[null,null,null,null,null,null,null,null,null,{"$f":"IFERROR(INDEX(raw_resource_build!$B$2:$B$1000,MATCH(0,COUNTIF($J$1:J915,raw_resource_build!$B$2:$B$1000), 0),0), \"\")","v":""},{"$f":"IF(J916=\"\", \"\", INDEX(raw_resource_build!E:E, MATCH(J916, raw_resource_build!B:B, 0)))","v":""},{"$f":"IF(J916=\"\", \"\", INDEX(raw_resource_build!C:C, MATCH(J916, raw_resource_build!B:B, 0)))","v":""},null,{"$f":"raw_resource_build!B916","v":"Customer_PV"},"Non-wind",{"$f":"IFERROR(INDEX($E$5:$E$32,MATCH(raw_resource_build!$E916,Lists!$B$5:$B$32,0)),\"Non-CAISO\")","v":"Renewables"},null,{"$f":"raw_annual_energy!C916","v":"Tehachapi_Wind"},{"$f":"INDEX(K:K,MATCH(R916,Lists!J:J,0))","v":"Wind"},"In-State"]
[null,null,null,null,null,null,null,null,null,{"$f":"IFERROR(INDEX(raw_resource_build!$B$2:$B$1000,MATCH(0,COUNTIF($J$1:J916,raw_resource_build!$B$2:$B$1000), 0),0), \"\")","v":""},{"$f":"IF(J917=\"\", \"\", INDEX(raw_resource_build!E:E, MATCH(J917, raw_resource_build!B:B, 0)))","v":""},{"$f":"IF(J917=\"\", \"\", INDEX(raw_resource_build!C:C, MATCH(J917, raw_resource_build!B:B, 0)))","v":""},null,{"$f":"raw_resource_build!B917","v":"BANC_Solar_for_Other"},"Non-wind",{"$f":"IFERROR(INDEX($E$5:$E$32,MATCH(raw_resource_build!$E917,Lists!$B$5:$B$32,0)),\"Non-CAISO\")","v":"Renewables"},null,{"$f":"raw_annual_energy!C917","v":"Tehachapi_Wind"},{"$f":"INDEX(K:K,MATCH(R917,Lists!J:J,0))","v":"Wind"},"In-State"]
[null,null,null,null,null,null,null,null,null,{"$f":"IFERROR(INDEX(raw_resource_build!$B$2:$B$1000,MATCH(0,COUNTIF($J$1:J917,raw_resource_build!$B$2:$B$1000), 0),0), \"\")","v":""},{"$f":"IF(J918=\"\", \"\", INDEX(raw_resource_build!E:E, MATCH(J918, raw_resource_build!B:B, 0)))","v":""},{"$f":"IF(J918=\"\", \"\", INDEX(raw_resource_build!C:C, MATCH(J918, raw_resource_build!B:B, 0)))","v":""},null,{"$f":"raw_resource_build!B918","v":"CAISO_Solar_for_Other"},"Non-wind",{"$f":"IFERROR(INDEX($E$5:$E$32,MATCH(raw_resource_build!$E918,Lists!$B$5:$B$32,0)),\"Non-CAISO\")","v":"Renewables"},null,{"$f":"raw_annual_energy!C918","v":"Tehachapi_Wind"},{"$f":"INDEX(K:K,MATCH(R918,Lists!J:J,0))","v":"Wind"},"In-State"]
[null,null,null,null,null,null,null,null,null,{"$f":"IFERROR(INDEX(raw_resource_build!$B$2:$B$1000,MATCH(0,COUNTIF($J$1:J918,raw_resource_build!$B$2:$B$1000), 0),0), \"\")","v":""},{"$f":"IF(J919=\"\", \"\", INDEX(raw_resource_build!E:E, MATCH(J919, raw_resource_build!B:B, 0)))","v":""},{"$f":"IF(J919=\"\", \"\", INDEX(raw_resource_build!C:C, MATCH(J919, raw_resource_build!B:B, 0)))","v":""},null,{"$f":"raw_resource_build!B919","v":"IID_Solar_for_Other"},"Non-wind",{"$f":"IFERROR(INDEX($E$5:$E$32,MATCH(raw_resource_build!$E919,Lists!$B$5:$B$32,0)),\"Non-CAISO\")","v":"Renewables"},null,{"$f":"raw_annual_energy!C919","v":"Tehachapi_Wind"},{"$f":"INDEX(K:K,MATCH(R919,Lists!J:J,0))","v":"Wind"},"In-State"]
[null,null,null,null,null,null,null,null,null,{"$f":"IFERROR(INDEX(raw_resource_build!$B$2:$B$1000,MATCH(0,COUNTIF($J$1:J919,raw_resource_build!$B$2:$B$1000), 0),0), \"\")","v":""},{"$f":"IF(J920=\"\", \"\", INDEX(raw_resource_build!E:E, MATCH(J920, raw_resource_build!B:B, 0)))","v":""},{"$f":"IF(J920=\"\", \"\", INDEX(raw_resource_build!C:C, MATCH(J920, raw_resource_build!B:B, 0)))","v":""},null,{"$f":"raw_resource_build!B920","v":"LDWP_Solar_for_Other"},"Non-wind",{"$f":"IFERROR(INDEX($E$5:$E$32,MATCH(raw_resource_build!$E920,Lists!$B$5:$B$32,0)),\"Non-CAISO\")","v":"Renewables"},null,{"$f":"raw_annual_energy!C920","v":"Tehachapi_Wind"},{"$f":"INDEX(K:K,MATCH(R920,Lists!J:J,0))","v":"Wind"},"In-State"]
[null,null,null,null,null,null,null,null,null,{"$f":"IFERROR(INDEX(raw_resource_build!$B$2:$B$1000,MATCH(0,COUNTIF($J$1:J920,raw_resource_build!$B$2:$B$1000), 0),0), \"\")","v":""},{"$f":"IF(J921=\"\", \"\", INDEX(raw_resource_build!E:E, MATCH(J921, raw_resource_build!B:B, 0)))","v":""},{"$f":"IF(J921=\"\", \"\", INDEX(raw_resource_build!C:C, MATCH(J921, raw_resource_build!B:B, 0)))","v":""},null,{"$f":"raw_resource_build!B921","v":"NW_Solar_for_Other"},"Non-wind",{"$f":"IFERROR(INDEX($E$5:$E$32,MATCH(raw_resource_build!$E921,Lists!$B$5:$B$32,0)),\"Non-CAISO\")","v":"Renewables"},null,{"$f":"raw_annual_energy!C921","v":"Tehachapi_Wind"},{"$f":"INDEX(K:K,MATCH(R921,Lists!J:J,0))","v":"Wind"},"In-State"]
[null,null,null,null,null,null,null,null,null,{"$f":"IFERROR(INDEX(raw_resource_build!$B$2:$B$1000,MATCH(0,COUNTIF($J$1:J921,raw_resource_build!$B$2:$B$1000), 0),0), \"\")","v":""},{"$f":"IF(J922=\"\", \"\", INDEX(raw_resource_build!E:E, MATCH(J922, raw_resource_build!B:B, 0)))","v":""},{"$f":"IF(J922=\"\", \"\", INDEX(raw_resource_build!C:C, MATCH(J922, raw_resource_build!B:B, 0)))","v":""},null,{"$f":"raw_resource_build!B922","v":"SW_Solar_for_Other"},"Non-wind",{"$f":"IFERROR(INDEX($E$5:$E$32,MATCH(raw_resource_build!$E922,Lists!$B$5:$B$32,0)),\"Non-CAISO\")","v":"Renewables"},null,{"$f":"raw_annual_energy!C922","v":"Tehachapi_Wind"},{"$f":"INDEX(K:K,MATCH(R922,Lists!J:J,0))","v":"Wind"},"In-State"]
[null,null,null,null,null,null,null,null,null,{"$f":"IFERROR(INDEX(raw_resource_build!$B$2:$B$1000,MATCH(0,COUNTIF($J$1:J922,raw_resource_build!$B$2:$B$1000), 0),0), \"\")","v":""},{"$f":"IF(J923=\"\", \"\", INDEX(raw_resource_build!E:E, MATCH(J923, raw_resource_build!B:B, 0)))","v":""},{"$f":"IF(J923=\"\", \"\", INDEX(raw_resource_build!C:C, MATCH(J923, raw_resource_build!B:B, 0)))","v":""},null,{"$f":"raw_resource_build!B923","v":"CAISO_Solar_for_CAISO"},"Non-wind",{"$f":"IFERROR(INDEX($E$5:$E$32,MATCH(raw_resource_build!$E923,Lists!$B$5:$B$32,0)),\"Non-CAISO\")","v":"Renewables"},null,{"$f":"raw_annual_energy!C923","v":"Utah_Solar"},{"$f":"INDEX(K:K,MATCH(R923,Lists!J:J,0))","v":"Solar"},"Out-Of-State"]
[null,null,null,null,null,null,null,null,null,{"$f":"IFERROR(INDEX(raw_resource_build!$B$2:$B$1000,MATCH(0,COUNTIF($J$1:J923,raw_resource_build!$B$2:$B$1000), 0),0), \"\")","v":""},{"$f":"IF(J924=\"\", \"\", INDEX(raw_resource_build!E:E, MATCH(J924, raw_resource_build!B:B, 0)))","v":""},{"$f":"IF(J924=\"\", \"\", INDEX(raw_resource_build!C:C, MATCH(J924, raw_resource_build!B:B, 0)))","v":""},null,{"$f":"raw_resource_build!B924","v":"IID_Solar_for_CAISO"},"Non-wind",{"$f":"IFERROR(INDEX($E$5:$E$32,MATCH(raw_resource_build!$E924,Lists!$B$5:$B$32,0)),\"Non-CAISO\")","v":"Renewables"},null,{"$f":"raw_annual_energy!C924","v":"Utah_Solar"},{"$f":"INDEX(K:K,MATCH(R924,Lists!J:J,0))","v":"Solar"},"Out-Of-State"]
[null,null,null,null,null,null,null,null,null,{"$f":"IFERROR(INDEX(raw_resource_build!$B$2:$B$1000,MATCH(0,COUNTIF($J$1:J924,raw_resource_build!$B$2:$B$1000), 0),0), \"\")","v":""},{"$f":"IF(J925=\"\", \"\", INDEX(raw_resource_build!E:E, MATCH(J925, raw_resource_build!B:B, 0)))","v":""},{"$f":"IF(J925=\"\", \"\", INDEX(raw_resource_build!C:C, MATCH(J925, raw_resource_build!B:B, 0)))","v":""},null,{"$f":"raw_resource_build!B925","v":"SW_Solar_for_CAISO"},"Non-wind",{"$f":"IFERROR(INDEX($E$5:$E$32,MATCH(raw_resource_build!$E925,Lists!$B$5:$B$32,0)),\"Non-CAISO\")","v":"Renewables"},null,{"$f":"raw_annual_energy!C925","v":"Utah_Solar"},{"$f":"INDEX(K:K,MATCH(R925,Lists!J:J,0))","v":"Solar"},"Out-Of-State"]
[null,null,null,null,null,null,null,null,null,{"$f":"IFERROR(INDEX(raw_resource_build!$B$2:$B$1000,MATCH(0,COUNTIF($J$1:J925,raw_resource_build!$B$2:$B$1000), 0),0), \"\")","v":""},{"$f":"IF(J926=\"\", \"\", INDEX(raw_resource_build!E:E, MATCH(J926, raw_resource_build!B:B, 0)))","v":""},{"$f":"IF(J926=\"\", \"\", INDEX(raw_resource_build!C:C, MATCH(J926, raw_resource_build!B:B, 0)))","v":""},null,{"$f":"raw_resource_build!B926","v":"BANC_Wind_for_Other"},"Non-wind",{"$f":"IFERROR(INDEX($E$5:$E$32,MATCH(raw_resource_build!$E926,Lists!$B$5:$B$32,0)),\"Non-CAISO\")","v":"Renewables"},null,{"$f":"raw_annual_energy!C926","v":"Utah_Solar"},{"$f":"INDEX(K:K,MATCH(R926,Lists!J:J,0))","v":"Solar"},"Out-Of-State"]
[null,null,null,null,null,null,null,null,null,{"$f":"IFERROR(INDEX(raw_resource_build!$B$2:$B$1000,MATCH(0,COUNTIF($J$1:J926,raw_resource_build!$B$2:$B$1000), 0),0), \"\")","v":""},{"$f":"IF(J927=\"\", \"\", INDEX(raw_resource_build!E:E, MATCH(J927, raw_resource_build!B:B, 0)))","v":""},{"$f":"IF(J927=\"\", \"\", INDEX(raw_resource_build!C:C, MATCH(J927, raw_resource_build!B:B, 0)))","v":""},null,{"$f":"raw_resource_build!B927","v":"CAISO_Wind_for_Other"},"Non-wind",{"$f":"IFERROR(INDEX($E$5:$E$32,MATCH(raw_resource_build!$E927,Lists!$B$5:$B$32,0)),\"Non-CAISO\")","v":"Renewables"},null,{"$f":"raw_annual_energy!C927","v":"Utah_Solar"},{"$f":"INDEX(K:K,MATCH(R927,Lists!J:J,0))","v":"Solar"},"Out-Of-State"]
[null,null,null,null,null,null,null,null,null,{"$f":"IFERROR(INDEX(raw_resource_build!$B$2:$B$1000,MATCH(0,COUNTIF($J$1:J927,raw_resource_build!$B$2:$B$1000), 0),0), \"\")","v":""},{"$f":"IF(J928=\"\", \"\", INDEX(raw_resource_build!E:E, MATCH(J928, raw_resource_build!B:B, 0)))","v":""},{"$f":"IF(J928=\"\", \"\", INDEX(raw_resource_build!C:C, MATCH(J928, raw_resource_build!B:B, 0)))","v":""},null,{"$f":"raw_resource_build!B928","v":"IID_Wind_for_Other"},"Non-wind",{"$f":"IFERROR(INDEX($E$5:$E$32,MATCH(raw_resource_build!$E928,Lists!$B$5:$B$32,0)),\"Non-CAISO\")","v":"Renewables"},null,{"$f":"raw_annual_energy!C928","v":"Utah_Solar"},{"$f":"INDEX(K:K,MATCH(R928,Lists!J:J,0))","v":"Solar"},"Out-Of-State"]
[null,null,null,null,null,null,null,null,null,{"$f":"IFERROR(INDEX(raw_resource_build!$B$2:$B$1000,MATCH(0,COUNTIF($J$1:J928,raw_resource_build!$B$2:$B$1000), 0),0), \"\")","v":""},{"$f":"IF(J929=\"\", \"\", INDEX(raw_resource_build!E:E, MATCH(J929, raw_resource_build!B:B, 0)))","v":""},{"$f":"IF(J929=\"\", \"\", INDEX(raw_resource_build!C:C, MATCH(J929, raw_resource_build!B:B, 0)))","v":""},null,{"$f":"raw_resource_build!B929","v":"LDWP_Wind_for_Other"},"Non-wind",{"$f":"IFERROR(INDEX($E$5:$E$32,MATCH(raw_resource_build!$E929,Lists!$B$5:$B$32,0)),\"Non-CAISO\")","v":"Renewables"},null,{"$f":"raw_annual_energy!C929","v":"Utah_Solar"},{"$f":"INDEX(K:K,MATCH(R929,Lists!J:J,0))","v":"Solar"},"Out-Of-State"]
[null,null,null,null,null,null,null,null,null,{"$f":"IFERROR(INDEX(raw_resource_build!$B$2:$B$1000,MATCH(0,COUNTIF($J$1:J929,raw_resource_build!$B$2:$B$1000), 0),0), \"\")","v":""},{"$f":"IF(J930=\"\", \"\", INDEX(raw_resource_build!E:E, MATCH(J930, raw_resource_build!B:B, 0)))","v":""},{"$f":"IF(J930=\"\", \"\", INDEX(raw_resource_build!C:C, MATCH(J930, raw_resource_build!B:B, 0)))","v":""},null,{"$f":"raw_resource_build!B930","v":"NW_Wind_for_Other"},"Non-wind",{"$f":"IFERROR(INDEX($E$5:$E$32,MATCH(raw_resource_build!$E930,Lists!$B$5:$B$32,0)),\"Non-CAISO\")","v":"Renewables"},null,{"$f":"raw_annual_energy!C930","v":"Utah_Solar"},{"$f":"INDEX(K:K,MATCH(R930,Lists!J:J,0))","v":"Solar"},"Out-Of-State"]
[null,null,null,null,null,null,null,null,null,{"$f":"IFERROR(INDEX(raw_resource_build!$B$2:$B$1000,MATCH(0,COUNTIF($J$1:J930,raw_resource_build!$B$2:$B$1000), 0),0), \"\")","v":""},{"$f":"IF(J931=\"\", \"\", INDEX(raw_resource_build!E:E, MATCH(J931, raw_resource_build!B:B, 0)))","v":""},{"$f":"IF(J931=\"\", \"\", INDEX(raw_resource_build!C:C, MATCH(J931, raw_resource_build!B:B, 0)))","v":""},null,{"$f":"raw_resource_build!B931","v":"SW_Wind_for_Other"},"Non-wind",{"$f":"IFERROR(INDEX($E$5:$E$32,MATCH(raw_resource_build!$E931,Lists!$B$5:$B$32,0)),\"Non-CAISO\")","v":"Renewables"},null,{"$f":"raw_annual_energy!C931","v":"Utah_Wind"},{"$f":"INDEX(K:K,MATCH(R931,Lists!J:J,0))","v":"Wind"},"Out-Of-State"]
[null,null,null,null,null,null,null,null,null,{"$f":"IFERROR(INDEX(raw_resource_build!$B$2:$B$1000,MATCH(0,COUNTIF($J$1:J931,raw_resource_build!$B$2:$B$1000), 0),0), \"\")","v":""},{"$f":"IF(J932=\"\", \"\", INDEX(raw_resource_build!E:E, MATCH(J932, raw_resource_build!B:B, 0)))","v":""},{"$f":"IF(J932=\"\", \"\", INDEX(raw_resource_build!C:C, MATCH(J932, raw_resource_build!B:B, 0)))","v":""},null,{"$f":"raw_resource_build!B932","v":"CAISO_Wind_for_CAISO"},"Non-wind",{"$f":"IFERROR(INDEX($E$5:$E$32,MATCH(raw_resource_build!$E932,Lists!$B$5:$B$32,0)),\"Non-CAISO\")","v":"Renewables"},null,{"$f":"raw_annual_energy!C932","v":"Utah_Wind"},{"$f":"INDEX(K:K,MATCH(R932,Lists!J:J,0))","v":"Wind"},"Out-Of-State"]
[null,null,null,null,null,null,null,null,null,{"$f":"IFERROR(INDEX(raw_resource_build!$B$2:$B$1000,MATCH(0,COUNTIF($J$1:J932,raw_resource_build!$B$2:$B$1000), 0),0), \"\")","v":""},{"$f":"IF(J933=\"\", \"\", INDEX(raw_resource_build!E:E, MATCH(J933, raw_resource_build!B:B, 0)))","v":""},{"$f":"IF(J933=\"\", \"\", INDEX(raw_resource_build!C:C, MATCH(J933, raw_resource_build!B:B, 0)))","v":""},null,{"$f":"raw_resource_build!B933","v":"LDWP_Wind_for_CAISO"},"Non-wind",{"$f":"IFERROR(INDEX($E$5:$E$32,MATCH(raw_resource_build!$E933,Lists!$B$5:$B$32,0)),\"Non-CAISO\")","v":"Renewables"},null,{"$f":"raw_annual_energy!C933","v":"Utah_Wind"},{"$f":"INDEX(K:K,MATCH(R933,Lists!J:J,0))","v":"Wind"},"Out-Of-State"]
[null,null,null,null,null,null,null,null,null,{"$f":"IFERROR(INDEX(raw_resource_build!$B$2:$B$1000,MATCH(0,COUNTIF($J$1:J933,raw_resource_build!$B$2:$B$1000), 0),0), \"\")","v":""},{"$f":"IF(J934=\"\", \"\", INDEX(raw_resource_build!E:E, MATCH(J934, raw_resource_build!B:B, 0)))","v":""},{"$f":"IF(J934=\"\", \"\", INDEX(raw_resource_build!C:C, MATCH(J934, raw_resource_build!B:B, 0)))","v":""},null,{"$f":"raw_resource_build!B934","v":"NW_Wind_for_CAISO"},"Non-wind",{"$f":"IFERROR(INDEX($E$5:$E$32,MATCH(raw_resource_build!$E934,Lists!$B$5:$B$32,0)),\"Non-CAISO\")","v":"Renewables"},null,{"$f":"raw_annual_energy!C934","v":"Utah_Wind"},{"$f":"INDEX(K:K,MATCH(R934,Lists!J:J,0))","v":"Wind"},"Out-Of-State"]
[null,null,null,null,null,null,null,null,null,{"$f":"IFERROR(INDEX(raw_resource_build!$B$2:$B$1000,MATCH(0,COUNTIF($J$1:J934,raw_resource_build!$B$2:$B$1000), 0),0), \"\")","v":""},{"$f":"IF(J935=\"\", \"\", INDEX(raw_resource_build!E:E, MATCH(J935, raw_resource_build!B:B, 0)))","v":""},{"$f":"IF(J935=\"\", \"\", INDEX(raw_resource_build!C:C, MATCH(J935, raw_resource_build!B:B, 0)))","v":""},null,{"$f":"raw_resource_build!B935","v":"SW_Wind_for_CAISO"},"Non-wind",{"$f":"IFERROR(INDEX($E$5:$E$32,MATCH(raw_resource_build!$E935,Lists!$B$5:$B$32,0)),\"Non-CAISO\")","v":"Renewables"},null,{"$f":"raw_annual_energy!C935","v":"Utah_Wind"},{"$f":"INDEX(K:K,MATCH(R935,Lists!J:J,0))","v":"Wind"},"Out-Of-State"]
[null,null,null,null,null,null,null,null,null,{"$f":"IFERROR(INDEX(raw_resource_build!$B$2:$B$1000,MATCH(0,COUNTIF($J$1:J935,raw_resource_build!$B$2:$B$1000), 0),0), \"\")","v":""},{"$f":"IF(J936=\"\", \"\", INDEX(raw_resource_build!E:E, MATCH(J936, raw_resource_build!B:B, 0)))","v":""},{"$f":"IF(J936=\"\", \"\", INDEX(raw_resource_build!C:C, MATCH(J936, raw_resource_build!B:B, 0)))","v":""},null,{"$f":"raw_resource_build!B936","v":"Carrizo_Solar"},"In-State",{"$f":"IFERROR(INDEX($E$5:$E$32,MATCH(raw_resource_build!$E936,Lists!$B$5:$B$32,0)),\"Non-CAISO\")","v":"Renewables"},null,{"$f":"raw_annual_energy!C936","v":"Utah_Wind"},{"$f":"INDEX(K:K,MATCH(R936,Lists!J:J,0))","v":"Wind"},"Out-Of-State"]
[null,null,null,null,null,null,null,null,null,{"$f":"IFERROR(INDEX(raw_resource_build!$B$2:$B$1000,MATCH(0,COUNTIF($J$1:J936,raw_resource_build!$B$2:$B$1000), 0),0), \"\")","v":""},{"$f":"IF(J937=\"\", \"\", INDEX(raw_resource_build!E:E, MATCH(J937, raw_resource_build!B:B, 0)))","v":""},{"$f":"IF(J937=\"\", \"\", INDEX(raw_resource_build!C:C, MATCH(J937, raw_resource_build!B:B, 0)))","v":""},null,{"$f":"raw_resource_build!B937","v":"Carrizo_Wind"},"In-State",{"$f":"IFERROR(INDEX($E$5:$E$32,MATCH(raw_resource_build!$E937,Lists!$B$5:$B$32,0)),\"Non-CAISO\")","v":"Renewables"},null,{"$f":"raw_annual_energy!C937","v":"Utah_Wind"},{"$f":"INDEX(K:K,MATCH(R937,Lists!J:J,0))","v":"Wind"},"Out-Of-State"]
[null,null,null,null,null,null,null,null,null,{"$f":"IFERROR(INDEX(raw_resource_build!$B$2:$B$1000,MATCH(0,COUNTIF($J$1:J937,raw_resource_build!$B$2:$B$1000), 0),0), \"\")","v":""},{"$f":"IF(J938=\"\", \"\", INDEX(raw_resource_build!E:E, MATCH(J938, raw_resource_build!B:B, 0)))","v":""},{"$f":"IF(J938=\"\", \"\", INDEX(raw_resource_build!C:C, MATCH(J938, raw_resource_build!B:B, 0)))","v":""},null,{"$f":"raw_resource_build!B938","v":"Central_Valley_North_Los_Banos_Solar"},"In-State",{"$f":"IFERROR(INDEX($E$5:$E$32,MATCH(raw_resource_build!$E938,Lists!$B$5:$B$32,0)),\"Non-CAISO\")","v":"Renewables"},null,{"$f":"raw_annual_energy!C938","v":"Utah_Wind"},{"$f":"INDEX(K:K,MATCH(R938,Lists!J:J,0))","v":"Wind"},"Out-Of-State"]
[null,null,null,null,null,null,null,null,null,{"$f":"IFERROR(INDEX(raw_resource_build!$B$2:$B$1000,MATCH(0,COUNTIF($J$1:J938,raw_resource_build!$B$2:$B$1000), 0),0), \"\")","v":""},{"$f":"IF(J939=\"\", \"\", INDEX(raw_resource_build!E:E, MATCH(J939, raw_resource_build!B:B, 0)))","v":""},{"$f":"IF(J939=\"\", \"\", INDEX(raw_resource_build!C:C, MATCH(J939, raw_resource_build!B:B, 0)))","v":""},null,{"$f":"raw_resource_build!B939","v":"Central_Valley_North_Los_Banos_Wind"},"In-State",{"$f":"IFERROR(INDEX($E$5:$E$32,MATCH(raw_resource_build!$E939,Lists!$B$5:$B$32,0)),\"Non-CAISO\")","v":"Renewables"},null,{"$f":"raw_annual_energy!C939","v":"Westlands_Ex_Solar"},{"$f":"INDEX(K:K,MATCH(R939,Lists!J:J,0))","v":"Solar"},"In-State"]
[null,null,null,null,null,null,null,null,null,{"$f":"IFERROR(INDEX(raw_resource_build!$B$2:$B$1000,MATCH(0,COUNTIF($J$1:J939,raw_resource_build!$B$2:$B$1000), 0),0), \"\")","v":""},{"$f":"IF(J940=\"\", \"\", INDEX(raw_resource_build!E:E, MATCH(J940, raw_resource_build!B:B, 0)))","v":""},{"$f":"IF(J940=\"\", \"\", INDEX(raw_resource_build!C:C, MATCH(J940, raw_resource_build!B:B, 0)))","v":""},null,{"$f":"raw_resource_build!B940","v":"Distributed_Solar"},"In-State",{"$f":"IFERROR(INDEX($E$5:$E$32,MATCH(raw_resource_build!$E940,Lists!$B$5:$B$32,0)),\"Non-CAISO\")","v":"Renewables"},null,{"$f":"raw_annual_energy!C940","v":"Westlands_Ex_Solar"},{"$f":"INDEX(K:K,MATCH(R940,Lists!J:J,0))","v":"Solar"},"In-State"]
[null,null,null,null,null,null,null,null,null,{"$f":"IFERROR(INDEX(raw_resource_build!$B$2:$B$1000,MATCH(0,COUNTIF($J$1:J940,raw_resource_build!$B$2:$B$1000), 0),0), \"\")","v":""},{"$f":"IF(J941=\"\", \"\", INDEX(raw_resource_build!E:E, MATCH(J941, raw_resource_build!B:B, 0)))","v":""},{"$f":"IF(J941=\"\", \"\", INDEX(raw_resource_build!C:C, MATCH(J941, raw_resource_build!B:B, 0)))","v":""},null,{"$f":"raw_resource_build!B941","v":"Mountain_Pass_El_Dorado_Solar"},"In-State",{"$f":"IFERROR(INDEX($E$5:$E$32,MATCH(raw_resource_build!$E941,Lists!$B$5:$B$32,0)),\"Non-CAISO\")","v":"Renewables"},null,{"$f":"raw_annual_energy!C941","v":"Westlands_Ex_Solar"},{"$f":"INDEX(K:K,MATCH(R941,Lists!J:J,0))","v":"Solar"},"In-State"]
[null,null,null,null,null,null,null,null,null,{"$f":"IFERROR(INDEX(raw_resource_build!$B$2:$B$1000,MATCH(0,COUNTIF($J$1:J941,raw_resource_build!$B$2:$B$1000), 0),0), \"\")","v":""},{"$f":"IF(J942=\"\", \"\", INDEX(raw_resource_build!E:E, MATCH(J942, raw_resource_build!B:B, 0)))","v":""},{"$f":"IF(J942=\"\", \"\", INDEX(raw_resource_build!C:C, MATCH(J942, raw_resource_build!B:B, 0)))","v":""},null,{"$f":"raw_resource_build!B942","v":"Greater_Imperial_Solar"},"In-State",{"$f":"IFERROR(INDEX($E$5:$E$32,MATCH(raw_resource_build!$E942,Lists!$B$5:$B$32,0)),\"Non-CAISO\")","v":"Renewables"},null,{"$f":"raw_annual_energy!C942","v":"Westlands_Ex_Solar"},{"$f":"INDEX(K:K,MATCH(R942,Lists!J:J,0))","v":"Solar"},"In-State"]
[null,null,null,null,null,null,null,null,null,{"$f":"IFERROR(INDEX(raw_resource_build!$B$2:$B$1000,MATCH(0,COUNTIF($J$1:J942,raw_resource_build!$B$2:$B$1000), 0),0), \"\")","v":""},{"$f":"IF(J943=\"\", \"\", INDEX(raw_resource_build!E:E, MATCH(J943, raw_resource_build!B:B, 0)))","v":""},{"$f":"IF(J943=\"\", \"\", INDEX(raw_resource_build!C:C, MATCH(J943, raw_resource_build!B:B, 0)))","v":""},null,{"$f":"raw_resource_build!B943","v":"Greater_Imperial_Wind"},"In-State",{"$f":"IFERROR(INDEX($E$5:$E$32,MATCH(raw_resource_build!$E943,Lists!$B$5:$B$32,0)),\"Non-CAISO\")","v":"Renewables"},null,{"$f":"raw_annual_energy!C943","v":"Westlands_Ex_Solar"},{"$f":"INDEX(K:K,MATCH(R943,Lists!J:J,0))","v":"Solar"},"In-State"]
[null,null,null,null,null,null,null,null,null,{"$f":"IFERROR(INDEX(raw_resource_build!$B$2:$B$1000,MATCH(0,COUNTIF($J$1:J943,raw_resource_build!$B$2:$B$1000), 0),0), \"\")","v":""},{"$f":"IF(J944=\"\", \"\", INDEX(raw_resource_build!E:E, MATCH(J944, raw_resource_build!B:B, 0)))","v":""},{"$f":"IF(J944=\"\", \"\", INDEX(raw_resource_build!C:C, MATCH(J944, raw_resource_build!B:B, 0)))","v":""},null,{"$f":"raw_resource_build!B944","v":"Greater_Kramer_Wind"},"In-State",{"$f":"IFERROR(INDEX($E$5:$E$32,MATCH(raw_resource_build!$E944,Lists!$B$5:$B$32,0)),\"Non-CAISO\")","v":"Renewables"},null,{"$f":"raw_annual_energy!C944","v":"Westlands_Ex_Solar"},{"$f":"INDEX(K:K,MATCH(R944,Lists!J:J,0))","v":"Solar"},"In-State"]
[null,null,null,null,null,null,null,null,null,{"$f":"IFERROR(INDEX(raw_resource_build!$B$2:$B$1000,MATCH(0,COUNTIF($J$1:J944,raw_resource_build!$B$2:$B$1000), 0),0), \"\")","v":""},{"$f":"IF(J945=\"\", \"\", INDEX(raw_resource_build!E:E, MATCH(J945, raw_resource_build!B:B, 0)))","v":""},{"$f":"IF(J945=\"\", \"\", INDEX(raw_resource_build!C:C, MATCH(J945, raw_resource_build!B:B, 0)))","v":""},null,{"$f":"raw_resource_build!B945","v":"Humboldt_Wind"},"In-State",{"$f":"IFERROR(INDEX($E$5:$E$32,MATCH(raw_resource_build!$E945,Lists!$B$5:$B$32,0)),\"Non-CAISO\")","v":"Renewables"},null,{"$f":"raw_annual_energy!C945","v":"Westlands_Ex_Solar"},{"$f":"INDEX(K:K,MATCH(R945,Lists!J:J,0))","v":"Solar"},"In-State"]
[null,null,null,null,null,null,null,null,null,{"$f":"IFERROR(INDEX(raw_resource_build!$B$2:$B$1000,MATCH(0,COUNTIF($J$1:J945,raw_resource_build!$B$2:$B$1000), 0),0), \"\")","v":""},{"$f":"IF(J946=\"\", \"\", INDEX(raw_resource_build!E:E, MATCH(J946, raw_resource_build!B:B, 0)))","v":""},{"$f":"IF(J946=\"\", \"\", INDEX(raw_resource_build!C:C, MATCH(J946, raw_resource_build!B:B, 0)))","v":""},null,{"$f":"raw_resource_build!B946","v":"Inyokern_North_Kramer_Solar"},"In-State",{"$f":"IFERROR(INDEX($E$5:$E$32,MATCH(raw_resource_build!$E946,Lists!$B$5:$B$32,0)),\"Non-CAISO\")","v":"Renewables"},null,{"$f":"raw_annual_energy!C946","v":"Westlands_Ex_Solar"},{"$f":"INDEX(K:K,MATCH(R946,Lists!J:J,0))","v":"Solar"},"In-State"]
[null,null,null,null,null,null,null,null,null,{"$f":"IFERROR(INDEX(raw_resource_build!$B$2:$B$1000,MATCH(0,COUNTIF($J$1:J946,raw_resource_build!$B$2:$B$1000), 0),0), \"\")","v":""},{"$f":"IF(J947=\"\", \"\", INDEX(raw_resource_build!E:E, MATCH(J947, raw_resource_build!B:B, 0)))","v":""},{"$f":"IF(J947=\"\", \"\", INDEX(raw_resource_build!C:C, MATCH(J947, raw_resource_build!B:B, 0)))","v":""},null,{"$f":"raw_resource_build!B947","v":"Kern_Greater_Carrizo_Solar"},"In-State",{"$f":"IFERROR(INDEX($E$5:$E$32,MATCH(raw_resource_build!$E947,Lists!$B$5:$B$32,0)),\"Non-CAISO\")","v":"Renewables"},null,{"$f":"raw_annual_energy!C947","v":"Westlands_Ex_Wind"},{"$f":"INDEX(K:K,MATCH(R947,Lists!J:J,0))","v":"Wind"},"In-State"]
[null,null,null,null,null,null,null,null,null,{"$f":"IFERROR(INDEX(raw_resource_build!$B$2:$B$1000,MATCH(0,COUNTIF($J$1:J947,raw_resource_build!$B$2:$B$1000), 0),0), \"\")","v":""},{"$f":"IF(J948=\"\", \"\", INDEX(raw_resource_build!E:E, MATCH(J948, raw_resource_build!B:B, 0)))","v":""},{"$f":"IF(J948=\"\", \"\", INDEX(raw_resource_build!C:C, MATCH(J948, raw_resource_build!B:B, 0)))","v":""},null,{"$f":"raw_resource_build!B948","v":"Kern_Greater_Carrizo_Wind"},"In-State",{"$f":"IFERROR(INDEX($E$5:$E$32,MATCH(raw_resource_build!$E948,Lists!$B$5:$B$32,0)),\"Non-CAISO\")","v":"Renewables"},null,{"$f":"raw_annual_energy!C948","v":"Westlands_Ex_Wind"},{"$f":"INDEX(K:K,MATCH(R948,Lists!J:J,0))","v":"Wind"},"In-State"]
[null,null,null,null,null,null,null,null,null,{"$f":"IFERROR(INDEX(raw_resource_build!$B$2:$B$1000,MATCH(0,COUNTIF($J$1:J948,raw_resource_build!$B$2:$B$1000), 0),0), \"\")","v":""},{"$f":"IF(J949=\"\", \"\", INDEX(raw_resource_build!E:E, MATCH(J949, raw_resource_build!B:B, 0)))","v":""},{"$f":"IF(J949=\"\", \"\", INDEX(raw_resource_build!C:C, MATCH(J949, raw_resource_build!B:B, 0)))","v":""},null,{"$f":"raw_resource_build!B949","v":"Kramer_Inyokern_Ex_Solar"},"In-State",{"$f":"IFERROR(INDEX($E$5:$E$32,MATCH(raw_resource_build!$E949,Lists!$B$5:$B$32,0)),\"Non-CAISO\")","v":"Renewables"},null,{"$f":"raw_annual_energy!C949","v":"Westlands_Ex_Wind"},{"$f":"INDEX(K:K,MATCH(R949,Lists!J:J,0))","v":"Wind"},"In-State"]
[null,null,null,null,null,null,null,null,null,{"$f":"IFERROR(INDEX(raw_resource_build!$B$2:$B$1000,MATCH(0,COUNTIF($J$1:J949,raw_resource_build!$B$2:$B$1000), 0),0), \"\")","v":""},{"$f":"IF(J950=\"\", \"\", INDEX(raw_resource_build!E:E, MATCH(J950, raw_resource_build!B:B, 0)))","v":""},{"$f":"IF(J950=\"\", \"\", INDEX(raw_resource_build!C:C, MATCH(J950, raw_resource_build!B:B, 0)))","v":""},null,{"$f":"raw_resource_build!B950","v":"Kramer_Inyokern_Ex_Wind"},"In-State",{"$f":"IFERROR(INDEX($E$5:$E$32,MATCH(raw_resource_build!$E950,Lists!$B$5:$B$32,0)),\"Non-CAISO\")","v":"Renewables"},null,{"$f":"raw_annual_energy!C950","v":"Westlands_Ex_Wind"},{"$f":"INDEX(K:K,MATCH(R950,Lists!J:J,0))","v":"Wind"},"In-State"]
[null,null,null,null,null,null,null,null,null,{"$f":"IFERROR(INDEX(raw_resource_build!$B$2:$B$1000,MATCH(0,COUNTIF($J$1:J950,raw_resource_build!$B$2:$B$1000), 0),0), \"\")","v":""},{"$f":"IF(J951=\"\", \"\", INDEX(raw_resource_build!E:E, MATCH(J951, raw_resource_build!B:B, 0)))","v":""},{"$f":"IF(J951=\"\", \"\", INDEX(raw_resource_build!C:C, MATCH(J951, raw_resource_build!B:B, 0)))","v":""},null,{"$f":"raw_resource_build!B951","v":"North_Victor_Solar"},"In-State",{"$f":"IFERROR(INDEX($E$5:$E$32,MATCH(raw_resource_build!$E951,Lists!$B$5:$B$32,0)),\"Non-CAISO\")","v":"Renewables"},null,{"$f":"raw_annual_energy!C951","v":"Westlands_Ex_Wind"},{"$f":"INDEX(K:K,MATCH(R951,Lists!J:J,0))","v":"Wind"},"In-State"]
[null,null,null,null,null,null,null,null,null,{"$f":"IFERROR(INDEX(raw_resource_build!$B$2:$B$1000,MATCH(0,COUNTIF($J$1:J951,raw_resource_build!$B$2:$B$1000), 0),0), \"\")","v":""},{"$f":"IF(J952=\"\", \"\", INDEX(raw_resource_build!E:E, MATCH(J952, raw_resource_build!B:B, 0)))","v":""},{"$f":"IF(J952=\"\", \"\", INDEX(raw_resource_build!C:C, MATCH(J952, raw_resource_build!B:B, 0)))","v":""},null,{"$f":"raw_resource_build!B952","v":"Northern_California_Ex_Solar"},"In-State",{"$f":"IFERROR(INDEX($E$5:$E$32,MATCH(raw_resource_build!$E952,Lists!$B$5:$B$32,0)),\"Non-CAISO\")","v":"Renewables"},null,{"$f":"raw_annual_energy!C952","v":"Westlands_Ex_Wind"},{"$f":"INDEX(K:K,MATCH(R952,Lists!J:J,0))","v":"Wind"},"In-State"]
[null,null,null,null,null,null,null,null,null,{"$f":"IFERROR(INDEX(raw_resource_build!$B$2:$B$1000,MATCH(0,COUNTIF($J$1:J952,raw_resource_build!$B$2:$B$1000), 0),0), \"\")","v":""},{"$f":"IF(J953=\"\", \"\", INDEX(raw_resource_build!E:E, MATCH(J953, raw_resource_build!B:B, 0)))","v":""},{"$f":"IF(J953=\"\", \"\", INDEX(raw_resource_build!C:C, MATCH(J953, raw_resource_build!B:B, 0)))","v":""},null,{"$f":"raw_resource_build!B953","v":"Northern_California_Ex_Wind"},"In-State",{"$f":"IFERROR(INDEX($E$5:$E$32,MATCH(raw_resource_build!$E953,Lists!$B$5:$B$32,0)),\"Non-CAISO\")","v":"Renewables"},null,{"$f":"raw_annual_energy!C953","v":"Westlands_Ex_Wind"},{"$f":"INDEX(K:K,MATCH(R953,Lists!J:J,0))","v":"Wind"},"In-State"]
[null,null,null,null,null,null,null,null,null,{"$f":"IFERROR(INDEX(raw_resource_build!$B$2:$B$1000,MATCH(0,COUNTIF($J$1:J953,raw_resource_build!$B$2:$B$1000), 0),0), \"\")","v":""},{"$f":"IF(J954=\"\", \"\", INDEX(raw_resource_build!E:E, MATCH(J954, raw_resource_build!B:B, 0)))","v":""},{"$f":"IF(J954=\"\", \"\", INDEX(raw_resource_build!C:C, MATCH(J954, raw_resource_build!B:B, 0)))","v":""},null,{"$f":"raw_resource_build!B954","v":"NW_Ext_Tx_Wind"},"In-State",{"$f":"IFERROR(INDEX($E$5:$E$32,MATCH(raw_resource_build!$E954,Lists!$B$5:$B$32,0)),\"Non-CAISO\")","v":"Renewables"},null,{"$f":"raw_annual_energy!C954","v":"Westlands_Ex_Wind"},{"$f":"INDEX(K:K,MATCH(R954,Lists!J:J,0))","v":"Wind"},"In-State"]
[null,null,null,null,null,null,null,null,null,{"$f":"IFERROR(INDEX(raw_resource_build!$B$2:$B$1000,MATCH(0,COUNTIF($J$1:J954,raw_resource_build!$B$2:$B$1000), 0),0), \"\")","v":""},{"$f":"IF(J955=\"\", \"\", INDEX(raw_resource_build!E:E, MATCH(J955, raw_resource_build!B:B, 0)))","v":""},{"$f":"IF(J955=\"\", \"\", INDEX(raw_resource_build!C:C, MATCH(J955, raw_resource_build!B:B, 0)))","v":""},null,{"$f":"raw_resource_build!B955","v":"Riverside_Palm_Springs_Solar"},"In-State",{"$f":"IFERROR(INDEX($E$5:$E$32,MATCH(raw_resource_build!$E955,Lists!$B$5:$B$32,0)),\"Non-CAISO\")","v":"Renewables"},null,{"$f":"raw_annual_energy!C955","v":"Westlands_Solar"},{"$f":"INDEX(K:K,MATCH(R955,Lists!J:J,0))","v":"Solar"},"In-State"]
[null,null,null,null,null,null,null,null,null,{"$f":"IFERROR(INDEX(raw_resource_build!$B$2:$B$1000,MATCH(0,COUNTIF($J$1:J955,raw_resource_build!$B$2:$B$1000), 0),0), \"\")","v":""},{"$f":"IF(J956=\"\", \"\", INDEX(raw_resource_build!E:E, MATCH(J956, raw_resource_build!B:B, 0)))","v":""},{"$f":"IF(J956=\"\", \"\", INDEX(raw_resource_build!C:C, MATCH(J956, raw_resource_build!B:B, 0)))","v":""},null,{"$f":"raw_resource_build!B956","v":"Sacramento_River_Solar"},"In-State",{"$f":"IFERROR(INDEX($E$5:$E$32,MATCH(raw_resource_build!$E956,Lists!$B$5:$B$32,0)),\"Non-CAISO\")","v":"Renewables"},null,{"$f":"raw_annual_energy!C956","v":"Westlands_Solar"},{"$f":"INDEX(K:K,MATCH(R956,Lists!J:J,0))","v":"Solar"},"In-State"]
[null,null,null,null,null,null,null,null,null,{"$f":"IFERROR(INDEX(raw_resource_build!$B$2:$B$1000,MATCH(0,COUNTIF($J$1:J956,raw_resource_build!$B$2:$B$1000), 0),0), \"\")","v":""},{"$f":"IF(J957=\"\", \"\", INDEX(raw_resource_build!E:E, MATCH(J957, raw_resource_build!B:B, 0)))","v":""},{"$f":"IF(J957=\"\", \"\", INDEX(raw_resource_build!C:C, MATCH(J957, raw_resource_build!B:B, 0)))","v":""},null,{"$f":"raw_resource_build!B957","v":"Sacramento_River_Wind"},"In-State",{"$f":"IFERROR(INDEX($E$5:$E$32,MATCH(raw_resource_build!$E957,Lists!$B$5:$B$32,0)),\"Non-CAISO\")","v":"Renewables"},null,{"$f":"raw_annual_energy!C957","v":"Westlands_Solar"},{"$f":"INDEX(K:K,MATCH(R957,Lists!J:J,0))","v":"Solar"},"In-State"]
[null,null,null,null,null,null,null,null,null,{"$f":"IFERROR(INDEX(raw_resource_build!$B$2:$B$1000,MATCH(0,COUNTIF($J$1:J957,raw_resource_build!$B$2:$B$1000), 0),0), \"\")","v":""},{"$f":"IF(J958=\"\", \"\", INDEX(raw_resource_build!E:E, MATCH(J958, raw_resource_build!B:B, 0)))","v":""},{"$f":"IF(J958=\"\", \"\", INDEX(raw_resource_build!C:C, MATCH(J958, raw_resource_build!B:B, 0)))","v":""},null,{"$f":"raw_resource_build!B958","v":"SCADSNV_Solar"},"In-State",{"$f":"IFERROR(INDEX($E$5:$E$32,MATCH(raw_resource_build!$E958,Lists!$B$5:$B$32,0)),\"Non-CAISO\")","v":"Renewables"},null,{"$f":"raw_annual_energy!C958","v":"Westlands_Solar"},{"$f":"INDEX(K:K,MATCH(R958,Lists!J:J,0))","v":"Solar"},"In-State"]
[null,null,null,null,null,null,null,null,null,{"$f":"IFERROR(INDEX(raw_resource_build!$B$2:$B$1000,MATCH(0,COUNTIF($J$1:J958,raw_resource_build!$B$2:$B$1000), 0),0), \"\")","v":""},{"$f":"IF(J959=\"\", \"\", INDEX(raw_resource_build!E:E, MATCH(J959, raw_resource_build!B:B, 0)))","v":""},{"$f":"IF(J959=\"\", \"\", INDEX(raw_resource_build!C:C, MATCH(J959, raw_resource_build!B:B, 0)))","v":""},null,{"$f":"raw_resource_build!B959","v":"SCADSNV_Wind"},"In-State",{"$f":"IFERROR(INDEX($E$5:$E$32,MATCH(raw_resource_build!$E959,Lists!$B$5:$B$32,0)),\"Non-CAISO\")","v":"Renewables"},null,{"$f":"raw_annual_energy!C959","v":"Westlands_Solar"},{"$f":"INDEX(K:K,MATCH(R959,Lists!J:J,0))","v":"Solar"},"In-State"]
[null,null,null,null,null,null,null,null,null,{"$f":"IFERROR(INDEX(raw_resource_build!$B$2:$B$1000,MATCH(0,COUNTIF($J$1:J959,raw_resource_build!$B$2:$B$1000), 0),0), \"\")","v":""},{"$f":"IF(J960=\"\", \"\", INDEX(raw_resource_build!E:E, MATCH(J960, raw_resource_build!B:B, 0)))","v":""},{"$f":"IF(J960=\"\", \"\", INDEX(raw_resource_build!C:C, MATCH(J960, raw_resource_build!B:B, 0)))","v":""},null,{"$f":"raw_resource_build!B960","v":"Solano_Solar"},"In-State",{"$f":"IFERROR(INDEX($E$5:$E$32,MATCH(raw_resource_build!$E960,Lists!$B$5:$B$32,0)),\"Non-CAISO\")","v":"Renewables"},null,{"$f":"raw_annual_energy!C960","v":"Westlands_Solar"},{"$f":"INDEX(K:K,MATCH(R960,Lists!J:J,0))","v":"Solar"},"In-State"]
[null,null,null,null,null,null,null,null,null,{"$f":"IFERROR(INDEX(raw_resource_build!$B$2:$B$1000,MATCH(0,COUNTIF($J$1:J960,raw_resource_build!$B$2:$B$1000), 0),0), \"\")","v":""},{"$f":"IF(J961=\"\", \"\", INDEX(raw_resource_build!E:E, MATCH(J961, raw_resource_build!B:B, 0)))","v":""},{"$f":"IF(J961=\"\", \"\", INDEX(raw_resource_build!C:C, MATCH(J961, raw_resource_build!B:B, 0)))","v":""},null,{"$f":"raw_resource_build!B961","v":"Solano_subzone_Solar"},"In-State",{"$f":"IFERROR(INDEX($E$5:$E$32,MATCH(raw_resource_build!$E961,Lists!$B$5:$B$32,0)),\"Non-CAISO\")","v":"Renewables"},null,{"$f":"raw_annual_energy!C961","v":"Westlands_Solar"},{"$f":"INDEX(K:K,MATCH(R961,Lists!J:J,0))","v":"Solar"},"In-State"]
[null,null,null,null,null,null,null,null,null,{"$f":"IFERROR(INDEX(raw_resource_build!$B$2:$B$1000,MATCH(0,COUNTIF($J$1:J961,raw_resource_build!$B$2:$B$1000), 0),0), \"\")","v":""},{"$f":"IF(J962=\"\", \"\", INDEX(raw_resource_build!E:E, MATCH(J962, raw_resource_build!B:B, 0)))","v":""},{"$f":"IF(J962=\"\", \"\", INDEX(raw_resource_build!C:C, MATCH(J962, raw_resource_build!B:B, 0)))","v":""},null,{"$f":"raw_resource_build!B962","v":"Solano_subzone_Wind"},"In-State",{"$f":"IFERROR(INDEX($E$5:$E$32,MATCH(raw_resource_build!$E962,Lists!$B$5:$B$32,0)),\"Non-CAISO\")","v":"Renewables"},null,{"$f":"raw_annual_energy!C962","v":"Westlands_Solar"},{"$f":"INDEX(K:K,MATCH(R962,Lists!J:J,0))","v":"Solar"},"In-State"]
[null,null,null,null,null,null,null,null,null,{"$f":"IFERROR(INDEX(raw_resource_build!$B$2:$B$1000,MATCH(0,COUNTIF($J$1:J962,raw_resource_build!$B$2:$B$1000), 0),0), \"\")","v":""},{"$f":"IF(J963=\"\", \"\", INDEX(raw_resource_build!E:E, MATCH(J963, raw_resource_build!B:B, 0)))","v":""},{"$f":"IF(J963=\"\", \"\", INDEX(raw_resource_build!C:C, MATCH(J963, raw_resource_build!B:B, 0)))","v":""},null,{"$f":"raw_resource_build!B963","v":"Solano_Wind"},{"$f":"IFERROR(INDEX($C$35:$C$99,MATCH($N963,$B$35:$B$99,0)),\"Non-wind\")","v":"In-State"},{"$f":"IFERROR(INDEX($E$5:$E$32,MATCH(raw_resource_build!$E963,Lists!$B$5:$B$32,0)),\"Non-CAISO\")","v":"Renewables"},null,{"$f":"raw_annual_energy!C963","v":"Wyoming_Wind"},{"$f":"INDEX(K:K,MATCH(R963,Lists!J:J,0))","v":"Wind"},{"$f":"IFERROR(INDEX($C$35:$C$99,MATCH($R963,$B$35:$B$99,0)),\"Non-wind\")","v":"Out-Of-State"}]
[null,null,null,null,null,null,null,null,null,{"$f":"IFERROR(INDEX(raw_resource_build!$B$2:$B$1000,MATCH(0,COUNTIF($J$1:J963,raw_resource_build!$B$2:$B$1000), 0),0), \"\")","v":""},{"$f":"IF(J964=\"\", \"\", INDEX(raw_resource_build!E:E, MATCH(J964, raw_resource_build!B:B, 0)))","v":""},{"$f":"IF(J964=\"\", \"\", INDEX(raw_resource_build!C:C, MATCH(J964, raw_resource_build!B:B, 0)))","v":""},null,{"$f":"raw_resource_build!B964","v":"Southern_California_Desert_Ex_Solar"},"In-State",{"$f":"IFERROR(INDEX($E$5:$E$32,MATCH(raw_resource_build!$E964,Lists!$B$5:$B$32,0)),\"Non-CAISO\")","v":"Renewables"},null,{"$f":"raw_annual_energy!C964","v":"Wyoming_Wind"},{"$f":"INDEX(K:K,MATCH(R964,Lists!J:J,0))","v":"Wind"},"Out-Of-State"]
[null,null,null,null,null,null,null,null,null,{"$f":"IFERROR(INDEX(raw_resource_build!$B$2:$B$1000,MATCH(0,COUNTIF($J$1:J964,raw_resource_build!$B$2:$B$1000), 0),0), \"\")","v":""},{"$f":"IF(J965=\"\", \"\", INDEX(raw_resource_build!E:E, MATCH(J965, raw_resource_build!B:B, 0)))","v":""},{"$f":"IF(J965=\"\", \"\", INDEX(raw_resource_build!C:C, MATCH(J965, raw_resource_build!B:B, 0)))","v":""},null,{"$f":"raw_resource_build!B965","v":"Southern_California_Desert_Ex_Wind"},"In-State",{"$f":"IFERROR(INDEX($E$5:$E$32,MATCH(raw_resource_build!$E965,Lists!$B$5:$B$32,0)),\"Non-CAISO\")","v":"Renewables"},null,{"$f":"raw_annual_energy!C965","v":"Wyoming_Wind"},{"$f":"INDEX(K:K,MATCH(R965,Lists!J:J,0))","v":"Wind"},"Out-Of-State"]
[null,null,null,null,null,null,null,null,null,{"$f":"IFERROR(INDEX(raw_resource_build!$B$2:$B$1000,MATCH(0,COUNTIF($J$1:J965,raw_resource_build!$B$2:$B$1000), 0),0), \"\")","v":""},{"$f":"IF(J966=\"\", \"\", INDEX(raw_resource_build!E:E, MATCH(J966, raw_resource_build!B:B, 0)))","v":""},{"$f":"IF(J966=\"\", \"\", INDEX(raw_resource_build!C:C, MATCH(J966, raw_resource_build!B:B, 0)))","v":""},null,{"$f":"raw_resource_build!B966","v":"Southern_Nevada_Solar"},"In-State",{"$f":"IFERROR(INDEX($E$5:$E$32,MATCH(raw_resource_build!$E966,Lists!$B$5:$B$32,0)),\"Non-CAISO\")","v":"Renewables"},null,{"$f":"raw_annual_energy!C966","v":"Wyoming_Wind"},{"$f":"INDEX(K:K,MATCH(R966,Lists!J:J,0))","v":"Wind"},"Out-Of-State"]
[null,null,null,null,null,null,null,null,null,{"$f":"IFERROR(INDEX(raw_resource_build!$B$2:$B$1000,MATCH(0,COUNTIF($J$1:J966,raw_resource_build!$B$2:$B$1000), 0),0), \"\")","v":""},{"$f":"IF(J967=\"\", \"\", INDEX(raw_resource_build!E:E, MATCH(J967, raw_resource_build!B:B, 0)))","v":""},{"$f":"IF(J967=\"\", \"\", INDEX(raw_resource_build!C:C, MATCH(J967, raw_resource_build!B:B, 0)))","v":""},null,{"$f":"raw_resource_build!B967","v":"Southern_Nevada_Wind"},"In-State",{"$f":"IFERROR(INDEX($E$5:$E$32,MATCH(raw_resource_build!$E967,Lists!$B$5:$B$32,0)),\"Non-CAISO\")","v":"Renewables"},null,{"$f":"raw_annual_energy!C967","v":"Wyoming_Wind"},{"$f":"INDEX(K:K,MATCH(R967,Lists!J:J,0))","v":"Wind"},"Out-Of-State"]
[null,null,null,null,null,null,null,null,null,{"$f":"IFERROR(INDEX(raw_resource_build!$B$2:$B$1000,MATCH(0,COUNTIF($J$1:J967,raw_resource_build!$B$2:$B$1000), 0),0), \"\")","v":""},{"$f":"IF(J968=\"\", \"\", INDEX(raw_resource_build!E:E, MATCH(J968, raw_resource_build!B:B, 0)))","v":""},{"$f":"IF(J968=\"\", \"\", INDEX(raw_resource_build!C:C, MATCH(J968, raw_resource_build!B:B, 0)))","v":""},null,{"$f":"raw_resource_build!B968","v":"SW_Ext_Tx_Wind"},"In-State",{"$f":"IFERROR(INDEX($E$5:$E$32,MATCH(raw_resource_build!$E968,Lists!$B$5:$B$32,0)),\"Non-CAISO\")","v":"Renewables"},null,{"$f":"raw_annual_energy!C968","v":"Wyoming_Wind"},{"$f":"INDEX(K:K,MATCH(R968,Lists!J:J,0))","v":"Wind"},"Out-Of-State"]
[null,null,null,null,null,null,null,null,null,{"$f":"IFERROR(INDEX(raw_resource_build!$B$2:$B$1000,MATCH(0,COUNTIF($J$1:J968,raw_resource_build!$B$2:$B$1000), 0),0), \"\")","v":""},{"$f":"IF(J969=\"\", \"\", INDEX(raw_resource_build!E:E, MATCH(J969, raw_resource_build!B:B, 0)))","v":""},{"$f":"IF(J969=\"\", \"\", INDEX(raw_resource_build!C:C, MATCH(J969, raw_resource_build!B:B, 0)))","v":""},null,{"$f":"raw_resource_build!B969","v":"Tehachapi_Ex_Solar"},"In-State",{"$f":"IFERROR(INDEX($E$5:$E$32,MATCH(raw_resource_build!$E969,Lists!$B$5:$B$32,0)),\"Non-CAISO\")","v":"Renewables"},null,{"$f":"raw_annual_energy!C969","v":"Wyoming_Wind"},{"$f":"INDEX(K:K,MATCH(R969,Lists!J:J,0))","v":"Wind"},"Out-Of-State"]
[null,null,null,null,null,null,null,null,null,{"$f":"IFERROR(INDEX(raw_resource_build!$B$2:$B$1000,MATCH(0,COUNTIF($J$1:J969,raw_resource_build!$B$2:$B$1000), 0),0), \"\")","v":""},{"$f":"IF(J970=\"\", \"\", INDEX(raw_resource_build!E:E, MATCH(J970, raw_resource_build!B:B, 0)))","v":""},{"$f":"IF(J970=\"\", \"\", INDEX(raw_resource_build!C:C, MATCH(J970, raw_resource_build!B:B, 0)))","v":""},null,{"$f":"raw_resource_build!B970","v":"Tehachapi_Solar"},"In-State",{"$f":"IFERROR(INDEX($E$5:$E$32,MATCH(raw_resource_build!$E970,Lists!$B$5:$B$32,0)),\"Non-CAISO\")","v":"Renewables"},null,{"$f":"raw_annual_energy!C970","v":"Wyoming_Wind"},{"$f":"INDEX(K:K,MATCH(R970,Lists!J:J,0))","v":"Wind"},"Out-Of-State"]
[null,null,null,null,null,null,null,null,null,{"$f":"IFERROR(INDEX(raw_resource_build!$B$2:$B$1000,MATCH(0,COUNTIF($J$1:J970,raw_resource_build!$B$2:$B$1000), 0),0), \"\")","v":""},{"$f":"IF(J971=\"\", \"\", INDEX(raw_resource_build!E:E, MATCH(J971, raw_resource_build!B:B, 0)))","v":""},{"$f":"IF(J971=\"\", \"\", INDEX(raw_resource_build!C:C, MATCH(J971, raw_resource_build!B:B, 0)))","v":""},null,{"$f":"raw_resource_build!B971","v":"Tehachapi_Wind"},"In-State",{"$f":"IFERROR(INDEX($E$5:$E$32,MATCH(raw_resource_build!$E971,Lists!$B$5:$B$32,0)),\"Non-CAISO\")","v":"Renewables"},null,{"$f":"raw_annual_energy!C971","v":"NW_Hydro_for_CAISO"},{"$f":"INDEX(K:K,MATCH(R971,Lists!J:J,0))","v":"Hydro_NW_CAISO"},"Non-wind"]
[null,null,null,null,null,null,null,null,null,{"$f":"IFERROR(INDEX(raw_resource_build!$B$2:$B$1000,MATCH(0,COUNTIF($J$1:J971,raw_resource_build!$B$2:$B$1000), 0),0), \"\")","v":""},{"$f":"IF(J972=\"\", \"\", INDEX(raw_resource_build!E:E, MATCH(J972, raw_resource_build!B:B, 0)))","v":""},{"$f":"IF(J972=\"\", \"\", INDEX(raw_resource_build!C:C, MATCH(J972, raw_resource_build!B:B, 0)))","v":""},null,{"$f":"raw_resource_build!B972","v":"Westlands_Ex_Solar"},"In-State",{"$f":"IFERROR(INDEX($E$5:$E$32,MATCH(raw_resource_build!$E972,Lists!$B$5:$B$32,0)),\"Non-CAISO\")","v":"Renewables"},null,{"$f":"raw_annual_energy!C972","v":"NW_Hydro_for_CAISO"},{"$f":"INDEX(K:K,MATCH(R972,Lists!J:J,0))","v":"Hydro_NW_CAISO"},"Non-wind"]
[null,null,null,null,null,null,null,null,null,{"$f":"IFERROR(INDEX(raw_resource_build!$B$2:$B$1000,MATCH(0,COUNTIF($J$1:J972,raw_resource_build!$B$2:$B$1000), 0),0), \"\")","v":""},{"$f":"IF(J973=\"\", \"\", INDEX(raw_resource_build!E:E, MATCH(J973, raw_resource_build!B:B, 0)))","v":""},{"$f":"IF(J973=\"\", \"\", INDEX(raw_resource_build!C:C, MATCH(J973, raw_resource_build!B:B, 0)))","v":""},null,{"$f":"raw_resource_build!B973","v":"Westlands_Ex_Wind"},"In-State",{"$f":"IFERROR(INDEX($E$5:$E$32,MATCH(raw_resource_build!$E973,Lists!$B$5:$B$32,0)),\"Non-CAISO\")","v":"Renewables"},null,{"$f":"raw_annual_energy!C973","v":"NW_Hydro_for_CAISO"},{"$f":"INDEX(K:K,MATCH(R973,Lists!J:J,0))","v":"Hydro_NW_CAISO"},"Non-wind"]
[null,null,null,null,null,null,null,null,null,{"$f":"IFERROR(INDEX(raw_resource_build!$B$2:$B$1000,MATCH(0,COUNTIF($J$1:J973,raw_resource_build!$B$2:$B$1000), 0),0), \"\")","v":""},{"$f":"IF(J974=\"\", \"\", INDEX(raw_resource_build!E:E, MATCH(J974, raw_resource_build!B:B, 0)))","v":""},{"$f":"IF(J974=\"\", \"\", INDEX(raw_resource_build!C:C, MATCH(J974, raw_resource_build!B:B, 0)))","v":""},null,{"$f":"raw_resource_build!B974","v":"Westlands_Solar"},"In-State",{"$f":"IFERROR(INDEX($E$5:$E$32,MATCH(raw_resource_build!$E974,Lists!$B$5:$B$32,0)),\"Non-CAISO\")","v":"Renewables"},null,{"$f":"raw_annual_energy!C974","v":"NW_Hydro_for_CAISO"},{"$f":"INDEX(K:K,MATCH(R974,Lists!J:J,0))","v":"Hydro_NW_CAISO"},"Non-wind"]
[null,null,null,null,null,null,null,null,null,{"$f":"IFERROR(INDEX(raw_resource_build!$B$2:$B$1000,MATCH(0,COUNTIF($J$1:J974,raw_resource_build!$B$2:$B$1000), 0),0), \"\")","v":""},{"$f":"IF(J975=\"\", \"\", INDEX(raw_resource_build!E:E, MATCH(J975, raw_resource_build!B:B, 0)))","v":""},{"$f":"IF(J975=\"\", \"\", INDEX(raw_resource_build!C:C, MATCH(J975, raw_resource_build!B:B, 0)))","v":""},null,{"$f":"raw_resource_build!B975","v":"Arizona_Solar"},"In-State",{"$f":"IFERROR(INDEX($E$5:$E$32,MATCH(raw_resource_build!$E975,Lists!$B$5:$B$32,0)),\"Non-CAISO\")","v":"Renewables"},null,{"$f":"raw_annual_energy!C975","v":"NW_Hydro_for_CAISO"},{"$f":"INDEX(K:K,MATCH(R975,Lists!J:J,0))","v":"Hydro_NW_CAISO"},"Non-wind"]
[null,null,null,null,null,null,null,null,null,{"$f":"IFERROR(INDEX(raw_resource_build!$B$2:$B$1000,MATCH(0,COUNTIF($J$1:J975,raw_resource_build!$B$2:$B$1000), 0),0), \"\")","v":""},{"$f":"IF(J976=\"\", \"\", INDEX(raw_resource_build!E:E, MATCH(J976, raw_resource_build!B:B, 0)))","v":""},{"$f":"IF(J976=\"\", \"\", INDEX(raw_resource_build!C:C, MATCH(J976, raw_resource_build!B:B, 0)))","v":""},null,{"$f":"raw_resource_build!B976","v":"Arizona_Wind"},"Out-Of-State",{"$f":"IFERROR(INDEX($E$5:$E$32,MATCH(raw_resource_build!$E976,Lists!$B$5:$B$32,0)),\"Non-CAISO\")","v":"Renewables"},null,{"$f":"raw_annual_energy!C976","v":"NW_Hydro_for_CAISO"},{"$f":"INDEX(K:K,MATCH(R976,Lists!J:J,0))","v":"Hydro_NW_CAISO"},"Non-wind"]
[null,null,null,null,null,null,null,null,null,{"$f":"IFERROR(INDEX(raw_resource_build!$B$2:$B$1000,MATCH(0,COUNTIF($J$1:J976,raw_resource_build!$B$2:$B$1000), 0),0), \"\")","v":""},{"$f":"IF(J977=\"\", \"\", INDEX(raw_resource_build!E:E, MATCH(J977, raw_resource_build!B:B, 0)))","v":""},{"$f":"IF(J977=\"\", \"\", INDEX(raw_resource_build!C:C, MATCH(J977, raw_resource_build!B:B, 0)))","v":""},null,{"$f":"raw_resource_build!B977","v":"Baja_California_Solar"},"In-State",{"$f":"IFERROR(INDEX($E$5:$E$32,MATCH(raw_resource_build!$E977,Lists!$B$5:$B$32,0)),\"Non-CAISO\")","v":"Renewables"},null,{"$f":"raw_annual_energy!C977","v":"NW_Hydro_for_CAISO"},{"$f":"INDEX(K:K,MATCH(R977,Lists!J:J,0))","v":"Hydro_NW_CAISO"},"Non-wind"]
[null,null,null,null,null,null,null,null,null,{"$f":"IFERROR(INDEX(raw_resource_build!$B$2:$B$1000,MATCH(0,COUNTIF($J$1:J977,raw_resource_build!$B$2:$B$1000), 0),0), \"\")","v":""},{"$f":"IF(J978=\"\", \"\", INDEX(raw_resource_build!E:E, MATCH(J978, raw_resource_build!B:B, 0)))","v":""},{"$f":"IF(J978=\"\", \"\", INDEX(raw_resource_build!C:C, MATCH(J978, raw_resource_build!B:B, 0)))","v":""},null,{"$f":"raw_resource_build!B978","v":"Baja_California_Wind"},"In-State",{"$f":"IFERROR(INDEX($E$5:$E$32,MATCH(raw_resource_build!$E978,Lists!$B$5:$B$32,0)),\"Non-CAISO\")","v":"Renewables"},null,{"$f":"raw_annual_energy!C978","v":"NW_Hydro_for_CAISO"},{"$f":"INDEX(K:K,MATCH(R978,Lists!J:J,0))","v":"Hydro_NW_CAISO"},"Non-wind"]
[null,null,null,null,null,null,null,null,null,{"$f":"IFERROR(INDEX(raw_resource_build!$B$2:$B$1000,MATCH(0,COUNTIF($J$1:J978,raw_resource_build!$B$2:$B$1000), 0),0), \"\")","v":""},{"$f":"IF(J979=\"\", \"\", INDEX(raw_resource_build!E:E, MATCH(J979, raw_resource_build!B:B, 0)))","v":""},{"$f":"IF(J979=\"\", \"\", INDEX(raw_resource_build!C:C, MATCH(J979, raw_resource_build!B:B, 0)))","v":""},null,{"$f":"raw_resource_build!B979","v":"Idaho_Wind"},"Out-Of-State",{"$f":"IFERROR(INDEX($E$5:$E$32,MATCH(raw_resource_build!$E979,Lists!$B$5:$B$32,0)),\"Non-CAISO\")","v":"Renewables"},null,{"$f":"raw_annual_energy!C979","v":"IID_Geothermal_for_CAISO"},{"$f":"INDEX(K:K,MATCH(R979,Lists!J:J,0))","v":"Geothermal"},"Non-wind"]
[null,null,null,null,null,null,null,null,null,{"$f":"IFERROR(INDEX(raw_resource_build!$B$2:$B$1000,MATCH(0,COUNTIF($J$1:J979,raw_resource_build!$B$2:$B$1000), 0),0), \"\")","v":""},{"$f":"IF(J980=\"\", \"\", INDEX(raw_resource_build!E:E, MATCH(J980, raw_resource_build!B:B, 0)))","v":""},{"$f":"IF(J980=\"\", \"\", INDEX(raw_resource_build!C:C, MATCH(J980, raw_resource_build!B:B, 0)))","v":""},null,{"$f":"raw_resource_build!B980","v":"New_Mexico_Solar"},"Out-Of-State",{"$f":"IFERROR(INDEX($E$5:$E$32,MATCH(raw_resource_build!$E980,Lists!$B$5:$B$32,0)),\"Non-CAISO\")","v":"Renewables"},null,{"$f":"raw_annual_energy!C980","v":"IID_Geothermal_for_CAISO"},{"$f":"INDEX(K:K,MATCH(R980,Lists!J:J,0))","v":"Geothermal"},"Non-wind"]
[null,null,null,null,null,null,null,null,null,{"$f":"IFERROR(INDEX(raw_resource_build!$B$2:$B$1000,MATCH(0,COUNTIF($J$1:J980,raw_resource_build!$B$2:$B$1000), 0),0), \"\")","v":""},{"$f":"IF(J981=\"\", \"\", INDEX(raw_resource_build!E:E, MATCH(J981, raw_resource_build!B:B, 0)))","v":""},{"$f":"IF(J981=\"\", \"\", INDEX(raw_resource_build!C:C, MATCH(J981, raw_resource_build!B:B, 0)))","v":""},null,{"$f":"raw_resource_build!B981","v":"New_Mexico_Wind"},"Out-Of-State",{"$f":"IFERROR(INDEX($E$5:$E$32,MATCH(raw_resource_build!$E981,Lists!$B$5:$B$32,0)),\"Non-CAISO\")","v":"Renewables"},null,{"$f":"raw_annual_energy!C981","v":"IID_Geothermal_for_CAISO"},{"$f":"INDEX(K:K,MATCH(R981,Lists!J:J,0))","v":"Geothermal"},"Non-wind"]
[null,null,null,null,null,null,null,null,null,{"$f":"IFERROR(INDEX(raw_resource_build!$B$2:$B$1000,MATCH(0,COUNTIF($J$1:J981,raw_resource_build!$B$2:$B$1000), 0),0), \"\")","v":""},{"$f":"IF(J982=\"\", \"\", INDEX(raw_resource_build!E:E, MATCH(J982, raw_resource_build!B:B, 0)))","v":""},{"$f":"IF(J982=\"\", \"\", INDEX(raw_resource_build!C:C, MATCH(J982, raw_resource_build!B:B, 0)))","v":""},null,{"$f":"raw_resource_build!B982","v":"Utah_Solar"},"Out-Of-State",{"$f":"IFERROR(INDEX($E$5:$E$32,MATCH(raw_resource_build!$E982,Lists!$B$5:$B$32,0)),\"Non-CAISO\")","v":"Renewables"},null,{"$f":"raw_annual_energy!C982","v":"IID_Geothermal_for_CAISO"},{"$f":"INDEX(K:K,MATCH(R982,Lists!J:J,0))","v":"Geothermal"},"Non-wind"]
[null,null,null,null,null,null,null,null,null,{"$f":"IFERROR(INDEX(raw_resource_build!$B$2:$B$1000,MATCH(0,COUNTIF($J$1:J982,raw_resource_build!$B$2:$B$1000), 0),0), \"\")","v":""},{"$f":"IF(J983=\"\", \"\", INDEX(raw_resource_build!E:E, MATCH(J983, raw_resource_build!B:B, 0)))","v":""},{"$f":"IF(J983=\"\", \"\", INDEX(raw_resource_build!C:C, MATCH(J983, raw_resource_build!B:B, 0)))","v":""},null,{"$f":"raw_resource_build!B983","v":"Utah_Wind"},"Out-Of-State",{"$f":"IFERROR(INDEX($E$5:$E$32,MATCH(raw_resource_build!$E983,Lists!$B$5:$B$32,0)),\"Non-CAISO\")","v":"Renewables"},null,{"$f":"raw_annual_energy!C983","v":"IID_Geothermal_for_CAISO"},{"$f":"INDEX(K:K,MATCH(R983,Lists!J:J,0))","v":"Geothermal"},"Non-wind"]
[null,null,null,null,null,null,null,null,null,{"$f":"IFERROR(INDEX(raw_resource_build!$B$2:$B$1000,MATCH(0,COUNTIF($J$1:J983,raw_resource_build!$B$2:$B$1000), 0),0), \"\")","v":""},{"$f":"IF(J984=\"\", \"\", INDEX(raw_resource_build!E:E, MATCH(J984, raw_resource_build!B:B, 0)))","v":""},{"$f":"IF(J984=\"\", \"\", INDEX(raw_resource_build!C:C, MATCH(J984, raw_resource_build!B:B, 0)))","v":""},null,{"$f":"raw_resource_build!B984","v":"Wyoming_Wind"},"Out-Of-State",{"$f":"IFERROR(INDEX($E$5:$E$32,MATCH(raw_resource_build!$E984,Lists!$B$5:$B$32,0)),\"Non-CAISO\")","v":"Renewables"},null,{"$f":"raw_annual_energy!C984","v":"IID_Geothermal_for_CAISO"},{"$f":"INDEX(K:K,MATCH(R984,Lists!J:J,0))","v":"Geothermal"},"Non-wind"]
[null,null,null,null,null,null,null,null,null,{"$f":"IFERROR(INDEX(raw_resource_build!$B$2:$B$1000,MATCH(0,COUNTIF($J$1:J984,raw_resource_build!$B$2:$B$1000), 0),0), \"\")","v":""},{"$f":"IF(J985=\"\", \"\", INDEX(raw_resource_build!E:E, MATCH(J985, raw_resource_build!B:B, 0)))","v":""},{"$f":"IF(J985=\"\", \"\", INDEX(raw_resource_build!C:C, MATCH(J985, raw_resource_build!B:B, 0)))","v":""},null,{"$f":"raw_resource_build!B985","v":"Pacific_Northwest_Wind"},"Out-Of-State",{"$f":"IFERROR(INDEX($E$5:$E$32,MATCH(raw_resource_build!$E985,Lists!$B$5:$B$32,0)),\"Non-CAISO\")","v":"Renewables"},null,{"$f":"raw_annual_energy!C985","v":"IID_Geothermal_for_CAISO"},{"$f":"INDEX(K:K,MATCH(R985,Lists!J:J,0))","v":"Geothermal"},"Non-wind"]
[null,null,null,null,null,null,null,null,null,{"$f":"IFERROR(INDEX(raw_resource_build!$B$2:$B$1000,MATCH(0,COUNTIF($J$1:J985,raw_resource_build!$B$2:$B$1000), 0),0), \"\")","v":""},{"$f":"IF(J986=\"\", \"\", INDEX(raw_resource_build!E:E, MATCH(J986, raw_resource_build!B:B, 0)))","v":""},{"$f":"IF(J986=\"\", \"\", INDEX(raw_resource_build!C:C, MATCH(J986, raw_resource_build!B:B, 0)))","v":""},null,{"$f":"raw_resource_build!B986","v":"Diablo_Canyon_Offshore_Wind"},"In-State",{"$f":"IFERROR(INDEX($E$5:$E$32,MATCH(raw_resource_build!$E986,Lists!$B$5:$B$32,0)),\"Non-CAISO\")","v":"Renewables"},null,{"$f":"raw_annual_energy!C986","v":"IID_Geothermal_for_CAISO"},{"$f":"INDEX(K:K,MATCH(R986,Lists!J:J,0))","v":"Geothermal"},"Non-wind"]
[null,null,null,null,null,null,null,null,null,{"$f":"IFERROR(INDEX(raw_resource_build!$B$2:$B$1000,MATCH(0,COUNTIF($J$1:J986,raw_resource_build!$B$2:$B$1000), 0),0), \"\")","v":""},{"$f":"IF(J987=\"\", \"\", INDEX(raw_resource_build!E:E, MATCH(J987, raw_resource_build!B:B, 0)))","v":""},{"$f":"IF(J987=\"\", \"\", INDEX(raw_resource_build!C:C, MATCH(J987, raw_resource_build!B:B, 0)))","v":""},null,{"$f":"raw_resource_build!B987","v":"Humboldt_Bay_Offshore_Wind"},"In-State",{"$f":"IFERROR(INDEX($E$5:$E$32,MATCH(raw_resource_build!$E987,Lists!$B$5:$B$32,0)),\"Non-CAISO\")","v":"Renewables"},null,{"$f":"raw_annual_energy!C987","v":"IID_Solar_for_CAISO"},{"$f":"INDEX(K:K,MATCH(R987,Lists!J:J,0))","v":"Solar"},"Non-wind"]
[null,null,null,null,null,null,null,null,null,{"$f":"IFERROR(INDEX(raw_resource_build!$B$2:$B$1000,MATCH(0,COUNTIF($J$1:J987,raw_resource_build!$B$2:$B$1000), 0),0), \"\")","v":""},{"$f":"IF(J988=\"\", \"\", INDEX(raw_resource_build!E:E, MATCH(J988, raw_resource_build!B:B, 0)))","v":""},{"$f":"IF(J988=\"\", \"\", INDEX(raw_resource_build!C:C, MATCH(J988, raw_resource_build!B:B, 0)))","v":""},null,{"$f":"raw_resource_build!B988","v":"Morro_Bay_Offshore_Wind"},"In-State",{"$f":"IFERROR(INDEX($E$5:$E$32,MATCH(raw_resource_build!$E988,Lists!$B$5:$B$32,0)),\"Non-CAISO\")","v":"Renewables"},null,{"$f":"raw_annual_energy!C988","v":"IID_Solar_for_CAISO"},{"$f":"INDEX(K:K,MATCH(R988,Lists!J:J,0))","v":"Solar"},"Non-wind"]
[null,null,null,null,null,null,null,null,null,{"$f":"IFERROR(INDEX(raw_resource_build!$B$2:$B$1000,MATCH(0,COUNTIF($J$1:J988,raw_resource_build!$B$2:$B$1000), 0),0), \"\")","v":""},{"$f":"IF(J989=\"\", \"\", INDEX(raw_resource_build!E:E, MATCH(J989, raw_resource_build!B:B, 0)))","v":""},{"$f":"IF(J989=\"\", \"\", INDEX(raw_resource_build!C:C, MATCH(J989, raw_resource_build!B:B, 0)))","v":""},null,{"$f":"raw_resource_build!B989","v":"Diablo_Canyon_Offshore_Wind_Ext_Tx"},"In-State",{"$f":"IFERROR(INDEX($E$5:$E$32,MATCH(raw_resource_build!$E989,Lists!$B$5:$B$32,0)),\"Non-CAISO\")","v":"Renewables"},null,{"$f":"raw_annual_energy!C989","v":"IID_Solar_for_CAISO"},{"$f":"INDEX(K:K,MATCH(R989,Lists!J:J,0))","v":"Solar"},"Non-wind"]
[null,null,null,null,null,null,null,null,null,{"$f":"IFERROR(INDEX(raw_resource_build!$B$2:$B$1000,MATCH(0,COUNTIF($J$1:J989,raw_resource_build!$B$2:$B$1000), 0),0), \"\")","v":""},{"$f":"IF(J990=\"\", \"\", INDEX(raw_resource_build!E:E, MATCH(J990, raw_resource_build!B:B, 0)))","v":""},{"$f":"IF(J990=\"\", \"\", INDEX(raw_resource_build!C:C, MATCH(J990, raw_resource_build!B:B, 0)))","v":""},null,{"$f":"raw_resource_build!B990","v":"Cape_Mendocino_Offshore_Wind"},"In-State",{"$f":"IFERROR(INDEX($E$5:$E$32,MATCH(raw_resource_build!$E990,Lists!$B$5:$B$32,0)),\"Non-CAISO\")","v":"Renewables"},null,{"$f":"raw_annual_energy!C990","v":"IID_Solar_for_CAISO"},{"$f":"INDEX(K:K,MATCH(R990,Lists!J:J,0))","v":"Solar"},"Non-wind"]
[null,null,null,null,null,null,null,null,null,{"$f":"IFERROR(INDEX(raw_resource_build!$B$2:$B$1000,MATCH(0,COUNTIF($J$1:J990,raw_resource_build!$B$2:$B$1000), 0),0), \"\")","v":""},{"$f":"IF(J991=\"\", \"\", INDEX(raw_resource_build!E:E, MATCH(J991, raw_resource_build!B:B, 0)))","v":""},{"$f":"IF(J991=\"\", \"\", INDEX(raw_resource_build!C:C, MATCH(J991, raw_resource_build!B:B, 0)))","v":""},null,{"$f":"raw_resource_build!B991","v":"Del_Norte_Offshore_Wind"},"In-State",{"$f":"IFERROR(INDEX($E$5:$E$32,MATCH(raw_resource_build!$E991,Lists!$B$5:$B$32,0)),\"Non-CAISO\")","v":"Renewables"},null,{"$f":"raw_annual_energy!C991","v":"IID_Solar_for_CAISO"},{"$f":"INDEX(K:K,MATCH(R991,Lists!J:J,0))","v":"Solar"},"Non-wind"]
[null,null,null,null,null,null,null,null,null,{"$f":"IFERROR(INDEX(raw_resource_build!$B$2:$B$1000,MATCH(0,COUNTIF($J$1:J991,raw_resource_build!$B$2:$B$1000), 0),0), \"\")","v":""},{"$f":"IF(J992=\"\", \"\", INDEX(raw_resource_build!E:E, MATCH(J992, raw_resource_build!B:B, 0)))","v":""},{"$f":"IF(J992=\"\", \"\", INDEX(raw_resource_build!C:C, MATCH(J992, raw_resource_build!B:B, 0)))","v":""},null,{"$f":"raw_resource_build!B992","v":"CAISO_Existing_Pumped_Storage"},"Non-wind",{"$f":"IFERROR(INDEX($E$5:$E$32,MATCH(raw_resource_build!$E992,Lists!$B$5:$B$32,0)),\"Non-CAISO\")","v":"Pumped Storage"},null,{"$f":"raw_annual_energy!C992","v":"IID_Solar_for_CAISO"},{"$f":"INDEX(K:K,MATCH(R992,Lists!J:J,0))","v":"Solar"},"Non-wind"]
[null,null,null,null,null,null,null,null,null,{"$f":"IFERROR(INDEX(raw_resource_build!$B$2:$B$1000,MATCH(0,COUNTIF($J$1:J992,raw_resource_build!$B$2:$B$1000), 0),0), \"\")","v":""},{"$f":"IF(J993=\"\", \"\", INDEX(raw_resource_build!E:E, MATCH(J993, raw_resource_build!B:B, 0)))","v":""},{"$f":"IF(J993=\"\", \"\", INDEX(raw_resource_build!C:C, MATCH(J993, raw_resource_build!B:B, 0)))","v":""},null,{"$f":"raw_resource_build!B993","v":"CAISO_New_Pumped_Storage"},"Non-wind",{"$f":"IFERROR(INDEX($E$5:$E$32,MATCH(raw_resource_build!$E993,Lists!$B$5:$B$32,0)),\"Non-CAISO\")","v":"Pumped Storage"},null,{"$f":"raw_annual_energy!C993","v":"IID_Solar_for_CAISO"},{"$f":"INDEX(K:K,MATCH(R993,Lists!J:J,0))","v":"Solar"},"Non-wind"]
[null,null,null,null,null,null,null,null,null,{"$f":"IFERROR(INDEX(raw_resource_build!$B$2:$B$1000,MATCH(0,COUNTIF($J$1:J993,raw_resource_build!$B$2:$B$1000), 0),0), \"\")","v":""},{"$f":"IF(J994=\"\", \"\", INDEX(raw_resource_build!E:E, MATCH(J994, raw_resource_build!B:B, 0)))","v":""},{"$f":"IF(J994=\"\", \"\", INDEX(raw_resource_build!C:C, MATCH(J994, raw_resource_build!B:B, 0)))","v":""},null,{"$f":"raw_resource_build!B994","v":"CAISO_New_Flow_Battery"},"Non-wind",{"$f":"IFERROR(INDEX($E$5:$E$32,MATCH(raw_resource_build!$E994,Lists!$B$5:$B$32,0)),\"Non-CAISO\")","v":"Battery (incl. BTM)"},null,{"$f":"raw_annual_energy!C994","v":"IID_Solar_for_CAISO"},{"$f":"INDEX(K:K,MATCH(R994,Lists!J:J,0))","v":"Solar"},"Non-wind"]
[null,null,null,null,null,null,null,null,null,{"$f":"IFERROR(INDEX(raw_resource_build!$B$2:$B$1000,MATCH(0,COUNTIF($J$1:J994,raw_resource_build!$B$2:$B$1000), 0),0), \"\")","v":""},{"$f":"IF(J995=\"\", \"\", INDEX(raw_resource_build!E:E, MATCH(J995, raw_resource_build!B:B, 0)))","v":""},{"$f":"IF(J995=\"\", \"\", INDEX(raw_resource_build!C:C, MATCH(J995, raw_resource_build!B:B, 0)))","v":""},null,{"$f":"raw_resource_build!B995","v":"CAISO_New_Flow_Battery_2"},"Non-wind",{"$f":"IFERROR(INDEX($E$5:$E$32,MATCH(raw_resource_build!$E995,Lists!$B$5:$B$32,0)),\"Non-CAISO\")","v":"Battery (incl. BTM)"},null,{"$f":"raw_annual_energy!C995","v":"IID_Biomass_for_Other"},{"$f":"INDEX(K:K,MATCH(R995,Lists!J:J,0))","v":"Biomass"},"Non-wind"]
[null,null,null,null,null,null,null,null,null,{"$f":"IFERROR(INDEX(raw_resource_build!$B$2:$B$1000,MATCH(0,COUNTIF($J$1:J995,raw_resource_build!$B$2:$B$1000), 0),0), \"\")","v":""},{"$f":"IF(J996=\"\", \"\", INDEX(raw_resource_build!E:E, MATCH(J996, raw_resource_build!B:B, 0)))","v":""},{"$f":"IF(J996=\"\", \"\", INDEX(raw_resource_build!C:C, MATCH(J996, raw_resource_build!B:B, 0)))","v":""},null,{"$f":"raw_resource_build!B996","v":"CAISO_New_Flow_Battery_3"},"Non-wind",{"$f":"IFERROR(INDEX($E$5:$E$32,MATCH(raw_resource_build!$E996,Lists!$B$5:$B$32,0)),\"Non-CAISO\")","v":"Battery (incl. BTM)"},null,{"$f":"raw_annual_energy!C996","v":"IID_Biomass_for_Other"},{"$f":"INDEX(K:K,MATCH(R996,Lists!J:J,0))","v":"Biomass"},"Non-wind"]
[null,null,null,null,null,null,null,null,null,{"$f":"IFERROR(INDEX(raw_resource_build!$B$2:$B$1000,MATCH(0,COUNTIF($J$1:J996,raw_resource_build!$B$2:$B$1000), 0),0), \"\")","v":""},{"$f":"IF(J997=\"\", \"\", INDEX(raw_resource_build!E:E, MATCH(J997, raw_resource_build!B:B, 0)))","v":""},{"$f":"IF(J997=\"\", \"\", INDEX(raw_resource_build!C:C, MATCH(J997, raw_resource_build!B:B, 0)))","v":""},null,{"$f":"raw_resource_build!B997","v":"CAISO_New_Flow_Battery_4"},"Non-wind",{"$f":"IFERROR(INDEX($E$5:$E$32,MATCH(raw_resource_build!$E997,Lists!$B$5:$B$32,0)),\"Non-CAISO\")","v":"Battery (incl. BTM)"},null,{"$f":"raw_annual_energy!C997","v":"IID_Biomass_for_Other"},{"$f":"INDEX(K:K,MATCH(R997,Lists!J:J,0))","v":"Biomass"},"Non-wind"]
[null,null,null,null,null,null,null,null,null,{"$f":"IFERROR(INDEX(raw_resource_build!$B$2:$B$1000,MATCH(0,COUNTIF($J$1:J997,raw_resource_build!$B$2:$B$1000), 0),0), \"\")","v":""},{"$f":"IF(J998=\"\", \"\", INDEX(raw_resource_build!E:E, MATCH(J998, raw_resource_build!B:B, 0)))","v":""},{"$f":"IF(J998=\"\", \"\", INDEX(raw_resource_build!C:C, MATCH(J998, raw_resource_build!B:B, 0)))","v":""},null,{"$f":"raw_resource_build!B998","v":"CAISO_New_Flow_Battery_5"},"Non-wind",{"$f":"IFERROR(INDEX($E$5:$E$32,MATCH(raw_resource_build!$E998,Lists!$B$5:$B$32,0)),\"Non-CAISO\")","v":"Battery (incl. BTM)"},null,{"$f":"raw_annual_energy!C998","v":"IID_Biomass_for_Other"},{"$f":"INDEX(K:K,MATCH(R998,Lists!J:J,0))","v":"Biomass"},"Non-wind"]
[null,null,null,null,null,null,null,null,null,{"$f":"IFERROR(INDEX(raw_resource_build!$B$2:$B$1000,MATCH(0,COUNTIF($J$1:J998,raw_resource_build!$B$2:$B$1000), 0),0), \"\")","v":""},{"$f":"IF(J999=\"\", \"\", INDEX(raw_resource_build!E:E, MATCH(J999, raw_resource_build!B:B, 0)))","v":""},{"$f":"IF(J999=\"\", \"\", INDEX(raw_resource_build!C:C, MATCH(J999, raw_resource_build!B:B, 0)))","v":""},null,{"$f":"raw_resource_build!B999","v":"CAISO_New_Li_Battery"},"Non-wind",{"$f":"IFERROR(INDEX($E$5:$E$32,MATCH(raw_resource_build!$E999,Lists!$B$5:$B$32,0)),\"Non-CAISO\")","v":"Battery (incl. BTM)"},null,{"$f":"raw_annual_energy!C999","v":"IID_Biomass_for_Other"},{"$f":"INDEX(K:K,MATCH(R999,Lists!J:J,0))","v":"Biomass"},"Non-wind"]
[null,null,null,null,null,null,null,null,null,{"$f":"IFERROR(INDEX(raw_resource_build!$B$2:$B$1000,MATCH(0,COUNTIF($J$1:J999,raw_resource_build!$B$2:$B$1000), 0),0), \"\")","v":""},{"$f":"IF(J1000=\"\", \"\", INDEX(raw_resource_build!E:E, MATCH(J1000, raw_resource_build!B:B, 0)))","v":""},{"$f":"IF(J1000=\"\", \"\", INDEX(raw_resource_build!C:C, MATCH(J1000, raw_resource_build!B:B, 0)))","v":""},null,{"$f":"raw_resource_build!B1000","v":"CAISO_BTM_Li_Battery"},"Non-wind",{"$f":"IFERROR(INDEX($E$5:$E$32,MATCH(raw_resource_build!$E1000,Lists!$B$5:$B$32,0)),\"Non-CAISO\")","v":"Battery (incl. BTM)"},null,{"$f":"raw_annual_energy!C1000","v":"IID_Biomass_for_Other"},{"$f":"INDEX(K:K,MATCH(R1000,Lists!J:J,0))","v":"Biomass"},"Non-wind"]
[null,null,null,null,null,null,null,null,null,{"$f":"IFERROR(INDEX(raw_resource_build!$B$2:$B$1000,MATCH(0,COUNTIF($J$1:J1000,raw_resource_build!$B$2:$B$1000), 0),0), \"\")","v":""},{"$f":"IF(J1001=\"\", \"\", INDEX(raw_resource_build!E:E, MATCH(J1001, raw_resource_build!B:B, 0)))","v":""},{"$f":"IF(J1001=\"\", \"\", INDEX(raw_resource_build!C:C, MATCH(J1001, raw_resource_build!B:B, 0)))","v":""},null,{"$f":"raw_resource_build!B1001","v":"CAISO_New_Li_Battery_2"},"Non-wind",{"$f":"IFERROR(INDEX($E$5:$E$32,MATCH(raw_resource_build!$E1001,Lists!$B$5:$B$32,0)),\"Non-CAISO\")","v":"Battery (incl. BTM)"},null,{"$f":"raw_annual_energy!C1001","v":"IID_Biomass_for_Other"},{"$f":"INDEX(K:K,MATCH(R1001,Lists!J:J,0))","v":"Biomass"},"Non-wind"]
[null,null,null,null,null,null,null,null,null,{"$f":"IFERROR(INDEX(raw_resource_build!$B$2:$B$1000,MATCH(0,COUNTIF($J$1:J1001,raw_resource_build!$B$2:$B$1000), 0),0), \"\")","v":""},{"$f":"IF(J1002=\"\", \"\", INDEX(raw_resource_build!E:E, MATCH(J1002, raw_resource_build!B:B, 0)))","v":""},{"$f":"IF(J1002=\"\", \"\", INDEX(raw_resource_build!C:C, MATCH(J1002, raw_resource_build!B:B, 0)))","v":""},null,{"$f":"raw_resource_build!B1002","v":"CAISO_New_Li_Battery_3"},"Non-wind",{"$f":"IFERROR(INDEX($E$5:$E$32,MATCH(raw_resource_build!$E1002,Lists!$B$5:$B$32,0)),\"Non-CAISO\")","v":"Battery (incl. BTM)"},null,{"$f":"raw_annual_energy!C1002","v":"IID_Biomass_for_Other"},{"$f":"INDEX(K:K,MATCH(R1002,Lists!J:J,0))","v":"Biomass"},"Non-wind"]
[null,null,null,null,null,null,null,null,null,{"$f":"IFERROR(INDEX(raw_resource_build!$B$2:$B$1000,MATCH(0,COUNTIF($J$1:J1002,raw_resource_build!$B$2:$B$1000), 0),0), \"\")","v":""},{"$f":"IF(J1003=\"\", \"\", INDEX(raw_resource_build!E:E, MATCH(J1003, raw_resource_build!B:B, 0)))","v":""},{"$f":"IF(J1003=\"\", \"\", INDEX(raw_resource_build!C:C, MATCH(J1003, raw_resource_build!B:B, 0)))","v":""},null,{"$f":"raw_resource_build!B1003","v":"CAISO_New_Li_Battery_4"},"Non-wind",{"$f":"IFERROR(INDEX($E$5:$E$32,MATCH(raw_resource_build!$E1003,Lists!$B$5:$B$32,0)),\"Non-CAISO\")","v":"Battery (incl. BTM)"},null,{"$f":"raw_annual_energy!C1003","v":"IID_CCGT"},{"$f":"INDEX(K:K,MATCH(R1003,Lists!J:J,0))","v":"IID_CCGT"},"Non-wind"]
[null,null,null,null,null,null,null,null,null,{"$f":"IFERROR(INDEX(raw_resource_build!$B$2:$B$1000,MATCH(0,COUNTIF($J$1:J1003,raw_resource_build!$B$2:$B$1000), 0),0), \"\")","v":""},{"$f":"IF(J1004=\"\", \"\", INDEX(raw_resource_build!E:E, MATCH(J1004, raw_resource_build!B:B, 0)))","v":""},{"$f":"IF(J1004=\"\", \"\", INDEX(raw_resource_build!C:C, MATCH(J1004, raw_resource_build!B:B, 0)))","v":""},null,{"$f":"raw_resource_build!B1004","v":"CAISO_New_Li_Battery_5"},"Non-wind",{"$f":"IFERROR(INDEX($E$5:$E$32,MATCH(raw_resource_build!$E1004,Lists!$B$5:$B$32,0)),\"Non-CAISO\")","v":"Battery (incl. BTM)"},null,{"$f":"raw_annual_energy!C1004","v":"IID_CCGT"},{"$f":"INDEX(K:K,MATCH(R1004,Lists!J:J,0))","v":"IID_CCGT"},"Non-wind"]
[null,null,null,null,null,null,null,null,null,{"$f":"IFERROR(INDEX(raw_resource_build!$B$2:$B$1000,MATCH(0,COUNTIF($J$1:J1004,raw_resource_build!$B$2:$B$1000), 0),0), \"\")","v":""},{"$f":"IF(J1005=\"\", \"\", INDEX(raw_resource_build!E:E, MATCH(J1005, raw_resource_build!B:B, 0)))","v":""},{"$f":"IF(J1005=\"\", \"\", INDEX(raw_resource_build!C:C, MATCH(J1005, raw_resource_build!B:B, 0)))","v":""},null,{"$f":"raw_resource_build!B1005","v":"CAISO_New_Li_Battery_6"},"Non-wind",{"$f":"IFERROR(INDEX($E$5:$E$32,MATCH(raw_resource_build!$E1005,Lists!$B$5:$B$32,0)),\"Non-CAISO\")","v":"Battery (incl. BTM)"},null,{"$f":"raw_annual_energy!C1005","v":"IID_CCGT"},{"$f":"INDEX(K:K,MATCH(R1005,Lists!J:J,0))","v":"IID_CCGT"},"Non-wind"]
[null,null,null,null,null,null,null,null,null,{"$f":"IFERROR(INDEX(raw_resource_build!$B$2:$B$1000,MATCH(0,COUNTIF($J$1:J1005,raw_resource_build!$B$2:$B$1000), 0),0), \"\")","v":""},{"$f":"IF(J1006=\"\", \"\", INDEX(raw_resource_build!E:E, MATCH(J1006, raw_resource_build!B:B, 0)))","v":""},{"$f":"IF(J1006=\"\", \"\", INDEX(raw_resource_build!C:C, MATCH(J1006, raw_resource_build!B:B, 0)))","v":""},null,{"$f":"raw_resource_build!B1006","v":"CAISO_Hydro"},"Non-wind",{"$f":"IFERROR(INDEX($E$5:$E$32,MATCH(raw_resource_build!$E1006,Lists!$B$5:$B$32,0)),\"Non-CAISO\")","v":"Hydro (small + large)"},null,{"$f":"raw_annual_energy!C1006","v":"IID_CCGT"},{"$f":"INDEX(K:K,MATCH(R1006,Lists!J:J,0))","v":"IID_CCGT"},"Non-wind"]
[null,null,null,null,null,null,null,null,null,{"$f":"IFERROR(INDEX(raw_resource_build!$B$2:$B$1000,MATCH(0,COUNTIF($J$1:J1006,raw_resource_build!$B$2:$B$1000), 0),0), \"\")","v":""},{"$f":"IF(J1007=\"\", \"\", INDEX(raw_resource_build!E:E, MATCH(J1007, raw_resource_build!B:B, 0)))","v":""},{"$f":"IF(J1007=\"\", \"\", INDEX(raw_resource_build!C:C, MATCH(J1007, raw_resource_build!B:B, 0)))","v":""},null,{"$f":"raw_resource_build!B1007","v":"NW_Hydro"},"Non-wind",{"$f":"IFERROR(INDEX($E$5:$E$32,MATCH(raw_resource_build!$E1007,Lists!$B$5:$B$32,0)),\"Non-CAISO\")","v":"Hydro (small + large)"},null,{"$f":"raw_annual_energy!C1007","v":"IID_CCGT"},{"$f":"INDEX(K:K,MATCH(R1007,Lists!J:J,0))","v":"IID_CCGT"},"Non-wind"]
[null,null,null,null,null,null,null,null,null,{"$f":"IFERROR(INDEX(raw_resource_build!$B$2:$B$1000,MATCH(0,COUNTIF($J$1:J1007,raw_resource_build!$B$2:$B$1000), 0),0), \"\")","v":""},{"$f":"IF(J1008=\"\", \"\", INDEX(raw_resource_build!E:E, MATCH(J1008, raw_resource_build!B:B, 0)))","v":""},{"$f":"IF(J1008=\"\", \"\", INDEX(raw_resource_build!C:C, MATCH(J1008, raw_resource_build!B:B, 0)))","v":""},null,{"$f":"raw_resource_build!B1008","v":"SW_Hydro"},"Non-wind",{"$f":"IFERROR(INDEX($E$5:$E$32,MATCH(raw_resource_build!$E1008,Lists!$B$5:$B$32,0)),\"Non-CAISO\")","v":"Hydro (small + large)"},null,{"$f":"raw_annual_energy!C1008","v":"IID_CCGT"},{"$f":"INDEX(K:K,MATCH(R1008,Lists!J:J,0))","v":"IID_CCGT"},"Non-wind"]
[null,null,null,null,null,null,null,null,null,{"$f":"IFERROR(INDEX(raw_resource_build!$B$2:$B$1000,MATCH(0,COUNTIF($J$1:J1008,raw_resource_build!$B$2:$B$1000), 0),0), \"\")","v":""},{"$f":"IF(J1009=\"\", \"\", INDEX(raw_resource_build!E:E, MATCH(J1009, raw_resource_build!B:B, 0)))","v":""},{"$f":"IF(J1009=\"\", \"\", INDEX(raw_resource_build!C:C, MATCH(J1009, raw_resource_build!B:B, 0)))","v":""},null,{"$f":"raw_resource_build!B1009","v":"LDWP_Hydro"},"Non-wind",{"$f":"IFERROR(INDEX($E$5:$E$32,MATCH(raw_resource_build!$E1009,Lists!$B$5:$B$32,0)),\"Non-CAISO\")","v":"Hydro (small + large)"},null,{"$f":"raw_annual_energy!C1009","v":"IID_CCGT"},{"$f":"INDEX(K:K,MATCH(R1009,Lists!J:J,0))","v":"IID_CCGT"},"Non-wind"]
[null,null,null,null,null,null,null,null,null,{"$f":"IFERROR(INDEX(raw_resource_build!$B$2:$B$1000,MATCH(0,COUNTIF($J$1:J1009,raw_resource_build!$B$2:$B$1000), 0),0), \"\")","v":""},{"$f":"IF(J1010=\"\", \"\", INDEX(raw_resource_build!E:E, MATCH(J1010, raw_resource_build!B:B, 0)))","v":""},{"$f":"IF(J1010=\"\", \"\", INDEX(raw_resource_build!C:C, MATCH(J1010, raw_resource_build!B:B, 0)))","v":""},null,{"$f":"raw_resource_build!B1010","v":"BANC_Hydro"},"Non-wind",{"$f":"IFERROR(INDEX($E$5:$E$32,MATCH(raw_resource_build!$E1010,Lists!$B$5:$B$32,0)),\"Non-CAISO\")","v":"Hydro (small + large)"},null,{"$f":"raw_annual_energy!C1010","v":"IID_CCGT"},{"$f":"INDEX(K:K,MATCH(R1010,Lists!J:J,0))","v":"IID_CCGT"},"Non-wind"]
[null,null,null,null,null,null,null,null,null,{"$f":"IFERROR(INDEX(raw_resource_build!$B$2:$B$1000,MATCH(0,COUNTIF($J$1:J1010,raw_resource_build!$B$2:$B$1000), 0),0), \"\")","v":""},{"$f":"IF(J1011=\"\", \"\", INDEX(raw_resource_build!E:E, MATCH(J1011, raw_resource_build!B:B, 0)))","v":""},{"$f":"IF(J1011=\"\", \"\", INDEX(raw_resource_build!C:C, MATCH(J1011, raw_resource_build!B:B, 0)))","v":""},null,{"$f":"raw_resource_build!B1011","v":"IID_Hydro"},"Non-wind",{"$f":"IFERROR(INDEX($E$5:$E$32,MATCH(raw_resource_build!$E1011,Lists!$B$5:$B$32,0)),\"Non-CAISO\")","v":"Hydro (small + large)"},null,{"$f":"raw_annual_energy!C1011","v":"IID_Geothermal_for_Other"},{"$f":"INDEX(K:K,MATCH(R1011,Lists!J:J,0))","v":"Geothermal"},"Non-wind"]
[null,null,null,null,null,null,null,null,null,{"$f":"IFERROR(INDEX(raw_resource_build!$B$2:$B$1000,MATCH(0,COUNTIF($J$1:J1011,raw_resource_build!$B$2:$B$1000), 0),0), \"\")","v":""},{"$f":"IF(J1012=\"\", \"\", INDEX(raw_resource_build!E:E, MATCH(J1012, raw_resource_build!B:B, 0)))","v":""},{"$f":"IF(J1012=\"\", \"\", INDEX(raw_resource_build!C:C, MATCH(J1012, raw_resource_build!B:B, 0)))","v":""},null,{"$f":"raw_resource_build!B1012","v":"NW_Hydro_for_CAISO"},"Non-wind",{"$f":"IFERROR(INDEX($E$5:$E$32,MATCH(raw_resource_build!$E1012,Lists!$B$5:$B$32,0)),\"Non-CAISO\")","v":"Imports"},null,{"$f":"raw_annual_energy!C1012","v":"IID_Geothermal_for_Other"},{"$f":"INDEX(K:K,MATCH(R1012,Lists!J:J,0))","v":"Geothermal"},"Non-wind"]
[null,null,null,null,null,null,null,null,null,{"$f":"IFERROR(INDEX(raw_resource_build!$B$2:$B$1000,MATCH(0,COUNTIF($J$1:J1012,raw_resource_build!$B$2:$B$1000), 0),0), \"\")","v":""},{"$f":"IF(J1013=\"\", \"\", INDEX(raw_resource_build!E:E, MATCH(J1013, raw_resource_build!B:B, 0)))","v":""},{"$f":"IF(J1013=\"\", \"\", INDEX(raw_resource_build!C:C, MATCH(J1013, raw_resource_build!B:B, 0)))","v":""},null,{"$f":"raw_resource_build!B1013","v":"Hydrogen_electrolysis"},"Non-wind",{"$f":"IFERROR(INDEX($E$5:$E$32,MATCH(raw_resource_build!$E1013,Lists!$B$5:$B$32,0)),\"Non-CAISO\")","v":"Hydrogen Load"},null,{"$f":"raw_annual_energy!C1013","v":"IID_Geothermal_for_Other"},{"$f":"INDEX(K:K,MATCH(R1013,Lists!J:J,0))","v":"Geothermal"},"Non-wind"]
[null,null,null,null,null,null,null,null,null,{"$f":"IFERROR(INDEX(raw_resource_build!$B$2:$B$1000,MATCH(0,COUNTIF($J$1:J1013,raw_resource_build!$B$2:$B$1000), 0),0), \"\")","v":""},{"$f":"IF(J1014=\"\", \"\", INDEX(raw_resource_build!E:E, MATCH(J1014, raw_resource_build!B:B, 0)))","v":""},{"$f":"IF(J1014=\"\", \"\", INDEX(raw_resource_build!C:C, MATCH(J1014, raw_resource_build!B:B, 0)))","v":""},null,{"$f":"raw_resource_build!B1014","v":"CAISO_Shed_DR_Existing"},"Non-wind",{"$f":"IFERROR(INDEX($E$5:$E$32,MATCH(raw_resource_build!$E1014,Lists!$B$5:$B$32,0)),\"Non-CAISO\")","v":"Shed DR"},null,{"$f":"raw_annual_energy!C1014","v":"IID_Geothermal_for_Other"},{"$f":"INDEX(K:K,MATCH(R1014,Lists!J:J,0))","v":"Geothermal"},"Non-wind"]
[null,null,null,null,null,null,null,null,null,{"$f":"IFERROR(INDEX(raw_resource_build!$B$2:$B$1000,MATCH(0,COUNTIF($J$1:J1014,raw_resource_build!$B$2:$B$1000), 0),0), \"\")","v":""},{"$f":"IF(J1015=\"\", \"\", INDEX(raw_resource_build!E:E, MATCH(J1015, raw_resource_build!B:B, 0)))","v":""},{"$f":"IF(J1015=\"\", \"\", INDEX(raw_resource_build!C:C, MATCH(J1015, raw_resource_build!B:B, 0)))","v":""},null,{"$f":"raw_resource_build!B1015","v":"CAISO_Shed_DR_Tranche1"},"Non-wind",{"$f":"IFERROR(INDEX($E$5:$E$32,MATCH(raw_resource_build!$E1015,Lists!$B$5:$B$32,0)),\"Non-CAISO\")","v":"Shed DR"},null,{"$f":"raw_annual_energy!C1015","v":"IID_Geothermal_for_Other"},{"$f":"INDEX(K:K,MATCH(R1015,Lists!J:J,0))","v":"Geothermal"},"Non-wind"]
[null,null,null,null,null,null,null,null,null,{"$f":"IFERROR(INDEX(raw_resource_build!$B$2:$B$1000,MATCH(0,COUNTIF($J$1:J1015,raw_resource_build!$B$2:$B$1000), 0),0), \"\")","v":""},{"$f":"IF(J1016=\"\", \"\", INDEX(raw_resource_build!E:E, MATCH(J1016, raw_resource_build!B:B, 0)))","v":""},{"$f":"IF(J1016=\"\", \"\", INDEX(raw_resource_build!C:C, MATCH(J1016, raw_resource_build!B:B, 0)))","v":""},null,{"$f":"raw_resource_build!B1016","v":"CAISO_Shed_DR_Tranche2"},"Non-wind",{"$f":"IFERROR(INDEX($E$5:$E$32,MATCH(raw_resource_build!$E1016,Lists!$B$5:$B$32,0)),\"Non-CAISO\")","v":"Shed DR"},null,{"$f":"raw_annual_energy!C1016","v":"IID_Geothermal_for_Other"},{"$f":"INDEX(K:K,MATCH(R1016,Lists!J:J,0))","v":"Geothermal"},"Non-wind"]
[null,null,null,null,null,null,null,null,null,{"$f":"IFERROR(INDEX(raw_resource_build!$B$2:$B$1000,MATCH(0,COUNTIF($J$1:J1016,raw_resource_build!$B$2:$B$1000), 0),0), \"\")","v":""},{"$f":"IF(J1017=\"\", \"\", INDEX(raw_resource_build!E:E, MATCH(J1017, raw_resource_build!B:B, 0)))","v":""},{"$f":"IF(J1017=\"\", \"\", INDEX(raw_resource_build!C:C, MATCH(J1017, raw_resource_build!B:B, 0)))","v":""},null,{"$f":"raw_resource_build!B1017","v":"CAISO_Shed_DR_Tranche3"},"Non-wind",{"$f":"IFERROR(INDEX($E$5:$E$32,MATCH(raw_resource_build!$E1017,Lists!$B$5:$B$32,0)),\"Non-CAISO\")","v":"Shed DR"},null,{"$f":"raw_annual_energy!C1017","v":"IID_Geothermal_for_Other"},{"$f":"INDEX(K:K,MATCH(R1017,Lists!J:J,0))","v":"Geothermal"},"Non-wind"]
[null,null,null,null,null,null,null,null,null,{"$f":"IFERROR(INDEX(raw_resource_build!$B$2:$B$1000,MATCH(0,COUNTIF($J$1:J1017,raw_resource_build!$B$2:$B$1000), 0),0), \"\")","v":""},{"$f":"IF(J1018=\"\", \"\", INDEX(raw_resource_build!E:E, MATCH(J1018, raw_resource_build!B:B, 0)))","v":""},{"$f":"IF(J1018=\"\", \"\", INDEX(raw_resource_build!C:C, MATCH(J1018, raw_resource_build!B:B, 0)))","v":""},null,{"$f":"raw_resource_build!B1018","v":"CAISO_Shed_DR_Tranche4"},"Non-wind",{"$f":"IFERROR(INDEX($E$5:$E$32,MATCH(raw_resource_build!$E1018,Lists!$B$5:$B$32,0)),\"Non-CAISO\")","v":"Shed DR"},null,{"$f":"raw_annual_energy!C1018","v":"IID_Geothermal_for_Other"},{"$f":"INDEX(K:K,MATCH(R1018,Lists!J:J,0))","v":"Geothermal"},"Non-wind"]
[null,null,null,null,null,null,null,null,null,{"$f":"IFERROR(INDEX(raw_resource_build!$B$2:$B$1000,MATCH(0,COUNTIF($J$1:J1018,raw_resource_build!$B$2:$B$1000), 0),0), \"\")","v":""},{"$f":"IF(J1019=\"\", \"\", INDEX(raw_resource_build!E:E, MATCH(J1019, raw_resource_build!B:B, 0)))","v":""},{"$f":"IF(J1019=\"\", \"\", INDEX(raw_resource_build!C:C, MATCH(J1019, raw_resource_build!B:B, 0)))","v":""},null,{"$f":"raw_resource_build!B1019","v":"CAISO_Shed_DR_Tranche5"},"Non-wind",{"$f":"IFERROR(INDEX($E$5:$E$32,MATCH(raw_resource_build!$E1019,Lists!$B$5:$B$32,0)),\"Non-CAISO\")","v":"Shed DR"},null,{"$f":"raw_annual_energy!C1019","v":"IID_Hydro"},{"$f":"INDEX(K:K,MATCH(R1019,Lists!J:J,0))","v":"Hydro"},"Non-wind"]
[null,null,null,null,null,null,null,null,null,{"$f":"IFERROR(INDEX(raw_resource_build!$B$2:$B$1000,MATCH(0,COUNTIF($J$1:J1019,raw_resource_build!$B$2:$B$1000), 0),0), \"\")","v":""},{"$f":"IF(J1020=\"\", \"\", INDEX(raw_resource_build!E:E, MATCH(J1020, raw_resource_build!B:B, 0)))","v":""},{"$f":"IF(J1020=\"\", \"\", INDEX(raw_resource_build!C:C, MATCH(J1020, raw_resource_build!B:B, 0)))","v":""},null,{"$f":"raw_resource_build!B1020","v":"CAISO_Shed_DR_Tranche6"},"Non-wind",{"$f":"IFERROR(INDEX($E$5:$E$32,MATCH(raw_resource_build!$E1020,Lists!$B$5:$B$32,0)),\"Non-CAISO\")","v":"Shed DR"},null,{"$f":"raw_annual_energy!C1020","v":"IID_Hydro"},{"$f":"INDEX(K:K,MATCH(R1020,Lists!J:J,0))","v":"Hydro"},"Non-wind"]
[null,null,null,null,null,null,null,null,null,{"$f":"IFERROR(INDEX(raw_resource_build!$B$2:$B$1000,MATCH(0,COUNTIF($J$1:J1020,raw_resource_build!$B$2:$B$1000), 0),0), \"\")","v":""},{"$f":"IF(J1021=\"\", \"\", INDEX(raw_resource_build!E:E, MATCH(J1021, raw_resource_build!B:B, 0)))","v":""},{"$f":"IF(J1021=\"\", \"\", INDEX(raw_resource_build!C:C, MATCH(J1021, raw_resource_build!B:B, 0)))","v":""},null,{"$f":"raw_resource_build!B1021","v":"CAISO_Shed_DR_Tranche7"},"Non-wind",{"$f":"IFERROR(INDEX($E$5:$E$32,MATCH(raw_resource_build!$E1021,Lists!$B$5:$B$32,0)),\"Non-CAISO\")","v":"Shed DR"},null,{"$f":"raw_annual_energy!C1021","v":"IID_Hydro"},{"$f":"INDEX(K:K,MATCH(R1021,Lists!J:J,0))","v":"Hydro"},"Non-wind"]
[null,null,null,null,null,null,null,null,null,{"$f":"IFERROR(INDEX(raw_resource_build!$B$2:$B$1000,MATCH(0,COUNTIF($J$1:J1021,raw_resource_build!$B$2:$B$1000), 0),0), \"\")","v":""},{"$f":"IF(J1022=\"\", \"\", INDEX(raw_resource_build!E:E, MATCH(J1022, raw_resource_build!B:B, 0)))","v":""},{"$f":"IF(J1022=\"\", \"\", INDEX(raw_resource_build!C:C, MATCH(J1022, raw_resource_build!B:B, 0)))","v":""},null,{"$f":"raw_resource_build!B1022","v":"CAISO_Shed_DR_Tranche8"},"Non-wind",{"$f":"IFERROR(INDEX($E$5:$E$32,MATCH(raw_resource_build!$E1022,Lists!$B$5:$B$32,0)),\"Non-CAISO\")","v":"Shed DR"},null,{"$f":"raw_annual_energy!C1022","v":"IID_Hydro"},{"$f":"INDEX(K:K,MATCH(R1022,Lists!J:J,0))","v":"Hydro"},"Non-wind"]
[null,null,null,null,null,null,null,null,null,{"$f":"IFERROR(INDEX(raw_resource_build!$B$2:$B$1000,MATCH(0,COUNTIF($J$1:J1022,raw_resource_build!$B$2:$B$1000), 0),0), \"\")","v":""},{"$f":"IF(J1023=\"\", \"\", INDEX(raw_resource_build!E:E, MATCH(J1023, raw_resource_build!B:B, 0)))","v":""},{"$f":"IF(J1023=\"\", \"\", INDEX(raw_resource_build!C:C, MATCH(J1023, raw_resource_build!B:B, 0)))","v":""},null,{"$f":"raw_resource_build!B1023","v":"CAISO_CHP"},"Non-wind",{"$f":"IFERROR(INDEX($E$5:$E$32,MATCH(raw_resource_build!$E1023,Lists!$B$5:$B$32,0)),\"Non-CAISO\")","v":"CHP"},null,{"$f":"raw_annual_energy!C1023","v":"IID_Hydro"},{"$f":"INDEX(K:K,MATCH(R1023,Lists!J:J,0))","v":"Hydro"},"Non-wind"]
[null,null,null,null,null,null,null,null,null,{"$f":"IFERROR(INDEX(raw_resource_build!$B$2:$B$1000,MATCH(0,COUNTIF($J$1:J1023,raw_resource_build!$B$2:$B$1000), 0),0), \"\")","v":""},{"$f":"IF(J1024=\"\", \"\", INDEX(raw_resource_build!E:E, MATCH(J1024, raw_resource_build!B:B, 0)))","v":""},{"$f":"IF(J1024=\"\", \"\", INDEX(raw_resource_build!C:C, MATCH(J1024, raw_resource_build!B:B, 0)))","v":""},null,{"$f":"raw_resource_build!B1024","v":"CAISO_Nuclear"},"Non-wind",{"$f":"IFERROR(INDEX($E$5:$E$32,MATCH(raw_resource_build!$E1024,Lists!$B$5:$B$32,0)),\"Non-CAISO\")","v":"Nuclear"},null,{"$f":"raw_annual_energy!C1024","v":"IID_Hydro"},{"$f":"INDEX(K:K,MATCH(R1024,Lists!J:J,0))","v":"Hydro"},"Non-wind"]
[null,null,null,null,null,null,null,null,null,{"$f":"IFERROR(INDEX(raw_resource_build!$B$2:$B$1000,MATCH(0,COUNTIF($J$1:J1024,raw_resource_build!$B$2:$B$1000), 0),0), \"\")","v":""},{"$f":"IF(J1025=\"\", \"\", INDEX(raw_resource_build!E:E, MATCH(J1025, raw_resource_build!B:B, 0)))","v":""},{"$f":"IF(J1025=\"\", \"\", INDEX(raw_resource_build!C:C, MATCH(J1025, raw_resource_build!B:B, 0)))","v":""},null,{"$f":"raw_resource_build!B1025","v":"CAISO_CCGT1"},"Non-wind",{"$f":"IFERROR(INDEX($E$5:$E$32,MATCH(raw_resource_build!$E1025,Lists!$B$5:$B$32,0)),\"Non-CAISO\")","v":"CCGT"},null,{"$f":"raw_annual_energy!C1025","v":"IID_Hydro"},{"$f":"INDEX(K:K,MATCH(R1025,Lists!J:J,0))","v":"Hydro"},"Non-wind"]
[null,null,null,null,null,null,null,null,null,{"$f":"IFERROR(INDEX(raw_resource_build!$B$2:$B$1000,MATCH(0,COUNTIF($J$1:J1025,raw_resource_build!$B$2:$B$1000), 0),0), \"\")","v":""},{"$f":"IF(J1026=\"\", \"\", INDEX(raw_resource_build!E:E, MATCH(J1026, raw_resource_build!B:B, 0)))","v":""},{"$f":"IF(J1026=\"\", \"\", INDEX(raw_resource_build!C:C, MATCH(J1026, raw_resource_build!B:B, 0)))","v":""},null,{"$f":"raw_resource_build!B1026","v":"CAISO_CCGT2"},"Non-wind",{"$f":"IFERROR(INDEX($E$5:$E$32,MATCH(raw_resource_build!$E1026,Lists!$B$5:$B$32,0)),\"Non-CAISO\")","v":"CCGT"},null,{"$f":"raw_annual_energy!C1026","v":"IID_Hydro"},{"$f":"INDEX(K:K,MATCH(R1026,Lists!J:J,0))","v":"Hydro"},"Non-wind"]
[null,null,null,null,null,null,null,null,null,{"$f":"IFERROR(INDEX(raw_resource_build!$B$2:$B$1000,MATCH(0,COUNTIF($J$1:J1026,raw_resource_build!$B$2:$B$1000), 0),0), \"\")","v":""},{"$f":"IF(J1027=\"\", \"\", INDEX(raw_resource_build!E:E, MATCH(J1027, raw_resource_build!B:B, 0)))","v":""},{"$f":"IF(J1027=\"\", \"\", INDEX(raw_resource_build!C:C, MATCH(J1027, raw_resource_build!B:B, 0)))","v":""},null,{"$f":"raw_resource_build!B1027","v":"CAISO_Coal"},{"$f":"IFERROR(INDEX($C$35:$C$99,MATCH($N1027,$B$35:$B$99,0)),\"Non-wind\")","v":"Non-wind"},{"$f":"IFERROR(INDEX($E$5:$E$32,MATCH(raw_resource_build!$E1027,Lists!$B$5:$B$32,0)),\"Non-CAISO\")","v":"Coal"},null,{"$f":"raw_annual_energy!C1027","v":"IID_Peaker"},{"$f":"INDEX(K:K,MATCH(R1027,Lists!J:J,0))","v":"IID_Peaker"},{"$f":"IFERROR(INDEX($C$35:$C$99,MATCH($R1027,$B$35:$B$99,0)),\"Non-wind\")","v":"Non-wind"}]
[null,null,null,null,null,null,null,null,null,{"$f":"IFERROR(INDEX(raw_resource_build!$B$2:$B$1000,MATCH(0,COUNTIF($J$1:J1027,raw_resource_build!$B$2:$B$1000), 0),0), \"\")","v":""},{"$f":"IF(J1028=\"\", \"\", INDEX(raw_resource_build!E:E, MATCH(J1028, raw_resource_build!B:B, 0)))","v":""},{"$f":"IF(J1028=\"\", \"\", INDEX(raw_resource_build!C:C, MATCH(J1028, raw_resource_build!B:B, 0)))","v":""},null,{"$f":"raw_resource_build!B1028","v":"CAISO_Peaker1"},"Non-wind",{"$f":"IFERROR(INDEX($E$5:$E$32,MATCH(raw_resource_build!$E1028,Lists!$B$5:$B$32,0)),\"Non-CAISO\")","v":"Peaker"},null,{"$f":"raw_annual_energy!C1028","v":"IID_Peaker"},{"$f":"INDEX(K:K,MATCH(R1028,Lists!J:J,0))","v":"IID_Peaker"},"Non-wind"]
[null,null,null,null,null,null,null,null,null,{"$f":"IFERROR(INDEX(raw_resource_build!$B$2:$B$1000,MATCH(0,COUNTIF($J$1:J1028,raw_resource_build!$B$2:$B$1000), 0),0), \"\")","v":""},{"$f":"IF(J1029=\"\", \"\", INDEX(raw_resource_build!E:E, MATCH(J1029, raw_resource_build!B:B, 0)))","v":""},{"$f":"IF(J1029=\"\", \"\", INDEX(raw_resource_build!C:C, MATCH(J1029, raw_resource_build!B:B, 0)))","v":""},null,{"$f":"raw_resource_build!B1029","v":"CAISO_Peaker2"},"Non-wind",{"$f":"IFERROR(INDEX($E$5:$E$32,MATCH(raw_resource_build!$E1029,Lists!$B$5:$B$32,0)),\"Non-CAISO\")","v":"Peaker"},null,{"$f":"raw_annual_energy!C1029","v":"IID_Peaker"},{"$f":"INDEX(K:K,MATCH(R1029,Lists!J:J,0))","v":"IID_Peaker"},"Non-wind"]
[null,null,null,null,null,null,null,null,null,{"$f":"IFERROR(INDEX(raw_resource_build!$B$2:$B$1000,MATCH(0,COUNTIF($J$1:J1029,raw_resource_build!$B$2:$B$1000), 0),0), \"\")","v":""},{"$f":"IF(J1030=\"\", \"\", INDEX(raw_resource_build!E:E, MATCH(J1030, raw_resource_build!B:B, 0)))","v":""},{"$f":"IF(J1030=\"\", \"\", INDEX(raw_resource_build!C:C, MATCH(J1030, raw_resource_build!B:B, 0)))","v":""},null,{"$f":"raw_resource_build!B1030","v":"CAISO_Advanced_CCGT"},"Non-wind",{"$f":"IFERROR(INDEX($E$5:$E$32,MATCH(raw_resource_build!$E1030,Lists!$B$5:$B$32,0)),\"Non-CAISO\")","v":"CCGT"},null,{"$f":"raw_annual_energy!C1030","v":"IID_Peaker"},{"$f":"INDEX(K:K,MATCH(R1030,Lists!J:J,0))","v":"IID_Peaker"},"Non-wind"]
[null,null,null,null,null,null,null,null,null,{"$f":"IFERROR(INDEX(raw_resource_build!$B$2:$B$1000,MATCH(0,COUNTIF($J$1:J1030,raw_resource_build!$B$2:$B$1000), 0),0), \"\")","v":""},{"$f":"IF(J1031=\"\", \"\", INDEX(raw_resource_build!E:E, MATCH(J1031, raw_resource_build!B:B, 0)))","v":""},{"$f":"IF(J1031=\"\", \"\", INDEX(raw_resource_build!C:C, MATCH(J1031, raw_resource_build!B:B, 0)))","v":""},null,{"$f":"raw_resource_build!B1031","v":"CAISO_Aero_CT"},"Non-wind",{"$f":"IFERROR(INDEX($E$5:$E$32,MATCH(raw_resource_build!$E1031,Lists!$B$5:$B$32,0)),\"Non-CAISO\")","v":"Peaker"},null,{"$f":"raw_annual_energy!C1031","v":"IID_Peaker"},{"$f":"INDEX(K:K,MATCH(R1031,Lists!J:J,0))","v":"IID_Peaker"},"Non-wind"]
[null,null,null,null,null,null,null,null,null,{"$f":"IFERROR(INDEX(raw_resource_build!$B$2:$B$1000,MATCH(0,COUNTIF($J$1:J1031,raw_resource_build!$B$2:$B$1000), 0),0), \"\")","v":""},{"$f":"IF(J1032=\"\", \"\", INDEX(raw_resource_build!E:E, MATCH(J1032, raw_resource_build!B:B, 0)))","v":""},{"$f":"IF(J1032=\"\", \"\", INDEX(raw_resource_build!C:C, MATCH(J1032, raw_resource_build!B:B, 0)))","v":""},null,{"$f":"raw_resource_build!B1032","v":"CAISO_Reciprocating_Engine"},"Non-wind",{"$f":"IFERROR(INDEX($E$5:$E$32,MATCH(raw_resource_build!$E1032,Lists!$B$5:$B$32,0)),\"Non-CAISO\")","v":"Peaker"},null,{"$f":"raw_annual_energy!C1032","v":"IID_Peaker"},{"$f":"INDEX(K:K,MATCH(R1032,Lists!J:J,0))","v":"IID_Peaker"},"Non-wind"]
[null,null,null,null,null,null,null,null,null,{"$f":"IFERROR(INDEX(raw_resource_build!$B$2:$B$1000,MATCH(0,COUNTIF($J$1:J1032,raw_resource_build!$B$2:$B$1000), 0),0), \"\")","v":""},{"$f":"IF(J1033=\"\", \"\", INDEX(raw_resource_build!E:E, MATCH(J1033, raw_resource_build!B:B, 0)))","v":""},{"$f":"IF(J1033=\"\", \"\", INDEX(raw_resource_build!C:C, MATCH(J1033, raw_resource_build!B:B, 0)))","v":""},null,{"$f":"raw_resource_build!B1033","v":"CAISO_ST"},"Non-wind",{"$f":"IFERROR(INDEX($E$5:$E$32,MATCH(raw_resource_build!$E1033,Lists!$B$5:$B$32,0)),\"Non-CAISO\")","v":"Steam Turbine"},null,{"$f":"raw_annual_energy!C1033","v":"IID_Peaker"},{"$f":"INDEX(K:K,MATCH(R1033,Lists!J:J,0))","v":"IID_Peaker"},"Non-wind"]
[null,null,null,null,null,null,null,null,null,{"$f":"IFERROR(INDEX(raw_resource_build!$B$2:$B$1000,MATCH(0,COUNTIF($J$1:J1033,raw_resource_build!$B$2:$B$1000), 0),0), \"\")","v":""},{"$f":"IF(J1034=\"\", \"\", INDEX(raw_resource_build!E:E, MATCH(J1034, raw_resource_build!B:B, 0)))","v":""},{"$f":"IF(J1034=\"\", \"\", INDEX(raw_resource_build!C:C, MATCH(J1034, raw_resource_build!B:B, 0)))","v":""},null,{"$f":"raw_resource_build!B1034","v":"NW_Nuclear"},"Non-wind",{"$f":"IFERROR(INDEX($E$5:$E$32,MATCH(raw_resource_build!$E1034,Lists!$B$5:$B$32,0)),\"Non-CAISO\")","v":"Non-CAISO"},null,{"$f":"raw_annual_energy!C1034","v":"IID_Peaker"},{"$f":"INDEX(K:K,MATCH(R1034,Lists!J:J,0))","v":"IID_Peaker"},"Non-wind"]
[null,null,null,null,null,null,null,null,null,{"$f":"IFERROR(INDEX(raw_resource_build!$B$2:$B$1000,MATCH(0,COUNTIF($J$1:J1034,raw_resource_build!$B$2:$B$1000), 0),0), \"\")","v":""},{"$f":"IF(J1035=\"\", \"\", INDEX(raw_resource_build!E:E, MATCH(J1035, raw_resource_build!B:B, 0)))","v":""},{"$f":"IF(J1035=\"\", \"\", INDEX(raw_resource_build!C:C, MATCH(J1035, raw_resource_build!B:B, 0)))","v":""},null,{"$f":"raw_resource_build!B1035","v":"NW_Coal"},"Non-wind",{"$f":"IFERROR(INDEX($E$5:$E$32,MATCH(raw_resource_build!$E1035,Lists!$B$5:$B$32,0)),\"Non-CAISO\")","v":"Non-CAISO"},null,{"$f":"raw_annual_energy!C1035","v":"IID_Small_Hydro_for_Other"},{"$f":"INDEX(K:K,MATCH(R1035,Lists!J:J,0))","v":"Small_Hydro"},"Non-wind"]
[null,null,null,null,null,null,null,null,null,{"$f":"IFERROR(INDEX(raw_resource_build!$B$2:$B$1000,MATCH(0,COUNTIF($J$1:J1035,raw_resource_build!$B$2:$B$1000), 0),0), \"\")","v":""},{"$f":"IF(J1036=\"\", \"\", INDEX(raw_resource_build!E:E, MATCH(J1036, raw_resource_build!B:B, 0)))","v":""},{"$f":"IF(J1036=\"\", \"\", INDEX(raw_resource_build!C:C, MATCH(J1036, raw_resource_build!B:B, 0)))","v":""},null,{"$f":"raw_resource_build!B1036","v":"NW_CCGT"},"Non-wind",{"$f":"IFERROR(INDEX($E$5:$E$32,MATCH(raw_resource_build!$E1036,Lists!$B$5:$B$32,0)),\"Non-CAISO\")","v":"Non-CAISO"},null,{"$f":"raw_annual_energy!C1036","v":"IID_Small_Hydro_for_Other"},{"$f":"INDEX(K:K,MATCH(R1036,Lists!J:J,0))","v":"Small_Hydro"},"Non-wind"]
[null,null,null,null,null,null,null,null,null,{"$f":"IFERROR(INDEX(raw_resource_build!$B$2:$B$1000,MATCH(0,COUNTIF($J$1:J1036,raw_resource_build!$B$2:$B$1000), 0),0), \"\")","v":""},{"$f":"IF(J1037=\"\", \"\", INDEX(raw_resource_build!E:E, MATCH(J1037, raw_resource_build!B:B, 0)))","v":""},{"$f":"IF(J1037=\"\", \"\", INDEX(raw_resource_build!C:C, MATCH(J1037, raw_resource_build!B:B, 0)))","v":""},null,{"$f":"raw_resource_build!B1037","v":"NW_Peaker"},"Non-wind",{"$f":"IFERROR(INDEX($E$5:$E$32,MATCH(raw_resource_build!$E1037,Lists!$B$5:$B$32,0)),\"Non-CAISO\")","v":"Non-CAISO"},null,{"$f":"raw_annual_energy!C1037","v":"IID_Small_Hydro_for_Other"},{"$f":"INDEX(K:K,MATCH(R1037,Lists!J:J,0))","v":"Small_Hydro"},"Non-wind"]
[null,null,null,null,null,null,null,null,null,{"$f":"IFERROR(INDEX(raw_resource_build!$B$2:$B$1000,MATCH(0,COUNTIF($J$1:J1037,raw_resource_build!$B$2:$B$1000), 0),0), \"\")","v":""},{"$f":"IF(J1038=\"\", \"\", INDEX(raw_resource_build!E:E, MATCH(J1038, raw_resource_build!B:B, 0)))","v":""},{"$f":"IF(J1038=\"\", \"\", INDEX(raw_resource_build!C:C, MATCH(J1038, raw_resource_build!B:B, 0)))","v":""},null,{"$f":"raw_resource_build!B1038","v":"SW_Nuclear"},"Non-wind",{"$f":"IFERROR(INDEX($E$5:$E$32,MATCH(raw_resource_build!$E1038,Lists!$B$5:$B$32,0)),\"Non-CAISO\")","v":"Non-CAISO"},null,{"$f":"raw_annual_energy!C1038","v":"IID_Small_Hydro_for_Other"},{"$f":"INDEX(K:K,MATCH(R1038,Lists!J:J,0))","v":"Small_Hydro"},"Non-wind"]
[null,null,null,null,null,null,null,null,null,{"$f":"IFERROR(INDEX(raw_resource_build!$B$2:$B$1000,MATCH(0,COUNTIF($J$1:J1038,raw_resource_build!$B$2:$B$1000), 0),0), \"\")","v":""},{"$f":"IF(J1039=\"\", \"\", INDEX(raw_resource_build!E:E, MATCH(J1039, raw_resource_build!B:B, 0)))","v":""},{"$f":"IF(J1039=\"\", \"\", INDEX(raw_resource_build!C:C, MATCH(J1039, raw_resource_build!B:B, 0)))","v":""},null,{"$f":"raw_resource_build!B1039","v":"SW_Coal"},"Non-wind",{"$f":"IFERROR(INDEX($E$5:$E$32,MATCH(raw_resource_build!$E1039,Lists!$B$5:$B$32,0)),\"Non-CAISO\")","v":"Non-CAISO"},null,{"$f":"raw_annual_energy!C1039","v":"IID_Small_Hydro_for_Other"},{"$f":"INDEX(K:K,MATCH(R1039,Lists!J:J,0))","v":"Small_Hydro"},"Non-wind"]
[null,null,null,null,null,null,null,null,null,{"$f":"IFERROR(INDEX(raw_resource_build!$B$2:$B$1000,MATCH(0,COUNTIF($J$1:J1039,raw_resource_build!$B$2:$B$1000), 0),0), \"\")","v":""},{"$f":"IF(J1040=\"\", \"\", INDEX(raw_resource_build!E:E, MATCH(J1040, raw_resource_build!B:B, 0)))","v":""},{"$f":"IF(J1040=\"\", \"\", INDEX(raw_resource_build!C:C, MATCH(J1040, raw_resource_build!B:B, 0)))","v":""},null,{"$f":"raw_resource_build!B1040","v":"SW_CCGT"},"Non-wind",{"$f":"IFERROR(INDEX($E$5:$E$32,MATCH(raw_resource_build!$E1040,Lists!$B$5:$B$32,0)),\"Non-CAISO\")","v":"Non-CAISO"},null,{"$f":"raw_annual_energy!C1040","v":"IID_Small_Hydro_for_Other"},{"$f":"INDEX(K:K,MATCH(R1040,Lists!J:J,0))","v":"Small_Hydro"},"Non-wind"]
[null,null,null,null,null,null,null,null,null,{"$f":"IFERROR(INDEX(raw_resource_build!$B$2:$B$1000,MATCH(0,COUNTIF($J$1:J1040,raw_resource_build!$B$2:$B$1000), 0),0), \"\")","v":""},{"$f":"IF(J1041=\"\", \"\", INDEX(raw_resource_build!E:E, MATCH(J1041, raw_resource_build!B:B, 0)))","v":""},{"$f":"IF(J1041=\"\", \"\", INDEX(raw_resource_build!C:C, MATCH(J1041, raw_resource_build!B:B, 0)))","v":""},null,{"$f":"raw_resource_build!B1041","v":"SW_Peaker"},"Non-wind",{"$f":"IFERROR(INDEX($E$5:$E$32,MATCH(raw_resource_build!$E1041,Lists!$B$5:$B$32,0)),\"Non-CAISO\")","v":"Non-CAISO"},null,{"$f":"raw_annual_energy!C1041","v":"IID_Small_Hydro_for_Other"},{"$f":"INDEX(K:K,MATCH(R1041,Lists!J:J,0))","v":"Small_Hydro"},"Non-wind"]
[null,null,null,null,null,null,null,null,null,{"$f":"IFERROR(INDEX(raw_resource_build!$B$2:$B$1000,MATCH(0,COUNTIF($J$1:J1041,raw_resource_build!$B$2:$B$1000), 0),0), \"\")","v":""},{"$f":"IF(J1042=\"\", \"\", INDEX(raw_resource_build!E:E, MATCH(J1042, raw_resource_build!B:B, 0)))","v":""},{"$f":"IF(J1042=\"\", \"\", INDEX(raw_resource_build!C:C, MATCH(J1042, raw_resource_build!B:B, 0)))","v":""},null,{"$f":"raw_resource_build!B1042","v":"SW_ST"},"Non-wind",{"$f":"IFERROR(INDEX($E$5:$E$32,MATCH(raw_resource_build!$E1042,Lists!$B$5:$B$32,0)),\"Non-CAISO\")","v":"Non-CAISO"},null,{"$f":"raw_annual_energy!C1042","v":"IID_Small_Hydro_for_Other"},{"$f":"INDEX(K:K,MATCH(R1042,Lists!J:J,0))","v":"Small_Hydro"},"Non-wind"]
[null,null,null,null,null,null,null,null,null,{"$f":"IFERROR(INDEX(raw_resource_build!$B$2:$B$1000,MATCH(0,COUNTIF($J$1:J1042,raw_resource_build!$B$2:$B$1000), 0),0), \"\")","v":""},{"$f":"IF(J1043=\"\", \"\", INDEX(raw_resource_build!E:E, MATCH(J1043, raw_resource_build!B:B, 0)))","v":""},{"$f":"IF(J1043=\"\", \"\", INDEX(raw_resource_build!C:C, MATCH(J1043, raw_resource_build!B:B, 0)))","v":""},null,{"$f":"raw_resource_build!B1043","v":"LDWP_Nuclear"},"Non-wind",{"$f":"IFERROR(INDEX($E$5:$E$32,MATCH(raw_resource_build!$E1043,Lists!$B$5:$B$32,0)),\"Non-CAISO\")","v":"Non-CAISO"},null,{"$f":"raw_annual_energy!C1043","v":"IID_Solar_for_Other"},{"$f":"INDEX(K:K,MATCH(R1043,Lists!J:J,0))","v":"Solar"},"Non-wind"]
[null,null,null,null,null,null,null,null,null,{"$f":"IFERROR(INDEX(raw_resource_build!$B$2:$B$1000,MATCH(0,COUNTIF($J$1:J1043,raw_resource_build!$B$2:$B$1000), 0),0), \"\")","v":""},{"$f":"IF(J1044=\"\", \"\", INDEX(raw_resource_build!E:E, MATCH(J1044, raw_resource_build!B:B, 0)))","v":""},{"$f":"IF(J1044=\"\", \"\", INDEX(raw_resource_build!C:C, MATCH(J1044, raw_resource_build!B:B, 0)))","v":""},null,{"$f":"raw_resource_build!B1044","v":"LDWP_Coal"},"Non-wind",{"$f":"IFERROR(INDEX($E$5:$E$32,MATCH(raw_resource_build!$E1044,Lists!$B$5:$B$32,0)),\"Non-CAISO\")","v":"Non-CAISO"},null,{"$f":"raw_annual_energy!C1044","v":"IID_Solar_for_Other"},{"$f":"INDEX(K:K,MATCH(R1044,Lists!J:J,0))","v":"Solar"},"Non-wind"]
[null,null,null,null,null,null,null,null,null,{"$f":"IFERROR(INDEX(raw_resource_build!$B$2:$B$1000,MATCH(0,COUNTIF($J$1:J1044,raw_resource_build!$B$2:$B$1000), 0),0), \"\")","v":""},{"$f":"IF(J1045=\"\", \"\", INDEX(raw_resource_build!E:E, MATCH(J1045, raw_resource_build!B:B, 0)))","v":""},{"$f":"IF(J1045=\"\", \"\", INDEX(raw_resource_build!C:C, MATCH(J1045, raw_resource_build!B:B, 0)))","v":""},null,{"$f":"raw_resource_build!B1045","v":"LDWP_CCGT"},"Non-wind",{"$f":"IFERROR(INDEX($E$5:$E$32,MATCH(raw_resource_build!$E1045,Lists!$B$5:$B$32,0)),\"Non-CAISO\")","v":"Non-CAISO"},null,{"$f":"raw_annual_energy!C1045","v":"IID_Solar_for_Other"},{"$f":"INDEX(K:K,MATCH(R1045,Lists!J:J,0))","v":"Solar"},"Non-wind"]
[null,null,null,null,null,null,null,null,null,{"$f":"IFERROR(INDEX(raw_resource_build!$B$2:$B$1000,MATCH(0,COUNTIF($J$1:J1045,raw_resource_build!$B$2:$B$1000), 0),0), \"\")","v":""},{"$f":"IF(J1046=\"\", \"\", INDEX(raw_resource_build!E:E, MATCH(J1046, raw_resource_build!B:B, 0)))","v":""},{"$f":"IF(J1046=\"\", \"\", INDEX(raw_resource_build!C:C, MATCH(J1046, raw_resource_build!B:B, 0)))","v":""},null,{"$f":"raw_resource_build!B1046","v":"LDWP_Peaker"},"Non-wind",{"$f":"IFERROR(INDEX($E$5:$E$32,MATCH(raw_resource_build!$E1046,Lists!$B$5:$B$32,0)),\"Non-CAISO\")","v":"Non-CAISO"},null,{"$f":"raw_annual_energy!C1046","v":"IID_Solar_for_Other"},{"$f":"INDEX(K:K,MATCH(R1046,Lists!J:J,0))","v":"Solar"},"Non-wind"]
[null,null,null,null,null,null,null,null,null,{"$f":"IFERROR(INDEX(raw_resource_build!$B$2:$B$1000,MATCH(0,COUNTIF($J$1:J1046,raw_resource_build!$B$2:$B$1000), 0),0), \"\")","v":""},{"$f":"IF(J1047=\"\", \"\", INDEX(raw_resource_build!E:E, MATCH(J1047, raw_resource_build!B:B, 0)))","v":""},{"$f":"IF(J1047=\"\", \"\", INDEX(raw_resource_build!C:C, MATCH(J1047, raw_resource_build!B:B, 0)))","v":""},null,{"$f":"raw_resource_build!B1047","v":"LDWP_ST"},"Non-wind",{"$f":"IFERROR(INDEX($E$5:$E$32,MATCH(raw_resource_build!$E1047,Lists!$B$5:$B$32,0)),\"Non-CAISO\")","v":"Non-CAISO"},null,{"$f":"raw_annual_energy!C1047","v":"IID_Solar_for_Other"},{"$f":"INDEX(K:K,MATCH(R1047,Lists!J:J,0))","v":"Solar"},"Non-wind"]
[null,null,null,null,null,null,null,null,null,{"$f":"IFERROR(INDEX(raw_resource_build!$B$2:$B$1000,MATCH(0,COUNTIF($J$1:J1047,raw_resource_build!$B$2:$B$1000), 0),0), \"\")","v":""},{"$f":"IF(J1048=\"\", \"\", INDEX(raw_resource_build!E:E, MATCH(J1048, raw_resource_build!B:B, 0)))","v":""},{"$f":"IF(J1048=\"\", \"\", INDEX(raw_resource_build!C:C, MATCH(J1048, raw_resource_build!B:B, 0)))","v":""},null,{"$f":"raw_resource_build!B1048","v":"IID_CCGT"},"Non-wind",{"$f":"IFERROR(INDEX($E$5:$E$32,MATCH(raw_resource_build!$E1048,Lists!$B$5:$B$32,0)),\"Non-CAISO\")","v":"Non-CAISO"},null,{"$f":"raw_annual_energy!C1048","v":"IID_Solar_for_Other"},{"$f":"INDEX(K:K,MATCH(R1048,Lists!J:J,0))","v":"Solar"},"Non-wind"]
[null,null,null,null,null,null,null,null,null,{"$f":"IFERROR(INDEX(raw_resource_build!$B$2:$B$1000,MATCH(0,COUNTIF($J$1:J1048,raw_resource_build!$B$2:$B$1000), 0),0), \"\")","v":""},{"$f":"IF(J1049=\"\", \"\", INDEX(raw_resource_build!E:E, MATCH(J1049, raw_resource_build!B:B, 0)))","v":""},{"$f":"IF(J1049=\"\", \"\", INDEX(raw_resource_build!C:C, MATCH(J1049, raw_resource_build!B:B, 0)))","v":""},null,{"$f":"raw_resource_build!B1049","v":"IID_Peaker"},"Non-wind",{"$f":"IFERROR(INDEX($E$5:$E$32,MATCH(raw_resource_build!$E1049,Lists!$B$5:$B$32,0)),\"Non-CAISO\")","v":"Non-CAISO"},null,{"$f":"raw_annual_energy!C1049","v":"IID_Solar_for_Other"},{"$f":"INDEX(K:K,MATCH(R1049,Lists!J:J,0))","v":"Solar"},"Non-wind"]
[null,null,null,null,null,null,null,null,null,{"$f":"IFERROR(INDEX(raw_resource_build!$B$2:$B$1000,MATCH(0,COUNTIF($J$1:J1049,raw_resource_build!$B$2:$B$1000), 0),0), \"\")","v":""},{"$f":"IF(J1050=\"\", \"\", INDEX(raw_resource_build!E:E, MATCH(J1050, raw_resource_build!B:B, 0)))","v":""},{"$f":"IF(J1050=\"\", \"\", INDEX(raw_resource_build!C:C, MATCH(J1050, raw_resource_build!B:B, 0)))","v":""},null,{"$f":"raw_resource_build!B1050","v":"BANC_CCGT"},"Non-wind",{"$f":"IFERROR(INDEX($E$5:$E$32,MATCH(raw_resource_build!$E1050,Lists!$B$5:$B$32,0)),\"Non-CAISO\")","v":"Non-CAISO"},null,{"$f":"raw_annual_energy!C1050","v":"IID_Solar_for_Other"},{"$f":"INDEX(K:K,MATCH(R1050,Lists!J:J,0))","v":"Solar"},"Non-wind"]
[null,null,null,null,null,null,null,null,null,{"$f":"IFERROR(INDEX(raw_resource_build!$B$2:$B$1000,MATCH(0,COUNTIF($J$1:J1050,raw_resource_build!$B$2:$B$1000), 0),0), \"\")","v":""},{"$f":"IF(J1051=\"\", \"\", INDEX(raw_resource_build!E:E, MATCH(J1051, raw_resource_build!B:B, 0)))","v":""},{"$f":"IF(J1051=\"\", \"\", INDEX(raw_resource_build!C:C, MATCH(J1051, raw_resource_build!B:B, 0)))","v":""},null,{"$f":"raw_resource_build!B1051","v":"BANC_Peaker"},"Non-wind",{"$f":"IFERROR(INDEX($E$5:$E$32,MATCH(raw_resource_build!$E1051,Lists!$B$5:$B$32,0)),\"Non-CAISO\")","v":"Non-CAISO"},null,{"$f":"raw_annual_energy!C1051","v":"IID_Wind_for_Other"},{"$f":"INDEX(K:K,MATCH(R1051,Lists!J:J,0))","v":"Wind"},"Non-wind"]
[null,null,null,null,null,null,null,null,null,{"$f":"IFERROR(INDEX(raw_resource_build!$B$2:$B$1000,MATCH(0,COUNTIF($J$1:J1051,raw_resource_build!$B$2:$B$1000), 0),0), \"\")","v":""},{"$f":"IF(J1052=\"\", \"\", INDEX(raw_resource_build!E:E, MATCH(J1052, raw_resource_build!B:B, 0)))","v":""},{"$f":"IF(J1052=\"\", \"\", INDEX(raw_resource_build!C:C, MATCH(J1052, raw_resource_build!B:B, 0)))","v":""},null,{"$f":"raw_resource_build!B1052","v":"BANC_Biomass_for_Other"},"Non-wind",{"$f":"IFERROR(INDEX($E$5:$E$32,MATCH(raw_resource_build!$E1052,Lists!$B$5:$B$32,0)),\"Non-CAISO\")","v":"Biomass"},null,{"$f":"raw_annual_energy!C1052","v":"IID_Wind_for_Other"},{"$f":"INDEX(K:K,MATCH(R1052,Lists!J:J,0))","v":"Wind"},"Non-wind"]
[null,null,null,null,null,null,null,null,null,{"$f":"IFERROR(INDEX(raw_resource_build!$B$2:$B$1000,MATCH(0,COUNTIF($J$1:J1052,raw_resource_build!$B$2:$B$1000), 0),0), \"\")","v":""},{"$f":"IF(J1053=\"\", \"\", INDEX(raw_resource_build!E:E, MATCH(J1053, raw_resource_build!B:B, 0)))","v":""},{"$f":"IF(J1053=\"\", \"\", INDEX(raw_resource_build!C:C, MATCH(J1053, raw_resource_build!B:B, 0)))","v":""},null,{"$f":"raw_resource_build!B1053","v":"BANC_Geothermal_for_Other"},"Non-wind",{"$f":"IFERROR(INDEX($E$5:$E$32,MATCH(raw_resource_build!$E1053,Lists!$B$5:$B$32,0)),\"Non-CAISO\")","v":"Geothermal"},null,{"$f":"raw_annual_energy!C1053","v":"IID_Wind_for_Other"},{"$f":"INDEX(K:K,MATCH(R1053,Lists!J:J,0))","v":"Wind"},"Non-wind"]
[null,null,null,null,null,null,null,null,null,{"$f":"IFERROR(INDEX(raw_resource_build!$B$2:$B$1000,MATCH(0,COUNTIF($J$1:J1053,raw_resource_build!$B$2:$B$1000), 0),0), \"\")","v":""},{"$f":"IF(J1054=\"\", \"\", INDEX(raw_resource_build!E:E, MATCH(J1054, raw_resource_build!B:B, 0)))","v":""},{"$f":"IF(J1054=\"\", \"\", INDEX(raw_resource_build!C:C, MATCH(J1054, raw_resource_build!B:B, 0)))","v":""},null,{"$f":"raw_resource_build!B1054","v":"CAISO_Biomass_for_Other"},"Non-wind",{"$f":"IFERROR(INDEX($E$5:$E$32,MATCH(raw_resource_build!$E1054,Lists!$B$5:$B$32,0)),\"Non-CAISO\")","v":"Biomass"},null,{"$f":"raw_annual_energy!C1054","v":"IID_Wind_for_Other"},{"$f":"INDEX(K:K,MATCH(R1054,Lists!J:J,0))","v":"Wind"},"Non-wind"]
[null,null,null,null,null,null,null,null,null,{"$f":"IFERROR(INDEX(raw_resource_build!$B$2:$B$1000,MATCH(0,COUNTIF($J$1:J1054,raw_resource_build!$B$2:$B$1000), 0),0), \"\")","v":""},{"$f":"IF(J1055=\"\", \"\", INDEX(raw_resource_build!E:E, MATCH(J1055, raw_resource_build!B:B, 0)))","v":""},{"$f":"IF(J1055=\"\", \"\", INDEX(raw_resource_build!C:C, MATCH(J1055, raw_resource_build!B:B, 0)))","v":""},null,{"$f":"raw_resource_build!B1055","v":"CAISO_Geothermal_for_Other"},"Non-wind",{"$f":"IFERROR(INDEX($E$5:$E$32,MATCH(raw_resource_build!$E1055,Lists!$B$5:$B$32,0)),\"Non-CAISO\")","v":"Geothermal"},null,{"$f":"raw_annual_energy!C1055","v":"IID_Wind_for_Other"},{"$f":"INDEX(K:K,MATCH(R1055,Lists!J:J,0))","v":"Wind"},"Non-wind"]
[null,null,null,null,null,null,null,null,null,{"$f":"IFERROR(INDEX(raw_resource_build!$B$2:$B$1000,MATCH(0,COUNTIF($J$1:J1055,raw_resource_build!$B$2:$B$1000), 0),0), \"\")","v":""},{"$f":"IF(J1056=\"\", \"\", INDEX(raw_resource_build!E:E, MATCH(J1056, raw_resource_build!B:B, 0)))","v":""},{"$f":"IF(J1056=\"\", \"\", INDEX(raw_resource_build!C:C, MATCH(J1056, raw_resource_build!B:B, 0)))","v":""},null,{"$f":"raw_resource_build!B1056","v":"IID_Biomass_for_Other"},"Non-wind",{"$f":"IFERROR(INDEX($E$5:$E$32,MATCH(raw_resource_build!$E1056,Lists!$B$5:$B$32,0)),\"Non-CAISO\")","v":"Biomass"},null,{"$f":"raw_annual_energy!C1056","v":"IID_Wind_for_Other"},{"$f":"INDEX(K:K,MATCH(R1056,Lists!J:J,0))","v":"Wind"},"Non-wind"]
[null,null,null,null,null,null,null,null,null,{"$f":"IFERROR(INDEX(raw_resource_build!$B$2:$B$1000,MATCH(0,COUNTIF($J$1:J1056,raw_resource_build!$B$2:$B$1000), 0),0), \"\")","v":""},{"$f":"IF(J1057=\"\", \"\", INDEX(raw_resource_build!E:E, MATCH(J1057, raw_resource_build!B:B, 0)))","v":""},{"$f":"IF(J1057=\"\", \"\", INDEX(raw_resource_build!C:C, MATCH(J1057, raw_resource_build!B:B, 0)))","v":""},null,{"$f":"raw_resource_build!B1057","v":"IID_Geothermal_for_Other"},"Non-wind",{"$f":"IFERROR(INDEX($E$5:$E$32,MATCH(raw_resource_build!$E1057,Lists!$B$5:$B$32,0)),\"Non-CAISO\")","v":"Geothermal"},null,{"$f":"raw_annual_energy!C1057","v":"IID_Wind_for_Other"},{"$f":"INDEX(K:K,MATCH(R1057,Lists!J:J,0))","v":"Wind"},"Non-wind"]
[null,null,null,null,null,null,null,null,null,{"$f":"IFERROR(INDEX(raw_resource_build!$B$2:$B$1000,MATCH(0,COUNTIF($J$1:J1057,raw_resource_build!$B$2:$B$1000), 0),0), \"\")","v":""},{"$f":"IF(J1058=\"\", \"\", INDEX(raw_resource_build!E:E, MATCH(J1058, raw_resource_build!B:B, 0)))","v":""},{"$f":"IF(J1058=\"\", \"\", INDEX(raw_resource_build!C:C, MATCH(J1058, raw_resource_build!B:B, 0)))","v":""},null,{"$f":"raw_resource_build!B1058","v":"LDWP_Biomass_for_Other"},"Non-wind",{"$f":"IFERROR(INDEX($E$5:$E$32,MATCH(raw_resource_build!$E1058,Lists!$B$5:$B$32,0)),\"Non-CAISO\")","v":"Biomass"},null,{"$f":"raw_annual_energy!C1058","v":"IID_Wind_for_Other"},{"$f":"INDEX(K:K,MATCH(R1058,Lists!J:J,0))","v":"Wind"},"Non-wind"]
[null,null,null,null,null,null,null,null,null,{"$f":"IFERROR(INDEX(raw_resource_build!$B$2:$B$1000,MATCH(0,COUNTIF($J$1:J1058,raw_resource_build!$B$2:$B$1000), 0),0), \"\")","v":""},{"$f":"IF(J1059=\"\", \"\", INDEX(raw_resource_build!E:E, MATCH(J1059, raw_resource_build!B:B, 0)))","v":""},{"$f":"IF(J1059=\"\", \"\", INDEX(raw_resource_build!C:C, MATCH(J1059, raw_resource_build!B:B, 0)))","v":""},null,{"$f":"raw_resource_build!B1059","v":"LDWP_Geothermal_for_Other"},"Non-wind",{"$f":"IFERROR(INDEX($E$5:$E$32,MATCH(raw_resource_build!$E1059,Lists!$B$5:$B$32,0)),\"Non-CAISO\")","v":"Geothermal"},null,{"$f":"raw_annual_energy!C1059","v":"LDWP_Wind_for_CAISO"},{"$f":"INDEX(K:K,MATCH(R1059,Lists!J:J,0))","v":"Wind"},"Non-wind"]
[null,null,null,null,null,null,null,null,null,{"$f":"IFERROR(INDEX(raw_resource_build!$B$2:$B$1000,MATCH(0,COUNTIF($J$1:J1059,raw_resource_build!$B$2:$B$1000), 0),0), \"\")","v":""},{"$f":"IF(J1060=\"\", \"\", INDEX(raw_resource_build!E:E, MATCH(J1060, raw_resource_build!B:B, 0)))","v":""},{"$f":"IF(J1060=\"\", \"\", INDEX(raw_resource_build!C:C, MATCH(J1060, raw_resource_build!B:B, 0)))","v":""},null,{"$f":"raw_resource_build!B1060","v":"NW_Biomass_for_Other"},"Non-wind",{"$f":"IFERROR(INDEX($E$5:$E$32,MATCH(raw_resource_build!$E1060,Lists!$B$5:$B$32,0)),\"Non-CAISO\")","v":"Biomass"},null,{"$f":"raw_annual_energy!C1060","v":"LDWP_Wind_for_CAISO"},{"$f":"INDEX(K:K,MATCH(R1060,Lists!J:J,0))","v":"Wind"},"Non-wind"]
[null,null,null,null,null,null,null,null,null,{"$f":"IFERROR(INDEX(raw_resource_build!$B$2:$B$1000,MATCH(0,COUNTIF($J$1:J1060,raw_resource_build!$B$2:$B$1000), 0),0), \"\")","v":""},{"$f":"IF(J1061=\"\", \"\", INDEX(raw_resource_build!E:E, MATCH(J1061, raw_resource_build!B:B, 0)))","v":""},{"$f":"IF(J1061=\"\", \"\", INDEX(raw_resource_build!C:C, MATCH(J1061, raw_resource_build!B:B, 0)))","v":""},null,{"$f":"raw_resource_build!B1061","v":"NW_Geothermal_for_Other"},"Non-wind",{"$f":"IFERROR(INDEX($E$5:$E$32,MATCH(raw_resource_build!$E1061,Lists!$B$5:$B$32,0)),\"Non-CAISO\")","v":"Geothermal"},null,{"$f":"raw_annual_energy!C1061","v":"LDWP_Wind_for_CAISO"},{"$f":"INDEX(K:K,MATCH(R1061,Lists!J:J,0))","v":"Wind"},"Non-wind"]
[null,null,null,null,null,null,null,null,null,{"$f":"IFERROR(INDEX(raw_resource_build!$B$2:$B$1000,MATCH(0,COUNTIF($J$1:J1061,raw_resource_build!$B$2:$B$1000), 0),0), \"\")","v":""},{"$f":"IF(J1062=\"\", \"\", INDEX(raw_resource_build!E:E, MATCH(J1062, raw_resource_build!B:B, 0)))","v":""},{"$f":"IF(J1062=\"\", \"\", INDEX(raw_resource_build!C:C, MATCH(J1062, raw_resource_build!B:B, 0)))","v":""},null,{"$f":"raw_resource_build!B1062","v":"SW_Biomass_for_Other"},"Non-wind",{"$f":"IFERROR(INDEX($E$5:$E$32,MATCH(raw_resource_build!$E1062,Lists!$B$5:$B$32,0)),\"Non-CAISO\")","v":"Biomass"},null,{"$f":"raw_annual_energy!C1062","v":"LDWP_Wind_for_CAISO"},{"$f":"INDEX(K:K,MATCH(R1062,Lists!J:J,0))","v":"Wind"},"Non-wind"]
[null,null,null,null,null,null,null,null,null,{"$f":"IFERROR(INDEX(raw_resource_build!$B$2:$B$1000,MATCH(0,COUNTIF($J$1:J1062,raw_resource_build!$B$2:$B$1000), 0),0), \"\")","v":""},{"$f":"IF(J1063=\"\", \"\", INDEX(raw_resource_build!E:E, MATCH(J1063, raw_resource_build!B:B, 0)))","v":""},{"$f":"IF(J1063=\"\", \"\", INDEX(raw_resource_build!C:C, MATCH(J1063, raw_resource_build!B:B, 0)))","v":""},null,{"$f":"raw_resource_build!B1063","v":"SW_Geothermal_for_Other"},"Non-wind",{"$f":"IFERROR(INDEX($E$5:$E$32,MATCH(raw_resource_build!$E1063,Lists!$B$5:$B$32,0)),\"Non-CAISO\")","v":"Geothermal"},null,{"$f":"raw_annual_energy!C1063","v":"LDWP_Wind_for_CAISO"},{"$f":"INDEX(K:K,MATCH(R1063,Lists!J:J,0))","v":"Wind"},"Non-wind"]
[null,null,null,null,null,null,null,null,null,{"$f":"IFERROR(INDEX(raw_resource_build!$B$2:$B$1000,MATCH(0,COUNTIF($J$1:J1063,raw_resource_build!$B$2:$B$1000), 0),0), \"\")","v":""},{"$f":"IF(J1064=\"\", \"\", INDEX(raw_resource_build!E:E, MATCH(J1064, raw_resource_build!B:B, 0)))","v":""},{"$f":"IF(J1064=\"\", \"\", INDEX(raw_resource_build!C:C, MATCH(J1064, raw_resource_build!B:B, 0)))","v":""},null,{"$f":"raw_resource_build!B1064","v":"CAISO_Biomass_for_CAISO"},"Non-wind",{"$f":"IFERROR(INDEX($E$5:$E$32,MATCH(raw_resource_build!$E1064,Lists!$B$5:$B$32,0)),\"Non-CAISO\")","v":"Biomass"},null,{"$f":"raw_annual_energy!C1064","v":"LDWP_Wind_for_CAISO"},{"$f":"INDEX(K:K,MATCH(R1064,Lists!J:J,0))","v":"Wind"},"Non-wind"]
[null,null,null,null,null,null,null,null,null,{"$f":"IFERROR(INDEX(raw_resource_build!$B$2:$B$1000,MATCH(0,COUNTIF($J$1:J1064,raw_resource_build!$B$2:$B$1000), 0),0), \"\")","v":""},{"$f":"IF(J1065=\"\", \"\", INDEX(raw_resource_build!E:E, MATCH(J1065, raw_resource_build!B:B, 0)))","v":""},{"$f":"IF(J1065=\"\", \"\", INDEX(raw_resource_build!C:C, MATCH(J1065, raw_resource_build!B:B, 0)))","v":""},null,{"$f":"raw_resource_build!B1065","v":"CAISO_Geothermal_for_CAISO"},"Non-wind",{"$f":"IFERROR(INDEX($E$5:$E$32,MATCH(raw_resource_build!$E1065,Lists!$B$5:$B$32,0)),\"Non-CAISO\")","v":"Geothermal"},null,{"$f":"raw_annual_energy!C1065","v":"LDWP_Wind_for_CAISO"},{"$f":"INDEX(K:K,MATCH(R1065,Lists!J:J,0))","v":"Wind"},"Non-wind"]
[null,null,null,null,null,null,null,null,null,{"$f":"IFERROR(INDEX(raw_resource_build!$B$2:$B$1000,MATCH(0,COUNTIF($J$1:J1065,raw_resource_build!$B$2:$B$1000), 0),0), \"\")","v":""},{"$f":"IF(J1066=\"\", \"\", INDEX(raw_resource_build!E:E, MATCH(J1066, raw_resource_build!B:B, 0)))","v":""},{"$f":"IF(J1066=\"\", \"\", INDEX(raw_resource_build!C:C, MATCH(J1066, raw_resource_build!B:B, 0)))","v":""},null,{"$f":"raw_resource_build!B1066","v":"IID_Geothermal_for_CAISO"},"Non-wind",{"$f":"IFERROR(INDEX($E$5:$E$32,MATCH(raw_resource_build!$E1066,Lists!$B$5:$B$32,0)),\"Non-CAISO\")","v":"Geothermal"},null,{"$f":"raw_annual_energy!C1066","v":"LDWP_Wind_for_CAISO"},{"$f":"INDEX(K:K,MATCH(R1066,Lists!J:J,0))","v":"Wind"},"Non-wind"]
[null,null,null,null,null,null,null,null,null,{"$f":"IFERROR(INDEX(raw_resource_build!$B$2:$B$1000,MATCH(0,COUNTIF($J$1:J1066,raw_resource_build!$B$2:$B$1000), 0),0), \"\")","v":""},{"$f":"IF(J1067=\"\", \"\", INDEX(raw_resource_build!E:E, MATCH(J1067, raw_resource_build!B:B, 0)))","v":""},{"$f":"IF(J1067=\"\", \"\", INDEX(raw_resource_build!C:C, MATCH(J1067, raw_resource_build!B:B, 0)))","v":""},null,{"$f":"raw_resource_build!B1067","v":"NW_Biomass_for_CAISO"},"Non-wind",{"$f":"IFERROR(INDEX($E$5:$E$32,MATCH(raw_resource_build!$E1067,Lists!$B$5:$B$32,0)),\"Non-CAISO\")","v":"Biomass"},null,{"$f":"raw_annual_energy!C1067","v":"LDWP_Biomass_for_Other"},{"$f":"INDEX(K:K,MATCH(R1067,Lists!J:J,0))","v":"Biomass"},"Non-wind"]
[null,null,null,null,null,null,null,null,null,{"$f":"IFERROR(INDEX(raw_resource_build!$B$2:$B$1000,MATCH(0,COUNTIF($J$1:J1067,raw_resource_build!$B$2:$B$1000), 0),0), \"\")","v":""},{"$f":"IF(J1068=\"\", \"\", INDEX(raw_resource_build!E:E, MATCH(J1068, raw_resource_build!B:B, 0)))","v":""},{"$f":"IF(J1068=\"\", \"\", INDEX(raw_resource_build!C:C, MATCH(J1068, raw_resource_build!B:B, 0)))","v":""},null,{"$f":"raw_resource_build!B1068","v":"NW_Geothermal_for_CAISO"},"Non-wind",{"$f":"IFERROR(INDEX($E$5:$E$32,MATCH(raw_resource_build!$E1068,Lists!$B$5:$B$32,0)),\"Non-CAISO\")","v":"Geothermal"},null,{"$f":"raw_annual_energy!C1068","v":"LDWP_Biomass_for_Other"},{"$f":"INDEX(K:K,MATCH(R1068,Lists!J:J,0))","v":"Biomass"},"Non-wind"]
[null,null,null,null,null,null,null,null,null,{"$f":"IFERROR(INDEX(raw_resource_build!$B$2:$B$1000,MATCH(0,COUNTIF($J$1:J1068,raw_resource_build!$B$2:$B$1000), 0),0), \"\")","v":""},{"$f":"IF(J1069=\"\", \"\", INDEX(raw_resource_build!E:E, MATCH(J1069, raw_resource_build!B:B, 0)))","v":""},{"$f":"IF(J1069=\"\", \"\", INDEX(raw_resource_build!C:C, MATCH(J1069, raw_resource_build!B:B, 0)))","v":""},null,{"$f":"raw_resource_build!B1069","v":"InState_Biomass"},"In-State",{"$f":"IFERROR(INDEX($E$5:$E$32,MATCH(raw_resource_build!$E1069,Lists!$B$5:$B$32,0)),\"Non-CAISO\")","v":"Biomass"},null,{"$f":"raw_annual_energy!C1069","v":"LDWP_Biomass_for_Other"},{"$f":"INDEX(K:K,MATCH(R1069,Lists!J:J,0))","v":"Biomass"},"Non-wind"]
[null,null,null,null,null,null,null,null,null,{"$f":"IFERROR(INDEX(raw_resource_build!$B$2:$B$1000,MATCH(0,COUNTIF($J$1:J1069,raw_resource_build!$B$2:$B$1000), 0),0), \"\")","v":""},{"$f":"IF(J1070=\"\", \"\", INDEX(raw_resource_build!E:E, MATCH(J1070, raw_resource_build!B:B, 0)))","v":""},{"$f":"IF(J1070=\"\", \"\", INDEX(raw_resource_build!C:C, MATCH(J1070, raw_resource_build!B:B, 0)))","v":""},null,{"$f":"raw_resource_build!B1070","v":"CAISO_Small_Hydro_for_CAISO"},"Non-wind",{"$f":"IFERROR(INDEX($E$5:$E$32,MATCH(raw_resource_build!$E1070,Lists!$B$5:$B$32,0)),\"Non-CAISO\")","v":"Hydro (small + large)"},null,{"$f":"raw_annual_energy!C1070","v":"LDWP_Biomass_for_Other"},{"$f":"INDEX(K:K,MATCH(R1070,Lists!J:J,0))","v":"Biomass"},"Non-wind"]
[null,null,null,null,null,null,null,null,null,{"$f":"IFERROR(INDEX(raw_resource_build!$B$2:$B$1000,MATCH(0,COUNTIF($J$1:J1070,raw_resource_build!$B$2:$B$1000), 0),0), \"\")","v":""},{"$f":"IF(J1071=\"\", \"\", INDEX(raw_resource_build!E:E, MATCH(J1071, raw_resource_build!B:B, 0)))","v":""},{"$f":"IF(J1071=\"\", \"\", INDEX(raw_resource_build!C:C, MATCH(J1071, raw_resource_build!B:B, 0)))","v":""},null,{"$f":"raw_resource_build!B1071","v":"BANC_Small_Hydro_for_CAISO"},"Non-wind",{"$f":"IFERROR(INDEX($E$5:$E$32,MATCH(raw_resource_build!$E1071,Lists!$B$5:$B$32,0)),\"Non-CAISO\")","v":"Hydro (small + large)"},null,{"$f":"raw_annual_energy!C1071","v":"LDWP_Biomass_for_Other"},{"$f":"INDEX(K:K,MATCH(R1071,Lists!J:J,0))","v":"Biomass"},"Non-wind"]
[null,null,null,null,null,null,null,null,null,{"$f":"IFERROR(INDEX(raw_resource_build!$B$2:$B$1000,MATCH(0,COUNTIF($J$1:J1071,raw_resource_build!$B$2:$B$1000), 0),0), \"\")","v":""},{"$f":"IF(J1072=\"\", \"\", INDEX(raw_resource_build!E:E, MATCH(J1072, raw_resource_build!B:B, 0)))","v":""},{"$f":"IF(J1072=\"\", \"\", INDEX(raw_resource_build!C:C, MATCH(J1072, raw_resource_build!B:B, 0)))","v":""},null,{"$f":"raw_resource_build!B1072","v":"NW_Small_Hydro_for_CAISO"},"Non-wind",{"$f":"IFERROR(INDEX($E$5:$E$32,MATCH(raw_resource_build!$E1072,Lists!$B$5:$B$32,0)),\"Non-CAISO\")","v":"Hydro (small + large)"},null,{"$f":"raw_annual_energy!C1072","v":"LDWP_Biomass_for_Other"},{"$f":"INDEX(K:K,MATCH(R1072,Lists!J:J,0))","v":"Biomass"},"Non-wind"]
[null,null,null,null,null,null,null,null,null,{"$f":"IFERROR(INDEX(raw_resource_build!$B$2:$B$1000,MATCH(0,COUNTIF($J$1:J1072,raw_resource_build!$B$2:$B$1000), 0),0), \"\")","v":""},{"$f":"IF(J1073=\"\", \"\", INDEX(raw_resource_build!E:E, MATCH(J1073, raw_resource_build!B:B, 0)))","v":""},{"$f":"IF(J1073=\"\", \"\", INDEX(raw_resource_build!C:C, MATCH(J1073, raw_resource_build!B:B, 0)))","v":""},null,{"$f":"raw_resource_build!B1073","v":"CAISO_Small_Hydro_for_Other"},"Non-wind",{"$f":"IFERROR(INDEX($E$5:$E$32,MATCH(raw_resource_build!$E1073,Lists!$B$5:$B$32,0)),\"Non-CAISO\")","v":"Hydro (small + large)"},null,{"$f":"raw_annual_energy!C1073","v":"LDWP_Biomass_for_Other"},{"$f":"INDEX(K:K,MATCH(R1073,Lists!J:J,0))","v":"Biomass"},"Non-wind"]
[null,null,null,null,null,null,null,null,null,{"$f":"IFERROR(INDEX(raw_resource_build!$B$2:$B$1000,MATCH(0,COUNTIF($J$1:J1073,raw_resource_build!$B$2:$B$1000), 0),0), \"\")","v":""},{"$f":"IF(J1074=\"\", \"\", INDEX(raw_resource_build!E:E, MATCH(J1074, raw_resource_build!B:B, 0)))","v":""},{"$f":"IF(J1074=\"\", \"\", INDEX(raw_resource_build!C:C, MATCH(J1074, raw_resource_build!B:B, 0)))","v":""},null,{"$f":"raw_resource_build!B1074","v":"BANC_Small_Hydro_for_Other"},"Non-wind",{"$f":"IFERROR(INDEX($E$5:$E$32,MATCH(raw_resource_build!$E1074,Lists!$B$5:$B$32,0)),\"Non-CAISO\")","v":"Hydro (small + large)"},null,{"$f":"raw_annual_energy!C1074","v":"LDWP_Biomass_for_Other"},{"$f":"INDEX(K:K,MATCH(R1074,Lists!J:J,0))","v":"Biomass"},"Non-wind"]
[null,null,null,null,null,null,null,null,null,{"$f":"IFERROR(INDEX(raw_resource_build!$B$2:$B$1000,MATCH(0,COUNTIF($J$1:J1074,raw_resource_build!$B$2:$B$1000), 0),0), \"\")","v":""},{"$f":"IF(J1075=\"\", \"\", INDEX(raw_resource_build!E:E, MATCH(J1075, raw_resource_build!B:B, 0)))","v":""},{"$f":"IF(J1075=\"\", \"\", INDEX(raw_resource_build!C:C, MATCH(J1075, raw_resource_build!B:B, 0)))","v":""},null,{"$f":"raw_resource_build!B1075","v":"IID_Small_Hydro_for_Other"},"Non-wind",{"$f":"IFERROR(INDEX($E$5:$E$32,MATCH(raw_resource_build!$E1075,Lists!$B$5:$B$32,0)),\"Non-CAISO\")","v":"Hydro (small + large)"},null,{"$f":"raw_annual_energy!C1075","v":"LDWP_CCGT"},{"$f":"INDEX(K:K,MATCH(R1075,Lists!J:J,0))","v":"LDWP_CCGT"},"Non-wind"]
[null,null,null,null,null,null,null,null,null,{"$f":"IFERROR(INDEX(raw_resource_build!$B$2:$B$1000,MATCH(0,COUNTIF($J$1:J1075,raw_resource_build!$B$2:$B$1000), 0),0), \"\")","v":""},{"$f":"IF(J1076=\"\", \"\", INDEX(raw_resource_build!E:E, MATCH(J1076, raw_resource_build!B:B, 0)))","v":""},{"$f":"IF(J1076=\"\", \"\", INDEX(raw_resource_build!C:C, MATCH(J1076, raw_resource_build!B:B, 0)))","v":""},null,{"$f":"raw_resource_build!B1076","v":"LDWP_Small_Hydro_for_Other"},"Non-wind",{"$f":"IFERROR(INDEX($E$5:$E$32,MATCH(raw_resource_build!$E1076,Lists!$B$5:$B$32,0)),\"Non-CAISO\")","v":"Hydro (small + large)"},null,{"$f":"raw_annual_energy!C1076","v":"LDWP_CCGT"},{"$f":"INDEX(K:K,MATCH(R1076,Lists!J:J,0))","v":"LDWP_CCGT"},"Non-wind"]
[null,null,null,null,null,null,null,null,null,{"$f":"IFERROR(INDEX(raw_resource_build!$B$2:$B$1000,MATCH(0,COUNTIF($J$1:J1076,raw_resource_build!$B$2:$B$1000), 0),0), \"\")","v":""},{"$f":"IF(J1077=\"\", \"\", INDEX(raw_resource_build!E:E, MATCH(J1077, raw_resource_build!B:B, 0)))","v":""},{"$f":"IF(J1077=\"\", \"\", INDEX(raw_resource_build!C:C, MATCH(J1077, raw_resource_build!B:B, 0)))","v":""},null,{"$f":"raw_resource_build!B1077","v":"NW_Small_Hydro_for_Other"},"Non-wind",{"$f":"IFERROR(INDEX($E$5:$E$32,MATCH(raw_resource_build!$E1077,Lists!$B$5:$B$32,0)),\"Non-CAISO\")","v":"Hydro (small + large)"},null,{"$f":"raw_annual_energy!C1077","v":"LDWP_CCGT"},{"$f":"INDEX(K:K,MATCH(R1077,Lists!J:J,0))","v":"LDWP_CCGT"},"Non-wind"]
[null,null,null,null,null,null,null,null,null,{"$f":"IFERROR(INDEX(raw_resource_build!$B$2:$B$1000,MATCH(0,COUNTIF($J$1:J1077,raw_resource_build!$B$2:$B$1000), 0),0), \"\")","v":""},{"$f":"IF(J1078=\"\", \"\", INDEX(raw_resource_build!E:E, MATCH(J1078, raw_resource_build!B:B, 0)))","v":""},{"$f":"IF(J1078=\"\", \"\", INDEX(raw_resource_build!C:C, MATCH(J1078, raw_resource_build!B:B, 0)))","v":""},null,{"$f":"raw_resource_build!B1078","v":"SW_Small_Hydro_for_Other"},"Non-wind",{"$f":"IFERROR(INDEX($E$5:$E$32,MATCH(raw_resource_build!$E1078,Lists!$B$5:$B$32,0)),\"Non-CAISO\")","v":"Hydro (small + large)"},null,{"$f":"raw_annual_energy!C1078","v":"LDWP_CCGT"},{"$f":"INDEX(K:K,MATCH(R1078,Lists!J:J,0))","v":"LDWP_CCGT"},"Non-wind"]
[null,null,null,null,null,null,null,null,null,{"$f":"IFERROR(INDEX(raw_resource_build!$B$2:$B$1000,MATCH(0,COUNTIF($J$1:J1078,raw_resource_build!$B$2:$B$1000), 0),0), \"\")","v":""},{"$f":"IF(J1079=\"\", \"\", INDEX(raw_resource_build!E:E, MATCH(J1079, raw_resource_build!B:B, 0)))","v":""},{"$f":"IF(J1079=\"\", \"\", INDEX(raw_resource_build!C:C, MATCH(J1079, raw_resource_build!B:B, 0)))","v":""},null,{"$f":"raw_resource_build!B1079","v":"Greater_Imperial_Geothermal"},"In-State",{"$f":"IFERROR(INDEX($E$5:$E$32,MATCH(raw_resource_build!$E1079,Lists!$B$5:$B$32,0)),\"Non-CAISO\")","v":"Geothermal"},null,{"$f":"raw_annual_energy!C1079","v":"LDWP_CCGT"},{"$f":"INDEX(K:K,MATCH(R1079,Lists!J:J,0))","v":"LDWP_CCGT"},"Non-wind"]
[null,null,null,null,null,null,null,null,null,{"$f":"IFERROR(INDEX(raw_resource_build!$B$2:$B$1000,MATCH(0,COUNTIF($J$1:J1079,raw_resource_build!$B$2:$B$1000), 0),0), \"\")","v":""},{"$f":"IF(J1080=\"\", \"\", INDEX(raw_resource_build!E:E, MATCH(J1080, raw_resource_build!B:B, 0)))","v":""},{"$f":"IF(J1080=\"\", \"\", INDEX(raw_resource_build!C:C, MATCH(J1080, raw_resource_build!B:B, 0)))","v":""},null,{"$f":"raw_resource_build!B1080","v":"Inyokern_North_Kramer_Geothermal"},"In-State",{"$f":"IFERROR(INDEX($E$5:$E$32,MATCH(raw_resource_build!$E1080,Lists!$B$5:$B$32,0)),\"Non-CAISO\")","v":"Geothermal"},null,{"$f":"raw_annual_energy!C1080","v":"LDWP_CCGT"},{"$f":"INDEX(K:K,MATCH(R1080,Lists!J:J,0))","v":"LDWP_CCGT"},"Non-wind"]
[null,null,null,null,null,null,null,null,null,{"$f":"IFERROR(INDEX(raw_resource_build!$B$2:$B$1000,MATCH(0,COUNTIF($J$1:J1080,raw_resource_build!$B$2:$B$1000), 0),0), \"\")","v":""},{"$f":"IF(J1081=\"\", \"\", INDEX(raw_resource_build!E:E, MATCH(J1081, raw_resource_build!B:B, 0)))","v":""},{"$f":"IF(J1081=\"\", \"\", INDEX(raw_resource_build!C:C, MATCH(J1081, raw_resource_build!B:B, 0)))","v":""},null,{"$f":"raw_resource_build!B1081","v":"Northern_California_Ex_Geothermal"},"In-State",{"$f":"IFERROR(INDEX($E$5:$E$32,MATCH(raw_resource_build!$E1081,Lists!$B$5:$B$32,0)),\"Non-CAISO\")","v":"Geothermal"},null,{"$f":"raw_annual_energy!C1081","v":"LDWP_CCGT"},{"$f":"INDEX(K:K,MATCH(R1081,Lists!J:J,0))","v":"LDWP_CCGT"},"Non-wind"]
[null,null,null,null,null,null,null,null,null,{"$f":"IFERROR(INDEX(raw_resource_build!$B$2:$B$1000,MATCH(0,COUNTIF($J$1:J1081,raw_resource_build!$B$2:$B$1000), 0),0), \"\")","v":""},{"$f":"IF(J1082=\"\", \"\", INDEX(raw_resource_build!E:E, MATCH(J1082, raw_resource_build!B:B, 0)))","v":""},{"$f":"IF(J1082=\"\", \"\", INDEX(raw_resource_build!C:C, MATCH(J1082, raw_resource_build!B:B, 0)))","v":""},null,{"$f":"raw_resource_build!B1082","v":"Pacific_Northwest_Geothermal"},"Out-Of-State",{"$f":"IFERROR(INDEX($E$5:$E$32,MATCH(raw_resource_build!$E1082,Lists!$B$5:$B$32,0)),\"Non-CAISO\")","v":"Geothermal"},null,{"$f":"raw_annual_energy!C1082","v":"LDWP_CCGT"},{"$f":"INDEX(K:K,MATCH(R1082,Lists!J:J,0))","v":"LDWP_CCGT"},"Non-wind"]
[null,null,null,null,null,null,null,null,null,{"$f":"IFERROR(INDEX(raw_resource_build!$B$2:$B$1000,MATCH(0,COUNTIF($J$1:J1082,raw_resource_build!$B$2:$B$1000), 0),0), \"\")","v":""},{"$f":"IF(J1083=\"\", \"\", INDEX(raw_resource_build!E:E, MATCH(J1083, raw_resource_build!B:B, 0)))","v":""},{"$f":"IF(J1083=\"\", \"\", INDEX(raw_resource_build!C:C, MATCH(J1083, raw_resource_build!B:B, 0)))","v":""},null,{"$f":"raw_resource_build!B1083","v":"Riverside_Palm_Springs_Geothermal"},"In-State",{"$f":"IFERROR(INDEX($E$5:$E$32,MATCH(raw_resource_build!$E1083,Lists!$B$5:$B$32,0)),\"Non-CAISO\")","v":"Geothermal"},null,{"$f":"raw_annual_energy!C1083","v":"LDWP_Coal"},{"$f":"INDEX(K:K,MATCH(R1083,Lists!J:J,0))","v":"LDWP_Coal"},"Non-wind"]
[null,null,null,null,null,null,null,null,null,{"$f":"IFERROR(INDEX(raw_resource_build!$B$2:$B$1000,MATCH(0,COUNTIF($J$1:J1083,raw_resource_build!$B$2:$B$1000), 0),0), \"\")","v":""},{"$f":"IF(J1084=\"\", \"\", INDEX(raw_resource_build!E:E, MATCH(J1084, raw_resource_build!B:B, 0)))","v":""},{"$f":"IF(J1084=\"\", \"\", INDEX(raw_resource_build!C:C, MATCH(J1084, raw_resource_build!B:B, 0)))","v":""},null,{"$f":"raw_resource_build!B1084","v":"Solano_Geothermal"},"In-State",{"$f":"IFERROR(INDEX($E$5:$E$32,MATCH(raw_resource_build!$E1084,Lists!$B$5:$B$32,0)),\"Non-CAISO\")","v":"Geothermal"},null,{"$f":"raw_annual_energy!C1084","v":"LDWP_Coal"},{"$f":"INDEX(K:K,MATCH(R1084,Lists!J:J,0))","v":"LDWP_Coal"},"Non-wind"]
[null,null,null,null,null,null,null,null,null,{"$f":"IFERROR(INDEX(raw_resource_build!$B$2:$B$1000,MATCH(0,COUNTIF($J$1:J1084,raw_resource_build!$B$2:$B$1000), 0),0), \"\")","v":""},{"$f":"IF(J1085=\"\", \"\", INDEX(raw_resource_build!E:E, MATCH(J1085, raw_resource_build!B:B, 0)))","v":""},{"$f":"IF(J1085=\"\", \"\", INDEX(raw_resource_build!C:C, MATCH(J1085, raw_resource_build!B:B, 0)))","v":""},null,{"$f":"raw_resource_build!B1085","v":"Southern_Nevada_Geothermal"},"In-State",{"$f":"IFERROR(INDEX($E$5:$E$32,MATCH(raw_resource_build!$E1085,Lists!$B$5:$B$32,0)),\"Non-CAISO\")","v":"Geothermal"},null,{"$f":"raw_annual_energy!C1085","v":"LDWP_Coal"},{"$f":"INDEX(K:K,MATCH(R1085,Lists!J:J,0))","v":"LDWP_Coal"},"Non-wind"]
[null,null,null,null,null,null,null,null,null,{"$f":"IFERROR(INDEX(raw_resource_build!$B$2:$B$1000,MATCH(0,COUNTIF($J$1:J1085,raw_resource_build!$B$2:$B$1000), 0),0), \"\")","v":""},{"$f":"IF(J1086=\"\", \"\", INDEX(raw_resource_build!E:E, MATCH(J1086, raw_resource_build!B:B, 0)))","v":""},{"$f":"IF(J1086=\"\", \"\", INDEX(raw_resource_build!C:C, MATCH(J1086, raw_resource_build!B:B, 0)))","v":""},null,{"$f":"raw_resource_build!B1086","v":"Customer_PV"},"Non-wind",{"$f":"IFERROR(INDEX($E$5:$E$32,MATCH(raw_resource_build!$E1086,Lists!$B$5:$B$32,0)),\"Non-CAISO\")","v":"Renewables"},null,{"$f":"raw_annual_energy!C1086","v":"LDWP_Coal"},{"$f":"INDEX(K:K,MATCH(R1086,Lists!J:J,0))","v":"LDWP_Coal"},"Non-wind"]
[null,null,null,null,null,null,null,null,null,{"$f":"IFERROR(INDEX(raw_resource_build!$B$2:$B$1000,MATCH(0,COUNTIF($J$1:J1086,raw_resource_build!$B$2:$B$1000), 0),0), \"\")","v":""},{"$f":"IF(J1087=\"\", \"\", INDEX(raw_resource_build!E:E, MATCH(J1087, raw_resource_build!B:B, 0)))","v":""},{"$f":"IF(J1087=\"\", \"\", INDEX(raw_resource_build!C:C, MATCH(J1087, raw_resource_build!B:B, 0)))","v":""},null,{"$f":"raw_resource_build!B1087","v":"BANC_Solar_for_Other"},"Non-wind",{"$f":"IFERROR(INDEX($E$5:$E$32,MATCH(raw_resource_build!$E1087,Lists!$B$5:$B$32,0)),\"Non-CAISO\")","v":"Renewables"},null,{"$f":"raw_annual_energy!C1087","v":"LDWP_Coal"},{"$f":"INDEX(K:K,MATCH(R1087,Lists!J:J,0))","v":"LDWP_Coal"},"Non-wind"]
[null,null,null,null,null,null,null,null,null,{"$f":"IFERROR(INDEX(raw_resource_build!$B$2:$B$1000,MATCH(0,COUNTIF($J$1:J1087,raw_resource_build!$B$2:$B$1000), 0),0), \"\")","v":""},{"$f":"IF(J1088=\"\", \"\", INDEX(raw_resource_build!E:E, MATCH(J1088, raw_resource_build!B:B, 0)))","v":""},{"$f":"IF(J1088=\"\", \"\", INDEX(raw_resource_build!C:C, MATCH(J1088, raw_resource_build!B:B, 0)))","v":""},null,{"$f":"raw_resource_build!B1088","v":"CAISO_Solar_for_Other"},"Non-wind",{"$f":"IFERROR(INDEX($E$5:$E$32,MATCH(raw_resource_build!$E1088,Lists!$B$5:$B$32,0)),\"Non-CAISO\")","v":"Renewables"},null,{"$f":"raw_annual_energy!C1088","v":"LDWP_Coal"},{"$f":"INDEX(K:K,MATCH(R1088,Lists!J:J,0))","v":"LDWP_Coal"},"Non-wind"]
[null,null,null,null,null,null,null,null,null,{"$f":"IFERROR(INDEX(raw_resource_build!$B$2:$B$1000,MATCH(0,COUNTIF($J$1:J1088,raw_resource_build!$B$2:$B$1000), 0),0), \"\")","v":""},{"$f":"IF(J1089=\"\", \"\", INDEX(raw_resource_build!E:E, MATCH(J1089, raw_resource_build!B:B, 0)))","v":""},{"$f":"IF(J1089=\"\", \"\", INDEX(raw_resource_build!C:C, MATCH(J1089, raw_resource_build!B:B, 0)))","v":""},null,{"$f":"raw_resource_build!B1089","v":"IID_Solar_for_Other"},"Non-wind",{"$f":"IFERROR(INDEX($E$5:$E$32,MATCH(raw_resource_build!$E1089,Lists!$B$5:$B$32,0)),\"Non-CAISO\")","v":"Renewables"},null,{"$f":"raw_annual_energy!C1089","v":"LDWP_Coal"},{"$f":"INDEX(K:K,MATCH(R1089,Lists!J:J,0))","v":"LDWP_Coal"},"Non-wind"]
[null,null,null,null,null,null,null,null,null,{"$f":"IFERROR(INDEX(raw_resource_build!$B$2:$B$1000,MATCH(0,COUNTIF($J$1:J1089,raw_resource_build!$B$2:$B$1000), 0),0), \"\")","v":""},{"$f":"IF(J1090=\"\", \"\", INDEX(raw_resource_build!E:E, MATCH(J1090, raw_resource_build!B:B, 0)))","v":""},{"$f":"IF(J1090=\"\", \"\", INDEX(raw_resource_build!C:C, MATCH(J1090, raw_resource_build!B:B, 0)))","v":""},null,{"$f":"raw_resource_build!B1090","v":"LDWP_Solar_for_Other"},"Non-wind",{"$f":"IFERROR(INDEX($E$5:$E$32,MATCH(raw_resource_build!$E1090,Lists!$B$5:$B$32,0)),\"Non-CAISO\")","v":"Renewables"},null,{"$f":"raw_annual_energy!C1090","v":"LDWP_Coal"},{"$f":"INDEX(K:K,MATCH(R1090,Lists!J:J,0))","v":"LDWP_Coal"},"Non-wind"]
[null,null,null,null,null,null,null,null,null,{"$f":"IFERROR(INDEX(raw_resource_build!$B$2:$B$1000,MATCH(0,COUNTIF($J$1:J1090,raw_resource_build!$B$2:$B$1000), 0),0), \"\")","v":""},{"$f":"IF(J1091=\"\", \"\", INDEX(raw_resource_build!E:E, MATCH(J1091, raw_resource_build!B:B, 0)))","v":""},{"$f":"IF(J1091=\"\", \"\", INDEX(raw_resource_build!C:C, MATCH(J1091, raw_resource_build!B:B, 0)))","v":""},null,{"$f":"raw_resource_build!B1091","v":"NW_Solar_for_Other"},{"$f":"IFERROR(INDEX($C$35:$C$99,MATCH($N1091,$B$35:$B$99,0)),\"Non-wind\")","v":"Non-wind"},{"$f":"IFERROR(INDEX($E$5:$E$32,MATCH(raw_resource_build!$E1091,Lists!$B$5:$B$32,0)),\"Non-CAISO\")","v":"Renewables"},null,{"$f":"raw_annual_energy!C1091","v":"LDWP_Geothermal_for_Other"},{"$f":"INDEX(K:K,MATCH(R1091,Lists!J:J,0))","v":"Geothermal"},{"$f":"IFERROR(INDEX($C$35:$C$99,MATCH($R1091,$B$35:$B$99,0)),\"Non-wind\")","v":"Non-wind"}]
[null,null,null,null,null,null,null,null,null,{"$f":"IFERROR(INDEX(raw_resource_build!$B$2:$B$1000,MATCH(0,COUNTIF($J$1:J1091,raw_resource_build!$B$2:$B$1000), 0),0), \"\")","v":""},{"$f":"IF(J1092=\"\", \"\", INDEX(raw_resource_build!E:E, MATCH(J1092, raw_resource_build!B:B, 0)))","v":""},{"$f":"IF(J1092=\"\", \"\", INDEX(raw_resource_build!C:C, MATCH(J1092, raw_resource_build!B:B, 0)))","v":""},null,{"$f":"raw_resource_build!B1092","v":"SW_Solar_for_Other"},"Non-wind",{"$f":"IFERROR(INDEX($E$5:$E$32,MATCH(raw_resource_build!$E1092,Lists!$B$5:$B$32,0)),\"Non-CAISO\")","v":"Renewables"},null,{"$f":"raw_annual_energy!C1092","v":"LDWP_Geothermal_for_Other"},{"$f":"INDEX(K:K,MATCH(R1092,Lists!J:J,0))","v":"Geothermal"},"Non-wind"]
[null,null,null,null,null,null,null,null,null,{"$f":"IFERROR(INDEX(raw_resource_build!$B$2:$B$1000,MATCH(0,COUNTIF($J$1:J1092,raw_resource_build!$B$2:$B$1000), 0),0), \"\")","v":""},{"$f":"IF(J1093=\"\", \"\", INDEX(raw_resource_build!E:E, MATCH(J1093, raw_resource_build!B:B, 0)))","v":""},{"$f":"IF(J1093=\"\", \"\", INDEX(raw_resource_build!C:C, MATCH(J1093, raw_resource_build!B:B, 0)))","v":""},null,{"$f":"raw_resource_build!B1093","v":"CAISO_Solar_for_CAISO"},"Non-wind",{"$f":"IFERROR(INDEX($E$5:$E$32,MATCH(raw_resource_build!$E1093,Lists!$B$5:$B$32,0)),\"Non-CAISO\")","v":"Renewables"},null,{"$f":"raw_annual_energy!C1093","v":"LDWP_Geothermal_for_Other"},{"$f":"INDEX(K:K,MATCH(R1093,Lists!J:J,0))","v":"Geothermal"},"Non-wind"]
[null,null,null,null,null,null,null,null,null,{"$f":"IFERROR(INDEX(raw_resource_build!$B$2:$B$1000,MATCH(0,COUNTIF($J$1:J1093,raw_resource_build!$B$2:$B$1000), 0),0), \"\")","v":""},{"$f":"IF(J1094=\"\", \"\", INDEX(raw_resource_build!E:E, MATCH(J1094, raw_resource_build!B:B, 0)))","v":""},{"$f":"IF(J1094=\"\", \"\", INDEX(raw_resource_build!C:C, MATCH(J1094, raw_resource_build!B:B, 0)))","v":""},null,{"$f":"raw_resource_build!B1094","v":"IID_Solar_for_CAISO"},"Non-wind",{"$f":"IFERROR(INDEX($E$5:$E$32,MATCH(raw_resource_build!$E1094,Lists!$B$5:$B$32,0)),\"Non-CAISO\")","v":"Renewables"},null,{"$f":"raw_annual_energy!C1094","v":"LDWP_Geothermal_for_Other"},{"$f":"INDEX(K:K,MATCH(R1094,Lists!J:J,0))","v":"Geothermal"},"Non-wind"]
[null,null,null,null,null,null,null,null,null,{"$f":"IFERROR(INDEX(raw_resource_build!$B$2:$B$1000,MATCH(0,COUNTIF($J$1:J1094,raw_resource_build!$B$2:$B$1000), 0),0), \"\")","v":""},{"$f":"IF(J1095=\"\", \"\", INDEX(raw_resource_build!E:E, MATCH(J1095, raw_resource_build!B:B, 0)))","v":""},{"$f":"IF(J1095=\"\", \"\", INDEX(raw_resource_build!C:C, MATCH(J1095, raw_resource_build!B:B, 0)))","v":""},null,{"$f":"raw_resource_build!B1095","v":"SW_Solar_for_CAISO"},"Non-wind",{"$f":"IFERROR(INDEX($E$5:$E$32,MATCH(raw_resource_build!$E1095,Lists!$B$5:$B$32,0)),\"Non-CAISO\")","v":"Renewables"},null,{"$f":"raw_annual_energy!C1095","v":"LDWP_Geothermal_for_Other"},{"$f":"INDEX(K:K,MATCH(R1095,Lists!J:J,0))","v":"Geothermal"},"Non-wind"]
[null,null,null,null,null,null,null,null,null,{"$f":"IFERROR(INDEX(raw_resource_build!$B$2:$B$1000,MATCH(0,COUNTIF($J$1:J1095,raw_resource_build!$B$2:$B$1000), 0),0), \"\")","v":""},{"$f":"IF(J1096=\"\", \"\", INDEX(raw_resource_build!E:E, MATCH(J1096, raw_resource_build!B:B, 0)))","v":""},{"$f":"IF(J1096=\"\", \"\", INDEX(raw_resource_build!C:C, MATCH(J1096, raw_resource_build!B:B, 0)))","v":""},null,{"$f":"raw_resource_build!B1096","v":"BANC_Wind_for_Other"},"Non-wind",{"$f":"IFERROR(INDEX($E$5:$E$32,MATCH(raw_resource_build!$E1096,Lists!$B$5:$B$32,0)),\"Non-CAISO\")","v":"Renewables"},null,{"$f":"raw_annual_energy!C1096","v":"LDWP_Geothermal_for_Other"},{"$f":"INDEX(K:K,MATCH(R1096,Lists!J:J,0))","v":"Geothermal"},"Non-wind"]
[null,null,null,null,null,null,null,null,null,{"$f":"IFERROR(INDEX(raw_resource_build!$B$2:$B$1000,MATCH(0,COUNTIF($J$1:J1096,raw_resource_build!$B$2:$B$1000), 0),0), \"\")","v":""},{"$f":"IF(J1097=\"\", \"\", INDEX(raw_resource_build!E:E, MATCH(J1097, raw_resource_build!B:B, 0)))","v":""},{"$f":"IF(J1097=\"\", \"\", INDEX(raw_resource_build!C:C, MATCH(J1097, raw_resource_build!B:B, 0)))","v":""},null,{"$f":"raw_resource_build!B1097","v":"CAISO_Wind_for_Other"},"Non-wind",{"$f":"IFERROR(INDEX($E$5:$E$32,MATCH(raw_resource_build!$E1097,Lists!$B$5:$B$32,0)),\"Non-CAISO\")","v":"Renewables"},null,{"$f":"raw_annual_energy!C1097","v":"LDWP_Geothermal_for_Other"},{"$f":"INDEX(K:K,MATCH(R1097,Lists!J:J,0))","v":"Geothermal"},"Non-wind"]
[null,null,null,null,null,null,null,null,null,{"$f":"IFERROR(INDEX(raw_resource_build!$B$2:$B$1000,MATCH(0,COUNTIF($J$1:J1097,raw_resource_build!$B$2:$B$1000), 0),0), \"\")","v":""},{"$f":"IF(J1098=\"\", \"\", INDEX(raw_resource_build!E:E, MATCH(J1098, raw_resource_build!B:B, 0)))","v":""},{"$f":"IF(J1098=\"\", \"\", INDEX(raw_resource_build!C:C, MATCH(J1098, raw_resource_build!B:B, 0)))","v":""},null,{"$f":"raw_resource_build!B1098","v":"IID_Wind_for_Other"},"Non-wind",{"$f":"IFERROR(INDEX($E$5:$E$32,MATCH(raw_resource_build!$E1098,Lists!$B$5:$B$32,0)),\"Non-CAISO\")","v":"Renewables"},null,{"$f":"raw_annual_energy!C1098","v":"LDWP_Geothermal_for_Other"},{"$f":"INDEX(K:K,MATCH(R1098,Lists!J:J,0))","v":"Geothermal"},"Non-wind"]
[null,null,null,null,null,null,null,null,null,{"$f":"IFERROR(INDEX(raw_resource_build!$B$2:$B$1000,MATCH(0,COUNTIF($J$1:J1098,raw_resource_build!$B$2:$B$1000), 0),0), \"\")","v":""},{"$f":"IF(J1099=\"\", \"\", INDEX(raw_resource_build!E:E, MATCH(J1099, raw_resource_build!B:B, 0)))","v":""},{"$f":"IF(J1099=\"\", \"\", INDEX(raw_resource_build!C:C, MATCH(J1099, raw_resource_build!B:B, 0)))","v":""},null,{"$f":"raw_resource_build!B1099","v":"LDWP_Wind_for_Other"},"Non-wind",{"$f":"IFERROR(INDEX($E$5:$E$32,MATCH(raw_resource_build!$E1099,Lists!$B$5:$B$32,0)),\"Non-CAISO\")","v":"Renewables"},null,{"$f":"raw_annual_energy!C1099","v":"LDWP_Hydro"},{"$f":"INDEX(K:K,MATCH(R1099,Lists!J:J,0))","v":"Hydro"},"Non-wind"]
[null,null,null,null,null,null,null,null,null,{"$f":"IFERROR(INDEX(raw_resource_build!$B$2:$B$1000,MATCH(0,COUNTIF($J$1:J1099,raw_resource_build!$B$2:$B$1000), 0),0), \"\")","v":""},{"$f":"IF(J1100=\"\", \"\", INDEX(raw_resource_build!E:E, MATCH(J1100, raw_resource_build!B:B, 0)))","v":""},{"$f":"IF(J1100=\"\", \"\", INDEX(raw_resource_build!C:C, MATCH(J1100, raw_resource_build!B:B, 0)))","v":""},null,{"$f":"raw_resource_build!B1100","v":"NW_Wind_for_Other"},"Non-wind",{"$f":"IFERROR(INDEX($E$5:$E$32,MATCH(raw_resource_build!$E1100,Lists!$B$5:$B$32,0)),\"Non-CAISO\")","v":"Renewables"},null,{"$f":"raw_annual_energy!C1100","v":"LDWP_Hydro"},{"$f":"INDEX(K:K,MATCH(R1100,Lists!J:J,0))","v":"Hydro"},"Non-wind"]
[null,null,null,null,null,null,null,null,null,{"$f":"IFERROR(INDEX(raw_resource_build!$B$2:$B$1000,MATCH(0,COUNTIF($J$1:J1100,raw_resource_build!$B$2:$B$1000), 0),0), \"\")","v":""},{"$f":"IF(J1101=\"\", \"\", INDEX(raw_resource_build!E:E, MATCH(J1101, raw_resource_build!B:B, 0)))","v":""},{"$f":"IF(J1101=\"\", \"\", INDEX(raw_resource_build!C:C, MATCH(J1101, raw_resource_build!B:B, 0)))","v":""},null,{"$f":"raw_resource_build!B1101","v":"SW_Wind_for_Other"},"Non-wind",{"$f":"IFERROR(INDEX($E$5:$E$32,MATCH(raw_resource_build!$E1101,Lists!$B$5:$B$32,0)),\"Non-CAISO\")","v":"Renewables"},null,{"$f":"raw_annual_energy!C1101","v":"LDWP_Hydro"},{"$f":"INDEX(K:K,MATCH(R1101,Lists!J:J,0))","v":"Hydro"},"Non-wind"]
[null,null,null,null,null,null,null,null,null,{"$f":"IFERROR(INDEX(raw_resource_build!$B$2:$B$1000,MATCH(0,COUNTIF($J$1:J1101,raw_resource_build!$B$2:$B$1000), 0),0), \"\")","v":""},{"$f":"IF(J1102=\"\", \"\", INDEX(raw_resource_build!E:E, MATCH(J1102, raw_resource_build!B:B, 0)))","v":""},{"$f":"IF(J1102=\"\", \"\", INDEX(raw_resource_build!C:C, MATCH(J1102, raw_resource_build!B:B, 0)))","v":""},null,{"$f":"raw_resource_build!B1102","v":"CAISO_Wind_for_CAISO"},"Non-wind",{"$f":"IFERROR(INDEX($E$5:$E$32,MATCH(raw_resource_build!$E1102,Lists!$B$5:$B$32,0)),\"Non-CAISO\")","v":"Renewables"},null,{"$f":"raw_annual_energy!C1102","v":"LDWP_Hydro"},{"$f":"INDEX(K:K,MATCH(R1102,Lists!J:J,0))","v":"Hydro"},"Non-wind"]
[null,null,null,null,null,null,null,null,null,{"$f":"IFERROR(INDEX(raw_resource_build!$B$2:$B$1000,MATCH(0,COUNTIF($J$1:J1102,raw_resource_build!$B$2:$B$1000), 0),0), \"\")","v":""},{"$f":"IF(J1103=\"\", \"\", INDEX(raw_resource_build!E:E, MATCH(J1103, raw_resource_build!B:B, 0)))","v":""},{"$f":"IF(J1103=\"\", \"\", INDEX(raw_resource_build!C:C, MATCH(J1103, raw_resource_build!B:B, 0)))","v":""},null,{"$f":"raw_resource_build!B1103","v":"LDWP_Wind_for_CAISO"},"Non-wind",{"$f":"IFERROR(INDEX($E$5:$E$32,MATCH(raw_resource_build!$E1103,Lists!$B$5:$B$32,0)),\"Non-CAISO\")","v":"Renewables"},null,{"$f":"raw_annual_energy!C1103","v":"LDWP_Hydro"},{"$f":"INDEX(K:K,MATCH(R1103,Lists!J:J,0))","v":"Hydro"},"Non-wind"]
[null,null,null,null,null,null,null,null,null,{"$f":"IFERROR(INDEX(raw_resource_build!$B$2:$B$1000,MATCH(0,COUNTIF($J$1:J1103,raw_resource_build!$B$2:$B$1000), 0),0), \"\")","v":""},{"$f":"IF(J1104=\"\", \"\", INDEX(raw_resource_build!E:E, MATCH(J1104, raw_resource_build!B:B, 0)))","v":""},{"$f":"IF(J1104=\"\", \"\", INDEX(raw_resource_build!C:C, MATCH(J1104, raw_resource_build!B:B, 0)))","v":""},null,{"$f":"raw_resource_build!B1104","v":"NW_Wind_for_CAISO"},"Non-wind",{"$f":"IFERROR(INDEX($E$5:$E$32,MATCH(raw_resource_build!$E1104,Lists!$B$5:$B$32,0)),\"Non-CAISO\")","v":"Renewables"},null,{"$f":"raw_annual_energy!C1104","v":"LDWP_Hydro"},{"$f":"INDEX(K:K,MATCH(R1104,Lists!J:J,0))","v":"Hydro"},"Non-wind"]
[null,null,null,null,null,null,null,null,null,{"$f":"IFERROR(INDEX(raw_resource_build!$B$2:$B$1000,MATCH(0,COUNTIF($J$1:J1104,raw_resource_build!$B$2:$B$1000), 0),0), \"\")","v":""},{"$f":"IF(J1105=\"\", \"\", INDEX(raw_resource_build!E:E, MATCH(J1105, raw_resource_build!B:B, 0)))","v":""},{"$f":"IF(J1105=\"\", \"\", INDEX(raw_resource_build!C:C, MATCH(J1105, raw_resource_build!B:B, 0)))","v":""},null,{"$f":"raw_resource_build!B1105","v":"SW_Wind_for_CAISO"},"Non-wind",{"$f":"IFERROR(INDEX($E$5:$E$32,MATCH(raw_resource_build!$E1105,Lists!$B$5:$B$32,0)),\"Non-CAISO\")","v":"Renewables"},null,{"$f":"raw_annual_energy!C1105","v":"LDWP_Hydro"},{"$f":"INDEX(K:K,MATCH(R1105,Lists!J:J,0))","v":"Hydro"},"Non-wind"]
[null,null,null,null,null,null,null,null,null,{"$f":"IFERROR(INDEX(raw_resource_build!$B$2:$B$1000,MATCH(0,COUNTIF($J$1:J1105,raw_resource_build!$B$2:$B$1000), 0),0), \"\")","v":""},{"$f":"IF(J1106=\"\", \"\", INDEX(raw_resource_build!E:E, MATCH(J1106, raw_resource_build!B:B, 0)))","v":""},{"$f":"IF(J1106=\"\", \"\", INDEX(raw_resource_build!C:C, MATCH(J1106, raw_resource_build!B:B, 0)))","v":""},null,{"$f":"raw_resource_build!B1106","v":"Carrizo_Solar"},"In-State",{"$f":"IFERROR(INDEX($E$5:$E$32,MATCH(raw_resource_build!$E1106,Lists!$B$5:$B$32,0)),\"Non-CAISO\")","v":"Renewables"},null,{"$f":"raw_annual_energy!C1106","v":"LDWP_Hydro"},{"$f":"INDEX(K:K,MATCH(R1106,Lists!J:J,0))","v":"Hydro"},"Non-wind"]
[null,null,null,null,null,null,null,null,null,{"$f":"IFERROR(INDEX(raw_resource_build!$B$2:$B$1000,MATCH(0,COUNTIF($J$1:J1106,raw_resource_build!$B$2:$B$1000), 0),0), \"\")","v":""},{"$f":"IF(J1107=\"\", \"\", INDEX(raw_resource_build!E:E, MATCH(J1107, raw_resource_build!B:B, 0)))","v":""},{"$f":"IF(J1107=\"\", \"\", INDEX(raw_resource_build!C:C, MATCH(J1107, raw_resource_build!B:B, 0)))","v":""},null,{"$f":"raw_resource_build!B1107","v":"Carrizo_Wind"},"In-State",{"$f":"IFERROR(INDEX($E$5:$E$32,MATCH(raw_resource_build!$E1107,Lists!$B$5:$B$32,0)),\"Non-CAISO\")","v":"Renewables"},null,{"$f":"raw_annual_energy!C1107","v":"LDWP_Nuclear"},{"$f":"INDEX(K:K,MATCH(R1107,Lists!J:J,0))","v":"LDWP_Nuclear"},"Non-wind"]
[null,null,null,null,null,null,null,null,null,{"$f":"IFERROR(INDEX(raw_resource_build!$B$2:$B$1000,MATCH(0,COUNTIF($J$1:J1107,raw_resource_build!$B$2:$B$1000), 0),0), \"\")","v":""},{"$f":"IF(J1108=\"\", \"\", INDEX(raw_resource_build!E:E, MATCH(J1108, raw_resource_build!B:B, 0)))","v":""},{"$f":"IF(J1108=\"\", \"\", INDEX(raw_resource_build!C:C, MATCH(J1108, raw_resource_build!B:B, 0)))","v":""},null,{"$f":"raw_resource_build!B1108","v":"Central_Valley_North_Los_Banos_Solar"},"In-State",{"$f":"IFERROR(INDEX($E$5:$E$32,MATCH(raw_resource_build!$E1108,Lists!$B$5:$B$32,0)),\"Non-CAISO\")","v":"Renewables"},null,{"$f":"raw_annual_energy!C1108","v":"LDWP_Nuclear"},{"$f":"INDEX(K:K,MATCH(R1108,Lists!J:J,0))","v":"LDWP_Nuclear"},"Non-wind"]
[null,null,null,null,null,null,null,null,null,{"$f":"IFERROR(INDEX(raw_resource_build!$B$2:$B$1000,MATCH(0,COUNTIF($J$1:J1108,raw_resource_build!$B$2:$B$1000), 0),0), \"\")","v":""},{"$f":"IF(J1109=\"\", \"\", INDEX(raw_resource_build!E:E, MATCH(J1109, raw_resource_build!B:B, 0)))","v":""},{"$f":"IF(J1109=\"\", \"\", INDEX(raw_resource_build!C:C, MATCH(J1109, raw_resource_build!B:B, 0)))","v":""},null,{"$f":"raw_resource_build!B1109","v":"Central_Valley_North_Los_Banos_Wind"},"In-State",{"$f":"IFERROR(INDEX($E$5:$E$32,MATCH(raw_resource_build!$E1109,Lists!$B$5:$B$32,0)),\"Non-CAISO\")","v":"Renewables"},null,{"$f":"raw_annual_energy!C1109","v":"LDWP_Nuclear"},{"$f":"INDEX(K:K,MATCH(R1109,Lists!J:J,0))","v":"LDWP_Nuclear"},"Non-wind"]
[null,null,null,null,null,null,null,null,null,{"$f":"IFERROR(INDEX(raw_resource_build!$B$2:$B$1000,MATCH(0,COUNTIF($J$1:J1109,raw_resource_build!$B$2:$B$1000), 0),0), \"\")","v":""},{"$f":"IF(J1110=\"\", \"\", INDEX(raw_resource_build!E:E, MATCH(J1110, raw_resource_build!B:B, 0)))","v":""},{"$f":"IF(J1110=\"\", \"\", INDEX(raw_resource_build!C:C, MATCH(J1110, raw_resource_build!B:B, 0)))","v":""},null,{"$f":"raw_resource_build!B1110","v":"Distributed_Solar"},"In-State",{"$f":"IFERROR(INDEX($E$5:$E$32,MATCH(raw_resource_build!$E1110,Lists!$B$5:$B$32,0)),\"Non-CAISO\")","v":"Renewables"},null,{"$f":"raw_annual_energy!C1110","v":"LDWP_Nuclear"},{"$f":"INDEX(K:K,MATCH(R1110,Lists!J:J,0))","v":"LDWP_Nuclear"},"Non-wind"]
[null,null,null,null,null,null,null,null,null,{"$f":"IFERROR(INDEX(raw_resource_build!$B$2:$B$1000,MATCH(0,COUNTIF($J$1:J1110,raw_resource_build!$B$2:$B$1000), 0),0), \"\")","v":""},{"$f":"IF(J1111=\"\", \"\", INDEX(raw_resource_build!E:E, MATCH(J1111, raw_resource_build!B:B, 0)))","v":""},{"$f":"IF(J1111=\"\", \"\", INDEX(raw_resource_build!C:C, MATCH(J1111, raw_resource_build!B:B, 0)))","v":""},null,{"$f":"raw_resource_build!B1111","v":"Mountain_Pass_El_Dorado_Solar"},"In-State",{"$f":"IFERROR(INDEX($E$5:$E$32,MATCH(raw_resource_build!$E1111,Lists!$B$5:$B$32,0)),\"Non-CAISO\")","v":"Renewables"},null,{"$f":"raw_annual_energy!C1111","v":"LDWP_Nuclear"},{"$f":"INDEX(K:K,MATCH(R1111,Lists!J:J,0))","v":"LDWP_Nuclear"},"Non-wind"]
[null,null,null,null,null,null,null,null,null,{"$f":"IFERROR(INDEX(raw_resource_build!$B$2:$B$1000,MATCH(0,COUNTIF($J$1:J1111,raw_resource_build!$B$2:$B$1000), 0),0), \"\")","v":""},{"$f":"IF(J1112=\"\", \"\", INDEX(raw_resource_build!E:E, MATCH(J1112, raw_resource_build!B:B, 0)))","v":""},{"$f":"IF(J1112=\"\", \"\", INDEX(raw_resource_build!C:C, MATCH(J1112, raw_resource_build!B:B, 0)))","v":""},null,{"$f":"raw_resource_build!B1112","v":"Greater_Imperial_Solar"},"In-State",{"$f":"IFERROR(INDEX($E$5:$E$32,MATCH(raw_resource_build!$E1112,Lists!$B$5:$B$32,0)),\"Non-CAISO\")","v":"Renewables"},null,{"$f":"raw_annual_energy!C1112","v":"LDWP_Nuclear"},{"$f":"INDEX(K:K,MATCH(R1112,Lists!J:J,0))","v":"LDWP_Nuclear"},"Non-wind"]
[null,null,null,null,null,null,null,null,null,{"$f":"IFERROR(INDEX(raw_resource_build!$B$2:$B$1000,MATCH(0,COUNTIF($J$1:J1112,raw_resource_build!$B$2:$B$1000), 0),0), \"\")","v":""},{"$f":"IF(J1113=\"\", \"\", INDEX(raw_resource_build!E:E, MATCH(J1113, raw_resource_build!B:B, 0)))","v":""},{"$f":"IF(J1113=\"\", \"\", INDEX(raw_resource_build!C:C, MATCH(J1113, raw_resource_build!B:B, 0)))","v":""},null,{"$f":"raw_resource_build!B1113","v":"Greater_Imperial_Wind"},"In-State",{"$f":"IFERROR(INDEX($E$5:$E$32,MATCH(raw_resource_build!$E1113,Lists!$B$5:$B$32,0)),\"Non-CAISO\")","v":"Renewables"},null,{"$f":"raw_annual_energy!C1113","v":"LDWP_Nuclear"},{"$f":"INDEX(K:K,MATCH(R1113,Lists!J:J,0))","v":"LDWP_Nuclear"},"Non-wind"]
[null,null,null,null,null,null,null,null,null,{"$f":"IFERROR(INDEX(raw_resource_build!$B$2:$B$1000,MATCH(0,COUNTIF($J$1:J1113,raw_resource_build!$B$2:$B$1000), 0),0), \"\")","v":""},{"$f":"IF(J1114=\"\", \"\", INDEX(raw_resource_build!E:E, MATCH(J1114, raw_resource_build!B:B, 0)))","v":""},{"$f":"IF(J1114=\"\", \"\", INDEX(raw_resource_build!C:C, MATCH(J1114, raw_resource_build!B:B, 0)))","v":""},null,{"$f":"raw_resource_build!B1114","v":"Greater_Kramer_Wind"},"In-State",{"$f":"IFERROR(INDEX($E$5:$E$32,MATCH(raw_resource_build!$E1114,Lists!$B$5:$B$32,0)),\"Non-CAISO\")","v":"Renewables"},null,{"$f":"raw_annual_energy!C1114","v":"LDWP_Nuclear"},{"$f":"INDEX(K:K,MATCH(R1114,Lists!J:J,0))","v":"LDWP_Nuclear"},"Non-wind"]
[null,null,null,null,null,null,null,null,null,{"$f":"IFERROR(INDEX(raw_resource_build!$B$2:$B$1000,MATCH(0,COUNTIF($J$1:J1114,raw_resource_build!$B$2:$B$1000), 0),0), \"\")","v":""},{"$f":"IF(J1115=\"\", \"\", INDEX(raw_resource_build!E:E, MATCH(J1115, raw_resource_build!B:B, 0)))","v":""},{"$f":"IF(J1115=\"\", \"\", INDEX(raw_resource_build!C:C, MATCH(J1115, raw_resource_build!B:B, 0)))","v":""},null,{"$f":"raw_resource_build!B1115","v":"Humboldt_Wind"},"In-State",{"$f":"IFERROR(INDEX($E$5:$E$32,MATCH(raw_resource_build!$E1115,Lists!$B$5:$B$32,0)),\"Non-CAISO\")","v":"Renewables"},null,{"$f":"raw_annual_energy!C1115","v":"LDWP_Peaker"},{"$f":"INDEX(K:K,MATCH(R1115,Lists!J:J,0))","v":"LDWP_Peaker"},"Non-wind"]
[null,null,null,null,null,null,null,null,null,{"$f":"IFERROR(INDEX(raw_resource_build!$B$2:$B$1000,MATCH(0,COUNTIF($J$1:J1115,raw_resource_build!$B$2:$B$1000), 0),0), \"\")","v":""},{"$f":"IF(J1116=\"\", \"\", INDEX(raw_resource_build!E:E, MATCH(J1116, raw_resource_build!B:B, 0)))","v":""},{"$f":"IF(J1116=\"\", \"\", INDEX(raw_resource_build!C:C, MATCH(J1116, raw_resource_build!B:B, 0)))","v":""},null,{"$f":"raw_resource_build!B1116","v":"Inyokern_North_Kramer_Solar"},"In-State",{"$f":"IFERROR(INDEX($E$5:$E$32,MATCH(raw_resource_build!$E1116,Lists!$B$5:$B$32,0)),\"Non-CAISO\")","v":"Renewables"},null,{"$f":"raw_annual_energy!C1116","v":"LDWP_Peaker"},{"$f":"INDEX(K:K,MATCH(R1116,Lists!J:J,0))","v":"LDWP_Peaker"},"Non-wind"]
[null,null,null,null,null,null,null,null,null,{"$f":"IFERROR(INDEX(raw_resource_build!$B$2:$B$1000,MATCH(0,COUNTIF($J$1:J1116,raw_resource_build!$B$2:$B$1000), 0),0), \"\")","v":""},{"$f":"IF(J1117=\"\", \"\", INDEX(raw_resource_build!E:E, MATCH(J1117, raw_resource_build!B:B, 0)))","v":""},{"$f":"IF(J1117=\"\", \"\", INDEX(raw_resource_build!C:C, MATCH(J1117, raw_resource_build!B:B, 0)))","v":""},null,{"$f":"raw_resource_build!B1117","v":"Kern_Greater_Carrizo_Solar"},"In-State",{"$f":"IFERROR(INDEX($E$5:$E$32,MATCH(raw_resource_build!$E1117,Lists!$B$5:$B$32,0)),\"Non-CAISO\")","v":"Renewables"},null,{"$f":"raw_annual_energy!C1117","v":"LDWP_Peaker"},{"$f":"INDEX(K:K,MATCH(R1117,Lists!J:J,0))","v":"LDWP_Peaker"},"Non-wind"]
[null,null,null,null,null,null,null,null,null,{"$f":"IFERROR(INDEX(raw_resource_build!$B$2:$B$1000,MATCH(0,COUNTIF($J$1:J1117,raw_resource_build!$B$2:$B$1000), 0),0), \"\")","v":""},{"$f":"IF(J1118=\"\", \"\", INDEX(raw_resource_build!E:E, MATCH(J1118, raw_resource_build!B:B, 0)))","v":""},{"$f":"IF(J1118=\"\", \"\", INDEX(raw_resource_build!C:C, MATCH(J1118, raw_resource_build!B:B, 0)))","v":""},null,{"$f":"raw_resource_build!B1118","v":"Kern_Greater_Carrizo_Wind"},"In-State",{"$f":"IFERROR(INDEX($E$5:$E$32,MATCH(raw_resource_build!$E1118,Lists!$B$5:$B$32,0)),\"Non-CAISO\")","v":"Renewables"},null,{"$f":"raw_annual_energy!C1118","v":"LDWP_Peaker"},{"$f":"INDEX(K:K,MATCH(R1118,Lists!J:J,0))","v":"LDWP_Peaker"},"Non-wind"]
[null,null,null,null,null,null,null,null,null,{"$f":"IFERROR(INDEX(raw_resource_build!$B$2:$B$1000,MATCH(0,COUNTIF($J$1:J1118,raw_resource_build!$B$2:$B$1000), 0),0), \"\")","v":""},{"$f":"IF(J1119=\"\", \"\", INDEX(raw_resource_build!E:E, MATCH(J1119, raw_resource_build!B:B, 0)))","v":""},{"$f":"IF(J1119=\"\", \"\", INDEX(raw_resource_build!C:C, MATCH(J1119, raw_resource_build!B:B, 0)))","v":""},null,{"$f":"raw_resource_build!B1119","v":"Kramer_Inyokern_Ex_Solar"},"In-State",{"$f":"IFERROR(INDEX($E$5:$E$32,MATCH(raw_resource_build!$E1119,Lists!$B$5:$B$32,0)),\"Non-CAISO\")","v":"Renewables"},null,{"$f":"raw_annual_energy!C1119","v":"LDWP_Peaker"},{"$f":"INDEX(K:K,MATCH(R1119,Lists!J:J,0))","v":"LDWP_Peaker"},"Non-wind"]
[null,null,null,null,null,null,null,null,null,{"$f":"IFERROR(INDEX(raw_resource_build!$B$2:$B$1000,MATCH(0,COUNTIF($J$1:J1119,raw_resource_build!$B$2:$B$1000), 0),0), \"\")","v":""},{"$f":"IF(J1120=\"\", \"\", INDEX(raw_resource_build!E:E, MATCH(J1120, raw_resource_build!B:B, 0)))","v":""},{"$f":"IF(J1120=\"\", \"\", INDEX(raw_resource_build!C:C, MATCH(J1120, raw_resource_build!B:B, 0)))","v":""},null,{"$f":"raw_resource_build!B1120","v":"Kramer_Inyokern_Ex_Wind"},"In-State",{"$f":"IFERROR(INDEX($E$5:$E$32,MATCH(raw_resource_build!$E1120,Lists!$B$5:$B$32,0)),\"Non-CAISO\")","v":"Renewables"},null,{"$f":"raw_annual_energy!C1120","v":"LDWP_Peaker"},{"$f":"INDEX(K:K,MATCH(R1120,Lists!J:J,0))","v":"LDWP_Peaker"},"Non-wind"]
[null,null,null,null,null,null,null,null,null,{"$f":"IFERROR(INDEX(raw_resource_build!$B$2:$B$1000,MATCH(0,COUNTIF($J$1:J1120,raw_resource_build!$B$2:$B$1000), 0),0), \"\")","v":""},{"$f":"IF(J1121=\"\", \"\", INDEX(raw_resource_build!E:E, MATCH(J1121, raw_resource_build!B:B, 0)))","v":""},{"$f":"IF(J1121=\"\", \"\", INDEX(raw_resource_build!C:C, MATCH(J1121, raw_resource_build!B:B, 0)))","v":""},null,{"$f":"raw_resource_build!B1121","v":"North_Victor_Solar"},"In-State",{"$f":"IFERROR(INDEX($E$5:$E$32,MATCH(raw_resource_build!$E1121,Lists!$B$5:$B$32,0)),\"Non-CAISO\")","v":"Renewables"},null,{"$f":"raw_annual_energy!C1121","v":"LDWP_Peaker"},{"$f":"INDEX(K:K,MATCH(R1121,Lists!J:J,0))","v":"LDWP_Peaker"},"Non-wind"]
[null,null,null,null,null,null,null,null,null,{"$f":"IFERROR(INDEX(raw_resource_build!$B$2:$B$1000,MATCH(0,COUNTIF($J$1:J1121,raw_resource_build!$B$2:$B$1000), 0),0), \"\")","v":""},{"$f":"IF(J1122=\"\", \"\", INDEX(raw_resource_build!E:E, MATCH(J1122, raw_resource_build!B:B, 0)))","v":""},{"$f":"IF(J1122=\"\", \"\", INDEX(raw_resource_build!C:C, MATCH(J1122, raw_resource_build!B:B, 0)))","v":""},null,{"$f":"raw_resource_build!B1122","v":"Northern_California_Ex_Solar"},"In-State",{"$f":"IFERROR(INDEX($E$5:$E$32,MATCH(raw_resource_build!$E1122,Lists!$B$5:$B$32,0)),\"Non-CAISO\")","v":"Renewables"},null,{"$f":"raw_annual_energy!C1122","v":"LDWP_Peaker"},{"$f":"INDEX(K:K,MATCH(R1122,Lists!J:J,0))","v":"LDWP_Peaker"},"Non-wind"]
[null,null,null,null,null,null,null,null,null,{"$f":"IFERROR(INDEX(raw_resource_build!$B$2:$B$1000,MATCH(0,COUNTIF($J$1:J1122,raw_resource_build!$B$2:$B$1000), 0),0), \"\")","v":""},{"$f":"IF(J1123=\"\", \"\", INDEX(raw_resource_build!E:E, MATCH(J1123, raw_resource_build!B:B, 0)))","v":""},{"$f":"IF(J1123=\"\", \"\", INDEX(raw_resource_build!C:C, MATCH(J1123, raw_resource_build!B:B, 0)))","v":""},null,{"$f":"raw_resource_build!B1123","v":"Northern_California_Ex_Wind"},"In-State",{"$f":"IFERROR(INDEX($E$5:$E$32,MATCH(raw_resource_build!$E1123,Lists!$B$5:$B$32,0)),\"Non-CAISO\")","v":"Renewables"},null,{"$f":"raw_annual_energy!C1123","v":"LDWP_ST"},{"$f":"INDEX(K:K,MATCH(R1123,Lists!J:J,0))","v":"LDWP_ST"},"Non-wind"]
[null,null,null,null,null,null,null,null,null,{"$f":"IFERROR(INDEX(raw_resource_build!$B$2:$B$1000,MATCH(0,COUNTIF($J$1:J1123,raw_resource_build!$B$2:$B$1000), 0),0), \"\")","v":""},{"$f":"IF(J1124=\"\", \"\", INDEX(raw_resource_build!E:E, MATCH(J1124, raw_resource_build!B:B, 0)))","v":""},{"$f":"IF(J1124=\"\", \"\", INDEX(raw_resource_build!C:C, MATCH(J1124, raw_resource_build!B:B, 0)))","v":""},null,{"$f":"raw_resource_build!B1124","v":"NW_Ext_Tx_Wind"},"In-State",{"$f":"IFERROR(INDEX($E$5:$E$32,MATCH(raw_resource_build!$E1124,Lists!$B$5:$B$32,0)),\"Non-CAISO\")","v":"Renewables"},null,{"$f":"raw_annual_energy!C1124","v":"LDWP_ST"},{"$f":"INDEX(K:K,MATCH(R1124,Lists!J:J,0))","v":"LDWP_ST"},"Non-wind"]
[null,null,null,null,null,null,null,null,null,{"$f":"IFERROR(INDEX(raw_resource_build!$B$2:$B$1000,MATCH(0,COUNTIF($J$1:J1124,raw_resource_build!$B$2:$B$1000), 0),0), \"\")","v":""},{"$f":"IF(J1125=\"\", \"\", INDEX(raw_resource_build!E:E, MATCH(J1125, raw_resource_build!B:B, 0)))","v":""},{"$f":"IF(J1125=\"\", \"\", INDEX(raw_resource_build!C:C, MATCH(J1125, raw_resource_build!B:B, 0)))","v":""},null,{"$f":"raw_resource_build!B1125","v":"Riverside_Palm_Springs_Solar"},"In-State",{"$f":"IFERROR(INDEX($E$5:$E$32,MATCH(raw_resource_build!$E1125,Lists!$B$5:$B$32,0)),\"Non-CAISO\")","v":"Renewables"},null,{"$f":"raw_annual_energy!C1125","v":"LDWP_ST"},{"$f":"INDEX(K:K,MATCH(R1125,Lists!J:J,0))","v":"LDWP_ST"},"Non-wind"]
[null,null,null,null,null,null,null,null,null,{"$f":"IFERROR(INDEX(raw_resource_build!$B$2:$B$1000,MATCH(0,COUNTIF($J$1:J1125,raw_resource_build!$B$2:$B$1000), 0),0), \"\")","v":""},{"$f":"IF(J1126=\"\", \"\", INDEX(raw_resource_build!E:E, MATCH(J1126, raw_resource_build!B:B, 0)))","v":""},{"$f":"IF(J1126=\"\", \"\", INDEX(raw_resource_build!C:C, MATCH(J1126, raw_resource_build!B:B, 0)))","v":""},null,{"$f":"raw_resource_build!B1126","v":"Sacramento_River_Solar"},"In-State",{"$f":"IFERROR(INDEX($E$5:$E$32,MATCH(raw_resource_build!$E1126,Lists!$B$5:$B$32,0)),\"Non-CAISO\")","v":"Renewables"},null,{"$f":"raw_annual_energy!C1126","v":"LDWP_ST"},{"$f":"INDEX(K:K,MATCH(R1126,Lists!J:J,0))","v":"LDWP_ST"},"Non-wind"]
[null,null,null,null,null,null,null,null,null,{"$f":"IFERROR(INDEX(raw_resource_build!$B$2:$B$1000,MATCH(0,COUNTIF($J$1:J1126,raw_resource_build!$B$2:$B$1000), 0),0), \"\")","v":""},{"$f":"IF(J1127=\"\", \"\", INDEX(raw_resource_build!E:E, MATCH(J1127, raw_resource_build!B:B, 0)))","v":""},{"$f":"IF(J1127=\"\", \"\", INDEX(raw_resource_build!C:C, MATCH(J1127, raw_resource_build!B:B, 0)))","v":""},null,{"$f":"raw_resource_build!B1127","v":"Sacramento_River_Wind"},"In-State",{"$f":"IFERROR(INDEX($E$5:$E$32,MATCH(raw_resource_build!$E1127,Lists!$B$5:$B$32,0)),\"Non-CAISO\")","v":"Renewables"},null,{"$f":"raw_annual_energy!C1127","v":"LDWP_ST"},{"$f":"INDEX(K:K,MATCH(R1127,Lists!J:J,0))","v":"LDWP_ST"},"Non-wind"]
[null,null,null,null,null,null,null,null,null,{"$f":"IFERROR(INDEX(raw_resource_build!$B$2:$B$1000,MATCH(0,COUNTIF($J$1:J1127,raw_resource_build!$B$2:$B$1000), 0),0), \"\")","v":""},{"$f":"IF(J1128=\"\", \"\", INDEX(raw_resource_build!E:E, MATCH(J1128, raw_resource_build!B:B, 0)))","v":""},{"$f":"IF(J1128=\"\", \"\", INDEX(raw_resource_build!C:C, MATCH(J1128, raw_resource_build!B:B, 0)))","v":""},null,{"$f":"raw_resource_build!B1128","v":"SCADSNV_Solar"},"In-State",{"$f":"IFERROR(INDEX($E$5:$E$32,MATCH(raw_resource_build!$E1128,Lists!$B$5:$B$32,0)),\"Non-CAISO\")","v":"Renewables"},null,{"$f":"raw_annual_energy!C1128","v":"LDWP_ST"},{"$f":"INDEX(K:K,MATCH(R1128,Lists!J:J,0))","v":"LDWP_ST"},"Non-wind"]
[null,null,null,null,null,null,null,null,null,{"$f":"IFERROR(INDEX(raw_resource_build!$B$2:$B$1000,MATCH(0,COUNTIF($J$1:J1128,raw_resource_build!$B$2:$B$1000), 0),0), \"\")","v":""},{"$f":"IF(J1129=\"\", \"\", INDEX(raw_resource_build!E:E, MATCH(J1129, raw_resource_build!B:B, 0)))","v":""},{"$f":"IF(J1129=\"\", \"\", INDEX(raw_resource_build!C:C, MATCH(J1129, raw_resource_build!B:B, 0)))","v":""},null,{"$f":"raw_resource_build!B1129","v":"SCADSNV_Wind"},"In-State",{"$f":"IFERROR(INDEX($E$5:$E$32,MATCH(raw_resource_build!$E1129,Lists!$B$5:$B$32,0)),\"Non-CAISO\")","v":"Renewables"},null,{"$f":"raw_annual_energy!C1129","v":"LDWP_ST"},{"$f":"INDEX(K:K,MATCH(R1129,Lists!J:J,0))","v":"LDWP_ST"},"Non-wind"]
[null,null,null,null,null,null,null,null,null,{"$f":"IFERROR(INDEX(raw_resource_build!$B$2:$B$1000,MATCH(0,COUNTIF($J$1:J1129,raw_resource_build!$B$2:$B$1000), 0),0), \"\")","v":""},{"$f":"IF(J1130=\"\", \"\", INDEX(raw_resource_build!E:E, MATCH(J1130, raw_resource_build!B:B, 0)))","v":""},{"$f":"IF(J1130=\"\", \"\", INDEX(raw_resource_build!C:C, MATCH(J1130, raw_resource_build!B:B, 0)))","v":""},null,{"$f":"raw_resource_build!B1130","v":"Solano_Solar"},"In-State",{"$f":"IFERROR(INDEX($E$5:$E$32,MATCH(raw_resource_build!$E1130,Lists!$B$5:$B$32,0)),\"Non-CAISO\")","v":"Renewables"},null,{"$f":"raw_annual_energy!C1130","v":"LDWP_ST"},{"$f":"INDEX(K:K,MATCH(R1130,Lists!J:J,0))","v":"LDWP_ST"},"Non-wind"]
[null,null,null,null,null,null,null,null,null,{"$f":"IFERROR(INDEX(raw_resource_build!$B$2:$B$1000,MATCH(0,COUNTIF($J$1:J1130,raw_resource_build!$B$2:$B$1000), 0),0), \"\")","v":""},{"$f":"IF(J1131=\"\", \"\", INDEX(raw_resource_build!E:E, MATCH(J1131, raw_resource_build!B:B, 0)))","v":""},{"$f":"IF(J1131=\"\", \"\", INDEX(raw_resource_build!C:C, MATCH(J1131, raw_resource_build!B:B, 0)))","v":""},null,{"$f":"raw_resource_build!B1131","v":"Solano_subzone_Solar"},"In-State",{"$f":"IFERROR(INDEX($E$5:$E$32,MATCH(raw_resource_build!$E1131,Lists!$B$5:$B$32,0)),\"Non-CAISO\")","v":"Renewables"},null,{"$f":"raw_annual_energy!C1131","v":"LDWP_Small_Hydro_for_Other"},{"$f":"INDEX(K:K,MATCH(R1131,Lists!J:J,0))","v":"Small_Hydro"},"Non-wind"]
[null,null,null,null,null,null,null,null,null,{"$f":"IFERROR(INDEX(raw_resource_build!$B$2:$B$1000,MATCH(0,COUNTIF($J$1:J1131,raw_resource_build!$B$2:$B$1000), 0),0), \"\")","v":""},{"$f":"IF(J1132=\"\", \"\", INDEX(raw_resource_build!E:E, MATCH(J1132, raw_resource_build!B:B, 0)))","v":""},{"$f":"IF(J1132=\"\", \"\", INDEX(raw_resource_build!C:C, MATCH(J1132, raw_resource_build!B:B, 0)))","v":""},null,{"$f":"raw_resource_build!B1132","v":"Solano_subzone_Wind"},"In-State",{"$f":"IFERROR(INDEX($E$5:$E$32,MATCH(raw_resource_build!$E1132,Lists!$B$5:$B$32,0)),\"Non-CAISO\")","v":"Renewables"},null,{"$f":"raw_annual_energy!C1132","v":"LDWP_Small_Hydro_for_Other"},{"$f":"INDEX(K:K,MATCH(R1132,Lists!J:J,0))","v":"Small_Hydro"},"Non-wind"]
[null,null,null,null,null,null,null,null,null,{"$f":"IFERROR(INDEX(raw_resource_build!$B$2:$B$1000,MATCH(0,COUNTIF($J$1:J1132,raw_resource_build!$B$2:$B$1000), 0),0), \"\")","v":""},{"$f":"IF(J1133=\"\", \"\", INDEX(raw_resource_build!E:E, MATCH(J1133, raw_resource_build!B:B, 0)))","v":""},{"$f":"IF(J1133=\"\", \"\", INDEX(raw_resource_build!C:C, MATCH(J1133, raw_resource_build!B:B, 0)))","v":""},null,{"$f":"raw_resource_build!B1133","v":"Solano_Wind"},"In-State",{"$f":"IFERROR(INDEX($E$5:$E$32,MATCH(raw_resource_build!$E1133,Lists!$B$5:$B$32,0)),\"Non-CAISO\")","v":"Renewables"},null,{"$f":"raw_annual_energy!C1133","v":"LDWP_Small_Hydro_for_Other"},{"$f":"INDEX(K:K,MATCH(R1133,Lists!J:J,0))","v":"Small_Hydro"},"Non-wind"]
[null,null,null,null,null,null,null,null,null,{"$f":"IFERROR(INDEX(raw_resource_build!$B$2:$B$1000,MATCH(0,COUNTIF($J$1:J1133,raw_resource_build!$B$2:$B$1000), 0),0), \"\")","v":""},{"$f":"IF(J1134=\"\", \"\", INDEX(raw_resource_build!E:E, MATCH(J1134, raw_resource_build!B:B, 0)))","v":""},{"$f":"IF(J1134=\"\", \"\", INDEX(raw_resource_build!C:C, MATCH(J1134, raw_resource_build!B:B, 0)))","v":""},null,{"$f":"raw_resource_build!B1134","v":"Southern_California_Desert_Ex_Solar"},"In-State",{"$f":"IFERROR(INDEX($E$5:$E$32,MATCH(raw_resource_build!$E1134,Lists!$B$5:$B$32,0)),\"Non-CAISO\")","v":"Renewables"},null,{"$f":"raw_annual_energy!C1134","v":"LDWP_Small_Hydro_for_Other"},{"$f":"INDEX(K:K,MATCH(R1134,Lists!J:J,0))","v":"Small_Hydro"},"Non-wind"]
[null,null,null,null,null,null,null,null,null,{"$f":"IFERROR(INDEX(raw_resource_build!$B$2:$B$1000,MATCH(0,COUNTIF($J$1:J1134,raw_resource_build!$B$2:$B$1000), 0),0), \"\")","v":""},{"$f":"IF(J1135=\"\", \"\", INDEX(raw_resource_build!E:E, MATCH(J1135, raw_resource_build!B:B, 0)))","v":""},{"$f":"IF(J1135=\"\", \"\", INDEX(raw_resource_build!C:C, MATCH(J1135, raw_resource_build!B:B, 0)))","v":""},null,{"$f":"raw_resource_build!B1135","v":"Southern_California_Desert_Ex_Wind"},"In-State",{"$f":"IFERROR(INDEX($E$5:$E$32,MATCH(raw_resource_build!$E1135,Lists!$B$5:$B$32,0)),\"Non-CAISO\")","v":"Renewables"},null,{"$f":"raw_annual_energy!C1135","v":"LDWP_Small_Hydro_for_Other"},{"$f":"INDEX(K:K,MATCH(R1135,Lists!J:J,0))","v":"Small_Hydro"},"Non-wind"]
[null,null,null,null,null,null,null,null,null,{"$f":"IFERROR(INDEX(raw_resource_build!$B$2:$B$1000,MATCH(0,COUNTIF($J$1:J1135,raw_resource_build!$B$2:$B$1000), 0),0), \"\")","v":""},{"$f":"IF(J1136=\"\", \"\", INDEX(raw_resource_build!E:E, MATCH(J1136, raw_resource_build!B:B, 0)))","v":""},{"$f":"IF(J1136=\"\", \"\", INDEX(raw_resource_build!C:C, MATCH(J1136, raw_resource_build!B:B, 0)))","v":""},null,{"$f":"raw_resource_build!B1136","v":"Southern_Nevada_Solar"},"In-State",{"$f":"IFERROR(INDEX($E$5:$E$32,MATCH(raw_resource_build!$E1136,Lists!$B$5:$B$32,0)),\"Non-CAISO\")","v":"Renewables"},null,{"$f":"raw_annual_energy!C1136","v":"LDWP_Small_Hydro_for_Other"},{"$f":"INDEX(K:K,MATCH(R1136,Lists!J:J,0))","v":"Small_Hydro"},"Non-wind"]
[null,null,null,null,null,null,null,null,null,{"$f":"IFERROR(INDEX(raw_resource_build!$B$2:$B$1000,MATCH(0,COUNTIF($J$1:J1136,raw_resource_build!$B$2:$B$1000), 0),0), \"\")","v":""},{"$f":"IF(J1137=\"\", \"\", INDEX(raw_resource_build!E:E, MATCH(J1137, raw_resource_build!B:B, 0)))","v":""},{"$f":"IF(J1137=\"\", \"\", INDEX(raw_resource_build!C:C, MATCH(J1137, raw_resource_build!B:B, 0)))","v":""},null,{"$f":"raw_resource_build!B1137","v":"Southern_Nevada_Wind"},"In-State",{"$f":"IFERROR(INDEX($E$5:$E$32,MATCH(raw_resource_build!$E1137,Lists!$B$5:$B$32,0)),\"Non-CAISO\")","v":"Renewables"},null,{"$f":"raw_annual_energy!C1137","v":"LDWP_Small_Hydro_for_Other"},{"$f":"INDEX(K:K,MATCH(R1137,Lists!J:J,0))","v":"Small_Hydro"},"Non-wind"]
[null,null,null,null,null,null,null,null,null,{"$f":"IFERROR(INDEX(raw_resource_build!$B$2:$B$1000,MATCH(0,COUNTIF($J$1:J1137,raw_resource_build!$B$2:$B$1000), 0),0), \"\")","v":""},{"$f":"IF(J1138=\"\", \"\", INDEX(raw_resource_build!E:E, MATCH(J1138, raw_resource_build!B:B, 0)))","v":""},{"$f":"IF(J1138=\"\", \"\", INDEX(raw_resource_build!C:C, MATCH(J1138, raw_resource_build!B:B, 0)))","v":""},null,{"$f":"raw_resource_build!B1138","v":"SW_Ext_Tx_Wind"},"In-State",{"$f":"IFERROR(INDEX($E$5:$E$32,MATCH(raw_resource_build!$E1138,Lists!$B$5:$B$32,0)),\"Non-CAISO\")","v":"Renewables"},null,{"$f":"raw_annual_energy!C1138","v":"LDWP_Small_Hydro_for_Other"},{"$f":"INDEX(K:K,MATCH(R1138,Lists!J:J,0))","v":"Small_Hydro"},"Non-wind"]
[null,null,null,null,null,null,null,null,null,{"$f":"IFERROR(INDEX(raw_resource_build!$B$2:$B$1000,MATCH(0,COUNTIF($J$1:J1138,raw_resource_build!$B$2:$B$1000), 0),0), \"\")","v":""},{"$f":"IF(J1139=\"\", \"\", INDEX(raw_resource_build!E:E, MATCH(J1139, raw_resource_build!B:B, 0)))","v":""},{"$f":"IF(J1139=\"\", \"\", INDEX(raw_resource_build!C:C, MATCH(J1139, raw_resource_build!B:B, 0)))","v":""},null,{"$f":"raw_resource_build!B1139","v":"Tehachapi_Ex_Solar"},"In-State",{"$f":"IFERROR(INDEX($E$5:$E$32,MATCH(raw_resource_build!$E1139,Lists!$B$5:$B$32,0)),\"Non-CAISO\")","v":"Renewables"},null,{"$f":"raw_annual_energy!C1139","v":"LDWP_Solar_for_Other"},{"$f":"INDEX(K:K,MATCH(R1139,Lists!J:J,0))","v":"Solar"},"Non-wind"]
[null,null,null,null,null,null,null,null,null,{"$f":"IFERROR(INDEX(raw_resource_build!$B$2:$B$1000,MATCH(0,COUNTIF($J$1:J1139,raw_resource_build!$B$2:$B$1000), 0),0), \"\")","v":""},{"$f":"IF(J1140=\"\", \"\", INDEX(raw_resource_build!E:E, MATCH(J1140, raw_resource_build!B:B, 0)))","v":""},{"$f":"IF(J1140=\"\", \"\", INDEX(raw_resource_build!C:C, MATCH(J1140, raw_resource_build!B:B, 0)))","v":""},null,{"$f":"raw_resource_build!B1140","v":"Tehachapi_Solar"},"In-State",{"$f":"IFERROR(INDEX($E$5:$E$32,MATCH(raw_resource_build!$E1140,Lists!$B$5:$B$32,0)),\"Non-CAISO\")","v":"Renewables"},null,{"$f":"raw_annual_energy!C1140","v":"LDWP_Solar_for_Other"},{"$f":"INDEX(K:K,MATCH(R1140,Lists!J:J,0))","v":"Solar"},"Non-wind"]
[null,null,null,null,null,null,null,null,null,{"$f":"IFERROR(INDEX(raw_resource_build!$B$2:$B$1000,MATCH(0,COUNTIF($J$1:J1140,raw_resource_build!$B$2:$B$1000), 0),0), \"\")","v":""},{"$f":"IF(J1141=\"\", \"\", INDEX(raw_resource_build!E:E, MATCH(J1141, raw_resource_build!B:B, 0)))","v":""},{"$f":"IF(J1141=\"\", \"\", INDEX(raw_resource_build!C:C, MATCH(J1141, raw_resource_build!B:B, 0)))","v":""},null,{"$f":"raw_resource_build!B1141","v":"Tehachapi_Wind"},"In-State",{"$f":"IFERROR(INDEX($E$5:$E$32,MATCH(raw_resource_build!$E1141,Lists!$B$5:$B$32,0)),\"Non-CAISO\")","v":"Renewables"},null,{"$f":"raw_annual_energy!C1141","v":"LDWP_Solar_for_Other"},{"$f":"INDEX(K:K,MATCH(R1141,Lists!J:J,0))","v":"Solar"},"Non-wind"]
[null,null,null,null,null,null,null,null,null,{"$f":"IFERROR(INDEX(raw_resource_build!$B$2:$B$1000,MATCH(0,COUNTIF($J$1:J1141,raw_resource_build!$B$2:$B$1000), 0),0), \"\")","v":""},{"$f":"IF(J1142=\"\", \"\", INDEX(raw_resource_build!E:E, MATCH(J1142, raw_resource_build!B:B, 0)))","v":""},{"$f":"IF(J1142=\"\", \"\", INDEX(raw_resource_build!C:C, MATCH(J1142, raw_resource_build!B:B, 0)))","v":""},null,{"$f":"raw_resource_build!B1142","v":"Westlands_Ex_Solar"},"In-State",{"$f":"IFERROR(INDEX($E$5:$E$32,MATCH(raw_resource_build!$E1142,Lists!$B$5:$B$32,0)),\"Non-CAISO\")","v":"Renewables"},null,{"$f":"raw_annual_energy!C1142","v":"LDWP_Solar_for_Other"},{"$f":"INDEX(K:K,MATCH(R1142,Lists!J:J,0))","v":"Solar"},"Non-wind"]
[null,null,null,null,null,null,null,null,null,{"$f":"IFERROR(INDEX(raw_resource_build!$B$2:$B$1000,MATCH(0,COUNTIF($J$1:J1142,raw_resource_build!$B$2:$B$1000), 0),0), \"\")","v":""},{"$f":"IF(J1143=\"\", \"\", INDEX(raw_resource_build!E:E, MATCH(J1143, raw_resource_build!B:B, 0)))","v":""},{"$f":"IF(J1143=\"\", \"\", INDEX(raw_resource_build!C:C, MATCH(J1143, raw_resource_build!B:B, 0)))","v":""},null,{"$f":"raw_resource_build!B1143","v":"Westlands_Ex_Wind"},"In-State",{"$f":"IFERROR(INDEX($E$5:$E$32,MATCH(raw_resource_build!$E1143,Lists!$B$5:$B$32,0)),\"Non-CAISO\")","v":"Renewables"},null,{"$f":"raw_annual_energy!C1143","v":"LDWP_Solar_for_Other"},{"$f":"INDEX(K:K,MATCH(R1143,Lists!J:J,0))","v":"Solar"},"Non-wind"]
[null,null,null,null,null,null,null,null,null,{"$f":"IFERROR(INDEX(raw_resource_build!$B$2:$B$1000,MATCH(0,COUNTIF($J$1:J1143,raw_resource_build!$B$2:$B$1000), 0),0), \"\")","v":""},{"$f":"IF(J1144=\"\", \"\", INDEX(raw_resource_build!E:E, MATCH(J1144, raw_resource_build!B:B, 0)))","v":""},{"$f":"IF(J1144=\"\", \"\", INDEX(raw_resource_build!C:C, MATCH(J1144, raw_resource_build!B:B, 0)))","v":""},null,{"$f":"raw_resource_build!B1144","v":"Westlands_Solar"},"In-State",{"$f":"IFERROR(INDEX($E$5:$E$32,MATCH(raw_resource_build!$E1144,Lists!$B$5:$B$32,0)),\"Non-CAISO\")","v":"Renewables"},null,{"$f":"raw_annual_energy!C1144","v":"LDWP_Solar_for_Other"},{"$f":"INDEX(K:K,MATCH(R1144,Lists!J:J,0))","v":"Solar"},"Non-wind"]
[null,null,null,null,null,null,null,null,null,{"$f":"IFERROR(INDEX(raw_resource_build!$B$2:$B$1000,MATCH(0,COUNTIF($J$1:J1144,raw_resource_build!$B$2:$B$1000), 0),0), \"\")","v":""},{"$f":"IF(J1145=\"\", \"\", INDEX(raw_resource_build!E:E, MATCH(J1145, raw_resource_build!B:B, 0)))","v":""},{"$f":"IF(J1145=\"\", \"\", INDEX(raw_resource_build!C:C, MATCH(J1145, raw_resource_build!B:B, 0)))","v":""},null,{"$f":"raw_resource_build!B1145","v":"Arizona_Solar"},"In-State",{"$f":"IFERROR(INDEX($E$5:$E$32,MATCH(raw_resource_build!$E1145,Lists!$B$5:$B$32,0)),\"Non-CAISO\")","v":"Renewables"},null,{"$f":"raw_annual_energy!C1145","v":"LDWP_Solar_for_Other"},{"$f":"INDEX(K:K,MATCH(R1145,Lists!J:J,0))","v":"Solar"},"Non-wind"]
[null,null,null,null,null,null,null,null,null,{"$f":"IFERROR(INDEX(raw_resource_build!$B$2:$B$1000,MATCH(0,COUNTIF($J$1:J1145,raw_resource_build!$B$2:$B$1000), 0),0), \"\")","v":""},{"$f":"IF(J1146=\"\", \"\", INDEX(raw_resource_build!E:E, MATCH(J1146, raw_resource_build!B:B, 0)))","v":""},{"$f":"IF(J1146=\"\", \"\", INDEX(raw_resource_build!C:C, MATCH(J1146, raw_resource_build!B:B, 0)))","v":""},null,{"$f":"raw_resource_build!B1146","v":"Arizona_Wind"},"Out-Of-State",{"$f":"IFERROR(INDEX($E$5:$E$32,MATCH(raw_resource_build!$E1146,Lists!$B$5:$B$32,0)),\"Non-CAISO\")","v":"Renewables"},null,{"$f":"raw_annual_energy!C1146","v":"LDWP_Solar_for_Other"},{"$f":"INDEX(K:K,MATCH(R1146,Lists!J:J,0))","v":"Solar"},"Non-wind"]
[null,null,null,null,null,null,null,null,null,{"$f":"IFERROR(INDEX(raw_resource_build!$B$2:$B$1000,MATCH(0,COUNTIF($J$1:J1146,raw_resource_build!$B$2:$B$1000), 0),0), \"\")","v":""},{"$f":"IF(J1147=\"\", \"\", INDEX(raw_resource_build!E:E, MATCH(J1147, raw_resource_build!B:B, 0)))","v":""},{"$f":"IF(J1147=\"\", \"\", INDEX(raw_resource_build!C:C, MATCH(J1147, raw_resource_build!B:B, 0)))","v":""},null,{"$f":"raw_resource_build!B1147","v":"Baja_California_Solar"},"In-State",{"$f":"IFERROR(INDEX($E$5:$E$32,MATCH(raw_resource_build!$E1147,Lists!$B$5:$B$32,0)),\"Non-CAISO\")","v":"Renewables"},null,{"$f":"raw_annual_energy!C1147","v":"LDWP_Wind_for_Other"},{"$f":"INDEX(K:K,MATCH(R1147,Lists!J:J,0))","v":"Wind"},"Non-wind"]
[null,null,null,null,null,null,null,null,null,{"$f":"IFERROR(INDEX(raw_resource_build!$B$2:$B$1000,MATCH(0,COUNTIF($J$1:J1147,raw_resource_build!$B$2:$B$1000), 0),0), \"\")","v":""},{"$f":"IF(J1148=\"\", \"\", INDEX(raw_resource_build!E:E, MATCH(J1148, raw_resource_build!B:B, 0)))","v":""},{"$f":"IF(J1148=\"\", \"\", INDEX(raw_resource_build!C:C, MATCH(J1148, raw_resource_build!B:B, 0)))","v":""},null,{"$f":"raw_resource_build!B1148","v":"Baja_California_Wind"},"In-State",{"$f":"IFERROR(INDEX($E$5:$E$32,MATCH(raw_resource_build!$E1148,Lists!$B$5:$B$32,0)),\"Non-CAISO\")","v":"Renewables"},null,{"$f":"raw_annual_energy!C1148","v":"LDWP_Wind_for_Other"},{"$f":"INDEX(K:K,MATCH(R1148,Lists!J:J,0))","v":"Wind"},"Non-wind"]
[null,null,null,null,null,null,null,null,null,{"$f":"IFERROR(INDEX(raw_resource_build!$B$2:$B$1000,MATCH(0,COUNTIF($J$1:J1148,raw_resource_build!$B$2:$B$1000), 0),0), \"\")","v":""},{"$f":"IF(J1149=\"\", \"\", INDEX(raw_resource_build!E:E, MATCH(J1149, raw_resource_build!B:B, 0)))","v":""},{"$f":"IF(J1149=\"\", \"\", INDEX(raw_resource_build!C:C, MATCH(J1149, raw_resource_build!B:B, 0)))","v":""},null,{"$f":"raw_resource_build!B1149","v":"Idaho_Wind"},"Out-Of-State",{"$f":"IFERROR(INDEX($E$5:$E$32,MATCH(raw_resource_build!$E1149,Lists!$B$5:$B$32,0)),\"Non-CAISO\")","v":"Renewables"},null,{"$f":"raw_annual_energy!C1149","v":"LDWP_Wind_for_Other"},{"$f":"INDEX(K:K,MATCH(R1149,Lists!J:J,0))","v":"Wind"},"Non-wind"]
[null,null,null,null,null,null,null,null,null,{"$f":"IFERROR(INDEX(raw_resource_build!$B$2:$B$1000,MATCH(0,COUNTIF($J$1:J1149,raw_resource_build!$B$2:$B$1000), 0),0), \"\")","v":""},{"$f":"IF(J1150=\"\", \"\", INDEX(raw_resource_build!E:E, MATCH(J1150, raw_resource_build!B:B, 0)))","v":""},{"$f":"IF(J1150=\"\", \"\", INDEX(raw_resource_build!C:C, MATCH(J1150, raw_resource_build!B:B, 0)))","v":""},null,{"$f":"raw_resource_build!B1150","v":"New_Mexico_Solar"},"Out-Of-State",{"$f":"IFERROR(INDEX($E$5:$E$32,MATCH(raw_resource_build!$E1150,Lists!$B$5:$B$32,0)),\"Non-CAISO\")","v":"Renewables"},null,{"$f":"raw_annual_energy!C1150","v":"LDWP_Wind_for_Other"},{"$f":"INDEX(K:K,MATCH(R1150,Lists!J:J,0))","v":"Wind"},"Non-wind"]
[null,null,null,null,null,null,null,null,null,{"$f":"IFERROR(INDEX(raw_resource_build!$B$2:$B$1000,MATCH(0,COUNTIF($J$1:J1150,raw_resource_build!$B$2:$B$1000), 0),0), \"\")","v":""},{"$f":"IF(J1151=\"\", \"\", INDEX(raw_resource_build!E:E, MATCH(J1151, raw_resource_build!B:B, 0)))","v":""},{"$f":"IF(J1151=\"\", \"\", INDEX(raw_resource_build!C:C, MATCH(J1151, raw_resource_build!B:B, 0)))","v":""},null,{"$f":"raw_resource_build!B1151","v":"New_Mexico_Wind"},"Out-Of-State",{"$f":"IFERROR(INDEX($E$5:$E$32,MATCH(raw_resource_build!$E1151,Lists!$B$5:$B$32,0)),\"Non-CAISO\")","v":"Renewables"},null,{"$f":"raw_annual_energy!C1151","v":"LDWP_Wind_for_Other"},{"$f":"INDEX(K:K,MATCH(R1151,Lists!J:J,0))","v":"Wind"},"Non-wind"]
[null,null,null,null,null,null,null,null,null,{"$f":"IFERROR(INDEX(raw_resource_build!$B$2:$B$1000,MATCH(0,COUNTIF($J$1:J1151,raw_resource_build!$B$2:$B$1000), 0),0), \"\")","v":""},{"$f":"IF(J1152=\"\", \"\", INDEX(raw_resource_build!E:E, MATCH(J1152, raw_resource_build!B:B, 0)))","v":""},{"$f":"IF(J1152=\"\", \"\", INDEX(raw_resource_build!C:C, MATCH(J1152, raw_resource_build!B:B, 0)))","v":""},null,{"$f":"raw_resource_build!B1152","v":"Utah_Solar"},"Out-Of-State",{"$f":"IFERROR(INDEX($E$5:$E$32,MATCH(raw_resource_build!$E1152,Lists!$B$5:$B$32,0)),\"Non-CAISO\")","v":"Renewables"},null,{"$f":"raw_annual_energy!C1152","v":"LDWP_Wind_for_Other"},{"$f":"INDEX(K:K,MATCH(R1152,Lists!J:J,0))","v":"Wind"},"Non-wind"]
[null,null,null,null,null,null,null,null,null,{"$f":"IFERROR(INDEX(raw_resource_build!$B$2:$B$1000,MATCH(0,COUNTIF($J$1:J1152,raw_resource_build!$B$2:$B$1000), 0),0), \"\")","v":""},{"$f":"IF(J1153=\"\", \"\", INDEX(raw_resource_build!E:E, MATCH(J1153, raw_resource_build!B:B, 0)))","v":""},{"$f":"IF(J1153=\"\", \"\", INDEX(raw_resource_build!C:C, MATCH(J1153, raw_resource_build!B:B, 0)))","v":""},null,{"$f":"raw_resource_build!B1153","v":"Utah_Wind"},"Out-Of-State",{"$f":"IFERROR(INDEX($E$5:$E$32,MATCH(raw_resource_build!$E1153,Lists!$B$5:$B$32,0)),\"Non-CAISO\")","v":"Renewables"},null,{"$f":"raw_annual_energy!C1153","v":"LDWP_Wind_for_Other"},{"$f":"INDEX(K:K,MATCH(R1153,Lists!J:J,0))","v":"Wind"},"Non-wind"]
[null,null,null,null,null,null,null,null,null,{"$f":"IFERROR(INDEX(raw_resource_build!$B$2:$B$1000,MATCH(0,COUNTIF($J$1:J1153,raw_resource_build!$B$2:$B$1000), 0),0), \"\")","v":""},{"$f":"IF(J1154=\"\", \"\", INDEX(raw_resource_build!E:E, MATCH(J1154, raw_resource_build!B:B, 0)))","v":""},{"$f":"IF(J1154=\"\", \"\", INDEX(raw_resource_build!C:C, MATCH(J1154, raw_resource_build!B:B, 0)))","v":""},null,{"$f":"raw_resource_build!B1154","v":"Wyoming_Wind"},"Out-Of-State",{"$f":"IFERROR(INDEX($E$5:$E$32,MATCH(raw_resource_build!$E1154,Lists!$B$5:$B$32,0)),\"Non-CAISO\")","v":"Renewables"},null,{"$f":"raw_annual_energy!C1154","v":"LDWP_Wind_for_Other"},{"$f":"INDEX(K:K,MATCH(R1154,Lists!J:J,0))","v":"Wind"},"Non-wind"]
[null,null,null,null,null,null,null,null,null,{"$f":"IFERROR(INDEX(raw_resource_build!$B$2:$B$1000,MATCH(0,COUNTIF($J$1:J1154,raw_resource_build!$B$2:$B$1000), 0),0), \"\")","v":""},{"$f":"IF(J1155=\"\", \"\", INDEX(raw_resource_build!E:E, MATCH(J1155, raw_resource_build!B:B, 0)))","v":""},{"$f":"IF(J1155=\"\", \"\", INDEX(raw_resource_build!C:C, MATCH(J1155, raw_resource_build!B:B, 0)))","v":""},null,{"$f":"raw_resource_build!B1155","v":"Pacific_Northwest_Wind"},{"$f":"IFERROR(INDEX($C$35:$C$99,MATCH($N1155,$B$35:$B$99,0)),\"Non-wind\")","v":"Out-Of-State"},{"$f":"IFERROR(INDEX($E$5:$E$32,MATCH(raw_resource_build!$E1155,Lists!$B$5:$B$32,0)),\"Non-CAISO\")","v":"Renewables"},null,{"$f":"raw_annual_energy!C1155","v":"NW_Biomass_for_CAISO"},{"$f":"INDEX(K:K,MATCH(R1155,Lists!J:J,0))","v":"Biomass"},{"$f":"IFERROR(INDEX($C$35:$C$99,MATCH($R1155,$B$35:$B$99,0)),\"Non-wind\")","v":"Non-wind"}]
[null,null,null,null,null,null,null,null,null,{"$f":"IFERROR(INDEX(raw_resource_build!$B$2:$B$1000,MATCH(0,COUNTIF($J$1:J1155,raw_resource_build!$B$2:$B$1000), 0),0), \"\")","v":""},{"$f":"IF(J1156=\"\", \"\", INDEX(raw_resource_build!E:E, MATCH(J1156, raw_resource_build!B:B, 0)))","v":""},{"$f":"IF(J1156=\"\", \"\", INDEX(raw_resource_build!C:C, MATCH(J1156, raw_resource_build!B:B, 0)))","v":""},null,{"$f":"raw_resource_build!B1156","v":"Diablo_Canyon_Offshore_Wind"},"In-State",{"$f":"IFERROR(INDEX($E$5:$E$32,MATCH(raw_resource_build!$E1156,Lists!$B$5:$B$32,0)),\"Non-CAISO\")","v":"Renewables"},null,{"$f":"raw_annual_energy!C1156","v":"NW_Biomass_for_CAISO"},{"$f":"INDEX(K:K,MATCH(R1156,Lists!J:J,0))","v":"Biomass"},"Non-wind"]
[null,null,null,null,null,null,null,null,null,{"$f":"IFERROR(INDEX(raw_resource_build!$B$2:$B$1000,MATCH(0,COUNTIF($J$1:J1156,raw_resource_build!$B$2:$B$1000), 0),0), \"\")","v":""},{"$f":"IF(J1157=\"\", \"\", INDEX(raw_resource_build!E:E, MATCH(J1157, raw_resource_build!B:B, 0)))","v":""},{"$f":"IF(J1157=\"\", \"\", INDEX(raw_resource_build!C:C, MATCH(J1157, raw_resource_build!B:B, 0)))","v":""},null,{"$f":"raw_resource_build!B1157","v":"Humboldt_Bay_Offshore_Wind"},"In-State",{"$f":"IFERROR(INDEX($E$5:$E$32,MATCH(raw_resource_build!$E1157,Lists!$B$5:$B$32,0)),\"Non-CAISO\")","v":"Renewables"},null,{"$f":"raw_annual_energy!C1157","v":"NW_Biomass_for_CAISO"},{"$f":"INDEX(K:K,MATCH(R1157,Lists!J:J,0))","v":"Biomass"},"Non-wind"]
[null,null,null,null,null,null,null,null,null,{"$f":"IFERROR(INDEX(raw_resource_build!$B$2:$B$1000,MATCH(0,COUNTIF($J$1:J1157,raw_resource_build!$B$2:$B$1000), 0),0), \"\")","v":""},{"$f":"IF(J1158=\"\", \"\", INDEX(raw_resource_build!E:E, MATCH(J1158, raw_resource_build!B:B, 0)))","v":""},{"$f":"IF(J1158=\"\", \"\", INDEX(raw_resource_build!C:C, MATCH(J1158, raw_resource_build!B:B, 0)))","v":""},null,{"$f":"raw_resource_build!B1158","v":"Morro_Bay_Offshore_Wind"},"In-State",{"$f":"IFERROR(INDEX($E$5:$E$32,MATCH(raw_resource_build!$E1158,Lists!$B$5:$B$32,0)),\"Non-CAISO\")","v":"Renewables"},null,{"$f":"raw_annual_energy!C1158","v":"NW_Biomass_for_CAISO"},{"$f":"INDEX(K:K,MATCH(R1158,Lists!J:J,0))","v":"Biomass"},"Non-wind"]
[null,null,null,null,null,null,null,null,null,{"$f":"IFERROR(INDEX(raw_resource_build!$B$2:$B$1000,MATCH(0,COUNTIF($J$1:J1158,raw_resource_build!$B$2:$B$1000), 0),0), \"\")","v":""},{"$f":"IF(J1159=\"\", \"\", INDEX(raw_resource_build!E:E, MATCH(J1159, raw_resource_build!B:B, 0)))","v":""},{"$f":"IF(J1159=\"\", \"\", INDEX(raw_resource_build!C:C, MATCH(J1159, raw_resource_build!B:B, 0)))","v":""},null,{"$f":"raw_resource_build!B1159","v":"Diablo_Canyon_Offshore_Wind_Ext_Tx"},"In-State",{"$f":"IFERROR(INDEX($E$5:$E$32,MATCH(raw_resource_build!$E1159,Lists!$B$5:$B$32,0)),\"Non-CAISO\")","v":"Renewables"},null,{"$f":"raw_annual_energy!C1159","v":"NW_Biomass_for_CAISO"},{"$f":"INDEX(K:K,MATCH(R1159,Lists!J:J,0))","v":"Biomass"},"Non-wind"]
[null,null,null,null,null,null,null,null,null,{"$f":"IFERROR(INDEX(raw_resource_build!$B$2:$B$1000,MATCH(0,COUNTIF($J$1:J1159,raw_resource_build!$B$2:$B$1000), 0),0), \"\")","v":""},{"$f":"IF(J1160=\"\", \"\", INDEX(raw_resource_build!E:E, MATCH(J1160, raw_resource_build!B:B, 0)))","v":""},{"$f":"IF(J1160=\"\", \"\", INDEX(raw_resource_build!C:C, MATCH(J1160, raw_resource_build!B:B, 0)))","v":""},null,{"$f":"raw_resource_build!B1160","v":"Cape_Mendocino_Offshore_Wind"},"In-State",{"$f":"IFERROR(INDEX($E$5:$E$32,MATCH(raw_resource_build!$E1160,Lists!$B$5:$B$32,0)),\"Non-CAISO\")","v":"Renewables"},null,{"$f":"raw_annual_energy!C1160","v":"NW_Biomass_for_CAISO"},{"$f":"INDEX(K:K,MATCH(R1160,Lists!J:J,0))","v":"Biomass"},"Non-wind"]
[null,null,null,null,null,null,null,null,null,{"$f":"IFERROR(INDEX(raw_resource_build!$B$2:$B$1000,MATCH(0,COUNTIF($J$1:J1160,raw_resource_build!$B$2:$B$1000), 0),0), \"\")","v":""},{"$f":"IF(J1161=\"\", \"\", INDEX(raw_resource_build!E:E, MATCH(J1161, raw_resource_build!B:B, 0)))","v":""},{"$f":"IF(J1161=\"\", \"\", INDEX(raw_resource_build!C:C, MATCH(J1161, raw_resource_build!B:B, 0)))","v":""},null,{"$f":"raw_resource_build!B1161","v":"Del_Norte_Offshore_Wind"},"In-State",{"$f":"IFERROR(INDEX($E$5:$E$32,MATCH(raw_resource_build!$E1161,Lists!$B$5:$B$32,0)),\"Non-CAISO\")","v":"Renewables"},null,{"$f":"raw_annual_energy!C1161","v":"NW_Biomass_for_CAISO"},{"$f":"INDEX(K:K,MATCH(R1161,Lists!J:J,0))","v":"Biomass"},"Non-wind"]
[null,null,null,null,null,null,null,null,null,{"$f":"IFERROR(INDEX(raw_resource_build!$B$2:$B$1000,MATCH(0,COUNTIF($J$1:J1161,raw_resource_build!$B$2:$B$1000), 0),0), \"\")","v":""},{"$f":"IF(J1162=\"\", \"\", INDEX(raw_resource_build!E:E, MATCH(J1162, raw_resource_build!B:B, 0)))","v":""},{"$f":"IF(J1162=\"\", \"\", INDEX(raw_resource_build!C:C, MATCH(J1162, raw_resource_build!B:B, 0)))","v":""},null,{"$f":"raw_resource_build!B1162","v":"CAISO_Existing_Pumped_Storage"},"Non-wind",{"$f":"IFERROR(INDEX($E$5:$E$32,MATCH(raw_resource_build!$E1162,Lists!$B$5:$B$32,0)),\"Non-CAISO\")","v":"Pumped Storage"},null,{"$f":"raw_annual_energy!C1162","v":"NW_Biomass_for_CAISO"},{"$f":"INDEX(K:K,MATCH(R1162,Lists!J:J,0))","v":"Biomass"},"Non-wind"]
[null,null,null,null,null,null,null,null,null,{"$f":"IFERROR(INDEX(raw_resource_build!$B$2:$B$1000,MATCH(0,COUNTIF($J$1:J1162,raw_resource_build!$B$2:$B$1000), 0),0), \"\")","v":""},{"$f":"IF(J1163=\"\", \"\", INDEX(raw_resource_build!E:E, MATCH(J1163, raw_resource_build!B:B, 0)))","v":""},{"$f":"IF(J1163=\"\", \"\", INDEX(raw_resource_build!C:C, MATCH(J1163, raw_resource_build!B:B, 0)))","v":""},null,{"$f":"raw_resource_build!B1163","v":"CAISO_New_Pumped_Storage"},"Non-wind",{"$f":"IFERROR(INDEX($E$5:$E$32,MATCH(raw_resource_build!$E1163,Lists!$B$5:$B$32,0)),\"Non-CAISO\")","v":"Pumped Storage"},null,{"$f":"raw_annual_energy!C1163","v":"NW_Geothermal_for_CAISO"},{"$f":"INDEX(K:K,MATCH(R1163,Lists!J:J,0))","v":"Geothermal"},"Non-wind"]
[null,null,null,null,null,null,null,null,null,{"$f":"IFERROR(INDEX(raw_resource_build!$B$2:$B$1000,MATCH(0,COUNTIF($J$1:J1163,raw_resource_build!$B$2:$B$1000), 0),0), \"\")","v":""},{"$f":"IF(J1164=\"\", \"\", INDEX(raw_resource_build!E:E, MATCH(J1164, raw_resource_build!B:B, 0)))","v":""},{"$f":"IF(J1164=\"\", \"\", INDEX(raw_resource_build!C:C, MATCH(J1164, raw_resource_build!B:B, 0)))","v":""},null,{"$f":"raw_resource_build!B1164","v":"CAISO_New_Flow_Battery"},"Non-wind",{"$f":"IFERROR(INDEX($E$5:$E$32,MATCH(raw_resource_build!$E1164,Lists!$B$5:$B$32,0)),\"Non-CAISO\")","v":"Battery (incl. BTM)"},null,{"$f":"raw_annual_energy!C1164","v":"NW_Geothermal_for_CAISO"},{"$f":"INDEX(K:K,MATCH(R1164,Lists!J:J,0))","v":"Geothermal"},"Non-wind"]
[null,null,null,null,null,null,null,null,null,{"$f":"IFERROR(INDEX(raw_resource_build!$B$2:$B$1000,MATCH(0,COUNTIF($J$1:J1164,raw_resource_build!$B$2:$B$1000), 0),0), \"\")","v":""},{"$f":"IF(J1165=\"\", \"\", INDEX(raw_resource_build!E:E, MATCH(J1165, raw_resource_build!B:B, 0)))","v":""},{"$f":"IF(J1165=\"\", \"\", INDEX(raw_resource_build!C:C, MATCH(J1165, raw_resource_build!B:B, 0)))","v":""},null,{"$f":"raw_resource_build!B1165","v":"CAISO_New_Flow_Battery_2"},"Non-wind",{"$f":"IFERROR(INDEX($E$5:$E$32,MATCH(raw_resource_build!$E1165,Lists!$B$5:$B$32,0)),\"Non-CAISO\")","v":"Battery (incl. BTM)"},null,{"$f":"raw_annual_energy!C1165","v":"NW_Geothermal_for_CAISO"},{"$f":"INDEX(K:K,MATCH(R1165,Lists!J:J,0))","v":"Geothermal"},"Non-wind"]
[null,null,null,null,null,null,null,null,null,{"$f":"IFERROR(INDEX(raw_resource_build!$B$2:$B$1000,MATCH(0,COUNTIF($J$1:J1165,raw_resource_build!$B$2:$B$1000), 0),0), \"\")","v":""},{"$f":"IF(J1166=\"\", \"\", INDEX(raw_resource_build!E:E, MATCH(J1166, raw_resource_build!B:B, 0)))","v":""},{"$f":"IF(J1166=\"\", \"\", INDEX(raw_resource_build!C:C, MATCH(J1166, raw_resource_build!B:B, 0)))","v":""},null,{"$f":"raw_resource_build!B1166","v":"CAISO_New_Flow_Battery_3"},"Non-wind",{"$f":"IFERROR(INDEX($E$5:$E$32,MATCH(raw_resource_build!$E1166,Lists!$B$5:$B$32,0)),\"Non-CAISO\")","v":"Battery (incl. BTM)"},null,{"$f":"raw_annual_energy!C1166","v":"NW_Geothermal_for_CAISO"},{"$f":"INDEX(K:K,MATCH(R1166,Lists!J:J,0))","v":"Geothermal"},"Non-wind"]
[null,null,null,null,null,null,null,null,null,{"$f":"IFERROR(INDEX(raw_resource_build!$B$2:$B$1000,MATCH(0,COUNTIF($J$1:J1166,raw_resource_build!$B$2:$B$1000), 0),0), \"\")","v":""},{"$f":"IF(J1167=\"\", \"\", INDEX(raw_resource_build!E:E, MATCH(J1167, raw_resource_build!B:B, 0)))","v":""},{"$f":"IF(J1167=\"\", \"\", INDEX(raw_resource_build!C:C, MATCH(J1167, raw_resource_build!B:B, 0)))","v":""},null,{"$f":"raw_resource_build!B1167","v":"CAISO_New_Flow_Battery_4"},"Non-wind",{"$f":"IFERROR(INDEX($E$5:$E$32,MATCH(raw_resource_build!$E1167,Lists!$B$5:$B$32,0)),\"Non-CAISO\")","v":"Battery (incl. BTM)"},null,{"$f":"raw_annual_energy!C1167","v":"NW_Geothermal_for_CAISO"},{"$f":"INDEX(K:K,MATCH(R1167,Lists!J:J,0))","v":"Geothermal"},"Non-wind"]
[null,null,null,null,null,null,null,null,null,{"$f":"IFERROR(INDEX(raw_resource_build!$B$2:$B$1000,MATCH(0,COUNTIF($J$1:J1167,raw_resource_build!$B$2:$B$1000), 0),0), \"\")","v":""},{"$f":"IF(J1168=\"\", \"\", INDEX(raw_resource_build!E:E, MATCH(J1168, raw_resource_build!B:B, 0)))","v":""},{"$f":"IF(J1168=\"\", \"\", INDEX(raw_resource_build!C:C, MATCH(J1168, raw_resource_build!B:B, 0)))","v":""},null,{"$f":"raw_resource_build!B1168","v":"CAISO_New_Flow_Battery_5"},"Non-wind",{"$f":"IFERROR(INDEX($E$5:$E$32,MATCH(raw_resource_build!$E1168,Lists!$B$5:$B$32,0)),\"Non-CAISO\")","v":"Battery (incl. BTM)"},null,{"$f":"raw_annual_energy!C1168","v":"NW_Geothermal_for_CAISO"},{"$f":"INDEX(K:K,MATCH(R1168,Lists!J:J,0))","v":"Geothermal"},"Non-wind"]
[null,null,null,null,null,null,null,null,null,{"$f":"IFERROR(INDEX(raw_resource_build!$B$2:$B$1000,MATCH(0,COUNTIF($J$1:J1168,raw_resource_build!$B$2:$B$1000), 0),0), \"\")","v":""},{"$f":"IF(J1169=\"\", \"\", INDEX(raw_resource_build!E:E, MATCH(J1169, raw_resource_build!B:B, 0)))","v":""},{"$f":"IF(J1169=\"\", \"\", INDEX(raw_resource_build!C:C, MATCH(J1169, raw_resource_build!B:B, 0)))","v":""},null,{"$f":"raw_resource_build!B1169","v":"CAISO_New_Li_Battery"},"Non-wind",{"$f":"IFERROR(INDEX($E$5:$E$32,MATCH(raw_resource_build!$E1169,Lists!$B$5:$B$32,0)),\"Non-CAISO\")","v":"Battery (incl. BTM)"},null,{"$f":"raw_annual_energy!C1169","v":"NW_Geothermal_for_CAISO"},{"$f":"INDEX(K:K,MATCH(R1169,Lists!J:J,0))","v":"Geothermal"},"Non-wind"]
[null,null,null,null,null,null,null,null,null,{"$f":"IFERROR(INDEX(raw_resource_build!$B$2:$B$1000,MATCH(0,COUNTIF($J$1:J1169,raw_resource_build!$B$2:$B$1000), 0),0), \"\")","v":""},{"$f":"IF(J1170=\"\", \"\", INDEX(raw_resource_build!E:E, MATCH(J1170, raw_resource_build!B:B, 0)))","v":""},{"$f":"IF(J1170=\"\", \"\", INDEX(raw_resource_build!C:C, MATCH(J1170, raw_resource_build!B:B, 0)))","v":""},null,{"$f":"raw_resource_build!B1170","v":"CAISO_BTM_Li_Battery"},"Non-wind",{"$f":"IFERROR(INDEX($E$5:$E$32,MATCH(raw_resource_build!$E1170,Lists!$B$5:$B$32,0)),\"Non-CAISO\")","v":"Battery (incl. BTM)"},null,{"$f":"raw_annual_energy!C1170","v":"NW_Geothermal_for_CAISO"},{"$f":"INDEX(K:K,MATCH(R1170,Lists!J:J,0))","v":"Geothermal"},"Non-wind"]
[null,null,null,null,null,null,null,null,null,{"$f":"IFERROR(INDEX(raw_resource_build!$B$2:$B$1000,MATCH(0,COUNTIF($J$1:J1170,raw_resource_build!$B$2:$B$1000), 0),0), \"\")","v":""},{"$f":"IF(J1171=\"\", \"\", INDEX(raw_resource_build!E:E, MATCH(J1171, raw_resource_build!B:B, 0)))","v":""},{"$f":"IF(J1171=\"\", \"\", INDEX(raw_resource_build!C:C, MATCH(J1171, raw_resource_build!B:B, 0)))","v":""},null,{"$f":"raw_resource_build!B1171","v":"CAISO_New_Li_Battery_2"},"Non-wind",{"$f":"IFERROR(INDEX($E$5:$E$32,MATCH(raw_resource_build!$E1171,Lists!$B$5:$B$32,0)),\"Non-CAISO\")","v":"Battery (incl. BTM)"},null,{"$f":"raw_annual_energy!C1171","v":"NW_Small_Hydro_for_CAISO"},{"$f":"INDEX(K:K,MATCH(R1171,Lists!J:J,0))","v":"Small_Hydro"},"Non-wind"]
[null,null,null,null,null,null,null,null,null,{"$f":"IFERROR(INDEX(raw_resource_build!$B$2:$B$1000,MATCH(0,COUNTIF($J$1:J1171,raw_resource_build!$B$2:$B$1000), 0),0), \"\")","v":""},{"$f":"IF(J1172=\"\", \"\", INDEX(raw_resource_build!E:E, MATCH(J1172, raw_resource_build!B:B, 0)))","v":""},{"$f":"IF(J1172=\"\", \"\", INDEX(raw_resource_build!C:C, MATCH(J1172, raw_resource_build!B:B, 0)))","v":""},null,{"$f":"raw_resource_build!B1172","v":"CAISO_New_Li_Battery_3"},"Non-wind",{"$f":"IFERROR(INDEX($E$5:$E$32,MATCH(raw_resource_build!$E1172,Lists!$B$5:$B$32,0)),\"Non-CAISO\")","v":"Battery (incl. BTM)"},null,{"$f":"raw_annual_energy!C1172","v":"NW_Small_Hydro_for_CAISO"},{"$f":"INDEX(K:K,MATCH(R1172,Lists!J:J,0))","v":"Small_Hydro"},"Non-wind"]
[null,null,null,null,null,null,null,null,null,{"$f":"IFERROR(INDEX(raw_resource_build!$B$2:$B$1000,MATCH(0,COUNTIF($J$1:J1172,raw_resource_build!$B$2:$B$1000), 0),0), \"\")","v":""},{"$f":"IF(J1173=\"\", \"\", INDEX(raw_resource_build!E:E, MATCH(J1173, raw_resource_build!B:B, 0)))","v":""},{"$f":"IF(J1173=\"\", \"\", INDEX(raw_resource_build!C:C, MATCH(J1173, raw_resource_build!B:B, 0)))","v":""},null,{"$f":"raw_resource_build!B1173","v":"CAISO_New_Li_Battery_4"},"Non-wind",{"$f":"IFERROR(INDEX($E$5:$E$32,MATCH(raw_resource_build!$E1173,Lists!$B$5:$B$32,0)),\"Non-CAISO\")","v":"Battery (incl. BTM)"},null,{"$f":"raw_annual_energy!C1173","v":"NW_Small_Hydro_for_CAISO"},{"$f":"INDEX(K:K,MATCH(R1173,Lists!J:J,0))","v":"Small_Hydro"},"Non-wind"]
[null,null,null,null,null,null,null,null,null,{"$f":"IFERROR(INDEX(raw_resource_build!$B$2:$B$1000,MATCH(0,COUNTIF($J$1:J1173,raw_resource_build!$B$2:$B$1000), 0),0), \"\")","v":""},{"$f":"IF(J1174=\"\", \"\", INDEX(raw_resource_build!E:E, MATCH(J1174, raw_resource_build!B:B, 0)))","v":""},{"$f":"IF(J1174=\"\", \"\", INDEX(raw_resource_build!C:C, MATCH(J1174, raw_resource_build!B:B, 0)))","v":""},null,{"$f":"raw_resource_build!B1174","v":"CAISO_New_Li_Battery_5"},"Non-wind",{"$f":"IFERROR(INDEX($E$5:$E$32,MATCH(raw_resource_build!$E1174,Lists!$B$5:$B$32,0)),\"Non-CAISO\")","v":"Battery (incl. BTM)"},null,{"$f":"raw_annual_energy!C1174","v":"NW_Small_Hydro_for_CAISO"},{"$f":"INDEX(K:K,MATCH(R1174,Lists!J:J,0))","v":"Small_Hydro"},"Non-wind"]
[null,null,null,null,null,null,null,null,null,{"$f":"IFERROR(INDEX(raw_resource_build!$B$2:$B$1000,MATCH(0,COUNTIF($J$1:J1174,raw_resource_build!$B$2:$B$1000), 0),0), \"\")","v":""},{"$f":"IF(J1175=\"\", \"\", INDEX(raw_resource_build!E:E, MATCH(J1175, raw_resource_build!B:B, 0)))","v":""},{"$f":"IF(J1175=\"\", \"\", INDEX(raw_resource_build!C:C, MATCH(J1175, raw_resource_build!B:B, 0)))","v":""},null,{"$f":"raw_resource_build!B1175","v":"CAISO_New_Li_Battery_6"},"Non-wind",{"$f":"IFERROR(INDEX($E$5:$E$32,MATCH(raw_resource_build!$E1175,Lists!$B$5:$B$32,0)),\"Non-CAISO\")","v":"Battery (incl. BTM)"},null,{"$f":"raw_annual_energy!C1175","v":"NW_Small_Hydro_for_CAISO"},{"$f":"INDEX(K:K,MATCH(R1175,Lists!J:J,0))","v":"Small_Hydro"},"Non-wind"]
[null,null,null,null,null,null,null,null,null,{"$f":"IFERROR(INDEX(raw_resource_build!$B$2:$B$1000,MATCH(0,COUNTIF($J$1:J1175,raw_resource_build!$B$2:$B$1000), 0),0), \"\")","v":""},{"$f":"IF(J1176=\"\", \"\", INDEX(raw_resource_build!E:E, MATCH(J1176, raw_resource_build!B:B, 0)))","v":""},{"$f":"IF(J1176=\"\", \"\", INDEX(raw_resource_build!C:C, MATCH(J1176, raw_resource_build!B:B, 0)))","v":""},null,{"$f":"raw_resource_build!B1176","v":"CAISO_Hydro"},"Non-wind",{"$f":"IFERROR(INDEX($E$5:$E$32,MATCH(raw_resource_build!$E1176,Lists!$B$5:$B$32,0)),\"Non-CAISO\")","v":"Hydro (small + large)"},null,{"$f":"raw_annual_energy!C1176","v":"NW_Small_Hydro_for_CAISO"},{"$f":"INDEX(K:K,MATCH(R1176,Lists!J:J,0))","v":"Small_Hydro"},"Non-wind"]
[null,null,null,null,null,null,null,null,null,{"$f":"IFERROR(INDEX(raw_resource_build!$B$2:$B$1000,MATCH(0,COUNTIF($J$1:J1176,raw_resource_build!$B$2:$B$1000), 0),0), \"\")","v":""},{"$f":"IF(J1177=\"\", \"\", INDEX(raw_resource_build!E:E, MATCH(J1177, raw_resource_build!B:B, 0)))","v":""},{"$f":"IF(J1177=\"\", \"\", INDEX(raw_resource_build!C:C, MATCH(J1177, raw_resource_build!B:B, 0)))","v":""},null,{"$f":"raw_resource_build!B1177","v":"NW_Hydro"},"Non-wind",{"$f":"IFERROR(INDEX($E$5:$E$32,MATCH(raw_resource_build!$E1177,Lists!$B$5:$B$32,0)),\"Non-CAISO\")","v":"Hydro (small + large)"},null,{"$f":"raw_annual_energy!C1177","v":"NW_Small_Hydro_for_CAISO"},{"$f":"INDEX(K:K,MATCH(R1177,Lists!J:J,0))","v":"Small_Hydro"},"Non-wind"]
[null,null,null,null,null,null,null,null,null,{"$f":"IFERROR(INDEX(raw_resource_build!$B$2:$B$1000,MATCH(0,COUNTIF($J$1:J1177,raw_resource_build!$B$2:$B$1000), 0),0), \"\")","v":""},{"$f":"IF(J1178=\"\", \"\", INDEX(raw_resource_build!E:E, MATCH(J1178, raw_resource_build!B:B, 0)))","v":""},{"$f":"IF(J1178=\"\", \"\", INDEX(raw_resource_build!C:C, MATCH(J1178, raw_resource_build!B:B, 0)))","v":""},null,{"$f":"raw_resource_build!B1178","v":"SW_Hydro"},"Non-wind",{"$f":"IFERROR(INDEX($E$5:$E$32,MATCH(raw_resource_build!$E1178,Lists!$B$5:$B$32,0)),\"Non-CAISO\")","v":"Hydro (small + large)"},null,{"$f":"raw_annual_energy!C1178","v":"NW_Small_Hydro_for_CAISO"},{"$f":"INDEX(K:K,MATCH(R1178,Lists!J:J,0))","v":"Small_Hydro"},"Non-wind"]
[null,null,null,null,null,null,null,null,null,{"$f":"IFERROR(INDEX(raw_resource_build!$B$2:$B$1000,MATCH(0,COUNTIF($J$1:J1178,raw_resource_build!$B$2:$B$1000), 0),0), \"\")","v":""},{"$f":"IF(J1179=\"\", \"\", INDEX(raw_resource_build!E:E, MATCH(J1179, raw_resource_build!B:B, 0)))","v":""},{"$f":"IF(J1179=\"\", \"\", INDEX(raw_resource_build!C:C, MATCH(J1179, raw_resource_build!B:B, 0)))","v":""},null,{"$f":"raw_resource_build!B1179","v":"LDWP_Hydro"},"Non-wind",{"$f":"IFERROR(INDEX($E$5:$E$32,MATCH(raw_resource_build!$E1179,Lists!$B$5:$B$32,0)),\"Non-CAISO\")","v":"Hydro (small + large)"},null,{"$f":"raw_annual_energy!C1179","v":"NW_Wind_for_CAISO"},{"$f":"INDEX(K:K,MATCH(R1179,Lists!J:J,0))","v":"Wind"},"Non-wind"]
[null,null,null,null,null,null,null,null,null,{"$f":"IFERROR(INDEX(raw_resource_build!$B$2:$B$1000,MATCH(0,COUNTIF($J$1:J1179,raw_resource_build!$B$2:$B$1000), 0),0), \"\")","v":""},{"$f":"IF(J1180=\"\", \"\", INDEX(raw_resource_build!E:E, MATCH(J1180, raw_resource_build!B:B, 0)))","v":""},{"$f":"IF(J1180=\"\", \"\", INDEX(raw_resource_build!C:C, MATCH(J1180, raw_resource_build!B:B, 0)))","v":""},null,{"$f":"raw_resource_build!B1180","v":"BANC_Hydro"},"Non-wind",{"$f":"IFERROR(INDEX($E$5:$E$32,MATCH(raw_resource_build!$E1180,Lists!$B$5:$B$32,0)),\"Non-CAISO\")","v":"Hydro (small + large)"},null,{"$f":"raw_annual_energy!C1180","v":"NW_Wind_for_CAISO"},{"$f":"INDEX(K:K,MATCH(R1180,Lists!J:J,0))","v":"Wind"},"Non-wind"]
[null,null,null,null,null,null,null,null,null,{"$f":"IFERROR(INDEX(raw_resource_build!$B$2:$B$1000,MATCH(0,COUNTIF($J$1:J1180,raw_resource_build!$B$2:$B$1000), 0),0), \"\")","v":""},{"$f":"IF(J1181=\"\", \"\", INDEX(raw_resource_build!E:E, MATCH(J1181, raw_resource_build!B:B, 0)))","v":""},{"$f":"IF(J1181=\"\", \"\", INDEX(raw_resource_build!C:C, MATCH(J1181, raw_resource_build!B:B, 0)))","v":""},null,{"$f":"raw_resource_build!B1181","v":"IID_Hydro"},"Non-wind",{"$f":"IFERROR(INDEX($E$5:$E$32,MATCH(raw_resource_build!$E1181,Lists!$B$5:$B$32,0)),\"Non-CAISO\")","v":"Hydro (small + large)"},null,{"$f":"raw_annual_energy!C1181","v":"NW_Wind_for_CAISO"},{"$f":"INDEX(K:K,MATCH(R1181,Lists!J:J,0))","v":"Wind"},"Non-wind"]
[null,null,null,null,null,null,null,null,null,{"$f":"IFERROR(INDEX(raw_resource_build!$B$2:$B$1000,MATCH(0,COUNTIF($J$1:J1181,raw_resource_build!$B$2:$B$1000), 0),0), \"\")","v":""},{"$f":"IF(J1182=\"\", \"\", INDEX(raw_resource_build!E:E, MATCH(J1182, raw_resource_build!B:B, 0)))","v":""},{"$f":"IF(J1182=\"\", \"\", INDEX(raw_resource_build!C:C, MATCH(J1182, raw_resource_build!B:B, 0)))","v":""},null,{"$f":"raw_resource_build!B1182","v":"NW_Hydro_for_CAISO"},"Non-wind",{"$f":"IFERROR(INDEX($E$5:$E$32,MATCH(raw_resource_build!$E1182,Lists!$B$5:$B$32,0)),\"Non-CAISO\")","v":"Imports"},null,{"$f":"raw_annual_energy!C1182","v":"NW_Wind_for_CAISO"},{"$f":"INDEX(K:K,MATCH(R1182,Lists!J:J,0))","v":"Wind"},"Non-wind"]
[null,null,null,null,null,null,null,null,null,{"$f":"IFERROR(INDEX(raw_resource_build!$B$2:$B$1000,MATCH(0,COUNTIF($J$1:J1182,raw_resource_build!$B$2:$B$1000), 0),0), \"\")","v":""},{"$f":"IF(J1183=\"\", \"\", INDEX(raw_resource_build!E:E, MATCH(J1183, raw_resource_build!B:B, 0)))","v":""},{"$f":"IF(J1183=\"\", \"\", INDEX(raw_resource_build!C:C, MATCH(J1183, raw_resource_build!B:B, 0)))","v":""},null,{"$f":"raw_resource_build!B1183","v":"Hydrogen_electrolysis"},"Non-wind",{"$f":"IFERROR(INDEX($E$5:$E$32,MATCH(raw_resource_build!$E1183,Lists!$B$5:$B$32,0)),\"Non-CAISO\")","v":"Hydrogen Load"},null,{"$f":"raw_annual_energy!C1183","v":"NW_Wind_for_CAISO"},{"$f":"INDEX(K:K,MATCH(R1183,Lists!J:J,0))","v":"Wind"},"Non-wind"]
[null,null,null,null,null,null,null,null,null,{"$f":"IFERROR(INDEX(raw_resource_build!$B$2:$B$1000,MATCH(0,COUNTIF($J$1:J1183,raw_resource_build!$B$2:$B$1000), 0),0), \"\")","v":""},{"$f":"IF(J1184=\"\", \"\", INDEX(raw_resource_build!E:E, MATCH(J1184, raw_resource_build!B:B, 0)))","v":""},{"$f":"IF(J1184=\"\", \"\", INDEX(raw_resource_build!C:C, MATCH(J1184, raw_resource_build!B:B, 0)))","v":""},null,{"$f":"raw_resource_build!B1184","v":"CAISO_Shed_DR_Existing"},"Non-wind",{"$f":"IFERROR(INDEX($E$5:$E$32,MATCH(raw_resource_build!$E1184,Lists!$B$5:$B$32,0)),\"Non-CAISO\")","v":"Shed DR"},null,{"$f":"raw_annual_energy!C1184","v":"NW_Wind_for_CAISO"},{"$f":"INDEX(K:K,MATCH(R1184,Lists!J:J,0))","v":"Wind"},"Non-wind"]
[null,null,null,null,null,null,null,null,null,{"$f":"IFERROR(INDEX(raw_resource_build!$B$2:$B$1000,MATCH(0,COUNTIF($J$1:J1184,raw_resource_build!$B$2:$B$1000), 0),0), \"\")","v":""},{"$f":"IF(J1185=\"\", \"\", INDEX(raw_resource_build!E:E, MATCH(J1185, raw_resource_build!B:B, 0)))","v":""},{"$f":"IF(J1185=\"\", \"\", INDEX(raw_resource_build!C:C, MATCH(J1185, raw_resource_build!B:B, 0)))","v":""},null,{"$f":"raw_resource_build!B1185","v":"CAISO_Shed_DR_Tranche1"},"Non-wind",{"$f":"IFERROR(INDEX($E$5:$E$32,MATCH(raw_resource_build!$E1185,Lists!$B$5:$B$32,0)),\"Non-CAISO\")","v":"Shed DR"},null,{"$f":"raw_annual_energy!C1185","v":"NW_Wind_for_CAISO"},{"$f":"INDEX(K:K,MATCH(R1185,Lists!J:J,0))","v":"Wind"},"Non-wind"]
[null,null,null,null,null,null,null,null,null,{"$f":"IFERROR(INDEX(raw_resource_build!$B$2:$B$1000,MATCH(0,COUNTIF($J$1:J1185,raw_resource_build!$B$2:$B$1000), 0),0), \"\")","v":""},{"$f":"IF(J1186=\"\", \"\", INDEX(raw_resource_build!E:E, MATCH(J1186, raw_resource_build!B:B, 0)))","v":""},{"$f":"IF(J1186=\"\", \"\", INDEX(raw_resource_build!C:C, MATCH(J1186, raw_resource_build!B:B, 0)))","v":""},null,{"$f":"raw_resource_build!B1186","v":"CAISO_Shed_DR_Tranche2"},"Non-wind",{"$f":"IFERROR(INDEX($E$5:$E$32,MATCH(raw_resource_build!$E1186,Lists!$B$5:$B$32,0)),\"Non-CAISO\")","v":"Shed DR"},null,{"$f":"raw_annual_energy!C1186","v":"NW_Wind_for_CAISO"},{"$f":"INDEX(K:K,MATCH(R1186,Lists!J:J,0))","v":"Wind"},"Non-wind"]
[null,null,null,null,null,null,null,null,null,{"$f":"IFERROR(INDEX(raw_resource_build!$B$2:$B$1000,MATCH(0,COUNTIF($J$1:J1186,raw_resource_build!$B$2:$B$1000), 0),0), \"\")","v":""},{"$f":"IF(J1187=\"\", \"\", INDEX(raw_resource_build!E:E, MATCH(J1187, raw_resource_build!B:B, 0)))","v":""},{"$f":"IF(J1187=\"\", \"\", INDEX(raw_resource_build!C:C, MATCH(J1187, raw_resource_build!B:B, 0)))","v":""},null,{"$f":"raw_resource_build!B1187","v":"CAISO_Shed_DR_Tranche3"},"Non-wind",{"$f":"IFERROR(INDEX($E$5:$E$32,MATCH(raw_resource_build!$E1187,Lists!$B$5:$B$32,0)),\"Non-CAISO\")","v":"Shed DR"},null,{"$f":"raw_annual_energy!C1187","v":"NW_Biomass_for_Other"},{"$f":"INDEX(K:K,MATCH(R1187,Lists!J:J,0))","v":"Biomass"},"Non-wind"]
[null,null,null,null,null,null,null,null,null,{"$f":"IFERROR(INDEX(raw_resource_build!$B$2:$B$1000,MATCH(0,COUNTIF($J$1:J1187,raw_resource_build!$B$2:$B$1000), 0),0), \"\")","v":""},{"$f":"IF(J1188=\"\", \"\", INDEX(raw_resource_build!E:E, MATCH(J1188, raw_resource_build!B:B, 0)))","v":""},{"$f":"IF(J1188=\"\", \"\", INDEX(raw_resource_build!C:C, MATCH(J1188, raw_resource_build!B:B, 0)))","v":""},null,{"$f":"raw_resource_build!B1188","v":"CAISO_Shed_DR_Tranche4"},"Non-wind",{"$f":"IFERROR(INDEX($E$5:$E$32,MATCH(raw_resource_build!$E1188,Lists!$B$5:$B$32,0)),\"Non-CAISO\")","v":"Shed DR"},null,{"$f":"raw_annual_energy!C1188","v":"NW_Biomass_for_Other"},{"$f":"INDEX(K:K,MATCH(R1188,Lists!J:J,0))","v":"Biomass"},"Non-wind"]
[null,null,null,null,null,null,null,null,null,{"$f":"IFERROR(INDEX(raw_resource_build!$B$2:$B$1000,MATCH(0,COUNTIF($J$1:J1188,raw_resource_build!$B$2:$B$1000), 0),0), \"\")","v":""},{"$f":"IF(J1189=\"\", \"\", INDEX(raw_resource_build!E:E, MATCH(J1189, raw_resource_build!B:B, 0)))","v":""},{"$f":"IF(J1189=\"\", \"\", INDEX(raw_resource_build!C:C, MATCH(J1189, raw_resource_build!B:B, 0)))","v":""},null,{"$f":"raw_resource_build!B1189","v":"CAISO_Shed_DR_Tranche5"},"Non-wind",{"$f":"IFERROR(INDEX($E$5:$E$32,MATCH(raw_resource_build!$E1189,Lists!$B$5:$B$32,0)),\"Non-CAISO\")","v":"Shed DR"},null,{"$f":"raw_annual_energy!C1189","v":"NW_Biomass_for_Other"},{"$f":"INDEX(K:K,MATCH(R1189,Lists!J:J,0))","v":"Biomass"},"Non-wind"]
[null,null,null,null,null,null,null,null,null,{"$f":"IFERROR(INDEX(raw_resource_build!$B$2:$B$1000,MATCH(0,COUNTIF($J$1:J1189,raw_resource_build!$B$2:$B$1000), 0),0), \"\")","v":""},{"$f":"IF(J1190=\"\", \"\", INDEX(raw_resource_build!E:E, MATCH(J1190, raw_resource_build!B:B, 0)))","v":""},{"$f":"IF(J1190=\"\", \"\", INDEX(raw_resource_build!C:C, MATCH(J1190, raw_resource_build!B:B, 0)))","v":""},null,{"$f":"raw_resource_build!B1190","v":"CAISO_Shed_DR_Tranche6"},"Non-wind",{"$f":"IFERROR(INDEX($E$5:$E$32,MATCH(raw_resource_build!$E1190,Lists!$B$5:$B$32,0)),\"Non-CAISO\")","v":"Shed DR"},null,{"$f":"raw_annual_energy!C1190","v":"NW_Biomass_for_Other"},{"$f":"INDEX(K:K,MATCH(R1190,Lists!J:J,0))","v":"Biomass"},"Non-wind"]
[null,null,null,null,null,null,null,null,null,{"$f":"IFERROR(INDEX(raw_resource_build!$B$2:$B$1000,MATCH(0,COUNTIF($J$1:J1190,raw_resource_build!$B$2:$B$1000), 0),0), \"\")","v":""},{"$f":"IF(J1191=\"\", \"\", INDEX(raw_resource_build!E:E, MATCH(J1191, raw_resource_build!B:B, 0)))","v":""},{"$f":"IF(J1191=\"\", \"\", INDEX(raw_resource_build!C:C, MATCH(J1191, raw_resource_build!B:B, 0)))","v":""},null,{"$f":"raw_resource_build!B1191","v":"CAISO_Shed_DR_Tranche7"},"Non-wind",{"$f":"IFERROR(INDEX($E$5:$E$32,MATCH(raw_resource_build!$E1191,Lists!$B$5:$B$32,0)),\"Non-CAISO\")","v":"Shed DR"},null,{"$f":"raw_annual_energy!C1191","v":"NW_Biomass_for_Other"},{"$f":"INDEX(K:K,MATCH(R1191,Lists!J:J,0))","v":"Biomass"},"Non-wind"]
[null,null,null,null,null,null,null,null,null,{"$f":"IFERROR(INDEX(raw_resource_build!$B$2:$B$1000,MATCH(0,COUNTIF($J$1:J1191,raw_resource_build!$B$2:$B$1000), 0),0), \"\")","v":""},{"$f":"IF(J1192=\"\", \"\", INDEX(raw_resource_build!E:E, MATCH(J1192, raw_resource_build!B:B, 0)))","v":""},{"$f":"IF(J1192=\"\", \"\", INDEX(raw_resource_build!C:C, MATCH(J1192, raw_resource_build!B:B, 0)))","v":""},null,{"$f":"raw_resource_build!B1192","v":"CAISO_Shed_DR_Tranche8"},"Non-wind",{"$f":"IFERROR(INDEX($E$5:$E$32,MATCH(raw_resource_build!$E1192,Lists!$B$5:$B$32,0)),\"Non-CAISO\")","v":"Shed DR"},null,{"$f":"raw_annual_energy!C1192","v":"NW_Biomass_for_Other"},{"$f":"INDEX(K:K,MATCH(R1192,Lists!J:J,0))","v":"Biomass"},"Non-wind"]
[null,null,null,null,null,null,null,null,null,{"$f":"IFERROR(INDEX(raw_resource_build!$B$2:$B$1000,MATCH(0,COUNTIF($J$1:J1192,raw_resource_build!$B$2:$B$1000), 0),0), \"\")","v":""},{"$f":"IF(J1193=\"\", \"\", INDEX(raw_resource_build!E:E, MATCH(J1193, raw_resource_build!B:B, 0)))","v":""},{"$f":"IF(J1193=\"\", \"\", INDEX(raw_resource_build!C:C, MATCH(J1193, raw_resource_build!B:B, 0)))","v":""},null,{"$f":"raw_resource_build!B1193","v":"CAISO_CHP"},"Non-wind",{"$f":"IFERROR(INDEX($E$5:$E$32,MATCH(raw_resource_build!$E1193,Lists!$B$5:$B$32,0)),\"Non-CAISO\")","v":"CHP"},null,{"$f":"raw_annual_energy!C1193","v":"NW_Biomass_for_Other"},{"$f":"INDEX(K:K,MATCH(R1193,Lists!J:J,0))","v":"Biomass"},"Non-wind"]
[null,null,null,null,null,null,null,null,null,{"$f":"IFERROR(INDEX(raw_resource_build!$B$2:$B$1000,MATCH(0,COUNTIF($J$1:J1193,raw_resource_build!$B$2:$B$1000), 0),0), \"\")","v":""},{"$f":"IF(J1194=\"\", \"\", INDEX(raw_resource_build!E:E, MATCH(J1194, raw_resource_build!B:B, 0)))","v":""},{"$f":"IF(J1194=\"\", \"\", INDEX(raw_resource_build!C:C, MATCH(J1194, raw_resource_build!B:B, 0)))","v":""},null,{"$f":"raw_resource_build!B1194","v":"CAISO_Nuclear"},"Non-wind",{"$f":"IFERROR(INDEX($E$5:$E$32,MATCH(raw_resource_build!$E1194,Lists!$B$5:$B$32,0)),\"Non-CAISO\")","v":"Nuclear"},null,{"$f":"raw_annual_energy!C1194","v":"NW_Biomass_for_Other"},{"$f":"INDEX(K:K,MATCH(R1194,Lists!J:J,0))","v":"Biomass"},"Non-wind"]
[null,null,null,null,null,null,null,null,null,{"$f":"IFERROR(INDEX(raw_resource_build!$B$2:$B$1000,MATCH(0,COUNTIF($J$1:J1194,raw_resource_build!$B$2:$B$1000), 0),0), \"\")","v":""},{"$f":"IF(J1195=\"\", \"\", INDEX(raw_resource_build!E:E, MATCH(J1195, raw_resource_build!B:B, 0)))","v":""},{"$f":"IF(J1195=\"\", \"\", INDEX(raw_resource_build!C:C, MATCH(J1195, raw_resource_build!B:B, 0)))","v":""},null,{"$f":"raw_resource_build!B1195","v":"CAISO_CCGT1"},"Non-wind",{"$f":"IFERROR(INDEX($E$5:$E$32,MATCH(raw_resource_build!$E1195,Lists!$B$5:$B$32,0)),\"Non-CAISO\")","v":"CCGT"},null,{"$f":"raw_annual_energy!C1195","v":"NW_CCGT"},{"$f":"INDEX(K:K,MATCH(R1195,Lists!J:J,0))","v":"NW_CCGT"},"Non-wind"]
[null,null,null,null,null,null,null,null,null,{"$f":"IFERROR(INDEX(raw_resource_build!$B$2:$B$1000,MATCH(0,COUNTIF($J$1:J1195,raw_resource_build!$B$2:$B$1000), 0),0), \"\")","v":""},{"$f":"IF(J1196=\"\", \"\", INDEX(raw_resource_build!E:E, MATCH(J1196, raw_resource_build!B:B, 0)))","v":""},{"$f":"IF(J1196=\"\", \"\", INDEX(raw_resource_build!C:C, MATCH(J1196, raw_resource_build!B:B, 0)))","v":""},null,{"$f":"raw_resource_build!B1196","v":"CAISO_CCGT2"},"Non-wind",{"$f":"IFERROR(INDEX($E$5:$E$32,MATCH(raw_resource_build!$E1196,Lists!$B$5:$B$32,0)),\"Non-CAISO\")","v":"CCGT"},null,{"$f":"raw_annual_energy!C1196","v":"NW_CCGT"},{"$f":"INDEX(K:K,MATCH(R1196,Lists!J:J,0))","v":"NW_CCGT"},"Non-wind"]
[null,null,null,null,null,null,null,null,null,{"$f":"IFERROR(INDEX(raw_resource_build!$B$2:$B$1000,MATCH(0,COUNTIF($J$1:J1196,raw_resource_build!$B$2:$B$1000), 0),0), \"\")","v":""},{"$f":"IF(J1197=\"\", \"\", INDEX(raw_resource_build!E:E, MATCH(J1197, raw_resource_build!B:B, 0)))","v":""},{"$f":"IF(J1197=\"\", \"\", INDEX(raw_resource_build!C:C, MATCH(J1197, raw_resource_build!B:B, 0)))","v":""},null,{"$f":"raw_resource_build!B1197","v":"CAISO_Coal"},"Non-wind",{"$f":"IFERROR(INDEX($E$5:$E$32,MATCH(raw_resource_build!$E1197,Lists!$B$5:$B$32,0)),\"Non-CAISO\")","v":"Coal"},null,{"$f":"raw_annual_energy!C1197","v":"NW_CCGT"},{"$f":"INDEX(K:K,MATCH(R1197,Lists!J:J,0))","v":"NW_CCGT"},"Non-wind"]
[null,null,null,null,null,null,null,null,null,{"$f":"IFERROR(INDEX(raw_resource_build!$B$2:$B$1000,MATCH(0,COUNTIF($J$1:J1197,raw_resource_build!$B$2:$B$1000), 0),0), \"\")","v":""},{"$f":"IF(J1198=\"\", \"\", INDEX(raw_resource_build!E:E, MATCH(J1198, raw_resource_build!B:B, 0)))","v":""},{"$f":"IF(J1198=\"\", \"\", INDEX(raw_resource_build!C:C, MATCH(J1198, raw_resource_build!B:B, 0)))","v":""},null,{"$f":"raw_resource_build!B1198","v":"CAISO_Peaker1"},"Non-wind",{"$f":"IFERROR(INDEX($E$5:$E$32,MATCH(raw_resource_build!$E1198,Lists!$B$5:$B$32,0)),\"Non-CAISO\")","v":"Peaker"},null,{"$f":"raw_annual_energy!C1198","v":"NW_CCGT"},{"$f":"INDEX(K:K,MATCH(R1198,Lists!J:J,0))","v":"NW_CCGT"},"Non-wind"]
[null,null,null,null,null,null,null,null,null,{"$f":"IFERROR(INDEX(raw_resource_build!$B$2:$B$1000,MATCH(0,COUNTIF($J$1:J1198,raw_resource_build!$B$2:$B$1000), 0),0), \"\")","v":""},{"$f":"IF(J1199=\"\", \"\", INDEX(raw_resource_build!E:E, MATCH(J1199, raw_resource_build!B:B, 0)))","v":""},{"$f":"IF(J1199=\"\", \"\", INDEX(raw_resource_build!C:C, MATCH(J1199, raw_resource_build!B:B, 0)))","v":""},null,{"$f":"raw_resource_build!B1199","v":"CAISO_Peaker2"},"Non-wind",{"$f":"IFERROR(INDEX($E$5:$E$32,MATCH(raw_resource_build!$E1199,Lists!$B$5:$B$32,0)),\"Non-CAISO\")","v":"Peaker"},null,{"$f":"raw_annual_energy!C1199","v":"NW_CCGT"},{"$f":"INDEX(K:K,MATCH(R1199,Lists!J:J,0))","v":"NW_CCGT"},"Non-wind"]
[null,null,null,null,null,null,null,null,null,{"$f":"IFERROR(INDEX(raw_resource_build!$B$2:$B$1000,MATCH(0,COUNTIF($J$1:J1199,raw_resource_build!$B$2:$B$1000), 0),0), \"\")","v":""},{"$f":"IF(J1200=\"\", \"\", INDEX(raw_resource_build!E:E, MATCH(J1200, raw_resource_build!B:B, 0)))","v":""},{"$f":"IF(J1200=\"\", \"\", INDEX(raw_resource_build!C:C, MATCH(J1200, raw_resource_build!B:B, 0)))","v":""},null,{"$f":"raw_resource_build!B1200","v":"CAISO_Advanced_CCGT"},"Non-wind",{"$f":"IFERROR(INDEX($E$5:$E$32,MATCH(raw_resource_build!$E1200,Lists!$B$5:$B$32,0)),\"Non-CAISO\")","v":"CCGT"},null,{"$f":"raw_annual_energy!C1200","v":"NW_CCGT"},{"$f":"INDEX(K:K,MATCH(R1200,Lists!J:J,0))","v":"NW_CCGT"},"Non-wind"]
[null,null,null,null,null,null,null,null,null,{"$f":"IFERROR(INDEX(raw_resource_build!$B$2:$B$1000,MATCH(0,COUNTIF($J$1:J1200,raw_resource_build!$B$2:$B$1000), 0),0), \"\")","v":""},{"$f":"IF(J1201=\"\", \"\", INDEX(raw_resource_build!E:E, MATCH(J1201, raw_resource_build!B:B, 0)))","v":""},{"$f":"IF(J1201=\"\", \"\", INDEX(raw_resource_build!C:C, MATCH(J1201, raw_resource_build!B:B, 0)))","v":""},null,{"$f":"raw_resource_build!B1201","v":"CAISO_Aero_CT"},"Non-wind",{"$f":"IFERROR(INDEX($E$5:$E$32,MATCH(raw_resource_build!$E1201,Lists!$B$5:$B$32,0)),\"Non-CAISO\")","v":"Peaker"},null,{"$f":"raw_annual_energy!C1201","v":"NW_CCGT"},{"$f":"INDEX(K:K,MATCH(R1201,Lists!J:J,0))","v":"NW_CCGT"},"Non-wind"]
[null,null,null,null,null,null,null,null,null,{"$f":"IFERROR(INDEX(raw_resource_build!$B$2:$B$1000,MATCH(0,COUNTIF($J$1:J1201,raw_resource_build!$B$2:$B$1000), 0),0), \"\")","v":""},{"$f":"IF(J1202=\"\", \"\", INDEX(raw_resource_build!E:E, MATCH(J1202, raw_resource_build!B:B, 0)))","v":""},{"$f":"IF(J1202=\"\", \"\", INDEX(raw_resource_build!C:C, MATCH(J1202, raw_resource_build!B:B, 0)))","v":""},null,{"$f":"raw_resource_build!B1202","v":"CAISO_Reciprocating_Engine"},"Non-wind",{"$f":"IFERROR(INDEX($E$5:$E$32,MATCH(raw_resource_build!$E1202,Lists!$B$5:$B$32,0)),\"Non-CAISO\")","v":"Peaker"},null,{"$f":"raw_annual_energy!C1202","v":"NW_CCGT"},{"$f":"INDEX(K:K,MATCH(R1202,Lists!J:J,0))","v":"NW_CCGT"},"Non-wind"]
[null,null,null,null,null,null,null,null,null,{"$f":"IFERROR(INDEX(raw_resource_build!$B$2:$B$1000,MATCH(0,COUNTIF($J$1:J1202,raw_resource_build!$B$2:$B$1000), 0),0), \"\")","v":""},{"$f":"IF(J1203=\"\", \"\", INDEX(raw_resource_build!E:E, MATCH(J1203, raw_resource_build!B:B, 0)))","v":""},{"$f":"IF(J1203=\"\", \"\", INDEX(raw_resource_build!C:C, MATCH(J1203, raw_resource_build!B:B, 0)))","v":""},null,{"$f":"raw_resource_build!B1203","v":"CAISO_ST"},"Non-wind",{"$f":"IFERROR(INDEX($E$5:$E$32,MATCH(raw_resource_build!$E1203,Lists!$B$5:$B$32,0)),\"Non-CAISO\")","v":"Steam Turbine"},null,{"$f":"raw_annual_energy!C1203","v":"NW_Coal"},{"$f":"INDEX(K:K,MATCH(R1203,Lists!J:J,0))","v":"NW_Coal"},"Non-wind"]
[null,null,null,null,null,null,null,null,null,{"$f":"IFERROR(INDEX(raw_resource_build!$B$2:$B$1000,MATCH(0,COUNTIF($J$1:J1203,raw_resource_build!$B$2:$B$1000), 0),0), \"\")","v":""},{"$f":"IF(J1204=\"\", \"\", INDEX(raw_resource_build!E:E, MATCH(J1204, raw_resource_build!B:B, 0)))","v":""},{"$f":"IF(J1204=\"\", \"\", INDEX(raw_resource_build!C:C, MATCH(J1204, raw_resource_build!B:B, 0)))","v":""},null,{"$f":"raw_resource_build!B1204","v":"NW_Nuclear"},"Non-wind",{"$f":"IFERROR(INDEX($E$5:$E$32,MATCH(raw_resource_build!$E1204,Lists!$B$5:$B$32,0)),\"Non-CAISO\")","v":"Non-CAISO"},null,{"$f":"raw_annual_energy!C1204","v":"NW_Coal"},{"$f":"INDEX(K:K,MATCH(R1204,Lists!J:J,0))","v":"NW_Coal"},"Non-wind"]
[null,null,null,null,null,null,null,null,null,{"$f":"IFERROR(INDEX(raw_resource_build!$B$2:$B$1000,MATCH(0,COUNTIF($J$1:J1204,raw_resource_build!$B$2:$B$1000), 0),0), \"\")","v":""},{"$f":"IF(J1205=\"\", \"\", INDEX(raw_resource_build!E:E, MATCH(J1205, raw_resource_build!B:B, 0)))","v":""},{"$f":"IF(J1205=\"\", \"\", INDEX(raw_resource_build!C:C, MATCH(J1205, raw_resource_build!B:B, 0)))","v":""},null,{"$f":"raw_resource_build!B1205","v":"NW_Coal"},"Non-wind",{"$f":"IFERROR(INDEX($E$5:$E$32,MATCH(raw_resource_build!$E1205,Lists!$B$5:$B$32,0)),\"Non-CAISO\")","v":"Non-CAISO"},null,{"$f":"raw_annual_energy!C1205","v":"NW_Coal"},{"$f":"INDEX(K:K,MATCH(R1205,Lists!J:J,0))","v":"NW_Coal"},"Non-wind"]
[null,null,null,null,null,null,null,null,null,{"$f":"IFERROR(INDEX(raw_resource_build!$B$2:$B$1000,MATCH(0,COUNTIF($J$1:J1205,raw_resource_build!$B$2:$B$1000), 0),0), \"\")","v":""},{"$f":"IF(J1206=\"\", \"\", INDEX(raw_resource_build!E:E, MATCH(J1206, raw_resource_build!B:B, 0)))","v":""},{"$f":"IF(J1206=\"\", \"\", INDEX(raw_resource_build!C:C, MATCH(J1206, raw_resource_build!B:B, 0)))","v":""},null,{"$f":"raw_resource_build!B1206","v":"NW_CCGT"},"Non-wind",{"$f":"IFERROR(INDEX($E$5:$E$32,MATCH(raw_resource_build!$E1206,Lists!$B$5:$B$32,0)),\"Non-CAISO\")","v":"Non-CAISO"},null,{"$f":"raw_annual_energy!C1206","v":"NW_Coal"},{"$f":"INDEX(K:K,MATCH(R1206,Lists!J:J,0))","v":"NW_Coal"},"Non-wind"]
[null,null,null,null,null,null,null,null,null,{"$f":"IFERROR(INDEX(raw_resource_build!$B$2:$B$1000,MATCH(0,COUNTIF($J$1:J1206,raw_resource_build!$B$2:$B$1000), 0),0), \"\")","v":""},{"$f":"IF(J1207=\"\", \"\", INDEX(raw_resource_build!E:E, MATCH(J1207, raw_resource_build!B:B, 0)))","v":""},{"$f":"IF(J1207=\"\", \"\", INDEX(raw_resource_build!C:C, MATCH(J1207, raw_resource_build!B:B, 0)))","v":""},null,{"$f":"raw_resource_build!B1207","v":"NW_Peaker"},"Non-wind",{"$f":"IFERROR(INDEX($E$5:$E$32,MATCH(raw_resource_build!$E1207,Lists!$B$5:$B$32,0)),\"Non-CAISO\")","v":"Non-CAISO"},null,{"$f":"raw_annual_energy!C1207","v":"NW_Coal"},{"$f":"INDEX(K:K,MATCH(R1207,Lists!J:J,0))","v":"NW_Coal"},"Non-wind"]
[null,null,null,null,null,null,null,null,null,{"$f":"IFERROR(INDEX(raw_resource_build!$B$2:$B$1000,MATCH(0,COUNTIF($J$1:J1207,raw_resource_build!$B$2:$B$1000), 0),0), \"\")","v":""},{"$f":"IF(J1208=\"\", \"\", INDEX(raw_resource_build!E:E, MATCH(J1208, raw_resource_build!B:B, 0)))","v":""},{"$f":"IF(J1208=\"\", \"\", INDEX(raw_resource_build!C:C, MATCH(J1208, raw_resource_build!B:B, 0)))","v":""},null,{"$f":"raw_resource_build!B1208","v":"SW_Nuclear"},"Non-wind",{"$f":"IFERROR(INDEX($E$5:$E$32,MATCH(raw_resource_build!$E1208,Lists!$B$5:$B$32,0)),\"Non-CAISO\")","v":"Non-CAISO"},null,{"$f":"raw_annual_energy!C1208","v":"NW_Coal"},{"$f":"INDEX(K:K,MATCH(R1208,Lists!J:J,0))","v":"NW_Coal"},"Non-wind"]
[null,null,null,null,null,null,null,null,null,{"$f":"IFERROR(INDEX(raw_resource_build!$B$2:$B$1000,MATCH(0,COUNTIF($J$1:J1208,raw_resource_build!$B$2:$B$1000), 0),0), \"\")","v":""},{"$f":"IF(J1209=\"\", \"\", INDEX(raw_resource_build!E:E, MATCH(J1209, raw_resource_build!B:B, 0)))","v":""},{"$f":"IF(J1209=\"\", \"\", INDEX(raw_resource_build!C:C, MATCH(J1209, raw_resource_build!B:B, 0)))","v":""},null,{"$f":"raw_resource_build!B1209","v":"SW_Coal"},"Non-wind",{"$f":"IFERROR(INDEX($E$5:$E$32,MATCH(raw_resource_build!$E1209,Lists!$B$5:$B$32,0)),\"Non-CAISO\")","v":"Non-CAISO"},null,{"$f":"raw_annual_energy!C1209","v":"NW_Coal"},{"$f":"INDEX(K:K,MATCH(R1209,Lists!J:J,0))","v":"NW_Coal"},"Non-wind"]
[null,null,null,null,null,null,null,null,null,{"$f":"IFERROR(INDEX(raw_resource_build!$B$2:$B$1000,MATCH(0,COUNTIF($J$1:J1209,raw_resource_build!$B$2:$B$1000), 0),0), \"\")","v":""},{"$f":"IF(J1210=\"\", \"\", INDEX(raw_resource_build!E:E, MATCH(J1210, raw_resource_build!B:B, 0)))","v":""},{"$f":"IF(J1210=\"\", \"\", INDEX(raw_resource_build!C:C, MATCH(J1210, raw_resource_build!B:B, 0)))","v":""},null,{"$f":"raw_resource_build!B1210","v":"SW_CCGT"},"Non-wind",{"$f":"IFERROR(INDEX($E$5:$E$32,MATCH(raw_resource_build!$E1210,Lists!$B$5:$B$32,0)),\"Non-CAISO\")","v":"Non-CAISO"},null,{"$f":"raw_annual_energy!C1210","v":"NW_Coal"},{"$f":"INDEX(K:K,MATCH(R1210,Lists!J:J,0))","v":"NW_Coal"},"Non-wind"]
[null,null,null,null,null,null,null,null,null,{"$f":"IFERROR(INDEX(raw_resource_build!$B$2:$B$1000,MATCH(0,COUNTIF($J$1:J1210,raw_resource_build!$B$2:$B$1000), 0),0), \"\")","v":""},{"$f":"IF(J1211=\"\", \"\", INDEX(raw_resource_build!E:E, MATCH(J1211, raw_resource_build!B:B, 0)))","v":""},{"$f":"IF(J1211=\"\", \"\", INDEX(raw_resource_build!C:C, MATCH(J1211, raw_resource_build!B:B, 0)))","v":""},null,{"$f":"raw_resource_build!B1211","v":"SW_Peaker"},"Non-wind",{"$f":"IFERROR(INDEX($E$5:$E$32,MATCH(raw_resource_build!$E1211,Lists!$B$5:$B$32,0)),\"Non-CAISO\")","v":"Non-CAISO"},null,{"$f":"raw_annual_energy!C1211","v":"NW_Geothermal_for_Other"},{"$f":"INDEX(K:K,MATCH(R1211,Lists!J:J,0))","v":"Geothermal"},"Non-wind"]
[null,null,null,null,null,null,null,null,null,{"$f":"IFERROR(INDEX(raw_resource_build!$B$2:$B$1000,MATCH(0,COUNTIF($J$1:J1211,raw_resource_build!$B$2:$B$1000), 0),0), \"\")","v":""},{"$f":"IF(J1212=\"\", \"\", INDEX(raw_resource_build!E:E, MATCH(J1212, raw_resource_build!B:B, 0)))","v":""},{"$f":"IF(J1212=\"\", \"\", INDEX(raw_resource_build!C:C, MATCH(J1212, raw_resource_build!B:B, 0)))","v":""},null,{"$f":"raw_resource_build!B1212","v":"SW_ST"},"Non-wind",{"$f":"IFERROR(INDEX($E$5:$E$32,MATCH(raw_resource_build!$E1212,Lists!$B$5:$B$32,0)),\"Non-CAISO\")","v":"Non-CAISO"},null,{"$f":"raw_annual_energy!C1212","v":"NW_Geothermal_for_Other"},{"$f":"INDEX(K:K,MATCH(R1212,Lists!J:J,0))","v":"Geothermal"},"Non-wind"]
[null,null,null,null,null,null,null,null,null,{"$f":"IFERROR(INDEX(raw_resource_build!$B$2:$B$1000,MATCH(0,COUNTIF($J$1:J1212,raw_resource_build!$B$2:$B$1000), 0),0), \"\")","v":""},{"$f":"IF(J1213=\"\", \"\", INDEX(raw_resource_build!E:E, MATCH(J1213, raw_resource_build!B:B, 0)))","v":""},{"$f":"IF(J1213=\"\", \"\", INDEX(raw_resource_build!C:C, MATCH(J1213, raw_resource_build!B:B, 0)))","v":""},null,{"$f":"raw_resource_build!B1213","v":"LDWP_Nuclear"},"Non-wind",{"$f":"IFERROR(INDEX($E$5:$E$32,MATCH(raw_resource_build!$E1213,Lists!$B$5:$B$32,0)),\"Non-CAISO\")","v":"Non-CAISO"},null,{"$f":"raw_annual_energy!C1213","v":"NW_Geothermal_for_Other"},{"$f":"INDEX(K:K,MATCH(R1213,Lists!J:J,0))","v":"Geothermal"},"Non-wind"]
[null,null,null,null,null,null,null,null,null,{"$f":"IFERROR(INDEX(raw_resource_build!$B$2:$B$1000,MATCH(0,COUNTIF($J$1:J1213,raw_resource_build!$B$2:$B$1000), 0),0), \"\")","v":""},{"$f":"IF(J1214=\"\", \"\", INDEX(raw_resource_build!E:E, MATCH(J1214, raw_resource_build!B:B, 0)))","v":""},{"$f":"IF(J1214=\"\", \"\", INDEX(raw_resource_build!C:C, MATCH(J1214, raw_resource_build!B:B, 0)))","v":""},null,{"$f":"raw_resource_build!B1214","v":"LDWP_Coal"},"Non-wind",{"$f":"IFERROR(INDEX($E$5:$E$32,MATCH(raw_resource_build!$E1214,Lists!$B$5:$B$32,0)),\"Non-CAISO\")","v":"Non-CAISO"},null,{"$f":"raw_annual_energy!C1214","v":"NW_Geothermal_for_Other"},{"$f":"INDEX(K:K,MATCH(R1214,Lists!J:J,0))","v":"Geothermal"},"Non-wind"]
[null,null,null,null,null,null,null,null,null,{"$f":"IFERROR(INDEX(raw_resource_build!$B$2:$B$1000,MATCH(0,COUNTIF($J$1:J1214,raw_resource_build!$B$2:$B$1000), 0),0), \"\")","v":""},{"$f":"IF(J1215=\"\", \"\", INDEX(raw_resource_build!E:E, MATCH(J1215, raw_resource_build!B:B, 0)))","v":""},{"$f":"IF(J1215=\"\", \"\", INDEX(raw_resource_build!C:C, MATCH(J1215, raw_resource_build!B:B, 0)))","v":""},null,{"$f":"raw_resource_build!B1215","v":"LDWP_CCGT"},"Non-wind",{"$f":"IFERROR(INDEX($E$5:$E$32,MATCH(raw_resource_build!$E1215,Lists!$B$5:$B$32,0)),\"Non-CAISO\")","v":"Non-CAISO"},null,{"$f":"raw_annual_energy!C1215","v":"NW_Geothermal_for_Other"},{"$f":"INDEX(K:K,MATCH(R1215,Lists!J:J,0))","v":"Geothermal"},"Non-wind"]
[null,null,null,null,null,null,null,null,null,{"$f":"IFERROR(INDEX(raw_resource_build!$B$2:$B$1000,MATCH(0,COUNTIF($J$1:J1215,raw_resource_build!$B$2:$B$1000), 0),0), \"\")","v":""},{"$f":"IF(J1216=\"\", \"\", INDEX(raw_resource_build!E:E, MATCH(J1216, raw_resource_build!B:B, 0)))","v":""},{"$f":"IF(J1216=\"\", \"\", INDEX(raw_resource_build!C:C, MATCH(J1216, raw_resource_build!B:B, 0)))","v":""},null,{"$f":"raw_resource_build!B1216","v":"LDWP_Peaker"},"Non-wind",{"$f":"IFERROR(INDEX($E$5:$E$32,MATCH(raw_resource_build!$E1216,Lists!$B$5:$B$32,0)),\"Non-CAISO\")","v":"Non-CAISO"},null,{"$f":"raw_annual_energy!C1216","v":"NW_Geothermal_for_Other"},{"$f":"INDEX(K:K,MATCH(R1216,Lists!J:J,0))","v":"Geothermal"},"Non-wind"]
[null,null,null,null,null,null,null,null,null,{"$f":"IFERROR(INDEX(raw_resource_build!$B$2:$B$1000,MATCH(0,COUNTIF($J$1:J1216,raw_resource_build!$B$2:$B$1000), 0),0), \"\")","v":""},{"$f":"IF(J1217=\"\", \"\", INDEX(raw_resource_build!E:E, MATCH(J1217, raw_resource_build!B:B, 0)))","v":""},{"$f":"IF(J1217=\"\", \"\", INDEX(raw_resource_build!C:C, MATCH(J1217, raw_resource_build!B:B, 0)))","v":""},null,{"$f":"raw_resource_build!B1217","v":"LDWP_ST"},"Non-wind",{"$f":"IFERROR(INDEX($E$5:$E$32,MATCH(raw_resource_build!$E1217,Lists!$B$5:$B$32,0)),\"Non-CAISO\")","v":"Non-CAISO"},null,{"$f":"raw_annual_energy!C1217","v":"NW_Geothermal_for_Other"},{"$f":"INDEX(K:K,MATCH(R1217,Lists!J:J,0))","v":"Geothermal"},"Non-wind"]
[null,null,null,null,null,null,null,null,null,{"$f":"IFERROR(INDEX(raw_resource_build!$B$2:$B$1000,MATCH(0,COUNTIF($J$1:J1217,raw_resource_build!$B$2:$B$1000), 0),0), \"\")","v":""},{"$f":"IF(J1218=\"\", \"\", INDEX(raw_resource_build!E:E, MATCH(J1218, raw_resource_build!B:B, 0)))","v":""},{"$f":"IF(J1218=\"\", \"\", INDEX(raw_resource_build!C:C, MATCH(J1218, raw_resource_build!B:B, 0)))","v":""},null,{"$f":"raw_resource_build!B1218","v":"IID_CCGT"},"Non-wind",{"$f":"IFERROR(INDEX($E$5:$E$32,MATCH(raw_resource_build!$E1218,Lists!$B$5:$B$32,0)),\"Non-CAISO\")","v":"Non-CAISO"},null,{"$f":"raw_annual_energy!C1218","v":"NW_Geothermal_for_Other"},{"$f":"INDEX(K:K,MATCH(R1218,Lists!J:J,0))","v":"Geothermal"},"Non-wind"]
[null,null,null,null,null,null,null,null,null,{"$f":"IFERROR(INDEX(raw_resource_build!$B$2:$B$1000,MATCH(0,COUNTIF($J$1:J1218,raw_resource_build!$B$2:$B$1000), 0),0), \"\")","v":""},{"$f":"IF(J1219=\"\", \"\", INDEX(raw_resource_build!E:E, MATCH(J1219, raw_resource_build!B:B, 0)))","v":""},{"$f":"IF(J1219=\"\", \"\", INDEX(raw_resource_build!C:C, MATCH(J1219, raw_resource_build!B:B, 0)))","v":""},null,{"$f":"raw_resource_build!B1219","v":"IID_Peaker"},{"$f":"IFERROR(INDEX($C$35:$C$99,MATCH($N1219,$B$35:$B$99,0)),\"Non-wind\")","v":"Non-wind"},{"$f":"IFERROR(INDEX($E$5:$E$32,MATCH(raw_resource_build!$E1219,Lists!$B$5:$B$32,0)),\"Non-CAISO\")","v":"Non-CAISO"},null,{"$f":"raw_annual_energy!C1219","v":"NW_Hydro"},{"$f":"INDEX(K:K,MATCH(R1219,Lists!J:J,0))","v":"Hydro"},{"$f":"IFERROR(INDEX($C$35:$C$99,MATCH($R1219,$B$35:$B$99,0)),\"Non-wind\")","v":"Non-wind"}]
[null,null,null,null,null,null,null,null,null,{"$f":"IFERROR(INDEX(raw_resource_build!$B$2:$B$1000,MATCH(0,COUNTIF($J$1:J1219,raw_resource_build!$B$2:$B$1000), 0),0), \"\")","v":""},{"$f":"IF(J1220=\"\", \"\", INDEX(raw_resource_build!E:E, MATCH(J1220, raw_resource_build!B:B, 0)))","v":""},{"$f":"IF(J1220=\"\", \"\", INDEX(raw_resource_build!C:C, MATCH(J1220, raw_resource_build!B:B, 0)))","v":""},null,{"$f":"raw_resource_build!B1220","v":"BANC_CCGT"},"Non-wind",{"$f":"IFERROR(INDEX($E$5:$E$32,MATCH(raw_resource_build!$E1220,Lists!$B$5:$B$32,0)),\"Non-CAISO\")","v":"Non-CAISO"},null,{"$f":"raw_annual_energy!C1220","v":"NW_Hydro"},{"$f":"INDEX(K:K,MATCH(R1220,Lists!J:J,0))","v":"Hydro"},"Non-wind"]
[null,null,null,null,null,null,null,null,null,{"$f":"IFERROR(INDEX(raw_resource_build!$B$2:$B$1000,MATCH(0,COUNTIF($J$1:J1220,raw_resource_build!$B$2:$B$1000), 0),0), \"\")","v":""},{"$f":"IF(J1221=\"\", \"\", INDEX(raw_resource_build!E:E, MATCH(J1221, raw_resource_build!B:B, 0)))","v":""},{"$f":"IF(J1221=\"\", \"\", INDEX(raw_resource_build!C:C, MATCH(J1221, raw_resource_build!B:B, 0)))","v":""},null,{"$f":"raw_resource_build!B1221","v":"BANC_Peaker"},"Non-wind",{"$f":"IFERROR(INDEX($E$5:$E$32,MATCH(raw_resource_build!$E1221,Lists!$B$5:$B$32,0)),\"Non-CAISO\")","v":"Non-CAISO"},null,{"$f":"raw_annual_energy!C1221","v":"NW_Hydro"},{"$f":"INDEX(K:K,MATCH(R1221,Lists!J:J,0))","v":"Hydro"},"Non-wind"]
[null,null,null,null,null,null,null,null,null,{"$f":"IFERROR(INDEX(raw_resource_build!$B$2:$B$1000,MATCH(0,COUNTIF($J$1:J1221,raw_resource_build!$B$2:$B$1000), 0),0), \"\")","v":""},{"$f":"IF(J1222=\"\", \"\", INDEX(raw_resource_build!E:E, MATCH(J1222, raw_resource_build!B:B, 0)))","v":""},{"$f":"IF(J1222=\"\", \"\", INDEX(raw_resource_build!C:C, MATCH(J1222, raw_resource_build!B:B, 0)))","v":""},null,{"$f":"raw_resource_build!B1222","v":"BANC_Biomass_for_Other"},"Non-wind",{"$f":"IFERROR(INDEX($E$5:$E$32,MATCH(raw_resource_build!$E1222,Lists!$B$5:$B$32,0)),\"Non-CAISO\")","v":"Biomass"},null,{"$f":"raw_annual_energy!C1222","v":"NW_Hydro"},{"$f":"INDEX(K:K,MATCH(R1222,Lists!J:J,0))","v":"Hydro"},"Non-wind"]
[null,null,null,null,null,null,null,null,null,{"$f":"IFERROR(INDEX(raw_resource_build!$B$2:$B$1000,MATCH(0,COUNTIF($J$1:J1222,raw_resource_build!$B$2:$B$1000), 0),0), \"\")","v":""},{"$f":"IF(J1223=\"\", \"\", INDEX(raw_resource_build!E:E, MATCH(J1223, raw_resource_build!B:B, 0)))","v":""},{"$f":"IF(J1223=\"\", \"\", INDEX(raw_resource_build!C:C, MATCH(J1223, raw_resource_build!B:B, 0)))","v":""},null,{"$f":"raw_resource_build!B1223","v":"BANC_Geothermal_for_Other"},"Non-wind",{"$f":"IFERROR(INDEX($E$5:$E$32,MATCH(raw_resource_build!$E1223,Lists!$B$5:$B$32,0)),\"Non-CAISO\")","v":"Geothermal"},null,{"$f":"raw_annual_energy!C1223","v":"NW_Hydro"},{"$f":"INDEX(K:K,MATCH(R1223,Lists!J:J,0))","v":"Hydro"},"Non-wind"]
[null,null,null,null,null,null,null,null,null,{"$f":"IFERROR(INDEX(raw_resource_build!$B$2:$B$1000,MATCH(0,COUNTIF($J$1:J1223,raw_resource_build!$B$2:$B$1000), 0),0), \"\")","v":""},{"$f":"IF(J1224=\"\", \"\", INDEX(raw_resource_build!E:E, MATCH(J1224, raw_resource_build!B:B, 0)))","v":""},{"$f":"IF(J1224=\"\", \"\", INDEX(raw_resource_build!C:C, MATCH(J1224, raw_resource_build!B:B, 0)))","v":""},null,{"$f":"raw_resource_build!B1224","v":"CAISO_Biomass_for_Other"},"Non-wind",{"$f":"IFERROR(INDEX($E$5:$E$32,MATCH(raw_resource_build!$E1224,Lists!$B$5:$B$32,0)),\"Non-CAISO\")","v":"Biomass"},null,{"$f":"raw_annual_energy!C1224","v":"NW_Hydro"},{"$f":"INDEX(K:K,MATCH(R1224,Lists!J:J,0))","v":"Hydro"},"Non-wind"]
[null,null,null,null,null,null,null,null,null,{"$f":"IFERROR(INDEX(raw_resource_build!$B$2:$B$1000,MATCH(0,COUNTIF($J$1:J1224,raw_resource_build!$B$2:$B$1000), 0),0), \"\")","v":""},{"$f":"IF(J1225=\"\", \"\", INDEX(raw_resource_build!E:E, MATCH(J1225, raw_resource_build!B:B, 0)))","v":""},{"$f":"IF(J1225=\"\", \"\", INDEX(raw_resource_build!C:C, MATCH(J1225, raw_resource_build!B:B, 0)))","v":""},null,{"$f":"raw_resource_build!B1225","v":"CAISO_Geothermal_for_Other"},"Non-wind",{"$f":"IFERROR(INDEX($E$5:$E$32,MATCH(raw_resource_build!$E1225,Lists!$B$5:$B$32,0)),\"Non-CAISO\")","v":"Geothermal"},null,{"$f":"raw_annual_energy!C1225","v":"NW_Hydro"},{"$f":"INDEX(K:K,MATCH(R1225,Lists!J:J,0))","v":"Hydro"},"Non-wind"]
[null,null,null,null,null,null,null,null,null,{"$f":"IFERROR(INDEX(raw_resource_build!$B$2:$B$1000,MATCH(0,COUNTIF($J$1:J1225,raw_resource_build!$B$2:$B$1000), 0),0), \"\")","v":""},{"$f":"IF(J1226=\"\", \"\", INDEX(raw_resource_build!E:E, MATCH(J1226, raw_resource_build!B:B, 0)))","v":""},{"$f":"IF(J1226=\"\", \"\", INDEX(raw_resource_build!C:C, MATCH(J1226, raw_resource_build!B:B, 0)))","v":""},null,{"$f":"raw_resource_build!B1226","v":"IID_Biomass_for_Other"},"Non-wind",{"$f":"IFERROR(INDEX($E$5:$E$32,MATCH(raw_resource_build!$E1226,Lists!$B$5:$B$32,0)),\"Non-CAISO\")","v":"Biomass"},null,{"$f":"raw_annual_energy!C1226","v":"NW_Hydro"},{"$f":"INDEX(K:K,MATCH(R1226,Lists!J:J,0))","v":"Hydro"},"Non-wind"]
[null,null,null,null,null,null,null,null,null,{"$f":"IFERROR(INDEX(raw_resource_build!$B$2:$B$1000,MATCH(0,COUNTIF($J$1:J1226,raw_resource_build!$B$2:$B$1000), 0),0), \"\")","v":""},{"$f":"IF(J1227=\"\", \"\", INDEX(raw_resource_build!E:E, MATCH(J1227, raw_resource_build!B:B, 0)))","v":""},{"$f":"IF(J1227=\"\", \"\", INDEX(raw_resource_build!C:C, MATCH(J1227, raw_resource_build!B:B, 0)))","v":""},null,{"$f":"raw_resource_build!B1227","v":"IID_Geothermal_for_Other"},"Non-wind",{"$f":"IFERROR(INDEX($E$5:$E$32,MATCH(raw_resource_build!$E1227,Lists!$B$5:$B$32,0)),\"Non-CAISO\")","v":"Geothermal"},null,{"$f":"raw_annual_energy!C1227","v":"NW_Nuclear"},{"$f":"INDEX(K:K,MATCH(R1227,Lists!J:J,0))","v":"NW_Nuclear"},"Non-wind"]
[null,null,null,null,null,null,null,null,null,{"$f":"IFERROR(INDEX(raw_resource_build!$B$2:$B$1000,MATCH(0,COUNTIF($J$1:J1227,raw_resource_build!$B$2:$B$1000), 0),0), \"\")","v":""},{"$f":"IF(J1228=\"\", \"\", INDEX(raw_resource_build!E:E, MATCH(J1228, raw_resource_build!B:B, 0)))","v":""},{"$f":"IF(J1228=\"\", \"\", INDEX(raw_resource_build!C:C, MATCH(J1228, raw_resource_build!B:B, 0)))","v":""},null,{"$f":"raw_resource_build!B1228","v":"LDWP_Biomass_for_Other"},"Non-wind",{"$f":"IFERROR(INDEX($E$5:$E$32,MATCH(raw_resource_build!$E1228,Lists!$B$5:$B$32,0)),\"Non-CAISO\")","v":"Biomass"},null,{"$f":"raw_annual_energy!C1228","v":"NW_Nuclear"},{"$f":"INDEX(K:K,MATCH(R1228,Lists!J:J,0))","v":"NW_Nuclear"},"Non-wind"]
[null,null,null,null,null,null,null,null,null,{"$f":"IFERROR(INDEX(raw_resource_build!$B$2:$B$1000,MATCH(0,COUNTIF($J$1:J1228,raw_resource_build!$B$2:$B$1000), 0),0), \"\")","v":""},{"$f":"IF(J1229=\"\", \"\", INDEX(raw_resource_build!E:E, MATCH(J1229, raw_resource_build!B:B, 0)))","v":""},{"$f":"IF(J1229=\"\", \"\", INDEX(raw_resource_build!C:C, MATCH(J1229, raw_resource_build!B:B, 0)))","v":""},null,{"$f":"raw_resource_build!B1229","v":"LDWP_Geothermal_for_Other"},"Non-wind",{"$f":"IFERROR(INDEX($E$5:$E$32,MATCH(raw_resource_build!$E1229,Lists!$B$5:$B$32,0)),\"Non-CAISO\")","v":"Geothermal"},null,{"$f":"raw_annual_energy!C1229","v":"NW_Nuclear"},{"$f":"INDEX(K:K,MATCH(R1229,Lists!J:J,0))","v":"NW_Nuclear"},"Non-wind"]
[null,null,null,null,null,null,null,null,null,{"$f":"IFERROR(INDEX(raw_resource_build!$B$2:$B$1000,MATCH(0,COUNTIF($J$1:J1229,raw_resource_build!$B$2:$B$1000), 0),0), \"\")","v":""},{"$f":"IF(J1230=\"\", \"\", INDEX(raw_resource_build!E:E, MATCH(J1230, raw_resource_build!B:B, 0)))","v":""},{"$f":"IF(J1230=\"\", \"\", INDEX(raw_resource_build!C:C, MATCH(J1230, raw_resource_build!B:B, 0)))","v":""},null,{"$f":"raw_resource_build!B1230","v":"NW_Biomass_for_Other"},"Non-wind",{"$f":"IFERROR(INDEX($E$5:$E$32,MATCH(raw_resource_build!$E1230,Lists!$B$5:$B$32,0)),\"Non-CAISO\")","v":"Biomass"},null,{"$f":"raw_annual_energy!C1230","v":"NW_Nuclear"},{"$f":"INDEX(K:K,MATCH(R1230,Lists!J:J,0))","v":"NW_Nuclear"},"Non-wind"]
[null,null,null,null,null,null,null,null,null,{"$f":"IFERROR(INDEX(raw_resource_build!$B$2:$B$1000,MATCH(0,COUNTIF($J$1:J1230,raw_resource_build!$B$2:$B$1000), 0),0), \"\")","v":""},{"$f":"IF(J1231=\"\", \"\", INDEX(raw_resource_build!E:E, MATCH(J1231, raw_resource_build!B:B, 0)))","v":""},{"$f":"IF(J1231=\"\", \"\", INDEX(raw_resource_build!C:C, MATCH(J1231, raw_resource_build!B:B, 0)))","v":""},null,{"$f":"raw_resource_build!B1231","v":"NW_Geothermal_for_Other"},"Non-wind",{"$f":"IFERROR(INDEX($E$5:$E$32,MATCH(raw_resource_build!$E1231,Lists!$B$5:$B$32,0)),\"Non-CAISO\")","v":"Geothermal"},null,{"$f":"raw_annual_energy!C1231","v":"NW_Nuclear"},{"$f":"INDEX(K:K,MATCH(R1231,Lists!J:J,0))","v":"NW_Nuclear"},"Non-wind"]
[null,null,null,null,null,null,null,null,null,{"$f":"IFERROR(INDEX(raw_resource_build!$B$2:$B$1000,MATCH(0,COUNTIF($J$1:J1231,raw_resource_build!$B$2:$B$1000), 0),0), \"\")","v":""},{"$f":"IF(J1232=\"\", \"\", INDEX(raw_resource_build!E:E, MATCH(J1232, raw_resource_build!B:B, 0)))","v":""},{"$f":"IF(J1232=\"\", \"\", INDEX(raw_resource_build!C:C, MATCH(J1232, raw_resource_build!B:B, 0)))","v":""},null,{"$f":"raw_resource_build!B1232","v":"SW_Biomass_for_Other"},"Non-wind",{"$f":"IFERROR(INDEX($E$5:$E$32,MATCH(raw_resource_build!$E1232,Lists!$B$5:$B$32,0)),\"Non-CAISO\")","v":"Biomass"},null,{"$f":"raw_annual_energy!C1232","v":"NW_Nuclear"},{"$f":"INDEX(K:K,MATCH(R1232,Lists!J:J,0))","v":"NW_Nuclear"},"Non-wind"]
[null,null,null,null,null,null,null,null,null,{"$f":"IFERROR(INDEX(raw_resource_build!$B$2:$B$1000,MATCH(0,COUNTIF($J$1:J1232,raw_resource_build!$B$2:$B$1000), 0),0), \"\")","v":""},{"$f":"IF(J1233=\"\", \"\", INDEX(raw_resource_build!E:E, MATCH(J1233, raw_resource_build!B:B, 0)))","v":""},{"$f":"IF(J1233=\"\", \"\", INDEX(raw_resource_build!C:C, MATCH(J1233, raw_resource_build!B:B, 0)))","v":""},null,{"$f":"raw_resource_build!B1233","v":"SW_Geothermal_for_Other"},"Non-wind",{"$f":"IFERROR(INDEX($E$5:$E$32,MATCH(raw_resource_build!$E1233,Lists!$B$5:$B$32,0)),\"Non-CAISO\")","v":"Geothermal"},null,{"$f":"raw_annual_energy!C1233","v":"NW_Nuclear"},{"$f":"INDEX(K:K,MATCH(R1233,Lists!J:J,0))","v":"NW_Nuclear"},"Non-wind"]
[null,null,null,null,null,null,null,null,null,{"$f":"IFERROR(INDEX(raw_resource_build!$B$2:$B$1000,MATCH(0,COUNTIF($J$1:J1233,raw_resource_build!$B$2:$B$1000), 0),0), \"\")","v":""},{"$f":"IF(J1234=\"\", \"\", INDEX(raw_resource_build!E:E, MATCH(J1234, raw_resource_build!B:B, 0)))","v":""},{"$f":"IF(J1234=\"\", \"\", INDEX(raw_resource_build!C:C, MATCH(J1234, raw_resource_build!B:B, 0)))","v":""},null,{"$f":"raw_resource_build!B1234","v":"CAISO_Biomass_for_CAISO"},"Non-wind",{"$f":"IFERROR(INDEX($E$5:$E$32,MATCH(raw_resource_build!$E1234,Lists!$B$5:$B$32,0)),\"Non-CAISO\")","v":"Biomass"},null,{"$f":"raw_annual_energy!C1234","v":"NW_Nuclear"},{"$f":"INDEX(K:K,MATCH(R1234,Lists!J:J,0))","v":"NW_Nuclear"},"Non-wind"]
[null,null,null,null,null,null,null,null,null,{"$f":"IFERROR(INDEX(raw_resource_build!$B$2:$B$1000,MATCH(0,COUNTIF($J$1:J1234,raw_resource_build!$B$2:$B$1000), 0),0), \"\")","v":""},{"$f":"IF(J1235=\"\", \"\", INDEX(raw_resource_build!E:E, MATCH(J1235, raw_resource_build!B:B, 0)))","v":""},{"$f":"IF(J1235=\"\", \"\", INDEX(raw_resource_build!C:C, MATCH(J1235, raw_resource_build!B:B, 0)))","v":""},null,{"$f":"raw_resource_build!B1235","v":"CAISO_Geothermal_for_CAISO"},"Non-wind",{"$f":"IFERROR(INDEX($E$5:$E$32,MATCH(raw_resource_build!$E1235,Lists!$B$5:$B$32,0)),\"Non-CAISO\")","v":"Geothermal"},null,{"$f":"raw_annual_energy!C1235","v":"NW_Peaker"},{"$f":"INDEX(K:K,MATCH(R1235,Lists!J:J,0))","v":"NW_Peaker"},"Non-wind"]
[null,null,null,null,null,null,null,null,null,{"$f":"IFERROR(INDEX(raw_resource_build!$B$2:$B$1000,MATCH(0,COUNTIF($J$1:J1235,raw_resource_build!$B$2:$B$1000), 0),0), \"\")","v":""},{"$f":"IF(J1236=\"\", \"\", INDEX(raw_resource_build!E:E, MATCH(J1236, raw_resource_build!B:B, 0)))","v":""},{"$f":"IF(J1236=\"\", \"\", INDEX(raw_resource_build!C:C, MATCH(J1236, raw_resource_build!B:B, 0)))","v":""},null,{"$f":"raw_resource_build!B1236","v":"IID_Geothermal_for_CAISO"},"Non-wind",{"$f":"IFERROR(INDEX($E$5:$E$32,MATCH(raw_resource_build!$E1236,Lists!$B$5:$B$32,0)),\"Non-CAISO\")","v":"Geothermal"},null,{"$f":"raw_annual_energy!C1236","v":"NW_Peaker"},{"$f":"INDEX(K:K,MATCH(R1236,Lists!J:J,0))","v":"NW_Peaker"},"Non-wind"]
[null,null,null,null,null,null,null,null,null,{"$f":"IFERROR(INDEX(raw_resource_build!$B$2:$B$1000,MATCH(0,COUNTIF($J$1:J1236,raw_resource_build!$B$2:$B$1000), 0),0), \"\")","v":""},{"$f":"IF(J1237=\"\", \"\", INDEX(raw_resource_build!E:E, MATCH(J1237, raw_resource_build!B:B, 0)))","v":""},{"$f":"IF(J1237=\"\", \"\", INDEX(raw_resource_build!C:C, MATCH(J1237, raw_resource_build!B:B, 0)))","v":""},null,{"$f":"raw_resource_build!B1237","v":"NW_Biomass_for_CAISO"},"Non-wind",{"$f":"IFERROR(INDEX($E$5:$E$32,MATCH(raw_resource_build!$E1237,Lists!$B$5:$B$32,0)),\"Non-CAISO\")","v":"Biomass"},null,{"$f":"raw_annual_energy!C1237","v":"NW_Peaker"},{"$f":"INDEX(K:K,MATCH(R1237,Lists!J:J,0))","v":"NW_Peaker"},"Non-wind"]
[null,null,null,null,null,null,null,null,null,{"$f":"IFERROR(INDEX(raw_resource_build!$B$2:$B$1000,MATCH(0,COUNTIF($J$1:J1237,raw_resource_build!$B$2:$B$1000), 0),0), \"\")","v":""},{"$f":"IF(J1238=\"\", \"\", INDEX(raw_resource_build!E:E, MATCH(J1238, raw_resource_build!B:B, 0)))","v":""},{"$f":"IF(J1238=\"\", \"\", INDEX(raw_resource_build!C:C, MATCH(J1238, raw_resource_build!B:B, 0)))","v":""},null,{"$f":"raw_resource_build!B1238","v":"NW_Geothermal_for_CAISO"},"Non-wind",{"$f":"IFERROR(INDEX($E$5:$E$32,MATCH(raw_resource_build!$E1238,Lists!$B$5:$B$32,0)),\"Non-CAISO\")","v":"Geothermal"},null,{"$f":"raw_annual_energy!C1238","v":"NW_Peaker"},{"$f":"INDEX(K:K,MATCH(R1238,Lists!J:J,0))","v":"NW_Peaker"},"Non-wind"]
[null,null,null,null,null,null,null,null,null,{"$f":"IFERROR(INDEX(raw_resource_build!$B$2:$B$1000,MATCH(0,COUNTIF($J$1:J1238,raw_resource_build!$B$2:$B$1000), 0),0), \"\")","v":""},{"$f":"IF(J1239=\"\", \"\", INDEX(raw_resource_build!E:E, MATCH(J1239, raw_resource_build!B:B, 0)))","v":""},{"$f":"IF(J1239=\"\", \"\", INDEX(raw_resource_build!C:C, MATCH(J1239, raw_resource_build!B:B, 0)))","v":""},null,{"$f":"raw_resource_build!B1239","v":"InState_Biomass"},"In-State",{"$f":"IFERROR(INDEX($E$5:$E$32,MATCH(raw_resource_build!$E1239,Lists!$B$5:$B$32,0)),\"Non-CAISO\")","v":"Biomass"},null,{"$f":"raw_annual_energy!C1239","v":"NW_Peaker"},{"$f":"INDEX(K:K,MATCH(R1239,Lists!J:J,0))","v":"NW_Peaker"},"Non-wind"]
[null,null,null,null,null,null,null,null,null,{"$f":"IFERROR(INDEX(raw_resource_build!$B$2:$B$1000,MATCH(0,COUNTIF($J$1:J1239,raw_resource_build!$B$2:$B$1000), 0),0), \"\")","v":""},{"$f":"IF(J1240=\"\", \"\", INDEX(raw_resource_build!E:E, MATCH(J1240, raw_resource_build!B:B, 0)))","v":""},{"$f":"IF(J1240=\"\", \"\", INDEX(raw_resource_build!C:C, MATCH(J1240, raw_resource_build!B:B, 0)))","v":""},null,{"$f":"raw_resource_build!B1240","v":"CAISO_Small_Hydro_for_CAISO"},"Non-wind",{"$f":"IFERROR(INDEX($E$5:$E$32,MATCH(raw_resource_build!$E1240,Lists!$B$5:$B$32,0)),\"Non-CAISO\")","v":"Hydro (small + large)"},null,{"$f":"raw_annual_energy!C1240","v":"NW_Peaker"},{"$f":"INDEX(K:K,MATCH(R1240,Lists!J:J,0))","v":"NW_Peaker"},"Non-wind"]
[null,null,null,null,null,null,null,null,null,{"$f":"IFERROR(INDEX(raw_resource_build!$B$2:$B$1000,MATCH(0,COUNTIF($J$1:J1240,raw_resource_build!$B$2:$B$1000), 0),0), \"\")","v":""},{"$f":"IF(J1241=\"\", \"\", INDEX(raw_resource_build!E:E, MATCH(J1241, raw_resource_build!B:B, 0)))","v":""},{"$f":"IF(J1241=\"\", \"\", INDEX(raw_resource_build!C:C, MATCH(J1241, raw_resource_build!B:B, 0)))","v":""},null,{"$f":"raw_resource_build!B1241","v":"BANC_Small_Hydro_for_CAISO"},"Non-wind",{"$f":"IFERROR(INDEX($E$5:$E$32,MATCH(raw_resource_build!$E1241,Lists!$B$5:$B$32,0)),\"Non-CAISO\")","v":"Hydro (small + large)"},null,{"$f":"raw_annual_energy!C1241","v":"NW_Peaker"},{"$f":"INDEX(K:K,MATCH(R1241,Lists!J:J,0))","v":"NW_Peaker"},"Non-wind"]
[null,null,null,null,null,null,null,null,null,{"$f":"IFERROR(INDEX(raw_resource_build!$B$2:$B$1000,MATCH(0,COUNTIF($J$1:J1241,raw_resource_build!$B$2:$B$1000), 0),0), \"\")","v":""},{"$f":"IF(J1242=\"\", \"\", INDEX(raw_resource_build!E:E, MATCH(J1242, raw_resource_build!B:B, 0)))","v":""},{"$f":"IF(J1242=\"\", \"\", INDEX(raw_resource_build!C:C, MATCH(J1242, raw_resource_build!B:B, 0)))","v":""},null,{"$f":"raw_resource_build!B1242","v":"NW_Small_Hydro_for_CAISO"},"Non-wind",{"$f":"IFERROR(INDEX($E$5:$E$32,MATCH(raw_resource_build!$E1242,Lists!$B$5:$B$32,0)),\"Non-CAISO\")","v":"Hydro (small + large)"},null,{"$f":"raw_annual_energy!C1242","v":"NW_Peaker"},{"$f":"INDEX(K:K,MATCH(R1242,Lists!J:J,0))","v":"NW_Peaker"},"Non-wind"]
[null,null,null,null,null,null,null,null,null,{"$f":"IFERROR(INDEX(raw_resource_build!$B$2:$B$1000,MATCH(0,COUNTIF($J$1:J1242,raw_resource_build!$B$2:$B$1000), 0),0), \"\")","v":""},{"$f":"IF(J1243=\"\", \"\", INDEX(raw_resource_build!E:E, MATCH(J1243, raw_resource_build!B:B, 0)))","v":""},{"$f":"IF(J1243=\"\", \"\", INDEX(raw_resource_build!C:C, MATCH(J1243, raw_resource_build!B:B, 0)))","v":""},null,{"$f":"raw_resource_build!B1243","v":"CAISO_Small_Hydro_for_Other"},"Non-wind",{"$f":"IFERROR(INDEX($E$5:$E$32,MATCH(raw_resource_build!$E1243,Lists!$B$5:$B$32,0)),\"Non-CAISO\")","v":"Hydro (small + large)"},null,{"$f":"raw_annual_energy!C1243","v":"NW_Small_Hydro_for_Other"},{"$f":"INDEX(K:K,MATCH(R1243,Lists!J:J,0))","v":"Small_Hydro"},"Non-wind"]
[null,null,null,null,null,null,null,null,null,{"$f":"IFERROR(INDEX(raw_resource_build!$B$2:$B$1000,MATCH(0,COUNTIF($J$1:J1243,raw_resource_build!$B$2:$B$1000), 0),0), \"\")","v":""},{"$f":"IF(J1244=\"\", \"\", INDEX(raw_resource_build!E:E, MATCH(J1244, raw_resource_build!B:B, 0)))","v":""},{"$f":"IF(J1244=\"\", \"\", INDEX(raw_resource_build!C:C, MATCH(J1244, raw_resource_build!B:B, 0)))","v":""},null,{"$f":"raw_resource_build!B1244","v":"BANC_Small_Hydro_for_Other"},"Non-wind",{"$f":"IFERROR(INDEX($E$5:$E$32,MATCH(raw_resource_build!$E1244,Lists!$B$5:$B$32,0)),\"Non-CAISO\")","v":"Hydro (small + large)"},null,{"$f":"raw_annual_energy!C1244","v":"NW_Small_Hydro_for_Other"},{"$f":"INDEX(K:K,MATCH(R1244,Lists!J:J,0))","v":"Small_Hydro"},"Non-wind"]
[null,null,null,null,null,null,null,null,null,{"$f":"IFERROR(INDEX(raw_resource_build!$B$2:$B$1000,MATCH(0,COUNTIF($J$1:J1244,raw_resource_build!$B$2:$B$1000), 0),0), \"\")","v":""},{"$f":"IF(J1245=\"\", \"\", INDEX(raw_resource_build!E:E, MATCH(J1245, raw_resource_build!B:B, 0)))","v":""},{"$f":"IF(J1245=\"\", \"\", INDEX(raw_resource_build!C:C, MATCH(J1245, raw_resource_build!B:B, 0)))","v":""},null,{"$f":"raw_resource_build!B1245","v":"IID_Small_Hydro_for_Other"},"Non-wind",{"$f":"IFERROR(INDEX($E$5:$E$32,MATCH(raw_resource_build!$E1245,Lists!$B$5:$B$32,0)),\"Non-CAISO\")","v":"Hydro (small + large)"},null,{"$f":"raw_annual_energy!C1245","v":"NW_Small_Hydro_for_Other"},{"$f":"INDEX(K:K,MATCH(R1245,Lists!J:J,0))","v":"Small_Hydro"},"Non-wind"]
[null,null,null,null,null,null,null,null,null,{"$f":"IFERROR(INDEX(raw_resource_build!$B$2:$B$1000,MATCH(0,COUNTIF($J$1:J1245,raw_resource_build!$B$2:$B$1000), 0),0), \"\")","v":""},{"$f":"IF(J1246=\"\", \"\", INDEX(raw_resource_build!E:E, MATCH(J1246, raw_resource_build!B:B, 0)))","v":""},{"$f":"IF(J1246=\"\", \"\", INDEX(raw_resource_build!C:C, MATCH(J1246, raw_resource_build!B:B, 0)))","v":""},null,{"$f":"raw_resource_build!B1246","v":"LDWP_Small_Hydro_for_Other"},"Non-wind",{"$f":"IFERROR(INDEX($E$5:$E$32,MATCH(raw_resource_build!$E1246,Lists!$B$5:$B$32,0)),\"Non-CAISO\")","v":"Hydro (small + large)"},null,{"$f":"raw_annual_energy!C1246","v":"NW_Small_Hydro_for_Other"},{"$f":"INDEX(K:K,MATCH(R1246,Lists!J:J,0))","v":"Small_Hydro"},"Non-wind"]
[null,null,null,null,null,null,null,null,null,{"$f":"IFERROR(INDEX(raw_resource_build!$B$2:$B$1000,MATCH(0,COUNTIF($J$1:J1246,raw_resource_build!$B$2:$B$1000), 0),0), \"\")","v":""},{"$f":"IF(J1247=\"\", \"\", INDEX(raw_resource_build!E:E, MATCH(J1247, raw_resource_build!B:B, 0)))","v":""},{"$f":"IF(J1247=\"\", \"\", INDEX(raw_resource_build!C:C, MATCH(J1247, raw_resource_build!B:B, 0)))","v":""},null,{"$f":"raw_resource_build!B1247","v":"NW_Small_Hydro_for_Other"},"Non-wind",{"$f":"IFERROR(INDEX($E$5:$E$32,MATCH(raw_resource_build!$E1247,Lists!$B$5:$B$32,0)),\"Non-CAISO\")","v":"Hydro (small + large)"},null,{"$f":"raw_annual_energy!C1247","v":"NW_Small_Hydro_for_Other"},{"$f":"INDEX(K:K,MATCH(R1247,Lists!J:J,0))","v":"Small_Hydro"},"Non-wind"]
[null,null,null,null,null,null,null,null,null,{"$f":"IFERROR(INDEX(raw_resource_build!$B$2:$B$1000,MATCH(0,COUNTIF($J$1:J1247,raw_resource_build!$B$2:$B$1000), 0),0), \"\")","v":""},{"$f":"IF(J1248=\"\", \"\", INDEX(raw_resource_build!E:E, MATCH(J1248, raw_resource_build!B:B, 0)))","v":""},{"$f":"IF(J1248=\"\", \"\", INDEX(raw_resource_build!C:C, MATCH(J1248, raw_resource_build!B:B, 0)))","v":""},null,{"$f":"raw_resource_build!B1248","v":"SW_Small_Hydro_for_Other"},"Non-wind",{"$f":"IFERROR(INDEX($E$5:$E$32,MATCH(raw_resource_build!$E1248,Lists!$B$5:$B$32,0)),\"Non-CAISO\")","v":"Hydro (small + large)"},null,{"$f":"raw_annual_energy!C1248","v":"NW_Small_Hydro_for_Other"},{"$f":"INDEX(K:K,MATCH(R1248,Lists!J:J,0))","v":"Small_Hydro"},"Non-wind"]
[null,null,null,null,null,null,null,null,null,{"$f":"IFERROR(INDEX(raw_resource_build!$B$2:$B$1000,MATCH(0,COUNTIF($J$1:J1248,raw_resource_build!$B$2:$B$1000), 0),0), \"\")","v":""},{"$f":"IF(J1249=\"\", \"\", INDEX(raw_resource_build!E:E, MATCH(J1249, raw_resource_build!B:B, 0)))","v":""},{"$f":"IF(J1249=\"\", \"\", INDEX(raw_resource_build!C:C, MATCH(J1249, raw_resource_build!B:B, 0)))","v":""},null,{"$f":"raw_resource_build!B1249","v":"Greater_Imperial_Geothermal"},"In-State",{"$f":"IFERROR(INDEX($E$5:$E$32,MATCH(raw_resource_build!$E1249,Lists!$B$5:$B$32,0)),\"Non-CAISO\")","v":"Geothermal"},null,{"$f":"raw_annual_energy!C1249","v":"NW_Small_Hydro_for_Other"},{"$f":"INDEX(K:K,MATCH(R1249,Lists!J:J,0))","v":"Small_Hydro"},"Non-wind"]
[null,null,null,null,null,null,null,null,null,{"$f":"IFERROR(INDEX(raw_resource_build!$B$2:$B$1000,MATCH(0,COUNTIF($J$1:J1249,raw_resource_build!$B$2:$B$1000), 0),0), \"\")","v":""},{"$f":"IF(J1250=\"\", \"\", INDEX(raw_resource_build!E:E, MATCH(J1250, raw_resource_build!B:B, 0)))","v":""},{"$f":"IF(J1250=\"\", \"\", INDEX(raw_resource_build!C:C, MATCH(J1250, raw_resource_build!B:B, 0)))","v":""},null,{"$f":"raw_resource_build!B1250","v":"Inyokern_North_Kramer_Geothermal"},"In-State",{"$f":"IFERROR(INDEX($E$5:$E$32,MATCH(raw_resource_build!$E1250,Lists!$B$5:$B$32,0)),\"Non-CAISO\")","v":"Geothermal"},null,{"$f":"raw_annual_energy!C1250","v":"NW_Small_Hydro_for_Other"},{"$f":"INDEX(K:K,MATCH(R1250,Lists!J:J,0))","v":"Small_Hydro"},"Non-wind"]
[null,null,null,null,null,null,null,null,null,{"$f":"IFERROR(INDEX(raw_resource_build!$B$2:$B$1000,MATCH(0,COUNTIF($J$1:J1250,raw_resource_build!$B$2:$B$1000), 0),0), \"\")","v":""},{"$f":"IF(J1251=\"\", \"\", INDEX(raw_resource_build!E:E, MATCH(J1251, raw_resource_build!B:B, 0)))","v":""},{"$f":"IF(J1251=\"\", \"\", INDEX(raw_resource_build!C:C, MATCH(J1251, raw_resource_build!B:B, 0)))","v":""},null,{"$f":"raw_resource_build!B1251","v":"Northern_California_Ex_Geothermal"},"In-State",{"$f":"IFERROR(INDEX($E$5:$E$32,MATCH(raw_resource_build!$E1251,Lists!$B$5:$B$32,0)),\"Non-CAISO\")","v":"Geothermal"},null,{"$f":"raw_annual_energy!C1251","v":"NW_Solar_for_Other"},{"$f":"INDEX(K:K,MATCH(R1251,Lists!J:J,0))","v":"Solar"},"Non-wind"]
[null,null,null,null,null,null,null,null,null,{"$f":"IFERROR(INDEX(raw_resource_build!$B$2:$B$1000,MATCH(0,COUNTIF($J$1:J1251,raw_resource_build!$B$2:$B$1000), 0),0), \"\")","v":""},{"$f":"IF(J1252=\"\", \"\", INDEX(raw_resource_build!E:E, MATCH(J1252, raw_resource_build!B:B, 0)))","v":""},{"$f":"IF(J1252=\"\", \"\", INDEX(raw_resource_build!C:C, MATCH(J1252, raw_resource_build!B:B, 0)))","v":""},null,{"$f":"raw_resource_build!B1252","v":"Pacific_Northwest_Geothermal"},"Out-Of-State",{"$f":"IFERROR(INDEX($E$5:$E$32,MATCH(raw_resource_build!$E1252,Lists!$B$5:$B$32,0)),\"Non-CAISO\")","v":"Geothermal"},null,{"$f":"raw_annual_energy!C1252","v":"NW_Solar_for_Other"},{"$f":"INDEX(K:K,MATCH(R1252,Lists!J:J,0))","v":"Solar"},"Non-wind"]
[null,null,null,null,null,null,null,null,null,{"$f":"IFERROR(INDEX(raw_resource_build!$B$2:$B$1000,MATCH(0,COUNTIF($J$1:J1252,raw_resource_build!$B$2:$B$1000), 0),0), \"\")","v":""},{"$f":"IF(J1253=\"\", \"\", INDEX(raw_resource_build!E:E, MATCH(J1253, raw_resource_build!B:B, 0)))","v":""},{"$f":"IF(J1253=\"\", \"\", INDEX(raw_resource_build!C:C, MATCH(J1253, raw_resource_build!B:B, 0)))","v":""},null,{"$f":"raw_resource_build!B1253","v":"Riverside_Palm_Springs_Geothermal"},"In-State",{"$f":"IFERROR(INDEX($E$5:$E$32,MATCH(raw_resource_build!$E1253,Lists!$B$5:$B$32,0)),\"Non-CAISO\")","v":"Geothermal"},null,{"$f":"raw_annual_energy!C1253","v":"NW_Solar_for_Other"},{"$f":"INDEX(K:K,MATCH(R1253,Lists!J:J,0))","v":"Solar"},"Non-wind"]
[null,null,null,null,null,null,null,null,null,{"$f":"IFERROR(INDEX(raw_resource_build!$B$2:$B$1000,MATCH(0,COUNTIF($J$1:J1253,raw_resource_build!$B$2:$B$1000), 0),0), \"\")","v":""},{"$f":"IF(J1254=\"\", \"\", INDEX(raw_resource_build!E:E, MATCH(J1254, raw_resource_build!B:B, 0)))","v":""},{"$f":"IF(J1254=\"\", \"\", INDEX(raw_resource_build!C:C, MATCH(J1254, raw_resource_build!B:B, 0)))","v":""},null,{"$f":"raw_resource_build!B1254","v":"Solano_Geothermal"},"In-State",{"$f":"IFERROR(INDEX($E$5:$E$32,MATCH(raw_resource_build!$E1254,Lists!$B$5:$B$32,0)),\"Non-CAISO\")","v":"Geothermal"},null,{"$f":"raw_annual_energy!C1254","v":"NW_Solar_for_Other"},{"$f":"INDEX(K:K,MATCH(R1254,Lists!J:J,0))","v":"Solar"},"Non-wind"]
[null,null,null,null,null,null,null,null,null,{"$f":"IFERROR(INDEX(raw_resource_build!$B$2:$B$1000,MATCH(0,COUNTIF($J$1:J1254,raw_resource_build!$B$2:$B$1000), 0),0), \"\")","v":""},{"$f":"IF(J1255=\"\", \"\", INDEX(raw_resource_build!E:E, MATCH(J1255, raw_resource_build!B:B, 0)))","v":""},{"$f":"IF(J1255=\"\", \"\", INDEX(raw_resource_build!C:C, MATCH(J1255, raw_resource_build!B:B, 0)))","v":""},null,{"$f":"raw_resource_build!B1255","v":"Southern_Nevada_Geothermal"},"In-State",{"$f":"IFERROR(INDEX($E$5:$E$32,MATCH(raw_resource_build!$E1255,Lists!$B$5:$B$32,0)),\"Non-CAISO\")","v":"Geothermal"},null,{"$f":"raw_annual_energy!C1255","v":"NW_Solar_for_Other"},{"$f":"INDEX(K:K,MATCH(R1255,Lists!J:J,0))","v":"Solar"},"Non-wind"]
[null,null,null,null,null,null,null,null,null,{"$f":"IFERROR(INDEX(raw_resource_build!$B$2:$B$1000,MATCH(0,COUNTIF($J$1:J1255,raw_resource_build!$B$2:$B$1000), 0),0), \"\")","v":""},{"$f":"IF(J1256=\"\", \"\", INDEX(raw_resource_build!E:E, MATCH(J1256, raw_resource_build!B:B, 0)))","v":""},{"$f":"IF(J1256=\"\", \"\", INDEX(raw_resource_build!C:C, MATCH(J1256, raw_resource_build!B:B, 0)))","v":""},null,{"$f":"raw_resource_build!B1256","v":"Customer_PV"},"Non-wind",{"$f":"IFERROR(INDEX($E$5:$E$32,MATCH(raw_resource_build!$E1256,Lists!$B$5:$B$32,0)),\"Non-CAISO\")","v":"Renewables"},null,{"$f":"raw_annual_energy!C1256","v":"NW_Solar_for_Other"},{"$f":"INDEX(K:K,MATCH(R1256,Lists!J:J,0))","v":"Solar"},"Non-wind"]
[null,null,null,null,null,null,null,null,null,{"$f":"IFERROR(INDEX(raw_resource_build!$B$2:$B$1000,MATCH(0,COUNTIF($J$1:J1256,raw_resource_build!$B$2:$B$1000), 0),0), \"\")","v":""},{"$f":"IF(J1257=\"\", \"\", INDEX(raw_resource_build!E:E, MATCH(J1257, raw_resource_build!B:B, 0)))","v":""},{"$f":"IF(J1257=\"\", \"\", INDEX(raw_resource_build!C:C, MATCH(J1257, raw_resource_build!B:B, 0)))","v":""},null,{"$f":"raw_resource_build!B1257","v":"BANC_Solar_for_Other"},"Non-wind",{"$f":"IFERROR(INDEX($E$5:$E$32,MATCH(raw_resource_build!$E1257,Lists!$B$5:$B$32,0)),\"Non-CAISO\")","v":"Renewables"},null,{"$f":"raw_annual_energy!C1257","v":"NW_Solar_for_Other"},{"$f":"INDEX(K:K,MATCH(R1257,Lists!J:J,0))","v":"Solar"},"Non-wind"]
[null,null,null,null,null,null,null,null,null,{"$f":"IFERROR(INDEX(raw_resource_build!$B$2:$B$1000,MATCH(0,COUNTIF($J$1:J1257,raw_resource_build!$B$2:$B$1000), 0),0), \"\")","v":""},{"$f":"IF(J1258=\"\", \"\", INDEX(raw_resource_build!E:E, MATCH(J1258, raw_resource_build!B:B, 0)))","v":""},{"$f":"IF(J1258=\"\", \"\", INDEX(raw_resource_build!C:C, MATCH(J1258, raw_resource_build!B:B, 0)))","v":""},null,{"$f":"raw_resource_build!B1258","v":"CAISO_Solar_for_Other"},"Non-wind",{"$f":"IFERROR(INDEX($E$5:$E$32,MATCH(raw_resource_build!$E1258,Lists!$B$5:$B$32,0)),\"Non-CAISO\")","v":"Renewables"},null,{"$f":"raw_annual_energy!C1258","v":"NW_Solar_for_Other"},{"$f":"INDEX(K:K,MATCH(R1258,Lists!J:J,0))","v":"Solar"},"Non-wind"]
[null,null,null,null,null,null,null,null,null,{"$f":"IFERROR(INDEX(raw_resource_build!$B$2:$B$1000,MATCH(0,COUNTIF($J$1:J1258,raw_resource_build!$B$2:$B$1000), 0),0), \"\")","v":""},{"$f":"IF(J1259=\"\", \"\", INDEX(raw_resource_build!E:E, MATCH(J1259, raw_resource_build!B:B, 0)))","v":""},{"$f":"IF(J1259=\"\", \"\", INDEX(raw_resource_build!C:C, MATCH(J1259, raw_resource_build!B:B, 0)))","v":""},null,{"$f":"raw_resource_build!B1259","v":"IID_Solar_for_Other"},"Non-wind",{"$f":"IFERROR(INDEX($E$5:$E$32,MATCH(raw_resource_build!$E1259,Lists!$B$5:$B$32,0)),\"Non-CAISO\")","v":"Renewables"},null,{"$f":"raw_annual_energy!C1259","v":"NW_Wind_for_Other"},{"$f":"INDEX(K:K,MATCH(R1259,Lists!J:J,0))","v":"Wind"},"Non-wind"]
[null,null,null,null,null,null,null,null,null,{"$f":"IFERROR(INDEX(raw_resource_build!$B$2:$B$1000,MATCH(0,COUNTIF($J$1:J1259,raw_resource_build!$B$2:$B$1000), 0),0), \"\")","v":""},{"$f":"IF(J1260=\"\", \"\", INDEX(raw_resource_build!E:E, MATCH(J1260, raw_resource_build!B:B, 0)))","v":""},{"$f":"IF(J1260=\"\", \"\", INDEX(raw_resource_build!C:C, MATCH(J1260, raw_resource_build!B:B, 0)))","v":""},null,{"$f":"raw_resource_build!B1260","v":"LDWP_Solar_for_Other"},"Non-wind",{"$f":"IFERROR(INDEX($E$5:$E$32,MATCH(raw_resource_build!$E1260,Lists!$B$5:$B$32,0)),\"Non-CAISO\")","v":"Renewables"},null,{"$f":"raw_annual_energy!C1260","v":"NW_Wind_for_Other"},{"$f":"INDEX(K:K,MATCH(R1260,Lists!J:J,0))","v":"Wind"},"Non-wind"]
[null,null,null,null,null,null,null,null,null,{"$f":"IFERROR(INDEX(raw_resource_build!$B$2:$B$1000,MATCH(0,COUNTIF($J$1:J1260,raw_resource_build!$B$2:$B$1000), 0),0), \"\")","v":""},{"$f":"IF(J1261=\"\", \"\", INDEX(raw_resource_build!E:E, MATCH(J1261, raw_resource_build!B:B, 0)))","v":""},{"$f":"IF(J1261=\"\", \"\", INDEX(raw_resource_build!C:C, MATCH(J1261, raw_resource_build!B:B, 0)))","v":""},null,{"$f":"raw_resource_build!B1261","v":"NW_Solar_for_Other"},"Non-wind",{"$f":"IFERROR(INDEX($E$5:$E$32,MATCH(raw_resource_build!$E1261,Lists!$B$5:$B$32,0)),\"Non-CAISO\")","v":"Renewables"},null,{"$f":"raw_annual_energy!C1261","v":"NW_Wind_for_Other"},{"$f":"INDEX(K:K,MATCH(R1261,Lists!J:J,0))","v":"Wind"},"Non-wind"]
[null,null,null,null,null,null,null,null,null,{"$f":"IFERROR(INDEX(raw_resource_build!$B$2:$B$1000,MATCH(0,COUNTIF($J$1:J1261,raw_resource_build!$B$2:$B$1000), 0),0), \"\")","v":""},{"$f":"IF(J1262=\"\", \"\", INDEX(raw_resource_build!E:E, MATCH(J1262, raw_resource_build!B:B, 0)))","v":""},{"$f":"IF(J1262=\"\", \"\", INDEX(raw_resource_build!C:C, MATCH(J1262, raw_resource_build!B:B, 0)))","v":""},null,{"$f":"raw_resource_build!B1262","v":"SW_Solar_for_Other"},"Non-wind",{"$f":"IFERROR(INDEX($E$5:$E$32,MATCH(raw_resource_build!$E1262,Lists!$B$5:$B$32,0)),\"Non-CAISO\")","v":"Renewables"},null,{"$f":"raw_annual_energy!C1262","v":"NW_Wind_for_Other"},{"$f":"INDEX(K:K,MATCH(R1262,Lists!J:J,0))","v":"Wind"},"Non-wind"]
[null,null,null,null,null,null,null,null,null,{"$f":"IFERROR(INDEX(raw_resource_build!$B$2:$B$1000,MATCH(0,COUNTIF($J$1:J1262,raw_resource_build!$B$2:$B$1000), 0),0), \"\")","v":""},{"$f":"IF(J1263=\"\", \"\", INDEX(raw_resource_build!E:E, MATCH(J1263, raw_resource_build!B:B, 0)))","v":""},{"$f":"IF(J1263=\"\", \"\", INDEX(raw_resource_build!C:C, MATCH(J1263, raw_resource_build!B:B, 0)))","v":""},null,{"$f":"raw_resource_build!B1263","v":"CAISO_Solar_for_CAISO"},"Non-wind",{"$f":"IFERROR(INDEX($E$5:$E$32,MATCH(raw_resource_build!$E1263,Lists!$B$5:$B$32,0)),\"Non-CAISO\")","v":"Renewables"},null,{"$f":"raw_annual_energy!C1263","v":"NW_Wind_for_Other"},{"$f":"INDEX(K:K,MATCH(R1263,Lists!J:J,0))","v":"Wind"},"Non-wind"]
[null,null,null,null,null,null,null,null,null,{"$f":"IFERROR(INDEX(raw_resource_build!$B$2:$B$1000,MATCH(0,COUNTIF($J$1:J1263,raw_resource_build!$B$2:$B$1000), 0),0), \"\")","v":""},{"$f":"IF(J1264=\"\", \"\", INDEX(raw_resource_build!E:E, MATCH(J1264, raw_resource_build!B:B, 0)))","v":""},{"$f":"IF(J1264=\"\", \"\", INDEX(raw_resource_build!C:C, MATCH(J1264, raw_resource_build!B:B, 0)))","v":""},null,{"$f":"raw_resource_build!B1264","v":"IID_Solar_for_CAISO"},"Non-wind",{"$f":"IFERROR(INDEX($E$5:$E$32,MATCH(raw_resource_build!$E1264,Lists!$B$5:$B$32,0)),\"Non-CAISO\")","v":"Renewables"},null,{"$f":"raw_annual_energy!C1264","v":"NW_Wind_for_Other"},{"$f":"INDEX(K:K,MATCH(R1264,Lists!J:J,0))","v":"Wind"},"Non-wind"]
[null,null,null,null,null,null,null,null,null,{"$f":"IFERROR(INDEX(raw_resource_build!$B$2:$B$1000,MATCH(0,COUNTIF($J$1:J1264,raw_resource_build!$B$2:$B$1000), 0),0), \"\")","v":""},{"$f":"IF(J1265=\"\", \"\", INDEX(raw_resource_build!E:E, MATCH(J1265, raw_resource_build!B:B, 0)))","v":""},{"$f":"IF(J1265=\"\", \"\", INDEX(raw_resource_build!C:C, MATCH(J1265, raw_resource_build!B:B, 0)))","v":""},null,{"$f":"raw_resource_build!B1265","v":"SW_Solar_for_CAISO"},"Non-wind",{"$f":"IFERROR(INDEX($E$5:$E$32,MATCH(raw_resource_build!$E1265,Lists!$B$5:$B$32,0)),\"Non-CAISO\")","v":"Renewables"},null,{"$f":"raw_annual_energy!C1265","v":"NW_Wind_for_Other"},{"$f":"INDEX(K:K,MATCH(R1265,Lists!J:J,0))","v":"Wind"},"Non-wind"]
[null,null,null,null,null,null,null,null,null,{"$f":"IFERROR(INDEX(raw_resource_build!$B$2:$B$1000,MATCH(0,COUNTIF($J$1:J1265,raw_resource_build!$B$2:$B$1000), 0),0), \"\")","v":""},{"$f":"IF(J1266=\"\", \"\", INDEX(raw_resource_build!E:E, MATCH(J1266, raw_resource_build!B:B, 0)))","v":""},{"$f":"IF(J1266=\"\", \"\", INDEX(raw_resource_build!C:C, MATCH(J1266, raw_resource_build!B:B, 0)))","v":""},null,{"$f":"raw_resource_build!B1266","v":"BANC_Wind_for_Other"},"Non-wind",{"$f":"IFERROR(INDEX($E$5:$E$32,MATCH(raw_resource_build!$E1266,Lists!$B$5:$B$32,0)),\"Non-CAISO\")","v":"Renewables"},null,{"$f":"raw_annual_energy!C1266","v":"NW_Wind_for_Other"},{"$f":"INDEX(K:K,MATCH(R1266,Lists!J:J,0))","v":"Wind"},"Non-wind"]
[null,null,null,null,null,null,null,null,null,{"$f":"IFERROR(INDEX(raw_resource_build!$B$2:$B$1000,MATCH(0,COUNTIF($J$1:J1266,raw_resource_build!$B$2:$B$1000), 0),0), \"\")","v":""},{"$f":"IF(J1267=\"\", \"\", INDEX(raw_resource_build!E:E, MATCH(J1267, raw_resource_build!B:B, 0)))","v":""},{"$f":"IF(J1267=\"\", \"\", INDEX(raw_resource_build!C:C, MATCH(J1267, raw_resource_build!B:B, 0)))","v":""},null,{"$f":"raw_resource_build!B1267","v":"CAISO_Wind_for_Other"},"Non-wind",{"$f":"IFERROR(INDEX($E$5:$E$32,MATCH(raw_resource_build!$E1267,Lists!$B$5:$B$32,0)),\"Non-CAISO\")","v":"Renewables"},null,{"$f":"raw_annual_energy!C1267","v":"SW_Solar_for_CAISO"},{"$f":"INDEX(K:K,MATCH(R1267,Lists!J:J,0))","v":"Solar"},"Non-wind"]
[null,null,null,null,null,null,null,null,null,{"$f":"IFERROR(INDEX(raw_resource_build!$B$2:$B$1000,MATCH(0,COUNTIF($J$1:J1267,raw_resource_build!$B$2:$B$1000), 0),0), \"\")","v":""},{"$f":"IF(J1268=\"\", \"\", INDEX(raw_resource_build!E:E, MATCH(J1268, raw_resource_build!B:B, 0)))","v":""},{"$f":"IF(J1268=\"\", \"\", INDEX(raw_resource_build!C:C, MATCH(J1268, raw_resource_build!B:B, 0)))","v":""},null,{"$f":"raw_resource_build!B1268","v":"IID_Wind_for_Other"},"Non-wind",{"$f":"IFERROR(INDEX($E$5:$E$32,MATCH(raw_resource_build!$E1268,Lists!$B$5:$B$32,0)),\"Non-CAISO\")","v":"Renewables"},null,{"$f":"raw_annual_energy!C1268","v":"SW_Solar_for_CAISO"},{"$f":"INDEX(K:K,MATCH(R1268,Lists!J:J,0))","v":"Solar"},"Non-wind"]
[null,null,null,null,null,null,null,null,null,{"$f":"IFERROR(INDEX(raw_resource_build!$B$2:$B$1000,MATCH(0,COUNTIF($J$1:J1268,raw_resource_build!$B$2:$B$1000), 0),0), \"\")","v":""},{"$f":"IF(J1269=\"\", \"\", INDEX(raw_resource_build!E:E, MATCH(J1269, raw_resource_build!B:B, 0)))","v":""},{"$f":"IF(J1269=\"\", \"\", INDEX(raw_resource_build!C:C, MATCH(J1269, raw_resource_build!B:B, 0)))","v":""},null,{"$f":"raw_resource_build!B1269","v":"LDWP_Wind_for_Other"},"Non-wind",{"$f":"IFERROR(INDEX($E$5:$E$32,MATCH(raw_resource_build!$E1269,Lists!$B$5:$B$32,0)),\"Non-CAISO\")","v":"Renewables"},null,{"$f":"raw_annual_energy!C1269","v":"SW_Solar_for_CAISO"},{"$f":"INDEX(K:K,MATCH(R1269,Lists!J:J,0))","v":"Solar"},"Non-wind"]
[null,null,null,null,null,null,null,null,null,{"$f":"IFERROR(INDEX(raw_resource_build!$B$2:$B$1000,MATCH(0,COUNTIF($J$1:J1269,raw_resource_build!$B$2:$B$1000), 0),0), \"\")","v":""},{"$f":"IF(J1270=\"\", \"\", INDEX(raw_resource_build!E:E, MATCH(J1270, raw_resource_build!B:B, 0)))","v":""},{"$f":"IF(J1270=\"\", \"\", INDEX(raw_resource_build!C:C, MATCH(J1270, raw_resource_build!B:B, 0)))","v":""},null,{"$f":"raw_resource_build!B1270","v":"NW_Wind_for_Other"},"Non-wind",{"$f":"IFERROR(INDEX($E$5:$E$32,MATCH(raw_resource_build!$E1270,Lists!$B$5:$B$32,0)),\"Non-CAISO\")","v":"Renewables"},null,{"$f":"raw_annual_energy!C1270","v":"SW_Solar_for_CAISO"},{"$f":"INDEX(K:K,MATCH(R1270,Lists!J:J,0))","v":"Solar"},"Non-wind"]
[null,null,null,null,null,null,null,null,null,{"$f":"IFERROR(INDEX(raw_resource_build!$B$2:$B$1000,MATCH(0,COUNTIF($J$1:J1270,raw_resource_build!$B$2:$B$1000), 0),0), \"\")","v":""},{"$f":"IF(J1271=\"\", \"\", INDEX(raw_resource_build!E:E, MATCH(J1271, raw_resource_build!B:B, 0)))","v":""},{"$f":"IF(J1271=\"\", \"\", INDEX(raw_resource_build!C:C, MATCH(J1271, raw_resource_build!B:B, 0)))","v":""},null,{"$f":"raw_resource_build!B1271","v":"SW_Wind_for_Other"},"Non-wind",{"$f":"IFERROR(INDEX($E$5:$E$32,MATCH(raw_resource_build!$E1271,Lists!$B$5:$B$32,0)),\"Non-CAISO\")","v":"Renewables"},null,{"$f":"raw_annual_energy!C1271","v":"SW_Solar_for_CAISO"},{"$f":"INDEX(K:K,MATCH(R1271,Lists!J:J,0))","v":"Solar"},"Non-wind"]
[null,null,null,null,null,null,null,null,null,{"$f":"IFERROR(INDEX(raw_resource_build!$B$2:$B$1000,MATCH(0,COUNTIF($J$1:J1271,raw_resource_build!$B$2:$B$1000), 0),0), \"\")","v":""},{"$f":"IF(J1272=\"\", \"\", INDEX(raw_resource_build!E:E, MATCH(J1272, raw_resource_build!B:B, 0)))","v":""},{"$f":"IF(J1272=\"\", \"\", INDEX(raw_resource_build!C:C, MATCH(J1272, raw_resource_build!B:B, 0)))","v":""},null,{"$f":"raw_resource_build!B1272","v":"CAISO_Wind_for_CAISO"},"Non-wind",{"$f":"IFERROR(INDEX($E$5:$E$32,MATCH(raw_resource_build!$E1272,Lists!$B$5:$B$32,0)),\"Non-CAISO\")","v":"Renewables"},null,{"$f":"raw_annual_energy!C1272","v":"SW_Solar_for_CAISO"},{"$f":"INDEX(K:K,MATCH(R1272,Lists!J:J,0))","v":"Solar"},"Non-wind"]
[null,null,null,null,null,null,null,null,null,{"$f":"IFERROR(INDEX(raw_resource_build!$B$2:$B$1000,MATCH(0,COUNTIF($J$1:J1272,raw_resource_build!$B$2:$B$1000), 0),0), \"\")","v":""},{"$f":"IF(J1273=\"\", \"\", INDEX(raw_resource_build!E:E, MATCH(J1273, raw_resource_build!B:B, 0)))","v":""},{"$f":"IF(J1273=\"\", \"\", INDEX(raw_resource_build!C:C, MATCH(J1273, raw_resource_build!B:B, 0)))","v":""},null,{"$f":"raw_resource_build!B1273","v":"LDWP_Wind_for_CAISO"},"Non-wind",{"$f":"IFERROR(INDEX($E$5:$E$32,MATCH(raw_resource_build!$E1273,Lists!$B$5:$B$32,0)),\"Non-CAISO\")","v":"Renewables"},null,{"$f":"raw_annual_energy!C1273","v":"SW_Solar_for_CAISO"},{"$f":"INDEX(K:K,MATCH(R1273,Lists!J:J,0))","v":"Solar"},"Non-wind"]
[null,null,null,null,null,null,null,null,null,{"$f":"IFERROR(INDEX(raw_resource_build!$B$2:$B$1000,MATCH(0,COUNTIF($J$1:J1273,raw_resource_build!$B$2:$B$1000), 0),0), \"\")","v":""},{"$f":"IF(J1274=\"\", \"\", INDEX(raw_resource_build!E:E, MATCH(J1274, raw_resource_build!B:B, 0)))","v":""},{"$f":"IF(J1274=\"\", \"\", INDEX(raw_resource_build!C:C, MATCH(J1274, raw_resource_build!B:B, 0)))","v":""},null,{"$f":"raw_resource_build!B1274","v":"NW_Wind_for_CAISO"},"Non-wind",{"$f":"IFERROR(INDEX($E$5:$E$32,MATCH(raw_resource_build!$E1274,Lists!$B$5:$B$32,0)),\"Non-CAISO\")","v":"Renewables"},null,{"$f":"raw_annual_energy!C1274","v":"SW_Solar_for_CAISO"},{"$f":"INDEX(K:K,MATCH(R1274,Lists!J:J,0))","v":"Solar"},"Non-wind"]
[null,null,null,null,null,null,null,null,null,{"$f":"IFERROR(INDEX(raw_resource_build!$B$2:$B$1000,MATCH(0,COUNTIF($J$1:J1274,raw_resource_build!$B$2:$B$1000), 0),0), \"\")","v":""},{"$f":"IF(J1275=\"\", \"\", INDEX(raw_resource_build!E:E, MATCH(J1275, raw_resource_build!B:B, 0)))","v":""},{"$f":"IF(J1275=\"\", \"\", INDEX(raw_resource_build!C:C, MATCH(J1275, raw_resource_build!B:B, 0)))","v":""},null,{"$f":"raw_resource_build!B1275","v":"SW_Wind_for_CAISO"},"Non-wind",{"$f":"IFERROR(INDEX($E$5:$E$32,MATCH(raw_resource_build!$E1275,Lists!$B$5:$B$32,0)),\"Non-CAISO\")","v":"Renewables"},null,{"$f":"raw_annual_energy!C1275","v":"SW_Wind_for_CAISO"},{"$f":"INDEX(K:K,MATCH(R1275,Lists!J:J,0))","v":"Wind"},"Non-wind"]
[null,null,null,null,null,null,null,null,null,{"$f":"IFERROR(INDEX(raw_resource_build!$B$2:$B$1000,MATCH(0,COUNTIF($J$1:J1275,raw_resource_build!$B$2:$B$1000), 0),0), \"\")","v":""},{"$f":"IF(J1276=\"\", \"\", INDEX(raw_resource_build!E:E, MATCH(J1276, raw_resource_build!B:B, 0)))","v":""},{"$f":"IF(J1276=\"\", \"\", INDEX(raw_resource_build!C:C, MATCH(J1276, raw_resource_build!B:B, 0)))","v":""},null,{"$f":"raw_resource_build!B1276","v":"Carrizo_Solar"},"In-State",{"$f":"IFERROR(INDEX($E$5:$E$32,MATCH(raw_resource_build!$E1276,Lists!$B$5:$B$32,0)),\"Non-CAISO\")","v":"Renewables"},null,{"$f":"raw_annual_energy!C1276","v":"SW_Wind_for_CAISO"},{"$f":"INDEX(K:K,MATCH(R1276,Lists!J:J,0))","v":"Wind"},"Non-wind"]
[null,null,null,null,null,null,null,null,null,{"$f":"IFERROR(INDEX(raw_resource_build!$B$2:$B$1000,MATCH(0,COUNTIF($J$1:J1276,raw_resource_build!$B$2:$B$1000), 0),0), \"\")","v":""},{"$f":"IF(J1277=\"\", \"\", INDEX(raw_resource_build!E:E, MATCH(J1277, raw_resource_build!B:B, 0)))","v":""},{"$f":"IF(J1277=\"\", \"\", INDEX(raw_resource_build!C:C, MATCH(J1277, raw_resource_build!B:B, 0)))","v":""},null,{"$f":"raw_resource_build!B1277","v":"Carrizo_Wind"},"In-State",{"$f":"IFERROR(INDEX($E$5:$E$32,MATCH(raw_resource_build!$E1277,Lists!$B$5:$B$32,0)),\"Non-CAISO\")","v":"Renewables"},null,{"$f":"raw_annual_energy!C1277","v":"SW_Wind_for_CAISO"},{"$f":"INDEX(K:K,MATCH(R1277,Lists!J:J,0))","v":"Wind"},"Non-wind"]
[null,null,null,null,null,null,null,null,null,{"$f":"IFERROR(INDEX(raw_resource_build!$B$2:$B$1000,MATCH(0,COUNTIF($J$1:J1277,raw_resource_build!$B$2:$B$1000), 0),0), \"\")","v":""},{"$f":"IF(J1278=\"\", \"\", INDEX(raw_resource_build!E:E, MATCH(J1278, raw_resource_build!B:B, 0)))","v":""},{"$f":"IF(J1278=\"\", \"\", INDEX(raw_resource_build!C:C, MATCH(J1278, raw_resource_build!B:B, 0)))","v":""},null,{"$f":"raw_resource_build!B1278","v":"Central_Valley_North_Los_Banos_Solar"},"In-State",{"$f":"IFERROR(INDEX($E$5:$E$32,MATCH(raw_resource_build!$E1278,Lists!$B$5:$B$32,0)),\"Non-CAISO\")","v":"Renewables"},null,{"$f":"raw_annual_energy!C1278","v":"SW_Wind_for_CAISO"},{"$f":"INDEX(K:K,MATCH(R1278,Lists!J:J,0))","v":"Wind"},"Non-wind"]
[null,null,null,null,null,null,null,null,null,{"$f":"IFERROR(INDEX(raw_resource_build!$B$2:$B$1000,MATCH(0,COUNTIF($J$1:J1278,raw_resource_build!$B$2:$B$1000), 0),0), \"\")","v":""},{"$f":"IF(J1279=\"\", \"\", INDEX(raw_resource_build!E:E, MATCH(J1279, raw_resource_build!B:B, 0)))","v":""},{"$f":"IF(J1279=\"\", \"\", INDEX(raw_resource_build!C:C, MATCH(J1279, raw_resource_build!B:B, 0)))","v":""},null,{"$f":"raw_resource_build!B1279","v":"Central_Valley_North_Los_Banos_Wind"},"In-State",{"$f":"IFERROR(INDEX($E$5:$E$32,MATCH(raw_resource_build!$E1279,Lists!$B$5:$B$32,0)),\"Non-CAISO\")","v":"Renewables"},null,{"$f":"raw_annual_energy!C1279","v":"SW_Wind_for_CAISO"},{"$f":"INDEX(K:K,MATCH(R1279,Lists!J:J,0))","v":"Wind"},"Non-wind"]
[null,null,null,null,null,null,null,null,null,{"$f":"IFERROR(INDEX(raw_resource_build!$B$2:$B$1000,MATCH(0,COUNTIF($J$1:J1279,raw_resource_build!$B$2:$B$1000), 0),0), \"\")","v":""},{"$f":"IF(J1280=\"\", \"\", INDEX(raw_resource_build!E:E, MATCH(J1280, raw_resource_build!B:B, 0)))","v":""},{"$f":"IF(J1280=\"\", \"\", INDEX(raw_resource_build!C:C, MATCH(J1280, raw_resource_build!B:B, 0)))","v":""},null,{"$f":"raw_resource_build!B1280","v":"Distributed_Solar"},"In-State",{"$f":"IFERROR(INDEX($E$5:$E$32,MATCH(raw_resource_build!$E1280,Lists!$B$5:$B$32,0)),\"Non-CAISO\")","v":"Renewables"},null,{"$f":"raw_annual_energy!C1280","v":"SW_Wind_for_CAISO"},{"$f":"INDEX(K:K,MATCH(R1280,Lists!J:J,0))","v":"Wind"},"Non-wind"]
[null,null,null,null,null,null,null,null,null,{"$f":"IFERROR(INDEX(raw_resource_build!$B$2:$B$1000,MATCH(0,COUNTIF($J$1:J1280,raw_resource_build!$B$2:$B$1000), 0),0), \"\")","v":""},{"$f":"IF(J1281=\"\", \"\", INDEX(raw_resource_build!E:E, MATCH(J1281, raw_resource_build!B:B, 0)))","v":""},{"$f":"IF(J1281=\"\", \"\", INDEX(raw_resource_build!C:C, MATCH(J1281, raw_resource_build!B:B, 0)))","v":""},null,{"$f":"raw_resource_build!B1281","v":"Mountain_Pass_El_Dorado_Solar"},"In-State",{"$f":"IFERROR(INDEX($E$5:$E$32,MATCH(raw_resource_build!$E1281,Lists!$B$5:$B$32,0)),\"Non-CAISO\")","v":"Renewables"},null,{"$f":"raw_annual_energy!C1281","v":"SW_Wind_for_CAISO"},{"$f":"INDEX(K:K,MATCH(R1281,Lists!J:J,0))","v":"Wind"},"Non-wind"]
[null,null,null,null,null,null,null,null,null,{"$f":"IFERROR(INDEX(raw_resource_build!$B$2:$B$1000,MATCH(0,COUNTIF($J$1:J1281,raw_resource_build!$B$2:$B$1000), 0),0), \"\")","v":""},{"$f":"IF(J1282=\"\", \"\", INDEX(raw_resource_build!E:E, MATCH(J1282, raw_resource_build!B:B, 0)))","v":""},{"$f":"IF(J1282=\"\", \"\", INDEX(raw_resource_build!C:C, MATCH(J1282, raw_resource_build!B:B, 0)))","v":""},null,{"$f":"raw_resource_build!B1282","v":"Greater_Imperial_Solar"},"In-State",{"$f":"IFERROR(INDEX($E$5:$E$32,MATCH(raw_resource_build!$E1282,Lists!$B$5:$B$32,0)),\"Non-CAISO\")","v":"Renewables"},null,{"$f":"raw_annual_energy!C1282","v":"SW_Wind_for_CAISO"},{"$f":"INDEX(K:K,MATCH(R1282,Lists!J:J,0))","v":"Wind"},"Non-wind"]
[null,null,null,null,null,null,null,null,null,{"$f":"IFERROR(INDEX(raw_resource_build!$B$2:$B$1000,MATCH(0,COUNTIF($J$1:J1282,raw_resource_build!$B$2:$B$1000), 0),0), \"\")","v":""},{"$f":"IF(J1283=\"\", \"\", INDEX(raw_resource_build!E:E, MATCH(J1283, raw_resource_build!B:B, 0)))","v":""},{"$f":"IF(J1283=\"\", \"\", INDEX(raw_resource_build!C:C, MATCH(J1283, raw_resource_build!B:B, 0)))","v":""},null,{"$f":"raw_resource_build!B1283","v":"Greater_Imperial_Wind"},{"$f":"IFERROR(INDEX($C$35:$C$99,MATCH($N1283,$B$35:$B$99,0)),\"Non-wind\")","v":"In-State"},{"$f":"IFERROR(INDEX($E$5:$E$32,MATCH(raw_resource_build!$E1283,Lists!$B$5:$B$32,0)),\"Non-CAISO\")","v":"Renewables"},null,{"$f":"raw_annual_energy!C1283","v":"SW_Biomass_for_Other"},{"$f":"INDEX(K:K,MATCH(R1283,Lists!J:J,0))","v":"Biomass"},{"$f":"IFERROR(INDEX($C$35:$C$99,MATCH($R1283,$B$35:$B$99,0)),\"Non-wind\")","v":"Non-wind"}]
[null,null,null,null,null,null,null,null,null,{"$f":"IFERROR(INDEX(raw_resource_build!$B$2:$B$1000,MATCH(0,COUNTIF($J$1:J1283,raw_resource_build!$B$2:$B$1000), 0),0), \"\")","v":""},{"$f":"IF(J1284=\"\", \"\", INDEX(raw_resource_build!E:E, MATCH(J1284, raw_resource_build!B:B, 0)))","v":""},{"$f":"IF(J1284=\"\", \"\", INDEX(raw_resource_build!C:C, MATCH(J1284, raw_resource_build!B:B, 0)))","v":""},null,{"$f":"raw_resource_build!B1284","v":"Greater_Kramer_Wind"},"In-State",{"$f":"IFERROR(INDEX($E$5:$E$32,MATCH(raw_resource_build!$E1284,Lists!$B$5:$B$32,0)),\"Non-CAISO\")","v":"Renewables"},null,{"$f":"raw_annual_energy!C1284","v":"SW_Biomass_for_Other"},{"$f":"INDEX(K:K,MATCH(R1284,Lists!J:J,0))","v":"Biomass"},"Non-wind"]
[null,null,null,null,null,null,null,null,null,{"$f":"IFERROR(INDEX(raw_resource_build!$B$2:$B$1000,MATCH(0,COUNTIF($J$1:J1284,raw_resource_build!$B$2:$B$1000), 0),0), \"\")","v":""},{"$f":"IF(J1285=\"\", \"\", INDEX(raw_resource_build!E:E, MATCH(J1285, raw_resource_build!B:B, 0)))","v":""},{"$f":"IF(J1285=\"\", \"\", INDEX(raw_resource_build!C:C, MATCH(J1285, raw_resource_build!B:B, 0)))","v":""},null,{"$f":"raw_resource_build!B1285","v":"Humboldt_Wind"},"In-State",{"$f":"IFERROR(INDEX($E$5:$E$32,MATCH(raw_resource_build!$E1285,Lists!$B$5:$B$32,0)),\"Non-CAISO\")","v":"Renewables"},null,{"$f":"raw_annual_energy!C1285","v":"SW_Biomass_for_Other"},{"$f":"INDEX(K:K,MATCH(R1285,Lists!J:J,0))","v":"Biomass"},"Non-wind"]
[null,null,null,null,null,null,null,null,null,{"$f":"IFERROR(INDEX(raw_resource_build!$B$2:$B$1000,MATCH(0,COUNTIF($J$1:J1285,raw_resource_build!$B$2:$B$1000), 0),0), \"\")","v":""},{"$f":"IF(J1286=\"\", \"\", INDEX(raw_resource_build!E:E, MATCH(J1286, raw_resource_build!B:B, 0)))","v":""},{"$f":"IF(J1286=\"\", \"\", INDEX(raw_resource_build!C:C, MATCH(J1286, raw_resource_build!B:B, 0)))","v":""},null,{"$f":"raw_resource_build!B1286","v":"Inyokern_North_Kramer_Solar"},"In-State",{"$f":"IFERROR(INDEX($E$5:$E$32,MATCH(raw_resource_build!$E1286,Lists!$B$5:$B$32,0)),\"Non-CAISO\")","v":"Renewables"},null,{"$f":"raw_annual_energy!C1286","v":"SW_Biomass_for_Other"},{"$f":"INDEX(K:K,MATCH(R1286,Lists!J:J,0))","v":"Biomass"},"Non-wind"]
[null,null,null,null,null,null,null,null,null,{"$f":"IFERROR(INDEX(raw_resource_build!$B$2:$B$1000,MATCH(0,COUNTIF($J$1:J1286,raw_resource_build!$B$2:$B$1000), 0),0), \"\")","v":""},{"$f":"IF(J1287=\"\", \"\", INDEX(raw_resource_build!E:E, MATCH(J1287, raw_resource_build!B:B, 0)))","v":""},{"$f":"IF(J1287=\"\", \"\", INDEX(raw_resource_build!C:C, MATCH(J1287, raw_resource_build!B:B, 0)))","v":""},null,{"$f":"raw_resource_build!B1287","v":"Kern_Greater_Carrizo_Solar"},"In-State",{"$f":"IFERROR(INDEX($E$5:$E$32,MATCH(raw_resource_build!$E1287,Lists!$B$5:$B$32,0)),\"Non-CAISO\")","v":"Renewables"},null,{"$f":"raw_annual_energy!C1287","v":"SW_Biomass_for_Other"},{"$f":"INDEX(K:K,MATCH(R1287,Lists!J:J,0))","v":"Biomass"},"Non-wind"]
[null,null,null,null,null,null,null,null,null,{"$f":"IFERROR(INDEX(raw_resource_build!$B$2:$B$1000,MATCH(0,COUNTIF($J$1:J1287,raw_resource_build!$B$2:$B$1000), 0),0), \"\")","v":""},{"$f":"IF(J1288=\"\", \"\", INDEX(raw_resource_build!E:E, MATCH(J1288, raw_resource_build!B:B, 0)))","v":""},{"$f":"IF(J1288=\"\", \"\", INDEX(raw_resource_build!C:C, MATCH(J1288, raw_resource_build!B:B, 0)))","v":""},null,{"$f":"raw_resource_build!B1288","v":"Kern_Greater_Carrizo_Wind"},"In-State",{"$f":"IFERROR(INDEX($E$5:$E$32,MATCH(raw_resource_build!$E1288,Lists!$B$5:$B$32,0)),\"Non-CAISO\")","v":"Renewables"},null,{"$f":"raw_annual_energy!C1288","v":"SW_Biomass_for_Other"},{"$f":"INDEX(K:K,MATCH(R1288,Lists!J:J,0))","v":"Biomass"},"Non-wind"]
[null,null,null,null,null,null,null,null,null,{"$f":"IFERROR(INDEX(raw_resource_build!$B$2:$B$1000,MATCH(0,COUNTIF($J$1:J1288,raw_resource_build!$B$2:$B$1000), 0),0), \"\")","v":""},{"$f":"IF(J1289=\"\", \"\", INDEX(raw_resource_build!E:E, MATCH(J1289, raw_resource_build!B:B, 0)))","v":""},{"$f":"IF(J1289=\"\", \"\", INDEX(raw_resource_build!C:C, MATCH(J1289, raw_resource_build!B:B, 0)))","v":""},null,{"$f":"raw_resource_build!B1289","v":"Kramer_Inyokern_Ex_Solar"},"In-State",{"$f":"IFERROR(INDEX($E$5:$E$32,MATCH(raw_resource_build!$E1289,Lists!$B$5:$B$32,0)),\"Non-CAISO\")","v":"Renewables"},null,{"$f":"raw_annual_energy!C1289","v":"SW_Biomass_for_Other"},{"$f":"INDEX(K:K,MATCH(R1289,Lists!J:J,0))","v":"Biomass"},"Non-wind"]
[null,null,null,null,null,null,null,null,null,{"$f":"IFERROR(INDEX(raw_resource_build!$B$2:$B$1000,MATCH(0,COUNTIF($J$1:J1289,raw_resource_build!$B$2:$B$1000), 0),0), \"\")","v":""},{"$f":"IF(J1290=\"\", \"\", INDEX(raw_resource_build!E:E, MATCH(J1290, raw_resource_build!B:B, 0)))","v":""},{"$f":"IF(J1290=\"\", \"\", INDEX(raw_resource_build!C:C, MATCH(J1290, raw_resource_build!B:B, 0)))","v":""},null,{"$f":"raw_resource_build!B1290","v":"Kramer_Inyokern_Ex_Wind"},"In-State",{"$f":"IFERROR(INDEX($E$5:$E$32,MATCH(raw_resource_build!$E1290,Lists!$B$5:$B$32,0)),\"Non-CAISO\")","v":"Renewables"},null,{"$f":"raw_annual_energy!C1290","v":"SW_Biomass_for_Other"},{"$f":"INDEX(K:K,MATCH(R1290,Lists!J:J,0))","v":"Biomass"},"Non-wind"]
[null,null,null,null,null,null,null,null,null,{"$f":"IFERROR(INDEX(raw_resource_build!$B$2:$B$1000,MATCH(0,COUNTIF($J$1:J1290,raw_resource_build!$B$2:$B$1000), 0),0), \"\")","v":""},{"$f":"IF(J1291=\"\", \"\", INDEX(raw_resource_build!E:E, MATCH(J1291, raw_resource_build!B:B, 0)))","v":""},{"$f":"IF(J1291=\"\", \"\", INDEX(raw_resource_build!C:C, MATCH(J1291, raw_resource_build!B:B, 0)))","v":""},null,{"$f":"raw_resource_build!B1291","v":"North_Victor_Solar"},"In-State",{"$f":"IFERROR(INDEX($E$5:$E$32,MATCH(raw_resource_build!$E1291,Lists!$B$5:$B$32,0)),\"Non-CAISO\")","v":"Renewables"},null,{"$f":"raw_annual_energy!C1291","v":"SW_CCGT"},{"$f":"INDEX(K:K,MATCH(R1291,Lists!J:J,0))","v":"SW_CCGT"},"Non-wind"]
[null,null,null,null,null,null,null,null,null,{"$f":"IFERROR(INDEX(raw_resource_build!$B$2:$B$1000,MATCH(0,COUNTIF($J$1:J1291,raw_resource_build!$B$2:$B$1000), 0),0), \"\")","v":""},{"$f":"IF(J1292=\"\", \"\", INDEX(raw_resource_build!E:E, MATCH(J1292, raw_resource_build!B:B, 0)))","v":""},{"$f":"IF(J1292=\"\", \"\", INDEX(raw_resource_build!C:C, MATCH(J1292, raw_resource_build!B:B, 0)))","v":""},null,{"$f":"raw_resource_build!B1292","v":"Northern_California_Ex_Solar"},"In-State",{"$f":"IFERROR(INDEX($E$5:$E$32,MATCH(raw_resource_build!$E1292,Lists!$B$5:$B$32,0)),\"Non-CAISO\")","v":"Renewables"},null,{"$f":"raw_annual_energy!C1292","v":"SW_CCGT"},{"$f":"INDEX(K:K,MATCH(R1292,Lists!J:J,0))","v":"SW_CCGT"},"Non-wind"]
[null,null,null,null,null,null,null,null,null,{"$f":"IFERROR(INDEX(raw_resource_build!$B$2:$B$1000,MATCH(0,COUNTIF($J$1:J1292,raw_resource_build!$B$2:$B$1000), 0),0), \"\")","v":""},{"$f":"IF(J1293=\"\", \"\", INDEX(raw_resource_build!E:E, MATCH(J1293, raw_resource_build!B:B, 0)))","v":""},{"$f":"IF(J1293=\"\", \"\", INDEX(raw_resource_build!C:C, MATCH(J1293, raw_resource_build!B:B, 0)))","v":""},null,{"$f":"raw_resource_build!B1293","v":"Northern_California_Ex_Wind"},"In-State",{"$f":"IFERROR(INDEX($E$5:$E$32,MATCH(raw_resource_build!$E1293,Lists!$B$5:$B$32,0)),\"Non-CAISO\")","v":"Renewables"},null,{"$f":"raw_annual_energy!C1293","v":"SW_CCGT"},{"$f":"INDEX(K:K,MATCH(R1293,Lists!J:J,0))","v":"SW_CCGT"},"Non-wind"]
[null,null,null,null,null,null,null,null,null,{"$f":"IFERROR(INDEX(raw_resource_build!$B$2:$B$1000,MATCH(0,COUNTIF($J$1:J1293,raw_resource_build!$B$2:$B$1000), 0),0), \"\")","v":""},{"$f":"IF(J1294=\"\", \"\", INDEX(raw_resource_build!E:E, MATCH(J1294, raw_resource_build!B:B, 0)))","v":""},{"$f":"IF(J1294=\"\", \"\", INDEX(raw_resource_build!C:C, MATCH(J1294, raw_resource_build!B:B, 0)))","v":""},null,{"$f":"raw_resource_build!B1294","v":"NW_Ext_Tx_Wind"},"In-State",{"$f":"IFERROR(INDEX($E$5:$E$32,MATCH(raw_resource_build!$E1294,Lists!$B$5:$B$32,0)),\"Non-CAISO\")","v":"Renewables"},null,{"$f":"raw_annual_energy!C1294","v":"SW_CCGT"},{"$f":"INDEX(K:K,MATCH(R1294,Lists!J:J,0))","v":"SW_CCGT"},"Non-wind"]
[null,null,null,null,null,null,null,null,null,{"$f":"IFERROR(INDEX(raw_resource_build!$B$2:$B$1000,MATCH(0,COUNTIF($J$1:J1294,raw_resource_build!$B$2:$B$1000), 0),0), \"\")","v":""},{"$f":"IF(J1295=\"\", \"\", INDEX(raw_resource_build!E:E, MATCH(J1295, raw_resource_build!B:B, 0)))","v":""},{"$f":"IF(J1295=\"\", \"\", INDEX(raw_resource_build!C:C, MATCH(J1295, raw_resource_build!B:B, 0)))","v":""},null,{"$f":"raw_resource_build!B1295","v":"Riverside_Palm_Springs_Solar"},"In-State",{"$f":"IFERROR(INDEX($E$5:$E$32,MATCH(raw_resource_build!$E1295,Lists!$B$5:$B$32,0)),\"Non-CAISO\")","v":"Renewables"},null,{"$f":"raw_annual_energy!C1295","v":"SW_CCGT"},{"$f":"INDEX(K:K,MATCH(R1295,Lists!J:J,0))","v":"SW_CCGT"},"Non-wind"]
[null,null,null,null,null,null,null,null,null,{"$f":"IFERROR(INDEX(raw_resource_build!$B$2:$B$1000,MATCH(0,COUNTIF($J$1:J1295,raw_resource_build!$B$2:$B$1000), 0),0), \"\")","v":""},{"$f":"IF(J1296=\"\", \"\", INDEX(raw_resource_build!E:E, MATCH(J1296, raw_resource_build!B:B, 0)))","v":""},{"$f":"IF(J1296=\"\", \"\", INDEX(raw_resource_build!C:C, MATCH(J1296, raw_resource_build!B:B, 0)))","v":""},null,{"$f":"raw_resource_build!B1296","v":"Sacramento_River_Solar"},"In-State",{"$f":"IFERROR(INDEX($E$5:$E$32,MATCH(raw_resource_build!$E1296,Lists!$B$5:$B$32,0)),\"Non-CAISO\")","v":"Renewables"},null,{"$f":"raw_annual_energy!C1296","v":"SW_CCGT"},{"$f":"INDEX(K:K,MATCH(R1296,Lists!J:J,0))","v":"SW_CCGT"},"Non-wind"]
[null,null,null,null,null,null,null,null,null,{"$f":"IFERROR(INDEX(raw_resource_build!$B$2:$B$1000,MATCH(0,COUNTIF($J$1:J1296,raw_resource_build!$B$2:$B$1000), 0),0), \"\")","v":""},{"$f":"IF(J1297=\"\", \"\", INDEX(raw_resource_build!E:E, MATCH(J1297, raw_resource_build!B:B, 0)))","v":""},{"$f":"IF(J1297=\"\", \"\", INDEX(raw_resource_build!C:C, MATCH(J1297, raw_resource_build!B:B, 0)))","v":""},null,{"$f":"raw_resource_build!B1297","v":"Sacramento_River_Wind"},"In-State",{"$f":"IFERROR(INDEX($E$5:$E$32,MATCH(raw_resource_build!$E1297,Lists!$B$5:$B$32,0)),\"Non-CAISO\")","v":"Renewables"},null,{"$f":"raw_annual_energy!C1297","v":"SW_CCGT"},{"$f":"INDEX(K:K,MATCH(R1297,Lists!J:J,0))","v":"SW_CCGT"},"Non-wind"]
[null,null,null,null,null,null,null,null,null,{"$f":"IFERROR(INDEX(raw_resource_build!$B$2:$B$1000,MATCH(0,COUNTIF($J$1:J1297,raw_resource_build!$B$2:$B$1000), 0),0), \"\")","v":""},{"$f":"IF(J1298=\"\", \"\", INDEX(raw_resource_build!E:E, MATCH(J1298, raw_resource_build!B:B, 0)))","v":""},{"$f":"IF(J1298=\"\", \"\", INDEX(raw_resource_build!C:C, MATCH(J1298, raw_resource_build!B:B, 0)))","v":""},null,{"$f":"raw_resource_build!B1298","v":"SCADSNV_Solar"},"In-State",{"$f":"IFERROR(INDEX($E$5:$E$32,MATCH(raw_resource_build!$E1298,Lists!$B$5:$B$32,0)),\"Non-CAISO\")","v":"Renewables"},null,{"$f":"raw_annual_energy!C1298","v":"SW_CCGT"},{"$f":"INDEX(K:K,MATCH(R1298,Lists!J:J,0))","v":"SW_CCGT"},"Non-wind"]
[null,null,null,null,null,null,null,null,null,{"$f":"IFERROR(INDEX(raw_resource_build!$B$2:$B$1000,MATCH(0,COUNTIF($J$1:J1298,raw_resource_build!$B$2:$B$1000), 0),0), \"\")","v":""},{"$f":"IF(J1299=\"\", \"\", INDEX(raw_resource_build!E:E, MATCH(J1299, raw_resource_build!B:B, 0)))","v":""},{"$f":"IF(J1299=\"\", \"\", INDEX(raw_resource_build!C:C, MATCH(J1299, raw_resource_build!B:B, 0)))","v":""},null,{"$f":"raw_resource_build!B1299","v":"SCADSNV_Wind"},"In-State",{"$f":"IFERROR(INDEX($E$5:$E$32,MATCH(raw_resource_build!$E1299,Lists!$B$5:$B$32,0)),\"Non-CAISO\")","v":"Renewables"},null,{"$f":"raw_annual_energy!C1299","v":"SW_Coal"},{"$f":"INDEX(K:K,MATCH(R1299,Lists!J:J,0))","v":"SW_Coal"},"Non-wind"]
[null,null,null,null,null,null,null,null,null,{"$f":"IFERROR(INDEX(raw_resource_build!$B$2:$B$1000,MATCH(0,COUNTIF($J$1:J1299,raw_resource_build!$B$2:$B$1000), 0),0), \"\")","v":""},{"$f":"IF(J1300=\"\", \"\", INDEX(raw_resource_build!E:E, MATCH(J1300, raw_resource_build!B:B, 0)))","v":""},{"$f":"IF(J1300=\"\", \"\", INDEX(raw_resource_build!C:C, MATCH(J1300, raw_resource_build!B:B, 0)))","v":""},null,{"$f":"raw_resource_build!B1300","v":"Solano_Solar"},"In-State",{"$f":"IFERROR(INDEX($E$5:$E$32,MATCH(raw_resource_build!$E1300,Lists!$B$5:$B$32,0)),\"Non-CAISO\")","v":"Renewables"},null,{"$f":"raw_annual_energy!C1300","v":"SW_Coal"},{"$f":"INDEX(K:K,MATCH(R1300,Lists!J:J,0))","v":"SW_Coal"},"Non-wind"]
[null,null,null,null,null,null,null,null,null,{"$f":"IFERROR(INDEX(raw_resource_build!$B$2:$B$1000,MATCH(0,COUNTIF($J$1:J1300,raw_resource_build!$B$2:$B$1000), 0),0), \"\")","v":""},{"$f":"IF(J1301=\"\", \"\", INDEX(raw_resource_build!E:E, MATCH(J1301, raw_resource_build!B:B, 0)))","v":""},{"$f":"IF(J1301=\"\", \"\", INDEX(raw_resource_build!C:C, MATCH(J1301, raw_resource_build!B:B, 0)))","v":""},null,{"$f":"raw_resource_build!B1301","v":"Solano_subzone_Solar"},"In-State",{"$f":"IFERROR(INDEX($E$5:$E$32,MATCH(raw_resource_build!$E1301,Lists!$B$5:$B$32,0)),\"Non-CAISO\")","v":"Renewables"},null,{"$f":"raw_annual_energy!C1301","v":"SW_Coal"},{"$f":"INDEX(K:K,MATCH(R1301,Lists!J:J,0))","v":"SW_Coal"},"Non-wind"]
[null,null,null,null,null,null,null,null,null,{"$f":"IFERROR(INDEX(raw_resource_build!$B$2:$B$1000,MATCH(0,COUNTIF($J$1:J1301,raw_resource_build!$B$2:$B$1000), 0),0), \"\")","v":""},{"$f":"IF(J1302=\"\", \"\", INDEX(raw_resource_build!E:E, MATCH(J1302, raw_resource_build!B:B, 0)))","v":""},{"$f":"IF(J1302=\"\", \"\", INDEX(raw_resource_build!C:C, MATCH(J1302, raw_resource_build!B:B, 0)))","v":""},null,{"$f":"raw_resource_build!B1302","v":"Solano_subzone_Wind"},"In-State",{"$f":"IFERROR(INDEX($E$5:$E$32,MATCH(raw_resource_build!$E1302,Lists!$B$5:$B$32,0)),\"Non-CAISO\")","v":"Renewables"},null,{"$f":"raw_annual_energy!C1302","v":"SW_Coal"},{"$f":"INDEX(K:K,MATCH(R1302,Lists!J:J,0))","v":"SW_Coal"},"Non-wind"]
[null,null,null,null,null,null,null,null,null,{"$f":"IFERROR(INDEX(raw_resource_build!$B$2:$B$1000,MATCH(0,COUNTIF($J$1:J1302,raw_resource_build!$B$2:$B$1000), 0),0), \"\")","v":""},{"$f":"IF(J1303=\"\", \"\", INDEX(raw_resource_build!E:E, MATCH(J1303, raw_resource_build!B:B, 0)))","v":""},{"$f":"IF(J1303=\"\", \"\", INDEX(raw_resource_build!C:C, MATCH(J1303, raw_resource_build!B:B, 0)))","v":""},null,{"$f":"raw_resource_build!B1303","v":"Solano_Wind"},"In-State",{"$f":"IFERROR(INDEX($E$5:$E$32,MATCH(raw_resource_build!$E1303,Lists!$B$5:$B$32,0)),\"Non-CAISO\")","v":"Renewables"},null,{"$f":"raw_annual_energy!C1303","v":"SW_Coal"},{"$f":"INDEX(K:K,MATCH(R1303,Lists!J:J,0))","v":"SW_Coal"},"Non-wind"]
[null,null,null,null,null,null,null,null,null,{"$f":"IFERROR(INDEX(raw_resource_build!$B$2:$B$1000,MATCH(0,COUNTIF($J$1:J1303,raw_resource_build!$B$2:$B$1000), 0),0), \"\")","v":""},{"$f":"IF(J1304=\"\", \"\", INDEX(raw_resource_build!E:E, MATCH(J1304, raw_resource_build!B:B, 0)))","v":""},{"$f":"IF(J1304=\"\", \"\", INDEX(raw_resource_build!C:C, MATCH(J1304, raw_resource_build!B:B, 0)))","v":""},null,{"$f":"raw_resource_build!B1304","v":"Southern_California_Desert_Ex_Solar"},"In-State",{"$f":"IFERROR(INDEX($E$5:$E$32,MATCH(raw_resource_build!$E1304,Lists!$B$5:$B$32,0)),\"Non-CAISO\")","v":"Renewables"},null,{"$f":"raw_annual_energy!C1304","v":"SW_Coal"},{"$f":"INDEX(K:K,MATCH(R1304,Lists!J:J,0))","v":"SW_Coal"},"Non-wind"]
[null,null,null,null,null,null,null,null,null,{"$f":"IFERROR(INDEX(raw_resource_build!$B$2:$B$1000,MATCH(0,COUNTIF($J$1:J1304,raw_resource_build!$B$2:$B$1000), 0),0), \"\")","v":""},{"$f":"IF(J1305=\"\", \"\", INDEX(raw_resource_build!E:E, MATCH(J1305, raw_resource_build!B:B, 0)))","v":""},{"$f":"IF(J1305=\"\", \"\", INDEX(raw_resource_build!C:C, MATCH(J1305, raw_resource_build!B:B, 0)))","v":""},null,{"$f":"raw_resource_build!B1305","v":"Southern_California_Desert_Ex_Wind"},"In-State",{"$f":"IFERROR(INDEX($E$5:$E$32,MATCH(raw_resource_build!$E1305,Lists!$B$5:$B$32,0)),\"Non-CAISO\")","v":"Renewables"},null,{"$f":"raw_annual_energy!C1305","v":"SW_Coal"},{"$f":"INDEX(K:K,MATCH(R1305,Lists!J:J,0))","v":"SW_Coal"},"Non-wind"]
[null,null,null,null,null,null,null,null,null,{"$f":"IFERROR(INDEX(raw_resource_build!$B$2:$B$1000,MATCH(0,COUNTIF($J$1:J1305,raw_resource_build!$B$2:$B$1000), 0),0), \"\")","v":""},{"$f":"IF(J1306=\"\", \"\", INDEX(raw_resource_build!E:E, MATCH(J1306, raw_resource_build!B:B, 0)))","v":""},{"$f":"IF(J1306=\"\", \"\", INDEX(raw_resource_build!C:C, MATCH(J1306, raw_resource_build!B:B, 0)))","v":""},null,{"$f":"raw_resource_build!B1306","v":"Southern_Nevada_Solar"},"In-State",{"$f":"IFERROR(INDEX($E$5:$E$32,MATCH(raw_resource_build!$E1306,Lists!$B$5:$B$32,0)),\"Non-CAISO\")","v":"Renewables"},null,{"$f":"raw_annual_energy!C1306","v":"SW_Coal"},{"$f":"INDEX(K:K,MATCH(R1306,Lists!J:J,0))","v":"SW_Coal"},"Non-wind"]
[null,null,null,null,null,null,null,null,null,{"$f":"IFERROR(INDEX(raw_resource_build!$B$2:$B$1000,MATCH(0,COUNTIF($J$1:J1306,raw_resource_build!$B$2:$B$1000), 0),0), \"\")","v":""},{"$f":"IF(J1307=\"\", \"\", INDEX(raw_resource_build!E:E, MATCH(J1307, raw_resource_build!B:B, 0)))","v":""},{"$f":"IF(J1307=\"\", \"\", INDEX(raw_resource_build!C:C, MATCH(J1307, raw_resource_build!B:B, 0)))","v":""},null,{"$f":"raw_resource_build!B1307","v":"Southern_Nevada_Wind"},"In-State",{"$f":"IFERROR(INDEX($E$5:$E$32,MATCH(raw_resource_build!$E1307,Lists!$B$5:$B$32,0)),\"Non-CAISO\")","v":"Renewables"},null,{"$f":"raw_annual_energy!C1307","v":"SW_Geothermal_for_Other"},{"$f":"INDEX(K:K,MATCH(R1307,Lists!J:J,0))","v":"Geothermal"},"Non-wind"]
[null,null,null,null,null,null,null,null,null,{"$f":"IFERROR(INDEX(raw_resource_build!$B$2:$B$1000,MATCH(0,COUNTIF($J$1:J1307,raw_resource_build!$B$2:$B$1000), 0),0), \"\")","v":""},{"$f":"IF(J1308=\"\", \"\", INDEX(raw_resource_build!E:E, MATCH(J1308, raw_resource_build!B:B, 0)))","v":""},{"$f":"IF(J1308=\"\", \"\", INDEX(raw_resource_build!C:C, MATCH(J1308, raw_resource_build!B:B, 0)))","v":""},null,{"$f":"raw_resource_build!B1308","v":"SW_Ext_Tx_Wind"},"In-State",{"$f":"IFERROR(INDEX($E$5:$E$32,MATCH(raw_resource_build!$E1308,Lists!$B$5:$B$32,0)),\"Non-CAISO\")","v":"Renewables"},null,{"$f":"raw_annual_energy!C1308","v":"SW_Geothermal_for_Other"},{"$f":"INDEX(K:K,MATCH(R1308,Lists!J:J,0))","v":"Geothermal"},"Non-wind"]
[null,null,null,null,null,null,null,null,null,{"$f":"IFERROR(INDEX(raw_resource_build!$B$2:$B$1000,MATCH(0,COUNTIF($J$1:J1308,raw_resource_build!$B$2:$B$1000), 0),0), \"\")","v":""},{"$f":"IF(J1309=\"\", \"\", INDEX(raw_resource_build!E:E, MATCH(J1309, raw_resource_build!B:B, 0)))","v":""},{"$f":"IF(J1309=\"\", \"\", INDEX(raw_resource_build!C:C, MATCH(J1309, raw_resource_build!B:B, 0)))","v":""},null,{"$f":"raw_resource_build!B1309","v":"Tehachapi_Ex_Solar"},"In-State",{"$f":"IFERROR(INDEX($E$5:$E$32,MATCH(raw_resource_build!$E1309,Lists!$B$5:$B$32,0)),\"Non-CAISO\")","v":"Renewables"},null,{"$f":"raw_annual_energy!C1309","v":"SW_Geothermal_for_Other"},{"$f":"INDEX(K:K,MATCH(R1309,Lists!J:J,0))","v":"Geothermal"},"Non-wind"]
[null,null,null,null,null,null,null,null,null,{"$f":"IFERROR(INDEX(raw_resource_build!$B$2:$B$1000,MATCH(0,COUNTIF($J$1:J1309,raw_resource_build!$B$2:$B$1000), 0),0), \"\")","v":""},{"$f":"IF(J1310=\"\", \"\", INDEX(raw_resource_build!E:E, MATCH(J1310, raw_resource_build!B:B, 0)))","v":""},{"$f":"IF(J1310=\"\", \"\", INDEX(raw_resource_build!C:C, MATCH(J1310, raw_resource_build!B:B, 0)))","v":""},null,{"$f":"raw_resource_build!B1310","v":"Tehachapi_Solar"},"In-State",{"$f":"IFERROR(INDEX($E$5:$E$32,MATCH(raw_resource_build!$E1310,Lists!$B$5:$B$32,0)),\"Non-CAISO\")","v":"Renewables"},null,{"$f":"raw_annual_energy!C1310","v":"SW_Geothermal_for_Other"},{"$f":"INDEX(K:K,MATCH(R1310,Lists!J:J,0))","v":"Geothermal"},"Non-wind"]
[null,null,null,null,null,null,null,null,null,{"$f":"IFERROR(INDEX(raw_resource_build!$B$2:$B$1000,MATCH(0,COUNTIF($J$1:J1310,raw_resource_build!$B$2:$B$1000), 0),0), \"\")","v":""},{"$f":"IF(J1311=\"\", \"\", INDEX(raw_resource_build!E:E, MATCH(J1311, raw_resource_build!B:B, 0)))","v":""},{"$f":"IF(J1311=\"\", \"\", INDEX(raw_resource_build!C:C, MATCH(J1311, raw_resource_build!B:B, 0)))","v":""},null,{"$f":"raw_resource_build!B1311","v":"Tehachapi_Wind"},"In-State",{"$f":"IFERROR(INDEX($E$5:$E$32,MATCH(raw_resource_build!$E1311,Lists!$B$5:$B$32,0)),\"Non-CAISO\")","v":"Renewables"},null,{"$f":"raw_annual_energy!C1311","v":"SW_Geothermal_for_Other"},{"$f":"INDEX(K:K,MATCH(R1311,Lists!J:J,0))","v":"Geothermal"},"Non-wind"]
[null,null,null,null,null,null,null,null,null,{"$f":"IFERROR(INDEX(raw_resource_build!$B$2:$B$1000,MATCH(0,COUNTIF($J$1:J1311,raw_resource_build!$B$2:$B$1000), 0),0), \"\")","v":""},{"$f":"IF(J1312=\"\", \"\", INDEX(raw_resource_build!E:E, MATCH(J1312, raw_resource_build!B:B, 0)))","v":""},{"$f":"IF(J1312=\"\", \"\", INDEX(raw_resource_build!C:C, MATCH(J1312, raw_resource_build!B:B, 0)))","v":""},null,{"$f":"raw_resource_build!B1312","v":"Westlands_Ex_Solar"},"In-State",{"$f":"IFERROR(INDEX($E$5:$E$32,MATCH(raw_resource_build!$E1312,Lists!$B$5:$B$32,0)),\"Non-CAISO\")","v":"Renewables"},null,{"$f":"raw_annual_energy!C1312","v":"SW_Geothermal_for_Other"},{"$f":"INDEX(K:K,MATCH(R1312,Lists!J:J,0))","v":"Geothermal"},"Non-wind"]
[null,null,null,null,null,null,null,null,null,{"$f":"IFERROR(INDEX(raw_resource_build!$B$2:$B$1000,MATCH(0,COUNTIF($J$1:J1312,raw_resource_build!$B$2:$B$1000), 0),0), \"\")","v":""},{"$f":"IF(J1313=\"\", \"\", INDEX(raw_resource_build!E:E, MATCH(J1313, raw_resource_build!B:B, 0)))","v":""},{"$f":"IF(J1313=\"\", \"\", INDEX(raw_resource_build!C:C, MATCH(J1313, raw_resource_build!B:B, 0)))","v":""},null,{"$f":"raw_resource_build!B1313","v":"Westlands_Ex_Wind"},"In-State",{"$f":"IFERROR(INDEX($E$5:$E$32,MATCH(raw_resource_build!$E1313,Lists!$B$5:$B$32,0)),\"Non-CAISO\")","v":"Renewables"},null,{"$f":"raw_annual_energy!C1313","v":"SW_Geothermal_for_Other"},{"$f":"INDEX(K:K,MATCH(R1313,Lists!J:J,0))","v":"Geothermal"},"Non-wind"]
[null,null,null,null,null,null,null,null,null,{"$f":"IFERROR(INDEX(raw_resource_build!$B$2:$B$1000,MATCH(0,COUNTIF($J$1:J1313,raw_resource_build!$B$2:$B$1000), 0),0), \"\")","v":""},{"$f":"IF(J1314=\"\", \"\", INDEX(raw_resource_build!E:E, MATCH(J1314, raw_resource_build!B:B, 0)))","v":""},{"$f":"IF(J1314=\"\", \"\", INDEX(raw_resource_build!C:C, MATCH(J1314, raw_resource_build!B:B, 0)))","v":""},null,{"$f":"raw_resource_build!B1314","v":"Westlands_Solar"},"In-State",{"$f":"IFERROR(INDEX($E$5:$E$32,MATCH(raw_resource_build!$E1314,Lists!$B$5:$B$32,0)),\"Non-CAISO\")","v":"Renewables"},null,{"$f":"raw_annual_energy!C1314","v":"SW_Geothermal_for_Other"},{"$f":"INDEX(K:K,MATCH(R1314,Lists!J:J,0))","v":"Geothermal"},"Non-wind"]
[null,null,null,null,null,null,null,null,null,{"$f":"IFERROR(INDEX(raw_resource_build!$B$2:$B$1000,MATCH(0,COUNTIF($J$1:J1314,raw_resource_build!$B$2:$B$1000), 0),0), \"\")","v":""},{"$f":"IF(J1315=\"\", \"\", INDEX(raw_resource_build!E:E, MATCH(J1315, raw_resource_build!B:B, 0)))","v":""},{"$f":"IF(J1315=\"\", \"\", INDEX(raw_resource_build!C:C, MATCH(J1315, raw_resource_build!B:B, 0)))","v":""},null,{"$f":"raw_resource_build!B1315","v":"Arizona_Solar"},"In-State",{"$f":"IFERROR(INDEX($E$5:$E$32,MATCH(raw_resource_build!$E1315,Lists!$B$5:$B$32,0)),\"Non-CAISO\")","v":"Renewables"},null,{"$f":"raw_annual_energy!C1315","v":"SW_Hydro"},{"$f":"INDEX(K:K,MATCH(R1315,Lists!J:J,0))","v":"Hydro"},"Non-wind"]
[null,null,null,null,null,null,null,null,null,{"$f":"IFERROR(INDEX(raw_resource_build!$B$2:$B$1000,MATCH(0,COUNTIF($J$1:J1315,raw_resource_build!$B$2:$B$1000), 0),0), \"\")","v":""},{"$f":"IF(J1316=\"\", \"\", INDEX(raw_resource_build!E:E, MATCH(J1316, raw_resource_build!B:B, 0)))","v":""},{"$f":"IF(J1316=\"\", \"\", INDEX(raw_resource_build!C:C, MATCH(J1316, raw_resource_build!B:B, 0)))","v":""},null,{"$f":"raw_resource_build!B1316","v":"Arizona_Wind"},"Out-Of-State",{"$f":"IFERROR(INDEX($E$5:$E$32,MATCH(raw_resource_build!$E1316,Lists!$B$5:$B$32,0)),\"Non-CAISO\")","v":"Renewables"},null,{"$f":"raw_annual_energy!C1316","v":"SW_Hydro"},{"$f":"INDEX(K:K,MATCH(R1316,Lists!J:J,0))","v":"Hydro"},"Non-wind"]
[null,null,null,null,null,null,null,null,null,{"$f":"IFERROR(INDEX(raw_resource_build!$B$2:$B$1000,MATCH(0,COUNTIF($J$1:J1316,raw_resource_build!$B$2:$B$1000), 0),0), \"\")","v":""},{"$f":"IF(J1317=\"\", \"\", INDEX(raw_resource_build!E:E, MATCH(J1317, raw_resource_build!B:B, 0)))","v":""},{"$f":"IF(J1317=\"\", \"\", INDEX(raw_resource_build!C:C, MATCH(J1317, raw_resource_build!B:B, 0)))","v":""},null,{"$f":"raw_resource_build!B1317","v":"Baja_California_Solar"},"In-State",{"$f":"IFERROR(INDEX($E$5:$E$32,MATCH(raw_resource_build!$E1317,Lists!$B$5:$B$32,0)),\"Non-CAISO\")","v":"Renewables"},null,{"$f":"raw_annual_energy!C1317","v":"SW_Hydro"},{"$f":"INDEX(K:K,MATCH(R1317,Lists!J:J,0))","v":"Hydro"},"Non-wind"]
[null,null,null,null,null,null,null,null,null,{"$f":"IFERROR(INDEX(raw_resource_build!$B$2:$B$1000,MATCH(0,COUNTIF($J$1:J1317,raw_resource_build!$B$2:$B$1000), 0),0), \"\")","v":""},{"$f":"IF(J1318=\"\", \"\", INDEX(raw_resource_build!E:E, MATCH(J1318, raw_resource_build!B:B, 0)))","v":""},{"$f":"IF(J1318=\"\", \"\", INDEX(raw_resource_build!C:C, MATCH(J1318, raw_resource_build!B:B, 0)))","v":""},null,{"$f":"raw_resource_build!B1318","v":"Baja_California_Wind"},"In-State",{"$f":"IFERROR(INDEX($E$5:$E$32,MATCH(raw_resource_build!$E1318,Lists!$B$5:$B$32,0)),\"Non-CAISO\")","v":"Renewables"},null,{"$f":"raw_annual_energy!C1318","v":"SW_Hydro"},{"$f":"INDEX(K:K,MATCH(R1318,Lists!J:J,0))","v":"Hydro"},"Non-wind"]
[null,null,null,null,null,null,null,null,null,{"$f":"IFERROR(INDEX(raw_resource_build!$B$2:$B$1000,MATCH(0,COUNTIF($J$1:J1318,raw_resource_build!$B$2:$B$1000), 0),0), \"\")","v":""},{"$f":"IF(J1319=\"\", \"\", INDEX(raw_resource_build!E:E, MATCH(J1319, raw_resource_build!B:B, 0)))","v":""},{"$f":"IF(J1319=\"\", \"\", INDEX(raw_resource_build!C:C, MATCH(J1319, raw_resource_build!B:B, 0)))","v":""},null,{"$f":"raw_resource_build!B1319","v":"Idaho_Wind"},"Out-Of-State",{"$f":"IFERROR(INDEX($E$5:$E$32,MATCH(raw_resource_build!$E1319,Lists!$B$5:$B$32,0)),\"Non-CAISO\")","v":"Renewables"},null,{"$f":"raw_annual_energy!C1319","v":"SW_Hydro"},{"$f":"INDEX(K:K,MATCH(R1319,Lists!J:J,0))","v":"Hydro"},"Non-wind"]
[null,null,null,null,null,null,null,null,null,{"$f":"IFERROR(INDEX(raw_resource_build!$B$2:$B$1000,MATCH(0,COUNTIF($J$1:J1319,raw_resource_build!$B$2:$B$1000), 0),0), \"\")","v":""},{"$f":"IF(J1320=\"\", \"\", INDEX(raw_resource_build!E:E, MATCH(J1320, raw_resource_build!B:B, 0)))","v":""},{"$f":"IF(J1320=\"\", \"\", INDEX(raw_resource_build!C:C, MATCH(J1320, raw_resource_build!B:B, 0)))","v":""},null,{"$f":"raw_resource_build!B1320","v":"New_Mexico_Solar"},"Out-Of-State",{"$f":"IFERROR(INDEX($E$5:$E$32,MATCH(raw_resource_build!$E1320,Lists!$B$5:$B$32,0)),\"Non-CAISO\")","v":"Renewables"},null,{"$f":"raw_annual_energy!C1320","v":"SW_Hydro"},{"$f":"INDEX(K:K,MATCH(R1320,Lists!J:J,0))","v":"Hydro"},"Non-wind"]
[null,null,null,null,null,null,null,null,null,{"$f":"IFERROR(INDEX(raw_resource_build!$B$2:$B$1000,MATCH(0,COUNTIF($J$1:J1320,raw_resource_build!$B$2:$B$1000), 0),0), \"\")","v":""},{"$f":"IF(J1321=\"\", \"\", INDEX(raw_resource_build!E:E, MATCH(J1321, raw_resource_build!B:B, 0)))","v":""},{"$f":"IF(J1321=\"\", \"\", INDEX(raw_resource_build!C:C, MATCH(J1321, raw_resource_build!B:B, 0)))","v":""},null,{"$f":"raw_resource_build!B1321","v":"New_Mexico_Wind"},"Out-Of-State",{"$f":"IFERROR(INDEX($E$5:$E$32,MATCH(raw_resource_build!$E1321,Lists!$B$5:$B$32,0)),\"Non-CAISO\")","v":"Renewables"},null,{"$f":"raw_annual_energy!C1321","v":"SW_Hydro"},{"$f":"INDEX(K:K,MATCH(R1321,Lists!J:J,0))","v":"Hydro"},"Non-wind"]
[null,null,null,null,null,null,null,null,null,{"$f":"IFERROR(INDEX(raw_resource_build!$B$2:$B$1000,MATCH(0,COUNTIF($J$1:J1321,raw_resource_build!$B$2:$B$1000), 0),0), \"\")","v":""},{"$f":"IF(J1322=\"\", \"\", INDEX(raw_resource_build!E:E, MATCH(J1322, raw_resource_build!B:B, 0)))","v":""},{"$f":"IF(J1322=\"\", \"\", INDEX(raw_resource_build!C:C, MATCH(J1322, raw_resource_build!B:B, 0)))","v":""},null,{"$f":"raw_resource_build!B1322","v":"Utah_Solar"},"Out-Of-State",{"$f":"IFERROR(INDEX($E$5:$E$32,MATCH(raw_resource_build!$E1322,Lists!$B$5:$B$32,0)),\"Non-CAISO\")","v":"Renewables"},null,{"$f":"raw_annual_energy!C1322","v":"SW_Hydro"},{"$f":"INDEX(K:K,MATCH(R1322,Lists!J:J,0))","v":"Hydro"},"Non-wind"]
[null,null,null,null,null,null,null,null,null,{"$f":"IFERROR(INDEX(raw_resource_build!$B$2:$B$1000,MATCH(0,COUNTIF($J$1:J1322,raw_resource_build!$B$2:$B$1000), 0),0), \"\")","v":""},{"$f":"IF(J1323=\"\", \"\", INDEX(raw_resource_build!E:E, MATCH(J1323, raw_resource_build!B:B, 0)))","v":""},{"$f":"IF(J1323=\"\", \"\", INDEX(raw_resource_build!C:C, MATCH(J1323, raw_resource_build!B:B, 0)))","v":""},null,{"$f":"raw_resource_build!B1323","v":"Utah_Wind"},"Out-Of-State",{"$f":"IFERROR(INDEX($E$5:$E$32,MATCH(raw_resource_build!$E1323,Lists!$B$5:$B$32,0)),\"Non-CAISO\")","v":"Renewables"},null,{"$f":"raw_annual_energy!C1323","v":"SW_Nuclear"},{"$f":"INDEX(K:K,MATCH(R1323,Lists!J:J,0))","v":"SW_Nuclear"},"Non-wind"]
[null,null,null,null,null,null,null,null,null,{"$f":"IFERROR(INDEX(raw_resource_build!$B$2:$B$1000,MATCH(0,COUNTIF($J$1:J1323,raw_resource_build!$B$2:$B$1000), 0),0), \"\")","v":""},{"$f":"IF(J1324=\"\", \"\", INDEX(raw_resource_build!E:E, MATCH(J1324, raw_resource_build!B:B, 0)))","v":""},{"$f":"IF(J1324=\"\", \"\", INDEX(raw_resource_build!C:C, MATCH(J1324, raw_resource_build!B:B, 0)))","v":""},null,{"$f":"raw_resource_build!B1324","v":"Wyoming_Wind"},"Out-Of-State",{"$f":"IFERROR(INDEX($E$5:$E$32,MATCH(raw_resource_build!$E1324,Lists!$B$5:$B$32,0)),\"Non-CAISO\")","v":"Renewables"},null,{"$f":"raw_annual_energy!C1324","v":"SW_Nuclear"},{"$f":"INDEX(K:K,MATCH(R1324,Lists!J:J,0))","v":"SW_Nuclear"},"Non-wind"]
[null,null,null,null,null,null,null,null,null,{"$f":"IFERROR(INDEX(raw_resource_build!$B$2:$B$1000,MATCH(0,COUNTIF($J$1:J1324,raw_resource_build!$B$2:$B$1000), 0),0), \"\")","v":""},{"$f":"IF(J1325=\"\", \"\", INDEX(raw_resource_build!E:E, MATCH(J1325, raw_resource_build!B:B, 0)))","v":""},{"$f":"IF(J1325=\"\", \"\", INDEX(raw_resource_build!C:C, MATCH(J1325, raw_resource_build!B:B, 0)))","v":""},null,{"$f":"raw_resource_build!B1325","v":"Pacific_Northwest_Wind"},"Out-Of-State",{"$f":"IFERROR(INDEX($E$5:$E$32,MATCH(raw_resource_build!$E1325,Lists!$B$5:$B$32,0)),\"Non-CAISO\")","v":"Renewables"},null,{"$f":"raw_annual_energy!C1325","v":"SW_Nuclear"},{"$f":"INDEX(K:K,MATCH(R1325,Lists!J:J,0))","v":"SW_Nuclear"},"Non-wind"]
[null,null,null,null,null,null,null,null,null,{"$f":"IFERROR(INDEX(raw_resource_build!$B$2:$B$1000,MATCH(0,COUNTIF($J$1:J1325,raw_resource_build!$B$2:$B$1000), 0),0), \"\")","v":""},{"$f":"IF(J1326=\"\", \"\", INDEX(raw_resource_build!E:E, MATCH(J1326, raw_resource_build!B:B, 0)))","v":""},{"$f":"IF(J1326=\"\", \"\", INDEX(raw_resource_build!C:C, MATCH(J1326, raw_resource_build!B:B, 0)))","v":""},null,{"$f":"raw_resource_build!B1326","v":"Diablo_Canyon_Offshore_Wind"},"In-State",{"$f":"IFERROR(INDEX($E$5:$E$32,MATCH(raw_resource_build!$E1326,Lists!$B$5:$B$32,0)),\"Non-CAISO\")","v":"Renewables"},null,{"$f":"raw_annual_energy!C1326","v":"SW_Nuclear"},{"$f":"INDEX(K:K,MATCH(R1326,Lists!J:J,0))","v":"SW_Nuclear"},"Non-wind"]
[null,null,null,null,null,null,null,null,null,{"$f":"IFERROR(INDEX(raw_resource_build!$B$2:$B$1000,MATCH(0,COUNTIF($J$1:J1326,raw_resource_build!$B$2:$B$1000), 0),0), \"\")","v":""},{"$f":"IF(J1327=\"\", \"\", INDEX(raw_resource_build!E:E, MATCH(J1327, raw_resource_build!B:B, 0)))","v":""},{"$f":"IF(J1327=\"\", \"\", INDEX(raw_resource_build!C:C, MATCH(J1327, raw_resource_build!B:B, 0)))","v":""},null,{"$f":"raw_resource_build!B1327","v":"Humboldt_Bay_Offshore_Wind"},"In-State",{"$f":"IFERROR(INDEX($E$5:$E$32,MATCH(raw_resource_build!$E1327,Lists!$B$5:$B$32,0)),\"Non-CAISO\")","v":"Renewables"},null,{"$f":"raw_annual_energy!C1327","v":"SW_Nuclear"},{"$f":"INDEX(K:K,MATCH(R1327,Lists!J:J,0))","v":"SW_Nuclear"},"Non-wind"]
[null,null,null,null,null,null,null,null,null,{"$f":"IFERROR(INDEX(raw_resource_build!$B$2:$B$1000,MATCH(0,COUNTIF($J$1:J1327,raw_resource_build!$B$2:$B$1000), 0),0), \"\")","v":""},{"$f":"IF(J1328=\"\", \"\", INDEX(raw_resource_build!E:E, MATCH(J1328, raw_resource_build!B:B, 0)))","v":""},{"$f":"IF(J1328=\"\", \"\", INDEX(raw_resource_build!C:C, MATCH(J1328, raw_resource_build!B:B, 0)))","v":""},null,{"$f":"raw_resource_build!B1328","v":"Morro_Bay_Offshore_Wind"},"In-State",{"$f":"IFERROR(INDEX($E$5:$E$32,MATCH(raw_resource_build!$E1328,Lists!$B$5:$B$32,0)),\"Non-CAISO\")","v":"Renewables"},null,{"$f":"raw_annual_energy!C1328","v":"SW_Nuclear"},{"$f":"INDEX(K:K,MATCH(R1328,Lists!J:J,0))","v":"SW_Nuclear"},"Non-wind"]
[null,null,null,null,null,null,null,null,null,{"$f":"IFERROR(INDEX(raw_resource_build!$B$2:$B$1000,MATCH(0,COUNTIF($J$1:J1328,raw_resource_build!$B$2:$B$1000), 0),0), \"\")","v":""},{"$f":"IF(J1329=\"\", \"\", INDEX(raw_resource_build!E:E, MATCH(J1329, raw_resource_build!B:B, 0)))","v":""},{"$f":"IF(J1329=\"\", \"\", INDEX(raw_resource_build!C:C, MATCH(J1329, raw_resource_build!B:B, 0)))","v":""},null,{"$f":"raw_resource_build!B1329","v":"Diablo_Canyon_Offshore_Wind_Ext_Tx"},"In-State",{"$f":"IFERROR(INDEX($E$5:$E$32,MATCH(raw_resource_build!$E1329,Lists!$B$5:$B$32,0)),\"Non-CAISO\")","v":"Renewables"},null,{"$f":"raw_annual_energy!C1329","v":"SW_Nuclear"},{"$f":"INDEX(K:K,MATCH(R1329,Lists!J:J,0))","v":"SW_Nuclear"},"Non-wind"]
[null,null,null,null,null,null,null,null,null,{"$f":"IFERROR(INDEX(raw_resource_build!$B$2:$B$1000,MATCH(0,COUNTIF($J$1:J1329,raw_resource_build!$B$2:$B$1000), 0),0), \"\")","v":""},{"$f":"IF(J1330=\"\", \"\", INDEX(raw_resource_build!E:E, MATCH(J1330, raw_resource_build!B:B, 0)))","v":""},{"$f":"IF(J1330=\"\", \"\", INDEX(raw_resource_build!C:C, MATCH(J1330, raw_resource_build!B:B, 0)))","v":""},null,{"$f":"raw_resource_build!B1330","v":"Cape_Mendocino_Offshore_Wind"},"In-State",{"$f":"IFERROR(INDEX($E$5:$E$32,MATCH(raw_resource_build!$E1330,Lists!$B$5:$B$32,0)),\"Non-CAISO\")","v":"Renewables"},null,{"$f":"raw_annual_energy!C1330","v":"SW_Nuclear"},{"$f":"INDEX(K:K,MATCH(R1330,Lists!J:J,0))","v":"SW_Nuclear"},"Non-wind"]
[null,null,null,null,null,null,null,null,null,{"$f":"IFERROR(INDEX(raw_resource_build!$B$2:$B$1000,MATCH(0,COUNTIF($J$1:J1330,raw_resource_build!$B$2:$B$1000), 0),0), \"\")","v":""},{"$f":"IF(J1331=\"\", \"\", INDEX(raw_resource_build!E:E, MATCH(J1331, raw_resource_build!B:B, 0)))","v":""},{"$f":"IF(J1331=\"\", \"\", INDEX(raw_resource_build!C:C, MATCH(J1331, raw_resource_build!B:B, 0)))","v":""},null,{"$f":"raw_resource_build!B1331","v":"Del_Norte_Offshore_Wind"},"In-State",{"$f":"IFERROR(INDEX($E$5:$E$32,MATCH(raw_resource_build!$E1331,Lists!$B$5:$B$32,0)),\"Non-CAISO\")","v":"Renewables"},null,{"$f":"raw_annual_energy!C1331","v":"SW_Peaker"},{"$f":"INDEX(K:K,MATCH(R1331,Lists!J:J,0))","v":"SW_Peaker"},"Non-wind"]
[null,null,null,null,null,null,null,null,null,{"$f":"IFERROR(INDEX(raw_resource_build!$B$2:$B$1000,MATCH(0,COUNTIF($J$1:J1331,raw_resource_build!$B$2:$B$1000), 0),0), \"\")","v":""},{"$f":"IF(J1332=\"\", \"\", INDEX(raw_resource_build!E:E, MATCH(J1332, raw_resource_build!B:B, 0)))","v":""},{"$f":"IF(J1332=\"\", \"\", INDEX(raw_resource_build!C:C, MATCH(J1332, raw_resource_build!B:B, 0)))","v":""},null,{"$f":"raw_resource_build!B1332","v":"CAISO_Existing_Pumped_Storage"},"Non-wind",{"$f":"IFERROR(INDEX($E$5:$E$32,MATCH(raw_resource_build!$E1332,Lists!$B$5:$B$32,0)),\"Non-CAISO\")","v":"Pumped Storage"},null,{"$f":"raw_annual_energy!C1332","v":"SW_Peaker"},{"$f":"INDEX(K:K,MATCH(R1332,Lists!J:J,0))","v":"SW_Peaker"},"Non-wind"]
[null,null,null,null,null,null,null,null,null,{"$f":"IFERROR(INDEX(raw_resource_build!$B$2:$B$1000,MATCH(0,COUNTIF($J$1:J1332,raw_resource_build!$B$2:$B$1000), 0),0), \"\")","v":""},{"$f":"IF(J1333=\"\", \"\", INDEX(raw_resource_build!E:E, MATCH(J1333, raw_resource_build!B:B, 0)))","v":""},{"$f":"IF(J1333=\"\", \"\", INDEX(raw_resource_build!C:C, MATCH(J1333, raw_resource_build!B:B, 0)))","v":""},null,{"$f":"raw_resource_build!B1333","v":"CAISO_New_Pumped_Storage"},"Non-wind",{"$f":"IFERROR(INDEX($E$5:$E$32,MATCH(raw_resource_build!$E1333,Lists!$B$5:$B$32,0)),\"Non-CAISO\")","v":"Pumped Storage"},null,{"$f":"raw_annual_energy!C1333","v":"SW_Peaker"},{"$f":"INDEX(K:K,MATCH(R1333,Lists!J:J,0))","v":"SW_Peaker"},"Non-wind"]
[null,null,null,null,null,null,null,null,null,{"$f":"IFERROR(INDEX(raw_resource_build!$B$2:$B$1000,MATCH(0,COUNTIF($J$1:J1333,raw_resource_build!$B$2:$B$1000), 0),0), \"\")","v":""},{"$f":"IF(J1334=\"\", \"\", INDEX(raw_resource_build!E:E, MATCH(J1334, raw_resource_build!B:B, 0)))","v":""},{"$f":"IF(J1334=\"\", \"\", INDEX(raw_resource_build!C:C, MATCH(J1334, raw_resource_build!B:B, 0)))","v":""},null,{"$f":"raw_resource_build!B1334","v":"CAISO_New_Flow_Battery"},"Non-wind",{"$f":"IFERROR(INDEX($E$5:$E$32,MATCH(raw_resource_build!$E1334,Lists!$B$5:$B$32,0)),\"Non-CAISO\")","v":"Battery (incl. BTM)"},null,{"$f":"raw_annual_energy!C1334","v":"SW_Peaker"},{"$f":"INDEX(K:K,MATCH(R1334,Lists!J:J,0))","v":"SW_Peaker"},"Non-wind"]
[null,null,null,null,null,null,null,null,null,{"$f":"IFERROR(INDEX(raw_resource_build!$B$2:$B$1000,MATCH(0,COUNTIF($J$1:J1334,raw_resource_build!$B$2:$B$1000), 0),0), \"\")","v":""},{"$f":"IF(J1335=\"\", \"\", INDEX(raw_resource_build!E:E, MATCH(J1335, raw_resource_build!B:B, 0)))","v":""},{"$f":"IF(J1335=\"\", \"\", INDEX(raw_resource_build!C:C, MATCH(J1335, raw_resource_build!B:B, 0)))","v":""},null,{"$f":"raw_resource_build!B1335","v":"CAISO_New_Flow_Battery_2"},"Non-wind",{"$f":"IFERROR(INDEX($E$5:$E$32,MATCH(raw_resource_build!$E1335,Lists!$B$5:$B$32,0)),\"Non-CAISO\")","v":"Battery (incl. BTM)"},null,{"$f":"raw_annual_energy!C1335","v":"SW_Peaker"},{"$f":"INDEX(K:K,MATCH(R1335,Lists!J:J,0))","v":"SW_Peaker"},"Non-wind"]
[null,null,null,null,null,null,null,null,null,{"$f":"IFERROR(INDEX(raw_resource_build!$B$2:$B$1000,MATCH(0,COUNTIF($J$1:J1335,raw_resource_build!$B$2:$B$1000), 0),0), \"\")","v":""},{"$f":"IF(J1336=\"\", \"\", INDEX(raw_resource_build!E:E, MATCH(J1336, raw_resource_build!B:B, 0)))","v":""},{"$f":"IF(J1336=\"\", \"\", INDEX(raw_resource_build!C:C, MATCH(J1336, raw_resource_build!B:B, 0)))","v":""},null,{"$f":"raw_resource_build!B1336","v":"CAISO_New_Flow_Battery_3"},"Non-wind",{"$f":"IFERROR(INDEX($E$5:$E$32,MATCH(raw_resource_build!$E1336,Lists!$B$5:$B$32,0)),\"Non-CAISO\")","v":"Battery (incl. BTM)"},null,{"$f":"raw_annual_energy!C1336","v":"SW_Peaker"},{"$f":"INDEX(K:K,MATCH(R1336,Lists!J:J,0))","v":"SW_Peaker"},"Non-wind"]
[null,null,null,null,null,null,null,null,null,{"$f":"IFERROR(INDEX(raw_resource_build!$B$2:$B$1000,MATCH(0,COUNTIF($J$1:J1336,raw_resource_build!$B$2:$B$1000), 0),0), \"\")","v":""},{"$f":"IF(J1337=\"\", \"\", INDEX(raw_resource_build!E:E, MATCH(J1337, raw_resource_build!B:B, 0)))","v":""},{"$f":"IF(J1337=\"\", \"\", INDEX(raw_resource_build!C:C, MATCH(J1337, raw_resource_build!B:B, 0)))","v":""},null,{"$f":"raw_resource_build!B1337","v":"CAISO_New_Flow_Battery_4"},"Non-wind",{"$f":"IFERROR(INDEX($E$5:$E$32,MATCH(raw_resource_build!$E1337,Lists!$B$5:$B$32,0)),\"Non-CAISO\")","v":"Battery (incl. BTM)"},null,{"$f":"raw_annual_energy!C1337","v":"SW_Peaker"},{"$f":"INDEX(K:K,MATCH(R1337,Lists!J:J,0))","v":"SW_Peaker"},"Non-wind"]
[null,null,null,null,null,null,null,null,null,{"$f":"IFERROR(INDEX(raw_resource_build!$B$2:$B$1000,MATCH(0,COUNTIF($J$1:J1337,raw_resource_build!$B$2:$B$1000), 0),0), \"\")","v":""},{"$f":"IF(J1338=\"\", \"\", INDEX(raw_resource_build!E:E, MATCH(J1338, raw_resource_build!B:B, 0)))","v":""},{"$f":"IF(J1338=\"\", \"\", INDEX(raw_resource_build!C:C, MATCH(J1338, raw_resource_build!B:B, 0)))","v":""},null,{"$f":"raw_resource_build!B1338","v":"CAISO_New_Flow_Battery_5"},"Non-wind",{"$f":"IFERROR(INDEX($E$5:$E$32,MATCH(raw_resource_build!$E1338,Lists!$B$5:$B$32,0)),\"Non-CAISO\")","v":"Battery (incl. BTM)"},null,{"$f":"raw_annual_energy!C1338","v":"SW_Peaker"},{"$f":"INDEX(K:K,MATCH(R1338,Lists!J:J,0))","v":"SW_Peaker"},"Non-wind"]
[null,null,null,null,null,null,null,null,null,{"$f":"IFERROR(INDEX(raw_resource_build!$B$2:$B$1000,MATCH(0,COUNTIF($J$1:J1338,raw_resource_build!$B$2:$B$1000), 0),0), \"\")","v":""},{"$f":"IF(J1339=\"\", \"\", INDEX(raw_resource_build!E:E, MATCH(J1339, raw_resource_build!B:B, 0)))","v":""},{"$f":"IF(J1339=\"\", \"\", INDEX(raw_resource_build!C:C, MATCH(J1339, raw_resource_build!B:B, 0)))","v":""},null,{"$f":"raw_resource_build!B1339","v":"CAISO_New_Li_Battery"},"Non-wind",{"$f":"IFERROR(INDEX($E$5:$E$32,MATCH(raw_resource_build!$E1339,Lists!$B$5:$B$32,0)),\"Non-CAISO\")","v":"Battery (incl. BTM)"},null,{"$f":"raw_annual_energy!C1339","v":"SW_ST"},{"$f":"INDEX(K:K,MATCH(R1339,Lists!J:J,0))","v":"SW_ST"},"Non-wind"]
[null,null,null,null,null,null,null,null,null,{"$f":"IFERROR(INDEX(raw_resource_build!$B$2:$B$1000,MATCH(0,COUNTIF($J$1:J1339,raw_resource_build!$B$2:$B$1000), 0),0), \"\")","v":""},{"$f":"IF(J1340=\"\", \"\", INDEX(raw_resource_build!E:E, MATCH(J1340, raw_resource_build!B:B, 0)))","v":""},{"$f":"IF(J1340=\"\", \"\", INDEX(raw_resource_build!C:C, MATCH(J1340, raw_resource_build!B:B, 0)))","v":""},null,{"$f":"raw_resource_build!B1340","v":"CAISO_BTM_Li_Battery"},"Non-wind",{"$f":"IFERROR(INDEX($E$5:$E$32,MATCH(raw_resource_build!$E1340,Lists!$B$5:$B$32,0)),\"Non-CAISO\")","v":"Battery (incl. BTM)"},null,{"$f":"raw_annual_energy!C1340","v":"SW_ST"},{"$f":"INDEX(K:K,MATCH(R1340,Lists!J:J,0))","v":"SW_ST"},"Non-wind"]
[null,null,null,null,null,null,null,null,null,{"$f":"IFERROR(INDEX(raw_resource_build!$B$2:$B$1000,MATCH(0,COUNTIF($J$1:J1340,raw_resource_build!$B$2:$B$1000), 0),0), \"\")","v":""},{"$f":"IF(J1341=\"\", \"\", INDEX(raw_resource_build!E:E, MATCH(J1341, raw_resource_build!B:B, 0)))","v":""},{"$f":"IF(J1341=\"\", \"\", INDEX(raw_resource_build!C:C, MATCH(J1341, raw_resource_build!B:B, 0)))","v":""},null,{"$f":"raw_resource_build!B1341","v":"CAISO_New_Li_Battery_2"},"Non-wind",{"$f":"IFERROR(INDEX($E$5:$E$32,MATCH(raw_resource_build!$E1341,Lists!$B$5:$B$32,0)),\"Non-CAISO\")","v":"Battery (incl. BTM)"},null,{"$f":"raw_annual_energy!C1341","v":"SW_ST"},{"$f":"INDEX(K:K,MATCH(R1341,Lists!J:J,0))","v":"SW_ST"},"Non-wind"]
[null,null,null,null,null,null,null,null,null,{"$f":"IFERROR(INDEX(raw_resource_build!$B$2:$B$1000,MATCH(0,COUNTIF($J$1:J1341,raw_resource_build!$B$2:$B$1000), 0),0), \"\")","v":""},{"$f":"IF(J1342=\"\", \"\", INDEX(raw_resource_build!E:E, MATCH(J1342, raw_resource_build!B:B, 0)))","v":""},{"$f":"IF(J1342=\"\", \"\", INDEX(raw_resource_build!C:C, MATCH(J1342, raw_resource_build!B:B, 0)))","v":""},null,{"$f":"raw_resource_build!B1342","v":"CAISO_New_Li_Battery_3"},"Non-wind",{"$f":"IFERROR(INDEX($E$5:$E$32,MATCH(raw_resource_build!$E1342,Lists!$B$5:$B$32,0)),\"Non-CAISO\")","v":"Battery (incl. BTM)"},null,{"$f":"raw_annual_energy!C1342","v":"SW_ST"},{"$f":"INDEX(K:K,MATCH(R1342,Lists!J:J,0))","v":"SW_ST"},"Non-wind"]
[null,null,null,null,null,null,null,null,null,{"$f":"IFERROR(INDEX(raw_resource_build!$B$2:$B$1000,MATCH(0,COUNTIF($J$1:J1342,raw_resource_build!$B$2:$B$1000), 0),0), \"\")","v":""},{"$f":"IF(J1343=\"\", \"\", INDEX(raw_resource_build!E:E, MATCH(J1343, raw_resource_build!B:B, 0)))","v":""},{"$f":"IF(J1343=\"\", \"\", INDEX(raw_resource_build!C:C, MATCH(J1343, raw_resource_build!B:B, 0)))","v":""},null,{"$f":"raw_resource_build!B1343","v":"CAISO_New_Li_Battery_4"},"Non-wind",{"$f":"IFERROR(INDEX($E$5:$E$32,MATCH(raw_resource_build!$E1343,Lists!$B$5:$B$32,0)),\"Non-CAISO\")","v":"Battery (incl. BTM)"},null,{"$f":"raw_annual_energy!C1343","v":"SW_ST"},{"$f":"INDEX(K:K,MATCH(R1343,Lists!J:J,0))","v":"SW_ST"},"Non-wind"]
[null,null,null,null,null,null,null,null,null,{"$f":"IFERROR(INDEX(raw_resource_build!$B$2:$B$1000,MATCH(0,COUNTIF($J$1:J1343,raw_resource_build!$B$2:$B$1000), 0),0), \"\")","v":""},{"$f":"IF(J1344=\"\", \"\", INDEX(raw_resource_build!E:E, MATCH(J1344, raw_resource_build!B:B, 0)))","v":""},{"$f":"IF(J1344=\"\", \"\", INDEX(raw_resource_build!C:C, MATCH(J1344, raw_resource_build!B:B, 0)))","v":""},null,{"$f":"raw_resource_build!B1344","v":"CAISO_New_Li_Battery_5"},"Non-wind",{"$f":"IFERROR(INDEX($E$5:$E$32,MATCH(raw_resource_build!$E1344,Lists!$B$5:$B$32,0)),\"Non-CAISO\")","v":"Battery (incl. BTM)"},null,{"$f":"raw_annual_energy!C1344","v":"SW_ST"},{"$f":"INDEX(K:K,MATCH(R1344,Lists!J:J,0))","v":"SW_ST"},"Non-wind"]
[null,null,null,null,null,null,null,null,null,{"$f":"IFERROR(INDEX(raw_resource_build!$B$2:$B$1000,MATCH(0,COUNTIF($J$1:J1344,raw_resource_build!$B$2:$B$1000), 0),0), \"\")","v":""},{"$f":"IF(J1345=\"\", \"\", INDEX(raw_resource_build!E:E, MATCH(J1345, raw_resource_build!B:B, 0)))","v":""},{"$f":"IF(J1345=\"\", \"\", INDEX(raw_resource_build!C:C, MATCH(J1345, raw_resource_build!B:B, 0)))","v":""},null,{"$f":"raw_resource_build!B1345","v":"CAISO_New_Li_Battery_6"},"Non-wind",{"$f":"IFERROR(INDEX($E$5:$E$32,MATCH(raw_resource_build!$E1345,Lists!$B$5:$B$32,0)),\"Non-CAISO\")","v":"Battery (incl. BTM)"},null,{"$f":"raw_annual_energy!C1345","v":"SW_ST"},{"$f":"INDEX(K:K,MATCH(R1345,Lists!J:J,0))","v":"SW_ST"},"Non-wind"]
[null,null,null,null,null,null,null,null,null,{"$f":"IFERROR(INDEX(raw_resource_build!$B$2:$B$1000,MATCH(0,COUNTIF($J$1:J1345,raw_resource_build!$B$2:$B$1000), 0),0), \"\")","v":""},{"$f":"IF(J1346=\"\", \"\", INDEX(raw_resource_build!E:E, MATCH(J1346, raw_resource_build!B:B, 0)))","v":""},{"$f":"IF(J1346=\"\", \"\", INDEX(raw_resource_build!C:C, MATCH(J1346, raw_resource_build!B:B, 0)))","v":""},null,{"$f":"raw_resource_build!B1346","v":"CAISO_Hydro"},"Non-wind",{"$f":"IFERROR(INDEX($E$5:$E$32,MATCH(raw_resource_build!$E1346,Lists!$B$5:$B$32,0)),\"Non-CAISO\")","v":"Hydro (small + large)"},null,{"$f":"raw_annual_energy!C1346","v":"SW_ST"},{"$f":"INDEX(K:K,MATCH(R1346,Lists!J:J,0))","v":"SW_ST"},"Non-wind"]
[null,null,null,null,null,null,null,null,null,{"$f":"IFERROR(INDEX(raw_resource_build!$B$2:$B$1000,MATCH(0,COUNTIF($J$1:J1346,raw_resource_build!$B$2:$B$1000), 0),0), \"\")","v":""},{"$f":"IF(J1347=\"\", \"\", INDEX(raw_resource_build!E:E, MATCH(J1347, raw_resource_build!B:B, 0)))","v":""},{"$f":"IF(J1347=\"\", \"\", INDEX(raw_resource_build!C:C, MATCH(J1347, raw_resource_build!B:B, 0)))","v":""},null,{"$f":"raw_resource_build!B1347","v":"NW_Hydro"},{"$f":"IFERROR(INDEX($C$35:$C$99,MATCH($N1347,$B$35:$B$99,0)),\"Non-wind\")","v":"Non-wind"},{"$f":"IFERROR(INDEX($E$5:$E$32,MATCH(raw_resource_build!$E1347,Lists!$B$5:$B$32,0)),\"Non-CAISO\")","v":"Hydro (small + large)"},null,{"$f":"raw_annual_energy!C1347","v":"SW_Small_Hydro_for_Other"},{"$f":"INDEX(K:K,MATCH(R1347,Lists!J:J,0))","v":"Small_Hydro"},{"$f":"IFERROR(INDEX($C$35:$C$99,MATCH($R1347,$B$35:$B$99,0)),\"Non-wind\")","v":"Non-wind"}]
[null,null,null,null,null,null,null,null,null,{"$f":"IFERROR(INDEX(raw_resource_build!$B$2:$B$1000,MATCH(0,COUNTIF($J$1:J1347,raw_resource_build!$B$2:$B$1000), 0),0), \"\")","v":""},{"$f":"IF(J1348=\"\", \"\", INDEX(raw_resource_build!E:E, MATCH(J1348, raw_resource_build!B:B, 0)))","v":""},{"$f":"IF(J1348=\"\", \"\", INDEX(raw_resource_build!C:C, MATCH(J1348, raw_resource_build!B:B, 0)))","v":""},null,{"$f":"raw_resource_build!B1348","v":"SW_Hydro"},"Non-wind",{"$f":"IFERROR(INDEX($E$5:$E$32,MATCH(raw_resource_build!$E1348,Lists!$B$5:$B$32,0)),\"Non-CAISO\")","v":"Hydro (small + large)"},null,{"$f":"raw_annual_energy!C1348","v":"SW_Small_Hydro_for_Other"},{"$f":"INDEX(K:K,MATCH(R1348,Lists!J:J,0))","v":"Small_Hydro"},"Non-wind"]
[null,null,null,null,null,null,null,null,null,{"$f":"IFERROR(INDEX(raw_resource_build!$B$2:$B$1000,MATCH(0,COUNTIF($J$1:J1348,raw_resource_build!$B$2:$B$1000), 0),0), \"\")","v":""},{"$f":"IF(J1349=\"\", \"\", INDEX(raw_resource_build!E:E, MATCH(J1349, raw_resource_build!B:B, 0)))","v":""},{"$f":"IF(J1349=\"\", \"\", INDEX(raw_resource_build!C:C, MATCH(J1349, raw_resource_build!B:B, 0)))","v":""},null,{"$f":"raw_resource_build!B1349","v":"LDWP_Hydro"},"Non-wind",{"$f":"IFERROR(INDEX($E$5:$E$32,MATCH(raw_resource_build!$E1349,Lists!$B$5:$B$32,0)),\"Non-CAISO\")","v":"Hydro (small + large)"},null,{"$f":"raw_annual_energy!C1349","v":"SW_Small_Hydro_for_Other"},{"$f":"INDEX(K:K,MATCH(R1349,Lists!J:J,0))","v":"Small_Hydro"},"Non-wind"]
[null,null,null,null,null,null,null,null,null,{"$f":"IFERROR(INDEX(raw_resource_build!$B$2:$B$1000,MATCH(0,COUNTIF($J$1:J1349,raw_resource_build!$B$2:$B$1000), 0),0), \"\")","v":""},{"$f":"IF(J1350=\"\", \"\", INDEX(raw_resource_build!E:E, MATCH(J1350, raw_resource_build!B:B, 0)))","v":""},{"$f":"IF(J1350=\"\", \"\", INDEX(raw_resource_build!C:C, MATCH(J1350, raw_resource_build!B:B, 0)))","v":""},null,{"$f":"raw_resource_build!B1350","v":"BANC_Hydro"},"Non-wind",{"$f":"IFERROR(INDEX($E$5:$E$32,MATCH(raw_resource_build!$E1350,Lists!$B$5:$B$32,0)),\"Non-CAISO\")","v":"Hydro (small + large)"},null,{"$f":"raw_annual_energy!C1350","v":"SW_Small_Hydro_for_Other"},{"$f":"INDEX(K:K,MATCH(R1350,Lists!J:J,0))","v":"Small_Hydro"},"Non-wind"]
[null,null,null,null,null,null,null,null,null,{"$f":"IFERROR(INDEX(raw_resource_build!$B$2:$B$1000,MATCH(0,COUNTIF($J$1:J1350,raw_resource_build!$B$2:$B$1000), 0),0), \"\")","v":""},{"$f":"IF(J1351=\"\", \"\", INDEX(raw_resource_build!E:E, MATCH(J1351, raw_resource_build!B:B, 0)))","v":""},{"$f":"IF(J1351=\"\", \"\", INDEX(raw_resource_build!C:C, MATCH(J1351, raw_resource_build!B:B, 0)))","v":""},null,{"$f":"raw_resource_build!B1351","v":"IID_Hydro"},"Non-wind",{"$f":"IFERROR(INDEX($E$5:$E$32,MATCH(raw_resource_build!$E1351,Lists!$B$5:$B$32,0)),\"Non-CAISO\")","v":"Hydro (small + large)"},null,{"$f":"raw_annual_energy!C1351","v":"SW_Small_Hydro_for_Other"},{"$f":"INDEX(K:K,MATCH(R1351,Lists!J:J,0))","v":"Small_Hydro"},"Non-wind"]
[null,null,null,null,null,null,null,null,null,{"$f":"IFERROR(INDEX(raw_resource_build!$B$2:$B$1000,MATCH(0,COUNTIF($J$1:J1351,raw_resource_build!$B$2:$B$1000), 0),0), \"\")","v":""},{"$f":"IF(J1352=\"\", \"\", INDEX(raw_resource_build!E:E, MATCH(J1352, raw_resource_build!B:B, 0)))","v":""},{"$f":"IF(J1352=\"\", \"\", INDEX(raw_resource_build!C:C, MATCH(J1352, raw_resource_build!B:B, 0)))","v":""},null,{"$f":"raw_resource_build!B1352","v":"NW_Hydro_for_CAISO"},"Non-wind",{"$f":"IFERROR(INDEX($E$5:$E$32,MATCH(raw_resource_build!$E1352,Lists!$B$5:$B$32,0)),\"Non-CAISO\")","v":"Imports"},null,{"$f":"raw_annual_energy!C1352","v":"SW_Small_Hydro_for_Other"},{"$f":"INDEX(K:K,MATCH(R1352,Lists!J:J,0))","v":"Small_Hydro"},"Non-wind"]
[null,null,null,null,null,null,null,null,null,{"$f":"IFERROR(INDEX(raw_resource_build!$B$2:$B$1000,MATCH(0,COUNTIF($J$1:J1352,raw_resource_build!$B$2:$B$1000), 0),0), \"\")","v":""},{"$f":"IF(J1353=\"\", \"\", INDEX(raw_resource_build!E:E, MATCH(J1353, raw_resource_build!B:B, 0)))","v":""},{"$f":"IF(J1353=\"\", \"\", INDEX(raw_resource_build!C:C, MATCH(J1353, raw_resource_build!B:B, 0)))","v":""},null,{"$f":"raw_resource_build!B1353","v":"Hydrogen_electrolysis"},"Non-wind",{"$f":"IFERROR(INDEX($E$5:$E$32,MATCH(raw_resource_build!$E1353,Lists!$B$5:$B$32,0)),\"Non-CAISO\")","v":"Hydrogen Load"},null,{"$f":"raw_annual_energy!C1353","v":"SW_Small_Hydro_for_Other"},{"$f":"INDEX(K:K,MATCH(R1353,Lists!J:J,0))","v":"Small_Hydro"},"Non-wind"]
[null,null,null,null,null,null,null,null,null,{"$f":"IFERROR(INDEX(raw_resource_build!$B$2:$B$1000,MATCH(0,COUNTIF($J$1:J1353,raw_resource_build!$B$2:$B$1000), 0),0), \"\")","v":""},{"$f":"IF(J1354=\"\", \"\", INDEX(raw_resource_build!E:E, MATCH(J1354, raw_resource_build!B:B, 0)))","v":""},{"$f":"IF(J1354=\"\", \"\", INDEX(raw_resource_build!C:C, MATCH(J1354, raw_resource_build!B:B, 0)))","v":""},null,{"$f":"raw_resource_build!B1354","v":"CAISO_Shed_DR_Existing"},"Non-wind",{"$f":"IFERROR(INDEX($E$5:$E$32,MATCH(raw_resource_build!$E1354,Lists!$B$5:$B$32,0)),\"Non-CAISO\")","v":"Shed DR"},null,{"$f":"raw_annual_energy!C1354","v":"SW_Small_Hydro_for_Other"},{"$f":"INDEX(K:K,MATCH(R1354,Lists!J:J,0))","v":"Small_Hydro"},"Non-wind"]
[null,null,null,null,null,null,null,null,null,{"$f":"IFERROR(INDEX(raw_resource_build!$B$2:$B$1000,MATCH(0,COUNTIF($J$1:J1354,raw_resource_build!$B$2:$B$1000), 0),0), \"\")","v":""},{"$f":"IF(J1355=\"\", \"\", INDEX(raw_resource_build!E:E, MATCH(J1355, raw_resource_build!B:B, 0)))","v":""},{"$f":"IF(J1355=\"\", \"\", INDEX(raw_resource_build!C:C, MATCH(J1355, raw_resource_build!B:B, 0)))","v":""},null,{"$f":"raw_resource_build!B1355","v":"CAISO_Shed_DR_Tranche1"},"Non-wind",{"$f":"IFERROR(INDEX($E$5:$E$32,MATCH(raw_resource_build!$E1355,Lists!$B$5:$B$32,0)),\"Non-CAISO\")","v":"Shed DR"},null,{"$f":"raw_annual_energy!C1355","v":"SW_Solar_for_Other"},{"$f":"INDEX(K:K,MATCH(R1355,Lists!J:J,0))","v":"Solar"},"Non-wind"]
[null,null,null,null,null,null,null,null,null,{"$f":"IFERROR(INDEX(raw_resource_build!$B$2:$B$1000,MATCH(0,COUNTIF($J$1:J1355,raw_resource_build!$B$2:$B$1000), 0),0), \"\")","v":""},{"$f":"IF(J1356=\"\", \"\", INDEX(raw_resource_build!E:E, MATCH(J1356, raw_resource_build!B:B, 0)))","v":""},{"$f":"IF(J1356=\"\", \"\", INDEX(raw_resource_build!C:C, MATCH(J1356, raw_resource_build!B:B, 0)))","v":""},null,{"$f":"raw_resource_build!B1356","v":"CAISO_Shed_DR_Tranche2"},"Non-wind",{"$f":"IFERROR(INDEX($E$5:$E$32,MATCH(raw_resource_build!$E1356,Lists!$B$5:$B$32,0)),\"Non-CAISO\")","v":"Shed DR"},null,{"$f":"raw_annual_energy!C1356","v":"SW_Solar_for_Other"},{"$f":"INDEX(K:K,MATCH(R1356,Lists!J:J,0))","v":"Solar"},"Non-wind"]
[null,null,null,null,null,null,null,null,null,{"$f":"IFERROR(INDEX(raw_resource_build!$B$2:$B$1000,MATCH(0,COUNTIF($J$1:J1356,raw_resource_build!$B$2:$B$1000), 0),0), \"\")","v":""},{"$f":"IF(J1357=\"\", \"\", INDEX(raw_resource_build!E:E, MATCH(J1357, raw_resource_build!B:B, 0)))","v":""},{"$f":"IF(J1357=\"\", \"\", INDEX(raw_resource_build!C:C, MATCH(J1357, raw_resource_build!B:B, 0)))","v":""},null,{"$f":"raw_resource_build!B1357","v":"CAISO_Shed_DR_Tranche3"},"Non-wind",{"$f":"IFERROR(INDEX($E$5:$E$32,MATCH(raw_resource_build!$E1357,Lists!$B$5:$B$32,0)),\"Non-CAISO\")","v":"Shed DR"},null,{"$f":"raw_annual_energy!C1357","v":"SW_Solar_for_Other"},{"$f":"INDEX(K:K,MATCH(R1357,Lists!J:J,0))","v":"Solar"},"Non-wind"]
[null,null,null,null,null,null,null,null,null,{"$f":"IFERROR(INDEX(raw_resource_build!$B$2:$B$1000,MATCH(0,COUNTIF($J$1:J1357,raw_resource_build!$B$2:$B$1000), 0),0), \"\")","v":""},{"$f":"IF(J1358=\"\", \"\", INDEX(raw_resource_build!E:E, MATCH(J1358, raw_resource_build!B:B, 0)))","v":""},{"$f":"IF(J1358=\"\", \"\", INDEX(raw_resource_build!C:C, MATCH(J1358, raw_resource_build!B:B, 0)))","v":""},null,{"$f":"raw_resource_build!B1358","v":"CAISO_Shed_DR_Tranche4"},"Non-wind",{"$f":"IFERROR(INDEX($E$5:$E$32,MATCH(raw_resource_build!$E1358,Lists!$B$5:$B$32,0)),\"Non-CAISO\")","v":"Shed DR"},null,{"$f":"raw_annual_energy!C1358","v":"SW_Solar_for_Other"},{"$f":"INDEX(K:K,MATCH(R1358,Lists!J:J,0))","v":"Solar"},"Non-wind"]
[null,null,null,null,null,null,null,null,null,{"$f":"IFERROR(INDEX(raw_resource_build!$B$2:$B$1000,MATCH(0,COUNTIF($J$1:J1358,raw_resource_build!$B$2:$B$1000), 0),0), \"\")","v":""},{"$f":"IF(J1359=\"\", \"\", INDEX(raw_resource_build!E:E, MATCH(J1359, raw_resource_build!B:B, 0)))","v":""},{"$f":"IF(J1359=\"\", \"\", INDEX(raw_resource_build!C:C, MATCH(J1359, raw_resource_build!B:B, 0)))","v":""},null,{"$f":"raw_resource_build!B1359","v":"CAISO_Shed_DR_Tranche5"},"Non-wind",{"$f":"IFERROR(INDEX($E$5:$E$32,MATCH(raw_resource_build!$E1359,Lists!$B$5:$B$32,0)),\"Non-CAISO\")","v":"Shed DR"},null,{"$f":"raw_annual_energy!C1359","v":"SW_Solar_for_Other"},{"$f":"INDEX(K:K,MATCH(R1359,Lists!J:J,0))","v":"Solar"},"Non-wind"]
[null,null,null,null,null,null,null,null,null,{"$f":"IFERROR(INDEX(raw_resource_build!$B$2:$B$1000,MATCH(0,COUNTIF($J$1:J1359,raw_resource_build!$B$2:$B$1000), 0),0), \"\")","v":""},{"$f":"IF(J1360=\"\", \"\", INDEX(raw_resource_build!E:E, MATCH(J1360, raw_resource_build!B:B, 0)))","v":""},{"$f":"IF(J1360=\"\", \"\", INDEX(raw_resource_build!C:C, MATCH(J1360, raw_resource_build!B:B, 0)))","v":""},null,{"$f":"raw_resource_build!B1360","v":"CAISO_Shed_DR_Tranche6"},"Non-wind",{"$f":"IFERROR(INDEX($E$5:$E$32,MATCH(raw_resource_build!$E1360,Lists!$B$5:$B$32,0)),\"Non-CAISO\")","v":"Shed DR"},null,{"$f":"raw_annual_energy!C1360","v":"SW_Solar_for_Other"},{"$f":"INDEX(K:K,MATCH(R1360,Lists!J:J,0))","v":"Solar"},"Non-wind"]
[null,null,null,null,null,null,null,null,null,{"$f":"IFERROR(INDEX(raw_resource_build!$B$2:$B$1000,MATCH(0,COUNTIF($J$1:J1360,raw_resource_build!$B$2:$B$1000), 0),0), \"\")","v":""},{"$f":"IF(J1361=\"\", \"\", INDEX(raw_resource_build!E:E, MATCH(J1361, raw_resource_build!B:B, 0)))","v":""},{"$f":"IF(J1361=\"\", \"\", INDEX(raw_resource_build!C:C, MATCH(J1361, raw_resource_build!B:B, 0)))","v":""},null,{"$f":"raw_resource_build!B1361","v":"CAISO_Shed_DR_Tranche7"},"Non-wind",{"$f":"IFERROR(INDEX($E$5:$E$32,MATCH(raw_resource_build!$E1361,Lists!$B$5:$B$32,0)),\"Non-CAISO\")","v":"Shed DR"},null,{"$f":"raw_annual_energy!C1361","v":"SW_Solar_for_Other"},{"$f":"INDEX(K:K,MATCH(R1361,Lists!J:J,0))","v":"Solar"},"Non-wind"]
[null,null,null,null,null,null,null,null,null,{"$f":"IFERROR(INDEX(raw_resource_build!$B$2:$B$1000,MATCH(0,COUNTIF($J$1:J1361,raw_resource_build!$B$2:$B$1000), 0),0), \"\")","v":""},{"$f":"IF(J1362=\"\", \"\", INDEX(raw_resource_build!E:E, MATCH(J1362, raw_resource_build!B:B, 0)))","v":""},{"$f":"IF(J1362=\"\", \"\", INDEX(raw_resource_build!C:C, MATCH(J1362, raw_resource_build!B:B, 0)))","v":""},null,{"$f":"raw_resource_build!B1362","v":"CAISO_Shed_DR_Tranche8"},"Non-wind",{"$f":"IFERROR(INDEX($E$5:$E$32,MATCH(raw_resource_build!$E1362,Lists!$B$5:$B$32,0)),\"Non-CAISO\")","v":"Shed DR"},null,{"$f":"raw_annual_energy!C1362","v":"SW_Solar_for_Other"},{"$f":"INDEX(K:K,MATCH(R1362,Lists!J:J,0))","v":"Solar"},"Non-wind"]
[null,null,null,null,null,null,null,null,null,{"$f":"IFERROR(INDEX(raw_resource_build!$B$2:$B$1000,MATCH(0,COUNTIF($J$1:J1362,raw_resource_build!$B$2:$B$1000), 0),0), \"\")","v":""},{"$f":"IF(J1363=\"\", \"\", INDEX(raw_resource_build!E:E, MATCH(J1363, raw_resource_build!B:B, 0)))","v":""},{"$f":"IF(J1363=\"\", \"\", INDEX(raw_resource_build!C:C, MATCH(J1363, raw_resource_build!B:B, 0)))","v":""},null,{"$f":"raw_resource_build!B1363","v":0},"Non-wind",{"$f":"IFERROR(INDEX($E$5:$E$32,MATCH(raw_resource_build!$E1363,Lists!$B$5:$B$32,0)),\"Non-CAISO\")","v":"Non-CAISO"},null,{"$f":"raw_annual_energy!C1363","v":"SW_Wind_for_Other"},{"$f":"INDEX(K:K,MATCH(R1363,Lists!J:J,0))","v":"Wind"},"Non-wind"]
[null,null,null,null,null,null,null,null,null,{"$f":"IFERROR(INDEX(raw_resource_build!$B$2:$B$1000,MATCH(0,COUNTIF($J$1:J1363,raw_resource_build!$B$2:$B$1000), 0),0), \"\")","v":""},{"$f":"IF(J1364=\"\", \"\", INDEX(raw_resource_build!E:E, MATCH(J1364, raw_resource_build!B:B, 0)))","v":""},{"$f":"IF(J1364=\"\", \"\", INDEX(raw_resource_build!C:C, MATCH(J1364, raw_resource_build!B:B, 0)))","v":""},null,{"$f":"raw_resource_build!B1364","v":0},"Non-wind",{"$f":"IFERROR(INDEX($E$5:$E$32,MATCH(raw_resource_build!$E1364,Lists!$B$5:$B$32,0)),\"Non-CAISO\")","v":"Non-CAISO"},null,{"$f":"raw_annual_energy!C1364","v":"SW_Wind_for_Other"},{"$f":"INDEX(K:K,MATCH(R1364,Lists!J:J,0))","v":"Wind"},"Non-wind"]
[null,null,null,null,null,null,null,null,null,{"$f":"IFERROR(INDEX(raw_resource_build!$B$2:$B$1000,MATCH(0,COUNTIF($J$1:J1364,raw_resource_build!$B$2:$B$1000), 0),0), \"\")","v":""},{"$f":"IF(J1365=\"\", \"\", INDEX(raw_resource_build!E:E, MATCH(J1365, raw_resource_build!B:B, 0)))","v":""},{"$f":"IF(J1365=\"\", \"\", INDEX(raw_resource_build!C:C, MATCH(J1365, raw_resource_build!B:B, 0)))","v":""},null,{"$f":"raw_resource_build!B1365","v":0},"Non-wind",{"$f":"IFERROR(INDEX($E$5:$E$32,MATCH(raw_resource_build!$E1365,Lists!$B$5:$B$32,0)),\"Non-CAISO\")","v":"Non-CAISO"},null,{"$f":"raw_annual_energy!C1365","v":"SW_Wind_for_Other"},{"$f":"INDEX(K:K,MATCH(R1365,Lists!J:J,0))","v":"Wind"},"Non-wind"]
[null,null,null,null,null,null,null,null,null,{"$f":"IFERROR(INDEX(raw_resource_build!$B$2:$B$1000,MATCH(0,COUNTIF($J$1:J1365,raw_resource_build!$B$2:$B$1000), 0),0), \"\")","v":""},{"$f":"IF(J1366=\"\", \"\", INDEX(raw_resource_build!E:E, MATCH(J1366, raw_resource_build!B:B, 0)))","v":""},{"$f":"IF(J1366=\"\", \"\", INDEX(raw_resource_build!C:C, MATCH(J1366, raw_resource_build!B:B, 0)))","v":""},null,{"$f":"raw_resource_build!B1366","v":0},"Non-wind",{"$f":"IFERROR(INDEX($E$5:$E$32,MATCH(raw_resource_build!$E1366,Lists!$B$5:$B$32,0)),\"Non-CAISO\")","v":"Non-CAISO"},null,{"$f":"raw_annual_energy!C1366","v":"SW_Wind_for_Other"},{"$f":"INDEX(K:K,MATCH(R1366,Lists!J:J,0))","v":"Wind"},"Non-wind"]
[null,null,null,null,null,null,null,null,null,{"$f":"IFERROR(INDEX(raw_resource_build!$B$2:$B$1000,MATCH(0,COUNTIF($J$1:J1366,raw_resource_build!$B$2:$B$1000), 0),0), \"\")","v":""},{"$f":"IF(J1367=\"\", \"\", INDEX(raw_resource_build!E:E, MATCH(J1367, raw_resource_build!B:B, 0)))","v":""},{"$f":"IF(J1367=\"\", \"\", INDEX(raw_resource_build!C:C, MATCH(J1367, raw_resource_build!B:B, 0)))","v":""},null,{"$f":"raw_resource_build!B1367","v":0},"Non-wind",{"$f":"IFERROR(INDEX($E$5:$E$32,MATCH(raw_resource_build!$E1367,Lists!$B$5:$B$32,0)),\"Non-CAISO\")","v":"Non-CAISO"},null,{"$f":"raw_annual_energy!C1367","v":"SW_Wind_for_Other"},{"$f":"INDEX(K:K,MATCH(R1367,Lists!J:J,0))","v":"Wind"},"Non-wind"]
[null,null,null,null,null,null,null,null,null,{"$f":"IFERROR(INDEX(raw_resource_build!$B$2:$B$1000,MATCH(0,COUNTIF($J$1:J1367,raw_resource_build!$B$2:$B$1000), 0),0), \"\")","v":""},{"$f":"IF(J1368=\"\", \"\", INDEX(raw_resource_build!E:E, MATCH(J1368, raw_resource_build!B:B, 0)))","v":""},{"$f":"IF(J1368=\"\", \"\", INDEX(raw_resource_build!C:C, MATCH(J1368, raw_resource_build!B:B, 0)))","v":""},null,{"$f":"raw_resource_build!B1368","v":0},"Non-wind",{"$f":"IFERROR(INDEX($E$5:$E$32,MATCH(raw_resource_build!$E1368,Lists!$B$5:$B$32,0)),\"Non-CAISO\")","v":"Non-CAISO"},null,{"$f":"raw_annual_energy!C1368","v":"SW_Wind_for_Other"},{"$f":"INDEX(K:K,MATCH(R1368,Lists!J:J,0))","v":"Wind"},"Non-wind"]
[null,null,null,null,null,null,null,null,null,{"$f":"IFERROR(INDEX(raw_resource_build!$B$2:$B$1000,MATCH(0,COUNTIF($J$1:J1368,raw_resource_build!$B$2:$B$1000), 0),0), \"\")","v":""},{"$f":"IF(J1369=\"\", \"\", INDEX(raw_resource_build!E:E, MATCH(J1369, raw_resource_build!B:B, 0)))","v":""},{"$f":"IF(J1369=\"\", \"\", INDEX(raw_resource_build!C:C, MATCH(J1369, raw_resource_build!B:B, 0)))","v":""},null,{"$f":"raw_resource_build!B1369","v":0},"Non-wind",{"$f":"IFERROR(INDEX($E$5:$E$32,MATCH(raw_resource_build!$E1369,Lists!$B$5:$B$32,0)),\"Non-CAISO\")","v":"Non-CAISO"},null,{"$f":"raw_annual_energy!C1369","v":"SW_Wind_for_Other"},{"$f":"INDEX(K:K,MATCH(R1369,Lists!J:J,0))","v":"Wind"},"Non-wind"]
[null,null,null,null,null,null,null,null,null,{"$f":"IFERROR(INDEX(raw_resource_build!$B$2:$B$1000,MATCH(0,COUNTIF($J$1:J1369,raw_resource_build!$B$2:$B$1000), 0),0), \"\")","v":""},{"$f":"IF(J1370=\"\", \"\", INDEX(raw_resource_build!E:E, MATCH(J1370, raw_resource_build!B:B, 0)))","v":""},{"$f":"IF(J1370=\"\", \"\", INDEX(raw_resource_build!C:C, MATCH(J1370, raw_resource_build!B:B, 0)))","v":""},null,{"$f":"raw_resource_build!B1370","v":0},"Non-wind",{"$f":"IFERROR(INDEX($E$5:$E$32,MATCH(raw_resource_build!$E1370,Lists!$B$5:$B$32,0)),\"Non-CAISO\")","v":"Non-CAISO"},null,{"$f":"raw_annual_energy!C1370","v":"SW_Wind_for_Other"},{"$f":"INDEX(K:K,MATCH(R1370,Lists!J:J,0))","v":"Wind"},"Non-wind"]
[null,null,null,null,null,null,null,null,null,{"$f":"IFERROR(INDEX(raw_resource_build!$B$2:$B$1000,MATCH(0,COUNTIF($J$1:J1370,raw_resource_build!$B$2:$B$1000), 0),0), \"\")","v":""},{"$f":"IF(J1371=\"\", \"\", INDEX(raw_resource_build!E:E, MATCH(J1371, raw_resource_build!B:B, 0)))","v":""},{"$f":"IF(J1371=\"\", \"\", INDEX(raw_resource_build!C:C, MATCH(J1371, raw_resource_build!B:B, 0)))","v":""},null,{"$f":"raw_resource_build!B1371","v":0},"Non-wind",{"$f":"IFERROR(INDEX($E$5:$E$32,MATCH(raw_resource_build!$E1371,Lists!$B$5:$B$32,0)),\"Non-CAISO\")","v":"Non-CAISO"},null,{"$f":"raw_annual_energy!C1371","v":0},{"$f":"INDEX(K:K,MATCH(R1371,Lists!J:J,0))","v":{"$error":"#N/A"}},"Non-wind"]
[null,null,null,null,null,null,null,null,null,{"$f":"IFERROR(INDEX(raw_resource_build!$B$2:$B$1000,MATCH(0,COUNTIF($J$1:J1371,raw_resource_build!$B$2:$B$1000), 0),0), \"\")","v":""},{"$f":"IF(J1372=\"\", \"\", INDEX(raw_resource_build!E:E, MATCH(J1372, raw_resource_build!B:B, 0)))","v":""},{"$f":"IF(J1372=\"\", \"\", INDEX(raw_resource_build!C:C, MATCH(J1372, raw_resource_build!B:B, 0)))","v":""},null,{"$f":"raw_resource_build!B1372","v":0},"Non-wind",{"$f":"IFERROR(INDEX($E$5:$E$32,MATCH(raw_resource_build!$E1372,Lists!$B$5:$B$32,0)),\"Non-CAISO\")","v":"Non-CAISO"},null,{"$f":"raw_annual_energy!C1372","v":0},{"$f":"INDEX(K:K,MATCH(R1372,Lists!J:J,0))","v":{"$error":"#N/A"}},"Non-wind"]
[null,null,null,null,null,null,null,null,null,{"$f":"IFERROR(INDEX(raw_resource_build!$B$2:$B$1000,MATCH(0,COUNTIF($J$1:J1372,raw_resource_build!$B$2:$B$1000), 0),0), \"\")","v":""},{"$f":"IF(J1373=\"\", \"\", INDEX(raw_resource_build!E:E, MATCH(J1373, raw_resource_build!B:B, 0)))","v":""},{"$f":"IF(J1373=\"\", \"\", INDEX(raw_resource_build!C:C, MATCH(J1373, raw_resource_build!B:B, 0)))","v":""},null,{"$f":"raw_resource_build!B1373","v":0},"Non-wind",{"$f":"IFERROR(INDEX($E$5:$E$32,MATCH(raw_resource_build!$E1373,Lists!$B$5:$B$32,0)),\"Non-CAISO\")","v":"Non-CAISO"},null,{"$f":"raw_annual_energy!C1373","v":0},{"$f":"INDEX(K:K,MATCH(R1373,Lists!J:J,0))","v":{"$error":"#N/A"}},"Non-wind"]
[null,null,null,null,null,null,null,null,null,{"$f":"IFERROR(INDEX(raw_resource_build!$B$2:$B$1000,MATCH(0,COUNTIF($J$1:J1373,raw_resource_build!$B$2:$B$1000), 0),0), \"\")","v":""},{"$f":"IF(J1374=\"\", \"\", INDEX(raw_resource_build!E:E, MATCH(J1374, raw_resource_build!B:B, 0)))","v":""},{"$f":"IF(J1374=\"\", \"\", INDEX(raw_resource_build!C:C, MATCH(J1374, raw_resource_build!B:B, 0)))","v":""},null,{"$f":"raw_resource_build!B1374","v":0},"Non-wind",{"$f":"IFERROR(INDEX($E$5:$E$32,MATCH(raw_resource_build!$E1374,Lists!$B$5:$B$32,0)),\"Non-CAISO\")","v":"Non-CAISO"},null,{"$f":"raw_annual_energy!C1374","v":0},{"$f":"INDEX(K:K,MATCH(R1374,Lists!J:J,0))","v":{"$error":"#N/A"}},"Non-wind"]
[null,null,null,null,null,null,null,null,null,{"$f":"IFERROR(INDEX(raw_resource_build!$B$2:$B$1000,MATCH(0,COUNTIF($J$1:J1374,raw_resource_build!$B$2:$B$1000), 0),0), \"\")","v":""},{"$f":"IF(J1375=\"\", \"\", INDEX(raw_resource_build!E:E, MATCH(J1375, raw_resource_build!B:B, 0)))","v":""},{"$f":"IF(J1375=\"\", \"\", INDEX(raw_resource_build!C:C, MATCH(J1375, raw_resource_build!B:B, 0)))","v":""},null,{"$f":"raw_resource_build!B1375","v":0},"Non-wind",{"$f":"IFERROR(INDEX($E$5:$E$32,MATCH(raw_resource_build!$E1375,Lists!$B$5:$B$32,0)),\"Non-CAISO\")","v":"Non-CAISO"},null,{"$f":"raw_annual_energy!C1375","v":0},{"$f":"INDEX(K:K,MATCH(R1375,Lists!J:J,0))","v":{"$error":"#N/A"}},"Non-wind"]
[null,null,null,null,null,null,null,null,null,{"$f":"IFERROR(INDEX(raw_resource_build!$B$2:$B$1000,MATCH(0,COUNTIF($J$1:J1375,raw_resource_build!$B$2:$B$1000), 0),0), \"\")","v":""},{"$f":"IF(J1376=\"\", \"\", INDEX(raw_resource_build!E:E, MATCH(J1376, raw_resource_build!B:B, 0)))","v":""},{"$f":"IF(J1376=\"\", \"\", INDEX(raw_resource_build!C:C, MATCH(J1376, raw_resource_build!B:B, 0)))","v":""},null,{"$f":"raw_resource_build!B1376","v":0},"Non-wind",{"$f":"IFERROR(INDEX($E$5:$E$32,MATCH(raw_resource_build!$E1376,Lists!$B$5:$B$32,0)),\"Non-CAISO\")","v":"Non-CAISO"},null,{"$f":"raw_annual_energy!C1376","v":0},{"$f":"INDEX(K:K,MATCH(R1376,Lists!J:J,0))","v":{"$error":"#N/A"}},"Non-wind"]
[null,null,null,null,null,null,null,null,null,{"$f":"IFERROR(INDEX(raw_resource_build!$B$2:$B$1000,MATCH(0,COUNTIF($J$1:J1376,raw_resource_build!$B$2:$B$1000), 0),0), \"\")","v":""},{"$f":"IF(J1377=\"\", \"\", INDEX(raw_resource_build!E:E, MATCH(J1377, raw_resource_build!B:B, 0)))","v":""},{"$f":"IF(J1377=\"\", \"\", INDEX(raw_resource_build!C:C, MATCH(J1377, raw_resource_build!B:B, 0)))","v":""},null,{"$f":"raw_resource_build!B1377","v":0},"Non-wind",{"$f":"IFERROR(INDEX($E$5:$E$32,MATCH(raw_resource_build!$E1377,Lists!$B$5:$B$32,0)),\"Non-CAISO\")","v":"Non-CAISO"},null,{"$f":"raw_annual_energy!C1377","v":0},{"$f":"INDEX(K:K,MATCH(R1377,Lists!J:J,0))","v":{"$error":"#N/A"}},"Non-wind"]
[null,null,null,null,null,null,null,null,null,{"$f":"IFERROR(INDEX(raw_resource_build!$B$2:$B$1000,MATCH(0,COUNTIF($J$1:J1377,raw_resource_build!$B$2:$B$1000), 0),0), \"\")","v":""},{"$f":"IF(J1378=\"\", \"\", INDEX(raw_resource_build!E:E, MATCH(J1378, raw_resource_build!B:B, 0)))","v":""},{"$f":"IF(J1378=\"\", \"\", INDEX(raw_resource_build!C:C, MATCH(J1378, raw_resource_build!B:B, 0)))","v":""},null,{"$f":"raw_resource_build!B1378","v":0},"Non-wind",{"$f":"IFERROR(INDEX($E$5:$E$32,MATCH(raw_resource_build!$E1378,Lists!$B$5:$B$32,0)),\"Non-CAISO\")","v":"Non-CAISO"},null,{"$f":"raw_annual_energy!C1378","v":0},{"$f":"INDEX(K:K,MATCH(R1378,Lists!J:J,0))","v":{"$error":"#N/A"}},"Non-wind"]
[null,null,null,null,null,null,null,null,null,{"$f":"IFERROR(INDEX(raw_resource_build!$B$2:$B$1000,MATCH(0,COUNTIF($J$1:J1378,raw_resource_build!$B$2:$B$1000), 0),0), \"\")","v":""},{"$f":"IF(J1379=\"\", \"\", INDEX(raw_resource_build!E:E, MATCH(J1379, raw_resource_build!B:B, 0)))","v":""},{"$f":"IF(J1379=\"\", \"\", INDEX(raw_resource_build!C:C, MATCH(J1379, raw_resource_build!B:B, 0)))","v":""},null,{"$f":"raw_resource_build!B1379","v":0},"Non-wind",{"$f":"IFERROR(INDEX($E$5:$E$32,MATCH(raw_resource_build!$E1379,Lists!$B$5:$B$32,0)),\"Non-CAISO\")","v":"Non-CAISO"},null,{"$f":"raw_annual_energy!C1379","v":0},{"$f":"INDEX(K:K,MATCH(R1379,Lists!J:J,0))","v":{"$error":"#N/A"}},"Non-wind"]
[null,null,null,null,null,null,null,null,null,{"$f":"IFERROR(INDEX(raw_resource_build!$B$2:$B$1000,MATCH(0,COUNTIF($J$1:J1379,raw_resource_build!$B$2:$B$1000), 0),0), \"\")","v":""},{"$f":"IF(J1380=\"\", \"\", INDEX(raw_resource_build!E:E, MATCH(J1380, raw_resource_build!B:B, 0)))","v":""},{"$f":"IF(J1380=\"\", \"\", INDEX(raw_resource_build!C:C, MATCH(J1380, raw_resource_build!B:B, 0)))","v":""},null,{"$f":"raw_resource_build!B1380","v":0},"Non-wind",{"$f":"IFERROR(INDEX($E$5:$E$32,MATCH(raw_resource_build!$E1380,Lists!$B$5:$B$32,0)),\"Non-CAISO\")","v":"Non-CAISO"},null,{"$f":"raw_annual_energy!C1380","v":0},{"$f":"INDEX(K:K,MATCH(R1380,Lists!J:J,0))","v":{"$error":"#N/A"}},"Non-wind"]
[null,null,null,null,null,null,null,null,null,{"$f":"IFERROR(INDEX(raw_resource_build!$B$2:$B$1000,MATCH(0,COUNTIF($J$1:J1380,raw_resource_build!$B$2:$B$1000), 0),0), \"\")","v":""},{"$f":"IF(J1381=\"\", \"\", INDEX(raw_resource_build!E:E, MATCH(J1381, raw_resource_build!B:B, 0)))","v":""},{"$f":"IF(J1381=\"\", \"\", INDEX(raw_resource_build!C:C, MATCH(J1381, raw_resource_build!B:B, 0)))","v":""},null,{"$f":"raw_resource_build!B1381","v":0},"Non-wind",{"$f":"IFERROR(INDEX($E$5:$E$32,MATCH(raw_resource_build!$E1381,Lists!$B$5:$B$32,0)),\"Non-CAISO\")","v":"Non-CAISO"},null,{"$f":"raw_annual_energy!C1381","v":0},{"$f":"INDEX(K:K,MATCH(R1381,Lists!J:J,0))","v":{"$error":"#N/A"}},"Non-wind"]
[null,null,null,null,null,null,null,null,null,{"$f":"IFERROR(INDEX(raw_resource_build!$B$2:$B$1000,MATCH(0,COUNTIF($J$1:J1381,raw_resource_build!$B$2:$B$1000), 0),0), \"\")","v":""},{"$f":"IF(J1382=\"\", \"\", INDEX(raw_resource_build!E:E, MATCH(J1382, raw_resource_build!B:B, 0)))","v":""},{"$f":"IF(J1382=\"\", \"\", INDEX(raw_resource_build!C:C, MATCH(J1382, raw_resource_build!B:B, 0)))","v":""},null,{"$f":"raw_resource_build!B1382","v":0},"Non-wind",{"$f":"IFERROR(INDEX($E$5:$E$32,MATCH(raw_resource_build!$E1382,Lists!$B$5:$B$32,0)),\"Non-CAISO\")","v":"Non-CAISO"},null,{"$f":"raw_annual_energy!C1382","v":0},{"$f":"INDEX(K:K,MATCH(R1382,Lists!J:J,0))","v":{"$error":"#N/A"}},"Non-wind"]
[null,null,null,null,null,null,null,null,null,{"$f":"IFERROR(INDEX(raw_resource_build!$B$2:$B$1000,MATCH(0,COUNTIF($J$1:J1382,raw_resource_build!$B$2:$B$1000), 0),0), \"\")","v":""},{"$f":"IF(J1383=\"\", \"\", INDEX(raw_resource_build!E:E, MATCH(J1383, raw_resource_build!B:B, 0)))","v":""},{"$f":"IF(J1383=\"\", \"\", INDEX(raw_resource_build!C:C, MATCH(J1383, raw_resource_build!B:B, 0)))","v":""},null,{"$f":"raw_resource_build!B1383","v":0},"Non-wind",{"$f":"IFERROR(INDEX($E$5:$E$32,MATCH(raw_resource_build!$E1383,Lists!$B$5:$B$32,0)),\"Non-CAISO\")","v":"Non-CAISO"},null,{"$f":"raw_annual_energy!C1383","v":0},{"$f":"INDEX(K:K,MATCH(R1383,Lists!J:J,0))","v":{"$error":"#N/A"}},"Non-wind"]
[null,null,null,null,null,null,null,null,null,{"$f":"IFERROR(INDEX(raw_resource_build!$B$2:$B$1000,MATCH(0,COUNTIF($J$1:J1383,raw_resource_build!$B$2:$B$1000), 0),0), \"\")","v":""},{"$f":"IF(J1384=\"\", \"\", INDEX(raw_resource_build!E:E, MATCH(J1384, raw_resource_build!B:B, 0)))","v":""},{"$f":"IF(J1384=\"\", \"\", INDEX(raw_resource_build!C:C, MATCH(J1384, raw_resource_build!B:B, 0)))","v":""},null,{"$f":"raw_resource_build!B1384","v":0},"Non-wind",{"$f":"IFERROR(INDEX($E$5:$E$32,MATCH(raw_resource_build!$E1384,Lists!$B$5:$B$32,0)),\"Non-CAISO\")","v":"Non-CAISO"},null,{"$f":"raw_annual_energy!C1384","v":0},{"$f":"INDEX(K:K,MATCH(R1384,Lists!J:J,0))","v":{"$error":"#N/A"}},"Non-wind"]
[null,null,null,null,null,null,null,null,null,{"$f":"IFERROR(INDEX(raw_resource_build!$B$2:$B$1000,MATCH(0,COUNTIF($J$1:J1384,raw_resource_build!$B$2:$B$1000), 0),0), \"\")","v":""},{"$f":"IF(J1385=\"\", \"\", INDEX(raw_resource_build!E:E, MATCH(J1385, raw_resource_build!B:B, 0)))","v":""},{"$f":"IF(J1385=\"\", \"\", INDEX(raw_resource_build!C:C, MATCH(J1385, raw_resource_build!B:B, 0)))","v":""},null,{"$f":"raw_resource_build!B1385","v":0},"Non-wind",{"$f":"IFERROR(INDEX($E$5:$E$32,MATCH(raw_resource_build!$E1385,Lists!$B$5:$B$32,0)),\"Non-CAISO\")","v":"Non-CAISO"},null,{"$f":"raw_annual_energy!C1385","v":0},{"$f":"INDEX(K:K,MATCH(R1385,Lists!J:J,0))","v":{"$error":"#N/A"}},"Non-wind"]
[null,null,null,null,null,null,null,null,null,{"$f":"IFERROR(INDEX(raw_resource_build!$B$2:$B$1000,MATCH(0,COUNTIF($J$1:J1385,raw_resource_build!$B$2:$B$1000), 0),0), \"\")","v":""},{"$f":"IF(J1386=\"\", \"\", INDEX(raw_resource_build!E:E, MATCH(J1386, raw_resource_build!B:B, 0)))","v":""},{"$f":"IF(J1386=\"\", \"\", INDEX(raw_resource_build!C:C, MATCH(J1386, raw_resource_build!B:B, 0)))","v":""},null,{"$f":"raw_resource_build!B1386","v":0},"Non-wind",{"$f":"IFERROR(INDEX($E$5:$E$32,MATCH(raw_resource_build!$E1386,Lists!$B$5:$B$32,0)),\"Non-CAISO\")","v":"Non-CAISO"},null,{"$f":"raw_annual_energy!C1386","v":0},{"$f":"INDEX(K:K,MATCH(R1386,Lists!J:J,0))","v":{"$error":"#N/A"}},"Non-wind"]
[null,null,null,null,null,null,null,null,null,{"$f":"IFERROR(INDEX(raw_resource_build!$B$2:$B$1000,MATCH(0,COUNTIF($J$1:J1386,raw_resource_build!$B$2:$B$1000), 0),0), \"\")","v":""},{"$f":"IF(J1387=\"\", \"\", INDEX(raw_resource_build!E:E, MATCH(J1387, raw_resource_build!B:B, 0)))","v":""},{"$f":"IF(J1387=\"\", \"\", INDEX(raw_resource_build!C:C, MATCH(J1387, raw_resource_build!B:B, 0)))","v":""},null,{"$f":"raw_resource_build!B1387","v":0},"Non-wind",{"$f":"IFERROR(INDEX($E$5:$E$32,MATCH(raw_resource_build!$E1387,Lists!$B$5:$B$32,0)),\"Non-CAISO\")","v":"Non-CAISO"},null,{"$f":"raw_annual_energy!C1387","v":0},{"$f":"INDEX(K:K,MATCH(R1387,Lists!J:J,0))","v":{"$error":"#N/A"}},"Non-wind"]
[null,null,null,null,null,null,null,null,null,{"$f":"IFERROR(INDEX(raw_resource_build!$B$2:$B$1000,MATCH(0,COUNTIF($J$1:J1387,raw_resource_build!$B$2:$B$1000), 0),0), \"\")","v":""},{"$f":"IF(J1388=\"\", \"\", INDEX(raw_resource_build!E:E, MATCH(J1388, raw_resource_build!B:B, 0)))","v":""},{"$f":"IF(J1388=\"\", \"\", INDEX(raw_resource_build!C:C, MATCH(J1388, raw_resource_build!B:B, 0)))","v":""},null,{"$f":"raw_resource_build!B1388","v":0},"Non-wind",{"$f":"IFERROR(INDEX($E$5:$E$32,MATCH(raw_resource_build!$E1388,Lists!$B$5:$B$32,0)),\"Non-CAISO\")","v":"Non-CAISO"},null,{"$f":"raw_annual_energy!C1388","v":0},{"$f":"INDEX(K:K,MATCH(R1388,Lists!J:J,0))","v":{"$error":"#N/A"}},"Non-wind"]
[null,null,null,null,null,null,null,null,null,{"$f":"IFERROR(INDEX(raw_resource_build!$B$2:$B$1000,MATCH(0,COUNTIF($J$1:J1388,raw_resource_build!$B$2:$B$1000), 0),0), \"\")","v":""},{"$f":"IF(J1389=\"\", \"\", INDEX(raw_resource_build!E:E, MATCH(J1389, raw_resource_build!B:B, 0)))","v":""},{"$f":"IF(J1389=\"\", \"\", INDEX(raw_resource_build!C:C, MATCH(J1389, raw_resource_build!B:B, 0)))","v":""},null,{"$f":"raw_resource_build!B1389","v":0},"Non-wind",{"$f":"IFERROR(INDEX($E$5:$E$32,MATCH(raw_resource_build!$E1389,Lists!$B$5:$B$32,0)),\"Non-CAISO\")","v":"Non-CAISO"},null,{"$f":"raw_annual_energy!C1389","v":0},{"$f":"INDEX(K:K,MATCH(R1389,Lists!J:J,0))","v":{"$error":"#N/A"}},"Non-wind"]
[null,null,null,null,null,null,null,null,null,{"$f":"IFERROR(INDEX(raw_resource_build!$B$2:$B$1000,MATCH(0,COUNTIF($J$1:J1389,raw_resource_build!$B$2:$B$1000), 0),0), \"\")","v":""},{"$f":"IF(J1390=\"\", \"\", INDEX(raw_resource_build!E:E, MATCH(J1390, raw_resource_build!B:B, 0)))","v":""},{"$f":"IF(J1390=\"\", \"\", INDEX(raw_resource_build!C:C, MATCH(J1390, raw_resource_build!B:B, 0)))","v":""},null,{"$f":"raw_resource_build!B1390","v":0},"Non-wind",{"$f":"IFERROR(INDEX($E$5:$E$32,MATCH(raw_resource_build!$E1390,Lists!$B$5:$B$32,0)),\"Non-CAISO\")","v":"Non-CAISO"},null,{"$f":"raw_annual_energy!C1390","v":0},{"$f":"INDEX(K:K,MATCH(R1390,Lists!J:J,0))","v":{"$error":"#N/A"}},"Non-wind"]
[null,null,null,null,null,null,null,null,null,{"$f":"IFERROR(INDEX(raw_resource_build!$B$2:$B$1000,MATCH(0,COUNTIF($J$1:J1390,raw_resource_build!$B$2:$B$1000), 0),0), \"\")","v":""},{"$f":"IF(J1391=\"\", \"\", INDEX(raw_resource_build!E:E, MATCH(J1391, raw_resource_build!B:B, 0)))","v":""},{"$f":"IF(J1391=\"\", \"\", INDEX(raw_resource_build!C:C, MATCH(J1391, raw_resource_build!B:B, 0)))","v":""},null,{"$f":"raw_resource_build!B1391","v":0},"Non-wind",{"$f":"IFERROR(INDEX($E$5:$E$32,MATCH(raw_resource_build!$E1391,Lists!$B$5:$B$32,0)),\"Non-CAISO\")","v":"Non-CAISO"},null,{"$f":"raw_annual_energy!C1391","v":0},{"$f":"INDEX(K:K,MATCH(R1391,Lists!J:J,0))","v":{"$error":"#N/A"}},"Non-wind"]
[null,null,null,null,null,null,null,null,null,{"$f":"IFERROR(INDEX(raw_resource_build!$B$2:$B$1000,MATCH(0,COUNTIF($J$1:J1391,raw_resource_build!$B$2:$B$1000), 0),0), \"\")","v":""},{"$f":"IF(J1392=\"\", \"\", INDEX(raw_resource_build!E:E, MATCH(J1392, raw_resource_build!B:B, 0)))","v":""},{"$f":"IF(J1392=\"\", \"\", INDEX(raw_resource_build!C:C, MATCH(J1392, raw_resource_build!B:B, 0)))","v":""},null,{"$f":"raw_resource_build!B1392","v":0},"Non-wind",{"$f":"IFERROR(INDEX($E$5:$E$32,MATCH(raw_resource_build!$E1392,Lists!$B$5:$B$32,0)),\"Non-CAISO\")","v":"Non-CAISO"},null,{"$f":"raw_annual_energy!C1392","v":0},{"$f":"INDEX(K:K,MATCH(R1392,Lists!J:J,0))","v":{"$error":"#N/A"}},"Non-wind"]
[null,null,null,null,null,null,null,null,null,{"$f":"IFERROR(INDEX(raw_resource_build!$B$2:$B$1000,MATCH(0,COUNTIF($J$1:J1392,raw_resource_build!$B$2:$B$1000), 0),0), \"\")","v":""},{"$f":"IF(J1393=\"\", \"\", INDEX(raw_resource_build!E:E, MATCH(J1393, raw_resource_build!B:B, 0)))","v":""},{"$f":"IF(J1393=\"\", \"\", INDEX(raw_resource_build!C:C, MATCH(J1393, raw_resource_build!B:B, 0)))","v":""},null,{"$f":"raw_resource_build!B1393","v":0},"Non-wind",{"$f":"IFERROR(INDEX($E$5:$E$32,MATCH(raw_resource_build!$E1393,Lists!$B$5:$B$32,0)),\"Non-CAISO\")","v":"Non-CAISO"},null,{"$f":"raw_annual_energy!C1393","v":0},{"$f":"INDEX(K:K,MATCH(R1393,Lists!J:J,0))","v":{"$error":"#N/A"}},"Non-wind"]
[null,null,null,null,null,null,null,null,null,{"$f":"IFERROR(INDEX(raw_resource_build!$B$2:$B$1000,MATCH(0,COUNTIF($J$1:J1393,raw_resource_build!$B$2:$B$1000), 0),0), \"\")","v":""},{"$f":"IF(J1394=\"\", \"\", INDEX(raw_resource_build!E:E, MATCH(J1394, raw_resource_build!B:B, 0)))","v":""},{"$f":"IF(J1394=\"\", \"\", INDEX(raw_resource_build!C:C, MATCH(J1394, raw_resource_build!B:B, 0)))","v":""},null,{"$f":"raw_resource_build!B1394","v":0},"Non-wind",{"$f":"IFERROR(INDEX($E$5:$E$32,MATCH(raw_resource_build!$E1394,Lists!$B$5:$B$32,0)),\"Non-CAISO\")","v":"Non-CAISO"},null,{"$f":"raw_annual_energy!C1394","v":0},{"$f":"INDEX(K:K,MATCH(R1394,Lists!J:J,0))","v":{"$error":"#N/A"}},"Non-wind"]
[null,null,null,null,null,null,null,null,null,{"$f":"IFERROR(INDEX(raw_resource_build!$B$2:$B$1000,MATCH(0,COUNTIF($J$1:J1394,raw_resource_build!$B$2:$B$1000), 0),0), \"\")","v":""},{"$f":"IF(J1395=\"\", \"\", INDEX(raw_resource_build!E:E, MATCH(J1395, raw_resource_build!B:B, 0)))","v":""},{"$f":"IF(J1395=\"\", \"\", INDEX(raw_resource_build!C:C, MATCH(J1395, raw_resource_build!B:B, 0)))","v":""},null,{"$f":"raw_resource_build!B1395","v":0},"Non-wind",{"$f":"IFERROR(INDEX($E$5:$E$32,MATCH(raw_resource_build!$E1395,Lists!$B$5:$B$32,0)),\"Non-CAISO\")","v":"Non-CAISO"},null,{"$f":"raw_annual_energy!C1395","v":0},{"$f":"INDEX(K:K,MATCH(R1395,Lists!J:J,0))","v":{"$error":"#N/A"}},"Non-wind"]
[null,null,null,null,null,null,null,null,null,{"$f":"IFERROR(INDEX(raw_resource_build!$B$2:$B$1000,MATCH(0,COUNTIF($J$1:J1395,raw_resource_build!$B$2:$B$1000), 0),0), \"\")","v":""},{"$f":"IF(J1396=\"\", \"\", INDEX(raw_resource_build!E:E, MATCH(J1396, raw_resource_build!B:B, 0)))","v":""},{"$f":"IF(J1396=\"\", \"\", INDEX(raw_resource_build!C:C, MATCH(J1396, raw_resource_build!B:B, 0)))","v":""},null,{"$f":"raw_resource_build!B1396","v":0},"Non-wind",{"$f":"IFERROR(INDEX($E$5:$E$32,MATCH(raw_resource_build!$E1396,Lists!$B$5:$B$32,0)),\"Non-CAISO\")","v":"Non-CAISO"},null,{"$f":"raw_annual_energy!C1396","v":0},{"$f":"INDEX(K:K,MATCH(R1396,Lists!J:J,0))","v":{"$error":"#N/A"}},"Non-wind"]
[null,null,null,null,null,null,null,null,null,{"$f":"IFERROR(INDEX(raw_resource_build!$B$2:$B$1000,MATCH(0,COUNTIF($J$1:J1396,raw_resource_build!$B$2:$B$1000), 0),0), \"\")","v":""},{"$f":"IF(J1397=\"\", \"\", INDEX(raw_resource_build!E:E, MATCH(J1397, raw_resource_build!B:B, 0)))","v":""},{"$f":"IF(J1397=\"\", \"\", INDEX(raw_resource_build!C:C, MATCH(J1397, raw_resource_build!B:B, 0)))","v":""},null,{"$f":"raw_resource_build!B1397","v":0},"Non-wind",{"$f":"IFERROR(INDEX($E$5:$E$32,MATCH(raw_resource_build!$E1397,Lists!$B$5:$B$32,0)),\"Non-CAISO\")","v":"Non-CAISO"},null,{"$f":"raw_annual_energy!C1397","v":0},{"$f":"INDEX(K:K,MATCH(R1397,Lists!J:J,0))","v":{"$error":"#N/A"}},"Non-wind"]
[null,null,null,null,null,null,null,null,null,{"$f":"IFERROR(INDEX(raw_resource_build!$B$2:$B$1000,MATCH(0,COUNTIF($J$1:J1397,raw_resource_build!$B$2:$B$1000), 0),0), \"\")","v":""},{"$f":"IF(J1398=\"\", \"\", INDEX(raw_resource_build!E:E, MATCH(J1398, raw_resource_build!B:B, 0)))","v":""},{"$f":"IF(J1398=\"\", \"\", INDEX(raw_resource_build!C:C, MATCH(J1398, raw_resource_build!B:B, 0)))","v":""},null,{"$f":"raw_resource_build!B1398","v":0},"Non-wind",{"$f":"IFERROR(INDEX($E$5:$E$32,MATCH(raw_resource_build!$E1398,Lists!$B$5:$B$32,0)),\"Non-CAISO\")","v":"Non-CAISO"},null,{"$f":"raw_annual_energy!C1398","v":0},{"$f":"INDEX(K:K,MATCH(R1398,Lists!J:J,0))","v":{"$error":"#N/A"}},"Non-wind"]
[null,null,null,null,null,null,null,null,null,{"$f":"IFERROR(INDEX(raw_resource_build!$B$2:$B$1000,MATCH(0,COUNTIF($J$1:J1398,raw_resource_build!$B$2:$B$1000), 0),0), \"\")","v":""},{"$f":"IF(J1399=\"\", \"\", INDEX(raw_resource_build!E:E, MATCH(J1399, raw_resource_build!B:B, 0)))","v":""},{"$f":"IF(J1399=\"\", \"\", INDEX(raw_resource_build!C:C, MATCH(J1399, raw_resource_build!B:B, 0)))","v":""},null,{"$f":"raw_resource_build!B1399","v":0},"Non-wind",{"$f":"IFERROR(INDEX($E$5:$E$32,MATCH(raw_resource_build!$E1399,Lists!$B$5:$B$32,0)),\"Non-CAISO\")","v":"Non-CAISO"},null,{"$f":"raw_annual_energy!C1399","v":0},{"$f":"INDEX(K:K,MATCH(R1399,Lists!J:J,0))","v":{"$error":"#N/A"}},"Non-wind"]
[null,null,null,null,null,null,null,null,null,{"$f":"IFERROR(INDEX(raw_resource_build!$B$2:$B$1000,MATCH(0,COUNTIF($J$1:J1399,raw_resource_build!$B$2:$B$1000), 0),0), \"\")","v":""},{"$f":"IF(J1400=\"\", \"\", INDEX(raw_resource_build!E:E, MATCH(J1400, raw_resource_build!B:B, 0)))","v":""},{"$f":"IF(J1400=\"\", \"\", INDEX(raw_resource_build!C:C, MATCH(J1400, raw_resource_build!B:B, 0)))","v":""},null,{"$f":"raw_resource_build!B1400","v":0},"Non-wind",{"$f":"IFERROR(INDEX($E$5:$E$32,MATCH(raw_resource_build!$E1400,Lists!$B$5:$B$32,0)),\"Non-CAISO\")","v":"Non-CAISO"},null,{"$f":"raw_annual_energy!C1400","v":0},{"$f":"INDEX(K:K,MATCH(R1400,Lists!J:J,0))","v":{"$error":"#N/A"}},"Non-wind"]
[null,null,null,null,null,null,null,null,null,{"$f":"IFERROR(INDEX(raw_resource_build!$B$2:$B$1000,MATCH(0,COUNTIF($J$1:J1400,raw_resource_build!$B$2:$B$1000), 0),0), \"\")","v":""},{"$f":"IF(J1401=\"\", \"\", INDEX(raw_resource_build!E:E, MATCH(J1401, raw_resource_build!B:B, 0)))","v":""},{"$f":"IF(J1401=\"\", \"\", INDEX(raw_resource_build!C:C, MATCH(J1401, raw_resource_build!B:B, 0)))","v":""},null,{"$f":"raw_resource_build!B1401","v":0},"Non-wind",{"$f":"IFERROR(INDEX($E$5:$E$32,MATCH(raw_resource_build!$E1401,Lists!$B$5:$B$32,0)),\"Non-CAISO\")","v":"Non-CAISO"},null,{"$f":"raw_annual_energy!C1401","v":0},{"$f":"INDEX(K:K,MATCH(R1401,Lists!J:J,0))","v":{"$error":"#N/A"}},"Non-wind"]
[null,null,null,null,null,null,null,null,null,{"$f":"IFERROR(INDEX(raw_resource_build!$B$2:$B$1000,MATCH(0,COUNTIF($J$1:J1401,raw_resource_build!$B$2:$B$1000), 0),0), \"\")","v":""},{"$f":"IF(J1402=\"\", \"\", INDEX(raw_resource_build!E:E, MATCH(J1402, raw_resource_build!B:B, 0)))","v":""},{"$f":"IF(J1402=\"\", \"\", INDEX(raw_resource_build!C:C, MATCH(J1402, raw_resource_build!B:B, 0)))","v":""},null,{"$f":"raw_resource_build!B1402","v":0},"Non-wind",{"$f":"IFERROR(INDEX($E$5:$E$32,MATCH(raw_resource_build!$E1402,Lists!$B$5:$B$32,0)),\"Non-CAISO\")","v":"Non-CAISO"},null,{"$f":"raw_annual_energy!C1402","v":0},{"$f":"INDEX(K:K,MATCH(R1402,Lists!J:J,0))","v":{"$error":"#N/A"}},"Non-wind"]
[null,null,null,null,null,null,null,null,null,{"$f":"IFERROR(INDEX(raw_resource_build!$B$2:$B$1000,MATCH(0,COUNTIF($J$1:J1402,raw_resource_build!$B$2:$B$1000), 0),0), \"\")","v":""},{"$f":"IF(J1403=\"\", \"\", INDEX(raw_resource_build!E:E, MATCH(J1403, raw_resource_build!B:B, 0)))","v":""},{"$f":"IF(J1403=\"\", \"\", INDEX(raw_resource_build!C:C, MATCH(J1403, raw_resource_build!B:B, 0)))","v":""},null,{"$f":"raw_resource_build!B1403","v":0},"Non-wind",{"$f":"IFERROR(INDEX($E$5:$E$32,MATCH(raw_resource_build!$E1403,Lists!$B$5:$B$32,0)),\"Non-CAISO\")","v":"Non-CAISO"},null,{"$f":"raw_annual_energy!C1403","v":0},{"$f":"INDEX(K:K,MATCH(R1403,Lists!J:J,0))","v":{"$error":"#N/A"}},"Non-wind"]
[null,null,null,null,null,null,null,null,null,{"$f":"IFERROR(INDEX(raw_resource_build!$B$2:$B$1000,MATCH(0,COUNTIF($J$1:J1403,raw_resource_build!$B$2:$B$1000), 0),0), \"\")","v":""},{"$f":"IF(J1404=\"\", \"\", INDEX(raw_resource_build!E:E, MATCH(J1404, raw_resource_build!B:B, 0)))","v":""},{"$f":"IF(J1404=\"\", \"\", INDEX(raw_resource_build!C:C, MATCH(J1404, raw_resource_build!B:B, 0)))","v":""},null,{"$f":"raw_resource_build!B1404","v":0},"Non-wind",{"$f":"IFERROR(INDEX($E$5:$E$32,MATCH(raw_resource_build!$E1404,Lists!$B$5:$B$32,0)),\"Non-CAISO\")","v":"Non-CAISO"},null,{"$f":"raw_annual_energy!C1404","v":0},{"$f":"INDEX(K:K,MATCH(R1404,Lists!J:J,0))","v":{"$error":"#N/A"}},"Non-wind"]
[null,null,null,null,null,null,null,null,null,{"$f":"IFERROR(INDEX(raw_resource_build!$B$2:$B$1000,MATCH(0,COUNTIF($J$1:J1404,raw_resource_build!$B$2:$B$1000), 0),0), \"\")","v":""},{"$f":"IF(J1405=\"\", \"\", INDEX(raw_resource_build!E:E, MATCH(J1405, raw_resource_build!B:B, 0)))","v":""},{"$f":"IF(J1405=\"\", \"\", INDEX(raw_resource_build!C:C, MATCH(J1405, raw_resource_build!B:B, 0)))","v":""},null,{"$f":"raw_resource_build!B1405","v":0},"Non-wind",{"$f":"IFERROR(INDEX($E$5:$E$32,MATCH(raw_resource_build!$E1405,Lists!$B$5:$B$32,0)),\"Non-CAISO\")","v":"Non-CAISO"},null,{"$f":"raw_annual_energy!C1405","v":0},{"$f":"INDEX(K:K,MATCH(R1405,Lists!J:J,0))","v":{"$error":"#N/A"}},"Non-wind"]
[null,null,null,null,null,null,null,null,null,{"$f":"IFERROR(INDEX(raw_resource_build!$B$2:$B$1000,MATCH(0,COUNTIF($J$1:J1405,raw_resource_build!$B$2:$B$1000), 0),0), \"\")","v":""},{"$f":"IF(J1406=\"\", \"\", INDEX(raw_resource_build!E:E, MATCH(J1406, raw_resource_build!B:B, 0)))","v":""},{"$f":"IF(J1406=\"\", \"\", INDEX(raw_resource_build!C:C, MATCH(J1406, raw_resource_build!B:B, 0)))","v":""},null,{"$f":"raw_resource_build!B1406","v":0},"Non-wind",{"$f":"IFERROR(INDEX($E$5:$E$32,MATCH(raw_resource_build!$E1406,Lists!$B$5:$B$32,0)),\"Non-CAISO\")","v":"Non-CAISO"},null,{"$f":"raw_annual_energy!C1406","v":0},{"$f":"INDEX(K:K,MATCH(R1406,Lists!J:J,0))","v":{"$error":"#N/A"}},"Non-wind"]
[null,null,null,null,null,null,null,null,null,{"$f":"IFERROR(INDEX(raw_resource_build!$B$2:$B$1000,MATCH(0,COUNTIF($J$1:J1406,raw_resource_build!$B$2:$B$1000), 0),0), \"\")","v":""},{"$f":"IF(J1407=\"\", \"\", INDEX(raw_resource_build!E:E, MATCH(J1407, raw_resource_build!B:B, 0)))","v":""},{"$f":"IF(J1407=\"\", \"\", INDEX(raw_resource_build!C:C, MATCH(J1407, raw_resource_build!B:B, 0)))","v":""},null,{"$f":"raw_resource_build!B1407","v":0},"Non-wind",{"$f":"IFERROR(INDEX($E$5:$E$32,MATCH(raw_resource_build!$E1407,Lists!$B$5:$B$32,0)),\"Non-CAISO\")","v":"Non-CAISO"},null,{"$f":"raw_annual_energy!C1407","v":0},{"$f":"INDEX(K:K,MATCH(R1407,Lists!J:J,0))","v":{"$error":"#N/A"}},"Non-wind"]
[null,null,null,null,null,null,null,null,null,{"$f":"IFERROR(INDEX(raw_resource_build!$B$2:$B$1000,MATCH(0,COUNTIF($J$1:J1407,raw_resource_build!$B$2:$B$1000), 0),0), \"\")","v":""},{"$f":"IF(J1408=\"\", \"\", INDEX(raw_resource_build!E:E, MATCH(J1408, raw_resource_build!B:B, 0)))","v":""},{"$f":"IF(J1408=\"\", \"\", INDEX(raw_resource_build!C:C, MATCH(J1408, raw_resource_build!B:B, 0)))","v":""},null,{"$f":"raw_resource_build!B1408","v":0},"Non-wind",{"$f":"IFERROR(INDEX($E$5:$E$32,MATCH(raw_resource_build!$E1408,Lists!$B$5:$B$32,0)),\"Non-CAISO\")","v":"Non-CAISO"},null,{"$f":"raw_annual_energy!C1408","v":0},{"$f":"INDEX(K:K,MATCH(R1408,Lists!J:J,0))","v":{"$error":"#N/A"}},"Non-wind"]
[null,null,null,null,null,null,null,null,null,{"$f":"IFERROR(INDEX(raw_resource_build!$B$2:$B$1000,MATCH(0,COUNTIF($J$1:J1408,raw_resource_build!$B$2:$B$1000), 0),0), \"\")","v":""},{"$f":"IF(J1409=\"\", \"\", INDEX(raw_resource_build!E:E, MATCH(J1409, raw_resource_build!B:B, 0)))","v":""},{"$f":"IF(J1409=\"\", \"\", INDEX(raw_resource_build!C:C, MATCH(J1409, raw_resource_build!B:B, 0)))","v":""},null,{"$f":"raw_resource_build!B1409","v":0},"Non-wind",{"$f":"IFERROR(INDEX($E$5:$E$32,MATCH(raw_resource_build!$E1409,Lists!$B$5:$B$32,0)),\"Non-CAISO\")","v":"Non-CAISO"},null,{"$f":"raw_annual_energy!C1409","v":0},{"$f":"INDEX(K:K,MATCH(R1409,Lists!J:J,0))","v":{"$error":"#N/A"}},"Non-wind"]
[null,null,null,null,null,null,null,null,null,{"$f":"IFERROR(INDEX(raw_resource_build!$B$2:$B$1000,MATCH(0,COUNTIF($J$1:J1409,raw_resource_build!$B$2:$B$1000), 0),0), \"\")","v":""},{"$f":"IF(J1410=\"\", \"\", INDEX(raw_resource_build!E:E, MATCH(J1410, raw_resource_build!B:B, 0)))","v":""},{"$f":"IF(J1410=\"\", \"\", INDEX(raw_resource_build!C:C, MATCH(J1410, raw_resource_build!B:B, 0)))","v":""},null,{"$f":"raw_resource_build!B1410","v":0},"Non-wind",{"$f":"IFERROR(INDEX($E$5:$E$32,MATCH(raw_resource_build!$E1410,Lists!$B$5:$B$32,0)),\"Non-CAISO\")","v":"Non-CAISO"},null,{"$f":"raw_annual_energy!C1410","v":0},{"$f":"INDEX(K:K,MATCH(R1410,Lists!J:J,0))","v":{"$error":"#N/A"}},"Non-wind"]
[null,null,null,null,null,null,null,null,null,{"$f":"IFERROR(INDEX(raw_resource_build!$B$2:$B$1000,MATCH(0,COUNTIF($J$1:J1410,raw_resource_build!$B$2:$B$1000), 0),0), \"\")","v":""},{"$f":"IF(J1411=\"\", \"\", INDEX(raw_resource_build!E:E, MATCH(J1411, raw_resource_build!B:B, 0)))","v":""},{"$f":"IF(J1411=\"\", \"\", INDEX(raw_resource_build!C:C, MATCH(J1411, raw_resource_build!B:B, 0)))","v":""},null,{"$f":"raw_resource_build!B1411","v":0},"Non-wind",{"$f":"IFERROR(INDEX($E$5:$E$32,MATCH(raw_resource_build!$E1411,Lists!$B$5:$B$32,0)),\"Non-CAISO\")","v":"Non-CAISO"},null,{"$f":"raw_annual_energy!C1411","v":0},{"$f":"INDEX(K:K,MATCH(R1411,Lists!J:J,0))","v":{"$error":"#N/A"}},"Non-wind"]
[null,null,null,null,null,null,null,null,null,null,null,null,null,{"$f":"raw_resource_build!B1412","v":0},"Non-wind",{"$f":"IFERROR(INDEX($E$5:$E$32,MATCH(raw_resource_build!$E1412,Lists!$B$5:$B$32,0)),\"Non-CAISO\")","v":"Non-CAISO"}]
[null,null,null,null,null,null,null,null,null,null,null,null,null,{"$f":"raw_resource_build!B1413","v":0},{"$f":"IFERROR(INDEX($C$35:$C$99,MATCH($N1413,$B$35:$B$99,0)),\"Non-wind\")","v":"Non-wind"},{"$f":"IFERROR(INDEX($E$5:$E$32,MATCH(raw_resource_build!$E1413,Lists!$B$5:$B$32,0)),\"Non-CAISO\")","v":"Non-CAISO"}]
[null,null,null,null,null,null,null,null,null,null,null,null,null,{"$f":"raw_resource_build!B1414","v":0},"Non-wind",{"$f":"IFERROR(INDEX($E$5:$E$32,MATCH(raw_resource_build!$E1414,Lists!$B$5:$B$32,0)),\"Non-CAISO\")","v":"Non-CAISO"}]
[null,null,null,null,null,null,null,null,null,null,null,null,null,{"$f":"raw_resource_build!B1415","v":0},"Non-wind",{"$f":"IFERROR(INDEX($E$5:$E$32,MATCH(raw_resource_build!$E1415,Lists!$B$5:$B$32,0)),\"Non-CAISO\")","v":"Non-CAISO"}]
[null,null,null,null,null,null,null,null,null,null,null,null,null,{"$f":"raw_resource_build!B1416","v":0},"Non-wind",{"$f":"IFERROR(INDEX($E$5:$E$32,MATCH(raw_resource_build!$E1416,Lists!$B$5:$B$32,0)),\"Non-CAISO\")","v":"Non-CAISO"}]
[null,null,null,null,null,null,null,null,null,null,null,null,null,{"$f":"raw_resource_build!B1417","v":0},"Non-wind",{"$f":"IFERROR(INDEX($E$5:$E$32,MATCH(raw_resource_build!$E1417,Lists!$B$5:$B$32,0)),\"Non-CAISO\")","v":"Non-CAISO"}]
[null,null,null,null,null,null,null,null,null,null,null,null,null,{"$f":"raw_resource_build!B1418","v":0},"Non-wind",{"$f":"IFERROR(INDEX($E$5:$E$32,MATCH(raw_resource_build!$E1418,Lists!$B$5:$B$32,0)),\"Non-CAISO\")","v":"Non-CAISO"}]
[null,null,null,null,null,null,null,null,null,null,null,null,null,{"$f":"raw_resource_build!B1419","v":0},"Non-wind",{"$f":"IFERROR(INDEX($E$5:$E$32,MATCH(raw_resource_build!$E1419,Lists!$B$5:$B$32,0)),\"Non-CAISO\")","v":"Non-CAISO"}]
[null,null,null,null,null,null,null,null,null,null,null,null,null,{"$f":"raw_resource_build!B1420","v":0},"Non-wind",{"$f":"IFERROR(INDEX($E$5:$E$32,MATCH(raw_resource_build!$E1420,Lists!$B$5:$B$32,0)),\"Non-CAISO\")","v":"Non-CAISO"}]
[null,null,null,null,null,null,null,null,null,null,null,null,null,{"$f":"raw_resource_build!B1421","v":0},"Non-wind",{"$f":"IFERROR(INDEX($E$5:$E$32,MATCH(raw_resource_build!$E1421,Lists!$B$5:$B$32,0)),\"Non-CAISO\")","v":"Non-CAISO"}]
[null,null,null,null,null,null,null,null,null,null,null,null,null,{"$f":"raw_resource_build!B1422","v":0},"Non-wind",{"$f":"IFERROR(INDEX($E$5:$E$32,MATCH(raw_resource_build!$E1422,Lists!$B$5:$B$32,0)),\"Non-CAISO\")","v":"Non-CAISO"}]
[null,null,null,null,null,null,null,null,null,null,null,null,null,{"$f":"raw_resource_build!B1423","v":0},"Non-wind",{"$f":"IFERROR(INDEX($E$5:$E$32,MATCH(raw_resource_build!$E1423,Lists!$B$5:$B$32,0)),\"Non-CAISO\")","v":"Non-CAISO"}]
[null,null,null,null,null,null,null,null,null,null,null,null,null,{"$f":"raw_resource_build!B1424","v":0},"Non-wind",{"$f":"IFERROR(INDEX($E$5:$E$32,MATCH(raw_resource_build!$E1424,Lists!$B$5:$B$32,0)),\"Non-CAISO\")","v":"Non-CAISO"}]
[null,null,null,null,null,null,null,null,null,null,null,null,null,{"$f":"raw_resource_build!B1425","v":0},"Non-wind",{"$f":"IFERROR(INDEX($E$5:$E$32,MATCH(raw_resource_build!$E1425,Lists!$B$5:$B$32,0)),\"Non-CAISO\")","v":"Non-CAISO"}]
[null,null,null,null,null,null,null,null,null,null,null,null,null,{"$f":"raw_resource_build!B1426","v":0},"Non-wind",{"$f":"IFERROR(INDEX($E$5:$E$32,MATCH(raw_resource_build!$E1426,Lists!$B$5:$B$32,0)),\"Non-CAISO\")","v":"Non-CAISO"}]
[null,null,null,null,null,null,null,null,null,null,null,null,null,{"$f":"raw_resource_build!B1427","v":0},"Non-wind",{"$f":"IFERROR(INDEX($E$5:$E$32,MATCH(raw_resource_build!$E1427,Lists!$B$5:$B$32,0)),\"Non-CAISO\")","v":"Non-CAISO"}]
[null,null,null,null,null,null,null,null,null,null,null,null,null,{"$f":"raw_resource_build!B1428","v":0},"Non-wind",{"$f":"IFERROR(INDEX($E$5:$E$32,MATCH(raw_resource_build!$E1428,Lists!$B$5:$B$32,0)),\"Non-CAISO\")","v":"Non-CAISO"}]
[null,null,null,null,null,null,null,null,null,null,null,null,null,{"$f":"raw_resource_build!B1429","v":0},"Non-wind",{"$f":"IFERROR(INDEX($E$5:$E$32,MATCH(raw_resource_build!$E1429,Lists!$B$5:$B$32,0)),\"Non-CAISO\")","v":"Non-CAISO"}]
[null,null,null,null,null,null,null,null,null,null,null,null,null,{"$f":"raw_resource_build!B1430","v":0},"Non-wind",{"$f":"IFERROR(INDEX($E$5:$E$32,MATCH(raw_resource_build!$E1430,Lists!$B$5:$B$32,0)),\"Non-CAISO\")","v":"Non-CAISO"}]
[null,null,null,null,null,null,null,null,null,null,null,null,null,{"$f":"raw_resource_build!B1431","v":0},"Non-wind",{"$f":"IFERROR(INDEX($E$5:$E$32,MATCH(raw_resource_build!$E1431,Lists!$B$5:$B$32,0)),\"Non-CAISO\")","v":"Non-CAISO"}]
[null,null,null,null,null,null,null,null,null,null,null,null,null,{"$f":"raw_resource_build!B1432","v":0},"Non-wind",{"$f":"IFERROR(INDEX($E$5:$E$32,MATCH(raw_resource_build!$E1432,Lists!$B$5:$B$32,0)),\"Non-CAISO\")","v":"Non-CAISO"}]
[null,null,null,null,null,null,null,null,null,null,null,null,null,{"$f":"raw_resource_build!B1433","v":0},"Non-wind",{"$f":"IFERROR(INDEX($E$5:$E$32,MATCH(raw_resource_build!$E1433,Lists!$B$5:$B$32,0)),\"Non-CAISO\")","v":"Non-CAISO"}]
[null,null,null,null,null,null,null,null,null,null,null,null,null,{"$f":"raw_resource_build!B1434","v":0},"Non-wind",{"$f":"IFERROR(INDEX($E$5:$E$32,MATCH(raw_resource_build!$E1434,Lists!$B$5:$B$32,0)),\"Non-CAISO\")","v":"Non-CAISO"}]
[null,null,null,null,null,null,null,null,null,null,null,null,null,{"$f":"raw_resource_build!B1435","v":0},"Non-wind",{"$f":"IFERROR(INDEX($E$5:$E$32,MATCH(raw_resource_build!$E1435,Lists!$B$5:$B$32,0)),\"Non-CAISO\")","v":"Non-CAISO"}]
[null,null,null,null,null,null,null,null,null,null,null,null,null,{"$f":"raw_resource_build!B1436","v":0},"Non-wind",{"$f":"IFERROR(INDEX($E$5:$E$32,MATCH(raw_resource_build!$E1436,Lists!$B$5:$B$32,0)),\"Non-CAISO\")","v":"Non-CAISO"}]
[null,null,null,null,null,null,null,null,null,null,null,null,null,{"$f":"raw_resource_build!B1437","v":0},"Non-wind",{"$f":"IFERROR(INDEX($E$5:$E$32,MATCH(raw_resource_build!$E1437,Lists!$B$5:$B$32,0)),\"Non-CAISO\")","v":"Non-CAISO"}]
[null,null,null,null,null,null,null,null,null,null,null,null,null,{"$f":"raw_resource_build!B1438","v":0},"Non-wind",{"$f":"IFERROR(INDEX($E$5:$E$32,MATCH(raw_resource_build!$E1438,Lists!$B$5:$B$32,0)),\"Non-CAISO\")","v":"Non-CAISO"}]
[null,null,null,null,null,null,null,null,null,null,null,null,null,{"$f":"raw_resource_build!B1439","v":0},"Non-wind",{"$f":"IFERROR(INDEX($E$5:$E$32,MATCH(raw_resource_build!$E1439,Lists!$B$5:$B$32,0)),\"Non-CAISO\")","v":"Non-CAISO"}]
[null,null,null,null,null,null,null,null,null,null,null,null,null,{"$f":"raw_resource_build!B1440","v":0},"Non-wind",{"$f":"IFERROR(INDEX($E$5:$E$32,MATCH(raw_resource_build!$E1440,Lists!$B$5:$B$32,0)),\"Non-CAISO\")","v":"Non-CAISO"}]
[null,null,null,null,null,null,null,null,null,null,null,null,null,{"$f":"raw_resource_build!B1441","v":0},"Non-wind",{"$f":"IFERROR(INDEX($E$5:$E$32,MATCH(raw_resource_build!$E1441,Lists!$B$5:$B$32,0)),\"Non-CAISO\")","v":"Non-CAISO"}]
[null,null,null,null,null,null,null,null,null,null,null,null,null,{"$f":"raw_resource_build!B1442","v":0},"Non-wind",{"$f":"IFERROR(INDEX($E$5:$E$32,MATCH(raw_resource_build!$E1442,Lists!$B$5:$B$32,0)),\"Non-CAISO\")","v":"Non-CAISO"}]
[null,null,null,null,null,null,null,null,null,null,null,null,null,{"$f":"raw_resource_build!B1443","v":0},"Non-wind",{"$f":"IFERROR(INDEX($E$5:$E$32,MATCH(raw_resource_build!$E1443,Lists!$B$5:$B$32,0)),\"Non-CAISO\")","v":"Non-CAISO"}]
[null,null,null,null,null,null,null,null,null,null,null,null,null,{"$f":"raw_resource_build!B1444","v":0},"Non-wind",{"$f":"IFERROR(INDEX($E$5:$E$32,MATCH(raw_resource_build!$E1444,Lists!$B$5:$B$32,0)),\"Non-CAISO\")","v":"Non-CAISO"}]
[null,null,null,null,null,null,null,null,null,null,null,null,null,{"$f":"raw_resource_build!B1445","v":0},"Non-wind",{"$f":"IFERROR(INDEX($E$5:$E$32,MATCH(raw_resource_build!$E1445,Lists!$B$5:$B$32,0)),\"Non-CAISO\")","v":"Non-CAISO"}]
[null,null,null,null,null,null,null,null,null,null,null,null,null,{"$f":"raw_resource_build!B1446","v":0},"Non-wind",{"$f":"IFERROR(INDEX($E$5:$E$32,MATCH(raw_resource_build!$E1446,Lists!$B$5:$B$32,0)),\"Non-CAISO\")","v":"Non-CAISO"}]
[null,null,null,null,null,null,null,null,null,null,null,null,null,{"$f":"raw_resource_build!B1447","v":0},"Non-wind",{"$f":"IFERROR(INDEX($E$5:$E$32,MATCH(raw_resource_build!$E1447,Lists!$B$5:$B$32,0)),\"Non-CAISO\")","v":"Non-CAISO"}]
[null,null,null,null,null,null,null,null,null,null,null,null,null,{"$f":"raw_resource_build!B1448","v":0},"Non-wind",{"$f":"IFERROR(INDEX($E$5:$E$32,MATCH(raw_resource_build!$E1448,Lists!$B$5:$B$32,0)),\"Non-CAISO\")","v":"Non-CAISO"}]
[null,null,null,null,null,null,null,null,null,null,null,null,null,{"$f":"raw_resource_build!B1449","v":0},"Non-wind",{"$f":"IFERROR(INDEX($E$5:$E$32,MATCH(raw_resource_build!$E1449,Lists!$B$5:$B$32,0)),\"Non-CAISO\")","v":"Non-CAISO"}]
[null,null,null,null,null,null,null,null,null,null,null,null,null,{"$f":"raw_resource_build!B1450","v":0},"Non-wind",{"$f":"IFERROR(INDEX($E$5:$E$32,MATCH(raw_resource_build!$E1450,Lists!$B$5:$B$32,0)),\"Non-CAISO\")","v":"Non-CAISO"}]
[null,null,null,null,null,null,null,null,null,null,null,null,null,{"$f":"raw_resource_build!B1451","v":0},"Non-wind",{"$f":"IFERROR(INDEX($E$5:$E$32,MATCH(raw_resource_build!$E1451,Lists!$B$5:$B$32,0)),\"Non-CAISO\")","v":"Non-CAISO"}]
[null,null,null,null,null,null,null,null,null,null,null,null,null,{"$f":"raw_resource_build!B1452","v":0},"Non-wind",{"$f":"IFERROR(INDEX($E$5:$E$32,MATCH(raw_resource_build!$E1452,Lists!$B$5:$B$32,0)),\"Non-CAISO\")","v":"Non-CAISO"}]
[null,null,null,null,null,null,null,null,null,null,null,null,null,{"$f":"raw_resource_build!B1453","v":0},"Non-wind",{"$f":"IFERROR(INDEX($E$5:$E$32,MATCH(raw_resource_build!$E1453,Lists!$B$5:$B$32,0)),\"Non-CAISO\")","v":"Non-CAISO"}]
[null,null,null,null,null,null,null,null,null,null,null,null,null,{"$f":"raw_resource_build!B1454","v":0},"Non-wind",{"$f":"IFERROR(INDEX($E$5:$E$32,MATCH(raw_resource_build!$E1454,Lists!$B$5:$B$32,0)),\"Non-CAISO\")","v":"Non-CAISO"}]
[null,null,null,null,null,null,null,null,null,null,null,null,null,{"$f":"raw_resource_build!B1455","v":0},"Non-wind",{"$f":"IFERROR(INDEX($E$5:$E$32,MATCH(raw_resource_build!$E1455,Lists!$B$5:$B$32,0)),\"Non-CAISO\")","v":"Non-CAISO"}]
[null,null,null,null,null,null,null,null,null,null,null,null,null,{"$f":"raw_resource_build!B1456","v":0},"Non-wind",{"$f":"IFERROR(INDEX($E$5:$E$32,MATCH(raw_resource_build!$E1456,Lists!$B$5:$B$32,0)),\"Non-CAISO\")","v":"Non-CAISO"}]
[null,null,null,null,null,null,null,null,null,null,null,null,null,{"$f":"raw_resource_build!B1457","v":0},"Non-wind",{"$f":"IFERROR(INDEX($E$5:$E$32,MATCH(raw_resource_build!$E1457,Lists!$B$5:$B$32,0)),\"Non-CAISO\")","v":"Non-CAISO"}]
[null,null,null,null,null,null,null,null,null,null,null,null,null,{"$f":"raw_resource_build!B1458","v":0},"Non-wind",{"$f":"IFERROR(INDEX($E$5:$E$32,MATCH(raw_resource_build!$E1458,Lists!$B$5:$B$32,0)),\"Non-CAISO\")","v":"Non-CAISO"}]
[null,null,null,null,null,null,null,null,null,null,null,null,null,{"$f":"raw_resource_build!B1459","v":0},"Non-wind",{"$f":"IFERROR(INDEX($E$5:$E$32,MATCH(raw_resource_build!$E1459,Lists!$B$5:$B$32,0)),\"Non-CAISO\")","v":"Non-CAISO"}]
[null,null,null,null,null,null,null,null,null,null,null,null,null,{"$f":"raw_resource_build!B1460","v":0},"Non-wind",{"$f":"IFERROR(INDEX($E$5:$E$32,MATCH(raw_resource_build!$E1460,Lists!$B$5:$B$32,0)),\"Non-CAISO\")","v":"Non-CAISO"}]
[null,null,null,null,null,null,null,null,null,null,null,null,null,{"$f":"raw_resource_build!B1461","v":0},"Non-wind",{"$f":"IFERROR(INDEX($E$5:$E$32,MATCH(raw_resource_build!$E1461,Lists!$B$5:$B$32,0)),\"Non-CAISO\")","v":"Non-CAISO"}]
[null,null,null,null,null,null,null,null,null,null,null,null,null,{"$f":"raw_resource_build!B1462","v":0},"Non-wind",{"$f":"IFERROR(INDEX($E$5:$E$32,MATCH(raw_resource_build!$E1462,Lists!$B$5:$B$32,0)),\"Non-CAISO\")","v":"Non-CAISO"}]
[null,null,null,null,null,null,null,null,null,null,null,null,null,{"$f":"raw_resource_build!B1463","v":0},"Non-wind",{"$f":"IFERROR(INDEX($E$5:$E$32,MATCH(raw_resource_build!$E1463,Lists!$B$5:$B$32,0)),\"Non-CAISO\")","v":"Non-CAISO"}]
[null,null,null,null,null,null,null,null,null,null,null,null,null,{"$f":"raw_resource_build!B1464","v":0},"Non-wind",{"$f":"IFERROR(INDEX($E$5:$E$32,MATCH(raw_resource_build!$E1464,Lists!$B$5:$B$32,0)),\"Non-CAISO\")","v":"Non-CAISO"}]
[null,null,null,null,null,null,null,null,null,null,null,null,null,{"$f":"raw_resource_build!B1465","v":0},"Non-wind",{"$f":"IFERROR(INDEX($E$5:$E$32,MATCH(raw_resource_build!$E1465,Lists!$B$5:$B$32,0)),\"Non-CAISO\")","v":"Non-CAISO"}]
[null,null,null,null,null,null,null,null,null,null,null,null,null,{"$f":"raw_resource_build!B1466","v":0},"Non-wind",{"$f":"IFERROR(INDEX($E$5:$E$32,MATCH(raw_resource_build!$E1466,Lists!$B$5:$B$32,0)),\"Non-CAISO\")","v":"Non-CAISO"}]
[null,null,null,null,null,null,null,null,null,null,null,null,null,{"$f":"raw_resource_build!B1467","v":0},"Non-wind",{"$f":"IFERROR(INDEX($E$5:$E$32,MATCH(raw_resource_build!$E1467,Lists!$B$5:$B$32,0)),\"Non-CAISO\")","v":"Non-CAISO"}]
[null,null,null,null,null,null,null,null,null,null,null,null,null,{"$f":"raw_resource_build!B1468","v":0},"Non-wind",{"$f":"IFERROR(INDEX($E$5:$E$32,MATCH(raw_resource_build!$E1468,Lists!$B$5:$B$32,0)),\"Non-CAISO\")","v":"Non-CAISO"}]
[null,null,null,null,null,null,null,null,null,null,null,null,null,{"$f":"raw_resource_build!B1469","v":0},"Non-wind",{"$f":"IFERROR(INDEX($E$5:$E$32,MATCH(raw_resource_build!$E1469,Lists!$B$5:$B$32,0)),\"Non-CAISO\")","v":"Non-CAISO"}]
[null,null,null,null,null,null,null,null,null,null,null,null,null,{"$f":"raw_resource_build!B1470","v":0},"Non-wind",{"$f":"IFERROR(INDEX($E$5:$E$32,MATCH(raw_resource_build!$E1470,Lists!$B$5:$B$32,0)),\"Non-CAISO\")","v":"Non-CAISO"}]
[null,null,null,null,null,null,null,null,null,null,null,null,null,{"$f":"raw_resource_build!B1471","v":0},"Non-wind",{"$f":"IFERROR(INDEX($E$5:$E$32,MATCH(raw_resource_build!$E1471,Lists!$B$5:$B$32,0)),\"Non-CAISO\")","v":"Non-CAISO"}]
[null,null,null,null,null,null,null,null,null,null,null,null,null,{"$f":"raw_resource_build!B1472","v":0},"Non-wind",{"$f":"IFERROR(INDEX($E$5:$E$32,MATCH(raw_resource_build!$E1472,Lists!$B$5:$B$32,0)),\"Non-CAISO\")","v":"Non-CAISO"}]
[null,null,null,null,null,null,null,null,null,null,null,null,null,{"$f":"raw_resource_build!B1473","v":0},"Non-wind",{"$f":"IFERROR(INDEX($E$5:$E$32,MATCH(raw_resource_build!$E1473,Lists!$B$5:$B$32,0)),\"Non-CAISO\")","v":"Non-CAISO"}]
[null,null,null,null,null,null,null,null,null,null,null,null,null,{"$f":"raw_resource_build!B1474","v":0},"Non-wind",{"$f":"IFERROR(INDEX($E$5:$E$32,MATCH(raw_resource_build!$E1474,Lists!$B$5:$B$32,0)),\"Non-CAISO\")","v":"Non-CAISO"}]
[null,null,null,null,null,null,null,null,null,null,null,null,null,{"$f":"raw_resource_build!B1475","v":0},"Non-wind",{"$f":"IFERROR(INDEX($E$5:$E$32,MATCH(raw_resource_build!$E1475,Lists!$B$5:$B$32,0)),\"Non-CAISO\")","v":"Non-CAISO"}]
[null,null,null,null,null,null,null,null,null,null,null,null,null,{"$f":"raw_resource_build!B1476","v":0},"Non-wind",{"$f":"IFERROR(INDEX($E$5:$E$32,MATCH(raw_resource_build!$E1476,Lists!$B$5:$B$32,0)),\"Non-CAISO\")","v":"Non-CAISO"}]
[null,null,null,null,null,null,null,null,null,null,null,null,null,{"$f":"raw_resource_build!B1477","v":0},{"$f":"IFERROR(INDEX($C$35:$C$99,MATCH($N1477,$B$35:$B$99,0)),\"Non-wind\")","v":"Non-wind"},{"$f":"IFERROR(INDEX($E$5:$E$32,MATCH(raw_resource_build!$E1477,Lists!$B$5:$B$32,0)),\"Non-CAISO\")","v":"Non-CAISO"}]
[null,null,null,null,null,null,null,null,null,null,null,null,null,{"$f":"raw_resource_build!B1478","v":0},"Non-wind",{"$f":"IFERROR(INDEX($E$5:$E$32,MATCH(raw_resource_build!$E1478,Lists!$B$5:$B$32,0)),\"Non-CAISO\")","v":"Non-CAISO"}]
[null,null,null,null,null,null,null,null,null,null,null,null,null,{"$f":"raw_resource_build!B1479","v":0},"Non-wind",{"$f":"IFERROR(INDEX($E$5:$E$32,MATCH(raw_resource_build!$E1479,Lists!$B$5:$B$32,0)),\"Non-CAISO\")","v":"Non-CAISO"}]
[null,null,null,null,null,null,null,null,null,null,null,null,null,{"$f":"raw_resource_build!B1480","v":0},"Non-wind",{"$f":"IFERROR(INDEX($E$5:$E$32,MATCH(raw_resource_build!$E1480,Lists!$B$5:$B$32,0)),\"Non-CAISO\")","v":"Non-CAISO"}]
[null,null,null,null,null,null,null,null,null,null,null,null,null,{"$f":"raw_resource_build!B1481","v":0},"Non-wind",{"$f":"IFERROR(INDEX($E$5:$E$32,MATCH(raw_resource_build!$E1481,Lists!$B$5:$B$32,0)),\"Non-CAISO\")","v":"Non-CAISO"}]
[null,null,null,null,null,null,null,null,null,null,null,null,null,{"$f":"raw_resource_build!B1482","v":0},"Non-wind",{"$f":"IFERROR(INDEX($E$5:$E$32,MATCH(raw_resource_build!$E1482,Lists!$B$5:$B$32,0)),\"Non-CAISO\")","v":"Non-CAISO"}]
[null,null,null,null,null,null,null,null,null,null,null,null,null,{"$f":"raw_resource_build!B1483","v":0},"Non-wind",{"$f":"IFERROR(INDEX($E$5:$E$32,MATCH(raw_resource_build!$E1483,Lists!$B$5:$B$32,0)),\"Non-CAISO\")","v":"Non-CAISO"}]
[null,null,null,null,null,null,null,null,null,null,null,null,null,{"$f":"raw_resource_build!B1484","v":0},"Non-wind",{"$f":"IFERROR(INDEX($E$5:$E$32,MATCH(raw_resource_build!$E1484,Lists!$B$5:$B$32,0)),\"Non-CAISO\")","v":"Non-CAISO"}]
[null,null,null,null,null,null,null,null,null,null,null,null,null,{"$f":"raw_resource_build!B1485","v":0},"Non-wind",{"$f":"IFERROR(INDEX($E$5:$E$32,MATCH(raw_resource_build!$E1485,Lists!$B$5:$B$32,0)),\"Non-CAISO\")","v":"Non-CAISO"}]
[null,null,null,null,null,null,null,null,null,null,null,null,null,{"$f":"raw_resource_build!B1486","v":0},"Non-wind",{"$f":"IFERROR(INDEX($E$5:$E$32,MATCH(raw_resource_build!$E1486,Lists!$B$5:$B$32,0)),\"Non-CAISO\")","v":"Non-CAISO"}]
[null,null,null,null,null,null,null,null,null,null,null,null,null,{"$f":"raw_resource_build!B1487","v":0},"Non-wind",{"$f":"IFERROR(INDEX($E$5:$E$32,MATCH(raw_resource_build!$E1487,Lists!$B$5:$B$32,0)),\"Non-CAISO\")","v":"Non-CAISO"}]
[null,null,null,null,null,null,null,null,null,null,null,null,null,{"$f":"raw_resource_build!B1488","v":0},"Non-wind",{"$f":"IFERROR(INDEX($E$5:$E$32,MATCH(raw_resource_build!$E1488,Lists!$B$5:$B$32,0)),\"Non-CAISO\")","v":"Non-CAISO"}]
[null,null,null,null,null,null,null,null,null,null,null,null,null,{"$f":"raw_resource_build!B1489","v":0},"Non-wind",{"$f":"IFERROR(INDEX($E$5:$E$32,MATCH(raw_resource_build!$E1489,Lists!$B$5:$B$32,0)),\"Non-CAISO\")","v":"Non-CAISO"}]
[null,null,null,null,null,null,null,null,null,null,null,null,null,{"$f":"raw_resource_build!B1490","v":0},"Non-wind",{"$f":"IFERROR(INDEX($E$5:$E$32,MATCH(raw_resource_build!$E1490,Lists!$B$5:$B$32,0)),\"Non-CAISO\")","v":"Non-CAISO"}]
[null,null,null,null,null,null,null,null,null,null,null,null,null,{"$f":"raw_resource_build!B1491","v":0},"Non-wind",{"$f":"IFERROR(INDEX($E$5:$E$32,MATCH(raw_resource_build!$E1491,Lists!$B$5:$B$32,0)),\"Non-CAISO\")","v":"Non-CAISO"}]
[null,null,null,null,null,null,null,null,null,null,null,null,null,{"$f":"raw_resource_build!B1492","v":0},"Non-wind",{"$f":"IFERROR(INDEX($E$5:$E$32,MATCH(raw_resource_build!$E1492,Lists!$B$5:$B$32,0)),\"Non-CAISO\")","v":"Non-CAISO"}]
[null,null,null,null,null,null,null,null,null,null,null,null,null,{"$f":"raw_resource_build!B1493","v":0},"Non-wind",{"$f":"IFERROR(INDEX($E$5:$E$32,MATCH(raw_resource_build!$E1493,Lists!$B$5:$B$32,0)),\"Non-CAISO\")","v":"Non-CAISO"}]
[null,null,null,null,null,null,null,null,null,null,null,null,null,{"$f":"raw_resource_build!B1494","v":0},"Non-wind",{"$f":"IFERROR(INDEX($E$5:$E$32,MATCH(raw_resource_build!$E1494,Lists!$B$5:$B$32,0)),\"Non-CAISO\")","v":"Non-CAISO"}]
[null,null,null,null,null,null,null,null,null,null,null,null,null,{"$f":"raw_resource_build!B1495","v":0},"Non-wind",{"$f":"IFERROR(INDEX($E$5:$E$32,MATCH(raw_resource_build!$E1495,Lists!$B$5:$B$32,0)),\"Non-CAISO\")","v":"Non-CAISO"}]
[null,null,null,null,null,null,null,null,null,null,null,null,null,{"$f":"raw_resource_build!B1496","v":0},"Non-wind",{"$f":"IFERROR(INDEX($E$5:$E$32,MATCH(raw_resource_build!$E1496,Lists!$B$5:$B$32,0)),\"Non-CAISO\")","v":"Non-CAISO"}]
[null,null,null,null,null,null,null,null,null,null,null,null,null,{"$f":"raw_resource_build!B1497","v":0},"Non-wind",{"$f":"IFERROR(INDEX($E$5:$E$32,MATCH(raw_resource_build!$E1497,Lists!$B$5:$B$32,0)),\"Non-CAISO\")","v":"Non-CAISO"}]
[null,null,null,null,null,null,null,null,null,null,null,null,null,{"$f":"raw_resource_build!B1498","v":0},"Non-wind",{"$f":"IFERROR(INDEX($E$5:$E$32,MATCH(raw_resource_build!$E1498,Lists!$B$5:$B$32,0)),\"Non-CAISO\")","v":"Non-CAISO"}]
[null,null,null,null,null,null,null,null,null,null,null,null,null,{"$f":"raw_resource_build!B1499","v":0},"Non-wind",{"$f":"IFERROR(INDEX($E$5:$E$32,MATCH(raw_resource_build!$E1499,Lists!$B$5:$B$32,0)),\"Non-CAISO\")","v":"Non-CAISO"}]
[null,null,null,null,null,null,null,null,null,null,null,null,null,{"$f":"raw_resource_build!B1500","v":0},"Non-wind",{"$f":"IFERROR(INDEX($E$5:$E$32,MATCH(raw_resource_build!$E1500,Lists!$B$5:$B$32,0)),\"Non-CAISO\")","v":"Non-CAISO"}]
[null,null,null,null,null,null,null,null,null,null,null,null,null,{"$f":"raw_resource_build!B1501","v":0},"Non-wind",{"$f":"IFERROR(INDEX($E$5:$E$32,MATCH(raw_resource_build!$E1501,Lists!$B$5:$B$32,0)),\"Non-CAISO\")","v":"Non-CAISO"}]
[null,null,null,null,null,null,null,null,null,null,null,null,null,{"$f":"raw_resource_build!B1502","v":0},"Non-wind",{"$f":"IFERROR(INDEX($E$5:$E$32,MATCH(raw_resource_build!$E1502,Lists!$B$5:$B$32,0)),\"Non-CAISO\")","v":"Non-CAISO"}]
[null,null,null,null,null,null,null,null,null,null,null,null,null,{"$f":"raw_resource_build!B1503","v":0},"Non-wind",{"$f":"IFERROR(INDEX($E$5:$E$32,MATCH(raw_resource_build!$E1503,Lists!$B$5:$B$32,0)),\"Non-CAISO\")","v":"Non-CAISO"}]
[null,null,null,null,null,null,null,null,null,null,null,null,null,{"$f":"raw_resource_build!B1504","v":0},"Non-wind",{"$f":"IFERROR(INDEX($E$5:$E$32,MATCH(raw_resource_build!$E1504,Lists!$B$5:$B$32,0)),\"Non-CAISO\")","v":"Non-CAISO"}]
[null,null,null,null,null,null,null,null,null,null,null,null,null,{"$f":"raw_resource_build!B1505","v":0},"Non-wind",{"$f":"IFERROR(INDEX($E$5:$E$32,MATCH(raw_resource_build!$E1505,Lists!$B$5:$B$32,0)),\"Non-CAISO\")","v":"Non-CAISO"}]
[null,null,null,null,null,null,null,null,null,null,null,null,null,{"$f":"raw_resource_build!B1506","v":0},"Non-wind",{"$f":"IFERROR(INDEX($E$5:$E$32,MATCH(raw_resource_build!$E1506,Lists!$B$5:$B$32,0)),\"Non-CAISO\")","v":"Non-CAISO"}]
[null,null,null,null,null,null,null,null,null,null,null,null,null,{"$f":"raw_resource_build!B1507","v":0},"Non-wind",{"$f":"IFERROR(INDEX($E$5:$E$32,MATCH(raw_resource_build!$E1507,Lists!$B$5:$B$32,0)),\"Non-CAISO\")","v":"Non-CAISO"}]
[null,null,null,null,null,null,null,null,null,null,null,null,null,{"$f":"raw_resource_build!B1508","v":0},"Non-wind",{"$f":"IFERROR(INDEX($E$5:$E$32,MATCH(raw_resource_build!$E1508,Lists!$B$5:$B$32,0)),\"Non-CAISO\")","v":"Non-CAISO"}]
[null,null,null,null,null,null,null,null,null,null,null,null,null,{"$f":"raw_resource_build!B1509","v":0},"Non-wind",{"$f":"IFERROR(INDEX($E$5:$E$32,MATCH(raw_resource_build!$E1509,Lists!$B$5:$B$32,0)),\"Non-CAISO\")","v":"Non-CAISO"}]
[null,null,null,null,null,null,null,null,null,null,null,null,null,{"$f":"raw_resource_build!B1510","v":0},"Non-wind",{"$f":"IFERROR(INDEX($E$5:$E$32,MATCH(raw_resource_build!$E1510,Lists!$B$5:$B$32,0)),\"Non-CAISO\")","v":"Non-CAISO"}]
[null,null,null,null,null,null,null,null,null,null,null,null,null,{"$f":"raw_resource_build!B1511","v":0},"Non-wind",{"$f":"IFERROR(INDEX($E$5:$E$32,MATCH(raw_resource_build!$E1511,Lists!$B$5:$B$32,0)),\"Non-CAISO\")","v":"Non-CAISO"}]
[null,null,null,null,null,null,null,null,null,null,null,null,null,{"$f":"raw_resource_build!B1512","v":0},"Non-wind",{"$f":"IFERROR(INDEX($E$5:$E$32,MATCH(raw_resource_build!$E1512,Lists!$B$5:$B$32,0)),\"Non-CAISO\")","v":"Non-CAISO"}]
[null,null,null,null,null,null,null,null,null,null,null,null,null,{"$f":"raw_resource_build!B1513","v":0},"Non-wind",{"$f":"IFERROR(INDEX($E$5:$E$32,MATCH(raw_resource_build!$E1513,Lists!$B$5:$B$32,0)),\"Non-CAISO\")","v":"Non-CAISO"}]
[null,null,null,null,null,null,null,null,null,null,null,null,null,{"$f":"raw_resource_build!B1514","v":0},"Non-wind",{"$f":"IFERROR(INDEX($E$5:$E$32,MATCH(raw_resource_build!$E1514,Lists!$B$5:$B$32,0)),\"Non-CAISO\")","v":"Non-CAISO"}]
[null,null,null,null,null,null,null,null,null,null,null,null,null,{"$f":"raw_resource_build!B1515","v":0},"Non-wind",{"$f":"IFERROR(INDEX($E$5:$E$32,MATCH(raw_resource_build!$E1515,Lists!$B$5:$B$32,0)),\"Non-CAISO\")","v":"Non-CAISO"}]
[null,null,null,null,null,null,null,null,null,null,null,null,null,{"$f":"raw_resource_build!B1516","v":0},"Non-wind",{"$f":"IFERROR(INDEX($E$5:$E$32,MATCH(raw_resource_build!$E1516,Lists!$B$5:$B$32,0)),\"Non-CAISO\")","v":"Non-CAISO"}]
[null,null,null,null,null,null,null,null,null,null,null,null,null,{"$f":"raw_resource_build!B1517","v":0},"Non-wind",{"$f":"IFERROR(INDEX($E$5:$E$32,MATCH(raw_resource_build!$E1517,Lists!$B$5:$B$32,0)),\"Non-CAISO\")","v":"Non-CAISO"}]
[null,null,null,null,null,null,null,null,null,null,null,null,null,{"$f":"raw_resource_build!B1518","v":0},"Non-wind",{"$f":"IFERROR(INDEX($E$5:$E$32,MATCH(raw_resource_build!$E1518,Lists!$B$5:$B$32,0)),\"Non-CAISO\")","v":"Non-CAISO"}]
[null,null,null,null,null,null,null,null,null,null,null,null,null,{"$f":"raw_resource_build!B1519","v":0},"Non-wind",{"$f":"IFERROR(INDEX($E$5:$E$32,MATCH(raw_resource_build!$E1519,Lists!$B$5:$B$32,0)),\"Non-CAISO\")","v":"Non-CAISO"}]
[null,null,null,null,null,null,null,null,null,null,null,null,null,{"$f":"raw_resource_build!B1520","v":0},"Non-wind",{"$f":"IFERROR(INDEX($E$5:$E$32,MATCH(raw_resource_build!$E1520,Lists!$B$5:$B$32,0)),\"Non-CAISO\")","v":"Non-CAISO"}]
[null,null,null,null,null,null,null,null,null,null,null,null,null,{"$f":"raw_resource_build!B1521","v":0},"Non-wind",{"$f":"IFERROR(INDEX($E$5:$E$32,MATCH(raw_resource_build!$E1521,Lists!$B$5:$B$32,0)),\"Non-CAISO\")","v":"Non-CAISO"}]
[null,null,null,null,null,null,null,null,null,null,null,null,null,{"$f":"raw_resource_build!B1522","v":0},"Non-wind",{"$f":"IFERROR(INDEX($E$5:$E$32,MATCH(raw_resource_build!$E1522,Lists!$B$5:$B$32,0)),\"Non-CAISO\")","v":"Non-CAISO"}]
[null,null,null,null,null,null,null,null,null,null,null,null,null,{"$f":"raw_resource_build!B1523","v":0},"Non-wind",{"$f":"IFERROR(INDEX($E$5:$E$32,MATCH(raw_resource_build!$E1523,Lists!$B$5:$B$32,0)),\"Non-CAISO\")","v":"Non-CAISO"}]
[null,null,null,null,null,null,null,null,null,null,null,null,null,{"$f":"raw_resource_build!B1524","v":0},"Non-wind",{"$f":"IFERROR(INDEX($E$5:$E$32,MATCH(raw_resource_build!$E1524,Lists!$B$5:$B$32,0)),\"Non-CAISO\")","v":"Non-CAISO"}]
[null,null,null,null,null,null,null,null,null,null,null,null,null,{"$f":"raw_resource_build!B1525","v":0},"Non-wind",{"$f":"IFERROR(INDEX($E$5:$E$32,MATCH(raw_resource_build!$E1525,Lists!$B$5:$B$32,0)),\"Non-CAISO\")","v":"Non-CAISO"}]
[null,null,null,null,null,null,null,null,null,null,null,null,null,{"$f":"raw_resource_build!B1526","v":0},"Non-wind",{"$f":"IFERROR(INDEX($E$5:$E$32,MATCH(raw_resource_build!$E1526,Lists!$B$5:$B$32,0)),\"Non-CAISO\")","v":"Non-CAISO"}]
[null,null,null,null,null,null,null,null,null,null,null,null,null,{"$f":"raw_resource_build!B1527","v":0},"Non-wind",{"$f":"IFERROR(INDEX($E$5:$E$32,MATCH(raw_resource_build!$E1527,Lists!$B$5:$B$32,0)),\"Non-CAISO\")","v":"Non-CAISO"}]
[null,null,null,null,null,null,null,null,null,null,null,null,null,{"$f":"raw_resource_build!B1528","v":0},"Non-wind",{"$f":"IFERROR(INDEX($E$5:$E$32,MATCH(raw_resource_build!$E1528,Lists!$B$5:$B$32,0)),\"Non-CAISO\")","v":"Non-CAISO"}]
[null,null,null,null,null,null,null,null,null,null,null,null,null,{"$f":"raw_resource_build!B1529","v":0},"Non-wind",{"$f":"IFERROR(INDEX($E$5:$E$32,MATCH(raw_resource_build!$E1529,Lists!$B$5:$B$32,0)),\"Non-CAISO\")","v":"Non-CAISO"}]
[null,null,null,null,null,null,null,null,null,null,null,null,null,{"$f":"raw_resource_build!B1530","v":0},"Non-wind",{"$f":"IFERROR(INDEX($E$5:$E$32,MATCH(raw_resource_build!$E1530,Lists!$B$5:$B$32,0)),\"Non-CAISO\")","v":"Non-CAISO"}]
[null,null,null,null,null,null,null,null,null,null,null,null,null,{"$f":"raw_resource_build!B1531","v":0},"Non-wind",{"$f":"IFERROR(INDEX($E$5:$E$32,MATCH(raw_resource_build!$E1531,Lists!$B$5:$B$32,0)),\"Non-CAISO\")","v":"Non-CAISO"}]
[null,null,null,null,null,null,null,null,null,null,null,null,null,{"$f":"raw_resource_build!B1532","v":0},"Non-wind",{"$f":"IFERROR(INDEX($E$5:$E$32,MATCH(raw_resource_build!$E1532,Lists!$B$5:$B$32,0)),\"Non-CAISO\")","v":"Non-CAISO"}]
[null,null,null,null,null,null,null,null,null,null,null,null,null,{"$f":"raw_resource_build!B1533","v":0},"Non-wind",{"$f":"IFERROR(INDEX($E$5:$E$32,MATCH(raw_resource_build!$E1533,Lists!$B$5:$B$32,0)),\"Non-CAISO\")","v":"Non-CAISO"}]
[null,null,null,null,null,null,null,null,null,null,null,null,null,{"$f":"raw_resource_build!B1534","v":0},"Non-wind",{"$f":"IFERROR(INDEX($E$5:$E$32,MATCH(raw_resource_build!$E1534,Lists!$B$5:$B$32,0)),\"Non-CAISO\")","v":"Non-CAISO"}]
[null,null,null,null,null,null,null,null,null,null,null,null,null,{"$f":"raw_resource_build!B1535","v":0},"Non-wind",{"$f":"IFERROR(INDEX($E$5:$E$32,MATCH(raw_resource_build!$E1535,Lists!$B$5:$B$32,0)),\"Non-CAISO\")","v":"Non-CAISO"}]
[null,null,null,null,null,null,null,null,null,null,null,null,null,{"$f":"raw_resource_build!B1536","v":0},"Non-wind",{"$f":"IFERROR(INDEX($E$5:$E$32,MATCH(raw_resource_build!$E1536,Lists!$B$5:$B$32,0)),\"Non-CAISO\")","v":"Non-CAISO"}]
[null,null,null,null,null,null,null,null,null,null,null,null,null,{"$f":"raw_resource_build!B1537","v":0},"Non-wind",{"$f":"IFERROR(INDEX($E$5:$E$32,MATCH(raw_resource_build!$E1537,Lists!$B$5:$B$32,0)),\"Non-CAISO\")","v":"Non-CAISO"}]
[null,null,null,null,null,null,null,null,null,null,null,null,null,{"$f":"raw_resource_build!B1538","v":0},"Non-wind",{"$f":"IFERROR(INDEX($E$5:$E$32,MATCH(raw_resource_build!$E1538,Lists!$B$5:$B$32,0)),\"Non-CAISO\")","v":"Non-CAISO"}]
[null,null,null,null,null,null,null,null,null,null,null,null,null,{"$f":"raw_resource_build!B1539","v":0},"Non-wind",{"$f":"IFERROR(INDEX($E$5:$E$32,MATCH(raw_resource_build!$E1539,Lists!$B$5:$B$32,0)),\"Non-CAISO\")","v":"Non-CAISO"}]
[null,null,null,null,null,null,null,null,null,null,null,null,null,{"$f":"raw_resource_build!B1540","v":0},"Non-wind",{"$f":"IFERROR(INDEX($E$5:$E$32,MATCH(raw_resource_build!$E1540,Lists!$B$5:$B$32,0)),\"Non-CAISO\")","v":"Non-CAISO"}]
[null,null,null,null,null,null,null,null,null,null,null,null,null,{"$f":"raw_resource_build!B1541","v":0},{"$f":"IFERROR(INDEX($C$35:$C$99,MATCH($N1541,$B$35:$B$99,0)),\"Non-wind\")","v":"Non-wind"},{"$f":"IFERROR(INDEX($E$5:$E$32,MATCH(raw_resource_build!$E1541,Lists!$B$5:$B$32,0)),\"Non-CAISO\")","v":"Non-CAISO"}]
[null,null,null,null,null,null,null,null,null,null,null,null,null,{"$f":"raw_resource_build!B1542","v":0},"Non-wind",{"$f":"IFERROR(INDEX($E$5:$E$32,MATCH(raw_resource_build!$E1542,Lists!$B$5:$B$32,0)),\"Non-CAISO\")","v":"Non-CAISO"}]
[null,null,null,null,null,null,null,null,null,null,null,null,null,{"$f":"raw_resource_build!B1543","v":0},"Non-wind",{"$f":"IFERROR(INDEX($E$5:$E$32,MATCH(raw_resource_build!$E1543,Lists!$B$5:$B$32,0)),\"Non-CAISO\")","v":"Non-CAISO"}]
[null,null,null,null,null,null,null,null,null,null,null,null,null,{"$f":"raw_resource_build!B1544","v":0},"Non-wind",{"$f":"IFERROR(INDEX($E$5:$E$32,MATCH(raw_resource_build!$E1544,Lists!$B$5:$B$32,0)),\"Non-CAISO\")","v":"Non-CAISO"}]
[null,null,null,null,null,null,null,null,null,null,null,null,null,{"$f":"raw_resource_build!B1545","v":0},"Non-wind",{"$f":"IFERROR(INDEX($E$5:$E$32,MATCH(raw_resource_build!$E1545,Lists!$B$5:$B$32,0)),\"Non-CAISO\")","v":"Non-CAISO"}]
[null,null,null,null,null,null,null,null,null,null,null,null,null,{"$f":"raw_resource_build!B1546","v":0},"Non-wind",{"$f":"IFERROR(INDEX($E$5:$E$32,MATCH(raw_resource_build!$E1546,Lists!$B$5:$B$32,0)),\"Non-CAISO\")","v":"Non-CAISO"}]
[null,null,null,null,null,null,null,null,null,null,null,null,null,{"$f":"raw_resource_build!B1547","v":0},"Non-wind",{"$f":"IFERROR(INDEX($E$5:$E$32,MATCH(raw_resource_build!$E1547,Lists!$B$5:$B$32,0)),\"Non-CAISO\")","v":"Non-CAISO"}]
[null,null,null,null,null,null,null,null,null,null,null,null,null,{"$f":"raw_resource_build!B1548","v":0},"Non-wind",{"$f":"IFERROR(INDEX($E$5:$E$32,MATCH(raw_resource_build!$E1548,Lists!$B$5:$B$32,0)),\"Non-CAISO\")","v":"Non-CAISO"}]
[null,null,null,null,null,null,null,null,null,null,null,null,null,{"$f":"raw_resource_build!B1549","v":0},"Non-wind",{"$f":"IFERROR(INDEX($E$5:$E$32,MATCH(raw_resource_build!$E1549,Lists!$B$5:$B$32,0)),\"Non-CAISO\")","v":"Non-CAISO"}]
[null,null,null,null,null,null,null,null,null,null,null,null,null,{"$f":"raw_resource_build!B1550","v":0},"Non-wind",{"$f":"IFERROR(INDEX($E$5:$E$32,MATCH(raw_resource_build!$E1550,Lists!$B$5:$B$32,0)),\"Non-CAISO\")","v":"Non-CAISO"}]
[null,null,null,null,null,null,null,null,null,null,null,null,null,{"$f":"raw_resource_build!B1551","v":0},"Non-wind",{"$f":"IFERROR(INDEX($E$5:$E$32,MATCH(raw_resource_build!$E1551,Lists!$B$5:$B$32,0)),\"Non-CAISO\")","v":"Non-CAISO"}]
[null,null,null,null,null,null,null,null,null,null,null,null,null,{"$f":"raw_resource_build!B1552","v":0},"Non-wind",{"$f":"IFERROR(INDEX($E$5:$E$32,MATCH(raw_resource_build!$E1552,Lists!$B$5:$B$32,0)),\"Non-CAISO\")","v":"Non-CAISO"}]
[null,null,null,null,null,null,null,null,null,null,null,null,null,{"$f":"raw_resource_build!B1553","v":0},"Non-wind",{"$f":"IFERROR(INDEX($E$5:$E$32,MATCH(raw_resource_build!$E1553,Lists!$B$5:$B$32,0)),\"Non-CAISO\")","v":"Non-CAISO"}]
[null,null,null,null,null,null,null,null,null,null,null,null,null,{"$f":"raw_resource_build!B1554","v":0},"Non-wind",{"$f":"IFERROR(INDEX($E$5:$E$32,MATCH(raw_resource_build!$E1554,Lists!$B$5:$B$32,0)),\"Non-CAISO\")","v":"Non-CAISO"}]
[null,null,null,null,null,null,null,null,null,null,null,null,null,{"$f":"raw_resource_build!B1555","v":0},"Non-wind",{"$f":"IFERROR(INDEX($E$5:$E$32,MATCH(raw_resource_build!$E1555,Lists!$B$5:$B$32,0)),\"Non-CAISO\")","v":"Non-CAISO"}]
[null,null,null,null,null,null,null,null,null,null,null,null,null,{"$f":"raw_resource_build!B1556","v":0},"Non-wind",{"$f":"IFERROR(INDEX($E$5:$E$32,MATCH(raw_resource_build!$E1556,Lists!$B$5:$B$32,0)),\"Non-CAISO\")","v":"Non-CAISO"}]
[null,null,null,null,null,null,null,null,null,null,null,null,null,{"$f":"raw_resource_build!B1557","v":0},"Non-wind",{"$f":"IFERROR(INDEX($E$5:$E$32,MATCH(raw_resource_build!$E1557,Lists!$B$5:$B$32,0)),\"Non-CAISO\")","v":"Non-CAISO"}]
[null,null,null,null,null,null,null,null,null,null,null,null,null,{"$f":"raw_resource_build!B1558","v":0},"Non-wind",{"$f":"IFERROR(INDEX($E$5:$E$32,MATCH(raw_resource_build!$E1558,Lists!$B$5:$B$32,0)),\"Non-CAISO\")","v":"Non-CAISO"}]
[null,null,null,null,null,null,null,null,null,null,null,null,null,{"$f":"raw_resource_build!B1559","v":0},"Non-wind",{"$f":"IFERROR(INDEX($E$5:$E$32,MATCH(raw_resource_build!$E1559,Lists!$B$5:$B$32,0)),\"Non-CAISO\")","v":"Non-CAISO"}]
[null,null,null,null,null,null,null,null,null,null,null,null,null,{"$f":"raw_resource_build!B1560","v":0},"Non-wind",{"$f":"IFERROR(INDEX($E$5:$E$32,MATCH(raw_resource_build!$E1560,Lists!$B$5:$B$32,0)),\"Non-CAISO\")","v":"Non-CAISO"}]
[null,null,null,null,null,null,null,null,null,null,null,null,null,{"$f":"raw_resource_build!B1561","v":0},"Non-wind",{"$f":"IFERROR(INDEX($E$5:$E$32,MATCH(raw_resource_build!$E1561,Lists!$B$5:$B$32,0)),\"Non-CAISO\")","v":"Non-CAISO"}]
[null,null,null,null,null,null,null,null,null,null,null,null,null,{"$f":"raw_resource_build!B1562","v":0},"Non-wind",{"$f":"IFERROR(INDEX($E$5:$E$32,MATCH(raw_resource_build!$E1562,Lists!$B$5:$B$32,0)),\"Non-CAISO\")","v":"Non-CAISO"}]
[null,null,null,null,null,null,null,null,null,null,null,null,null,{"$f":"raw_resource_build!B1563","v":0},"Non-wind",{"$f":"IFERROR(INDEX($E$5:$E$32,MATCH(raw_resource_build!$E1563,Lists!$B$5:$B$32,0)),\"Non-CAISO\")","v":"Non-CAISO"}]
[null,null,null,null,null,null,null,null,null,null,null,null,null,{"$f":"raw_resource_build!B1564","v":0},"Non-wind",{"$f":"IFERROR(INDEX($E$5:$E$32,MATCH(raw_resource_build!$E1564,Lists!$B$5:$B$32,0)),\"Non-CAISO\")","v":"Non-CAISO"}]
[null,null,null,null,null,null,null,null,null,null,null,null,null,{"$f":"raw_resource_build!B1565","v":0},"Non-wind",{"$f":"IFERROR(INDEX($E$5:$E$32,MATCH(raw_resource_build!$E1565,Lists!$B$5:$B$32,0)),\"Non-CAISO\")","v":"Non-CAISO"}]
[null,null,null,null,null,null,null,null,null,null,null,null,null,{"$f":"raw_resource_build!B1566","v":0},"Non-wind",{"$f":"IFERROR(INDEX($E$5:$E$32,MATCH(raw_resource_build!$E1566,Lists!$B$5:$B$32,0)),\"Non-CAISO\")","v":"Non-CAISO"}]
[null,null,null,null,null,null,null,null,null,null,null,null,null,{"$f":"raw_resource_build!B1567","v":0},"Non-wind",{"$f":"IFERROR(INDEX($E$5:$E$32,MATCH(raw_resource_build!$E1567,Lists!$B$5:$B$32,0)),\"Non-CAISO\")","v":"Non-CAISO"}]
[null,null,null,null,null,null,null,null,null,null,null,null,null,{"$f":"raw_resource_build!B1568","v":0},"Non-wind",{"$f":"IFERROR(INDEX($E$5:$E$32,MATCH(raw_resource_build!$E1568,Lists!$B$5:$B$32,0)),\"Non-CAISO\")","v":"Non-CAISO"}]
[null,null,null,null,null,null,null,null,null,null,null,null,null,{"$f":"raw_resource_build!B1569","v":0},"Non-wind",{"$f":"IFERROR(INDEX($E$5:$E$32,MATCH(raw_resource_build!$E1569,Lists!$B$5:$B$32,0)),\"Non-CAISO\")","v":"Non-CAISO"}]
[null,null,null,null,null,null,null,null,null,null,null,null,null,{"$f":"raw_resource_build!B1570","v":0},"Non-wind",{"$f":"IFERROR(INDEX($E$5:$E$32,MATCH(raw_resource_build!$E1570,Lists!$B$5:$B$32,0)),\"Non-CAISO\")","v":"Non-CAISO"}]
[null,null,null,null,null,null,null,null,null,null,null,null,null,{"$f":"raw_resource_build!B1571","v":0},"Non-wind",{"$f":"IFERROR(INDEX($E$5:$E$32,MATCH(raw_resource_build!$E1571,Lists!$B$5:$B$32,0)),\"Non-CAISO\")","v":"Non-CAISO"}]
[null,null,null,null,null,null,null,null,null,null,null,null,null,{"$f":"raw_resource_build!B1572","v":0},"Non-wind",{"$f":"IFERROR(INDEX($E$5:$E$32,MATCH(raw_resource_build!$E1572,Lists!$B$5:$B$32,0)),\"Non-CAISO\")","v":"Non-CAISO"}]
[null,null,null,null,null,null,null,null,null,null,null,null,null,{"$f":"raw_resource_build!B1573","v":0},"Non-wind",{"$f":"IFERROR(INDEX($E$5:$E$32,MATCH(raw_resource_build!$E1573,Lists!$B$5:$B$32,0)),\"Non-CAISO\")","v":"Non-CAISO"}]
[null,null,null,null,null,null,null,null,null,null,null,null,null,{"$f":"raw_resource_build!B1574","v":0},"Non-wind",{"$f":"IFERROR(INDEX($E$5:$E$32,MATCH(raw_resource_build!$E1574,Lists!$B$5:$B$32,0)),\"Non-CAISO\")","v":"Non-CAISO"}]
[null,null,null,null,null,null,null,null,null,null,null,null,null,{"$f":"raw_resource_build!B1575","v":0},"Non-wind",{"$f":"IFERROR(INDEX($E$5:$E$32,MATCH(raw_resource_build!$E1575,Lists!$B$5:$B$32,0)),\"Non-CAISO\")","v":"Non-CAISO"}]
[null,null,null,null,null,null,null,null,null,null,null,null,null,{"$f":"raw_resource_build!B1576","v":0},"Non-wind",{"$f":"IFERROR(INDEX($E$5:$E$32,MATCH(raw_resource_build!$E1576,Lists!$B$5:$B$32,0)),\"Non-CAISO\")","v":"Non-CAISO"}]
[null,null,null,null,null,null,null,null,null,null,null,null,null,{"$f":"raw_resource_build!B1577","v":0},"Non-wind",{"$f":"IFERROR(INDEX($E$5:$E$32,MATCH(raw_resource_build!$E1577,Lists!$B$5:$B$32,0)),\"Non-CAISO\")","v":"Non-CAISO"}]
[null,null,null,null,null,null,null,null,null,null,null,null,null,{"$f":"raw_resource_build!B1578","v":0},"Non-wind",{"$f":"IFERROR(INDEX($E$5:$E$32,MATCH(raw_resource_build!$E1578,Lists!$B$5:$B$32,0)),\"Non-CAISO\")","v":"Non-CAISO"}]
[null,null,null,null,null,null,null,null,null,null,null,null,null,{"$f":"raw_resource_build!B1579","v":0},"Non-wind",{"$f":"IFERROR(INDEX($E$5:$E$32,MATCH(raw_resource_build!$E1579,Lists!$B$5:$B$32,0)),\"Non-CAISO\")","v":"Non-CAISO"}]
[null,null,null,null,null,null,null,null,null,null,null,null,null,{"$f":"raw_resource_build!B1580","v":0},"Non-wind",{"$f":"IFERROR(INDEX($E$5:$E$32,MATCH(raw_resource_build!$E1580,Lists!$B$5:$B$32,0)),\"Non-CAISO\")","v":"Non-CAISO"}]
[null,null,null,null,null,null,null,null,null,null,null,null,null,{"$f":"raw_resource_build!B1581","v":0},"Non-wind",{"$f":"IFERROR(INDEX($E$5:$E$32,MATCH(raw_resource_build!$E1581,Lists!$B$5:$B$32,0)),\"Non-CAISO\")","v":"Non-CAISO"}]
[null,null,null,null,null,null,null,null,null,null,null,null,null,{"$f":"raw_resource_build!B1582","v":0},"Non-wind",{"$f":"IFERROR(INDEX($E$5:$E$32,MATCH(raw_resource_build!$E1582,Lists!$B$5:$B$32,0)),\"Non-CAISO\")","v":"Non-CAISO"}]
[null,null,null,null,null,null,null,null,null,null,null,null,null,{"$f":"raw_resource_build!B1583","v":0},"Non-wind",{"$f":"IFERROR(INDEX($E$5:$E$32,MATCH(raw_resource_build!$E1583,Lists!$B$5:$B$32,0)),\"Non-CAISO\")","v":"Non-CAISO"}]
[null,null,null,null,null,null,null,null,null,null,null,null,null,{"$f":"raw_resource_build!B1584","v":0},"Non-wind",{"$f":"IFERROR(INDEX($E$5:$E$32,MATCH(raw_resource_build!$E1584,Lists!$B$5:$B$32,0)),\"Non-CAISO\")","v":"Non-CAISO"}]
[null,null,null,null,null,null,null,null,null,null,null,null,null,{"$f":"raw_resource_build!B1585","v":0},"Non-wind",{"$f":"IFERROR(INDEX($E$5:$E$32,MATCH(raw_resource_build!$E1585,Lists!$B$5:$B$32,0)),\"Non-CAISO\")","v":"Non-CAISO"}]
[null,null,null,null,null,null,null,null,null,null,null,null,null,{"$f":"raw_resource_build!B1586","v":0},"Non-wind",{"$f":"IFERROR(INDEX($E$5:$E$32,MATCH(raw_resource_build!$E1586,Lists!$B$5:$B$32,0)),\"Non-CAISO\")","v":"Non-CAISO"}]
[null,null,null,null,null,null,null,null,null,null,null,null,null,{"$f":"raw_resource_build!B1587","v":0},"Non-wind",{"$f":"IFERROR(INDEX($E$5:$E$32,MATCH(raw_resource_build!$E1587,Lists!$B$5:$B$32,0)),\"Non-CAISO\")","v":"Non-CAISO"}]
[null,null,null,null,null,null,null,null,null,null,null,null,null,{"$f":"raw_resource_build!B1588","v":0},"Non-wind",{"$f":"IFERROR(INDEX($E$5:$E$32,MATCH(raw_resource_build!$E1588,Lists!$B$5:$B$32,0)),\"Non-CAISO\")","v":"Non-CAISO"}]
[null,null,null,null,null,null,null,null,null,null,null,null,null,{"$f":"raw_resource_build!B1589","v":0},"Non-wind",{"$f":"IFERROR(INDEX($E$5:$E$32,MATCH(raw_resource_build!$E1589,Lists!$B$5:$B$32,0)),\"Non-CAISO\")","v":"Non-CAISO"}]
[null,null,null,null,null,null,null,null,null,null,null,null,null,{"$f":"raw_resource_build!B1590","v":0},"Non-wind",{"$f":"IFERROR(INDEX($E$5:$E$32,MATCH(raw_resource_build!$E1590,Lists!$B$5:$B$32,0)),\"Non-CAISO\")","v":"Non-CAISO"}]
[null,null,null,null,null,null,null,null,null,null,null,null,null,{"$f":"raw_resource_build!B1591","v":0},"Non-wind",{"$f":"IFERROR(INDEX($E$5:$E$32,MATCH(raw_resource_build!$E1591,Lists!$B$5:$B$32,0)),\"Non-CAISO\")","v":"Non-CAISO"}]
[null,null,null,null,null,null,null,null,null,null,null,null,null,{"$f":"raw_resource_build!B1592","v":0},"Non-wind",{"$f":"IFERROR(INDEX($E$5:$E$32,MATCH(raw_resource_build!$E1592,Lists!$B$5:$B$32,0)),\"Non-CAISO\")","v":"Non-CAISO"}]
[null,null,null,null,null,null,null,null,null,null,null,null,null,{"$f":"raw_resource_build!B1593","v":0},"Non-wind",{"$f":"IFERROR(INDEX($E$5:$E$32,MATCH(raw_resource_build!$E1593,Lists!$B$5:$B$32,0)),\"Non-CAISO\")","v":"Non-CAISO"}]
[null,null,null,null,null,null,null,null,null,null,null,null,null,{"$f":"raw_resource_build!B1594","v":0},"Non-wind",{"$f":"IFERROR(INDEX($E$5:$E$32,MATCH(raw_resource_build!$E1594,Lists!$B$5:$B$32,0)),\"Non-CAISO\")","v":"Non-CAISO"}]
[null,null,null,null,null,null,null,null,null,null,null,null,null,{"$f":"raw_resource_build!B1595","v":0},"Non-wind",{"$f":"IFERROR(INDEX($E$5:$E$32,MATCH(raw_resource_build!$E1595,Lists!$B$5:$B$32,0)),\"Non-CAISO\")","v":"Non-CAISO"}]
[null,null,null,null,null,null,null,null,null,null,null,null,null,{"$f":"raw_resource_build!B1596","v":0},"Non-wind",{"$f":"IFERROR(INDEX($E$5:$E$32,MATCH(raw_resource_build!$E1596,Lists!$B$5:$B$32,0)),\"Non-CAISO\")","v":"Non-CAISO"}]
[null,null,null,null,null,null,null,null,null,null,null,null,null,{"$f":"raw_resource_build!B1597","v":0},"Non-wind",{"$f":"IFERROR(INDEX($E$5:$E$32,MATCH(raw_resource_build!$E1597,Lists!$B$5:$B$32,0)),\"Non-CAISO\")","v":"Non-CAISO"}]
[null,null,null,null,null,null,null,null,null,null,null,null,null,{"$f":"raw_resource_build!B1598","v":0},"Non-wind",{"$f":"IFERROR(INDEX($E$5:$E$32,MATCH(raw_resource_build!$E1598,Lists!$B$5:$B$32,0)),\"Non-CAISO\")","v":"Non-CAISO"}]
[null,null,null,null,null,null,null,null,null,null,null,null,null,{"$f":"raw_resource_build!B1599","v":0},"Non-wind",{"$f":"IFERROR(INDEX($E$5:$E$32,MATCH(raw_resource_build!$E1599,Lists!$B$5:$B$32,0)),\"Non-CAISO\")","v":"Non-CAISO"}]
[null,null,null,null,null,null,null,null,null,null,null,null,null,{"$f":"raw_resource_build!B1600","v":0},"Non-wind",{"$f":"IFERROR(INDEX($E$5:$E$32,MATCH(raw_resource_build!$E1600,Lists!$B$5:$B$32,0)),\"Non-CAISO\")","v":"Non-CAISO"}]
[null,null,null,null,null,null,null,null,null,null,null,null,null,{"$f":"raw_resource_build!B1601","v":0},"Non-wind",{"$f":"IFERROR(INDEX($E$5:$E$32,MATCH(raw_resource_build!$E1601,Lists!$B$5:$B$32,0)),\"Non-CAISO\")","v":"Non-CAISO"}]
[null,null,null,null,null,null,null,null,null,null,null,null,null,{"$f":"raw_resource_build!B1602","v":0},"Non-wind",{"$f":"IFERROR(INDEX($E$5:$E$32,MATCH(raw_resource_build!$E1602,Lists!$B$5:$B$32,0)),\"Non-CAISO\")","v":"Non-CAISO"}]
[null,null,null,null,null,null,null,null,null,null,null,null,null,{"$f":"raw_resource_build!B1603","v":0},"Non-wind",{"$f":"IFERROR(INDEX($E$5:$E$32,MATCH(raw_resource_build!$E1603,Lists!$B$5:$B$32,0)),\"Non-CAISO\")","v":"Non-CAISO"}]
[null,null,null,null,null,null,null,null,null,null,null,null,null,{"$f":"raw_resource_build!B1604","v":0},"Non-wind",{"$f":"IFERROR(INDEX($E$5:$E$32,MATCH(raw_resource_build!$E1604,Lists!$B$5:$B$32,0)),\"Non-CAISO\")","v":"Non-CAISO"}]
[null,null,null,null,null,null,null,null,null,null,null,null,null,{"$f":"raw_resource_build!B1605","v":0},{"$f":"IFERROR(INDEX($C$35:$C$99,MATCH($N1605,$B$35:$B$99,0)),\"Non-wind\")","v":"Non-wind"},{"$f":"IFERROR(INDEX($E$5:$E$32,MATCH(raw_resource_build!$E1605,Lists!$B$5:$B$32,0)),\"Non-CAISO\")","v":"Non-CAISO"}]
[null,null,null,null,null,null,null,null,null,null,null,null,null,{"$f":"raw_resource_build!B1606","v":0},"Non-wind",{"$f":"IFERROR(INDEX($E$5:$E$32,MATCH(raw_resource_build!$E1606,Lists!$B$5:$B$32,0)),\"Non-CAISO\")","v":"Non-CAISO"}]
[null,null,null,null,null,null,null,null,null,null,null,null,null,{"$f":"raw_resource_build!B1607","v":0},"Non-wind",{"$f":"IFERROR(INDEX($E$5:$E$32,MATCH(raw_resource_build!$E1607,Lists!$B$5:$B$32,0)),\"Non-CAISO\")","v":"Non-CAISO"}]
[null,null,null,null,null,null,null,null,null,null,null,null,null,{"$f":"raw_resource_build!B1608","v":0},"Non-wind",{"$f":"IFERROR(INDEX($E$5:$E$32,MATCH(raw_resource_build!$E1608,Lists!$B$5:$B$32,0)),\"Non-CAISO\")","v":"Non-CAISO"}]
[null,null,null,null,null,null,null,null,null,null,null,null,null,{"$f":"raw_resource_build!B1609","v":0},"Non-wind",{"$f":"IFERROR(INDEX($E$5:$E$32,MATCH(raw_resource_build!$E1609,Lists!$B$5:$B$32,0)),\"Non-CAISO\")","v":"Non-CAISO"}]
[null,null,null,null,null,null,null,null,null,null,null,null,null,{"$f":"raw_resource_build!B1610","v":0},"Non-wind",{"$f":"IFERROR(INDEX($E$5:$E$32,MATCH(raw_resource_build!$E1610,Lists!$B$5:$B$32,0)),\"Non-CAISO\")","v":"Non-CAISO"}]
[null,null,null,null,null,null,null,null,null,null,null,null,null,{"$f":"raw_resource_build!B1611","v":0},"Non-wind",{"$f":"IFERROR(INDEX($E$5:$E$32,MATCH(raw_resource_build!$E1611,Lists!$B$5:$B$32,0)),\"Non-CAISO\")","v":"Non-CAISO"}]
[null,null,null,null,null,null,null,null,null,null,null,null,null,{"$f":"raw_resource_build!B1612","v":0},"Non-wind",{"$f":"IFERROR(INDEX($E$5:$E$32,MATCH(raw_resource_build!$E1612,Lists!$B$5:$B$32,0)),\"Non-CAISO\")","v":"Non-CAISO"}]
[null,null,null,null,null,null,null,null,null,null,null,null,null,{"$f":"raw_resource_build!B1613","v":0},"Non-wind",{"$f":"IFERROR(INDEX($E$5:$E$32,MATCH(raw_resource_build!$E1613,Lists!$B$5:$B$32,0)),\"Non-CAISO\")","v":"Non-CAISO"}]
[null,null,null,null,null,null,null,null,null,null,null,null,null,{"$f":"raw_resource_build!B1614","v":0},"Non-wind",{"$f":"IFERROR(INDEX($E$5:$E$32,MATCH(raw_resource_build!$E1614,Lists!$B$5:$B$32,0)),\"Non-CAISO\")","v":"Non-CAISO"}]
[null,null,null,null,null,null,null,null,null,null,null,null,null,{"$f":"raw_resource_build!B1615","v":0},"Non-wind",{"$f":"IFERROR(INDEX($E$5:$E$32,MATCH(raw_resource_build!$E1615,Lists!$B$5:$B$32,0)),\"Non-CAISO\")","v":"Non-CAISO"}]
[null,null,null,null,null,null,null,null,null,null,null,null,null,{"$f":"raw_resource_build!B1616","v":0},"Non-wind",{"$f":"IFERROR(INDEX($E$5:$E$32,MATCH(raw_resource_build!$E1616,Lists!$B$5:$B$32,0)),\"Non-CAISO\")","v":"Non-CAISO"}]
[null,null,null,null,null,null,null,null,null,null,null,null,null,{"$f":"raw_resource_build!B1617","v":0},"Non-wind",{"$f":"IFERROR(INDEX($E$5:$E$32,MATCH(raw_resource_build!$E1617,Lists!$B$5:$B$32,0)),\"Non-CAISO\")","v":"Non-CAISO"}]
[null,null,null,null,null,null,null,null,null,null,null,null,null,{"$f":"raw_resource_build!B1618","v":0},"Non-wind",{"$f":"IFERROR(INDEX($E$5:$E$32,MATCH(raw_resource_build!$E1618,Lists!$B$5:$B$32,0)),\"Non-CAISO\")","v":"Non-CAISO"}]
[null,null,null,null,null,null,null,null,null,null,null,null,null,{"$f":"raw_resource_build!B1619","v":0},"Non-wind",{"$f":"IFERROR(INDEX($E$5:$E$32,MATCH(raw_resource_build!$E1619,Lists!$B$5:$B$32,0)),\"Non-CAISO\")","v":"Non-CAISO"}]
[null,null,null,null,null,null,null,null,null,null,null,null,null,{"$f":"raw_resource_build!B1620","v":0},"Non-wind",{"$f":"IFERROR(INDEX($E$5:$E$32,MATCH(raw_resource_build!$E1620,Lists!$B$5:$B$32,0)),\"Non-CAISO\")","v":"Non-CAISO"}]
[null,null,null,null,null,null,null,null,null,null,null,null,null,{"$f":"raw_resource_build!B1621","v":0},"Non-wind",{"$f":"IFERROR(INDEX($E$5:$E$32,MATCH(raw_resource_build!$E1621,Lists!$B$5:$B$32,0)),\"Non-CAISO\")","v":"Non-CAISO"}]
[null,null,null,null,null,null,null,null,null,null,null,null,null,{"$f":"raw_resource_build!B1622","v":0},"Non-wind",{"$f":"IFERROR(INDEX($E$5:$E$32,MATCH(raw_resource_build!$E1622,Lists!$B$5:$B$32,0)),\"Non-CAISO\")","v":"Non-CAISO"}]
[null,null,null,null,null,null,null,null,null,null,null,null,null,{"$f":"raw_resource_build!B1623","v":0},"Non-wind",{"$f":"IFERROR(INDEX($E$5:$E$32,MATCH(raw_resource_build!$E1623,Lists!$B$5:$B$32,0)),\"Non-CAISO\")","v":"Non-CAISO"}]
[null,null,null,null,null,null,null,null,null,null,null,null,null,{"$f":"raw_resource_build!B1624","v":0},"Non-wind",{"$f":"IFERROR(INDEX($E$5:$E$32,MATCH(raw_resource_build!$E1624,Lists!$B$5:$B$32,0)),\"Non-CAISO\")","v":"Non-CAISO"}]
[null,null,null,null,null,null,null,null,null,null,null,null,null,{"$f":"raw_resource_build!B1625","v":0},"Non-wind",{"$f":"IFERROR(INDEX($E$5:$E$32,MATCH(raw_resource_build!$E1625,Lists!$B$5:$B$32,0)),\"Non-CAISO\")","v":"Non-CAISO"}]
[null,null,null,null,null,null,null,null,null,null,null,null,null,{"$f":"raw_resource_build!B1626","v":0},"Non-wind",{"$f":"IFERROR(INDEX($E$5:$E$32,MATCH(raw_resource_build!$E1626,Lists!$B$5:$B$32,0)),\"Non-CAISO\")","v":"Non-CAISO"}]
[null,null,null,null,null,null,null,null,null,null,null,null,null,{"$f":"raw_resource_build!B1627","v":0},"Non-wind",{"$f":"IFERROR(INDEX($E$5:$E$32,MATCH(raw_resource_build!$E1627,Lists!$B$5:$B$32,0)),\"Non-CAISO\")","v":"Non-CAISO"}]
[null,null,null,null,null,null,null,null,null,null,null,null,null,{"$f":"raw_resource_build!B1628","v":0},"Non-wind",{"$f":"IFERROR(INDEX($E$5:$E$32,MATCH(raw_resource_build!$E1628,Lists!$B$5:$B$32,0)),\"Non-CAISO\")","v":"Non-CAISO"}]
[null,null,null,null,null,null,null,null,null,null,null,null,null,{"$f":"raw_resource_build!B1629","v":0},"Non-wind",{"$f":"IFERROR(INDEX($E$5:$E$32,MATCH(raw_resource_build!$E1629,Lists!$B$5:$B$32,0)),\"Non-CAISO\")","v":"Non-CAISO"}]
[null,null,null,null,null,null,null,null,null,null,null,null,null,{"$f":"raw_resource_build!B1630","v":0},"Non-wind",{"$f":"IFERROR(INDEX($E$5:$E$32,MATCH(raw_resource_build!$E1630,Lists!$B$5:$B$32,0)),\"Non-CAISO\")","v":"Non-CAISO"}]
[null,null,null,null,null,null,null,null,null,null,null,null,null,{"$f":"raw_resource_build!B1631","v":0},"Non-wind",{"$f":"IFERROR(INDEX($E$5:$E$32,MATCH(raw_resource_build!$E1631,Lists!$B$5:$B$32,0)),\"Non-CAISO\")","v":"Non-CAISO"}]
[null,null,null,null,null,null,null,null,null,null,null,null,null,{"$f":"raw_resource_build!B1632","v":0},"Non-wind",{"$f":"IFERROR(INDEX($E$5:$E$32,MATCH(raw_resource_build!$E1632,Lists!$B$5:$B$32,0)),\"Non-CAISO\")","v":"Non-CAISO"}]
[null,null,null,null,null,null,null,null,null,null,null,null,null,{"$f":"raw_resource_build!B1633","v":0},"Non-wind",{"$f":"IFERROR(INDEX($E$5:$E$32,MATCH(raw_resource_build!$E1633,Lists!$B$5:$B$32,0)),\"Non-CAISO\")","v":"Non-CAISO"}]
[null,null,null,null,null,null,null,null,null,null,null,null,null,{"$f":"raw_resource_build!B1634","v":0},"Non-wind",{"$f":"IFERROR(INDEX($E$5:$E$32,MATCH(raw_resource_build!$E1634,Lists!$B$5:$B$32,0)),\"Non-CAISO\")","v":"Non-CAISO"}]
[null,null,null,null,null,null,null,null,null,null,null,null,null,{"$f":"raw_resource_build!B1635","v":0},"Non-wind",{"$f":"IFERROR(INDEX($E$5:$E$32,MATCH(raw_resource_build!$E1635,Lists!$B$5:$B$32,0)),\"Non-CAISO\")","v":"Non-CAISO"}]
[null,null,null,null,null,null,null,null,null,null,null,null,null,{"$f":"raw_resource_build!B1636","v":0},"Non-wind",{"$f":"IFERROR(INDEX($E$5:$E$32,MATCH(raw_resource_build!$E1636,Lists!$B$5:$B$32,0)),\"Non-CAISO\")","v":"Non-CAISO"}]
[null,null,null,null,null,null,null,null,null,null,null,null,null,{"$f":"raw_resource_build!B1637","v":0},"Non-wind",{"$f":"IFERROR(INDEX($E$5:$E$32,MATCH(raw_resource_build!$E1637,Lists!$B$5:$B$32,0)),\"Non-CAISO\")","v":"Non-CAISO"}]
[null,null,null,null,null,null,null,null,null,null,null,null,null,{"$f":"raw_resource_build!B1638","v":0},"Non-wind",{"$f":"IFERROR(INDEX($E$5:$E$32,MATCH(raw_resource_build!$E1638,Lists!$B$5:$B$32,0)),\"Non-CAISO\")","v":"Non-CAISO"}]
[null,null,null,null,null,null,null,null,null,null,null,null,null,{"$f":"raw_resource_build!B1639","v":0},"Non-wind",{"$f":"IFERROR(INDEX($E$5:$E$32,MATCH(raw_resource_build!$E1639,Lists!$B$5:$B$32,0)),\"Non-CAISO\")","v":"Non-CAISO"}]
[null,null,null,null,null,null,null,null,null,null,null,null,null,{"$f":"raw_resource_build!B1640","v":0},"Non-wind",{"$f":"IFERROR(INDEX($E$5:$E$32,MATCH(raw_resource_build!$E1640,Lists!$B$5:$B$32,0)),\"Non-CAISO\")","v":"Non-CAISO"}]
[null,null,null,null,null,null,null,null,null,null,null,null,null,{"$f":"raw_resource_build!B1641","v":0},"Non-wind",{"$f":"IFERROR(INDEX($E$5:$E$32,MATCH(raw_resource_build!$E1641,Lists!$B$5:$B$32,0)),\"Non-CAISO\")","v":"Non-CAISO"}]
[null,null,null,null,null,null,null,null,null,null,null,null,null,{"$f":"raw_resource_build!B1642","v":0},"Non-wind",{"$f":"IFERROR(INDEX($E$5:$E$32,MATCH(raw_resource_build!$E1642,Lists!$B$5:$B$32,0)),\"Non-CAISO\")","v":"Non-CAISO"}]
[null,null,null,null,null,null,null,null,null,null,null,null,null,{"$f":"raw_resource_build!B1643","v":0},"Non-wind",{"$f":"IFERROR(INDEX($E$5:$E$32,MATCH(raw_resource_build!$E1643,Lists!$B$5:$B$32,0)),\"Non-CAISO\")","v":"Non-CAISO"}]
[null,null,null,null,null,null,null,null,null,null,null,null,null,{"$f":"raw_resource_build!B1644","v":0},"Non-wind",{"$f":"IFERROR(INDEX($E$5:$E$32,MATCH(raw_resource_build!$E1644,Lists!$B$5:$B$32,0)),\"Non-CAISO\")","v":"Non-CAISO"}]
[null,null,null,null,null,null,null,null,null,null,null,null,null,{"$f":"raw_resource_build!B1645","v":0},"Non-wind",{"$f":"IFERROR(INDEX($E$5:$E$32,MATCH(raw_resource_build!$E1645,Lists!$B$5:$B$32,0)),\"Non-CAISO\")","v":"Non-CAISO"}]
[null,null,null,null,null,null,null,null,null,null,null,null,null,{"$f":"raw_resource_build!B1646","v":0},"Non-wind",{"$f":"IFERROR(INDEX($E$5:$E$32,MATCH(raw_resource_build!$E1646,Lists!$B$5:$B$32,0)),\"Non-CAISO\")","v":"Non-CAISO"}]
[null,null,null,null,null,null,null,null,null,null,null,null,null,{"$f":"raw_resource_build!B1647","v":0},"Non-wind",{"$f":"IFERROR(INDEX($E$5:$E$32,MATCH(raw_resource_build!$E1647,Lists!$B$5:$B$32,0)),\"Non-CAISO\")","v":"Non-CAISO"}]
[null,null,null,null,null,null,null,null,null,null,null,null,null,{"$f":"raw_resource_build!B1648","v":0},"Non-wind",{"$f":"IFERROR(INDEX($E$5:$E$32,MATCH(raw_resource_build!$E1648,Lists!$B$5:$B$32,0)),\"Non-CAISO\")","v":"Non-CAISO"}]
[null,null,null,null,null,null,null,null,null,null,null,null,null,{"$f":"raw_resource_build!B1649","v":0},"Non-wind",{"$f":"IFERROR(INDEX($E$5:$E$32,MATCH(raw_resource_build!$E1649,Lists!$B$5:$B$32,0)),\"Non-CAISO\")","v":"Non-CAISO"}]
[null,null,null,null,null,null,null,null,null,null,null,null,null,{"$f":"raw_resource_build!B1650","v":0},"Non-wind",{"$f":"IFERROR(INDEX($E$5:$E$32,MATCH(raw_resource_build!$E1650,Lists!$B$5:$B$32,0)),\"Non-CAISO\")","v":"Non-CAISO"}]
[null,null,null,null,null,null,null,null,null,null,null,null,null,{"$f":"raw_resource_build!B1651","v":0},"Non-wind",{"$f":"IFERROR(INDEX($E$5:$E$32,MATCH(raw_resource_build!$E1651,Lists!$B$5:$B$32,0)),\"Non-CAISO\")","v":"Non-CAISO"}]
[null,null,null,null,null,null,null,null,null,null,null,null,null,{"$f":"raw_resource_build!B1652","v":0},"Non-wind",{"$f":"IFERROR(INDEX($E$5:$E$32,MATCH(raw_resource_build!$E1652,Lists!$B$5:$B$32,0)),\"Non-CAISO\")","v":"Non-CAISO"}]
[null,null,null,null,null,null,null,null,null,null,null,null,null,{"$f":"raw_resource_build!B1653","v":0},"Non-wind",{"$f":"IFERROR(INDEX($E$5:$E$32,MATCH(raw_resource_build!$E1653,Lists!$B$5:$B$32,0)),\"Non-CAISO\")","v":"Non-CAISO"}]
[null,null,null,null,null,null,null,null,null,null,null,null,null,{"$f":"raw_resource_build!B1654","v":0},"Non-wind",{"$f":"IFERROR(INDEX($E$5:$E$32,MATCH(raw_resource_build!$E1654,Lists!$B$5:$B$32,0)),\"Non-CAISO\")","v":"Non-CAISO"}]
[null,null,null,null,null,null,null,null,null,null,null,null,null,{"$f":"raw_resource_build!B1655","v":0},"Non-wind",{"$f":"IFERROR(INDEX($E$5:$E$32,MATCH(raw_resource_build!$E1655,Lists!$B$5:$B$32,0)),\"Non-CAISO\")","v":"Non-CAISO"}]
[null,null,null,null,null,null,null,null,null,null,null,null,null,{"$f":"raw_resource_build!B1656","v":0},"Non-wind",{"$f":"IFERROR(INDEX($E$5:$E$32,MATCH(raw_resource_build!$E1656,Lists!$B$5:$B$32,0)),\"Non-CAISO\")","v":"Non-CAISO"}]
[null,null,null,null,null,null,null,null,null,null,null,null,null,{"$f":"raw_resource_build!B1657","v":0},"Non-wind",{"$f":"IFERROR(INDEX($E$5:$E$32,MATCH(raw_resource_build!$E1657,Lists!$B$5:$B$32,0)),\"Non-CAISO\")","v":"Non-CAISO"}]
[null,null,null,null,null,null,null,null,null,null,null,null,null,{"$f":"raw_resource_build!B1658","v":0},"Non-wind",{"$f":"IFERROR(INDEX($E$5:$E$32,MATCH(raw_resource_build!$E1658,Lists!$B$5:$B$32,0)),\"Non-CAISO\")","v":"Non-CAISO"}]
[null,null,null,null,null,null,null,null,null,null,null,null,null,{"$f":"raw_resource_build!B1659","v":0},"Non-wind",{"$f":"IFERROR(INDEX($E$5:$E$32,MATCH(raw_resource_build!$E1659,Lists!$B$5:$B$32,0)),\"Non-CAISO\")","v":"Non-CAISO"}]
[null,null,null,null,null,null,null,null,null,null,null,null,null,{"$f":"raw_resource_build!B1660","v":0},"Non-wind",{"$f":"IFERROR(INDEX($E$5:$E$32,MATCH(raw_resource_build!$E1660,Lists!$B$5:$B$32,0)),\"Non-CAISO\")","v":"Non-CAISO"}]
[null,null,null,null,null,null,null,null,null,null,null,null,null,{"$f":"raw_resource_build!B1661","v":0},"Non-wind",{"$f":"IFERROR(INDEX($E$5:$E$32,MATCH(raw_resource_build!$E1661,Lists!$B$5:$B$32,0)),\"Non-CAISO\")","v":"Non-CAISO"}]
[null,null,null,null,null,null,null,null,null,null,null,null,null,{"$f":"raw_resource_build!B1662","v":0},"Non-wind",{"$f":"IFERROR(INDEX($E$5:$E$32,MATCH(raw_resource_build!$E1662,Lists!$B$5:$B$32,0)),\"Non-CAISO\")","v":"Non-CAISO"}]
[null,null,null,null,null,null,null,null,null,null,null,null,null,{"$f":"raw_resource_build!B1663","v":0},"Non-wind",{"$f":"IFERROR(INDEX($E$5:$E$32,MATCH(raw_resource_build!$E1663,Lists!$B$5:$B$32,0)),\"Non-CAISO\")","v":"Non-CAISO"}]
[null,null,null,null,null,null,null,null,null,null,null,null,null,{"$f":"raw_resource_build!B1664","v":0},"Non-wind",{"$f":"IFERROR(INDEX($E$5:$E$32,MATCH(raw_resource_build!$E1664,Lists!$B$5:$B$32,0)),\"Non-CAISO\")","v":"Non-CAISO"}]
[null,null,null,null,null,null,null,null,null,null,null,null,null,{"$f":"raw_resource_build!B1665","v":0},"Non-wind",{"$f":"IFERROR(INDEX($E$5:$E$32,MATCH(raw_resource_build!$E1665,Lists!$B$5:$B$32,0)),\"Non-CAISO\")","v":"Non-CAISO"}]
[null,null,null,null,null,null,null,null,null,null,null,null,null,{"$f":"raw_resource_build!B1666","v":0},"Non-wind",{"$f":"IFERROR(INDEX($E$5:$E$32,MATCH(raw_resource_build!$E1666,Lists!$B$5:$B$32,0)),\"Non-CAISO\")","v":"Non-CAISO"}]
[null,null,null,null,null,null,null,null,null,null,null,null,null,{"$f":"raw_resource_build!B1667","v":0},"Non-wind",{"$f":"IFERROR(INDEX($E$5:$E$32,MATCH(raw_resource_build!$E1667,Lists!$B$5:$B$32,0)),\"Non-CAISO\")","v":"Non-CAISO"}]
[null,null,null,null,null,null,null,null,null,null,null,null,null,{"$f":"raw_resource_build!B1668","v":0},"Non-wind",{"$f":"IFERROR(INDEX($E$5:$E$32,MATCH(raw_resource_build!$E1668,Lists!$B$5:$B$32,0)),\"Non-CAISO\")","v":"Non-CAISO"}]
[null,null,null,null,null,null,null,null,null,null,null,null,null,{"$f":"raw_resource_build!B1669","v":0},{"$f":"IFERROR(INDEX($C$35:$C$99,MATCH($N1669,$B$35:$B$99,0)),\"Non-wind\")","v":"Non-wind"},{"$f":"IFERROR(INDEX($E$5:$E$32,MATCH(raw_resource_build!$E1669,Lists!$B$5:$B$32,0)),\"Non-CAISO\")","v":"Non-CAISO"}]
[null,null,null,null,null,null,null,null,null,null,null,null,null,{"$f":"raw_resource_build!B1670","v":0},"Non-wind",{"$f":"IFERROR(INDEX($E$5:$E$32,MATCH(raw_resource_build!$E1670,Lists!$B$5:$B$32,0)),\"Non-CAISO\")","v":"Non-CAISO"}]
[null,null,null,null,null,null,null,null,null,null,null,null,null,{"$f":"raw_resource_build!B1671","v":0},"Non-wind",{"$f":"IFERROR(INDEX($E$5:$E$32,MATCH(raw_resource_build!$E1671,Lists!$B$5:$B$32,0)),\"Non-CAISO\")","v":"Non-CAISO"}]
[null,null,null,null,null,null,null,null,null,null,null,null,null,{"$f":"raw_resource_build!B1672","v":0},"Non-wind",{"$f":"IFERROR(INDEX($E$5:$E$32,MATCH(raw_resource_build!$E1672,Lists!$B$5:$B$32,0)),\"Non-CAISO\")","v":"Non-CAISO"}]
[null,null,null,null,null,null,null,null,null,null,null,null,null,{"$f":"raw_resource_build!B1673","v":0},"Non-wind",{"$f":"IFERROR(INDEX($E$5:$E$32,MATCH(raw_resource_build!$E1673,Lists!$B$5:$B$32,0)),\"Non-CAISO\")","v":"Non-CAISO"}]
[null,null,null,null,null,null,null,null,null,null,null,null,null,{"$f":"raw_resource_build!B1674","v":0},"Non-wind",{"$f":"IFERROR(INDEX($E$5:$E$32,MATCH(raw_resource_build!$E1674,Lists!$B$5:$B$32,0)),\"Non-CAISO\")","v":"Non-CAISO"}]
[null,null,null,null,null,null,null,null,null,null,null,null,null,{"$f":"raw_resource_build!B1675","v":0},"Non-wind",{"$f":"IFERROR(INDEX($E$5:$E$32,MATCH(raw_resource_build!$E1675,Lists!$B$5:$B$32,0)),\"Non-CAISO\")","v":"Non-CAISO"}]
[null,null,null,null,null,null,null,null,null,null,null,null,null,{"$f":"raw_resource_build!B1676","v":0},"Non-wind",{"$f":"IFERROR(INDEX($E$5:$E$32,MATCH(raw_resource_build!$E1676,Lists!$B$5:$B$32,0)),\"Non-CAISO\")","v":"Non-CAISO"}]
[null,null,null,null,null,null,null,null,null,null,null,null,null,{"$f":"raw_resource_build!B1677","v":0},"Non-wind",{"$f":"IFERROR(INDEX($E$5:$E$32,MATCH(raw_resource_build!$E1677,Lists!$B$5:$B$32,0)),\"Non-CAISO\")","v":"Non-CAISO"}]
[null,null,null,null,null,null,null,null,null,null,null,null,null,{"$f":"raw_resource_build!B1678","v":0},"Non-wind",{"$f":"IFERROR(INDEX($E$5:$E$32,MATCH(raw_resource_build!$E1678,Lists!$B$5:$B$32,0)),\"Non-CAISO\")","v":"Non-CAISO"}]
[null,null,null,null,null,null,null,null,null,null,null,null,null,{"$f":"raw_resource_build!B1679","v":0},"Non-wind",{"$f":"IFERROR(INDEX($E$5:$E$32,MATCH(raw_resource_build!$E1679,Lists!$B$5:$B$32,0)),\"Non-CAISO\")","v":"Non-CAISO"}]
[null,null,null,null,null,null,null,null,null,null,null,null,null,{"$f":"raw_resource_build!B1680","v":0},"Non-wind",{"$f":"IFERROR(INDEX($E$5:$E$32,MATCH(raw_resource_build!$E1680,Lists!$B$5:$B$32,0)),\"Non-CAISO\")","v":"Non-CAISO"}]
[null,null,null,null,null,null,null,null,null,null,null,null,null,{"$f":"raw_resource_build!B1681","v":0},"Non-wind",{"$f":"IFERROR(INDEX($E$5:$E$32,MATCH(raw_resource_build!$E1681,Lists!$B$5:$B$32,0)),\"Non-CAISO\")","v":"Non-CAISO"}]
[null,null,null,null,null,null,null,null,null,null,null,null,null,{"$f":"raw_resource_build!B1682","v":0},"Non-wind",{"$f":"IFERROR(INDEX($E$5:$E$32,MATCH(raw_resource_build!$E1682,Lists!$B$5:$B$32,0)),\"Non-CAISO\")","v":"Non-CAISO"}]
[null,null,null,null,null,null,null,null,null,null,null,null,null,{"$f":"raw_resource_build!B1683","v":0},"Non-wind",{"$f":"IFERROR(INDEX($E$5:$E$32,MATCH(raw_resource_build!$E1683,Lists!$B$5:$B$32,0)),\"Non-CAISO\")","v":"Non-CAISO"}]
[null,null,null,null,null,null,null,null,null,null,null,null,null,{"$f":"raw_resource_build!B1684","v":0},"Non-wind",{"$f":"IFERROR(INDEX($E$5:$E$32,MATCH(raw_resource_build!$E1684,Lists!$B$5:$B$32,0)),\"Non-CAISO\")","v":"Non-CAISO"}]
[null,null,null,null,null,null,null,null,null,null,null,null,null,{"$f":"raw_resource_build!B1685","v":0},"Non-wind",{"$f":"IFERROR(INDEX($E$5:$E$32,MATCH(raw_resource_build!$E1685,Lists!$B$5:$B$32,0)),\"Non-CAISO\")","v":"Non-CAISO"}]
[null,null,null,null,null,null,null,null,null,null,null,null,null,{"$f":"raw_resource_build!B1686","v":0},"Non-wind",{"$f":"IFERROR(INDEX($E$5:$E$32,MATCH(raw_resource_build!$E1686,Lists!$B$5:$B$32,0)),\"Non-CAISO\")","v":"Non-CAISO"}]
[null,null,null,null,null,null,null,null,null,null,null,null,null,{"$f":"raw_resource_build!B1687","v":0},"Non-wind",{"$f":"IFERROR(INDEX($E$5:$E$32,MATCH(raw_resource_build!$E1687,Lists!$B$5:$B$32,0)),\"Non-CAISO\")","v":"Non-CAISO"}]
[null,null,null,null,null,null,null,null,null,null,null,null,null,{"$f":"raw_resource_build!B1688","v":0},"Non-wind",{"$f":"IFERROR(INDEX($E$5:$E$32,MATCH(raw_resource_build!$E1688,Lists!$B$5:$B$32,0)),\"Non-CAISO\")","v":"Non-CAISO"}]
[null,null,null,null,null,null,null,null,null,null,null,null,null,{"$f":"raw_resource_build!B1689","v":0},"Non-wind",{"$f":"IFERROR(INDEX($E$5:$E$32,MATCH(raw_resource_build!$E1689,Lists!$B$5:$B$32,0)),\"Non-CAISO\")","v":"Non-CAISO"}]
[null,null,null,null,null,null,null,null,null,null,null,null,null,{"$f":"raw_resource_build!B1690","v":0},"Non-wind",{"$f":"IFERROR(INDEX($E$5:$E$32,MATCH(raw_resource_build!$E1690,Lists!$B$5:$B$32,0)),\"Non-CAISO\")","v":"Non-CAISO"}]
[null,null,null,null,null,null,null,null,null,null,null,null,null,{"$f":"raw_resource_build!B1691","v":0},"Non-wind",{"$f":"IFERROR(INDEX($E$5:$E$32,MATCH(raw_resource_build!$E1691,Lists!$B$5:$B$32,0)),\"Non-CAISO\")","v":"Non-CAISO"}]
[null,null,null,null,null,null,null,null,null,null,null,null,null,{"$f":"raw_resource_build!B1692","v":0},"Non-wind",{"$f":"IFERROR(INDEX($E$5:$E$32,MATCH(raw_resource_build!$E1692,Lists!$B$5:$B$32,0)),\"Non-CAISO\")","v":"Non-CAISO"}]
[null,null,null,null,null,null,null,null,null,null,null,null,null,{"$f":"raw_resource_build!B1693","v":0},"Non-wind",{"$f":"IFERROR(INDEX($E$5:$E$32,MATCH(raw_resource_build!$E1693,Lists!$B$5:$B$32,0)),\"Non-CAISO\")","v":"Non-CAISO"}]
[null,null,null,null,null,null,null,null,null,null,null,null,null,{"$f":"raw_resource_build!B1694","v":0},"Non-wind",{"$f":"IFERROR(INDEX($E$5:$E$32,MATCH(raw_resource_build!$E1694,Lists!$B$5:$B$32,0)),\"Non-CAISO\")","v":"Non-CAISO"}]
[null,null,null,null,null,null,null,null,null,null,null,null,null,{"$f":"raw_resource_build!B1695","v":0},"Non-wind",{"$f":"IFERROR(INDEX($E$5:$E$32,MATCH(raw_resource_build!$E1695,Lists!$B$5:$B$32,0)),\"Non-CAISO\")","v":"Non-CAISO"}]
[null,null,null,null,null,null,null,null,null,null,null,null,null,{"$f":"raw_resource_build!B1696","v":0},"Non-wind",{"$f":"IFERROR(INDEX($E$5:$E$32,MATCH(raw_resource_build!$E1696,Lists!$B$5:$B$32,0)),\"Non-CAISO\")","v":"Non-CAISO"}]
[null,null,null,null,null,null,null,null,null,null,null,null,null,{"$f":"raw_resource_build!B1697","v":0},"Non-wind",{"$f":"IFERROR(INDEX($E$5:$E$32,MATCH(raw_resource_build!$E1697,Lists!$B$5:$B$32,0)),\"Non-CAISO\")","v":"Non-CAISO"}]
[null,null,null,null,null,null,null,null,null,null,null,null,null,{"$f":"raw_resource_build!B1698","v":0},"Non-wind",{"$f":"IFERROR(INDEX($E$5:$E$32,MATCH(raw_resource_build!$E1698,Lists!$B$5:$B$32,0)),\"Non-CAISO\")","v":"Non-CAISO"}]
[null,null,null,null,null,null,null,null,null,null,null,null,null,{"$f":"raw_resource_build!B1699","v":0},"Non-wind",{"$f":"IFERROR(INDEX($E$5:$E$32,MATCH(raw_resource_build!$E1699,Lists!$B$5:$B$32,0)),\"Non-CAISO\")","v":"Non-CAISO"}]
[null,null,null,null,null,null,null,null,null,null,null,null,null,{"$f":"raw_resource_build!B1700","v":0},"Non-wind",{"$f":"IFERROR(INDEX($E$5:$E$32,MATCH(raw_resource_build!$E1700,Lists!$B$5:$B$32,0)),\"Non-CAISO\")","v":"Non-CAISO"}]
[null,null,null,null,null,null,null,null,null,null,null,null,null,{"$f":"raw_resource_build!B1701","v":0},"Non-wind",{"$f":"IFERROR(INDEX($E$5:$E$32,MATCH(raw_resource_build!$E1701,Lists!$B$5:$B$32,0)),\"Non-CAISO\")","v":"Non-CAISO"}]
[null,null,null,null,null,null,null,null,null,null,null,null,null,{"$f":"raw_resource_build!B1702","v":0},"Non-wind",{"$f":"IFERROR(INDEX($E$5:$E$32,MATCH(raw_resource_build!$E1702,Lists!$B$5:$B$32,0)),\"Non-CAISO\")","v":"Non-CAISO"}]
[null,null,null,null,null,null,null,null,null,null,null,null,null,{"$f":"raw_resource_build!B1703","v":0},"Non-wind",{"$f":"IFERROR(INDEX($E$5:$E$32,MATCH(raw_resource_build!$E1703,Lists!$B$5:$B$32,0)),\"Non-CAISO\")","v":"Non-CAISO"}]
[null,null,null,null,null,null,null,null,null,null,null,null,null,{"$f":"raw_resource_build!B1704","v":0},"Non-wind",{"$f":"IFERROR(INDEX($E$5:$E$32,MATCH(raw_resource_build!$E1704,Lists!$B$5:$B$32,0)),\"Non-CAISO\")","v":"Non-CAISO"}]
[null,null,null,null,null,null,null,null,null,null,null,null,null,{"$f":"raw_resource_build!B1705","v":0},"Non-wind",{"$f":"IFERROR(INDEX($E$5:$E$32,MATCH(raw_resource_build!$E1705,Lists!$B$5:$B$32,0)),\"Non-CAISO\")","v":"Non-CAISO"}]
[null,null,null,null,null,null,null,null,null,null,null,null,null,{"$f":"raw_resource_build!B1706","v":0},"Non-wind",{"$f":"IFERROR(INDEX($E$5:$E$32,MATCH(raw_resource_build!$E1706,Lists!$B$5:$B$32,0)),\"Non-CAISO\")","v":"Non-CAISO"}]
[null,null,null,null,null,null,null,null,null,null,null,null,null,{"$f":"raw_resource_build!B1707","v":0},"Non-wind",{"$f":"IFERROR(INDEX($E$5:$E$32,MATCH(raw_resource_build!$E1707,Lists!$B$5:$B$32,0)),\"Non-CAISO\")","v":"Non-CAISO"}]
[null,null,null,null,null,null,null,null,null,null,null,null,null,{"$f":"raw_resource_build!B1708","v":0},"Non-wind",{"$f":"IFERROR(INDEX($E$5:$E$32,MATCH(raw_resource_build!$E1708,Lists!$B$5:$B$32,0)),\"Non-CAISO\")","v":"Non-CAISO"}]
[null,null,null,null,null,null,null,null,null,null,null,null,null,{"$f":"raw_resource_build!B1709","v":0},"Non-wind",{"$f":"IFERROR(INDEX($E$5:$E$32,MATCH(raw_resource_build!$E1709,Lists!$B$5:$B$32,0)),\"Non-CAISO\")","v":"Non-CAISO"}]
[null,null,null,null,null,null,null,null,null,null,null,null,null,{"$f":"raw_resource_build!B1710","v":0},"Non-wind",{"$f":"IFERROR(INDEX($E$5:$E$32,MATCH(raw_resource_build!$E1710,Lists!$B$5:$B$32,0)),\"Non-CAISO\")","v":"Non-CAISO"}]
[null,null,null,null,null,null,null,null,null,null,null,null,null,{"$f":"raw_resource_build!B1711","v":0},"Non-wind",{"$f":"IFERROR(INDEX($E$5:$E$32,MATCH(raw_resource_build!$E1711,Lists!$B$5:$B$32,0)),\"Non-CAISO\")","v":"Non-CAISO"}]
[null,null,null,null,null,null,null,null,null,null,null,null,null,{"$f":"raw_resource_build!B1712","v":0},"Non-wind",{"$f":"IFERROR(INDEX($E$5:$E$32,MATCH(raw_resource_build!$E1712,Lists!$B$5:$B$32,0)),\"Non-CAISO\")","v":"Non-CAISO"}]
[null,null,null,null,null,null,null,null,null,null,null,null,null,{"$f":"raw_resource_build!B1713","v":0},"Non-wind",{"$f":"IFERROR(INDEX($E$5:$E$32,MATCH(raw_resource_build!$E1713,Lists!$B$5:$B$32,0)),\"Non-CAISO\")","v":"Non-CAISO"}]
[null,null,null,null,null,null,null,null,null,null,null,null,null,{"$f":"raw_resource_build!B1714","v":0},"Non-wind",{"$f":"IFERROR(INDEX($E$5:$E$32,MATCH(raw_resource_build!$E1714,Lists!$B$5:$B$32,0)),\"Non-CAISO\")","v":"Non-CAISO"}]
[null,null,null,null,null,null,null,null,null,null,null,null,null,{"$f":"raw_resource_build!B1715","v":0},"Non-wind",{"$f":"IFERROR(INDEX($E$5:$E$32,MATCH(raw_resource_build!$E1715,Lists!$B$5:$B$32,0)),\"Non-CAISO\")","v":"Non-CAISO"}]
[null,null,null,null,null,null,null,null,null,null,null,null,null,{"$f":"raw_resource_build!B1716","v":0},"Non-wind",{"$f":"IFERROR(INDEX($E$5:$E$32,MATCH(raw_resource_build!$E1716,Lists!$B$5:$B$32,0)),\"Non-CAISO\")","v":"Non-CAISO"}]
[null,null,null,null,null,null,null,null,null,null,null,null,null,{"$f":"raw_resource_build!B1717","v":0},"Non-wind",{"$f":"IFERROR(INDEX($E$5:$E$32,MATCH(raw_resource_build!$E1717,Lists!$B$5:$B$32,0)),\"Non-CAISO\")","v":"Non-CAISO"}]
[null,null,null,null,null,null,null,null,null,null,null,null,null,{"$f":"raw_resource_build!B1718","v":0},"Non-wind",{"$f":"IFERROR(INDEX($E$5:$E$32,MATCH(raw_resource_build!$E1718,Lists!$B$5:$B$32,0)),\"Non-CAISO\")","v":"Non-CAISO"}]
[null,null,null,null,null,null,null,null,null,null,null,null,null,{"$f":"raw_resource_build!B1719","v":0},"Non-wind",{"$f":"IFERROR(INDEX($E$5:$E$32,MATCH(raw_resource_build!$E1719,Lists!$B$5:$B$32,0)),\"Non-CAISO\")","v":"Non-CAISO"}]
[null,null,null,null,null,null,null,null,null,null,null,null,null,{"$f":"raw_resource_build!B1720","v":0},"Non-wind",{"$f":"IFERROR(INDEX($E$5:$E$32,MATCH(raw_resource_build!$E1720,Lists!$B$5:$B$32,0)),\"Non-CAISO\")","v":"Non-CAISO"}]
[null,null,null,null,null,null,null,null,null,null,null,null,null,{"$f":"raw_resource_build!B1721","v":0},"Non-wind",{"$f":"IFERROR(INDEX($E$5:$E$32,MATCH(raw_resource_build!$E1721,Lists!$B$5:$B$32,0)),\"Non-CAISO\")","v":"Non-CAISO"}]
[null,null,null,null,null,null,null,null,null,null,null,null,null,{"$f":"raw_resource_build!B1722","v":0},"Non-wind",{"$f":"IFERROR(INDEX($E$5:$E$32,MATCH(raw_resource_build!$E1722,Lists!$B$5:$B$32,0)),\"Non-CAISO\")","v":"Non-CAISO"}]
[null,null,null,null,null,null,null,null,null,null,null,null,null,{"$f":"raw_resource_build!B1723","v":0},"Non-wind",{"$f":"IFERROR(INDEX($E$5:$E$32,MATCH(raw_resource_build!$E1723,Lists!$B$5:$B$32,0)),\"Non-CAISO\")","v":"Non-CAISO"}]
[null,null,null,null,null,null,null,null,null,null,null,null,null,{"$f":"raw_resource_build!B1724","v":0},"Non-wind",{"$f":"IFERROR(INDEX($E$5:$E$32,MATCH(raw_resource_build!$E1724,Lists!$B$5:$B$32,0)),\"Non-CAISO\")","v":"Non-CAISO"}]
[null,null,null,null,null,null,null,null,null,null,null,null,null,{"$f":"raw_resource_build!B1725","v":0},"Non-wind",{"$f":"IFERROR(INDEX($E$5:$E$32,MATCH(raw_resource_build!$E1725,Lists!$B$5:$B$32,0)),\"Non-CAISO\")","v":"Non-CAISO"}]
[null,null,null,null,null,null,null,null,null,null,null,null,null,{"$f":"raw_resource_build!B1726","v":0},"Non-wind",{"$f":"IFERROR(INDEX($E$5:$E$32,MATCH(raw_resource_build!$E1726,Lists!$B$5:$B$32,0)),\"Non-CAISO\")","v":"Non-CAISO"}]
[null,null,null,null,null,null,null,null,null,null,null,null,null,{"$f":"raw_resource_build!B1727","v":0},"Non-wind",{"$f":"IFERROR(INDEX($E$5:$E$32,MATCH(raw_resource_build!$E1727,Lists!$B$5:$B$32,0)),\"Non-CAISO\")","v":"Non-CAISO"}]
[null,null,null,null,null,null,null,null,null,null,null,null,null,{"$f":"raw_resource_build!B1728","v":0},"Non-wind",{"$f":"IFERROR(INDEX($E$5:$E$32,MATCH(raw_resource_build!$E1728,Lists!$B$5:$B$32,0)),\"Non-CAISO\")","v":"Non-CAISO"}]
[null,null,null,null,null,null,null,null,null,null,null,null,null,{"$f":"raw_resource_build!B1729","v":0},"Non-wind",{"$f":"IFERROR(INDEX($E$5:$E$32,MATCH(raw_resource_build!$E1729,Lists!$B$5:$B$32,0)),\"Non-CAISO\")","v":"Non-CAISO"}]
[null,null,null,null,null,null,null,null,null,null,null,null,null,{"$f":"raw_resource_build!B1730","v":0},"Non-wind",{"$f":"IFERROR(INDEX($E$5:$E$32,MATCH(raw_resource_build!$E1730,Lists!$B$5:$B$32,0)),\"Non-CAISO\")","v":"Non-CAISO"}]
[null,null,null,null,null,null,null,null,null,null,null,null,null,{"$f":"raw_resource_build!B1731","v":0},"Non-wind",{"$f":"IFERROR(INDEX($E$5:$E$32,MATCH(raw_resource_build!$E1731,Lists!$B$5:$B$32,0)),\"Non-CAISO\")","v":"Non-CAISO"}]
[null,null,null,null,null,null,null,null,null,null,null,null,null,{"$f":"raw_resource_build!B1732","v":0},"Non-wind",{"$f":"IFERROR(INDEX($E$5:$E$32,MATCH(raw_resource_build!$E1732,Lists!$B$5:$B$32,0)),\"Non-CAISO\")","v":"Non-CAISO"}]
[null,null,null,null,null,null,null,null,null,null,null,null,null,{"$f":"raw_resource_build!B1733","v":0},{"$f":"IFERROR(INDEX($C$35:$C$99,MATCH($N1733,$B$35:$B$99,0)),\"Non-wind\")","v":"Non-wind"},{"$f":"IFERROR(INDEX($E$5:$E$32,MATCH(raw_resource_build!$E1733,Lists!$B$5:$B$32,0)),\"Non-CAISO\")","v":"Non-CAISO"}]
[null,null,null,null,null,null,null,null,null,null,null,null,null,{"$f":"raw_resource_build!B1734","v":0},"Non-wind",{"$f":"IFERROR(INDEX($E$5:$E$32,MATCH(raw_resource_build!$E1734,Lists!$B$5:$B$32,0)),\"Non-CAISO\")","v":"Non-CAISO"}]
[null,null,null,null,null,null,null,null,null,null,null,null,null,{"$f":"raw_resource_build!B1735","v":0},"Non-wind",{"$f":"IFERROR(INDEX($E$5:$E$32,MATCH(raw_resource_build!$E1735,Lists!$B$5:$B$32,0)),\"Non-CAISO\")","v":"Non-CAISO"}]
[null,null,null,null,null,null,null,null,null,null,null,null,null,{"$f":"raw_resource_build!B1736","v":0},"Non-wind",{"$f":"IFERROR(INDEX($E$5:$E$32,MATCH(raw_resource_build!$E1736,Lists!$B$5:$B$32,0)),\"Non-CAISO\")","v":"Non-CAISO"}]
[null,null,null,null,null,null,null,null,null,null,null,null,null,{"$f":"raw_resource_build!B1737","v":0},"Non-wind",{"$f":"IFERROR(INDEX($E$5:$E$32,MATCH(raw_resource_build!$E1737,Lists!$B$5:$B$32,0)),\"Non-CAISO\")","v":"Non-CAISO"}]
[null,null,null,null,null,null,null,null,null,null,null,null,null,{"$f":"raw_resource_build!B1738","v":0},"Non-wind",{"$f":"IFERROR(INDEX($E$5:$E$32,MATCH(raw_resource_build!$E1738,Lists!$B$5:$B$32,0)),\"Non-CAISO\")","v":"Non-CAISO"}]
[null,null,null,null,null,null,null,null,null,null,null,null,null,{"$f":"raw_resource_build!B1739","v":0},"Non-wind",{"$f":"IFERROR(INDEX($E$5:$E$32,MATCH(raw_resource_build!$E1739,Lists!$B$5:$B$32,0)),\"Non-CAISO\")","v":"Non-CAISO"}]
[null,null,null,null,null,null,null,null,null,null,null,null,null,{"$f":"raw_resource_build!B1740","v":0},"Non-wind",{"$f":"IFERROR(INDEX($E$5:$E$32,MATCH(raw_resource_build!$E1740,Lists!$B$5:$B$32,0)),\"Non-CAISO\")","v":"Non-CAISO"}]
[null,null,null,null,null,null,null,null,null,null,null,null,null,{"$f":"raw_resource_build!B1741","v":0},"Non-wind",{"$f":"IFERROR(INDEX($E$5:$E$32,MATCH(raw_resource_build!$E1741,Lists!$B$5:$B$32,0)),\"Non-CAISO\")","v":"Non-CAISO"}]
[null,null,null,null,null,null,null,null,null,null,null,null,null,{"$f":"raw_resource_build!B1742","v":0},"Non-wind",{"$f":"IFERROR(INDEX($E$5:$E$32,MATCH(raw_resource_build!$E1742,Lists!$B$5:$B$32,0)),\"Non-CAISO\")","v":"Non-CAISO"}]
[null,null,null,null,null,null,null,null,null,null,null,null,null,{"$f":"raw_resource_build!B1743","v":0},"Non-wind",{"$f":"IFERROR(INDEX($E$5:$E$32,MATCH(raw_resource_build!$E1743,Lists!$B$5:$B$32,0)),\"Non-CAISO\")","v":"Non-CAISO"}]
[null,null,null,null,null,null,null,null,null,null,null,null,null,{"$f":"raw_resource_build!B1744","v":0},"Non-wind",{"$f":"IFERROR(INDEX($E$5:$E$32,MATCH(raw_resource_build!$E1744,Lists!$B$5:$B$32,0)),\"Non-CAISO\")","v":"Non-CAISO"}]
[null,null,null,null,null,null,null,null,null,null,null,null,null,{"$f":"raw_resource_build!B1745","v":0},"Non-wind",{"$f":"IFERROR(INDEX($E$5:$E$32,MATCH(raw_resource_build!$E1745,Lists!$B$5:$B$32,0)),\"Non-CAISO\")","v":"Non-CAISO"}]
[null,null,null,null,null,null,null,null,null,null,null,null,null,{"$f":"raw_resource_build!B1746","v":0},"Non-wind",{"$f":"IFERROR(INDEX($E$5:$E$32,MATCH(raw_resource_build!$E1746,Lists!$B$5:$B$32,0)),\"Non-CAISO\")","v":"Non-CAISO"}]
[null,null,null,null,null,null,null,null,null,null,null,null,null,{"$f":"raw_resource_build!B1747","v":0},"Non-wind",{"$f":"IFERROR(INDEX($E$5:$E$32,MATCH(raw_resource_build!$E1747,Lists!$B$5:$B$32,0)),\"Non-CAISO\")","v":"Non-CAISO"}]
[null,null,null,null,null,null,null,null,null,null,null,null,null,{"$f":"raw_resource_build!B1748","v":0},"Non-wind",{"$f":"IFERROR(INDEX($E$5:$E$32,MATCH(raw_resource_build!$E1748,Lists!$B$5:$B$32,0)),\"Non-CAISO\")","v":"Non-CAISO"}]
[null,null,null,null,null,null,null,null,null,null,null,null,null,{"$f":"raw_resource_build!B1749","v":0},"Non-wind",{"$f":"IFERROR(INDEX($E$5:$E$32,MATCH(raw_resource_build!$E1749,Lists!$B$5:$B$32,0)),\"Non-CAISO\")","v":"Non-CAISO"}]
[null,null,null,null,null,null,null,null,null,null,null,null,null,{"$f":"raw_resource_build!B1750","v":0},"Non-wind",{"$f":"IFERROR(INDEX($E$5:$E$32,MATCH(raw_resource_build!$E1750,Lists!$B$5:$B$32,0)),\"Non-CAISO\")","v":"Non-CAISO"}]
[null,null,null,null,null,null,null,null,null,null,null,null,null,{"$f":"raw_resource_build!B1751","v":0},"Non-wind",{"$f":"IFERROR(INDEX($E$5:$E$32,MATCH(raw_resource_build!$E1751,Lists!$B$5:$B$32,0)),\"Non-CAISO\")","v":"Non-CAISO"}]
[null,null,null,null,null,null,null,null,null,null,null,null,null,{"$f":"raw_resource_build!B1752","v":0},"Non-wind",{"$f":"IFERROR(INDEX($E$5:$E$32,MATCH(raw_resource_build!$E1752,Lists!$B$5:$B$32,0)),\"Non-CAISO\")","v":"Non-CAISO"}]
[null,null,null,null,null,null,null,null,null,null,null,null,null,{"$f":"raw_resource_build!B1753","v":0},"Non-wind",{"$f":"IFERROR(INDEX($E$5:$E$32,MATCH(raw_resource_build!$E1753,Lists!$B$5:$B$32,0)),\"Non-CAISO\")","v":"Non-CAISO"}]
[null,null,null,null,null,null,null,null,null,null,null,null,null,{"$f":"raw_resource_build!B1754","v":0},"Non-wind",{"$f":"IFERROR(INDEX($E$5:$E$32,MATCH(raw_resource_build!$E1754,Lists!$B$5:$B$32,0)),\"Non-CAISO\")","v":"Non-CAISO"}]
[null,null,null,null,null,null,null,null,null,null,null,null,null,{"$f":"raw_resource_build!B1755","v":0},"Non-wind",{"$f":"IFERROR(INDEX($E$5:$E$32,MATCH(raw_resource_build!$E1755,Lists!$B$5:$B$32,0)),\"Non-CAISO\")","v":"Non-CAISO"}]
[null,null,null,null,null,null,null,null,null,null,null,null,null,{"$f":"raw_resource_build!B1756","v":0},"Non-wind",{"$f":"IFERROR(INDEX($E$5:$E$32,MATCH(raw_resource_build!$E1756,Lists!$B$5:$B$32,0)),\"Non-CAISO\")","v":"Non-CAISO"}]
[null,null,null,null,null,null,null,null,null,null,null,null,null,{"$f":"raw_resource_build!B1757","v":0},"Non-wind",{"$f":"IFERROR(INDEX($E$5:$E$32,MATCH(raw_resource_build!$E1757,Lists!$B$5:$B$32,0)),\"Non-CAISO\")","v":"Non-CAISO"}]
[null,null,null,null,null,null,null,null,null,null,null,null,null,{"$f":"raw_resource_build!B1758","v":0},"Non-wind",{"$f":"IFERROR(INDEX($E$5:$E$32,MATCH(raw_resource_build!$E1758,Lists!$B$5:$B$32,0)),\"Non-CAISO\")","v":"Non-CAISO"}]
[null,null,null,null,null,null,null,null,null,null,null,null,null,{"$f":"raw_resource_build!B1759","v":0},"Non-wind",{"$f":"IFERROR(INDEX($E$5:$E$32,MATCH(raw_resource_build!$E1759,Lists!$B$5:$B$32,0)),\"Non-CAISO\")","v":"Non-CAISO"}]
[null,null,null,null,null,null,null,null,null,null,null,null,null,{"$f":"raw_resource_build!B1760","v":0},"Non-wind",{"$f":"IFERROR(INDEX($E$5:$E$32,MATCH(raw_resource_build!$E1760,Lists!$B$5:$B$32,0)),\"Non-CAISO\")","v":"Non-CAISO"}]
[null,null,null,null,null,null,null,null,null,null,null,null,null,{"$f":"raw_resource_build!B1761","v":0},"Non-wind",{"$f":"IFERROR(INDEX($E$5:$E$32,MATCH(raw_resource_build!$E1761,Lists!$B$5:$B$32,0)),\"Non-CAISO\")","v":"Non-CAISO"}]
[null,null,null,null,null,null,null,null,null,null,null,null,null,{"$f":"raw_resource_build!B1762","v":0},"Non-wind",{"$f":"IFERROR(INDEX($E$5:$E$32,MATCH(raw_resource_build!$E1762,Lists!$B$5:$B$32,0)),\"Non-CAISO\")","v":"Non-CAISO"}]
[null,null,null,null,null,null,null,null,null,null,null,null,null,{"$f":"raw_resource_build!B1763","v":0},"Non-wind",{"$f":"IFERROR(INDEX($E$5:$E$32,MATCH(raw_resource_build!$E1763,Lists!$B$5:$B$32,0)),\"Non-CAISO\")","v":"Non-CAISO"}]
[null,null,null,null,null,null,null,null,null,null,null,null,null,{"$f":"raw_resource_build!B1764","v":0},"Non-wind",{"$f":"IFERROR(INDEX($E$5:$E$32,MATCH(raw_resource_build!$E1764,Lists!$B$5:$B$32,0)),\"Non-CAISO\")","v":"Non-CAISO"}]
[null,null,null,null,null,null,null,null,null,null,null,null,null,{"$f":"raw_resource_build!B1765","v":0},"Non-wind",{"$f":"IFERROR(INDEX($E$5:$E$32,MATCH(raw_resource_build!$E1765,Lists!$B$5:$B$32,0)),\"Non-CAISO\")","v":"Non-CAISO"}]
[null,null,null,null,null,null,null,null,null,null,null,null,null,{"$f":"raw_resource_build!B1766","v":0},"Non-wind",{"$f":"IFERROR(INDEX($E$5:$E$32,MATCH(raw_resource_build!$E1766,Lists!$B$5:$B$32,0)),\"Non-CAISO\")","v":"Non-CAISO"}]
[null,null,null,null,null,null,null,null,null,null,null,null,null,{"$f":"raw_resource_build!B1767","v":0},"Non-wind",{"$f":"IFERROR(INDEX($E$5:$E$32,MATCH(raw_resource_build!$E1767,Lists!$B$5:$B$32,0)),\"Non-CAISO\")","v":"Non-CAISO"}]
[null,null,null,null,null,null,null,null,null,null,null,null,null,{"$f":"raw_resource_build!B1768","v":0},"Non-wind",{"$f":"IFERROR(INDEX($E$5:$E$32,MATCH(raw_resource_build!$E1768,Lists!$B$5:$B$32,0)),\"Non-CAISO\")","v":"Non-CAISO"}]
[null,null,null,null,null,null,null,null,null,null,null,null,null,{"$f":"raw_resource_build!B1769","v":0},"Non-wind",{"$f":"IFERROR(INDEX($E$5:$E$32,MATCH(raw_resource_build!$E1769,Lists!$B$5:$B$32,0)),\"Non-CAISO\")","v":"Non-CAISO"}]
[null,null,null,null,null,null,null,null,null,null,null,null,null,{"$f":"raw_resource_build!B1770","v":0},"Non-wind",{"$f":"IFERROR(INDEX($E$5:$E$32,MATCH(raw_resource_build!$E1770,Lists!$B$5:$B$32,0)),\"Non-CAISO\")","v":"Non-CAISO"}]
[null,null,null,null,null,null,null,null,null,null,null,null,null,{"$f":"raw_resource_build!B1771","v":0},"Non-wind",{"$f":"IFERROR(INDEX($E$5:$E$32,MATCH(raw_resource_build!$E1771,Lists!$B$5:$B$32,0)),\"Non-CAISO\")","v":"Non-CAISO"}]
[null,null,null,null,null,null,null,null,null,null,null,null,null,{"$f":"raw_resource_build!B1772","v":0},"Non-wind",{"$f":"IFERROR(INDEX($E$5:$E$32,MATCH(raw_resource_build!$E1772,Lists!$B$5:$B$32,0)),\"Non-CAISO\")","v":"Non-CAISO"}]
[null,null,null,null,null,null,null,null,null,null,null,null,null,{"$f":"raw_resource_build!B1773","v":0},"Non-wind",{"$f":"IFERROR(INDEX($E$5:$E$32,MATCH(raw_resource_build!$E1773,Lists!$B$5:$B$32,0)),\"Non-CAISO\")","v":"Non-CAISO"}]
[null,null,null,null,null,null,null,null,null,null,null,null,null,{"$f":"raw_resource_build!B1774","v":0},"Non-wind",{"$f":"IFERROR(INDEX($E$5:$E$32,MATCH(raw_resource_build!$E1774,Lists!$B$5:$B$32,0)),\"Non-CAISO\")","v":"Non-CAISO"}]
[null,null,null,null,null,null,null,null,null,null,null,null,null,{"$f":"raw_resource_build!B1775","v":0},"Non-wind",{"$f":"IFERROR(INDEX($E$5:$E$32,MATCH(raw_resource_build!$E1775,Lists!$B$5:$B$32,0)),\"Non-CAISO\")","v":"Non-CAISO"}]
[null,null,null,null,null,null,null,null,null,null,null,null,null,{"$f":"raw_resource_build!B1776","v":0},"Non-wind",{"$f":"IFERROR(INDEX($E$5:$E$32,MATCH(raw_resource_build!$E1776,Lists!$B$5:$B$32,0)),\"Non-CAISO\")","v":"Non-CAISO"}]
[null,null,null,null,null,null,null,null,null,null,null,null,null,{"$f":"raw_resource_build!B1777","v":0},"Non-wind",{"$f":"IFERROR(INDEX($E$5:$E$32,MATCH(raw_resource_build!$E1777,Lists!$B$5:$B$32,0)),\"Non-CAISO\")","v":"Non-CAISO"}]
[null,null,null,null,null,null,null,null,null,null,null,null,null,{"$f":"raw_resource_build!B1778","v":0},"Non-wind",{"$f":"IFERROR(INDEX($E$5:$E$32,MATCH(raw_resource_build!$E1778,Lists!$B$5:$B$32,0)),\"Non-CAISO\")","v":"Non-CAISO"}]
[null,null,null,null,null,null,null,null,null,null,null,null,null,{"$f":"raw_resource_build!B1779","v":0},"Non-wind",{"$f":"IFERROR(INDEX($E$5:$E$32,MATCH(raw_resource_build!$E1779,Lists!$B$5:$B$32,0)),\"Non-CAISO\")","v":"Non-CAISO"}]
[null,null,null,null,null,null,null,null,null,null,null,null,null,{"$f":"raw_resource_build!B1780","v":0},"Non-wind",{"$f":"IFERROR(INDEX($E$5:$E$32,MATCH(raw_resource_build!$E1780,Lists!$B$5:$B$32,0)),\"Non-CAISO\")","v":"Non-CAISO"}]
[null,null,null,null,null,null,null,null,null,null,null,null,null,{"$f":"raw_resource_build!B1781","v":0},"Non-wind",{"$f":"IFERROR(INDEX($E$5:$E$32,MATCH(raw_resource_build!$E1781,Lists!$B$5:$B$32,0)),\"Non-CAISO\")","v":"Non-CAISO"}]
[null,null,null,null,null,null,null,null,null,null,null,null,null,{"$f":"raw_resource_build!B1782","v":0},"Non-wind",{"$f":"IFERROR(INDEX($E$5:$E$32,MATCH(raw_resource_build!$E1782,Lists!$B$5:$B$32,0)),\"Non-CAISO\")","v":"Non-CAISO"}]
[null,null,null,null,null,null,null,null,null,null,null,null,null,{"$f":"raw_resource_build!B1783","v":0},"Non-wind",{"$f":"IFERROR(INDEX($E$5:$E$32,MATCH(raw_resource_build!$E1783,Lists!$B$5:$B$32,0)),\"Non-CAISO\")","v":"Non-CAISO"}]
[null,null,null,null,null,null,null,null,null,null,null,null,null,{"$f":"raw_resource_build!B1784","v":0},"Non-wind",{"$f":"IFERROR(INDEX($E$5:$E$32,MATCH(raw_resource_build!$E1784,Lists!$B$5:$B$32,0)),\"Non-CAISO\")","v":"Non-CAISO"}]
[null,null,null,null,null,null,null,null,null,null,null,null,null,{"$f":"raw_resource_build!B1785","v":0},"Non-wind",{"$f":"IFERROR(INDEX($E$5:$E$32,MATCH(raw_resource_build!$E1785,Lists!$B$5:$B$32,0)),\"Non-CAISO\")","v":"Non-CAISO"}]
[null,null,null,null,null,null,null,null,null,null,null,null,null,{"$f":"raw_resource_build!B1786","v":0},"Non-wind",{"$f":"IFERROR(INDEX($E$5:$E$32,MATCH(raw_resource_build!$E1786,Lists!$B$5:$B$32,0)),\"Non-CAISO\")","v":"Non-CAISO"}]
[null,null,null,null,null,null,null,null,null,null,null,null,null,{"$f":"raw_resource_build!B1787","v":0},"Non-wind",{"$f":"IFERROR(INDEX($E$5:$E$32,MATCH(raw_resource_build!$E1787,Lists!$B$5:$B$32,0)),\"Non-CAISO\")","v":"Non-CAISO"}]
[null,null,null,null,null,null,null,null,null,null,null,null,null,{"$f":"raw_resource_build!B1788","v":0},"Non-wind",{"$f":"IFERROR(INDEX($E$5:$E$32,MATCH(raw_resource_build!$E1788,Lists!$B$5:$B$32,0)),\"Non-CAISO\")","v":"Non-CAISO"}]
[null,null,null,null,null,null,null,null,null,null,null,null,null,{"$f":"raw_resource_build!B1789","v":0},"Non-wind",{"$f":"IFERROR(INDEX($E$5:$E$32,MATCH(raw_resource_build!$E1789,Lists!$B$5:$B$32,0)),\"Non-CAISO\")","v":"Non-CAISO"}]
[null,null,null,null,null,null,null,null,null,null,null,null,null,{"$f":"raw_resource_build!B1790","v":0},"Non-wind",{"$f":"IFERROR(INDEX($E$5:$E$32,MATCH(raw_resource_build!$E1790,Lists!$B$5:$B$32,0)),\"Non-CAISO\")","v":"Non-CAISO"}]
[null,null,null,null,null,null,null,null,null,null,null,null,null,{"$f":"raw_resource_build!B1791","v":0},"Non-wind",{"$f":"IFERROR(INDEX($E$5:$E$32,MATCH(raw_resource_build!$E1791,Lists!$B$5:$B$32,0)),\"Non-CAISO\")","v":"Non-CAISO"}]
[null,null,null,null,null,null,null,null,null,null,null,null,null,{"$f":"raw_resource_build!B1792","v":0},"Non-wind",{"$f":"IFERROR(INDEX($E$5:$E$32,MATCH(raw_resource_build!$E1792,Lists!$B$5:$B$32,0)),\"Non-CAISO\")","v":"Non-CAISO"}]
[null,null,null,null,null,null,null,null,null,null,null,null,null,{"$f":"raw_resource_build!B1793","v":0},"Non-wind",{"$f":"IFERROR(INDEX($E$5:$E$32,MATCH(raw_resource_build!$E1793,Lists!$B$5:$B$32,0)),\"Non-CAISO\")","v":"Non-CAISO"}]
[null,null,null,null,null,null,null,null,null,null,null,null,null,{"$f":"raw_resource_build!B1794","v":0},"Non-wind",{"$f":"IFERROR(INDEX($E$5:$E$32,MATCH(raw_resource_build!$E1794,Lists!$B$5:$B$32,0)),\"Non-CAISO\")","v":"Non-CAISO"}]
[null,null,null,null,null,null,null,null,null,null,null,null,null,{"$f":"raw_resource_build!B1795","v":0},"Non-wind",{"$f":"IFERROR(INDEX($E$5:$E$32,MATCH(raw_resource_build!$E1795,Lists!$B$5:$B$32,0)),\"Non-CAISO\")","v":"Non-CAISO"}]
[null,null,null,null,null,null,null,null,null,null,null,null,null,{"$f":"raw_resource_build!B1796","v":0},"Non-wind",{"$f":"IFERROR(INDEX($E$5:$E$32,MATCH(raw_resource_build!$E1796,Lists!$B$5:$B$32,0)),\"Non-CAISO\")","v":"Non-CAISO"}]
[null,null,null,null,null,null,null,null,null,null,null,null,null,{"$f":"raw_resource_build!B1797","v":0},{"$f":"IFERROR(INDEX($C$35:$C$99,MATCH($N1797,$B$35:$B$99,0)),\"Non-wind\")","v":"Non-wind"},{"$f":"IFERROR(INDEX($E$5:$E$32,MATCH(raw_resource_build!$E1797,Lists!$B$5:$B$32,0)),\"Non-CAISO\")","v":"Non-CAISO"}]
[null,null,null,null,null,null,null,null,null,null,null,null,null,{"$f":"raw_resource_build!B1798","v":0},"Non-wind",{"$f":"IFERROR(INDEX($E$5:$E$32,MATCH(raw_resource_build!$E1798,Lists!$B$5:$B$32,0)),\"Non-CAISO\")","v":"Non-CAISO"}]
[null,null,null,null,null,null,null,null,null,null,null,null,null,{"$f":"raw_resource_build!B1799","v":0},"Non-wind",{"$f":"IFERROR(INDEX($E$5:$E$32,MATCH(raw_resource_build!$E1799,Lists!$B$5:$B$32,0)),\"Non-CAISO\")","v":"Non-CAISO"}]
[null,null,null,null,null,null,null,null,null,null,null,null,null,{"$f":"raw_resource_build!B1800","v":0},"Non-wind",{"$f":"IFERROR(INDEX($E$5:$E$32,MATCH(raw_resource_build!$E1800,Lists!$B$5:$B$32,0)),\"Non-CAISO\")","v":"Non-CAISO"}]
[null,null,null,null,null,null,null,null,null,null,null,null,null,{"$f":"raw_resource_build!B1801","v":0},"Non-wind",{"$f":"IFERROR(INDEX($E$5:$E$32,MATCH(raw_resource_build!$E1801,Lists!$B$5:$B$32,0)),\"Non-CAISO\")","v":"Non-CAISO"}]
[null,null,null,null,null,null,null,null,null,null,null,null,null,{"$f":"raw_resource_build!B1802","v":0},"Non-wind",{"$f":"IFERROR(INDEX($E$5:$E$32,MATCH(raw_resource_build!$E1802,Lists!$B$5:$B$32,0)),\"Non-CAISO\")","v":"Non-CAISO"}]
[null,null,null,null,null,null,null,null,null,null,null,null,null,{"$f":"raw_resource_build!B1803","v":0},"Non-wind",{"$f":"IFERROR(INDEX($E$5:$E$32,MATCH(raw_resource_build!$E1803,Lists!$B$5:$B$32,0)),\"Non-CAISO\")","v":"Non-CAISO"}]
[null,null,null,null,null,null,null,null,null,null,null,null,null,{"$f":"raw_resource_build!B1804","v":0},"Non-wind",{"$f":"IFERROR(INDEX($E$5:$E$32,MATCH(raw_resource_build!$E1804,Lists!$B$5:$B$32,0)),\"Non-CAISO\")","v":"Non-CAISO"}]
[null,null,null,null,null,null,null,null,null,null,null,null,null,{"$f":"raw_resource_build!B1805","v":0},"Non-wind",{"$f":"IFERROR(INDEX($E$5:$E$32,MATCH(raw_resource_build!$E1805,Lists!$B$5:$B$32,0)),\"Non-CAISO\")","v":"Non-CAISO"}]
[null,null,null,null,null,null,null,null,null,null,null,null,null,{"$f":"raw_resource_build!B1806","v":0},"Non-wind",{"$f":"IFERROR(INDEX($E$5:$E$32,MATCH(raw_resource_build!$E1806,Lists!$B$5:$B$32,0)),\"Non-CAISO\")","v":"Non-CAISO"}]
[null,null,null,null,null,null,null,null,null,null,null,null,null,{"$f":"raw_resource_build!B1807","v":0},"Non-wind",{"$f":"IFERROR(INDEX($E$5:$E$32,MATCH(raw_resource_build!$E1807,Lists!$B$5:$B$32,0)),\"Non-CAISO\")","v":"Non-CAISO"}]
[null,null,null,null,null,null,null,null,null,null,null,null,null,{"$f":"raw_resource_build!B1808","v":0},"Non-wind",{"$f":"IFERROR(INDEX($E$5:$E$32,MATCH(raw_resource_build!$E1808,Lists!$B$5:$B$32,0)),\"Non-CAISO\")","v":"Non-CAISO"}]
[null,null,null,null,null,null,null,null,null,null,null,null,null,{"$f":"raw_resource_build!B1809","v":0},"Non-wind",{"$f":"IFERROR(INDEX($E$5:$E$32,MATCH(raw_resource_build!$E1809,Lists!$B$5:$B$32,0)),\"Non-CAISO\")","v":"Non-CAISO"}]
[null,null,null,null,null,null,null,null,null,null,null,null,null,{"$f":"raw_resource_build!B1810","v":0},"Non-wind",{"$f":"IFERROR(INDEX($E$5:$E$32,MATCH(raw_resource_build!$E1810,Lists!$B$5:$B$32,0)),\"Non-CAISO\")","v":"Non-CAISO"}]
[null,null,null,null,null,null,null,null,null,null,null,null,null,{"$f":"raw_resource_build!B1811","v":0},"Non-wind",{"$f":"IFERROR(INDEX($E$5:$E$32,MATCH(raw_resource_build!$E1811,Lists!$B$5:$B$32,0)),\"Non-CAISO\")","v":"Non-CAISO"}]
[null,null,null,null,null,null,null,null,null,null,null,null,null,{"$f":"raw_resource_build!B1812","v":0},"Non-wind",{"$f":"IFERROR(INDEX($E$5:$E$32,MATCH(raw_resource_build!$E1812,Lists!$B$5:$B$32,0)),\"Non-CAISO\")","v":"Non-CAISO"}]
[null,null,null,null,null,null,null,null,null,null,null,null,null,{"$f":"raw_resource_build!B1813","v":0},"Non-wind",{"$f":"IFERROR(INDEX($E$5:$E$32,MATCH(raw_resource_build!$E1813,Lists!$B$5:$B$32,0)),\"Non-CAISO\")","v":"Non-CAISO"}]
[null,null,null,null,null,null,null,null,null,null,null,null,null,{"$f":"raw_resource_build!B1814","v":0},"Non-wind",{"$f":"IFERROR(INDEX($E$5:$E$32,MATCH(raw_resource_build!$E1814,Lists!$B$5:$B$32,0)),\"Non-CAISO\")","v":"Non-CAISO"}]
[null,null,null,null,null,null,null,null,null,null,null,null,null,{"$f":"raw_resource_build!B1815","v":0},"Non-wind",{"$f":"IFERROR(INDEX($E$5:$E$32,MATCH(raw_resource_build!$E1815,Lists!$B$5:$B$32,0)),\"Non-CAISO\")","v":"Non-CAISO"}]
[null,null,null,null,null,null,null,null,null,null,null,null,null,{"$f":"raw_resource_build!B1816","v":0},"Non-wind",{"$f":"IFERROR(INDEX($E$5:$E$32,MATCH(raw_resource_build!$E1816,Lists!$B$5:$B$32,0)),\"Non-CAISO\")","v":"Non-CAISO"}]
[null,null,null,null,null,null,null,null,null,null,null,null,null,{"$f":"raw_resource_build!B1817","v":0},"Non-wind",{"$f":"IFERROR(INDEX($E$5:$E$32,MATCH(raw_resource_build!$E1817,Lists!$B$5:$B$32,0)),\"Non-CAISO\")","v":"Non-CAISO"}]
[null,null,null,null,null,null,null,null,null,null,null,null,null,{"$f":"raw_resource_build!B1818","v":0},"Non-wind",{"$f":"IFERROR(INDEX($E$5:$E$32,MATCH(raw_resource_build!$E1818,Lists!$B$5:$B$32,0)),\"Non-CAISO\")","v":"Non-CAISO"}]
[null,null,null,null,null,null,null,null,null,null,null,null,null,{"$f":"raw_resource_build!B1819","v":0},"Non-wind",{"$f":"IFERROR(INDEX($E$5:$E$32,MATCH(raw_resource_build!$E1819,Lists!$B$5:$B$32,0)),\"Non-CAISO\")","v":"Non-CAISO"}]
[null,null,null,null,null,null,null,null,null,null,null,null,null,{"$f":"raw_resource_build!B1820","v":0},"Non-wind",{"$f":"IFERROR(INDEX($E$5:$E$32,MATCH(raw_resource_build!$E1820,Lists!$B$5:$B$32,0)),\"Non-CAISO\")","v":"Non-CAISO"}]
[null,null,null,null,null,null,null,null,null,null,null,null,null,{"$f":"raw_resource_build!B1821","v":0},"Non-wind",{"$f":"IFERROR(INDEX($E$5:$E$32,MATCH(raw_resource_build!$E1821,Lists!$B$5:$B$32,0)),\"Non-CAISO\")","v":"Non-CAISO"}]
[null,null,null,null,null,null,null,null,null,null,null,null,null,{"$f":"raw_resource_build!B1822","v":0},"Non-wind",{"$f":"IFERROR(INDEX($E$5:$E$32,MATCH(raw_resource_build!$E1822,Lists!$B$5:$B$32,0)),\"Non-CAISO\")","v":"Non-CAISO"}]
[null,null,null,null,null,null,null,null,null,null,null,null,null,{"$f":"raw_resource_build!B1823","v":0},"Non-wind",{"$f":"IFERROR(INDEX($E$5:$E$32,MATCH(raw_resource_build!$E1823,Lists!$B$5:$B$32,0)),\"Non-CAISO\")","v":"Non-CAISO"}]
[null,null,null,null,null,null,null,null,null,null,null,null,null,{"$f":"raw_resource_build!B1824","v":0},"Non-wind",{"$f":"IFERROR(INDEX($E$5:$E$32,MATCH(raw_resource_build!$E1824,Lists!$B$5:$B$32,0)),\"Non-CAISO\")","v":"Non-CAISO"}]
[null,null,null,null,null,null,null,null,null,null,null,null,null,{"$f":"raw_resource_build!B1825","v":0},"Non-wind",{"$f":"IFERROR(INDEX($E$5:$E$32,MATCH(raw_resource_build!$E1825,Lists!$B$5:$B$32,0)),\"Non-CAISO\")","v":"Non-CAISO"}]
[null,null,null,null,null,null,null,null,null,null,null,null,null,{"$f":"raw_resource_build!B1826","v":0},"Non-wind",{"$f":"IFERROR(INDEX($E$5:$E$32,MATCH(raw_resource_build!$E1826,Lists!$B$5:$B$32,0)),\"Non-CAISO\")","v":"Non-CAISO"}]
[null,null,null,null,null,null,null,null,null,null,null,null,null,{"$f":"raw_resource_build!B1827","v":0},"Non-wind",{"$f":"IFERROR(INDEX($E$5:$E$32,MATCH(raw_resource_build!$E1827,Lists!$B$5:$B$32,0)),\"Non-CAISO\")","v":"Non-CAISO"}]
[null,null,null,null,null,null,null,null,null,null,null,null,null,{"$f":"raw_resource_build!B1828","v":0},"Non-wind",{"$f":"IFERROR(INDEX($E$5:$E$32,MATCH(raw_resource_build!$E1828,Lists!$B$5:$B$32,0)),\"Non-CAISO\")","v":"Non-CAISO"}]
[null,null,null,null,null,null,null,null,null,null,null,null,null,{"$f":"raw_resource_build!B1829","v":0},"Non-wind",{"$f":"IFERROR(INDEX($E$5:$E$32,MATCH(raw_resource_build!$E1829,Lists!$B$5:$B$32,0)),\"Non-CAISO\")","v":"Non-CAISO"}]
[null,null,null,null,null,null,null,null,null,null,null,null,null,{"$f":"raw_resource_build!B1830","v":0},"Non-wind",{"$f":"IFERROR(INDEX($E$5:$E$32,MATCH(raw_resource_build!$E1830,Lists!$B$5:$B$32,0)),\"Non-CAISO\")","v":"Non-CAISO"}]
[null,null,null,null,null,null,null,null,null,null,null,null,null,{"$f":"raw_resource_build!B1831","v":0},"Non-wind",{"$f":"IFERROR(INDEX($E$5:$E$32,MATCH(raw_resource_build!$E1831,Lists!$B$5:$B$32,0)),\"Non-CAISO\")","v":"Non-CAISO"}]
[null,null,null,null,null,null,null,null,null,null,null,null,null,{"$f":"raw_resource_build!B1832","v":0},"Non-wind",{"$f":"IFERROR(INDEX($E$5:$E$32,MATCH(raw_resource_build!$E1832,Lists!$B$5:$B$32,0)),\"Non-CAISO\")","v":"Non-CAISO"}]
[null,null,null,null,null,null,null,null,null,null,null,null,null,{"$f":"raw_resource_build!B1833","v":0},"Non-wind",{"$f":"IFERROR(INDEX($E$5:$E$32,MATCH(raw_resource_build!$E1833,Lists!$B$5:$B$32,0)),\"Non-CAISO\")","v":"Non-CAISO"}]
[null,null,null,null,null,null,null,null,null,null,null,null,null,{"$f":"raw_resource_build!B1834","v":0},"Non-wind",{"$f":"IFERROR(INDEX($E$5:$E$32,MATCH(raw_resource_build!$E1834,Lists!$B$5:$B$32,0)),\"Non-CAISO\")","v":"Non-CAISO"}]
[null,null,null,null,null,null,null,null,null,null,null,null,null,{"$f":"raw_resource_build!B1835","v":0},"Non-wind",{"$f":"IFERROR(INDEX($E$5:$E$32,MATCH(raw_resource_build!$E1835,Lists!$B$5:$B$32,0)),\"Non-CAISO\")","v":"Non-CAISO"}]
[null,null,null,null,null,null,null,null,null,null,null,null,null,{"$f":"raw_resource_build!B1836","v":0},"Non-wind",{"$f":"IFERROR(INDEX($E$5:$E$32,MATCH(raw_resource_build!$E1836,Lists!$B$5:$B$32,0)),\"Non-CAISO\")","v":"Non-CAISO"}]
[null,null,null,null,null,null,null,null,null,null,null,null,null,{"$f":"raw_resource_build!B1837","v":0},"Non-wind",{"$f":"IFERROR(INDEX($E$5:$E$32,MATCH(raw_resource_build!$E1837,Lists!$B$5:$B$32,0)),\"Non-CAISO\")","v":"Non-CAISO"}]
[null,null,null,null,null,null,null,null,null,null,null,null,null,{"$f":"raw_resource_build!B1838","v":0},"Non-wind",{"$f":"IFERROR(INDEX($E$5:$E$32,MATCH(raw_resource_build!$E1838,Lists!$B$5:$B$32,0)),\"Non-CAISO\")","v":"Non-CAISO"}]
[null,null,null,null,null,null,null,null,null,null,null,null,null,{"$f":"raw_resource_build!B1839","v":0},"Non-wind",{"$f":"IFERROR(INDEX($E$5:$E$32,MATCH(raw_resource_build!$E1839,Lists!$B$5:$B$32,0)),\"Non-CAISO\")","v":"Non-CAISO"}]
[null,null,null,null,null,null,null,null,null,null,null,null,null,{"$f":"raw_resource_build!B1840","v":0},"Non-wind",{"$f":"IFERROR(INDEX($E$5:$E$32,MATCH(raw_resource_build!$E1840,Lists!$B$5:$B$32,0)),\"Non-CAISO\")","v":"Non-CAISO"}]
[null,null,null,null,null,null,null,null,null,null,null,null,null,{"$f":"raw_resource_build!B1841","v":0},"Non-wind",{"$f":"IFERROR(INDEX($E$5:$E$32,MATCH(raw_resource_build!$E1841,Lists!$B$5:$B$32,0)),\"Non-CAISO\")","v":"Non-CAISO"}]
[null,null,null,null,null,null,null,null,null,null,null,null,null,{"$f":"raw_resource_build!B1842","v":0},"Non-wind",{"$f":"IFERROR(INDEX($E$5:$E$32,MATCH(raw_resource_build!$E1842,Lists!$B$5:$B$32,0)),\"Non-CAISO\")","v":"Non-CAISO"}]
[null,null,null,null,null,null,null,null,null,null,null,null,null,{"$f":"raw_resource_build!B1843","v":0},"Non-wind",{"$f":"IFERROR(INDEX($E$5:$E$32,MATCH(raw_resource_build!$E1843,Lists!$B$5:$B$32,0)),\"Non-CAISO\")","v":"Non-CAISO"}]
[null,null,null,null,null,null,null,null,null,null,null,null,null,{"$f":"raw_resource_build!B1844","v":0},"Non-wind",{"$f":"IFERROR(INDEX($E$5:$E$32,MATCH(raw_resource_build!$E1844,Lists!$B$5:$B$32,0)),\"Non-CAISO\")","v":"Non-CAISO"}]
[null,null,null,null,null,null,null,null,null,null,null,null,null,{"$f":"raw_resource_build!B1845","v":0},"Non-wind",{"$f":"IFERROR(INDEX($E$5:$E$32,MATCH(raw_resource_build!$E1845,Lists!$B$5:$B$32,0)),\"Non-CAISO\")","v":"Non-CAISO"}]
[null,null,null,null,null,null,null,null,null,null,null,null,null,{"$f":"raw_resource_build!B1846","v":0},"Non-wind",{"$f":"IFERROR(INDEX($E$5:$E$32,MATCH(raw_resource_build!$E1846,Lists!$B$5:$B$32,0)),\"Non-CAISO\")","v":"Non-CAISO"}]
[null,null,null,null,null,null,null,null,null,null,null,null,null,{"$f":"raw_resource_build!B1847","v":0},"Non-wind",{"$f":"IFERROR(INDEX($E$5:$E$32,MATCH(raw_resource_build!$E1847,Lists!$B$5:$B$32,0)),\"Non-CAISO\")","v":"Non-CAISO"}]
[null,null,null,null,null,null,null,null,null,null,null,null,null,{"$f":"raw_resource_build!B1848","v":0},"Non-wind",{"$f":"IFERROR(INDEX($E$5:$E$32,MATCH(raw_resource_build!$E1848,Lists!$B$5:$B$32,0)),\"Non-CAISO\")","v":"Non-CAISO"}]
[null,null,null,null,null,null,null,null,null,null,null,null,null,{"$f":"raw_resource_build!B1849","v":0},"Non-wind",{"$f":"IFERROR(INDEX($E$5:$E$32,MATCH(raw_resource_build!$E1849,Lists!$B$5:$B$32,0)),\"Non-CAISO\")","v":"Non-CAISO"}]
[null,null,null,null,null,null,null,null,null,null,null,null,null,{"$f":"raw_resource_build!B1850","v":0},"Non-wind",{"$f":"IFERROR(INDEX($E$5:$E$32,MATCH(raw_resource_build!$E1850,Lists!$B$5:$B$32,0)),\"Non-CAISO\")","v":"Non-CAISO"}]
[null,null,null,null,null,null,null,null,null,null,null,null,null,{"$f":"raw_resource_build!B1851","v":0},"Non-wind",{"$f":"IFERROR(INDEX($E$5:$E$32,MATCH(raw_resource_build!$E1851,Lists!$B$5:$B$32,0)),\"Non-CAISO\")","v":"Non-CAISO"}]
[null,null,null,null,null,null,null,null,null,null,null,null,null,{"$f":"raw_resource_build!B1852","v":0},"Non-wind",{"$f":"IFERROR(INDEX($E$5:$E$32,MATCH(raw_resource_build!$E1852,Lists!$B$5:$B$32,0)),\"Non-CAISO\")","v":"Non-CAISO"}]
[null,null,null,null,null,null,null,null,null,null,null,null,null,{"$f":"raw_resource_build!B1853","v":0},"Non-wind",{"$f":"IFERROR(INDEX($E$5:$E$32,MATCH(raw_resource_build!$E1853,Lists!$B$5:$B$32,0)),\"Non-CAISO\")","v":"Non-CAISO"}]
[null,null,null,null,null,null,null,null,null,null,null,null,null,{"$f":"raw_resource_build!B1854","v":0},"Non-wind",{"$f":"IFERROR(INDEX($E$5:$E$32,MATCH(raw_resource_build!$E1854,Lists!$B$5:$B$32,0)),\"Non-CAISO\")","v":"Non-CAISO"}]
[null,null,null,null,null,null,null,null,null,null,null,null,null,{"$f":"raw_resource_build!B1855","v":0},"Non-wind",{"$f":"IFERROR(INDEX($E$5:$E$32,MATCH(raw_resource_build!$E1855,Lists!$B$5:$B$32,0)),\"Non-CAISO\")","v":"Non-CAISO"}]
[null,null,null,null,null,null,null,null,null,null,null,null,null,{"$f":"raw_resource_build!B1856","v":0},"Non-wind",{"$f":"IFERROR(INDEX($E$5:$E$32,MATCH(raw_resource_build!$E1856,Lists!$B$5:$B$32,0)),\"Non-CAISO\")","v":"Non-CAISO"}]
[null,null,null,null,null,null,null,null,null,null,null,null,null,{"$f":"raw_resource_build!B1857","v":0},"Non-wind",{"$f":"IFERROR(INDEX($E$5:$E$32,MATCH(raw_resource_build!$E1857,Lists!$B$5:$B$32,0)),\"Non-CAISO\")","v":"Non-CAISO"}]
[null,null,null,null,null,null,null,null,null,null,null,null,null,{"$f":"raw_resource_build!B1858","v":0},"Non-wind",{"$f":"IFERROR(INDEX($E$5:$E$32,MATCH(raw_resource_build!$E1858,Lists!$B$5:$B$32,0)),\"Non-CAISO\")","v":"Non-CAISO"}]
[null,null,null,null,null,null,null,null,null,null,null,null,null,{"$f":"raw_resource_build!B1859","v":0},"Non-wind",{"$f":"IFERROR(INDEX($E$5:$E$32,MATCH(raw_resource_build!$E1859,Lists!$B$5:$B$32,0)),\"Non-CAISO\")","v":"Non-CAISO"}]
[null,null,null,null,null,null,null,null,null,null,null,null,null,{"$f":"raw_resource_build!B1860","v":0},"Non-wind",{"$f":"IFERROR(INDEX($E$5:$E$32,MATCH(raw_resource_build!$E1860,Lists!$B$5:$B$32,0)),\"Non-CAISO\")","v":"Non-CAISO"}]
[null,null,null,null,null,null,null,null,null,null,null,null,null,{"$f":"raw_resource_build!B1861","v":0},{"$f":"IFERROR(INDEX($C$35:$C$99,MATCH($N1861,$B$35:$B$99,0)),\"Non-wind\")","v":"Non-wind"},{"$f":"IFERROR(INDEX($E$5:$E$32,MATCH(raw_resource_build!$E1861,Lists!$B$5:$B$32,0)),\"Non-CAISO\")","v":"Non-CAISO"}]
[null,null,null,null,null,null,null,null,null,null,null,null,null,{"$f":"raw_resource_build!B1862","v":0},"Non-wind",{"$f":"IFERROR(INDEX($E$5:$E$32,MATCH(raw_resource_build!$E1862,Lists!$B$5:$B$32,0)),\"Non-CAISO\")","v":"Non-CAISO"}]
[null,null,null,null,null,null,null,null,null,null,null,null,null,{"$f":"raw_resource_build!B1863","v":0},"Non-wind",{"$f":"IFERROR(INDEX($E$5:$E$32,MATCH(raw_resource_build!$E1863,Lists!$B$5:$B$32,0)),\"Non-CAISO\")","v":"Non-CAISO"}]
[null,null,null,null,null,null,null,null,null,null,null,null,null,{"$f":"raw_resource_build!B1864","v":0},"Non-wind",{"$f":"IFERROR(INDEX($E$5:$E$32,MATCH(raw_resource_build!$E1864,Lists!$B$5:$B$32,0)),\"Non-CAISO\")","v":"Non-CAISO"}]
[null,null,null,null,null,null,null,null,null,null,null,null,null,{"$f":"raw_resource_build!B1865","v":0},"Non-wind",{"$f":"IFERROR(INDEX($E$5:$E$32,MATCH(raw_resource_build!$E1865,Lists!$B$5:$B$32,0)),\"Non-CAISO\")","v":"Non-CAISO"}]
[null,null,null,null,null,null,null,null,null,null,null,null,null,{"$f":"raw_resource_build!B1866","v":0},"Non-wind",{"$f":"IFERROR(INDEX($E$5:$E$32,MATCH(raw_resource_build!$E1866,Lists!$B$5:$B$32,0)),\"Non-CAISO\")","v":"Non-CAISO"}]
[null,null,null,null,null,null,null,null,null,null,null,null,null,{"$f":"raw_resource_build!B1867","v":0},"Non-wind",{"$f":"IFERROR(INDEX($E$5:$E$32,MATCH(raw_resource_build!$E1867,Lists!$B$5:$B$32,0)),\"Non-CAISO\")","v":"Non-CAISO"}]
[null,null,null,null,null,null,null,null,null,null,null,null,null,{"$f":"raw_resource_build!B1868","v":0},"Non-wind",{"$f":"IFERROR(INDEX($E$5:$E$32,MATCH(raw_resource_build!$E1868,Lists!$B$5:$B$32,0)),\"Non-CAISO\")","v":"Non-CAISO"}]
[null,null,null,null,null,null,null,null,null,null,null,null,null,{"$f":"raw_resource_build!B1869","v":0},"Non-wind",{"$f":"IFERROR(INDEX($E$5:$E$32,MATCH(raw_resource_build!$E1869,Lists!$B$5:$B$32,0)),\"Non-CAISO\")","v":"Non-CAISO"}]
[null,null,null,null,null,null,null,null,null,null,null,null,null,{"$f":"raw_resource_build!B1870","v":0},"Non-wind",{"$f":"IFERROR(INDEX($E$5:$E$32,MATCH(raw_resource_build!$E1870,Lists!$B$5:$B$32,0)),\"Non-CAISO\")","v":"Non-CAISO"}]
[null,null,null,null,null,null,null,null,null,null,null,null,null,{"$f":"raw_resource_build!B1871","v":0},"Non-wind",{"$f":"IFERROR(INDEX($E$5:$E$32,MATCH(raw_resource_build!$E1871,Lists!$B$5:$B$32,0)),\"Non-CAISO\")","v":"Non-CAISO"}]
[null,null,null,null,null,null,null,null,null,null,null,null,null,{"$f":"raw_resource_build!B1872","v":0},"Non-wind",{"$f":"IFERROR(INDEX($E$5:$E$32,MATCH(raw_resource_build!$E1872,Lists!$B$5:$B$32,0)),\"Non-CAISO\")","v":"Non-CAISO"}]
[null,null,null,null,null,null,null,null,null,null,null,null,null,{"$f":"raw_resource_build!B1873","v":0},"Non-wind",{"$f":"IFERROR(INDEX($E$5:$E$32,MATCH(raw_resource_build!$E1873,Lists!$B$5:$B$32,0)),\"Non-CAISO\")","v":"Non-CAISO"}]
[null,null,null,null,null,null,null,null,null,null,null,null,null,{"$f":"raw_resource_build!B1874","v":0},"Non-wind",{"$f":"IFERROR(INDEX($E$5:$E$32,MATCH(raw_resource_build!$E1874,Lists!$B$5:$B$32,0)),\"Non-CAISO\")","v":"Non-CAISO"}]
[null,null,null,null,null,null,null,null,null,null,null,null,null,{"$f":"raw_resource_build!B1875","v":0},"Non-wind",{"$f":"IFERROR(INDEX($E$5:$E$32,MATCH(raw_resource_build!$E1875,Lists!$B$5:$B$32,0)),\"Non-CAISO\")","v":"Non-CAISO"}]
[null,null,null,null,null,null,null,null,null,null,null,null,null,{"$f":"raw_resource_build!B1876","v":0},"Non-wind",{"$f":"IFERROR(INDEX($E$5:$E$32,MATCH(raw_resource_build!$E1876,Lists!$B$5:$B$32,0)),\"Non-CAISO\")","v":"Non-CAISO"}]
[null,null,null,null,null,null,null,null,null,null,null,null,null,{"$f":"raw_resource_build!B1877","v":0},"Non-wind",{"$f":"IFERROR(INDEX($E$5:$E$32,MATCH(raw_resource_build!$E1877,Lists!$B$5:$B$32,0)),\"Non-CAISO\")","v":"Non-CAISO"}]
[null,null,null,null,null,null,null,null,null,null,null,null,null,{"$f":"raw_resource_build!B1878","v":0},"Non-wind",{"$f":"IFERROR(INDEX($E$5:$E$32,MATCH(raw_resource_build!$E1878,Lists!$B$5:$B$32,0)),\"Non-CAISO\")","v":"Non-CAISO"}]
[null,null,null,null,null,null,null,null,null,null,null,null,null,{"$f":"raw_resource_build!B1879","v":0},"Non-wind",{"$f":"IFERROR(INDEX($E$5:$E$32,MATCH(raw_resource_build!$E1879,Lists!$B$5:$B$32,0)),\"Non-CAISO\")","v":"Non-CAISO"}]
[null,null,null,null,null,null,null,null,null,null,null,null,null,{"$f":"raw_resource_build!B1880","v":0},"Non-wind",{"$f":"IFERROR(INDEX($E$5:$E$32,MATCH(raw_resource_build!$E1880,Lists!$B$5:$B$32,0)),\"Non-CAISO\")","v":"Non-CAISO"}]
[null,null,null,null,null,null,null,null,null,null,null,null,null,{"$f":"raw_resource_build!B1881","v":0},"Non-wind",{"$f":"IFERROR(INDEX($E$5:$E$32,MATCH(raw_resource_build!$E1881,Lists!$B$5:$B$32,0)),\"Non-CAISO\")","v":"Non-CAISO"}]
[null,null,null,null,null,null,null,null,null,null,null,null,null,{"$f":"raw_resource_build!B1882","v":0},"Non-wind",{"$f":"IFERROR(INDEX($E$5:$E$32,MATCH(raw_resource_build!$E1882,Lists!$B$5:$B$32,0)),\"Non-CAISO\")","v":"Non-CAISO"}]
[null,null,null,null,null,null,null,null,null,null,null,null,null,{"$f":"raw_resource_build!B1883","v":0},"Non-wind",{"$f":"IFERROR(INDEX($E$5:$E$32,MATCH(raw_resource_build!$E1883,Lists!$B$5:$B$32,0)),\"Non-CAISO\")","v":"Non-CAISO"}]
[null,null,null,null,null,null,null,null,null,null,null,null,null,{"$f":"raw_resource_build!B1884","v":0},"Non-wind",{"$f":"IFERROR(INDEX($E$5:$E$32,MATCH(raw_resource_build!$E1884,Lists!$B$5:$B$32,0)),\"Non-CAISO\")","v":"Non-CAISO"}]
[null,null,null,null,null,null,null,null,null,null,null,null,null,{"$f":"raw_resource_build!B1885","v":0},"Non-wind",{"$f":"IFERROR(INDEX($E$5:$E$32,MATCH(raw_resource_build!$E1885,Lists!$B$5:$B$32,0)),\"Non-CAISO\")","v":"Non-CAISO"}]
[null,null,null,null,null,null,null,null,null,null,null,null,null,{"$f":"raw_resource_build!B1886","v":0},"Non-wind",{"$f":"IFERROR(INDEX($E$5:$E$32,MATCH(raw_resource_build!$E1886,Lists!$B$5:$B$32,0)),\"Non-CAISO\")","v":"Non-CAISO"}]
[null,null,null,null,null,null,null,null,null,null,null,null,null,{"$f":"raw_resource_build!B1887","v":0},"Non-wind",{"$f":"IFERROR(INDEX($E$5:$E$32,MATCH(raw_resource_build!$E1887,Lists!$B$5:$B$32,0)),\"Non-CAISO\")","v":"Non-CAISO"}]
[null,null,null,null,null,null,null,null,null,null,null,null,null,{"$f":"raw_resource_build!B1888","v":0},"Non-wind",{"$f":"IFERROR(INDEX($E$5:$E$32,MATCH(raw_resource_build!$E1888,Lists!$B$5:$B$32,0)),\"Non-CAISO\")","v":"Non-CAISO"}]
[null,null,null,null,null,null,null,null,null,null,null,null,null,{"$f":"raw_resource_build!B1889","v":0},"Non-wind",{"$f":"IFERROR(INDEX($E$5:$E$32,MATCH(raw_resource_build!$E1889,Lists!$B$5:$B$32,0)),\"Non-CAISO\")","v":"Non-CAISO"}]
[null,null,null,null,null,null,null,null,null,null,null,null,null,{"$f":"raw_resource_build!B1890","v":0},"Non-wind",{"$f":"IFERROR(INDEX($E$5:$E$32,MATCH(raw_resource_build!$E1890,Lists!$B$5:$B$32,0)),\"Non-CAISO\")","v":"Non-CAISO"}]
[null,null,null,null,null,null,null,null,null,null,null,null,null,{"$f":"raw_resource_build!B1891","v":0},"Non-wind",{"$f":"IFERROR(INDEX($E$5:$E$32,MATCH(raw_resource_build!$E1891,Lists!$B$5:$B$32,0)),\"Non-CAISO\")","v":"Non-CAISO"}]
[null,null,null,null,null,null,null,null,null,null,null,null,null,{"$f":"raw_resource_build!B1892","v":0},"Non-wind",{"$f":"IFERROR(INDEX($E$5:$E$32,MATCH(raw_resource_build!$E1892,Lists!$B$5:$B$32,0)),\"Non-CAISO\")","v":"Non-CAISO"}]
[null,null,null,null,null,null,null,null,null,null,null,null,null,{"$f":"raw_resource_build!B1893","v":0},"Non-wind",{"$f":"IFERROR(INDEX($E$5:$E$32,MATCH(raw_resource_build!$E1893,Lists!$B$5:$B$32,0)),\"Non-CAISO\")","v":"Non-CAISO"}]
[null,null,null,null,null,null,null,null,null,null,null,null,null,{"$f":"raw_resource_build!B1894","v":0},"Non-wind",{"$f":"IFERROR(INDEX($E$5:$E$32,MATCH(raw_resource_build!$E1894,Lists!$B$5:$B$32,0)),\"Non-CAISO\")","v":"Non-CAISO"}]
[null,null,null,null,null,null,null,null,null,null,null,null,null,{"$f":"raw_resource_build!B1895","v":0},"Non-wind",{"$f":"IFERROR(INDEX($E$5:$E$32,MATCH(raw_resource_build!$E1895,Lists!$B$5:$B$32,0)),\"Non-CAISO\")","v":"Non-CAISO"}]
[null,null,null,null,null,null,null,null,null,null,null,null,null,{"$f":"raw_resource_build!B1896","v":0},"Non-wind",{"$f":"IFERROR(INDEX($E$5:$E$32,MATCH(raw_resource_build!$E1896,Lists!$B$5:$B$32,0)),\"Non-CAISO\")","v":"Non-CAISO"}]
[null,null,null,null,null,null,null,null,null,null,null,null,null,{"$f":"raw_resource_build!B1897","v":0},"Non-wind",{"$f":"IFERROR(INDEX($E$5:$E$32,MATCH(raw_resource_build!$E1897,Lists!$B$5:$B$32,0)),\"Non-CAISO\")","v":"Non-CAISO"}]
[null,null,null,null,null,null,null,null,null,null,null,null,null,{"$f":"raw_resource_build!B1898","v":0},"Non-wind",{"$f":"IFERROR(INDEX($E$5:$E$32,MATCH(raw_resource_build!$E1898,Lists!$B$5:$B$32,0)),\"Non-CAISO\")","v":"Non-CAISO"}]
[null,null,null,null,null,null,null,null,null,null,null,null,null,{"$f":"raw_resource_build!B1899","v":0},"Non-wind",{"$f":"IFERROR(INDEX($E$5:$E$32,MATCH(raw_resource_build!$E1899,Lists!$B$5:$B$32,0)),\"Non-CAISO\")","v":"Non-CAISO"}]
[null,null,null,null,null,null,null,null,null,null,null,null,null,{"$f":"raw_resource_build!B1900","v":0},"Non-wind",{"$f":"IFERROR(INDEX($E$5:$E$32,MATCH(raw_resource_build!$E1900,Lists!$B$5:$B$32,0)),\"Non-CAISO\")","v":"Non-CAISO"}]
[null,null,null,null,null,null,null,null,null,null,null,null,null,{"$f":"raw_resource_build!B1901","v":0},"Non-wind",{"$f":"IFERROR(INDEX($E$5:$E$32,MATCH(raw_resource_build!$E1901,Lists!$B$5:$B$32,0)),\"Non-CAISO\")","v":"Non-CAISO"}]
[null,null,null,null,null,null,null,null,null,null,null,null,null,{"$f":"raw_resource_build!B1902","v":0},"Non-wind",{"$f":"IFERROR(INDEX($E$5:$E$32,MATCH(raw_resource_build!$E1902,Lists!$B$5:$B$32,0)),\"Non-CAISO\")","v":"Non-CAISO"}]
[null,null,null,null,null,null,null,null,null,null,null,null,null,{"$f":"raw_resource_build!B1903","v":0},"Non-wind",{"$f":"IFERROR(INDEX($E$5:$E$32,MATCH(raw_resource_build!$E1903,Lists!$B$5:$B$32,0)),\"Non-CAISO\")","v":"Non-CAISO"}]
[null,null,null,null,null,null,null,null,null,null,null,null,null,{"$f":"raw_resource_build!B1904","v":0},"Non-wind",{"$f":"IFERROR(INDEX($E$5:$E$32,MATCH(raw_resource_build!$E1904,Lists!$B$5:$B$32,0)),\"Non-CAISO\")","v":"Non-CAISO"}]
[null,null,null,null,null,null,null,null,null,null,null,null,null,{"$f":"raw_resource_build!B1905","v":0},"Non-wind",{"$f":"IFERROR(INDEX($E$5:$E$32,MATCH(raw_resource_build!$E1905,Lists!$B$5:$B$32,0)),\"Non-CAISO\")","v":"Non-CAISO"}]
[null,null,null,null,null,null,null,null,null,null,null,null,null,{"$f":"raw_resource_build!B1906","v":0},"Non-wind",{"$f":"IFERROR(INDEX($E$5:$E$32,MATCH(raw_resource_build!$E1906,Lists!$B$5:$B$32,0)),\"Non-CAISO\")","v":"Non-CAISO"}]
[null,null,null,null,null,null,null,null,null,null,null,null,null,{"$f":"raw_resource_build!B1907","v":0},"Non-wind",{"$f":"IFERROR(INDEX($E$5:$E$32,MATCH(raw_resource_build!$E1907,Lists!$B$5:$B$32,0)),\"Non-CAISO\")","v":"Non-CAISO"}]
[null,null,null,null,null,null,null,null,null,null,null,null,null,{"$f":"raw_resource_build!B1908","v":0},"Non-wind",{"$f":"IFERROR(INDEX($E$5:$E$32,MATCH(raw_resource_build!$E1908,Lists!$B$5:$B$32,0)),\"Non-CAISO\")","v":"Non-CAISO"}]
[null,null,null,null,null,null,null,null,null,null,null,null,null,{"$f":"raw_resource_build!B1909","v":0},"Non-wind",{"$f":"IFERROR(INDEX($E$5:$E$32,MATCH(raw_resource_build!$E1909,Lists!$B$5:$B$32,0)),\"Non-CAISO\")","v":"Non-CAISO"}]
[null,null,null,null,null,null,null,null,null,null,null,null,null,{"$f":"raw_resource_build!B1910","v":0},"Non-wind",{"$f":"IFERROR(INDEX($E$5:$E$32,MATCH(raw_resource_build!$E1910,Lists!$B$5:$B$32,0)),\"Non-CAISO\")","v":"Non-CAISO"}]
[null,null,null,null,null,null,null,null,null,null,null,null,null,{"$f":"raw_resource_build!B1911","v":0},"Non-wind",{"$f":"IFERROR(INDEX($E$5:$E$32,MATCH(raw_resource_build!$E1911,Lists!$B$5:$B$32,0)),\"Non-CAISO\")","v":"Non-CAISO"}]
[null,null,null,null,null,null,null,null,null,null,null,null,null,{"$f":"raw_resource_build!B1912","v":0},"Non-wind",{"$f":"IFERROR(INDEX($E$5:$E$32,MATCH(raw_resource_build!$E1912,Lists!$B$5:$B$32,0)),\"Non-CAISO\")","v":"Non-CAISO"}]
[null,null,null,null,null,null,null,null,null,null,null,null,null,{"$f":"raw_resource_build!B1913","v":0},"Non-wind",{"$f":"IFERROR(INDEX($E$5:$E$32,MATCH(raw_resource_build!$E1913,Lists!$B$5:$B$32,0)),\"Non-CAISO\")","v":"Non-CAISO"}]
[null,null,null,null,null,null,null,null,null,null,null,null,null,{"$f":"raw_resource_build!B1914","v":0},"Non-wind",{"$f":"IFERROR(INDEX($E$5:$E$32,MATCH(raw_resource_build!$E1914,Lists!$B$5:$B$32,0)),\"Non-CAISO\")","v":"Non-CAISO"}]
[null,null,null,null,null,null,null,null,null,null,null,null,null,{"$f":"raw_resource_build!B1915","v":0},"Non-wind",{"$f":"IFERROR(INDEX($E$5:$E$32,MATCH(raw_resource_build!$E1915,Lists!$B$5:$B$32,0)),\"Non-CAISO\")","v":"Non-CAISO"}]
[null,null,null,null,null,null,null,null,null,null,null,null,null,{"$f":"raw_resource_build!B1916","v":0},"Non-wind",{"$f":"IFERROR(INDEX($E$5:$E$32,MATCH(raw_resource_build!$E1916,Lists!$B$5:$B$32,0)),\"Non-CAISO\")","v":"Non-CAISO"}]
[null,null,null,null,null,null,null,null,null,null,null,null,null,{"$f":"raw_resource_build!B1917","v":0},"Non-wind",{"$f":"IFERROR(INDEX($E$5:$E$32,MATCH(raw_resource_build!$E1917,Lists!$B$5:$B$32,0)),\"Non-CAISO\")","v":"Non-CAISO"}]
[null,null,null,null,null,null,null,null,null,null,null,null,null,{"$f":"raw_resource_build!B1918","v":0},"Non-wind",{"$f":"IFERROR(INDEX($E$5:$E$32,MATCH(raw_resource_build!$E1918,Lists!$B$5:$B$32,0)),\"Non-CAISO\")","v":"Non-CAISO"}]
[null,null,null,null,null,null,null,null,null,null,null,null,null,{"$f":"raw_resource_build!B1919","v":0},"Non-wind",{"$f":"IFERROR(INDEX($E$5:$E$32,MATCH(raw_resource_build!$E1919,Lists!$B$5:$B$32,0)),\"Non-CAISO\")","v":"Non-CAISO"}]
[null,null,null,null,null,null,null,null,null,null,null,null,null,{"$f":"raw_resource_build!B1920","v":0},"Non-wind",{"$f":"IFERROR(INDEX($E$5:$E$32,MATCH(raw_resource_build!$E1920,Lists!$B$5:$B$32,0)),\"Non-CAISO\")","v":"Non-CAISO"}]
[null,null,null,null,null,null,null,null,null,null,null,null,null,{"$f":"raw_resource_build!B1921","v":0},"Non-wind",{"$f":"IFERROR(INDEX($E$5:$E$32,MATCH(raw_resource_build!$E1921,Lists!$B$5:$B$32,0)),\"Non-CAISO\")","v":"Non-CAISO"}]
[null,null,null,null,null,null,null,null,null,null,null,null,null,{"$f":"raw_resource_build!B1922","v":0},"Non-wind",{"$f":"IFERROR(INDEX($E$5:$E$32,MATCH(raw_resource_build!$E1922,Lists!$B$5:$B$32,0)),\"Non-CAISO\")","v":"Non-CAISO"}]
[null,null,null,null,null,null,null,null,null,null,null,null,null,{"$f":"raw_resource_build!B1923","v":0},"Non-wind",{"$f":"IFERROR(INDEX($E$5:$E$32,MATCH(raw_resource_build!$E1923,Lists!$B$5:$B$32,0)),\"Non-CAISO\")","v":"Non-CAISO"}]
[null,null,null,null,null,null,null,null,null,null,null,null,null,{"$f":"raw_resource_build!B1924","v":0},"Non-wind",{"$f":"IFERROR(INDEX($E$5:$E$32,MATCH(raw_resource_build!$E1924,Lists!$B$5:$B$32,0)),\"Non-CAISO\")","v":"Non-CAISO"}]
[null,null,null,null,null,null,null,null,null,null,null,null,null,{"$f":"raw_resource_build!B1925","v":0},{"$f":"IFERROR(INDEX($C$35:$C$99,MATCH($N1925,$B$35:$B$99,0)),\"Non-wind\")","v":"Non-wind"},{"$f":"IFERROR(INDEX($E$5:$E$32,MATCH(raw_resource_build!$E1925,Lists!$B$5:$B$32,0)),\"Non-CAISO\")","v":"Non-CAISO"}]
[null,null,null,null,null,null,null,null,null,null,null,null,null,{"$f":"raw_resource_build!B1926","v":0},"Non-wind",{"$f":"IFERROR(INDEX($E$5:$E$32,MATCH(raw_resource_build!$E1926,Lists!$B$5:$B$32,0)),\"Non-CAISO\")","v":"Non-CAISO"}]
[null,null,null,null,null,null,null,null,null,null,null,null,null,{"$f":"raw_resource_build!B1927","v":0},"Non-wind",{"$f":"IFERROR(INDEX($E$5:$E$32,MATCH(raw_resource_build!$E1927,Lists!$B$5:$B$32,0)),\"Non-CAISO\")","v":"Non-CAISO"}]
[null,null,null,null,null,null,null,null,null,null,null,null,null,{"$f":"raw_resource_build!B1928","v":0},"Non-wind",{"$f":"IFERROR(INDEX($E$5:$E$32,MATCH(raw_resource_build!$E1928,Lists!$B$5:$B$32,0)),\"Non-CAISO\")","v":"Non-CAISO"}]
[null,null,null,null,null,null,null,null,null,null,null,null,null,{"$f":"raw_resource_build!B1929","v":0},"Non-wind",{"$f":"IFERROR(INDEX($E$5:$E$32,MATCH(raw_resource_build!$E1929,Lists!$B$5:$B$32,0)),\"Non-CAISO\")","v":"Non-CAISO"}]
[null,null,null,null,null,null,null,null,null,null,null,null,null,{"$f":"raw_resource_build!B1930","v":0},"Non-wind",{"$f":"IFERROR(INDEX($E$5:$E$32,MATCH(raw_resource_build!$E1930,Lists!$B$5:$B$32,0)),\"Non-CAISO\")","v":"Non-CAISO"}]
[null,null,null,null,null,null,null,null,null,null,null,null,null,{"$f":"raw_resource_build!B1931","v":0},"Non-wind",{"$f":"IFERROR(INDEX($E$5:$E$32,MATCH(raw_resource_build!$E1931,Lists!$B$5:$B$32,0)),\"Non-CAISO\")","v":"Non-CAISO"}]
[null,null,null,null,null,null,null,null,null,null,null,null,null,{"$f":"raw_resource_build!B1932","v":0},"Non-wind",{"$f":"IFERROR(INDEX($E$5:$E$32,MATCH(raw_resource_build!$E1932,Lists!$B$5:$B$32,0)),\"Non-CAISO\")","v":"Non-CAISO"}]
[null,null,null,null,null,null,null,null,null,null,null,null,null,{"$f":"raw_resource_build!B1933","v":0},"Non-wind",{"$f":"IFERROR(INDEX($E$5:$E$32,MATCH(raw_resource_build!$E1933,Lists!$B$5:$B$32,0)),\"Non-CAISO\")","v":"Non-CAISO"}]
[null,null,null,null,null,null,null,null,null,null,null,null,null,{"$f":"raw_resource_build!B1934","v":0},"Non-wind",{"$f":"IFERROR(INDEX($E$5:$E$32,MATCH(raw_resource_build!$E1934,Lists!$B$5:$B$32,0)),\"Non-CAISO\")","v":"Non-CAISO"}]
[null,null,null,null,null,null,null,null,null,null,null,null,null,{"$f":"raw_resource_build!B1935","v":0},"Non-wind",{"$f":"IFERROR(INDEX($E$5:$E$32,MATCH(raw_resource_build!$E1935,Lists!$B$5:$B$32,0)),\"Non-CAISO\")","v":"Non-CAISO"}]
[null,null,null,null,null,null,null,null,null,null,null,null,null,{"$f":"raw_resource_build!B1936","v":0},"Non-wind",{"$f":"IFERROR(INDEX($E$5:$E$32,MATCH(raw_resource_build!$E1936,Lists!$B$5:$B$32,0)),\"Non-CAISO\")","v":"Non-CAISO"}]
[null,null,null,null,null,null,null,null,null,null,null,null,null,{"$f":"raw_resource_build!B1937","v":0},"Non-wind",{"$f":"IFERROR(INDEX($E$5:$E$32,MATCH(raw_resource_build!$E1937,Lists!$B$5:$B$32,0)),\"Non-CAISO\")","v":"Non-CAISO"}]
[null,null,null,null,null,null,null,null,null,null,null,null,null,{"$f":"raw_resource_build!B1938","v":0},"Non-wind",{"$f":"IFERROR(INDEX($E$5:$E$32,MATCH(raw_resource_build!$E1938,Lists!$B$5:$B$32,0)),\"Non-CAISO\")","v":"Non-CAISO"}]
[null,null,null,null,null,null,null,null,null,null,null,null,null,{"$f":"raw_resource_build!B1939","v":0},"Non-wind",{"$f":"IFERROR(INDEX($E$5:$E$32,MATCH(raw_resource_build!$E1939,Lists!$B$5:$B$32,0)),\"Non-CAISO\")","v":"Non-CAISO"}]
[null,null,null,null,null,null,null,null,null,null,null,null,null,{"$f":"raw_resource_build!B1940","v":0},"Non-wind",{"$f":"IFERROR(INDEX($E$5:$E$32,MATCH(raw_resource_build!$E1940,Lists!$B$5:$B$32,0)),\"Non-CAISO\")","v":"Non-CAISO"}]
[null,null,null,null,null,null,null,null,null,null,null,null,null,{"$f":"raw_resource_build!B1941","v":0},"Non-wind",{"$f":"IFERROR(INDEX($E$5:$E$32,MATCH(raw_resource_build!$E1941,Lists!$B$5:$B$32,0)),\"Non-CAISO\")","v":"Non-CAISO"}]
[null,null,null,null,null,null,null,null,null,null,null,null,null,{"$f":"raw_resource_build!B1942","v":0},"Non-wind",{"$f":"IFERROR(INDEX($E$5:$E$32,MATCH(raw_resource_build!$E1942,Lists!$B$5:$B$32,0)),\"Non-CAISO\")","v":"Non-CAISO"}]
[null,null,null,null,null,null,null,null,null,null,null,null,null,{"$f":"raw_resource_build!B1943","v":0},"Non-wind",{"$f":"IFERROR(INDEX($E$5:$E$32,MATCH(raw_resource_build!$E1943,Lists!$B$5:$B$32,0)),\"Non-CAISO\")","v":"Non-CAISO"}]
[null,null,null,null,null,null,null,null,null,null,null,null,null,{"$f":"raw_resource_build!B1944","v":0},"Non-wind",{"$f":"IFERROR(INDEX($E$5:$E$32,MATCH(raw_resource_build!$E1944,Lists!$B$5:$B$32,0)),\"Non-CAISO\")","v":"Non-CAISO"}]
[null,null,null,null,null,null,null,null,null,null,null,null,null,{"$f":"raw_resource_build!B1945","v":0},"Non-wind",{"$f":"IFERROR(INDEX($E$5:$E$32,MATCH(raw_resource_build!$E1945,Lists!$B$5:$B$32,0)),\"Non-CAISO\")","v":"Non-CAISO"}]
[null,null,null,null,null,null,null,null,null,null,null,null,null,{"$f":"raw_resource_build!B1946","v":0},"Non-wind",{"$f":"IFERROR(INDEX($E$5:$E$32,MATCH(raw_resource_build!$E1946,Lists!$B$5:$B$32,0)),\"Non-CAISO\")","v":"Non-CAISO"}]
[null,null,null,null,null,null,null,null,null,null,null,null,null,{"$f":"raw_resource_build!B1947","v":0},"Non-wind",{"$f":"IFERROR(INDEX($E$5:$E$32,MATCH(raw_resource_build!$E1947,Lists!$B$5:$B$32,0)),\"Non-CAISO\")","v":"Non-CAISO"}]
[null,null,null,null,null,null,null,null,null,null,null,null,null,{"$f":"raw_resource_build!B1948","v":0},"Non-wind",{"$f":"IFERROR(INDEX($E$5:$E$32,MATCH(raw_resource_build!$E1948,Lists!$B$5:$B$32,0)),\"Non-CAISO\")","v":"Non-CAISO"}]
[null,null,null,null,null,null,null,null,null,null,null,null,null,{"$f":"raw_resource_build!B1949","v":0},"Non-wind",{"$f":"IFERROR(INDEX($E$5:$E$32,MATCH(raw_resource_build!$E1949,Lists!$B$5:$B$32,0)),\"Non-CAISO\")","v":"Non-CAISO"}]
[null,null,null,null,null,null,null,null,null,null,null,null,null,{"$f":"raw_resource_build!B1950","v":0},"Non-wind",{"$f":"IFERROR(INDEX($E$5:$E$32,MATCH(raw_resource_build!$E1950,Lists!$B$5:$B$32,0)),\"Non-CAISO\")","v":"Non-CAISO"}]
[null,null,null,null,null,null,null,null,null,null,null,null,null,{"$f":"raw_resource_build!B1951","v":0},"Non-wind",{"$f":"IFERROR(INDEX($E$5:$E$32,MATCH(raw_resource_build!$E1951,Lists!$B$5:$B$32,0)),\"Non-CAISO\")","v":"Non-CAISO"}]
[null,null,null,null,null,null,null,null,null,null,null,null,null,{"$f":"raw_resource_build!B1952","v":0},"Non-wind",{"$f":"IFERROR(INDEX($E$5:$E$32,MATCH(raw_resource_build!$E1952,Lists!$B$5:$B$32,0)),\"Non-CAISO\")","v":"Non-CAISO"}]
[null,null,null,null,null,null,null,null,null,null,null,null,null,{"$f":"raw_resource_build!B1953","v":0},"Non-wind",{"$f":"IFERROR(INDEX($E$5:$E$32,MATCH(raw_resource_build!$E1953,Lists!$B$5:$B$32,0)),\"Non-CAISO\")","v":"Non-CAISO"}]
[null,null,null,null,null,null,null,null,null,null,null,null,null,{"$f":"raw_resource_build!B1954","v":0},"Non-wind",{"$f":"IFERROR(INDEX($E$5:$E$32,MATCH(raw_resource_build!$E1954,Lists!$B$5:$B$32,0)),\"Non-CAISO\")","v":"Non-CAISO"}]
[null,null,null,null,null,null,null,null,null,null,null,null,null,{"$f":"raw_resource_build!B1955","v":0},"Non-wind",{"$f":"IFERROR(INDEX($E$5:$E$32,MATCH(raw_resource_build!$E1955,Lists!$B$5:$B$32,0)),\"Non-CAISO\")","v":"Non-CAISO"}]
[null,null,null,null,null,null,null,null,null,null,null,null,null,{"$f":"raw_resource_build!B1956","v":0},"Non-wind",{"$f":"IFERROR(INDEX($E$5:$E$32,MATCH(raw_resource_build!$E1956,Lists!$B$5:$B$32,0)),\"Non-CAISO\")","v":"Non-CAISO"}]
[null,null,null,null,null,null,null,null,null,null,null,null,null,{"$f":"raw_resource_build!B1957","v":0},"Non-wind",{"$f":"IFERROR(INDEX($E$5:$E$32,MATCH(raw_resource_build!$E1957,Lists!$B$5:$B$32,0)),\"Non-CAISO\")","v":"Non-CAISO"}]
[null,null,null,null,null,null,null,null,null,null,null,null,null,{"$f":"raw_resource_build!B1958","v":0},"Non-wind",{"$f":"IFERROR(INDEX($E$5:$E$32,MATCH(raw_resource_build!$E1958,Lists!$B$5:$B$32,0)),\"Non-CAISO\")","v":"Non-CAISO"}]
[null,null,null,null,null,null,null,null,null,null,null,null,null,{"$f":"raw_resource_build!B1959","v":0},"Non-wind",{"$f":"IFERROR(INDEX($E$5:$E$32,MATCH(raw_resource_build!$E1959,Lists!$B$5:$B$32,0)),\"Non-CAISO\")","v":"Non-CAISO"}]
[null,null,null,null,null,null,null,null,null,null,null,null,null,{"$f":"raw_resource_build!B1960","v":0},"Non-wind",{"$f":"IFERROR(INDEX($E$5:$E$32,MATCH(raw_resource_build!$E1960,Lists!$B$5:$B$32,0)),\"Non-CAISO\")","v":"Non-CAISO"}]
[null,null,null,null,null,null,null,null,null,null,null,null,null,{"$f":"raw_resource_build!B1961","v":0},"Non-wind",{"$f":"IFERROR(INDEX($E$5:$E$32,MATCH(raw_resource_build!$E1961,Lists!$B$5:$B$32,0)),\"Non-CAISO\")","v":"Non-CAISO"}]
[null,null,null,null,null,null,null,null,null,null,null,null,null,{"$f":"raw_resource_build!B1962","v":0},"Non-wind",{"$f":"IFERROR(INDEX($E$5:$E$32,MATCH(raw_resource_build!$E1962,Lists!$B$5:$B$32,0)),\"Non-CAISO\")","v":"Non-CAISO"}]
[null,null,null,null,null,null,null,null,null,null,null,null,null,{"$f":"raw_resource_build!B1963","v":0},"Non-wind",{"$f":"IFERROR(INDEX($E$5:$E$32,MATCH(raw_resource_build!$E1963,Lists!$B$5:$B$32,0)),\"Non-CAISO\")","v":"Non-CAISO"}]
[null,null,null,null,null,null,null,null,null,null,null,null,null,{"$f":"raw_resource_build!B1964","v":0},"Non-wind",{"$f":"IFERROR(INDEX($E$5:$E$32,MATCH(raw_resource_build!$E1964,Lists!$B$5:$B$32,0)),\"Non-CAISO\")","v":"Non-CAISO"}]
[null,null,null,null,null,null,null,null,null,null,null,null,null,{"$f":"raw_resource_build!B1965","v":0},"Non-wind",{"$f":"IFERROR(INDEX($E$5:$E$32,MATCH(raw_resource_build!$E1965,Lists!$B$5:$B$32,0)),\"Non-CAISO\")","v":"Non-CAISO"}]
[null,null,null,null,null,null,null,null,null,null,null,null,null,{"$f":"raw_resource_build!B1966","v":0},"Non-wind",{"$f":"IFERROR(INDEX($E$5:$E$32,MATCH(raw_resource_build!$E1966,Lists!$B$5:$B$32,0)),\"Non-CAISO\")","v":"Non-CAISO"}]
[null,null,null,null,null,null,null,null,null,null,null,null,null,{"$f":"raw_resource_build!B1967","v":0},"Non-wind",{"$f":"IFERROR(INDEX($E$5:$E$32,MATCH(raw_resource_build!$E1967,Lists!$B$5:$B$32,0)),\"Non-CAISO\")","v":"Non-CAISO"}]
[null,null,null,null,null,null,null,null,null,null,null,null,null,{"$f":"raw_resource_build!B1968","v":0},"Non-wind",{"$f":"IFERROR(INDEX($E$5:$E$32,MATCH(raw_resource_build!$E1968,Lists!$B$5:$B$32,0)),\"Non-CAISO\")","v":"Non-CAISO"}]
[null,null,null,null,null,null,null,null,null,null,null,null,null,{"$f":"raw_resource_build!B1969","v":0},"Non-wind",{"$f":"IFERROR(INDEX($E$5:$E$32,MATCH(raw_resource_build!$E1969,Lists!$B$5:$B$32,0)),\"Non-CAISO\")","v":"Non-CAISO"}]
[null,null,null,null,null,null,null,null,null,null,null,null,null,{"$f":"raw_resource_build!B1970","v":0},"Non-wind",{"$f":"IFERROR(INDEX($E$5:$E$32,MATCH(raw_resource_build!$E1970,Lists!$B$5:$B$32,0)),\"Non-CAISO\")","v":"Non-CAISO"}]
[null,null,null,null,null,null,null,null,null,null,null,null,null,{"$f":"raw_resource_build!B1971","v":0},"Non-wind",{"$f":"IFERROR(INDEX($E$5:$E$32,MATCH(raw_resource_build!$E1971,Lists!$B$5:$B$32,0)),\"Non-CAISO\")","v":"Non-CAISO"}]
[null,null,null,null,null,null,null,null,null,null,null,null,null,{"$f":"raw_resource_build!B1972","v":0},"Non-wind",{"$f":"IFERROR(INDEX($E$5:$E$32,MATCH(raw_resource_build!$E1972,Lists!$B$5:$B$32,0)),\"Non-CAISO\")","v":"Non-CAISO"}]
[null,null,null,null,null,null,null,null,null,null,null,null,null,{"$f":"raw_resource_build!B1973","v":0},"Non-wind",{"$f":"IFERROR(INDEX($E$5:$E$32,MATCH(raw_resource_build!$E1973,Lists!$B$5:$B$32,0)),\"Non-CAISO\")","v":"Non-CAISO"}]
[null,null,null,null,null,null,null,null,null,null,null,null,null,{"$f":"raw_resource_build!B1974","v":0},"Non-wind",{"$f":"IFERROR(INDEX($E$5:$E$32,MATCH(raw_resource_build!$E1974,Lists!$B$5:$B$32,0)),\"Non-CAISO\")","v":"Non-CAISO"}]
[null,null,null,null,null,null,null,null,null,null,null,null,null,{"$f":"raw_resource_build!B1975","v":0},"Non-wind",{"$f":"IFERROR(INDEX($E$5:$E$32,MATCH(raw_resource_build!$E1975,Lists!$B$5:$B$32,0)),\"Non-CAISO\")","v":"Non-CAISO"}]
[null,null,null,null,null,null,null,null,null,null,null,null,null,{"$f":"raw_resource_build!B1976","v":0},"Non-wind",{"$f":"IFERROR(INDEX($E$5:$E$32,MATCH(raw_resource_build!$E1976,Lists!$B$5:$B$32,0)),\"Non-CAISO\")","v":"Non-CAISO"}]
[null,null,null,null,null,null,null,null,null,null,null,null,null,{"$f":"raw_resource_build!B1977","v":0},"Non-wind",{"$f":"IFERROR(INDEX($E$5:$E$32,MATCH(raw_resource_build!$E1977,Lists!$B$5:$B$32,0)),\"Non-CAISO\")","v":"Non-CAISO"}]
[null,null,null,null,null,null,null,null,null,null,null,null,null,{"$f":"raw_resource_build!B1978","v":0},"Non-wind",{"$f":"IFERROR(INDEX($E$5:$E$32,MATCH(raw_resource_build!$E1978,Lists!$B$5:$B$32,0)),\"Non-CAISO\")","v":"Non-CAISO"}]
[null,null,null,null,null,null,null,null,null,null,null,null,null,{"$f":"raw_resource_build!B1979","v":0},"Non-wind",{"$f":"IFERROR(INDEX($E$5:$E$32,MATCH(raw_resource_build!$E1979,Lists!$B$5:$B$32,0)),\"Non-CAISO\")","v":"Non-CAISO"}]
[null,null,null,null,null,null,null,null,null,null,null,null,null,{"$f":"raw_resource_build!B1980","v":0},"Non-wind",{"$f":"IFERROR(INDEX($E$5:$E$32,MATCH(raw_resource_build!$E1980,Lists!$B$5:$B$32,0)),\"Non-CAISO\")","v":"Non-CAISO"}]
[null,null,null,null,null,null,null,null,null,null,null,null,null,{"$f":"raw_resource_build!B1981","v":0},"Non-wind",{"$f":"IFERROR(INDEX($E$5:$E$32,MATCH(raw_resource_build!$E1981,Lists!$B$5:$B$32,0)),\"Non-CAISO\")","v":"Non-CAISO"}]
[null,null,null,null,null,null,null,null,null,null,null,null,null,{"$f":"raw_resource_build!B1982","v":0},"Non-wind",{"$f":"IFERROR(INDEX($E$5:$E$32,MATCH(raw_resource_build!$E1982,Lists!$B$5:$B$32,0)),\"Non-CAISO\")","v":"Non-CAISO"}]
[null,null,null,null,null,null,null,null,null,null,null,null,null,{"$f":"raw_resource_build!B1983","v":0},"Non-wind",{"$f":"IFERROR(INDEX($E$5:$E$32,MATCH(raw_resource_build!$E1983,Lists!$B$5:$B$32,0)),\"Non-CAISO\")","v":"Non-CAISO"}]
[null,null,null,null,null,null,null,null,null,null,null,null,null,{"$f":"raw_resource_build!B1984","v":0},"Non-wind",{"$f":"IFERROR(INDEX($E$5:$E$32,MATCH(raw_resource_build!$E1984,Lists!$B$5:$B$32,0)),\"Non-CAISO\")","v":"Non-CAISO"}]
[null,null,null,null,null,null,null,null,null,null,null,null,null,{"$f":"raw_resource_build!B1985","v":0},"Non-wind",{"$f":"IFERROR(INDEX($E$5:$E$32,MATCH(raw_resource_build!$E1985,Lists!$B$5:$B$32,0)),\"Non-CAISO\")","v":"Non-CAISO"}]
[null,null,null,null,null,null,null,null,null,null,null,null,null,{"$f":"raw_resource_build!B1986","v":0},"Non-wind",{"$f":"IFERROR(INDEX($E$5:$E$32,MATCH(raw_resource_build!$E1986,Lists!$B$5:$B$32,0)),\"Non-CAISO\")","v":"Non-CAISO"}]
[null,null,null,null,null,null,null,null,null,null,null,null,null,{"$f":"raw_resource_build!B1987","v":0},"Non-wind",{"$f":"IFERROR(INDEX($E$5:$E$32,MATCH(raw_resource_build!$E1987,Lists!$B$5:$B$32,0)),\"Non-CAISO\")","v":"Non-CAISO"}]
[null,null,null,null,null,null,null,null,null,null,null,null,null,{"$f":"raw_resource_build!B1988","v":0},"Non-wind",{"$f":"IFERROR(INDEX($E$5:$E$32,MATCH(raw_resource_build!$E1988,Lists!$B$5:$B$32,0)),\"Non-CAISO\")","v":"Non-CAISO"}]
[null,null,null,null,null,null,null,null,null,null,null,null,null,{"$f":"raw_resource_build!B1989","v":0},{"$f":"IFERROR(INDEX($C$35:$C$99,MATCH($N1989,$B$35:$B$99,0)),\"Non-wind\")","v":"Non-wind"},{"$f":"IFERROR(INDEX($E$5:$E$32,MATCH(raw_resource_build!$E1989,Lists!$B$5:$B$32,0)),\"Non-CAISO\")","v":"Non-CAISO"}]
[null,null,null,null,null,null,null,null,null,null,null,null,null,{"$f":"raw_resource_build!B1990","v":0},"Non-wind",{"$f":"IFERROR(INDEX($E$5:$E$32,MATCH(raw_resource_build!$E1990,Lists!$B$5:$B$32,0)),\"Non-CAISO\")","v":"Non-CAISO"}]
[null,null,null,null,null,null,null,null,null,null,null,null,null,{"$f":"raw_resource_build!B1991","v":0},"Non-wind",{"$f":"IFERROR(INDEX($E$5:$E$32,MATCH(raw_resource_build!$E1991,Lists!$B$5:$B$32,0)),\"Non-CAISO\")","v":"Non-CAISO"}]
[null,null,null,null,null,null,null,null,null,null,null,null,null,{"$f":"raw_resource_build!B1992","v":0},"Non-wind",{"$f":"IFERROR(INDEX($E$5:$E$32,MATCH(raw_resource_build!$E1992,Lists!$B$5:$B$32,0)),\"Non-CAISO\")","v":"Non-CAISO"}]
[null,null,null,null,null,null,null,null,null,null,null,null,null,{"$f":"raw_resource_build!B1993","v":0},"Non-wind",{"$f":"IFERROR(INDEX($E$5:$E$32,MATCH(raw_resource_build!$E1993,Lists!$B$5:$B$32,0)),\"Non-CAISO\")","v":"Non-CAISO"}]
[null,null,null,null,null,null,null,null,null,null,null,null,null,{"$f":"raw_resource_build!B1994","v":0},"Non-wind",{"$f":"IFERROR(INDEX($E$5:$E$32,MATCH(raw_resource_build!$E1994,Lists!$B$5:$B$32,0)),\"Non-CAISO\")","v":"Non-CAISO"}]
[null,null,null,null,null,null,null,null,null,null,null,null,null,{"$f":"raw_resource_build!B1995","v":0},"Non-wind",{"$f":"IFERROR(INDEX($E$5:$E$32,MATCH(raw_resource_build!$E1995,Lists!$B$5:$B$32,0)),\"Non-CAISO\")","v":"Non-CAISO"}]
[null,null,null,null,null,null,null,null,null,null,null,null,null,{"$f":"raw_resource_build!B1996","v":0},"Non-wind",{"$f":"IFERROR(INDEX($E$5:$E$32,MATCH(raw_resource_build!$E1996,Lists!$B$5:$B$32,0)),\"Non-CAISO\")","v":"Non-CAISO"}]
[null,null,null,null,null,null,null,null,null,null,null,null,null,{"$f":"raw_resource_build!B1997","v":0},"Non-wind",{"$f":"IFERROR(INDEX($E$5:$E$32,MATCH(raw_resource_build!$E1997,Lists!$B$5:$B$32,0)),\"Non-CAISO\")","v":"Non-CAISO"}]
[null,null,null,null,null,null,null,null,null,null,null,null,null,{"$f":"raw_resource_build!B1998","v":0},"Non-wind",{"$f":"IFERROR(INDEX($E$5:$E$32,MATCH(raw_resource_build!$E1998,Lists!$B$5:$B$32,0)),\"Non-CAISO\")","v":"Non-CAISO"}]
[null,null,null,null,null,null,null,null,null,null,null,null,null,{"$f":"raw_resource_build!B1999","v":0},"Non-wind",{"$f":"IFERROR(INDEX($E$5:$E$32,MATCH(raw_resource_build!$E1999,Lists!$B$5:$B$32,0)),\"Non-CAISO\")","v":"Non-CAISO"}]
[null,null,null,null,null,null,null,null,null,null,null,null,null,{"$f":"raw_resource_build!B2000","v":0},"Non-wind",{"$f":"IFERROR(INDEX($E$5:$E$32,MATCH(raw_resource_build!$E2000,Lists!$B$5:$B$32,0)),\"Non-CAISO\")","v":"Non-CAISO"}]

{"sheet":"raw_annual_curtailment","index":4,"n_rows":98,"n_cols":6,"rows_kept":98,"cut":false,"hidden":false,"merged":[]}
[]
["zone","contract","period","scheduled_curtailment_mwh_per_year","subhourly_curtailment_mwh_per_year","curtailment_cost_$_per_year"]
["BANC","BANC",2020,0,0,0]
["BANC","BANC",2021,0,0,0]
["BANC","BANC",2022,0,0,0]
["BANC","BANC",2023,0,0,0]
["BANC","BANC",2024,0,0,0]
["BANC","BANC",2026,0,0,0]
["BANC","BANC",2030,691004.87443981995,0,41460316.532301404]
["BANC","BANC",2045,775447.98514177999,0,46526862.426949002]
["BANC","CAISO",2020,0,0,0]
["BANC","CAISO",2021,0,0,0]
["BANC","CAISO",2022,0,0,0]
["BANC","CAISO",2023,0,0,0]
["BANC","CAISO",2024,0,0,0]
["BANC","CAISO",2026,0,0,0]
["BANC","CAISO",2030,0,0,0]
["BANC","CAISO",2045,0,0,0]
["CAISO","CAISO",2020,93301.592369149497,142200.04667978,0]
["CAISO","CAISO",2021,107978.267152097,96265.521892478602,0]
["CAISO","CAISO",2022,246851.81896298,198395.82138144501,0]
["CAISO","CAISO",2023,380260.624767915,331123.04806556198,0]
["CAISO","CAISO",2024,472263.082085512,298312.31451028498,0]
["CAISO","CAISO",2026,352480.02128700598,169503.680644601,0]
["CAISO","CAISO",2030,3449240.3424409502,749698.65920530795,0]
["CAISO","CAISO",2045,51144168.909535997,3623998.8542667902,0]
["CAISO_NW_Hydro","CAISO_NW_Hydro",2020,0,0,0]
["CAISO_NW_Hydro","CAISO_NW_Hydro",2021,0,0,0]
["CAISO_NW_Hydro","CAISO_NW_Hydro",2022,0,0,0]
["CAISO_NW_Hydro","CAISO_NW_Hydro",2023,0,0,0]
["CAISO_NW_Hydro","CAISO_NW_Hydro",2024,0,0,0]
["CAISO_NW_Hydro","CAISO_NW_Hydro",2026,0,0,0]
["CAISO_NW_Hydro","CAISO_NW_Hydro",2030,0,0,0]
["CAISO_NW_Hydro","CAISO_NW_Hydro",2045,0,0,0]
["IID","CAISO",2020,441.04418202911501,0,0]
["IID","CAISO",2021,366.41218956778198,0,0]
["IID","CAISO",2022,430.33085074623602,0,0]
["IID","CAISO",2023,441.04418202911501,0,0]
["IID","CAISO",2024,1110.21006095342,0,0]
["IID","CAISO",2026,6099.8006413051598,0,0]
["IID","CAISO",2030,10864.269355156001,0,0]
["IID","CAISO",2045,10542.0756376752,0,0]
["IID","IID",2020,0,0,0]
["IID","IID",2021,0,0,0]
["IID","IID",2022,0,0,0]
["IID","IID",2023,0,0,0]
["IID","IID",2024,0,0,0]
["IID","IID",2026,0,0,0]
["IID","IID",2030,78.371721931072202,0,4703.1253336946302]
["IID","IID",2045,128.39737846107201,0,7703.9601387829298]
["LDWP","CAISO",2020,21.4718283806084,0,0]
["LDWP","CAISO",2021,23.757218612116102,0,0]
["LDWP","CAISO",2022,29.2132490462295,0,0]
["LDWP","CAISO",2023,26.178106288179698,0,0]
["LDWP","CAISO",2024,55.791966595472402,0,0]
["LDWP","CAISO",2026,1037.05049690646,0,0]
["LDWP","CAISO",2030,1145.5485547917899,0,0]
["LDWP","CAISO",2045,653.96152172729501,0,0]
["LDWP","LDWP",2020,0,0,0]
["LDWP","LDWP",2021,0,0,0]
["LDWP","LDWP",2022,0,0,0]
["LDWP","LDWP",2023,0,0,0]
["LDWP","LDWP",2024,0,0,0]
["LDWP","LDWP",2026,0,0,0]
["LDWP","LDWP",2030,31816.5100188285,0,1855315.8105353999]
["LDWP","LDWP",2045,97567.422022447805,0,5755305.5364250904]
["NW","CAISO",2020,22945.7876488123,0,0]
["NW","CAISO",2021,329617.09522732598,0,0]
["NW","CAISO",2022,347308.236704954,0,0]
["NW","CAISO",2023,346939.01306833001,0,0]
["NW","CAISO",2024,315332.49160223902,0,0]
["NW","CAISO",2026,402104.82633937302,0,0]
["NW","CAISO",2030,460299.14980166202,0,0]
["NW","CAISO",2045,524701.59671262105,0,0]
["NW","NW",2020,0,0,0]
["NW","NW",2021,0,0,0]
["NW","NW",2022,0,0,0]
["NW","NW",2023,0,0,0]
["NW","NW",2024,0,0,0]
["NW","NW",2026,0,0,0]
["NW","NW",2030,265651.26884008601,0,14548723.214902001]
["NW","NW",2045,17200.759231787299,0,663109.30890911003]
["SW","CAISO",2020,0,0,0]
["SW","CAISO",2021,0,0,0]
["SW","CAISO",2022,0,0,0]
["SW","CAISO",2023,0,0,0]
["SW","CAISO",2024,0,0,0]
["SW","CAISO",2026,0,0,0]
["SW","CAISO",2030,0,0,0]
["SW","CAISO",2045,0,0,0]
["SW","SW",2020,0,0,0]
["SW","SW",2021,0,0,0]
["SW","SW",2022,0,0,0]
["SW","SW",2023,0,0,0]
["SW","SW",2024,0,0,0]
["SW","SW",2026,0,0,0]
["SW","SW",2030,0,0,0]
["SW","SW",2045,0,0,0]

{"sheet":"raw_annual_energy","index":5,"n_rows":1370,"n_cols":9,"rows_kept":1370,"cut":false,"hidden":false,"merged":[]}
[]
["zone","contract","resource","period","net_energy_mwh_per_year","net_subhourly_energy_mwh_per_year","scheduled_curtailment_mwh_per_year","units_started_per_year","units_shut_down_per_year"]
["BANC","BANC","BANC_Biomass_for_Other",2020,153300,0,0,0,0]
["BANC","BANC","BANC_Biomass_for_Other",2021,153300,0,0,0,0]
["BANC","BANC","BANC_Biomass_for_Other",2022,153300,0,0,0,0]
["BANC","BANC","BANC_Biomass_for_Other",2023,153300,0,0,0,0]
["BANC","BANC","BANC_Biomass_for_Other",2024,153300,0,0,0,0]
["BANC","BANC","BANC_Biomass_for_Other",2026,153300,0,0,0,0]
["BANC","BANC","BANC_Biomass_for_Other",2030,153300,0,0,0,0]
["BANC","BANC","BANC_Biomass_for_Other",2045,153300,0,0,0,0]
["BANC","BANC","BANC_CCGT",2020,3219968.9722215701,0,0,0,0]
["BANC","BANC","BANC_CCGT",2021,3278742.1765053901,0,0,0,0]
["BANC","BANC","BANC_CCGT",2022,3379347.77719191,0,0,0,0]
["BANC","BANC","BANC_CCGT",2023,3263475.1722357399,0,0,0,0]
["BANC","BANC","BANC_CCGT",2024,3368013.3948970102,0,0,0,0]
["BANC","BANC","BANC_CCGT",2026,3286318.8910552999,0,0,0,0]
["BANC","BANC","BANC_CCGT",2030,2793541.4518661099,0,0,0,0]
["BANC","BANC","BANC_CCGT",2045,3007922.3958901502,0,0,4.4300758455985303,4.4300758455985303]
["BANC","BANC","BANC_Geothermal_for_Other",2020,0,0,0,0,0]
["BANC","BANC","BANC_Geothermal_for_Other",2021,0,0,0,0,0]
["BANC","BANC","BANC_Geothermal_for_Other",2022,0,0,0,0,0]
["BANC","BANC","BANC_Geothermal_for_Other",2023,0,0,0,0,0]
["BANC","BANC","BANC_Geothermal_for_Other",2024,0,0,0,0,0]
["BANC","BANC","BANC_Geothermal_for_Other",2026,0,0,0,0,0]
["BANC","BANC","BANC_Geothermal_for_Other",2030,0,0,0,0,0]
["BANC","BANC","BANC_Geothermal_for_Other",2045,0,0,0,0,0]
["BANC","BANC","BANC_Hydro",2020,7022469.32427854,0,0,0,0]
["BANC","BANC","BANC_Hydro",2021,7022467.8865505196,0,0,0,0]
["BANC","BANC","BANC_Hydro",2022,7022467.7382936096,0,0,0,0]
["BANC","BANC","BANC_Hydro",2023,7022468.7970759403,0,0,0,0]
["BANC","BANC","BANC_Hydro",2024,7022468.6285976004,0,0,0,0]
["BANC","BANC","BANC_Hydro",2026,7022469.9533283496,0,0,0,0]
["BANC","BANC","BANC_Hydro",2030,7022469.9180669701,0,0,0,0]
["BANC","BANC","BANC_Hydro",2045,7022468.7334640296,0,0,0,0]
["BANC","BANC","BANC_Peaker",2020,0,0,0,0,0]
["BANC","BANC","BANC_Peaker",2021,0,0,0,0,0]
["BANC","BANC","BANC_Peaker",2022,0,0,0,0,0]
["BANC","BANC","BANC_Peaker",2023,0,0,0,0,0]
["BANC","BANC","BANC_Peaker",2024,0,0,0,0,0]
["BANC","BANC","BANC_Peaker",2026,0,0,0,0,0]
["BANC","BANC","BANC_Peaker",2030,0,0,0,0,0]
["BANC","BANC","BANC_Peaker",2045,0,0,0,0,0]
["BANC","BANC","BANC_Small_Hydro_for_Other",2020,360912,0,0,0,0]
["BANC","BANC","BANC_Small_Hydro_for_Other",2021,360912,0,0,0,0]
["BANC","BANC","BANC_Small_Hydro_for_Other",2022,360912,0,0,0,0]
["BANC","BANC","BANC_Small_Hydro_for_Other",2023,360912,0,0,0,0]
["BANC","BANC","BANC_Small_Hydro_for_Other",2024,360912,0,0,0,0]
["BANC","BANC","BANC_Small_Hydro_for_Other",2026,360912,0,0,0,0]
["BANC","BANC","BANC_Small_Hydro_for_Other",2030,360912,0,0,0,0]
["BANC","BANC","BANC_Small_Hydro_for_Other",2045,360912,0,0,0,0]
["BANC","BANC","BANC_Solar_for_Other",2020,5311945.8595840102,0,0,0,0]
["BANC","BANC","BANC_Solar_for_Other",2021,5776532.9382543704,0,0,0,0]
["BANC","BANC","BANC_Solar_for_Other",2022,6246278.6094553201,0,0,0,0]
["BANC","BANC","BANC_Solar_for_Other",2023,6680659.2962895604,0,0,0,0]
["BANC","BANC","BANC_Solar_for_Other",2024,7128301.1240446698,0,0,0,0]
["BANC","BANC","BANC_Solar_for_Other",2026,8015984.8608118501,0,0,0,0]
["BANC","BANC","BANC_Solar_for_Other",2030,8965671.5570962299,0,691004.87443981995,0,0]
["BANC","BANC","BANC_Solar_for_Other",2045,8881229.0075331703,0,775447.98514177999,0,0]
["BANC","BANC","BANC_Wind_for_Other",2020,0,0,0,0,0]
["BANC","BANC","BANC_Wind_for_Other",2021,0,0,0,0,0]
["BANC","BANC","BANC_Wind_for_Other",2022,0,0,0,0,0]
["BANC","BANC","BANC_Wind_for_Other",2023,0,0,0,0,0]
["BANC","BANC","BANC_Wind_for_Other",2024,0,0,0,0,0]
["BANC","BANC","BANC_Wind_for_Other",2026,0,0,0,0,0]
["BANC","BANC","BANC_Wind_for_Other",2030,0,0,0,0,0]
["BANC","BANC","BANC_Wind_for_Other",2045,0,0,0,0,0]
["BANC","CAISO","BANC_Small_Hydro_for_CAISO",2020,0,0,0,0,0]
["BANC","CAISO","BANC_Small_Hydro_for_CAISO",2021,0,0,0,0,0]
["BANC","CAISO","BANC_Small_Hydro_for_CAISO",2022,0,0,0,0,0]
["BANC","CAISO","BANC_Small_Hydro_for_CAISO",2023,0,0,0,0,0]
["BANC","CAISO","BANC_Small_Hydro_for_CAISO",2024,0,0,0,0,0]
["BANC","CAISO","BANC_Small_Hydro_for_CAISO",2026,0,0,0,0,0]
["BANC","CAISO","BANC_Small_Hydro_for_CAISO",2030,0,0,0,0,0]
["BANC","CAISO","BANC_Small_Hydro_for_CAISO",2045,0,0,0,0,0]
["CAISO","CAISO","Arizona_Solar",2020,1535929.67636062,0,9331.3889788854704,0,0]
["CAISO","CAISO","Arizona_Solar",2021,1538043.5797524501,0,7217.4855870514702,0,0]
["CAISO","CAISO","Arizona_Solar",2022,1539140.6997327399,0,6120.3656067616403,0,0]
["CAISO","CAISO","Arizona_Solar",2023,1530432.0674624101,0,14828.9978770943,0,0]
["CAISO","CAISO","Arizona_Solar",2024,8470824.6796005405,0,73402.338229026296,0,0]
["CAISO","CAISO","Arizona_Solar",2026,8466638.8667888697,0,77588.151040694502,0,0]
["CAISO","CAISO","Arizona_Solar",2030,7864441.6677323096,0,679785.35009725101,0,0]
["CAISO","CAISO","Arizona_Solar",2045,6216933.9283020804,0,2327293.0895274798,0,0]
["CAISO","CAISO","Arizona_Wind",2020,0,0,0,0,0]
["CAISO","CAISO","Arizona_Wind",2021,0,0,0,0,0]
["CAISO","CAISO","Arizona_Wind",2022,0,0,0,0,0]
["CAISO","CAISO","Arizona_Wind",2023,0,0,0,0,0]
["CAISO","CAISO","Arizona_Wind",2024,0,0,0,0,0]
["CAISO","CAISO","Arizona_Wind",2026,0,0,0,0,0]
["CAISO","CAISO","Arizona_Wind",2030,0,0,0,0,0]
["CAISO","CAISO","Arizona_Wind",2045,0,0,0,0,0]
["CAISO","CAISO","Baja_California_Solar",2020,0,0,0,0,0]
["CAISO","CAISO","Baja_California_Solar",2021,0,0,0,0,0]
["CAISO","CAISO","Baja_California_Solar",2022,0,0,0,0,0]
["CAISO","CAISO","Baja_California_Solar",2023,0,0,0,0,0]
["CAISO","CAISO","Baja_California_Solar",2024,0,0,0,0,0]
["CAISO","CAISO","Baja_California_Solar",2026,0,0,0,0,0]
["CAISO","CAISO","Baja_California_Solar",2030,0,0,0,0,0]
["CAISO","CAISO","Baja_California_Solar",2045,0,0,0,0,0]
["CAISO","CAISO","Baja_California_Wind",2020,0,0,0,0,0]
["CAISO","CAISO","Baja_California_Wind",2021,0,0,0,0,0]
["CAISO","CAISO","Baja_California_Wind",2022,0,0,0,0,0]
["CAISO","CAISO","Baja_California_Wind",2023,0,0,0,0,0]
["CAISO","CAISO","Baja_California_Wind",2024,291780.09814262798,0,586.62100392377295,0,0]
["CAISO","CAISO","Baja_California_Wind",2026,290240.250056941,0,2126.4690896114298,0,0]
["CAISO","CAISO","Baja_California_Wind",2030,1842128.68585738,0,61062.622936804299,0,0]
["CAISO","CAISO","Baja_California_Wind",2045,1838579.1239028301,0,64612.184891353703,0,0]
["CAISO","CAISO","CAISO_Advanced_CCGT",2020,0,0,0,0,0]
["CAISO","CAISO","CAISO_Advanced_CCGT",2021,0,0,0,0,0]
["CAISO","CAISO","CAISO_Advanced_CCGT",2022,0,0,0,0,0]
["CAISO","CAISO","CAISO_Advanced_CCGT",2023,0,0,0,0,0]
["CAISO","CAISO","CAISO_Advanced_CCGT",2024,0,0,0,0,0]
["CAISO","CAISO","CAISO_Advanced_CCGT",2026,0,0,0,0,0]
["CAISO","CAISO","CAISO_Advanced_CCGT",2030,0,0,0,0,0]
["CAISO","CAISO","CAISO_Advanced_CCGT",2045,0,0,0,0,0]
["CAISO","CAISO","CAISO_Aero_CT",2020,0,0,0,0,0]
["CAISO","CAISO","CAISO_Aero_CT",2021,0,0,0,0,0]
["CAISO","CAISO","CAISO_Aero_CT",2022,0,0,0,0,0]
["CAISO","CAISO","CAISO_Aero_CT",2023,0,0,0,0,0]
["CAISO","CAISO","CAISO_Aero_CT",2024,0,0,0,0,0]
["CAISO","CAISO","CAISO_Aero_CT",2026,0,0,0,0,0]
["CAISO","CAISO","CAISO_Aero_CT",2030,0,0,0,0,0]
["CAISO","CAISO","CAISO_Aero_CT",2045,0,0,0,0,0]
["CAISO","CAISO","CAISO_BTM_Li_Battery",2020,-12816.5451163668,0,0,0,0]
["CAISO","CAISO","CAISO_BTM_Li_Battery",2021,-11338.248010523301,0,0,0,0]
["CAISO","CAISO","CAISO_BTM_Li_Battery",2022,-11960.8273057063,0,0,0,0]
["CAISO","CAISO","CAISO_BTM_Li_Battery",2023,-12391.6111861058,0,0,0,0]
["CAISO","CAISO","CAISO_BTM_Li_Battery",2024,-12468.7982536496,0,0,0,0]
["CAISO","CAISO","CAISO_BTM_Li_Battery",2026,-13894.5540091688,0,0,0,0]
["CAISO","CAISO","CAISO_BTM_Li_Battery",2030,-17044.2496580474,0,0,0,0]
["CAISO","CAISO","CAISO_BTM_Li_Battery",2045,-36714.874808186403,0,0,0,0]
["CAISO","CAISO","CAISO_Biomass_for_CAISO",2020,6675558.0000000298,0,0,0,0]
["CAISO","CAISO","CAISO_Biomass_for_CAISO",2021,6675558.0000000298,0,0,0,0]
["CAISO","CAISO","CAISO_Biomass_for_CAISO",2022,6675558.0000000298,0,0,0,0]
["CAISO","CAISO","CAISO_Biomass_for_CAISO",2023,6675558.0000000298,0,0,0,0]
["CAISO","CAISO","CAISO_Biomass_for_CAISO",2024,6675558.0000000298,0,0,0,0]
["CAISO","CAISO","CAISO_Biomass_for_CAISO",2026,6675558.0000000298,0,0,0,0]
["CAISO","CAISO","CAISO_Biomass_for_CAISO",2030,6661279.20000003,0,0,0,0]
["CAISO","CAISO","CAISO_Biomass_for_CAISO",2045,6661279.20000003,0,0,0,0]
["CAISO","CAISO","CAISO_Biomass_for_Other",2020,102491.999999999,0,0,0,0]
["CAISO","CAISO","CAISO_Biomass_for_Other",2021,102491.999999999,0,0,0,0]
["CAISO","CAISO","CAISO_Biomass_for_Other",2022,102491.999999999,0,0,0,0]
["CAISO","CAISO","CAISO_Biomass_for_Other",2023,102491.999999999,0,0,0,0]
["CAISO","CAISO","CAISO_Biomass_for_Other",2024,102491.999999999,0,0,0,0]
["CAISO","CAISO","CAISO_Biomass_for_Other",2026,102491.999999999,0,0,0,0]
["CAISO","CAISO","CAISO_Biomass_for_Other",2030,102491.999999999,0,0,0,0]
["CAISO","CAISO","CAISO_Biomass_for_Other",2045,102491.999999999,0,0,0,0]
["CAISO","CAISO","CAISO_CCGT1",2020,56639178.033024102,536657.07506442105,0,0,0]
["CAISO","CAISO","CAISO_CCGT1",2021,57774400.907577999,563251.88039981097,0,0,0]
["CAISO","CAISO","CAISO_CCGT1",2022,53301827.2660468,507587.963206104,0,0,0]
["CAISO","CAISO","CAISO_CCGT1",2023,51556792.011302903,477987.880306106,0,6.3086335420037702,6.3086335420037702]
["CAISO","CAISO","CAISO_CCGT1",2024,53981544.185634702,464770.51219546999,0,18.828929092310702,18.828925711391101]
["CAISO","CAISO","CAISO_CCGT1",2026,62378344.038579702,411137.018355896,0,31.0298673575344,31.029863976614902]
["CAISO","CAISO","CAISO_CCGT1",2030,48520741.3857743,218122.57512441199,0,715.93602587611099,715.93603317384998]
["CAISO","CAISO","CAISO_CCGT1",2045,29171344.853163399,173734.109262515,0,187.411116785996,187.411116785996]
["CAISO","CAISO","CAISO_CCGT2",2020,90170.627374891701,-1646.40353703204,0,201.62121258619999,201.62121258619999]
["CAISO","CAISO","CAISO_CCGT2",2021,0,0,0,0,0]
["CAISO","CAISO","CAISO_CCGT2",2022,0,0,0,0,0]
["CAISO","CAISO","CAISO_CCGT2",2023,0,0,0,0,0]
["CAISO","CAISO","CAISO_CCGT2",2024,0,0,0,0,0]
["CAISO","CAISO","CAISO_CCGT2",2026,0,0,0,0,0]
["CAISO","CAISO","CAISO_CCGT2",2030,0,0,0,0,0]
["CAISO","CAISO","CAISO_CCGT2",2045,530078.346238937,6164.5293138450497,0,0,0]
["CAISO","CAISO","CAISO_CHP",2020,10881055.3055801,0,0,0,0]
["CAISO","CAISO","CAISO_CHP",2021,10881055.3055801,0,0,0,0]
["CAISO","CAISO","CAISO_CHP",2022,10881055.3055801,0,0,0,0]
["CAISO","CAISO","CAISO_CHP",2023,10881055.3055801,0,0,0,0]
["CAISO","CAISO","CAISO_CHP",2024,10881055.3055801,0,0,0,0]
["CAISO","CAISO","CAISO_CHP",2026,10881055.3055801,0,0,0,0]
["CAISO","CAISO","CAISO_CHP",2030,10881055.3055801,0,0,0,0]
["CAISO","CAISO","CAISO_CHP",2045,0,0,0,0,0]
["CAISO","CAISO","CAISO_Coal",2020,2166231.8845076901,0,0,0,0]
["CAISO","CAISO","CAISO_Coal",2021,1340489.3875243701,0,0,0,0]
["CAISO","CAISO","CAISO_Coal",2022,714297.985822635,0,0,0,0]
["CAISO","CAISO","CAISO_Coal",2023,695718.01770085003,0,0,0,0]
["CAISO","CAISO","CAISO_Coal",2024,695718.01770085003,0,0,0,0]
["CAISO","CAISO","CAISO_Coal",2026,0,0,0,0,0]
["CAISO","CAISO","CAISO_Coal",2030,0,0,0,0,0]
["CAISO","CAISO","CAISO_Coal",2045,0,0,0,0,0]
["CAISO","CAISO","CAISO_Existing_Pumped_Storage",2020,-51395.795756773201,-136574.705404248,0,0,0]
["CAISO","CAISO","CAISO_Existing_Pumped_Storage",2021,-223650.386994378,8123.6378767751103,0,0,0]
["CAISO","CAISO","CAISO_Existing_Pumped_Storage",2022,-247493.102788252,-24806.5364674101,0,0,0]
["CAISO","CAISO","CAISO_Existing_Pumped_Storage",2023,-342933.57745460898,3584.6866550343102,0,0,0]
["CAISO","CAISO","CAISO_Existing_Pumped_Storage",2024,-431669.681967557,67568.344461511093,0,0,0]
["CAISO","CAISO","CAISO_Existing_Pumped_Storage",2026,-410770.74194079801,36759.4287392263,0,0,0]
["CAISO","CAISO","CAISO_Existing_Pumped_Storage",2030,-948703.56470771797,107677.09657207099,0,0,0]
["CAISO","CAISO","CAISO_Existing_Pumped_Storage",2045,-1060964.38005789,141868.32165924201,0,0,0]
["CAISO","CAISO","CAISO_Geothermal_for_CAISO",2020,12702963.6,0,0,0,0]
["CAISO","CAISO","CAISO_Geothermal_for_CAISO",2021,12702963.6,0,0,0,0]
["CAISO","CAISO","CAISO_Geothermal_for_CAISO",2022,12702963.6,0,0,0,0]
["CAISO","CAISO","CAISO_Geothermal_for_CAISO",2023,12702963.6,0,0,0,0]
["CAISO","CAISO","CAISO_Geothermal_for_CAISO",2024,12702963.6,0,0,0,0]
["CAISO","CAISO","CAISO_Geothermal_for_CAISO",2026,12702963.6,0,0,0,0]
["CAISO","CAISO","CAISO_Geothermal_for_CAISO",2030,12702963.6,0,0,0,0]
["CAISO","CAISO","CAISO_Geothermal_for_CAISO",2045,12702963.6,0,0,0,0]
["CAISO","CAISO","CAISO_Geothermal_for_Other",2020,338749.199999996,0,0,0,0]
["CAISO","CAISO","CAISO_Geothermal_for_Other",2021,338749.199999996,0,0,0,0]
["CAISO","CAISO","CAISO_Geothermal_for_Other",2022,338749.199999996,0,0,0,0]
["CAISO","CAISO","CAISO_Geothermal_for_Other",2023,338749.199999996,0,0,0,0]
["CAISO","CAISO","CAISO_Geothermal_for_Other",2024,338749.199999996,0,0,0,0]
["CAISO","CAISO","CAISO_Geothermal_for_Other",2026,338749.199999996,0,0,0,0]
["CAISO","CAISO","CAISO_Geothermal_for_Other",2030,338749.199999996,0,0,0,0]
["CAISO","CAISO","CAISO_Geothermal_for_Other",2045,338749.199999996,0,0,0,0]
["CAISO","CAISO","CAISO_Hydro",2020,17905547.080526501,764241.50119119196,0,0,0]
["CAISO","CAISO","CAISO_Hydro",2021,17704043.076751899,965743.20762035996,0,0,0]
["CAISO","CAISO","CAISO_Hydro",2022,17640053.945241202,1029734.46801672,0,0,0]
["CAISO","CAISO","CAISO_Hydro",2023,17564061.6633581,1105725.3832373701,0,0,0]
["CAISO","CAISO","CAISO_Hydro",2024,17514747.719701,1155038.45326291,0,0,0]
["CAISO","CAISO","CAISO_Hydro",2026,17599655.4194187,1070129.40238868,0,0,0]
["CAISO","CAISO","CAISO_Hydro",2030,18342891.436670899,325342.14735022798,0,0,0]
["CAISO","CAISO","CAISO_Hydro",2045,18713820.497820001,-45588.963521991798,0,0,0]
["CAISO","CAISO","CAISO_New_Flow_Battery",2020,0,0,0,0,0]
["CAISO","CAISO","CAISO_New_Flow_Battery",2021,0,0,0,0,0]
["CAISO","CAISO","CAISO_New_Flow_Battery",2022,0,0,0,0,0]
["CAISO","CAISO","CAISO_New_Flow_Battery",2023,0,0,0,0,0]
["CAISO","CAISO","CAISO_New_Flow_Battery",2024,0,0,0,0,0]
["CAISO","CAISO","CAISO_New_Flow_Battery",2026,0,0,0,0,0]
["CAISO","CAISO","CAISO_New_Flow_Battery",2030,0,0,0,0,0]
["CAISO","CAISO","CAISO_New_Flow_Battery",2045,0,0,0,0,0]
["CAISO","CAISO","CAISO_New_Flow_Battery_2",2020,0,0,0,0,0]
["CAISO","CAISO","CAISO_New_Flow_Battery_2",2021,0,0,0,0,0]
["CAISO","CAISO","CAISO_New_Flow_Battery_2",2022,0,0,0,0,0]
["CAISO","CAISO","CAISO_New_Flow_Battery_2",2023,0,0,0,0,0]
["CAISO","CAISO","CAISO_New_Flow_Battery_2",2024,0,0,0,0,0]
["CAISO","CAISO","CAISO_New_Flow_Battery_2",2026,0,0,0,0,0]
["CAISO","CAISO","CAISO_New_Flow_Battery_2",2030,0,0,0,0,0]
["CAISO","CAISO","CAISO_New_Flow_Battery_2",2045,0,0,0,0,0]
["CAISO","CAISO","CAISO_New_Flow_Battery_3",2020,0,0,0,0,0]
["CAISO","CAISO","CAISO_New_Flow_Battery_3",2021,0,0,0,0,0]
["CAISO","CAISO","CAISO_New_Flow_Battery_3",2022,0,0,0,0,0]
["CAISO","CAISO","CAISO_New_Flow_Battery_3",2023,0,0,0,0,0]
["CAISO","CAISO","CAISO_New_Flow_Battery_3",2024,0,0,0,0,0]
["CAISO","CAISO","CAISO_New_Flow_Battery_3",2026,0,0,0,0,0]
["CAISO","CAISO","CAISO_New_Flow_Battery_3",2030,0,0,0,0,0]
["CAISO","CAISO","CAISO_New_Flow_Battery_3",2045,0,0,0,0,0]
["CAISO","CAISO","CAISO_New_Flow_Battery_4",2020,0,0,0,0,0]
["CAISO","CAISO","CAISO_New_Flow_Battery_4",2021,0,0,0,0,0]
["CAISO","CAISO","CAISO_New_Flow_Battery_4",2022,0,0,0,0,0]
["CAISO","CAISO","CAISO_New_Flow_Battery_4",2023,0,0,0,0,0]
["CAISO","CAISO","CAISO_New_Flow_Battery_4",2024,0,0,0,0,0]
["CAISO","CAISO","CAISO_New_Flow_Battery_4",2026,0,0,0,0,0]
["CAISO","CAISO","CAISO_New_Flow_Battery_4",2030,0,0,0,0,0]
["CAISO","CAISO","CAISO_New_Flow_Battery_4",2045,0,0,0,0,0]
["CAISO","CAISO","CAISO_New_Flow_Battery_5",2020,0,0,0,0,0]
["CAISO","CAISO","CAISO_New_Flow_Battery_5",2021,0,0,0,0,0]
["CAISO","CAISO","CAISO_New_Flow_Battery_5",2022,0,0,0,0,0]
["CAISO","CAISO","CAISO_New_Flow_Battery_5",2023,0,0,0,0,0]
["CAISO","CAISO","CAISO_New_Flow_Battery_5",2024,0,0,0,0,0]
["CAISO","CAISO","CAISO_New_Flow_Battery_5",2026,0,0,0,0,0]
["CAISO","CAISO","CAISO_New_Flow_Battery_5",2030,0,0,0,0,0]
["CAISO","CAISO","CAISO_New_Flow_Battery_5",2045,0,0,0,0,0]
["CAISO","CAISO","CAISO_New_Li_Battery",2020,273022.430286291,-843132.41887614701,0,0,0]
["CAISO","CAISO","CAISO_New_Li_Battery",2021,53711.361160608103,-1194254.11677973,0,0,0]
["CAISO","CAISO","CAISO_New_Li_Battery",2022,-145458.20822015501,-1052879.1900605201,0,0,0]
["CAISO","CAISO","CAISO_New_Li_Battery",2023,-359216.209863692,-991647.12291577796,0,0,0]
["CAISO","CAISO","CAISO_New_Li_Battery",2024,-541960.06298162905,-1080416.6187267101,0,0,0]
["CAISO","CAISO","CAISO_New_Li_Battery",2026,-829837.72704055696,-979852.91766626795,0,0,0]
["CAISO","CAISO","CAISO_New_Li_Battery",2030,-2001671.3598303101,-209114.973295409,0,0,0]
["CAISO","CAISO","CAISO_New_Li_Battery",2045,-4401779.4788043601,162595.766203529,0,0,0]
["CAISO","CAISO","CAISO_New_Li_Battery_2",2020,0,0,0,0,0]
["CAISO","CAISO","CAISO_New_Li_Battery_2",2021,0,0,0,0,0]
["CAISO","CAISO","CAISO_New_Li_Battery_2",2022,0,0,0,0,0]
["CAISO","CAISO","CAISO_New_Li_Battery_2",2023,0,0,0,0,0]
["CAISO","CAISO","CAISO_New_Li_Battery_2",2024,-167326.24202132999,-13506.596348478,0,0,0]
["CAISO","CAISO","CAISO_New_Li_Battery_2",2026,-953723.98143095605,-30659.655335554398,0,0,0]
["CAISO","CAISO","CAISO_New_Li_Battery_2",2030,-2014899.6659939699,483928.26647374098,0,0,0]
["CAISO","CAISO","CAISO_New_Li_Battery_2",2045,-3860206.7480317801,973939.89013925695,0,0,0]
["CAISO","CAISO","CAISO_New_Li_Battery_3",2020,0,0,0,0,0]
["CAISO","CAISO","CAISO_New_Li_Battery_3",2021,0,0,0,0,0]
["CAISO","CAISO","CAISO_New_Li_Battery_3",2022,0,0,0,0,0]
["CAISO","CAISO","CAISO_New_Li_Battery_3",2023,0,0,0,0,0]
["CAISO","CAISO","CAISO_New_Li_Battery_3",2024,0,0,0,0,0]
["CAISO","CAISO","CAISO_New_Li_Battery_3",2026,0,0,0,0,0]
["CAISO","CAISO","CAISO_New_Li_Battery_3",2030,-65781.652619450499,-29018.323167168201,0,0,0]
["CAISO","CAISO","CAISO_New_Li_Battery_3",2045,-6171238.8466018001,2760402.5733868498,0,0,0]
["CAISO","CAISO","CAISO_New_Li_Battery_4",2020,0,0,0,0,0]
["CAISO","CAISO","CAISO_New_Li_Battery_4",2021,0,0,0,0,0]
["CAISO","CAISO","CAISO_New_Li_Battery_4",2022,0,0,0,0,0]
["CAISO","CAISO","CAISO_New_Li_Battery_4",2023,0,0,0,0,0]
["CAISO","CAISO","CAISO_New_Li_Battery_4",2024,0,0,0,0,0]
["CAISO","CAISO","CAISO_New_Li_Battery_4",2026,0,0,0,0,0]
["CAISO","CAISO","CAISO_New_Li_Battery_4",2030,0,0,0,0,0]
["CAISO","CAISO","CAISO_New_Li_Battery_4",2045,-2817490.5634079799,0,0,0,0]
["CAISO","CAISO","CAISO_New_Li_Battery_5",2020,0,0,0,0,0]
["CAISO","CAISO","CAISO_New_Li_Battery_5",2021,0,0,0,0,0]
["CAISO","CAISO","CAISO_New_Li_Battery_5",2022,0,0,0,0,0]
["CAISO","CAISO","CAISO_New_Li_Battery_5",2023,0,0,0,0,0]
["CAISO","CAISO","CAISO_New_Li_Battery_5",2024,0,0,0,0,0]
["CAISO","CAISO","CAISO_New_Li_Battery_5",2026,0,0,0,0,0]
["CAISO","CAISO","CAISO_New_Li_Battery_5",2030,0,0,0,0,0]
["CAISO","CAISO","CAISO_New_Li_Battery_5",2045,-12311139.6345041,0,0,0,0]
["CAISO","CAISO","CAISO_New_Li_Battery_6",2020,0,0,0,0,0]
["CAISO","CAISO","CAISO_New_Li_Battery_6",2021,0,0,0,0,0]
["CAISO","CAISO","CAISO_New_Li_Battery_6",2022,0,0,0,0,0]
["CAISO","CAISO","CAISO_New_Li_Battery_6",2023,0,0,0,0,0]
["CAISO","CAISO","CAISO_New_Li_Battery_6",2024,0,0,0,0,0]
["CAISO","CAISO","CAISO_New_Li_Battery_6",2026,0,0,0,0,0]
["CAISO","CAISO","CAISO_New_Li_Battery_6",2030,0,0,0,0,0]
["CAISO","CAISO","CAISO_New_Li_Battery_6",2045,0,0,0,0,0]
["CAISO","CAISO","CAISO_New_Pumped_Storage",2020,0,0,0,0,0]
["CAISO","CAISO","CAISO_New_Pumped_Storage",2021,0,0,0,0,0]
["CAISO","CAISO","CAISO_New_Pumped_Storage",2022,0,0,0,0,0]
["CAISO","CAISO","CAISO_New_Pumped_Storage",2023,0,0,0,0,0]
["CAISO","CAISO","CAISO_New_Pumped_Storage",2024,0,0,0,0,0]
["CAISO","CAISO","CAISO_New_Pumped_Storage",2026,-503196.21027798997,48144.979575142599,0,0,0]
["CAISO","CAISO","CAISO_New_Pumped_Storage",2030,-1332388.33010604,308983.76531062002,0,0,0]
["CAISO","CAISO","CAISO_New_Pumped_Storage",2045,-1189973.4076692299,176369.80425872499,0,0,0]
["CAISO","CAISO","CAISO_Nuclear",2020,23611122.76847,0,0,0,0]
["CAISO","CAISO","CAISO_Nuclear",2021,23611122.76847,0,0,0,0]
["CAISO","CAISO","CAISO_Nuclear",2022,23611122.76847,0,0,0,0]
["CAISO","CAISO","CAISO_Nuclear",2023,23611122.76847,0,0,0,0]
["CAISO","CAISO","CAISO_Nuclear",2024,14359745.874521,0,0,0,0]
["CAISO","CAISO","CAISO_Nuclear",2026,5108368.9805718604,0,0,0,0]
["CAISO","CAISO","CAISO_Nuclear",2030,5108368.9805718604,0,0,0,0]
["CAISO","CAISO","CAISO_Nuclear",2045,5108368.9805718604,0,0,0,0]
["CAISO","CAISO","CAISO_Peaker1",2020,806799.75374865101,93148.607526206804,0,10325.4589108649,10325.458902099601]
["CAISO","CAISO","CAISO_Peaker1",2021,406211.95410829701,51571.927559372903,0,5920.1841685460104,5920.1841596329796]
["CAISO","CAISO","CAISO_Peaker1",2022,467080.57001723401,56396.3718964164,0,6917.8012011486799,6917.8012045296]
["CAISO","CAISO","CAISO_Peaker1",2023,558299.03061267105,69677.032348818,0,8211.2027880369697,8211.2027846560504]
["CAISO","CAISO","CAISO_Peaker1",2024,453470.61743365601,58533.872170611299,0,6698.1039524819798,6698.1039491010597]
["CAISO","CAISO","CAISO_Peaker1",2026,65115.319884817101,11005.4679107177,0,983.13334528252096,983.13334528252096]
["CAISO","CAISO","CAISO_Peaker1",2030,60100.189008587302,5695.4761971642902,0,907.40790589874905,907.40790589874905]
["CAISO","CAISO","CAISO_Peaker1",2045,0,0,0,0,0]
["CAISO","CAISO","CAISO_Peaker2",2020,0,0,0,0,0]
["CAISO","CAISO","CAISO_Peaker2",2021,0,0,0,0,0]
["CAISO","CAISO","CAISO_Peaker2",2022,0,0,0,0,0]
["CAISO","CAISO","CAISO_Peaker2",2023,0,0,0,0,0]
["CAISO","CAISO","CAISO_Peaker2",2024,0,0,0,0,0]
["CAISO","CAISO","CAISO_Peaker2",2026,0,0,0,0,0]
["CAISO","CAISO","CAISO_Peaker2",2030,0,0,0,0,0]
["CAISO","CAISO","CAISO_Peaker2",2045,0,0,0,0,0]
["CAISO","CAISO","CAISO_Reciprocating_Engine",2020,35299.615739840599,26522.565101318101,0,7444.3063131385998,7444.3063131385998]
["CAISO","CAISO","CAISO_Reciprocating_Engine",2021,25969.964403224902,16191.177562696899,0,6478.9842229613196,6478.9842229613196]
["CAISO","CAISO","CAISO_Reciprocating_Engine",2022,25361.937146172899,14075.6708696119,0,6629.0646553701299,6629.0646537388302]
["CAISO","CAISO","CAISO_Reciprocating_Engine",2023,26047.754019919499,14851.0849754105,0,6654.0503520693301,6654.0503520693301]
["CAISO","CAISO","CAISO_Reciprocating_Engine",2024,23276.886962703,12722.347513577801,0,6112.6441323744202,6112.6441323744202]
["CAISO","CAISO","CAISO_Reciprocating_Engine",2026,7106.6636577568797,3930.2744148104998,0,2283.44793655679,2283.44793655679]
["CAISO","CAISO","CAISO_Reciprocating_Engine",2030,12852.1722857682,8557.2812200233693,0,4129.5265294788696,4129.5265294788696]
["CAISO","CAISO","CAISO_Reciprocating_Engine",2045,43799.476981426997,5242.4161163957197,0,1831.94231197612,1831.94231197612]
["CAISO","CAISO","CAISO_ST",2020,0,0,0,0,0]
["CAISO","CAISO","CAISO_ST",2021,0,0,0,0,0]
["CAISO","CAISO","CAISO_ST",2022,0,0,0,0,0]
["CAISO","CAISO","CAISO_ST",2023,0,0,0,0,0]
["CAISO","CAISO","CAISO_ST",2024,0,0,0,0,0]
["CAISO","CAISO","CAISO_ST",2026,0,0,0,0,0]
["CAISO","CAISO","CAISO_ST",2030,0,0,0,0,0]
["CAISO","CAISO","CAISO_ST",2045,0,0,0,0,0]
["CAISO","CAISO","CAISO_Shed_DR_Existing",2020,0,0,0,0,0]
["CAISO","CAISO","CAISO_Shed_DR_Existing",2021,0,0,0,0,0]
["CAISO","CAISO","CAISO_Shed_DR_Existing",2022,0,0,0,0,0]
["CAISO","CAISO","CAISO_Shed_DR_Existing",2023,0,0,0,0,0]
["CAISO","CAISO","CAISO_Shed_DR_Existing",2024,0,0,0,0,0]
["CAISO","CAISO","CAISO_Shed_DR_Existing",2026,0,0,0,0,0]
["CAISO","CAISO","CAISO_Shed_DR_Existing",2030,0,0,0,0,0]
["CAISO","CAISO","CAISO_Shed_DR_Existing",2045,0,0,0,0,0]
["CAISO","CAISO","CAISO_Shed_DR_Tranche1",2020,0,0,0,0,0]
["CAISO","CAISO","CAISO_Shed_DR_Tranche1",2021,0,0,0,0,0]
["CAISO","CAISO","CAISO_Shed_DR_Tranche1",2022,0,0,0,0,0]
["CAISO","CAISO","CAISO_Shed_DR_Tranche1",2023,0,0,0,0,0]
["CAISO","CAISO","CAISO_Shed_DR_Tranche1",2024,0,0,0,0,0]
["CAISO","CAISO","CAISO_Shed_DR_Tranche1",2026,0,0,0,0,0]
["CAISO","CAISO","CAISO_Shed_DR_Tranche1",2030,0,0,0,0,0]
["CAISO","CAISO","CAISO_Shed_DR_Tranche1",2045,0,0,0,0,0]
["CAISO","CAISO","CAISO_Shed_DR_Tranche2",2020,0,0,0,0,0]
["CAISO","CAISO","CAISO_Shed_DR_Tranche2",2021,0,0,0,0,0]
["CAISO","CAISO","CAISO_Shed_DR_Tranche2",2022,0,0,0,0,0]
["CAISO","CAISO","CAISO_Shed_DR_Tranche2",2023,0,0,0,0,0]
["CAISO","CAISO","CAISO_Shed_DR_Tranche2",2024,0,0,0,0,0]
["CAISO","CAISO","CAISO_Shed_DR_Tranche2",2026,0,0,0,0,0]
["CAISO","CAISO","CAISO_Shed_DR_Tranche2",2030,0,0,0,0,0]
["CAISO","CAISO","CAISO_Shed_DR_Tranche2",2045,0,0,0,0,0]
["CAISO","CAISO","CAISO_Shed_DR_Tranche3",2020,0,0,0,0,0]
["CAISO","CAISO","CAISO_Shed_DR_Tranche3",2021,0,0,0,0,0]
["CAISO","CAISO","CAISO_Shed_DR_Tranche3",2022,0,0,0,0,0]
["CAISO","CAISO","CAISO_Shed_DR_Tranche3",2023,0,0,0,0,0]
["CAISO","CAISO","CAISO_Shed_DR_Tranche3",2024,0,0,0,0,0]
["CAISO","CAISO","CAISO_Shed_DR_Tranche3",2026,0,0,0,0,0]
["CAISO","CAISO","CAISO_Shed_DR_Tranche3",2030,0,0,0,0,0]
["CAISO","CAISO","CAISO_Shed_DR_Tranche3",2045,0,0,0,0,0]
["CAISO","CAISO","CAISO_Shed_DR_Tranche4",2020,0,0,0,0,0]
["CAISO","CAISO","CAISO_Shed_DR_Tranche4",2021,0,0,0,0,0]
["CAISO","CAISO","CAISO_Shed_DR_Tranche4",2022,0,0,0,0,0]
["CAISO","CAISO","CAISO_Shed_DR_Tranche4",2023,0,0,0,0,0]
["CAISO","CAISO","CAISO_Shed_DR_Tranche4",2024,0,0,0,0,0]
["CAISO","CAISO","CAISO_Shed_DR_Tranche4",2026,0,0,0,0,0]
["CAISO","CAISO","CAISO_Shed_DR_Tranche4",2030,0,0,0,0,0]
["CAISO","CAISO","CAISO_Shed_DR_Tranche4",2045,0,0,0,0,0]
["CAISO","CAISO","CAISO_Shed_DR_Tranche5",2020,0,0,0,0,0]
["CAISO","CAISO","CAISO_Shed_DR_Tranche5",2021,0,0,0,0,0]
["CAISO","CAISO","CAISO_Shed_DR_Tranche5",2022,0,0,0,0,0]
["CAISO","CAISO","CAISO_Shed_DR_Tranche5",2023,0,0,0,0,0]
["CAISO","CAISO","CAISO_Shed_DR_Tranche5",2024,0,0,0,0,0]
["CAISO","CAISO","CAISO_Shed_DR_Tranche5",2026,0,0,0,0,0]
["CAISO","CAISO","CAISO_Shed_DR_Tranche5",2030,0,0,0,0,0]
["CAISO","CAISO","CAISO_Shed_DR_Tranche5",2045,0,0,0,0,0]
["CAISO","CAISO","CAISO_Shed_DR_Tranche6",2020,0,0,0,0,0]
["CAISO","CAISO","CAISO_Shed_DR_Tranche6",2021,0,0,0,0,0]
["CAISO","CAISO","CAISO_Shed_DR_Tranche6",2022,0,0,0,0,0]
["CAISO","CAISO","CAISO_Shed_DR_Tranche6",2023,0,0,0,0,0]
["CAISO","CAISO","CAISO_Shed_DR_Tranche6",2024,0,0,0,0,0]
["CAISO","CAISO","CAISO_Shed_DR_Tranche6",2026,0,0,0,0,0]
["CAISO","CAISO","CAISO_Shed_DR_Tranche6",2030,0,0,0,0,0]
["CAISO","CAISO","CAISO_Shed_DR_Tranche6",2045,0,0,0,0,0]
["CAISO","CAISO","CAISO_Shed_DR_Tranche7",2020,0,0,0,0,0]
["CAISO","CAISO","CAISO_Shed_DR_Tranche7",2021,0,0,0,0,0]
["CAISO","CAISO","CAISO_Shed_DR_Tranche7",2022,0,0,0,0,0]
["CAISO","CAISO","CAISO_Shed_DR_Tranche7",2023,0,0,0,0,0]
["CAISO","CAISO","CAISO_Shed_DR_Tranche7",2024,0,0,0,0,0]
["CAISO","CAISO","CAISO_Shed_DR_Tranche7",2026,0,0,0,0,0]
["CAISO","CAISO","CAISO_Shed_DR_Tranche7",2030,0,0,0,0,0]
["CAISO","CAISO","CAISO_Shed_DR_Tranche7",2045,0,0,0,0,0]
["CAISO","CAISO","CAISO_Shed_DR_Tranche8",2020,0,0,0,0,0]
["CAISO","CAISO","CAISO_Shed_DR_Tranche8",2021,0,0,0,0,0]
["CAISO","CAISO","CAISO_Shed_DR_Tranche8",2022,0,0,0,0,0]
["CAISO","CAISO","CAISO_Shed_DR_Tranche8",2023,0,0,0,0,0]
["CAISO","CAISO","CAISO_Shed_DR_Tranche8",2024,0,0,0,0,0]
["CAISO","CAISO","CAISO_Shed_DR_Tranche8",2026,0,0,0,0,0]
["CAISO","CAISO","CAISO_Shed_DR_Tranche8",2030,0,0,0,0,0]
["CAISO","CAISO","CAISO_Shed_DR_Tranche8",2045,0,0,0,0,0]
["CAISO","CAISO","CAISO_Small_Hydro_for_CAISO",2020,4205763.5999999801,0,0,0,0]
["CAISO","CAISO","CAISO_Small_Hydro_for_CAISO",2021,4205763.5999999801,0,0,0,0]
["CAISO","CAISO","CAISO_Small_Hydro_for_CAISO",2022,4205763.5999999801,0,0,0,0]
["CAISO","CAISO","CAISO_Small_Hydro_for_CAISO",2023,4205763.5999999801,0,0,0,0]
["CAISO","CAISO","CAISO_Small_Hydro_for_CAISO",2024,4205763.5999999801,0,0,0,0]
["CAISO","CAISO","CAISO_Small_Hydro_for_CAISO",2026,4205763.5999999801,0,0,0,0]
["CAISO","CAISO","CAISO_Small_Hydro_for_CAISO",2030,4205763.5999999801,0,0,0,0]
["CAISO","CAISO","CAISO_Small_Hydro_for_CAISO",2045,4205763.5999999801,0,0,0,0]
["CAISO","CAISO","CAISO_Small_Hydro_for_Other",2020,120887.999999999,0,0,0,0]
["CAISO","CAISO","CAISO_Small_Hydro_for_Other",2021,120887.999999999,0,0,0,0]
["CAISO","CAISO","CAISO_Small_Hydro_for_Other",2022,120887.999999999,0,0,0,0]
["CAISO","CAISO","CAISO_Small_Hydro_for_Other",2023,120887.999999999,0,0,0,0]
["CAISO","CAISO","CAISO_Small_Hydro_for_Other",2024,120887.999999999,0,0,0,0]
["CAISO","CAISO","CAISO_Small_Hydro_for_Other",2026,120887.999999999,0,0,0,0]
["CAISO","CAISO","CAISO_Small_Hydro_for_Other",2030,120887.999999999,0,0,0,0]
["CAISO","CAISO","CAISO_Small_Hydro_for_Other",2045,120887.999999999,0,0,0,0]
["CAISO","CAISO","CAISO_Solar_for_CAISO",2020,35408315.539350003,0,9307.7530583601801,0,0]
["CAISO","CAISO","CAISO_Solar_for_CAISO",2021,36522637.121570401,0,23343.2866879842,0,0]
["CAISO","CAISO","CAISO_Solar_for_CAISO",2022,36787508.212155998,0,59681.860844790499,0,0]
["CAISO","CAISO","CAISO_Solar_for_CAISO",2023,36758911.853224203,0,88278.264587464,0,0]
["CAISO","CAISO","CAISO_Solar_for_CAISO",2024,36733681.515918396,0,113508.548049255,0,0]
["CAISO","CAISO","CAISO_Solar_for_CAISO",2026,36821612.522910997,0,25577.541056690199,0,0]
["CAISO","CAISO","CAISO_Solar_for_CAISO",2030,36410669.277582698,0,436520.77861309203,0,0]
["CAISO","CAISO","CAISO_Solar_for_CAISO",2045,36506254.458603702,0,340935.60536391399,0,0]
["CAISO","CAISO","CAISO_Solar_for_Other",2020,29117.162000828401,0,0,0,0]
["CAISO","CAISO","CAISO_Solar_for_Other",2021,29100.459682496199,0,16.702318332244399,0,0]
["CAISO","CAISO","CAISO_Solar_for_Other",2022,29067.285234787701,0,49.8767660407214,0,0]
["CAISO","CAISO","CAISO_Solar_for_Other",2023,29117.162000828401,0,0,0,0]
["CAISO","CAISO","CAISO_Solar_for_Other",2024,29110.827771239401,0,6.3342295890017901,0,0]
["CAISO","CAISO","CAISO_Solar_for_Other",2026,28995.638942972098,0,121.523057856281,0,0]
["CAISO","CAISO","CAISO_Solar_for_Other",2030,28937.8012800982,0,179.360720730184,0,0]
["CAISO","CAISO","CAISO_Solar_for_Other",2045,28864.059872860402,0,253.10212796800499,0,0]
["CAISO","CAISO","CAISO_Wind_for_CAISO",2020,17597852.469021101,0,58264.619496949403,0,0]
["CAISO","CAISO","CAISO_Wind_for_CAISO",2021,17839774.097693902,0,65216.050672191697,0,0]
["CAISO","CAISO","CAISO_Wind_for_CAISO",2022,17808792.508168001,0,96197.640198085806,0,0]
["CAISO","CAISO","CAISO_Wind_for_CAISO",2023,17805185.658817802,0,99804.438179951801,0,0]
["CAISO","CAISO","CAISO_Wind_for_CAISO",2024,17809573.0805034,0,95417.067862720607,0,0]
["CAISO","CAISO","CAISO_Wind_for_CAISO",2026,17859034.650511,0,45955.488821918298,0,0]
["CAISO","CAISO","CAISO_Wind_for_CAISO",2030,17558653.066566799,0,346337.20199743297,0,0]
["CAISO","CAISO","CAISO_Wind_for_CAISO",2045,17429449.023078199,0,475541.12528793397,0,0]
["CAISO","CAISO","CAISO_Wind_for_Other",2020,697587.12087244599,0,0,0,0]
["CAISO","CAISO","CAISO_Wind_for_Other",2021,697255.38699552102,0,331.73387692446897,0,0]
["CAISO","CAISO","CAISO_Wind_for_Other",2022,696816.74848895997,0,770.37238348527899,0,0]
["CAISO","CAISO","CAISO_Wind_for_Other",2023,697587.12087244599,0,0,0,0]
["CAISO","CAISO","CAISO_Wind_for_Other",2024,697587.12087244599,0,0,0,0]
["CAISO","CAISO","CAISO_Wind_for_Other",2026,696650.66263297596,0,936.45823946968005,0,0]
["CAISO","CAISO","CAISO_Wind_for_Other",2030,694945.63845111895,0,2641.4824213267798,0,0]
["CAISO","CAISO","CAISO_Wind_for_Other",2045,665419.47556002205,0,32167.645312423501,0,0]
["CAISO","CAISO","Cape_Mendocino_Offshore_Wind",2020,0,0,0,0,0]
["CAISO","CAISO","Cape_Mendocino_Offshore_Wind",2021,0,0,0,0,0]
["CAISO","CAISO","Cape_Mendocino_Offshore_Wind",2022,0,0,0,0,0]
["CAISO","CAISO","Cape_Mendocino_Offshore_Wind",2023,0,0,0,0,0]
["CAISO","CAISO","Cape_Mendocino_Offshore_Wind",2024,0,0,0,0,0]
["CAISO","CAISO","Cape_Mendocino_Offshore_Wind",2026,0,0,0,0,0]
["CAISO","CAISO","Cape_Mendocino_Offshore_Wind",2030,0,0,0,0,0]
["CAISO","CAISO","Cape_Mendocino_Offshore_Wind",2045,0,0,0,0,0]
["CAISO","CAISO","Carrizo_Solar",2020,0,0,0,0,0]
["CAISO","CAISO","Carrizo_Solar",2021,0,0,0,0,0]
["CAISO","CAISO","Carrizo_Solar",2022,0,0,0,0,0]
["CAISO","CAISO","Carrizo_Solar",2023,0,0,0,0,0]
["CAISO","CAISO","Carrizo_Solar",2024,0,0,0,0,0]
["CAISO","CAISO","Carrizo_Solar",2026,0,0,0,0,0]
["CAISO","CAISO","Carrizo_Solar",2030,0,0,0,0,0]
["CAISO","CAISO","Carrizo_Solar",2045,18013246.3450207,0,8698503.0133658908,0,0]
["CAISO","CAISO","Carrizo_Wind",2020,0,0,0,0,0]
["CAISO","CAISO","Carrizo_Wind",2021,0,0,0,0,0]
["CAISO","CAISO","Carrizo_Wind",2022,0,0,0,0,0]
["CAISO","CAISO","Carrizo_Wind",2023,782579.83132992999,0,0,0,0]
["CAISO","CAISO","Carrizo_Wind",2024,779747.48176163097,0,2832.3495682989301,0,0]
["CAISO","CAISO","Carrizo_Wind",2026,782356.46830916102,0,223.36302076874401,0,0]
["CAISO","CAISO","Carrizo_Wind",2030,777674.61839907395,0,4905.2129308559497,0,0]
["CAISO","CAISO","Carrizo_Wind",2045,761104.95687158406,0,21474.874458345701,0,0]
["CAISO","CAISO","Central_Valley_North_Los_Banos_Solar",2020,0,0,0,0,0]
["CAISO","CAISO","Central_Valley_North_Los_Banos_Solar",2021,0,0,0,0,0]
["CAISO","CAISO","Central_Valley_North_Los_Banos_Solar",2022,0,0,0,0,0]
["CAISO","CAISO","Central_Valley_North_Los_Banos_Solar",2023,0,0,0,0,0]
["CAISO","CAISO","Central_Valley_North_Los_Banos_Solar",2024,0,0,0,0,0]
["CAISO","CAISO","Central_Valley_North_Los_Banos_Solar",2026,0,0,0,0,0]
["CAISO","CAISO","Central_Valley_North_Los_Banos_Solar",2030,0,0,0,0,0]
["CAISO","CAISO","Central_Valley_North_Los_Banos_Solar",2045,6931066.5773104001,0,1702322.31104808,0,0]
["CAISO","CAISO","Central_Valley_North_Los_Banos_Wind",2020,0,0,0,0,0]
["CAISO","CAISO","Central_Valley_North_Los_Banos_Wind",2021,0,0,0,0,0]
["CAISO","CAISO","Central_Valley_North_Los_Banos_Wind",2022,471102.492517962,0,625.10697215341497,0,0]
["CAISO","CAISO","Central_Valley_North_Los_Banos_Wind",2023,468337.91639845999,0,3389.68309165552,0,0]
["CAISO","CAISO","Central_Valley_North_Los_Banos_Wind",2024,465963.16071067599,0,5764.4387794393197,0,0]
["CAISO","CAISO","Central_Valley_North_Los_Banos_Wind",2026,470676.56798729702,0,1051.0315028187699,0,0]
["CAISO","CAISO","Central_Valley_North_Los_Banos_Wind",2030,471663.120772833,0,64.478717282617893,0,0]
["CAISO","CAISO","Central_Valley_North_Los_Banos_Wind",2045,457978.19501773198,0,13749.4044723838,0,0]
["CAISO","CAISO","Customer_PV",2020,13782727.5880161,0,0,0,0]
["CAISO","CAISO","Customer_PV",2021,13782727.5880161,0,0,0,0]
["CAISO","CAISO","Customer_PV",2022,13782727.5880161,0,0,0,0]
["CAISO","CAISO","Customer_PV",2023,13782727.5880161,0,0,0,0]
["CAISO","CAISO","Customer_PV",2024,13782727.5880161,0,0,0,0]
["CAISO","CAISO","Customer_PV",2026,13782727.5880161,0,0,0,0]
["CAISO","CAISO","Customer_PV",2030,13782727.5880161,0,0,0,0]
["CAISO","CAISO","Customer_PV",2045,13782727.5880161,0,0,0,0]
["CAISO","CAISO","Del_Norte_Offshore_Wind",2020,0,0,0,0,0]
["CAISO","CAISO","Del_Norte_Offshore_Wind",2021,0,0,0,0,0]
["CAISO","CAISO","Del_Norte_Offshore_Wind",2022,0,0,0,0,0]
["CAISO","CAISO","Del_Norte_Offshore_Wind",2023,0,0,0,0,0]
["CAISO","CAISO","Del_Norte_Offshore_Wind",2024,0,0,0,0,0]
["CAISO","CAISO","Del_Norte_Offshore_Wind",2026,0,0,0,0,0]
["CAISO","CAISO","Del_Norte_Offshore_Wind",2030,0,0,0,0,0]
["CAISO","CAISO","Del_Norte_Offshore_Wind",2045,0,0,0,0,0]
["CAISO","CAISO","Diablo_Canyon_Offshore_Wind",2020,0,0,0,0,0]
["CAISO","CAISO","Diablo_Canyon_Offshore_Wind",2021,0,0,0,0,0]
["CAISO","CAISO","Diablo_Canyon_Offshore_Wind",2022,0,0,0,0,0]
["CAISO","CAISO","Diablo_Canyon_Offshore_Wind",2023,0,0,0,0,0]
["CAISO","CAISO","Diablo_Canyon_Offshore_Wind",2024,0,0,0,0,0]
["CAISO","CAISO","Diablo_Canyon_Offshore_Wind",2026,0,0,0,0,0]
["CAISO","CAISO","Diablo_Canyon_Offshore_Wind",2030,0,0,0,0,0]
["CAISO","CAISO","Diablo_Canyon_Offshore_Wind",2045,0,0,0,0,0]
["CAISO","CAISO","Diablo_Canyon_Offshore_Wind_Ext_Tx",2020,0,0,0,0,0]
["CAISO","CAISO","Diablo_Canyon_Offshore_Wind_Ext_Tx",2021,0,0,0,0,0]
["CAISO","CAISO","Diablo_Canyon_Offshore_Wind_Ext_Tx",2022,0,0,0,0,0]
["CAISO","CAISO","Diablo_Canyon_Offshore_Wind_Ext_Tx",2023,0,0,0,0,0]
["CAISO","CAISO","Diablo_Canyon_Offshore_Wind_Ext_Tx",2024,0,0,0,0,0]
["CAISO","CAISO","Diablo_Canyon_Offshore_Wind_Ext_Tx",2026,0,0,0,0,0]
["CAISO","CAISO","Diablo_Canyon_Offshore_Wind_Ext_Tx",2030,0,0,0,0,0]
["CAISO","CAISO","Diablo_Canyon_Offshore_Wind_Ext_Tx",2045,0,0,0,0,0]
["CAISO","CAISO","Distributed_Solar",2020,0,0,0,0,0]
["CAISO","CAISO","Distributed_Solar",2021,0,0,0,0,0]
["CAISO","CAISO","Distributed_Solar",2022,0,0,0,0,0]
["CAISO","CAISO","Distributed_Solar",2023,0,0,0,0,0]
["CAISO","CAISO","Distributed_Solar",2024,0,0,0,0,0]
["CAISO","CAISO","Distributed_Solar",2026,0,0,0,0,0]
["CAISO","CAISO","Distributed_Solar",2030,0,0,0,0,0]
["CAISO","CAISO","Distributed_Solar",2045,0,0,0,0,0]
["CAISO","CAISO","EV_Charging",2020,0,0,0,0,0]
["CAISO","CAISO","EV_Charging",2021,0,0,0,0,0]
["CAISO","CAISO","EV_Charging",2022,0,0,0,0,0]
["CAISO","CAISO","EV_Charging",2023,0,0,0,0,0]
["CAISO","CAISO","EV_Charging",2024,0,0,0,0,0]
["CAISO","CAISO","EV_Charging",2026,0,0,0,0,0]
["CAISO","CAISO","EV_Charging",2030,0,0,0,0,0]
["CAISO","CAISO","EV_Charging",2045,0,0,0,0,0]
["CAISO","CAISO","Greater_Imperial_Geothermal",2020,0,0,0,0,0]
["CAISO","CAISO","Greater_Imperial_Geothermal",2021,0,0,0,0,0]
["CAISO","CAISO","Greater_Imperial_Geothermal",2022,0,0,0,0,0]
["CAISO","CAISO","Greater_Imperial_Geothermal",2023,0,0,0,0,0]
["CAISO","CAISO","Greater_Imperial_Geothermal",2024,0,0,0,0,0]
["CAISO","CAISO","Greater_Imperial_Geothermal",2026,0,0,0,0,0]
["CAISO","CAISO","Greater_Imperial_Geothermal",2030,0,0,0,0,0]
["CAISO","CAISO","Greater_Imperial_Geothermal",2045,10434036,0,0,0,0]
["CAISO","CAISO","Greater_Imperial_Solar",2020,0,0,0,0,0]
["CAISO","CAISO","Greater_Imperial_Solar",2021,0,0,0,0,0]
["CAISO","CAISO","Greater_Imperial_Solar",2022,0,0,0,0,0]
["CAISO","CAISO","Greater_Imperial_Solar",2023,0,0,0,0,0]
["CAISO","CAISO","Greater_Imperial_Solar",2024,0,0,0,0,0]
["CAISO","CAISO","Greater_Imperial_Solar",2026,2378089.03883442,0,1504.6087901624001,0,0]
["CAISO","CAISO","Greater_Imperial_Solar",2030,2343301.2198864701,0,36292.427738103899,0,0]
["CAISO","CAISO","Greater_Imperial_Solar",2045,2254746.0760487099,0,124847.571575861,0,0]
["CAISO","CAISO","Greater_Imperial_Wind",2020,0,0,0,0,0]
["CAISO","CAISO","Greater_Imperial_Wind",2021,0,0,0,0,0]
["CAISO","CAISO","Greater_Imperial_Wind",2022,0,0,0,0,0]
["CAISO","CAISO","Greater_Imperial_Wind",2023,0,0,0,0,0]
["CAISO","CAISO","Greater_Imperial_Wind",2024,0,0,0,0,0]
["CAISO","CAISO","Greater_Imperial_Wind",2026,0,0,0,0,0]
["CAISO","CAISO","Greater_Imperial_Wind",2030,0,0,0,0,0]
["CAISO","CAISO","Greater_Imperial_Wind",2045,0,0,0,0,0]
["CAISO","CAISO","Greater_Kramer_Wind",2020,0,0,0,0,0]
["CAISO","CAISO","Greater_Kramer_Wind",2021,0,0,0,0,0]
["CAISO","CAISO","Greater_Kramer_Wind",2022,0,0,0,0,0]
["CAISO","CAISO","Greater_Kramer_Wind",2023,0,0,0,0,0]
["CAISO","CAISO","Greater_Kramer_Wind",2024,0,0,0,0,0]
["CAISO","CAISO","Greater_Kramer_Wind",2026,0,0,0,0,0]
["CAISO","CAISO","Greater_Kramer_Wind",2030,0,0,0,0,0]
["CAISO","CAISO","Greater_Kramer_Wind",2045,0,0,0,0,0]
["CAISO","CAISO","Humboldt_Bay_Offshore_Wind",2020,0,0,0,0,0]
["CAISO","CAISO","Humboldt_Bay_Offshore_Wind",2021,0,0,0,0,0]
["CAISO","CAISO","Humboldt_Bay_Offshore_Wind",2022,0,0,0,0,0]
["CAISO","CAISO","Humboldt_Bay_Offshore_Wind",2023,0,0,0,0,0]
["CAISO","CAISO","Humboldt_Bay_Offshore_Wind",2024,0,0,0,0,0]
["CAISO","CAISO","Humboldt_Bay_Offshore_Wind",2026,0,0,0,0,0]
["CAISO","CAISO","Humboldt_Bay_Offshore_Wind",2030,0,0,0,0,0]
["CAISO","CAISO","Humboldt_Bay_Offshore_Wind",2045,0,0,0,0,0]
["CAISO","CAISO","Humboldt_Wind",2020,0,0,0,0,0]
["CAISO","CAISO","Humboldt_Wind",2021,87035.777244516401,0,12.628361832600101,0,0]
["CAISO","CAISO","Humboldt_Wind",2022,87048.405606348999,0,0,0,0]
["CAISO","CAISO","Humboldt_Wind",2023,86992.035722260494,0,56.3698840884527,0,0]
["CAISO","CAISO","Humboldt_Wind",2024,86295.990880890895,0,752.41472545805698,0,0]
["CAISO","CAISO","Humboldt_Wind",2026,86788.803906216504,0,259.601700132497,0,0]
["CAISO","CAISO","Humboldt_Wind",2030,86865.380959635106,0,183.02464671388401,0,0]
["CAISO","CAISO","Humboldt_Wind",2045,85986.571207475194,0,1061.83439887379,0,0]
["CAISO","CAISO","Hydrogen_electrolysis",2020,0,0,0,0,0]
["CAISO","CAISO","Hydrogen_electrolysis",2021,0,0,0,0,0]
["CAISO","CAISO","Hydrogen_electrolysis",2022,0,0,0,0,0]
["CAISO","CAISO","Hydrogen_electrolysis",2023,0,0,0,0,0]
["CAISO","CAISO","Hydrogen_electrolysis",2024,0,0,0,0,0]
["CAISO","CAISO","Hydrogen_electrolysis",2026,0,0,0,0,0]
["CAISO","CAISO","Hydrogen_electrolysis",2030,0,0,0,0,0]
["CAISO","CAISO","Hydrogen_electrolysis",2045,-986394.25000000396,0,0,0,0]
["CAISO","CAISO","Idaho_Wind",2020,0,0,0,0,0]
["CAISO","CAISO","Idaho_Wind",2021,0,0,0,0,0]
["CAISO","CAISO","Idaho_Wind",2022,0,0,0,0,0]
["CAISO","CAISO","Idaho_Wind",2023,0,0,0,0,0]
["CAISO","CAISO","Idaho_Wind",2024,0,0,0,0,0]
["CAISO","CAISO","Idaho_Wind",2026,0,0,0,0,0]
["CAISO","CAISO","Idaho_Wind",2030,0,0,0,0,0]
["CAISO","CAISO","Idaho_Wind",2045,0,0,0,0,0]
["CAISO","CAISO","InState_Biomass",2020,0,0,0,0,0]
["CAISO","CAISO","InState_Biomass",2021,0,0,0,0,0]
["CAISO","CAISO","InState_Biomass",2022,0,0,0,0,0]
["CAISO","CAISO","InState_Biomass",2023,0,0,0,0,0]
["CAISO","CAISO","InState_Biomass",2024,0,0,0,0,0]
["CAISO","CAISO","InState_Biomass",2026,0,0,0,0,0]
["CAISO","CAISO","InState_Biomass",2030,0,0,0,0,0]
["CAISO","CAISO","InState_Biomass",2045,8539510.7999999691,0,0,0,0]
["CAISO","CAISO","Inyokern_North_Kramer_Geothermal",2020,0,0,0,0,0]
["CAISO","CAISO","Inyokern_North_Kramer_Geothermal",2021,0,0,0,0,0]
["CAISO","CAISO","Inyokern_North_Kramer_Geothermal",2022,0,0,0,0,0]
["CAISO","CAISO","Inyokern_North_Kramer_Geothermal",2023,0,0,0,0,0]
["CAISO","CAISO","Inyokern_North_Kramer_Geothermal",2024,0,0,0,0,0]
["CAISO","CAISO","Inyokern_North_Kramer_Geothermal",2026,0,0,0,0,0]
["CAISO","CAISO","Inyokern_North_Kramer_Geothermal",2030,0,0,0,0,0]
["CAISO","CAISO","Inyokern_North_Kramer_Geothermal",2045,168192,0,0,0,0]
["CAISO","CAISO","Inyokern_North_Kramer_Solar",2020,0,0,0,0,0]
["CAISO","CAISO","Inyokern_North_Kramer_Solar",2021,98771.1143315316,0,0,0,0]
["CAISO","CAISO","Inyokern_North_Kramer_Solar",2022,205639.72050022599,0,371.20065415027801,0,0]
["CAISO","CAISO","Inyokern_North_Kramer_Solar",2023,204228.74660404801,0,1782.17455032778,0,0]
["CAISO","CAISO","Inyokern_North_Kramer_Solar",2024,204164.330260346,0,1846.59089403035,0,0]
["CAISO","CAISO","Inyokern_North_Kramer_Solar",2026,204233.82129240001,0,1777.09986197587,0,0]
["CAISO","CAISO","Inyokern_North_Kramer_Solar",2030,203372.770193164,0,2638.1509612116902,0,0]
["CAISO","CAISO","Inyokern_North_Kramer_Solar",2045,199236.08176100801,0,6774.8393933678399,0,0]
["CAISO","CAISO","Kern_Greater_Carrizo_Solar",2020,0,0,0,0,0]
["CAISO","CAISO","Kern_Greater_Carrizo_Solar",2021,0,0,0,0,0]
["CAISO","CAISO","Kern_Greater_Carrizo_Solar",2022,0,0,0,0,0]
["CAISO","CAISO","Kern_Greater_Carrizo_Solar",2023,308061.37980479799,0,0,0,0]
["CAISO","CAISO","Kern_Greater_Carrizo_Solar",2024,308061.37980479799,0,0,0,0]
["CAISO","CAISO","Kern_Greater_Carrizo_Solar",2026,3051474.6005259198,0,14162.1118845356,0,0]
["CAISO","CAISO","Kern_Greater_Carrizo_Solar",2030,21818882.1090362,0,638184.624787546,0,0]
["CAISO","CAISO","Kern_Greater_Carrizo_Solar",2045,16917952.851807401,0,5539113.9474160597,0,0]
["CAISO","CAISO","Kern_Greater_Carrizo_Wind",2020,0,0,0,0,0]
["CAISO","CAISO","Kern_Greater_Carrizo_Wind",2021,0,0,0,0,0]
["CAISO","CAISO","Kern_Greater_Carrizo_Wind",2022,163605.40058793599,0,0,0,0]
["CAISO","CAISO","Kern_Greater_Carrizo_Wind",2023,163605.40058793599,0,0,0,0]
["CAISO","CAISO","Kern_Greater_Carrizo_Wind",2024,163593.973079955,0,11.427507980898101,0,0]
["CAISO","CAISO","Kern_Greater_Carrizo_Wind",2026,163551.53583714299,0,53.864750792413901,0,0]
["CAISO","CAISO","Kern_Greater_Carrizo_Wind",2030,163034.68355163201,0,570.71703630421405,0,0]
["CAISO","CAISO","Kern_Greater_Carrizo_Wind",2045,161901.435753903,0,1703.96483403251,0,0]
["CAISO","CAISO","Kramer_Inyokern_Ex_Solar",2020,0,0,0,0,0]
["CAISO","CAISO","Kramer_Inyokern_Ex_Solar",2021,0,0,0,0,0]
["CAISO","CAISO","Kramer_Inyokern_Ex_Solar",2022,0,0,0,0,0]
["CAISO","CAISO","Kramer_Inyokern_Ex_Solar",2023,0,0,0,0,0]
["CAISO","CAISO","Kramer_Inyokern_Ex_Solar",2024,0,0,0,0,0]
["CAISO","CAISO","Kramer_Inyokern_Ex_Solar",2026,0,0,0,0,0]
["CAISO","CAISO","Kramer_Inyokern_Ex_Solar",2030,0,0,0,0,0]
["CAISO","CAISO","Kramer_Inyokern_Ex_Solar",2045,0,0,0,0,0]
["CAISO","CAISO","Kramer_Inyokern_Ex_Wind",2020,0,0,0,0,0]
["CAISO","CAISO","Kramer_Inyokern_Ex_Wind",2021,0,0,0,0,0]
["CAISO","CAISO","Kramer_Inyokern_Ex_Wind",2022,0,0,0,0,0]
["CAISO","CAISO","Kramer_Inyokern_Ex_Wind",2023,0,0,0,0,0]
["CAISO","CAISO","Kramer_Inyokern_Ex_Wind",2024,0,0,0,0,0]
["CAISO","CAISO","Kramer_Inyokern_Ex_Wind",2026,0,0,0,0,0]
["CAISO","CAISO","Kramer_Inyokern_Ex_Wind",2030,0,0,0,0,0]
["CAISO","CAISO","Kramer_Inyokern_Ex_Wind",2045,0,0,0,0,0]
["CAISO","CAISO","Morro_Bay_Offshore_Wind",2020,0,0,0,0,0]
["CAISO","CAISO","Morro_Bay_Offshore_Wind",2021,0,0,0,0,0]
["CAISO","CAISO","Morro_Bay_Offshore_Wind",2022,0,0,0,0,0]
["CAISO","CAISO","Morro_Bay_Offshore_Wind",2023,0,0,0,0,0]
["CAISO","CAISO","Morro_Bay_Offshore_Wind",2024,0,0,0,0,0]
["CAISO","CAISO","Morro_Bay_Offshore_Wind",2026,0,0,0,0,0]
["CAISO","CAISO","Morro_Bay_Offshore_Wind",2030,0,0,0,0,0]
["CAISO","CAISO","Morro_Bay_Offshore_Wind",2045,0,0,0,0,0]
["CAISO","CAISO","Mountain_Pass_El_Dorado_Solar",2020,0,0,0,0,0]
["CAISO","CAISO","Mountain_Pass_El_Dorado_Solar",2021,0,0,0,0,0]
["CAISO","CAISO","Mountain_Pass_El_Dorado_Solar",2022,0,0,0,0,0]
["CAISO","CAISO","Mountain_Pass_El_Dorado_Solar",2023,178149.23221779699,0,632.82863660306703,0,0]
["CAISO","CAISO","Mountain_Pass_El_Dorado_Solar",2024,662729.37426575704,0,4178.7426313593996,0,0]
["CAISO","CAISO","Mountain_Pass_El_Dorado_Solar",2026,657447.15110005101,0,9460.9657970655098,0,0]
["CAISO","CAISO","Mountain_Pass_El_Dorado_Solar",2030,652604.61837144895,0,14303.498525667401,0,0]
["CAISO","CAISO","Mountain_Pass_El_Dorado_Solar",2045,630628.98245671601,0,36279.134440400201,0,0]
["CAISO","CAISO","NW_Ext_Tx_Wind",2020,0,0,0,0,0]
["CAISO","CAISO","NW_Ext_Tx_Wind",2021,0,0,0,0,0]
["CAISO","CAISO","NW_Ext_Tx_Wind",2022,1641890.10181286,0,2560.6530150735898,0,0]
["CAISO","CAISO","NW_Ext_Tx_Wind",2023,1635269.5711240601,0,9181.1837038708709,0,0]
["CAISO","CAISO","NW_Ext_Tx_Wind",2024,1637007.6879022,0,7443.0669257315003,0,0]
["CAISO","CAISO","NW_Ext_Tx_Wind",2026,1636540.1649321599,0,7910.5898957663403,0,0]
["CAISO","CAISO","NW_Ext_Tx_Wind",2030,3932350.9103337098,0,59699.501515273201,0,0]
["CAISO","CAISO","NW_Ext_Tx_Wind",2045,3789320.69035231,0,202729.72149667001,0,0]
["CAISO","CAISO","New_Mexico_Solar",2020,0,0,0,0,0]
["CAISO","CAISO","New_Mexico_Solar",2021,0,0,0,0,0]
["CAISO","CAISO","New_Mexico_Solar",2022,0,0,0,0,0]
["CAISO","CAISO","New_Mexico_Solar",2023,0,0,0,0,0]
["CAISO","CAISO","New_Mexico_Solar",2024,0,0,0,0,0]
["CAISO","CAISO","New_Mexico_Solar",2026,0,0,0,0,0]
["CAISO","CAISO","New_Mexico_Solar",2030,0,0,0,0,0]
["CAISO","CAISO","New_Mexico_Solar",2045,0,0,0,0,0]
["CAISO","CAISO","New_Mexico_Wind",2020,0,0,0,0,0]
["CAISO","CAISO","New_Mexico_Wind",2021,0,0,0,0,0]
["CAISO","CAISO","New_Mexico_Wind",2022,0,0,0,0,0]
["CAISO","CAISO","New_Mexico_Wind",2023,0,0,0,0,0]
["CAISO","CAISO","New_Mexico_Wind",2024,0,0,0,0,0]
["CAISO","CAISO","New_Mexico_Wind",2026,0,0,0,0,0]
["CAISO","CAISO","New_Mexico_Wind",2030,5060378.4539347598,0,98016.130888104104,0,0]
["CAISO","CAISO","New_Mexico_Wind",2045,5605040.3694824902,0,182788.06206124599,0,0]
["CAISO","CAISO","North_Victor_Solar",2020,0,0,0,0,0]
["CAISO","CAISO","North_Victor_Solar",2021,0,0,0,0,0]
["CAISO","CAISO","North_Victor_Solar",2022,841685.20207711298,0,4932.5844312874897,0,0]
["CAISO","CAISO","North_Victor_Solar",2023,845207.28887975099,0,1410.4976286501401,0,0]
["CAISO","CAISO","North_Victor_Solar",2024,842516.37666441,0,4101.40984399017,0,0]
["CAISO","CAISO","North_Victor_Solar",2026,830298.76622878097,0,16319.020279619201,0,0]
["CAISO","CAISO","North_Victor_Solar",2030,813260.14741559594,0,33357.6390928045,0,0]
["CAISO","CAISO","North_Victor_Solar",2045,809995.43040301802,0,36622.356105382598,0,0]
["CAISO","CAISO","Northern_California_Ex_Geothermal",2020,0,0,0,0,0]
["CAISO","CAISO","Northern_California_Ex_Geothermal",2021,0,0,0,0,0]
["CAISO","CAISO","Northern_California_Ex_Geothermal",2022,0,0,0,0,0]
["CAISO","CAISO","Northern_California_Ex_Geothermal",2023,0,0,0,0,0]
["CAISO","CAISO","Northern_California_Ex_Geothermal",2024,0,0,0,0,0]
["CAISO","CAISO","Northern_California_Ex_Geothermal",2026,0,0,0,0,0]
["CAISO","CAISO","Northern_California_Ex_Geothermal",2030,0,0,0,0,0]
["CAISO","CAISO","Northern_California_Ex_Geothermal",2045,3327836.3999999701,0,0,0,0]
["CAISO","CAISO","Northern_California_Ex_Solar",2020,0,0,0,0,0]
["CAISO","CAISO","Northern_California_Ex_Solar",2021,0,0,0,0,0]
["CAISO","CAISO","Northern_California_Ex_Solar",2022,0,0,0,0,0]
["CAISO","CAISO","Northern_California_Ex_Solar",2023,0,0,0,0,0]
["CAISO","CAISO","Northern_California_Ex_Solar",2024,0,0,0,0,0]
["CAISO","CAISO","Northern_California_Ex_Solar",2026,0,0,0,0,0]
["CAISO","CAISO","Northern_California_Ex_Solar",2030,960901.41796508699,0,10764.9299877417,0,0]
["CAISO","CAISO","Northern_California_Ex_Solar",2045,917977.37576566602,0,53688.972187163003,0,0]
["CAISO","CAISO","Northern_California_Ex_Wind",2020,0,0,0,0,0]
["CAISO","CAISO","Northern_California_Ex_Wind",2021,0,0,0,0,0]
["CAISO","CAISO","Northern_California_Ex_Wind",2022,2216942.8097140701,0,0,0,0]
["CAISO","CAISO","Northern_California_Ex_Wind",2023,2213816.8843685701,0,3125.9253455033099,0,0]
["CAISO","CAISO","Northern_California_Ex_Wind",2024,2198326.3663198701,0,18616.443394205398,0,0]
["CAISO","CAISO","Northern_California_Ex_Wind",2026,2211974.3669444001,0,4968.4427696750499,0,0]
["CAISO","CAISO","Northern_California_Ex_Wind",2030,2205947.9013073999,0,10994.9084066751,0,0]
["CAISO","CAISO","Northern_California_Ex_Wind",2045,2148719.4702826999,0,68223.3394313725,0,0]
["CAISO","CAISO","Pacific_Northwest_Geothermal",2020,0,0,0,0,0]
["CAISO","CAISO","Pacific_Northwest_Geothermal",2021,0,0,0,0,0]
["CAISO","CAISO","Pacific_Northwest_Geothermal",2022,0,0,0,0,0]
["CAISO","CAISO","Pacific_Northwest_Geothermal",2023,0,0,0,0,0]
["CAISO","CAISO","Pacific_Northwest_Geothermal",2024,0,0,0,0,0]
["CAISO","CAISO","Pacific_Northwest_Geothermal",2026,0,0,0,0,0]
["CAISO","CAISO","Pacific_Northwest_Geothermal",2030,0,0,0,0,0]
["CAISO","CAISO","Pacific_Northwest_Geothermal",2045,0,0,0,0,0]
["CAISO","CAISO","Pacific_Northwest_Wind",2020,0,0,0,0,0]
["CAISO","CAISO","Pacific_Northwest_Wind",2021,0,0,0,0,0]
["CAISO","CAISO","Pacific_Northwest_Wind",2022,0,0,0,0,0]
["CAISO","CAISO","Pacific_Northwest_Wind",2023,0,0,0,0,0]
["CAISO","CAISO","Pacific_Northwest_Wind",2024,0,0,0,0,0]
["CAISO","CAISO","Pacific_Northwest_Wind",2026,0,0,0,0,0]
["CAISO","CAISO","Pacific_Northwest_Wind",2030,0,0,0,0,0]
["CAISO","CAISO","Pacific_Northwest_Wind",2045,0,0,0,0,0]
["CAISO","CAISO","Riverside_Palm_Springs_Geothermal",2020,0,0,0,0,0]
["CAISO","CAISO","Riverside_Palm_Springs_Geothermal",2021,0,0,0,0,0]
["CAISO","CAISO","Riverside_Palm_Springs_Geothermal",2022,0,0,0,0,0]
["CAISO","CAISO","Riverside_Palm_Springs_Geothermal",2023,0,0,0,0,0]
["CAISO","CAISO","Riverside_Palm_Springs_Geothermal",2024,0,0,0,0,0]
["CAISO","CAISO","Riverside_Palm_Springs_Geothermal",2026,0,0,0,0,0]
["CAISO","CAISO","Riverside_Palm_Springs_Geothermal",2030,0,0,0,0,0]
["CAISO","CAISO","Riverside_Palm_Springs_Geothermal",2045,224255.99999999901,0,0,0,0]
["CAISO","CAISO","Riverside_Palm_Springs_Solar",2020,0,0,0,0,0]
["CAISO","CAISO","Riverside_Palm_Springs_Solar",2021,0,0,0,0,0]
["CAISO","CAISO","Riverside_Palm_Springs_Solar",2022,0,0,0,0,0]
["CAISO","CAISO","Riverside_Palm_Springs_Solar",2023,0,0,0,0,0]
["CAISO","CAISO","Riverside_Palm_Springs_Solar",2024,0,0,0,0,0]
["CAISO","CAISO","Riverside_Palm_Springs_Solar",2026,0,0,0,0,0]
["CAISO","CAISO","Riverside_Palm_Springs_Solar",2030,0,0,0,0,0]
["CAISO","CAISO","Riverside_Palm_Springs_Solar",2045,0,0,0,0,0]
["CAISO","CAISO","SCADSNV_Solar",2020,0,0,0,0,0]
["CAISO","CAISO","SCADSNV_Solar",2021,0,0,0,0,0]
["CAISO","CAISO","SCADSNV_Solar",2022,0,0,0,0,0]
["CAISO","CAISO","SCADSNV_Solar",2023,0,0,0,0,0]
["CAISO","CAISO","SCADSNV_Solar",2024,0,0,0,0,0]
["CAISO","CAISO","SCADSNV_Solar",2026,5815929.2971214503,0,28756.189005161599,0,0]
["CAISO","CAISO","SCADSNV_Solar",2030,5716028.1844288995,0,128657.30169771001,0,0]
["CAISO","CAISO","SCADSNV_Solar",2045,5812690.9191594198,0,31994.5669671865,0,0]
["CAISO","CAISO","SCADSNV_Wind",2020,0,0,0,0,0]
["CAISO","CAISO","SCADSNV_Wind",2021,0,0,0,0,0]
["CAISO","CAISO","SCADSNV_Wind",2022,0,0,0,0,0]
["CAISO","CAISO","SCADSNV_Wind",2023,0,0,0,0,0]
["CAISO","CAISO","SCADSNV_Wind",2024,0,0,0,0,0]
["CAISO","CAISO","SCADSNV_Wind",2026,0,0,0,0,0]
["CAISO","CAISO","SCADSNV_Wind",2030,0,0,0,0,0]
["CAISO","CAISO","SCADSNV_Wind",2045,0,0,0,0,0]
["CAISO","CAISO","SW_Ext_Tx_Wind",2020,0,0,0,0,0]
["CAISO","CAISO","SW_Ext_Tx_Wind",2021,0,0,0,0,0]
["CAISO","CAISO","SW_Ext_Tx_Wind",2022,0,0,0,0,0]
["CAISO","CAISO","SW_Ext_Tx_Wind",2023,0,0,0,0,0]
["CAISO","CAISO","SW_Ext_Tx_Wind",2024,0,0,0,0,0]
["CAISO","CAISO","SW_Ext_Tx_Wind",2026,0,0,0,0,0]
["CAISO","CAISO","SW_Ext_Tx_Wind",2030,0,0,0,0,0]
["CAISO","CAISO","SW_Ext_Tx_Wind",2045,1533423.5986210301,0,50547.004043560097,0,0]
["CAISO","CAISO","Sacramento_River_Solar",2020,0,0,0,0,0]
["CAISO","CAISO","Sacramento_River_Solar",2021,0,0,0,0,0]
["CAISO","CAISO","Sacramento_River_Solar",2022,0,0,0,0,0]
["CAISO","CAISO","Sacramento_River_Solar",2023,0,0,0,0,0]
["CAISO","CAISO","Sacramento_River_Solar",2024,0,0,0,0,0]
["CAISO","CAISO","Sacramento_River_Solar",2026,0,0,0,0,0]
["CAISO","CAISO","Sacramento_River_Solar",2030,4890079.16436515,0,61713.097477676303,0,0]
["CAISO","CAISO","Sacramento_River_Solar",2045,43416667.501404099,0,14075381.2405069,0,0]
["CAISO","CAISO","Sacramento_River_Wind",2020,0,0,0,0,0]
["CAISO","CAISO","Sacramento_River_Wind",2021,0,0,0,0,0]
["CAISO","CAISO","Sacramento_River_Wind",2022,0,0,0,0,0]
["CAISO","CAISO","Sacramento_River_Wind",2023,0,0,0,0,0]
["CAISO","CAISO","Sacramento_River_Wind",2024,0,0,0,0,0]
["CAISO","CAISO","Sacramento_River_Wind",2026,0,0,0,0,0]
["CAISO","CAISO","Sacramento_River_Wind",2030,0,0,0,0,0]
["CAISO","CAISO","Sacramento_River_Wind",2045,0,0,0,0,0]
["CAISO","CAISO","Solano_Geothermal",2020,0,0,0,0,0]
["CAISO","CAISO","Solano_Geothermal",2021,0,0,0,0,0]
["CAISO","CAISO","Solano_Geothermal",2022,0,0,0,0,0]
["CAISO","CAISO","Solano_Geothermal",2023,0,0,0,0,0]
["CAISO","CAISO","Solano_Geothermal",2024,1064339.99999999,0,0,0,0]
["CAISO","CAISO","Solano_Geothermal",2026,1064339.99999999,0,0,0,0]
["CAISO","CAISO","Solano_Geothermal",2030,1064339.99999999,0,0,0,0]
["CAISO","CAISO","Solano_Geothermal",2045,1064339.99999999,0,0,0,0]
["CAISO","CAISO","Solano_Solar",2020,0,0,0,0,0]
["CAISO","CAISO","Solano_Solar",2021,0,0,0,0,0]
["CAISO","CAISO","Solano_Solar",2022,0,0,0,0,0]
["CAISO","CAISO","Solano_Solar",2023,0,0,0,0,0]
["CAISO","CAISO","Solano_Solar",2024,0,0,0,0,0]
["CAISO","CAISO","Solano_Solar",2026,0,0,0,0,0]
["CAISO","CAISO","Solano_Solar",2030,1760578.8794628901,0,29089.2516556296,0,0]
["CAISO","CAISO","Solano_Solar",2045,1705225.8281290401,0,84442.302989481497,0,0]
["CAISO","CAISO","Solano_Wind",2020,0,0,0,0,0]
["CAISO","CAISO","Solano_Wind",2021,0,0,0,0,0]
["CAISO","CAISO","Solano_Wind",2022,1233592.45588257,0,217.01270720056201,0,0]
["CAISO","CAISO","Solano_Wind",2023,1230287.7907394201,0,3521.6778503456298,0,0]
["CAISO","CAISO","Solano_Wind",2024,1231824.56274199,0,1984.90584778007,0,0]
["CAISO","CAISO","Solano_Wind",2026,1230560.3659200899,0,3249.1026696765998,0,0]
["CAISO","CAISO","Solano_Wind",2030,1232623.3259123301,0,1186.1426774413601,0,0]
["CAISO","CAISO","Solano_Wind",2045,1193327.3203908601,0,40482.148198908602,0,0]
["CAISO","CAISO","Solano_subzone_Solar",2020,0,0,0,0,0]
["CAISO","CAISO","Solano_subzone_Solar",2021,0,0,0,0,0]
["CAISO","CAISO","Solano_subzone_Solar",2022,0,0,0,0,0]
["CAISO","CAISO","Solano_subzone_Solar",2023,0,0,0,0,0]
["CAISO","CAISO","Solano_subzone_Solar",2024,0,0,0,0,0]
["CAISO","CAISO","Solano_subzone_Solar",2026,0,0,0,0,0]
["CAISO","CAISO","Solano_subzone_Solar",2030,0,0,0,0,0]
["CAISO","CAISO","Solano_subzone_Solar",2045,0,0,0,0,0]
["CAISO","CAISO","Solano_subzone_Wind",2020,0,0,0,0,0]
["CAISO","CAISO","Solano_subzone_Wind",2021,0,0,0,0,0]
["CAISO","CAISO","Solano_subzone_Wind",2022,0,0,0,0,0]
["CAISO","CAISO","Solano_subzone_Wind",2023,0,0,0,0,0]
["CAISO","CAISO","Solano_subzone_Wind",2024,0,0,0,0,0]
["CAISO","CAISO","Solano_subzone_Wind",2026,0,0,0,0,0]
["CAISO","CAISO","Solano_subzone_Wind",2030,0,0,0,0,0]
["CAISO","CAISO","Solano_subzone_Wind",2045,0,0,0,0,0]
["CAISO","CAISO","Southern_California_Desert_Ex_Solar",2020,0,0,0,0,0]
["CAISO","CAISO","Southern_California_Desert_Ex_Solar",2021,0,0,0,0,0]
["CAISO","CAISO","Southern_California_Desert_Ex_Solar",2022,2334025.7494314802,0,9286.0544335553805,0,0]
["CAISO","CAISO","Southern_California_Desert_Ex_Solar",2023,2321842.1306751501,0,21469.673189889501,0,0]
["CAISO","CAISO","Southern_California_Desert_Ex_Solar",2024,2332108.0544238901,0,11203.749441144701,0,0]
["CAISO","CAISO","Southern_California_Desert_Ex_Solar",2026,2337015.8385658902,0,6295.9652991510402,0,0]
["CAISO","CAISO","Southern_California_Desert_Ex_Solar",2030,2281979.9578828202,0,61331.8459822121,0,0]
["CAISO","CAISO","Southern_California_Desert_Ex_Solar",2045,2288712.0527639599,0,54599.7511010776,0,0]
["CAISO","CAISO","Southern_California_Desert_Ex_Wind",2020,0,0,0,0,0]
["CAISO","CAISO","Southern_California_Desert_Ex_Wind",2021,0,0,0,0,0]
["CAISO","CAISO","Southern_California_Desert_Ex_Wind",2022,0,0,0,0,0]
["CAISO","CAISO","Southern_California_Desert_Ex_Wind",2023,0,0,0,0,0]
["CAISO","CAISO","Southern_California_Desert_Ex_Wind",2024,0,0,0,0,0]
["CAISO","CAISO","Southern_California_Desert_Ex_Wind",2026,0,0,0,0,0]
["CAISO","CAISO","Southern_California_Desert_Ex_Wind",2030,0,0,0,0,0]
["CAISO","CAISO","Southern_California_Desert_Ex_Wind",2045,0,0,0,0,0]
["CAISO","CAISO","Southern_Nevada_Geothermal",2020,0,0,0,0,0]
["CAISO","CAISO","Southern_Nevada_Geothermal",2021,0,0,0,0,0]
["CAISO","CAISO","Southern_Nevada_Geothermal",2022,0,0,0,0,0]
["CAISO","CAISO","Southern_Nevada_Geothermal",2023,0,0,0,0,0]
["CAISO","CAISO","Southern_Nevada_Geothermal",2024,0,0,0,0,0]
["CAISO","CAISO","Southern_Nevada_Geothermal",2026,0,0,0,0,0]
["CAISO","CAISO","Southern_Nevada_Geothermal",2030,0,0,0,0,0]
["CAISO","CAISO","Southern_Nevada_Geothermal",2045,2363886.0000000098,0,0,0,0]
["CAISO","CAISO","Southern_Nevada_Solar",2020,0,0,0,0,0]
["CAISO","CAISO","Southern_Nevada_Solar",2021,0,0,0,0,0]
["CAISO","CAISO","Southern_Nevada_Solar",2022,0,0,0,0,0]
["CAISO","CAISO","Southern_Nevada_Solar",2023,0,0,0,0,0]
["CAISO","CAISO","Southern_Nevada_Solar",2024,0,0,0,0,0]
["CAISO","CAISO","Southern_Nevada_Solar",2026,0,0,0,0,0]
["CAISO","CAISO","Southern_Nevada_Solar",2030,0,0,0,0,0]
["CAISO","CAISO","Southern_Nevada_Solar",2045,0,0,0,0,0]
["CAISO","CAISO","Southern_Nevada_Wind",2020,0,0,0,0,0]
["CAISO","CAISO","Southern_Nevada_Wind",2021,0,0,0,0,0]
["CAISO","CAISO","Southern_Nevada_Wind",2022,1088061.6946896799,0,0,0,0]
["CAISO","CAISO","Southern_Nevada_Wind",2023,1079668.5625801899,0,8393.1321094860396,0,0]
["CAISO","CAISO","Southern_Nevada_Wind",2024,1080870.3341312499,0,7191.3605584317102,0,0]
["CAISO","CAISO","Southern_Nevada_Wind",2026,1083449.95537148,0,4611.7393181952502,0,0]
["CAISO","CAISO","Southern_Nevada_Wind",2030,1085450.0192746101,0,2611.6754150676602,0,0]
["CAISO","CAISO","Southern_Nevada_Wind",2045,1060597.9995923899,0,27463.6950972901,0,0]
["CAISO","CAISO","Tehachapi_Ex_Solar",2020,0,0,0,0,0]
["CAISO","CAISO","Tehachapi_Ex_Solar",2021,0,0,0,0,0]
["CAISO","CAISO","Tehachapi_Ex_Solar",2022,0,0,0,0,0]
["CAISO","CAISO","Tehachapi_Ex_Solar",2023,0,0,0,0,0]
["CAISO","CAISO","Tehachapi_Ex_Solar",2024,0,0,0,0,0]
["CAISO","CAISO","Tehachapi_Ex_Solar",2026,0,0,0,0,0]
["CAISO","CAISO","Tehachapi_Ex_Solar",2030,0,0,0,0,0]
["CAISO","CAISO","Tehachapi_Ex_Solar",2045,0,0,0,0,0]
["CAISO","CAISO","Tehachapi_Solar",2020,4050459.33021477,0,16397.869898962199,0,0]
["CAISO","CAISO","Tehachapi_Solar",2021,9616168.8243472204,0,11840.436778114101,0,0]
["CAISO","CAISO","Tehachapi_Solar",2022,11826051.965030899,0,66039.090950395301,0,0]
["CAISO","CAISO","Tehachapi_Solar",2023,11815923.6883667,0,76167.278484268405,0,0]
["CAISO","CAISO","Tehachapi_Solar",2024,11834563.3225112,0,57527.679626099598,0,0]
["CAISO","CAISO","Tehachapi_Solar",2026,13506117.8451318,0,81203.138606275796,0,0]
["CAISO","CAISO","Tehachapi_Solar",2030,12994716.384881601,0,592604.59885642095,0,0]
["CAISO","CAISO","Tehachapi_Solar",2045,10113624.5067816,0,3473696.4769565002,0,0]
["CAISO","CAISO","Tehachapi_Wind",2020,0,0,0,0,0]
["CAISO","CAISO","Tehachapi_Wind",2021,0,0,0,0,0]
["CAISO","CAISO","Tehachapi_Wind",2022,826242.91649638198,0,0,0,0]
["CAISO","CAISO","Tehachapi_Wind",2023,823805.54894147697,0,2437.3675549046802,0,0]
["CAISO","CAISO","Tehachapi_Wind",2024,823095.44720337505,0,3147.46929300688,0,0]
["CAISO","CAISO","Tehachapi_Wind",2026,822541.15254175104,0,3701.7639546307601,0,0]
["CAISO","CAISO","Tehachapi_Wind",2030,822036.50703321304,0,4206.4094631693997,0,0]
["CAISO","CAISO","Tehachapi_Wind",2045,808534.64006962394,0,17708.276426757599,0,0]
["CAISO","CAISO","Utah_Solar",2020,0,0,0,0,0]
["CAISO","CAISO","Utah_Solar",2021,0,0,0,0,0]
["CAISO","CAISO","Utah_Solar",2022,0,0,0,0,0]
["CAISO","CAISO","Utah_Solar",2023,0,0,0,0,0]
["CAISO","CAISO","Utah_Solar",2024,0,0,0,0,0]
["CAISO","CAISO","Utah_Solar",2026,0,0,0,0,0]
["CAISO","CAISO","Utah_Solar",2030,0,0,0,0,0]
["CAISO","CAISO","Utah_Solar",2045,0,0,0,0,0]
["CAISO","CAISO","Utah_Wind",2020,0,0,0,0,0]
["CAISO","CAISO","Utah_Wind",2021,0,0,0,0,0]
["CAISO","CAISO","Utah_Wind",2022,0,0,0,0,0]
["CAISO","CAISO","Utah_Wind",2023,0,0,0,0,0]
["CAISO","CAISO","Utah_Wind",2024,0,0,0,0,0]
["CAISO","CAISO","Utah_Wind",2026,0,0,0,0,0]
["CAISO","CAISO","Utah_Wind",2030,0,0,0,0,0]
["CAISO","CAISO","Utah_Wind",2045,0,0,0,0,0]
["CAISO","CAISO","Westlands_Ex_Solar",2020,0,0,0,0,0]
["CAISO","CAISO","Westlands_Ex_Solar",2021,0,0,0,0,0]
["CAISO","CAISO","Westlands_Ex_Solar",2022,0,0,0,0,0]
["CAISO","CAISO","Westlands_Ex_Solar",2023,4750774.59031564,0,44702.702116054701,0,0]
["CAISO","CAISO","Westlands_Ex_Solar",2024,4732997.3359383801,0,62479.956493320999,0,0]
["CAISO","CAISO","Westlands_Ex_Solar",2026,4787118.9606547402,0,8358.3317769618607,0,0]
["CAISO","CAISO","Westlands_Ex_Solar",2030,4681082.82668918,0,114394.376612205,0,0]
["CAISO","CAISO","Westlands_Ex_Solar",2045,4634859.43996293,0,160617.85246877,0,0]
["CAISO","CAISO","Westlands_Ex_Wind",2020,0,0,0,0,0]
["CAISO","CAISO","Westlands_Ex_Wind",2021,0,0,0,0,0]
["CAISO","CAISO","Westlands_Ex_Wind",2022,0,0,0,0,0]
["CAISO","CAISO","Westlands_Ex_Wind",2023,0,0,0,0,0]
["CAISO","CAISO","Westlands_Ex_Wind",2024,0,0,0,0,0]
["CAISO","CAISO","Westlands_Ex_Wind",2026,0,0,0,0,0]
["CAISO","CAISO","Westlands_Ex_Wind",2030,0,0,0,0,0]
["CAISO","CAISO","Westlands_Ex_Wind",2045,0,0,0,0,0]
["CAISO","CAISO","Westlands_Solar",2020,0,0,0,0,0]
["CAISO","CAISO","Westlands_Solar",2021,0,0,0,0,0]
["CAISO","CAISO","Westlands_Solar",2022,0,0,0,0,0]
["CAISO","CAISO","Westlands_Solar",2023,108627.696246711,0,1078.2592707766,0,0]
["CAISO","CAISO","Westlands_Solar",2024,109445.928997129,0,260.02652035824599,0,0]
["CAISO","CAISO","Westlands_Solar",2026,1659825.28780159,0,6307.7114319078701,0,0]
["CAISO","CAISO","Westlands_Solar",2030,1649189.6478657101,0,16943.3513677911,0,0]
["CAISO","CAISO","Westlands_Solar",2045,138250663.88016999,0,13145124.543586601,0,0]
["CAISO","CAISO","Wyoming_Wind",2020,0,0,0,0,0]
["CAISO","CAISO","Wyoming_Wind",2021,0,0,0,0,0]
["CAISO","CAISO","Wyoming_Wind",2022,0,0,0,0,0]
["CAISO","CAISO","Wyoming_Wind",2023,0,0,0,0,0]
["CAISO","CAISO","Wyoming_Wind",2024,0,0,0,0,0]
["CAISO","CAISO","Wyoming_Wind",2026,0,0,0,0,0]
["CAISO","CAISO","Wyoming_Wind",2030,0,0,0,0,0]
["CAISO","CAISO","Wyoming_Wind",2045,5762952.4579045102,0,51423.560899317199,0,0]
["CAISO_NW_Hydro","CAISO_NW_Hydro","NW_Hydro_for_CAISO",2020,11900493.6063779,0,0,0,0]
["CAISO_NW_Hydro","CAISO_NW_Hydro","NW_Hydro_for_CAISO",2021,11900492.793045901,0,0,0,0]
["CAISO_NW_Hydro","CAISO_NW_Hydro","NW_Hydro_for_CAISO",2022,11900494.0332544,0,0,0,0]
["CAISO_NW_Hydro","CAISO_NW_Hydro","NW_Hydro_for_CAISO",2023,11900493.693271101,0,0,0,0]
["CAISO_NW_Hydro","CAISO_NW_Hydro","NW_Hydro_for_CAISO",2024,11900493.135400601,0,0,0,0]
["CAISO_NW_Hydro","CAISO_NW_Hydro","NW_Hydro_for_CAISO",2026,11900493.377739999,0,0,0,0]
["CAISO_NW_Hydro","CAISO_NW_Hydro","NW_Hydro_for_CAISO",2030,11900493.098994499,0,0,0,0]
["CAISO_NW_Hydro","CAISO_NW_Hydro","NW_Hydro_for_CAISO",2045,11900493.9074152,0,0,0,0]
["IID","CAISO","IID_Geothermal_for_CAISO",2020,581664.00000000105,0,0,0,0]
["IID","CAISO","IID_Geothermal_for_CAISO",2021,581664.00000000105,0,0,0,0]
["IID","CAISO","IID_Geothermal_for_CAISO",2022,581664.00000000105,0,0,0,0]
["IID","CAISO","IID_Geothermal_for_CAISO",2023,581664.00000000105,0,0,0,0]
["IID","CAISO","IID_Geothermal_for_CAISO",2024,581664.00000000105,0,0,0,0]
["IID","CAISO","IID_Geothermal_for_CAISO",2026,581664.00000000105,0,0,0,0]
["IID","CAISO","IID_Geothermal_for_CAISO",2030,581664.00000000105,0,0,0,0]
["IID","CAISO","IID_Geothermal_for_CAISO",2045,581664.00000000105,0,0,0,0]
["IID","CAISO","IID_Solar_for_CAISO",2020,147193.23068361499,0,441.04418202911501,0,0]
["IID","CAISO","IID_Solar_for_CAISO",2021,147267.86267607601,0,366.41218956778198,0,0]
["IID","CAISO","IID_Solar_for_CAISO",2022,147203.94401489801,0,430.33085074623602,0,0]
["IID","CAISO","IID_Solar_for_CAISO",2023,147193.23068361499,0,441.04418202911501,0,0]
["IID","CAISO","IID_Solar_for_CAISO",2024,146523.88747618601,0,1110.21006095342,0,0]
["IID","CAISO","IID_Solar_for_CAISO",2026,141534.53230906301,0,6099.8006413051598,0,0]
["IID","CAISO","IID_Solar_for_CAISO",2030,136770.063595213,0,10864.269355156001,0,0]
["IID","CAISO","IID_Solar_for_CAISO",2045,137092.19922796899,0,10542.0756376752,0,0]
["IID","IID","IID_Biomass_for_Other",2020,674519.99999999104,0,0,0,0]
["IID","IID","IID_Biomass_for_Other",2021,674519.99999999104,0,0,0,0]
["IID","IID","IID_Biomass_for_Other",2022,674519.99999999104,0,0,0,0]
["IID","IID","IID_Biomass_for_Other",2023,674519.99999999104,0,0,0,0]
["IID","IID","IID_Biomass_for_Other",2024,674519.99999999104,0,0,0,0]
["IID","IID","IID_Biomass_for_Other",2026,674519.99999999104,0,0,0,0]
["IID","IID","IID_Biomass_for_Other",2030,674519.99999999104,0,0,0,0]
["IID","IID","IID_Biomass_for_Other",2045,674519.99999999104,0,0,0,0]
["IID","IID","IID_CCGT",2020,0,0,0,0,0]
["IID","IID","IID_CCGT",2021,0,0,0,0,0]
["IID","IID","IID_CCGT",2022,0,0,0,0,0]
["IID","IID","IID_CCGT",2023,0,0,0,0,0]
["IID","IID","IID_CCGT",2024,0,0,0,0,0]
["IID","IID","IID_CCGT",2026,0,0,0,0,0]
["IID","IID","IID_CCGT",2030,0,0,0,0,0]
["IID","IID","IID_CCGT",2045,0,0,0,0,0]
["IID","IID","IID_Geothermal_for_Other",2020,6214869.6000000099,0,0,0,0]
["IID","IID","IID_Geothermal_for_Other",2021,6214869.6000000099,0,0,0,0]
["IID","IID","IID_Geothermal_for_Other",2022,6214869.6000000099,0,0,0,0]
["IID","IID","IID_Geothermal_for_Other",2023,6214869.6000000099,0,0,0,0]
["IID","IID","IID_Geothermal_for_Other",2024,6214869.6000000099,0,0,0,0]
["IID","IID","IID_Geothermal_for_Other",2026,6214869.6000000099,0,0,0,0]
["IID","IID","IID_Geothermal_for_Other",2030,6214869.6000000099,0,0,0,0]
["IID","IID","IID_Geothermal_for_Other",2045,6214869.6000000099,0,0,0,0]
["IID","IID","IID_Hydro",2020,254747.65328694999,0,0,0,0]
["IID","IID","IID_Hydro",2021,254747.661729999,0,0,0,0]
["IID","IID","IID_Hydro",2022,254747.603645275,0,0,0,0]
["IID","IID","IID_Hydro",2023,254747.603645275,0,0,0,0]
["IID","IID","IID_Hydro",2024,254747.661729999,0,0,0,0]
["IID","IID","IID_Hydro",2026,254747.603645275,0,0,0,0]
["IID","IID","IID_Hydro",2030,254747.83571770199,0,0,0,0]
["IID","IID","IID_Hydro",2045,254747.71398760399,0,0,0,0]
["IID","IID","IID_Peaker",2020,0,0,0,0,0]
["IID","IID","IID_Peaker",2021,0,0,0,0,0]
["IID","IID","IID_Peaker",2022,0,0,0,0,0]
["IID","IID","IID_Peaker",2023,0,0,0,0,0]
["IID","IID","IID_Peaker",2024,0,0,0,0,0]
["IID","IID","IID_Peaker",2026,0,0,0,0,0]
["IID","IID","IID_Peaker",2030,0,0,0,0,0]
["IID","IID","IID_Peaker",2045,0,0,0,0,0]
["IID","IID","IID_Small_Hydro_for_Other",2020,0,0,0,0,0]
["IID","IID","IID_Small_Hydro_for_Other",2021,0,0,0,0,0]
["IID","IID","IID_Small_Hydro_for_Other",2022,0,0,0,0,0]
["IID","IID","IID_Small_Hydro_for_Other",2023,0,0,0,0,0]
["IID","IID","IID_Small_Hydro_for_Other",2024,0,0,0,0,0]
["IID","IID","IID_Small_Hydro_for_Other",2026,0,0,0,0,0]
["IID","IID","IID_Small_Hydro_for_Other",2030,0,0,0,0,0]
["IID","IID","IID_Small_Hydro_for_Other",2045,0,0,0,0,0]
["IID","IID","IID_Solar_for_Other",2020,380687.50711710402,0,0,0,0]
["IID","IID","IID_Solar_for_Other",2021,380687.50711710402,0,0,0,0]
["IID","IID","IID_Solar_for_Other",2022,380687.50711710402,0,0,0,0]
["IID","IID","IID_Solar_for_Other",2023,380687.50711710402,0,0,0,0]
["IID","IID","IID_Solar_for_Other",2024,380687.50711710402,0,0,0,0]
["IID","IID","IID_Solar_for_Other",2026,380687.50711710402,0,0,0,0]
["IID","IID","IID_Solar_for_Other",2030,317482.81218128401,0,78.371721931072202,0,0]
["IID","IID","IID_Solar_for_Other",2045,317432.80459108,0,128.39737846107201,0,0]
["IID","IID","IID_Wind_for_Other",2020,0,0,0,0,0]
["IID","IID","IID_Wind_for_Other",2021,0,0,0,0,0]
["IID","IID","IID_Wind_for_Other",2022,0,0,0,0,0]
["IID","IID","IID_Wind_for_Other",2023,0,0,0,0,0]
["IID","IID","IID_Wind_for_Other",2024,0,0,0,0,0]
["IID","IID","IID_Wind_for_Other",2026,0,0,0,0,0]
["IID","IID","IID_Wind_for_Other",2030,0,0,0,0,0]
["IID","IID","IID_Wind_for_Other",2045,0,0,0,0,0]
["LDWP","CAISO","LDWP_Wind_for_CAISO",2020,13177.7228666632,0,21.4718283806084,0,0]
["LDWP","CAISO","LDWP_Wind_for_CAISO",2021,13175.4374764317,0,23.757218612116102,0,0]
["LDWP","CAISO","LDWP_Wind_for_CAISO",2022,13169.981445997601,0,29.2132490462295,0,0]
["LDWP","CAISO","LDWP_Wind_for_CAISO",2023,13173.0165887556,0,26.178106288179698,0,0]
["LDWP","CAISO","LDWP_Wind_for_CAISO",2024,13143.4027284483,0,55.791966595472402,0,0]
["LDWP","CAISO","LDWP_Wind_for_CAISO",2026,12162.144198137399,0,1037.05049690646,0,0]
["LDWP","CAISO","LDWP_Wind_for_CAISO",2030,12053.646140252,0,1145.5485547917899,0,0]
["LDWP","CAISO","LDWP_Wind_for_CAISO",2045,12545.233173316499,0,653.96152172729501,0,0]
["LDWP","LDWP","LDWP_Biomass_for_Other",2020,0,0,0,0,0]
["LDWP","LDWP","LDWP_Biomass_for_Other",2021,0,0,0,0,0]
["LDWP","LDWP","LDWP_Biomass_for_Other",2022,0,0,0,0,0]
["LDWP","LDWP","LDWP_Biomass_for_Other",2023,0,0,0,0,0]
["LDWP","LDWP","LDWP_Biomass_for_Other",2024,0,0,0,0,0]
["LDWP","LDWP","LDWP_Biomass_for_Other",2026,0,0,0,0,0]
["LDWP","LDWP","LDWP_Biomass_for_Other",2030,0,0,0,0,0]
["LDWP","LDWP","LDWP_Biomass_for_Other",2045,0,0,0,0,0]
["LDWP","LDWP","LDWP_CCGT",2020,5570856.1110470695,0,0,0,0]
["LDWP","LDWP","LDWP_CCGT",2021,6294566.8491398003,0,0,0,0]
["LDWP","LDWP","LDWP_CCGT",2022,6367079.1292935796,0,0,0,0]
["LDWP","LDWP","LDWP_CCGT",2023,6111438.6896706,0,0,0,0]
["LDWP","LDWP","LDWP_CCGT",2024,6449673.8582889801,0,0,0,0]
["LDWP","LDWP","LDWP_CCGT",2026,7039403.3423660602,0,0,0,0]
["LDWP","LDWP","LDWP_CCGT",2030,6978859.3715187199,0,0,0,0]
["LDWP","LDWP","LDWP_CCGT",2045,3010301.5586625501,0,0,19.5700564719053,19.5700564719053]
["LDWP","LDWP","LDWP_Coal",2020,2915888.4522202499,0,0,0,0]
["LDWP","LDWP","LDWP_Coal",2021,2338311.9157157601,0,0,0,0]
["LDWP","LDWP","LDWP_Coal",2022,2230478.2786133001,0,0,0,0]
["LDWP","LDWP","LDWP_Coal",2023,1945297.84481864,0,0,0,0]
["LDWP","LDWP","LDWP_Coal",2024,1518413.71536076,0,0,0,0]
["LDWP","LDWP","LDWP_Coal",2026,0,0,0,0,0]
["LDWP","LDWP","LDWP_Coal",2030,0,0,0,0,0]
["LDWP","LDWP","LDWP_Coal",2045,0,0,0,0,0]
["LDWP","LDWP","LDWP_Geothermal_for_Other",2020,0,0,0,0,0]
["LDWP","LDWP","LDWP_Geothermal_for_Other",2021,0,0,0,0,0]
["LDWP","LDWP","LDWP_Geothermal_for_Other",2022,0,0,0,0,0]
["LDWP","LDWP","LDWP_Geothermal_for_Other",2023,0,0,0,0,0]
["LDWP","LDWP","LDWP_Geothermal_for_Other",2024,0,0,0,0,0]
["LDWP","LDWP","LDWP_Geothermal_for_Other",2026,0,0,0,0,0]
["LDWP","LDWP","LDWP_Geothermal_for_Other",2030,0,0,0,0,0]
["LDWP","LDWP","LDWP_Geothermal_for_Other",2045,0,0,0,0,0]
["LDWP","LDWP","LDWP_Hydro",2020,102925.04181102,0,0,0,0]
["LDWP","LDWP","LDWP_Hydro",2021,102925.04181102,0,0,0,0]
["LDWP","LDWP","LDWP_Hydro",2022,102925.04181102,0,0,0,0]
["LDWP","LDWP","LDWP_Hydro",2023,102925.04181102,0,0,0,0]
["LDWP","LDWP","LDWP_Hydro",2024,102925.04181102,0,0,0,0]
["LDWP","LDWP","LDWP_Hydro",2026,102925.04181102,0,0,0,0]
["LDWP","LDWP","LDWP_Hydro",2030,102925.232235163,0,0,0,0]
["LDWP","LDWP","LDWP_Hydro",2045,102925.20445758699,0,0,0,0]
["LDWP","LDWP","LDWP_Nuclear",2020,3274182.9529019799,0,0,0,0]
["LDWP","LDWP","LDWP_Nuclear",2021,3274182.9529019799,0,0,0,0]
["LDWP","LDWP","LDWP_Nuclear",2022,3274182.9529019799,0,0,0,0]
["LDWP","LDWP","LDWP_Nuclear",2023,3274182.9529019799,0,0,0,0]
["LDWP","LDWP","LDWP_Nuclear",2024,3274182.9529019799,0,0,0,0]
["LDWP","LDWP","LDWP_Nuclear",2026,3274182.9529019799,0,0,0,0]
["LDWP","LDWP","LDWP_Nuclear",2030,3274182.9529019799,0,0,0,0]
["LDWP","LDWP","LDWP_Nuclear",2045,3274182.9529019799,0,0,0,0]
["LDWP","LDWP","LDWP_Peaker",2020,0,0,0,0,0]
["LDWP","LDWP","LDWP_Peaker",2021,0,0,0,0,0]
["LDWP","LDWP","LDWP_Peaker",2022,0,0,0,0,0]
["LDWP","LDWP","LDWP_Peaker",2023,0,0,0,0,0]
["LDWP","LDWP","LDWP_Peaker",2024,0,0,0,0,0]
["LDWP","LDWP","LDWP_Peaker",2026,0,0,0,0,0]
["LDWP","LDWP","LDWP_Peaker",2030,0,0,0,0,0]
["LDWP","LDWP","LDWP_Peaker",2045,0,0,0,0,0]
["LDWP","LDWP","LDWP_ST",2020,0,0,0,0,0]
["LDWP","LDWP","LDWP_ST",2021,0,0,0,0,0]
["LDWP","LDWP","LDWP_ST",2022,0,0,0,0,0]
["LDWP","LDWP","LDWP_ST",2023,0,0,0,0,0]
["LDWP","LDWP","LDWP_ST",2024,0,0,0,0,0]
["LDWP","LDWP","LDWP_ST",2026,0,0,0,0,0]
["LDWP","LDWP","LDWP_ST",2030,0,0,0,0,0]
["LDWP","LDWP","LDWP_ST",2045,0,0,0,0,0]
["LDWP","LDWP","LDWP_Small_Hydro_for_Other",2020,490559.99999999901,0,0,0,0]
["LDWP","LDWP","LDWP_Small_Hydro_for_Other",2021,490559.99999999901,0,0,0,0]
["LDWP","LDWP","LDWP_Small_Hydro_for_Other",2022,490559.99999999901,0,0,0,0]
["LDWP","LDWP","LDWP_Small_Hydro_for_Other",2023,490559.99999999901,0,0,0,0]
["LDWP","LDWP","LDWP_Small_Hydro_for_Other",2024,490559.99999999901,0,0,0,0]
["LDWP","LDWP","LDWP_Small_Hydro_for_Other",2026,490559.99999999901,0,0,0,0]
["LDWP","LDWP","LDWP_Small_Hydro_for_Other",2030,490559.99999999901,0,0,0,0]
["LDWP","LDWP","LDWP_Small_Hydro_for_Other",2045,490559.99999999901,0,0,0,0]
["LDWP","LDWP","LDWP_Solar_for_Other",2020,6271761.6455220804,0,0,0,0]
["LDWP","LDWP","LDWP_Solar_for_Other",2021,6892349.1284064697,0,0,0,0]
["LDWP","LDWP","LDWP_Solar_for_Other",2022,7532642.8363824803,0,0,0,0]
["LDWP","LDWP","LDWP_Solar_for_Other",2023,8059783.8996027997,0,0,0,0]
["LDWP","LDWP","LDWP_Solar_for_Other",2024,8636693.3683847897,0,0,0,0]
["LDWP","LDWP","LDWP_Solar_for_Other",2026,9002012.3921262491,0,0,0,0]
["LDWP","LDWP","LDWP_Solar_for_Other",2030,8971985.1348959394,0,30027.266263469199,0,0]
["LDWP","LDWP","LDWP_Solar_for_Other",2045,8907736.2153999805,0,94275.990364602199,0,0]
["LDWP","LDWP","LDWP_Wind_for_Other",2020,1085495.3651292899,0,0,0,0]
["LDWP","LDWP","LDWP_Wind_for_Other",2021,1085495.3651292899,0,0,0,0]
["LDWP","LDWP","LDWP_Wind_for_Other",2022,1085495.3651292899,0,0,0,0]
["LDWP","LDWP","LDWP_Wind_for_Other",2023,1085495.3651292899,0,0,0,0]
["LDWP","LDWP","LDWP_Wind_for_Other",2024,1085495.3651292899,0,0,0,0]
["LDWP","LDWP","LDWP_Wind_for_Other",2026,1828573.8561118799,0,0,0,0]
["LDWP","LDWP","LDWP_Wind_for_Other",2030,1826784.60332336,0,1789.2527885222501,0,0]
["LDWP","LDWP","LDWP_Wind_for_Other",2045,1825282.4154208701,0,3291.44069100859,0,0]
["NW","CAISO","NW_Biomass_for_CAISO",2020,344618.4,0,0,0,0]
["NW","CAISO","NW_Biomass_for_CAISO",2021,344618.4,0,0,0,0]
["NW","CAISO","NW_Biomass_for_CAISO",2022,344618.4,0,0,0,0]
["NW","CAISO","NW_Biomass_for_CAISO",2023,344618.4,0,0,0,0]
["NW","CAISO","NW_Biomass_for_CAISO",2024,344618.4,0,0,0,0]
["NW","CAISO","NW_Biomass_for_CAISO",2026,344618.4,0,0,0,0]
["NW","CAISO","NW_Biomass_for_CAISO",2030,344618.4,0,0,0,0]
["NW","CAISO","NW_Biomass_for_CAISO",2045,344618.4,0,0,0,0]
["NW","CAISO","NW_Geothermal_for_CAISO",2020,0,0,0,0,0]
["NW","CAISO","NW_Geothermal_for_CAISO",2021,0,0,0,0,0]
["NW","CAISO","NW_Geothermal_for_CAISO",2022,0,0,0,0,0]
["NW","CAISO","NW_Geothermal_for_CAISO",2023,0,0,0,0,0]
["NW","CAISO","NW_Geothermal_for_CAISO",2024,0,0,0,0,0]
["NW","CAISO","NW_Geothermal_for_CAISO",2026,0,0,0,0,0]
["NW","CAISO","NW_Geothermal_for_CAISO",2030,0,0,0,0,0]
["NW","CAISO","NW_Geothermal_for_CAISO",2045,0,0,0,0,0]
["NW","CAISO","NW_Small_Hydro_for_CAISO",2020,30221.999999999902,0,0,0,0]
["NW","CAISO","NW_Small_Hydro_for_CAISO",2021,30221.999999999902,0,0,0,0]
["NW","CAISO","NW_Small_Hydro_for_CAISO",2022,30221.999999999902,0,0,0,0]
["NW","CAISO","NW_Small_Hydro_for_CAISO",2023,30221.999999999902,0,0,0,0]
["NW","CAISO","NW_Small_Hydro_for_CAISO",2024,30221.999999999902,0,0,0,0]
["NW","CAISO","NW_Small_Hydro_for_CAISO",2026,30221.999999999902,0,0,0,0]
["NW","CAISO","NW_Small_Hydro_for_CAISO",2030,30221.999999999902,0,0,0,0]
["NW","CAISO","NW_Small_Hydro_for_CAISO",2045,30221.999999999902,0,0,0,0]
["NW","CAISO","NW_Wind_for_CAISO",2020,3300620.8064258802,0,22945.7876488123,0,0]
["NW","CAISO","NW_Wind_for_CAISO",2021,2993949.49884737,0,329617.09522732598,0,0]
["NW","CAISO","NW_Wind_for_CAISO",2022,2976258.3664028998,0,347308.236704954,0,0]
["NW","CAISO","NW_Wind_for_CAISO",2023,2976627.39639804,0,346939.01306833001,0,0]
["NW","CAISO","NW_Wind_for_CAISO",2024,3008234.2798009599,0,315332.49160223902,0,0]
["NW","CAISO","NW_Wind_for_CAISO",2026,2921461.7677353201,0,402104.82633937302,0,0]
["NW","CAISO","NW_Wind_for_CAISO",2030,2863267.4442730299,0,460299.14980166202,0,0]
["NW","CAISO","NW_Wind_for_CAISO",2045,2798865.0554467998,0,524701.59671262105,0,0]
["NW","NW","NW_Biomass_for_Other",2020,5182415.9999999804,0,0,0,0]
["NW","NW","NW_Biomass_for_Other",2021,5116716,0,0,0,0]
["NW","NW","NW_Biomass_for_Other",2022,5116716,0,0,0,0]
["NW","NW","NW_Biomass_for_Other",2023,5116716,0,0,0,0]
["NW","NW","NW_Biomass_for_Other",2024,5116716,0,0,0,0]
["NW","NW","NW_Biomass_for_Other",2026,5116716,0,0,0,0]
["NW","NW","NW_Biomass_for_Other",2030,4766316,0,0,0,0]
["NW","NW","NW_Biomass_for_Other",2045,4766316,0,0,0,0]
["NW","NW","NW_CCGT",2020,3702073.6639730898,0,0,0,0]
["NW","NW","NW_CCGT",2021,6973275.2554158801,0,0,0,0]
["NW","NW","NW_CCGT",2022,9007188.8820400499,0,0,0,0]
["NW","NW","NW_CCGT",2023,9532809.9424634203,0,0,0,0]
["NW","NW","NW_CCGT",2024,10156472.006860601,0,0,0,0]
["NW","NW","NW_CCGT",2026,12840102.0259676,0,0,0,0]
["NW","NW","NW_CCGT",2030,15000550.886290001,0,0,0,0]
["NW","NW","NW_CCGT",2045,26918142.754620999,0,0,0,0]
["NW","NW","NW_Coal",2020,70517266.5615284,0,0,0,0]
["NW","NW","NW_Coal",2021,63943144.909915999,0,0,0,0]
["NW","NW","NW_Coal",2022,59738829.063548602,0,0,0,0]
["NW","NW","NW_Coal",2023,59615944.082111098,0,0,0,0]
["NW","NW","NW_Coal",2024,59943617.1575884,0,0,0,0]
["NW","NW","NW_Coal",2026,55753596.804516397,0,0,0,0]
["NW","NW","NW_Coal",2030,50042352.874796502,0,0,0,0]
["NW","NW","NW_Coal",2045,49130627.6330828,0,0,0,0]
["NW","NW","NW_Geothermal_for_Other",2020,1244708.3999999899,0,0,0,0]
["NW","NW","NW_Geothermal_for_Other",2021,1244708.3999999899,0,0,0,0]
["NW","NW","NW_Geothermal_for_Other",2022,1244708.3999999899,0,0,0,0]
["NW","NW","NW_Geothermal_for_Other",2023,1244708.3999999899,0,0,0,0]
["NW","NW","NW_Geothermal_for_Other",2024,1244708.3999999899,0,0,0,0]
["NW","NW","NW_Geothermal_for_Other",2026,1244708.3999999899,0,0,0,0]
["NW","NW","NW_Geothermal_for_Other",2030,1244708.3999999899,0,0,0,0]
["NW","NW","NW_Geothermal_for_Other",2045,1157108.3999999899,0,0,0,0]
["NW","NW","NW_Hydro",2020,131358624.41500799,0,0,0,0]
["NW","NW","NW_Hydro",2021,131358625.227745,0,0,0,0]
["NW","NW","NW_Hydro",2022,131358625.591389,0,0,0,0]
["NW","NW","NW_Hydro",2023,131358626.440304,0,0,0,0]
["NW","NW","NW_Hydro",2024,131358626.54002,0,0,0,0]
["NW","NW","NW_Hydro",2026,131358625.05992,0,0,0,0]
["NW","NW","NW_Hydro",2030,130595253.586417,0,0,0,0]
["NW","NW","NW_Hydro",2045,130563955.301815,0,0,0,0]
["NW","NW","NW_Nuclear",2020,9395628.4730803408,0,0,0,0]
["NW","NW","NW_Nuclear",2021,9395628.4730803408,0,0,0,0]
["NW","NW","NW_Nuclear",2022,9395628.4730803408,0,0,0,0]
["NW","NW","NW_Nuclear",2023,9395628.4730803408,0,0,0,0]
["NW","NW","NW_Nuclear",2024,9395628.4730803408,0,0,0,0]
["NW","NW","NW_Nuclear",2026,9395628.4730803408,0,0,0,0]
["NW","NW","NW_Nuclear",2030,14105970.2142512,0,0,0,0]
["NW","NW","NW_Nuclear",2045,14105970.2142512,0,0,0,0]
["NW","NW","NW_Peaker",2020,0,0,0,0,0]
["NW","NW","NW_Peaker",2021,0,0,0,0,0]
["NW","NW","NW_Peaker",2022,0,0,0,0,0]
["NW","NW","NW_Peaker",2023,0,0,0,0,0]
["NW","NW","NW_Peaker",2024,0,0,0,0,0]
["NW","NW","NW_Peaker",2026,0,0,0,0,0]
["NW","NW","NW_Peaker",2030,0,0,0,0,0]
["NW","NW","NW_Peaker",2045,1275205.9963946301,0,0,0,0]
["NW","NW","NW_Small_Hydro_for_Other",2020,359159.99999999901,0,0,0,0]
["NW","NW","NW_Small_Hydro_for_Other",2021,359159.99999999901,0,0,0,0]
["NW","NW","NW_Small_Hydro_for_Other",2022,359159.99999999901,0,0,0,0]
["NW","NW","NW_Small_Hydro_for_Other",2023,359159.99999999901,0,0,0,0]
["NW","NW","NW_Small_Hydro_for_Other",2024,359159.99999999901,0,0,0,0]
["NW","NW","NW_Small_Hydro_for_Other",2026,359159.99999999901,0,0,0,0]
["NW","NW","NW_Small_Hydro_for_Other",2030,359159.99999999901,0,0,0,0]
["NW","NW","NW_Small_Hydro_for_Other",2045,359159.99999999901,0,0,0,0]
["NW","NW","NW_Solar_for_Other",2020,5522715.8352812799,0,0,0,0]
["NW","NW","NW_Solar_for_Other",2021,5522715.8352812799,0,0,0,0]
["NW","NW","NW_Solar_for_Other",2022,5522715.8352812799,0,0,0,0]
["NW","NW","NW_Solar_for_Other",2023,5522715.8352812799,0,0,0,0]
["NW","NW","NW_Solar_for_Other",2024,5522715.8352812799,0,0,0,0]
["NW","NW","NW_Solar_for_Other",2026,5522715.8352812799,0,0,0,0]
["NW","NW","NW_Solar_for_Other",2030,5292554.5906019304,0,219306.73259470201,0,0]
["NW","NW","NW_Solar_for_Other",2045,5504678.9314000905,0,4902.8666332958201,0,0]
["NW","NW","NW_Wind_for_Other",2020,28171682.3568171,0,0,0,0]
["NW","NW","NW_Wind_for_Other",2021,28171682.3568171,0,0,0,0]
["NW","NW","NW_Wind_for_Other",2022,28168370.226054002,0,0,0,0]
["NW","NW","NW_Wind_for_Other",2023,28168370.226054002,0,0,0,0]
["NW","NW","NW_Wind_for_Other",2024,28168370.226054002,0,0,0,0]
["NW","NW","NW_Wind_for_Other",2026,28168370.226054002,0,0,0,0]
["NW","NW","NW_Wind_for_Other",2030,27864725.0653213,0,46344.536245383897,0,0]
["NW","NW","NW_Wind_for_Other",2045,27898771.699935,0,12297.8925984915,0,0]
["SW","CAISO","SW_Solar_for_CAISO",2020,184664.581400347,0,0,0,0]
["SW","CAISO","SW_Solar_for_CAISO",2021,184664.581400347,0,0,0,0]
["SW","CAISO","SW_Solar_for_CAISO",2022,184664.581400347,0,0,0,0]
["SW","CAISO","SW_Solar_for_CAISO",2023,184664.581400347,0,0,0,0]
["SW","CAISO","SW_Solar_for_CAISO",2024,184664.581400347,0,0,0,0]
["SW","CAISO","SW_Solar_for_CAISO",2026,184664.581400347,0,0,0,0]
["SW","CAISO","SW_Solar_for_CAISO",2030,184664.581400347,0,0,0,0]
["SW","CAISO","SW_Solar_for_CAISO",2045,184664.581400347,0,0,0,0]
["SW","CAISO","SW_Wind_for_CAISO",2020,212479.476342157,0,0,0,0]
["SW","CAISO","SW_Wind_for_CAISO",2021,212479.476342157,0,0,0,0]
["SW","CAISO","SW_Wind_for_CAISO",2022,212479.476342157,0,0,0,0]
["SW","CAISO","SW_Wind_for_CAISO",2023,212479.476342157,0,0,0,0]
["SW","CAISO","SW_Wind_for_CAISO",2024,212479.476342157,0,0,0,0]
["SW","CAISO","SW_Wind_for_CAISO",2026,212479.476342157,0,0,0,0]
["SW","CAISO","SW_Wind_for_CAISO",2030,212479.476342157,0,0,0,0]
["SW","CAISO","SW_Wind_for_CAISO",2045,212479.476342157,0,0,0,0]
["SW","SW","SW_Biomass_for_Other",2020,992770.800000004,0,0,0,0]
["SW","SW","SW_Biomass_for_Other",2021,992770.800000004,0,0,0,0]
["SW","SW","SW_Biomass_for_Other",2022,992770.800000004,0,0,0,0]
["SW","SW","SW_Biomass_for_Other",2023,992770.800000004,0,0,0,0]
["SW","SW","SW_Biomass_for_Other",2024,992770.800000004,0,0,0,0]
["SW","SW","SW_Biomass_for_Other",2026,992770.800000004,0,0,0,0]
["SW","SW","SW_Biomass_for_Other",2030,941962.80000000203,0,0,0,0]
["SW","SW","SW_Biomass_for_Other",2045,941962.80000000203,0,0,0,0]
["SW","SW","SW_CCGT",2020,70881473.543442398,0,0,2.5326170622116599,2.5326170622116599]
["SW","SW","SW_CCGT",2021,68664172.426904693,0,0,0,0]
["SW","SW","SW_CCGT",2022,69853354.730012,0,0,0.61076737776340695,0.61076737776340695]
["SW","SW","SW_CCGT",2023,70359050.194452301,0,0,0.57614687736310399,0.57614687736310399]
["SW","SW","SW_CCGT",2024,73041074.190722093,0,0,0,0]
["SW","SW","SW_CCGT",2026,80011152.705272093,0,0,0,0]
["SW","SW","SW_CCGT",2030,84967015.818868294,0,0,0,0]
["SW","SW","SW_CCGT",2045,70919790.620974794,0,0,0,0]
["SW","SW","SW_Coal",2020,34991823.358704299,0,0,0,0]
["SW","SW","SW_Coal",2021,39537529.315580398,0,0,0,0]
["SW","SW","SW_Coal",2022,40568896.836761802,0,0,0,0]
["SW","SW","SW_Coal",2023,42618527.103208497,0,0,0,0]
["SW","SW","SW_Coal",2024,43921967.653577097,0,0,0,0]
["SW","SW","SW_Coal",2026,38136670.427299097,0,0,0,0]
["SW","SW","SW_Coal",2030,42616956.440473102,0,0,0,0]
["SW","SW","SW_Coal",2045,46550247.5810766,0,0,0,0]
["SW","SW","SW_Geothermal_for_Other",2020,5773716,0,0,0,0]
["SW","SW","SW_Geothermal_for_Other",2021,6148205.9999999702,0,0,0,0]
["SW","SW","SW_Geothermal_for_Other",2022,6148205.9999999702,0,0,0,0]
["SW","SW","SW_Geothermal_for_Other",2023,6148205.9999999702,0,0,0,0]
["SW","SW","SW_Geothermal_for_Other",2024,6148205.9999999702,0,0,0,0]
["SW","SW","SW_Geothermal_for_Other",2026,6148205.9999999702,0,0,0,0]
["SW","SW","SW_Geothermal_for_Other",2030,5824085.9999999404,0,0,0,0]
["SW","SW","SW_Geothermal_for_Other",2045,5824085.9999999404,0,0,0,0]
["SW","SW","SW_Hydro",2020,5849756.9426105497,0,0,0,0]
["SW","SW","SW_Hydro",2021,5849756.0587926498,0,0,0,0]
["SW","SW","SW_Hydro",2022,5849756.8560338505,0,0,0,0]
["SW","SW","SW_Hydro",2023,5849757.1488509104,0,0,0,0]
["SW","SW","SW_Hydro",2024,5849757.0036824699,0,0,0,0]
["SW","SW","SW_Hydro",2026,5849756.1831821799,0,0,0,0]
["SW","SW","SW_Hydro",2030,5527008.69563899,0,0,0,0]
["SW","SW","SW_Hydro",2045,5527009.2184947301,0,0,0,0]
["SW","SW","SW_Nuclear",2020,24117937.328747202,0,0,0,0]
["SW","SW","SW_Nuclear",2021,24117937.328747202,0,0,0,0]
["SW","SW","SW_Nuclear",2022,24117937.328747202,0,0,0,0]
["SW","SW","SW_Nuclear",2023,24117937.328747202,0,0,0,0]
["SW","SW","SW_Nuclear",2024,24117937.328747202,0,0,0,0]
["SW","SW","SW_Nuclear",2026,24117937.328747202,0,0,0,0]
["SW","SW","SW_Nuclear",2030,24117937.328747202,0,0,0,0]
["SW","SW","SW_Nuclear",2045,24117937.328747202,0,0,0,0]
["SW","SW","SW_Peaker",2020,0,0,0,0,0]
["SW","SW","SW_Peaker",2021,0,0,0,0,0]
["SW","SW","SW_Peaker",2022,0,0,0,0,0]
["SW","SW","SW_Peaker",2023,0,0,0,0,0]
["SW","SW","SW_Peaker",2024,0,0,0,0,0]
["SW","SW","SW_Peaker",2026,0,0,0,0,0]
["SW","SW","SW_Peaker",2030,0,0,0,0,0]
["SW","SW","SW_Peaker",2045,507611.670643805,0,0,2114.7241793451999,2114.7241793451999]
["SW","SW","SW_ST",2020,0,0,0,0,0]
["SW","SW","SW_ST",2021,0,0,0,0,0]
["SW","SW","SW_ST",2022,0,0,0,0,0]
["SW","SW","SW_ST",2023,0,0,0,0,0]
["SW","SW","SW_ST",2024,0,0,0,0,0]
["SW","SW","SW_ST",2026,0,0,0,0,0]
["SW","SW","SW_ST",2030,0,0,0,0,0]
["SW","SW","SW_ST",2045,0,0,0,0,0]
["SW","SW","SW_Small_Hydro_for_Other",2020,0,0,0,0,0]
["SW","SW","SW_Small_Hydro_for_Other",2021,0,0,0,0,0]
["SW","SW","SW_Small_Hydro_for_Other",2022,0,0,0,0,0]
["SW","SW","SW_Small_Hydro_for_Other",2023,0,0,0,0,0]
["SW","SW","SW_Small_Hydro_for_Other",2024,0,0,0,0,0]
["SW","SW","SW_Small_Hydro_for_Other",2026,0,0,0,0,0]
["SW","SW","SW_Small_Hydro_for_Other",2030,0,0,0,0,0]
["SW","SW","SW_Small_Hydro_for_Other",2045,0,0,0,0,0]
["SW","SW","SW_Solar_for_Other",2020,3701526.67908607,0,0,0,0]
["SW","SW","SW_Solar_for_Other",2021,3701526.67908607,0,0,0,0]
["SW","SW","SW_Solar_for_Other",2022,3996808.9191249199,0,0,0,0]
["SW","SW","SW_Solar_for_Other",2023,3996808.9191249199,0,0,0,0]
["SW","SW","SW_Solar_for_Other",2024,3996808.9191249199,0,0,0,0]
["SW","SW","SW_Solar_for_Other",2026,4434280.7403566698,0,0,0,0]
["SW","SW","SW_Solar_for_Other",2030,4377565.2897426104,0,0,0,0]
["SW","SW","SW_Solar_for_Other",2045,3914606.5307786199,0,0,0,0]
["SW","SW","SW_Wind_for_Other",2020,8813153.1054014601,0,0,0,0]
["SW","SW","SW_Wind_for_Other",2021,8813153.1054014601,0,0,0,0]
["SW","SW","SW_Wind_for_Other",2022,8813153.1054014601,0,0,0,0]
["SW","SW","SW_Wind_for_Other",2023,8813153.1054014601,0,0,0,0]
["SW","SW","SW_Wind_for_Other",2024,8813153.1054014601,0,0,0,0]
["SW","SW","SW_Wind_for_Other",2026,8778450.2888402492,0,0,0,0]
["SW","SW","SW_Wind_for_Other",2030,7220716.4922987297,0,0,0,0]
["SW","SW","SW_Wind_for_Other",2045,7220716.4922987297,0,0,0,0]

{"sheet":"raw_annual_load","index":6,"n_rows":58,"n_cols":8,"rows_kept":58,"cut":false,"hidden":false,"merged":[]}
[]
["zone","period","input_load_mwh_per_year","flexible_ev_load_mwh_per_year","unserved_energy_mwh_per_year","overgeneration_mwh_per_year","hydrogen_electrolysis_load_mwh_per_year","ee_load_reduction_mwh_per_year"]
["BANC",2020,19031876.229092199,0,0,0,0,0]
["BANC",2021,18995433.290994901,0,0,0,0,0]
["BANC",2022,18978588.272291798,0,0,0,0,0]
["BANC",2023,18871199.195226301,0,0,0,0,0]
["BANC",2024,18809689.688530199,0,0,0,0,0]
["BANC",2026,18690267.305485699,0,0,0,0,0]
["BANC",2030,18651206.521136701,0,0,0,0,0]
["BANC",2045,18352717.018430501,0,0,0,0,0]
["CAISO",2020,246572424.69835201,0,0,0,0,0]
["CAISO",2021,251245287.25406101,0,0,0,0,0]
["CAISO",2022,256395633.637963,0,0,0,0,0]
["CAISO",2023,261203154.70903599,0,0,0,0,0]
["CAISO",2024,265405619.36275199,0,0,0,0,0]
["CAISO",2026,272864258.86965102,0,0,0,0,0]
["CAISO",2030,285082671.91506797,0,0,0,0,0]
["CAISO",2045,409680371.45113999,0,0,0,986394.25000000396,0]
["CAISO_NW_Hydro",2020,0,0,0,0,0,0]
["CAISO_NW_Hydro",2021,0,0,0,0,0,0]
["CAISO_NW_Hydro",2022,0,0,0,0,0,0]
["CAISO_NW_Hydro",2023,0,0,0,0,0,0]
["CAISO_NW_Hydro",2024,0,0,0,0,0,0]
["CAISO_NW_Hydro",2026,0,0,0,0,0,0]
["CAISO_NW_Hydro",2030,0,0,0,0,0,0]
["CAISO_NW_Hydro",2045,0,0,0,0,0,0]
["IID",2020,3883044.8123578299,0,0,0,0,0]
["IID",2021,3882682.2665836802,0,0,0,0,0]
["IID",2022,3894982.7205073098,0,0,0,0,0]
["IID",2023,3889060.8709307099,0,0,0,0,0]
["IID",2024,3887855.3678710898,0,0,0,0,0]
["IID",2026,3887847.31164145,0,0,0,0,0]
["IID",2030,3860811.26653704,0,0,0,0,0]
["IID",2045,3767314.1553148199,0,0,0,0,0]
["LDWP",2020,27416648.2912197,0,0,0,0,0]
["LDWP",2021,27376122.478820398,0,0,0,0,0]
["LDWP",2022,27401313.001813799,0,0,0,0,0]
["LDWP",2023,27101213.6497535,0,0,0,0,0]
["LDWP",2024,26970996.372171499,0,0,0,0,0]
["LDWP",2026,26595284.1789754,0,0,0,0,0]
["LDWP",2030,25622046.3800487,0,0,0,0,0]
["LDWP",2045,22638304.604438402,0,0,0,0,0]
["NW",2020,240828073.878059,0,0,0,0,0]
["NW",2021,241699999.15412301,0,0,0,0,0]
["NW",2022,243368001.28800601,0,0,0,0,0]
["NW",2023,245068997.79058301,0,0,0,0,0]
["NW",2024,246927000.67586201,0,0,0,0,0]
["NW",2026,248416000.99068901,0,0,0,0,0]
["NW",2030,253972934.54271701,0,0,0,0,0]
["NW",2045,273690217.87491697,0,0,0,0,0]
["SW",2020,142457371.741575,0,0,0,0,0]
["SW",2021,143634999.72713,0,0,0,0,0]
["SW",2022,146337999.973647,0,0,0,0,0]
["SW",2023,147490002.38090101,0,0,0,0,0]
["SW",2024,148960000.706054,0,0,0,0,0]
["SW",2026,152407000.97712401,0,0,0,0,0]
["SW",2030,158872918.24598801,0,0,0,0,0]
["SW",2045,183496244.91164699,0,0,0,0,0]

{"sheet":"raw_fuel_burn","index":7,"n_rows":306,"n_cols":9,"rows_kept":306,"cut":false,"hidden":false,"merged":[]}
[]
["resource","fuel","zone","contract","period","fuel_burn_mmbtu_per_year","ghg_tco2_per_year","pipeline_biogas_mmbtu_per_year","start_fuel_mmbtu_per_year"]
["BANC_CCGT","CA_Natural_Gas","BANC","BANC",2020,23916461.635944899,1267577.0552407401,0,0]
["BANC_CCGT","CA_Natural_Gas","BANC","BANC",2021,24406053.247395299,1293522.2893564401,0,0]
["BANC_CCGT","CA_Natural_Gas","BANC","BANC",2022,25192404.279311199,1335193.4787026099,0,0]
["BANC_CCGT","CA_Natural_Gas","BANC","BANC",2023,24347447.669918198,1290418.3590672801,0,0]
["BANC_CCGT","CA_Natural_Gas","BANC","BANC",2024,25162834.867188301,1333632.5725670101,0,0]
["BANC_CCGT","CA_Natural_Gas","BANC","BANC",2026,24532867.229880199,1300243.1918296299,0,0]
["BANC_CCGT","CA_Natural_Gas","BANC","BANC",2030,20857711.720861401,1105460.2498331401,0,0]
["BANC_CCGT","CA_Natural_Gas","BANC","BANC",2045,22396255.9803725,1186999.88502605,0,5165.71346322716]
["BANC_Peaker","CA_Natural_Gas","BANC","BANC",2020,0,0,0,0]
["BANC_Peaker","CA_Natural_Gas","BANC","BANC",2021,0,0,0,0]
["BANC_Peaker","CA_Natural_Gas","BANC","BANC",2022,0,0,0,0]
["BANC_Peaker","CA_Natural_Gas","BANC","BANC",2023,0,0,0,0]
["BANC_Peaker","CA_Natural_Gas","BANC","BANC",2024,0,0,0,0]
["BANC_Peaker","CA_Natural_Gas","BANC","BANC",2026,0,0,0,0]
["BANC_Peaker","CA_Natural_Gas","BANC","BANC",2030,0,0,0,0]
["BANC_Peaker","CA_Natural_Gas","BANC","BANC",2045,0,0,0,0]
["CAISO_Advanced_CCGT","CA_Natural_Gas","CAISO","CAISO",2020,0,0,0,0]
["CAISO_Advanced_CCGT","CA_Natural_Gas","CAISO","CAISO",2021,0,0,0,0]
["CAISO_Advanced_CCGT","CA_Natural_Gas","CAISO","CAISO",2022,0,0,0,0]
["CAISO_Advanced_CCGT","CA_Natural_Gas","CAISO","CAISO",2023,0,0,0,0]
["CAISO_Advanced_CCGT","CA_Natural_Gas","CAISO","CAISO",2024,0,0,0,0]
["CAISO_Advanced_CCGT","CA_Natural_Gas","CAISO","CAISO",2026,0,0,0,0]
["CAISO_Advanced_CCGT","CA_Natural_Gas","CAISO","CAISO",2030,0,0,0,0]
["CAISO_Advanced_CCGT","CA_Natural_Gas","CAISO","CAISO",2045,0,0,0,0]
["CAISO_Aero_CT","CA_Natural_Gas","CAISO","CAISO",2020,0,0,0,0]
["CAISO_Aero_CT","CA_Natural_Gas","CAISO","CAISO",2021,0,0,0,0]
["CAISO_Aero_CT","CA_Natural_Gas","CAISO","CAISO",2022,0,0,0,0]
["CAISO_Aero_CT","CA_Natural_Gas","CAISO","CAISO",2023,0,0,0,0]
["CAISO_Aero_CT","CA_Natural_Gas","CAISO","CAISO",2024,0,0,0,0]
["CAISO_Aero_CT","CA_Natural_Gas","CAISO","CAISO",2026,0,0,0,0]
["CAISO_Aero_CT","CA_Natural_Gas","CAISO","CAISO",2030,0,0,0,0]
["CAISO_Aero_CT","CA_Natural_Gas","CAISO","CAISO",2045,0,0,0,0]
["CAISO_CCGT1","CA_Natural_Gas","CAISO","CAISO",2020,410301969.16263002,21746005.062926698,0,0]
["CAISO_CCGT1","CA_Natural_Gas","CAISO","CAISO",2021,418217291.50395501,22165516.584175002,0,0]
["CAISO_CCGT1","CA_Natural_Gas","CAISO","CAISO",2022,386802429.31964302,20500532.0189365,0,0]
["CAISO_CCGT1","CA_Natural_Gas","CAISO","CAISO",2023,374625641.36423099,19855160.361690301,0,19487.282026952202]
["CAISO_CCGT1","CA_Natural_Gas","CAISO","CAISO",2024,391749937.05393797,20762748.9546685,0,58162.228992907803]
["CAISO_CCGT1","CA_Natural_Gas","CAISO","CAISO",2026,450410858.723858,23871782.070080601,0,95850.7238384636]
["CAISO_CCGT1","CA_Natural_Gas","CAISO","CAISO",2030,352391861.14410198,18676769.022135898,0,2211514.6835475499]
["CAISO_CCGT1","CA_Natural_Gas","CAISO","CAISO",2045,210182796.322696,11139689.5236372,0,578909.852395728]
["CAISO_CCGT2","CA_Natural_Gas","CAISO","CAISO",2020,964800.03464852995,51134.352548803297,0,172813.094969898]
["CAISO_CCGT2","CA_Natural_Gas","CAISO","CAISO",2021,0,0,0,0]
["CAISO_CCGT2","CA_Natural_Gas","CAISO","CAISO",2022,0,0,0,0]
["CAISO_CCGT2","CA_Natural_Gas","CAISO","CAISO",2023,0,0,0,0]
["CAISO_CCGT2","CA_Natural_Gas","CAISO","CAISO",2024,0,0,0,0]
["CAISO_CCGT2","CA_Natural_Gas","CAISO","CAISO",2026,0,0,0,0]
["CAISO_CCGT2","CA_Natural_Gas","CAISO","CAISO",2030,0,0,0,0]
["CAISO_CCGT2","CA_Natural_Gas","CAISO","CAISO",2045,4539043.6949502202,240569.241248404,0,0]
["CAISO_CHP","CA_Natural_Gas","CAISO","CAISO",2020,82761298.890187696,4386352.6663700901,0,0]
["CAISO_CHP","CA_Natural_Gas","CAISO","CAISO",2021,82761298.890187696,4386352.6663700901,0,0]
["CAISO_CHP","CA_Natural_Gas","CAISO","CAISO",2022,82761298.890187696,4386352.6663700901,0,0]
["CAISO_CHP","CA_Natural_Gas","CAISO","CAISO",2023,82761298.890187696,4386352.6663700901,0,0]
["CAISO_CHP","CA_Natural_Gas","CAISO","CAISO",2024,82761298.890187696,4386352.6663700901,0,0]
["CAISO_CHP","CA_Natural_Gas","CAISO","CAISO",2026,82761298.890187696,4386352.6663700901,0,0]
["CAISO_CHP","CA_Natural_Gas","CAISO","CAISO",2030,82761298.890187696,4386352.6663700901,0,0]
["CAISO_CHP","CA_Natural_Gas","CAISO","CAISO",2045,0,0,0,0]
["CAISO_Coal","CA_Coal","CAISO","CAISO",2020,22020534.097585399,2069951.0909559401,0,0]
["CAISO_Coal","CA_Coal","CAISO","CAISO",2021,13642483.371768899,1282406.11933683,0,0]
["CAISO_Coal","CA_Coal","CAISO","CAISO",2022,7277128.7471051002,684056.87452686497,0,0]
["CAISO_Coal","CA_Coal","CAISO","CAISO",2023,7084694.6562351603,665967.93950077204,0,0]
["CAISO_Coal","CA_Coal","CAISO","CAISO",2024,7084694.6562351603,665967.93950077204,0,0]
["CAISO_Coal","CA_Coal","CAISO","CAISO",2026,0,0,0,0]
["CAISO_Coal","CA_Coal","CAISO","CAISO",2030,0,0,0,0]
["CAISO_Coal","CA_Coal","CAISO","CAISO",2045,0,0,0,0]
["CAISO_Nuclear","Uranium","CAISO","CAISO",2020,268311664.85502401,0,0,0]
["CAISO_Nuclear","Uranium","CAISO","CAISO",2021,268311664.85502401,0,0,0]
["CAISO_Nuclear","Uranium","CAISO","CAISO",2022,268311664.85502401,0,0,0]
["CAISO_Nuclear","Uranium","CAISO","CAISO",2023,268311664.85502401,0,0,0]
["CAISO_Nuclear","Uranium","CAISO","CAISO",2024,163181007.541343,0,0,0]
["CAISO_Nuclear","Uranium","CAISO","CAISO",2026,58050378.840640701,0,0,0]
["CAISO_Nuclear","Uranium","CAISO","CAISO",2030,58050378.840640701,0,0,0]
["CAISO_Nuclear","Uranium","CAISO","CAISO",2045,58050378.840640701,0,0,0]
["CAISO_Peaker1","CA_Natural_Gas","CAISO","CAISO",2020,10285132.1306313,545112.05043443001,0,1328394.5079143201]
["CAISO_Peaker1","CA_Natural_Gas","CAISO","CAISO",2021,5379337.8605349902,285104.93635971902,0,761645.57550599799]
["CAISO_Peaker1","CA_Natural_Gas","CAISO","CAISO",2022,6178520.0996367298,327461.78241222602,0,889991.57277041196]
["CAISO_Peaker1","CA_Natural_Gas","CAISO","CAISO",2023,7396091.2562196003,391992.78846888,0,1056390.5675172801]
["CAISO_Peaker1","CA_Natural_Gas","CAISO","CAISO",2024,6026758.5992580904,319418.38559098903,0,861726.91124973504]
["CAISO_Peaker1","CA_Natural_Gas","CAISO","CAISO",2026,889192.45956078696,47127.315290857798,0,126482.46957081]
["CAISO_Peaker1","CA_Natural_Gas","CAISO","CAISO",2030,784588.79859886505,41583.128560377299,0,116740.26419796]
["CAISO_Peaker1","CA_Natural_Gas","CAISO","CAISO",2045,0,0,0,0]
["CAISO_Peaker2","CA_Natural_Gas","CAISO","CAISO",2020,0,0,0,0]
["CAISO_Peaker2","CA_Natural_Gas","CAISO","CAISO",2021,0,0,0,0]
["CAISO_Peaker2","CA_Natural_Gas","CAISO","CAISO",2022,0,0,0,0]
["CAISO_Peaker2","CA_Natural_Gas","CAISO","CAISO",2023,0,0,0,0]
["CAISO_Peaker2","CA_Natural_Gas","CAISO","CAISO",2024,0,0,0,0]
["CAISO_Peaker2","CA_Natural_Gas","CAISO","CAISO",2026,0,0,0,0]
["CAISO_Peaker2","CA_Natural_Gas","CAISO","CAISO",2030,0,0,0,0]
["CAISO_Peaker2","CA_Natural_Gas","CAISO","CAISO",2045,0,0,0,0]
["CAISO_Reciprocating_Engine","CA_Natural_Gas","CAISO","CAISO",2020,620230.22477692796,32874.0199574203,0,61898.5903324799]
["CAISO_Reciprocating_Engine","CA_Natural_Gas","CAISO","CAISO",2021,436118.04533716,23114.786469377799,0,53872.275922649002]
["CAISO_Reciprocating_Engine","CA_Natural_Gas","CAISO","CAISO",2022,413506.67044887901,21915.997118130999,0,55119.946764385801]
["CAISO_Reciprocating_Engine","CA_Natural_Gas","CAISO","CAISO",2023,426798.84190733201,22620.156650696899,0,55327.652246897604]
["CAISO_Reciprocating_Engine","CA_Natural_Gas","CAISO","CAISO",2024,378065.78105186898,20037.494369741202,0,50825.9666607974]
["CAISO_Reciprocating_Engine","CA_Natural_Gas","CAISO","CAISO",2026,119291.544262093,6322.5075458763004,0,18986.626107562799]
["CAISO_Reciprocating_Engine","CA_Natural_Gas","CAISO","CAISO",2030,228180.34358923699,12093.844893203201,0,34336.566590882801]
["CAISO_Reciprocating_Engine","CA_Natural_Gas","CAISO","CAISO",2045,446758.332708842,23677.837329100799,0,15232.3997367788]
["CAISO_ST","CA_Natural_Gas","CAISO","CAISO",2020,0,0,0,0]
["CAISO_ST","CA_Natural_Gas","CAISO","CAISO",2021,0,0,0,0]
["CAISO_ST","CA_Natural_Gas","CAISO","CAISO",2022,0,0,0,0]
["CAISO_ST","CA_Natural_Gas","CAISO","CAISO",2023,0,0,0,0]
["CAISO_ST","CA_Natural_Gas","CAISO","CAISO",2024,0,0,0,0]
["CAISO_ST","CA_Natural_Gas","CAISO","CAISO",2026,0,0,0,0]
["CAISO_ST","CA_Natural_Gas","CAISO","CAISO",2030,0,0,0,0]
["CAISO_ST","CA_Natural_Gas","CAISO","CAISO",2045,0,0,0,0]
["CAISO_Shed_DR_Existing","Conventional_DR","CAISO","CAISO",2020,0,0,0,0]
["CAISO_Shed_DR_Existing","Conventional_DR","CAISO","CAISO",2021,0,0,0,0]
["CAISO_Shed_DR_Existing","Conventional_DR","CAISO","CAISO",2022,0,0,0,0]
["CAISO_Shed_DR_Existing","Conventional_DR","CAISO","CAISO",2023,0,0,0,0]
["CAISO_Shed_DR_Existing","Conventional_DR","CAISO","CAISO",2024,0,0,0,0]
["CAISO_Shed_DR_Existing","Conventional_DR","CAISO","CAISO",2026,0,0,0,0]
["CAISO_Shed_DR_Existing","Conventional_DR","CAISO","CAISO",2030,0,0,0,0]
["CAISO_Shed_DR_Existing","Conventional_DR","CAISO","CAISO",2045,0,0,0,0]
["CAISO_Shed_DR_Tranche1","Conventional_DR","CAISO","CAISO",2020,0,0,0,0]
["CAISO_Shed_DR_Tranche1","Conventional_DR","CAISO","CAISO",2021,0,0,0,0]
["CAISO_Shed_DR_Tranche1","Conventional_DR","CAISO","CAISO",2022,0,0,0,0]
["CAISO_Shed_DR_Tranche1","Conventional_DR","CAISO","CAISO",2023,0,0,0,0]
["CAISO_Shed_DR_Tranche1","Conventional_DR","CAISO","CAISO",2024,0,0,0,0]
["CAISO_Shed_DR_Tranche1","Conventional_DR","CAISO","CAISO",2026,0,0,0,0]
["CAISO_Shed_DR_Tranche1","Conventional_DR","CAISO","CAISO",2030,0,0,0,0]
["CAISO_Shed_DR_Tranche1","Conventional_DR","CAISO","CAISO",2045,0,0,0,0]
["CAISO_Shed_DR_Tranche2","Conventional_DR","CAISO","CAISO",2020,0,0,0,0]
["CAISO_Shed_DR_Tranche2","Conventional_DR","CAISO","CAISO",2021,0,0,0,0]
["CAISO_Shed_DR_Tranche2","Conventional_DR","CAISO","CAISO",2022,0,0,0,0]
["CAISO_Shed_DR_Tranche2","Conventional_DR","CAISO","CAISO",2023,0,0,0,0]
["CAISO_Shed_DR_Tranche2","Conventional_DR","CAISO","CAISO",2024,0,0,0,0]
["CAISO_Shed_DR_Tranche2","Conventional_DR","CAISO","CAISO",2026,0,0,0,0]
["CAISO_Shed_DR_Tranche2","Conventional_DR","CAISO","CAISO",2030,0,0,0,0]
["CAISO_Shed_DR_Tranche2","Conventional_DR","CAISO","CAISO",2045,0,0,0,0]
["CAISO_Shed_DR_Tranche3","Conventional_DR","CAISO","CAISO",2020,0,0,0,0]
["CAISO_Shed_DR_Tranche3","Conventional_DR","CAISO","CAISO",2021,0,0,0,0]
["CAISO_Shed_DR_Tranche3","Conventional_DR","CAISO","CAISO",2022,0,0,0,0]
["CAISO_Shed_DR_Tranche3","Conventional_DR","CAISO","CAISO",2023,0,0,0,0]
["CAISO_Shed_DR_Tranche3","Conventional_DR","CAISO","CAISO",2024,0,0,0,0]
["CAISO_Shed_DR_Tranche3","Conventional_DR","CAISO","CAISO",2026,0,0,0,0]
["CAISO_Shed_DR_Tranche3","Conventional_DR","CAISO","CAISO",2030,0,0,0,0]
["CAISO_Shed_DR_Tranche3","Conventional_DR","CAISO","CAISO",2045,0,0,0,0]
["CAISO_Shed_DR_Tranche4","Conventional_DR","CAISO","CAISO",2020,0,0,0,0]
["CAISO_Shed_DR_Tranche4","Conventional_DR","CAISO","CAISO",2021,0,0,0,0]
["CAISO_Shed_DR_Tranche4","Conventional_DR","CAISO","CAISO",2022,0,0,0,0]
["CAISO_Shed_DR_Tranche4","Conventional_DR","CAISO","CAISO",2023,0,0,0,0]
["CAISO_Shed_DR_Tranche4","Conventional_DR","CAISO","CAISO",2024,0,0,0,0]
["CAISO_Shed_DR_Tranche4","Conventional_DR","CAISO","CAISO",2026,0,0,0,0]
["CAISO_Shed_DR_Tranche4","Conventional_DR","CAISO","CAISO",2030,0,0,0,0]
["CAISO_Shed_DR_Tranche4","Conventional_DR","CAISO","CAISO",2045,0,0,0,0]
["CAISO_Shed_DR_Tranche5","Conventional_DR","CAISO","CAISO",2020,0,0,0,0]
["CAISO_Shed_DR_Tranche5","Conventional_DR","CAISO","CAISO",2021,0,0,0,0]
["CAISO_Shed_DR_Tranche5","Conventional_DR","CAISO","CAISO",2022,0,0,0,0]
["CAISO_Shed_DR_Tranche5","Conventional_DR","CAISO","CAISO",2023,0,0,0,0]
["CAISO_Shed_DR_Tranche5","Conventional_DR","CAISO","CAISO",2024,0,0,0,0]
["CAISO_Shed_DR_Tranche5","Conventional_DR","CAISO","CAISO",2026,0,0,0,0]
["CAISO_Shed_DR_Tranche5","Conventional_DR","CAISO","CAISO",2030,0,0,0,0]
["CAISO_Shed_DR_Tranche5","Conventional_DR","CAISO","CAISO",2045,0,0,0,0]
["CAISO_Shed_DR_Tranche6","Conventional_DR","CAISO","CAISO",2020,0,0,0,0]
["CAISO_Shed_DR_Tranche6","Conventional_DR","CAISO","CAISO",2021,0,0,0,0]
["CAISO_Shed_DR_Tranche6","Conventional_DR","CAISO","CAISO",2022,0,0,0,0]
["CAISO_Shed_DR_Tranche6","Conventional_DR","CAISO","CAISO",2023,0,0,0,0]
["CAISO_Shed_DR_Tranche6","Conventional_DR","CAISO","CAISO",2024,0,0,0,0]
["CAISO_Shed_DR_Tranche6","Conventional_DR","CAISO","CAISO",2026,0,0,0,0]
["CAISO_Shed_DR_Tranche6","Conventional_DR","CAISO","CAISO",2030,0,0,0,0]
["CAISO_Shed_DR_Tranche6","Conventional_DR","CAISO","CAISO",2045,0,0,0,0]
["CAISO_Shed_DR_Tranche7","Conventional_DR","CAISO","CAISO",2020,0,0,0,0]
["CAISO_Shed_DR_Tranche7","Conventional_DR","CAISO","CAISO",2021,0,0,0,0]
["CAISO_Shed_DR_Tranche7","Conventional_DR","CAISO","CAISO",2022,0,0,0,0]
["CAISO_Shed_DR_Tranche7","Conventional_DR","CAISO","CAISO",2023,0,0,0,0]
["CAISO_Shed_DR_Tranche7","Conventional_DR","CAISO","CAISO",2024,0,0,0,0]
["CAISO_Shed_DR_Tranche7","Conventional_DR","CAISO","CAISO",2026,0,0,0,0]
["CAISO_Shed_DR_Tranche7","Conventional_DR","CAISO","CAISO",2030,0,0,0,0]
["CAISO_Shed_DR_Tranche7","Conventional_DR","CAISO","CAISO",2045,0,0,0,0]
["CAISO_Shed_DR_Tranche8","Conventional_DR","CAISO","CAISO",2020,0,0,0,0]
["CAISO_Shed_DR_Tranche8","Conventional_DR","CAISO","CAISO",2021,0,0,0,0]
["CAISO_Shed_DR_Tranche8","Conventional_DR","CAISO","CAISO",2022,0,0,0,0]
["CAISO_Shed_DR_Tranche8","Conventional_DR","CAISO","CAISO",2023,0,0,0,0]
["CAISO_Shed_DR_Tranche8","Conventional_DR","CAISO","CAISO",2024,0,0,0,0]
["CAISO_Shed_DR_Tranche8","Conventional_DR","CAISO","CAISO",2026,0,0,0,0]
["CAISO_Shed_DR_Tranche8","Conventional_DR","CAISO","CAISO",2030,0,0,0,0]
["CAISO_Shed_DR_Tranche8","Conventional_DR","CAISO","CAISO",2045,0,0,0,0]
["IID_CCGT","CA_Natural_Gas","IID","IID",2020,0,0,0,0]
["IID_CCGT","CA_Natural_Gas","IID","IID",2021,0,0,0,0]
["IID_CCGT","CA_Natural_Gas","IID","IID",2022,0,0,0,0]
["IID_CCGT","CA_Natural_Gas","IID","IID",2023,0,0,0,0]
["IID_CCGT","CA_Natural_Gas","IID","IID",2024,0,0,0,0]
["IID_CCGT","CA_Natural_Gas","IID","IID",2026,0,0,0,0]
["IID_CCGT","CA_Natural_Gas","IID","IID",2030,0,0,0,0]
["IID_CCGT","CA_Natural_Gas","IID","IID",2045,0,0,0,0]
["IID_Peaker","CA_Natural_Gas","IID","IID",2020,0,0,0,0]
["IID_Peaker","CA_Natural_Gas","IID","IID",2021,0,0,0,0]
["IID_Peaker","CA_Natural_Gas","IID","IID",2022,0,0,0,0]
["IID_Peaker","CA_Natural_Gas","IID","IID",2023,0,0,0,0]
["IID_Peaker","CA_Natural_Gas","IID","IID",2024,0,0,0,0]
["IID_Peaker","CA_Natural_Gas","IID","IID",2026,0,0,0,0]
["IID_Peaker","CA_Natural_Gas","IID","IID",2030,0,0,0,0]
["IID_Peaker","CA_Natural_Gas","IID","IID",2045,0,0,0,0]
["LDWP_CCGT","CA_Natural_Gas","LDWP","LDWP",2020,39738431.416267097,2106132.25140259,0,0]
["LDWP_CCGT","CA_Natural_Gas","LDWP","LDWP",2021,44925483.245476797,2381048.1754282401,0,0]
["LDWP_CCGT","CA_Natural_Gas","LDWP","LDWP",2022,45589383.432105199,2416234.2792169298,0,0]
["LDWP_CCGT","CA_Natural_Gas","LDWP","LDWP",2023,43780087.405769303,2320343.7941653002,0,0]
["LDWP_CCGT","CA_Natural_Gas","LDWP","LDWP",2024,46190485.237789199,2448098.4829696198,0,0]
["LDWP_CCGT","CA_Natural_Gas","LDWP","LDWP",2026,50626672.250858799,2683206.5824775398,0,0]
["LDWP_CCGT","CA_Natural_Gas","LDWP","LDWP",2030,50321619.801937498,2667052.7820741702,0,0]
["LDWP_CCGT","CA_Natural_Gas","LDWP","LDWP",2045,21700223.691109601,1150111.1120146699,0,42546.756944909801]
["LDWP_Coal","CA_Coal","LDWP","LDWP",2020,29854192.2626472,2806294.22923677,0,0]
["LDWP_Coal","CA_Coal","LDWP","LDWP",2021,23986909.192226101,2254771.4272338999,0,0]
["LDWP_Coal","CA_Coal","LDWP","LDWP",2022,22964170.002585299,2158632.2631937498,0,0]
["LDWP_Coal","CA_Coal","LDWP","LDWP",2023,20033809.944047101,1883178.6722766201,0,0]
["LDWP_Coal","CA_Coal","LDWP","LDWP",2024,15649854.597785899,1471086.6130766899,0,0]
["LDWP_Coal","CA_Coal","LDWP","LDWP",2026,0,0,0,0]
["LDWP_Coal","CA_Coal","LDWP","LDWP",2030,0,0,0,0]
["LDWP_Coal","CA_Coal","LDWP","LDWP",2045,0,0,0,0]
["LDWP_Nuclear","Uranium","LDWP","LDWP",2020,34522423.710971497,0,0,0]
["LDWP_Nuclear","Uranium","LDWP","LDWP",2021,34522423.710971497,0,0,0]
["LDWP_Nuclear","Uranium","LDWP","LDWP",2022,34522423.710971497,0,0,0]
["LDWP_Nuclear","Uranium","LDWP","LDWP",2023,34522423.710971497,0,0,0]
["LDWP_Nuclear","Uranium","LDWP","LDWP",2024,34522423.710971497,0,0,0]
["LDWP_Nuclear","Uranium","LDWP","LDWP",2026,34522423.710971497,0,0,0]
["LDWP_Nuclear","Uranium","LDWP","LDWP",2030,34522423.710971497,0,0,0]
["LDWP_Nuclear","Uranium","LDWP","LDWP",2045,34522423.710971497,0,0,0]
["LDWP_Peaker","CA_Natural_Gas","LDWP","LDWP",2020,0,0,0,0]
["LDWP_Peaker","CA_Natural_Gas","LDWP","LDWP",2021,0,0,0,0]
["LDWP_Peaker","CA_Natural_Gas","LDWP","LDWP",2022,0,0,0,0]
["LDWP_Peaker","CA_Natural_Gas","LDWP","LDWP",2023,0,0,0,0]
["LDWP_Peaker","CA_Natural_Gas","LDWP","LDWP",2024,0,0,0,0]
["LDWP_Peaker","CA_Natural_Gas","LDWP","LDWP",2026,0,0,0,0]
["LDWP_Peaker","CA_Natural_Gas","LDWP","LDWP",2030,0,0,0,0]
["LDWP_Peaker","CA_Natural_Gas","LDWP","LDWP",2045,0,0,0,0]
["LDWP_ST","CA_Natural_Gas","LDWP","LDWP",2020,0,0,0,0]
["LDWP_ST","CA_Natural_Gas","LDWP","LDWP",2021,0,0,0,0]
["LDWP_ST","CA_Natural_Gas","LDWP","LDWP",2022,0,0,0,0]
["LDWP_ST","CA_Natural_Gas","LDWP","LDWP",2023,0,0,0,0]
["LDWP_ST","CA_Natural_Gas","LDWP","LDWP",2024,0,0,0,0]
["LDWP_ST","CA_Natural_Gas","LDWP","LDWP",2026,0,0,0,0]
["LDWP_ST","CA_Natural_Gas","LDWP","LDWP",2030,0,0,0,0]
["LDWP_ST","CA_Natural_Gas","LDWP","LDWP",2045,0,0,0,0]
["NW_CCGT","NW_Natural_Gas","NW","NW",2020,26834456.8390234,1422229.32957853,0,0]
["NW_CCGT","NW_Natural_Gas","NW","NW",2021,50606657.694077797,2682154.4188274001,0,0]
["NW_CCGT","NW_Natural_Gas","NW","NW",2022,65385590.005464703,3465437.4610662898,0,0]
["NW_CCGT","NW_Natural_Gas","NW","NW",2023,69204344.307077497,3667833.2314603799,0,0]
["NW_CCGT","NW_Natural_Gas","NW","NW",2024,73723996.085962504,3907374.04073996,0,0]
["NW_CCGT","NW_Natural_Gas","NW","NW",2026,93227662.519474596,4941064.5416039396,0,0]
["NW_CCGT","NW_Natural_Gas","NW","NW",2030,109733649.36291499,5815885.0007900903,0,0]
["NW_CCGT","NW_Natural_Gas","NW","NW",2045,195874763.57929099,10381360.2405759,0,0]
["NW_Coal","Coal","NW","NW",2020,755917764.96408105,71056261.723097399,0,0]
["NW_Coal","Coal","NW","NW",2021,685008267.27624404,64390765.292774402,0,0]
["NW_Coal","Coal","NW","NW",2022,640071358.78117001,60166720.673236497,0,0]
["NW_Coal","Coal","NW","NW",2023,638829848.38231802,60050019.269685701,0,0]
["NW_Coal","Coal","NW","NW",2024,642249777.77209103,60371491.612111598,0,0]
["NW_Coal","Coal","NW","NW",2026,596811236.35196197,56100237.033049203,0,0]
["NW_Coal","Coal","NW","NW",2030,535608982.19595999,50347213.928991199,0,0]
["NW_Coal","Coal","NW","NW",2045,525886546.08475202,49433307.350561202,0,0]
["NW_Nuclear","Uranium","NW","NW",2020,102478127.051369,0,0,0]
["NW_Nuclear","Uranium","NW","NW",2021,102478127.051369,0,0,0]
["NW_Nuclear","Uranium","NW","NW",2022,102478127.051369,0,0,0]
["NW_Nuclear","Uranium","NW","NW",2023,102478127.051369,0,0,0]
["NW_Nuclear","Uranium","NW","NW",2024,102478127.051369,0,0,0]
["NW_Nuclear","Uranium","NW","NW",2026,102478127.051369,0,0,0]
["NW_Nuclear","Uranium","NW","NW",2030,153853817.769274,0,0,0]
["NW_Nuclear","Uranium","NW","NW",2045,153853817.769274,0,0,0]
["NW_Peaker","NW_Natural_Gas","NW","NW",2020,0,0,0,0]
["NW_Peaker","NW_Natural_Gas","NW","NW",2021,0,0,0,0]
["NW_Peaker","NW_Natural_Gas","NW","NW",2022,0,0,0,0]
["NW_Peaker","NW_Natural_Gas","NW","NW",2023,0,0,0,0]
["NW_Peaker","NW_Natural_Gas","NW","NW",2024,0,0,0,0]
["NW_Peaker","NW_Natural_Gas","NW","NW",2026,0,0,0,0]
["NW_Peaker","NW_Natural_Gas","NW","NW",2030,0,0,0,0]
["NW_Peaker","NW_Natural_Gas","NW","NW",2045,13362287.189068601,708202.83230332599,0,0]
["SW_CCGT","SW_Natural_Gas","SW","SW",2020,538396566.93984497,28535020.007870499,0,4911.4210386287796]
["SW_CCGT","SW_Natural_Gas","SW","SW",2021,519775476.41944599,27548100.543419998,0,0]
["SW_CCGT","SW_Natural_Gas","SW","SW",2022,531397111.065,28164052.873354901,0,1184.43736184003]
["SW_CCGT","SW_Natural_Gas","SW","SW",2023,536253375.63952798,28421434.428574301,0,1117.30289464412]
["SW_CCGT","SW_Natural_Gas","SW","SW",2024,554954074.29198396,29412563.7867641,0,0]
["SW_CCGT","SW_Natural_Gas","SW","SW",2026,605024504.54529595,32066297.6957318,0,0]
["SW_CCGT","SW_Natural_Gas","SW","SW",2030,645106585.57984102,34190645.725909099,0,0]
["SW_CCGT","SW_Natural_Gas","SW","SW",2045,539294842.38448799,28582630.172395099,0,0]
["SW_Coal","Coal","SW","SW",2020,366142998.157556,34417434.437913701,0,0]
["SW_Coal","Coal","SW","SW",2021,412285805.80753797,38754858.055346802,0,0]
["SW_Coal","Coal","SW","SW",2022,422330925.22524703,39699098.625254899,0,0]
["SW_Coal","Coal","SW","SW",2023,443214279.53709501,41662133.860306099,0,0]
["SW_Coal","Coal","SW","SW",2024,456402719.72530401,42901848.819345303,0,0]
["SW_Coal","Coal","SW","SW",2026,395328620.77753699,37160892.670012303,0,0]
["SW_Coal","Coal","SW","SW",2030,441690854.71287102,41518934.162182502,0,0]
["SW_Coal","Coal","SW","SW",2045,480646664.97648901,45180784.558611497,0,0]
["SW_Nuclear","Uranium","SW","SW",2020,254299507.95171499,0,0,0]
["SW_Nuclear","Uranium","SW","SW",2021,254299507.95171499,0,0,0]
["SW_Nuclear","Uranium","SW","SW",2022,254299507.95171499,0,0,0]
["SW_Nuclear","Uranium","SW","SW",2023,254299507.95171499,0,0,0]
["SW_Nuclear","Uranium","SW","SW",2024,254299507.95171499,0,0,0]
["SW_Nuclear","Uranium","SW","SW",2026,254299507.95171499,0,0,0]
["SW_Nuclear","Uranium","SW","SW",2030,254299507.95171499,0,0,0]
["SW_Nuclear","Uranium","SW","SW",2045,254299507.95171499,0,0,0]
["SW_Peaker","SW_Natural_Gas","SW","SW",2020,0,0,0,0]
["SW_Peaker","SW_Natural_Gas","SW","SW",2021,0,0,0,0]
["SW_Peaker","SW_Natural_Gas","SW","SW",2022,0,0,0,0]
["SW_Peaker","SW_Natural_Gas","SW","SW",2023,0,0,0,0]
["SW_Peaker","SW_Natural_Gas","SW","SW",2024,0,0,0,0]
["SW_Peaker","SW_Natural_Gas","SW","SW",2026,0,0,0,0]
["SW_Peaker","SW_Natural_Gas","SW","SW",2030,0,0,0,0]
["SW_Peaker","SW_Natural_Gas","SW","SW",2045,5467178.4904435296,289760.20571068901,0,157526.22119417501]
["SW_ST","SW_Natural_Gas","SW","SW",2020,0,0,0,0]
["SW_ST","SW_Natural_Gas","SW","SW",2021,0,0,0,0]
["SW_ST","SW_Natural_Gas","SW","SW",2022,0,0,0,0]
["SW_ST","SW_Natural_Gas","SW","SW",2023,0,0,0,0]
["SW_ST","SW_Natural_Gas","SW","SW",2024,0,0,0,0]
["SW_ST","SW_Natural_Gas","SW","SW",2026,0,0,0,0]
["SW_ST","SW_Natural_Gas","SW","SW",2030,0,0,0,0]
["SW_ST","SW_Natural_Gas","SW","SW",2045,0,0,0,0]

{"sheet":"raw_ghg","index":8,"n_rows":10,"n_cols":6,"rows_kept":10,"cut":false,"hidden":false,"merged":[]}
[]
["period","ghg_target_tco2_per_yr","ghg_emissions_credit_tco2_per_yr","ghg_constraint_dual_$","ghg_unspecified_imports_tco2_per_yr","ghg_emissions_within_area_tco2_per_yr"]
[2020,52512420.25,-5480156.3200000003,0,11637625.439999999,28831402.890000001]
[2021,51051178.219999999,-5480156.3200000003,0,10761081.800000001,28142477.859999999]
[2022,49589936.200000003,-5480156.3200000003,0,10069351.800000001,25920304.870000001]
[2023,48128694.170000002,-5480156.3200000003,0,10618233.25,25322082.210000001]
[2024,46667452.149999999,-5480156.3200000003,0,11807481.640000001,26154512.140000001]
[2026,43744968.100000001,-5480156.3200000003,-27.76,9953238.2400000002,28311573.530000001]
[2030,37900000,-5480156.3200000003,-124.12,9303049.8300000001,23116793.850000001]
[2045,12251462.99,0,-554.30999999999995,847527.52,11403935.48]

{"sheet":"raw_ghg_imports","index":9,"n_rows":42,"n_cols":4,"rows_kept":42,"cut":false,"hidden":false,"merged":[]}
[]
["line","period","positive_direction_ghg_imports_tco2_per_year","negative_direction_ghg_imports_tco2_per_year"]
["BANC_to_CAISO",2020,732032.00420965301,0]
["BANC_to_CAISO",2021,647521.28758565499,0]
["BANC_to_CAISO",2022,552570.49329504895,0]
["BANC_to_CAISO",2023,619817.91999433399,0]
["BANC_to_CAISO",2024,807141.86465442495,0]
["BANC_to_CAISO",2026,779006.06674835202,0]
["BANC_to_CAISO",2030,318155.979973245,0]
["BANC_to_CAISO",2045,23444.137340607002,0]
["IID_to_CAISO",2020,1266450.32042082,0]
["IID_to_CAISO",2021,1294252.7077587,0]
["IID_to_CAISO",2022,1117163.75696268,0]
["IID_to_CAISO",2023,1061858.61535128,0]
["IID_to_CAISO",2024,1151696.89327745,0]
["IID_to_CAISO",2026,976338.76765352394,0]
["IID_to_CAISO",2030,629549.89517031598,0]
["IID_to_CAISO",2045,142524.964590488,0]
["LDWP_to_CAISO",2020,102215.81456301799,0]
["LDWP_to_CAISO",2021,82219.245836484799,0]
["LDWP_to_CAISO",2022,60016.044769299202,0]
["LDWP_to_CAISO",2023,75971.604954780996,0]
["LDWP_to_CAISO",2024,151410.51520440599,0]
["LDWP_to_CAISO",2026,138327.64809987601,0]
["LDWP_to_CAISO",2030,17576.968150258901,0]
["LDWP_to_CAISO",2045,60055.53526302,0]
["NW_to_CAISO_Unspecified",2020,4678329.5667890096,0]
["NW_to_CAISO_Unspecified",2021,3554031.2518201,0]
["NW_to_CAISO_Unspecified",2022,3053388.7826454602,0]
["NW_to_CAISO_Unspecified",2023,2913811.8171990202,0]
["NW_to_CAISO_Unspecified",2024,2760009.33058488,0]
["NW_to_CAISO_Unspecified",2026,2122560.4801729298,0]
["NW_to_CAISO_Unspecified",2030,1468152.1229397999,0]
["NW_to_CAISO_Unspecified",2045,8010.9898682650501,0]
["SW_to_CAISO",2020,4858595.9778616298,0]
["SW_to_CAISO",2021,5183056.79717308,0]
["SW_to_CAISO",2022,5286209.8814658998,0]
["SW_to_CAISO",2023,5946769.8664434804,0]
["SW_to_CAISO",2024,6937220.6484587202,0]
["SW_to_CAISO",2026,5937004.2761138696,0]
["SW_to_CAISO",2030,6869613.5793787297,0]
["SW_to_CAISO",2045,613492.21040270105,0]

{"sheet":"raw_inputs_passthrough","index":10,"n_rows":10,"n_cols":17,"rows_kept":10,"cut":false,"hidden":false,"merged":[]}
[]
["period","baseline_distribution_cost","baseline_transmission_cost","baseline_generation_cost","baseline_dsm_cost","baseline_other_cost","scenario_distribution_cost","scenario_transmission_cost","scenario_generation_cost","scenario_dsm_cost","scenario_other_cost","scenario_customer_cost","shift_load_down_potential_factor","td_losses","pumping_loads_mwh","input_carbon_price_$_per_ton","energy_efficiency_mwh"]
[2020,12468.319711546101,3938.4682893697,18111.0560100736,0,1081.9503193251801,18.608404198334998,0,140.036057573428,0,0,2211.6203935860099,0.16666666666666699,7.2400000000000006E-2,7918000,15.2487795643905,1906.1722801818]
[2021,13789.0728771786,4003.5748370097399,18735.511203016398,0,1017.79638932193,21.861204692006599,0,211.27569587699799,0,0,2211.6203935860099,0.16666666666666699,7.2400000000000006E-2,7933000,16.000526928051102,1906.1722801818]
[2022,14072.0163935329,3510.7041212326299,18709.9294522214,0,750.03330552657997,24.821465001817099,0,248.85786990846699,0,0,2211.6203935860099,0.16666666666666699,7.2400000000000006E-2,7950000,16.836956170722701,1906.1722801818]
[2023,13931.157100718399,4101.3614075414598,18390.722234140601,0,-64.849496445112706,27.852947748100899,0,285.92469034091101,0,0,2211.6203935860099,0.16666666666666699,7.2400000000000006E-2,7970000,17.7060323640824,1906.1722801818]
[2024,14027.3823152355,4142.1343888402398,18107.242157903798,0,-358.36145890047402,29.158434227564801,0,316.18161061593298,0,0,2211.6203935860099,0.16666666666666699,7.2400000000000006E-2,7985000,18.624442955812,1906.1722801818]
[2026,14311.3710081475,4189.0957834091096,16148.480270303,0,-1760.0079940161299,29.776328376295499,0,358.79042615684398,0,0,2211.6203935860099,0.16666666666666699,7.2400000000000006E-2,8008000,20.592421016414601,1906.1722801818]
[2030,14981.3436776693,4735.00557016946,16140.826175461299,0,-2594.1350124880501,25.055231593708601,0,432.31054362638201,0,0,2211.6203935860099,0.16666666666666699,7.2400000000000006E-2,8047000,25.247597883069201,1906.1722801818]
[2045,17913.646554973999,5199.3026103457196,16140.826175461299,0,-3491.3641786457401,493.33999835802001,0,670.558200305485,0,0,2211.6203935860099,0.16666666666666699,7.2400000000000006E-2,8047000,54.088573436812702,1906.1722801818]

{"sheet":"raw_local_capacity_resources","index":11,"n_rows":202,"n_cols":7,"rows_kept":202,"cut":false,"hidden":false,"merged":[]}
[]
["resource","period","local_new_capacity_MW","local_new_capacity_NQC_MW","local_capacity_limit_MW","local_capacity_limit_dual_$","storage_local_energy_capacity_MWh"]
["CAISO_Advanced_CCGT",2020,0,0]
["CAISO_Advanced_CCGT",2021,0,0]
["CAISO_Advanced_CCGT",2022,0,0]
["CAISO_Advanced_CCGT",2023,0,0]
["CAISO_Advanced_CCGT",2024,0,0]
["CAISO_Advanced_CCGT",2026,0,0]
["CAISO_Advanced_CCGT",2030,0,0]
["CAISO_Advanced_CCGT",2045,0,0]
["CAISO_Aero_CT",2020,0,0]
["CAISO_Aero_CT",2021,0,0]
["CAISO_Aero_CT",2022,0,0]
["CAISO_Aero_CT",2023,0,0]
["CAISO_Aero_CT",2024,0,0]
["CAISO_Aero_CT",2026,0,0]
["CAISO_Aero_CT",2030,0,0]
["CAISO_Aero_CT",2045,0,0]
["CAISO_Reciprocating_Engine",2020,0,0]
["CAISO_Reciprocating_Engine",2021,0,0]
["CAISO_Reciprocating_Engine",2022,0,0]
["CAISO_Reciprocating_Engine",2023,0,0]
["CAISO_Reciprocating_Engine",2024,0,0]
["CAISO_Reciprocating_Engine",2026,0,0]
["CAISO_Reciprocating_Engine",2030,0,0]
["CAISO_Reciprocating_Engine",2045,0,0]
["Distributed_Solar",2020,0,0]
["Distributed_Solar",2021,0,0]
["Distributed_Solar",2022,0,0]
["Distributed_Solar",2023,0,0]
["Distributed_Solar",2024,0,0]
["Distributed_Solar",2026,0,0]
["Distributed_Solar",2030,0,0]
["Distributed_Solar",2045,0,0]
["CAISO_New_Pumped_Storage",2020,0,0,null,null,0]
["CAISO_New_Pumped_Storage",2021,0,0,null,null,0]
["CAISO_New_Pumped_Storage",2022,0,0,null,null,0]
["CAISO_New_Pumped_Storage",2023,0,0,null,null,0]
["CAISO_New_Pumped_Storage",2024,0,0,null,null,0]
["CAISO_New_Pumped_Storage",2026,0,0,null,null,0]
["CAISO_New_Pumped_Storage",2030,0,0,null,null,0]
["CAISO_New_Pumped_Storage",2045,0,0,null,null,0]
["CAISO_New_Flow_Battery",2020,0,0,null,null,0]
["CAISO_New_Flow_Battery",2021,0,0,null,null,0]
["CAISO_New_Flow_Battery",2022,0,0,null,null,0]
["CAISO_New_Flow_Battery",2023,0,0,null,null,0]
["CAISO_New_Flow_Battery",2024,0,0,null,null,0]
["CAISO_New_Flow_Battery",2026,0,0,null,null,0]
["CAISO_New_Flow_Battery",2030,0,0,null,null,0]
["CAISO_New_Flow_Battery",2045,0,0,null,null,0]
["CAISO_New_Flow_Battery_2",2020,0,0,null,null,0]
["CAISO_New_Flow_Battery_2",2021,0,0,null,null,0]
["CAISO_New_Flow_Battery_2",2022,0,0,null,null,0]
["CAISO_New_Flow_Battery_2",2023,0,0,null,null,0]
["CAISO_New_Flow_Battery_2",2024,0,0,null,null,0]
["CAISO_New_Flow_Battery_2",2026,0,0,null,null,0]
["CAISO_New_Flow_Battery_2",2030,0,0,null,null,0]
["CAISO_New_Flow_Battery_2",2045,0,0,null,null,0]
["CAISO_New_Flow_Battery_3",2020,0,0,null,null,0]
["CAISO_New_Flow_Battery_3",2021,0,0,null,null,0]
["CAISO_New_Flow_Battery_3",2022,0,0,null,null,0]
["CAISO_New_Flow_Battery_3",2023,0,0,null,null,0]
["CAISO_New_Flow_Battery_3",2024,0,0,null,null,0]
["CAISO_New_Flow_Battery_3",2026,0,0,null,null,0]
["CAISO_New_Flow_Battery_3",2030,0,0,null,null,0]
["CAISO_New_Flow_Battery_3",2045,0,0,null,null,0]
["CAISO_New_Flow_Battery_4",2020,0,0,null,null,0]
["CAISO_New_Flow_Battery_4",2021,0,0,null,null,0]
["CAISO_New_Flow_Battery_4",2022,0,0,null,null,0]
["CAISO_New_Flow_Battery_4",2023,0,0,null,null,0]
["CAISO_New_Flow_Battery_4",2024,0,0,null,null,0]
["CAISO_New_Flow_Battery_4",2026,0,0,null,null,0]
["CAISO_New_Flow_Battery_4",2030,0,0,null,null,0]
["CAISO_New_Flow_Battery_4",2045,0,0,null,null,0]
["CAISO_New_Flow_Battery_5",2020,0,0,null,null,0]
["CAISO_New_Flow_Battery_5",2021,0,0,null,null,0]
["CAISO_New_Flow_Battery_5",2022,0,0,null,null,0]
["CAISO_New_Flow_Battery_5",2023,0,0,null,null,0]
["CAISO_New_Flow_Battery_5",2024,0,0,null,null,0]
["CAISO_New_Flow_Battery_5",2026,0,0,null,null,0]
["CAISO_New_Flow_Battery_5",2030,0,0,null,null,0]
["CAISO_New_Flow_Battery_5",2045,0,0,null,null,0]
["CAISO_New_Li_Battery",2020,0,0,null,null,0]
["CAISO_New_Li_Battery",2021,0,0,null,null,0]
["CAISO_New_Li_Battery",2022,0,0,null,null,0]
["CAISO_New_Li_Battery",2023,0,0,null,null,0]
["CAISO_New_Li_Battery",2024,0,0,null,null,0]
["CAISO_New_Li_Battery",2026,0,0,null,null,0]
["CAISO_New_Li_Battery",2030,0,0,null,null,0]
["CAISO_New_Li_Battery",2045,0,0,null,null,0]
["CAISO_BTM_Li_Battery",2020,0,0,null,null,0]
["CAISO_BTM_Li_Battery",2021,0,0,null,null,0]
["CAISO_BTM_Li_Battery",2022,0,0,null,null,0]
["CAISO_BTM_Li_Battery",2023,0,0,null,null,0]
["CAISO_BTM_Li_Battery",2024,0,0,null,null,0]
["CAISO_BTM_Li_Battery",2026,0,0,null,null,0]
["CAISO_BTM_Li_Battery",2030,0,0,null,null,0]
["CAISO_BTM_Li_Battery",2045,0,0,null,null,0]
["CAISO_New_Li_Battery_2",2020,0,0,null,null,0]
["CAISO_New_Li_Battery_2",2021,0,0,null,null,0]
["CAISO_New_Li_Battery_2",2022,0,0,null,null,0]
["CAISO_New_Li_Battery_2",2023,0,0,null,null,0]
["CAISO_New_Li_Battery_2",2024,0,0,null,null,0]
["CAISO_New_Li_Battery_2",2026,0,0,null,null,0]
["CAISO_New_Li_Battery_2",2030,0,0,null,null,0]
["CAISO_New_Li_Battery_2",2045,0,0,null,null,0]
["CAISO_New_Li_Battery_3",2020,0,0,null,null,0]
["CAISO_New_Li_Battery_3",2021,0,0,null,null,0]
["CAISO_New_Li_Battery_3",2022,0,0,null,null,0]
["CAISO_New_Li_Battery_3",2023,0,0,null,null,0]
["CAISO_New_Li_Battery_3",2024,0,0,null,null,0]
["CAISO_New_Li_Battery_3",2026,0,0,null,null,0]
["CAISO_New_Li_Battery_3",2030,0,0,null,null,0]
["CAISO_New_Li_Battery_3",2045,0,0,null,null,0]
["CAISO_New_Li_Battery_4",2020,0,0,null,null,0]
["CAISO_New_Li_Battery_4",2021,0,0,null,null,0]
["CAISO_New_Li_Battery_4",2022,0,0,null,null,0]
["CAISO_New_Li_Battery_4",2023,0,0,null,null,0]
["CAISO_New_Li_Battery_4",2024,0,0,null,null,0]
["CAISO_New_Li_Battery_4",2026,0,0,null,null,0]
["CAISO_New_Li_Battery_4",2030,0,0,null,null,0]
["CAISO_New_Li_Battery_4",2045,0,0,null,null,0]
["CAISO_New_Li_Battery_5",2020,0,0,null,null,0]
["CAISO_New_Li_Battery_5",2021,0,0,null,null,0]
["CAISO_New_Li_Battery_5",2022,0,0,null,null,0]
["CAISO_New_Li_Battery_5",2023,0,0,null,null,0]
["CAISO_New_Li_Battery_5",2024,0,0,null,null,0]
["CAISO_New_Li_Battery_5",2026,0,0,null,null,0]
["CAISO_New_Li_Battery_5",2030,0,0,null,null,0]
["CAISO_New_Li_Battery_5",2045,0,0,null,null,0]
["CAISO_New_Li_Battery_6",2020,0,0,null,null,0]
["CAISO_New_Li_Battery_6",2021,0,0,null,null,0]
["CAISO_New_Li_Battery_6",2022,0,0,null,null,0]
["CAISO_New_Li_Battery_6",2023,0,0,null,null,0]
["CAISO_New_Li_Battery_6",2024,0,0,null,null,0]
["CAISO_New_Li_Battery_6",2026,0,0,null,null,0]
["CAISO_New_Li_Battery_6",2030,0,0,null,null,0]
["CAISO_New_Li_Battery_6",2045,0,0,null,null,0]
["CAISO_Shed_DR_Tranche1",2020,0,0]
["CAISO_Shed_DR_Tranche1",2021,0,0]
["CAISO_Shed_DR_Tranche1",2022,0,0]
["CAISO_Shed_DR_Tranche1",2023,0,0]
["CAISO_Shed_DR_Tranche1",2024,0,0]
["CAISO_Shed_DR_Tranche1",2026,0,0]
["CAISO_Shed_DR_Tranche1",2030,0,0]
["CAISO_Shed_DR_Tranche1",2045,0,0]
["CAISO_Shed_DR_Tranche2",2020,0,0]
["CAISO_Shed_DR_Tranche2",2021,0,0]
["CAISO_Shed_DR_Tranche2",2022,0,0]
["CAISO_Shed_DR_Tranche2",2023,0,0]
["CAISO_Shed_DR_Tranche2",2024,0,0]
["CAISO_Shed_DR_Tranche2",2026,0,0]
["CAISO_Shed_DR_Tranche2",2030,0,0]
["CAISO_Shed_DR_Tranche2",2045,0,0]
["CAISO_Shed_DR_Tranche3",2020,0,0]
["CAISO_Shed_DR_Tranche3",2021,0,0]
["CAISO_Shed_DR_Tranche3",2022,0,0]
["CAISO_Shed_DR_Tranche3",2023,0,0]
["CAISO_Shed_DR_Tranche3",2024,0,0]
["CAISO_Shed_DR_Tranche3",2026,0,0]
["CAISO_Shed_DR_Tranche3",2030,0,0]
["CAISO_Shed_DR_Tranche3",2045,0,0]
["CAISO_Shed_DR_Tranche4",2020,0,0]
["CAISO_Shed_DR_Tranche4",2021,0,0]
["CAISO_Shed_DR_Tranche4",2022,0,0]
["CAISO_Shed_DR_Tranche4",2023,0,0]
["CAISO_Shed_DR_Tranche4",2024,0,0]
["CAISO_Shed_DR_Tranche4",2026,0,0]
["CAISO_Shed_DR_Tranche4",2030,0,0]
["CAISO_Shed_DR_Tranche4",2045,0,0]
["CAISO_Shed_DR_Tranche5",2020,0,0]
["CAISO_Shed_DR_Tranche5",2021,0,0]
["CAISO_Shed_DR_Tranche5",2022,0,0]
["CAISO_Shed_DR_Tranche5",2023,0,0]
["CAISO_Shed_DR_Tranche5",2024,0,0]
["CAISO_Shed_DR_Tranche5",2026,0,0]
["CAISO_Shed_DR_Tranche5",2030,0,0]
["CAISO_Shed_DR_Tranche5",2045,0,0]
["CAISO_Shed_DR_Tranche6",2020,0,0]
["CAISO_Shed_DR_Tranche6",2021,0,0]
["CAISO_Shed_DR_Tranche6",2022,0,0]
["CAISO_Shed_DR_Tranche6",2023,0,0]
["CAISO_Shed_DR_Tranche6",2024,0,0]
["CAISO_Shed_DR_Tranche6",2026,0,0]
["CAISO_Shed_DR_Tranche6",2030,0,0]
["CAISO_Shed_DR_Tranche6",2045,0,0]
["CAISO_Shed_DR_Tranche7",2020,0,0]
["CAISO_Shed_DR_Tranche7",2021,0,0]
["CAISO_Shed_DR_Tranche7",2022,0,0]
["CAISO_Shed_DR_Tranche7",2023,0,0]
["CAISO_Shed_DR_Tranche7",2024,0,0]
["CAISO_Shed_DR_Tranche7",2026,0,0]
["CAISO_Shed_DR_Tranche7",2030,0,0]
["CAISO_Shed_DR_Tranche7",2045,0,0]
["CAISO_Shed_DR_Tranche8",2020,0,0]
["CAISO_Shed_DR_Tranche8",2021,0,0]
["CAISO_Shed_DR_Tranche8",2022,0,0]
["CAISO_Shed_DR_Tranche8",2023,0,0]
["CAISO_Shed_DR_Tranche8",2024,0,0]
["CAISO_Shed_DR_Tranche8",2026,0,0]
["CAISO_Shed_DR_Tranche8",2030,0,0]
["CAISO_Shed_DR_Tranche8",2045,0,0]

{"sheet":"raw_operational_costs","index":12,"n_rows":1370,"n_cols":25,"rows_kept":1370,"cut":false,"hidden":false,"merged":[]}
[]
["resource","zone","contract","period","variable_costs_$_per_year","fuel_costs_$_per_year","startup_costs_$_per_year","shutdown_costs_$_per_year","curtailment_costs_$_per_year","generation_mwh_per_year","energy_value_$_per_year","total_fr_mw_per_year","total_fr_value_$_per_year","partial_fr_mw_per_year","partial_fr_value_$_per_year","spin_mw_per_year","spin_value_$_per_year","upward_reg_mw_per_year","upward_reg_value_$_per_year","downward_reg_mw_per_year","downward_reg_value_$_per_year","upward_lf_mw_per_year","upward_lf_value_$_per_year","downward_lf_mw_per_year","downward_lf_value_$_per_year"]
["Arizona_Solar","CAISO","CAISO",2020,0,0,0,0,0,1535929.67636062,47233931.701006599,0,0,0,0,0,0,0,0,0,0,0,0,20372.482942021499,0]
["Arizona_Solar","CAISO","CAISO",2021,0,0,0,0,0,1538043.5797524501,47642741.215352401,0,0,0,0,0,0,0,0,0,0,0,0,11615.449708541501,1378.66003928948]
["Arizona_Solar","CAISO","CAISO",2022,0,0,0,0,0,1539140.6997327399,45107630.997661904,0,0,0,0,0,0,0,0,0,0,0,0,22315.351384599398,0]
["Arizona_Solar","CAISO","CAISO",2023,0,0,0,0,0,1530432.0674624101,42637324.671241201,0,0,0,0,0,0,0,0,0,0,0,0,33531.158832435402,19043.735992926799]
["Arizona_Solar","CAISO","CAISO",2024,0,0,0,0,0,8470824.6796005405,236722094.55300999,0,0,0,0,0,0,0,0,0,0,0,0,151271.96341178799,57106.088651182203]
["Arizona_Solar","CAISO","CAISO",2026,0,0,0,0,0,8466638.8667888697,321194314.68249899,0,0,0,0,0,0,0,0,0,0,0,0,65473.051343301602,40608.892519021603]
["Arizona_Solar","CAISO","CAISO",2030,0,0,0,0,0,7864441.6677323096,396294553.82266003,0,0,0,0,0,0,0,0,0,0,0,0,207194.98895065201,200070.37149406]
["Arizona_Solar","CAISO","CAISO",2045,0,0,0,0,0,6216933.9283020804,522102624.617899,0,0,0,0,0,0,0,0,0,0,0,0,322569.787535501,0]
["Arizona_Wind","CAISO","CAISO",2020,0,0,0,0,0,0,0,0,0,0,0,0,0,0,0,0,0,0,0,0,0]
["Arizona_Wind","CAISO","CAISO",2021,0,0,0,0,0,0,0,0,0,0,0,0,0,0,0,0,0,0,0,0,0]
["Arizona_Wind","CAISO","CAISO",2022,0,0,0,0,0,0,0,0,0,0,0,0,0,0,0,0,0,0,0,0,0]
["Arizona_Wind","CAISO","CAISO",2023,0,0,0,0,0,0,0,0,0,0,0,0,0,0,0,0,0,0,0,0,0]
["Arizona_Wind","CAISO","CAISO",2024,0,0,0,0,0,0,0,0,0,0,0,0,0,0,0,0,0,0,0,0,0]
["Arizona_Wind","CAISO","CAISO",2026,0,0,0,0,0,0,0,0,0,0,0,0,0,0,0,0,0,0,0,0,0]
["Arizona_Wind","CAISO","CAISO",2030,0,0,0,0,0,0,0,0,0,0,0,0,0,0,0,0,0,0,0,0,0]
["Arizona_Wind","CAISO","CAISO",2045,0,0,0,0,0,0,0,0,0,0,0,0,0,0,0,0,0,0,0,0,0]
["BANC_Biomass_for_Other","BANC","BANC",2020,237571.200000001,0,0,0,0,153300,5488104.1409405498,0,0,0,0,0,0,0,0,0,0,0,0,0,0]
["BANC_Biomass_for_Other","BANC","BANC",2021,237571.200000001,0,0,0,0,153300,5550898.51817792,0,0,0,0,0,0,0,0,0,0,0,0,0,0]
["BANC_Biomass_for_Other","BANC","BANC",2022,237571.200000001,0,0,0,0,153300,5516876.2987918695,0,0,0,0,0,0,0,0,0,0,0,0,0,0]
["BANC_Biomass_for_Other","BANC","BANC",2023,237571.200000001,0,0,0,0,153300,5512526.0603123903,0,0,0,0,0,0,0,0,0,0,0,0,0,0]
["BANC_Biomass_for_Other","BANC","BANC",2024,237571.200000001,0,0,0,0,153300,5583103.7754864097,0,0,0,0,0,0,0,0,0,0,0,0,0,0]
["BANC_Biomass_for_Other","BANC","BANC",2026,237571.200000001,0,0,0,0,153300,5465157.8692624802,0,0,0,0,0,0,0,0,0,0,0,0,0,0]
["BANC_Biomass_for_Other","BANC","BANC",2030,237571.200000001,0,0,0,0,153300,4862120.3266520202,0,0,0,0,0,0,0,0,0,0,0,0,0,0]
["BANC_Biomass_for_Other","BANC","BANC",2045,237571.200000001,0,0,0,0,153300,5079672.1068606703,0,0,0,0,0,0,0,0,0,0,0,0,0,0]
["BANC_CCGT","BANC","BANC",2020,786962.31560617394,124215698.69091199,0,0,0,3219968.9722215701,125485757.61019,0,0,0,0,0,0,0,0,0,0,0,0,0,0]
["BANC_CCGT","BANC","BANC",2021,801322.87648124504,127919855.79378299,0,0,0,3278742.1765053901,128901740.99073599,0,0,0,0,0,0,0,0,0,0,0,0,0,0]
["BANC_CCGT","BANC","BANC",2022,825906.73204136605,133886707.546143,0,0,0,3379347.77719191,134854222.16751599,0,0,0,0,0,0,0,0,0,0,0,0,0,0]
["BANC_CCGT","BANC","BANC",2023,797591.70968368906,130560758.149572,0,0,0,3263475.1722357399,131362347.91404399,0,0,0,0,0,0,0,0,0,0,0,0,0,0]
["BANC_CCGT","BANC","BANC",2024,823142.90962514596,136548703.95926899,0,0,0,3368013.3948970102,137370508.553985,0,0,0,0,0,0,0,0,0,0,0,0,0,0]
["BANC_CCGT","BANC","BANC",2026,803178.96008934604,136536588.37863901,0,0,0,3286318.8910552999,137337342.19223899,0,0,0,0,0,0,0,0,0,0,0,0,0,0]
["BANC_CCGT","BANC","BANC",2030,682746.09048421902,122751658.565522,0,0,0,2793541.4518661099,123434826.944253,0,0,0,0,0,0,0,0,0,0,0,0,0,0]
["BANC_CCGT","BANC","BANC",2045,735131.20614236896,172822382.465873,40812.536791168597,40812.536791168597,0,3007922.3958901502,175624519.46964401,0,0,0,0,0,0,0,0,0,0,0,0,0,0]
["BANC_Geothermal_for_Other","BANC","BANC",2020,0,0,0,0,0,0,0,0,0,0,0,0,0,0,0,0,0,0,0,0,0]
["BANC_Geothermal_for_Other","BANC","BANC",2021,0,0,0,0,0,0,0,0,0,0,0,0,0,0,0,0,0,0,0,0,0]
["BANC_Geothermal_for_Other","BANC","BANC",2022,0,0,0,0,0,0,0,0,0,0,0,0,0,0,0,0,0,0,0,0,0]
["BANC_Geothermal_for_Other","BANC","BANC",2023,0,0,0,0,0,0,0,0,0,0,0,0,0,0,0,0,0,0,0,0,0]
["BANC_Geothermal_for_Other","BANC","BANC",2024,0,0,0,0,0,0,0,0,0,0,0,0,0,0,0,0,0,0,0,0,0]
["BANC_Geothermal_for_Other","BANC","BANC",2026,0,0,0,0,0,0,0,0,0,0,0,0,0,0,0,0,0,0,0,0,0]
["BANC_Geothermal_for_Other","BANC","BANC",2030,0,0,0,0,0,0,0,0,0,0,0,0,0,0,0,0,0,0,0,0,0]
["BANC_Geothermal_for_Other","BANC","BANC",2045,0,0,0,0,0,0,0,0,0,0,0,0,0,0,0,0,0,0,0,0,0]
["BANC_Hydro","BANC","BANC",2020,0,0,0,0,0,7022469.32427854,261796680.894467,0,0,0,0,0,0,0,0,0,0,0,0,0,0]
["BANC_Hydro","BANC","BANC",2021,0,0,0,0,0,7022467.8865505196,265377609.60855201,0,0,0,0,0,0,0,0,0,0,0,0,0,0]
["BANC_Hydro","BANC","BANC",2022,0,0,0,0,0,7022467.7382936096,264305814.636026,0,0,0,0,0,0,0,0,0,0,0,0,0,0]
["BANC_Hydro","BANC","BANC",2023,0,0,0,0,0,7022468.7970759403,265533392.90706801,0,0,0,0,0,0,0,0,0,0,0,0,0,0]
["BANC_Hydro","BANC","BANC",2024,0,0,0,0,0,7022468.6285976004,269464870.73186201,0,0,0,0,0,0,0,0,0,0,0,0,0,0]
["BANC_Hydro","BANC","BANC",2026,0,0,0,0,0,7022469.9533283496,265202051.96203399,0,0,0,0,0,0,0,0,0,0,0,0,0,0]
["BANC_Hydro","BANC","BANC",2030,0,0,0,0,0,7022469.9180669701,258610059.76506001,0,0,0,0,0,0,0,0,0,0,0,0,0,0]
["BANC_Hydro","BANC","BANC",2045,0,0,0,0,0,7022468.7334640296,247344532.336631,0,0,0,0,0,0,0,0,0,0,0,0,0,0]
["BANC_Peaker","BANC","BANC",2020,0,0,0,0,0,0,0,0,0,0,0,0,0,0,0,0,0,0,0,0,0]
["BANC_Peaker","BANC","BANC",2021,0,0,0,0,0,0,0,0,0,0,0,0,0,0,0,0,0,0,0,0,0]
["BANC_Peaker","BANC","BANC",2022,0,0,0,0,0,0,0,0,0,0,0,0,0,0,0,0,0,0,0,0,0]
["BANC_Peaker","BANC","BANC",2023,0,0,0,0,0,0,0,0,0,0,0,0,0,0,0,0,0,0,0,0,0]
["BANC_Peaker","BANC","BANC",2024,0,0,0,0,0,0,0,0,0,0,0,0,0,0,0,0,0,0,0,0,0]
["BANC_Peaker","BANC","BANC",2026,0,0,0,0,0,0,0,0,0,0,0,0,0,0,0,0,0,0,0,0,0]
["BANC_Peaker","BANC","BANC",2030,0,0,0,0,0,0,0,0,0,0,0,0,0,0,0,0,0,0,0,0,0]
["BANC_Peaker","BANC","BANC",2045,0,0,0,0,0,0,0,0,0,0,0,0,0,0,0,0,0,0,0,0,0]
["BANC_Small_Hydro_for_CAISO","BANC","CAISO",2020,0,0,0,0,0,0,0,0,0,0,0,0,0,0,0,0,0,0,0,0,0]
["BANC_Small_Hydro_for_CAISO","BANC","CAISO",2021,0,0,0,0,0,0,0,0,0,0,0,0,0,0,0,0,0,0,0,0,0]
["BANC_Small_Hydro_for_CAISO","BANC","CAISO",2022,0,0,0,0,0,0,0,0,0,0,0,0,0,0,0,0,0,0,0,0,0]
["BANC_Small_Hydro_for_CAISO","BANC","CAISO",2023,0,0,0,0,0,0,0,0,0,0,0,0,0,0,0,0,0,0,0,0,0]
["BANC_Small_Hydro_for_CAISO","BANC","CAISO",2024,0,0,0,0,0,0,0,0,0,0,0,0,0,0,0,0,0,0,0,0,0]
["BANC_Small_Hydro_for_CAISO","BANC","CAISO",2026,0,0,0,0,0,0,0,0,0,0,0,0,0,0,0,0,0,0,0,0,0]
["BANC_Small_Hydro_for_CAISO","BANC","CAISO",2030,0,0,0,0,0,0,0,0,0,0,0,0,0,0,0,0,0,0,0,0,0]
["BANC_Small_Hydro_for_CAISO","BANC","CAISO",2045,0,0,0,0,0,0,0,0,0,0,0,0,0,0,0,0,0,0,0,0,0]
["BANC_Small_Hydro_for_Other","BANC","BANC",2020,0,0,0,0,0,360912,12920565.177528599,0,0,0,0,0,0,0,0,0,0,0,0,0,0]
["BANC_Small_Hydro_for_Other","BANC","BANC",2021,0,0,0,0,0,360912,13068401.082795899,0,0,0,0,0,0,0,0,0,0,0,0,0,0]
["BANC_Small_Hydro_for_Other","BANC","BANC",2022,0,0,0,0,0,360912,12988303.0577271,0,0,0,0,0,0,0,0,0,0,0,0,0,0]
["BANC_Small_Hydro_for_Other","BANC","BANC",2023,0,0,0,0,0,360912,12978061.3534212,0,0,0,0,0,0,0,0,0,0,0,0,0,0]
["BANC_Small_Hydro_for_Other","BANC","BANC",2024,0,0,0,0,0,360912,13144221.460002299,0,0,0,0,0,0,0,0,0,0,0,0,0,0]
["BANC_Small_Hydro_for_Other","BANC","BANC",2026,0,0,0,0,0,360912,12866543.097920701,0,0,0,0,0,0,0,0,0,0,0,0,0,0]
["BANC_Small_Hydro_for_Other","BANC","BANC",2030,0,0,0,0,0,360912,11446820.426175,0,0,0,0,0,0,0,0,0,0,0,0,0,0]
["BANC_Small_Hydro_for_Other","BANC","BANC",2045,0,0,0,0,0,360912,11958999.474437701,0,0,0,0,0,0,0,0,0,0,0,0,0,0]
["BANC_Solar_for_Other","BANC","BANC",2020,0,0,0,0,0,5311945.8595840102,163693346.651647,0,0,0,0,0,0,0,0,0,0,0,0,0,0]
["BANC_Solar_for_Other","BANC","BANC",2021,0,0,0,0,0,5776532.9382543704,177758028.77181599,0,0,0,0,0,0,0,0,0,0,0,0,0,0]
["BANC_Solar_for_Other","BANC","BANC",2022,0,0,0,0,0,6246278.6094553201,184325586.19471899,0,0,0,0,0,0,0,0,0,0,0,0,0,0]
["BANC_Solar_for_Other","BANC","BANC",2023,0,0,0,0,0,6680659.2962895604,192043344.60212901,0,0,0,0,0,0,0,0,0,0,0,0,0,0]
["BANC_Solar_for_Other","BANC","BANC",2024,0,0,0,0,0,7128301.1240446698,204914446.33366901,0,0,0,0,0,0,0,0,0,0,0,0,0,0]
["BANC_Solar_for_Other","BANC","BANC",2026,0,0,0,0,0,8015984.8608118501,203506936.75575301,0,0,0,0,0,0,0,0,0,0,0,0,0,0]
["BANC_Solar_for_Other","BANC","BANC",2030,0,0,0,0,20730158.314681299,8965671.5570962299,107035202.672815,0,0,0,0,0,0,0,0,0,0,0,0,0,0]
["BANC_Solar_for_Other","BANC","BANC",2045,0,0,0,0,23263430.4373511,8881229.0075331703,78305932.324641302,0,0,0,0,0,0,0,0,0,0,0,0,0,0]
["BANC_Wind_for_Other","BANC","BANC",2020,0,0,0,0,0,0,0,0,0,0,0,0,0,0,0,0,0,0,0,0,0]
["BANC_Wind_for_Other","BANC","BANC",2021,0,0,0,0,0,0,0,0,0,0,0,0,0,0,0,0,0,0,0,0,0]
["BANC_Wind_for_Other","BANC","BANC",2022,0,0,0,0,0,0,0,0,0,0,0,0,0,0,0,0,0,0,0,0,0]
["BANC_Wind_for_Other","BANC","BANC",2023,0,0,0,0,0,0,0,0,0,0,0,0,0,0,0,0,0,0,0,0,0]
["BANC_Wind_for_Other","BANC","BANC",2024,0,0,0,0,0,0,0,0,0,0,0,0,0,0,0,0,0,0,0,0,0]
["BANC_Wind_for_Other","BANC","BANC",2026,0,0,0,0,0,0,0,0,0,0,0,0,0,0,0,0,0,0,0,0,0]
["BANC_Wind_for_Other","BANC","BANC",2030,0,0,0,0,0,0,0,0,0,0,0,0,0,0,0,0,0,0,0,0,0]
["BANC_Wind_for_Other","BANC","BANC",2045,0,0,0,0,0,0,0,0,0,0,0,0,0,0,0,0,0,0,0,0,0]
["Baja_California_Solar","CAISO","CAISO",2020,0,0,0,0,0,0,0,0,0,0,0,0,0,0,0,0,0,0,0,0,0]
["Baja_California_Solar","CAISO","CAISO",2021,0,0,0,0,0,0,0,0,0,0,0,0,0,0,0,0,0,0,0,0,0]
["Baja_California_Solar","CAISO","CAISO",2022,0,0,0,0,0,0,0,0,0,0,0,0,0,0,0,0,0,0,0,0,0]
["Baja_California_Solar","CAISO","CAISO",2023,0,0,0,0,0,0,0,0,0,0,0,0,0,0,0,0,0,0,0,0,0]
["Baja_California_Solar","CAISO","CAISO",2024,0,0,0,0,0,0,0,0,0,0,0,0,0,0,0,0,0,0,0,0,0]
["Baja_California_Solar","CAISO","CAISO",2026,0,0,0,0,0,0,0,0,0,0,0,0,0,0,0,0,0,0,0,0,0]
["Baja_California_Solar","CAISO","CAISO",2030,0,0,0,0,0,0,0,0,0,0,0,0,0,0,0,0,0,0,0,0,0]
["Baja_California_Solar","CAISO","CAISO",2045,0,0,0,0,0,0,0,0,0,0,0,0,0,0,0,0,0,0,0,0,0]
["Baja_California_Wind","CAISO","CAISO",2020,0,0,0,0,0,0,0,0,0,0,0,0,0,0,0,0,0,0,0,0,0]
["Baja_California_Wind","CAISO","CAISO",2021,0,0,0,0,0,0,0,0,0,0,0,0,0,0,0,0,0,0,0,0,0]
["Baja_California_Wind","CAISO","CAISO",2022,0,0,0,0,0,0,0,0,0,0,0,0,0,0,0,0,0,0,0,0,0]
["Baja_California_Wind","CAISO","CAISO",2023,0,0,0,0,0,0,0,0,0,0,0,0,0,0,0,0,0,0,0,0,0]
["Baja_California_Wind","CAISO","CAISO",2024,0,0,0,0,0,291780.09814262798,10324098.1759583,0,0,0,0,0,0,0,0,0,0,0,0,2816.6011652591701,1571.54583278682]
["Baja_California_Wind","CAISO","CAISO",2026,0,0,0,0,0,290240.250056941,13386539.551800201,0,0,0,0,0,0,0,0,0,0,0,0,1001.69858838632,194.48608268120299]
["Baja_California_Wind","CAISO","CAISO",2030,0,0,0,0,0,1842128.68585738,143454041.33054399,0,0,0,0,0,0,0,0,0,0,0,0,21977.8277129216,45543.157923364997]
["Baja_California_Wind","CAISO","CAISO",2045,0,0,0,0,0,1838579.1239028301,245035550.79086301,0,0,0,0,0,0,0,0,0,0,0,0,61852.6174173205,0]
["CAISO_Advanced_CCGT","CAISO","CAISO",2020,0,0,0,0,0,0,0,0,0,0,0,0,0,0,0,0,0,0,0,0,0]
["CAISO_Advanced_CCGT","CAISO","CAISO",2021,0,0,0,0,0,0,0,0,0,0,0,0,0,0,0,0,0,0,0,0,0]
["CAISO_Advanced_CCGT","CAISO","CAISO",2022,0,0,0,0,0,0,0,0,0,0,0,0,0,0,0,0,0,0,0,0,0]
["CAISO_Advanced_CCGT","CAISO","CAISO",2023,0,0,0,0,0,0,0,0,0,0,0,0,0,0,0,0,0,0,0,0,0]
["CAISO_Advanced_CCGT","CAISO","CAISO",2024,0,0,0,0,0,0,0,0,0,0,0,0,0,0,0,0,0,0,0,0,0]
["CAISO_Advanced_CCGT","CAISO","CAISO",2026,0,0,0,0,0,0,0,0,0,0,0,0,0,0,0,0,0,0,0,0,0]
["CAISO_Advanced_CCGT","CAISO","CAISO",2030,0,0,0,0,0,0,0,0,0,0,0,0,0,0,0,0,0,0,0,0,0]
["CAISO_Advanced_CCGT","CAISO","CAISO",2045,0,0,0,0,0,0,0,0,0,0,0,0,0,0,0,0,0,0,0,0,0]
["CAISO_Aero_CT","CAISO","CAISO",2020,0,0,0,0,0,0,0,0,0,0,0,0,0,0,0,0,0,0,0,0,0]
["CAISO_Aero_CT","CAISO","CAISO",2021,0,0,0,0,0,0,0,0,0,0,0,0,0,0,0,0,0,0,0,0,0]
["CAISO_Aero_CT","CAISO","CAISO",2022,0,0,0,0,0,0,0,0,0,0,0,0,0,0,0,0,0,0,0,0,0]
["CAISO_Aero_CT","CAISO","CAISO",2023,0,0,0,0,0,0,0,0,0,0,0,0,0,0,0,0,0,0,0,0,0]
["CAISO_Aero_CT","CAISO","CAISO",2024,0,0,0,0,0,0,0,0,0,0,0,0,0,0,0,0,0,0,0,0,0]
["CAISO_Aero_CT","CAISO","CAISO",2026,0,0,0,0,0,0,0,0,0,0,0,0,0,0,0,0,0,0,0,0,0]
["CAISO_Aero_CT","CAISO","CAISO",2030,0,0,0,0,0,0,0,0,0,0,0,0,0,0,0,0,0,0,0,0,0]
["CAISO_Aero_CT","CAISO","CAISO",2045,0,0,0,0,0,0,0,0,0,0,0,0,0,0,0,0,0,0,0,0,0]
["CAISO_BTM_Li_Battery","CAISO","CAISO",2020,0,0,0,0,0,72624.541332581604,4388287.1454603001,0,0,0,0,0,0,0,0,0,0,0,0,0,0]
["CAISO_BTM_Li_Battery","CAISO","CAISO",2021,0,0,0,0,0,64247.696469337301,3775311.5611695899,0,0,0,0,0,0,0,0,0,0,0,0,0,0]
["CAISO_BTM_Li_Battery","CAISO","CAISO",2022,0,0,0,0,0,67775.910761842199,3898514.5382819301,0,0,0,0,0,0,0,0,0,0,0,0,0,0]
["CAISO_BTM_Li_Battery","CAISO","CAISO",2023,0,0,0,0,0,70215.053910324699,4084638.7100654198,0,0,0,0,0,0,0,0,0,0,0,0,0,0]
["CAISO_BTM_Li_Battery","CAISO","CAISO",2024,0,0,0,0,0,70653.061514427594,3923131.0517948,0,0,0,0,0,0,0,0,0,0,0,0,0,0]
["CAISO_BTM_Li_Battery","CAISO","CAISO",2026,0,0,0,0,0,78729.291390985003,4606196.0363862803,0,0,0,0,0,0,0,0,0,0,0,0,0,0]
["CAISO_BTM_Li_Battery","CAISO","CAISO",2030,0,0,0,0,0,96578.269575175495,8287269.1586082801,0,0,0,0,0,0,0,0,0,0,0,0,0,0]
["CAISO_BTM_Li_Battery","CAISO","CAISO",2045,0,0,0,0,0,208048.75237216201,12053324.506950499,0,0,0,0,0,0,0,0,0,0,0,0,0,0]
["CAISO_Biomass_for_CAISO","CAISO","CAISO",2020,10347049.199999999,0,0,0,0,6675558.0000000298,241459360.80588001,0,0,0,0,0,0,0,0,0,0,0,0,0,0]
["CAISO_Biomass_for_CAISO","CAISO","CAISO",2021,10347049.199999999,0,0,0,0,6675558.0000000298,241690827.41443101,0,0,0,0,0,0,0,0,0,0,0,0,0,0]
["CAISO_Biomass_for_CAISO","CAISO","CAISO",2022,10347049.199999999,0,0,0,0,6675558.0000000298,237556127.233639,0,0,0,0,0,0,0,0,0,0,0,0,0,0]
["CAISO_Biomass_for_CAISO","CAISO","CAISO",2023,10347049.199999999,0,0,0,0,6675558.0000000298,235472489.34159499,0,0,0,0,0,0,0,0,0,0,0,0,0,0]
["CAISO_Biomass_for_CAISO","CAISO","CAISO",2024,10347049.199999999,0,0,0,0,6675558.0000000298,238880805.770491,0,0,0,0,0,0,0,0,0,0,0,0,0,0]
["CAISO_Biomass_for_CAISO","CAISO","CAISO",2026,10347049.199999999,0,0,0,0,6675558.0000000298,310884717.08442801,0,0,0,0,0,0,0,0,0,0,0,0,0,0]
["CAISO_Biomass_for_CAISO","CAISO","CAISO",2030,10324973.999999899,0,0,0,0,6661279.20000003,506442839.77513301,0,0,0,0,0,0,0,0,0,0,0,0,0,0]
["CAISO_Biomass_for_CAISO","CAISO","CAISO",2045,10324973.999999899,0,0,0,0,6661279.20000003,868091676.69700205,0,0,0,0,0,0,0,0,0,0,0,0,0,0]
["CAISO_Biomass_for_Other","CAISO","CAISO",2020,158818.799999999,0,0,0,0,102491.999999999,3707203.6236845301,0,0,0,0,0,0,0,0,0,0,0,0,0,0]
["CAISO_Biomass_for_Other","CAISO","CAISO",2021,158818.799999999,0,0,0,0,102491.999999999,3710757.40535245,0,0,0,0,0,0,0,0,0,0,0,0,0,0]
["CAISO_Biomass_for_Other","CAISO","CAISO",2022,158818.799999999,0,0,0,0,102491.999999999,3647276.0168408598,0,0,0,0,0,0,0,0,0,0,0,0,0,0]
["CAISO_Biomass_for_Other","CAISO","CAISO",2023,158818.799999999,0,0,0,0,102491.999999999,3615285.2507009599,0,0,0,0,0,0,0,0,0,0,0,0,0,0]
["CAISO_Biomass_for_Other","CAISO","CAISO",2024,158818.799999999,0,0,0,0,102491.999999999,3667614.2346496298,0,0,0,0,0,0,0,0,0,0,0,0,0,0]
["CAISO_Biomass_for_Other","CAISO","CAISO",2026,158818.799999999,0,0,0,0,102491.999999999,4773113.56195499,0,0,0,0,0,0,0,0,0,0,0,0,0,0]
["CAISO_Biomass_for_Other","CAISO","CAISO",2030,158818.799999999,0,0,0,0,102491.999999999,7792248.0015900098,0,0,0,0,0,0,0,0,0,0,0,0,0,0]
["CAISO_Biomass_for_Other","CAISO","CAISO",2045,158818.799999999,0,0,0,0,102491.999999999,13356661.604580199,0,0,0,0,0,0,0,0,0,0,0,0,0,0]
["CAISO_CCGT1","CAISO","CAISO",2020,14440984.330279499,2145138854.0147901,0,0,0,56639178.033024102,2173643415.5883198,1304077.7561281901,0,1304077.7561281901,0,84367.815672393597,0,1109799.7434610401,8215428.51648858,369350.92829245201,-2525271.1110275402,2410194.3881019698,17530405.166363601,467325.23601770302,-3185006.0565030398]
["CAISO_CCGT1","CAISO","CAISO",2021,14730416.586717101,2206551965.1717601,0,0,0,57774400.907577999,2218141743.6125498,1337269.0262073199,0,1337269.0262073199,0,31869.301868502,0,1108923.9643042299,8429621.9002110492,178877.60054689599,-1231732.7465301999,2194193.1394291501,16431428.981653601,307958.589707418,-2083658.05165869]
["CAISO_CCGT1","CAISO","CAISO",2022,13590065.858973401,2059187219.09674,0,0,0,53301827.2660468,2070054173.0953701,1451410.99902773,0,1451410.99902773,0,34008.207223936202,0,1177218.51989725,9124599.0804792996,260551.137256899,-1746102.78241223,1991958.2790341501,15124813.0637816,370677.80105975899,-2482674.6034069299]
["CAISO_CCGT1","CAISO","CAISO",2023,13145145.770605501,2015136555.3766699,104644.02341555301,104644.02341555301,0,51556792.011302903,2026007359.66786,1383398.7039286101,0,1383398.7039286101,0,13831.5855346425,0,1329992.70232584,10366624.3071185,297830.01730402297,-1990991.1520901199,1828950.3975742999,14257924.1846288,471171.271650162,-3156734.5174826598]
["CAISO_CCGT1","CAISO","CAISO",2024,13763373.0410675,2132879169.77351,312323.46254777501,312323.49635696999,0,53981544.185634702,2153948237.4031601,1208114.92375811,0,1208114.92375811,0,24083.533994734698,0,1228143.36237795,9811053.1396847591,268904.06623255397,-1854618.5843269001,1826043.95964637,14619570.2467338,461419.20384825999,-3094376.5284668598]
["CAISO_CCGT1","CAISO","CAISO",2026,15904260.582621099,2518595624.1742802,514705.73389273701,514705.824346332,0,62378344.038579702,3229723356.9011598,1160559.15877385,0,1160559.15877385,0,37.954680473989399,0,1564846.1647633601,16547961.9559441,224544.851748065,-1971800.5372085001,1184160.2755457801,12465175.423464499,468780.543814809,-4192737.7230704702]
["CAISO_CCGT1","CAISO","CAISO",2030,12371062.866634101,2062901200.50264,11875538.316493001,11875538.254736301,0,48520741.3857743,4520508551.4052401,888819.97654066095,48889.8636016292,888819.97654066095,0,271716.023681739,0,774631.71368505002,15058535.2393234,232143.70866652101,-3459286.3087932202,885325.65974816505,16674185.977592001,337195.63626250398,-4580858.6279420499]
["CAISO_CCGT1","CAISO","CAISO",2045,7437656.6141532604,1612685786.8482399,3108668.5569023201,3108668.5569023201,0,29171344.853163399,8143281765.3470097,587444.17389051802,0,587444.17389051802,0,0,0,717182.70436519303,40660522.512422599,105810.07839795,-5027319.5013371399,314032.99568168097,17763852.7947051,56730.154899655397,-2718534.3780136998]
["CAISO_CCGT2","CAISO","CAISO",2020,37162.493872011699,5025534.4674017699,899209.53238612704,899209.53238612704,0,90170.627374891701,5947309.4968910199,5018.7513438143496,319995.585681603,5018.7513438143496,0,10351.0194841753,659981.00231102202,0,0,8231.4650190085904,-66064.756954168901,0,0,0,0]
["CAISO_CCGT2","CAISO","CAISO",2021,0,0,0,0,0,0,0,0,0,0,0,0,0,0,0,0,0,0,0,0,0]
["CAISO_CCGT2","CAISO","CAISO",2022,0,0,0,0,0,0,0,0,0,0,0,0,0,0,0,0,0,0,0,0,0]
["CAISO_CCGT2","CAISO","CAISO",2023,0,0,0,0,0,0,0,0,0,0,0,0,0,0,0,0,0,0,0,0,0]
["CAISO_CCGT2","CAISO","CAISO",2024,0,0,0,0,0,0,0,0,0,0,0,0,0,0,0,0,0,0,0,0,0]
["CAISO_CCGT2","CAISO","CAISO",2026,0,0,0,0,0,0,0,0,0,0,0,0,0,0,0,0,0,0,0,0,0]
["CAISO_CCGT2","CAISO","CAISO",2030,0,0,0,0,0,0,0,0,0,0,0,0,0,0,0,0,0,0,0,0,0]
["CAISO_CCGT2","CAISO","CAISO",2045,218463.11707998,36514726.820902899,0,0,0,530078.346238937,175990215.01854399,115.67916524592,0,115.67916524592,0,0,0,27098.210233308499,1885777.5913395099,102.271939423175,-5749.7284343709198,3827.3420592912798,266497.82758845203,0,0]
["CAISO_CHP","CAISO","CAISO",2020,16160544.895908499,439661014.35706103,0,0,0,10881055.3055801,393897316.156205,0,0,0,0,0,0,0,0,0,0,0,0,0,0]
["CAISO_CHP","CAISO","CAISO",2021,16160544.895908499,443866321.52967399,0,0,0,10881055.3055801,394241792.03060699,0,0,0,0,0,0,0,0,0,0,0,0,0,0]
["CAISO_CHP","CAISO","CAISO",2022,16160544.895908499,447532338.261307,0,0,0,10881055.3055801,387841225.74165702,0,0,0,0,0,0,0,0,0,0,0,0,0,0]
["CAISO_CHP","CAISO","CAISO",2023,16160544.895908499,451583527.59587902,0,0,0,10881055.3055801,384526327.427966,0,0,0,0,0,0,0,0,0,0,0,0,0,0]
["CAISO_CHP","CAISO","CAISO",2024,16160544.895908499,456085443.33858401,0,0,0,10881055.3055801,390227803.19130301,0,0,0,0,0,0,0,0,0,0,0,0,0,0]
["CAISO_CHP","CAISO","CAISO",2026,16160544.895908499,466436597.67069101,0,0,0,10881055.3055801,507809181.99422699,0,0,0,0,0,0,0,0,0,0,0,0,0,0]
["CAISO_CHP","CAISO","CAISO",2030,16160544.895908499,488493515.91284102,0,0,0,10881055.3055801,830321725.56678498,0,0,0,0,0,0,0,0,0,0,0,0,0,0]
["CAISO_CHP","CAISO","CAISO",2045,0,0,0,0,0,0,0,0,0,0,0,0,0,0,0,0,0,0,0,0,0]
["CAISO_Coal","CAISO","CAISO",2020,5382516.8516633697,75604999.586701795,0,0,0,2166231.8845076901,83591748.784028903,0,0,0,0,0,0,0,0,0,0,0,0,0,0]
["CAISO_Coal","CAISO","CAISO",2021,3330764.4171207598,47803943.892944701,0,0,0,1340489.3875243701,52878361.045657001,0,0,0,0,0,0,0,0,0,0,0,0,0,0]
["CAISO_Coal","CAISO","CAISO",2022,1774843.7388661699,26071590.420431901,0,0,0,714297.985822635,29133307.500201099,0,0,0,0,0,0,0,0,0,0,0,0,0,0]
["CAISO_Coal","CAISO","CAISO",2023,1728676.95080442,25960925.7650203,0,0,0,695718.01770085003,28610130.6873703,0,0,0,0,0,0,0,0,0,0,0,0,0,0]
["CAISO_Coal","CAISO","CAISO",2024,1728676.95080442,26572554.5256951,0,0,0,695718.01770085003,28937513.987419199,0,0,0,0,0,0,0,0,0,0,0,0,0,0]
["CAISO_Coal","CAISO","CAISO",2026,0,0,0,0,0,0,0,0,0,0,0,0,0,0,0,0,0,0,0,0,0]
["CAISO_Coal","CAISO","CAISO",2030,0,0,0,0,0,0,0,0,0,0,0,0,0,0,0,0,0,0,0,0,0]
["CAISO_Coal","CAISO","CAISO",2045,0,0,0,0,0,0,0,0,0,0,0,0,0,0,0,0,0,0,0,0,0]
["CAISO_Existing_Pumped_Storage","CAISO","CAISO",2020,0,0,0,0,0,654085.94203010504,30953270.7298708,9500985.5541963801,4452968.6009371299,0,0,3823063.5979713099,13992120.0734271,149333.95800388401,2051251.51535877,511578.921290414,-2595245.0980356601,587005.16720469994,6491407.2721120296,907638.74214308301,-4002151.9139186898]
["CAISO_Existing_Pumped_Storage","CAISO","CAISO",2021,0,0,0,0,0,762460.47288656305,33051982.775681999,9252292.0894954503,3530828.8588265898,0,0,4198549.4421430305,9683624.0414989796,286569.24412191001,3899135.8322141999,238928.703779225,-1195828.1155862401,495232.13360278303,3800975.8039688901,502250.59930470301,-1902696.1941101099]
["CAISO_Existing_Pumped_Storage","CAISO","CAISO",2022,0,0,0,0,0,965508.41334459605,40043622.695924498,8899494.7214340195,4642606.6566744,0,0,4380251.1954995096,10355957.7526646,305348.78308929899,3823364.5142623298,278100.22487305698,-1024093.13447642,671390.78762851295,5466252.6900837002,822672.62149062695,-3747296.8318933002]
["CAISO_Existing_Pumped_Storage","CAISO","CAISO",2023,0,0,0,0,0,1168085.18512972,48625839.1099962,8472176.0305629708,2756413.97510661,0,0,4486712.3511775704,11070195.2791159,366760.05705965898,4292555.0170929097,540538.61337371694,-2384742.0414122301,1026277.66314263,9606286.0129330102,834573.15435944998,-3717768.4265922201]
["CAISO_Existing_Pumped_Storage","CAISO","CAISO",2024,0,0,0,0,0,1253194.62205406,52394801.990881599,10683893.810162799,2671433.4503954998,0,0,2261635.4937986899,8720347.4302292205,273643.01452593697,2763099.5670704599,380220.28007051698,-1783139.3725074099,1221490.47475536,11685452.89449,777071.63334528694,-4298442.9319260996]
["CAISO_Existing_Pumped_Storage","CAISO","CAISO",2026,0,0,0,0,0,1373159.04937343,67042817.908250697,9087905.9535790998,145083.530557408,0,0,4225295.0115358299,1699895.23705464,348316.094026184,3991681.0683188601,279482.909257919,-1766610.2996576,758245.40312982805,11063261.576084601,643283.39188935503,-5249657.2905550301]
["CAISO_Existing_Pumped_Storage","CAISO","CAISO",2030,0,0,0,0,0,3204839.5761907902,308648695.74345899,11148976.7679254,0,0,0,1905763.0727579601,1896672.8202646601,568439.94019003597,12653467.728052899,448230.949976189,-5450148.0631297398,1334514.94923384,27992922.124351401,916343.21914204897,-11277406.657510299]
["CAISO_Existing_Pumped_Storage","CAISO","CAISO",2045,0,0,0,0,0,3566851.3395247399,267676283.08394301,10558391.6141879,0,0,0,2754590.43164887,4088896.8220878998,487473.140356093,17272232.031040501,688337.69794666499,776871.82565114903,1269500.45901073,37902121.434932299,359290.54503603,-592374.19106365903]
["CAISO_Geothermal_for_CAISO","CAISO","CAISO",2020,13846231.199999999,0,0,0,0,12702963.6,459474619.37958801,0,0,0,0,0,0,0,0,0,0,0,0,0,0]
["CAISO_Geothermal_for_CAISO","CAISO","CAISO",2021,13846231.199999999,0,0,0,0,12702963.6,459915078.72441399,0,0,0,0,0,0,0,0,0,0,0,0,0,0]
["CAISO_Geothermal_for_CAISO","CAISO","CAISO",2022,13846231.199999999,0,0,0,0,12702963.6,452047130.32317001,0,0,0,0,0,0,0,0,0,0,0,0,0,0]
["CAISO_Geothermal_for_CAISO","CAISO","CAISO",2023,13846231.199999999,0,0,0,0,12702963.6,448082161.95674998,0,0,0,0,0,0,0,0,0,0,0,0,0,0]
["CAISO_Geothermal_for_CAISO","CAISO","CAISO",2024,13846231.199999999,0,0,0,0,12702963.6,454567869.89809901,0,0,0,0,0,0,0,0,0,0,0,0,0,0]
["CAISO_Geothermal_for_CAISO","CAISO","CAISO",2026,13846231.199999999,0,0,0,0,12702963.6,591584590.36979103,0,0,0,0,0,0,0,0,0,0,0,0,0,0]
["CAISO_Geothermal_for_CAISO","CAISO","CAISO",2030,13846231.199999999,0,0,0,0,12702963.6,965779209.36629498,0,0,0,0,0,0,0,0,0,0,0,0,0,0]
["CAISO_Geothermal_for_CAISO","CAISO","CAISO",2045,13846231.199999999,0,0,0,0,12702963.6,1655438338.4117801,0,0,0,0,0,0,0,0,0,0,0,0,0,0]
["CAISO_Geothermal_for_Other","CAISO","CAISO",2020,369234,0,0,0,0,338749.199999996,12252783.258793199,0,0,0,0,0,0,0,0,0,0,0,0,0,0]
["CAISO_Geothermal_for_Other","CAISO","CAISO",2021,369234,0,0,0,0,338749.199999996,12264528.962818701,0,0,0,0,0,0,0,0,0,0,0,0,0,0]
["CAISO_Geothermal_for_Other","CAISO","CAISO",2022,369234,0,0,0,0,338749.199999996,12054714.8351484,0,0,0,0,0,0,0,0,0,0,0,0,0,0]
["CAISO_Geothermal_for_Other","CAISO","CAISO",2023,369234,0,0,0,0,338749.199999996,11948981.251675701,0,0,0,0,0,0,0,0,0,0,0,0,0,0]
["CAISO_Geothermal_for_Other","CAISO","CAISO",2024,369234,0,0,0,0,338749.199999996,12121935.2524701,0,0,0,0,0,0,0,0,0,0,0,0,0,0]
["CAISO_Geothermal_for_Other","CAISO","CAISO",2026,369234,0,0,0,0,338749.199999996,15775752.259897299,0,0,0,0,0,0,0,0,0,0,0,0,0,0]
["CAISO_Geothermal_for_Other","CAISO","CAISO",2030,369234,0,0,0,0,338749.199999996,25754378.651409,0,0,0,0,0,0,0,0,0,0,0,0,0,0]
["CAISO_Geothermal_for_Other","CAISO","CAISO",2045,369234,0,0,0,0,338749.199999996,44145478.995651104,0,0,0,0,0,0,0,0,0,0,0,0,0,0]
["CAISO_Hydro","CAISO","CAISO",2020,0,0,0,0,0,17905547.080526501,682363486.34682298,2163082.7073360598,754797.58411232603,0,0,2609476.4539705901,113205.587679144,644260.35293333395,6002105.0369525999,900908.49762170995,-6163328.4035558105,7061233.3072383702,54299573.110105902,2983367.57666275,-20716341.274528801]
["CAISO_Hydro","CAISO","CAISO",2021,0,0,0,0,0,17704043.076751899,670738834.57584,1976566.4539636001,26776.9478166021,0,0,2379845.5387559799,35164.2016431023,469205.65524214902,3862068.3726866902,866845.00422585197,-6103899.1379165901,7853937.9596134704,63157237.008164801,2627570.1684531001,-18680087.746681899]
["CAISO_Hydro","CAISO","CAISO",2022,0,0,0,0,0,17640053.945241202,653062918.90697396,1787169.54974421,1078.24902845303,0,0,2240558.41898984,256748.104736571,463688.16606951499,3984383.0994166601,934049.96619816194,-6391107.1556259599,8252125.4378081597,67714905.683339402,2633089.23715644,-18647498.364702199]
["CAISO_Hydro","CAISO","CAISO",2023,0,0,0,0,0,17564061.6633581,645897566.24073005,1727683.2324890799,119963.20719669,0,0,2052221.4690610501,65001.816153421198,431901.51640671497,4021296.1551743401,955786.37812139804,-6644655.4286564598,8607728.1948105991,72405782.010468394,2555203.9663402801,-18138275.794777099]
["CAISO_Hydro","CAISO","CAISO",2024,0,0,0,0,0,17514747.719701,652109060.86593902,3099945.4460215801,0,0,0,519843.13070053799,108715.972955164,471716.75201287598,4414978.48261052,904505.30870086397,-6441608.9886272699,8777344.5082044192,75629697.747195303,2569349.7366867098,-18812513.608801302]
["CAISO_Hydro","CAISO","CAISO",2026,0,0,0,0,0,17599655.4194187,834966882.33617198,1654619.0992552999,194733.685531247,0,0,2104226.6633827202,99243.096680720002,564727.60836816498,6407574.5544378702,1086005.79749455,-10534838.0898725,8460365.9739669096,94125447.225087002,2588426.2268261602,-25287954.7201306]
["CAISO_Hydro","CAISO","CAISO",2030,0,0,0,0,0,18342891.436670899,1469343302.8781099,4425970.8238391401,441515.28450557601,0,0,2034865.1720809599,213768.95233784401,291705.63406477199,6024028.4125144295,1249909.6663174401,-21381121.1505045,5285629.7233849699,116164915.97207899,2700715.7036886099,-47880187.659036197]
["CAISO_Hydro","CAISO","CAISO",2045,0,0,0,0,0,18713820.497820001,2240668436.4142399,1973749.7404272,0,0,0,5756478.8726407401,2194215.0263217599,1225249.8726252599,39598837.895655602,1633263.12457196,-51491047.665490098,2711762.7141540502,107214902.536925,2531689.9795762901,-121301487.228826]
["CAISO_New_Flow_Battery","CAISO","CAISO",2020,0,0,0,0,0,0,0,0,0,0,0,0,0,0,0,0,0,0,0,0,0]
["CAISO_New_Flow_Battery","CAISO","CAISO",2021,0,0,0,0,0,0,0,0,0,0,0,0,0,0,0,0,0,0,0,0,0]
["CAISO_New_Flow_Battery","CAISO","CAISO",2022,0,0,0,0,0,0,0,0,0,0,0,0,0,0,0,0,0,0,0,0,0]
["CAISO_New_Flow_Battery","CAISO","CAISO",2023,0,0,0,0,0,0,0,0,0,0,0,0,0,0,0,0,0,0,0,0,0]
["CAISO_New_Flow_Battery","CAISO","CAISO",2024,0,0,0,0,0,0,0,0,0,0,0,0,0,0,0,0,0,0,0,0,0]
["CAISO_New_Flow_Battery","CAISO","CAISO",2026,0,0,0,0,0,0,0,0,0,0,0,0,0,0,0,0,0,0,0,0,0]
["CAISO_New_Flow_Battery","CAISO","CAISO",2030,0,0,0,0,0,0,0,0,0,0,0,0,0,0,0,0,0,0,0,0,0]
["CAISO_New_Flow_Battery","CAISO","CAISO",2045,0,0,0,0,0,0,0,0,0,0,0,0,0,0,0,0,0,0,0,0,0]
["CAISO_New_Flow_Battery_2","CAISO","CAISO",2020,0,0,0,0,0,0,0,0,0,0,0,0,0,0,0,0,0,0,0,0,0]
["CAISO_New_Flow_Battery_2","CAISO","CAISO",2021,0,0,0,0,0,0,0,0,0,0,0,0,0,0,0,0,0,0,0,0,0]
["CAISO_New_Flow_Battery_2","CAISO","CAISO",2022,0,0,0,0,0,0,0,0,0,0,0,0,0,0,0,0,0,0,0,0,0]
["CAISO_New_Flow_Battery_2","CAISO","CAISO",2023,0,0,0,0,0,0,0,0,0,0,0,0,0,0,0,0,0,0,0,0,0]
["CAISO_New_Flow_Battery_2","CAISO","CAISO",2024,0,0,0,0,0,0,0,0,0,0,0,0,0,0,0,0,0,0,0,0,0]
["CAISO_New_Flow_Battery_2","CAISO","CAISO",2026,0,0,0,0,0,0,0,0,0,0,0,0,0,0,0,0,0,0,0,0,0]
["CAISO_New_Flow_Battery_2","CAISO","CAISO",2030,0,0,0,0,0,0,0,0,0,0,0,0,0,0,0,0,0,0,0,0,0]
["CAISO_New_Flow_Battery_2","CAISO","CAISO",2045,0,0,0,0,0,0,0,0,0,0,0,0,0,0,0,0,0,0,0,0,0]
["CAISO_New_Flow_Battery_3","CAISO","CAISO",2020,0,0,0,0,0,0,0,0,0,0,0,0,0,0,0,0,0,0,0,0,0]
["CAISO_New_Flow_Battery_3","CAISO","CAISO",2021,0,0,0,0,0,0,0,0,0,0,0,0,0,0,0,0,0,0,0,0,0]
["CAISO_New_Flow_Battery_3","CAISO","CAISO",2022,0,0,0,0,0,0,0,0,0,0,0,0,0,0,0,0,0,0,0,0,0]
["CAISO_New_Flow_Battery_3","CAISO","CAISO",2023,0,0,0,0,0,0,0,0,0,0,0,0,0,0,0,0,0,0,0,0,0]
["CAISO_New_Flow_Battery_3","CAISO","CAISO",2024,0,0,0,0,0,0,0,0,0,0,0,0,0,0,0,0,0,0,0,0,0]
["CAISO_New_Flow_Battery_3","CAISO","CAISO",2026,0,0,0,0,0,0,0,0,0,0,0,0,0,0,0,0,0,0,0,0,0]
["CAISO_New_Flow_Battery_3","CAISO","CAISO",2030,0,0,0,0,0,0,0,0,0,0,0,0,0,0,0,0,0,0,0,0,0]
["CAISO_New_Flow_Battery_3","CAISO","CAISO",2045,0,0,0,0,0,0,0,0,0,0,0,0,0,0,0,0,0,0,0,0,0]
["CAISO_New_Flow_Battery_4","CAISO","CAISO",2020,0,0,0,0,0,0,0,0,0,0,0,0,0,0,0,0,0,0,0,0,0]
["CAISO_New_Flow_Battery_4","CAISO","CAISO",2021,0,0,0,0,0,0,0,0,0,0,0,0,0,0,0,0,0,0,0,0,0]
["CAISO_New_Flow_Battery_4","CAISO","CAISO",2022,0,0,0,0,0,0,0,0,0,0,0,0,0,0,0,0,0,0,0,0,0]
["CAISO_New_Flow_Battery_4","CAISO","CAISO",2023,0,0,0,0,0,0,0,0,0,0,0,0,0,0,0,0,0,0,0,0,0]
["CAISO_New_Flow_Battery_4","CAISO","CAISO",2024,0,0,0,0,0,0,0,0,0,0,0,0,0,0,0,0,0,0,0,0,0]
["CAISO_New_Flow_Battery_4","CAISO","CAISO",2026,0,0,0,0,0,0,0,0,0,0,0,0,0,0,0,0,0,0,0,0,0]
["CAISO_New_Flow_Battery_4","CAISO","CAISO",2030,0,0,0,0,0,0,0,0,0,0,0,0,0,0,0,0,0,0,0,0,0]
["CAISO_New_Flow_Battery_4","CAISO","CAISO",2045,0,0,0,0,0,0,0,0,0,0,0,0,0,0,0,0,0,0,0,0,0]
["CAISO_New_Flow_Battery_5","CAISO","CAISO",2020,0,0,0,0,0,0,0,0,0,0,0,0,0,0,0,0,0,0,0,0,0]
["CAISO_New_Flow_Battery_5","CAISO","CAISO",2021,0,0,0,0,0,0,0,0,0,0,0,0,0,0,0,0,0,0,0,0,0]
["CAISO_New_Flow_Battery_5","CAISO","CAISO",2022,0,0,0,0,0,0,0,0,0,0,0,0,0,0,0,0,0,0,0,0,0]
["CAISO_New_Flow_Battery_5","CAISO","CAISO",2023,0,0,0,0,0,0,0,0,0,0,0,0,0,0,0,0,0,0,0,0,0]
["CAISO_New_Flow_Battery_5","CAISO","CAISO",2024,0,0,0,0,0,0,0,0,0,0,0,0,0,0,0,0,0,0,0,0,0]
["CAISO_New_Flow_Battery_5","CAISO","CAISO",2026,0,0,0,0,0,0,0,0,0,0,0,0,0,0,0,0,0,0,0,0,0]
["CAISO_New_Flow_Battery_5","CAISO","CAISO",2030,0,0,0,0,0,0,0,0,0,0,0,0,0,0,0,0,0,0,0,0,0]
["CAISO_New_Flow_Battery_5","CAISO","CAISO",2045,0,0,0,0,0,0,0,0,0,0,0,0,0,0,0,0,0,0,0,0,0]
["CAISO_New_Li_Battery","CAISO","CAISO",2020,0,0,0,0,0,2293364.5264856601,125512131.999043,24113303.634445101,6466160.5481371097,24113303.634445101,39369.0764737512,869914.46089253505,4843751.35503639,718099.68962183699,6863242.5526217604,942082.38509567303,-4920535.3618024802,3968217.8528686198,44597498.684049897,7959902.9217690397,-47232566.796583503]
["CAISO_New_Li_Battery","CAISO","CAISO",2021,0,0,0,0,0,5265744.2835517405,262478738.123124,46012647.997630902,5760345.1651285402,46012647.997630902,44927.931427887503,927094.14226198499,5446075.4885329204,990582.92280058202,8183106.0853551496,1695182.4810105399,-9728454.5092502404,4996089.2306482801,54043223.244029097,10262766.022992801,-62144138.2395491]
["CAISO_New_Li_Battery","CAISO","CAISO",2022,0,0,0,0,0,5396843.7107824404,267501583.672429,45119865.692805298,5239342.5279085096,45119865.692805298,23540.169938561299,1037050.71245485,5997833.6604804201,1142818.2852255399,9065132.20259583,1754814.73468038,-9342252.6833356097,5825849.2250366304,58510468.021357402,10478255.712555399,-60194101.756203197]
["CAISO_New_Li_Battery","CAISO","CAISO",2023,0,0,0,0,0,6131534.0644232295,302069336.40225899,47838556.593050599,7232839.2494189804,47838556.593050599,16368.497981238501,1283329.3840804701,6926602.7950528702,1194207.8980400199,9132501.4761399608,1681047.2448078601,-7770903.1064303201,6422586.8578807004,59716149.6897735,10893986.4042463,-60526451.050872803]
["CAISO_New_Li_Battery","CAISO","CAISO",2024,0,0,0,0,0,7670189.2468014304,372876842.16781002,56088946.182659902,3922204.8333619898,56088946.182659902,10225.314845307499,890777.33209952305,5720258.8401736198,838666.199472924,6420409.4751776,1540707.3132046801,-7477057.83820563,6777745.1303847497,58279317.102564201,11477791.597376799,-64811351.907848902]
["CAISO_New_Li_Battery","CAISO","CAISO",2026,0,0,0,0,0,9172656.6898001004,519161794.40751803,60009697.413195297,2247100.7551836399,60009697.413195297,12878.2611489337,979471.93132588302,2699046.5924323099,1069807.51524989,8701406.9333311506,2159509.7423923099,-15206444.093355,4341484.4701099601,42006319.586873896,8151044.0941038299,-61676630.408804096]
["CAISO_New_Li_Battery","CAISO","CAISO",2030,0,0,0,0,0,10785238.0269513,980515106.67542398,60251380.255913399,584140.95884431095,60251380.255913399,0,1241493.6471559401,675423.55795835704,2094243.46493021,23591351.552039001,1498311.6064879401,-12125733.390282599,6618541.38299294,111911067.009285,8260047.6173884096,-79762579.480564103]
["CAISO_New_Li_Battery","CAISO","CAISO",2045,0,0,0,0,0,21813383.4512031,2196266295.45895,70328701.270669997,0,70328701.270669997,0,2060692.21394459,0,4251286.0897408603,73160650.141511798,3040014.1686723898,-60363403.125711598,6791991.8693657797,195119766.24102601,7190278.4476188999,-208027346.69332999]
["CAISO_New_Li_Battery_2","CAISO","CAISO",2020,0,0,0,0,0,0,0,0,0,0,0,0,0,0,0,0,0,0,0,0,0]
["CAISO_New_Li_Battery_2","CAISO","CAISO",2021,0,0,0,0,0,0,0,0,0,0,0,0,0,0,0,0,0,0,0,0,0]
["CAISO_New_Li_Battery_2","CAISO","CAISO",2022,0,0,0,0,0,0,0,0,0,0,0,0,0,0,0,0,0,0,0,0,0]
["CAISO_New_Li_Battery_2","CAISO","CAISO",2023,0,0,0,0,0,0,0,0,0,0,0,0,0,0,0,0,0,0,0,0,0]
["CAISO_New_Li_Battery_2","CAISO","CAISO",2024,0,0,0,0,0,763063.87701336795,36703081.1881833,2618524.36049665,1783276.7856224801,2618524.36049665,5163.5531029079202,4265833.0168389203,824106.10243199696,744483.64785440394,6058858.48595306,628546.10807479196,-3249604.7461497099,563775.56700317701,6267198.9431961598,747241.06277887197,-4120342.6241223798]
["CAISO_New_Li_Battery_2","CAISO","CAISO",2026,0,0,0,0,0,4382619.0024608197,249209221.209723,29255561.059144899,1571656.9473486301,29255561.059144899,22142.8270073268,476234.71641990403,883128.05757848697,383866.63077719498,3695137.2163605401,305863.38846931001,-1926068.66858135,5593775.2716712002,52724997.619833,5825070.6633240702,-43907639.986602798]
["CAISO_New_Li_Battery_2","CAISO","CAISO",2030,0,0,0,0,0,6681237.3991610603,637093221.27416003,39210808.936699398,625747.18722751504,39210808.936699398,0,752575.79726264498,9576347.0416455399,516650.14413907402,9273767.6481513306,897688.78373989498,-5852042.3981165104,9454667.8052820396,132826983.946099,6653989.9388314998,-61979193.330483802]
["CAISO_New_Li_Battery_2","CAISO","CAISO",2045,0,0,0,0,0,14234756.984854501,1559913093.8076899,48161336.673517004,0,48161336.673517004,0,577063.91135886905,0,734162.24679753196,25820184.981344,794377.08256017696,-8492746.1745719705,9869627.4344001599,154144890.63956401,4939718.1497481205,-144235043.760097]
["CAISO_New_Li_Battery_3","CAISO","CAISO",2020,0,0,0,0,0,0,0,0,0,0,0,0,0,0,0,0,0,0,0,0,0]
["CAISO_New_Li_Battery_3","CAISO","CAISO",2021,0,0,0,0,0,0,0,0,0,0,0,0,0,0,0,0,0,0,0,0,0]
["CAISO_New_Li_Battery_3","CAISO","CAISO",2022,0,0,0,0,0,0,0,0,0,0,0,0,0,0,0,0,0,0,0,0,0]
["CAISO_New_Li_Battery_3","CAISO","CAISO",2023,0,0,0,0,0,0,0,0,0,0,0,0,0,0,0,0,0,0,0,0,0]
["CAISO_New_Li_Battery_3","CAISO","CAISO",2024,0,0,0,0,0,0,0,0,0,0,0,0,0,0,0,0,0,0,0,0,0]
["CAISO_New_Li_Battery_3","CAISO","CAISO",2026,0,0,0,0,0,0,0,0,0,0,0,0,0,0,0,0,0,0,0,0,0]
["CAISO_New_Li_Battery_3","CAISO","CAISO",2030,0,0,0,0,0,387592.19587874197,19176950.868039101,4612550.4906106098,4729984.9258852703,4612550.4906106098,0,1622518.7352074799,4627747.5708201202,483267.754269525,7628966.1487330999,694498.63700413296,-3227044.9500767598,264763.08374919201,4524088.9372196104,198621.97902544099,-1623723.30711724]
["CAISO_New_Li_Battery_3","CAISO","CAISO",2045,0,0,0,0,0,14753285.5502676,1794493669.5483201,65760256.789840803,0,65760256.789840803,0,615172.69663797598,0,667970.78728448995,13656595.0444929,1935966.0661562099,-27504747.1508785,22205896.613641199,628787383.11657798,7135891.4357184796,-214174863.126333]
["CAISO_New_Li_Battery_4","CAISO","CAISO",2020,0,0,0,0,0,0,0,0,0,0,0,0,0,0,0,0,0,0,0,0,0]
["CAISO_New_Li_Battery_4","CAISO","CAISO",2021,0,0,0,0,0,0,0,0,0,0,0,0,0,0,0,0,0,0,0,0,0]
["CAISO_New_Li_Battery_4","CAISO","CAISO",2022,0,0,0,0,0,0,0,0,0,0,0,0,0,0,0,0,0,0,0,0,0]
["CAISO_New_Li_Battery_4","CAISO","CAISO",2023,0,0,0,0,0,0,0,0,0,0,0,0,0,0,0,0,0,0,0,0,0]
["CAISO_New_Li_Battery_4","CAISO","CAISO",2024,0,0,0,0,0,0,0,0,0,0,0,0,0,0,0,0,0,0,0,0,0]
["CAISO_New_Li_Battery_4","CAISO","CAISO",2026,0,0,0,0,0,0,0,0,0,0,0,0,0,0,0,0,0,0,0,0,0]
["CAISO_New_Li_Battery_4","CAISO","CAISO",2030,0,0,0,0,0,0,0,0,0,0,0,0,0,0,0,0,0,0,0,0,0]
["CAISO_New_Li_Battery_4","CAISO","CAISO",2045,0,0,0,0,0,15965786.245067401,2125653830.3736899,0,0,0,0,0,0,0,0,0,0,0,0,0,0]
["CAISO_New_Li_Battery_5","CAISO","CAISO",2020,0,0,0,0,0,0,0,0,0,0,0,0,0,0,0,0,0,0,0,0,0]
["CAISO_New_Li_Battery_5","CAISO","CAISO",2021,0,0,0,0,0,0,0,0,0,0,0,0,0,0,0,0,0,0,0,0,0]
["CAISO_New_Li_Battery_5","CAISO","CAISO",2022,0,0,0,0,0,0,0,0,0,0,0,0,0,0,0,0,0,0,0,0,0]
["CAISO_New_Li_Battery_5","CAISO","CAISO",2023,0,0,0,0,0,0,0,0,0,0,0,0,0,0,0,0,0,0,0,0,0]
["CAISO_New_Li_Battery_5","CAISO","CAISO",2024,0,0,0,0,0,0,0,0,0,0,0,0,0,0,0,0,0,0,0,0,0]
["CAISO_New_Li_Battery_5","CAISO","CAISO",2026,0,0,0,0,0,0,0,0,0,0,0,0,0,0,0,0,0,0,0,0,0]
["CAISO_New_Li_Battery_5","CAISO","CAISO",2030,0,0,0,0,0,0,0,0,0,0,0,0,0,0,0,0,0,0,0,0,0]
["CAISO_New_Li_Battery_5","CAISO","CAISO",2045,0,0,0,0,0,69763113.659790695,10398929569.4846,0,0,0,0,0,0,0,0,0,0,0,0,0,0]
["CAISO_New_Li_Battery_6","CAISO","CAISO",2020,0,0,0,0,0,0,0,0,0,0,0,0,0,0,0,0,0,0,0,0,0]
["CAISO_New_Li_Battery_6","CAISO","CAISO",2021,0,0,0,0,0,0,0,0,0,0,0,0,0,0,0,0,0,0,0,0,0]
["CAISO_New_Li_Battery_6","CAISO","CAISO",2022,0,0,0,0,0,0,0,0,0,0,0,0,0,0,0,0,0,0,0,0,0]
["CAISO_New_Li_Battery_6","CAISO","CAISO",2023,0,0,0,0,0,0,0,0,0,0,0,0,0,0,0,0,0,0,0,0,0]
["CAISO_New_Li_Battery_6","CAISO","CAISO",2024,0,0,0,0,0,0,0,0,0,0,0,0,0,0,0,0,0,0,0,0,0]
["CAISO_New_Li_Battery_6","CAISO","CAISO",2026,0,0,0,0,0,0,0,0,0,0,0,0,0,0,0,0,0,0,0,0,0]
["CAISO_New_Li_Battery_6","CAISO","CAISO",2030,0,0,0,0,0,0,0,0,0,0,0,0,0,0,0,0,0,0,0,0,0]
["CAISO_New_Li_Battery_6","CAISO","CAISO",2045,0,0,0,0,0,0,0,0,0,0,0,0,0,0,0,0,0,0,0,0,0]
["CAISO_New_Pumped_Storage","CAISO","CAISO",2020,0,0,0,0,0,0,0,0,0,0,0,0,0,0,0,0,0,0,0,0,0]
["CAISO_New_Pumped_Storage","CAISO","CAISO",2021,0,0,0,0,0,0,0,0,0,0,0,0,0,0,0,0,0,0,0,0,0]
["CAISO_New_Pumped_Storage","CAISO","CAISO",2022,0,0,0,0,0,0,0,0,0,0,0,0,0,0,0,0,0,0,0,0,0]
["CAISO_New_Pumped_Storage","CAISO","CAISO",2023,0,0,0,0,0,0,0,0,0,0,0,0,0,0,0,0,0,0,0,0,0]
["CAISO_New_Pumped_Storage","CAISO","CAISO",2024,0,0,0,0,0,0,0,0,0,0,0,0,0,0,0,0,0,0,0,0,0]
["CAISO_New_Pumped_Storage","CAISO","CAISO",2026,0,0,0,0,0,1613635.22956091,76668723.332304299,15872386.022422601,831552.36570772703,0,0,400661.61319160799,2596611.3862078902,92673.594985396005,1265596.45960485,162843.956832347,-1223707.2645671,1538970.33949703,21180028.0902416,1228074.6798956799,-9583003.6313396003]
["CAISO_New_Pumped_Storage","CAISO","CAISO",2030,0,0,0,0,0,3737860.2917150101,353269095.59334999,14884935.283317201,3371590.8605580698,0,0,723547.31925776496,1699981.0349629901,230459.09728147701,5088421.7259311797,188200.177090123,-535961.16137397999,2894960.9286062201,64063343.600001097,1392296.71619992,-14701029.8128716]
["CAISO_New_Pumped_Storage","CAISO","CAISO",2045,0,0,0,0,0,3884378.2377590998,331534623.72330099,15881137.7060891,0,0,0,526412.93017556996,6048545.5718373396,356217.54973842797,8272119.8930636495,726363.99265201902,152895.94492647899,1827709.9800139801,53626394.136378303,575720.39471180295,-1275988.9933567001]
["CAISO_Nuclear","CAISO","CAISO",2020,42502361.092402697,187818162.537218,0,0,0,23611122.76847,854811919.69330597,0,0,0,0,0,0,0,0,0,0,0,0,0,0]
["CAISO_Nuclear","CAISO","CAISO",2021,42502361.092402697,187818162.537218,0,0,0,23611122.76847,856009238.15589702,0,0,0,0,0,0,0,0,0,0,0,0,0,0]
["CAISO_Nuclear","CAISO","CAISO",2022,42502361.092402697,187818162.537218,0,0,0,23611122.76847,842854035.19726896,0,0,0,0,0,0,0,0,0,0,0,0,0,0]
["CAISO_Nuclear","CAISO","CAISO",2023,42502361.092402697,187818162.537218,0,0,0,23611122.76847,835507512.47057998,0,0,0,0,0,0,0,0,0,0,0,0,0,0]
["CAISO_Nuclear","CAISO","CAISO",2024,25848976.309249699,114226757.662834,0,0,0,14359745.874521,515609119.548989,0,0,0,0,0,0,0,0,0,0,0,0,0,0]
["CAISO_Nuclear","CAISO","CAISO",2026,9195561.1520517599,40635265.1884486,0,0,0,5108368.9805718604,238888973.988879,0,0,0,0,0,0,0,0,0,0,0,0,0,0]
["CAISO_Nuclear","CAISO","CAISO",2030,9195561.1520517599,40635265.1884486,0,0,0,5108368.9805718604,390771166.24213398,0,0,0,0,0,0,0,0,0,0,0,0,0,0]
["CAISO_Nuclear","CAISO","CAISO",2045,9195561.1520517599,40635265.1884486,0,0,0,5108368.9805718604,686298995.22145998,0,0,0,0,0,0,0,0,0,0,0,0,0,0]
["CAISO_Peaker1","CAISO","CAISO",2020,1079117.8566682199,55234395.9466931,7884775.5336385099,7884775.5754018398,0,806799.75374865101,53285925.647146799,106516.978260713,3257434.6018131999,106516.978260713,9319.9333783442999,0,0,0,0,0,0,505422.54202458099,20857413.694125,39679.411465279903,-317659.61130462802]
["CAISO_Peaker1","CAISO","CAISO",2021,543319.58011806896,29484151.6794005,4520798.7387971198,4520798.7387971198,0,406211.95410829701,27013759.445960298,66173.687622294194,2095558.82152634,66173.687622294194,6522.7447823191897,0,0,0,0,0,0,258782.79746380501,11886333.320996,925.12280971943699,-2701.35860438075]
["CAISO_Peaker1","CAISO","CAISO",2022,624732.84193958202,34068018.276514001,5282603.4217725098,5282603.3879633099,0,467080.57001723401,30425975.615270998,76263.286170395993,2385704.0044446299,76263.286170395993,5238.3327772885395,0,0,0,0,0,0,281982.253475198,14476925.0935317,0,0]
["CAISO_Peaker1","CAISO","CAISO",2023,746740.39664317097,40860384.363891602,6270276.9962841896,6270276.9499962302,0,558299.03061267105,36876323.952148996,90470.775880747897,2897259.8432448301,90470.775880747897,1496.2755249327499,0,0,0,0,0,0,348385.40424497199,17604993.1592937,0,0]
["CAISO_Peaker1","CAISO","CAISO",2024,606529.83622140298,33495721.3925808,5114837.4071655301,5114837.4071655301,0,453470.61743365601,30047011.084542401,67825.306687472403,2169598.9347386099,67825.306687472403,2627.7890473638399,0,0,0,0,0,0,292670.47680274898,14441583.097801499,0,0]
["CAISO_Peaker1","CAISO","CAISO",2026,87093.842880928802,5021031.3228868702,750744.845508456,750744.845508456,0,65115.319884817101,4674568.77138092,10631.7631260993,460610.349604505,10631.7631260993,109.274430918253,0,0,0,0,0,0,55026.9664556762,2782609.7964739702,0,0]
["CAISO_Peaker1","CAISO","CAISO",2030,80385.393864861806,4773461.50033182,692919.02665274101,692919.02665274101,0,60100.189008587302,8152942.0287412005,9813.0417073632598,429635.374851047,9813.0417073632598,0,0,0,0,0,0,0,28478.243913244602,2818727.6108890101,0,0]
["CAISO_Peaker1","CAISO","CAISO",2045,0,0,0,0,0,0,0,0,0,0,0,0,0,0,0,0,0,0,0,0,0]
["CAISO_Peaker2","CAISO","CAISO",2020,0,0,0,0,0,0,0,0,0,0,0,0,0,0,0,0,0,0,0,0,0]
["CAISO_Peaker2","CAISO","CAISO",2021,0,0,0,0,0,0,0,0,0,0,0,0,0,0,0,0,0,0,0,0,0]
["CAISO_Peaker2","CAISO","CAISO",2022,0,0,0,0,0,0,0,0,0,0,0,0,0,0,0,0,0,0,0,0,0]
["CAISO_Peaker2","CAISO","CAISO",2023,0,0,0,0,0,0,0,0,0,0,0,0,0,0,0,0,0,0,0,0,0]
["CAISO_Peaker2","CAISO","CAISO",2024,0,0,0,0,0,0,0,0,0,0,0,0,0,0,0,0,0,0,0,0,0]
["CAISO_Peaker2","CAISO","CAISO",2026,0,0,0,0,0,0,0,0,0,0,0,0,0,0,0,0,0,0,0,0,0]
["CAISO_Peaker2","CAISO","CAISO",2030,0,0,0,0,0,0,0,0,0,0,0,0,0,0,0,0,0,0,0,0,0]
["CAISO_Peaker2","CAISO","CAISO",2045,0,0,0,0,0,0,0,0,0,0,0,0,0,0,0,0,0,0,0,0,0]
["CAISO_Reciprocating_Engine","CAISO","CAISO",2020,36505.017752979598,3311130.6278559901,554792.21616652503,554792.21616652503,0,35299.615739840599,2021076.9231880701,18790.912460012602,389513.46690230299,18790.912460012602,1847.6412978026899,0,0,0,0,0,0,132625.616877744,4552257.6805063104,0,0]
["CAISO_Reciprocating_Engine","CAISO","CAISO",2021,26856.707057885,2354831.4359949301,482850.89556414197,482850.89556414197,0,25969.964403224902,1516051.3403040399,13807.872044981799,294249.81546907203,13807.872044981799,1718.5474519965401,0,0,0,0,0,0,80962.713849255102,3318111.0459864498,0,0]
["CAISO_Reciprocating_Engine","CAISO","CAISO",2022,26227.9037450748,2253024.5769330198,494035.75059401902,494035.75059401902,0,25361.937146172899,1509160.8050530399,13500.7061738046,302193.97870970401,13500.7061738046,1143.58216976577,0,0,0,0,0,0,70384.762693744604,3394622.74525706,0,0]
["CAISO_Reciprocating_Engine","CAISO","CAISO",2023,26937.7016830676,2347327.18943235,495897.86785157898,495897.86785157898,0,26047.754019919499,1565777.55641161,13867.047116164,317464.40542860201,13867.047116164,765.19523676075505,0,0,0,0,0,0,74260.983430319204,3553105.3182766698,0,0]
["CAISO_Reciprocating_Engine","CAISO","CAISO",2024,24071.724631848701,2091249.8575768799,455549.14441894297,455549.14441894297,0,23276.886962703,1412438.57885781,12177.4856355682,274081.18819186598,12177.4856355682,927.21969287612899,0,0,0,0,0,0,63617.225925300401,3121885.4444880802,0,0]
["CAISO_Reciprocating_Engine","CAISO","CAISO",2026,7349.3533613115196,678868.97038879502,170175.57447888699,170175.57447888699,0,7106.6636577568797,534873.69364616997,3783.0662065770298,122903.38202554399,3783.0662065770298,615.13861762648003,0,0,0,0,0,0,19653.1197220137,1322698.14291499,0,0]
["CAISO_Reciprocating_Engine","CAISO","CAISO",2030,13290.9027153645,1340994.86510966,307755.91225838201,307755.91225838201,0,12852.1722857682,1623390.05434974,6841.6283380756804,261521.04778259399,6841.6283380756804,0,0,0,0,0,0,0,42790.872519386001,3237851.0278442502,0,0]
["CAISO_Reciprocating_Engine","CAISO","CAISO",2045,45289.842228239802,3530217.23898149,136526.801621839,136526.801621839,0,43799.476981426997,14645156.694312001,1206.68361723408,0,1206.68361723408,0,0,0,0,0,0,0,32791.329273308402,3976722.15857998,6580.4169115981504,-395180.26153092203]
["CAISO_ST","CAISO","CAISO",2020,0,0,0,0,0,0,0,0,0,0,0,0,0,0,0,0,0,0,0,0,0]
["CAISO_ST","CAISO","CAISO",2021,0,0,0,0,0,0,0,0,0,0,0,0,0,0,0,0,0,0,0,0,0]
["CAISO_ST","CAISO","CAISO",2022,0,0,0,0,0,0,0,0,0,0,0,0,0,0,0,0,0,0,0,0,0]
["CAISO_ST","CAISO","CAISO",2023,0,0,0,0,0,0,0,0,0,0,0,0,0,0,0,0,0,0,0,0,0]
["CAISO_ST","CAISO","CAISO",2024,0,0,0,0,0,0,0,0,0,0,0,0,0,0,0,0,0,0,0,0,0]
["CAISO_ST","CAISO","CAISO",2026,0,0,0,0,0,0,0,0,0,0,0,0,0,0,0,0,0,0,0,0,0]
["CAISO_ST","CAISO","CAISO",2030,0,0,0,0,0,0,0,0,0,0,0,0,0,0,0,0,0,0,0,0,0]
["CAISO_ST","CAISO","CAISO",2045,0,0,0,0,0,0,0,0,0,0,0,0,0,0,0,0,0,0,0,0,0]
["CAISO_Shed_DR_Existing","CAISO","CAISO",2020,0,0,0,0,0,0,0,0,0,0,0,0,0,0,0,0,0,0,0,0,0]
["CAISO_Shed_DR_Existing","CAISO","CAISO",2021,0,0,0,0,0,0,0,0,0,0,0,0,0,0,0,0,0,0,0,0,0]
["CAISO_Shed_DR_Existing","CAISO","CAISO",2022,0,0,0,0,0,0,0,0,0,0,0,0,0,0,0,0,0,0,0,0,0]
["CAISO_Shed_DR_Existing","CAISO","CAISO",2023,0,0,0,0,0,0,0,0,0,0,0,0,0,0,0,0,0,0,0,0,0]
["CAISO_Shed_DR_Existing","CAISO","CAISO",2024,0,0,0,0,0,0,0,0,0,0,0,0,0,0,0,0,0,0,0,0,0]
["CAISO_Shed_DR_Existing","CAISO","CAISO",2026,0,0,0,0,0,0,0,0,0,0,0,0,0,0,0,0,0,0,0,0,0]
["CAISO_Shed_DR_Existing","CAISO","CAISO",2030,0,0,0,0,0,0,0,0,0,0,0,0,0,0,0,0,0,0,0,0,0]
["CAISO_Shed_DR_Existing","CAISO","CAISO",2045,0,0,0,0,0,0,0,0,0,0,0,0,0,0,0,0,0,0,0,0,0]
["CAISO_Shed_DR_Tranche1","CAISO","CAISO",2020,0,0,0,0,0,0,0,0,0,0,0,0,0,0,0,0,0,0,0,0,0]
["CAISO_Shed_DR_Tranche1","CAISO","CAISO",2021,0,0,0,0,0,0,0,0,0,0,0,0,0,0,0,0,0,0,0,0,0]
["CAISO_Shed_DR_Tranche1","CAISO","CAISO",2022,0,0,0,0,0,0,0,0,0,0,0,0,0,0,0,0,0,0,0,0,0]
["CAISO_Shed_DR_Tranche1","CAISO","CAISO",2023,0,0,0,0,0,0,0,0,0,0,0,0,0,0,0,0,0,0,0,0,0]
["CAISO_Shed_DR_Tranche1","CAISO","CAISO",2024,0,0,0,0,0,0,0,0,0,0,0,0,0,0,0,0,0,0,0,0,0]
["CAISO_Shed_DR_Tranche1","CAISO","CAISO",2026,0,0,0,0,0,0,0,0,0,0,0,0,0,0,0,0,0,0,0,0,0]
["CAISO_Shed_DR_Tranche1","CAISO","CAISO",2030,0,0,0,0,0,0,0,0,0,0,0,0,0,0,0,0,0,0,0,0,0]
["CAISO_Shed_DR_Tranche1","CAISO","CAISO",2045,0,0,0,0,0,0,0,0,0,0,0,0,0,0,0,0,0,0,0,0,0]
["CAISO_Shed_DR_Tranche2","CAISO","CAISO",2020,0,0,0,0,0,0,0,0,0,0,0,0,0,0,0,0,0,0,0,0,0]
["CAISO_Shed_DR_Tranche2","CAISO","CAISO",2021,0,0,0,0,0,0,0,0,0,0,0,0,0,0,0,0,0,0,0,0,0]
["CAISO_Shed_DR_Tranche2","CAISO","CAISO",2022,0,0,0,0,0,0,0,0,0,0,0,0,0,0,0,0,0,0,0,0,0]
["CAISO_Shed_DR_Tranche2","CAISO","CAISO",2023,0,0,0,0,0,0,0,0,0,0,0,0,0,0,0,0,0,0,0,0,0]
["CAISO_Shed_DR_Tranche2","CAISO","CAISO",2024,0,0,0,0,0,0,0,0,0,0,0,0,0,0,0,0,0,0,0,0,0]
["CAISO_Shed_DR_Tranche2","CAISO","CAISO",2026,0,0,0,0,0,0,0,0,0,0,0,0,0,0,0,0,0,0,0,0,0]
["CAISO_Shed_DR_Tranche2","CAISO","CAISO",2030,0,0,0,0,0,0,0,0,0,0,0,0,0,0,0,0,0,0,0,0,0]
["CAISO_Shed_DR_Tranche2","CAISO","CAISO",2045,0,0,0,0,0,0,0,0,0,0,0,0,0,0,0,0,0,0,0,0,0]
["CAISO_Shed_DR_Tranche3","CAISO","CAISO",2020,0,0,0,0,0,0,0,0,0,0,0,0,0,0,0,0,0,0,0,0,0]
["CAISO_Shed_DR_Tranche3","CAISO","CAISO",2021,0,0,0,0,0,0,0,0,0,0,0,0,0,0,0,0,0,0,0,0,0]
["CAISO_Shed_DR_Tranche3","CAISO","CAISO",2022,0,0,0,0,0,0,0,0,0,0,0,0,0,0,0,0,0,0,0,0,0]
["CAISO_Shed_DR_Tranche3","CAISO","CAISO",2023,0,0,0,0,0,0,0,0,0,0,0,0,0,0,0,0,0,0,0,0,0]
["CAISO_Shed_DR_Tranche3","CAISO","CAISO",2024,0,0,0,0,0,0,0,0,0,0,0,0,0,0,0,0,0,0,0,0,0]
["CAISO_Shed_DR_Tranche3","CAISO","CAISO",2026,0,0,0,0,0,0,0,0,0,0,0,0,0,0,0,0,0,0,0,0,0]
["CAISO_Shed_DR_Tranche3","CAISO","CAISO",2030,0,0,0,0,0,0,0,0,0,0,0,0,0,0,0,0,0,0,0,0,0]
["CAISO_Shed_DR_Tranche3","CAISO","CAISO",2045,0,0,0,0,0,0,0,0,0,0,0,0,0,0,0,0,0,0,0,0,0]
["CAISO_Shed_DR_Tranche4","CAISO","CAISO",2020,0,0,0,0,0,0,0,0,0,0,0,0,0,0,0,0,0,0,0,0,0]
["CAISO_Shed_DR_Tranche4","CAISO","CAISO",2021,0,0,0,0,0,0,0,0,0,0,0,0,0,0,0,0,0,0,0,0,0]
["CAISO_Shed_DR_Tranche4","CAISO","CAISO",2022,0,0,0,0,0,0,0,0,0,0,0,0,0,0,0,0,0,0,0,0,0]
["CAISO_Shed_DR_Tranche4","CAISO","CAISO",2023,0,0,0,0,0,0,0,0,0,0,0,0,0,0,0,0,0,0,0,0,0]
["CAISO_Shed_DR_Tranche4","CAISO","CAISO",2024,0,0,0,0,0,0,0,0,0,0,0,0,0,0,0,0,0,0,0,0,0]
["CAISO_Shed_DR_Tranche4","CAISO","CAISO",2026,0,0,0,0,0,0,0,0,0,0,0,0,0,0,0,0,0,0,0,0,0]
["CAISO_Shed_DR_Tranche4","CAISO","CAISO",2030,0,0,0,0,0,0,0,0,0,0,0,0,0,0,0,0,0,0,0,0,0]
["CAISO_Shed_DR_Tranche4","CAISO","CAISO",2045,0,0,0,0,0,0,0,0,0,0,0,0,0,0,0,0,0,0,0,0,0]
["CAISO_Shed_DR_Tranche5","CAISO","CAISO",2020,0,0,0,0,0,0,0,0,0,0,0,0,0,0,0,0,0,0,0,0,0]
["CAISO_Shed_DR_Tranche5","CAISO","CAISO",2021,0,0,0,0,0,0,0,0,0,0,0,0,0,0,0,0,0,0,0,0,0]
["CAISO_Shed_DR_Tranche5","CAISO","CAISO",2022,0,0,0,0,0,0,0,0,0,0,0,0,0,0,0,0,0,0,0,0,0]
["CAISO_Shed_DR_Tranche5","CAISO","CAISO",2023,0,0,0,0,0,0,0,0,0,0,0,0,0,0,0,0,0,0,0,0,0]
["CAISO_Shed_DR_Tranche5","CAISO","CAISO",2024,0,0,0,0,0,0,0,0,0,0,0,0,0,0,0,0,0,0,0,0,0]
["CAISO_Shed_DR_Tranche5","CAISO","CAISO",2026,0,0,0,0,0,0,0,0,0,0,0,0,0,0,0,0,0,0,0,0,0]
["CAISO_Shed_DR_Tranche5","CAISO","CAISO",2030,0,0,0,0,0,0,0,0,0,0,0,0,0,0,0,0,0,0,0,0,0]
["CAISO_Shed_DR_Tranche5","CAISO","CAISO",2045,0,0,0,0,0,0,0,0,0,0,0,0,0,0,0,0,0,0,0,0,0]
["CAISO_Shed_DR_Tranche6","CAISO","CAISO",2020,0,0,0,0,0,0,0,0,0,0,0,0,0,0,0,0,0,0,0,0,0]
["CAISO_Shed_DR_Tranche6","CAISO","CAISO",2021,0,0,0,0,0,0,0,0,0,0,0,0,0,0,0,0,0,0,0,0,0]
["CAISO_Shed_DR_Tranche6","CAISO","CAISO",2022,0,0,0,0,0,0,0,0,0,0,0,0,0,0,0,0,0,0,0,0,0]
["CAISO_Shed_DR_Tranche6","CAISO","CAISO",2023,0,0,0,0,0,0,0,0,0,0,0,0,0,0,0,0,0,0,0,0,0]
["CAISO_Shed_DR_Tranche6","CAISO","CAISO",2024,0,0,0,0,0,0,0,0,0,0,0,0,0,0,0,0,0,0,0,0,0]
["CAISO_Shed_DR_Tranche6","CAISO","CAISO",2026,0,0,0,0,0,0,0,0,0,0,0,0,0,0,0,0,0,0,0,0,0]
["CAISO_Shed_DR_Tranche6","CAISO","CAISO",2030,0,0,0,0,0,0,0,0,0,0,0,0,0,0,0,0,0,0,0,0,0]
["CAISO_Shed_DR_Tranche6","CAISO","CAISO",2045,0,0,0,0,0,0,0,0,0,0,0,0,0,0,0,0,0,0,0,0,0]
["CAISO_Shed_DR_Tranche7","CAISO","CAISO",2020,0,0,0,0,0,0,0,0,0,0,0,0,0,0,0,0,0,0,0,0,0]
["CAISO_Shed_DR_Tranche7","CAISO","CAISO",2021,0,0,0,0,0,0,0,0,0,0,0,0,0,0,0,0,0,0,0,0,0]
["CAISO_Shed_DR_Tranche7","CAISO","CAISO",2022,0,0,0,0,0,0,0,0,0,0,0,0,0,0,0,0,0,0,0,0,0]
["CAISO_Shed_DR_Tranche7","CAISO","CAISO",2023,0,0,0,0,0,0,0,0,0,0,0,0,0,0,0,0,0,0,0,0,0]
["CAISO_Shed_DR_Tranche7","CAISO","CAISO",2024,0,0,0,0,0,0,0,0,0,0,0,0,0,0,0,0,0,0,0,0,0]
["CAISO_Shed_DR_Tranche7","CAISO","CAISO",2026,0,0,0,0,0,0,0,0,0,0,0,0,0,0,0,0,0,0,0,0,0]
["CAISO_Shed_DR_Tranche7","CAISO","CAISO",2030,0,0,0,0,0,0,0,0,0,0,0,0,0,0,0,0,0,0,0,0,0]
["CAISO_Shed_DR_Tranche7","CAISO","CAISO",2045,0,0,0,0,0,0,0,0,0,0,0,0,0,0,0,0,0,0,0,0,0]
["CAISO_Shed_DR_Tranche8","CAISO","CAISO",2020,0,0,0,0,0,0,0,0,0,0,0,0,0,0,0,0,0,0,0,0,0]
["CAISO_Shed_DR_Tranche8","CAISO","CAISO",2021,0,0,0,0,0,0,0,0,0,0,0,0,0,0,0,0,0,0,0,0,0]
["CAISO_Shed_DR_Tranche8","CAISO","CAISO",2022,0,0,0,0,0,0,0,0,0,0,0,0,0,0,0,0,0,0,0,0,0]
["CAISO_Shed_DR_Tranche8","CAISO","CAISO",2023,0,0,0,0,0,0,0,0,0,0,0,0,0,0,0,0,0,0,0,0,0]
["CAISO_Shed_DR_Tranche8","CAISO","CAISO",2024,0,0,0,0,0,0,0,0,0,0,0,0,0,0,0,0,0,0,0,0,0]
["CAISO_Shed_DR_Tranche8","CAISO","CAISO",2026,0,0,0,0,0,0,0,0,0,0,0,0,0,0,0,0,0,0,0,0,0]
["CAISO_Shed_DR_Tranche8","CAISO","CAISO",2030,0,0,0,0,0,0,0,0,0,0,0,0,0,0,0,0,0,0,0,0,0]
["CAISO_Shed_DR_Tranche8","CAISO","CAISO",2045,0,0,0,0,0,0,0,0,0,0,0,0,0,0,0,0,0,0,0,0,0]
["CAISO_Small_Hydro_for_CAISO","CAISO","CAISO",2020,0,0,0,0,0,4205763.5999999801,152125259.12540001,0,0,0,0,0,0,0,0,0,0,0,0,0,0]
["CAISO_Small_Hydro_for_CAISO","CAISO","CAISO",2021,0,0,0,0,0,4205763.5999999801,152271088.70801401,0,0,0,0,0,0,0,0,0,0,0,0,0,0]
["CAISO_Small_Hydro_for_CAISO","CAISO","CAISO",2022,0,0,0,0,0,4205763.5999999801,149666127.21756101,0,0,0,0,0,0,0,0,0,0,0,0,0,0]
["CAISO_Small_Hydro_for_CAISO","CAISO","CAISO",2023,0,0,0,0,0,4205763.5999999801,148353384.76188299,0,0,0,0,0,0,0,0,0,0,0,0,0,0]
["CAISO_Small_Hydro_for_CAISO","CAISO","CAISO",2024,0,0,0,0,0,4205763.5999999801,150500706.854498,0,0,0,0,0,0,0,0,0,0,0,0,0,0]
["CAISO_Small_Hydro_for_CAISO","CAISO","CAISO",2026,0,0,0,0,0,4205763.5999999801,195864918.99403501,0,0,0,0,0,0,0,0,0,0,0,0,0,0]
["CAISO_Small_Hydro_for_CAISO","CAISO","CAISO",2030,0,0,0,0,0,4205763.5999999801,319755229.74729699,0,0,0,0,0,0,0,0,0,0,0,0,0,0]
["CAISO_Small_Hydro_for_CAISO","CAISO","CAISO",2045,0,0,0,0,0,4205763.5999999801,548091179.74145496,0,0,0,0,0,0,0,0,0,0,0,0,0,0]
["CAISO_Small_Hydro_for_Other","CAISO","CAISO",2020,0,0,0,0,0,120887.999999999,4372599.1458843201,0,0,0,0,0,0,0,0,0,0,0,0,0,0]
["CAISO_Small_Hydro_for_Other","CAISO","CAISO",2021,0,0,0,0,0,120887.999999999,4376790.7858003499,0,0,0,0,0,0,0,0,0,0,0,0,0,0]
["CAISO_Small_Hydro_for_Other","CAISO","CAISO",2022,0,0,0,0,0,120887.999999999,4301915.3019148502,0,0,0,0,0,0,0,0,0,0,0,0,0,0]
["CAISO_Small_Hydro_for_Other","CAISO","CAISO",2023,0,0,0,0,0,120887.999999999,4264182.6033908697,0,0,0,0,0,0,0,0,0,0,0,0,0,0]
["CAISO_Small_Hydro_for_Other","CAISO","CAISO",2024,0,0,0,0,0,120887.999999999,4325903.9690739103,0,0,0,0,0,0,0,0,0,0,0,0,0,0]
["CAISO_Small_Hydro_for_Other","CAISO","CAISO",2026,0,0,0,0,0,120887.999999999,5629826.2525622798,0,0,0,0,0,0,0,0,0,0,0,0,0,0]
["CAISO_Small_Hydro_for_Other","CAISO","CAISO",2030,0,0,0,0,0,120887.999999999,9190856.6172600202,0,0,0,0,0,0,0,0,0,0,0,0,0,0]
["CAISO_Small_Hydro_for_Other","CAISO","CAISO",2045,0,0,0,0,0,120887.999999999,15754011.123351,0,0,0,0,0,0,0,0,0,0,0,0,0,0]
["CAISO_Solar_for_CAISO","CAISO","CAISO",2020,0,0,0,0,0,35408315.539350003,1082806207.05444,0,0,0,0,0,0,0,0,0,0,0,0,526805.92137367802,0]
["CAISO_Solar_for_CAISO","CAISO","CAISO",2021,0,0,0,0,0,36522637.121570401,1126825429.52191,0,0,0,0,0,0,0,0,0,0,0,0,311690.16743524902,30503.266115730501]
["CAISO_Solar_for_CAISO","CAISO","CAISO",2022,0,0,0,0,0,36787508.212155998,1073708985.57241,0,0,0,0,0,0,0,0,0,0,0,0,571347.79354645405,0]
["CAISO_Solar_for_CAISO","CAISO","CAISO",2023,0,0,0,0,0,36758911.853224203,1012765432.9450901,0,0,0,0,0,0,0,0,0,0,0,0,872885.48937467195,477250.23292401398]
["CAISO_Solar_for_CAISO","CAISO","CAISO",2024,0,0,0,0,0,36733681.515918396,1019168705.36084,0,0,0,0,0,0,0,0,0,0,0,0,690188.86219959299,239249.36906799799]
["CAISO_Solar_for_CAISO","CAISO","CAISO",2026,0,0,0,0,0,36821612.522910997,1384056767.2360699,0,0,0,0,0,0,0,0,0,0,0,0,336915.26816143998,166729.14803405301]
["CAISO_Solar_for_CAISO","CAISO","CAISO",2030,0,0,0,0,0,36410669.277582698,1695515903.3637099,0,0,0,0,0,0,0,0,0,0,0,0,1138346.15444479,1062322.3105858001]
["CAISO_Solar_for_CAISO","CAISO","CAISO",2045,0,0,0,0,0,36506254.458603702,2200193425.3813701,0,0,0,0,0,0,0,0,0,0,0,0,2094057.8864444599,0]
["CAISO_Solar_for_Other","CAISO","CAISO",2020,0,0,0,0,0,29117.162000828401,890191.82064960303,0,0,0,0,0,0,0,0,0,0,0,0,435.41624736754898,0]
["CAISO_Solar_for_Other","CAISO","CAISO",2021,0,0,0,0,0,29100.459682496199,897778.56874441099,0,0,0,0,0,0,0,0,0,0,0,0,248.67478242889899,24.330317093221701]
["CAISO_Solar_for_Other","CAISO","CAISO",2022,0,0,0,0,0,29067.285234787701,848465.48901015497,0,0,0,0,0,0,0,0,0,0,0,0,450.796738624515,0]
["CAISO_Solar_for_Other","CAISO","CAISO",2023,0,0,0,0,0,29117.162000828401,800306.20133274805,0,0,0,0,0,0,0,0,0,0,0,0,704.516473352611,389.65341068731402]
["CAISO_Solar_for_Other","CAISO","CAISO",2024,0,0,0,0,0,29110.827771239401,805365.91643457406,0,0,0,0,0,0,0,0,0,0,0,0,564.31888060739902,189.46535938660199]
["CAISO_Solar_for_Other","CAISO","CAISO",2026,0,0,0,0,0,28995.638942972098,1093705.9760521499,0,0,0,0,0,0,0,0,0,0,0,0,256.86222053579201,131.97269896224401]
["CAISO_Solar_for_Other","CAISO","CAISO",2030,0,0,0,0,0,28937.8012800982,1339822.76724998,0,0,0,0,0,0,0,0,0,0,0,0,929.94065848979301,840.55993900323494]
["CAISO_Solar_for_Other","CAISO","CAISO",2045,0,0,0,0,0,28864.059872860402,1738684.71680012,0,0,0,0,0,0,0,0,0,0,0,0,1665.16080296726,0]
["CAISO_Wind_for_CAISO","CAISO","CAISO",2020,0,0,0,0,0,17597852.469021101,626020089.49763203,0,0,0,0,0,0,0,0,0,0,0,0,104937.142920093,0]
["CAISO_Wind_for_CAISO","CAISO","CAISO",2021,0,0,0,0,0,17839774.097693902,630542484.84909904,0,0,0,0,0,0,0,0,0,0,0,0,75145.766855499503,18736.777193490001]
["CAISO_Wind_for_CAISO","CAISO","CAISO",2022,0,0,0,0,0,17808792.508168001,610107715.60216796,0,0,0,0,0,0,0,0,0,0,0,0,114144.016461715,0]
["CAISO_Wind_for_CAISO","CAISO","CAISO",2023,0,0,0,0,0,17805185.658817802,602366613.82272303,0,0,0,0,0,0,0,0,0,0,0,0,191918.53984250201,103333.61587167101]
["CAISO_Wind_for_CAISO","CAISO","CAISO",2024,0,0,0,0,0,17809573.0805034,610164763.07936299,0,0,0,0,0,0,0,0,0,0,0,0,175140.29721448099,132181.83262357401]
["CAISO_Wind_for_CAISO","CAISO","CAISO",2026,0,0,0,0,0,17859034.650511,784657520.48355997,0,0,0,0,0,0,0,0,0,0,0,0,91407.848478335203,25952.977002688]
["CAISO_Wind_for_CAISO","CAISO","CAISO",2030,0,0,0,0,0,17558653.066566799,1311132775.7450399,0,0,0,0,0,0,0,0,0,0,0,0,272097.61159164301,695841.73374729895]
["CAISO_Wind_for_CAISO","CAISO","CAISO",2045,0,0,0,0,0,17429449.023078199,1311700137.4811699,0,0,0,0,0,0,0,0,0,0,0,0,744920.74345536798,0]
["CAISO_Wind_for_Other","CAISO","CAISO",2020,0,0,0,0,0,697587.12087244599,24686053.532035999,0,0,0,0,0,0,0,0,0,0,0,0,4648.4572743711096,0]
["CAISO_Wind_for_Other","CAISO","CAISO",2021,0,0,0,0,0,697255.38699552102,24523057.096154299,0,0,0,0,0,0,0,0,0,0,0,0,3390.8311344617,728.17163300427899]
["CAISO_Wind_for_Other","CAISO","CAISO",2022,0,0,0,0,0,696816.74848895997,23715803.561108999,0,0,0,0,0,0,0,0,0,0,0,0,4886.6489977543597,0]
["CAISO_Wind_for_Other","CAISO","CAISO",2023,0,0,0,0,0,697587.12087244599,23407255.514648098,0,0,0,0,0,0,0,0,0,0,0,0,8329.8282278453898,4949.3009402975504]
["CAISO_Wind_for_Other","CAISO","CAISO",2024,0,0,0,0,0,697587.12087244599,23715902.128584702,0,0,0,0,0,0,0,0,0,0,0,0,7492.2753068911097,5117.12350031201]
["CAISO_Wind_for_Other","CAISO","CAISO",2026,0,0,0,0,0,696650.66263297596,30519629.8747802,0,0,0,0,0,0,0,0,0,0,0,0,3810.7708696149398,1062.7275232222801]
["CAISO_Wind_for_Other","CAISO","CAISO",2030,0,0,0,0,0,694945.63845111895,50852774.6052083,0,0,0,0,0,0,0,0,0,0,0,0,11867.810324099901,27058.644076237098]
["CAISO_Wind_for_Other","CAISO","CAISO",2045,0,0,0,0,0,665419.47556002205,50657525.925665997,0,0,0,0,0,0,0,0,0,0,0,0,29628.740406059998,0]
["Cape_Mendocino_Offshore_Wind","CAISO","CAISO",2020,0,0,0,0,0,0,0,0,0,0,0,0,0,0,0,0,0,0,0,0,0]
["Cape_Mendocino_Offshore_Wind","CAISO","CAISO",2021,0,0,0,0,0,0,0,0,0,0,0,0,0,0,0,0,0,0,0,0,0]
["Cape_Mendocino_Offshore_Wind","CAISO","CAISO",2022,0,0,0,0,0,0,0,0,0,0,0,0,0,0,0,0,0,0,0,0,0]
["Cape_Mendocino_Offshore_Wind","CAISO","CAISO",2023,0,0,0,0,0,0,0,0,0,0,0,0,0,0,0,0,0,0,0,0,0]
["Cape_Mendocino_Offshore_Wind","CAISO","CAISO",2024,0,0,0,0,0,0,0,0,0,0,0,0,0,0,0,0,0,0,0,0,0]
["Cape_Mendocino_Offshore_Wind","CAISO","CAISO",2026,0,0,0,0,0,0,0,0,0,0,0,0,0,0,0,0,0,0,0,0,0]
["Cape_Mendocino_Offshore_Wind","CAISO","CAISO",2030,0,0,0,0,0,0,0,0,0,0,0,0,0,0,0,0,0,0,0,0,0]
["Cape_Mendocino_Offshore_Wind","CAISO","CAISO",2045,0,0,0,0,0,0,0,0,0,0,0,0,0,0,0,0,0,0,0,0,0]
["Carrizo_Solar","CAISO","CAISO",2020,0,0,0,0,0,0,0,0,0,0,0,0,0,0,0,0,0,0,0,0,0]
["Carrizo_Solar","CAISO","CAISO",2021,0,0,0,0,0,0,0,0,0,0,0,0,0,0,0,0,0,0,0,0,0]
["Carrizo_Solar","CAISO","CAISO",2022,0,0,0,0,0,0,0,0,0,0,0,0,0,0,0,0,0,0,0,0,0]
["Carrizo_Solar","CAISO","CAISO",2023,0,0,0,0,0,0,0,0,0,0,0,0,0,0,0,0,0,0,0,0,0]
["Carrizo_Solar","CAISO","CAISO",2024,0,0,0,0,0,0,0,0,0,0,0,0,0,0,0,0,0,0,0,0,0]
["Carrizo_Solar","CAISO","CAISO",2026,0,0,0,0,0,0,0,0,0,0,0,0,0,0,0,0,0,0,0,0,0]
["Carrizo_Solar","CAISO","CAISO",2030,0,0,0,0,0,0,0,0,0,0,0,0,0,0,0,0,0,0,0,0,0]
["Carrizo_Solar","CAISO","CAISO",2045,0,0,0,0,0,18013246.3450207,1350203176.6321299,0,0,0,0,0,0,0,0,0,0,0,0,862561.82013790205,0]
["Carrizo_Wind","CAISO","CAISO",2020,0,0,0,0,0,0,0,0,0,0,0,0,0,0,0,0,0,0,0,0,0]
["Carrizo_Wind","CAISO","CAISO",2021,0,0,0,0,0,0,0,0,0,0,0,0,0,0,0,0,0,0,0,0,0]
["Carrizo_Wind","CAISO","CAISO",2022,0,0,0,0,0,0,0,0,0,0,0,0,0,0,0,0,0,0,0,0,0]
["Carrizo_Wind","CAISO","CAISO",2023,0,0,0,0,0,782579.83132992999,27588657.653595299,0,0,0,0,0,0,0,0,0,0,0,0,8658.0531432485805,10920.8741997008]
["Carrizo_Wind","CAISO","CAISO",2024,0,0,0,0,0,779747.48176163097,28015120.606674802,0,0,0,0,0,0,0,0,0,0,0,0,7771.9802429040301,4293.8303043250899]
["Carrizo_Wind","CAISO","CAISO",2026,0,0,0,0,0,782356.46830916102,35319865.914242998,0,0,0,0,0,0,0,0,0,0,0,0,4484.3906875400799,443.54734162498801]
["Carrizo_Wind","CAISO","CAISO",2030,0,0,0,0,0,777674.61839907395,59723461.9048559,0,0,0,0,0,0,0,0,0,0,0,0,11118.6401354563,31020.0813918854]
["Carrizo_Wind","CAISO","CAISO",2045,0,0,0,0,0,761104.95687158406,49643813.428697899,0,0,0,0,0,0,0,0,0,0,0,0,34326.304749007002,0]
["Central_Valley_North_Los_Banos_Solar","CAISO","CAISO",2020,0,0,0,0,0,0,0,0,0,0,0,0,0,0,0,0,0,0,0,0,0]
["Central_Valley_North_Los_Banos_Solar","CAISO","CAISO",2021,0,0,0,0,0,0,0,0,0,0,0,0,0,0,0,0,0,0,0,0,0]
["Central_Valley_North_Los_Banos_Solar","CAISO","CAISO",2022,0,0,0,0,0,0,0,0,0,0,0,0,0,0,0,0,0,0,0,0,0]
["Central_Valley_North_Los_Banos_Solar","CAISO","CAISO",2023,0,0,0,0,0,0,0,0,0,0,0,0,0,0,0,0,0,0,0,0,0]
["Central_Valley_North_Los_Banos_Solar","CAISO","CAISO",2024,0,0,0,0,0,0,0,0,0,0,0,0,0,0,0,0,0,0,0,0,0]
["Central_Valley_North_Los_Banos_Solar","CAISO","CAISO",2026,0,0,0,0,0,0,0,0,0,0,0,0,0,0,0,0,0,0,0,0,0]
["Central_Valley_North_Los_Banos_Solar","CAISO","CAISO",2030,0,0,0,0,0,0,0,0,0,0,0,0,0,0,0,0,0,0,0,0,0]
["Central_Valley_North_Los_Banos_Solar","CAISO","CAISO",2045,0,0,0,0,0,6931066.5773104001,398302635.79854298,0,0,0,0,0,0,0,0,0,0,0,0,399855.84028358001,0]
["Central_Valley_North_Los_Banos_Wind","CAISO","CAISO",2020,0,0,0,0,0,0,0,0,0,0,0,0,0,0,0,0,0,0,0,0,0]
["Central_Valley_North_Los_Banos_Wind","CAISO","CAISO",2021,0,0,0,0,0,0,0,0,0,0,0,0,0,0,0,0,0,0,0,0,0]
["Central_Valley_North_Los_Banos_Wind","CAISO","CAISO",2022,0,0,0,0,0,471102.492517962,16773476.5053494,0,0,0,0,0,0,0,0,0,0,0,0,3545.8641866961998,0]
["Central_Valley_North_Los_Banos_Wind","CAISO","CAISO",2023,0,0,0,0,0,468337.91639845999,16630037.6572906,0,0,0,0,0,0,0,0,0,0,0,0,4746.0829063016599,6583.7778741000402]
["Central_Valley_North_Los_Banos_Wind","CAISO","CAISO",2024,0,0,0,0,0,465963.16071067599,16887104.7580553,0,0,0,0,0,0,0,0,0,0,0,0,4058.0148900847798,2589.20853805653]
["Central_Valley_North_Los_Banos_Wind","CAISO","CAISO",2026,0,0,0,0,0,470676.56798729702,21290296.7970322,0,0,0,0,0,0,0,0,0,0,0,0,2615.6762438616202,266.92222572063002]
["Central_Valley_North_Los_Banos_Wind","CAISO","CAISO",2030,0,0,0,0,0,471663.120772833,36000423.384427197,0,0,0,0,0,0,0,0,0,0,0,0,7046.4602576998795,18696.939247730501]
["Central_Valley_North_Los_Banos_Wind","CAISO","CAISO",2045,0,0,0,0,0,457978.19501773198,29924199.671765,0,0,0,0,0,0,0,0,0,0,0,0,21283.808996157699,0]
["Customer_PV","CAISO","CAISO",2020,0,0,0,0,0,13782727.5880161,417021025.59561098,0,0,0,0,0,0,0,0,0,0,0,0,0,0]
["Customer_PV","CAISO","CAISO",2021,0,0,0,0,0,13782727.5880161,421289938.966564,0,0,0,0,0,0,0,0,0,0,0,0,0,0]
["Customer_PV","CAISO","CAISO",2022,0,0,0,0,0,13782727.5880161,397176820.93735898,0,0,0,0,0,0,0,0,0,0,0,0,0,0]
["Customer_PV","CAISO","CAISO",2023,0,0,0,0,0,13782727.5880161,372362467.20611399,0,0,0,0,0,0,0,0,0,0,0,0,0,0]
["Customer_PV","CAISO","CAISO",2024,0,0,0,0,0,13782727.5880161,375583942.60582399,0,0,0,0,0,0,0,0,0,0,0,0,0,0]
["Customer_PV","CAISO","CAISO",2026,0,0,0,0,0,13782727.5880161,512425492.18189597,0,0,0,0,0,0,0,0,0,0,0,0,0,0]
["Customer_PV","CAISO","CAISO",2030,0,0,0,0,0,13782727.5880161,616848060.16785598,0,0,0,0,0,0,0,0,0,0,0,0,0,0]
["Customer_PV","CAISO","CAISO",2045,0,0,0,0,0,13782727.5880161,830711483.67372704,0,0,0,0,0,0,0,0,0,0,0,0,0,0]
["Del_Norte_Offshore_Wind","CAISO","CAISO",2020,0,0,0,0,0,0,0,0,0,0,0,0,0,0,0,0,0,0,0,0,0]
["Del_Norte_Offshore_Wind","CAISO","CAISO",2021,0,0,0,0,0,0,0,0,0,0,0,0,0,0,0,0,0,0,0,0,0]
["Del_Norte_Offshore_Wind","CAISO","CAISO",2022,0,0,0,0,0,0,0,0,0,0,0,0,0,0,0,0,0,0,0,0,0]
["Del_Norte_Offshore_Wind","CAISO","CAISO",2023,0,0,0,0,0,0,0,0,0,0,0,0,0,0,0,0,0,0,0,0,0]
["Del_Norte_Offshore_Wind","CAISO","CAISO",2024,0,0,0,0,0,0,0,0,0,0,0,0,0,0,0,0,0,0,0,0,0]
["Del_Norte_Offshore_Wind","CAISO","CAISO",2026,0,0,0,0,0,0,0,0,0,0,0,0,0,0,0,0,0,0,0,0,0]
["Del_Norte_Offshore_Wind","CAISO","CAISO",2030,0,0,0,0,0,0,0,0,0,0,0,0,0,0,0,0,0,0,0,0,0]
["Del_Norte_Offshore_Wind","CAISO","CAISO",2045,0,0,0,0,0,0,0,0,0,0,0,0,0,0,0,0,0,0,0,0,0]
["Diablo_Canyon_Offshore_Wind","CAISO","CAISO",2020,0,0,0,0,0,0,0,0,0,0,0,0,0,0,0,0,0,0,0,0,0]
["Diablo_Canyon_Offshore_Wind","CAISO","CAISO",2021,0,0,0,0,0,0,0,0,0,0,0,0,0,0,0,0,0,0,0,0,0]
["Diablo_Canyon_Offshore_Wind","CAISO","CAISO",2022,0,0,0,0,0,0,0,0,0,0,0,0,0,0,0,0,0,0,0,0,0]
["Diablo_Canyon_Offshore_Wind","CAISO","CAISO",2023,0,0,0,0,0,0,0,0,0,0,0,0,0,0,0,0,0,0,0,0,0]
["Diablo_Canyon_Offshore_Wind","CAISO","CAISO",2024,0,0,0,0,0,0,0,0,0,0,0,0,0,0,0,0,0,0,0,0,0]
["Diablo_Canyon_Offshore_Wind","CAISO","CAISO",2026,0,0,0,0,0,0,0,0,0,0,0,0,0,0,0,0,0,0,0,0,0]
["Diablo_Canyon_Offshore_Wind","CAISO","CAISO",2030,0,0,0,0,0,0,0,0,0,0,0,0,0,0,0,0,0,0,0,0,0]
["Diablo_Canyon_Offshore_Wind","CAISO","CAISO",2045,0,0,0,0,0,0,0,0,0,0,0,0,0,0,0,0,0,0,0,0,0]
["Diablo_Canyon_Offshore_Wind_Ext_Tx","CAISO","CAISO",2020,0,0,0,0,0,0,0,0,0,0,0,0,0,0,0,0,0,0,0,0,0]
["Diablo_Canyon_Offshore_Wind_Ext_Tx","CAISO","CAISO",2021,0,0,0,0,0,0,0,0,0,0,0,0,0,0,0,0,0,0,0,0,0]
["Diablo_Canyon_Offshore_Wind_Ext_Tx","CAISO","CAISO",2022,0,0,0,0,0,0,0,0,0,0,0,0,0,0,0,0,0,0,0,0,0]
["Diablo_Canyon_Offshore_Wind_Ext_Tx","CAISO","CAISO",2023,0,0,0,0,0,0,0,0,0,0,0,0,0,0,0,0,0,0,0,0,0]
["Diablo_Canyon_Offshore_Wind_Ext_Tx","CAISO","CAISO",2024,0,0,0,0,0,0,0,0,0,0,0,0,0,0,0,0,0,0,0,0,0]
["Diablo_Canyon_Offshore_Wind_Ext_Tx","CAISO","CAISO",2026,0,0,0,0,0,0,0,0,0,0,0,0,0,0,0,0,0,0,0,0,0]
["Diablo_Canyon_Offshore_Wind_Ext_Tx","CAISO","CAISO",2030,0,0,0,0,0,0,0,0,0,0,0,0,0,0,0,0,0,0,0,0,0]
["Diablo_Canyon_Offshore_Wind_Ext_Tx","CAISO","CAISO",2045,0,0,0,0,0,0,0,0,0,0,0,0,0,0,0,0,0,0,0,0,0]
["Distributed_Solar","CAISO","CAISO",2020,0,0,0,0,0,0,0,0,0,0,0,0,0,0,0,0,0,0,0,0,0]
["Distributed_Solar","CAISO","CAISO",2021,0,0,0,0,0,0,0,0,0,0,0,0,0,0,0,0,0,0,0,0,0]
["Distributed_Solar","CAISO","CAISO",2022,0,0,0,0,0,0,0,0,0,0,0,0,0,0,0,0,0,0,0,0,0]
["Distributed_Solar","CAISO","CAISO",2023,0,0,0,0,0,0,0,0,0,0,0,0,0,0,0,0,0,0,0,0,0]
["Distributed_Solar","CAISO","CAISO",2024,0,0,0,0,0,0,0,0,0,0,0,0,0,0,0,0,0,0,0,0,0]
["Distributed_Solar","CAISO","CAISO",2026,0,0,0,0,0,0,0,0,0,0,0,0,0,0,0,0,0,0,0,0,0]
["Distributed_Solar","CAISO","CAISO",2030,0,0,0,0,0,0,0,0,0,0,0,0,0,0,0,0,0,0,0,0,0]
["Distributed_Solar","CAISO","CAISO",2045,0,0,0,0,0,0,0,0,0,0,0,0,0,0,0,0,0,0,0,0,0]
["EV_Charging","CAISO","CAISO",2020,0,0,0,0,0,0,0,0,0,0,0,0,0,0,0,0,0,0,0,0,0]
["EV_Charging","CAISO","CAISO",2021,0,0,0,0,0,0,0,0,0,0,0,0,0,0,0,0,0,0,0,0,0]
["EV_Charging","CAISO","CAISO",2022,0,0,0,0,0,0,0,0,0,0,0,0,0,0,0,0,0,0,0,0,0]
["EV_Charging","CAISO","CAISO",2023,0,0,0,0,0,0,0,0,0,0,0,0,0,0,0,0,0,0,0,0,0]
["EV_Charging","CAISO","CAISO",2024,0,0,0,0,0,0,0,0,0,0,0,0,0,0,0,0,0,0,0,0,0]
["EV_Charging","CAISO","CAISO",2026,0,0,0,0,0,0,0,0,0,0,0,0,0,0,0,0,0,0,0,0,0]
["EV_Charging","CAISO","CAISO",2030,0,0,0,0,0,0,0,0,0,0,0,0,0,0,0,0,0,0,0,0,0]
["EV_Charging","CAISO","CAISO",2045,0,0,0,0,0,0,0,0,0,0,0,0,0,0,0,0,0,0,0,0,0]
["Greater_Imperial_Geothermal","CAISO","CAISO",2020,0,0,0,0,0,0,0,0,0,0,0,0,0,0,0,0,0,0,0,0,0]
["Greater_Imperial_Geothermal","CAISO","CAISO",2021,0,0,0,0,0,0,0,0,0,0,0,0,0,0,0,0,0,0,0,0,0]
["Greater_Imperial_Geothermal","CAISO","CAISO",2022,0,0,0,0,0,0,0,0,0,0,0,0,0,0,0,0,0,0,0,0,0]
["Greater_Imperial_Geothermal","CAISO","CAISO",2023,0,0,0,0,0,0,0,0,0,0,0,0,0,0,0,0,0,0,0,0,0]
["Greater_Imperial_Geothermal","CAISO","CAISO",2024,0,0,0,0,0,0,0,0,0,0,0,0,0,0,0,0,0,0,0,0,0]
["Greater_Imperial_Geothermal","CAISO","CAISO",2026,0,0,0,0,0,0,0,0,0,0,0,0,0,0,0,0,0,0,0,0,0]
["Greater_Imperial_Geothermal","CAISO","CAISO",2030,0,0,0,0,0,0,0,0,0,0,0,0,0,0,0,0,0,0,0,0,0]
["Greater_Imperial_Geothermal","CAISO","CAISO",2045,11373108,0,0,0,0,10434036,1359753815.14662,0,0,0,0,0,0,0,0,0,0,0,0,0,0]
["Greater_Imperial_Solar","CAISO","CAISO",2020,0,0,0,0,0,0,0,0,0,0,0,0,0,0,0,0,0,0,0,0,0]
["Greater_Imperial_Solar","CAISO","CAISO",2021,0,0,0,0,0,0,0,0,0,0,0,0,0,0,0,0,0,0,0,0,0]
["Greater_Imperial_Solar","CAISO","CAISO",2022,0,0,0,0,0,0,0,0,0,0,0,0,0,0,0,0,0,0,0,0,0]
["Greater_Imperial_Solar","CAISO","CAISO",2023,0,0,0,0,0,0,0,0,0,0,0,0,0,0,0,0,0,0,0,0,0]
["Greater_Imperial_Solar","CAISO","CAISO",2024,0,0,0,0,0,0,0,0,0,0,0,0,0,0,0,0,0,0,0,0,0]
["Greater_Imperial_Solar","CAISO","CAISO",2026,0,0,0,0,0,2378089.03883442,89453630.676809698,0,0,0,0,0,0,0,0,0,0,0,0,21293.467622435601,11309.9610734711]
["Greater_Imperial_Solar","CAISO","CAISO",2030,0,0,0,0,0,2343301.2198864701,110369277.48559199,0,0,0,0,0,0,0,0,0,0,0,0,71183.645914782799,55721.336914154199]
["Greater_Imperial_Solar","CAISO","CAISO",2045,0,0,0,0,0,2254746.0760487099,145407172.92212299,0,0,0,0,0,0,0,0,0,0,0,0,132430.91105674001,0]
["Greater_Imperial_Wind","CAISO","CAISO",2020,0,0,0,0,0,0,0,0,0,0,0,0,0,0,0,0,0,0,0,0,0]
["Greater_Imperial_Wind","CAISO","CAISO",2021,0,0,0,0,0,0,0,0,0,0,0,0,0,0,0,0,0,0,0,0,0]
["Greater_Imperial_Wind","CAISO","CAISO",2022,0,0,0,0,0,0,0,0,0,0,0,0,0,0,0,0,0,0,0,0,0]
["Greater_Imperial_Wind","CAISO","CAISO",2023,0,0,0,0,0,0,0,0,0,0,0,0,0,0,0,0,0,0,0,0,0]
["Greater_Imperial_Wind","CAISO","CAISO",2024,0,0,0,0,0,0,0,0,0,0,0,0,0,0,0,0,0,0,0,0,0]
["Greater_Imperial_Wind","CAISO","CAISO",2026,0,0,0,0,0,0,0,0,0,0,0,0,0,0,0,0,0,0,0,0,0]
["Greater_Imperial_Wind","CAISO","CAISO",2030,0,0,0,0,0,0,0,0,0,0,0,0,0,0,0,0,0,0,0,0,0]
["Greater_Imperial_Wind","CAISO","CAISO",2045,0,0,0,0,0,0,0,0,0,0,0,0,0,0,0,0,0,0,0,0,0]
["Greater_Kramer_Wind","CAISO","CAISO",2020,0,0,0,0,0,0,0,0,0,0,0,0,0,0,0,0,0,0,0,0,0]
["Greater_Kramer_Wind","CAISO","CAISO",2021,0,0,0,0,0,0,0,0,0,0,0,0,0,0,0,0,0,0,0,0,0]
["Greater_Kramer_Wind","CAISO","CAISO",2022,0,0,0,0,0,0,0,0,0,0,0,0,0,0,0,0,0,0,0,0,0]
["Greater_Kramer_Wind","CAISO","CAISO",2023,0,0,0,0,0,0,0,0,0,0,0,0,0,0,0,0,0,0,0,0,0]
["Greater_Kramer_Wind","CAISO","CAISO",2024,0,0,0,0,0,0,0,0,0,0,0,0,0,0,0,0,0,0,0,0,0]
["Greater_Kramer_Wind","CAISO","CAISO",2026,0,0,0,0,0,0,0,0,0,0,0,0,0,0,0,0,0,0,0,0,0]
["Greater_Kramer_Wind","CAISO","CAISO",2030,0,0,0,0,0,0,0,0,0,0,0,0,0,0,0,0,0,0,0,0,0]
["Greater_Kramer_Wind","CAISO","CAISO",2045,0,0,0,0,0,0,0,0,0,0,0,0,0,0,0,0,0,0,0,0,0]
["Humboldt_Bay_Offshore_Wind","CAISO","CAISO",2020,0,0,0,0,0,0,0,0,0,0,0,0,0,0,0,0,0,0,0,0,0]
["Humboldt_Bay_Offshore_Wind","CAISO","CAISO",2021,0,0,0,0,0,0,0,0,0,0,0,0,0,0,0,0,0,0,0,0,0]
["Humboldt_Bay_Offshore_Wind","CAISO","CAISO",2022,0,0,0,0,0,0,0,0,0,0,0,0,0,0,0,0,0,0,0,0,0]
["Humboldt_Bay_Offshore_Wind","CAISO","CAISO",2023,0,0,0,0,0,0,0,0,0,0,0,0,0,0,0,0,0,0,0,0,0]
["Humboldt_Bay_Offshore_Wind","CAISO","CAISO",2024,0,0,0,0,0,0,0,0,0,0,0,0,0,0,0,0,0,0,0,0,0]
["Humboldt_Bay_Offshore_Wind","CAISO","CAISO",2026,0,0,0,0,0,0,0,0,0,0,0,0,0,0,0,0,0,0,0,0,0]
["Humboldt_Bay_Offshore_Wind","CAISO","CAISO",2030,0,0,0,0,0,0,0,0,0,0,0,0,0,0,0,0,0,0,0,0,0]
["Humboldt_Bay_Offshore_Wind","CAISO","CAISO",2045,0,0,0,0,0,0,0,0,0,0,0,0,0,0,0,0,0,0,0,0,0]
["Humboldt_Wind","CAISO","CAISO",2020,0,0,0,0,0,0,0,0,0,0,0,0,0,0,0,0,0,0,0,0,0]
["Humboldt_Wind","CAISO","CAISO",2021,0,0,0,0,0,87035.777244516401,3167135.7991608898,0,0,0,0,0,0,0,0,0,0,0,0,332.96050014153701,50.9198779165283]
["Humboldt_Wind","CAISO","CAISO",2022,0,0,0,0,0,87048.405606348999,3093126.7637906601,0,0,0,0,0,0,0,0,0,0,0,0,644.47281690684702,0]
["Humboldt_Wind","CAISO","CAISO",2023,0,0,0,0,0,86992.035722260494,3069216.3774529402,0,0,0,0,0,0,0,0,0,0,0,0,911.76077627544203,725.56744902590106]
["Humboldt_Wind","CAISO","CAISO",2024,0,0,0,0,0,86295.990880890895,3115413.2991613802,0,0,0,0,0,0,0,0,0,0,0,0,728.38749674140399,32.067761657095197]
["Humboldt_Wind","CAISO","CAISO",2026,0,0,0,0,0,86788.803906216504,4049275.9356287899,0,0,0,0,0,0,0,0,0,0,0,0,350.44404225986898,96.250765408554599]
["Humboldt_Wind","CAISO","CAISO",2030,0,0,0,0,0,86865.380959635106,6704968.8841506001,0,0,0,0,0,0,0,0,0,0,0,0,1165.263462445,1973.2478482208601]
["Humboldt_Wind","CAISO","CAISO",2045,0,0,0,0,0,85986.571207475194,10541857.7048952,0,0,0,0,0,0,0,0,0,0,0,0,3408.0190207426799,0]
["Hydrogen_electrolysis","CAISO","CAISO",2020,0,0,0,0,0,0,0,0,0,0,0,0,0,0,0,0,0,0,0,0,0]
["Hydrogen_electrolysis","CAISO","CAISO",2021,0,0,0,0,0,0,0,0,0,0,0,0,0,0,0,0,0,0,0,0,0]
["Hydrogen_electrolysis","CAISO","CAISO",2022,0,0,0,0,0,0,0,0,0,0,0,0,0,0,0,0,0,0,0,0,0]
["Hydrogen_electrolysis","CAISO","CAISO",2023,0,0,0,0,0,0,0,0,0,0,0,0,0,0,0,0,0,0,0,0,0]
["Hydrogen_electrolysis","CAISO","CAISO",2024,0,0,0,0,0,0,0,0,0,0,0,0,0,0,0,0,0,0,0,0,0]
["Hydrogen_electrolysis","CAISO","CAISO",2026,0,0,0,0,0,0,0,0,0,0,0,0,0,0,0,0,0,0,0,0,0]
["Hydrogen_electrolysis","CAISO","CAISO",2030,0,0,0,0,0,0,0,0,0,0,0,0,0,0,0,0,0,0,0,0,0]
["Hydrogen_electrolysis","CAISO","CAISO",2045,0,0,0,0,0,0,0,0,0,0,0,0,0,0,0,0,0,0,0,0,0]
["IID_Biomass_for_Other","IID","IID",2020,1045506,0,0,0,0,674519.99999999104,22274211.196369998,0,0,0,0,0,0,0,0,0,0,0,0,0,0]
["IID_Biomass_for_Other","IID","IID",2021,1045506,0,0,0,0,674519.99999999104,22533756.893813301,0,0,0,0,0,0,0,0,0,0,0,0,0,0]
["IID_Biomass_for_Other","IID","IID",2022,1045506,0,0,0,0,674519.99999999104,22359929.218216401,0,0,0,0,0,0,0,0,0,0,0,0,0,0]
["IID_Biomass_for_Other","IID","IID",2023,1045506,0,0,0,0,674519.99999999104,22313584.425825398,0,0,0,0,0,0,0,0,0,0,0,0,0,0]
["IID_Biomass_for_Other","IID","IID",2024,1045506,0,0,0,0,674519.99999999104,22713083.126053099,0,0,0,0,0,0,0,0,0,0,0,0,0,0]
["IID_Biomass_for_Other","IID","IID",2026,1045506,0,0,0,0,674519.99999999104,22308991.324848499,0,0,0,0,0,0,0,0,0,0,0,0,0,0]
["IID_Biomass_for_Other","IID","IID",2030,1045506,0,0,0,0,674519.99999999104,21299401.299582001,0,0,0,0,0,0,0,0,0,0,0,0,0,0]
["IID_Biomass_for_Other","IID","IID",2045,1045506,0,0,0,0,674519.99999999104,21790412.5752315,0,0,0,0,0,0,0,0,0,0,0,0,0,0]
["IID_CCGT","IID","IID",2020,0,0,0,0,0,0,0,0,0,0,0,0,0,0,0,0,0,0,0,0,0]
["IID_CCGT","IID","IID",2021,0,0,0,0,0,0,0,0,0,0,0,0,0,0,0,0,0,0,0,0,0]
["IID_CCGT","IID","IID",2022,0,0,0,0,0,0,0,0,0,0,0,0,0,0,0,0,0,0,0,0,0]
["IID_CCGT","IID","IID",2023,0,0,0,0,0,0,0,0,0,0,0,0,0,0,0,0,0,0,0,0,0]
["IID_CCGT","IID","IID",2024,0,0,0,0,0,0,0,0,0,0,0,0,0,0,0,0,0,0,0,0,0]
["IID_CCGT","IID","IID",2026,0,0,0,0,0,0,0,0,0,0,0,0,0,0,0,0,0,0,0,0,0]
["IID_CCGT","IID","IID",2030,0,0,0,0,0,0,0,0,0,0,0,0,0,0,0,0,0,0,0,0,0]
["IID_CCGT","IID","IID",2045,0,0,0,0,0,0,0,0,0,0,0,0,0,0,0,0,0,0,0,0,0]
["IID_Geothermal_for_CAISO","IID","CAISO",2020,634048.80000000203,0,0,0,0,581664.00000000105,19207891.213493101,0,0,0,0,0,0,0,0,0,0,0,0,0,0]
["IID_Geothermal_for_CAISO","IID","CAISO",2021,634048.80000000203,0,0,0,0,581664.00000000105,19431707.243496198,0,0,0,0,0,0,0,0,0,0,0,0,0,0]
["IID_Geothermal_for_CAISO","IID","CAISO",2022,634048.80000000203,0,0,0,0,581664.00000000105,19281809.0920722,0,0,0,0,0,0,0,0,0,0,0,0,0,0]
["IID_Geothermal_for_CAISO","IID","CAISO",2023,634048.80000000203,0,0,0,0,581664.00000000105,19241844.2321404,0,0,0,0,0,0,0,0,0,0,0,0,0,0]
["IID_Geothermal_for_CAISO","IID","CAISO",2024,634048.80000000203,0,0,0,0,581664.00000000105,19586347.007401701,0,0,0,0,0,0,0,0,0,0,0,0,0,0]
["IID_Geothermal_for_CAISO","IID","CAISO",2026,634048.80000000203,0,0,0,0,581664.00000000105,19237883.428181101,0,0,0,0,0,0,0,0,0,0,0,0,0,0]
["IID_Geothermal_for_CAISO","IID","CAISO",2030,634048.80000000203,0,0,0,0,581664.00000000105,18367275.925873298,0,0,0,0,0,0,0,0,0,0,0,0,0,0]
["IID_Geothermal_for_CAISO","IID","CAISO",2045,634048.80000000203,0,0,0,0,581664.00000000105,18790693.441498298,0,0,0,0,0,0,0,0,0,0,0,0,0,0]
["IID_Geothermal_for_Other","IID","IID",2020,6774195.5999999801,0,0,0,0,6214869.6000000099,205229375.00489199,0,0,0,0,0,0,0,0,0,0,0,0,0,0]
["IID_Geothermal_for_Other","IID","IID",2021,6774195.5999999801,0,0,0,0,6214869.6000000099,207620768.38811401,0,0,0,0,0,0,0,0,0,0,0,0,0,0]
["IID_Geothermal_for_Other","IID","IID",2022,6774195.5999999801,0,0,0,0,6214869.6000000099,206019160.82020399,0,0,0,0,0,0,0,0,0,0,0,0,0,0]
["IID_Geothermal_for_Other","IID","IID",2023,6774195.5999999801,0,0,0,0,6214869.6000000099,205592150.736963,0,0,0,0,0,0,0,0,0,0,0,0,0,0]
["IID_Geothermal_for_Other","IID","IID",2024,6774195.5999999801,0,0,0,0,6214869.6000000099,209273038.37155399,0,0,0,0,0,0,0,0,0,0,0,0,0,0]
["IID_Geothermal_for_Other","IID","IID",2026,6774195.5999999801,0,0,0,0,6214869.6000000099,205549830.978273,0,0,0,0,0,0,0,0,0,0,0,0,0,0]
["IID_Geothermal_for_Other","IID","IID",2030,6774195.5999999801,0,0,0,0,6214869.6000000099,196247704.49352601,0,0,0,0,0,0,0,0,0,0,0,0,0,0]
["IID_Geothermal_for_Other","IID","IID",2045,6774195.5999999801,0,0,0,0,6214869.6000000099,200771767.60550401,0,0,0,0,0,0,0,0,0,0,0,0,0,0]
["IID_Hydro","IID","IID",2020,0,0,0,0,0,254747.65328694999,8802632.8032350596,0,0,0,0,0,0,0,0,0,0,0,0,0,0]
["IID_Hydro","IID","IID",2021,0,0,0,0,0,254747.661729999,8896640.5850520507,0,0,0,0,0,0,0,0,0,0,0,0,0,0]
["IID_Hydro","IID","IID",2022,0,0,0,0,0,254747.603645275,8849495.9302666504,0,0,0,0,0,0,0,0,0,0,0,0,0,0]
["IID_Hydro","IID","IID",2023,0,0,0,0,0,254747.603645275,8875554.9052384105,0,0,0,0,0,0,0,0,0,0,0,0,0,0]
["IID_Hydro","IID","IID",2024,0,0,0,0,0,254747.661729999,9020137.3920704499,0,0,0,0,0,0,0,0,0,0,0,0,0,0]
["IID_Hydro","IID","IID",2026,0,0,0,0,0,254747.603645275,8814147.3090740796,0,0,0,0,0,0,0,0,0,0,0,0,0,0]
["IID_Hydro","IID","IID",2030,0,0,0,0,0,254747.83571770199,8835762.0536547992,0,0,0,0,0,0,0,0,0,0,0,0,0,0]
["IID_Hydro","IID","IID",2045,0,0,0,0,0,254747.71398760399,8625840.2025472596,0,0,0,0,0,0,0,0,0,0,0,0,0,0]
["IID_Peaker","IID","IID",2020,0,0,0,0,0,0,0,0,0,0,0,0,0,0,0,0,0,0,0,0,0]
["IID_Peaker","IID","IID",2021,0,0,0,0,0,0,0,0,0,0,0,0,0,0,0,0,0,0,0,0,0]
["IID_Peaker","IID","IID",2022,0,0,0,0,0,0,0,0,0,0,0,0,0,0,0,0,0,0,0,0,0]
["IID_Peaker","IID","IID",2023,0,0,0,0,0,0,0,0,0,0,0,0,0,0,0,0,0,0,0,0,0]
["IID_Peaker","IID","IID",2024,0,0,0,0,0,0,0,0,0,0,0,0,0,0,0,0,0,0,0,0,0]
["IID_Peaker","IID","IID",2026,0,0,0,0,0,0,0,0,0,0,0,0,0,0,0,0,0,0,0,0,0]
["IID_Peaker","IID","IID",2030,0,0,0,0,0,0,0,0,0,0,0,0,0,0,0,0,0,0,0,0,0]
["IID_Peaker","IID","IID",2045,0,0,0,0,0,0,0,0,0,0,0,0,0,0,0,0,0,0,0,0,0]
["IID_Small_Hydro_for_Other","IID","IID",2020,0,0,0,0,0,0,0,0,0,0,0,0,0,0,0,0,0,0,0,0,0]
["IID_Small_Hydro_for_Other","IID","IID",2021,0,0,0,0,0,0,0,0,0,0,0,0,0,0,0,0,0,0,0,0,0]
["IID_Small_Hydro_for_Other","IID","IID",2022,0,0,0,0,0,0,0,0,0,0,0,0,0,0,0,0,0,0,0,0,0]
["IID_Small_Hydro_for_Other","IID","IID",2023,0,0,0,0,0,0,0,0,0,0,0,0,0,0,0,0,0,0,0,0,0]
["IID_Small_Hydro_for_Other","IID","IID",2024,0,0,0,0,0,0,0,0,0,0,0,0,0,0,0,0,0,0,0,0,0]
["IID_Small_Hydro_for_Other","IID","IID",2026,0,0,0,0,0,0,0,0,0,0,0,0,0,0,0,0,0,0,0,0,0]
["IID_Small_Hydro_for_Other","IID","IID",2030,0,0,0,0,0,0,0,0,0,0,0,0,0,0,0,0,0,0,0,0,0]
["IID_Small_Hydro_for_Other","IID","IID",2045,0,0,0,0,0,0,0,0,0,0,0,0,0,0,0,0,0,0,0,0,0]
["IID_Solar_for_CAISO","IID","CAISO",2020,0,0,0,0,0,147193.23068361499,4246438.59390915,0,0,0,0,0,0,0,0,0,0,0,0,0,0]
["IID_Solar_for_CAISO","IID","CAISO",2021,0,0,0,0,0,147267.86267607601,4286064.9079393996,0,0,0,0,0,0,0,0,0,0,0,0,0,0]
["IID_Solar_for_CAISO","IID","CAISO",2022,0,0,0,0,0,147203.94401489801,4143079.4544106699,0,0,0,0,0,0,0,0,0,0,0,0,0,0]
["IID_Solar_for_CAISO","IID","CAISO",2023,0,0,0,0,0,147193.23068361499,4018415.9387429999,0,0,0,0,0,0,0,0,0,0,0,0,0,0]
["IID_Solar_for_CAISO","IID","CAISO",2024,0,0,0,0,0,146523.88747618601,4077120.86994485,0,0,0,0,0,0,0,0,0,0,0,0,0,0]
["IID_Solar_for_CAISO","IID","CAISO",2026,0,0,0,0,0,141534.53230906301,3868995.76682849,0,0,0,0,0,0,0,0,0,0,0,0,0,0]
["IID_Solar_for_CAISO","IID","CAISO",2030,0,0,0,0,0,136770.063595213,3063530.0439971401,0,0,0,0,0,0,0,0,0,0,0,0,0,0]
["IID_Solar_for_CAISO","IID","CAISO",2045,0,0,0,0,0,137092.19922796899,3502111.6376902699,0,0,0,0,0,0,0,0,0,0,0,0,0,0]
["IID_Solar_for_Other","IID","IID",2020,0,0,0,0,0,380687.50711710402,10906558.2861297,0,0,0,0,0,0,0,0,0,0,0,0,0,0]
["IID_Solar_for_Other","IID","IID",2021,0,0,0,0,0,380687.50711710402,11008761.7025597,0,0,0,0,0,0,0,0,0,0,0,0,0,0]
["IID_Solar_for_Other","IID","IID",2022,0,0,0,0,0,380687.50711710402,10654153.135787601,0,0,0,0,0,0,0,0,0,0,0,0,0,0]
["IID_Solar_for_Other","IID","IID",2023,0,0,0,0,0,380687.50711710402,10332042.8145625,0,0,0,0,0,0,0,0,0,0,0,0,0,0]
["IID_Solar_for_Other","IID","IID",2024,0,0,0,0,0,380687.50711710402,10459693.480203399,0,0,0,0,0,0,0,0,0,0,0,0,0,0]
["IID_Solar_for_Other","IID","IID",2026,0,0,0,0,0,380687.50711710402,9880563.8783846702,0,0,0,0,0,0,0,0,0,0,0,0,0,0]
["IID_Solar_for_Other","IID","IID",2030,0,0,0,0,2351.5671834288,317482.81218128401,6145037.0217822799,0,0,0,0,0,0,0,0,0,0,0,0,0,0]
["IID_Solar_for_Other","IID","IID",2045,0,0,0,0,3851.9755528099799,317432.80459108,6892312.9457128001,0,0,0,0,0,0,0,0,0,0,0,0,0,0]
["IID_Wind_for_Other","IID","IID",2020,0,0,0,0,0,0,0,0,0,0,0,0,0,0,0,0,0,0,0,0,0]
["IID_Wind_for_Other","IID","IID",2021,0,0,0,0,0,0,0,0,0,0,0,0,0,0,0,0,0,0,0,0,0]
["IID_Wind_for_Other","IID","IID",2022,0,0,0,0,0,0,0,0,0,0,0,0,0,0,0,0,0,0,0,0,0]
["IID_Wind_for_Other","IID","IID",2023,0,0,0,0,0,0,0,0,0,0,0,0,0,0,0,0,0,0,0,0,0]
["IID_Wind_for_Other","IID","IID",2024,0,0,0,0,0,0,0,0,0,0,0,0,0,0,0,0,0,0,0,0,0]
["IID_Wind_for_Other","IID","IID",2026,0,0,0,0,0,0,0,0,0,0,0,0,0,0,0,0,0,0,0,0,0]
["IID_Wind_for_Other","IID","IID",2030,0,0,0,0,0,0,0,0,0,0,0,0,0,0,0,0,0,0,0,0,0]
["IID_Wind_for_Other","IID","IID",2045,0,0,0,0,0,0,0,0,0,0,0,0,0,0,0,0,0,0,0,0,0]
["Idaho_Wind","CAISO","CAISO",2020,0,0,0,0,0,0,0,0,0,0,0,0,0,0,0,0,0,0,0,0,0]
["Idaho_Wind","CAISO","CAISO",2021,0,0,0,0,0,0,0,0,0,0,0,0,0,0,0,0,0,0,0,0,0]
["Idaho_Wind","CAISO","CAISO",2022,0,0,0,0,0,0,0,0,0,0,0,0,0,0,0,0,0,0,0,0,0]
["Idaho_Wind","CAISO","CAISO",2023,0,0,0,0,0,0,0,0,0,0,0,0,0,0,0,0,0,0,0,0,0]
["Idaho_Wind","CAISO","CAISO",2024,0,0,0,0,0,0,0,0,0,0,0,0,0,0,0,0,0,0,0,0,0]
["Idaho_Wind","CAISO","CAISO",2026,0,0,0,0,0,0,0,0,0,0,0,0,0,0,0,0,0,0,0,0,0]
["Idaho_Wind","CAISO","CAISO",2030,0,0,0,0,0,0,0,0,0,0,0,0,0,0,0,0,0,0,0,0,0]
["Idaho_Wind","CAISO","CAISO",2045,0,0,0,0,0,0,0,0,0,0,0,0,0,0,0,0,0,0,0,0,0]
["InState_Biomass","CAISO","CAISO",2020,0,0,0,0,0,0,0,0,0,0,0,0,0,0,0,0,0,0,0,0,0]
["InState_Biomass","CAISO","CAISO",2021,0,0,0,0,0,0,0,0,0,0,0,0,0,0,0,0,0,0,0,0,0]
["InState_Biomass","CAISO","CAISO",2022,0,0,0,0,0,0,0,0,0,0,0,0,0,0,0,0,0,0,0,0,0]
["InState_Biomass","CAISO","CAISO",2023,0,0,0,0,0,0,0,0,0,0,0,0,0,0,0,0,0,0,0,0,0]
["InState_Biomass","CAISO","CAISO",2024,0,0,0,0,0,0,0,0,0,0,0,0,0,0,0,0,0,0,0,0,0]
["InState_Biomass","CAISO","CAISO",2026,0,0,0,0,0,0,0,0,0,0,0,0,0,0,0,0,0,0,0,0,0]
["InState_Biomass","CAISO","CAISO",2030,0,0,0,0,0,0,0,0,0,0,0,0,0,0,0,0,0,0,0,0,0]
["InState_Biomass","CAISO","CAISO",2045,13236184.800000001,0,0,0,0,8539510.7999999691,1112861062.5634999,0,0,0,0,0,0,0,0,0,0,0,0,0,0]
["Inyokern_North_Kramer_Geothermal","CAISO","CAISO",2020,0,0,0,0,0,0,0,0,0,0,0,0,0,0,0,0,0,0,0,0,0]
["Inyokern_North_Kramer_Geothermal","CAISO","CAISO",2021,0,0,0,0,0,0,0,0,0,0,0,0,0,0,0,0,0,0,0,0,0]
["Inyokern_North_Kramer_Geothermal","CAISO","CAISO",2022,0,0,0,0,0,0,0,0,0,0,0,0,0,0,0,0,0,0,0,0,0]
["Inyokern_North_Kramer_Geothermal","CAISO","CAISO",2023,0,0,0,0,0,0,0,0,0,0,0,0,0,0,0,0,0,0,0,0,0]
["Inyokern_North_Kramer_Geothermal","CAISO","CAISO",2024,0,0,0,0,0,0,0,0,0,0,0,0,0,0,0,0,0,0,0,0,0]
["Inyokern_North_Kramer_Geothermal","CAISO","CAISO",2026,0,0,0,0,0,0,0,0,0,0,0,0,0,0,0,0,0,0,0,0,0]
["Inyokern_North_Kramer_Geothermal","CAISO","CAISO",2030,0,0,0,0,0,0,0,0,0,0,0,0,0,0,0,0,0,0,0,0,0]
["Inyokern_North_Kramer_Geothermal","CAISO","CAISO",2045,183346.8,0,0,0,0,168192,21918624.171618801,0,0,0,0,0,0,0,0,0,0,0,0,0,0]
["Inyokern_North_Kramer_Solar","CAISO","CAISO",2020,0,0,0,0,0,0,0,0,0,0,0,0,0,0,0,0,0,0,0,0,0]
["Inyokern_North_Kramer_Solar","CAISO","CAISO",2021,0,0,0,0,0,98771.1143315316,3043006.1024773698,0,0,0,0,0,0,0,0,0,0,0,0,825.33135675211099,85.503685784750701]
["Inyokern_North_Kramer_Solar","CAISO","CAISO",2022,0,0,0,0,0,205639.72050022599,6000394.8095439998,0,0,0,0,0,0,0,0,0,0,0,0,3073.5773174891501,0]
["Inyokern_North_Kramer_Solar","CAISO","CAISO",2023,0,0,0,0,0,204228.74660404801,5667119.1679545203,0,0,0,0,0,0,0,0,0,0,0,0,4582.1713387576801,2762.4687834301299]
["Inyokern_North_Kramer_Solar","CAISO","CAISO",2024,0,0,0,0,0,204164.330260346,5691710.9940771796,0,0,0,0,0,0,0,0,0,0,0,0,3750.5575397142602,1429.6966707603301]
["Inyokern_North_Kramer_Solar","CAISO","CAISO",2026,0,0,0,0,0,204233.82129240001,7725267.8890516097,0,0,0,0,0,0,0,0,0,0,0,0,1713.3326363978699,1028.9901415326899]
["Inyokern_North_Kramer_Solar","CAISO","CAISO",2030,0,0,0,0,0,203372.770193164,9454483.1150006391,0,0,0,0,0,0,0,0,0,0,0,0,6466.1341262204696,6314.63737126255]
["Inyokern_North_Kramer_Solar","CAISO","CAISO",2045,0,0,0,0,0,199236.08176100801,12003371.377959801,0,0,0,0,0,0,0,0,0,0,0,0,11768.1270082682,0]
["Kern_Greater_Carrizo_Solar","CAISO","CAISO",2020,0,0,0,0,0,0,0,0,0,0,0,0,0,0,0,0,0,0,0,0,0]
["Kern_Greater_Carrizo_Solar","CAISO","CAISO",2021,0,0,0,0,0,0,0,0,0,0,0,0,0,0,0,0,0,0,0,0,0]
["Kern_Greater_Carrizo_Solar","CAISO","CAISO",2022,0,0,0,0,0,0,0,0,0,0,0,0,0,0,0,0,0,0,0,0,0]
["Kern_Greater_Carrizo_Solar","CAISO","CAISO",2023,0,0,0,0,0,308061.37980479799,8446479.3967925608,0,0,0,0,0,0,0,0,0,0,0,0,7098.2255009508399,3939.73823894814]
["Kern_Greater_Carrizo_Solar","CAISO","CAISO",2024,0,0,0,0,0,308061.37980479799,8474030.5826879907,0,0,0,0,0,0,0,0,0,0,0,0,5808.3703637645003,2188.50853310616]
["Kern_Greater_Carrizo_Solar","CAISO","CAISO",2026,0,0,0,0,0,3051474.6005259198,114439007.750467,0,0,0,0,0,0,0,0,0,0,0,0,25811.3875236206,15436.836674854399]
["Kern_Greater_Carrizo_Solar","CAISO","CAISO",2030,0,0,0,0,0,21818882.1090362,1016720988.39292,0,0,0,0,0,0,0,0,0,0,0,0,664679.14437196602,773856.19956969202]
["Kern_Greater_Carrizo_Solar","CAISO","CAISO",2045,0,0,0,0,0,16917952.851807401,1135140953.6939499,0,0,0,0,0,0,0,0,0,0,0,0,898732.51023779903,0]
["Kern_Greater_Carrizo_Wind","CAISO","CAISO",2020,0,0,0,0,0,0,0,0,0,0,0,0,0,0,0,0,0,0,0,0,0]
["Kern_Greater_Carrizo_Wind","CAISO","CAISO",2021,0,0,0,0,0,0,0,0,0,0,0,0,0,0,0,0,0,0,0,0,0]
["Kern_Greater_Carrizo_Wind","CAISO","CAISO",2022,0,0,0,0,0,163605.40058793599,5817405.5694030002,0,0,0,0,0,0,0,0,0,0,0,0,1269.3134855645101,0]
["Kern_Greater_Carrizo_Wind","CAISO","CAISO",2023,0,0,0,0,0,163605.40058793599,5767656.49758559,0,0,0,0,0,0,0,0,0,0,0,0,1809.88648771611,2282.6511705422599]
["Kern_Greater_Carrizo_Wind","CAISO","CAISO",2024,0,0,0,0,0,163593.973079955,5856814.8623879496,0,0,0,0,0,0,0,0,0,0,0,0,1687.56399250448,896.97821494788195]
["Kern_Greater_Carrizo_Wind","CAISO","CAISO",2026,0,0,0,0,0,163551.53583714299,7383939.1497068498,0,0,0,0,0,0,0,0,0,0,0,0,937.22864476659697,92.281661680366796]
["Kern_Greater_Carrizo_Wind","CAISO","CAISO",2030,0,0,0,0,0,163034.68355163201,12485733.136716001,0,0,0,0,0,0,0,0,0,0,0,0,2405.75222828199,6482.2998610987697]
["Kern_Greater_Carrizo_Wind","CAISO","CAISO",2045,0,0,0,0,0,161901.435753903,10378345.7639552,0,0,0,0,0,0,0,0,0,0,0,0,7504.0664322659504,0]
["Kramer_Inyokern_Ex_Solar","CAISO","CAISO",2020,0,0,0,0,0,0,0,0,0,0,0,0,0,0,0,0,0,0,0,0,0]
["Kramer_Inyokern_Ex_Solar","CAISO","CAISO",2021,0,0,0,0,0,0,0,0,0,0,0,0,0,0,0,0,0,0,0,0,0]
["Kramer_Inyokern_Ex_Solar","CAISO","CAISO",2022,0,0,0,0,0,0,0,0,0,0,0,0,0,0,0,0,0,0,0,0,0]
["Kramer_Inyokern_Ex_Solar","CAISO","CAISO",2023,0,0,0,0,0,0,0,0,0,0,0,0,0,0,0,0,0,0,0,0,0]
["Kramer_Inyokern_Ex_Solar","CAISO","CAISO",2024,0,0,0,0,0,0,0,0,0,0,0,0,0,0,0,0,0,0,0,0,0]
["Kramer_Inyokern_Ex_Solar","CAISO","CAISO",2026,0,0,0,0,0,0,0,0,0,0,0,0,0,0,0,0,0,0,0,0,0]
["Kramer_Inyokern_Ex_Solar","CAISO","CAISO",2030,0,0,0,0,0,0,0,0,0,0,0,0,0,0,0,0,0,0,0,0,0]
["Kramer_Inyokern_Ex_Solar","CAISO","CAISO",2045,0,0,0,0,0,0,0,0,0,0,0,0,0,0,0,0,0,0,0,0,0]
["Kramer_Inyokern_Ex_Wind","CAISO","CAISO",2020,0,0,0,0,0,0,0,0,0,0,0,0,0,0,0,0,0,0,0,0,0]
["Kramer_Inyokern_Ex_Wind","CAISO","CAISO",2021,0,0,0,0,0,0,0,0,0,0,0,0,0,0,0,0,0,0,0,0,0]
["Kramer_Inyokern_Ex_Wind","CAISO","CAISO",2022,0,0,0,0,0,0,0,0,0,0,0,0,0,0,0,0,0,0,0,0,0]
["Kramer_Inyokern_Ex_Wind","CAISO","CAISO",2023,0,0,0,0,0,0,0,0,0,0,0,0,0,0,0,0,0,0,0,0,0]
["Kramer_Inyokern_Ex_Wind","CAISO","CAISO",2024,0,0,0,0,0,0,0,0,0,0,0,0,0,0,0,0,0,0,0,0,0]
["Kramer_Inyokern_Ex_Wind","CAISO","CAISO",2026,0,0,0,0,0,0,0,0,0,0,0,0,0,0,0,0,0,0,0,0,0]
["Kramer_Inyokern_Ex_Wind","CAISO","CAISO",2030,0,0,0,0,0,0,0,0,0,0,0,0,0,0,0,0,0,0,0,0,0]
["Kramer_Inyokern_Ex_Wind","CAISO","CAISO",2045,0,0,0,0,0,0,0,0,0,0,0,0,0,0,0,0,0,0,0,0,0]
["LDWP_Biomass_for_Other","LDWP","LDWP",2020,0,0,0,0,0,0,0,0,0,0,0,0,0,0,0,0,0,0,0,0,0]
["LDWP_Biomass_for_Other","LDWP","LDWP",2021,0,0,0,0,0,0,0,0,0,0,0,0,0,0,0,0,0,0,0,0,0]
["LDWP_Biomass_for_Other","LDWP","LDWP",2022,0,0,0,0,0,0,0,0,0,0,0,0,0,0,0,0,0,0,0,0,0]
["LDWP_Biomass_for_Other","LDWP","LDWP",2023,0,0,0,0,0,0,0,0,0,0,0,0,0,0,0,0,0,0,0,0,0]
["LDWP_Biomass_for_Other","LDWP","LDWP",2024,0,0,0,0,0,0,0,0,0,0,0,0,0,0,0,0,0,0,0,0,0]
["LDWP_Biomass_for_Other","LDWP","LDWP",2026,0,0,0,0,0,0,0,0,0,0,0,0,0,0,0,0,0,0,0,0,0]
["LDWP_Biomass_for_Other","LDWP","LDWP",2030,0,0,0,0,0,0,0,0,0,0,0,0,0,0,0,0,0,0,0,0,0]
["LDWP_Biomass_for_Other","LDWP","LDWP",2045,0,0,0,0,0,0,0,0,0,0,0,0,0,0,0,0,0,0,0,0,0]
["LDWP_CCGT","LDWP","LDWP",2020,1523515.3981335,203759823.924936,0,0,0,5570856.1110470695,206662089.93229401,0,0,0,0,0,0,0,0,0,0,0,0,0,0]
["LDWP_CCGT","LDWP","LDWP",2021,1721434.92713422,233429993.973553,0,0,0,6294566.8491398003,237091095.74898899,0,0,0,0,0,0,0,0,0,0,0,0,0,0]
["LDWP_CCGT","LDWP","LDWP",2022,1741262.36093796,239368055.18284899,0,0,0,6367079.1292935796,243645566.65027401,0,0,0,0,0,0,0,0,0,0,0,0,0,0]
["LDWP_CCGT","LDWP","LDWP",2023,1671356.2933799601,231967172.98597401,0,0,0,6111438.6896706,236378364.225941,0,0,0,0,0,0,0,0,0,0,0,0,0,0]
["LDWP_CCGT","LDWP","LDWP",2024,1763849.5693627701,247759501.30908099,0,0,0,6449673.8582889801,252584587.08447501,0,0,0,0,0,0,0,0,0,0,0,0,0,0]
["LDWP_CCGT","LDWP","LDWP",2026,1925127.62630764,281896119.41268301,0,0,0,7039403.3423660602,283819353.726825,0,0,0,0,0,0,0,0,0,0,0,0,0,0]
["LDWP_CCGT","LDWP","LDWP",2030,1908577.9249440799,293996360.57656097,0,0,0,6978859.3715187199,296368642.207506,0,0,0,0,0,0,0,0,0,0,0,0,0,0]
["LDWP_CCGT","LDWP","LDWP",2045,823257.679453408,166619497.282267,340939.213842789,340939.213842789,0,3010301.5586625501,168123185.26160201,0,0,0,0,0,0,0,0,0,0,0,0,0,0]
["LDWP_Coal","LDWP","LDWP",2020,7245219.2854404598,102500942.52709199,0,0,0,2915888.4522202499,111242401.955823,0,0,0,0,0,0,0,0,0,0,0,0,0,0]
["LDWP_Coal","LDWP","LDWP",2021,5810087.2266773703,84051307.100500599,0,0,0,2338311.9157157601,91990291.177351207,0,0,0,0,0,0,0,0,0,0,0,0,0,0]
["LDWP_Coal","LDWP","LDWP",2022,5542150.0212740703,82273122.764449507,0,0,0,2230478.2786133001,89692261.138701499,0,0,0,0,0,0,0,0,0,0,0,0,0,0]
["LDWP_Coal","LDWP","LDWP",2023,4833553.36761034,73411218.283070996,0,0,0,1945297.84481864,78980063.505028903,0,0,0,0,0,0,0,0,0,0,0,0,0,0]
["LDWP_Coal","LDWP","LDWP",2024,3772848.7702943101,58697868.727759503,0,0,0,1518413.71536076,62734485.174075097,0,0,0,0,0,0,0,0,0,0,0,0,0,0]
["LDWP_Coal","LDWP","LDWP",2026,0,0,0,0,0,0,0,0,0,0,0,0,0,0,0,0,0,0,0,0,0]
["LDWP_Coal","LDWP","LDWP",2030,0,0,0,0,0,0,0,0,0,0,0,0,0,0,0,0,0,0,0,0,0]
["LDWP_Coal","LDWP","LDWP",2045,0,0,0,0,0,0,0,0,0,0,0,0,0,0,0,0,0,0,0,0,0]
["LDWP_Geothermal_for_Other","LDWP","LDWP",2020,0,0,0,0,0,0,0,0,0,0,0,0,0,0,0,0,0,0,0,0,0]
["LDWP_Geothermal_for_Other","LDWP","LDWP",2021,0,0,0,0,0,0,0,0,0,0,0,0,0,0,0,0,0,0,0,0,0]
["LDWP_Geothermal_for_Other","LDWP","LDWP",2022,0,0,0,0,0,0,0,0,0,0,0,0,0,0,0,0,0,0,0,0,0]
["LDWP_Geothermal_for_Other","LDWP","LDWP",2023,0,0,0,0,0,0,0,0,0,0,0,0,0,0,0,0,0,0,0,0,0]
["LDWP_Geothermal_for_Other","LDWP","LDWP",2024,0,0,0,0,0,0,0,0,0,0,0,0,0,0,0,0,0,0,0,0,0]
["LDWP_Geothermal_for_Other","LDWP","LDWP",2026,0,0,0,0,0,0,0,0,0,0,0,0,0,0,0,0,0,0,0,0,0]
["LDWP_Geothermal_for_Other","LDWP","LDWP",2030,0,0,0,0,0,0,0,0,0,0,0,0,0,0,0,0,0,0,0,0,0]
["LDWP_Geothermal_for_Other","LDWP","LDWP",2045,0,0,0,0,0,0,0,0,0,0,0,0,0,0,0,0,0,0,0,0,0]
["LDWP_Hydro","LDWP","LDWP",2020,0,0,0,0,0,102925.04181102,4881413.8034806103,0,0,0,0,0,0,0,0,0,0,0,0,0,0]
["LDWP_Hydro","LDWP","LDWP",2021,0,0,0,0,0,102925.04181102,4975389.5628597196,0,0,0,0,0,0,0,0,0,0,0,0,0,0]
["LDWP_Hydro","LDWP","LDWP",2022,0,0,0,0,0,102925.04181102,5056012.1506892899,0,0,0,0,0,0,0,0,0,0,0,0,0,0]
["LDWP_Hydro","LDWP","LDWP",2023,0,0,0,0,0,102925.04181102,5126329.4776563495,0,0,0,0,0,0,0,0,0,0,0,0,0,0]
["LDWP_Hydro","LDWP","LDWP",2024,0,0,0,0,0,102925.04181102,5043444.4545432497,0,0,0,0,0,0,0,0,0,0,0,0,0,0]
["LDWP_Hydro","LDWP","LDWP",2026,0,0,0,0,0,102925.04181102,4608728.4541518698,0,0,0,0,0,0,0,0,0,0,0,0,0,0]
["LDWP_Hydro","LDWP","LDWP",2030,0,0,0,0,0,102925.232235163,5331464.6627521198,0,0,0,0,0,0,0,0,0,0,0,0,0,0]
["LDWP_Hydro","LDWP","LDWP",2045,0,0,0,0,0,102925.20445758699,5387590.1633414999,0,0,0,0,0,0,0,0,0,0,0,0,0,0]
["LDWP_Nuclear","LDWP","LDWP",2020,5893851.1022459101,24165708.395085,0,0,0,3274182.9529019799,115184178.639553,0,0,0,0,0,0,0,0,0,0,0,0,0,0]
["LDWP_Nuclear","LDWP","LDWP",2021,5893851.1022459101,24165708.395085,0,0,0,3274182.9529019799,116331791.42183299,0,0,0,0,0,0,0,0,0,0,0,0,0,0]
["LDWP_Nuclear","LDWP","LDWP",2022,5893851.1022459101,24165708.395085,0,0,0,3274182.9529019799,115629780.203766,0,0,0,0,0,0,0,0,0,0,0,0,0,0]
["LDWP_Nuclear","LDWP","LDWP",2023,5893851.1022459101,24165708.395085,0,0,0,3274182.9529019799,115227085.88490801,0,0,0,0,0,0,0,0,0,0,0,0,0,0]
["LDWP_Nuclear","LDWP","LDWP",2024,5893851.1022459101,24165708.395085,0,0,0,3274182.9529019799,116040268.51431599,0,0,0,0,0,0,0,0,0,0,0,0,0,0]
["LDWP_Nuclear","LDWP","LDWP",2026,5893851.1022459101,24165708.395085,0,0,0,3274182.9529019799,114847804.953402,0,0,0,0,0,0,0,0,0,0,0,0,0,0]
["LDWP_Nuclear","LDWP","LDWP",2030,5893851.1022459101,24165708.395085,0,0,0,3274182.9529019799,113533529.251449,0,0,0,0,0,0,0,0,0,0,0,0,0,0]
["LDWP_Nuclear","LDWP","LDWP",2045,5893851.1022459101,24165708.395085,0,0,0,3274182.9529019799,126280240.023304,0,0,0,0,0,0,0,0,0,0,0,0,0,0]
["LDWP_Peaker","LDWP","LDWP",2020,0,0,0,0,0,0,0,0,0,0,0,0,0,0,0,0,0,0,0,0,0]
["LDWP_Peaker","LDWP","LDWP",2021,0,0,0,0,0,0,0,0,0,0,0,0,0,0,0,0,0,0,0,0,0]
["LDWP_Peaker","LDWP","LDWP",2022,0,0,0,0,0,0,0,0,0,0,0,0,0,0,0,0,0,0,0,0,0]
["LDWP_Peaker","LDWP","LDWP",2023,0,0,0,0,0,0,0,0,0,0,0,0,0,0,0,0,0,0,0,0,0]
["LDWP_Peaker","LDWP","LDWP",2024,0,0,0,0,0,0,0,0,0,0,0,0,0,0,0,0,0,0,0,0,0]
["LDWP_Peaker","LDWP","LDWP",2026,0,0,0,0,0,0,0,0,0,0,0,0,0,0,0,0,0,0,0,0,0]
["LDWP_Peaker","LDWP","LDWP",2030,0,0,0,0,0,0,0,0,0,0,0,0,0,0,0,0,0,0,0,0,0]
["LDWP_Peaker","LDWP","LDWP",2045,0,0,0,0,0,0,0,0,0,0,0,0,0,0,0,0,0,0,0,0,0]
["LDWP_ST","LDWP","LDWP",2020,0,0,0,0,0,0,0,0,0,0,0,0,0,0,0,0,0,0,0,0,0]
["LDWP_ST","LDWP","LDWP",2021,0,0,0,0,0,0,0,0,0,0,0,0,0,0,0,0,0,0,0,0,0]
["LDWP_ST","LDWP","LDWP",2022,0,0,0,0,0,0,0,0,0,0,0,0,0,0,0,0,0,0,0,0,0]
["LDWP_ST","LDWP","LDWP",2023,0,0,0,0,0,0,0,0,0,0,0,0,0,0,0,0,0,0,0,0,0]
["LDWP_ST","LDWP","LDWP",2024,0,0,0,0,0,0,0,0,0,0,0,0,0,0,0,0,0,0,0,0,0]
["LDWP_ST","LDWP","LDWP",2026,0,0,0,0,0,0,0,0,0,0,0,0,0,0,0,0,0,0,0,0,0]
["LDWP_ST","LDWP","LDWP",2030,0,0,0,0,0,0,0,0,0,0,0,0,0,0,0,0,0,0,0,0,0]
["LDWP_ST","LDWP","LDWP",2045,0,0,0,0,0,0,0,0,0,0,0,0,0,0,0,0,0,0,0,0,0]
["LDWP_Small_Hydro_for_Other","LDWP","LDWP",2020,0,0,0,0,0,490559.99999999901,17262309.502635799,0,0,0,0,0,0,0,0,0,0,0,0,0,0]
["LDWP_Small_Hydro_for_Other","LDWP","LDWP",2021,0,0,0,0,0,490559.99999999901,17420919.122776698,0,0,0,0,0,0,0,0,0,0,0,0,0,0]
["LDWP_Small_Hydro_for_Other","LDWP","LDWP",2022,0,0,0,0,0,490559.99999999901,17289975.191355798,0,0,0,0,0,0,0,0,0,0,0,0,0,0]
["LDWP_Small_Hydro_for_Other","LDWP","LDWP",2023,0,0,0,0,0,490559.99999999901,17228168.8563575,0,0,0,0,0,0,0,0,0,0,0,0,0,0]
["LDWP_Small_Hydro_for_Other","LDWP","LDWP",2024,0,0,0,0,0,490559.99999999901,17337218.653833799,0,0,0,0,0,0,0,0,0,0,0,0,0,0]
["LDWP_Small_Hydro_for_Other","LDWP","LDWP",2026,0,0,0,0,0,490559.99999999901,17147781.245989598,0,0,0,0,0,0,0,0,0,0,0,0,0,0]
["LDWP_Small_Hydro_for_Other","LDWP","LDWP",2030,0,0,0,0,0,490559.99999999901,16990336.6386896,0,0,0,0,0,0,0,0,0,0,0,0,0,0]
["LDWP_Small_Hydro_for_Other","LDWP","LDWP",2045,0,0,0,0,0,490559.99999999901,18810129.982741401,0,0,0,0,0,0,0,0,0,0,0,0,0,0]
["LDWP_Solar_for_Other","LDWP","LDWP",2020,0,0,0,0,0,6271761.6455220804,196056086.954786,0,0,0,0,0,0,0,0,0,0,0,0,0,0]
["LDWP_Solar_for_Other","LDWP","LDWP",2021,0,0,0,0,0,6892349.1284064697,213734455.56079701,0,0,0,0,0,0,0,0,0,0,0,0,0,0]
["LDWP_Solar_for_Other","LDWP","LDWP",2022,0,0,0,0,0,7532642.8363824803,223335608.07647699,0,0,0,0,0,0,0,0,0,0,0,0,0,0]
["LDWP_Solar_for_Other","LDWP","LDWP",2023,0,0,0,0,0,8059783.8996027997,229786711.44014201,0,0,0,0,0,0,0,0,0,0,0,0,0,0]
["LDWP_Solar_for_Other","LDWP","LDWP",2024,0,0,0,0,0,8636693.3683847897,242195256.48349199,0,0,0,0,0,0,0,0,0,0,0,0,0,0]
["LDWP_Solar_for_Other","LDWP","LDWP",2026,0,0,0,0,0,9002012.3921262491,238629493.469993,0,0,0,0,0,0,0,0,0,0,0,0,0,0]
["LDWP_Solar_for_Other","LDWP","LDWP",2030,0,0,0,0,900819.13317357295,8971985.1348959394,199983868.85569701,0,0,0,0,0,0,0,0,0,0,0,0,0,0]
["LDWP_Solar_for_Other","LDWP","LDWP",2045,0,0,0,0,2828281.0482676299,8907736.2153999805,211827220.44503,0,0,0,0,0,0,0,0,0,0,0,0,0,0]
["LDWP_Wind_for_CAISO","LDWP","CAISO",2020,0,0,0,0,0,13177.7228666632,456384.15847175202,0,0,0,0,0,0,0,0,0,0,0,0,0,0]
["LDWP_Wind_for_CAISO","LDWP","CAISO",2021,0,0,0,0,0,13175.4374764317,458702.342130751,0,0,0,0,0,0,0,0,0,0,0,0,0,0]
["LDWP_Wind_for_CAISO","LDWP","CAISO",2022,0,0,0,0,0,13169.981445997601,452525.62933654699,0,0,0,0,0,0,0,0,0,0,0,0,0,0]
["LDWP_Wind_for_CAISO","LDWP","CAISO",2023,0,0,0,0,0,13173.0165887556,450392.94315607997,0,0,0,0,0,0,0,0,0,0,0,0,0,0]
["LDWP_Wind_for_CAISO","LDWP","CAISO",2024,0,0,0,0,0,13143.4027284483,453872.45371787302,0,0,0,0,0,0,0,0,0,0,0,0,0,0]
["LDWP_Wind_for_CAISO","LDWP","CAISO",2026,0,0,0,0,0,12162.144198137399,443665.41727395903,0,0,0,0,0,0,0,0,0,0,0,0,0,0]
["LDWP_Wind_for_CAISO","LDWP","CAISO",2030,0,0,0,0,0,12053.646140252,454098.27129392303,0,0,0,0,0,0,0,0,0,0,0,0,0,0]
["LDWP_Wind_for_CAISO","LDWP","CAISO",2045,0,0,0,0,0,12545.233173316499,462193.847722615,0,0,0,0,0,0,0,0,0,0,0,0,0,0]
["LDWP_Wind_for_Other","LDWP","LDWP",2020,0,0,0,0,0,1085495.3651292899,37532288.2019585,0,0,0,0,0,0,0,0,0,0,0,0,0,0]
["LDWP_Wind_for_Other","LDWP","LDWP",2021,0,0,0,0,0,1085495.3651292899,37714456.160877898,0,0,0,0,0,0,0,0,0,0,0,0,0,0]
["LDWP_Wind_for_Other","LDWP","LDWP",2022,0,0,0,0,0,1085495.3651292899,37202238.077284597,0,0,0,0,0,0,0,0,0,0,0,0,0,0]
["LDWP_Wind_for_Other","LDWP","LDWP",2023,0,0,0,0,0,1085495.3651292899,37026776.9517067,0,0,0,0,0,0,0,0,0,0,0,0,0,0]
["LDWP_Wind_for_Other","LDWP","LDWP",2024,0,0,0,0,0,1085495.3651292899,37298949.677336998,0,0,0,0,0,0,0,0,0,0,0,0,0,0]
["LDWP_Wind_for_Other","LDWP","LDWP",2026,0,0,0,0,0,1828573.8561118799,61101781.4194021,0,0,0,0,0,0,0,0,0,0,0,0,0,0]
["LDWP_Wind_for_Other","LDWP","LDWP",2030,0,0,0,0,53677.348793430298,1826784.60332336,60515869.142499499,0,0,0,0,0,0,0,0,0,0,0,0,0,0]
["LDWP_Wind_for_Other","LDWP","LDWP",2045,0,0,0,0,98743.067166487395,1825282.4154208701,62149736.763815001,0,0,0,0,0,0,0,0,0,0,0,0,0,0]
["Morro_Bay_Offshore_Wind","CAISO","CAISO",2020,0,0,0,0,0,0,0,0,0,0,0,0,0,0,0,0,0,0,0,0,0]
["Morro_Bay_Offshore_Wind","CAISO","CAISO",2021,0,0,0,0,0,0,0,0,0,0,0,0,0,0,0,0,0,0,0,0,0]
["Morro_Bay_Offshore_Wind","CAISO","CAISO",2022,0,0,0,0,0,0,0,0,0,0,0,0,0,0,0,0,0,0,0,0,0]
["Morro_Bay_Offshore_Wind","CAISO","CAISO",2023,0,0,0,0,0,0,0,0,0,0,0,0,0,0,0,0,0,0,0,0,0]
["Morro_Bay_Offshore_Wind","CAISO","CAISO",2024,0,0,0,0,0,0,0,0,0,0,0,0,0,0,0,0,0,0,0,0,0]
["Morro_Bay_Offshore_Wind","CAISO","CAISO",2026,0,0,0,0,0,0,0,0,0,0,0,0,0,0,0,0,0,0,0,0,0]
["Morro_Bay_Offshore_Wind","CAISO","CAISO",2030,0,0,0,0,0,0,0,0,0,0,0,0,0,0,0,0,0,0,0,0,0]
["Morro_Bay_Offshore_Wind","CAISO","CAISO",2045,0,0,0,0,0,0,0,0,0,0,0,0,0,0,0,0,0,0,0,0,0]
["Mountain_Pass_El_Dorado_Solar","CAISO","CAISO",2020,0,0,0,0,0,0,0,0,0,0,0,0,0,0,0,0,0,0,0,0,0]
["Mountain_Pass_El_Dorado_Solar","CAISO","CAISO",2021,0,0,0,0,0,0,0,0,0,0,0,0,0,0,0,0,0,0,0,0,0]
["Mountain_Pass_El_Dorado_Solar","CAISO","CAISO",2022,0,0,0,0,0,0,0,0,0,0,0,0,0,0,0,0,0,0,0,0,0]
["Mountain_Pass_El_Dorado_Solar","CAISO","CAISO",2023,0,0,0,0,0,178149.23221779699,4912054.33030809,0,0,0,0,0,0,0,0,0,0,0,0,4116.3894889532103,2257.2294280571]
["Mountain_Pass_El_Dorado_Solar","CAISO","CAISO",2024,0,0,0,0,0,662729.37426575704,18400757.557156298,0,0,0,0,0,0,0,0,0,0,0,0,12313.8152211825,4482.9427519938199]
["Mountain_Pass_El_Dorado_Solar","CAISO","CAISO",2026,0,0,0,0,0,657447.15110005101,24992689.886319298,0,0,0,0,0,0,0,0,0,0,0,0,4787.2502996769099,3261.6109886383301]
["Mountain_Pass_El_Dorado_Solar","CAISO","CAISO",2030,0,0,0,0,0,652604.61837144895,30597222.821247999,0,0,0,0,0,0,0,0,0,0,0,0,20435.263545665599,11425.9491156436]
["Mountain_Pass_El_Dorado_Solar","CAISO","CAISO",2045,0,0,0,0,0,630628.98245671601,39072448.6919071,0,0,0,0,0,0,0,0,0,0,0,0,37560.833340650599,0]
["NW_Biomass_for_CAISO","NW","CAISO",2020,534184.80000000203,0,0,0,0,344618.4,8936816.3054642193,0,0,0,0,0,0,0,0,0,0,0,0,0,0]
["NW_Biomass_for_CAISO","NW","CAISO",2021,534184.80000000203,0,0,0,0,344618.4,9215969.9153353199,0,0,0,0,0,0,0,0,0,0,0,0,0,0]
["NW_Biomass_for_CAISO","NW","CAISO",2022,534184.80000000203,0,0,0,0,344618.4,9280426.9611405693,0,0,0,0,0,0,0,0,0,0,0,0,0,0]
["NW_Biomass_for_CAISO","NW","CAISO",2023,534184.80000000203,0,0,0,0,344618.4,9284588.8944985792,0,0,0,0,0,0,0,0,0,0,0,0,0,0]
["NW_Biomass_for_CAISO","NW","CAISO",2024,534184.80000000203,0,0,0,0,344618.4,9429151.8606448993,0,0,0,0,0,0,0,0,0,0,0,0,0,0]
["NW_Biomass_for_CAISO","NW","CAISO",2026,534184.80000000203,0,0,0,0,344618.4,9474289.1972113606,0,0,0,0,0,0,0,0,0,0,0,0,0,0]
["NW_Biomass_for_CAISO","NW","CAISO",2030,534184.80000000203,0,0,0,0,344618.4,9511199.0266329907,0,0,0,0,0,0,0,0,0,0,0,0,0,0]
["NW_Biomass_for_CAISO","NW","CAISO",2045,534184.80000000203,0,0,0,0,344618.4,10387278.377728499,0,0,0,0,0,0,0,0,0,0,0,0,0,0]
["NW_Biomass_for_Other","NW","NW",2020,8032744.8000000296,0,0,0,0,5182415.9999999804,134392997.618521,0,0,0,0,0,0,0,0,0,0,0,0,0,0]
["NW_Biomass_for_Other","NW","NW",2021,7930953.5999999903,0,0,0,0,5116716,136833961.04594201,0,0,0,0,0,0,0,0,0,0,0,0,0,0]
["NW_Biomass_for_Other","NW","NW",2022,7930953.5999999903,0,0,0,0,5116716,137790985.96853599,0,0,0,0,0,0,0,0,0,0,0,0,0,0]
["NW_Biomass_for_Other","NW","NW",2023,7930953.5999999903,0,0,0,0,5116716,137852780.205304,0,0,0,0,0,0,0,0,0,0,0,0,0,0]
["NW_Biomass_for_Other","NW","NW",2024,7930953.5999999903,0,0,0,0,5116716,139999176.45660099,0,0,0,0,0,0,0,0,0,0,0,0,0,0]
["NW_Biomass_for_Other","NW","NW",2026,7930953.5999999903,0,0,0,0,5116716,140669352.31548399,0,0,0,0,0,0,0,0,0,0,0,0,0,0]
["NW_Biomass_for_Other","NW","NW",2030,7387833.5999999996,0,0,0,0,4766316,131546603.721174,0,0,0,0,0,0,0,0,0,0,0,0,0,0]
["NW_Biomass_for_Other","NW","NW",2045,7387833.5999999996,0,0,0,0,4766316,143663400.23696199,0,0,0,0,0,0,0,0,0,0,0,0,0,0]
["NW_CCGT","NW","NW",2020,926820.70044259005,121482601.030286,0,0,0,3702073.6639730898,122416787.973248,0,0,0,0,0,0,0,0,0,0,0,0,0,0]
["NW_CCGT","NW","NW",2021,1745766.5498742601,228296574.517203,0,0,0,6973275.2554158801,230027414.357173,0,0,0,0,0,0,0,0,0,0,0,0,0,0]
["NW_CCGT","NW","NW",2022,2254963.07099185,294602317.57280201,0,0,0,9007188.8820400499,296833354.58839703,0,0,0,0,0,0,0,0,0,0,0,0,0,0]
["NW_CCGT","NW","NW",2023,2386548.6973234802,312430551.22844797,0,0,0,9532809.9424634203,314838717.89870298,0,0,0,0,0,0,0,0,0,0,0,0,0,0]
["NW_CCGT","NW","NW",2024,2542694.7270593699,333432269.20207798,0,0,0,10156472.006860601,335978207.44669503,0,0,0,0,0,0,0,0,0,0,0,0,0,0]
["NW_CCGT","NW","NW",2026,3214539.9300960698,421980894.136289,0,0,0,12840102.0259676,425200601.39589697,0,0,0,0,0,0,0,0,0,0,0,0,0,0]
["NW_CCGT","NW","NW",2030,3755408.0625817101,500473026.72099698,0,0,0,15000550.886290001,504256792.001908,0,0,0,0,0,0,0,0,0,0,0,0,0,0]
["NW_CCGT","NW","NW",2045,6738995.7917048503,901521512.79472303,0,0,0,26918142.754620999,1063205284.46943,0,0,0,0,0,0,0,0,0,0,0,0,0,0]
["NW_Coal","NW","NW",2020,175216629.46665701,1511835541.8289599,0,0,0,70517266.5615284,1961273983.0492401,0,0,0,0,0,0,0,0,0,0,0,0,0,0]
["NW_Coal","NW","NW",2021,158881721.88186601,1370016592.2313001,0,0,0,63943144.909915999,1836352863.95208,0,0,0,0,0,0,0,0,0,0,0,0,0,0]
["NW_Coal","NW","NW",2022,148435080.913057,1280142718.87767,0,0,0,59738829.063548602,1747962072.0246401,0,0,0,0,0,0,0,0,0,0,0,0,0,0]
["NW_Coal","NW","NW",2023,148129748.19135699,1277659697.3948901,0,0,0,59615944.082111098,1751569827.9079599,0,0,0,0,0,0,0,0,0,0,0,0,0,0]
["NW_Coal","NW","NW",2024,148943926.81533301,1284499557.45894,0,0,0,59943617.1575884,1777172037.34828,0,0,0,0,0,0,0,0,0,0,0,0,0,0]
["NW_Coal","NW","NW",2026,138532866.84669799,1193622472.07304,0,0,0,55753596.804516397,1706423284.8250599,0,0,0,0,0,0,0,0,0,0,0,0,0,0]
["NW_Coal","NW","NW",2030,124341931.291071,1071217966.34111,0,0,0,50042352.874796502,1585302480.2590899,0,0,0,0,0,0,0,0,0,0,0,0,0,0]
["NW_Coal","NW","NW",2045,122076537.45619,1051773095.88801,0,0,0,49130627.6330828,1730338861.4602399,0,0,0,0,0,0,0,0,0,0,0,0,0,0]
["NW_Ext_Tx_Wind","CAISO","CAISO",2020,0,0,0,0,0,0,0,0,0,0,0,0,0,0,0,0,0,0,0,0,0]
["NW_Ext_Tx_Wind","CAISO","CAISO",2021,0,0,0,0,0,0,0,0,0,0,0,0,0,0,0,0,0,0,0,0,0]
["NW_Ext_Tx_Wind","CAISO","CAISO",2022,0,0,0,0,0,1641890.10181286,57531288.504705101,0,0,0,0,0,0,0,0,0,0,0,0,7901.5387230684,0]
["NW_Ext_Tx_Wind","CAISO","CAISO",2023,0,0,0,0,0,1635269.5711240601,57289529.655137703,0,0,0,0,0,0,0,0,0,0,0,0,12496.067722444701,3298.3844747936901]
["NW_Ext_Tx_Wind","CAISO","CAISO",2024,0,0,0,0,0,1637007.6879022,58118666.209927604,0,0,0,0,0,0,0,0,0,0,0,0,11471.4059597206,8042.49753300883]
["NW_Ext_Tx_Wind","CAISO","CAISO",2026,0,0,0,0,0,1636540.1649321599,75203018.057157606,0,0,0,0,0,0,0,0,0,0,0,0,5664.7277310239397,4859.1752392339304]
["NW_Ext_Tx_Wind","CAISO","CAISO",2030,0,0,0,0,0,3932350.9103337098,308227987.21530902,0,0,0,0,0,0,0,0,0,0,0,0,45965.252700211,43276.138544331603]
["NW_Ext_Tx_Wind","CAISO","CAISO",2045,0,0,0,0,0,3789320.69035231,559976202.71732104,0,0,0,0,0,0,0,0,0,0,0,0,116221.275139941,0]
["NW_Geothermal_for_CAISO","NW","CAISO",2020,0,0,0,0,0,0,0,0,0,0,0,0,0,0,0,0,0,0,0,0,0]
["NW_Geothermal_for_CAISO","NW","CAISO",2021,0,0,0,0,0,0,0,0,0,0,0,0,0,0,0,0,0,0,0,0,0]
["NW_Geothermal_for_CAISO","NW","CAISO",2022,0,0,0,0,0,0,0,0,0,0,0,0,0,0,0,0,0,0,0,0,0]
["NW_Geothermal_for_CAISO","NW","CAISO",2023,0,0,0,0,0,0,0,0,0,0,0,0,0,0,0,0,0,0,0,0,0]
["NW_Geothermal_for_CAISO","NW","CAISO",2024,0,0,0,0,0,0,0,0,0,0,0,0,0,0,0,0,0,0,0,0,0]
["NW_Geothermal_for_CAISO","NW","CAISO",2026,0,0,0,0,0,0,0,0,0,0,0,0,0,0,0,0,0,0,0,0,0]
["NW_Geothermal_for_CAISO","NW","CAISO",2030,0,0,0,0,0,0,0,0,0,0,0,0,0,0,0,0,0,0,0,0,0]
["NW_Geothermal_for_CAISO","NW","CAISO",2045,0,0,0,0,0,0,0,0,0,0,0,0,0,0,0,0,0,0,0,0,0]
["NW_Geothermal_for_Other","NW","NW",2020,1356748.8,0,0,0,0,1244708.3999999899,32278399.309695199,0,0,0,0,0,0,0,0,0,0,0,0,0,0]
["NW_Geothermal_for_Other","NW","NW",2021,1356748.8,0,0,0,0,1244708.3999999899,33286659.005338099,0,0,0,0,0,0,0,0,0,0,0,0,0,0]
["NW_Geothermal_for_Other","NW","NW",2022,1356748.8,0,0,0,0,1244708.3999999899,33519467.892945401,0,0,0,0,0,0,0,0,0,0,0,0,0,0]
["NW_Geothermal_for_Other","NW","NW",2023,1356748.8,0,0,0,0,1244708.3999999899,33534500.153007399,0,0,0,0,0,0,0,0,0,0,0,0,0,0]
["NW_Geothermal_for_Other","NW","NW",2024,1356748.8,0,0,0,0,1244708.3999999899,34056639.244510397,0,0,0,0,0,0,0,0,0,0,0,0,0,0]
["NW_Geothermal_for_Other","NW","NW",2026,1356748.8,0,0,0,0,1244708.3999999899,34219668.328209601,0,0,0,0,0,0,0,0,0,0,0,0,0,0]
["NW_Geothermal_for_Other","NW","NW",2030,1356748.8,0,0,0,0,1244708.3999999899,34352980.927663699,0,0,0,0,0,0,0,0,0,0,0,0,0,0]
["NW_Geothermal_for_Other","NW","NW",2045,1261264.79999998,0,0,0,0,1157108.3999999899,34876858.182871401,0,0,0,0,0,0,0,0,0,0,0,0,0,0]
["NW_Hydro","NW","NW",2020,0,0,0,0,0,131358624.41500799,3359415834.24084,0,0,0,0,0,0,0,0,0,0,0,0,0,0]
["NW_Hydro","NW","NW",2021,0,0,0,0,0,131358625.227745,3458480776.3350101,0,0,0,0,0,0,0,0,0,0,0,0,0,0]
["NW_Hydro","NW","NW",2022,0,0,0,0,0,131358625.591389,3480226046.89113,0,0,0,0,0,0,0,0,0,0,0,0,0,0]
["NW_Hydro","NW","NW",2023,0,0,0,0,0,131358626.440304,3479372615.1300502,0,0,0,0,0,0,0,0,0,0,0,0,0,0]
["NW_Hydro","NW","NW",2024,0,0,0,0,0,131358626.54002,3532369120.0893798,0,0,0,0,0,0,0,0,0,0,0,0,0,0]
["NW_Hydro","NW","NW",2026,0,0,0,0,0,131358625.05992,3474884822.0851998,0,0,0,0,0,0,0,0,0,0,0,0,0,0]
["NW_Hydro","NW","NW",2030,0,0,0,0,0,130595253.586417,3451986352.2328401,0,0,0,0,0,0,0,0,0,0,0,0,0,0]
["NW_Hydro","NW","NW",2045,0,0,0,0,0,130563955.301815,3750181940.3871298,0,0,0,0,0,0,0,0,0,0,0,0,0,0]
["NW_Hydro_for_CAISO","CAISO_NW_Hydro","CAISO_NW_Hydro",2020,0,0,0,0,0,11900493.6063779,365433194.01176798,0,0,0,0,0,0,0,0,0,0,0,0,0,0]
["NW_Hydro_for_CAISO","CAISO_NW_Hydro","CAISO_NW_Hydro",2021,0,0,0,0,0,11900492.793045901,375000125.729864,0,0,0,0,0,0,0,0,0,0,0,0,0,0]
["NW_Hydro_for_CAISO","CAISO_NW_Hydro","CAISO_NW_Hydro",2022,0,0,0,0,0,11900494.0332544,377188852.549474,0,0,0,0,0,0,0,0,0,0,0,0,0,0]
["NW_Hydro_for_CAISO","CAISO_NW_Hydro","CAISO_NW_Hydro",2023,0,0,0,0,0,11900493.693271101,380131643.405994,0,0,0,0,0,0,0,0,0,0,0,0,0,0]
["NW_Hydro_for_CAISO","CAISO_NW_Hydro","CAISO_NW_Hydro",2024,0,0,0,0,0,11900493.135400601,386171464.18388402,0,0,0,0,0,0,0,0,0,0,0,0,0,0]
["NW_Hydro_for_CAISO","CAISO_NW_Hydro","CAISO_NW_Hydro",2026,0,0,0,0,0,11900493.377739999,513706917.38581502,0,0,0,0,0,0,0,0,0,0,0,0,0,0]
["NW_Hydro_for_CAISO","CAISO_NW_Hydro","CAISO_NW_Hydro",2030,0,0,0,0,0,11900493.098994499,957947260.07468998,0,0,0,0,0,0,0,0,0,0,0,0,0,0]
["NW_Hydro_for_CAISO","CAISO_NW_Hydro","CAISO_NW_Hydro",2045,0,0,0,0,0,11900493.9074152,1807992724.6988299,0,0,0,0,0,0,0,0,0,0,0,0,0,0]
["NW_Nuclear","NW","NW",2020,16913094.9057469,71734667.033248797,0,0,0,9395628.4730803408,249522379.01168099,0,0,0,0,0,0,0,0,0,0,0,0,0,0]
["NW_Nuclear","NW","NW",2021,16913094.9057469,71734667.033248797,0,0,0,9395628.4730803408,257958627.314612,0,0,0,0,0,0,0,0,0,0,0,0,0,0]
["NW_Nuclear","NW","NW",2022,16913094.9057469,71734667.033248797,0,0,0,9395628.4730803408,260784952.19431201,0,0,0,0,0,0,0,0,0,0,0,0,0,0]
["NW_Nuclear","NW","NW",2023,16913094.9057469,71734667.033248797,0,0,0,9395628.4730803408,261251189.30326599,0,0,0,0,0,0,0,0,0,0,0,0,0,0]
["NW_Nuclear","NW","NW",2024,16913094.9057469,71734667.033248797,0,0,0,9395628.4730803408,264375840.569051,0,0,0,0,0,0,0,0,0,0,0,0,0,0]
["NW_Nuclear","NW","NW",2026,16913094.9057469,71734667.033248797,0,0,0,9395628.4730803408,269299363.43495798,0,0,0,0,0,0,0,0,0,0,0,0,0,0]
["NW_Nuclear","NW","NW",2030,25392127.623342101,107697672.438492,0,0,0,14105970.2142512,410890423.20769697,0,0,0,0,0,0,0,0,0,0,0,0,0,0]
["NW_Nuclear","NW","NW",2045,25392127.623342101,107697672.438492,0,0,0,14105970.2142512,451732182.64184803,0,0,0,0,0,0,0,0,0,0,0,0,0,0]
["NW_Peaker","NW","NW",2020,0,0,0,0,0,0,0,0,0,0,0,0,0,0,0,0,0,0,0,0,0]
["NW_Peaker","NW","NW",2021,0,0,0,0,0,0,0,0,0,0,0,0,0,0,0,0,0,0,0,0,0]
["NW_Peaker","NW","NW",2022,0,0,0,0,0,0,0,0,0,0,0,0,0,0,0,0,0,0,0,0,0]
["NW_Peaker","NW","NW",2023,0,0,0,0,0,0,0,0,0,0,0,0,0,0,0,0,0,0,0,0,0]
["NW_Peaker","NW","NW",2024,0,0,0,0,0,0,0,0,0,0,0,0,0,0,0,0,0,0,0,0,0]
["NW_Peaker","NW","NW",2026,0,0,0,0,0,0,0,0,0,0,0,0,0,0,0,0,0,0,0,0,0]
["NW_Peaker","NW","NW",2030,0,0,0,0,0,0,0,0,0,0,0,0,0,0,0,0,0,0,0,0,0]
["NW_Peaker","NW","NW",2045,1785742.1193319999,61688021.936770096,0,0,0,1275205.9963946301,63479754.500524797,0,0,0,0,0,0,0,0,0,0,0,0,0,0]
["NW_Small_Hydro_for_CAISO","NW","CAISO",2020,0,0,0,0,0,30221.999999999902,783731.98408366705,0,0,0,0,0,0,0,0,0,0,0,0,0,0]
["NW_Small_Hydro_for_CAISO","NW","CAISO",2021,0,0,0,0,0,30221.999999999902,808212.91835045395,0,0,0,0,0,0,0,0,0,0,0,0,0,0]
["NW_Small_Hydro_for_CAISO","NW","CAISO",2022,0,0,0,0,0,30221.999999999902,813865.60792920995,0,0,0,0,0,0,0,0,0,0,0,0,0,0]
["NW_Small_Hydro_for_CAISO","NW","CAISO",2023,0,0,0,0,0,30221.999999999902,814230.59700102604,0,0,0,0,0,0,0,0,0,0,0,0,0,0]
["NW_Small_Hydro_for_CAISO","NW","CAISO",2024,0,0,0,0,0,30221.999999999902,826908.33551664802,0,0,0,0,0,0,0,0,0,0,0,0,0,0]
["NW_Small_Hydro_for_CAISO","NW","CAISO",2026,0,0,0,0,0,30221.999999999902,830866.74454446195,0,0,0,0,0,0,0,0,0,0,0,0,0,0]
["NW_Small_Hydro_for_CAISO","NW","CAISO",2030,0,0,0,0,0,30221.999999999902,834103.62587401504,0,0,0,0,0,0,0,0,0,0,0,0,0,0]
["NW_Small_Hydro_for_CAISO","NW","CAISO",2045,0,0,0,0,0,30221.999999999902,910933.15717243403,0,0,0,0,0,0,0,0,0,0,0,0,0,0]
["NW_Small_Hydro_for_Other","NW","NW",2020,0,0,0,0,0,359159.99999999901,9313916.3325885106,0,0,0,0,0,0,0,0,0,0,0,0,0,0]
["NW_Small_Hydro_for_Other","NW","NW",2021,0,0,0,0,0,359159.99999999901,9604849.1745996401,0,0,0,0,0,0,0,0,0,0,0,0,0,0]
["NW_Small_Hydro_for_Other","NW","NW",2022,0,0,0,0,0,359159.99999999901,9672026.0652456805,0,0,0,0,0,0,0,0,0,0,0,0,0,0]
["NW_Small_Hydro_for_Other","NW","NW",2023,0,0,0,0,0,359159.99999999901,9676363.6165339593,0,0,0,0,0,0,0,0,0,0,0,0,0,0]
["NW_Small_Hydro_for_Other","NW","NW",2024,0,0,0,0,0,359159.99999999901,9827026.5959949307,0,0,0,0,0,0,0,0,0,0,0,0,0,0]
["NW_Small_Hydro_for_Other","NW","NW",2026,0,0,0,0,0,359159.99999999901,9874068.5583544206,0,0,0,0,0,0,0,0,0,0,0,0,0,0]
["NW_Small_Hydro_for_Other","NW","NW",2030,0,0,0,0,0,359159.99999999901,9912535.8437201101,0,0,0,0,0,0,0,0,0,0,0,0,0,0]
["NW_Small_Hydro_for_Other","NW","NW",2045,0,0,0,0,0,359159.99999999901,10825582.447556401,0,0,0,0,0,0,0,0,0,0,0,0,0,0]
["NW_Solar_for_Other","NW","NW",2020,0,0,0,0,0,5522715.8352812799,128193379.167153,0,0,0,0,0,0,0,0,0,0,0,0,0,0]
["NW_Solar_for_Other","NW","NW",2021,0,0,0,0,0,5522715.8352812799,131669070.592254,0,0,0,0,0,0,0,0,0,0,0,0,0,0]
["NW_Solar_for_Other","NW","NW",2022,0,0,0,0,0,5522715.8352812799,131354963.042024,0,0,0,0,0,0,0,0,0,0,0,0,0,0]
["NW_Solar_for_Other","NW","NW",2023,0,0,0,0,0,5522715.8352812799,130607509.890452,0,0,0,0,0,0,0,0,0,0,0,0,0,0]
["NW_Solar_for_Other","NW","NW",2024,0,0,0,0,0,5522715.8352812799,134707552.08294901,0,0,0,0,0,0,0,0,0,0,0,0,0,0]
["NW_Solar_for_Other","NW","NW",2026,0,0,0,0,0,5522715.8352812799,135113134.89781299,0,0,0,0,0,0,0,0,0,0,0,0,0,0]
["NW_Solar_for_Other","NW","NW",2030,0,0,0,0,6579192.0384116396,5292554.5906019304,133379838.62183,0,0,0,0,0,0,0,0,0,0,0,0,0,0]
["NW_Solar_for_Other","NW","NW",2045,0,0,0,0,147086.17062897101,5504678.9314000905,136501251.31478801,0,0,0,0,0,0,0,0,0,0,0,0,0,0]
["NW_Wind_for_CAISO","NW","CAISO",2020,0,0,0,0,0,3300620.8064258802,74606163.448963493,0,0,0,0,0,0,0,0,0,0,0,0,0,0]
["NW_Wind_for_CAISO","NW","CAISO",2021,0,0,0,0,0,2993949.49884737,76932801.981468797,0,0,0,0,0,0,0,0,0,0,0,0,0,0]
["NW_Wind_for_CAISO","NW","CAISO",2022,0,0,0,0,0,2976258.3664028998,75675272.905256197,0,0,0,0,0,0,0,0,0,0,0,0,0,0]
["NW_Wind_for_CAISO","NW","CAISO",2023,0,0,0,0,0,2976627.39639804,76174062.147048801,0,0,0,0,0,0,0,0,0,0,0,0,0,0]
["NW_Wind_for_CAISO","NW","CAISO",2024,0,0,0,0,0,3008234.2798009599,77376636.493340507,0,0,0,0,0,0,0,0,0,0,0,0,0,0]
["NW_Wind_for_CAISO","NW","CAISO",2026,0,0,0,0,0,2921461.7677353201,78927992.254839703,0,0,0,0,0,0,0,0,0,0,0,0,0,0]
["NW_Wind_for_CAISO","NW","CAISO",2030,0,0,0,0,0,2863267.4442730299,83364105.066406906,0,0,0,0,0,0,0,0,0,0,0,0,0,0]
["NW_Wind_for_CAISO","NW","CAISO",2045,0,0,0,0,0,2798865.0554467998,87539469.628296003,0,0,0,0,0,0,0,0,0,0,0,0,0,0]
["NW_Wind_for_Other","NW","NW",2020,0,0,0,0,0,28171682.3568171,638409794.14615202,0,0,0,0,0,0,0,0,0,0,0,0,0,0]
["NW_Wind_for_Other","NW","NW",2021,0,0,0,0,0,28171682.3568171,658218223.03044105,0,0,0,0,0,0,0,0,0,0,0,0,0,0]
["NW_Wind_for_Other","NW","NW",2022,0,0,0,0,0,28168370.226054002,648181927.40998805,0,0,0,0,0,0,0,0,0,0,0,0,0,0]
["NW_Wind_for_Other","NW","NW",2023,0,0,0,0,0,28168370.226054002,645708223.32845902,0,0,0,0,0,0,0,0,0,0,0,0,0,0]
["NW_Wind_for_Other","NW","NW",2024,0,0,0,0,0,28168370.226054002,661281269.49367702,0,0,0,0,0,0,0,0,0,0,0,0,0,0]
["NW_Wind_for_Other","NW","NW",2026,0,0,0,0,0,28168370.226054002,640728116.68341696,0,0,0,0,0,0,0,0,0,0,0,0,0,0]
["NW_Wind_for_Other","NW","NW",2030,0,0,0,0,1390338.7924549,27864725.0653213,627418761.91206002,0,0,0,0,0,0,0,0,0,0,0,0,0,0]
["NW_Wind_for_Other","NW","NW",2045,0,0,0,0,368936.95861800498,27898771.699935,672252008.29087996,0,0,0,0,0,0,0,0,0,0,0,0,0,0]
["New_Mexico_Solar","CAISO","CAISO",2020,0,0,0,0,0,0,0,0,0,0,0,0,0,0,0,0,0,0,0,0,0]
["New_Mexico_Solar","CAISO","CAISO",2021,0,0,0,0,0,0,0,0,0,0,0,0,0,0,0,0,0,0,0,0,0]
["New_Mexico_Solar","CAISO","CAISO",2022,0,0,0,0,0,0,0,0,0,0,0,0,0,0,0,0,0,0,0,0,0]
["New_Mexico_Solar","CAISO","CAISO",2023,0,0,0,0,0,0,0,0,0,0,0,0,0,0,0,0,0,0,0,0,0]
["New_Mexico_Solar","CAISO","CAISO",2024,0,0,0,0,0,0,0,0,0,0,0,0,0,0,0,0,0,0,0,0,0]
["New_Mexico_Solar","CAISO","CAISO",2026,0,0,0,0,0,0,0,0,0,0,0,0,0,0,0,0,0,0,0,0,0]
["New_Mexico_Solar","CAISO","CAISO",2030,0,0,0,0,0,0,0,0,0,0,0,0,0,0,0,0,0,0,0,0,0]
["New_Mexico_Solar","CAISO","CAISO",2045,0,0,0,0,0,0,0,0,0,0,0,0,0,0,0,0,0,0,0,0,0]
["New_Mexico_Wind","CAISO","CAISO",2020,0,0,0,0,0,0,0,0,0,0,0,0,0,0,0,0,0,0,0,0,0]
["New_Mexico_Wind","CAISO","CAISO",2021,0,0,0,0,0,0,0,0,0,0,0,0,0,0,0,0,0,0,0,0,0]
["New_Mexico_Wind","CAISO","CAISO",2022,0,0,0,0,0,0,0,0,0,0,0,0,0,0,0,0,0,0,0,0,0]
["New_Mexico_Wind","CAISO","CAISO",2023,0,0,0,0,0,0,0,0,0,0,0,0,0,0,0,0,0,0,0,0,0]
["New_Mexico_Wind","CAISO","CAISO",2024,0,0,0,0,0,0,0,0,0,0,0,0,0,0,0,0,0,0,0,0,0]
["New_Mexico_Wind","CAISO","CAISO",2026,0,0,0,0,0,0,0,0,0,0,0,0,0,0,0,0,0,0,0,0,0]
["New_Mexico_Wind","CAISO","CAISO",2030,0,0,0,0,0,5060378.4539347598,395736989.52716601,0,0,0,0,0,0,0,0,0,0,0,0,68423.040247186305,87360.0442710348]
["New_Mexico_Wind","CAISO","CAISO",2045,0,0,0,0,0,5605040.3694824902,886156233.09949195,0,0,0,0,0,0,0,0,0,0,0,0,156281.70061065801,0]
["North_Victor_Solar","CAISO","CAISO",2020,0,0,0,0,0,0,0,0,0,0,0,0,0,0,0,0,0,0,0,0,0]
["North_Victor_Solar","CAISO","CAISO",2021,0,0,0,0,0,0,0,0,0,0,0,0,0,0,0,0,0,0,0,0,0]
["North_Victor_Solar","CAISO","CAISO",2022,0,0,0,0,0,841685.20207711298,24659091.2090424,0,0,0,0,0,0,0,0,0,0,0,0,12036.674497752399,0]
["North_Victor_Solar","CAISO","CAISO",2023,0,0,0,0,0,845207.28887975099,23289477.055798501,0,0,0,0,0,0,0,0,0,0,0,0,19574.922736013399,11351.9697163944]
["North_Victor_Solar","CAISO","CAISO",2024,0,0,0,0,0,842516.37666441,23390543.682232998,0,0,0,0,0,0,0,0,0,0,0,0,15775.7676978654,5874.3293722110702]
["North_Victor_Solar","CAISO","CAISO",2026,0,0,0,0,0,830298.76622878097,31747602.689019799,0,0,0,0,0,0,0,0,0,0,0,0,5685.6485986278904,4229.0800223841197]
["North_Victor_Solar","CAISO","CAISO",2030,0,0,0,0,0,813260.14741559594,38853904.398559801,0,0,0,0,0,0,0,0,0,0,0,0,24516.942958461601,25940.233052772801]
["North_Victor_Solar","CAISO","CAISO",2045,0,0,0,0,0,809995.43040301802,49328543.505695201,0,0,0,0,0,0,0,0,0,0,0,0,48066.814506053699,0]
["Northern_California_Ex_Geothermal","CAISO","CAISO",2020,0,0,0,0,0,0,0,0,0,0,0,0,0,0,0,0,0,0,0,0,0]
["Northern_California_Ex_Geothermal","CAISO","CAISO",2021,0,0,0,0,0,0,0,0,0,0,0,0,0,0,0,0,0,0,0,0,0]
["Northern_California_Ex_Geothermal","CAISO","CAISO",2022,0,0,0,0,0,0,0,0,0,0,0,0,0,0,0,0,0,0,0,0,0]
["Northern_California_Ex_Geothermal","CAISO","CAISO",2023,0,0,0,0,0,0,0,0,0,0,0,0,0,0,0,0,0,0,0,0,0]
["Northern_California_Ex_Geothermal","CAISO","CAISO",2024,0,0,0,0,0,0,0,0,0,0,0,0,0,0,0,0,0,0,0,0,0]
["Northern_California_Ex_Geothermal","CAISO","CAISO",2026,0,0,0,0,0,0,0,0,0,0,0,0,0,0,0,0,0,0,0,0,0]
["Northern_California_Ex_Geothermal","CAISO","CAISO",2030,0,0,0,0,0,0,0,0,0,0,0,0,0,0,0,0,0,0,0,0,0]
["Northern_California_Ex_Geothermal","CAISO","CAISO",2045,3627340.7999999798,0,0,0,0,3327836.3999999701,433680527.94564003,0,0,0,0,0,0,0,0,0,0,0,0,0,0]
["Northern_California_Ex_Solar","CAISO","CAISO",2020,0,0,0,0,0,0,0,0,0,0,0,0,0,0,0,0,0,0,0,0,0]
["Northern_California_Ex_Solar","CAISO","CAISO",2021,0,0,0,0,0,0,0,0,0,0,0,0,0,0,0,0,0,0,0,0,0]
["Northern_California_Ex_Solar","CAISO","CAISO",2022,0,0,0,0,0,0,0,0,0,0,0,0,0,0,0,0,0,0,0,0,0]
["Northern_California_Ex_Solar","CAISO","CAISO",2023,0,0,0,0,0,0,0,0,0,0,0,0,0,0,0,0,0,0,0,0,0]
["Northern_California_Ex_Solar","CAISO","CAISO",2024,0,0,0,0,0,0,0,0,0,0,0,0,0,0,0,0,0,0,0,0,0]
["Northern_California_Ex_Solar","CAISO","CAISO",2026,0,0,0,0,0,0,0,0,0,0,0,0,0,0,0,0,0,0,0,0,0]
["Northern_California_Ex_Solar","CAISO","CAISO",2030,0,0,0,0,0,960901.41796508699,42914335.217676699,0,0,0,0,0,0,0,0,0,0,0,0,32466.594228570299,37234.016238340002]
["Northern_California_Ex_Solar","CAISO","CAISO",2045,0,0,0,0,0,917977.37576566602,40482901.560024701,0,0,0,0,0,0,0,0,0,0,0,0,58368.0874113397,0]
["Northern_California_Ex_Wind","CAISO","CAISO",2020,0,0,0,0,0,0,0,0,0,0,0,0,0,0,0,0,0,0,0,0,0]
["Northern_California_Ex_Wind","CAISO","CAISO",2021,0,0,0,0,0,0,0,0,0,0,0,0,0,0,0,0,0,0,0,0,0]
["Northern_California_Ex_Wind","CAISO","CAISO",2022,0,0,0,0,0,2216942.8097140701,78775708.086002603,0,0,0,0,0,0,0,0,0,0,0,0,16413.444990374501,0]
["Northern_California_Ex_Wind","CAISO","CAISO",2023,0,0,0,0,0,2213816.8843685701,78166758.590791807,0,0,0,0,0,0,0,0,0,0,0,0,22944.183825740201,18481.617011376598]
["Northern_California_Ex_Wind","CAISO","CAISO",2024,0,0,0,0,0,2198326.3663198701,79343214.446154594,0,0,0,0,0,0,0,0,0,0,0,0,17387.478032823401,7734.9195538624399]
["Northern_California_Ex_Wind","CAISO","CAISO",2026,0,0,0,0,0,2211974.3669444001,103126959.447877,0,0,0,0,0,0,0,0,0,0,0,0,9536.2255901221706,2450.9215521559699]
["Northern_California_Ex_Wind","CAISO","CAISO",2030,0,0,0,0,0,2205947.9013073999,170762494.83941701,0,0,0,0,0,0,0,0,0,0,0,0,28510.314814321398,50316.654171308197]
["Northern_California_Ex_Wind","CAISO","CAISO",2045,0,0,0,0,0,2148719.4702826999,268481576.66108298,0,0,0,0,0,0,0,0,0,0,0,0,83400.029713607,0]
["Pacific_Northwest_Geothermal","CAISO","CAISO",2020,0,0,0,0,0,0,0,0,0,0,0,0,0,0,0,0,0,0,0,0,0]
["Pacific_Northwest_Geothermal","CAISO","CAISO",2021,0,0,0,0,0,0,0,0,0,0,0,0,0,0,0,0,0,0,0,0,0]
["Pacific_Northwest_Geothermal","CAISO","CAISO",2022,0,0,0,0,0,0,0,0,0,0,0,0,0,0,0,0,0,0,0,0,0]
["Pacific_Northwest_Geothermal","CAISO","CAISO",2023,0,0,0,0,0,0,0,0,0,0,0,0,0,0,0,0,0,0,0,0,0]
["Pacific_Northwest_Geothermal","CAISO","CAISO",2024,0,0,0,0,0,0,0,0,0,0,0,0,0,0,0,0,0,0,0,0,0]
["Pacific_Northwest_Geothermal","CAISO","CAISO",2026,0,0,0,0,0,0,0,0,0,0,0,0,0,0,0,0,0,0,0,0,0]
["Pacific_Northwest_Geothermal","CAISO","CAISO",2030,0,0,0,0,0,0,0,0,0,0,0,0,0,0,0,0,0,0,0,0,0]
["Pacific_Northwest_Geothermal","CAISO","CAISO",2045,0,0,0,0,0,0,0,0,0,0,0,0,0,0,0,0,0,0,0,0,0]
["Pacific_Northwest_Wind","CAISO","CAISO",2020,0,0,0,0,0,0,0,0,0,0,0,0,0,0,0,0,0,0,0,0,0]
["Pacific_Northwest_Wind","CAISO","CAISO",2021,0,0,0,0,0,0,0,0,0,0,0,0,0,0,0,0,0,0,0,0,0]
["Pacific_Northwest_Wind","CAISO","CAISO",2022,0,0,0,0,0,0,0,0,0,0,0,0,0,0,0,0,0,0,0,0,0]
["Pacific_Northwest_Wind","CAISO","CAISO",2023,0,0,0,0,0,0,0,0,0,0,0,0,0,0,0,0,0,0,0,0,0]
["Pacific_Northwest_Wind","CAISO","CAISO",2024,0,0,0,0,0,0,0,0,0,0,0,0,0,0,0,0,0,0,0,0,0]
["Pacific_Northwest_Wind","CAISO","CAISO",2026,0,0,0,0,0,0,0,0,0,0,0,0,0,0,0,0,0,0,0,0,0]
["Pacific_Northwest_Wind","CAISO","CAISO",2030,0,0,0,0,0,0,0,0,0,0,0,0,0,0,0,0,0,0,0,0,0]
["Pacific_Northwest_Wind","CAISO","CAISO",2045,0,0,0,0,0,0,0,0,0,0,0,0,0,0,0,0,0,0,0,0,0]
["Riverside_Palm_Springs_Geothermal","CAISO","CAISO",2020,0,0,0,0,0,0,0,0,0,0,0,0,0,0,0,0,0,0,0,0,0]
["Riverside_Palm_Springs_Geothermal","CAISO","CAISO",2021,0,0,0,0,0,0,0,0,0,0,0,0,0,0,0,0,0,0,0,0,0]
["Riverside_Palm_Springs_Geothermal","CAISO","CAISO",2022,0,0,0,0,0,0,0,0,0,0,0,0,0,0,0,0,0,0,0,0,0]
["Riverside_Palm_Springs_Geothermal","CAISO","CAISO",2023,0,0,0,0,0,0,0,0,0,0,0,0,0,0,0,0,0,0,0,0,0]
["Riverside_Palm_Springs_Geothermal","CAISO","CAISO",2024,0,0,0,0,0,0,0,0,0,0,0,0,0,0,0,0,0,0,0,0,0]
["Riverside_Palm_Springs_Geothermal","CAISO","CAISO",2026,0,0,0,0,0,0,0,0,0,0,0,0,0,0,0,0,0,0,0,0,0]
["Riverside_Palm_Springs_Geothermal","CAISO","CAISO",2030,0,0,0,0,0,0,0,0,0,0,0,0,0,0,0,0,0,0,0,0,0]
["Riverside_Palm_Springs_Geothermal","CAISO","CAISO",2045,244403.99999999901,0,0,0,0,224255.99999999901,29224832.2288251,0,0,0,0,0,0,0,0,0,0,0,0,0,0]
["Riverside_Palm_Springs_Solar","CAISO","CAISO",2020,0,0,0,0,0,0,0,0,0,0,0,0,0,0,0,0,0,0,0,0,0]
["Riverside_Palm_Springs_Solar","CAISO","CAISO",2021,0,0,0,0,0,0,0,0,0,0,0,0,0,0,0,0,0,0,0,0,0]
["Riverside_Palm_Springs_Solar","CAISO","CAISO",2022,0,0,0,0,0,0,0,0,0,0,0,0,0,0,0,0,0,0,0,0,0]
["Riverside_Palm_Springs_Solar","CAISO","CAISO",2023,0,0,0,0,0,0,0,0,0,0,0,0,0,0,0,0,0,0,0,0,0]
["Riverside_Palm_Springs_Solar","CAISO","CAISO",2024,0,0,0,0,0,0,0,0,0,0,0,0,0,0,0,0,0,0,0,0,0]
["Riverside_Palm_Springs_Solar","CAISO","CAISO",2026,0,0,0,0,0,0,0,0,0,0,0,0,0,0,0,0,0,0,0,0,0]
["Riverside_Palm_Springs_Solar","CAISO","CAISO",2030,0,0,0,0,0,0,0,0,0,0,0,0,0,0,0,0,0,0,0,0,0]
["Riverside_Palm_Springs_Solar","CAISO","CAISO",2045,0,0,0,0,0,0,0,0,0,0,0,0,0,0,0,0,0,0,0,0,0]
["SCADSNV_Solar","CAISO","CAISO",2020,0,0,0,0,0,0,0,0,0,0,0,0,0,0,0,0,0,0,0,0,0]
["SCADSNV_Solar","CAISO","CAISO",2021,0,0,0,0,0,0,0,0,0,0,0,0,0,0,0,0,0,0,0,0,0]
["SCADSNV_Solar","CAISO","CAISO",2022,0,0,0,0,0,0,0,0,0,0,0,0,0,0,0,0,0,0,0,0,0]
["SCADSNV_Solar","CAISO","CAISO",2023,0,0,0,0,0,0,0,0,0,0,0,0,0,0,0,0,0,0,0,0,0]
["SCADSNV_Solar","CAISO","CAISO",2024,0,0,0,0,0,0,0,0,0,0,0,0,0,0,0,0,0,0,0,0,0]
["SCADSNV_Solar","CAISO","CAISO",2026,0,0,0,0,0,5815929.2971214503,219156202.366725,0,0,0,0,0,0,0,0,0,0,0,0,51185.0003023178,28469.388766359101]
["SCADSNV_Solar","CAISO","CAISO",2030,0,0,0,0,0,5716028.1844288995,268486174.032727,0,0,0,0,0,0,0,0,0,0,0,0,182843.268444505,131099.19484295999]
["SCADSNV_Solar","CAISO","CAISO",2045,0,0,0,0,0,5812690.9191594198,343268807.26201302,0,0,0,0,0,0,0,0,0,0,0,0,345196.17637749203,0]
["SCADSNV_Wind","CAISO","CAISO",2020,0,0,0,0,0,0,0,0,0,0,0,0,0,0,0,0,0,0,0,0,0]
["SCADSNV_Wind","CAISO","CAISO",2021,0,0,0,0,0,0,0,0,0,0,0,0,0,0,0,0,0,0,0,0,0]
["SCADSNV_Wind","CAISO","CAISO",2022,0,0,0,0,0,0,0,0,0,0,0,0,0,0,0,0,0,0,0,0,0]
["SCADSNV_Wind","CAISO","CAISO",2023,0,0,0,0,0,0,0,0,0,0,0,0,0,0,0,0,0,0,0,0,0]
["SCADSNV_Wind","CAISO","CAISO",2024,0,0,0,0,0,0,0,0,0,0,0,0,0,0,0,0,0,0,0,0,0]
["SCADSNV_Wind","CAISO","CAISO",2026,0,0,0,0,0,0,0,0,0,0,0,0,0,0,0,0,0,0,0,0,0]
["SCADSNV_Wind","CAISO","CAISO",2030,0,0,0,0,0,0,0,0,0,0,0,0,0,0,0,0,0,0,0,0,0]
["SCADSNV_Wind","CAISO","CAISO",2045,0,0,0,0,0,0,0,0,0,0,0,0,0,0,0,0,0,0,0,0,0]
["SW_Biomass_for_Other","SW","SW",2020,1538869.2,0,0,0,0,992770.800000004,23963355.559592199,0,0,0,0,0,0,0,0,0,0,0,0,0,0]
["SW_Biomass_for_Other","SW","SW",2021,1538869.2,0,0,0,0,992770.800000004,24093456.602067798,0,0,0,0,0,0,0,0,0,0,0,0,0,0]
["SW_Biomass_for_Other","SW","SW",2022,1538869.2,0,0,0,0,992770.800000004,24279667.7741597,0,0,0,0,0,0,0,0,0,0,0,0,0,0]
["SW_Biomass_for_Other","SW","SW",2023,1538869.2,0,0,0,0,992770.800000004,24243248.422387499,0,0,0,0,0,0,0,0,0,0,0,0,0,0]
["SW_Biomass_for_Other","SW","SW",2024,1538869.2,0,0,0,0,992770.800000004,24384177.552724399,0,0,0,0,0,0,0,0,0,0,0,0,0,0]
["SW_Biomass_for_Other","SW","SW",2026,1538869.2,0,0,0,0,992770.800000004,24407891.544853698,0,0,0,0,0,0,0,0,0,0,0,0,0,0]
["SW_Biomass_for_Other","SW","SW",2030,1460116.8,0,0,0,0,941962.80000000203,23813527.423646301,0,0,0,0,0,0,0,0,0,0,0,0,0,0]
["SW_Biomass_for_Other","SW","SW",2045,1460116.8,0,0,0,0,941962.80000000203,28355436.7587553,0,0,0,0,0,0,0,0,0,0,0,0,0,0]
["SW_CCGT","SW","SW",2020,18505844.1466529,1720151085.42291,38935.804948189798,38935.804948189798,0,70881473.543442398,1742375449.51511,0,0,0,0,0,0,0,0,0,0,0,0,0,0]
["SW_CCGT","SW","SW",2021,17926941.6448978,1672083088.3541801,0,0,0,68664172.426904693,1691413396.5174501,0,0,0,0,0,0,0,0,0,0,0,0,0,0]
["SW_CCGT","SW","SW",2022,18237422.8324375,1712885356.86712,9389.7741781312907,9389.7741781312907,0,69853354.730012,1751385753.0711601,0,0,0,0,0,0,0,0,0,0,0,0,0,0]
["SW_CCGT","SW","SW",2023,18369450.722432502,1731313147.68981,8857.5311827531496,8857.5311827531496,0,70359050.194452301,1769219049.4971399,0,0,0,0,0,0,0,0,0,0,0,0,0,0]
["SW_CCGT","SW","SW",2024,19069675.5417291,1794149249.5383201,0,0,0,73041074.190722093,1844782646.3700199,0,0,0,0,0,0,0,0,0,0,0,0,0,0]
["SW_CCGT","SW","SW",2026,20889439.538670801,1968261227.2883401,0,0,0,80011152.705272093,1990347207.4085701,0,0,0,0,0,0,0,0,0,0,0,0,0,0]
["SW_CCGT","SW","SW",2030,22183321.463151399,2130264378.8679099,0,0,0,84967015.818868294,2244512260.4958,0,0,0,0,0,0,0,0,0,0,0,0,0,0]
["SW_CCGT","SW","SW",2045,18515851.741588801,2077794291.9509399,0,0,0,70919790.620974794,2306511937.7876201,0,0,0,0,0,0,0,0,0,0,0,0,0,0]
["SW_Coal","SW","SW",2020,86945383.973528504,732286023.086151,0,0,0,34991823.358704299,886739274.66073,0,0,0,0,0,0,0,0,0,0,0,0,0,0]
["SW_Coal","SW","SW",2021,98240252.508771196,824571625.33854699,0,0,0,39537529.315580398,994180226.47487295,0,0,0,0,0,0,0,0,0,0,0,0,0,0]
["SW_Coal","SW","SW",2022,100802921.33838999,844661859.15274096,0,0,0,40568896.836761802,1025864187.28389,0,0,0,0,0,0,0,0,0,0,0,0,0,0]
["SW_Coal","SW","SW",2023,105895711.60108399,886428571.49304295,0,0,0,42618527.103208497,1072443100.46088,0,0,0,0,0,0,0,0,0,0,0,0,0,0]
["SW_Coal","SW","SW",2024,109134409.834709,912805452.26495397,0,0,0,43921967.653577097,1107736419.92746,0,0,0,0,0,0,0,0,0,0,0,0,0,0]
["SW_Coal","SW","SW",2026,94759468.372876301,790657177.60683405,0,0,0,38136670.427299097,959698944.55559504,0,0,0,0,0,0,0,0,0,0,0,0,0,0]
["SW_Coal","SW","SW",2030,105891798.18601,883381629.93856704,0,0,0,42616956.440473102,1096441579.29495,0,0,0,0,0,0,0,0,0,0,0,0,0,0]
["SW_Coal","SW","SW",2045,115664985.49615,961293244.40377402,0,0,0,46550247.5810766,1407679711.9251699,0,0,0,0,0,0,0,0,0,0,0,0,0,0]
["SW_Ext_Tx_Wind","CAISO","CAISO",2020,0,0,0,0,0,0,0,0,0,0,0,0,0,0,0,0,0,0,0,0,0]
["SW_Ext_Tx_Wind","CAISO","CAISO",2021,0,0,0,0,0,0,0,0,0,0,0,0,0,0,0,0,0,0,0,0,0]
["SW_Ext_Tx_Wind","CAISO","CAISO",2022,0,0,0,0,0,0,0,0,0,0,0,0,0,0,0,0,0,0,0,0,0]
["SW_Ext_Tx_Wind","CAISO","CAISO",2023,0,0,0,0,0,0,0,0,0,0,0,0,0,0,0,0,0,0,0,0,0]
["SW_Ext_Tx_Wind","CAISO","CAISO",2024,0,0,0,0,0,0,0,0,0,0,0,0,0,0,0,0,0,0,0,0,0]
["SW_Ext_Tx_Wind","CAISO","CAISO",2026,0,0,0,0,0,0,0,0,0,0,0,0,0,0,0,0,0,0,0,0,0]
["SW_Ext_Tx_Wind","CAISO","CAISO",2030,0,0,0,0,0,0,0,0,0,0,0,0,0,0,0,0,0,0,0,0,0]
["SW_Ext_Tx_Wind","CAISO","CAISO",2045,0,0,0,0,0,1533423.5986210301,254872435.69264501,0,0,0,0,0,0,0,0,0,0,0,0,40863.120172885203,0]
["SW_Geothermal_for_Other","SW","SW",2020,6293359.2000000104,0,0,0,0,5773716,139365107.644288,0,0,0,0,0,0,0,0,0,0,0,0,0,0]
["SW_Geothermal_for_Other","SW","SW",2021,6701575.20000003,0,0,0,0,6148205.9999999702,149210204.85450599,0,0,0,0,0,0,0,0,0,0,0,0,0,0]
["SW_Geothermal_for_Other","SW","SW",2022,6701575.20000003,0,0,0,0,6148205.9999999702,150363406.223364,0,0,0,0,0,0,0,0,0,0,0,0,0,0]
["SW_Geothermal_for_Other","SW","SW",2023,6701575.20000003,0,0,0,0,6148205.9999999702,150137862.04228899,0,0,0,0,0,0,0,0,0,0,0,0,0,0]
["SW_Geothermal_for_Other","SW","SW",2024,6701575.20000003,0,0,0,0,6148205.9999999702,151010632.801373,0,0,0,0,0,0,0,0,0,0,0,0,0,0]
["SW_Geothermal_for_Other","SW","SW",2026,6701575.20000003,0,0,0,0,6148205.9999999702,151157492.99175501,0,0,0,0,0,0,0,0,0,0,0,0,0,0]
["SW_Geothermal_for_Other","SW","SW",2030,6348284.3999999696,0,0,0,0,5824085.9999999404,147237270.59993801,0,0,0,0,0,0,0,0,0,0,0,0,0,0]
["SW_Geothermal_for_Other","SW","SW",2045,6348284.3999999696,0,0,0,0,5824085.9999999404,175319558.53304601,0,0,0,0,0,0,0,0,0,0,0,0,0,0]
["SW_Hydro","SW","SW",2020,0,0,0,0,0,5849756.9426105497,162280091.24552199,0,0,0,0,0,0,0,0,0,0,0,0,0,0]
["SW_Hydro","SW","SW",2021,0,0,0,0,0,5849756.0587926498,161783330.55425099,0,0,0,0,0,0,0,0,0,0,0,0,0,0]
["SW_Hydro","SW","SW",2022,0,0,0,0,0,5849756.8560338505,164547233.77868801,0,0,0,0,0,0,0,0,0,0,0,0,0,0]
["SW_Hydro","SW","SW",2023,0,0,0,0,0,5849757.1488509104,164960064.61228499,0,0,0,0,0,0,0,0,0,0,0,0,0,0]
["SW_Hydro","SW","SW",2024,0,0,0,0,0,5849757.0036824699,164619811.68693,0,0,0,0,0,0,0,0,0,0,0,0,0,0]
["SW_Hydro","SW","SW",2026,0,0,0,0,0,5849756.1831821799,158903655.17040399,0,0,0,0,0,0,0,0,0,0,0,0,0,0]
["SW_Hydro","SW","SW",2030,0,0,0,0,0,5527008.69563899,160449289.92749801,0,0,0,0,0,0,0,0,0,0,0,0,0,0]
["SW_Hydro","SW","SW",2045,0,0,0,0,0,5527009.2184947301,196614412.933198,0,0,0,0,0,0,0,0,0,0,0,0,0,0]
["SW_Nuclear","SW","SW",2020,43414686.287924498,178009684.70749801,0,0,0,24117937.328747202,582880211.01630604,0,0,0,0,0,0,0,0,0,0,0,0,0,0]
["SW_Nuclear","SW","SW",2021,43414686.287924498,178009684.70749801,0,0,0,24117937.328747202,586116536.11405694,0,0,0,0,0,0,0,0,0,0,0,0,0,0]
["SW_Nuclear","SW","SW",2022,43414686.287924498,178009684.70749801,0,0,0,24117937.328747202,590279805.54530597,0,0,0,0,0,0,0,0,0,0,0,0,0,0]
["SW_Nuclear","SW","SW",2023,43414686.287924498,178009684.70749801,0,0,0,24117937.328747202,589296196.66616797,0,0,0,0,0,0,0,0,0,0,0,0,0,0]
["SW_Nuclear","SW","SW",2024,43414686.287924498,178009684.70749801,0,0,0,24117937.328747202,592620951.37482095,0,0,0,0,0,0,0,0,0,0,0,0,0,0]
["SW_Nuclear","SW","SW",2026,43414686.287924498,178009684.70749801,0,0,0,24117937.328747202,593963910.39526606,0,0,0,0,0,0,0,0,0,0,0,0,0,0]
["SW_Nuclear","SW","SW",2030,43414686.287924498,178009684.70749801,0,0,0,24117937.328747202,610878206.13466203,0,0,0,0,0,0,0,0,0,0,0,0,0,0]
["SW_Nuclear","SW","SW",2045,43414686.287924498,178009684.70749801,0,0,0,24117937.328747202,726675512.33552599,0,0,0,0,0,0,0,0,0,0,0,0,0,0]
["SW_Peaker","SW","SW",2020,0,0,0,0,0,0,0,0,0,0,0,0,0,0,0,0,0,0,0,0,0]
["SW_Peaker","SW","SW",2021,0,0,0,0,0,0,0,0,0,0,0,0,0,0,0,0,0,0,0,0,0]
["SW_Peaker","SW","SW",2022,0,0,0,0,0,0,0,0,0,0,0,0,0,0,0,0,0,0,0,0,0]
["SW_Peaker","SW","SW",2023,0,0,0,0,0,0,0,0,0,0,0,0,0,0,0,0,0,0,0,0,0]
["SW_Peaker","SW","SW",2024,0,0,0,0,0,0,0,0,0,0,0,0,0,0,0,0,0,0,0,0,0]
["SW_Peaker","SW","SW",2026,0,0,0,0,0,0,0,0,0,0,0,0,0,0,0,0,0,0,0,0,0]
["SW_Peaker","SW","SW",2030,0,0,0,0,0,0,0,0,0,0,0,0,0,0,0,0,0,0,0,0,0]
["SW_Peaker","SW","SW",2045,763329.24701933295,21592814.323795602,3229331.25934172,3229331.41295513,0,507611.670643805,28813821.241263099,0,0,0,0,0,0,0,0,0,0,0,0,0,0]
["SW_ST","SW","SW",2020,0,0,0,0,0,0,0,0,0,0,0,0,0,0,0,0,0,0,0,0,0]
["SW_ST","SW","SW",2021,0,0,0,0,0,0,0,0,0,0,0,0,0,0,0,0,0,0,0,0,0]
["SW_ST","SW","SW",2022,0,0,0,0,0,0,0,0,0,0,0,0,0,0,0,0,0,0,0,0,0]
["SW_ST","SW","SW",2023,0,0,0,0,0,0,0,0,0,0,0,0,0,0,0,0,0,0,0,0,0]
["SW_ST","SW","SW",2024,0,0,0,0,0,0,0,0,0,0,0,0,0,0,0,0,0,0,0,0,0]
["SW_ST","SW","SW",2026,0,0,0,0,0,0,0,0,0,0,0,0,0,0,0,0,0,0,0,0,0]
["SW_ST","SW","SW",2030,0,0,0,0,0,0,0,0,0,0,0,0,0,0,0,0,0,0,0,0,0]
["SW_ST","SW","SW",2045,0,0,0,0,0,0,0,0,0,0,0,0,0,0,0,0,0,0,0,0,0]
["SW_Small_Hydro_for_Other","SW","SW",2020,0,0,0,0,0,0,0,0,0,0,0,0,0,0,0,0,0,0,0,0,0]
["SW_Small_Hydro_for_Other","SW","SW",2021,0,0,0,0,0,0,0,0,0,0,0,0,0,0,0,0,0,0,0,0,0]
["SW_Small_Hydro_for_Other","SW","SW",2022,0,0,0,0,0,0,0,0,0,0,0,0,0,0,0,0,0,0,0,0,0]
["SW_Small_Hydro_for_Other","SW","SW",2023,0,0,0,0,0,0,0,0,0,0,0,0,0,0,0,0,0,0,0,0,0]
["SW_Small_Hydro_for_Other","SW","SW",2024,0,0,0,0,0,0,0,0,0,0,0,0,0,0,0,0,0,0,0,0,0]
["SW_Small_Hydro_for_Other","SW","SW",2026,0,0,0,0,0,0,0,0,0,0,0,0,0,0,0,0,0,0,0,0,0]
["SW_Small_Hydro_for_Other","SW","SW",2030,0,0,0,0,0,0,0,0,0,0,0,0,0,0,0,0,0,0,0,0,0]
["SW_Small_Hydro_for_Other","SW","SW",2045,0,0,0,0,0,0,0,0,0,0,0,0,0,0,0,0,0,0,0,0,0]
["SW_Solar_for_CAISO","SW","CAISO",2020,0,0,0,0,0,184664.581400347,4096393.0842259601,0,0,0,0,0,0,0,0,0,0,0,0,0,0]
["SW_Solar_for_CAISO","SW","CAISO",2021,0,0,0,0,0,184664.581400347,4092052.75518789,0,0,0,0,0,0,0,0,0,0,0,0,0,0]
["SW_Solar_for_CAISO","SW","CAISO",2022,0,0,0,0,0,184664.581400347,4107490.9633597699,0,0,0,0,0,0,0,0,0,0,0,0,0,0]
["SW_Solar_for_CAISO","SW","CAISO",2023,0,0,0,0,0,184664.581400347,4070500.3232423598,0,0,0,0,0,0,0,0,0,0,0,0,0,0]
["SW_Solar_for_CAISO","SW","CAISO",2024,0,0,0,0,0,184664.581400347,4086734.9227648,0,0,0,0,0,0,0,0,0,0,0,0,0,0]
["SW_Solar_for_CAISO","SW","CAISO",2026,0,0,0,0,0,184664.581400347,4210444.3168011596,0,0,0,0,0,0,0,0,0,0,0,0,0,0]
["SW_Solar_for_CAISO","SW","CAISO",2030,0,0,0,0,0,184664.581400347,4128410.9314152598,0,0,0,0,0,0,0,0,0,0,0,0,0,0]
["SW_Solar_for_CAISO","SW","CAISO",2045,0,0,0,0,0,184664.581400347,5397248.2026378503,0,0,0,0,0,0,0,0,0,0,0,0,0,0]
["SW_Solar_for_Other","SW","SW",2020,0,0,0,0,0,3701526.67908607,82103698.705246896,0,0,0,0,0,0,0,0,0,0,0,0,0,0]
["SW_Solar_for_Other","SW","SW",2021,0,0,0,0,0,3701526.67908607,82020644.356186897,0,0,0,0,0,0,0,0,0,0,0,0,0,0]
["SW_Solar_for_Other","SW","SW",2022,0,0,0,0,0,3996808.9191249199,88889690.067270204,0,0,0,0,0,0,0,0,0,0,0,0,0,0]
["SW_Solar_for_Other","SW","SW",2023,0,0,0,0,0,3996808.9191249199,88076186.018437907,0,0,0,0,0,0,0,0,0,0,0,0,0,0]
["SW_Solar_for_Other","SW","SW",2024,0,0,0,0,0,3996808.9191249199,88413637.632730201,0,0,0,0,0,0,0,0,0,0,0,0,0,0]
["SW_Solar_for_Other","SW","SW",2026,0,0,0,0,0,4434280.7403566698,101059667.884285,0,0,0,0,0,0,0,0,0,0,0,0,0,0]
["SW_Solar_for_Other","SW","SW",2030,0,0,0,0,0,4377565.2897426104,97732661.394457504,0,0,0,0,0,0,0,0,0,0,0,0,0,0]
["SW_Solar_for_Other","SW","SW",2045,0,0,0,0,0,3914606.5307786199,114310095.123079,0,0,0,0,0,0,0,0,0,0,0,0,0,0]
["SW_Wind_for_CAISO","SW","CAISO",2020,0,0,0,0,0,212479.476342157,5154019.7386450097,0,0,0,0,0,0,0,0,0,0,0,0,0,0]
["SW_Wind_for_CAISO","SW","CAISO",2021,0,0,0,0,0,212479.476342157,5191148.8954932401,0,0,0,0,0,0,0,0,0,0,0,0,0,0]
["SW_Wind_for_CAISO","SW","CAISO",2022,0,0,0,0,0,212479.476342157,5212853.1155623896,0,0,0,0,0,0,0,0,0,0,0,0,0,0]
["SW_Wind_for_CAISO","SW","CAISO",2023,0,0,0,0,0,212479.476342157,5208317.7002415201,0,0,0,0,0,0,0,0,0,0,0,0,0,0]
["SW_Wind_for_CAISO","SW","CAISO",2024,0,0,0,0,0,212479.476342157,5226300.5195052801,0,0,0,0,0,0,0,0,0,0,0,0,0,0]
["SW_Wind_for_CAISO","SW","CAISO",2026,0,0,0,0,0,212479.476342157,5231377.3072652798,0,0,0,0,0,0,0,0,0,0,0,0,0,0]
["SW_Wind_for_CAISO","SW","CAISO",2030,0,0,0,0,0,212479.476342157,5365650.2665730799,0,0,0,0,0,0,0,0,0,0,0,0,0,0]
["SW_Wind_for_CAISO","SW","CAISO",2045,0,0,0,0,0,212479.476342157,6254017.6178545998,0,0,0,0,0,0,0,0,0,0,0,0,0,0]
["SW_Wind_for_Other","SW","SW",2020,0,0,0,0,0,8813153.1054014601,213911123.98073801,0,0,0,0,0,0,0,0,0,0,0,0,0,0]
["SW_Wind_for_Other","SW","SW",2021,0,0,0,0,0,8813153.1054014601,215531099.275462,0,0,0,0,0,0,0,0,0,0,0,0,0,0]
["SW_Wind_for_Other","SW","SW",2022,0,0,0,0,0,8813153.1054014601,216297858.01446801,0,0,0,0,0,0,0,0,0,0,0,0,0,0]
["SW_Wind_for_Other","SW","SW",2023,0,0,0,0,0,8813153.1054014601,216133590.91600999,0,0,0,0,0,0,0,0,0,0,0,0,0,0]
["SW_Wind_for_Other","SW","SW",2024,0,0,0,0,0,8813153.1054014601,216795002.178628,0,0,0,0,0,0,0,0,0,0,0,0,0,0]
["SW_Wind_for_Other","SW","SW",2026,0,0,0,0,0,8778450.2888402492,216153335.224415,0,0,0,0,0,0,0,0,0,0,0,0,0,0]
["SW_Wind_for_Other","SW","SW",2030,0,0,0,0,0,7220716.4922987297,182265075.027843,0,0,0,0,0,0,0,0,0,0,0,0,0,0]
["SW_Wind_for_Other","SW","SW",2045,0,0,0,0,0,7220716.4922987297,211644267.32237899,0,0,0,0,0,0,0,0,0,0,0,0,0,0]
["Sacramento_River_Solar","CAISO","CAISO",2020,0,0,0,0,0,0,0,0,0,0,0,0,0,0,0,0,0,0,0,0,0]
["Sacramento_River_Solar","CAISO","CAISO",2021,0,0,0,0,0,0,0,0,0,0,0,0,0,0,0,0,0,0,0,0,0]
["Sacramento_River_Solar","CAISO","CAISO",2022,0,0,0,0,0,0,0,0,0,0,0,0,0,0,0,0,0,0,0,0,0]
["Sacramento_River_Solar","CAISO","CAISO",2023,0,0,0,0,0,0,0,0,0,0,0,0,0,0,0,0,0,0,0,0,0]
["Sacramento_River_Solar","CAISO","CAISO",2024,0,0,0,0,0,0,0,0,0,0,0,0,0,0,0,0,0,0,0,0,0]
["Sacramento_River_Solar","CAISO","CAISO",2026,0,0,0,0,0,0,0,0,0,0,0,0,0,0,0,0,0,0,0,0,0]
["Sacramento_River_Solar","CAISO","CAISO",2030,0,0,0,0,0,4890079.16436515,218699473.00271401,0,0,0,0,0,0,0,0,0,0,0,0,164887.48425106501,189749.74414221899]
["Sacramento_River_Solar","CAISO","CAISO",2045,0,0,0,0,0,43416667.501404099,2395314359.2226501,0,0,0,0,0,0,0,0,0,0,0,0,2322080.5723084901,0]
["Sacramento_River_Wind","CAISO","CAISO",2020,0,0,0,0,0,0,0,0,0,0,0,0,0,0,0,0,0,0,0,0,0]
["Sacramento_River_Wind","CAISO","CAISO",2021,0,0,0,0,0,0,0,0,0,0,0,0,0,0,0,0,0,0,0,0,0]
["Sacramento_River_Wind","CAISO","CAISO",2022,0,0,0,0,0,0,0,0,0,0,0,0,0,0,0,0,0,0,0,0,0]
["Sacramento_River_Wind","CAISO","CAISO",2023,0,0,0,0,0,0,0,0,0,0,0,0,0,0,0,0,0,0,0,0,0]
["Sacramento_River_Wind","CAISO","CAISO",2024,0,0,0,0,0,0,0,0,0,0,0,0,0,0,0,0,0,0,0,0,0]
["Sacramento_River_Wind","CAISO","CAISO",2026,0,0,0,0,0,0,0,0,0,0,0,0,0,0,0,0,0,0,0,0,0]
["Sacramento_River_Wind","CAISO","CAISO",2030,0,0,0,0,0,0,0,0,0,0,0,0,0,0,0,0,0,0,0,0,0]
["Sacramento_River_Wind","CAISO","CAISO",2045,0,0,0,0,0,0,0,0,0,0,0,0,0,0,0,0,0,0,0,0,0]
["Solano_Geothermal","CAISO","CAISO",2020,0,0,0,0,0,0,0,0,0,0,0,0,0,0,0,0,0,0,0,0,0]
["Solano_Geothermal","CAISO","CAISO",2021,0,0,0,0,0,0,0,0,0,0,0,0,0,0,0,0,0,0,0,0,0]
["Solano_Geothermal","CAISO","CAISO",2022,0,0,0,0,0,0,0,0,0,0,0,0,0,0,0,0,0,0,0,0,0]
["Solano_Geothermal","CAISO","CAISO",2023,0,0,0,0,0,0,0,0,0,0,0,0,0,0,0,0,0,0,0,0,0]
["Solano_Geothermal","CAISO","CAISO",2024,1160174.3999999899,0,0,0,0,1064339.99999999,38086763.205976903,0,0,0,0,0,0,0,0,0,0,0,0,0,0]
["Solano_Geothermal","CAISO","CAISO",2026,1160174.3999999899,0,0,0,0,1064339.99999999,49566948.527994201,0,0,0,0,0,0,0,0,0,0,0,0,0,0]
["Solano_Geothermal","CAISO","CAISO",2030,1160174.3999999899,0,0,0,0,1064339.99999999,80919498.478050202,0,0,0,0,0,0,0,0,0,0,0,0,0,0]
["Solano_Geothermal","CAISO","CAISO",2045,1160174.3999999899,0,0,0,0,1064339.99999999,138703793.586025,0,0,0,0,0,0,0,0,0,0,0,0,0,0]
["Solano_Solar","CAISO","CAISO",2020,0,0,0,0,0,0,0,0,0,0,0,0,0,0,0,0,0,0,0,0,0]
["Solano_Solar","CAISO","CAISO",2021,0,0,0,0,0,0,0,0,0,0,0,0,0,0,0,0,0,0,0,0,0]
["Solano_Solar","CAISO","CAISO",2022,0,0,0,0,0,0,0,0,0,0,0,0,0,0,0,0,0,0,0,0,0]
["Solano_Solar","CAISO","CAISO",2023,0,0,0,0,0,0,0,0,0,0,0,0,0,0,0,0,0,0,0,0,0]
["Solano_Solar","CAISO","CAISO",2024,0,0,0,0,0,0,0,0,0,0,0,0,0,0,0,0,0,0,0,0,0]
["Solano_Solar","CAISO","CAISO",2026,0,0,0,0,0,0,0,0,0,0,0,0,0,0,0,0,0,0,0,0,0]
["Solano_Solar","CAISO","CAISO",2030,0,0,0,0,0,1760578.8794628901,79187733.778347597,0,0,0,0,0,0,0,0,0,0,0,0,58741.8423354447,77702.7433284406]
["Solano_Solar","CAISO","CAISO",2045,0,0,0,0,0,1705225.8281290401,78138583.715945497,0,0,0,0,0,0,0,0,0,0,0,0,107314.631797127,0]
["Solano_Wind","CAISO","CAISO",2020,0,0,0,0,0,0,0,0,0,0,0,0,0,0,0,0,0,0,0,0,0]
["Solano_Wind","CAISO","CAISO",2021,0,0,0,0,0,0,0,0,0,0,0,0,0,0,0,0,0,0,0,0,0]
["Solano_Wind","CAISO","CAISO",2022,0,0,0,0,0,1233592.45588257,43582772.652980402,0,0,0,0,0,0,0,0,0,0,0,0,8586.3715214108597,0]
["Solano_Wind","CAISO","CAISO",2023,0,0,0,0,0,1230287.7907394201,43349195.582861297,0,0,0,0,0,0,0,0,0,0,0,0,11546.017948537499,14071.376006013599]
["Solano_Wind","CAISO","CAISO",2024,0,0,0,0,0,1231824.56274199,44024067.1034583,0,0,0,0,0,0,0,0,0,0,0,0,11234.6773351962,7823.7853348791496]
["Solano_Wind","CAISO","CAISO",2026,0,0,0,0,0,1230560.3659200899,56148412.294934101,0,0,0,0,0,0,0,0,0,0,0,0,5851.4448285286499,1833.7259224227701]
["Solano_Wind","CAISO","CAISO",2030,0,0,0,0,0,1232623.3259123301,95558696.0908176,0,0,0,0,0,0,0,0,0,0,0,0,16076.5590866411,52975.183131625403]
["Solano_Wind","CAISO","CAISO",2045,0,0,0,0,0,1193327.3203908601,61274474.158602297,0,0,0,0,0,0,0,0,0,0,0,0,58795.954664675999,0]
["Solano_subzone_Solar","CAISO","CAISO",2020,0,0,0,0,0,0,0,0,0,0,0,0,0,0,0,0,0,0,0,0,0]
["Solano_subzone_Solar","CAISO","CAISO",2021,0,0,0,0,0,0,0,0,0,0,0,0,0,0,0,0,0,0,0,0,0]
["Solano_subzone_Solar","CAISO","CAISO",2022,0,0,0,0,0,0,0,0,0,0,0,0,0,0,0,0,0,0,0,0,0]
["Solano_subzone_Solar","CAISO","CAISO",2023,0,0,0,0,0,0,0,0,0,0,0,0,0,0,0,0,0,0,0,0,0]
["Solano_subzone_Solar","CAISO","CAISO",2024,0,0,0,0,0,0,0,0,0,0,0,0,0,0,0,0,0,0,0,0,0]
["Solano_subzone_Solar","CAISO","CAISO",2026,0,0,0,0,0,0,0,0,0,0,0,0,0,0,0,0,0,0,0,0,0]
["Solano_subzone_Solar","CAISO","CAISO",2030,0,0,0,0,0,0,0,0,0,0,0,0,0,0,0,0,0,0,0,0,0]
["Solano_subzone_Solar","CAISO","CAISO",2045,0,0,0,0,0,0,0,0,0,0,0,0,0,0,0,0,0,0,0,0,0]
["Solano_subzone_Wind","CAISO","CAISO",2020,0,0,0,0,0,0,0,0,0,0,0,0,0,0,0,0,0,0,0,0,0]
["Solano_subzone_Wind","CAISO","CAISO",2021,0,0,0,0,0,0,0,0,0,0,0,0,0,0,0,0,0,0,0,0,0]
["Solano_subzone_Wind","CAISO","CAISO",2022,0,0,0,0,0,0,0,0,0,0,0,0,0,0,0,0,0,0,0,0,0]
["Solano_subzone_Wind","CAISO","CAISO",2023,0,0,0,0,0,0,0,0,0,0,0,0,0,0,0,0,0,0,0,0,0]
["Solano_subzone_Wind","CAISO","CAISO",2024,0,0,0,0,0,0,0,0,0,0,0,0,0,0,0,0,0,0,0,0,0]
["Solano_subzone_Wind","CAISO","CAISO",2026,0,0,0,0,0,0,0,0,0,0,0,0,0,0,0,0,0,0,0,0,0]
["Solano_subzone_Wind","CAISO","CAISO",2030,0,0,0,0,0,0,0,0,0,0,0,0,0,0,0,0,0,0,0,0,0]
["Solano_subzone_Wind","CAISO","CAISO",2045,0,0,0,0,0,0,0,0,0,0,0,0,0,0,0,0,0,0,0,0,0]
["Southern_California_Desert_Ex_Solar","CAISO","CAISO",2020,0,0,0,0,0,0,0,0,0,0,0,0,0,0,0,0,0,0,0,0,0]
["Southern_California_Desert_Ex_Solar","CAISO","CAISO",2021,0,0,0,0,0,0,0,0,0,0,0,0,0,0,0,0,0,0,0,0,0]
["Southern_California_Desert_Ex_Solar","CAISO","CAISO",2022,0,0,0,0,0,2334025.7494314802,68235589.700218201,0,0,0,0,0,0,0,0,0,0,0,0,34150.455843521602,0]
["Southern_California_Desert_Ex_Solar","CAISO","CAISO",2023,0,0,0,0,0,2321842.1306751501,64431110.801240899,0,0,0,0,0,0,0,0,0,0,0,0,51225.874644343799,30148.024257485798]
["Southern_California_Desert_Ex_Solar","CAISO","CAISO",2024,0,0,0,0,0,2332108.0544238901,64706712.6732051,0,0,0,0,0,0,0,0,0,0,0,0,42583.059160959703,15708.581218360199]
["Southern_California_Desert_Ex_Solar","CAISO","CAISO",2026,0,0,0,0,0,2337015.8385658902,87866369.124068901,0,0,0,0,0,0,0,0,0,0,0,0,20788.6987753627,11414.150046336101]
["Southern_California_Desert_Ex_Solar","CAISO","CAISO",2030,0,0,0,0,0,2281979.9578828202,107644265.860829,0,0,0,0,0,0,0,0,0,0,0,0,71513.357274303504,52561.142059504004]
["Southern_California_Desert_Ex_Solar","CAISO","CAISO",2045,0,0,0,0,0,2288712.0527639599,137626932.05540499,0,0,0,0,0,0,0,0,0,0,0,0,136166.14092439401,0]
["Southern_California_Desert_Ex_Wind","CAISO","CAISO",2020,0,0,0,0,0,0,0,0,0,0,0,0,0,0,0,0,0,0,0,0,0]
["Southern_California_Desert_Ex_Wind","CAISO","CAISO",2021,0,0,0,0,0,0,0,0,0,0,0,0,0,0,0,0,0,0,0,0,0]
["Southern_California_Desert_Ex_Wind","CAISO","CAISO",2022,0,0,0,0,0,0,0,0,0,0,0,0,0,0,0,0,0,0,0,0,0]
["Southern_California_Desert_Ex_Wind","CAISO","CAISO",2023,0,0,0,0,0,0,0,0,0,0,0,0,0,0,0,0,0,0,0,0,0]
["Southern_California_Desert_Ex_Wind","CAISO","CAISO",2024,0,0,0,0,0,0,0,0,0,0,0,0,0,0,0,0,0,0,0,0,0]
["Southern_California_Desert_Ex_Wind","CAISO","CAISO",2026,0,0,0,0,0,0,0,0,0,0,0,0,0,0,0,0,0,0,0,0,0]
["Southern_California_Desert_Ex_Wind","CAISO","CAISO",2030,0,0,0,0,0,0,0,0,0,0,0,0,0,0,0,0,0,0,0,0,0]
["Southern_California_Desert_Ex_Wind","CAISO","CAISO",2045,0,0,0,0,0,0,0,0,0,0,0,0,0,0,0,0,0,0,0,0,0]
["Southern_Nevada_Geothermal","CAISO","CAISO",2020,0,0,0,0,0,0,0,0,0,0,0,0,0,0,0,0,0,0,0,0,0]
["Southern_Nevada_Geothermal","CAISO","CAISO",2021,0,0,0,0,0,0,0,0,0,0,0,0,0,0,0,0,0,0,0,0,0]
["Southern_Nevada_Geothermal","CAISO","CAISO",2022,0,0,0,0,0,0,0,0,0,0,0,0,0,0,0,0,0,0,0,0,0]
["Southern_Nevada_Geothermal","CAISO","CAISO",2023,0,0,0,0,0,0,0,0,0,0,0,0,0,0,0,0,0,0,0,0,0]
["Southern_Nevada_Geothermal","CAISO","CAISO",2024,0,0,0,0,0,0,0,0,0,0,0,0,0,0,0,0,0,0,0,0,0]
["Southern_Nevada_Geothermal","CAISO","CAISO",2026,0,0,0,0,0,0,0,0,0,0,0,0,0,0,0,0,0,0,0,0,0]
["Southern_Nevada_Geothermal","CAISO","CAISO",2030,0,0,0,0,0,0,0,0,0,0,0,0,0,0,0,0,0,0,0,0,0]
["Southern_Nevada_Geothermal","CAISO","CAISO",2045,2576578.8000000101,0,0,0,0,2363886.0000000098,308059413.162049,0,0,0,0,0,0,0,0,0,0,0,0,0,0]
["Southern_Nevada_Solar","CAISO","CAISO",2020,0,0,0,0,0,0,0,0,0,0,0,0,0,0,0,0,0,0,0,0,0]
["Southern_Nevada_Solar","CAISO","CAISO",2021,0,0,0,0,0,0,0,0,0,0,0,0,0,0,0,0,0,0,0,0,0]
["Southern_Nevada_Solar","CAISO","CAISO",2022,0,0,0,0,0,0,0,0,0,0,0,0,0,0,0,0,0,0,0,0,0]
["Southern_Nevada_Solar","CAISO","CAISO",2023,0,0,0,0,0,0,0,0,0,0,0,0,0,0,0,0,0,0,0,0,0]
["Southern_Nevada_Solar","CAISO","CAISO",2024,0,0,0,0,0,0,0,0,0,0,0,0,0,0,0,0,0,0,0,0,0]
["Southern_Nevada_Solar","CAISO","CAISO",2026,0,0,0,0,0,0,0,0,0,0,0,0,0,0,0,0,0,0,0,0,0]
["Southern_Nevada_Solar","CAISO","CAISO",2030,0,0,0,0,0,0,0,0,0,0,0,0,0,0,0,0,0,0,0,0,0]
["Southern_Nevada_Solar","CAISO","CAISO",2045,0,0,0,0,0,0,0,0,0,0,0,0,0,0,0,0,0,0,0,0,0]
["Southern_Nevada_Wind","CAISO","CAISO",2020,0,0,0,0,0,0,0,0,0,0,0,0,0,0,0,0,0,0,0,0,0]
["Southern_Nevada_Wind","CAISO","CAISO",2021,0,0,0,0,0,0,0,0,0,0,0,0,0,0,0,0,0,0,0,0,0]
["Southern_Nevada_Wind","CAISO","CAISO",2022,0,0,0,0,0,1088061.6946896799,37771329.474055298,0,0,0,0,0,0,0,0,0,0,0,0,13427.666839669901,0]
["Southern_Nevada_Wind","CAISO","CAISO",2023,0,0,0,0,0,1079668.5625801899,37309781.937030002,0,0,0,0,0,0,0,0,0,0,0,0,17053.389987832801,14959.773738379101]
["Southern_Nevada_Wind","CAISO","CAISO",2024,0,0,0,0,0,1080870.3341312499,37839454.336660303,0,0,0,0,0,0,0,0,0,0,0,0,14636.3170063743,2416.04393799523]
["Southern_Nevada_Wind","CAISO","CAISO",2026,0,0,0,0,0,1083449.95537148,49006513.894508898,0,0,0,0,0,0,0,0,0,0,0,0,7975.9579188713797,3527.5409384269201]
["Southern_Nevada_Wind","CAISO","CAISO",2030,0,0,0,0,0,1085450.0192746101,79685150.050724402,0,0,0,0,0,0,0,0,0,0,0,0,20215.1351060251,38372.8068893667]
["Southern_Nevada_Wind","CAISO","CAISO",2045,0,0,0,0,0,1060597.9995923899,108639382.97097,0,0,0,0,0,0,0,0,0,0,0,0,44425.855500017402,0]
["Tehachapi_Ex_Solar","CAISO","CAISO",2020,0,0,0,0,0,0,0,0,0,0,0,0,0,0,0,0,0,0,0,0,0]
["Tehachapi_Ex_Solar","CAISO","CAISO",2021,0,0,0,0,0,0,0,0,0,0,0,0,0,0,0,0,0,0,0,0,0]
["Tehachapi_Ex_Solar","CAISO","CAISO",2022,0,0,0,0,0,0,0,0,0,0,0,0,0,0,0,0,0,0,0,0,0]
["Tehachapi_Ex_Solar","CAISO","CAISO",2023,0,0,0,0,0,0,0,0,0,0,0,0,0,0,0,0,0,0,0,0,0]
["Tehachapi_Ex_Solar","CAISO","CAISO",2024,0,0,0,0,0,0,0,0,0,0,0,0,0,0,0,0,0,0,0,0,0]
["Tehachapi_Ex_Solar","CAISO","CAISO",2026,0,0,0,0,0,0,0,0,0,0,0,0,0,0,0,0,0,0,0,0,0]
["Tehachapi_Ex_Solar","CAISO","CAISO",2030,0,0,0,0,0,0,0,0,0,0,0,0,0,0,0,0,0,0,0,0,0]
["Tehachapi_Ex_Solar","CAISO","CAISO",2045,0,0,0,0,0,0,0,0,0,0,0,0,0,0,0,0,0,0,0,0,0]
["Tehachapi_Solar","CAISO","CAISO",2020,0,0,0,0,0,4050459.33021477,124169047.472426,0,0,0,0,0,0,0,0,0,0,0,0,53801.208642926496,0]
["Tehachapi_Solar","CAISO","CAISO",2021,0,0,0,0,0,9616168.8243472204,296052464.39722198,0,0,0,0,0,0,0,0,0,0,0,0,78079.050341071605,5533.9306228532796]
["Tehachapi_Solar","CAISO","CAISO",2022,0,0,0,0,0,11826051.965030899,345762569.18200397,0,0,0,0,0,0,0,0,0,0,0,0,171454.291191244,0]
["Tehachapi_Solar","CAISO","CAISO",2023,0,0,0,0,0,11815923.6883667,326321183.41187602,0,0,0,0,0,0,0,0,0,0,0,0,265833.63097376702,163148.389151346]
["Tehachapi_Solar","CAISO","CAISO",2024,0,0,0,0,0,11834563.3225112,327591313.42746001,0,0,0,0,0,0,0,0,0,0,0,0,222508.25301573201,89012.797526713199]
["Tehachapi_Solar","CAISO","CAISO",2026,0,0,0,0,0,13506117.8451318,507975294.87732702,0,0,0,0,0,0,0,0,0,0,0,0,117546.368862724,69588.311114452896]
["Tehachapi_Solar","CAISO","CAISO",2030,0,0,0,0,0,12994716.384881601,615782331.25518298,0,0,0,0,0,0,0,0,0,0,0,0,385700.47350604,515021.15255871398]
["Tehachapi_Solar","CAISO","CAISO",2045,0,0,0,0,0,10113624.5067816,702370091.06014705,0,0,0,0,0,0,0,0,0,0,0,0,534913.24576623796,0]
["Tehachapi_Wind","CAISO","CAISO",2020,0,0,0,0,0,0,0,0,0,0,0,0,0,0,0,0,0,0,0,0,0]
["Tehachapi_Wind","CAISO","CAISO",2021,0,0,0,0,0,0,0,0,0,0,0,0,0,0,0,0,0,0,0,0,0]
["Tehachapi_Wind","CAISO","CAISO",2022,0,0,0,0,0,826242.91649638198,28173737.610749301,0,0,0,0,0,0,0,0,0,0,0,0,6330.5502932270902,0]
["Tehachapi_Wind","CAISO","CAISO",2023,0,0,0,0,0,823805.54894147697,27790330.157300599,0,0,0,0,0,0,0,0,0,0,0,0,10101.29605176,5869.2590589961001]
["Tehachapi_Wind","CAISO","CAISO",2024,0,0,0,0,0,823095.44720337505,28136088.923460498,0,0,0,0,0,0,0,0,0,0,0,0,8558.3860276069499,5621.0124896695497]
["Tehachapi_Wind","CAISO","CAISO",2026,0,0,0,0,0,822541.15254175104,36372927.205930904,0,0,0,0,0,0,0,0,0,0,0,0,4050.7127568267201,1655.1162546543201]
["Tehachapi_Wind","CAISO","CAISO",2030,0,0,0,0,0,822036.50703321304,60176264.736786596,0,0,0,0,0,0,0,0,0,0,0,0,13991.8418322916,28791.395755904199]
["Tehachapi_Wind","CAISO","CAISO",2045,0,0,0,0,0,808534.64006962394,78097573.774920404,0,0,0,0,0,0,0,0,0,0,0,0,33354.080141615501,0]
["Utah_Solar","CAISO","CAISO",2020,0,0,0,0,0,0,0,0,0,0,0,0,0,0,0,0,0,0,0,0,0]
["Utah_Solar","CAISO","CAISO",2021,0,0,0,0,0,0,0,0,0,0,0,0,0,0,0,0,0,0,0,0,0]
["Utah_Solar","CAISO","CAISO",2022,0,0,0,0,0,0,0,0,0,0,0,0,0,0,0,0,0,0,0,0,0]
["Utah_Solar","CAISO","CAISO",2023,0,0,0,0,0,0,0,0,0,0,0,0,0,0,0,0,0,0,0,0,0]
["Utah_Solar","CAISO","CAISO",2024,0,0,0,0,0,0,0,0,0,0,0,0,0,0,0,0,0,0,0,0,0]
["Utah_Solar","CAISO","CAISO",2026,0,0,0,0,0,0,0,0,0,0,0,0,0,0,0,0,0,0,0,0,0]
["Utah_Solar","CAISO","CAISO",2030,0,0,0,0,0,0,0,0,0,0,0,0,0,0,0,0,0,0,0,0,0]
["Utah_Solar","CAISO","CAISO",2045,0,0,0,0,0,0,0,0,0,0,0,0,0,0,0,0,0,0,0,0,0]
["Utah_Wind","CAISO","CAISO",2020,0,0,0,0,0,0,0,0,0,0,0,0,0,0,0,0,0,0,0,0,0]
["Utah_Wind","CAISO","CAISO",2021,0,0,0,0,0,0,0,0,0,0,0,0,0,0,0,0,0,0,0,0,0]
["Utah_Wind","CAISO","CAISO",2022,0,0,0,0,0,0,0,0,0,0,0,0,0,0,0,0,0,0,0,0,0]
["Utah_Wind","CAISO","CAISO",2023,0,0,0,0,0,0,0,0,0,0,0,0,0,0,0,0,0,0,0,0,0]
["Utah_Wind","CAISO","CAISO",2024,0,0,0,0,0,0,0,0,0,0,0,0,0,0,0,0,0,0,0,0,0]
["Utah_Wind","CAISO","CAISO",2026,0,0,0,0,0,0,0,0,0,0,0,0,0,0,0,0,0,0,0,0,0]
["Utah_Wind","CAISO","CAISO",2030,0,0,0,0,0,0,0,0,0,0,0,0,0,0,0,0,0,0,0,0,0]
["Utah_Wind","CAISO","CAISO",2045,0,0,0,0,0,0,0,0,0,0,0,0,0,0,0,0,0,0,0,0,0]
["Westlands_Ex_Solar","CAISO","CAISO",2020,0,0,0,0,0,0,0,0,0,0,0,0,0,0,0,0,0,0,0,0,0]
["Westlands_Ex_Solar","CAISO","CAISO",2021,0,0,0,0,0,0,0,0,0,0,0,0,0,0,0,0,0,0,0,0,0]
["Westlands_Ex_Solar","CAISO","CAISO",2022,0,0,0,0,0,0,0,0,0,0,0,0,0,0,0,0,0,0,0,0,0]
["Westlands_Ex_Solar","CAISO","CAISO",2023,0,0,0,0,0,4750774.59031564,131483178.85914899,0,0,0,0,0,0,0,0,0,0,0,0,103193.797582403,61344.650484838901]
["Westlands_Ex_Solar","CAISO","CAISO",2024,0,0,0,0,0,4732997.3359383801,131912048.770483,0,0,0,0,0,0,0,0,0,0,0,0,81760.948020255106,34070.701255479202]
["Westlands_Ex_Solar","CAISO","CAISO",2026,0,0,0,0,0,4787118.9606547402,179013305.11633301,0,0,0,0,0,0,0,0,0,0,0,0,43469.661768721802,24148.0270822946]
["Westlands_Ex_Solar","CAISO","CAISO",2030,0,0,0,0,0,4681082.82668918,217110401.35317999,0,0,0,0,0,0,0,0,0,0,0,0,144402.44166986499,146018.162867473]
["Westlands_Ex_Solar","CAISO","CAISO",2045,0,0,0,0,0,4634859.43996293,242397778.36988601,0,0,0,0,0,0,0,0,0,0,0,0,278711.87747144001,0]
["Westlands_Ex_Wind","CAISO","CAISO",2020,0,0,0,0,0,0,0,0,0,0,0,0,0,0,0,0,0,0,0,0,0]
["Westlands_Ex_Wind","CAISO","CAISO",2021,0,0,0,0,0,0,0,0,0,0,0,0,0,0,0,0,0,0,0,0,0]
["Westlands_Ex_Wind","CAISO","CAISO",2022,0,0,0,0,0,0,0,0,0,0,0,0,0,0,0,0,0,0,0,0,0]
["Westlands_Ex_Wind","CAISO","CAISO",2023,0,0,0,0,0,0,0,0,0,0,0,0,0,0,0,0,0,0,0,0,0]
["Westlands_Ex_Wind","CAISO","CAISO",2024,0,0,0,0,0,0,0,0,0,0,0,0,0,0,0,0,0,0,0,0,0]
["Westlands_Ex_Wind","CAISO","CAISO",2026,0,0,0,0,0,0,0,0,0,0,0,0,0,0,0,0,0,0,0,0,0]
["Westlands_Ex_Wind","CAISO","CAISO",2030,0,0,0,0,0,0,0,0,0,0,0,0,0,0,0,0,0,0,0,0,0]
["Westlands_Ex_Wind","CAISO","CAISO",2045,0,0,0,0,0,0,0,0,0,0,0,0,0,0,0,0,0,0,0,0,0]
["Westlands_Solar","CAISO","CAISO",2020,0,0,0,0,0,0,0,0,0,0,0,0,0,0,0,0,0,0,0,0,0]
["Westlands_Solar","CAISO","CAISO",2021,0,0,0,0,0,0,0,0,0,0,0,0,0,0,0,0,0,0,0,0,0]
["Westlands_Solar","CAISO","CAISO",2022,0,0,0,0,0,0,0,0,0,0,0,0,0,0,0,0,0,0,0,0,0]
["Westlands_Solar","CAISO","CAISO",2023,0,0,0,0,0,108627.696246711,3007936.05702083,0,0,0,0,0,0,0,0,0,0,0,0,2353.5386239464901,1403.1103684064899]
["Westlands_Solar","CAISO","CAISO",2024,0,0,0,0,0,109445.928997129,3017746.6052944199,0,0,0,0,0,0,0,0,0,0,0,0,2050.61871981386,780.13357008536696]
["Westlands_Solar","CAISO","CAISO",2026,0,0,0,0,0,1659825.28780159,62196109.3968262,0,0,0,0,0,0,0,0,0,0,0,0,14904.590567629,8389.6930054570003]
["Westlands_Solar","CAISO","CAISO",2030,0,0,0,0,0,1649189.6478657101,75432542.099242002,0,0,0,0,0,0,0,0,0,0,0,0,53322.206108730701,57411.761219760403]
["Westlands_Solar","CAISO","CAISO",2045,0,0,0,0,0,138250663.88016999,7652626911.3576803,0,0,0,0,0,0,0,0,0,0,0,0,7936819.1663036197,0]
["Wyoming_Wind","CAISO","CAISO",2020,0,0,0,0,0,0,0,0,0,0,0,0,0,0,0,0,0,0,0,0,0]
["Wyoming_Wind","CAISO","CAISO",2021,0,0,0,0,0,0,0,0,0,0,0,0,0,0,0,0,0,0,0,0,0]
["Wyoming_Wind","CAISO","CAISO",2022,0,0,0,0,0,0,0,0,0,0,0,0,0,0,0,0,0,0,0,0,0]
["Wyoming_Wind","CAISO","CAISO",2023,0,0,0,0,0,0,0,0,0,0,0,0,0,0,0,0,0,0,0,0,0]
["Wyoming_Wind","CAISO","CAISO",2024,0,0,0,0,0,0,0,0,0,0,0,0,0,0,0,0,0,0,0,0,0]
["Wyoming_Wind","CAISO","CAISO",2026,0,0,0,0,0,0,0,0,0,0,0,0,0,0,0,0,0,0,0,0,0]
["Wyoming_Wind","CAISO","CAISO",2030,0,0,0,0,0,0,0,0,0,0,0,0,0,0,0,0,0,0,0,0,0]
["Wyoming_Wind","CAISO","CAISO",2045,0,0,0,0,0,5762952.4579045102,960743548.04771399,0,0,0,0,0,0,0,0,0,0,0,0,154894.596927693,0]

{"sheet":"raw_planning_reserve_margin","index":13,"n_rows":10,"n_cols":18,"rows_kept":10,"cut":false,"hidden":false,"merged":[]}
[]
["period","prm_peak_load_MW","planning_reserve_margin_fraction","capacity_target_MW","system_capacity_MW","firm_capacity_MW","prm_planned_import_capacity_MW","prm_import_resource_capacity_adjustment_MW","storage_ELCC_MW","new_renewable_import_capacity_MW","variable_renewable_ELCC_MW","planning_reserve_margin_dual_$","local_capacity_deficiency_MW","local_capacity_dual_$","marginal_solar_elcc_mw_per_fraction_of_annual_load","marginal_wind_elcc_mw_per_fraction_of_annual_load","active_elcc_facet_index","prm_peak_load_MW_before_EE_MW"]
[2020,49016.35,0.15,56368.800000000003,56368.800000000003,39391.22,5000,-1457,5074.8900000000003,0,8359.69,-564299.97,0,0,3135.01,25322.37,17,49016.35]
[2021,49168.4,0.15,56543.65,56543.65,36866.129999999997,5000,-1457,7704.75,0,8429.7800000000007,-975959.14,0,0,2040.84,25400.92,22,49168.4]
[2022,49716.65,0.15,57174.15,57363.41,36866.129999999997,5000,-1457,7704.75,0,9249.5300000000007,0,0,0,2063.59,16902.11,23,49716.65]
[2023,50370.080000000002,0.15,57925.59,57925.59,36866.129999999997,5000,-1457,8092.8,0,9423.66,-348935.19,0,0,2090.7199999999998,17124.25,23,50370.080000000002]
[2024,50927.23,0.15,58566.32,58566.32,35845.5,5000,-1457,9664.25,0,9513.56,-393036.47,0,0,2113.84,17313.669999999998,23,50927.23]
[2026,53864.49,0.15,61944.160000000003,61944.160000000003,34232.94,5000,-1457,14139.86,0,10028.36,-259337.44,0,0,2235.7600000000002,18312.240000000002,23,53864.49]
[2030,55945.08,0.15,64336.84,64336.84,34231.120000000003,5000,-1457,15585.94,0,10976.78,-77406.5,0,0,2322.12,19019.580000000002,23,55945.08]
[2045,64499.27,0.15,74174.16,74174.16,31615.16,5000,-1457,25660.560000000001,0,13355.45,-14246.03,0,0,2242.6799999999998,33516.53,21,64499.27]

{"sheet":"raw_resource_build","index":14,"n_rows":1362,"n_cols":27,"rows_kept":1362,"cut":false,"hidden":false,"merged":[]}
[]
["period","resource","zone","contract","technology","planned_capacity_mw","new_build_mw","cumulative_new_build_mw","operational_capacity_mw","transmission_zone","fully_deliverable_capacity_mw","energy_only_capacity_mw","new_build_flexible_load_capacity_mwh_per_day","total_flexible_load_capacity_mwh_per_day","hydrogen_electrolysis_capacity_mw","capacity_limit_dual_$","unit_size_mw","operational_units","capital_cost_$","fixed_o_and_m_cost_$","period_discount_factor","operational_planned_capacity_mw","retired_planned_capacity_mw","operational_new_capacity_mw","retired_new_capacity_mw","min_cumulative_new_build_mw","prm_mw"]
[2020,"CAISO_CHP","CAISO","CAISO","CAISO_CHP",2296.02,null,null,2296.02,null,null,null,null,null,null,null,null,null,null,0,1,2296.02,null,null,null,null,1455.68]
[2020,"CAISO_Nuclear","CAISO","CAISO","CAISO_Nuclear",2935,null,null,2935,null,null,null,null,null,null,null,null,null,null,0,1,2935,null,null,null,null,2914.91]
[2020,"CAISO_CCGT1","CAISO","CAISO","CAISO_CCGT1",12049.47,null,null,12049.47,null,null,null,null,null,null,null,532.4,22.63,null,133928841.7,1,12049.47,0,null,null,null,11320.1]
[2020,"CAISO_CCGT2","CAISO","CAISO","CAISO_CCGT2",2927.93,null,null,2927.93,null,null,null,null,null,null,null,187.53,15.61,null,32543694.739999998,1,2927.93,0,null,null,null,2927.58]
[2020,"CAISO_Coal","CAISO","CAISO","CAISO_Coal",480,null,null,480,null,null,null,null,null,null,null,849.97,0.56000000000000005,null,0,1,480,null,null,null,null,470.43]
[2020,"CAISO_Peaker1","CAISO","CAISO","CAISO_Peaker1",4913.93,null,null,4913.93,null,null,null,null,null,null,null,67.59,72.7,null,67294545.829999998,1,4913.93,0,null,null,null,4539.17]
[2020,"CAISO_Peaker2","CAISO","CAISO","CAISO_Peaker2",3682.71,null,null,3682.71,null,null,null,null,null,null,null,53,69.48,null,50433420.270000003,1,3682.71,0,null,null,null,3540.17]
[2020,"CAISO_Advanced_CCGT","CAISO","CAISO","CAISO_Advanced_CCGT",0,0,0,0,null,null,null,null,null,null,-429142.11,600,0,0,0,1,0,0,0,0,0,0]
[2020,"CAISO_Aero_CT","CAISO","CAISO","CAISO_Aero_CT",0,0,0,0,null,null,null,null,null,null,-406927.39,100,0,0,0,1,0,0,0,0,0,0]
[2020,"CAISO_Reciprocating_Engine","CAISO","CAISO","CAISO_Reciprocating_Engine",255.3,0,0,255.3,null,null,null,null,null,null,0,10.36,24.65,132.41999999999999,3496257.55,1,255.3,0,0,0,0,254.7]
[2020,"CAISO_ST","CAISO","CAISO","CAISO_ST",3733,null,null,3733,null,null,null,null,null,null,null,341.83,10.92,null,41491979.82,1,3733,null,null,null,null,3731.37]
[2020,"NW_Nuclear","NW","NW","NW_Nuclear",1170,null,null,1170,null,null,null,null,null,null,null,null,null,null,0,1,1170]
[2020,"NW_Coal","NW","NW","NW_Coal",10664.8,null,null,10664.8,null,null,null,null,null,null,null,367.75,29,null,0,1,10664.8]
[2020,"NW_CCGT","NW","NW","NW_CCGT",9068.31,null,null,9068.31,null,null,null,null,null,null,null,341.91,26.52,null,0,1,9068.31]
[2020,"NW_Peaker","NW","NW","NW_Peaker",2993.17,null,null,2993.17,null,null,null,null,null,null,null,29.06,103,null,0,1,2993.17]
[2020,"SW_Nuclear","SW","SW","SW_Nuclear",2998,null,null,2998,null,null,null,null,null,null,null,null,null,null,0,1,2998]
[2020,"SW_Coal","SW","SW","SW_Coal",7167.6,null,null,7167.6,null,null,null,null,null,null,null,409.46,17.5,null,0,1,7167.6]
[2020,"SW_CCGT","SW","SW","SW_CCGT",17015.099999999999,null,null,17015.099999999999,null,null,null,null,null,null,null,344.28,49.42,null,0,1,17015.099999999999]
[2020,"SW_Peaker","SW","SW","SW_Peaker",5989.12,null,null,5989.12,null,null,null,null,null,null,null,47.78,125.34,null,0,1,5989.12]
[2020,"SW_ST","SW","SW","SW_ST",1611.5,null,null,1611.5,null,null,null,null,null,null,null,92.71,17.38,null,0,1,1611.5]
[2020,"LDWP_Nuclear","LDWP","LDWP","LDWP_Nuclear",407,null,null,407,null,null,null,null,null,null,null,null,null,null,0,1,407]
[2020,"LDWP_Coal","LDWP","LDWP","LDWP_Coal",1699.94,null,null,1699.94,null,null,null,null,null,null,null,849.97,2,null,0,1,1699.94]
[2020,"LDWP_CCGT","LDWP","LDWP","LDWP_CCGT",2291.6999999999998,null,null,2291.6999999999998,null,null,null,null,null,null,null,385.96,5.94,null,0,1,2291.6999999999998]
[2020,"LDWP_Peaker","LDWP","LDWP","LDWP_Peaker",1545,null,null,1545,null,null,null,null,null,null,null,82.35,18.760000000000002,null,0,1,1545]
[2020,"LDWP_ST","LDWP","LDWP","LDWP_ST",992,null,null,992,null,null,null,null,null,null,null,110.22,9,null,0,1,992]
[2020,"IID_CCGT","IID","IID","IID_CCGT",255.3,null,null,255.3,null,null,null,null,null,null,null,127.65,2,null,0,1,255.3]
[2020,"IID_Peaker","IID","IID","IID_Peaker",397,null,null,397,null,null,null,null,null,null,null,36.090000000000003,11,null,0,1,397]
[2020,"BANC_CCGT","BANC","BANC","BANC_CCGT",1863.1,null,null,1863.1,null,null,null,null,null,null,null,207.01,9,null,0,1,1863.1]
[2020,"BANC_Peaker","BANC","BANC","BANC_Peaker",866.99,null,null,866.99,null,null,null,null,null,null,null,34.68,25,null,0,1,866.99]
[2020,"BANC_Biomass_for_Other","BANC","BANC","Biomass",17.5,null,null,17.5,null,null,null,null,null,null,null,null,null,null,0,1,17.5]
[2020,"BANC_Geothermal_for_Other","BANC","BANC","Geothermal",0,null,null,0,null,null,null,null,null,null,null,null,null,null,0,1,0]
[2020,"CAISO_Biomass_for_Other","CAISO","CAISO","Biomass",11.7,null,null,11.7,null,null,null,null,null,null,null,null,null,null,0,1,11.7,null,null,null,null,8.17]
[2020,"CAISO_Geothermal_for_Other","CAISO","CAISO","Geothermal",38.67,null,null,38.67,null,null,null,null,null,null,null,null,null,null,0,1,38.67,null,null,null,null,23.82]
[2020,"IID_Biomass_for_Other","IID","IID","Biomass",77,null,null,77,null,null,null,null,null,null,null,null,null,null,0,1,77]
[2020,"IID_Geothermal_for_Other","IID","IID","Geothermal",709.46,null,null,709.46,null,null,null,null,null,null,null,null,null,null,0,1,709.46]
[2020,"LDWP_Biomass_for_Other","LDWP","LDWP","Biomass",0,null,null,0,null,null,null,null,null,null,null,null,null,null,0,1,0]
[2020,"LDWP_Geothermal_for_Other","LDWP","LDWP","Geothermal",0,null,null,0,null,null,null,null,null,null,null,null,null,null,0,1,0]
[2020,"NW_Biomass_for_Other","NW","NW","Biomass",591.6,null,null,591.6,null,null,null,null,null,null,null,null,null,null,0,1,591.6]
[2020,"NW_Geothermal_for_Other","NW","NW","Geothermal",142.09,null,null,142.09,null,null,null,null,null,null,null,null,null,null,0,1,142.09]
[2020,"SW_Biomass_for_Other","SW","SW","Biomass",113.33,null,null,113.33,null,null,null,null,null,null,null,null,null,null,0,1,113.33]
[2020,"SW_Geothermal_for_Other","SW","SW","Geothermal",659.1,null,null,659.1,null,null,null,null,null,null,null,null,null,null,0,1,659.1]
[2020,"CAISO_Biomass_for_CAISO","CAISO","CAISO","Biomass",890.95,null,null,890.95,null,null,null,null,null,null,null,null,null,null,0,1,890.95,null,null,null,null,621.88]
[2020,"CAISO_Geothermal_for_CAISO","CAISO","CAISO","Geothermal",1812.64,null,null,1812.64,null,null,null,null,null,null,null,null,null,null,0,1,1812.64,null,null,null,null,1116.5899999999999]
[2020,"IID_Geothermal_for_CAISO","IID","CAISO","Geothermal",83,null,null,83,null,null,null,null,null,null,null,null,null,null,0,1,83]
[2020,"NW_Biomass_for_CAISO","NW","CAISO","Biomass",46,null,null,46,null,null,null,null,null,null,null,null,null,null,0,1,46]
[2020,"NW_Geothermal_for_CAISO","NW","CAISO","Geothermal",0,null,null,0,null,null,null,null,null,null,null,null,null,null,0,1,0]
[2020,"InState_Biomass","CAISO","CAISO","Biomass",0,0,0,0,"None",0,0,null,null,null,0,null,null,0,0,1,0,null,0,null,0,0]
[2020,"CAISO_Small_Hydro_for_CAISO","CAISO","CAISO","Small_Hydro",960.23,null,null,960.23,null,null,null,null,null,null,null,null,null,null,0,1,960.23,null,null,null,null,480.11]
[2020,"BANC_Small_Hydro_for_CAISO","BANC","CAISO","Small_Hydro",0,null,null,0,null,null,null,null,null,null,null,null,null,null,0,1,0]
[2020,"NW_Small_Hydro_for_CAISO","NW","CAISO","Small_Hydro",6.9,null,null,6.9,null,null,null,null,null,null,null,null,null,null,0,1,6.9]
[2020,"CAISO_Small_Hydro_for_Other","CAISO","CAISO","Small_Hydro",13.8,null,null,13.8,null,null,null,null,null,null,null,null,null,null,0,1,13.8,null,null,null,null,6.9]
[2020,"BANC_Small_Hydro_for_Other","BANC","BANC","Small_Hydro",41.2,null,null,41.2,null,null,null,null,null,null,null,null,null,null,0,1,41.2]
[2020,"IID_Small_Hydro_for_Other","IID","IID","Small_Hydro",0,null,null,0,null,null,null,null,null,null,null,null,null,null,0,1,0]
[2020,"LDWP_Small_Hydro_for_Other","LDWP","LDWP","Small_Hydro",56,null,null,56,null,null,null,null,null,null,null,null,null,null,0,1,56]
[2020,"NW_Small_Hydro_for_Other","NW","NW","Small_Hydro",41,null,null,41,null,null,null,null,null,null,null,null,null,null,0,1,41]
[2020,"SW_Small_Hydro_for_Other","SW","SW","Small_Hydro",0,null,null,0,null,null,null,null,null,null,null,null,null,null,0,1,0]
[2020,"Greater_Imperial_Geothermal","CAISO","CAISO","Geothermal",0,0,0,0,"SCADSNV-Greater_Imperial",0,0,null,null,null,-155179.25,null,null,0,0,1,0,null,0,null,0,0]
[2020,"Inyokern_North_Kramer_Geothermal","CAISO","CAISO","Geothermal",0,0,0,0,"Inyokern_North_Kramer-Greater_Kramer",0,0,null,null,null,0,null,null,0,0,1,0,null,0,null,0,0]
[2020,"Northern_California_Ex_Geothermal","CAISO","CAISO","Geothermal",0,0,0,0,"Northern_California_Ex",0,0,null,null,null,0,null,null,0,0,1,0,null,0,null,0,0]
[2020,"Pacific_Northwest_Geothermal","CAISO","CAISO","Geothermal",0,null,null,0,null,null,null,null,null,null,null,null,null,null,0,1,0,null,null,null,null,0]
[2020,"Riverside_Palm_Springs_Geothermal","CAISO","CAISO","Geothermal",0,0,0,0,"SCADSNV-Riverside_Palm_Springs",0,0,null,null,null,0,null,null,0,0,1,0,null,0,null,0,0]
[2020,"Solano_Geothermal","CAISO","CAISO","Geothermal",0,0,0,0,"Solano-Sacramento_River",0,0,null,null,null,-184444.41,null,null,0,0,1,0,null,0,null,0,0]
[2020,"Southern_Nevada_Geothermal","CAISO","CAISO","Geothermal",0,0,0,0,"SCADSNV-Mountain_Pass_El_Dorado",0,0,null,null,null,-139319.47,null,null,0,0,1,0,null,0,null,0,0]
[2020,"Customer_PV","CAISO","CAISO","Customer_PV",7269.29,null,null,7269.29,null,null,null,null,null,null,null,null,null,null,0,1,7269.29]
[2020,"BANC_Solar_for_Other","BANC","BANC","Solar",2077.6799999999998,null,null,2077.6799999999998,null,null,null,null,null,null,null,null,null,null,0,1,2077.6799999999998]
[2020,"CAISO_Solar_for_Other","CAISO","CAISO","Solar",12,null,null,12,null,null,null,null,null,null,null,null,null,null,0,1,12]
[2020,"IID_Solar_for_Other","IID","IID","Solar",138.69999999999999,null,null,138.69999999999999,null,null,null,null,null,null,null,null,null,null,0,1,138.69999999999999]
[2020,"LDWP_Solar_for_Other","LDWP","LDWP","Solar",2410.94,null,null,2410.94,null,null,null,null,null,null,null,null,null,null,0,1,2410.94]
[2020,"NW_Solar_for_Other","NW","NW","Solar",2665.84,null,null,2665.84,null,null,null,null,null,null,null,null,null,null,0,1,2665.84]
[2020,"SW_Solar_for_Other","SW","SW","Solar",1548.14,null,null,1548.14,null,null,null,null,null,null,null,null,null,null,0,1,1548.14]
[2020,"CAISO_Solar_for_CAISO","CAISO","CAISO","Solar",14298.33,null,null,14298.33,null,null,null,null,null,null,null,null,null,null,0,1,14298.33]
[2020,"IID_Solar_for_CAISO","IID","CAISO","Solar",49.9,null,null,49.9,null,null,null,null,null,null,null,null,null,null,0,1,49.9]
[2020,"SW_Solar_for_CAISO","SW","CAISO","Solar",65,null,null,65,null,null,null,null,null,null,null,null,null,null,0,1,65]
[2020,"BANC_Wind_for_Other","BANC","BANC","Wind",0,null,null,0,null,null,null,null,null,null,null,null,null,null,0,1,0]
[2020,"CAISO_Wind_for_Other","CAISO","CAISO","Wind",279.98,null,null,279.98,null,null,null,null,null,null,null,null,null,null,0,1,279.98]
[2020,"IID_Wind_for_Other","IID","IID","Wind",0,null,null,0,null,null,null,null,null,null,null,null,null,null,0,1,0]
[2020,"LDWP_Wind_for_Other","LDWP","LDWP","Wind",418.41,null,null,418.41,null,null,null,null,null,null,null,null,null,null,0,1,418.41]
[2020,"NW_Wind_for_Other","NW","NW","Wind",11058.39,null,null,11058.39,null,null,null,null,null,null,null,null,null,null,0,1,11058.39]
[2020,"SW_Wind_for_Other","SW","SW","Wind",2285.6999999999998,null,null,2285.6999999999998,null,null,null,null,null,null,null,null,null,null,0,1,2285.6999999999998]
[2020,"CAISO_Wind_for_CAISO","CAISO","CAISO","Wind",7076.58,null,null,7076.58,null,null,null,null,null,null,null,null,null,null,0,1,7076.58]
[2020,"LDWP_Wind_for_CAISO","LDWP","CAISO","Wind",5.09,null,null,5.09,null,null,null,null,null,null,null,null,null,null,0,1,5.09]
[2020,"NW_Wind_for_CAISO","NW","CAISO","Wind",1417.29,null,null,1417.29,null,null,null,null,null,null,null,null,null,null,0,1,1417.29]
[2020,"SW_Wind_for_CAISO","SW","CAISO","Wind",50.4,null,null,50.4,null,null,null,null,null,null,null,null,null,null,0,1,50.4]
[2020,"Carrizo_Solar","CAISO","CAISO","Solar",0,0,0,0,"Kern_Greater_Carrizo-SPGE-Carrizo",0,0,null,null,null,0,null,null,0,0,1,0,null,0,null,0]
[2020,"Carrizo_Wind","CAISO","CAISO","Wind",0,0,0,0,"Kern_Greater_Carrizo-SPGE-Carrizo",0,0,null,null,null,-255131.62,null,null,0,0,1,0,null,0,null,0]
[2020,"Central_Valley_North_Los_Banos_Solar","CAISO","CAISO","Solar",0,0,0,0,"Central_Valley_North_Los_Banos-SPGE",0,0,null,null,null,0,null,null,0,0,1,0,null,0,null,0]
[2020,"Central_Valley_North_Los_Banos_Wind","CAISO","CAISO","Wind",0,0,0,0,"Central_Valley_North_Los_Banos-SPGE",0,0,null,null,null,-256853.84,null,null,0,0,1,0,null,0,null,0]
[2020,"Distributed_Solar","CAISO","CAISO","Solar",0,0,0,0,"None",0,0,null,null,null,0,null,null,0,0,1,0,null,0,null,0]
[2020,"Mountain_Pass_El_Dorado_Solar","CAISO","CAISO","Solar",0,0,0,0,null,0,0,null,null,null,0,null,null,0,0,1,0,null,0,null,0]
[2020,"Greater_Imperial_Solar","CAISO","CAISO","Solar",0,0,0,0,"SCADSNV-Greater_Imperial",0,0,null,null,null,0,null,null,0,0,1,0,null,0,null,0]
[2020,"Greater_Imperial_Wind","CAISO","CAISO","Wind",0,0,0,0,"SCADSNV-Greater_Imperial",0,0,null,null,null,-309532.64,null,null,0,0,1,0,null,0,null,0]
[2020,"Greater_Kramer_Wind","CAISO","CAISO","Wind",0,0,0,0,"Greater_Kramer",0,0,null,null,null,-258351.8,null,null,0,0,1,0,null,0,null,0]
[2020,"Humboldt_Wind","CAISO","CAISO","Wind",0,0,0,0,"Sacramento_River-Humboldt",0,0,null,null,null,-98495.85,null,null,0,0,1,0,null,0,null,0]
[2020,"Inyokern_North_Kramer_Solar","CAISO","CAISO","Solar",0,0,0,0,"Inyokern_North_Kramer-Greater_Kramer",0,0,null,null,null,0,null,null,0,0,1,0,null,0,null,0]
[2020,"Kern_Greater_Carrizo_Solar","CAISO","CAISO","Solar",0,0,0,0,"Kern_Greater_Carrizo-SPGE",0,0,null,null,null,0,null,null,0,0,1,0,null,0,null,0]
[2020,"Kern_Greater_Carrizo_Wind","CAISO","CAISO","Wind",0,0,0,0,"Kern_Greater_Carrizo-SPGE",0,0,null,null,null,-242355.93,null,null,0,0,1,0,null,0,null,0]
[2020,"Kramer_Inyokern_Ex_Solar","CAISO","CAISO","Solar",0,0,0,0,"Kramer_Inyokern_Ex",0,0,null,null,null,0,null,null,0,0,1,0,null,0,null,0]
[2020,"Kramer_Inyokern_Ex_Wind","CAISO","CAISO","Wind",0,0,0,0,"Kramer_Inyokern_Ex",0,0,null,null,null,0,null,null,0,0,1,0,null,0,null,0]
[2020,"North_Victor_Solar","CAISO","CAISO","Solar",0,0,0,0,"North_Victor-Greater_Kramer",0,0,null,null,null,0,null,null,0,0,1,0,null,0,null,0]
[2020,"Northern_California_Ex_Solar","CAISO","CAISO","Solar",0,0,0,0,"Northern_California_Ex",0,0,null,null,null,0,null,null,0,0,1,0,null,0,null,0]
[2020,"Northern_California_Ex_Wind","CAISO","CAISO","Wind",0,0,0,0,"Sacramento_River",0,0,null,null,null,-230436.35,null,null,0,0,1,0,null,0,null,0]
[2020,"NW_Ext_Tx_Wind","CAISO","CAISO","Wind",0,0,0,0,"Sacramento_River",0,0,null,null,null,-199373.46,null,null,0,0,1,0,null,0,null,0]
[2020,"Riverside_Palm_Springs_Solar","CAISO","CAISO","Solar",0,0,0,0,"SCADSNV-Riverside_Palm_Springs",0,0,null,null,null,0,null,null,0,0,1,0,null,0,null,0]
[2020,"Sacramento_River_Solar","CAISO","CAISO","Solar",0,0,0,0,"Sacramento_River",0,0,null,null,null,0,null,null,0,0,1,0,null,0,null,0]
[2020,"Sacramento_River_Wind","CAISO","CAISO","Wind",0,null,null,0,null,null,null,null,null,null,null,null,null,null,0,1,0]
[2020,"SCADSNV_Solar","CAISO","CAISO","Solar",0,0,0,0,"SCADSNV",0,0,null,null,null,0,null,null,0,0,1,0,null,0,null,0]
[2020,"SCADSNV_Wind","CAISO","CAISO","Wind",0,0,0,0,"SCADSNV",0,0,null,null,null,-246056.38,null,null,0,0,1,0,null,0,null,0]
[2020,"Solano_Solar","CAISO","CAISO","Solar",0,0,0,0,"Solano-Sacramento_River",0,0,null,null,null,0,null,null,0,0,1,0,null,0,null,0]
[2020,"Solano_subzone_Solar","CAISO","CAISO","Solar",0,0,0,0,"Solano-Solano_subzone-Sacramento_River",0,0,null,null,null,0,null,null,0,0,1,0,null,0,null,0]
[2020,"Solano_subzone_Wind","CAISO","CAISO","Wind",0,0,0,0,"Solano-Solano_subzone-Sacramento_River",0,0,null,null,null,0,null,null,0,0,1,0,null,0,null,0]
[2020,"Solano_Wind","CAISO","CAISO","Wind",0,0,0,0,"Solano-Sacramento_River",0,0,null,null,null,-249075.81,null,null,0,0,1,0,null,0,null,0]
[2020,"Southern_California_Desert_Ex_Solar","CAISO","CAISO","Solar",0,0,0,0,"Southern_California_Desert_Ex",0,0,null,null,null,0,null,null,0,0,1,0,null,0,null,0]
[2020,"Southern_California_Desert_Ex_Wind","CAISO","CAISO","Wind",0,0,0,0,"Southern_California_Desert_Ex",0,0,null,null,null,-196864.36,null,null,0,0,1,0,null,0,null,0]
[2020,"Southern_Nevada_Solar","CAISO","CAISO","Solar",0,0,0,0,"SCADSNV-GLW_VEA",0,0,null,null,null,0,null,null,0,0,1,0,null,0,null,0]
[2020,"Southern_Nevada_Wind","CAISO","CAISO","Wind",0,0,0,0,"SCADSNV-GLW_VEA",0,0,null,null,null,-206723.7,null,null,0,0,1,0,null,0,null,0]
[2020,"SW_Ext_Tx_Wind","CAISO","CAISO","Wind",0,0,0,0,"SCADSNV-Riverside_Palm_Springs",0,0,null,null,null,-254481.08,null,null,0,0,1,0,null,0,null,0]
[2020,"Tehachapi_Ex_Solar","CAISO","CAISO","Solar",0,0,0,0,"Tehachapi_Ex",0,0,null,null,null,0,null,null,0,0,1,0,null,0,null,0]
[2020,"Tehachapi_Solar","CAISO","CAISO","Solar",0,1437,1437,1437,"Tehachapi",1437,0,null,null,null,0,null,null,95568665.75,16080393.82,1,0,null,1437,null,0]
[2020,"Tehachapi_Wind","CAISO","CAISO","Wind",0,0,0,0,"Tehachapi",0,0,null,null,null,-299465.63,null,null,0,0,1,0,null,0,null,0]
[2020,"Westlands_Ex_Solar","CAISO","CAISO","Solar",0,0,0,0,"Westlands_Ex",0,0,null,null,null,0,null,null,0,0,1,0,null,0,null,0]
[2020,"Westlands_Ex_Wind","CAISO","CAISO","Wind",0,null,null,0,null,null,null,null,null,null,null,null,null,null,0,1,0]
[2020,"Westlands_Solar","CAISO","CAISO","Solar",0,0,0,0,"Central_Valley_North_Los_Banos-SPGE",0,0,null,null,null,0,null,null,0,0,1,0,null,0,null,0]
[2020,"Arizona_Solar","CAISO","CAISO","Solar",0,563,563,563,"SCADSNV-Riverside_Palm_Springs",563,0,null,null,null,0,null,null,36489988.789999999,6099850.79,1,0,null,563,null,0]
[2020,"Arizona_Wind","CAISO","CAISO","Wind",0,null,null,0,null,null,null,null,null,null,null,null,null,null,0,1,0]
[2020,"Baja_California_Solar","CAISO","CAISO","Solar",0,null,null,0,null,null,null,null,null,null,null,null,null,null,0,1,0]
[2020,"Baja_California_Wind","CAISO","CAISO","Wind",0,0,0,0,"SCADSNV-Greater_Imperial",0,0,null,null,null,-334317.94,null,null,0,0,1,0,null,0,null,0]
[2020,"Idaho_Wind","CAISO","CAISO","Wind",0,null,null,0,null,null,null,null,null,null,null,null,null,null,0,1,0]
[2020,"New_Mexico_Solar","CAISO","CAISO","Solar",0,null,null,0,null,null,null,null,null,null,null,null,null,null,0,1,0]
[2020,"New_Mexico_Wind","CAISO","CAISO","Wind",0,0,0,0,"SCADSNV-Riverside_Palm_Springs",0,0,null,null,null,-329209.33,null,null,0,0,1,0,null,0,null,0]
[2020,"Utah_Solar","CAISO","CAISO","Solar",0,null,null,0,null,null,null,null,null,null,null,null,null,null,0,1,0]
[2020,"Utah_Wind","CAISO","CAISO","Wind",0,null,null,0,null,null,null,null,null,null,null,null,null,null,0,1,0]
[2020,"Wyoming_Wind","CAISO","CAISO","Wind",0,0,0,0,"SCADSNV-Mountain_Pass_El_Dorado",0,0,null,null,null,-314857.03999999998,null,null,0,0,1,0,null,0,null,0]
[2020,"Pacific_Northwest_Wind","CAISO","CAISO","Wind",0,null,null,0,null,null,null,null,null,null,null,null,null,null,0,1,0]
[2020,"Diablo_Canyon_Offshore_Wind","CAISO","CAISO","Offshore_Wind",0,null,null,0,null,null,null,null,null,null,null,null,null,null,0,1,0]
[2020,"Humboldt_Bay_Offshore_Wind","CAISO","CAISO","Offshore_Wind",0,null,null,0,null,null,null,null,null,null,null,null,null,null,0,1,0]
[2020,"Morro_Bay_Offshore_Wind","CAISO","CAISO","Offshore_Wind",0,null,null,0,null,null,null,null,null,null,null,null,null,null,0,1,0]
[2020,"Diablo_Canyon_Offshore_Wind_Ext_Tx","CAISO","CAISO","Offshore_Wind",0,null,null,0,null,null,null,null,null,null,null,null,null,null,0,1,0]
[2020,"Cape_Mendocino_Offshore_Wind","CAISO","CAISO","Offshore_Wind",0,null,null,0,null,null,null,null,null,null,null,null,null,null,0,1,0]
[2020,"Del_Norte_Offshore_Wind","CAISO","CAISO","Offshore_Wind",0,null,null,0,null,null,null,null,null,null,null,null,null,null,0,1,0]
[2020,"CAISO_Existing_Pumped_Storage","CAISO","CAISO","Pumped_Hydro",1599.2,null,null,1599.2,null,null,null,null,null,null,null,null,null,null,0,1,1599.2,null,null,null,null,1599.2]
[2020,"CAISO_New_Pumped_Storage","CAISO","CAISO","Pumped_Hydro",0,0,0,0,null,null,null,null,null,null,-969078.89,null,null,0,0,1,0,null,0,null,0,0]
[2020,"CAISO_New_Flow_Battery","CAISO","CAISO","Flow_Battery",0,0,0,0,null,null,null,null,null,null,0,null,null,0,0,1,0,null,0,null,0,0]
[2020,"CAISO_New_Flow_Battery_2","CAISO","CAISO","Flow_Battery",0,0,0,0,null,null,null,null,null,null,0,null,null,0,0,1,0,null,0,null,0,0]
[2020,"CAISO_New_Flow_Battery_3","CAISO","CAISO","Flow_Battery",0,0,0,0,null,null,null,null,null,null,0,null,null,0,0,1,0,null,0,null,0,0]
[2020,"CAISO_New_Flow_Battery_4","CAISO","CAISO","Flow_Battery",0,0,0,0,null,null,null,null,null,null,0,null,null,0,0,1,0,null,0,null,0,0]
[2020,"CAISO_New_Flow_Battery_5","CAISO","CAISO","Flow_Battery",0,0,0,0,null,null,null,null,null,null,null,null,null,0,0,1,0,null,0,null,0,0]
[2020,"CAISO_New_Li_Battery","CAISO","CAISO","Li_Battery",0,3418.1,3418.1,3418.1,null,null,null,null,null,null,0,null,null,530830967.63,45375490.920000002,1,0,null,3418.1,null,971.35,3418.1]
[2020,"CAISO_BTM_Li_Battery","CAISO","CAISO","BTM_Li_Battery",92.14,0,0,92.14,null,null,null,null,null,null,0,null,null,0,878656.68,1,92.14,null,0,null,0,57.59]
[2020,"CAISO_New_Li_Battery_2","CAISO","CAISO","Li_Battery",0,0,0,0,null,null,null,null,null,null,0,null,null,0,0,1,0,null,0,null,0,0]
[2020,"CAISO_New_Li_Battery_3","CAISO","CAISO","Li_Battery",0,0,0,0,null,null,null,null,null,null,0,null,null,0,0,1,0,null,0,null,0,0]
[2020,"CAISO_New_Li_Battery_4","CAISO","CAISO","Li_Battery",0,0,0,0,null,null,null,null,null,null,0,null,null,0,0,1,0,null,0,null,0,0]
[2020,"CAISO_New_Li_Battery_5","CAISO","CAISO","Li_Battery",0,0,0,0,null,null,null,null,null,null,null,null,null,0,0,1,0,null,0,null,0,0]
[2020,"CAISO_New_Li_Battery_6","CAISO","CAISO","Li_Battery",0,0,0,0,null,null,null,null,null,null,null,null,null,0,0,1,0,null,0,null,0,0]
[2020,"CAISO_Hydro","CAISO","CAISO","Hydro",7070.1,null,null,7070.1,null,null,null,null,null,null,null,null,null,null,0,1,7070.1,null,null,null,null,5979.64]
[2020,"NW_Hydro","NW","NW","Hydro",31478.05,null,null,31478.05,null,null,null,null,null,null,null,null,null,null,0,1,31478.05]
[2020,"SW_Hydro","SW","SW","Hydro",2680.31,null,null,2680.31,null,null,null,null,null,null,null,null,null,null,0,1,2680.31]
[2020,"LDWP_Hydro","LDWP","LDWP","Hydro",233.7,null,null,233.7,null,null,null,null,null,null,null,null,null,null,0,1,233.7]
[2020,"BANC_Hydro","BANC","BANC","Hydro",2724.06,null,null,2724.06,null,null,null,null,null,null,null,null,null,null,0,1,2724.06]
[2020,"IID_Hydro","IID","IID","Hydro",83.5,null,null,83.5,null,null,null,null,null,null,null,null,null,null,0,1,83.5]
[2020,"NW_Hydro_for_CAISO","CAISO_NW_Hydro","CAISO_NW_Hydro","Hydro_NW_CAISO",2851.77,null,null,2851.77,null,null,null,null,null,null,null,null,null,null,0,1,2851.77]
[2020,"Hydrogen_electrolysis","CAISO","CAISO","Hydrogen_Electrolysis",null,null,null,null,null,null,null,null,null,0,null,null,null,null,0,1,0]
[2020,"CAISO_Shed_DR_Existing","CAISO","CAISO","CAISO_Conventional_DR",0,null,null,0,null,null,null,null,null,null,null,1,0,null,0,1,0,null,null,null,null,0]
[2020,"CAISO_Shed_DR_Tranche1","CAISO","CAISO","CAISO_Conventional_DR",0,0,0,0,null,null,null,null,null,null,-539299.97,1,0,0,0,1,0,null,0,null,0,0]
[2020,"CAISO_Shed_DR_Tranche2","CAISO","CAISO","CAISO_Conventional_DR",0,0,0,0,null,null,null,null,null,null,-514299.97,1,0,0,0,1,0,null,0,null,0,0]
[2020,"CAISO_Shed_DR_Tranche3","CAISO","CAISO","CAISO_Conventional_DR",0,0,0,0,null,null,null,null,null,null,-489299.97,1,0,0,0,1,0,null,0,null,0,0]
[2020,"CAISO_Shed_DR_Tranche4","CAISO","CAISO","CAISO_Conventional_DR",0,0,0,0,null,null,null,null,null,null,-464299.97,1,0,0,0,1,0,null,0,null,0,0]
[2020,"CAISO_Shed_DR_Tranche5","CAISO","CAISO","CAISO_Conventional_DR",0,0,0,0,null,null,null,null,null,null,-439299.97,1,0,0,0,1,0,null,0,null,0,0]
[2020,"CAISO_Shed_DR_Tranche6","CAISO","CAISO","CAISO_Conventional_DR",0,0,0,0,null,null,null,null,null,null,-414299.97,1,0,0,0,1,0,null,0,null,0,0]
[2020,"CAISO_Shed_DR_Tranche7","CAISO","CAISO","CAISO_Conventional_DR",0,0,0,0,null,null,null,null,null,null,-30121.75,1,0,0,0,1,0,null,0,null,0,0]
[2020,"CAISO_Shed_DR_Tranche8","CAISO","CAISO","CAISO_Conventional_DR",0,0,0,0,null,null,null,null,null,null,0,1,0,0,0,1,0,null,0,null,0,0]
[2021,"CAISO_CHP","CAISO","CAISO","CAISO_CHP",2296.02,null,null,2296.02,null,null,null,null,null,null,null,null,null,null,0,0.952380952380952,2296.02,null,null,null,null,1455.68]
[2021,"CAISO_Nuclear","CAISO","CAISO","CAISO_Nuclear",2935,null,null,2935,null,null,null,null,null,null,null,null,null,null,0,0.952380952380952,2935,null,null,null,null,2914.91]
[2021,"CAISO_CCGT1","CAISO","CAISO","CAISO_CCGT1",13333.47,null,null,13333.47,null,null,null,null,null,null,null,532.4,25.04,null,148200393.30000001,0.952380952380952,13333.47,0,null,null,null,12526.38]
[2021,"CAISO_CCGT2","CAISO","CAISO","CAISO_CCGT2",2927.93,null,null,2927.93,null,null,null,null,null,null,null,187.53,15.61,null,32543694.739999998,0.952380952380952,2927.93,0,null,null,null,2927.58]
[2021,"CAISO_Coal","CAISO","CAISO","CAISO_Coal",480,null,null,480,null,null,null,null,null,null,null,849.97,0.56000000000000005,null,0,0.952380952380952,480,null,null,null,null,470.43]
[2021,"CAISO_Peaker1","CAISO","CAISO","CAISO_Peaker1",4913.93,null,null,4913.93,null,null,null,null,null,null,null,67.59,72.7,null,67294545.829999998,0.952380952380952,4913.93,0,null,null,null,4539.17]
[2021,"CAISO_Peaker2","CAISO","CAISO","CAISO_Peaker2",3682.71,null,null,3682.71,null,null,null,null,null,null,null,53,69.48,null,50433420.270000003,0.952380952380952,3682.71,0,null,null,null,3540.17]
[2021,"CAISO_Advanced_CCGT","CAISO","CAISO","CAISO_Advanced_CCGT",0,0,0,0,null,null,null,null,null,null,-715407.2,600,0,0,0,0.952380952380952,0,0,0,0,0,0]
[2021,"CAISO_Aero_CT","CAISO","CAISO","CAISO_Aero_CT",0,0,0,0,null,null,null,null,null,null,-676419,100,0,0,0,0.952380952380952,0,0,0,0,0,0]
[2021,"CAISO_Reciprocating_Engine","CAISO","CAISO","CAISO_Reciprocating_Engine",255.3,0,0,255.3,null,null,null,null,null,null,0,10.36,24.65,132.41999999999999,3496257.55,0.952380952380952,255.3,0,0,0,0,254.7]
[2021,"CAISO_ST","CAISO","CAISO","CAISO_ST",0,null,null,0,null,null,null,null,null,null,null,341.83,0,null,0,0.952380952380952,0,null,null,null,null,0]
[2021,"NW_Nuclear","NW","NW","NW_Nuclear",1170,null,null,1170,null,null,null,null,null,null,null,null,null,null,0,0.952380952380952,1170]
[2021,"NW_Coal","NW","NW","NW_Coal",9409.7999999999993,null,null,9409.7999999999993,null,null,null,null,null,null,null,367.75,25.59,null,0,0.952380952380952,9409.7999999999993]
[2021,"NW_CCGT","NW","NW","NW_CCGT",9573.43,null,null,9573.43,null,null,null,null,null,null,null,341.91,28,null,0,0.952380952380952,9573.43]
[2021,"NW_Peaker","NW","NW","NW_Peaker",2993.17,null,null,2993.17,null,null,null,null,null,null,null,29.06,103,null,0,0.952380952380952,2993.17]
[2021,"SW_Nuclear","SW","SW","SW_Nuclear",2998,null,null,2998,null,null,null,null,null,null,null,null,null,null,0,0.952380952380952,2998]
[2021,"SW_Coal","SW","SW","SW_Coal",7167.6,null,null,7167.6,null,null,null,null,null,null,null,409.46,17.5,null,0,0.952380952380952,7167.6]
[2021,"SW_CCGT","SW","SW","SW_CCGT",17015.099999999999,null,null,17015.099999999999,null,null,null,null,null,null,null,344.28,49.42,null,0,0.952380952380952,17015.099999999999]
[2021,"SW_Peaker","SW","SW","SW_Peaker",5989.12,null,null,5989.12,null,null,null,null,null,null,null,47.78,125.34,null,0,0.952380952380952,5989.12]
[2021,"SW_ST","SW","SW","SW_ST",1611.5,null,null,1611.5,null,null,null,null,null,null,null,92.71,17.38,null,0,0.952380952380952,1611.5]
[2021,"LDWP_Nuclear","LDWP","LDWP","LDWP_Nuclear",407,null,null,407,null,null,null,null,null,null,null,null,null,null,0,0.952380952380952,407]
[2021,"LDWP_Coal","LDWP","LDWP","LDWP_Coal",1699.94,null,null,1699.94,null,null,null,null,null,null,null,849.97,2,null,0,0.952380952380952,1699.94]
[2021,"LDWP_CCGT","LDWP","LDWP","LDWP_CCGT",2291.6999999999998,null,null,2291.6999999999998,null,null,null,null,null,null,null,385.96,5.94,null,0,0.952380952380952,2291.6999999999998]
[2021,"LDWP_Peaker","LDWP","LDWP","LDWP_Peaker",1545,null,null,1545,null,null,null,null,null,null,null,82.35,18.760000000000002,null,0,0.952380952380952,1545]
[2021,"LDWP_ST","LDWP","LDWP","LDWP_ST",992,null,null,992,null,null,null,null,null,null,null,110.22,9,null,0,0.952380952380952,992]
[2021,"IID_CCGT","IID","IID","IID_CCGT",255.3,null,null,255.3,null,null,null,null,null,null,null,127.65,2,null,0,0.952380952380952,255.3]
[2021,"IID_Peaker","IID","IID","IID_Peaker",397,null,null,397,null,null,null,null,null,null,null,36.090000000000003,11,null,0,0.952380952380952,397]
[2021,"BANC_CCGT","BANC","BANC","BANC_CCGT",1863.1,null,null,1863.1,null,null,null,null,null,null,null,207.01,9,null,0,0.952380952380952,1863.1]
[2021,"BANC_Peaker","BANC","BANC","BANC_Peaker",866.99,null,null,866.99,null,null,null,null,null,null,null,34.68,25,null,0,0.952380952380952,866.99]
[2021,"BANC_Biomass_for_Other","BANC","BANC","Biomass",17.5,null,null,17.5,null,null,null,null,null,null,null,null,null,null,0,0.952380952380952,17.5]
[2021,"BANC_Geothermal_for_Other","BANC","BANC","Geothermal",0,null,null,0,null,null,null,null,null,null,null,null,null,null,0,0.952380952380952,0]
[2021,"CAISO_Biomass_for_Other","CAISO","CAISO","Biomass",11.7,null,null,11.7,null,null,null,null,null,null,null,null,null,null,0,0.952380952380952,11.7,null,null,null,null,8.17]
[2021,"CAISO_Geothermal_for_Other","CAISO","CAISO","Geothermal",38.67,null,null,38.67,null,null,null,null,null,null,null,null,null,null,0,0.952380952380952,38.67,null,null,null,null,23.82]
[2021,"IID_Biomass_for_Other","IID","IID","Biomass",77,null,null,77,null,null,null,null,null,null,null,null,null,null,0,0.952380952380952,77]
[2021,"IID_Geothermal_for_Other","IID","IID","Geothermal",709.46,null,null,709.46,null,null,null,null,null,null,null,null,null,null,0,0.952380952380952,709.46]
[2021,"LDWP_Biomass_for_Other","LDWP","LDWP","Biomass",0,null,null,0,null,null,null,null,null,null,null,null,null,null,0,0.952380952380952,0]
[2021,"LDWP_Geothermal_for_Other","LDWP","LDWP","Geothermal",0,null,null,0,null,null,null,null,null,null,null,null,null,null,0,0.952380952380952,0]
[2021,"NW_Biomass_for_Other","NW","NW","Biomass",584.1,null,null,584.1,null,null,null,null,null,null,null,null,null,null,0,0.952380952380952,584.1]
[2021,"NW_Geothermal_for_Other","NW","NW","Geothermal",142.09,null,null,142.09,null,null,null,null,null,null,null,null,null,null,0,0.952380952380952,142.09]
[2021,"SW_Biomass_for_Other","SW","SW","Biomass",113.33,null,null,113.33,null,null,null,null,null,null,null,null,null,null,0,0.952380952380952,113.33]
[2021,"SW_Geothermal_for_Other","SW","SW","Geothermal",701.85,null,null,701.85,null,null,null,null,null,null,null,null,null,null,0,0.952380952380952,701.85]
[2021,"CAISO_Biomass_for_CAISO","CAISO","CAISO","Biomass",890.95,null,null,890.95,null,null,null,null,null,null,null,null,null,null,0,0.952380952380952,890.95,null,null,null,null,621.88]
[2021,"CAISO_Geothermal_for_CAISO","CAISO","CAISO","Geothermal",1812.64,null,null,1812.64,null,null,null,null,null,null,null,null,null,null,0,0.952380952380952,1812.64,null,null,null,null,1116.5899999999999]
[2021,"IID_Geothermal_for_CAISO","IID","CAISO","Geothermal",83,null,null,83,null,null,null,null,null,null,null,null,null,null,0,0.952380952380952,83]
[2021,"NW_Biomass_for_CAISO","NW","CAISO","Biomass",46,null,null,46,null,null,null,null,null,null,null,null,null,null,0,0.952380952380952,46]
[2021,"NW_Geothermal_for_CAISO","NW","CAISO","Geothermal",0,null,null,0,null,null,null,null,null,null,null,null,null,null,0,0.952380952380952,0]
[2021,"InState_Biomass","CAISO","CAISO","Biomass",0,0,0,0,"None",0,0,null,null,null,0,null,null,0,0,0.952380952380952,0,null,0,null,0,0]
[2021,"CAISO_Small_Hydro_for_CAISO","CAISO","CAISO","Small_Hydro",960.23,null,null,960.23,null,null,null,null,null,null,null,null,null,null,0,0.952380952380952,960.23,null,null,null,null,480.11]
[2021,"BANC_Small_Hydro_for_CAISO","BANC","CAISO","Small_Hydro",0,null,null,0,null,null,null,null,null,null,null,null,null,null,0,0.952380952380952,0]
[2021,"NW_Small_Hydro_for_CAISO","NW","CAISO","Small_Hydro",6.9,null,null,6.9,null,null,null,null,null,null,null,null,null,null,0,0.952380952380952,6.9]
[2021,"CAISO_Small_Hydro_for_Other","CAISO","CAISO","Small_Hydro",13.8,null,null,13.8,null,null,null,null,null,null,null,null,null,null,0,0.952380952380952,13.8,null,null,null,null,6.9]
[2021,"BANC_Small_Hydro_for_Other","BANC","BANC","Small_Hydro",41.2,null,null,41.2,null,null,null,null,null,null,null,null,null,null,0,0.952380952380952,41.2]
[2021,"IID_Small_Hydro_for_Other","IID","IID","Small_Hydro",0,null,null,0,null,null,null,null,null,null,null,null,null,null,0,0.952380952380952,0]
[2021,"LDWP_Small_Hydro_for_Other","LDWP","LDWP","Small_Hydro",56,null,null,56,null,null,null,null,null,null,null,null,null,null,0,0.952380952380952,56]
[2021,"NW_Small_Hydro_for_Other","NW","NW","Small_Hydro",41,null,null,41,null,null,null,null,null,null,null,null,null,null,0,0.952380952380952,41]
[2021,"SW_Small_Hydro_for_Other","SW","SW","Small_Hydro",0,null,null,0,null,null,null,null,null,null,null,null,null,null,0,0.952380952380952,0]
[2021,"Greater_Imperial_Geothermal","CAISO","CAISO","Geothermal",0,0,0,0,"SCADSNV-Greater_Imperial",0,0,null,null,null,0,null,null,0,0,0.952380952380952,0,null,0,null,0,0]
[2021,"Inyokern_North_Kramer_Geothermal","CAISO","CAISO","Geothermal",0,0,0,0,"Inyokern_North_Kramer-Greater_Kramer",0,0,null,null,null,0,null,null,0,0,0.952380952380952,0,null,0,null,0,0]
[2021,"Northern_California_Ex_Geothermal","CAISO","CAISO","Geothermal",0,0,0,0,"Northern_California_Ex",0,0,null,null,null,0,null,null,0,0,0.952380952380952,0,null,0,null,0,0]
[2021,"Pacific_Northwest_Geothermal","CAISO","CAISO","Geothermal",0,null,null,0,null,null,null,null,null,null,null,null,null,null,0,0.952380952380952,0,null,null,null,null,0]
[2021,"Riverside_Palm_Springs_Geothermal","CAISO","CAISO","Geothermal",0,0,0,0,"SCADSNV-Riverside_Palm_Springs",0,0,null,null,null,0,null,null,0,0,0.952380952380952,0,null,0,null,0,0]
[2021,"Solano_Geothermal","CAISO","CAISO","Geothermal",0,0,0,0,"Solano-Sacramento_River",0,0,null,null,null,0,null,null,0,0,0.952380952380952,0,null,0,null,0,0]
[2021,"Southern_Nevada_Geothermal","CAISO","CAISO","Geothermal",0,0,0,0,"SCADSNV-Mountain_Pass_El_Dorado",0,0,null,null,null,0,null,null,0,0,0.952380952380952,0,null,0,null,0,0]
[2021,"Customer_PV","CAISO","CAISO","Customer_PV",7269.29,null,null,7269.29,null,null,null,null,null,null,null,null,null,null,0,0.952380952380952,7269.29]
[2021,"BANC_Solar_for_Other","BANC","BANC","Solar",2259.4,null,null,2259.4,null,null,null,null,null,null,null,null,null,null,0,0.952380952380952,2259.4]
[2021,"CAISO_Solar_for_Other","CAISO","CAISO","Solar",12,null,null,12,null,null,null,null,null,null,null,null,null,null,0,0.952380952380952,12]
[2021,"IID_Solar_for_Other","IID","IID","Solar",138.69999999999999,null,null,138.69999999999999,null,null,null,null,null,null,null,null,null,null,0,0.952380952380952,138.69999999999999]
[2021,"LDWP_Solar_for_Other","LDWP","LDWP","Solar",2649.5,null,null,2649.5,null,null,null,null,null,null,null,null,null,null,0,0.952380952380952,2649.5]
[2021,"NW_Solar_for_Other","NW","NW","Solar",2665.84,null,null,2665.84,null,null,null,null,null,null,null,null,null,null,0,0.952380952380952,2665.84]
[2021,"SW_Solar_for_Other","SW","SW","Solar",1548.14,null,null,1548.14,null,null,null,null,null,null,null,null,null,null,0,0.952380952380952,1548.14]
[2021,"CAISO_Solar_for_CAISO","CAISO","CAISO","Solar",14753.85,null,null,14753.85,null,null,null,null,null,null,null,null,null,null,0,0.952380952380952,14753.85]
[2021,"IID_Solar_for_CAISO","IID","CAISO","Solar",49.9,null,null,49.9,null,null,null,null,null,null,null,null,null,null,0,0.952380952380952,49.9]
[2021,"SW_Solar_for_CAISO","SW","CAISO","Solar",65,null,null,65,null,null,null,null,null,null,null,null,null,null,0,0.952380952380952,65]
[2021,"BANC_Wind_for_Other","BANC","BANC","Wind",0,null,null,0,null,null,null,null,null,null,null,null,null,null,0,0.952380952380952,0]
[2021,"CAISO_Wind_for_Other","CAISO","CAISO","Wind",279.98,null,null,279.98,null,null,null,null,null,null,null,null,null,null,0,0.952380952380952,279.98]
[2021,"IID_Wind_for_Other","IID","IID","Wind",0,null,null,0,null,null,null,null,null,null,null,null,null,null,0,0.952380952380952,0]
[2021,"LDWP_Wind_for_Other","LDWP","LDWP","Wind",418.41,null,null,418.41,null,null,null,null,null,null,null,null,null,null,0,0.952380952380952,418.41]
[2021,"NW_Wind_for_Other","NW","NW","Wind",11058.39,null,null,11058.39,null,null,null,null,null,null,null,null,null,null,0,0.952380952380952,11058.39]
[2021,"SW_Wind_for_Other","SW","SW","Wind",2285.6999999999998,null,null,2285.6999999999998,null,null,null,null,null,null,null,null,null,null,0,0.952380952380952,2285.6999999999998]
[2021,"CAISO_Wind_for_CAISO","CAISO","CAISO","Wind",7176.33,null,null,7176.33,null,null,null,null,null,null,null,null,null,null,0,0.952380952380952,7176.33]
[2021,"LDWP_Wind_for_CAISO","LDWP","CAISO","Wind",5.09,null,null,5.09,null,null,null,null,null,null,null,null,null,null,0,0.952380952380952,5.09]
[2021,"NW_Wind_for_CAISO","NW","CAISO","Wind",1417.29,null,null,1417.29,null,null,null,null,null,null,null,null,null,null,0,0.952380952380952,1417.29]
[2021,"SW_Wind_for_CAISO","SW","CAISO","Wind",50.4,null,null,50.4,null,null,null,null,null,null,null,null,null,null,0,0.952380952380952,50.4]
[2021,"Carrizo_Solar","CAISO","CAISO","Solar",0,0,0,0,"Kern_Greater_Carrizo-SPGE-Carrizo",0,0,null,null,null,0,null,null,0,0,0.952380952380952,0,null,0,null,0]
[2021,"Carrizo_Wind","CAISO","CAISO","Wind",0,0,0,0,"Kern_Greater_Carrizo-SPGE-Carrizo",0,0,null,null,null,0,null,null,0,0,0.952380952380952,0,null,0,null,0]
[2021,"Central_Valley_North_Los_Banos_Solar","CAISO","CAISO","Solar",0,0,0,0,"Central_Valley_North_Los_Banos-SPGE",0,0,null,null,null,0,null,null,0,0,0.952380952380952,0,null,0,null,0]
[2021,"Central_Valley_North_Los_Banos_Wind","CAISO","CAISO","Wind",0,0,0,0,"Central_Valley_North_Los_Banos-SPGE",0,0,null,null,null,-363657.29,null,null,0,0,0.952380952380952,0,null,0,null,0]
[2021,"Distributed_Solar","CAISO","CAISO","Solar",0,0,0,0,"None",0,0,null,null,null,0,null,null,0,0,0.952380952380952,0,null,0,null,0]
[2021,"Mountain_Pass_El_Dorado_Solar","CAISO","CAISO","Solar",0,0,0,0,null,0,0,null,null,null,0,null,null,0,0,0.952380952380952,0,null,0,null,0]
[2021,"Greater_Imperial_Solar","CAISO","CAISO","Solar",0,0,0,0,"SCADSNV-Greater_Imperial",0,0,null,null,null,0,null,null,0,0,0.952380952380952,0,null,0,null,0]
[2021,"Greater_Imperial_Wind","CAISO","CAISO","Wind",0,0,0,0,"SCADSNV-Greater_Imperial",0,0,null,null,null,0,null,null,0,0,0.952380952380952,0,null,0,null,0]
[2021,"Greater_Kramer_Wind","CAISO","CAISO","Wind",0,0,0,0,"Greater_Kramer",0,0,null,null,null,0,null,null,0,0,0.952380952380952,0,null,0,null,0]
[2021,"Humboldt_Wind","CAISO","CAISO","Wind",0,34,34,34,"Sacramento_River-Humboldt",0,34,null,null,null,0,null,null,3118138.06,1432688.81,0.952380952380952,0,null,34,null,0]
[2021,"Inyokern_North_Kramer_Solar","CAISO","CAISO","Solar",0,35,35,35,"Inyokern_North_Kramer-Greater_Kramer",35,0,null,null,null,0,null,null,2244778.6800000002,364759.21,0.952380952380952,0,null,35,null,0]
[2021,"Kern_Greater_Carrizo_Solar","CAISO","CAISO","Solar",0,0,0,0,"Kern_Greater_Carrizo-SPGE",0,0,null,null,null,0,null,null,0,0,0.952380952380952,0,null,0,null,0]
[2021,"Kern_Greater_Carrizo_Wind","CAISO","CAISO","Wind",0,0,0,0,"Kern_Greater_Carrizo-SPGE",0,0,null,null,null,-349939.57,null,null,0,0,0.952380952380952,0,null,0,null,0]
[2021,"Kramer_Inyokern_Ex_Solar","CAISO","CAISO","Solar",0,0,0,0,"Kramer_Inyokern_Ex",0,0,null,null,null,0,null,null,0,0,0.952380952380952,0,null,0,null,0]
[2021,"Kramer_Inyokern_Ex_Wind","CAISO","CAISO","Wind",0,0,0,0,"Kramer_Inyokern_Ex",0,0,null,null,null,0,null,null,0,0,0.952380952380952,0,null,0,null,0]
[2021,"North_Victor_Solar","CAISO","CAISO","Solar",0,0,0,0,"North_Victor-Greater_Kramer",0,0,null,null,null,0,null,null,0,0,0.952380952380952,0,null,0,null,0]
[2021,"Northern_California_Ex_Solar","CAISO","CAISO","Solar",0,0,0,0,"Northern_California_Ex",0,0,null,null,null,0,null,null,0,0,0.952380952380952,0,null,0,null,0]
[2021,"Northern_California_Ex_Wind","CAISO","CAISO","Wind",0,0,0,0,"Sacramento_River",0,0,null,null,null,-331906.65000000002,null,null,0,0,0.952380952380952,0,null,0,null,0]
[2021,"NW_Ext_Tx_Wind","CAISO","CAISO","Wind",0,0,0,0,"Sacramento_River",0,0,null,null,null,-304646.46999999997,null,null,0,0,0.952380952380952,0,null,0,null,0]
[2021,"Riverside_Palm_Springs_Solar","CAISO","CAISO","Solar",0,0,0,0,"SCADSNV-Riverside_Palm_Springs",0,0,null,null,null,0,null,null,0,0,0.952380952380952,0,null,0,null,0]
[2021,"Sacramento_River_Solar","CAISO","CAISO","Solar",0,0,0,0,"Sacramento_River",0,0,null,null,null,0,null,null,0,0,0.952380952380952,0,null,0,null,0]
[2021,"Sacramento_River_Wind","CAISO","CAISO","Wind",0,null,null,0,null,null,null,null,null,null,null,null,null,null,0,0.952380952380952,0]
[2021,"SCADSNV_Solar","CAISO","CAISO","Solar",0,0,0,0,"SCADSNV",0,0,null,null,null,0,null,null,0,0,0.952380952380952,0,null,0,null,0]
[2021,"SCADSNV_Wind","CAISO","CAISO","Wind",0,0,0,0,"SCADSNV",0,0,null,null,null,0,null,null,0,0,0.952380952380952,0,null,0,null,0]
[2021,"Solano_Solar","CAISO","CAISO","Solar",0,0,0,0,"Solano-Sacramento_River",0,0,null,null,null,0,null,null,0,0,0.952380952380952,0,null,0,null,0]
[2021,"Solano_subzone_Solar","CAISO","CAISO","Solar",0,0,0,0,"Solano-Solano_subzone-Sacramento_River",0,0,null,null,null,0,null,null,0,0,0.952380952380952,0,null,0,null,0]
[2021,"Solano_subzone_Wind","CAISO","CAISO","Wind",0,0,0,0,"Solano-Solano_subzone-Sacramento_River",0,0,null,null,null,0,null,null,0,0,0.952380952380952,0,null,0,null,0]
[2021,"Solano_Wind","CAISO","CAISO","Wind",0,0,0,0,"Solano-Sacramento_River",0,0,null,null,null,-353200.26,null,null,0,0,0.952380952380952,0,null,0,null,0]
[2021,"Southern_California_Desert_Ex_Solar","CAISO","CAISO","Solar",0,0,0,0,"Southern_California_Desert_Ex",0,0,null,null,null,0,null,null,0,0,0.952380952380952,0,null,0,null,0]
[2021,"Southern_California_Desert_Ex_Wind","CAISO","CAISO","Wind",0,0,0,0,"Southern_California_Desert_Ex",0,0,null,null,null,0,null,null,0,0,0.952380952380952,0,null,0,null,0]
[2021,"Southern_Nevada_Solar","CAISO","CAISO","Solar",0,0,0,0,"SCADSNV-GLW_VEA",0,0,null,null,null,0,null,null,0,0,0.952380952380952,0,null,0,null,0]
[2021,"Southern_Nevada_Wind","CAISO","CAISO","Wind",0,0,0,0,"SCADSNV-GLW_VEA",0,0,null,null,null,-304832.61,null,null,0,0,0.952380952380952,0,null,0,null,0]
[2021,"SW_Ext_Tx_Wind","CAISO","CAISO","Wind",0,0,0,0,"SCADSNV-Riverside_Palm_Springs",0,0,null,null,null,-364955.92,null,null,0,0,0.952380952380952,0,null,0,null,0]
[2021,"Tehachapi_Ex_Solar","CAISO","CAISO","Solar",0,0,0,0,"Tehachapi_Ex",0,0,null,null,null,0,null,null,0,0,0.952380952380952,0,null,0,null,0]
[2021,"Tehachapi_Solar","CAISO","CAISO","Solar",0,1965,3402,3402,"Tehachapi",3402,0,null,null,null,0,null,null,221596954.43000001,36559018.289999999,0.952380952380952,0,null,3402,null,0]
[2021,"Tehachapi_Wind","CAISO","CAISO","Wind",0,0,0,0,"Tehachapi",0,0,null,null,null,-417248.04,null,null,0,0,0.952380952380952,0,null,0,null,0]
[2021,"Westlands_Ex_Solar","CAISO","CAISO","Solar",0,0,0,0,"Westlands_Ex",0,0,null,null,null,0,null,null,0,0,0.952380952380952,0,null,0,null,0]
[2021,"Westlands_Ex_Wind","CAISO","CAISO","Wind",0,null,null,0,null,null,null,null,null,null,null,null,null,null,0,0.952380952380952,0]
[2021,"Westlands_Solar","CAISO","CAISO","Solar",0,0,0,0,"Central_Valley_North_Los_Banos-SPGE",0,0,null,null,null,0,null,null,0,0,0.952380952380952,0,null,0,null,0]
[2021,"Arizona_Solar","CAISO","CAISO","Solar",0,0,563,563,"SCADSNV-Riverside_Palm_Springs",563,0,null,null,null,0,null,null,36489988.789999999,6099850.79,0.952380952380952,0,null,563,null,0]
[2021,"Arizona_Wind","CAISO","CAISO","Wind",0,null,null,0,null,null,null,null,null,null,null,null,null,null,0,0.952380952380952,0]
[2021,"Baja_California_Solar","CAISO","CAISO","Solar",0,null,null,0,null,null,null,null,null,null,null,null,null,null,0,0.952380952380952,0]
[2021,"Baja_California_Wind","CAISO","CAISO","Wind",0,0,0,0,"SCADSNV-Greater_Imperial",0,0,null,null,null,0,null,null,0,0,0.952380952380952,0,null,0,null,0]
[2021,"Idaho_Wind","CAISO","CAISO","Wind",0,null,null,0,null,null,null,null,null,null,null,null,null,null,0,0.952380952380952,0]
[2021,"New_Mexico_Solar","CAISO","CAISO","Solar",0,null,null,0,null,null,null,null,null,null,null,null,null,null,0,0.952380952380952,0]
[2021,"New_Mexico_Wind","CAISO","CAISO","Wind",0,0,0,0,"SCADSNV-Riverside_Palm_Springs",0,0,null,null,null,0,null,null,0,0,0.952380952380952,0,null,0,null,0]
[2021,"Utah_Solar","CAISO","CAISO","Solar",0,null,null,0,null,null,null,null,null,null,null,null,null,null,0,0.952380952380952,0]
[2021,"Utah_Wind","CAISO","CAISO","Wind",0,null,null,0,null,null,null,null,null,null,null,null,null,null,0,0.952380952380952,0]
[2021,"Wyoming_Wind","CAISO","CAISO","Wind",0,0,0,0,"SCADSNV-Mountain_Pass_El_Dorado",0,0,null,null,null,0,null,null,0,0,0.952380952380952,0,null,0,null,0]
[2021,"Pacific_Northwest_Wind","CAISO","CAISO","Wind",0,null,null,0,null,null,null,null,null,null,null,null,null,null,0,0.952380952380952,0]
[2021,"Diablo_Canyon_Offshore_Wind","CAISO","CAISO","Offshore_Wind",0,null,null,0,null,null,null,null,null,null,null,null,null,null,0,0.952380952380952,0]
[2021,"Humboldt_Bay_Offshore_Wind","CAISO","CAISO","Offshore_Wind",0,null,null,0,null,null,null,null,null,null,null,null,null,null,0,0.952380952380952,0]
[2021,"Morro_Bay_Offshore_Wind","CAISO","CAISO","Offshore_Wind",0,null,null,0,null,null,null,null,null,null,null,null,null,null,0,0.952380952380952,0]
[2021,"Diablo_Canyon_Offshore_Wind_Ext_Tx","CAISO","CAISO","Offshore_Wind",0,null,null,0,null,null,null,null,null,null,null,null,null,null,0,0.952380952380952,0]
[2021,"Cape_Mendocino_Offshore_Wind","CAISO","CAISO","Offshore_Wind",0,null,null,0,null,null,null,null,null,null,null,null,null,null,0,0.952380952380952,0]
[2021,"Del_Norte_Offshore_Wind","CAISO","CAISO","Offshore_Wind",0,null,null,0,null,null,null,null,null,null,null,null,null,null,0,0.952380952380952,0]
[2021,"CAISO_Existing_Pumped_Storage","CAISO","CAISO","Pumped_Hydro",1599.2,null,null,1599.2,null,null,null,null,null,null,null,null,null,null,0,0.952380952380952,1599.2,null,null,null,null,1599.2]
[2021,"CAISO_New_Pumped_Storage","CAISO","CAISO","Pumped_Hydro",0,0,0,0,null,null,null,null,null,null,0,null,null,0,0,0.952380952380952,0,null,0,null,0,0]
[2021,"CAISO_New_Flow_Battery","CAISO","CAISO","Flow_Battery",0,0,0,0,null,null,null,null,null,null,0,null,null,0,0,0.952380952380952,0,null,0,null,0,0]
[2021,"CAISO_New_Flow_Battery_2","CAISO","CAISO","Flow_Battery",0,0,0,0,null,null,null,null,null,null,0,null,null,0,0,0.952380952380952,0,null,0,null,0,0]
[2021,"CAISO_New_Flow_Battery_3","CAISO","CAISO","Flow_Battery",0,0,0,0,null,null,null,null,null,null,0,null,null,0,0,0.952380952380952,0,null,0,null,0,0]
[2021,"CAISO_New_Flow_Battery_4","CAISO","CAISO","Flow_Battery",0,0,0,0,null,null,null,null,null,null,0,null,null,0,0,0.952380952380952,0,null,0,null,0,0]
[2021,"CAISO_New_Flow_Battery_5","CAISO","CAISO","Flow_Battery",0,0,0,0,null,null,null,null,null,null,null,null,null,0,0,0.952380952380952,0,null,0,null,0,0]
[2021,"CAISO_New_Li_Battery","CAISO","CAISO","Li_Battery",0,2629.86,6047.96,6047.96,null,null,null,null,null,null,0,null,null,940971900.25,81889611.579999998,0.952380952380952,0,null,6047.96,null,1321.85,6047.96]
[2021,"CAISO_BTM_Li_Battery","CAISO","CAISO","BTM_Li_Battery",92.14,0,0,92.14,null,null,null,null,null,null,0,null,null,0,878656.68,0.952380952380952,92.14,null,0,null,0,57.59]
[2021,"CAISO_New_Li_Battery_2","CAISO","CAISO","Li_Battery",0,0,0,0,null,null,null,null,null,null,0,null,null,0,0,0.952380952380952,0,null,0,null,0,0]
[2021,"CAISO_New_Li_Battery_3","CAISO","CAISO","Li_Battery",0,0,0,0,null,null,null,null,null,null,0,null,null,0,0,0.952380952380952,0,null,0,null,0,0]
[2021,"CAISO_New_Li_Battery_4","CAISO","CAISO","Li_Battery",0,0,0,0,null,null,null,null,null,null,0,null,null,0,0,0.952380952380952,0,null,0,null,0,0]
[2021,"CAISO_New_Li_Battery_5","CAISO","CAISO","Li_Battery",0,0,0,0,null,null,null,null,null,null,null,null,null,0,0,0.952380952380952,0,null,0,null,0,0]
[2021,"CAISO_New_Li_Battery_6","CAISO","CAISO","Li_Battery",0,0,0,0,null,null,null,null,null,null,null,null,null,0,0,0.952380952380952,0,null,0,null,0,0]
[2021,"CAISO_Hydro","CAISO","CAISO","Hydro",7070.1,null,null,7070.1,null,null,null,null,null,null,null,null,null,null,0,0.952380952380952,7070.1,null,null,null,null,5979.64]
[2021,"NW_Hydro","NW","NW","Hydro",31478.05,null,null,31478.05,null,null,null,null,null,null,null,null,null,null,0,0.952380952380952,31478.05]
[2021,"SW_Hydro","SW","SW","Hydro",2680.31,null,null,2680.31,null,null,null,null,null,null,null,null,null,null,0,0.952380952380952,2680.31]
[2021,"LDWP_Hydro","LDWP","LDWP","Hydro",233.7,null,null,233.7,null,null,null,null,null,null,null,null,null,null,0,0.952380952380952,233.7]
[2021,"BANC_Hydro","BANC","BANC","Hydro",2724.06,null,null,2724.06,null,null,null,null,null,null,null,null,null,null,0,0.952380952380952,2724.06]
[2021,"IID_Hydro","IID","IID","Hydro",83.5,null,null,83.5,null,null,null,null,null,null,null,null,null,null,0,0.952380952380952,83.5]
[2021,"NW_Hydro_for_CAISO","CAISO_NW_Hydro","CAISO_NW_Hydro","Hydro_NW_CAISO",2851.77,null,null,2851.77,null,null,null,null,null,null,null,null,null,null,0,0.952380952380952,2851.77]
[2021,"Hydrogen_electrolysis","CAISO","CAISO","Hydrogen_Electrolysis",null,null,null,null,null,null,null,null,null,0,null,null,null,null,0,0.952380952380952,0]
[2021,"CAISO_Shed_DR_Existing","CAISO","CAISO","CAISO_Conventional_DR",0,null,null,0,null,null,null,null,null,null,null,1,0,null,0,0.952380952380952,0,null,null,null,null,0]
[2021,"CAISO_Shed_DR_Tranche1","CAISO","CAISO","CAISO_Conventional_DR",0,0,0,0,null,null,null,null,null,null,0,1,0,0,0,0.952380952380952,0,null,0,null,0,0]
[2021,"CAISO_Shed_DR_Tranche2","CAISO","CAISO","CAISO_Conventional_DR",0,0,0,0,null,null,null,null,null,null,0,1,0,0,0,0.952380952380952,0,null,0,null,0,0]
[2021,"CAISO_Shed_DR_Tranche3","CAISO","CAISO","CAISO_Conventional_DR",0,0,0,0,null,null,null,null,null,null,0,1,0,0,0,0.952380952380952,0,null,0,null,0,0]
[2021,"CAISO_Shed_DR_Tranche4","CAISO","CAISO","CAISO_Conventional_DR",0,0,0,0,null,null,null,null,null,null,0,1,0,0,0,0.952380952380952,0,null,0,null,0,0]
[2021,"CAISO_Shed_DR_Tranche5","CAISO","CAISO","CAISO_Conventional_DR",0,0,0,0,null,null,null,null,null,null,0,1,0,0,0,0.952380952380952,0,null,0,null,0,0]
[2021,"CAISO_Shed_DR_Tranche6","CAISO","CAISO","CAISO_Conventional_DR",0,0,0,0,null,null,null,null,null,null,0,1,0,0,0,0.952380952380952,0,null,0,null,0,0]
[2021,"CAISO_Shed_DR_Tranche7","CAISO","CAISO","CAISO_Conventional_DR",0,0,0,0,null,null,null,null,null,null,0,1,0,0,0,0.952380952380952,0,null,0,null,0,0]
[2021,"CAISO_Shed_DR_Tranche8","CAISO","CAISO","CAISO_Conventional_DR",0,0,0,0,null,null,null,null,null,null,0,1,0,0,0,0.952380952380952,0,null,0,null,0,0]
[2022,"CAISO_CHP","CAISO","CAISO","CAISO_CHP",2296.02,null,null,2296.02,null,null,null,null,null,null,null,null,null,null,0,0.90702947845805004,2296.02,null,null,null,null,1455.68]
[2022,"CAISO_Nuclear","CAISO","CAISO","CAISO_Nuclear",2935,null,null,2935,null,null,null,null,null,null,null,null,null,null,0,0.90702947845805004,2935,null,null,null,null,2914.91]
[2022,"CAISO_CCGT1","CAISO","CAISO","CAISO_CCGT1",13333.47,null,null,13333.47,null,null,null,null,null,null,null,532.4,25.04,null,148200393.30000001,0.90702947845805004,13333.47,0,null,null,null,12526.38]
[2022,"CAISO_CCGT2","CAISO","CAISO","CAISO_CCGT2",2927.93,null,null,2927.93,null,null,null,null,null,null,null,187.53,15.61,null,32543694.739999998,0.90702947845805004,2927.93,0,null,null,null,2927.58]
[2022,"CAISO_Coal","CAISO","CAISO","CAISO_Coal",480,null,null,480,null,null,null,null,null,null,null,849.97,0.56000000000000005,null,0,0.90702947845805004,480,null,null,null,null,470.43]
[2022,"CAISO_Peaker1","CAISO","CAISO","CAISO_Peaker1",4913.93,null,null,4913.93,null,null,null,null,null,null,null,67.59,72.7,null,67294545.829999998,0.90702947845805004,4913.93,0,null,null,null,4539.17]
[2022,"CAISO_Peaker2","CAISO","CAISO","CAISO_Peaker2",3682.71,null,null,3682.71,null,null,null,null,null,null,null,53,69.48,null,50433420.270000003,0.90702947845805004,3682.71,0,null,null,null,3540.17]
[2022,"CAISO_Advanced_CCGT","CAISO","CAISO","CAISO_Advanced_CCGT",0,0,0,0,null,null,null,null,null,null,0,600,0,0,0,0.90702947845805004,0,0,0,0,0,0]
[2022,"CAISO_Aero_CT","CAISO","CAISO","CAISO_Aero_CT",0,0,0,0,null,null,null,null,null,null,0,100,0,0,0,0.90702947845805004,0,0,0,0,0,0]
[2022,"CAISO_Reciprocating_Engine","CAISO","CAISO","CAISO_Reciprocating_Engine",255.3,0,0,255.3,null,null,null,null,null,null,-744235.69,10.36,24.65,132.41999999999999,3496257.55,0.90702947845805004,255.3,0,0,0,0,254.7]
[2022,"CAISO_ST","CAISO","CAISO","CAISO_ST",0,null,null,0,null,null,null,null,null,null,null,341.83,0,null,0,0.90702947845805004,0,null,null,null,null,0]
[2022,"NW_Nuclear","NW","NW","NW_Nuclear",1170,null,null,1170,null,null,null,null,null,null,null,null,null,null,0,0.90702947845805004,1170]
[2022,"NW_Coal","NW","NW","NW_Coal",8795.7999999999993,null,null,8795.7999999999993,null,null,null,null,null,null,null,367.75,23.92,null,0,0.90702947845805004,8795.7999999999993]
[2022,"NW_CCGT","NW","NW","NW_CCGT",9573.43,null,null,9573.43,null,null,null,null,null,null,null,341.91,28,null,0,0.90702947845805004,9573.43]
[2022,"NW_Peaker","NW","NW","NW_Peaker",2993.17,null,null,2993.17,null,null,null,null,null,null,null,29.06,103,null,0,0.90702947845805004,2993.17]
[2022,"SW_Nuclear","SW","SW","SW_Nuclear",2998,null,null,2998,null,null,null,null,null,null,null,null,null,null,0,0.90702947845805004,2998]
[2022,"SW_Coal","SW","SW","SW_Coal",7167.6,null,null,7167.6,null,null,null,null,null,null,null,409.46,17.5,null,0,0.90702947845805004,7167.6]
[2022,"SW_CCGT","SW","SW","SW_CCGT",17015.099999999999,null,null,17015.099999999999,null,null,null,null,null,null,null,344.28,49.42,null,0,0.90702947845805004,17015.099999999999]
[2022,"SW_Peaker","SW","SW","SW_Peaker",6262.12,null,null,6262.12,null,null,null,null,null,null,null,47.78,131.06,null,0,0.90702947845805004,6262.12]
[2022,"SW_ST","SW","SW","SW_ST",1611.5,null,null,1611.5,null,null,null,null,null,null,null,92.71,17.38,null,0,0.90702947845805004,1611.5]
[2022,"LDWP_Nuclear","LDWP","LDWP","LDWP_Nuclear",407,null,null,407,null,null,null,null,null,null,null,null,null,null,0,0.90702947845805004,407]
[2022,"LDWP_Coal","LDWP","LDWP","LDWP_Coal",1699.94,null,null,1699.94,null,null,null,null,null,null,null,849.97,2,null,0,0.90702947845805004,1699.94]
[2022,"LDWP_CCGT","LDWP","LDWP","LDWP_CCGT",2291.6999999999998,null,null,2291.6999999999998,null,null,null,null,null,null,null,385.96,5.94,null,0,0.90702947845805004,2291.6999999999998]
[2022,"LDWP_Peaker","LDWP","LDWP","LDWP_Peaker",1545,null,null,1545,null,null,null,null,null,null,null,82.35,18.760000000000002,null,0,0.90702947845805004,1545]
[2022,"LDWP_ST","LDWP","LDWP","LDWP_ST",992,null,null,992,null,null,null,null,null,null,null,110.22,9,null,0,0.90702947845805004,992]
[2022,"IID_CCGT","IID","IID","IID_CCGT",255.3,null,null,255.3,null,null,null,null,null,null,null,127.65,2,null,0,0.90702947845805004,255.3]
[2022,"IID_Peaker","IID","IID","IID_Peaker",397,null,null,397,null,null,null,null,null,null,null,36.090000000000003,11,null,0,0.90702947845805004,397]
[2022,"BANC_CCGT","BANC","BANC","BANC_CCGT",1863.1,null,null,1863.1,null,null,null,null,null,null,null,207.01,9,null,0,0.90702947845805004,1863.1]
[2022,"BANC_Peaker","BANC","BANC","BANC_Peaker",866.99,null,null,866.99,null,null,null,null,null,null,null,34.68,25,null,0,0.90702947845805004,866.99]
[2022,"BANC_Biomass_for_Other","BANC","BANC","Biomass",17.5,null,null,17.5,null,null,null,null,null,null,null,null,null,null,0,0.90702947845805004,17.5]
[2022,"BANC_Geothermal_for_Other","BANC","BANC","Geothermal",0,null,null,0,null,null,null,null,null,null,null,null,null,null,0,0.90702947845805004,0]
[2022,"CAISO_Biomass_for_Other","CAISO","CAISO","Biomass",11.7,null,null,11.7,null,null,null,null,null,null,null,null,null,null,0,0.90702947845805004,11.7,null,null,null,null,8.17]
[2022,"CAISO_Geothermal_for_Other","CAISO","CAISO","Geothermal",38.67,null,null,38.67,null,null,null,null,null,null,null,null,null,null,0,0.90702947845805004,38.67,null,null,null,null,23.82]
[2022,"IID_Biomass_for_Other","IID","IID","Biomass",77,null,null,77,null,null,null,null,null,null,null,null,null,null,0,0.90702947845805004,77]
[2022,"IID_Geothermal_for_Other","IID","IID","Geothermal",709.46,null,null,709.46,null,null,null,null,null,null,null,null,null,null,0,0.90702947845805004,709.46]
[2022,"LDWP_Biomass_for_Other","LDWP","LDWP","Biomass",0,null,null,0,null,null,null,null,null,null,null,null,null,null,0,0.90702947845805004,0]
[2022,"LDWP_Geothermal_for_Other","LDWP","LDWP","Geothermal",0,null,null,0,null,null,null,null,null,null,null,null,null,null,0,0.90702947845805004,0]
[2022,"NW_Biomass_for_Other","NW","NW","Biomass",584.1,null,null,584.1,null,null,null,null,null,null,null,null,null,null,0,0.90702947845805004,584.1]
[2022,"NW_Geothermal_for_Other","NW","NW","Geothermal",142.09,null,null,142.09,null,null,null,null,null,null,null,null,null,null,0,0.90702947845805004,142.09]
[2022,"SW_Biomass_for_Other","SW","SW","Biomass",113.33,null,null,113.33,null,null,null,null,null,null,null,null,null,null,0,0.90702947845805004,113.33]
[2022,"SW_Geothermal_for_Other","SW","SW","Geothermal",701.85,null,null,701.85,null,null,null,null,null,null,null,null,null,null,0,0.90702947845805004,701.85]
[2022,"CAISO_Biomass_for_CAISO","CAISO","CAISO","Biomass",890.95,null,null,890.95,null,null,null,null,null,null,null,null,null,null,0,0.90702947845805004,890.95,null,null,null,null,621.88]
[2022,"CAISO_Geothermal_for_CAISO","CAISO","CAISO","Geothermal",1812.64,null,null,1812.64,null,null,null,null,null,null,null,null,null,null,0,0.90702947845805004,1812.64,null,null,null,null,1116.5899999999999]
[2022,"IID_Geothermal_for_CAISO","IID","CAISO","Geothermal",83,null,null,83,null,null,null,null,null,null,null,null,null,null,0,0.90702947845805004,83]
[2022,"NW_Biomass_for_CAISO","NW","CAISO","Biomass",46,null,null,46,null,null,null,null,null,null,null,null,null,null,0,0.90702947845805004,46]
[2022,"NW_Geothermal_for_CAISO","NW","CAISO","Geothermal",0,null,null,0,null,null,null,null,null,null,null,null,null,null,0,0.90702947845805004,0]
[2022,"InState_Biomass","CAISO","CAISO","Biomass",0,0,0,0,"None",0,0,null,null,null,0,null,null,0,0,0.90702947845805004,0,null,0,null,0,0]
[2022,"CAISO_Small_Hydro_for_CAISO","CAISO","CAISO","Small_Hydro",960.23,null,null,960.23,null,null,null,null,null,null,null,null,null,null,0,0.90702947845805004,960.23,null,null,null,null,480.11]
[2022,"BANC_Small_Hydro_for_CAISO","BANC","CAISO","Small_Hydro",0,null,null,0,null,null,null,null,null,null,null,null,null,null,0,0.90702947845805004,0]
[2022,"NW_Small_Hydro_for_CAISO","NW","CAISO","Small_Hydro",6.9,null,null,6.9,null,null,null,null,null,null,null,null,null,null,0,0.90702947845805004,6.9]
[2022,"CAISO_Small_Hydro_for_Other","CAISO","CAISO","Small_Hydro",13.8,null,null,13.8,null,null,null,null,null,null,null,null,null,null,0,0.90702947845805004,13.8,null,null,null,null,6.9]
[2022,"BANC_Small_Hydro_for_Other","BANC","BANC","Small_Hydro",41.2,null,null,41.2,null,null,null,null,null,null,null,null,null,null,0,0.90702947845805004,41.2]
[2022,"IID_Small_Hydro_for_Other","IID","IID","Small_Hydro",0,null,null,0,null,null,null,null,null,null,null,null,null,null,0,0.90702947845805004,0]
[2022,"LDWP_Small_Hydro_for_Other","LDWP","LDWP","Small_Hydro",56,null,null,56,null,null,null,null,null,null,null,null,null,null,0,0.90702947845805004,56]
[2022,"NW_Small_Hydro_for_Other","NW","NW","Small_Hydro",41,null,null,41,null,null,null,null,null,null,null,null,null,null,0,0.90702947845805004,41]
[2022,"SW_Small_Hydro_for_Other","SW","SW","Small_Hydro",0,null,null,0,null,null,null,null,null,null,null,null,null,null,0,0.90702947845805004,0]
[2022,"Greater_Imperial_Geothermal","CAISO","CAISO","Geothermal",0,0,0,0,"SCADSNV-Greater_Imperial",0,0,null,null,null,-445534.83,null,null,0,0,0.90702947845805004,0,null,0,null,0,0]
[2022,"Inyokern_North_Kramer_Geothermal","CAISO","CAISO","Geothermal",0,0,0,0,"Inyokern_North_Kramer-Greater_Kramer",0,0,null,null,null,0,null,null,0,0,0.90702947845805004,0,null,0,null,0,0]
[2022,"Northern_California_Ex_Geothermal","CAISO","CAISO","Geothermal",0,0,0,0,"Northern_California_Ex",0,0,null,null,null,0,null,null,0,0,0.90702947845805004,0,null,0,null,0,0]
[2022,"Pacific_Northwest_Geothermal","CAISO","CAISO","Geothermal",0,null,null,0,null,null,null,null,null,null,null,null,null,null,0,0.90702947845805004,0,null,null,null,null,0]
[2022,"Riverside_Palm_Springs_Geothermal","CAISO","CAISO","Geothermal",0,0,0,0,"SCADSNV-Riverside_Palm_Springs",0,0,null,null,null,0,null,null,0,0,0.90702947845805004,0,null,0,null,0,0]
[2022,"Solano_Geothermal","CAISO","CAISO","Geothermal",0,0,0,0,"Solano-Sacramento_River",0,0,null,null,null,-520387.03,null,null,0,0,0.90702947845805004,0,null,0,null,0,0]
[2022,"Southern_Nevada_Geothermal","CAISO","CAISO","Geothermal",0,0,0,0,"SCADSNV-Mountain_Pass_El_Dorado",0,0,null,null,null,-434909.85,null,null,0,0,0.90702947845805004,0,null,0,null,0,0]
[2022,"Customer_PV","CAISO","CAISO","Customer_PV",7269.29,null,null,7269.29,null,null,null,null,null,null,null,null,null,null,0,0.90702947845805004,7269.29]
[2022,"BANC_Solar_for_Other","BANC","BANC","Solar",2443.13,null,null,2443.13,null,null,null,null,null,null,null,null,null,null,0,0.90702947845805004,2443.13]
[2022,"CAISO_Solar_for_Other","CAISO","CAISO","Solar",12,null,null,12,null,null,null,null,null,null,null,null,null,null,0,0.90702947845805004,12]
[2022,"IID_Solar_for_Other","IID","IID","Solar",138.69999999999999,null,null,138.69999999999999,null,null,null,null,null,null,null,null,null,null,0,0.90702947845805004,138.69999999999999]
[2022,"LDWP_Solar_for_Other","LDWP","LDWP","Solar",2895.64,null,null,2895.64,null,null,null,null,null,null,null,null,null,null,0,0.90702947845805004,2895.64]
[2022,"NW_Solar_for_Other","NW","NW","Solar",2665.84,null,null,2665.84,null,null,null,null,null,null,null,null,null,null,0,0.90702947845805004,2665.84]
[2022,"SW_Solar_for_Other","SW","SW","Solar",1671.64,null,null,1671.64,null,null,null,null,null,null,null,null,null,null,0,0.90702947845805004,1671.64]
[2022,"CAISO_Solar_for_CAISO","CAISO","CAISO","Solar",14875.45,null,null,14875.45,null,null,null,null,null,null,null,null,null,null,0,0.90702947845805004,14875.45]
[2022,"IID_Solar_for_CAISO","IID","CAISO","Solar",49.9,null,null,49.9,null,null,null,null,null,null,null,null,null,null,0,0.90702947845805004,49.9]
[2022,"SW_Solar_for_CAISO","SW","CAISO","Solar",65,null,null,65,null,null,null,null,null,null,null,null,null,null,0,0.90702947845805004,65]
[2022,"BANC_Wind_for_Other","BANC","BANC","Wind",0,null,null,0,null,null,null,null,null,null,null,null,null,null,0,0.90702947845805004,0]
[2022,"CAISO_Wind_for_Other","CAISO","CAISO","Wind",279.98,null,null,279.98,null,null,null,null,null,null,null,null,null,null,0,0.90702947845805004,279.98]
[2022,"IID_Wind_for_Other","IID","IID","Wind",0,null,null,0,null,null,null,null,null,null,null,null,null,null,0,0.90702947845805004,0]
[2022,"LDWP_Wind_for_Other","LDWP","LDWP","Wind",418.41,null,null,418.41,null,null,null,null,null,null,null,null,null,null,0,0.90702947845805004,418.41]
[2022,"NW_Wind_for_Other","NW","NW","Wind",11057.09,null,null,11057.09,null,null,null,null,null,null,null,null,null,null,0,0.90702947845805004,11057.09]
[2022,"SW_Wind_for_Other","SW","SW","Wind",2285.6999999999998,null,null,2285.6999999999998,null,null,null,null,null,null,null,null,null,null,0,0.90702947845805004,2285.6999999999998]
[2022,"CAISO_Wind_for_CAISO","CAISO","CAISO","Wind",7176.33,null,null,7176.33,null,null,null,null,null,null,null,null,null,null,0,0.90702947845805004,7176.33]
[2022,"LDWP_Wind_for_CAISO","LDWP","CAISO","Wind",5.09,null,null,5.09,null,null,null,null,null,null,null,null,null,null,0,0.90702947845805004,5.09]
[2022,"NW_Wind_for_CAISO","NW","CAISO","Wind",1417.29,null,null,1417.29,null,null,null,null,null,null,null,null,null,null,0,0.90702947845805004,1417.29]
[2022,"SW_Wind_for_CAISO","SW","CAISO","Wind",50.4,null,null,50.4,null,null,null,null,null,null,null,null,null,null,0,0.90702947845805004,50.4]
[2022,"Carrizo_Solar","CAISO","CAISO","Solar",0,0,0,0,"Kern_Greater_Carrizo-SPGE-Carrizo",0,0,null,null,null,0,null,null,0,0,0.90702947845805004,0,null,0,null,0]
[2022,"Carrizo_Wind","CAISO","CAISO","Wind",0,0,0,0,"Kern_Greater_Carrizo-SPGE-Carrizo",0,0,null,null,null,-602415.53,null,null,0,0,0.90702947845805004,0,null,0,null,0]
[2022,"Central_Valley_North_Los_Banos_Solar","CAISO","CAISO","Solar",0,0,0,0,"Central_Valley_North_Los_Banos-SPGE",0,0,null,null,null,0,null,null,0,0,0.90702947845805004,0,null,0,null,0]
[2022,"Central_Valley_North_Los_Banos_Wind","CAISO","CAISO","Wind",0,173,173,173,"Central_Valley_North_Los_Banos-SPGE",173,0,null,null,null,0,null,null,16593876.300000001,7240578.1900000004,0.90702947845805004,0,null,173,null,0]
[2022,"Distributed_Solar","CAISO","CAISO","Solar",0,0,0,0,"None",0,0,null,null,null,0,null,null,0,0,0.90702947845805004,0,null,0,null,0]
[2022,"Mountain_Pass_El_Dorado_Solar","CAISO","CAISO","Solar",0,0,0,0,null,0,0,null,null,null,0,null,null,0,0,0.90702947845805004,0,null,0,null,0]
[2022,"Greater_Imperial_Solar","CAISO","CAISO","Solar",0,0,0,0,"SCADSNV-Greater_Imperial",0,0,null,null,null,0,null,null,0,0,0.90702947845805004,0,null,0,null,0]
[2022,"Greater_Imperial_Wind","CAISO","CAISO","Wind",0,0,0,0,"SCADSNV-Greater_Imperial",0,0,null,null,null,-743928.06,null,null,0,0,0.90702947845805004,0,null,0,null,0]
[2022,"Greater_Kramer_Wind","CAISO","CAISO","Wind",0,0,0,0,"Greater_Kramer",0,0,null,null,null,-615930.9,null,null,0,0,0.90702947845805004,0,null,0,null,0]
[2022,"Humboldt_Wind","CAISO","CAISO","Wind",0,0,34,34,"Sacramento_River-Humboldt",0,34,null,null,null,0,null,null,3118138.06,1432688.81,0.90702947845805004,0,null,34,null,0]
[2022,"Inyokern_North_Kramer_Solar","CAISO","CAISO","Solar",0,38,73,73,"Inyokern_North_Kramer-Greater_Kramer",73,0,null,null,null,0,null,null,4574365.26,756500.06,0.90702947845805004,0,null,73,null,0]
[2022,"Kern_Greater_Carrizo_Solar","CAISO","CAISO","Solar",0,0,0,0,"Kern_Greater_Carrizo-SPGE",0,0,null,null,null,0,null,null,0,0,0.90702947845805004,0,null,0,null,0]
[2022,"Kern_Greater_Carrizo_Wind","CAISO","CAISO","Wind",0,60,60,60,"Kern_Greater_Carrizo-SPGE",60,0,null,null,null,0,null,null,5920164.4000000004,2511183.19,0.90702947845805004,0,null,60,null,0]
[2022,"Kramer_Inyokern_Ex_Solar","CAISO","CAISO","Solar",0,0,0,0,"Kramer_Inyokern_Ex",0,0,null,null,null,0,null,null,0,0,0.90702947845805004,0,null,0,null,0]
[2022,"Kramer_Inyokern_Ex_Wind","CAISO","CAISO","Wind",0,0,0,0,"Kramer_Inyokern_Ex",0,0,null,null,null,0,null,null,0,0,0.90702947845805004,0,null,0,null,0]
[2022,"North_Victor_Solar","CAISO","CAISO","Solar",0,300,300,300,"North_Victor-Greater_Kramer",300,0,null,null,null,0,null,null,18391473,3092690.85,0.90702947845805004,0,null,300,null,0]
[2022,"Northern_California_Ex_Solar","CAISO","CAISO","Solar",0,0,0,0,"Northern_California_Ex",0,0,null,null,null,0,null,null,0,0,0.90702947845805004,0,null,0,null,0]
[2022,"Northern_California_Ex_Wind","CAISO","CAISO","Wind",0,865.9,865.9,865.9,"Sacramento_River",865.9,0,null,null,null,0,null,null,89470506.049999997,36240558.710000001,0.90702947845805004,0,null,865.9,null,0]
[2022,"NW_Ext_Tx_Wind","CAISO","CAISO","Wind",0,617.9,617.9,617.9,"Sacramento_River",617.9,0,null,null,null,0,null,null,87244850.359999999,25892481.120000001,0.90702947845805004,0,null,617.9,null,0]
[2022,"Riverside_Palm_Springs_Solar","CAISO","CAISO","Solar",0,0,0,0,"SCADSNV-Riverside_Palm_Springs",0,0,null,null,null,0,null,null,0,0,0.90702947845805004,0,null,0,null,0]
[2022,"Sacramento_River_Solar","CAISO","CAISO","Solar",0,0,0,0,"Sacramento_River",0,0,null,null,null,0,null,null,0,0,0.90702947845805004,0,null,0,null,0]
[2022,"Sacramento_River_Wind","CAISO","CAISO","Wind",0,null,null,0,null,null,null,null,null,null,null,null,null,null,0,0.90702947845805004,0]
[2022,"SCADSNV_Solar","CAISO","CAISO","Solar",0,0,0,0,"SCADSNV",0,0,null,null,null,0,null,null,0,0,0.90702947845805004,0,null,0,null,0]
[2022,"SCADSNV_Wind","CAISO","CAISO","Wind",0,0,0,0,"SCADSNV",0,0,null,null,null,-596039.21,null,null,0,0,0.90702947845805004,0,null,0,null,0]
[2022,"Solano_Solar","CAISO","CAISO","Solar",0,0,0,0,"Solano-Sacramento_River",0,0,null,null,null,0,null,null,0,0,0.90702947845805004,0,null,0,null,0]
[2022,"Solano_subzone_Solar","CAISO","CAISO","Solar",0,0,0,0,"Solano-Solano_subzone-Sacramento_River",0,0,null,null,null,0,null,null,0,0,0.90702947845805004,0,null,0,null,0]
[2022,"Solano_subzone_Wind","CAISO","CAISO","Wind",0,0,0,0,"Solano-Solano_subzone-Sacramento_River",0,0,null,null,null,0,null,null,0,0,0.90702947845805004,0,null,0,null,0]
[2022,"Solano_Wind","CAISO","CAISO","Wind",0,464,464,464,"Solano-Sacramento_River",464,0,null,null,null,0,null,null,45345007.369999997,19419816.649999999,0.90702947845805004,0,null,464,null,0]
[2022,"Southern_California_Desert_Ex_Solar","CAISO","CAISO","Solar",0,862,862,862,"Southern_California_Desert_Ex",862,0,null,null,null,0,null,null,52844832.43,8886331.7200000007,0.90702947845805004,0,null,862,null,0]
[2022,"Southern_California_Desert_Ex_Wind","CAISO","CAISO","Wind",0,0,0,0,"Southern_California_Desert_Ex",0,0,null,null,null,-33537.24,null,null,0,0,0.90702947845805004,0,null,0,null,0]
[2022,"Southern_Nevada_Solar","CAISO","CAISO","Solar",0,0,0,0,"SCADSNV-GLW_VEA",0,0,null,null,null,0,null,null,0,0,0.90702947845805004,0,null,0,null,0]
[2022,"Southern_Nevada_Wind","CAISO","CAISO","Wind",0,442.03,442.03,442.03,"SCADSNV-GLW_VEA",442.03,0,null,null,null,-62926.39,null,null,45026111.390000001,18139039.100000001,0.90702947845805004,0,null,442.03,null,0]
[2022,"SW_Ext_Tx_Wind","CAISO","CAISO","Wind",0,0,0,0,"SCADSNV-Riverside_Palm_Springs",0,0,null,null,null,0,null,null,0,0,0.90702947845805004,0,null,0,null,0]
[2022,"Tehachapi_Ex_Solar","CAISO","CAISO","Solar",0,0,0,0,"Tehachapi_Ex",0,0,null,null,null,0,null,null,0,0,0.90702947845805004,0,null,0,null,0]
[2022,"Tehachapi_Solar","CAISO","CAISO","Solar",0,800,4202,4202,"Tehachapi",3402,800,null,null,null,0,null,null,270640882.44,44806193.890000001,0.90702947845805004,0,null,4202,null,0]
[2022,"Tehachapi_Wind","CAISO","CAISO","Wind",0,275,275,275,"Tehachapi",275,0,null,null,null,0,null,null,25284252.02,11669739.4,0.90702947845805004,0,null,275,null,0]
[2022,"Westlands_Ex_Solar","CAISO","CAISO","Solar",0,0,0,0,"Westlands_Ex",0,0,null,null,null,0,null,null,0,0,0.90702947845805004,0,null,0,null,0]
[2022,"Westlands_Ex_Wind","CAISO","CAISO","Wind",0,null,null,0,null,null,null,null,null,null,null,null,null,null,0,0.90702947845805004,0]
[2022,"Westlands_Solar","CAISO","CAISO","Solar",0,0,0,0,"Central_Valley_North_Los_Banos-SPGE",0,0,null,null,null,0,null,null,0,0,0.90702947845805004,0,null,0,null,0]
[2022,"Arizona_Solar","CAISO","CAISO","Solar",0,0,563,563,"SCADSNV-Riverside_Palm_Springs",563,0,null,null,null,0,null,null,36489988.789999999,6099850.79,0.90702947845805004,0,null,563,null,0]
[2022,"Arizona_Wind","CAISO","CAISO","Wind",0,null,null,0,null,null,null,null,null,null,null,null,null,null,0,0.90702947845805004,0]
[2022,"Baja_California_Solar","CAISO","CAISO","Solar",0,null,null,0,null,null,null,null,null,null,null,null,null,null,0,0.90702947845805004,0]
[2022,"Baja_California_Wind","CAISO","CAISO","Wind",0,0,0,0,"SCADSNV-Greater_Imperial",0,0,null,null,null,-793817.96,null,null,0,0,0.90702947845805004,0,null,0,null,0]
[2022,"Idaho_Wind","CAISO","CAISO","Wind",0,null,null,0,null,null,null,null,null,null,null,null,null,null,0,0.90702947845805004,0]
[2022,"New_Mexico_Solar","CAISO","CAISO","Solar",0,null,null,0,null,null,null,null,null,null,null,null,null,null,0,0.90702947845805004,0]
[2022,"New_Mexico_Wind","CAISO","CAISO","Wind",0,0,0,0,"SCADSNV-Riverside_Palm_Springs",0,0,null,null,null,-733408.05,null,null,0,0,0.90702947845805004,0,null,0,null,0]
[2022,"Utah_Solar","CAISO","CAISO","Solar",0,null,null,0,null,null,null,null,null,null,null,null,null,null,0,0.90702947845805004,0]
[2022,"Utah_Wind","CAISO","CAISO","Wind",0,null,null,0,null,null,null,null,null,null,null,null,null,null,0,0.90702947845805004,0]
[2022,"Wyoming_Wind","CAISO","CAISO","Wind",0,0,0,0,"SCADSNV-Mountain_Pass_El_Dorado",0,0,null,null,null,-667816.21,null,null,0,0,0.90702947845805004,0,null,0,null,0]
[2022,"Pacific_Northwest_Wind","CAISO","CAISO","Wind",0,null,null,0,null,null,null,null,null,null,null,null,null,null,0,0.90702947845805004,0]
[2022,"Diablo_Canyon_Offshore_Wind","CAISO","CAISO","Offshore_Wind",0,null,null,0,null,null,null,null,null,null,null,null,null,null,0,0.90702947845805004,0]
[2022,"Humboldt_Bay_Offshore_Wind","CAISO","CAISO","Offshore_Wind",0,null,null,0,null,null,null,null,null,null,null,null,null,null,0,0.90702947845805004,0]
[2022,"Morro_Bay_Offshore_Wind","CAISO","CAISO","Offshore_Wind",0,null,null,0,null,null,null,null,null,null,null,null,null,null,0,0.90702947845805004,0]
[2022,"Diablo_Canyon_Offshore_Wind_Ext_Tx","CAISO","CAISO","Offshore_Wind",0,null,null,0,null,null,null,null,null,null,null,null,null,null,0,0.90702947845805004,0]
[2022,"Cape_Mendocino_Offshore_Wind","CAISO","CAISO","Offshore_Wind",0,null,null,0,null,null,null,null,null,null,null,null,null,null,0,0.90702947845805004,0]
[2022,"Del_Norte_Offshore_Wind","CAISO","CAISO","Offshore_Wind",0,null,null,0,null,null,null,null,null,null,null,null,null,null,0,0.90702947845805004,0]
[2022,"CAISO_Existing_Pumped_Storage","CAISO","CAISO","Pumped_Hydro",1599.2,null,null,1599.2,null,null,null,null,null,null,null,null,null,null,0,0.90702947845805004,1599.2,null,null,null,null,1599.2]
[2022,"CAISO_New_Pumped_Storage","CAISO","CAISO","Pumped_Hydro",0,0,0,0,null,null,null,null,null,null,-1592607.43,null,null,0,0,0.90702947845805004,0,null,0,null,0,0]
[2022,"CAISO_New_Flow_Battery","CAISO","CAISO","Flow_Battery",0,0,0,0,null,null,null,null,null,null,0,null,null,0,0,0.90702947845805004,0,null,0,null,0,0]
[2022,"CAISO_New_Flow_Battery_2","CAISO","CAISO","Flow_Battery",0,0,0,0,null,null,null,null,null,null,0,null,null,0,0,0.90702947845805004,0,null,0,null,0,0]
[2022,"CAISO_New_Flow_Battery_3","CAISO","CAISO","Flow_Battery",0,0,0,0,null,null,null,null,null,null,0,null,null,0,0,0.90702947845805004,0,null,0,null,0,0]
[2022,"CAISO_New_Flow_Battery_4","CAISO","CAISO","Flow_Battery",0,0,0,0,null,null,null,null,null,null,0,null,null,0,0,0.90702947845805004,0,null,0,null,0,0]
[2022,"CAISO_New_Flow_Battery_5","CAISO","CAISO","Flow_Battery",0,0,0,0,null,null,null,null,null,null,null,null,null,0,0,0.90702947845805004,0,null,0,null,0,0]
[2022,"CAISO_New_Li_Battery","CAISO","CAISO","Li_Battery",0,0,6047.96,6047.96,null,null,null,null,null,null,0,null,null,940971900.25,81889611.579999998,0.90702947845805004,0,null,6047.96,null,1420.18,6047.96]
[2022,"CAISO_BTM_Li_Battery","CAISO","CAISO","BTM_Li_Battery",92.14,0,0,92.14,null,null,null,null,null,null,0,null,null,0,878656.68,0.90702947845805004,92.14,null,0,null,0,57.59]
[2022,"CAISO_New_Li_Battery_2","CAISO","CAISO","Li_Battery",0,0,0,0,null,null,null,null,null,null,0,null,null,0,0,0.90702947845805004,0,null,0,null,0,0]
[2022,"CAISO_New_Li_Battery_3","CAISO","CAISO","Li_Battery",0,0,0,0,null,null,null,null,null,null,0,null,null,0,0,0.90702947845805004,0,null,0,null,0,0]
[2022,"CAISO_New_Li_Battery_4","CAISO","CAISO","Li_Battery",0,0,0,0,null,null,null,null,null,null,0,null,null,0,0,0.90702947845805004,0,null,0,null,0,0]
[2022,"CAISO_New_Li_Battery_5","CAISO","CAISO","Li_Battery",0,0,0,0,null,null,null,null,null,null,null,null,null,0,0,0.90702947845805004,0,null,0,null,0,0]
[2022,"CAISO_New_Li_Battery_6","CAISO","CAISO","Li_Battery",0,0,0,0,null,null,null,null,null,null,null,null,null,0,0,0.90702947845805004,0,null,0,null,0,0]
[2022,"CAISO_Hydro","CAISO","CAISO","Hydro",7070.1,null,null,7070.1,null,null,null,null,null,null,null,null,null,null,0,0.90702947845805004,7070.1,null,null,null,null,5979.64]
[2022,"NW_Hydro","NW","NW","Hydro",31478.05,null,null,31478.05,null,null,null,null,null,null,null,null,null,null,0,0.90702947845805004,31478.05]
[2022,"SW_Hydro","SW","SW","Hydro",2680.31,null,null,2680.31,null,null,null,null,null,null,null,null,null,null,0,0.90702947845805004,2680.31]
[2022,"LDWP_Hydro","LDWP","LDWP","Hydro",233.7,null,null,233.7,null,null,null,null,null,null,null,null,null,null,0,0.90702947845805004,233.7]
[2022,"BANC_Hydro","BANC","BANC","Hydro",2724.06,null,null,2724.06,null,null,null,null,null,null,null,null,null,null,0,0.90702947845805004,2724.06]
[2022,"IID_Hydro","IID","IID","Hydro",83.5,null,null,83.5,null,null,null,null,null,null,null,null,null,null,0,0.90702947845805004,83.5]
[2022,"NW_Hydro_for_CAISO","CAISO_NW_Hydro","CAISO_NW_Hydro","Hydro_NW_CAISO",2851.77,null,null,2851.77,null,null,null,null,null,null,null,null,null,null,0,0.90702947845805004,2851.77]
[2022,"Hydrogen_electrolysis","CAISO","CAISO","Hydrogen_Electrolysis",null,null,null,null,null,null,null,null,null,0,null,null,null,null,0,0.90702947845805004,0]
[2022,"CAISO_Shed_DR_Existing","CAISO","CAISO","CAISO_Conventional_DR",0,null,null,0,null,null,null,null,null,null,null,1,0,null,0,0.90702947845805004,0,null,null,null,null,0]
[2022,"CAISO_Shed_DR_Tranche1","CAISO","CAISO","CAISO_Conventional_DR",0,0,0,0,null,null,null,null,null,null,-973507.1,1,0,0,0,0.90702947845805004,0,null,0,null,0,0]
[2022,"CAISO_Shed_DR_Tranche2","CAISO","CAISO","CAISO_Conventional_DR",0,0,0,0,null,null,null,null,null,null,-922257.1,1,0,0,0,0.90702947845805004,0,null,0,null,0,0]
[2022,"CAISO_Shed_DR_Tranche3","CAISO","CAISO","CAISO_Conventional_DR",0,0,0,0,null,null,null,null,null,null,-871007.1,1,0,0,0,0.90702947845805004,0,null,0,null,0,0]
[2022,"CAISO_Shed_DR_Tranche4","CAISO","CAISO","CAISO_Conventional_DR",0,0,0,0,null,null,null,null,null,null,-819757.1,1,0,0,0,0.90702947845805004,0,null,0,null,0,0]
[2022,"CAISO_Shed_DR_Tranche5","CAISO","CAISO","CAISO_Conventional_DR",0,0,0,0,null,null,null,null,null,null,-583801.59999999998,1,0,0,0,0.90702947845805004,0,null,0,null,0,0]
[2022,"CAISO_Shed_DR_Tranche6","CAISO","CAISO","CAISO_Conventional_DR",0,0,0,0,null,null,null,null,null,null,-93903.8,1,0,0,0,0.90702947845805004,0,null,0,null,0,0]
[2022,"CAISO_Shed_DR_Tranche7","CAISO","CAISO","CAISO_Conventional_DR",0,0,0,0,null,null,null,null,null,null,0,1,0,0,0,0.90702947845805004,0,null,0,null,0,0]
[2022,"CAISO_Shed_DR_Tranche8","CAISO","CAISO","CAISO_Conventional_DR",0,0,0,0,null,null,null,null,null,null,0,1,0,0,0,0.90702947845805004,0,null,0,null,0,0]
[2023,"CAISO_CHP","CAISO","CAISO","CAISO_CHP",2296.02,null,null,2296.02,null,null,null,null,null,null,null,null,null,null,0,0.86383759853147601,2296.02,null,null,null,null,1455.68]
[2023,"CAISO_Nuclear","CAISO","CAISO","CAISO_Nuclear",2935,null,null,2935,null,null,null,null,null,null,null,null,null,null,0,0.86383759853147601,2935,null,null,null,null,2914.91]
[2023,"CAISO_CCGT1","CAISO","CAISO","CAISO_CCGT1",13333.47,null,null,13333.47,null,null,null,null,null,null,null,532.4,25.04,null,148200393.30000001,0.86383759853147601,13333.47,0,null,null,null,12526.38]
[2023,"CAISO_CCGT2","CAISO","CAISO","CAISO_CCGT2",2927.93,null,null,2927.93,null,null,null,null,null,null,null,187.53,15.61,null,32543694.739999998,0.86383759853147601,2927.93,0,null,null,null,2927.58]
[2023,"CAISO_Coal","CAISO","CAISO","CAISO_Coal",480,null,null,480,null,null,null,null,null,null,null,849.97,0.56000000000000005,null,0,0.86383759853147601,480,null,null,null,null,470.43]
[2023,"CAISO_Peaker1","CAISO","CAISO","CAISO_Peaker1",4913.93,null,null,4913.93,null,null,null,null,null,null,null,67.59,72.7,null,67294545.829999998,0.86383759853147601,4913.93,0,null,null,null,4539.17]
[2023,"CAISO_Peaker2","CAISO","CAISO","CAISO_Peaker2",3682.71,null,null,3682.71,null,null,null,null,null,null,null,53,69.48,null,50433420.270000003,0.86383759853147601,3682.71,0,null,null,null,3540.17]
[2023,"CAISO_Advanced_CCGT","CAISO","CAISO","CAISO_Advanced_CCGT",0,0,0,0,null,null,null,null,null,null,-211513.11,600,0,0,0,0.86383759853147601,0,0,0,0,0,0]
[2023,"CAISO_Aero_CT","CAISO","CAISO","CAISO_Aero_CT",0,0,0,0,null,null,null,null,null,null,-188146.46,100,0,0,0,0.86383759853147601,0,0,0,0,0,0]
[2023,"CAISO_Reciprocating_Engine","CAISO","CAISO","CAISO_Reciprocating_Engine",255.3,0,0,255.3,null,null,null,null,null,null,0,10.36,24.65,132.41999999999999,3496257.55,0.86383759853147601,255.3,0,0,0,0,254.7]
[2023,"CAISO_ST","CAISO","CAISO","CAISO_ST",0,null,null,0,null,null,null,null,null,null,null,341.83,0,null,0,0.86383759853147601,0,null,null,null,null,0]
[2023,"NW_Nuclear","NW","NW","NW_Nuclear",1170,null,null,1170,null,null,null,null,null,null,null,null,null,null,0,0.86383759853147601,1170]
[2023,"NW_Coal","NW","NW","NW_Coal",8795.7999999999993,null,null,8795.7999999999993,null,null,null,null,null,null,null,367.75,23.92,null,0,0.86383759853147601,8795.7999999999993]
[2023,"NW_CCGT","NW","NW","NW_CCGT",9573.43,null,null,9573.43,null,null,null,null,null,null,null,341.91,28,null,0,0.86383759853147601,9573.43]
[2023,"NW_Peaker","NW","NW","NW_Peaker",2993.17,null,null,2993.17,null,null,null,null,null,null,null,29.06,103,null,0,0.86383759853147601,2993.17]
[2023,"SW_Nuclear","SW","SW","SW_Nuclear",2998,null,null,2998,null,null,null,null,null,null,null,null,null,null,0,0.86383759853147601,2998]
[2023,"SW_Coal","SW","SW","SW_Coal",7167.6,null,null,7167.6,null,null,null,null,null,null,null,409.46,17.5,null,0,0.86383759853147601,7167.6]
[2023,"SW_CCGT","SW","SW","SW_CCGT",17335.099999999999,null,null,17335.099999999999,null,null,null,null,null,null,null,344.28,50.35,null,0,0.86383759853147601,17335.099999999999]
[2023,"SW_Peaker","SW","SW","SW_Peaker",6535.12,null,null,6535.12,null,null,null,null,null,null,null,47.78,136.77000000000001,null,0,0.86383759853147601,6535.12]
[2023,"SW_ST","SW","SW","SW_ST",1491.5,null,null,1491.5,null,null,null,null,null,null,null,92.71,16.09,null,0,0.86383759853147601,1491.5]
[2023,"LDWP_Nuclear","LDWP","LDWP","LDWP_Nuclear",407,null,null,407,null,null,null,null,null,null,null,null,null,null,0,0.86383759853147601,407]
[2023,"LDWP_Coal","LDWP","LDWP","LDWP_Coal",1699.94,null,null,1699.94,null,null,null,null,null,null,null,849.97,2,null,0,0.86383759853147601,1699.94]
[2023,"LDWP_CCGT","LDWP","LDWP","LDWP_CCGT",2291.6999999999998,null,null,2291.6999999999998,null,null,null,null,null,null,null,385.96,5.94,null,0,0.86383759853147601,2291.6999999999998]
[2023,"LDWP_Peaker","LDWP","LDWP","LDWP_Peaker",1545,null,null,1545,null,null,null,null,null,null,null,82.35,18.760000000000002,null,0,0.86383759853147601,1545]
[2023,"LDWP_ST","LDWP","LDWP","LDWP_ST",992,null,null,992,null,null,null,null,null,null,null,110.22,9,null,0,0.86383759853147601,992]
[2023,"IID_CCGT","IID","IID","IID_CCGT",255.3,null,null,255.3,null,null,null,null,null,null,null,127.65,2,null,0,0.86383759853147601,255.3]
[2023,"IID_Peaker","IID","IID","IID_Peaker",327,null,null,327,null,null,null,null,null,null,null,36.090000000000003,9.06,null,0,0.86383759853147601,327]
[2023,"BANC_CCGT","BANC","BANC","BANC_CCGT",1863.1,null,null,1863.1,null,null,null,null,null,null,null,207.01,9,null,0,0.86383759853147601,1863.1]
[2023,"BANC_Peaker","BANC","BANC","BANC_Peaker",866.99,null,null,866.99,null,null,null,null,null,null,null,34.68,25,null,0,0.86383759853147601,866.99]
[2023,"BANC_Biomass_for_Other","BANC","BANC","Biomass",17.5,null,null,17.5,null,null,null,null,null,null,null,null,null,null,0,0.86383759853147601,17.5]
[2023,"BANC_Geothermal_for_Other","BANC","BANC","Geothermal",0,null,null,0,null,null,null,null,null,null,null,null,null,null,0,0.86383759853147601,0]
[2023,"CAISO_Biomass_for_Other","CAISO","CAISO","Biomass",11.7,null,null,11.7,null,null,null,null,null,null,null,null,null,null,0,0.86383759853147601,11.7,null,null,null,null,8.17]
[2023,"CAISO_Geothermal_for_Other","CAISO","CAISO","Geothermal",38.67,null,null,38.67,null,null,null,null,null,null,null,null,null,null,0,0.86383759853147601,38.67,null,null,null,null,23.82]
[2023,"IID_Biomass_for_Other","IID","IID","Biomass",77,null,null,77,null,null,null,null,null,null,null,null,null,null,0,0.86383759853147601,77]
[2023,"IID_Geothermal_for_Other","IID","IID","Geothermal",709.46,null,null,709.46,null,null,null,null,null,null,null,null,null,null,0,0.86383759853147601,709.46]
[2023,"LDWP_Biomass_for_Other","LDWP","LDWP","Biomass",0,null,null,0,null,null,null,null,null,null,null,null,null,null,0,0.86383759853147601,0]
[2023,"LDWP_Geothermal_for_Other","LDWP","LDWP","Geothermal",0,null,null,0,null,null,null,null,null,null,null,null,null,null,0,0.86383759853147601,0]
[2023,"NW_Biomass_for_Other","NW","NW","Biomass",584.1,null,null,584.1,null,null,null,null,null,null,null,null,null,null,0,0.86383759853147601,584.1]
[2023,"NW_Geothermal_for_Other","NW","NW","Geothermal",142.09,null,null,142.09,null,null,null,null,null,null,null,null,null,null,0,0.86383759853147601,142.09]
[2023,"SW_Biomass_for_Other","SW","SW","Biomass",113.33,null,null,113.33,null,null,null,null,null,null,null,null,null,null,0,0.86383759853147601,113.33]
[2023,"SW_Geothermal_for_Other","SW","SW","Geothermal",701.85,null,null,701.85,null,null,null,null,null,null,null,null,null,null,0,0.86383759853147601,701.85]
[2023,"CAISO_Biomass_for_CAISO","CAISO","CAISO","Biomass",890.95,null,null,890.95,null,null,null,null,null,null,null,null,null,null,0,0.86383759853147601,890.95,null,null,null,null,621.88]
[2023,"CAISO_Geothermal_for_CAISO","CAISO","CAISO","Geothermal",1812.64,null,null,1812.64,null,null,null,null,null,null,null,null,null,null,0,0.86383759853147601,1812.64,null,null,null,null,1116.5899999999999]
[2023,"IID_Geothermal_for_CAISO","IID","CAISO","Geothermal",83,null,null,83,null,null,null,null,null,null,null,null,null,null,0,0.86383759853147601,83]
[2023,"NW_Biomass_for_CAISO","NW","CAISO","Biomass",46,null,null,46,null,null,null,null,null,null,null,null,null,null,0,0.86383759853147601,46]
[2023,"NW_Geothermal_for_CAISO","NW","CAISO","Geothermal",0,null,null,0,null,null,null,null,null,null,null,null,null,null,0,0.86383759853147601,0]
[2023,"InState_Biomass","CAISO","CAISO","Biomass",0,0,0,0,"None",0,0,null,null,null,0,null,null,0,0,0.86383759853147601,0,null,0,null,0,0]
[2023,"CAISO_Small_Hydro_for_CAISO","CAISO","CAISO","Small_Hydro",960.23,null,null,960.23,null,null,null,null,null,null,null,null,null,null,0,0.86383759853147601,960.23,null,null,null,null,480.11]
[2023,"BANC_Small_Hydro_for_CAISO","BANC","CAISO","Small_Hydro",0,null,null,0,null,null,null,null,null,null,null,null,null,null,0,0.86383759853147601,0]
[2023,"NW_Small_Hydro_for_CAISO","NW","CAISO","Small_Hydro",6.9,null,null,6.9,null,null,null,null,null,null,null,null,null,null,0,0.86383759853147601,6.9]
[2023,"CAISO_Small_Hydro_for_Other","CAISO","CAISO","Small_Hydro",13.8,null,null,13.8,null,null,null,null,null,null,null,null,null,null,0,0.86383759853147601,13.8,null,null,null,null,6.9]
[2023,"BANC_Small_Hydro_for_Other","BANC","BANC","Small_Hydro",41.2,null,null,41.2,null,null,null,null,null,null,null,null,null,null,0,0.86383759853147601,41.2]
[2023,"IID_Small_Hydro_for_Other","IID","IID","Small_Hydro",0,null,null,0,null,null,null,null,null,null,null,null,null,null,0,0.86383759853147601,0]
[2023,"LDWP_Small_Hydro_for_Other","LDWP","LDWP","Small_Hydro",56,null,null,56,null,null,null,null,null,null,null,null,null,null,0,0.86383759853147601,56]
[2023,"NW_Small_Hydro_for_Other","NW","NW","Small_Hydro",41,null,null,41,null,null,null,null,null,null,null,null,null,null,0,0.86383759853147601,41]
[2023,"SW_Small_Hydro_for_Other","SW","SW","Small_Hydro",0,null,null,0,null,null,null,null,null,null,null,null,null,null,0,0.86383759853147601,0]
[2023,"Greater_Imperial_Geothermal","CAISO","CAISO","Geothermal",0,0,0,0,"SCADSNV-Greater_Imperial",0,0,null,null,null,0,null,null,0,0,0.86383759853147601,0,null,0,null,0,0]
[2023,"Inyokern_North_Kramer_Geothermal","CAISO","CAISO","Geothermal",0,0,0,0,"Inyokern_North_Kramer-Greater_Kramer",0,0,null,null,null,0,null,null,0,0,0.86383759853147601,0,null,0,null,0,0]
[2023,"Northern_California_Ex_Geothermal","CAISO","CAISO","Geothermal",0,0,0,0,"Northern_California_Ex",0,0,null,null,null,0,null,null,0,0,0.86383759853147601,0,null,0,null,0,0]
[2023,"Pacific_Northwest_Geothermal","CAISO","CAISO","Geothermal",0,null,null,0,null,null,null,null,null,null,null,null,null,null,0,0.86383759853147601,0,null,null,null,null,0]
[2023,"Riverside_Palm_Springs_Geothermal","CAISO","CAISO","Geothermal",0,0,0,0,"SCADSNV-Riverside_Palm_Springs",0,0,null,null,null,0,null,null,0,0,0.86383759853147601,0,null,0,null,0,0]
[2023,"Solano_Geothermal","CAISO","CAISO","Geothermal",0,0,0,0,"Solano-Sacramento_River",0,0,null,null,null,-206697.33,null,null,0,0,0.86383759853147601,0,null,0,null,0,0]
[2023,"Southern_Nevada_Geothermal","CAISO","CAISO","Geothermal",0,0,0,0,"SCADSNV-Mountain_Pass_El_Dorado",0,0,null,null,null,-173550.26,null,null,0,0,0.86383759853147601,0,null,0,null,0,0]
[2023,"Customer_PV","CAISO","CAISO","Customer_PV",7269.29,null,null,7269.29,null,null,null,null,null,null,null,null,null,null,0,0.86383759853147601,7269.29]
[2023,"BANC_Solar_for_Other","BANC","BANC","Solar",2613.0300000000002,null,null,2613.0300000000002,null,null,null,null,null,null,null,null,null,null,0,0.86383759853147601,2613.0300000000002]
[2023,"CAISO_Solar_for_Other","CAISO","CAISO","Solar",12,null,null,12,null,null,null,null,null,null,null,null,null,null,0,0.86383759853147601,12]
[2023,"IID_Solar_for_Other","IID","IID","Solar",138.69999999999999,null,null,138.69999999999999,null,null,null,null,null,null,null,null,null,null,0,0.86383759853147601,138.69999999999999]
[2023,"LDWP_Solar_for_Other","LDWP","LDWP","Solar",3098.28,null,null,3098.28,null,null,null,null,null,null,null,null,null,null,0,0.86383759853147601,3098.28]
[2023,"NW_Solar_for_Other","NW","NW","Solar",2665.84,null,null,2665.84,null,null,null,null,null,null,null,null,null,null,0,0.86383759853147601,2665.84]
[2023,"SW_Solar_for_Other","SW","SW","Solar",1671.64,null,null,1671.64,null,null,null,null,null,null,null,null,null,null,0,0.86383759853147601,1671.64]
[2023,"CAISO_Solar_for_CAISO","CAISO","CAISO","Solar",14875.45,null,null,14875.45,null,null,null,null,null,null,null,null,null,null,0,0.86383759853147601,14875.45]
[2023,"IID_Solar_for_CAISO","IID","CAISO","Solar",49.9,null,null,49.9,null,null,null,null,null,null,null,null,null,null,0,0.86383759853147601,49.9]
[2023,"SW_Solar_for_CAISO","SW","CAISO","Solar",65,null,null,65,null,null,null,null,null,null,null,null,null,null,0,0.86383759853147601,65]
[2023,"BANC_Wind_for_Other","BANC","BANC","Wind",0,null,null,0,null,null,null,null,null,null,null,null,null,null,0,0.86383759853147601,0]
[2023,"CAISO_Wind_for_Other","CAISO","CAISO","Wind",279.98,null,null,279.98,null,null,null,null,null,null,null,null,null,null,0,0.86383759853147601,279.98]
[2023,"IID_Wind_for_Other","IID","IID","Wind",0,null,null,0,null,null,null,null,null,null,null,null,null,null,0,0.86383759853147601,0]
[2023,"LDWP_Wind_for_Other","LDWP","LDWP","Wind",418.41,null,null,418.41,null,null,null,null,null,null,null,null,null,null,0,0.86383759853147601,418.41]
[2023,"NW_Wind_for_Other","NW","NW","Wind",11057.09,null,null,11057.09,null,null,null,null,null,null,null,null,null,null,0,0.86383759853147601,11057.09]
[2023,"SW_Wind_for_Other","SW","SW","Wind",2285.6999999999998,null,null,2285.6999999999998,null,null,null,null,null,null,null,null,null,null,0,0.86383759853147601,2285.6999999999998]
[2023,"CAISO_Wind_for_CAISO","CAISO","CAISO","Wind",7176.33,null,null,7176.33,null,null,null,null,null,null,null,null,null,null,0,0.86383759853147601,7176.33]
[2023,"LDWP_Wind_for_CAISO","LDWP","CAISO","Wind",5.09,null,null,5.09,null,null,null,null,null,null,null,null,null,null,0,0.86383759853147601,5.09]
[2023,"NW_Wind_for_CAISO","NW","CAISO","Wind",1417.29,null,null,1417.29,null,null,null,null,null,null,null,null,null,null,0,0.86383759853147601,1417.29]
[2023,"SW_Wind_for_CAISO","SW","CAISO","Wind",50.4,null,null,50.4,null,null,null,null,null,null,null,null,null,null,0,0.86383759853147601,50.4]
[2023,"Carrizo_Solar","CAISO","CAISO","Solar",0,0,0,0,"Kern_Greater_Carrizo-SPGE-Carrizo",0,0,null,null,null,0,null,null,0,0,0.86383759853147601,0,null,0,null,0]
[2023,"Carrizo_Wind","CAISO","CAISO","Wind",0,287,287,287,"Kern_Greater_Carrizo-SPGE-Carrizo",287,0,null,null,null,0,null,null,32233705.789999999,11918394.439999999,0.86383759853147601,0,null,287,null,0]
[2023,"Central_Valley_North_Los_Banos_Solar","CAISO","CAISO","Solar",0,0,0,0,"Central_Valley_North_Los_Banos-SPGE",0,0,null,null,null,0,null,null,0,0,0.86383759853147601,0,null,0,null,0]
[2023,"Central_Valley_North_Los_Banos_Wind","CAISO","CAISO","Wind",0,0,173,173,"Central_Valley_North_Los_Banos-SPGE",173,0,null,null,null,0,null,null,16593876.300000001,7240578.1900000004,0.86383759853147601,0,null,173,null,0]
[2023,"Distributed_Solar","CAISO","CAISO","Solar",0,0,0,0,"None",0,0,null,null,null,0,null,null,0,0,0.86383759853147601,0,null,0,null,0]
[2023,"Mountain_Pass_El_Dorado_Solar","CAISO","CAISO","Solar",0,66.48,66.48,66.48,null,66.48,0,null,null,null,0,null,null,3953350.1,677877.1,0.86383759853147601,0,null,66.48,null,0]
[2023,"Greater_Imperial_Solar","CAISO","CAISO","Solar",0,0,0,0,"SCADSNV-Greater_Imperial",0,0,null,null,null,0,null,null,0,0,0.86383759853147601,0,null,0,null,0]
[2023,"Greater_Imperial_Wind","CAISO","CAISO","Wind",0,0,0,0,"SCADSNV-Greater_Imperial",0,0,null,null,null,0,null,null,0,0,0.86383759853147601,0,null,0,null,0]
[2023,"Greater_Kramer_Wind","CAISO","CAISO","Wind",0,0,0,0,"Greater_Kramer",0,0,null,null,null,0,null,null,0,0,0.86383759853147601,0,null,0,null,0]
[2023,"Humboldt_Wind","CAISO","CAISO","Wind",0,0,34,34,"Sacramento_River-Humboldt",0,34,null,null,null,0,null,null,3118138.06,1432688.81,0.86383759853147601,0,null,34,null,0]
[2023,"Inyokern_North_Kramer_Solar","CAISO","CAISO","Solar",0,0,73,73,"Inyokern_North_Kramer-Greater_Kramer",73,0,null,null,null,0,null,null,4574365.26,756500.06,0.86383759853147601,0,null,73,null,0]
[2023,"Kern_Greater_Carrizo_Solar","CAISO","CAISO","Solar",0,114.26,114.26,114.26,"Kern_Greater_Carrizo-SPGE",114.26,0,null,null,null,0,null,null,6794087.3399999999,1164975.56,0.86383759853147601,0,null,114.26,null,0]
[2023,"Kern_Greater_Carrizo_Wind","CAISO","CAISO","Wind",0,0,60,60,"Kern_Greater_Carrizo-SPGE",60,0,null,null,null,0,null,null,5920164.4000000004,2511183.19,0.86383759853147601,0,null,60,null,0]
[2023,"Kramer_Inyokern_Ex_Solar","CAISO","CAISO","Solar",0,0,0,0,"Kramer_Inyokern_Ex",0,0,null,null,null,0,null,null,0,0,0.86383759853147601,0,null,0,null,0]
[2023,"Kramer_Inyokern_Ex_Wind","CAISO","CAISO","Wind",0,0,0,0,"Kramer_Inyokern_Ex",0,0,null,null,null,0,null,null,0,0,0.86383759853147601,0,null,0,null,0]
[2023,"North_Victor_Solar","CAISO","CAISO","Solar",0,0,300,300,"North_Victor-Greater_Kramer",300,0,null,null,null,0,null,null,18391473,3092690.85,0.86383759853147601,0,null,300,null,0]
[2023,"Northern_California_Ex_Solar","CAISO","CAISO","Solar",0,0,0,0,"Northern_California_Ex",0,0,null,null,null,0,null,null,0,0,0.86383759853147601,0,null,0,null,0]
[2023,"Northern_California_Ex_Wind","CAISO","CAISO","Wind",0,0,865.9,865.9,"Sacramento_River",865.9,0,null,null,null,0,null,null,89470506.049999997,36240558.710000001,0.86383759853147601,0,null,865.9,null,0]
[2023,"NW_Ext_Tx_Wind","CAISO","CAISO","Wind",0,0,617.9,617.9,"Sacramento_River",617.9,0,null,null,null,0,null,null,87244850.359999999,25892481.120000001,0.86383759853147601,0,null,617.9,null,0]
[2023,"Riverside_Palm_Springs_Solar","CAISO","CAISO","Solar",0,0,0,0,"SCADSNV-Riverside_Palm_Springs",0,0,null,null,null,0,null,null,0,0,0.86383759853147601,0,null,0,null,0]
[2023,"Sacramento_River_Solar","CAISO","CAISO","Solar",0,0,0,0,"Sacramento_River",0,0,null,null,null,0,null,null,0,0,0.86383759853147601,0,null,0,null,0]
[2023,"Sacramento_River_Wind","CAISO","CAISO","Wind",0,null,null,0,null,null,null,null,null,null,null,null,null,null,0,0.86383759853147601,0]
[2023,"SCADSNV_Solar","CAISO","CAISO","Solar",0,0,0,0,"SCADSNV",0,0,null,null,null,0,null,null,0,0,0.86383759853147601,0,null,0,null,0]
[2023,"SCADSNV_Wind","CAISO","CAISO","Wind",0,0,0,0,"SCADSNV",0,0,null,null,null,0,null,null,0,0,0.86383759853147601,0,null,0,null,0]
[2023,"Solano_Solar","CAISO","CAISO","Solar",0,0,0,0,"Solano-Sacramento_River",0,0,null,null,null,0,null,null,0,0,0.86383759853147601,0,null,0,null,0]
[2023,"Solano_subzone_Solar","CAISO","CAISO","Solar",0,0,0,0,"Solano-Solano_subzone-Sacramento_River",0,0,null,null,null,0,null,null,0,0,0.86383759853147601,0,null,0,null,0]
[2023,"Solano_subzone_Wind","CAISO","CAISO","Wind",0,0,0,0,"Solano-Solano_subzone-Sacramento_River",0,0,null,null,null,0,null,null,0,0,0.86383759853147601,0,null,0,null,0]
[2023,"Solano_Wind","CAISO","CAISO","Wind",0,0,464,464,"Solano-Sacramento_River",464,0,null,null,null,0,null,null,45345007.369999997,19419816.649999999,0.86383759853147601,0,null,464,null,0]
[2023,"Southern_California_Desert_Ex_Solar","CAISO","CAISO","Solar",0,0,862,862,"Southern_California_Desert_Ex",862,0,null,null,null,0,null,null,52844832.43,8886331.7200000007,0.86383759853147601,0,null,862,null,0]
[2023,"Southern_California_Desert_Ex_Wind","CAISO","CAISO","Wind",0,0,0,0,"Southern_California_Desert_Ex",0,0,null,null,null,0,null,null,0,0,0.86383759853147601,0,null,0,null,0]
[2023,"Southern_Nevada_Solar","CAISO","CAISO","Solar",0,0,0,0,"SCADSNV-GLW_VEA",0,0,null,null,null,0,null,null,0,0,0.86383759853147601,0,null,0,null,0]
[2023,"Southern_Nevada_Wind","CAISO","CAISO","Wind",0,0,442.03,442.03,"SCADSNV-GLW_VEA",442.03,0,null,null,null,0,null,null,45026111.390000001,18139039.100000001,0.86383759853147601,0,null,442.03,null,0]
[2023,"SW_Ext_Tx_Wind","CAISO","CAISO","Wind",0,0,0,0,"SCADSNV-Riverside_Palm_Springs",0,0,null,null,null,0,null,null,0,0,0.86383759853147601,0,null,0,null,0]
[2023,"Tehachapi_Ex_Solar","CAISO","CAISO","Solar",0,0,0,0,"Tehachapi_Ex",0,0,null,null,null,0,null,null,0,0,0.86383759853147601,0,null,0,null,0]
[2023,"Tehachapi_Solar","CAISO","CAISO","Solar",0,0,4202,4202,"Tehachapi",3402,800,null,null,null,0,null,null,270640882.44,44806193.890000001,0.86383759853147601,0,null,4202,null,0]
[2023,"Tehachapi_Wind","CAISO","CAISO","Wind",0,0,275,275,"Tehachapi",275,0,null,null,null,0,null,null,25284252.02,11669739.4,0.86383759853147601,0,null,275,null,0]
[2023,"Westlands_Ex_Solar","CAISO","CAISO","Solar",0,1778.57,1778.57,1778.57,"Westlands_Ex",1778.57,0,null,null,null,0,null,null,105761198.36,18134769.93,0.86383759853147601,0,null,1778.57,null,0]
[2023,"Westlands_Ex_Wind","CAISO","CAISO","Wind",0,null,null,0,null,null,null,null,null,null,null,null,null,null,0,0.86383759853147601,0]
[2023,"Westlands_Solar","CAISO","CAISO","Solar",0,40.69,40.69,40.69,"Central_Valley_North_Los_Banos-SPGE",40.69,0,null,null,null,0,null,null,2419514.31,414871.77,0.86383759853147601,0,null,40.69,null,0]
[2023,"Arizona_Solar","CAISO","CAISO","Solar",0,0,563,563,"SCADSNV-Riverside_Palm_Springs",563,0,null,null,null,0,null,null,36489988.789999999,6099850.79,0.86383759853147601,0,null,563,null,0]
[2023,"Arizona_Wind","CAISO","CAISO","Wind",0,null,null,0,null,null,null,null,null,null,null,null,null,null,0,0.86383759853147601,0]
[2023,"Baja_California_Solar","CAISO","CAISO","Solar",0,null,null,0,null,null,null,null,null,null,null,null,null,null,0,0.86383759853147601,0]
[2023,"Baja_California_Wind","CAISO","CAISO","Wind",0,0,0,0,"SCADSNV-Greater_Imperial",0,0,null,null,null,-43442.28,null,null,0,0,0.86383759853147601,0,null,0,null,0]
[2023,"Idaho_Wind","CAISO","CAISO","Wind",0,null,null,0,null,null,null,null,null,null,null,null,null,null,0,0.86383759853147601,0]
[2023,"New_Mexico_Solar","CAISO","CAISO","Solar",0,null,null,0,null,null,null,null,null,null,null,null,null,null,0,0.86383759853147601,0]
[2023,"New_Mexico_Wind","CAISO","CAISO","Wind",0,0,0,0,"SCADSNV-Riverside_Palm_Springs",0,0,null,null,null,0,null,null,0,0,0.86383759853147601,0,null,0,null,0]
[2023,"Utah_Solar","CAISO","CAISO","Solar",0,null,null,0,null,null,null,null,null,null,null,null,null,null,0,0.86383759853147601,0]
[2023,"Utah_Wind","CAISO","CAISO","Wind",0,null,null,0,null,null,null,null,null,null,null,null,null,null,0,0.86383759853147601,0]
[2023,"Wyoming_Wind","CAISO","CAISO","Wind",0,0,0,0,"SCADSNV-Mountain_Pass_El_Dorado",0,0,null,null,null,0,null,null,0,0,0.86383759853147601,0,null,0,null,0]
[2023,"Pacific_Northwest_Wind","CAISO","CAISO","Wind",0,null,null,0,null,null,null,null,null,null,null,null,null,null,0,0.86383759853147601,0]
[2023,"Diablo_Canyon_Offshore_Wind","CAISO","CAISO","Offshore_Wind",0,null,null,0,null,null,null,null,null,null,null,null,null,null,0,0.86383759853147601,0]
[2023,"Humboldt_Bay_Offshore_Wind","CAISO","CAISO","Offshore_Wind",0,null,null,0,null,null,null,null,null,null,null,null,null,null,0,0.86383759853147601,0]
[2023,"Morro_Bay_Offshore_Wind","CAISO","CAISO","Offshore_Wind",0,null,null,0,null,null,null,null,null,null,null,null,null,null,0,0.86383759853147601,0]
[2023,"Diablo_Canyon_Offshore_Wind_Ext_Tx","CAISO","CAISO","Offshore_Wind",0,null,null,0,null,null,null,null,null,null,null,null,null,null,0,0.86383759853147601,0]
[2023,"Cape_Mendocino_Offshore_Wind","CAISO","CAISO","Offshore_Wind",0,null,null,0,null,null,null,null,null,null,null,null,null,null,0,0.86383759853147601,0]
[2023,"Del_Norte_Offshore_Wind","CAISO","CAISO","Offshore_Wind",0,null,null,0,null,null,null,null,null,null,null,null,null,null,0,0.86383759853147601,0]
[2023,"CAISO_Existing_Pumped_Storage","CAISO","CAISO","Pumped_Hydro",1599.2,null,null,1599.2,null,null,null,null,null,null,null,null,null,null,0,0.86383759853147601,1599.2,null,null,null,null,1599.2]
[2023,"CAISO_New_Pumped_Storage","CAISO","CAISO","Pumped_Hydro",0,0,0,0,null,null,null,null,null,null,0,null,null,0,0,0.86383759853147601,0,null,0,null,0,0]
[2023,"CAISO_New_Flow_Battery","CAISO","CAISO","Flow_Battery",0,0,0,0,null,null,null,null,null,null,0,null,null,0,0,0.86383759853147601,0,null,0,null,0,0]
[2023,"CAISO_New_Flow_Battery_2","CAISO","CAISO","Flow_Battery",0,0,0,0,null,null,null,null,null,null,0,null,null,0,0,0.86383759853147601,0,null,0,null,0,0]
[2023,"CAISO_New_Flow_Battery_3","CAISO","CAISO","Flow_Battery",0,0,0,0,null,null,null,null,null,null,0,null,null,0,0,0.86383759853147601,0,null,0,null,0,0]
[2023,"CAISO_New_Flow_Battery_4","CAISO","CAISO","Flow_Battery",0,0,0,0,null,null,null,null,null,null,0,null,null,0,0,0.86383759853147601,0,null,0,null,0,0]
[2023,"CAISO_New_Flow_Battery_5","CAISO","CAISO","Flow_Battery",0,0,0,0,null,null,null,null,null,null,null,null,null,0,0,0.86383759853147601,0,null,0,null,0,0]
[2023,"CAISO_New_Li_Battery","CAISO","CAISO","Li_Battery",0,388.05,6436.01,6436.01,null,null,null,null,null,null,0,null,null,973348033.85000002,84865960.390000001,0.86383759853147601,0,null,6436.01,null,1543.52,6436.01]
[2023,"CAISO_BTM_Li_Battery","CAISO","CAISO","BTM_Li_Battery",92.14,0,0,92.14,null,null,null,null,null,null,0,null,null,0,878656.68,0.86383759853147601,92.14,null,0,null,0,57.59]
[2023,"CAISO_New_Li_Battery_2","CAISO","CAISO","Li_Battery",0,0,0,0,null,null,null,null,null,null,0,null,null,0,0,0.86383759853147601,0,null,0,null,0,0]
[2023,"CAISO_New_Li_Battery_3","CAISO","CAISO","Li_Battery",0,0,0,0,null,null,null,null,null,null,0,null,null,0,0,0.86383759853147601,0,null,0,null,0,0]
[2023,"CAISO_New_Li_Battery_4","CAISO","CAISO","Li_Battery",0,0,0,0,null,null,null,null,null,null,0,null,null,0,0,0.86383759853147601,0,null,0,null,0,0]
[2023,"CAISO_New_Li_Battery_5","CAISO","CAISO","Li_Battery",0,0,0,0,null,null,null,null,null,null,null,null,null,0,0,0.86383759853147601,0,null,0,null,0,0]
[2023,"CAISO_New_Li_Battery_6","CAISO","CAISO","Li_Battery",0,0,0,0,null,null,null,null,null,null,null,null,null,0,0,0.86383759853147601,0,null,0,null,0,0]
[2023,"CAISO_Hydro","CAISO","CAISO","Hydro",7070.1,null,null,7070.1,null,null,null,null,null,null,null,null,null,null,0,0.86383759853147601,7070.1,null,null,null,null,5979.64]
[2023,"NW_Hydro","NW","NW","Hydro",31478.05,null,null,31478.05,null,null,null,null,null,null,null,null,null,null,0,0.86383759853147601,31478.05]
[2023,"SW_Hydro","SW","SW","Hydro",2680.31,null,null,2680.31,null,null,null,null,null,null,null,null,null,null,0,0.86383759853147601,2680.31]
[2023,"LDWP_Hydro","LDWP","LDWP","Hydro",233.7,null,null,233.7,null,null,null,null,null,null,null,null,null,null,0,0.86383759853147601,233.7]
[2023,"BANC_Hydro","BANC","BANC","Hydro",2724.06,null,null,2724.06,null,null,null,null,null,null,null,null,null,null,0,0.86383759853147601,2724.06]
[2023,"IID_Hydro","IID","IID","Hydro",83.5,null,null,83.5,null,null,null,null,null,null,null,null,null,null,0,0.86383759853147601,83.5]
[2023,"NW_Hydro_for_CAISO","CAISO_NW_Hydro","CAISO_NW_Hydro","Hydro_NW_CAISO",2851.77,null,null,2851.77,null,null,null,null,null,null,null,null,null,null,0,0.86383759853147601,2851.77]
[2023,"Hydrogen_electrolysis","CAISO","CAISO","Hydrogen_Electrolysis",null,null,null,null,null,null,null,null,null,0,null,null,null,null,0,0.86383759853147601,0]
[2023,"CAISO_Shed_DR_Existing","CAISO","CAISO","CAISO_Conventional_DR",0,null,null,0,null,null,null,null,null,null,null,1,0,null,0,0.86383759853147601,0,null,null,null,null,0]
[2023,"CAISO_Shed_DR_Tranche1","CAISO","CAISO","CAISO_Conventional_DR",0,0,0,0,null,null,null,null,null,null,0,1,0,0,0,0.86383759853147601,0,null,0,null,0,0]
[2023,"CAISO_Shed_DR_Tranche2","CAISO","CAISO","CAISO_Conventional_DR",0,0,0,0,null,null,null,null,null,null,0,1,0,0,0,0.86383759853147601,0,null,0,null,0,0]
[2023,"CAISO_Shed_DR_Tranche3","CAISO","CAISO","CAISO_Conventional_DR",0,0,0,0,null,null,null,null,null,null,0,1,0,0,0,0.86383759853147601,0,null,0,null,0,0]
[2023,"CAISO_Shed_DR_Tranche4","CAISO","CAISO","CAISO_Conventional_DR",0,0,0,0,null,null,null,null,null,null,0,1,0,0,0,0.86383759853147601,0,null,0,null,0,0]
[2023,"CAISO_Shed_DR_Tranche5","CAISO","CAISO","CAISO_Conventional_DR",0,0,0,0,null,null,null,null,null,null,0,1,0,0,0,0.86383759853147601,0,null,0,null,0,0]
[2023,"CAISO_Shed_DR_Tranche6","CAISO","CAISO","CAISO_Conventional_DR",0,0,0,0,null,null,null,null,null,null,0,1,0,0,0,0.86383759853147601,0,null,0,null,0,0]
[2023,"CAISO_Shed_DR_Tranche7","CAISO","CAISO","CAISO_Conventional_DR",0,0,0,0,null,null,null,null,null,null,0,1,0,0,0,0.86383759853147601,0,null,0,null,0,0]
[2023,"CAISO_Shed_DR_Tranche8","CAISO","CAISO","CAISO_Conventional_DR",0,0,0,0,null,null,null,null,null,null,0,1,0,0,0,0.86383759853147601,0,null,0,null,0,0]
[2024,"CAISO_CHP","CAISO","CAISO","CAISO_CHP",2296.02,null,null,2296.02,null,null,null,null,null,null,null,null,null,null,0,1.2144655580261099,2296.02,null,null,null,null,1455.68]
[2024,"CAISO_Nuclear","CAISO","CAISO","CAISO_Nuclear",1785,null,null,1785,null,null,null,null,null,null,null,null,null,null,0,1.2144655580261099,1785,null,null,null,null,1772.78]
[2024,"CAISO_CCGT1","CAISO","CAISO","CAISO_CCGT1",13333.47,null,null,13333.47,null,null,null,null,null,null,null,532.4,25.04,null,148200393.30000001,1.2144655580261099,13333.47,0,null,null,null,12526.38]
[2024,"CAISO_CCGT2","CAISO","CAISO","CAISO_CCGT2",2927.93,null,null,2927.93,null,null,null,null,null,null,null,187.53,15.61,null,32543694.739999998,1.2144655580261099,2927.93,0,null,null,null,2927.58]
[2024,"CAISO_Coal","CAISO","CAISO","CAISO_Coal",480,null,null,480,null,null,null,null,null,null,null,849.97,0.56000000000000005,null,0,1.2144655580261099,480,null,null,null,null,470.43]
[2024,"CAISO_Peaker1","CAISO","CAISO","CAISO_Peaker1",4913.93,null,null,4913.93,null,null,null,null,null,null,null,67.59,72.7,null,67294545.829999998,1.2144655580261099,4913.93,0,null,null,null,4539.17]
[2024,"CAISO_Peaker2","CAISO","CAISO","CAISO_Peaker2",3682.71,null,null,3682.71,null,null,null,null,null,null,null,53,69.48,null,50433420.270000003,1.2144655580261099,3682.71,0,null,null,null,3540.17]
[2024,"CAISO_Advanced_CCGT","CAISO","CAISO","CAISO_Advanced_CCGT",0,0,0,0,null,null,null,null,null,null,-256098.49,600,0,0,0,1.2144655580261099,0,0,0,0,0,0]
[2024,"CAISO_Aero_CT","CAISO","CAISO","CAISO_Aero_CT",0,0,0,0,null,null,null,null,null,null,-230320.29,100,0,0,0,1.2144655580261099,0,0,0,0,0,0]
[2024,"CAISO_Reciprocating_Engine","CAISO","CAISO","CAISO_Reciprocating_Engine",255.3,0,0,255.3,null,null,null,null,null,null,0,10.36,24.65,132.41999999999999,3496257.55,1.2144655580261099,255.3,0,0,0,0,254.7]
[2024,"CAISO_ST","CAISO","CAISO","CAISO_ST",0,null,null,0,null,null,null,null,null,null,null,341.83,0,null,0,1.2144655580261099,0,null,null,null,null,0]
[2024,"NW_Nuclear","NW","NW","NW_Nuclear",1170,null,null,1170,null,null,null,null,null,null,null,null,null,null,0,1.2144655580261099,1170]
[2024,"NW_Coal","NW","NW","NW_Coal",8795.7999999999993,null,null,8795.7999999999993,null,null,null,null,null,null,null,367.75,23.92,null,0,1.2144655580261099,8795.7999999999993]
[2024,"NW_CCGT","NW","NW","NW_CCGT",9573.43,null,null,9573.43,null,null,null,null,null,null,null,341.91,28,null,0,1.2144655580261099,9573.43]
[2024,"NW_Peaker","NW","NW","NW_Peaker",2993.17,null,null,2993.17,null,null,null,null,null,null,null,29.06,103,null,0,1.2144655580261099,2993.17]
[2024,"SW_Nuclear","SW","SW","SW_Nuclear",2998,null,null,2998,null,null,null,null,null,null,null,null,null,null,0,1.2144655580261099,2998]
[2024,"SW_Coal","SW","SW","SW_Coal",7167.6,null,null,7167.6,null,null,null,null,null,null,null,409.46,17.5,null,0,1.2144655580261099,7167.6]
[2024,"SW_CCGT","SW","SW","SW_CCGT",17108.099999999999,null,null,17108.099999999999,null,null,null,null,null,null,null,344.28,49.69,null,0,1.2144655580261099,17108.099999999999]
[2024,"SW_Peaker","SW","SW","SW_Peaker",6808.12,null,null,6808.12,null,null,null,null,null,null,null,47.78,142.47999999999999,null,0,1.2144655580261099,6808.12]
[2024,"SW_ST","SW","SW","SW_ST",1415.5,null,null,1415.5,null,null,null,null,null,null,null,92.71,15.27,null,0,1.2144655580261099,1415.5]
[2024,"LDWP_Nuclear","LDWP","LDWP","LDWP_Nuclear",407,null,null,407,null,null,null,null,null,null,null,null,null,null,0,1.2144655580261099,407]
[2024,"LDWP_Coal","LDWP","LDWP","LDWP_Coal",1699.94,null,null,1699.94,null,null,null,null,null,null,null,849.97,2,null,0,1.2144655580261099,1699.94]
[2024,"LDWP_CCGT","LDWP","LDWP","LDWP_CCGT",2291.6999999999998,null,null,2291.6999999999998,null,null,null,null,null,null,null,385.96,5.94,null,0,1.2144655580261099,2291.6999999999998]
[2024,"LDWP_Peaker","LDWP","LDWP","LDWP_Peaker",1545,null,null,1545,null,null,null,null,null,null,null,82.35,18.760000000000002,null,0,1.2144655580261099,1545]
[2024,"LDWP_ST","LDWP","LDWP","LDWP_ST",548,null,null,548,null,null,null,null,null,null,null,110.22,4.97,null,0,1.2144655580261099,548]
[2024,"IID_CCGT","IID","IID","IID_CCGT",255.3,null,null,255.3,null,null,null,null,null,null,null,127.65,2,null,0,1.2144655580261099,255.3]
[2024,"IID_Peaker","IID","IID","IID_Peaker",327,null,null,327,null,null,null,null,null,null,null,36.090000000000003,9.06,null,0,1.2144655580261099,327]
[2024,"BANC_CCGT","BANC","BANC","BANC_CCGT",1863.1,null,null,1863.1,null,null,null,null,null,null,null,207.01,9,null,0,1.2144655580261099,1863.1]
[2024,"BANC_Peaker","BANC","BANC","BANC_Peaker",866.99,null,null,866.99,null,null,null,null,null,null,null,34.68,25,null,0,1.2144655580261099,866.99]
[2024,"BANC_Biomass_for_Other","BANC","BANC","Biomass",17.5,null,null,17.5,null,null,null,null,null,null,null,null,null,null,0,1.2144655580261099,17.5]
[2024,"BANC_Geothermal_for_Other","BANC","BANC","Geothermal",0,null,null,0,null,null,null,null,null,null,null,null,null,null,0,1.2144655580261099,0]
[2024,"CAISO_Biomass_for_Other","CAISO","CAISO","Biomass",11.7,null,null,11.7,null,null,null,null,null,null,null,null,null,null,0,1.2144655580261099,11.7,null,null,null,null,8.17]
[2024,"CAISO_Geothermal_for_Other","CAISO","CAISO","Geothermal",38.67,null,null,38.67,null,null,null,null,null,null,null,null,null,null,0,1.2144655580261099,38.67,null,null,null,null,23.82]
[2024,"IID_Biomass_for_Other","IID","IID","Biomass",77,null,null,77,null,null,null,null,null,null,null,null,null,null,0,1.2144655580261099,77]
[2024,"IID_Geothermal_for_Other","IID","IID","Geothermal",709.46,null,null,709.46,null,null,null,null,null,null,null,null,null,null,0,1.2144655580261099,709.46]
[2024,"LDWP_Biomass_for_Other","LDWP","LDWP","Biomass",0,null,null,0,null,null,null,null,null,null,null,null,null,null,0,1.2144655580261099,0]
[2024,"LDWP_Geothermal_for_Other","LDWP","LDWP","Geothermal",0,null,null,0,null,null,null,null,null,null,null,null,null,null,0,1.2144655580261099,0]
[2024,"NW_Biomass_for_Other","NW","NW","Biomass",584.1,null,null,584.1,null,null,null,null,null,null,null,null,null,null,0,1.2144655580261099,584.1]
[2024,"NW_Geothermal_for_Other","NW","NW","Geothermal",142.09,null,null,142.09,null,null,null,null,null,null,null,null,null,null,0,1.2144655580261099,142.09]
[2024,"SW_Biomass_for_Other","SW","SW","Biomass",113.33,null,null,113.33,null,null,null,null,null,null,null,null,null,null,0,1.2144655580261099,113.33]
[2024,"SW_Geothermal_for_Other","SW","SW","Geothermal",701.85,null,null,701.85,null,null,null,null,null,null,null,null,null,null,0,1.2144655580261099,701.85]
[2024,"CAISO_Biomass_for_CAISO","CAISO","CAISO","Biomass",890.95,null,null,890.95,null,null,null,null,null,null,null,null,null,null,0,1.2144655580261099,890.95,null,null,null,null,621.88]
[2024,"CAISO_Geothermal_for_CAISO","CAISO","CAISO","Geothermal",1812.64,null,null,1812.64,null,null,null,null,null,null,null,null,null,null,0,1.2144655580261099,1812.64,null,null,null,null,1116.5899999999999]
[2024,"IID_Geothermal_for_CAISO","IID","CAISO","Geothermal",83,null,null,83,null,null,null,null,null,null,null,null,null,null,0,1.2144655580261099,83]
[2024,"NW_Biomass_for_CAISO","NW","CAISO","Biomass",46,null,null,46,null,null,null,null,null,null,null,null,null,null,0,1.2144655580261099,46]
[2024,"NW_Geothermal_for_CAISO","NW","CAISO","Geothermal",0,null,null,0,null,null,null,null,null,null,null,null,null,null,0,1.2144655580261099,0]
[2024,"InState_Biomass","CAISO","CAISO","Biomass",0,0,0,0,"None",0,0,null,null,null,0,null,null,0,0,1.2144655580261099,0,null,0,null,0,0]
[2024,"CAISO_Small_Hydro_for_CAISO","CAISO","CAISO","Small_Hydro",960.23,null,null,960.23,null,null,null,null,null,null,null,null,null,null,0,1.2144655580261099,960.23,null,null,null,null,480.11]
[2024,"BANC_Small_Hydro_for_CAISO","BANC","CAISO","Small_Hydro",0,null,null,0,null,null,null,null,null,null,null,null,null,null,0,1.2144655580261099,0]
[2024,"NW_Small_Hydro_for_CAISO","NW","CAISO","Small_Hydro",6.9,null,null,6.9,null,null,null,null,null,null,null,null,null,null,0,1.2144655580261099,6.9]
[2024,"CAISO_Small_Hydro_for_Other","CAISO","CAISO","Small_Hydro",13.8,null,null,13.8,null,null,null,null,null,null,null,null,null,null,0,1.2144655580261099,13.8,null,null,null,null,6.9]
[2024,"BANC_Small_Hydro_for_Other","BANC","BANC","Small_Hydro",41.2,null,null,41.2,null,null,null,null,null,null,null,null,null,null,0,1.2144655580261099,41.2]
[2024,"IID_Small_Hydro_for_Other","IID","IID","Small_Hydro",0,null,null,0,null,null,null,null,null,null,null,null,null,null,0,1.2144655580261099,0]
[2024,"LDWP_Small_Hydro_for_Other","LDWP","LDWP","Small_Hydro",56,null,null,56,null,null,null,null,null,null,null,null,null,null,0,1.2144655580261099,56]
[2024,"NW_Small_Hydro_for_Other","NW","NW","Small_Hydro",41,null,null,41,null,null,null,null,null,null,null,null,null,null,0,1.2144655580261099,41]
[2024,"SW_Small_Hydro_for_Other","SW","SW","Small_Hydro",0,null,null,0,null,null,null,null,null,null,null,null,null,null,0,1.2144655580261099,0]
[2024,"Greater_Imperial_Geothermal","CAISO","CAISO","Geothermal",0,0,0,0,"SCADSNV-Greater_Imperial",0,0,null,null,null,0,null,null,0,0,1.2144655580261099,0,null,0,null,0,0]
[2024,"Inyokern_North_Kramer_Geothermal","CAISO","CAISO","Geothermal",0,0,0,0,"Inyokern_North_Kramer-Greater_Kramer",0,0,null,null,null,0,null,null,0,0,1.2144655580261099,0,null,0,null,0,0]
[2024,"Northern_California_Ex_Geothermal","CAISO","CAISO","Geothermal",0,0,0,0,"Northern_California_Ex",0,0,null,null,null,0,null,null,0,0,1.2144655580261099,0,null,0,null,0,0]
[2024,"Pacific_Northwest_Geothermal","CAISO","CAISO","Geothermal",0,null,null,0,null,null,null,null,null,null,null,null,null,null,0,1.2144655580261099,0,null,null,null,null,0]
[2024,"Riverside_Palm_Springs_Geothermal","CAISO","CAISO","Geothermal",0,0,0,0,"SCADSNV-Riverside_Palm_Springs",0,0,null,null,null,0,null,null,0,0,1.2144655580261099,0,null,0,null,0,0]
[2024,"Solano_Geothermal","CAISO","CAISO","Geothermal",0,135,135,135,"Solano-Sacramento_River",135,0,null,null,null,0,null,null,66931904.969999999,20080223.149999999,1.2144655580261099,0,null,135,null,0,121.5]
[2024,"Southern_Nevada_Geothermal","CAISO","CAISO","Geothermal",0,0,0,0,"SCADSNV-Mountain_Pass_El_Dorado",0,0,null,null,null,0,null,null,0,0,1.2144655580261099,0,null,0,null,0,0]
[2024,"Customer_PV","CAISO","CAISO","Customer_PV",7269.29,null,null,7269.29,null,null,null,null,null,null,null,null,null,null,0,1.2144655580261099,7269.29]
[2024,"BANC_Solar_for_Other","BANC","BANC","Solar",2788.12,null,null,2788.12,null,null,null,null,null,null,null,null,null,null,0,1.2144655580261099,2788.12]
[2024,"CAISO_Solar_for_Other","CAISO","CAISO","Solar",12,null,null,12,null,null,null,null,null,null,null,null,null,null,0,1.2144655580261099,12]
[2024,"IID_Solar_for_Other","IID","IID","Solar",138.69999999999999,null,null,138.69999999999999,null,null,null,null,null,null,null,null,null,null,0,1.2144655580261099,138.69999999999999]
[2024,"LDWP_Solar_for_Other","LDWP","LDWP","Solar",3320.05,null,null,3320.05,null,null,null,null,null,null,null,null,null,null,0,1.2144655580261099,3320.05]
[2024,"NW_Solar_for_Other","NW","NW","Solar",2665.84,null,null,2665.84,null,null,null,null,null,null,null,null,null,null,0,1.2144655580261099,2665.84]
[2024,"SW_Solar_for_Other","SW","SW","Solar",1671.64,null,null,1671.64,null,null,null,null,null,null,null,null,null,null,0,1.2144655580261099,1671.64]
[2024,"CAISO_Solar_for_CAISO","CAISO","CAISO","Solar",14875.45,null,null,14875.45,null,null,null,null,null,null,null,null,null,null,0,1.2144655580261099,14875.45]
[2024,"IID_Solar_for_CAISO","IID","CAISO","Solar",49.9,null,null,49.9,null,null,null,null,null,null,null,null,null,null,0,1.2144655580261099,49.9]
[2024,"SW_Solar_for_CAISO","SW","CAISO","Solar",65,null,null,65,null,null,null,null,null,null,null,null,null,null,0,1.2144655580261099,65]
[2024,"BANC_Wind_for_Other","BANC","BANC","Wind",0,null,null,0,null,null,null,null,null,null,null,null,null,null,0,1.2144655580261099,0]
[2024,"CAISO_Wind_for_Other","CAISO","CAISO","Wind",279.98,null,null,279.98,null,null,null,null,null,null,null,null,null,null,0,1.2144655580261099,279.98]
[2024,"IID_Wind_for_Other","IID","IID","Wind",0,null,null,0,null,null,null,null,null,null,null,null,null,null,0,1.2144655580261099,0]
[2024,"LDWP_Wind_for_Other","LDWP","LDWP","Wind",418.41,null,null,418.41,null,null,null,null,null,null,null,null,null,null,0,1.2144655580261099,418.41]
[2024,"NW_Wind_for_Other","NW","NW","Wind",11057.09,null,null,11057.09,null,null,null,null,null,null,null,null,null,null,0,1.2144655580261099,11057.09]
[2024,"SW_Wind_for_Other","SW","SW","Wind",2285.6999999999998,null,null,2285.6999999999998,null,null,null,null,null,null,null,null,null,null,0,1.2144655580261099,2285.6999999999998]
[2024,"CAISO_Wind_for_CAISO","CAISO","CAISO","Wind",7176.33,null,null,7176.33,null,null,null,null,null,null,null,null,null,null,0,1.2144655580261099,7176.33]
[2024,"LDWP_Wind_for_CAISO","LDWP","CAISO","Wind",5.09,null,null,5.09,null,null,null,null,null,null,null,null,null,null,0,1.2144655580261099,5.09]
[2024,"NW_Wind_for_CAISO","NW","CAISO","Wind",1417.29,null,null,1417.29,null,null,null,null,null,null,null,null,null,null,0,1.2144655580261099,1417.29]
[2024,"SW_Wind_for_CAISO","SW","CAISO","Wind",50.4,null,null,50.4,null,null,null,null,null,null,null,null,null,null,0,1.2144655580261099,50.4]
[2024,"Carrizo_Solar","CAISO","CAISO","Solar",0,0,0,0,"Kern_Greater_Carrizo-SPGE-Carrizo",0,0,null,null,null,0,null,null,0,0,1.2144655580261099,0,null,0,null,0]
[2024,"Carrizo_Wind","CAISO","CAISO","Wind",0,0,287,287,"Kern_Greater_Carrizo-SPGE-Carrizo",287,0,null,null,null,0,null,null,32233705.789999999,11918394.439999999,1.2144655580261099,0,null,287,null,0]
[2024,"Central_Valley_North_Los_Banos_Solar","CAISO","CAISO","Solar",0,0,0,0,"Central_Valley_North_Los_Banos-SPGE",0,0,null,null,null,0,null,null,0,0,1.2144655580261099,0,null,0,null,0]
[2024,"Central_Valley_North_Los_Banos_Wind","CAISO","CAISO","Wind",0,0,173,173,"Central_Valley_North_Los_Banos-SPGE",173,0,null,null,null,0,null,null,16593876.300000001,7240578.1900000004,1.2144655580261099,0,null,173,null,0]
[2024,"Distributed_Solar","CAISO","CAISO","Solar",0,0,0,0,"None",0,0,null,null,null,0,null,null,0,0,1.2144655580261099,0,null,0,null,0]
[2024,"Mountain_Pass_El_Dorado_Solar","CAISO","CAISO","Solar",0,181.52,248,248,null,248,0,null,null,null,0,null,null,17374223.690000001,2508208.2799999998,1.2144655580261099,0,null,248,null,0]
[2024,"Greater_Imperial_Solar","CAISO","CAISO","Solar",0,0,0,0,"SCADSNV-Greater_Imperial",0,0,null,null,null,0,null,null,0,0,1.2144655580261099,0,null,0,null,0]
[2024,"Greater_Imperial_Wind","CAISO","CAISO","Wind",0,0,0,0,"SCADSNV-Greater_Imperial",0,0,null,null,null,-70486.59,null,null,0,0,1.2144655580261099,0,null,0,null,0]
[2024,"Greater_Kramer_Wind","CAISO","CAISO","Wind",0,0,0,0,"Greater_Kramer",0,0,null,null,null,-53522.47,null,null,0,0,1.2144655580261099,0,null,0,null,0]
[2024,"Humboldt_Wind","CAISO","CAISO","Wind",0,0,34,34,"Sacramento_River-Humboldt",0,34,null,null,null,0,null,null,3118138.06,1432688.81,1.2144655580261099,0,null,34,null,0]
[2024,"Inyokern_North_Kramer_Solar","CAISO","CAISO","Solar",0,0,73,73,"Inyokern_North_Kramer-Greater_Kramer",73,0,null,null,null,0,null,null,4574365.26,756500.06,1.2144655580261099,0,null,73,null,0]
[2024,"Kern_Greater_Carrizo_Solar","CAISO","CAISO","Solar",0,0,114.26,114.26,"Kern_Greater_Carrizo-SPGE",114.26,0,null,null,null,0,null,null,6794087.3399999999,1164975.56,1.2144655580261099,0,null,114.26,null,0]
[2024,"Kern_Greater_Carrizo_Wind","CAISO","CAISO","Wind",0,0,60,60,"Kern_Greater_Carrizo-SPGE",60,0,null,null,null,0,null,null,5920164.4000000004,2511183.19,1.2144655580261099,0,null,60,null,0]
[2024,"Kramer_Inyokern_Ex_Solar","CAISO","CAISO","Solar",0,0,0,0,"Kramer_Inyokern_Ex",0,0,null,null,null,0,null,null,0,0,1.2144655580261099,0,null,0,null,0]
[2024,"Kramer_Inyokern_Ex_Wind","CAISO","CAISO","Wind",0,0,0,0,"Kramer_Inyokern_Ex",0,0,null,null,null,0,null,null,0,0,1.2144655580261099,0,null,0,null,0]
[2024,"North_Victor_Solar","CAISO","CAISO","Solar",0,0,300,300,"North_Victor-Greater_Kramer",300,0,null,null,null,0,null,null,18391473,3092690.85,1.2144655580261099,0,null,300,null,0]
[2024,"Northern_California_Ex_Solar","CAISO","CAISO","Solar",0,0,0,0,"Northern_California_Ex",0,0,null,null,null,0,null,null,0,0,1.2144655580261099,0,null,0,null,0]
[2024,"Northern_California_Ex_Wind","CAISO","CAISO","Wind",0,0,865.9,865.9,"Sacramento_River",865.9,0,null,null,null,0,null,null,89470506.049999997,36240558.710000001,1.2144655580261099,0,null,865.9,null,0]
[2024,"NW_Ext_Tx_Wind","CAISO","CAISO","Wind",0,0,617.9,617.9,"Sacramento_River",617.9,0,null,null,null,0,null,null,87244850.359999999,25892481.120000001,1.2144655580261099,0,null,617.9,null,0]
[2024,"Riverside_Palm_Springs_Solar","CAISO","CAISO","Solar",0,0,0,0,"SCADSNV-Riverside_Palm_Springs",0,0,null,null,null,0,null,null,0,0,1.2144655580261099,0,null,0,null,0]
[2024,"Sacramento_River_Solar","CAISO","CAISO","Solar",0,0,0,0,"Sacramento_River",0,0,null,null,null,0,null,null,0,0,1.2144655580261099,0,null,0,null,0]
[2024,"Sacramento_River_Wind","CAISO","CAISO","Wind",0,null,null,0,null,null,null,null,null,null,null,null,null,null,0,1.2144655580261099,0]
[2024,"SCADSNV_Solar","CAISO","CAISO","Solar",0,0,0,0,"SCADSNV",0,0,null,null,null,0,null,null,0,0,1.2144655580261099,0,null,0,null,0]
[2024,"SCADSNV_Wind","CAISO","CAISO","Wind",0,0,0,0,"SCADSNV",0,0,null,null,null,-35848.31,null,null,0,0,1.2144655580261099,0,null,0,null,0]
[2024,"Solano_Solar","CAISO","CAISO","Solar",0,0,0,0,"Solano-Sacramento_River",0,0,null,null,null,0,null,null,0,0,1.2144655580261099,0,null,0,null,0]
[2024,"Solano_subzone_Solar","CAISO","CAISO","Solar",0,0,0,0,"Solano-Solano_subzone-Sacramento_River",0,0,null,null,null,0,null,null,0,0,1.2144655580261099,0,null,0,null,0]
[2024,"Solano_subzone_Wind","CAISO","CAISO","Wind",0,0,0,0,"Solano-Solano_subzone-Sacramento_River",0,0,null,null,null,0,null,null,0,0,1.2144655580261099,0,null,0,null,0]
[2024,"Solano_Wind","CAISO","CAISO","Wind",0,0,464,464,"Solano-Sacramento_River",464,0,null,null,null,0,null,null,45345007.369999997,19419816.649999999,1.2144655580261099,0,null,464,null,0]
[2024,"Southern_California_Desert_Ex_Solar","CAISO","CAISO","Solar",0,0,862,862,"Southern_California_Desert_Ex",862,0,null,null,null,0,null,null,52844832.43,8886331.7200000007,1.2144655580261099,0,null,862,null,0]
[2024,"Southern_California_Desert_Ex_Wind","CAISO","CAISO","Wind",0,0,0,0,"Southern_California_Desert_Ex",0,0,null,null,null,0,null,null,0,0,1.2144655580261099,0,null,0,null,0]
[2024,"Southern_Nevada_Solar","CAISO","CAISO","Solar",0,0,0,0,"SCADSNV-GLW_VEA",0,0,null,null,null,0,null,null,0,0,1.2144655580261099,0,null,0,null,0]
[2024,"Southern_Nevada_Wind","CAISO","CAISO","Wind",0,0,442.03,442.03,"SCADSNV-GLW_VEA",442.03,0,null,null,null,0,null,null,45026111.390000001,18139039.100000001,1.2144655580261099,0,null,442.03,null,0]
[2024,"SW_Ext_Tx_Wind","CAISO","CAISO","Wind",0,0,0,0,"SCADSNV-Riverside_Palm_Springs",0,0,null,null,null,0,null,null,0,0,1.2144655580261099,0,null,0,null,0]
[2024,"Tehachapi_Ex_Solar","CAISO","CAISO","Solar",0,0,0,0,"Tehachapi_Ex",0,0,null,null,null,0,null,null,0,0,1.2144655580261099,0,null,0,null,0]
[2024,"Tehachapi_Solar","CAISO","CAISO","Solar",0,0,4202,4202,"Tehachapi",3402,800,null,null,null,0,null,null,270640882.44,44806193.890000001,1.2144655580261099,0,null,4202,null,0]
[2024,"Tehachapi_Wind","CAISO","CAISO","Wind",0,0,275,275,"Tehachapi",275,0,null,null,null,0,null,null,25284252.02,11669739.4,1.2144655580261099,0,null,275,null,0]
[2024,"Westlands_Ex_Solar","CAISO","CAISO","Solar",0,0,1778.57,1778.57,"Westlands_Ex",1778.57,0,null,null,null,0,null,null,105761198.36,18134769.93,1.2144655580261099,0,null,1778.57,null,0]
[2024,"Westlands_Ex_Wind","CAISO","CAISO","Wind",0,null,null,0,null,null,null,null,null,null,null,null,null,null,0,1.2144655580261099,0]
[2024,"Westlands_Solar","CAISO","CAISO","Solar",0,0,40.69,40.69,"Central_Valley_North_Los_Banos-SPGE",40.69,0,null,null,null,0,null,null,2419514.31,414871.77,1.2144655580261099,0,null,40.69,null,0]
[2024,"Arizona_Solar","CAISO","CAISO","Solar",0,2550,3113,3113,"SCADSNV-Riverside_Palm_Springs",563,2550,null,null,null,0,null,null,220004751.13,30995500.07,1.2144655580261099,0,null,3113,null,0]
[2024,"Arizona_Wind","CAISO","CAISO","Wind",0,null,null,0,null,null,null,null,null,null,null,null,null,null,0,1.2144655580261099,0]
[2024,"Baja_California_Solar","CAISO","CAISO","Solar",0,null,null,0,null,null,null,null,null,null,null,null,null,null,0,1.2144655580261099,0]
[2024,"Baja_California_Wind","CAISO","CAISO","Wind",0,92.17,92.17,92.17,"SCADSNV-Greater_Imperial",92.17,0,null,null,null,0,null,null,10400165.43,3780997.08,1.2144655580261099,0,null,92.17,null,0]
[2024,"Idaho_Wind","CAISO","CAISO","Wind",0,null,null,0,null,null,null,null,null,null,null,null,null,null,0,1.2144655580261099,0]
[2024,"New_Mexico_Solar","CAISO","CAISO","Solar",0,null,null,0,null,null,null,null,null,null,null,null,null,null,0,1.2144655580261099,0]
[2024,"New_Mexico_Wind","CAISO","CAISO","Wind",0,0,0,0,"SCADSNV-Riverside_Palm_Springs",0,0,null,null,null,0,null,null,0,0,1.2144655580261099,0,null,0,null,0]
[2024,"Utah_Solar","CAISO","CAISO","Solar",0,null,null,0,null,null,null,null,null,null,null,null,null,null,0,1.2144655580261099,0]
[2024,"Utah_Wind","CAISO","CAISO","Wind",0,null,null,0,null,null,null,null,null,null,null,null,null,null,0,1.2144655580261099,0]
[2024,"Wyoming_Wind","CAISO","CAISO","Wind",0,0,0,0,"SCADSNV-Mountain_Pass_El_Dorado",0,0,null,null,null,0,null,null,0,0,1.2144655580261099,0,null,0,null,0]
[2024,"Pacific_Northwest_Wind","CAISO","CAISO","Wind",0,null,null,0,null,null,null,null,null,null,null,null,null,null,0,1.2144655580261099,0]
[2024,"Diablo_Canyon_Offshore_Wind","CAISO","CAISO","Offshore_Wind",0,null,null,0,null,null,null,null,null,null,null,null,null,null,0,1.2144655580261099,0]
[2024,"Humboldt_Bay_Offshore_Wind","CAISO","CAISO","Offshore_Wind",0,null,null,0,null,null,null,null,null,null,null,null,null,null,0,1.2144655580261099,0]
[2024,"Morro_Bay_Offshore_Wind","CAISO","CAISO","Offshore_Wind",0,null,null,0,null,null,null,null,null,null,null,null,null,null,0,1.2144655580261099,0]
[2024,"Diablo_Canyon_Offshore_Wind_Ext_Tx","CAISO","CAISO","Offshore_Wind",0,null,null,0,null,null,null,null,null,null,null,null,null,null,0,1.2144655580261099,0]
[2024,"Cape_Mendocino_Offshore_Wind","CAISO","CAISO","Offshore_Wind",0,null,null,0,null,null,null,null,null,null,null,null,null,null,0,1.2144655580261099,0]
[2024,"Del_Norte_Offshore_Wind","CAISO","CAISO","Offshore_Wind",0,null,null,0,null,null,null,null,null,null,null,null,null,null,0,1.2144655580261099,0]
[2024,"CAISO_Existing_Pumped_Storage","CAISO","CAISO","Pumped_Hydro",1599.2,null,null,1599.2,null,null,null,null,null,null,null,null,null,null,0,1.2144655580261099,1599.2,null,null,null,null,1599.2]
[2024,"CAISO_New_Pumped_Storage","CAISO","CAISO","Pumped_Hydro",0,0,0,0,null,null,null,null,null,null,-1124853.26,null,null,0,0,1.2144655580261099,0,null,0,null,0,0]
[2024,"CAISO_New_Flow_Battery","CAISO","CAISO","Flow_Battery",0,0,0,0,null,null,null,null,null,null,0,null,null,0,0,1.2144655580261099,0,null,0,null,0,0]
[2024,"CAISO_New_Flow_Battery_2","CAISO","CAISO","Flow_Battery",0,0,0,0,null,null,null,null,null,null,0,null,null,0,0,1.2144655580261099,0,null,0,null,0,0]
[2024,"CAISO_New_Flow_Battery_3","CAISO","CAISO","Flow_Battery",0,0,0,0,null,null,null,null,null,null,0,null,null,0,0,1.2144655580261099,0,null,0,null,0,0]
[2024,"CAISO_New_Flow_Battery_4","CAISO","CAISO","Flow_Battery",0,0,0,0,null,null,null,null,null,null,0,null,null,0,0,1.2144655580261099,0,null,0,null,0,0]
[2024,"CAISO_New_Flow_Battery_5","CAISO","CAISO","Flow_Battery",0,0,0,0,null,null,null,null,null,null,null,null,null,0,0,1.2144655580261099,0,null,0,null,0,0]
[2024,"CAISO_New_Li_Battery","CAISO","CAISO","Li_Battery",0,876.11,7312.12,7312.12,null,null,null,null,null,null,-94721.79,null,null,1074348439.5599999,94781419.879999995,1.2144655580261099,0,null,7312.12,null,1617.45,7312.12]
[2024,"CAISO_BTM_Li_Battery","CAISO","CAISO","BTM_Li_Battery",92.14,0,0,92.14,null,null,null,null,null,null,0,null,null,0,878656.68,1.2144655580261099,92.14,null,0,null,0,57.59]
[2024,"CAISO_New_Li_Battery_2","CAISO","CAISO","Li_Battery",0,916.13,916.13,916.13,null,null,null,null,null,null,0,null,null,111880876.01000001,11034039.43,1.2144655580261099,0,null,916.13,null,0,695.34]
[2024,"CAISO_New_Li_Battery_3","CAISO","CAISO","Li_Battery",0,0,0,0,null,null,null,null,null,null,0,null,null,0,0,1.2144655580261099,0,null,0,null,0,0]
[2024,"CAISO_New_Li_Battery_4","CAISO","CAISO","Li_Battery",0,0,0,0,null,null,null,null,null,null,0,null,null,0,0,1.2144655580261099,0,null,0,null,0,0]
[2024,"CAISO_New_Li_Battery_5","CAISO","CAISO","Li_Battery",0,0,0,0,null,null,null,null,null,null,null,null,null,0,0,1.2144655580261099,0,null,0,null,0,0]
[2024,"CAISO_New_Li_Battery_6","CAISO","CAISO","Li_Battery",0,0,0,0,null,null,null,null,null,null,null,null,null,0,0,1.2144655580261099,0,null,0,null,0,0]
[2024,"CAISO_Hydro","CAISO","CAISO","Hydro",7070.1,null,null,7070.1,null,null,null,null,null,null,null,null,null,null,0,1.2144655580261099,7070.1,null,null,null,null,5979.64]
[2024,"NW_Hydro","NW","NW","Hydro",31478.05,null,null,31478.05,null,null,null,null,null,null,null,null,null,null,0,1.2144655580261099,31478.05]
[2024,"SW_Hydro","SW","SW","Hydro",2680.31,null,null,2680.31,null,null,null,null,null,null,null,null,null,null,0,1.2144655580261099,2680.31]
[2024,"LDWP_Hydro","LDWP","LDWP","Hydro",233.7,null,null,233.7,null,null,null,null,null,null,null,null,null,null,0,1.2144655580261099,233.7]
[2024,"BANC_Hydro","BANC","BANC","Hydro",2724.06,null,null,2724.06,null,null,null,null,null,null,null,null,null,null,0,1.2144655580261099,2724.06]
[2024,"IID_Hydro","IID","IID","Hydro",83.5,null,null,83.5,null,null,null,null,null,null,null,null,null,null,0,1.2144655580261099,83.5]
[2024,"NW_Hydro_for_CAISO","CAISO_NW_Hydro","CAISO_NW_Hydro","Hydro_NW_CAISO",2851.77,null,null,2851.77,null,null,null,null,null,null,null,null,null,null,0,1.2144655580261099,2851.77]
[2024,"Hydrogen_electrolysis","CAISO","CAISO","Hydrogen_Electrolysis",null,null,null,null,null,null,null,null,null,0,null,null,null,null,0,1.2144655580261099,0]
[2024,"CAISO_Shed_DR_Existing","CAISO","CAISO","CAISO_Conventional_DR",0,null,null,0,null,null,null,null,null,null,null,1,0,null,0,1.2144655580261099,0,null,null,null,null,0]
[2024,"CAISO_Shed_DR_Tranche1","CAISO","CAISO","CAISO_Conventional_DR",0,0,0,0,null,null,null,null,null,null,-598448.43999999994,1,0,0,0,1.2144655580261099,0,null,0,null,0,0]
[2024,"CAISO_Shed_DR_Tranche2","CAISO","CAISO","CAISO_Conventional_DR",0,0,0,0,null,null,null,null,null,null,-555666.18999999994,1,0,0,0,1.2144655580261099,0,null,0,null,0,0]
[2024,"CAISO_Shed_DR_Tranche3","CAISO","CAISO","CAISO_Conventional_DR",0,0,0,0,null,null,null,null,null,null,-512883.93,1,0,0,0,1.2144655580261099,0,null,0,null,0,0]
[2024,"CAISO_Shed_DR_Tranche4","CAISO","CAISO","CAISO_Conventional_DR",0,0,0,0,null,null,null,null,null,null,-189658.04,1,0,0,0,1.2144655580261099,0,null,0,null,0,0]
[2024,"CAISO_Shed_DR_Tranche5","CAISO","CAISO","CAISO_Conventional_DR",0,0,0,0,null,null,null,null,null,null,0,1,0,0,0,1.2144655580261099,0,null,0,null,0,0]
[2024,"CAISO_Shed_DR_Tranche6","CAISO","CAISO","CAISO_Conventional_DR",0,0,0,0,null,null,null,null,null,null,0,1,0,0,0,1.2144655580261099,0,null,0,null,0,0]
[2024,"CAISO_Shed_DR_Tranche7","CAISO","CAISO","CAISO_Conventional_DR",0,0,0,0,null,null,null,null,null,null,0,1,0,0,0,1.2144655580261099,0,null,0,null,0,0]
[2024,"CAISO_Shed_DR_Tranche8","CAISO","CAISO","CAISO_Conventional_DR",0,0,0,0,null,null,null,null,null,null,0,1,0,0,0,1.2144655580261099,0,null,0,null,0,0]
[2026,"CAISO_CHP","CAISO","CAISO","CAISO_CHP",2296.02,null,null,2296.02,null,null,null,null,null,null,null,null,null,null,0,2.1705613875372398,2296.02,null,null,null,null,1455.68]
[2026,"CAISO_Nuclear","CAISO","CAISO","CAISO_Nuclear",635,null,null,635,null,null,null,null,null,null,null,null,null,null,0,2.1705613875372398,635,null,null,null,null,630.65]
[2026,"CAISO_CCGT1","CAISO","CAISO","CAISO_CCGT1",13333.47,null,null,13333.47,null,null,null,null,null,null,null,532.4,25.04,null,148200393.30000001,2.1705613875372398,13333.47,0,null,null,null,12526.38]
[2026,"CAISO_CCGT2","CAISO","CAISO","CAISO_CCGT2",2927.93,null,null,2927.93,null,null,null,null,null,null,null,187.53,15.61,null,32543694.739999998,2.1705613875372398,2927.93,0,null,null,null,2927.58]
[2026,"CAISO_Coal","CAISO","CAISO","CAISO_Coal",0,null,null,0,null,null,null,null,null,null,null,849.97,0,null,0,2.1705613875372398,0,null,null,null,null,0]
[2026,"CAISO_Peaker1","CAISO","CAISO","CAISO_Peaker1",4913.93,null,null,4913.93,null,null,null,null,null,null,null,67.59,72.7,null,67294545.829999998,2.1705613875372398,4913.93,0,null,null,null,4539.17]
[2026,"CAISO_Peaker2","CAISO","CAISO","CAISO_Peaker2",3682.71,null,null,3682.71,null,null,null,null,null,null,null,53,69.48,null,50433420.270000003,2.1705613875372398,3682.71,0,null,null,null,3540.17]
[2026,"CAISO_Advanced_CCGT","CAISO","CAISO","CAISO_Advanced_CCGT",0,0,0,0,null,null,null,null,null,null,0,600,0,0,0,2.1705613875372398,0,0,0,0,0,0]
[2026,"CAISO_Aero_CT","CAISO","CAISO","CAISO_Aero_CT",0,0,0,0,null,null,null,null,null,null,0,100,0,0,0,2.1705613875372398,0,0,0,0,0,0]
[2026,"CAISO_Reciprocating_Engine","CAISO","CAISO","CAISO_Reciprocating_Engine",255.3,0,0,255.3,null,null,null,null,null,null,0,10.36,24.65,132.41999999999999,3496257.55,2.1705613875372398,255.3,0,0,0,0,254.7]
[2026,"CAISO_ST","CAISO","CAISO","CAISO_ST",0,null,null,0,null,null,null,null,null,null,null,341.83,0,null,0,2.1705613875372398,0,null,null,null,null,0]
[2026,"NW_Nuclear","NW","NW","NW_Nuclear",1170,null,null,1170,null,null,null,null,null,null,null,null,null,null,0,2.1705613875372398,1170]
[2026,"NW_Coal","NW","NW","NW_Coal",8125.8,null,null,8125.8,null,null,null,null,null,null,null,367.75,22.1,null,0,2.1705613875372398,8125.8]
[2026,"NW_CCGT","NW","NW","NW_CCGT",9573.43,null,null,9573.43,null,null,null,null,null,null,null,341.91,28,null,0,2.1705613875372398,9573.43]
[2026,"NW_Peaker","NW","NW","NW_Peaker",2993.17,null,null,2993.17,null,null,null,null,null,null,null,29.06,103,null,0,2.1705613875372398,2993.17]
[2026,"SW_Nuclear","SW","SW","SW_Nuclear",2998,null,null,2998,null,null,null,null,null,null,null,null,null,null,0,2.1705613875372398,2998]
[2026,"SW_Coal","SW","SW","SW_Coal",6265.6,null,null,6265.6,null,null,null,null,null,null,null,409.46,15.3,null,0,2.1705613875372398,6265.6]
[2026,"SW_CCGT","SW","SW","SW_CCGT",19421.099999999999,null,null,19421.099999999999,null,null,null,null,null,null,null,344.28,56.41,null,0,2.1705613875372398,19421.099999999999]
[2026,"SW_Peaker","SW","SW","SW_Peaker",6808.12,null,null,6808.12,null,null,null,null,null,null,null,47.78,142.47999999999999,null,0,2.1705613875372398,6808.12]
[2026,"SW_ST","SW","SW","SW_ST",1318.5,null,null,1318.5,null,null,null,null,null,null,null,92.71,14.22,null,0,2.1705613875372398,1318.5]
[2026,"LDWP_Nuclear","LDWP","LDWP","LDWP_Nuclear",407,null,null,407,null,null,null,null,null,null,null,null,null,null,0,2.1705613875372398,407]
[2026,"LDWP_Coal","LDWP","LDWP","LDWP_Coal",0,null,null,0,null,null,null,null,null,null,null,849.97,0,null,0,2.1705613875372398,0]
[2026,"LDWP_CCGT","LDWP","LDWP","LDWP_CCGT",2985.7,null,null,2985.7,null,null,null,null,null,null,null,385.96,7.74,null,0,2.1705613875372398,2985.7]
[2026,"LDWP_Peaker","LDWP","LDWP","LDWP_Peaker",1647,null,null,1647,null,null,null,null,null,null,null,82.35,20,null,0,2.1705613875372398,1647]
[2026,"LDWP_ST","LDWP","LDWP","LDWP_ST",371,null,null,371,null,null,null,null,null,null,null,110.22,3.37,null,0,2.1705613875372398,371]
[2026,"IID_CCGT","IID","IID","IID_CCGT",255.3,null,null,255.3,null,null,null,null,null,null,null,127.65,2,null,0,2.1705613875372398,255.3]
[2026,"IID_Peaker","IID","IID","IID_Peaker",327,null,null,327,null,null,null,null,null,null,null,36.090000000000003,9.06,null,0,2.1705613875372398,327]
[2026,"BANC_CCGT","BANC","BANC","BANC_CCGT",1863.1,null,null,1863.1,null,null,null,null,null,null,null,207.01,9,null,0,2.1705613875372398,1863.1]
[2026,"BANC_Peaker","BANC","BANC","BANC_Peaker",866.99,null,null,866.99,null,null,null,null,null,null,null,34.68,25,null,0,2.1705613875372398,866.99]
[2026,"BANC_Biomass_for_Other","BANC","BANC","Biomass",17.5,null,null,17.5,null,null,null,null,null,null,null,null,null,null,0,2.1705613875372398,17.5]
[2026,"BANC_Geothermal_for_Other","BANC","BANC","Geothermal",0,null,null,0,null,null,null,null,null,null,null,null,null,null,0,2.1705613875372398,0]
[2026,"CAISO_Biomass_for_Other","CAISO","CAISO","Biomass",11.7,null,null,11.7,null,null,null,null,null,null,null,null,null,null,0,2.1705613875372398,11.7,null,null,null,null,8.17]
[2026,"CAISO_Geothermal_for_Other","CAISO","CAISO","Geothermal",38.67,null,null,38.67,null,null,null,null,null,null,null,null,null,null,0,2.1705613875372398,38.67,null,null,null,null,23.82]
[2026,"IID_Biomass_for_Other","IID","IID","Biomass",77,null,null,77,null,null,null,null,null,null,null,null,null,null,0,2.1705613875372398,77]
[2026,"IID_Geothermal_for_Other","IID","IID","Geothermal",709.46,null,null,709.46,null,null,null,null,null,null,null,null,null,null,0,2.1705613875372398,709.46]
[2026,"LDWP_Biomass_for_Other","LDWP","LDWP","Biomass",0,null,null,0,null,null,null,null,null,null,null,null,null,null,0,2.1705613875372398,0]
[2026,"LDWP_Geothermal_for_Other","LDWP","LDWP","Geothermal",0,null,null,0,null,null,null,null,null,null,null,null,null,null,0,2.1705613875372398,0]
[2026,"NW_Biomass_for_Other","NW","NW","Biomass",584.1,null,null,584.1,null,null,null,null,null,null,null,null,null,null,0,2.1705613875372398,584.1]
[2026,"NW_Geothermal_for_Other","NW","NW","Geothermal",142.09,null,null,142.09,null,null,null,null,null,null,null,null,null,null,0,2.1705613875372398,142.09]
[2026,"SW_Biomass_for_Other","SW","SW","Biomass",113.33,null,null,113.33,null,null,null,null,null,null,null,null,null,null,0,2.1705613875372398,113.33]
[2026,"SW_Geothermal_for_Other","SW","SW","Geothermal",701.85,null,null,701.85,null,null,null,null,null,null,null,null,null,null,0,2.1705613875372398,701.85]
[2026,"CAISO_Biomass_for_CAISO","CAISO","CAISO","Biomass",890.95,null,null,890.95,null,null,null,null,null,null,null,null,null,null,0,2.1705613875372398,890.95,null,null,null,null,621.88]
[2026,"CAISO_Geothermal_for_CAISO","CAISO","CAISO","Geothermal",1812.64,null,null,1812.64,null,null,null,null,null,null,null,null,null,null,0,2.1705613875372398,1812.64,null,null,null,null,1116.5899999999999]
[2026,"IID_Geothermal_for_CAISO","IID","CAISO","Geothermal",83,null,null,83,null,null,null,null,null,null,null,null,null,null,0,2.1705613875372398,83]
[2026,"NW_Biomass_for_CAISO","NW","CAISO","Biomass",46,null,null,46,null,null,null,null,null,null,null,null,null,null,0,2.1705613875372398,46]
[2026,"NW_Geothermal_for_CAISO","NW","CAISO","Geothermal",0,null,null,0,null,null,null,null,null,null,null,null,null,null,0,2.1705613875372398,0]
[2026,"InState_Biomass","CAISO","CAISO","Biomass",0,0,0,0,"None",0,0,null,null,null,0,null,null,0,0,2.1705613875372398,0,null,0,null,0,0]
[2026,"CAISO_Small_Hydro_for_CAISO","CAISO","CAISO","Small_Hydro",960.23,null,null,960.23,null,null,null,null,null,null,null,null,null,null,0,2.1705613875372398,960.23,null,null,null,null,480.11]
[2026,"BANC_Small_Hydro_for_CAISO","BANC","CAISO","Small_Hydro",0,null,null,0,null,null,null,null,null,null,null,null,null,null,0,2.1705613875372398,0]
[2026,"NW_Small_Hydro_for_CAISO","NW","CAISO","Small_Hydro",6.9,null,null,6.9,null,null,null,null,null,null,null,null,null,null,0,2.1705613875372398,6.9]
[2026,"CAISO_Small_Hydro_for_Other","CAISO","CAISO","Small_Hydro",13.8,null,null,13.8,null,null,null,null,null,null,null,null,null,null,0,2.1705613875372398,13.8,null,null,null,null,6.9]
[2026,"BANC_Small_Hydro_for_Other","BANC","BANC","Small_Hydro",41.2,null,null,41.2,null,null,null,null,null,null,null,null,null,null,0,2.1705613875372398,41.2]
[2026,"IID_Small_Hydro_for_Other","IID","IID","Small_Hydro",0,null,null,0,null,null,null,null,null,null,null,null,null,null,0,2.1705613875372398,0]
[2026,"LDWP_Small_Hydro_for_Other","LDWP","LDWP","Small_Hydro",56,null,null,56,null,null,null,null,null,null,null,null,null,null,0,2.1705613875372398,56]
[2026,"NW_Small_Hydro_for_Other","NW","NW","Small_Hydro",41,null,null,41,null,null,null,null,null,null,null,null,null,null,0,2.1705613875372398,41]
[2026,"SW_Small_Hydro_for_Other","SW","SW","Small_Hydro",0,null,null,0,null,null,null,null,null,null,null,null,null,null,0,2.1705613875372398,0]
[2026,"Greater_Imperial_Geothermal","CAISO","CAISO","Geothermal",0,0,0,0,"SCADSNV-Greater_Imperial",0,0,null,null,null,0,null,null,0,0,2.1705613875372398,0,null,0,null,0,0]
[2026,"Inyokern_North_Kramer_Geothermal","CAISO","CAISO","Geothermal",0,0,0,0,"Inyokern_North_Kramer-Greater_Kramer",0,0,null,null,null,0,null,null,0,0,2.1705613875372398,0,null,0,null,0,0]
[2026,"Northern_California_Ex_Geothermal","CAISO","CAISO","Geothermal",0,0,0,0,"Northern_California_Ex",0,0,null,null,null,0,null,null,0,0,2.1705613875372398,0,null,0,null,0,0]
[2026,"Pacific_Northwest_Geothermal","CAISO","CAISO","Geothermal",0,null,null,0,null,null,null,null,null,null,null,null,null,null,0,2.1705613875372398,0,null,null,null,null,0]
[2026,"Riverside_Palm_Springs_Geothermal","CAISO","CAISO","Geothermal",0,0,0,0,"SCADSNV-Riverside_Palm_Springs",0,0,null,null,null,0,null,null,0,0,2.1705613875372398,0,null,0,null,0,0]
[2026,"Solano_Geothermal","CAISO","CAISO","Geothermal",0,0,135,135,"Solano-Sacramento_River",135,0,null,null,null,0,null,null,66931904.969999999,20080223.149999999,2.1705613875372398,0,null,135,null,0,121.5]
[2026,"Southern_Nevada_Geothermal","CAISO","CAISO","Geothermal",0,0,0,0,"SCADSNV-Mountain_Pass_El_Dorado",0,0,null,null,null,0,null,null,0,0,2.1705613875372398,0,null,0,null,0,0]
[2026,"Customer_PV","CAISO","CAISO","Customer_PV",7269.29,null,null,7269.29,null,null,null,null,null,null,null,null,null,null,0,2.1705613875372398,7269.29]
[2026,"BANC_Solar_for_Other","BANC","BANC","Solar",3135.32,null,null,3135.32,null,null,null,null,null,null,null,null,null,null,0,2.1705613875372398,3135.32]
[2026,"CAISO_Solar_for_Other","CAISO","CAISO","Solar",12,null,null,12,null,null,null,null,null,null,null,null,null,null,0,2.1705613875372398,12]
[2026,"IID_Solar_for_Other","IID","IID","Solar",138.69999999999999,null,null,138.69999999999999,null,null,null,null,null,null,null,null,null,null,0,2.1705613875372398,138.69999999999999]
[2026,"LDWP_Solar_for_Other","LDWP","LDWP","Solar",3460.48,null,null,3460.48,null,null,null,null,null,null,null,null,null,null,0,2.1705613875372398,3460.48]
[2026,"NW_Solar_for_Other","NW","NW","Solar",2665.84,null,null,2665.84,null,null,null,null,null,null,null,null,null,null,0,2.1705613875372398,2665.84]
[2026,"SW_Solar_for_Other","SW","SW","Solar",1854.61,null,null,1854.61,null,null,null,null,null,null,null,null,null,null,0,2.1705613875372398,1854.61]
[2026,"CAISO_Solar_for_CAISO","CAISO","CAISO","Solar",14875.45,null,null,14875.45,null,null,null,null,null,null,null,null,null,null,0,2.1705613875372398,14875.45]
[2026,"IID_Solar_for_CAISO","IID","CAISO","Solar",49.9,null,null,49.9,null,null,null,null,null,null,null,null,null,null,0,2.1705613875372398,49.9]
[2026,"SW_Solar_for_CAISO","SW","CAISO","Solar",65,null,null,65,null,null,null,null,null,null,null,null,null,null,0,2.1705613875372398,65]
[2026,"BANC_Wind_for_Other","BANC","BANC","Wind",0,null,null,0,null,null,null,null,null,null,null,null,null,null,0,2.1705613875372398,0]
[2026,"CAISO_Wind_for_Other","CAISO","CAISO","Wind",279.98,null,null,279.98,null,null,null,null,null,null,null,null,null,null,0,2.1705613875372398,279.98]
[2026,"IID_Wind_for_Other","IID","IID","Wind",0,null,null,0,null,null,null,null,null,null,null,null,null,null,0,2.1705613875372398,0]
[2026,"LDWP_Wind_for_Other","LDWP","LDWP","Wind",704.84,null,null,704.84,null,null,null,null,null,null,null,null,null,null,0,2.1705613875372398,704.84]
[2026,"NW_Wind_for_Other","NW","NW","Wind",11057.09,null,null,11057.09,null,null,null,null,null,null,null,null,null,null,0,2.1705613875372398,11057.09]
[2026,"SW_Wind_for_Other","SW","SW","Wind",2276.6999999999998,null,null,2276.6999999999998,null,null,null,null,null,null,null,null,null,null,0,2.1705613875372398,2276.6999999999998]
[2026,"CAISO_Wind_for_CAISO","CAISO","CAISO","Wind",7176.33,null,null,7176.33,null,null,null,null,null,null,null,null,null,null,0,2.1705613875372398,7176.33]
[2026,"LDWP_Wind_for_CAISO","LDWP","CAISO","Wind",5.09,null,null,5.09,null,null,null,null,null,null,null,null,null,null,0,2.1705613875372398,5.09]
[2026,"NW_Wind_for_CAISO","NW","CAISO","Wind",1417.29,null,null,1417.29,null,null,null,null,null,null,null,null,null,null,0,2.1705613875372398,1417.29]
[2026,"SW_Wind_for_CAISO","SW","CAISO","Wind",50.4,null,null,50.4,null,null,null,null,null,null,null,null,null,null,0,2.1705613875372398,50.4]
[2026,"Carrizo_Solar","CAISO","CAISO","Solar",0,0,0,0,"Kern_Greater_Carrizo-SPGE-Carrizo",0,0,null,null,null,0,null,null,0,0,2.1705613875372398,0,null,0,null,0]
[2026,"Carrizo_Wind","CAISO","CAISO","Wind",0,0,287,287,"Kern_Greater_Carrizo-SPGE-Carrizo",287,0,null,null,null,0,null,null,32233705.789999999,11918394.439999999,2.1705613875372398,0,null,287,null,0]
[2026,"Central_Valley_North_Los_Banos_Solar","CAISO","CAISO","Solar",0,0,0,0,"Central_Valley_North_Los_Banos-SPGE",0,0,null,null,null,0,null,null,0,0,2.1705613875372398,0,null,0,null,0]
[2026,"Central_Valley_North_Los_Banos_Wind","CAISO","CAISO","Wind",0,0,173,173,"Central_Valley_North_Los_Banos-SPGE",173,0,null,null,null,0,null,null,16593876.300000001,7240578.1900000004,2.1705613875372398,0,null,173,null,0]
[2026,"Distributed_Solar","CAISO","CAISO","Solar",0,0,0,0,"None",0,0,null,null,null,0,null,null,0,0,2.1705613875372398,0,null,0,null,0]
[2026,"Mountain_Pass_El_Dorado_Solar","CAISO","CAISO","Solar",0,0,248,248,null,248,0,null,null,null,-11088.76,null,null,17374223.690000001,2508208.2799999998,2.1705613875372398,0,null,248,null,0]
[2026,"Greater_Imperial_Solar","CAISO","CAISO","Solar",0,866.98,866.98,866.98,"SCADSNV-Greater_Imperial",0,866.98,null,null,null,0,null,null,64805169.43,8546758.3599999994,2.1705613875372398,0,null,866.98,null,0]
[2026,"Greater_Imperial_Wind","CAISO","CAISO","Wind",0,0,0,0,"SCADSNV-Greater_Imperial",0,0,null,null,null,0,null,null,0,0,2.1705613875372398,0,null,0,null,0]
[2026,"Greater_Kramer_Wind","CAISO","CAISO","Wind",0,0,0,0,"Greater_Kramer",0,0,null,null,null,0,null,null,0,0,2.1705613875372398,0,null,0,null,0]
[2026,"Humboldt_Wind","CAISO","CAISO","Wind",0,0,34,34,"Sacramento_River-Humboldt",0,34,null,null,null,0,null,null,3118138.06,1432688.81,2.1705613875372398,0,null,34,null,0]
[2026,"Inyokern_North_Kramer_Solar","CAISO","CAISO","Solar",0,0,73,73,"Inyokern_North_Kramer-Greater_Kramer",73,0,null,null,null,0,null,null,4574365.26,756500.06,2.1705613875372398,0,null,73,null,0]
[2026,"Kern_Greater_Carrizo_Solar","CAISO","CAISO","Solar",0,1022.74,1137,1137,"Kern_Greater_Carrizo-SPGE",437,700,null,null,null,0,null,null,83242381.209999993,11247274.550000001,2.1705613875372398,0,null,1137,null,0]
[2026,"Kern_Greater_Carrizo_Wind","CAISO","CAISO","Wind",0,0,60,60,"Kern_Greater_Carrizo-SPGE",60,0,null,null,null,0,null,null,5920164.4000000004,2511183.19,2.1705613875372398,0,null,60,null,0]
[2026,"Kramer_Inyokern_Ex_Solar","CAISO","CAISO","Solar",0,0,0,0,"Kramer_Inyokern_Ex",0,0,null,null,null,0,null,null,0,0,2.1705613875372398,0,null,0,null,0]
[2026,"Kramer_Inyokern_Ex_Wind","CAISO","CAISO","Wind",0,0,0,0,"Kramer_Inyokern_Ex",0,0,null,null,null,0,null,null,0,0,2.1705613875372398,0,null,0,null,0]
[2026,"North_Victor_Solar","CAISO","CAISO","Solar",0,0,300,300,"North_Victor-Greater_Kramer",300,0,null,null,null,0,null,null,18391473,3092690.85,2.1705613875372398,0,null,300,null,0]
[2026,"Northern_California_Ex_Solar","CAISO","CAISO","Solar",0,0,0,0,"Northern_California_Ex",0,0,null,null,null,0,null,null,0,0,2.1705613875372398,0,null,0,null,0]
[2026,"Northern_California_Ex_Wind","CAISO","CAISO","Wind",0,0,865.9,865.9,"Sacramento_River",865.9,0,null,null,null,-80446.83,null,null,89470506.049999997,36240558.710000001,2.1705613875372398,0,null,865.9,null,0]
[2026,"NW_Ext_Tx_Wind","CAISO","CAISO","Wind",0,0,617.9,617.9,"Sacramento_River",617.9,0,null,null,null,0,null,null,87244850.359999999,25892481.120000001,2.1705613875372398,0,null,617.9,null,0]
[2026,"Riverside_Palm_Springs_Solar","CAISO","CAISO","Solar",0,0,0,0,"SCADSNV-Riverside_Palm_Springs",0,0,null,null,null,0,null,null,0,0,2.1705613875372398,0,null,0,null,0]
[2026,"Sacramento_River_Solar","CAISO","CAISO","Solar",0,0,0,0,"Sacramento_River",0,0,null,null,null,0,null,null,0,0,2.1705613875372398,0,null,0,null,0]
[2026,"Sacramento_River_Wind","CAISO","CAISO","Wind",0,null,null,0,null,null,null,null,null,null,null,null,null,null,0,2.1705613875372398,0]
[2026,"SCADSNV_Solar","CAISO","CAISO","Solar",0,2150,2150,2150,"SCADSNV",0,2150,null,null,null,0,null,null,160708567.97999999,21194872.399999999,2.1705613875372398,0,null,2150,null,0]
[2026,"SCADSNV_Wind","CAISO","CAISO","Wind",0,0,0,0,"SCADSNV",0,0,null,null,null,0,null,null,0,0,2.1705613875372398,0,null,0,null,0]
[2026,"Solano_Solar","CAISO","CAISO","Solar",0,0,0,0,"Solano-Sacramento_River",0,0,null,null,null,0,null,null,0,0,2.1705613875372398,0,null,0,null,0]
[2026,"Solano_subzone_Solar","CAISO","CAISO","Solar",0,0,0,0,"Solano-Solano_subzone-Sacramento_River",0,0,null,null,null,0,null,null,0,0,2.1705613875372398,0,null,0,null,0]
[2026,"Solano_subzone_Wind","CAISO","CAISO","Wind",0,0,0,0,"Solano-Solano_subzone-Sacramento_River",0,0,null,null,null,0,null,null,0,0,2.1705613875372398,0,null,0,null,0]
[2026,"Solano_Wind","CAISO","CAISO","Wind",0,0,464,464,"Solano-Sacramento_River",464,0,null,null,null,0,null,null,45345007.369999997,19419816.649999999,2.1705613875372398,0,null,464,null,0]
[2026,"Southern_California_Desert_Ex_Solar","CAISO","CAISO","Solar",0,0,862,862,"Southern_California_Desert_Ex",862,0,null,null,null,0,null,null,52844832.43,8886331.7200000007,2.1705613875372398,0,null,862,null,0]
[2026,"Southern_California_Desert_Ex_Wind","CAISO","CAISO","Wind",0,0,0,0,"Southern_California_Desert_Ex",0,0,null,null,null,0,null,null,0,0,2.1705613875372398,0,null,0,null,0]
[2026,"Southern_Nevada_Solar","CAISO","CAISO","Solar",0,0,0,0,"SCADSNV-GLW_VEA",0,0,null,null,null,0,null,null,0,0,2.1705613875372398,0,null,0,null,0]
[2026,"Southern_Nevada_Wind","CAISO","CAISO","Wind",0,0,442.03,442.03,"SCADSNV-GLW_VEA",442.03,0,null,null,null,0,null,null,45026111.390000001,18139039.100000001,2.1705613875372398,0,null,442.03,null,0]
[2026,"SW_Ext_Tx_Wind","CAISO","CAISO","Wind",0,0,0,0,"SCADSNV-Riverside_Palm_Springs",0,0,null,null,null,0,null,null,0,0,2.1705613875372398,0,null,0,null,0]
[2026,"Tehachapi_Ex_Solar","CAISO","CAISO","Solar",0,0,0,0,"Tehachapi_Ex",0,0,null,null,null,0,null,null,0,0,2.1705613875372398,0,null,0,null,0]
[2026,"Tehachapi_Solar","CAISO","CAISO","Solar",0,599,4801,4801,"Tehachapi",4001,800,null,null,null,-227.95,null,null,315415036.95999998,50711183.93,2.1705613875372398,0,null,4801,null,0]
[2026,"Tehachapi_Wind","CAISO","CAISO","Wind",0,0,275,275,"Tehachapi",275,0,null,null,null,0,null,null,25284252.02,11669739.4,2.1705613875372398,0,null,275,null,0]
[2026,"Westlands_Ex_Solar","CAISO","CAISO","Solar",0,0,1778.57,1778.57,"Westlands_Ex",1778.57,0,null,null,null,0,null,null,105761198.36,18134769.93,2.1705613875372398,0,null,1778.57,null,0]
[2026,"Westlands_Ex_Wind","CAISO","CAISO","Wind",0,null,null,0,null,null,null,null,null,null,null,null,null,null,0,2.1705613875372398,0]
[2026,"Westlands_Solar","CAISO","CAISO","Solar",0,577.26,617.94000000000005,617.94000000000005,"Central_Valley_North_Los_Banos-SPGE",617.94000000000005,0,null,null,null,0,null,null,45568294.289999999,6105501.0700000003,2.1705613875372398,0,null,617.94000000000005,null,0]
[2026,"Arizona_Solar","CAISO","CAISO","Solar",0,0,3113,3113,"SCADSNV-Riverside_Palm_Springs",563,2550,null,null,null,0,null,null,220004751.13,30995500.07,2.1705613875372398,0,null,3113,null,0]
[2026,"Arizona_Wind","CAISO","CAISO","Wind",0,null,null,0,null,null,null,null,null,null,null,null,null,null,0,2.1705613875372398,0]
[2026,"Baja_California_Solar","CAISO","CAISO","Solar",0,null,null,0,null,null,null,null,null,null,null,null,null,null,0,2.1705613875372398,0]
[2026,"Baja_California_Wind","CAISO","CAISO","Wind",0,0,92.17,92.17,"SCADSNV-Greater_Imperial",92.17,0,null,null,null,0,null,null,10400165.43,3780997.08,2.1705613875372398,0,null,92.17,null,0]
[2026,"Idaho_Wind","CAISO","CAISO","Wind",0,null,null,0,null,null,null,null,null,null,null,null,null,null,0,2.1705613875372398,0]
[2026,"New_Mexico_Solar","CAISO","CAISO","Solar",0,null,null,0,null,null,null,null,null,null,null,null,null,null,0,2.1705613875372398,0]
[2026,"New_Mexico_Wind","CAISO","CAISO","Wind",0,0,0,0,"SCADSNV-Riverside_Palm_Springs",0,0,null,null,null,0,null,null,0,0,2.1705613875372398,0,null,0,null,0]
[2026,"Utah_Solar","CAISO","CAISO","Solar",0,null,null,0,null,null,null,null,null,null,null,null,null,null,0,2.1705613875372398,0]
[2026,"Utah_Wind","CAISO","CAISO","Wind",0,null,null,0,null,null,null,null,null,null,null,null,null,null,0,2.1705613875372398,0]
[2026,"Wyoming_Wind","CAISO","CAISO","Wind",0,0,0,0,"SCADSNV-Mountain_Pass_El_Dorado",0,0,null,null,null,0,null,null,0,0,2.1705613875372398,0,null,0,null,0]
[2026,"Pacific_Northwest_Wind","CAISO","CAISO","Wind",0,null,null,0,null,null,null,null,null,null,null,null,null,null,0,2.1705613875372398,0]
[2026,"Diablo_Canyon_Offshore_Wind","CAISO","CAISO","Offshore_Wind",0,null,null,0,null,null,null,null,null,null,null,null,null,null,0,2.1705613875372398,0]
[2026,"Humboldt_Bay_Offshore_Wind","CAISO","CAISO","Offshore_Wind",0,null,null,0,null,null,null,null,null,null,null,null,null,null,0,2.1705613875372398,0]
[2026,"Morro_Bay_Offshore_Wind","CAISO","CAISO","Offshore_Wind",0,null,null,0,null,null,null,null,null,null,null,null,null,null,0,2.1705613875372398,0]
[2026,"Diablo_Canyon_Offshore_Wind_Ext_Tx","CAISO","CAISO","Offshore_Wind",0,null,null,0,null,null,null,null,null,null,null,null,null,null,0,2.1705613875372398,0]
[2026,"Cape_Mendocino_Offshore_Wind","CAISO","CAISO","Offshore_Wind",0,null,null,0,null,null,null,null,null,null,null,null,null,null,0,2.1705613875372398,0]
[2026,"Del_Norte_Offshore_Wind","CAISO","CAISO","Offshore_Wind",0,null,null,0,null,null,null,null,null,null,null,null,null,null,0,2.1705613875372398,0]
[2026,"CAISO_Existing_Pumped_Storage","CAISO","CAISO","Pumped_Hydro",1599.2,null,null,1599.2,null,null,null,null,null,null,null,null,null,null,0,2.1705613875372398,1599.2,null,null,null,null,1599.2]
[2026,"CAISO_New_Pumped_Storage","CAISO","CAISO","Pumped_Hydro",0,1986.47,1986.47,1986.47,null,null,null,null,null,null,0,null,null,390248684.63999999,27543760.629999999,2.1705613875372398,0,null,1986.47,null,0,1986.47]
[2026,"CAISO_New_Flow_Battery","CAISO","CAISO","Flow_Battery",0,0,0,0,null,null,null,null,null,null,0,null,null,0,0,2.1705613875372398,0,null,0,null,0,0]
[2026,"CAISO_New_Flow_Battery_2","CAISO","CAISO","Flow_Battery",0,0,0,0,null,null,null,null,null,null,0,null,null,0,0,2.1705613875372398,0,null,0,null,0,0]
[2026,"CAISO_New_Flow_Battery_3","CAISO","CAISO","Flow_Battery",0,0,0,0,null,null,null,null,null,null,0,null,null,0,0,2.1705613875372398,0,null,0,null,0,0]
[2026,"CAISO_New_Flow_Battery_4","CAISO","CAISO","Flow_Battery",0,0,0,0,null,null,null,null,null,null,0,null,null,0,0,2.1705613875372398,0,null,0,null,0,0]
[2026,"CAISO_New_Flow_Battery_5","CAISO","CAISO","Flow_Battery",0,0,0,0,null,null,null,null,null,null,null,null,null,0,0,2.1705613875372398,0,null,0,null,0,0]
[2026,"CAISO_New_Li_Battery","CAISO","CAISO","Li_Battery",0,173.11,7485.23,7485.23,null,null,null,null,null,null,-62500.32,null,null,1092876250.8699999,96618536.040000007,2.1705613875372398,0,null,7485.23,null,1617.45,7485.23]
[2026,"CAISO_BTM_Li_Battery","CAISO","CAISO","BTM_Li_Battery",92.14,0,0,92.14,null,null,null,null,null,null,0,null,null,0,878656.68,2.1705613875372398,92.14,null,0,null,0,57.59]
[2026,"CAISO_New_Li_Battery_2","CAISO","CAISO","Li_Battery",0,3051.42,3967.55,3967.55,null,null,null,null,null,null,0,null,null,438470745.02999997,43416899.810000002,2.1705613875372398,0,null,3967.55,null,0,3011.37]
[2026,"CAISO_New_Li_Battery_3","CAISO","CAISO","Li_Battery",0,0,0,0,null,null,null,null,null,null,0,null,null,0,0,2.1705613875372398,0,null,0,null,0,0]
[2026,"CAISO_New_Li_Battery_4","CAISO","CAISO","Li_Battery",0,0,0,0,null,null,null,null,null,null,0,null,null,0,0,2.1705613875372398,0,null,0,null,0,0]
[2026,"CAISO_New_Li_Battery_5","CAISO","CAISO","Li_Battery",0,0,0,0,null,null,null,null,null,null,null,null,null,0,0,2.1705613875372398,0,null,0,null,0,0]
[2026,"CAISO_New_Li_Battery_6","CAISO","CAISO","Li_Battery",0,0,0,0,null,null,null,null,null,null,null,null,null,0,0,2.1705613875372398,0,null,0,null,0,0]
[2026,"CAISO_Hydro","CAISO","CAISO","Hydro",7070.1,null,null,7070.1,null,null,null,null,null,null,null,null,null,null,0,2.1705613875372398,7070.1,null,null,null,null,5979.64]
[2026,"NW_Hydro","NW","NW","Hydro",31478.05,null,null,31478.05,null,null,null,null,null,null,null,null,null,null,0,2.1705613875372398,31478.05]
[2026,"SW_Hydro","SW","SW","Hydro",2680.31,null,null,2680.31,null,null,null,null,null,null,null,null,null,null,0,2.1705613875372398,2680.31]
[2026,"LDWP_Hydro","LDWP","LDWP","Hydro",233.7,null,null,233.7,null,null,null,null,null,null,null,null,null,null,0,2.1705613875372398,233.7]
[2026,"BANC_Hydro","BANC","BANC","Hydro",2724.06,null,null,2724.06,null,null,null,null,null,null,null,null,null,null,0,2.1705613875372398,2724.06]
[2026,"IID_Hydro","IID","IID","Hydro",83.5,null,null,83.5,null,null,null,null,null,null,null,null,null,null,0,2.1705613875372398,83.5]
[2026,"NW_Hydro_for_CAISO","CAISO_NW_Hydro","CAISO_NW_Hydro","Hydro_NW_CAISO",2851.77,null,null,2851.77,null,null,null,null,null,null,null,null,null,null,0,2.1705613875372398,2851.77]
[2026,"Hydrogen_electrolysis","CAISO","CAISO","Hydrogen_Electrolysis",null,null,null,null,null,null,null,null,null,0,null,null,null,null,0,2.1705613875372398,0]
[2026,"CAISO_Shed_DR_Existing","CAISO","CAISO","CAISO_Conventional_DR",0,null,null,0,null,null,null,null,null,null,null,1,0,null,0,2.1705613875372398,0,null,null,null,null,0]
[2026,"CAISO_Shed_DR_Tranche1","CAISO","CAISO","CAISO_Conventional_DR",0,0,0,0,null,null,null,null,null,null,0,1,0,0,0,2.1705613875372398,0,null,0,null,0,0]
[2026,"CAISO_Shed_DR_Tranche2","CAISO","CAISO","CAISO_Conventional_DR",0,0,0,0,null,null,null,null,null,null,0,1,0,0,0,2.1705613875372398,0,null,0,null,0,0]
[2026,"CAISO_Shed_DR_Tranche3","CAISO","CAISO","CAISO_Conventional_DR",0,0,0,0,null,null,null,null,null,null,0,1,0,0,0,2.1705613875372398,0,null,0,null,0,0]
[2026,"CAISO_Shed_DR_Tranche4","CAISO","CAISO","CAISO_Conventional_DR",0,0,0,0,null,null,null,null,null,null,0,1,0,0,0,2.1705613875372398,0,null,0,null,0,0]
[2026,"CAISO_Shed_DR_Tranche5","CAISO","CAISO","CAISO_Conventional_DR",0,0,0,0,null,null,null,null,null,null,0,1,0,0,0,2.1705613875372398,0,null,0,null,0,0]
[2026,"CAISO_Shed_DR_Tranche6","CAISO","CAISO","CAISO_Conventional_DR",0,0,0,0,null,null,null,null,null,null,0,1,0,0,0,2.1705613875372398,0,null,0,null,0,0]
[2026,"CAISO_Shed_DR_Tranche7","CAISO","CAISO","CAISO_Conventional_DR",0,0,0,0,null,null,null,null,null,null,0,1,0,0,0,2.1705613875372398,0,null,0,null,0,0]
[2026,"CAISO_Shed_DR_Tranche8","CAISO","CAISO","CAISO_Conventional_DR",0,0,0,0,null,null,null,null,null,null,0,1,0,0,0,2.1705613875372398,0,null,0,null,0,0]
[2030,"CAISO_CHP","CAISO","CAISO","CAISO_CHP",2296.02,null,null,2296.02,null,null,null,null,null,null,null,null,null,null,0,4.9706315334622504,2296.02,null,null,null,null,1455.68]
[2030,"CAISO_Nuclear","CAISO","CAISO","CAISO_Nuclear",635,null,null,635,null,null,null,null,null,null,null,null,null,null,0,4.9706315334622504,635,null,null,null,null,630.65]
[2030,"CAISO_CCGT1","CAISO","CAISO","CAISO_CCGT1",13333.47,null,null,13333.47,null,null,null,null,null,null,null,532.4,25.04,null,148200393.30000001,4.9706315334622504,13333.47,0,null,null,null,12526.38]
[2030,"CAISO_CCGT2","CAISO","CAISO","CAISO_CCGT2",2927.93,null,null,2927.93,null,null,null,null,null,null,null,187.53,15.61,null,32543694.739999998,4.9706315334622504,2927.93,0,null,null,null,2927.58]
[2030,"CAISO_Coal","CAISO","CAISO","CAISO_Coal",0,null,null,0,null,null,null,null,null,null,null,849.97,0,null,0,4.9706315334622504,0,null,null,null,null,0]
[2030,"CAISO_Peaker1","CAISO","CAISO","CAISO_Peaker1",4913.93,null,null,4913.93,null,null,null,null,null,null,null,67.59,72.7,null,67294545.829999998,4.9706315334622504,4913.93,0,null,null,null,4539.17]
[2030,"CAISO_Peaker2","CAISO","CAISO","CAISO_Peaker2",3682.71,null,null,3682.71,null,null,null,null,null,null,null,53,69.48,null,50433420.270000003,4.9706315334622504,3682.71,0,null,null,null,3540.17]
[2030,"CAISO_Advanced_CCGT","CAISO","CAISO","CAISO_Advanced_CCGT",0,0,0,0,null,null,null,null,null,null,0,600,0,0,0,4.9706315334622504,0,0,0,0,0,0]
[2030,"CAISO_Aero_CT","CAISO","CAISO","CAISO_Aero_CT",0,0,0,0,null,null,null,null,null,null,0,100,0,0,0,4.9706315334622504,0,0,0,0,0,0]
[2030,"CAISO_Reciprocating_Engine","CAISO","CAISO","CAISO_Reciprocating_Engine",255.3,0,0,255.3,null,null,null,null,null,null,0,10.36,24.65,132.41999999999999,3496257.55,4.9706315334622504,255.3,0,0,0,0,254.7]
[2030,"CAISO_ST","CAISO","CAISO","CAISO_ST",0,null,null,0,null,null,null,null,null,null,null,341.83,0,null,0,4.9706315334622504,0,null,null,null,null,0]
[2030,"NW_Nuclear","NW","NW","NW_Nuclear",1756.56,null,null,1756.56,null,null,null,null,null,null,null,null,null,null,0,4.9706315334622504,1756.56]
[2030,"NW_Coal","NW","NW","NW_Coal",7363.8,null,null,7363.8,null,null,null,null,null,null,null,367.75,20.02,null,0,4.9706315334622504,7363.8]
[2030,"NW_CCGT","NW","NW","NW_CCGT",9573.43,null,null,9573.43,null,null,null,null,null,null,null,341.91,28,null,0,4.9706315334622504,9573.43]
[2030,"NW_Peaker","NW","NW","NW_Peaker",2993.17,null,null,2993.17,null,null,null,null,null,null,null,29.06,103,null,0,4.9706315334622504,2993.17]
[2030,"SW_Nuclear","SW","SW","SW_Nuclear",2998,null,null,2998,null,null,null,null,null,null,null,null,null,null,0,4.9706315334622504,2998]
[2030,"SW_Coal","SW","SW","SW_Coal",6140.6,null,null,6140.6,null,null,null,null,null,null,null,409.46,15,null,0,4.9706315334622504,6140.6]
[2030,"SW_CCGT","SW","SW","SW_CCGT",19741.099999999999,null,null,19741.099999999999,null,null,null,null,null,null,null,344.28,57.34,null,0,4.9706315334622504,19741.099999999999]
[2030,"SW_Peaker","SW","SW","SW_Peaker",6301.92,null,null,6301.92,null,null,null,null,null,null,null,47.78,131.88999999999999,null,0,4.9706315334622504,6301.92]
[2030,"SW_ST","SW","SW","SW_ST",966.5,null,null,966.5,null,null,null,null,null,null,null,92.71,10.42,null,0,4.9706315334622504,966.5]
[2030,"LDWP_Nuclear","LDWP","LDWP","LDWP_Nuclear",407,null,null,407,null,null,null,null,null,null,null,null,null,null,0,4.9706315334622504,407]
[2030,"LDWP_Coal","LDWP","LDWP","LDWP_Coal",0,null,null,0,null,null,null,null,null,null,null,849.97,0,null,0,4.9706315334622504,0]
[2030,"LDWP_CCGT","LDWP","LDWP","LDWP_CCGT",2754.7,null,null,2754.7,null,null,null,null,null,null,null,385.96,7.14,null,0,4.9706315334622504,2754.7]
[2030,"LDWP_Peaker","LDWP","LDWP","LDWP_Peaker",1647,null,null,1647,null,null,null,null,null,null,null,82.35,20,null,0,4.9706315334622504,1647]
[2030,"LDWP_ST","LDWP","LDWP","LDWP_ST",197,null,null,197,null,null,null,null,null,null,null,110.22,1.79,null,0,4.9706315334622504,197]
[2030,"IID_CCGT","IID","IID","IID_CCGT",255.3,null,null,255.3,null,null,null,null,null,null,null,127.65,2,null,0,4.9706315334622504,255.3]
[2030,"IID_Peaker","IID","IID","IID_Peaker",327,null,null,327,null,null,null,null,null,null,null,36.090000000000003,9.06,null,0,4.9706315334622504,327]
[2030,"BANC_CCGT","BANC","BANC","BANC_CCGT",1797.5,null,null,1797.5,null,null,null,null,null,null,null,207.01,8.68,null,0,4.9706315334622504,1797.5]
[2030,"BANC_Peaker","BANC","BANC","BANC_Peaker",866.99,null,null,866.99,null,null,null,null,null,null,null,34.68,25,null,0,4.9706315334622504,866.99]
[2030,"BANC_Biomass_for_Other","BANC","BANC","Biomass",17.5,null,null,17.5,null,null,null,null,null,null,null,null,null,null,0,4.9706315334622504,17.5]
[2030,"BANC_Geothermal_for_Other","BANC","BANC","Geothermal",0,null,null,0,null,null,null,null,null,null,null,null,null,null,0,4.9706315334622504,0]
[2030,"CAISO_Biomass_for_Other","CAISO","CAISO","Biomass",11.7,null,null,11.7,null,null,null,null,null,null,null,null,null,null,0,4.9706315334622504,11.7,null,null,null,null,8.17]
[2030,"CAISO_Geothermal_for_Other","CAISO","CAISO","Geothermal",38.67,null,null,38.67,null,null,null,null,null,null,null,null,null,null,0,4.9706315334622504,38.67,null,null,null,null,23.82]
[2030,"IID_Biomass_for_Other","IID","IID","Biomass",77,null,null,77,null,null,null,null,null,null,null,null,null,null,0,4.9706315334622504,77]
[2030,"IID_Geothermal_for_Other","IID","IID","Geothermal",709.46,null,null,709.46,null,null,null,null,null,null,null,null,null,null,0,4.9706315334622504,709.46]
[2030,"LDWP_Biomass_for_Other","LDWP","LDWP","Biomass",0,null,null,0,null,null,null,null,null,null,null,null,null,null,0,4.9706315334622504,0]
[2030,"LDWP_Geothermal_for_Other","LDWP","LDWP","Geothermal",0,null,null,0,null,null,null,null,null,null,null,null,null,null,0,4.9706315334622504,0]
[2030,"NW_Biomass_for_Other","NW","NW","Biomass",544.1,null,null,544.1,null,null,null,null,null,null,null,null,null,null,0,4.9706315334622504,544.1]
[2030,"NW_Geothermal_for_Other","NW","NW","Geothermal",142.09,null,null,142.09,null,null,null,null,null,null,null,null,null,null,0,4.9706315334622504,142.09]
[2030,"SW_Biomass_for_Other","SW","SW","Biomass",107.53,null,null,107.53,null,null,null,null,null,null,null,null,null,null,0,4.9706315334622504,107.53]
[2030,"SW_Geothermal_for_Other","SW","SW","Geothermal",664.85,null,null,664.85,null,null,null,null,null,null,null,null,null,null,0,4.9706315334622504,664.85]
[2030,"CAISO_Biomass_for_CAISO","CAISO","CAISO","Biomass",889.05,null,null,889.05,null,null,null,null,null,null,null,null,null,null,0,4.9706315334622504,889.05,null,null,null,null,620.55999999999995]
[2030,"CAISO_Geothermal_for_CAISO","CAISO","CAISO","Geothermal",1812.64,null,null,1812.64,null,null,null,null,null,null,null,null,null,null,0,4.9706315334622504,1812.64,null,null,null,null,1116.5899999999999]
[2030,"IID_Geothermal_for_CAISO","IID","CAISO","Geothermal",83,null,null,83,null,null,null,null,null,null,null,null,null,null,0,4.9706315334622504,83]
[2030,"NW_Biomass_for_CAISO","NW","CAISO","Biomass",46,null,null,46,null,null,null,null,null,null,null,null,null,null,0,4.9706315334622504,46]
[2030,"NW_Geothermal_for_CAISO","NW","CAISO","Geothermal",0,null,null,0,null,null,null,null,null,null,null,null,null,null,0,4.9706315334622504,0]
[2030,"InState_Biomass","CAISO","CAISO","Biomass",0,0,0,0,"None",0,0,null,null,null,0,null,null,0,0,4.9706315334622504,0,null,0,null,0,0]
[2030,"CAISO_Small_Hydro_for_CAISO","CAISO","CAISO","Small_Hydro",960.23,null,null,960.23,null,null,null,null,null,null,null,null,null,null,0,4.9706315334622504,960.23,null,null,null,null,480.11]
[2030,"BANC_Small_Hydro_for_CAISO","BANC","CAISO","Small_Hydro",0,null,null,0,null,null,null,null,null,null,null,null,null,null,0,4.9706315334622504,0]
[2030,"NW_Small_Hydro_for_CAISO","NW","CAISO","Small_Hydro",6.9,null,null,6.9,null,null,null,null,null,null,null,null,null,null,0,4.9706315334622504,6.9]
[2030,"CAISO_Small_Hydro_for_Other","CAISO","CAISO","Small_Hydro",13.8,null,null,13.8,null,null,null,null,null,null,null,null,null,null,0,4.9706315334622504,13.8,null,null,null,null,6.9]
[2030,"BANC_Small_Hydro_for_Other","BANC","BANC","Small_Hydro",41.2,null,null,41.2,null,null,null,null,null,null,null,null,null,null,0,4.9706315334622504,41.2]
[2030,"IID_Small_Hydro_for_Other","IID","IID","Small_Hydro",0,null,null,0,null,null,null,null,null,null,null,null,null,null,0,4.9706315334622504,0]
[2030,"LDWP_Small_Hydro_for_Other","LDWP","LDWP","Small_Hydro",56,null,null,56,null,null,null,null,null,null,null,null,null,null,0,4.9706315334622504,56]
[2030,"NW_Small_Hydro_for_Other","NW","NW","Small_Hydro",41,null,null,41,null,null,null,null,null,null,null,null,null,null,0,4.9706315334622504,41]
[2030,"SW_Small_Hydro_for_Other","SW","SW","Small_Hydro",0,null,null,0,null,null,null,null,null,null,null,null,null,null,0,4.9706315334622504,0]
[2030,"Greater_Imperial_Geothermal","CAISO","CAISO","Geothermal",0,0,0,0,"SCADSNV-Greater_Imperial",0,0,null,null,null,0,null,null,0,0,4.9706315334622504,0,null,0,null,0,0]
[2030,"Inyokern_North_Kramer_Geothermal","CAISO","CAISO","Geothermal",0,0,0,0,"Inyokern_North_Kramer-Greater_Kramer",0,0,null,null,null,0,null,null,0,0,4.9706315334622504,0,null,0,null,0,0]
[2030,"Northern_California_Ex_Geothermal","CAISO","CAISO","Geothermal",0,0,0,0,"Northern_California_Ex",0,0,null,null,null,0,null,null,0,0,4.9706315334622504,0,null,0,null,0,0]
[2030,"Pacific_Northwest_Geothermal","CAISO","CAISO","Geothermal",0,null,null,0,null,null,null,null,null,null,null,null,null,null,0,4.9706315334622504,0,null,null,null,null,0]
[2030,"Riverside_Palm_Springs_Geothermal","CAISO","CAISO","Geothermal",0,0,0,0,"SCADSNV-Riverside_Palm_Springs",0,0,null,null,null,0,null,null,0,0,4.9706315334622504,0,null,0,null,0,0]
[2030,"Solano_Geothermal","CAISO","CAISO","Geothermal",0,0,135,135,"Solano-Sacramento_River",135,0,null,null,null,0,null,null,66931904.969999999,20080223.149999999,4.9706315334622504,0,null,135,null,0,121.5]
[2030,"Southern_Nevada_Geothermal","CAISO","CAISO","Geothermal",0,0,0,0,"SCADSNV-Mountain_Pass_El_Dorado",0,0,null,null,null,0,null,null,0,0,4.9706315334622504,0,null,0,null,0,0]
[2030,"Customer_PV","CAISO","CAISO","Customer_PV",7269.29,null,null,7269.29,null,null,null,null,null,null,null,null,null,null,0,4.9706315334622504,7269.29]
[2030,"BANC_Solar_for_Other","BANC","BANC","Solar",3777.05,null,null,3777.05,null,null,null,null,null,null,null,null,null,null,0,4.9706315334622504,3777.05]
[2030,"CAISO_Solar_for_Other","CAISO","CAISO","Solar",12,null,null,12,null,null,null,null,null,null,null,null,null,null,0,4.9706315334622504,12]
[2030,"IID_Solar_for_Other","IID","IID","Solar",115.7,null,null,115.7,null,null,null,null,null,null,null,null,null,null,0,4.9706315334622504,115.7]
[2030,"LDWP_Solar_for_Other","LDWP","LDWP","Solar",3460.48,null,null,3460.48,null,null,null,null,null,null,null,null,null,null,0,4.9706315334622504,3460.48]
[2030,"NW_Solar_for_Other","NW","NW","Solar",2660.6,null,null,2660.6,null,null,null,null,null,null,null,null,null,null,0,4.9706315334622504,2660.6]
[2030,"SW_Solar_for_Other","SW","SW","Solar",1830.89,null,null,1830.89,null,null,null,null,null,null,null,null,null,null,0,4.9706315334622504,1830.89]
[2030,"CAISO_Solar_for_CAISO","CAISO","CAISO","Solar",14875.45,null,null,14875.45,null,null,null,null,null,null,null,null,null,null,0,4.9706315334622504,14875.45]
[2030,"IID_Solar_for_CAISO","IID","CAISO","Solar",49.9,null,null,49.9,null,null,null,null,null,null,null,null,null,null,0,4.9706315334622504,49.9]
[2030,"SW_Solar_for_CAISO","SW","CAISO","Solar",65,null,null,65,null,null,null,null,null,null,null,null,null,null,0,4.9706315334622504,65]
[2030,"BANC_Wind_for_Other","BANC","BANC","Wind",0,null,null,0,null,null,null,null,null,null,null,null,null,null,0,4.9706315334622504,0]
[2030,"CAISO_Wind_for_Other","CAISO","CAISO","Wind",279.98,null,null,279.98,null,null,null,null,null,null,null,null,null,null,0,4.9706315334622504,279.98]
[2030,"IID_Wind_for_Other","IID","IID","Wind",0,null,null,0,null,null,null,null,null,null,null,null,null,null,0,4.9706315334622504,0]
[2030,"LDWP_Wind_for_Other","LDWP","LDWP","Wind",704.84,null,null,704.84,null,null,null,null,null,null,null,null,null,null,0,4.9706315334622504,704.84]
[2030,"NW_Wind_for_Other","NW","NW","Wind",10956.09,null,null,10956.09,null,null,null,null,null,null,null,null,null,null,0,4.9706315334622504,10956.09]
[2030,"SW_Wind_for_Other","SW","SW","Wind",1872.7,null,null,1872.7,null,null,null,null,null,null,null,null,null,null,0,4.9706315334622504,1872.7]
[2030,"CAISO_Wind_for_CAISO","CAISO","CAISO","Wind",7176.33,null,null,7176.33,null,null,null,null,null,null,null,null,null,null,0,4.9706315334622504,7176.33]
[2030,"LDWP_Wind_for_CAISO","LDWP","CAISO","Wind",5.09,null,null,5.09,null,null,null,null,null,null,null,null,null,null,0,4.9706315334622504,5.09]
[2030,"NW_Wind_for_CAISO","NW","CAISO","Wind",1417.29,null,null,1417.29,null,null,null,null,null,null,null,null,null,null,0,4.9706315334622504,1417.29]
[2030,"SW_Wind_for_CAISO","SW","CAISO","Wind",50.4,null,null,50.4,null,null,null,null,null,null,null,null,null,null,0,4.9706315334622504,50.4]
[2030,"Carrizo_Solar","CAISO","CAISO","Solar",0,0,0,0,"Kern_Greater_Carrizo-SPGE-Carrizo",0,0,null,null,null,0,null,null,0,0,4.9706315334622504,0,null,0,null,0]
[2030,"Carrizo_Wind","CAISO","CAISO","Wind",0,0,287,287,"Kern_Greater_Carrizo-SPGE-Carrizo",287,0,null,null,null,0,null,null,32233705.789999999,11918394.439999999,4.9706315334622504,0,null,287,null,0]
[2030,"Central_Valley_North_Los_Banos_Solar","CAISO","CAISO","Solar",0,0,0,0,"Central_Valley_North_Los_Banos-SPGE",0,0,null,null,null,0,null,null,0,0,4.9706315334622504,0,null,0,null,0]
[2030,"Central_Valley_North_Los_Banos_Wind","CAISO","CAISO","Wind",0,0,173,173,"Central_Valley_North_Los_Banos-SPGE",173,0,null,null,null,0,null,null,16593876.300000001,7240578.1900000004,4.9706315334622504,0,null,173,null,0]
[2030,"Distributed_Solar","CAISO","CAISO","Solar",0,0,0,0,"None",0,0,null,null,null,0,null,null,0,0,4.9706315334622504,0,null,0,null,0]
[2030,"Mountain_Pass_El_Dorado_Solar","CAISO","CAISO","Solar",0,0,248,248,null,248,0,null,null,null,0,null,null,17374223.690000001,2508208.2799999998,4.9706315334622504,0,null,248,null,0]
[2030,"Greater_Imperial_Solar","CAISO","CAISO","Solar",0,0,866.98,866.98,"SCADSNV-Greater_Imperial",0,866.98,null,null,null,0,null,null,64805169.43,8546758.3599999994,4.9706315334622504,0,null,866.98,null,0]
[2030,"Greater_Imperial_Wind","CAISO","CAISO","Wind",0,0,0,0,"SCADSNV-Greater_Imperial",0,0,null,null,null,-80066.11,null,null,0,0,4.9706315334622504,0,null,0,null,0]
[2030,"Greater_Kramer_Wind","CAISO","CAISO","Wind",0,0,0,0,"Greater_Kramer",0,0,null,null,null,-67526.13,null,null,0,0,4.9706315334622504,0,null,0,null,0]
[2030,"Humboldt_Wind","CAISO","CAISO","Wind",0,0,34,34,"Sacramento_River-Humboldt",0,34,null,null,null,-42092.87,null,null,3118138.06,1432688.81,4.9706315334622504,0,null,34,null,0]
[2030,"Inyokern_North_Kramer_Solar","CAISO","CAISO","Solar",0,0,73,73,"Inyokern_North_Kramer-Greater_Kramer",73,0,null,null,null,0,null,null,4574365.26,756500.06,4.9706315334622504,0,null,73,null,0]
[2030,"Kern_Greater_Carrizo_Solar","CAISO","CAISO","Solar",0,7192,8329,8329,"Kern_Greater_Carrizo-SPGE",7629,700,null,null,null,0,null,null,605690708.38999999,78903791.239999995,4.9706315334622504,0,null,8329,null,0]
[2030,"Kern_Greater_Carrizo_Wind","CAISO","CAISO","Wind",0,0,60,60,"Kern_Greater_Carrizo-SPGE",60,0,null,null,null,0,null,null,5920164.4000000004,2511183.19,4.9706315334622504,0,null,60,null,0]
[2030,"Kramer_Inyokern_Ex_Solar","CAISO","CAISO","Solar",0,0,0,0,"Kramer_Inyokern_Ex",0,0,null,null,null,0,null,null,0,0,4.9706315334622504,0,null,0,null,0]
[2030,"Kramer_Inyokern_Ex_Wind","CAISO","CAISO","Wind",0,0,0,0,"Kramer_Inyokern_Ex",0,0,null,null,null,0,null,null,0,0,4.9706315334622504,0,null,0,null,0]
[2030,"North_Victor_Solar","CAISO","CAISO","Solar",0,0,300,300,"North_Victor-Greater_Kramer",300,0,null,null,null,0,null,null,18391473,3092690.85,4.9706315334622504,0,null,300,null,0]
[2030,"Northern_California_Ex_Solar","CAISO","CAISO","Solar",0,396.9,396.9,396.9,"Northern_California_Ex",396.9,0,null,null,null,0,null,null,28831999.59,3733714.05,4.9706315334622504,0,null,396.9,null,0]
[2030,"Northern_California_Ex_Wind","CAISO","CAISO","Wind",0,0,865.9,865.9,"Sacramento_River",865.9,0,null,null,null,0,null,null,89470506.049999997,36240558.710000001,4.9706315334622504,0,null,865.9,null,0]
[2030,"NW_Ext_Tx_Wind","CAISO","CAISO","Wind",0,882.1,1500,1500,"Sacramento_River",1500,0,null,null,null,0,null,null,231212203.80000001,60753824.890000001,4.9706315334622504,0,null,1500,null,0]
[2030,"Riverside_Palm_Springs_Solar","CAISO","CAISO","Solar",0,0,0,0,"SCADSNV-Riverside_Palm_Springs",0,0,null,null,null,0,null,null,0,0,4.9706315334622504,0,null,0,null,0]
[2030,"Sacramento_River_Solar","CAISO","CAISO","Solar",0,2022.68,2022.68,2022.68,"Sacramento_River",156.68,1866,null,null,null,0,null,null,146933328.75999999,19027713.73,4.9706315334622504,0,null,2022.68,null,0]
[2030,"Sacramento_River_Wind","CAISO","CAISO","Wind",0,null,null,0,null,null,null,null,null,null,null,null,null,null,0,4.9706315334622504,0]
[2030,"SCADSNV_Solar","CAISO","CAISO","Solar",0,0,2150,2150,"SCADSNV",0,2150,null,null,null,0,null,null,160708567.97999999,21194872.399999999,4.9706315334622504,0,null,2150,null,0]
[2030,"SCADSNV_Wind","CAISO","CAISO","Wind",0,0,0,0,"SCADSNV",0,0,null,null,null,-39011.82,null,null,0,0,4.9706315334622504,0,null,0,null,0]
[2030,"Solano_Solar","CAISO","CAISO","Solar",0,700,700,700,"Solano-Sacramento_River",0,700,null,null,null,0,null,null,50850087.460000001,6585033.5999999996,4.9706315334622504,0,null,700,null,0]
[2030,"Solano_subzone_Solar","CAISO","CAISO","Solar",0,0,0,0,"Solano-Solano_subzone-Sacramento_River",0,0,null,null,null,0,null,null,0,0,4.9706315334622504,0,null,0,null,0]
[2030,"Solano_subzone_Wind","CAISO","CAISO","Wind",0,0,0,0,"Solano-Solano_subzone-Sacramento_River",0,0,null,null,null,0,null,null,0,0,4.9706315334622504,0,null,0,null,0]
[2030,"Solano_Wind","CAISO","CAISO","Wind",0,0,464,464,"Solano-Sacramento_River",464,0,null,null,null,0,null,null,45345007.369999997,19419816.649999999,4.9706315334622504,0,null,464,null,0]
[2030,"Southern_California_Desert_Ex_Solar","CAISO","CAISO","Solar",0,0,862,862,"Southern_California_Desert_Ex",862,0,null,null,null,0,null,null,52844832.43,8886331.7200000007,4.9706315334622504,0,null,862,null,0]
[2030,"Southern_California_Desert_Ex_Wind","CAISO","CAISO","Wind",0,0,0,0,"Southern_California_Desert_Ex",0,0,null,null,null,0,null,null,0,0,4.9706315334622504,0,null,0,null,0]
[2030,"Southern_Nevada_Solar","CAISO","CAISO","Solar",0,0,0,0,"SCADSNV-GLW_VEA",0,0,null,null,null,0,null,null,0,0,4.9706315334622504,0,null,0,null,0]
[2030,"Southern_Nevada_Wind","CAISO","CAISO","Wind",0,0,442.03,442.03,"SCADSNV-GLW_VEA",442.03,0,null,null,null,0,null,null,45026111.390000001,18139039.100000001,4.9706315334622504,0,null,442.03,null,0]
[2030,"SW_Ext_Tx_Wind","CAISO","CAISO","Wind",0,0,0,0,"SCADSNV-Riverside_Palm_Springs",0,0,null,null,null,0,null,null,0,0,4.9706315334622504,0,null,0,null,0]
[2030,"Tehachapi_Ex_Solar","CAISO","CAISO","Solar",0,0,0,0,"Tehachapi_Ex",0,0,null,null,null,0,null,null,0,0,4.9706315334622504,0,null,0,null,0]
[2030,"Tehachapi_Solar","CAISO","CAISO","Solar",0,0,4801,4801,"Tehachapi",4001,800,null,null,null,0,null,null,315415036.95999998,50711183.93,4.9706315334622504,0,null,4801,null,0]
[2030,"Tehachapi_Wind","CAISO","CAISO","Wind",0,0,275,275,"Tehachapi",275,0,null,null,null,0,null,null,25284252.02,11669739.4,4.9706315334622504,0,null,275,null,0]
[2030,"Westlands_Ex_Solar","CAISO","CAISO","Solar",0,0,1778.57,1778.57,"Westlands_Ex",1778.57,0,null,null,null,0,null,null,105761198.36,18134769.93,4.9706315334622504,0,null,1778.57,null,0]
[2030,"Westlands_Ex_Wind","CAISO","CAISO","Wind",0,null,null,0,null,null,null,null,null,null,null,null,null,null,0,4.9706315334622504,0]
[2030,"Westlands_Solar","CAISO","CAISO","Solar",0,0,617.94000000000005,617.94000000000005,"Central_Valley_North_Los_Banos-SPGE",617.94000000000005,0,null,null,null,0,null,null,45568294.289999999,6105501.0700000003,4.9706315334622504,0,null,617.94000000000005,null,0]
[2030,"Arizona_Solar","CAISO","CAISO","Solar",0,0,3113,3113,"SCADSNV-Riverside_Palm_Springs",563,2550,null,null,null,0,null,null,220004751.13,30995500.07,4.9706315334622504,0,null,3113,null,0]
[2030,"Arizona_Wind","CAISO","CAISO","Wind",0,null,null,0,null,null,null,null,null,null,null,null,null,null,0,4.9706315334622504,0]
[2030,"Baja_California_Solar","CAISO","CAISO","Solar",0,null,null,0,null,null,null,null,null,null,null,null,null,null,0,4.9706315334622504,0]
[2030,"Baja_California_Wind","CAISO","CAISO","Wind",0,507.83,600,600,"SCADSNV-Greater_Imperial",92.17,507.83,null,null,null,0,null,null,69569061.219999999,23716305.309999999,4.9706315334622504,0,null,600,null,0]
[2030,"Idaho_Wind","CAISO","CAISO","Wind",0,null,null,0,null,null,null,null,null,null,null,null,null,null,0,4.9706315334622504,0]
[2030,"New_Mexico_Solar","CAISO","CAISO","Solar",0,null,null,0,null,null,null,null,null,null,null,null,null,null,0,4.9706315334622504,0]
[2030,"New_Mexico_Wind","CAISO","CAISO","Wind",0,1336.87,1336.87,1336.87,"SCADSNV-Riverside_Palm_Springs",1336.87,0,null,null,null,0,null,null,296997665.79000002,60939732.079999998,4.9706315334622504,0,null,1336.87,null,0]
[2030,"Utah_Solar","CAISO","CAISO","Solar",0,null,null,0,null,null,null,null,null,null,null,null,null,null,0,4.9706315334622504,0]
[2030,"Utah_Wind","CAISO","CAISO","Wind",0,null,null,0,null,null,null,null,null,null,null,null,null,null,0,4.9706315334622504,0]
[2030,"Wyoming_Wind","CAISO","CAISO","Wind",0,0,0,0,"SCADSNV-Mountain_Pass_El_Dorado",0,0,null,null,null,0,null,null,0,0,4.9706315334622504,0,null,0,null,0]
[2030,"Pacific_Northwest_Wind","CAISO","CAISO","Wind",0,null,null,0,null,null,null,null,null,null,null,null,null,null,0,4.9706315334622504,0]
[2030,"Diablo_Canyon_Offshore_Wind","CAISO","CAISO","Offshore_Wind",0,null,null,0,null,null,null,null,null,null,null,null,null,null,0,4.9706315334622504,0]
[2030,"Humboldt_Bay_Offshore_Wind","CAISO","CAISO","Offshore_Wind",0,null,null,0,null,null,null,null,null,null,null,null,null,null,0,4.9706315334622504,0]
[2030,"Morro_Bay_Offshore_Wind","CAISO","CAISO","Offshore_Wind",0,null,null,0,null,null,null,null,null,null,null,null,null,null,0,4.9706315334622504,0]
[2030,"Diablo_Canyon_Offshore_Wind_Ext_Tx","CAISO","CAISO","Offshore_Wind",0,null,null,0,null,null,null,null,null,null,null,null,null,null,0,4.9706315334622504,0]
[2030,"Cape_Mendocino_Offshore_Wind","CAISO","CAISO","Offshore_Wind",0,null,null,0,null,null,null,null,null,null,null,null,null,null,0,4.9706315334622504,0]
[2030,"Del_Norte_Offshore_Wind","CAISO","CAISO","Offshore_Wind",0,null,null,0,null,null,null,null,null,null,null,null,null,null,0,4.9706315334622504,0]
[2030,"CAISO_Existing_Pumped_Storage","CAISO","CAISO","Pumped_Hydro",1599.2,null,null,1599.2,null,null,null,null,null,null,null,null,null,null,0,4.9706315334622504,1599.2,null,null,null,null,1599.2]
[2030,"CAISO_New_Pumped_Storage","CAISO","CAISO","Pumped_Hydro",0,0,1986.47,1986.47,null,null,null,null,null,null,0,null,null,390248684.63999999,27543760.629999999,4.9706315334622504,0,null,1986.47,null,0,1986.47]
[2030,"CAISO_New_Flow_Battery","CAISO","CAISO","Flow_Battery",0,0,0,0,null,null,null,null,null,null,0,null,null,0,0,4.9706315334622504,0,null,0,null,0,0]
[2030,"CAISO_New_Flow_Battery_2","CAISO","CAISO","Flow_Battery",0,0,0,0,null,null,null,null,null,null,0,null,null,0,0,4.9706315334622504,0,null,0,null,0,0]
[2030,"CAISO_New_Flow_Battery_3","CAISO","CAISO","Flow_Battery",0,0,0,0,null,null,null,null,null,null,0,null,null,0,0,4.9706315334622504,0,null,0,null,0,0]
[2030,"CAISO_New_Flow_Battery_4","CAISO","CAISO","Flow_Battery",0,0,0,0,null,null,null,null,null,null,0,null,null,0,0,4.9706315334622504,0,null,0,null,0,0]
[2030,"CAISO_New_Flow_Battery_5","CAISO","CAISO","Flow_Battery",0,0,0,0,null,null,null,null,null,null,null,null,null,0,0,4.9706315334622504,0,null,0,null,0,0]
[2030,"CAISO_New_Li_Battery","CAISO","CAISO","Li_Battery",0,300.61,7785.84,7785.84,null,null,null,null,null,null,-24201.040000000001,null,null,1120105863.01,99366314.719999999,4.9706315334622504,0,null,7785.84,null,1617.45,7785.84]
[2030,"CAISO_BTM_Li_Battery","CAISO","CAISO","BTM_Li_Battery",92.14,0,0,92.14,null,null,null,null,null,null,0,null,null,0,878656.68,4.9706315334622504,92.14,null,0,null,0,57.59]
[2030,"CAISO_New_Li_Battery_2","CAISO","CAISO","Li_Battery",0,1502.75,5470.3,5470.3,null,null,null,null,null,null,-5546.07,null,null,564692313.66999996,56077262.93,4.9706315334622504,0,null,5470.3,null,0,4058.33]
[2030,"CAISO_New_Li_Battery_3","CAISO","CAISO","Li_Battery",0,789.65,789.65,789.65,null,null,null,null,null,null,0,null,null,24005529.850000001,2053547.44,4.9706315334622504,0,null,789.65,null,0,98.51]
[2030,"CAISO_New_Li_Battery_4","CAISO","CAISO","Li_Battery",0,0,0,0,null,null,null,null,null,null,0,null,null,0,0,4.9706315334622504,0,null,0,null,0,0]
[2030,"CAISO_New_Li_Battery_5","CAISO","CAISO","Li_Battery",0,0,0,0,null,null,null,null,null,null,null,null,null,0,0,4.9706315334622504,0,null,0,null,0,0]
[2030,"CAISO_New_Li_Battery_6","CAISO","CAISO","Li_Battery",0,0,0,0,null,null,null,null,null,null,null,null,null,0,0,4.9706315334622504,0,null,0,null,0,0]
[2030,"CAISO_Hydro","CAISO","CAISO","Hydro",7069.51,null,null,7069.51,null,null,null,null,null,null,null,null,null,null,0,4.9706315334622504,7069.51,null,null,null,null,5979.14]
[2030,"NW_Hydro","NW","NW","Hydro",31295.119999999999,null,null,31295.119999999999,null,null,null,null,null,null,null,null,null,null,0,4.9706315334622504,31295.119999999999]
[2030,"SW_Hydro","SW","SW","Hydro",2532.4299999999998,null,null,2532.4299999999998,null,null,null,null,null,null,null,null,null,null,0,4.9706315334622504,2532.4299999999998]
[2030,"LDWP_Hydro","LDWP","LDWP","Hydro",233.7,null,null,233.7,null,null,null,null,null,null,null,null,null,null,0,4.9706315334622504,233.7]
[2030,"BANC_Hydro","BANC","BANC","Hydro",2724.06,null,null,2724.06,null,null,null,null,null,null,null,null,null,null,0,4.9706315334622504,2724.06]
[2030,"IID_Hydro","IID","IID","Hydro",83.5,null,null,83.5,null,null,null,null,null,null,null,null,null,null,0,4.9706315334622504,83.5]
[2030,"NW_Hydro_for_CAISO","CAISO_NW_Hydro","CAISO_NW_Hydro","Hydro_NW_CAISO",2851.77,null,null,2851.77,null,null,null,null,null,null,null,null,null,null,0,4.9706315334622504,2851.77]
[2030,"Hydrogen_electrolysis","CAISO","CAISO","Hydrogen_Electrolysis",null,null,null,null,null,null,null,null,null,0,null,null,null,null,0,4.9706315334622504,0]
[2030,"CAISO_Shed_DR_Existing","CAISO","CAISO","CAISO_Conventional_DR",0,null,null,0,null,null,null,null,null,null,null,1,0,null,0,4.9706315334622504,0,null,null,null,null,0]
[2030,"CAISO_Shed_DR_Tranche1","CAISO","CAISO","CAISO_Conventional_DR",0,0,0,0,null,null,null,null,null,null,-140251.31,1,0,0,0,4.9706315334622504,0,null,0,null,0,0]
[2030,"CAISO_Shed_DR_Tranche2","CAISO","CAISO","CAISO_Conventional_DR",0,0,0,0,null,null,null,null,null,null,-70660.78,1,0,0,0,4.9706315334622504,0,null,0,null,0,0]
[2030,"CAISO_Shed_DR_Tranche3","CAISO","CAISO","CAISO_Conventional_DR",0,0,0,0,null,null,null,null,null,null,-1070.24,1,0,0,0,4.9706315334622504,0,null,0,null,0,0]
[2030,"CAISO_Shed_DR_Tranche4","CAISO","CAISO","CAISO_Conventional_DR",0,0,0,0,null,null,null,null,null,null,0,1,0,0,0,4.9706315334622504,0,null,0,null,0,0]
[2030,"CAISO_Shed_DR_Tranche5","CAISO","CAISO","CAISO_Conventional_DR",0,0,0,0,null,null,null,null,null,null,0,1,0,0,0,4.9706315334622504,0,null,0,null,0,0]
[2030,"CAISO_Shed_DR_Tranche6","CAISO","CAISO","CAISO_Conventional_DR",0,0,0,0,null,null,null,null,null,null,0,1,0,0,0,4.9706315334622504,0,null,0,null,0,0]
[2030,"CAISO_Shed_DR_Tranche7","CAISO","CAISO","CAISO_Conventional_DR",0,0,0,0,null,null,null,null,null,null,0,1,0,0,0,4.9706315334622504,0,null,0,null,0,0]
[2030,"CAISO_Shed_DR_Tranche8","CAISO","CAISO","CAISO_Conventional_DR",0,0,0,0,null,null,null,null,null,null,0,1,0,0,0,4.9706315334622504,0,null,0,null,0,0]
[2045,"CAISO_CHP","CAISO","CAISO","CAISO_CHP",0,null,null,0,null,null,null,null,null,null,null,null,null,null,0,6.6951633132812498,0,null,null,null,null,0]
[2045,"CAISO_Nuclear","CAISO","CAISO","CAISO_Nuclear",635,null,null,635,null,null,null,null,null,null,null,null,null,null,0,6.6951633132812498,635,null,null,null,null,630.65]
[2045,"CAISO_CCGT1","CAISO","CAISO","CAISO_CCGT1",13333.47,null,null,13333.47,null,null,null,null,null,null,null,532.4,25.04,null,148200393.30000001,6.6951633132812498,13333.47,0,null,null,null,12526.38]
[2045,"CAISO_CCGT2","CAISO","CAISO","CAISO_CCGT2",2927.93,null,null,2927.93,null,null,null,null,null,null,null,187.53,15.61,null,32543694.739999998,6.6951633132812498,2927.93,0,null,null,null,2927.58]
[2045,"CAISO_Coal","CAISO","CAISO","CAISO_Coal",0,null,null,0,null,null,null,null,null,null,null,849.97,0,null,0,6.6951633132812498,0,null,null,null,null,0]
[2045,"CAISO_Peaker1","CAISO","CAISO","CAISO_Peaker1",4913.93,null,null,3163,null,null,null,null,null,null,null,67.59,46.8,null,43316174.32,6.6951633132812498,3163,1750.93,null,null,null,2921.78]
[2045,"CAISO_Peaker2","CAISO","CAISO","CAISO_Peaker2",3682.71,null,null,1663.88,null,null,null,null,null,null,null,53,31.39,null,22786219.57,6.6951633132812498,1663.88,2018.83,null,null,null,1599.48]
[2045,"CAISO_Advanced_CCGT","CAISO","CAISO","CAISO_Advanced_CCGT",0,0,0,0,null,null,null,null,null,null,0,600,0,0,0,6.6951633132812498,0,0,0,0,0,0]
[2045,"CAISO_Aero_CT","CAISO","CAISO","CAISO_Aero_CT",0,0,0,0,null,null,null,null,null,null,0,100,0,0,0,6.6951633132812498,0,0,0,0,0,0]
[2045,"CAISO_Reciprocating_Engine","CAISO","CAISO","CAISO_Reciprocating_Engine",255.3,0,0,255.3,null,null,null,null,null,null,0,10.36,24.65,132.41999999999999,3496257.55,6.6951633132812498,255.3,0,0,0,0,254.7]
[2045,"CAISO_ST","CAISO","CAISO","CAISO_ST",0,null,null,0,null,null,null,null,null,null,null,341.83,0,null,0,6.6951633132812498,0,null,null,null,null,0]
[2045,"NW_Nuclear","NW","NW","NW_Nuclear",1756.56,null,null,1756.56,null,null,null,null,null,null,null,null,null,null,0,6.6951633132812498,1756.56]
[2045,"NW_Coal","NW","NW","NW_Coal",7363.8,null,null,7363.8,null,null,null,null,null,null,null,367.75,20.02,null,0,6.6951633132812498,7363.8]
[2045,"NW_CCGT","NW","NW","NW_CCGT",9573.43,null,null,9573.43,null,null,null,null,null,null,null,341.91,28,null,0,6.6951633132812498,9573.43]
[2045,"NW_Peaker","NW","NW","NW_Peaker",2587.5300000000002,null,null,2587.5300000000002,null,null,null,null,null,null,null,29.06,89.04,null,0,6.6951633132812498,2587.5300000000002]
[2045,"SW_Nuclear","SW","SW","SW_Nuclear",2998,null,null,2998,null,null,null,null,null,null,null,null,null,null,0,6.6951633132812498,2998]
[2045,"SW_Coal","SW","SW","SW_Coal",6140.6,null,null,6140.6,null,null,null,null,null,null,null,409.46,15,null,0,6.6951633132812498,6140.6]
[2045,"SW_CCGT","SW","SW","SW_CCGT",16156.7,null,null,16156.7,null,null,null,null,null,null,null,344.28,46.93,null,0,6.6951633132812498,16156.7]
[2045,"SW_Peaker","SW","SW","SW_Peaker",5481.92,null,null,5481.92,null,null,null,null,null,null,null,47.78,114.73,null,0,6.6951633132812498,5481.92]
[2045,"SW_ST","SW","SW","SW_ST",824.5,null,null,824.5,null,null,null,null,null,null,null,92.71,8.89,null,0,6.6951633132812498,824.5]
[2045,"LDWP_Nuclear","LDWP","LDWP","LDWP_Nuclear",407,null,null,407,null,null,null,null,null,null,null,null,null,null,0,6.6951633132812498,407]
[2045,"LDWP_Coal","LDWP","LDWP","LDWP_Coal",0,null,null,0,null,null,null,null,null,null,null,849.97,0,null,0,6.6951633132812498,0]
[2045,"LDWP_CCGT","LDWP","LDWP","LDWP_CCGT",2754.7,null,null,2754.7,null,null,null,null,null,null,null,385.96,7.14,null,0,6.6951633132812498,2754.7]
[2045,"LDWP_Peaker","LDWP","LDWP","LDWP_Peaker",1647,null,null,1647,null,null,null,null,null,null,null,82.35,20,null,0,6.6951633132812498,1647]
[2045,"LDWP_ST","LDWP","LDWP","LDWP_ST",197,null,null,197,null,null,null,null,null,null,null,110.22,1.79,null,0,6.6951633132812498,197]
[2045,"IID_CCGT","IID","IID","IID_CCGT",255.3,null,null,255.3,null,null,null,null,null,null,null,127.65,2,null,0,6.6951633132812498,255.3]
[2045,"IID_Peaker","IID","IID","IID_Peaker",327,null,null,327,null,null,null,null,null,null,null,36.090000000000003,9.06,null,0,6.6951633132812498,327]
[2045,"BANC_CCGT","BANC","BANC","BANC_CCGT",1797.5,null,null,1797.5,null,null,null,null,null,null,null,207.01,8.68,null,0,6.6951633132812498,1797.5]
[2045,"BANC_Peaker","BANC","BANC","BANC_Peaker",866.99,null,null,866.99,null,null,null,null,null,null,null,34.68,25,null,0,6.6951633132812498,866.99]
[2045,"BANC_Biomass_for_Other","BANC","BANC","Biomass",17.5,null,null,17.5,null,null,null,null,null,null,null,null,null,null,0,6.6951633132812498,17.5]
[2045,"BANC_Geothermal_for_Other","BANC","BANC","Geothermal",0,null,null,0,null,null,null,null,null,null,null,null,null,null,0,6.6951633132812498,0]
[2045,"CAISO_Biomass_for_Other","CAISO","CAISO","Biomass",11.7,null,null,11.7,null,null,null,null,null,null,null,null,null,null,0,6.6951633132812498,11.7,null,null,null,null,8.17]
[2045,"CAISO_Geothermal_for_Other","CAISO","CAISO","Geothermal",38.67,null,null,38.67,null,null,null,null,null,null,null,null,null,null,0,6.6951633132812498,38.67,null,null,null,null,23.82]
[2045,"IID_Biomass_for_Other","IID","IID","Biomass",77,null,null,77,null,null,null,null,null,null,null,null,null,null,0,6.6951633132812498,77]
[2045,"IID_Geothermal_for_Other","IID","IID","Geothermal",709.46,null,null,709.46,null,null,null,null,null,null,null,null,null,null,0,6.6951633132812498,709.46]
[2045,"LDWP_Biomass_for_Other","LDWP","LDWP","Biomass",0,null,null,0,null,null,null,null,null,null,null,null,null,null,0,6.6951633132812498,0]
[2045,"LDWP_Geothermal_for_Other","LDWP","LDWP","Geothermal",0,null,null,0,null,null,null,null,null,null,null,null,null,null,0,6.6951633132812498,0]
[2045,"NW_Biomass_for_Other","NW","NW","Biomass",544.1,null,null,544.1,null,null,null,null,null,null,null,null,null,null,0,6.6951633132812498,544.1]
[2045,"NW_Geothermal_for_Other","NW","NW","Geothermal",132.09,null,null,132.09,null,null,null,null,null,null,null,null,null,null,0,6.6951633132812498,132.09]
[2045,"SW_Biomass_for_Other","SW","SW","Biomass",107.53,null,null,107.53,null,null,null,null,null,null,null,null,null,null,0,6.6951633132812498,107.53]
[2045,"SW_Geothermal_for_Other","SW","SW","Geothermal",664.85,null,null,664.85,null,null,null,null,null,null,null,null,null,null,0,6.6951633132812498,664.85]
[2045,"CAISO_Biomass_for_CAISO","CAISO","CAISO","Biomass",889.05,null,null,889.05,null,null,null,null,null,null,null,null,null,null,0,6.6951633132812498,889.05,null,null,null,null,620.55999999999995]
[2045,"CAISO_Geothermal_for_CAISO","CAISO","CAISO","Geothermal",1812.64,null,null,1812.64,null,null,null,null,null,null,null,null,null,null,0,6.6951633132812498,1812.64,null,null,null,null,1116.5899999999999]
[2045,"IID_Geothermal_for_CAISO","IID","CAISO","Geothermal",83,null,null,83,null,null,null,null,null,null,null,null,null,null,0,6.6951633132812498,83]
[2045,"NW_Biomass_for_CAISO","NW","CAISO","Biomass",46,null,null,46,null,null,null,null,null,null,null,null,null,null,0,6.6951633132812498,46]
[2045,"NW_Geothermal_for_CAISO","NW","CAISO","Geothermal",0,null,null,0,null,null,null,null,null,null,null,null,null,null,0,6.6951633132812498,0]
[2045,"InState_Biomass","CAISO","CAISO","Biomass",0,1146.8499999999999,1146.8499999999999,1146.8499999999999,"None",1146.8499999999999,0,null,null,null,-138205.46,null,null,743118760.49000001,211885730.25,6.6951633132812498,0,null,1146.8499999999999,null,0,974.83]
[2045,"CAISO_Small_Hydro_for_CAISO","CAISO","CAISO","Small_Hydro",960.23,null,null,960.23,null,null,null,null,null,null,null,null,null,null,0,6.6951633132812498,960.23,null,null,null,null,480.11]
[2045,"BANC_Small_Hydro_for_CAISO","BANC","CAISO","Small_Hydro",0,null,null,0,null,null,null,null,null,null,null,null,null,null,0,6.6951633132812498,0]
[2045,"NW_Small_Hydro_for_CAISO","NW","CAISO","Small_Hydro",6.9,null,null,6.9,null,null,null,null,null,null,null,null,null,null,0,6.6951633132812498,6.9]
[2045,"CAISO_Small_Hydro_for_Other","CAISO","CAISO","Small_Hydro",13.8,null,null,13.8,null,null,null,null,null,null,null,null,null,null,0,6.6951633132812498,13.8,null,null,null,null,6.9]
[2045,"BANC_Small_Hydro_for_Other","BANC","BANC","Small_Hydro",41.2,null,null,41.2,null,null,null,null,null,null,null,null,null,null,0,6.6951633132812498,41.2]
[2045,"IID_Small_Hydro_for_Other","IID","IID","Small_Hydro",0,null,null,0,null,null,null,null,null,null,null,null,null,null,0,6.6951633132812498,0]
[2045,"LDWP_Small_Hydro_for_Other","LDWP","LDWP","Small_Hydro",56,null,null,56,null,null,null,null,null,null,null,null,null,null,0,6.6951633132812498,56]
[2045,"NW_Small_Hydro_for_Other","NW","NW","Small_Hydro",41,null,null,41,null,null,null,null,null,null,null,null,null,null,0,6.6951633132812498,41]
[2045,"SW_Small_Hydro_for_Other","SW","SW","Small_Hydro",0,null,null,0,null,null,null,null,null,null,null,null,null,null,0,6.6951633132812498,0]
[2045,"Greater_Imperial_Geothermal","CAISO","CAISO","Geothermal",0,1352.1,1352.1,1352.1,"SCADSNV-Greater_Imperial",826.91,525.19000000000005,null,null,null,-172454.84,null,null,750716646.88999999,201114590.49000001,6.6951633132812498,0,null,1352.1,null,0,728.45]
[2045,"Inyokern_North_Kramer_Geothermal","CAISO","CAISO","Geothermal",0,24,24,24,"Inyokern_North_Kramer-Greater_Kramer",24,0,null,null,null,-19101.66,null,null,14949675.08,3569817.45,6.6951633132812498,0,null,24,null,0,19.2]
[2045,"Northern_California_Ex_Geothermal","CAISO","CAISO","Geothermal",0,469,469,469,"Northern_California_Ex",469,0,null,null,null,-161407.67000000001,null,null,270943507.52999997,69760182.629999995,6.6951633132812498,0,null,469,null,0,379.89]
[2045,"Pacific_Northwest_Geothermal","CAISO","CAISO","Geothermal",0,null,null,0,null,null,null,null,null,null,null,null,null,null,0,6.6951633132812498,0,null,null,null,null,0]
[2045,"Riverside_Palm_Springs_Geothermal","CAISO","CAISO","Geothermal",0,32,32,32,"SCADSNV-Riverside_Palm_Springs",32,0,null,null,null,-124125.67,null,null,17349535.949999999,4759756.5999999996,6.6951633132812498,0,null,32,null,0,25.6]
[2045,"Solano_Geothermal","CAISO","CAISO","Geothermal",0,0,135,135,"Solano-Sacramento_River",135,0,null,null,null,-314804.7,null,null,66931904.969999999,20080223.149999999,6.6951633132812498,0,null,135,null,0,121.5]
[2045,"Southern_Nevada_Geothermal","CAISO","CAISO","Geothermal",0,320,320,320,"SCADSNV-Mountain_Pass_El_Dorado",320,0,null,null,null,-172760.91,null,null,172926037.24000001,46174364.82,6.6951633132812498,0,null,320,null,0,269.85000000000002]
[2045,"Customer_PV","CAISO","CAISO","Customer_PV",7269.29,null,null,7269.29,null,null,null,null,null,null,null,null,null,null,0,6.6951633132812498,7269.29]
[2045,"BANC_Solar_for_Other","BANC","BANC","Solar",3777.05,null,null,3777.05,null,null,null,null,null,null,null,null,null,null,0,6.6951633132812498,3777.05]
[2045,"CAISO_Solar_for_Other","CAISO","CAISO","Solar",12,null,null,12,null,null,null,null,null,null,null,null,null,null,0,6.6951633132812498,12]
[2045,"IID_Solar_for_Other","IID","IID","Solar",115.7,null,null,115.7,null,null,null,null,null,null,null,null,null,null,0,6.6951633132812498,115.7]
[2045,"LDWP_Solar_for_Other","LDWP","LDWP","Solar",3460.48,null,null,3460.48,null,null,null,null,null,null,null,null,null,null,0,6.6951633132812498,3460.48]
[2045,"NW_Solar_for_Other","NW","NW","Solar",2659.5,null,null,2659.5,null,null,null,null,null,null,null,null,null,null,0,6.6951633132812498,2659.5]
[2045,"SW_Solar_for_Other","SW","SW","Solar",1637.26,null,null,1637.26,null,null,null,null,null,null,null,null,null,null,0,6.6951633132812498,1637.26]
[2045,"CAISO_Solar_for_CAISO","CAISO","CAISO","Solar",14875.45,null,null,14875.45,null,null,null,null,null,null,null,null,null,null,0,6.6951633132812498,14875.45]
[2045,"IID_Solar_for_CAISO","IID","CAISO","Solar",49.9,null,null,49.9,null,null,null,null,null,null,null,null,null,null,0,6.6951633132812498,49.9]
[2045,"SW_Solar_for_CAISO","SW","CAISO","Solar",65,null,null,65,null,null,null,null,null,null,null,null,null,null,0,6.6951633132812498,65]
[2045,"BANC_Wind_for_Other","BANC","BANC","Wind",0,null,null,0,null,null,null,null,null,null,null,null,null,null,0,6.6951633132812498,0]
[2045,"CAISO_Wind_for_Other","CAISO","CAISO","Wind",279.98,null,null,279.98,null,null,null,null,null,null,null,null,null,null,0,6.6951633132812498,279.98]
[2045,"IID_Wind_for_Other","IID","IID","Wind",0,null,null,0,null,null,null,null,null,null,null,null,null,null,0,6.6951633132812498,0]
[2045,"LDWP_Wind_for_Other","LDWP","LDWP","Wind",704.84,null,null,704.84,null,null,null,null,null,null,null,null,null,null,0,6.6951633132812498,704.84]
[2045,"NW_Wind_for_Other","NW","NW","Wind",10956.09,null,null,10956.09,null,null,null,null,null,null,null,null,null,null,0,6.6951633132812498,10956.09]
[2045,"SW_Wind_for_Other","SW","SW","Wind",1872.7,null,null,1872.7,null,null,null,null,null,null,null,null,null,null,0,6.6951633132812498,1872.7]
[2045,"CAISO_Wind_for_CAISO","CAISO","CAISO","Wind",7176.33,null,null,7176.33,null,null,null,null,null,null,null,null,null,null,0,6.6951633132812498,7176.33]
[2045,"LDWP_Wind_for_CAISO","LDWP","CAISO","Wind",5.09,null,null,5.09,null,null,null,null,null,null,null,null,null,null,0,6.6951633132812498,5.09]
[2045,"NW_Wind_for_CAISO","NW","CAISO","Wind",1417.29,null,null,1417.29,null,null,null,null,null,null,null,null,null,null,0,6.6951633132812498,1417.29]
[2045,"SW_Wind_for_CAISO","SW","CAISO","Wind",50.4,null,null,50.4,null,null,null,null,null,null,null,null,null,null,0,6.6951633132812498,50.4]
[2045,"Carrizo_Solar","CAISO","CAISO","Solar",0,9907,9907,9907,"Kern_Greater_Carrizo-SPGE-Carrizo",9907,0,null,null,null,-22341.91,null,null,667453570.49000001,81115942.120000005,6.6951633132812498,0,null,9907,null,0]
[2045,"Carrizo_Wind","CAISO","CAISO","Wind",0,0,287,287,"Kern_Greater_Carrizo-SPGE-Carrizo",287,0,null,null,null,-4351.91,null,null,32233705.789999999,11918394.439999999,6.6951633132812498,0,null,287,null,0]
[2045,"Central_Valley_North_Los_Banos_Solar","CAISO","CAISO","Solar",0,3348.83,3348.83,3348.83,"Central_Valley_North_Los_Banos-SPGE",3348.83,0,null,null,null,0,null,null,225617012.66999999,27419340.239999998,6.6951633132812498,0,null,3348.83,null,0]
[2045,"Central_Valley_North_Los_Banos_Wind","CAISO","CAISO","Wind",0,0,173,173,"Central_Valley_North_Los_Banos-SPGE",173,0,null,null,null,-42570.82,null,null,16593876.300000001,7240578.1900000004,6.6951633132812498,0,null,173,null,0]
[2045,"Distributed_Solar","CAISO","CAISO","Solar",0,0,0,0,"None",0,0,null,null,null,-8782.9599999999991,null,null,0,0,6.6951633132812498,0,null,0,null,0]
[2045,"Mountain_Pass_El_Dorado_Solar","CAISO","CAISO","Solar",0,0,248,248,null,248,0,null,null,null,-107648.49,null,null,17374223.690000001,2508208.2799999998,6.6951633132812498,0,null,248,null,0]
[2045,"Greater_Imperial_Solar","CAISO","CAISO","Solar",0,0,866.98,866.98,"SCADSNV-Greater_Imperial",0,866.98,null,null,null,0,null,null,64805169.43,8546758.3599999994,6.6951633132812498,0,null,866.98,null,0]
[2045,"Greater_Imperial_Wind","CAISO","CAISO","Wind",0,0,0,0,"SCADSNV-Greater_Imperial",0,0,null,null,null,-229939.92,null,null,0,0,6.6951633132812498,0,null,0,null,0]
[2045,"Greater_Kramer_Wind","CAISO","CAISO","Wind",0,0,0,0,"Greater_Kramer",0,0,null,null,null,-58533.52,null,null,0,0,6.6951633132812498,0,null,0,null,0]
[2045,"Humboldt_Wind","CAISO","CAISO","Wind",0,0,34,34,"Sacramento_River-Humboldt",0,34,null,null,null,-130790.07,null,null,3118138.06,1432688.81,6.6951633132812498,0,null,34,null,0]
[2045,"Inyokern_North_Kramer_Solar","CAISO","CAISO","Solar",0,0,73,73,"Inyokern_North_Kramer-Greater_Kramer",73,0,null,null,null,0,null,null,4574365.26,756500.06,6.6951633132812498,0,null,73,null,0]
[2045,"Kern_Greater_Carrizo_Solar","CAISO","CAISO","Solar",0,0,8329,8329,"Kern_Greater_Carrizo-SPGE",7629,700,null,null,null,-35645.82,null,null,605690708.38999999,78903791.239999995,6.6951633132812498,0,null,8329,null,0]
[2045,"Kern_Greater_Carrizo_Wind","CAISO","CAISO","Wind",0,0,60,60,"Kern_Greater_Carrizo-SPGE",60,0,null,null,null,-53945.61,null,null,5920164.4000000004,2511183.19,6.6951633132812498,0,null,60,null,0]
[2045,"Kramer_Inyokern_Ex_Solar","CAISO","CAISO","Solar",0,0,0,0,"Kramer_Inyokern_Ex",0,0,null,null,null,0,null,null,0,0,6.6951633132812498,0,null,0,null,0]
[2045,"Kramer_Inyokern_Ex_Wind","CAISO","CAISO","Wind",0,0,0,0,"Kramer_Inyokern_Ex",0,0,null,null,null,0,null,null,0,0,6.6951633132812498,0,null,0,null,0]
[2045,"North_Victor_Solar","CAISO","CAISO","Solar",0,0,300,300,"North_Victor-Greater_Kramer",300,0,null,null,null,0,null,null,18391473,3092690.85,6.6951633132812498,0,null,300,null,0]
[2045,"Northern_California_Ex_Solar","CAISO","CAISO","Solar",0,0,396.9,396.9,"Northern_California_Ex",396.9,0,null,null,null,0,null,null,28831999.59,3733714.05,6.6951633132812498,0,null,396.9,null,0]
[2045,"Northern_California_Ex_Wind","CAISO","CAISO","Wind",0,0,865.9,865.9,"Sacramento_River",865.9,0,null,null,null,-149101.59,null,null,89470506.049999997,36240558.710000001,6.6951633132812498,0,null,865.9,null,0]
[2045,"NW_Ext_Tx_Wind","CAISO","CAISO","Wind",0,0,1500,1500,"Sacramento_River",1500,0,null,null,null,-153041.16,null,null,231212203.80000001,60753824.890000001,6.6951633132812498,0,null,1500,null,0]
[2045,"Riverside_Palm_Springs_Solar","CAISO","CAISO","Solar",0,0,0,0,"SCADSNV-Riverside_Palm_Springs",0,0,null,null,null,0,null,null,0,0,6.6951633132812498,0,null,0,null,0]
[2045,"Sacramento_River_Solar","CAISO","CAISO","Solar",0,21461.32,23484,23484,"Sacramento_River",21618,1866,null,null,null,-7753.04,null,null,1592823739.51,194747446.24000001,6.6951633132812498,0,null,23484,null,0]
[2045,"Sacramento_River_Wind","CAISO","CAISO","Wind",0,null,null,0,null,null,null,null,null,null,null,null,null,null,0,6.6951633132812498,0]
[2045,"SCADSNV_Solar","CAISO","CAISO","Solar",0,0,2150,2150,"SCADSNV",0,2150,null,null,null,0,null,null,160708567.97999999,21194872.399999999,6.6951633132812498,0,null,2150,null,0]
[2045,"SCADSNV_Wind","CAISO","CAISO","Wind",0,0,0,0,"SCADSNV",0,0,null,null,null,-41747.99,null,null,0,0,6.6951633132812498,0,null,0,null,0]
[2045,"Solano_Solar","CAISO","CAISO","Solar",0,0,700,700,"Solano-Sacramento_River",0,700,null,null,null,0,null,null,50850087.460000001,6585033.5999999996,6.6951633132812498,0,null,700,null,0]
[2045,"Solano_subzone_Solar","CAISO","CAISO","Solar",0,0,0,0,"Solano-Solano_subzone-Sacramento_River",0,0,null,null,null,0,null,null,0,0,6.6951633132812498,0,null,0,null,0]
[2045,"Solano_subzone_Wind","CAISO","CAISO","Wind",0,0,0,0,"Solano-Solano_subzone-Sacramento_River",0,0,null,null,null,0,null,null,0,0,6.6951633132812498,0,null,0,null,0]
[2045,"Solano_Wind","CAISO","CAISO","Wind",0,0,464,464,"Solano-Sacramento_River",464,0,null,null,null,0,null,null,45345007.369999997,19419816.649999999,6.6951633132812498,0,null,464,null,0]
[2045,"Southern_California_Desert_Ex_Solar","CAISO","CAISO","Solar",0,0,862,862,"Southern_California_Desert_Ex",862,0,null,null,null,0,null,null,52844832.43,8886331.7200000007,6.6951633132812498,0,null,862,null,0]
[2045,"Southern_California_Desert_Ex_Wind","CAISO","CAISO","Wind",0,0,0,0,"Southern_California_Desert_Ex",0,0,null,null,null,0,null,null,0,0,6.6951633132812498,0,null,0,null,0]
[2045,"Southern_Nevada_Solar","CAISO","CAISO","Solar",0,0,0,0,"SCADSNV-GLW_VEA",0,0,null,null,null,0,null,null,0,0,6.6951633132812498,0,null,0,null,0]
[2045,"Southern_Nevada_Wind","CAISO","CAISO","Wind",0,0,442.03,442.03,"SCADSNV-GLW_VEA",442.03,0,null,null,null,0,null,null,45026111.390000001,18139039.100000001,6.6951633132812498,0,null,442.03,null,0]
[2045,"SW_Ext_Tx_Wind","CAISO","CAISO","Wind",0,500,500,500,"SCADSNV-Riverside_Palm_Springs",500,0,null,null,null,-177722.23,null,null,99929977.060000002,16926032.079999998,6.6951633132812498,0,null,500,null,0]
[2045,"Tehachapi_Ex_Solar","CAISO","CAISO","Solar",0,0,0,0,"Tehachapi_Ex",0,0,null,null,null,0,null,null,0,0,6.6951633132812498,0,null,0,null,0]
[2045,"Tehachapi_Solar","CAISO","CAISO","Solar",0,0,4801,4801,"Tehachapi",4001,800,null,null,null,-77019.820000000007,null,null,315415036.95999998,50711183.93,6.6951633132812498,0,null,4801,null,0]
[2045,"Tehachapi_Wind","CAISO","CAISO","Wind",0,0,275,275,"Tehachapi",275,0,null,null,null,-221809.29,null,null,25284252.02,11669739.4,6.6951633132812498,0,null,275,null,0]
[2045,"Westlands_Ex_Solar","CAISO","CAISO","Solar",0,0,1778.57,1778.57,"Westlands_Ex",1778.57,0,null,null,null,0,null,null,105761198.36,18134769.93,6.6951633132812498,0,null,1778.57,null,0]
[2045,"Westlands_Ex_Wind","CAISO","CAISO","Wind",0,null,null,0,null,null,null,null,null,null,null,null,null,null,0,6.6951633132812498,0]
[2045,"Westlands_Solar","CAISO","CAISO","Solar",0,55532.56,56150.5,56150.5,"Central_Valley_North_Los_Banos-SPGE",56150.5,0,null,null,null,-17358.98,null,null,3786902984.9899998,460791642,6.6951633132812498,0,null,56150.5,null,0]
[2045,"Arizona_Solar","CAISO","CAISO","Solar",0,0,3113,3113,"SCADSNV-Riverside_Palm_Springs",563,2550,null,null,null,0,null,null,220004751.13,30995500.07,6.6951633132812498,0,null,3113,null,0]
[2045,"Arizona_Wind","CAISO","CAISO","Wind",0,null,null,0,null,null,null,null,null,null,null,null,null,null,0,6.6951633132812498,0]
[2045,"Baja_California_Solar","CAISO","CAISO","Solar",0,null,null,0,null,null,null,null,null,null,null,null,null,null,0,6.6951633132812498,0]
[2045,"Baja_California_Wind","CAISO","CAISO","Wind",0,0,600,600,"SCADSNV-Greater_Imperial",92.17,507.83,null,null,null,-193652.24,null,null,69569061.219999999,23716305.309999999,6.6951633132812498,0,null,600,null,0]
[2045,"Idaho_Wind","CAISO","CAISO","Wind",0,null,null,0,null,null,null,null,null,null,null,null,null,null,0,6.6951633132812498,0]
[2045,"New_Mexico_Solar","CAISO","CAISO","Solar",0,null,null,0,null,null,null,null,null,null,null,null,null,null,0,6.6951633132812498,0]
[2045,"New_Mexico_Wind","CAISO","CAISO","Wind",0,163.13,1500,1500,"SCADSNV-Riverside_Palm_Springs",1500,0,null,null,null,-232407.26,null,null,333006537.44999999,67483201.760000005,6.6951633132812498,0,null,1500,null,0]
[2045,"Utah_Solar","CAISO","CAISO","Solar",0,null,null,0,null,null,null,null,null,null,null,null,null,null,0,6.6951633132812498,0]
[2045,"Utah_Wind","CAISO","CAISO","Wind",0,null,null,0,null,null,null,null,null,null,null,null,null,null,0,6.6951633132812498,0]
[2045,"Wyoming_Wind","CAISO","CAISO","Wind",0,1500,1500,1500,"SCADSNV-Mountain_Pass_El_Dorado",1500,0,null,null,null,-255189.33,null,null,360273082.76999998,60670633.359999999,6.6951633132812498,0,null,1500,null,0]
[2045,"Pacific_Northwest_Wind","CAISO","CAISO","Wind",0,null,null,0,null,null,null,null,null,null,null,null,null,null,0,6.6951633132812498,0]
[2045,"Diablo_Canyon_Offshore_Wind","CAISO","CAISO","Offshore_Wind",0,null,null,0,null,null,null,null,null,null,null,null,null,null,0,6.6951633132812498,0]
[2045,"Humboldt_Bay_Offshore_Wind","CAISO","CAISO","Offshore_Wind",0,null,null,0,null,null,null,null,null,null,null,null,null,null,0,6.6951633132812498,0]
[2045,"Morro_Bay_Offshore_Wind","CAISO","CAISO","Offshore_Wind",0,null,null,0,null,null,null,null,null,null,null,null,null,null,0,6.6951633132812498,0]
[2045,"Diablo_Canyon_Offshore_Wind_Ext_Tx","CAISO","CAISO","Offshore_Wind",0,null,null,0,null,null,null,null,null,null,null,null,null,null,0,6.6951633132812498,0]
[2045,"Cape_Mendocino_Offshore_Wind","CAISO","CAISO","Offshore_Wind",0,null,null,0,null,null,null,null,null,null,null,null,null,null,0,6.6951633132812498,0]
[2045,"Del_Norte_Offshore_Wind","CAISO","CAISO","Offshore_Wind",0,null,null,0,null,null,null,null,null,null,null,null,null,null,0,6.6951633132812498,0]
[2045,"CAISO_Existing_Pumped_Storage","CAISO","CAISO","Pumped_Hydro",1599.2,null,null,1599.2,null,null,null,null,null,null,null,null,null,null,0,6.6951633132812498,1599.2,null,null,null,null,1599.2]
[2045,"CAISO_New_Pumped_Storage","CAISO","CAISO","Pumped_Hydro",0,0,1986.47,1986.47,null,null,null,null,null,null,0,null,null,390248684.63999999,27543760.629999999,6.6951633132812498,0,null,1986.47,null,0,1986.47]
[2045,"CAISO_New_Flow_Battery","CAISO","CAISO","Flow_Battery",0,0,0,0,null,null,null,null,null,null,0,null,null,0,0,6.6951633132812498,0,null,0,null,0,0]
[2045,"CAISO_New_Flow_Battery_2","CAISO","CAISO","Flow_Battery",0,0,0,0,null,null,null,null,null,null,0,null,null,0,0,6.6951633132812498,0,null,0,null,0,0]
[2045,"CAISO_New_Flow_Battery_3","CAISO","CAISO","Flow_Battery",0,0,0,0,null,null,null,null,null,null,0,null,null,0,0,6.6951633132812498,0,null,0,null,0,0]
[2045,"CAISO_New_Flow_Battery_4","CAISO","CAISO","Flow_Battery",0,0,0,0,null,null,null,null,null,null,0,null,null,0,0,6.6951633132812498,0,null,0,null,0,0]
[2045,"CAISO_New_Flow_Battery_5","CAISO","CAISO","Flow_Battery",0,0,0,0,null,null,null,null,null,null,null,null,null,0,0,6.6951633132812498,0,null,0,null,0,0]
[2045,"CAISO_New_Li_Battery","CAISO","CAISO","Li_Battery",0,1235.95,9021.7900000000009,9021.7900000000009,null,null,null,null,null,null,-13420.82,null,null,1601376688.0799999,150791173.69999999,6.6951633132812498,0,null,9021.7900000000009,null,1617.45,9021.7900000000009]
[2045,"CAISO_BTM_Li_Battery","CAISO","CAISO","BTM_Li_Battery",92.14,0,0,92.14,null,null,null,null,null,null,0,null,null,0,878656.68,6.6951633132812498,92.14,null,0,null,0,57.59]
[2045,"CAISO_New_Li_Battery_2","CAISO","CAISO","Li_Battery",0,863.26,6333.56,6333.56,null,null,null,null,null,null,-9987.52,null,null,922708958.86000001,94365800.239999995,6.6951633132812498,0,null,6333.56,null,0,4807.17]
[2045,"CAISO_New_Li_Battery_3","CAISO","CAISO","Li_Battery",0,8694.15,9483.7999999999993,9483.7999999999993,null,null,null,null,null,null,-6283.56,null,null,1082171619.6500001,111538367.84,6.6951633132812498,0,null,9483.7999999999993,null,0,4732.41]
[2045,"CAISO_New_Li_Battery_4","CAISO","CAISO","Li_Battery",0,6221.3,6221.3,6221.3,null,null,null,null,null,null,-2720.99,null,null,870087566.10000002,90580975.670000002,6.6951633132812498,0,null,6221.3,null,0,1580.21]
[2045,"CAISO_New_Li_Battery_5","CAISO","CAISO","Li_Battery",0,29773.11,29773.11,29773.11,null,null,null,null,null,null,null,null,null,3975216531.29,413033321.56,6.6951633132812498,0,null,29773.11,null,0,1875.71]
[2045,"CAISO_New_Li_Battery_6","CAISO","CAISO","Li_Battery",0,0,0,0,null,null,null,null,null,null,null,null,null,0,0,6.6951633132812498,0,null,0,null,0,0]
[2045,"CAISO_Hydro","CAISO","CAISO","Hydro",7069.51,null,null,7069.51,null,null,null,null,null,null,null,null,null,null,0,6.6951633132812498,7069.51,null,null,null,null,5979.14]
[2045,"NW_Hydro","NW","NW","Hydro",31287.62,null,null,31287.62,null,null,null,null,null,null,null,null,null,null,0,6.6951633132812498,31287.62]
[2045,"SW_Hydro","SW","SW","Hydro",2532.4299999999998,null,null,2532.4299999999998,null,null,null,null,null,null,null,null,null,null,0,6.6951633132812498,2532.4299999999998]
[2045,"LDWP_Hydro","LDWP","LDWP","Hydro",233.7,null,null,233.7,null,null,null,null,null,null,null,null,null,null,0,6.6951633132812498,233.7]
[2045,"BANC_Hydro","BANC","BANC","Hydro",2724.06,null,null,2724.06,null,null,null,null,null,null,null,null,null,null,0,6.6951633132812498,2724.06]
[2045,"IID_Hydro","IID","IID","Hydro",83.5,null,null,83.5,null,null,null,null,null,null,null,null,null,null,0,6.6951633132812498,83.5]
[2045,"NW_Hydro_for_CAISO","CAISO_NW_Hydro","CAISO_NW_Hydro","Hydro_NW_CAISO",2851.77,null,null,2851.77,null,null,null,null,null,null,null,null,null,null,0,6.6951633132812498,2851.77]
[2045,"Hydrogen_electrolysis","CAISO","CAISO","Hydrogen_Electrolysis",null,null,null,null,null,null,null,null,null,450.41,null,null,null,null,0,6.6951633132812498,450.41]
[2045,"CAISO_Shed_DR_Existing","CAISO","CAISO","CAISO_Conventional_DR",0,null,null,0,null,null,null,null,null,null,null,1,0,null,0,6.6951633132812498,0,null,null,null,null,0]
[2045,"CAISO_Shed_DR_Tranche1","CAISO","CAISO","CAISO_Conventional_DR",0,0,0,0,null,null,null,null,null,null,0,1,0,0,0,6.6951633132812498,0,null,0,null,0,0]
[2045,"CAISO_Shed_DR_Tranche2","CAISO","CAISO","CAISO_Conventional_DR",0,0,0,0,null,null,null,null,null,null,0,1,0,0,0,6.6951633132812498,0,null,0,null,0,0]
[2045,"CAISO_Shed_DR_Tranche3","CAISO","CAISO","CAISO_Conventional_DR",0,0,0,0,null,null,null,null,null,null,0,1,0,0,0,6.6951633132812498,0,null,0,null,0,0]
[2045,"CAISO_Shed_DR_Tranche4","CAISO","CAISO","CAISO_Conventional_DR",0,0,0,0,null,null,null,null,null,null,0,1,0,0,0,6.6951633132812498,0,null,0,null,0,0]
[2045,"CAISO_Shed_DR_Tranche5","CAISO","CAISO","CAISO_Conventional_DR",0,0,0,0,null,null,null,null,null,null,0,1,0,0,0,6.6951633132812498,0,null,0,null,0,0]
[2045,"CAISO_Shed_DR_Tranche6","CAISO","CAISO","CAISO_Conventional_DR",0,0,0,0,null,null,null,null,null,null,0,1,0,0,0,6.6951633132812498,0,null,0,null,0,0]
[2045,"CAISO_Shed_DR_Tranche7","CAISO","CAISO","CAISO_Conventional_DR",0,0,0,0,null,null,null,null,null,null,0,1,0,0,0,6.6951633132812498,0,null,0,null,0,0]
[2045,"CAISO_Shed_DR_Tranche8","CAISO","CAISO","CAISO_Conventional_DR",0,0,0,0,null,null,null,null,null,null,0,1,0,0,0,6.6951633132812498,0,null,0,null,0,0]

{"sheet":"raw_rps","index":15,"n_rows":10,"n_cols":17,"rows_kept":10,"cut":false,"hidden":false,"merged":[]}
[]
["zone","period","rps_eligible_gen_mwh","scheduled_curtailment_mwh","Subhourly_Downward_LF_Energy_MWh","rps_storage_losses_mwh","rps_target_mwh","rps_banked_mwh","rps_constraint_dual_$","rps_nonmodeled_mwh","rps_net_bank_spent_mwh","rps_previously_banked_mwh","pipeline_biogas_generation_mwh","pipeline_biogas_cost_$_per_year","pipeline_biogas_max_dual_$_per_mmbtu","rps_unbundled_fraction_limit_dual_$_per_mwh","rps_target_before_ee_mwh"]
["CAISO",2020,86991542.040000007,116709.87,142199.98000000001,770898.73,68692029.469999999,null,0,2847608.82,0,0,0,0,0,0,68692029.469999999]
["CAISO",2021,93794821.170000002,437637.2,96265.63,1367407.05,75841873.359999999,null,0,2847608.82,0,0,0,0,0,0,75841873.359999999]
["CAISO",2022,107145961.98,593799.29,198395.94,1482597.42,83389909.450000003,null,0,2847608.82,0,0,0,0,0,0,83389909.450000003]
["CAISO",2023,113186700.81,727666.96,331123.14,1702602.33,91058532.650000006,null,0,2847608.82,0,0,0,0,0,0,91058532.650000006]
["CAISO",2024,121969410.79000001,788755.48,298311.92,2179778.92,98720234.099999994,null,0,2847608.82,4908539,4908539,0,0,0,0,98720234.099999994]
["CAISO",2026,136231011.68000001,760663.76,169503.55,3637028.85,114233152.79000001,null,0,2847608.82,15707105,15707105,0,0,0,0,114233152.79000001]
["CAISO",2030,169280088.77000001,3918728.28,749698.83,5718036.1100000003,145994842.19,null,0,2847608.82,0,0,0,0,0,0,145994842.19]
["CAISO",2045,392251647.38999999,51647644.490000002,3623999.33,27634333.300000001,303396832.54000002,null,0,1307955.6000000001,0,0,0,0,0,0,303396832.54000002]

{"sheet":"raw_storage_build","index":16,"n_rows":114,"n_cols":9,"rows_kept":114,"cut":false,"hidden":false,"merged":[]}
[]
["period","resource","zone","contract","technology","planned_energy_capacity_mwh","new_build_mwh","cumulative_new_build_mwh","total_energy_capacity_mwh"]
[2020,"CAISO_Existing_Pumped_Storage","CAISO","CAISO","Pumped_Hydro",252821.12,null,null,252821.12]
[2020,"CAISO_New_Pumped_Storage","CAISO","CAISO","Pumped_Hydro",0,0,0,0]
[2020,"CAISO_New_Flow_Battery","CAISO","CAISO","Flow_Battery",0,0,0,0]
[2020,"CAISO_New_Flow_Battery_2","CAISO","CAISO","Flow_Battery",0,0,0,0]
[2020,"CAISO_New_Flow_Battery_3","CAISO","CAISO","Flow_Battery",0,0,0,0]
[2020,"CAISO_New_Flow_Battery_4","CAISO","CAISO","Flow_Battery",0,0,0,0]
[2020,"CAISO_New_Flow_Battery_5","CAISO","CAISO","Flow_Battery",0,0,0,0]
[2020,"CAISO_New_Li_Battery","CAISO","CAISO","Li_Battery",2914.05,10758.35,10758.35,13672.4]
[2020,"CAISO_BTM_Li_Battery","CAISO","CAISO","BTM_Li_Battery",230.35,0,0,230.35]
[2020,"CAISO_New_Li_Battery_2","CAISO","CAISO","Li_Battery",0,0,0,0]
[2020,"CAISO_New_Li_Battery_3","CAISO","CAISO","Li_Battery",0,0,0,0]
[2020,"CAISO_New_Li_Battery_4","CAISO","CAISO","Li_Battery",0,0,0,0]
[2020,"CAISO_New_Li_Battery_5","CAISO","CAISO","Li_Battery",0,0,0,0]
[2020,"CAISO_New_Li_Battery_6","CAISO","CAISO","Li_Battery",0,0,0,0]
[2021,"CAISO_Existing_Pumped_Storage","CAISO","CAISO","Pumped_Hydro",252821.12,null,null,252821.12]
[2021,"CAISO_New_Pumped_Storage","CAISO","CAISO","Pumped_Hydro",0,0,0,0]
[2021,"CAISO_New_Flow_Battery","CAISO","CAISO","Flow_Battery",0,0,0,0]
[2021,"CAISO_New_Flow_Battery_2","CAISO","CAISO","Flow_Battery",0,0,0,0]
[2021,"CAISO_New_Flow_Battery_3","CAISO","CAISO","Flow_Battery",0,0,0,0]
[2021,"CAISO_New_Flow_Battery_4","CAISO","CAISO","Flow_Battery",0,0,0,0]
[2021,"CAISO_New_Flow_Battery_5","CAISO","CAISO","Flow_Battery",0,0,0,0]
[2021,"CAISO_New_Li_Battery","CAISO","CAISO","Li_Battery",3965.55,9467.94,20226.29,24191.84]
[2021,"CAISO_BTM_Li_Battery","CAISO","CAISO","BTM_Li_Battery",230.35,0,0,230.35]
[2021,"CAISO_New_Li_Battery_2","CAISO","CAISO","Li_Battery",0,0,0,0]
[2021,"CAISO_New_Li_Battery_3","CAISO","CAISO","Li_Battery",0,0,0,0]
[2021,"CAISO_New_Li_Battery_4","CAISO","CAISO","Li_Battery",0,0,0,0]
[2021,"CAISO_New_Li_Battery_5","CAISO","CAISO","Li_Battery",0,0,0,0]
[2021,"CAISO_New_Li_Battery_6","CAISO","CAISO","Li_Battery",0,0,0,0]
[2022,"CAISO_Existing_Pumped_Storage","CAISO","CAISO","Pumped_Hydro",252821.12,null,null,252821.12]
[2022,"CAISO_New_Pumped_Storage","CAISO","CAISO","Pumped_Hydro",0,0,0,0]
[2022,"CAISO_New_Flow_Battery","CAISO","CAISO","Flow_Battery",0,0,0,0]
[2022,"CAISO_New_Flow_Battery_2","CAISO","CAISO","Flow_Battery",0,0,0,0]
[2022,"CAISO_New_Flow_Battery_3","CAISO","CAISO","Flow_Battery",0,0,0,0]
[2022,"CAISO_New_Flow_Battery_4","CAISO","CAISO","Flow_Battery",0,0,0,0]
[2022,"CAISO_New_Flow_Battery_5","CAISO","CAISO","Flow_Battery",0,0,0,0]
[2022,"CAISO_New_Li_Battery","CAISO","CAISO","Li_Battery",4260.55,0,20226.29,24486.84]
[2022,"CAISO_BTM_Li_Battery","CAISO","CAISO","BTM_Li_Battery",230.35,0,0,230.35]
[2022,"CAISO_New_Li_Battery_2","CAISO","CAISO","Li_Battery",0,0,0,0]
[2022,"CAISO_New_Li_Battery_3","CAISO","CAISO","Li_Battery",0,0,0,0]
[2022,"CAISO_New_Li_Battery_4","CAISO","CAISO","Li_Battery",0,0,0,0]
[2022,"CAISO_New_Li_Battery_5","CAISO","CAISO","Li_Battery",0,0,0,0]
[2022,"CAISO_New_Li_Battery_6","CAISO","CAISO","Li_Battery",0,0,0,0]
[2023,"CAISO_Existing_Pumped_Storage","CAISO","CAISO","Pumped_Hydro",252821.12,null,null,252821.12]
[2023,"CAISO_New_Pumped_Storage","CAISO","CAISO","Pumped_Hydro",0,0,0,0]
[2023,"CAISO_New_Flow_Battery","CAISO","CAISO","Flow_Battery",0,0,0,0]
[2023,"CAISO_New_Flow_Battery_2","CAISO","CAISO","Flow_Battery",0,0,0,0]
[2023,"CAISO_New_Flow_Battery_3","CAISO","CAISO","Flow_Battery",0,0,0,0]
[2023,"CAISO_New_Flow_Battery_4","CAISO","CAISO","Flow_Battery",0,0,0,0]
[2023,"CAISO_New_Flow_Battery_5","CAISO","CAISO","Flow_Battery",0,0,0,0]
[2023,"CAISO_New_Li_Battery","CAISO","CAISO","Li_Battery",4630.55,887.21,21113.5,25744.05]
[2023,"CAISO_BTM_Li_Battery","CAISO","CAISO","BTM_Li_Battery",230.35,0,0,230.35]
[2023,"CAISO_New_Li_Battery_2","CAISO","CAISO","Li_Battery",0,0,0,0]
[2023,"CAISO_New_Li_Battery_3","CAISO","CAISO","Li_Battery",0,0,0,0]
[2023,"CAISO_New_Li_Battery_4","CAISO","CAISO","Li_Battery",0,0,0,0]
[2023,"CAISO_New_Li_Battery_5","CAISO","CAISO","Li_Battery",0,0,0,0]
[2023,"CAISO_New_Li_Battery_6","CAISO","CAISO","Li_Battery",0,0,0,0]
[2024,"CAISO_Existing_Pumped_Storage","CAISO","CAISO","Pumped_Hydro",252821.12,null,null,252821.12]
[2024,"CAISO_New_Pumped_Storage","CAISO","CAISO","Pumped_Hydro",0,0,0,0]
[2024,"CAISO_New_Flow_Battery","CAISO","CAISO","Flow_Battery",0,0,0,0]
[2024,"CAISO_New_Flow_Battery_2","CAISO","CAISO","Flow_Battery",0,0,0,0]
[2024,"CAISO_New_Flow_Battery_3","CAISO","CAISO","Flow_Battery",0,0,0,0]
[2024,"CAISO_New_Flow_Battery_4","CAISO","CAISO","Flow_Battery",0,0,0,0]
[2024,"CAISO_New_Flow_Battery_5","CAISO","CAISO","Flow_Battery",0,0,0,0]
[2024,"CAISO_New_Li_Battery","CAISO","CAISO","Li_Battery",4852.3500000000004,3282.63,24396.13,29248.48]
[2024,"CAISO_BTM_Li_Battery","CAISO","CAISO","BTM_Li_Battery",230.35,0,0,230.35]
[2024,"CAISO_New_Li_Battery_2","CAISO","CAISO","Li_Battery",0,3664.51,3664.51,3664.51]
[2024,"CAISO_New_Li_Battery_3","CAISO","CAISO","Li_Battery",0,0,0,0]
[2024,"CAISO_New_Li_Battery_4","CAISO","CAISO","Li_Battery",0,0,0,0]
[2024,"CAISO_New_Li_Battery_5","CAISO","CAISO","Li_Battery",0,0,0,0]
[2024,"CAISO_New_Li_Battery_6","CAISO","CAISO","Li_Battery",0,0,0,0]
[2026,"CAISO_Existing_Pumped_Storage","CAISO","CAISO","Pumped_Hydro",252821.12,null,null,252821.12]
[2026,"CAISO_New_Pumped_Storage","CAISO","CAISO","Pumped_Hydro",0,23837.69,23837.69,23837.69]
[2026,"CAISO_New_Flow_Battery","CAISO","CAISO","Flow_Battery",0,0,0,0]
[2026,"CAISO_New_Flow_Battery_2","CAISO","CAISO","Flow_Battery",0,0,0,0]
[2026,"CAISO_New_Flow_Battery_3","CAISO","CAISO","Flow_Battery",0,0,0,0]
[2026,"CAISO_New_Flow_Battery_4","CAISO","CAISO","Flow_Battery",0,0,0,0]
[2026,"CAISO_New_Flow_Battery_5","CAISO","CAISO","Flow_Battery",0,0,0,0]
[2026,"CAISO_New_Li_Battery","CAISO","CAISO","Li_Battery",4852.3500000000004,692.44,25088.57,29940.92]
[2026,"CAISO_BTM_Li_Battery","CAISO","CAISO","BTM_Li_Battery",230.35,0,0,230.35]
[2026,"CAISO_New_Li_Battery_2","CAISO","CAISO","Li_Battery",0,12205.67,15870.19,15870.19]
[2026,"CAISO_New_Li_Battery_3","CAISO","CAISO","Li_Battery",0,0,0,0]
[2026,"CAISO_New_Li_Battery_4","CAISO","CAISO","Li_Battery",0,0,0,0]
[2026,"CAISO_New_Li_Battery_5","CAISO","CAISO","Li_Battery",0,0,0,0]
[2026,"CAISO_New_Li_Battery_6","CAISO","CAISO","Li_Battery",0,0,0,0]
[2030,"CAISO_Existing_Pumped_Storage","CAISO","CAISO","Pumped_Hydro",252821.12,null,null,252821.12]
[2030,"CAISO_New_Pumped_Storage","CAISO","CAISO","Pumped_Hydro",0,0,23837.69,23837.69]
[2030,"CAISO_New_Flow_Battery","CAISO","CAISO","Flow_Battery",0,0,0,0]
[2030,"CAISO_New_Flow_Battery_2","CAISO","CAISO","Flow_Battery",0,0,0,0]
[2030,"CAISO_New_Flow_Battery_3","CAISO","CAISO","Flow_Battery",0,0,0,0]
[2030,"CAISO_New_Flow_Battery_4","CAISO","CAISO","Flow_Battery",0,0,0,0]
[2030,"CAISO_New_Flow_Battery_5","CAISO","CAISO","Flow_Battery",0,0,0,0]
[2030,"CAISO_New_Li_Battery","CAISO","CAISO","Li_Battery",4852.3500000000004,1202.45,26291.03,31143.38]
[2030,"CAISO_BTM_Li_Battery","CAISO","CAISO","BTM_Li_Battery",230.35,0,0,230.35]
[2030,"CAISO_New_Li_Battery_2","CAISO","CAISO","Li_Battery",0,5517.58,21387.77,21387.77]
[2030,"CAISO_New_Li_Battery_3","CAISO","CAISO","Li_Battery",0,789.65,789.65,789.65]
[2030,"CAISO_New_Li_Battery_4","CAISO","CAISO","Li_Battery",0,0,0,0]
[2030,"CAISO_New_Li_Battery_5","CAISO","CAISO","Li_Battery",0,0,0,0]
[2030,"CAISO_New_Li_Battery_6","CAISO","CAISO","Li_Battery",0,0,0,0]
[2045,"CAISO_Existing_Pumped_Storage","CAISO","CAISO","Pumped_Hydro",252821.12,null,null,252821.12]
[2045,"CAISO_New_Pumped_Storage","CAISO","CAISO","Pumped_Hydro",0,0,23837.69,23837.69]
[2045,"CAISO_New_Flow_Battery","CAISO","CAISO","Flow_Battery",0,0,0,0]
[2045,"CAISO_New_Flow_Battery_2","CAISO","CAISO","Flow_Battery",0,0,0,0]
[2045,"CAISO_New_Flow_Battery_3","CAISO","CAISO","Flow_Battery",0,0,0,0]
[2045,"CAISO_New_Flow_Battery_4","CAISO","CAISO","Flow_Battery",0,0,0,0]
[2045,"CAISO_New_Flow_Battery_5","CAISO","CAISO","Flow_Battery",0,0,0,0]
[2045,"CAISO_New_Li_Battery","CAISO","CAISO","Li_Battery",4852.3500000000004,27409.200000000001,53700.22,58552.57]
[2045,"CAISO_BTM_Li_Battery","CAISO","CAISO","BTM_Li_Battery",230.35,0,0,230.35]
[2045,"CAISO_New_Li_Battery_2","CAISO","CAISO","Li_Battery",0,20418.599999999999,41806.370000000003,41806.370000000003]
[2045,"CAISO_New_Li_Battery_3","CAISO","CAISO","Li_Battery",0,57184.56,57974.21,57974.21]
[2045,"CAISO_New_Li_Battery_4","CAISO","CAISO","Li_Battery",0,47498.54,47498.54,47498.54]
[2045,"CAISO_New_Li_Battery_5","CAISO","CAISO","Li_Battery",0,216313.77,216313.77,216313.77]
[2045,"CAISO_New_Li_Battery_6","CAISO","CAISO","Li_Battery",0,0,0,0]

{"sheet":"raw_transmission_costs","index":17,"n_rows":186,"n_cols":10,"rows_kept":186,"cut":false,"hidden":false,"merged":[]}
[]
["period","tx_zone","transmission_cost_$","period_discount_factor","new_transmission_capacity_mw","fully_deliverable_new_tx_threshold_mw","fully_deliverable_installed_capacity_mw","energy_only_tx_limit_mw","energy_only_installed_capacity_mw","energy_only_limit_dual_$"]
[2020,"Carrizo",0,1,0,187,0,0,0,0]
[2020,"Central_Valley_North_Los_Banos",0,1,0,790.94,0,0,0,0]
[2020,"GLW_VEA",0,1,0,596,0,0,0,0]
[2020,"Greater_Imperial",0,1,0,919.08,0,1900,0,0]
[2020,"Greater_Kramer",0,1,0,597,0,0,0,0]
[2020,"Humboldt",0,1,0,0,0,100,0,0]
[2020,"Inyokern_North_Kramer",0,1,0,97,0,0,0,0]
[2020,"Kern_Greater_Carrizo",0,1,0,784,0,700,0,0]
[2020,"Kramer_Inyokern_Ex",0,1,0,0,0,0,0,-979750.57]
[2020,"Mountain_Pass_El_Dorado",0,1,0,250,0,2150,0,0]
[2020,"None",0,1,0,0,0,0,0,0]
[2020,"North_Victor",0,1,0,300,0,0,0,0]
[2020,"Northern_California_Ex",0,1,0,865.9,0,0,0,0]
[2020,"Riverside_Palm_Springs",0,1,0,2665,563,2550,0,0]
[2020,"Sacramento_River",0,1,0,1995.02,0,2600,0,0]
[2020,"SCADSNV",0,1,0,2434.08,563,6600,0,0]
[2020,"Solano",0,1,0,599,0,700,0,0]
[2020,"Solano_subzone",0,1,0,0,0,0,0,-980655.68]
[2020,"Southern_California_Desert_Ex",0,1,0,862,0,0,0,0]
[2020,"SPGE",0,1,0,674.94,0,700,0,0]
[2020,"Tehachapi",0,1,0,3677,1437,800,0,0]
[2020,"Tehachapi_Ex",0,1,0,0,0,0,0,-979692.87]
[2020,"Westlands_Ex",0,1,0,1778.57,0,0,0,0]
[2021,"Carrizo",0,0.952380952380952,0,187,0,0,0,0]
[2021,"Central_Valley_North_Los_Banos",0,0.952380952380952,0,790.94,0,0,0,0]
[2021,"GLW_VEA",0,0.952380952380952,0,596,0,0,0,0]
[2021,"Greater_Imperial",0,0.952380952380952,0,919.08,0,1900,0,0]
[2021,"Greater_Kramer",0,0.952380952380952,0,597,35,0,0,0]
[2021,"Humboldt",0,0.952380952380952,0,0,0,100,34,0]
[2021,"Inyokern_North_Kramer",0,0.952380952380952,0,97,35,0,0,0]
[2021,"Kern_Greater_Carrizo",0,0.952380952380952,0,784,0,700,0,0]
[2021,"Kramer_Inyokern_Ex",0,0.952380952380952,0,0,0,0,0,-977625.99]
[2021,"Mountain_Pass_El_Dorado",0,0.952380952380952,0,250,0,2150,0,0]
[2021,"None",0,0.952380952380952,0,0,0,0,0,0]
[2021,"North_Victor",0,0.952380952380952,0,300,0,0,0,0]
[2021,"Northern_California_Ex",0,0.952380952380952,0,865.9,0,0,0,-7447.51]
[2021,"Riverside_Palm_Springs",0,0.952380952380952,0,2665,563,2550,0,0]
[2021,"Sacramento_River",0,0.952380952380952,0,1995.02,0,2600,34,0]
[2021,"SCADSNV",0,0.952380952380952,0,2434.08,563,6600,0,0]
[2021,"Solano",0,0.952380952380952,0,599,0,700,0,0]
[2021,"Solano_subzone",0,0.952380952380952,0,0,0,0,0,-978730.9]
[2021,"Southern_California_Desert_Ex",0,0.952380952380952,0,862,0,0,0,0]
[2021,"SPGE",0,0.952380952380952,0,674.94,0,700,0,0]
[2021,"Tehachapi",0,0.952380952380952,0,3677,3402,800,0,0]
[2021,"Tehachapi_Ex",0,0.952380952380952,0,0,0,0,0,-977562.24]
[2021,"Westlands_Ex",0,0.952380952380952,0,1778.57,0,0,0,0]
[2022,"Carrizo",0,0.90702947845805004,0,187,0,0,0,0]
[2022,"Central_Valley_North_Los_Banos",0,0.90702947845805004,0,790.94,173,0,0,0]
[2022,"GLW_VEA",0,0.90702947845805004,0,596,442.03,0,0,-9321.9]
[2022,"Greater_Imperial",0,0.90702947845805004,0,919.08,0,1900,0,0]
[2022,"Greater_Kramer",0,0.90702947845805004,0,597,373,0,0,0]
[2022,"Humboldt",0,0.90702947845805004,0,0,0,100,34,0]
[2022,"Inyokern_North_Kramer",0,0.90702947845805004,0,97,73,0,0,0]
[2022,"Kern_Greater_Carrizo",0,0.90702947845805004,0,784,60,700,0,0]
[2022,"Kramer_Inyokern_Ex",0,0.90702947845805004,0,0,0,0,0,-999998]
[2022,"Mountain_Pass_El_Dorado",0,0.90702947845805004,0,250,0,2150,0,0]
[2022,"None",0,0.90702947845805004,0,0,0,0,0,0]
[2022,"North_Victor",0,0.90702947845805004,0,300,300,0,0,0]
[2022,"Northern_California_Ex",0,0.90702947845805004,0,865.9,0,0,0,0]
[2022,"Riverside_Palm_Springs",0,0.90702947845805004,0,2665,563,2550,0,0]
[2022,"Sacramento_River",0,0.90702947845805004,0,1995.02,1947.8,2600,34,0]
[2022,"SCADSNV",0,0.90702947845805004,0,2434.08,1005.03,6600,0,0]
[2022,"Solano",0,0.90702947845805004,0,599,464,700,0,0]
[2022,"Solano_subzone",0,0.90702947845805004,0,0,0,0,0,-998999]
[2022,"Southern_California_Desert_Ex",0,0.90702947845805004,0,862,862,0,0,0]
[2022,"SPGE",0,0.90702947845805004,0,674.94,233,700,0,0]
[2022,"Tehachapi",0,0.90702947845805004,0,3677,3677,800,800,0]
[2022,"Tehachapi_Ex",0,0.90702947845805004,0,0,0,0,0,-999998]
[2022,"Westlands_Ex",0,0.90702947845805004,0,1778.57,0,0,0,0]
[2023,"Carrizo",1002894,0.86383759853147601,100,187,287,0,0,-2497.52]
[2023,"Central_Valley_North_Los_Banos",0,0.86383759853147601,0,790.94,213.69,0,0,0]
[2023,"GLW_VEA",0,0.86383759853147601,0,596,442.03,0,0,0]
[2023,"Greater_Imperial",0,0.86383759853147601,0,919.08,0,1900,0,0]
[2023,"Greater_Kramer",0,0.86383759853147601,0,597,373,0,0,0]
[2023,"Humboldt",0,0.86383759853147601,0,0,0,100,34,0]
[2023,"Inyokern_North_Kramer",0,0.86383759853147601,0,97,73,0,0,0]
[2023,"Kern_Greater_Carrizo",0,0.86383759853147601,0,784,461.26,700,0,0]
[2023,"Kramer_Inyokern_Ex",0,0.86383759853147601,0,0,0,0,0,-992116.2]
[2023,"Mountain_Pass_El_Dorado",0,0.86383759853147601,0,250,0,2150,0,0]
[2023,"None",0,0.86383759853147601,0,0,0,0,0,0]
[2023,"North_Victor",0,0.86383759853147601,0,300,300,0,0,-229.6]
[2023,"Northern_California_Ex",0,0.86383759853147601,0,865.9,0,0,0,0]
[2023,"Riverside_Palm_Springs",0,0.86383759853147601,0,2665,563,2550,0,0]
[2023,"Sacramento_River",0,0.86383759853147601,0,1995.02,1947.8,2600,34,0]
[2023,"SCADSNV",0,0.86383759853147601,0,2434.08,1005.03,6600,0,0]
[2023,"Solano",0,0.86383759853147601,0,599,464,700,0,0]
[2023,"Solano_subzone",0,0.86383759853147601,0,0,0,0,0,-991858.42]
[2023,"Southern_California_Desert_Ex",0,0.86383759853147601,0,862,862,0,0,0]
[2023,"SPGE",0,0.86383759853147601,0,674.94,674.94,700,0,0]
[2023,"Tehachapi",0,0.86383759853147601,0,3677,3677,800,800,0]
[2023,"Tehachapi_Ex",0,0.86383759853147601,0,0,0,0,0,-992093.74]
[2023,"Westlands_Ex",0,0.86383759853147601,0,1778.57,1778.57,0,0,0]
[2024,"Carrizo",1002894,1.2144655580261099,100,187,287,0,0,-6886.11]
[2024,"Central_Valley_North_Los_Banos",0,1.2144655580261099,0,790.94,213.69,0,0,0]
[2024,"GLW_VEA",0,1.2144655580261099,0,596,442.03,0,0,0]
[2024,"Greater_Imperial",0,1.2144655580261099,0,919.08,92.17,1900,0,0]
[2024,"Greater_Kramer",0,1.2144655580261099,0,597,373,0,0,0]
[2024,"Humboldt",0,1.2144655580261099,0,0,0,100,34,0]
[2024,"Inyokern_North_Kramer",0,1.2144655580261099,0,97,73,0,0,0]
[2024,"Kern_Greater_Carrizo",0,1.2144655580261099,0,784,461.26,700,0,0]
[2024,"Kramer_Inyokern_Ex",0,1.2144655580261099,0,0,0,0,0,-991163.96]
[2024,"Mountain_Pass_El_Dorado",0,1.2144655580261099,0,250,0,2150,0,0]
[2024,"None",0,1.2144655580261099,0,0,0,0,0,0]
[2024,"North_Victor",0,1.2144655580261099,0,300,300,0,0,0]
[2024,"Northern_California_Ex",0,1.2144655580261099,0,865.9,0,0,0,0]
[2024,"Riverside_Palm_Springs",0,1.2144655580261099,0,2665,563,2550,2550,0]
[2024,"Sacramento_River",1656813.27,1.2144655580261099,87.78,1995.02,2082.8000000000002,2600,34,0]
[2024,"SCADSNV",0,1.2144655580261099,0,2434.08,1097.21,6600,2550,0]
[2024,"Solano",0,1.2144655580261099,0,599,599,700,0,0]
[2024,"Solano_subzone",0,1.2144655580261099,0,0,0,0,0,-1012074.01]
[2024,"Southern_California_Desert_Ex",0,1.2144655580261099,0,862,862,0,0,0]
[2024,"SPGE",0,1.2144655580261099,0,674.94,674.94,700,0,0]
[2024,"Tehachapi",0,1.2144655580261099,0,3677,3677,800,800,0]
[2024,"Tehachapi_Ex",0,1.2144655580261099,0,0,0,0,0,-991138.79]
[2024,"Westlands_Ex",0,1.2144655580261099,0,1778.57,1778.57,0,0,0]
[2026,"Carrizo",1002894,2.1705613875372398,100,187,287,0,0,-10028.94]
[2026,"Central_Valley_North_Los_Banos",0,2.1705613875372398,0,790.94,790.94,0,0,0]
[2026,"GLW_VEA",0,2.1705613875372398,0,596,442.03,0,0,0]
[2026,"Greater_Imperial",0,2.1705613875372398,0,919.08,92.17,1900,866.98,0]
[2026,"Greater_Kramer",0,2.1705613875372398,0,597,373,0,0,0]
[2026,"Humboldt",0,2.1705613875372398,0,0,0,100,34,0]
[2026,"Inyokern_North_Kramer",0,2.1705613875372398,0,97,73,0,0,0]
[2026,"Kern_Greater_Carrizo",0,2.1705613875372398,0,784,784,700,700,0]
[2026,"Kramer_Inyokern_Ex",0,2.1705613875372398,0,0,0,0,0,-994001.38]
[2026,"Mountain_Pass_El_Dorado",0,2.1705613875372398,0,250,0,2150,0,0]
[2026,"None",0,2.1705613875372398,0,0,0,0,0,0]
[2026,"North_Victor",0,2.1705613875372398,0,300,300,0,0,0]
[2026,"Northern_California_Ex",0,2.1705613875372398,0,865.9,0,0,0,0]
[2026,"Riverside_Palm_Springs",0,2.1705613875372398,0,2665,563,2550,2550,0]
[2026,"Sacramento_River",1656813.27,2.1705613875372398,87.78,1995.02,2082.8000000000002,2600,34,0]
[2026,"SCADSNV",0,2.1705613875372398,0,2434.08,1097.21,6600,5566.98,0]
[2026,"Solano",0,2.1705613875372398,0,599,599,700,0,0]
[2026,"Solano_subzone",0,2.1705613875372398,0,0,0,0,0,-1012441.54]
[2026,"Southern_California_Desert_Ex",0,2.1705613875372398,0,862,862,0,0,-7763.14]
[2026,"SPGE",6556653,2.1705613875372398,900,674.94,1574.94,700,700,-2302.9499999999998]
[2026,"Tehachapi",7934216.2300000004,2.1705613875372398,599,3677,4276,800,800,0]
[2026,"Tehachapi_Ex",0,2.1705613875372398,0,0,0,0,0,-993984.3]
[2026,"Westlands_Ex",0,2.1705613875372398,0,1778.57,1778.57,0,0,-5243.02]
[2030,"Carrizo",1002894,4.9706315334622504,100,187,287,0,0,-36894.639999999999]
[2030,"Central_Valley_North_Los_Banos",0,4.9706315334622504,0,790.94,790.94,0,0,-31678.1]
[2030,"GLW_VEA",0,4.9706315334622504,0,596,442.03,0,0,-37193.1]
[2030,"Greater_Imperial",0,4.9706315334622504,0,919.08,92.17,1900,1374.81,0]
[2030,"Greater_Kramer",0,4.9706315334622504,0,597,373,0,0,0]
[2030,"Humboldt",0,4.9706315334622504,0,0,0,100,34,0]
[2030,"Inyokern_North_Kramer",0,4.9706315334622504,0,97,73,0,0,0]
[2030,"Kern_Greater_Carrizo",153056763.75999999,4.9706315334622504,7192,784,7976,700,700,0]
[2030,"Kramer_Inyokern_Ex",0,4.9706315334622504,0,0,0,0,0,-998218.68]
[2030,"Mountain_Pass_El_Dorado",0,4.9706315334622504,0,250,0,2150,0,0]
[2030,"None",0,4.9706315334622504,0,0,0,0,0,0]
[2030,"North_Victor",0,4.9706315334622504,0,300,300,0,0,0]
[2030,"Northern_California_Ex",0,4.9706315334622504,0,865.9,396.9,0,0,0]
[2030,"Riverside_Palm_Springs",0,4.9706315334622504,0,2665,1899.87,2550,2550,-20439.43]
[2030,"Sacramento_River",21264021.530000001,4.9706315334622504,1126.56,1995.02,3121.58,2600,2600,-17330.66]
[2030,"SCADSNV",0,4.9706315334622504,0,2434.08,2434.08,6600,6074.81,0]
[2030,"Solano",0,4.9706315334622504,0,599,599,700,700,0]
[2030,"Solano_subzone",0,4.9706315334622504,0,0,0,0,0,-998931.57]
[2030,"Southern_California_Desert_Ex",0,4.9706315334622504,0,862,862,0,0,0]
[2030,"SPGE",58951595.640000001,4.9706315334622504,8092,674.94,8766.94,700,700,0]
[2030,"Tehachapi",7934216.2300000004,4.9706315334622504,599,3677,4276,800,800,0]
[2030,"Tehachapi_Ex",0,4.9706315334622504,0,0,0,0,0,-998213.61]
[2030,"Westlands_Ex",0,4.9706315334622504,0,1778.57,1778.57,0,0,-31276.9]
[2045,"Carrizo",100359602.58,6.6951633132812498,10007,187,10194,0,0,0]
[2045,"Central_Valley_North_Los_Banos",2137005651.3699999,6.6951633132812498,58881.38,790.94,59672.33,0,0,0]
[2045,"GLW_VEA",0,6.6951633132812498,0,596,442.03,0,0,0]
[2045,"Greater_Imperial",0,6.6951633132812498,0,919.08,919.08,1900,1900,-10261.74]
[2045,"Greater_Kramer",0,6.6951633132812498,0,597,397,0,0,0]
[2045,"Humboldt",0,6.6951633132812498,0,0,0,100,34,0]
[2045,"Inyokern_North_Kramer",0,6.6951633132812498,0,97,97,0,0,-126065.79]
[2045,"Kern_Greater_Carrizo",363892881.47000003,6.6951633132812498,17099,784,17883,700,700,0]
[2045,"Kramer_Inyokern_Ex",0,6.6951633132812498,0,0,0,0,0,-999778.5]
[2045,"Mountain_Pass_El_Dorado",11289179.199999999,6.6951633132812498,1570,250,1820,2150,0,0]
[2045,"None",0,6.6951633132812498,1146.8499999999999,0,1146.8499999999999,0,0,0]
[2045,"North_Victor",0,6.6951633132812498,0,300,300,0,0,-126065.79]
[2045,"Northern_California_Ex",0,6.6951633132812498,0,865.9,865.9,0,0,-40450.21]
[2045,"Riverside_Palm_Springs",0,6.6951633132812498,0,2665,2595,2550,2550,0]
[2045,"Sacramento_River",426351204.32999998,6.6951633132812498,22587.88,1995.02,24582.9,2600,2600,-18683.810000000001]
[2045,"SCADSNV",340862159.58999997,6.6951633132812498,3342.03,2434.08,5776.11,6600,6600,-110566.17]
[2045,"Solano",0,6.6951633132812498,0,599,599,700,700,-21095.200000000001]
[2045,"Solano_subzone",0,6.6951633132812498,0,0,0,0,0,-999050.8]
[2045,"Southern_California_Desert_Ex",0,6.6951633132812498,0,862,862,0,0,-110676.89]
[2045,"SPGE",560086672.99000001,6.6951633132812498,76880.38,674.94,77555.33,700,700,-48301.66]
[2045,"Tehachapi",7934216.2300000004,6.6951633132812498,599,3677,4276,800,800,-24032.36]
[2045,"Tehachapi_Ex",0,6.6951633132812498,0,0,0,0,0,-999777.88]
[2045,"Westlands_Ex",0,6.6951633132812498,0,1778.57,1778.57,0,0,-60726.84]

{"sheet":"raw_transmission_flows","index":18,"n_rows":114,"n_cols":19,"rows_kept":114,"cut":false,"hidden":false,"merged":[]}
[]
["transmission_line","transmission_from","transmission_to","period","unspecified_power_mwh_per_year","unspecified_power_positive_mwh_per_year","unspecified_power_negative_mwh_per_year","annual_average_positive_mw","annual_average_negative_mw","positive_flow_hours_per_year","negative_flow_hours_per_year","zero_flow_hours_per_year","energy_cost_posdir_fromzone_$_per_year","energy_cost_posdir_tozone_$_per_year","energy_cost_negdir_fromzone_$_per_year","energy_cost_negdir_tozone_$_per_year","power_mwh_per_year","hurdle_cost_positive_direction_$_per_year","hurdle_cost_negative_direction_$_per_year"]
["BANC_to_CAISO","BANC","CAISO",2020,1659285.3906398499,1710354.2560409601,51068.865401103103,703.21131832541903,388.23916194799199,2432.2052439569402,131.53970646563499,6196.2550495774103,58916599.034614801,65161859.084944502,2004733.42174485,1485798.7133385199,1659285.3906398499,4143136.8700186601,530529.06739425205]
["BANC_to_CAISO","BANC","CAISO",2021,1476311.4350767101,1512898.08792407,36586.652847352001,648.13821779660304,321.60031418379901,2334.2213842400502,113.76435666801601,6312.0142590919104,48579302.255154297,53114083.927016698,1488682.6089520101,1113163.5372648099,1476311.4350767101,3664822.8011831399,380080.17901297403]
["BANC_to_CAISO","BANC","CAISO",2022,1279393.6226252399,1291050.7697339801,11657.1471087476,534.91192590461299,138.62079347162501,2413.5763425925402,84.093784322001994,6262.3298730854403,39048209.150579199,42840585.953591302,534732.67472466303,414538.41821305401,1279393.6226252399,3127421.84474093,121098.59759832401]
["BANC_to_CAISO","BANC","CAISO",2023,1434221.37289157,1448173.4152621999,13952.0423706207,579.95093826863001,186.672491168389,2497.0619404212598,74.740752015974294,6188.1973075627502,42020912.790853098,46308454.348640501,609707.74912602198,464805.63152646,1434221.37289157,3508035.9140959298,144940.29513811399]
["BANC_to_CAISO","BANC","CAISO",2024,1878616.4633485801,1885848.3015461499,7231.8381975689399,676.05273176830701,182.42979889016701,2789.4988259472898,39.641759414112499,5930.8594146385904,54983287.603931703,59944157.114178799,361180.22267693002,286049.25836461002,1878616.4633485801,4568248.9935334604,75126.6145775123]
["BANC_to_CAISO","BANC","CAISO",2026,1819913.1856184199,1820109.13824181,195.95262339505001,639.87280176520403,33.17,2844.4858622224801,5.9075255771796904,5909.6066122003404,43593751.884682097,70484723.064868003,13452.147596070199,11416.199838995601,1819913.1856184199,4409003.7481283098,2035.91053966343]
["BANC_to_CAISO","BANC","CAISO",2030,737039.52487358102,743354.86952100298,6315.34464742212,643.48344570347297,599.8571349755,1155.2043405069201,10.528081236676501,7594.2675782564002,21976081.149248999,63914277.373595104,236787.25484088101,171170.82395416501,737039.52487358102,1800691.38755113,65606.806025640704]
["BANC_to_CAISO","BANC","CAISO",2045,-772002.64378766704,54775.988743911403,826778.63253157795,326.54114131682201,596.12590059639297,167.74605650920299,1386.9194941948101,7205.3344492959995,3067535.64398563,17360606.202130198,32645953.139322199,3856321.8711842899,-772002.64378766704,132688.500708231,8588980.0713175293]
["IID_to_BANC","IID","BANC",2020,0,0,0,0,0,0,0,8760,0,0,0,0,0,0,0]
["IID_to_BANC","IID","BANC",2021,0,0,0,0,0,0,0,8760,0,0,0,0,0,0,0]
["IID_to_BANC","IID","BANC",2022,0,0,0,0,0,0,0,8760,0,0,0,0,0,0,0]
["IID_to_BANC","IID","BANC",2023,0,0,0,0,0,0,0,8760,0,0,0,0,0,0,0]
["IID_to_BANC","IID","BANC",2024,0,0,0,0,0,0,0,8760,0,0,0,0,0,0,0]
["IID_to_BANC","IID","BANC",2026,0,0,0,0,0,0,0,8760,0,0,0,0,0,0,0]
["IID_to_BANC","IID","BANC",2030,0,0,0,0,0,0,0,8760,0,0,0,0,0,0,0]
["IID_to_BANC","IID","BANC",2045,0,0,0,0,0,0,0,8760,0,0,0,0,0,0,0]
["IID_to_CAISO","IID","CAISO",2020,2958997.7940146099,2958997.7940146099,0,414.930929168479,0,7131.3020698274604,0,1628.6979301725401,98997435.514379904,109414508.795517,0,0,2958997.7940146099,9406005.0206120405,0]
["IID_to_CAISO","IID","CAISO",2021,3023955.0573193901,3023955.0573193901,0,436.53582618023597,0,6927.1635361054396,0,1832.83646389457,101742534.88223501,112047414.054865,0,0,3023955.0573193901,9612497.7443095203,0]
["IID_to_CAISO","IID","CAISO",2022,2610197.7665500999,2610197.7665500999,0,397.097210410917,0,6573.1959281433101,0,2186.8040718566899,86885104.389751002,95583475.450664997,0,0,2610197.7665500999,8297249.7874865001,0]
["IID_to_CAISO","IID","CAISO",2023,2480978.3377480302,2480978.3377480302,0,382.86523485941598,0,6480.03033928902,0,2279.96966071098,83121603.315023094,91614017.029336199,0,0,2480978.3377480302,7886492.55527204,0]
["IID_to_CAISO","IID","CAISO",2024,2690882.0694839498,2690882.0694839498,0,398.953981496305,0,6744.8432508220803,0,2015.1567491779199,90559589.4121342,99679356.181411102,0,0,2690882.0694839498,8553728.1057487894,0]
["IID_to_CAISO","IID","CAISO",2026,2281166.8793357802,2281166.8793357802,0,371.13602631067999,0,6146.4442081033703,0,2613.5557918966301,78084221.1423226,112877878.06997,0,0,2281166.8793357802,7251331.6568315504,0]
["IID_to_CAISO","IID","CAISO",2030,1470913.31890887,1470913.31890887,0,299.88981535523999,0,4904.8458586913903,0,3855.1541413085802,54226843.778754599,137404099.23208699,0,0,1470913.31890887,4675713.8143788697,0]
["IID_to_CAISO","IID","CAISO",2045,332138.14255117101,333000.83542684099,862.69287567041999,137.80334871727499,56.16,2416.4930571465502,15.361340378746799,6328.1456024747104,16021033.934219601,99570455.009514004,66582.636144243006,0,332138.14255117101,1058538.27064934,8962.2668171722398]
["IID_to_LDWP","IID","LDWP",2020,1191565.7278570801,1228483.1543889199,36917.426531840203,331.38134408983001,154.33090477192999,3707.1584635009099,239.20955162154101,4813.6319848775202,40067446.970676899,45290384.603726096,639973.39229810797,433252.14745905198,1191565.7278570801,3905083.0176350502,206428.16280000101]
["IID_to_LDWP","IID","LDWP",2021,1095781.82424798,1143831.8520613201,48050.027813339999,329.90241015663798,162.395838930743,3467.1824662276099,295.88213669582899,4996.9353970765396,39017425.192537397,43294338.133838698,841005.86313414795,572406.10386653396,1095781.82424798,3635991.0180889401,268677.038263592]
["IID_to_LDWP","IID","LDWP",2022,1314143.2031355901,1369547.21326847,55404.010132883297,311.17406083683198,169.89220367981,4401.2255057037401,326.11272873534,4032.6617655609002,48679153.12534,53673579.0435808,966747.83104403003,657038.07360883197,1314143.2031355901,4353490.0883181496,309796.53784667398]
["IID_to_LDWP","IID","LDWP",2023,1402231.82410828,1456764.0647382999,54532.240630015098,322.88227991053498,165.92935149831001,4511.7498090695699,328.64734380987699,3919.60284712054,52313767.580150098,57911616.745809302,857894.05032517202,552651.45733908506,1402231.82410828,4630735.5107926102,304922.22037227801]
["IID_to_LDWP","IID","LDWP",2024,1209272.29090565,1248842.17696772,39569.886062077603,327.11732642036299,124.209153484821,3817.71944223736,318.57463763258801,4623.7059201300099,47895816.269446701,52738891.765467003,645565.15489358001,424073.49861286703,1209272.29090565,3969797.01579666,221259.72954791499]
["IID_to_LDWP","IID","LDWP",2026,1502548.3129990101,1575694.4531713401,73146.140172331696,332.51599268560699,157.00583131585199,4738.7027626703002,465.88167814723801,3555.4155591824301,60303654.808415502,67390158.795651197,498424.43589923403,89535.685604294398,1502548.3129990101,5008790.2813205896,409003.45291186898]
["IID_to_LDWP","IID","LDWP",2030,2088245.7861213901,2167841.9427372501,79596.156615863103,351.787004003096,167.591688944379,6162.3707472666401,474.940953917348,2122.68829881601,74337468.101483405,85762958.304561794,-753130.12150237197,-1198072.63698504,2088245.7861213901,6891099.7388331201,445068.52957158402]
["IID_to_LDWP","IID","LDWP",2045,2396906.7581782299,2538183.8196988502,141277.061520627,393.622805729616,152.64285833856599,6448.2641319374097,925.53993719948903,1386.1959308631001,94009088.388295993,121172974.131745,1520716.4842423999,670145.31964191096,2396906.7581782299,8068329.4087733896,789962.53085036995]
["LDWP_to_CAISO","LDWP","CAISO",2020,223938.51815275601,238821.79951133899,14883.281358582501,393.04750544145998,135.39760637827601,607.61560932208602,109.922780444148,8042.4616102337704,8503019.40392817,10467365.8365459,493369.02200161101,330329.36122121598,223938.51815275601,1335392.9544600199,154614.051289847]
["LDWP_to_CAISO","LDWP","CAISO",2021,187738.73979446699,192100.64131375999,4361.9015192931902,385.54811878045098,89.083056390302801,498.253348820388,48.964434944645802,8212.7822162349694,6186895.9522463903,7314314.2083827704,133795.14639317099,81377.786407328007,187738.73979446699,1074150.06750682,45313.036245005504]
["LDWP_to_CAISO","LDWP","CAISO",2022,135323.86208426199,140224.99390569099,4901.1318214282801,243.42950291807699,141.93278572102199,576.03943739260603,34.531357899659199,8149.4292047077297,4082942.4416393698,4868207.16442974,153816.14304339699,102893.46111899801,135323.86208426199,784079.991198209,50915.744724576602]
["LDWP_to_CAISO","LDWP","CAISO",2023,175646.553356219,177503.53604783601,1856.98269161647,226.897573262262,63.9592171771247,782.30689511459104,29.0338558471386,7948.65924903826,4886304.3748563202,5892609.8365363004,49901.620749507201,30156.566638059801,175646.553356219,992527.72402009997,19291.507112045001]
["LDWP_to_CAISO","LDWP","CAISO",2024,352927.723946065,353761.31969438097,833.59574831614304,302.55106620618602,150.13274551116601,1169.26152047765,5.55239128864224,7585.1860882336996,9136203.4896738697,11166381.6208349,25769.3897277344,16351.3198923007,352927.723946065,1978094.7888543101,8659.9271091272803]
["LDWP_to_CAISO","LDWP","CAISO",2026,323195.950587628,323195.950587628,0,337.06429038164401,0,958.85550564162804,0,7801.1444943583701,7101571.3745791903,12879551.248113601,0,0,323195.950587628,1807181.03851962,0]
["LDWP_to_CAISO","LDWP","CAISO",2030,39056.731738285402,41067.800067100397,2011.0683288149901,437.23042126902999,110.019225990218,93.927133313148701,18.279244474904701,8647.7936222119497,1698183.40732315,4171691.8758722101,48127.8701619602,25115.4508141847,39056.731738285402,229634.771204171,20891.481020551801]
["LDWP_to_CAISO","LDWP","CAISO",2045,-2063174.20271566,140317.111838568,2203491.3145542298,739.93265510565402,925.06014328047604,189.634976737893,2381.9978955531901,6188.3671277088997,7451473.8147207703,45016214.750431001,83876567.800053596,7125905.5481004799,-2063174.20271566,784595.20731891098,22890957.369647499]
["NW_to_BANC","NW","BANC",2020,4622570.6423709299,4683320.4965827996,60749.854211876198,989.33218014268698,326.95402003634803,4733.8200359634002,185.805497069962,3840.3744669666098,115653389.27903201,178429541.47848299,1420692.94906519,1273530.51706277,4622570.6423709299,53569094.092565298,147159.62667764499]
["NW_to_BANC","NW","BANC",2021,3879792.7916617999,3980470.3621651102,100677.570503307,924.26580554510599,480.23856885734,4306.6294763739998,209.64074323071401,4243.7297803952597,102123911.176245,154206543.22095099,2365881.2674691901,2122241.5468511898,3879792.7916617999,46810409.3026364,243879.769550036]
["NW_to_BANC","NW","BANC",2022,3095679.9241672098,3361928.3808129798,266248.45664576697,879.90430464068299,544.013344683637,3820.7886506315599,489.41530432603503,4449.7960450423898,89037429.609310403,133345307.58579201,6065268.0236398801,5330096.2630000701,3095679.9241672098,40739877.491025597,644955.56478386605]
["NW_to_BANC","NW","BANC",2023,2824610.0415960001,3273480.1841006102,448870.14250461,876.08871106726201,642.69852184872002,3736.4711389932399,698.41477340485596,4325.1140876018799,85863475.611064404,130061987.750402,10598799.9418028,9034238.3384186793,2824610.0415960001,40885683.459474802,1087335.8753468301]
["NW_to_BANC","NW","BANC",2024,2655308.7966625602,3193938.9187418101,538630.12207925203,889.304231829316,762.71118125633404,3591.5031149371898,706.20457037488598,4462.2923146879002,80938069.299043894,126600254.459939,12611934.2373867,10470752.65044,2655308.7966625602,41147686.584455103,1304769.9125287]
["NW_to_BANC","NW","BANC",2026,1671198.3846191601,2686536.4439940401,1015338.05937488,813.95488000071703,946.22402618408796,3300.5962738274602,1073.04193433928,4386.3617918332302,64550274.818039998,103658439.510773,25026722.303924698,14452235.942209899,1671198.3846191601,36873640.058291897,2459538.8462439999]
["NW_to_BANC","NW","BANC",2030,92353.945394020993,2462374.56954611,2370020.6241520899,705.14751863982804,869.35989234471799,3491.99919797751,2726.1674307978501,2541.8333712246099,74792282.787487805,114379118.468843,63612379.2768865,6804036.8969532503,92353.945394020993,38703018.8211473,5741102.7214417001]
["NW_to_BANC","NW","BANC",2045,-1845103.8740975801,1002432.06961348,2847535.9437110699,569.53980865117899,826.18932124273294,1760.07375496281,3446.5901101552299,3553.3361348819399,31608311.883411601,60189411.9584594,78716388.726692006,5514133.9353961796,-1845103.8740975801,28129955.7258831,6897824.8868563799]
["NW_to_CAISO","CAISO_NW_Hydro","CAISO",2020,21531406.988373701,21576646.578324098,45239.589950378599,3421.5656608467898,841.697967477514,6306.0740950340796,53.748009022710598,2400.1778959432099,653900017.029917,830571806.77574599,1112658.13285307,642618.79326864402,21531406.988373701,105980007.663068,469970.99465958198]
["NW_to_CAISO","CAISO_NW_Hydro","CAISO",2021,19150767.468651898,19192220.635082498,41453.166430525802,3124.7308935127398,1101.1447198630101,6142.0395192838796,37.645520777398602,2580.3149599387202,601897689.32728899,738742925.54109895,1168043.7255925799,737345.32637942198,19150767.468651898,94268203.376153305,430635.63043124799]
["NW_to_CAISO","CAISO_NW_Hydro","CAISO",2022,17668334.017950598,17945608.8657315,277274.84778089001,3051.3907595363999,2253.4196452699898,5881.1244707505102,123.046254772341,2755.8292744771502,568408940.24962699,686874644.61396205,6742006.47619808,3454212.0636692401,17668334.017950598,88145104.832342207,2880466.0195263098]
["NW_to_CAISO","CAISO_NW_Hydro","CAISO",2023,17230863.2827117,17637618.703506,406755.42079424398,3001.6573160087601,2079.9717708502999,5875.9601269069499,195.558144824225,2688.48172826882,564560314.47601902,680237790.99432194,9703323.4599349797,2023203.7973108401,17230863.2827117,86632322.789315507,4225575.6036571097]
["NW_to_CAISO","CAISO_NW_Hydro","CAISO",2024,16926311.034786399,17275729.000237901,349417.96545146202,2940.8207507954598,2054.5270202605798,5874.45834485661,170.072217111627,2715.4694380317601,564292259.79991901,679806809.13883996,8315505.9383947402,1159651.6887958299,16926311.034786399,84854798.569836304,3629924.7061977899]
["NW_to_CAISO","CAISO_NW_Hydro","CAISO",2026,16280425.477359699,16587565.7546966,307140.27733694599,2627.9455915365602,1233.4638385800999,6311.9897946585397,249.00630868149901,2199.00389665995,712137024.82043898,816172661.88822603,7372987.05929315,2276768.8083625501,16280425.477359699,81474678.760569394,3190723.7428578301]
["NW_to_CAISO","CAISO_NW_Hydro","CAISO",2030,13829032.089550899,14728125.8551434,899093.76559249102,2438.3175131463099,1503.84465568685,6040.28219283828,597.86345763342399,2121.8543495282902,1233129122.72031,1316959014.02069,22242616.088754602,3478967.62404245,13829032.089550899,72341507.930542707,9340226.0570674092]
["NW_to_CAISO","CAISO_NW_Hydro","CAISO",2045,3454344.0038966299,7687512.1104739401,4233168.1065772995,1802.6857112080099,2405.0877947958802,4264.4771979261895,1760.0888066277601,2735.4339954460202,1689023057.8315499,1706643124.5585301,129603854.028271,4593728.4721802799,3454344.0038966299,37759461.936034299,43976227.183088802]
["NW_to_CAISO_Unspecified","NW","CAISO_NW_Hydro",2020,9630913.5743128005,10930680.740254199,1299767.1659414801,2648.60708313438,1433.6847049486501,4126.9544319570496,906.592057134372,3726.45351090855,255877183.73743501,327199731.80308098,39845559.280769601,39845559.280769601,9630913.5743128005,71338852.033979297,0]
["NW_to_CAISO_Unspecified","NW","CAISO_NW_Hydro",2021,7250273.7049004398,8303812.5195671599,1053538.8146667201,2619.7203129163299,1421.4426573575199,3169.73246289912,741.17574086686295,4849.0917962339799,201372967.25727201,258233254.08806199,32503772.733920701,32503772.733920701,7250273.7049004398,56866397.371083103,0]
["NW_to_CAISO_Unspecified","NW","CAISO_NW_Hydro",2022,5767839.2850624304,7134086.1725051003,1366246.8874426601,2443.7107866860501,1768.8947870920299,2919.3659950978599,772.37317754138201,5068.2608273607402,171207976.517441,222596329.118597,38118281.938505702,38118281.938505702,5767839.2850624304,51409790.811411202,0]
["NW_to_CAISO_Unspecified","NW","CAISO_NW_Hydro",2023,5330368.8952469695,6807973.57034308,1477604.6750961,2318.2041533504298,1890.1776458372001,2936.7446178127602,781.727938826426,5041.5274433607901,162998990.61053401,214597718.79943201,39872410.008857101,39872410.008857101,5330368.8952469695,51592081.4450498,0]
["NW_to_CAISO_Unspecified","NW","CAISO_NW_Hydro",2024,5025817.2863740996,6448620.6051077098,1422803.31873361,2393.9850132450201,1828.26354621157,2693.6762633976,778.22659740816096,5288.0971391942203,155881238.27626699,207277562.84813201,37472318.653778702,37472318.653778702,5025817.2863740996,51403662.038235798,0]
["NW_to_CAISO_Unspecified","NW","CAISO_NW_Hydro",2026,4379931.3672466297,4959251.6345978696,579320.26735124399,2239.72922317962,1792.5380957074799,2214.2192829709402,323.18435448513901,6222.5963625439099,102099412.52426399,204730268.71605301,13673196.996439001,13673196.996439001,4379931.3672466297,43708665.000542499,0]
["NW_to_CAISO_Unspecified","NW","CAISO_NW_Hydro",2030,1928540.3972032301,3430259.0467651701,1501718.64956194,2352.8181811878098,2182.0940915819801,1457.9363055726701,688.20068545862898,6613.8630089687003,69315156.588627502,288612683.284114,35673349.887787603,35673349.887787603,1928540.3972032301,37067304.985512897,0]
["NW_to_CAISO_Unspecified","NW","CAISO_NW_Hydro",2045,-8446151.45503968,18717.2562067295,8464868.7112464104,1444.82497210361,2438.38805248569,12.9546876390694,3471.5018811781401,5275.5434311827803,665681.76285995997,5539561.0896934699,254113137.78091699,254113137.78091699,-8446151.45503968,433303.56421441102,0]
["NW_to_LDWP","NW","LDWP",2020,6445788.85322804,6470199.6772390399,24410.824010996101,1315.4002294465599,215.16427921523399,4918.8068637947999,113.45202884061101,3727.7411073645599,153809104.82280901,236220783.67166901,660861.31814073306,524402.37772145297,6445788.85322804,74007901.355339602,136495.371901248]
["NW_to_LDWP","NW","LDWP",2021,5607849.4547119802,5654336.1477958104,46486.693083832201,1275.6252128900501,247.09559051169299,4432.5998660573196,188.13242675664901,4139.2677071859898,140309423.4551,210860364.17296499,1277132.9342121601,1017070.40068895,5607849.4547119802,66495106.115916401,259934.72645304201]
["NW_to_LDWP","NW","LDWP",2022,4725467.8324084999,4838391.7657241197,112923.93331562101,1166.56761822047,394.994977079644,4147.54506310126,285.88701089444999,4326.5679260042698,118592149.194545,179770414.41075,3150456.4562098002,2471307.52287415,4725467.8324084999,58631680.2065069,631422.769911221]
["NW_to_LDWP","NW","LDWP",2023,4348734.6350504998,4601252.3750881599,252517.74003766201,1114.52544739222,376.051394639004,4128.4408407669898,671.49794851863203,3960.0612107143502,114908588.37890001,174764548.79860201,7234137.2708350196,5685250.86931217,4348734.6350504998,57469537.828399703,1411974.5073578199]
["NW_to_LDWP","NW","LDWP",2024,4073746.1397235701,4390384.2993326802,316638.15960910701,1106.2454795912899,433.94364467893598,3968.7251883322701,729.675762029834,4061.5990496378599,110110386.431012,169624943.98457801,8624566.6972302701,6652021.4274005704,4073746.1397235701,56561558.219242498,1770508.6120367099]
["NW_to_LDWP","NW","LDWP",2026,3146803.8582871999,3749863.9063655301,603060.04807833105,1064.2304870810599,585.68775909521798,3523.5449011149099,1029.6613489241199,4206.7937499609397,86744766.694278002,139033988.544691,16448713.255672,12614500.975887099,3146803.8582871999,51468174.1491016,3372066.3447929798]
["NW_to_LDWP","NW","LDWP",2030,1404451.34271536,3011291.3191991402,1606839.97648378,974.33439972061103,718.24001582798803,3090.6137770180599,2237.1908290732199,3432.1953939086802,70179084.302594602,117794721.021081,47471474.289636403,37096607.192635603,1404451.34271536,47330765.324584097,8984796.8847784605]
["NW_to_LDWP","NW","LDWP",2045,145368.253122266,1642216.1357696599,1496847.88264739,858.62139111475994,715.86265489992604,1912.6196397664201,2090.9707642964599,4756.4095959370998,38887753.010982901,84969118.517217606,47539402.237462103,37415788.799281597,145368.253122266,46083383.9197722,8369761.3090995802]
["NW_to_SW","NW","SW",2020,-2397514.77258152,1735882.8308088901,4133397.6033904199,1847.4143114223,2033.2515685538899,939.62833354498696,2032.90024083453,5787.4714256204797,19661139.870910201,44849415.384904899,130373699.424444,92145741.344244793,-2397514.77258152,8526295.5586122908,30370476.474364799]
["NW_to_SW","NW","SW",2021,-2983371.5421290202,1634030.35193149,4617401.8940605102,2121.1156138240899,1915.5305762692001,770.36364320828102,2410.5080604109298,5579.1282963807898,16269913.1730134,41403508.6421322,145014076.76909399,102556169.71283901,-2983371.5421290202,8026021.0855234899,33926740.674832001]
["NW_to_SW","NW","SW",2022,-3693841.7021727799,1685764.04617474,5379605.7483475301,2111.2854230040598,1935.08651421432,798.45388397374597,2780.0337136511698,5181.5124023750705,12061066.721482201,42172888.761737302,168119034.18494901,119661431.50495499,-3693841.7021727799,8280124.68703325,39527090.935995199]
["NW_to_SW","NW","SW",2023,-3906467.69893663,1662348.2794329,5568815.9783695396,2189.2942245610402,1936.0624660157,759.307844867771,2876.3617270210402,5124.3304281111796,9060210.4283014107,39862737.268068798,173944365.36526799,123840442.672563,-3906467.69893663,8165111.0301862396,40917332.127226099]
["NW_to_SW","NW","SW",2024,-4032681.1995599801,1674670.8321249101,5707352.0316849099,2061.0269292355902,1977.05522827308,812.54194613848404,2886.7944355151599,5060.6636183463197,11294987.793036999,40314969.229054503,179727748.22806099,128016999.587433,-4032681.1995599801,8225636.8934946703,41935233.469342798]
["NW_to_SW","NW","SW",2026,-4557904.2168158405,1745586.6776149899,6303490.8944308301,2150.83766806924,1798.45354725488,811.58457633948797,3504.9506305305099,4443.4647931299496,-4315735.5759038199,42787731.714456901,204661552.83980501,146102345.038425,-4557904.2168158405,8573961.2150851209,46315412.754844502]
["NW_to_SW","NW","SW",2030,-4888479.5201365696,1844723.17077935,6733202.6909159198,1953.3278591755,1789.0547282145701,944.400174355785,3763.5532243529801,4052.0466012912102,-17639752.4084079,45790598.1979445,217962487.80045199,157594497.62812099,-4888479.5201365696,9060897.7651280109,49472754.383461997]
["NW_to_SW","NW","SW",2045,1309414.33270091,4598526.6226384696,3289112.28993756,1949.61115340279,1642.33913463921,2358.6891235271901,2002.6998203754699,4398.6110560973002,70614596.287606701,166823325.892795,148469167.404266,93678744.894999504,1309414.33270091,22587012.538777601,24167019.344188601]
["SW_to_BANC","SW","BANC",2020,0,0,0,0,0,0,0,8760,0,0,0,0,0,0,0]
["SW_to_BANC","SW","BANC",2021,0,0,0,0,0,0,0,8760,0,0,0,0,0,0,0]
["SW_to_BANC","SW","BANC",2022,0,0,0,0,0,0,0,8760,0,0,0,0,0,0,0]
["SW_to_BANC","SW","BANC",2023,0,0,0,0,0,0,0,8760,0,0,0,0,0,0,0]
["SW_to_BANC","SW","BANC",2024,0,0,0,0,0,0,0,8760,0,0,0,0,0,0,0]
["SW_to_BANC","SW","BANC",2026,0,0,0,0,0,0,0,8760,0,0,0,0,0,0,0]
["SW_to_BANC","SW","BANC",2030,0,0,0,0,0,0,0,8760,0,0,0,0,0,0,0]
["SW_to_BANC","SW","BANC",2045,0,0,0,0,0,0,0,8760,0,0,0,0,0,0,0]
["SW_to_CAISO","SW","CAISO",2020,10606170.540500499,11351858.2081578,745687.66765731398,2706.0852273946698,3159.93732331919,4194.9374296267297,235.981790573632,4329.0807797996204,312766122.57605302,489620859.24315202,15848770.9358609,7283938.5980605697,10606170.540500499,157496364.08810699,7746567.6452613296]
["SW_to_CAISO","SW","CAISO",2021,11486558.4728372,12109943.381720901,623384.90888370399,2664.3925280222602,2282.6424808042202,4545.1048426074003,273.09791792890502,3941.7972394636699,326022549.810256,506707727.33074898,13517853.5358357,6042691.5670606503,11486558.4728372,171910436.41944599,6476027.2804171303]
["SW_to_CAISO","SW","CAISO",2022,10740126.897968,12350960.2461573,1610833.3481892401,2869.3825386724602,3720.1396882952999,4304.3965312033897,433.00345770816602,4022.6000110884202,337282547.35091603,523843471.052396,35244007.224232398,15247016.823935499,10740126.897968,179753402.81189901,16734121.582340101]
["SW_to_CAISO","SW","CAISO",2023,11935324.0621845,13894323.147198001,1958999.0850134401,3175.4620174319298,3480.3520128895798,4375.5280557361602,562.87383510582697,3821.5981091579902,374758951.58430201,591530082.726071,40635991.270984702,12223982.108028,11935324.0621845,207383393.18239701,20351044.933561601]
["SW_to_CAISO","SW","CAISO",2024,14281386.8734322,16208457.795780201,1927070.9223479701,3612.4582853103402,3079.81813163587,4486.8221348575998,625.70932437636895,3647.4685407660199,426624275.34972697,685235281.53803301,39435818.993904099,6080323.6545996098,14281386.8734322,248294840.68096799,20019354.088856298]
["SW_to_CAISO","SW","CAISO",2026,11958684.821413999,13871505.049750101,1912820.2283361501,3302.8587591440701,3651.04240102735,4199.8480895819303,523.91071322477796,4036.2411971932702,352932549.77762002,748885264.92382801,42100304.6977062,18995171.196825199,11958684.821413999,224179301.94668201,19871312.597605199]
["SW_to_CAISO","SW","CAISO",2030,12478083.7750821,16050500.663150501,3572416.8880684599,3937.5905795079698,4235.7666142012604,4076.2238579807299,843.39323042285105,3840.3829115963999,422374690.45422602,1573966114.12233,69922314.400587901,5105439.8612863701,12478083.7750821,291373613.01942098,37112014.346276797]
["SW_to_CAISO","SW","CAISO",2045,-14991009.273576699,1433393.1499848401,16424402.4235615,5512.6410074566702,4093.8213255074202,260.01931706526199,4011.9978664495702,4487.9828164851497,46696394.248048402,475090054.41481,510825915.07795501,8280524.9875892699,-14991009.273576699,43714888.255494997,170624727.19716799]
["SW_to_IID","SW","IID",2020,-220076.90121405901,24969.917856144999,245046.81907020399,145.830699956497,515.33511092349795,171.225385763037,475.509651634394,8113.2649626025805,1076496.3668897201,1422990.2112634301,5289323.3624204798,4110473.1458862699,-220076.90121405901,346432.77413329302,778950.68009931396]
["SW_to_IID","SW","IID",2021,-251341.118516605,43557.488782584798,294898.60729919001,180.37046037105799,483.185041594739,241.48903702401299,610.32230287155596,7908.1886601044298,1492978.86197121,2111387.2613226101,6500519.3174711503,4816732.1580069903,-251341.118516605,618335.25665381097,937418.970220619]
["SW_to_IID","SW","IID",2022,-434371.19770019001,38189.786587454197,472560.98428764398,173.88728286067899,535.19222588591401,219.62380433566301,882.97430611105096,7657.4018895532899,1420314.0778786,1976025.01337429,10303497.861249899,7833308.1939038401,-434371.19770019001,555807.46275953401,1502168.7995350501]
["SW_to_IID","SW","IID",2023,-481412.15018727502,53174.830476259602,534586.98066353402,168.731231137919,544.87806667205598,315.14515788007799,981.11304778447698,7463.7417943354403,1949748.5272912299,2743372.5991047299,11355261.1195039,8057940.0558125097,-481412.15018727502,793677.76611791505,1699336.6561414499]
["SW_to_IID","SW","IID",2024,-465006.88817587402,50383.130584477898,515390.01876035199,164.49476033797001,540.36329279202403,306.29018505489603,953.78428852441698,7499.9255264206804,1988949.0201799299,2760793.64581904,10905350.8157719,7718105.3555172803,-465006.88817587402,771810.66364504804,1638314.22576249]
["SW_to_IID","SW","IID",2026,-576465.88789621298,73612.819025544406,650078.70692175697,118.519990867594,567.86492213298197,621.10044463116196,1144.77700872941,6994.1225466394199,2519040.95499653,3708633.0656380998,14362850.284330999,7099914.0798201999,-576465.88789621298,1189674.3879378,2066458.6117289099]
["SW_to_IID","SW","IID",2030,-760082.58658454195,48738.9965233943,808821.58310793596,91.985404094317502,398.63596248302503,529.85576356678996,2028.9729458173899,6201.17129061581,1560089.9905145799,2444850.5586429001,17278474.874002799,5743193.2721739803,-760082.58658454195,884778.86423196294,2571067.7303405399]
["SW_to_IID","SW","IID",2045,-1683969.0598548199,16325.6266670604,1700294.6865218801,111.329815262561,373.62574792247,146.641999077766,4550.7963409275098,4062.5616599946902,556204.84461383906,1054136.45795918,47835556.520958498,31018276.8921788,-1683969.0598548199,497892.62256928202,5404865.6970849596]
["SW_to_LDWP","SW","LDWP",2020,278364.126353667,278364.126353667,0,231.81931030208,0,1200.78058204441,0,7559.21941795558,7996939.3691956298,12200219.237865901,0,0,278364.126353667,3862037.78898146,0]
["SW_to_LDWP","SW","LDWP",2021,368640.28141914803,368640.28141914803,0,213.709789541334,0,1724.95739296887,0,7035.0426070311296,10190089.419486299,15811515.4421803,0,0,368640.28141914803,5233142.5311666597,0]
["SW_to_LDWP","SW","LDWP",2022,400473.191594854,400473.191594854,0,210.91589444550399,0,1898.7340553337301,0,6861.2659446662601,11315544.0718008,17608726.188685201,0,0,400473.191594854,5828409.3643350098,0]
["SW_to_LDWP","SW","LDWP",2023,443014.70673127199,443014.70673127199,0,207.46689027102099,0,2135.3513621019001,0,6624.6486378980999,12728302.151322,19917972.229324501,0,0,443014.70673127199,6612325.28674482,0]
["SW_to_LDWP","SW","LDWP",2024,469799.6666917,469799.6666917,0,221.5672318705,0,2120.34813417845,0,6639.65186582154,13390510.9922284,21302087.323890999,0,0,469799.6666917,7196787.9490598999,0]
["SW_to_LDWP","SW","LDWP",2026,519289.90467040101,519289.90467040101,0,219.92975663995,0,2361.1625484610299,0,6398.8374515389696,14125830.759497499,23875545.986999001,0,0,519289.90467040101,8392299.2394708004,0]
["SW_to_LDWP","SW","LDWP",2030,511033.335172149,511033.335172149,0,227.69866924733199,0,2244.3404560131598,0,6515.6595439868397,15576209.1073549,26087452.261798199,0,0,511033.335172149,9277072.0739165805,0]
["SW_to_LDWP","SW","LDWP",2045,409306.009136551,409306.009136551,0,209.75284391572001,0,1951.37287054383,0,6808.6271294561802,12494131.2007728,26113830.689737801,0,0,409306.009136551,12482808.7670207,0]

{"sheet":"raw_annual_unbundled_rps_purcha","index":19,"n_rows":58,"n_cols":4,"rows_kept":58,"cut":false,"hidden":false,"merged":[]}
[]
["zone","period","unbundled_rps_generation_mwh_per_year","unbundled_rps_energy_cost_$_per_year"]
["BANC",2020,0,0]
["BANC",2021,0,0]
["BANC",2022,0,0]
["BANC",2023,0,0]
["BANC",2024,0,0]
["BANC",2026,0,0]
["BANC",2030,0,0]
["BANC",2045,0,0]
["CAISO",2020,0,0]
["CAISO",2021,0,0]
["CAISO",2022,0,0]
["CAISO",2023,0,0]
["CAISO",2024,0,0]
["CAISO",2026,0,0]
["CAISO",2030,0,0]
["CAISO",2045,0,0]
["CAISO_NW_Hydro",2020,0,0]
["CAISO_NW_Hydro",2021,0,0]
["CAISO_NW_Hydro",2022,0,0]
["CAISO_NW_Hydro",2023,0,0]
["CAISO_NW_Hydro",2024,0,0]
["CAISO_NW_Hydro",2026,0,0]
["CAISO_NW_Hydro",2030,0,0]
["CAISO_NW_Hydro",2045,0,0]
["IID",2020,728857.23068361799,23454329.807402201]
["IID",2021,728931.86267607904,23717772.151435599]
["IID",2022,728867.94401490001,23424888.546482898]
["IID",2023,728857.23068361799,23260260.170883399]
["IID",2024,728187.88747618801,23663467.8773464]
["IID",2026,723198.53230906604,23106879.1950096]
["IID",2030,718434.06359521498,21430805.9698705]
["IID",2045,718756.19922797196,22292805.0791886]
["LDWP",2020,13177.7228666632,456384.15847175202]
["LDWP",2021,13175.4374764317,458702.342130751]
["LDWP",2022,13169.981445997601,452525.62933654699]
["LDWP",2023,13173.0165887556,450392.94315607997]
["LDWP",2024,13143.4027284483,453872.45371787302]
["LDWP",2026,12162.144198137399,443665.41727395903]
["LDWP",2030,12053.646140252,454098.27129392303]
["LDWP",2045,12545.233173316499,462193.847722615]
["NW",2020,3675488.0679569398,84327365.112556994]
["NW",2021,3368814.9870933699,86957656.345371395]
["NW",2022,3351123.8057099502,85770240.524878904]
["NW",2023,3351492.8756108801,86273559.276791498]
["NW",2024,3383099.5997516201,87633379.101902902]
["NW",2026,3296326.9136570101,89233858.855559096]
["NW",2030,3238132.2671451201,93710130.995535806]
["NW",2045,3173729.78760819,98838487.777089402]
["SW",2020,397143.19045528199,9250393.7567215599]
["SW",2021,397143.19045528199,9283180.0627586693]
["SW",2022,397143.19045528199,9320322.9741858095]
["SW",2023,397143.19045528199,9278797.4488290604]
["SW",2024,397143.19045528199,9313015.3464037497]
["SW",2026,397143.19045528199,9441802.5562489405]
["SW",2030,397143.19045528199,9494047.5563122407]
["SW",2045,397143.19045528199,11651249.457322599]

{"sheet":"raw_original_inputs_passthrough","index":20,"n_rows":6,"n_cols":17,"rows_kept":6,"cut":false,"hidden":false,"merged":[]}
[]
["period","baseline_distribution_cost","baseline_transmission_cost","baseline_generation_cost","baseline_dsm_cost","baseline_other_cost","scenario_distribution_cost","scenario_transmission_cost","scenario_generation_cost","scenario_dsm_cost","scenario_other_cost","scenario_customer_cost","shift_load_down_potential_factor","td_losses","pumping_loads_mwh","input_carbon_price_$_per_ton","energy_efficiency_mwh"]
[2018,11433.198560000001,3902.9102360000002,14120.028480000001,0,1080.538399,24.654990089999998,0,-678.21284839999998,1587.3028979999999,0,2861.6939779999998,0.16666666699999999,7.3300000000000004E-2,8567,14.94031691,2156.8532989999999]
[2022,12585.94801,4428.5716220000004,15367.985070000001,0,1109.1473470000001,24.395744969999999,0,-627.59853569999996,1587.3028979999999,0,3864.3152359999999,0.16666666699999999,7.3300000000000004E-2,8640,18.21523144,10436.82656]
[2026,13196.344999999999,4582.2235659999997,14076.261140000001,0,456.09746480000001,21.3313165,0,-856.30372750000004,1521.2220420000001,0,4952.6399520000004,0.16666666699999999,7.3300000000000004E-2,8723,22.30430578,19800.668870000001]
[2030,13798.43593,4746.0729950000004,14149.13474,0,505.71017239999998,19.888521409999999,0,-945.99903830000005,1521.2220420000001,0,5930.7682770000001,0.16666666699999999,7.3300000000000004E-2,8781,27.365087890000002,28190.737010000001]

{"sheet":"raw_annual_main_zone_contract_p","index":21,"n_rows":26,"n_cols":4,"rows_kept":26,"cut":false,"hidden":false,"merged":[]}
[]
["zone","period","mainzone_contract_generation_mwh_per_year","mainzone_contract_energy_cost_$_per_year"]
["BANC",2018,24615.599999999798,941162.26978671202]
["BANC",2022,24615.599999999798,976486.66697491705]
["BANC",2026,24615.599999999798,1057110.55000552]
["BANC",2030,24615.599999999798,1127547.1785782799]
["CAISO",2018,0,0]
["CAISO",2022,0,0]
["CAISO",2026,0,0]
["CAISO",2030,0,0]
["IID",2018,3009095.9408549601,102239376.611425]
["IID",2022,1746194.4432512701,64746695.807729498]
["IID",2026,1484616.3276416999,61495982.9602402]
["IID",2030,1484343.8701925001,66320226.715830401]
["LDWP",2018,10137.9391142031,374360.794382211]
["LDWP",2022,10137.9391142031,386239.11717862298]
["LDWP",2026,10137.9391142031,419970.242647829]
["LDWP",2030,10137.9391142031,442577.96617353702]
["NW",2018,3950765.9718969702,104103731.777806]
["NW",2022,3950765.9718969702,104704262.323961]
["NW",2026,3950765.9718969702,111687371.34370799]
["NW",2030,3950765.9718969702,116887211.47253101]
["SW",2018,2556080.51784351,69055382.626036197]
["SW",2022,2556080.51784351,73056002.7742576]
["SW",2026,2556080.51784351,80552715.794445202]
["SW",2030,2556080.51784351,85758375.085154399]

{"sheet":"raw_hurdle_rate_costs","index":22,"n_rows":54,"n_cols":4,"rows_kept":54,"cut":false,"hidden":false,"merged":[]}
[]
["line","period","positive_direction_cost_$_per_year","negative_direction_cost_$_per_year"]
["BANC_to_CAISO",2018,807262.34101592598,4635551.4020762499]
["BANC_to_CAISO",2022,1396801.71799791,37684496.111325599]
["BANC_to_CAISO",2026,713342.85722469899,15197848.571265999]
["BANC_to_CAISO",2030,201062.99514805901,15189414.4408693]
["IID_to_BANC",2018,0,0]
["IID_to_BANC",2022,0,0]
["IID_to_BANC",2026,0,0]
["IID_to_BANC",2030,0,0]
["IID_to_CAISO",2018,3909816.59980381,88598.463608902704]
["IID_to_CAISO",2022,410694.78469910001,4010218.6759045301]
["IID_to_CAISO",2026,60577.622088550197,720314.347282356]
["IID_to_CAISO",2030,35209.493350318,1388205.19330128]
["IID_to_LDWP",2018,0,0]
["IID_to_LDWP",2022,0,0]
["IID_to_LDWP",2026,0,0]
["IID_to_LDWP",2030,0,0]
["LDWP_to_CAISO",2018,616599.72695090098,1935329.99519484]
["LDWP_to_CAISO",2022,1388474.29489096,28074934.2829131]
["LDWP_to_CAISO",2026,1075948.07908628,9303823.3278107494]
["LDWP_to_CAISO",2030,231393.80795641601,13567214.6588258]
["NW_to_BANC",2018,109081140.64772999,0]
["NW_to_BANC",2022,91141215.158653304,0]
["NW_to_BANC",2026,111964279.821835,0]
["NW_to_BANC",2030,108533875.237204,1197.67672164943]
["NW_to_CAISO",2018,182062847.06220701,7030.4566794694701]
["NW_to_CAISO",2022,231599606.31976399,1013867.73443311]
["NW_to_CAISO",2026,155510903.75032499,7111413.2957629897]
["NW_to_CAISO",2030,85761679.879175901,16324867.1813707]
["NW_to_LDWP",2018,84881498.217094406,0]
["NW_to_LDWP",2022,107351578.71546599,0]
["NW_to_LDWP",2026,149119964.525051,29356.201989768699]
["NW_to_LDWP",2030,152642522.31376201,90297.1666969496]
["NW_to_SW",2018,0,0]
["NW_to_SW",2022,0,0]
["NW_to_SW",2026,0,0]
["NW_to_SW",2030,0,0]
["SW_to_BANC",2018,0,0]
["SW_to_BANC",2022,0,0]
["SW_to_BANC",2026,0,0]
["SW_to_BANC",2030,0,0]
["SW_to_CAISO",2018,177101396.5002,207429.180709879]
["SW_to_CAISO",2022,191749758.28936499,5233344.4542657696]
["SW_to_CAISO",2026,64496150.870480999,13315040.408549899]
["SW_to_CAISO",2030,14324718.256875999,27227307.986349698]
["SW_to_IID",2018,3788650.3102401001,96490.041869621797]
["SW_to_IID",2022,6776885.2309740204,208309.59104868499]
["SW_to_IID",2026,10709492.303794701,677985.23134556098]
["SW_to_IID",2030,13728501.3794073,1394356.31410908]
["SW_to_LDWP",2018,85498367.458715796,126640.22953374599]
["SW_to_LDWP",2022,43167054.061107703,546468.66378844494]
["SW_to_LDWP",2026,13664731.1309027,159874.27224604701]
["SW_to_LDWP",2030,18159414.903706402,378627.11524944298]